{"text_format":"1","workbook":"xlsx","n_sheets":21,"sheets":["About","0-StartHere","S1-Standard","S2-Double","S3-Short","S4-PartialHarvest","5-Comparison","Growth-Model-1","Growth-Model-2","Growth-Model-3","Growth-Model-4","FeedTables","OperatingCosts","SetupCosts","FeedCosts","SalesPrices","FryCosts","CageCost_m3","GrowthAdjust","LabourToFeed","Consolidate"],"not_rendered":{"charts":75,"images":2,"macros":1,"external_links":0,"defined_names":81,"comments":0,"pivot_tables":0},"unopened":[],"bounds":{"document_bytes":16777216,"sheet_cells":100000,"rows_first":2000,"rows_last":500,"rows_between":2000,"halvings":0,"cell_chars":16384,"cell_head_chars":4096},"cells_cut":0,"cells_raw":0,"read":"whole","date_system":"1900"}

{"sheet":"About","index":0,"n_rows":30,"n_cols":5,"rows_kept":30,"cut":false,"hidden":false,"merged":[]}
[]
[]
[null,null,null,null,"Tilapia production strategy explorer"]
[]
[null,null,null,null,"A tool for modelling small and medium-scale cage farms in Lake Victoria or similar water bodies "]
[]
[null,null,null,null,"Version 1.1.00 - Release Date 28 February 2024"]
[]
[null,null,null,null,"Disclaimer"]
[null,null,null,null,"NB This spreadsheet is intended as an education and training tool and has not been validated for commercial use\nThe \"predictions\" produced by the model should not be relied upon as they are based on limited data and simplified arithmetic calculations. The model can only support planning and decision making when used alongside a good understanding of fish biology, husbandry and farm management. It is particularly important to note that fish growth and survival is highly dependent on local site conditions and suitability, as well as on equipment, feed and seed quality, and the knowledge and skills of the farmer. For users in Kenya, please consult this website for further information about site suitability and carrying capacity:"]
[null,null,null,null,"http://sawa.blue"]
[]
[null,null,null,null,"For users elsewhere please consult relevant guidelines on site suitability and carrying capacity such as:"]
[null,null,null,null,"https://www.fao.org/3/i3099e/i3099e00.htm"]
[null,null,null,null,"http://hdl.handle.net/1893/24680"]
[]
[null,null,null,null,"This spreadsheet is provided \"as is\" and \"with all faults\" without any express or implied warranties of any kind. The authors and distributors of this spreadsheet disclaim all liability for any damages, losses, or injuries arising from the use or inability to use this software, even if they have been advised of the possibility of such damages, losses, or injuries. The user assumes all responsibility for determining the suitability, accuracy, and quality of this spreadsheet for their own purposes. The user also agrees to comply with all applicable laws and regulations regarding the use, copying and distribution of this spreadsheet."]
[]
[null,null,null,null,"Credits"]
[null,null,null,null,"This spreadsheet was developed with the support of GCFR Funding through Innovate UK KTN"]
[null,null,null,null,"Our thanks to the staff of Victory Farms, Unga Group and Nutreco for sharing data"]
[null,null,null,null,"and to Dr Clive Talbot and Leila Gharani for providing solutions to statistical and spreadsheet problems respectively"]
[]
[null,null,null,null,"Copyright"]
[null,null,null,null,"You may copy and distribute this spreadsheet providing you make no modifications or levy any kind of charge "]
[null,null,null,null,"Copyright: University of Stirling - All rights reserved 2023"]
[null,null,null,null,"http://www.susaquastirling.net"]
[]
[]
[null,null,null,null,"To help improve this modelling tool, please send comments and examples of real farm data to j.c.bostock@stir.ac.uk"]

{"sheet":"0-StartHere","index":1,"n_rows":106,"n_cols":27,"rows_kept":106,"cut":false,"hidden":false,"merged":[]}
[]
[null,"Tilapia Cage Farm Production Strategy Explorer"]
[]
[null,"This tool allows you to quickly consider stocking and harvesting options "]
[null,"for small-scale cage-based farming of tilapia in Lake Victoria and similar water bodies"]
[]
[null,"Start by answering the following questions:"]
[]
[null,"What is the average water depth at your site? (m)",10,{"$f":"C9/3","v":3.3333333333333335}]
[]
[null,"How many cages do you have?",8,null,"<< This model assumes all cages are the same volume"]
[]
[null,"Are the cages rectangular or circular?","Rectangular",null,null,null,null,null,null,null,null,null,null,null,null,null,null,null,null,null,null,null,null,null,null,null,"Rectangular"]
[null,null,null,null,null,null,null,null,null,null,null,null,null,null,null,null,null,null,null,null,null,null,null,null,null,null,"Circular"]
[null,"If applicable, what are your rectangular cage dimensions?"]
[null,"Length (m)",3]
[null,"Width (m)",3]
[null,"Depth (m)",3,null,{"$f":"IF(C13=\"Rectangular\",IF(C18>D9,\"WARNING: Your cage depth is greater than that recommended for this site\",\"\"),\"\")","v":""}]
[]
[null,"If applicable, what are your circular cage dimensions?"]
[null,"Circumference (length) (m)",30]
[null,"Diameter (m) (calculated from circumference)",{"$f":"C21/PI()","v":9.5492965855137211}]
[null,"Depth (m)",2.5,null,{"$f":"IF(C13=\"Circular\",IF(C23>D9,\"WARNING: Your cage depth is greater than that recommended for this site\",\"\"),\"\")","v":""}]
[]
[null,"Individual cage volume used in calculations is (m3)",{"$f":"IF(C13=\"Rectangular\",C16*C17*C18,IF(C13=\"Circular\",PI()*((C22/2)^2)*C23,\"ERROR\"))","v":27}]
[]
[null,"If you can't grow fish all year, how many days "]
[null,"per year are not suitable for farming? ",0]
[]
[null,"You have this numer of days available for farming each year",{"$f":"365-C28","v":365}]
[]
[null,"What is the average water temperature? (°C)",26,null,"<< suggested value for Lake Victoria is 26°C - must be between 20 and 30°C "]
[]
[null,"Assume loss of weight between harvest and sales (%)",0]
[]
[null,"On the next 4 sheets there are 4 culture strategies (Scenarios) that you can explore:"]
[null,"By default these are:"]
[null,"1. Standard stocking density and harvest of larger fish"]
[null,"2. Double density stocking and harvest of larger fish"]
[null,"3. Double density stocking and harvest of smaller fish"]
[null,"4. Double density stocking with interim harvest of small fish"]
[]
[null,"On the 5th sheet you can compare the results of these and allocate your cages to the different strategies"]
[]
[null,"To enter more of your own data and assumtions use the advanced  set-up below"]
[]
[null,"Advanced set-up"]
[]
[null,"What currency are you using (enter currency code)","KES",null,"<< note this only changes currency lables it does not convert amounts"]
[]
[null,"Edit the table of sales prices"]
[]
[null,"Edit the table of fry/fingerling costs"]
[]
[null,"Edit the table of feed costs"]
[]
[]
[null,"Feed Conversion Ratio - use formula or table? ","Formula"]
[]
[null,"Use custom or temperature-based SFR? ","Temp."]
[]
[null,"Edit the feed allocation table"]
[]
[null,"Edit the growth adjust table for density "]
[]
[]
[null,"Edit the farm operating costs"]
[]
[null,"Edit the farm set-up costs"]
[]
[]
[null,"Mortality rates"]
[]
[null,"For all cages"]
[null,"What percentage of stocked fish do you expect "]
[null,"to die within 24 hours of first stocking?",6.0000000000000001E-3,null,"<<Suggested value 0.5 - 1%"]
[]
[null,"At what rate will inital mortalities decline (Li)",-0.15,null,"<<Suggested value -0.05 to -0.25"]
[]
[null,"What percentage of stocked fish do you expect"]
[null,"to die on the last culture day?",1E-3,null,"<<Suggested value 0 to 2%"]
[]
[null,"At what rate will mortalities increase to the final day rate (Lf)",-0.2,null,"<<Suggested value -0.05 to -0.5"]
[]
[null,"For partially harvested cages"]
[null,"What percentage of remaining fish do you expect "]
[null,"to die within 24 hours of a partial harvest?",7.0000000000000001E-3,null,"<<Suggested value 0.5 - 1%"]
[]
[null,"At what rate will remaining fish mortalities"]
[null,"decline (equation paramter Lp)",-0.25,null,"<<Suggested value -0.1 to -0.25"]
[]
[]
[null,"Size variability"]
[]
[null,"Coefficient of variation",0.24,null,"<<Suggested value 22 to 26%"]
[]
[]
[null,"Scenario names",null,null,"Note: Chaging these does not change the tab names"]
[]
[1,"Standard Stocking and Harvest","Standard",null,"<< Default: \"Standard Stocking and Harvest\" - Standard"]
[]
[2,"Double Stocking with Single Harvest","Double",null,"<<Default: \"Double Stocking with Single Harvest\" - Double"]
[]
[3,"Short Cycle with Double Stocking","Short",null,"<< Default: \"Short Cycle with Double Stocking\" - Short"]
[]
[4,"Double Stocking with Partial Harvest","Partial",null,"<<Default: Double Stocking with Partial Harvest\" - Partial"]

{"sheet":"S1-Standard","index":2,"n_rows":71,"n_cols":33,"rows_kept":71,"cut":false,"hidden":false,"merged":[]}
[]
[null,{"$f":"_xlfn.CONCAT(\"Strategy 1: \",'0-StartHere'!$B$100)","v":"Strategy 1: Standard Stocking and Harvest"},null,null,null,null,null,null,null,null,null,null,null,null,null,null,null,{"$f":"'0-StartHere'!C100","v":"Standard"}]
[null,null,null,null,null,null,null,null,null,null,null,null,null,null,null,null,null,null,null,null,null,null,null,null,null,null,null,null,null,null,null,"mono sex"]
[null,"Input data",null,null,"<< Change these input varibles to see the impact they have on overall production and indicators of potential profitability",null,null,null,null,null,null,null,null,null,null,null,null,null,null,null,null,null,null,null,null,null,null,null,null,null,null,"mixed sex"]
[null,"Ave wt. at stocking (g)",40,"mono sex"]
[null,"Initial stock density (No./m3)",75]
[null,"Days to harvest | Predicted average weight",137,{"$f":"C20","v":492.59183595154281},null,null,null,null,"Output charts  (per cage cycle)"]
[null,"Temp. (Degrees C)",{"$f":"'0-StartHere'!C32","v":26}]
[null,"Cage type",{"$f":"'0-StartHere'!$C$13","v":"Rectangular"}]
[null,"Cage surface area (m2)",{"$f":"IF('0-StartHere'!$C$13=\"Rectangular\",'0-StartHere'!$C$16*'0-StartHere'!$C$17,IF('0-StartHere'!$C$13=\"Circular\",PI()*(('0-StartHere'!$C$22/2)^2),\"ERROR\"))","v":9}]
[null,"Cage depth (m)",{"$f":"IF('0-StartHere'!$C$13=\"Rectangular\",'0-StartHere'!$C$18,IF('0-StartHere'!$C$13=\"Circular\",'0-StartHere'!$C$23,\"ERROR\"))","v":3},null,null,null,null,null,null,null,null,null,null,null,null,null,null,null,null,null,null,null,null,null,null,null,null,null,null,null,null,"Indicator",{"$f":"'0-StartHere'!$C$49","v":"KES"}]
[null,"Days between harvest and restocking",10,null,null,null,null,null,null,null,null,null,null,null,null,null,null,null,null,null,null,null,null,null,null,null,null,null,null,null,null,"Sales Income",{"$f":"C30","v":344946.36552479531}]
[null,null,null,null,null,null,null,null,null,null,null,null,null,null,null,null,null,null,null,null,null,null,null,null,null,null,null,null,null,null,null,"Fry and feed costs",{"$f":"C32+C31","v":214355.50500816628}]
[null,null,null,null,null,null,null,null,null,null,null,null,null,null,null,null,null,null,null,null,null,null,null,null,null,null,null,null,null,null,null,"Surplus/loss",{"$f":"AG12-AG13","v":130590.86051662904}]
[null,"Output data (per cage/cycle)"]
[null,"Cycle per year",{"$f":"'0-StartHere'!C30/(C7+C12)","v":2.4829931972789114}]
[null,"Cage volume (m3)",{"$f":"'0-StartHere'!C25","v":27}]
[null,"Number stocked",{"$f":"C17*C6","v":2025}]
[null,"Biomass stocked (kg)",{"$f":"(C18*C5)/1000","v":81}]
[null,"Ave. harvest weight (g)",{"$f":"_xlfn.XLOOKUP($C$7,'Growth-Model-1'!$A$2:$A$366,'Growth-Model-1'!$B$2:$B$366,,0)","v":492.59183595154281}]
[null,"Harvest number",{"$f":"_xlfn.XLOOKUP($C$7,'Growth-Model-1'!$A$2:$A$366,'Growth-Model-1'!$F$2:$F$366,,0)","v":1928.6269545049643}]
[null,"Harvest biomass (kg)",{"$f":"_xlfn.XLOOKUP($C$7,'Growth-Model-1'!$A$2:$A$366,'Growth-Model-1'!$M$2:$M$366,,0)","v":950.02589238523296}]
[null,"Final stock density (kg/m3)",{"$f":"C22/C17","v":35.186144162416035}]
[null,"Mortalities (No.)",{"$f":"_xlfn.XLOOKUP($C$7,'Growth-Model-1'!$A$2:$A$366,'Growth-Model-1'!$I$2:$I$366,,0)","v":98.398056859804981}]
[null,"Mortalities (%)",{"$f":"_xlfn.XLOOKUP($C$7,'Growth-Model-1'!$A$2:$A$366,'Growth-Model-1'!$J$2:$J$366,,0)","v":4.8591633017187642E-2}]
[null,"Mortality biomass (kg)",{"$f":"_xlfn.XLOOKUP($C$7,'Growth-Model-1'!$A$2:$A$366,'Growth-Model-1'!$L$2:$L$366,,0)","v":9.6134220875344365}]
[null,"Feed used (kg)",{"$f":"_xlfn.XLOOKUP($C$7,'Growth-Model-1'!$A$2:$A$366,'Growth-Model-1'!$P$2:$P$366,,0)","v":1331.572900961374}]
[null,"Biological FCR",{"$f":"C27/(C22+C26-C19)","v":1.5154943320062932}]
[null,"Economic FCR",{"$f":"C27/(C22-C19)","v":1.5322591796506533}]
[null,{"$f":"_xlfn.CONCAT(\"Sales income\",\" (\",'0-StartHere'!$C$49,\")\")","v":"Sales income (KES)"},{"$f":"'Growth-Model-1'!$S$391","v":344946.36552479531}]
[null,{"$f":"_xlfn.CONCAT(\"Feed cost\",\" (\",'0-StartHere'!$C$49,\")\")","v":"Feed cost (KES)"},{"$f":"_xlfn.XLOOKUP($C$7,'Growth-Model-1'!$A$2:$A$366,'Growth-Model-1'!$S$2:$S$366,,0)","v":133355.50500816628}]
[null,{"$f":"_xlfn.CONCAT(\"Fry cost\",\" (\",'0-StartHere'!$C$49,\")\")","v":"Fry cost (KES)"},{"$f":"_xlfn.XLOOKUP(C5,FryWeight,_xlfn.XLOOKUP(D5,FryType,FryTypeCost))*C18","v":81000}]
[null,{"$f":"_xlfn.CONCAT(\"Income less feed and fry\",\" (\",'0-StartHere'!$C$49,\")\")","v":"Income less feed and fry (KES)"},{"$f":"C30-C31-C32","v":130590.86051662904}]
[null,"% margin on feed and fry cost",{"$f":"C33/C30","v":0.37858308875917684}]
[]
[null,"Including short-term finance cost:"]
[null,{"$f":"_xlfn.CONCAT(\"Interest paid on fry\",\" (\",'0-StartHere'!$C$49,\")\")","v":"Interest paid on fry (KES)"},{"$f":"(C32*(C7*OperatingCosts!$C$19)*OperatingCosts!$C$21)/365","v":4256.3835616438364}]
[null,{"$f":"_xlfn.CONCAT(\"Interest paid on feed\",\" (\",'0-StartHere'!$C$49,\")\")","v":"Interest paid on feed (KES)"},{"$f":"(C31*(C7*OperatingCosts!$C$20)*OperatingCosts!$C$21)/365","v":2803.0231080072649}]
[null,{"$f":"_xlfn.CONCAT(\"Total short-term financing\",\" (\",'0-StartHere'!$C$49,\")\")","v":"Total short-term financing (KES)"},{"$f":"C37+C38","v":7059.4066696511018}]
[null,{"$f":"_xlfn.CONCAT(\"Adjusted Income less fry and feed cost\",\" (\",'0-StartHere'!$C$49,\")\")","v":"Adjusted Income less fry and feed cost (KES)"},{"$f":"C33-C39","v":123531.45384697794}]
[null,"Adjusted % margin on fry and feed cost",{"$f":"C40/C30","v":0.35811785887072434}]
[]
[]
[null,"Output data (per cage/year)"]
[null,"Annual production (kg)",{"$f":"C22*C16","v":2358.9078280313606}]
[null,{"$f":"_xlfn.CONCAT(\"Annual income\",\" (\",'0-StartHere'!$C$49,\")\")","v":"Annual income (KES)"},{"$f":"C30*C16","v":856499.47902415157}]
[null,"Annual feed use (kg)",{"$f":"C27*C16","v":3306.2864547680374}]
[null,"Fingerlings used (No.)",{"$f":"C18*C16","v":5028.0612244897957}]
[null,{"$f":"_xlfn.CONCAT(\"Feed cost\",\" (\",'0-StartHere'!$C$49,\")\")","v":"Feed cost (KES)"},{"$f":"C31*C16","v":331120.81175497069}]
[null,{"$f":"_xlfn.CONCAT(\"Fingerling cost\",\" (\",'0-StartHere'!$C$49,\")\")","v":"Fingerling cost (KES)"},{"$f":"C32*C16","v":201122.44897959183}]
[null,{"$f":"_xlfn.CONCAT(\"Income less feed and fry\",\" (\",'0-StartHere'!$C$49,\")\")","v":"Income less feed and fry (KES)"},{"$f":"C46-C49-C50","v":324256.21828958904}]
[]
[null,"Including short-term finance cost:"]
[null,{"$f":"_xlfn.CONCAT(\"Feed cost\",\" (\",'0-StartHere'!$C$49,\")\")","v":"Feed cost (KES)"},{"$f":"C49+(C16*C38)","v":338080.69906396832}]
[null,{"$f":"_xlfn.CONCAT(\"Fingerling cost\",\" (\",'0-StartHere'!$C$49,\")\")","v":"Fingerling cost (KES)"},{"$f":"C50+(C37*C16)","v":211691.02040816325}]
[null,{"$f":"_xlfn.CONCAT(\"Income less feed and fry\",\" (\",'0-StartHere'!$C$49,\")\")","v":"Income less feed and fry (KES)"},{"$f":"C46-C54-C55","v":306727.75955202}]
[]
[]
[]
[]
[]
[]
[]
[]
[null,null,null,null,null,null,null,null,null,null,null,null,null,"Feed Use by Type",null,null,"Kg used",{"$f":"_xlfn.CONCAT(\"Cost\",\" (\",'0-StartHere'!$C$49,\")\")","v":"Cost (KES)"}]
[null,null,null,null,null,null,null,null,null,null,null,null,null,{"$f":"'Growth-Model-1'!Z32","v":"Skretting 0.5mm"},null,null,{"$f":"'Growth-Model-1'!AA32","v":0},{"$f":"'Growth-Model-1'!AB32","v":0}]
[null,null,null,null,null,null,null,null,null,null,null,null,null,{"$f":"'Growth-Model-1'!Z33","v":"Skretting 1mm"},null,null,{"$f":"'Growth-Model-1'!AA33","v":0},{"$f":"'Growth-Model-1'!AB33","v":0}]
[null,null,null,null,null,null,null,null,null,null,null,null,null,{"$f":"'Growth-Model-1'!Z34","v":"Skretting 2mm"},null,null,{"$f":"'Growth-Model-1'!AA34","v":0},{"$f":"'Growth-Model-1'!AB34","v":0}]
[null,null,null,null,null,null,null,null,null,null,null,null,null,{"$f":"'Growth-Model-1'!Z35","v":"Unga 2mm"},null,null,{"$f":"'Growth-Model-1'!AA35","v":0},{"$f":"'Growth-Model-1'!AB35","v":0}]
[null,null,null,null,null,null,null,null,null,null,null,null,null,{"$f":"'Growth-Model-1'!Z36","v":"Unga 3mm"},null,null,{"$f":"'Growth-Model-1'!AA36","v":159.88203525193509},{"$f":"'Growth-Model-1'!AB36","v":16971.334148161186}]
[null,null,null,null,null,null,null,null,null,null,null,null,null,{"$f":"'Growth-Model-1'!Z37","v":"Unga 4mm"},null,null,{"$f":"'Growth-Model-1'!AA37","v":1171.6908657094386},{"$f":"'Growth-Model-1'!AB37","v":116384.17086000511}]

{"sheet":"S2-Double","index":3,"n_rows":73,"n_cols":34,"rows_kept":73,"cut":false,"hidden":false,"merged":[]}
[]
[null,{"$f":"_xlfn.CONCAT(\"Strategy 2: \",'0-StartHere'!$B$102)","v":"Strategy 2: Double Stocking with Single Harvest"},null,null,null,null,null,null,null,null,null,null,null,null,null,null,null,{"$f":"'0-StartHere'!$C$102","v":"Double"}]
[null,null,null,null,null,null,null,null,null,null,null,null,null,null,null,null,null,null,null,null,null,null,null,null,null,null,null,null,null,null,null,"mono sex"]
[null,"Input data",null,null,"<< Change these input varibles to see the impact they have on overall production and indicators of potential profitability",null,null,null,null,null,null,null,null,null,null,null,null,null,null,null,null,null,null,null,null,null,null,null,null,null,null,"mixed sex"]
[null,"Ave wt. at stocking (g)",40,"mixed sex"]
[null,"Initial stock density (No./m3)",150]
[null,"Days to harvest | Predicted average weight",137,{"$f":"C20","v":453.59566868587456},null,null,null,null,"Output charts"]
[null,"Temp. (Degrees C)",{"$f":"'0-StartHere'!C32","v":26}]
[null,"Cage type",{"$f":"'0-StartHere'!$C$13","v":"Rectangular"},null,null,null,null,null,null,null,null,null,null,null,null,null,null,null,null,null,null,null,null,null,null,null,null,null,null,null,null,null,"Indicator",{"$f":"'0-StartHere'!$C$49","v":"KES"}]
[null,"Cage surface area (m2)",{"$f":"IF('0-StartHere'!$C$13=\"Rectangular\",'0-StartHere'!$C$16*'0-StartHere'!$C$17,IF('0-StartHere'!$C$13=\"Circular\",PI()*(('0-StartHere'!$C$22/2)^2),\"ERROR\"))","v":9},null,null,null,null,null,null,null,null,null,null,null,null,null,null,null,null,null,null,null,null,null,null,null,null,null,null,null,null,null,"Sales Income",{"$f":"C30","v":630433.10780432355}]
[null,"Cage depth (m)",{"$f":"IF('0-StartHere'!$C$13=\"Rectangular\",'0-StartHere'!$C$18,IF('0-StartHere'!$C$13=\"Circular\",'0-StartHere'!$C$23,\"ERROR\"))","v":3},null,null,null,null,null,null,null,null,null,null,null,null,null,null,null,null,null,null,null,null,null,null,null,null,null,null,null,null,null,"Fry and feed costs",{"$f":"C32+C31","v":343921.90878013382}]
[null,"Days between harvest and restocking",10,null,null,null,null,null,null,null,null,null,null,null,null,null,null,null,null,null,null,null,null,null,null,null,null,null,null,null,null,null,"Surplus/loss",{"$f":"AH10-AH11","v":286511.19902418973}]
[]
[]
[null,"Output data (per cage/cycle)"]
[null,"Cycle per year",{"$f":"'0-StartHere'!C30/(C7+C12)","v":2.4829931972789114}]
[null,"Cage volume (m3)",{"$f":"'0-StartHere'!C25","v":27}]
[null,"Number stocked",{"$f":"C17*C6","v":4050}]
[null,"Biomass stocked (kg)",{"$f":"(C18*C5)/1000","v":162}]
[null,"Ave. harvest weight (g)",{"$f":"_xlfn.XLOOKUP($C$7,'Growth-Model-2'!$A$2:$A$366,'Growth-Model-2'!$B$2:$B$366,,0)","v":453.59566868587456}]
[null,"Harvest number",{"$f":"_xlfn.XLOOKUP($C$7,'Growth-Model-2'!$A$2:$A$366,'Growth-Model-2'!$F$2:$F$366,,0)","v":3857.2539090099285}]
[null,"Harvest biomass (kg)",{"$f":"_xlfn.XLOOKUP($C$7,'Growth-Model-2'!$A$2:$A$366,'Growth-Model-2'!$M$2:$M$366,,0)","v":1749.633666148562}]
[null,"Final stock density (kg/m3)",{"$f":"C22/C17","v":64.801246894391184}]
[null,"Mortalities (No.)",{"$f":"_xlfn.XLOOKUP($C$7,'Growth-Model-2'!$A$2:$A$366,'Growth-Model-2'!$I$2:$I$366,,0)","v":196.79609101896818}]
[null,"Mortalities (%)",{"$f":"_xlfn.XLOOKUP($C$7,'Growth-Model-2'!$A$2:$A$366,'Growth-Model-2'!$J$2:$J$366,,0)","v":4.8591627412090908E-2}]
[null,"Mortality biomass (kg)",{"$f":"_xlfn.XLOOKUP($C$7,'Growth-Model-2'!$A$2:$A$366,'Growth-Model-2'!$L$2:$L$366,,0)","v":18.467327479743304}]
[null,"Feed used (kg)",{"$f":"_xlfn.XLOOKUP($C$7,'Growth-Model-2'!$A$2:$A$366,'Growth-Model-2'!$P$2:$P$366,,0)","v":2624.9992457811672}]
[null,"Biological FCR",{"$f":"C27/(C22+C26-C19)","v":1.634392392629739}]
[null,"Economic FCR",{"$f":"C27/(C22-C19)","v":1.653403616811143}]
[null,{"$f":"_xlfn.CONCAT(\"Sales income\",\" (\",'0-StartHere'!$C$49,\")\")","v":"Sales income (KES)"},{"$f":"'Growth-Model-2'!$S$391","v":630433.10780432355}]
[null,{"$f":"_xlfn.CONCAT(\"Feed cost\",\" (\",'0-StartHere'!$C$49,\")\")","v":"Feed cost (KES)"},{"$f":"_xlfn.XLOOKUP($C$7,'Growth-Model-2'!$A$2:$A$366,'Growth-Model-2'!$S$2:$S$366,,0)","v":262921.90878013382}]
[null,{"$f":"_xlfn.CONCAT(\"Fry cost\",\" (\",'0-StartHere'!$C$49,\")\")","v":"Fry cost (KES)"},{"$f":"_xlfn.XLOOKUP(C5,FryWeight,_xlfn.XLOOKUP(D5,FryType,FryTypeCost))*C18","v":81000}]
[null,{"$f":"_xlfn.CONCAT(\"Income less feed and fry\",\" (\",'0-StartHere'!$C$49,\")\")","v":"Income less feed and fry (KES)"},{"$f":"C30-C31-C32","v":286511.19902418973}]
[null,"% margin on feed and fry cost",{"$f":"C33/C30","v":0.45446724716291115}]
[]
[null,"Including short-term finance cost:"]
[null,{"$f":"_xlfn.CONCAT(\"Interest paid on fry\",\" (\",'0-StartHere'!$C$49,\")\")","v":"Interest paid on fry (KES)"},{"$f":"(C32*(C7*OperatingCosts!$C$19)*OperatingCosts!$C$21)/365","v":4256.3835616438364}]
[null,{"$f":"_xlfn.CONCAT(\"Interest paid on feed\",\" (\",'0-StartHere'!$C$49,\")\")","v":"Interest paid on feed (KES)"},{"$f":"(C31*(C7*OperatingCosts!$C$20)*OperatingCosts!$C$21)/365","v":5526.4024223594161}]
[null,{"$f":"_xlfn.CONCAT(\"Total short-term financing\",\" (\",'0-StartHere'!$C$49,\")\")","v":"Total short-term financing (KES)"},{"$f":"C37+C38","v":9782.7859840032525}]
[null,{"$f":"_xlfn.CONCAT(\"Adjusted Income less fry and feed cost\",\" (\",'0-StartHere'!$C$49,\")\")","v":"Adjusted Income less fry and feed cost (KES)"},{"$f":"C33-C39","v":276728.41304018645}]
[null,"Adjusted % margin on fry and feed cost",{"$f":"C40/C30","v":0.43894968334384904}]
[]
[]
[null,"Output data (per cage/year)"]
[null,"Annual production (kg)",{"$f":"C22*C16","v":4344.3284907770412}]
[null,{"$f":"_xlfn.CONCAT(\"Annual income\",\" (\",'0-StartHere'!$C$49,\")\")","v":"Annual income (KES)"},{"$f":"C30*C16","v":1565361.118017538}]
[null,"Annual feed use (kg)",{"$f":"C27*C16","v":6517.8552701369117}]
[null,"Fingerlings used (No.)",{"$f":"C18*C16","v":10056.122448979591}]
[null,{"$f":"_xlfn.CONCAT(\"Feed cost\",\" (\",'0-StartHere'!$C$49,\")\")","v":"Feed cost (KES)"},{"$f":"C31*C16","v":652833.31091665872}]
[null,{"$f":"_xlfn.CONCAT(\"Fingerling cost\",\" (\",'0-StartHere'!$C$49,\")\")","v":"Fingerling cost (KES)"},{"$f":"C32*C16","v":201122.44897959183}]
[null,{"$f":"_xlfn.CONCAT(\"Income less feed and fry\",\" (\",'0-StartHere'!$C$49,\")\")","v":"Income less feed and fry (KES)"},{"$f":"C46-C49-C50","v":711405.35812128743}]
[]
[null,"Including short-term finance cost:"]
[null,{"$f":"_xlfn.CONCAT(\"Feed cost\",\" (\",'0-StartHere'!$C$49,\")\")","v":"Feed cost (KES)"},{"$f":"C49+(C16*C38)","v":666555.33053680288}]
[null,{"$f":"_xlfn.CONCAT(\"Fingerling cost\",\" (\",'0-StartHere'!$C$49,\")\")","v":"Fingerling cost (KES)"},{"$f":"C50+(C37*C16)","v":211691.02040816325}]
[null,{"$f":"_xlfn.CONCAT(\"Income less feed and fry\",\" (\",'0-StartHere'!$C$49,\")\")","v":"Income less feed and fry (KES)"},{"$f":"C46-C54-C55","v":687114.76707257191}]
[]
[]
[]
[]
[]
[]
[]
[]
[]
[]
[null,null,null,null,null,null,null,null,null,null,null,null,null,"Feed Use by Type",null,null,"Kg used",{"$f":"_xlfn.CONCAT(\"Cost\",\" (\",'0-StartHere'!$C$49,\")\")","v":"Cost (KES)"}]
[null,null,null,null,null,null,null,null,null,null,null,null,null,{"$f":"'Growth-Model-2'!Z32","v":"Skretting 0.5mm"},null,null,{"$f":"'Growth-Model-2'!AA32","v":0},{"$f":"'Growth-Model-2'!AB32","v":0}]
[null,null,null,null,null,null,null,null,null,null,null,null,null,{"$f":"'Growth-Model-2'!Z33","v":"Skretting 1mm"},null,null,{"$f":"'Growth-Model-2'!AA33","v":0},{"$f":"'Growth-Model-2'!AB33","v":0}]
[null,null,null,null,null,null,null,null,null,null,null,null,null,{"$f":"'Growth-Model-2'!Z34","v":"Skretting 2mm"},null,null,{"$f":"'Growth-Model-2'!AA34","v":0},{"$f":"'Growth-Model-2'!AB34","v":0}]
[null,null,null,null,null,null,null,null,null,null,null,null,null,{"$f":"'Growth-Model-2'!Z35","v":"Unga 2mm"},null,null,{"$f":"'Growth-Model-2'!AA35","v":0},{"$f":"'Growth-Model-2'!AB35","v":0}]
[null,null,null,null,null,null,null,null,null,null,null,null,null,{"$f":"'Growth-Model-2'!Z36","v":"Unga 3mm"},null,null,{"$f":"'Growth-Model-2'!AA36","v":319.76407050387019},{"$f":"'Growth-Model-2'!AB36","v":33942.668296322372}]
[null,null,null,null,null,null,null,null,null,null,null,null,null,{"$f":"'Growth-Model-2'!Z37","v":"Unga 4mm"},null,null,{"$f":"'Growth-Model-2'!AA37","v":2305.2351752772965},{"$f":"'Growth-Model-2'!AB37","v":228979.24048381147}]

{"sheet":"S3-Short","index":4,"n_rows":71,"n_cols":34,"rows_kept":71,"cut":false,"hidden":false,"merged":[]}
[]
[null,{"$f":"_xlfn.CONCAT(\"Strategy 3: \",'0-StartHere'!$B$104)","v":"Strategy 3: Short Cycle with Double Stocking"},null,null,null,null,null,null,null,null,null,null,null,null,null,null,null,{"$f":"'0-StartHere'!C104","v":"Short"}]
[null,null,null,null,null,null,null,null,null,null,null,null,null,null,null,null,null,null,null,null,null,null,null,null,null,null,null,null,null,null,null,"mono sex"]
[null,"Input data",null,null,"<< Change these input varibles to see the impact they have on overall production and indicators of potential profitability",null,null,null,null,null,null,null,null,null,null,null,null,null,null,null,null,null,null,null,null,null,null,null,null,null,null,"mixed sex"]
[null,"Ave wt. at stocking (g)",40,"mixed sex"]
[null,"Initial stock density (No./m3)",150]
[null,"Days to harvest | Predicted average weight",76,{"$f":"C20","v":235.32465674194731},null,null,null,null,"Output charts"]
[null,"Temp. (Degrees C)",{"$f":"'0-StartHere'!C32","v":26}]
[null,"Cage type",{"$f":"'0-StartHere'!$C$13","v":"Rectangular"}]
[null,"Cage surface area (m2)",{"$f":"IF('0-StartHere'!$C$13=\"Rectangular\",'0-StartHere'!$C$16*'0-StartHere'!$C$17,IF('0-StartHere'!$C$13=\"Circular\",PI()*(('0-StartHere'!$C$22/2)^2),\"ERROR\"))","v":9},null,null,null,null,null,null,null,null,null,null,null,null,null,null,null,null,null,null,null,null,null,null,null,null,null,null,null,null,null,"Indicator",{"$f":"'0-StartHere'!$C$49","v":"KES"}]
[null,"Cage depth (m)",{"$f":"IF('0-StartHere'!$C$13=\"Rectangular\",'0-StartHere'!$C$18,IF('0-StartHere'!$C$13=\"Circular\",'0-StartHere'!$C$23,\"ERROR\"))","v":3},null,null,null,null,null,null,null,null,null,null,null,null,null,null,null,null,null,null,null,null,null,null,null,null,null,null,null,null,null,"Sales Income",{"$f":"C30","v":276350.22849325859}]
[null,"Days between harvest and restocking",10,null,null,null,null,null,null,null,null,null,null,null,null,null,null,null,null,null,null,null,null,null,null,null,null,null,null,null,null,null,"Fry and feed costs",{"$f":"C32+C31","v":192043.49799159908}]
[null,null,null,null,null,null,null,null,null,null,null,null,null,null,null,null,null,null,null,null,null,null,null,null,null,null,null,null,null,null,null,null,"Surplus/loss",{"$f":"AH11-AH12","v":84306.730501659506}]
[]
[null,"Output data (per cage/cycle)"]
[null,"Cycle per year",{"$f":"'0-StartHere'!C30/(C7+C12)","v":4.2441860465116283}]
[null,"Cage volume (m3)",{"$f":"'0-StartHere'!C25","v":27}]
[null,"Number stocked",{"$f":"C17*C6","v":4050}]
[null,"Biomass stocked (kg)",{"$f":"(C18*C5)/1000","v":162}]
[null,"Ave. harvest weight (g)",{"$f":"_xlfn.XLOOKUP($C$7,'Growth-Model-3'!$A$2:$A$366,'Growth-Model-3'!$B$2:$B$366,,0)","v":235.32465674194731}]
[null,"Harvest number",{"$f":"_xlfn.XLOOKUP($C$7,'Growth-Model-3'!$A$2:$A$366,'Growth-Model-3'!$F$2:$F$366,,0)","v":3857.2558664768617}]
[null,"Harvest biomass (kg)",{"$f":"_xlfn.XLOOKUP($C$7,'Growth-Model-3'!$A$2:$A$366,'Growth-Model-3'!$M$2:$M$366,,0)","v":907.70741274452996}]
[null,"Final stock density (kg/m3)",{"$f":"C22/C17","v":33.61879306461222}]
[null,"Mortalities (No.)",{"$f":"_xlfn.XLOOKUP($C$7,'Growth-Model-3'!$A$2:$A$366,'Growth-Model-3'!$I$2:$I$366,,0)","v":196.79440557341832}]
[null,"Mortalities (%)",{"$f":"_xlfn.XLOOKUP($C$7,'Growth-Model-3'!$A$2:$A$366,'Growth-Model-3'!$J$2:$J$366,,0)","v":4.859121125269588E-2}]
[null,"Mortality biomass (kg)",{"$f":"_xlfn.XLOOKUP($C$7,'Growth-Model-3'!$A$2:$A$366,'Growth-Model-3'!$L$2:$L$366,,0)","v":13.580865810479755}]
[null,"Feed used (kg)",{"$f":"_xlfn.XLOOKUP($C$7,'Growth-Model-3'!$A$2:$A$366,'Growth-Model-3'!$P$2:$P$366,,0)","v":1095.9721883097836}]
[null,"Biological FCR",{"$f":"C27/(C22+C26-C19)","v":1.4434203967898886}]
[null,"Economic FCR",{"$f":"C27/(C22-C19)","v":1.4697080511458587}]
[null,{"$f":"_xlfn.CONCAT(\"Sales income\",\" (\",'0-StartHere'!$C$49,\")\")","v":"Sales income (KES)"},{"$f":"'Growth-Model-3'!$S$391","v":276350.22849325859}]
[null,{"$f":"_xlfn.CONCAT(\"Feed cost\",\" (\",'0-StartHere'!$C$49,\")\")","v":"Feed cost (KES)"},{"$f":"_xlfn.XLOOKUP($C$7,'Growth-Model-3'!$A$2:$A$366,'Growth-Model-3'!$S$2:$S$366,,0)","v":111043.49799159908}]
[null,{"$f":"_xlfn.CONCAT(\"Fry cost\",\" (\",'0-StartHere'!$C$49,\")\")","v":"Fry cost (KES)"},{"$f":"_xlfn.XLOOKUP(C5,FryWeight,_xlfn.XLOOKUP(D5,FryType,FryTypeCost))*C18","v":81000}]
[null,{"$f":"_xlfn.CONCAT(\"Income less feed and fry\",\" (\",'0-StartHere'!$C$49,\")\")","v":"Income less feed and fry (KES)"},{"$f":"C30-C31-C32","v":84306.730501659506}]
[null,"% margin on feed and fry cost",{"$f":"C33/C30","v":0.30507204919396735}]
[]
[null,"Including short-term finance cost:"]
[null,{"$f":"_xlfn.CONCAT(\"Interest paid on fry\",\" (\",'0-StartHere'!$C$49,\")\")","v":"Interest paid on fry (KES)"},{"$f":"(C32*(C7*OperatingCosts!$C$19)*OperatingCosts!$C$21)/365","v":2361.205479452055}]
[null,{"$f":"_xlfn.CONCAT(\"Interest paid on feed\",\" (\",'0-StartHere'!$C$49,\")\")","v":"Interest paid on feed (KES)"},{"$f":"(C31*(C7*OperatingCosts!$C$20)*OperatingCosts!$C$21)/365","v":1294.7976094582077}]
[null,{"$f":"_xlfn.CONCAT(\"Total short-term financing\",\" (\",'0-StartHere'!$C$49,\")\")","v":"Total short-term financing (KES)"},{"$f":"C37+C38","v":3656.0030889102627}]
[null,{"$f":"_xlfn.CONCAT(\"Adjusted Income less fry and feed cost\",\" (\",'0-StartHere'!$C$49,\")\")","v":"Adjusted Income less fry and feed cost (KES)"},{"$f":"C33-C39","v":80650.727412749242}]
[null,"Adjusted % margin on fry and feed cost",{"$f":"C40/C30","v":0.29184244881026639}]
[]
[]
[null,"Output data (per cage/year)"]
[null,"Annual production (kg)",{"$f":"C22*C16","v":3852.4791354855056}]
[null,{"$f":"_xlfn.CONCAT(\"Annual income\",\" (\",'0-StartHere'!$C$49,\")\")","v":"Annual income (KES)"},{"$f":"C30*C16","v":1172881.7837213883}]
[null,"Annual feed use (kg)",{"$f":"C27*C16","v":4651.5098689891984}]
[null,"Fingerlings used (No.)",{"$f":"C18*C16","v":17188.953488372095}]
[null,{"$f":"_xlfn.CONCAT(\"Feed cost\",\" (\",'0-StartHere'!$C$49,\")\")","v":"Feed cost (KES)"},{"$f":"C31*C16","v":471289.26473178685}]
[null,{"$f":"_xlfn.CONCAT(\"Fingerling cost\",\" (\",'0-StartHere'!$C$49,\")\")","v":"Fingerling cost (KES)"},{"$f":"C32*C16","v":343779.06976744189}]
[null,{"$f":"_xlfn.CONCAT(\"Income less feed and fry\",\" (\",'0-StartHere'!$C$49,\")\")","v":"Income less feed and fry (KES)"},{"$f":"C46-C49-C50","v":357813.44922215951}]
[]
[null,"Including short-term finance cost:"]
[null,{"$f":"_xlfn.CONCAT(\"Feed cost\",\" (\",'0-StartHere'!$C$49,\")\")","v":"Feed cost (KES)"},{"$f":"C49+(C16*C38)","v":476784.62667890597}]
[null,{"$f":"_xlfn.CONCAT(\"Fingerling cost\",\" (\",'0-StartHere'!$C$49,\")\")","v":"Fingerling cost (KES)"},{"$f":"C50+(C37*C16)","v":353800.46511627908}]
[null,{"$f":"_xlfn.CONCAT(\"Income less feed and fry\",\" (\",'0-StartHere'!$C$49,\")\")","v":"Income less feed and fry (KES)"},{"$f":"C46-C54-C55","v":342296.69192620332}]
[]
[]
[]
[]
[]
[]
[]
[]
[null,null,null,null,null,null,null,null,null,null,null,null,null,"Feed Use by Type",null,null,"Kg used",{"$f":"_xlfn.CONCAT(\"Cost\",\" (\",'0-StartHere'!$C$49,\")\")","v":"Cost (KES)"}]
[null,null,null,null,null,null,null,null,null,null,null,null,null,{"$f":"'Growth-Model-3'!Z32","v":"Skretting 0.5mm"},null,null,{"$f":"'Growth-Model-3'!AA32","v":0},{"$f":"'Growth-Model-3'!AB32","v":0}]
[null,null,null,null,null,null,null,null,null,null,null,null,null,{"$f":"'Growth-Model-3'!Z33","v":"Skretting 1mm"},null,null,{"$f":"'Growth-Model-3'!AA33","v":0},{"$f":"'Growth-Model-3'!AB33","v":0}]
[null,null,null,null,null,null,null,null,null,null,null,null,null,{"$f":"'Growth-Model-3'!Z34","v":"Skretting 2mm"},null,null,{"$f":"'Growth-Model-3'!AA34","v":0},{"$f":"'Growth-Model-3'!AB34","v":0}]
[null,null,null,null,null,null,null,null,null,null,null,null,null,{"$f":"'Growth-Model-3'!Z35","v":"Unga 2mm"},null,null,{"$f":"'Growth-Model-3'!AA35","v":0},{"$f":"'Growth-Model-3'!AB35","v":0}]
[null,null,null,null,null,null,null,null,null,null,null,null,null,{"$f":"'Growth-Model-3'!Z36","v":"Unga 3mm"},null,null,{"$f":"'Growth-Model-3'!AA36","v":319.76403131975781},{"$f":"'Growth-Model-3'!AB36","v":33942.664136964107}]
[null,null,null,null,null,null,null,null,null,null,null,null,null,{"$f":"'Growth-Model-3'!Z37","v":"Unga 4mm"},null,null,{"$f":"'Growth-Model-3'!AA37","v":776.20815699002594},{"$f":"'Growth-Model-3'!AB37","v":77100.833854634999}]

{"sheet":"S4-PartialHarvest","index":5,"n_rows":114,"n_cols":40,"rows_kept":114,"cut":false,"hidden":false,"merged":[]}
[]
[null,{"$f":"_xlfn.CONCAT(\"Strategy 4: \",'0-StartHere'!B106)","v":"Strategy 4: Double Stocking with Partial Harvest"},null,null,null,null,null,null,null,null,null,null,null,null,null,null,null,{"$f":"'0-StartHere'!$C$106","v":"Partial"}]
[null,null,null,null,null,null,null,null,null,null,null,null,null,null,null,null,null,null,null,null,null,null,null,null,null,null,null,null,null,null,null,null,null,null,"mono sex"]
[null,"Input data",null,null,"<< Change these input varibles to see the impact they have on overall production and indicators of potential profitability",null,null,null,null,null,null,null,null,null,null,null,null,null,null,null,null,null,null,null,null,null,null,null,null,null,null,null,null,null,"mixed sex"]
[null,"Ave wt. at stocking (g)",40,"mono sex"]
[null,"Initial stock density (No./m3)",150,null,null,null,null,null,null,null,null,null,null,null,null,null,null,null,null,null,null,null,null,null,null,null,null,null,null,null,null,null,null,null,null,null,"Indicator","1st harvest","2nd harvest","Combined"]
[null,"Days to first harvest | Predicted average weight (Interim)",75,{"$f":"C23","v":232.08148085445791},null,null,null,null,null,null,"Output charts",null,null,null,null,null,null,null,null,null,null,null,null,null,null,null,null,null,null,null,null,null,null,null,null,null,"Sales Income",{"$f":"C36","v":135772.55689959816},{"$f":"C55","v":331075.1606732973},{"$f":"AL7+AM7","v":466847.71757289546}]
[null,"% fish removed at first harvest",0.5,null,null,null,null,null,null,null,null,null,null,null,null,null,null,null,null,null,null,null,null,null,null,null,null,null,null,null,null,null,null,null,null,null,"Fry and feed costs",{"$f":"C37+C35","v":136259.75825784309},{"$f":"C56+C54","v":210082.72898993903},{"$f":"AL8+AM8","v":346342.48724778212}]
[null,"Total culture days | Predicted average weight (Final)",137,{"$f":"C41","v":490.88044135121061},null,null,null,null,null,null,null,null,null,null,null,null,null,null,null,null,null,null,null,null,null,null,null,null,null,null,null,null,null,null,null,null,"Surplus/loss",{"$f":"AL7-AL8","v":-487.201358244929},{"$f":"AM7-AM8","v":120992.43168335827},{"$f":"AL9+AM9","v":120505.23032511334}]
[null,"Temp. (Degrees C)",{"$f":"'0-StartHere'!C32","v":26}]
[null,"Cage type",{"$f":"'0-StartHere'!$C$13","v":"Rectangular"}]
[null,"Cage surface area (m2)",{"$f":"IF('0-StartHere'!$C$13=\"Rectangular\",'0-StartHere'!$C$16*'0-StartHere'!$C$17,IF('0-StartHere'!$C$13=\"Circular\",PI()*(('0-StartHere'!$C$22/2)^2),\"ERROR\"))","v":9}]
[null,"Cage depth (m)",{"$f":"IF('0-StartHere'!$C$13=\"Rectangular\",'0-StartHere'!$C$18,IF('0-StartHere'!$C$13=\"Circular\",'0-StartHere'!$C$23,\"ERROR\"))","v":3}]
[null,"Days between 2nd harvest and restocking",10]
[]
[]
[null,"Output data (per cage/cycle)"]
[null,"Cycle per year",{"$f":"'0-StartHere'!C30/(C9+C14)","v":2.4829931972789114}]
[null,"Cage volume (m3)",{"$f":"'0-StartHere'!C25","v":27}]
[null,"Number stocked",{"$f":"C19*C6","v":4050}]
[null,"Biomass stocked (kg)",{"$f":"(C20*C5)/1000","v":162}]
[null,"1st harvest"]
[null,"Ave. 1st harvest weight (g)",{"$f":"_xlfn.XLOOKUP(C7,'Growth-Model-4'!$A$2:$A$366,'Growth-Model-4'!$B$2:$B$366,,0)","v":232.08148085445791}]
[null,"Stock density at 1st harvest (kg/m3)",{"$f":"_xlfn.XLOOKUP(C7-1,'Growth-Model-4'!$A$2:$A$366,'Growth-Model-4'!$N$2:$N$366,,0)","v":32.770953539024752}]
[null,"1st harvest number",{"$f":"_xlfn.XLOOKUP($C$7-1,'Growth-Model-4'!$A$2:$A$366,'Growth-Model-4'!$F$2:$F$366,,0)-_xlfn.XLOOKUP($C$7,'Growth-Model-4'!$A$2:$A$366,'Growth-Model-4'!$F$2:$F$366,,0)","v":1937.7746597244104}]
[null,"1st harvest biomass (kg)",{"$f":"_xlfn.XLOOKUP($C$7-1,'Growth-Model-4'!$A$2:$A$366,'Growth-Model-4'!$M$2:$M$366,,0)*C8","v":442.40787277683415}]
[null,"Mortalities to 1st harvest (No.)",{"$f":"_xlfn.XLOOKUP(C7,'Growth-Model-4'!$A$2:$A$366,'Growth-Model-4'!$I$2:$I$366,,0)","v":188.01619503292548}]
[null,"Mortalities to 1st harvest (%)",{"$f":"_xlfn.XLOOKUP(C7,'Growth-Model-4'!$A$2:$A$366,'Growth-Model-4'!$J$2:$J$366,,0)","v":4.6423751859981599E-2}]
[null,"Mortalities to 1st harvest biomass (kg)",{"$f":"_xlfn.XLOOKUP(C7,'Growth-Model-4'!$A$2:$A$366,'Growth-Model-4'!$L$2:$L$366,,0)","v":11.823961784562973}]
[null,"Feed used to 1st harvest (kg)",{"$f":"_xlfn.XLOOKUP(C7,'Growth-Model-4'!$A$2:$A$366,'Growth-Model-4'!$P$2:$P$366,,0)","v":1066.4257262618437}]
[null,"Feed used for 1st harvested fish  (kg)",{"$f":"C30*C8","v":533.21286313092185}]
[null,"Biological FCR to 1st harvest",{"$f":"C31/(C26+C29-C21)","v":1.8246227825630519}]
[null,"Economic FCR to 1st harvest",{"$f":"C31/(C26-C21)","v":1.9015616710422587}]
[null,{"$f":"_xlfn.CONCAT(\"Feed cost to 1st harvest\",\" (\",'0-StartHere'!$C$49,\")\")","v":"Feed cost to 1st harvest (KES)"},{"$f":"_xlfn.XLOOKUP(C7-1,'Growth-Model-4'!$A$2:$A$366,'Growth-Model-4'!$S$2:$S$366,,0)","v":107121.70852948878}]
[null,{"$f":"_xlfn.CONCAT(\"Cost to feed first harvested fish\",\" (\",'0-StartHere'!$C$49,\")\")","v":"Cost to feed first harvested fish (KES)"},{"$f":"C34*C8","v":53560.85426474439}]
[null,{"$f":"_xlfn.CONCAT(\"Sales income 1st harvest\",\" (\",'0-StartHere'!$C$49,\")\")","v":"Sales income 1st harvest (KES)"},{"$f":"'Growth-Model-4'!S391","v":135772.55689959816}]
[null,{"$f":"_xlfn.CONCAT(\"1st harvest share of fry cost\",\" (\",'0-StartHere'!$C$49,\")\")","v":"1st harvest share of fry cost (KES)"},{"$f":"(C25/C60)*C69","v":82698.903993098691}]
[null,"Income less fry and feed to first harvest",{"$f":"C36-C35-C37","v":-487.20135824491445}]
[null,"% margin on feed and fry cost to first harvest",{"$f":"C38/C36","v":-3.5883640212004903E-3}]
[null,"2nd harvest"]
[null,"Ave. final harvest weight (g)",{"$f":"_xlfn.XLOOKUP($C$9,'Growth-Model-4'!$A$2:$A$366,'Growth-Model-4'!$B$2:$B$366,,0)","v":490.88044135121061}]
[null,"Biomass remaining after 1st harvest (kg)",{"$f":"_xlfn.XLOOKUP(C7,'Growth-Model-4'!$A$2:$A$366,'Growth-Model-4'!$M$2:$M$366,,0)","v":449.72152419446724}]
[null,"Stock density after 1st harvest (kg/m3)",{"$f":"_xlfn.XLOOKUP($C$7,'Growth-Model-4'!$A$2:$A$366,'Growth-Model-4'!$N$2:$N$366,,0)","v":16.656352747943231}]
[null,"Final stock density (kg/m3)",{"$f":"_xlfn.XLOOKUP(C9,'Growth-Model-4'!$A$2:$A$366,'Growth-Model-4'!$N$2:$N$366,,0)","v":33.782724566198198}]
[null,"Final harvest number",{"$f":"_xlfn.XLOOKUP($C$9,'Growth-Model-4'!$A$2:$A$366,'Growth-Model-4'!$F$2:$F$366,,0)","v":1858.1582936500549}]
[null,"Final harvest biomass (kg)",{"$f":"_xlfn.XLOOKUP($C$9,'Growth-Model-4'!$A$2:$A$366,'Growth-Model-4'!$M$2:$M$366,,0)","v":912.13356328735142}]
[null,"Biomass increase between 1st & 2nd harvests (kg)",{"$f":"C46-C42","v":462.41203909288419}]
[null,"Mortalities between 1st & 2nd harvests",{"$f":"_xlfn.XLOOKUP($C$9,'Growth-Model-4'!$A$2:$A$366,'Growth-Model-4'!$I$2:$I$366,,0)-C27","v":70.10123247873949}]
[null,"Mortality biomass between 1st & 2nd harvests (kg)",{"$f":"C63-C29","v":22.363901027778105}]
[null,"Feed used for 2nd harvest fish (kg)",{"$f":"C65-C31","v":1300.6926302795982}]
[null,"Feed used between 1st and 2nd harvests (kg)",{"$f":"C65-C30","v":767.4797671486765}]
[null,"Biological FCR 1st to 2nd harvest",{"$f":"IF(C47+C49=0,\"N/A\",C51/(C47+C49))","v":1.5831638982694733}]
[null,"Economic FCR 1st to 2nd harvest",{"$f":"IF(C47=0,\"N/A\",C51/(C47))","v":1.65973137000119}]
[null,{"$f":"_xlfn.CONCAT(\"Feed cost for 2nd harvest fish\",\" (\",'0-StartHere'!$C$49,\")\")","v":"Feed cost for 2nd harvest fish (KES)"},{"$f":"C68-C35","v":130781.63298303774}]
[null,{"$f":"_xlfn.CONCAT(\"Sales income from 2nd harvest\",\" (\",'0-StartHere'!$C$49,\")\")","v":"Sales income from 2nd harvest (KES)"},{"$f":"'Growth-Model-4'!S416","v":331075.1606732973}]
[null,{"$f":"_xlfn.CONCAT(\"Final harvest share of fry/fingerling cost\",\" (\",'0-StartHere'!$C$49,\")\")","v":"Final harvest share of fry/fingerling cost (KES)"},{"$f":"(C45/C60)*C69","v":79301.096006901309}]
[null,"Income less fry and feed from first to final harvest",{"$f":"C55-C56-C54","v":120992.43168335827}]
[null,"% margin on feed and fry cost from 1st to final harvest",{"$f":"C57/C55","v":0.36545306339895661}]
[null,"Totals"]
[null,"Total number (survived)",{"$f":"C25+C45","v":3795.9329533744653}]
[null,"Total mortalities",{"$f":"_xlfn.XLOOKUP($C$9,'Growth-Model-4'!$A$2:$A$366,'Growth-Model-4'!$I$2:$I$366,,0)","v":258.11742751166497}]
[null,"Total mortalities %",{"$f":"_xlfn.XLOOKUP($C$9,'Growth-Model-4'!$A$2:$A$366,'Growth-Model-4'!$J$2:$J$366,,0)","v":6.3732698151028389E-2}]
[null,"Total mortalities biomass (kg)",{"$f":"_xlfn.XLOOKUP($C$9,'Growth-Model-4'!$A$2:$A$366,'Growth-Model-4'!$L$2:$L$366,,0)","v":34.187862812341081}]
[null,"Total harvest (kg)",{"$f":"C26+C46","v":1354.5414360641855}]
[null,"Total feed used (kg)",{"$f":"_xlfn.XLOOKUP($C$9,'Growth-Model-4'!$A$2:$A$366,'Growth-Model-4'!$P$2:$P$366,,0)","v":1833.9054934105202}]
[null,"Overall biological FCR",{"$f":"C65/(C64+C63-C21)","v":1.4949553215123033}]
[null,"Overall economic FCR",{"$f":"C65/(C64-C21)","v":1.5378128071281667}]
[null,{"$f":"_xlfn.CONCAT(\"Total feed cost\",\" (\",'0-StartHere'!$C$49,\")\")","v":"Total feed cost (KES)"},{"$f":"_xlfn.XLOOKUP(C9,'Growth-Model-4'!$A$2:$A$366,'Growth-Model-4'!$S$2:$S$366,,0)","v":184342.48724778212}]
[null,{"$f":"_xlfn.CONCAT(\"Fry/Fingerling cost\",\" (\",'0-StartHere'!$C$49,\")\")","v":"Fry/Fingerling cost (KES)"},{"$f":"_xlfn.XLOOKUP(C5,FryWeight,_xlfn.XLOOKUP(D5,FryType,FryTypeCost))*C20","v":162000}]
[null,{"$f":"_xlfn.CONCAT(\"Sales income\",\" (\",'0-StartHere'!$C$49,\")\")","v":"Sales income (KES)"},{"$f":"'Growth-Model-4'!R438","v":466847.7175728954}]
[null,{"$f":"_xlfn.CONCAT(\"Income less feed and fry\",\" (\",'0-StartHere'!$C$49,\")\")","v":"Income less feed and fry (KES)"},{"$f":"C70-C69-C68","v":120505.23032511328}]
[null,"% margin on feed and fry cost",{"$f":"C71/C70","v":0.25812534963565958}]
[]
[null,"Including short-term finance cost:"]
[null,"1st Harvest"]
[null,{"$f":"_xlfn.CONCAT(\"Interest paid on fry\",\" (\",'0-StartHere'!$C$49,\")\")","v":"Interest paid on fry (KES)"},{"$f":"(C37*(C7*OperatingCosts!$C$19)*OperatingCosts!$C$21)/365","v":2379.0095669247571}]
[null,{"$f":"_xlfn.CONCAT(\"Interest paid on feed\",\" (\",'0-StartHere'!$C$49,\")\")","v":"Interest paid on feed (KES)"},{"$f":"(C35*(C7*OperatingCosts!$C$20)*OperatingCosts!$C$21)/365","v":616.31667921075734}]
[null,"2nd Harvest"]
[null,{"$f":"_xlfn.CONCAT(\"Interest paid on fry\",\" (\",'0-StartHere'!$C$49,\")\")","v":"Interest paid on fry (KES)"},{"$f":"(C56*(C9*OperatingCosts!$C$19)*OperatingCosts!$C$21)/365","v":4167.109647705116}]
[null,{"$f":"_xlfn.CONCAT(\"Interest paid on feed\",\" (\",'0-StartHere'!$C$49,\")\")","v":"Interest paid on feed (KES)"},{"$f":"(C54*(C9*OperatingCosts!$C$20)*OperatingCosts!$C$21)/365","v":2748.9224335503168}]
[null,"Totals"]
[null,{"$f":"_xlfn.CONCAT(\"Total short-term financing\",\" (\",'0-StartHere'!$C$49,\")\")","v":"Total short-term financing (KES)"},{"$f":"C76+C77+C79+C80","v":9911.3583273909462}]
[null,{"$f":"_xlfn.CONCAT(\"Adjusted Income less fry and feed cost\",\" (\",'0-StartHere'!$C$49,\")\")","v":"Adjusted Income less fry and feed cost (KES)"},{"$f":"C71-C82","v":110593.87199772234}]
[null,"Adjusted % margin on fry and feed cost",{"$f":"C83/C70","v":0.23689496132205848}]
[]
[null,"Output data (per cage/year)"]
[null,"Annual production (kg)",{"$f":"C64*C18","v":3363.3171711797804}]
[null,{"$f":"_xlfn.CONCAT(\"Annual income\",\" (\",'0-StartHere'!$C$49,\")\")","v":"Annual income (KES)"},{"$f":"C70*C18","v":1159179.7068986858}]
[null,"Annual feed use (kg)",{"$f":"C65*C18","v":4553.574864590747}]
[null,"Fingerlings used (No.)",{"$f":"C20*C18","v":10056.122448979591}]
[null,{"$f":"_xlfn.CONCAT(\"Feed cost\",\" (\",'0-StartHere'!$C$49,\")\")","v":"Feed cost (KES)"},{"$f":"C68*C18","v":457721.14180571749}]
[null,{"$f":"_xlfn.CONCAT(\"Fingerling cost\",\" (\",'0-StartHere'!$C$49,\")\")","v":"Fingerling cost (KES)"},{"$f":"C69*C18","v":402244.89795918367}]
[null,{"$f":"_xlfn.CONCAT(\"Income less feed and fry\",\" (\",'0-StartHere'!$C$49,\")\")","v":"Income less feed and fry (KES)"},{"$f":"C88-C91-C92","v":299213.66713378462}]
[]
[null,"Including short-term finance cost:"]
[null,{"$f":"_xlfn.CONCAT(\"Feed cost\",\" (\",'0-StartHere'!$C$49,\")\")","v":"Feed cost (KES)"},{"$f":"C91+(C18*(C77+C80))","v":466077.00762992015}]
[null,{"$f":"_xlfn.CONCAT(\"Fingerling cost\",\" (\",'0-StartHere'!$C$49,\")\")","v":"Fingerling cost (KES)"},{"$f":"C92+(C18*(C76+C79))","v":418498.86743768642}]
[null,{"$f":"_xlfn.CONCAT(\"Income less feed and fry\",\" (\",'0-StartHere'!$C$49,\")\")","v":"Income less feed and fry (KES)"},{"$f":"C88-C96-C97","v":274603.83183107921}]
[]
[]
[]
[]
[]
[]
[]
[]
[]
[null,null,null,null,null,null,null,null,null,null,null,null,null,"Feed Use by Type",null,null,"Kg used",{"$f":"_xlfn.CONCAT(\"Cost\",\" (\",'0-StartHere'!$C$49,\")\")","v":"Cost (KES)"}]
[null,null,null,null,null,null,null,null,null,null,null,null,null,{"$f":"'Growth-Model-4'!Y32","v":"Skretting 0.5mm"},null,null,{"$f":"'Growth-Model-4'!Z32","v":0},{"$f":"'Growth-Model-4'!AA32","v":0}]
[null,null,null,null,null,null,null,null,null,null,null,null,null,{"$f":"'Growth-Model-4'!Y33","v":"Skretting 1mm"},null,null,{"$f":"'Growth-Model-4'!Z33","v":0},{"$f":"'Growth-Model-4'!AA33","v":0}]
[null,null,null,null,null,null,null,null,null,null,null,null,null,{"$f":"'Growth-Model-4'!Y34","v":"Skretting 2mm"},null,null,{"$f":"'Growth-Model-4'!Z34","v":0},{"$f":"'Growth-Model-4'!AA34","v":0}]
[null,null,null,null,null,null,null,null,null,null,null,null,null,{"$f":"'Growth-Model-4'!Y35","v":"Unga 2mm"},null,null,{"$f":"'Growth-Model-4'!Z35","v":0},{"$f":"'Growth-Model-4'!AA35","v":0}]
[null,null,null,null,null,null,null,null,null,null,null,null,null,{"$f":"'Growth-Model-4'!Y36","v":"Unga 3mm"},null,null,{"$f":"'Growth-Model-4'!Z36","v":319.76407050387019},{"$f":"'Growth-Model-4'!AA36","v":33942.668296322372}]
[null,null,null,null,null,null,null,null,null,null,null,null,null,{"$f":"'Growth-Model-4'!Y37","v":"Unga 4mm"},null,null,{"$f":"'Growth-Model-4'!Z37","v":1514.1414229066495},{"$f":"'Growth-Model-4'!AA37","v":150399.81895145981}]

{"sheet":"5-Comparison","index":6,"n_rows":99,"n_cols":54,"rows_kept":99,"cut":false,"hidden":false,"merged":[]}
[null,null,null,null,null,null,null,null,null,null,null,null,null,null,null,null,null,null,null,null,null,null,null,null,null,null,null,null,null,null,null,null,null,null,null,null,null,null,null,"yes"]
[null,"Annual comparison for 1 cage",null,null,null,null,null,null,null,null,null,null,null,null,null,null,null,null,null,null,null,null,null,null,null,null,null,null,null,null,null,null,null,null,null,null,null,null,null,"no",null,null,null,null,null,null,null,null,"Without short-term credit"]
[null,null,"Strategy 1","Strategy 2","Strategy 3","Strategy 4",null,"Include the cost of",null,null,null,null,null,null,null,null,null,null,"Copy strategy data to consolidation sheet",null,null,null,null,null,null,null,null,null,null,null,null,null,null,null,null,null,null,null,null,null,null,null,null,null,null,null,null,null,"Strategy 1","Strategy 2","Strategy 3","Strategy 4"]
[null,null,{"$f":"'0-StartHere'!$C$100","v":"Standard"},{"$f":"'0-StartHere'!$C$102","v":"Double"},{"$f":"'0-StartHere'!$C$104","v":"Short"},{"$f":"'0-StartHere'!$C$106","v":"Partial"},null," short-term credit",null,null,null,null,null,null,null,null,null,null,null,null,null,null,null,null,null,null,null,null,null,null,null,null,null,null,null,null,null,null,null,"Strategy_1",null,null,null,null,null,null,null,null,{"$f":"'0-StartHere'!$C$100","v":"Standard"},{"$f":"'0-StartHere'!$C$102","v":"Double"},{"$f":"'0-StartHere'!$C$104","v":"Short"},{"$f":"'0-StartHere'!$C$106","v":"Partial"}]
[null,"Individual cage volume (m3)",{"$f":"'0-StartHere'!$C$25","v":27},{"$f":"'0-StartHere'!$C$25","v":27},{"$f":"'0-StartHere'!$C$25","v":27},{"$f":"'0-StartHere'!$C$25","v":27},null,"for fry and feed?",null,null,null,null,null,null,null,null,null,null,"Copy from","Strategy_1",null,null,null,null,null,null,null,null,null,null,null,null,null,null,null,null,null,null,null,"Strategy_2",null,null,null,null,null,null,null,"Annual production (kg)",{"$f":"C6","v":2358.9078280313606},4344.3284907770412,3852.4791354855056,3363.3171711797804]
[null,"Annual production (kg)",{"$f":"'S1-Standard'!C45","v":2358.9078280313606},{"$f":"'S2-Double'!C45","v":4344.3284907770412},{"$f":"'S3-Short'!C45","v":3852.4791354855056},{"$f":"'S4-PartialHarvest'!C87","v":3363.3171711797804},null,"yes",null,null,null,null,null,null,null,null,null,null,"Paste to","Strategy_A",null,null,null,null,null,null,null,null,null,null,null,null,null,null,null,null,null,null,null,"Strategy_3",null,null,null,null,null,null,null,"Annual income (KES)",856499.47902415157,1565361.118017538,1172881.7837213883,1159179.7068986858]
[null,{"$f":"_xlfn.CONCAT(\"Annual income\",\" (\",'0-StartHere'!$C$49,\")\")","v":"Annual income (KES)"},{"$f":"'S1-Standard'!C46","v":856499.47902415157},{"$f":"'S2-Double'!C46","v":1565361.118017538},{"$f":"'S3-Short'!C46","v":1172881.7837213883},{"$f":"'S4-PartialHarvest'!C88","v":1159179.7068986858},null,null,null,null,null,null,null,null,null,null,null,null,null,null,null,null,null,null,null,null,null,null,null,null,null,null,null,null,null,null,null,null,null,"Strategy_4",null,null,null,null,null,null,null,"Annual feed use (kg)",3306.2864547680374,6517.8552701369117,4651.5098689891984,4553.574864590747]
[null,"Annual feed use (kg)",{"$f":"'S1-Standard'!C47","v":3306.2864547680374},{"$f":"'S2-Double'!C47","v":6517.8552701369117},{"$f":"'S3-Short'!C47","v":4651.5098689891984},{"$f":"'S4-PartialHarvest'!C89","v":4553.574864590747},null,null,null,null,null,null,null,null,null,null,null,null,null,null,null,null,null,null,null,null,null,null,null,null,null,null,null,null,null,null,null,null,null,"Strategy_A",null,null,null,null,null,null,null,"Fingerlings used (No.)",5028.0612244897957,10056.122448979591,17188.953488372095,10056.122448979591]
[null,"Fingerlings used (No.)",{"$f":"'S1-Standard'!C48","v":5028.0612244897957},{"$f":"'S2-Double'!C48","v":10056.122448979591},{"$f":"'S3-Short'!C48","v":17188.953488372095},{"$f":"'S4-PartialHarvest'!C90","v":10056.122448979591},null,null,null,null,null,null,null,null,null,null,null,null,null,null,null,null,null,null,null,null,null,null,null,null,null,null,null,null,null,null,null,null,null,"Strategy_B",null,null,null,null,null,null,null,"Feed cost (KES)",{"$f":"'S1-Standard'!C49","v":331120.81175497069},{"$f":"'S2-Double'!C49","v":652833.31091665872},{"$f":"'S3-Short'!C49","v":471289.26473178685},{"$f":"'S4-PartialHarvest'!C91","v":457721.14180571749}]
[null,{"$f":"_xlfn.CONCAT(\"Feed cost\",\" (\",'0-StartHere'!$C$49,\")\")","v":"Feed cost (KES)"},{"$f":"IF(H6=\"no\",'S1-Standard'!C49,'S1-Standard'!C54)","v":338080.69906396832},{"$f":"IF(H6=\"no\",'S2-Double'!C49,'S2-Double'!C54)","v":666555.33053680288},{"$f":"IF(H6=\"no\",'S3-Short'!C49,'S3-Short'!C54)","v":476784.62667890597},{"$f":"IF(H6=\"no\",'S4-PartialHarvest'!C91,'S4-PartialHarvest'!C96)","v":466077.00762992015},null,null,null,null,null,null,null,null,null,null,null,null,null,null,null,null,null,null,null,null,null,null,null,null,null,null,null,null,null,null,null,null,null,"Strategy_C",null,null,null,null,null,null,null,"Fry/Fingerling cost (KES)",{"$f":"'S1-Standard'!C50","v":201122.44897959183},{"$f":"'S2-Double'!C50","v":201122.44897959183},{"$f":"'S3-Short'!C50","v":343779.06976744189},{"$f":"'S4-PartialHarvest'!C92","v":402244.89795918367}]
[null,{"$f":"_xlfn.CONCAT(\"Fry/Fingerling cost\",\" (\",'0-StartHere'!$C$49,\")\")","v":"Fry/Fingerling cost (KES)"},{"$f":"IF(H6=\"no\",'S1-Standard'!C50,'S1-Standard'!C55)","v":211691.02040816325},{"$f":"IF(H6=\"no\",'S2-Double'!C50,'S2-Double'!C55)","v":211691.02040816325},{"$f":"IF(H6=\"no\",'S3-Short'!C50,'S3-Short'!C55)","v":353800.46511627908},{"$f":"IF(H6=\"no\",'S4-PartialHarvest'!C92,'S4-PartialHarvest'!C97)","v":418498.86743768642},null,null,null,null,null,null,null,null,null,null,null,null,null,null,null,null,null,null,null,null,null,null,null,null,null,null,null,null,null,null,null,null,null,"Strategy_D",null,null,null,null,null,null,null,"Income less feed and fry (KES)",{"$f":"'S1-Standard'!C51","v":324256.21828958904},{"$f":"'S2-Double'!C51","v":711405.35812128743},{"$f":"'S3-Short'!C51","v":357813.44922215951},{"$f":"'S4-PartialHarvest'!C93","v":299213.66713378462}]
[null,{"$f":"_xlfn.CONCAT(\"Income less feed and fry\",\" (\",'0-StartHere'!$C$49,\")\")","v":"Income less feed and fry (KES)"},{"$f":"IF(H6=\"no\",'S1-Standard'!C51,'S1-Standard'!C56)","v":306727.75955202},{"$f":"IF(H6=\"no\",'S2-Double'!C51,'S2-Double'!C56)","v":687114.76707257191},{"$f":"IF(H6=\"no\",'S3-Short'!C51,'S3-Short'!C56)","v":342296.69192620332},{"$f":"IF(H6=\"no\",'S4-PartialHarvest'!C93,'S4-PartialHarvest'!C98)","v":274603.83183107921}]
[]
[null,"The table above summarises the results for each of the 4 strategies."]
[null,"You can now allocate your cages to the stragegies for a total annual production estimate",null,null,null,null,null,null,null,null,null,null,null,null,null,null,null,null,null,null,null,null,null,null,null,null,null,null,null,null,null,null,null,null,null,null,null,null,null,null,null,null,null,null,null,null,null,{"$f":"B23","v":"Number of cages per strategy"},{"$f":"C23","v":1},4,0,3,null,"TOTAL"]
[]
[null,"Annual total for all cages",null,null,null,null,null,null,null,null,null,null,null,null,null,null,null,null,null,null,null,null,null,null,null,null,null,null,null,null,null,null,null,null,null,null,null,null,null,null,null,null,null,null,null,null,null,"Annual production (kg)",{"$f":"AW5*AW$15","v":2358.9078280313606},{"$f":"AX5*AX$15","v":17377.313963108165},0,10089.951513539341,null,{"$f":"SUM(AW17:AZ17)","v":29826.173304678869}]
[null,null,null,null,null,null,null,null,null,null,null,null,null,null,null,null,null,null,null,null,null,null,null,null,null,null,null,null,null,null,null,null,null,null,null,null,null,null,null,null,null,null,null,null,null,null,null,{"$f":"_xlfn.CONCAT(\"Annual income\",\" (\",'0-StartHere'!$C$49,\")\")","v":"Annual income (KES)"},{"$f":"AW6*AW$15","v":856499.47902415157},6261444.4720701519,0,3477539.1206960576,null,{"$f":"SUM(AW18:AZ18)","v":10595483.07179036}]
[null,"Number of cages to allocate (from start sheet)",null,null,null,null,{"$f":"'0-StartHere'!C11","v":8},null,null,null,null,null,null,null,null,null,null,null,null,null,null,null,null,null,null,null,null,null,null,null,null,null,null,null,null,null,null,null,null,null,null,null,null,null,null,null,null,"Annual feed use (kg)",{"$f":"AW7*AW$15","v":3306.2864547680374},26071.421080547647,0,13660.72459377224,null,43038.432129087923]
[null,null,null,null,null,null,null,null,null,null,null,null,null,null,null,null,null,null,null,null,null,null,null,null,null,null,null,null,null,null,null,null,null,null,null,null,null,null,null,null,null,null,null,null,null,null,null,"Fingerlings used (No.)",{"$f":"AW8*AW$15","v":5028.0612244897957},40224.489795918365,0,30168.367346938772,null,{"$f":"SUM(AW20:AZ20)","v":75420.918367346923}]
[null,null,{"$f":"C3","v":"Strategy 1"},{"$f":"D3","v":"Strategy 2"},"Strategy 3","Strategy 4",null,null,null,null,null,null,null,null,null,null,null,null,null,null,null,null,null,null,null,null,null,null,null,null,null,null,null,null,null,null,null,null,null,null,null,null,null,null,null,null,null,{"$f":"_xlfn.CONCAT(\"Feed cost\",\" (\",'0-StartHere'!$C$49,\")\")","v":"Feed cost (KES)"},331120.81175497069,2611333.2436666349,0,1373163.4254171525,null,{"$f":"SUM(AW21:AZ21)","v":4315617.4808387579}]
[null,null,{"$f":"'0-StartHere'!$C$100","v":"Standard"},{"$f":"'0-StartHere'!$C$102","v":"Double"},{"$f":"'0-StartHere'!$C$104","v":"Short"},{"$f":"'0-StartHere'!$C$106","v":"Partial"},null,null,null,null,null,null,null,null,null,null,null,null,null,null,null,null,null,null,null,null,null,null,null,null,null,null,null,null,null,null,null,null,null,null,null,null,null,null,null,null,null,{"$f":"_xlfn.CONCAT(\"Fry/Fingerling cost\",\" (\",'0-StartHere'!$C$49,\")\")","v":"Fry/Fingerling cost (KES)"},201122.44897959183,804489.79591836734,0,1206734.693877551,null,{"$f":"SUM(AW22:AZ22)","v":2212346.9387755101}]
[null,"Number of cages per strategy",1,4,0,3,{"$f":"SUM(C23:F23)","v":8},{"$f":"IF(G23='0-StartHere'!C11,\"OK\",IF('5-Comparison'!G23>'0-StartHere'!C11,\"Over-Allocated\",\"Under-Allocated\"))","v":"OK"},null,null,null,null,null,null,null,null,null,null,null,null,null,null,null,null,null,null,null,null,null,null,null,null,null,null,null,null,null,null,null,null,null,null,null,null,null,null,null,{"$f":"_xlfn.CONCAT(\"Income less feed and fry\",\" (\",'0-StartHere'!$C$49,\")\")","v":"Income less feed and fry (KES)"},324256.21828958904,2845621.4324851497,0,897641.00140135386,null,{"$f":"SUM(AW23:AZ23)","v":4067518.6521760924}]
[]
[null,null,null,null,null,null,null,"TOTAL"]
[null,"Cage volume (m3)",{"$f":"C23*'0-StartHere'!$C$25","v":27},{"$f":"D23*'0-StartHere'!$C$25","v":108},{"$f":"E23*'0-StartHere'!$C$25","v":0},{"$f":"F23*'0-StartHere'!$C$25","v":81},null,{"$f":"SUM(C26:F26)","v":216}]
[null,"Percentage of total cage volume",{"$f":"C26/$H$26","v":0.125},{"$f":"D26/$H$26","v":0.5},0,0.375,null,{"$f":"SUM(C27:F27)","v":1}]
[null,"Annual production (kg)",{"$f":"C6*C$23","v":2358.9078280313606},{"$f":"D6*D$23","v":17377.313963108165},{"$f":"E6*E$23","v":0},{"$f":"F6*F$23","v":10089.951513539341},null,{"$f":"SUM(C28:F28)","v":29826.173304678869}]
[null,"Percentage of total production",{"$f":"C28/$H$28","v":7.9088517455282004E-2},{"$f":"D28/$H$28","v":0.58261962691614089},0,0.338291855628577,null,{"$f":"SUM(C29:F29)","v":0.99999999999999989}]
[null,{"$f":"_xlfn.CONCAT(\"Annual income\",\" (\",'0-StartHere'!$C$49,\")\")","v":"Annual income (KES)"},{"$f":"C7*C$23","v":856499.47902415157},{"$f":"D7*D$23","v":6261444.4720701519},{"$f":"E7*E$23","v":0},{"$f":"F7*F$23","v":3477539.1206960576},null,{"$f":"SUM(C30:F30)","v":10595483.07179036}]
[null,"Percentage of annual income",{"$f":"C30/$H$30","v":8.0836284029797006E-2},{"$f":"D30/$H$30","v":0.59095412919310453},0,0.32820958677709861,null,{"$f":"SUM(C31:F31)","v":1.0000000000000002},null,null,null,null,null,null,null,null,null,null,null,null,null,null,null,null,null,null,null,null,null,null,null,null,null,null,null,null,null,null,null,null,null,null,null,null,null,null,null,{"$f":"_xlfn.CONCAT(\"Total interest on feed credit\",\" (\",'0-StartHere'!$C$49,\")\")","v":"Total interest on feed credit (KES)"},{"$f":"H34-BB21","v":86915.563262182288}]
[null,"Annual feed use (kg)",{"$f":"C8*C$23","v":3306.2864547680374},26071.421080547647,0,13660.72459377224,null,43038.432129087923,null,null,null,null,null,null,null,null,null,null,null,null,null,null,null,null,null,null,null,null,null,null,null,null,null,null,null,null,null,null,null,null,null,null,null,null,null,null,null,{"$f":"_xlfn.CONCAT(\"Total interest on seed credit\",\" (\",'0-StartHere'!$C$49,\")\")","v":"Total interest on seed credit (KES)"},{"$f":"H35-BB22","v":101604.76557836542}]
[null,"Fingerlings used (No.)",5028.0612244897957,40224.489795918365,0,30168.367346938772,null,75420.918367346923,null,null,null,null,null,null,null,null,null,null,null,null,null,null,null,null,null,null,null,null,null,null,null,null,null,null,null,null,null,null,null,null,null,null,null,null,null,null,null,{"$f":"_xlfn.CONCAT(\"Interest on feed & seed credit\",\" (\",'0-StartHere'!$C$49,\")\")","v":"Interest on feed & seed credit (KES)"},{"$f":"AW31+AW32","v":188520.32884054771}]
[null,{"$f":"_xlfn.CONCAT(\"Feed cost\",\" (\",'0-StartHere'!$C$49,\")\")","v":"Feed cost (KES)"},338080.69906396832,2666221.3221472115,0,1398231.0228897603,null,4402533.0441009402]
[null,{"$f":"_xlfn.CONCAT(\"Fry/Fingerling cost\",\" (\",'0-StartHere'!$C$49,\")\")","v":"Fry/Fingerling cost (KES)"},211691.02040816325,846764.08163265302,0,1255496.6023130594,null,2313951.7043538755]
[null,{"$f":"_xlfn.CONCAT(\"Income less feed and fry\",\" (\",'0-StartHere'!$C$49,\")\")","v":"Income less feed and fry (KES)"},306727.75955202,2748459.0682902876,0,823811.49549323763,null,3878998.3233355451]
[null,"Percentage of income less feed and fry",{"$f":"C36/$H$36","v":7.9073960333209223E-2},{"$f":"D36/$H$36","v":0.70854866106951331},0,0.21237737859727748,null,{"$f":"SUM(C37:F37)","v":1}]
[]
[null,"NB. Ensure data in the SetupCosts and OperatingCosts sheets match the selected cage sizes and scale of operation for the following analysis to be meaningful"]
[]
[null,"Profit/Loss calculation"]
[null,null,{"$f":"'0-StartHere'!$C$49","v":"KES"}]
[null,"Annual income from sales",{"$f":"H30","v":10595483.07179036}]
[null,"Less variable costs:"]
[null,"Cost of feed",{"$f":"BB21","v":4315617.4808387579}]
[null,"Cost of fry/fingerlings",{"$f":"BB22","v":2212346.9387755101}]
[null,"Labour",{"$f":"OperatingCosts!C31","v":1314000}]
[null,"Fuel and other inputs",{"$f":"OperatingCosts!C32+OperatingCosts!C33","v":823861.73304678872}]
[null,"Processing & distribution",{"$f":"OperatingCosts!C37+OperatingCosts!C38","v":298261.73304678866}]
[null,"Interest on feed & seed credit",{"$f":"AW33","v":188520.32884054771}]
[null,"Gross profit",{"$f":"C43-C45-C46-C47-C48-C49-C50","v":1442874.8572419668},{"$f":"C51/C43","v":0.13617829856984129}]
[null,"Less fixed costs:"]
[null,"Lease, processing & maintenance",{"$f":"OperatingCosts!C44+OperatingCosts!C45+OperatingCosts!C49+OperatingCosts!C50","v":140175}]
[null,"Administration and sales",{"$f":"OperatingCosts!C53+OperatingCosts!C54","v":35000}]
[null,"Net profit",{"$f":"C51-C53-C54","v":1267699.8572419668},{"$f":"C55/C43","v":0.11964531004887526}]
[null,"Less"]
[null,"Depreciation",{"$f":"SetupCosts!C35","v":586160}]
[null,"Long term loan interest payments",{"$f":"OperatingCosts!C56","v":158202.5}]
[null,"Annual return ",{"$f":"C55-C57-C58","v":523337.35724196676},{"$f":"C59/C43","v":4.9392496188806277E-2}]
[]
[]
[null,"Other indicators"]
[]
[null,"Variable cost breakeven price per kg fish",{"$f":"SUM(C45:C50)/H28","v":306.86498469156999},{"$f":"'0-StartHere'!C49","v":"KES"}]
[null,"Total cost breakeven price per kg fish",{"$f":"(SUM(C45:C50)+SUM(C53:C54)+SUM(C57:C58))/H28","v":337.6948699271577},{"$f":"'0-StartHere'!C49","v":"KES"}]
[null,"Breakeven yield (above total costs)",{"$f":"(SUM(C45:C50)+SUM(C53:C54)+SUM(C57:C58))/(H30/H28)","v":28352.984153400845},"Kg/yr"]
[null,"Breakeven yield (above variable costs)",{"$f":"(SUM(C45:C50))/(H30/H28)","v":25764.495771198483},"Kg/yr"]
[null,"Gross profit/loss per m3",{"$f":"C51/('0-StartHere'!C11*'0-StartHere'!C25)","v":6679.9761909350309},{"$f":"_xlfn.CONCAT('0-StartHere'!C49,\"/yr\")","v":"KES/yr"}]
[null,"Net operating profit/loss per m3",{"$f":"C55/('0-StartHere'!C11*'0-StartHere'!C25)","v":5868.9808205646614},{"$f":"_xlfn.CONCAT('0-StartHere'!C49,\"/yr\")","v":"KES/yr"}]
[null,"Overall profit/loss per m3",{"$f":"C59/('0-StartHere'!C11*'0-StartHere'!C25)","v":2422.8581353794757},{"$f":"_xlfn.CONCAT('0-StartHere'!C49,\"/yr\")","v":"KES/yr"}]
[]
[]
[]
[]
[]
[]
[]
[]
[]
[]
[]
[]
[]
[]
[null,"Data for chart"]
[null,"Annual income",{"$f":"C43","v":10595483.07179036}]
[null,"Feed",{"$f":"-C45","v":-4315617.4808387579}]
[null,"Fry/fingerlings",{"$f":"-C46","v":-2212346.9387755101}]
[null,"Labour",-1314000]
[null,"Fuel etc.",-823861.73304678872]
[null,"Processing & distrib.",{"$f":"-C49","v":-298261.73304678866}]
[null,"Overdraft interest",{"$f":"C50","v":188520.32884054771}]
[null,"Gross profit",{"$f":"SUM(C86:C92)","v":1819915.5149230622}]
[null,"Fixed costs",{"$f":"-C53","v":-140175}]
[null,"Admin. & sales",{"$f":"-C54","v":-35000}]
[null,"Net profit",{"$f":"SUM(C93:C95)","v":1644740.5149230622}]
[null,"Depreciation",{"$f":"-C57","v":-586160}]
[null,"Interest payments",{"$f":"-C58","v":-158202.5}]
[null,"Annual return",{"$f":"C96+C97+C98","v":900378.01492306218}]

{"sheet":"Growth-Model-1","index":7,"n_rows":391,"n_cols":31,"rows_kept":391,"cut":false,"hidden":false,"merged":[]}
["Day","Av. Wt (g)","Feed rate % bw/day","FCR","SGR","No.","Early Morts","Late Morts","Cum. Morts","Cum Mort %","Mort Biomas (g)","Cum. Mort biomass (kg)","Biomass (kg)","Density (kg/m3)","Feed fed (kg)","Cum. Feed (kg)","FeedType","Feed cost","Cum. Feed Cost","Labour needed","Labour cost","Cum. labour cost",null,null,null,"EXP Mortalities"]
[0,{"$f":"'S1-Standard'!C5","v":40},{"$f":"_xlfn.XLOOKUP($B2,FeedTables!$C$42:$T$42,FeedTables!$C$44:$T$44,,-1)","v":4.1684550113923917},{"$f":"_xlfn.XLOOKUP($B2,FeedTables!$C$42:$T$42,FeedTables!$C$45:$T$45,,-1)","v":1.283309931764242},{"$f":"_xlfn.XLOOKUP($B2,FeedTables!$C$42:$T$42,FeedTables!$C$46:$T$46,,-1)","v":3.2482059931241785},{"$f":"'S1-Standard'!C18","v":2025},{"$f":"AA6","v":12.15},{"$f":"IF(A2<='S1-Standard'!$C$7,$AD$6*EXP($AD$7*('S1-Standard'!C$7-'Growth-Model-1'!A2)),0)","v":2.5512688317262672E-12},{"$f":"G2+H2","v":12.150000000002551},{"$f":"I2/$F$2","v":6.0000000000012595E-3},{"$f":"(G2+H2)*B2","v":486.00000000010203},{"$f":"K2/1000","v":0.48600000000010202},{"$f":"(B2*F2)/1000","v":81},{"$f":"M2/'S1-Standard'!$C$17","v":3},{"$f":"M2*(C2/100)","v":3.3764485592278377},{"$f":"O2","v":3.3764485592278377},{"$f":"_xlfn.XLOOKUP(B2,FeedTables!$C$17:$T$17,FeedTables!$C$31:$T$31,,-1)","v":"Unga 3mm"},{"$f":"_xlfn.XLOOKUP(Q2,FeedPrice[Feed],FeedPrice[Price per kg],\"Unknown\",0)*O2","v":358.40697575833167},{"$f":"R2","v":358.40697575833167},{"$f":"_xlfn.XLOOKUP(O2,LabourFromFeed[Feed Quantity (kg)],LabourFromFeed[No. Labour],\"Out of range\",-1)","v":1},{"$f":"T2*OperatingCosts!$C$9","v":1200},{"$f":"U2","v":1200},null,null,null,"(Mort=Prev * EXP(L)",null,null,"(Mort=Final * EXP(L*(T-t))",null,"(T = total culture days, t = day no.)"]
[1,{"$f":"IF(A3<='S1-Standard'!$C$7, B2*EXP((LN((E2/100)+1))*1),)","v":41.299282397249677},{"$f":"_xlfn.XLOOKUP($B3,FeedTables!$C$42:$T$42,FeedTables!$C$44:$T$44,,-1)","v":4.1684550113923917},{"$f":"_xlfn.XLOOKUP($B3,FeedTables!$C$42:$T$42,FeedTables!$C$45:$T$45,,-1)","v":1.283309931764242},{"$f":"_xlfn.XLOOKUP($B3,FeedTables!$C$42:$T$42,FeedTables!$C$46:$T$46,,-1)*_xlfn.XLOOKUP(N2,DensityMultiplier[Biomass kg/m3],DensityMultiplier[Multiplier],,-1)","v":3.2482059931241785},{"$f":"F2-G2-H2","v":2012.8499999999974},{"$f":"IF(A3<='S1-Standard'!$C$7,('Growth-Model-1'!G2*EXP($AA$7)),0)","v":10.457601913564453},{"$f":"IF(A3<='S1-Standard'!$C$7,$AD$6*EXP($AD$7*('S1-Standard'!C$7-'Growth-Model-1'!A3)),0)","v":3.1161267878785346E-12},{"$f":"I2+G3+H3","v":22.607601913570118},{"$f":"I3/$F$2","v":1.1164247858553144E-2},{"$f":"(G3+H3)*B3","v":431.89145462644564},{"$f":"(K3/1000)+L2","v":0.91789145462654764},83.12926057330391,{"$f":"M3/'S1-Standard'!$C$17","v":3.0788615027149597},3.4652058283013267,{"$f":"O3+P2","v":6.8416543875291644},{"$f":"_xlfn.XLOOKUP(B3,FeedTables!$C$17:$T$17,FeedTables!$C$31:$T$31,,-1)","v":"Unga 3mm"},{"$f":"_xlfn.XLOOKUP(Q3,FeedPrice[Feed],FeedPrice[Price per kg],\"Unknown\",0)*O3","v":367.82847998894039},{"$f":"R3+S2","v":726.235455747272},{"$f":"_xlfn.XLOOKUP(O3,LabourFromFeed[Feed Quantity (kg)],LabourFromFeed[No. Labour],\"Out of range\",-1)","v":1},{"$f":"T3*OperatingCosts!$C$9","v":1200},{"$f":"U3+V2","v":2400},null,null,null,"(Mort Final =Start*EXP(L*t)",null,null,null,null,"(Final = No. of morts on final day)"]
[2,{"$f":"IF(A4<='S1-Standard'!$C$7, B3*EXP((LN((E3/100)+1))*1),)","v":42.640768163194423},{"$f":"_xlfn.XLOOKUP($B4,FeedTables!$C$42:$T$42,FeedTables!$C$44:$T$44,,-1)","v":4.1684550113923917},{"$f":"_xlfn.XLOOKUP($B4,FeedTables!$C$42:$T$42,FeedTables!$C$45:$T$45,,-1)","v":1.283309931764242},{"$f":"_xlfn.XLOOKUP($B4,FeedTables!$C$42:$T$42,FeedTables!$C$46:$T$46,,-1)*_xlfn.XLOOKUP(N3,DensityMultiplier[Biomass kg/m3],DensityMultiplier[Multiplier],,-1)","v":3.2482059931241785},{"$f":"F3-G3-H3","v":2002.3923980864297},{"$f":"IF(A4<='S1-Standard'!$C$7,('Growth-Model-1'!G3*EXP($AA$7)),0)","v":9.0009413812828729},{"$f":"IF(A4<='S1-Standard'!$C$7,$AD$6*EXP($AD$7*('S1-Standard'!C$7-'Growth-Model-1'!A4)),0)","v":3.8060458534916436E-12},{"$f":"I3+G4+H4","v":31.608543294856798},1.5609157182645331E-2,383.8070546899483,{"$f":"(K4/1000)+L3","v":1.3016985093164959},85.383550018546359,{"$f":"M4/'S1-Standard'!$C$17","v":3.1623537043906058},3.5591748696528254,{"$f":"O4+P3","v":10.400829257181989},{"$f":"_xlfn.XLOOKUP(B4,FeedTables!$C$17:$T$17,FeedTables!$C$31:$T$31,,-1)","v":"Unga 3mm"},{"$f":"_xlfn.XLOOKUP(Q4,FeedPrice[Feed],FeedPrice[Price per kg],\"Unknown\",0)*O4","v":377.80320915626476},{"$f":"R4+S3","v":1104.0386649035368},{"$f":"_xlfn.XLOOKUP(O4,LabourFromFeed[Feed Quantity (kg)],LabourFromFeed[No. Labour],\"Out of range\",-1)","v":1},{"$f":"T4*OperatingCosts!$C$9","v":1200},{"$f":"U4+V3","v":3600},null,null,null,"Early Mortalities",null,null,"Late Mortalities"]
[3,{"$f":"IF(A5<='S1-Standard'!$C$7, B4*EXP((LN((E4/100)+1))*1),)","v":44.025828150185497},{"$f":"_xlfn.XLOOKUP($B5,FeedTables!$C$42:$T$42,FeedTables!$C$44:$T$44,,-1)","v":4.1684550113923917},{"$f":"_xlfn.XLOOKUP($B5,FeedTables!$C$42:$T$42,FeedTables!$C$45:$T$45,,-1)","v":1.283309931764242},{"$f":"_xlfn.XLOOKUP($B5,FeedTables!$C$42:$T$42,FeedTables!$C$46:$T$46,,-1)*_xlfn.XLOOKUP(N4,DensityMultiplier[Biomass kg/m3],DensityMultiplier[Multiplier],,-1)","v":3.2482059931241785},{"$f":"F4-G4-H4","v":1993.3914567051429},{"$f":"IF(A5<='S1-Standard'!$C$7,('Growth-Model-1'!G4*EXP($AA$7)),0)","v":7.7471820422045461},{"$f":"IF(A5<='S1-Standard'!$C$7,$AD$6*EXP($AD$7*('S1-Standard'!C$7-'Growth-Model-1'!A5)),0)","v":4.6487149031387678E-12},39.355725337065991,1.9434926092378266E-2,341.07610523850514,1.6427746145550011,87.760709708948553,{"$f":"M5/'S1-Standard'!$C$17","v":3.2503966558869837},3.6582657018961955,14.059094959078184,{"$f":"_xlfn.XLOOKUP(B5,FeedTables!$C$17:$T$17,FeedTables!$C$31:$T$31,,-1)","v":"Unga 3mm"},{"$f":"_xlfn.XLOOKUP(Q5,FeedPrice[Feed],FeedPrice[Price per kg],\"Unknown\",0)*O5","v":388.32161181714946},1492.3602767206862,{"$f":"_xlfn.XLOOKUP(O5,LabourFromFeed[Feed Quantity (kg)],LabourFromFeed[No. Labour],\"Out of range\",-1)","v":1},{"$f":"T5*OperatingCosts!$C$9","v":1200},4800,null,null,null,"Initial morts %",{"$f":"'0-StartHere'!C76","v":6.0000000000000001E-3},null,"Final morts %",{"$f":"'0-StartHere'!C81","v":1E-3}]
[4,{"$f":"IF(A6<='S1-Standard'!$C$7, B5*EXP((LN((E5/100)+1))*1),)","v":45.455877738682375},{"$f":"_xlfn.XLOOKUP($B6,FeedTables!$C$42:$T$42,FeedTables!$C$44:$T$44,,-1)","v":4.1684550113923917},{"$f":"_xlfn.XLOOKUP($B6,FeedTables!$C$42:$T$42,FeedTables!$C$45:$T$45,,-1)","v":1.283309931764242},{"$f":"_xlfn.XLOOKUP($B6,FeedTables!$C$42:$T$42,FeedTables!$C$46:$T$46,,-1)*_xlfn.XLOOKUP(N5,DensityMultiplier[Biomass kg/m3],DensityMultiplier[Multiplier],,-1)","v":3.2482059931241785},1985.6442746629339,{"$f":"IF(A6<='S1-Standard'!$C$7,('Growth-Model-1'!G5*EXP($AA$7)),0)","v":6.6680613785424221},{"$f":"IF(A6<='S1-Standard'!$C$7,$AD$6*EXP($AD$7*('S1-Standard'!C$7-'Growth-Model-1'!A6)),0)","v":5.6779532045939732E-12},46.023786715614087,2.2727795908945227E-2,303.10258277731231,1.9458771973323135,90.259203381592954,{"$f":"M6/'S1-Standard'!$C$17","v":3.3429334585775168},3.7624142866028629,17.821509245681046,{"$f":"_xlfn.XLOOKUP(B6,FeedTables!$C$17:$T$17,FeedTables!$C$31:$T$31,,-1)","v":"Unga 3mm"},{"$f":"_xlfn.XLOOKUP(Q6,FeedPrice[Feed],FeedPrice[Price per kg],\"Unknown\",0)*O6","v":399.37689035003598},1891.7371670707221,{"$f":"_xlfn.XLOOKUP(O6,LabourFromFeed[Feed Quantity (kg)],LabourFromFeed[No. Labour],\"Out of range\",-1)","v":1},{"$f":"T6*OperatingCosts!$C$9","v":1200},6000,null,null,null,"First day morts",{"$f":"'S1-Standard'!C18*AA5","v":12.15},null,"Final day morts",{"$f":"'S1-Standard'!C18*AD5","v":2.0249999999999999}]
[5,{"$f":"IF(A7<='S1-Standard'!$C$7, B6*EXP((LN((E6/100)+1))*1),)","v":46.93237828361746},{"$f":"_xlfn.XLOOKUP($B7,FeedTables!$C$42:$T$42,FeedTables!$C$44:$T$44,,-1)","v":4.1684550113923917},{"$f":"_xlfn.XLOOKUP($B7,FeedTables!$C$42:$T$42,FeedTables!$C$45:$T$45,,-1)","v":1.283309931764242},{"$f":"_xlfn.XLOOKUP($B7,FeedTables!$C$42:$T$42,FeedTables!$C$46:$T$46,,-1)*_xlfn.XLOOKUP(N6,DensityMultiplier[Biomass kg/m3],DensityMultiplier[Multiplier],,-1)","v":3.2482059931241785},1978.9762132843857,{"$f":"IF(A7<='S1-Standard'!$C$7,('Growth-Model-1'!G6*EXP($AA$7)),0)","v":5.7392536158033298},{"$f":"IF(A7<='S1-Standard'!$C$7,$AD$6*EXP($AD$7*('S1-Standard'!C$7-'Growth-Model-1'!A7)),0)","v":6.9350677047954497E-12},51.763040331424349,2.5561995225394742E-2,269.35682176282666,2.2152340190951403,92.878060256143627,{"$f":"M7/'S1-Standard'!$C$17","v":3.4399281576349492},3.8715801572312647,21.69308940291231,{"$f":"_xlfn.XLOOKUP(B7,FeedTables!$C$17:$T$17,FeedTables!$C$31:$T$31,,-1)","v":"Unga 3mm"},{"$f":"_xlfn.XLOOKUP(Q7,FeedPrice[Feed],FeedPrice[Price per kg],\"Unknown\",0)*O7","v":410.96474926795725},2302.7019163386794,{"$f":"_xlfn.XLOOKUP(O7,LabourFromFeed[Feed Quantity (kg)],LabourFromFeed[No. Labour],\"Out of range\",-1)","v":1},{"$f":"T7*OperatingCosts!$C$9","v":1200},7200,null,null,null,"Li",{"$f":"'0-StartHere'!C78","v":-0.15},null,"Lf",{"$f":"'0-StartHere'!C83","v":-0.2}]
[6,{"$f":"IF(A8<='S1-Standard'!$C$7, B7*EXP((LN((E7/100)+1))*1),)","v":48.456838607741638},{"$f":"_xlfn.XLOOKUP($B8,FeedTables!$C$42:$T$42,FeedTables!$C$44:$T$44,,-1)","v":4.1684550113923917},{"$f":"_xlfn.XLOOKUP($B8,FeedTables!$C$42:$T$42,FeedTables!$C$45:$T$45,,-1)","v":1.283309931764242},{"$f":"_xlfn.XLOOKUP($B8,FeedTables!$C$42:$T$42,FeedTables!$C$46:$T$46,,-1)*_xlfn.XLOOKUP(N7,DensityMultiplier[Biomass kg/m3],DensityMultiplier[Multiplier],,-1)","v":3.2482059931241785},1973.2369596685753,{"$f":"IF(A8<='S1-Standard'!$C$7,('Growth-Model-1'!G7*EXP($AA$7)),0)","v":4.9398213658482799},{"$f":"IF(A8<='S1-Standard'!$C$7,$AD$6*EXP($AD$7*('S1-Standard'!C$7-'Growth-Model-1'!A8)),0)","v":8.4705108226646745E-12},56.702861697281101,2.800141318384252E-2,239.36812667639441,2.4546021457715348,95.616824889490942,{"$f":"M8/'S1-Standard'!$C$17","v":3.541363884795961},3.9857443288402732,25.678833731752583,{"$f":"_xlfn.XLOOKUP(B8,FeedTables!$C$17:$T$17,FeedTables!$C$31:$T$31,,-1)","v":"Unga 3mm"},{"$f":"_xlfn.XLOOKUP(Q8,FeedPrice[Feed],FeedPrice[Price per kg],\"Unknown\",0)*O8","v":423.08317333649904},2725.7850896751784,{"$f":"_xlfn.XLOOKUP(O8,LabourFromFeed[Feed Quantity (kg)],LabourFromFeed[No. Labour],\"Out of range\",-1)","v":1},{"$f":"T8*OperatingCosts!$C$9","v":1200},8400,null,null,null,"Final morts",{"$f":"AA6*EXP(AA7*'S1-Standard'!C7)","v":1.4448563628316387E-8}]
[7,{"$f":"IF(A9<='S1-Standard'!$C$7, B8*EXP((LN((E8/100)+1))*1),)","v":50.030816543476817},{"$f":"_xlfn.XLOOKUP($B9,FeedTables!$C$42:$T$42,FeedTables!$C$44:$T$44,,-1)","v":4.1684550113923917},{"$f":"_xlfn.XLOOKUP($B9,FeedTables!$C$42:$T$42,FeedTables!$C$45:$T$45,,-1)","v":1.283309931764242},{"$f":"_xlfn.XLOOKUP($B9,FeedTables!$C$42:$T$42,FeedTables!$C$46:$T$46,,-1)*_xlfn.XLOOKUP(N8,DensityMultiplier[Biomass kg/m3],DensityMultiplier[Multiplier],,-1)","v":3.2482059931241785},1968.2971383027186,{"$f":"IF(A9<='S1-Standard'!$C$7,('Growth-Model-1'!G8*EXP($AA$7)),0)","v":4.2517436517005383},{"$f":"IF(A9<='S1-Standard'!$C$7,$AD$6*EXP($AD$7*('S1-Standard'!C$7-'Growth-Model-1'!A9)),0)","v":1.0345905281828233E-11},60.954605348991983,3.010103967851456E-2,212.71820662863942,2.6673203524001741,98.475513029473731,{"$f":"M9/'S1-Standard'!$C$17","v":3.6472412233138418},4.1049074578714659,29.783741189624049,{"$f":"_xlfn.XLOOKUP(B9,FeedTables!$C$17:$T$17,FeedTables!$C$31:$T$31,,-1)","v":"Unga 3mm"},{"$f":"_xlfn.XLOOKUP(Q9,FeedPrice[Feed],FeedPrice[Price per kg],\"Unknown\",0)*O9","v":435.73223223634403},3161.5173219115222,{"$f":"_xlfn.XLOOKUP(O9,LabourFromFeed[Feed Quantity (kg)],LabourFromFeed[No. Labour],\"Out of range\",-1)","v":1},{"$f":"T9*OperatingCosts!$C$9","v":1200},9600]
[8,{"$f":"IF(A10<='S1-Standard'!$C$7, B9*EXP((LN((E9/100)+1))*1),)","v":51.655920524850998},{"$f":"_xlfn.XLOOKUP($B10,FeedTables!$C$42:$T$42,FeedTables!$C$44:$T$44,,-1)","v":4.1684550113923917},{"$f":"_xlfn.XLOOKUP($B10,FeedTables!$C$42:$T$42,FeedTables!$C$45:$T$45,,-1)","v":1.283309931764242},{"$f":"_xlfn.XLOOKUP($B10,FeedTables!$C$42:$T$42,FeedTables!$C$46:$T$46,,-1)*_xlfn.XLOOKUP(N9,DensityMultiplier[Biomass kg/m3],DensityMultiplier[Multiplier],,-1)","v":3.2482059931241785},1964.0453946510077,{"$f":"IF(A10<='S1-Standard'!$C$7,('Growth-Model-1'!G9*EXP($AA$7)),0)","v":3.6595096747332563},{"$f":"IF(A10<='S1-Standard'!$C$7,$AD$6*EXP($AD$7*('S1-Standard'!C$7-'Growth-Model-1'!A10)),0)","v":1.2636517246888863E-11},64.614115023737867,3.190820494999401E-2,189.03534091859717,2.856355693318771,101.45457281329206,{"$f":"M10/'S1-Standard'!$C$17","v":3.7575767708626691},4.2290882247224157,34.012829414346463,{"$f":"_xlfn.XLOOKUP(B10,FeedTables!$C$17:$T$17,FeedTables!$C$31:$T$31,,-1)","v":"Unga 3mm"},{"$f":"_xlfn.XLOOKUP(Q10,FeedPrice[Feed],FeedPrice[Price per kg],\"Unknown\",0)*O10","v":448.91390887488222},3610.4312307864043,{"$f":"_xlfn.XLOOKUP(O10,LabourFromFeed[Feed Quantity (kg)],LabourFromFeed[No. Labour],\"Out of range\",-1)","v":1},{"$f":"T10*OperatingCosts!$C$9","v":1200},10800]
[9,{"$f":"IF(A11<='S1-Standard'!$C$7, B10*EXP((LN((E10/100)+1))*1),)","v":53.333811231142676},{"$f":"_xlfn.XLOOKUP($B11,FeedTables!$C$42:$T$42,FeedTables!$C$44:$T$44,,-1)","v":4.1684550113923917},{"$f":"_xlfn.XLOOKUP($B11,FeedTables!$C$42:$T$42,FeedTables!$C$45:$T$45,,-1)","v":1.283309931764242},{"$f":"_xlfn.XLOOKUP($B11,FeedTables!$C$42:$T$42,FeedTables!$C$46:$T$46,,-1)*_xlfn.XLOOKUP(N10,DensityMultiplier[Biomass kg/m3],DensityMultiplier[Multiplier],,-1)","v":3.2482059931241785},1960.3858849762617,{"$f":"IF(A11<='S1-Standard'!$C$7,('Growth-Model-1'!G10*EXP($AA$7)),0)","v":3.1497691668475825},{"$f":"IF(A11<='S1-Standard'!$C$7,$AD$6*EXP($AD$7*('S1-Standard'!C$7-'Growth-Model-1'!A11)),0)","v":1.5434277018888604E-11},67.763884190600876,3.3463646513876975E-2,167.98919416714568,3.0243448874859169,104.55485072952052,{"$f":"M11/'S1-Standard'!$C$17","v":3.8724018788711305},4.358321914888533,38.371151329234998,{"$f":"_xlfn.XLOOKUP(B11,FeedTables!$C$17:$T$17,FeedTables!$C$31:$T$31,,-1)","v":"Unga 3mm"},{"$f":"_xlfn.XLOOKUP(Q11,FeedPrice[Feed],FeedPrice[Price per kg],\"Unknown\",0)*O11","v":462.63194877569441},4073.0631795620989,{"$f":"_xlfn.XLOOKUP(O11,LabourFromFeed[Feed Quantity (kg)],LabourFromFeed[No. Labour],\"Out of range\",-1)","v":1},{"$f":"T11*OperatingCosts!$C$9","v":1200},12000]
[10,{"$f":"IF(A12<='S1-Standard'!$C$7, B11*EXP((LN((E11/100)+1))*1),)","v":55.066203283914192},{"$f":"_xlfn.XLOOKUP($B12,FeedTables!$C$42:$T$42,FeedTables!$C$44:$T$44,,-1)","v":4.1684550113923917},{"$f":"_xlfn.XLOOKUP($B12,FeedTables!$C$42:$T$42,FeedTables!$C$45:$T$45,,-1)","v":1.283309931764242},{"$f":"_xlfn.XLOOKUP($B12,FeedTables!$C$42:$T$42,FeedTables!$C$46:$T$46,,-1)*_xlfn.XLOOKUP(N11,DensityMultiplier[Biomass kg/m3],DensityMultiplier[Multiplier],,-1)","v":3.2482059931241785},1957.2361158093986,{"$f":"IF(A12<='S1-Standard'!$C$7,('Growth-Model-1'!G11*EXP($AA$7)),0)","v":2.7110314458034228},{"$f":"IF(A12<='S1-Standard'!$C$7,$AD$6*EXP($AD$7*('S1-Standard'!C$7-'Growth-Model-1'!A12)),0)","v":1.8851468521078649E-11},70.474915636423162,3.4802427474776867E-2,149.28620870473316,3.17363109619065,107.77756182777897,{"$f":"M12/'S1-Standard'!$C$17","v":3.9917615491769989},4.492659177166586,42.863810506401585,{"$f":"_xlfn.XLOOKUP(B12,FeedTables!$C$17:$T$17,FeedTables!$C$31:$T$31,,-1)","v":"Unga 3mm"},{"$f":"_xlfn.XLOOKUP(Q12,FeedPrice[Feed],FeedPrice[Price per kg],\"Unknown\",0)*O12","v":476.89172826297369},4549.954907825073,{"$f":"_xlfn.XLOOKUP(O12,LabourFromFeed[Feed Quantity (kg)],LabourFromFeed[No. Labour],\"Out of range\",-1)","v":1},{"$f":"T12*OperatingCosts!$C$9","v":1200},13200]
[11,{"$f":"IF(A13<='S1-Standard'!$C$7, B12*EXP((LN((E12/100)+1))*1),)","v":56.854866999168237},{"$f":"_xlfn.XLOOKUP($B13,FeedTables!$C$42:$T$42,FeedTables!$C$44:$T$44,,-1)","v":4.1684550113923917},{"$f":"_xlfn.XLOOKUP($B13,FeedTables!$C$42:$T$42,FeedTables!$C$45:$T$45,,-1)","v":1.283309931764242},{"$f":"_xlfn.XLOOKUP($B13,FeedTables!$C$42:$T$42,FeedTables!$C$46:$T$46,,-1)*_xlfn.XLOOKUP(N12,DensityMultiplier[Biomass kg/m3],DensityMultiplier[Multiplier],,-1)","v":3.2482059931241785},1954.5250843635763,{"$f":"IF(A13<='S1-Standard'!$C$7,('Growth-Model-1'!G12*EXP($AA$7)),0)","v":2.3334063897421626},{"$f":"IF(A13<='S1-Standard'!$C$7,$AD$6*EXP($AD$7*('S1-Standard'!C$7-'Growth-Model-1'!A13)),0)","v":2.3025235647015062E-11},72.80832202618835,3.5954726926512769E-2,132.66550994510908,3.306296606135759,111.12426371802921,{"$f":"M13/'S1-Standard'!$C$17","v":4.1157134710381191},4.6321649398270859,47.49597544622867,{"$f":"_xlfn.XLOOKUP(B13,FeedTables!$C$17:$T$17,FeedTables!$C$31:$T$31,,-1)","v":"Unga 3mm"},{"$f":"_xlfn.XLOOKUP(Q13,FeedPrice[Feed],FeedPrice[Price per kg],\"Unknown\",0)*O13","v":491.70013941419933},5041.6550472392719,{"$f":"_xlfn.XLOOKUP(O13,LabourFromFeed[Feed Quantity (kg)],LabourFromFeed[No. Labour],\"Out of range\",-1)","v":1},{"$f":"T13*OperatingCosts!$C$9","v":1200},14400]
[12,{"$f":"IF(A14<='S1-Standard'!$C$7, B13*EXP((LN((E13/100)+1))*1),)","v":58.701630196418009},{"$f":"_xlfn.XLOOKUP($B14,FeedTables!$C$42:$T$42,FeedTables!$C$44:$T$44,,-1)","v":4.1684550113923917},{"$f":"_xlfn.XLOOKUP($B14,FeedTables!$C$42:$T$42,FeedTables!$C$45:$T$45,,-1)","v":1.283309931764242},{"$f":"_xlfn.XLOOKUP($B14,FeedTables!$C$42:$T$42,FeedTables!$C$46:$T$46,,-1)*_xlfn.XLOOKUP(N13,DensityMultiplier[Biomass kg/m3],DensityMultiplier[Multiplier],,-1)","v":3.2482059931241785},1952.1916779738112,{"$f":"IF(A14<='S1-Standard'!$C$7,('Growth-Model-1'!G13*EXP($AA$7)),0)","v":2.0083814918922767},{"$f":"IF(A14<='S1-Standard'!$C$7,$AD$6*EXP($AD$7*('S1-Standard'!C$7-'Growth-Model-1'!A14)),0)","v":2.8123086326552142E-11},74.816703518108753,3.6946520255856173E-2,117.89526763204159,3.4241918737678008,114.59683395294341,{"$f":"M14/'S1-Standard'!$C$17","v":4.2443271834423486},4.776917467808488,52.272892914037158,{"$f":"_xlfn.XLOOKUP(B14,FeedTables!$C$17:$T$17,FeedTables!$C$31:$T$31,,-1)","v":"Unga 3mm"},{"$f":"_xlfn.XLOOKUP(Q14,FeedPrice[Feed],FeedPrice[Price per kg],\"Unknown\",0)*O14","v":507.06548998214998},5548.7205372214221,{"$f":"_xlfn.XLOOKUP(O14,LabourFromFeed[Feed Quantity (kg)],LabourFromFeed[No. Labour],\"Out of range\",-1)","v":1},{"$f":"T14*OperatingCosts!$C$9","v":1200},15600]
[13,{"$f":"IF(A15<='S1-Standard'!$C$7, B14*EXP((LN((E14/100)+1))*1),)","v":60.608380066519658},{"$f":"_xlfn.XLOOKUP($B15,FeedTables!$C$42:$T$42,FeedTables!$C$44:$T$44,,-1)","v":4.1684550113923917},{"$f":"_xlfn.XLOOKUP($B15,FeedTables!$C$42:$T$42,FeedTables!$C$45:$T$45,,-1)","v":1.283309931764242},{"$f":"_xlfn.XLOOKUP($B15,FeedTables!$C$42:$T$42,FeedTables!$C$46:$T$46,,-1)*_xlfn.XLOOKUP(N14,DensityMultiplier[Biomass kg/m3],DensityMultiplier[Multiplier],,-1)","v":3.2482059931241785},1950.1832964818907,{"$f":"IF(A15<='S1-Standard'!$C$7,('Growth-Model-1'!G14*EXP($AA$7)),0)","v":1.72862996977614},{"$f":"IF(A15<='S1-Standard'!$C$7,$AD$6*EXP($AD$7*('S1-Standard'!C$7-'Growth-Model-1'!A15)),0)","v":3.4349615207227323E-11},76.545333487919237,3.7800164685392212E-2,104.76946220465057,3.5289613359724514,118.19745043255263,{"$f":"M15/'S1-Standard'!$C$17","v":4.3776833493538012},4.9270075458937788,57.199900459930937,{"$f":"_xlfn.XLOOKUP(B15,FeedTables!$C$17:$T$17,FeedTables!$C$31:$T$31,,-1)","v":"Unga 3mm"},{"$f":"_xlfn.XLOOKUP(Q15,FeedPrice[Feed],FeedPrice[Price per kg],\"Unknown\",0)*O15","v":522.99741668983336},6071.7179539112558,{"$f":"_xlfn.XLOOKUP(O15,LabourFromFeed[Feed Quantity (kg)],LabourFromFeed[No. Labour],\"Out of range\",-1)","v":1},{"$f":"T15*OperatingCosts!$C$9","v":1200},16800]
[14,{"$f":"IF(A16<='S1-Standard'!$C$7, B15*EXP((LN((E15/100)+1))*1),)","v":62.577065100175837},{"$f":"_xlfn.XLOOKUP($B16,FeedTables!$C$42:$T$42,FeedTables!$C$44:$T$44,,-1)","v":4.1684550113923917},{"$f":"_xlfn.XLOOKUP($B16,FeedTables!$C$42:$T$42,FeedTables!$C$45:$T$45,,-1)","v":1.283309931764242},{"$f":"_xlfn.XLOOKUP($B16,FeedTables!$C$42:$T$42,FeedTables!$C$46:$T$46,,-1)*_xlfn.XLOOKUP(N15,DensityMultiplier[Biomass kg/m3],DensityMultiplier[Multiplier],,-1)","v":3.2482059931241785},1948.4546665120802,{"$f":"IF(A16<='S1-Standard'!$C$7,('Growth-Model-1'!G15*EXP($AA$7)),0)","v":1.4878456032737304},{"$f":"IF(A16<='S1-Standard'!$C$7,$AD$6*EXP($AD$7*('S1-Standard'!C$7-'Growth-Model-1'!A16)),0)","v":4.1954714755847932E-11},78.033179091234913,3.8534903254930822E-2,93.105011177696014,3.6220663471501475,121.92857451106784,{"$f":"M16/'S1-Standard'!$C$17","v":4.5158731300395498},5.0825377745259139,62.282438234456848,{"$f":"_xlfn.XLOOKUP(B16,FeedTables!$C$17:$T$17,FeedTables!$C$31:$T$31,,-1)","v":"Unga 3mm"},{"$f":"_xlfn.XLOOKUP(Q16,FeedPrice[Feed],FeedPrice[Price per kg],\"Unknown\",0)*O16","v":539.50681048192871},6611.2247643931842,{"$f":"_xlfn.XLOOKUP(O16,LabourFromFeed[Feed Quantity (kg)],LabourFromFeed[No. Labour],\"Out of range\",-1)","v":1},{"$f":"T16*OperatingCosts!$C$9","v":1200},18000]
[15,{"$f":"IF(A17<='S1-Standard'!$C$7, B16*EXP((LN((E16/100)+1))*1),)","v":64.609697079080973},{"$f":"_xlfn.XLOOKUP($B17,FeedTables!$C$42:$T$42,FeedTables!$C$44:$T$44,,-1)","v":4.1684550113923917},{"$f":"_xlfn.XLOOKUP($B17,FeedTables!$C$42:$T$42,FeedTables!$C$45:$T$45,,-1)","v":1.283309931764242},{"$f":"_xlfn.XLOOKUP($B17,FeedTables!$C$42:$T$42,FeedTables!$C$46:$T$46,,-1)*_xlfn.XLOOKUP(N16,DensityMultiplier[Biomass kg/m3],DensityMultiplier[Multiplier],,-1)","v":3.2482059931241785},1946.9668209087645,{"$f":"IF(A17<='S1-Standard'!$C$7,('Growth-Model-1'!G16*EXP($AA$7)),0)","v":1.2806005784266519},{"$f":"IF(A17<='S1-Standard'!$C$7,$AD$6*EXP($AD$7*('S1-Standard'!C$7-'Growth-Model-1'!A17)),0)","v":5.1243604320615802E-11},79.313779669712815,3.9167298602327316E-2,82.739215454752696,3.7048055626049003,125.79293652193657,{"$f":"M17/'S1-Standard'!$C$17","v":4.6589976489606135},5.2436219664263151,67.526060200883165,{"$f":"_xlfn.XLOOKUP(B17,FeedTables!$C$17:$T$17,FeedTables!$C$31:$T$31,,-1)","v":"Unga 3mm"},{"$f":"_xlfn.XLOOKUP(Q17,FeedPrice[Feed],FeedPrice[Price per kg],\"Unknown\",0)*O17","v":556.6057524763836},7167.8305168695679,{"$f":"_xlfn.XLOOKUP(O17,LabourFromFeed[Feed Quantity (kg)],LabourFromFeed[No. Labour],\"Out of range\",-1)","v":1},{"$f":"T17*OperatingCosts!$C$9","v":1200},19200]
[16,{"$f":"IF(A18<='S1-Standard'!$C$7, B17*EXP((LN((E17/100)+1))*1),)","v":66.708353131743067},{"$f":"_xlfn.XLOOKUP($B18,FeedTables!$C$42:$T$42,FeedTables!$C$44:$T$44,,-1)","v":4.1684550113923917},{"$f":"_xlfn.XLOOKUP($B18,FeedTables!$C$42:$T$42,FeedTables!$C$45:$T$45,,-1)","v":1.283309931764242},{"$f":"_xlfn.XLOOKUP($B18,FeedTables!$C$42:$T$42,FeedTables!$C$46:$T$46,,-1)*_xlfn.XLOOKUP(N17,DensityMultiplier[Biomass kg/m3],DensityMultiplier[Multiplier],,-1)","v":3.2482059931241785},1945.6862203302867,{"$f":"IF(A18<='S1-Standard'!$C$7,('Growth-Model-1'!G17*EXP($AA$7)),0)","v":1.1022231324663621},{"$f":"IF(A18<='S1-Standard'!$C$7,$AD$6*EXP($AD$7*('S1-Standard'!C$7-'Growth-Model-1'!A18)),0)","v":6.2589079655268485E-11},80.416002802241763,3.9711606322094695E-2,73.527489954717311,3.7783330525596175,129.7935234693592,{"$f":"M18/'S1-Standard'!$C$17","v":4.8071675359021926},5.4103846335212644,72.936444834404426,{"$f":"_xlfn.XLOOKUP(B18,FeedTables!$C$17:$T$17,FeedTables!$C$31:$T$31,,-1)","v":"Unga 3mm"},{"$f":"_xlfn.XLOOKUP(Q18,FeedPrice[Feed],FeedPrice[Price per kg],\"Unknown\",0)*O18","v":574.30745950211212},7742.1379763716795,{"$f":"_xlfn.XLOOKUP(O18,LabourFromFeed[Feed Quantity (kg)],LabourFromFeed[No. Labour],\"Out of range\",-1)","v":1},{"$f":"T18*OperatingCosts!$C$9","v":1200},20400]
[17,{"$f":"IF(A19<='S1-Standard'!$C$7, B18*EXP((LN((E18/100)+1))*1),)","v":68.875177856082786},{"$f":"_xlfn.XLOOKUP($B19,FeedTables!$C$42:$T$42,FeedTables!$C$44:$T$44,,-1)","v":4.1684550113923917},{"$f":"_xlfn.XLOOKUP($B19,FeedTables!$C$42:$T$42,FeedTables!$C$45:$T$45,,-1)","v":1.283309931764242},{"$f":"_xlfn.XLOOKUP($B19,FeedTables!$C$42:$T$42,FeedTables!$C$46:$T$46,,-1)*_xlfn.XLOOKUP(N18,DensityMultiplier[Biomass kg/m3],DensityMultiplier[Multiplier],,-1)","v":3.2482059931241785},1944.5839971977578,{"$f":"IF(A19<='S1-Standard'!$C$7,('Growth-Model-1'!G18*EXP($AA$7)),0)","v":0.94869224191401091},{"$f":"IF(A19<='S1-Standard'!$C$7,$AD$6*EXP($AD$7*('S1-Standard'!C$7-'Growth-Model-1'!A19)),0)","v":7.644647452165172E-11},81.364695044232221,4.0180096318139367E-2,65.341346897778692,3.8436743994573961,133.93356866308795,{"$f":"M19/'S1-Standard'!$C$17","v":4.9605025430773315},5.5829605548731598,78.51940538927758,{"$f":"_xlfn.XLOOKUP(B19,FeedTables!$C$17:$T$17,FeedTables!$C$31:$T$31,,-1)","v":"Unga 3mm"},{"$f":"_xlfn.XLOOKUP(Q19,FeedPrice[Feed],FeedPrice[Price per kg],\"Unknown\",0)*O19","v":592.62623823528656},8334.7642146069666,{"$f":"_xlfn.XLOOKUP(O19,LabourFromFeed[Feed Quantity (kg)],LabourFromFeed[No. Labour],\"Out of range\",-1)","v":1},{"$f":"T19*OperatingCosts!$C$9","v":1200},21600]
[18,{"$f":"IF(A20<='S1-Standard'!$C$7, B19*EXP((LN((E19/100)+1))*1),)","v":71.11238551097901},{"$f":"_xlfn.XLOOKUP($B20,FeedTables!$C$42:$T$42,FeedTables!$C$44:$T$44,,-1)","v":3.5416853289047179},{"$f":"_xlfn.XLOOKUP($B20,FeedTables!$C$42:$T$42,FeedTables!$C$45:$T$45,,-1)","v":1.3532619052561699},{"$f":"_xlfn.XLOOKUP($B20,FeedTables!$C$42:$T$42,FeedTables!$C$46:$T$46,,-1)*_xlfn.XLOOKUP(N19,DensityMultiplier[Biomass kg/m3],DensityMultiplier[Multiplier],,-1)","v":2.6171469950853923},1943.6353049557674,{"$f":"IF(A20<='S1-Standard'!$C$7,('Growth-Model-1'!G19*EXP($AA$7)),0)","v":0.81654697978795976},{"$f":"IF(A20<='S1-Standard'!$C$7,$AD$6*EXP($AD$7*('S1-Standard'!C$7-'Growth-Model-1'!A20)),0)","v":9.3371934832366494E-11},82.181242024113544,4.0583329394623974E-2,58.066603621146882,3.9017410030785431,138.21654309876379,{"$f":"M20/'S1-Standard'!$C$17","v":5.1191312258801407},4.8951950290481836,83.414600418325762,{"$f":"_xlfn.XLOOKUP(B20,FeedTables!$C$17:$T$17,FeedTables!$C$31:$T$31,,-1)","v":"Unga 3mm"},{"$f":"_xlfn.XLOOKUP(Q20,FeedPrice[Feed],FeedPrice[Price per kg],\"Unknown\",0)*O20","v":519.62054665793858},8854.3847612649042,{"$f":"_xlfn.XLOOKUP(O20,LabourFromFeed[Feed Quantity (kg)],LabourFromFeed[No. Labour],\"Out of range\",-1)","v":1},{"$f":"T20*OperatingCosts!$C$9","v":1200},22800]
[19,{"$f":"IF(A21<='S1-Standard'!$C$7, B20*EXP((LN((E20/100)+1))*1),)","v":72.973501171513135},{"$f":"_xlfn.XLOOKUP($B21,FeedTables!$C$42:$T$42,FeedTables!$C$44:$T$44,,-1)","v":3.5416853289047179},{"$f":"_xlfn.XLOOKUP($B21,FeedTables!$C$42:$T$42,FeedTables!$C$45:$T$45,,-1)","v":1.3532619052561699},{"$f":"_xlfn.XLOOKUP($B21,FeedTables!$C$42:$T$42,FeedTables!$C$46:$T$46,,-1)*_xlfn.XLOOKUP(N20,DensityMultiplier[Biomass kg/m3],DensityMultiplier[Multiplier],,-1)","v":2.6171469950853923},1942.818757975886,{"$f":"IF(A21<='S1-Standard'!$C$7,('Growth-Model-1'!G20*EXP($AA$7)),0)","v":0.7028084986292874},{"$f":"IF(A21<='S1-Standard'!$C$7,$AD$6*EXP($AD$7*('S1-Standard'!C$7-'Growth-Model-1'!A21)),0)","v":1.1404473873900401E-10},82.884050522856867,4.0930395319929321E-2,51.286396806395935,3.953027399884939,141.77428691119101,{"$f":"M21/'S1-Standard'!$C$17","v":5.250899515229297},5.021199119692934,88.435799538018699,{"$f":"_xlfn.XLOOKUP(B21,FeedTables!$C$17:$T$17,FeedTables!$C$31:$T$31,,-1)","v":"Unga 3mm"},{"$f":"_xlfn.XLOOKUP(Q21,FeedPrice[Feed],FeedPrice[Price per kg],\"Unknown\",0)*O21","v":532.99576747619722},9387.3805287411014,{"$f":"_xlfn.XLOOKUP(O21,LabourFromFeed[Feed Quantity (kg)],LabourFromFeed[No. Labour],\"Out of range\",-1)","v":1},{"$f":"T21*OperatingCosts!$C$9","v":1200},24000]
[20,{"$f":"IF(A22<='S1-Standard'!$C$7, B21*EXP((LN((E21/100)+1))*1),)","v":74.883324964631996},{"$f":"_xlfn.XLOOKUP($B22,FeedTables!$C$42:$T$42,FeedTables!$C$44:$T$44,,-1)","v":3.5416853289047179},{"$f":"_xlfn.XLOOKUP($B22,FeedTables!$C$42:$T$42,FeedTables!$C$45:$T$45,,-1)","v":1.3532619052561699},{"$f":"_xlfn.XLOOKUP($B22,FeedTables!$C$42:$T$42,FeedTables!$C$46:$T$46,,-1)*_xlfn.XLOOKUP(N21,DensityMultiplier[Biomass kg/m3],DensityMultiplier[Multiplier],,-1)","v":2.6171469950853923},1942.1159494771425,{"$f":"IF(A22<='S1-Standard'!$C$7,('Growth-Model-1'!G21*EXP($AA$7)),0)","v":0.60491288066954696},{"$f":"IF(A22<='S1-Standard'!$C$7,$AD$6*EXP($AD$7*('S1-Standard'!C$7-'Growth-Model-1'!A22)),0)","v":1.3929455844947534E-10},83.488963403665707,4.1229117730205288E-2,45.29788782890018,3.9983252877138393,145.4320997636917,{"$f":"M22/'S1-Standard'!$C$17","v":5.386374065321915},5.1507473408487421,93.586546878867438,{"$f":"_xlfn.XLOOKUP(B22,FeedTables!$C$17:$T$17,FeedTables!$C$31:$T$31,,-1)","v":"Unga 3mm"},{"$f":"_xlfn.XLOOKUP(Q22,FeedPrice[Feed],FeedPrice[Price per kg],\"Unknown\",0)*O22","v":546.74719455848719},9934.127723299589,{"$f":"_xlfn.XLOOKUP(O22,LabourFromFeed[Feed Quantity (kg)],LabourFromFeed[No. Labour],\"Out of range\",-1)","v":1},{"$f":"T22*OperatingCosts!$C$9","v":1200},25200]
[21,{"$f":"IF(A23<='S1-Standard'!$C$7, B22*EXP((LN((E22/100)+1))*1),)","v":76.843131653763891},{"$f":"_xlfn.XLOOKUP($B23,FeedTables!$C$42:$T$42,FeedTables!$C$44:$T$44,,-1)","v":3.5416853289047179},{"$f":"_xlfn.XLOOKUP($B23,FeedTables!$C$42:$T$42,FeedTables!$C$45:$T$45,,-1)","v":1.3532619052561699},{"$f":"_xlfn.XLOOKUP($B23,FeedTables!$C$42:$T$42,FeedTables!$C$46:$T$46,,-1)*_xlfn.XLOOKUP(N22,DensityMultiplier[Biomass kg/m3],DensityMultiplier[Multiplier],,-1)","v":2.6171469950853923},1941.5110365963335,{"$f":"IF(A23<='S1-Standard'!$C$7,('Growth-Model-1'!G22*EXP($AA$7)),0)","v":0.52065334143453823},{"$f":"IF(A23<='S1-Standard'!$C$7,$AD$6*EXP($AD$7*('S1-Standard'!C$7-'Growth-Model-1'!A23)),0)","v":1.7013475788689208E-10},84.009616745270378,4.1486230491491548E-2,40.008633274899992,4.0383339209887392,149.19178819240767,{"$f":"M23/'S1-Standard'!$C$17","v":5.5256217849039881},5.2839036743411043,98.870450553208542,{"$f":"_xlfn.XLOOKUP(B23,FeedTables!$C$17:$T$17,FeedTables!$C$31:$T$31,,-1)","v":"Unga 3mm"},{"$f":"_xlfn.XLOOKUP(Q23,FeedPrice[Feed],FeedPrice[Price per kg],\"Unknown\",0)*O23","v":560.88161951800134},10495.00934281759,{"$f":"_xlfn.XLOOKUP(O23,LabourFromFeed[Feed Quantity (kg)],LabourFromFeed[No. Labour],\"Out of range\",-1)","v":1},{"$f":"T23*OperatingCosts!$C$9","v":1200},26400]
[22,{"$f":"IF(A24<='S1-Standard'!$C$7, B23*EXP((LN((E23/100)+1))*1),)","v":78.854229364769893},{"$f":"_xlfn.XLOOKUP($B24,FeedTables!$C$42:$T$42,FeedTables!$C$44:$T$44,,-1)","v":3.5416853289047179},{"$f":"_xlfn.XLOOKUP($B24,FeedTables!$C$42:$T$42,FeedTables!$C$45:$T$45,,-1)","v":1.3532619052561699},{"$f":"_xlfn.XLOOKUP($B24,FeedTables!$C$42:$T$42,FeedTables!$C$46:$T$46,,-1)*_xlfn.XLOOKUP(N23,DensityMultiplier[Biomass kg/m3],DensityMultiplier[Multiplier],,-1)","v":2.6171469950853923},1940.9903832547288,{"$f":"IF(A24<='S1-Standard'!$C$7,('Growth-Model-1'!G23*EXP($AA$7)),0)","v":0.4481304839250661},{"$f":"IF(A24<='S1-Standard'!$C$7,$AD$6*EXP($AD$7*('S1-Standard'!C$7-'Growth-Model-1'!A24)),0)","v":2.0780306254196328E-10},84.457747229403253,4.1707529496001608E-2,35.336983981158639,4.073670904969898,153.055300875981,{"$f":"M24/'S1-Standard'!$C$17","v":5.6687148472585553},5.4207371362355934,104.29118768944413,{"$f":"_xlfn.XLOOKUP(B24,FeedTables!$C$17:$T$17,FeedTables!$C$31:$T$31,,-1)","v":"Unga 3mm"},{"$f":"_xlfn.XLOOKUP(Q24,FeedPrice[Feed],FeedPrice[Price per kg],\"Unknown\",0)*O24","v":575.40636834798568},11070.415711165575,{"$f":"_xlfn.XLOOKUP(O24,LabourFromFeed[Feed Quantity (kg)],LabourFromFeed[No. Labour],\"Out of range\",-1)","v":1},{"$f":"T24*OperatingCosts!$C$9","v":1200},27600]
[23,{"$f":"IF(A25<='S1-Standard'!$C$7, B24*EXP((LN((E24/100)+1))*1),)","v":80.917960459087709},{"$f":"_xlfn.XLOOKUP($B25,FeedTables!$C$42:$T$42,FeedTables!$C$44:$T$44,,-1)","v":3.5416853289047179},{"$f":"_xlfn.XLOOKUP($B25,FeedTables!$C$42:$T$42,FeedTables!$C$45:$T$45,,-1)","v":1.3532619052561699},{"$f":"_xlfn.XLOOKUP($B25,FeedTables!$C$42:$T$42,FeedTables!$C$46:$T$46,,-1)*_xlfn.XLOOKUP(N24,DensityMultiplier[Biomass kg/m3],DensityMultiplier[Multiplier],,-1)","v":2.6171469950853923},1940.542252770596,{"$f":"IF(A25<='S1-Standard'!$C$7,('Growth-Model-1'!G24*EXP($AA$7)),0)","v":0.38570948199352556},{"$f":"IF(A25<='S1-Standard'!$C$7,$AD$6*EXP($AD$7*('S1-Standard'!C$7-'Growth-Model-1'!A25)),0)","v":2.5381123374288404E-10},84.843456711650589,4.1898003314395353E-2,31.210824633185194,4.1048817296030835,157.02472127888009,{"$f":"M25/'S1-Standard'!$C$17","v":5.8157304177363001},5.5613215162876211,109.85250920573175,{"$f":"_xlfn.XLOOKUP(B25,FeedTables!$C$17:$T$17,FeedTables!$C$31:$T$31,,-1)","v":"Unga 3mm"},{"$f":"_xlfn.XLOOKUP(Q25,FeedPrice[Feed],FeedPrice[Price per kg],\"Unknown\",0)*O25","v":590.32927376456632},11660.744984930141,{"$f":"_xlfn.XLOOKUP(O25,LabourFromFeed[Feed Quantity (kg)],LabourFromFeed[No. Labour],\"Out of range\",-1)","v":1},{"$f":"T25*OperatingCosts!$C$9","v":1200},28800]
[24,{"$f":"IF(A26<='S1-Standard'!$C$7, B25*EXP((LN((E25/100)+1))*1),)","v":83.03570242972711},{"$f":"_xlfn.XLOOKUP($B26,FeedTables!$C$42:$T$42,FeedTables!$C$44:$T$44,,-1)","v":3.5416853289047179},{"$f":"_xlfn.XLOOKUP($B26,FeedTables!$C$42:$T$42,FeedTables!$C$45:$T$45,,-1)","v":1.3532619052561699},{"$f":"_xlfn.XLOOKUP($B26,FeedTables!$C$42:$T$42,FeedTables!$C$46:$T$46,,-1)*_xlfn.XLOOKUP(N25,DensityMultiplier[Biomass kg/m3],DensityMultiplier[Multiplier],,-1)","v":2.6171469950853923},1940.1565432883488,{"$f":"IF(A26<='S1-Standard'!$C$7,('Growth-Model-1'!G25*EXP($AA$7)),0)","v":0.33198322773460465},{"$f":"IF(A26<='S1-Standard'!$C$7,$AD$6*EXP($AD$7*('S1-Standard'!C$7-'Growth-Model-1'!A26)),0)","v":3.1000574094559394E-10},85.17543993969521,4.2061945649232199E-2,27.566460535572503,4.1324481901386561,161.10226139557929,{"$f":"M26/'S1-Standard'!$C$17","v":5.9667504220584924},5.7057351563809613,115.55824436211272,{"$f":"_xlfn.XLOOKUP(B26,FeedTables!$C$17:$T$17,FeedTables!$C$31:$T$31,,-1)","v":"Unga 3mm"},{"$f":"_xlfn.XLOOKUP(Q26,FeedPrice[Feed],FeedPrice[Price per kg],\"Unknown\",0)*O26","v":605.65865168819835},12266.403636618339,{"$f":"_xlfn.XLOOKUP(O26,LabourFromFeed[Feed Quantity (kg)],LabourFromFeed[No. Labour],\"Out of range\",-1)","v":1},{"$f":"T26*OperatingCosts!$C$9","v":1200},30000]
[25,{"$f":"IF(A27<='S1-Standard'!$C$7, B26*EXP((LN((E26/100)+1))*1),)","v":85.20886882071477},{"$f":"_xlfn.XLOOKUP($B27,FeedTables!$C$42:$T$42,FeedTables!$C$44:$T$44,,-1)","v":3.5416853289047179},{"$f":"_xlfn.XLOOKUP($B27,FeedTables!$C$42:$T$42,FeedTables!$C$45:$T$45,,-1)","v":1.3532619052561699},{"$f":"_xlfn.XLOOKUP($B27,FeedTables!$C$42:$T$42,FeedTables!$C$46:$T$46,,-1)*_xlfn.XLOOKUP(N26,DensityMultiplier[Biomass kg/m3],DensityMultiplier[Multiplier],,-1)","v":2.6171469950853923},1939.8245600603043,{"$f":"IF(A27<='S1-Standard'!$C$7,('Growth-Model-1'!G26*EXP($AA$7)),0)","v":0.28574061215051072},{"$f":"IF(A27<='S1-Standard'!$C$7,$AD$6*EXP($AD$7*('S1-Standard'!C$7-'Growth-Model-1'!A27)),0)","v":3.7864186703643521E-10},85.461180552224363,4.2203052124555239E-2,24.347634369747247,4.1567958245084036,165.2902564733792,{"$f":"M27/'S1-Standard'!$C$17","v":6.1218613508658963},5.8540607636266522,121.41230512573937,{"$f":"_xlfn.XLOOKUP(B27,FeedTables!$C$17:$T$17,FeedTables!$C$31:$T$31,,-1)","v":"Unga 3mm"},{"$f":"_xlfn.XLOOKUP(Q27,FeedPrice[Feed],FeedPrice[Price per kg],\"Unknown\",0)*O27","v":621.40328140428187},12887.806918022621,{"$f":"_xlfn.XLOOKUP(O27,LabourFromFeed[Feed Quantity (kg)],LabourFromFeed[No. Labour],\"Out of range\",-1)","v":1},{"$f":"T27*OperatingCosts!$C$9","v":1200},31200]
[26,{"$f":"IF(A28<='S1-Standard'!$C$7, B27*EXP((LN((E27/100)+1))*1),)","v":87.438910170602369},{"$f":"_xlfn.XLOOKUP($B28,FeedTables!$C$42:$T$42,FeedTables!$C$44:$T$44,,-1)","v":3.5416853289047179},{"$f":"_xlfn.XLOOKUP($B28,FeedTables!$C$42:$T$42,FeedTables!$C$45:$T$45,,-1)","v":1.3532619052561699},{"$f":"_xlfn.XLOOKUP($B28,FeedTables!$C$42:$T$42,FeedTables!$C$46:$T$46,,-1)*_xlfn.XLOOKUP(N27,DensityMultiplier[Biomass kg/m3],DensityMultiplier[Multiplier],,-1)","v":2.6171469950853923},1939.5388194477753,{"$f":"IF(A28<='S1-Standard'!$C$7,('Growth-Model-1'!G27*EXP($AA$7)),0)","v":0.24593922406652335},{"$f":"IF(A28<='S1-Standard'!$C$7,$AD$6*EXP($AD$7*('S1-Standard'!C$7-'Growth-Model-1'!A28)),0)","v":4.6247422075321793E-10},85.707119776753359,4.2324503593458448E-2,21.504657761018628,4.1783004822694219,169.59116060609017,{"$f":"M28/'S1-Standard'!$C$17","v":6.281154096521858},6.0063852543051333,127.4186903800445,{"$f":"_xlfn.XLOOKUP(B28,FeedTables!$C$17:$T$17,FeedTables!$C$31:$T$31,,-1)","v":"Unga 3mm"},{"$f":"_xlfn.XLOOKUP(Q28,FeedPrice[Feed],FeedPrice[Price per kg],\"Unknown\",0)*O28","v":637.5723889977611},13525.379307020383,{"$f":"_xlfn.XLOOKUP(O28,LabourFromFeed[Feed Quantity (kg)],LabourFromFeed[No. Labour],\"Out of range\",-1)","v":1},{"$f":"T28*OperatingCosts!$C$9","v":1200},32400]
[27,{"$f":"IF(A29<='S1-Standard'!$C$7, B28*EXP((LN((E28/100)+1))*1),)","v":89.727314980667714},{"$f":"_xlfn.XLOOKUP($B29,FeedTables!$C$42:$T$42,FeedTables!$C$44:$T$44,,-1)","v":3.5416853289047179},{"$f":"_xlfn.XLOOKUP($B29,FeedTables!$C$42:$T$42,FeedTables!$C$45:$T$45,,-1)","v":1.3532619052561699},{"$f":"_xlfn.XLOOKUP($B29,FeedTables!$C$42:$T$42,FeedTables!$C$46:$T$46,,-1)*_xlfn.XLOOKUP(N28,DensityMultiplier[Biomass kg/m3],DensityMultiplier[Multiplier],,-1)","v":2.6171469950853923},1939.2928802232464,{"$f":"IF(A29<='S1-Standard'!$C$7,('Growth-Model-1'!G28*EXP($AA$7)),0)","v":0.2116818518698462},{"$f":"IF(A29<='S1-Standard'!$C$7,$AD$6*EXP($AD$7*('S1-Standard'!C$7-'Growth-Model-1'!A29)),0)","v":5.648672888059572E-10},85.918801629188067,4.2429037841574355E-2,18.993644249100761,4.1972941265185222,174.00754310355754,{"$f":"M29/'S1-Standard'!$C$17","v":6.4447238186502789},6.1627996252862509,133.58149000533075,{"$f":"_xlfn.XLOOKUP(B29,FeedTables!$C$17:$T$17,FeedTables!$C$31:$T$31,,-1)","v":"Unga 3mm"},{"$f":"_xlfn.XLOOKUP(Q29,FeedPrice[Feed],FeedPrice[Price per kg],\"Unknown\",0)*O29","v":654.17563370447283},14179.554940724856,{"$f":"_xlfn.XLOOKUP(O29,LabourFromFeed[Feed Quantity (kg)],LabourFromFeed[No. Labour],\"Out of range\",-1)","v":1},{"$f":"T29*OperatingCosts!$C$9","v":1200},33600]
[28,{"$f":"IF(A30<='S1-Standard'!$C$7, B29*EXP((LN((E29/100)+1))*1),)","v":92.075610708455073},{"$f":"_xlfn.XLOOKUP($B30,FeedTables!$C$42:$T$42,FeedTables!$C$44:$T$44,,-1)","v":3.5416853289047179},{"$f":"_xlfn.XLOOKUP($B30,FeedTables!$C$42:$T$42,FeedTables!$C$45:$T$45,,-1)","v":1.3532619052561699},{"$f":"_xlfn.XLOOKUP($B30,FeedTables!$C$42:$T$42,FeedTables!$C$46:$T$46,,-1)*_xlfn.XLOOKUP(N29,DensityMultiplier[Biomass kg/m3],DensityMultiplier[Multiplier],,-1)","v":2.6171469950853923},1939.0811983708118,{"$f":"IF(A30<='S1-Standard'!$C$7,('Growth-Model-1'!G29*EXP($AA$7)),0)","v":0.18219625836880415},{"$f":"IF(A30<='S1-Standard'!$C$7,$AD$6*EXP($AD$7*('S1-Standard'!C$7-'Growth-Model-1'!A30)),0)","v":6.8993046454205288E-10},86.100997888246809,4.2519011302837931E-2,16.775831821628881,4.2140699583401506,178.54208555327543,{"$f":"M30/'S1-Standard'!$C$17","v":6.6126698353064972},6.3233988499608662,139.9048888552916,{"$f":"_xlfn.XLOOKUP(B30,FeedTables!$C$17:$T$17,FeedTables!$C$31:$T$31,,-1)","v":"Unga 3mm"},{"$f":"_xlfn.XLOOKUP(Q30,FeedPrice[Feed],FeedPrice[Price per kg],\"Unknown\",0)*O30","v":671.22309686438098},14850.778037589238,{"$f":"_xlfn.XLOOKUP(O30,LabourFromFeed[Feed Quantity (kg)],LabourFromFeed[No. Labour],\"Out of range\",-1)","v":1},{"$f":"T30*OperatingCosts!$C$9","v":1200},34800]
[29,{"$f":"IF(A31<='S1-Standard'!$C$7, B30*EXP((LN((E30/100)+1))*1),)","v":94.485364787317934},{"$f":"_xlfn.XLOOKUP($B31,FeedTables!$C$42:$T$42,FeedTables!$C$44:$T$44,,-1)","v":3.5416853289047179},{"$f":"_xlfn.XLOOKUP($B31,FeedTables!$C$42:$T$42,FeedTables!$C$45:$T$45,,-1)","v":1.3532619052561699},{"$f":"_xlfn.XLOOKUP($B31,FeedTables!$C$42:$T$42,FeedTables!$C$46:$T$46,,-1)*_xlfn.XLOOKUP(N30,DensityMultiplier[Biomass kg/m3],DensityMultiplier[Multiplier],,-1)","v":2.6171469950853923},1938.8990021117531,{"$f":"IF(A31<='S1-Standard'!$C$7,('Growth-Model-1'!G30*EXP($AA$7)),0)","v":0.15681777285283044},{"$f":"IF(A31<='S1-Standard'!$C$7,$AD$6*EXP($AD$7*('S1-Standard'!C$7-'Growth-Model-1'!A31)),0)","v":8.4268297233039012E-10},86.257815661942331,4.2596452178736956E-2,14.816984552755656,4.2288869428929061,183.19757950029572,{"$f":"M31/'S1-Standard'!$C$17","v":6.7850955370479893},6.488281796070531,146.39317065136214,{"$f":"_xlfn.XLOOKUP(B31,FeedTables!$C$17:$T$17,FeedTables!$C$31:$T$31,,-1)","v":"Unga 3mm"},{"$f":"_xlfn.XLOOKUP(Q31,FeedPrice[Feed],FeedPrice[Price per kg],\"Unknown\",0)*O31","v":688.72527319927042},15539.503310788508,{"$f":"_xlfn.XLOOKUP(O31,LabourFromFeed[Feed Quantity (kg)],LabourFromFeed[No. Labour],\"Out of range\",-1)","v":1},{"$f":"T31*OperatingCosts!$C$9","v":1200},36000,null,null,null,"Feed Use by Type","Kg used",{"$f":"_xlfn.CONCAT(\"Cost\",\" (\",'0-StartHere'!$C$49,\")\")","v":"Cost (KES)"}]
[30,{"$f":"IF(A32<='S1-Standard'!$C$7, B31*EXP((LN((E31/100)+1))*1),)","v":96.958185672644703},{"$f":"_xlfn.XLOOKUP($B32,FeedTables!$C$42:$T$42,FeedTables!$C$44:$T$44,,-1)","v":3.5416853289047179},{"$f":"_xlfn.XLOOKUP($B32,FeedTables!$C$42:$T$42,FeedTables!$C$45:$T$45,,-1)","v":1.3532619052561699},{"$f":"_xlfn.XLOOKUP($B32,FeedTables!$C$42:$T$42,FeedTables!$C$46:$T$46,,-1)*_xlfn.XLOOKUP(N31,DensityMultiplier[Biomass kg/m3],DensityMultiplier[Multiplier],,-1)","v":2.6171469950853923},1938.7421843380578,{"$f":"IF(A32<='S1-Standard'!$C$7,('Growth-Model-1'!G31*EXP($AA$7)),0)","v":0.13497430793964404},{"$f":"IF(A32<='S1-Standard'!$C$7,$AD$6*EXP($AD$7*('S1-Standard'!C$7-'Growth-Model-1'!A32)),0)","v":1.0292553066589478E-9},86.392789970911224,4.2663106158474677E-2,13.086864110043457,4.2419738070029496,187.97692468043815,{"$f":"M32/'S1-Standard'!$C$17","v":6.9621083214977091},6.6575511631333502,153.05072181449549,{"$f":"_xlfn.XLOOKUP(B32,FeedTables!$C$17:$T$17,FeedTables!$C$31:$T$31,,-1)","v":"Unga 3mm"},{"$f":"_xlfn.XLOOKUP(Q32,FeedPrice[Feed],FeedPrice[Price per kg],\"Unknown\",0)*O32","v":706.69306417055827},16246.196374959067,{"$f":"_xlfn.XLOOKUP(O32,LabourFromFeed[Feed Quantity (kg)],LabourFromFeed[No. Labour],\"Out of range\",-1)","v":1},{"$f":"T32*OperatingCosts!$C$9","v":1200},37200,null,null,null,{"$f":"FeedCosts!A2","v":"Skretting 0.5mm"},{"$f":"SUMIF($Q$2:$Q$366,Z32,$O$2:$O$366)","v":0},{"$f":"SUMIF($Q$2:$Q$366,Z32,$R$2:$R$366)","v":0}]
[31,{"$f":"IF(A33<='S1-Standard'!$C$7, B32*EXP((LN((E32/100)+1))*1),)","v":99.495723915465646},{"$f":"_xlfn.XLOOKUP($B33,FeedTables!$C$42:$T$42,FeedTables!$C$44:$T$44,,-1)","v":3.5416853289047179},{"$f":"_xlfn.XLOOKUP($B33,FeedTables!$C$42:$T$42,FeedTables!$C$45:$T$45,,-1)","v":1.3532619052561699},{"$f":"_xlfn.XLOOKUP($B33,FeedTables!$C$42:$T$42,FeedTables!$C$46:$T$46,,-1)*_xlfn.XLOOKUP(N32,DensityMultiplier[Biomass kg/m3],DensityMultiplier[Multiplier],,-1)","v":2.6171469950853923},1938.6072100290887,{"$f":"IF(A33<='S1-Standard'!$C$7,('Growth-Model-1'!G32*EXP($AA$7)),0)","v":0.11617346345610365},{"$f":"IF(A33<='S1-Standard'!$C$7,$AD$6*EXP($AD$7*('S1-Standard'!C$7-'Growth-Model-1'!A33)),0)","v":1.2571352704042292E-9},86.508963435624466,4.2720475770678751E-2,11.558762971411509,4.2535325699743609,192.88312774958536,{"$f":"M33/'S1-Standard'!$C$17","v":7.1438195462809393},6.8313134374396096,159.88203525193509,{"$f":"_xlfn.XLOOKUP(B33,FeedTables!$C$17:$T$17,FeedTables!$C$31:$T$31,,-1)","v":"Unga 3mm"},{"$f":"_xlfn.XLOOKUP(Q33,FeedPrice[Feed],FeedPrice[Price per kg],\"Unknown\",0)*O33","v":725.13777320212091},16971.334148161186,{"$f":"_xlfn.XLOOKUP(O33,LabourFromFeed[Feed Quantity (kg)],LabourFromFeed[No. Labour],\"Out of range\",-1)","v":1},{"$f":"T33*OperatingCosts!$C$9","v":1200},38400,null,null,null,{"$f":"FeedCosts!A3","v":"Skretting 1mm"},0,0]
[32,{"$f":"IF(A34<='S1-Standard'!$C$7, B33*EXP((LN((E33/100)+1))*1),)","v":102.09967326415772},{"$f":"_xlfn.XLOOKUP($B34,FeedTables!$C$42:$T$42,FeedTables!$C$44:$T$44,,-1)","v":3.1422093916933376},{"$f":"_xlfn.XLOOKUP($B34,FeedTables!$C$42:$T$42,FeedTables!$C$45:$T$45,,-1)","v":1.3978462732485115},{"$f":"_xlfn.XLOOKUP($B34,FeedTables!$C$42:$T$42,FeedTables!$C$46:$T$46,,-1)*_xlfn.XLOOKUP(N33,DensityMultiplier[Biomass kg/m3],DensityMultiplier[Multiplier],,-1)","v":2.2478933855802543},1938.4910365643755,{"$f":"IF(A34<='S1-Standard'!$C$7,('Growth-Model-1'!G33*EXP($AA$7)),0)","v":9.9991426645593365E-2},{"$f":"IF(A34<='S1-Standard'!$C$7,$AD$6*EXP($AD$7*('S1-Standard'!C$7-'Growth-Model-1'!A34)),0)","v":1.535468486652161E-9},86.608954863805522,4.2769854253731122E-2,10.209092146502908,4.2637416621208635,197.91930145872112,{"$f":"M34/'S1-Standard'!$C$17","v":7.3303444984711525},6.2190388784097834,166.10107413034487,{"$f":"_xlfn.XLOOKUP(B34,FeedTables!$C$17:$T$17,FeedTables!$C$31:$T$31,,-1)","v":"Unga 4mm"},{"$f":"_xlfn.XLOOKUP(Q34,FeedPrice[Feed],FeedPrice[Price per kg],\"Unknown\",0)*O34","v":617.73775369633165},17589.071901857518,{"$f":"_xlfn.XLOOKUP(O34,LabourFromFeed[Feed Quantity (kg)],LabourFromFeed[No. Labour],\"Out of range\",-1)","v":1},{"$f":"T34*OperatingCosts!$C$9","v":1200},39600,null,null,null,{"$f":"FeedCosts!A4","v":"Skretting 2mm"},0,0]
[33,{"$f":"IF(A35<='S1-Standard'!$C$7, B34*EXP((LN((E34/100)+1))*1),)","v":104.39476506616175},{"$f":"_xlfn.XLOOKUP($B35,FeedTables!$C$42:$T$42,FeedTables!$C$44:$T$44,,-1)","v":3.1422093916933376},{"$f":"_xlfn.XLOOKUP($B35,FeedTables!$C$42:$T$42,FeedTables!$C$45:$T$45,,-1)","v":1.3978462732485115},{"$f":"_xlfn.XLOOKUP($B35,FeedTables!$C$42:$T$42,FeedTables!$C$46:$T$46,,-1)*_xlfn.XLOOKUP(N34,DensityMultiplier[Biomass kg/m3],DensityMultiplier[Multiplier],,-1)","v":2.2478933855802543},1938.3910451361944,{"$f":"IF(A35<='S1-Standard'!$C$7,('Growth-Model-1'!G34*EXP($AA$7)),0)","v":8.6063418487983268E-2},{"$f":"IF(A35<='S1-Standard'!$C$7,$AD$6*EXP($AD$7*('S1-Standard'!C$7-'Growth-Model-1'!A35)),0)","v":1.8754254446649702E-9},86.695018284168924,4.2812354708231568E-2,8.9845705496283728,4.2727262326704922,202.35787776334476,{"$f":"M35/'S1-Standard'!$C$17","v":7.4947362134572133},6.358508239911143,172.45958237025602,{"$f":"_xlfn.XLOOKUP(B35,FeedTables!$C$17:$T$17,FeedTables!$C$31:$T$31,,-1)","v":"Unga 4mm"},{"$f":"_xlfn.XLOOKUP(Q35,FeedPrice[Feed],FeedPrice[Price per kg],\"Unknown\",0)*O35","v":631.59125932119787},18220.663161178716,{"$f":"_xlfn.XLOOKUP(O35,LabourFromFeed[Feed Quantity (kg)],LabourFromFeed[No. Labour],\"Out of range\",-1)","v":1},{"$f":"T35*OperatingCosts!$C$9","v":1200},40800,null,null,null,{"$f":"FeedCosts!A5","v":"Unga 2mm"},{"$f":"SUMIF($Q$2:$Q$366,Z35,$O$2:$O$366)","v":0},0]
[34,{"$f":"IF(A36<='S1-Standard'!$C$7, B35*EXP((LN((E35/100)+1))*1),)","v":106.74144808497604},{"$f":"_xlfn.XLOOKUP($B36,FeedTables!$C$42:$T$42,FeedTables!$C$44:$T$44,,-1)","v":3.1422093916933376},{"$f":"_xlfn.XLOOKUP($B36,FeedTables!$C$42:$T$42,FeedTables!$C$45:$T$45,,-1)","v":1.3978462732485115},{"$f":"_xlfn.XLOOKUP($B36,FeedTables!$C$42:$T$42,FeedTables!$C$46:$T$46,,-1)*_xlfn.XLOOKUP(N35,DensityMultiplier[Biomass kg/m3],DensityMultiplier[Multiplier],,-1)","v":2.2478933855802543},1938.304981715831,{"$f":"IF(A36<='S1-Standard'!$C$7,('Growth-Model-1'!G35*EXP($AA$7)),0)","v":7.4075470771014992E-2},{"$f":"IF(A36<='S1-Standard'!$C$7,$AD$6*EXP($AD$7*('S1-Standard'!C$7-'Growth-Model-1'!A36)),0)","v":2.2906498108375559E-9},86.769093757230593,4.2848935188755849E-2,7.9069232621817349,4.2806331559326738,206.89748057867081,{"$f":"M36/'S1-Standard'!$C$17","v":7.6628696510618814},6.5011520659198929,178.9607344361759,{"$f":"_xlfn.XLOOKUP(B36,FeedTables!$C$17:$T$17,FeedTables!$C$31:$T$31,,-1)","v":"Unga 4mm"},{"$f":"_xlfn.XLOOKUP(Q36,FeedPrice[Feed],FeedPrice[Price per kg],\"Unknown\",0)*O36","v":645.76008482302962},18866.423246001745,{"$f":"_xlfn.XLOOKUP(O36,LabourFromFeed[Feed Quantity (kg)],LabourFromFeed[No. Labour],\"Out of range\",-1)","v":1},{"$f":"T36*OperatingCosts!$C$9","v":1200},42000,null,null,null,{"$f":"FeedCosts!A6","v":"Unga 3mm"},{"$f":"SUMIF($Q$2:$Q$366,Z36,$O$2:$O$366)","v":159.88203525193509},16971.334148161186]
[35,{"$f":"IF(A37<='S1-Standard'!$C$7, B36*EXP((LN((E36/100)+1))*1),)","v":109.14088203615078},{"$f":"_xlfn.XLOOKUP($B37,FeedTables!$C$42:$T$42,FeedTables!$C$44:$T$44,,-1)","v":3.1422093916933376},{"$f":"_xlfn.XLOOKUP($B37,FeedTables!$C$42:$T$42,FeedTables!$C$45:$T$45,,-1)","v":1.3978462732485115},{"$f":"_xlfn.XLOOKUP($B37,FeedTables!$C$42:$T$42,FeedTables!$C$46:$T$46,,-1)*_xlfn.XLOOKUP(N36,DensityMultiplier[Biomass kg/m3],DensityMultiplier[Multiplier],,-1)","v":2.2478933855802543},1938.2309062427694,{"$f":"IF(A37<='S1-Standard'!$C$7,('Growth-Model-1'!G36*EXP($AA$7)),0)","v":6.3757348550053827E-2},{"$f":"IF(A37<='S1-Standard'!$C$7,$AD$6*EXP($AD$7*('S1-Standard'!C$7-'Growth-Model-1'!A37)),0)","v":2.79780599693606E-9},86.832851108578453,4.2880420300532567E-2,6.9585335623941891,4.2875916894950681,211.54023069706372,{"$f":"M37/'S1-Standard'!$C$17","v":7.8348233591505085},6.647036996172889,185.60777143234878,{"$f":"_xlfn.XLOOKUP(B37,FeedTables!$C$17:$T$17,FeedTables!$C$31:$T$31,,-1)","v":"Unga 4mm"},{"$f":"_xlfn.XLOOKUP(Q37,FeedPrice[Feed],FeedPrice[Price per kg],\"Unknown\",0)*O37","v":660.2508495335527},19526.674095535298,{"$f":"_xlfn.XLOOKUP(O37,LabourFromFeed[Feed Quantity (kg)],LabourFromFeed[No. Labour],\"Out of range\",-1)","v":1},{"$f":"T37*OperatingCosts!$C$9","v":1200},43200,null,null,null,{"$f":"FeedCosts!A7","v":"Unga 4mm"},{"$f":"SUMIF($Q$2:$Q$366,Z37,$O$2:$O$366)","v":1171.6908657094386},116384.17086000511]
[36,{"$f":"IF(A38<='S1-Standard'!$C$7, B37*EXP((LN((E37/100)+1))*1),)","v":111.59425270440536},{"$f":"_xlfn.XLOOKUP($B38,FeedTables!$C$42:$T$42,FeedTables!$C$44:$T$44,,-1)","v":3.1422093916933376},{"$f":"_xlfn.XLOOKUP($B38,FeedTables!$C$42:$T$42,FeedTables!$C$45:$T$45,,-1)","v":1.3978462732485115},{"$f":"_xlfn.XLOOKUP($B38,FeedTables!$C$42:$T$42,FeedTables!$C$46:$T$46,,-1)*_xlfn.XLOOKUP(N37,DensityMultiplier[Biomass kg/m3],DensityMultiplier[Multiplier],,-1)","v":2.2478933855802543},1938.1671488914214,{"$f":"IF(A38<='S1-Standard'!$C$7,('Growth-Model-1'!G37*EXP($AA$7)),0)","v":5.4876458452743922E-2},{"$f":"IF(A38<='S1-Standard'!$C$7,$AD$6*EXP($AD$7*('S1-Standard'!C$7-'Growth-Model-1'!A38)),0)","v":3.4172479614547646E-9},86.887727570448433,4.290751978787577E-2,6.1238977534435399,4.2937155872485118,216.28831459676613,{"$f":"M38/'S1-Standard'!$C$17","v":8.010678318398746},6.7962317343948166,192.40400316674359,{"$f":"_xlfn.XLOOKUP(B38,FeedTables!$C$17:$T$17,FeedTables!$C$31:$T$31,,-1)","v":"Unga 4mm"},{"$f":"_xlfn.XLOOKUP(Q38,FeedPrice[Feed],FeedPrice[Price per kg],\"Unknown\",0)*O38","v":675.07037780061057},20201.744473335908,{"$f":"_xlfn.XLOOKUP(O38,LabourFromFeed[Feed Quantity (kg)],LabourFromFeed[No. Labour],\"Out of range\",-1)","v":1},{"$f":"T38*OperatingCosts!$C$9","v":1200},44400]
[37,{"$f":"IF(A39<='S1-Standard'!$C$7, B38*EXP((LN((E38/100)+1))*1),)","v":114.1027725296354},{"$f":"_xlfn.XLOOKUP($B39,FeedTables!$C$42:$T$42,FeedTables!$C$44:$T$44,,-1)","v":3.1422093916933376},{"$f":"_xlfn.XLOOKUP($B39,FeedTables!$C$42:$T$42,FeedTables!$C$45:$T$45,,-1)","v":1.3978462732485115},{"$f":"_xlfn.XLOOKUP($B39,FeedTables!$C$42:$T$42,FeedTables!$C$46:$T$46,,-1)*_xlfn.XLOOKUP(N38,DensityMultiplier[Biomass kg/m3],DensityMultiplier[Multiplier],,-1)","v":2.2478933855802543},1938.1122724295515,{"$f":"IF(A39<='S1-Standard'!$C$7,('Growth-Model-1'!G38*EXP($AA$7)),0)","v":4.7232605508234979E-2},{"$f":"IF(A39<='S1-Standard'!$C$7,$AD$6*EXP($AD$7*('S1-Standard'!C$7-'Growth-Model-1'!A39)),0)","v":4.1738360854380798E-9},86.934960180130517,4.2930844533397787E-2,5.3893717185344094,4.299104958967046,221.14398375792388,{"$f":"M39/'S1-Standard'!$C$17","v":8.1905179169601432},6.9488070268062732,199.35281019354986,{"$f":"_xlfn.XLOOKUP(B39,FeedTables!$C$17:$T$17,FeedTables!$C$31:$T$31,,-1)","v":"Unga 4mm"},{"$f":"_xlfn.XLOOKUP(Q39,FeedPrice[Feed],FeedPrice[Price per kg],\"Unknown\",0)*O39","v":690.22569685336975},20891.970170189277,{"$f":"_xlfn.XLOOKUP(O39,LabourFromFeed[Feed Quantity (kg)],LabourFromFeed[No. Labour],\"Out of range\",-1)","v":1},{"$f":"T39*OperatingCosts!$C$9","v":1200},45600]
[38,{"$f":"IF(A40<='S1-Standard'!$C$7, B39*EXP((LN((E39/100)+1))*1),)","v":116.66768120609275},{"$f":"_xlfn.XLOOKUP($B40,FeedTables!$C$42:$T$42,FeedTables!$C$44:$T$44,,-1)","v":3.1422093916933376},{"$f":"_xlfn.XLOOKUP($B40,FeedTables!$C$42:$T$42,FeedTables!$C$45:$T$45,,-1)","v":1.3978462732485115},{"$f":"_xlfn.XLOOKUP($B40,FeedTables!$C$42:$T$42,FeedTables!$C$46:$T$46,,-1)*_xlfn.XLOOKUP(N39,DensityMultiplier[Biomass kg/m3],DensityMultiplier[Multiplier],,-1)","v":2.2478933855802543},1938.0650398198693,{"$f":"IF(A40<='S1-Standard'!$C$7,('Growth-Model-1'!G39*EXP($AA$7)),0)","v":4.0653480308275966E-2},{"$f":"IF(A40<='S1-Standard'!$C$7,$AD$6*EXP($AD$7*('S1-Standard'!C$7-'Growth-Model-1'!A40)),0)","v":5.0979349068625124E-9},86.975613665536727,4.295092032866011E-2,4.7429478752883547,4.3038479068423348,226.10955422237797,{"$f":"M40/'S1-Standard'!$C$17","v":8.3744279341621475},7.1048356482915,206.45764584184136,{"$f":"_xlfn.XLOOKUP(B40,FeedTables!$C$17:$T$17,FeedTables!$C$31:$T$31,,-1)","v":"Unga 4mm"},{"$f":"_xlfn.XLOOKUP(Q40,FeedPrice[Feed],FeedPrice[Price per kg],\"Unknown\",0)*O40","v":705.72403542835957},21597.694205617638,{"$f":"_xlfn.XLOOKUP(O40,LabourFromFeed[Feed Quantity (kg)],LabourFromFeed[No. Labour],\"Out of range\",-1)","v":1},{"$f":"T40*OperatingCosts!$C$9","v":1200},46800]
[39,{"$f":"IF(A41<='S1-Standard'!$C$7, B40*EXP((LN((E40/100)+1))*1),)","v":119.29024629503436},{"$f":"_xlfn.XLOOKUP($B41,FeedTables!$C$42:$T$42,FeedTables!$C$44:$T$44,,-1)","v":3.1422093916933376},{"$f":"_xlfn.XLOOKUP($B41,FeedTables!$C$42:$T$42,FeedTables!$C$45:$T$45,,-1)","v":1.3978462732485115},{"$f":"_xlfn.XLOOKUP($B41,FeedTables!$C$42:$T$42,FeedTables!$C$46:$T$46,,-1)*_xlfn.XLOOKUP(N40,DensityMultiplier[Biomass kg/m3],DensityMultiplier[Multiplier],,-1)","v":2.2478933855802543},1938.0243863344631,{"$f":"IF(A41<='S1-Standard'!$C$7,('Growth-Model-1'!G40*EXP($AA$7)),0)","v":3.4990774770772143E-2},{"$f":"IF(A41<='S1-Standard'!$C$7,$AD$6*EXP($AD$7*('S1-Standard'!C$7-'Growth-Model-1'!A41)),0)","v":6.2266317561628771E-9},87.010604446534131,4.2968199726683524E-2,4.1740588832359196,4.3080219657255707,231.18740637162091,{"$f":"M41/'S1-Standard'!$C$17","v":8.562496532282255},7.2643923954213134,213.72203823726267,{"$f":"_xlfn.XLOOKUP(B41,FeedTables!$C$17:$T$17,FeedTables!$C$31:$T$31,,-1)","v":"Unga 4mm"},{"$f":"_xlfn.XLOOKUP(Q41,FeedPrice[Feed],FeedPrice[Price per kg],\"Unknown\",0)*O41","v":721.57282307643857},22319.267028694077,{"$f":"_xlfn.XLOOKUP(O41,LabourFromFeed[Feed Quantity (kg)],LabourFromFeed[No. Labour],\"Out of range\",-1)","v":1},{"$f":"T41*OperatingCosts!$C$9","v":1200},48000]
[40,{"$f":"IF(A42<='S1-Standard'!$C$7, B41*EXP((LN((E41/100)+1))*1),)","v":121.97176385114282},{"$f":"_xlfn.XLOOKUP($B42,FeedTables!$C$42:$T$42,FeedTables!$C$44:$T$44,,-1)","v":3.1422093916933376},{"$f":"_xlfn.XLOOKUP($B42,FeedTables!$C$42:$T$42,FeedTables!$C$45:$T$45,,-1)","v":1.3978462732485115},{"$f":"_xlfn.XLOOKUP($B42,FeedTables!$C$42:$T$42,FeedTables!$C$46:$T$46,,-1)*_xlfn.XLOOKUP(N41,DensityMultiplier[Biomass kg/m3],DensityMultiplier[Multiplier],,-1)","v":2.2478933855802543},1937.9893955534658,{"$f":"IF(A42<='S1-Standard'!$C$7,('Growth-Model-1'!G41*EXP($AA$7)),0)","v":3.0116838946496256E-2},{"$f":"IF(A42<='S1-Standard'!$C$7,$AD$6*EXP($AD$7*('S1-Standard'!C$7-'Growth-Model-1'!A42)),0)","v":7.6052252010250355E-9},87.040721293085852,4.2983072243499183E-2,3.6734048955476744,4.3116953706211181,236.37998490046635,{"$f":"M42/'S1-Standard'!$C$17","v":8.7548142555728283},7.4275540856257471,221.14959232288842,{"$f":"_xlfn.XLOOKUP(B42,FeedTables!$C$17:$T$17,FeedTables!$C$31:$T$31,,-1)","v":"Unga 4mm"},{"$f":"_xlfn.XLOOKUP(Q42,FeedPrice[Feed],FeedPrice[Price per kg],\"Unknown\",0)*O42","v":737.77969008061405},23057.046718774691,{"$f":"_xlfn.XLOOKUP(O42,LabourFromFeed[Feed Quantity (kg)],LabourFromFeed[No. Labour],\"Out of range\",-1)","v":1},{"$f":"T42*OperatingCosts!$C$9","v":1200},49200]
[41,{"$f":"IF(A43<='S1-Standard'!$C$7, B42*EXP((LN((E42/100)+1))*1),)","v":124.71355906302823},{"$f":"_xlfn.XLOOKUP($B43,FeedTables!$C$42:$T$42,FeedTables!$C$44:$T$44,,-1)","v":3.1422093916933376},{"$f":"_xlfn.XLOOKUP($B43,FeedTables!$C$42:$T$42,FeedTables!$C$45:$T$45,,-1)","v":1.3978462732485115},{"$f":"_xlfn.XLOOKUP($B43,FeedTables!$C$42:$T$42,FeedTables!$C$46:$T$46,,-1)*_xlfn.XLOOKUP(N42,DensityMultiplier[Biomass kg/m3],DensityMultiplier[Multiplier],,-1)","v":2.2478933855802543},1937.9592787069141,{"$f":"IF(A43<='S1-Standard'!$C$7,('Growth-Model-1'!G42*EXP($AA$7)),0)","v":2.5921803505958161E-2},{"$f":"IF(A43<='S1-Standard'!$C$7,$AD$6*EXP($AD$7*('S1-Standard'!C$7-'Growth-Model-1'!A43)),0)","v":9.2890430369612043E-9},87.066643105880843,4.2995873138706592E-2,3.2328015310301428,4.3149281721521486,241.68979896675833,{"$f":"M43/'S1-Standard'!$C$17","v":8.9514740358058642},7.5943995618982276,228.74399188478665,{"$f":"_xlfn.XLOOKUP(B43,FeedTables!$C$17:$T$17,FeedTables!$C$31:$T$31,,-1)","v":"Unga 4mm"},{"$f":"_xlfn.XLOOKUP(Q43,FeedPrice[Feed],FeedPrice[Price per kg],\"Unknown\",0)*O43","v":754.35246792330713},23811.399186698,{"$f":"_xlfn.XLOOKUP(O43,LabourFromFeed[Feed Quantity (kg)],LabourFromFeed[No. Labour],\"Out of range\",-1)","v":1},{"$f":"T43*OperatingCosts!$C$9","v":1200},50400]
[42,{"$f":"IF(A44<='S1-Standard'!$C$7, B43*EXP((LN((E43/100)+1))*1),)","v":127.51698690812775},{"$f":"_xlfn.XLOOKUP($B44,FeedTables!$C$42:$T$42,FeedTables!$C$44:$T$44,,-1)","v":3.1422093916933376},{"$f":"_xlfn.XLOOKUP($B44,FeedTables!$C$42:$T$42,FeedTables!$C$45:$T$45,,-1)","v":1.3978462732485115},{"$f":"_xlfn.XLOOKUP($B44,FeedTables!$C$42:$T$42,FeedTables!$C$46:$T$46,,-1)*_xlfn.XLOOKUP(N43,DensityMultiplier[Biomass kg/m3],DensityMultiplier[Multiplier],,-1)","v":2.2478933855802543},1937.933356894119,{"$f":"IF(A44<='S1-Standard'!$C$7,('Growth-Model-1'!G43*EXP($AA$7)),0)","v":2.2311103040901219E-2},{"$f":"IF(A44<='S1-Standard'!$C$7,$AD$6*EXP($AD$7*('S1-Standard'!C$7-'Growth-Model-1'!A44)),0)","v":1.1345662786012968E-8},87.088954220267411,4.3006890972971563E-2,2.8450460811372231,4.3177732182332855,247.11942249989144,{"$f":"M44/'S1-Standard'!$C$17","v":9.1525712036996829},7.7650097024899276,236.50900158727657,{"$f":"_xlfn.XLOOKUP(B44,FeedTables!$C$17:$T$17,FeedTables!$C$31:$T$31,,-1)","v":"Unga 4mm"},{"$f":"_xlfn.XLOOKUP(Q44,FeedPrice[Feed],FeedPrice[Price per kg],\"Unknown\",0)*O44","v":771.29919024929472},24582.698376947294,{"$f":"_xlfn.XLOOKUP(O44,LabourFromFeed[Feed Quantity (kg)],LabourFromFeed[No. Labour],\"Out of range\",-1)","v":1},{"$f":"T44*OperatingCosts!$C$9","v":1200},51600]
[43,{"$f":"IF(A45<='S1-Standard'!$C$7, B44*EXP((LN((E44/100)+1))*1),)","v":130.38343282232677},{"$f":"_xlfn.XLOOKUP($B45,FeedTables!$C$42:$T$42,FeedTables!$C$44:$T$44,,-1)","v":2.8483614154897481},{"$f":"_xlfn.XLOOKUP($B45,FeedTables!$C$42:$T$42,FeedTables!$C$45:$T$45,,-1)","v":1.4306418063069479},{"$f":"_xlfn.XLOOKUP($B45,FeedTables!$C$42:$T$42,FeedTables!$C$46:$T$46,,-1)*_xlfn.XLOOKUP(N44,DensityMultiplier[Biomass kg/m3],DensityMultiplier[Multiplier],,-1)","v":1.9909675524179564},1937.9110457797324,{"$f":"IF(A45<='S1-Standard'!$C$7,('Growth-Model-1'!G44*EXP($AA$7)),0)","v":1.9203344350145042E-2},{"$f":"IF(A45<='S1-Standard'!$C$7,$AD$6*EXP($AD$7*('S1-Standard'!C$7-'Growth-Model-1'!A45)),0)","v":1.3857623819991425E-8},87.108157578475186,4.3016374112827251E-2,2.5037997648457089,4.3202770179981309,252.67149465306673,{"$f":"M45/'S1-Standard'!$C$17","v":9.3582035056691382},7.1969973616391947,243.70599894891578,{"$f":"_xlfn.XLOOKUP(B45,FeedTables!$C$17:$T$17,FeedTables!$C$31:$T$31,,-1)","v":"Unga 4mm"},{"$f":"_xlfn.XLOOKUP(Q45,FeedPrice[Feed],FeedPrice[Price per kg],\"Unknown\",0)*O45","v":714.87846763135735},25297.576844578653,{"$f":"_xlfn.XLOOKUP(O45,LabourFromFeed[Feed Quantity (kg)],LabourFromFeed[No. Labour],\"Out of range\",-1)","v":1},{"$f":"T45*OperatingCosts!$C$9","v":1200},52800]
[44,{"$f":"IF(A46<='S1-Standard'!$C$7, B45*EXP((LN((E45/100)+1))*1),)","v":132.97932466354797},{"$f":"_xlfn.XLOOKUP($B46,FeedTables!$C$42:$T$42,FeedTables!$C$44:$T$44,,-1)","v":2.8483614154897481},{"$f":"_xlfn.XLOOKUP($B46,FeedTables!$C$42:$T$42,FeedTables!$C$45:$T$45,,-1)","v":1.4306418063069479},{"$f":"_xlfn.XLOOKUP($B46,FeedTables!$C$42:$T$42,FeedTables!$C$46:$T$46,,-1)*_xlfn.XLOOKUP(N45,DensityMultiplier[Biomass kg/m3],DensityMultiplier[Multiplier],,-1)","v":1.9909675524179564},1937.8918424215246,{"$f":"IF(A46<='S1-Standard'!$C$7,('Growth-Model-1'!G45*EXP($AA$7)),0)","v":1.6528471656206904E-2},{"$f":"IF(A46<='S1-Standard'!$C$7,$AD$6*EXP($AD$7*('S1-Standard'!C$7-'Growth-Model-1'!A46)),0)","v":1.6925739955283581E-8},87.124686067057127,4.3024536329410924E-2,2.1979472493364569,4.3224749652474674,257.69954847621307,{"$f":"M46/'S1-Standard'!$C$17","v":9.5444277213412239},7.3402145066877518,251.04621345560352,{"$f":"_xlfn.XLOOKUP(B46,FeedTables!$C$17:$T$17,FeedTables!$C$31:$T$31,,-1)","v":"Unga 4mm"},{"$f":"_xlfn.XLOOKUP(Q46,FeedPrice[Feed],FeedPrice[Price per kg],\"Unknown\",0)*O46","v":729.10424097074508},26026.681085549397,{"$f":"_xlfn.XLOOKUP(O46,LabourFromFeed[Feed Quantity (kg)],LabourFromFeed[No. Labour],\"Out of range\",-1)","v":1},{"$f":"T46*OperatingCosts!$C$9","v":1200},54000]
[45,{"$f":"IF(A47<='S1-Standard'!$C$7, B46*EXP((LN((E46/100)+1))*1),)","v":135.62689986902376},{"$f":"_xlfn.XLOOKUP($B47,FeedTables!$C$42:$T$42,FeedTables!$C$44:$T$44,,-1)","v":2.8483614154897481},{"$f":"_xlfn.XLOOKUP($B47,FeedTables!$C$42:$T$42,FeedTables!$C$45:$T$45,,-1)","v":1.4306418063069479},{"$f":"_xlfn.XLOOKUP($B47,FeedTables!$C$42:$T$42,FeedTables!$C$46:$T$46,,-1)*_xlfn.XLOOKUP(N46,DensityMultiplier[Biomass kg/m3],DensityMultiplier[Multiplier],,-1)","v":1.9909675524179564},1937.8753139329428,{"$f":"IF(A47<='S1-Standard'!$C$7,('Growth-Model-1'!G46*EXP($AA$7)),0)","v":1.4226187392612768E-2},{"$f":"IF(A47<='S1-Standard'!$C$7,$AD$6*EXP($AD$7*('S1-Standard'!C$7-'Growth-Model-1'!A47)),0)","v":2.0673145465285143E-8},87.138912275122877,4.303156161734463E-2,1.9294564968504899,4.3244044217443181,262.8280211614362,{"$f":"M47/'S1-Standard'!$C$17","v":9.7343711541272668},7.4862919438575783,258.53250539946112,{"$f":"_xlfn.XLOOKUP(B47,FeedTables!$C$17:$T$17,FeedTables!$C$31:$T$31,,-1)","v":"Unga 4mm"},{"$f":"_xlfn.XLOOKUP(Q47,FeedPrice[Feed],FeedPrice[Price per kg],\"Unknown\",0)*O47","v":743.61412741256765},26770.295212961966,{"$f":"_xlfn.XLOOKUP(O47,LabourFromFeed[Feed Quantity (kg)],LabourFromFeed[No. Labour],\"Out of range\",-1)","v":1},{"$f":"T47*OperatingCosts!$C$9","v":1200},55200]
[46,{"$f":"IF(A48<='S1-Standard'!$C$7, B47*EXP((LN((E47/100)+1))*1),)","v":138.32718743776644},{"$f":"_xlfn.XLOOKUP($B48,FeedTables!$C$42:$T$42,FeedTables!$C$44:$T$44,,-1)","v":2.8483614154897481},{"$f":"_xlfn.XLOOKUP($B48,FeedTables!$C$42:$T$42,FeedTables!$C$45:$T$45,,-1)","v":1.4306418063069479},{"$f":"_xlfn.XLOOKUP($B48,FeedTables!$C$42:$T$42,FeedTables!$C$46:$T$46,,-1)*_xlfn.XLOOKUP(N47,DensityMultiplier[Biomass kg/m3],DensityMultiplier[Multiplier],,-1)","v":1.9909675524179564},1937.8610877248773,{"$f":"IF(A48<='S1-Standard'!$C$7,('Growth-Model-1'!G47*EXP($AA$7)),0)","v":1.2244592962939406E-2},{"$f":"IF(A48<='S1-Standard'!$C$7,$AD$6*EXP($AD$7*('S1-Standard'!C$7-'Growth-Model-1'!A48)),0)","v":2.5250236891145752E-8},87.151156893336051,4.3037608342388171E-2,1.6937635986779265,4.3260981853429961,268.05887391007309,{"$f":"M48/'S1-Standard'!$C$17","v":9.9281064411138189},7.6352855352508371,266.16779093471195,{"$f":"_xlfn.XLOOKUP(B48,FeedTables!$C$17:$T$17,FeedTables!$C$31:$T$31,,-1)","v":"Unga 4mm"},{"$f":"_xlfn.XLOOKUP(Q48,FeedPrice[Feed],FeedPrice[Price per kg],\"Unknown\",0)*O48","v":758.41367574501919},27528.708888706984,{"$f":"_xlfn.XLOOKUP(O48,LabourFromFeed[Feed Quantity (kg)],LabourFromFeed[No. Labour],\"Out of range\",-1)","v":1},{"$f":"T48*OperatingCosts!$C$9","v":1200},56400]
[47,{"$f":"IF(A49<='S1-Standard'!$C$7, B48*EXP((LN((E48/100)+1))*1),)","v":141.08123685582476},{"$f":"_xlfn.XLOOKUP($B49,FeedTables!$C$42:$T$42,FeedTables!$C$44:$T$44,,-1)","v":2.8483614154897481},{"$f":"_xlfn.XLOOKUP($B49,FeedTables!$C$42:$T$42,FeedTables!$C$45:$T$45,,-1)","v":1.4306418063069479},{"$f":"_xlfn.XLOOKUP($B49,FeedTables!$C$42:$T$42,FeedTables!$C$46:$T$46,,-1)*_xlfn.XLOOKUP(N48,DensityMultiplier[Biomass kg/m3],DensityMultiplier[Multiplier],,-1)","v":1.9909675524179564},1937.8488431066639,{"$f":"IF(A49<='S1-Standard'!$C$7,('Growth-Model-1'!G48*EXP($AA$7)),0)","v":1.0539018831280078E-2},{"$f":"IF(A49<='S1-Standard'!$C$7,$AD$6*EXP($AD$7*('S1-Standard'!C$7-'Growth-Model-1'!A49)),0)","v":3.084070898304307E-8},87.161695943008041,4.3042812811361998E-2,1.4868621630091909,4.3275850475060054,273.39411162511726,{"$f":"M49/'S1-Standard'!$C$17","v":10.125707837967306},7.7872523877508124,273.95504332246276,{"$f":"_xlfn.XLOOKUP(B49,FeedTables!$C$17:$T$17,FeedTables!$C$31:$T$31,,-1)","v":"Unga 4mm"},{"$f":"_xlfn.XLOOKUP(Q49,FeedPrice[Feed],FeedPrice[Price per kg],\"Unknown\",0)*O49","v":773.50855840052702},28302.217447107512,{"$f":"_xlfn.XLOOKUP(O49,LabourFromFeed[Feed Quantity (kg)],LabourFromFeed[No. Labour],\"Out of range\",-1)","v":1},{"$f":"T49*OperatingCosts!$C$9","v":1200},57600]
[48,{"$f":"IF(A50<='S1-Standard'!$C$7, B49*EXP((LN((E49/100)+1))*1),)","v":143.89011850417415},{"$f":"_xlfn.XLOOKUP($B50,FeedTables!$C$42:$T$42,FeedTables!$C$44:$T$44,,-1)","v":2.8483614154897481},{"$f":"_xlfn.XLOOKUP($B50,FeedTables!$C$42:$T$42,FeedTables!$C$45:$T$45,,-1)","v":1.4306418063069479},{"$f":"_xlfn.XLOOKUP($B50,FeedTables!$C$42:$T$42,FeedTables!$C$46:$T$46,,-1)*_xlfn.XLOOKUP(N49,DensityMultiplier[Biomass kg/m3],DensityMultiplier[Multiplier],,-1)","v":1.9909675524179564},1937.838304056992,{"$f":"IF(A50<='S1-Standard'!$C$7,('Growth-Model-1'!G49*EXP($AA$7)),0)","v":9.0710175717766545E-3},{"$f":"IF(A50<='S1-Standard'!$C$7,$AD$6*EXP($AD$7*('S1-Standard'!C$7-'Growth-Model-1'!A50)),0)","v":3.766892701550391E-8},87.170766998248737,4.3047292344814192E-2,1.3052352135427612,4.3288902827195486,278.83578321268845,{"$f":"M50/'S1-Standard'!$C$17","v":10.327251230099572},7.9422508616088585,281.8972941840716,{"$f":"_xlfn.XLOOKUP(B50,FeedTables!$C$17:$T$17,FeedTables!$C$31:$T$31,,-1)","v":"Unga 4mm"},{"$f":"_xlfn.XLOOKUP(Q50,FeedPrice[Feed],FeedPrice[Price per kg],\"Unknown\",0)*O50","v":788.90457230869413},29091.122019416205,{"$f":"_xlfn.XLOOKUP(O50,LabourFromFeed[Feed Quantity (kg)],LabourFromFeed[No. Labour],\"Out of range\",-1)","v":1},{"$f":"T50*OperatingCosts!$C$9","v":1200},58800]
[49,{"$f":"IF(A51<='S1-Standard'!$C$7, B50*EXP((LN((E50/100)+1))*1),)","v":146.75492407472802},{"$f":"_xlfn.XLOOKUP($B51,FeedTables!$C$42:$T$42,FeedTables!$C$44:$T$44,,-1)","v":2.8483614154897481},{"$f":"_xlfn.XLOOKUP($B51,FeedTables!$C$42:$T$42,FeedTables!$C$45:$T$45,,-1)","v":1.4306418063069479},{"$f":"_xlfn.XLOOKUP($B51,FeedTables!$C$42:$T$42,FeedTables!$C$46:$T$46,,-1)*_xlfn.XLOOKUP(N50,DensityMultiplier[Biomass kg/m3],DensityMultiplier[Multiplier],,-1)","v":1.9909675524179564},1937.8292330017512,{"$f":"IF(A51<='S1-Standard'!$C$7,('Growth-Model-1'!G50*EXP($AA$7)),0)","v":7.8074971783200255E-3},{"$f":"IF(A51<='S1-Standard'!$C$7,$AD$6*EXP($AD$7*('S1-Standard'!C$7-'Growth-Model-1'!A51)),0)","v":4.6008931353670573E-8},87.178574541435992,4.3051147921696786E-2,1.1457954076552361,4.330036078127204,284.38598195896043,{"$f":"M51/'S1-Standard'!$C$17","v":10.532814146628164},8.1003405811806655,289.99763476525226,{"$f":"_xlfn.XLOOKUP(B51,FeedTables!$C$17:$T$17,FeedTables!$C$31:$T$31,,-1)","v":"Unga 4mm"},{"$f":"_xlfn.XLOOKUP(Q51,FeedPrice[Feed],FeedPrice[Price per kg],\"Unknown\",0)*O51","v":804.60763996273363},29895.72965937894,{"$f":"_xlfn.XLOOKUP(O51,LabourFromFeed[Feed Quantity (kg)],LabourFromFeed[No. Labour],\"Out of range\",-1)","v":1},{"$f":"T51*OperatingCosts!$C$9","v":1200},60000]
[50,{"$f":"IF(A52<='S1-Standard'!$C$7, B51*EXP((LN((E51/100)+1))*1),)","v":149.67676699463149},{"$f":"_xlfn.XLOOKUP($B52,FeedTables!$C$42:$T$42,FeedTables!$C$44:$T$44,,-1)","v":2.8483614154897481},{"$f":"_xlfn.XLOOKUP($B52,FeedTables!$C$42:$T$42,FeedTables!$C$45:$T$45,,-1)","v":1.4306418063069479},{"$f":"_xlfn.XLOOKUP($B52,FeedTables!$C$42:$T$42,FeedTables!$C$46:$T$46,,-1)*_xlfn.XLOOKUP(N51,DensityMultiplier[Biomass kg/m3],DensityMultiplier[Multiplier],,-1)","v":1.9909675524179564},1937.8214254585639,{"$f":"IF(A52<='S1-Standard'!$C$7,('Growth-Model-1'!G51*EXP($AA$7)),0)","v":6.7199750972961776E-3},{"$f":"IF(A52<='S1-Standard'!$C$7,$AD$6*EXP($AD$7*('S1-Standard'!C$7-'Growth-Model-1'!A52)),0)","v":5.6195435655375118E-8},87.185294572728722,4.3054466455668503E-2,1.0058325579988547,4.3310419106852027,290.04684597556616,{"$f":"M52/'S1-Standard'!$C$17","v":10.742475776872821},8.2615824476130051,298.25921721286528,{"$f":"_xlfn.XLOOKUP(B52,FeedTables!$C$17:$T$17,FeedTables!$C$31:$T$31,,-1)","v":"Unga 4mm"},{"$f":"_xlfn.XLOOKUP(Q52,FeedPrice[Feed],FeedPrice[Price per kg],\"Unknown\",0)*O52","v":820.62381067964452},30716.353470058584,{"$f":"_xlfn.XLOOKUP(O52,LabourFromFeed[Feed Quantity (kg)],LabourFromFeed[No. Labour],\"Out of range\",-1)","v":1},{"$f":"T52*OperatingCosts!$C$9","v":1200},61200]
[51,{"$f":"IF(A53<='S1-Standard'!$C$7, B52*EXP((LN((E52/100)+1))*1),)","v":152.65678285900285},{"$f":"_xlfn.XLOOKUP($B53,FeedTables!$C$42:$T$42,FeedTables!$C$44:$T$44,,-1)","v":2.8483614154897481},{"$f":"_xlfn.XLOOKUP($B53,FeedTables!$C$42:$T$42,FeedTables!$C$45:$T$45,,-1)","v":1.4306418063069479},{"$f":"_xlfn.XLOOKUP($B53,FeedTables!$C$42:$T$42,FeedTables!$C$46:$T$46,,-1)*_xlfn.XLOOKUP(N52,DensityMultiplier[Biomass kg/m3],DensityMultiplier[Multiplier],,-1)","v":1.9909675524179564},1937.8147054272713,{"$f":"IF(A53<='S1-Standard'!$C$7,('Growth-Model-1'!G52*EXP($AA$7)),0)","v":5.7839361676205736E-3},{"$f":"IF(A53<='S1-Standard'!$C$7,$AD$6*EXP($AD$7*('S1-Standard'!C$7-'Growth-Model-1'!A53)),0)","v":6.8637260105487721E-8},87.191078577533602,4.3057322754337581E-2,0.88296756555409894,4.3319248782507564,295.82055870739356,{"$f":"M53/'S1-Standard'!$C$17","v":10.956316989162724},8.4260386533075966,306.68525586617289,{"$f":"_xlfn.XLOOKUP(B53,FeedTables!$C$17:$T$17,FeedTables!$C$31:$T$31,,-1)","v":"Unga 4mm"},{"$f":"_xlfn.XLOOKUP(Q53,FeedPrice[Feed],FeedPrice[Price per kg],\"Unknown\",0)*O53","v":836.95926203690897},31553.312732095492,{"$f":"_xlfn.XLOOKUP(O53,LabourFromFeed[Feed Quantity (kg)],LabourFromFeed[No. Labour],\"Out of range\",-1)","v":1},{"$f":"T53*OperatingCosts!$C$9","v":1200},62400]
[52,{"$f":"IF(A54<='S1-Standard'!$C$7, B53*EXP((LN((E53/100)+1))*1),)","v":155.69612987229075},{"$f":"_xlfn.XLOOKUP($B54,FeedTables!$C$42:$T$42,FeedTables!$C$44:$T$44,,-1)","v":2.8483614154897481},{"$f":"_xlfn.XLOOKUP($B54,FeedTables!$C$42:$T$42,FeedTables!$C$45:$T$45,,-1)","v":1.4306418063069479},{"$f":"_xlfn.XLOOKUP($B54,FeedTables!$C$42:$T$42,FeedTables!$C$46:$T$46,,-1)*_xlfn.XLOOKUP(N53,DensityMultiplier[Biomass kg/m3],DensityMultiplier[Multiplier],,-1)","v":1.9909675524179564},1937.8089214224665,{"$f":"IF(A54<='S1-Standard'!$C$7,('Growth-Model-1'!G53*EXP($AA$7)),0)","v":4.9782799946044079E-3},{"$f":"IF(A54<='S1-Standard'!$C$7,$AD$6*EXP($AD$7*('S1-Standard'!C$7-'Growth-Model-1'!A54)),0)","v":8.3833738805399621E-8},87.196056941361945,4.3059781205610839E-2,0.77511198116923952,4.3326999902319256,301.70934949747601,{"$f":"M54/'S1-Standard'!$C$17","v":11.174420351758371},8.5937726980112181,315.2790285641841,{"$f":"_xlfn.XLOOKUP(B54,FeedTables!$C$17:$T$17,FeedTables!$C$31:$T$31,,-1)","v":"Unga 4mm"},{"$f":"_xlfn.XLOOKUP(Q54,FeedPrice[Feed],FeedPrice[Price per kg],\"Unknown\",0)*O54","v":853.62030147072414},32406.933033566216,{"$f":"_xlfn.XLOOKUP(O54,LabourFromFeed[Feed Quantity (kg)],LabourFromFeed[No. Labour],\"Out of range\",-1)","v":1},{"$f":"T54*OperatingCosts!$C$9","v":1200},63600]
[53,{"$f":"IF(A55<='S1-Standard'!$C$7, B54*EXP((LN((E54/100)+1))*1),)","v":158.79598929841859},{"$f":"_xlfn.XLOOKUP($B55,FeedTables!$C$42:$T$42,FeedTables!$C$44:$T$44,,-1)","v":2.8483614154897481},{"$f":"_xlfn.XLOOKUP($B55,FeedTables!$C$42:$T$42,FeedTables!$C$45:$T$45,,-1)","v":1.4306418063069479},{"$f":"_xlfn.XLOOKUP($B55,FeedTables!$C$42:$T$42,FeedTables!$C$46:$T$46,,-1)*_xlfn.XLOOKUP(N54,DensityMultiplier[Biomass kg/m3],DensityMultiplier[Multiplier],,-1)","v":1.9909675524179564},1937.803943058638,{"$f":"IF(A55<='S1-Standard'!$C$7,('Growth-Model-1'!G54*EXP($AA$7)),0)","v":4.2848453002333076E-3},{"$f":"IF(A55<='S1-Standard'!$C$7,$AD$6*EXP($AD$7*('S1-Standard'!C$7-'Growth-Model-1'!A55)),0)","v":1.0239475980379428E-7},87.200341889056944,4.3061897229163926E-2,0.68043250831840951,4.3333804227402437,307.71549420437282,{"$f":"M55/'S1-Standard'!$C$17","v":11.396870155717512},8.7648494064009466,324.04387797058507,{"$f":"_xlfn.XLOOKUP(B55,FeedTables!$C$17:$T$17,FeedTables!$C$31:$T$31,,-1)","v":"Unga 4mm"},{"$f":"_xlfn.XLOOKUP(Q55,FeedPrice[Feed],FeedPrice[Price per kg],\"Unknown\",0)*O55","v":870.61336802274673},33277.546401588959,{"$f":"_xlfn.XLOOKUP(O55,LabourFromFeed[Feed Quantity (kg)],LabourFromFeed[No. Labour],\"Out of range\",-1)","v":1},{"$f":"T55*OperatingCosts!$C$9","v":1200},64800]
[54,{"$f":"IF(A56<='S1-Standard'!$C$7, B55*EXP((LN((E55/100)+1))*1),)","v":161.95756591989121},{"$f":"_xlfn.XLOOKUP($B56,FeedTables!$C$42:$T$42,FeedTables!$C$44:$T$44,,-1)","v":2.8483614154897481},{"$f":"_xlfn.XLOOKUP($B56,FeedTables!$C$42:$T$42,FeedTables!$C$45:$T$45,,-1)","v":1.4306418063069479},{"$f":"_xlfn.XLOOKUP($B56,FeedTables!$C$42:$T$42,FeedTables!$C$46:$T$46,,-1)*_xlfn.XLOOKUP(N55,DensityMultiplier[Biomass kg/m3],DensityMultiplier[Multiplier],,-1)","v":1.9909675524179564},1937.799658110943,{"$f":"IF(A56<='S1-Standard'!$C$7,('Growth-Model-1'!G55*EXP($AA$7)),0)","v":3.6880005276582295E-3},{"$f":"IF(A56<='S1-Standard'!$C$7,$AD$6*EXP($AD$7*('S1-Standard'!C$7-'Growth-Model-1'!A56)),0)","v":1.2506524204550234E-7},87.204030014649845,4.3063718525753011E-2,0.59731984383298409,4.3339777425840769,313.84131586804574,{"$f":"M56/'S1-Standard'!$C$17","v":11.623752439557249},8.9393349470507193,332.9832129176358,{"$f":"_xlfn.XLOOKUP(B56,FeedTables!$C$17:$T$17,FeedTables!$C$31:$T$31,,-1)","v":"Unga 4mm"},{"$f":"_xlfn.XLOOKUP(Q56,FeedPrice[Feed],FeedPrice[Price per kg],\"Unknown\",0)*O56","v":887.94503422404262},34165.491435813005,{"$f":"_xlfn.XLOOKUP(O56,LabourFromFeed[Feed Quantity (kg)],LabourFromFeed[No. Labour],\"Out of range\",-1)","v":1},{"$f":"T56*OperatingCosts!$C$9","v":1200},66000]
[55,{"$f":"IF(A57<='S1-Standard'!$C$7, B56*EXP((LN((E56/100)+1))*1),)","v":165.18208850604219},{"$f":"_xlfn.XLOOKUP($B57,FeedTables!$C$42:$T$42,FeedTables!$C$44:$T$44,,-1)","v":2.8483614154897481},{"$f":"_xlfn.XLOOKUP($B57,FeedTables!$C$42:$T$42,FeedTables!$C$45:$T$45,,-1)","v":1.4306418063069479},{"$f":"_xlfn.XLOOKUP($B57,FeedTables!$C$42:$T$42,FeedTables!$C$46:$T$46,,-1)*_xlfn.XLOOKUP(N56,DensityMultiplier[Biomass kg/m3],DensityMultiplier[Multiplier],,-1)","v":1.9909675524179564},1937.79596998535,{"$f":"IF(A57<='S1-Standard'!$C$7,('Growth-Model-1'!G56*EXP($AA$7)),0)","v":3.17429147121526E-3},{"$f":"IF(A57<='S1-Standard'!$C$7,$AD$6*EXP($AD$7*('S1-Standard'!C$7-'Growth-Model-1'!A57)),0)","v":1.5275503158434569E-7},87.207204458876092,4.3065286152531405E-2,0.52436132713740091,4.3345021039112144,320.08918542077197,{"$f":"M57/'S1-Standard'!$C$17","v":11.855155015584147},9.1172968526807043,342.10050977031648,{"$f":"_xlfn.XLOOKUP(B57,FeedTables!$C$17:$T$17,FeedTables!$C$31:$T$31,,-1)","v":"Unga 4mm"},{"$f":"_xlfn.XLOOKUP(Q57,FeedPrice[Feed],FeedPrice[Price per kg],\"Unknown\",0)*O57","v":905.62200810645959},35071.113443919465,{"$f":"_xlfn.XLOOKUP(O57,LabourFromFeed[Feed Quantity (kg)],LabourFromFeed[No. Labour],\"Out of range\",-1)","v":1},{"$f":"T57*OperatingCosts!$C$9","v":1200},67200]
[56,{"$f":"IF(A58<='S1-Standard'!$C$7, B57*EXP((LN((E57/100)+1))*1),)","v":168.47081029060382},{"$f":"_xlfn.XLOOKUP($B58,FeedTables!$C$42:$T$42,FeedTables!$C$44:$T$44,,-1)","v":2.8483614154897481},{"$f":"_xlfn.XLOOKUP($B58,FeedTables!$C$42:$T$42,FeedTables!$C$45:$T$45,,-1)","v":1.4306418063069479},{"$f":"_xlfn.XLOOKUP($B58,FeedTables!$C$42:$T$42,FeedTables!$C$46:$T$46,,-1)*_xlfn.XLOOKUP(N57,DensityMultiplier[Biomass kg/m3],DensityMultiplier[Multiplier],,-1)","v":1.9909675524179564},1937.7927955411237,{"$f":"IF(A58<='S1-Standard'!$C$7,('Growth-Model-1'!G57*EXP($AA$7)),0)","v":2.7321379887730061E-3},{"$f":"IF(A58<='S1-Standard'!$C$7,$AD$6*EXP($AD$7*('S1-Standard'!C$7-'Growth-Model-1'!A58)),0)","v":1.8657541689996424E-7},87.209936783440284,4.3066635448612486E-2,0.46031693330599444,4.3349624208445201,326.4615224401075,{"$f":"M58/'S1-Standard'!$C$17","v":12.091167497781759},9.2988040416044271,351.39931381192093,{"$f":"_xlfn.XLOOKUP(B58,FeedTables!$C$17:$T$17,FeedTables!$C$31:$T$31,,-1)","v":"Unga 4mm"},{"$f":"_xlfn.XLOOKUP(Q58,FeedPrice[Feed],FeedPrice[Price per kg],\"Unknown\",0)*O58","v":923.65113533297188},35994.764579252434,{"$f":"_xlfn.XLOOKUP(O58,LabourFromFeed[Feed Quantity (kg)],LabourFromFeed[No. Labour],\"Out of range\",-1)","v":1},{"$f":"T58*OperatingCosts!$C$9","v":1200},68400]
[57,{"$f":"IF(A59<='S1-Standard'!$C$7, B58*EXP((LN((E58/100)+1))*1),)","v":171.82500945878536},{"$f":"_xlfn.XLOOKUP($B59,FeedTables!$C$42:$T$42,FeedTables!$C$44:$T$44,,-1)","v":2.5479057505037064},{"$f":"_xlfn.XLOOKUP($B59,FeedTables!$C$42:$T$42,FeedTables!$C$45:$T$45,,-1)","v":1.4641748046312828},{"$f":"_xlfn.XLOOKUP($B59,FeedTables!$C$42:$T$42,FeedTables!$C$46:$T$46,,-1)*_xlfn.XLOOKUP(N58,DensityMultiplier[Biomass kg/m3],DensityMultiplier[Multiplier],,-1)","v":1.74016500109448},1937.7900632165597,{"$f":"IF(A59<='S1-Standard'!$C$7,('Growth-Model-1'!G58*EXP($AA$7)),0)","v":2.3515729596308415E-3},{"$f":"IF(A59<='S1-Standard'!$C$7,$AD$6*EXP($AD$7*('S1-Standard'!C$7-'Growth-Model-1'!A59)),0)","v":2.2788372880649969E-7},87.212288584283641,4.3067796831745005E-2,0.40409820215545089,4.3353665190466755,332.96079594132567,{"$f":"M59/'S1-Standard'!$C$17","v":12.33188133116021},8.4835272667119472,359.88284107863291,{"$f":"_xlfn.XLOOKUP(B59,FeedTables!$C$17:$T$17,FeedTables!$C$31:$T$31,,-1)","v":"Unga 4mm"},{"$f":"_xlfn.XLOOKUP(Q59,FeedPrice[Feed],FeedPrice[Price per kg],\"Unknown\",0)*O59","v":842.66961175522442},36837.434191007662,{"$f":"_xlfn.XLOOKUP(O59,LabourFromFeed[Feed Quantity (kg)],LabourFromFeed[No. Labour],\"Out of range\",-1)","v":1},{"$f":"T59*OperatingCosts!$C$9","v":1200},69600]
[58,{"$f":"IF(A60<='S1-Standard'!$C$7, B59*EXP((LN((E59/100)+1))*1),)","v":174.81504813651443},{"$f":"_xlfn.XLOOKUP($B60,FeedTables!$C$42:$T$42,FeedTables!$C$44:$T$44,,-1)","v":2.5479057505037064},{"$f":"_xlfn.XLOOKUP($B60,FeedTables!$C$42:$T$42,FeedTables!$C$45:$T$45,,-1)","v":1.4641748046312828},{"$f":"_xlfn.XLOOKUP($B60,FeedTables!$C$42:$T$42,FeedTables!$C$46:$T$46,,-1)*_xlfn.XLOOKUP(N59,DensityMultiplier[Biomass kg/m3],DensityMultiplier[Multiplier],,-1)","v":1.74016500109448},1937.7877114157163,{"$f":"IF(A60<='S1-Standard'!$C$7,('Growth-Model-1'!G59*EXP($AA$7)),0)","v":2.0240176034997458E-3},{"$f":"IF(A60<='S1-Standard'!$C$7,$AD$6*EXP($AD$7*('S1-Standard'!C$7-'Growth-Model-1'!A60)),0)","v":2.7833781490408268E-7},87.214312880224952,4.3068796484061707E-2,0.35387739242347127,4.3357203964390987,338.7544520494846,{"$f":"M60/'S1-Standard'!$C$17","v":12.546461187017949},8.6311441638561384,368.51398524248907,{"$f":"_xlfn.XLOOKUP(B60,FeedTables!$C$17:$T$17,FeedTables!$C$31:$T$31,,-1)","v":"Unga 4mm"},{"$f":"_xlfn.XLOOKUP(Q60,FeedPrice[Feed],FeedPrice[Price per kg],\"Unknown\",0)*O60","v":857.3324129102466},37694.766603917909,{"$f":"_xlfn.XLOOKUP(O60,LabourFromFeed[Feed Quantity (kg)],LabourFromFeed[No. Labour],\"Out of range\",-1)","v":1},{"$f":"T60*OperatingCosts!$C$9","v":1200},70800]
[59,{"$f":"IF(A61<='S1-Standard'!$C$7, B60*EXP((LN((E60/100)+1))*1),)","v":177.85711842083253},{"$f":"_xlfn.XLOOKUP($B61,FeedTables!$C$42:$T$42,FeedTables!$C$44:$T$44,,-1)","v":2.5479057505037064},{"$f":"_xlfn.XLOOKUP($B61,FeedTables!$C$42:$T$42,FeedTables!$C$45:$T$45,,-1)","v":1.4641748046312828},{"$f":"_xlfn.XLOOKUP($B61,FeedTables!$C$42:$T$42,FeedTables!$C$46:$T$46,,-1)*_xlfn.XLOOKUP(N60,DensityMultiplier[Biomass kg/m3],DensityMultiplier[Multiplier],,-1)","v":1.74016500109448},1937.785687119775,{"$f":"IF(A61<='S1-Standard'!$C$7,('Growth-Model-1'!G60*EXP($AA$7)),0)","v":1.7420880957569611E-3},{"$f":"IF(A61<='S1-Standard'!$C$7,$AD$6*EXP($AD$7*('S1-Standard'!C$7-'Growth-Model-1'!A61)),0)","v":3.3996257482412118E-7},87.216055308283273,4.306965694236211E-2,0.30990323351049764,4.3360302996726094,344.64897842825616,{"$f":"M61/'S1-Standard'!$C$17","v":12.764776978824303},8.7813311404258165,377.2953163829149,{"$f":"_xlfn.XLOOKUP(B61,FeedTables!$C$17:$T$17,FeedTables!$C$31:$T$31,,-1)","v":"Unga 4mm"},{"$f":"_xlfn.XLOOKUP(Q61,FeedPrice[Feed],FeedPrice[Price per kg],\"Unknown\",0)*O61","v":872.25050031161038},38567.017104229519,{"$f":"_xlfn.XLOOKUP(O61,LabourFromFeed[Feed Quantity (kg)],LabourFromFeed[No. Labour],\"Out of range\",-1)","v":1},{"$f":"T61*OperatingCosts!$C$9","v":1200},72000]
[60,{"$f":"IF(A62<='S1-Standard'!$C$7, B61*EXP((LN((E61/100)+1))*1),)","v":180.95212574754703},{"$f":"_xlfn.XLOOKUP($B62,FeedTables!$C$42:$T$42,FeedTables!$C$44:$T$44,,-1)","v":2.5479057505037064},{"$f":"_xlfn.XLOOKUP($B62,FeedTables!$C$42:$T$42,FeedTables!$C$45:$T$45,,-1)","v":1.4641748046312828},{"$f":"_xlfn.XLOOKUP($B62,FeedTables!$C$42:$T$42,FeedTables!$C$46:$T$46,,-1)*_xlfn.XLOOKUP(N61,DensityMultiplier[Biomass kg/m3],DensityMultiplier[Multiplier],,-1)","v":1.74016500109448},1937.7839446917167,{"$f":"IF(A62<='S1-Standard'!$C$7,('Growth-Model-1'!G61*EXP($AA$7)),0)","v":1.4994291196531563E-3},{"$f":"IF(A62<='S1-Standard'!$C$7,$AD$6*EXP($AD$7*('S1-Standard'!C$7-'Growth-Model-1'!A62)),0)","v":4.1523122656141513E-7},87.217555152634148,4.3070397606239083E-2,0.27140002358213478,4.3363016996961914,350.64612403143326,{"$f":"M62/'S1-Standard'!$C$17","v":12.986893482645677},8.934132758115247,386.22944914103016,{"$f":"_xlfn.XLOOKUP(B62,FeedTables!$C$17:$T$17,FeedTables!$C$31:$T$31,,-1)","v":"Unga 4mm"},{"$f":"_xlfn.XLOOKUP(Q62,FeedPrice[Feed],FeedPrice[Price per kg],\"Unknown\",0)*O62","v":887.4283002768633},39454.445404506383,{"$f":"_xlfn.XLOOKUP(O62,LabourFromFeed[Feed Quantity (kg)],LabourFromFeed[No. Labour],\"Out of range\",-1)","v":1},{"$f":"T62*OperatingCosts!$C$9","v":1200},73200]
[61,{"$f":"IF(A63<='S1-Standard'!$C$7, B62*EXP((LN((E62/100)+1))*1),)","v":184.10099130854232},{"$f":"_xlfn.XLOOKUP($B63,FeedTables!$C$42:$T$42,FeedTables!$C$44:$T$44,,-1)","v":2.5479057505037064},{"$f":"_xlfn.XLOOKUP($B63,FeedTables!$C$42:$T$42,FeedTables!$C$45:$T$45,,-1)","v":1.4641748046312828},{"$f":"_xlfn.XLOOKUP($B63,FeedTables!$C$42:$T$42,FeedTables!$C$46:$T$46,,-1)*_xlfn.XLOOKUP(N62,DensityMultiplier[Biomass kg/m3],DensityMultiplier[Multiplier],,-1)","v":1.74016500109448},1937.7824448473659,{"$f":"IF(A63<='S1-Standard'!$C$7,('Growth-Model-1'!G62*EXP($AA$7)),0)","v":1.2905706033694742E-3},{"$f":"IF(A63<='S1-Standard'!$C$7,$AD$6*EXP($AD$7*('S1-Standard'!C$7-'Growth-Model-1'!A63)),0)","v":5.0716456539634248E-7},87.218846230402093,4.3071035175507207E-2,0.2376886969332298,4.3365393883931249,356.74766903669081,{"$f":"M63/'S1-Standard'!$C$17","v":13.212876630988548},9.0895943741737746,395.31904351520393,{"$f":"_xlfn.XLOOKUP(B63,FeedTables!$C$17:$T$17,FeedTables!$C$31:$T$31,,-1)","v":"Unga 4mm"},{"$f":"_xlfn.XLOOKUP(Q63,FeedPrice[Feed],FeedPrice[Price per kg],\"Unknown\",0)*O63","v":902.87031814611851},40357.3157226525,{"$f":"_xlfn.XLOOKUP(O63,LabourFromFeed[Feed Quantity (kg)],LabourFromFeed[No. Labour],\"Out of range\",-1)","v":1},{"$f":"T63*OperatingCosts!$C$9","v":1200},74400]
[62,{"$f":"IF(A64<='S1-Standard'!$C$7, B63*EXP((LN((E63/100)+1))*1),)","v":187.30465232596157},{"$f":"_xlfn.XLOOKUP($B64,FeedTables!$C$42:$T$42,FeedTables!$C$44:$T$44,,-1)","v":2.5479057505037064},{"$f":"_xlfn.XLOOKUP($B64,FeedTables!$C$42:$T$42,FeedTables!$C$45:$T$45,,-1)","v":1.4641748046312828},{"$f":"_xlfn.XLOOKUP($B64,FeedTables!$C$42:$T$42,FeedTables!$C$46:$T$46,,-1)*_xlfn.XLOOKUP(N63,DensityMultiplier[Biomass kg/m3],DensityMultiplier[Multiplier],,-1)","v":1.74016500109448},1937.7811537695982,{"$f":"IF(A64<='S1-Standard'!$C$7,('Growth-Model-1'!G63*EXP($AA$7)),0)","v":1.1108044124598061E-3},{"$f":"IF(A64<='S1-Standard'!$C$7,$AD$6*EXP($AD$7*('S1-Standard'!C$7-'Growth-Model-1'!A64)),0)","v":6.1945219901619716E-7},87.21995765426675,4.3071584026798393E-2,0.20817486055669726,4.3367475632536818,362.95542529061527,{"$f":"M64/'S1-Standard'!$C$17","v":13.442793529282048},9.2477621527447695,404.5668056679487,{"$f":"_xlfn.XLOOKUP(B64,FeedTables!$C$17:$T$17,FeedTables!$C$31:$T$31,,-1)","v":"Unga 4mm"},{"$f":"_xlfn.XLOOKUP(Q64,FeedPrice[Feed],FeedPrice[Price per kg],\"Unknown\",0)*O64","v":918.58113940835324},41275.89686206085,{"$f":"_xlfn.XLOOKUP(O64,LabourFromFeed[Feed Quantity (kg)],LabourFromFeed[No. Labour],\"Out of range\",-1)","v":1},{"$f":"T64*OperatingCosts!$C$9","v":1200},75600]
[63,{"$f":"IF(A65<='S1-Standard'!$C$7, B64*EXP((LN((E64/100)+1))*1),)","v":190.56406233115965},{"$f":"_xlfn.XLOOKUP($B65,FeedTables!$C$42:$T$42,FeedTables!$C$44:$T$44,,-1)","v":2.5479057505037064},{"$f":"_xlfn.XLOOKUP($B65,FeedTables!$C$42:$T$42,FeedTables!$C$45:$T$45,,-1)","v":1.4641748046312828},{"$f":"_xlfn.XLOOKUP($B65,FeedTables!$C$42:$T$42,FeedTables!$C$46:$T$46,,-1)*_xlfn.XLOOKUP(N64,DensityMultiplier[Biomass kg/m3],DensityMultiplier[Multiplier],,-1)","v":1.74016500109448},1937.7800423457334,{"$f":"IF(A65<='S1-Standard'!$C$7,('Growth-Model-1'!G64*EXP($AA$7)),0)","v":9.5607821805230491E-4},{"$f":"IF(A65<='S1-Standard'!$C$7,$AD$6*EXP($AD$7*('S1-Standard'!C$7-'Growth-Model-1'!A65)),0)","v":7.5660062442676519E-7},87.22091448908543,4.3072056537819967E-2,0.18233833002693653,4.3369299015837086,369.27123677364955,{"$f":"M65/'S1-Standard'!$C$17","v":13.676712473098132},9.4086830767119736,413.97548874466065,{"$f":"_xlfn.XLOOKUP(B65,FeedTables!$C$17:$T$17,FeedTables!$C$31:$T$31,,-1)","v":"Unga 4mm"},{"$f":"_xlfn.XLOOKUP(Q65,FeedPrice[Feed],FeedPrice[Price per kg],\"Unknown\",0)*O65","v":934.56543087810803},42210.462292938959,{"$f":"_xlfn.XLOOKUP(O65,LabourFromFeed[Feed Quantity (kg)],LabourFromFeed[No. Labour],\"Out of range\",-1)","v":1},{"$f":"T65*OperatingCosts!$C$9","v":1200},76800]
[64,{"$f":"IF(A66<='S1-Standard'!$C$7, B65*EXP((LN((E65/100)+1))*1),)","v":193.88019144851037},{"$f":"_xlfn.XLOOKUP($B66,FeedTables!$C$42:$T$42,FeedTables!$C$44:$T$44,,-1)","v":2.5479057505037064},{"$f":"_xlfn.XLOOKUP($B66,FeedTables!$C$42:$T$42,FeedTables!$C$45:$T$45,,-1)","v":1.4641748046312828},{"$f":"_xlfn.XLOOKUP($B66,FeedTables!$C$42:$T$42,FeedTables!$C$46:$T$46,,-1)*_xlfn.XLOOKUP(N65,DensityMultiplier[Biomass kg/m3],DensityMultiplier[Multiplier],,-1)","v":1.74016500109448},1937.7790855109147,{"$f":"IF(A66<='S1-Standard'!$C$7,('Growth-Model-1'!G65*EXP($AA$7)),0)","v":8.2290414836387452E-4},{"$f":"IF(A66<='S1-Standard'!$C$7,$AD$6*EXP($AD$7*('S1-Standard'!C$7-'Growth-Model-1'!A66)),0)","v":9.2411408950055713E-7},87.221738317347885,4.3072463366591547E-2,0.15972398124515402,4.3370896255649534,{"$f":"(B66*F66)/1000","v":375.69698008377549},{"$f":"M66/'S1-Standard'!$C$17","v":13.914702966065759},{"$f":"M66*(C66/100)","v":9.5724049600232792},423.54789370468393,{"$f":"_xlfn.XLOOKUP(B66,FeedTables!$C$17:$T$17,FeedTables!$C$31:$T$31,,-1)","v":"Unga 4mm"},{"$f":"_xlfn.XLOOKUP(Q66,FeedPrice[Feed],FeedPrice[Price per kg],\"Unknown\",0)*O66","v":950.82794191960829},43161.29023485857,{"$f":"_xlfn.XLOOKUP(O66,LabourFromFeed[Feed Quantity (kg)],LabourFromFeed[No. Labour],\"Out of range\",-1)","v":1},{"$f":"T66*OperatingCosts!$C$9","v":1200},78000]
[65,{"$f":"IF(A67<='S1-Standard'!$C$7, B66*EXP((LN((E66/100)+1))*1),)","v":197.25402668415234},{"$f":"_xlfn.XLOOKUP($B67,FeedTables!$C$42:$T$42,FeedTables!$C$44:$T$44,,-1)","v":2.5479057505037064},{"$f":"_xlfn.XLOOKUP($B67,FeedTables!$C$42:$T$42,FeedTables!$C$45:$T$45,,-1)","v":1.4641748046312828},{"$f":"_xlfn.XLOOKUP($B67,FeedTables!$C$42:$T$42,FeedTables!$C$46:$T$46,,-1)*_xlfn.XLOOKUP(N66,DensityMultiplier[Biomass kg/m3],DensityMultiplier[Multiplier],,-1)","v":1.74016500109448},1937.7782616826521,{"$f":"IF(A67<='S1-Standard'!$C$7,('Growth-Model-1'!G66*EXP($AA$7)),0)","v":7.0828016433005601E-4},{"$f":"IF(A67<='S1-Standard'!$C$7,$AD$6*EXP($AD$7*('S1-Standard'!C$7-'Growth-Model-1'!A67)),0)","v":1.1287154977706557E-6},87.222447726227713,{"$f":"I67/$F$2","v":4.30728136919643E-2},{"$f":"(G67+H67)*B67","v":0.13993375811153272},4.337229559323065,382.2345649379202,{"$f":"M67/'S1-Standard'!$C$17","v":14.156835738441488},9.7389764604660929,433.28687016515005,{"$f":"_xlfn.XLOOKUP(B67,FeedTables!$C$17:$T$17,FeedTables!$C$31:$T$31,,-1)","v":"Unga 4mm"},{"$f":"_xlfn.XLOOKUP(Q67,FeedPrice[Feed],FeedPrice[Price per kg],\"Unknown\",0)*O67","v":967.37350571574302},44128.663740574317,{"$f":"_xlfn.XLOOKUP(O67,LabourFromFeed[Feed Quantity (kg)],LabourFromFeed[No. Labour],\"Out of range\",-1)","v":1},{"$f":"T67*OperatingCosts!$C$9","v":1200},79200]
[66,{"$f":"IF(A68<='S1-Standard'!$C$7, B67*EXP((LN((E67/100)+1))*1),)","v":200.68657221975954},{"$f":"_xlfn.XLOOKUP($B68,FeedTables!$C$42:$T$42,FeedTables!$C$44:$T$44,,-1)","v":2.5479057505037064},{"$f":"_xlfn.XLOOKUP($B68,FeedTables!$C$42:$T$42,FeedTables!$C$45:$T$45,,-1)","v":1.4641748046312828},{"$f":"_xlfn.XLOOKUP($B68,FeedTables!$C$42:$T$42,FeedTables!$C$46:$T$46,,-1)*_xlfn.XLOOKUP(N67,DensityMultiplier[Biomass kg/m3],DensityMultiplier[Multiplier],,-1)","v":1.74016500109448},1937.7775522737722,{"$f":"IF(A68<='S1-Standard'!$C$7,('Growth-Model-1'!G67*EXP($AA$7)),0)","v":6.0962238698252988E-4},{"$f":"IF(A68<='S1-Standard'!$C$7,$AD$6*EXP($AD$7*('S1-Standard'!C$7-'Growth-Model-1'!A68)),0)","v":1.3786162221552069E-6},{"$f":"I67+G68+H68","v":87.223058727230921},4.3073115420854777E-2,0.12261969695598257,{"$f":"(K68/1000)+L67","v":4.3373521790200211},388.88593469021924,{"$f":"M68/'S1-Standard'!$C$17","v":14.403182766304417},9.9084470928721835,{"$f":"O68+P67","v":443.19531725802221},{"$f":"_xlfn.XLOOKUP(B68,FeedTables!$C$17:$T$17,FeedTables!$C$31:$T$31,,-1)","v":"Unga 4mm"},{"$f":"_xlfn.XLOOKUP(Q68,FeedPrice[Feed],FeedPrice[Price per kg],\"Unknown\",0)*O68","v":984.20704057970329},{"$f":"R68+S67","v":45112.870781154023},{"$f":"_xlfn.XLOOKUP(O68,LabourFromFeed[Feed Quantity (kg)],LabourFromFeed[No. Labour],\"Out of range\",-1)","v":1},{"$f":"T68*OperatingCosts!$C$9","v":1200},{"$f":"U68+V67","v":80400}]
[67,{"$f":"IF(A69<='S1-Standard'!$C$7, B68*EXP((LN((E68/100)+1))*1),)","v":204.17884971142399},{"$f":"_xlfn.XLOOKUP($B69,FeedTables!$C$42:$T$42,FeedTables!$C$44:$T$44,,-1)","v":2.5479057505037064},{"$f":"_xlfn.XLOOKUP($B69,FeedTables!$C$42:$T$42,FeedTables!$C$45:$T$45,,-1)","v":1.4641748046312828},{"$f":"_xlfn.XLOOKUP($B69,FeedTables!$C$42:$T$42,FeedTables!$C$46:$T$46,,-1)*_xlfn.XLOOKUP(N68,DensityMultiplier[Biomass kg/m3],DensityMultiplier[Multiplier],,-1)","v":1.74016500109448},{"$f":"F68-G68-H68","v":1937.7769412727691},{"$f":"IF(A69<='S1-Standard'!$C$7,('Growth-Model-1'!G68*EXP($AA$7)),0)","v":5.2470685108314678E-4},{"$f":"IF(A69<='S1-Standard'!$C$7,$AD$6*EXP($AD$7*('S1-Standard'!C$7-'Growth-Model-1'!A69)),0)","v":1.6838456561847249E-6},87.223585117927655,4.3073375366877852E-2,0.10747784695903174,4.3374596568669803,395.65306686639559,{"$f":"M69/'S1-Standard'!$C$17","v":14.653817291347984},10.080867242733168,453.27618450075539,{"$f":"_xlfn.XLOOKUP(B69,FeedTables!$C$17:$T$17,FeedTables!$C$31:$T$31,,-1)","v":"Unga 4mm"},{"$f":"_xlfn.XLOOKUP(Q69,FeedPrice[Feed],FeedPrice[Price per kg],\"Unknown\",0)*O69","v":1001.3335513074099},46114.204332461435,{"$f":"_xlfn.XLOOKUP(O69,LabourFromFeed[Feed Quantity (kg)],LabourFromFeed[No. Labour],\"Out of range\",-1)","v":1},{"$f":"T69*OperatingCosts!$C$9","v":1200},81600]
[68,{"$f":"IF(A70<='S1-Standard'!$C$7, B69*EXP((LN((E69/100)+1))*1),)","v":207.73189859373949},{"$f":"_xlfn.XLOOKUP($B70,FeedTables!$C$42:$T$42,FeedTables!$C$44:$T$44,,-1)","v":2.5479057505037064},{"$f":"_xlfn.XLOOKUP($B70,FeedTables!$C$42:$T$42,FeedTables!$C$45:$T$45,,-1)","v":1.4641748046312828},{"$f":"_xlfn.XLOOKUP($B70,FeedTables!$C$42:$T$42,FeedTables!$C$46:$T$46,,-1)*_xlfn.XLOOKUP(N69,DensityMultiplier[Biomass kg/m3],DensityMultiplier[Multiplier],,-1)","v":1.74016500109448},1937.7764148820722,{"$f":"IF(A70<='S1-Standard'!$C$7,('Growth-Model-1'!G69*EXP($AA$7)),0)","v":4.5161937201213941E-4},{"$f":"IF(A70<='S1-Standard'!$C$7,$AD$6*EXP($AD$7*('S1-Standard'!C$7-'Growth-Model-1'!A70)),0)","v":2.0566537287800428E-6},87.224038793953397,4.3073599404421431E-2,9.4242982173623424E-2,4.3375538998491541,402.53797371362265,{"$f":"M70/'S1-Standard'!$C$17","v":14.908813841245284},10.25628818021049,463.5324726809659,{"$f":"_xlfn.XLOOKUP(B70,FeedTables!$C$17:$T$17,FeedTables!$C$31:$T$31,,-1)","v":"Unga 4mm"},{"$f":"_xlfn.XLOOKUP(Q70,FeedPrice[Feed],FeedPrice[Price per kg],\"Unknown\",0)*O70","v":1018.758130569126},47132.962463030563,{"$f":"_xlfn.XLOOKUP(O70,LabourFromFeed[Feed Quantity (kg)],LabourFromFeed[No. Labour],\"Out of range\",-1)","v":1},{"$f":"T70*OperatingCosts!$C$9","v":1200},82800]
[69,{"$f":"IF(A71<='S1-Standard'!$C$7, B70*EXP((LN((E70/100)+1))*1),)","v":211.34677638917682},{"$f":"_xlfn.XLOOKUP($B71,FeedTables!$C$42:$T$42,FeedTables!$C$44:$T$44,,-1)","v":2.5479057505037064},{"$f":"_xlfn.XLOOKUP($B71,FeedTables!$C$42:$T$42,FeedTables!$C$45:$T$45,,-1)","v":1.4641748046312828},{"$f":"_xlfn.XLOOKUP($B71,FeedTables!$C$42:$T$42,FeedTables!$C$46:$T$46,,-1)*_xlfn.XLOOKUP(N70,DensityMultiplier[Biomass kg/m3],DensityMultiplier[Multiplier],,-1)","v":1.74016500109448},1937.7759612060465,{"$f":"IF(A71<='S1-Standard'!$C$7,('Growth-Model-1'!G70*EXP($AA$7)),0)","v":3.887123957989239E-4},{"$f":"IF(A71<='S1-Standard'!$C$7,$AD$6*EXP($AD$7*('S1-Standard'!C$7-'Growth-Model-1'!A71)),0)","v":2.5120025369123402E-6},87.22443001835174,4.3073792601655177E-2,8.2684015433074229E-2,4.3376365838645867,409.54270276533651,{"$f":"M71/'S1-Standard'!$C$17","v":15.16824825056802},10.434762074526311,473.9672347554922,{"$f":"_xlfn.XLOOKUP(B71,FeedTables!$C$17:$T$17,FeedTables!$C$31:$T$31,,-1)","v":"Unga 4mm"},{"$f":"_xlfn.XLOOKUP(Q71,FeedPrice[Feed],FeedPrice[Price per kg],\"Unknown\",0)*O71","v":1036.4859603389059},48169.448423369467,{"$f":"_xlfn.XLOOKUP(O71,LabourFromFeed[Feed Quantity (kg)],LabourFromFeed[No. Labour],\"Out of range\",-1)","v":1},{"$f":"T71*OperatingCosts!$C$9","v":1200},84000]
[70,{"$f":"IF(A72<='S1-Standard'!$C$7, B71*EXP((LN((E71/100)+1))*1),)","v":215.02455902284271},{"$f":"_xlfn.XLOOKUP($B72,FeedTables!$C$42:$T$42,FeedTables!$C$44:$T$44,,-1)","v":2.5479057505037064},{"$f":"_xlfn.XLOOKUP($B72,FeedTables!$C$42:$T$42,FeedTables!$C$45:$T$45,,-1)","v":1.4641748046312828},{"$f":"_xlfn.XLOOKUP($B72,FeedTables!$C$42:$T$42,FeedTables!$C$46:$T$46,,-1)*_xlfn.XLOOKUP(N71,DensityMultiplier[Biomass kg/m3],DensityMultiplier[Multiplier],,-1)","v":1.74016500109448},1937.7755699816482,{"$f":"IF(A72<='S1-Standard'!$C$7,('Growth-Model-1'!G71*EXP($AA$7)),0)","v":3.345678595994279E-4},{"$f":"IF(A72<='S1-Standard'!$C$7,$AD$6*EXP($AD$7*('S1-Standard'!C$7-'Growth-Model-1'!A72)),0)","v":3.0681668270900792E-6},87.224767654378169,4.307395933549539E-2,7.2600037692586897E-2,4.3377091839022794,416.66933742054164,{"$f":"M72/'S1-Standard'!$C$17","v":15.432197682242283},10.616342008723672,484.58357676421588,{"$f":"_xlfn.XLOOKUP(B72,FeedTables!$C$17:$T$17,FeedTables!$C$31:$T$31,,-1)","v":"Unga 4mm"},{"$f":"_xlfn.XLOOKUP(Q72,FeedPrice[Feed],FeedPrice[Price per kg],\"Unknown\",0)*O72","v":1054.5223133607233},49223.970736730189,{"$f":"_xlfn.XLOOKUP(O72,LabourFromFeed[Feed Quantity (kg)],LabourFromFeed[No. Labour],\"Out of range\",-1)","v":1},{"$f":"T72*OperatingCosts!$C$9","v":1200},85200]
[71,{"$f":"IF(A73<='S1-Standard'!$C$7, B72*EXP((LN((E72/100)+1))*1),)","v":218.76634114271596},{"$f":"_xlfn.XLOOKUP($B73,FeedTables!$C$42:$T$42,FeedTables!$C$44:$T$44,,-1)","v":2.5479057505037064},{"$f":"_xlfn.XLOOKUP($B73,FeedTables!$C$42:$T$42,FeedTables!$C$45:$T$45,,-1)","v":1.4641748046312828},{"$f":"_xlfn.XLOOKUP($B73,FeedTables!$C$42:$T$42,FeedTables!$C$46:$T$46,,-1)*_xlfn.XLOOKUP(N72,DensityMultiplier[Biomass kg/m3],DensityMultiplier[Multiplier],,-1)","v":1.74016500109448},1937.7752323456218,{"$f":"IF(A73<='S1-Standard'!$C$7,('Growth-Model-1'!G72*EXP($AA$7)),0)","v":2.8796522541268645E-4},{"$f":"IF(A73<='S1-Standard'!$C$7,$AD$6*EXP($AD$7*('S1-Standard'!C$7-'Growth-Model-1'!A73)),0)","v":3.7474674251033571E-6},87.225059367071012,4.307410339114618E-2,6.3816918477012236E-2,4.3377730008207562,423.91999753722797,{"$f":"M73/'S1-Standard'!$C$17","v":15.700740649526962},10.801081994786202,495.38465875900209,{"$f":"_xlfn.XLOOKUP(B73,FeedTables!$C$17:$T$17,FeedTables!$C$31:$T$31,,-1)","v":"Unga 4mm"},{"$f":"_xlfn.XLOOKUP(Q73,FeedPrice[Feed],FeedPrice[Price per kg],\"Unknown\",0)*O73","v":1072.8725546503128},50296.843291380501,{"$f":"_xlfn.XLOOKUP(O73,LabourFromFeed[Feed Quantity (kg)],LabourFromFeed[No. Labour],\"Out of range\",-1)","v":1},{"$f":"T73*OperatingCosts!$C$9","v":1200},86400]
[72,{"$f":"IF(A74<='S1-Standard'!$C$7, B73*EXP((LN((E73/100)+1))*1),)","v":222.57323644545647},{"$f":"_xlfn.XLOOKUP($B74,FeedTables!$C$42:$T$42,FeedTables!$C$44:$T$44,,-1)","v":2.5479057505037064},{"$f":"_xlfn.XLOOKUP($B74,FeedTables!$C$42:$T$42,FeedTables!$C$45:$T$45,,-1)","v":1.4641748046312828},{"$f":"_xlfn.XLOOKUP($B74,FeedTables!$C$42:$T$42,FeedTables!$C$46:$T$46,,-1)*_xlfn.XLOOKUP(N73,DensityMultiplier[Biomass kg/m3],DensityMultiplier[Multiplier],,-1)","v":1.74016500109448},1937.774940632929,{"$f":"IF(A74<='S1-Standard'!$C$7,('Growth-Model-1'!G73*EXP($AA$7)),0)","v":2.47853966445739E-4},{"$f":"IF(A74<='S1-Standard'!$C$7,$AD$6*EXP($AD$7*('S1-Standard'!C$7-'Growth-Model-1'!A74)),0)","v":4.5771670491366342E-6},87.225311798204501,4.3074228048496047E-2,5.6184414361549542E-2,4.3378291852351181,431.29684003957328,{"$f":"M74/'S1-Standard'!$C$17","v":15.973957038502714},10.98903698910906,506.37369574811117,{"$f":"_xlfn.XLOOKUP(B74,FeedTables!$C$17:$T$17,FeedTables!$C$31:$T$31,,-1)","v":"Unga 4mm"},{"$f":"_xlfn.XLOOKUP(Q74,FeedPrice[Feed],FeedPrice[Price per kg],\"Unknown\",0)*O74","v":1091.5421430319018},51388.385434412405,{"$f":"_xlfn.XLOOKUP(O74,LabourFromFeed[Feed Quantity (kg)],LabourFromFeed[No. Labour],\"Out of range\",-1)","v":1},{"$f":"T74*OperatingCosts!$C$9","v":1200},87600]
[73,{"$f":"IF(A75<='S1-Standard'!$C$7, B74*EXP((LN((E74/100)+1))*1),)","v":226.44637800788357},{"$f":"_xlfn.XLOOKUP($B75,FeedTables!$C$42:$T$42,FeedTables!$C$44:$T$44,,-1)","v":2.5479057505037064},{"$f":"_xlfn.XLOOKUP($B75,FeedTables!$C$42:$T$42,FeedTables!$C$45:$T$45,,-1)","v":1.4641748046312828},{"$f":"_xlfn.XLOOKUP($B75,FeedTables!$C$42:$T$42,FeedTables!$C$46:$T$46,,-1)*_xlfn.XLOOKUP(N74,DensityMultiplier[Biomass kg/m3],DensityMultiplier[Multiplier],,-1)","v":1.74016500109448},1937.7746882017955,{"$f":"IF(A75<='S1-Standard'!$C$7,('Growth-Model-1'!G74*EXP($AA$7)),0)","v":2.1332988590843619E-4},{"$f":"IF(A75<='S1-Standard'!$C$7,$AD$6*EXP($AD$7*('S1-Standard'!C$7-'Growth-Model-1'!A75)),0)","v":5.590564458375327E-6},87.225530718654866,4.3074336157360428E-2,4.9573743057419115E-2,4.3378787589781753,438.80205953865249,{"$f":"M75/'S1-Standard'!$C$17","v":16.251928131061202},11.180262908314024,517.55395865642515,{"$f":"_xlfn.XLOOKUP(B75,FeedTables!$C$17:$T$17,FeedTables!$C$31:$T$31,,-1)","v":"Unga 4mm"},{"$f":"_xlfn.XLOOKUP(Q75,FeedPrice[Feed],FeedPrice[Price per kg],\"Unknown\",0)*O75","v":1110.5366327091228},52498.92206712153,{"$f":"_xlfn.XLOOKUP(O75,LabourFromFeed[Feed Quantity (kg)],LabourFromFeed[No. Labour],\"Out of range\",-1)","v":1},{"$f":"T75*OperatingCosts!$C$9","v":1200},88800]
[74,{"$f":"IF(A76<='S1-Standard'!$C$7, B75*EXP((LN((E75/100)+1))*1),)","v":230.38691862422289},{"$f":"_xlfn.XLOOKUP($B76,FeedTables!$C$42:$T$42,FeedTables!$C$44:$T$44,,-1)","v":2.209351174006021},{"$f":"_xlfn.XLOOKUP($B76,FeedTables!$C$42:$T$42,FeedTables!$C$45:$T$45,,-1)","v":1.5019599136153996},{"$f":"_xlfn.XLOOKUP($B76,FeedTables!$C$42:$T$42,FeedTables!$C$46:$T$46,,-1)*_xlfn.XLOOKUP(N75,DensityMultiplier[Biomass kg/m3],DensityMultiplier[Multiplier],,-1)","v":1.4709787884337371},1937.7744692813451,{"$f":"IF(A76<='S1-Standard'!$C$7,('Growth-Model-1'!G75*EXP($AA$7)),0)","v":1.8361473441123858E-4},{"$f":"IF(A76<='S1-Standard'!$C$7,$AD$6*EXP($AD$7*('S1-Standard'!C$7-'Growth-Model-1'!A76)),0)","v":6.8283308491318363E-6},87.225721161720131,4.3074430203318581E-2,4.3875590978688532E-2,4.3379226345691544,446.43788896641792,{"$f":"M76/'S1-Standard'!$C$17","v":16.534736628385847},9.8633807410872514,527.41733939751236,{"$f":"_xlfn.XLOOKUP(B76,FeedTables!$C$17:$T$17,FeedTables!$C$31:$T$31,,-1)","v":"Unga 4mm"},{"$f":"_xlfn.XLOOKUP(Q76,FeedPrice[Feed],FeedPrice[Price per kg],\"Unknown\",0)*O76","v":979.73059535027085},53478.652662471803,{"$f":"_xlfn.XLOOKUP(O76,LabourFromFeed[Feed Quantity (kg)],LabourFromFeed[No. Labour],\"Out of range\",-1)","v":1},{"$f":"T76*OperatingCosts!$C$9","v":1200},90000]
[75,{"$f":"IF(A77<='S1-Standard'!$C$7, B76*EXP((LN((E76/100)+1))*1),)","v":233.7758613285113},{"$f":"_xlfn.XLOOKUP($B77,FeedTables!$C$42:$T$42,FeedTables!$C$44:$T$44,,-1)","v":2.209351174006021},{"$f":"_xlfn.XLOOKUP($B77,FeedTables!$C$42:$T$42,FeedTables!$C$45:$T$45,,-1)","v":1.5019599136153996},{"$f":"_xlfn.XLOOKUP($B77,FeedTables!$C$42:$T$42,FeedTables!$C$46:$T$46,,-1)*_xlfn.XLOOKUP(N76,DensityMultiplier[Biomass kg/m3],DensityMultiplier[Multiplier],,-1)","v":1.4709787884337371},1937.7742788382798,{"$f":"IF(A77<='S1-Standard'!$C$7,('Growth-Model-1'!G76*EXP($AA$7)),0)","v":1.5803866649692158E-4},{"$f":"IF(A77<='S1-Standard'!$C$7,$AD$6*EXP($AD$7*('S1-Standard'!C$7-'Growth-Model-1'!A77)),0)","v":8.3401421327598088E-6},87.22588754052876,4.3074512365693214E-2,3.8895349294215321E-2,4.3379615299184486,453.00485109565363,{"$f":"M77/'S1-Standard'!$C$17","v":16.777957447987173},10.008467995986051,537.42580739349842,{"$f":"_xlfn.XLOOKUP(B77,FeedTables!$C$17:$T$17,FeedTables!$C$31:$T$31,,-1)","v":"Unga 4mm"},{"$f":"_xlfn.XLOOKUP(Q77,FeedPrice[Feed],FeedPrice[Price per kg],\"Unknown\",0)*O77","v":994.14212688809403},54472.794789359898,{"$f":"_xlfn.XLOOKUP(O77,LabourFromFeed[Feed Quantity (kg)],LabourFromFeed[No. Labour],\"Out of range\",-1)","v":1},{"$f":"T77*OperatingCosts!$C$9","v":1200},91200]
[76,{"$f":"IF(A78<='S1-Standard'!$C$7, B77*EXP((LN((E77/100)+1))*1),)","v":237.21465466113199},{"$f":"_xlfn.XLOOKUP($B78,FeedTables!$C$42:$T$42,FeedTables!$C$44:$T$44,,-1)","v":2.209351174006021},{"$f":"_xlfn.XLOOKUP($B78,FeedTables!$C$42:$T$42,FeedTables!$C$45:$T$45,,-1)","v":1.5019599136153996},{"$f":"_xlfn.XLOOKUP($B78,FeedTables!$C$42:$T$42,FeedTables!$C$46:$T$46,,-1)*_xlfn.XLOOKUP(N77,DensityMultiplier[Biomass kg/m3],DensityMultiplier[Multiplier],,-1)","v":1.4709787884337371},1937.7741124594711,{"$f":"IF(A78<='S1-Standard'!$C$7,('Growth-Model-1'!G77*EXP($AA$7)),0)","v":1.3602514083747996E-4},{"$f":"IF(A78<='S1-Standard'!$C$7,$AD$6*EXP($AD$7*('S1-Standard'!C$7-'Growth-Model-1'!A78)),0)","v":1.0186672604400663E-5},87.226033752342204,4.3074584569057876E-2,3.4683584832993566E-2,4.3379962135032812,459.66841689835502,{"$f":"M78/'S1-Standard'!$C$17","v":17.024756181420557},10.155689565278697,547.58149695877717,{"$f":"_xlfn.XLOOKUP(B78,FeedTables!$C$17:$T$17,FeedTables!$C$31:$T$31,,-1)","v":"Unga 4mm"},{"$f":"_xlfn.XLOOKUP(Q78,FeedPrice[Feed],FeedPrice[Price per kg],\"Unknown\",0)*O78","v":1008.7656600880896},55481.560449447985,{"$f":"_xlfn.XLOOKUP(O78,LabourFromFeed[Feed Quantity (kg)],LabourFromFeed[No. Labour],\"Out of range\",-1)","v":1},{"$f":"T78*OperatingCosts!$C$9","v":1200},92400]
[77,{"$f":"IF(A79<='S1-Standard'!$C$7, B78*EXP((LN((E78/100)+1))*1),)","v":240.70403191425359},{"$f":"_xlfn.XLOOKUP($B79,FeedTables!$C$42:$T$42,FeedTables!$C$44:$T$44,,-1)","v":2.209351174006021},{"$f":"_xlfn.XLOOKUP($B79,FeedTables!$C$42:$T$42,FeedTables!$C$45:$T$45,,-1)","v":1.5019599136153996},{"$f":"_xlfn.XLOOKUP($B79,FeedTables!$C$42:$T$42,FeedTables!$C$46:$T$46,,-1)*_xlfn.XLOOKUP(N78,DensityMultiplier[Biomass kg/m3],DensityMultiplier[Multiplier],,-1)","v":1.4709787884337371},1937.7739662476577,{"$f":"IF(A79<='S1-Standard'!$C$7,('Growth-Model-1'!G78*EXP($AA$7)),0)","v":1.1707792371316087E-4},{"$f":"IF(A79<='S1-Standard'!$C$7,$AD$6*EXP($AD$7*('S1-Standard'!C$7-'Growth-Model-1'!A79)),0)","v":1.2442030015489625E-5},87.226163272295935,4.3074648529528858E-2,3.117597507583374E-2,4.3380273894783574,466.4300066142859,{"$f":"M79/'S1-Standard'!$C$17","v":17.275185430158736},10.305076827049087,557.88657378582627,{"$f":"_xlfn.XLOOKUP(B79,FeedTables!$C$17:$T$17,FeedTables!$C$31:$T$31,,-1)","v":"Unga 4mm"},{"$f":"_xlfn.XLOOKUP(Q79,FeedPrice[Feed],FeedPrice[Price per kg],\"Unknown\",0)*O79","v":1023.6043117384685},56505.164761186454,{"$f":"_xlfn.XLOOKUP(O79,LabourFromFeed[Feed Quantity (kg)],LabourFromFeed[No. Labour],\"Out of range\",-1)","v":1},{"$f":"T79*OperatingCosts!$C$9","v":1200},93600]
[78,{"$f":"IF(A80<='S1-Standard'!$C$7, B79*EXP((LN((E79/100)+1))*1),)","v":244.24473716661706},{"$f":"_xlfn.XLOOKUP($B80,FeedTables!$C$42:$T$42,FeedTables!$C$44:$T$44,,-1)","v":2.209351174006021},{"$f":"_xlfn.XLOOKUP($B80,FeedTables!$C$42:$T$42,FeedTables!$C$45:$T$45,,-1)","v":1.5019599136153996},{"$f":"_xlfn.XLOOKUP($B80,FeedTables!$C$42:$T$42,FeedTables!$C$46:$T$46,,-1)*_xlfn.XLOOKUP(N79,DensityMultiplier[Biomass kg/m3],DensityMultiplier[Multiplier],,-1)","v":1.4709787884337371},1937.7738367277038,{"$f":"IF(A80<='S1-Standard'!$C$7,('Growth-Model-1'!G79*EXP($AA$7)),0)","v":1.0076990280320199E-4},{"$f":"IF(A80<='S1-Standard'!$C$7,$AD$6*EXP($AD$7*('S1-Standard'!C$7-'Growth-Model-1'!A80)),0)","v":1.5196729778030637E-5},87.226279238928512,4.3074705797001733E-2,2.8324239694900815E-2,4.3380557137180524,473.29106143990515,{"$f":"M80/'S1-Standard'!$C$17","v":17.52929857184834},10.456661622388102,568.34323540821435,{"$f":"_xlfn.XLOOKUP(B80,FeedTables!$C$17:$T$17,FeedTables!$C$31:$T$31,,-1)","v":"Unga 4mm"},{"$f":"_xlfn.XLOOKUP(Q80,FeedPrice[Feed],FeedPrice[Price per kg],\"Unknown\",0)*O80","v":1038.6612446179724},57543.826005804425,{"$f":"_xlfn.XLOOKUP(O80,LabourFromFeed[Feed Quantity (kg)],LabourFromFeed[No. Labour],\"Out of range\",-1)","v":1},{"$f":"T80*OperatingCosts!$C$9","v":1200},94800]
[79,{"$f":"IF(A81<='S1-Standard'!$C$7, B80*EXP((LN((E80/100)+1))*1),)","v":247.83752544220374},{"$f":"_xlfn.XLOOKUP($B81,FeedTables!$C$42:$T$42,FeedTables!$C$44:$T$44,,-1)","v":2.209351174006021},{"$f":"_xlfn.XLOOKUP($B81,FeedTables!$C$42:$T$42,FeedTables!$C$45:$T$45,,-1)","v":1.5019599136153996},{"$f":"_xlfn.XLOOKUP($B81,FeedTables!$C$42:$T$42,FeedTables!$C$46:$T$46,,-1)*_xlfn.XLOOKUP(N80,DensityMultiplier[Biomass kg/m3],DensityMultiplier[Multiplier],,-1)","v":1.4709787884337371},1937.7737207610714,{"$f":"IF(A81<='S1-Standard'!$C$7,('Growth-Model-1'!G80*EXP($AA$7)),0)","v":8.6733459126293744E-5},{"$f":"IF(A81<='S1-Standard'!$C$7,$AD$6*EXP($AD$7*('S1-Standard'!C$7-'Growth-Model-1'!A81)),0)","v":1.8561327665901394E-5},87.226384533715304,4.3074757794427314E-2,2.609599940054208E-2,4.3380818097174529,480.25304382035586,{"$f":"M81/'S1-Standard'!$C$17","v":17.787149771124291},10.610476261844683,578.95371167005908,{"$f":"_xlfn.XLOOKUP(B81,FeedTables!$C$17:$T$17,FeedTables!$C$31:$T$31,,-1)","v":"Unga 4mm"},{"$f":"_xlfn.XLOOKUP(Q81,FeedPrice[Feed],FeedPrice[Price per kg],\"Unknown\",0)*O81","v":1053.9396681366586},58597.765673941081,{"$f":"_xlfn.XLOOKUP(O81,LabourFromFeed[Feed Quantity (kg)],LabourFromFeed[No. Labour],\"Out of range\",-1)","v":1},{"$f":"T81*OperatingCosts!$C$9","v":1200},96000]
[80,{"$f":"IF(A82<='S1-Standard'!$C$7, B81*EXP((LN((E81/100)+1))*1),)","v":251.48316287123762},{"$f":"_xlfn.XLOOKUP($B82,FeedTables!$C$42:$T$42,FeedTables!$C$44:$T$44,,-1)","v":2.209351174006021},{"$f":"_xlfn.XLOOKUP($B82,FeedTables!$C$42:$T$42,FeedTables!$C$45:$T$45,,-1)","v":1.5019599136153996},{"$f":"_xlfn.XLOOKUP($B82,FeedTables!$C$42:$T$42,FeedTables!$C$46:$T$46,,-1)*_xlfn.XLOOKUP(N81,DensityMultiplier[Biomass kg/m3],DensityMultiplier[Multiplier],,-1)","v":1.4709787884337371},1937.7736154662848,{"$f":"IF(A82<='S1-Standard'!$C$7,('Growth-Model-1'!G81*EXP($AA$7)),0)","v":7.4652180092937744E-5},{"$f":"IF(A82<='S1-Standard'!$C$7,$AD$6*EXP($AD$7*('S1-Standard'!C$7-'Growth-Model-1'!A82)),0)","v":2.2670856806246654E-5},87.226481856752201,4.307480585518627E-2,2.447510513964106E-2,4.3381062848225929,487.31743774589472,{"$f":"M82/'S1-Standard'!$C$17","v":18.048793990588692},10.766553531974987,589.72026520203406,{"$f":"_xlfn.XLOOKUP(B82,FeedTables!$C$17:$T$17,FeedTables!$C$31:$T$31,,-1)","v":"Unga 4mm"},{"$f":"_xlfn.XLOOKUP(Q82,FeedPrice[Feed],FeedPrice[Price per kg],\"Unknown\",0)*O82","v":1069.4428389864286},59667.208512927507,{"$f":"_xlfn.XLOOKUP(O82,LabourFromFeed[Feed Quantity (kg)],LabourFromFeed[No. Labour],\"Out of range\",-1)","v":1},{"$f":"T82*OperatingCosts!$C$9","v":1200},97200]
[81,{"$f":"IF(A83<='S1-Standard'!$C$7, B82*EXP((LN((E82/100)+1))*1),)","v":255.1824268535558},{"$f":"_xlfn.XLOOKUP($B83,FeedTables!$C$42:$T$42,FeedTables!$C$44:$T$44,,-1)","v":2.209351174006021},{"$f":"_xlfn.XLOOKUP($B83,FeedTables!$C$42:$T$42,FeedTables!$C$45:$T$45,,-1)","v":1.5019599136153996},{"$f":"_xlfn.XLOOKUP($B83,FeedTables!$C$42:$T$42,FeedTables!$C$46:$T$46,,-1)*_xlfn.XLOOKUP(N82,DensityMultiplier[Biomass kg/m3],DensityMultiplier[Multiplier],,-1)","v":1.4709787884337371},1937.7735181432479,{"$f":"IF(A83<='S1-Standard'!$C$7,('Growth-Model-1'!G82*EXP($AA$7)),0)","v":6.4253726863511433E-5},{"$f":"IF(A83<='S1-Standard'!$C$7,$AD$6*EXP($AD$7*('S1-Standard'!C$7-'Growth-Model-1'!A83)),0)","v":2.76902470330039E-5},87.226573800726101,4.3074851259617825E-2,2.3462486393472769E-2,4.3381297473089866,494.48574905234682,{"$f":"M83/'S1-Standard'!$C$17","v":18.314287001938769},10.924926701980493,600.6451919040145,{"$f":"_xlfn.XLOOKUP(B83,FeedTables!$C$17:$T$17,FeedTables!$C$31:$T$31,,-1)","v":"Unga 4mm"},{"$f":"_xlfn.XLOOKUP(Q83,FeedPrice[Feed],FeedPrice[Price per kg],\"Unknown\",0)*O83","v":1085.1740618003926},60752.382574727897,{"$f":"_xlfn.XLOOKUP(O83,LabourFromFeed[Feed Quantity (kg)],LabourFromFeed[No. Labour],\"Out of range\",-1)","v":1},{"$f":"T83*OperatingCosts!$C$9","v":1200},98400]
[82,{"$f":"IF(A84<='S1-Standard'!$C$7, B83*EXP((LN((E83/100)+1))*1),)","v":258.93610622438206},{"$f":"_xlfn.XLOOKUP($B84,FeedTables!$C$42:$T$42,FeedTables!$C$44:$T$44,,-1)","v":2.209351174006021},{"$f":"_xlfn.XLOOKUP($B84,FeedTables!$C$42:$T$42,FeedTables!$C$45:$T$45,,-1)","v":1.5019599136153996},{"$f":"_xlfn.XLOOKUP($B84,FeedTables!$C$42:$T$42,FeedTables!$C$46:$T$46,,-1)*_xlfn.XLOOKUP(N83,DensityMultiplier[Biomass kg/m3],DensityMultiplier[Multiplier],,-1)","v":1.4709787884337371},1937.7734261992741,{"$f":"IF(A84<='S1-Standard'!$C$7,('Growth-Model-1'!G83*EXP($AA$7)),0)","v":5.5303695226461302E-5},{"$f":"IF(A84<='S1-Standard'!$C$7,$AD$6*EXP($AD$7*('S1-Standard'!C$7-'Growth-Model-1'!A84)),0)","v":3.3820944100247461E-5},87.226662925365417,4.3074895271785395E-2,2.3077587075910396E-2,4.3381528248960626,501.75950572511999,{"$f":"M84/'S1-Standard'!$C$17","v":18.583685397226667},11.085629530424747,611.73082143443924,{"$f":"_xlfn.XLOOKUP(B84,FeedTables!$C$17:$T$17,FeedTables!$C$31:$T$31,,-1)","v":"Unga 4mm"},{"$f":"_xlfn.XLOOKUP(Q84,FeedPrice[Feed],FeedPrice[Price per kg],\"Unknown\",0)*O84","v":1101.1366898200431},61853.51926454794,{"$f":"_xlfn.XLOOKUP(O84,LabourFromFeed[Feed Quantity (kg)],LabourFromFeed[No. Labour],\"Out of range\",-1)","v":1},{"$f":"T84*OperatingCosts!$C$9","v":1200},99600]
[83,{"$f":"IF(A85<='S1-Standard'!$C$7, B84*EXP((LN((E84/100)+1))*1),)","v":262.74500142253896},{"$f":"_xlfn.XLOOKUP($B85,FeedTables!$C$42:$T$42,FeedTables!$C$44:$T$44,,-1)","v":2.209351174006021},{"$f":"_xlfn.XLOOKUP($B85,FeedTables!$C$42:$T$42,FeedTables!$C$45:$T$45,,-1)","v":1.5019599136153996},{"$f":"_xlfn.XLOOKUP($B85,FeedTables!$C$42:$T$42,FeedTables!$C$46:$T$46,,-1)*_xlfn.XLOOKUP(N84,DensityMultiplier[Biomass kg/m3],DensityMultiplier[Multiplier],,-1)","v":1.4709787884337371},1937.7733370746348,{"$f":"IF(A85<='S1-Standard'!$C$7,('Growth-Model-1'!G84*EXP($AA$7)),0)","v":4.760033160719564E-5},{"$f":"IF(A85<='S1-Standard'!$C$7,$AD$6*EXP($AD$7*('S1-Standard'!C$7-'Growth-Model-1'!A85)),0)","v":4.1308994407623138E-5},87.226751834691441,4.30749391776254E-2,2.3360480990240542E-2,4.3381761853770531,509.140258206233,{"$f":"M85/'S1-Standard'!$C$17","v":18.857046600230852},11.248696272016696,622.97951770645591,{"$f":"_xlfn.XLOOKUP(B85,FeedTables!$C$17:$T$17,FeedTables!$C$31:$T$31,,-1)","v":"Unga 4mm"},{"$f":"_xlfn.XLOOKUP(Q85,FeedPrice[Feed],FeedPrice[Price per kg],\"Unknown\",0)*O85","v":1117.3341255690457},62970.853390116987,{"$f":"_xlfn.XLOOKUP(O85,LabourFromFeed[Feed Quantity (kg)],LabourFromFeed[No. Labour],\"Out of range\",-1)","v":1},{"$f":"T85*OperatingCosts!$C$9","v":1200},100800]
[84,{"$f":"IF(A86<='S1-Standard'!$C$7, B85*EXP((LN((E85/100)+1))*1),)","v":266.60992466113441},{"$f":"_xlfn.XLOOKUP($B86,FeedTables!$C$42:$T$42,FeedTables!$C$44:$T$44,,-1)","v":2.209351174006021},{"$f":"_xlfn.XLOOKUP($B86,FeedTables!$C$42:$T$42,FeedTables!$C$45:$T$45,,-1)","v":1.5019599136153996},{"$f":"_xlfn.XLOOKUP($B86,FeedTables!$C$42:$T$42,FeedTables!$C$46:$T$46,,-1)*_xlfn.XLOOKUP(N85,DensityMultiplier[Biomass kg/m3],DensityMultiplier[Multiplier],,-1)","v":1.4709787884337371},1937.7732481653088,{"$f":"IF(A86<='S1-Standard'!$C$7,('Growth-Model-1'!G85*EXP($AA$7)),0)","v":4.0969985094791079E-5},{"$f":"IF(A86<='S1-Standard'!$C$7,$AD$6*EXP($AD$7*('S1-Standard'!C$7-'Growth-Model-1'!A86)),0)","v":5.0454919706293899E-5},87.226843259596237,4.307498432572654E-2,2.4374786981168652E-2,4.3382005601640339,516.62957970371474,{"$f":"M86/'S1-Standard'!$C$17","v":19.134428877915362},11.414161684446395,634.39367939090232,{"$f":"_xlfn.XLOOKUP(B86,FeedTables!$C$17:$T$17,FeedTables!$C$31:$T$31,,-1)","v":"Unga 4mm"},{"$f":"_xlfn.XLOOKUP(Q86,FeedPrice[Feed],FeedPrice[Price per kg],\"Unknown\",0)*O86","v":1133.7698215322289},64104.623211649217,{"$f":"_xlfn.XLOOKUP(O86,LabourFromFeed[Feed Quantity (kg)],LabourFromFeed[No. Labour],\"Out of range\",-1)","v":1},{"$f":"T86*OperatingCosts!$C$9","v":1200},102000]
[85,{"$f":"IF(A87<='S1-Standard'!$C$7, B86*EXP((LN((E86/100)+1))*1),)","v":270.53170010075888},{"$f":"_xlfn.XLOOKUP($B87,FeedTables!$C$42:$T$42,FeedTables!$C$44:$T$44,,-1)","v":2.209351174006021},{"$f":"_xlfn.XLOOKUP($B87,FeedTables!$C$42:$T$42,FeedTables!$C$45:$T$45,,-1)","v":1.5019599136153996},{"$f":"_xlfn.XLOOKUP($B87,FeedTables!$C$42:$T$42,FeedTables!$C$46:$T$46,,-1)*_xlfn.XLOOKUP(N86,DensityMultiplier[Biomass kg/m3],DensityMultiplier[Multiplier],,-1)","v":1.4709787884337371},1937.7731567404039,{"$f":"IF(A87<='S1-Standard'!$C$7,('Growth-Model-1'!G86*EXP($AA$7)),0)","v":3.5263192965102411E-5},{"$f":"IF(A87<='S1-Standard'!$C$7,$AD$6*EXP($AD$7*('S1-Standard'!C$7-'Growth-Model-1'!A87)),0)","v":6.1625778092017338E-5},87.226940148567294,4.3075032172131995E-2,2.6211538061095826E-2,4.3382267717020948,524.22906650259574,{"$f":"M87/'S1-Standard'!$C$17","v":19.415891351947991},11.582061035255904,645.97574042615827,{"$f":"_xlfn.XLOOKUP(B87,FeedTables!$C$17:$T$17,FeedTables!$C$31:$T$31,,-1)","v":"Unga 4mm"},{"$f":"_xlfn.XLOOKUP(Q87,FeedPrice[Feed],FeedPrice[Price per kg],\"Unknown\",0)*O87","v":1150.4472808380726},65255.070492487292,{"$f":"_xlfn.XLOOKUP(O87,LabourFromFeed[Feed Quantity (kg)],LabourFromFeed[No. Labour],\"Out of range\",-1)","v":1},{"$f":"T87*OperatingCosts!$C$9","v":1200},103200]
[86,{"$f":"IF(A88<='S1-Standard'!$C$7, B87*EXP((LN((E87/100)+1))*1),)","v":274.51116402523024},{"$f":"_xlfn.XLOOKUP($B88,FeedTables!$C$42:$T$42,FeedTables!$C$44:$T$44,,-1)","v":2.209351174006021},{"$f":"_xlfn.XLOOKUP($B88,FeedTables!$C$42:$T$42,FeedTables!$C$45:$T$45,,-1)","v":1.5019599136153996},{"$f":"_xlfn.XLOOKUP($B88,FeedTables!$C$42:$T$42,FeedTables!$C$46:$T$46,,-1)*_xlfn.XLOOKUP(N87,DensityMultiplier[Biomass kg/m3],DensityMultiplier[Multiplier],,-1)","v":1.4709787884337371},1937.7730598514329,{"$f":"IF(A88<='S1-Standard'!$C$7,('Growth-Model-1'!G87*EXP($AA$7)),0)","v":3.035131145927963E-5},{"$f":"IF(A88<='S1-Standard'!$C$7,$AD$6*EXP($AD$7*('S1-Standard'!C$7-'Growth-Model-1'!A88)),0)","v":7.5269895335356501E-5},87.227045769774094,4.307508433075264E-2,2.8994200422945121E-2,4.3382557659025176,531.94033827654903,{"$f":"M88/'S1-Standard'!$C$17","v":19.701494010242556},11.752430108724536,657.72817053488279,{"$f":"_xlfn.XLOOKUP(B88,FeedTables!$C$17:$T$17,FeedTables!$C$31:$T$31,,-1)","v":"Unga 4mm"},{"$f":"_xlfn.XLOOKUP(Q88,FeedPrice[Feed],FeedPrice[Price per kg],\"Unknown\",0)*O88","v":1167.370057942619},66422.440550429907,{"$f":"_xlfn.XLOOKUP(O88,LabourFromFeed[Feed Quantity (kg)],LabourFromFeed[No. Labour],\"Out of range\",-1)","v":1},{"$f":"T88*OperatingCosts!$C$9","v":1200},104400]
[87,{"$f":"IF(A89<='S1-Standard'!$C$7, B88*EXP((LN((E88/100)+1))*1),)","v":278.54916501992392},{"$f":"_xlfn.XLOOKUP($B89,FeedTables!$C$42:$T$42,FeedTables!$C$44:$T$44,,-1)","v":2.209351174006021},{"$f":"_xlfn.XLOOKUP($B89,FeedTables!$C$42:$T$42,FeedTables!$C$45:$T$45,,-1)","v":1.5019599136153996},{"$f":"_xlfn.XLOOKUP($B89,FeedTables!$C$42:$T$42,FeedTables!$C$46:$T$46,,-1)*_xlfn.XLOOKUP(N88,DensityMultiplier[Biomass kg/m3],DensityMultiplier[Multiplier],,-1)","v":1.4709787884337371},1937.7729542302261,{"$f":"IF(A89<='S1-Standard'!$C$7,('Growth-Model-1'!G88*EXP($AA$7)),0)","v":2.6123615867963239E-5},{"$f":"IF(A89<='S1-Standard'!$C$7,$AD$6*EXP($AD$7*('S1-Standard'!C$7-'Growth-Model-1'!A89)),0)","v":9.193485776903182E-5},87.227163828247726,4.3075142631233444E-2,3.2885089255111674E-2,4.3382886509917729,539.76503839902068,{"$f":"M89/'S1-Standard'!$C$17","v":19.991297718482247},11.925305212742813,669.65347574762563,{"$f":"_xlfn.XLOOKUP(B89,FeedTables!$C$17:$T$17,FeedTables!$C$31:$T$31,,-1)","v":"Unga 4mm"},{"$f":"_xlfn.XLOOKUP(Q89,FeedPrice[Feed],FeedPrice[Price per kg],\"Unknown\",0)*O89","v":1184.541759312265},67606.982309742176,{"$f":"_xlfn.XLOOKUP(O89,LabourFromFeed[Feed Quantity (kg)],LabourFromFeed[No. Labour],\"Out of range\",-1)","v":1},{"$f":"T89*OperatingCosts!$C$9","v":1200},105600]
[88,{"$f":"IF(A90<='S1-Standard'!$C$7, B89*EXP((LN((E89/100)+1))*1),)","v":282.64656415272628},{"$f":"_xlfn.XLOOKUP($B90,FeedTables!$C$42:$T$42,FeedTables!$C$44:$T$44,,-1)","v":2.209351174006021},{"$f":"_xlfn.XLOOKUP($B90,FeedTables!$C$42:$T$42,FeedTables!$C$45:$T$45,,-1)","v":1.5019599136153996},{"$f":"_xlfn.XLOOKUP($B90,FeedTables!$C$42:$T$42,FeedTables!$C$46:$T$46,,-1)*_xlfn.XLOOKUP(N89,DensityMultiplier[Biomass kg/m3],DensityMultiplier[Multiplier],,-1)","v":1.4709787884337371},1937.7728361717525,{"$f":"IF(A90<='S1-Standard'!$C$7,('Growth-Model-1'!G89*EXP($AA$7)),0)","v":2.248480455062017E-5},{"$f":"IF(A90<='S1-Standard'!$C$7,$AD$6*EXP($AD$7*('S1-Standard'!C$7-'Growth-Model-1'!A90)),0)","v":1.1228948885015831E-4},87.227298602541126,4.3075209186440061E-2,3.8093490965841484E-2,4.3383267444827389,547.70483425242958,{"$f":"M90/'S1-Standard'!$C$17","v":20.285364231571467},12.100723185643785,681.75419893326944,{"$f":"_xlfn.XLOOKUP(B90,FeedTables!$C$17:$T$17,FeedTables!$C$31:$T$31,,-1)","v":"Unga 4mm"},{"$f":"_xlfn.XLOOKUP(Q90,FeedPrice[Feed],FeedPrice[Price per kg],\"Unknown\",0)*O90","v":1201.9660441023157},68808.948353844491,{"$f":"_xlfn.XLOOKUP(O90,LabourFromFeed[Feed Quantity (kg)],LabourFromFeed[No. Labour],\"Out of range\",-1)","v":1},{"$f":"T90*OperatingCosts!$C$9","v":1200},106800]
[89,{"$f":"IF(A91<='S1-Standard'!$C$7, B90*EXP((LN((E90/100)+1))*1),)","v":286.80423515764966},{"$f":"_xlfn.XLOOKUP($B91,FeedTables!$C$42:$T$42,FeedTables!$C$44:$T$44,,-1)","v":2.209351174006021},{"$f":"_xlfn.XLOOKUP($B91,FeedTables!$C$42:$T$42,FeedTables!$C$45:$T$45,,-1)","v":1.5019599136153996},{"$f":"_xlfn.XLOOKUP($B91,FeedTables!$C$42:$T$42,FeedTables!$C$46:$T$46,,-1)*_xlfn.XLOOKUP(N90,DensityMultiplier[Biomass kg/m3],DensityMultiplier[Multiplier],,-1)","v":1.4709787884337371},1937.7727013974591,{"$f":"IF(A91<='S1-Standard'!$C$7,('Growth-Model-1'!G90*EXP($AA$7)),0)","v":1.9352850625077219E-5},{"$f":"IF(A91<='S1-Standard'!$C$7,$AD$6*EXP($AD$7*('S1-Standard'!C$7-'Growth-Model-1'!A91)),0)","v":1.3715069139397888E-4},87.227455106083141,4.3075286472139825E-2,4.4885878668238469E-2,4.338371630361407,555.76141753367085,{"$f":"M91/'S1-Standard'!$C$17","v":20.583756204950774},12.278721402952662,694.03292033622211,{"$f":"_xlfn.XLOOKUP(B91,FeedTables!$C$17:$T$17,FeedTables!$C$31:$T$31,,-1)","v":"Unga 4mm"},{"$f":"_xlfn.XLOOKUP(Q91,FeedPrice[Feed],FeedPrice[Price per kg],\"Unknown\",0)*O91","v":1219.6466248274282},70028.594978671914,{"$f":"_xlfn.XLOOKUP(O91,LabourFromFeed[Feed Quantity (kg)],LabourFromFeed[No. Labour],\"Out of range\",-1)","v":1},{"$f":"T91*OperatingCosts!$C$9","v":1200},108000]
[90,{"$f":"IF(A92<='S1-Standard'!$C$7, B91*EXP((LN((E91/100)+1))*1),)","v":291.02306462114831},{"$f":"_xlfn.XLOOKUP($B92,FeedTables!$C$42:$T$42,FeedTables!$C$44:$T$44,,-1)","v":2.209351174006021},{"$f":"_xlfn.XLOOKUP($B92,FeedTables!$C$42:$T$42,FeedTables!$C$45:$T$45,,-1)","v":1.5019599136153996},{"$f":"_xlfn.XLOOKUP($B92,FeedTables!$C$42:$T$42,FeedTables!$C$46:$T$46,,-1)*_xlfn.XLOOKUP(N91,DensityMultiplier[Biomass kg/m3],DensityMultiplier[Multiplier],,-1)","v":1.4709787884337371},1937.772544893917,{"$f":"IF(A92<='S1-Standard'!$C$7,('Growth-Model-1'!G91*EXP($AA$7)),0)","v":1.6657152899566628E-5},{"$f":"IF(A92<='S1-Standard'!$C$7,$AD$6*EXP($AD$7*('S1-Standard'!C$7-'Growth-Model-1'!A92)),0)","v":1.6751623275218025E-4},87.227639279468789,4.3075377421959896E-2,5.3598703114024003E-2,4.3384252290645211,563.9365045537495,{"$f":"M92/'S1-Standard'!$C$17","v":20.886537205694427},12.459337784006783,706.49225812022894,{"$f":"_xlfn.XLOOKUP(B92,FeedTables!$C$17:$T$17,FeedTables!$C$31:$T$31,,-1)","v":"Unga 4mm"},{"$f":"_xlfn.XLOOKUP(Q92,FeedPrice[Feed],FeedPrice[Price per kg],\"Unknown\",0)*O92","v":1237.5872680191721},71266.182246691082,{"$f":"_xlfn.XLOOKUP(O92,LabourFromFeed[Feed Quantity (kg)],LabourFromFeed[No. Labour],\"Out of range\",-1)","v":1},{"$f":"T92*OperatingCosts!$C$9","v":1200},109200]
[91,{"$f":"IF(A93<='S1-Standard'!$C$7, B92*EXP((LN((E92/100)+1))*1),)","v":295.30395217117524},{"$f":"_xlfn.XLOOKUP($B93,FeedTables!$C$42:$T$42,FeedTables!$C$44:$T$44,,-1)","v":2.209351174006021},{"$f":"_xlfn.XLOOKUP($B93,FeedTables!$C$42:$T$42,FeedTables!$C$45:$T$45,,-1)","v":1.5019599136153996},{"$f":"_xlfn.XLOOKUP($B93,FeedTables!$C$42:$T$42,FeedTables!$C$46:$T$46,,-1)*_xlfn.XLOOKUP(N92,DensityMultiplier[Biomass kg/m3],DensityMultiplier[Multiplier],,-1)","v":1.4709787884337371},1937.7723607205314,{"$f":"IF(A93<='S1-Standard'!$C$7,('Growth-Model-1'!G92*EXP($AA$7)),0)","v":1.4336944365188775E-5},{"$f":"IF(A93<='S1-Standard'!$C$7,$AD$6*EXP($AD$7*('S1-Standard'!C$7-'Growth-Model-1'!A93)),0)","v":2.0460478872011382E-4},87.22785822120187,4.3075485541334259E-2,6.4654359075296416E-2,4.3384898834235965,572.2318365288412,{"$f":"M93/'S1-Standard'!$C$17","v":21.193771723290414},12.642610798386169,719.1348689186151,{"$f":"_xlfn.XLOOKUP(B93,FeedTables!$C$17:$T$17,FeedTables!$C$31:$T$31,,-1)","v":"Unga 4mm"},{"$f":"_xlfn.XLOOKUP(Q93,FeedPrice[Feed],FeedPrice[Price per kg],\"Unknown\",0)*O93","v":1255.791794864778},72521.974041555863,{"$f":"_xlfn.XLOOKUP(O93,LabourFromFeed[Feed Quantity (kg)],LabourFromFeed[No. Labour],\"Out of range\",-1)","v":1},{"$f":"T93*OperatingCosts!$C$9","v":1200},110400]
[92,{"$f":"IF(A94<='S1-Standard'!$C$7, B93*EXP((LN((E93/100)+1))*1),)","v":299.64781066901975},{"$f":"_xlfn.XLOOKUP($B94,FeedTables!$C$42:$T$42,FeedTables!$C$44:$T$44,,-1)","v":2.209351174006021},{"$f":"_xlfn.XLOOKUP($B94,FeedTables!$C$42:$T$42,FeedTables!$C$45:$T$45,,-1)","v":1.5019599136153996},{"$f":"_xlfn.XLOOKUP($B94,FeedTables!$C$42:$T$42,FeedTables!$C$46:$T$46,,-1)*_xlfn.XLOOKUP(N93,DensityMultiplier[Biomass kg/m3],DensityMultiplier[Multiplier],,-1)","v":1.4709787884337371},1937.7721417787984,{"$f":"IF(A94<='S1-Standard'!$C$7,('Growth-Model-1'!G93*EXP($AA$7)),0)","v":1.2339922372680265E-5},{"$f":"IF(A94<='S1-Standard'!$C$7,$AD$6*EXP($AD$7*('S1-Standard'!C$7-'Growth-Model-1'!A94)),0)","v":2.4990485327552609E-4},87.228120465977526,4.3075615044927171E-2,7.8581072882373301E-2,4.338568464496479,580.6491798594343,{"$f":"M94/'S1-Standard'!$C$17","v":21.505525179979049},12.828579472080744,731.96344839069582,{"$f":"_xlfn.XLOOKUP(B94,FeedTables!$C$17:$T$17,FeedTables!$C$31:$T$31,,-1)","v":"Unga 4mm"},{"$f":"_xlfn.XLOOKUP(Q94,FeedPrice[Feed],FeedPrice[Price per kg],\"Unknown\",0)*O94","v":1274.2640818197276},73796.238123375588,{"$f":"_xlfn.XLOOKUP(O94,LabourFromFeed[Feed Quantity (kg)],LabourFromFeed[No. Labour],\"Out of range\",-1)","v":1},{"$f":"T94*OperatingCosts!$C$9","v":1200},111600]
[93,{"$f":"IF(A95<='S1-Standard'!$C$7, B94*EXP((LN((E94/100)+1))*1),)","v":304.05556640396713},{"$f":"_xlfn.XLOOKUP($B95,FeedTables!$C$42:$T$42,FeedTables!$C$44:$T$44,,-1)","v":1.9117636283850548},{"$f":"_xlfn.XLOOKUP($B95,FeedTables!$C$42:$T$42,FeedTables!$C$45:$T$45,,-1)","v":1.5351728093320252},{"$f":"_xlfn.XLOOKUP($B95,FeedTables!$C$42:$T$42,FeedTables!$C$46:$T$46,,-1)*_xlfn.XLOOKUP(N94,DensityMultiplier[Biomass kg/m3],DensityMultiplier[Multiplier],,-1)","v":1.2453084218035946},1937.7718795340227,{"$f":"IF(A95<='S1-Standard'!$C$7,('Growth-Model-1'!G94*EXP($AA$7)),0)","v":1.0621069614631929E-5},{"$f":"IF(A95<='S1-Standard'!$C$7,$AD$6*EXP($AD$7*('S1-Standard'!C$7-'Growth-Model-1'!A95)),0)","v":3.052344770683399E-4},87.228436321524214,4.3075771022974919E-2,9.6037637148525673E-2,4.3386645021336276,589.19032639339719,{"$f":"M95/'S1-Standard'!$C$17","v":21.821863940496193},11.263926361952157,743.22737475264796,{"$f":"_xlfn.XLOOKUP(B95,FeedTables!$C$17:$T$17,FeedTables!$C$31:$T$31,,-1)","v":"Unga 4mm"},{"$f":"_xlfn.XLOOKUP(Q95,FeedPrice[Feed],FeedPrice[Price per kg],\"Unknown\",0)*O95","v":1118.8469319253441},74915.085055300937,{"$f":"_xlfn.XLOOKUP(O95,LabourFromFeed[Feed Quantity (kg)],LabourFromFeed[No. Labour],\"Out of range\",-1)","v":1},{"$f":"T95*OperatingCosts!$C$9","v":1200},112800]
[94,{"$f":"IF(A96<='S1-Standard'!$C$7, B95*EXP((LN((E95/100)+1))*1),)","v":307.84199597935833},{"$f":"_xlfn.XLOOKUP($B96,FeedTables!$C$42:$T$42,FeedTables!$C$44:$T$44,,-1)","v":1.9117636283850548},{"$f":"_xlfn.XLOOKUP($B96,FeedTables!$C$42:$T$42,FeedTables!$C$45:$T$45,,-1)","v":1.5351728093320252},{"$f":"_xlfn.XLOOKUP($B96,FeedTables!$C$42:$T$42,FeedTables!$C$46:$T$46,,-1)*_xlfn.XLOOKUP(N95,DensityMultiplier[Biomass kg/m3],DensityMultiplier[Multiplier],,-1)","v":1.2453084218035946},1937.771563678476,{"$f":"IF(A96<='S1-Standard'!$C$7,('Growth-Model-1'!G95*EXP($AA$7)),0)","v":9.1416393354795154E-6},{"$f":"IF(A96<='S1-Standard'!$C$7,$AD$6*EXP($AD$7*('S1-Standard'!C$7-'Growth-Model-1'!A96)),0)","v":3.7281423217684786E-4},87.228818277395732,4.3075959643158385E-2,0.11758205786239019,4.3387820841914904,596.52746591482423,{"$f":"M96/'S1-Standard'!$C$17","v":22.093609848697195},11.404195126686664,754.63156987933462,{"$f":"_xlfn.XLOOKUP(B96,FeedTables!$C$17:$T$17,FeedTables!$C$31:$T$31,,-1)","v":"Unga 4mm"},{"$f":"_xlfn.XLOOKUP(Q96,FeedPrice[Feed],FeedPrice[Price per kg],\"Unknown\",0)*O96","v":1132.779842353299},76047.864897654232,{"$f":"_xlfn.XLOOKUP(O96,LabourFromFeed[Feed Quantity (kg)],LabourFromFeed[No. Labour],\"Out of range\",-1)","v":1},{"$f":"T96*OperatingCosts!$C$9","v":1200},114000]
[95,{"$f":"IF(A97<='S1-Standard'!$C$7, B96*EXP((LN((E96/100)+1))*1),)","v":311.67557828113758},{"$f":"_xlfn.XLOOKUP($B97,FeedTables!$C$42:$T$42,FeedTables!$C$44:$T$44,,-1)","v":1.9117636283850548},{"$f":"_xlfn.XLOOKUP($B97,FeedTables!$C$42:$T$42,FeedTables!$C$45:$T$45,,-1)","v":1.5351728093320252},{"$f":"_xlfn.XLOOKUP($B97,FeedTables!$C$42:$T$42,FeedTables!$C$46:$T$46,,-1)*_xlfn.XLOOKUP(N96,DensityMultiplier[Biomass kg/m3],DensityMultiplier[Multiplier],,-1)","v":1.2453084218035946},1937.7711817226045,{"$f":"IF(A97<='S1-Standard'!$C$7,('Growth-Model-1'!G96*EXP($AA$7)),0)","v":7.8682818936482843E-6},{"$f":"IF(A97<='S1-Standard'!$C$7,$AD$6*EXP($AD$7*('S1-Standard'!C$7-'Growth-Model-1'!A97)),0)","v":4.5535633146216758E-4},87.229281502009087,4.3076188396053872E-2,0.14437579924173027,4.3389264599907325,603.95595363991617,{"$f":"M97/'S1-Standard'!$C$17","v":22.368739023700599},11.546210253154021,766.17778013248869,{"$f":"_xlfn.XLOOKUP(B97,FeedTables!$C$17:$T$17,FeedTables!$C$31:$T$31,,-1)","v":"Unga 4mm"},{"$f":"_xlfn.XLOOKUP(Q97,FeedPrice[Feed],FeedPrice[Price per kg],\"Unknown\",0)*O97","v":1146.8862190668142},77194.751116721047,{"$f":"_xlfn.XLOOKUP(O97,LabourFromFeed[Feed Quantity (kg)],LabourFromFeed[No. Labour],\"Out of range\",-1)","v":1},{"$f":"T97*OperatingCosts!$C$9","v":1200},115200]
[96,{"$f":"IF(A98<='S1-Standard'!$C$7, B97*EXP((LN((E97/100)+1))*1),)","v":315.55690050617761},{"$f":"_xlfn.XLOOKUP($B98,FeedTables!$C$42:$T$42,FeedTables!$C$44:$T$44,,-1)","v":1.9117636283850548},{"$f":"_xlfn.XLOOKUP($B98,FeedTables!$C$42:$T$42,FeedTables!$C$45:$T$45,,-1)","v":1.5351728093320252},{"$f":"_xlfn.XLOOKUP($B98,FeedTables!$C$42:$T$42,FeedTables!$C$46:$T$46,,-1)*_xlfn.XLOOKUP(N97,DensityMultiplier[Biomass kg/m3],DensityMultiplier[Multiplier],,-1)","v":1.2453084218035946},1937.7707184979911,{"$f":"IF(A98<='S1-Standard'!$C$7,('Growth-Model-1'!G97*EXP($AA$7)),0)","v":6.7722929866239364E-6},{"$f":"IF(A98<='S1-Standard'!$C$7,$AD$6*EXP($AD$7*('S1-Standard'!C$7-'Growth-Model-1'!A98)),0)","v":5.5617347919358767E-4},87.229844447781275,4.3076466393966062E-2,0.17764142302224437,4.3391041014137546,611.47692182085484,{"$f":"M98/'S1-Standard'!$C$17","v":22.647293400772401},11.689993387339619,777.86777351982835,{"$f":"_xlfn.XLOOKUP(B98,FeedTables!$C$17:$T$17,FeedTables!$C$31:$T$31,,-1)","v":"Unga 4mm"},{"$f":"_xlfn.XLOOKUP(Q98,FeedPrice[Feed],FeedPrice[Price per kg],\"Unknown\",0)*O98","v":1161.1682121637832},78355.919328884833,{"$f":"_xlfn.XLOOKUP(O98,LabourFromFeed[Feed Quantity (kg)],LabourFromFeed[No. Labour],\"Out of range\",-1)","v":1},{"$f":"T98*OperatingCosts!$C$9","v":1200},116400]
[97,{"$f":"IF(A99<='S1-Standard'!$C$7, B98*EXP((LN((E98/100)+1))*1),)","v":319.48655716376345},{"$f":"_xlfn.XLOOKUP($B99,FeedTables!$C$42:$T$42,FeedTables!$C$44:$T$44,,-1)","v":1.9117636283850548},{"$f":"_xlfn.XLOOKUP($B99,FeedTables!$C$42:$T$42,FeedTables!$C$45:$T$45,,-1)","v":1.5351728093320252},{"$f":"_xlfn.XLOOKUP($B99,FeedTables!$C$42:$T$42,FeedTables!$C$46:$T$46,,-1)*_xlfn.XLOOKUP(N98,DensityMultiplier[Biomass kg/m3],DensityMultiplier[Multiplier],,-1)","v":1.2453084218035946},1937.7701555522187,{"$f":"IF(A99<='S1-Standard'!$C$7,('Growth-Model-1'!G98*EXP($AA$7)),0)","v":5.8289665922746991E-6},{"$f":"IF(A99<='S1-Standard'!$C$7,$AD$6*EXP($AD$7*('S1-Standard'!C$7-'Growth-Model-1'!A99)),0)","v":6.7931182150258649E-4},87.230529588569368,4.3076804735095987E-2,0.2188932715608948,4.3393229946853156,619.09151557206872,{"$f":"M99/'S1-Standard'!$C$17","v":22.929315391558102},11.835566421124607,789.7033399409529,{"$f":"_xlfn.XLOOKUP(B99,FeedTables!$C$17:$T$17,FeedTables!$C$31:$T$31,,-1)","v":"Unga 4mm"},{"$f":"_xlfn.XLOOKUP(Q99,FeedPrice[Feed],FeedPrice[Price per kg],\"Unknown\",0)*O99","v":1175.6279961669493},79531.547325051783,{"$f":"_xlfn.XLOOKUP(O99,LabourFromFeed[Feed Quantity (kg)],LabourFromFeed[No. Labour],\"Out of range\",-1)","v":1},{"$f":"T99*OperatingCosts!$C$9","v":1200},117600]
[98,{"$f":"IF(A100<='S1-Standard'!$C$7, B99*EXP((LN((E99/100)+1))*1),)","v":323.46515016665415},{"$f":"_xlfn.XLOOKUP($B100,FeedTables!$C$42:$T$42,FeedTables!$C$44:$T$44,,-1)","v":1.9117636283850548},{"$f":"_xlfn.XLOOKUP($B100,FeedTables!$C$42:$T$42,FeedTables!$C$45:$T$45,,-1)","v":1.5351728093320252},{"$f":"_xlfn.XLOOKUP($B100,FeedTables!$C$42:$T$42,FeedTables!$C$46:$T$46,,-1)*_xlfn.XLOOKUP(N99,DensityMultiplier[Biomass kg/m3],DensityMultiplier[Multiplier],,-1)","v":1.2453084218035946},1937.7694704114306,{"$f":"IF(A100<='S1-Standard'!$C$7,('Growth-Model-1'!G99*EXP($AA$7)),0)","v":5.0170380402860213E-6},{"$f":"IF(A100<='S1-Standard'!$C$7,$AD$6*EXP($AD$7*('S1-Standard'!C$7-'Growth-Model-1'!A100)),0)","v":8.2971333243406751E-4},87.231364318939839,4.3077216947624612E-2,0.27000618463415366,4.3395930008699501,626.80089273499129,{"$f":"M100/'S1-Standard'!$C$17","v":23.214847879073751},11.982951489700385,801.68629143065334,{"$f":"_xlfn.XLOOKUP(B100,FeedTables!$C$17:$T$17,FeedTables!$C$31:$T$31,,-1)","v":"Unga 4mm"},{"$f":"_xlfn.XLOOKUP(Q100,FeedPrice[Feed],FeedPrice[Price per kg],\"Unknown\",0)*O100","v":1190.2677697670883},80721.81509481887,{"$f":"_xlfn.XLOOKUP(O100,LabourFromFeed[Feed Quantity (kg)],LabourFromFeed[No. Labour],\"Out of range\",-1)","v":1},{"$f":"T100*OperatingCosts!$C$9","v":1200},118800]
[99,{"$f":"IF(A101<='S1-Standard'!$C$7, B100*EXP((LN((E100/100)+1))*1),)","v":327.49328892327912},{"$f":"_xlfn.XLOOKUP($B101,FeedTables!$C$42:$T$42,FeedTables!$C$44:$T$44,,-1)","v":1.9117636283850548},{"$f":"_xlfn.XLOOKUP($B101,FeedTables!$C$42:$T$42,FeedTables!$C$45:$T$45,,-1)","v":1.5351728093320252},{"$f":"_xlfn.XLOOKUP($B101,FeedTables!$C$42:$T$42,FeedTables!$C$46:$T$46,,-1)*_xlfn.XLOOKUP(N100,DensityMultiplier[Biomass kg/m3],DensityMultiplier[Multiplier],,-1)","v":1.2453084218035946},1937.76863568106,{"$f":"IF(A101<='S1-Standard'!$C$7,('Growth-Model-1'!G100*EXP($AA$7)),0)","v":4.3182046593021194E-6},{"$f":"IF(A101<='S1-Standard'!$C$7,$AD$6*EXP($AD$7*('S1-Standard'!C$7-'Growth-Model-1'!A101)),0)","v":1.013414152717236E-3},87.232382051297222,4.3077719531504799E-2,0.33330051696088459,4.3399263013869112,634.60622367156577,{"$f":"M101/'S1-Standard'!$C$17","v":23.503934210057992},12.132170967620903,813.81846239827428,{"$f":"_xlfn.XLOOKUP(B101,FeedTables!$C$17:$T$17,FeedTables!$C$31:$T$31,,-1)","v":"Unga 4mm"},{"$f":"_xlfn.XLOOKUP(Q101,FeedPrice[Feed],FeedPrice[Price per kg],\"Unknown\",0)*O101","v":1205.089755430881},81926.904850249746,{"$f":"_xlfn.XLOOKUP(O101,LabourFromFeed[Feed Quantity (kg)],LabourFromFeed[No. Labour],\"Out of range\",-1)","v":1},{"$f":"T101*OperatingCosts!$C$9","v":1200},120000]
[100,{"$f":"IF(A102<='S1-Standard'!$C$7, B101*EXP((LN((E101/100)+1))*1),)","v":331.57159043108231},{"$f":"_xlfn.XLOOKUP($B102,FeedTables!$C$42:$T$42,FeedTables!$C$44:$T$44,,-1)","v":1.9117636283850548},{"$f":"_xlfn.XLOOKUP($B102,FeedTables!$C$42:$T$42,FeedTables!$C$45:$T$45,,-1)","v":1.5351728093320252},{"$f":"_xlfn.XLOOKUP($B102,FeedTables!$C$42:$T$42,FeedTables!$C$46:$T$46,,-1)*_xlfn.XLOOKUP(N101,DensityMultiplier[Biomass kg/m3],DensityMultiplier[Multiplier],,-1)","v":1.2453084218035946},1937.7676179487025,{"$f":"IF(A102<='S1-Standard'!$C$7,('Growth-Model-1'!G101*EXP($AA$7)),0)","v":3.7167131940971832E-6},{"$f":"IF(A102<='S1-Standard'!$C$7,$AD$6*EXP($AD$7*('S1-Standard'!C$7-'Growth-Model-1'!A102)),0)","v":1.2377868412873838E-3},87.233623554851704,4.3078332619679853E-2,0.41164730808526651,4.3403379486949962,642.50869096910117,{"$f":"M102/'S1-Standard'!$C$17","v":23.796618184040785},12.283247463160206,826.10170986143453,{"$f":"_xlfn.XLOOKUP(B102,FeedTables!$C$17:$T$17,FeedTables!$C$31:$T$31,,-1)","v":"Unga 4mm"},{"$f":"_xlfn.XLOOKUP(Q102,FeedPrice[Feed],FeedPrice[Price per kg],\"Unknown\",0)*O102","v":1220.0961988404497},83147.001049090191,{"$f":"_xlfn.XLOOKUP(O102,LabourFromFeed[Feed Quantity (kg)],LabourFromFeed[No. Labour],\"Out of range\",-1)","v":1},{"$f":"T102*OperatingCosts!$C$9","v":1200},121200]
[101,{"$f":"IF(A103<='S1-Standard'!$C$7, B102*EXP((LN((E102/100)+1))*1),)","v":335.70067937102868},{"$f":"_xlfn.XLOOKUP($B103,FeedTables!$C$42:$T$42,FeedTables!$C$44:$T$44,,-1)","v":1.9117636283850548},{"$f":"_xlfn.XLOOKUP($B103,FeedTables!$C$42:$T$42,FeedTables!$C$45:$T$45,,-1)","v":1.5351728093320252},{"$f":"_xlfn.XLOOKUP($B103,FeedTables!$C$42:$T$42,FeedTables!$C$46:$T$46,,-1)*_xlfn.XLOOKUP(N102,DensityMultiplier[Biomass kg/m3],DensityMultiplier[Multiplier],,-1)","v":1.2453084218035946},1937.7663764451481,{"$f":"IF(A103<='S1-Standard'!$C$7,('Growth-Model-1'!G102*EXP($AA$7)),0)","v":3.1990046922436997E-6},{"$f":"IF(A103<='S1-Standard'!$C$7,$AD$6*EXP($AD$7*('S1-Standard'!C$7-'Growth-Model-1'!A103)),0)","v":1.5118362619627754E-3},87.235138590118368,4.307908078524364E-2,0.50859836828715754,4.3408465470632835,650.50948903497272,{"$f":"M103/'S1-Standard'!$C$17","v":24.092944038332323},12.436203810564074,838.53791367199858,{"$f":"_xlfn.XLOOKUP(B103,FeedTables!$C$17:$T$17,FeedTables!$C$31:$T$31,,-1)","v":"Unga 4mm"},{"$f":"_xlfn.XLOOKUP(Q103,FeedPrice[Feed],FeedPrice[Price per kg],\"Unknown\",0)*O103","v":1235.2893681237106},84382.290417213895,{"$f":"_xlfn.XLOOKUP(O103,LabourFromFeed[Feed Quantity (kg)],LabourFromFeed[No. Labour],\"Out of range\",-1)","v":1},{"$f":"T103*OperatingCosts!$C$9","v":1200},122400]
[102,{"$f":"IF(A104<='S1-Standard'!$C$7, B103*EXP((LN((E103/100)+1))*1),)","v":339.88118820328799},{"$f":"_xlfn.XLOOKUP($B104,FeedTables!$C$42:$T$42,FeedTables!$C$44:$T$44,,-1)","v":1.9117636283850548},{"$f":"_xlfn.XLOOKUP($B104,FeedTables!$C$42:$T$42,FeedTables!$C$45:$T$45,,-1)","v":1.5351728093320252},{"$f":"_xlfn.XLOOKUP($B104,FeedTables!$C$42:$T$42,FeedTables!$C$46:$T$46,,-1)*_xlfn.XLOOKUP(N103,DensityMultiplier[Biomass kg/m3],DensityMultiplier[Multiplier],,-1)","v":1.2453084218035946},1937.7648614098816,{"$f":"IF(A104<='S1-Standard'!$C$7,('Growth-Model-1'!G103*EXP($AA$7)),0)","v":2.7534088552353394E-6},{"$f":"IF(A104<='S1-Standard'!$C$7,$AD$6*EXP($AD$7*('S1-Standard'!C$7-'Growth-Model-1'!A104)),0)","v":1.8465609802478954E-3},87.236987904507473,4.307999402691727E-2,0.62854717192980969,4.3414750942352134,658.6098235545702,{"$f":"M104/'S1-Standard'!$C$17","v":24.392956427947045},12.591063059687258,851.12897673168584,{"$f":"_xlfn.XLOOKUP(B104,FeedTables!$C$17:$T$17,FeedTables!$C$31:$T$31,,-1)","v":"Unga 4mm"},{"$f":"_xlfn.XLOOKUP(Q104,FeedPrice[Feed],FeedPrice[Price per kg],\"Unknown\",0)*O104","v":1250.6715528250413},85632.96197003893,{"$f":"_xlfn.XLOOKUP(O104,LabourFromFeed[Feed Quantity (kg)],LabourFromFeed[No. Labour],\"Out of range\",-1)","v":1},{"$f":"T104*OperatingCosts!$C$9","v":1200},123600]
[103,{"$f":"IF(A105<='S1-Standard'!$C$7, B104*EXP((LN((E104/100)+1))*1),)","v":344.11375726410967},{"$f":"_xlfn.XLOOKUP($B105,FeedTables!$C$42:$T$42,FeedTables!$C$44:$T$44,,-1)","v":1.9117636283850548},{"$f":"_xlfn.XLOOKUP($B105,FeedTables!$C$42:$T$42,FeedTables!$C$45:$T$45,,-1)","v":1.5351728093320252},{"$f":"_xlfn.XLOOKUP($B105,FeedTables!$C$42:$T$42,FeedTables!$C$46:$T$46,,-1)*_xlfn.XLOOKUP(N104,DensityMultiplier[Biomass kg/m3],DensityMultiplier[Multiplier],,-1)","v":1.2453084218035946},1937.7630120954925,{"$f":"IF(A105<='S1-Standard'!$C$7,('Growth-Model-1'!G104*EXP($AA$7)),0)","v":2.3698809640604438E-6},{"$f":"IF(A105<='S1-Standard'!$C$7,$AD$6*EXP($AD$7*('S1-Standard'!C$7-'Growth-Model-1'!A105)),0)","v":2.2553946743857248E-3},87.239245669062825,4.3081108972376707E-2,0.7769278441591464,4.3422520220793723,666.81091077959832,{"$f":"M105/'S1-Standard'!$C$17","v":24.696700399244381},12.747848462387479,863.87682519407326,{"$f":"_xlfn.XLOOKUP(B105,FeedTables!$C$17:$T$17,FeedTables!$C$31:$T$31,,-1)","v":"Unga 4mm"},{"$f":"_xlfn.XLOOKUP(Q105,FeedPrice[Feed],FeedPrice[Price per kg],\"Unknown\",0)*O105","v":1266.2450625537945},86899.20703259272,{"$f":"_xlfn.XLOOKUP(O105,LabourFromFeed[Feed Quantity (kg)],LabourFromFeed[No. Labour],\"Out of range\",-1)","v":1},{"$f":"T105*OperatingCosts!$C$9","v":1200},124800]
[104,{"$f":"IF(A106<='S1-Standard'!$C$7, B105*EXP((LN((E105/100)+1))*1),)","v":348.39903486390438},{"$f":"_xlfn.XLOOKUP($B106,FeedTables!$C$42:$T$42,FeedTables!$C$44:$T$44,,-1)","v":1.9117636283850548},{"$f":"_xlfn.XLOOKUP($B106,FeedTables!$C$42:$T$42,FeedTables!$C$45:$T$45,,-1)","v":1.5351728093320252},{"$f":"_xlfn.XLOOKUP($B106,FeedTables!$C$42:$T$42,FeedTables!$C$46:$T$46,,-1)*_xlfn.XLOOKUP(N105,DensityMultiplier[Biomass kg/m3],DensityMultiplier[Multiplier],,-1)","v":1.2453084218035946},1937.7607543309371,{"$f":"IF(A106<='S1-Standard'!$C$7,('Growth-Model-1'!G105*EXP($AA$7)),0)","v":2.0397754489447295E-6},{"$f":"IF(A106<='S1-Standard'!$C$7,$AD$6*EXP($AD$7*('S1-Standard'!C$7-'Growth-Model-1'!A106)),0)","v":2.7547452760344829E-3},87.242002454114314,4.3082470347710775E-2,0.96046125126406512,4.3432124833306363,675.11397660604985,{"$f":"M106/'S1-Standard'!$C$17","v":25.004221355779624},12.906583454898449,876.78340864897166,{"$f":"_xlfn.XLOOKUP(B106,FeedTables!$C$17:$T$17,FeedTables!$C$31:$T$31,,-1)","v":"Unga 4mm"},{"$f":"_xlfn.XLOOKUP(Q106,FeedPrice[Feed],FeedPrice[Price per kg],\"Unknown\",0)*O106","v":1282.0122252334083},88181.219257826131,{"$f":"_xlfn.XLOOKUP(O106,LabourFromFeed[Feed Quantity (kg)],LabourFromFeed[No. Labour],\"Out of range\",-1)","v":1},{"$f":"T106*OperatingCosts!$C$9","v":1200},126000]
[105,{"$f":"IF(A107<='S1-Standard'!$C$7, B106*EXP((LN((E106/100)+1))*1),)","v":352.73767738654703},{"$f":"_xlfn.XLOOKUP($B107,FeedTables!$C$42:$T$42,FeedTables!$C$44:$T$44,,-1)","v":1.9117636283850548},{"$f":"_xlfn.XLOOKUP($B107,FeedTables!$C$42:$T$42,FeedTables!$C$45:$T$45,,-1)","v":1.5351728093320252},{"$f":"_xlfn.XLOOKUP($B107,FeedTables!$C$42:$T$42,FeedTables!$C$46:$T$46,,-1)*_xlfn.XLOOKUP(N106,DensityMultiplier[Biomass kg/m3],DensityMultiplier[Multiplier],,-1)","v":1.2079491691494868},1937.7579975458857,{"$f":"IF(A107<='S1-Standard'!$C$7,('Growth-Model-1'!G106*EXP($AA$7)),0)","v":1.755650999022732E-6},{"$f":"IF(A107<='S1-Standard'!$C$7,$AD$6*EXP($AD$7*('S1-Standard'!C$7-'Growth-Model-1'!A107)),0)","v":3.3646534781772161E-3},87.245368863243485,4.3084132771972095E-2,1.187459337358495,4.3443999426679945,683.52025539154204,{"$f":"M107/'S1-Standard'!$C$17","v":25.315565014501558},13.067291635220137,889.85070028419182,{"$f":"_xlfn.XLOOKUP(B107,FeedTables!$C$17:$T$17,FeedTables!$C$31:$T$31,,-1)","v":"Unga 4mm"},{"$f":"_xlfn.XLOOKUP(Q107,FeedPrice[Feed],FeedPrice[Price per kg],\"Unknown\",0)*O107","v":1297.9753848555797},89479.194642681716,{"$f":"_xlfn.XLOOKUP(O107,LabourFromFeed[Feed Quantity (kg)],LabourFromFeed[No. Labour],\"Out of range\",-1)","v":1},{"$f":"T107*OperatingCosts!$C$9","v":1200},127200]
[106,{"$f":"IF(A108<='S1-Standard'!$C$7, B107*EXP((LN((E107/100)+1))*1),)","v":356.99856922981502},{"$f":"_xlfn.XLOOKUP($B108,FeedTables!$C$42:$T$42,FeedTables!$C$44:$T$44,,-1)","v":1.9117636283850548},{"$f":"_xlfn.XLOOKUP($B108,FeedTables!$C$42:$T$42,FeedTables!$C$45:$T$45,,-1)","v":1.5351728093320252},{"$f":"_xlfn.XLOOKUP($B108,FeedTables!$C$42:$T$42,FeedTables!$C$46:$T$46,,-1)*_xlfn.XLOOKUP(N107,DensityMultiplier[Biomass kg/m3],DensityMultiplier[Multiplier],,-1)","v":1.2079491691494868},1937.7546311367564,{"$f":"IF(A108<='S1-Standard'!$C$7,('Growth-Model-1'!G107*EXP($AA$7)),0)","v":1.5111028186774869E-6},{"$f":"IF(A108<='S1-Standard'!$C$7,$AD$6*EXP($AD$7*('S1-Standard'!C$7-'Growth-Model-1'!A108)),0)","v":4.1095970384988616E-3},87.249479971384801,4.3086162948832003E-2,1.4676597243994056,4.3458676023923939,691.77563083427003,{"$f":"M108/'S1-Standard'!$C$17","v":25.621319660528521},13.225114900320843,903.07581518451263,{"$f":"_xlfn.XLOOKUP(B108,FeedTables!$C$17:$T$17,FeedTables!$C$31:$T$31,,-1)","v":"Unga 4mm"},{"$f":"_xlfn.XLOOKUP(Q108,FeedPrice[Feed],FeedPrice[Price per kg],\"Unknown\",0)*O108","v":1313.6519855603594},90792.84662824207,{"$f":"_xlfn.XLOOKUP(O108,LabourFromFeed[Feed Quantity (kg)],LabourFromFeed[No. Labour],\"Out of range\",-1)","v":1},{"$f":"T108*OperatingCosts!$C$9","v":1200},128400]
[107,{"$f":"IF(A109<='S1-Standard'!$C$7, B108*EXP((LN((E108/100)+1))*1),)","v":361.3109304807021},{"$f":"_xlfn.XLOOKUP($B109,FeedTables!$C$42:$T$42,FeedTables!$C$44:$T$44,,-1)","v":1.9117636283850548},{"$f":"_xlfn.XLOOKUP($B109,FeedTables!$C$42:$T$42,FeedTables!$C$45:$T$45,,-1)","v":1.5351728093320252},{"$f":"_xlfn.XLOOKUP($B109,FeedTables!$C$42:$T$42,FeedTables!$C$46:$T$46,,-1)*_xlfn.XLOOKUP(N108,DensityMultiplier[Biomass kg/m3],DensityMultiplier[Multiplier],,-1)","v":1.2079491691494868},1937.7505200286153,{"$f":"IF(A109<='S1-Standard'!$C$7,('Growth-Model-1'!G108*EXP($AA$7)),0)","v":1.3006182492341008E-6},{"$f":"IF(A109<='S1-Standard'!$C$7,$AD$6*EXP($AD$7*('S1-Standard'!C$7-'Growth-Model-1'!A109)),0)","v":5.0194731577493761E-3},87.254500745160797,4.3088642343289282E-2,1.8140604447391659,4.3476816628371333,700.13044343100341,{"$f":"M109/'S1-Standard'!$C$17","v":25.930757164111238},13.384839168764923,916.4606543532775,{"$f":"_xlfn.XLOOKUP(B109,FeedTables!$C$17:$T$17,FeedTables!$C$31:$T$31,,-1)","v":"Unga 4mm"},{"$f":"_xlfn.XLOOKUP(Q109,FeedPrice[Feed],FeedPrice[Price per kg],\"Unknown\",0)*O109","v":1329.5174131173367},92122.364041359411,{"$f":"_xlfn.XLOOKUP(O109,LabourFromFeed[Feed Quantity (kg)],LabourFromFeed[No. Labour],\"Out of range\",-1)","v":1},{"$f":"T109*OperatingCosts!$C$9","v":1200},129600]
[108,{"$f":"IF(A110<='S1-Standard'!$C$7, B109*EXP((LN((E109/100)+1))*1),)","v":365.67538286348997},{"$f":"_xlfn.XLOOKUP($B110,FeedTables!$C$42:$T$42,FeedTables!$C$44:$T$44,,-1)","v":1.9117636283850548},{"$f":"_xlfn.XLOOKUP($B110,FeedTables!$C$42:$T$42,FeedTables!$C$45:$T$45,,-1)","v":1.5351728093320252},{"$f":"_xlfn.XLOOKUP($B110,FeedTables!$C$42:$T$42,FeedTables!$C$46:$T$46,,-1)*_xlfn.XLOOKUP(N109,DensityMultiplier[Biomass kg/m3],DensityMultiplier[Multiplier],,-1)","v":1.2079491691494868},1937.7454992548392,{"$f":"IF(A110<='S1-Standard'!$C$7,('Growth-Model-1'!G109*EXP($AA$7)),0)","v":1.1194525013997843E-6},{"$f":"IF(A110<='S1-Standard'!$C$7,$AD$6*EXP($AD$7*('S1-Standard'!C$7-'Growth-Model-1'!A110)),0)","v":6.1307983593860207E-3},87.260632662972682,4.309167045085071E-2,2.2422913935493862,4.3499239542306825,708.58582733201786,{"$f":"M110/'S1-Standard'!$C$17","v":26.243919530815475},13.546486122824843,930.00714047610234,{"$f":"_xlfn.XLOOKUP(B110,FeedTables!$C$17:$T$17,FeedTables!$C$31:$T$31,,-1)","v":"Unga 4mm"},{"$f":"_xlfn.XLOOKUP(Q110,FeedPrice[Feed],FeedPrice[Price per kg],\"Unknown\",0)*O110","v":1345.573821228804},93467.937862588209,{"$f":"_xlfn.XLOOKUP(O110,LabourFromFeed[Feed Quantity (kg)],LabourFromFeed[No. Labour],\"Out of range\",-1)","v":1},{"$f":"T110*OperatingCosts!$C$9","v":1200},130800]
[109,{"$f":"IF(A111<='S1-Standard'!$C$7, B110*EXP((LN((E110/100)+1))*1),)","v":370.09255561257368},{"$f":"_xlfn.XLOOKUP($B111,FeedTables!$C$42:$T$42,FeedTables!$C$44:$T$44,,-1)","v":1.9117636283850548},{"$f":"_xlfn.XLOOKUP($B111,FeedTables!$C$42:$T$42,FeedTables!$C$45:$T$45,,-1)","v":1.5351728093320252},{"$f":"_xlfn.XLOOKUP($B111,FeedTables!$C$42:$T$42,FeedTables!$C$46:$T$46,,-1)*_xlfn.XLOOKUP(N110,DensityMultiplier[Biomass kg/m3],DensityMultiplier[Multiplier],,-1)","v":1.2079491691494868},1937.7393673370273,{"$f":"IF(A111<='S1-Standard'!$C$7,('Growth-Model-1'!G110*EXP($AA$7)),0)","v":9.6352169718377757E-7},{"$f":"IF(A111<='S1-Standard'!$C$7,$AD$6*EXP($AD$7*('S1-Standard'!C$7-'Growth-Model-1'!A111)),0)","v":7.4881740258779311E-3},87.268121800520262,4.3095368790380374E-2,2.7716740543161569,4.3526956282849989,717.14291456885201,{"$f":"M111/'S1-Standard'!$C$17","v":26.560848687735259},13.710077404267819,943.71721788037019,{"$f":"_xlfn.XLOOKUP(B111,FeedTables!$C$17:$T$17,FeedTables!$C$31:$T$31,,-1)","v":"Unga 4mm"},{"$f":"_xlfn.XLOOKUP(Q111,FeedPrice[Feed],FeedPrice[Price per kg],\"Unknown\",0)*O111","v":1361.8233595736629},94829.761222161877,{"$f":"_xlfn.XLOOKUP(O111,LabourFromFeed[Feed Quantity (kg)],LabourFromFeed[No. Labour],\"Out of range\",-1)","v":1},{"$f":"T111*OperatingCosts!$C$9","v":1200},132000]
[110,{"$f":"IF(A112<='S1-Standard'!$C$7, B111*EXP((LN((E111/100)+1))*1),)","v":374.56308556317981},{"$f":"_xlfn.XLOOKUP($B112,FeedTables!$C$42:$T$42,FeedTables!$C$44:$T$44,,-1)","v":1.9117636283850548},{"$f":"_xlfn.XLOOKUP($B112,FeedTables!$C$42:$T$42,FeedTables!$C$45:$T$45,,-1)","v":1.5351728093320252},{"$f":"_xlfn.XLOOKUP($B112,FeedTables!$C$42:$T$42,FeedTables!$C$46:$T$46,,-1)*_xlfn.XLOOKUP(N111,DensityMultiplier[Biomass kg/m3],DensityMultiplier[Multiplier],,-1)","v":1.2079491691494868},1937.7318781994798,{"$f":"IF(A112<='S1-Standard'!$C$7,('Growth-Model-1'!G111*EXP($AA$7)),0)","v":8.2931081022468648E-7},{"$f":"IF(A112<='S1-Standard'!$C$7,$AD$6*EXP($AD$7*('S1-Standard'!C$7-'Growth-Model-1'!A112)),0)","v":9.1460764087906484E-3},87.277268706239866,4.3099885780859194E-2,3.4260932296892004,4.3561217215146879,725.8028312925328,{"$f":"M112/'S1-Standard'!$C$17","v":26.881586344167882},13.875634542439583,957.59285242280976,{"$f":"_xlfn.XLOOKUP(B112,FeedTables!$C$17:$T$17,FeedTables!$C$31:$T$31,,-1)","v":"Unga 4mm"},{"$f":"_xlfn.XLOOKUP(Q112,FeedPrice[Feed],FeedPrice[Price per kg],\"Unknown\",0)*O112","v":1378.268166663978},96208.02938882586,{"$f":"_xlfn.XLOOKUP(O112,LabourFromFeed[Feed Quantity (kg)],LabourFromFeed[No. Labour],\"Out of range\",-1)","v":1},{"$f":"T112*OperatingCosts!$C$9","v":1200},133200]
[111,{"$f":"IF(A113<='S1-Standard'!$C$7, B112*EXP((LN((E112/100)+1))*1),)","v":379.08761724318089},{"$f":"_xlfn.XLOOKUP($B113,FeedTables!$C$42:$T$42,FeedTables!$C$44:$T$44,,-1)","v":1.9117636283850548},{"$f":"_xlfn.XLOOKUP($B113,FeedTables!$C$42:$T$42,FeedTables!$C$45:$T$45,,-1)","v":1.5351728093320252},{"$f":"_xlfn.XLOOKUP($B113,FeedTables!$C$42:$T$42,FeedTables!$C$46:$T$46,,-1)*_xlfn.XLOOKUP(N112,DensityMultiplier[Biomass kg/m3],DensityMultiplier[Multiplier],,-1)","v":1.2079491691494868},1937.72273129376,{"$f":"IF(A113<='S1-Standard'!$C$7,('Growth-Model-1'!G112*EXP($AA$7)),0)","v":7.1379442929591505E-7},{"$f":"IF(A113<='S1-Standard'!$C$7,$AD$6*EXP($AD$7*('S1-Standard'!C$7-'Growth-Model-1'!A113)),0)","v":1.1171042952040562E-2},87.288440462986344,4.3105402697771036E-2,4.2350746454396893,4.3603567961601275,734.56669308409994,{"$f":"M113/'S1-Standard'!$C$17","v":27.206173817929628},14.043178864612699,971.6360312874225,{"$f":"_xlfn.XLOOKUP(B113,FeedTables!$C$17:$T$17,FeedTables!$C$31:$T$31,,-1)","v":"Unga 4mm"},{"$f":"_xlfn.XLOOKUP(Q113,FeedPrice[Feed],FeedPrice[Price per kg],\"Unknown\",0)*O113","v":1394.9103609398658},97602.939749765719,{"$f":"_xlfn.XLOOKUP(O113,LabourFromFeed[Feed Quantity (kg)],LabourFromFeed[No. Labour],\"Out of range\",-1)","v":1},{"$f":"T113*OperatingCosts!$C$9","v":1200},134400]
[112,{"$f":"IF(A114<='S1-Standard'!$C$7, B113*EXP((LN((E113/100)+1))*1),)","v":383.66680296601845},{"$f":"_xlfn.XLOOKUP($B114,FeedTables!$C$42:$T$42,FeedTables!$C$44:$T$44,,-1)","v":1.9117636283850548},{"$f":"_xlfn.XLOOKUP($B114,FeedTables!$C$42:$T$42,FeedTables!$C$45:$T$45,,-1)","v":1.5351728093320252},{"$f":"_xlfn.XLOOKUP($B114,FeedTables!$C$42:$T$42,FeedTables!$C$46:$T$46,,-1)*_xlfn.XLOOKUP(N113,DensityMultiplier[Biomass kg/m3],DensityMultiplier[Multiplier],,-1)","v":1.2079491691494868},1937.7115595370135,{"$f":"IF(A114<='S1-Standard'!$C$7,('Growth-Model-1'!G113*EXP($AA$7)),0)","v":6.1436855882276606E-7},{"$f":"IF(A114<='S1-Standard'!$C$7,$AD$6*EXP($AD$7*('S1-Standard'!C$7-'Growth-Model-1'!A114)),0)","v":1.3644342673148071E-2},87.30208542002805,4.3112140948162E-2,5.2351170448003446,4.3655919132049279,743.43559911786372,{"$f":"M114/'S1-Standard'!$C$17","v":27.534651819180137},14.212731384401842,985.84876267182437,{"$f":"_xlfn.XLOOKUP(B114,FeedTables!$C$17:$T$17,FeedTables!$C$31:$T$31,,-1)","v":"Unga 4mm"},{"$f":"_xlfn.XLOOKUP(Q114,FeedPrice[Feed],FeedPrice[Price per kg],\"Unknown\",0)*O114","v":1411.7520296857733},99014.691779451488,{"$f":"_xlfn.XLOOKUP(O114,LabourFromFeed[Feed Quantity (kg)],LabourFromFeed[No. Labour],\"Out of range\",-1)","v":1},{"$f":"T114*OperatingCosts!$C$9","v":1200},135600]
[113,{"$f":"IF(A115<='S1-Standard'!$C$7, B114*EXP((LN((E114/100)+1))*1),)","v":388.30130292474882},{"$f":"_xlfn.XLOOKUP($B115,FeedTables!$C$42:$T$42,FeedTables!$C$44:$T$44,,-1)","v":1.9117636283850548},{"$f":"_xlfn.XLOOKUP($B115,FeedTables!$C$42:$T$42,FeedTables!$C$45:$T$45,,-1)","v":1.5351728093320252},{"$f":"_xlfn.XLOOKUP($B115,FeedTables!$C$42:$T$42,FeedTables!$C$46:$T$46,,-1)*_xlfn.XLOOKUP(N114,DensityMultiplier[Biomass kg/m3],DensityMultiplier[Multiplier],,-1)","v":1.2079491691494868},1937.6979145799719,{"$f":"IF(A115<='S1-Standard'!$C$7,('Growth-Model-1'!G114*EXP($AA$7)),0)","v":5.2879191904352207E-7},{"$f":"IF(A115<='S1-Standard'!$C$7,$AD$6*EXP($AD$7*('S1-Standard'!C$7-'Growth-Model-1'!A115)),0)","v":1.6665237774265547E-2},87.318751186594227,4.3120370956342829E-2,6.471338871889194,4.372063252076817,752.41062490597164,{"$f":"M115/'S1-Standard'!$C$17","v":27.867060181702655},14.384312663057068,1000.2330753348814,{"$f":"_xlfn.XLOOKUP(B115,FeedTables!$C$17:$T$17,FeedTables!$C$31:$T$31,,-1)","v":"Unga 4mm"},{"$f":"_xlfn.XLOOKUP(Q115,FeedPrice[Feed],FeedPrice[Price per kg],\"Unknown\",0)*O115","v":1428.795215252725},100443.48699470422,{"$f":"_xlfn.XLOOKUP(O115,LabourFromFeed[Feed Quantity (kg)],LabourFromFeed[No. Labour],\"Out of range\",-1)","v":1},{"$f":"T115*OperatingCosts!$C$9","v":1200},136800]
[114,{"$f":"IF(A116<='S1-Standard'!$C$7, B115*EXP((LN((E115/100)+1))*1),)","v":392.99178528722496},{"$f":"_xlfn.XLOOKUP($B116,FeedTables!$C$42:$T$42,FeedTables!$C$44:$T$44,,-1)","v":1.9117636283850548},{"$f":"_xlfn.XLOOKUP($B116,FeedTables!$C$42:$T$42,FeedTables!$C$45:$T$45,,-1)","v":1.5351728093320252},{"$f":"_xlfn.XLOOKUP($B116,FeedTables!$C$42:$T$42,FeedTables!$C$46:$T$46,,-1)*_xlfn.XLOOKUP(N115,DensityMultiplier[Biomass kg/m3],DensityMultiplier[Multiplier],,-1)","v":1.2079491691494868},1937.6812488134058,{"$f":"IF(A116<='S1-Standard'!$C$7,('Growth-Model-1'!G115*EXP($AA$7)),0)","v":4.551354225898729E-7},{"$f":"IF(A116<='S1-Standard'!$C$7,$AD$6*EXP($AD$7*('S1-Standard'!C$7-'Growth-Model-1'!A116)),0)","v":2.0354967382882991E-2},87.339106609112534,4.3130423016845693E-2,7.9995138357446907,4.3800627659125615,761.49281328875986,{"$f":"M116/'S1-Standard'!$C$17","v":28.203437529213328},14.557942637220625,1014.7910179721021,{"$f":"_xlfn.XLOOKUP(B116,FeedTables!$C$17:$T$17,FeedTables!$C$31:$T$31,,-1)","v":"Unga 4mm"},{"$f":"_xlfn.XLOOKUP(Q116,FeedPrice[Feed],FeedPrice[Price per kg],\"Unknown\",0)*O116","v":1446.0418979493884},101889.5288926536,{"$f":"_xlfn.XLOOKUP(O116,LabourFromFeed[Feed Quantity (kg)],LabourFromFeed[No. Labour],\"Out of range\",-1)","v":1},{"$f":"T116*OperatingCosts!$C$9","v":1200},138000]
[115,{"$f":"IF(A117<='S1-Standard'!$C$7, B116*EXP((LN((E116/100)+1))*1),)","v":397.73892629242772},{"$f":"_xlfn.XLOOKUP($B117,FeedTables!$C$42:$T$42,FeedTables!$C$44:$T$44,,-1)","v":1.9117636283850548},{"$f":"_xlfn.XLOOKUP($B117,FeedTables!$C$42:$T$42,FeedTables!$C$45:$T$45,,-1)","v":1.5351728093320252},{"$f":"_xlfn.XLOOKUP($B117,FeedTables!$C$42:$T$42,FeedTables!$C$46:$T$46,,-1)*_xlfn.XLOOKUP(N116,DensityMultiplier[Biomass kg/m3],DensityMultiplier[Multiplier],,-1)","v":1.2079491691494868},1937.6608933908874,{"$f":"IF(A117<='S1-Standard'!$C$7,('Growth-Model-1'!G116*EXP($AA$7)),0)","v":3.9173868857669306E-7},{"$f":"IF(A117<='S1-Standard'!$C$7,$AD$6*EXP($AD$7*('S1-Standard'!C$7-'Growth-Model-1'!A117)),0)","v":2.4861613303713583E-2},87.363968614154942,4.3142700550199968E-2,9.8885871910419603,4.3899513531036032,770.68316325611784,{"$f":"M117/'S1-Standard'!$C$17","v":28.543820861337696},14.733640405217873,1029.5246583773198,{"$f":"_xlfn.XLOOKUP(B117,FeedTables!$C$17:$T$17,FeedTables!$C$31:$T$31,,-1)","v":"Unga 4mm"},{"$f":"_xlfn.XLOOKUP(Q117,FeedPrice[Feed],FeedPrice[Price per kg],\"Unknown\",0)*O117","v":1463.4939748143318},103353.02286746794,{"$f":"_xlfn.XLOOKUP(O117,LabourFromFeed[Feed Quantity (kg)],LabourFromFeed[No. Labour],\"Out of range\",-1)","v":1},{"$f":"T117*OperatingCosts!$C$9","v":1200},139200]
[116,{"$f":"IF(A118<='S1-Standard'!$C$7, B117*EXP((LN((E117/100)+1))*1),)","v":402.54341034796118},{"$f":"_xlfn.XLOOKUP($B118,FeedTables!$C$42:$T$42,FeedTables!$C$44:$T$44,,-1)","v":1.5895597072390606},{"$f":"_xlfn.XLOOKUP($B118,FeedTables!$C$42:$T$42,FeedTables!$C$45:$T$45,,-1)","v":1.5711330683884976},{"$f":"_xlfn.XLOOKUP($B118,FeedTables!$C$42:$T$42,FeedTables!$C$46:$T$46,,-1)*_xlfn.XLOOKUP(N117,DensityMultiplier[Biomass kg/m3],DensityMultiplier[Multiplier],,-1)","v":0.98137640092024747},1937.6360313858449,{"$f":"IF(A118<='S1-Standard'!$C$7,('Growth-Model-1'!G117*EXP($AA$7)),0)","v":3.3717261393225139E-7},{"$f":"IF(A118<='S1-Standard'!$C$7,$AD$6*EXP($AD$7*('S1-Standard'!C$7-'Growth-Model-1'!A118)),0)","v":3.0366043061467347E-2},87.394334994389013,4.3157696293525435E-2,12.223786259349998,4.4021751393629529,779.98261608714711,{"$f":"M118/'S1-Standard'!$C$17","v":28.888245040264707},12.39828938879042,1041.9229477661102,{"$f":"_xlfn.XLOOKUP(B118,FeedTables!$C$17:$T$17,FeedTables!$C$31:$T$31,,-1)","v":"Unga 4mm"},{"$f":"_xlfn.XLOOKUP(Q118,FeedPrice[Feed],FeedPrice[Price per kg],\"Unknown\",0)*O118","v":1231.5233248174914},104584.54619228543,{"$f":"_xlfn.XLOOKUP(O118,LabourFromFeed[Feed Quantity (kg)],LabourFromFeed[No. Labour],\"Out of range\",-1)","v":1},{"$f":"T118*OperatingCosts!$C$9","v":1200},140400]
[117,{"$f":"IF(A119<='S1-Standard'!$C$7, B118*EXP((LN((E118/100)+1))*1),)","v":406.49387638057561},{"$f":"_xlfn.XLOOKUP($B119,FeedTables!$C$42:$T$42,FeedTables!$C$44:$T$44,,-1)","v":1.5895597072390606},{"$f":"_xlfn.XLOOKUP($B119,FeedTables!$C$42:$T$42,FeedTables!$C$45:$T$45,,-1)","v":1.5711330683884976},{"$f":"_xlfn.XLOOKUP($B119,FeedTables!$C$42:$T$42,FeedTables!$C$46:$T$46,,-1)*_xlfn.XLOOKUP(N118,DensityMultiplier[Biomass kg/m3],DensityMultiplier[Multiplier],,-1)","v":0.98137640092024747},1937.6056650056107,{"$f":"IF(A119<='S1-Standard'!$C$7,('Growth-Model-1'!G118*EXP($AA$7)),0)","v":2.9020715824357535E-7},{"$f":"IF(A119<='S1-Standard'!$C$7,$AD$6*EXP($AD$7*('S1-Standard'!C$7-'Growth-Model-1'!A119)),0)","v":3.7089168749686707E-2},87.431424453345855,4.3176012075726349E-2,15.076637944226164,4.4172517773071789,787.62483766509376,{"$f":"M119/'S1-Standard'!$C$17","v":29.171290283892361},12.51976706373139,1054.4427148298416,{"$f":"_xlfn.XLOOKUP(B119,FeedTables!$C$17:$T$17,FeedTables!$C$31:$T$31,,-1)","v":"Unga 4mm"},{"$f":"_xlfn.XLOOKUP(Q119,FeedPrice[Feed],FeedPrice[Price per kg],\"Unknown\",0)*O119","v":1243.5897144171454},105828.13590670258,{"$f":"_xlfn.XLOOKUP(O119,LabourFromFeed[Feed Quantity (kg)],LabourFromFeed[No. Labour],\"Out of range\",-1)","v":1},{"$f":"T119*OperatingCosts!$C$9","v":1200},141600]
[118,{"$f":"IF(A120<='S1-Standard'!$C$7, B119*EXP((LN((E119/100)+1))*1),)","v":410.48311135456049},{"$f":"_xlfn.XLOOKUP($B120,FeedTables!$C$42:$T$42,FeedTables!$C$44:$T$44,,-1)","v":1.5895597072390606},{"$f":"_xlfn.XLOOKUP($B120,FeedTables!$C$42:$T$42,FeedTables!$C$45:$T$45,,-1)","v":1.5711330683884976},{"$f":"_xlfn.XLOOKUP($B120,FeedTables!$C$42:$T$42,FeedTables!$C$46:$T$46,,-1)*_xlfn.XLOOKUP(N119,DensityMultiplier[Biomass kg/m3],DensityMultiplier[Multiplier],,-1)","v":0.98137640092024747},1937.5685755466538,{"$f":"IF(A120<='S1-Standard'!$C$7,('Growth-Model-1'!G119*EXP($AA$7)),0)","v":2.4978361591589428E-7},{"$f":"IF(A120<='S1-Standard'!$C$7,$AD$6*EXP($AD$7*('S1-Standard'!C$7-'Growth-Model-1'!A120)),0)","v":4.530081300873532E-2},87.476725516138202,4.3198382970932446E-2,18.59532120267265,4.4358470985098517,795.33917735321427,{"$f":"M120/'S1-Standard'!$C$17","v":29.457006568637567},12.642391099093304,1067.085105928935,{"$f":"_xlfn.XLOOKUP(B120,FeedTables!$C$17:$T$17,FeedTables!$C$31:$T$31,,-1)","v":"Unga 4mm"},{"$f":"_xlfn.XLOOKUP(Q120,FeedPrice[Feed],FeedPrice[Price per kg],\"Unknown\",0)*O120","v":1255.7699721120478},107083.90587881462,{"$f":"_xlfn.XLOOKUP(O120,LabourFromFeed[Feed Quantity (kg)],LabourFromFeed[No. Labour],\"Out of range\",-1)","v":1},{"$f":"T120*OperatingCosts!$C$9","v":1200},142800]
[119,{"$f":"IF(A121<='S1-Standard'!$C$7, B120*EXP((LN((E120/100)+1))*1),)","v":414.51149573915728},{"$f":"_xlfn.XLOOKUP($B121,FeedTables!$C$42:$T$42,FeedTables!$C$44:$T$44,,-1)","v":1.5895597072390606},{"$f":"_xlfn.XLOOKUP($B121,FeedTables!$C$42:$T$42,FeedTables!$C$45:$T$45,,-1)","v":1.5711330683884976},{"$f":"_xlfn.XLOOKUP($B121,FeedTables!$C$42:$T$42,FeedTables!$C$46:$T$46,,-1)*_xlfn.XLOOKUP(N120,DensityMultiplier[Biomass kg/m3],DensityMultiplier[Multiplier],,-1)","v":0.98137640092024747},1937.5232744838615,{"$f":"IF(A121<='S1-Standard'!$C$7,('Growth-Model-1'!G120*EXP($AA$7)),0)","v":2.1499075059910322E-7},{"$f":"IF(A121<='S1-Standard'!$C$7,$AD$6*EXP($AD$7*('S1-Standard'!C$7-'Growth-Model-1'!A121)),0)","v":5.533053795576743E-2},87.53205626908472,4.3225706799548007E-2,22.935233164234972,4.4587823316740867,803.12567053573525,{"$f":"M121/'S1-Standard'!$C$17","v":29.745395205027233},12.766162057329575,1079.8512679862647,{"$f":"_xlfn.XLOOKUP(B121,FeedTables!$C$17:$T$17,FeedTables!$C$31:$T$31,,-1)","v":"Unga 4mm"},{"$f":"_xlfn.XLOOKUP(Q121,FeedPrice[Feed],FeedPrice[Price per kg],\"Unknown\",0)*O121","v":1268.0641537707525},108351.97003258538,{"$f":"_xlfn.XLOOKUP(O121,LabourFromFeed[Feed Quantity (kg)],LabourFromFeed[No. Labour],\"Out of range\",-1)","v":1},{"$f":"T121*OperatingCosts!$C$9","v":1200},144000]
[120,{"$f":"IF(A122<='S1-Standard'!$C$7, B121*EXP((LN((E121/100)+1))*1),)","v":418.57941373744291},{"$f":"_xlfn.XLOOKUP($B122,FeedTables!$C$42:$T$42,FeedTables!$C$44:$T$44,,-1)","v":1.5895597072390606},{"$f":"_xlfn.XLOOKUP($B122,FeedTables!$C$42:$T$42,FeedTables!$C$45:$T$45,,-1)","v":1.5711330683884976},{"$f":"_xlfn.XLOOKUP($B122,FeedTables!$C$42:$T$42,FeedTables!$C$46:$T$46,,-1)*_xlfn.XLOOKUP(N121,DensityMultiplier[Biomass kg/m3],DensityMultiplier[Multiplier],,-1)","v":0.98137640092024747},1937.4679437309151,{"$f":"IF(A122<='S1-Standard'!$C$7,('Growth-Model-1'!G121*EXP($AA$7)),0)","v":1.8504425389825842E-7},{"$f":"IF(A122<='S1-Standard'!$C$7,$AD$6*EXP($AD$7*('S1-Standard'!C$7-'Growth-Model-1'!A122)),0)","v":6.7580871669660286E-2},87.599637325798639,4.3259080160888218E-2,28.288039099067078,4.4870703707731536,810.98419602197544,{"$f":"M122/'S1-Standard'!$C$17","v":30.03645170451761},12.891078012041961,1092.7423459983067,{"$f":"_xlfn.XLOOKUP(B122,FeedTables!$C$17:$T$17,FeedTables!$C$31:$T$31,,-1)","v":"Unga 4mm"},{"$f":"_xlfn.XLOOKUP(Q122,FeedPrice[Feed],FeedPrice[Price per kg],\"Unknown\",0)*O122","v":1280.4720680439291},109632.44210062931,{"$f":"_xlfn.XLOOKUP(O122,LabourFromFeed[Feed Quantity (kg)],LabourFromFeed[No. Labour],\"Out of range\",-1)","v":1},{"$f":"T122*OperatingCosts!$C$9","v":1200},145200]
[121,{"$f":"IF(A123<='S1-Standard'!$C$7, B122*EXP((LN((E122/100)+1))*1),)","v":422.68725332297248},{"$f":"_xlfn.XLOOKUP($B123,FeedTables!$C$42:$T$42,FeedTables!$C$44:$T$44,,-1)","v":1.5895597072390606},{"$f":"_xlfn.XLOOKUP($B123,FeedTables!$C$42:$T$42,FeedTables!$C$45:$T$45,,-1)","v":1.5711330683884976},{"$f":"_xlfn.XLOOKUP($B123,FeedTables!$C$42:$T$42,FeedTables!$C$46:$T$46,,-1)*_xlfn.XLOOKUP(N122,DensityMultiplier[Biomass kg/m3],DensityMultiplier[Multiplier],,-1)","v":0.96114183595281966},1937.4003626742012,{"$f":"IF(A123<='S1-Standard'!$C$7,('Growth-Model-1'!G122*EXP($AA$7)),0)","v":1.5926906532185462E-7},{"$f":"IF(A123<='S1-Standard'!$C$7,$AD$6*EXP($AD$7*('S1-Standard'!C$7-'Growth-Model-1'!A123)),0)","v":8.2543463056191577E-2},87.6821809481239,4.3299842443517977E-2,34.890136999991633,4.5219605077731453,818.91443788568881,{"$f":"M123/'S1-Standard'!$C$17","v":30.330164366136621},13.017133941394153,1105.7594799397009,{"$f":"_xlfn.XLOOKUP(B123,FeedTables!$C$17:$T$17,FeedTables!$C$31:$T$31,,-1)","v":"Unga 4mm"},{"$f":"_xlfn.XLOOKUP(Q123,FeedPrice[Feed],FeedPrice[Price per kg],\"Unknown\",0)*O123","v":1292.9932161120753},110925.43531674139,{"$f":"_xlfn.XLOOKUP(O123,LabourFromFeed[Feed Quantity (kg)],LabourFromFeed[No. Labour],\"Out of range\",-1)","v":1},{"$f":"T123*OperatingCosts!$C$9","v":1200},146400]
[122,{"$f":"IF(A124<='S1-Standard'!$C$7, B123*EXP((LN((E123/100)+1))*1),)","v":426.74987734989941},{"$f":"_xlfn.XLOOKUP($B124,FeedTables!$C$42:$T$42,FeedTables!$C$44:$T$44,,-1)","v":1.5895597072390606},{"$f":"_xlfn.XLOOKUP($B124,FeedTables!$C$42:$T$42,FeedTables!$C$45:$T$45,,-1)","v":1.5711330683884976},{"$f":"_xlfn.XLOOKUP($B124,FeedTables!$C$42:$T$42,FeedTables!$C$46:$T$46,,-1)*_xlfn.XLOOKUP(N123,DensityMultiplier[Biomass kg/m3],DensityMultiplier[Multiplier],,-1)","v":0.96114183595281966},1937.3178190518759,{"$f":"IF(A124<='S1-Standard'!$C$7,('Growth-Model-1'!G123*EXP($AA$7)),0)","v":1.3708415492028384E-7},{"$f":"IF(A124<='S1-Standard'!$C$7,$AD$6*EXP($AD$7*('S1-Standard'!C$7-'Growth-Model-1'!A124)),0)","v":0.10081881344492448},87.782999898652989,4.3349629579581724E-2,43.02447477283021,4.5649849825459752,826.75014166816266,{"$f":"M124/'S1-Standard'!$C$17","v":30.620375617339359},13.141687131498964,1118.9011670711998,{"$f":"_xlfn.XLOOKUP(B124,FeedTables!$C$17:$T$17,FeedTables!$C$31:$T$31,,-1)","v":"Unga 4mm"},{"$f":"_xlfn.XLOOKUP(Q124,FeedPrice[Feed],FeedPrice[Price per kg],\"Unknown\",0)*O124","v":1305.3650969405053},112230.80041368189,{"$f":"_xlfn.XLOOKUP(O124,LabourFromFeed[Feed Quantity (kg)],LabourFromFeed[No. Labour],\"Out of range\",-1)","v":1},{"$f":"T124*OperatingCosts!$C$9","v":1200},147600]
[123,{"$f":"IF(A125<='S1-Standard'!$C$7, B124*EXP((LN((E124/100)+1))*1),)","v":430.85154895598663},{"$f":"_xlfn.XLOOKUP($B125,FeedTables!$C$42:$T$42,FeedTables!$C$44:$T$44,,-1)","v":1.5895597072390606},{"$f":"_xlfn.XLOOKUP($B125,FeedTables!$C$42:$T$42,FeedTables!$C$45:$T$45,,-1)","v":1.5711330683884976},{"$f":"_xlfn.XLOOKUP($B125,FeedTables!$C$42:$T$42,FeedTables!$C$46:$T$46,,-1)*_xlfn.XLOOKUP(N124,DensityMultiplier[Biomass kg/m3],DensityMultiplier[Multiplier],,-1)","v":0.96114183595281966},1937.2170001013469,{"$f":"IF(A125<='S1-Standard'!$C$7,('Growth-Model-1'!G124*EXP($AA$7)),0)","v":1.1798942558137663E-7},{"$f":"IF(A125<='S1-Standard'!$C$7,$AD$6*EXP($AD$7*('S1-Standard'!C$7-'Growth-Model-1'!A125)),0)","v":0.12314037681606635},87.906140393458486,4.3410439700473327E-2,53.055272926152824,4.6180402554721276,834.65294515753499,{"$f":"M125/'S1-Standard'!$C$17","v":30.913072042871665},13.267306911508308,1132.1684739827081,{"$f":"_xlfn.XLOOKUP(B125,FeedTables!$C$17:$T$17,FeedTables!$C$31:$T$31,,-1)","v":"Unga 4mm"},{"$f":"_xlfn.XLOOKUP(Q125,FeedPrice[Feed],FeedPrice[Price per kg],\"Unknown\",0)*O125","v":1317.8429222508114},113548.64333593271,{"$f":"_xlfn.XLOOKUP(O125,LabourFromFeed[Feed Quantity (kg)],LabourFromFeed[No. Labour],\"Out of range\",-1)","v":1},{"$f":"T125*OperatingCosts!$C$9","v":1200},148800]
[124,{"$f":"IF(A126<='S1-Standard'!$C$7, B125*EXP((LN((E125/100)+1))*1),)","v":434.99264344385335},{"$f":"_xlfn.XLOOKUP($B126,FeedTables!$C$42:$T$42,FeedTables!$C$44:$T$44,,-1)","v":1.5895597072390606},{"$f":"_xlfn.XLOOKUP($B126,FeedTables!$C$42:$T$42,FeedTables!$C$45:$T$45,,-1)","v":1.5711330683884976},{"$f":"_xlfn.XLOOKUP($B126,FeedTables!$C$42:$T$42,FeedTables!$C$46:$T$46,,-1)*_xlfn.XLOOKUP(N125,DensityMultiplier[Biomass kg/m3],DensityMultiplier[Multiplier],,-1)","v":0.96114183595281966},1937.0938596065414,{"$f":"IF(A126<='S1-Standard'!$C$7,('Growth-Model-1'!G125*EXP($AA$7)),0)","v":1.0155443973170163E-7},{"$f":"IF(A126<='S1-Standard'!$C$7,$AD$6*EXP($AD$7*('S1-Standard'!C$7-'Growth-Model-1'!A126)),0)","v":0.15040399588402609},88.05654449089694,4.3484713328837993E-2,65.424675929545131,4.683464931401673,842.62157858910598,{"$f":"M126/'S1-Standard'!$C$17","v":31.208206614411331},13.393973097754143,1145.5624470804621,{"$f":"_xlfn.XLOOKUP(B126,FeedTables!$C$17:$T$17,FeedTables!$C$31:$T$31,,-1)","v":"Unga 4mm"},{"$f":"_xlfn.XLOOKUP(Q126,FeedPrice[Feed],FeedPrice[Price per kg],\"Unknown\",0)*O126","v":1330.4246871972289},114879.06802312993,{"$f":"_xlfn.XLOOKUP(O126,LabourFromFeed[Feed Quantity (kg)],LabourFromFeed[No. Labour],\"Out of range\",-1)","v":1},{"$f":"T126*OperatingCosts!$C$9","v":1200},150000]
[125,{"$f":"IF(A127<='S1-Standard'!$C$7, B126*EXP((LN((E126/100)+1))*1),)","v":439.17353972330932},{"$f":"_xlfn.XLOOKUP($B127,FeedTables!$C$42:$T$42,FeedTables!$C$44:$T$44,,-1)","v":1.5895597072390606},{"$f":"_xlfn.XLOOKUP($B127,FeedTables!$C$42:$T$42,FeedTables!$C$45:$T$45,,-1)","v":1.5711330683884976},{"$f":"_xlfn.XLOOKUP($B127,FeedTables!$C$42:$T$42,FeedTables!$C$46:$T$46,,-1)*_xlfn.XLOOKUP(N126,DensityMultiplier[Biomass kg/m3],DensityMultiplier[Multiplier],,-1)","v":0.96114183595281966},1936.9434555091029,{"$f":"IF(A127<='S1-Standard'!$C$7,('Growth-Model-1'!G126*EXP($AA$7)),0)","v":8.7408716318453406E-8},{"$f":"IF(A127<='S1-Standard'!$C$7,$AD$6*EXP($AD$7*('S1-Standard'!C$7-'Growth-Model-1'!A127)),0)","v":0.18370385541106024},88.240248433716715,4.3575431325292208E-2,80.677910829289686,4.7641428422309628,850.65431359983108,{"$f":"M127/'S1-Standard'!$C$17","v":31.505715318512262},13.521658216873915,1159.084105297336,{"$f":"_xlfn.XLOOKUP(B127,FeedTables!$C$17:$T$17,FeedTables!$C$31:$T$31,,-1)","v":"Unga 4mm"},{"$f":"_xlfn.XLOOKUP(Q127,FeedPrice[Feed],FeedPrice[Price per kg],\"Unknown\",0)*O127","v":1343.1076628479077},116222.17568597784,{"$f":"_xlfn.XLOOKUP(O127,LabourFromFeed[Feed Quantity (kg)],LabourFromFeed[No. Labour],\"Out of range\",-1)","v":1},{"$f":"T127*OperatingCosts!$C$9","v":1200},151200]
[126,{"$f":"IF(A128<='S1-Standard'!$C$7, B127*EXP((LN((E127/100)+1))*1),)","v":443.39462034602491},{"$f":"_xlfn.XLOOKUP($B128,FeedTables!$C$42:$T$42,FeedTables!$C$44:$T$44,,-1)","v":1.5895597072390606},{"$f":"_xlfn.XLOOKUP($B128,FeedTables!$C$42:$T$42,FeedTables!$C$45:$T$45,,-1)","v":1.5711330683884976},{"$f":"_xlfn.XLOOKUP($B128,FeedTables!$C$42:$T$42,FeedTables!$C$46:$T$46,,-1)*_xlfn.XLOOKUP(N127,DensityMultiplier[Biomass kg/m3],DensityMultiplier[Multiplier],,-1)","v":0.96114183595281966},1936.7597515662831,{"$f":"IF(A128<='S1-Standard'!$C$7,('Growth-Model-1'!G127*EXP($AA$7)),0)","v":7.5233379344367963E-8},{"$f":"IF(A128<='S1-Standard'!$C$7,$AD$6*EXP($AD$7*('S1-Standard'!C$7-'Growth-Model-1'!A128)),0)","v":0.22437639568372608},88.464624904633808,4.3686234520806819E-2,99.487320136870849,4.8636301623678335,858.7488547471936,{"$f":"M128/'S1-Standard'!$C$17","v":31.805513138784949},13.650325781438275,1172.7344310787744,{"$f":"_xlfn.XLOOKUP(B128,FeedTables!$C$17:$T$17,FeedTables!$C$31:$T$31,,-1)","v":"Unga 4mm"},{"$f":"_xlfn.XLOOKUP(Q128,FeedPrice[Feed],FeedPrice[Price per kg],\"Unknown\",0)*O128","v":1355.888224902842},117578.06391088068,{"$f":"_xlfn.XLOOKUP(O128,LabourFromFeed[Feed Quantity (kg)],LabourFromFeed[No. Labour],\"Out of range\",-1)","v":1},{"$f":"T128*OperatingCosts!$C$9","v":1200},152400]
[127,{"$f":"IF(A129<='S1-Standard'!$C$7, B128*EXP((LN((E128/100)+1))*1),)","v":447.6562715405347},{"$f":"_xlfn.XLOOKUP($B129,FeedTables!$C$42:$T$42,FeedTables!$C$44:$T$44,,-1)","v":1.5895597072390606},{"$f":"_xlfn.XLOOKUP($B129,FeedTables!$C$42:$T$42,FeedTables!$C$45:$T$45,,-1)","v":1.5711330683884976},{"$f":"_xlfn.XLOOKUP($B129,FeedTables!$C$42:$T$42,FeedTables!$C$46:$T$46,,-1)*_xlfn.XLOOKUP(N128,DensityMultiplier[Biomass kg/m3],DensityMultiplier[Multiplier],,-1)","v":0.96114183595281966},1936.5353750953659,{"$f":"IF(A129<='S1-Standard'!$C$7,('Growth-Model-1'!G128*EXP($AA$7)),0)","v":6.4753969695109692E-8},{"$f":"IF(A129<='S1-Standard'!$C$7,$AD$6*EXP($AD$7*('S1-Standard'!C$7-'Growth-Model-1'!A129)),0)","v":0.27405394855414072},88.738678917941925,4.3821569836020702E-2,122.68199779822879,4.9863121601660625,866.90220572154237,{"$f":"M129/'S1-Standard'!$C$17","v":32.107489100797864},13.779928163316306,1186.5143592420907,{"$f":"_xlfn.XLOOKUP(B129,FeedTables!$C$17:$T$17,FeedTables!$C$31:$T$31,,-1)","v":"Unga 4mm"},{"$f":"_xlfn.XLOOKUP(Q129,FeedPrice[Feed],FeedPrice[Price per kg],\"Unknown\",0)*O129","v":1368.7616424550251},118946.8255533357,{"$f":"_xlfn.XLOOKUP(O129,LabourFromFeed[Feed Quantity (kg)],LabourFromFeed[No. Labour],\"Out of range\",-1)","v":1},{"$f":"T129*OperatingCosts!$C$9","v":1200},153600]
[128,{"$f":"IF(A130<='S1-Standard'!$C$7, B129*EXP((LN((E129/100)+1))*1),)","v":451.95888324757732},{"$f":"_xlfn.XLOOKUP($B130,FeedTables!$C$42:$T$42,FeedTables!$C$44:$T$44,,-1)","v":1.5895597072390606},{"$f":"_xlfn.XLOOKUP($B130,FeedTables!$C$42:$T$42,FeedTables!$C$45:$T$45,,-1)","v":1.5711330683884976},{"$f":"_xlfn.XLOOKUP($B130,FeedTables!$C$42:$T$42,FeedTables!$C$46:$T$46,,-1)*_xlfn.XLOOKUP(N129,DensityMultiplier[Biomass kg/m3],DensityMultiplier[Multiplier],,-1)","v":0.96114183595281966},1936.2613210820577,{"$f":"IF(A130<='S1-Standard'!$C$7,('Growth-Model-1'!G129*EXP($AA$7)),0)","v":5.5734258221767378E-8},{"$f":"IF(A130<='S1-Standard'!$C$7,$AD$6*EXP($AD$7*('S1-Standard'!C$7-'Growth-Model-1'!A130)),0)","v":0.3347302486487127},89.073409222324898,4.3986868751765384E-2,151.28433455804918,5.1375964947241117,{"$f":"(B130*F130)/1000","v":875.11050435172558},{"$f":"M130/'S1-Standard'!$C$17","v":32.41150016117502},{"$f":"M130*(C130/100)","v":13.910403970991554},1200.4247632130823,{"$f":"_xlfn.XLOOKUP(B130,FeedTables!$C$17:$T$17,FeedTables!$C$31:$T$31,,-1)","v":"Unga 4mm"},{"$f":"_xlfn.XLOOKUP(Q130,FeedPrice[Feed],FeedPrice[Price per kg],\"Unknown\",0)*O130","v":1381.7218174789882},120328.54737081469,{"$f":"_xlfn.XLOOKUP(O130,LabourFromFeed[Feed Quantity (kg)],LabourFromFeed[No. Labour],\"Out of range\",-1)","v":1},{"$f":"T130*OperatingCosts!$C$9","v":1200},154800]
[129,{"$f":"IF(A131<='S1-Standard'!$C$7, B130*EXP((LN((E130/100)+1))*1),)","v":456.30284915577494},{"$f":"_xlfn.XLOOKUP($B131,FeedTables!$C$42:$T$42,FeedTables!$C$44:$T$44,,-1)","v":1.5895597072390606},{"$f":"_xlfn.XLOOKUP($B131,FeedTables!$C$42:$T$42,FeedTables!$C$45:$T$45,,-1)","v":1.5711330683884976},{"$f":"_xlfn.XLOOKUP($B131,FeedTables!$C$42:$T$42,FeedTables!$C$46:$T$46,,-1)*_xlfn.XLOOKUP(N130,DensityMultiplier[Biomass kg/m3],DensityMultiplier[Multiplier],,-1)","v":0.96114183595281966},1935.9265907776748,{"$f":"IF(A131<='S1-Standard'!$C$7,('Growth-Model-1'!G130*EXP($AA$7)),0)","v":4.7970920611609041E-8},{"$f":"IF(A131<='S1-Standard'!$C$7,$AD$6*EXP($AD$7*('S1-Standard'!C$7-'Growth-Model-1'!A131)),0)","v":0.40884044893917715},89.482249719234986,{"$f":"I131/$F$2","v":4.4188765293449374E-2},{"$f":"(G131+H131)*B131","v":186.55508359034042},5.324151578314452,883.36881912827903,{"$f":"M131/'S1-Standard'!$C$17","v":32.717363671417743},14.041674815176618,1214.4664380282588,{"$f":"_xlfn.XLOOKUP(B131,FeedTables!$C$17:$T$17,FeedTables!$C$31:$T$31,,-1)","v":"Unga 4mm"},{"$f":"_xlfn.XLOOKUP(Q131,FeedPrice[Feed],FeedPrice[Price per kg],\"Unknown\",0)*O131","v":1394.7609635589749},121723.30833437367,{"$f":"_xlfn.XLOOKUP(O131,LabourFromFeed[Feed Quantity (kg)],LabourFromFeed[No. Labour],\"Out of range\",-1)","v":1},{"$f":"T131*OperatingCosts!$C$9","v":1200},156000]
[130,{"$f":"IF(A132<='S1-Standard'!$C$7, B131*EXP((LN((E131/100)+1))*1),)","v":460.68856673765578},{"$f":"_xlfn.XLOOKUP($B132,FeedTables!$C$42:$T$42,FeedTables!$C$44:$T$44,,-1)","v":1.5895597072390606},{"$f":"_xlfn.XLOOKUP($B132,FeedTables!$C$42:$T$42,FeedTables!$C$45:$T$45,,-1)","v":1.5711330683884976},{"$f":"_xlfn.XLOOKUP($B132,FeedTables!$C$42:$T$42,FeedTables!$C$46:$T$46,,-1)*_xlfn.XLOOKUP(N131,DensityMultiplier[Biomass kg/m3],DensityMultiplier[Multiplier],,-1)","v":0.96114183595281966},1935.5177502807649,{"$f":"IF(A132<='S1-Standard'!$C$7,('Growth-Model-1'!G131*EXP($AA$7)),0)","v":4.1288954006865115E-8},{"$f":"IF(A132<='S1-Standard'!$C$7,$AD$6*EXP($AD$7*('S1-Standard'!C$7-'Growth-Model-1'!A132)),0)","v":0.499358851981753},{"$f":"I131+G132+H132","v":89.981608612505696},4.4435362277780589E-2,230.04893282858404,{"$f":"(K132/1000)+L131","v":5.5542005111430361},891.67089827213749,{"$f":"M132/'S1-Standard'!$C$17","v":33.024848084153241},14.173641320110489,{"$f":"O132+P131","v":1228.6400793483692},{"$f":"_xlfn.XLOOKUP(B132,FeedTables!$C$17:$T$17,FeedTables!$C$31:$T$31,,-1)","v":"Unga 4mm"},{"$f":"_xlfn.XLOOKUP(Q132,FeedPrice[Feed],FeedPrice[Price per kg],\"Unknown\",0)*O132","v":1407.8692096907068},{"$f":"R132+S131","v":123131.17754406437},{"$f":"_xlfn.XLOOKUP(O132,LabourFromFeed[Feed Quantity (kg)],LabourFromFeed[No. Labour],\"Out of range\",-1)","v":1},{"$f":"T132*OperatingCosts!$C$9","v":1200},{"$f":"U132+V131","v":157200}]
[131,{"$f":"IF(A133<='S1-Standard'!$C$7, B132*EXP((LN((E132/100)+1))*1),)","v":465.1164372860228},{"$f":"_xlfn.XLOOKUP($B133,FeedTables!$C$42:$T$42,FeedTables!$C$44:$T$44,,-1)","v":1.5895597072390606},{"$f":"_xlfn.XLOOKUP($B133,FeedTables!$C$42:$T$42,FeedTables!$C$45:$T$45,,-1)","v":1.5711330683884976},{"$f":"_xlfn.XLOOKUP($B133,FeedTables!$C$42:$T$42,FeedTables!$C$46:$T$46,,-1)*_xlfn.XLOOKUP(N132,DensityMultiplier[Biomass kg/m3],DensityMultiplier[Multiplier],,-1)","v":0.96114183595281966},{"$f":"F132-G132-H132","v":1935.0183913874941},{"$f":"IF(A133<='S1-Standard'!$C$7,('Growth-Model-1'!G132*EXP($AA$7)),0)","v":3.5537732051956158E-8},{"$f":"IF(A133<='S1-Standard'!$C$7,$AD$6*EXP($AD$7*('S1-Standard'!C$7-'Growth-Model-1'!A133)),0)","v":0.60991827912220908},90.591526927165646,4.4736556507242294E-2,283.68303355012728,5.8378835446931632,900.00886028508216,{"$f":"M133/'S1-Standard'!$C$17","v":33.333661492040079},14.306178204673158,1242.9462575530424,{"$f":"_xlfn.XLOOKUP(B133,FeedTables!$C$17:$T$17,FeedTables!$C$31:$T$31,,-1)","v":"Unga 4mm"},{"$f":"_xlfn.XLOOKUP(Q133,FeedPrice[Feed],FeedPrice[Price per kg],\"Unknown\",0)*O133","v":1421.0341116880052},124552.21165575237,{"$f":"_xlfn.XLOOKUP(O133,LabourFromFeed[Feed Quantity (kg)],LabourFromFeed[No. Labour],\"Out of range\",-1)","v":1},{"$f":"T133*OperatingCosts!$C$9","v":1200},158400]
[132,{"$f":"IF(A134<='S1-Standard'!$C$7, B133*EXP((LN((E133/100)+1))*1),)","v":469.58686595067201},{"$f":"_xlfn.XLOOKUP($B134,FeedTables!$C$42:$T$42,FeedTables!$C$44:$T$44,,-1)","v":1.5895597072390606},{"$f":"_xlfn.XLOOKUP($B134,FeedTables!$C$42:$T$42,FeedTables!$C$45:$T$45,,-1)","v":1.5711330683884976},{"$f":"_xlfn.XLOOKUP($B134,FeedTables!$C$42:$T$42,FeedTables!$C$46:$T$46,,-1)*_xlfn.XLOOKUP(N133,DensityMultiplier[Biomass kg/m3],DensityMultiplier[Multiplier],,-1)","v":0.96114183595281966},1934.4084730728341,{"$f":"IF(A134<='S1-Standard'!$C$7,('Growth-Model-1'!G133*EXP($AA$7)),0)","v":3.0587609441175099E-8},{"$f":"IF(A134<='S1-Standard'!$C$7,$AD$6*EXP($AD$7*('S1-Standard'!C$7-'Growth-Model-1'!A134)),0)","v":0.74495586837217065},91.336482826125433,4.5104435963518735E-2,349.82150586398859,6.1877050505571516,908.37281233869703,{"$f":"M134/'S1-Standard'!$C$17","v":33.643437494025818},14.439128216450213,1257.3853857694926,{"$f":"_xlfn.XLOOKUP(B134,FeedTables!$C$17:$T$17,FeedTables!$C$31:$T$31,,-1)","v":"Unga 4mm"},{"$f":"_xlfn.XLOOKUP(Q134,FeedPrice[Feed],FeedPrice[Price per kg],\"Unknown\",0)*O134","v":1434.2400496528212},125986.4517054052,{"$f":"_xlfn.XLOOKUP(O134,LabourFromFeed[Feed Quantity (kg)],LabourFromFeed[No. Labour],\"Out of range\",-1)","v":1},{"$f":"T134*OperatingCosts!$C$9","v":1200},159600]
[133,{"$f":"IF(A135<='S1-Standard'!$C$7, B134*EXP((LN((E134/100)+1))*1),)","v":474.10026177546359},{"$f":"_xlfn.XLOOKUP($B135,FeedTables!$C$42:$T$42,FeedTables!$C$44:$T$44,,-1)","v":1.5895597072390606},{"$f":"_xlfn.XLOOKUP($B135,FeedTables!$C$42:$T$42,FeedTables!$C$45:$T$45,,-1)","v":1.5711330683884976},{"$f":"_xlfn.XLOOKUP($B135,FeedTables!$C$42:$T$42,FeedTables!$C$46:$T$46,,-1)*_xlfn.XLOOKUP(N134,DensityMultiplier[Biomass kg/m3],DensityMultiplier[Multiplier],,-1)","v":0.96114183595281966},1933.6635171738742,{"$f":"IF(A135<='S1-Standard'!$C$7,('Growth-Model-1'!G134*EXP($AA$7)),0)","v":2.6326999425793812E-8},{"$f":"IF(A135<='S1-Standard'!$C$7,$AD$6*EXP($AD$7*('S1-Standard'!C$7-'Growth-Model-1'!A135)),0)","v":0.90989115233737361},92.246374004789814,4.5553764940636947E-2,431.37964599196437,6.6190846965491161,916.75037967779747,{"$f":"M135/'S1-Standard'!$C$17","v":33.953717765844353},14.572294651319373,1271.957680420812,{"$f":"_xlfn.XLOOKUP(B135,FeedTables!$C$17:$T$17,FeedTables!$C$31:$T$31,,-1)","v":"Unga 4mm"},{"$f":"_xlfn.XLOOKUP(Q135,FeedPrice[Feed],FeedPrice[Price per kg],\"Unknown\",0)*O135","v":1447.4674849450184},127433.91919035022,{"$f":"_xlfn.XLOOKUP(O135,LabourFromFeed[Feed Quantity (kg)],LabourFromFeed[No. Labour],\"Out of range\",-1)","v":1},{"$f":"T135*OperatingCosts!$C$9","v":1200},160800]
[134,{"$f":"IF(A136<='S1-Standard'!$C$7, B135*EXP((LN((E135/100)+1))*1),)","v":478.65703773574938},{"$f":"_xlfn.XLOOKUP($B136,FeedTables!$C$42:$T$42,FeedTables!$C$44:$T$44,,-1)","v":1.5895597072390606},{"$f":"_xlfn.XLOOKUP($B136,FeedTables!$C$42:$T$42,FeedTables!$C$45:$T$45,,-1)","v":1.5711330683884976},{"$f":"_xlfn.XLOOKUP($B136,FeedTables!$C$42:$T$42,FeedTables!$C$46:$T$46,,-1)*_xlfn.XLOOKUP(N135,DensityMultiplier[Biomass kg/m3],DensityMultiplier[Multiplier],,-1)","v":0.96114183595281966},1932.7536259952099,{"$f":"IF(A136<='S1-Standard'!$C$7,('Growth-Model-1'!G135*EXP($AA$7)),0)","v":2.265985840111865E-8},{"$f":"IF(A136<='S1-Standard'!$C$7,$AD$6*EXP($AD$7*('S1-Standard'!C$7-'Growth-Model-1'!A136)),0)","v":1.1113435630904034},93.357717590540076,4.6102576587921024E-2,531.95242866184606,7.1510371252109621,925.12612529189562,{"$f":"M136/'S1-Standard'!$C$17","v":34.263930566366504},14.70543212878192,1286.663112549594,{"$f":"_xlfn.XLOOKUP(B136,FeedTables!$C$17:$T$17,FeedTables!$C$31:$T$31,,-1)","v":"Unga 4mm"},{"$f":"_xlfn.XLOOKUP(Q136,FeedPrice[Feed],FeedPrice[Price per kg],\"Unknown\",0)*O136","v":1460.6920438951211},128894.61123424534,{"$f":"_xlfn.XLOOKUP(O136,LabourFromFeed[Feed Quantity (kg)],LabourFromFeed[No. Labour],\"Out of range\",-1)","v":1},{"$f":"T136*OperatingCosts!$C$9","v":1200},162000]
[135,{"$f":"IF(A137<='S1-Standard'!$C$7, B136*EXP((LN((E136/100)+1))*1),)","v":483.25761077616011},{"$f":"_xlfn.XLOOKUP($B137,FeedTables!$C$42:$T$42,FeedTables!$C$44:$T$44,,-1)","v":1.5895597072390606},{"$f":"_xlfn.XLOOKUP($B137,FeedTables!$C$42:$T$42,FeedTables!$C$45:$T$45,,-1)","v":1.5711330683884976},{"$f":"_xlfn.XLOOKUP($B137,FeedTables!$C$42:$T$42,FeedTables!$C$46:$T$46,,-1)*_xlfn.XLOOKUP(N136,DensityMultiplier[Biomass kg/m3],DensityMultiplier[Multiplier],,-1)","v":0.96114183595281966},1931.6422824094595,{"$f":"IF(A137<='S1-Standard'!$C$7,('Growth-Model-1'!G136*EXP($AA$7)),0)","v":1.9503520870505179E-8},{"$f":"IF(A137<='S1-Standard'!$C$7,$AD$6*EXP($AD$7*('S1-Standard'!C$7-'Growth-Model-1'!A137)),0)","v":1.3573980932221696},94.715115703265766,4.6772896643588031E-2,655.97296882788601,7.8070100940388478,933.48083427140421,{"$f":"M137/'S1-Standard'!$C$17","v":34.57336423227423},14.838235216377273,1301.5013477659713,{"$f":"_xlfn.XLOOKUP(B137,FeedTables!$C$17:$T$17,FeedTables!$C$31:$T$31,,-1)","v":"Unga 4mm"},{"$f":"_xlfn.XLOOKUP(Q137,FeedPrice[Feed],FeedPrice[Price per kg],\"Unknown\",0)*O137","v":1473.8833878662761},130368.49462211161,{"$f":"_xlfn.XLOOKUP(O137,LabourFromFeed[Feed Quantity (kg)],LabourFromFeed[No. Labour],\"Out of range\",-1)","v":1},{"$f":"T137*OperatingCosts!$C$9","v":1200},163200]
[136,{"$f":"IF(A138<='S1-Standard'!$C$7, B137*EXP((LN((E137/100)+1))*1),)","v":487.9024018487558},{"$f":"_xlfn.XLOOKUP($B138,FeedTables!$C$42:$T$42,FeedTables!$C$44:$T$44,,-1)","v":1.5895597072390606},{"$f":"_xlfn.XLOOKUP($B138,FeedTables!$C$42:$T$42,FeedTables!$C$45:$T$45,,-1)","v":1.5711330683884976},{"$f":"_xlfn.XLOOKUP($B138,FeedTables!$C$42:$T$42,FeedTables!$C$46:$T$46,,-1)*_xlfn.XLOOKUP(N137,DensityMultiplier[Biomass kg/m3],DensityMultiplier[Multiplier],,-1)","v":0.96114183595281966},1930.2848842967339,{"$f":"IF(A138<='S1-Standard'!$C$7,('Growth-Model-1'!G137*EXP($AA$7)),0)","v":1.6786835981616395E-8},{"$f":"IF(A138<='S1-Standard'!$C$7,$AD$6*EXP($AD$7*('S1-Standard'!C$7-'Growth-Model-1'!A138)),0)","v":1.6579297749829132},96.373045495035527,4.7591627404955816E-2,808.90792750106812,8.6159180215399154,941.79063130072427,{"$f":"M138/'S1-Standard'!$C$17","v":34.881134492619417},14.970324401708693,1316.47167216768,{"$f":"_xlfn.XLOOKUP(B138,FeedTables!$C$17:$T$17,FeedTables!$C$31:$T$31,,-1)","v":"Unga 4mm"},{"$f":"_xlfn.XLOOKUP(Q138,FeedPrice[Feed],FeedPrice[Price per kg],\"Unknown\",0)*O138","v":1487.0038198541647},131855.49844196578,{"$f":"_xlfn.XLOOKUP(O138,LabourFromFeed[Feed Quantity (kg)],LabourFromFeed[No. Labour],\"Out of range\",-1)","v":1},{"$f":"T138*OperatingCosts!$C$9","v":1200},164400]
[137,{"$f":"IF(A139<='S1-Standard'!$C$7, B138*EXP((LN((E138/100)+1))*1),)","v":492.59183595154281},{"$f":"_xlfn.XLOOKUP($B139,FeedTables!$C$42:$T$42,FeedTables!$C$44:$T$44,,-1)","v":1.5895597072390606},{"$f":"_xlfn.XLOOKUP($B139,FeedTables!$C$42:$T$42,FeedTables!$C$45:$T$45,,-1)","v":1.5711330683884976},{"$f":"_xlfn.XLOOKUP($B139,FeedTables!$C$42:$T$42,FeedTables!$C$46:$T$46,,-1)*_xlfn.XLOOKUP(N138,DensityMultiplier[Biomass kg/m3],DensityMultiplier[Multiplier],,-1)","v":0.96114183595281966},1928.6269545049643,1.13647694479976E-5,{"$f":"IF(A139<='S1-Standard'!$C$7,$AD$6*EXP($AD$7*('S1-Standard'!C$7-'Growth-Model-1'!A139)),0)","v":2.0249999999999999},98.398056859804981,4.8591633017187642E-2,997.50406599452174,9.6134220875344365,950.02589238523296,{"$f":"M139/'S1-Standard'!$C$17","v":35.186144162416035},15.101228793693981,1331.572900961374,{"$f":"_xlfn.XLOOKUP(B139,FeedTables!$C$17:$T$17,FeedTables!$C$31:$T$31,,-1)","v":"Unga 4mm"},{"$f":"_xlfn.XLOOKUP(Q139,FeedPrice[Feed],FeedPrice[Price per kg],\"Unknown\",0)*O139","v":1500.0065662005024},133355.50500816628,{"$f":"_xlfn.XLOOKUP(O139,LabourFromFeed[Feed Quantity (kg)],LabourFromFeed[No. Labour],\"Out of range\",-1)","v":1},{"$f":"T139*OperatingCosts!$C$9","v":1200},165600]
[138,{"$f":"IF(A140<='S1-Standard'!$C$7, B139*EXP((LN((E139/100)+1))*1),)","v":0},{"$f":"_xlfn.XLOOKUP($B140,FeedTables!$C$42:$T$42,FeedTables!$C$44:$T$44,,-1)","v":{"$error":"#N/A"}},{"$f":"_xlfn.XLOOKUP($B140,FeedTables!$C$42:$T$42,FeedTables!$C$45:$T$45,,-1)","v":{"$error":"#N/A"}},{"$f":"_xlfn.XLOOKUP($B140,FeedTables!$C$42:$T$42,FeedTables!$C$46:$T$46,,-1)*_xlfn.XLOOKUP(N139,DensityMultiplier[Biomass kg/m3],DensityMultiplier[Multiplier],,-1)","v":{"$error":"#N/A"}},1926.6019431401946,{"$f":"IF(A140<='S1-Standard'!$C$7,('Growth-Model-1'!G139*EXP($AA$7)),0)","v":0},{"$f":"IF(A140<='S1-Standard'!$C$7,$AD$6*EXP($AD$7*('S1-Standard'!C$7-'Growth-Model-1'!A140)),0)","v":0},98.398056859804981,4.8591633017187642E-2,0,9.6134220875344365,0,{"$f":"M140/'S1-Standard'!$C$17","v":0},{"$error":"#N/A"},{"$error":"#N/A"},{"$f":"_xlfn.XLOOKUP(B140,FeedTables!$C$17:$T$17,FeedTables!$C$31:$T$31,,-1)","v":{"$error":"#N/A"}},{"$f":"_xlfn.XLOOKUP(Q140,FeedPrice[Feed],FeedPrice[Price per kg],\"Unknown\",0)*O140","v":{"$error":"#N/A"}},{"$error":"#N/A"},{"$f":"_xlfn.XLOOKUP(O140,LabourFromFeed[Feed Quantity (kg)],LabourFromFeed[No. Labour],\"Out of range\",-1)","v":{"$error":"#N/A"}},{"$f":"T140*OperatingCosts!$C$9","v":{"$error":"#N/A"}},{"$error":"#N/A"}]
[139,{"$f":"IF(A141<='S1-Standard'!$C$7, B140*EXP((LN((E140/100)+1))*1),)","v":0},{"$f":"_xlfn.XLOOKUP($B141,FeedTables!$C$42:$T$42,FeedTables!$C$44:$T$44,,-1)","v":{"$error":"#N/A"}},{"$f":"_xlfn.XLOOKUP($B141,FeedTables!$C$42:$T$42,FeedTables!$C$45:$T$45,,-1)","v":{"$error":"#N/A"}},{"$f":"_xlfn.XLOOKUP($B141,FeedTables!$C$42:$T$42,FeedTables!$C$46:$T$46,,-1)*_xlfn.XLOOKUP(N140,DensityMultiplier[Biomass kg/m3],DensityMultiplier[Multiplier],,-1)","v":{"$error":"#N/A"}},1926.6019431401946,{"$f":"IF(A141<='S1-Standard'!$C$7,('Growth-Model-1'!G140*EXP($AA$7)),0)","v":0},{"$f":"IF(A141<='S1-Standard'!$C$7,$AD$6*EXP($AD$7*('S1-Standard'!C$7-'Growth-Model-1'!A141)),0)","v":0},98.398056859804981,4.8591633017187642E-2,0,9.6134220875344365,0,{"$f":"M141/'S1-Standard'!$C$17","v":0},{"$error":"#N/A"},{"$error":"#N/A"},{"$f":"_xlfn.XLOOKUP(B141,FeedTables!$C$17:$T$17,FeedTables!$C$31:$T$31,,-1)","v":{"$error":"#N/A"}},{"$f":"_xlfn.XLOOKUP(Q141,FeedPrice[Feed],FeedPrice[Price per kg],\"Unknown\",0)*O141","v":{"$error":"#N/A"}},{"$error":"#N/A"},{"$f":"_xlfn.XLOOKUP(O141,LabourFromFeed[Feed Quantity (kg)],LabourFromFeed[No. Labour],\"Out of range\",-1)","v":{"$error":"#N/A"}},{"$f":"T141*OperatingCosts!$C$9","v":{"$error":"#N/A"}},{"$error":"#N/A"}]
[140,{"$f":"IF(A142<='S1-Standard'!$C$7, B141*EXP((LN((E141/100)+1))*1),)","v":0},{"$f":"_xlfn.XLOOKUP($B142,FeedTables!$C$42:$T$42,FeedTables!$C$44:$T$44,,-1)","v":{"$error":"#N/A"}},{"$f":"_xlfn.XLOOKUP($B142,FeedTables!$C$42:$T$42,FeedTables!$C$45:$T$45,,-1)","v":{"$error":"#N/A"}},{"$f":"_xlfn.XLOOKUP($B142,FeedTables!$C$42:$T$42,FeedTables!$C$46:$T$46,,-1)*_xlfn.XLOOKUP(N141,DensityMultiplier[Biomass kg/m3],DensityMultiplier[Multiplier],,-1)","v":{"$error":"#N/A"}},1926.6019431401946,{"$f":"IF(A142<='S1-Standard'!$C$7,('Growth-Model-1'!G141*EXP($AA$7)),0)","v":0},{"$f":"IF(A142<='S1-Standard'!$C$7,$AD$6*EXP($AD$7*('S1-Standard'!C$7-'Growth-Model-1'!A142)),0)","v":0},98.398056859804981,4.8591633017187642E-2,0,9.6134220875344365,0,{"$f":"M142/'S1-Standard'!$C$17","v":0},{"$error":"#N/A"},{"$error":"#N/A"},{"$f":"_xlfn.XLOOKUP(B142,FeedTables!$C$17:$T$17,FeedTables!$C$31:$T$31,,-1)","v":{"$error":"#N/A"}},{"$f":"_xlfn.XLOOKUP(Q142,FeedPrice[Feed],FeedPrice[Price per kg],\"Unknown\",0)*O142","v":{"$error":"#N/A"}},{"$error":"#N/A"},{"$f":"_xlfn.XLOOKUP(O142,LabourFromFeed[Feed Quantity (kg)],LabourFromFeed[No. Labour],\"Out of range\",-1)","v":{"$error":"#N/A"}},{"$f":"T142*OperatingCosts!$C$9","v":{"$error":"#N/A"}},{"$error":"#N/A"}]
[141,{"$f":"IF(A143<='S1-Standard'!$C$7, B142*EXP((LN((E142/100)+1))*1),)","v":0},{"$f":"_xlfn.XLOOKUP($B143,FeedTables!$C$42:$T$42,FeedTables!$C$44:$T$44,,-1)","v":{"$error":"#N/A"}},{"$f":"_xlfn.XLOOKUP($B143,FeedTables!$C$42:$T$42,FeedTables!$C$45:$T$45,,-1)","v":{"$error":"#N/A"}},{"$f":"_xlfn.XLOOKUP($B143,FeedTables!$C$42:$T$42,FeedTables!$C$46:$T$46,,-1)*_xlfn.XLOOKUP(N142,DensityMultiplier[Biomass kg/m3],DensityMultiplier[Multiplier],,-1)","v":{"$error":"#N/A"}},1926.6019431401946,{"$f":"IF(A143<='S1-Standard'!$C$7,('Growth-Model-1'!G142*EXP($AA$7)),0)","v":0},{"$f":"IF(A143<='S1-Standard'!$C$7,$AD$6*EXP($AD$7*('S1-Standard'!C$7-'Growth-Model-1'!A143)),0)","v":0},98.398056859804981,4.8591633017187642E-2,0,9.6134220875344365,0,{"$f":"M143/'S1-Standard'!$C$17","v":0},{"$error":"#N/A"},{"$error":"#N/A"},{"$f":"_xlfn.XLOOKUP(B143,FeedTables!$C$17:$T$17,FeedTables!$C$31:$T$31,,-1)","v":{"$error":"#N/A"}},{"$f":"_xlfn.XLOOKUP(Q143,FeedPrice[Feed],FeedPrice[Price per kg],\"Unknown\",0)*O143","v":{"$error":"#N/A"}},{"$error":"#N/A"},{"$f":"_xlfn.XLOOKUP(O143,LabourFromFeed[Feed Quantity (kg)],LabourFromFeed[No. Labour],\"Out of range\",-1)","v":{"$error":"#N/A"}},{"$f":"T143*OperatingCosts!$C$9","v":{"$error":"#N/A"}},{"$error":"#N/A"}]
[142,{"$f":"IF(A144<='S1-Standard'!$C$7, B143*EXP((LN((E143/100)+1))*1),)","v":0},{"$f":"_xlfn.XLOOKUP($B144,FeedTables!$C$42:$T$42,FeedTables!$C$44:$T$44,,-1)","v":{"$error":"#N/A"}},{"$f":"_xlfn.XLOOKUP($B144,FeedTables!$C$42:$T$42,FeedTables!$C$45:$T$45,,-1)","v":{"$error":"#N/A"}},{"$f":"_xlfn.XLOOKUP($B144,FeedTables!$C$42:$T$42,FeedTables!$C$46:$T$46,,-1)*_xlfn.XLOOKUP(N143,DensityMultiplier[Biomass kg/m3],DensityMultiplier[Multiplier],,-1)","v":{"$error":"#N/A"}},1926.6019431401946,{"$f":"IF(A144<='S1-Standard'!$C$7,('Growth-Model-1'!G143*EXP($AA$7)),0)","v":0},{"$f":"IF(A144<='S1-Standard'!$C$7,$AD$6*EXP($AD$7*('S1-Standard'!C$7-'Growth-Model-1'!A144)),0)","v":0},98.398056859804981,4.8591633017187642E-2,0,9.6134220875344365,0,{"$f":"M144/'S1-Standard'!$C$17","v":0},{"$error":"#N/A"},{"$error":"#N/A"},{"$f":"_xlfn.XLOOKUP(B144,FeedTables!$C$17:$T$17,FeedTables!$C$31:$T$31,,-1)","v":{"$error":"#N/A"}},{"$f":"_xlfn.XLOOKUP(Q144,FeedPrice[Feed],FeedPrice[Price per kg],\"Unknown\",0)*O144","v":{"$error":"#N/A"}},{"$error":"#N/A"},{"$f":"_xlfn.XLOOKUP(O144,LabourFromFeed[Feed Quantity (kg)],LabourFromFeed[No. Labour],\"Out of range\",-1)","v":{"$error":"#N/A"}},{"$f":"T144*OperatingCosts!$C$9","v":{"$error":"#N/A"}},{"$error":"#N/A"}]
[143,{"$f":"IF(A145<='S1-Standard'!$C$7, B144*EXP((LN((E144/100)+1))*1),)","v":0},{"$f":"_xlfn.XLOOKUP($B145,FeedTables!$C$42:$T$42,FeedTables!$C$44:$T$44,,-1)","v":{"$error":"#N/A"}},{"$f":"_xlfn.XLOOKUP($B145,FeedTables!$C$42:$T$42,FeedTables!$C$45:$T$45,,-1)","v":{"$error":"#N/A"}},{"$f":"_xlfn.XLOOKUP($B145,FeedTables!$C$42:$T$42,FeedTables!$C$46:$T$46,,-1)*_xlfn.XLOOKUP(N144,DensityMultiplier[Biomass kg/m3],DensityMultiplier[Multiplier],,-1)","v":{"$error":"#N/A"}},1926.6019431401946,{"$f":"IF(A145<='S1-Standard'!$C$7,('Growth-Model-1'!G144*EXP($AA$7)),0)","v":0},{"$f":"IF(A145<='S1-Standard'!$C$7,$AD$6*EXP($AD$7*('S1-Standard'!C$7-'Growth-Model-1'!A145)),0)","v":0},98.398056859804981,4.8591633017187642E-2,0,9.6134220875344365,0,{"$f":"M145/'S1-Standard'!$C$17","v":0},{"$error":"#N/A"},{"$error":"#N/A"},{"$f":"_xlfn.XLOOKUP(B145,FeedTables!$C$17:$T$17,FeedTables!$C$31:$T$31,,-1)","v":{"$error":"#N/A"}},{"$f":"_xlfn.XLOOKUP(Q145,FeedPrice[Feed],FeedPrice[Price per kg],\"Unknown\",0)*O145","v":{"$error":"#N/A"}},{"$error":"#N/A"},{"$f":"_xlfn.XLOOKUP(O145,LabourFromFeed[Feed Quantity (kg)],LabourFromFeed[No. Labour],\"Out of range\",-1)","v":{"$error":"#N/A"}},{"$f":"T145*OperatingCosts!$C$9","v":{"$error":"#N/A"}},{"$error":"#N/A"}]
[144,{"$f":"IF(A146<='S1-Standard'!$C$7, B145*EXP((LN((E145/100)+1))*1),)","v":0},{"$f":"_xlfn.XLOOKUP($B146,FeedTables!$C$42:$T$42,FeedTables!$C$44:$T$44,,-1)","v":{"$error":"#N/A"}},{"$f":"_xlfn.XLOOKUP($B146,FeedTables!$C$42:$T$42,FeedTables!$C$45:$T$45,,-1)","v":{"$error":"#N/A"}},{"$f":"_xlfn.XLOOKUP($B146,FeedTables!$C$42:$T$42,FeedTables!$C$46:$T$46,,-1)*_xlfn.XLOOKUP(N145,DensityMultiplier[Biomass kg/m3],DensityMultiplier[Multiplier],,-1)","v":{"$error":"#N/A"}},1926.6019431401946,{"$f":"IF(A146<='S1-Standard'!$C$7,('Growth-Model-1'!G145*EXP($AA$7)),0)","v":0},{"$f":"IF(A146<='S1-Standard'!$C$7,$AD$6*EXP($AD$7*('S1-Standard'!C$7-'Growth-Model-1'!A146)),0)","v":0},98.398056859804981,4.8591633017187642E-2,0,9.6134220875344365,0,{"$f":"M146/'S1-Standard'!$C$17","v":0},{"$error":"#N/A"},{"$error":"#N/A"},{"$f":"_xlfn.XLOOKUP(B146,FeedTables!$C$17:$T$17,FeedTables!$C$31:$T$31,,-1)","v":{"$error":"#N/A"}},{"$f":"_xlfn.XLOOKUP(Q146,FeedPrice[Feed],FeedPrice[Price per kg],\"Unknown\",0)*O146","v":{"$error":"#N/A"}},{"$error":"#N/A"},{"$f":"_xlfn.XLOOKUP(O146,LabourFromFeed[Feed Quantity (kg)],LabourFromFeed[No. Labour],\"Out of range\",-1)","v":{"$error":"#N/A"}},{"$f":"T146*OperatingCosts!$C$9","v":{"$error":"#N/A"}},{"$error":"#N/A"}]
[145,{"$f":"IF(A147<='S1-Standard'!$C$7, B146*EXP((LN((E146/100)+1))*1),)","v":0},{"$f":"_xlfn.XLOOKUP($B147,FeedTables!$C$42:$T$42,FeedTables!$C$44:$T$44,,-1)","v":{"$error":"#N/A"}},{"$f":"_xlfn.XLOOKUP($B147,FeedTables!$C$42:$T$42,FeedTables!$C$45:$T$45,,-1)","v":{"$error":"#N/A"}},{"$f":"_xlfn.XLOOKUP($B147,FeedTables!$C$42:$T$42,FeedTables!$C$46:$T$46,,-1)*_xlfn.XLOOKUP(N146,DensityMultiplier[Biomass kg/m3],DensityMultiplier[Multiplier],,-1)","v":{"$error":"#N/A"}},1926.6019431401946,{"$f":"IF(A147<='S1-Standard'!$C$7,('Growth-Model-1'!G146*EXP($AA$7)),0)","v":0},{"$f":"IF(A147<='S1-Standard'!$C$7,$AD$6*EXP($AD$7*('S1-Standard'!C$7-'Growth-Model-1'!A147)),0)","v":0},98.398056859804981,4.8591633017187642E-2,0,9.6134220875344365,0,{"$f":"M147/'S1-Standard'!$C$17","v":0},{"$error":"#N/A"},{"$error":"#N/A"},{"$f":"_xlfn.XLOOKUP(B147,FeedTables!$C$17:$T$17,FeedTables!$C$31:$T$31,,-1)","v":{"$error":"#N/A"}},{"$f":"_xlfn.XLOOKUP(Q147,FeedPrice[Feed],FeedPrice[Price per kg],\"Unknown\",0)*O147","v":{"$error":"#N/A"}},{"$error":"#N/A"},{"$f":"_xlfn.XLOOKUP(O147,LabourFromFeed[Feed Quantity (kg)],LabourFromFeed[No. Labour],\"Out of range\",-1)","v":{"$error":"#N/A"}},{"$f":"T147*OperatingCosts!$C$9","v":{"$error":"#N/A"}},{"$error":"#N/A"}]
[146,{"$f":"IF(A148<='S1-Standard'!$C$7, B147*EXP((LN((E147/100)+1))*1),)","v":0},{"$f":"_xlfn.XLOOKUP($B148,FeedTables!$C$42:$T$42,FeedTables!$C$44:$T$44,,-1)","v":{"$error":"#N/A"}},{"$f":"_xlfn.XLOOKUP($B148,FeedTables!$C$42:$T$42,FeedTables!$C$45:$T$45,,-1)","v":{"$error":"#N/A"}},{"$f":"_xlfn.XLOOKUP($B148,FeedTables!$C$42:$T$42,FeedTables!$C$46:$T$46,,-1)*_xlfn.XLOOKUP(N147,DensityMultiplier[Biomass kg/m3],DensityMultiplier[Multiplier],,-1)","v":{"$error":"#N/A"}},1926.6019431401946,{"$f":"IF(A148<='S1-Standard'!$C$7,('Growth-Model-1'!G147*EXP($AA$7)),0)","v":0},{"$f":"IF(A148<='S1-Standard'!$C$7,$AD$6*EXP($AD$7*('S1-Standard'!C$7-'Growth-Model-1'!A148)),0)","v":0},98.398056859804981,4.8591633017187642E-2,0,9.6134220875344365,0,{"$f":"M148/'S1-Standard'!$C$17","v":0},{"$error":"#N/A"},{"$error":"#N/A"},{"$f":"_xlfn.XLOOKUP(B148,FeedTables!$C$17:$T$17,FeedTables!$C$31:$T$31,,-1)","v":{"$error":"#N/A"}},{"$f":"_xlfn.XLOOKUP(Q148,FeedPrice[Feed],FeedPrice[Price per kg],\"Unknown\",0)*O148","v":{"$error":"#N/A"}},{"$error":"#N/A"},{"$f":"_xlfn.XLOOKUP(O148,LabourFromFeed[Feed Quantity (kg)],LabourFromFeed[No. Labour],\"Out of range\",-1)","v":{"$error":"#N/A"}},{"$f":"T148*OperatingCosts!$C$9","v":{"$error":"#N/A"}},{"$error":"#N/A"}]
[147,{"$f":"IF(A149<='S1-Standard'!$C$7, B148*EXP((LN((E148/100)+1))*1),)","v":0},{"$f":"_xlfn.XLOOKUP($B149,FeedTables!$C$42:$T$42,FeedTables!$C$44:$T$44,,-1)","v":{"$error":"#N/A"}},{"$f":"_xlfn.XLOOKUP($B149,FeedTables!$C$42:$T$42,FeedTables!$C$45:$T$45,,-1)","v":{"$error":"#N/A"}},{"$f":"_xlfn.XLOOKUP($B149,FeedTables!$C$42:$T$42,FeedTables!$C$46:$T$46,,-1)*_xlfn.XLOOKUP(N148,DensityMultiplier[Biomass kg/m3],DensityMultiplier[Multiplier],,-1)","v":{"$error":"#N/A"}},1926.6019431401946,{"$f":"IF(A149<='S1-Standard'!$C$7,('Growth-Model-1'!G148*EXP($AA$7)),0)","v":0},{"$f":"IF(A149<='S1-Standard'!$C$7,$AD$6*EXP($AD$7*('S1-Standard'!C$7-'Growth-Model-1'!A149)),0)","v":0},98.398056859804981,4.8591633017187642E-2,0,9.6134220875344365,0,{"$f":"M149/'S1-Standard'!$C$17","v":0},{"$error":"#N/A"},{"$error":"#N/A"},{"$f":"_xlfn.XLOOKUP(B149,FeedTables!$C$17:$T$17,FeedTables!$C$31:$T$31,,-1)","v":{"$error":"#N/A"}},{"$f":"_xlfn.XLOOKUP(Q149,FeedPrice[Feed],FeedPrice[Price per kg],\"Unknown\",0)*O149","v":{"$error":"#N/A"}},{"$error":"#N/A"},{"$f":"_xlfn.XLOOKUP(O149,LabourFromFeed[Feed Quantity (kg)],LabourFromFeed[No. Labour],\"Out of range\",-1)","v":{"$error":"#N/A"}},{"$f":"T149*OperatingCosts!$C$9","v":{"$error":"#N/A"}},{"$error":"#N/A"}]
[148,{"$f":"IF(A150<='S1-Standard'!$C$7, B149*EXP((LN((E149/100)+1))*1),)","v":0},{"$f":"_xlfn.XLOOKUP($B150,FeedTables!$C$42:$T$42,FeedTables!$C$44:$T$44,,-1)","v":{"$error":"#N/A"}},{"$f":"_xlfn.XLOOKUP($B150,FeedTables!$C$42:$T$42,FeedTables!$C$45:$T$45,,-1)","v":{"$error":"#N/A"}},{"$f":"_xlfn.XLOOKUP($B150,FeedTables!$C$42:$T$42,FeedTables!$C$46:$T$46,,-1)*_xlfn.XLOOKUP(N149,DensityMultiplier[Biomass kg/m3],DensityMultiplier[Multiplier],,-1)","v":{"$error":"#N/A"}},1926.6019431401946,{"$f":"IF(A150<='S1-Standard'!$C$7,('Growth-Model-1'!G149*EXP($AA$7)),0)","v":0},{"$f":"IF(A150<='S1-Standard'!$C$7,$AD$6*EXP($AD$7*('S1-Standard'!C$7-'Growth-Model-1'!A150)),0)","v":0},98.398056859804981,4.8591633017187642E-2,0,9.6134220875344365,0,{"$f":"M150/'S1-Standard'!$C$17","v":0},{"$error":"#N/A"},{"$error":"#N/A"},{"$f":"_xlfn.XLOOKUP(B150,FeedTables!$C$17:$T$17,FeedTables!$C$31:$T$31,,-1)","v":{"$error":"#N/A"}},{"$f":"_xlfn.XLOOKUP(Q150,FeedPrice[Feed],FeedPrice[Price per kg],\"Unknown\",0)*O150","v":{"$error":"#N/A"}},{"$error":"#N/A"},{"$f":"_xlfn.XLOOKUP(O150,LabourFromFeed[Feed Quantity (kg)],LabourFromFeed[No. Labour],\"Out of range\",-1)","v":{"$error":"#N/A"}},{"$f":"T150*OperatingCosts!$C$9","v":{"$error":"#N/A"}},{"$error":"#N/A"}]
[149,{"$f":"IF(A151<='S1-Standard'!$C$7, B150*EXP((LN((E150/100)+1))*1),)","v":0},{"$f":"_xlfn.XLOOKUP($B151,FeedTables!$C$42:$T$42,FeedTables!$C$44:$T$44,,-1)","v":{"$error":"#N/A"}},{"$f":"_xlfn.XLOOKUP($B151,FeedTables!$C$42:$T$42,FeedTables!$C$45:$T$45,,-1)","v":{"$error":"#N/A"}},{"$f":"_xlfn.XLOOKUP($B151,FeedTables!$C$42:$T$42,FeedTables!$C$46:$T$46,,-1)*_xlfn.XLOOKUP(N150,DensityMultiplier[Biomass kg/m3],DensityMultiplier[Multiplier],,-1)","v":{"$error":"#N/A"}},1926.6019431401946,{"$f":"IF(A151<='S1-Standard'!$C$7,('Growth-Model-1'!G150*EXP($AA$7)),0)","v":0},{"$f":"IF(A151<='S1-Standard'!$C$7,$AD$6*EXP($AD$7*('S1-Standard'!C$7-'Growth-Model-1'!A151)),0)","v":0},98.398056859804981,4.8591633017187642E-2,0,9.6134220875344365,0,{"$f":"M151/'S1-Standard'!$C$17","v":0},{"$error":"#N/A"},{"$error":"#N/A"},{"$f":"_xlfn.XLOOKUP(B151,FeedTables!$C$17:$T$17,FeedTables!$C$31:$T$31,,-1)","v":{"$error":"#N/A"}},{"$f":"_xlfn.XLOOKUP(Q151,FeedPrice[Feed],FeedPrice[Price per kg],\"Unknown\",0)*O151","v":{"$error":"#N/A"}},{"$error":"#N/A"},{"$f":"_xlfn.XLOOKUP(O151,LabourFromFeed[Feed Quantity (kg)],LabourFromFeed[No. Labour],\"Out of range\",-1)","v":{"$error":"#N/A"}},{"$f":"T151*OperatingCosts!$C$9","v":{"$error":"#N/A"}},{"$error":"#N/A"}]
[150,{"$f":"IF(A152<='S1-Standard'!$C$7, B151*EXP((LN((E151/100)+1))*1),)","v":0},{"$f":"_xlfn.XLOOKUP($B152,FeedTables!$C$42:$T$42,FeedTables!$C$44:$T$44,,-1)","v":{"$error":"#N/A"}},{"$f":"_xlfn.XLOOKUP($B152,FeedTables!$C$42:$T$42,FeedTables!$C$45:$T$45,,-1)","v":{"$error":"#N/A"}},{"$f":"_xlfn.XLOOKUP($B152,FeedTables!$C$42:$T$42,FeedTables!$C$46:$T$46,,-1)*_xlfn.XLOOKUP(N151,DensityMultiplier[Biomass kg/m3],DensityMultiplier[Multiplier],,-1)","v":{"$error":"#N/A"}},1926.6019431401946,{"$f":"IF(A152<='S1-Standard'!$C$7,('Growth-Model-1'!G151*EXP($AA$7)),0)","v":0},{"$f":"IF(A152<='S1-Standard'!$C$7,$AD$6*EXP($AD$7*('S1-Standard'!C$7-'Growth-Model-1'!A152)),0)","v":0},98.398056859804981,4.8591633017187642E-2,0,9.6134220875344365,0,{"$f":"M152/'S1-Standard'!$C$17","v":0},{"$error":"#N/A"},{"$error":"#N/A"},{"$f":"_xlfn.XLOOKUP(B152,FeedTables!$C$17:$T$17,FeedTables!$C$31:$T$31,,-1)","v":{"$error":"#N/A"}},{"$f":"_xlfn.XLOOKUP(Q152,FeedPrice[Feed],FeedPrice[Price per kg],\"Unknown\",0)*O152","v":{"$error":"#N/A"}},{"$error":"#N/A"},{"$f":"_xlfn.XLOOKUP(O152,LabourFromFeed[Feed Quantity (kg)],LabourFromFeed[No. Labour],\"Out of range\",-1)","v":{"$error":"#N/A"}},{"$f":"T152*OperatingCosts!$C$9","v":{"$error":"#N/A"}},{"$error":"#N/A"}]
[151,{"$f":"IF(A153<='S1-Standard'!$C$7, B152*EXP((LN((E152/100)+1))*1),)","v":0},{"$f":"_xlfn.XLOOKUP($B153,FeedTables!$C$42:$T$42,FeedTables!$C$44:$T$44,,-1)","v":{"$error":"#N/A"}},{"$f":"_xlfn.XLOOKUP($B153,FeedTables!$C$42:$T$42,FeedTables!$C$45:$T$45,,-1)","v":{"$error":"#N/A"}},{"$f":"_xlfn.XLOOKUP($B153,FeedTables!$C$42:$T$42,FeedTables!$C$46:$T$46,,-1)*_xlfn.XLOOKUP(N152,DensityMultiplier[Biomass kg/m3],DensityMultiplier[Multiplier],,-1)","v":{"$error":"#N/A"}},1926.6019431401946,{"$f":"IF(A153<='S1-Standard'!$C$7,('Growth-Model-1'!G152*EXP($AA$7)),0)","v":0},{"$f":"IF(A153<='S1-Standard'!$C$7,$AD$6*EXP($AD$7*('S1-Standard'!C$7-'Growth-Model-1'!A153)),0)","v":0},98.398056859804981,4.8591633017187642E-2,0,9.6134220875344365,0,{"$f":"M153/'S1-Standard'!$C$17","v":0},{"$error":"#N/A"},{"$error":"#N/A"},{"$f":"_xlfn.XLOOKUP(B153,FeedTables!$C$17:$T$17,FeedTables!$C$31:$T$31,,-1)","v":{"$error":"#N/A"}},{"$f":"_xlfn.XLOOKUP(Q153,FeedPrice[Feed],FeedPrice[Price per kg],\"Unknown\",0)*O153","v":{"$error":"#N/A"}},{"$error":"#N/A"},{"$f":"_xlfn.XLOOKUP(O153,LabourFromFeed[Feed Quantity (kg)],LabourFromFeed[No. Labour],\"Out of range\",-1)","v":{"$error":"#N/A"}},{"$f":"T153*OperatingCosts!$C$9","v":{"$error":"#N/A"}},{"$error":"#N/A"}]
[152,{"$f":"IF(A154<='S1-Standard'!$C$7, B153*EXP((LN((E153/100)+1))*1),)","v":0},{"$f":"_xlfn.XLOOKUP($B154,FeedTables!$C$42:$T$42,FeedTables!$C$44:$T$44,,-1)","v":{"$error":"#N/A"}},{"$f":"_xlfn.XLOOKUP($B154,FeedTables!$C$42:$T$42,FeedTables!$C$45:$T$45,,-1)","v":{"$error":"#N/A"}},{"$f":"_xlfn.XLOOKUP($B154,FeedTables!$C$42:$T$42,FeedTables!$C$46:$T$46,,-1)*_xlfn.XLOOKUP(N153,DensityMultiplier[Biomass kg/m3],DensityMultiplier[Multiplier],,-1)","v":{"$error":"#N/A"}},1926.6019431401946,{"$f":"IF(A154<='S1-Standard'!$C$7,('Growth-Model-1'!G153*EXP($AA$7)),0)","v":0},{"$f":"IF(A154<='S1-Standard'!$C$7,$AD$6*EXP($AD$7*('S1-Standard'!C$7-'Growth-Model-1'!A154)),0)","v":0},98.398056859804981,4.8591633017187642E-2,0,9.6134220875344365,0,{"$f":"M154/'S1-Standard'!$C$17","v":0},{"$error":"#N/A"},{"$error":"#N/A"},{"$f":"_xlfn.XLOOKUP(B154,FeedTables!$C$17:$T$17,FeedTables!$C$31:$T$31,,-1)","v":{"$error":"#N/A"}},{"$f":"_xlfn.XLOOKUP(Q154,FeedPrice[Feed],FeedPrice[Price per kg],\"Unknown\",0)*O154","v":{"$error":"#N/A"}},{"$error":"#N/A"},{"$f":"_xlfn.XLOOKUP(O154,LabourFromFeed[Feed Quantity (kg)],LabourFromFeed[No. Labour],\"Out of range\",-1)","v":{"$error":"#N/A"}},{"$f":"T154*OperatingCosts!$C$9","v":{"$error":"#N/A"}},{"$error":"#N/A"}]
[153,{"$f":"IF(A155<='S1-Standard'!$C$7, B154*EXP((LN((E154/100)+1))*1),)","v":0},{"$f":"_xlfn.XLOOKUP($B155,FeedTables!$C$42:$T$42,FeedTables!$C$44:$T$44,,-1)","v":{"$error":"#N/A"}},{"$f":"_xlfn.XLOOKUP($B155,FeedTables!$C$42:$T$42,FeedTables!$C$45:$T$45,,-1)","v":{"$error":"#N/A"}},{"$f":"_xlfn.XLOOKUP($B155,FeedTables!$C$42:$T$42,FeedTables!$C$46:$T$46,,-1)*_xlfn.XLOOKUP(N154,DensityMultiplier[Biomass kg/m3],DensityMultiplier[Multiplier],,-1)","v":{"$error":"#N/A"}},1926.6019431401946,{"$f":"IF(A155<='S1-Standard'!$C$7,('Growth-Model-1'!G154*EXP($AA$7)),0)","v":0},{"$f":"IF(A155<='S1-Standard'!$C$7,$AD$6*EXP($AD$7*('S1-Standard'!C$7-'Growth-Model-1'!A155)),0)","v":0},98.398056859804981,4.8591633017187642E-2,0,9.6134220875344365,0,{"$f":"M155/'S1-Standard'!$C$17","v":0},{"$error":"#N/A"},{"$error":"#N/A"},{"$f":"_xlfn.XLOOKUP(B155,FeedTables!$C$17:$T$17,FeedTables!$C$31:$T$31,,-1)","v":{"$error":"#N/A"}},{"$f":"_xlfn.XLOOKUP(Q155,FeedPrice[Feed],FeedPrice[Price per kg],\"Unknown\",0)*O155","v":{"$error":"#N/A"}},{"$error":"#N/A"},{"$f":"_xlfn.XLOOKUP(O155,LabourFromFeed[Feed Quantity (kg)],LabourFromFeed[No. Labour],\"Out of range\",-1)","v":{"$error":"#N/A"}},{"$f":"T155*OperatingCosts!$C$9","v":{"$error":"#N/A"}},{"$error":"#N/A"}]
[154,{"$f":"IF(A156<='S1-Standard'!$C$7, B155*EXP((LN((E155/100)+1))*1),)","v":0},{"$f":"_xlfn.XLOOKUP($B156,FeedTables!$C$42:$T$42,FeedTables!$C$44:$T$44,,-1)","v":{"$error":"#N/A"}},{"$f":"_xlfn.XLOOKUP($B156,FeedTables!$C$42:$T$42,FeedTables!$C$45:$T$45,,-1)","v":{"$error":"#N/A"}},{"$f":"_xlfn.XLOOKUP($B156,FeedTables!$C$42:$T$42,FeedTables!$C$46:$T$46,,-1)*_xlfn.XLOOKUP(N155,DensityMultiplier[Biomass kg/m3],DensityMultiplier[Multiplier],,-1)","v":{"$error":"#N/A"}},1926.6019431401946,{"$f":"IF(A156<='S1-Standard'!$C$7,('Growth-Model-1'!G155*EXP($AA$7)),0)","v":0},{"$f":"IF(A156<='S1-Standard'!$C$7,$AD$6*EXP($AD$7*('S1-Standard'!C$7-'Growth-Model-1'!A156)),0)","v":0},98.398056859804981,4.8591633017187642E-2,0,9.6134220875344365,0,{"$f":"M156/'S1-Standard'!$C$17","v":0},{"$error":"#N/A"},{"$error":"#N/A"},{"$f":"_xlfn.XLOOKUP(B156,FeedTables!$C$17:$T$17,FeedTables!$C$31:$T$31,,-1)","v":{"$error":"#N/A"}},{"$f":"_xlfn.XLOOKUP(Q156,FeedPrice[Feed],FeedPrice[Price per kg],\"Unknown\",0)*O156","v":{"$error":"#N/A"}},{"$error":"#N/A"},{"$f":"_xlfn.XLOOKUP(O156,LabourFromFeed[Feed Quantity (kg)],LabourFromFeed[No. Labour],\"Out of range\",-1)","v":{"$error":"#N/A"}},{"$f":"T156*OperatingCosts!$C$9","v":{"$error":"#N/A"}},{"$error":"#N/A"}]
[155,{"$f":"IF(A157<='S1-Standard'!$C$7, B156*EXP((LN((E156/100)+1))*1),)","v":0},{"$f":"_xlfn.XLOOKUP($B157,FeedTables!$C$42:$T$42,FeedTables!$C$44:$T$44,,-1)","v":{"$error":"#N/A"}},{"$f":"_xlfn.XLOOKUP($B157,FeedTables!$C$42:$T$42,FeedTables!$C$45:$T$45,,-1)","v":{"$error":"#N/A"}},{"$f":"_xlfn.XLOOKUP($B157,FeedTables!$C$42:$T$42,FeedTables!$C$46:$T$46,,-1)*_xlfn.XLOOKUP(N156,DensityMultiplier[Biomass kg/m3],DensityMultiplier[Multiplier],,-1)","v":{"$error":"#N/A"}},1926.6019431401946,{"$f":"IF(A157<='S1-Standard'!$C$7,('Growth-Model-1'!G156*EXP($AA$7)),0)","v":0},{"$f":"IF(A157<='S1-Standard'!$C$7,$AD$6*EXP($AD$7*('S1-Standard'!C$7-'Growth-Model-1'!A157)),0)","v":0},98.398056859804981,4.8591633017187642E-2,0,9.6134220875344365,0,{"$f":"M157/'S1-Standard'!$C$17","v":0},{"$error":"#N/A"},{"$error":"#N/A"},{"$f":"_xlfn.XLOOKUP(B157,FeedTables!$C$17:$T$17,FeedTables!$C$31:$T$31,,-1)","v":{"$error":"#N/A"}},{"$f":"_xlfn.XLOOKUP(Q157,FeedPrice[Feed],FeedPrice[Price per kg],\"Unknown\",0)*O157","v":{"$error":"#N/A"}},{"$error":"#N/A"},{"$f":"_xlfn.XLOOKUP(O157,LabourFromFeed[Feed Quantity (kg)],LabourFromFeed[No. Labour],\"Out of range\",-1)","v":{"$error":"#N/A"}},{"$f":"T157*OperatingCosts!$C$9","v":{"$error":"#N/A"}},{"$error":"#N/A"}]
[156,{"$f":"IF(A158<='S1-Standard'!$C$7, B157*EXP((LN((E157/100)+1))*1),)","v":0},{"$f":"_xlfn.XLOOKUP($B158,FeedTables!$C$42:$T$42,FeedTables!$C$44:$T$44,,-1)","v":{"$error":"#N/A"}},{"$f":"_xlfn.XLOOKUP($B158,FeedTables!$C$42:$T$42,FeedTables!$C$45:$T$45,,-1)","v":{"$error":"#N/A"}},{"$f":"_xlfn.XLOOKUP($B158,FeedTables!$C$42:$T$42,FeedTables!$C$46:$T$46,,-1)*_xlfn.XLOOKUP(N157,DensityMultiplier[Biomass kg/m3],DensityMultiplier[Multiplier],,-1)","v":{"$error":"#N/A"}},1926.6019431401946,{"$f":"IF(A158<='S1-Standard'!$C$7,('Growth-Model-1'!G157*EXP($AA$7)),0)","v":0},{"$f":"IF(A158<='S1-Standard'!$C$7,$AD$6*EXP($AD$7*('S1-Standard'!C$7-'Growth-Model-1'!A158)),0)","v":0},98.398056859804981,4.8591633017187642E-2,0,9.6134220875344365,0,{"$f":"M158/'S1-Standard'!$C$17","v":0},{"$error":"#N/A"},{"$error":"#N/A"},{"$f":"_xlfn.XLOOKUP(B158,FeedTables!$C$17:$T$17,FeedTables!$C$31:$T$31,,-1)","v":{"$error":"#N/A"}},{"$f":"_xlfn.XLOOKUP(Q158,FeedPrice[Feed],FeedPrice[Price per kg],\"Unknown\",0)*O158","v":{"$error":"#N/A"}},{"$error":"#N/A"},{"$f":"_xlfn.XLOOKUP(O158,LabourFromFeed[Feed Quantity (kg)],LabourFromFeed[No. Labour],\"Out of range\",-1)","v":{"$error":"#N/A"}},{"$f":"T158*OperatingCosts!$C$9","v":{"$error":"#N/A"}},{"$error":"#N/A"}]
[157,{"$f":"IF(A159<='S1-Standard'!$C$7, B158*EXP((LN((E158/100)+1))*1),)","v":0},{"$f":"_xlfn.XLOOKUP($B159,FeedTables!$C$42:$T$42,FeedTables!$C$44:$T$44,,-1)","v":{"$error":"#N/A"}},{"$f":"_xlfn.XLOOKUP($B159,FeedTables!$C$42:$T$42,FeedTables!$C$45:$T$45,,-1)","v":{"$error":"#N/A"}},{"$f":"_xlfn.XLOOKUP($B159,FeedTables!$C$42:$T$42,FeedTables!$C$46:$T$46,,-1)*_xlfn.XLOOKUP(N158,DensityMultiplier[Biomass kg/m3],DensityMultiplier[Multiplier],,-1)","v":{"$error":"#N/A"}},1926.6019431401946,{"$f":"IF(A159<='S1-Standard'!$C$7,('Growth-Model-1'!G158*EXP($AA$7)),0)","v":0},{"$f":"IF(A159<='S1-Standard'!$C$7,$AD$6*EXP($AD$7*('S1-Standard'!C$7-'Growth-Model-1'!A159)),0)","v":0},98.398056859804981,4.8591633017187642E-2,0,9.6134220875344365,0,{"$f":"M159/'S1-Standard'!$C$17","v":0},{"$error":"#N/A"},{"$error":"#N/A"},{"$f":"_xlfn.XLOOKUP(B159,FeedTables!$C$17:$T$17,FeedTables!$C$31:$T$31,,-1)","v":{"$error":"#N/A"}},{"$f":"_xlfn.XLOOKUP(Q159,FeedPrice[Feed],FeedPrice[Price per kg],\"Unknown\",0)*O159","v":{"$error":"#N/A"}},{"$error":"#N/A"},{"$f":"_xlfn.XLOOKUP(O159,LabourFromFeed[Feed Quantity (kg)],LabourFromFeed[No. Labour],\"Out of range\",-1)","v":{"$error":"#N/A"}},{"$f":"T159*OperatingCosts!$C$9","v":{"$error":"#N/A"}},{"$error":"#N/A"}]
[158,{"$f":"IF(A160<='S1-Standard'!$C$7, B159*EXP((LN((E159/100)+1))*1),)","v":0},{"$f":"_xlfn.XLOOKUP($B160,FeedTables!$C$42:$T$42,FeedTables!$C$44:$T$44,,-1)","v":{"$error":"#N/A"}},{"$f":"_xlfn.XLOOKUP($B160,FeedTables!$C$42:$T$42,FeedTables!$C$45:$T$45,,-1)","v":{"$error":"#N/A"}},{"$f":"_xlfn.XLOOKUP($B160,FeedTables!$C$42:$T$42,FeedTables!$C$46:$T$46,,-1)*_xlfn.XLOOKUP(N159,DensityMultiplier[Biomass kg/m3],DensityMultiplier[Multiplier],,-1)","v":{"$error":"#N/A"}},1926.6019431401946,{"$f":"IF(A160<='S1-Standard'!$C$7,('Growth-Model-1'!G159*EXP($AA$7)),0)","v":0},{"$f":"IF(A160<='S1-Standard'!$C$7,$AD$6*EXP($AD$7*('S1-Standard'!C$7-'Growth-Model-1'!A160)),0)","v":0},98.398056859804981,4.8591633017187642E-2,0,9.6134220875344365,0,{"$f":"M160/'S1-Standard'!$C$17","v":0},{"$error":"#N/A"},{"$error":"#N/A"},{"$f":"_xlfn.XLOOKUP(B160,FeedTables!$C$17:$T$17,FeedTables!$C$31:$T$31,,-1)","v":{"$error":"#N/A"}},{"$f":"_xlfn.XLOOKUP(Q160,FeedPrice[Feed],FeedPrice[Price per kg],\"Unknown\",0)*O160","v":{"$error":"#N/A"}},{"$error":"#N/A"},{"$f":"_xlfn.XLOOKUP(O160,LabourFromFeed[Feed Quantity (kg)],LabourFromFeed[No. Labour],\"Out of range\",-1)","v":{"$error":"#N/A"}},{"$f":"T160*OperatingCosts!$C$9","v":{"$error":"#N/A"}},{"$error":"#N/A"}]
[159,{"$f":"IF(A161<='S1-Standard'!$C$7, B160*EXP((LN((E160/100)+1))*1),)","v":0},{"$f":"_xlfn.XLOOKUP($B161,FeedTables!$C$42:$T$42,FeedTables!$C$44:$T$44,,-1)","v":{"$error":"#N/A"}},{"$f":"_xlfn.XLOOKUP($B161,FeedTables!$C$42:$T$42,FeedTables!$C$45:$T$45,,-1)","v":{"$error":"#N/A"}},{"$f":"_xlfn.XLOOKUP($B161,FeedTables!$C$42:$T$42,FeedTables!$C$46:$T$46,,-1)*_xlfn.XLOOKUP(N160,DensityMultiplier[Biomass kg/m3],DensityMultiplier[Multiplier],,-1)","v":{"$error":"#N/A"}},1926.6019431401946,{"$f":"IF(A161<='S1-Standard'!$C$7,('Growth-Model-1'!G160*EXP($AA$7)),0)","v":0},{"$f":"IF(A161<='S1-Standard'!$C$7,$AD$6*EXP($AD$7*('S1-Standard'!C$7-'Growth-Model-1'!A161)),0)","v":0},98.398056859804981,4.8591633017187642E-2,0,9.6134220875344365,0,{"$f":"M161/'S1-Standard'!$C$17","v":0},{"$error":"#N/A"},{"$error":"#N/A"},{"$f":"_xlfn.XLOOKUP(B161,FeedTables!$C$17:$T$17,FeedTables!$C$31:$T$31,,-1)","v":{"$error":"#N/A"}},{"$f":"_xlfn.XLOOKUP(Q161,FeedPrice[Feed],FeedPrice[Price per kg],\"Unknown\",0)*O161","v":{"$error":"#N/A"}},{"$error":"#N/A"},{"$f":"_xlfn.XLOOKUP(O161,LabourFromFeed[Feed Quantity (kg)],LabourFromFeed[No. Labour],\"Out of range\",-1)","v":{"$error":"#N/A"}},{"$f":"T161*OperatingCosts!$C$9","v":{"$error":"#N/A"}},{"$error":"#N/A"}]
[160,{"$f":"IF(A162<='S1-Standard'!$C$7, B161*EXP((LN((E161/100)+1))*1),)","v":0},{"$f":"_xlfn.XLOOKUP($B162,FeedTables!$C$42:$T$42,FeedTables!$C$44:$T$44,,-1)","v":{"$error":"#N/A"}},{"$f":"_xlfn.XLOOKUP($B162,FeedTables!$C$42:$T$42,FeedTables!$C$45:$T$45,,-1)","v":{"$error":"#N/A"}},{"$f":"_xlfn.XLOOKUP($B162,FeedTables!$C$42:$T$42,FeedTables!$C$46:$T$46,,-1)*_xlfn.XLOOKUP(N161,DensityMultiplier[Biomass kg/m3],DensityMultiplier[Multiplier],,-1)","v":{"$error":"#N/A"}},1926.6019431401946,{"$f":"IF(A162<='S1-Standard'!$C$7,('Growth-Model-1'!G161*EXP($AA$7)),0)","v":0},{"$f":"IF(A162<='S1-Standard'!$C$7,$AD$6*EXP($AD$7*('S1-Standard'!C$7-'Growth-Model-1'!A162)),0)","v":0},98.398056859804981,4.8591633017187642E-2,0,9.6134220875344365,0,{"$f":"M162/'S1-Standard'!$C$17","v":0},{"$error":"#N/A"},{"$error":"#N/A"},{"$f":"_xlfn.XLOOKUP(B162,FeedTables!$C$17:$T$17,FeedTables!$C$31:$T$31,,-1)","v":{"$error":"#N/A"}},{"$f":"_xlfn.XLOOKUP(Q162,FeedPrice[Feed],FeedPrice[Price per kg],\"Unknown\",0)*O162","v":{"$error":"#N/A"}},{"$error":"#N/A"},{"$f":"_xlfn.XLOOKUP(O162,LabourFromFeed[Feed Quantity (kg)],LabourFromFeed[No. Labour],\"Out of range\",-1)","v":{"$error":"#N/A"}},{"$f":"T162*OperatingCosts!$C$9","v":{"$error":"#N/A"}},{"$error":"#N/A"}]
[161,{"$f":"IF(A163<='S1-Standard'!$C$7, B162*EXP((LN((E162/100)+1))*1),)","v":0},{"$f":"_xlfn.XLOOKUP($B163,FeedTables!$C$42:$T$42,FeedTables!$C$44:$T$44,,-1)","v":{"$error":"#N/A"}},{"$f":"_xlfn.XLOOKUP($B163,FeedTables!$C$42:$T$42,FeedTables!$C$45:$T$45,,-1)","v":{"$error":"#N/A"}},{"$f":"_xlfn.XLOOKUP($B163,FeedTables!$C$42:$T$42,FeedTables!$C$46:$T$46,,-1)*_xlfn.XLOOKUP(N162,DensityMultiplier[Biomass kg/m3],DensityMultiplier[Multiplier],,-1)","v":{"$error":"#N/A"}},1926.6019431401946,{"$f":"IF(A163<='S1-Standard'!$C$7,('Growth-Model-1'!G162*EXP($AA$7)),0)","v":0},{"$f":"IF(A163<='S1-Standard'!$C$7,$AD$6*EXP($AD$7*('S1-Standard'!C$7-'Growth-Model-1'!A163)),0)","v":0},98.398056859804981,4.8591633017187642E-2,0,9.6134220875344365,0,{"$f":"M163/'S1-Standard'!$C$17","v":0},{"$error":"#N/A"},{"$error":"#N/A"},{"$f":"_xlfn.XLOOKUP(B163,FeedTables!$C$17:$T$17,FeedTables!$C$31:$T$31,,-1)","v":{"$error":"#N/A"}},{"$f":"_xlfn.XLOOKUP(Q163,FeedPrice[Feed],FeedPrice[Price per kg],\"Unknown\",0)*O163","v":{"$error":"#N/A"}},{"$error":"#N/A"},{"$f":"_xlfn.XLOOKUP(O163,LabourFromFeed[Feed Quantity (kg)],LabourFromFeed[No. Labour],\"Out of range\",-1)","v":{"$error":"#N/A"}},{"$f":"T163*OperatingCosts!$C$9","v":{"$error":"#N/A"}},{"$error":"#N/A"}]
[162,{"$f":"IF(A164<='S1-Standard'!$C$7, B163*EXP((LN((E163/100)+1))*1),)","v":0},{"$f":"_xlfn.XLOOKUP($B164,FeedTables!$C$42:$T$42,FeedTables!$C$44:$T$44,,-1)","v":{"$error":"#N/A"}},{"$f":"_xlfn.XLOOKUP($B164,FeedTables!$C$42:$T$42,FeedTables!$C$45:$T$45,,-1)","v":{"$error":"#N/A"}},{"$f":"_xlfn.XLOOKUP($B164,FeedTables!$C$42:$T$42,FeedTables!$C$46:$T$46,,-1)*_xlfn.XLOOKUP(N163,DensityMultiplier[Biomass kg/m3],DensityMultiplier[Multiplier],,-1)","v":{"$error":"#N/A"}},1926.6019431401946,{"$f":"IF(A164<='S1-Standard'!$C$7,('Growth-Model-1'!G163*EXP($AA$7)),0)","v":0},{"$f":"IF(A164<='S1-Standard'!$C$7,$AD$6*EXP($AD$7*('S1-Standard'!C$7-'Growth-Model-1'!A164)),0)","v":0},98.398056859804981,4.8591633017187642E-2,0,9.6134220875344365,0,{"$f":"M164/'S1-Standard'!$C$17","v":0},{"$error":"#N/A"},{"$error":"#N/A"},{"$f":"_xlfn.XLOOKUP(B164,FeedTables!$C$17:$T$17,FeedTables!$C$31:$T$31,,-1)","v":{"$error":"#N/A"}},{"$f":"_xlfn.XLOOKUP(Q164,FeedPrice[Feed],FeedPrice[Price per kg],\"Unknown\",0)*O164","v":{"$error":"#N/A"}},{"$error":"#N/A"},{"$f":"_xlfn.XLOOKUP(O164,LabourFromFeed[Feed Quantity (kg)],LabourFromFeed[No. Labour],\"Out of range\",-1)","v":{"$error":"#N/A"}},{"$f":"T164*OperatingCosts!$C$9","v":{"$error":"#N/A"}},{"$error":"#N/A"}]
[163,{"$f":"IF(A165<='S1-Standard'!$C$7, B164*EXP((LN((E164/100)+1))*1),)","v":0},{"$f":"_xlfn.XLOOKUP($B165,FeedTables!$C$42:$T$42,FeedTables!$C$44:$T$44,,-1)","v":{"$error":"#N/A"}},{"$f":"_xlfn.XLOOKUP($B165,FeedTables!$C$42:$T$42,FeedTables!$C$45:$T$45,,-1)","v":{"$error":"#N/A"}},{"$f":"_xlfn.XLOOKUP($B165,FeedTables!$C$42:$T$42,FeedTables!$C$46:$T$46,,-1)*_xlfn.XLOOKUP(N164,DensityMultiplier[Biomass kg/m3],DensityMultiplier[Multiplier],,-1)","v":{"$error":"#N/A"}},1926.6019431401946,{"$f":"IF(A165<='S1-Standard'!$C$7,('Growth-Model-1'!G164*EXP($AA$7)),0)","v":0},{"$f":"IF(A165<='S1-Standard'!$C$7,$AD$6*EXP($AD$7*('S1-Standard'!C$7-'Growth-Model-1'!A165)),0)","v":0},98.398056859804981,4.8591633017187642E-2,0,9.6134220875344365,0,{"$f":"M165/'S1-Standard'!$C$17","v":0},{"$error":"#N/A"},{"$error":"#N/A"},{"$f":"_xlfn.XLOOKUP(B165,FeedTables!$C$17:$T$17,FeedTables!$C$31:$T$31,,-1)","v":{"$error":"#N/A"}},{"$f":"_xlfn.XLOOKUP(Q165,FeedPrice[Feed],FeedPrice[Price per kg],\"Unknown\",0)*O165","v":{"$error":"#N/A"}},{"$error":"#N/A"},{"$f":"_xlfn.XLOOKUP(O165,LabourFromFeed[Feed Quantity (kg)],LabourFromFeed[No. Labour],\"Out of range\",-1)","v":{"$error":"#N/A"}},{"$f":"T165*OperatingCosts!$C$9","v":{"$error":"#N/A"}},{"$error":"#N/A"}]
[164,{"$f":"IF(A166<='S1-Standard'!$C$7, B165*EXP((LN((E165/100)+1))*1),)","v":0},{"$f":"_xlfn.XLOOKUP($B166,FeedTables!$C$42:$T$42,FeedTables!$C$44:$T$44,,-1)","v":{"$error":"#N/A"}},{"$f":"_xlfn.XLOOKUP($B166,FeedTables!$C$42:$T$42,FeedTables!$C$45:$T$45,,-1)","v":{"$error":"#N/A"}},{"$f":"_xlfn.XLOOKUP($B166,FeedTables!$C$42:$T$42,FeedTables!$C$46:$T$46,,-1)*_xlfn.XLOOKUP(N165,DensityMultiplier[Biomass kg/m3],DensityMultiplier[Multiplier],,-1)","v":{"$error":"#N/A"}},1926.6019431401946,{"$f":"IF(A166<='S1-Standard'!$C$7,('Growth-Model-1'!G165*EXP($AA$7)),0)","v":0},{"$f":"IF(A166<='S1-Standard'!$C$7,$AD$6*EXP($AD$7*('S1-Standard'!C$7-'Growth-Model-1'!A166)),0)","v":0},98.398056859804981,4.8591633017187642E-2,0,9.6134220875344365,0,{"$f":"M166/'S1-Standard'!$C$17","v":0},{"$error":"#N/A"},{"$error":"#N/A"},{"$f":"_xlfn.XLOOKUP(B166,FeedTables!$C$17:$T$17,FeedTables!$C$31:$T$31,,-1)","v":{"$error":"#N/A"}},{"$f":"_xlfn.XLOOKUP(Q166,FeedPrice[Feed],FeedPrice[Price per kg],\"Unknown\",0)*O166","v":{"$error":"#N/A"}},{"$error":"#N/A"},{"$f":"_xlfn.XLOOKUP(O166,LabourFromFeed[Feed Quantity (kg)],LabourFromFeed[No. Labour],\"Out of range\",-1)","v":{"$error":"#N/A"}},{"$f":"T166*OperatingCosts!$C$9","v":{"$error":"#N/A"}},{"$error":"#N/A"}]
[165,{"$f":"IF(A167<='S1-Standard'!$C$7, B166*EXP((LN((E166/100)+1))*1),)","v":0},{"$f":"_xlfn.XLOOKUP($B167,FeedTables!$C$42:$T$42,FeedTables!$C$44:$T$44,,-1)","v":{"$error":"#N/A"}},{"$f":"_xlfn.XLOOKUP($B167,FeedTables!$C$42:$T$42,FeedTables!$C$45:$T$45,,-1)","v":{"$error":"#N/A"}},{"$f":"_xlfn.XLOOKUP($B167,FeedTables!$C$42:$T$42,FeedTables!$C$46:$T$46,,-1)*_xlfn.XLOOKUP(N166,DensityMultiplier[Biomass kg/m3],DensityMultiplier[Multiplier],,-1)","v":{"$error":"#N/A"}},1926.6019431401946,{"$f":"IF(A167<='S1-Standard'!$C$7,('Growth-Model-1'!G166*EXP($AA$7)),0)","v":0},{"$f":"IF(A167<='S1-Standard'!$C$7,$AD$6*EXP($AD$7*('S1-Standard'!C$7-'Growth-Model-1'!A167)),0)","v":0},98.398056859804981,4.8591633017187642E-2,0,9.6134220875344365,0,{"$f":"M167/'S1-Standard'!$C$17","v":0},{"$error":"#N/A"},{"$error":"#N/A"},{"$f":"_xlfn.XLOOKUP(B167,FeedTables!$C$17:$T$17,FeedTables!$C$31:$T$31,,-1)","v":{"$error":"#N/A"}},{"$f":"_xlfn.XLOOKUP(Q167,FeedPrice[Feed],FeedPrice[Price per kg],\"Unknown\",0)*O167","v":{"$error":"#N/A"}},{"$error":"#N/A"},{"$f":"_xlfn.XLOOKUP(O167,LabourFromFeed[Feed Quantity (kg)],LabourFromFeed[No. Labour],\"Out of range\",-1)","v":{"$error":"#N/A"}},{"$f":"T167*OperatingCosts!$C$9","v":{"$error":"#N/A"}},{"$error":"#N/A"}]
[166,{"$f":"IF(A168<='S1-Standard'!$C$7, B167*EXP((LN((E167/100)+1))*1),)","v":0},{"$f":"_xlfn.XLOOKUP($B168,FeedTables!$C$42:$T$42,FeedTables!$C$44:$T$44,,-1)","v":{"$error":"#N/A"}},{"$f":"_xlfn.XLOOKUP($B168,FeedTables!$C$42:$T$42,FeedTables!$C$45:$T$45,,-1)","v":{"$error":"#N/A"}},{"$f":"_xlfn.XLOOKUP($B168,FeedTables!$C$42:$T$42,FeedTables!$C$46:$T$46,,-1)*_xlfn.XLOOKUP(N167,DensityMultiplier[Biomass kg/m3],DensityMultiplier[Multiplier],,-1)","v":{"$error":"#N/A"}},1926.6019431401946,{"$f":"IF(A168<='S1-Standard'!$C$7,('Growth-Model-1'!G167*EXP($AA$7)),0)","v":0},{"$f":"IF(A168<='S1-Standard'!$C$7,$AD$6*EXP($AD$7*('S1-Standard'!C$7-'Growth-Model-1'!A168)),0)","v":0},98.398056859804981,4.8591633017187642E-2,0,9.6134220875344365,0,{"$f":"M168/'S1-Standard'!$C$17","v":0},{"$error":"#N/A"},{"$error":"#N/A"},{"$f":"_xlfn.XLOOKUP(B168,FeedTables!$C$17:$T$17,FeedTables!$C$31:$T$31,,-1)","v":{"$error":"#N/A"}},{"$f":"_xlfn.XLOOKUP(Q168,FeedPrice[Feed],FeedPrice[Price per kg],\"Unknown\",0)*O168","v":{"$error":"#N/A"}},{"$error":"#N/A"},{"$f":"_xlfn.XLOOKUP(O168,LabourFromFeed[Feed Quantity (kg)],LabourFromFeed[No. Labour],\"Out of range\",-1)","v":{"$error":"#N/A"}},{"$f":"T168*OperatingCosts!$C$9","v":{"$error":"#N/A"}},{"$error":"#N/A"}]
[167,{"$f":"IF(A169<='S1-Standard'!$C$7, B168*EXP((LN((E168/100)+1))*1),)","v":0},{"$f":"_xlfn.XLOOKUP($B169,FeedTables!$C$42:$T$42,FeedTables!$C$44:$T$44,,-1)","v":{"$error":"#N/A"}},{"$f":"_xlfn.XLOOKUP($B169,FeedTables!$C$42:$T$42,FeedTables!$C$45:$T$45,,-1)","v":{"$error":"#N/A"}},{"$f":"_xlfn.XLOOKUP($B169,FeedTables!$C$42:$T$42,FeedTables!$C$46:$T$46,,-1)*_xlfn.XLOOKUP(N168,DensityMultiplier[Biomass kg/m3],DensityMultiplier[Multiplier],,-1)","v":{"$error":"#N/A"}},1926.6019431401946,{"$f":"IF(A169<='S1-Standard'!$C$7,('Growth-Model-1'!G168*EXP($AA$7)),0)","v":0},{"$f":"IF(A169<='S1-Standard'!$C$7,$AD$6*EXP($AD$7*('S1-Standard'!C$7-'Growth-Model-1'!A169)),0)","v":0},98.398056859804981,4.8591633017187642E-2,0,9.6134220875344365,0,{"$f":"M169/'S1-Standard'!$C$17","v":0},{"$error":"#N/A"},{"$error":"#N/A"},{"$f":"_xlfn.XLOOKUP(B169,FeedTables!$C$17:$T$17,FeedTables!$C$31:$T$31,,-1)","v":{"$error":"#N/A"}},{"$f":"_xlfn.XLOOKUP(Q169,FeedPrice[Feed],FeedPrice[Price per kg],\"Unknown\",0)*O169","v":{"$error":"#N/A"}},{"$error":"#N/A"},{"$f":"_xlfn.XLOOKUP(O169,LabourFromFeed[Feed Quantity (kg)],LabourFromFeed[No. Labour],\"Out of range\",-1)","v":{"$error":"#N/A"}},{"$f":"T169*OperatingCosts!$C$9","v":{"$error":"#N/A"}},{"$error":"#N/A"}]
[168,{"$f":"IF(A170<='S1-Standard'!$C$7, B169*EXP((LN((E169/100)+1))*1),)","v":0},{"$f":"_xlfn.XLOOKUP($B170,FeedTables!$C$42:$T$42,FeedTables!$C$44:$T$44,,-1)","v":{"$error":"#N/A"}},{"$f":"_xlfn.XLOOKUP($B170,FeedTables!$C$42:$T$42,FeedTables!$C$45:$T$45,,-1)","v":{"$error":"#N/A"}},{"$f":"_xlfn.XLOOKUP($B170,FeedTables!$C$42:$T$42,FeedTables!$C$46:$T$46,,-1)*_xlfn.XLOOKUP(N169,DensityMultiplier[Biomass kg/m3],DensityMultiplier[Multiplier],,-1)","v":{"$error":"#N/A"}},1926.6019431401946,{"$f":"IF(A170<='S1-Standard'!$C$7,('Growth-Model-1'!G169*EXP($AA$7)),0)","v":0},{"$f":"IF(A170<='S1-Standard'!$C$7,$AD$6*EXP($AD$7*('S1-Standard'!C$7-'Growth-Model-1'!A170)),0)","v":0},98.398056859804981,4.8591633017187642E-2,0,9.6134220875344365,0,{"$f":"M170/'S1-Standard'!$C$17","v":0},{"$error":"#N/A"},{"$error":"#N/A"},{"$f":"_xlfn.XLOOKUP(B170,FeedTables!$C$17:$T$17,FeedTables!$C$31:$T$31,,-1)","v":{"$error":"#N/A"}},{"$f":"_xlfn.XLOOKUP(Q170,FeedPrice[Feed],FeedPrice[Price per kg],\"Unknown\",0)*O170","v":{"$error":"#N/A"}},{"$error":"#N/A"},{"$f":"_xlfn.XLOOKUP(O170,LabourFromFeed[Feed Quantity (kg)],LabourFromFeed[No. Labour],\"Out of range\",-1)","v":{"$error":"#N/A"}},{"$f":"T170*OperatingCosts!$C$9","v":{"$error":"#N/A"}},{"$error":"#N/A"}]
[169,{"$f":"IF(A171<='S1-Standard'!$C$7, B170*EXP((LN((E170/100)+1))*1),)","v":0},{"$f":"_xlfn.XLOOKUP($B171,FeedTables!$C$42:$T$42,FeedTables!$C$44:$T$44,,-1)","v":{"$error":"#N/A"}},{"$f":"_xlfn.XLOOKUP($B171,FeedTables!$C$42:$T$42,FeedTables!$C$45:$T$45,,-1)","v":{"$error":"#N/A"}},{"$f":"_xlfn.XLOOKUP($B171,FeedTables!$C$42:$T$42,FeedTables!$C$46:$T$46,,-1)*_xlfn.XLOOKUP(N170,DensityMultiplier[Biomass kg/m3],DensityMultiplier[Multiplier],,-1)","v":{"$error":"#N/A"}},1926.6019431401946,{"$f":"IF(A171<='S1-Standard'!$C$7,('Growth-Model-1'!G170*EXP($AA$7)),0)","v":0},{"$f":"IF(A171<='S1-Standard'!$C$7,$AD$6*EXP($AD$7*('S1-Standard'!C$7-'Growth-Model-1'!A171)),0)","v":0},98.398056859804981,4.8591633017187642E-2,0,9.6134220875344365,0,{"$f":"M171/'S1-Standard'!$C$17","v":0},{"$error":"#N/A"},{"$error":"#N/A"},{"$f":"_xlfn.XLOOKUP(B171,FeedTables!$C$17:$T$17,FeedTables!$C$31:$T$31,,-1)","v":{"$error":"#N/A"}},{"$f":"_xlfn.XLOOKUP(Q171,FeedPrice[Feed],FeedPrice[Price per kg],\"Unknown\",0)*O171","v":{"$error":"#N/A"}},{"$error":"#N/A"},{"$f":"_xlfn.XLOOKUP(O171,LabourFromFeed[Feed Quantity (kg)],LabourFromFeed[No. Labour],\"Out of range\",-1)","v":{"$error":"#N/A"}},{"$f":"T171*OperatingCosts!$C$9","v":{"$error":"#N/A"}},{"$error":"#N/A"}]
[170,{"$f":"IF(A172<='S1-Standard'!$C$7, B171*EXP((LN((E171/100)+1))*1),)","v":0},{"$f":"_xlfn.XLOOKUP($B172,FeedTables!$C$42:$T$42,FeedTables!$C$44:$T$44,,-1)","v":{"$error":"#N/A"}},{"$f":"_xlfn.XLOOKUP($B172,FeedTables!$C$42:$T$42,FeedTables!$C$45:$T$45,,-1)","v":{"$error":"#N/A"}},{"$f":"_xlfn.XLOOKUP($B172,FeedTables!$C$42:$T$42,FeedTables!$C$46:$T$46,,-1)*_xlfn.XLOOKUP(N171,DensityMultiplier[Biomass kg/m3],DensityMultiplier[Multiplier],,-1)","v":{"$error":"#N/A"}},1926.6019431401946,{"$f":"IF(A172<='S1-Standard'!$C$7,('Growth-Model-1'!G171*EXP($AA$7)),0)","v":0},{"$f":"IF(A172<='S1-Standard'!$C$7,$AD$6*EXP($AD$7*('S1-Standard'!C$7-'Growth-Model-1'!A172)),0)","v":0},98.398056859804981,4.8591633017187642E-2,0,9.6134220875344365,0,{"$f":"M172/'S1-Standard'!$C$17","v":0},{"$error":"#N/A"},{"$error":"#N/A"},{"$f":"_xlfn.XLOOKUP(B172,FeedTables!$C$17:$T$17,FeedTables!$C$31:$T$31,,-1)","v":{"$error":"#N/A"}},{"$f":"_xlfn.XLOOKUP(Q172,FeedPrice[Feed],FeedPrice[Price per kg],\"Unknown\",0)*O172","v":{"$error":"#N/A"}},{"$error":"#N/A"},{"$f":"_xlfn.XLOOKUP(O172,LabourFromFeed[Feed Quantity (kg)],LabourFromFeed[No. Labour],\"Out of range\",-1)","v":{"$error":"#N/A"}},{"$f":"T172*OperatingCosts!$C$9","v":{"$error":"#N/A"}},{"$error":"#N/A"}]
[171,{"$f":"IF(A173<='S1-Standard'!$C$7, B172*EXP((LN((E172/100)+1))*1),)","v":0},{"$f":"_xlfn.XLOOKUP($B173,FeedTables!$C$42:$T$42,FeedTables!$C$44:$T$44,,-1)","v":{"$error":"#N/A"}},{"$f":"_xlfn.XLOOKUP($B173,FeedTables!$C$42:$T$42,FeedTables!$C$45:$T$45,,-1)","v":{"$error":"#N/A"}},{"$f":"_xlfn.XLOOKUP($B173,FeedTables!$C$42:$T$42,FeedTables!$C$46:$T$46,,-1)*_xlfn.XLOOKUP(N172,DensityMultiplier[Biomass kg/m3],DensityMultiplier[Multiplier],,-1)","v":{"$error":"#N/A"}},1926.6019431401946,{"$f":"IF(A173<='S1-Standard'!$C$7,('Growth-Model-1'!G172*EXP($AA$7)),0)","v":0},{"$f":"IF(A173<='S1-Standard'!$C$7,$AD$6*EXP($AD$7*('S1-Standard'!C$7-'Growth-Model-1'!A173)),0)","v":0},98.398056859804981,4.8591633017187642E-2,0,9.6134220875344365,0,{"$f":"M173/'S1-Standard'!$C$17","v":0},{"$error":"#N/A"},{"$error":"#N/A"},{"$f":"_xlfn.XLOOKUP(B173,FeedTables!$C$17:$T$17,FeedTables!$C$31:$T$31,,-1)","v":{"$error":"#N/A"}},{"$f":"_xlfn.XLOOKUP(Q173,FeedPrice[Feed],FeedPrice[Price per kg],\"Unknown\",0)*O173","v":{"$error":"#N/A"}},{"$error":"#N/A"},{"$f":"_xlfn.XLOOKUP(O173,LabourFromFeed[Feed Quantity (kg)],LabourFromFeed[No. Labour],\"Out of range\",-1)","v":{"$error":"#N/A"}},{"$f":"T173*OperatingCosts!$C$9","v":{"$error":"#N/A"}},{"$error":"#N/A"}]
[172,{"$f":"IF(A174<='S1-Standard'!$C$7, B173*EXP((LN((E173/100)+1))*1),)","v":0},{"$f":"_xlfn.XLOOKUP($B174,FeedTables!$C$42:$T$42,FeedTables!$C$44:$T$44,,-1)","v":{"$error":"#N/A"}},{"$f":"_xlfn.XLOOKUP($B174,FeedTables!$C$42:$T$42,FeedTables!$C$45:$T$45,,-1)","v":{"$error":"#N/A"}},{"$f":"_xlfn.XLOOKUP($B174,FeedTables!$C$42:$T$42,FeedTables!$C$46:$T$46,,-1)*_xlfn.XLOOKUP(N173,DensityMultiplier[Biomass kg/m3],DensityMultiplier[Multiplier],,-1)","v":{"$error":"#N/A"}},1926.6019431401946,{"$f":"IF(A174<='S1-Standard'!$C$7,('Growth-Model-1'!G173*EXP($AA$7)),0)","v":0},{"$f":"IF(A174<='S1-Standard'!$C$7,$AD$6*EXP($AD$7*('S1-Standard'!C$7-'Growth-Model-1'!A174)),0)","v":0},98.398056859804981,4.8591633017187642E-2,0,9.6134220875344365,0,{"$f":"M174/'S1-Standard'!$C$17","v":0},{"$error":"#N/A"},{"$error":"#N/A"},{"$f":"_xlfn.XLOOKUP(B174,FeedTables!$C$17:$T$17,FeedTables!$C$31:$T$31,,-1)","v":{"$error":"#N/A"}},{"$f":"_xlfn.XLOOKUP(Q174,FeedPrice[Feed],FeedPrice[Price per kg],\"Unknown\",0)*O174","v":{"$error":"#N/A"}},{"$error":"#N/A"},{"$f":"_xlfn.XLOOKUP(O174,LabourFromFeed[Feed Quantity (kg)],LabourFromFeed[No. Labour],\"Out of range\",-1)","v":{"$error":"#N/A"}},{"$f":"T174*OperatingCosts!$C$9","v":{"$error":"#N/A"}},{"$error":"#N/A"}]
[173,{"$f":"IF(A175<='S1-Standard'!$C$7, B174*EXP((LN((E174/100)+1))*1),)","v":0},{"$f":"_xlfn.XLOOKUP($B175,FeedTables!$C$42:$T$42,FeedTables!$C$44:$T$44,,-1)","v":{"$error":"#N/A"}},{"$f":"_xlfn.XLOOKUP($B175,FeedTables!$C$42:$T$42,FeedTables!$C$45:$T$45,,-1)","v":{"$error":"#N/A"}},{"$f":"_xlfn.XLOOKUP($B175,FeedTables!$C$42:$T$42,FeedTables!$C$46:$T$46,,-1)*_xlfn.XLOOKUP(N174,DensityMultiplier[Biomass kg/m3],DensityMultiplier[Multiplier],,-1)","v":{"$error":"#N/A"}},1926.6019431401946,{"$f":"IF(A175<='S1-Standard'!$C$7,('Growth-Model-1'!G174*EXP($AA$7)),0)","v":0},{"$f":"IF(A175<='S1-Standard'!$C$7,$AD$6*EXP($AD$7*('S1-Standard'!C$7-'Growth-Model-1'!A175)),0)","v":0},98.398056859804981,4.8591633017187642E-2,0,9.6134220875344365,0,{"$f":"M175/'S1-Standard'!$C$17","v":0},{"$error":"#N/A"},{"$error":"#N/A"},{"$f":"_xlfn.XLOOKUP(B175,FeedTables!$C$17:$T$17,FeedTables!$C$31:$T$31,,-1)","v":{"$error":"#N/A"}},{"$f":"_xlfn.XLOOKUP(Q175,FeedPrice[Feed],FeedPrice[Price per kg],\"Unknown\",0)*O175","v":{"$error":"#N/A"}},{"$error":"#N/A"},{"$f":"_xlfn.XLOOKUP(O175,LabourFromFeed[Feed Quantity (kg)],LabourFromFeed[No. Labour],\"Out of range\",-1)","v":{"$error":"#N/A"}},{"$f":"T175*OperatingCosts!$C$9","v":{"$error":"#N/A"}},{"$error":"#N/A"}]
[174,{"$f":"IF(A176<='S1-Standard'!$C$7, B175*EXP((LN((E175/100)+1))*1),)","v":0},{"$f":"_xlfn.XLOOKUP($B176,FeedTables!$C$42:$T$42,FeedTables!$C$44:$T$44,,-1)","v":{"$error":"#N/A"}},{"$f":"_xlfn.XLOOKUP($B176,FeedTables!$C$42:$T$42,FeedTables!$C$45:$T$45,,-1)","v":{"$error":"#N/A"}},{"$f":"_xlfn.XLOOKUP($B176,FeedTables!$C$42:$T$42,FeedTables!$C$46:$T$46,,-1)*_xlfn.XLOOKUP(N175,DensityMultiplier[Biomass kg/m3],DensityMultiplier[Multiplier],,-1)","v":{"$error":"#N/A"}},1926.6019431401946,{"$f":"IF(A176<='S1-Standard'!$C$7,('Growth-Model-1'!G175*EXP($AA$7)),0)","v":0},{"$f":"IF(A176<='S1-Standard'!$C$7,$AD$6*EXP($AD$7*('S1-Standard'!C$7-'Growth-Model-1'!A176)),0)","v":0},98.398056859804981,4.8591633017187642E-2,0,9.6134220875344365,0,{"$f":"M176/'S1-Standard'!$C$17","v":0},{"$error":"#N/A"},{"$error":"#N/A"},{"$f":"_xlfn.XLOOKUP(B176,FeedTables!$C$17:$T$17,FeedTables!$C$31:$T$31,,-1)","v":{"$error":"#N/A"}},{"$f":"_xlfn.XLOOKUP(Q176,FeedPrice[Feed],FeedPrice[Price per kg],\"Unknown\",0)*O176","v":{"$error":"#N/A"}},{"$error":"#N/A"},{"$f":"_xlfn.XLOOKUP(O176,LabourFromFeed[Feed Quantity (kg)],LabourFromFeed[No. Labour],\"Out of range\",-1)","v":{"$error":"#N/A"}},{"$f":"T176*OperatingCosts!$C$9","v":{"$error":"#N/A"}},{"$error":"#N/A"}]
[175,{"$f":"IF(A177<='S1-Standard'!$C$7, B176*EXP((LN((E176/100)+1))*1),)","v":0},{"$f":"_xlfn.XLOOKUP($B177,FeedTables!$C$42:$T$42,FeedTables!$C$44:$T$44,,-1)","v":{"$error":"#N/A"}},{"$f":"_xlfn.XLOOKUP($B177,FeedTables!$C$42:$T$42,FeedTables!$C$45:$T$45,,-1)","v":{"$error":"#N/A"}},{"$f":"_xlfn.XLOOKUP($B177,FeedTables!$C$42:$T$42,FeedTables!$C$46:$T$46,,-1)*_xlfn.XLOOKUP(N176,DensityMultiplier[Biomass kg/m3],DensityMultiplier[Multiplier],,-1)","v":{"$error":"#N/A"}},1926.6019431401946,{"$f":"IF(A177<='S1-Standard'!$C$7,('Growth-Model-1'!G176*EXP($AA$7)),0)","v":0},{"$f":"IF(A177<='S1-Standard'!$C$7,$AD$6*EXP($AD$7*('S1-Standard'!C$7-'Growth-Model-1'!A177)),0)","v":0},98.398056859804981,4.8591633017187642E-2,0,9.6134220875344365,0,{"$f":"M177/'S1-Standard'!$C$17","v":0},{"$error":"#N/A"},{"$error":"#N/A"},{"$f":"_xlfn.XLOOKUP(B177,FeedTables!$C$17:$T$17,FeedTables!$C$31:$T$31,,-1)","v":{"$error":"#N/A"}},{"$f":"_xlfn.XLOOKUP(Q177,FeedPrice[Feed],FeedPrice[Price per kg],\"Unknown\",0)*O177","v":{"$error":"#N/A"}},{"$error":"#N/A"},{"$f":"_xlfn.XLOOKUP(O177,LabourFromFeed[Feed Quantity (kg)],LabourFromFeed[No. Labour],\"Out of range\",-1)","v":{"$error":"#N/A"}},{"$f":"T177*OperatingCosts!$C$9","v":{"$error":"#N/A"}},{"$error":"#N/A"}]
[176,{"$f":"IF(A178<='S1-Standard'!$C$7, B177*EXP((LN((E177/100)+1))*1),)","v":0},{"$f":"_xlfn.XLOOKUP($B178,FeedTables!$C$42:$T$42,FeedTables!$C$44:$T$44,,-1)","v":{"$error":"#N/A"}},{"$f":"_xlfn.XLOOKUP($B178,FeedTables!$C$42:$T$42,FeedTables!$C$45:$T$45,,-1)","v":{"$error":"#N/A"}},{"$f":"_xlfn.XLOOKUP($B178,FeedTables!$C$42:$T$42,FeedTables!$C$46:$T$46,,-1)*_xlfn.XLOOKUP(N177,DensityMultiplier[Biomass kg/m3],DensityMultiplier[Multiplier],,-1)","v":{"$error":"#N/A"}},1926.6019431401946,{"$f":"IF(A178<='S1-Standard'!$C$7,('Growth-Model-1'!G177*EXP($AA$7)),0)","v":0},{"$f":"IF(A178<='S1-Standard'!$C$7,$AD$6*EXP($AD$7*('S1-Standard'!C$7-'Growth-Model-1'!A178)),0)","v":0},98.398056859804981,4.8591633017187642E-2,0,9.6134220875344365,0,{"$f":"M178/'S1-Standard'!$C$17","v":0},{"$error":"#N/A"},{"$error":"#N/A"},{"$f":"_xlfn.XLOOKUP(B178,FeedTables!$C$17:$T$17,FeedTables!$C$31:$T$31,,-1)","v":{"$error":"#N/A"}},{"$f":"_xlfn.XLOOKUP(Q178,FeedPrice[Feed],FeedPrice[Price per kg],\"Unknown\",0)*O178","v":{"$error":"#N/A"}},{"$error":"#N/A"},{"$f":"_xlfn.XLOOKUP(O178,LabourFromFeed[Feed Quantity (kg)],LabourFromFeed[No. Labour],\"Out of range\",-1)","v":{"$error":"#N/A"}},{"$f":"T178*OperatingCosts!$C$9","v":{"$error":"#N/A"}},{"$error":"#N/A"}]
[177,{"$f":"IF(A179<='S1-Standard'!$C$7, B178*EXP((LN((E178/100)+1))*1),)","v":0},{"$f":"_xlfn.XLOOKUP($B179,FeedTables!$C$42:$T$42,FeedTables!$C$44:$T$44,,-1)","v":{"$error":"#N/A"}},{"$f":"_xlfn.XLOOKUP($B179,FeedTables!$C$42:$T$42,FeedTables!$C$45:$T$45,,-1)","v":{"$error":"#N/A"}},{"$f":"_xlfn.XLOOKUP($B179,FeedTables!$C$42:$T$42,FeedTables!$C$46:$T$46,,-1)*_xlfn.XLOOKUP(N178,DensityMultiplier[Biomass kg/m3],DensityMultiplier[Multiplier],,-1)","v":{"$error":"#N/A"}},1926.6019431401946,{"$f":"IF(A179<='S1-Standard'!$C$7,('Growth-Model-1'!G178*EXP($AA$7)),0)","v":0},{"$f":"IF(A179<='S1-Standard'!$C$7,$AD$6*EXP($AD$7*('S1-Standard'!C$7-'Growth-Model-1'!A179)),0)","v":0},98.398056859804981,4.8591633017187642E-2,0,9.6134220875344365,0,{"$f":"M179/'S1-Standard'!$C$17","v":0},{"$error":"#N/A"},{"$error":"#N/A"},{"$f":"_xlfn.XLOOKUP(B179,FeedTables!$C$17:$T$17,FeedTables!$C$31:$T$31,,-1)","v":{"$error":"#N/A"}},{"$f":"_xlfn.XLOOKUP(Q179,FeedPrice[Feed],FeedPrice[Price per kg],\"Unknown\",0)*O179","v":{"$error":"#N/A"}},{"$error":"#N/A"},{"$f":"_xlfn.XLOOKUP(O179,LabourFromFeed[Feed Quantity (kg)],LabourFromFeed[No. Labour],\"Out of range\",-1)","v":{"$error":"#N/A"}},{"$f":"T179*OperatingCosts!$C$9","v":{"$error":"#N/A"}},{"$error":"#N/A"}]
[178,{"$f":"IF(A180<='S1-Standard'!$C$7, B179*EXP((LN((E179/100)+1))*1),)","v":0},{"$f":"_xlfn.XLOOKUP($B180,FeedTables!$C$42:$T$42,FeedTables!$C$44:$T$44,,-1)","v":{"$error":"#N/A"}},{"$f":"_xlfn.XLOOKUP($B180,FeedTables!$C$42:$T$42,FeedTables!$C$45:$T$45,,-1)","v":{"$error":"#N/A"}},{"$f":"_xlfn.XLOOKUP($B180,FeedTables!$C$42:$T$42,FeedTables!$C$46:$T$46,,-1)*_xlfn.XLOOKUP(N179,DensityMultiplier[Biomass kg/m3],DensityMultiplier[Multiplier],,-1)","v":{"$error":"#N/A"}},1926.6019431401946,{"$f":"IF(A180<='S1-Standard'!$C$7,('Growth-Model-1'!G179*EXP($AA$7)),0)","v":0},{"$f":"IF(A180<='S1-Standard'!$C$7,$AD$6*EXP($AD$7*('S1-Standard'!C$7-'Growth-Model-1'!A180)),0)","v":0},98.398056859804981,4.8591633017187642E-2,0,9.6134220875344365,0,{"$f":"M180/'S1-Standard'!$C$17","v":0},{"$error":"#N/A"},{"$error":"#N/A"},{"$f":"_xlfn.XLOOKUP(B180,FeedTables!$C$17:$T$17,FeedTables!$C$31:$T$31,,-1)","v":{"$error":"#N/A"}},{"$f":"_xlfn.XLOOKUP(Q180,FeedPrice[Feed],FeedPrice[Price per kg],\"Unknown\",0)*O180","v":{"$error":"#N/A"}},{"$error":"#N/A"},{"$f":"_xlfn.XLOOKUP(O180,LabourFromFeed[Feed Quantity (kg)],LabourFromFeed[No. Labour],\"Out of range\",-1)","v":{"$error":"#N/A"}},{"$f":"T180*OperatingCosts!$C$9","v":{"$error":"#N/A"}},{"$error":"#N/A"}]
[179,{"$f":"IF(A181<='S1-Standard'!$C$7, B180*EXP((LN((E180/100)+1))*1),)","v":0},{"$f":"_xlfn.XLOOKUP($B181,FeedTables!$C$42:$T$42,FeedTables!$C$44:$T$44,,-1)","v":{"$error":"#N/A"}},{"$f":"_xlfn.XLOOKUP($B181,FeedTables!$C$42:$T$42,FeedTables!$C$45:$T$45,,-1)","v":{"$error":"#N/A"}},{"$f":"_xlfn.XLOOKUP($B181,FeedTables!$C$42:$T$42,FeedTables!$C$46:$T$46,,-1)*_xlfn.XLOOKUP(N180,DensityMultiplier[Biomass kg/m3],DensityMultiplier[Multiplier],,-1)","v":{"$error":"#N/A"}},1926.6019431401946,{"$f":"IF(A181<='S1-Standard'!$C$7,('Growth-Model-1'!G180*EXP($AA$7)),0)","v":0},{"$f":"IF(A181<='S1-Standard'!$C$7,$AD$6*EXP($AD$7*('S1-Standard'!C$7-'Growth-Model-1'!A181)),0)","v":0},98.398056859804981,4.8591633017187642E-2,0,9.6134220875344365,0,{"$f":"M181/'S1-Standard'!$C$17","v":0},{"$error":"#N/A"},{"$error":"#N/A"},{"$f":"_xlfn.XLOOKUP(B181,FeedTables!$C$17:$T$17,FeedTables!$C$31:$T$31,,-1)","v":{"$error":"#N/A"}},{"$f":"_xlfn.XLOOKUP(Q181,FeedPrice[Feed],FeedPrice[Price per kg],\"Unknown\",0)*O181","v":{"$error":"#N/A"}},{"$error":"#N/A"},{"$f":"_xlfn.XLOOKUP(O181,LabourFromFeed[Feed Quantity (kg)],LabourFromFeed[No. Labour],\"Out of range\",-1)","v":{"$error":"#N/A"}},{"$f":"T181*OperatingCosts!$C$9","v":{"$error":"#N/A"}},{"$error":"#N/A"}]
[180,{"$f":"IF(A182<='S1-Standard'!$C$7, B181*EXP((LN((E181/100)+1))*1),)","v":0},{"$f":"_xlfn.XLOOKUP($B182,FeedTables!$C$42:$T$42,FeedTables!$C$44:$T$44,,-1)","v":{"$error":"#N/A"}},{"$f":"_xlfn.XLOOKUP($B182,FeedTables!$C$42:$T$42,FeedTables!$C$45:$T$45,,-1)","v":{"$error":"#N/A"}},{"$f":"_xlfn.XLOOKUP($B182,FeedTables!$C$42:$T$42,FeedTables!$C$46:$T$46,,-1)*_xlfn.XLOOKUP(N181,DensityMultiplier[Biomass kg/m3],DensityMultiplier[Multiplier],,-1)","v":{"$error":"#N/A"}},1926.6019431401946,{"$f":"IF(A182<='S1-Standard'!$C$7,('Growth-Model-1'!G181*EXP($AA$7)),0)","v":0},{"$f":"IF(A182<='S1-Standard'!$C$7,$AD$6*EXP($AD$7*('S1-Standard'!C$7-'Growth-Model-1'!A182)),0)","v":0},98.398056859804981,4.8591633017187642E-2,0,9.6134220875344365,0,{"$f":"M182/'S1-Standard'!$C$17","v":0},{"$error":"#N/A"},{"$error":"#N/A"},{"$f":"_xlfn.XLOOKUP(B182,FeedTables!$C$17:$T$17,FeedTables!$C$31:$T$31,,-1)","v":{"$error":"#N/A"}},{"$f":"_xlfn.XLOOKUP(Q182,FeedPrice[Feed],FeedPrice[Price per kg],\"Unknown\",0)*O182","v":{"$error":"#N/A"}},{"$error":"#N/A"},{"$f":"_xlfn.XLOOKUP(O182,LabourFromFeed[Feed Quantity (kg)],LabourFromFeed[No. Labour],\"Out of range\",-1)","v":{"$error":"#N/A"}},{"$f":"T182*OperatingCosts!$C$9","v":{"$error":"#N/A"}},{"$error":"#N/A"}]
[181,{"$f":"IF(A183<='S1-Standard'!$C$7, B182*EXP((LN((E182/100)+1))*1),)","v":0},{"$f":"_xlfn.XLOOKUP($B183,FeedTables!$C$42:$T$42,FeedTables!$C$44:$T$44,,-1)","v":{"$error":"#N/A"}},{"$f":"_xlfn.XLOOKUP($B183,FeedTables!$C$42:$T$42,FeedTables!$C$45:$T$45,,-1)","v":{"$error":"#N/A"}},{"$f":"_xlfn.XLOOKUP($B183,FeedTables!$C$42:$T$42,FeedTables!$C$46:$T$46,,-1)*_xlfn.XLOOKUP(N182,DensityMultiplier[Biomass kg/m3],DensityMultiplier[Multiplier],,-1)","v":{"$error":"#N/A"}},1926.6019431401946,{"$f":"IF(A183<='S1-Standard'!$C$7,('Growth-Model-1'!G182*EXP($AA$7)),0)","v":0},{"$f":"IF(A183<='S1-Standard'!$C$7,$AD$6*EXP($AD$7*('S1-Standard'!C$7-'Growth-Model-1'!A183)),0)","v":0},98.398056859804981,4.8591633017187642E-2,0,9.6134220875344365,0,{"$f":"M183/'S1-Standard'!$C$17","v":0},{"$error":"#N/A"},{"$error":"#N/A"},{"$f":"_xlfn.XLOOKUP(B183,FeedTables!$C$17:$T$17,FeedTables!$C$31:$T$31,,-1)","v":{"$error":"#N/A"}},{"$f":"_xlfn.XLOOKUP(Q183,FeedPrice[Feed],FeedPrice[Price per kg],\"Unknown\",0)*O183","v":{"$error":"#N/A"}},{"$error":"#N/A"},{"$f":"_xlfn.XLOOKUP(O183,LabourFromFeed[Feed Quantity (kg)],LabourFromFeed[No. Labour],\"Out of range\",-1)","v":{"$error":"#N/A"}},{"$f":"T183*OperatingCosts!$C$9","v":{"$error":"#N/A"}},{"$error":"#N/A"}]
[182,{"$f":"IF(A184<='S1-Standard'!$C$7, B183*EXP((LN((E183/100)+1))*1),)","v":0},{"$f":"_xlfn.XLOOKUP($B184,FeedTables!$C$42:$T$42,FeedTables!$C$44:$T$44,,-1)","v":{"$error":"#N/A"}},{"$f":"_xlfn.XLOOKUP($B184,FeedTables!$C$42:$T$42,FeedTables!$C$45:$T$45,,-1)","v":{"$error":"#N/A"}},{"$f":"_xlfn.XLOOKUP($B184,FeedTables!$C$42:$T$42,FeedTables!$C$46:$T$46,,-1)*_xlfn.XLOOKUP(N183,DensityMultiplier[Biomass kg/m3],DensityMultiplier[Multiplier],,-1)","v":{"$error":"#N/A"}},1926.6019431401946,{"$f":"IF(A184<='S1-Standard'!$C$7,('Growth-Model-1'!G183*EXP($AA$7)),0)","v":0},{"$f":"IF(A184<='S1-Standard'!$C$7,$AD$6*EXP($AD$7*('S1-Standard'!C$7-'Growth-Model-1'!A184)),0)","v":0},98.398056859804981,4.8591633017187642E-2,0,9.6134220875344365,0,{"$f":"M184/'S1-Standard'!$C$17","v":0},{"$error":"#N/A"},{"$error":"#N/A"},{"$f":"_xlfn.XLOOKUP(B184,FeedTables!$C$17:$T$17,FeedTables!$C$31:$T$31,,-1)","v":{"$error":"#N/A"}},{"$f":"_xlfn.XLOOKUP(Q184,FeedPrice[Feed],FeedPrice[Price per kg],\"Unknown\",0)*O184","v":{"$error":"#N/A"}},{"$error":"#N/A"},{"$f":"_xlfn.XLOOKUP(O184,LabourFromFeed[Feed Quantity (kg)],LabourFromFeed[No. Labour],\"Out of range\",-1)","v":{"$error":"#N/A"}},{"$f":"T184*OperatingCosts!$C$9","v":{"$error":"#N/A"}},{"$error":"#N/A"}]
[183,{"$f":"IF(A185<='S1-Standard'!$C$7, B184*EXP((LN((E184/100)+1))*1),)","v":0},{"$f":"_xlfn.XLOOKUP($B185,FeedTables!$C$42:$T$42,FeedTables!$C$44:$T$44,,-1)","v":{"$error":"#N/A"}},{"$f":"_xlfn.XLOOKUP($B185,FeedTables!$C$42:$T$42,FeedTables!$C$45:$T$45,,-1)","v":{"$error":"#N/A"}},{"$f":"_xlfn.XLOOKUP($B185,FeedTables!$C$42:$T$42,FeedTables!$C$46:$T$46,,-1)*_xlfn.XLOOKUP(N184,DensityMultiplier[Biomass kg/m3],DensityMultiplier[Multiplier],,-1)","v":{"$error":"#N/A"}},1926.6019431401946,{"$f":"IF(A185<='S1-Standard'!$C$7,('Growth-Model-1'!G184*EXP($AA$7)),0)","v":0},{"$f":"IF(A185<='S1-Standard'!$C$7,$AD$6*EXP($AD$7*('S1-Standard'!C$7-'Growth-Model-1'!A185)),0)","v":0},98.398056859804981,4.8591633017187642E-2,0,9.6134220875344365,0,{"$f":"M185/'S1-Standard'!$C$17","v":0},{"$error":"#N/A"},{"$error":"#N/A"},{"$f":"_xlfn.XLOOKUP(B185,FeedTables!$C$17:$T$17,FeedTables!$C$31:$T$31,,-1)","v":{"$error":"#N/A"}},{"$f":"_xlfn.XLOOKUP(Q185,FeedPrice[Feed],FeedPrice[Price per kg],\"Unknown\",0)*O185","v":{"$error":"#N/A"}},{"$error":"#N/A"},{"$f":"_xlfn.XLOOKUP(O185,LabourFromFeed[Feed Quantity (kg)],LabourFromFeed[No. Labour],\"Out of range\",-1)","v":{"$error":"#N/A"}},{"$f":"T185*OperatingCosts!$C$9","v":{"$error":"#N/A"}},{"$error":"#N/A"}]
[184,{"$f":"IF(A186<='S1-Standard'!$C$7, B185*EXP((LN((E185/100)+1))*1),)","v":0},{"$f":"_xlfn.XLOOKUP($B186,FeedTables!$C$42:$T$42,FeedTables!$C$44:$T$44,,-1)","v":{"$error":"#N/A"}},{"$f":"_xlfn.XLOOKUP($B186,FeedTables!$C$42:$T$42,FeedTables!$C$45:$T$45,,-1)","v":{"$error":"#N/A"}},{"$f":"_xlfn.XLOOKUP($B186,FeedTables!$C$42:$T$42,FeedTables!$C$46:$T$46,,-1)*_xlfn.XLOOKUP(N185,DensityMultiplier[Biomass kg/m3],DensityMultiplier[Multiplier],,-1)","v":{"$error":"#N/A"}},1926.6019431401946,{"$f":"IF(A186<='S1-Standard'!$C$7,('Growth-Model-1'!G185*EXP($AA$7)),0)","v":0},{"$f":"IF(A186<='S1-Standard'!$C$7,$AD$6*EXP($AD$7*('S1-Standard'!C$7-'Growth-Model-1'!A186)),0)","v":0},98.398056859804981,4.8591633017187642E-2,0,9.6134220875344365,0,{"$f":"M186/'S1-Standard'!$C$17","v":0},{"$error":"#N/A"},{"$error":"#N/A"},{"$f":"_xlfn.XLOOKUP(B186,FeedTables!$C$17:$T$17,FeedTables!$C$31:$T$31,,-1)","v":{"$error":"#N/A"}},{"$f":"_xlfn.XLOOKUP(Q186,FeedPrice[Feed],FeedPrice[Price per kg],\"Unknown\",0)*O186","v":{"$error":"#N/A"}},{"$error":"#N/A"},{"$f":"_xlfn.XLOOKUP(O186,LabourFromFeed[Feed Quantity (kg)],LabourFromFeed[No. Labour],\"Out of range\",-1)","v":{"$error":"#N/A"}},{"$f":"T186*OperatingCosts!$C$9","v":{"$error":"#N/A"}},{"$error":"#N/A"}]
[185,{"$f":"IF(A187<='S1-Standard'!$C$7, B186*EXP((LN((E186/100)+1))*1),)","v":0},{"$f":"_xlfn.XLOOKUP($B187,FeedTables!$C$42:$T$42,FeedTables!$C$44:$T$44,,-1)","v":{"$error":"#N/A"}},{"$f":"_xlfn.XLOOKUP($B187,FeedTables!$C$42:$T$42,FeedTables!$C$45:$T$45,,-1)","v":{"$error":"#N/A"}},{"$f":"_xlfn.XLOOKUP($B187,FeedTables!$C$42:$T$42,FeedTables!$C$46:$T$46,,-1)*_xlfn.XLOOKUP(N186,DensityMultiplier[Biomass kg/m3],DensityMultiplier[Multiplier],,-1)","v":{"$error":"#N/A"}},1926.6019431401946,{"$f":"IF(A187<='S1-Standard'!$C$7,('Growth-Model-1'!G186*EXP($AA$7)),0)","v":0},{"$f":"IF(A187<='S1-Standard'!$C$7,$AD$6*EXP($AD$7*('S1-Standard'!C$7-'Growth-Model-1'!A187)),0)","v":0},98.398056859804981,4.8591633017187642E-2,0,9.6134220875344365,0,{"$f":"M187/'S1-Standard'!$C$17","v":0},{"$error":"#N/A"},{"$error":"#N/A"},{"$f":"_xlfn.XLOOKUP(B187,FeedTables!$C$17:$T$17,FeedTables!$C$31:$T$31,,-1)","v":{"$error":"#N/A"}},{"$f":"_xlfn.XLOOKUP(Q187,FeedPrice[Feed],FeedPrice[Price per kg],\"Unknown\",0)*O187","v":{"$error":"#N/A"}},{"$error":"#N/A"},{"$f":"_xlfn.XLOOKUP(O187,LabourFromFeed[Feed Quantity (kg)],LabourFromFeed[No. Labour],\"Out of range\",-1)","v":{"$error":"#N/A"}},{"$f":"T187*OperatingCosts!$C$9","v":{"$error":"#N/A"}},{"$error":"#N/A"}]
[186,{"$f":"IF(A188<='S1-Standard'!$C$7, B187*EXP((LN((E187/100)+1))*1),)","v":0},{"$f":"_xlfn.XLOOKUP($B188,FeedTables!$C$42:$T$42,FeedTables!$C$44:$T$44,,-1)","v":{"$error":"#N/A"}},{"$f":"_xlfn.XLOOKUP($B188,FeedTables!$C$42:$T$42,FeedTables!$C$45:$T$45,,-1)","v":{"$error":"#N/A"}},{"$f":"_xlfn.XLOOKUP($B188,FeedTables!$C$42:$T$42,FeedTables!$C$46:$T$46,,-1)*_xlfn.XLOOKUP(N187,DensityMultiplier[Biomass kg/m3],DensityMultiplier[Multiplier],,-1)","v":{"$error":"#N/A"}},1926.6019431401946,{"$f":"IF(A188<='S1-Standard'!$C$7,('Growth-Model-1'!G187*EXP($AA$7)),0)","v":0},{"$f":"IF(A188<='S1-Standard'!$C$7,$AD$6*EXP($AD$7*('S1-Standard'!C$7-'Growth-Model-1'!A188)),0)","v":0},98.398056859804981,4.8591633017187642E-2,0,9.6134220875344365,0,{"$f":"M188/'S1-Standard'!$C$17","v":0},{"$error":"#N/A"},{"$error":"#N/A"},{"$f":"_xlfn.XLOOKUP(B188,FeedTables!$C$17:$T$17,FeedTables!$C$31:$T$31,,-1)","v":{"$error":"#N/A"}},{"$f":"_xlfn.XLOOKUP(Q188,FeedPrice[Feed],FeedPrice[Price per kg],\"Unknown\",0)*O188","v":{"$error":"#N/A"}},{"$error":"#N/A"},{"$f":"_xlfn.XLOOKUP(O188,LabourFromFeed[Feed Quantity (kg)],LabourFromFeed[No. Labour],\"Out of range\",-1)","v":{"$error":"#N/A"}},{"$f":"T188*OperatingCosts!$C$9","v":{"$error":"#N/A"}},{"$error":"#N/A"}]
[187,{"$f":"IF(A189<='S1-Standard'!$C$7, B188*EXP((LN((E188/100)+1))*1),)","v":0},{"$f":"_xlfn.XLOOKUP($B189,FeedTables!$C$42:$T$42,FeedTables!$C$44:$T$44,,-1)","v":{"$error":"#N/A"}},{"$f":"_xlfn.XLOOKUP($B189,FeedTables!$C$42:$T$42,FeedTables!$C$45:$T$45,,-1)","v":{"$error":"#N/A"}},{"$f":"_xlfn.XLOOKUP($B189,FeedTables!$C$42:$T$42,FeedTables!$C$46:$T$46,,-1)*_xlfn.XLOOKUP(N188,DensityMultiplier[Biomass kg/m3],DensityMultiplier[Multiplier],,-1)","v":{"$error":"#N/A"}},1926.6019431401946,{"$f":"IF(A189<='S1-Standard'!$C$7,('Growth-Model-1'!G188*EXP($AA$7)),0)","v":0},{"$f":"IF(A189<='S1-Standard'!$C$7,$AD$6*EXP($AD$7*('S1-Standard'!C$7-'Growth-Model-1'!A189)),0)","v":0},98.398056859804981,4.8591633017187642E-2,0,9.6134220875344365,0,{"$f":"M189/'S1-Standard'!$C$17","v":0},{"$error":"#N/A"},{"$error":"#N/A"},{"$f":"_xlfn.XLOOKUP(B189,FeedTables!$C$17:$T$17,FeedTables!$C$31:$T$31,,-1)","v":{"$error":"#N/A"}},{"$f":"_xlfn.XLOOKUP(Q189,FeedPrice[Feed],FeedPrice[Price per kg],\"Unknown\",0)*O189","v":{"$error":"#N/A"}},{"$error":"#N/A"},{"$f":"_xlfn.XLOOKUP(O189,LabourFromFeed[Feed Quantity (kg)],LabourFromFeed[No. Labour],\"Out of range\",-1)","v":{"$error":"#N/A"}},{"$f":"T189*OperatingCosts!$C$9","v":{"$error":"#N/A"}},{"$error":"#N/A"}]
[188,{"$f":"IF(A190<='S1-Standard'!$C$7, B189*EXP((LN((E189/100)+1))*1),)","v":0},{"$f":"_xlfn.XLOOKUP($B190,FeedTables!$C$42:$T$42,FeedTables!$C$44:$T$44,,-1)","v":{"$error":"#N/A"}},{"$f":"_xlfn.XLOOKUP($B190,FeedTables!$C$42:$T$42,FeedTables!$C$45:$T$45,,-1)","v":{"$error":"#N/A"}},{"$f":"_xlfn.XLOOKUP($B190,FeedTables!$C$42:$T$42,FeedTables!$C$46:$T$46,,-1)*_xlfn.XLOOKUP(N189,DensityMultiplier[Biomass kg/m3],DensityMultiplier[Multiplier],,-1)","v":{"$error":"#N/A"}},1926.6019431401946,{"$f":"IF(A190<='S1-Standard'!$C$7,('Growth-Model-1'!G189*EXP($AA$7)),0)","v":0},{"$f":"IF(A190<='S1-Standard'!$C$7,$AD$6*EXP($AD$7*('S1-Standard'!C$7-'Growth-Model-1'!A190)),0)","v":0},98.398056859804981,4.8591633017187642E-2,0,9.6134220875344365,0,{"$f":"M190/'S1-Standard'!$C$17","v":0},{"$error":"#N/A"},{"$error":"#N/A"},{"$f":"_xlfn.XLOOKUP(B190,FeedTables!$C$17:$T$17,FeedTables!$C$31:$T$31,,-1)","v":{"$error":"#N/A"}},{"$f":"_xlfn.XLOOKUP(Q190,FeedPrice[Feed],FeedPrice[Price per kg],\"Unknown\",0)*O190","v":{"$error":"#N/A"}},{"$error":"#N/A"},{"$f":"_xlfn.XLOOKUP(O190,LabourFromFeed[Feed Quantity (kg)],LabourFromFeed[No. Labour],\"Out of range\",-1)","v":{"$error":"#N/A"}},{"$f":"T190*OperatingCosts!$C$9","v":{"$error":"#N/A"}},{"$error":"#N/A"}]
[189,{"$f":"IF(A191<='S1-Standard'!$C$7, B190*EXP((LN((E190/100)+1))*1),)","v":0},{"$f":"_xlfn.XLOOKUP($B191,FeedTables!$C$42:$T$42,FeedTables!$C$44:$T$44,,-1)","v":{"$error":"#N/A"}},{"$f":"_xlfn.XLOOKUP($B191,FeedTables!$C$42:$T$42,FeedTables!$C$45:$T$45,,-1)","v":{"$error":"#N/A"}},{"$f":"_xlfn.XLOOKUP($B191,FeedTables!$C$42:$T$42,FeedTables!$C$46:$T$46,,-1)*_xlfn.XLOOKUP(N190,DensityMultiplier[Biomass kg/m3],DensityMultiplier[Multiplier],,-1)","v":{"$error":"#N/A"}},1926.6019431401946,{"$f":"IF(A191<='S1-Standard'!$C$7,('Growth-Model-1'!G190*EXP($AA$7)),0)","v":0},{"$f":"IF(A191<='S1-Standard'!$C$7,$AD$6*EXP($AD$7*('S1-Standard'!C$7-'Growth-Model-1'!A191)),0)","v":0},98.398056859804981,4.8591633017187642E-2,0,9.6134220875344365,0,{"$f":"M191/'S1-Standard'!$C$17","v":0},{"$error":"#N/A"},{"$error":"#N/A"},{"$f":"_xlfn.XLOOKUP(B191,FeedTables!$C$17:$T$17,FeedTables!$C$31:$T$31,,-1)","v":{"$error":"#N/A"}},{"$f":"_xlfn.XLOOKUP(Q191,FeedPrice[Feed],FeedPrice[Price per kg],\"Unknown\",0)*O191","v":{"$error":"#N/A"}},{"$error":"#N/A"},{"$f":"_xlfn.XLOOKUP(O191,LabourFromFeed[Feed Quantity (kg)],LabourFromFeed[No. Labour],\"Out of range\",-1)","v":{"$error":"#N/A"}},{"$f":"T191*OperatingCosts!$C$9","v":{"$error":"#N/A"}},{"$error":"#N/A"}]
[190,{"$f":"IF(A192<='S1-Standard'!$C$7, B191*EXP((LN((E191/100)+1))*1),)","v":0},{"$f":"_xlfn.XLOOKUP($B192,FeedTables!$C$42:$T$42,FeedTables!$C$44:$T$44,,-1)","v":{"$error":"#N/A"}},{"$f":"_xlfn.XLOOKUP($B192,FeedTables!$C$42:$T$42,FeedTables!$C$45:$T$45,,-1)","v":{"$error":"#N/A"}},{"$f":"_xlfn.XLOOKUP($B192,FeedTables!$C$42:$T$42,FeedTables!$C$46:$T$46,,-1)*_xlfn.XLOOKUP(N191,DensityMultiplier[Biomass kg/m3],DensityMultiplier[Multiplier],,-1)","v":{"$error":"#N/A"}},1926.6019431401946,{"$f":"IF(A192<='S1-Standard'!$C$7,('Growth-Model-1'!G191*EXP($AA$7)),0)","v":0},{"$f":"IF(A192<='S1-Standard'!$C$7,$AD$6*EXP($AD$7*('S1-Standard'!C$7-'Growth-Model-1'!A192)),0)","v":0},98.398056859804981,4.8591633017187642E-2,0,9.6134220875344365,0,{"$f":"M192/'S1-Standard'!$C$17","v":0},{"$error":"#N/A"},{"$error":"#N/A"},{"$f":"_xlfn.XLOOKUP(B192,FeedTables!$C$17:$T$17,FeedTables!$C$31:$T$31,,-1)","v":{"$error":"#N/A"}},{"$f":"_xlfn.XLOOKUP(Q192,FeedPrice[Feed],FeedPrice[Price per kg],\"Unknown\",0)*O192","v":{"$error":"#N/A"}},{"$error":"#N/A"},{"$f":"_xlfn.XLOOKUP(O192,LabourFromFeed[Feed Quantity (kg)],LabourFromFeed[No. Labour],\"Out of range\",-1)","v":{"$error":"#N/A"}},{"$f":"T192*OperatingCosts!$C$9","v":{"$error":"#N/A"}},{"$error":"#N/A"}]
[191,{"$f":"IF(A193<='S1-Standard'!$C$7, B192*EXP((LN((E192/100)+1))*1),)","v":0},{"$f":"_xlfn.XLOOKUP($B193,FeedTables!$C$42:$T$42,FeedTables!$C$44:$T$44,,-1)","v":{"$error":"#N/A"}},{"$f":"_xlfn.XLOOKUP($B193,FeedTables!$C$42:$T$42,FeedTables!$C$45:$T$45,,-1)","v":{"$error":"#N/A"}},{"$f":"_xlfn.XLOOKUP($B193,FeedTables!$C$42:$T$42,FeedTables!$C$46:$T$46,,-1)*_xlfn.XLOOKUP(N192,DensityMultiplier[Biomass kg/m3],DensityMultiplier[Multiplier],,-1)","v":{"$error":"#N/A"}},1926.6019431401946,{"$f":"IF(A193<='S1-Standard'!$C$7,('Growth-Model-1'!G192*EXP($AA$7)),0)","v":0},{"$f":"IF(A193<='S1-Standard'!$C$7,$AD$6*EXP($AD$7*('S1-Standard'!C$7-'Growth-Model-1'!A193)),0)","v":0},98.398056859804981,4.8591633017187642E-2,0,9.6134220875344365,0,{"$f":"M193/'S1-Standard'!$C$17","v":0},{"$error":"#N/A"},{"$error":"#N/A"},{"$f":"_xlfn.XLOOKUP(B193,FeedTables!$C$17:$T$17,FeedTables!$C$31:$T$31,,-1)","v":{"$error":"#N/A"}},{"$f":"_xlfn.XLOOKUP(Q193,FeedPrice[Feed],FeedPrice[Price per kg],\"Unknown\",0)*O193","v":{"$error":"#N/A"}},{"$error":"#N/A"},{"$f":"_xlfn.XLOOKUP(O193,LabourFromFeed[Feed Quantity (kg)],LabourFromFeed[No. Labour],\"Out of range\",-1)","v":{"$error":"#N/A"}},{"$f":"T193*OperatingCosts!$C$9","v":{"$error":"#N/A"}},{"$error":"#N/A"}]
[192,{"$f":"IF(A194<='S1-Standard'!$C$7, B193*EXP((LN((E193/100)+1))*1),)","v":0},{"$f":"_xlfn.XLOOKUP($B194,FeedTables!$C$42:$T$42,FeedTables!$C$44:$T$44,,-1)","v":{"$error":"#N/A"}},{"$f":"_xlfn.XLOOKUP($B194,FeedTables!$C$42:$T$42,FeedTables!$C$45:$T$45,,-1)","v":{"$error":"#N/A"}},{"$f":"_xlfn.XLOOKUP($B194,FeedTables!$C$42:$T$42,FeedTables!$C$46:$T$46,,-1)*_xlfn.XLOOKUP(N193,DensityMultiplier[Biomass kg/m3],DensityMultiplier[Multiplier],,-1)","v":{"$error":"#N/A"}},1926.6019431401946,{"$f":"IF(A194<='S1-Standard'!$C$7,('Growth-Model-1'!G193*EXP($AA$7)),0)","v":0},{"$f":"IF(A194<='S1-Standard'!$C$7,$AD$6*EXP($AD$7*('S1-Standard'!C$7-'Growth-Model-1'!A194)),0)","v":0},98.398056859804981,4.8591633017187642E-2,0,9.6134220875344365,{"$f":"(B194*F194)/1000","v":0},{"$f":"M194/'S1-Standard'!$C$17","v":0},{"$f":"M194*(C194/100)","v":{"$error":"#N/A"}},{"$error":"#N/A"},{"$f":"_xlfn.XLOOKUP(B194,FeedTables!$C$17:$T$17,FeedTables!$C$31:$T$31,,-1)","v":{"$error":"#N/A"}},{"$f":"_xlfn.XLOOKUP(Q194,FeedPrice[Feed],FeedPrice[Price per kg],\"Unknown\",0)*O194","v":{"$error":"#N/A"}},{"$error":"#N/A"},{"$f":"_xlfn.XLOOKUP(O194,LabourFromFeed[Feed Quantity (kg)],LabourFromFeed[No. Labour],\"Out of range\",-1)","v":{"$error":"#N/A"}},{"$f":"T194*OperatingCosts!$C$9","v":{"$error":"#N/A"}},{"$error":"#N/A"}]
[193,{"$f":"IF(A195<='S1-Standard'!$C$7, B194*EXP((LN((E194/100)+1))*1),)","v":0},{"$f":"_xlfn.XLOOKUP($B195,FeedTables!$C$42:$T$42,FeedTables!$C$44:$T$44,,-1)","v":{"$error":"#N/A"}},{"$f":"_xlfn.XLOOKUP($B195,FeedTables!$C$42:$T$42,FeedTables!$C$45:$T$45,,-1)","v":{"$error":"#N/A"}},{"$f":"_xlfn.XLOOKUP($B195,FeedTables!$C$42:$T$42,FeedTables!$C$46:$T$46,,-1)*_xlfn.XLOOKUP(N194,DensityMultiplier[Biomass kg/m3],DensityMultiplier[Multiplier],,-1)","v":{"$error":"#N/A"}},1926.6019431401946,{"$f":"IF(A195<='S1-Standard'!$C$7,('Growth-Model-1'!G194*EXP($AA$7)),0)","v":0},{"$f":"IF(A195<='S1-Standard'!$C$7,$AD$6*EXP($AD$7*('S1-Standard'!C$7-'Growth-Model-1'!A195)),0)","v":0},98.398056859804981,{"$f":"I195/$F$2","v":4.8591633017187642E-2},{"$f":"(G195+H195)*B195","v":0},9.6134220875344365,0,{"$f":"M195/'S1-Standard'!$C$17","v":0},{"$error":"#N/A"},{"$error":"#N/A"},{"$f":"_xlfn.XLOOKUP(B195,FeedTables!$C$17:$T$17,FeedTables!$C$31:$T$31,,-1)","v":{"$error":"#N/A"}},{"$f":"_xlfn.XLOOKUP(Q195,FeedPrice[Feed],FeedPrice[Price per kg],\"Unknown\",0)*O195","v":{"$error":"#N/A"}},{"$error":"#N/A"},{"$f":"_xlfn.XLOOKUP(O195,LabourFromFeed[Feed Quantity (kg)],LabourFromFeed[No. Labour],\"Out of range\",-1)","v":{"$error":"#N/A"}},{"$f":"T195*OperatingCosts!$C$9","v":{"$error":"#N/A"}},{"$error":"#N/A"}]
[194,{"$f":"IF(A196<='S1-Standard'!$C$7, B195*EXP((LN((E195/100)+1))*1),)","v":0},{"$f":"_xlfn.XLOOKUP($B196,FeedTables!$C$42:$T$42,FeedTables!$C$44:$T$44,,-1)","v":{"$error":"#N/A"}},{"$f":"_xlfn.XLOOKUP($B196,FeedTables!$C$42:$T$42,FeedTables!$C$45:$T$45,,-1)","v":{"$error":"#N/A"}},{"$f":"_xlfn.XLOOKUP($B196,FeedTables!$C$42:$T$42,FeedTables!$C$46:$T$46,,-1)*_xlfn.XLOOKUP(N195,DensityMultiplier[Biomass kg/m3],DensityMultiplier[Multiplier],,-1)","v":{"$error":"#N/A"}},1926.6019431401946,{"$f":"IF(A196<='S1-Standard'!$C$7,('Growth-Model-1'!G195*EXP($AA$7)),0)","v":0},{"$f":"IF(A196<='S1-Standard'!$C$7,$AD$6*EXP($AD$7*('S1-Standard'!C$7-'Growth-Model-1'!A196)),0)","v":0},{"$f":"I195+G196+H196","v":98.398056859804981},4.8591633017187642E-2,0,{"$f":"(K196/1000)+L195","v":9.6134220875344365},0,{"$f":"M196/'S1-Standard'!$C$17","v":0},{"$error":"#N/A"},{"$f":"O196+P195","v":{"$error":"#N/A"}},{"$f":"_xlfn.XLOOKUP(B196,FeedTables!$C$17:$T$17,FeedTables!$C$31:$T$31,,-1)","v":{"$error":"#N/A"}},{"$f":"_xlfn.XLOOKUP(Q196,FeedPrice[Feed],FeedPrice[Price per kg],\"Unknown\",0)*O196","v":{"$error":"#N/A"}},{"$f":"R196+S195","v":{"$error":"#N/A"}},{"$f":"_xlfn.XLOOKUP(O196,LabourFromFeed[Feed Quantity (kg)],LabourFromFeed[No. Labour],\"Out of range\",-1)","v":{"$error":"#N/A"}},{"$f":"T196*OperatingCosts!$C$9","v":{"$error":"#N/A"}},{"$f":"U196+V195","v":{"$error":"#N/A"}}]
[195,{"$f":"IF(A197<='S1-Standard'!$C$7, B196*EXP((LN((E196/100)+1))*1),)","v":0},{"$f":"_xlfn.XLOOKUP($B197,FeedTables!$C$42:$T$42,FeedTables!$C$44:$T$44,,-1)","v":{"$error":"#N/A"}},{"$f":"_xlfn.XLOOKUP($B197,FeedTables!$C$42:$T$42,FeedTables!$C$45:$T$45,,-1)","v":{"$error":"#N/A"}},{"$f":"_xlfn.XLOOKUP($B197,FeedTables!$C$42:$T$42,FeedTables!$C$46:$T$46,,-1)*_xlfn.XLOOKUP(N196,DensityMultiplier[Biomass kg/m3],DensityMultiplier[Multiplier],,-1)","v":{"$error":"#N/A"}},{"$f":"F196-G196-H196","v":1926.6019431401946},{"$f":"IF(A197<='S1-Standard'!$C$7,('Growth-Model-1'!G196*EXP($AA$7)),0)","v":0},{"$f":"IF(A197<='S1-Standard'!$C$7,$AD$6*EXP($AD$7*('S1-Standard'!C$7-'Growth-Model-1'!A197)),0)","v":0},98.398056859804981,4.8591633017187642E-2,0,9.6134220875344365,0,{"$f":"M197/'S1-Standard'!$C$17","v":0},{"$error":"#N/A"},{"$error":"#N/A"},{"$f":"_xlfn.XLOOKUP(B197,FeedTables!$C$17:$T$17,FeedTables!$C$31:$T$31,,-1)","v":{"$error":"#N/A"}},{"$f":"_xlfn.XLOOKUP(Q197,FeedPrice[Feed],FeedPrice[Price per kg],\"Unknown\",0)*O197","v":{"$error":"#N/A"}},{"$error":"#N/A"},{"$f":"_xlfn.XLOOKUP(O197,LabourFromFeed[Feed Quantity (kg)],LabourFromFeed[No. Labour],\"Out of range\",-1)","v":{"$error":"#N/A"}},{"$f":"T197*OperatingCosts!$C$9","v":{"$error":"#N/A"}},{"$error":"#N/A"}]
[196,{"$f":"IF(A198<='S1-Standard'!$C$7, B197*EXP((LN((E197/100)+1))*1),)","v":0},{"$f":"_xlfn.XLOOKUP($B198,FeedTables!$C$42:$T$42,FeedTables!$C$44:$T$44,,-1)","v":{"$error":"#N/A"}},{"$f":"_xlfn.XLOOKUP($B198,FeedTables!$C$42:$T$42,FeedTables!$C$45:$T$45,,-1)","v":{"$error":"#N/A"}},{"$f":"_xlfn.XLOOKUP($B198,FeedTables!$C$42:$T$42,FeedTables!$C$46:$T$46,,-1)*_xlfn.XLOOKUP(N197,DensityMultiplier[Biomass kg/m3],DensityMultiplier[Multiplier],,-1)","v":{"$error":"#N/A"}},1926.6019431401946,{"$f":"IF(A198<='S1-Standard'!$C$7,('Growth-Model-1'!G197*EXP($AA$7)),0)","v":0},{"$f":"IF(A198<='S1-Standard'!$C$7,$AD$6*EXP($AD$7*('S1-Standard'!C$7-'Growth-Model-1'!A198)),0)","v":0},98.398056859804981,4.8591633017187642E-2,0,9.6134220875344365,0,{"$f":"M198/'S1-Standard'!$C$17","v":0},{"$error":"#N/A"},{"$error":"#N/A"},{"$f":"_xlfn.XLOOKUP(B198,FeedTables!$C$17:$T$17,FeedTables!$C$31:$T$31,,-1)","v":{"$error":"#N/A"}},{"$f":"_xlfn.XLOOKUP(Q198,FeedPrice[Feed],FeedPrice[Price per kg],\"Unknown\",0)*O198","v":{"$error":"#N/A"}},{"$error":"#N/A"},{"$f":"_xlfn.XLOOKUP(O198,LabourFromFeed[Feed Quantity (kg)],LabourFromFeed[No. Labour],\"Out of range\",-1)","v":{"$error":"#N/A"}},{"$f":"T198*OperatingCosts!$C$9","v":{"$error":"#N/A"}},{"$error":"#N/A"}]
[197,{"$f":"IF(A199<='S1-Standard'!$C$7, B198*EXP((LN((E198/100)+1))*1),)","v":0},{"$f":"_xlfn.XLOOKUP($B199,FeedTables!$C$42:$T$42,FeedTables!$C$44:$T$44,,-1)","v":{"$error":"#N/A"}},{"$f":"_xlfn.XLOOKUP($B199,FeedTables!$C$42:$T$42,FeedTables!$C$45:$T$45,,-1)","v":{"$error":"#N/A"}},{"$f":"_xlfn.XLOOKUP($B199,FeedTables!$C$42:$T$42,FeedTables!$C$46:$T$46,,-1)*_xlfn.XLOOKUP(N198,DensityMultiplier[Biomass kg/m3],DensityMultiplier[Multiplier],,-1)","v":{"$error":"#N/A"}},1926.6019431401946,{"$f":"IF(A199<='S1-Standard'!$C$7,('Growth-Model-1'!G198*EXP($AA$7)),0)","v":0},{"$f":"IF(A199<='S1-Standard'!$C$7,$AD$6*EXP($AD$7*('S1-Standard'!C$7-'Growth-Model-1'!A199)),0)","v":0},98.398056859804981,4.8591633017187642E-2,0,9.6134220875344365,0,{"$f":"M199/'S1-Standard'!$C$17","v":0},{"$error":"#N/A"},{"$error":"#N/A"},{"$f":"_xlfn.XLOOKUP(B199,FeedTables!$C$17:$T$17,FeedTables!$C$31:$T$31,,-1)","v":{"$error":"#N/A"}},{"$f":"_xlfn.XLOOKUP(Q199,FeedPrice[Feed],FeedPrice[Price per kg],\"Unknown\",0)*O199","v":{"$error":"#N/A"}},{"$error":"#N/A"},{"$f":"_xlfn.XLOOKUP(O199,LabourFromFeed[Feed Quantity (kg)],LabourFromFeed[No. Labour],\"Out of range\",-1)","v":{"$error":"#N/A"}},{"$f":"T199*OperatingCosts!$C$9","v":{"$error":"#N/A"}},{"$error":"#N/A"}]
[198,{"$f":"IF(A200<='S1-Standard'!$C$7, B199*EXP((LN((E199/100)+1))*1),)","v":0},{"$f":"_xlfn.XLOOKUP($B200,FeedTables!$C$42:$T$42,FeedTables!$C$44:$T$44,,-1)","v":{"$error":"#N/A"}},{"$f":"_xlfn.XLOOKUP($B200,FeedTables!$C$42:$T$42,FeedTables!$C$45:$T$45,,-1)","v":{"$error":"#N/A"}},{"$f":"_xlfn.XLOOKUP($B200,FeedTables!$C$42:$T$42,FeedTables!$C$46:$T$46,,-1)*_xlfn.XLOOKUP(N199,DensityMultiplier[Biomass kg/m3],DensityMultiplier[Multiplier],,-1)","v":{"$error":"#N/A"}},1926.6019431401946,{"$f":"IF(A200<='S1-Standard'!$C$7,('Growth-Model-1'!G199*EXP($AA$7)),0)","v":0},{"$f":"IF(A200<='S1-Standard'!$C$7,$AD$6*EXP($AD$7*('S1-Standard'!C$7-'Growth-Model-1'!A200)),0)","v":0},98.398056859804981,4.8591633017187642E-2,0,9.6134220875344365,0,{"$f":"M200/'S1-Standard'!$C$17","v":0},{"$error":"#N/A"},{"$error":"#N/A"},{"$f":"_xlfn.XLOOKUP(B200,FeedTables!$C$17:$T$17,FeedTables!$C$31:$T$31,,-1)","v":{"$error":"#N/A"}},{"$f":"_xlfn.XLOOKUP(Q200,FeedPrice[Feed],FeedPrice[Price per kg],\"Unknown\",0)*O200","v":{"$error":"#N/A"}},{"$error":"#N/A"},{"$f":"_xlfn.XLOOKUP(O200,LabourFromFeed[Feed Quantity (kg)],LabourFromFeed[No. Labour],\"Out of range\",-1)","v":{"$error":"#N/A"}},{"$f":"T200*OperatingCosts!$C$9","v":{"$error":"#N/A"}},{"$error":"#N/A"}]
[199,{"$f":"IF(A201<='S1-Standard'!$C$7, B200*EXP((LN((E200/100)+1))*1),)","v":0},{"$f":"_xlfn.XLOOKUP($B201,FeedTables!$C$42:$T$42,FeedTables!$C$44:$T$44,,-1)","v":{"$error":"#N/A"}},{"$f":"_xlfn.XLOOKUP($B201,FeedTables!$C$42:$T$42,FeedTables!$C$45:$T$45,,-1)","v":{"$error":"#N/A"}},{"$f":"_xlfn.XLOOKUP($B201,FeedTables!$C$42:$T$42,FeedTables!$C$46:$T$46,,-1)*_xlfn.XLOOKUP(N200,DensityMultiplier[Biomass kg/m3],DensityMultiplier[Multiplier],,-1)","v":{"$error":"#N/A"}},1926.6019431401946,{"$f":"IF(A201<='S1-Standard'!$C$7,('Growth-Model-1'!G200*EXP($AA$7)),0)","v":0},{"$f":"IF(A201<='S1-Standard'!$C$7,$AD$6*EXP($AD$7*('S1-Standard'!C$7-'Growth-Model-1'!A201)),0)","v":0},98.398056859804981,4.8591633017187642E-2,0,9.6134220875344365,0,{"$f":"M201/'S1-Standard'!$C$17","v":0},{"$error":"#N/A"},{"$error":"#N/A"},{"$f":"_xlfn.XLOOKUP(B201,FeedTables!$C$17:$T$17,FeedTables!$C$31:$T$31,,-1)","v":{"$error":"#N/A"}},{"$f":"_xlfn.XLOOKUP(Q201,FeedPrice[Feed],FeedPrice[Price per kg],\"Unknown\",0)*O201","v":{"$error":"#N/A"}},{"$error":"#N/A"},{"$f":"_xlfn.XLOOKUP(O201,LabourFromFeed[Feed Quantity (kg)],LabourFromFeed[No. Labour],\"Out of range\",-1)","v":{"$error":"#N/A"}},{"$f":"T201*OperatingCosts!$C$9","v":{"$error":"#N/A"}},{"$error":"#N/A"}]
[200,{"$f":"IF(A202<='S1-Standard'!$C$7, B201*EXP((LN((E201/100)+1))*1),)","v":0},{"$f":"_xlfn.XLOOKUP($B202,FeedTables!$C$42:$T$42,FeedTables!$C$44:$T$44,,-1)","v":{"$error":"#N/A"}},{"$f":"_xlfn.XLOOKUP($B202,FeedTables!$C$42:$T$42,FeedTables!$C$45:$T$45,,-1)","v":{"$error":"#N/A"}},{"$f":"_xlfn.XLOOKUP($B202,FeedTables!$C$42:$T$42,FeedTables!$C$46:$T$46,,-1)*_xlfn.XLOOKUP(N201,DensityMultiplier[Biomass kg/m3],DensityMultiplier[Multiplier],,-1)","v":{"$error":"#N/A"}},1926.6019431401946,{"$f":"IF(A202<='S1-Standard'!$C$7,('Growth-Model-1'!G201*EXP($AA$7)),0)","v":0},{"$f":"IF(A202<='S1-Standard'!$C$7,$AD$6*EXP($AD$7*('S1-Standard'!C$7-'Growth-Model-1'!A202)),0)","v":0},98.398056859804981,4.8591633017187642E-2,0,9.6134220875344365,0,{"$f":"M202/'S1-Standard'!$C$17","v":0},{"$error":"#N/A"},{"$error":"#N/A"},{"$f":"_xlfn.XLOOKUP(B202,FeedTables!$C$17:$T$17,FeedTables!$C$31:$T$31,,-1)","v":{"$error":"#N/A"}},{"$f":"_xlfn.XLOOKUP(Q202,FeedPrice[Feed],FeedPrice[Price per kg],\"Unknown\",0)*O202","v":{"$error":"#N/A"}},{"$error":"#N/A"},{"$f":"_xlfn.XLOOKUP(O202,LabourFromFeed[Feed Quantity (kg)],LabourFromFeed[No. Labour],\"Out of range\",-1)","v":{"$error":"#N/A"}},{"$f":"T202*OperatingCosts!$C$9","v":{"$error":"#N/A"}},{"$error":"#N/A"}]
[201,{"$f":"IF(A203<='S1-Standard'!$C$7, B202*EXP((LN((E202/100)+1))*1),)","v":0},{"$f":"_xlfn.XLOOKUP($B203,FeedTables!$C$42:$T$42,FeedTables!$C$44:$T$44,,-1)","v":{"$error":"#N/A"}},{"$f":"_xlfn.XLOOKUP($B203,FeedTables!$C$42:$T$42,FeedTables!$C$45:$T$45,,-1)","v":{"$error":"#N/A"}},{"$f":"_xlfn.XLOOKUP($B203,FeedTables!$C$42:$T$42,FeedTables!$C$46:$T$46,,-1)*_xlfn.XLOOKUP(N202,DensityMultiplier[Biomass kg/m3],DensityMultiplier[Multiplier],,-1)","v":{"$error":"#N/A"}},1926.6019431401946,{"$f":"IF(A203<='S1-Standard'!$C$7,('Growth-Model-1'!G202*EXP($AA$7)),0)","v":0},{"$f":"IF(A203<='S1-Standard'!$C$7,$AD$6*EXP($AD$7*('S1-Standard'!C$7-'Growth-Model-1'!A203)),0)","v":0},98.398056859804981,4.8591633017187642E-2,0,9.6134220875344365,0,{"$f":"M203/'S1-Standard'!$C$17","v":0},{"$error":"#N/A"},{"$error":"#N/A"},{"$f":"_xlfn.XLOOKUP(B203,FeedTables!$C$17:$T$17,FeedTables!$C$31:$T$31,,-1)","v":{"$error":"#N/A"}},{"$f":"_xlfn.XLOOKUP(Q203,FeedPrice[Feed],FeedPrice[Price per kg],\"Unknown\",0)*O203","v":{"$error":"#N/A"}},{"$error":"#N/A"},{"$f":"_xlfn.XLOOKUP(O203,LabourFromFeed[Feed Quantity (kg)],LabourFromFeed[No. Labour],\"Out of range\",-1)","v":{"$error":"#N/A"}},{"$f":"T203*OperatingCosts!$C$9","v":{"$error":"#N/A"}},{"$error":"#N/A"}]
[202,{"$f":"IF(A204<='S1-Standard'!$C$7, B203*EXP((LN((E203/100)+1))*1),)","v":0},{"$f":"_xlfn.XLOOKUP($B204,FeedTables!$C$42:$T$42,FeedTables!$C$44:$T$44,,-1)","v":{"$error":"#N/A"}},{"$f":"_xlfn.XLOOKUP($B204,FeedTables!$C$42:$T$42,FeedTables!$C$45:$T$45,,-1)","v":{"$error":"#N/A"}},{"$f":"_xlfn.XLOOKUP($B204,FeedTables!$C$42:$T$42,FeedTables!$C$46:$T$46,,-1)*_xlfn.XLOOKUP(N203,DensityMultiplier[Biomass kg/m3],DensityMultiplier[Multiplier],,-1)","v":{"$error":"#N/A"}},1926.6019431401946,{"$f":"IF(A204<='S1-Standard'!$C$7,('Growth-Model-1'!G203*EXP($AA$7)),0)","v":0},{"$f":"IF(A204<='S1-Standard'!$C$7,$AD$6*EXP($AD$7*('S1-Standard'!C$7-'Growth-Model-1'!A204)),0)","v":0},98.398056859804981,4.8591633017187642E-2,0,9.6134220875344365,0,{"$f":"M204/'S1-Standard'!$C$17","v":0},{"$error":"#N/A"},{"$error":"#N/A"},{"$f":"_xlfn.XLOOKUP(B204,FeedTables!$C$17:$T$17,FeedTables!$C$31:$T$31,,-1)","v":{"$error":"#N/A"}},{"$f":"_xlfn.XLOOKUP(Q204,FeedPrice[Feed],FeedPrice[Price per kg],\"Unknown\",0)*O204","v":{"$error":"#N/A"}},{"$error":"#N/A"},{"$f":"_xlfn.XLOOKUP(O204,LabourFromFeed[Feed Quantity (kg)],LabourFromFeed[No. Labour],\"Out of range\",-1)","v":{"$error":"#N/A"}},{"$f":"T204*OperatingCosts!$C$9","v":{"$error":"#N/A"}},{"$error":"#N/A"}]
[203,{"$f":"IF(A205<='S1-Standard'!$C$7, B204*EXP((LN((E204/100)+1))*1),)","v":0},{"$f":"_xlfn.XLOOKUP($B205,FeedTables!$C$42:$T$42,FeedTables!$C$44:$T$44,,-1)","v":{"$error":"#N/A"}},{"$f":"_xlfn.XLOOKUP($B205,FeedTables!$C$42:$T$42,FeedTables!$C$45:$T$45,,-1)","v":{"$error":"#N/A"}},{"$f":"_xlfn.XLOOKUP($B205,FeedTables!$C$42:$T$42,FeedTables!$C$46:$T$46,,-1)*_xlfn.XLOOKUP(N204,DensityMultiplier[Biomass kg/m3],DensityMultiplier[Multiplier],,-1)","v":{"$error":"#N/A"}},1926.6019431401946,{"$f":"IF(A205<='S1-Standard'!$C$7,('Growth-Model-1'!G204*EXP($AA$7)),0)","v":0},{"$f":"IF(A205<='S1-Standard'!$C$7,$AD$6*EXP($AD$7*('S1-Standard'!C$7-'Growth-Model-1'!A205)),0)","v":0},98.398056859804981,4.8591633017187642E-2,0,9.6134220875344365,0,{"$f":"M205/'S1-Standard'!$C$17","v":0},{"$error":"#N/A"},{"$error":"#N/A"},{"$f":"_xlfn.XLOOKUP(B205,FeedTables!$C$17:$T$17,FeedTables!$C$31:$T$31,,-1)","v":{"$error":"#N/A"}},{"$f":"_xlfn.XLOOKUP(Q205,FeedPrice[Feed],FeedPrice[Price per kg],\"Unknown\",0)*O205","v":{"$error":"#N/A"}},{"$error":"#N/A"},{"$f":"_xlfn.XLOOKUP(O205,LabourFromFeed[Feed Quantity (kg)],LabourFromFeed[No. Labour],\"Out of range\",-1)","v":{"$error":"#N/A"}},{"$f":"T205*OperatingCosts!$C$9","v":{"$error":"#N/A"}},{"$error":"#N/A"}]
[204,{"$f":"IF(A206<='S1-Standard'!$C$7, B205*EXP((LN((E205/100)+1))*1),)","v":0},{"$f":"_xlfn.XLOOKUP($B206,FeedTables!$C$42:$T$42,FeedTables!$C$44:$T$44,,-1)","v":{"$error":"#N/A"}},{"$f":"_xlfn.XLOOKUP($B206,FeedTables!$C$42:$T$42,FeedTables!$C$45:$T$45,,-1)","v":{"$error":"#N/A"}},{"$f":"_xlfn.XLOOKUP($B206,FeedTables!$C$42:$T$42,FeedTables!$C$46:$T$46,,-1)*_xlfn.XLOOKUP(N205,DensityMultiplier[Biomass kg/m3],DensityMultiplier[Multiplier],,-1)","v":{"$error":"#N/A"}},1926.6019431401946,{"$f":"IF(A206<='S1-Standard'!$C$7,('Growth-Model-1'!G205*EXP($AA$7)),0)","v":0},{"$f":"IF(A206<='S1-Standard'!$C$7,$AD$6*EXP($AD$7*('S1-Standard'!C$7-'Growth-Model-1'!A206)),0)","v":0},98.398056859804981,4.8591633017187642E-2,0,9.6134220875344365,0,{"$f":"M206/'S1-Standard'!$C$17","v":0},{"$error":"#N/A"},{"$error":"#N/A"},{"$f":"_xlfn.XLOOKUP(B206,FeedTables!$C$17:$T$17,FeedTables!$C$31:$T$31,,-1)","v":{"$error":"#N/A"}},{"$f":"_xlfn.XLOOKUP(Q206,FeedPrice[Feed],FeedPrice[Price per kg],\"Unknown\",0)*O206","v":{"$error":"#N/A"}},{"$error":"#N/A"},{"$f":"_xlfn.XLOOKUP(O206,LabourFromFeed[Feed Quantity (kg)],LabourFromFeed[No. Labour],\"Out of range\",-1)","v":{"$error":"#N/A"}},{"$f":"T206*OperatingCosts!$C$9","v":{"$error":"#N/A"}},{"$error":"#N/A"}]
[205,{"$f":"IF(A207<='S1-Standard'!$C$7, B206*EXP((LN((E206/100)+1))*1),)","v":0},{"$f":"_xlfn.XLOOKUP($B207,FeedTables!$C$42:$T$42,FeedTables!$C$44:$T$44,,-1)","v":{"$error":"#N/A"}},{"$f":"_xlfn.XLOOKUP($B207,FeedTables!$C$42:$T$42,FeedTables!$C$45:$T$45,,-1)","v":{"$error":"#N/A"}},{"$f":"_xlfn.XLOOKUP($B207,FeedTables!$C$42:$T$42,FeedTables!$C$46:$T$46,,-1)*_xlfn.XLOOKUP(N206,DensityMultiplier[Biomass kg/m3],DensityMultiplier[Multiplier],,-1)","v":{"$error":"#N/A"}},1926.6019431401946,{"$f":"IF(A207<='S1-Standard'!$C$7,('Growth-Model-1'!G206*EXP($AA$7)),0)","v":0},{"$f":"IF(A207<='S1-Standard'!$C$7,$AD$6*EXP($AD$7*('S1-Standard'!C$7-'Growth-Model-1'!A207)),0)","v":0},98.398056859804981,4.8591633017187642E-2,0,9.6134220875344365,0,{"$f":"M207/'S1-Standard'!$C$17","v":0},{"$error":"#N/A"},{"$error":"#N/A"},{"$f":"_xlfn.XLOOKUP(B207,FeedTables!$C$17:$T$17,FeedTables!$C$31:$T$31,,-1)","v":{"$error":"#N/A"}},{"$f":"_xlfn.XLOOKUP(Q207,FeedPrice[Feed],FeedPrice[Price per kg],\"Unknown\",0)*O207","v":{"$error":"#N/A"}},{"$error":"#N/A"},{"$f":"_xlfn.XLOOKUP(O207,LabourFromFeed[Feed Quantity (kg)],LabourFromFeed[No. Labour],\"Out of range\",-1)","v":{"$error":"#N/A"}},{"$f":"T207*OperatingCosts!$C$9","v":{"$error":"#N/A"}},{"$error":"#N/A"}]
[206,{"$f":"IF(A208<='S1-Standard'!$C$7, B207*EXP((LN((E207/100)+1))*1),)","v":0},{"$f":"_xlfn.XLOOKUP($B208,FeedTables!$C$42:$T$42,FeedTables!$C$44:$T$44,,-1)","v":{"$error":"#N/A"}},{"$f":"_xlfn.XLOOKUP($B208,FeedTables!$C$42:$T$42,FeedTables!$C$45:$T$45,,-1)","v":{"$error":"#N/A"}},{"$f":"_xlfn.XLOOKUP($B208,FeedTables!$C$42:$T$42,FeedTables!$C$46:$T$46,,-1)*_xlfn.XLOOKUP(N207,DensityMultiplier[Biomass kg/m3],DensityMultiplier[Multiplier],,-1)","v":{"$error":"#N/A"}},1926.6019431401946,{"$f":"IF(A208<='S1-Standard'!$C$7,('Growth-Model-1'!G207*EXP($AA$7)),0)","v":0},{"$f":"IF(A208<='S1-Standard'!$C$7,$AD$6*EXP($AD$7*('S1-Standard'!C$7-'Growth-Model-1'!A208)),0)","v":0},98.398056859804981,4.8591633017187642E-2,0,9.6134220875344365,0,{"$f":"M208/'S1-Standard'!$C$17","v":0},{"$error":"#N/A"},{"$error":"#N/A"},{"$f":"_xlfn.XLOOKUP(B208,FeedTables!$C$17:$T$17,FeedTables!$C$31:$T$31,,-1)","v":{"$error":"#N/A"}},{"$f":"_xlfn.XLOOKUP(Q208,FeedPrice[Feed],FeedPrice[Price per kg],\"Unknown\",0)*O208","v":{"$error":"#N/A"}},{"$error":"#N/A"},{"$f":"_xlfn.XLOOKUP(O208,LabourFromFeed[Feed Quantity (kg)],LabourFromFeed[No. Labour],\"Out of range\",-1)","v":{"$error":"#N/A"}},{"$f":"T208*OperatingCosts!$C$9","v":{"$error":"#N/A"}},{"$error":"#N/A"}]
[207,{"$f":"IF(A209<='S1-Standard'!$C$7, B208*EXP((LN((E208/100)+1))*1),)","v":0},{"$f":"_xlfn.XLOOKUP($B209,FeedTables!$C$42:$T$42,FeedTables!$C$44:$T$44,,-1)","v":{"$error":"#N/A"}},{"$f":"_xlfn.XLOOKUP($B209,FeedTables!$C$42:$T$42,FeedTables!$C$45:$T$45,,-1)","v":{"$error":"#N/A"}},{"$f":"_xlfn.XLOOKUP($B209,FeedTables!$C$42:$T$42,FeedTables!$C$46:$T$46,,-1)*_xlfn.XLOOKUP(N208,DensityMultiplier[Biomass kg/m3],DensityMultiplier[Multiplier],,-1)","v":{"$error":"#N/A"}},1926.6019431401946,{"$f":"IF(A209<='S1-Standard'!$C$7,('Growth-Model-1'!G208*EXP($AA$7)),0)","v":0},{"$f":"IF(A209<='S1-Standard'!$C$7,$AD$6*EXP($AD$7*('S1-Standard'!C$7-'Growth-Model-1'!A209)),0)","v":0},98.398056859804981,4.8591633017187642E-2,0,9.6134220875344365,0,{"$f":"M209/'S1-Standard'!$C$17","v":0},{"$error":"#N/A"},{"$error":"#N/A"},{"$f":"_xlfn.XLOOKUP(B209,FeedTables!$C$17:$T$17,FeedTables!$C$31:$T$31,,-1)","v":{"$error":"#N/A"}},{"$f":"_xlfn.XLOOKUP(Q209,FeedPrice[Feed],FeedPrice[Price per kg],\"Unknown\",0)*O209","v":{"$error":"#N/A"}},{"$error":"#N/A"},{"$f":"_xlfn.XLOOKUP(O209,LabourFromFeed[Feed Quantity (kg)],LabourFromFeed[No. Labour],\"Out of range\",-1)","v":{"$error":"#N/A"}},{"$f":"T209*OperatingCosts!$C$9","v":{"$error":"#N/A"}},{"$error":"#N/A"}]
[208,{"$f":"IF(A210<='S1-Standard'!$C$7, B209*EXP((LN((E209/100)+1))*1),)","v":0},{"$f":"_xlfn.XLOOKUP($B210,FeedTables!$C$42:$T$42,FeedTables!$C$44:$T$44,,-1)","v":{"$error":"#N/A"}},{"$f":"_xlfn.XLOOKUP($B210,FeedTables!$C$42:$T$42,FeedTables!$C$45:$T$45,,-1)","v":{"$error":"#N/A"}},{"$f":"_xlfn.XLOOKUP($B210,FeedTables!$C$42:$T$42,FeedTables!$C$46:$T$46,,-1)*_xlfn.XLOOKUP(N209,DensityMultiplier[Biomass kg/m3],DensityMultiplier[Multiplier],,-1)","v":{"$error":"#N/A"}},1926.6019431401946,{"$f":"IF(A210<='S1-Standard'!$C$7,('Growth-Model-1'!G209*EXP($AA$7)),0)","v":0},{"$f":"IF(A210<='S1-Standard'!$C$7,$AD$6*EXP($AD$7*('S1-Standard'!C$7-'Growth-Model-1'!A210)),0)","v":0},98.398056859804981,4.8591633017187642E-2,0,9.6134220875344365,0,{"$f":"M210/'S1-Standard'!$C$17","v":0},{"$error":"#N/A"},{"$error":"#N/A"},{"$f":"_xlfn.XLOOKUP(B210,FeedTables!$C$17:$T$17,FeedTables!$C$31:$T$31,,-1)","v":{"$error":"#N/A"}},{"$f":"_xlfn.XLOOKUP(Q210,FeedPrice[Feed],FeedPrice[Price per kg],\"Unknown\",0)*O210","v":{"$error":"#N/A"}},{"$error":"#N/A"},{"$f":"_xlfn.XLOOKUP(O210,LabourFromFeed[Feed Quantity (kg)],LabourFromFeed[No. Labour],\"Out of range\",-1)","v":{"$error":"#N/A"}},{"$f":"T210*OperatingCosts!$C$9","v":{"$error":"#N/A"}},{"$error":"#N/A"}]
[209,{"$f":"IF(A211<='S1-Standard'!$C$7, B210*EXP((LN((E210/100)+1))*1),)","v":0},{"$f":"_xlfn.XLOOKUP($B211,FeedTables!$C$42:$T$42,FeedTables!$C$44:$T$44,,-1)","v":{"$error":"#N/A"}},{"$f":"_xlfn.XLOOKUP($B211,FeedTables!$C$42:$T$42,FeedTables!$C$45:$T$45,,-1)","v":{"$error":"#N/A"}},{"$f":"_xlfn.XLOOKUP($B211,FeedTables!$C$42:$T$42,FeedTables!$C$46:$T$46,,-1)*_xlfn.XLOOKUP(N210,DensityMultiplier[Biomass kg/m3],DensityMultiplier[Multiplier],,-1)","v":{"$error":"#N/A"}},1926.6019431401946,{"$f":"IF(A211<='S1-Standard'!$C$7,('Growth-Model-1'!G210*EXP($AA$7)),0)","v":0},{"$f":"IF(A211<='S1-Standard'!$C$7,$AD$6*EXP($AD$7*('S1-Standard'!C$7-'Growth-Model-1'!A211)),0)","v":0},98.398056859804981,4.8591633017187642E-2,0,9.6134220875344365,0,{"$f":"M211/'S1-Standard'!$C$17","v":0},{"$error":"#N/A"},{"$error":"#N/A"},{"$f":"_xlfn.XLOOKUP(B211,FeedTables!$C$17:$T$17,FeedTables!$C$31:$T$31,,-1)","v":{"$error":"#N/A"}},{"$f":"_xlfn.XLOOKUP(Q211,FeedPrice[Feed],FeedPrice[Price per kg],\"Unknown\",0)*O211","v":{"$error":"#N/A"}},{"$error":"#N/A"},{"$f":"_xlfn.XLOOKUP(O211,LabourFromFeed[Feed Quantity (kg)],LabourFromFeed[No. Labour],\"Out of range\",-1)","v":{"$error":"#N/A"}},{"$f":"T211*OperatingCosts!$C$9","v":{"$error":"#N/A"}},{"$error":"#N/A"}]
[210,{"$f":"IF(A212<='S1-Standard'!$C$7, B211*EXP((LN((E211/100)+1))*1),)","v":0},{"$f":"_xlfn.XLOOKUP($B212,FeedTables!$C$42:$T$42,FeedTables!$C$44:$T$44,,-1)","v":{"$error":"#N/A"}},{"$f":"_xlfn.XLOOKUP($B212,FeedTables!$C$42:$T$42,FeedTables!$C$45:$T$45,,-1)","v":{"$error":"#N/A"}},{"$f":"_xlfn.XLOOKUP($B212,FeedTables!$C$42:$T$42,FeedTables!$C$46:$T$46,,-1)*_xlfn.XLOOKUP(N211,DensityMultiplier[Biomass kg/m3],DensityMultiplier[Multiplier],,-1)","v":{"$error":"#N/A"}},1926.6019431401946,{"$f":"IF(A212<='S1-Standard'!$C$7,('Growth-Model-1'!G211*EXP($AA$7)),0)","v":0},{"$f":"IF(A212<='S1-Standard'!$C$7,$AD$6*EXP($AD$7*('S1-Standard'!C$7-'Growth-Model-1'!A212)),0)","v":0},98.398056859804981,4.8591633017187642E-2,0,9.6134220875344365,0,{"$f":"M212/'S1-Standard'!$C$17","v":0},{"$error":"#N/A"},{"$error":"#N/A"},{"$f":"_xlfn.XLOOKUP(B212,FeedTables!$C$17:$T$17,FeedTables!$C$31:$T$31,,-1)","v":{"$error":"#N/A"}},{"$f":"_xlfn.XLOOKUP(Q212,FeedPrice[Feed],FeedPrice[Price per kg],\"Unknown\",0)*O212","v":{"$error":"#N/A"}},{"$error":"#N/A"},{"$f":"_xlfn.XLOOKUP(O212,LabourFromFeed[Feed Quantity (kg)],LabourFromFeed[No. Labour],\"Out of range\",-1)","v":{"$error":"#N/A"}},{"$f":"T212*OperatingCosts!$C$9","v":{"$error":"#N/A"}},{"$error":"#N/A"}]
[211,{"$f":"IF(A213<='S1-Standard'!$C$7, B212*EXP((LN((E212/100)+1))*1),)","v":0},{"$f":"_xlfn.XLOOKUP($B213,FeedTables!$C$42:$T$42,FeedTables!$C$44:$T$44,,-1)","v":{"$error":"#N/A"}},{"$f":"_xlfn.XLOOKUP($B213,FeedTables!$C$42:$T$42,FeedTables!$C$45:$T$45,,-1)","v":{"$error":"#N/A"}},{"$f":"_xlfn.XLOOKUP($B213,FeedTables!$C$42:$T$42,FeedTables!$C$46:$T$46,,-1)*_xlfn.XLOOKUP(N212,DensityMultiplier[Biomass kg/m3],DensityMultiplier[Multiplier],,-1)","v":{"$error":"#N/A"}},1926.6019431401946,{"$f":"IF(A213<='S1-Standard'!$C$7,('Growth-Model-1'!G212*EXP($AA$7)),0)","v":0},{"$f":"IF(A213<='S1-Standard'!$C$7,$AD$6*EXP($AD$7*('S1-Standard'!C$7-'Growth-Model-1'!A213)),0)","v":0},98.398056859804981,4.8591633017187642E-2,0,9.6134220875344365,0,{"$f":"M213/'S1-Standard'!$C$17","v":0},{"$error":"#N/A"},{"$error":"#N/A"},{"$f":"_xlfn.XLOOKUP(B213,FeedTables!$C$17:$T$17,FeedTables!$C$31:$T$31,,-1)","v":{"$error":"#N/A"}},{"$f":"_xlfn.XLOOKUP(Q213,FeedPrice[Feed],FeedPrice[Price per kg],\"Unknown\",0)*O213","v":{"$error":"#N/A"}},{"$error":"#N/A"},{"$f":"_xlfn.XLOOKUP(O213,LabourFromFeed[Feed Quantity (kg)],LabourFromFeed[No. Labour],\"Out of range\",-1)","v":{"$error":"#N/A"}},{"$f":"T213*OperatingCosts!$C$9","v":{"$error":"#N/A"}},{"$error":"#N/A"}]
[212,{"$f":"IF(A214<='S1-Standard'!$C$7, B213*EXP((LN((E213/100)+1))*1),)","v":0},{"$f":"_xlfn.XLOOKUP($B214,FeedTables!$C$42:$T$42,FeedTables!$C$44:$T$44,,-1)","v":{"$error":"#N/A"}},{"$f":"_xlfn.XLOOKUP($B214,FeedTables!$C$42:$T$42,FeedTables!$C$45:$T$45,,-1)","v":{"$error":"#N/A"}},{"$f":"_xlfn.XLOOKUP($B214,FeedTables!$C$42:$T$42,FeedTables!$C$46:$T$46,,-1)*_xlfn.XLOOKUP(N213,DensityMultiplier[Biomass kg/m3],DensityMultiplier[Multiplier],,-1)","v":{"$error":"#N/A"}},1926.6019431401946,{"$f":"IF(A214<='S1-Standard'!$C$7,('Growth-Model-1'!G213*EXP($AA$7)),0)","v":0},{"$f":"IF(A214<='S1-Standard'!$C$7,$AD$6*EXP($AD$7*('S1-Standard'!C$7-'Growth-Model-1'!A214)),0)","v":0},98.398056859804981,4.8591633017187642E-2,0,9.6134220875344365,0,{"$f":"M214/'S1-Standard'!$C$17","v":0},{"$error":"#N/A"},{"$error":"#N/A"},{"$f":"_xlfn.XLOOKUP(B214,FeedTables!$C$17:$T$17,FeedTables!$C$31:$T$31,,-1)","v":{"$error":"#N/A"}},{"$f":"_xlfn.XLOOKUP(Q214,FeedPrice[Feed],FeedPrice[Price per kg],\"Unknown\",0)*O214","v":{"$error":"#N/A"}},{"$error":"#N/A"},{"$f":"_xlfn.XLOOKUP(O214,LabourFromFeed[Feed Quantity (kg)],LabourFromFeed[No. Labour],\"Out of range\",-1)","v":{"$error":"#N/A"}},{"$f":"T214*OperatingCosts!$C$9","v":{"$error":"#N/A"}},{"$error":"#N/A"}]
[213,{"$f":"IF(A215<='S1-Standard'!$C$7, B214*EXP((LN((E214/100)+1))*1),)","v":0},{"$f":"_xlfn.XLOOKUP($B215,FeedTables!$C$42:$T$42,FeedTables!$C$44:$T$44,,-1)","v":{"$error":"#N/A"}},{"$f":"_xlfn.XLOOKUP($B215,FeedTables!$C$42:$T$42,FeedTables!$C$45:$T$45,,-1)","v":{"$error":"#N/A"}},{"$f":"_xlfn.XLOOKUP($B215,FeedTables!$C$42:$T$42,FeedTables!$C$46:$T$46,,-1)*_xlfn.XLOOKUP(N214,DensityMultiplier[Biomass kg/m3],DensityMultiplier[Multiplier],,-1)","v":{"$error":"#N/A"}},1926.6019431401946,{"$f":"IF(A215<='S1-Standard'!$C$7,('Growth-Model-1'!G214*EXP($AA$7)),0)","v":0},{"$f":"IF(A215<='S1-Standard'!$C$7,$AD$6*EXP($AD$7*('S1-Standard'!C$7-'Growth-Model-1'!A215)),0)","v":0},98.398056859804981,4.8591633017187642E-2,0,9.6134220875344365,0,{"$f":"M215/'S1-Standard'!$C$17","v":0},{"$error":"#N/A"},{"$error":"#N/A"},{"$f":"_xlfn.XLOOKUP(B215,FeedTables!$C$17:$T$17,FeedTables!$C$31:$T$31,,-1)","v":{"$error":"#N/A"}},{"$f":"_xlfn.XLOOKUP(Q215,FeedPrice[Feed],FeedPrice[Price per kg],\"Unknown\",0)*O215","v":{"$error":"#N/A"}},{"$error":"#N/A"},{"$f":"_xlfn.XLOOKUP(O215,LabourFromFeed[Feed Quantity (kg)],LabourFromFeed[No. Labour],\"Out of range\",-1)","v":{"$error":"#N/A"}},{"$f":"T215*OperatingCosts!$C$9","v":{"$error":"#N/A"}},{"$error":"#N/A"}]
[214,{"$f":"IF(A216<='S1-Standard'!$C$7, B215*EXP((LN((E215/100)+1))*1),)","v":0},{"$f":"_xlfn.XLOOKUP($B216,FeedTables!$C$42:$T$42,FeedTables!$C$44:$T$44,,-1)","v":{"$error":"#N/A"}},{"$f":"_xlfn.XLOOKUP($B216,FeedTables!$C$42:$T$42,FeedTables!$C$45:$T$45,,-1)","v":{"$error":"#N/A"}},{"$f":"_xlfn.XLOOKUP($B216,FeedTables!$C$42:$T$42,FeedTables!$C$46:$T$46,,-1)*_xlfn.XLOOKUP(N215,DensityMultiplier[Biomass kg/m3],DensityMultiplier[Multiplier],,-1)","v":{"$error":"#N/A"}},1926.6019431401946,{"$f":"IF(A216<='S1-Standard'!$C$7,('Growth-Model-1'!G215*EXP($AA$7)),0)","v":0},{"$f":"IF(A216<='S1-Standard'!$C$7,$AD$6*EXP($AD$7*('S1-Standard'!C$7-'Growth-Model-1'!A216)),0)","v":0},98.398056859804981,4.8591633017187642E-2,0,9.6134220875344365,0,{"$f":"M216/'S1-Standard'!$C$17","v":0},{"$error":"#N/A"},{"$error":"#N/A"},{"$f":"_xlfn.XLOOKUP(B216,FeedTables!$C$17:$T$17,FeedTables!$C$31:$T$31,,-1)","v":{"$error":"#N/A"}},{"$f":"_xlfn.XLOOKUP(Q216,FeedPrice[Feed],FeedPrice[Price per kg],\"Unknown\",0)*O216","v":{"$error":"#N/A"}},{"$error":"#N/A"},{"$f":"_xlfn.XLOOKUP(O216,LabourFromFeed[Feed Quantity (kg)],LabourFromFeed[No. Labour],\"Out of range\",-1)","v":{"$error":"#N/A"}},{"$f":"T216*OperatingCosts!$C$9","v":{"$error":"#N/A"}},{"$error":"#N/A"}]
[215,{"$f":"IF(A217<='S1-Standard'!$C$7, B216*EXP((LN((E216/100)+1))*1),)","v":0},{"$f":"_xlfn.XLOOKUP($B217,FeedTables!$C$42:$T$42,FeedTables!$C$44:$T$44,,-1)","v":{"$error":"#N/A"}},{"$f":"_xlfn.XLOOKUP($B217,FeedTables!$C$42:$T$42,FeedTables!$C$45:$T$45,,-1)","v":{"$error":"#N/A"}},{"$f":"_xlfn.XLOOKUP($B217,FeedTables!$C$42:$T$42,FeedTables!$C$46:$T$46,,-1)*_xlfn.XLOOKUP(N216,DensityMultiplier[Biomass kg/m3],DensityMultiplier[Multiplier],,-1)","v":{"$error":"#N/A"}},1926.6019431401946,{"$f":"IF(A217<='S1-Standard'!$C$7,('Growth-Model-1'!G216*EXP($AA$7)),0)","v":0},{"$f":"IF(A217<='S1-Standard'!$C$7,$AD$6*EXP($AD$7*('S1-Standard'!C$7-'Growth-Model-1'!A217)),0)","v":0},98.398056859804981,4.8591633017187642E-2,0,9.6134220875344365,0,{"$f":"M217/'S1-Standard'!$C$17","v":0},{"$error":"#N/A"},{"$error":"#N/A"},{"$f":"_xlfn.XLOOKUP(B217,FeedTables!$C$17:$T$17,FeedTables!$C$31:$T$31,,-1)","v":{"$error":"#N/A"}},{"$f":"_xlfn.XLOOKUP(Q217,FeedPrice[Feed],FeedPrice[Price per kg],\"Unknown\",0)*O217","v":{"$error":"#N/A"}},{"$error":"#N/A"},{"$f":"_xlfn.XLOOKUP(O217,LabourFromFeed[Feed Quantity (kg)],LabourFromFeed[No. Labour],\"Out of range\",-1)","v":{"$error":"#N/A"}},{"$f":"T217*OperatingCosts!$C$9","v":{"$error":"#N/A"}},{"$error":"#N/A"}]
[216,{"$f":"IF(A218<='S1-Standard'!$C$7, B217*EXP((LN((E217/100)+1))*1),)","v":0},{"$f":"_xlfn.XLOOKUP($B218,FeedTables!$C$42:$T$42,FeedTables!$C$44:$T$44,,-1)","v":{"$error":"#N/A"}},{"$f":"_xlfn.XLOOKUP($B218,FeedTables!$C$42:$T$42,FeedTables!$C$45:$T$45,,-1)","v":{"$error":"#N/A"}},{"$f":"_xlfn.XLOOKUP($B218,FeedTables!$C$42:$T$42,FeedTables!$C$46:$T$46,,-1)*_xlfn.XLOOKUP(N217,DensityMultiplier[Biomass kg/m3],DensityMultiplier[Multiplier],,-1)","v":{"$error":"#N/A"}},1926.6019431401946,{"$f":"IF(A218<='S1-Standard'!$C$7,('Growth-Model-1'!G217*EXP($AA$7)),0)","v":0},{"$f":"IF(A218<='S1-Standard'!$C$7,$AD$6*EXP($AD$7*('S1-Standard'!C$7-'Growth-Model-1'!A218)),0)","v":0},98.398056859804981,4.8591633017187642E-2,0,9.6134220875344365,0,{"$f":"M218/'S1-Standard'!$C$17","v":0},{"$error":"#N/A"},{"$error":"#N/A"},{"$f":"_xlfn.XLOOKUP(B218,FeedTables!$C$17:$T$17,FeedTables!$C$31:$T$31,,-1)","v":{"$error":"#N/A"}},{"$f":"_xlfn.XLOOKUP(Q218,FeedPrice[Feed],FeedPrice[Price per kg],\"Unknown\",0)*O218","v":{"$error":"#N/A"}},{"$error":"#N/A"},{"$f":"_xlfn.XLOOKUP(O218,LabourFromFeed[Feed Quantity (kg)],LabourFromFeed[No. Labour],\"Out of range\",-1)","v":{"$error":"#N/A"}},{"$f":"T218*OperatingCosts!$C$9","v":{"$error":"#N/A"}},{"$error":"#N/A"}]
[217,{"$f":"IF(A219<='S1-Standard'!$C$7, B218*EXP((LN((E218/100)+1))*1),)","v":0},{"$f":"_xlfn.XLOOKUP($B219,FeedTables!$C$42:$T$42,FeedTables!$C$44:$T$44,,-1)","v":{"$error":"#N/A"}},{"$f":"_xlfn.XLOOKUP($B219,FeedTables!$C$42:$T$42,FeedTables!$C$45:$T$45,,-1)","v":{"$error":"#N/A"}},{"$f":"_xlfn.XLOOKUP($B219,FeedTables!$C$42:$T$42,FeedTables!$C$46:$T$46,,-1)*_xlfn.XLOOKUP(N218,DensityMultiplier[Biomass kg/m3],DensityMultiplier[Multiplier],,-1)","v":{"$error":"#N/A"}},1926.6019431401946,{"$f":"IF(A219<='S1-Standard'!$C$7,('Growth-Model-1'!G218*EXP($AA$7)),0)","v":0},{"$f":"IF(A219<='S1-Standard'!$C$7,$AD$6*EXP($AD$7*('S1-Standard'!C$7-'Growth-Model-1'!A219)),0)","v":0},98.398056859804981,4.8591633017187642E-2,0,9.6134220875344365,0,{"$f":"M219/'S1-Standard'!$C$17","v":0},{"$error":"#N/A"},{"$error":"#N/A"},{"$f":"_xlfn.XLOOKUP(B219,FeedTables!$C$17:$T$17,FeedTables!$C$31:$T$31,,-1)","v":{"$error":"#N/A"}},{"$f":"_xlfn.XLOOKUP(Q219,FeedPrice[Feed],FeedPrice[Price per kg],\"Unknown\",0)*O219","v":{"$error":"#N/A"}},{"$error":"#N/A"},{"$f":"_xlfn.XLOOKUP(O219,LabourFromFeed[Feed Quantity (kg)],LabourFromFeed[No. Labour],\"Out of range\",-1)","v":{"$error":"#N/A"}},{"$f":"T219*OperatingCosts!$C$9","v":{"$error":"#N/A"}},{"$error":"#N/A"}]
[218,{"$f":"IF(A220<='S1-Standard'!$C$7, B219*EXP((LN((E219/100)+1))*1),)","v":0},{"$f":"_xlfn.XLOOKUP($B220,FeedTables!$C$42:$T$42,FeedTables!$C$44:$T$44,,-1)","v":{"$error":"#N/A"}},{"$f":"_xlfn.XLOOKUP($B220,FeedTables!$C$42:$T$42,FeedTables!$C$45:$T$45,,-1)","v":{"$error":"#N/A"}},{"$f":"_xlfn.XLOOKUP($B220,FeedTables!$C$42:$T$42,FeedTables!$C$46:$T$46,,-1)*_xlfn.XLOOKUP(N219,DensityMultiplier[Biomass kg/m3],DensityMultiplier[Multiplier],,-1)","v":{"$error":"#N/A"}},1926.6019431401946,{"$f":"IF(A220<='S1-Standard'!$C$7,('Growth-Model-1'!G219*EXP($AA$7)),0)","v":0},{"$f":"IF(A220<='S1-Standard'!$C$7,$AD$6*EXP($AD$7*('S1-Standard'!C$7-'Growth-Model-1'!A220)),0)","v":0},98.398056859804981,4.8591633017187642E-2,0,9.6134220875344365,0,{"$f":"M220/'S1-Standard'!$C$17","v":0},{"$error":"#N/A"},{"$error":"#N/A"},{"$f":"_xlfn.XLOOKUP(B220,FeedTables!$C$17:$T$17,FeedTables!$C$31:$T$31,,-1)","v":{"$error":"#N/A"}},{"$f":"_xlfn.XLOOKUP(Q220,FeedPrice[Feed],FeedPrice[Price per kg],\"Unknown\",0)*O220","v":{"$error":"#N/A"}},{"$error":"#N/A"},{"$f":"_xlfn.XLOOKUP(O220,LabourFromFeed[Feed Quantity (kg)],LabourFromFeed[No. Labour],\"Out of range\",-1)","v":{"$error":"#N/A"}},{"$f":"T220*OperatingCosts!$C$9","v":{"$error":"#N/A"}},{"$error":"#N/A"}]
[219,{"$f":"IF(A221<='S1-Standard'!$C$7, B220*EXP((LN((E220/100)+1))*1),)","v":0},{"$f":"_xlfn.XLOOKUP($B221,FeedTables!$C$42:$T$42,FeedTables!$C$44:$T$44,,-1)","v":{"$error":"#N/A"}},{"$f":"_xlfn.XLOOKUP($B221,FeedTables!$C$42:$T$42,FeedTables!$C$45:$T$45,,-1)","v":{"$error":"#N/A"}},{"$f":"_xlfn.XLOOKUP($B221,FeedTables!$C$42:$T$42,FeedTables!$C$46:$T$46,,-1)*_xlfn.XLOOKUP(N220,DensityMultiplier[Biomass kg/m3],DensityMultiplier[Multiplier],,-1)","v":{"$error":"#N/A"}},1926.6019431401946,{"$f":"IF(A221<='S1-Standard'!$C$7,('Growth-Model-1'!G220*EXP($AA$7)),0)","v":0},{"$f":"IF(A221<='S1-Standard'!$C$7,$AD$6*EXP($AD$7*('S1-Standard'!C$7-'Growth-Model-1'!A221)),0)","v":0},98.398056859804981,4.8591633017187642E-2,0,9.6134220875344365,0,{"$f":"M221/'S1-Standard'!$C$17","v":0},{"$error":"#N/A"},{"$error":"#N/A"},{"$f":"_xlfn.XLOOKUP(B221,FeedTables!$C$17:$T$17,FeedTables!$C$31:$T$31,,-1)","v":{"$error":"#N/A"}},{"$f":"_xlfn.XLOOKUP(Q221,FeedPrice[Feed],FeedPrice[Price per kg],\"Unknown\",0)*O221","v":{"$error":"#N/A"}},{"$error":"#N/A"},{"$f":"_xlfn.XLOOKUP(O221,LabourFromFeed[Feed Quantity (kg)],LabourFromFeed[No. Labour],\"Out of range\",-1)","v":{"$error":"#N/A"}},{"$f":"T221*OperatingCosts!$C$9","v":{"$error":"#N/A"}},{"$error":"#N/A"}]
[220,{"$f":"IF(A222<='S1-Standard'!$C$7, B221*EXP((LN((E221/100)+1))*1),)","v":0},{"$f":"_xlfn.XLOOKUP($B222,FeedTables!$C$42:$T$42,FeedTables!$C$44:$T$44,,-1)","v":{"$error":"#N/A"}},{"$f":"_xlfn.XLOOKUP($B222,FeedTables!$C$42:$T$42,FeedTables!$C$45:$T$45,,-1)","v":{"$error":"#N/A"}},{"$f":"_xlfn.XLOOKUP($B222,FeedTables!$C$42:$T$42,FeedTables!$C$46:$T$46,,-1)*_xlfn.XLOOKUP(N221,DensityMultiplier[Biomass kg/m3],DensityMultiplier[Multiplier],,-1)","v":{"$error":"#N/A"}},1926.6019431401946,{"$f":"IF(A222<='S1-Standard'!$C$7,('Growth-Model-1'!G221*EXP($AA$7)),0)","v":0},{"$f":"IF(A222<='S1-Standard'!$C$7,$AD$6*EXP($AD$7*('S1-Standard'!C$7-'Growth-Model-1'!A222)),0)","v":0},98.398056859804981,4.8591633017187642E-2,0,9.6134220875344365,0,{"$f":"M222/'S1-Standard'!$C$17","v":0},{"$error":"#N/A"},{"$error":"#N/A"},{"$f":"_xlfn.XLOOKUP(B222,FeedTables!$C$17:$T$17,FeedTables!$C$31:$T$31,,-1)","v":{"$error":"#N/A"}},{"$f":"_xlfn.XLOOKUP(Q222,FeedPrice[Feed],FeedPrice[Price per kg],\"Unknown\",0)*O222","v":{"$error":"#N/A"}},{"$error":"#N/A"},{"$f":"_xlfn.XLOOKUP(O222,LabourFromFeed[Feed Quantity (kg)],LabourFromFeed[No. Labour],\"Out of range\",-1)","v":{"$error":"#N/A"}},{"$f":"T222*OperatingCosts!$C$9","v":{"$error":"#N/A"}},{"$error":"#N/A"}]
[221,{"$f":"IF(A223<='S1-Standard'!$C$7, B222*EXP((LN((E222/100)+1))*1),)","v":0},{"$f":"_xlfn.XLOOKUP($B223,FeedTables!$C$42:$T$42,FeedTables!$C$44:$T$44,,-1)","v":{"$error":"#N/A"}},{"$f":"_xlfn.XLOOKUP($B223,FeedTables!$C$42:$T$42,FeedTables!$C$45:$T$45,,-1)","v":{"$error":"#N/A"}},{"$f":"_xlfn.XLOOKUP($B223,FeedTables!$C$42:$T$42,FeedTables!$C$46:$T$46,,-1)*_xlfn.XLOOKUP(N222,DensityMultiplier[Biomass kg/m3],DensityMultiplier[Multiplier],,-1)","v":{"$error":"#N/A"}},1926.6019431401946,{"$f":"IF(A223<='S1-Standard'!$C$7,('Growth-Model-1'!G222*EXP($AA$7)),0)","v":0},{"$f":"IF(A223<='S1-Standard'!$C$7,$AD$6*EXP($AD$7*('S1-Standard'!C$7-'Growth-Model-1'!A223)),0)","v":0},98.398056859804981,4.8591633017187642E-2,0,9.6134220875344365,0,{"$f":"M223/'S1-Standard'!$C$17","v":0},{"$error":"#N/A"},{"$error":"#N/A"},{"$f":"_xlfn.XLOOKUP(B223,FeedTables!$C$17:$T$17,FeedTables!$C$31:$T$31,,-1)","v":{"$error":"#N/A"}},{"$f":"_xlfn.XLOOKUP(Q223,FeedPrice[Feed],FeedPrice[Price per kg],\"Unknown\",0)*O223","v":{"$error":"#N/A"}},{"$error":"#N/A"},{"$f":"_xlfn.XLOOKUP(O223,LabourFromFeed[Feed Quantity (kg)],LabourFromFeed[No. Labour],\"Out of range\",-1)","v":{"$error":"#N/A"}},{"$f":"T223*OperatingCosts!$C$9","v":{"$error":"#N/A"}},{"$error":"#N/A"}]
[222,{"$f":"IF(A224<='S1-Standard'!$C$7, B223*EXP((LN((E223/100)+1))*1),)","v":0},{"$f":"_xlfn.XLOOKUP($B224,FeedTables!$C$42:$T$42,FeedTables!$C$44:$T$44,,-1)","v":{"$error":"#N/A"}},{"$f":"_xlfn.XLOOKUP($B224,FeedTables!$C$42:$T$42,FeedTables!$C$45:$T$45,,-1)","v":{"$error":"#N/A"}},{"$f":"_xlfn.XLOOKUP($B224,FeedTables!$C$42:$T$42,FeedTables!$C$46:$T$46,,-1)*_xlfn.XLOOKUP(N223,DensityMultiplier[Biomass kg/m3],DensityMultiplier[Multiplier],,-1)","v":{"$error":"#N/A"}},1926.6019431401946,{"$f":"IF(A224<='S1-Standard'!$C$7,('Growth-Model-1'!G223*EXP($AA$7)),0)","v":0},{"$f":"IF(A224<='S1-Standard'!$C$7,$AD$6*EXP($AD$7*('S1-Standard'!C$7-'Growth-Model-1'!A224)),0)","v":0},98.398056859804981,4.8591633017187642E-2,0,9.6134220875344365,0,{"$f":"M224/'S1-Standard'!$C$17","v":0},{"$error":"#N/A"},{"$error":"#N/A"},{"$f":"_xlfn.XLOOKUP(B224,FeedTables!$C$17:$T$17,FeedTables!$C$31:$T$31,,-1)","v":{"$error":"#N/A"}},{"$f":"_xlfn.XLOOKUP(Q224,FeedPrice[Feed],FeedPrice[Price per kg],\"Unknown\",0)*O224","v":{"$error":"#N/A"}},{"$error":"#N/A"},{"$f":"_xlfn.XLOOKUP(O224,LabourFromFeed[Feed Quantity (kg)],LabourFromFeed[No. Labour],\"Out of range\",-1)","v":{"$error":"#N/A"}},{"$f":"T224*OperatingCosts!$C$9","v":{"$error":"#N/A"}},{"$error":"#N/A"}]
[223,{"$f":"IF(A225<='S1-Standard'!$C$7, B224*EXP((LN((E224/100)+1))*1),)","v":0},{"$f":"_xlfn.XLOOKUP($B225,FeedTables!$C$42:$T$42,FeedTables!$C$44:$T$44,,-1)","v":{"$error":"#N/A"}},{"$f":"_xlfn.XLOOKUP($B225,FeedTables!$C$42:$T$42,FeedTables!$C$45:$T$45,,-1)","v":{"$error":"#N/A"}},{"$f":"_xlfn.XLOOKUP($B225,FeedTables!$C$42:$T$42,FeedTables!$C$46:$T$46,,-1)*_xlfn.XLOOKUP(N224,DensityMultiplier[Biomass kg/m3],DensityMultiplier[Multiplier],,-1)","v":{"$error":"#N/A"}},1926.6019431401946,{"$f":"IF(A225<='S1-Standard'!$C$7,('Growth-Model-1'!G224*EXP($AA$7)),0)","v":0},{"$f":"IF(A225<='S1-Standard'!$C$7,$AD$6*EXP($AD$7*('S1-Standard'!C$7-'Growth-Model-1'!A225)),0)","v":0},98.398056859804981,4.8591633017187642E-2,0,9.6134220875344365,0,{"$f":"M225/'S1-Standard'!$C$17","v":0},{"$error":"#N/A"},{"$error":"#N/A"},{"$f":"_xlfn.XLOOKUP(B225,FeedTables!$C$17:$T$17,FeedTables!$C$31:$T$31,,-1)","v":{"$error":"#N/A"}},{"$f":"_xlfn.XLOOKUP(Q225,FeedPrice[Feed],FeedPrice[Price per kg],\"Unknown\",0)*O225","v":{"$error":"#N/A"}},{"$error":"#N/A"},{"$f":"_xlfn.XLOOKUP(O225,LabourFromFeed[Feed Quantity (kg)],LabourFromFeed[No. Labour],\"Out of range\",-1)","v":{"$error":"#N/A"}},{"$f":"T225*OperatingCosts!$C$9","v":{"$error":"#N/A"}},{"$error":"#N/A"}]
[224,{"$f":"IF(A226<='S1-Standard'!$C$7, B225*EXP((LN((E225/100)+1))*1),)","v":0},{"$f":"_xlfn.XLOOKUP($B226,FeedTables!$C$42:$T$42,FeedTables!$C$44:$T$44,,-1)","v":{"$error":"#N/A"}},{"$f":"_xlfn.XLOOKUP($B226,FeedTables!$C$42:$T$42,FeedTables!$C$45:$T$45,,-1)","v":{"$error":"#N/A"}},{"$f":"_xlfn.XLOOKUP($B226,FeedTables!$C$42:$T$42,FeedTables!$C$46:$T$46,,-1)*_xlfn.XLOOKUP(N225,DensityMultiplier[Biomass kg/m3],DensityMultiplier[Multiplier],,-1)","v":{"$error":"#N/A"}},1926.6019431401946,{"$f":"IF(A226<='S1-Standard'!$C$7,('Growth-Model-1'!G225*EXP($AA$7)),0)","v":0},{"$f":"IF(A226<='S1-Standard'!$C$7,$AD$6*EXP($AD$7*('S1-Standard'!C$7-'Growth-Model-1'!A226)),0)","v":0},98.398056859804981,4.8591633017187642E-2,0,9.6134220875344365,0,{"$f":"M226/'S1-Standard'!$C$17","v":0},{"$error":"#N/A"},{"$error":"#N/A"},{"$f":"_xlfn.XLOOKUP(B226,FeedTables!$C$17:$T$17,FeedTables!$C$31:$T$31,,-1)","v":{"$error":"#N/A"}},{"$f":"_xlfn.XLOOKUP(Q226,FeedPrice[Feed],FeedPrice[Price per kg],\"Unknown\",0)*O226","v":{"$error":"#N/A"}},{"$error":"#N/A"},{"$f":"_xlfn.XLOOKUP(O226,LabourFromFeed[Feed Quantity (kg)],LabourFromFeed[No. Labour],\"Out of range\",-1)","v":{"$error":"#N/A"}},{"$f":"T226*OperatingCosts!$C$9","v":{"$error":"#N/A"}},{"$error":"#N/A"}]
[225,{"$f":"IF(A227<='S1-Standard'!$C$7, B226*EXP((LN((E226/100)+1))*1),)","v":0},{"$f":"_xlfn.XLOOKUP($B227,FeedTables!$C$42:$T$42,FeedTables!$C$44:$T$44,,-1)","v":{"$error":"#N/A"}},{"$f":"_xlfn.XLOOKUP($B227,FeedTables!$C$42:$T$42,FeedTables!$C$45:$T$45,,-1)","v":{"$error":"#N/A"}},{"$f":"_xlfn.XLOOKUP($B227,FeedTables!$C$42:$T$42,FeedTables!$C$46:$T$46,,-1)*_xlfn.XLOOKUP(N226,DensityMultiplier[Biomass kg/m3],DensityMultiplier[Multiplier],,-1)","v":{"$error":"#N/A"}},1926.6019431401946,{"$f":"IF(A227<='S1-Standard'!$C$7,('Growth-Model-1'!G226*EXP($AA$7)),0)","v":0},{"$f":"IF(A227<='S1-Standard'!$C$7,$AD$6*EXP($AD$7*('S1-Standard'!C$7-'Growth-Model-1'!A227)),0)","v":0},98.398056859804981,4.8591633017187642E-2,0,9.6134220875344365,0,{"$f":"M227/'S1-Standard'!$C$17","v":0},{"$error":"#N/A"},{"$error":"#N/A"},{"$f":"_xlfn.XLOOKUP(B227,FeedTables!$C$17:$T$17,FeedTables!$C$31:$T$31,,-1)","v":{"$error":"#N/A"}},{"$f":"_xlfn.XLOOKUP(Q227,FeedPrice[Feed],FeedPrice[Price per kg],\"Unknown\",0)*O227","v":{"$error":"#N/A"}},{"$error":"#N/A"},{"$f":"_xlfn.XLOOKUP(O227,LabourFromFeed[Feed Quantity (kg)],LabourFromFeed[No. Labour],\"Out of range\",-1)","v":{"$error":"#N/A"}},{"$f":"T227*OperatingCosts!$C$9","v":{"$error":"#N/A"}},{"$error":"#N/A"}]
[226,{"$f":"IF(A228<='S1-Standard'!$C$7, B227*EXP((LN((E227/100)+1))*1),)","v":0},{"$f":"_xlfn.XLOOKUP($B228,FeedTables!$C$42:$T$42,FeedTables!$C$44:$T$44,,-1)","v":{"$error":"#N/A"}},{"$f":"_xlfn.XLOOKUP($B228,FeedTables!$C$42:$T$42,FeedTables!$C$45:$T$45,,-1)","v":{"$error":"#N/A"}},{"$f":"_xlfn.XLOOKUP($B228,FeedTables!$C$42:$T$42,FeedTables!$C$46:$T$46,,-1)*_xlfn.XLOOKUP(N227,DensityMultiplier[Biomass kg/m3],DensityMultiplier[Multiplier],,-1)","v":{"$error":"#N/A"}},1926.6019431401946,{"$f":"IF(A228<='S1-Standard'!$C$7,('Growth-Model-1'!G227*EXP($AA$7)),0)","v":0},{"$f":"IF(A228<='S1-Standard'!$C$7,$AD$6*EXP($AD$7*('S1-Standard'!C$7-'Growth-Model-1'!A228)),0)","v":0},98.398056859804981,4.8591633017187642E-2,0,9.6134220875344365,0,{"$f":"M228/'S1-Standard'!$C$17","v":0},{"$error":"#N/A"},{"$error":"#N/A"},{"$f":"_xlfn.XLOOKUP(B228,FeedTables!$C$17:$T$17,FeedTables!$C$31:$T$31,,-1)","v":{"$error":"#N/A"}},{"$f":"_xlfn.XLOOKUP(Q228,FeedPrice[Feed],FeedPrice[Price per kg],\"Unknown\",0)*O228","v":{"$error":"#N/A"}},{"$error":"#N/A"},{"$f":"_xlfn.XLOOKUP(O228,LabourFromFeed[Feed Quantity (kg)],LabourFromFeed[No. Labour],\"Out of range\",-1)","v":{"$error":"#N/A"}},{"$f":"T228*OperatingCosts!$C$9","v":{"$error":"#N/A"}},{"$error":"#N/A"}]
[227,{"$f":"IF(A229<='S1-Standard'!$C$7, B228*EXP((LN((E228/100)+1))*1),)","v":0},{"$f":"_xlfn.XLOOKUP($B229,FeedTables!$C$42:$T$42,FeedTables!$C$44:$T$44,,-1)","v":{"$error":"#N/A"}},{"$f":"_xlfn.XLOOKUP($B229,FeedTables!$C$42:$T$42,FeedTables!$C$45:$T$45,,-1)","v":{"$error":"#N/A"}},{"$f":"_xlfn.XLOOKUP($B229,FeedTables!$C$42:$T$42,FeedTables!$C$46:$T$46,,-1)*_xlfn.XLOOKUP(N228,DensityMultiplier[Biomass kg/m3],DensityMultiplier[Multiplier],,-1)","v":{"$error":"#N/A"}},1926.6019431401946,{"$f":"IF(A229<='S1-Standard'!$C$7,('Growth-Model-1'!G228*EXP($AA$7)),0)","v":0},{"$f":"IF(A229<='S1-Standard'!$C$7,$AD$6*EXP($AD$7*('S1-Standard'!C$7-'Growth-Model-1'!A229)),0)","v":0},98.398056859804981,4.8591633017187642E-2,0,9.6134220875344365,0,{"$f":"M229/'S1-Standard'!$C$17","v":0},{"$error":"#N/A"},{"$error":"#N/A"},{"$f":"_xlfn.XLOOKUP(B229,FeedTables!$C$17:$T$17,FeedTables!$C$31:$T$31,,-1)","v":{"$error":"#N/A"}},{"$f":"_xlfn.XLOOKUP(Q229,FeedPrice[Feed],FeedPrice[Price per kg],\"Unknown\",0)*O229","v":{"$error":"#N/A"}},{"$error":"#N/A"},{"$f":"_xlfn.XLOOKUP(O229,LabourFromFeed[Feed Quantity (kg)],LabourFromFeed[No. Labour],\"Out of range\",-1)","v":{"$error":"#N/A"}},{"$f":"T229*OperatingCosts!$C$9","v":{"$error":"#N/A"}},{"$error":"#N/A"}]
[228,{"$f":"IF(A230<='S1-Standard'!$C$7, B229*EXP((LN((E229/100)+1))*1),)","v":0},{"$f":"_xlfn.XLOOKUP($B230,FeedTables!$C$42:$T$42,FeedTables!$C$44:$T$44,,-1)","v":{"$error":"#N/A"}},{"$f":"_xlfn.XLOOKUP($B230,FeedTables!$C$42:$T$42,FeedTables!$C$45:$T$45,,-1)","v":{"$error":"#N/A"}},{"$f":"_xlfn.XLOOKUP($B230,FeedTables!$C$42:$T$42,FeedTables!$C$46:$T$46,,-1)*_xlfn.XLOOKUP(N229,DensityMultiplier[Biomass kg/m3],DensityMultiplier[Multiplier],,-1)","v":{"$error":"#N/A"}},1926.6019431401946,{"$f":"IF(A230<='S1-Standard'!$C$7,('Growth-Model-1'!G229*EXP($AA$7)),0)","v":0},{"$f":"IF(A230<='S1-Standard'!$C$7,$AD$6*EXP($AD$7*('S1-Standard'!C$7-'Growth-Model-1'!A230)),0)","v":0},98.398056859804981,4.8591633017187642E-2,0,9.6134220875344365,0,{"$f":"M230/'S1-Standard'!$C$17","v":0},{"$error":"#N/A"},{"$error":"#N/A"},{"$f":"_xlfn.XLOOKUP(B230,FeedTables!$C$17:$T$17,FeedTables!$C$31:$T$31,,-1)","v":{"$error":"#N/A"}},{"$f":"_xlfn.XLOOKUP(Q230,FeedPrice[Feed],FeedPrice[Price per kg],\"Unknown\",0)*O230","v":{"$error":"#N/A"}},{"$error":"#N/A"},{"$f":"_xlfn.XLOOKUP(O230,LabourFromFeed[Feed Quantity (kg)],LabourFromFeed[No. Labour],\"Out of range\",-1)","v":{"$error":"#N/A"}},{"$f":"T230*OperatingCosts!$C$9","v":{"$error":"#N/A"}},{"$error":"#N/A"}]
[229,{"$f":"IF(A231<='S1-Standard'!$C$7, B230*EXP((LN((E230/100)+1))*1),)","v":0},{"$f":"_xlfn.XLOOKUP($B231,FeedTables!$C$42:$T$42,FeedTables!$C$44:$T$44,,-1)","v":{"$error":"#N/A"}},{"$f":"_xlfn.XLOOKUP($B231,FeedTables!$C$42:$T$42,FeedTables!$C$45:$T$45,,-1)","v":{"$error":"#N/A"}},{"$f":"_xlfn.XLOOKUP($B231,FeedTables!$C$42:$T$42,FeedTables!$C$46:$T$46,,-1)*_xlfn.XLOOKUP(N230,DensityMultiplier[Biomass kg/m3],DensityMultiplier[Multiplier],,-1)","v":{"$error":"#N/A"}},1926.6019431401946,{"$f":"IF(A231<='S1-Standard'!$C$7,('Growth-Model-1'!G230*EXP($AA$7)),0)","v":0},{"$f":"IF(A231<='S1-Standard'!$C$7,$AD$6*EXP($AD$7*('S1-Standard'!C$7-'Growth-Model-1'!A231)),0)","v":0},98.398056859804981,4.8591633017187642E-2,0,9.6134220875344365,0,{"$f":"M231/'S1-Standard'!$C$17","v":0},{"$error":"#N/A"},{"$error":"#N/A"},{"$f":"_xlfn.XLOOKUP(B231,FeedTables!$C$17:$T$17,FeedTables!$C$31:$T$31,,-1)","v":{"$error":"#N/A"}},{"$f":"_xlfn.XLOOKUP(Q231,FeedPrice[Feed],FeedPrice[Price per kg],\"Unknown\",0)*O231","v":{"$error":"#N/A"}},{"$error":"#N/A"},{"$f":"_xlfn.XLOOKUP(O231,LabourFromFeed[Feed Quantity (kg)],LabourFromFeed[No. Labour],\"Out of range\",-1)","v":{"$error":"#N/A"}},{"$f":"T231*OperatingCosts!$C$9","v":{"$error":"#N/A"}},{"$error":"#N/A"}]
[230,{"$f":"IF(A232<='S1-Standard'!$C$7, B231*EXP((LN((E231/100)+1))*1),)","v":0},{"$f":"_xlfn.XLOOKUP($B232,FeedTables!$C$42:$T$42,FeedTables!$C$44:$T$44,,-1)","v":{"$error":"#N/A"}},{"$f":"_xlfn.XLOOKUP($B232,FeedTables!$C$42:$T$42,FeedTables!$C$45:$T$45,,-1)","v":{"$error":"#N/A"}},{"$f":"_xlfn.XLOOKUP($B232,FeedTables!$C$42:$T$42,FeedTables!$C$46:$T$46,,-1)*_xlfn.XLOOKUP(N231,DensityMultiplier[Biomass kg/m3],DensityMultiplier[Multiplier],,-1)","v":{"$error":"#N/A"}},1926.6019431401946,{"$f":"IF(A232<='S1-Standard'!$C$7,('Growth-Model-1'!G231*EXP($AA$7)),0)","v":0},{"$f":"IF(A232<='S1-Standard'!$C$7,$AD$6*EXP($AD$7*('S1-Standard'!C$7-'Growth-Model-1'!A232)),0)","v":0},98.398056859804981,4.8591633017187642E-2,0,9.6134220875344365,0,{"$f":"M232/'S1-Standard'!$C$17","v":0},{"$error":"#N/A"},{"$error":"#N/A"},{"$f":"_xlfn.XLOOKUP(B232,FeedTables!$C$17:$T$17,FeedTables!$C$31:$T$31,,-1)","v":{"$error":"#N/A"}},{"$f":"_xlfn.XLOOKUP(Q232,FeedPrice[Feed],FeedPrice[Price per kg],\"Unknown\",0)*O232","v":{"$error":"#N/A"}},{"$error":"#N/A"},{"$f":"_xlfn.XLOOKUP(O232,LabourFromFeed[Feed Quantity (kg)],LabourFromFeed[No. Labour],\"Out of range\",-1)","v":{"$error":"#N/A"}},{"$f":"T232*OperatingCosts!$C$9","v":{"$error":"#N/A"}},{"$error":"#N/A"}]
[231,{"$f":"IF(A233<='S1-Standard'!$C$7, B232*EXP((LN((E232/100)+1))*1),)","v":0},{"$f":"_xlfn.XLOOKUP($B233,FeedTables!$C$42:$T$42,FeedTables!$C$44:$T$44,,-1)","v":{"$error":"#N/A"}},{"$f":"_xlfn.XLOOKUP($B233,FeedTables!$C$42:$T$42,FeedTables!$C$45:$T$45,,-1)","v":{"$error":"#N/A"}},{"$f":"_xlfn.XLOOKUP($B233,FeedTables!$C$42:$T$42,FeedTables!$C$46:$T$46,,-1)*_xlfn.XLOOKUP(N232,DensityMultiplier[Biomass kg/m3],DensityMultiplier[Multiplier],,-1)","v":{"$error":"#N/A"}},1926.6019431401946,{"$f":"IF(A233<='S1-Standard'!$C$7,('Growth-Model-1'!G232*EXP($AA$7)),0)","v":0},{"$f":"IF(A233<='S1-Standard'!$C$7,$AD$6*EXP($AD$7*('S1-Standard'!C$7-'Growth-Model-1'!A233)),0)","v":0},98.398056859804981,4.8591633017187642E-2,0,9.6134220875344365,0,{"$f":"M233/'S1-Standard'!$C$17","v":0},{"$error":"#N/A"},{"$error":"#N/A"},{"$f":"_xlfn.XLOOKUP(B233,FeedTables!$C$17:$T$17,FeedTables!$C$31:$T$31,,-1)","v":{"$error":"#N/A"}},{"$f":"_xlfn.XLOOKUP(Q233,FeedPrice[Feed],FeedPrice[Price per kg],\"Unknown\",0)*O233","v":{"$error":"#N/A"}},{"$error":"#N/A"},{"$f":"_xlfn.XLOOKUP(O233,LabourFromFeed[Feed Quantity (kg)],LabourFromFeed[No. Labour],\"Out of range\",-1)","v":{"$error":"#N/A"}},{"$f":"T233*OperatingCosts!$C$9","v":{"$error":"#N/A"}},{"$error":"#N/A"}]
[232,{"$f":"IF(A234<='S1-Standard'!$C$7, B233*EXP((LN((E233/100)+1))*1),)","v":0},{"$f":"_xlfn.XLOOKUP($B234,FeedTables!$C$42:$T$42,FeedTables!$C$44:$T$44,,-1)","v":{"$error":"#N/A"}},{"$f":"_xlfn.XLOOKUP($B234,FeedTables!$C$42:$T$42,FeedTables!$C$45:$T$45,,-1)","v":{"$error":"#N/A"}},{"$f":"_xlfn.XLOOKUP($B234,FeedTables!$C$42:$T$42,FeedTables!$C$46:$T$46,,-1)*_xlfn.XLOOKUP(N233,DensityMultiplier[Biomass kg/m3],DensityMultiplier[Multiplier],,-1)","v":{"$error":"#N/A"}},1926.6019431401946,{"$f":"IF(A234<='S1-Standard'!$C$7,('Growth-Model-1'!G233*EXP($AA$7)),0)","v":0},{"$f":"IF(A234<='S1-Standard'!$C$7,$AD$6*EXP($AD$7*('S1-Standard'!C$7-'Growth-Model-1'!A234)),0)","v":0},98.398056859804981,4.8591633017187642E-2,0,9.6134220875344365,0,{"$f":"M234/'S1-Standard'!$C$17","v":0},{"$error":"#N/A"},{"$error":"#N/A"},{"$f":"_xlfn.XLOOKUP(B234,FeedTables!$C$17:$T$17,FeedTables!$C$31:$T$31,,-1)","v":{"$error":"#N/A"}},{"$f":"_xlfn.XLOOKUP(Q234,FeedPrice[Feed],FeedPrice[Price per kg],\"Unknown\",0)*O234","v":{"$error":"#N/A"}},{"$error":"#N/A"},{"$f":"_xlfn.XLOOKUP(O234,LabourFromFeed[Feed Quantity (kg)],LabourFromFeed[No. Labour],\"Out of range\",-1)","v":{"$error":"#N/A"}},{"$f":"T234*OperatingCosts!$C$9","v":{"$error":"#N/A"}},{"$error":"#N/A"}]
[233,{"$f":"IF(A235<='S1-Standard'!$C$7, B234*EXP((LN((E234/100)+1))*1),)","v":0},{"$f":"_xlfn.XLOOKUP($B235,FeedTables!$C$42:$T$42,FeedTables!$C$44:$T$44,,-1)","v":{"$error":"#N/A"}},{"$f":"_xlfn.XLOOKUP($B235,FeedTables!$C$42:$T$42,FeedTables!$C$45:$T$45,,-1)","v":{"$error":"#N/A"}},{"$f":"_xlfn.XLOOKUP($B235,FeedTables!$C$42:$T$42,FeedTables!$C$46:$T$46,,-1)*_xlfn.XLOOKUP(N234,DensityMultiplier[Biomass kg/m3],DensityMultiplier[Multiplier],,-1)","v":{"$error":"#N/A"}},1926.6019431401946,{"$f":"IF(A235<='S1-Standard'!$C$7,('Growth-Model-1'!G234*EXP($AA$7)),0)","v":0},{"$f":"IF(A235<='S1-Standard'!$C$7,$AD$6*EXP($AD$7*('S1-Standard'!C$7-'Growth-Model-1'!A235)),0)","v":0},98.398056859804981,4.8591633017187642E-2,0,9.6134220875344365,0,{"$f":"M235/'S1-Standard'!$C$17","v":0},{"$error":"#N/A"},{"$error":"#N/A"},{"$f":"_xlfn.XLOOKUP(B235,FeedTables!$C$17:$T$17,FeedTables!$C$31:$T$31,,-1)","v":{"$error":"#N/A"}},{"$f":"_xlfn.XLOOKUP(Q235,FeedPrice[Feed],FeedPrice[Price per kg],\"Unknown\",0)*O235","v":{"$error":"#N/A"}},{"$error":"#N/A"},{"$f":"_xlfn.XLOOKUP(O235,LabourFromFeed[Feed Quantity (kg)],LabourFromFeed[No. Labour],\"Out of range\",-1)","v":{"$error":"#N/A"}},{"$f":"T235*OperatingCosts!$C$9","v":{"$error":"#N/A"}},{"$error":"#N/A"}]
[234,{"$f":"IF(A236<='S1-Standard'!$C$7, B235*EXP((LN((E235/100)+1))*1),)","v":0},{"$f":"_xlfn.XLOOKUP($B236,FeedTables!$C$42:$T$42,FeedTables!$C$44:$T$44,,-1)","v":{"$error":"#N/A"}},{"$f":"_xlfn.XLOOKUP($B236,FeedTables!$C$42:$T$42,FeedTables!$C$45:$T$45,,-1)","v":{"$error":"#N/A"}},{"$f":"_xlfn.XLOOKUP($B236,FeedTables!$C$42:$T$42,FeedTables!$C$46:$T$46,,-1)*_xlfn.XLOOKUP(N235,DensityMultiplier[Biomass kg/m3],DensityMultiplier[Multiplier],,-1)","v":{"$error":"#N/A"}},1926.6019431401946,{"$f":"IF(A236<='S1-Standard'!$C$7,('Growth-Model-1'!G235*EXP($AA$7)),0)","v":0},{"$f":"IF(A236<='S1-Standard'!$C$7,$AD$6*EXP($AD$7*('S1-Standard'!C$7-'Growth-Model-1'!A236)),0)","v":0},98.398056859804981,4.8591633017187642E-2,0,9.6134220875344365,0,{"$f":"M236/'S1-Standard'!$C$17","v":0},{"$error":"#N/A"},{"$error":"#N/A"},{"$f":"_xlfn.XLOOKUP(B236,FeedTables!$C$17:$T$17,FeedTables!$C$31:$T$31,,-1)","v":{"$error":"#N/A"}},{"$f":"_xlfn.XLOOKUP(Q236,FeedPrice[Feed],FeedPrice[Price per kg],\"Unknown\",0)*O236","v":{"$error":"#N/A"}},{"$error":"#N/A"},{"$f":"_xlfn.XLOOKUP(O236,LabourFromFeed[Feed Quantity (kg)],LabourFromFeed[No. Labour],\"Out of range\",-1)","v":{"$error":"#N/A"}},{"$f":"T236*OperatingCosts!$C$9","v":{"$error":"#N/A"}},{"$error":"#N/A"}]
[235,{"$f":"IF(A237<='S1-Standard'!$C$7, B236*EXP((LN((E236/100)+1))*1),)","v":0},{"$f":"_xlfn.XLOOKUP($B237,FeedTables!$C$42:$T$42,FeedTables!$C$44:$T$44,,-1)","v":{"$error":"#N/A"}},{"$f":"_xlfn.XLOOKUP($B237,FeedTables!$C$42:$T$42,FeedTables!$C$45:$T$45,,-1)","v":{"$error":"#N/A"}},{"$f":"_xlfn.XLOOKUP($B237,FeedTables!$C$42:$T$42,FeedTables!$C$46:$T$46,,-1)*_xlfn.XLOOKUP(N236,DensityMultiplier[Biomass kg/m3],DensityMultiplier[Multiplier],,-1)","v":{"$error":"#N/A"}},1926.6019431401946,{"$f":"IF(A237<='S1-Standard'!$C$7,('Growth-Model-1'!G236*EXP($AA$7)),0)","v":0},{"$f":"IF(A237<='S1-Standard'!$C$7,$AD$6*EXP($AD$7*('S1-Standard'!C$7-'Growth-Model-1'!A237)),0)","v":0},98.398056859804981,4.8591633017187642E-2,0,9.6134220875344365,0,{"$f":"M237/'S1-Standard'!$C$17","v":0},{"$error":"#N/A"},{"$error":"#N/A"},{"$f":"_xlfn.XLOOKUP(B237,FeedTables!$C$17:$T$17,FeedTables!$C$31:$T$31,,-1)","v":{"$error":"#N/A"}},{"$f":"_xlfn.XLOOKUP(Q237,FeedPrice[Feed],FeedPrice[Price per kg],\"Unknown\",0)*O237","v":{"$error":"#N/A"}},{"$error":"#N/A"},{"$f":"_xlfn.XLOOKUP(O237,LabourFromFeed[Feed Quantity (kg)],LabourFromFeed[No. Labour],\"Out of range\",-1)","v":{"$error":"#N/A"}},{"$f":"T237*OperatingCosts!$C$9","v":{"$error":"#N/A"}},{"$error":"#N/A"}]
[236,{"$f":"IF(A238<='S1-Standard'!$C$7, B237*EXP((LN((E237/100)+1))*1),)","v":0},{"$f":"_xlfn.XLOOKUP($B238,FeedTables!$C$42:$T$42,FeedTables!$C$44:$T$44,,-1)","v":{"$error":"#N/A"}},{"$f":"_xlfn.XLOOKUP($B238,FeedTables!$C$42:$T$42,FeedTables!$C$45:$T$45,,-1)","v":{"$error":"#N/A"}},{"$f":"_xlfn.XLOOKUP($B238,FeedTables!$C$42:$T$42,FeedTables!$C$46:$T$46,,-1)*_xlfn.XLOOKUP(N237,DensityMultiplier[Biomass kg/m3],DensityMultiplier[Multiplier],,-1)","v":{"$error":"#N/A"}},1926.6019431401946,{"$f":"IF(A238<='S1-Standard'!$C$7,('Growth-Model-1'!G237*EXP($AA$7)),0)","v":0},{"$f":"IF(A238<='S1-Standard'!$C$7,$AD$6*EXP($AD$7*('S1-Standard'!C$7-'Growth-Model-1'!A238)),0)","v":0},98.398056859804981,4.8591633017187642E-2,0,9.6134220875344365,0,{"$f":"M238/'S1-Standard'!$C$17","v":0},{"$error":"#N/A"},{"$error":"#N/A"},{"$f":"_xlfn.XLOOKUP(B238,FeedTables!$C$17:$T$17,FeedTables!$C$31:$T$31,,-1)","v":{"$error":"#N/A"}},{"$f":"_xlfn.XLOOKUP(Q238,FeedPrice[Feed],FeedPrice[Price per kg],\"Unknown\",0)*O238","v":{"$error":"#N/A"}},{"$error":"#N/A"},{"$f":"_xlfn.XLOOKUP(O238,LabourFromFeed[Feed Quantity (kg)],LabourFromFeed[No. Labour],\"Out of range\",-1)","v":{"$error":"#N/A"}},{"$f":"T238*OperatingCosts!$C$9","v":{"$error":"#N/A"}},{"$error":"#N/A"}]
[237,{"$f":"IF(A239<='S1-Standard'!$C$7, B238*EXP((LN((E238/100)+1))*1),)","v":0},{"$f":"_xlfn.XLOOKUP($B239,FeedTables!$C$42:$T$42,FeedTables!$C$44:$T$44,,-1)","v":{"$error":"#N/A"}},{"$f":"_xlfn.XLOOKUP($B239,FeedTables!$C$42:$T$42,FeedTables!$C$45:$T$45,,-1)","v":{"$error":"#N/A"}},{"$f":"_xlfn.XLOOKUP($B239,FeedTables!$C$42:$T$42,FeedTables!$C$46:$T$46,,-1)*_xlfn.XLOOKUP(N238,DensityMultiplier[Biomass kg/m3],DensityMultiplier[Multiplier],,-1)","v":{"$error":"#N/A"}},1926.6019431401946,{"$f":"IF(A239<='S1-Standard'!$C$7,('Growth-Model-1'!G238*EXP($AA$7)),0)","v":0},{"$f":"IF(A239<='S1-Standard'!$C$7,$AD$6*EXP($AD$7*('S1-Standard'!C$7-'Growth-Model-1'!A239)),0)","v":0},98.398056859804981,4.8591633017187642E-2,0,9.6134220875344365,0,{"$f":"M239/'S1-Standard'!$C$17","v":0},{"$error":"#N/A"},{"$error":"#N/A"},{"$f":"_xlfn.XLOOKUP(B239,FeedTables!$C$17:$T$17,FeedTables!$C$31:$T$31,,-1)","v":{"$error":"#N/A"}},{"$f":"_xlfn.XLOOKUP(Q239,FeedPrice[Feed],FeedPrice[Price per kg],\"Unknown\",0)*O239","v":{"$error":"#N/A"}},{"$error":"#N/A"},{"$f":"_xlfn.XLOOKUP(O239,LabourFromFeed[Feed Quantity (kg)],LabourFromFeed[No. Labour],\"Out of range\",-1)","v":{"$error":"#N/A"}},{"$f":"T239*OperatingCosts!$C$9","v":{"$error":"#N/A"}},{"$error":"#N/A"}]
[238,{"$f":"IF(A240<='S1-Standard'!$C$7, B239*EXP((LN((E239/100)+1))*1),)","v":0},{"$f":"_xlfn.XLOOKUP($B240,FeedTables!$C$42:$T$42,FeedTables!$C$44:$T$44,,-1)","v":{"$error":"#N/A"}},{"$f":"_xlfn.XLOOKUP($B240,FeedTables!$C$42:$T$42,FeedTables!$C$45:$T$45,,-1)","v":{"$error":"#N/A"}},{"$f":"_xlfn.XLOOKUP($B240,FeedTables!$C$42:$T$42,FeedTables!$C$46:$T$46,,-1)*_xlfn.XLOOKUP(N239,DensityMultiplier[Biomass kg/m3],DensityMultiplier[Multiplier],,-1)","v":{"$error":"#N/A"}},1926.6019431401946,{"$f":"IF(A240<='S1-Standard'!$C$7,('Growth-Model-1'!G239*EXP($AA$7)),0)","v":0},{"$f":"IF(A240<='S1-Standard'!$C$7,$AD$6*EXP($AD$7*('S1-Standard'!C$7-'Growth-Model-1'!A240)),0)","v":0},98.398056859804981,4.8591633017187642E-2,0,9.6134220875344365,0,{"$f":"M240/'S1-Standard'!$C$17","v":0},{"$error":"#N/A"},{"$error":"#N/A"},{"$f":"_xlfn.XLOOKUP(B240,FeedTables!$C$17:$T$17,FeedTables!$C$31:$T$31,,-1)","v":{"$error":"#N/A"}},{"$f":"_xlfn.XLOOKUP(Q240,FeedPrice[Feed],FeedPrice[Price per kg],\"Unknown\",0)*O240","v":{"$error":"#N/A"}},{"$error":"#N/A"},{"$f":"_xlfn.XLOOKUP(O240,LabourFromFeed[Feed Quantity (kg)],LabourFromFeed[No. Labour],\"Out of range\",-1)","v":{"$error":"#N/A"}},{"$f":"T240*OperatingCosts!$C$9","v":{"$error":"#N/A"}},{"$error":"#N/A"}]
[239,{"$f":"IF(A241<='S1-Standard'!$C$7, B240*EXP((LN((E240/100)+1))*1),)","v":0},{"$f":"_xlfn.XLOOKUP($B241,FeedTables!$C$42:$T$42,FeedTables!$C$44:$T$44,,-1)","v":{"$error":"#N/A"}},{"$f":"_xlfn.XLOOKUP($B241,FeedTables!$C$42:$T$42,FeedTables!$C$45:$T$45,,-1)","v":{"$error":"#N/A"}},{"$f":"_xlfn.XLOOKUP($B241,FeedTables!$C$42:$T$42,FeedTables!$C$46:$T$46,,-1)*_xlfn.XLOOKUP(N240,DensityMultiplier[Biomass kg/m3],DensityMultiplier[Multiplier],,-1)","v":{"$error":"#N/A"}},1926.6019431401946,{"$f":"IF(A241<='S1-Standard'!$C$7,('Growth-Model-1'!G240*EXP($AA$7)),0)","v":0},{"$f":"IF(A241<='S1-Standard'!$C$7,$AD$6*EXP($AD$7*('S1-Standard'!C$7-'Growth-Model-1'!A241)),0)","v":0},98.398056859804981,4.8591633017187642E-2,0,9.6134220875344365,0,{"$f":"M241/'S1-Standard'!$C$17","v":0},{"$error":"#N/A"},{"$error":"#N/A"},{"$f":"_xlfn.XLOOKUP(B241,FeedTables!$C$17:$T$17,FeedTables!$C$31:$T$31,,-1)","v":{"$error":"#N/A"}},{"$f":"_xlfn.XLOOKUP(Q241,FeedPrice[Feed],FeedPrice[Price per kg],\"Unknown\",0)*O241","v":{"$error":"#N/A"}},{"$error":"#N/A"},{"$f":"_xlfn.XLOOKUP(O241,LabourFromFeed[Feed Quantity (kg)],LabourFromFeed[No. Labour],\"Out of range\",-1)","v":{"$error":"#N/A"}},{"$f":"T241*OperatingCosts!$C$9","v":{"$error":"#N/A"}},{"$error":"#N/A"}]
[240,{"$f":"IF(A242<='S1-Standard'!$C$7, B241*EXP((LN((E241/100)+1))*1),)","v":0},{"$f":"_xlfn.XLOOKUP($B242,FeedTables!$C$42:$T$42,FeedTables!$C$44:$T$44,,-1)","v":{"$error":"#N/A"}},{"$f":"_xlfn.XLOOKUP($B242,FeedTables!$C$42:$T$42,FeedTables!$C$45:$T$45,,-1)","v":{"$error":"#N/A"}},{"$f":"_xlfn.XLOOKUP($B242,FeedTables!$C$42:$T$42,FeedTables!$C$46:$T$46,,-1)*_xlfn.XLOOKUP(N241,DensityMultiplier[Biomass kg/m3],DensityMultiplier[Multiplier],,-1)","v":{"$error":"#N/A"}},1926.6019431401946,{"$f":"IF(A242<='S1-Standard'!$C$7,('Growth-Model-1'!G241*EXP($AA$7)),0)","v":0},{"$f":"IF(A242<='S1-Standard'!$C$7,$AD$6*EXP($AD$7*('S1-Standard'!C$7-'Growth-Model-1'!A242)),0)","v":0},98.398056859804981,4.8591633017187642E-2,0,9.6134220875344365,0,{"$f":"M242/'S1-Standard'!$C$17","v":0},{"$error":"#N/A"},{"$error":"#N/A"},{"$f":"_xlfn.XLOOKUP(B242,FeedTables!$C$17:$T$17,FeedTables!$C$31:$T$31,,-1)","v":{"$error":"#N/A"}},{"$f":"_xlfn.XLOOKUP(Q242,FeedPrice[Feed],FeedPrice[Price per kg],\"Unknown\",0)*O242","v":{"$error":"#N/A"}},{"$error":"#N/A"},{"$f":"_xlfn.XLOOKUP(O242,LabourFromFeed[Feed Quantity (kg)],LabourFromFeed[No. Labour],\"Out of range\",-1)","v":{"$error":"#N/A"}},{"$f":"T242*OperatingCosts!$C$9","v":{"$error":"#N/A"}},{"$error":"#N/A"}]
[241,{"$f":"IF(A243<='S1-Standard'!$C$7, B242*EXP((LN((E242/100)+1))*1),)","v":0},{"$f":"_xlfn.XLOOKUP($B243,FeedTables!$C$42:$T$42,FeedTables!$C$44:$T$44,,-1)","v":{"$error":"#N/A"}},{"$f":"_xlfn.XLOOKUP($B243,FeedTables!$C$42:$T$42,FeedTables!$C$45:$T$45,,-1)","v":{"$error":"#N/A"}},{"$f":"_xlfn.XLOOKUP($B243,FeedTables!$C$42:$T$42,FeedTables!$C$46:$T$46,,-1)*_xlfn.XLOOKUP(N242,DensityMultiplier[Biomass kg/m3],DensityMultiplier[Multiplier],,-1)","v":{"$error":"#N/A"}},1926.6019431401946,{"$f":"IF(A243<='S1-Standard'!$C$7,('Growth-Model-1'!G242*EXP($AA$7)),0)","v":0},{"$f":"IF(A243<='S1-Standard'!$C$7,$AD$6*EXP($AD$7*('S1-Standard'!C$7-'Growth-Model-1'!A243)),0)","v":0},98.398056859804981,4.8591633017187642E-2,0,9.6134220875344365,0,{"$f":"M243/'S1-Standard'!$C$17","v":0},{"$error":"#N/A"},{"$error":"#N/A"},{"$f":"_xlfn.XLOOKUP(B243,FeedTables!$C$17:$T$17,FeedTables!$C$31:$T$31,,-1)","v":{"$error":"#N/A"}},{"$f":"_xlfn.XLOOKUP(Q243,FeedPrice[Feed],FeedPrice[Price per kg],\"Unknown\",0)*O243","v":{"$error":"#N/A"}},{"$error":"#N/A"},{"$f":"_xlfn.XLOOKUP(O243,LabourFromFeed[Feed Quantity (kg)],LabourFromFeed[No. Labour],\"Out of range\",-1)","v":{"$error":"#N/A"}},{"$f":"T243*OperatingCosts!$C$9","v":{"$error":"#N/A"}},{"$error":"#N/A"}]
[242,{"$f":"IF(A244<='S1-Standard'!$C$7, B243*EXP((LN((E243/100)+1))*1),)","v":0},{"$f":"_xlfn.XLOOKUP($B244,FeedTables!$C$42:$T$42,FeedTables!$C$44:$T$44,,-1)","v":{"$error":"#N/A"}},{"$f":"_xlfn.XLOOKUP($B244,FeedTables!$C$42:$T$42,FeedTables!$C$45:$T$45,,-1)","v":{"$error":"#N/A"}},{"$f":"_xlfn.XLOOKUP($B244,FeedTables!$C$42:$T$42,FeedTables!$C$46:$T$46,,-1)*_xlfn.XLOOKUP(N243,DensityMultiplier[Biomass kg/m3],DensityMultiplier[Multiplier],,-1)","v":{"$error":"#N/A"}},1926.6019431401946,{"$f":"IF(A244<='S1-Standard'!$C$7,('Growth-Model-1'!G243*EXP($AA$7)),0)","v":0},{"$f":"IF(A244<='S1-Standard'!$C$7,$AD$6*EXP($AD$7*('S1-Standard'!C$7-'Growth-Model-1'!A244)),0)","v":0},98.398056859804981,4.8591633017187642E-2,0,9.6134220875344365,0,{"$f":"M244/'S1-Standard'!$C$17","v":0},{"$error":"#N/A"},{"$error":"#N/A"},{"$f":"_xlfn.XLOOKUP(B244,FeedTables!$C$17:$T$17,FeedTables!$C$31:$T$31,,-1)","v":{"$error":"#N/A"}},{"$f":"_xlfn.XLOOKUP(Q244,FeedPrice[Feed],FeedPrice[Price per kg],\"Unknown\",0)*O244","v":{"$error":"#N/A"}},{"$error":"#N/A"},{"$f":"_xlfn.XLOOKUP(O244,LabourFromFeed[Feed Quantity (kg)],LabourFromFeed[No. Labour],\"Out of range\",-1)","v":{"$error":"#N/A"}},{"$f":"T244*OperatingCosts!$C$9","v":{"$error":"#N/A"}},{"$error":"#N/A"}]
[243,{"$f":"IF(A245<='S1-Standard'!$C$7, B244*EXP((LN((E244/100)+1))*1),)","v":0},{"$f":"_xlfn.XLOOKUP($B245,FeedTables!$C$42:$T$42,FeedTables!$C$44:$T$44,,-1)","v":{"$error":"#N/A"}},{"$f":"_xlfn.XLOOKUP($B245,FeedTables!$C$42:$T$42,FeedTables!$C$45:$T$45,,-1)","v":{"$error":"#N/A"}},{"$f":"_xlfn.XLOOKUP($B245,FeedTables!$C$42:$T$42,FeedTables!$C$46:$T$46,,-1)*_xlfn.XLOOKUP(N244,DensityMultiplier[Biomass kg/m3],DensityMultiplier[Multiplier],,-1)","v":{"$error":"#N/A"}},1926.6019431401946,{"$f":"IF(A245<='S1-Standard'!$C$7,('Growth-Model-1'!G244*EXP($AA$7)),0)","v":0},{"$f":"IF(A245<='S1-Standard'!$C$7,$AD$6*EXP($AD$7*('S1-Standard'!C$7-'Growth-Model-1'!A245)),0)","v":0},98.398056859804981,4.8591633017187642E-2,0,9.6134220875344365,0,{"$f":"M245/'S1-Standard'!$C$17","v":0},{"$error":"#N/A"},{"$error":"#N/A"},{"$f":"_xlfn.XLOOKUP(B245,FeedTables!$C$17:$T$17,FeedTables!$C$31:$T$31,,-1)","v":{"$error":"#N/A"}},{"$f":"_xlfn.XLOOKUP(Q245,FeedPrice[Feed],FeedPrice[Price per kg],\"Unknown\",0)*O245","v":{"$error":"#N/A"}},{"$error":"#N/A"},{"$f":"_xlfn.XLOOKUP(O245,LabourFromFeed[Feed Quantity (kg)],LabourFromFeed[No. Labour],\"Out of range\",-1)","v":{"$error":"#N/A"}},{"$f":"T245*OperatingCosts!$C$9","v":{"$error":"#N/A"}},{"$error":"#N/A"}]
[244,{"$f":"IF(A246<='S1-Standard'!$C$7, B245*EXP((LN((E245/100)+1))*1),)","v":0},{"$f":"_xlfn.XLOOKUP($B246,FeedTables!$C$42:$T$42,FeedTables!$C$44:$T$44,,-1)","v":{"$error":"#N/A"}},{"$f":"_xlfn.XLOOKUP($B246,FeedTables!$C$42:$T$42,FeedTables!$C$45:$T$45,,-1)","v":{"$error":"#N/A"}},{"$f":"_xlfn.XLOOKUP($B246,FeedTables!$C$42:$T$42,FeedTables!$C$46:$T$46,,-1)*_xlfn.XLOOKUP(N245,DensityMultiplier[Biomass kg/m3],DensityMultiplier[Multiplier],,-1)","v":{"$error":"#N/A"}},1926.6019431401946,{"$f":"IF(A246<='S1-Standard'!$C$7,('Growth-Model-1'!G245*EXP($AA$7)),0)","v":0},{"$f":"IF(A246<='S1-Standard'!$C$7,$AD$6*EXP($AD$7*('S1-Standard'!C$7-'Growth-Model-1'!A246)),0)","v":0},98.398056859804981,4.8591633017187642E-2,0,9.6134220875344365,0,{"$f":"M246/'S1-Standard'!$C$17","v":0},{"$error":"#N/A"},{"$error":"#N/A"},{"$f":"_xlfn.XLOOKUP(B246,FeedTables!$C$17:$T$17,FeedTables!$C$31:$T$31,,-1)","v":{"$error":"#N/A"}},{"$f":"_xlfn.XLOOKUP(Q246,FeedPrice[Feed],FeedPrice[Price per kg],\"Unknown\",0)*O246","v":{"$error":"#N/A"}},{"$error":"#N/A"},{"$f":"_xlfn.XLOOKUP(O246,LabourFromFeed[Feed Quantity (kg)],LabourFromFeed[No. Labour],\"Out of range\",-1)","v":{"$error":"#N/A"}},{"$f":"T246*OperatingCosts!$C$9","v":{"$error":"#N/A"}},{"$error":"#N/A"}]
[245,{"$f":"IF(A247<='S1-Standard'!$C$7, B246*EXP((LN((E246/100)+1))*1),)","v":0},{"$f":"_xlfn.XLOOKUP($B247,FeedTables!$C$42:$T$42,FeedTables!$C$44:$T$44,,-1)","v":{"$error":"#N/A"}},{"$f":"_xlfn.XLOOKUP($B247,FeedTables!$C$42:$T$42,FeedTables!$C$45:$T$45,,-1)","v":{"$error":"#N/A"}},{"$f":"_xlfn.XLOOKUP($B247,FeedTables!$C$42:$T$42,FeedTables!$C$46:$T$46,,-1)*_xlfn.XLOOKUP(N246,DensityMultiplier[Biomass kg/m3],DensityMultiplier[Multiplier],,-1)","v":{"$error":"#N/A"}},1926.6019431401946,{"$f":"IF(A247<='S1-Standard'!$C$7,('Growth-Model-1'!G246*EXP($AA$7)),0)","v":0},{"$f":"IF(A247<='S1-Standard'!$C$7,$AD$6*EXP($AD$7*('S1-Standard'!C$7-'Growth-Model-1'!A247)),0)","v":0},98.398056859804981,4.8591633017187642E-2,0,9.6134220875344365,0,{"$f":"M247/'S1-Standard'!$C$17","v":0},{"$error":"#N/A"},{"$error":"#N/A"},{"$f":"_xlfn.XLOOKUP(B247,FeedTables!$C$17:$T$17,FeedTables!$C$31:$T$31,,-1)","v":{"$error":"#N/A"}},{"$f":"_xlfn.XLOOKUP(Q247,FeedPrice[Feed],FeedPrice[Price per kg],\"Unknown\",0)*O247","v":{"$error":"#N/A"}},{"$error":"#N/A"},{"$f":"_xlfn.XLOOKUP(O247,LabourFromFeed[Feed Quantity (kg)],LabourFromFeed[No. Labour],\"Out of range\",-1)","v":{"$error":"#N/A"}},{"$f":"T247*OperatingCosts!$C$9","v":{"$error":"#N/A"}},{"$error":"#N/A"}]
[246,{"$f":"IF(A248<='S1-Standard'!$C$7, B247*EXP((LN((E247/100)+1))*1),)","v":0},{"$f":"_xlfn.XLOOKUP($B248,FeedTables!$C$42:$T$42,FeedTables!$C$44:$T$44,,-1)","v":{"$error":"#N/A"}},{"$f":"_xlfn.XLOOKUP($B248,FeedTables!$C$42:$T$42,FeedTables!$C$45:$T$45,,-1)","v":{"$error":"#N/A"}},{"$f":"_xlfn.XLOOKUP($B248,FeedTables!$C$42:$T$42,FeedTables!$C$46:$T$46,,-1)*_xlfn.XLOOKUP(N247,DensityMultiplier[Biomass kg/m3],DensityMultiplier[Multiplier],,-1)","v":{"$error":"#N/A"}},1926.6019431401946,{"$f":"IF(A248<='S1-Standard'!$C$7,('Growth-Model-1'!G247*EXP($AA$7)),0)","v":0},{"$f":"IF(A248<='S1-Standard'!$C$7,$AD$6*EXP($AD$7*('S1-Standard'!C$7-'Growth-Model-1'!A248)),0)","v":0},98.398056859804981,4.8591633017187642E-2,0,9.6134220875344365,0,{"$f":"M248/'S1-Standard'!$C$17","v":0},{"$error":"#N/A"},{"$error":"#N/A"},{"$f":"_xlfn.XLOOKUP(B248,FeedTables!$C$17:$T$17,FeedTables!$C$31:$T$31,,-1)","v":{"$error":"#N/A"}},{"$f":"_xlfn.XLOOKUP(Q248,FeedPrice[Feed],FeedPrice[Price per kg],\"Unknown\",0)*O248","v":{"$error":"#N/A"}},{"$error":"#N/A"},{"$f":"_xlfn.XLOOKUP(O248,LabourFromFeed[Feed Quantity (kg)],LabourFromFeed[No. Labour],\"Out of range\",-1)","v":{"$error":"#N/A"}},{"$f":"T248*OperatingCosts!$C$9","v":{"$error":"#N/A"}},{"$error":"#N/A"}]
[247,{"$f":"IF(A249<='S1-Standard'!$C$7, B248*EXP((LN((E248/100)+1))*1),)","v":0},{"$f":"_xlfn.XLOOKUP($B249,FeedTables!$C$42:$T$42,FeedTables!$C$44:$T$44,,-1)","v":{"$error":"#N/A"}},{"$f":"_xlfn.XLOOKUP($B249,FeedTables!$C$42:$T$42,FeedTables!$C$45:$T$45,,-1)","v":{"$error":"#N/A"}},{"$f":"_xlfn.XLOOKUP($B249,FeedTables!$C$42:$T$42,FeedTables!$C$46:$T$46,,-1)*_xlfn.XLOOKUP(N248,DensityMultiplier[Biomass kg/m3],DensityMultiplier[Multiplier],,-1)","v":{"$error":"#N/A"}},1926.6019431401946,{"$f":"IF(A249<='S1-Standard'!$C$7,('Growth-Model-1'!G248*EXP($AA$7)),0)","v":0},{"$f":"IF(A249<='S1-Standard'!$C$7,$AD$6*EXP($AD$7*('S1-Standard'!C$7-'Growth-Model-1'!A249)),0)","v":0},98.398056859804981,4.8591633017187642E-2,0,9.6134220875344365,0,{"$f":"M249/'S1-Standard'!$C$17","v":0},{"$error":"#N/A"},{"$error":"#N/A"},{"$f":"_xlfn.XLOOKUP(B249,FeedTables!$C$17:$T$17,FeedTables!$C$31:$T$31,,-1)","v":{"$error":"#N/A"}},{"$f":"_xlfn.XLOOKUP(Q249,FeedPrice[Feed],FeedPrice[Price per kg],\"Unknown\",0)*O249","v":{"$error":"#N/A"}},{"$error":"#N/A"},{"$f":"_xlfn.XLOOKUP(O249,LabourFromFeed[Feed Quantity (kg)],LabourFromFeed[No. Labour],\"Out of range\",-1)","v":{"$error":"#N/A"}},{"$f":"T249*OperatingCosts!$C$9","v":{"$error":"#N/A"}},{"$error":"#N/A"}]
[248,{"$f":"IF(A250<='S1-Standard'!$C$7, B249*EXP((LN((E249/100)+1))*1),)","v":0},{"$f":"_xlfn.XLOOKUP($B250,FeedTables!$C$42:$T$42,FeedTables!$C$44:$T$44,,-1)","v":{"$error":"#N/A"}},{"$f":"_xlfn.XLOOKUP($B250,FeedTables!$C$42:$T$42,FeedTables!$C$45:$T$45,,-1)","v":{"$error":"#N/A"}},{"$f":"_xlfn.XLOOKUP($B250,FeedTables!$C$42:$T$42,FeedTables!$C$46:$T$46,,-1)*_xlfn.XLOOKUP(N249,DensityMultiplier[Biomass kg/m3],DensityMultiplier[Multiplier],,-1)","v":{"$error":"#N/A"}},1926.6019431401946,{"$f":"IF(A250<='S1-Standard'!$C$7,('Growth-Model-1'!G249*EXP($AA$7)),0)","v":0},{"$f":"IF(A250<='S1-Standard'!$C$7,$AD$6*EXP($AD$7*('S1-Standard'!C$7-'Growth-Model-1'!A250)),0)","v":0},98.398056859804981,4.8591633017187642E-2,0,9.6134220875344365,0,{"$f":"M250/'S1-Standard'!$C$17","v":0},{"$error":"#N/A"},{"$error":"#N/A"},{"$f":"_xlfn.XLOOKUP(B250,FeedTables!$C$17:$T$17,FeedTables!$C$31:$T$31,,-1)","v":{"$error":"#N/A"}},{"$f":"_xlfn.XLOOKUP(Q250,FeedPrice[Feed],FeedPrice[Price per kg],\"Unknown\",0)*O250","v":{"$error":"#N/A"}},{"$error":"#N/A"},{"$f":"_xlfn.XLOOKUP(O250,LabourFromFeed[Feed Quantity (kg)],LabourFromFeed[No. Labour],\"Out of range\",-1)","v":{"$error":"#N/A"}},{"$f":"T250*OperatingCosts!$C$9","v":{"$error":"#N/A"}},{"$error":"#N/A"}]
[249,{"$f":"IF(A251<='S1-Standard'!$C$7, B250*EXP((LN((E250/100)+1))*1),)","v":0},{"$f":"_xlfn.XLOOKUP($B251,FeedTables!$C$42:$T$42,FeedTables!$C$44:$T$44,,-1)","v":{"$error":"#N/A"}},{"$f":"_xlfn.XLOOKUP($B251,FeedTables!$C$42:$T$42,FeedTables!$C$45:$T$45,,-1)","v":{"$error":"#N/A"}},{"$f":"_xlfn.XLOOKUP($B251,FeedTables!$C$42:$T$42,FeedTables!$C$46:$T$46,,-1)*_xlfn.XLOOKUP(N250,DensityMultiplier[Biomass kg/m3],DensityMultiplier[Multiplier],,-1)","v":{"$error":"#N/A"}},1926.6019431401946,{"$f":"IF(A251<='S1-Standard'!$C$7,('Growth-Model-1'!G250*EXP($AA$7)),0)","v":0},{"$f":"IF(A251<='S1-Standard'!$C$7,$AD$6*EXP($AD$7*('S1-Standard'!C$7-'Growth-Model-1'!A251)),0)","v":0},98.398056859804981,4.8591633017187642E-2,0,9.6134220875344365,0,{"$f":"M251/'S1-Standard'!$C$17","v":0},{"$error":"#N/A"},{"$error":"#N/A"},{"$f":"_xlfn.XLOOKUP(B251,FeedTables!$C$17:$T$17,FeedTables!$C$31:$T$31,,-1)","v":{"$error":"#N/A"}},{"$f":"_xlfn.XLOOKUP(Q251,FeedPrice[Feed],FeedPrice[Price per kg],\"Unknown\",0)*O251","v":{"$error":"#N/A"}},{"$error":"#N/A"},{"$f":"_xlfn.XLOOKUP(O251,LabourFromFeed[Feed Quantity (kg)],LabourFromFeed[No. Labour],\"Out of range\",-1)","v":{"$error":"#N/A"}},{"$f":"T251*OperatingCosts!$C$9","v":{"$error":"#N/A"}},{"$error":"#N/A"}]
[250,{"$f":"IF(A252<='S1-Standard'!$C$7, B251*EXP((LN((E251/100)+1))*1),)","v":0},{"$f":"_xlfn.XLOOKUP($B252,FeedTables!$C$42:$T$42,FeedTables!$C$44:$T$44,,-1)","v":{"$error":"#N/A"}},{"$f":"_xlfn.XLOOKUP($B252,FeedTables!$C$42:$T$42,FeedTables!$C$45:$T$45,,-1)","v":{"$error":"#N/A"}},{"$f":"_xlfn.XLOOKUP($B252,FeedTables!$C$42:$T$42,FeedTables!$C$46:$T$46,,-1)*_xlfn.XLOOKUP(N251,DensityMultiplier[Biomass kg/m3],DensityMultiplier[Multiplier],,-1)","v":{"$error":"#N/A"}},1926.6019431401946,{"$f":"IF(A252<='S1-Standard'!$C$7,('Growth-Model-1'!G251*EXP($AA$7)),0)","v":0},{"$f":"IF(A252<='S1-Standard'!$C$7,$AD$6*EXP($AD$7*('S1-Standard'!C$7-'Growth-Model-1'!A252)),0)","v":0},98.398056859804981,4.8591633017187642E-2,0,9.6134220875344365,0,{"$f":"M252/'S1-Standard'!$C$17","v":0},{"$error":"#N/A"},{"$error":"#N/A"},{"$f":"_xlfn.XLOOKUP(B252,FeedTables!$C$17:$T$17,FeedTables!$C$31:$T$31,,-1)","v":{"$error":"#N/A"}},{"$f":"_xlfn.XLOOKUP(Q252,FeedPrice[Feed],FeedPrice[Price per kg],\"Unknown\",0)*O252","v":{"$error":"#N/A"}},{"$error":"#N/A"},{"$f":"_xlfn.XLOOKUP(O252,LabourFromFeed[Feed Quantity (kg)],LabourFromFeed[No. Labour],\"Out of range\",-1)","v":{"$error":"#N/A"}},{"$f":"T252*OperatingCosts!$C$9","v":{"$error":"#N/A"}},{"$error":"#N/A"}]
[251,{"$f":"IF(A253<='S1-Standard'!$C$7, B252*EXP((LN((E252/100)+1))*1),)","v":0},{"$f":"_xlfn.XLOOKUP($B253,FeedTables!$C$42:$T$42,FeedTables!$C$44:$T$44,,-1)","v":{"$error":"#N/A"}},{"$f":"_xlfn.XLOOKUP($B253,FeedTables!$C$42:$T$42,FeedTables!$C$45:$T$45,,-1)","v":{"$error":"#N/A"}},{"$f":"_xlfn.XLOOKUP($B253,FeedTables!$C$42:$T$42,FeedTables!$C$46:$T$46,,-1)*_xlfn.XLOOKUP(N252,DensityMultiplier[Biomass kg/m3],DensityMultiplier[Multiplier],,-1)","v":{"$error":"#N/A"}},1926.6019431401946,{"$f":"IF(A253<='S1-Standard'!$C$7,('Growth-Model-1'!G252*EXP($AA$7)),0)","v":0},{"$f":"IF(A253<='S1-Standard'!$C$7,$AD$6*EXP($AD$7*('S1-Standard'!C$7-'Growth-Model-1'!A253)),0)","v":0},98.398056859804981,4.8591633017187642E-2,0,9.6134220875344365,0,{"$f":"M253/'S1-Standard'!$C$17","v":0},{"$error":"#N/A"},{"$error":"#N/A"},{"$f":"_xlfn.XLOOKUP(B253,FeedTables!$C$17:$T$17,FeedTables!$C$31:$T$31,,-1)","v":{"$error":"#N/A"}},{"$f":"_xlfn.XLOOKUP(Q253,FeedPrice[Feed],FeedPrice[Price per kg],\"Unknown\",0)*O253","v":{"$error":"#N/A"}},{"$error":"#N/A"},{"$f":"_xlfn.XLOOKUP(O253,LabourFromFeed[Feed Quantity (kg)],LabourFromFeed[No. Labour],\"Out of range\",-1)","v":{"$error":"#N/A"}},{"$f":"T253*OperatingCosts!$C$9","v":{"$error":"#N/A"}},{"$error":"#N/A"}]
[252,{"$f":"IF(A254<='S1-Standard'!$C$7, B253*EXP((LN((E253/100)+1))*1),)","v":0},{"$f":"_xlfn.XLOOKUP($B254,FeedTables!$C$42:$T$42,FeedTables!$C$44:$T$44,,-1)","v":{"$error":"#N/A"}},{"$f":"_xlfn.XLOOKUP($B254,FeedTables!$C$42:$T$42,FeedTables!$C$45:$T$45,,-1)","v":{"$error":"#N/A"}},{"$f":"_xlfn.XLOOKUP($B254,FeedTables!$C$42:$T$42,FeedTables!$C$46:$T$46,,-1)*_xlfn.XLOOKUP(N253,DensityMultiplier[Biomass kg/m3],DensityMultiplier[Multiplier],,-1)","v":{"$error":"#N/A"}},1926.6019431401946,{"$f":"IF(A254<='S1-Standard'!$C$7,('Growth-Model-1'!G253*EXP($AA$7)),0)","v":0},{"$f":"IF(A254<='S1-Standard'!$C$7,$AD$6*EXP($AD$7*('S1-Standard'!C$7-'Growth-Model-1'!A254)),0)","v":0},98.398056859804981,4.8591633017187642E-2,0,9.6134220875344365,0,{"$f":"M254/'S1-Standard'!$C$17","v":0},{"$error":"#N/A"},{"$error":"#N/A"},{"$f":"_xlfn.XLOOKUP(B254,FeedTables!$C$17:$T$17,FeedTables!$C$31:$T$31,,-1)","v":{"$error":"#N/A"}},{"$f":"_xlfn.XLOOKUP(Q254,FeedPrice[Feed],FeedPrice[Price per kg],\"Unknown\",0)*O254","v":{"$error":"#N/A"}},{"$error":"#N/A"},{"$f":"_xlfn.XLOOKUP(O254,LabourFromFeed[Feed Quantity (kg)],LabourFromFeed[No. Labour],\"Out of range\",-1)","v":{"$error":"#N/A"}},{"$f":"T254*OperatingCosts!$C$9","v":{"$error":"#N/A"}},{"$error":"#N/A"}]
[253,{"$f":"IF(A255<='S1-Standard'!$C$7, B254*EXP((LN((E254/100)+1))*1),)","v":0},{"$f":"_xlfn.XLOOKUP($B255,FeedTables!$C$42:$T$42,FeedTables!$C$44:$T$44,,-1)","v":{"$error":"#N/A"}},{"$f":"_xlfn.XLOOKUP($B255,FeedTables!$C$42:$T$42,FeedTables!$C$45:$T$45,,-1)","v":{"$error":"#N/A"}},{"$f":"_xlfn.XLOOKUP($B255,FeedTables!$C$42:$T$42,FeedTables!$C$46:$T$46,,-1)*_xlfn.XLOOKUP(N254,DensityMultiplier[Biomass kg/m3],DensityMultiplier[Multiplier],,-1)","v":{"$error":"#N/A"}},1926.6019431401946,{"$f":"IF(A255<='S1-Standard'!$C$7,('Growth-Model-1'!G254*EXP($AA$7)),0)","v":0},{"$f":"IF(A255<='S1-Standard'!$C$7,$AD$6*EXP($AD$7*('S1-Standard'!C$7-'Growth-Model-1'!A255)),0)","v":0},98.398056859804981,4.8591633017187642E-2,0,9.6134220875344365,0,{"$f":"M255/'S1-Standard'!$C$17","v":0},{"$error":"#N/A"},{"$error":"#N/A"},{"$f":"_xlfn.XLOOKUP(B255,FeedTables!$C$17:$T$17,FeedTables!$C$31:$T$31,,-1)","v":{"$error":"#N/A"}},{"$f":"_xlfn.XLOOKUP(Q255,FeedPrice[Feed],FeedPrice[Price per kg],\"Unknown\",0)*O255","v":{"$error":"#N/A"}},{"$error":"#N/A"},{"$f":"_xlfn.XLOOKUP(O255,LabourFromFeed[Feed Quantity (kg)],LabourFromFeed[No. Labour],\"Out of range\",-1)","v":{"$error":"#N/A"}},{"$f":"T255*OperatingCosts!$C$9","v":{"$error":"#N/A"}},{"$error":"#N/A"}]
[254,{"$f":"IF(A256<='S1-Standard'!$C$7, B255*EXP((LN((E255/100)+1))*1),)","v":0},{"$f":"_xlfn.XLOOKUP($B256,FeedTables!$C$42:$T$42,FeedTables!$C$44:$T$44,,-1)","v":{"$error":"#N/A"}},{"$f":"_xlfn.XLOOKUP($B256,FeedTables!$C$42:$T$42,FeedTables!$C$45:$T$45,,-1)","v":{"$error":"#N/A"}},{"$f":"_xlfn.XLOOKUP($B256,FeedTables!$C$42:$T$42,FeedTables!$C$46:$T$46,,-1)*_xlfn.XLOOKUP(N255,DensityMultiplier[Biomass kg/m3],DensityMultiplier[Multiplier],,-1)","v":{"$error":"#N/A"}},1926.6019431401946,{"$f":"IF(A256<='S1-Standard'!$C$7,('Growth-Model-1'!G255*EXP($AA$7)),0)","v":0},{"$f":"IF(A256<='S1-Standard'!$C$7,$AD$6*EXP($AD$7*('S1-Standard'!C$7-'Growth-Model-1'!A256)),0)","v":0},98.398056859804981,4.8591633017187642E-2,0,9.6134220875344365,0,{"$f":"M256/'S1-Standard'!$C$17","v":0},{"$error":"#N/A"},{"$error":"#N/A"},{"$f":"_xlfn.XLOOKUP(B256,FeedTables!$C$17:$T$17,FeedTables!$C$31:$T$31,,-1)","v":{"$error":"#N/A"}},{"$f":"_xlfn.XLOOKUP(Q256,FeedPrice[Feed],FeedPrice[Price per kg],\"Unknown\",0)*O256","v":{"$error":"#N/A"}},{"$error":"#N/A"},{"$f":"_xlfn.XLOOKUP(O256,LabourFromFeed[Feed Quantity (kg)],LabourFromFeed[No. Labour],\"Out of range\",-1)","v":{"$error":"#N/A"}},{"$f":"T256*OperatingCosts!$C$9","v":{"$error":"#N/A"}},{"$error":"#N/A"}]
[255,{"$f":"IF(A257<='S1-Standard'!$C$7, B256*EXP((LN((E256/100)+1))*1),)","v":0},{"$f":"_xlfn.XLOOKUP($B257,FeedTables!$C$42:$T$42,FeedTables!$C$44:$T$44,,-1)","v":{"$error":"#N/A"}},{"$f":"_xlfn.XLOOKUP($B257,FeedTables!$C$42:$T$42,FeedTables!$C$45:$T$45,,-1)","v":{"$error":"#N/A"}},{"$f":"_xlfn.XLOOKUP($B257,FeedTables!$C$42:$T$42,FeedTables!$C$46:$T$46,,-1)*_xlfn.XLOOKUP(N256,DensityMultiplier[Biomass kg/m3],DensityMultiplier[Multiplier],,-1)","v":{"$error":"#N/A"}},1926.6019431401946,{"$f":"IF(A257<='S1-Standard'!$C$7,('Growth-Model-1'!G256*EXP($AA$7)),0)","v":0},{"$f":"IF(A257<='S1-Standard'!$C$7,$AD$6*EXP($AD$7*('S1-Standard'!C$7-'Growth-Model-1'!A257)),0)","v":0},98.398056859804981,4.8591633017187642E-2,0,9.6134220875344365,0,{"$f":"M257/'S1-Standard'!$C$17","v":0},{"$error":"#N/A"},{"$error":"#N/A"},{"$f":"_xlfn.XLOOKUP(B257,FeedTables!$C$17:$T$17,FeedTables!$C$31:$T$31,,-1)","v":{"$error":"#N/A"}},{"$f":"_xlfn.XLOOKUP(Q257,FeedPrice[Feed],FeedPrice[Price per kg],\"Unknown\",0)*O257","v":{"$error":"#N/A"}},{"$error":"#N/A"},{"$f":"_xlfn.XLOOKUP(O257,LabourFromFeed[Feed Quantity (kg)],LabourFromFeed[No. Labour],\"Out of range\",-1)","v":{"$error":"#N/A"}},{"$f":"T257*OperatingCosts!$C$9","v":{"$error":"#N/A"}},{"$error":"#N/A"}]
[256,{"$f":"IF(A258<='S1-Standard'!$C$7, B257*EXP((LN((E257/100)+1))*1),)","v":0},{"$f":"_xlfn.XLOOKUP($B258,FeedTables!$C$42:$T$42,FeedTables!$C$44:$T$44,,-1)","v":{"$error":"#N/A"}},{"$f":"_xlfn.XLOOKUP($B258,FeedTables!$C$42:$T$42,FeedTables!$C$45:$T$45,,-1)","v":{"$error":"#N/A"}},{"$f":"_xlfn.XLOOKUP($B258,FeedTables!$C$42:$T$42,FeedTables!$C$46:$T$46,,-1)*_xlfn.XLOOKUP(N257,DensityMultiplier[Biomass kg/m3],DensityMultiplier[Multiplier],,-1)","v":{"$error":"#N/A"}},1926.6019431401946,{"$f":"IF(A258<='S1-Standard'!$C$7,('Growth-Model-1'!G257*EXP($AA$7)),0)","v":0},{"$f":"IF(A258<='S1-Standard'!$C$7,$AD$6*EXP($AD$7*('S1-Standard'!C$7-'Growth-Model-1'!A258)),0)","v":0},98.398056859804981,4.8591633017187642E-2,0,9.6134220875344365,{"$f":"(B258*F258)/1000","v":0},{"$f":"M258/'S1-Standard'!$C$17","v":0},{"$f":"M258*(C258/100)","v":{"$error":"#N/A"}},{"$error":"#N/A"},{"$f":"_xlfn.XLOOKUP(B258,FeedTables!$C$17:$T$17,FeedTables!$C$31:$T$31,,-1)","v":{"$error":"#N/A"}},{"$f":"_xlfn.XLOOKUP(Q258,FeedPrice[Feed],FeedPrice[Price per kg],\"Unknown\",0)*O258","v":{"$error":"#N/A"}},{"$error":"#N/A"},{"$f":"_xlfn.XLOOKUP(O258,LabourFromFeed[Feed Quantity (kg)],LabourFromFeed[No. Labour],\"Out of range\",-1)","v":{"$error":"#N/A"}},{"$f":"T258*OperatingCosts!$C$9","v":{"$error":"#N/A"}},{"$error":"#N/A"}]
[257,{"$f":"IF(A259<='S1-Standard'!$C$7, B258*EXP((LN((E258/100)+1))*1),)","v":0},{"$f":"_xlfn.XLOOKUP($B259,FeedTables!$C$42:$T$42,FeedTables!$C$44:$T$44,,-1)","v":{"$error":"#N/A"}},{"$f":"_xlfn.XLOOKUP($B259,FeedTables!$C$42:$T$42,FeedTables!$C$45:$T$45,,-1)","v":{"$error":"#N/A"}},{"$f":"_xlfn.XLOOKUP($B259,FeedTables!$C$42:$T$42,FeedTables!$C$46:$T$46,,-1)*_xlfn.XLOOKUP(N258,DensityMultiplier[Biomass kg/m3],DensityMultiplier[Multiplier],,-1)","v":{"$error":"#N/A"}},1926.6019431401946,{"$f":"IF(A259<='S1-Standard'!$C$7,('Growth-Model-1'!G258*EXP($AA$7)),0)","v":0},{"$f":"IF(A259<='S1-Standard'!$C$7,$AD$6*EXP($AD$7*('S1-Standard'!C$7-'Growth-Model-1'!A259)),0)","v":0},98.398056859804981,{"$f":"I259/$F$2","v":4.8591633017187642E-2},{"$f":"(G259+H259)*B259","v":0},9.6134220875344365,0,{"$f":"M259/'S1-Standard'!$C$17","v":0},{"$error":"#N/A"},{"$error":"#N/A"},{"$f":"_xlfn.XLOOKUP(B259,FeedTables!$C$17:$T$17,FeedTables!$C$31:$T$31,,-1)","v":{"$error":"#N/A"}},{"$f":"_xlfn.XLOOKUP(Q259,FeedPrice[Feed],FeedPrice[Price per kg],\"Unknown\",0)*O259","v":{"$error":"#N/A"}},{"$error":"#N/A"},{"$f":"_xlfn.XLOOKUP(O259,LabourFromFeed[Feed Quantity (kg)],LabourFromFeed[No. Labour],\"Out of range\",-1)","v":{"$error":"#N/A"}},{"$f":"T259*OperatingCosts!$C$9","v":{"$error":"#N/A"}},{"$error":"#N/A"}]
[258,{"$f":"IF(A260<='S1-Standard'!$C$7, B259*EXP((LN((E259/100)+1))*1),)","v":0},{"$f":"_xlfn.XLOOKUP($B260,FeedTables!$C$42:$T$42,FeedTables!$C$44:$T$44,,-1)","v":{"$error":"#N/A"}},{"$f":"_xlfn.XLOOKUP($B260,FeedTables!$C$42:$T$42,FeedTables!$C$45:$T$45,,-1)","v":{"$error":"#N/A"}},{"$f":"_xlfn.XLOOKUP($B260,FeedTables!$C$42:$T$42,FeedTables!$C$46:$T$46,,-1)*_xlfn.XLOOKUP(N259,DensityMultiplier[Biomass kg/m3],DensityMultiplier[Multiplier],,-1)","v":{"$error":"#N/A"}},1926.6019431401946,{"$f":"IF(A260<='S1-Standard'!$C$7,('Growth-Model-1'!G259*EXP($AA$7)),0)","v":0},{"$f":"IF(A260<='S1-Standard'!$C$7,$AD$6*EXP($AD$7*('S1-Standard'!C$7-'Growth-Model-1'!A260)),0)","v":0},{"$f":"I259+G260+H260","v":98.398056859804981},4.8591633017187642E-2,0,{"$f":"(K260/1000)+L259","v":9.6134220875344365},0,{"$f":"M260/'S1-Standard'!$C$17","v":0},{"$error":"#N/A"},{"$f":"O260+P259","v":{"$error":"#N/A"}},{"$f":"_xlfn.XLOOKUP(B260,FeedTables!$C$17:$T$17,FeedTables!$C$31:$T$31,,-1)","v":{"$error":"#N/A"}},{"$f":"_xlfn.XLOOKUP(Q260,FeedPrice[Feed],FeedPrice[Price per kg],\"Unknown\",0)*O260","v":{"$error":"#N/A"}},{"$f":"R260+S259","v":{"$error":"#N/A"}},{"$f":"_xlfn.XLOOKUP(O260,LabourFromFeed[Feed Quantity (kg)],LabourFromFeed[No. Labour],\"Out of range\",-1)","v":{"$error":"#N/A"}},{"$f":"T260*OperatingCosts!$C$9","v":{"$error":"#N/A"}},{"$f":"U260+V259","v":{"$error":"#N/A"}}]
[259,{"$f":"IF(A261<='S1-Standard'!$C$7, B260*EXP((LN((E260/100)+1))*1),)","v":0},{"$f":"_xlfn.XLOOKUP($B261,FeedTables!$C$42:$T$42,FeedTables!$C$44:$T$44,,-1)","v":{"$error":"#N/A"}},{"$f":"_xlfn.XLOOKUP($B261,FeedTables!$C$42:$T$42,FeedTables!$C$45:$T$45,,-1)","v":{"$error":"#N/A"}},{"$f":"_xlfn.XLOOKUP($B261,FeedTables!$C$42:$T$42,FeedTables!$C$46:$T$46,,-1)*_xlfn.XLOOKUP(N260,DensityMultiplier[Biomass kg/m3],DensityMultiplier[Multiplier],,-1)","v":{"$error":"#N/A"}},{"$f":"F260-G260-H260","v":1926.6019431401946},{"$f":"IF(A261<='S1-Standard'!$C$7,('Growth-Model-1'!G260*EXP($AA$7)),0)","v":0},{"$f":"IF(A261<='S1-Standard'!$C$7,$AD$6*EXP($AD$7*('S1-Standard'!C$7-'Growth-Model-1'!A261)),0)","v":0},98.398056859804981,4.8591633017187642E-2,0,9.6134220875344365,0,{"$f":"M261/'S1-Standard'!$C$17","v":0},{"$error":"#N/A"},{"$error":"#N/A"},{"$f":"_xlfn.XLOOKUP(B261,FeedTables!$C$17:$T$17,FeedTables!$C$31:$T$31,,-1)","v":{"$error":"#N/A"}},{"$f":"_xlfn.XLOOKUP(Q261,FeedPrice[Feed],FeedPrice[Price per kg],\"Unknown\",0)*O261","v":{"$error":"#N/A"}},{"$error":"#N/A"},{"$f":"_xlfn.XLOOKUP(O261,LabourFromFeed[Feed Quantity (kg)],LabourFromFeed[No. Labour],\"Out of range\",-1)","v":{"$error":"#N/A"}},{"$f":"T261*OperatingCosts!$C$9","v":{"$error":"#N/A"}},{"$error":"#N/A"}]
[260,{"$f":"IF(A262<='S1-Standard'!$C$7, B261*EXP((LN((E261/100)+1))*1),)","v":0},{"$f":"_xlfn.XLOOKUP($B262,FeedTables!$C$42:$T$42,FeedTables!$C$44:$T$44,,-1)","v":{"$error":"#N/A"}},{"$f":"_xlfn.XLOOKUP($B262,FeedTables!$C$42:$T$42,FeedTables!$C$45:$T$45,,-1)","v":{"$error":"#N/A"}},{"$f":"_xlfn.XLOOKUP($B262,FeedTables!$C$42:$T$42,FeedTables!$C$46:$T$46,,-1)*_xlfn.XLOOKUP(N261,DensityMultiplier[Biomass kg/m3],DensityMultiplier[Multiplier],,-1)","v":{"$error":"#N/A"}},1926.6019431401946,{"$f":"IF(A262<='S1-Standard'!$C$7,('Growth-Model-1'!G261*EXP($AA$7)),0)","v":0},{"$f":"IF(A262<='S1-Standard'!$C$7,$AD$6*EXP($AD$7*('S1-Standard'!C$7-'Growth-Model-1'!A262)),0)","v":0},98.398056859804981,4.8591633017187642E-2,0,9.6134220875344365,0,{"$f":"M262/'S1-Standard'!$C$17","v":0},{"$error":"#N/A"},{"$error":"#N/A"},{"$f":"_xlfn.XLOOKUP(B262,FeedTables!$C$17:$T$17,FeedTables!$C$31:$T$31,,-1)","v":{"$error":"#N/A"}},{"$f":"_xlfn.XLOOKUP(Q262,FeedPrice[Feed],FeedPrice[Price per kg],\"Unknown\",0)*O262","v":{"$error":"#N/A"}},{"$error":"#N/A"},{"$f":"_xlfn.XLOOKUP(O262,LabourFromFeed[Feed Quantity (kg)],LabourFromFeed[No. Labour],\"Out of range\",-1)","v":{"$error":"#N/A"}},{"$f":"T262*OperatingCosts!$C$9","v":{"$error":"#N/A"}},{"$error":"#N/A"}]
[261,{"$f":"IF(A263<='S1-Standard'!$C$7, B262*EXP((LN((E262/100)+1))*1),)","v":0},{"$f":"_xlfn.XLOOKUP($B263,FeedTables!$C$42:$T$42,FeedTables!$C$44:$T$44,,-1)","v":{"$error":"#N/A"}},{"$f":"_xlfn.XLOOKUP($B263,FeedTables!$C$42:$T$42,FeedTables!$C$45:$T$45,,-1)","v":{"$error":"#N/A"}},{"$f":"_xlfn.XLOOKUP($B263,FeedTables!$C$42:$T$42,FeedTables!$C$46:$T$46,,-1)*_xlfn.XLOOKUP(N262,DensityMultiplier[Biomass kg/m3],DensityMultiplier[Multiplier],,-1)","v":{"$error":"#N/A"}},1926.6019431401946,{"$f":"IF(A263<='S1-Standard'!$C$7,('Growth-Model-1'!G262*EXP($AA$7)),0)","v":0},{"$f":"IF(A263<='S1-Standard'!$C$7,$AD$6*EXP($AD$7*('S1-Standard'!C$7-'Growth-Model-1'!A263)),0)","v":0},98.398056859804981,4.8591633017187642E-2,0,9.6134220875344365,0,{"$f":"M263/'S1-Standard'!$C$17","v":0},{"$error":"#N/A"},{"$error":"#N/A"},{"$f":"_xlfn.XLOOKUP(B263,FeedTables!$C$17:$T$17,FeedTables!$C$31:$T$31,,-1)","v":{"$error":"#N/A"}},{"$f":"_xlfn.XLOOKUP(Q263,FeedPrice[Feed],FeedPrice[Price per kg],\"Unknown\",0)*O263","v":{"$error":"#N/A"}},{"$error":"#N/A"},{"$f":"_xlfn.XLOOKUP(O263,LabourFromFeed[Feed Quantity (kg)],LabourFromFeed[No. Labour],\"Out of range\",-1)","v":{"$error":"#N/A"}},{"$f":"T263*OperatingCosts!$C$9","v":{"$error":"#N/A"}},{"$error":"#N/A"}]
[262,{"$f":"IF(A264<='S1-Standard'!$C$7, B263*EXP((LN((E263/100)+1))*1),)","v":0},{"$f":"_xlfn.XLOOKUP($B264,FeedTables!$C$42:$T$42,FeedTables!$C$44:$T$44,,-1)","v":{"$error":"#N/A"}},{"$f":"_xlfn.XLOOKUP($B264,FeedTables!$C$42:$T$42,FeedTables!$C$45:$T$45,,-1)","v":{"$error":"#N/A"}},{"$f":"_xlfn.XLOOKUP($B264,FeedTables!$C$42:$T$42,FeedTables!$C$46:$T$46,,-1)*_xlfn.XLOOKUP(N263,DensityMultiplier[Biomass kg/m3],DensityMultiplier[Multiplier],,-1)","v":{"$error":"#N/A"}},1926.6019431401946,{"$f":"IF(A264<='S1-Standard'!$C$7,('Growth-Model-1'!G263*EXP($AA$7)),0)","v":0},{"$f":"IF(A264<='S1-Standard'!$C$7,$AD$6*EXP($AD$7*('S1-Standard'!C$7-'Growth-Model-1'!A264)),0)","v":0},98.398056859804981,4.8591633017187642E-2,0,9.6134220875344365,0,{"$f":"M264/'S1-Standard'!$C$17","v":0},{"$error":"#N/A"},{"$error":"#N/A"},{"$f":"_xlfn.XLOOKUP(B264,FeedTables!$C$17:$T$17,FeedTables!$C$31:$T$31,,-1)","v":{"$error":"#N/A"}},{"$f":"_xlfn.XLOOKUP(Q264,FeedPrice[Feed],FeedPrice[Price per kg],\"Unknown\",0)*O264","v":{"$error":"#N/A"}},{"$error":"#N/A"},{"$f":"_xlfn.XLOOKUP(O264,LabourFromFeed[Feed Quantity (kg)],LabourFromFeed[No. Labour],\"Out of range\",-1)","v":{"$error":"#N/A"}},{"$f":"T264*OperatingCosts!$C$9","v":{"$error":"#N/A"}},{"$error":"#N/A"}]
[263,{"$f":"IF(A265<='S1-Standard'!$C$7, B264*EXP((LN((E264/100)+1))*1),)","v":0},{"$f":"_xlfn.XLOOKUP($B265,FeedTables!$C$42:$T$42,FeedTables!$C$44:$T$44,,-1)","v":{"$error":"#N/A"}},{"$f":"_xlfn.XLOOKUP($B265,FeedTables!$C$42:$T$42,FeedTables!$C$45:$T$45,,-1)","v":{"$error":"#N/A"}},{"$f":"_xlfn.XLOOKUP($B265,FeedTables!$C$42:$T$42,FeedTables!$C$46:$T$46,,-1)*_xlfn.XLOOKUP(N264,DensityMultiplier[Biomass kg/m3],DensityMultiplier[Multiplier],,-1)","v":{"$error":"#N/A"}},1926.6019431401946,{"$f":"IF(A265<='S1-Standard'!$C$7,('Growth-Model-1'!G264*EXP($AA$7)),0)","v":0},{"$f":"IF(A265<='S1-Standard'!$C$7,$AD$6*EXP($AD$7*('S1-Standard'!C$7-'Growth-Model-1'!A265)),0)","v":0},98.398056859804981,4.8591633017187642E-2,0,9.6134220875344365,0,{"$f":"M265/'S1-Standard'!$C$17","v":0},{"$error":"#N/A"},{"$error":"#N/A"},{"$f":"_xlfn.XLOOKUP(B265,FeedTables!$C$17:$T$17,FeedTables!$C$31:$T$31,,-1)","v":{"$error":"#N/A"}},{"$f":"_xlfn.XLOOKUP(Q265,FeedPrice[Feed],FeedPrice[Price per kg],\"Unknown\",0)*O265","v":{"$error":"#N/A"}},{"$error":"#N/A"},{"$f":"_xlfn.XLOOKUP(O265,LabourFromFeed[Feed Quantity (kg)],LabourFromFeed[No. Labour],\"Out of range\",-1)","v":{"$error":"#N/A"}},{"$f":"T265*OperatingCosts!$C$9","v":{"$error":"#N/A"}},{"$error":"#N/A"}]
[264,{"$f":"IF(A266<='S1-Standard'!$C$7, B265*EXP((LN((E265/100)+1))*1),)","v":0},{"$f":"_xlfn.XLOOKUP($B266,FeedTables!$C$42:$T$42,FeedTables!$C$44:$T$44,,-1)","v":{"$error":"#N/A"}},{"$f":"_xlfn.XLOOKUP($B266,FeedTables!$C$42:$T$42,FeedTables!$C$45:$T$45,,-1)","v":{"$error":"#N/A"}},{"$f":"_xlfn.XLOOKUP($B266,FeedTables!$C$42:$T$42,FeedTables!$C$46:$T$46,,-1)*_xlfn.XLOOKUP(N265,DensityMultiplier[Biomass kg/m3],DensityMultiplier[Multiplier],,-1)","v":{"$error":"#N/A"}},1926.6019431401946,{"$f":"IF(A266<='S1-Standard'!$C$7,('Growth-Model-1'!G265*EXP($AA$7)),0)","v":0},{"$f":"IF(A266<='S1-Standard'!$C$7,$AD$6*EXP($AD$7*('S1-Standard'!C$7-'Growth-Model-1'!A266)),0)","v":0},98.398056859804981,4.8591633017187642E-2,0,9.6134220875344365,0,{"$f":"M266/'S1-Standard'!$C$17","v":0},{"$error":"#N/A"},{"$error":"#N/A"},{"$f":"_xlfn.XLOOKUP(B266,FeedTables!$C$17:$T$17,FeedTables!$C$31:$T$31,,-1)","v":{"$error":"#N/A"}},{"$f":"_xlfn.XLOOKUP(Q266,FeedPrice[Feed],FeedPrice[Price per kg],\"Unknown\",0)*O266","v":{"$error":"#N/A"}},{"$error":"#N/A"},{"$f":"_xlfn.XLOOKUP(O266,LabourFromFeed[Feed Quantity (kg)],LabourFromFeed[No. Labour],\"Out of range\",-1)","v":{"$error":"#N/A"}},{"$f":"T266*OperatingCosts!$C$9","v":{"$error":"#N/A"}},{"$error":"#N/A"}]
[265,{"$f":"IF(A267<='S1-Standard'!$C$7, B266*EXP((LN((E266/100)+1))*1),)","v":0},{"$f":"_xlfn.XLOOKUP($B267,FeedTables!$C$42:$T$42,FeedTables!$C$44:$T$44,,-1)","v":{"$error":"#N/A"}},{"$f":"_xlfn.XLOOKUP($B267,FeedTables!$C$42:$T$42,FeedTables!$C$45:$T$45,,-1)","v":{"$error":"#N/A"}},{"$f":"_xlfn.XLOOKUP($B267,FeedTables!$C$42:$T$42,FeedTables!$C$46:$T$46,,-1)*_xlfn.XLOOKUP(N266,DensityMultiplier[Biomass kg/m3],DensityMultiplier[Multiplier],,-1)","v":{"$error":"#N/A"}},1926.6019431401946,{"$f":"IF(A267<='S1-Standard'!$C$7,('Growth-Model-1'!G266*EXP($AA$7)),0)","v":0},{"$f":"IF(A267<='S1-Standard'!$C$7,$AD$6*EXP($AD$7*('S1-Standard'!C$7-'Growth-Model-1'!A267)),0)","v":0},98.398056859804981,4.8591633017187642E-2,0,9.6134220875344365,0,{"$f":"M267/'S1-Standard'!$C$17","v":0},{"$error":"#N/A"},{"$error":"#N/A"},{"$f":"_xlfn.XLOOKUP(B267,FeedTables!$C$17:$T$17,FeedTables!$C$31:$T$31,,-1)","v":{"$error":"#N/A"}},{"$f":"_xlfn.XLOOKUP(Q267,FeedPrice[Feed],FeedPrice[Price per kg],\"Unknown\",0)*O267","v":{"$error":"#N/A"}},{"$error":"#N/A"},{"$f":"_xlfn.XLOOKUP(O267,LabourFromFeed[Feed Quantity (kg)],LabourFromFeed[No. Labour],\"Out of range\",-1)","v":{"$error":"#N/A"}},{"$f":"T267*OperatingCosts!$C$9","v":{"$error":"#N/A"}},{"$error":"#N/A"}]
[266,{"$f":"IF(A268<='S1-Standard'!$C$7, B267*EXP((LN((E267/100)+1))*1),)","v":0},{"$f":"_xlfn.XLOOKUP($B268,FeedTables!$C$42:$T$42,FeedTables!$C$44:$T$44,,-1)","v":{"$error":"#N/A"}},{"$f":"_xlfn.XLOOKUP($B268,FeedTables!$C$42:$T$42,FeedTables!$C$45:$T$45,,-1)","v":{"$error":"#N/A"}},{"$f":"_xlfn.XLOOKUP($B268,FeedTables!$C$42:$T$42,FeedTables!$C$46:$T$46,,-1)*_xlfn.XLOOKUP(N267,DensityMultiplier[Biomass kg/m3],DensityMultiplier[Multiplier],,-1)","v":{"$error":"#N/A"}},1926.6019431401946,{"$f":"IF(A268<='S1-Standard'!$C$7,('Growth-Model-1'!G267*EXP($AA$7)),0)","v":0},{"$f":"IF(A268<='S1-Standard'!$C$7,$AD$6*EXP($AD$7*('S1-Standard'!C$7-'Growth-Model-1'!A268)),0)","v":0},98.398056859804981,4.8591633017187642E-2,0,9.6134220875344365,0,{"$f":"M268/'S1-Standard'!$C$17","v":0},{"$error":"#N/A"},{"$error":"#N/A"},{"$f":"_xlfn.XLOOKUP(B268,FeedTables!$C$17:$T$17,FeedTables!$C$31:$T$31,,-1)","v":{"$error":"#N/A"}},{"$f":"_xlfn.XLOOKUP(Q268,FeedPrice[Feed],FeedPrice[Price per kg],\"Unknown\",0)*O268","v":{"$error":"#N/A"}},{"$error":"#N/A"},{"$f":"_xlfn.XLOOKUP(O268,LabourFromFeed[Feed Quantity (kg)],LabourFromFeed[No. Labour],\"Out of range\",-1)","v":{"$error":"#N/A"}},{"$f":"T268*OperatingCosts!$C$9","v":{"$error":"#N/A"}},{"$error":"#N/A"}]
[267,{"$f":"IF(A269<='S1-Standard'!$C$7, B268*EXP((LN((E268/100)+1))*1),)","v":0},{"$f":"_xlfn.XLOOKUP($B269,FeedTables!$C$42:$T$42,FeedTables!$C$44:$T$44,,-1)","v":{"$error":"#N/A"}},{"$f":"_xlfn.XLOOKUP($B269,FeedTables!$C$42:$T$42,FeedTables!$C$45:$T$45,,-1)","v":{"$error":"#N/A"}},{"$f":"_xlfn.XLOOKUP($B269,FeedTables!$C$42:$T$42,FeedTables!$C$46:$T$46,,-1)*_xlfn.XLOOKUP(N268,DensityMultiplier[Biomass kg/m3],DensityMultiplier[Multiplier],,-1)","v":{"$error":"#N/A"}},1926.6019431401946,{"$f":"IF(A269<='S1-Standard'!$C$7,('Growth-Model-1'!G268*EXP($AA$7)),0)","v":0},{"$f":"IF(A269<='S1-Standard'!$C$7,$AD$6*EXP($AD$7*('S1-Standard'!C$7-'Growth-Model-1'!A269)),0)","v":0},98.398056859804981,4.8591633017187642E-2,0,9.6134220875344365,0,{"$f":"M269/'S1-Standard'!$C$17","v":0},{"$error":"#N/A"},{"$error":"#N/A"},{"$f":"_xlfn.XLOOKUP(B269,FeedTables!$C$17:$T$17,FeedTables!$C$31:$T$31,,-1)","v":{"$error":"#N/A"}},{"$f":"_xlfn.XLOOKUP(Q269,FeedPrice[Feed],FeedPrice[Price per kg],\"Unknown\",0)*O269","v":{"$error":"#N/A"}},{"$error":"#N/A"},{"$f":"_xlfn.XLOOKUP(O269,LabourFromFeed[Feed Quantity (kg)],LabourFromFeed[No. Labour],\"Out of range\",-1)","v":{"$error":"#N/A"}},{"$f":"T269*OperatingCosts!$C$9","v":{"$error":"#N/A"}},{"$error":"#N/A"}]
[268,{"$f":"IF(A270<='S1-Standard'!$C$7, B269*EXP((LN((E269/100)+1))*1),)","v":0},{"$f":"_xlfn.XLOOKUP($B270,FeedTables!$C$42:$T$42,FeedTables!$C$44:$T$44,,-1)","v":{"$error":"#N/A"}},{"$f":"_xlfn.XLOOKUP($B270,FeedTables!$C$42:$T$42,FeedTables!$C$45:$T$45,,-1)","v":{"$error":"#N/A"}},{"$f":"_xlfn.XLOOKUP($B270,FeedTables!$C$42:$T$42,FeedTables!$C$46:$T$46,,-1)*_xlfn.XLOOKUP(N269,DensityMultiplier[Biomass kg/m3],DensityMultiplier[Multiplier],,-1)","v":{"$error":"#N/A"}},1926.6019431401946,{"$f":"IF(A270<='S1-Standard'!$C$7,('Growth-Model-1'!G269*EXP($AA$7)),0)","v":0},{"$f":"IF(A270<='S1-Standard'!$C$7,$AD$6*EXP($AD$7*('S1-Standard'!C$7-'Growth-Model-1'!A270)),0)","v":0},98.398056859804981,4.8591633017187642E-2,0,9.6134220875344365,0,{"$f":"M270/'S1-Standard'!$C$17","v":0},{"$error":"#N/A"},{"$error":"#N/A"},{"$f":"_xlfn.XLOOKUP(B270,FeedTables!$C$17:$T$17,FeedTables!$C$31:$T$31,,-1)","v":{"$error":"#N/A"}},{"$f":"_xlfn.XLOOKUP(Q270,FeedPrice[Feed],FeedPrice[Price per kg],\"Unknown\",0)*O270","v":{"$error":"#N/A"}},{"$error":"#N/A"},{"$f":"_xlfn.XLOOKUP(O270,LabourFromFeed[Feed Quantity (kg)],LabourFromFeed[No. Labour],\"Out of range\",-1)","v":{"$error":"#N/A"}},{"$f":"T270*OperatingCosts!$C$9","v":{"$error":"#N/A"}},{"$error":"#N/A"}]
[269,{"$f":"IF(A271<='S1-Standard'!$C$7, B270*EXP((LN((E270/100)+1))*1),)","v":0},{"$f":"_xlfn.XLOOKUP($B271,FeedTables!$C$42:$T$42,FeedTables!$C$44:$T$44,,-1)","v":{"$error":"#N/A"}},{"$f":"_xlfn.XLOOKUP($B271,FeedTables!$C$42:$T$42,FeedTables!$C$45:$T$45,,-1)","v":{"$error":"#N/A"}},{"$f":"_xlfn.XLOOKUP($B271,FeedTables!$C$42:$T$42,FeedTables!$C$46:$T$46,,-1)*_xlfn.XLOOKUP(N270,DensityMultiplier[Biomass kg/m3],DensityMultiplier[Multiplier],,-1)","v":{"$error":"#N/A"}},1926.6019431401946,{"$f":"IF(A271<='S1-Standard'!$C$7,('Growth-Model-1'!G270*EXP($AA$7)),0)","v":0},{"$f":"IF(A271<='S1-Standard'!$C$7,$AD$6*EXP($AD$7*('S1-Standard'!C$7-'Growth-Model-1'!A271)),0)","v":0},98.398056859804981,4.8591633017187642E-2,0,9.6134220875344365,0,{"$f":"M271/'S1-Standard'!$C$17","v":0},{"$error":"#N/A"},{"$error":"#N/A"},{"$f":"_xlfn.XLOOKUP(B271,FeedTables!$C$17:$T$17,FeedTables!$C$31:$T$31,,-1)","v":{"$error":"#N/A"}},{"$f":"_xlfn.XLOOKUP(Q271,FeedPrice[Feed],FeedPrice[Price per kg],\"Unknown\",0)*O271","v":{"$error":"#N/A"}},{"$error":"#N/A"},{"$f":"_xlfn.XLOOKUP(O271,LabourFromFeed[Feed Quantity (kg)],LabourFromFeed[No. Labour],\"Out of range\",-1)","v":{"$error":"#N/A"}},{"$f":"T271*OperatingCosts!$C$9","v":{"$error":"#N/A"}},{"$error":"#N/A"}]
[270,{"$f":"IF(A272<='S1-Standard'!$C$7, B271*EXP((LN((E271/100)+1))*1),)","v":0},{"$f":"_xlfn.XLOOKUP($B272,FeedTables!$C$42:$T$42,FeedTables!$C$44:$T$44,,-1)","v":{"$error":"#N/A"}},{"$f":"_xlfn.XLOOKUP($B272,FeedTables!$C$42:$T$42,FeedTables!$C$45:$T$45,,-1)","v":{"$error":"#N/A"}},{"$f":"_xlfn.XLOOKUP($B272,FeedTables!$C$42:$T$42,FeedTables!$C$46:$T$46,,-1)*_xlfn.XLOOKUP(N271,DensityMultiplier[Biomass kg/m3],DensityMultiplier[Multiplier],,-1)","v":{"$error":"#N/A"}},1926.6019431401946,{"$f":"IF(A272<='S1-Standard'!$C$7,('Growth-Model-1'!G271*EXP($AA$7)),0)","v":0},{"$f":"IF(A272<='S1-Standard'!$C$7,$AD$6*EXP($AD$7*('S1-Standard'!C$7-'Growth-Model-1'!A272)),0)","v":0},98.398056859804981,4.8591633017187642E-2,0,9.6134220875344365,0,{"$f":"M272/'S1-Standard'!$C$17","v":0},{"$error":"#N/A"},{"$error":"#N/A"},{"$f":"_xlfn.XLOOKUP(B272,FeedTables!$C$17:$T$17,FeedTables!$C$31:$T$31,,-1)","v":{"$error":"#N/A"}},{"$f":"_xlfn.XLOOKUP(Q272,FeedPrice[Feed],FeedPrice[Price per kg],\"Unknown\",0)*O272","v":{"$error":"#N/A"}},{"$error":"#N/A"},{"$f":"_xlfn.XLOOKUP(O272,LabourFromFeed[Feed Quantity (kg)],LabourFromFeed[No. Labour],\"Out of range\",-1)","v":{"$error":"#N/A"}},{"$f":"T272*OperatingCosts!$C$9","v":{"$error":"#N/A"}},{"$error":"#N/A"}]
[271,{"$f":"IF(A273<='S1-Standard'!$C$7, B272*EXP((LN((E272/100)+1))*1),)","v":0},{"$f":"_xlfn.XLOOKUP($B273,FeedTables!$C$42:$T$42,FeedTables!$C$44:$T$44,,-1)","v":{"$error":"#N/A"}},{"$f":"_xlfn.XLOOKUP($B273,FeedTables!$C$42:$T$42,FeedTables!$C$45:$T$45,,-1)","v":{"$error":"#N/A"}},{"$f":"_xlfn.XLOOKUP($B273,FeedTables!$C$42:$T$42,FeedTables!$C$46:$T$46,,-1)*_xlfn.XLOOKUP(N272,DensityMultiplier[Biomass kg/m3],DensityMultiplier[Multiplier],,-1)","v":{"$error":"#N/A"}},1926.6019431401946,{"$f":"IF(A273<='S1-Standard'!$C$7,('Growth-Model-1'!G272*EXP($AA$7)),0)","v":0},{"$f":"IF(A273<='S1-Standard'!$C$7,$AD$6*EXP($AD$7*('S1-Standard'!C$7-'Growth-Model-1'!A273)),0)","v":0},98.398056859804981,4.8591633017187642E-2,0,9.6134220875344365,0,{"$f":"M273/'S1-Standard'!$C$17","v":0},{"$error":"#N/A"},{"$error":"#N/A"},{"$f":"_xlfn.XLOOKUP(B273,FeedTables!$C$17:$T$17,FeedTables!$C$31:$T$31,,-1)","v":{"$error":"#N/A"}},{"$f":"_xlfn.XLOOKUP(Q273,FeedPrice[Feed],FeedPrice[Price per kg],\"Unknown\",0)*O273","v":{"$error":"#N/A"}},{"$error":"#N/A"},{"$f":"_xlfn.XLOOKUP(O273,LabourFromFeed[Feed Quantity (kg)],LabourFromFeed[No. Labour],\"Out of range\",-1)","v":{"$error":"#N/A"}},{"$f":"T273*OperatingCosts!$C$9","v":{"$error":"#N/A"}},{"$error":"#N/A"}]
[272,{"$f":"IF(A274<='S1-Standard'!$C$7, B273*EXP((LN((E273/100)+1))*1),)","v":0},{"$f":"_xlfn.XLOOKUP($B274,FeedTables!$C$42:$T$42,FeedTables!$C$44:$T$44,,-1)","v":{"$error":"#N/A"}},{"$f":"_xlfn.XLOOKUP($B274,FeedTables!$C$42:$T$42,FeedTables!$C$45:$T$45,,-1)","v":{"$error":"#N/A"}},{"$f":"_xlfn.XLOOKUP($B274,FeedTables!$C$42:$T$42,FeedTables!$C$46:$T$46,,-1)*_xlfn.XLOOKUP(N273,DensityMultiplier[Biomass kg/m3],DensityMultiplier[Multiplier],,-1)","v":{"$error":"#N/A"}},1926.6019431401946,{"$f":"IF(A274<='S1-Standard'!$C$7,('Growth-Model-1'!G273*EXP($AA$7)),0)","v":0},{"$f":"IF(A274<='S1-Standard'!$C$7,$AD$6*EXP($AD$7*('S1-Standard'!C$7-'Growth-Model-1'!A274)),0)","v":0},98.398056859804981,4.8591633017187642E-2,0,9.6134220875344365,0,{"$f":"M274/'S1-Standard'!$C$17","v":0},{"$error":"#N/A"},{"$error":"#N/A"},{"$f":"_xlfn.XLOOKUP(B274,FeedTables!$C$17:$T$17,FeedTables!$C$31:$T$31,,-1)","v":{"$error":"#N/A"}},{"$f":"_xlfn.XLOOKUP(Q274,FeedPrice[Feed],FeedPrice[Price per kg],\"Unknown\",0)*O274","v":{"$error":"#N/A"}},{"$error":"#N/A"},{"$f":"_xlfn.XLOOKUP(O274,LabourFromFeed[Feed Quantity (kg)],LabourFromFeed[No. Labour],\"Out of range\",-1)","v":{"$error":"#N/A"}},{"$f":"T274*OperatingCosts!$C$9","v":{"$error":"#N/A"}},{"$error":"#N/A"}]
[273,{"$f":"IF(A275<='S1-Standard'!$C$7, B274*EXP((LN((E274/100)+1))*1),)","v":0},{"$f":"_xlfn.XLOOKUP($B275,FeedTables!$C$42:$T$42,FeedTables!$C$44:$T$44,,-1)","v":{"$error":"#N/A"}},{"$f":"_xlfn.XLOOKUP($B275,FeedTables!$C$42:$T$42,FeedTables!$C$45:$T$45,,-1)","v":{"$error":"#N/A"}},{"$f":"_xlfn.XLOOKUP($B275,FeedTables!$C$42:$T$42,FeedTables!$C$46:$T$46,,-1)*_xlfn.XLOOKUP(N274,DensityMultiplier[Biomass kg/m3],DensityMultiplier[Multiplier],,-1)","v":{"$error":"#N/A"}},1926.6019431401946,{"$f":"IF(A275<='S1-Standard'!$C$7,('Growth-Model-1'!G274*EXP($AA$7)),0)","v":0},{"$f":"IF(A275<='S1-Standard'!$C$7,$AD$6*EXP($AD$7*('S1-Standard'!C$7-'Growth-Model-1'!A275)),0)","v":0},98.398056859804981,4.8591633017187642E-2,0,9.6134220875344365,0,{"$f":"M275/'S1-Standard'!$C$17","v":0},{"$error":"#N/A"},{"$error":"#N/A"},{"$f":"_xlfn.XLOOKUP(B275,FeedTables!$C$17:$T$17,FeedTables!$C$31:$T$31,,-1)","v":{"$error":"#N/A"}},{"$f":"_xlfn.XLOOKUP(Q275,FeedPrice[Feed],FeedPrice[Price per kg],\"Unknown\",0)*O275","v":{"$error":"#N/A"}},{"$error":"#N/A"},{"$f":"_xlfn.XLOOKUP(O275,LabourFromFeed[Feed Quantity (kg)],LabourFromFeed[No. Labour],\"Out of range\",-1)","v":{"$error":"#N/A"}},{"$f":"T275*OperatingCosts!$C$9","v":{"$error":"#N/A"}},{"$error":"#N/A"}]
[274,{"$f":"IF(A276<='S1-Standard'!$C$7, B275*EXP((LN((E275/100)+1))*1),)","v":0},{"$f":"_xlfn.XLOOKUP($B276,FeedTables!$C$42:$T$42,FeedTables!$C$44:$T$44,,-1)","v":{"$error":"#N/A"}},{"$f":"_xlfn.XLOOKUP($B276,FeedTables!$C$42:$T$42,FeedTables!$C$45:$T$45,,-1)","v":{"$error":"#N/A"}},{"$f":"_xlfn.XLOOKUP($B276,FeedTables!$C$42:$T$42,FeedTables!$C$46:$T$46,,-1)*_xlfn.XLOOKUP(N275,DensityMultiplier[Biomass kg/m3],DensityMultiplier[Multiplier],,-1)","v":{"$error":"#N/A"}},1926.6019431401946,{"$f":"IF(A276<='S1-Standard'!$C$7,('Growth-Model-1'!G275*EXP($AA$7)),0)","v":0},{"$f":"IF(A276<='S1-Standard'!$C$7,$AD$6*EXP($AD$7*('S1-Standard'!C$7-'Growth-Model-1'!A276)),0)","v":0},98.398056859804981,4.8591633017187642E-2,0,9.6134220875344365,0,{"$f":"M276/'S1-Standard'!$C$17","v":0},{"$error":"#N/A"},{"$error":"#N/A"},{"$f":"_xlfn.XLOOKUP(B276,FeedTables!$C$17:$T$17,FeedTables!$C$31:$T$31,,-1)","v":{"$error":"#N/A"}},{"$f":"_xlfn.XLOOKUP(Q276,FeedPrice[Feed],FeedPrice[Price per kg],\"Unknown\",0)*O276","v":{"$error":"#N/A"}},{"$error":"#N/A"},{"$f":"_xlfn.XLOOKUP(O276,LabourFromFeed[Feed Quantity (kg)],LabourFromFeed[No. Labour],\"Out of range\",-1)","v":{"$error":"#N/A"}},{"$f":"T276*OperatingCosts!$C$9","v":{"$error":"#N/A"}},{"$error":"#N/A"}]
[275,{"$f":"IF(A277<='S1-Standard'!$C$7, B276*EXP((LN((E276/100)+1))*1),)","v":0},{"$f":"_xlfn.XLOOKUP($B277,FeedTables!$C$42:$T$42,FeedTables!$C$44:$T$44,,-1)","v":{"$error":"#N/A"}},{"$f":"_xlfn.XLOOKUP($B277,FeedTables!$C$42:$T$42,FeedTables!$C$45:$T$45,,-1)","v":{"$error":"#N/A"}},{"$f":"_xlfn.XLOOKUP($B277,FeedTables!$C$42:$T$42,FeedTables!$C$46:$T$46,,-1)*_xlfn.XLOOKUP(N276,DensityMultiplier[Biomass kg/m3],DensityMultiplier[Multiplier],,-1)","v":{"$error":"#N/A"}},1926.6019431401946,{"$f":"IF(A277<='S1-Standard'!$C$7,('Growth-Model-1'!G276*EXP($AA$7)),0)","v":0},{"$f":"IF(A277<='S1-Standard'!$C$7,$AD$6*EXP($AD$7*('S1-Standard'!C$7-'Growth-Model-1'!A277)),0)","v":0},98.398056859804981,4.8591633017187642E-2,0,9.6134220875344365,0,{"$f":"M277/'S1-Standard'!$C$17","v":0},{"$error":"#N/A"},{"$error":"#N/A"},{"$f":"_xlfn.XLOOKUP(B277,FeedTables!$C$17:$T$17,FeedTables!$C$31:$T$31,,-1)","v":{"$error":"#N/A"}},{"$f":"_xlfn.XLOOKUP(Q277,FeedPrice[Feed],FeedPrice[Price per kg],\"Unknown\",0)*O277","v":{"$error":"#N/A"}},{"$error":"#N/A"},{"$f":"_xlfn.XLOOKUP(O277,LabourFromFeed[Feed Quantity (kg)],LabourFromFeed[No. Labour],\"Out of range\",-1)","v":{"$error":"#N/A"}},{"$f":"T277*OperatingCosts!$C$9","v":{"$error":"#N/A"}},{"$error":"#N/A"}]
[276,{"$f":"IF(A278<='S1-Standard'!$C$7, B277*EXP((LN((E277/100)+1))*1),)","v":0},{"$f":"_xlfn.XLOOKUP($B278,FeedTables!$C$42:$T$42,FeedTables!$C$44:$T$44,,-1)","v":{"$error":"#N/A"}},{"$f":"_xlfn.XLOOKUP($B278,FeedTables!$C$42:$T$42,FeedTables!$C$45:$T$45,,-1)","v":{"$error":"#N/A"}},{"$f":"_xlfn.XLOOKUP($B278,FeedTables!$C$42:$T$42,FeedTables!$C$46:$T$46,,-1)*_xlfn.XLOOKUP(N277,DensityMultiplier[Biomass kg/m3],DensityMultiplier[Multiplier],,-1)","v":{"$error":"#N/A"}},1926.6019431401946,{"$f":"IF(A278<='S1-Standard'!$C$7,('Growth-Model-1'!G277*EXP($AA$7)),0)","v":0},{"$f":"IF(A278<='S1-Standard'!$C$7,$AD$6*EXP($AD$7*('S1-Standard'!C$7-'Growth-Model-1'!A278)),0)","v":0},98.398056859804981,4.8591633017187642E-2,0,9.6134220875344365,0,{"$f":"M278/'S1-Standard'!$C$17","v":0},{"$error":"#N/A"},{"$error":"#N/A"},{"$f":"_xlfn.XLOOKUP(B278,FeedTables!$C$17:$T$17,FeedTables!$C$31:$T$31,,-1)","v":{"$error":"#N/A"}},{"$f":"_xlfn.XLOOKUP(Q278,FeedPrice[Feed],FeedPrice[Price per kg],\"Unknown\",0)*O278","v":{"$error":"#N/A"}},{"$error":"#N/A"},{"$f":"_xlfn.XLOOKUP(O278,LabourFromFeed[Feed Quantity (kg)],LabourFromFeed[No. Labour],\"Out of range\",-1)","v":{"$error":"#N/A"}},{"$f":"T278*OperatingCosts!$C$9","v":{"$error":"#N/A"}},{"$error":"#N/A"}]
[277,{"$f":"IF(A279<='S1-Standard'!$C$7, B278*EXP((LN((E278/100)+1))*1),)","v":0},{"$f":"_xlfn.XLOOKUP($B279,FeedTables!$C$42:$T$42,FeedTables!$C$44:$T$44,,-1)","v":{"$error":"#N/A"}},{"$f":"_xlfn.XLOOKUP($B279,FeedTables!$C$42:$T$42,FeedTables!$C$45:$T$45,,-1)","v":{"$error":"#N/A"}},{"$f":"_xlfn.XLOOKUP($B279,FeedTables!$C$42:$T$42,FeedTables!$C$46:$T$46,,-1)*_xlfn.XLOOKUP(N278,DensityMultiplier[Biomass kg/m3],DensityMultiplier[Multiplier],,-1)","v":{"$error":"#N/A"}},1926.6019431401946,{"$f":"IF(A279<='S1-Standard'!$C$7,('Growth-Model-1'!G278*EXP($AA$7)),0)","v":0},{"$f":"IF(A279<='S1-Standard'!$C$7,$AD$6*EXP($AD$7*('S1-Standard'!C$7-'Growth-Model-1'!A279)),0)","v":0},98.398056859804981,4.8591633017187642E-2,0,9.6134220875344365,0,{"$f":"M279/'S1-Standard'!$C$17","v":0},{"$error":"#N/A"},{"$error":"#N/A"},{"$f":"_xlfn.XLOOKUP(B279,FeedTables!$C$17:$T$17,FeedTables!$C$31:$T$31,,-1)","v":{"$error":"#N/A"}},{"$f":"_xlfn.XLOOKUP(Q279,FeedPrice[Feed],FeedPrice[Price per kg],\"Unknown\",0)*O279","v":{"$error":"#N/A"}},{"$error":"#N/A"},{"$f":"_xlfn.XLOOKUP(O279,LabourFromFeed[Feed Quantity (kg)],LabourFromFeed[No. Labour],\"Out of range\",-1)","v":{"$error":"#N/A"}},{"$f":"T279*OperatingCosts!$C$9","v":{"$error":"#N/A"}},{"$error":"#N/A"}]
[278,{"$f":"IF(A280<='S1-Standard'!$C$7, B279*EXP((LN((E279/100)+1))*1),)","v":0},{"$f":"_xlfn.XLOOKUP($B280,FeedTables!$C$42:$T$42,FeedTables!$C$44:$T$44,,-1)","v":{"$error":"#N/A"}},{"$f":"_xlfn.XLOOKUP($B280,FeedTables!$C$42:$T$42,FeedTables!$C$45:$T$45,,-1)","v":{"$error":"#N/A"}},{"$f":"_xlfn.XLOOKUP($B280,FeedTables!$C$42:$T$42,FeedTables!$C$46:$T$46,,-1)*_xlfn.XLOOKUP(N279,DensityMultiplier[Biomass kg/m3],DensityMultiplier[Multiplier],,-1)","v":{"$error":"#N/A"}},1926.6019431401946,{"$f":"IF(A280<='S1-Standard'!$C$7,('Growth-Model-1'!G279*EXP($AA$7)),0)","v":0},{"$f":"IF(A280<='S1-Standard'!$C$7,$AD$6*EXP($AD$7*('S1-Standard'!C$7-'Growth-Model-1'!A280)),0)","v":0},98.398056859804981,4.8591633017187642E-2,0,9.6134220875344365,0,{"$f":"M280/'S1-Standard'!$C$17","v":0},{"$error":"#N/A"},{"$error":"#N/A"},{"$f":"_xlfn.XLOOKUP(B280,FeedTables!$C$17:$T$17,FeedTables!$C$31:$T$31,,-1)","v":{"$error":"#N/A"}},{"$f":"_xlfn.XLOOKUP(Q280,FeedPrice[Feed],FeedPrice[Price per kg],\"Unknown\",0)*O280","v":{"$error":"#N/A"}},{"$error":"#N/A"},{"$f":"_xlfn.XLOOKUP(O280,LabourFromFeed[Feed Quantity (kg)],LabourFromFeed[No. Labour],\"Out of range\",-1)","v":{"$error":"#N/A"}},{"$f":"T280*OperatingCosts!$C$9","v":{"$error":"#N/A"}},{"$error":"#N/A"}]
[279,{"$f":"IF(A281<='S1-Standard'!$C$7, B280*EXP((LN((E280/100)+1))*1),)","v":0},{"$f":"_xlfn.XLOOKUP($B281,FeedTables!$C$42:$T$42,FeedTables!$C$44:$T$44,,-1)","v":{"$error":"#N/A"}},{"$f":"_xlfn.XLOOKUP($B281,FeedTables!$C$42:$T$42,FeedTables!$C$45:$T$45,,-1)","v":{"$error":"#N/A"}},{"$f":"_xlfn.XLOOKUP($B281,FeedTables!$C$42:$T$42,FeedTables!$C$46:$T$46,,-1)*_xlfn.XLOOKUP(N280,DensityMultiplier[Biomass kg/m3],DensityMultiplier[Multiplier],,-1)","v":{"$error":"#N/A"}},1926.6019431401946,{"$f":"IF(A281<='S1-Standard'!$C$7,('Growth-Model-1'!G280*EXP($AA$7)),0)","v":0},{"$f":"IF(A281<='S1-Standard'!$C$7,$AD$6*EXP($AD$7*('S1-Standard'!C$7-'Growth-Model-1'!A281)),0)","v":0},98.398056859804981,4.8591633017187642E-2,0,9.6134220875344365,0,{"$f":"M281/'S1-Standard'!$C$17","v":0},{"$error":"#N/A"},{"$error":"#N/A"},{"$f":"_xlfn.XLOOKUP(B281,FeedTables!$C$17:$T$17,FeedTables!$C$31:$T$31,,-1)","v":{"$error":"#N/A"}},{"$f":"_xlfn.XLOOKUP(Q281,FeedPrice[Feed],FeedPrice[Price per kg],\"Unknown\",0)*O281","v":{"$error":"#N/A"}},{"$error":"#N/A"},{"$f":"_xlfn.XLOOKUP(O281,LabourFromFeed[Feed Quantity (kg)],LabourFromFeed[No. Labour],\"Out of range\",-1)","v":{"$error":"#N/A"}},{"$f":"T281*OperatingCosts!$C$9","v":{"$error":"#N/A"}},{"$error":"#N/A"}]
[280,{"$f":"IF(A282<='S1-Standard'!$C$7, B281*EXP((LN((E281/100)+1))*1),)","v":0},{"$f":"_xlfn.XLOOKUP($B282,FeedTables!$C$42:$T$42,FeedTables!$C$44:$T$44,,-1)","v":{"$error":"#N/A"}},{"$f":"_xlfn.XLOOKUP($B282,FeedTables!$C$42:$T$42,FeedTables!$C$45:$T$45,,-1)","v":{"$error":"#N/A"}},{"$f":"_xlfn.XLOOKUP($B282,FeedTables!$C$42:$T$42,FeedTables!$C$46:$T$46,,-1)*_xlfn.XLOOKUP(N281,DensityMultiplier[Biomass kg/m3],DensityMultiplier[Multiplier],,-1)","v":{"$error":"#N/A"}},1926.6019431401946,{"$f":"IF(A282<='S1-Standard'!$C$7,('Growth-Model-1'!G281*EXP($AA$7)),0)","v":0},{"$f":"IF(A282<='S1-Standard'!$C$7,$AD$6*EXP($AD$7*('S1-Standard'!C$7-'Growth-Model-1'!A282)),0)","v":0},98.398056859804981,4.8591633017187642E-2,0,9.6134220875344365,0,{"$f":"M282/'S1-Standard'!$C$17","v":0},{"$error":"#N/A"},{"$error":"#N/A"},{"$f":"_xlfn.XLOOKUP(B282,FeedTables!$C$17:$T$17,FeedTables!$C$31:$T$31,,-1)","v":{"$error":"#N/A"}},{"$f":"_xlfn.XLOOKUP(Q282,FeedPrice[Feed],FeedPrice[Price per kg],\"Unknown\",0)*O282","v":{"$error":"#N/A"}},{"$error":"#N/A"},{"$f":"_xlfn.XLOOKUP(O282,LabourFromFeed[Feed Quantity (kg)],LabourFromFeed[No. Labour],\"Out of range\",-1)","v":{"$error":"#N/A"}},{"$f":"T282*OperatingCosts!$C$9","v":{"$error":"#N/A"}},{"$error":"#N/A"}]
[281,{"$f":"IF(A283<='S1-Standard'!$C$7, B282*EXP((LN((E282/100)+1))*1),)","v":0},{"$f":"_xlfn.XLOOKUP($B283,FeedTables!$C$42:$T$42,FeedTables!$C$44:$T$44,,-1)","v":{"$error":"#N/A"}},{"$f":"_xlfn.XLOOKUP($B283,FeedTables!$C$42:$T$42,FeedTables!$C$45:$T$45,,-1)","v":{"$error":"#N/A"}},{"$f":"_xlfn.XLOOKUP($B283,FeedTables!$C$42:$T$42,FeedTables!$C$46:$T$46,,-1)*_xlfn.XLOOKUP(N282,DensityMultiplier[Biomass kg/m3],DensityMultiplier[Multiplier],,-1)","v":{"$error":"#N/A"}},1926.6019431401946,{"$f":"IF(A283<='S1-Standard'!$C$7,('Growth-Model-1'!G282*EXP($AA$7)),0)","v":0},{"$f":"IF(A283<='S1-Standard'!$C$7,$AD$6*EXP($AD$7*('S1-Standard'!C$7-'Growth-Model-1'!A283)),0)","v":0},98.398056859804981,4.8591633017187642E-2,0,9.6134220875344365,0,{"$f":"M283/'S1-Standard'!$C$17","v":0},{"$error":"#N/A"},{"$error":"#N/A"},{"$f":"_xlfn.XLOOKUP(B283,FeedTables!$C$17:$T$17,FeedTables!$C$31:$T$31,,-1)","v":{"$error":"#N/A"}},{"$f":"_xlfn.XLOOKUP(Q283,FeedPrice[Feed],FeedPrice[Price per kg],\"Unknown\",0)*O283","v":{"$error":"#N/A"}},{"$error":"#N/A"},{"$f":"_xlfn.XLOOKUP(O283,LabourFromFeed[Feed Quantity (kg)],LabourFromFeed[No. Labour],\"Out of range\",-1)","v":{"$error":"#N/A"}},{"$f":"T283*OperatingCosts!$C$9","v":{"$error":"#N/A"}},{"$error":"#N/A"}]
[282,{"$f":"IF(A284<='S1-Standard'!$C$7, B283*EXP((LN((E283/100)+1))*1),)","v":0},{"$f":"_xlfn.XLOOKUP($B284,FeedTables!$C$42:$T$42,FeedTables!$C$44:$T$44,,-1)","v":{"$error":"#N/A"}},{"$f":"_xlfn.XLOOKUP($B284,FeedTables!$C$42:$T$42,FeedTables!$C$45:$T$45,,-1)","v":{"$error":"#N/A"}},{"$f":"_xlfn.XLOOKUP($B284,FeedTables!$C$42:$T$42,FeedTables!$C$46:$T$46,,-1)*_xlfn.XLOOKUP(N283,DensityMultiplier[Biomass kg/m3],DensityMultiplier[Multiplier],,-1)","v":{"$error":"#N/A"}},1926.6019431401946,{"$f":"IF(A284<='S1-Standard'!$C$7,('Growth-Model-1'!G283*EXP($AA$7)),0)","v":0},{"$f":"IF(A284<='S1-Standard'!$C$7,$AD$6*EXP($AD$7*('S1-Standard'!C$7-'Growth-Model-1'!A284)),0)","v":0},98.398056859804981,4.8591633017187642E-2,0,9.6134220875344365,0,{"$f":"M284/'S1-Standard'!$C$17","v":0},{"$error":"#N/A"},{"$error":"#N/A"},{"$f":"_xlfn.XLOOKUP(B284,FeedTables!$C$17:$T$17,FeedTables!$C$31:$T$31,,-1)","v":{"$error":"#N/A"}},{"$f":"_xlfn.XLOOKUP(Q284,FeedPrice[Feed],FeedPrice[Price per kg],\"Unknown\",0)*O284","v":{"$error":"#N/A"}},{"$error":"#N/A"},{"$f":"_xlfn.XLOOKUP(O284,LabourFromFeed[Feed Quantity (kg)],LabourFromFeed[No. Labour],\"Out of range\",-1)","v":{"$error":"#N/A"}},{"$f":"T284*OperatingCosts!$C$9","v":{"$error":"#N/A"}},{"$error":"#N/A"}]
[283,{"$f":"IF(A285<='S1-Standard'!$C$7, B284*EXP((LN((E284/100)+1))*1),)","v":0},{"$f":"_xlfn.XLOOKUP($B285,FeedTables!$C$42:$T$42,FeedTables!$C$44:$T$44,,-1)","v":{"$error":"#N/A"}},{"$f":"_xlfn.XLOOKUP($B285,FeedTables!$C$42:$T$42,FeedTables!$C$45:$T$45,,-1)","v":{"$error":"#N/A"}},{"$f":"_xlfn.XLOOKUP($B285,FeedTables!$C$42:$T$42,FeedTables!$C$46:$T$46,,-1)*_xlfn.XLOOKUP(N284,DensityMultiplier[Biomass kg/m3],DensityMultiplier[Multiplier],,-1)","v":{"$error":"#N/A"}},1926.6019431401946,{"$f":"IF(A285<='S1-Standard'!$C$7,('Growth-Model-1'!G284*EXP($AA$7)),0)","v":0},{"$f":"IF(A285<='S1-Standard'!$C$7,$AD$6*EXP($AD$7*('S1-Standard'!C$7-'Growth-Model-1'!A285)),0)","v":0},98.398056859804981,4.8591633017187642E-2,0,9.6134220875344365,0,{"$f":"M285/'S1-Standard'!$C$17","v":0},{"$error":"#N/A"},{"$error":"#N/A"},{"$f":"_xlfn.XLOOKUP(B285,FeedTables!$C$17:$T$17,FeedTables!$C$31:$T$31,,-1)","v":{"$error":"#N/A"}},{"$f":"_xlfn.XLOOKUP(Q285,FeedPrice[Feed],FeedPrice[Price per kg],\"Unknown\",0)*O285","v":{"$error":"#N/A"}},{"$error":"#N/A"},{"$f":"_xlfn.XLOOKUP(O285,LabourFromFeed[Feed Quantity (kg)],LabourFromFeed[No. Labour],\"Out of range\",-1)","v":{"$error":"#N/A"}},{"$f":"T285*OperatingCosts!$C$9","v":{"$error":"#N/A"}},{"$error":"#N/A"}]
[284,{"$f":"IF(A286<='S1-Standard'!$C$7, B285*EXP((LN((E285/100)+1))*1),)","v":0},{"$f":"_xlfn.XLOOKUP($B286,FeedTables!$C$42:$T$42,FeedTables!$C$44:$T$44,,-1)","v":{"$error":"#N/A"}},{"$f":"_xlfn.XLOOKUP($B286,FeedTables!$C$42:$T$42,FeedTables!$C$45:$T$45,,-1)","v":{"$error":"#N/A"}},{"$f":"_xlfn.XLOOKUP($B286,FeedTables!$C$42:$T$42,FeedTables!$C$46:$T$46,,-1)*_xlfn.XLOOKUP(N285,DensityMultiplier[Biomass kg/m3],DensityMultiplier[Multiplier],,-1)","v":{"$error":"#N/A"}},1926.6019431401946,{"$f":"IF(A286<='S1-Standard'!$C$7,('Growth-Model-1'!G285*EXP($AA$7)),0)","v":0},{"$f":"IF(A286<='S1-Standard'!$C$7,$AD$6*EXP($AD$7*('S1-Standard'!C$7-'Growth-Model-1'!A286)),0)","v":0},98.398056859804981,4.8591633017187642E-2,0,9.6134220875344365,0,{"$f":"M286/'S1-Standard'!$C$17","v":0},{"$error":"#N/A"},{"$error":"#N/A"},{"$f":"_xlfn.XLOOKUP(B286,FeedTables!$C$17:$T$17,FeedTables!$C$31:$T$31,,-1)","v":{"$error":"#N/A"}},{"$f":"_xlfn.XLOOKUP(Q286,FeedPrice[Feed],FeedPrice[Price per kg],\"Unknown\",0)*O286","v":{"$error":"#N/A"}},{"$error":"#N/A"},{"$f":"_xlfn.XLOOKUP(O286,LabourFromFeed[Feed Quantity (kg)],LabourFromFeed[No. Labour],\"Out of range\",-1)","v":{"$error":"#N/A"}},{"$f":"T286*OperatingCosts!$C$9","v":{"$error":"#N/A"}},{"$error":"#N/A"}]
[285,{"$f":"IF(A287<='S1-Standard'!$C$7, B286*EXP((LN((E286/100)+1))*1),)","v":0},{"$f":"_xlfn.XLOOKUP($B287,FeedTables!$C$42:$T$42,FeedTables!$C$44:$T$44,,-1)","v":{"$error":"#N/A"}},{"$f":"_xlfn.XLOOKUP($B287,FeedTables!$C$42:$T$42,FeedTables!$C$45:$T$45,,-1)","v":{"$error":"#N/A"}},{"$f":"_xlfn.XLOOKUP($B287,FeedTables!$C$42:$T$42,FeedTables!$C$46:$T$46,,-1)*_xlfn.XLOOKUP(N286,DensityMultiplier[Biomass kg/m3],DensityMultiplier[Multiplier],,-1)","v":{"$error":"#N/A"}},1926.6019431401946,{"$f":"IF(A287<='S1-Standard'!$C$7,('Growth-Model-1'!G286*EXP($AA$7)),0)","v":0},{"$f":"IF(A287<='S1-Standard'!$C$7,$AD$6*EXP($AD$7*('S1-Standard'!C$7-'Growth-Model-1'!A287)),0)","v":0},98.398056859804981,4.8591633017187642E-2,0,9.6134220875344365,0,{"$f":"M287/'S1-Standard'!$C$17","v":0},{"$error":"#N/A"},{"$error":"#N/A"},{"$f":"_xlfn.XLOOKUP(B287,FeedTables!$C$17:$T$17,FeedTables!$C$31:$T$31,,-1)","v":{"$error":"#N/A"}},{"$f":"_xlfn.XLOOKUP(Q287,FeedPrice[Feed],FeedPrice[Price per kg],\"Unknown\",0)*O287","v":{"$error":"#N/A"}},{"$error":"#N/A"},{"$f":"_xlfn.XLOOKUP(O287,LabourFromFeed[Feed Quantity (kg)],LabourFromFeed[No. Labour],\"Out of range\",-1)","v":{"$error":"#N/A"}},{"$f":"T287*OperatingCosts!$C$9","v":{"$error":"#N/A"}},{"$error":"#N/A"}]
[286,{"$f":"IF(A288<='S1-Standard'!$C$7, B287*EXP((LN((E287/100)+1))*1),)","v":0},{"$f":"_xlfn.XLOOKUP($B288,FeedTables!$C$42:$T$42,FeedTables!$C$44:$T$44,,-1)","v":{"$error":"#N/A"}},{"$f":"_xlfn.XLOOKUP($B288,FeedTables!$C$42:$T$42,FeedTables!$C$45:$T$45,,-1)","v":{"$error":"#N/A"}},{"$f":"_xlfn.XLOOKUP($B288,FeedTables!$C$42:$T$42,FeedTables!$C$46:$T$46,,-1)*_xlfn.XLOOKUP(N287,DensityMultiplier[Biomass kg/m3],DensityMultiplier[Multiplier],,-1)","v":{"$error":"#N/A"}},1926.6019431401946,{"$f":"IF(A288<='S1-Standard'!$C$7,('Growth-Model-1'!G287*EXP($AA$7)),0)","v":0},{"$f":"IF(A288<='S1-Standard'!$C$7,$AD$6*EXP($AD$7*('S1-Standard'!C$7-'Growth-Model-1'!A288)),0)","v":0},98.398056859804981,4.8591633017187642E-2,0,9.6134220875344365,0,{"$f":"M288/'S1-Standard'!$C$17","v":0},{"$error":"#N/A"},{"$error":"#N/A"},{"$f":"_xlfn.XLOOKUP(B288,FeedTables!$C$17:$T$17,FeedTables!$C$31:$T$31,,-1)","v":{"$error":"#N/A"}},{"$f":"_xlfn.XLOOKUP(Q288,FeedPrice[Feed],FeedPrice[Price per kg],\"Unknown\",0)*O288","v":{"$error":"#N/A"}},{"$error":"#N/A"},{"$f":"_xlfn.XLOOKUP(O288,LabourFromFeed[Feed Quantity (kg)],LabourFromFeed[No. Labour],\"Out of range\",-1)","v":{"$error":"#N/A"}},{"$f":"T288*OperatingCosts!$C$9","v":{"$error":"#N/A"}},{"$error":"#N/A"}]
[287,{"$f":"IF(A289<='S1-Standard'!$C$7, B288*EXP((LN((E288/100)+1))*1),)","v":0},{"$f":"_xlfn.XLOOKUP($B289,FeedTables!$C$42:$T$42,FeedTables!$C$44:$T$44,,-1)","v":{"$error":"#N/A"}},{"$f":"_xlfn.XLOOKUP($B289,FeedTables!$C$42:$T$42,FeedTables!$C$45:$T$45,,-1)","v":{"$error":"#N/A"}},{"$f":"_xlfn.XLOOKUP($B289,FeedTables!$C$42:$T$42,FeedTables!$C$46:$T$46,,-1)*_xlfn.XLOOKUP(N288,DensityMultiplier[Biomass kg/m3],DensityMultiplier[Multiplier],,-1)","v":{"$error":"#N/A"}},1926.6019431401946,{"$f":"IF(A289<='S1-Standard'!$C$7,('Growth-Model-1'!G288*EXP($AA$7)),0)","v":0},{"$f":"IF(A289<='S1-Standard'!$C$7,$AD$6*EXP($AD$7*('S1-Standard'!C$7-'Growth-Model-1'!A289)),0)","v":0},98.398056859804981,4.8591633017187642E-2,0,9.6134220875344365,0,{"$f":"M289/'S1-Standard'!$C$17","v":0},{"$error":"#N/A"},{"$error":"#N/A"},{"$f":"_xlfn.XLOOKUP(B289,FeedTables!$C$17:$T$17,FeedTables!$C$31:$T$31,,-1)","v":{"$error":"#N/A"}},{"$f":"_xlfn.XLOOKUP(Q289,FeedPrice[Feed],FeedPrice[Price per kg],\"Unknown\",0)*O289","v":{"$error":"#N/A"}},{"$error":"#N/A"},{"$f":"_xlfn.XLOOKUP(O289,LabourFromFeed[Feed Quantity (kg)],LabourFromFeed[No. Labour],\"Out of range\",-1)","v":{"$error":"#N/A"}},{"$f":"T289*OperatingCosts!$C$9","v":{"$error":"#N/A"}},{"$error":"#N/A"}]
[288,{"$f":"IF(A290<='S1-Standard'!$C$7, B289*EXP((LN((E289/100)+1))*1),)","v":0},{"$f":"_xlfn.XLOOKUP($B290,FeedTables!$C$42:$T$42,FeedTables!$C$44:$T$44,,-1)","v":{"$error":"#N/A"}},{"$f":"_xlfn.XLOOKUP($B290,FeedTables!$C$42:$T$42,FeedTables!$C$45:$T$45,,-1)","v":{"$error":"#N/A"}},{"$f":"_xlfn.XLOOKUP($B290,FeedTables!$C$42:$T$42,FeedTables!$C$46:$T$46,,-1)*_xlfn.XLOOKUP(N289,DensityMultiplier[Biomass kg/m3],DensityMultiplier[Multiplier],,-1)","v":{"$error":"#N/A"}},1926.6019431401946,{"$f":"IF(A290<='S1-Standard'!$C$7,('Growth-Model-1'!G289*EXP($AA$7)),0)","v":0},{"$f":"IF(A290<='S1-Standard'!$C$7,$AD$6*EXP($AD$7*('S1-Standard'!C$7-'Growth-Model-1'!A290)),0)","v":0},98.398056859804981,4.8591633017187642E-2,0,9.6134220875344365,0,{"$f":"M290/'S1-Standard'!$C$17","v":0},{"$error":"#N/A"},{"$error":"#N/A"},{"$f":"_xlfn.XLOOKUP(B290,FeedTables!$C$17:$T$17,FeedTables!$C$31:$T$31,,-1)","v":{"$error":"#N/A"}},{"$f":"_xlfn.XLOOKUP(Q290,FeedPrice[Feed],FeedPrice[Price per kg],\"Unknown\",0)*O290","v":{"$error":"#N/A"}},{"$error":"#N/A"},{"$f":"_xlfn.XLOOKUP(O290,LabourFromFeed[Feed Quantity (kg)],LabourFromFeed[No. Labour],\"Out of range\",-1)","v":{"$error":"#N/A"}},{"$f":"T290*OperatingCosts!$C$9","v":{"$error":"#N/A"}},{"$error":"#N/A"}]
[289,{"$f":"IF(A291<='S1-Standard'!$C$7, B290*EXP((LN((E290/100)+1))*1),)","v":0},{"$f":"_xlfn.XLOOKUP($B291,FeedTables!$C$42:$T$42,FeedTables!$C$44:$T$44,,-1)","v":{"$error":"#N/A"}},{"$f":"_xlfn.XLOOKUP($B291,FeedTables!$C$42:$T$42,FeedTables!$C$45:$T$45,,-1)","v":{"$error":"#N/A"}},{"$f":"_xlfn.XLOOKUP($B291,FeedTables!$C$42:$T$42,FeedTables!$C$46:$T$46,,-1)*_xlfn.XLOOKUP(N290,DensityMultiplier[Biomass kg/m3],DensityMultiplier[Multiplier],,-1)","v":{"$error":"#N/A"}},1926.6019431401946,{"$f":"IF(A291<='S1-Standard'!$C$7,('Growth-Model-1'!G290*EXP($AA$7)),0)","v":0},{"$f":"IF(A291<='S1-Standard'!$C$7,$AD$6*EXP($AD$7*('S1-Standard'!C$7-'Growth-Model-1'!A291)),0)","v":0},98.398056859804981,4.8591633017187642E-2,0,9.6134220875344365,0,{"$f":"M291/'S1-Standard'!$C$17","v":0},{"$error":"#N/A"},{"$error":"#N/A"},{"$f":"_xlfn.XLOOKUP(B291,FeedTables!$C$17:$T$17,FeedTables!$C$31:$T$31,,-1)","v":{"$error":"#N/A"}},{"$f":"_xlfn.XLOOKUP(Q291,FeedPrice[Feed],FeedPrice[Price per kg],\"Unknown\",0)*O291","v":{"$error":"#N/A"}},{"$error":"#N/A"},{"$f":"_xlfn.XLOOKUP(O291,LabourFromFeed[Feed Quantity (kg)],LabourFromFeed[No. Labour],\"Out of range\",-1)","v":{"$error":"#N/A"}},{"$f":"T291*OperatingCosts!$C$9","v":{"$error":"#N/A"}},{"$error":"#N/A"}]
[290,{"$f":"IF(A292<='S1-Standard'!$C$7, B291*EXP((LN((E291/100)+1))*1),)","v":0},{"$f":"_xlfn.XLOOKUP($B292,FeedTables!$C$42:$T$42,FeedTables!$C$44:$T$44,,-1)","v":{"$error":"#N/A"}},{"$f":"_xlfn.XLOOKUP($B292,FeedTables!$C$42:$T$42,FeedTables!$C$45:$T$45,,-1)","v":{"$error":"#N/A"}},{"$f":"_xlfn.XLOOKUP($B292,FeedTables!$C$42:$T$42,FeedTables!$C$46:$T$46,,-1)*_xlfn.XLOOKUP(N291,DensityMultiplier[Biomass kg/m3],DensityMultiplier[Multiplier],,-1)","v":{"$error":"#N/A"}},1926.6019431401946,{"$f":"IF(A292<='S1-Standard'!$C$7,('Growth-Model-1'!G291*EXP($AA$7)),0)","v":0},{"$f":"IF(A292<='S1-Standard'!$C$7,$AD$6*EXP($AD$7*('S1-Standard'!C$7-'Growth-Model-1'!A292)),0)","v":0},98.398056859804981,4.8591633017187642E-2,0,9.6134220875344365,0,{"$f":"M292/'S1-Standard'!$C$17","v":0},{"$error":"#N/A"},{"$error":"#N/A"},{"$f":"_xlfn.XLOOKUP(B292,FeedTables!$C$17:$T$17,FeedTables!$C$31:$T$31,,-1)","v":{"$error":"#N/A"}},{"$f":"_xlfn.XLOOKUP(Q292,FeedPrice[Feed],FeedPrice[Price per kg],\"Unknown\",0)*O292","v":{"$error":"#N/A"}},{"$error":"#N/A"},{"$f":"_xlfn.XLOOKUP(O292,LabourFromFeed[Feed Quantity (kg)],LabourFromFeed[No. Labour],\"Out of range\",-1)","v":{"$error":"#N/A"}},{"$f":"T292*OperatingCosts!$C$9","v":{"$error":"#N/A"}},{"$error":"#N/A"}]
[291,{"$f":"IF(A293<='S1-Standard'!$C$7, B292*EXP((LN((E292/100)+1))*1),)","v":0},{"$f":"_xlfn.XLOOKUP($B293,FeedTables!$C$42:$T$42,FeedTables!$C$44:$T$44,,-1)","v":{"$error":"#N/A"}},{"$f":"_xlfn.XLOOKUP($B293,FeedTables!$C$42:$T$42,FeedTables!$C$45:$T$45,,-1)","v":{"$error":"#N/A"}},{"$f":"_xlfn.XLOOKUP($B293,FeedTables!$C$42:$T$42,FeedTables!$C$46:$T$46,,-1)*_xlfn.XLOOKUP(N292,DensityMultiplier[Biomass kg/m3],DensityMultiplier[Multiplier],,-1)","v":{"$error":"#N/A"}},1926.6019431401946,{"$f":"IF(A293<='S1-Standard'!$C$7,('Growth-Model-1'!G292*EXP($AA$7)),0)","v":0},{"$f":"IF(A293<='S1-Standard'!$C$7,$AD$6*EXP($AD$7*('S1-Standard'!C$7-'Growth-Model-1'!A293)),0)","v":0},98.398056859804981,4.8591633017187642E-2,0,9.6134220875344365,0,{"$f":"M293/'S1-Standard'!$C$17","v":0},{"$error":"#N/A"},{"$error":"#N/A"},{"$f":"_xlfn.XLOOKUP(B293,FeedTables!$C$17:$T$17,FeedTables!$C$31:$T$31,,-1)","v":{"$error":"#N/A"}},{"$f":"_xlfn.XLOOKUP(Q293,FeedPrice[Feed],FeedPrice[Price per kg],\"Unknown\",0)*O293","v":{"$error":"#N/A"}},{"$error":"#N/A"},{"$f":"_xlfn.XLOOKUP(O293,LabourFromFeed[Feed Quantity (kg)],LabourFromFeed[No. Labour],\"Out of range\",-1)","v":{"$error":"#N/A"}},{"$f":"T293*OperatingCosts!$C$9","v":{"$error":"#N/A"}},{"$error":"#N/A"}]
[292,{"$f":"IF(A294<='S1-Standard'!$C$7, B293*EXP((LN((E293/100)+1))*1),)","v":0},{"$f":"_xlfn.XLOOKUP($B294,FeedTables!$C$42:$T$42,FeedTables!$C$44:$T$44,,-1)","v":{"$error":"#N/A"}},{"$f":"_xlfn.XLOOKUP($B294,FeedTables!$C$42:$T$42,FeedTables!$C$45:$T$45,,-1)","v":{"$error":"#N/A"}},{"$f":"_xlfn.XLOOKUP($B294,FeedTables!$C$42:$T$42,FeedTables!$C$46:$T$46,,-1)*_xlfn.XLOOKUP(N293,DensityMultiplier[Biomass kg/m3],DensityMultiplier[Multiplier],,-1)","v":{"$error":"#N/A"}},1926.6019431401946,{"$f":"IF(A294<='S1-Standard'!$C$7,('Growth-Model-1'!G293*EXP($AA$7)),0)","v":0},{"$f":"IF(A294<='S1-Standard'!$C$7,$AD$6*EXP($AD$7*('S1-Standard'!C$7-'Growth-Model-1'!A294)),0)","v":0},98.398056859804981,4.8591633017187642E-2,0,9.6134220875344365,0,{"$f":"M294/'S1-Standard'!$C$17","v":0},{"$error":"#N/A"},{"$error":"#N/A"},{"$f":"_xlfn.XLOOKUP(B294,FeedTables!$C$17:$T$17,FeedTables!$C$31:$T$31,,-1)","v":{"$error":"#N/A"}},{"$f":"_xlfn.XLOOKUP(Q294,FeedPrice[Feed],FeedPrice[Price per kg],\"Unknown\",0)*O294","v":{"$error":"#N/A"}},{"$error":"#N/A"},{"$f":"_xlfn.XLOOKUP(O294,LabourFromFeed[Feed Quantity (kg)],LabourFromFeed[No. Labour],\"Out of range\",-1)","v":{"$error":"#N/A"}},{"$f":"T294*OperatingCosts!$C$9","v":{"$error":"#N/A"}},{"$error":"#N/A"}]
[293,{"$f":"IF(A295<='S1-Standard'!$C$7, B294*EXP((LN((E294/100)+1))*1),)","v":0},{"$f":"_xlfn.XLOOKUP($B295,FeedTables!$C$42:$T$42,FeedTables!$C$44:$T$44,,-1)","v":{"$error":"#N/A"}},{"$f":"_xlfn.XLOOKUP($B295,FeedTables!$C$42:$T$42,FeedTables!$C$45:$T$45,,-1)","v":{"$error":"#N/A"}},{"$f":"_xlfn.XLOOKUP($B295,FeedTables!$C$42:$T$42,FeedTables!$C$46:$T$46,,-1)*_xlfn.XLOOKUP(N294,DensityMultiplier[Biomass kg/m3],DensityMultiplier[Multiplier],,-1)","v":{"$error":"#N/A"}},1926.6019431401946,{"$f":"IF(A295<='S1-Standard'!$C$7,('Growth-Model-1'!G294*EXP($AA$7)),0)","v":0},{"$f":"IF(A295<='S1-Standard'!$C$7,$AD$6*EXP($AD$7*('S1-Standard'!C$7-'Growth-Model-1'!A295)),0)","v":0},98.398056859804981,4.8591633017187642E-2,0,9.6134220875344365,0,{"$f":"M295/'S1-Standard'!$C$17","v":0},{"$error":"#N/A"},{"$error":"#N/A"},{"$f":"_xlfn.XLOOKUP(B295,FeedTables!$C$17:$T$17,FeedTables!$C$31:$T$31,,-1)","v":{"$error":"#N/A"}},{"$f":"_xlfn.XLOOKUP(Q295,FeedPrice[Feed],FeedPrice[Price per kg],\"Unknown\",0)*O295","v":{"$error":"#N/A"}},{"$error":"#N/A"},{"$f":"_xlfn.XLOOKUP(O295,LabourFromFeed[Feed Quantity (kg)],LabourFromFeed[No. Labour],\"Out of range\",-1)","v":{"$error":"#N/A"}},{"$f":"T295*OperatingCosts!$C$9","v":{"$error":"#N/A"}},{"$error":"#N/A"}]
[294,{"$f":"IF(A296<='S1-Standard'!$C$7, B295*EXP((LN((E295/100)+1))*1),)","v":0},{"$f":"_xlfn.XLOOKUP($B296,FeedTables!$C$42:$T$42,FeedTables!$C$44:$T$44,,-1)","v":{"$error":"#N/A"}},{"$f":"_xlfn.XLOOKUP($B296,FeedTables!$C$42:$T$42,FeedTables!$C$45:$T$45,,-1)","v":{"$error":"#N/A"}},{"$f":"_xlfn.XLOOKUP($B296,FeedTables!$C$42:$T$42,FeedTables!$C$46:$T$46,,-1)*_xlfn.XLOOKUP(N295,DensityMultiplier[Biomass kg/m3],DensityMultiplier[Multiplier],,-1)","v":{"$error":"#N/A"}},1926.6019431401946,{"$f":"IF(A296<='S1-Standard'!$C$7,('Growth-Model-1'!G295*EXP($AA$7)),0)","v":0},{"$f":"IF(A296<='S1-Standard'!$C$7,$AD$6*EXP($AD$7*('S1-Standard'!C$7-'Growth-Model-1'!A296)),0)","v":0},98.398056859804981,4.8591633017187642E-2,0,9.6134220875344365,0,{"$f":"M296/'S1-Standard'!$C$17","v":0},{"$error":"#N/A"},{"$error":"#N/A"},{"$f":"_xlfn.XLOOKUP(B296,FeedTables!$C$17:$T$17,FeedTables!$C$31:$T$31,,-1)","v":{"$error":"#N/A"}},{"$f":"_xlfn.XLOOKUP(Q296,FeedPrice[Feed],FeedPrice[Price per kg],\"Unknown\",0)*O296","v":{"$error":"#N/A"}},{"$error":"#N/A"},{"$f":"_xlfn.XLOOKUP(O296,LabourFromFeed[Feed Quantity (kg)],LabourFromFeed[No. Labour],\"Out of range\",-1)","v":{"$error":"#N/A"}},{"$f":"T296*OperatingCosts!$C$9","v":{"$error":"#N/A"}},{"$error":"#N/A"}]
[295,{"$f":"IF(A297<='S1-Standard'!$C$7, B296*EXP((LN((E296/100)+1))*1),)","v":0},{"$f":"_xlfn.XLOOKUP($B297,FeedTables!$C$42:$T$42,FeedTables!$C$44:$T$44,,-1)","v":{"$error":"#N/A"}},{"$f":"_xlfn.XLOOKUP($B297,FeedTables!$C$42:$T$42,FeedTables!$C$45:$T$45,,-1)","v":{"$error":"#N/A"}},{"$f":"_xlfn.XLOOKUP($B297,FeedTables!$C$42:$T$42,FeedTables!$C$46:$T$46,,-1)*_xlfn.XLOOKUP(N296,DensityMultiplier[Biomass kg/m3],DensityMultiplier[Multiplier],,-1)","v":{"$error":"#N/A"}},1926.6019431401946,{"$f":"IF(A297<='S1-Standard'!$C$7,('Growth-Model-1'!G296*EXP($AA$7)),0)","v":0},{"$f":"IF(A297<='S1-Standard'!$C$7,$AD$6*EXP($AD$7*('S1-Standard'!C$7-'Growth-Model-1'!A297)),0)","v":0},98.398056859804981,4.8591633017187642E-2,0,9.6134220875344365,0,{"$f":"M297/'S1-Standard'!$C$17","v":0},{"$error":"#N/A"},{"$error":"#N/A"},{"$f":"_xlfn.XLOOKUP(B297,FeedTables!$C$17:$T$17,FeedTables!$C$31:$T$31,,-1)","v":{"$error":"#N/A"}},{"$f":"_xlfn.XLOOKUP(Q297,FeedPrice[Feed],FeedPrice[Price per kg],\"Unknown\",0)*O297","v":{"$error":"#N/A"}},{"$error":"#N/A"},{"$f":"_xlfn.XLOOKUP(O297,LabourFromFeed[Feed Quantity (kg)],LabourFromFeed[No. Labour],\"Out of range\",-1)","v":{"$error":"#N/A"}},{"$f":"T297*OperatingCosts!$C$9","v":{"$error":"#N/A"}},{"$error":"#N/A"}]
[296,{"$f":"IF(A298<='S1-Standard'!$C$7, B297*EXP((LN((E297/100)+1))*1),)","v":0},{"$f":"_xlfn.XLOOKUP($B298,FeedTables!$C$42:$T$42,FeedTables!$C$44:$T$44,,-1)","v":{"$error":"#N/A"}},{"$f":"_xlfn.XLOOKUP($B298,FeedTables!$C$42:$T$42,FeedTables!$C$45:$T$45,,-1)","v":{"$error":"#N/A"}},{"$f":"_xlfn.XLOOKUP($B298,FeedTables!$C$42:$T$42,FeedTables!$C$46:$T$46,,-1)*_xlfn.XLOOKUP(N297,DensityMultiplier[Biomass kg/m3],DensityMultiplier[Multiplier],,-1)","v":{"$error":"#N/A"}},1926.6019431401946,{"$f":"IF(A298<='S1-Standard'!$C$7,('Growth-Model-1'!G297*EXP($AA$7)),0)","v":0},{"$f":"IF(A298<='S1-Standard'!$C$7,$AD$6*EXP($AD$7*('S1-Standard'!C$7-'Growth-Model-1'!A298)),0)","v":0},98.398056859804981,4.8591633017187642E-2,0,9.6134220875344365,0,{"$f":"M298/'S1-Standard'!$C$17","v":0},{"$error":"#N/A"},{"$error":"#N/A"},{"$f":"_xlfn.XLOOKUP(B298,FeedTables!$C$17:$T$17,FeedTables!$C$31:$T$31,,-1)","v":{"$error":"#N/A"}},{"$f":"_xlfn.XLOOKUP(Q298,FeedPrice[Feed],FeedPrice[Price per kg],\"Unknown\",0)*O298","v":{"$error":"#N/A"}},{"$error":"#N/A"},{"$f":"_xlfn.XLOOKUP(O298,LabourFromFeed[Feed Quantity (kg)],LabourFromFeed[No. Labour],\"Out of range\",-1)","v":{"$error":"#N/A"}},{"$f":"T298*OperatingCosts!$C$9","v":{"$error":"#N/A"}},{"$error":"#N/A"}]
[297,{"$f":"IF(A299<='S1-Standard'!$C$7, B298*EXP((LN((E298/100)+1))*1),)","v":0},{"$f":"_xlfn.XLOOKUP($B299,FeedTables!$C$42:$T$42,FeedTables!$C$44:$T$44,,-1)","v":{"$error":"#N/A"}},{"$f":"_xlfn.XLOOKUP($B299,FeedTables!$C$42:$T$42,FeedTables!$C$45:$T$45,,-1)","v":{"$error":"#N/A"}},{"$f":"_xlfn.XLOOKUP($B299,FeedTables!$C$42:$T$42,FeedTables!$C$46:$T$46,,-1)*_xlfn.XLOOKUP(N298,DensityMultiplier[Biomass kg/m3],DensityMultiplier[Multiplier],,-1)","v":{"$error":"#N/A"}},1926.6019431401946,{"$f":"IF(A299<='S1-Standard'!$C$7,('Growth-Model-1'!G298*EXP($AA$7)),0)","v":0},{"$f":"IF(A299<='S1-Standard'!$C$7,$AD$6*EXP($AD$7*('S1-Standard'!C$7-'Growth-Model-1'!A299)),0)","v":0},98.398056859804981,4.8591633017187642E-2,0,9.6134220875344365,0,{"$f":"M299/'S1-Standard'!$C$17","v":0},{"$error":"#N/A"},{"$error":"#N/A"},{"$f":"_xlfn.XLOOKUP(B299,FeedTables!$C$17:$T$17,FeedTables!$C$31:$T$31,,-1)","v":{"$error":"#N/A"}},{"$f":"_xlfn.XLOOKUP(Q299,FeedPrice[Feed],FeedPrice[Price per kg],\"Unknown\",0)*O299","v":{"$error":"#N/A"}},{"$error":"#N/A"},{"$f":"_xlfn.XLOOKUP(O299,LabourFromFeed[Feed Quantity (kg)],LabourFromFeed[No. Labour],\"Out of range\",-1)","v":{"$error":"#N/A"}},{"$f":"T299*OperatingCosts!$C$9","v":{"$error":"#N/A"}},{"$error":"#N/A"}]
[298,{"$f":"IF(A300<='S1-Standard'!$C$7, B299*EXP((LN((E299/100)+1))*1),)","v":0},{"$f":"_xlfn.XLOOKUP($B300,FeedTables!$C$42:$T$42,FeedTables!$C$44:$T$44,,-1)","v":{"$error":"#N/A"}},{"$f":"_xlfn.XLOOKUP($B300,FeedTables!$C$42:$T$42,FeedTables!$C$45:$T$45,,-1)","v":{"$error":"#N/A"}},{"$f":"_xlfn.XLOOKUP($B300,FeedTables!$C$42:$T$42,FeedTables!$C$46:$T$46,,-1)*_xlfn.XLOOKUP(N299,DensityMultiplier[Biomass kg/m3],DensityMultiplier[Multiplier],,-1)","v":{"$error":"#N/A"}},1926.6019431401946,{"$f":"IF(A300<='S1-Standard'!$C$7,('Growth-Model-1'!G299*EXP($AA$7)),0)","v":0},{"$f":"IF(A300<='S1-Standard'!$C$7,$AD$6*EXP($AD$7*('S1-Standard'!C$7-'Growth-Model-1'!A300)),0)","v":0},98.398056859804981,4.8591633017187642E-2,0,9.6134220875344365,0,{"$f":"M300/'S1-Standard'!$C$17","v":0},{"$error":"#N/A"},{"$error":"#N/A"},{"$f":"_xlfn.XLOOKUP(B300,FeedTables!$C$17:$T$17,FeedTables!$C$31:$T$31,,-1)","v":{"$error":"#N/A"}},{"$f":"_xlfn.XLOOKUP(Q300,FeedPrice[Feed],FeedPrice[Price per kg],\"Unknown\",0)*O300","v":{"$error":"#N/A"}},{"$error":"#N/A"},{"$f":"_xlfn.XLOOKUP(O300,LabourFromFeed[Feed Quantity (kg)],LabourFromFeed[No. Labour],\"Out of range\",-1)","v":{"$error":"#N/A"}},{"$f":"T300*OperatingCosts!$C$9","v":{"$error":"#N/A"}},{"$error":"#N/A"}]
[299,{"$f":"IF(A301<='S1-Standard'!$C$7, B300*EXP((LN((E300/100)+1))*1),)","v":0},{"$f":"_xlfn.XLOOKUP($B301,FeedTables!$C$42:$T$42,FeedTables!$C$44:$T$44,,-1)","v":{"$error":"#N/A"}},{"$f":"_xlfn.XLOOKUP($B301,FeedTables!$C$42:$T$42,FeedTables!$C$45:$T$45,,-1)","v":{"$error":"#N/A"}},{"$f":"_xlfn.XLOOKUP($B301,FeedTables!$C$42:$T$42,FeedTables!$C$46:$T$46,,-1)*_xlfn.XLOOKUP(N300,DensityMultiplier[Biomass kg/m3],DensityMultiplier[Multiplier],,-1)","v":{"$error":"#N/A"}},1926.6019431401946,{"$f":"IF(A301<='S1-Standard'!$C$7,('Growth-Model-1'!G300*EXP($AA$7)),0)","v":0},{"$f":"IF(A301<='S1-Standard'!$C$7,$AD$6*EXP($AD$7*('S1-Standard'!C$7-'Growth-Model-1'!A301)),0)","v":0},98.398056859804981,4.8591633017187642E-2,0,9.6134220875344365,0,{"$f":"M301/'S1-Standard'!$C$17","v":0},{"$error":"#N/A"},{"$error":"#N/A"},{"$f":"_xlfn.XLOOKUP(B301,FeedTables!$C$17:$T$17,FeedTables!$C$31:$T$31,,-1)","v":{"$error":"#N/A"}},{"$f":"_xlfn.XLOOKUP(Q301,FeedPrice[Feed],FeedPrice[Price per kg],\"Unknown\",0)*O301","v":{"$error":"#N/A"}},{"$error":"#N/A"},{"$f":"_xlfn.XLOOKUP(O301,LabourFromFeed[Feed Quantity (kg)],LabourFromFeed[No. Labour],\"Out of range\",-1)","v":{"$error":"#N/A"}},{"$f":"T301*OperatingCosts!$C$9","v":{"$error":"#N/A"}},{"$error":"#N/A"}]
[300,{"$f":"IF(A302<='S1-Standard'!$C$7, B301*EXP((LN((E301/100)+1))*1),)","v":0},{"$f":"_xlfn.XLOOKUP($B302,FeedTables!$C$42:$T$42,FeedTables!$C$44:$T$44,,-1)","v":{"$error":"#N/A"}},{"$f":"_xlfn.XLOOKUP($B302,FeedTables!$C$42:$T$42,FeedTables!$C$45:$T$45,,-1)","v":{"$error":"#N/A"}},{"$f":"_xlfn.XLOOKUP($B302,FeedTables!$C$42:$T$42,FeedTables!$C$46:$T$46,,-1)*_xlfn.XLOOKUP(N301,DensityMultiplier[Biomass kg/m3],DensityMultiplier[Multiplier],,-1)","v":{"$error":"#N/A"}},1926.6019431401946,{"$f":"IF(A302<='S1-Standard'!$C$7,('Growth-Model-1'!G301*EXP($AA$7)),0)","v":0},{"$f":"IF(A302<='S1-Standard'!$C$7,$AD$6*EXP($AD$7*('S1-Standard'!C$7-'Growth-Model-1'!A302)),0)","v":0},98.398056859804981,4.8591633017187642E-2,0,9.6134220875344365,0,{"$f":"M302/'S1-Standard'!$C$17","v":0},{"$error":"#N/A"},{"$error":"#N/A"},{"$f":"_xlfn.XLOOKUP(B302,FeedTables!$C$17:$T$17,FeedTables!$C$31:$T$31,,-1)","v":{"$error":"#N/A"}},{"$f":"_xlfn.XLOOKUP(Q302,FeedPrice[Feed],FeedPrice[Price per kg],\"Unknown\",0)*O302","v":{"$error":"#N/A"}},{"$error":"#N/A"},{"$f":"_xlfn.XLOOKUP(O302,LabourFromFeed[Feed Quantity (kg)],LabourFromFeed[No. Labour],\"Out of range\",-1)","v":{"$error":"#N/A"}},{"$f":"T302*OperatingCosts!$C$9","v":{"$error":"#N/A"}},{"$error":"#N/A"}]
[301,{"$f":"IF(A303<='S1-Standard'!$C$7, B302*EXP((LN((E302/100)+1))*1),)","v":0},{"$f":"_xlfn.XLOOKUP($B303,FeedTables!$C$42:$T$42,FeedTables!$C$44:$T$44,,-1)","v":{"$error":"#N/A"}},{"$f":"_xlfn.XLOOKUP($B303,FeedTables!$C$42:$T$42,FeedTables!$C$45:$T$45,,-1)","v":{"$error":"#N/A"}},{"$f":"_xlfn.XLOOKUP($B303,FeedTables!$C$42:$T$42,FeedTables!$C$46:$T$46,,-1)*_xlfn.XLOOKUP(N302,DensityMultiplier[Biomass kg/m3],DensityMultiplier[Multiplier],,-1)","v":{"$error":"#N/A"}},1926.6019431401946,{"$f":"IF(A303<='S1-Standard'!$C$7,('Growth-Model-1'!G302*EXP($AA$7)),0)","v":0},{"$f":"IF(A303<='S1-Standard'!$C$7,$AD$6*EXP($AD$7*('S1-Standard'!C$7-'Growth-Model-1'!A303)),0)","v":0},98.398056859804981,4.8591633017187642E-2,0,9.6134220875344365,0,{"$f":"M303/'S1-Standard'!$C$17","v":0},{"$error":"#N/A"},{"$error":"#N/A"},{"$f":"_xlfn.XLOOKUP(B303,FeedTables!$C$17:$T$17,FeedTables!$C$31:$T$31,,-1)","v":{"$error":"#N/A"}},{"$f":"_xlfn.XLOOKUP(Q303,FeedPrice[Feed],FeedPrice[Price per kg],\"Unknown\",0)*O303","v":{"$error":"#N/A"}},{"$error":"#N/A"},{"$f":"_xlfn.XLOOKUP(O303,LabourFromFeed[Feed Quantity (kg)],LabourFromFeed[No. Labour],\"Out of range\",-1)","v":{"$error":"#N/A"}},{"$f":"T303*OperatingCosts!$C$9","v":{"$error":"#N/A"}},{"$error":"#N/A"}]
[302,{"$f":"IF(A304<='S1-Standard'!$C$7, B303*EXP((LN((E303/100)+1))*1),)","v":0},{"$f":"_xlfn.XLOOKUP($B304,FeedTables!$C$42:$T$42,FeedTables!$C$44:$T$44,,-1)","v":{"$error":"#N/A"}},{"$f":"_xlfn.XLOOKUP($B304,FeedTables!$C$42:$T$42,FeedTables!$C$45:$T$45,,-1)","v":{"$error":"#N/A"}},{"$f":"_xlfn.XLOOKUP($B304,FeedTables!$C$42:$T$42,FeedTables!$C$46:$T$46,,-1)*_xlfn.XLOOKUP(N303,DensityMultiplier[Biomass kg/m3],DensityMultiplier[Multiplier],,-1)","v":{"$error":"#N/A"}},1926.6019431401946,{"$f":"IF(A304<='S1-Standard'!$C$7,('Growth-Model-1'!G303*EXP($AA$7)),0)","v":0},{"$f":"IF(A304<='S1-Standard'!$C$7,$AD$6*EXP($AD$7*('S1-Standard'!C$7-'Growth-Model-1'!A304)),0)","v":0},98.398056859804981,4.8591633017187642E-2,0,9.6134220875344365,0,{"$f":"M304/'S1-Standard'!$C$17","v":0},{"$error":"#N/A"},{"$error":"#N/A"},{"$f":"_xlfn.XLOOKUP(B304,FeedTables!$C$17:$T$17,FeedTables!$C$31:$T$31,,-1)","v":{"$error":"#N/A"}},{"$f":"_xlfn.XLOOKUP(Q304,FeedPrice[Feed],FeedPrice[Price per kg],\"Unknown\",0)*O304","v":{"$error":"#N/A"}},{"$error":"#N/A"},{"$f":"_xlfn.XLOOKUP(O304,LabourFromFeed[Feed Quantity (kg)],LabourFromFeed[No. Labour],\"Out of range\",-1)","v":{"$error":"#N/A"}},{"$f":"T304*OperatingCosts!$C$9","v":{"$error":"#N/A"}},{"$error":"#N/A"}]
[303,{"$f":"IF(A305<='S1-Standard'!$C$7, B304*EXP((LN((E304/100)+1))*1),)","v":0},{"$f":"_xlfn.XLOOKUP($B305,FeedTables!$C$42:$T$42,FeedTables!$C$44:$T$44,,-1)","v":{"$error":"#N/A"}},{"$f":"_xlfn.XLOOKUP($B305,FeedTables!$C$42:$T$42,FeedTables!$C$45:$T$45,,-1)","v":{"$error":"#N/A"}},{"$f":"_xlfn.XLOOKUP($B305,FeedTables!$C$42:$T$42,FeedTables!$C$46:$T$46,,-1)*_xlfn.XLOOKUP(N304,DensityMultiplier[Biomass kg/m3],DensityMultiplier[Multiplier],,-1)","v":{"$error":"#N/A"}},1926.6019431401946,{"$f":"IF(A305<='S1-Standard'!$C$7,('Growth-Model-1'!G304*EXP($AA$7)),0)","v":0},{"$f":"IF(A305<='S1-Standard'!$C$7,$AD$6*EXP($AD$7*('S1-Standard'!C$7-'Growth-Model-1'!A305)),0)","v":0},98.398056859804981,4.8591633017187642E-2,0,9.6134220875344365,0,{"$f":"M305/'S1-Standard'!$C$17","v":0},{"$error":"#N/A"},{"$error":"#N/A"},{"$f":"_xlfn.XLOOKUP(B305,FeedTables!$C$17:$T$17,FeedTables!$C$31:$T$31,,-1)","v":{"$error":"#N/A"}},{"$f":"_xlfn.XLOOKUP(Q305,FeedPrice[Feed],FeedPrice[Price per kg],\"Unknown\",0)*O305","v":{"$error":"#N/A"}},{"$error":"#N/A"},{"$f":"_xlfn.XLOOKUP(O305,LabourFromFeed[Feed Quantity (kg)],LabourFromFeed[No. Labour],\"Out of range\",-1)","v":{"$error":"#N/A"}},{"$f":"T305*OperatingCosts!$C$9","v":{"$error":"#N/A"}},{"$error":"#N/A"}]
[304,{"$f":"IF(A306<='S1-Standard'!$C$7, B305*EXP((LN((E305/100)+1))*1),)","v":0},{"$f":"_xlfn.XLOOKUP($B306,FeedTables!$C$42:$T$42,FeedTables!$C$44:$T$44,,-1)","v":{"$error":"#N/A"}},{"$f":"_xlfn.XLOOKUP($B306,FeedTables!$C$42:$T$42,FeedTables!$C$45:$T$45,,-1)","v":{"$error":"#N/A"}},{"$f":"_xlfn.XLOOKUP($B306,FeedTables!$C$42:$T$42,FeedTables!$C$46:$T$46,,-1)*_xlfn.XLOOKUP(N305,DensityMultiplier[Biomass kg/m3],DensityMultiplier[Multiplier],,-1)","v":{"$error":"#N/A"}},1926.6019431401946,{"$f":"IF(A306<='S1-Standard'!$C$7,('Growth-Model-1'!G305*EXP($AA$7)),0)","v":0},{"$f":"IF(A306<='S1-Standard'!$C$7,$AD$6*EXP($AD$7*('S1-Standard'!C$7-'Growth-Model-1'!A306)),0)","v":0},98.398056859804981,4.8591633017187642E-2,0,9.6134220875344365,0,{"$f":"M306/'S1-Standard'!$C$17","v":0},{"$error":"#N/A"},{"$error":"#N/A"},{"$f":"_xlfn.XLOOKUP(B306,FeedTables!$C$17:$T$17,FeedTables!$C$31:$T$31,,-1)","v":{"$error":"#N/A"}},{"$f":"_xlfn.XLOOKUP(Q306,FeedPrice[Feed],FeedPrice[Price per kg],\"Unknown\",0)*O306","v":{"$error":"#N/A"}},{"$error":"#N/A"},{"$f":"_xlfn.XLOOKUP(O306,LabourFromFeed[Feed Quantity (kg)],LabourFromFeed[No. Labour],\"Out of range\",-1)","v":{"$error":"#N/A"}},{"$f":"T306*OperatingCosts!$C$9","v":{"$error":"#N/A"}},{"$error":"#N/A"}]
[305,{"$f":"IF(A307<='S1-Standard'!$C$7, B306*EXP((LN((E306/100)+1))*1),)","v":0},{"$f":"_xlfn.XLOOKUP($B307,FeedTables!$C$42:$T$42,FeedTables!$C$44:$T$44,,-1)","v":{"$error":"#N/A"}},{"$f":"_xlfn.XLOOKUP($B307,FeedTables!$C$42:$T$42,FeedTables!$C$45:$T$45,,-1)","v":{"$error":"#N/A"}},{"$f":"_xlfn.XLOOKUP($B307,FeedTables!$C$42:$T$42,FeedTables!$C$46:$T$46,,-1)*_xlfn.XLOOKUP(N306,DensityMultiplier[Biomass kg/m3],DensityMultiplier[Multiplier],,-1)","v":{"$error":"#N/A"}},1926.6019431401946,{"$f":"IF(A307<='S1-Standard'!$C$7,('Growth-Model-1'!G306*EXP($AA$7)),0)","v":0},{"$f":"IF(A307<='S1-Standard'!$C$7,$AD$6*EXP($AD$7*('S1-Standard'!C$7-'Growth-Model-1'!A307)),0)","v":0},98.398056859804981,4.8591633017187642E-2,0,9.6134220875344365,0,{"$f":"M307/'S1-Standard'!$C$17","v":0},{"$error":"#N/A"},{"$error":"#N/A"},{"$f":"_xlfn.XLOOKUP(B307,FeedTables!$C$17:$T$17,FeedTables!$C$31:$T$31,,-1)","v":{"$error":"#N/A"}},{"$f":"_xlfn.XLOOKUP(Q307,FeedPrice[Feed],FeedPrice[Price per kg],\"Unknown\",0)*O307","v":{"$error":"#N/A"}},{"$error":"#N/A"},{"$f":"_xlfn.XLOOKUP(O307,LabourFromFeed[Feed Quantity (kg)],LabourFromFeed[No. Labour],\"Out of range\",-1)","v":{"$error":"#N/A"}},{"$f":"T307*OperatingCosts!$C$9","v":{"$error":"#N/A"}},{"$error":"#N/A"}]
[306,{"$f":"IF(A308<='S1-Standard'!$C$7, B307*EXP((LN((E307/100)+1))*1),)","v":0},{"$f":"_xlfn.XLOOKUP($B308,FeedTables!$C$42:$T$42,FeedTables!$C$44:$T$44,,-1)","v":{"$error":"#N/A"}},{"$f":"_xlfn.XLOOKUP($B308,FeedTables!$C$42:$T$42,FeedTables!$C$45:$T$45,,-1)","v":{"$error":"#N/A"}},{"$f":"_xlfn.XLOOKUP($B308,FeedTables!$C$42:$T$42,FeedTables!$C$46:$T$46,,-1)*_xlfn.XLOOKUP(N307,DensityMultiplier[Biomass kg/m3],DensityMultiplier[Multiplier],,-1)","v":{"$error":"#N/A"}},1926.6019431401946,{"$f":"IF(A308<='S1-Standard'!$C$7,('Growth-Model-1'!G307*EXP($AA$7)),0)","v":0},{"$f":"IF(A308<='S1-Standard'!$C$7,$AD$6*EXP($AD$7*('S1-Standard'!C$7-'Growth-Model-1'!A308)),0)","v":0},98.398056859804981,4.8591633017187642E-2,0,9.6134220875344365,0,{"$f":"M308/'S1-Standard'!$C$17","v":0},{"$error":"#N/A"},{"$error":"#N/A"},{"$f":"_xlfn.XLOOKUP(B308,FeedTables!$C$17:$T$17,FeedTables!$C$31:$T$31,,-1)","v":{"$error":"#N/A"}},{"$f":"_xlfn.XLOOKUP(Q308,FeedPrice[Feed],FeedPrice[Price per kg],\"Unknown\",0)*O308","v":{"$error":"#N/A"}},{"$error":"#N/A"},{"$f":"_xlfn.XLOOKUP(O308,LabourFromFeed[Feed Quantity (kg)],LabourFromFeed[No. Labour],\"Out of range\",-1)","v":{"$error":"#N/A"}},{"$f":"T308*OperatingCosts!$C$9","v":{"$error":"#N/A"}},{"$error":"#N/A"}]
[307,{"$f":"IF(A309<='S1-Standard'!$C$7, B308*EXP((LN((E308/100)+1))*1),)","v":0},{"$f":"_xlfn.XLOOKUP($B309,FeedTables!$C$42:$T$42,FeedTables!$C$44:$T$44,,-1)","v":{"$error":"#N/A"}},{"$f":"_xlfn.XLOOKUP($B309,FeedTables!$C$42:$T$42,FeedTables!$C$45:$T$45,,-1)","v":{"$error":"#N/A"}},{"$f":"_xlfn.XLOOKUP($B309,FeedTables!$C$42:$T$42,FeedTables!$C$46:$T$46,,-1)*_xlfn.XLOOKUP(N308,DensityMultiplier[Biomass kg/m3],DensityMultiplier[Multiplier],,-1)","v":{"$error":"#N/A"}},1926.6019431401946,{"$f":"IF(A309<='S1-Standard'!$C$7,('Growth-Model-1'!G308*EXP($AA$7)),0)","v":0},{"$f":"IF(A309<='S1-Standard'!$C$7,$AD$6*EXP($AD$7*('S1-Standard'!C$7-'Growth-Model-1'!A309)),0)","v":0},98.398056859804981,4.8591633017187642E-2,0,9.6134220875344365,0,{"$f":"M309/'S1-Standard'!$C$17","v":0},{"$error":"#N/A"},{"$error":"#N/A"},{"$f":"_xlfn.XLOOKUP(B309,FeedTables!$C$17:$T$17,FeedTables!$C$31:$T$31,,-1)","v":{"$error":"#N/A"}},{"$f":"_xlfn.XLOOKUP(Q309,FeedPrice[Feed],FeedPrice[Price per kg],\"Unknown\",0)*O309","v":{"$error":"#N/A"}},{"$error":"#N/A"},{"$f":"_xlfn.XLOOKUP(O309,LabourFromFeed[Feed Quantity (kg)],LabourFromFeed[No. Labour],\"Out of range\",-1)","v":{"$error":"#N/A"}},{"$f":"T309*OperatingCosts!$C$9","v":{"$error":"#N/A"}},{"$error":"#N/A"}]
[308,{"$f":"IF(A310<='S1-Standard'!$C$7, B309*EXP((LN((E309/100)+1))*1),)","v":0},{"$f":"_xlfn.XLOOKUP($B310,FeedTables!$C$42:$T$42,FeedTables!$C$44:$T$44,,-1)","v":{"$error":"#N/A"}},{"$f":"_xlfn.XLOOKUP($B310,FeedTables!$C$42:$T$42,FeedTables!$C$45:$T$45,,-1)","v":{"$error":"#N/A"}},{"$f":"_xlfn.XLOOKUP($B310,FeedTables!$C$42:$T$42,FeedTables!$C$46:$T$46,,-1)*_xlfn.XLOOKUP(N309,DensityMultiplier[Biomass kg/m3],DensityMultiplier[Multiplier],,-1)","v":{"$error":"#N/A"}},1926.6019431401946,{"$f":"IF(A310<='S1-Standard'!$C$7,('Growth-Model-1'!G309*EXP($AA$7)),0)","v":0},{"$f":"IF(A310<='S1-Standard'!$C$7,$AD$6*EXP($AD$7*('S1-Standard'!C$7-'Growth-Model-1'!A310)),0)","v":0},98.398056859804981,4.8591633017187642E-2,0,9.6134220875344365,0,{"$f":"M310/'S1-Standard'!$C$17","v":0},{"$error":"#N/A"},{"$error":"#N/A"},{"$f":"_xlfn.XLOOKUP(B310,FeedTables!$C$17:$T$17,FeedTables!$C$31:$T$31,,-1)","v":{"$error":"#N/A"}},{"$f":"_xlfn.XLOOKUP(Q310,FeedPrice[Feed],FeedPrice[Price per kg],\"Unknown\",0)*O310","v":{"$error":"#N/A"}},{"$error":"#N/A"},{"$f":"_xlfn.XLOOKUP(O310,LabourFromFeed[Feed Quantity (kg)],LabourFromFeed[No. Labour],\"Out of range\",-1)","v":{"$error":"#N/A"}},{"$f":"T310*OperatingCosts!$C$9","v":{"$error":"#N/A"}},{"$error":"#N/A"}]
[309,{"$f":"IF(A311<='S1-Standard'!$C$7, B310*EXP((LN((E310/100)+1))*1),)","v":0},{"$f":"_xlfn.XLOOKUP($B311,FeedTables!$C$42:$T$42,FeedTables!$C$44:$T$44,,-1)","v":{"$error":"#N/A"}},{"$f":"_xlfn.XLOOKUP($B311,FeedTables!$C$42:$T$42,FeedTables!$C$45:$T$45,,-1)","v":{"$error":"#N/A"}},{"$f":"_xlfn.XLOOKUP($B311,FeedTables!$C$42:$T$42,FeedTables!$C$46:$T$46,,-1)*_xlfn.XLOOKUP(N310,DensityMultiplier[Biomass kg/m3],DensityMultiplier[Multiplier],,-1)","v":{"$error":"#N/A"}},1926.6019431401946,{"$f":"IF(A311<='S1-Standard'!$C$7,('Growth-Model-1'!G310*EXP($AA$7)),0)","v":0},{"$f":"IF(A311<='S1-Standard'!$C$7,$AD$6*EXP($AD$7*('S1-Standard'!C$7-'Growth-Model-1'!A311)),0)","v":0},98.398056859804981,4.8591633017187642E-2,0,9.6134220875344365,0,{"$f":"M311/'S1-Standard'!$C$17","v":0},{"$error":"#N/A"},{"$error":"#N/A"},{"$f":"_xlfn.XLOOKUP(B311,FeedTables!$C$17:$T$17,FeedTables!$C$31:$T$31,,-1)","v":{"$error":"#N/A"}},{"$f":"_xlfn.XLOOKUP(Q311,FeedPrice[Feed],FeedPrice[Price per kg],\"Unknown\",0)*O311","v":{"$error":"#N/A"}},{"$error":"#N/A"},{"$f":"_xlfn.XLOOKUP(O311,LabourFromFeed[Feed Quantity (kg)],LabourFromFeed[No. Labour],\"Out of range\",-1)","v":{"$error":"#N/A"}},{"$f":"T311*OperatingCosts!$C$9","v":{"$error":"#N/A"}},{"$error":"#N/A"}]
[310,{"$f":"IF(A312<='S1-Standard'!$C$7, B311*EXP((LN((E311/100)+1))*1),)","v":0},{"$f":"_xlfn.XLOOKUP($B312,FeedTables!$C$42:$T$42,FeedTables!$C$44:$T$44,,-1)","v":{"$error":"#N/A"}},{"$f":"_xlfn.XLOOKUP($B312,FeedTables!$C$42:$T$42,FeedTables!$C$45:$T$45,,-1)","v":{"$error":"#N/A"}},{"$f":"_xlfn.XLOOKUP($B312,FeedTables!$C$42:$T$42,FeedTables!$C$46:$T$46,,-1)*_xlfn.XLOOKUP(N311,DensityMultiplier[Biomass kg/m3],DensityMultiplier[Multiplier],,-1)","v":{"$error":"#N/A"}},1926.6019431401946,{"$f":"IF(A312<='S1-Standard'!$C$7,('Growth-Model-1'!G311*EXP($AA$7)),0)","v":0},{"$f":"IF(A312<='S1-Standard'!$C$7,$AD$6*EXP($AD$7*('S1-Standard'!C$7-'Growth-Model-1'!A312)),0)","v":0},98.398056859804981,4.8591633017187642E-2,0,9.6134220875344365,0,{"$f":"M312/'S1-Standard'!$C$17","v":0},{"$error":"#N/A"},{"$error":"#N/A"},{"$f":"_xlfn.XLOOKUP(B312,FeedTables!$C$17:$T$17,FeedTables!$C$31:$T$31,,-1)","v":{"$error":"#N/A"}},{"$f":"_xlfn.XLOOKUP(Q312,FeedPrice[Feed],FeedPrice[Price per kg],\"Unknown\",0)*O312","v":{"$error":"#N/A"}},{"$error":"#N/A"},{"$f":"_xlfn.XLOOKUP(O312,LabourFromFeed[Feed Quantity (kg)],LabourFromFeed[No. Labour],\"Out of range\",-1)","v":{"$error":"#N/A"}},{"$f":"T312*OperatingCosts!$C$9","v":{"$error":"#N/A"}},{"$error":"#N/A"}]
[311,{"$f":"IF(A313<='S1-Standard'!$C$7, B312*EXP((LN((E312/100)+1))*1),)","v":0},{"$f":"_xlfn.XLOOKUP($B313,FeedTables!$C$42:$T$42,FeedTables!$C$44:$T$44,,-1)","v":{"$error":"#N/A"}},{"$f":"_xlfn.XLOOKUP($B313,FeedTables!$C$42:$T$42,FeedTables!$C$45:$T$45,,-1)","v":{"$error":"#N/A"}},{"$f":"_xlfn.XLOOKUP($B313,FeedTables!$C$42:$T$42,FeedTables!$C$46:$T$46,,-1)*_xlfn.XLOOKUP(N312,DensityMultiplier[Biomass kg/m3],DensityMultiplier[Multiplier],,-1)","v":{"$error":"#N/A"}},1926.6019431401946,{"$f":"IF(A313<='S1-Standard'!$C$7,('Growth-Model-1'!G312*EXP($AA$7)),0)","v":0},{"$f":"IF(A313<='S1-Standard'!$C$7,$AD$6*EXP($AD$7*('S1-Standard'!C$7-'Growth-Model-1'!A313)),0)","v":0},98.398056859804981,4.8591633017187642E-2,0,9.6134220875344365,0,{"$f":"M313/'S1-Standard'!$C$17","v":0},{"$error":"#N/A"},{"$error":"#N/A"},{"$f":"_xlfn.XLOOKUP(B313,FeedTables!$C$17:$T$17,FeedTables!$C$31:$T$31,,-1)","v":{"$error":"#N/A"}},{"$f":"_xlfn.XLOOKUP(Q313,FeedPrice[Feed],FeedPrice[Price per kg],\"Unknown\",0)*O313","v":{"$error":"#N/A"}},{"$error":"#N/A"},{"$f":"_xlfn.XLOOKUP(O313,LabourFromFeed[Feed Quantity (kg)],LabourFromFeed[No. Labour],\"Out of range\",-1)","v":{"$error":"#N/A"}},{"$f":"T313*OperatingCosts!$C$9","v":{"$error":"#N/A"}},{"$error":"#N/A"}]
[312,{"$f":"IF(A314<='S1-Standard'!$C$7, B313*EXP((LN((E313/100)+1))*1),)","v":0},{"$f":"_xlfn.XLOOKUP($B314,FeedTables!$C$42:$T$42,FeedTables!$C$44:$T$44,,-1)","v":{"$error":"#N/A"}},{"$f":"_xlfn.XLOOKUP($B314,FeedTables!$C$42:$T$42,FeedTables!$C$45:$T$45,,-1)","v":{"$error":"#N/A"}},{"$f":"_xlfn.XLOOKUP($B314,FeedTables!$C$42:$T$42,FeedTables!$C$46:$T$46,,-1)*_xlfn.XLOOKUP(N313,DensityMultiplier[Biomass kg/m3],DensityMultiplier[Multiplier],,-1)","v":{"$error":"#N/A"}},1926.6019431401946,{"$f":"IF(A314<='S1-Standard'!$C$7,('Growth-Model-1'!G313*EXP($AA$7)),0)","v":0},{"$f":"IF(A314<='S1-Standard'!$C$7,$AD$6*EXP($AD$7*('S1-Standard'!C$7-'Growth-Model-1'!A314)),0)","v":0},98.398056859804981,4.8591633017187642E-2,0,9.6134220875344365,0,{"$f":"M314/'S1-Standard'!$C$17","v":0},{"$error":"#N/A"},{"$error":"#N/A"},{"$f":"_xlfn.XLOOKUP(B314,FeedTables!$C$17:$T$17,FeedTables!$C$31:$T$31,,-1)","v":{"$error":"#N/A"}},{"$f":"_xlfn.XLOOKUP(Q314,FeedPrice[Feed],FeedPrice[Price per kg],\"Unknown\",0)*O314","v":{"$error":"#N/A"}},{"$error":"#N/A"},{"$f":"_xlfn.XLOOKUP(O314,LabourFromFeed[Feed Quantity (kg)],LabourFromFeed[No. Labour],\"Out of range\",-1)","v":{"$error":"#N/A"}},{"$f":"T314*OperatingCosts!$C$9","v":{"$error":"#N/A"}},{"$error":"#N/A"}]
[313,{"$f":"IF(A315<='S1-Standard'!$C$7, B314*EXP((LN((E314/100)+1))*1),)","v":0},{"$f":"_xlfn.XLOOKUP($B315,FeedTables!$C$42:$T$42,FeedTables!$C$44:$T$44,,-1)","v":{"$error":"#N/A"}},{"$f":"_xlfn.XLOOKUP($B315,FeedTables!$C$42:$T$42,FeedTables!$C$45:$T$45,,-1)","v":{"$error":"#N/A"}},{"$f":"_xlfn.XLOOKUP($B315,FeedTables!$C$42:$T$42,FeedTables!$C$46:$T$46,,-1)*_xlfn.XLOOKUP(N314,DensityMultiplier[Biomass kg/m3],DensityMultiplier[Multiplier],,-1)","v":{"$error":"#N/A"}},1926.6019431401946,{"$f":"IF(A315<='S1-Standard'!$C$7,('Growth-Model-1'!G314*EXP($AA$7)),0)","v":0},{"$f":"IF(A315<='S1-Standard'!$C$7,$AD$6*EXP($AD$7*('S1-Standard'!C$7-'Growth-Model-1'!A315)),0)","v":0},98.398056859804981,4.8591633017187642E-2,0,9.6134220875344365,0,{"$f":"M315/'S1-Standard'!$C$17","v":0},{"$error":"#N/A"},{"$error":"#N/A"},{"$f":"_xlfn.XLOOKUP(B315,FeedTables!$C$17:$T$17,FeedTables!$C$31:$T$31,,-1)","v":{"$error":"#N/A"}},{"$f":"_xlfn.XLOOKUP(Q315,FeedPrice[Feed],FeedPrice[Price per kg],\"Unknown\",0)*O315","v":{"$error":"#N/A"}},{"$error":"#N/A"},{"$f":"_xlfn.XLOOKUP(O315,LabourFromFeed[Feed Quantity (kg)],LabourFromFeed[No. Labour],\"Out of range\",-1)","v":{"$error":"#N/A"}},{"$f":"T315*OperatingCosts!$C$9","v":{"$error":"#N/A"}},{"$error":"#N/A"}]
[314,{"$f":"IF(A316<='S1-Standard'!$C$7, B315*EXP((LN((E315/100)+1))*1),)","v":0},{"$f":"_xlfn.XLOOKUP($B316,FeedTables!$C$42:$T$42,FeedTables!$C$44:$T$44,,-1)","v":{"$error":"#N/A"}},{"$f":"_xlfn.XLOOKUP($B316,FeedTables!$C$42:$T$42,FeedTables!$C$45:$T$45,,-1)","v":{"$error":"#N/A"}},{"$f":"_xlfn.XLOOKUP($B316,FeedTables!$C$42:$T$42,FeedTables!$C$46:$T$46,,-1)*_xlfn.XLOOKUP(N315,DensityMultiplier[Biomass kg/m3],DensityMultiplier[Multiplier],,-1)","v":{"$error":"#N/A"}},1926.6019431401946,{"$f":"IF(A316<='S1-Standard'!$C$7,('Growth-Model-1'!G315*EXP($AA$7)),0)","v":0},{"$f":"IF(A316<='S1-Standard'!$C$7,$AD$6*EXP($AD$7*('S1-Standard'!C$7-'Growth-Model-1'!A316)),0)","v":0},98.398056859804981,4.8591633017187642E-2,0,9.6134220875344365,0,{"$f":"M316/'S1-Standard'!$C$17","v":0},{"$error":"#N/A"},{"$error":"#N/A"},{"$f":"_xlfn.XLOOKUP(B316,FeedTables!$C$17:$T$17,FeedTables!$C$31:$T$31,,-1)","v":{"$error":"#N/A"}},{"$f":"_xlfn.XLOOKUP(Q316,FeedPrice[Feed],FeedPrice[Price per kg],\"Unknown\",0)*O316","v":{"$error":"#N/A"}},{"$error":"#N/A"},{"$f":"_xlfn.XLOOKUP(O316,LabourFromFeed[Feed Quantity (kg)],LabourFromFeed[No. Labour],\"Out of range\",-1)","v":{"$error":"#N/A"}},{"$f":"T316*OperatingCosts!$C$9","v":{"$error":"#N/A"}},{"$error":"#N/A"}]
[315,{"$f":"IF(A317<='S1-Standard'!$C$7, B316*EXP((LN((E316/100)+1))*1),)","v":0},{"$f":"_xlfn.XLOOKUP($B317,FeedTables!$C$42:$T$42,FeedTables!$C$44:$T$44,,-1)","v":{"$error":"#N/A"}},{"$f":"_xlfn.XLOOKUP($B317,FeedTables!$C$42:$T$42,FeedTables!$C$45:$T$45,,-1)","v":{"$error":"#N/A"}},{"$f":"_xlfn.XLOOKUP($B317,FeedTables!$C$42:$T$42,FeedTables!$C$46:$T$46,,-1)*_xlfn.XLOOKUP(N316,DensityMultiplier[Biomass kg/m3],DensityMultiplier[Multiplier],,-1)","v":{"$error":"#N/A"}},1926.6019431401946,{"$f":"IF(A317<='S1-Standard'!$C$7,('Growth-Model-1'!G316*EXP($AA$7)),0)","v":0},{"$f":"IF(A317<='S1-Standard'!$C$7,$AD$6*EXP($AD$7*('S1-Standard'!C$7-'Growth-Model-1'!A317)),0)","v":0},98.398056859804981,4.8591633017187642E-2,0,9.6134220875344365,0,{"$f":"M317/'S1-Standard'!$C$17","v":0},{"$error":"#N/A"},{"$error":"#N/A"},{"$f":"_xlfn.XLOOKUP(B317,FeedTables!$C$17:$T$17,FeedTables!$C$31:$T$31,,-1)","v":{"$error":"#N/A"}},{"$f":"_xlfn.XLOOKUP(Q317,FeedPrice[Feed],FeedPrice[Price per kg],\"Unknown\",0)*O317","v":{"$error":"#N/A"}},{"$error":"#N/A"},{"$f":"_xlfn.XLOOKUP(O317,LabourFromFeed[Feed Quantity (kg)],LabourFromFeed[No. Labour],\"Out of range\",-1)","v":{"$error":"#N/A"}},{"$f":"T317*OperatingCosts!$C$9","v":{"$error":"#N/A"}},{"$error":"#N/A"}]
[316,{"$f":"IF(A318<='S1-Standard'!$C$7, B317*EXP((LN((E317/100)+1))*1),)","v":0},{"$f":"_xlfn.XLOOKUP($B318,FeedTables!$C$42:$T$42,FeedTables!$C$44:$T$44,,-1)","v":{"$error":"#N/A"}},{"$f":"_xlfn.XLOOKUP($B318,FeedTables!$C$42:$T$42,FeedTables!$C$45:$T$45,,-1)","v":{"$error":"#N/A"}},{"$f":"_xlfn.XLOOKUP($B318,FeedTables!$C$42:$T$42,FeedTables!$C$46:$T$46,,-1)*_xlfn.XLOOKUP(N317,DensityMultiplier[Biomass kg/m3],DensityMultiplier[Multiplier],,-1)","v":{"$error":"#N/A"}},1926.6019431401946,{"$f":"IF(A318<='S1-Standard'!$C$7,('Growth-Model-1'!G317*EXP($AA$7)),0)","v":0},{"$f":"IF(A318<='S1-Standard'!$C$7,$AD$6*EXP($AD$7*('S1-Standard'!C$7-'Growth-Model-1'!A318)),0)","v":0},98.398056859804981,4.8591633017187642E-2,0,9.6134220875344365,0,{"$f":"M318/'S1-Standard'!$C$17","v":0},{"$error":"#N/A"},{"$error":"#N/A"},{"$f":"_xlfn.XLOOKUP(B318,FeedTables!$C$17:$T$17,FeedTables!$C$31:$T$31,,-1)","v":{"$error":"#N/A"}},{"$f":"_xlfn.XLOOKUP(Q318,FeedPrice[Feed],FeedPrice[Price per kg],\"Unknown\",0)*O318","v":{"$error":"#N/A"}},{"$error":"#N/A"},{"$f":"_xlfn.XLOOKUP(O318,LabourFromFeed[Feed Quantity (kg)],LabourFromFeed[No. Labour],\"Out of range\",-1)","v":{"$error":"#N/A"}},{"$f":"T318*OperatingCosts!$C$9","v":{"$error":"#N/A"}},{"$error":"#N/A"}]
[317,{"$f":"IF(A319<='S1-Standard'!$C$7, B318*EXP((LN((E318/100)+1))*1),)","v":0},{"$f":"_xlfn.XLOOKUP($B319,FeedTables!$C$42:$T$42,FeedTables!$C$44:$T$44,,-1)","v":{"$error":"#N/A"}},{"$f":"_xlfn.XLOOKUP($B319,FeedTables!$C$42:$T$42,FeedTables!$C$45:$T$45,,-1)","v":{"$error":"#N/A"}},{"$f":"_xlfn.XLOOKUP($B319,FeedTables!$C$42:$T$42,FeedTables!$C$46:$T$46,,-1)*_xlfn.XLOOKUP(N318,DensityMultiplier[Biomass kg/m3],DensityMultiplier[Multiplier],,-1)","v":{"$error":"#N/A"}},1926.6019431401946,{"$f":"IF(A319<='S1-Standard'!$C$7,('Growth-Model-1'!G318*EXP($AA$7)),0)","v":0},{"$f":"IF(A319<='S1-Standard'!$C$7,$AD$6*EXP($AD$7*('S1-Standard'!C$7-'Growth-Model-1'!A319)),0)","v":0},98.398056859804981,4.8591633017187642E-2,0,9.6134220875344365,0,{"$f":"M319/'S1-Standard'!$C$17","v":0},{"$error":"#N/A"},{"$error":"#N/A"},{"$f":"_xlfn.XLOOKUP(B319,FeedTables!$C$17:$T$17,FeedTables!$C$31:$T$31,,-1)","v":{"$error":"#N/A"}},{"$f":"_xlfn.XLOOKUP(Q319,FeedPrice[Feed],FeedPrice[Price per kg],\"Unknown\",0)*O319","v":{"$error":"#N/A"}},{"$error":"#N/A"},{"$f":"_xlfn.XLOOKUP(O319,LabourFromFeed[Feed Quantity (kg)],LabourFromFeed[No. Labour],\"Out of range\",-1)","v":{"$error":"#N/A"}},{"$f":"T319*OperatingCosts!$C$9","v":{"$error":"#N/A"}},{"$error":"#N/A"}]
[318,{"$f":"IF(A320<='S1-Standard'!$C$7, B319*EXP((LN((E319/100)+1))*1),)","v":0},{"$f":"_xlfn.XLOOKUP($B320,FeedTables!$C$42:$T$42,FeedTables!$C$44:$T$44,,-1)","v":{"$error":"#N/A"}},{"$f":"_xlfn.XLOOKUP($B320,FeedTables!$C$42:$T$42,FeedTables!$C$45:$T$45,,-1)","v":{"$error":"#N/A"}},{"$f":"_xlfn.XLOOKUP($B320,FeedTables!$C$42:$T$42,FeedTables!$C$46:$T$46,,-1)*_xlfn.XLOOKUP(N319,DensityMultiplier[Biomass kg/m3],DensityMultiplier[Multiplier],,-1)","v":{"$error":"#N/A"}},1926.6019431401946,{"$f":"IF(A320<='S1-Standard'!$C$7,('Growth-Model-1'!G319*EXP($AA$7)),0)","v":0},{"$f":"IF(A320<='S1-Standard'!$C$7,$AD$6*EXP($AD$7*('S1-Standard'!C$7-'Growth-Model-1'!A320)),0)","v":0},98.398056859804981,4.8591633017187642E-2,0,9.6134220875344365,0,{"$f":"M320/'S1-Standard'!$C$17","v":0},{"$error":"#N/A"},{"$error":"#N/A"},{"$f":"_xlfn.XLOOKUP(B320,FeedTables!$C$17:$T$17,FeedTables!$C$31:$T$31,,-1)","v":{"$error":"#N/A"}},{"$f":"_xlfn.XLOOKUP(Q320,FeedPrice[Feed],FeedPrice[Price per kg],\"Unknown\",0)*O320","v":{"$error":"#N/A"}},{"$error":"#N/A"},{"$f":"_xlfn.XLOOKUP(O320,LabourFromFeed[Feed Quantity (kg)],LabourFromFeed[No. Labour],\"Out of range\",-1)","v":{"$error":"#N/A"}},{"$f":"T320*OperatingCosts!$C$9","v":{"$error":"#N/A"}},{"$error":"#N/A"}]
[319,{"$f":"IF(A321<='S1-Standard'!$C$7, B320*EXP((LN((E320/100)+1))*1),)","v":0},{"$f":"_xlfn.XLOOKUP($B321,FeedTables!$C$42:$T$42,FeedTables!$C$44:$T$44,,-1)","v":{"$error":"#N/A"}},{"$f":"_xlfn.XLOOKUP($B321,FeedTables!$C$42:$T$42,FeedTables!$C$45:$T$45,,-1)","v":{"$error":"#N/A"}},{"$f":"_xlfn.XLOOKUP($B321,FeedTables!$C$42:$T$42,FeedTables!$C$46:$T$46,,-1)*_xlfn.XLOOKUP(N320,DensityMultiplier[Biomass kg/m3],DensityMultiplier[Multiplier],,-1)","v":{"$error":"#N/A"}},1926.6019431401946,{"$f":"IF(A321<='S1-Standard'!$C$7,('Growth-Model-1'!G320*EXP($AA$7)),0)","v":0},{"$f":"IF(A321<='S1-Standard'!$C$7,$AD$6*EXP($AD$7*('S1-Standard'!C$7-'Growth-Model-1'!A321)),0)","v":0},98.398056859804981,4.8591633017187642E-2,0,9.6134220875344365,0,{"$f":"M321/'S1-Standard'!$C$17","v":0},{"$error":"#N/A"},{"$error":"#N/A"},{"$f":"_xlfn.XLOOKUP(B321,FeedTables!$C$17:$T$17,FeedTables!$C$31:$T$31,,-1)","v":{"$error":"#N/A"}},{"$f":"_xlfn.XLOOKUP(Q321,FeedPrice[Feed],FeedPrice[Price per kg],\"Unknown\",0)*O321","v":{"$error":"#N/A"}},{"$error":"#N/A"},{"$f":"_xlfn.XLOOKUP(O321,LabourFromFeed[Feed Quantity (kg)],LabourFromFeed[No. Labour],\"Out of range\",-1)","v":{"$error":"#N/A"}},{"$f":"T321*OperatingCosts!$C$9","v":{"$error":"#N/A"}},{"$error":"#N/A"}]
[320,{"$f":"IF(A322<='S1-Standard'!$C$7, B321*EXP((LN((E321/100)+1))*1),)","v":0},{"$f":"_xlfn.XLOOKUP($B322,FeedTables!$C$42:$T$42,FeedTables!$C$44:$T$44,,-1)","v":{"$error":"#N/A"}},{"$f":"_xlfn.XLOOKUP($B322,FeedTables!$C$42:$T$42,FeedTables!$C$45:$T$45,,-1)","v":{"$error":"#N/A"}},{"$f":"_xlfn.XLOOKUP($B322,FeedTables!$C$42:$T$42,FeedTables!$C$46:$T$46,,-1)*_xlfn.XLOOKUP(N321,DensityMultiplier[Biomass kg/m3],DensityMultiplier[Multiplier],,-1)","v":{"$error":"#N/A"}},1926.6019431401946,{"$f":"IF(A322<='S1-Standard'!$C$7,('Growth-Model-1'!G321*EXP($AA$7)),0)","v":0},{"$f":"IF(A322<='S1-Standard'!$C$7,$AD$6*EXP($AD$7*('S1-Standard'!C$7-'Growth-Model-1'!A322)),0)","v":0},98.398056859804981,4.8591633017187642E-2,0,9.6134220875344365,{"$f":"(B322*F322)/1000","v":0},{"$f":"M322/'S1-Standard'!$C$17","v":0},{"$f":"M322*(C322/100)","v":{"$error":"#N/A"}},{"$error":"#N/A"},{"$f":"_xlfn.XLOOKUP(B322,FeedTables!$C$17:$T$17,FeedTables!$C$31:$T$31,,-1)","v":{"$error":"#N/A"}},{"$f":"_xlfn.XLOOKUP(Q322,FeedPrice[Feed],FeedPrice[Price per kg],\"Unknown\",0)*O322","v":{"$error":"#N/A"}},{"$error":"#N/A"},{"$f":"_xlfn.XLOOKUP(O322,LabourFromFeed[Feed Quantity (kg)],LabourFromFeed[No. Labour],\"Out of range\",-1)","v":{"$error":"#N/A"}},{"$f":"T322*OperatingCosts!$C$9","v":{"$error":"#N/A"}},{"$error":"#N/A"}]
[321,{"$f":"IF(A323<='S1-Standard'!$C$7, B322*EXP((LN((E322/100)+1))*1),)","v":0},{"$f":"_xlfn.XLOOKUP($B323,FeedTables!$C$42:$T$42,FeedTables!$C$44:$T$44,,-1)","v":{"$error":"#N/A"}},{"$f":"_xlfn.XLOOKUP($B323,FeedTables!$C$42:$T$42,FeedTables!$C$45:$T$45,,-1)","v":{"$error":"#N/A"}},{"$f":"_xlfn.XLOOKUP($B323,FeedTables!$C$42:$T$42,FeedTables!$C$46:$T$46,,-1)*_xlfn.XLOOKUP(N322,DensityMultiplier[Biomass kg/m3],DensityMultiplier[Multiplier],,-1)","v":{"$error":"#N/A"}},1926.6019431401946,{"$f":"IF(A323<='S1-Standard'!$C$7,('Growth-Model-1'!G322*EXP($AA$7)),0)","v":0},{"$f":"IF(A323<='S1-Standard'!$C$7,$AD$6*EXP($AD$7*('S1-Standard'!C$7-'Growth-Model-1'!A323)),0)","v":0},98.398056859804981,{"$f":"I323/$F$2","v":4.8591633017187642E-2},{"$f":"(G323+H323)*B323","v":0},9.6134220875344365,0,{"$f":"M323/'S1-Standard'!$C$17","v":0},{"$error":"#N/A"},{"$error":"#N/A"},{"$f":"_xlfn.XLOOKUP(B323,FeedTables!$C$17:$T$17,FeedTables!$C$31:$T$31,,-1)","v":{"$error":"#N/A"}},{"$f":"_xlfn.XLOOKUP(Q323,FeedPrice[Feed],FeedPrice[Price per kg],\"Unknown\",0)*O323","v":{"$error":"#N/A"}},{"$error":"#N/A"},{"$f":"_xlfn.XLOOKUP(O323,LabourFromFeed[Feed Quantity (kg)],LabourFromFeed[No. Labour],\"Out of range\",-1)","v":{"$error":"#N/A"}},{"$f":"T323*OperatingCosts!$C$9","v":{"$error":"#N/A"}},{"$error":"#N/A"}]
[322,{"$f":"IF(A324<='S1-Standard'!$C$7, B323*EXP((LN((E323/100)+1))*1),)","v":0},{"$f":"_xlfn.XLOOKUP($B324,FeedTables!$C$42:$T$42,FeedTables!$C$44:$T$44,,-1)","v":{"$error":"#N/A"}},{"$f":"_xlfn.XLOOKUP($B324,FeedTables!$C$42:$T$42,FeedTables!$C$45:$T$45,,-1)","v":{"$error":"#N/A"}},{"$f":"_xlfn.XLOOKUP($B324,FeedTables!$C$42:$T$42,FeedTables!$C$46:$T$46,,-1)*_xlfn.XLOOKUP(N323,DensityMultiplier[Biomass kg/m3],DensityMultiplier[Multiplier],,-1)","v":{"$error":"#N/A"}},1926.6019431401946,{"$f":"IF(A324<='S1-Standard'!$C$7,('Growth-Model-1'!G323*EXP($AA$7)),0)","v":0},{"$f":"IF(A324<='S1-Standard'!$C$7,$AD$6*EXP($AD$7*('S1-Standard'!C$7-'Growth-Model-1'!A324)),0)","v":0},{"$f":"I323+G324+H324","v":98.398056859804981},4.8591633017187642E-2,0,{"$f":"(K324/1000)+L323","v":9.6134220875344365},0,{"$f":"M324/'S1-Standard'!$C$17","v":0},{"$error":"#N/A"},{"$f":"O324+P323","v":{"$error":"#N/A"}},{"$f":"_xlfn.XLOOKUP(B324,FeedTables!$C$17:$T$17,FeedTables!$C$31:$T$31,,-1)","v":{"$error":"#N/A"}},{"$f":"_xlfn.XLOOKUP(Q324,FeedPrice[Feed],FeedPrice[Price per kg],\"Unknown\",0)*O324","v":{"$error":"#N/A"}},{"$f":"R324+S323","v":{"$error":"#N/A"}},{"$f":"_xlfn.XLOOKUP(O324,LabourFromFeed[Feed Quantity (kg)],LabourFromFeed[No. Labour],\"Out of range\",-1)","v":{"$error":"#N/A"}},{"$f":"T324*OperatingCosts!$C$9","v":{"$error":"#N/A"}},{"$f":"U324+V323","v":{"$error":"#N/A"}}]
[323,{"$f":"IF(A325<='S1-Standard'!$C$7, B324*EXP((LN((E324/100)+1))*1),)","v":0},{"$f":"_xlfn.XLOOKUP($B325,FeedTables!$C$42:$T$42,FeedTables!$C$44:$T$44,,-1)","v":{"$error":"#N/A"}},{"$f":"_xlfn.XLOOKUP($B325,FeedTables!$C$42:$T$42,FeedTables!$C$45:$T$45,,-1)","v":{"$error":"#N/A"}},{"$f":"_xlfn.XLOOKUP($B325,FeedTables!$C$42:$T$42,FeedTables!$C$46:$T$46,,-1)*_xlfn.XLOOKUP(N324,DensityMultiplier[Biomass kg/m3],DensityMultiplier[Multiplier],,-1)","v":{"$error":"#N/A"}},{"$f":"F324-G324-H324","v":1926.6019431401946},{"$f":"IF(A325<='S1-Standard'!$C$7,('Growth-Model-1'!G324*EXP($AA$7)),0)","v":0},{"$f":"IF(A325<='S1-Standard'!$C$7,$AD$6*EXP($AD$7*('S1-Standard'!C$7-'Growth-Model-1'!A325)),0)","v":0},98.398056859804981,4.8591633017187642E-2,0,9.6134220875344365,0,{"$f":"M325/'S1-Standard'!$C$17","v":0},{"$error":"#N/A"},{"$error":"#N/A"},{"$f":"_xlfn.XLOOKUP(B325,FeedTables!$C$17:$T$17,FeedTables!$C$31:$T$31,,-1)","v":{"$error":"#N/A"}},{"$f":"_xlfn.XLOOKUP(Q325,FeedPrice[Feed],FeedPrice[Price per kg],\"Unknown\",0)*O325","v":{"$error":"#N/A"}},{"$error":"#N/A"},{"$f":"_xlfn.XLOOKUP(O325,LabourFromFeed[Feed Quantity (kg)],LabourFromFeed[No. Labour],\"Out of range\",-1)","v":{"$error":"#N/A"}},{"$f":"T325*OperatingCosts!$C$9","v":{"$error":"#N/A"}},{"$error":"#N/A"}]
[324,{"$f":"IF(A326<='S1-Standard'!$C$7, B325*EXP((LN((E325/100)+1))*1),)","v":0},{"$f":"_xlfn.XLOOKUP($B326,FeedTables!$C$42:$T$42,FeedTables!$C$44:$T$44,,-1)","v":{"$error":"#N/A"}},{"$f":"_xlfn.XLOOKUP($B326,FeedTables!$C$42:$T$42,FeedTables!$C$45:$T$45,,-1)","v":{"$error":"#N/A"}},{"$f":"_xlfn.XLOOKUP($B326,FeedTables!$C$42:$T$42,FeedTables!$C$46:$T$46,,-1)*_xlfn.XLOOKUP(N325,DensityMultiplier[Biomass kg/m3],DensityMultiplier[Multiplier],,-1)","v":{"$error":"#N/A"}},1926.6019431401946,{"$f":"IF(A326<='S1-Standard'!$C$7,('Growth-Model-1'!G325*EXP($AA$7)),0)","v":0},{"$f":"IF(A326<='S1-Standard'!$C$7,$AD$6*EXP($AD$7*('S1-Standard'!C$7-'Growth-Model-1'!A326)),0)","v":0},98.398056859804981,4.8591633017187642E-2,0,9.6134220875344365,0,{"$f":"M326/'S1-Standard'!$C$17","v":0},{"$error":"#N/A"},{"$error":"#N/A"},{"$f":"_xlfn.XLOOKUP(B326,FeedTables!$C$17:$T$17,FeedTables!$C$31:$T$31,,-1)","v":{"$error":"#N/A"}},{"$f":"_xlfn.XLOOKUP(Q326,FeedPrice[Feed],FeedPrice[Price per kg],\"Unknown\",0)*O326","v":{"$error":"#N/A"}},{"$error":"#N/A"},{"$f":"_xlfn.XLOOKUP(O326,LabourFromFeed[Feed Quantity (kg)],LabourFromFeed[No. Labour],\"Out of range\",-1)","v":{"$error":"#N/A"}},{"$f":"T326*OperatingCosts!$C$9","v":{"$error":"#N/A"}},{"$error":"#N/A"}]
[325,{"$f":"IF(A327<='S1-Standard'!$C$7, B326*EXP((LN((E326/100)+1))*1),)","v":0},{"$f":"_xlfn.XLOOKUP($B327,FeedTables!$C$42:$T$42,FeedTables!$C$44:$T$44,,-1)","v":{"$error":"#N/A"}},{"$f":"_xlfn.XLOOKUP($B327,FeedTables!$C$42:$T$42,FeedTables!$C$45:$T$45,,-1)","v":{"$error":"#N/A"}},{"$f":"_xlfn.XLOOKUP($B327,FeedTables!$C$42:$T$42,FeedTables!$C$46:$T$46,,-1)*_xlfn.XLOOKUP(N326,DensityMultiplier[Biomass kg/m3],DensityMultiplier[Multiplier],,-1)","v":{"$error":"#N/A"}},1926.6019431401946,{"$f":"IF(A327<='S1-Standard'!$C$7,('Growth-Model-1'!G326*EXP($AA$7)),0)","v":0},{"$f":"IF(A327<='S1-Standard'!$C$7,$AD$6*EXP($AD$7*('S1-Standard'!C$7-'Growth-Model-1'!A327)),0)","v":0},98.398056859804981,4.8591633017187642E-2,0,9.6134220875344365,0,{"$f":"M327/'S1-Standard'!$C$17","v":0},{"$error":"#N/A"},{"$error":"#N/A"},{"$f":"_xlfn.XLOOKUP(B327,FeedTables!$C$17:$T$17,FeedTables!$C$31:$T$31,,-1)","v":{"$error":"#N/A"}},{"$f":"_xlfn.XLOOKUP(Q327,FeedPrice[Feed],FeedPrice[Price per kg],\"Unknown\",0)*O327","v":{"$error":"#N/A"}},{"$error":"#N/A"},{"$f":"_xlfn.XLOOKUP(O327,LabourFromFeed[Feed Quantity (kg)],LabourFromFeed[No. Labour],\"Out of range\",-1)","v":{"$error":"#N/A"}},{"$f":"T327*OperatingCosts!$C$9","v":{"$error":"#N/A"}},{"$error":"#N/A"}]
[326,{"$f":"IF(A328<='S1-Standard'!$C$7, B327*EXP((LN((E327/100)+1))*1),)","v":0},{"$f":"_xlfn.XLOOKUP($B328,FeedTables!$C$42:$T$42,FeedTables!$C$44:$T$44,,-1)","v":{"$error":"#N/A"}},{"$f":"_xlfn.XLOOKUP($B328,FeedTables!$C$42:$T$42,FeedTables!$C$45:$T$45,,-1)","v":{"$error":"#N/A"}},{"$f":"_xlfn.XLOOKUP($B328,FeedTables!$C$42:$T$42,FeedTables!$C$46:$T$46,,-1)*_xlfn.XLOOKUP(N327,DensityMultiplier[Biomass kg/m3],DensityMultiplier[Multiplier],,-1)","v":{"$error":"#N/A"}},1926.6019431401946,{"$f":"IF(A328<='S1-Standard'!$C$7,('Growth-Model-1'!G327*EXP($AA$7)),0)","v":0},{"$f":"IF(A328<='S1-Standard'!$C$7,$AD$6*EXP($AD$7*('S1-Standard'!C$7-'Growth-Model-1'!A328)),0)","v":0},98.398056859804981,4.8591633017187642E-2,0,9.6134220875344365,0,{"$f":"M328/'S1-Standard'!$C$17","v":0},{"$error":"#N/A"},{"$error":"#N/A"},{"$f":"_xlfn.XLOOKUP(B328,FeedTables!$C$17:$T$17,FeedTables!$C$31:$T$31,,-1)","v":{"$error":"#N/A"}},{"$f":"_xlfn.XLOOKUP(Q328,FeedPrice[Feed],FeedPrice[Price per kg],\"Unknown\",0)*O328","v":{"$error":"#N/A"}},{"$error":"#N/A"},{"$f":"_xlfn.XLOOKUP(O328,LabourFromFeed[Feed Quantity (kg)],LabourFromFeed[No. Labour],\"Out of range\",-1)","v":{"$error":"#N/A"}},{"$f":"T328*OperatingCosts!$C$9","v":{"$error":"#N/A"}},{"$error":"#N/A"}]
[327,{"$f":"IF(A329<='S1-Standard'!$C$7, B328*EXP((LN((E328/100)+1))*1),)","v":0},{"$f":"_xlfn.XLOOKUP($B329,FeedTables!$C$42:$T$42,FeedTables!$C$44:$T$44,,-1)","v":{"$error":"#N/A"}},{"$f":"_xlfn.XLOOKUP($B329,FeedTables!$C$42:$T$42,FeedTables!$C$45:$T$45,,-1)","v":{"$error":"#N/A"}},{"$f":"_xlfn.XLOOKUP($B329,FeedTables!$C$42:$T$42,FeedTables!$C$46:$T$46,,-1)*_xlfn.XLOOKUP(N328,DensityMultiplier[Biomass kg/m3],DensityMultiplier[Multiplier],,-1)","v":{"$error":"#N/A"}},1926.6019431401946,{"$f":"IF(A329<='S1-Standard'!$C$7,('Growth-Model-1'!G328*EXP($AA$7)),0)","v":0},{"$f":"IF(A329<='S1-Standard'!$C$7,$AD$6*EXP($AD$7*('S1-Standard'!C$7-'Growth-Model-1'!A329)),0)","v":0},98.398056859804981,4.8591633017187642E-2,0,9.6134220875344365,0,{"$f":"M329/'S1-Standard'!$C$17","v":0},{"$error":"#N/A"},{"$error":"#N/A"},{"$f":"_xlfn.XLOOKUP(B329,FeedTables!$C$17:$T$17,FeedTables!$C$31:$T$31,,-1)","v":{"$error":"#N/A"}},{"$f":"_xlfn.XLOOKUP(Q329,FeedPrice[Feed],FeedPrice[Price per kg],\"Unknown\",0)*O329","v":{"$error":"#N/A"}},{"$error":"#N/A"},{"$f":"_xlfn.XLOOKUP(O329,LabourFromFeed[Feed Quantity (kg)],LabourFromFeed[No. Labour],\"Out of range\",-1)","v":{"$error":"#N/A"}},{"$f":"T329*OperatingCosts!$C$9","v":{"$error":"#N/A"}},{"$error":"#N/A"}]
[328,{"$f":"IF(A330<='S1-Standard'!$C$7, B329*EXP((LN((E329/100)+1))*1),)","v":0},{"$f":"_xlfn.XLOOKUP($B330,FeedTables!$C$42:$T$42,FeedTables!$C$44:$T$44,,-1)","v":{"$error":"#N/A"}},{"$f":"_xlfn.XLOOKUP($B330,FeedTables!$C$42:$T$42,FeedTables!$C$45:$T$45,,-1)","v":{"$error":"#N/A"}},{"$f":"_xlfn.XLOOKUP($B330,FeedTables!$C$42:$T$42,FeedTables!$C$46:$T$46,,-1)*_xlfn.XLOOKUP(N329,DensityMultiplier[Biomass kg/m3],DensityMultiplier[Multiplier],,-1)","v":{"$error":"#N/A"}},1926.6019431401946,{"$f":"IF(A330<='S1-Standard'!$C$7,('Growth-Model-1'!G329*EXP($AA$7)),0)","v":0},{"$f":"IF(A330<='S1-Standard'!$C$7,$AD$6*EXP($AD$7*('S1-Standard'!C$7-'Growth-Model-1'!A330)),0)","v":0},98.398056859804981,4.8591633017187642E-2,0,9.6134220875344365,0,{"$f":"M330/'S1-Standard'!$C$17","v":0},{"$error":"#N/A"},{"$error":"#N/A"},{"$f":"_xlfn.XLOOKUP(B330,FeedTables!$C$17:$T$17,FeedTables!$C$31:$T$31,,-1)","v":{"$error":"#N/A"}},{"$f":"_xlfn.XLOOKUP(Q330,FeedPrice[Feed],FeedPrice[Price per kg],\"Unknown\",0)*O330","v":{"$error":"#N/A"}},{"$error":"#N/A"},{"$f":"_xlfn.XLOOKUP(O330,LabourFromFeed[Feed Quantity (kg)],LabourFromFeed[No. Labour],\"Out of range\",-1)","v":{"$error":"#N/A"}},{"$f":"T330*OperatingCosts!$C$9","v":{"$error":"#N/A"}},{"$error":"#N/A"}]
[329,{"$f":"IF(A331<='S1-Standard'!$C$7, B330*EXP((LN((E330/100)+1))*1),)","v":0},{"$f":"_xlfn.XLOOKUP($B331,FeedTables!$C$42:$T$42,FeedTables!$C$44:$T$44,,-1)","v":{"$error":"#N/A"}},{"$f":"_xlfn.XLOOKUP($B331,FeedTables!$C$42:$T$42,FeedTables!$C$45:$T$45,,-1)","v":{"$error":"#N/A"}},{"$f":"_xlfn.XLOOKUP($B331,FeedTables!$C$42:$T$42,FeedTables!$C$46:$T$46,,-1)*_xlfn.XLOOKUP(N330,DensityMultiplier[Biomass kg/m3],DensityMultiplier[Multiplier],,-1)","v":{"$error":"#N/A"}},1926.6019431401946,{"$f":"IF(A331<='S1-Standard'!$C$7,('Growth-Model-1'!G330*EXP($AA$7)),0)","v":0},{"$f":"IF(A331<='S1-Standard'!$C$7,$AD$6*EXP($AD$7*('S1-Standard'!C$7-'Growth-Model-1'!A331)),0)","v":0},98.398056859804981,4.8591633017187642E-2,0,9.6134220875344365,0,{"$f":"M331/'S1-Standard'!$C$17","v":0},{"$error":"#N/A"},{"$error":"#N/A"},{"$f":"_xlfn.XLOOKUP(B331,FeedTables!$C$17:$T$17,FeedTables!$C$31:$T$31,,-1)","v":{"$error":"#N/A"}},{"$f":"_xlfn.XLOOKUP(Q331,FeedPrice[Feed],FeedPrice[Price per kg],\"Unknown\",0)*O331","v":{"$error":"#N/A"}},{"$error":"#N/A"},{"$f":"_xlfn.XLOOKUP(O331,LabourFromFeed[Feed Quantity (kg)],LabourFromFeed[No. Labour],\"Out of range\",-1)","v":{"$error":"#N/A"}},{"$f":"T331*OperatingCosts!$C$9","v":{"$error":"#N/A"}},{"$error":"#N/A"}]
[330,{"$f":"IF(A332<='S1-Standard'!$C$7, B331*EXP((LN((E331/100)+1))*1),)","v":0},{"$f":"_xlfn.XLOOKUP($B332,FeedTables!$C$42:$T$42,FeedTables!$C$44:$T$44,,-1)","v":{"$error":"#N/A"}},{"$f":"_xlfn.XLOOKUP($B332,FeedTables!$C$42:$T$42,FeedTables!$C$45:$T$45,,-1)","v":{"$error":"#N/A"}},{"$f":"_xlfn.XLOOKUP($B332,FeedTables!$C$42:$T$42,FeedTables!$C$46:$T$46,,-1)*_xlfn.XLOOKUP(N331,DensityMultiplier[Biomass kg/m3],DensityMultiplier[Multiplier],,-1)","v":{"$error":"#N/A"}},1926.6019431401946,{"$f":"IF(A332<='S1-Standard'!$C$7,('Growth-Model-1'!G331*EXP($AA$7)),0)","v":0},{"$f":"IF(A332<='S1-Standard'!$C$7,$AD$6*EXP($AD$7*('S1-Standard'!C$7-'Growth-Model-1'!A332)),0)","v":0},98.398056859804981,4.8591633017187642E-2,0,9.6134220875344365,0,{"$f":"M332/'S1-Standard'!$C$17","v":0},{"$error":"#N/A"},{"$error":"#N/A"},{"$f":"_xlfn.XLOOKUP(B332,FeedTables!$C$17:$T$17,FeedTables!$C$31:$T$31,,-1)","v":{"$error":"#N/A"}},{"$f":"_xlfn.XLOOKUP(Q332,FeedPrice[Feed],FeedPrice[Price per kg],\"Unknown\",0)*O332","v":{"$error":"#N/A"}},{"$error":"#N/A"},{"$f":"_xlfn.XLOOKUP(O332,LabourFromFeed[Feed Quantity (kg)],LabourFromFeed[No. Labour],\"Out of range\",-1)","v":{"$error":"#N/A"}},{"$f":"T332*OperatingCosts!$C$9","v":{"$error":"#N/A"}},{"$error":"#N/A"}]
[331,{"$f":"IF(A333<='S1-Standard'!$C$7, B332*EXP((LN((E332/100)+1))*1),)","v":0},{"$f":"_xlfn.XLOOKUP($B333,FeedTables!$C$42:$T$42,FeedTables!$C$44:$T$44,,-1)","v":{"$error":"#N/A"}},{"$f":"_xlfn.XLOOKUP($B333,FeedTables!$C$42:$T$42,FeedTables!$C$45:$T$45,,-1)","v":{"$error":"#N/A"}},{"$f":"_xlfn.XLOOKUP($B333,FeedTables!$C$42:$T$42,FeedTables!$C$46:$T$46,,-1)*_xlfn.XLOOKUP(N332,DensityMultiplier[Biomass kg/m3],DensityMultiplier[Multiplier],,-1)","v":{"$error":"#N/A"}},1926.6019431401946,{"$f":"IF(A333<='S1-Standard'!$C$7,('Growth-Model-1'!G332*EXP($AA$7)),0)","v":0},{"$f":"IF(A333<='S1-Standard'!$C$7,$AD$6*EXP($AD$7*('S1-Standard'!C$7-'Growth-Model-1'!A333)),0)","v":0},98.398056859804981,4.8591633017187642E-2,0,9.6134220875344365,0,{"$f":"M333/'S1-Standard'!$C$17","v":0},{"$error":"#N/A"},{"$error":"#N/A"},{"$f":"_xlfn.XLOOKUP(B333,FeedTables!$C$17:$T$17,FeedTables!$C$31:$T$31,,-1)","v":{"$error":"#N/A"}},{"$f":"_xlfn.XLOOKUP(Q333,FeedPrice[Feed],FeedPrice[Price per kg],\"Unknown\",0)*O333","v":{"$error":"#N/A"}},{"$error":"#N/A"},{"$f":"_xlfn.XLOOKUP(O333,LabourFromFeed[Feed Quantity (kg)],LabourFromFeed[No. Labour],\"Out of range\",-1)","v":{"$error":"#N/A"}},{"$f":"T333*OperatingCosts!$C$9","v":{"$error":"#N/A"}},{"$error":"#N/A"}]
[332,{"$f":"IF(A334<='S1-Standard'!$C$7, B333*EXP((LN((E333/100)+1))*1),)","v":0},{"$f":"_xlfn.XLOOKUP($B334,FeedTables!$C$42:$T$42,FeedTables!$C$44:$T$44,,-1)","v":{"$error":"#N/A"}},{"$f":"_xlfn.XLOOKUP($B334,FeedTables!$C$42:$T$42,FeedTables!$C$45:$T$45,,-1)","v":{"$error":"#N/A"}},{"$f":"_xlfn.XLOOKUP($B334,FeedTables!$C$42:$T$42,FeedTables!$C$46:$T$46,,-1)*_xlfn.XLOOKUP(N333,DensityMultiplier[Biomass kg/m3],DensityMultiplier[Multiplier],,-1)","v":{"$error":"#N/A"}},1926.6019431401946,{"$f":"IF(A334<='S1-Standard'!$C$7,('Growth-Model-1'!G333*EXP($AA$7)),0)","v":0},{"$f":"IF(A334<='S1-Standard'!$C$7,$AD$6*EXP($AD$7*('S1-Standard'!C$7-'Growth-Model-1'!A334)),0)","v":0},98.398056859804981,4.8591633017187642E-2,0,9.6134220875344365,0,{"$f":"M334/'S1-Standard'!$C$17","v":0},{"$error":"#N/A"},{"$error":"#N/A"},{"$f":"_xlfn.XLOOKUP(B334,FeedTables!$C$17:$T$17,FeedTables!$C$31:$T$31,,-1)","v":{"$error":"#N/A"}},{"$f":"_xlfn.XLOOKUP(Q334,FeedPrice[Feed],FeedPrice[Price per kg],\"Unknown\",0)*O334","v":{"$error":"#N/A"}},{"$error":"#N/A"},{"$f":"_xlfn.XLOOKUP(O334,LabourFromFeed[Feed Quantity (kg)],LabourFromFeed[No. Labour],\"Out of range\",-1)","v":{"$error":"#N/A"}},{"$f":"T334*OperatingCosts!$C$9","v":{"$error":"#N/A"}},{"$error":"#N/A"}]
[333,{"$f":"IF(A335<='S1-Standard'!$C$7, B334*EXP((LN((E334/100)+1))*1),)","v":0},{"$f":"_xlfn.XLOOKUP($B335,FeedTables!$C$42:$T$42,FeedTables!$C$44:$T$44,,-1)","v":{"$error":"#N/A"}},{"$f":"_xlfn.XLOOKUP($B335,FeedTables!$C$42:$T$42,FeedTables!$C$45:$T$45,,-1)","v":{"$error":"#N/A"}},{"$f":"_xlfn.XLOOKUP($B335,FeedTables!$C$42:$T$42,FeedTables!$C$46:$T$46,,-1)*_xlfn.XLOOKUP(N334,DensityMultiplier[Biomass kg/m3],DensityMultiplier[Multiplier],,-1)","v":{"$error":"#N/A"}},1926.6019431401946,{"$f":"IF(A335<='S1-Standard'!$C$7,('Growth-Model-1'!G334*EXP($AA$7)),0)","v":0},{"$f":"IF(A335<='S1-Standard'!$C$7,$AD$6*EXP($AD$7*('S1-Standard'!C$7-'Growth-Model-1'!A335)),0)","v":0},98.398056859804981,4.8591633017187642E-2,0,9.6134220875344365,0,{"$f":"M335/'S1-Standard'!$C$17","v":0},{"$error":"#N/A"},{"$error":"#N/A"},{"$f":"_xlfn.XLOOKUP(B335,FeedTables!$C$17:$T$17,FeedTables!$C$31:$T$31,,-1)","v":{"$error":"#N/A"}},{"$f":"_xlfn.XLOOKUP(Q335,FeedPrice[Feed],FeedPrice[Price per kg],\"Unknown\",0)*O335","v":{"$error":"#N/A"}},{"$error":"#N/A"},{"$f":"_xlfn.XLOOKUP(O335,LabourFromFeed[Feed Quantity (kg)],LabourFromFeed[No. Labour],\"Out of range\",-1)","v":{"$error":"#N/A"}},{"$f":"T335*OperatingCosts!$C$9","v":{"$error":"#N/A"}},{"$error":"#N/A"}]
[334,{"$f":"IF(A336<='S1-Standard'!$C$7, B335*EXP((LN((E335/100)+1))*1),)","v":0},{"$f":"_xlfn.XLOOKUP($B336,FeedTables!$C$42:$T$42,FeedTables!$C$44:$T$44,,-1)","v":{"$error":"#N/A"}},{"$f":"_xlfn.XLOOKUP($B336,FeedTables!$C$42:$T$42,FeedTables!$C$45:$T$45,,-1)","v":{"$error":"#N/A"}},{"$f":"_xlfn.XLOOKUP($B336,FeedTables!$C$42:$T$42,FeedTables!$C$46:$T$46,,-1)*_xlfn.XLOOKUP(N335,DensityMultiplier[Biomass kg/m3],DensityMultiplier[Multiplier],,-1)","v":{"$error":"#N/A"}},1926.6019431401946,{"$f":"IF(A336<='S1-Standard'!$C$7,('Growth-Model-1'!G335*EXP($AA$7)),0)","v":0},{"$f":"IF(A336<='S1-Standard'!$C$7,$AD$6*EXP($AD$7*('S1-Standard'!C$7-'Growth-Model-1'!A336)),0)","v":0},98.398056859804981,4.8591633017187642E-2,0,9.6134220875344365,0,{"$f":"M336/'S1-Standard'!$C$17","v":0},{"$error":"#N/A"},{"$error":"#N/A"},{"$f":"_xlfn.XLOOKUP(B336,FeedTables!$C$17:$T$17,FeedTables!$C$31:$T$31,,-1)","v":{"$error":"#N/A"}},{"$f":"_xlfn.XLOOKUP(Q336,FeedPrice[Feed],FeedPrice[Price per kg],\"Unknown\",0)*O336","v":{"$error":"#N/A"}},{"$error":"#N/A"},{"$f":"_xlfn.XLOOKUP(O336,LabourFromFeed[Feed Quantity (kg)],LabourFromFeed[No. Labour],\"Out of range\",-1)","v":{"$error":"#N/A"}},{"$f":"T336*OperatingCosts!$C$9","v":{"$error":"#N/A"}},{"$error":"#N/A"}]
[335,{"$f":"IF(A337<='S1-Standard'!$C$7, B336*EXP((LN((E336/100)+1))*1),)","v":0},{"$f":"_xlfn.XLOOKUP($B337,FeedTables!$C$42:$T$42,FeedTables!$C$44:$T$44,,-1)","v":{"$error":"#N/A"}},{"$f":"_xlfn.XLOOKUP($B337,FeedTables!$C$42:$T$42,FeedTables!$C$45:$T$45,,-1)","v":{"$error":"#N/A"}},{"$f":"_xlfn.XLOOKUP($B337,FeedTables!$C$42:$T$42,FeedTables!$C$46:$T$46,,-1)*_xlfn.XLOOKUP(N336,DensityMultiplier[Biomass kg/m3],DensityMultiplier[Multiplier],,-1)","v":{"$error":"#N/A"}},1926.6019431401946,{"$f":"IF(A337<='S1-Standard'!$C$7,('Growth-Model-1'!G336*EXP($AA$7)),0)","v":0},{"$f":"IF(A337<='S1-Standard'!$C$7,$AD$6*EXP($AD$7*('S1-Standard'!C$7-'Growth-Model-1'!A337)),0)","v":0},98.398056859804981,4.8591633017187642E-2,0,9.6134220875344365,0,{"$f":"M337/'S1-Standard'!$C$17","v":0},{"$error":"#N/A"},{"$error":"#N/A"},{"$f":"_xlfn.XLOOKUP(B337,FeedTables!$C$17:$T$17,FeedTables!$C$31:$T$31,,-1)","v":{"$error":"#N/A"}},{"$f":"_xlfn.XLOOKUP(Q337,FeedPrice[Feed],FeedPrice[Price per kg],\"Unknown\",0)*O337","v":{"$error":"#N/A"}},{"$error":"#N/A"},{"$f":"_xlfn.XLOOKUP(O337,LabourFromFeed[Feed Quantity (kg)],LabourFromFeed[No. Labour],\"Out of range\",-1)","v":{"$error":"#N/A"}},{"$f":"T337*OperatingCosts!$C$9","v":{"$error":"#N/A"}},{"$error":"#N/A"}]
[336,{"$f":"IF(A338<='S1-Standard'!$C$7, B337*EXP((LN((E337/100)+1))*1),)","v":0},{"$f":"_xlfn.XLOOKUP($B338,FeedTables!$C$42:$T$42,FeedTables!$C$44:$T$44,,-1)","v":{"$error":"#N/A"}},{"$f":"_xlfn.XLOOKUP($B338,FeedTables!$C$42:$T$42,FeedTables!$C$45:$T$45,,-1)","v":{"$error":"#N/A"}},{"$f":"_xlfn.XLOOKUP($B338,FeedTables!$C$42:$T$42,FeedTables!$C$46:$T$46,,-1)*_xlfn.XLOOKUP(N337,DensityMultiplier[Biomass kg/m3],DensityMultiplier[Multiplier],,-1)","v":{"$error":"#N/A"}},1926.6019431401946,{"$f":"IF(A338<='S1-Standard'!$C$7,('Growth-Model-1'!G337*EXP($AA$7)),0)","v":0},{"$f":"IF(A338<='S1-Standard'!$C$7,$AD$6*EXP($AD$7*('S1-Standard'!C$7-'Growth-Model-1'!A338)),0)","v":0},98.398056859804981,4.8591633017187642E-2,0,9.6134220875344365,0,{"$f":"M338/'S1-Standard'!$C$17","v":0},{"$error":"#N/A"},{"$error":"#N/A"},{"$f":"_xlfn.XLOOKUP(B338,FeedTables!$C$17:$T$17,FeedTables!$C$31:$T$31,,-1)","v":{"$error":"#N/A"}},{"$f":"_xlfn.XLOOKUP(Q338,FeedPrice[Feed],FeedPrice[Price per kg],\"Unknown\",0)*O338","v":{"$error":"#N/A"}},{"$error":"#N/A"},{"$f":"_xlfn.XLOOKUP(O338,LabourFromFeed[Feed Quantity (kg)],LabourFromFeed[No. Labour],\"Out of range\",-1)","v":{"$error":"#N/A"}},{"$f":"T338*OperatingCosts!$C$9","v":{"$error":"#N/A"}},{"$error":"#N/A"}]
[337,{"$f":"IF(A339<='S1-Standard'!$C$7, B338*EXP((LN((E338/100)+1))*1),)","v":0},{"$f":"_xlfn.XLOOKUP($B339,FeedTables!$C$42:$T$42,FeedTables!$C$44:$T$44,,-1)","v":{"$error":"#N/A"}},{"$f":"_xlfn.XLOOKUP($B339,FeedTables!$C$42:$T$42,FeedTables!$C$45:$T$45,,-1)","v":{"$error":"#N/A"}},{"$f":"_xlfn.XLOOKUP($B339,FeedTables!$C$42:$T$42,FeedTables!$C$46:$T$46,,-1)*_xlfn.XLOOKUP(N338,DensityMultiplier[Biomass kg/m3],DensityMultiplier[Multiplier],,-1)","v":{"$error":"#N/A"}},1926.6019431401946,{"$f":"IF(A339<='S1-Standard'!$C$7,('Growth-Model-1'!G338*EXP($AA$7)),0)","v":0},{"$f":"IF(A339<='S1-Standard'!$C$7,$AD$6*EXP($AD$7*('S1-Standard'!C$7-'Growth-Model-1'!A339)),0)","v":0},98.398056859804981,4.8591633017187642E-2,0,9.6134220875344365,0,{"$f":"M339/'S1-Standard'!$C$17","v":0},{"$error":"#N/A"},{"$error":"#N/A"},{"$f":"_xlfn.XLOOKUP(B339,FeedTables!$C$17:$T$17,FeedTables!$C$31:$T$31,,-1)","v":{"$error":"#N/A"}},{"$f":"_xlfn.XLOOKUP(Q339,FeedPrice[Feed],FeedPrice[Price per kg],\"Unknown\",0)*O339","v":{"$error":"#N/A"}},{"$error":"#N/A"},{"$f":"_xlfn.XLOOKUP(O339,LabourFromFeed[Feed Quantity (kg)],LabourFromFeed[No. Labour],\"Out of range\",-1)","v":{"$error":"#N/A"}},{"$f":"T339*OperatingCosts!$C$9","v":{"$error":"#N/A"}},{"$error":"#N/A"}]
[338,{"$f":"IF(A340<='S1-Standard'!$C$7, B339*EXP((LN((E339/100)+1))*1),)","v":0},{"$f":"_xlfn.XLOOKUP($B340,FeedTables!$C$42:$T$42,FeedTables!$C$44:$T$44,,-1)","v":{"$error":"#N/A"}},{"$f":"_xlfn.XLOOKUP($B340,FeedTables!$C$42:$T$42,FeedTables!$C$45:$T$45,,-1)","v":{"$error":"#N/A"}},{"$f":"_xlfn.XLOOKUP($B340,FeedTables!$C$42:$T$42,FeedTables!$C$46:$T$46,,-1)*_xlfn.XLOOKUP(N339,DensityMultiplier[Biomass kg/m3],DensityMultiplier[Multiplier],,-1)","v":{"$error":"#N/A"}},1926.6019431401946,{"$f":"IF(A340<='S1-Standard'!$C$7,('Growth-Model-1'!G339*EXP($AA$7)),0)","v":0},{"$f":"IF(A340<='S1-Standard'!$C$7,$AD$6*EXP($AD$7*('S1-Standard'!C$7-'Growth-Model-1'!A340)),0)","v":0},98.398056859804981,4.8591633017187642E-2,0,9.6134220875344365,0,{"$f":"M340/'S1-Standard'!$C$17","v":0},{"$error":"#N/A"},{"$error":"#N/A"},{"$f":"_xlfn.XLOOKUP(B340,FeedTables!$C$17:$T$17,FeedTables!$C$31:$T$31,,-1)","v":{"$error":"#N/A"}},{"$f":"_xlfn.XLOOKUP(Q340,FeedPrice[Feed],FeedPrice[Price per kg],\"Unknown\",0)*O340","v":{"$error":"#N/A"}},{"$error":"#N/A"},{"$f":"_xlfn.XLOOKUP(O340,LabourFromFeed[Feed Quantity (kg)],LabourFromFeed[No. Labour],\"Out of range\",-1)","v":{"$error":"#N/A"}},{"$f":"T340*OperatingCosts!$C$9","v":{"$error":"#N/A"}},{"$error":"#N/A"}]
[339,{"$f":"IF(A341<='S1-Standard'!$C$7, B340*EXP((LN((E340/100)+1))*1),)","v":0},{"$f":"_xlfn.XLOOKUP($B341,FeedTables!$C$42:$T$42,FeedTables!$C$44:$T$44,,-1)","v":{"$error":"#N/A"}},{"$f":"_xlfn.XLOOKUP($B341,FeedTables!$C$42:$T$42,FeedTables!$C$45:$T$45,,-1)","v":{"$error":"#N/A"}},{"$f":"_xlfn.XLOOKUP($B341,FeedTables!$C$42:$T$42,FeedTables!$C$46:$T$46,,-1)*_xlfn.XLOOKUP(N340,DensityMultiplier[Biomass kg/m3],DensityMultiplier[Multiplier],,-1)","v":{"$error":"#N/A"}},1926.6019431401946,{"$f":"IF(A341<='S1-Standard'!$C$7,('Growth-Model-1'!G340*EXP($AA$7)),0)","v":0},{"$f":"IF(A341<='S1-Standard'!$C$7,$AD$6*EXP($AD$7*('S1-Standard'!C$7-'Growth-Model-1'!A341)),0)","v":0},98.398056859804981,4.8591633017187642E-2,0,9.6134220875344365,0,{"$f":"M341/'S1-Standard'!$C$17","v":0},{"$error":"#N/A"},{"$error":"#N/A"},{"$f":"_xlfn.XLOOKUP(B341,FeedTables!$C$17:$T$17,FeedTables!$C$31:$T$31,,-1)","v":{"$error":"#N/A"}},{"$f":"_xlfn.XLOOKUP(Q341,FeedPrice[Feed],FeedPrice[Price per kg],\"Unknown\",0)*O341","v":{"$error":"#N/A"}},{"$error":"#N/A"},{"$f":"_xlfn.XLOOKUP(O341,LabourFromFeed[Feed Quantity (kg)],LabourFromFeed[No. Labour],\"Out of range\",-1)","v":{"$error":"#N/A"}},{"$f":"T341*OperatingCosts!$C$9","v":{"$error":"#N/A"}},{"$error":"#N/A"}]
[340,{"$f":"IF(A342<='S1-Standard'!$C$7, B341*EXP((LN((E341/100)+1))*1),)","v":0},{"$f":"_xlfn.XLOOKUP($B342,FeedTables!$C$42:$T$42,FeedTables!$C$44:$T$44,,-1)","v":{"$error":"#N/A"}},{"$f":"_xlfn.XLOOKUP($B342,FeedTables!$C$42:$T$42,FeedTables!$C$45:$T$45,,-1)","v":{"$error":"#N/A"}},{"$f":"_xlfn.XLOOKUP($B342,FeedTables!$C$42:$T$42,FeedTables!$C$46:$T$46,,-1)*_xlfn.XLOOKUP(N341,DensityMultiplier[Biomass kg/m3],DensityMultiplier[Multiplier],,-1)","v":{"$error":"#N/A"}},1926.6019431401946,{"$f":"IF(A342<='S1-Standard'!$C$7,('Growth-Model-1'!G341*EXP($AA$7)),0)","v":0},{"$f":"IF(A342<='S1-Standard'!$C$7,$AD$6*EXP($AD$7*('S1-Standard'!C$7-'Growth-Model-1'!A342)),0)","v":0},98.398056859804981,4.8591633017187642E-2,0,9.6134220875344365,0,{"$f":"M342/'S1-Standard'!$C$17","v":0},{"$error":"#N/A"},{"$error":"#N/A"},{"$f":"_xlfn.XLOOKUP(B342,FeedTables!$C$17:$T$17,FeedTables!$C$31:$T$31,,-1)","v":{"$error":"#N/A"}},{"$f":"_xlfn.XLOOKUP(Q342,FeedPrice[Feed],FeedPrice[Price per kg],\"Unknown\",0)*O342","v":{"$error":"#N/A"}},{"$error":"#N/A"},{"$f":"_xlfn.XLOOKUP(O342,LabourFromFeed[Feed Quantity (kg)],LabourFromFeed[No. Labour],\"Out of range\",-1)","v":{"$error":"#N/A"}},{"$f":"T342*OperatingCosts!$C$9","v":{"$error":"#N/A"}},{"$error":"#N/A"}]
[341,{"$f":"IF(A343<='S1-Standard'!$C$7, B342*EXP((LN((E342/100)+1))*1),)","v":0},{"$f":"_xlfn.XLOOKUP($B343,FeedTables!$C$42:$T$42,FeedTables!$C$44:$T$44,,-1)","v":{"$error":"#N/A"}},{"$f":"_xlfn.XLOOKUP($B343,FeedTables!$C$42:$T$42,FeedTables!$C$45:$T$45,,-1)","v":{"$error":"#N/A"}},{"$f":"_xlfn.XLOOKUP($B343,FeedTables!$C$42:$T$42,FeedTables!$C$46:$T$46,,-1)*_xlfn.XLOOKUP(N342,DensityMultiplier[Biomass kg/m3],DensityMultiplier[Multiplier],,-1)","v":{"$error":"#N/A"}},1926.6019431401946,{"$f":"IF(A343<='S1-Standard'!$C$7,('Growth-Model-1'!G342*EXP($AA$7)),0)","v":0},{"$f":"IF(A343<='S1-Standard'!$C$7,$AD$6*EXP($AD$7*('S1-Standard'!C$7-'Growth-Model-1'!A343)),0)","v":0},98.398056859804981,4.8591633017187642E-2,0,9.6134220875344365,0,{"$f":"M343/'S1-Standard'!$C$17","v":0},{"$error":"#N/A"},{"$error":"#N/A"},{"$f":"_xlfn.XLOOKUP(B343,FeedTables!$C$17:$T$17,FeedTables!$C$31:$T$31,,-1)","v":{"$error":"#N/A"}},{"$f":"_xlfn.XLOOKUP(Q343,FeedPrice[Feed],FeedPrice[Price per kg],\"Unknown\",0)*O343","v":{"$error":"#N/A"}},{"$error":"#N/A"},{"$f":"_xlfn.XLOOKUP(O343,LabourFromFeed[Feed Quantity (kg)],LabourFromFeed[No. Labour],\"Out of range\",-1)","v":{"$error":"#N/A"}},{"$f":"T343*OperatingCosts!$C$9","v":{"$error":"#N/A"}},{"$error":"#N/A"}]
[342,{"$f":"IF(A344<='S1-Standard'!$C$7, B343*EXP((LN((E343/100)+1))*1),)","v":0},{"$f":"_xlfn.XLOOKUP($B344,FeedTables!$C$42:$T$42,FeedTables!$C$44:$T$44,,-1)","v":{"$error":"#N/A"}},{"$f":"_xlfn.XLOOKUP($B344,FeedTables!$C$42:$T$42,FeedTables!$C$45:$T$45,,-1)","v":{"$error":"#N/A"}},{"$f":"_xlfn.XLOOKUP($B344,FeedTables!$C$42:$T$42,FeedTables!$C$46:$T$46,,-1)*_xlfn.XLOOKUP(N343,DensityMultiplier[Biomass kg/m3],DensityMultiplier[Multiplier],,-1)","v":{"$error":"#N/A"}},1926.6019431401946,{"$f":"IF(A344<='S1-Standard'!$C$7,('Growth-Model-1'!G343*EXP($AA$7)),0)","v":0},{"$f":"IF(A344<='S1-Standard'!$C$7,$AD$6*EXP($AD$7*('S1-Standard'!C$7-'Growth-Model-1'!A344)),0)","v":0},98.398056859804981,4.8591633017187642E-2,0,9.6134220875344365,0,{"$f":"M344/'S1-Standard'!$C$17","v":0},{"$error":"#N/A"},{"$error":"#N/A"},{"$f":"_xlfn.XLOOKUP(B344,FeedTables!$C$17:$T$17,FeedTables!$C$31:$T$31,,-1)","v":{"$error":"#N/A"}},{"$f":"_xlfn.XLOOKUP(Q344,FeedPrice[Feed],FeedPrice[Price per kg],\"Unknown\",0)*O344","v":{"$error":"#N/A"}},{"$error":"#N/A"},{"$f":"_xlfn.XLOOKUP(O344,LabourFromFeed[Feed Quantity (kg)],LabourFromFeed[No. Labour],\"Out of range\",-1)","v":{"$error":"#N/A"}},{"$f":"T344*OperatingCosts!$C$9","v":{"$error":"#N/A"}},{"$error":"#N/A"}]
[343,{"$f":"IF(A345<='S1-Standard'!$C$7, B344*EXP((LN((E344/100)+1))*1),)","v":0},{"$f":"_xlfn.XLOOKUP($B345,FeedTables!$C$42:$T$42,FeedTables!$C$44:$T$44,,-1)","v":{"$error":"#N/A"}},{"$f":"_xlfn.XLOOKUP($B345,FeedTables!$C$42:$T$42,FeedTables!$C$45:$T$45,,-1)","v":{"$error":"#N/A"}},{"$f":"_xlfn.XLOOKUP($B345,FeedTables!$C$42:$T$42,FeedTables!$C$46:$T$46,,-1)*_xlfn.XLOOKUP(N344,DensityMultiplier[Biomass kg/m3],DensityMultiplier[Multiplier],,-1)","v":{"$error":"#N/A"}},1926.6019431401946,{"$f":"IF(A345<='S1-Standard'!$C$7,('Growth-Model-1'!G344*EXP($AA$7)),0)","v":0},{"$f":"IF(A345<='S1-Standard'!$C$7,$AD$6*EXP($AD$7*('S1-Standard'!C$7-'Growth-Model-1'!A345)),0)","v":0},98.398056859804981,4.8591633017187642E-2,0,9.6134220875344365,0,{"$f":"M345/'S1-Standard'!$C$17","v":0},{"$error":"#N/A"},{"$error":"#N/A"},{"$f":"_xlfn.XLOOKUP(B345,FeedTables!$C$17:$T$17,FeedTables!$C$31:$T$31,,-1)","v":{"$error":"#N/A"}},{"$f":"_xlfn.XLOOKUP(Q345,FeedPrice[Feed],FeedPrice[Price per kg],\"Unknown\",0)*O345","v":{"$error":"#N/A"}},{"$error":"#N/A"},{"$f":"_xlfn.XLOOKUP(O345,LabourFromFeed[Feed Quantity (kg)],LabourFromFeed[No. Labour],\"Out of range\",-1)","v":{"$error":"#N/A"}},{"$f":"T345*OperatingCosts!$C$9","v":{"$error":"#N/A"}},{"$error":"#N/A"}]
[344,{"$f":"IF(A346<='S1-Standard'!$C$7, B345*EXP((LN((E345/100)+1))*1),)","v":0},{"$f":"_xlfn.XLOOKUP($B346,FeedTables!$C$42:$T$42,FeedTables!$C$44:$T$44,,-1)","v":{"$error":"#N/A"}},{"$f":"_xlfn.XLOOKUP($B346,FeedTables!$C$42:$T$42,FeedTables!$C$45:$T$45,,-1)","v":{"$error":"#N/A"}},{"$f":"_xlfn.XLOOKUP($B346,FeedTables!$C$42:$T$42,FeedTables!$C$46:$T$46,,-1)*_xlfn.XLOOKUP(N345,DensityMultiplier[Biomass kg/m3],DensityMultiplier[Multiplier],,-1)","v":{"$error":"#N/A"}},1926.6019431401946,{"$f":"IF(A346<='S1-Standard'!$C$7,('Growth-Model-1'!G345*EXP($AA$7)),0)","v":0},{"$f":"IF(A346<='S1-Standard'!$C$7,$AD$6*EXP($AD$7*('S1-Standard'!C$7-'Growth-Model-1'!A346)),0)","v":0},98.398056859804981,4.8591633017187642E-2,0,9.6134220875344365,0,{"$f":"M346/'S1-Standard'!$C$17","v":0},{"$error":"#N/A"},{"$error":"#N/A"},{"$f":"_xlfn.XLOOKUP(B346,FeedTables!$C$17:$T$17,FeedTables!$C$31:$T$31,,-1)","v":{"$error":"#N/A"}},{"$f":"_xlfn.XLOOKUP(Q346,FeedPrice[Feed],FeedPrice[Price per kg],\"Unknown\",0)*O346","v":{"$error":"#N/A"}},{"$error":"#N/A"},{"$f":"_xlfn.XLOOKUP(O346,LabourFromFeed[Feed Quantity (kg)],LabourFromFeed[No. Labour],\"Out of range\",-1)","v":{"$error":"#N/A"}},{"$f":"T346*OperatingCosts!$C$9","v":{"$error":"#N/A"}},{"$error":"#N/A"}]
[345,{"$f":"IF(A347<='S1-Standard'!$C$7, B346*EXP((LN((E346/100)+1))*1),)","v":0},{"$f":"_xlfn.XLOOKUP($B347,FeedTables!$C$42:$T$42,FeedTables!$C$44:$T$44,,-1)","v":{"$error":"#N/A"}},{"$f":"_xlfn.XLOOKUP($B347,FeedTables!$C$42:$T$42,FeedTables!$C$45:$T$45,,-1)","v":{"$error":"#N/A"}},{"$f":"_xlfn.XLOOKUP($B347,FeedTables!$C$42:$T$42,FeedTables!$C$46:$T$46,,-1)*_xlfn.XLOOKUP(N346,DensityMultiplier[Biomass kg/m3],DensityMultiplier[Multiplier],,-1)","v":{"$error":"#N/A"}},1926.6019431401946,{"$f":"IF(A347<='S1-Standard'!$C$7,('Growth-Model-1'!G346*EXP($AA$7)),0)","v":0},{"$f":"IF(A347<='S1-Standard'!$C$7,$AD$6*EXP($AD$7*('S1-Standard'!C$7-'Growth-Model-1'!A347)),0)","v":0},98.398056859804981,4.8591633017187642E-2,0,9.6134220875344365,0,{"$f":"M347/'S1-Standard'!$C$17","v":0},{"$error":"#N/A"},{"$error":"#N/A"},{"$f":"_xlfn.XLOOKUP(B347,FeedTables!$C$17:$T$17,FeedTables!$C$31:$T$31,,-1)","v":{"$error":"#N/A"}},{"$f":"_xlfn.XLOOKUP(Q347,FeedPrice[Feed],FeedPrice[Price per kg],\"Unknown\",0)*O347","v":{"$error":"#N/A"}},{"$error":"#N/A"},{"$f":"_xlfn.XLOOKUP(O347,LabourFromFeed[Feed Quantity (kg)],LabourFromFeed[No. Labour],\"Out of range\",-1)","v":{"$error":"#N/A"}},{"$f":"T347*OperatingCosts!$C$9","v":{"$error":"#N/A"}},{"$error":"#N/A"}]
[346,{"$f":"IF(A348<='S1-Standard'!$C$7, B347*EXP((LN((E347/100)+1))*1),)","v":0},{"$f":"_xlfn.XLOOKUP($B348,FeedTables!$C$42:$T$42,FeedTables!$C$44:$T$44,,-1)","v":{"$error":"#N/A"}},{"$f":"_xlfn.XLOOKUP($B348,FeedTables!$C$42:$T$42,FeedTables!$C$45:$T$45,,-1)","v":{"$error":"#N/A"}},{"$f":"_xlfn.XLOOKUP($B348,FeedTables!$C$42:$T$42,FeedTables!$C$46:$T$46,,-1)*_xlfn.XLOOKUP(N347,DensityMultiplier[Biomass kg/m3],DensityMultiplier[Multiplier],,-1)","v":{"$error":"#N/A"}},1926.6019431401946,{"$f":"IF(A348<='S1-Standard'!$C$7,('Growth-Model-1'!G347*EXP($AA$7)),0)","v":0},{"$f":"IF(A348<='S1-Standard'!$C$7,$AD$6*EXP($AD$7*('S1-Standard'!C$7-'Growth-Model-1'!A348)),0)","v":0},98.398056859804981,4.8591633017187642E-2,0,9.6134220875344365,0,{"$f":"M348/'S1-Standard'!$C$17","v":0},{"$error":"#N/A"},{"$error":"#N/A"},{"$f":"_xlfn.XLOOKUP(B348,FeedTables!$C$17:$T$17,FeedTables!$C$31:$T$31,,-1)","v":{"$error":"#N/A"}},{"$f":"_xlfn.XLOOKUP(Q348,FeedPrice[Feed],FeedPrice[Price per kg],\"Unknown\",0)*O348","v":{"$error":"#N/A"}},{"$error":"#N/A"},{"$f":"_xlfn.XLOOKUP(O348,LabourFromFeed[Feed Quantity (kg)],LabourFromFeed[No. Labour],\"Out of range\",-1)","v":{"$error":"#N/A"}},{"$f":"T348*OperatingCosts!$C$9","v":{"$error":"#N/A"}},{"$error":"#N/A"}]
[347,{"$f":"IF(A349<='S1-Standard'!$C$7, B348*EXP((LN((E348/100)+1))*1),)","v":0},{"$f":"_xlfn.XLOOKUP($B349,FeedTables!$C$42:$T$42,FeedTables!$C$44:$T$44,,-1)","v":{"$error":"#N/A"}},{"$f":"_xlfn.XLOOKUP($B349,FeedTables!$C$42:$T$42,FeedTables!$C$45:$T$45,,-1)","v":{"$error":"#N/A"}},{"$f":"_xlfn.XLOOKUP($B349,FeedTables!$C$42:$T$42,FeedTables!$C$46:$T$46,,-1)*_xlfn.XLOOKUP(N348,DensityMultiplier[Biomass kg/m3],DensityMultiplier[Multiplier],,-1)","v":{"$error":"#N/A"}},1926.6019431401946,{"$f":"IF(A349<='S1-Standard'!$C$7,('Growth-Model-1'!G348*EXP($AA$7)),0)","v":0},{"$f":"IF(A349<='S1-Standard'!$C$7,$AD$6*EXP($AD$7*('S1-Standard'!C$7-'Growth-Model-1'!A349)),0)","v":0},98.398056859804981,4.8591633017187642E-2,0,9.6134220875344365,0,{"$f":"M349/'S1-Standard'!$C$17","v":0},{"$error":"#N/A"},{"$error":"#N/A"},{"$f":"_xlfn.XLOOKUP(B349,FeedTables!$C$17:$T$17,FeedTables!$C$31:$T$31,,-1)","v":{"$error":"#N/A"}},{"$f":"_xlfn.XLOOKUP(Q349,FeedPrice[Feed],FeedPrice[Price per kg],\"Unknown\",0)*O349","v":{"$error":"#N/A"}},{"$error":"#N/A"},{"$f":"_xlfn.XLOOKUP(O349,LabourFromFeed[Feed Quantity (kg)],LabourFromFeed[No. Labour],\"Out of range\",-1)","v":{"$error":"#N/A"}},{"$f":"T349*OperatingCosts!$C$9","v":{"$error":"#N/A"}},{"$error":"#N/A"}]
[348,{"$f":"IF(A350<='S1-Standard'!$C$7, B349*EXP((LN((E349/100)+1))*1),)","v":0},{"$f":"_xlfn.XLOOKUP($B350,FeedTables!$C$42:$T$42,FeedTables!$C$44:$T$44,,-1)","v":{"$error":"#N/A"}},{"$f":"_xlfn.XLOOKUP($B350,FeedTables!$C$42:$T$42,FeedTables!$C$45:$T$45,,-1)","v":{"$error":"#N/A"}},{"$f":"_xlfn.XLOOKUP($B350,FeedTables!$C$42:$T$42,FeedTables!$C$46:$T$46,,-1)*_xlfn.XLOOKUP(N349,DensityMultiplier[Biomass kg/m3],DensityMultiplier[Multiplier],,-1)","v":{"$error":"#N/A"}},1926.6019431401946,{"$f":"IF(A350<='S1-Standard'!$C$7,('Growth-Model-1'!G349*EXP($AA$7)),0)","v":0},{"$f":"IF(A350<='S1-Standard'!$C$7,$AD$6*EXP($AD$7*('S1-Standard'!C$7-'Growth-Model-1'!A350)),0)","v":0},98.398056859804981,4.8591633017187642E-2,0,9.6134220875344365,0,{"$f":"M350/'S1-Standard'!$C$17","v":0},{"$error":"#N/A"},{"$error":"#N/A"},{"$f":"_xlfn.XLOOKUP(B350,FeedTables!$C$17:$T$17,FeedTables!$C$31:$T$31,,-1)","v":{"$error":"#N/A"}},{"$f":"_xlfn.XLOOKUP(Q350,FeedPrice[Feed],FeedPrice[Price per kg],\"Unknown\",0)*O350","v":{"$error":"#N/A"}},{"$error":"#N/A"},{"$f":"_xlfn.XLOOKUP(O350,LabourFromFeed[Feed Quantity (kg)],LabourFromFeed[No. Labour],\"Out of range\",-1)","v":{"$error":"#N/A"}},{"$f":"T350*OperatingCosts!$C$9","v":{"$error":"#N/A"}},{"$error":"#N/A"}]
[349,{"$f":"IF(A351<='S1-Standard'!$C$7, B350*EXP((LN((E350/100)+1))*1),)","v":0},{"$f":"_xlfn.XLOOKUP($B351,FeedTables!$C$42:$T$42,FeedTables!$C$44:$T$44,,-1)","v":{"$error":"#N/A"}},{"$f":"_xlfn.XLOOKUP($B351,FeedTables!$C$42:$T$42,FeedTables!$C$45:$T$45,,-1)","v":{"$error":"#N/A"}},{"$f":"_xlfn.XLOOKUP($B351,FeedTables!$C$42:$T$42,FeedTables!$C$46:$T$46,,-1)*_xlfn.XLOOKUP(N350,DensityMultiplier[Biomass kg/m3],DensityMultiplier[Multiplier],,-1)","v":{"$error":"#N/A"}},1926.6019431401946,{"$f":"IF(A351<='S1-Standard'!$C$7,('Growth-Model-1'!G350*EXP($AA$7)),0)","v":0},{"$f":"IF(A351<='S1-Standard'!$C$7,$AD$6*EXP($AD$7*('S1-Standard'!C$7-'Growth-Model-1'!A351)),0)","v":0},98.398056859804981,4.8591633017187642E-2,0,9.6134220875344365,0,{"$f":"M351/'S1-Standard'!$C$17","v":0},{"$error":"#N/A"},{"$error":"#N/A"},{"$f":"_xlfn.XLOOKUP(B351,FeedTables!$C$17:$T$17,FeedTables!$C$31:$T$31,,-1)","v":{"$error":"#N/A"}},{"$f":"_xlfn.XLOOKUP(Q351,FeedPrice[Feed],FeedPrice[Price per kg],\"Unknown\",0)*O351","v":{"$error":"#N/A"}},{"$error":"#N/A"},{"$f":"_xlfn.XLOOKUP(O351,LabourFromFeed[Feed Quantity (kg)],LabourFromFeed[No. Labour],\"Out of range\",-1)","v":{"$error":"#N/A"}},{"$f":"T351*OperatingCosts!$C$9","v":{"$error":"#N/A"}},{"$error":"#N/A"}]
[350,{"$f":"IF(A352<='S1-Standard'!$C$7, B351*EXP((LN((E351/100)+1))*1),)","v":0},{"$f":"_xlfn.XLOOKUP($B352,FeedTables!$C$42:$T$42,FeedTables!$C$44:$T$44,,-1)","v":{"$error":"#N/A"}},{"$f":"_xlfn.XLOOKUP($B352,FeedTables!$C$42:$T$42,FeedTables!$C$45:$T$45,,-1)","v":{"$error":"#N/A"}},{"$f":"_xlfn.XLOOKUP($B352,FeedTables!$C$42:$T$42,FeedTables!$C$46:$T$46,,-1)*_xlfn.XLOOKUP(N351,DensityMultiplier[Biomass kg/m3],DensityMultiplier[Multiplier],,-1)","v":{"$error":"#N/A"}},1926.6019431401946,{"$f":"IF(A352<='S1-Standard'!$C$7,('Growth-Model-1'!G351*EXP($AA$7)),0)","v":0},{"$f":"IF(A352<='S1-Standard'!$C$7,$AD$6*EXP($AD$7*('S1-Standard'!C$7-'Growth-Model-1'!A352)),0)","v":0},98.398056859804981,4.8591633017187642E-2,0,9.6134220875344365,0,{"$f":"M352/'S1-Standard'!$C$17","v":0},{"$error":"#N/A"},{"$error":"#N/A"},{"$f":"_xlfn.XLOOKUP(B352,FeedTables!$C$17:$T$17,FeedTables!$C$31:$T$31,,-1)","v":{"$error":"#N/A"}},{"$f":"_xlfn.XLOOKUP(Q352,FeedPrice[Feed],FeedPrice[Price per kg],\"Unknown\",0)*O352","v":{"$error":"#N/A"}},{"$error":"#N/A"},{"$f":"_xlfn.XLOOKUP(O352,LabourFromFeed[Feed Quantity (kg)],LabourFromFeed[No. Labour],\"Out of range\",-1)","v":{"$error":"#N/A"}},{"$f":"T352*OperatingCosts!$C$9","v":{"$error":"#N/A"}},{"$error":"#N/A"}]
[351,{"$f":"IF(A353<='S1-Standard'!$C$7, B352*EXP((LN((E352/100)+1))*1),)","v":0},{"$f":"_xlfn.XLOOKUP($B353,FeedTables!$C$42:$T$42,FeedTables!$C$44:$T$44,,-1)","v":{"$error":"#N/A"}},{"$f":"_xlfn.XLOOKUP($B353,FeedTables!$C$42:$T$42,FeedTables!$C$45:$T$45,,-1)","v":{"$error":"#N/A"}},{"$f":"_xlfn.XLOOKUP($B353,FeedTables!$C$42:$T$42,FeedTables!$C$46:$T$46,,-1)*_xlfn.XLOOKUP(N352,DensityMultiplier[Biomass kg/m3],DensityMultiplier[Multiplier],,-1)","v":{"$error":"#N/A"}},1926.6019431401946,{"$f":"IF(A353<='S1-Standard'!$C$7,('Growth-Model-1'!G352*EXP($AA$7)),0)","v":0},{"$f":"IF(A353<='S1-Standard'!$C$7,$AD$6*EXP($AD$7*('S1-Standard'!C$7-'Growth-Model-1'!A353)),0)","v":0},98.398056859804981,4.8591633017187642E-2,0,9.6134220875344365,0,{"$f":"M353/'S1-Standard'!$C$17","v":0},{"$error":"#N/A"},{"$error":"#N/A"},{"$f":"_xlfn.XLOOKUP(B353,FeedTables!$C$17:$T$17,FeedTables!$C$31:$T$31,,-1)","v":{"$error":"#N/A"}},{"$f":"_xlfn.XLOOKUP(Q353,FeedPrice[Feed],FeedPrice[Price per kg],\"Unknown\",0)*O353","v":{"$error":"#N/A"}},{"$error":"#N/A"},{"$f":"_xlfn.XLOOKUP(O353,LabourFromFeed[Feed Quantity (kg)],LabourFromFeed[No. Labour],\"Out of range\",-1)","v":{"$error":"#N/A"}},{"$f":"T353*OperatingCosts!$C$9","v":{"$error":"#N/A"}},{"$error":"#N/A"}]
[352,{"$f":"IF(A354<='S1-Standard'!$C$7, B353*EXP((LN((E353/100)+1))*1),)","v":0},{"$f":"_xlfn.XLOOKUP($B354,FeedTables!$C$42:$T$42,FeedTables!$C$44:$T$44,,-1)","v":{"$error":"#N/A"}},{"$f":"_xlfn.XLOOKUP($B354,FeedTables!$C$42:$T$42,FeedTables!$C$45:$T$45,,-1)","v":{"$error":"#N/A"}},{"$f":"_xlfn.XLOOKUP($B354,FeedTables!$C$42:$T$42,FeedTables!$C$46:$T$46,,-1)*_xlfn.XLOOKUP(N353,DensityMultiplier[Biomass kg/m3],DensityMultiplier[Multiplier],,-1)","v":{"$error":"#N/A"}},1926.6019431401946,{"$f":"IF(A354<='S1-Standard'!$C$7,('Growth-Model-1'!G353*EXP($AA$7)),0)","v":0},{"$f":"IF(A354<='S1-Standard'!$C$7,$AD$6*EXP($AD$7*('S1-Standard'!C$7-'Growth-Model-1'!A354)),0)","v":0},98.398056859804981,4.8591633017187642E-2,0,9.6134220875344365,0,{"$f":"M354/'S1-Standard'!$C$17","v":0},{"$error":"#N/A"},{"$error":"#N/A"},{"$f":"_xlfn.XLOOKUP(B354,FeedTables!$C$17:$T$17,FeedTables!$C$31:$T$31,,-1)","v":{"$error":"#N/A"}},{"$f":"_xlfn.XLOOKUP(Q354,FeedPrice[Feed],FeedPrice[Price per kg],\"Unknown\",0)*O354","v":{"$error":"#N/A"}},{"$error":"#N/A"},{"$f":"_xlfn.XLOOKUP(O354,LabourFromFeed[Feed Quantity (kg)],LabourFromFeed[No. Labour],\"Out of range\",-1)","v":{"$error":"#N/A"}},{"$f":"T354*OperatingCosts!$C$9","v":{"$error":"#N/A"}},{"$error":"#N/A"}]
[353,{"$f":"IF(A355<='S1-Standard'!$C$7, B354*EXP((LN((E354/100)+1))*1),)","v":0},{"$f":"_xlfn.XLOOKUP($B355,FeedTables!$C$42:$T$42,FeedTables!$C$44:$T$44,,-1)","v":{"$error":"#N/A"}},{"$f":"_xlfn.XLOOKUP($B355,FeedTables!$C$42:$T$42,FeedTables!$C$45:$T$45,,-1)","v":{"$error":"#N/A"}},{"$f":"_xlfn.XLOOKUP($B355,FeedTables!$C$42:$T$42,FeedTables!$C$46:$T$46,,-1)*_xlfn.XLOOKUP(N354,DensityMultiplier[Biomass kg/m3],DensityMultiplier[Multiplier],,-1)","v":{"$error":"#N/A"}},1926.6019431401946,{"$f":"IF(A355<='S1-Standard'!$C$7,('Growth-Model-1'!G354*EXP($AA$7)),0)","v":0},{"$f":"IF(A355<='S1-Standard'!$C$7,$AD$6*EXP($AD$7*('S1-Standard'!C$7-'Growth-Model-1'!A355)),0)","v":0},98.398056859804981,4.8591633017187642E-2,0,9.6134220875344365,0,{"$f":"M355/'S1-Standard'!$C$17","v":0},{"$error":"#N/A"},{"$error":"#N/A"},{"$f":"_xlfn.XLOOKUP(B355,FeedTables!$C$17:$T$17,FeedTables!$C$31:$T$31,,-1)","v":{"$error":"#N/A"}},{"$f":"_xlfn.XLOOKUP(Q355,FeedPrice[Feed],FeedPrice[Price per kg],\"Unknown\",0)*O355","v":{"$error":"#N/A"}},{"$error":"#N/A"},{"$f":"_xlfn.XLOOKUP(O355,LabourFromFeed[Feed Quantity (kg)],LabourFromFeed[No. Labour],\"Out of range\",-1)","v":{"$error":"#N/A"}},{"$f":"T355*OperatingCosts!$C$9","v":{"$error":"#N/A"}},{"$error":"#N/A"}]
[354,{"$f":"IF(A356<='S1-Standard'!$C$7, B355*EXP((LN((E355/100)+1))*1),)","v":0},{"$f":"_xlfn.XLOOKUP($B356,FeedTables!$C$42:$T$42,FeedTables!$C$44:$T$44,,-1)","v":{"$error":"#N/A"}},{"$f":"_xlfn.XLOOKUP($B356,FeedTables!$C$42:$T$42,FeedTables!$C$45:$T$45,,-1)","v":{"$error":"#N/A"}},{"$f":"_xlfn.XLOOKUP($B356,FeedTables!$C$42:$T$42,FeedTables!$C$46:$T$46,,-1)*_xlfn.XLOOKUP(N355,DensityMultiplier[Biomass kg/m3],DensityMultiplier[Multiplier],,-1)","v":{"$error":"#N/A"}},1926.6019431401946,{"$f":"IF(A356<='S1-Standard'!$C$7,('Growth-Model-1'!G355*EXP($AA$7)),0)","v":0},{"$f":"IF(A356<='S1-Standard'!$C$7,$AD$6*EXP($AD$7*('S1-Standard'!C$7-'Growth-Model-1'!A356)),0)","v":0},98.398056859804981,4.8591633017187642E-2,0,9.6134220875344365,0,{"$f":"M356/'S1-Standard'!$C$17","v":0},{"$error":"#N/A"},{"$error":"#N/A"},{"$f":"_xlfn.XLOOKUP(B356,FeedTables!$C$17:$T$17,FeedTables!$C$31:$T$31,,-1)","v":{"$error":"#N/A"}},{"$f":"_xlfn.XLOOKUP(Q356,FeedPrice[Feed],FeedPrice[Price per kg],\"Unknown\",0)*O356","v":{"$error":"#N/A"}},{"$error":"#N/A"},{"$f":"_xlfn.XLOOKUP(O356,LabourFromFeed[Feed Quantity (kg)],LabourFromFeed[No. Labour],\"Out of range\",-1)","v":{"$error":"#N/A"}},{"$f":"T356*OperatingCosts!$C$9","v":{"$error":"#N/A"}},{"$error":"#N/A"}]
[355,{"$f":"IF(A357<='S1-Standard'!$C$7, B356*EXP((LN((E356/100)+1))*1),)","v":0},{"$f":"_xlfn.XLOOKUP($B357,FeedTables!$C$42:$T$42,FeedTables!$C$44:$T$44,,-1)","v":{"$error":"#N/A"}},{"$f":"_xlfn.XLOOKUP($B357,FeedTables!$C$42:$T$42,FeedTables!$C$45:$T$45,,-1)","v":{"$error":"#N/A"}},{"$f":"_xlfn.XLOOKUP($B357,FeedTables!$C$42:$T$42,FeedTables!$C$46:$T$46,,-1)*_xlfn.XLOOKUP(N356,DensityMultiplier[Biomass kg/m3],DensityMultiplier[Multiplier],,-1)","v":{"$error":"#N/A"}},1926.6019431401946,{"$f":"IF(A357<='S1-Standard'!$C$7,('Growth-Model-1'!G356*EXP($AA$7)),0)","v":0},{"$f":"IF(A357<='S1-Standard'!$C$7,$AD$6*EXP($AD$7*('S1-Standard'!C$7-'Growth-Model-1'!A357)),0)","v":0},98.398056859804981,4.8591633017187642E-2,0,9.6134220875344365,0,{"$f":"M357/'S1-Standard'!$C$17","v":0},{"$error":"#N/A"},{"$error":"#N/A"},{"$f":"_xlfn.XLOOKUP(B357,FeedTables!$C$17:$T$17,FeedTables!$C$31:$T$31,,-1)","v":{"$error":"#N/A"}},{"$f":"_xlfn.XLOOKUP(Q357,FeedPrice[Feed],FeedPrice[Price per kg],\"Unknown\",0)*O357","v":{"$error":"#N/A"}},{"$error":"#N/A"},{"$f":"_xlfn.XLOOKUP(O357,LabourFromFeed[Feed Quantity (kg)],LabourFromFeed[No. Labour],\"Out of range\",-1)","v":{"$error":"#N/A"}},{"$f":"T357*OperatingCosts!$C$9","v":{"$error":"#N/A"}},{"$error":"#N/A"}]
[356,{"$f":"IF(A358<='S1-Standard'!$C$7, B357*EXP((LN((E357/100)+1))*1),)","v":0},{"$f":"_xlfn.XLOOKUP($B358,FeedTables!$C$42:$T$42,FeedTables!$C$44:$T$44,,-1)","v":{"$error":"#N/A"}},{"$f":"_xlfn.XLOOKUP($B358,FeedTables!$C$42:$T$42,FeedTables!$C$45:$T$45,,-1)","v":{"$error":"#N/A"}},{"$f":"_xlfn.XLOOKUP($B358,FeedTables!$C$42:$T$42,FeedTables!$C$46:$T$46,,-1)*_xlfn.XLOOKUP(N357,DensityMultiplier[Biomass kg/m3],DensityMultiplier[Multiplier],,-1)","v":{"$error":"#N/A"}},1926.6019431401946,{"$f":"IF(A358<='S1-Standard'!$C$7,('Growth-Model-1'!G357*EXP($AA$7)),0)","v":0},{"$f":"IF(A358<='S1-Standard'!$C$7,$AD$6*EXP($AD$7*('S1-Standard'!C$7-'Growth-Model-1'!A358)),0)","v":0},98.398056859804981,4.8591633017187642E-2,0,9.6134220875344365,0,{"$f":"M358/'S1-Standard'!$C$17","v":0},{"$error":"#N/A"},{"$error":"#N/A"},{"$f":"_xlfn.XLOOKUP(B358,FeedTables!$C$17:$T$17,FeedTables!$C$31:$T$31,,-1)","v":{"$error":"#N/A"}},{"$f":"_xlfn.XLOOKUP(Q358,FeedPrice[Feed],FeedPrice[Price per kg],\"Unknown\",0)*O358","v":{"$error":"#N/A"}},{"$error":"#N/A"},{"$f":"_xlfn.XLOOKUP(O358,LabourFromFeed[Feed Quantity (kg)],LabourFromFeed[No. Labour],\"Out of range\",-1)","v":{"$error":"#N/A"}},{"$f":"T358*OperatingCosts!$C$9","v":{"$error":"#N/A"}},{"$error":"#N/A"}]
[357,{"$f":"IF(A359<='S1-Standard'!$C$7, B358*EXP((LN((E358/100)+1))*1),)","v":0},{"$f":"_xlfn.XLOOKUP($B359,FeedTables!$C$42:$T$42,FeedTables!$C$44:$T$44,,-1)","v":{"$error":"#N/A"}},{"$f":"_xlfn.XLOOKUP($B359,FeedTables!$C$42:$T$42,FeedTables!$C$45:$T$45,,-1)","v":{"$error":"#N/A"}},{"$f":"_xlfn.XLOOKUP($B359,FeedTables!$C$42:$T$42,FeedTables!$C$46:$T$46,,-1)*_xlfn.XLOOKUP(N358,DensityMultiplier[Biomass kg/m3],DensityMultiplier[Multiplier],,-1)","v":{"$error":"#N/A"}},1926.6019431401946,{"$f":"IF(A359<='S1-Standard'!$C$7,('Growth-Model-1'!G358*EXP($AA$7)),0)","v":0},{"$f":"IF(A359<='S1-Standard'!$C$7,$AD$6*EXP($AD$7*('S1-Standard'!C$7-'Growth-Model-1'!A359)),0)","v":0},98.398056859804981,4.8591633017187642E-2,0,9.6134220875344365,0,{"$f":"M359/'S1-Standard'!$C$17","v":0},{"$error":"#N/A"},{"$error":"#N/A"},{"$f":"_xlfn.XLOOKUP(B359,FeedTables!$C$17:$T$17,FeedTables!$C$31:$T$31,,-1)","v":{"$error":"#N/A"}},{"$f":"_xlfn.XLOOKUP(Q359,FeedPrice[Feed],FeedPrice[Price per kg],\"Unknown\",0)*O359","v":{"$error":"#N/A"}},{"$error":"#N/A"},{"$f":"_xlfn.XLOOKUP(O359,LabourFromFeed[Feed Quantity (kg)],LabourFromFeed[No. Labour],\"Out of range\",-1)","v":{"$error":"#N/A"}},{"$f":"T359*OperatingCosts!$C$9","v":{"$error":"#N/A"}},{"$error":"#N/A"}]
[358,{"$f":"IF(A360<='S1-Standard'!$C$7, B359*EXP((LN((E359/100)+1))*1),)","v":0},{"$f":"_xlfn.XLOOKUP($B360,FeedTables!$C$42:$T$42,FeedTables!$C$44:$T$44,,-1)","v":{"$error":"#N/A"}},{"$f":"_xlfn.XLOOKUP($B360,FeedTables!$C$42:$T$42,FeedTables!$C$45:$T$45,,-1)","v":{"$error":"#N/A"}},{"$f":"_xlfn.XLOOKUP($B360,FeedTables!$C$42:$T$42,FeedTables!$C$46:$T$46,,-1)*_xlfn.XLOOKUP(N359,DensityMultiplier[Biomass kg/m3],DensityMultiplier[Multiplier],,-1)","v":{"$error":"#N/A"}},1926.6019431401946,{"$f":"IF(A360<='S1-Standard'!$C$7,('Growth-Model-1'!G359*EXP($AA$7)),0)","v":0},{"$f":"IF(A360<='S1-Standard'!$C$7,$AD$6*EXP($AD$7*('S1-Standard'!C$7-'Growth-Model-1'!A360)),0)","v":0},98.398056859804981,4.8591633017187642E-2,0,9.6134220875344365,0,{"$f":"M360/'S1-Standard'!$C$17","v":0},{"$error":"#N/A"},{"$error":"#N/A"},{"$f":"_xlfn.XLOOKUP(B360,FeedTables!$C$17:$T$17,FeedTables!$C$31:$T$31,,-1)","v":{"$error":"#N/A"}},{"$f":"_xlfn.XLOOKUP(Q360,FeedPrice[Feed],FeedPrice[Price per kg],\"Unknown\",0)*O360","v":{"$error":"#N/A"}},{"$error":"#N/A"},{"$f":"_xlfn.XLOOKUP(O360,LabourFromFeed[Feed Quantity (kg)],LabourFromFeed[No. Labour],\"Out of range\",-1)","v":{"$error":"#N/A"}},{"$f":"T360*OperatingCosts!$C$9","v":{"$error":"#N/A"}},{"$error":"#N/A"}]
[359,{"$f":"IF(A361<='S1-Standard'!$C$7, B360*EXP((LN((E360/100)+1))*1),)","v":0},{"$f":"_xlfn.XLOOKUP($B361,FeedTables!$C$42:$T$42,FeedTables!$C$44:$T$44,,-1)","v":{"$error":"#N/A"}},{"$f":"_xlfn.XLOOKUP($B361,FeedTables!$C$42:$T$42,FeedTables!$C$45:$T$45,,-1)","v":{"$error":"#N/A"}},{"$f":"_xlfn.XLOOKUP($B361,FeedTables!$C$42:$T$42,FeedTables!$C$46:$T$46,,-1)*_xlfn.XLOOKUP(N360,DensityMultiplier[Biomass kg/m3],DensityMultiplier[Multiplier],,-1)","v":{"$error":"#N/A"}},1926.6019431401946,{"$f":"IF(A361<='S1-Standard'!$C$7,('Growth-Model-1'!G360*EXP($AA$7)),0)","v":0},{"$f":"IF(A361<='S1-Standard'!$C$7,$AD$6*EXP($AD$7*('S1-Standard'!C$7-'Growth-Model-1'!A361)),0)","v":0},98.398056859804981,4.8591633017187642E-2,0,9.6134220875344365,0,{"$f":"M361/'S1-Standard'!$C$17","v":0},{"$error":"#N/A"},{"$error":"#N/A"},{"$f":"_xlfn.XLOOKUP(B361,FeedTables!$C$17:$T$17,FeedTables!$C$31:$T$31,,-1)","v":{"$error":"#N/A"}},{"$f":"_xlfn.XLOOKUP(Q361,FeedPrice[Feed],FeedPrice[Price per kg],\"Unknown\",0)*O361","v":{"$error":"#N/A"}},{"$error":"#N/A"},{"$f":"_xlfn.XLOOKUP(O361,LabourFromFeed[Feed Quantity (kg)],LabourFromFeed[No. Labour],\"Out of range\",-1)","v":{"$error":"#N/A"}},{"$f":"T361*OperatingCosts!$C$9","v":{"$error":"#N/A"}},{"$error":"#N/A"}]
[360,{"$f":"IF(A362<='S1-Standard'!$C$7, B361*EXP((LN((E361/100)+1))*1),)","v":0},{"$f":"_xlfn.XLOOKUP($B362,FeedTables!$C$42:$T$42,FeedTables!$C$44:$T$44,,-1)","v":{"$error":"#N/A"}},{"$f":"_xlfn.XLOOKUP($B362,FeedTables!$C$42:$T$42,FeedTables!$C$45:$T$45,,-1)","v":{"$error":"#N/A"}},{"$f":"_xlfn.XLOOKUP($B362,FeedTables!$C$42:$T$42,FeedTables!$C$46:$T$46,,-1)*_xlfn.XLOOKUP(N361,DensityMultiplier[Biomass kg/m3],DensityMultiplier[Multiplier],,-1)","v":{"$error":"#N/A"}},1926.6019431401946,{"$f":"IF(A362<='S1-Standard'!$C$7,('Growth-Model-1'!G361*EXP($AA$7)),0)","v":0},{"$f":"IF(A362<='S1-Standard'!$C$7,$AD$6*EXP($AD$7*('S1-Standard'!C$7-'Growth-Model-1'!A362)),0)","v":0},98.398056859804981,4.8591633017187642E-2,0,9.6134220875344365,0,{"$f":"M362/'S1-Standard'!$C$17","v":0},{"$error":"#N/A"},{"$error":"#N/A"},{"$f":"_xlfn.XLOOKUP(B362,FeedTables!$C$17:$T$17,FeedTables!$C$31:$T$31,,-1)","v":{"$error":"#N/A"}},{"$f":"_xlfn.XLOOKUP(Q362,FeedPrice[Feed],FeedPrice[Price per kg],\"Unknown\",0)*O362","v":{"$error":"#N/A"}},{"$error":"#N/A"},{"$f":"_xlfn.XLOOKUP(O362,LabourFromFeed[Feed Quantity (kg)],LabourFromFeed[No. Labour],\"Out of range\",-1)","v":{"$error":"#N/A"}},{"$f":"T362*OperatingCosts!$C$9","v":{"$error":"#N/A"}},{"$error":"#N/A"}]
[361,{"$f":"IF(A363<='S1-Standard'!$C$7, B362*EXP((LN((E362/100)+1))*1),)","v":0},{"$f":"_xlfn.XLOOKUP($B363,FeedTables!$C$42:$T$42,FeedTables!$C$44:$T$44,,-1)","v":{"$error":"#N/A"}},{"$f":"_xlfn.XLOOKUP($B363,FeedTables!$C$42:$T$42,FeedTables!$C$45:$T$45,,-1)","v":{"$error":"#N/A"}},{"$f":"_xlfn.XLOOKUP($B363,FeedTables!$C$42:$T$42,FeedTables!$C$46:$T$46,,-1)*_xlfn.XLOOKUP(N362,DensityMultiplier[Biomass kg/m3],DensityMultiplier[Multiplier],,-1)","v":{"$error":"#N/A"}},1926.6019431401946,{"$f":"IF(A363<='S1-Standard'!$C$7,('Growth-Model-1'!G362*EXP($AA$7)),0)","v":0},{"$f":"IF(A363<='S1-Standard'!$C$7,$AD$6*EXP($AD$7*('S1-Standard'!C$7-'Growth-Model-1'!A363)),0)","v":0},98.398056859804981,4.8591633017187642E-2,0,9.6134220875344365,0,{"$f":"M363/'S1-Standard'!$C$17","v":0},{"$error":"#N/A"},{"$error":"#N/A"},{"$f":"_xlfn.XLOOKUP(B363,FeedTables!$C$17:$T$17,FeedTables!$C$31:$T$31,,-1)","v":{"$error":"#N/A"}},{"$f":"_xlfn.XLOOKUP(Q363,FeedPrice[Feed],FeedPrice[Price per kg],\"Unknown\",0)*O363","v":{"$error":"#N/A"}},{"$error":"#N/A"},{"$f":"_xlfn.XLOOKUP(O363,LabourFromFeed[Feed Quantity (kg)],LabourFromFeed[No. Labour],\"Out of range\",-1)","v":{"$error":"#N/A"}},{"$f":"T363*OperatingCosts!$C$9","v":{"$error":"#N/A"}},{"$error":"#N/A"}]
[362,{"$f":"IF(A364<='S1-Standard'!$C$7, B363*EXP((LN((E363/100)+1))*1),)","v":0},{"$f":"_xlfn.XLOOKUP($B364,FeedTables!$C$42:$T$42,FeedTables!$C$44:$T$44,,-1)","v":{"$error":"#N/A"}},{"$f":"_xlfn.XLOOKUP($B364,FeedTables!$C$42:$T$42,FeedTables!$C$45:$T$45,,-1)","v":{"$error":"#N/A"}},{"$f":"_xlfn.XLOOKUP($B364,FeedTables!$C$42:$T$42,FeedTables!$C$46:$T$46,,-1)*_xlfn.XLOOKUP(N363,DensityMultiplier[Biomass kg/m3],DensityMultiplier[Multiplier],,-1)","v":{"$error":"#N/A"}},1926.6019431401946,{"$f":"IF(A364<='S1-Standard'!$C$7,('Growth-Model-1'!G363*EXP($AA$7)),0)","v":0},{"$f":"IF(A364<='S1-Standard'!$C$7,$AD$6*EXP($AD$7*('S1-Standard'!C$7-'Growth-Model-1'!A364)),0)","v":0},98.398056859804981,4.8591633017187642E-2,0,9.6134220875344365,0,{"$f":"M364/'S1-Standard'!$C$17","v":0},{"$error":"#N/A"},{"$error":"#N/A"},{"$f":"_xlfn.XLOOKUP(B364,FeedTables!$C$17:$T$17,FeedTables!$C$31:$T$31,,-1)","v":{"$error":"#N/A"}},{"$f":"_xlfn.XLOOKUP(Q364,FeedPrice[Feed],FeedPrice[Price per kg],\"Unknown\",0)*O364","v":{"$error":"#N/A"}},{"$error":"#N/A"},{"$f":"_xlfn.XLOOKUP(O364,LabourFromFeed[Feed Quantity (kg)],LabourFromFeed[No. Labour],\"Out of range\",-1)","v":{"$error":"#N/A"}},{"$f":"T364*OperatingCosts!$C$9","v":{"$error":"#N/A"}},{"$error":"#N/A"}]
[363,{"$f":"IF(A365<='S1-Standard'!$C$7, B364*EXP((LN((E364/100)+1))*1),)","v":0},{"$f":"_xlfn.XLOOKUP($B365,FeedTables!$C$42:$T$42,FeedTables!$C$44:$T$44,,-1)","v":{"$error":"#N/A"}},{"$f":"_xlfn.XLOOKUP($B365,FeedTables!$C$42:$T$42,FeedTables!$C$45:$T$45,,-1)","v":{"$error":"#N/A"}},{"$f":"_xlfn.XLOOKUP($B365,FeedTables!$C$42:$T$42,FeedTables!$C$46:$T$46,,-1)*_xlfn.XLOOKUP(N364,DensityMultiplier[Biomass kg/m3],DensityMultiplier[Multiplier],,-1)","v":{"$error":"#N/A"}},1926.6019431401946,{"$f":"IF(A365<='S1-Standard'!$C$7,('Growth-Model-1'!G364*EXP($AA$7)),0)","v":0},{"$f":"IF(A365<='S1-Standard'!$C$7,$AD$6*EXP($AD$7*('S1-Standard'!C$7-'Growth-Model-1'!A365)),0)","v":0},98.398056859804981,4.8591633017187642E-2,0,9.6134220875344365,0,{"$f":"M365/'S1-Standard'!$C$17","v":0},{"$error":"#N/A"},{"$error":"#N/A"},{"$f":"_xlfn.XLOOKUP(B365,FeedTables!$C$17:$T$17,FeedTables!$C$31:$T$31,,-1)","v":{"$error":"#N/A"}},{"$f":"_xlfn.XLOOKUP(Q365,FeedPrice[Feed],FeedPrice[Price per kg],\"Unknown\",0)*O365","v":{"$error":"#N/A"}},{"$error":"#N/A"},{"$f":"_xlfn.XLOOKUP(O365,LabourFromFeed[Feed Quantity (kg)],LabourFromFeed[No. Labour],\"Out of range\",-1)","v":{"$error":"#N/A"}},{"$f":"T365*OperatingCosts!$C$9","v":{"$error":"#N/A"}},{"$error":"#N/A"}]
[364,{"$f":"IF(A366<='S1-Standard'!$C$7, B365*EXP((LN((E365/100)+1))*1),)","v":0},{"$f":"_xlfn.XLOOKUP($B366,FeedTables!$C$42:$T$42,FeedTables!$C$44:$T$44,,-1)","v":{"$error":"#N/A"}},{"$f":"_xlfn.XLOOKUP($B366,FeedTables!$C$42:$T$42,FeedTables!$C$45:$T$45,,-1)","v":{"$error":"#N/A"}},{"$f":"_xlfn.XLOOKUP($B366,FeedTables!$C$42:$T$42,FeedTables!$C$46:$T$46,,-1)*_xlfn.XLOOKUP(N365,DensityMultiplier[Biomass kg/m3],DensityMultiplier[Multiplier],,-1)","v":{"$error":"#N/A"}},1926.6019431401946,{"$f":"IF(A366<='S1-Standard'!$C$7,('Growth-Model-1'!G365*EXP($AA$7)),0)","v":0},{"$f":"IF(A366<='S1-Standard'!$C$7,$AD$6*EXP($AD$7*('S1-Standard'!C$7-'Growth-Model-1'!A366)),0)","v":0},98.398056859804981,4.8591633017187642E-2,0,9.6134220875344365,0,{"$f":"M366/'S1-Standard'!$C$17","v":0},{"$error":"#N/A"},{"$error":"#N/A"},{"$f":"_xlfn.XLOOKUP(B366,FeedTables!$C$17:$T$17,FeedTables!$C$31:$T$31,,-1)","v":{"$error":"#N/A"}},{"$f":"_xlfn.XLOOKUP(Q366,FeedPrice[Feed],FeedPrice[Price per kg],\"Unknown\",0)*O366","v":{"$error":"#N/A"}},{"$error":"#N/A"},{"$f":"_xlfn.XLOOKUP(O366,LabourFromFeed[Feed Quantity (kg)],LabourFromFeed[No. Labour],\"Out of range\",-1)","v":{"$error":"#N/A"}},{"$f":"T366*OperatingCosts!$C$9","v":{"$error":"#N/A"}},{"$error":"#N/A"}]
[null,null,null,null,null,null,null,null,null,null,null,null,null,null,null,null,null,null,{"$f":"_xlfn.CONCAT(\"Feed Cost \",\" (\",'0-StartHere'!$C$49,\")\")","v":"Feed Cost  (KES)"}]
[]
[]
[]
[]
[]
[]
[null,"Harvest summary",null,"Before weight loss"]
[null,null,null,null,null,null,"Range",null,"Label","Wt class",{"$f":"_xlfn.CONCAT('0-StartHere'!$C$49,\"/kg\")","v":"KES/kg"},"Prob.","Number","Kg","% No.","% Biomass","Cum. No.","Cum. Biomass",{"$f":"_xlfn.CONCAT(\"Income by size grade\",\" (\",'0-StartHere'!$C$49,\")\")","v":"Income by size grade (KES)"}]
[null,"Fish Number",{"$f":"'S1-Standard'!C21","v":1928.6269545049643},null,null,null,{"$f":"SalesPrices!A2","v":"0-99"},null,{"$f":"SalesPrices!B2","v":"0+"},{"$f":"SalesPrices!C2","v":100},{"$f":"_xlfn.XLOOKUP(J376,SalesPrice[Wt class],SalesPrice[Price per kg],\"No Data\",0)","v":219},{"$f":"_xlfn.NORM.DIST(J376,$C$377,$C$378*$C$377,FALSE)/15*1500","v":1.3601074604332277E-3},{"$f":"$C$376*L376","v":2.6231399092148173},{"$f":"M376*(J376/1000)","v":0.26231399092148172},{"$f":"M376/$M$391","v":1.3601870469741415E-3},{"$f":"N376/$N$391","v":2.7611239741073498E-4},{"$f":"O376","v":1.3601870469741415E-3},{"$f":"P376","v":2.7611239741073498E-4},{"$f":"N376*K376","v":57.446764011804497}]
[null,"Avg. wt. (g)",{"$f":"'S1-Standard'!C20*(1-'0-StartHere'!C34)","v":492.59183595154281},{"$f":"'S1-Standard'!C20","v":492.59183595154281},null,null,{"$f":"SalesPrices!A3","v":"100-199"},null,{"$f":"SalesPrices!B3","v":"100+"},{"$f":"SalesPrices!C3","v":200},{"$f":"_xlfn.XLOOKUP(J377,SalesPrice[Wt class],SalesPrice[Price per kg],\"No Data\",0)","v":271},1.5780442861322977E-2,{"$f":"$C$376*L377","v":30.434587456372938},6.0869174912745878,1.5781366252229912E-2,6.4071053757107366E-3,{"$f":"O377+Q376","v":1.7141553299204054E-2},{"$f":"P377+R376","v":6.6832177731214713E-3},1649.5546401354134]
[null,"cv",{"$f":"'0-StartHere'!C95","v":0.24},null,null,null,{"$f":"SalesPrices!A4","v":"200-299"},null,{"$f":"SalesPrices!B4","v":"200+"},{"$f":"SalesPrices!C4","v":300},{"$f":"_xlfn.XLOOKUP(J378,SalesPrice[Wt class],SalesPrice[Price per kg],\"No Data\",0)","v":344},8.9522485106773034E-2,172.6554778111917,51.796643343357509,8.9527723505304704E-2,5.4521283142858153E-2,{"$f":"O378+Q377","v":0.10666927680450876},6.1204500915979621E-2,17818.045310114983]
[null,"SD",{"$f":"C377*C378","v":118.22204062837027},null,null,null,{"$f":"SalesPrices!A5","v":"300-399"},null,{"$f":"SalesPrices!B5","v":"300+"},{"$f":"SalesPrices!C5","v":400},{"$f":"_xlfn.XLOOKUP(J379,SalesPrice[Wt class],SalesPrice[Price per kg],\"No Data\",0)","v":358},0.24832020047615161,478.91703198638243,191.56681279455299,0.24833473090581967,0.20164373146558623,0.35500400771032842,0.26284823238156585,68580.918980449977]
[null,"Biomass (kg)",{"$f":"(C376*C377)/1000","v":950.02589238523296},null,null,null,{"$f":"SalesPrices!A6","v":"400-499"},null,{"$f":"SalesPrices!B6","v":"400+"},{"$f":"SalesPrices!C6","v":500},{"$f":"_xlfn.XLOOKUP(J380,SalesPrice[Wt class],SalesPrice[Price per kg],\"No Data\",0)","v":365},0.33678981479606002,649.54191481841622,324.77095740920811,0.33680952201563957,0.34185476475968068,0.69181352972596799,0.60470299714124653,118541.39945436096]
[null,null,null,null,null,null,{"$f":"SalesPrices!A7","v":"500-599"},null,{"$f":"SalesPrices!B7","v":"500+"},{"$f":"SalesPrices!C7","v":600},{"$f":"_xlfn.XLOOKUP(J381,SalesPrice[Wt class],SalesPrice[Price per kg],\"No Data\",0)","v":363},0.22334324725318616,430.74580675916167,258.447484055497,0.22335631615913837,0.27204250210464864,0.9151698458851063,0.87674549924589518,93816.436712145412]
[null,"Weight loss adjusment ",null,null,null,null,{"$f":"SalesPrices!A8","v":"600-699"},null,{"$f":"SalesPrices!B8","v":"600+"},{"$f":"SalesPrices!C8","v":700},{"$f":"_xlfn.XLOOKUP(J382,SalesPrice[Wt class],SalesPrice[Price per kg],\"No Data\",0)","v":378},7.2419193087813916E-2,139.66960781265752,97.768725468860254,7.242343068906329E-2,0.10291161781408538,0.98759327657416962,0.9796571170599806,36956.578227229176]
[null,"% of harvest wt.",{"$f":"1-'0-StartHere'!$C$34","v":1},null,null,null,{"$f":"SalesPrices!A9","v":"700-799"},null,{"$f":"SalesPrices!B9","v":"700+"},{"$f":"SalesPrices!C9","v":800},{"$f":"_xlfn.XLOOKUP(J383,SalesPrice[Wt class],SalesPrice[Price per kg],\"No Data\",0)","v":388},1.1481576267831252E-2,22.14367747034386,17.714941976275089,1.1482248111024509E-2,1.86467945605139E-2,0.99907552468519412,0.99830391162049448,6873.3974867947345]
[null,null,null,null,null,null,{"$f":"SalesPrices!A10","v":"800-899"},null,{"$f":"SalesPrices!B10","v":"800+"},{"$f":"SalesPrices!C10","v":900},{"$f":"_xlfn.XLOOKUP(J384,SalesPrice[Wt class],SalesPrice[Price per kg],\"No Data\",0)","v":405},8.9005393944326279E-4,1.7165820185736058,1.5449238167162453,8.9010602085324512E-4,1.6261908766358982E-3,0.99996563070604738,0.99993010249713032,625.69414577007933]
[null,null,null,null,null,null,{"$f":"SalesPrices!A11","v":"900-999"},null,{"$f":"SalesPrices!B11","v":"900+"},{"$f":"SalesPrices!C11","v":1000},{"$f":"_xlfn.XLOOKUP(J385,SalesPrice[Wt class],SalesPrice[Price per kg],\"No Data\",0)","v":405},3.3736351790310367E-5,6.5064837409454387E-2,6.5064837409454387E-2,3.3738325869285848E-5,6.8487419146627369E-5,0.99999936903191666,0.99999858991627699,26.351259150829026]
[null,null,null,null,null,null,{"$f":"SalesPrices!A12","v":"1000-1099"},null,{"$f":"SalesPrices!B12","v":"1000+"},{"$f":"SalesPrices!C12","v":1100},{"$f":"_xlfn.XLOOKUP(J386,SalesPrice[Wt class],SalesPrice[Price per kg],\"No Data\",0)","v":405},6.2524018778593513E-7,1.2058550792037001E-3,1.3264405871240702E-3,6.2527677364788628E-7,1.3962148539890817E-6,0.99999999430869035,0.99999998613113095,0.5372084377852484]
[null,null,null,null,null,null,{"$f":"SalesPrices!A13","v":"1100-1199"},null,{"$f":"SalesPrices!B13","v":"1100+"},{"$f":"SalesPrices!C13","v":1200},{"$f":"_xlfn.XLOOKUP(J387,SalesPrice[Wt class],SalesPrice[Price per kg],\"No Data\",0)","v":405},5.6658181489375138E-9,1.0927249601364311E-5,1.3112699521637173E-5,5.666149683673582E-9,1.3802462036916601E-8,0.99999999997484001,0.99999999993359301,5.3106433062630552E-3]
[null,null,null,null,null,null,{"$f":"SalesPrices!A14","v":"1200-1299"},null,{"$f":"SalesPrices!B14","v":"1200+"},{"$f":"SalesPrices!C14","v":1300},{"$f":"_xlfn.XLOOKUP(J388,SalesPrice[Wt class],SalesPrice[Price per kg],\"No Data\",0)","v":405},2.5104140438638135E-11,4.8416521919635581E-8,6.2941478495526259E-8,2.5105609404700185E-11,6.6252365963880279E-11,0.9999999999999456,0.99999999999984535,2.5491298790688135E-5]
[null,null,null,null,null,null,{"$f":"SalesPrices!A15","v":"1300-1399"},null,{"$f":"SalesPrices!B15","v":"1300+"},{"$f":"SalesPrices!C15","v":1400},{"$f":"_xlfn.XLOOKUP(J389,SalesPrice[Wt class],SalesPrice[Price per kg],\"No Data\",0)","v":405},5.4386994352266507E-14,1.0489222328229045E-10,1.4684911259520662E-10,5.4390176801357556E-14,1.5457376251211215E-13,1,0.99999999999999989,5.9473890601058681E-8]
[null,null,null,null,null,null,{"$f":"SalesPrices!A16","v":"1400-1499"},null,{"$f":"SalesPrices!B16","v":"1400+"},{"$f":"SalesPrices!C16","v":1500},{"$f":"_xlfn.XLOOKUP(J390,SalesPrice[Wt class],SalesPrice[Price per kg],\"No Data\",0)","v":405},5.7611839164114606E-17,1.1111174591051618E-13,1.6666761886577426E-13,5.7615210314650964E-17,1.7543477438663348E-16,1,1,6.7500385640638572E-11]
[null,null,null,null,null,null,null,null,null,null,null,{"$f":"SUM(L376:L390)","v":0.99994148853197051},{"$f":"SUM(M376:M390)","v":1928.5141077105743},{"$f":"SUM(N376:N390)","v":950.02612480044775},{"$f":"SUM(O376:O390)","v":1},{"$f":"SUM(P376:P390)","v":1},null,null,{"$f":"SUM(S376:S390)","v":344946.36552479531}]

{"sheet":"Growth-Model-2","index":8,"n_rows":391,"n_cols":31,"rows_kept":391,"cut":false,"hidden":false,"merged":[]}
["Day","Av. Wt (g)","Feed rate % bw/day","FCR","SGR","No.","Early Morts","Late Morts","Cum. Morts","Cum Mort %","Mort Biomas (g)","Cum. Mort biomass (kg)","Biomass (kg)","Density (kg/m3)","Feed fed (kg)","Cum. Feed (kg)","FeedType","Feed cost","Cum. Feed Cost","Labour needed","Labour cost","Cum. labour cost",null,null,null,"EXP Mortalities"]
[0,{"$f":"'S2-Double'!C5","v":40},{"$f":"_xlfn.XLOOKUP($B2,FeedTables!$C$42:$T$42,FeedTables!$C$44:$T$44,,-1)","v":4.1684550113923917},{"$f":"_xlfn.XLOOKUP($B2,FeedTables!$C$42:$T$42,FeedTables!$C$45:$T$45,,-1)","v":1.283309931764242},{"$f":"_xlfn.XLOOKUP($B2,FeedTables!$C$42:$T$42,FeedTables!$C$46:$T$46,,-1)","v":3.2482059931241785},{"$f":"'S2-Double'!C18","v":4050},{"$f":"AA6","v":24.3},{"$f":"IF(A2<='S2-Double'!$C$7,$AD$6*EXP($AD$7*('S2-Double'!C$7-'Growth-Model-2'!A2)),0)","v":5.1025376634525345E-12},{"$f":"G2+H2","v":24.300000000005102},{"$f":"I2/$F$2","v":6.0000000000012595E-3},{"$f":"(G2+H2)*B2","v":972.00000000020407},{"$f":"K2/1000","v":0.97200000000020403},{"$f":"(B2*F2)/1000","v":162},{"$f":"M2/'S2-Double'!$C$17","v":6},{"$f":"M2*(C2/100)","v":6.7528971184556754},{"$f":"O2","v":6.7528971184556754},{"$f":"_xlfn.XLOOKUP(B2,FeedTables!$C$17:$T$17,FeedTables!$C$31:$T$31,,-1)","v":"Unga 3mm"},{"$f":"_xlfn.XLOOKUP(Q2,FeedPrice[Feed],FeedPrice[Price per kg],\"Unknown\",0)*O2","v":716.81395151666334},{"$f":"R2","v":716.81395151666334},{"$f":"_xlfn.XLOOKUP(O2,LabourFromFeed[Feed Quantity (kg)],LabourFromFeed[No. Labour],\"Out of range\",-1)","v":1},{"$f":"T2*OperatingCosts!$C$9","v":1200},{"$f":"U2","v":1200},null,null,null,"(Mort=Prev * EXP(L)",null,null,"(Mort=Final * EXP(L*(T-t))",null,"(T = total culture days, t = day no.)"]
[1,{"$f":"IF(A3<='S2-Double'!$C$7, B2*EXP((LN((E2/100)+1))*1),)","v":41.299282397249677},{"$f":"_xlfn.XLOOKUP($B3,FeedTables!$C$42:$T$42,FeedTables!$C$44:$T$44,,-1)","v":4.1684550113923917},{"$f":"_xlfn.XLOOKUP($B3,FeedTables!$C$42:$T$42,FeedTables!$C$45:$T$45,,-1)","v":1.283309931764242},{"$f":"_xlfn.XLOOKUP($B3,FeedTables!$C$42:$T$42,FeedTables!$C$46:$T$46,,-1)*_xlfn.XLOOKUP(N2,DensityMultiplier[Biomass kg/m3],DensityMultiplier[Multiplier],,-1)","v":3.2482059931241785},{"$f":"F2-G2-H2","v":4025.6999999999948},{"$f":"IF(A3<='S2-Double'!$C$7,('Growth-Model-2'!G2*EXP($AA$7)),0)","v":20.915203827128906},{"$f":"IF(A3<='S2-Double'!$C$7,$AD$6*EXP($AD$7*('S2-Double'!C$7-'Growth-Model-2'!A3)),0)","v":6.2322535757570692E-12},{"$f":"I2+G3+H3","v":45.215203827140236},{"$f":"I3/$F$2","v":1.1164247858553144E-2},{"$f":"(G3+H3)*B3","v":863.78290925289127},{"$f":"(K3/1000)+L2","v":1.8357829092530953},{"$f":"(B3*F3)/1000","v":166.25852114660782},{"$f":"M3/'S2-Double'!$C$17","v":6.1577230054299195},{"$f":"M3*(C3/100)","v":6.9304116566026535},{"$f":"O3+P2","v":13.683308775058329},{"$f":"_xlfn.XLOOKUP(B3,FeedTables!$C$17:$T$17,FeedTables!$C$31:$T$31,,-1)","v":"Unga 3mm"},{"$f":"_xlfn.XLOOKUP(Q3,FeedPrice[Feed],FeedPrice[Price per kg],\"Unknown\",0)*O3","v":735.65695997788077},{"$f":"R3+S2","v":1452.470911494544},{"$f":"_xlfn.XLOOKUP(O3,LabourFromFeed[Feed Quantity (kg)],LabourFromFeed[No. Labour],\"Out of range\",-1)","v":1},{"$f":"T3*OperatingCosts!$C$9","v":1200},{"$f":"U3+V2","v":2400},null,null,null,"(Mort Final =Start*EXP(L*t)",null,null,null,null,"(Final = No. of morts on final day)"]
[2,{"$f":"IF(A4<='S2-Double'!$C$7, B3*EXP((LN((E3/100)+1))*1),)","v":42.640768163194423},{"$f":"_xlfn.XLOOKUP($B4,FeedTables!$C$42:$T$42,FeedTables!$C$44:$T$44,,-1)","v":4.1684550113923917},{"$f":"_xlfn.XLOOKUP($B4,FeedTables!$C$42:$T$42,FeedTables!$C$45:$T$45,,-1)","v":1.283309931764242},{"$f":"_xlfn.XLOOKUP($B4,FeedTables!$C$42:$T$42,FeedTables!$C$46:$T$46,,-1)*_xlfn.XLOOKUP(N3,DensityMultiplier[Biomass kg/m3],DensityMultiplier[Multiplier],,-1)","v":3.2482059931241785},{"$f":"F3-G3-H3","v":4004.7847961728594},{"$f":"IF(A4<='S2-Double'!$C$7,('Growth-Model-2'!G3*EXP($AA$7)),0)","v":18.001882762565746},{"$f":"IF(A4<='S2-Double'!$C$7,$AD$6*EXP($AD$7*('S2-Double'!C$7-'Growth-Model-2'!A4)),0)","v":7.6120917069832872E-12},{"$f":"I3+G4+H4","v":63.217086589713595},1.5609157182645331E-2,767.6141093798966,{"$f":"(K4/1000)+L3","v":2.6033970186329918},170.76710003709272,{"$f":"M4/'S2-Double'!$C$17","v":6.3247074087812116},7.1183497393056507,{"$f":"O4+P3","v":20.801658514363979},{"$f":"_xlfn.XLOOKUP(B4,FeedTables!$C$17:$T$17,FeedTables!$C$31:$T$31,,-1)","v":"Unga 3mm"},{"$f":"_xlfn.XLOOKUP(Q4,FeedPrice[Feed],FeedPrice[Price per kg],\"Unknown\",0)*O4","v":755.60641831252951},{"$f":"R4+S3","v":2208.0773298070735},{"$f":"_xlfn.XLOOKUP(O4,LabourFromFeed[Feed Quantity (kg)],LabourFromFeed[No. Labour],\"Out of range\",-1)","v":1},{"$f":"T4*OperatingCosts!$C$9","v":1200},{"$f":"U4+V3","v":3600},null,null,null,"Early Mortalities",null,null,"Late Mortalities"]
[3,{"$f":"IF(A5<='S2-Double'!$C$7, B4*EXP((LN((E4/100)+1))*1),)","v":44.025828150185497},{"$f":"_xlfn.XLOOKUP($B5,FeedTables!$C$42:$T$42,FeedTables!$C$44:$T$44,,-1)","v":4.1684550113923917},{"$f":"_xlfn.XLOOKUP($B5,FeedTables!$C$42:$T$42,FeedTables!$C$45:$T$45,,-1)","v":1.283309931764242},{"$f":"_xlfn.XLOOKUP($B5,FeedTables!$C$42:$T$42,FeedTables!$C$46:$T$46,,-1)*_xlfn.XLOOKUP(N4,DensityMultiplier[Biomass kg/m3],DensityMultiplier[Multiplier],,-1)","v":3.2482059931241785},3986.7829134102858,{"$f":"IF(A5<='S2-Double'!$C$7,('Growth-Model-2'!G4*EXP($AA$7)),0)","v":15.494364084409092},{"$f":"IF(A5<='S2-Double'!$C$7,$AD$6*EXP($AD$7*('S2-Double'!C$7-'Growth-Model-2'!A5)),0)","v":9.2974298062775356E-12},78.711450674131981,1.9434926092378266E-2,682.15221047701027,3.2855492291100021,175.52141941789711,{"$f":"M5/'S2-Double'!$C$17","v":6.5007933117739674},7.316531403792391,28.118189918156368,{"$f":"_xlfn.XLOOKUP(B5,FeedTables!$C$17:$T$17,FeedTables!$C$31:$T$31,,-1)","v":"Unga 3mm"},{"$f":"_xlfn.XLOOKUP(Q5,FeedPrice[Feed],FeedPrice[Price per kg],\"Unknown\",0)*O5","v":776.64322363429892},2984.7205534413724,{"$f":"_xlfn.XLOOKUP(O5,LabourFromFeed[Feed Quantity (kg)],LabourFromFeed[No. Labour],\"Out of range\",-1)","v":1},{"$f":"T5*OperatingCosts!$C$9","v":1200},4800,null,null,null,"First morts %",{"$f":"'0-StartHere'!C76","v":6.0000000000000001E-3},null,"Final morts %",{"$f":"'0-StartHere'!$C$81","v":1E-3}]
[4,{"$f":"IF(A6<='S2-Double'!$C$7, B5*EXP((LN((E5/100)+1))*1),)","v":45.455877738682375},{"$f":"_xlfn.XLOOKUP($B6,FeedTables!$C$42:$T$42,FeedTables!$C$44:$T$44,,-1)","v":4.1684550113923917},{"$f":"_xlfn.XLOOKUP($B6,FeedTables!$C$42:$T$42,FeedTables!$C$45:$T$45,,-1)","v":1.283309931764242},{"$f":"_xlfn.XLOOKUP($B6,FeedTables!$C$42:$T$42,FeedTables!$C$46:$T$46,,-1)*_xlfn.XLOOKUP(N5,DensityMultiplier[Biomass kg/m3],DensityMultiplier[Multiplier],,-1)","v":3.2482059931241785},3971.2885493258677,{"$f":"IF(A6<='S2-Double'!$C$7,('Growth-Model-2'!G5*EXP($AA$7)),0)","v":13.336122757084844},{"$f":"IF(A6<='S2-Double'!$C$7,$AD$6*EXP($AD$7*('S2-Double'!C$7-'Growth-Model-2'!A6)),0)","v":1.1355906409187946E-11},92.047573431228173,2.2727795908945227E-2,606.20516555462461,3.8917543946646269,180.51840676318591,{"$f":"M6/'S2-Double'!$C$17","v":6.6858669171550336},7.5248285732057258,35.643018491362092,{"$f":"_xlfn.XLOOKUP(B6,FeedTables!$C$17:$T$17,FeedTables!$C$31:$T$31,,-1)","v":"Unga 3mm"},{"$f":"_xlfn.XLOOKUP(Q6,FeedPrice[Feed],FeedPrice[Price per kg],\"Unknown\",0)*O6","v":798.75378070007196},3783.4743341414442,{"$f":"_xlfn.XLOOKUP(O6,LabourFromFeed[Feed Quantity (kg)],LabourFromFeed[No. Labour],\"Out of range\",-1)","v":1},{"$f":"T6*OperatingCosts!$C$9","v":1200},6000,null,null,null,"First morts",{"$f":"'S2-Double'!C18*AA5","v":24.3},null,"Final day morts",{"$f":"'S2-Double'!C18*AD5","v":4.05}]
[5,{"$f":"IF(A7<='S2-Double'!$C$7, B6*EXP((LN((E6/100)+1))*1),)","v":46.93237828361746},{"$f":"_xlfn.XLOOKUP($B7,FeedTables!$C$42:$T$42,FeedTables!$C$44:$T$44,,-1)","v":4.1684550113923917},{"$f":"_xlfn.XLOOKUP($B7,FeedTables!$C$42:$T$42,FeedTables!$C$45:$T$45,,-1)","v":1.283309931764242},{"$f":"_xlfn.XLOOKUP($B7,FeedTables!$C$42:$T$42,FeedTables!$C$46:$T$46,,-1)*_xlfn.XLOOKUP(N6,DensityMultiplier[Biomass kg/m3],DensityMultiplier[Multiplier],,-1)","v":3.2482059931241785},3957.9524265687714,{"$f":"IF(A7<='S2-Double'!$C$7,('Growth-Model-2'!G6*EXP($AA$7)),0)","v":11.47850723160666},{"$f":"IF(A7<='S2-Double'!$C$7,$AD$6*EXP($AD$7*('S2-Double'!C$7-'Growth-Model-2'!A7)),0)","v":1.3870135409590899E-11},103.5260806628487,2.5561995225394742E-2,538.71364352565331,4.4304680381902806,185.75612051228725,{"$f":"M7/'S2-Double'!$C$17","v":6.8798563152698984},7.7431603144625294,43.38617880582462,{"$f":"_xlfn.XLOOKUP(B7,FeedTables!$C$17:$T$17,FeedTables!$C$31:$T$31,,-1)","v":"Unga 3mm"},{"$f":"_xlfn.XLOOKUP(Q7,FeedPrice[Feed],FeedPrice[Price per kg],\"Unknown\",0)*O7","v":821.92949853591449},4605.4038326773589,{"$f":"_xlfn.XLOOKUP(O7,LabourFromFeed[Feed Quantity (kg)],LabourFromFeed[No. Labour],\"Out of range\",-1)","v":1},{"$f":"T7*OperatingCosts!$C$9","v":1200},7200,null,null,null,"Li",{"$f":"'0-StartHere'!C78","v":-0.15},null,"Lf",{"$f":"'0-StartHere'!$C$83","v":-0.2}]
[6,{"$f":"IF(A8<='S2-Double'!$C$7, B7*EXP((LN((E7/100)+1))*1),)","v":48.456838607741638},{"$f":"_xlfn.XLOOKUP($B8,FeedTables!$C$42:$T$42,FeedTables!$C$44:$T$44,,-1)","v":4.1684550113923917},{"$f":"_xlfn.XLOOKUP($B8,FeedTables!$C$42:$T$42,FeedTables!$C$45:$T$45,,-1)","v":1.283309931764242},{"$f":"_xlfn.XLOOKUP($B8,FeedTables!$C$42:$T$42,FeedTables!$C$46:$T$46,,-1)*_xlfn.XLOOKUP(N7,DensityMultiplier[Biomass kg/m3],DensityMultiplier[Multiplier],,-1)","v":3.2482059931241785},3946.4739193371506,{"$f":"IF(A8<='S2-Double'!$C$7,('Growth-Model-2'!G7*EXP($AA$7)),0)","v":9.8796427316965598},{"$f":"IF(A8<='S2-Double'!$C$7,$AD$6*EXP($AD$7*('S2-Double'!C$7-'Growth-Model-2'!A8)),0)","v":1.6941021645329349E-11},113.4057233945622,2.800141318384252E-2,478.73625335278882,4.9092042915430696,191.23364977898188,{"$f":"M8/'S2-Double'!$C$17","v":7.082727769591922},7.9714886576805464,51.357667463505166,{"$f":"_xlfn.XLOOKUP(B8,FeedTables!$C$17:$T$17,FeedTables!$C$31:$T$31,,-1)","v":"Unga 3mm"},{"$f":"_xlfn.XLOOKUP(Q8,FeedPrice[Feed],FeedPrice[Price per kg],\"Unknown\",0)*O8","v":846.16634667299809},5451.5701793503567,{"$f":"_xlfn.XLOOKUP(O8,LabourFromFeed[Feed Quantity (kg)],LabourFromFeed[No. Labour],\"Out of range\",-1)","v":1},{"$f":"T8*OperatingCosts!$C$9","v":1200},8400,null,null,null,"Final morts",{"$f":"AA6*EXP(AA7*'S2-Double'!C7)","v":2.8897127256632773E-8}]
[7,{"$f":"IF(A9<='S2-Double'!$C$7, B8*EXP((LN((E8/100)+1))*1),)","v":50.030816543476817},{"$f":"_xlfn.XLOOKUP($B9,FeedTables!$C$42:$T$42,FeedTables!$C$44:$T$44,,-1)","v":4.1684550113923917},{"$f":"_xlfn.XLOOKUP($B9,FeedTables!$C$42:$T$42,FeedTables!$C$45:$T$45,,-1)","v":1.283309931764242},{"$f":"_xlfn.XLOOKUP($B9,FeedTables!$C$42:$T$42,FeedTables!$C$46:$T$46,,-1)*_xlfn.XLOOKUP(N8,DensityMultiplier[Biomass kg/m3],DensityMultiplier[Multiplier],,-1)","v":3.2482059931241785},3936.5942766054372,{"$f":"IF(A9<='S2-Double'!$C$7,('Growth-Model-2'!G8*EXP($AA$7)),0)","v":8.5034873034010765},{"$f":"IF(A9<='S2-Double'!$C$7,$AD$6*EXP($AD$7*('S2-Double'!C$7-'Growth-Model-2'!A9)),0)","v":2.0691810563656466E-11},121.90921069798397,3.010103967851456E-2,425.43641325727884,5.3346407048003481,196.95102605894746,{"$f":"M9/'S2-Double'!$C$17","v":7.2944824466276836},8.2098149157429319,59.567482379248098,{"$f":"_xlfn.XLOOKUP(B9,FeedTables!$C$17:$T$17,FeedTables!$C$31:$T$31,,-1)","v":"Unga 3mm"},{"$f":"_xlfn.XLOOKUP(Q9,FeedPrice[Feed],FeedPrice[Price per kg],\"Unknown\",0)*O9","v":871.46446447268806},6323.0346438230445,{"$f":"_xlfn.XLOOKUP(O9,LabourFromFeed[Feed Quantity (kg)],LabourFromFeed[No. Labour],\"Out of range\",-1)","v":1},{"$f":"T9*OperatingCosts!$C$9","v":1200},9600]
[8,{"$f":"IF(A10<='S2-Double'!$C$7, B9*EXP((LN((E9/100)+1))*1),)","v":51.655920524850998},{"$f":"_xlfn.XLOOKUP($B10,FeedTables!$C$42:$T$42,FeedTables!$C$44:$T$44,,-1)","v":4.1684550113923917},{"$f":"_xlfn.XLOOKUP($B10,FeedTables!$C$42:$T$42,FeedTables!$C$45:$T$45,,-1)","v":1.283309931764242},{"$f":"_xlfn.XLOOKUP($B10,FeedTables!$C$42:$T$42,FeedTables!$C$46:$T$46,,-1)*_xlfn.XLOOKUP(N9,DensityMultiplier[Biomass kg/m3],DensityMultiplier[Multiplier],,-1)","v":3.2482059931241785},3928.0907893020153,{"$f":"IF(A10<='S2-Double'!$C$7,('Growth-Model-2'!G9*EXP($AA$7)),0)","v":7.3190193494665126},{"$f":"IF(A10<='S2-Double'!$C$7,$AD$6*EXP($AD$7*('S2-Double'!C$7-'Growth-Model-2'!A10)),0)","v":2.5273034493777725E-11},129.22823004747573,3.190820494999401E-2,378.07068183719434,5.7127113866375421,202.90914562658412,{"$f":"M10/'S2-Double'!$C$17","v":7.5151535417253381},8.4581764494448315,68.025658828692926,{"$f":"_xlfn.XLOOKUP(B10,FeedTables!$C$17:$T$17,FeedTables!$C$31:$T$31,,-1)","v":"Unga 3mm"},{"$f":"_xlfn.XLOOKUP(Q10,FeedPrice[Feed],FeedPrice[Price per kg],\"Unknown\",0)*O10","v":897.82781774976445},7220.8624615728086,{"$f":"_xlfn.XLOOKUP(O10,LabourFromFeed[Feed Quantity (kg)],LabourFromFeed[No. Labour],\"Out of range\",-1)","v":1},{"$f":"T10*OperatingCosts!$C$9","v":1200},10800]
[9,{"$f":"IF(A11<='S2-Double'!$C$7, B10*EXP((LN((E10/100)+1))*1),)","v":53.333811231142676},{"$f":"_xlfn.XLOOKUP($B11,FeedTables!$C$42:$T$42,FeedTables!$C$44:$T$44,,-1)","v":4.1684550113923917},{"$f":"_xlfn.XLOOKUP($B11,FeedTables!$C$42:$T$42,FeedTables!$C$45:$T$45,,-1)","v":1.283309931764242},{"$f":"_xlfn.XLOOKUP($B11,FeedTables!$C$42:$T$42,FeedTables!$C$46:$T$46,,-1)*_xlfn.XLOOKUP(N10,DensityMultiplier[Biomass kg/m3],DensityMultiplier[Multiplier],,-1)","v":3.2482059931241785},3920.7717699525233,{"$f":"IF(A11<='S2-Double'!$C$7,('Growth-Model-2'!G10*EXP($AA$7)),0)","v":6.2995383336951649},{"$f":"IF(A11<='S2-Double'!$C$7,$AD$6*EXP($AD$7*('S2-Double'!C$7-'Growth-Model-2'!A11)),0)","v":3.0868554037777207E-11},135.52776838120175,3.3463646513876975E-2,335.97838833429137,6.0486897749718338,209.10970145904105,{"$f":"M11/'S2-Double'!$C$17","v":7.744803757742261},8.7166438297770661,76.742302658469995,{"$f":"_xlfn.XLOOKUP(B11,FeedTables!$C$17:$T$17,FeedTables!$C$31:$T$31,,-1)","v":"Unga 3mm"},{"$f":"_xlfn.XLOOKUP(Q11,FeedPrice[Feed],FeedPrice[Price per kg],\"Unknown\",0)*O11","v":925.26389755138882},8146.1263591241977,{"$f":"_xlfn.XLOOKUP(O11,LabourFromFeed[Feed Quantity (kg)],LabourFromFeed[No. Labour],\"Out of range\",-1)","v":1},{"$f":"T11*OperatingCosts!$C$9","v":1200},12000]
[10,{"$f":"IF(A12<='S2-Double'!$C$7, B11*EXP((LN((E11/100)+1))*1),)","v":55.066203283914192},{"$f":"_xlfn.XLOOKUP($B12,FeedTables!$C$42:$T$42,FeedTables!$C$44:$T$44,,-1)","v":4.1684550113923917},{"$f":"_xlfn.XLOOKUP($B12,FeedTables!$C$42:$T$42,FeedTables!$C$45:$T$45,,-1)","v":1.283309931764242},{"$f":"_xlfn.XLOOKUP($B12,FeedTables!$C$42:$T$42,FeedTables!$C$46:$T$46,,-1)*_xlfn.XLOOKUP(N11,DensityMultiplier[Biomass kg/m3],DensityMultiplier[Multiplier],,-1)","v":3.2482059931241785},3914.4722316187972,{"$f":"IF(A12<='S2-Double'!$C$7,('Growth-Model-2'!G11*EXP($AA$7)),0)","v":5.4220628916068456},{"$f":"IF(A12<='S2-Double'!$C$7,$AD$6*EXP($AD$7*('S2-Double'!C$7-'Growth-Model-2'!A12)),0)","v":3.7702937042157297E-11},140.94983127284632,3.4802427474776867E-2,298.57241740946631,6.3472621923813,215.55512365555794,{"$f":"M12/'S2-Double'!$C$17","v":7.9835230983539978},8.9853183543331721,85.727621012803169,{"$f":"_xlfn.XLOOKUP(B12,FeedTables!$C$17:$T$17,FeedTables!$C$31:$T$31,,-1)","v":"Unga 3mm"},{"$f":"_xlfn.XLOOKUP(Q12,FeedPrice[Feed],FeedPrice[Price per kg],\"Unknown\",0)*O12","v":953.78345652594737},9099.9098156501459,{"$f":"_xlfn.XLOOKUP(O12,LabourFromFeed[Feed Quantity (kg)],LabourFromFeed[No. Labour],\"Out of range\",-1)","v":1},{"$f":"T12*OperatingCosts!$C$9","v":1200},13200]
[11,{"$f":"IF(A13<='S2-Double'!$C$7, B12*EXP((LN((E12/100)+1))*1),)","v":56.854866999168237},{"$f":"_xlfn.XLOOKUP($B13,FeedTables!$C$42:$T$42,FeedTables!$C$44:$T$44,,-1)","v":4.1684550113923917},{"$f":"_xlfn.XLOOKUP($B13,FeedTables!$C$42:$T$42,FeedTables!$C$45:$T$45,,-1)","v":1.283309931764242},{"$f":"_xlfn.XLOOKUP($B13,FeedTables!$C$42:$T$42,FeedTables!$C$46:$T$46,,-1)*_xlfn.XLOOKUP(N12,DensityMultiplier[Biomass kg/m3],DensityMultiplier[Multiplier],,-1)","v":3.2482059931241785},3909.0501687271526,{"$f":"IF(A13<='S2-Double'!$C$7,('Growth-Model-2'!G12*EXP($AA$7)),0)","v":4.6668127794843253},{"$f":"IF(A13<='S2-Double'!$C$7,$AD$6*EXP($AD$7*('S2-Double'!C$7-'Growth-Model-2'!A13)),0)","v":4.6050471294030124E-11},145.6166440523767,3.5954726926512769E-2,265.33101989021816,6.6125932122715181,222.24852743605842,{"$f":"M13/'S2-Double'!$C$17","v":8.2314269420762383},9.2643298796541718,94.991950892457339,{"$f":"_xlfn.XLOOKUP(B13,FeedTables!$C$17:$T$17,FeedTables!$C$31:$T$31,,-1)","v":"Unga 3mm"},{"$f":"_xlfn.XLOOKUP(Q13,FeedPrice[Feed],FeedPrice[Price per kg],\"Unknown\",0)*O13","v":983.40027882839865},10083.310094478544,{"$f":"_xlfn.XLOOKUP(O13,LabourFromFeed[Feed Quantity (kg)],LabourFromFeed[No. Labour],\"Out of range\",-1)","v":1},{"$f":"T13*OperatingCosts!$C$9","v":1200},14400]
[12,{"$f":"IF(A14<='S2-Double'!$C$7, B13*EXP((LN((E13/100)+1))*1),)","v":58.701630196418009},{"$f":"_xlfn.XLOOKUP($B14,FeedTables!$C$42:$T$42,FeedTables!$C$44:$T$44,,-1)","v":4.1684550113923917},{"$f":"_xlfn.XLOOKUP($B14,FeedTables!$C$42:$T$42,FeedTables!$C$45:$T$45,,-1)","v":1.283309931764242},{"$f":"_xlfn.XLOOKUP($B14,FeedTables!$C$42:$T$42,FeedTables!$C$46:$T$46,,-1)*_xlfn.XLOOKUP(N13,DensityMultiplier[Biomass kg/m3],DensityMultiplier[Multiplier],,-1)","v":3.2482059931241785},3904.3833559476225,{"$f":"IF(A14<='S2-Double'!$C$7,('Growth-Model-2'!G13*EXP($AA$7)),0)","v":4.0167629837845533},{"$f":"IF(A14<='S2-Double'!$C$7,$AD$6*EXP($AD$7*('S2-Double'!C$7-'Growth-Model-2'!A14)),0)","v":5.6246172653104285E-11},149.63340703621751,3.6946520255856173E-2,235.79053526408319,6.8483837475356015,229.19366790588683,{"$f":"M14/'S2-Double'!$C$17","v":8.4886543668846972},9.5538349356169761,104.54578582807432,{"$f":"_xlfn.XLOOKUP(B14,FeedTables!$C$17:$T$17,FeedTables!$C$31:$T$31,,-1)","v":"Unga 3mm"},{"$f":"_xlfn.XLOOKUP(Q14,FeedPrice[Feed],FeedPrice[Price per kg],\"Unknown\",0)*O14","v":1014.1309799643},11097.441074442844,{"$f":"_xlfn.XLOOKUP(O14,LabourFromFeed[Feed Quantity (kg)],LabourFromFeed[No. Labour],\"Out of range\",-1)","v":1},{"$f":"T14*OperatingCosts!$C$9","v":1200},15600]
[13,{"$f":"IF(A15<='S2-Double'!$C$7, B14*EXP((LN((E14/100)+1))*1),)","v":60.608380066519658},{"$f":"_xlfn.XLOOKUP($B15,FeedTables!$C$42:$T$42,FeedTables!$C$44:$T$44,,-1)","v":4.1684550113923917},{"$f":"_xlfn.XLOOKUP($B15,FeedTables!$C$42:$T$42,FeedTables!$C$45:$T$45,,-1)","v":1.283309931764242},{"$f":"_xlfn.XLOOKUP($B15,FeedTables!$C$42:$T$42,FeedTables!$C$46:$T$46,,-1)*_xlfn.XLOOKUP(N14,DensityMultiplier[Biomass kg/m3],DensityMultiplier[Multiplier],,-1)","v":3.2482059931241785},3900.3665929637814,{"$f":"IF(A15<='S2-Double'!$C$7,('Growth-Model-2'!G14*EXP($AA$7)),0)","v":3.4572599395522801},{"$f":"IF(A15<='S2-Double'!$C$7,$AD$6*EXP($AD$7*('S2-Double'!C$7-'Growth-Model-2'!A15)),0)","v":6.8699230414454646E-11},153.09066697583847,3.7800164685392212E-2,209.53892440930113,7.0579226719449029,236.39490086510526,{"$f":"M15/'S2-Double'!$C$17","v":8.7553666987076024},9.8540150917875575,114.39980091986187,{"$f":"_xlfn.XLOOKUP(B15,FeedTables!$C$17:$T$17,FeedTables!$C$31:$T$31,,-1)","v":"Unga 3mm"},{"$f":"_xlfn.XLOOKUP(Q15,FeedPrice[Feed],FeedPrice[Price per kg],\"Unknown\",0)*O15","v":1045.9948333796667},12143.435907822512,{"$f":"_xlfn.XLOOKUP(O15,LabourFromFeed[Feed Quantity (kg)],LabourFromFeed[No. Labour],\"Out of range\",-1)","v":1},{"$f":"T15*OperatingCosts!$C$9","v":1200},16800]
[14,{"$f":"IF(A16<='S2-Double'!$C$7, B15*EXP((LN((E15/100)+1))*1),)","v":62.577065100175837},{"$f":"_xlfn.XLOOKUP($B16,FeedTables!$C$42:$T$42,FeedTables!$C$44:$T$44,,-1)","v":4.1684550113923917},{"$f":"_xlfn.XLOOKUP($B16,FeedTables!$C$42:$T$42,FeedTables!$C$45:$T$45,,-1)","v":1.283309931764242},{"$f":"_xlfn.XLOOKUP($B16,FeedTables!$C$42:$T$42,FeedTables!$C$46:$T$46,,-1)*_xlfn.XLOOKUP(N15,DensityMultiplier[Biomass kg/m3],DensityMultiplier[Multiplier],,-1)","v":3.2482059931241785},3896.9093330241603,{"$f":"IF(A16<='S2-Double'!$C$7,('Growth-Model-2'!G15*EXP($AA$7)),0)","v":2.9756912065474608},{"$f":"IF(A16<='S2-Double'!$C$7,$AD$6*EXP($AD$7*('S2-Double'!C$7-'Growth-Model-2'!A16)),0)","v":8.3909429511695863E-11},156.06635818246983,3.8534903254930822E-2,186.21002235539203,7.2441326943002951,243.85714902213567,{"$f":"M16/'S2-Double'!$C$17","v":9.0317462600790996},10.165075549051828,124.5648764689137,{"$f":"_xlfn.XLOOKUP(B16,FeedTables!$C$17:$T$17,FeedTables!$C$31:$T$31,,-1)","v":"Unga 3mm"},{"$f":"_xlfn.XLOOKUP(Q16,FeedPrice[Feed],FeedPrice[Price per kg],\"Unknown\",0)*O16","v":1079.0136209638574},13222.449528786368,{"$f":"_xlfn.XLOOKUP(O16,LabourFromFeed[Feed Quantity (kg)],LabourFromFeed[No. Labour],\"Out of range\",-1)","v":1},{"$f":"T16*OperatingCosts!$C$9","v":1200},18000]
[15,{"$f":"IF(A17<='S2-Double'!$C$7, B16*EXP((LN((E16/100)+1))*1),)","v":64.609697079080973},{"$f":"_xlfn.XLOOKUP($B17,FeedTables!$C$42:$T$42,FeedTables!$C$44:$T$44,,-1)","v":4.1684550113923917},{"$f":"_xlfn.XLOOKUP($B17,FeedTables!$C$42:$T$42,FeedTables!$C$45:$T$45,,-1)","v":1.283309931764242},{"$f":"_xlfn.XLOOKUP($B17,FeedTables!$C$42:$T$42,FeedTables!$C$46:$T$46,,-1)*_xlfn.XLOOKUP(N16,DensityMultiplier[Biomass kg/m3],DensityMultiplier[Multiplier],,-1)","v":3.2482059931241785},3893.933641817529,{"$f":"IF(A17<='S2-Double'!$C$7,('Growth-Model-2'!G16*EXP($AA$7)),0)","v":2.5612011568533037},{"$f":"IF(A17<='S2-Double'!$C$7,$AD$6*EXP($AD$7*('S2-Double'!C$7-'Growth-Model-2'!A17)),0)","v":1.024872086412316E-10},158.62755933942563,3.9167298602327316E-2,165.47843090950539,7.4096111252098007,251.58587304387314,{"$f":"M17/'S2-Double'!$C$17","v":9.317995297921227},10.48724393285263,135.05212040176633,{"$f":"_xlfn.XLOOKUP(B17,FeedTables!$C$17:$T$17,FeedTables!$C$31:$T$31,,-1)","v":"Unga 3mm"},{"$f":"_xlfn.XLOOKUP(Q17,FeedPrice[Feed],FeedPrice[Price per kg],\"Unknown\",0)*O17","v":1113.2115049527672},14335.661033739136,{"$f":"_xlfn.XLOOKUP(O17,LabourFromFeed[Feed Quantity (kg)],LabourFromFeed[No. Labour],\"Out of range\",-1)","v":1},{"$f":"T17*OperatingCosts!$C$9","v":1200},19200]
[16,{"$f":"IF(A18<='S2-Double'!$C$7, B17*EXP((LN((E17/100)+1))*1),)","v":66.708353131743067},{"$f":"_xlfn.XLOOKUP($B18,FeedTables!$C$42:$T$42,FeedTables!$C$44:$T$44,,-1)","v":4.1684550113923917},{"$f":"_xlfn.XLOOKUP($B18,FeedTables!$C$42:$T$42,FeedTables!$C$45:$T$45,,-1)","v":1.283309931764242},{"$f":"_xlfn.XLOOKUP($B18,FeedTables!$C$42:$T$42,FeedTables!$C$46:$T$46,,-1)*_xlfn.XLOOKUP(N17,DensityMultiplier[Biomass kg/m3],DensityMultiplier[Multiplier],,-1)","v":3.2482059931241785},3891.3724406605734,{"$f":"IF(A18<='S2-Double'!$C$7,('Growth-Model-2'!G17*EXP($AA$7)),0)","v":2.2044462649327241},{"$f":"IF(A18<='S2-Double'!$C$7,$AD$6*EXP($AD$7*('S2-Double'!C$7-'Growth-Model-2'!A18)),0)","v":1.2517815931053697E-10},160.83200560448353,3.9711606322094695E-2,147.05497990943462,7.556666105119235,259.5870469387184,{"$f":"M18/'S2-Double'!$C$17","v":9.6143350718043852},10.820769267042529,145.87288966880885,{"$f":"_xlfn.XLOOKUP(B18,FeedTables!$C$17:$T$17,FeedTables!$C$31:$T$31,,-1)","v":"Unga 3mm"},{"$f":"_xlfn.XLOOKUP(Q18,FeedPrice[Feed],FeedPrice[Price per kg],\"Unknown\",0)*O18","v":1148.6149190042242},15484.275952743359,{"$f":"_xlfn.XLOOKUP(O18,LabourFromFeed[Feed Quantity (kg)],LabourFromFeed[No. Labour],\"Out of range\",-1)","v":1},{"$f":"T18*OperatingCosts!$C$9","v":1200},20400]
[17,{"$f":"IF(A19<='S2-Double'!$C$7, B18*EXP((LN((E18/100)+1))*1),)","v":68.875177856082786},{"$f":"_xlfn.XLOOKUP($B19,FeedTables!$C$42:$T$42,FeedTables!$C$44:$T$44,,-1)","v":4.1684550113923917},{"$f":"_xlfn.XLOOKUP($B19,FeedTables!$C$42:$T$42,FeedTables!$C$45:$T$45,,-1)","v":1.283309931764242},{"$f":"_xlfn.XLOOKUP($B19,FeedTables!$C$42:$T$42,FeedTables!$C$46:$T$46,,-1)*_xlfn.XLOOKUP(N18,DensityMultiplier[Biomass kg/m3],DensityMultiplier[Multiplier],,-1)","v":3.2482059931241785},3889.1679943955155,{"$f":"IF(A19<='S2-Double'!$C$7,('Growth-Model-2'!G18*EXP($AA$7)),0)","v":1.8973844838280218},{"$f":"IF(A19<='S2-Double'!$C$7,$AD$6*EXP($AD$7*('S2-Double'!C$7-'Growth-Model-2'!A19)),0)","v":1.5289294904330344E-10},162.72939008846444,4.0180096318139367E-2,130.68269379555738,7.6873487989147922,267.86713732617591,{"$f":"M19/'S2-Double'!$C$17","v":9.921005086154663},11.16592110974632,157.03881077855516,{"$f":"_xlfn.XLOOKUP(B19,FeedTables!$C$17:$T$17,FeedTables!$C$31:$T$31,,-1)","v":"Unga 3mm"},{"$f":"_xlfn.XLOOKUP(Q19,FeedPrice[Feed],FeedPrice[Price per kg],\"Unknown\",0)*O19","v":1185.2524764705731},16669.528429213933,{"$f":"_xlfn.XLOOKUP(O19,LabourFromFeed[Feed Quantity (kg)],LabourFromFeed[No. Labour],\"Out of range\",-1)","v":1},{"$f":"T19*OperatingCosts!$C$9","v":1200},21600]
[18,{"$f":"IF(A20<='S2-Double'!$C$7, B19*EXP((LN((E19/100)+1))*1),)","v":71.11238551097901},{"$f":"_xlfn.XLOOKUP($B20,FeedTables!$C$42:$T$42,FeedTables!$C$44:$T$44,,-1)","v":3.5416853289047179},{"$f":"_xlfn.XLOOKUP($B20,FeedTables!$C$42:$T$42,FeedTables!$C$45:$T$45,,-1)","v":1.3532619052561699},{"$f":"_xlfn.XLOOKUP($B20,FeedTables!$C$42:$T$42,FeedTables!$C$46:$T$46,,-1)*_xlfn.XLOOKUP(N19,DensityMultiplier[Biomass kg/m3],DensityMultiplier[Multiplier],,-1)","v":2.6171469950853923},3887.2706099115348,{"$f":"IF(A20<='S2-Double'!$C$7,('Growth-Model-2'!G19*EXP($AA$7)),0)","v":1.6330939595759195},{"$f":"IF(A20<='S2-Double'!$C$7,$AD$6*EXP($AD$7*('S2-Double'!C$7-'Growth-Model-2'!A20)),0)","v":1.8674386966473299E-10},164.36248404822709,4.0583329394623974E-2,116.13320724229376,7.8034820061570862,276.43308619752759,{"$f":"M20/'S2-Double'!$C$17","v":10.238262451760281},9.7903900580963672,166.82920083665152,{"$f":"_xlfn.XLOOKUP(B20,FeedTables!$C$17:$T$17,FeedTables!$C$31:$T$31,,-1)","v":"Unga 3mm"},{"$f":"_xlfn.XLOOKUP(Q20,FeedPrice[Feed],FeedPrice[Price per kg],\"Unknown\",0)*O20","v":1039.2410933158772},17708.769522529808,{"$f":"_xlfn.XLOOKUP(O20,LabourFromFeed[Feed Quantity (kg)],LabourFromFeed[No. Labour],\"Out of range\",-1)","v":1},{"$f":"T20*OperatingCosts!$C$9","v":1200},22800]
[19,{"$f":"IF(A21<='S2-Double'!$C$7, B20*EXP((LN((E20/100)+1))*1),)","v":72.973501171513135},{"$f":"_xlfn.XLOOKUP($B21,FeedTables!$C$42:$T$42,FeedTables!$C$44:$T$44,,-1)","v":3.5416853289047179},{"$f":"_xlfn.XLOOKUP($B21,FeedTables!$C$42:$T$42,FeedTables!$C$45:$T$45,,-1)","v":1.3532619052561699},{"$f":"_xlfn.XLOOKUP($B21,FeedTables!$C$42:$T$42,FeedTables!$C$46:$T$46,,-1)*_xlfn.XLOOKUP(N20,DensityMultiplier[Biomass kg/m3],DensityMultiplier[Multiplier],,-1)","v":2.6171469950853923},3885.637515951772,{"$f":"IF(A21<='S2-Double'!$C$7,('Growth-Model-2'!G20*EXP($AA$7)),0)","v":1.4056169972585748},{"$f":"IF(A21<='S2-Double'!$C$7,$AD$6*EXP($AD$7*('S2-Double'!C$7-'Growth-Model-2'!A21)),0)","v":2.2808947747800802E-10},165.76810104571373,4.0930395319929321E-2,102.57279361279187,7.906054799769878,283.54857382238202,{"$f":"M21/'S2-Double'!$C$17","v":10.501799030458594},10.042398239385868,176.8715990760374,{"$f":"_xlfn.XLOOKUP(B21,FeedTables!$C$17:$T$17,FeedTables!$C$31:$T$31,,-1)","v":"Unga 3mm"},{"$f":"_xlfn.XLOOKUP(Q21,FeedPrice[Feed],FeedPrice[Price per kg],\"Unknown\",0)*O21","v":1065.9915349523944},18774.761057482203,{"$f":"_xlfn.XLOOKUP(O21,LabourFromFeed[Feed Quantity (kg)],LabourFromFeed[No. Labour],\"Out of range\",-1)","v":1},{"$f":"T21*OperatingCosts!$C$9","v":1200},24000]
[20,{"$f":"IF(A22<='S2-Double'!$C$7, B21*EXP((LN((E21/100)+1))*1),)","v":74.883324964631996},{"$f":"_xlfn.XLOOKUP($B22,FeedTables!$C$42:$T$42,FeedTables!$C$44:$T$44,,-1)","v":3.5416853289047179},{"$f":"_xlfn.XLOOKUP($B22,FeedTables!$C$42:$T$42,FeedTables!$C$45:$T$45,,-1)","v":1.3532619052561699},{"$f":"_xlfn.XLOOKUP($B22,FeedTables!$C$42:$T$42,FeedTables!$C$46:$T$46,,-1)*_xlfn.XLOOKUP(N21,DensityMultiplier[Biomass kg/m3],DensityMultiplier[Multiplier],,-1)","v":2.6171469950853923},3884.231898954285,{"$f":"IF(A22<='S2-Double'!$C$7,('Growth-Model-2'!G21*EXP($AA$7)),0)","v":1.2098257613390939},{"$f":"IF(A22<='S2-Double'!$C$7,$AD$6*EXP($AD$7*('S2-Double'!C$7-'Growth-Model-2'!A22)),0)","v":2.7858911689895068E-10},166.97792680733141,4.1229117730205288E-2,90.59577565780036,7.9966505754276787,290.86419952738339,{"$f":"M22/'S2-Double'!$C$17","v":10.77274813064383},10.301494681697484,187.17309375773488,{"$f":"_xlfn.XLOOKUP(B22,FeedTables!$C$17:$T$17,FeedTables!$C$31:$T$31,,-1)","v":"Unga 3mm"},{"$f":"_xlfn.XLOOKUP(Q22,FeedPrice[Feed],FeedPrice[Price per kg],\"Unknown\",0)*O22","v":1093.4943891169744},19868.255446599178,{"$f":"_xlfn.XLOOKUP(O22,LabourFromFeed[Feed Quantity (kg)],LabourFromFeed[No. Labour],\"Out of range\",-1)","v":1},{"$f":"T22*OperatingCosts!$C$9","v":1200},25200]
[21,{"$f":"IF(A23<='S2-Double'!$C$7, B22*EXP((LN((E22/100)+1))*1),)","v":76.843131653763891},{"$f":"_xlfn.XLOOKUP($B23,FeedTables!$C$42:$T$42,FeedTables!$C$44:$T$44,,-1)","v":3.5416853289047179},{"$f":"_xlfn.XLOOKUP($B23,FeedTables!$C$42:$T$42,FeedTables!$C$45:$T$45,,-1)","v":1.3532619052561699},{"$f":"_xlfn.XLOOKUP($B23,FeedTables!$C$42:$T$42,FeedTables!$C$46:$T$46,,-1)*_xlfn.XLOOKUP(N22,DensityMultiplier[Biomass kg/m3],DensityMultiplier[Multiplier],,-1)","v":2.6171469950853923},3883.022073192667,{"$f":"IF(A23<='S2-Double'!$C$7,('Growth-Model-2'!G22*EXP($AA$7)),0)","v":1.0413066828690765},{"$f":"IF(A23<='S2-Double'!$C$7,$AD$6*EXP($AD$7*('S2-Double'!C$7-'Growth-Model-2'!A23)),0)","v":3.4026951577378416E-10},168.01923349054076,4.1486230491491548E-2,80.017266549799984,8.0766678419774784,298.38357638481534,{"$f":"M23/'S2-Double'!$C$17","v":11.051243569807976},10.567807348682209,197.74090110641708,{"$f":"_xlfn.XLOOKUP(B23,FeedTables!$C$17:$T$17,FeedTables!$C$31:$T$31,,-1)","v":"Unga 3mm"},{"$f":"_xlfn.XLOOKUP(Q23,FeedPrice[Feed],FeedPrice[Price per kg],\"Unknown\",0)*O23","v":1121.7632390360027},20990.018685635179,{"$f":"_xlfn.XLOOKUP(O23,LabourFromFeed[Feed Quantity (kg)],LabourFromFeed[No. Labour],\"Out of range\",-1)","v":1},{"$f":"T23*OperatingCosts!$C$9","v":1200},26400]
[22,{"$f":"IF(A24<='S2-Double'!$C$7, B23*EXP((LN((E23/100)+1))*1),)","v":78.854229364769893},{"$f":"_xlfn.XLOOKUP($B24,FeedTables!$C$42:$T$42,FeedTables!$C$44:$T$44,,-1)","v":3.5416853289047179},{"$f":"_xlfn.XLOOKUP($B24,FeedTables!$C$42:$T$42,FeedTables!$C$45:$T$45,,-1)","v":1.3532619052561699},{"$f":"_xlfn.XLOOKUP($B24,FeedTables!$C$42:$T$42,FeedTables!$C$46:$T$46,,-1)*_xlfn.XLOOKUP(N23,DensityMultiplier[Biomass kg/m3],DensityMultiplier[Multiplier],,-1)","v":2.6171469950853923},3881.9807665094577,{"$f":"IF(A24<='S2-Double'!$C$7,('Growth-Model-2'!G23*EXP($AA$7)),0)","v":0.89626096785013221},{"$f":"IF(A24<='S2-Double'!$C$7,$AD$6*EXP($AD$7*('S2-Double'!C$7-'Growth-Model-2'!A24)),0)","v":4.1560612508392655E-10},168.91549445880651,4.1707529496001608E-2,70.673967962317278,8.1473418099397961,306.11060175196201,{"$f":"M24/'S2-Double'!$C$17","v":11.337429694517111},10.841474272471187,208.58237537888826,{"$f":"_xlfn.XLOOKUP(B24,FeedTables!$C$17:$T$17,FeedTables!$C$31:$T$31,,-1)","v":"Unga 3mm"},{"$f":"_xlfn.XLOOKUP(Q24,FeedPrice[Feed],FeedPrice[Price per kg],\"Unknown\",0)*O24","v":1150.8127366959714},22140.83142233115,{"$f":"_xlfn.XLOOKUP(O24,LabourFromFeed[Feed Quantity (kg)],LabourFromFeed[No. Labour],\"Out of range\",-1)","v":1},{"$f":"T24*OperatingCosts!$C$9","v":1200},27600]
[23,{"$f":"IF(A25<='S2-Double'!$C$7, B24*EXP((LN((E24/100)+1))*1),)","v":80.917960459087709},{"$f":"_xlfn.XLOOKUP($B25,FeedTables!$C$42:$T$42,FeedTables!$C$44:$T$44,,-1)","v":3.5416853289047179},{"$f":"_xlfn.XLOOKUP($B25,FeedTables!$C$42:$T$42,FeedTables!$C$45:$T$45,,-1)","v":1.3532619052561699},{"$f":"_xlfn.XLOOKUP($B25,FeedTables!$C$42:$T$42,FeedTables!$C$46:$T$46,,-1)*_xlfn.XLOOKUP(N24,DensityMultiplier[Biomass kg/m3],DensityMultiplier[Multiplier],,-1)","v":2.6171469950853923},3881.0845055411919,{"$f":"IF(A25<='S2-Double'!$C$7,('Growth-Model-2'!G24*EXP($AA$7)),0)","v":0.77141896398705112},{"$f":"IF(A25<='S2-Double'!$C$7,$AD$6*EXP($AD$7*('S2-Double'!C$7-'Growth-Model-2'!A25)),0)","v":5.0762246748576808E-10},169.68691342330118,4.1898003314395353E-2,62.421649266370387,8.209763459206167,314.04944255776019,{"$f":"M25/'S2-Double'!$C$17","v":11.6314608354726},11.122643032575242,219.7050184114635,{"$f":"_xlfn.XLOOKUP(B25,FeedTables!$C$17:$T$17,FeedTables!$C$31:$T$31,,-1)","v":"Unga 3mm"},{"$f":"_xlfn.XLOOKUP(Q25,FeedPrice[Feed],FeedPrice[Price per kg],\"Unknown\",0)*O25","v":1180.6585475291326},23321.489969860282,{"$f":"_xlfn.XLOOKUP(O25,LabourFromFeed[Feed Quantity (kg)],LabourFromFeed[No. Labour],\"Out of range\",-1)","v":1},{"$f":"T25*OperatingCosts!$C$9","v":1200},28800]
[24,{"$f":"IF(A26<='S2-Double'!$C$7, B25*EXP((LN((E25/100)+1))*1),)","v":83.03570242972711},{"$f":"_xlfn.XLOOKUP($B26,FeedTables!$C$42:$T$42,FeedTables!$C$44:$T$44,,-1)","v":3.5416853289047179},{"$f":"_xlfn.XLOOKUP($B26,FeedTables!$C$42:$T$42,FeedTables!$C$45:$T$45,,-1)","v":1.3532619052561699},{"$f":"_xlfn.XLOOKUP($B26,FeedTables!$C$42:$T$42,FeedTables!$C$46:$T$46,,-1)*_xlfn.XLOOKUP(N25,DensityMultiplier[Biomass kg/m3],DensityMultiplier[Multiplier],,-1)","v":2.6171469950853923},3880.3130865766975,{"$f":"IF(A26<='S2-Double'!$C$7,('Growth-Model-2'!G25*EXP($AA$7)),0)","v":0.66396645546920929},{"$f":"IF(A26<='S2-Double'!$C$7,$AD$6*EXP($AD$7*('S2-Double'!C$7-'Growth-Model-2'!A26)),0)","v":6.2001148189118788E-10},170.35087987939042,4.2061945649232199E-2,55.132921071145006,8.2648963802773121,322.20452279115858,{"$f":"M26/'S2-Double'!$C$17","v":11.933500844116985},11.411470312761923,231.11648872422543,{"$f":"_xlfn.XLOOKUP(B26,FeedTables!$C$17:$T$17,FeedTables!$C$31:$T$31,,-1)","v":"Unga 3mm"},{"$f":"_xlfn.XLOOKUP(Q26,FeedPrice[Feed],FeedPrice[Price per kg],\"Unknown\",0)*O26","v":1211.3173033763967},24532.807273236678,{"$f":"_xlfn.XLOOKUP(O26,LabourFromFeed[Feed Quantity (kg)],LabourFromFeed[No. Labour],\"Out of range\",-1)","v":1},{"$f":"T26*OperatingCosts!$C$9","v":1200},30000]
[25,{"$f":"IF(A27<='S2-Double'!$C$7, B26*EXP((LN((E26/100)+1))*1),)","v":85.20886882071477},{"$f":"_xlfn.XLOOKUP($B27,FeedTables!$C$42:$T$42,FeedTables!$C$44:$T$44,,-1)","v":3.5416853289047179},{"$f":"_xlfn.XLOOKUP($B27,FeedTables!$C$42:$T$42,FeedTables!$C$45:$T$45,,-1)","v":1.3532619052561699},{"$f":"_xlfn.XLOOKUP($B27,FeedTables!$C$42:$T$42,FeedTables!$C$46:$T$46,,-1)*_xlfn.XLOOKUP(N26,DensityMultiplier[Biomass kg/m3],DensityMultiplier[Multiplier],,-1)","v":2.6171469950853923},3879.6491201206086,{"$f":"IF(A27<='S2-Double'!$C$7,('Growth-Model-2'!G26*EXP($AA$7)),0)","v":0.57148122430102144},{"$f":"IF(A27<='S2-Double'!$C$7,$AD$6*EXP($AD$7*('S2-Double'!C$7-'Growth-Model-2'!A27)),0)","v":7.5728373407287042E-10},170.92236110444873,4.2203052124555239E-2,48.695268739494495,8.3135916490168071,330.5805129467584,{"$f":"M27/'S2-Double'!$C$17","v":12.243722701731793},11.708121527253304,242.82461025147873,{"$f":"_xlfn.XLOOKUP(B27,FeedTables!$C$17:$T$17,FeedTables!$C$31:$T$31,,-1)","v":"Unga 3mm"},{"$f":"_xlfn.XLOOKUP(Q27,FeedPrice[Feed],FeedPrice[Price per kg],\"Unknown\",0)*O27","v":1242.8065628085637},25775.613836045242,{"$f":"_xlfn.XLOOKUP(O27,LabourFromFeed[Feed Quantity (kg)],LabourFromFeed[No. Labour],\"Out of range\",-1)","v":1},{"$f":"T27*OperatingCosts!$C$9","v":1200},31200]
[26,{"$f":"IF(A28<='S2-Double'!$C$7, B27*EXP((LN((E27/100)+1))*1),)","v":87.438910170602369},{"$f":"_xlfn.XLOOKUP($B28,FeedTables!$C$42:$T$42,FeedTables!$C$44:$T$44,,-1)","v":3.5416853289047179},{"$f":"_xlfn.XLOOKUP($B28,FeedTables!$C$42:$T$42,FeedTables!$C$45:$T$45,,-1)","v":1.3532619052561699},{"$f":"_xlfn.XLOOKUP($B28,FeedTables!$C$42:$T$42,FeedTables!$C$46:$T$46,,-1)*_xlfn.XLOOKUP(N27,DensityMultiplier[Biomass kg/m3],DensityMultiplier[Multiplier],,-1)","v":2.6171469950853923},3879.0776388955505,{"$f":"IF(A28<='S2-Double'!$C$7,('Growth-Model-2'!G27*EXP($AA$7)),0)","v":0.49187844813304671},{"$f":"IF(A28<='S2-Double'!$C$7,$AD$6*EXP($AD$7*('S2-Double'!C$7-'Growth-Model-2'!A28)),0)","v":9.2494844150643587E-10},171.41423955350672,4.2324503593458448E-2,43.009315522037255,8.3566009645388437,339.18232121218034,{"$f":"M28/'S2-Double'!$C$17","v":12.562308193043716},12.012770508610267,254.83738076008899,{"$f":"_xlfn.XLOOKUP(B28,FeedTables!$C$17:$T$17,FeedTables!$C$31:$T$31,,-1)","v":"Unga 3mm"},{"$f":"_xlfn.XLOOKUP(Q28,FeedPrice[Feed],FeedPrice[Price per kg],\"Unknown\",0)*O28","v":1275.1447779955222},27050.758614040766,{"$f":"_xlfn.XLOOKUP(O28,LabourFromFeed[Feed Quantity (kg)],LabourFromFeed[No. Labour],\"Out of range\",-1)","v":1},{"$f":"T28*OperatingCosts!$C$9","v":1200},32400]
[27,{"$f":"IF(A29<='S2-Double'!$C$7, B28*EXP((LN((E28/100)+1))*1),)","v":89.727314980667714},{"$f":"_xlfn.XLOOKUP($B29,FeedTables!$C$42:$T$42,FeedTables!$C$44:$T$44,,-1)","v":3.5416853289047179},{"$f":"_xlfn.XLOOKUP($B29,FeedTables!$C$42:$T$42,FeedTables!$C$45:$T$45,,-1)","v":1.3532619052561699},{"$f":"_xlfn.XLOOKUP($B29,FeedTables!$C$42:$T$42,FeedTables!$C$46:$T$46,,-1)*_xlfn.XLOOKUP(N28,DensityMultiplier[Biomass kg/m3],DensityMultiplier[Multiplier],,-1)","v":2.6171469950853923},3878.5857604464927,{"$f":"IF(A29<='S2-Double'!$C$7,('Growth-Model-2'!G28*EXP($AA$7)),0)","v":0.4233637037396924},{"$f":"IF(A29<='S2-Double'!$C$7,$AD$6*EXP($AD$7*('S2-Double'!C$7-'Growth-Model-2'!A29)),0)","v":1.1297345776119144E-9},171.83760325837613,4.2429037841574355E-2,37.987288498201522,8.3945882530370444,348.01508620711508,{"$f":"M29/'S2-Double'!$C$17","v":12.889447637300558},12.325599250572502,267.1629800106615,{"$f":"_xlfn.XLOOKUP(B29,FeedTables!$C$17:$T$17,FeedTables!$C$31:$T$31,,-1)","v":"Unga 3mm"},{"$f":"_xlfn.XLOOKUP(Q29,FeedPrice[Feed],FeedPrice[Price per kg],\"Unknown\",0)*O29","v":1308.3512674089457},28359.109881449713,{"$f":"_xlfn.XLOOKUP(O29,LabourFromFeed[Feed Quantity (kg)],LabourFromFeed[No. Labour],\"Out of range\",-1)","v":1},{"$f":"T29*OperatingCosts!$C$9","v":1200},33600]
[28,{"$f":"IF(A30<='S2-Double'!$C$7, B29*EXP((LN((E29/100)+1))*1),)","v":92.075610708455073},{"$f":"_xlfn.XLOOKUP($B30,FeedTables!$C$42:$T$42,FeedTables!$C$44:$T$44,,-1)","v":3.5416853289047179},{"$f":"_xlfn.XLOOKUP($B30,FeedTables!$C$42:$T$42,FeedTables!$C$45:$T$45,,-1)","v":1.3532619052561699},{"$f":"_xlfn.XLOOKUP($B30,FeedTables!$C$42:$T$42,FeedTables!$C$46:$T$46,,-1)*_xlfn.XLOOKUP(N29,DensityMultiplier[Biomass kg/m3],DensityMultiplier[Multiplier],,-1)","v":2.6171469950853923},3878.1623967416235,{"$f":"IF(A30<='S2-Double'!$C$7,('Growth-Model-2'!G29*EXP($AA$7)),0)","v":0.36439251673760831},{"$f":"IF(A30<='S2-Double'!$C$7,$AD$6*EXP($AD$7*('S2-Double'!C$7-'Growth-Model-2'!A30)),0)","v":1.3798609290841058E-9},172.20199577649362,4.2519011302837931E-2,33.551663643257761,8.4281399166803013,357.08417110655085,{"$f":"M30/'S2-Double'!$C$17","v":13.225339670612994},12.646797699921732,279.80977771058321,{"$f":"_xlfn.XLOOKUP(B30,FeedTables!$C$17:$T$17,FeedTables!$C$31:$T$31,,-1)","v":"Unga 3mm"},{"$f":"_xlfn.XLOOKUP(Q30,FeedPrice[Feed],FeedPrice[Price per kg],\"Unknown\",0)*O30","v":1342.446193728762},29701.556075178476,{"$f":"_xlfn.XLOOKUP(O30,LabourFromFeed[Feed Quantity (kg)],LabourFromFeed[No. Labour],\"Out of range\",-1)","v":1},{"$f":"T30*OperatingCosts!$C$9","v":1200},34800]
[29,{"$f":"IF(A31<='S2-Double'!$C$7, B30*EXP((LN((E30/100)+1))*1),)","v":94.485364787317934},{"$f":"_xlfn.XLOOKUP($B31,FeedTables!$C$42:$T$42,FeedTables!$C$44:$T$44,,-1)","v":3.5416853289047179},{"$f":"_xlfn.XLOOKUP($B31,FeedTables!$C$42:$T$42,FeedTables!$C$45:$T$45,,-1)","v":1.3532619052561699},{"$f":"_xlfn.XLOOKUP($B31,FeedTables!$C$42:$T$42,FeedTables!$C$46:$T$46,,-1)*_xlfn.XLOOKUP(N30,DensityMultiplier[Biomass kg/m3],DensityMultiplier[Multiplier],,-1)","v":2.6171469950853923},3877.7980042235063,{"$f":"IF(A31<='S2-Double'!$C$7,('Growth-Model-2'!G30*EXP($AA$7)),0)","v":0.31363554570566088},{"$f":"IF(A31<='S2-Double'!$C$7,$AD$6*EXP($AD$7*('S2-Double'!C$7-'Growth-Model-2'!A31)),0)","v":1.6853659446607802E-9},172.51563132388466,4.2596452178736956E-2,29.633969105511312,8.4577738857858122,366.39515900059143,{"$f":"M31/'S2-Double'!$C$17","v":13.570191074095979},12.976563592141062,292.78634130272428,{"$f":"_xlfn.XLOOKUP(B31,FeedTables!$C$17:$T$17,FeedTables!$C$31:$T$31,,-1)","v":"Unga 3mm"},{"$f":"_xlfn.XLOOKUP(Q31,FeedPrice[Feed],FeedPrice[Price per kg],\"Unknown\",0)*O31","v":1377.4505463985408},31079.006621577017,{"$f":"_xlfn.XLOOKUP(O31,LabourFromFeed[Feed Quantity (kg)],LabourFromFeed[No. Labour],\"Out of range\",-1)","v":1},{"$f":"T31*OperatingCosts!$C$9","v":1200},36000,null,null,null,"Feed Use by Type","Kg used",{"$f":"_xlfn.CONCAT(\"Cost\",\" (\",'0-StartHere'!$C$49,\")\")","v":"Cost (KES)"}]
[30,{"$f":"IF(A32<='S2-Double'!$C$7, B31*EXP((LN((E31/100)+1))*1),)","v":96.958185672644703},{"$f":"_xlfn.XLOOKUP($B32,FeedTables!$C$42:$T$42,FeedTables!$C$44:$T$44,,-1)","v":3.5416853289047179},{"$f":"_xlfn.XLOOKUP($B32,FeedTables!$C$42:$T$42,FeedTables!$C$45:$T$45,,-1)","v":1.3532619052561699},{"$f":"_xlfn.XLOOKUP($B32,FeedTables!$C$42:$T$42,FeedTables!$C$46:$T$46,,-1)*_xlfn.XLOOKUP(N31,DensityMultiplier[Biomass kg/m3],DensityMultiplier[Multiplier],,-1)","v":2.6171469950853923},3877.4843686761155,{"$f":"IF(A32<='S2-Double'!$C$7,('Growth-Model-2'!G31*EXP($AA$7)),0)","v":0.26994861587928809},{"$f":"IF(A32<='S2-Double'!$C$7,$AD$6*EXP($AD$7*('S2-Double'!C$7-'Growth-Model-2'!A32)),0)","v":2.0585106133178957E-9},172.78557994182245,4.2663106158474677E-2,26.173728220086915,8.4839476140058991,375.95384936087629,{"$f":"M32/'S2-Double'!$C$17","v":13.924216642995418},13.3151023262667,306.10144362899098,{"$f":"_xlfn.XLOOKUP(B32,FeedTables!$C$17:$T$17,FeedTables!$C$31:$T$31,,-1)","v":"Unga 3mm"},{"$f":"_xlfn.XLOOKUP(Q32,FeedPrice[Feed],FeedPrice[Price per kg],\"Unknown\",0)*O32","v":1413.3861283411165},32492.392749918134,{"$f":"_xlfn.XLOOKUP(O32,LabourFromFeed[Feed Quantity (kg)],LabourFromFeed[No. Labour],\"Out of range\",-1)","v":1},{"$f":"T32*OperatingCosts!$C$9","v":1200},37200,null,null,null,{"$f":"FeedCosts!A2","v":"Skretting 0.5mm"},{"$f":"SUMIF($Q$2:$Q$366,Z32,$O$2:$O$366)","v":0},{"$f":"SUMIF($Q$2:$Q$366,Z32,$R$2:$R$366)","v":0}]
[31,{"$f":"IF(A33<='S2-Double'!$C$7, B32*EXP((LN((E32/100)+1))*1),)","v":99.495723915465646},{"$f":"_xlfn.XLOOKUP($B33,FeedTables!$C$42:$T$42,FeedTables!$C$44:$T$44,,-1)","v":3.5416853289047179},{"$f":"_xlfn.XLOOKUP($B33,FeedTables!$C$42:$T$42,FeedTables!$C$45:$T$45,,-1)","v":1.3532619052561699},{"$f":"_xlfn.XLOOKUP($B33,FeedTables!$C$42:$T$42,FeedTables!$C$46:$T$46,,-1)*_xlfn.XLOOKUP(N32,DensityMultiplier[Biomass kg/m3],DensityMultiplier[Multiplier],,-1)","v":2.6171469950853923},3877.2144200581774,{"$f":"IF(A33<='S2-Double'!$C$7,('Growth-Model-2'!G32*EXP($AA$7)),0)","v":0.23234692691220729},{"$f":"IF(A33<='S2-Double'!$C$7,$AD$6*EXP($AD$7*('S2-Double'!C$7-'Growth-Model-2'!A33)),0)","v":2.5142705408084584E-9},173.01792687124893,4.2720475770678751E-2,23.117525942823018,8.5070651399487218,385.76625549917071,{"$f":"M33/'S2-Double'!$C$17","v":14.287639092561879},13.662626874879219,319.76407050387019,{"$f":"_xlfn.XLOOKUP(B33,FeedTables!$C$17:$T$17,FeedTables!$C$31:$T$31,,-1)","v":"Unga 3mm"},{"$f":"_xlfn.XLOOKUP(Q33,FeedPrice[Feed],FeedPrice[Price per kg],\"Unknown\",0)*O33","v":1450.2755464042418},33942.668296322372,{"$f":"_xlfn.XLOOKUP(O33,LabourFromFeed[Feed Quantity (kg)],LabourFromFeed[No. Labour],\"Out of range\",-1)","v":1},{"$f":"T33*OperatingCosts!$C$9","v":1200},38400,null,null,null,{"$f":"FeedCosts!A3","v":"Skretting 1mm"},0,0]
[32,{"$f":"IF(A34<='S2-Double'!$C$7, B33*EXP((LN((E33/100)+1))*1),)","v":102.09967326415772},{"$f":"_xlfn.XLOOKUP($B34,FeedTables!$C$42:$T$42,FeedTables!$C$44:$T$44,,-1)","v":3.1422093916933376},{"$f":"_xlfn.XLOOKUP($B34,FeedTables!$C$42:$T$42,FeedTables!$C$45:$T$45,,-1)","v":1.3978462732485115},{"$f":"_xlfn.XLOOKUP($B34,FeedTables!$C$42:$T$42,FeedTables!$C$46:$T$46,,-1)*_xlfn.XLOOKUP(N33,DensityMultiplier[Biomass kg/m3],DensityMultiplier[Multiplier],,-1)","v":2.2478933855802543},3876.9820731287509,{"$f":"IF(A34<='S2-Double'!$C$7,('Growth-Model-2'!G33*EXP($AA$7)),0)","v":0.19998285329118673},{"$f":"IF(A34<='S2-Double'!$C$7,$AD$6*EXP($AD$7*('S2-Double'!C$7-'Growth-Model-2'!A34)),0)","v":3.0709369733043219E-9},173.21790972761104,4.2769854253731122E-2,20.418184293005815,8.5274833242417269,395.83860291744224,{"$f":"M34/'S2-Double'!$C$17","v":14.660688996942305},12.438077756819567,332.20214826068974,{"$f":"_xlfn.XLOOKUP(B34,FeedTables!$C$17:$T$17,FeedTables!$C$31:$T$31,,-1)","v":"Unga 4mm"},{"$f":"_xlfn.XLOOKUP(Q34,FeedPrice[Feed],FeedPrice[Price per kg],\"Unknown\",0)*O34","v":1235.4755073926633},35178.143803715036,{"$f":"_xlfn.XLOOKUP(O34,LabourFromFeed[Feed Quantity (kg)],LabourFromFeed[No. Labour],\"Out of range\",-1)","v":1},{"$f":"T34*OperatingCosts!$C$9","v":1200},39600,null,null,null,{"$f":"FeedCosts!A4","v":"Skretting 2mm"},0,0]
[33,{"$f":"IF(A35<='S2-Double'!$C$7, B34*EXP((LN((E34/100)+1))*1),)","v":104.39476506616175},{"$f":"_xlfn.XLOOKUP($B35,FeedTables!$C$42:$T$42,FeedTables!$C$44:$T$44,,-1)","v":3.1422093916933376},{"$f":"_xlfn.XLOOKUP($B35,FeedTables!$C$42:$T$42,FeedTables!$C$45:$T$45,,-1)","v":1.3978462732485115},{"$f":"_xlfn.XLOOKUP($B35,FeedTables!$C$42:$T$42,FeedTables!$C$46:$T$46,,-1)*_xlfn.XLOOKUP(N34,DensityMultiplier[Biomass kg/m3],DensityMultiplier[Multiplier],,-1)","v":2.2478933855802543},3876.7820902723888,{"$f":"IF(A35<='S2-Double'!$C$7,('Growth-Model-2'!G34*EXP($AA$7)),0)","v":0.17212683697596654},{"$f":"IF(A35<='S2-Double'!$C$7,$AD$6*EXP($AD$7*('S2-Double'!C$7-'Growth-Model-2'!A35)),0)","v":3.7508508893299404E-9},173.39003656833785,4.2812354708231568E-2,17.969141099256746,8.5454524653409845,404.71575552668952,{"$f":"M35/'S2-Double'!$C$17","v":14.989472426914427},12.717016479822286,344.91916474051203,{"$f":"_xlfn.XLOOKUP(B35,FeedTables!$C$17:$T$17,FeedTables!$C$31:$T$31,,-1)","v":"Unga 4mm"},{"$f":"_xlfn.XLOOKUP(Q35,FeedPrice[Feed],FeedPrice[Price per kg],\"Unknown\",0)*O35","v":1263.1825186423957},36441.326322357432,{"$f":"_xlfn.XLOOKUP(O35,LabourFromFeed[Feed Quantity (kg)],LabourFromFeed[No. Labour],\"Out of range\",-1)","v":1},{"$f":"T35*OperatingCosts!$C$9","v":1200},40800,null,null,null,{"$f":"FeedCosts!A5","v":"Unga 2mm"},{"$f":"SUMIF($Q$2:$Q$366,Z35,$O$2:$O$366)","v":0},0]
[34,{"$f":"IF(A36<='S2-Double'!$C$7, B35*EXP((LN((E35/100)+1))*1),)","v":106.74144808497604},{"$f":"_xlfn.XLOOKUP($B36,FeedTables!$C$42:$T$42,FeedTables!$C$44:$T$44,,-1)","v":3.1422093916933376},{"$f":"_xlfn.XLOOKUP($B36,FeedTables!$C$42:$T$42,FeedTables!$C$45:$T$45,,-1)","v":1.3978462732485115},{"$f":"_xlfn.XLOOKUP($B36,FeedTables!$C$42:$T$42,FeedTables!$C$46:$T$46,,-1)*_xlfn.XLOOKUP(N35,DensityMultiplier[Biomass kg/m3],DensityMultiplier[Multiplier],,-1)","v":2.2478933855802543},3876.609963431662,{"$f":"IF(A36<='S2-Double'!$C$7,('Growth-Model-2'!G35*EXP($AA$7)),0)","v":0.14815094154202998},{"$f":"IF(A36<='S2-Double'!$C$7,$AD$6*EXP($AD$7*('S2-Double'!C$7-'Growth-Model-2'!A36)),0)","v":4.5812996216751117E-9},173.53818751446119,4.2848935188755849E-2,15.81384652436347,8.5612663118653476,413.79496115734162,{"$f":"M36/'S2-Double'!$C$17","v":15.325739302123763},13.002304131839786,357.9214688723518,{"$f":"_xlfn.XLOOKUP(B36,FeedTables!$C$17:$T$17,FeedTables!$C$31:$T$31,,-1)","v":"Unga 4mm"},{"$f":"_xlfn.XLOOKUP(Q36,FeedPrice[Feed],FeedPrice[Price per kg],\"Unknown\",0)*O36","v":1291.5201696460592},37732.846492003489,{"$f":"_xlfn.XLOOKUP(O36,LabourFromFeed[Feed Quantity (kg)],LabourFromFeed[No. Labour],\"Out of range\",-1)","v":1},{"$f":"T36*OperatingCosts!$C$9","v":1200},42000,null,null,null,{"$f":"FeedCosts!A6","v":"Unga 3mm"},{"$f":"SUMIF($Q$2:$Q$366,Z36,$O$2:$O$366)","v":319.76407050387019},33942.668296322372]
[35,{"$f":"IF(A37<='S2-Double'!$C$7, B36*EXP((LN((E36/100)+1))*1),)","v":109.14088203615078},{"$f":"_xlfn.XLOOKUP($B37,FeedTables!$C$42:$T$42,FeedTables!$C$44:$T$44,,-1)","v":3.1422093916933376},{"$f":"_xlfn.XLOOKUP($B37,FeedTables!$C$42:$T$42,FeedTables!$C$45:$T$45,,-1)","v":1.3978462732485115},{"$f":"_xlfn.XLOOKUP($B37,FeedTables!$C$42:$T$42,FeedTables!$C$46:$T$46,,-1)*_xlfn.XLOOKUP(N36,DensityMultiplier[Biomass kg/m3],DensityMultiplier[Multiplier],,-1)","v":2.2478933855802543},3876.4618124855388,{"$f":"IF(A37<='S2-Double'!$C$7,('Growth-Model-2'!G36*EXP($AA$7)),0)","v":0.12751469710010765},{"$f":"IF(A37<='S2-Double'!$C$7,$AD$6*EXP($AD$7*('S2-Double'!C$7-'Growth-Model-2'!A37)),0)","v":5.59561199387212E-9},173.66570221715691,4.2880420300532567E-2,13.917067124788378,8.5751833789901362,423.08046139412744,{"$f":"M37/'S2-Double'!$C$17","v":15.669646718301017},13.294073992345778,371.21554286469757,{"$f":"_xlfn.XLOOKUP(B37,FeedTables!$C$17:$T$17,FeedTables!$C$31:$T$31,,-1)","v":"Unga 4mm"},{"$f":"_xlfn.XLOOKUP(Q37,FeedPrice[Feed],FeedPrice[Price per kg],\"Unknown\",0)*O37","v":1320.5016990671054},39053.348191070596,{"$f":"_xlfn.XLOOKUP(O37,LabourFromFeed[Feed Quantity (kg)],LabourFromFeed[No. Labour],\"Out of range\",-1)","v":1},{"$f":"T37*OperatingCosts!$C$9","v":1200},43200,null,null,null,{"$f":"FeedCosts!A7","v":"Unga 4mm"},{"$f":"SUMIF($Q$2:$Q$366,Z37,$O$2:$O$366)","v":2305.2351752772965},228979.24048381147]
[36,{"$f":"IF(A38<='S2-Double'!$C$7, B37*EXP((LN((E37/100)+1))*1),)","v":111.59425270440536},{"$f":"_xlfn.XLOOKUP($B38,FeedTables!$C$42:$T$42,FeedTables!$C$44:$T$44,,-1)","v":3.1422093916933376},{"$f":"_xlfn.XLOOKUP($B38,FeedTables!$C$42:$T$42,FeedTables!$C$45:$T$45,,-1)","v":1.3978462732485115},{"$f":"_xlfn.XLOOKUP($B38,FeedTables!$C$42:$T$42,FeedTables!$C$46:$T$46,,-1)*_xlfn.XLOOKUP(N37,DensityMultiplier[Biomass kg/m3],DensityMultiplier[Multiplier],,-1)","v":2.2478933855802543},3876.3342977828429,{"$f":"IF(A38<='S2-Double'!$C$7,('Growth-Model-2'!G37*EXP($AA$7)),0)","v":0.10975291690548784},{"$f":"IF(A38<='S2-Double'!$C$7,$AD$6*EXP($AD$7*('S2-Double'!C$7-'Growth-Model-2'!A38)),0)","v":6.8344959229095292E-9},173.77545514089687,4.290751978787577E-2,12.24779550688708,8.5874311744970235,432.57662919353226,{"$f":"M38/'S2-Double'!$C$17","v":16.021356636797492},13.592463468789633,384.80800633348719,{"$f":"_xlfn.XLOOKUP(B38,FeedTables!$C$17:$T$17,FeedTables!$C$31:$T$31,,-1)","v":"Unga 4mm"},{"$f":"_xlfn.XLOOKUP(Q38,FeedPrice[Feed],FeedPrice[Price per kg],\"Unknown\",0)*O38","v":1350.1407556012211},40403.488946671816,{"$f":"_xlfn.XLOOKUP(O38,LabourFromFeed[Feed Quantity (kg)],LabourFromFeed[No. Labour],\"Out of range\",-1)","v":1},{"$f":"T38*OperatingCosts!$C$9","v":1200},44400]
[37,{"$f":"IF(A39<='S2-Double'!$C$7, B38*EXP((LN((E38/100)+1))*1),)","v":114.1027725296354},{"$f":"_xlfn.XLOOKUP($B39,FeedTables!$C$42:$T$42,FeedTables!$C$44:$T$44,,-1)","v":3.1422093916933376},{"$f":"_xlfn.XLOOKUP($B39,FeedTables!$C$42:$T$42,FeedTables!$C$45:$T$45,,-1)","v":1.3978462732485115},{"$f":"_xlfn.XLOOKUP($B39,FeedTables!$C$42:$T$42,FeedTables!$C$46:$T$46,,-1)*_xlfn.XLOOKUP(N38,DensityMultiplier[Biomass kg/m3],DensityMultiplier[Multiplier],,-1)","v":2.2478933855802543},3876.2245448591029,{"$f":"IF(A39<='S2-Double'!$C$7,('Growth-Model-2'!G38*EXP($AA$7)),0)","v":9.4465211016469958E-2},{"$f":"IF(A39<='S2-Double'!$C$7,$AD$6*EXP($AD$7*('S2-Double'!C$7-'Growth-Model-2'!A39)),0)","v":8.3476721708761596E-9},173.86992036026103,4.2930844533397787E-2,10.778743437068819,8.5982099179340921,442.28796751584775,{"$f":"M39/'S2-Double'!$C$17","v":16.381035833920286},13.897614053612546,398.70562038709971,{"$f":"_xlfn.XLOOKUP(B39,FeedTables!$C$17:$T$17,FeedTables!$C$31:$T$31,,-1)","v":"Unga 4mm"},{"$f":"_xlfn.XLOOKUP(Q39,FeedPrice[Feed],FeedPrice[Price per kg],\"Unknown\",0)*O39","v":1380.4513937067395},41783.940340378555,{"$f":"_xlfn.XLOOKUP(O39,LabourFromFeed[Feed Quantity (kg)],LabourFromFeed[No. Labour],\"Out of range\",-1)","v":1},{"$f":"T39*OperatingCosts!$C$9","v":1200},45600]
[38,{"$f":"IF(A40<='S2-Double'!$C$7, B39*EXP((LN((E39/100)+1))*1),)","v":116.66768120609275},{"$f":"_xlfn.XLOOKUP($B40,FeedTables!$C$42:$T$42,FeedTables!$C$44:$T$44,,-1)","v":3.1422093916933376},{"$f":"_xlfn.XLOOKUP($B40,FeedTables!$C$42:$T$42,FeedTables!$C$45:$T$45,,-1)","v":1.3978462732485115},{"$f":"_xlfn.XLOOKUP($B40,FeedTables!$C$42:$T$42,FeedTables!$C$46:$T$46,,-1)*_xlfn.XLOOKUP(N39,DensityMultiplier[Biomass kg/m3],DensityMultiplier[Multiplier],,-1)","v":2.2478933855802543},3876.1300796397386,{"$f":"IF(A40<='S2-Double'!$C$7,('Growth-Model-2'!G39*EXP($AA$7)),0)","v":8.1306960616551932E-2},{"$f":"IF(A40<='S2-Double'!$C$7,$AD$6*EXP($AD$7*('S2-Double'!C$7-'Growth-Model-2'!A40)),0)","v":1.0195869813725025E-8},173.95122733107345,4.295092032866011E-2,9.4858957505767094,8.6076958136846695,452.21910844475593,{"$f":"M40/'S2-Double'!$C$17","v":16.748855868324295},14.209671296583,412.91529168368271,{"$f":"_xlfn.XLOOKUP(B40,FeedTables!$C$17:$T$17,FeedTables!$C$31:$T$31,,-1)","v":"Unga 4mm"},{"$f":"_xlfn.XLOOKUP(Q40,FeedPrice[Feed],FeedPrice[Price per kg],\"Unknown\",0)*O40","v":1411.4480708567191},43195.388411235275,{"$f":"_xlfn.XLOOKUP(O40,LabourFromFeed[Feed Quantity (kg)],LabourFromFeed[No. Labour],\"Out of range\",-1)","v":1},{"$f":"T40*OperatingCosts!$C$9","v":1200},46800]
[39,{"$f":"IF(A41<='S2-Double'!$C$7, B40*EXP((LN((E40/100)+1))*1),)","v":119.29024629503436},{"$f":"_xlfn.XLOOKUP($B41,FeedTables!$C$42:$T$42,FeedTables!$C$44:$T$44,,-1)","v":3.1422093916933376},{"$f":"_xlfn.XLOOKUP($B41,FeedTables!$C$42:$T$42,FeedTables!$C$45:$T$45,,-1)","v":1.3978462732485115},{"$f":"_xlfn.XLOOKUP($B41,FeedTables!$C$42:$T$42,FeedTables!$C$46:$T$46,,-1)*_xlfn.XLOOKUP(N40,DensityMultiplier[Biomass kg/m3],DensityMultiplier[Multiplier],,-1)","v":2.2478933855802543},3876.0487726689262,{"$f":"IF(A41<='S2-Double'!$C$7,('Growth-Model-2'!G40*EXP($AA$7)),0)","v":6.9981549541544286E-2},{"$f":"IF(A41<='S2-Double'!$C$7,$AD$6*EXP($AD$7*('S2-Double'!C$7-'Growth-Model-2'!A41)),0)","v":1.2453263512325754E-8},174.02120889306826,4.2968199726683524E-2,8.3481177664718391,8.6160439314511414,462.37481274324182,{"$f":"M41/'S2-Double'!$C$17","v":17.12499306456451},14.528784790842627,427.44407647452533,{"$f":"_xlfn.XLOOKUP(B41,FeedTables!$C$17:$T$17,FeedTables!$C$31:$T$31,,-1)","v":"Unga 4mm"},{"$f":"_xlfn.XLOOKUP(Q41,FeedPrice[Feed],FeedPrice[Price per kg],\"Unknown\",0)*O41","v":1443.1456461528771},44638.534057388155,{"$f":"_xlfn.XLOOKUP(O41,LabourFromFeed[Feed Quantity (kg)],LabourFromFeed[No. Labour],\"Out of range\",-1)","v":1},{"$f":"T41*OperatingCosts!$C$9","v":1200},48000]
[40,{"$f":"IF(A42<='S2-Double'!$C$7, B41*EXP((LN((E41/100)+1))*1),)","v":121.97176385114282},{"$f":"_xlfn.XLOOKUP($B42,FeedTables!$C$42:$T$42,FeedTables!$C$44:$T$44,,-1)","v":3.1422093916933376},{"$f":"_xlfn.XLOOKUP($B42,FeedTables!$C$42:$T$42,FeedTables!$C$45:$T$45,,-1)","v":1.3978462732485115},{"$f":"_xlfn.XLOOKUP($B42,FeedTables!$C$42:$T$42,FeedTables!$C$46:$T$46,,-1)*_xlfn.XLOOKUP(N41,DensityMultiplier[Biomass kg/m3],DensityMultiplier[Multiplier],,-1)","v":2.2478933855802543},3875.9787911069316,{"$f":"IF(A42<='S2-Double'!$C$7,('Growth-Model-2'!G41*EXP($AA$7)),0)","v":6.0233677892992513E-2},{"$f":"IF(A42<='S2-Double'!$C$7,$AD$6*EXP($AD$7*('S2-Double'!C$7-'Growth-Model-2'!A42)),0)","v":1.5210450402050071E-8},174.0814425861717,4.2983072243499183E-2,7.3468097910953487,8.6233907412422361,472.75996980093271,{"$f":"M42/'S2-Double'!$C$17","v":17.509628511145657},14.855108171251494,442.29918464577685,{"$f":"_xlfn.XLOOKUP(B42,FeedTables!$C$17:$T$17,FeedTables!$C$31:$T$31,,-1)","v":"Unga 4mm"},{"$f":"_xlfn.XLOOKUP(Q42,FeedPrice[Feed],FeedPrice[Price per kg],\"Unknown\",0)*O42","v":1475.5593801612281},46114.093437549382,{"$f":"_xlfn.XLOOKUP(O42,LabourFromFeed[Feed Quantity (kg)],LabourFromFeed[No. Labour],\"Out of range\",-1)","v":1},{"$f":"T42*OperatingCosts!$C$9","v":1200},49200]
[41,{"$f":"IF(A43<='S2-Double'!$C$7, B42*EXP((LN((E42/100)+1))*1),)","v":124.71355906302823},{"$f":"_xlfn.XLOOKUP($B43,FeedTables!$C$42:$T$42,FeedTables!$C$44:$T$44,,-1)","v":3.1422093916933376},{"$f":"_xlfn.XLOOKUP($B43,FeedTables!$C$42:$T$42,FeedTables!$C$45:$T$45,,-1)","v":1.3978462732485115},{"$f":"_xlfn.XLOOKUP($B43,FeedTables!$C$42:$T$42,FeedTables!$C$46:$T$46,,-1)*_xlfn.XLOOKUP(N42,DensityMultiplier[Biomass kg/m3],DensityMultiplier[Multiplier],,-1)","v":2.2478933855802543},3875.9185574138282,{"$f":"IF(A43<='S2-Double'!$C$7,('Growth-Model-2'!G42*EXP($AA$7)),0)","v":5.1843607011916322E-2},{"$f":"IF(A43<='S2-Double'!$C$7,$AD$6*EXP($AD$7*('S2-Double'!C$7-'Growth-Model-2'!A43)),0)","v":1.8578086073922409E-8},174.13328621176169,4.2995873138706592E-2,6.4656030620602856,8.6298563443042973,483.37959793351666,{"$f":"M43/'S2-Double'!$C$17","v":17.902948071611728},15.188799123796455,457.4879837695733,{"$f":"_xlfn.XLOOKUP(B43,FeedTables!$C$17:$T$17,FeedTables!$C$31:$T$31,,-1)","v":"Unga 4mm"},{"$f":"_xlfn.XLOOKUP(Q43,FeedPrice[Feed],FeedPrice[Price per kg],\"Unknown\",0)*O43","v":1508.7049358466143},47622.798373395999,{"$f":"_xlfn.XLOOKUP(O43,LabourFromFeed[Feed Quantity (kg)],LabourFromFeed[No. Labour],\"Out of range\",-1)","v":1},{"$f":"T43*OperatingCosts!$C$9","v":1200},50400]
[42,{"$f":"IF(A44<='S2-Double'!$C$7, B43*EXP((LN((E43/100)+1))*1),)","v":127.51698690812775},{"$f":"_xlfn.XLOOKUP($B44,FeedTables!$C$42:$T$42,FeedTables!$C$44:$T$44,,-1)","v":3.1422093916933376},{"$f":"_xlfn.XLOOKUP($B44,FeedTables!$C$42:$T$42,FeedTables!$C$45:$T$45,,-1)","v":1.3978462732485115},{"$f":"_xlfn.XLOOKUP($B44,FeedTables!$C$42:$T$42,FeedTables!$C$46:$T$46,,-1)*_xlfn.XLOOKUP(N43,DensityMultiplier[Biomass kg/m3],DensityMultiplier[Multiplier],,-1)","v":2.2478933855802543},3875.866713788238,{"$f":"IF(A44<='S2-Double'!$C$7,('Growth-Model-2'!G43*EXP($AA$7)),0)","v":4.4622206081802437E-2},{"$f":"IF(A44<='S2-Double'!$C$7,$AD$6*EXP($AD$7*('S2-Double'!C$7-'Growth-Model-2'!A44)),0)","v":2.2691325572025935E-8},174.17790844053482,4.3006890972971563E-2,5.6900921622744463,8.6355464364665711,494.23884499978288,{"$f":"M44/'S2-Double'!$C$17","v":18.305142407399366},15.530019404979855,473.01800317455314,{"$f":"_xlfn.XLOOKUP(B44,FeedTables!$C$17:$T$17,FeedTables!$C$31:$T$31,,-1)","v":"Unga 4mm"},{"$f":"_xlfn.XLOOKUP(Q44,FeedPrice[Feed],FeedPrice[Price per kg],\"Unknown\",0)*O44","v":1542.5983804985894},49165.396753894587,{"$f":"_xlfn.XLOOKUP(O44,LabourFromFeed[Feed Quantity (kg)],LabourFromFeed[No. Labour],\"Out of range\",-1)","v":1},{"$f":"T44*OperatingCosts!$C$9","v":1200},51600]
[43,{"$f":"IF(A45<='S2-Double'!$C$7, B44*EXP((LN((E44/100)+1))*1),)","v":130.38343282232677},{"$f":"_xlfn.XLOOKUP($B45,FeedTables!$C$42:$T$42,FeedTables!$C$44:$T$44,,-1)","v":2.8483614154897481},{"$f":"_xlfn.XLOOKUP($B45,FeedTables!$C$42:$T$42,FeedTables!$C$45:$T$45,,-1)","v":1.4306418063069479},{"$f":"_xlfn.XLOOKUP($B45,FeedTables!$C$42:$T$42,FeedTables!$C$46:$T$46,,-1)*_xlfn.XLOOKUP(N44,DensityMultiplier[Biomass kg/m3],DensityMultiplier[Multiplier],,-1)","v":1.9909675524179564},3875.8220915594648,{"$f":"IF(A45<='S2-Double'!$C$7,('Growth-Model-2'!G44*EXP($AA$7)),0)","v":3.8406688700290084E-2},{"$f":"IF(A45<='S2-Double'!$C$7,$AD$6*EXP($AD$7*('S2-Double'!C$7-'Growth-Model-2'!A45)),0)","v":2.771524763998285E-8},174.21631515695037,4.3016374112827251E-2,5.0075995296914178,8.6405540359962618,505.34298930613346,{"$f":"M45/'S2-Double'!$C$17","v":18.716407011338276},14.393994723278389,487.41199789783155,{"$f":"_xlfn.XLOOKUP(B45,FeedTables!$C$17:$T$17,FeedTables!$C$31:$T$31,,-1)","v":"Unga 4mm"},{"$f":"_xlfn.XLOOKUP(Q45,FeedPrice[Feed],FeedPrice[Price per kg],\"Unknown\",0)*O45","v":1429.7569352627147},50595.153689157305,{"$f":"_xlfn.XLOOKUP(O45,LabourFromFeed[Feed Quantity (kg)],LabourFromFeed[No. Labour],\"Out of range\",-1)","v":1},{"$f":"T45*OperatingCosts!$C$9","v":1200},52800]
[44,{"$f":"IF(A46<='S2-Double'!$C$7, B45*EXP((LN((E45/100)+1))*1),)","v":132.97932466354797},{"$f":"_xlfn.XLOOKUP($B46,FeedTables!$C$42:$T$42,FeedTables!$C$44:$T$44,,-1)","v":2.8483614154897481},{"$f":"_xlfn.XLOOKUP($B46,FeedTables!$C$42:$T$42,FeedTables!$C$45:$T$45,,-1)","v":1.4306418063069479},{"$f":"_xlfn.XLOOKUP($B46,FeedTables!$C$42:$T$42,FeedTables!$C$46:$T$46,,-1)*_xlfn.XLOOKUP(N45,DensityMultiplier[Biomass kg/m3],DensityMultiplier[Multiplier],,-1)","v":1.9909675524179564},3875.7836848430493,{"$f":"IF(A46<='S2-Double'!$C$7,('Growth-Model-2'!G45*EXP($AA$7)),0)","v":3.3056943312413808E-2},{"$f":"IF(A46<='S2-Double'!$C$7,$AD$6*EXP($AD$7*('S2-Double'!C$7-'Growth-Model-2'!A46)),0)","v":3.3851479910567162E-8},174.24937213411425,4.3024536329410924E-2,4.3958944986729138,8.6449499304949349,515.39909695242613,{"$f":"M46/'S2-Double'!$C$17","v":19.088855442682448},14.680429013375504,502.09242691120704,{"$f":"_xlfn.XLOOKUP(B46,FeedTables!$C$17:$T$17,FeedTables!$C$31:$T$31,,-1)","v":"Unga 4mm"},{"$f":"_xlfn.XLOOKUP(Q46,FeedPrice[Feed],FeedPrice[Price per kg],\"Unknown\",0)*O46","v":1458.2084819414902},52053.362171098794,{"$f":"_xlfn.XLOOKUP(O46,LabourFromFeed[Feed Quantity (kg)],LabourFromFeed[No. Labour],\"Out of range\",-1)","v":1},{"$f":"T46*OperatingCosts!$C$9","v":1200},54000]
[45,{"$f":"IF(A47<='S2-Double'!$C$7, B46*EXP((LN((E46/100)+1))*1),)","v":135.62689986902376},{"$f":"_xlfn.XLOOKUP($B47,FeedTables!$C$42:$T$42,FeedTables!$C$44:$T$44,,-1)","v":2.8483614154897481},{"$f":"_xlfn.XLOOKUP($B47,FeedTables!$C$42:$T$42,FeedTables!$C$45:$T$45,,-1)","v":1.4306418063069479},{"$f":"_xlfn.XLOOKUP($B47,FeedTables!$C$42:$T$42,FeedTables!$C$46:$T$46,,-1)*_xlfn.XLOOKUP(N46,DensityMultiplier[Biomass kg/m3],DensityMultiplier[Multiplier],,-1)","v":1.9909675524179564},3875.7506278658857,{"$f":"IF(A47<='S2-Double'!$C$7,('Growth-Model-2'!G46*EXP($AA$7)),0)","v":2.8452374785225536E-2},{"$f":"IF(A47<='S2-Double'!$C$7,$AD$6*EXP($AD$7*('S2-Double'!C$7-'Growth-Model-2'!A47)),0)","v":4.1346290930570286E-8},174.27782455024575,4.303156161734463E-2,3.8589129937009798,8.6488088434886361,525.65604232287239,{"$f":"M47/'S2-Double'!$C$17","v":19.468742308254534},14.972583887715157,517.06501079892223,{"$f":"_xlfn.XLOOKUP(B47,FeedTables!$C$17:$T$17,FeedTables!$C$31:$T$31,,-1)","v":"Unga 4mm"},{"$f":"_xlfn.XLOOKUP(Q47,FeedPrice[Feed],FeedPrice[Price per kg],\"Unknown\",0)*O47","v":1487.2282548251353},53540.590425923932,{"$f":"_xlfn.XLOOKUP(O47,LabourFromFeed[Feed Quantity (kg)],LabourFromFeed[No. Labour],\"Out of range\",-1)","v":1},{"$f":"T47*OperatingCosts!$C$9","v":1200},55200]
[46,{"$f":"IF(A48<='S2-Double'!$C$7, B47*EXP((LN((E47/100)+1))*1),)","v":138.32718743776644},{"$f":"_xlfn.XLOOKUP($B48,FeedTables!$C$42:$T$42,FeedTables!$C$44:$T$44,,-1)","v":2.8483614154897481},{"$f":"_xlfn.XLOOKUP($B48,FeedTables!$C$42:$T$42,FeedTables!$C$45:$T$45,,-1)","v":1.4306418063069479},{"$f":"_xlfn.XLOOKUP($B48,FeedTables!$C$42:$T$42,FeedTables!$C$46:$T$46,,-1)*_xlfn.XLOOKUP(N47,DensityMultiplier[Biomass kg/m3],DensityMultiplier[Multiplier],,-1)","v":1.9909675524179564},3875.7221754497546,{"$f":"IF(A48<='S2-Double'!$C$7,('Growth-Model-2'!G47*EXP($AA$7)),0)","v":2.4489185925878811E-2},{"$f":"IF(A48<='S2-Double'!$C$7,$AD$6*EXP($AD$7*('S2-Double'!C$7-'Growth-Model-2'!A48)),0)","v":5.0500473782291503E-8},174.3023137866721,4.3037608342388171E-2,3.3875271973558529,8.6521963706859921,536.11774782014618,{"$f":"M48/'S2-Double'!$C$17","v":19.856212882227638},15.270571070501674,532.33558186942389,{"$f":"_xlfn.XLOOKUP(B48,FeedTables!$C$17:$T$17,FeedTables!$C$31:$T$31,,-1)","v":"Unga 4mm"},{"$f":"_xlfn.XLOOKUP(Q48,FeedPrice[Feed],FeedPrice[Price per kg],\"Unknown\",0)*O48","v":1516.8273514900384},55057.417777413968,{"$f":"_xlfn.XLOOKUP(O48,LabourFromFeed[Feed Quantity (kg)],LabourFromFeed[No. Labour],\"Out of range\",-1)","v":1},{"$f":"T48*OperatingCosts!$C$9","v":1200},56400]
[47,{"$f":"IF(A49<='S2-Double'!$C$7, B48*EXP((LN((E48/100)+1))*1),)","v":141.08123685582476},{"$f":"_xlfn.XLOOKUP($B49,FeedTables!$C$42:$T$42,FeedTables!$C$44:$T$44,,-1)","v":2.8483614154897481},{"$f":"_xlfn.XLOOKUP($B49,FeedTables!$C$42:$T$42,FeedTables!$C$45:$T$45,,-1)","v":1.4306418063069479},{"$f":"_xlfn.XLOOKUP($B49,FeedTables!$C$42:$T$42,FeedTables!$C$46:$T$46,,-1)*_xlfn.XLOOKUP(N48,DensityMultiplier[Biomass kg/m3],DensityMultiplier[Multiplier],,-1)","v":1.9909675524179564},3875.6976862133279,{"$f":"IF(A49<='S2-Double'!$C$7,('Growth-Model-2'!G48*EXP($AA$7)),0)","v":2.1078037662560157E-2},{"$f":"IF(A49<='S2-Double'!$C$7,$AD$6*EXP($AD$7*('S2-Double'!C$7-'Growth-Model-2'!A49)),0)","v":6.168141796608614E-8},174.32339188601608,4.3042812811361998E-2,2.9737243260183819,8.6551700950120107,546.78822325023452,{"$f":"M49/'S2-Double'!$C$17","v":20.251415675934613},15.574504775501625,547.91008664492551,{"$f":"_xlfn.XLOOKUP(B49,FeedTables!$C$17:$T$17,FeedTables!$C$31:$T$31,,-1)","v":"Unga 4mm"},{"$f":"_xlfn.XLOOKUP(Q49,FeedPrice[Feed],FeedPrice[Price per kg],\"Unknown\",0)*O49","v":1547.017116801054},56604.434894215025,{"$f":"_xlfn.XLOOKUP(O49,LabourFromFeed[Feed Quantity (kg)],LabourFromFeed[No. Labour],\"Out of range\",-1)","v":1},{"$f":"T49*OperatingCosts!$C$9","v":1200},57600]
[48,{"$f":"IF(A50<='S2-Double'!$C$7, B49*EXP((LN((E49/100)+1))*1),)","v":143.89011850417415},{"$f":"_xlfn.XLOOKUP($B50,FeedTables!$C$42:$T$42,FeedTables!$C$44:$T$44,,-1)","v":2.8483614154897481},{"$f":"_xlfn.XLOOKUP($B50,FeedTables!$C$42:$T$42,FeedTables!$C$45:$T$45,,-1)","v":1.4306418063069479},{"$f":"_xlfn.XLOOKUP($B50,FeedTables!$C$42:$T$42,FeedTables!$C$46:$T$46,,-1)*_xlfn.XLOOKUP(N49,DensityMultiplier[Biomass kg/m3],DensityMultiplier[Multiplier],,-1)","v":1.9909675524179564},3875.676608113984,{"$f":"IF(A50<='S2-Double'!$C$7,('Growth-Model-2'!G49*EXP($AA$7)),0)","v":1.8142035143553309E-2},{"$f":"IF(A50<='S2-Double'!$C$7,$AD$6*EXP($AD$7*('S2-Double'!C$7-'Growth-Model-2'!A50)),0)","v":7.5337854031007821E-8},174.34153399649747,4.3047292344814192E-2,2.6104704270855223,8.6577805654390971,557.67156642537691,{"$f":"M50/'S2-Double'!$C$17","v":20.654502460199144},15.884501723217717,563.7945883681432,{"$f":"_xlfn.XLOOKUP(B50,FeedTables!$C$17:$T$17,FeedTables!$C$31:$T$31,,-1)","v":"Unga 4mm"},{"$f":"_xlfn.XLOOKUP(Q50,FeedPrice[Feed],FeedPrice[Price per kg],\"Unknown\",0)*O50","v":1577.8091446173883},58182.24403883241,{"$f":"_xlfn.XLOOKUP(O50,LabourFromFeed[Feed Quantity (kg)],LabourFromFeed[No. Labour],\"Out of range\",-1)","v":1},{"$f":"T50*OperatingCosts!$C$9","v":1200},58800]
[49,{"$f":"IF(A51<='S2-Double'!$C$7, B50*EXP((LN((E50/100)+1))*1),)","v":146.75492407472802},{"$f":"_xlfn.XLOOKUP($B51,FeedTables!$C$42:$T$42,FeedTables!$C$44:$T$44,,-1)","v":2.8483614154897481},{"$f":"_xlfn.XLOOKUP($B51,FeedTables!$C$42:$T$42,FeedTables!$C$45:$T$45,,-1)","v":1.4306418063069479},{"$f":"_xlfn.XLOOKUP($B51,FeedTables!$C$42:$T$42,FeedTables!$C$46:$T$46,,-1)*_xlfn.XLOOKUP(N50,DensityMultiplier[Biomass kg/m3],DensityMultiplier[Multiplier],,-1)","v":1.9909675524179564},3875.6584660035023,{"$f":"IF(A51<='S2-Double'!$C$7,('Growth-Model-2'!G50*EXP($AA$7)),0)","v":1.5614994356640051E-2},{"$f":"IF(A51<='S2-Double'!$C$7,$AD$6*EXP($AD$7*('S2-Double'!C$7-'Growth-Model-2'!A51)),0)","v":9.2017862707341147E-8},174.35714908287198,4.3051147921696786E-2,2.2915908153104723,8.6600721562544081,568.77196391792086,{"$f":"M51/'S2-Double'!$C$17","v":21.065628293256328},16.200681162361331,579.99526953050452,{"$f":"_xlfn.XLOOKUP(B51,FeedTables!$C$17:$T$17,FeedTables!$C$31:$T$31,,-1)","v":"Unga 4mm"},{"$f":"_xlfn.XLOOKUP(Q51,FeedPrice[Feed],FeedPrice[Price per kg],\"Unknown\",0)*O51","v":1609.2152799254673},59791.459318757879,{"$f":"_xlfn.XLOOKUP(O51,LabourFromFeed[Feed Quantity (kg)],LabourFromFeed[No. Labour],\"Out of range\",-1)","v":1},{"$f":"T51*OperatingCosts!$C$9","v":1200},60000]
[50,{"$f":"IF(A52<='S2-Double'!$C$7, B51*EXP((LN((E51/100)+1))*1),)","v":149.67676699463149},{"$f":"_xlfn.XLOOKUP($B52,FeedTables!$C$42:$T$42,FeedTables!$C$44:$T$44,,-1)","v":2.8483614154897481},{"$f":"_xlfn.XLOOKUP($B52,FeedTables!$C$42:$T$42,FeedTables!$C$45:$T$45,,-1)","v":1.4306418063069479},{"$f":"_xlfn.XLOOKUP($B52,FeedTables!$C$42:$T$42,FeedTables!$C$46:$T$46,,-1)*_xlfn.XLOOKUP(N51,DensityMultiplier[Biomass kg/m3],DensityMultiplier[Multiplier],,-1)","v":1.9909675524179564},3875.6428509171278,{"$f":"IF(A52<='S2-Double'!$C$7,('Growth-Model-2'!G51*EXP($AA$7)),0)","v":1.3439950194592355E-2},{"$f":"IF(A52<='S2-Double'!$C$7,$AD$6*EXP($AD$7*('S2-Double'!C$7-'Growth-Model-2'!A52)),0)","v":1.1239087131075024E-7},174.37058914545744,4.3054466455668503E-2,2.0116651159977095,8.6620838213704054,580.09369195113231,{"$f":"M52/'S2-Double'!$C$17","v":21.484951553745642},16.52316489522601,596.51843442573056,{"$f":"_xlfn.XLOOKUP(B52,FeedTables!$C$17:$T$17,FeedTables!$C$31:$T$31,,-1)","v":"Unga 4mm"},{"$f":"_xlfn.XLOOKUP(Q52,FeedPrice[Feed],FeedPrice[Price per kg],\"Unknown\",0)*O52","v":1641.247621359289},61432.706940117168,{"$f":"_xlfn.XLOOKUP(O52,LabourFromFeed[Feed Quantity (kg)],LabourFromFeed[No. Labour],\"Out of range\",-1)","v":1},{"$f":"T52*OperatingCosts!$C$9","v":1200},61200]
[51,{"$f":"IF(A53<='S2-Double'!$C$7, B52*EXP((LN((E52/100)+1))*1),)","v":152.65678285900285},{"$f":"_xlfn.XLOOKUP($B53,FeedTables!$C$42:$T$42,FeedTables!$C$44:$T$44,,-1)","v":2.8483614154897481},{"$f":"_xlfn.XLOOKUP($B53,FeedTables!$C$42:$T$42,FeedTables!$C$45:$T$45,,-1)","v":1.4306418063069479},{"$f":"_xlfn.XLOOKUP($B53,FeedTables!$C$42:$T$42,FeedTables!$C$46:$T$46,,-1)*_xlfn.XLOOKUP(N52,DensityMultiplier[Biomass kg/m3],DensityMultiplier[Multiplier],,-1)","v":1.9909675524179564},3875.6294108545426,{"$f":"IF(A53<='S2-Double'!$C$7,('Growth-Model-2'!G52*EXP($AA$7)),0)","v":1.1567872335241147E-2},{"$f":"IF(A53<='S2-Double'!$C$7,$AD$6*EXP($AD$7*('S2-Double'!C$7-'Growth-Model-2'!A53)),0)","v":1.3727452021097544E-7},174.3821571550672,4.3057322754337581E-2,1.7659351311081979,8.6638497565015129,591.64111741478712,{"$f":"M53/'S2-Double'!$C$17","v":21.912633978325449},16.852077306615193,613.37051173234579,{"$f":"_xlfn.XLOOKUP(B53,FeedTables!$C$17:$T$17,FeedTables!$C$31:$T$31,,-1)","v":"Unga 4mm"},{"$f":"_xlfn.XLOOKUP(Q53,FeedPrice[Feed],FeedPrice[Price per kg],\"Unknown\",0)*O53","v":1673.9185240738179},63106.625464190984,{"$f":"_xlfn.XLOOKUP(O53,LabourFromFeed[Feed Quantity (kg)],LabourFromFeed[No. Labour],\"Out of range\",-1)","v":1},{"$f":"T53*OperatingCosts!$C$9","v":1200},62400]
[52,{"$f":"IF(A54<='S2-Double'!$C$7, B53*EXP((LN((E53/100)+1))*1),)","v":155.69612987229075},{"$f":"_xlfn.XLOOKUP($B54,FeedTables!$C$42:$T$42,FeedTables!$C$44:$T$44,,-1)","v":2.8483614154897481},{"$f":"_xlfn.XLOOKUP($B54,FeedTables!$C$42:$T$42,FeedTables!$C$45:$T$45,,-1)","v":1.4306418063069479},{"$f":"_xlfn.XLOOKUP($B54,FeedTables!$C$42:$T$42,FeedTables!$C$46:$T$46,,-1)*_xlfn.XLOOKUP(N53,DensityMultiplier[Biomass kg/m3],DensityMultiplier[Multiplier],,-1)","v":1.9909675524179564},3875.617842844933,{"$f":"IF(A54<='S2-Double'!$C$7,('Growth-Model-2'!G53*EXP($AA$7)),0)","v":9.9565599892088158E-3},{"$f":"IF(A54<='S2-Double'!$C$7,$AD$6*EXP($AD$7*('S2-Double'!C$7-'Growth-Model-2'!A54)),0)","v":1.6766747761079924E-7},174.39211388272389,4.3059781205610839E-2,1.550223962338479,8.6653999804638513,603.41869899495202,{"$f":"M54/'S2-Double'!$C$17","v":22.348840703516743},17.187545396022436,630.5580571283682,{"$f":"_xlfn.XLOOKUP(B54,FeedTables!$C$17:$T$17,FeedTables!$C$31:$T$31,,-1)","v":"Unga 4mm"},{"$f":"_xlfn.XLOOKUP(Q54,FeedPrice[Feed],FeedPrice[Price per kg],\"Unknown\",0)*O54","v":1707.2406029414483},64813.866067132432,{"$f":"_xlfn.XLOOKUP(O54,LabourFromFeed[Feed Quantity (kg)],LabourFromFeed[No. Labour],\"Out of range\",-1)","v":1},{"$f":"T54*OperatingCosts!$C$9","v":1200},63600]
[53,{"$f":"IF(A55<='S2-Double'!$C$7, B54*EXP((LN((E54/100)+1))*1),)","v":158.79598929841859},{"$f":"_xlfn.XLOOKUP($B55,FeedTables!$C$42:$T$42,FeedTables!$C$44:$T$44,,-1)","v":2.8483614154897481},{"$f":"_xlfn.XLOOKUP($B55,FeedTables!$C$42:$T$42,FeedTables!$C$45:$T$45,,-1)","v":1.4306418063069479},{"$f":"_xlfn.XLOOKUP($B55,FeedTables!$C$42:$T$42,FeedTables!$C$46:$T$46,,-1)*_xlfn.XLOOKUP(N54,DensityMultiplier[Biomass kg/m3],DensityMultiplier[Multiplier],,-1)","v":1.9909675524179564},3875.6078861172759,{"$f":"IF(A55<='S2-Double'!$C$7,('Growth-Model-2'!G54*EXP($AA$7)),0)","v":8.5696906004666153E-3},{"$f":"IF(A55<='S2-Double'!$C$7,$AD$6*EXP($AD$7*('S2-Double'!C$7-'Growth-Model-2'!A55)),0)","v":2.0478951960758856E-7},174.40068377811389,4.3061897229163926E-2,1.360865016636819,8.6667608454804874,615.43098840874563,{"$f":"M55/'S2-Double'!$C$17","v":22.793740311435023},17.529698812801893,648.08775594117014,{"$f":"_xlfn.XLOOKUP(B55,FeedTables!$C$17:$T$17,FeedTables!$C$31:$T$31,,-1)","v":"Unga 4mm"},{"$f":"_xlfn.XLOOKUP(Q55,FeedPrice[Feed],FeedPrice[Price per kg],\"Unknown\",0)*O55","v":1741.2267360454935},66555.092803177919,{"$f":"_xlfn.XLOOKUP(O55,LabourFromFeed[Feed Quantity (kg)],LabourFromFeed[No. Labour],\"Out of range\",-1)","v":1},{"$f":"T55*OperatingCosts!$C$9","v":1200},64800]
[54,{"$f":"IF(A56<='S2-Double'!$C$7, B55*EXP((LN((E55/100)+1))*1),)","v":161.95756591989121},{"$f":"_xlfn.XLOOKUP($B56,FeedTables!$C$42:$T$42,FeedTables!$C$44:$T$44,,-1)","v":2.8483614154897481},{"$f":"_xlfn.XLOOKUP($B56,FeedTables!$C$42:$T$42,FeedTables!$C$45:$T$45,,-1)","v":1.4306418063069479},{"$f":"_xlfn.XLOOKUP($B56,FeedTables!$C$42:$T$42,FeedTables!$C$46:$T$46,,-1)*_xlfn.XLOOKUP(N55,DensityMultiplier[Biomass kg/m3],DensityMultiplier[Multiplier],,-1)","v":1.9909675524179564},3875.5993162218861,{"$f":"IF(A56<='S2-Double'!$C$7,('Growth-Model-2'!G55*EXP($AA$7)),0)","v":7.376001055316459E-3},{"$f":"IF(A56<='S2-Double'!$C$7,$AD$6*EXP($AD$7*('S2-Double'!C$7-'Growth-Model-2'!A56)),0)","v":2.5013048409100468E-7},174.40806002929969,4.3063718525753011E-2,1.1946396876659682,8.6679554851681537,627.68263173609148,{"$f":"M56/'S2-Double'!$C$17","v":23.247504879114498},17.878669894101439,665.96642583527159,{"$f":"_xlfn.XLOOKUP(B56,FeedTables!$C$17:$T$17,FeedTables!$C$31:$T$31,,-1)","v":"Unga 4mm"},{"$f":"_xlfn.XLOOKUP(Q56,FeedPrice[Feed],FeedPrice[Price per kg],\"Unknown\",0)*O56","v":1775.8900684480852},68330.982871626009,{"$f":"_xlfn.XLOOKUP(O56,LabourFromFeed[Feed Quantity (kg)],LabourFromFeed[No. Labour],\"Out of range\",-1)","v":1},{"$f":"T56*OperatingCosts!$C$9","v":1200},66000]
[55,{"$f":"IF(A57<='S2-Double'!$C$7, B56*EXP((LN((E56/100)+1))*1),)","v":165.18208850604219},{"$f":"_xlfn.XLOOKUP($B57,FeedTables!$C$42:$T$42,FeedTables!$C$44:$T$44,,-1)","v":2.8483614154897481},{"$f":"_xlfn.XLOOKUP($B57,FeedTables!$C$42:$T$42,FeedTables!$C$45:$T$45,,-1)","v":1.4306418063069479},{"$f":"_xlfn.XLOOKUP($B57,FeedTables!$C$42:$T$42,FeedTables!$C$46:$T$46,,-1)*_xlfn.XLOOKUP(N56,DensityMultiplier[Biomass kg/m3],DensityMultiplier[Multiplier],,-1)","v":1.9909675524179564},3875.5919399707,{"$f":"IF(A57<='S2-Double'!$C$7,('Growth-Model-2'!G56*EXP($AA$7)),0)","v":6.3485829424305201E-3},{"$f":"IF(A57<='S2-Double'!$C$7,$AD$6*EXP($AD$7*('S2-Double'!C$7-'Growth-Model-2'!A57)),0)","v":3.0551006316869138E-7},174.41440891775218,4.3065286152531405E-2,1.0487226542748018,8.6690042078224288,640.17837084154394,{"$f":"M57/'S2-Double'!$C$17","v":23.710310031168294},18.234593705361409,684.20101954063296,{"$f":"_xlfn.XLOOKUP(B57,FeedTables!$C$17:$T$17,FeedTables!$C$31:$T$31,,-1)","v":"Unga 4mm"},{"$f":"_xlfn.XLOOKUP(Q57,FeedPrice[Feed],FeedPrice[Price per kg],\"Unknown\",0)*O57","v":1811.2440162129192},70142.22688783893,{"$f":"_xlfn.XLOOKUP(O57,LabourFromFeed[Feed Quantity (kg)],LabourFromFeed[No. Labour],\"Out of range\",-1)","v":1},{"$f":"T57*OperatingCosts!$C$9","v":1200},67200]
[56,{"$f":"IF(A58<='S2-Double'!$C$7, B57*EXP((LN((E57/100)+1))*1),)","v":168.47081029060382},{"$f":"_xlfn.XLOOKUP($B58,FeedTables!$C$42:$T$42,FeedTables!$C$44:$T$44,,-1)","v":2.8483614154897481},{"$f":"_xlfn.XLOOKUP($B58,FeedTables!$C$42:$T$42,FeedTables!$C$45:$T$45,,-1)","v":1.4306418063069479},{"$f":"_xlfn.XLOOKUP($B58,FeedTables!$C$42:$T$42,FeedTables!$C$46:$T$46,,-1)*_xlfn.XLOOKUP(N57,DensityMultiplier[Biomass kg/m3],DensityMultiplier[Multiplier],,-1)","v":1.9909675524179564},3875.5855910822474,{"$f":"IF(A58<='S2-Double'!$C$7,('Growth-Model-2'!G57*EXP($AA$7)),0)","v":5.4642759775460122E-3},{"$f":"IF(A58<='S2-Double'!$C$7,$AD$6*EXP($AD$7*('S2-Double'!C$7-'Growth-Model-2'!A58)),0)","v":3.7315083379992847E-7},174.41987356688057,4.3066635448612486E-2,0.92063386661198887,8.6699248416890402,652.923044880215,{"$f":"M58/'S2-Double'!$C$17","v":24.182334995563519},18.597608083208854,702.79862762384187,{"$f":"_xlfn.XLOOKUP(B58,FeedTables!$C$17:$T$17,FeedTables!$C$31:$T$31,,-1)","v":"Unga 4mm"},{"$f":"_xlfn.XLOOKUP(Q58,FeedPrice[Feed],FeedPrice[Price per kg],\"Unknown\",0)*O58","v":1847.3022706659438},71989.529158504869,{"$f":"_xlfn.XLOOKUP(O58,LabourFromFeed[Feed Quantity (kg)],LabourFromFeed[No. Labour],\"Out of range\",-1)","v":1},{"$f":"T58*OperatingCosts!$C$9","v":1200},68400]
[57,{"$f":"IF(A59<='S2-Double'!$C$7, B58*EXP((LN((E58/100)+1))*1),)","v":171.82500945878536},{"$f":"_xlfn.XLOOKUP($B59,FeedTables!$C$42:$T$42,FeedTables!$C$44:$T$44,,-1)","v":2.5479057505037064},{"$f":"_xlfn.XLOOKUP($B59,FeedTables!$C$42:$T$42,FeedTables!$C$45:$T$45,,-1)","v":1.4641748046312828},{"$f":"_xlfn.XLOOKUP($B59,FeedTables!$C$42:$T$42,FeedTables!$C$46:$T$46,,-1)*_xlfn.XLOOKUP(N58,DensityMultiplier[Biomass kg/m3],DensityMultiplier[Multiplier],,-1)","v":1.74016500109448},3875.5801264331194,{"$f":"IF(A59<='S2-Double'!$C$7,('Growth-Model-2'!G58*EXP($AA$7)),0)","v":4.703145919261683E-3},{"$f":"IF(A59<='S2-Double'!$C$7,$AD$6*EXP($AD$7*('S2-Double'!C$7-'Growth-Model-2'!A59)),0)","v":4.5576745761299938E-7},174.42457716856728,4.3067796831745005E-2,0.80819640431090178,8.6707330380933509,665.92159188265134,{"$f":"M59/'S2-Double'!$C$17","v":24.663762662320419},16.967054533423894,719.76568215726581,{"$f":"_xlfn.XLOOKUP(B59,FeedTables!$C$17:$T$17,FeedTables!$C$31:$T$31,,-1)","v":"Unga 4mm"},{"$f":"_xlfn.XLOOKUP(Q59,FeedPrice[Feed],FeedPrice[Price per kg],\"Unknown\",0)*O59","v":1685.3392235104488},73674.868382015324,{"$f":"_xlfn.XLOOKUP(O59,LabourFromFeed[Feed Quantity (kg)],LabourFromFeed[No. Labour],\"Out of range\",-1)","v":1},{"$f":"T59*OperatingCosts!$C$9","v":1200},69600]
[58,{"$f":"IF(A60<='S2-Double'!$C$7, B59*EXP((LN((E59/100)+1))*1),)","v":174.81504813651443},{"$f":"_xlfn.XLOOKUP($B60,FeedTables!$C$42:$T$42,FeedTables!$C$44:$T$44,,-1)","v":2.5479057505037064},{"$f":"_xlfn.XLOOKUP($B60,FeedTables!$C$42:$T$42,FeedTables!$C$45:$T$45,,-1)","v":1.4641748046312828},{"$f":"_xlfn.XLOOKUP($B60,FeedTables!$C$42:$T$42,FeedTables!$C$46:$T$46,,-1)*_xlfn.XLOOKUP(N59,DensityMultiplier[Biomass kg/m3],DensityMultiplier[Multiplier],,-1)","v":1.74016500109448},3875.5754228314327,{"$f":"IF(A60<='S2-Double'!$C$7,('Growth-Model-2'!G59*EXP($AA$7)),0)","v":4.0480352069994915E-3},{"$f":"IF(A60<='S2-Double'!$C$7,$AD$6*EXP($AD$7*('S2-Double'!C$7-'Growth-Model-2'!A60)),0)","v":5.5667562980816536E-7},174.4286257604499,4.3068796484061707E-2,0.70775478484694254,8.6714407928781974,677.5089040989692,{"$f":"M60/'S2-Double'!$C$17","v":25.092922374035897},17.262288327712277,737.02797048497814,{"$f":"_xlfn.XLOOKUP(B60,FeedTables!$C$17:$T$17,FeedTables!$C$31:$T$31,,-1)","v":"Unga 4mm"},{"$f":"_xlfn.XLOOKUP(Q60,FeedPrice[Feed],FeedPrice[Price per kg],\"Unknown\",0)*O60","v":1714.6648258204932},75389.533207835819,{"$f":"_xlfn.XLOOKUP(O60,LabourFromFeed[Feed Quantity (kg)],LabourFromFeed[No. Labour],\"Out of range\",-1)","v":1},{"$f":"T60*OperatingCosts!$C$9","v":1200},70800]
[59,{"$f":"IF(A61<='S2-Double'!$C$7, B60*EXP((LN((E60/100)+1))*1),)","v":177.85711842083253},{"$f":"_xlfn.XLOOKUP($B61,FeedTables!$C$42:$T$42,FeedTables!$C$44:$T$44,,-1)","v":2.5479057505037064},{"$f":"_xlfn.XLOOKUP($B61,FeedTables!$C$42:$T$42,FeedTables!$C$45:$T$45,,-1)","v":1.4641748046312828},{"$f":"_xlfn.XLOOKUP($B61,FeedTables!$C$42:$T$42,FeedTables!$C$46:$T$46,,-1)*_xlfn.XLOOKUP(N60,DensityMultiplier[Biomass kg/m3],DensityMultiplier[Multiplier],,-1)","v":1.6879600510616455},3875.5713742395501,{"$f":"IF(A61<='S2-Double'!$C$7,('Growth-Model-2'!G60*EXP($AA$7)),0)","v":3.4841761915139222E-3},{"$f":"IF(A61<='S2-Double'!$C$7,$AD$6*EXP($AD$7*('S2-Double'!C$7-'Growth-Model-2'!A61)),0)","v":6.7992514964824237E-7},174.43211061656655,4.306965694236211E-2,0.61980646702099529,8.6720605993452189,689.29795685651231,{"$f":"M61/'S2-Double'!$C$17","v":25.529553957648606},17.562662280851633,754.59063276582981,{"$f":"_xlfn.XLOOKUP(B61,FeedTables!$C$17:$T$17,FeedTables!$C$31:$T$31,,-1)","v":"Unga 4mm"},{"$f":"_xlfn.XLOOKUP(Q61,FeedPrice[Feed],FeedPrice[Price per kg],\"Unknown\",0)*O61","v":1744.5010006232208},77134.034208459037,{"$f":"_xlfn.XLOOKUP(O61,LabourFromFeed[Feed Quantity (kg)],LabourFromFeed[No. Labour],\"Out of range\",-1)","v":1},{"$f":"T61*OperatingCosts!$C$9","v":1200},72000]
[60,{"$f":"IF(A62<='S2-Double'!$C$7, B61*EXP((LN((E61/100)+1))*1),)","v":180.85927552774558},{"$f":"_xlfn.XLOOKUP($B62,FeedTables!$C$42:$T$42,FeedTables!$C$44:$T$44,,-1)","v":2.5479057505037064},{"$f":"_xlfn.XLOOKUP($B62,FeedTables!$C$42:$T$42,FeedTables!$C$45:$T$45,,-1)","v":1.4641748046312828},{"$f":"_xlfn.XLOOKUP($B62,FeedTables!$C$42:$T$42,FeedTables!$C$46:$T$46,,-1)*_xlfn.XLOOKUP(N61,DensityMultiplier[Biomass kg/m3],DensityMultiplier[Multiplier],,-1)","v":1.6879600510616455},3875.5678893834333,{"$f":"IF(A62<='S2-Double'!$C$7,('Growth-Model-2'!G61*EXP($AA$7)),0)","v":2.9988582393063127E-3},{"$f":"IF(A62<='S2-Double'!$C$7,$AD$6*EXP($AD$7*('S2-Double'!C$7-'Growth-Model-2'!A62)),0)","v":8.3046245312283025E-7},174.4351103052683,4.3070397606239083E-2,0.54252152540897525,8.6726031208706278,700.93240073248171,{"$f":"M62/'S2-Double'!$C$17","v":25.960459286388211},17.859096945406584,772.44972971123639,{"$f":"_xlfn.XLOOKUP(B62,FeedTables!$C$17:$T$17,FeedTables!$C$31:$T$31,,-1)","v":"Unga 4mm"},{"$f":"_xlfn.XLOOKUP(Q62,FeedPrice[Feed],FeedPrice[Price per kg],\"Unknown\",0)*O62","v":1773.9458854969305},78907.980093955965,{"$f":"_xlfn.XLOOKUP(O62,LabourFromFeed[Feed Quantity (kg)],LabourFromFeed[No. Labour],\"Out of range\",-1)","v":1},{"$f":"T62*OperatingCosts!$C$9","v":1200},73200]
[61,{"$f":"IF(A63<='S2-Double'!$C$7, B62*EXP((LN((E62/100)+1))*1),)","v":183.91210784729344},{"$f":"_xlfn.XLOOKUP($B63,FeedTables!$C$42:$T$42,FeedTables!$C$44:$T$44,,-1)","v":2.5479057505037064},{"$f":"_xlfn.XLOOKUP($B63,FeedTables!$C$42:$T$42,FeedTables!$C$45:$T$45,,-1)","v":1.4641748046312828},{"$f":"_xlfn.XLOOKUP($B63,FeedTables!$C$42:$T$42,FeedTables!$C$46:$T$46,,-1)*_xlfn.XLOOKUP(N62,DensityMultiplier[Biomass kg/m3],DensityMultiplier[Multiplier],,-1)","v":1.6879600510616455},3875.5648896947318,{"$f":"IF(A63<='S2-Double'!$C$7,('Growth-Model-2'!G62*EXP($AA$7)),0)","v":2.5811412067389483E-3},{"$f":"IF(A63<='S2-Double'!$C$7,$AD$6*EXP($AD$7*('S2-Double'!C$7-'Growth-Model-2'!A63)),0)","v":1.014329130792685E-6},174.43769246080419,4.3071035175507207E-2,0.47488966739136157,8.6730780105380187,712.76330796272146,{"$f":"M63/'S2-Double'!$C$17","v":26.39864103565635},18.160537311062622,790.61026702229901,{"$f":"_xlfn.XLOOKUP(B63,FeedTables!$C$17:$T$17,FeedTables!$C$31:$T$31,,-1)","v":"Unga 4mm"},{"$f":"_xlfn.XLOOKUP(Q63,FeedPrice[Feed],FeedPrice[Price per kg],\"Unknown\",0)*O63","v":1803.8879871615813},80711.868081117544,{"$f":"_xlfn.XLOOKUP(O63,LabourFromFeed[Feed Quantity (kg)],LabourFromFeed[No. Labour],\"Out of range\",-1)","v":1},{"$f":"T63*OperatingCosts!$C$9","v":1200},74400]
[62,{"$f":"IF(A64<='S2-Double'!$C$7, B63*EXP((LN((E63/100)+1))*1),)","v":187.01647075682115},{"$f":"_xlfn.XLOOKUP($B64,FeedTables!$C$42:$T$42,FeedTables!$C$44:$T$44,,-1)","v":2.5479057505037064},{"$f":"_xlfn.XLOOKUP($B64,FeedTables!$C$42:$T$42,FeedTables!$C$45:$T$45,,-1)","v":1.4641748046312828},{"$f":"_xlfn.XLOOKUP($B64,FeedTables!$C$42:$T$42,FeedTables!$C$46:$T$46,,-1)*_xlfn.XLOOKUP(N63,DensityMultiplier[Biomass kg/m3],DensityMultiplier[Multiplier],,-1)","v":1.6879600510616455},3875.5623075391964,{"$f":"IF(A64<='S2-Double'!$C$7,('Growth-Model-2'!G63*EXP($AA$7)),0)","v":2.2216088249196121E-3},{"$f":"IF(A64<='S2-Double'!$C$7,$AD$6*EXP($AD$7*('S2-Double'!C$7-'Growth-Model-2'!A64)),0)","v":1.2389043980323943E-6},174.4399153085335,4.3071584026798393E-2,0.41570913736679954,8.6734937196753847,724.79398495414239,{"$f":"M64/'S2-Double'!$C$17","v":26.844221664968238},18.467067621951561,809.07733464425053,{"$f":"_xlfn.XLOOKUP(B64,FeedTables!$C$17:$T$17,FeedTables!$C$31:$T$31,,-1)","v":"Unga 4mm"},{"$f":"_xlfn.XLOOKUP(Q64,FeedPrice[Feed],FeedPrice[Price per kg],\"Unknown\",0)*O64","v":1834.3356735952107},82546.203754712755,{"$f":"_xlfn.XLOOKUP(O64,LabourFromFeed[Feed Quantity (kg)],LabourFromFeed[No. Labour],\"Out of range\",-1)","v":1},{"$f":"T64*OperatingCosts!$C$9","v":1200},75600]
[63,{"$f":"IF(A65<='S2-Double'!$C$7, B64*EXP((LN((E64/100)+1))*1),)","v":190.17323407210168},{"$f":"_xlfn.XLOOKUP($B65,FeedTables!$C$42:$T$42,FeedTables!$C$44:$T$44,,-1)","v":2.5479057505037064},{"$f":"_xlfn.XLOOKUP($B65,FeedTables!$C$42:$T$42,FeedTables!$C$45:$T$45,,-1)","v":1.4641748046312828},{"$f":"_xlfn.XLOOKUP($B65,FeedTables!$C$42:$T$42,FeedTables!$C$46:$T$46,,-1)*_xlfn.XLOOKUP(N64,DensityMultiplier[Biomass kg/m3],DensityMultiplier[Multiplier],,-1)","v":1.6879600510616455},3875.5600846914667,{"$f":"IF(A65<='S2-Double'!$C$7,('Growth-Model-2'!G64*EXP($AA$7)),0)","v":1.9121564361046098E-3},{"$f":"IF(A65<='S2-Double'!$C$7,$AD$6*EXP($AD$7*('S2-Double'!C$7-'Growth-Model-2'!A65)),0)","v":1.5132012488535304E-6},174.44182897817086,4.3072056537819967E-2,0.36392874388109414,8.6738576484192667,737.02779514652457,{"$f":"M65/'S2-Double'!$C$17","v":27.297325746167576},18.778773575348975,827.85610821959949,{"$f":"_xlfn.XLOOKUP(B65,FeedTables!$C$17:$T$17,FeedTables!$C$31:$T$31,,-1)","v":"Unga 4mm"},{"$f":"_xlfn.XLOOKUP(Q65,FeedPrice[Feed],FeedPrice[Price per kg],\"Unknown\",0)*O65","v":1865.2974571167713},84411.501211829527,{"$f":"_xlfn.XLOOKUP(O65,LabourFromFeed[Feed Quantity (kg)],LabourFromFeed[No. Labour],\"Out of range\",-1)","v":1},{"$f":"T65*OperatingCosts!$C$9","v":1200},76800]
[64,{"$f":"IF(A66<='S2-Double'!$C$7, B65*EXP((LN((E65/100)+1))*1),)","v":193.3832822910507},{"$f":"_xlfn.XLOOKUP($B66,FeedTables!$C$42:$T$42,FeedTables!$C$44:$T$44,,-1)","v":2.5479057505037064},{"$f":"_xlfn.XLOOKUP($B66,FeedTables!$C$42:$T$42,FeedTables!$C$45:$T$45,,-1)","v":1.4641748046312828},{"$f":"_xlfn.XLOOKUP($B66,FeedTables!$C$42:$T$42,FeedTables!$C$46:$T$46,,-1)*_xlfn.XLOOKUP(N65,DensityMultiplier[Biomass kg/m3],DensityMultiplier[Multiplier],,-1)","v":1.6879600510616455},3875.5581710218294,{"$f":"IF(A66<='S2-Double'!$C$7,('Growth-Model-2'!G65*EXP($AA$7)),0)","v":1.645808296727749E-3},{"$f":"IF(A66<='S2-Double'!$C$7,$AD$6*EXP($AD$7*('S2-Double'!C$7-'Growth-Model-2'!A66)),0)","v":1.8482281790011143E-6},174.44347663469577,4.3072463366591547E-2,0.31862922687473366,8.6741762776461417,749.46815982210262,{"$f":"M66/'S2-Double'!$C$17","v":27.758079993411208},19.095742342301662,846.95185056190121,{"$f":"_xlfn.XLOOKUP(B66,FeedTables!$C$17:$T$17,FeedTables!$C$31:$T$31,,-1)","v":"Unga 4mm"},{"$f":"_xlfn.XLOOKUP(Q66,FeedPrice[Feed],FeedPrice[Price per kg],\"Unknown\",0)*O66","v":1896.7819964350583},86308.283208264591,{"$f":"_xlfn.XLOOKUP(O66,LabourFromFeed[Feed Quantity (kg)],LabourFromFeed[No. Labour],\"Out of range\",-1)","v":1},{"$f":"T66*OperatingCosts!$C$9","v":1200},78000]
[65,{"$f":"IF(A67<='S2-Double'!$C$7, B66*EXP((LN((E66/100)+1))*1),)","v":196.64751484155542},{"$f":"_xlfn.XLOOKUP($B67,FeedTables!$C$42:$T$42,FeedTables!$C$44:$T$44,,-1)","v":2.5479057505037064},{"$f":"_xlfn.XLOOKUP($B67,FeedTables!$C$42:$T$42,FeedTables!$C$45:$T$45,,-1)","v":1.4641748046312828},{"$f":"_xlfn.XLOOKUP($B67,FeedTables!$C$42:$T$42,FeedTables!$C$46:$T$46,,-1)*_xlfn.XLOOKUP(N66,DensityMultiplier[Biomass kg/m3],DensityMultiplier[Multiplier],,-1)","v":1.6879600510616455},3875.5565233653042,{"$f":"IF(A67<='S2-Double'!$C$7,('Growth-Model-2'!G66*EXP($AA$7)),0)","v":1.416560328660112E-3},{"$f":"IF(A67<='S2-Double'!$C$7,$AD$6*EXP($AD$7*('S2-Double'!C$7-'Growth-Model-2'!A67)),0)","v":2.2574309955413113E-6},174.44489545245543,{"$f":"I67/$F$2","v":4.30728136919643E-2},{"$f":"(G67+H67)*B67","v":0.27900698644934746},8.6744552846325913,{"$f":"(B67*F67)/1000","v":762.11855894776556},{"$f":"M67/'S2-Double'!$C$17","v":28.226613294361687},{"$f":"M67*(C67/100)","v":19.418062589086098},866.36991315098726,{"$f":"_xlfn.XLOOKUP(B67,FeedTables!$C$17:$T$17,FeedTables!$C$31:$T$31,,-1)","v":"Unga 4mm"},{"$f":"_xlfn.XLOOKUP(Q67,FeedPrice[Feed],FeedPrice[Price per kg],\"Unknown\",0)*O67","v":1928.7980987801811},88237.081307044777,{"$f":"_xlfn.XLOOKUP(O67,LabourFromFeed[Feed Quantity (kg)],LabourFromFeed[No. Labour],\"Out of range\",-1)","v":1},{"$f":"T67*OperatingCosts!$C$9","v":1200},79200]
[66,{"$f":"IF(A68<='S2-Double'!$C$7, B67*EXP((LN((E67/100)+1))*1),)","v":199.96684633348639},{"$f":"_xlfn.XLOOKUP($B68,FeedTables!$C$42:$T$42,FeedTables!$C$44:$T$44,,-1)","v":2.5479057505037064},{"$f":"_xlfn.XLOOKUP($B68,FeedTables!$C$42:$T$42,FeedTables!$C$45:$T$45,,-1)","v":1.4641748046312828},{"$f":"_xlfn.XLOOKUP($B68,FeedTables!$C$42:$T$42,FeedTables!$C$46:$T$46,,-1)*_xlfn.XLOOKUP(N67,DensityMultiplier[Biomass kg/m3],DensityMultiplier[Multiplier],,-1)","v":1.6879600510616455},{"$f":"F67-G67-H67","v":3875.5551045475445},{"$f":"IF(A68<='S2-Double'!$C$7,('Growth-Model-2'!G67*EXP($AA$7)),0)","v":1.2192447739650598E-3},{"$f":"IF(A68<='S2-Double'!$C$7,$AD$6*EXP($AD$7*('S2-Double'!C$7-'Growth-Model-2'!A68)),0)","v":2.7572324443104139E-6},{"$f":"I67+G68+H68","v":174.44611745446184},4.3073115420854777E-2,0.24435988743487458,{"$f":"(K68/1000)+L67","v":8.6746996445200253},774.98253204801756,{"$f":"M68/'S2-Double'!$C$17","v":28.70305674251917},19.74582449945067,{"$f":"O68+P67","v":886.11573765043795},{"$f":"_xlfn.XLOOKUP(B68,FeedTables!$C$17:$T$17,FeedTables!$C$31:$T$31,,-1)","v":"Unga 4mm"},{"$f":"_xlfn.XLOOKUP(Q68,FeedPrice[Feed],FeedPrice[Price per kg],\"Unknown\",0)*O68","v":1961.3547221128849},{"$f":"R68+S67","v":90198.43602915766},{"$f":"_xlfn.XLOOKUP(O68,LabourFromFeed[Feed Quantity (kg)],LabourFromFeed[No. Labour],\"Out of range\",-1)","v":1},{"$f":"T68*OperatingCosts!$C$9","v":1200},{"$f":"U68+V67","v":80400}]
[67,{"$f":"IF(A69<='S2-Double'!$C$7, B68*EXP((LN((E68/100)+1))*1),)","v":203.34220681496348},{"$f":"_xlfn.XLOOKUP($B69,FeedTables!$C$42:$T$42,FeedTables!$C$44:$T$44,,-1)","v":2.5479057505037064},{"$f":"_xlfn.XLOOKUP($B69,FeedTables!$C$42:$T$42,FeedTables!$C$45:$T$45,,-1)","v":1.4641748046312828},{"$f":"_xlfn.XLOOKUP($B69,FeedTables!$C$42:$T$42,FeedTables!$C$46:$T$46,,-1)*_xlfn.XLOOKUP(N68,DensityMultiplier[Biomass kg/m3],DensityMultiplier[Multiplier],,-1)","v":1.6879600510616455},3875.5538825455383,{"$f":"IF(A69<='S2-Double'!$C$7,('Growth-Model-2'!G68*EXP($AA$7)),0)","v":1.0494137021662936E-3},{"$f":"IF(A69<='S2-Double'!$C$7,$AD$6*EXP($AD$7*('S2-Double'!C$7-'Growth-Model-2'!A69)),0)","v":3.3676913123694497E-6},174.44717023585531,4.3073375366877852E-2,0.21407489184368375,8.6749137194118688,788.06367910710958,{"$f":"M69/'S2-Double'!$C$17","v":29.187543670633687},20.07911979760112,906.1948574480391,{"$f":"_xlfn.XLOOKUP(B69,FeedTables!$C$17:$T$17,FeedTables!$C$31:$T$31,,-1)","v":"Unga 4mm"},{"$f":"_xlfn.XLOOKUP(Q69,FeedPrice[Feed],FeedPrice[Price per kg],\"Unknown\",0)*O69","v":1994.4609774076989},92192.897006565356,{"$f":"_xlfn.XLOOKUP(O69,LabourFromFeed[Feed Quantity (kg)],LabourFromFeed[No. Labour],\"Out of range\",-1)","v":1},{"$f":"T69*OperatingCosts!$C$9","v":1200},81600]
[68,{"$f":"IF(A70<='S2-Double'!$C$7, B69*EXP((LN((E69/100)+1))*1),)","v":206.77454203294721},{"$f":"_xlfn.XLOOKUP($B70,FeedTables!$C$42:$T$42,FeedTables!$C$44:$T$44,,-1)","v":2.5479057505037064},{"$f":"_xlfn.XLOOKUP($B70,FeedTables!$C$42:$T$42,FeedTables!$C$45:$T$45,,-1)","v":1.4641748046312828},{"$f":"_xlfn.XLOOKUP($B70,FeedTables!$C$42:$T$42,FeedTables!$C$46:$T$46,,-1)*_xlfn.XLOOKUP(N69,DensityMultiplier[Biomass kg/m3],DensityMultiplier[Multiplier],,-1)","v":1.6879600510616455},3875.5528297641445,{"$f":"IF(A70<='S2-Double'!$C$7,('Growth-Model-2'!G69*EXP($AA$7)),0)","v":9.0323874402427882E-4},{"$f":"IF(A70<='S2-Double'!$C$7,$AD$6*EXP($AD$7*('S2-Double'!C$7-'Growth-Model-2'!A70)),0)","v":4.1133074575600856E-6},174.44807758790679,4.3073599404421431E-2,0.18761730490781239,8.6751013367167769,801.36566149897362,{"$f":"M70/'S2-Double'!$C$17","v":29.680209685147172},20.418041771894416,926.61289921993352,{"$f":"_xlfn.XLOOKUP(B70,FeedTables!$C$17:$T$17,FeedTables!$C$31:$T$31,,-1)","v":"Unga 4mm"},{"$f":"_xlfn.XLOOKUP(Q70,FeedPrice[Feed],FeedPrice[Price per kg],\"Unknown\",0)*O70","v":2028.1261310064494},94221.023137571799,{"$f":"_xlfn.XLOOKUP(O70,LabourFromFeed[Feed Quantity (kg)],LabourFromFeed[No. Labour],\"Out of range\",-1)","v":1},{"$f":"T70*OperatingCosts!$C$9","v":1200},82800]
[69,{"$f":"IF(A71<='S2-Double'!$C$7, B70*EXP((LN((E70/100)+1))*1),)","v":210.26481369822903},{"$f":"_xlfn.XLOOKUP($B71,FeedTables!$C$42:$T$42,FeedTables!$C$44:$T$44,,-1)","v":2.5479057505037064},{"$f":"_xlfn.XLOOKUP($B71,FeedTables!$C$42:$T$42,FeedTables!$C$45:$T$45,,-1)","v":1.4641748046312828},{"$f":"_xlfn.XLOOKUP($B71,FeedTables!$C$42:$T$42,FeedTables!$C$46:$T$46,,-1)*_xlfn.XLOOKUP(N70,DensityMultiplier[Biomass kg/m3],DensityMultiplier[Multiplier],,-1)","v":1.6879600510616455},3875.5519224120931,{"$f":"IF(A71<='S2-Double'!$C$7,('Growth-Model-2'!G70*EXP($AA$7)),0)","v":7.7742479159784779E-4},{"$f":"IF(A71<='S2-Double'!$C$7,$AD$6*EXP($AD$7*('S2-Double'!C$7-'Growth-Model-2'!A71)),0)","v":5.0240050738246804E-6},174.44886003670348,4.3073792601655177E-2,0.1645214504605727,8.6752658581672382,814.89220294379209,{"$f":"M71/'S2-Double'!$C$17","v":30.181192701621928},20.762685299211213,947.3755845191447,{"$f":"_xlfn.XLOOKUP(B71,FeedTables!$C$17:$T$17,FeedTables!$C$31:$T$31,,-1)","v":"Unga 4mm"},{"$f":"_xlfn.XLOOKUP(Q71,FeedPrice[Feed],FeedPrice[Price per kg],\"Unknown\",0)*O71","v":2062.35960703918},96283.382744610979,{"$f":"_xlfn.XLOOKUP(O71,LabourFromFeed[Feed Quantity (kg)],LabourFromFeed[No. Labour],\"Out of range\",-1)","v":1},{"$f":"T71*OperatingCosts!$C$9","v":1200},84000]
[70,{"$f":"IF(A72<='S2-Double'!$C$7, B71*EXP((LN((E71/100)+1))*1),)","v":213.81399975489433},{"$f":"_xlfn.XLOOKUP($B72,FeedTables!$C$42:$T$42,FeedTables!$C$44:$T$44,,-1)","v":2.5479057505037064},{"$f":"_xlfn.XLOOKUP($B72,FeedTables!$C$42:$T$42,FeedTables!$C$45:$T$45,,-1)","v":1.4641748046312828},{"$f":"_xlfn.XLOOKUP($B72,FeedTables!$C$42:$T$42,FeedTables!$C$46:$T$46,,-1)*_xlfn.XLOOKUP(N71,DensityMultiplier[Biomass kg/m3],DensityMultiplier[Multiplier],,-1)","v":1.653156751039756},3875.5511399632965,{"$f":"IF(A72<='S2-Double'!$C$7,('Growth-Model-2'!G71*EXP($AA$7)),0)","v":6.6913571919885581E-4},{"$f":"IF(A72<='S2-Double'!$C$7,$AD$6*EXP($AD$7*('S2-Double'!C$7-'Growth-Model-2'!A72)),0)","v":6.1363336541801583E-6},174.44953530875634,4.307395933549539E-2,0.14438261854320603,8.6754102407857818,828.64709049019268,{"$f":"M72/'S2-Double'!$C$17","v":30.690632981118249},21.113146869981271,968.48873138912597,{"$f":"_xlfn.XLOOKUP(B72,FeedTables!$C$17:$T$17,FeedTables!$C$31:$T$31,,-1)","v":"Unga 4mm"},{"$f":"_xlfn.XLOOKUP(Q72,FeedPrice[Feed],FeedPrice[Price per kg],\"Unknown\",0)*O72","v":2097.1709899099269},98380.553734520901,{"$f":"_xlfn.XLOOKUP(O72,LabourFromFeed[Feed Quantity (kg)],LabourFromFeed[No. Labour],\"Out of range\",-1)","v":1},{"$f":"T72*OperatingCosts!$C$9","v":1200},85200]
[71,{"$f":"IF(A73<='S2-Double'!$C$7, B72*EXP((LN((E72/100)+1))*1),)","v":217.3486803265105},{"$f":"_xlfn.XLOOKUP($B73,FeedTables!$C$42:$T$42,FeedTables!$C$44:$T$44,,-1)","v":2.5479057505037064},{"$f":"_xlfn.XLOOKUP($B73,FeedTables!$C$42:$T$42,FeedTables!$C$45:$T$45,,-1)","v":1.4641748046312828},{"$f":"_xlfn.XLOOKUP($B73,FeedTables!$C$42:$T$42,FeedTables!$C$46:$T$46,,-1)*_xlfn.XLOOKUP(N72,DensityMultiplier[Biomass kg/m3],DensityMultiplier[Multiplier],,-1)","v":1.653156751039756},3875.5504646912436,{"$f":"IF(A73<='S2-Double'!$C$7,('Growth-Model-2'!G72*EXP($AA$7)),0)","v":5.7593045082537291E-4},{"$f":"IF(A73<='S2-Double'!$C$7,$AD$6*EXP($AD$7*('S2-Double'!C$7-'Growth-Model-2'!A73)),0)","v":7.4949348502067142E-6},174.45011873414202,4.307410339114618E-2,0.12680673764557265,8.6755370475234272,842.34577903943637,{"$f":"M73/'S2-Double'!$C$17","v":31.197991816275422},21.462176543271042,989.95090793239706,{"$f":"_xlfn.XLOOKUP(B73,FeedTables!$C$17:$T$17,FeedTables!$C$31:$T$31,,-1)","v":"Unga 4mm"},{"$f":"_xlfn.XLOOKUP(Q73,FeedPrice[Feed],FeedPrice[Price per kg],\"Unknown\",0)*O73","v":2131.8401422607672},100512.39387678167,{"$f":"_xlfn.XLOOKUP(O73,LabourFromFeed[Feed Quantity (kg)],LabourFromFeed[No. Labour],\"Out of range\",-1)","v":1},{"$f":"T73*OperatingCosts!$C$9","v":1200},86400]
[72,{"$f":"IF(A74<='S2-Double'!$C$7, B73*EXP((LN((E73/100)+1))*1),)","v":220.94179470862406},{"$f":"_xlfn.XLOOKUP($B74,FeedTables!$C$42:$T$42,FeedTables!$C$44:$T$44,,-1)","v":2.5479057505037064},{"$f":"_xlfn.XLOOKUP($B74,FeedTables!$C$42:$T$42,FeedTables!$C$45:$T$45,,-1)","v":1.4641748046312828},{"$f":"_xlfn.XLOOKUP($B74,FeedTables!$C$42:$T$42,FeedTables!$C$46:$T$46,,-1)*_xlfn.XLOOKUP(N73,DensityMultiplier[Biomass kg/m3],DensityMultiplier[Multiplier],,-1)","v":1.653156751039756},3875.5498812658579,{"$f":"IF(A74<='S2-Double'!$C$7,('Growth-Model-2'!G73*EXP($AA$7)),0)","v":4.95707932891478E-4},{"$f":"IF(A74<='S2-Double'!$C$7,$AD$6*EXP($AD$7*('S2-Double'!C$7-'Growth-Model-2'!A74)),0)","v":9.1543340982732685E-6},174.450623596409,4.3074228048496047E-2,0.11154517534938017,8.6756485926987761,856.27094624967344,{"$f":"M74/'S2-Double'!$C$17","v":31.713738749987904},21.816976679387931,1011.767884611785,{"$f":"_xlfn.XLOOKUP(B74,FeedTables!$C$17:$T$17,FeedTables!$C$31:$T$31,,-1)","v":"Unga 4mm"},{"$f":"_xlfn.XLOOKUP(Q74,FeedPrice[Feed],FeedPrice[Price per kg],\"Unknown\",0)*O74","v":2167.0824752612712},102679.47635204294,{"$f":"_xlfn.XLOOKUP(O74,LabourFromFeed[Feed Quantity (kg)],LabourFromFeed[No. Labour],\"Out of range\",-1)","v":1},{"$f":"T74*OperatingCosts!$C$9","v":1200},87600]
[73,{"$f":"IF(A75<='S2-Double'!$C$7, B74*EXP((LN((E74/100)+1))*1),)","v":224.59430890371809},{"$f":"_xlfn.XLOOKUP($B75,FeedTables!$C$42:$T$42,FeedTables!$C$44:$T$44,,-1)","v":2.5479057505037064},{"$f":"_xlfn.XLOOKUP($B75,FeedTables!$C$42:$T$42,FeedTables!$C$45:$T$45,,-1)","v":1.4641748046312828},{"$f":"_xlfn.XLOOKUP($B75,FeedTables!$C$42:$T$42,FeedTables!$C$46:$T$46,,-1)*_xlfn.XLOOKUP(N74,DensityMultiplier[Biomass kg/m3],DensityMultiplier[Multiplier],,-1)","v":1.653156751039756},3875.5493764035909,{"$f":"IF(A75<='S2-Double'!$C$7,('Growth-Model-2'!G74*EXP($AA$7)),0)","v":4.2665977181687237E-4},{"$f":"IF(A75<='S2-Double'!$C$7,$AD$6*EXP($AD$7*('S2-Double'!C$7-'Growth-Model-2'!A75)),0)","v":1.1181128916750654E-5},174.45106143730973,4.3074336157360428E-2,9.8336574510049499E-2,8.6757469292732861,870.42633381560017,{"$f":"M75/'S2-Double'!$C$17","v":32.238012363540747},22.177642613186265,1033.9455272249713,{"$f":"_xlfn.XLOOKUP(B75,FeedTables!$C$17:$T$17,FeedTables!$C$31:$T$31,,-1)","v":"Unga 4mm"},{"$f":"_xlfn.XLOOKUP(Q75,FeedPrice[Feed],FeedPrice[Price per kg],\"Unknown\",0)*O75","v":2202.9074585320532},104882.38381057499,{"$f":"_xlfn.XLOOKUP(O75,LabourFromFeed[Feed Quantity (kg)],LabourFromFeed[No. Labour],\"Out of range\",-1)","v":1},{"$f":"T75*OperatingCosts!$C$9","v":1200},88800]
[74,{"$f":"IF(A76<='S2-Double'!$C$7, B75*EXP((LN((E75/100)+1))*1),)","v":228.30720488381101},{"$f":"_xlfn.XLOOKUP($B76,FeedTables!$C$42:$T$42,FeedTables!$C$44:$T$44,,-1)","v":2.5479057505037064},{"$f":"_xlfn.XLOOKUP($B76,FeedTables!$C$42:$T$42,FeedTables!$C$45:$T$45,,-1)","v":1.4641748046312828},{"$f":"_xlfn.XLOOKUP($B76,FeedTables!$C$42:$T$42,FeedTables!$C$46:$T$46,,-1)*_xlfn.XLOOKUP(N75,DensityMultiplier[Biomass kg/m3],DensityMultiplier[Multiplier],,-1)","v":1.653156751039756},3875.5489385626902,{"$f":"IF(A76<='S2-Double'!$C$7,('Growth-Model-2'!G75*EXP($AA$7)),0)","v":3.6722946882247715E-4},{"$f":"IF(A76<='S2-Double'!$C$7,$AD$6*EXP($AD$7*('S2-Double'!C$7-'Growth-Model-2'!A76)),0)","v":1.3656661698263673E-5},174.45144232344026,4.3074430203318581E-2,8.6959047838200756E-2,8.6758338883211241,884.81574555366831,{"$f":"M76/'S2-Double'!$C$17","v":32.770953539024752},22.544271262324159,1056.4897984872955,{"$f":"_xlfn.XLOOKUP(B76,FeedTables!$C$17:$T$17,FeedTables!$C$31:$T$31,,-1)","v":"Unga 4mm"},{"$f":"_xlfn.XLOOKUP(Q76,FeedPrice[Feed],FeedPrice[Price per kg],\"Unknown\",0)*O76","v":2239.3247189137851},107121.70852948878,{"$f":"_xlfn.XLOOKUP(O76,LabourFromFeed[Feed Quantity (kg)],LabourFromFeed[No. Labour],\"Out of range\",-1)","v":1},{"$f":"T76*OperatingCosts!$C$9","v":1200},90000]
[75,{"$f":"IF(A77<='S2-Double'!$C$7, B76*EXP((LN((E76/100)+1))*1),)","v":232.08148085445791},{"$f":"_xlfn.XLOOKUP($B77,FeedTables!$C$42:$T$42,FeedTables!$C$44:$T$44,,-1)","v":2.209351174006021},{"$f":"_xlfn.XLOOKUP($B77,FeedTables!$C$42:$T$42,FeedTables!$C$45:$T$45,,-1)","v":1.5019599136153996},{"$f":"_xlfn.XLOOKUP($B77,FeedTables!$C$42:$T$42,FeedTables!$C$46:$T$46,,-1)*_xlfn.XLOOKUP(N76,DensityMultiplier[Biomass kg/m3],DensityMultiplier[Multiplier],,-1)","v":1.3974298490120503},3875.5485576765595,{"$f":"IF(A77<='S2-Double'!$C$7,('Growth-Model-2'!G76*EXP($AA$7)),0)","v":3.1607733299384317E-4},{"$f":"IF(A77<='S2-Double'!$C$7,$AD$6*EXP($AD$7*('S2-Double'!C$7-'Growth-Model-2'!A77)),0)","v":1.6680284265519618E-5},174.45177508105752,4.3074512365693214E-2,7.7226880579153848E-2,8.6759111152017034,899.44304838893447,{"$f":"M77/'S2-Double'!$C$17","v":33.312705495886462},19.87185554909647,1076.3616540363919,{"$f":"_xlfn.XLOOKUP(B77,FeedTables!$C$17:$T$17,FeedTables!$C$31:$T$31,,-1)","v":"Unga 4mm"},{"$f":"_xlfn.XLOOKUP(Q77,FeedPrice[Feed],FeedPrice[Price per kg],\"Unknown\",0)*O77","v":1973.8733988773072},109095.58192836608,{"$f":"_xlfn.XLOOKUP(O77,LabourFromFeed[Feed Quantity (kg)],LabourFromFeed[No. Labour],\"Out of range\",-1)","v":1},{"$f":"T77*OperatingCosts!$C$9","v":1200},91200]
[76,{"$f":"IF(A78<='S2-Double'!$C$7, B77*EXP((LN((E77/100)+1))*1),)","v":235.32465674194731},{"$f":"_xlfn.XLOOKUP($B78,FeedTables!$C$42:$T$42,FeedTables!$C$44:$T$44,,-1)","v":2.209351174006021},{"$f":"_xlfn.XLOOKUP($B78,FeedTables!$C$42:$T$42,FeedTables!$C$45:$T$45,,-1)","v":1.5019599136153996},{"$f":"_xlfn.XLOOKUP($B78,FeedTables!$C$42:$T$42,FeedTables!$C$46:$T$46,,-1)*_xlfn.XLOOKUP(N77,DensityMultiplier[Biomass kg/m3],DensityMultiplier[Multiplier],,-1)","v":1.3974298490120503},3875.5482249189422,{"$f":"IF(A78<='S2-Double'!$C$7,('Growth-Model-2'!G77*EXP($AA$7)),0)","v":2.7205028167495991E-4},{"$f":"IF(A78<='S2-Double'!$C$7,$AD$6*EXP($AD$7*('S2-Double'!C$7-'Growth-Model-2'!A78)),0)","v":2.0373345208801326E-5},174.45206750468441,4.3074584569057876E-2,6.8814489619656388E-2,8.6759799296913229,912.01205571591333,{"$f":"M78/'S2-Double'!$C$17","v":33.77822428577457},20.149549060035977,1096.5112030964278,{"$f":"_xlfn.XLOOKUP(B78,FeedTables!$C$17:$T$17,FeedTables!$C$31:$T$31,,-1)","v":"Unga 4mm"},{"$f":"_xlfn.XLOOKUP(Q78,FeedPrice[Feed],FeedPrice[Price per kg],\"Unknown\",0)*O78","v":2001.4567230882797},111097.03865145436,{"$f":"_xlfn.XLOOKUP(O78,LabourFromFeed[Feed Quantity (kg)],LabourFromFeed[No. Labour],\"Out of range\",-1)","v":1},{"$f":"T78*OperatingCosts!$C$9","v":1200},92400]
[77,{"$f":"IF(A79<='S2-Double'!$C$7, B78*EXP((LN((E78/100)+1))*1),)","v":238.61315373734445},{"$f":"_xlfn.XLOOKUP($B79,FeedTables!$C$42:$T$42,FeedTables!$C$44:$T$44,,-1)","v":2.209351174006021},{"$f":"_xlfn.XLOOKUP($B79,FeedTables!$C$42:$T$42,FeedTables!$C$45:$T$45,,-1)","v":1.5019599136153996},{"$f":"_xlfn.XLOOKUP($B79,FeedTables!$C$42:$T$42,FeedTables!$C$46:$T$46,,-1)*_xlfn.XLOOKUP(N78,DensityMultiplier[Biomass kg/m3],DensityMultiplier[Multiplier],,-1)","v":1.3974298490120503},3875.5479324953153,{"$f":"IF(A79<='S2-Double'!$C$7,('Growth-Model-2'!G78*EXP($AA$7)),0)","v":2.3415584742632174E-4},{"$f":"IF(A79<='S2-Double'!$C$7,$AD$6*EXP($AD$7*('S2-Double'!C$7-'Growth-Model-2'!A79)),0)","v":2.4884060030979249E-5},174.45232654459187,4.3074648529528858E-2,6.181032926221644E-2,8.6760417400205849,924.75671463295214,{"$f":"M79/'S2-Double'!$C$17","v":34.250248690109338},20.431123331442638,1116.9423264278705,{"$f":"_xlfn.XLOOKUP(B79,FeedTables!$C$17:$T$17,FeedTables!$C$31:$T$31,,-1)","v":"Unga 4mm"},{"$f":"_xlfn.XLOOKUP(Q79,FeedPrice[Feed],FeedPrice[Price per kg],\"Unknown\",0)*O79","v":2029.4255236245303},113126.4641750789,{"$f":"_xlfn.XLOOKUP(O79,LabourFromFeed[Feed Quantity (kg)],LabourFromFeed[No. Labour],\"Out of range\",-1)","v":1},{"$f":"T79*OperatingCosts!$C$9","v":1200},93600]
[78,{"$f":"IF(A80<='S2-Double'!$C$7, B79*EXP((LN((E79/100)+1))*1),)","v":241.94760517133912},{"$f":"_xlfn.XLOOKUP($B80,FeedTables!$C$42:$T$42,FeedTables!$C$44:$T$44,,-1)","v":2.209351174006021},{"$f":"_xlfn.XLOOKUP($B80,FeedTables!$C$42:$T$42,FeedTables!$C$45:$T$45,,-1)","v":1.5019599136153996},{"$f":"_xlfn.XLOOKUP($B80,FeedTables!$C$42:$T$42,FeedTables!$C$46:$T$46,,-1)*_xlfn.XLOOKUP(N79,DensityMultiplier[Biomass kg/m3],DensityMultiplier[Multiplier],,-1)","v":1.3974298490120503},3875.5476734554077,{"$f":"IF(A80<='S2-Double'!$C$7,('Growth-Model-2'!G79*EXP($AA$7)),0)","v":2.0153980560640397E-4},{"$f":"IF(A80<='S2-Double'!$C$7,$AD$6*EXP($AD$7*('S2-Double'!C$7-'Growth-Model-2'!A80)),0)","v":3.0393459556061274E-5},174.45255847785702,4.3074705797001733E-2,5.6115698065627648E-2,8.6760978557186501,937.6794783198909,{"$f":"M80/'S2-Double'!$C$17","v":34.728869567403365},20.716632562674043,1137.6589589905445,{"$f":"_xlfn.XLOOKUP(B80,FeedTables!$C$17:$T$17,FeedTables!$C$31:$T$31,,-1)","v":"Unga 4mm"},{"$f":"_xlfn.XLOOKUP(Q80,FeedPrice[Feed],FeedPrice[Price per kg],\"Unknown\",0)*O80","v":2057.7851841136689},115184.24935919257,{"$f":"_xlfn.XLOOKUP(O80,LabourFromFeed[Feed Quantity (kg)],LabourFromFeed[No. Labour],\"Out of range\",-1)","v":1},{"$f":"T80*OperatingCosts!$C$9","v":1200},94800]
[79,{"$f":"IF(A81<='S2-Double'!$C$7, B80*EXP((LN((E80/100)+1))*1),)","v":245.32865322497324},{"$f":"_xlfn.XLOOKUP($B81,FeedTables!$C$42:$T$42,FeedTables!$C$44:$T$44,,-1)","v":2.209351174006021},{"$f":"_xlfn.XLOOKUP($B81,FeedTables!$C$42:$T$42,FeedTables!$C$45:$T$45,,-1)","v":1.5019599136153996},{"$f":"_xlfn.XLOOKUP($B81,FeedTables!$C$42:$T$42,FeedTables!$C$46:$T$46,,-1)*_xlfn.XLOOKUP(N80,DensityMultiplier[Biomass kg/m3],DensityMultiplier[Multiplier],,-1)","v":1.3974298490120503},3875.5474415221429,{"$f":"IF(A81<='S2-Double'!$C$7,('Growth-Model-2'!G80*EXP($AA$7)),0)","v":1.7346691825258749E-4},{"$f":"IF(A81<='S2-Double'!$C$7,$AD$6*EXP($AD$7*('S2-Double'!C$7-'Growth-Model-2'!A81)),0)","v":3.7122655331802788E-5},174.45276906743061,4.3074757794427314E-2,5.1663656470679865E-2,8.6761495193751212,950.78283433811805,{"$f":"M81/'S2-Double'!$C$17","v":35.214179049559931},21.006131712696934,1158.6650907032415,{"$f":"_xlfn.XLOOKUP(B81,FeedTables!$C$17:$T$17,FeedTables!$C$31:$T$31,,-1)","v":"Unga 4mm"},{"$f":"_xlfn.XLOOKUP(Q81,FeedPrice[Feed],FeedPrice[Price per kg],\"Unknown\",0)*O81","v":2086.5411636353579},117270.79052282793,{"$f":"_xlfn.XLOOKUP(O81,LabourFromFeed[Feed Quantity (kg)],LabourFromFeed[No. Labour],\"Out of range\",-1)","v":1},{"$f":"T81*OperatingCosts!$C$9","v":1200},96000]
[80,{"$f":"IF(A82<='S2-Double'!$C$7, B81*EXP((LN((E81/100)+1))*1),)","v":248.75694905331829},{"$f":"_xlfn.XLOOKUP($B82,FeedTables!$C$42:$T$42,FeedTables!$C$44:$T$44,,-1)","v":2.209351174006021},{"$f":"_xlfn.XLOOKUP($B82,FeedTables!$C$42:$T$42,FeedTables!$C$45:$T$45,,-1)","v":1.5019599136153996},{"$f":"_xlfn.XLOOKUP($B82,FeedTables!$C$42:$T$42,FeedTables!$C$46:$T$46,,-1)*_xlfn.XLOOKUP(N81,DensityMultiplier[Biomass kg/m3],DensityMultiplier[Multiplier],,-1)","v":1.3680102732433757},3875.5472309325696,{"$f":"IF(A82<='S2-Double'!$C$7,('Growth-Model-2'!G81*EXP($AA$7)),0)","v":1.4930436018587549E-4},{"$f":"IF(A82<='S2-Double'!$C$7,$AD$6*EXP($AD$7*('S2-Double'!C$7-'Growth-Model-2'!A82)),0)","v":4.5341713612493307E-5},174.4529637135044,4.307480585518627E-2,4.841956346328926E-2,8.6761979389385839,964.06930507882191,{"$f":"M82/'S2-Double'!$C$17","v":35.706270558474884},21.29967650999064,1179.9647672132321,{"$f":"_xlfn.XLOOKUP(B82,FeedTables!$C$17:$T$17,FeedTables!$C$31:$T$31,,-1)","v":"Unga 4mm"},{"$f":"_xlfn.XLOOKUP(Q82,FeedPrice[Feed],FeedPrice[Price per kg],\"Unknown\",0)*O82","v":2115.6989977050212},119386.48952053295,{"$f":"_xlfn.XLOOKUP(O82,LabourFromFeed[Feed Quantity (kg)],LabourFromFeed[No. Labour],\"Out of range\",-1)","v":1},{"$f":"T82*OperatingCosts!$C$9","v":1200},97200]
[81,{"$f":"IF(A83<='S2-Double'!$C$7, B82*EXP((LN((E82/100)+1))*1),)","v":252.15996967177449},{"$f":"_xlfn.XLOOKUP($B83,FeedTables!$C$42:$T$42,FeedTables!$C$44:$T$44,,-1)","v":2.209351174006021},{"$f":"_xlfn.XLOOKUP($B83,FeedTables!$C$42:$T$42,FeedTables!$C$45:$T$45,,-1)","v":1.5019599136153996},{"$f":"_xlfn.XLOOKUP($B83,FeedTables!$C$42:$T$42,FeedTables!$C$46:$T$46,,-1)*_xlfn.XLOOKUP(N82,DensityMultiplier[Biomass kg/m3],DensityMultiplier[Multiplier],,-1)","v":1.3680102732433757},3875.5470362864958,{"$f":"IF(A83<='S2-Double'!$C$7,('Growth-Model-2'!G82*EXP($AA$7)),0)","v":1.2850745372702287E-4},{"$f":"IF(A83<='S2-Double'!$C$7,$AD$6*EXP($AD$7*('S2-Double'!C$7-'Growth-Model-2'!A83)),0)","v":5.53804940660078E-5},174.4531476014522,4.3074851259617825E-2,4.6369179338495464E-2,8.6762443081179228,977.2578231315382,{"$f":"M83/'S2-Double'!$C$17","v":36.19473419005697},21.591057188422326,1201.5558244016545,{"$f":"_xlfn.XLOOKUP(B83,FeedTables!$C$17:$T$17,FeedTables!$C$31:$T$31,,-1)","v":"Unga 4mm"},{"$f":"_xlfn.XLOOKUP(Q83,FeedPrice[Feed],FeedPrice[Price per kg],\"Unknown\",0)*O83","v":2144.6418696317087},121531.13139016466,{"$f":"_xlfn.XLOOKUP(O83,LabourFromFeed[Feed Quantity (kg)],LabourFromFeed[No. Labour],\"Out of range\",-1)","v":1},{"$f":"T83*OperatingCosts!$C$9","v":1200},98400]
[82,{"$f":"IF(A84<='S2-Double'!$C$7, B83*EXP((LN((E83/100)+1))*1),)","v":255.60954396189175},{"$f":"_xlfn.XLOOKUP($B84,FeedTables!$C$42:$T$42,FeedTables!$C$44:$T$44,,-1)","v":2.209351174006021},{"$f":"_xlfn.XLOOKUP($B84,FeedTables!$C$42:$T$42,FeedTables!$C$45:$T$45,,-1)","v":1.5019599136153996},{"$f":"_xlfn.XLOOKUP($B84,FeedTables!$C$42:$T$42,FeedTables!$C$46:$T$46,,-1)*_xlfn.XLOOKUP(N83,DensityMultiplier[Biomass kg/m3],DensityMultiplier[Multiplier],,-1)","v":1.3680102732433757},3875.5468523985483,{"$f":"IF(A84<='S2-Double'!$C$7,('Growth-Model-2'!G83*EXP($AA$7)),0)","v":1.106073904529226E-4},{"$f":"IF(A84<='S2-Double'!$C$7,$AD$6*EXP($AD$7*('S2-Double'!C$7-'Growth-Model-2'!A84)),0)","v":6.7641888200494922E-5},174.45332585073083,4.3074895271785395E-2,4.5562216828136215E-2,8.6762898703347506,990.62676354453799,{"$f":"M84/'S2-Double'!$C$17","v":36.689880131279182},21.886424030389101,1223.4422484320437,{"$f":"_xlfn.XLOOKUP(B84,FeedTables!$C$17:$T$17,FeedTables!$C$31:$T$31,,-1)","v":"Unga 4mm"},{"$f":"_xlfn.XLOOKUP(Q84,FeedPrice[Feed],FeedPrice[Price per kg],\"Unknown\",0)*O84","v":2173.9806875809527},123705.11207774562,{"$f":"_xlfn.XLOOKUP(O84,LabourFromFeed[Feed Quantity (kg)],LabourFromFeed[No. Labour],\"Out of range\",-1)","v":1},{"$f":"T84*OperatingCosts!$C$9","v":1200},99600]
[83,{"$f":"IF(A85<='S2-Double'!$C$7, B84*EXP((LN((E84/100)+1))*1),)","v":259.10630878268097},{"$f":"_xlfn.XLOOKUP($B85,FeedTables!$C$42:$T$42,FeedTables!$C$44:$T$44,,-1)","v":2.209351174006021},{"$f":"_xlfn.XLOOKUP($B85,FeedTables!$C$42:$T$42,FeedTables!$C$45:$T$45,,-1)","v":1.5019599136153996},{"$f":"_xlfn.XLOOKUP($B85,FeedTables!$C$42:$T$42,FeedTables!$C$46:$T$46,,-1)*_xlfn.XLOOKUP(N84,DensityMultiplier[Biomass kg/m3],DensityMultiplier[Multiplier],,-1)","v":1.3680102732433757},3875.5466741492696,{"$f":"IF(A85<='S2-Double'!$C$7,('Growth-Model-2'!G84*EXP($AA$7)),0)","v":9.520066321439128E-5},{"$f":"IF(A85<='S2-Double'!$C$7,$AD$6*EXP($AD$7*('S2-Double'!C$7-'Growth-Model-2'!A85)),0)","v":8.2617988815246275E-5},174.45350366938288,4.30749391776254E-2,4.6073934560111371E-2,8.6763359442693115,1004.1785932538129,{"$f":"M85/'S2-Double'!$C$17","v":37.191799750141222},22.185831539170263,1245.628079971214,{"$f":"_xlfn.XLOOKUP(B85,FeedTables!$C$17:$T$17,FeedTables!$C$31:$T$31,,-1)","v":"Unga 4mm"},{"$f":"_xlfn.XLOOKUP(Q85,FeedPrice[Feed],FeedPrice[Price per kg],\"Unknown\",0)*O85","v":2203.7208653689363},125908.83294311455,{"$f":"_xlfn.XLOOKUP(O85,LabourFromFeed[Feed Quantity (kg)],LabourFromFeed[No. Labour],\"Out of range\",-1)","v":1},{"$f":"T85*OperatingCosts!$C$9","v":1200},100800]
[84,{"$f":"IF(A86<='S2-Double'!$C$7, B85*EXP((LN((E85/100)+1))*1),)","v":262.65090970544975},{"$f":"_xlfn.XLOOKUP($B86,FeedTables!$C$42:$T$42,FeedTables!$C$44:$T$44,,-1)","v":2.209351174006021},{"$f":"_xlfn.XLOOKUP($B86,FeedTables!$C$42:$T$42,FeedTables!$C$45:$T$45,,-1)","v":1.5019599136153996},{"$f":"_xlfn.XLOOKUP($B86,FeedTables!$C$42:$T$42,FeedTables!$C$46:$T$46,,-1)*_xlfn.XLOOKUP(N85,DensityMultiplier[Biomass kg/m3],DensityMultiplier[Multiplier],,-1)","v":1.3680102732433757},3875.5464963306176,{"$f":"IF(A86<='S2-Double'!$C$7,('Growth-Model-2'!G85*EXP($AA$7)),0)","v":8.1939970189582158E-5},{"$f":"IF(A86<='S2-Double'!$C$7,$AD$6*EXP($AD$7*('S2-Double'!C$7-'Growth-Model-2'!A86)),0)","v":1.009098394125878E-4},174.45368651919247,4.307498432572654E-2,4.802566883147822E-2,8.6763839699381435,1017.9158128670052,{"$f":"M86/'S2-Double'!$C$17","v":37.700585661740938},22.489334961970112,1268.1174149331841,{"$f":"_xlfn.XLOOKUP(B86,FeedTables!$C$17:$T$17,FeedTables!$C$31:$T$31,,-1)","v":"Unga 4mm"},{"$f":"_xlfn.XLOOKUP(Q86,FeedPrice[Feed],FeedPrice[Price per kg],\"Unknown\",0)*O86","v":2233.8678907059875},128142.70083382053,{"$f":"_xlfn.XLOOKUP(O86,LabourFromFeed[Feed Quantity (kg)],LabourFromFeed[No. Labour],\"Out of range\",-1)","v":1},{"$f":"T86*OperatingCosts!$C$9","v":1200},102000]
[85,{"$f":"IF(A87<='S2-Double'!$C$7, B86*EXP((LN((E86/100)+1))*1),)","v":266.24400113298748},{"$f":"_xlfn.XLOOKUP($B87,FeedTables!$C$42:$T$42,FeedTables!$C$44:$T$44,,-1)","v":2.209351174006021},{"$f":"_xlfn.XLOOKUP($B87,FeedTables!$C$42:$T$42,FeedTables!$C$45:$T$45,,-1)","v":1.5019599136153996},{"$f":"_xlfn.XLOOKUP($B87,FeedTables!$C$42:$T$42,FeedTables!$C$46:$T$46,,-1)*_xlfn.XLOOKUP(N86,DensityMultiplier[Biomass kg/m3],DensityMultiplier[Multiplier],,-1)","v":1.3680102732433757},3875.5463134808078,{"$f":"IF(A87<='S2-Double'!$C$7,('Growth-Model-2'!G86*EXP($AA$7)),0)","v":7.0526385930204822E-5},{"$f":"IF(A87<='S2-Double'!$C$7,$AD$6*EXP($AD$7*('S2-Double'!C$7-'Growth-Model-2'!A87)),0)","v":1.2325155618403468E-4},174.45388029713459,4.3075032172131995E-2,5.1592214639811562E-2,8.6764355621527827,1031.8409570773297,{"$f":"M87/'S2-Double'!$C$17","v":38.216331743604805},22.796990299062948,1290.9144052322472,{"$f":"_xlfn.XLOOKUP(B87,FeedTables!$C$17:$T$17,FeedTables!$C$31:$T$31,,-1)","v":"Unga 4mm"},{"$f":"_xlfn.XLOOKUP(Q87,FeedPrice[Feed],FeedPrice[Price per kg],\"Unknown\",0)*O87","v":2264.4273261049525},130407.12815992549,{"$f":"_xlfn.XLOOKUP(O87,LabourFromFeed[Feed Quantity (kg)],LabourFromFeed[No. Labour],\"Out of range\",-1)","v":1},{"$f":"T87*OperatingCosts!$C$9","v":1200},103200]
[86,{"$f":"IF(A88<='S2-Double'!$C$7, B87*EXP((LN((E87/100)+1))*1),)","v":269.88624642038099},{"$f":"_xlfn.XLOOKUP($B88,FeedTables!$C$42:$T$42,FeedTables!$C$44:$T$44,,-1)","v":2.209351174006021},{"$f":"_xlfn.XLOOKUP($B88,FeedTables!$C$42:$T$42,FeedTables!$C$45:$T$45,,-1)","v":1.5019599136153996},{"$f":"_xlfn.XLOOKUP($B88,FeedTables!$C$42:$T$42,FeedTables!$C$46:$T$46,,-1)*_xlfn.XLOOKUP(N87,DensityMultiplier[Biomass kg/m3],DensityMultiplier[Multiplier],,-1)","v":1.3680102732433757},3875.5461197028658,{"$f":"IF(A88<='S2-Double'!$C$7,('Growth-Model-2'!G87*EXP($AA$7)),0)","v":6.0702622918559259E-5},{"$f":"IF(A88<='S2-Double'!$C$7,$AD$6*EXP($AD$7*('S2-Double'!C$7-'Growth-Model-2'!A88)),0)","v":1.50539790670713E-4},174.45409153954819,4.307508433075264E-2,5.7011422088390371E-2,8.6764925735748708,1045.9565950756789,{"$f":"M88/'S2-Double'!$C$17","v":38.739133150951069},23.108854312897918,1314.023259545145,{"$f":"_xlfn.XLOOKUP(B88,FeedTables!$C$17:$T$17,FeedTables!$C$31:$T$31,,-1)","v":"Unga 4mm"},{"$f":"_xlfn.XLOOKUP(Q88,FeedPrice[Feed],FeedPrice[Price per kg],\"Unknown\",0)*O88","v":2295.4048097855816},132702.53296971106,{"$f":"_xlfn.XLOOKUP(O88,LabourFromFeed[Feed Quantity (kg)],LabourFromFeed[No. Labour],\"Out of range\",-1)","v":1},{"$f":"T88*OperatingCosts!$C$9","v":1200},104400]
[87,{"$f":"IF(A89<='S2-Double'!$C$7, B88*EXP((LN((E88/100)+1))*1),)","v":273.57831799748277},{"$f":"_xlfn.XLOOKUP($B89,FeedTables!$C$42:$T$42,FeedTables!$C$44:$T$44,,-1)","v":2.209351174006021},{"$f":"_xlfn.XLOOKUP($B89,FeedTables!$C$42:$T$42,FeedTables!$C$45:$T$45,,-1)","v":1.5019599136153996},{"$f":"_xlfn.XLOOKUP($B89,FeedTables!$C$42:$T$42,FeedTables!$C$46:$T$46,,-1)*_xlfn.XLOOKUP(N88,DensityMultiplier[Biomass kg/m3],DensityMultiplier[Multiplier],,-1)","v":1.3680102732433757},3875.5459084604522,{"$f":"IF(A89<='S2-Double'!$C$7,('Growth-Model-2'!G88*EXP($AA$7)),0)","v":5.2247231735926478E-5},{"$f":"IF(A89<='S2-Double'!$C$7,$AD$6*EXP($AD$7*('S2-Double'!C$7-'Growth-Model-2'!A89)),0)","v":1.8386971553806364E-4},174.45432765649545,4.3075142631233444E-2,6.4596477285918538E-2,8.6765571700521562,1060.2653309586369,{"$f":"M89/'S2-Double'!$C$17","v":39.269086331801368},23.42498453711347,1337.4482440822585,{"$f":"_xlfn.XLOOKUP(B89,FeedTables!$C$17:$T$17,FeedTables!$C$31:$T$31,,-1)","v":"Unga 4mm"},{"$f":"_xlfn.XLOOKUP(Q89,FeedPrice[Feed],FeedPrice[Price per kg],\"Unknown\",0)*O89","v":2326.8060565699348},135029.339026281,{"$f":"_xlfn.XLOOKUP(O89,LabourFromFeed[Feed Quantity (kg)],LabourFromFeed[No. Labour],\"Out of range\",-1)","v":1},{"$f":"T89*OperatingCosts!$C$9","v":1200},105600]
[88,{"$f":"IF(A90<='S2-Double'!$C$7, B89*EXP((LN((E89/100)+1))*1),)","v":277.32089749305476},{"$f":"_xlfn.XLOOKUP($B90,FeedTables!$C$42:$T$42,FeedTables!$C$44:$T$44,,-1)","v":2.209351174006021},{"$f":"_xlfn.XLOOKUP($B90,FeedTables!$C$42:$T$42,FeedTables!$C$45:$T$45,,-1)","v":1.5019599136153996},{"$f":"_xlfn.XLOOKUP($B90,FeedTables!$C$42:$T$42,FeedTables!$C$46:$T$46,,-1)*_xlfn.XLOOKUP(N89,DensityMultiplier[Biomass kg/m3],DensityMultiplier[Multiplier],,-1)","v":1.3680102732433757},3875.545672343505,{"$f":"IF(A90<='S2-Double'!$C$7,('Growth-Model-2'!G89*EXP($AA$7)),0)","v":4.4969609101240341E-5},{"$f":"IF(A90<='S2-Double'!$C$7,$AD$6*EXP($AD$7*('S2-Double'!C$7-'Growth-Model-2'!A90)),0)","v":2.2457897770031661E-4},174.45459720508225,4.3075209186440061E-2,7.4751456009792341E-2,8.6766319215081662,1074.7698041296253,{"$f":"M90/'S2-Double'!$C$17","v":39.806289041837971},23.745439285400089,1361.1936833676587,{"$f":"_xlfn.XLOOKUP(B90,FeedTables!$C$17:$T$17,FeedTables!$C$31:$T$31,,-1)","v":"Unga 4mm"},{"$f":"_xlfn.XLOOKUP(Q90,FeedPrice[Feed],FeedPrice[Price per kg],\"Unknown\",0)*O90","v":2358.6368587627194},137387.97588504371,{"$f":"_xlfn.XLOOKUP(O90,LabourFromFeed[Feed Quantity (kg)],LabourFromFeed[No. Labour],\"Out of range\",-1)","v":1},{"$f":"T90*OperatingCosts!$C$9","v":1200},106800]
[89,{"$f":"IF(A91<='S2-Double'!$C$7, B90*EXP((LN((E90/100)+1))*1),)","v":281.11467586061048},{"$f":"_xlfn.XLOOKUP($B91,FeedTables!$C$42:$T$42,FeedTables!$C$44:$T$44,,-1)","v":2.209351174006021},{"$f":"_xlfn.XLOOKUP($B91,FeedTables!$C$42:$T$42,FeedTables!$C$45:$T$45,,-1)","v":1.5019599136153996},{"$f":"_xlfn.XLOOKUP($B91,FeedTables!$C$42:$T$42,FeedTables!$C$46:$T$46,,-1)*_xlfn.XLOOKUP(N90,DensityMultiplier[Biomass kg/m3],DensityMultiplier[Multiplier],,-1)","v":1.3680102732433757},3875.5454027949181,{"$f":"IF(A91<='S2-Double'!$C$7,('Growth-Model-2'!G90*EXP($AA$7)),0)","v":3.8705701250154437E-5},{"$f":"IF(A91<='S2-Double'!$C$7,$AD$6*EXP($AD$7*('S2-Double'!C$7-'Growth-Model-2'!A91)),0)","v":2.7430138278795776E-4},174.45491021216628,4.3075286472139825E-2,8.7990884971448774E-2,8.6767199123931373,1089.4726896897723,{"$f":"M91/'S2-Double'!$C$17","v":40.350840358880454},24.070277660135961,1385.2639610277947,{"$f":"_xlfn.XLOOKUP(B91,FeedTables!$C$17:$T$17,FeedTables!$C$31:$T$31,,-1)","v":"Unga 4mm"},{"$f":"_xlfn.XLOOKUP(Q91,FeedPrice[Feed],FeedPrice[Price per kg],\"Unknown\",0)*O91","v":2390.903087009071},139778.87897205277,{"$f":"_xlfn.XLOOKUP(O91,LabourFromFeed[Feed Quantity (kg)],LabourFromFeed[No. Labour],\"Out of range\",-1)","v":1},{"$f":"T91*OperatingCosts!$C$9","v":1200},108000]
[90,{"$f":"IF(A92<='S2-Double'!$C$7, B91*EXP((LN((E91/100)+1))*1),)","v":284.96035350597845},{"$f":"_xlfn.XLOOKUP($B92,FeedTables!$C$42:$T$42,FeedTables!$C$44:$T$44,,-1)","v":2.209351174006021},{"$f":"_xlfn.XLOOKUP($B92,FeedTables!$C$42:$T$42,FeedTables!$C$45:$T$45,,-1)","v":1.5019599136153996},{"$f":"_xlfn.XLOOKUP($B92,FeedTables!$C$42:$T$42,FeedTables!$C$46:$T$46,,-1)*_xlfn.XLOOKUP(N91,DensityMultiplier[Biomass kg/m3],DensityMultiplier[Multiplier],,-1)","v":1.3238809095903634},3875.5450897878341,{"$f":"IF(A92<='S2-Double'!$C$7,('Growth-Model-2'!G91*EXP($AA$7)),0)","v":3.3314305799133255E-5},{"$f":"IF(A92<='S2-Double'!$C$7,$AD$6*EXP($AD$7*('S2-Double'!C$7-'Growth-Model-2'!A92)),0)","v":3.3503246550436051E-4},174.45527855893758,4.3075377421959896E-2,0.10496422616342937,8.6768248766193015,1104.3766988143002,{"$f":"M92/'S2-Double'!$C$17","v":40.902840696825933},24.399559560702681,1409.6635205884975,{"$f":"_xlfn.XLOOKUP(B92,FeedTables!$C$17:$T$17,FeedTables!$C$31:$T$31,,-1)","v":"Unga 4mm"},{"$f":"_xlfn.XLOOKUP(Q92,FeedPrice[Feed],FeedPrice[Price per kg],\"Unknown\",0)*O92","v":2423.6106911205534},142202.48966317333,{"$f":"_xlfn.XLOOKUP(O92,LabourFromFeed[Feed Quantity (kg)],LabourFromFeed[No. Labour],\"Out of range\",-1)","v":1},{"$f":"T92*OperatingCosts!$C$9","v":1200},109200]
[91,{"$f":"IF(A93<='S2-Double'!$C$7, B92*EXP((LN((E92/100)+1))*1),)","v":288.73288922594531},{"$f":"_xlfn.XLOOKUP($B93,FeedTables!$C$42:$T$42,FeedTables!$C$44:$T$44,,-1)","v":2.209351174006021},{"$f":"_xlfn.XLOOKUP($B93,FeedTables!$C$42:$T$42,FeedTables!$C$45:$T$45,,-1)","v":1.5019599136153996},{"$f":"_xlfn.XLOOKUP($B93,FeedTables!$C$42:$T$42,FeedTables!$C$46:$T$46,,-1)*_xlfn.XLOOKUP(N92,DensityMultiplier[Biomass kg/m3],DensityMultiplier[Multiplier],,-1)","v":1.3238809095903634},3875.5447214410628,{"$f":"IF(A93<='S2-Double'!$C$7,('Growth-Model-2'!G92*EXP($AA$7)),0)","v":2.8673888730377551E-5},{"$f":"IF(A93<='S2-Double'!$C$7,$AD$6*EXP($AD$7*('S2-Double'!C$7-'Growth-Model-2'!A93)),0)","v":4.0920957744022764E-4},174.45571644240374,4.3075485541334259E-2,0.12643135833171032,8.6769513079776335,1118.9972247460396,{"$f":"M93/'S2-Double'!$C$17","v":41.444341657260729},24.72257832202142,1434.386098910519,{"$f":"_xlfn.XLOOKUP(B93,FeedTables!$C$17:$T$17,FeedTables!$C$31:$T$31,,-1)","v":"Unga 4mm"},{"$f":"_xlfn.XLOOKUP(Q93,FeedPrice[Feed],FeedPrice[Price per kg],\"Unknown\",0)*O93","v":2455.6961769842201},144658.18584015756,{"$f":"_xlfn.XLOOKUP(O93,LabourFromFeed[Feed Quantity (kg)],LabourFromFeed[No. Labour],\"Out of range\",-1)","v":1},{"$f":"T93*OperatingCosts!$C$9","v":1200},110400]
[92,{"$f":"IF(A94<='S2-Double'!$C$7, B93*EXP((LN((E93/100)+1))*1),)","v":292.55536882611631},{"$f":"_xlfn.XLOOKUP($B94,FeedTables!$C$42:$T$42,FeedTables!$C$44:$T$44,,-1)","v":2.209351174006021},{"$f":"_xlfn.XLOOKUP($B94,FeedTables!$C$42:$T$42,FeedTables!$C$45:$T$45,,-1)","v":1.5019599136153996},{"$f":"_xlfn.XLOOKUP($B94,FeedTables!$C$42:$T$42,FeedTables!$C$46:$T$46,,-1)*_xlfn.XLOOKUP(N93,DensityMultiplier[Biomass kg/m3],DensityMultiplier[Multiplier],,-1)","v":1.3238809095903634},3875.5442835575968,{"$f":"IF(A94<='S2-Double'!$C$7,('Growth-Model-2'!G93*EXP($AA$7)),0)","v":2.4679844745360531E-5},{"$f":"IF(A94<='S2-Double'!$C$7,$AD$6*EXP($AD$7*('S2-Double'!C$7-'Growth-Model-2'!A94)),0)","v":4.9980970655105219E-4},174.45624093195505,4.3075615044927171E-2,0.1534422341249663,8.6771047502117593,1133.8112872781394,{"$f":"M94/'S2-Double'!$C$17","v":41.993010639931086},25.049872986492353,1459.4359718970113,{"$f":"_xlfn.XLOOKUP(B94,FeedTables!$C$17:$T$17,FeedTables!$C$31:$T$31,,-1)","v":"Unga 4mm"},{"$f":"_xlfn.XLOOKUP(Q94,FeedPrice[Feed],FeedPrice[Price per kg],\"Unknown\",0)*O94","v":2488.2063887355839},147146.39222889315,{"$f":"_xlfn.XLOOKUP(O94,LabourFromFeed[Feed Quantity (kg)],LabourFromFeed[No. Labour],\"Out of range\",-1)","v":1},{"$f":"T94*OperatingCosts!$C$9","v":1200},111600]
[93,{"$f":"IF(A95<='S2-Double'!$C$7, B94*EXP((LN((E94/100)+1))*1),)","v":296.42845350398693},{"$f":"_xlfn.XLOOKUP($B95,FeedTables!$C$42:$T$42,FeedTables!$C$44:$T$44,,-1)","v":2.209351174006021},{"$f":"_xlfn.XLOOKUP($B95,FeedTables!$C$42:$T$42,FeedTables!$C$45:$T$45,,-1)","v":1.5019599136153996},{"$f":"_xlfn.XLOOKUP($B95,FeedTables!$C$42:$T$42,FeedTables!$C$46:$T$46,,-1)*_xlfn.XLOOKUP(N94,DensityMultiplier[Biomass kg/m3],DensityMultiplier[Multiplier],,-1)","v":1.3238809095903634},3875.5437590680453,{"$f":"IF(A95<='S2-Double'!$C$7,('Growth-Model-2'!G94*EXP($AA$7)),0)","v":2.1242139229263858E-5},{"$f":"IF(A95<='S2-Double'!$C$7,$AD$6*EXP($AD$7*('S2-Double'!C$7-'Growth-Model-2'!A95)),0)","v":6.1046895413667979E-4},174.45687264304843,4.3075771022974919E-2,0.18725714246777936,8.677292007354227,1148.8214429875688,{"$f":"M95/'S2-Double'!$C$17","v":42.548942332872919},25.381500037878766,1484.8174719348901,{"$f":"_xlfn.XLOOKUP(B95,FeedTables!$C$17:$T$17,FeedTables!$C$31:$T$31,,-1)","v":"Unga 4mm"},{"$f":"_xlfn.XLOOKUP(Q95,FeedPrice[Feed],FeedPrice[Price per kg],\"Unknown\",0)*O95","v":2521.1469369125016},149667.53916580565,{"$f":"_xlfn.XLOOKUP(O95,LabourFromFeed[Feed Quantity (kg)],LabourFromFeed[No. Labour],\"Out of range\",-1)","v":1},{"$f":"T95*OperatingCosts!$C$9","v":1200},112800]
[94,{"$f":"IF(A96<='S2-Double'!$C$7, B95*EXP((LN((E95/100)+1))*1),)","v":300.3528132105202},{"$f":"_xlfn.XLOOKUP($B96,FeedTables!$C$42:$T$42,FeedTables!$C$44:$T$44,,-1)","v":1.9117636283850548},{"$f":"_xlfn.XLOOKUP($B96,FeedTables!$C$42:$T$42,FeedTables!$C$45:$T$45,,-1)","v":1.5351728093320252},{"$f":"_xlfn.XLOOKUP($B96,FeedTables!$C$42:$T$42,FeedTables!$C$46:$T$46,,-1)*_xlfn.XLOOKUP(N95,DensityMultiplier[Biomass kg/m3],DensityMultiplier[Multiplier],,-1)","v":1.1207775796232351},3875.543127356952,{"$f":"IF(A96<='S2-Double'!$C$7,('Growth-Model-2'!G95*EXP($AA$7)),0)","v":1.8283278670959031E-5},{"$f":"IF(A96<='S2-Double'!$C$7,$AD$6*EXP($AD$7*('S2-Double'!C$7-'Growth-Model-2'!A96)),0)","v":7.4562846435369571E-4},174.45763655479146,4.3075959643158385E-2,0.22944304106200702,8.6775214503952895,1164.030281020358,{"$f":"M96/'S2-Double'!$C$17","v":43.11223263038363},22.253507535935544,1507.0709794708257,{"$f":"_xlfn.XLOOKUP(B96,FeedTables!$C$17:$T$17,FeedTables!$C$31:$T$31,,-1)","v":"Unga 4mm"},{"$f":"_xlfn.XLOOKUP(Q96,FeedPrice[Feed],FeedPrice[Price per kg],\"Unknown\",0)*O96","v":2210.443128895231},151877.98229470087,{"$f":"_xlfn.XLOOKUP(O96,LabourFromFeed[Feed Quantity (kg)],LabourFromFeed[No. Labour],\"Out of range\",-1)","v":1},{"$f":"T96*OperatingCosts!$C$9","v":1200},114000]
[95,{"$f":"IF(A97<='S2-Double'!$C$7, B96*EXP((LN((E96/100)+1))*1),)","v":303.71910020075137},{"$f":"_xlfn.XLOOKUP($B97,FeedTables!$C$42:$T$42,FeedTables!$C$44:$T$44,,-1)","v":1.9117636283850548},{"$f":"_xlfn.XLOOKUP($B97,FeedTables!$C$42:$T$42,FeedTables!$C$45:$T$45,,-1)","v":1.5351728093320252},{"$f":"_xlfn.XLOOKUP($B97,FeedTables!$C$42:$T$42,FeedTables!$C$46:$T$46,,-1)*_xlfn.XLOOKUP(N96,DensityMultiplier[Biomass kg/m3],DensityMultiplier[Multiplier],,-1)","v":1.1207775796232351},3875.542363445209,{"$f":"IF(A97<='S2-Double'!$C$7,('Growth-Model-2'!G96*EXP($AA$7)),0)","v":1.5736563787296569E-5},{"$f":"IF(A97<='S2-Double'!$C$7,$AD$6*EXP($AD$7*('S2-Double'!C$7-'Growth-Model-2'!A97)),0)","v":9.1071266292433515E-4},174.45856300401817,4.3076188396053872E-2,0.2813803255185387,8.6778028307208075,1177.0762394154722,{"$f":"M97/'S2-Double'!$C$17","v":43.595416274647114},22.502915423507584,1529.5738948943333,{"$f":"_xlfn.XLOOKUP(B97,FeedTables!$C$17:$T$17,FeedTables!$C$31:$T$31,,-1)","v":"Unga 4mm"},{"$f":"_xlfn.XLOOKUP(Q97,FeedPrice[Feed],FeedPrice[Price per kg],\"Unknown\",0)*O97","v":2235.2168393085508},154113.19913400942,{"$f":"_xlfn.XLOOKUP(O97,LabourFromFeed[Feed Quantity (kg)],LabourFromFeed[No. Labour],\"Out of range\",-1)","v":1},{"$f":"T97*OperatingCosts!$C$9","v":1200},115200]
[96,{"$f":"IF(A98<='S2-Double'!$C$7, B97*EXP((LN((E97/100)+1))*1),)","v":307.12311578083484},{"$f":"_xlfn.XLOOKUP($B98,FeedTables!$C$42:$T$42,FeedTables!$C$44:$T$44,,-1)","v":1.9117636283850548},{"$f":"_xlfn.XLOOKUP($B98,FeedTables!$C$42:$T$42,FeedTables!$C$45:$T$45,,-1)","v":1.5351728093320252},{"$f":"_xlfn.XLOOKUP($B98,FeedTables!$C$42:$T$42,FeedTables!$C$46:$T$46,,-1)*_xlfn.XLOOKUP(N97,DensityMultiplier[Biomass kg/m3],DensityMultiplier[Multiplier],,-1)","v":1.1207775796232351},3875.5414369959822,{"$f":"IF(A98<='S2-Double'!$C$7,('Growth-Model-2'!G97*EXP($AA$7)),0)","v":1.3544585973247873E-5},{"$f":"IF(A98<='S2-Double'!$C$7,$AD$6*EXP($AD$7*('S2-Double'!C$7-'Growth-Model-2'!A98)),0)","v":1.1123469583871753E-3},174.45968889556255,4.3076466393966062E-2,0.34578731913526922,8.678148618039943,1190.2683614679399,{"$f":"M98/'S2-Double'!$C$17","v":44.084013387701482},22.755117614718827,1552.3290125090521,{"$f":"_xlfn.XLOOKUP(B98,FeedTables!$C$17:$T$17,FeedTables!$C$31:$T$31,,-1)","v":"Unga 4mm"},{"$f":"_xlfn.XLOOKUP(Q98,FeedPrice[Feed],FeedPrice[Price per kg],\"Unknown\",0)*O98","v":2260.2681081817827},156373.4672421912,{"$f":"_xlfn.XLOOKUP(O98,LabourFromFeed[Feed Quantity (kg)],LabourFromFeed[No. Labour],\"Out of range\",-1)","v":1},{"$f":"T98*OperatingCosts!$C$9","v":1200},116400]
[97,{"$f":"IF(A99<='S2-Double'!$C$7, B98*EXP((LN((E98/100)+1))*1),)","v":310.56528280434674},{"$f":"_xlfn.XLOOKUP($B99,FeedTables!$C$42:$T$42,FeedTables!$C$44:$T$44,,-1)","v":1.9117636283850548},{"$f":"_xlfn.XLOOKUP($B99,FeedTables!$C$42:$T$42,FeedTables!$C$45:$T$45,,-1)","v":1.5351728093320252},{"$f":"_xlfn.XLOOKUP($B99,FeedTables!$C$42:$T$42,FeedTables!$C$46:$T$46,,-1)*_xlfn.XLOOKUP(N98,DensityMultiplier[Biomass kg/m3],DensityMultiplier[Multiplier],,-1)","v":1.1207775796232351},3875.5403111044375,{"$f":"IF(A99<='S2-Double'!$C$7,('Growth-Model-2'!G98*EXP($AA$7)),0)","v":1.1657933184549398E-5},{"$f":"IF(A99<='S2-Double'!$C$7,$AD$6*EXP($AD$7*('S2-Double'!C$7-'Growth-Model-2'!A99)),0)","v":1.358623643005173E-3},174.46105917713874,4.3076804735095987E-2,0.42556188523094712,8.6785741799251745,1203.6082727377955,{"$f":"M99/'S2-Double'!$C$17","v":44.578084175473904},23.010145186434766,1575.3391576954868,{"$f":"_xlfn.XLOOKUP(B99,FeedTables!$C$17:$T$17,FeedTables!$C$31:$T$31,,-1)","v":"Unga 4mm"},{"$f":"_xlfn.XLOOKUP(Q99,FeedPrice[Feed],FeedPrice[Price per kg],\"Unknown\",0)*O99","v":2285.6000223830838},158659.06726457429,{"$f":"_xlfn.XLOOKUP(O99,LabourFromFeed[Feed Quantity (kg)],LabourFromFeed[No. Labour],\"Out of range\",-1)","v":1},{"$f":"T99*OperatingCosts!$C$9","v":1200},117600]
[98,{"$f":"IF(A100<='S2-Double'!$C$7, B99*EXP((LN((E99/100)+1))*1),)","v":314.04602886411135},{"$f":"_xlfn.XLOOKUP($B100,FeedTables!$C$42:$T$42,FeedTables!$C$44:$T$44,,-1)","v":1.9117636283850548},{"$f":"_xlfn.XLOOKUP($B100,FeedTables!$C$42:$T$42,FeedTables!$C$45:$T$45,,-1)","v":1.5351728093320252},{"$f":"_xlfn.XLOOKUP($B100,FeedTables!$C$42:$T$42,FeedTables!$C$46:$T$46,,-1)*_xlfn.XLOOKUP(N99,DensityMultiplier[Biomass kg/m3],DensityMultiplier[Multiplier],,-1)","v":1.1207775796232351},3875.5389408228612,{"$f":"IF(A100<='S2-Double'!$C$7,('Growth-Model-2'!G99*EXP($AA$7)),0)","v":1.0034076080572043E-5},{"$f":"IF(A100<='S2-Double'!$C$7,$AD$6*EXP($AD$7*('S2-Double'!C$7-'Growth-Model-2'!A100)),0)","v":1.659426664868135E-3},174.46272863787968,4.3077216947624612E-2,0.52428751603947843,8.6790984674412144,1217.0976140736436,{"$f":"M100/'S2-Double'!$C$17","v":45.077689410134951},23.268029507802222,1598.607187203289,{"$f":"_xlfn.XLOOKUP(B100,FeedTables!$C$17:$T$17,FeedTables!$C$31:$T$31,,-1)","v":"Unga 4mm"},{"$f":"_xlfn.XLOOKUP(Q100,FeedPrice[Feed],FeedPrice[Price per kg],\"Unknown\",0)*O100","v":2311.2156978129456},160970.28296238722,{"$f":"_xlfn.XLOOKUP(O100,LabourFromFeed[Feed Quantity (kg)],LabourFromFeed[No. Labour],\"Out of range\",-1)","v":1},{"$f":"T100*OperatingCosts!$C$9","v":1200},118800]
[99,{"$f":"IF(A101<='S2-Double'!$C$7, B100*EXP((LN((E100/100)+1))*1),)","v":317.56578634531741},{"$f":"_xlfn.XLOOKUP($B101,FeedTables!$C$42:$T$42,FeedTables!$C$44:$T$44,,-1)","v":1.9117636283850548},{"$f":"_xlfn.XLOOKUP($B101,FeedTables!$C$42:$T$42,FeedTables!$C$45:$T$45,,-1)","v":1.5351728093320252},{"$f":"_xlfn.XLOOKUP($B101,FeedTables!$C$42:$T$42,FeedTables!$C$46:$T$46,,-1)*_xlfn.XLOOKUP(N100,DensityMultiplier[Biomass kg/m3],DensityMultiplier[Multiplier],,-1)","v":1.0834183269691273},3875.53727136212,{"$f":"IF(A101<='S2-Double'!$C$7,('Growth-Model-2'!G100*EXP($AA$7)),0)","v":8.6364093186042387E-6},{"$f":"IF(A101<='S2-Double'!$C$7,$AD$6*EXP($AD$7*('S2-Double'!C$7-'Growth-Model-2'!A101)),0)","v":2.026828305434472E-3},174.46476410259444,4.3077719531504799E-2,0.64639395271870792,8.6797448613939334,1230.7380410906976,{"$f":"M101/'S2-Double'!$C$17","v":45.582890410766581},23.528802230270667,1622.1359894335596,{"$f":"_xlfn.XLOOKUP(B101,FeedTables!$C$17:$T$17,FeedTables!$C$31:$T$31,,-1)","v":"Unga 4mm"},{"$f":"_xlfn.XLOOKUP(Q101,FeedPrice[Feed],FeedPrice[Price per kg],\"Unknown\",0)*O101","v":2337.1182784130083},163307.40124080025,{"$f":"_xlfn.XLOOKUP(O101,LabourFromFeed[Feed Quantity (kg)],LabourFromFeed[No. Labour],\"Out of range\",-1)","v":1},{"$f":"T101*OperatingCosts!$C$9","v":1200},120000]
[100,{"$f":"IF(A102<='S2-Double'!$C$7, B101*EXP((LN((E101/100)+1))*1),)","v":321.00635227476619},{"$f":"_xlfn.XLOOKUP($B102,FeedTables!$C$42:$T$42,FeedTables!$C$44:$T$44,,-1)","v":1.9117636283850548},{"$f":"_xlfn.XLOOKUP($B102,FeedTables!$C$42:$T$42,FeedTables!$C$45:$T$45,,-1)","v":1.5351728093320252},{"$f":"_xlfn.XLOOKUP($B102,FeedTables!$C$42:$T$42,FeedTables!$C$46:$T$46,,-1)*_xlfn.XLOOKUP(N101,DensityMultiplier[Biomass kg/m3],DensityMultiplier[Multiplier],,-1)","v":1.0834183269691273},3875.5352358974051,{"$f":"IF(A102<='S2-Double'!$C$7,('Growth-Model-2'!G101*EXP($AA$7)),0)","v":7.4334263881943664E-6},{"$f":"IF(A102<='S2-Double'!$C$7,$AD$6*EXP($AD$7*('S2-Double'!C$7-'Growth-Model-2'!A102)),0)","v":2.4755736825747676E-3},174.46724710970341,4.3078332619679853E-2,0.79706105472051336,8.6805419224486542,1244.0714291877514,{"$f":"M102/'S2-Double'!$C$17","v":46.076719599546351},23.783705094341563,1645.9196945279011,{"$f":"_xlfn.XLOOKUP(B102,FeedTables!$C$17:$T$17,FeedTables!$C$31:$T$31,,-1)","v":"Unga 4mm"},{"$f":"_xlfn.XLOOKUP(Q102,FeedPrice[Feed],FeedPrice[Price per kg],\"Unknown\",0)*O102","v":2362.437805391457},165669.83904619172,{"$f":"_xlfn.XLOOKUP(O102,LabourFromFeed[Feed Quantity (kg)],LabourFromFeed[No. Labour],\"Out of range\",-1)","v":1},{"$f":"T102*OperatingCosts!$C$9","v":1200},121200]
[101,{"$f":"IF(A103<='S2-Double'!$C$7, B102*EXP((LN((E102/100)+1))*1),)","v":324.48419392604609},{"$f":"_xlfn.XLOOKUP($B103,FeedTables!$C$42:$T$42,FeedTables!$C$44:$T$44,,-1)","v":1.9117636283850548},{"$f":"_xlfn.XLOOKUP($B103,FeedTables!$C$42:$T$42,FeedTables!$C$45:$T$45,,-1)","v":1.5351728093320252},{"$f":"_xlfn.XLOOKUP($B103,FeedTables!$C$42:$T$42,FeedTables!$C$46:$T$46,,-1)*_xlfn.XLOOKUP(N102,DensityMultiplier[Biomass kg/m3],DensityMultiplier[Multiplier],,-1)","v":1.0834183269691273},3875.5327528902963,{"$f":"IF(A103<='S2-Double'!$C$7,('Growth-Model-2'!G102*EXP($AA$7)),0)","v":6.3980093844873994E-6},{"$f":"IF(A103<='S2-Double'!$C$7,$AD$6*EXP($AD$7*('S2-Double'!C$7-'Growth-Model-2'!A103)),0)","v":3.0236725239255508E-3},174.47027718023674,4.307908078524364E-2,0.98320999454017233,8.6815251324431948,1257.5491213555981,{"$f":"M103/'S2-Double'!$C$17","v":46.575893383540674},24.041366711152158,1669.9610612390534,{"$f":"_xlfn.XLOOKUP(B103,FeedTables!$C$17:$T$17,FeedTables!$C$31:$T$31,,-1)","v":"Unga 4mm"},{"$f":"_xlfn.XLOOKUP(Q103,FeedPrice[Feed],FeedPrice[Price per kg],\"Unknown\",0)*O103","v":2388.0313595554148},168057.87040574712,{"$f":"_xlfn.XLOOKUP(O103,LabourFromFeed[Feed Quantity (kg)],LabourFromFeed[No. Labour],\"Out of range\",-1)","v":1},{"$f":"T103*OperatingCosts!$C$9","v":1200},122400]
[102,{"$f":"IF(A104<='S2-Double'!$C$7, B103*EXP((LN((E103/100)+1))*1),)","v":327.99971515115891},{"$f":"_xlfn.XLOOKUP($B104,FeedTables!$C$42:$T$42,FeedTables!$C$44:$T$44,,-1)","v":1.9117636283850548},{"$f":"_xlfn.XLOOKUP($B104,FeedTables!$C$42:$T$42,FeedTables!$C$45:$T$45,,-1)","v":1.5351728093320252},{"$f":"_xlfn.XLOOKUP($B104,FeedTables!$C$42:$T$42,FeedTables!$C$46:$T$46,,-1)*_xlfn.XLOOKUP(N103,DensityMultiplier[Biomass kg/m3],DensityMultiplier[Multiplier],,-1)","v":1.0834183269691273},3875.5297228197633,{"$f":"IF(A104<='S2-Double'!$C$7,('Growth-Model-2'!G103*EXP($AA$7)),0)","v":5.5068177104706789E-6},{"$f":"IF(A104<='S2-Double'!$C$7,$AD$6*EXP($AD$7*('S2-Double'!C$7-'Growth-Model-2'!A104)),0)","v":3.6931219604957907E-3},174.47397580901495,4.307999402691727E-2,1.2131491857015326,8.6827382816288967,1271.1726451447323,{"$f":"M104/'S2-Double'!$C$17","v":47.080468338693791},24.30181628385721,1694.2628775229107,{"$f":"_xlfn.XLOOKUP(B104,FeedTables!$C$17:$T$17,FeedTables!$C$31:$T$31,,-1)","v":"Unga 4mm"},{"$f":"_xlfn.XLOOKUP(Q104,FeedPrice[Feed],FeedPrice[Price per kg],\"Unknown\",0)*O104","v":2413.9018416571653},170471.7722474043,{"$f":"_xlfn.XLOOKUP(O104,LabourFromFeed[Feed Quantity (kg)],LabourFromFeed[No. Labour],\"Out of range\",-1)","v":1},{"$f":"T104*OperatingCosts!$C$9","v":1200},123600]
[103,{"$f":"IF(A105<='S2-Double'!$C$7, B104*EXP((LN((E104/100)+1))*1),)","v":331.5533241775131},{"$f":"_xlfn.XLOOKUP($B105,FeedTables!$C$42:$T$42,FeedTables!$C$44:$T$44,,-1)","v":1.9117636283850548},{"$f":"_xlfn.XLOOKUP($B105,FeedTables!$C$42:$T$42,FeedTables!$C$45:$T$45,,-1)","v":1.5351728093320252},{"$f":"_xlfn.XLOOKUP($B105,FeedTables!$C$42:$T$42,FeedTables!$C$46:$T$46,,-1)*_xlfn.XLOOKUP(N104,DensityMultiplier[Biomass kg/m3],DensityMultiplier[Multiplier],,-1)","v":1.0834183269691273},3875.526024190985,{"$f":"IF(A105<='S2-Double'!$C$7,('Growth-Model-2'!G104*EXP($AA$7)),0)","v":4.7397619281208876E-6},{"$f":"IF(A105<='S2-Double'!$C$7,$AD$6*EXP($AD$7*('S2-Double'!C$7-'Growth-Model-2'!A105)),0)","v":4.5107893487714495E-3},174.47849133812565,4.3081108972376707E-2,1.4971386870727721,8.6842354203159697,1284.9435362569823,{"$f":"M105/'S2-Double'!$C$17","v":47.590501342851198},24.565083171445718,1718.8279606943563,{"$f":"_xlfn.XLOOKUP(B105,FeedTables!$C$17:$T$17,FeedTables!$C$31:$T$31,,-1)","v":"Unga 4mm"},{"$f":"_xlfn.XLOOKUP(Q105,FeedPrice[Feed],FeedPrice[Price per kg],\"Unknown\",0)*O105","v":2440.0521679280205},172911.82441533232,{"$f":"_xlfn.XLOOKUP(O105,LabourFromFeed[Feed Quantity (kg)],LabourFromFeed[No. Labour],\"Out of range\",-1)","v":1},{"$f":"T105*OperatingCosts!$C$9","v":1200},124800]
[104,{"$f":"IF(A106<='S2-Double'!$C$7, B105*EXP((LN((E105/100)+1))*1),)","v":335.14543365532762},{"$f":"_xlfn.XLOOKUP($B106,FeedTables!$C$42:$T$42,FeedTables!$C$44:$T$44,,-1)","v":1.9117636283850548},{"$f":"_xlfn.XLOOKUP($B106,FeedTables!$C$42:$T$42,FeedTables!$C$45:$T$45,,-1)","v":1.5351728093320252},{"$f":"_xlfn.XLOOKUP($B106,FeedTables!$C$42:$T$42,FeedTables!$C$46:$T$46,,-1)*_xlfn.XLOOKUP(N105,DensityMultiplier[Biomass kg/m3],DensityMultiplier[Multiplier],,-1)","v":1.0834183269691273},3875.5215086618741,{"$f":"IF(A106<='S2-Double'!$C$7,('Growth-Model-2'!G105*EXP($AA$7)),0)","v":4.0795508978894591E-6},{"$f":"IF(A106<='S2-Double'!$C$7,$AD$6*EXP($AD$7*('S2-Double'!C$7-'Growth-Model-2'!A106)),0)","v":5.5094905520689658E-3},174.48400490822863,4.3082470347710775E-2,1.847847843147876,8.686083268159118,1298.8633366610334,{"$f":"M106/'S2-Double'!$C$17","v":48.106049505964201},24.831196852714161,1743.6591575470704,{"$f":"_xlfn.XLOOKUP(B106,FeedTables!$C$17:$T$17,FeedTables!$C$31:$T$31,,-1)","v":"Unga 4mm"},{"$f":"_xlfn.XLOOKUP(Q106,FeedPrice[Feed],FeedPrice[Price per kg],\"Unknown\",0)*O106","v":2466.4852664997829},175378.30968183209,{"$f":"_xlfn.XLOOKUP(O106,LabourFromFeed[Feed Quantity (kg)],LabourFromFeed[No. Labour],\"Out of range\",-1)","v":1},{"$f":"T106*OperatingCosts!$C$9","v":1200},126000]
[105,{"$f":"IF(A107<='S2-Double'!$C$7, B106*EXP((LN((E106/100)+1))*1),)","v":338.7764607055496},{"$f":"_xlfn.XLOOKUP($B107,FeedTables!$C$42:$T$42,FeedTables!$C$44:$T$44,,-1)","v":1.9117636283850548},{"$f":"_xlfn.XLOOKUP($B107,FeedTables!$C$42:$T$42,FeedTables!$C$45:$T$45,,-1)","v":1.5351728093320252},{"$f":"_xlfn.XLOOKUP($B107,FeedTables!$C$42:$T$42,FeedTables!$C$46:$T$46,,-1)*_xlfn.XLOOKUP(N106,DensityMultiplier[Biomass kg/m3],DensityMultiplier[Multiplier],,-1)","v":1.0834183269691273},3875.5159950917714,{"$f":"IF(A107<='S2-Double'!$C$7,('Growth-Model-2'!G106*EXP($AA$7)),0)","v":3.5113019980454641E-6},{"$f":"IF(A107<='S2-Double'!$C$7,$AD$6*EXP($AD$7*('S2-Double'!C$7-'Growth-Model-2'!A107)),0)","v":6.7293069563544323E-3},174.49073772648697,4.3084132771972095E-2,2.2809203401383553,8.6883641884992571,1312.9335922249365,{"$f":"M107/'S2-Double'!$C$17","v":48.627170082405058},25.100186881005687,1768.759344428076,{"$f":"_xlfn.XLOOKUP(B107,FeedTables!$C$17:$T$17,FeedTables!$C$31:$T$31,,-1)","v":"Unga 4mm"},{"$f":"_xlfn.XLOOKUP(Q107,FeedPrice[Feed],FeedPrice[Price per kg],\"Unknown\",0)*O107","v":2493.2040729089831},177871.51375474108,{"$f":"_xlfn.XLOOKUP(O107,LabourFromFeed[Feed Quantity (kg)],LabourFromFeed[No. Labour],\"Out of range\",-1)","v":1},{"$f":"T107*OperatingCosts!$C$9","v":1200},127200]
[106,{"$f":"IF(A108<='S2-Double'!$C$7, B107*EXP((LN((E107/100)+1))*1),)","v":342.44682696829085},{"$f":"_xlfn.XLOOKUP($B108,FeedTables!$C$42:$T$42,FeedTables!$C$44:$T$44,,-1)","v":1.9117636283850548},{"$f":"_xlfn.XLOOKUP($B108,FeedTables!$C$42:$T$42,FeedTables!$C$45:$T$45,,-1)","v":1.5351728093320252},{"$f":"_xlfn.XLOOKUP($B108,FeedTables!$C$42:$T$42,FeedTables!$C$46:$T$46,,-1)*_xlfn.XLOOKUP(N107,DensityMultiplier[Biomass kg/m3],DensityMultiplier[Multiplier],,-1)","v":1.0834183269691273},3875.5092622735128,{"$f":"IF(A108<='S2-Double'!$C$7,('Growth-Model-2'!G107*EXP($AA$7)),0)","v":3.0222056373549738E-6},{"$f":"IF(A108<='S2-Double'!$C$7,$AD$6*EXP($AD$7*('S2-Double'!C$7-'Growth-Model-2'!A108)),0)","v":8.2191940769977233E-3},174.4989599427696,4.3086162948832003E-2,2.8156718766353981,8.6911798603758932,1327.155849751786,{"$f":"M108/'S2-Double'!$C$17","v":49.153920361177263},25.372082827539252,1794.1314272556153,{"$f":"_xlfn.XLOOKUP(B108,FeedTables!$C$17:$T$17,FeedTables!$C$31:$T$31,,-1)","v":"Unga 4mm"},{"$f":"_xlfn.XLOOKUP(Q108,FeedPrice[Feed],FeedPrice[Price per kg],\"Unknown\",0)*O108","v":2520.2115244677566},180391.72527920885,{"$f":"_xlfn.XLOOKUP(O108,LabourFromFeed[Feed Quantity (kg)],LabourFromFeed[No. Labour],\"Out of range\",-1)","v":1},{"$f":"T108*OperatingCosts!$C$9","v":1200},128400]
[107,{"$f":"IF(A109<='S2-Double'!$C$7, B108*EXP((LN((E108/100)+1))*1),)","v":346.15695865178952},{"$f":"_xlfn.XLOOKUP($B109,FeedTables!$C$42:$T$42,FeedTables!$C$44:$T$44,,-1)","v":1.9117636283850548},{"$f":"_xlfn.XLOOKUP($B109,FeedTables!$C$42:$T$42,FeedTables!$C$45:$T$45,,-1)","v":1.5351728093320252},{"$f":"_xlfn.XLOOKUP($B109,FeedTables!$C$42:$T$42,FeedTables!$C$46:$T$46,,-1)*_xlfn.XLOOKUP(N108,DensityMultiplier[Biomass kg/m3],DensityMultiplier[Multiplier],,-1)","v":1.0834183269691273},3875.5010400572305,{"$f":"IF(A109<='S2-Double'!$C$7,('Growth-Model-2'!G108*EXP($AA$7)),0)","v":2.6012364984682015E-6},{"$f":"IF(A109<='S2-Double'!$C$7,$AD$6*EXP($AD$7*('S2-Double'!C$7-'Growth-Model-2'!A109)),0)","v":1.0038946315498752E-2},174.50900149032159,4.3088642343289282E-2,3.47595156075668,8.6946558119366504,1341.531653278058,{"$f":"M109/'S2-Double'!$C$17","v":49.686357528816963},25.646914210642613,1819.7783414662579,{"$f":"_xlfn.XLOOKUP(B109,FeedTables!$C$17:$T$17,FeedTables!$C$31:$T$31,,-1)","v":"Unga 4mm"},{"$f":"_xlfn.XLOOKUP(Q109,FeedPrice[Feed],FeedPrice[Price per kg],\"Unknown\",0)*O109","v":2547.5105532345519},182939.2358324434,{"$f":"_xlfn.XLOOKUP(O109,LabourFromFeed[Feed Quantity (kg)],LabourFromFeed[No. Labour],\"Out of range\",-1)","v":1},{"$f":"T109*OperatingCosts!$C$9","v":1200},129600]
[108,{"$f":"IF(A110<='S2-Double'!$C$7, B109*EXP((LN((E109/100)+1))*1),)","v":349.90728658190193},{"$f":"_xlfn.XLOOKUP($B110,FeedTables!$C$42:$T$42,FeedTables!$C$44:$T$44,,-1)","v":1.9117636283850548},{"$f":"_xlfn.XLOOKUP($B110,FeedTables!$C$42:$T$42,FeedTables!$C$45:$T$45,,-1)","v":1.5351728093320252},{"$f":"_xlfn.XLOOKUP($B110,FeedTables!$C$42:$T$42,FeedTables!$C$46:$T$46,,-1)*_xlfn.XLOOKUP(N109,DensityMultiplier[Biomass kg/m3],DensityMultiplier[Multiplier],,-1)","v":1.0834183269691273},3875.4909985096783,{"$f":"IF(A110<='S2-Double'!$C$7,('Growth-Model-2'!G109*EXP($AA$7)),0)","v":2.2389050027995686E-6},{"$f":"IF(A110<='S2-Double'!$C$7,$AD$6*EXP($AD$7*('S2-Double'!C$7-'Growth-Model-2'!A110)),0)","v":1.2261596718772041E-2},174.52126532594536,4.309167045085071E-2,4.2912054462015217,8.6989470173828511,1356.0625394611072,{"$f":"M110/'S2-Double'!$C$17","v":50.224538498559525},25.924710407572178,1845.70305187383,{"$f":"_xlfn.XLOOKUP(B110,FeedTables!$C$17:$T$17,FeedTables!$C$31:$T$31,,-1)","v":"Unga 4mm"},{"$f":"_xlfn.XLOOKUP(Q110,FeedPrice[Feed],FeedPrice[Price per kg],\"Unknown\",0)*O110","v":2575.1040772551851},185514.33990969858,{"$f":"_xlfn.XLOOKUP(O110,LabourFromFeed[Feed Quantity (kg)],LabourFromFeed[No. Labour],\"Out of range\",-1)","v":1},{"$f":"T110*OperatingCosts!$C$9","v":1200},130800]
[109,{"$f":"IF(A111<='S2-Double'!$C$7, B110*EXP((LN((E110/100)+1))*1),)","v":353.69824625213062},{"$f":"_xlfn.XLOOKUP($B111,FeedTables!$C$42:$T$42,FeedTables!$C$44:$T$44,,-1)","v":1.9117636283850548},{"$f":"_xlfn.XLOOKUP($B111,FeedTables!$C$42:$T$42,FeedTables!$C$45:$T$45,,-1)","v":1.5351728093320252},{"$f":"_xlfn.XLOOKUP($B111,FeedTables!$C$42:$T$42,FeedTables!$C$46:$T$46,,-1)*_xlfn.XLOOKUP(N110,DensityMultiplier[Biomass kg/m3],DensityMultiplier[Multiplier],,-1)","v":1.0460590743150193},3875.4787346740545,{"$f":"IF(A111<='S2-Double'!$C$7,('Growth-Model-2'!G110*EXP($AA$7)),0)","v":1.9270433943675551E-6},{"$f":"IF(A111<='S2-Double'!$C$7,$AD$6*EXP($AD$7*('S2-Double'!C$7-'Growth-Model-2'!A111)),0)","v":1.4976348051755862E-2},174.53624360104052,4.3095368790380374E-2,5.2977896330366008,8.704244807015888,1370.7500318416392,{"$f":"M111/'S2-Double'!$C$17","v":50.768519697838485},26.205500544825014,1871.9085524186551,{"$f":"_xlfn.XLOOKUP(B111,FeedTables!$C$17:$T$17,FeedTables!$C$31:$T$31,,-1)","v":"Unga 4mm"},{"$f":"_xlfn.XLOOKUP(Q111,FeedPrice[Feed],FeedPrice[Price per kg],\"Unknown\",0)*O111","v":2602.994989667523},188117.33489936611,{"$f":"_xlfn.XLOOKUP(O111,LabourFromFeed[Feed Quantity (kg)],LabourFromFeed[No. Labour],\"Out of range\",-1)","v":1},{"$f":"T111*OperatingCosts!$C$9","v":1200},132000]
[110,{"$f":"IF(A112<='S2-Double'!$C$7, B111*EXP((LN((E111/100)+1))*1),)","v":357.39813885274407},{"$f":"_xlfn.XLOOKUP($B112,FeedTables!$C$42:$T$42,FeedTables!$C$44:$T$44,,-1)","v":1.9117636283850548},{"$f":"_xlfn.XLOOKUP($B112,FeedTables!$C$42:$T$42,FeedTables!$C$45:$T$45,,-1)","v":1.5351728093320252},{"$f":"_xlfn.XLOOKUP($B112,FeedTables!$C$42:$T$42,FeedTables!$C$46:$T$46,,-1)*_xlfn.XLOOKUP(N111,DensityMultiplier[Biomass kg/m3],DensityMultiplier[Multiplier],,-1)","v":1.0460590743150193},3875.4637563989595,{"$f":"IF(A112<='S2-Double'!$C$7,('Growth-Model-2'!G111*EXP($AA$7)),0)","v":1.658621620449373E-6},{"$f":"IF(A112<='S2-Double'!$C$7,$AD$6*EXP($AD$7*('S2-Double'!C$7-'Growth-Model-2'!A112)),0)","v":1.8292152817581297E-2},174.55453741247973,4.3099885780859194E-2,6.5381741608937425,8.7107829811767825,1385.0835337282524,{"$f":"M112/'S2-Double'!$C$17","v":51.299390138083425},26.47952322056717,1898.3880756392223,{"$f":"_xlfn.XLOOKUP(B112,FeedTables!$C$17:$T$17,FeedTables!$C$31:$T$31,,-1)","v":"Unga 4mm"},{"$f":"_xlfn.XLOOKUP(Q112,FeedPrice[Feed],FeedPrice[Price per kg],\"Unknown\",0)*O112","v":2630.2136894512591},190747.54858881736,{"$f":"_xlfn.XLOOKUP(O112,LabourFromFeed[Feed Quantity (kg)],LabourFromFeed[No. Labour],\"Out of range\",-1)","v":1},{"$f":"T112*OperatingCosts!$C$9","v":1200},133200]
[111,{"$f":"IF(A113<='S2-Double'!$C$7, B112*EXP((LN((E112/100)+1))*1),)","v":361.13673451564614},{"$f":"_xlfn.XLOOKUP($B113,FeedTables!$C$42:$T$42,FeedTables!$C$44:$T$44,,-1)","v":1.9117636283850548},{"$f":"_xlfn.XLOOKUP($B113,FeedTables!$C$42:$T$42,FeedTables!$C$45:$T$45,,-1)","v":1.5351728093320252},{"$f":"_xlfn.XLOOKUP($B113,FeedTables!$C$42:$T$42,FeedTables!$C$46:$T$46,,-1)*_xlfn.XLOOKUP(N112,DensityMultiplier[Biomass kg/m3],DensityMultiplier[Multiplier],,-1)","v":1.0460590743150193},3875.4454625875201,{"$f":"IF(A113<='S2-Double'!$C$7,('Growth-Model-2'!G112*EXP($AA$7)),0)","v":1.4275888585918301E-6},{"$f":"IF(A113<='S2-Double'!$C$7,$AD$6*EXP($AD$7*('S2-Double'!C$7-'Growth-Model-2'!A113)),0)","v":2.2342085904081124E-2},174.57688092597269,4.3105402697771036E-2,8.0690635004465268,8.7188520446772291,1399.5657191523346,{"$f":"M113/'S2-Double'!$C$17","v":51.835767376012392},26.756388374100059,1925.1444640133222,{"$f":"_xlfn.XLOOKUP(B113,FeedTables!$C$17:$T$17,FeedTables!$C$31:$T$31,,-1)","v":"Unga 4mm"},{"$f":"_xlfn.XLOOKUP(Q113,FeedPrice[Feed],FeedPrice[Price per kg],\"Unknown\",0)*O113","v":2657.7147328381961},193405.26332165554,{"$f":"_xlfn.XLOOKUP(O113,LabourFromFeed[Feed Quantity (kg)],LabourFromFeed[No. Labour],\"Out of range\",-1)","v":1},{"$f":"T113*OperatingCosts!$C$9","v":1200},134400]
[112,{"$f":"IF(A114<='S2-Double'!$C$7, B113*EXP((LN((E113/100)+1))*1),)","v":364.91443809773193},{"$f":"_xlfn.XLOOKUP($B114,FeedTables!$C$42:$T$42,FeedTables!$C$44:$T$44,,-1)","v":1.9117636283850548},{"$f":"_xlfn.XLOOKUP($B114,FeedTables!$C$42:$T$42,FeedTables!$C$45:$T$45,,-1)","v":1.5351728093320252},{"$f":"_xlfn.XLOOKUP($B114,FeedTables!$C$42:$T$42,FeedTables!$C$46:$T$46,,-1)*_xlfn.XLOOKUP(N113,DensityMultiplier[Biomass kg/m3],DensityMultiplier[Multiplier],,-1)","v":1.0460590743150193},3875.423119074027,{"$f":"IF(A114<='S2-Double'!$C$7,('Growth-Model-2'!G113*EXP($AA$7)),0)","v":1.2287371176455321E-6},{"$f":"IF(A114<='S2-Double'!$C$7,$AD$6*EXP($AD$7*('S2-Double'!C$7-'Growth-Model-2'!A114)),0)","v":2.7288685346296141E-2},174.6041708400561,4.3112140948162E-2,9.9584836634843228,8.7288105283407127,1414.1978498878582,{"$f":"M114/'S2-Double'!$C$17","v":52.377698143994749},27.036120127559549,1952.1805841408818,{"$f":"_xlfn.XLOOKUP(B114,FeedTables!$C$17:$T$17,FeedTables!$C$31:$T$31,,-1)","v":"Unga 4mm"},{"$f":"_xlfn.XLOOKUP(Q114,FeedPrice[Feed],FeedPrice[Price per kg],\"Unknown\",0)*O114","v":2685.5005158825029},196090.76383753805,{"$f":"_xlfn.XLOOKUP(O114,LabourFromFeed[Feed Quantity (kg)],LabourFromFeed[No. Labour],\"Out of range\",-1)","v":1},{"$f":"T114*OperatingCosts!$C$9","v":1200},135600]
[113,{"$f":"IF(A115<='S2-Double'!$C$7, B114*EXP((LN((E114/100)+1))*1),)","v":368.7316586909389},{"$f":"_xlfn.XLOOKUP($B115,FeedTables!$C$42:$T$42,FeedTables!$C$44:$T$44,,-1)","v":1.9117636283850548},{"$f":"_xlfn.XLOOKUP($B115,FeedTables!$C$42:$T$42,FeedTables!$C$45:$T$45,,-1)","v":1.5351728093320252},{"$f":"_xlfn.XLOOKUP($B115,FeedTables!$C$42:$T$42,FeedTables!$C$46:$T$46,,-1)*_xlfn.XLOOKUP(N114,DensityMultiplier[Biomass kg/m3],DensityMultiplier[Multiplier],,-1)","v":1.0460590743150193},3875.3958291599438,{"$f":"IF(A115<='S2-Double'!$C$7,('Growth-Model-2'!G114*EXP($AA$7)),0)","v":1.0575838380870441E-6},{"$f":"IF(A115<='S2-Double'!$C$7,$AD$6*EXP($AD$7*('S2-Double'!C$7-'Growth-Model-2'!A115)),0)","v":3.3330475548531094E-2},174.63750237318845,4.3120370956342829E-2,12.290391498610475,8.7411009198393224,1428.9811321700925,{"$f":"M115/'S2-Double'!$C$17","v":52.925227117410834},27.318741541312793,1979.4993256821947,{"$f":"_xlfn.XLOOKUP(B115,FeedTables!$C$17:$T$17,FeedTables!$C$31:$T$31,,-1)","v":"Unga 4mm"},{"$f":"_xlfn.XLOOKUP(Q115,FeedPrice[Feed],FeedPrice[Price per kg],\"Unknown\",0)*O115","v":2713.5733291727538},198804.33716671081,{"$f":"_xlfn.XLOOKUP(O115,LabourFromFeed[Feed Quantity (kg)],LabourFromFeed[No. Labour],\"Out of range\",-1)","v":1},{"$f":"T115*OperatingCosts!$C$9","v":1200},136800]
[114,{"$f":"IF(A116<='S2-Double'!$C$7, B115*EXP((LN((E115/100)+1))*1),)","v":372.58880966654772},{"$f":"_xlfn.XLOOKUP($B116,FeedTables!$C$42:$T$42,FeedTables!$C$44:$T$44,,-1)","v":1.9117636283850548},{"$f":"_xlfn.XLOOKUP($B116,FeedTables!$C$42:$T$42,FeedTables!$C$45:$T$45,,-1)","v":1.5351728093320252},{"$f":"_xlfn.XLOOKUP($B116,FeedTables!$C$42:$T$42,FeedTables!$C$46:$T$46,,-1)*_xlfn.XLOOKUP(N115,DensityMultiplier[Biomass kg/m3],DensityMultiplier[Multiplier],,-1)","v":1.0460590743150193},3875.3624976268115,{"$f":"IF(A116<='S2-Double'!$C$7,('Growth-Model-2'!G115*EXP($AA$7)),0)","v":9.102708451797458E-7},{"$f":"IF(A116<='S2-Double'!$C$7,$AD$6*EXP($AD$7*('S2-Double'!C$7-'Growth-Model-2'!A116)),0)","v":4.0709934765765982E-2},174.67821321822507,4.3130423016845693E-2,15.168405292710235,8.7562693251320329,1443.9167000171531,{"$f":"M116/'S2-Double'!$C$17","v":53.478396296931592},27.604274295105672,2007.1035999773003,{"$f":"_xlfn.XLOOKUP(B116,FeedTables!$C$17:$T$17,FeedTables!$C$31:$T$31,,-1)","v":"Unga 4mm"},{"$f":"_xlfn.XLOOKUP(Q116,FeedPrice[Feed],FeedPrice[Price per kg],\"Unknown\",0)*O116","v":2741.935326160276},201546.2724928711,{"$f":"_xlfn.XLOOKUP(O116,LabourFromFeed[Feed Quantity (kg)],LabourFromFeed[No. Labour],\"Out of range\",-1)","v":1},{"$f":"T116*OperatingCosts!$C$9","v":1200},138000]
[115,{"$f":"IF(A117<='S2-Double'!$C$7, B116*EXP((LN((E116/100)+1))*1),)","v":376.48630871994692},{"$f":"_xlfn.XLOOKUP($B117,FeedTables!$C$42:$T$42,FeedTables!$C$44:$T$44,,-1)","v":1.9117636283850548},{"$f":"_xlfn.XLOOKUP($B117,FeedTables!$C$42:$T$42,FeedTables!$C$45:$T$45,,-1)","v":1.5351728093320252},{"$f":"_xlfn.XLOOKUP($B117,FeedTables!$C$42:$T$42,FeedTables!$C$46:$T$46,,-1)*_xlfn.XLOOKUP(N116,DensityMultiplier[Biomass kg/m3],DensityMultiplier[Multiplier],,-1)","v":1.0460590743150193},3875.3217867817748,{"$f":"IF(A117<='S2-Double'!$C$7,('Growth-Model-2'!G116*EXP($AA$7)),0)","v":7.8347737715338611E-7},{"$f":"IF(A117<='S2-Double'!$C$7,$AD$6*EXP($AD$7*('S2-Double'!C$7-'Growth-Model-2'!A117)),0)","v":4.9723226607427166E-2},174.72793722830988,4.3142700550199968E-2,18.720409011581395,8.7749897341436149,1459.0055946074597,{"$f":"M117/'S2-Double'!$C$17","v":54.037244244720732},27.892738293808513,2034.9963382711087,{"$f":"_xlfn.XLOOKUP(B117,FeedTables!$C$17:$T$17,FeedTables!$C$31:$T$31,,-1)","v":"Unga 4mm"},{"$f":"_xlfn.XLOOKUP(Q117,FeedPrice[Feed],FeedPrice[Price per kg],\"Unknown\",0)*O117","v":2770.5884839978289},204316.86097686892,{"$f":"_xlfn.XLOOKUP(O117,LabourFromFeed[Feed Quantity (kg)],LabourFromFeed[No. Labour],\"Out of range\",-1)","v":1},{"$f":"T117*OperatingCosts!$C$9","v":1200},139200]
[116,{"$f":"IF(A118<='S2-Double'!$C$7, B117*EXP((LN((E117/100)+1))*1),)","v":380.42457791586554},{"$f":"_xlfn.XLOOKUP($B118,FeedTables!$C$42:$T$42,FeedTables!$C$44:$T$44,,-1)","v":1.9117636283850548},{"$f":"_xlfn.XLOOKUP($B118,FeedTables!$C$42:$T$42,FeedTables!$C$45:$T$45,,-1)","v":1.5351728093320252},{"$f":"_xlfn.XLOOKUP($B118,FeedTables!$C$42:$T$42,FeedTables!$C$46:$T$46,,-1)*_xlfn.XLOOKUP(N117,DensityMultiplier[Biomass kg/m3],DensityMultiplier[Multiplier],,-1)","v":1.0460590743150193},3875.2720627716899,{"$f":"IF(A118<='S2-Double'!$C$7,('Growth-Model-2'!G117*EXP($AA$7)),0)","v":6.7434522786450279E-7},{"$f":"IF(A118<='S2-Double'!$C$7,$AD$6*EXP($AD$7*('S2-Double'!C$7-'Growth-Model-2'!A118)),0)","v":6.0732086122934695E-2},174.78866998877803,4.3157696293525435E-2,23.104234766766108,8.798093968910381,1474.2487387890658,{"$f":"M118/'S2-Double'!$C$17","v":54.60180514033577},28.184151180094752,2063.1804894512034,{"$f":"_xlfn.XLOOKUP(B118,FeedTables!$C$17:$T$17,FeedTables!$C$31:$T$31,,-1)","v":"Unga 4mm"},{"$f":"_xlfn.XLOOKUP(Q118,FeedPrice[Feed],FeedPrice[Price per kg],\"Unknown\",0)*O118","v":2799.5345551339296},207116.39553200285,{"$f":"_xlfn.XLOOKUP(O118,LabourFromFeed[Feed Quantity (kg)],LabourFromFeed[No. Labour],\"Out of range\",-1)","v":1},{"$f":"T118*OperatingCosts!$C$9","v":1200},140400]
[117,{"$f":"IF(A119<='S2-Double'!$C$7, B118*EXP((LN((E118/100)+1))*1),)","v":384.40404373407904},{"$f":"_xlfn.XLOOKUP($B119,FeedTables!$C$42:$T$42,FeedTables!$C$44:$T$44,,-1)","v":1.9117636283850548},{"$f":"_xlfn.XLOOKUP($B119,FeedTables!$C$42:$T$42,FeedTables!$C$45:$T$45,,-1)","v":1.5351728093320252},{"$f":"_xlfn.XLOOKUP($B119,FeedTables!$C$42:$T$42,FeedTables!$C$46:$T$46,,-1)*_xlfn.XLOOKUP(N118,DensityMultiplier[Biomass kg/m3],DensityMultiplier[Multiplier],,-1)","v":1.0460590743150193},3875.2113300112214,{"$f":"IF(A119<='S2-Double'!$C$7,('Growth-Model-2'!G118*EXP($AA$7)),0)","v":5.804143164871507E-7},{"$f":"IF(A119<='S2-Double'!$C$7,$AD$6*EXP($AD$7*('S2-Double'!C$7-'Growth-Model-2'!A119)),0)","v":7.4178337499373415E-2},174.86284890669171,4.3176012075726349E-2,28.514676005840712,8.826608644916222,1489.6469055804321,{"$f":"M119/'S2-Double'!$C$17","v":55.172107614090073},28.478527732250161,2091.6590171834537,{"$f":"_xlfn.XLOOKUP(B119,FeedTables!$C$17:$T$17,FeedTables!$C$31:$T$31,,-1)","v":"Unga 4mm"},{"$f":"_xlfn.XLOOKUP(Q119,FeedPrice[Feed],FeedPrice[Price per kg],\"Unknown\",0)*O119","v":2828.7750074971818},209945.17053950002,{"$f":"_xlfn.XLOOKUP(O119,LabourFromFeed[Feed Quantity (kg)],LabourFromFeed[No. Labour],\"Out of range\",-1)","v":1},{"$f":"T119*OperatingCosts!$C$9","v":1200},141600]
[118,{"$f":"IF(A120<='S2-Double'!$C$7, B119*EXP((LN((E119/100)+1))*1),)","v":388.4251371155932},{"$f":"_xlfn.XLOOKUP($B120,FeedTables!$C$42:$T$42,FeedTables!$C$44:$T$44,,-1)","v":1.9117636283850548},{"$f":"_xlfn.XLOOKUP($B120,FeedTables!$C$42:$T$42,FeedTables!$C$45:$T$45,,-1)","v":1.5351728093320252},{"$f":"_xlfn.XLOOKUP($B120,FeedTables!$C$42:$T$42,FeedTables!$C$46:$T$46,,-1)*_xlfn.XLOOKUP(N119,DensityMultiplier[Biomass kg/m3],DensityMultiplier[Multiplier],,-1)","v":0.99624673744287573},3875.1371510933077,{"$f":"IF(A120<='S2-Double'!$C$7,('Growth-Model-2'!G119*EXP($AA$7)),0)","v":4.9956723183178856E-7},{"$f":"IF(A120<='S2-Double'!$C$7,$AD$6*EXP($AD$7*('S2-Double'!C$7-'Growth-Model-2'!A120)),0)","v":9.0601626017470641E-2},174.9534510322764,4.3198382970932446E-2,35.192143053202251,8.8618007879694236,1505.2006792551472,{"$f":"M120/'S2-Double'!$C$17","v":55.748173305746192},28.775879120204692,2120.4348963036582,{"$f":"_xlfn.XLOOKUP(B120,FeedTables!$C$17:$T$17,FeedTables!$C$31:$T$31,,-1)","v":"Unga 4mm"},{"$f":"_xlfn.XLOOKUP(Q120,FeedPrice[Feed],FeedPrice[Price per kg],\"Unknown\",0)*O120","v":2858.3109505978441},212803.48149009785,{"$f":"_xlfn.XLOOKUP(O120,LabourFromFeed[Feed Quantity (kg)],LabourFromFeed[No. Labour],\"Out of range\",-1)","v":1},{"$f":"T120*OperatingCosts!$C$9","v":1200},142800]
[119,{"$f":"IF(A121<='S2-Double'!$C$7, B120*EXP((LN((E120/100)+1))*1),)","v":392.29480987151533},{"$f":"_xlfn.XLOOKUP($B121,FeedTables!$C$42:$T$42,FeedTables!$C$44:$T$44,,-1)","v":1.9117636283850548},{"$f":"_xlfn.XLOOKUP($B121,FeedTables!$C$42:$T$42,FeedTables!$C$45:$T$45,,-1)","v":1.5351728093320252},{"$f":"_xlfn.XLOOKUP($B121,FeedTables!$C$42:$T$42,FeedTables!$C$46:$T$46,,-1)*_xlfn.XLOOKUP(N120,DensityMultiplier[Biomass kg/m3],DensityMultiplier[Multiplier],,-1)","v":0.99624673744287573},3875.0465489677231,{"$f":"IF(A121<='S2-Double'!$C$7,('Growth-Model-2'!G120*EXP($AA$7)),0)","v":4.2998150119820643E-7},{"$f":"IF(A121<='S2-Double'!$C$7,$AD$6*EXP($AD$7*('S2-Double'!C$7-'Growth-Model-2'!A121)),0)","v":0.11066107591153486},175.06411253816944,4.3225706799548007E-2,43.411934414404151,8.905212722383828,1520.1606491705645,{"$f":"M121/'S2-Double'!$C$17","v":56.302246265576464},29.061878383864986,2149.4967746875232,{"$f":"_xlfn.XLOOKUP(B121,FeedTables!$C$17:$T$17,FeedTables!$C$31:$T$31,,-1)","v":"Unga 4mm"},{"$f":"_xlfn.XLOOKUP(Q121,FeedPrice[Feed],FeedPrice[Price per kg],\"Unknown\",0)*O121","v":2886.7192860571477},215690.20077615499,{"$f":"_xlfn.XLOOKUP(O121,LabourFromFeed[Feed Quantity (kg)],LabourFromFeed[No. Labour],\"Out of range\",-1)","v":1},{"$f":"T121*OperatingCosts!$C$9","v":1200},144000]
[120,{"$f":"IF(A122<='S2-Double'!$C$7, B121*EXP((LN((E121/100)+1))*1),)","v":396.20303411601805},{"$f":"_xlfn.XLOOKUP($B122,FeedTables!$C$42:$T$42,FeedTables!$C$44:$T$44,,-1)","v":1.9117636283850548},{"$f":"_xlfn.XLOOKUP($B122,FeedTables!$C$42:$T$42,FeedTables!$C$45:$T$45,,-1)","v":1.5351728093320252},{"$f":"_xlfn.XLOOKUP($B122,FeedTables!$C$42:$T$42,FeedTables!$C$46:$T$46,,-1)*_xlfn.XLOOKUP(N121,DensityMultiplier[Biomass kg/m3],DensityMultiplier[Multiplier],,-1)","v":0.99624673744287573},3874.9358874618301,{"$f":"IF(A122<='S2-Double'!$C$7,('Growth-Model-2'!G121*EXP($AA$7)),0)","v":3.7008850779651684E-7},{"$f":"IF(A122<='S2-Double'!$C$7,$AD$6*EXP($AD$7*('S2-Double'!C$7-'Growth-Model-2'!A122)),0)","v":0.13516174333932057},175.19927465159728,4.3259080160888218E-2,53.551639437638983,8.9587643618214674,1535.2613556174222,{"$f":"M122/'S2-Double'!$C$17","v":56.861531689534154},29.350568197345208,2178.8473428848683,{"$f":"_xlfn.XLOOKUP(B122,FeedTables!$C$17:$T$17,FeedTables!$C$31:$T$31,,-1)","v":"Unga 4mm"},{"$f":"_xlfn.XLOOKUP(Q122,FeedPrice[Feed],FeedPrice[Price per kg],\"Unknown\",0)*O122","v":2915.3948740991191},218605.59565025411,{"$f":"_xlfn.XLOOKUP(O122,LabourFromFeed[Feed Quantity (kg)],LabourFromFeed[No. Labour],\"Out of range\",-1)","v":1},{"$f":"T122*OperatingCosts!$C$9","v":1200},145200]
[121,{"$f":"IF(A123<='S2-Double'!$C$7, B122*EXP((LN((E122/100)+1))*1),)","v":400.15019391704857},{"$f":"_xlfn.XLOOKUP($B123,FeedTables!$C$42:$T$42,FeedTables!$C$44:$T$44,,-1)","v":1.5895597072390606},{"$f":"_xlfn.XLOOKUP($B123,FeedTables!$C$42:$T$42,FeedTables!$C$45:$T$45,,-1)","v":1.5711330683884976},{"$f":"_xlfn.XLOOKUP($B123,FeedTables!$C$42:$T$42,FeedTables!$C$46:$T$46,,-1)*_xlfn.XLOOKUP(N122,DensityMultiplier[Biomass kg/m3],DensityMultiplier[Multiplier],,-1)","v":0.80938259869711138},3874.8007253484025,{"$f":"IF(A123<='S2-Double'!$C$7,('Growth-Model-2'!G122*EXP($AA$7)),0)","v":3.1853813064370924E-7},{"$f":"IF(A123<='S2-Double'!$C$7,$AD$6*EXP($AD$7*('S2-Double'!C$7-'Growth-Model-2'!A123)),0)","v":0.16508692611238315},175.3643618962478,4.3299842443517977E-2,66.059692960134342,9.0248240547816021,1550.5022616380838,{"$f":"M123/'S2-Double'!$C$17","v":57.426009690299402},24.646159210829335,2203.4935020956977,{"$f":"_xlfn.XLOOKUP(B123,FeedTables!$C$17:$T$17,FeedTables!$C$31:$T$31,,-1)","v":"Unga 4mm"},{"$f":"_xlfn.XLOOKUP(Q123,FeedPrice[Feed],FeedPrice[Price per kg],\"Unknown\",0)*O123","v":2448.105459027599},221053.70110928171,{"$f":"_xlfn.XLOOKUP(O123,LabourFromFeed[Feed Quantity (kg)],LabourFromFeed[No. Labour],\"Out of range\",-1)","v":1},{"$f":"T123*OperatingCosts!$C$9","v":1200},146400]
[122,{"$f":"IF(A124<='S2-Double'!$C$7, B123*EXP((LN((E123/100)+1))*1),)","v":403.38893995526593},{"$f":"_xlfn.XLOOKUP($B124,FeedTables!$C$42:$T$42,FeedTables!$C$44:$T$44,,-1)","v":1.5895597072390606},{"$f":"_xlfn.XLOOKUP($B124,FeedTables!$C$42:$T$42,FeedTables!$C$45:$T$45,,-1)","v":1.5711330683884976},{"$f":"_xlfn.XLOOKUP($B124,FeedTables!$C$42:$T$42,FeedTables!$C$46:$T$46,,-1)*_xlfn.XLOOKUP(N123,DensityMultiplier[Biomass kg/m3],DensityMultiplier[Multiplier],,-1)","v":0.80938259869711138},3874.6356381037517,{"$f":"IF(A124<='S2-Double'!$C$7,('Growth-Model-2'!G123*EXP($AA$7)),0)","v":2.7416830984056768E-7},{"$f":"IF(A124<='S2-Double'!$C$7,$AD$6*EXP($AD$7*('S2-Double'!C$7-'Growth-Model-2'!A124)),0)","v":0.20163762688984896},175.56599979730598,4.3349629579581724E-2,81.338499162655467,9.106162553944257,1562.9851627675678,{"$f":"M124/'S2-Double'!$C$17","v":57.888339361761773},24.844582377478105,2228.338084473176,{"$f":"_xlfn.XLOOKUP(B124,FeedTables!$C$17:$T$17,FeedTables!$C$31:$T$31,,-1)","v":"Unga 4mm"},{"$f":"_xlfn.XLOOKUP(Q124,FeedPrice[Feed],FeedPrice[Price per kg],\"Unknown\",0)*O124","v":2467.8148520131381},223521.51596129485,{"$f":"_xlfn.XLOOKUP(O124,LabourFromFeed[Feed Quantity (kg)],LabourFromFeed[No. Labour],\"Out of range\",-1)","v":1},{"$f":"T124*OperatingCosts!$C$9","v":1200},147600]
[123,{"$f":"IF(A125<='S2-Double'!$C$7, B124*EXP((LN((E124/100)+1))*1),)","v":406.6538998403326},{"$f":"_xlfn.XLOOKUP($B125,FeedTables!$C$42:$T$42,FeedTables!$C$44:$T$44,,-1)","v":1.5895597072390606},{"$f":"_xlfn.XLOOKUP($B125,FeedTables!$C$42:$T$42,FeedTables!$C$45:$T$45,,-1)","v":1.5711330683884976},{"$f":"_xlfn.XLOOKUP($B125,FeedTables!$C$42:$T$42,FeedTables!$C$46:$T$46,,-1)*_xlfn.XLOOKUP(N124,DensityMultiplier[Biomass kg/m3],DensityMultiplier[Multiplier],,-1)","v":0.80938259869711138},3874.4340002026938,{"$f":"IF(A125<='S2-Double'!$C$7,('Growth-Model-2'!G124*EXP($AA$7)),0)","v":2.3597885116275327E-7},{"$f":"IF(A125<='S2-Double'!$C$7,$AD$6*EXP($AD$7*('S2-Double'!C$7-'Growth-Model-2'!A125)),0)","v":0.2462807536321327},175.81228078691697,4.3410439700473327E-2,100.15112488184302,9.2063136788261009,1575.5536958564055,{"$f":"M125/'S2-Double'!$C$17","v":58.353840587274277},25.044366715249279,2253.3824511884254,{"$f":"_xlfn.XLOOKUP(B125,FeedTables!$C$17:$T$17,FeedTables!$C$31:$T$31,,-1)","v":"Unga 4mm"},{"$f":"_xlfn.XLOOKUP(Q125,FeedPrice[Feed],FeedPrice[Price per kg],\"Unknown\",0)*O125","v":2487.6594502623825},226009.17541155723,{"$f":"_xlfn.XLOOKUP(O125,LabourFromFeed[Feed Quantity (kg)],LabourFromFeed[No. Labour],\"Out of range\",-1)","v":1},{"$f":"T125*OperatingCosts!$C$9","v":1200},148800]
[124,{"$f":"IF(A126<='S2-Double'!$C$7, B125*EXP((LN((E125/100)+1))*1),)","v":409.94528574256344},{"$f":"_xlfn.XLOOKUP($B126,FeedTables!$C$42:$T$42,FeedTables!$C$44:$T$44,,-1)","v":1.5895597072390606},{"$f":"_xlfn.XLOOKUP($B126,FeedTables!$C$42:$T$42,FeedTables!$C$45:$T$45,,-1)","v":1.5711330683884976},{"$f":"_xlfn.XLOOKUP($B126,FeedTables!$C$42:$T$42,FeedTables!$C$46:$T$46,,-1)*_xlfn.XLOOKUP(N125,DensityMultiplier[Biomass kg/m3],DensityMultiplier[Multiplier],,-1)","v":0.80938259869711138},3874.1877192130828,{"$f":"IF(A126<='S2-Double'!$C$7,('Growth-Model-2'!G125*EXP($AA$7)),0)","v":2.0310887946340326E-7},{"$f":"IF(A126<='S2-Double'!$C$7,$AD$6*EXP($AD$7*('S2-Double'!C$7-'Growth-Model-2'!A126)),0)","v":0.30080799176805217},176.11308898179388,4.3484713328837993E-2,123.31490140252843,9.3296285802286292,1588.2049915731375,{"$f":"M126/'S2-Double'!$C$17","v":58.822407095301386},25.245466614406109,2278.6279178028317,{"$f":"_xlfn.XLOOKUP(B126,FeedTables!$C$17:$T$17,FeedTables!$C$31:$T$31,,-1)","v":"Unga 4mm"},{"$f":"_xlfn.XLOOKUP(Q126,FeedPrice[Feed],FeedPrice[Price per kg],\"Unknown\",0)*O126","v":2507.6347233556203},228516.81013491284,{"$f":"_xlfn.XLOOKUP(O126,LabourFromFeed[Feed Quantity (kg)],LabourFromFeed[No. Labour],\"Out of range\",-1)","v":1},{"$f":"T126*OperatingCosts!$C$9","v":1200},150000]
[125,{"$f":"IF(A127<='S2-Double'!$C$7, B126*EXP((LN((E126/100)+1))*1),)","v":413.26331154954295},{"$f":"_xlfn.XLOOKUP($B127,FeedTables!$C$42:$T$42,FeedTables!$C$44:$T$44,,-1)","v":1.5895597072390606},{"$f":"_xlfn.XLOOKUP($B127,FeedTables!$C$42:$T$42,FeedTables!$C$45:$T$45,,-1)","v":1.5711330683884976},{"$f":"_xlfn.XLOOKUP($B127,FeedTables!$C$42:$T$42,FeedTables!$C$46:$T$46,,-1)*_xlfn.XLOOKUP(N126,DensityMultiplier[Biomass kg/m3],DensityMultiplier[Multiplier],,-1)","v":0.80938259869711138},3873.8869110182059,{"$f":"IF(A127<='S2-Double'!$C$7,('Growth-Model-2'!G126*EXP($AA$7)),0)","v":1.7481743263690681E-7},{"$f":"IF(A127<='S2-Double'!$C$7,$AD$6*EXP($AD$7*('S2-Double'!C$7-'Growth-Model-2'!A127)),0)","v":0.36740771082212048},176.48049686743343,4.3575431325292208E-2,151.83619950881749,9.4814647797374469,1600.9353334158134,{"$f":"M127/'S2-Double'!$C$17","v":59.29390123762272},25.44782299893108,2304.0757408017625,{"$f":"_xlfn.XLOOKUP(B127,FeedTables!$C$17:$T$17,FeedTables!$C$31:$T$31,,-1)","v":"Unga 4mm"},{"$f":"_xlfn.XLOOKUP(Q127,FeedPrice[Feed],FeedPrice[Price per kg],\"Unknown\",0)*O127","v":2527.7348032661243},231044.54493817897,{"$f":"_xlfn.XLOOKUP(O127,LabourFromFeed[Feed Quantity (kg)],LabourFromFeed[No. Labour],\"Out of range\",-1)","v":1},{"$f":"T127*OperatingCosts!$C$9","v":1200},151200]
[126,{"$f":"IF(A128<='S2-Double'!$C$7, B127*EXP((LN((E127/100)+1))*1),)","v":416.60819288002438},{"$f":"_xlfn.XLOOKUP($B128,FeedTables!$C$42:$T$42,FeedTables!$C$44:$T$44,,-1)","v":1.5895597072390606},{"$f":"_xlfn.XLOOKUP($B128,FeedTables!$C$42:$T$42,FeedTables!$C$45:$T$45,,-1)","v":1.5711330683884976},{"$f":"_xlfn.XLOOKUP($B128,FeedTables!$C$42:$T$42,FeedTables!$C$46:$T$46,,-1)*_xlfn.XLOOKUP(N127,DensityMultiplier[Biomass kg/m3],DensityMultiplier[Multiplier],,-1)","v":0.80938259869711138},3873.5195031325661,{"$f":"IF(A128<='S2-Double'!$C$7,('Growth-Model-2'!G127*EXP($AA$7)),0)","v":1.5046675868873593E-7},{"$f":"IF(A128<='S2-Double'!$C$7,$AD$6*EXP($AD$7*('S2-Double'!C$7-'Growth-Model-2'!A128)),0)","v":0.44875279136745216},176.92924980926762,4.3686234520806819E-2,186.95415214714527,9.6684189318845917,1613.7399602855885,{"$f":"M128/'S2-Double'!$C$17","v":59.768146677244019},25.65136018831533,2329.7271009900778,{"$f":"_xlfn.XLOOKUP(B128,FeedTables!$C$17:$T$17,FeedTables!$C$31:$T$31,,-1)","v":"Unga 4mm"},{"$f":"_xlfn.XLOOKUP(Q128,FeedPrice[Feed],FeedPrice[Price per kg],\"Unknown\",0)*O128","v":2547.9521726413805},233592.49711082035,{"$f":"_xlfn.XLOOKUP(O128,LabourFromFeed[Feed Quantity (kg)],LabourFromFeed[No. Labour],\"Out of range\",-1)","v":1},{"$f":"T128*OperatingCosts!$C$9","v":1200},152400]
[127,{"$f":"IF(A129<='S2-Double'!$C$7, B128*EXP((LN((E128/100)+1))*1),)","v":419.98014709794182},{"$f":"_xlfn.XLOOKUP($B129,FeedTables!$C$42:$T$42,FeedTables!$C$44:$T$44,,-1)","v":1.5895597072390606},{"$f":"_xlfn.XLOOKUP($B129,FeedTables!$C$42:$T$42,FeedTables!$C$45:$T$45,,-1)","v":1.5711330683884976},{"$f":"_xlfn.XLOOKUP($B129,FeedTables!$C$42:$T$42,FeedTables!$C$46:$T$46,,-1)*_xlfn.XLOOKUP(N128,DensityMultiplier[Biomass kg/m3],DensityMultiplier[Multiplier],,-1)","v":0.80938259869711138},3873.0707501907318,{"$f":"IF(A129<='S2-Double'!$C$7,('Growth-Model-2'!G128*EXP($AA$7)),0)","v":1.2950793939021938E-7},{"$f":"IF(A129<='S2-Double'!$C$7,$AD$6*EXP($AD$7*('S2-Double'!C$7-'Growth-Model-2'!A129)),0)","v":0.54810789710828145},177.47735783588385,4.3821569836020702E-2,230.19448964384304,9.8986134215284345,1626.6128233858394,{"$f":"M129/'S2-Double'!$C$17","v":60.244919384660719},25.855982033324963,2355.5830830234027,{"$f":"_xlfn.XLOOKUP(B129,FeedTables!$C$17:$T$17,FeedTables!$C$31:$T$31,,-1)","v":"Unga 4mm"},{"$f":"_xlfn.XLOOKUP(Q129,FeedPrice[Feed],FeedPrice[Price per kg],\"Unknown\",0)*O129","v":2568.277280968372},236160.77439178873,{"$f":"_xlfn.XLOOKUP(O129,LabourFromFeed[Feed Quantity (kg)],LabourFromFeed[No. Labour],\"Out of range\",-1)","v":1},{"$f":"T129*OperatingCosts!$C$9","v":1200},153600]
[128,{"$f":"IF(A130<='S2-Double'!$C$7, B129*EXP((LN((E129/100)+1))*1),)","v":423.37939332653514},{"$f":"_xlfn.XLOOKUP($B130,FeedTables!$C$42:$T$42,FeedTables!$C$44:$T$44,,-1)","v":1.5895597072390606},{"$f":"_xlfn.XLOOKUP($B130,FeedTables!$C$42:$T$42,FeedTables!$C$45:$T$45,,-1)","v":1.5711330683884976},{"$f":"_xlfn.XLOOKUP($B130,FeedTables!$C$42:$T$42,FeedTables!$C$46:$T$46,,-1)*_xlfn.XLOOKUP(N129,DensityMultiplier[Biomass kg/m3],DensityMultiplier[Multiplier],,-1)","v":0.76891346876225575},3872.5226421641155,{"$f":"IF(A130<='S2-Double'!$C$7,('Growth-Model-2'!G129*EXP($AA$7)),0)","v":1.1146851644353476E-7},{"$f":"IF(A130<='S2-Double'!$C$7,$AD$6*EXP($AD$7*('S2-Double'!C$7-'Growth-Model-2'!A130)),0)","v":0.66946049729742541},178.1468184446498,4.3986868751765384E-2,283.43582639533736,10.182049247923771,1639.5462868827142,{"$f":"M130/'S2-Double'!$C$17","v":60.723936551211636},26.061567157821759,2381.6446501812243,{"$f":"_xlfn.XLOOKUP(B130,FeedTables!$C$17:$T$17,FeedTables!$C$31:$T$31,,-1)","v":"Unga 4mm"},{"$f":"_xlfn.XLOOKUP(Q130,FeedPrice[Feed],FeedPrice[Price per kg],\"Unknown\",0)*O130","v":2588.6980719431513},238749.47246373189,{"$f":"_xlfn.XLOOKUP(O130,LabourFromFeed[Feed Quantity (kg)],LabourFromFeed[No. Labour],\"Out of range\",-1)","v":1},{"$f":"T130*OperatingCosts!$C$9","v":1200},154800]
[129,{"$f":"IF(A131<='S2-Double'!$C$7, B130*EXP((LN((E130/100)+1))*1),)","v":426.63481450578684},{"$f":"_xlfn.XLOOKUP($B131,FeedTables!$C$42:$T$42,FeedTables!$C$44:$T$44,,-1)","v":1.5895597072390606},{"$f":"_xlfn.XLOOKUP($B131,FeedTables!$C$42:$T$42,FeedTables!$C$45:$T$45,,-1)","v":1.5711330683884976},{"$f":"_xlfn.XLOOKUP($B131,FeedTables!$C$42:$T$42,FeedTables!$C$46:$T$46,,-1)*_xlfn.XLOOKUP(N130,DensityMultiplier[Biomass kg/m3],DensityMultiplier[Multiplier],,-1)","v":0.76891346876225575},3871.8531815553497,{"$f":"IF(A131<='S2-Double'!$C$7,('Growth-Model-2'!G130*EXP($AA$7)),0)","v":9.5941841223218082E-8},{"$f":"IF(A131<='S2-Double'!$C$7,$AD$6*EXP($AD$7*('S2-Double'!C$7-'Growth-Model-2'!A131)),0)","v":0.8176808978783543},178.96449943846997,{"$f":"I131/$F$2","v":4.4188765293449374E-2},{"$f":"(G131+H131)*B131","v":348.85117912338654},10.530900427047158,{"$f":"(B131*F131)/1000","v":1651.8673639065071},{"$f":"M131/'S2-Double'!$C$17","v":61.180272737278038},{"$f":"M131*(C131/100)","v":26.257418033689859},2407.9020682149139,{"$f":"_xlfn.XLOOKUP(B131,FeedTables!$C$17:$T$17,FeedTables!$C$31:$T$31,,-1)","v":"Unga 4mm"},{"$f":"_xlfn.XLOOKUP(Q131,FeedPrice[Feed],FeedPrice[Price per kg],\"Unknown\",0)*O131","v":2608.1519590282173},241357.6244227601,{"$f":"_xlfn.XLOOKUP(O131,LabourFromFeed[Feed Quantity (kg)],LabourFromFeed[No. Labour],\"Out of range\",-1)","v":1},{"$f":"T131*OperatingCosts!$C$9","v":1200},156000]
[130,{"$f":"IF(A132<='S2-Double'!$C$7, B131*EXP((LN((E131/100)+1))*1),)","v":429.91526705695077},{"$f":"_xlfn.XLOOKUP($B132,FeedTables!$C$42:$T$42,FeedTables!$C$44:$T$44,,-1)","v":1.5895597072390606},{"$f":"_xlfn.XLOOKUP($B132,FeedTables!$C$42:$T$42,FeedTables!$C$45:$T$45,,-1)","v":1.5711330683884976},{"$f":"_xlfn.XLOOKUP($B132,FeedTables!$C$42:$T$42,FeedTables!$C$46:$T$46,,-1)*_xlfn.XLOOKUP(N131,DensityMultiplier[Biomass kg/m3],DensityMultiplier[Multiplier],,-1)","v":0.76891346876225575},{"$f":"F131-G131-H131","v":3871.0355005615297},{"$f":"IF(A132<='S2-Double'!$C$7,('Growth-Model-2'!G131*EXP($AA$7)),0)","v":8.2577908013730229E-8},{"$f":"IF(A132<='S2-Double'!$C$7,$AD$6*EXP($AD$7*('S2-Double'!C$7-'Growth-Model-2'!A132)),0)","v":0.99871770396350601},{"$f":"I131+G132+H132","v":179.96321722501139},4.4435362277780589E-2,429.36402391547881,{"$f":"(K132/1000)+L131","v":10.960264450962637},1664.2172610108471,{"$f":"M132/'S2-Double'!$C$17","v":61.637676333735079},26.453727021945934,{"$f":"O132+P131","v":2434.3557952368596},{"$f":"_xlfn.XLOOKUP(B132,FeedTables!$C$17:$T$17,FeedTables!$C$31:$T$31,,-1)","v":"Unga 4mm"},{"$f":"_xlfn.XLOOKUP(Q132,FeedPrice[Feed],FeedPrice[Price per kg],\"Unknown\",0)*O132","v":2627.6513504625918},{"$f":"R132+S131","v":243985.2757732227},{"$f":"_xlfn.XLOOKUP(O132,LabourFromFeed[Feed Quantity (kg)],LabourFromFeed[No. Labour],\"Out of range\",-1)","v":1},{"$f":"T132*OperatingCosts!$C$9","v":1200},{"$f":"U132+V131","v":157200}]
[131,{"$f":"IF(A133<='S2-Double'!$C$7, B132*EXP((LN((E132/100)+1))*1),)","v":433.22094344961693},{"$f":"_xlfn.XLOOKUP($B133,FeedTables!$C$42:$T$42,FeedTables!$C$44:$T$44,,-1)","v":1.5895597072390606},{"$f":"_xlfn.XLOOKUP($B133,FeedTables!$C$42:$T$42,FeedTables!$C$45:$T$45,,-1)","v":1.5711330683884976},{"$f":"_xlfn.XLOOKUP($B133,FeedTables!$C$42:$T$42,FeedTables!$C$46:$T$46,,-1)*_xlfn.XLOOKUP(N132,DensityMultiplier[Biomass kg/m3],DensityMultiplier[Multiplier],,-1)","v":0.76891346876225575},3870.0367827749883,{"$f":"IF(A133<='S2-Double'!$C$7,('Growth-Model-2'!G132*EXP($AA$7)),0)","v":7.1075464103912316E-8},{"$f":"IF(A133<='S2-Double'!$C$7,$AD$6*EXP($AD$7*('S2-Double'!C$7-'Growth-Model-2'!A133)),0)","v":1.2198365582444182},181.18305385433129,4.4736556507242294E-2,528.45877540836011,11.488723226370997,1676.5809862185006,{"$f":"M133/'S2-Double'!$C$17","v":62.095592082166689},26.650255816160552,2461.0060510530202,{"$f":"_xlfn.XLOOKUP(B133,FeedTables!$C$17:$T$17,FeedTables!$C$31:$T$31,,-1)","v":"Unga 4mm"},{"$f":"_xlfn.XLOOKUP(Q133,FeedPrice[Feed],FeedPrice[Price per kg],\"Unknown\",0)*O133","v":2647.1725752448092},246632.4483484675,{"$f":"_xlfn.XLOOKUP(O133,LabourFromFeed[Feed Quantity (kg)],LabourFromFeed[No. Labour],\"Out of range\",-1)","v":1},{"$f":"T133*OperatingCosts!$C$9","v":1200},158400]
[132,{"$f":"IF(A134<='S2-Double'!$C$7, B133*EXP((LN((E133/100)+1))*1),)","v":436.55203763330002},{"$f":"_xlfn.XLOOKUP($B134,FeedTables!$C$42:$T$42,FeedTables!$C$44:$T$44,,-1)","v":1.5895597072390606},{"$f":"_xlfn.XLOOKUP($B134,FeedTables!$C$42:$T$42,FeedTables!$C$45:$T$45,,-1)","v":1.5711330683884976},{"$f":"_xlfn.XLOOKUP($B134,FeedTables!$C$42:$T$42,FeedTables!$C$46:$T$46,,-1)*_xlfn.XLOOKUP(N133,DensityMultiplier[Biomass kg/m3],DensityMultiplier[Multiplier],,-1)","v":0.76891346876225575},3868.8169461456682,{"$f":"IF(A134<='S2-Double'!$C$7,('Growth-Model-2'!G133*EXP($AA$7)),0)","v":6.1175218882350198E-8},{"$f":"IF(A134<='S2-Double'!$C$7,$AD$6*EXP($AD$7*('S2-Double'!C$7-'Growth-Model-2'!A134)),0)","v":1.4899117367443413},182.67296565225087,4.5104435963518735E-2,650.42403127567752,12.139147257646675,1688.9399210701326,{"$f":"M134/'S2-Double'!$C$17","v":62.553330410004911},26.846708464806021,2487.8527595178261,{"$f":"_xlfn.XLOOKUP(B134,FeedTables!$C$17:$T$17,FeedTables!$C$31:$T$31,,-1)","v":"Unga 4mm"},{"$f":"_xlfn.XLOOKUP(Q134,FeedPrice[Feed],FeedPrice[Price per kg],\"Unknown\",0)*O134","v":2666.6862364800286},249299.13458494752,{"$f":"_xlfn.XLOOKUP(O134,LabourFromFeed[Feed Quantity (kg)],LabourFromFeed[No. Labour],\"Out of range\",-1)","v":1},{"$f":"T134*OperatingCosts!$C$9","v":1200},159600]
[133,{"$f":"IF(A135<='S2-Double'!$C$7, B134*EXP((LN((E134/100)+1))*1),)","v":439.90874504881856},{"$f":"_xlfn.XLOOKUP($B135,FeedTables!$C$42:$T$42,FeedTables!$C$44:$T$44,,-1)","v":1.5895597072390606},{"$f":"_xlfn.XLOOKUP($B135,FeedTables!$C$42:$T$42,FeedTables!$C$45:$T$45,,-1)","v":1.5711330683884976},{"$f":"_xlfn.XLOOKUP($B135,FeedTables!$C$42:$T$42,FeedTables!$C$46:$T$46,,-1)*_xlfn.XLOOKUP(N134,DensityMultiplier[Biomass kg/m3],DensityMultiplier[Multiplier],,-1)","v":0.76891346876225575},3867.3270343477484,{"$f":"IF(A135<='S2-Double'!$C$7,('Growth-Model-2'!G134*EXP($AA$7)),0)","v":5.2653998851587624E-8},{"$f":"IF(A135<='S2-Double'!$C$7,$AD$6*EXP($AD$7*('S2-Double'!C$7-'Growth-Model-2'!A135)),0)","v":1.8197823046747472},184.49274800957963,4.5553764940636947E-2,800.53817307446946,12.939685430721145,1701.2709823732871,{"$f":"M135/'S2-Double'!$C$17","v":63.010036384195821},27.042718046755912,2514.8954775645821,{"$f":"_xlfn.XLOOKUP(B135,FeedTables!$C$17:$T$17,FeedTables!$C$31:$T$31,,-1)","v":"Unga 4mm"},{"$f":"_xlfn.XLOOKUP(Q135,FeedPrice[Feed],FeedPrice[Price per kg],\"Unknown\",0)*O135","v":2686.1558878560695},251985.29047280358,{"$f":"_xlfn.XLOOKUP(O135,LabourFromFeed[Feed Quantity (kg)],LabourFromFeed[No. Labour],\"Out of range\",-1)","v":1},{"$f":"T135*OperatingCosts!$C$9","v":1200},160800]
[134,{"$f":"IF(A136<='S2-Double'!$C$7, B135*EXP((LN((E135/100)+1))*1),)","v":443.29126263976201},{"$f":"_xlfn.XLOOKUP($B136,FeedTables!$C$42:$T$42,FeedTables!$C$44:$T$44,,-1)","v":1.5895597072390606},{"$f":"_xlfn.XLOOKUP($B136,FeedTables!$C$42:$T$42,FeedTables!$C$45:$T$45,,-1)","v":1.5711330683884976},{"$f":"_xlfn.XLOOKUP($B136,FeedTables!$C$42:$T$42,FeedTables!$C$46:$T$46,,-1)*_xlfn.XLOOKUP(N135,DensityMultiplier[Biomass kg/m3],DensityMultiplier[Multiplier],,-1)","v":0.76891346876225575},3865.5072519904197,{"$f":"IF(A136<='S2-Double'!$C$7,('Growth-Model-2'!G135*EXP($AA$7)),0)","v":4.5319716802237299E-8},{"$f":"IF(A136<='S2-Double'!$C$7,$AD$6*EXP($AD$7*('S2-Double'!C$7-'Growth-Model-2'!A136)),0)","v":2.2226871261808068},186.71543518108015,4.6102576587921024E-2,985.29780270766832,13.924983233428813,1713.5455904779897,{"$f":"M136/'S2-Double'!$C$17","v":63.464651499184804},27.237830271409763,2542.1333078359917,{"$f":"_xlfn.XLOOKUP(B136,FeedTables!$C$17:$T$17,FeedTables!$C$31:$T$31,,-1)","v":"Unga 4mm"},{"$f":"_xlfn.XLOOKUP(Q136,FeedPrice[Feed],FeedPrice[Price per kg],\"Unknown\",0)*O136","v":2705.5364046421591},254690.82687744574,{"$f":"_xlfn.XLOOKUP(O136,LabourFromFeed[Feed Quantity (kg)],LabourFromFeed[No. Labour],\"Out of range\",-1)","v":1},{"$f":"T136*OperatingCosts!$C$9","v":1200},162000]
[135,{"$f":"IF(A137<='S2-Double'!$C$7, B136*EXP((LN((E136/100)+1))*1),)","v":446.69978886404544},{"$f":"_xlfn.XLOOKUP($B137,FeedTables!$C$42:$T$42,FeedTables!$C$44:$T$44,,-1)","v":1.5895597072390606},{"$f":"_xlfn.XLOOKUP($B137,FeedTables!$C$42:$T$42,FeedTables!$C$45:$T$45,,-1)","v":1.5711330683884976},{"$f":"_xlfn.XLOOKUP($B137,FeedTables!$C$42:$T$42,FeedTables!$C$46:$T$46,,-1)*_xlfn.XLOOKUP(N136,DensityMultiplier[Biomass kg/m3],DensityMultiplier[Multiplier],,-1)","v":0.76891346876225575},3863.2845648189191,{"$f":"IF(A137<='S2-Double'!$C$7,('Growth-Model-2'!G136*EXP($AA$7)),0)","v":3.9007041741010359E-8},{"$f":"IF(A137<='S2-Double'!$C$7,$AD$6*EXP($AD$7*('S2-Double'!C$7-'Growth-Model-2'!A137)),0)","v":2.7147961864443393},189.43023140653153,4.6772896643588031E-2,1212.6989007180393,15.137682134146853,1725.7283994263369,{"$f":"M137/'S2-Double'!$C$17","v":63.915866645419882},27.431483293662605,2569.5647911296542,{"$f":"_xlfn.XLOOKUP(B137,FeedTables!$C$17:$T$17,FeedTables!$C$31:$T$31,,-1)","v":"Unga 4mm"},{"$f":"_xlfn.XLOOKUP(Q137,FeedPrice[Feed],FeedPrice[Price per kg],\"Unknown\",0)*O137","v":2724.7719787078358},257415.59885615358,{"$f":"_xlfn.XLOOKUP(O137,LabourFromFeed[Feed Quantity (kg)],LabourFromFeed[No. Labour],\"Out of range\",-1)","v":1},{"$f":"T137*OperatingCosts!$C$9","v":1200},163200]
[136,{"$f":"IF(A138<='S2-Double'!$C$7, B137*EXP((LN((E137/100)+1))*1),)","v":450.1345237055537},{"$f":"_xlfn.XLOOKUP($B138,FeedTables!$C$42:$T$42,FeedTables!$C$44:$T$44,,-1)","v":1.5895597072390606},{"$f":"_xlfn.XLOOKUP($B138,FeedTables!$C$42:$T$42,FeedTables!$C$45:$T$45,,-1)","v":1.5711330683884976},{"$f":"_xlfn.XLOOKUP($B138,FeedTables!$C$42:$T$42,FeedTables!$C$46:$T$46,,-1)*_xlfn.XLOOKUP(N137,DensityMultiplier[Biomass kg/m3],DensityMultiplier[Multiplier],,-1)","v":0.76891346876225575},3860.5697685934679,{"$f":"IF(A138<='S2-Double'!$C$7,('Growth-Model-2'!G137*EXP($AA$7)),0)","v":3.3573671963232789E-8},{"$f":"IF(A138<='S2-Double'!$C$7,$AD$6*EXP($AD$7*('S2-Double'!C$7-'Growth-Model-2'!A138)),0)","v":3.3158595499658263},192.74609099007105,4.7591627404955816E-2,1492.5828743110476,16.630265008457901,1737.7757340178805,{"$f":"M138/'S2-Double'!$C$17","v":64.362064222884456},27.622982870126055,2597.1877739997803,{"$f":"_xlfn.XLOOKUP(B138,FeedTables!$C$17:$T$17,FeedTables!$C$31:$T$31,,-1)","v":"Unga 4mm"},{"$f":"_xlfn.XLOOKUP(Q138,FeedPrice[Feed],FeedPrice[Price per kg],\"Unknown\",0)*O138","v":2743.7936507879081},260159.39250694148,{"$f":"_xlfn.XLOOKUP(O138,LabourFromFeed[Feed Quantity (kg)],LabourFromFeed[No. Labour],\"Out of range\",-1)","v":1},{"$f":"T138*OperatingCosts!$C$9","v":1200},164400]
[137,{"$f":"IF(A139<='S2-Double'!$C$7, B138*EXP((LN((E138/100)+1))*1),)","v":453.59566868587456},{"$f":"_xlfn.XLOOKUP($B139,FeedTables!$C$42:$T$42,FeedTables!$C$44:$T$44,,-1)","v":1.5895597072390606},{"$f":"_xlfn.XLOOKUP($B139,FeedTables!$C$42:$T$42,FeedTables!$C$45:$T$45,,-1)","v":1.5711330683884976},{"$f":"_xlfn.XLOOKUP($B139,FeedTables!$C$42:$T$42,FeedTables!$C$46:$T$46,,-1)*_xlfn.XLOOKUP(N138,DensityMultiplier[Biomass kg/m3],DensityMultiplier[Multiplier],,-1)","v":0.76891346876225575},3857.2539090099285,{"$f":"IF(A139<='S2-Double'!$C$7,('Growth-Model-2'!G138*EXP($AA$7)),0)","v":2.8897127256632793E-8},{"$f":"IF(A139<='S2-Double'!$C$7,$AD$6*EXP($AD$7*('S2-Double'!C$7-'Growth-Model-2'!A139)),0)","v":4.05},196.79609101896818,4.8591627412090908E-2,1837.0624712854037,18.467327479743304,1749.633666148562,{"$f":"M139/'S2-Double'!$C$17","v":64.801246894391184},27.811471781387123,2624.9992457811672,{"$f":"_xlfn.XLOOKUP(B139,FeedTables!$C$17:$T$17,FeedTables!$C$31:$T$31,,-1)","v":"Unga 4mm"},{"$f":"_xlfn.XLOOKUP(Q139,FeedPrice[Feed],FeedPrice[Price per kg],\"Unknown\",0)*O139","v":2762.516273192361},262921.90878013382,{"$f":"_xlfn.XLOOKUP(O139,LabourFromFeed[Feed Quantity (kg)],LabourFromFeed[No. Labour],\"Out of range\",-1)","v":1},{"$f":"T139*OperatingCosts!$C$9","v":1200},165600]
[138,{"$f":"IF(A140<='S2-Double'!$C$7, B139*EXP((LN((E139/100)+1))*1),)","v":0},{"$f":"_xlfn.XLOOKUP($B140,FeedTables!$C$42:$T$42,FeedTables!$C$44:$T$44,,-1)","v":{"$error":"#N/A"}},{"$f":"_xlfn.XLOOKUP($B140,FeedTables!$C$42:$T$42,FeedTables!$C$45:$T$45,,-1)","v":{"$error":"#N/A"}},{"$f":"_xlfn.XLOOKUP($B140,FeedTables!$C$42:$T$42,FeedTables!$C$46:$T$46,,-1)*_xlfn.XLOOKUP(N139,DensityMultiplier[Biomass kg/m3],DensityMultiplier[Multiplier],,-1)","v":{"$error":"#N/A"}},3853.2039089810314,{"$f":"IF(A140<='S2-Double'!$C$7,('Growth-Model-2'!G139*EXP($AA$7)),0)","v":0},{"$f":"IF(A140<='S2-Double'!$C$7,$AD$6*EXP($AD$7*('S2-Double'!C$7-'Growth-Model-2'!A140)),0)","v":0},196.79609101896818,4.8591627412090908E-2,0,18.467327479743304,0,{"$f":"M140/'S2-Double'!$C$17","v":0},{"$error":"#N/A"},{"$error":"#N/A"},{"$f":"_xlfn.XLOOKUP(B140,FeedTables!$C$17:$T$17,FeedTables!$C$31:$T$31,,-1)","v":{"$error":"#N/A"}},{"$f":"_xlfn.XLOOKUP(Q140,FeedPrice[Feed],FeedPrice[Price per kg],\"Unknown\",0)*O140","v":{"$error":"#N/A"}},{"$error":"#N/A"},{"$f":"_xlfn.XLOOKUP(O140,LabourFromFeed[Feed Quantity (kg)],LabourFromFeed[No. Labour],\"Out of range\",-1)","v":{"$error":"#N/A"}},{"$f":"T140*OperatingCosts!$C$9","v":{"$error":"#N/A"}},{"$error":"#N/A"}]
[139,{"$f":"IF(A141<='S2-Double'!$C$7, B140*EXP((LN((E140/100)+1))*1),)","v":0},{"$f":"_xlfn.XLOOKUP($B141,FeedTables!$C$42:$T$42,FeedTables!$C$44:$T$44,,-1)","v":{"$error":"#N/A"}},{"$f":"_xlfn.XLOOKUP($B141,FeedTables!$C$42:$T$42,FeedTables!$C$45:$T$45,,-1)","v":{"$error":"#N/A"}},{"$f":"_xlfn.XLOOKUP($B141,FeedTables!$C$42:$T$42,FeedTables!$C$46:$T$46,,-1)*_xlfn.XLOOKUP(N140,DensityMultiplier[Biomass kg/m3],DensityMultiplier[Multiplier],,-1)","v":{"$error":"#N/A"}},3853.2039089810314,{"$f":"IF(A141<='S2-Double'!$C$7,('Growth-Model-2'!G140*EXP($AA$7)),0)","v":0},{"$f":"IF(A141<='S2-Double'!$C$7,$AD$6*EXP($AD$7*('S2-Double'!C$7-'Growth-Model-2'!A141)),0)","v":0},196.79609101896818,4.8591627412090908E-2,0,18.467327479743304,0,{"$f":"M141/'S2-Double'!$C$17","v":0},{"$error":"#N/A"},{"$error":"#N/A"},{"$f":"_xlfn.XLOOKUP(B141,FeedTables!$C$17:$T$17,FeedTables!$C$31:$T$31,,-1)","v":{"$error":"#N/A"}},{"$f":"_xlfn.XLOOKUP(Q141,FeedPrice[Feed],FeedPrice[Price per kg],\"Unknown\",0)*O141","v":{"$error":"#N/A"}},{"$error":"#N/A"},{"$f":"_xlfn.XLOOKUP(O141,LabourFromFeed[Feed Quantity (kg)],LabourFromFeed[No. Labour],\"Out of range\",-1)","v":{"$error":"#N/A"}},{"$f":"T141*OperatingCosts!$C$9","v":{"$error":"#N/A"}},{"$error":"#N/A"}]
[140,{"$f":"IF(A142<='S2-Double'!$C$7, B141*EXP((LN((E141/100)+1))*1),)","v":0},{"$f":"_xlfn.XLOOKUP($B142,FeedTables!$C$42:$T$42,FeedTables!$C$44:$T$44,,-1)","v":{"$error":"#N/A"}},{"$f":"_xlfn.XLOOKUP($B142,FeedTables!$C$42:$T$42,FeedTables!$C$45:$T$45,,-1)","v":{"$error":"#N/A"}},{"$f":"_xlfn.XLOOKUP($B142,FeedTables!$C$42:$T$42,FeedTables!$C$46:$T$46,,-1)*_xlfn.XLOOKUP(N141,DensityMultiplier[Biomass kg/m3],DensityMultiplier[Multiplier],,-1)","v":{"$error":"#N/A"}},3853.2039089810314,{"$f":"IF(A142<='S2-Double'!$C$7,('Growth-Model-2'!G141*EXP($AA$7)),0)","v":0},{"$f":"IF(A142<='S2-Double'!$C$7,$AD$6*EXP($AD$7*('S2-Double'!C$7-'Growth-Model-2'!A142)),0)","v":0},196.79609101896818,4.8591627412090908E-2,0,18.467327479743304,0,{"$f":"M142/'S2-Double'!$C$17","v":0},{"$error":"#N/A"},{"$error":"#N/A"},{"$f":"_xlfn.XLOOKUP(B142,FeedTables!$C$17:$T$17,FeedTables!$C$31:$T$31,,-1)","v":{"$error":"#N/A"}},{"$f":"_xlfn.XLOOKUP(Q142,FeedPrice[Feed],FeedPrice[Price per kg],\"Unknown\",0)*O142","v":{"$error":"#N/A"}},{"$error":"#N/A"},{"$f":"_xlfn.XLOOKUP(O142,LabourFromFeed[Feed Quantity (kg)],LabourFromFeed[No. Labour],\"Out of range\",-1)","v":{"$error":"#N/A"}},{"$f":"T142*OperatingCosts!$C$9","v":{"$error":"#N/A"}},{"$error":"#N/A"}]
[141,{"$f":"IF(A143<='S2-Double'!$C$7, B142*EXP((LN((E142/100)+1))*1),)","v":0},{"$f":"_xlfn.XLOOKUP($B143,FeedTables!$C$42:$T$42,FeedTables!$C$44:$T$44,,-1)","v":{"$error":"#N/A"}},{"$f":"_xlfn.XLOOKUP($B143,FeedTables!$C$42:$T$42,FeedTables!$C$45:$T$45,,-1)","v":{"$error":"#N/A"}},{"$f":"_xlfn.XLOOKUP($B143,FeedTables!$C$42:$T$42,FeedTables!$C$46:$T$46,,-1)*_xlfn.XLOOKUP(N142,DensityMultiplier[Biomass kg/m3],DensityMultiplier[Multiplier],,-1)","v":{"$error":"#N/A"}},3853.2039089810314,{"$f":"IF(A143<='S2-Double'!$C$7,('Growth-Model-2'!G142*EXP($AA$7)),0)","v":0},{"$f":"IF(A143<='S2-Double'!$C$7,$AD$6*EXP($AD$7*('S2-Double'!C$7-'Growth-Model-2'!A143)),0)","v":0},196.79609101896818,4.8591627412090908E-2,0,18.467327479743304,0,{"$f":"M143/'S2-Double'!$C$17","v":0},{"$error":"#N/A"},{"$error":"#N/A"},{"$f":"_xlfn.XLOOKUP(B143,FeedTables!$C$17:$T$17,FeedTables!$C$31:$T$31,,-1)","v":{"$error":"#N/A"}},{"$f":"_xlfn.XLOOKUP(Q143,FeedPrice[Feed],FeedPrice[Price per kg],\"Unknown\",0)*O143","v":{"$error":"#N/A"}},{"$error":"#N/A"},{"$f":"_xlfn.XLOOKUP(O143,LabourFromFeed[Feed Quantity (kg)],LabourFromFeed[No. Labour],\"Out of range\",-1)","v":{"$error":"#N/A"}},{"$f":"T143*OperatingCosts!$C$9","v":{"$error":"#N/A"}},{"$error":"#N/A"}]
[142,{"$f":"IF(A144<='S2-Double'!$C$7, B143*EXP((LN((E143/100)+1))*1),)","v":0},{"$f":"_xlfn.XLOOKUP($B144,FeedTables!$C$42:$T$42,FeedTables!$C$44:$T$44,,-1)","v":{"$error":"#N/A"}},{"$f":"_xlfn.XLOOKUP($B144,FeedTables!$C$42:$T$42,FeedTables!$C$45:$T$45,,-1)","v":{"$error":"#N/A"}},{"$f":"_xlfn.XLOOKUP($B144,FeedTables!$C$42:$T$42,FeedTables!$C$46:$T$46,,-1)*_xlfn.XLOOKUP(N143,DensityMultiplier[Biomass kg/m3],DensityMultiplier[Multiplier],,-1)","v":{"$error":"#N/A"}},3853.2039089810314,{"$f":"IF(A144<='S2-Double'!$C$7,('Growth-Model-2'!G143*EXP($AA$7)),0)","v":0},{"$f":"IF(A144<='S2-Double'!$C$7,$AD$6*EXP($AD$7*('S2-Double'!C$7-'Growth-Model-2'!A144)),0)","v":0},196.79609101896818,4.8591627412090908E-2,0,18.467327479743304,0,{"$f":"M144/'S2-Double'!$C$17","v":0},{"$error":"#N/A"},{"$error":"#N/A"},{"$f":"_xlfn.XLOOKUP(B144,FeedTables!$C$17:$T$17,FeedTables!$C$31:$T$31,,-1)","v":{"$error":"#N/A"}},{"$f":"_xlfn.XLOOKUP(Q144,FeedPrice[Feed],FeedPrice[Price per kg],\"Unknown\",0)*O144","v":{"$error":"#N/A"}},{"$error":"#N/A"},{"$f":"_xlfn.XLOOKUP(O144,LabourFromFeed[Feed Quantity (kg)],LabourFromFeed[No. Labour],\"Out of range\",-1)","v":{"$error":"#N/A"}},{"$f":"T144*OperatingCosts!$C$9","v":{"$error":"#N/A"}},{"$error":"#N/A"}]
[143,{"$f":"IF(A145<='S2-Double'!$C$7, B144*EXP((LN((E144/100)+1))*1),)","v":0},{"$f":"_xlfn.XLOOKUP($B145,FeedTables!$C$42:$T$42,FeedTables!$C$44:$T$44,,-1)","v":{"$error":"#N/A"}},{"$f":"_xlfn.XLOOKUP($B145,FeedTables!$C$42:$T$42,FeedTables!$C$45:$T$45,,-1)","v":{"$error":"#N/A"}},{"$f":"_xlfn.XLOOKUP($B145,FeedTables!$C$42:$T$42,FeedTables!$C$46:$T$46,,-1)*_xlfn.XLOOKUP(N144,DensityMultiplier[Biomass kg/m3],DensityMultiplier[Multiplier],,-1)","v":{"$error":"#N/A"}},3853.2039089810314,{"$f":"IF(A145<='S2-Double'!$C$7,('Growth-Model-2'!G144*EXP($AA$7)),0)","v":0},{"$f":"IF(A145<='S2-Double'!$C$7,$AD$6*EXP($AD$7*('S2-Double'!C$7-'Growth-Model-2'!A145)),0)","v":0},196.79609101896818,4.8591627412090908E-2,0,18.467327479743304,0,{"$f":"M145/'S2-Double'!$C$17","v":0},{"$error":"#N/A"},{"$error":"#N/A"},{"$f":"_xlfn.XLOOKUP(B145,FeedTables!$C$17:$T$17,FeedTables!$C$31:$T$31,,-1)","v":{"$error":"#N/A"}},{"$f":"_xlfn.XLOOKUP(Q145,FeedPrice[Feed],FeedPrice[Price per kg],\"Unknown\",0)*O145","v":{"$error":"#N/A"}},{"$error":"#N/A"},{"$f":"_xlfn.XLOOKUP(O145,LabourFromFeed[Feed Quantity (kg)],LabourFromFeed[No. Labour],\"Out of range\",-1)","v":{"$error":"#N/A"}},{"$f":"T145*OperatingCosts!$C$9","v":{"$error":"#N/A"}},{"$error":"#N/A"}]
[144,{"$f":"IF(A146<='S2-Double'!$C$7, B145*EXP((LN((E145/100)+1))*1),)","v":0},{"$f":"_xlfn.XLOOKUP($B146,FeedTables!$C$42:$T$42,FeedTables!$C$44:$T$44,,-1)","v":{"$error":"#N/A"}},{"$f":"_xlfn.XLOOKUP($B146,FeedTables!$C$42:$T$42,FeedTables!$C$45:$T$45,,-1)","v":{"$error":"#N/A"}},{"$f":"_xlfn.XLOOKUP($B146,FeedTables!$C$42:$T$42,FeedTables!$C$46:$T$46,,-1)*_xlfn.XLOOKUP(N145,DensityMultiplier[Biomass kg/m3],DensityMultiplier[Multiplier],,-1)","v":{"$error":"#N/A"}},3853.2039089810314,{"$f":"IF(A146<='S2-Double'!$C$7,('Growth-Model-2'!G145*EXP($AA$7)),0)","v":0},{"$f":"IF(A146<='S2-Double'!$C$7,$AD$6*EXP($AD$7*('S2-Double'!C$7-'Growth-Model-2'!A146)),0)","v":0},196.79609101896818,4.8591627412090908E-2,0,18.467327479743304,0,{"$f":"M146/'S2-Double'!$C$17","v":0},{"$error":"#N/A"},{"$error":"#N/A"},{"$f":"_xlfn.XLOOKUP(B146,FeedTables!$C$17:$T$17,FeedTables!$C$31:$T$31,,-1)","v":{"$error":"#N/A"}},{"$f":"_xlfn.XLOOKUP(Q146,FeedPrice[Feed],FeedPrice[Price per kg],\"Unknown\",0)*O146","v":{"$error":"#N/A"}},{"$error":"#N/A"},{"$f":"_xlfn.XLOOKUP(O146,LabourFromFeed[Feed Quantity (kg)],LabourFromFeed[No. Labour],\"Out of range\",-1)","v":{"$error":"#N/A"}},{"$f":"T146*OperatingCosts!$C$9","v":{"$error":"#N/A"}},{"$error":"#N/A"}]
[145,{"$f":"IF(A147<='S2-Double'!$C$7, B146*EXP((LN((E146/100)+1))*1),)","v":0},{"$f":"_xlfn.XLOOKUP($B147,FeedTables!$C$42:$T$42,FeedTables!$C$44:$T$44,,-1)","v":{"$error":"#N/A"}},{"$f":"_xlfn.XLOOKUP($B147,FeedTables!$C$42:$T$42,FeedTables!$C$45:$T$45,,-1)","v":{"$error":"#N/A"}},{"$f":"_xlfn.XLOOKUP($B147,FeedTables!$C$42:$T$42,FeedTables!$C$46:$T$46,,-1)*_xlfn.XLOOKUP(N146,DensityMultiplier[Biomass kg/m3],DensityMultiplier[Multiplier],,-1)","v":{"$error":"#N/A"}},3853.2039089810314,{"$f":"IF(A147<='S2-Double'!$C$7,('Growth-Model-2'!G146*EXP($AA$7)),0)","v":0},{"$f":"IF(A147<='S2-Double'!$C$7,$AD$6*EXP($AD$7*('S2-Double'!C$7-'Growth-Model-2'!A147)),0)","v":0},196.79609101896818,4.8591627412090908E-2,0,18.467327479743304,0,{"$f":"M147/'S2-Double'!$C$17","v":0},{"$error":"#N/A"},{"$error":"#N/A"},{"$f":"_xlfn.XLOOKUP(B147,FeedTables!$C$17:$T$17,FeedTables!$C$31:$T$31,,-1)","v":{"$error":"#N/A"}},{"$f":"_xlfn.XLOOKUP(Q147,FeedPrice[Feed],FeedPrice[Price per kg],\"Unknown\",0)*O147","v":{"$error":"#N/A"}},{"$error":"#N/A"},{"$f":"_xlfn.XLOOKUP(O147,LabourFromFeed[Feed Quantity (kg)],LabourFromFeed[No. Labour],\"Out of range\",-1)","v":{"$error":"#N/A"}},{"$f":"T147*OperatingCosts!$C$9","v":{"$error":"#N/A"}},{"$error":"#N/A"}]
[146,{"$f":"IF(A148<='S2-Double'!$C$7, B147*EXP((LN((E147/100)+1))*1),)","v":0},{"$f":"_xlfn.XLOOKUP($B148,FeedTables!$C$42:$T$42,FeedTables!$C$44:$T$44,,-1)","v":{"$error":"#N/A"}},{"$f":"_xlfn.XLOOKUP($B148,FeedTables!$C$42:$T$42,FeedTables!$C$45:$T$45,,-1)","v":{"$error":"#N/A"}},{"$f":"_xlfn.XLOOKUP($B148,FeedTables!$C$42:$T$42,FeedTables!$C$46:$T$46,,-1)*_xlfn.XLOOKUP(N147,DensityMultiplier[Biomass kg/m3],DensityMultiplier[Multiplier],,-1)","v":{"$error":"#N/A"}},3853.2039089810314,{"$f":"IF(A148<='S2-Double'!$C$7,('Growth-Model-2'!G147*EXP($AA$7)),0)","v":0},{"$f":"IF(A148<='S2-Double'!$C$7,$AD$6*EXP($AD$7*('S2-Double'!C$7-'Growth-Model-2'!A148)),0)","v":0},196.79609101896818,4.8591627412090908E-2,0,18.467327479743304,0,{"$f":"M148/'S2-Double'!$C$17","v":0},{"$error":"#N/A"},{"$error":"#N/A"},{"$f":"_xlfn.XLOOKUP(B148,FeedTables!$C$17:$T$17,FeedTables!$C$31:$T$31,,-1)","v":{"$error":"#N/A"}},{"$f":"_xlfn.XLOOKUP(Q148,FeedPrice[Feed],FeedPrice[Price per kg],\"Unknown\",0)*O148","v":{"$error":"#N/A"}},{"$error":"#N/A"},{"$f":"_xlfn.XLOOKUP(O148,LabourFromFeed[Feed Quantity (kg)],LabourFromFeed[No. Labour],\"Out of range\",-1)","v":{"$error":"#N/A"}},{"$f":"T148*OperatingCosts!$C$9","v":{"$error":"#N/A"}},{"$error":"#N/A"}]
[147,{"$f":"IF(A149<='S2-Double'!$C$7, B148*EXP((LN((E148/100)+1))*1),)","v":0},{"$f":"_xlfn.XLOOKUP($B149,FeedTables!$C$42:$T$42,FeedTables!$C$44:$T$44,,-1)","v":{"$error":"#N/A"}},{"$f":"_xlfn.XLOOKUP($B149,FeedTables!$C$42:$T$42,FeedTables!$C$45:$T$45,,-1)","v":{"$error":"#N/A"}},{"$f":"_xlfn.XLOOKUP($B149,FeedTables!$C$42:$T$42,FeedTables!$C$46:$T$46,,-1)*_xlfn.XLOOKUP(N148,DensityMultiplier[Biomass kg/m3],DensityMultiplier[Multiplier],,-1)","v":{"$error":"#N/A"}},3853.2039089810314,{"$f":"IF(A149<='S2-Double'!$C$7,('Growth-Model-2'!G148*EXP($AA$7)),0)","v":0},{"$f":"IF(A149<='S2-Double'!$C$7,$AD$6*EXP($AD$7*('S2-Double'!C$7-'Growth-Model-2'!A149)),0)","v":0},196.79609101896818,4.8591627412090908E-2,0,18.467327479743304,0,{"$f":"M149/'S2-Double'!$C$17","v":0},{"$error":"#N/A"},{"$error":"#N/A"},{"$f":"_xlfn.XLOOKUP(B149,FeedTables!$C$17:$T$17,FeedTables!$C$31:$T$31,,-1)","v":{"$error":"#N/A"}},{"$f":"_xlfn.XLOOKUP(Q149,FeedPrice[Feed],FeedPrice[Price per kg],\"Unknown\",0)*O149","v":{"$error":"#N/A"}},{"$error":"#N/A"},{"$f":"_xlfn.XLOOKUP(O149,LabourFromFeed[Feed Quantity (kg)],LabourFromFeed[No. Labour],\"Out of range\",-1)","v":{"$error":"#N/A"}},{"$f":"T149*OperatingCosts!$C$9","v":{"$error":"#N/A"}},{"$error":"#N/A"}]
[148,{"$f":"IF(A150<='S2-Double'!$C$7, B149*EXP((LN((E149/100)+1))*1),)","v":0},{"$f":"_xlfn.XLOOKUP($B150,FeedTables!$C$42:$T$42,FeedTables!$C$44:$T$44,,-1)","v":{"$error":"#N/A"}},{"$f":"_xlfn.XLOOKUP($B150,FeedTables!$C$42:$T$42,FeedTables!$C$45:$T$45,,-1)","v":{"$error":"#N/A"}},{"$f":"_xlfn.XLOOKUP($B150,FeedTables!$C$42:$T$42,FeedTables!$C$46:$T$46,,-1)*_xlfn.XLOOKUP(N149,DensityMultiplier[Biomass kg/m3],DensityMultiplier[Multiplier],,-1)","v":{"$error":"#N/A"}},3853.2039089810314,{"$f":"IF(A150<='S2-Double'!$C$7,('Growth-Model-2'!G149*EXP($AA$7)),0)","v":0},{"$f":"IF(A150<='S2-Double'!$C$7,$AD$6*EXP($AD$7*('S2-Double'!C$7-'Growth-Model-2'!A150)),0)","v":0},196.79609101896818,4.8591627412090908E-2,0,18.467327479743304,0,{"$f":"M150/'S2-Double'!$C$17","v":0},{"$error":"#N/A"},{"$error":"#N/A"},{"$f":"_xlfn.XLOOKUP(B150,FeedTables!$C$17:$T$17,FeedTables!$C$31:$T$31,,-1)","v":{"$error":"#N/A"}},{"$f":"_xlfn.XLOOKUP(Q150,FeedPrice[Feed],FeedPrice[Price per kg],\"Unknown\",0)*O150","v":{"$error":"#N/A"}},{"$error":"#N/A"},{"$f":"_xlfn.XLOOKUP(O150,LabourFromFeed[Feed Quantity (kg)],LabourFromFeed[No. Labour],\"Out of range\",-1)","v":{"$error":"#N/A"}},{"$f":"T150*OperatingCosts!$C$9","v":{"$error":"#N/A"}},{"$error":"#N/A"}]
[149,{"$f":"IF(A151<='S2-Double'!$C$7, B150*EXP((LN((E150/100)+1))*1),)","v":0},{"$f":"_xlfn.XLOOKUP($B151,FeedTables!$C$42:$T$42,FeedTables!$C$44:$T$44,,-1)","v":{"$error":"#N/A"}},{"$f":"_xlfn.XLOOKUP($B151,FeedTables!$C$42:$T$42,FeedTables!$C$45:$T$45,,-1)","v":{"$error":"#N/A"}},{"$f":"_xlfn.XLOOKUP($B151,FeedTables!$C$42:$T$42,FeedTables!$C$46:$T$46,,-1)*_xlfn.XLOOKUP(N150,DensityMultiplier[Biomass kg/m3],DensityMultiplier[Multiplier],,-1)","v":{"$error":"#N/A"}},3853.2039089810314,{"$f":"IF(A151<='S2-Double'!$C$7,('Growth-Model-2'!G150*EXP($AA$7)),0)","v":0},{"$f":"IF(A151<='S2-Double'!$C$7,$AD$6*EXP($AD$7*('S2-Double'!C$7-'Growth-Model-2'!A151)),0)","v":0},196.79609101896818,4.8591627412090908E-2,0,18.467327479743304,0,{"$f":"M151/'S2-Double'!$C$17","v":0},{"$error":"#N/A"},{"$error":"#N/A"},{"$f":"_xlfn.XLOOKUP(B151,FeedTables!$C$17:$T$17,FeedTables!$C$31:$T$31,,-1)","v":{"$error":"#N/A"}},{"$f":"_xlfn.XLOOKUP(Q151,FeedPrice[Feed],FeedPrice[Price per kg],\"Unknown\",0)*O151","v":{"$error":"#N/A"}},{"$error":"#N/A"},{"$f":"_xlfn.XLOOKUP(O151,LabourFromFeed[Feed Quantity (kg)],LabourFromFeed[No. Labour],\"Out of range\",-1)","v":{"$error":"#N/A"}},{"$f":"T151*OperatingCosts!$C$9","v":{"$error":"#N/A"}},{"$error":"#N/A"}]
[150,{"$f":"IF(A152<='S2-Double'!$C$7, B151*EXP((LN((E151/100)+1))*1),)","v":0},{"$f":"_xlfn.XLOOKUP($B152,FeedTables!$C$42:$T$42,FeedTables!$C$44:$T$44,,-1)","v":{"$error":"#N/A"}},{"$f":"_xlfn.XLOOKUP($B152,FeedTables!$C$42:$T$42,FeedTables!$C$45:$T$45,,-1)","v":{"$error":"#N/A"}},{"$f":"_xlfn.XLOOKUP($B152,FeedTables!$C$42:$T$42,FeedTables!$C$46:$T$46,,-1)*_xlfn.XLOOKUP(N151,DensityMultiplier[Biomass kg/m3],DensityMultiplier[Multiplier],,-1)","v":{"$error":"#N/A"}},3853.2039089810314,{"$f":"IF(A152<='S2-Double'!$C$7,('Growth-Model-2'!G151*EXP($AA$7)),0)","v":0},{"$f":"IF(A152<='S2-Double'!$C$7,$AD$6*EXP($AD$7*('S2-Double'!C$7-'Growth-Model-2'!A152)),0)","v":0},196.79609101896818,4.8591627412090908E-2,0,18.467327479743304,0,{"$f":"M152/'S2-Double'!$C$17","v":0},{"$error":"#N/A"},{"$error":"#N/A"},{"$f":"_xlfn.XLOOKUP(B152,FeedTables!$C$17:$T$17,FeedTables!$C$31:$T$31,,-1)","v":{"$error":"#N/A"}},{"$f":"_xlfn.XLOOKUP(Q152,FeedPrice[Feed],FeedPrice[Price per kg],\"Unknown\",0)*O152","v":{"$error":"#N/A"}},{"$error":"#N/A"},{"$f":"_xlfn.XLOOKUP(O152,LabourFromFeed[Feed Quantity (kg)],LabourFromFeed[No. Labour],\"Out of range\",-1)","v":{"$error":"#N/A"}},{"$f":"T152*OperatingCosts!$C$9","v":{"$error":"#N/A"}},{"$error":"#N/A"}]
[151,{"$f":"IF(A153<='S2-Double'!$C$7, B152*EXP((LN((E152/100)+1))*1),)","v":0},{"$f":"_xlfn.XLOOKUP($B153,FeedTables!$C$42:$T$42,FeedTables!$C$44:$T$44,,-1)","v":{"$error":"#N/A"}},{"$f":"_xlfn.XLOOKUP($B153,FeedTables!$C$42:$T$42,FeedTables!$C$45:$T$45,,-1)","v":{"$error":"#N/A"}},{"$f":"_xlfn.XLOOKUP($B153,FeedTables!$C$42:$T$42,FeedTables!$C$46:$T$46,,-1)*_xlfn.XLOOKUP(N152,DensityMultiplier[Biomass kg/m3],DensityMultiplier[Multiplier],,-1)","v":{"$error":"#N/A"}},3853.2039089810314,{"$f":"IF(A153<='S2-Double'!$C$7,('Growth-Model-2'!G152*EXP($AA$7)),0)","v":0},{"$f":"IF(A153<='S2-Double'!$C$7,$AD$6*EXP($AD$7*('S2-Double'!C$7-'Growth-Model-2'!A153)),0)","v":0},196.79609101896818,4.8591627412090908E-2,0,18.467327479743304,0,{"$f":"M153/'S2-Double'!$C$17","v":0},{"$error":"#N/A"},{"$error":"#N/A"},{"$f":"_xlfn.XLOOKUP(B153,FeedTables!$C$17:$T$17,FeedTables!$C$31:$T$31,,-1)","v":{"$error":"#N/A"}},{"$f":"_xlfn.XLOOKUP(Q153,FeedPrice[Feed],FeedPrice[Price per kg],\"Unknown\",0)*O153","v":{"$error":"#N/A"}},{"$error":"#N/A"},{"$f":"_xlfn.XLOOKUP(O153,LabourFromFeed[Feed Quantity (kg)],LabourFromFeed[No. Labour],\"Out of range\",-1)","v":{"$error":"#N/A"}},{"$f":"T153*OperatingCosts!$C$9","v":{"$error":"#N/A"}},{"$error":"#N/A"}]
[152,{"$f":"IF(A154<='S2-Double'!$C$7, B153*EXP((LN((E153/100)+1))*1),)","v":0},{"$f":"_xlfn.XLOOKUP($B154,FeedTables!$C$42:$T$42,FeedTables!$C$44:$T$44,,-1)","v":{"$error":"#N/A"}},{"$f":"_xlfn.XLOOKUP($B154,FeedTables!$C$42:$T$42,FeedTables!$C$45:$T$45,,-1)","v":{"$error":"#N/A"}},{"$f":"_xlfn.XLOOKUP($B154,FeedTables!$C$42:$T$42,FeedTables!$C$46:$T$46,,-1)*_xlfn.XLOOKUP(N153,DensityMultiplier[Biomass kg/m3],DensityMultiplier[Multiplier],,-1)","v":{"$error":"#N/A"}},3853.2039089810314,{"$f":"IF(A154<='S2-Double'!$C$7,('Growth-Model-2'!G153*EXP($AA$7)),0)","v":0},{"$f":"IF(A154<='S2-Double'!$C$7,$AD$6*EXP($AD$7*('S2-Double'!C$7-'Growth-Model-2'!A154)),0)","v":0},196.79609101896818,4.8591627412090908E-2,0,18.467327479743304,0,{"$f":"M154/'S2-Double'!$C$17","v":0},{"$error":"#N/A"},{"$error":"#N/A"},{"$f":"_xlfn.XLOOKUP(B154,FeedTables!$C$17:$T$17,FeedTables!$C$31:$T$31,,-1)","v":{"$error":"#N/A"}},{"$f":"_xlfn.XLOOKUP(Q154,FeedPrice[Feed],FeedPrice[Price per kg],\"Unknown\",0)*O154","v":{"$error":"#N/A"}},{"$error":"#N/A"},{"$f":"_xlfn.XLOOKUP(O154,LabourFromFeed[Feed Quantity (kg)],LabourFromFeed[No. Labour],\"Out of range\",-1)","v":{"$error":"#N/A"}},{"$f":"T154*OperatingCosts!$C$9","v":{"$error":"#N/A"}},{"$error":"#N/A"}]
[153,{"$f":"IF(A155<='S2-Double'!$C$7, B154*EXP((LN((E154/100)+1))*1),)","v":0},{"$f":"_xlfn.XLOOKUP($B155,FeedTables!$C$42:$T$42,FeedTables!$C$44:$T$44,,-1)","v":{"$error":"#N/A"}},{"$f":"_xlfn.XLOOKUP($B155,FeedTables!$C$42:$T$42,FeedTables!$C$45:$T$45,,-1)","v":{"$error":"#N/A"}},{"$f":"_xlfn.XLOOKUP($B155,FeedTables!$C$42:$T$42,FeedTables!$C$46:$T$46,,-1)*_xlfn.XLOOKUP(N154,DensityMultiplier[Biomass kg/m3],DensityMultiplier[Multiplier],,-1)","v":{"$error":"#N/A"}},3853.2039089810314,{"$f":"IF(A155<='S2-Double'!$C$7,('Growth-Model-2'!G154*EXP($AA$7)),0)","v":0},{"$f":"IF(A155<='S2-Double'!$C$7,$AD$6*EXP($AD$7*('S2-Double'!C$7-'Growth-Model-2'!A155)),0)","v":0},196.79609101896818,4.8591627412090908E-2,0,18.467327479743304,0,{"$f":"M155/'S2-Double'!$C$17","v":0},{"$error":"#N/A"},{"$error":"#N/A"},{"$f":"_xlfn.XLOOKUP(B155,FeedTables!$C$17:$T$17,FeedTables!$C$31:$T$31,,-1)","v":{"$error":"#N/A"}},{"$f":"_xlfn.XLOOKUP(Q155,FeedPrice[Feed],FeedPrice[Price per kg],\"Unknown\",0)*O155","v":{"$error":"#N/A"}},{"$error":"#N/A"},{"$f":"_xlfn.XLOOKUP(O155,LabourFromFeed[Feed Quantity (kg)],LabourFromFeed[No. Labour],\"Out of range\",-1)","v":{"$error":"#N/A"}},{"$f":"T155*OperatingCosts!$C$9","v":{"$error":"#N/A"}},{"$error":"#N/A"}]
[154,{"$f":"IF(A156<='S2-Double'!$C$7, B155*EXP((LN((E155/100)+1))*1),)","v":0},{"$f":"_xlfn.XLOOKUP($B156,FeedTables!$C$42:$T$42,FeedTables!$C$44:$T$44,,-1)","v":{"$error":"#N/A"}},{"$f":"_xlfn.XLOOKUP($B156,FeedTables!$C$42:$T$42,FeedTables!$C$45:$T$45,,-1)","v":{"$error":"#N/A"}},{"$f":"_xlfn.XLOOKUP($B156,FeedTables!$C$42:$T$42,FeedTables!$C$46:$T$46,,-1)*_xlfn.XLOOKUP(N155,DensityMultiplier[Biomass kg/m3],DensityMultiplier[Multiplier],,-1)","v":{"$error":"#N/A"}},3853.2039089810314,{"$f":"IF(A156<='S2-Double'!$C$7,('Growth-Model-2'!G155*EXP($AA$7)),0)","v":0},{"$f":"IF(A156<='S2-Double'!$C$7,$AD$6*EXP($AD$7*('S2-Double'!C$7-'Growth-Model-2'!A156)),0)","v":0},196.79609101896818,4.8591627412090908E-2,0,18.467327479743304,0,{"$f":"M156/'S2-Double'!$C$17","v":0},{"$error":"#N/A"},{"$error":"#N/A"},{"$f":"_xlfn.XLOOKUP(B156,FeedTables!$C$17:$T$17,FeedTables!$C$31:$T$31,,-1)","v":{"$error":"#N/A"}},{"$f":"_xlfn.XLOOKUP(Q156,FeedPrice[Feed],FeedPrice[Price per kg],\"Unknown\",0)*O156","v":{"$error":"#N/A"}},{"$error":"#N/A"},{"$f":"_xlfn.XLOOKUP(O156,LabourFromFeed[Feed Quantity (kg)],LabourFromFeed[No. Labour],\"Out of range\",-1)","v":{"$error":"#N/A"}},{"$f":"T156*OperatingCosts!$C$9","v":{"$error":"#N/A"}},{"$error":"#N/A"}]
[155,{"$f":"IF(A157<='S2-Double'!$C$7, B156*EXP((LN((E156/100)+1))*1),)","v":0},{"$f":"_xlfn.XLOOKUP($B157,FeedTables!$C$42:$T$42,FeedTables!$C$44:$T$44,,-1)","v":{"$error":"#N/A"}},{"$f":"_xlfn.XLOOKUP($B157,FeedTables!$C$42:$T$42,FeedTables!$C$45:$T$45,,-1)","v":{"$error":"#N/A"}},{"$f":"_xlfn.XLOOKUP($B157,FeedTables!$C$42:$T$42,FeedTables!$C$46:$T$46,,-1)*_xlfn.XLOOKUP(N156,DensityMultiplier[Biomass kg/m3],DensityMultiplier[Multiplier],,-1)","v":{"$error":"#N/A"}},3853.2039089810314,{"$f":"IF(A157<='S2-Double'!$C$7,('Growth-Model-2'!G156*EXP($AA$7)),0)","v":0},{"$f":"IF(A157<='S2-Double'!$C$7,$AD$6*EXP($AD$7*('S2-Double'!C$7-'Growth-Model-2'!A157)),0)","v":0},196.79609101896818,4.8591627412090908E-2,0,18.467327479743304,0,{"$f":"M157/'S2-Double'!$C$17","v":0},{"$error":"#N/A"},{"$error":"#N/A"},{"$f":"_xlfn.XLOOKUP(B157,FeedTables!$C$17:$T$17,FeedTables!$C$31:$T$31,,-1)","v":{"$error":"#N/A"}},{"$f":"_xlfn.XLOOKUP(Q157,FeedPrice[Feed],FeedPrice[Price per kg],\"Unknown\",0)*O157","v":{"$error":"#N/A"}},{"$error":"#N/A"},{"$f":"_xlfn.XLOOKUP(O157,LabourFromFeed[Feed Quantity (kg)],LabourFromFeed[No. Labour],\"Out of range\",-1)","v":{"$error":"#N/A"}},{"$f":"T157*OperatingCosts!$C$9","v":{"$error":"#N/A"}},{"$error":"#N/A"}]
[156,{"$f":"IF(A158<='S2-Double'!$C$7, B157*EXP((LN((E157/100)+1))*1),)","v":0},{"$f":"_xlfn.XLOOKUP($B158,FeedTables!$C$42:$T$42,FeedTables!$C$44:$T$44,,-1)","v":{"$error":"#N/A"}},{"$f":"_xlfn.XLOOKUP($B158,FeedTables!$C$42:$T$42,FeedTables!$C$45:$T$45,,-1)","v":{"$error":"#N/A"}},{"$f":"_xlfn.XLOOKUP($B158,FeedTables!$C$42:$T$42,FeedTables!$C$46:$T$46,,-1)*_xlfn.XLOOKUP(N157,DensityMultiplier[Biomass kg/m3],DensityMultiplier[Multiplier],,-1)","v":{"$error":"#N/A"}},3853.2039089810314,{"$f":"IF(A158<='S2-Double'!$C$7,('Growth-Model-2'!G157*EXP($AA$7)),0)","v":0},{"$f":"IF(A158<='S2-Double'!$C$7,$AD$6*EXP($AD$7*('S2-Double'!C$7-'Growth-Model-2'!A158)),0)","v":0},196.79609101896818,4.8591627412090908E-2,0,18.467327479743304,0,{"$f":"M158/'S2-Double'!$C$17","v":0},{"$error":"#N/A"},{"$error":"#N/A"},{"$f":"_xlfn.XLOOKUP(B158,FeedTables!$C$17:$T$17,FeedTables!$C$31:$T$31,,-1)","v":{"$error":"#N/A"}},{"$f":"_xlfn.XLOOKUP(Q158,FeedPrice[Feed],FeedPrice[Price per kg],\"Unknown\",0)*O158","v":{"$error":"#N/A"}},{"$error":"#N/A"},{"$f":"_xlfn.XLOOKUP(O158,LabourFromFeed[Feed Quantity (kg)],LabourFromFeed[No. Labour],\"Out of range\",-1)","v":{"$error":"#N/A"}},{"$f":"T158*OperatingCosts!$C$9","v":{"$error":"#N/A"}},{"$error":"#N/A"}]
[157,{"$f":"IF(A159<='S2-Double'!$C$7, B158*EXP((LN((E158/100)+1))*1),)","v":0},{"$f":"_xlfn.XLOOKUP($B159,FeedTables!$C$42:$T$42,FeedTables!$C$44:$T$44,,-1)","v":{"$error":"#N/A"}},{"$f":"_xlfn.XLOOKUP($B159,FeedTables!$C$42:$T$42,FeedTables!$C$45:$T$45,,-1)","v":{"$error":"#N/A"}},{"$f":"_xlfn.XLOOKUP($B159,FeedTables!$C$42:$T$42,FeedTables!$C$46:$T$46,,-1)*_xlfn.XLOOKUP(N158,DensityMultiplier[Biomass kg/m3],DensityMultiplier[Multiplier],,-1)","v":{"$error":"#N/A"}},3853.2039089810314,{"$f":"IF(A159<='S2-Double'!$C$7,('Growth-Model-2'!G158*EXP($AA$7)),0)","v":0},{"$f":"IF(A159<='S2-Double'!$C$7,$AD$6*EXP($AD$7*('S2-Double'!C$7-'Growth-Model-2'!A159)),0)","v":0},196.79609101896818,4.8591627412090908E-2,0,18.467327479743304,0,{"$f":"M159/'S2-Double'!$C$17","v":0},{"$error":"#N/A"},{"$error":"#N/A"},{"$f":"_xlfn.XLOOKUP(B159,FeedTables!$C$17:$T$17,FeedTables!$C$31:$T$31,,-1)","v":{"$error":"#N/A"}},{"$f":"_xlfn.XLOOKUP(Q159,FeedPrice[Feed],FeedPrice[Price per kg],\"Unknown\",0)*O159","v":{"$error":"#N/A"}},{"$error":"#N/A"},{"$f":"_xlfn.XLOOKUP(O159,LabourFromFeed[Feed Quantity (kg)],LabourFromFeed[No. Labour],\"Out of range\",-1)","v":{"$error":"#N/A"}},{"$f":"T159*OperatingCosts!$C$9","v":{"$error":"#N/A"}},{"$error":"#N/A"}]
[158,{"$f":"IF(A160<='S2-Double'!$C$7, B159*EXP((LN((E159/100)+1))*1),)","v":0},{"$f":"_xlfn.XLOOKUP($B160,FeedTables!$C$42:$T$42,FeedTables!$C$44:$T$44,,-1)","v":{"$error":"#N/A"}},{"$f":"_xlfn.XLOOKUP($B160,FeedTables!$C$42:$T$42,FeedTables!$C$45:$T$45,,-1)","v":{"$error":"#N/A"}},{"$f":"_xlfn.XLOOKUP($B160,FeedTables!$C$42:$T$42,FeedTables!$C$46:$T$46,,-1)*_xlfn.XLOOKUP(N159,DensityMultiplier[Biomass kg/m3],DensityMultiplier[Multiplier],,-1)","v":{"$error":"#N/A"}},3853.2039089810314,{"$f":"IF(A160<='S2-Double'!$C$7,('Growth-Model-2'!G159*EXP($AA$7)),0)","v":0},{"$f":"IF(A160<='S2-Double'!$C$7,$AD$6*EXP($AD$7*('S2-Double'!C$7-'Growth-Model-2'!A160)),0)","v":0},196.79609101896818,4.8591627412090908E-2,0,18.467327479743304,0,{"$f":"M160/'S2-Double'!$C$17","v":0},{"$error":"#N/A"},{"$error":"#N/A"},{"$f":"_xlfn.XLOOKUP(B160,FeedTables!$C$17:$T$17,FeedTables!$C$31:$T$31,,-1)","v":{"$error":"#N/A"}},{"$f":"_xlfn.XLOOKUP(Q160,FeedPrice[Feed],FeedPrice[Price per kg],\"Unknown\",0)*O160","v":{"$error":"#N/A"}},{"$error":"#N/A"},{"$f":"_xlfn.XLOOKUP(O160,LabourFromFeed[Feed Quantity (kg)],LabourFromFeed[No. Labour],\"Out of range\",-1)","v":{"$error":"#N/A"}},{"$f":"T160*OperatingCosts!$C$9","v":{"$error":"#N/A"}},{"$error":"#N/A"}]
[159,{"$f":"IF(A161<='S2-Double'!$C$7, B160*EXP((LN((E160/100)+1))*1),)","v":0},{"$f":"_xlfn.XLOOKUP($B161,FeedTables!$C$42:$T$42,FeedTables!$C$44:$T$44,,-1)","v":{"$error":"#N/A"}},{"$f":"_xlfn.XLOOKUP($B161,FeedTables!$C$42:$T$42,FeedTables!$C$45:$T$45,,-1)","v":{"$error":"#N/A"}},{"$f":"_xlfn.XLOOKUP($B161,FeedTables!$C$42:$T$42,FeedTables!$C$46:$T$46,,-1)*_xlfn.XLOOKUP(N160,DensityMultiplier[Biomass kg/m3],DensityMultiplier[Multiplier],,-1)","v":{"$error":"#N/A"}},3853.2039089810314,{"$f":"IF(A161<='S2-Double'!$C$7,('Growth-Model-2'!G160*EXP($AA$7)),0)","v":0},{"$f":"IF(A161<='S2-Double'!$C$7,$AD$6*EXP($AD$7*('S2-Double'!C$7-'Growth-Model-2'!A161)),0)","v":0},196.79609101896818,4.8591627412090908E-2,0,18.467327479743304,0,{"$f":"M161/'S2-Double'!$C$17","v":0},{"$error":"#N/A"},{"$error":"#N/A"},{"$f":"_xlfn.XLOOKUP(B161,FeedTables!$C$17:$T$17,FeedTables!$C$31:$T$31,,-1)","v":{"$error":"#N/A"}},{"$f":"_xlfn.XLOOKUP(Q161,FeedPrice[Feed],FeedPrice[Price per kg],\"Unknown\",0)*O161","v":{"$error":"#N/A"}},{"$error":"#N/A"},{"$f":"_xlfn.XLOOKUP(O161,LabourFromFeed[Feed Quantity (kg)],LabourFromFeed[No. Labour],\"Out of range\",-1)","v":{"$error":"#N/A"}},{"$f":"T161*OperatingCosts!$C$9","v":{"$error":"#N/A"}},{"$error":"#N/A"}]
[160,{"$f":"IF(A162<='S2-Double'!$C$7, B161*EXP((LN((E161/100)+1))*1),)","v":0},{"$f":"_xlfn.XLOOKUP($B162,FeedTables!$C$42:$T$42,FeedTables!$C$44:$T$44,,-1)","v":{"$error":"#N/A"}},{"$f":"_xlfn.XLOOKUP($B162,FeedTables!$C$42:$T$42,FeedTables!$C$45:$T$45,,-1)","v":{"$error":"#N/A"}},{"$f":"_xlfn.XLOOKUP($B162,FeedTables!$C$42:$T$42,FeedTables!$C$46:$T$46,,-1)*_xlfn.XLOOKUP(N161,DensityMultiplier[Biomass kg/m3],DensityMultiplier[Multiplier],,-1)","v":{"$error":"#N/A"}},3853.2039089810314,{"$f":"IF(A162<='S2-Double'!$C$7,('Growth-Model-2'!G161*EXP($AA$7)),0)","v":0},{"$f":"IF(A162<='S2-Double'!$C$7,$AD$6*EXP($AD$7*('S2-Double'!C$7-'Growth-Model-2'!A162)),0)","v":0},196.79609101896818,4.8591627412090908E-2,0,18.467327479743304,0,{"$f":"M162/'S2-Double'!$C$17","v":0},{"$error":"#N/A"},{"$error":"#N/A"},{"$f":"_xlfn.XLOOKUP(B162,FeedTables!$C$17:$T$17,FeedTables!$C$31:$T$31,,-1)","v":{"$error":"#N/A"}},{"$f":"_xlfn.XLOOKUP(Q162,FeedPrice[Feed],FeedPrice[Price per kg],\"Unknown\",0)*O162","v":{"$error":"#N/A"}},{"$error":"#N/A"},{"$f":"_xlfn.XLOOKUP(O162,LabourFromFeed[Feed Quantity (kg)],LabourFromFeed[No. Labour],\"Out of range\",-1)","v":{"$error":"#N/A"}},{"$f":"T162*OperatingCosts!$C$9","v":{"$error":"#N/A"}},{"$error":"#N/A"}]
[161,{"$f":"IF(A163<='S2-Double'!$C$7, B162*EXP((LN((E162/100)+1))*1),)","v":0},{"$f":"_xlfn.XLOOKUP($B163,FeedTables!$C$42:$T$42,FeedTables!$C$44:$T$44,,-1)","v":{"$error":"#N/A"}},{"$f":"_xlfn.XLOOKUP($B163,FeedTables!$C$42:$T$42,FeedTables!$C$45:$T$45,,-1)","v":{"$error":"#N/A"}},{"$f":"_xlfn.XLOOKUP($B163,FeedTables!$C$42:$T$42,FeedTables!$C$46:$T$46,,-1)*_xlfn.XLOOKUP(N162,DensityMultiplier[Biomass kg/m3],DensityMultiplier[Multiplier],,-1)","v":{"$error":"#N/A"}},3853.2039089810314,{"$f":"IF(A163<='S2-Double'!$C$7,('Growth-Model-2'!G162*EXP($AA$7)),0)","v":0},{"$f":"IF(A163<='S2-Double'!$C$7,$AD$6*EXP($AD$7*('S2-Double'!C$7-'Growth-Model-2'!A163)),0)","v":0},196.79609101896818,4.8591627412090908E-2,0,18.467327479743304,0,{"$f":"M163/'S2-Double'!$C$17","v":0},{"$error":"#N/A"},{"$error":"#N/A"},{"$f":"_xlfn.XLOOKUP(B163,FeedTables!$C$17:$T$17,FeedTables!$C$31:$T$31,,-1)","v":{"$error":"#N/A"}},{"$f":"_xlfn.XLOOKUP(Q163,FeedPrice[Feed],FeedPrice[Price per kg],\"Unknown\",0)*O163","v":{"$error":"#N/A"}},{"$error":"#N/A"},{"$f":"_xlfn.XLOOKUP(O163,LabourFromFeed[Feed Quantity (kg)],LabourFromFeed[No. Labour],\"Out of range\",-1)","v":{"$error":"#N/A"}},{"$f":"T163*OperatingCosts!$C$9","v":{"$error":"#N/A"}},{"$error":"#N/A"}]
[162,{"$f":"IF(A164<='S2-Double'!$C$7, B163*EXP((LN((E163/100)+1))*1),)","v":0},{"$f":"_xlfn.XLOOKUP($B164,FeedTables!$C$42:$T$42,FeedTables!$C$44:$T$44,,-1)","v":{"$error":"#N/A"}},{"$f":"_xlfn.XLOOKUP($B164,FeedTables!$C$42:$T$42,FeedTables!$C$45:$T$45,,-1)","v":{"$error":"#N/A"}},{"$f":"_xlfn.XLOOKUP($B164,FeedTables!$C$42:$T$42,FeedTables!$C$46:$T$46,,-1)*_xlfn.XLOOKUP(N163,DensityMultiplier[Biomass kg/m3],DensityMultiplier[Multiplier],,-1)","v":{"$error":"#N/A"}},3853.2039089810314,{"$f":"IF(A164<='S2-Double'!$C$7,('Growth-Model-2'!G163*EXP($AA$7)),0)","v":0},{"$f":"IF(A164<='S2-Double'!$C$7,$AD$6*EXP($AD$7*('S2-Double'!C$7-'Growth-Model-2'!A164)),0)","v":0},196.79609101896818,4.8591627412090908E-2,0,18.467327479743304,0,{"$f":"M164/'S2-Double'!$C$17","v":0},{"$error":"#N/A"},{"$error":"#N/A"},{"$f":"_xlfn.XLOOKUP(B164,FeedTables!$C$17:$T$17,FeedTables!$C$31:$T$31,,-1)","v":{"$error":"#N/A"}},{"$f":"_xlfn.XLOOKUP(Q164,FeedPrice[Feed],FeedPrice[Price per kg],\"Unknown\",0)*O164","v":{"$error":"#N/A"}},{"$error":"#N/A"},{"$f":"_xlfn.XLOOKUP(O164,LabourFromFeed[Feed Quantity (kg)],LabourFromFeed[No. Labour],\"Out of range\",-1)","v":{"$error":"#N/A"}},{"$f":"T164*OperatingCosts!$C$9","v":{"$error":"#N/A"}},{"$error":"#N/A"}]
[163,{"$f":"IF(A165<='S2-Double'!$C$7, B164*EXP((LN((E164/100)+1))*1),)","v":0},{"$f":"_xlfn.XLOOKUP($B165,FeedTables!$C$42:$T$42,FeedTables!$C$44:$T$44,,-1)","v":{"$error":"#N/A"}},{"$f":"_xlfn.XLOOKUP($B165,FeedTables!$C$42:$T$42,FeedTables!$C$45:$T$45,,-1)","v":{"$error":"#N/A"}},{"$f":"_xlfn.XLOOKUP($B165,FeedTables!$C$42:$T$42,FeedTables!$C$46:$T$46,,-1)*_xlfn.XLOOKUP(N164,DensityMultiplier[Biomass kg/m3],DensityMultiplier[Multiplier],,-1)","v":{"$error":"#N/A"}},3853.2039089810314,{"$f":"IF(A165<='S2-Double'!$C$7,('Growth-Model-2'!G164*EXP($AA$7)),0)","v":0},{"$f":"IF(A165<='S2-Double'!$C$7,$AD$6*EXP($AD$7*('S2-Double'!C$7-'Growth-Model-2'!A165)),0)","v":0},196.79609101896818,4.8591627412090908E-2,0,18.467327479743304,0,{"$f":"M165/'S2-Double'!$C$17","v":0},{"$error":"#N/A"},{"$error":"#N/A"},{"$f":"_xlfn.XLOOKUP(B165,FeedTables!$C$17:$T$17,FeedTables!$C$31:$T$31,,-1)","v":{"$error":"#N/A"}},{"$f":"_xlfn.XLOOKUP(Q165,FeedPrice[Feed],FeedPrice[Price per kg],\"Unknown\",0)*O165","v":{"$error":"#N/A"}},{"$error":"#N/A"},{"$f":"_xlfn.XLOOKUP(O165,LabourFromFeed[Feed Quantity (kg)],LabourFromFeed[No. Labour],\"Out of range\",-1)","v":{"$error":"#N/A"}},{"$f":"T165*OperatingCosts!$C$9","v":{"$error":"#N/A"}},{"$error":"#N/A"}]
[164,{"$f":"IF(A166<='S2-Double'!$C$7, B165*EXP((LN((E165/100)+1))*1),)","v":0},{"$f":"_xlfn.XLOOKUP($B166,FeedTables!$C$42:$T$42,FeedTables!$C$44:$T$44,,-1)","v":{"$error":"#N/A"}},{"$f":"_xlfn.XLOOKUP($B166,FeedTables!$C$42:$T$42,FeedTables!$C$45:$T$45,,-1)","v":{"$error":"#N/A"}},{"$f":"_xlfn.XLOOKUP($B166,FeedTables!$C$42:$T$42,FeedTables!$C$46:$T$46,,-1)*_xlfn.XLOOKUP(N165,DensityMultiplier[Biomass kg/m3],DensityMultiplier[Multiplier],,-1)","v":{"$error":"#N/A"}},3853.2039089810314,{"$f":"IF(A166<='S2-Double'!$C$7,('Growth-Model-2'!G165*EXP($AA$7)),0)","v":0},{"$f":"IF(A166<='S2-Double'!$C$7,$AD$6*EXP($AD$7*('S2-Double'!C$7-'Growth-Model-2'!A166)),0)","v":0},196.79609101896818,4.8591627412090908E-2,0,18.467327479743304,0,{"$f":"M166/'S2-Double'!$C$17","v":0},{"$error":"#N/A"},{"$error":"#N/A"},{"$f":"_xlfn.XLOOKUP(B166,FeedTables!$C$17:$T$17,FeedTables!$C$31:$T$31,,-1)","v":{"$error":"#N/A"}},{"$f":"_xlfn.XLOOKUP(Q166,FeedPrice[Feed],FeedPrice[Price per kg],\"Unknown\",0)*O166","v":{"$error":"#N/A"}},{"$error":"#N/A"},{"$f":"_xlfn.XLOOKUP(O166,LabourFromFeed[Feed Quantity (kg)],LabourFromFeed[No. Labour],\"Out of range\",-1)","v":{"$error":"#N/A"}},{"$f":"T166*OperatingCosts!$C$9","v":{"$error":"#N/A"}},{"$error":"#N/A"}]
[165,{"$f":"IF(A167<='S2-Double'!$C$7, B166*EXP((LN((E166/100)+1))*1),)","v":0},{"$f":"_xlfn.XLOOKUP($B167,FeedTables!$C$42:$T$42,FeedTables!$C$44:$T$44,,-1)","v":{"$error":"#N/A"}},{"$f":"_xlfn.XLOOKUP($B167,FeedTables!$C$42:$T$42,FeedTables!$C$45:$T$45,,-1)","v":{"$error":"#N/A"}},{"$f":"_xlfn.XLOOKUP($B167,FeedTables!$C$42:$T$42,FeedTables!$C$46:$T$46,,-1)*_xlfn.XLOOKUP(N166,DensityMultiplier[Biomass kg/m3],DensityMultiplier[Multiplier],,-1)","v":{"$error":"#N/A"}},3853.2039089810314,{"$f":"IF(A167<='S2-Double'!$C$7,('Growth-Model-2'!G166*EXP($AA$7)),0)","v":0},{"$f":"IF(A167<='S2-Double'!$C$7,$AD$6*EXP($AD$7*('S2-Double'!C$7-'Growth-Model-2'!A167)),0)","v":0},196.79609101896818,4.8591627412090908E-2,0,18.467327479743304,0,{"$f":"M167/'S2-Double'!$C$17","v":0},{"$error":"#N/A"},{"$error":"#N/A"},{"$f":"_xlfn.XLOOKUP(B167,FeedTables!$C$17:$T$17,FeedTables!$C$31:$T$31,,-1)","v":{"$error":"#N/A"}},{"$f":"_xlfn.XLOOKUP(Q167,FeedPrice[Feed],FeedPrice[Price per kg],\"Unknown\",0)*O167","v":{"$error":"#N/A"}},{"$error":"#N/A"},{"$f":"_xlfn.XLOOKUP(O167,LabourFromFeed[Feed Quantity (kg)],LabourFromFeed[No. Labour],\"Out of range\",-1)","v":{"$error":"#N/A"}},{"$f":"T167*OperatingCosts!$C$9","v":{"$error":"#N/A"}},{"$error":"#N/A"}]
[166,{"$f":"IF(A168<='S2-Double'!$C$7, B167*EXP((LN((E167/100)+1))*1),)","v":0},{"$f":"_xlfn.XLOOKUP($B168,FeedTables!$C$42:$T$42,FeedTables!$C$44:$T$44,,-1)","v":{"$error":"#N/A"}},{"$f":"_xlfn.XLOOKUP($B168,FeedTables!$C$42:$T$42,FeedTables!$C$45:$T$45,,-1)","v":{"$error":"#N/A"}},{"$f":"_xlfn.XLOOKUP($B168,FeedTables!$C$42:$T$42,FeedTables!$C$46:$T$46,,-1)*_xlfn.XLOOKUP(N167,DensityMultiplier[Biomass kg/m3],DensityMultiplier[Multiplier],,-1)","v":{"$error":"#N/A"}},3853.2039089810314,{"$f":"IF(A168<='S2-Double'!$C$7,('Growth-Model-2'!G167*EXP($AA$7)),0)","v":0},{"$f":"IF(A168<='S2-Double'!$C$7,$AD$6*EXP($AD$7*('S2-Double'!C$7-'Growth-Model-2'!A168)),0)","v":0},196.79609101896818,4.8591627412090908E-2,0,18.467327479743304,0,{"$f":"M168/'S2-Double'!$C$17","v":0},{"$error":"#N/A"},{"$error":"#N/A"},{"$f":"_xlfn.XLOOKUP(B168,FeedTables!$C$17:$T$17,FeedTables!$C$31:$T$31,,-1)","v":{"$error":"#N/A"}},{"$f":"_xlfn.XLOOKUP(Q168,FeedPrice[Feed],FeedPrice[Price per kg],\"Unknown\",0)*O168","v":{"$error":"#N/A"}},{"$error":"#N/A"},{"$f":"_xlfn.XLOOKUP(O168,LabourFromFeed[Feed Quantity (kg)],LabourFromFeed[No. Labour],\"Out of range\",-1)","v":{"$error":"#N/A"}},{"$f":"T168*OperatingCosts!$C$9","v":{"$error":"#N/A"}},{"$error":"#N/A"}]
[167,{"$f":"IF(A169<='S2-Double'!$C$7, B168*EXP((LN((E168/100)+1))*1),)","v":0},{"$f":"_xlfn.XLOOKUP($B169,FeedTables!$C$42:$T$42,FeedTables!$C$44:$T$44,,-1)","v":{"$error":"#N/A"}},{"$f":"_xlfn.XLOOKUP($B169,FeedTables!$C$42:$T$42,FeedTables!$C$45:$T$45,,-1)","v":{"$error":"#N/A"}},{"$f":"_xlfn.XLOOKUP($B169,FeedTables!$C$42:$T$42,FeedTables!$C$46:$T$46,,-1)*_xlfn.XLOOKUP(N168,DensityMultiplier[Biomass kg/m3],DensityMultiplier[Multiplier],,-1)","v":{"$error":"#N/A"}},3853.2039089810314,{"$f":"IF(A169<='S2-Double'!$C$7,('Growth-Model-2'!G168*EXP($AA$7)),0)","v":0},{"$f":"IF(A169<='S2-Double'!$C$7,$AD$6*EXP($AD$7*('S2-Double'!C$7-'Growth-Model-2'!A169)),0)","v":0},196.79609101896818,4.8591627412090908E-2,0,18.467327479743304,0,{"$f":"M169/'S2-Double'!$C$17","v":0},{"$error":"#N/A"},{"$error":"#N/A"},{"$f":"_xlfn.XLOOKUP(B169,FeedTables!$C$17:$T$17,FeedTables!$C$31:$T$31,,-1)","v":{"$error":"#N/A"}},{"$f":"_xlfn.XLOOKUP(Q169,FeedPrice[Feed],FeedPrice[Price per kg],\"Unknown\",0)*O169","v":{"$error":"#N/A"}},{"$error":"#N/A"},{"$f":"_xlfn.XLOOKUP(O169,LabourFromFeed[Feed Quantity (kg)],LabourFromFeed[No. Labour],\"Out of range\",-1)","v":{"$error":"#N/A"}},{"$f":"T169*OperatingCosts!$C$9","v":{"$error":"#N/A"}},{"$error":"#N/A"}]
[168,{"$f":"IF(A170<='S2-Double'!$C$7, B169*EXP((LN((E169/100)+1))*1),)","v":0},{"$f":"_xlfn.XLOOKUP($B170,FeedTables!$C$42:$T$42,FeedTables!$C$44:$T$44,,-1)","v":{"$error":"#N/A"}},{"$f":"_xlfn.XLOOKUP($B170,FeedTables!$C$42:$T$42,FeedTables!$C$45:$T$45,,-1)","v":{"$error":"#N/A"}},{"$f":"_xlfn.XLOOKUP($B170,FeedTables!$C$42:$T$42,FeedTables!$C$46:$T$46,,-1)*_xlfn.XLOOKUP(N169,DensityMultiplier[Biomass kg/m3],DensityMultiplier[Multiplier],,-1)","v":{"$error":"#N/A"}},3853.2039089810314,{"$f":"IF(A170<='S2-Double'!$C$7,('Growth-Model-2'!G169*EXP($AA$7)),0)","v":0},{"$f":"IF(A170<='S2-Double'!$C$7,$AD$6*EXP($AD$7*('S2-Double'!C$7-'Growth-Model-2'!A170)),0)","v":0},196.79609101896818,4.8591627412090908E-2,0,18.467327479743304,0,{"$f":"M170/'S2-Double'!$C$17","v":0},{"$error":"#N/A"},{"$error":"#N/A"},{"$f":"_xlfn.XLOOKUP(B170,FeedTables!$C$17:$T$17,FeedTables!$C$31:$T$31,,-1)","v":{"$error":"#N/A"}},{"$f":"_xlfn.XLOOKUP(Q170,FeedPrice[Feed],FeedPrice[Price per kg],\"Unknown\",0)*O170","v":{"$error":"#N/A"}},{"$error":"#N/A"},{"$f":"_xlfn.XLOOKUP(O170,LabourFromFeed[Feed Quantity (kg)],LabourFromFeed[No. Labour],\"Out of range\",-1)","v":{"$error":"#N/A"}},{"$f":"T170*OperatingCosts!$C$9","v":{"$error":"#N/A"}},{"$error":"#N/A"}]
[169,{"$f":"IF(A171<='S2-Double'!$C$7, B170*EXP((LN((E170/100)+1))*1),)","v":0},{"$f":"_xlfn.XLOOKUP($B171,FeedTables!$C$42:$T$42,FeedTables!$C$44:$T$44,,-1)","v":{"$error":"#N/A"}},{"$f":"_xlfn.XLOOKUP($B171,FeedTables!$C$42:$T$42,FeedTables!$C$45:$T$45,,-1)","v":{"$error":"#N/A"}},{"$f":"_xlfn.XLOOKUP($B171,FeedTables!$C$42:$T$42,FeedTables!$C$46:$T$46,,-1)*_xlfn.XLOOKUP(N170,DensityMultiplier[Biomass kg/m3],DensityMultiplier[Multiplier],,-1)","v":{"$error":"#N/A"}},3853.2039089810314,{"$f":"IF(A171<='S2-Double'!$C$7,('Growth-Model-2'!G170*EXP($AA$7)),0)","v":0},{"$f":"IF(A171<='S2-Double'!$C$7,$AD$6*EXP($AD$7*('S2-Double'!C$7-'Growth-Model-2'!A171)),0)","v":0},196.79609101896818,4.8591627412090908E-2,0,18.467327479743304,0,{"$f":"M171/'S2-Double'!$C$17","v":0},{"$error":"#N/A"},{"$error":"#N/A"},{"$f":"_xlfn.XLOOKUP(B171,FeedTables!$C$17:$T$17,FeedTables!$C$31:$T$31,,-1)","v":{"$error":"#N/A"}},{"$f":"_xlfn.XLOOKUP(Q171,FeedPrice[Feed],FeedPrice[Price per kg],\"Unknown\",0)*O171","v":{"$error":"#N/A"}},{"$error":"#N/A"},{"$f":"_xlfn.XLOOKUP(O171,LabourFromFeed[Feed Quantity (kg)],LabourFromFeed[No. Labour],\"Out of range\",-1)","v":{"$error":"#N/A"}},{"$f":"T171*OperatingCosts!$C$9","v":{"$error":"#N/A"}},{"$error":"#N/A"}]
[170,{"$f":"IF(A172<='S2-Double'!$C$7, B171*EXP((LN((E171/100)+1))*1),)","v":0},{"$f":"_xlfn.XLOOKUP($B172,FeedTables!$C$42:$T$42,FeedTables!$C$44:$T$44,,-1)","v":{"$error":"#N/A"}},{"$f":"_xlfn.XLOOKUP($B172,FeedTables!$C$42:$T$42,FeedTables!$C$45:$T$45,,-1)","v":{"$error":"#N/A"}},{"$f":"_xlfn.XLOOKUP($B172,FeedTables!$C$42:$T$42,FeedTables!$C$46:$T$46,,-1)*_xlfn.XLOOKUP(N171,DensityMultiplier[Biomass kg/m3],DensityMultiplier[Multiplier],,-1)","v":{"$error":"#N/A"}},3853.2039089810314,{"$f":"IF(A172<='S2-Double'!$C$7,('Growth-Model-2'!G171*EXP($AA$7)),0)","v":0},{"$f":"IF(A172<='S2-Double'!$C$7,$AD$6*EXP($AD$7*('S2-Double'!C$7-'Growth-Model-2'!A172)),0)","v":0},196.79609101896818,4.8591627412090908E-2,0,18.467327479743304,0,{"$f":"M172/'S2-Double'!$C$17","v":0},{"$error":"#N/A"},{"$error":"#N/A"},{"$f":"_xlfn.XLOOKUP(B172,FeedTables!$C$17:$T$17,FeedTables!$C$31:$T$31,,-1)","v":{"$error":"#N/A"}},{"$f":"_xlfn.XLOOKUP(Q172,FeedPrice[Feed],FeedPrice[Price per kg],\"Unknown\",0)*O172","v":{"$error":"#N/A"}},{"$error":"#N/A"},{"$f":"_xlfn.XLOOKUP(O172,LabourFromFeed[Feed Quantity (kg)],LabourFromFeed[No. Labour],\"Out of range\",-1)","v":{"$error":"#N/A"}},{"$f":"T172*OperatingCosts!$C$9","v":{"$error":"#N/A"}},{"$error":"#N/A"}]
[171,{"$f":"IF(A173<='S2-Double'!$C$7, B172*EXP((LN((E172/100)+1))*1),)","v":0},{"$f":"_xlfn.XLOOKUP($B173,FeedTables!$C$42:$T$42,FeedTables!$C$44:$T$44,,-1)","v":{"$error":"#N/A"}},{"$f":"_xlfn.XLOOKUP($B173,FeedTables!$C$42:$T$42,FeedTables!$C$45:$T$45,,-1)","v":{"$error":"#N/A"}},{"$f":"_xlfn.XLOOKUP($B173,FeedTables!$C$42:$T$42,FeedTables!$C$46:$T$46,,-1)*_xlfn.XLOOKUP(N172,DensityMultiplier[Biomass kg/m3],DensityMultiplier[Multiplier],,-1)","v":{"$error":"#N/A"}},3853.2039089810314,{"$f":"IF(A173<='S2-Double'!$C$7,('Growth-Model-2'!G172*EXP($AA$7)),0)","v":0},{"$f":"IF(A173<='S2-Double'!$C$7,$AD$6*EXP($AD$7*('S2-Double'!C$7-'Growth-Model-2'!A173)),0)","v":0},196.79609101896818,4.8591627412090908E-2,0,18.467327479743304,0,{"$f":"M173/'S2-Double'!$C$17","v":0},{"$error":"#N/A"},{"$error":"#N/A"},{"$f":"_xlfn.XLOOKUP(B173,FeedTables!$C$17:$T$17,FeedTables!$C$31:$T$31,,-1)","v":{"$error":"#N/A"}},{"$f":"_xlfn.XLOOKUP(Q173,FeedPrice[Feed],FeedPrice[Price per kg],\"Unknown\",0)*O173","v":{"$error":"#N/A"}},{"$error":"#N/A"},{"$f":"_xlfn.XLOOKUP(O173,LabourFromFeed[Feed Quantity (kg)],LabourFromFeed[No. Labour],\"Out of range\",-1)","v":{"$error":"#N/A"}},{"$f":"T173*OperatingCosts!$C$9","v":{"$error":"#N/A"}},{"$error":"#N/A"}]
[172,{"$f":"IF(A174<='S2-Double'!$C$7, B173*EXP((LN((E173/100)+1))*1),)","v":0},{"$f":"_xlfn.XLOOKUP($B174,FeedTables!$C$42:$T$42,FeedTables!$C$44:$T$44,,-1)","v":{"$error":"#N/A"}},{"$f":"_xlfn.XLOOKUP($B174,FeedTables!$C$42:$T$42,FeedTables!$C$45:$T$45,,-1)","v":{"$error":"#N/A"}},{"$f":"_xlfn.XLOOKUP($B174,FeedTables!$C$42:$T$42,FeedTables!$C$46:$T$46,,-1)*_xlfn.XLOOKUP(N173,DensityMultiplier[Biomass kg/m3],DensityMultiplier[Multiplier],,-1)","v":{"$error":"#N/A"}},3853.2039089810314,{"$f":"IF(A174<='S2-Double'!$C$7,('Growth-Model-2'!G173*EXP($AA$7)),0)","v":0},{"$f":"IF(A174<='S2-Double'!$C$7,$AD$6*EXP($AD$7*('S2-Double'!C$7-'Growth-Model-2'!A174)),0)","v":0},196.79609101896818,4.8591627412090908E-2,0,18.467327479743304,0,{"$f":"M174/'S2-Double'!$C$17","v":0},{"$error":"#N/A"},{"$error":"#N/A"},{"$f":"_xlfn.XLOOKUP(B174,FeedTables!$C$17:$T$17,FeedTables!$C$31:$T$31,,-1)","v":{"$error":"#N/A"}},{"$f":"_xlfn.XLOOKUP(Q174,FeedPrice[Feed],FeedPrice[Price per kg],\"Unknown\",0)*O174","v":{"$error":"#N/A"}},{"$error":"#N/A"},{"$f":"_xlfn.XLOOKUP(O174,LabourFromFeed[Feed Quantity (kg)],LabourFromFeed[No. Labour],\"Out of range\",-1)","v":{"$error":"#N/A"}},{"$f":"T174*OperatingCosts!$C$9","v":{"$error":"#N/A"}},{"$error":"#N/A"}]
[173,{"$f":"IF(A175<='S2-Double'!$C$7, B174*EXP((LN((E174/100)+1))*1),)","v":0},{"$f":"_xlfn.XLOOKUP($B175,FeedTables!$C$42:$T$42,FeedTables!$C$44:$T$44,,-1)","v":{"$error":"#N/A"}},{"$f":"_xlfn.XLOOKUP($B175,FeedTables!$C$42:$T$42,FeedTables!$C$45:$T$45,,-1)","v":{"$error":"#N/A"}},{"$f":"_xlfn.XLOOKUP($B175,FeedTables!$C$42:$T$42,FeedTables!$C$46:$T$46,,-1)*_xlfn.XLOOKUP(N174,DensityMultiplier[Biomass kg/m3],DensityMultiplier[Multiplier],,-1)","v":{"$error":"#N/A"}},3853.2039089810314,{"$f":"IF(A175<='S2-Double'!$C$7,('Growth-Model-2'!G174*EXP($AA$7)),0)","v":0},{"$f":"IF(A175<='S2-Double'!$C$7,$AD$6*EXP($AD$7*('S2-Double'!C$7-'Growth-Model-2'!A175)),0)","v":0},196.79609101896818,4.8591627412090908E-2,0,18.467327479743304,0,{"$f":"M175/'S2-Double'!$C$17","v":0},{"$error":"#N/A"},{"$error":"#N/A"},{"$f":"_xlfn.XLOOKUP(B175,FeedTables!$C$17:$T$17,FeedTables!$C$31:$T$31,,-1)","v":{"$error":"#N/A"}},{"$f":"_xlfn.XLOOKUP(Q175,FeedPrice[Feed],FeedPrice[Price per kg],\"Unknown\",0)*O175","v":{"$error":"#N/A"}},{"$error":"#N/A"},{"$f":"_xlfn.XLOOKUP(O175,LabourFromFeed[Feed Quantity (kg)],LabourFromFeed[No. Labour],\"Out of range\",-1)","v":{"$error":"#N/A"}},{"$f":"T175*OperatingCosts!$C$9","v":{"$error":"#N/A"}},{"$error":"#N/A"}]
[174,{"$f":"IF(A176<='S2-Double'!$C$7, B175*EXP((LN((E175/100)+1))*1),)","v":0},{"$f":"_xlfn.XLOOKUP($B176,FeedTables!$C$42:$T$42,FeedTables!$C$44:$T$44,,-1)","v":{"$error":"#N/A"}},{"$f":"_xlfn.XLOOKUP($B176,FeedTables!$C$42:$T$42,FeedTables!$C$45:$T$45,,-1)","v":{"$error":"#N/A"}},{"$f":"_xlfn.XLOOKUP($B176,FeedTables!$C$42:$T$42,FeedTables!$C$46:$T$46,,-1)*_xlfn.XLOOKUP(N175,DensityMultiplier[Biomass kg/m3],DensityMultiplier[Multiplier],,-1)","v":{"$error":"#N/A"}},3853.2039089810314,{"$f":"IF(A176<='S2-Double'!$C$7,('Growth-Model-2'!G175*EXP($AA$7)),0)","v":0},{"$f":"IF(A176<='S2-Double'!$C$7,$AD$6*EXP($AD$7*('S2-Double'!C$7-'Growth-Model-2'!A176)),0)","v":0},196.79609101896818,4.8591627412090908E-2,0,18.467327479743304,0,{"$f":"M176/'S2-Double'!$C$17","v":0},{"$error":"#N/A"},{"$error":"#N/A"},{"$f":"_xlfn.XLOOKUP(B176,FeedTables!$C$17:$T$17,FeedTables!$C$31:$T$31,,-1)","v":{"$error":"#N/A"}},{"$f":"_xlfn.XLOOKUP(Q176,FeedPrice[Feed],FeedPrice[Price per kg],\"Unknown\",0)*O176","v":{"$error":"#N/A"}},{"$error":"#N/A"},{"$f":"_xlfn.XLOOKUP(O176,LabourFromFeed[Feed Quantity (kg)],LabourFromFeed[No. Labour],\"Out of range\",-1)","v":{"$error":"#N/A"}},{"$f":"T176*OperatingCosts!$C$9","v":{"$error":"#N/A"}},{"$error":"#N/A"}]
[175,{"$f":"IF(A177<='S2-Double'!$C$7, B176*EXP((LN((E176/100)+1))*1),)","v":0},{"$f":"_xlfn.XLOOKUP($B177,FeedTables!$C$42:$T$42,FeedTables!$C$44:$T$44,,-1)","v":{"$error":"#N/A"}},{"$f":"_xlfn.XLOOKUP($B177,FeedTables!$C$42:$T$42,FeedTables!$C$45:$T$45,,-1)","v":{"$error":"#N/A"}},{"$f":"_xlfn.XLOOKUP($B177,FeedTables!$C$42:$T$42,FeedTables!$C$46:$T$46,,-1)*_xlfn.XLOOKUP(N176,DensityMultiplier[Biomass kg/m3],DensityMultiplier[Multiplier],,-1)","v":{"$error":"#N/A"}},3853.2039089810314,{"$f":"IF(A177<='S2-Double'!$C$7,('Growth-Model-2'!G176*EXP($AA$7)),0)","v":0},{"$f":"IF(A177<='S2-Double'!$C$7,$AD$6*EXP($AD$7*('S2-Double'!C$7-'Growth-Model-2'!A177)),0)","v":0},196.79609101896818,4.8591627412090908E-2,0,18.467327479743304,0,{"$f":"M177/'S2-Double'!$C$17","v":0},{"$error":"#N/A"},{"$error":"#N/A"},{"$f":"_xlfn.XLOOKUP(B177,FeedTables!$C$17:$T$17,FeedTables!$C$31:$T$31,,-1)","v":{"$error":"#N/A"}},{"$f":"_xlfn.XLOOKUP(Q177,FeedPrice[Feed],FeedPrice[Price per kg],\"Unknown\",0)*O177","v":{"$error":"#N/A"}},{"$error":"#N/A"},{"$f":"_xlfn.XLOOKUP(O177,LabourFromFeed[Feed Quantity (kg)],LabourFromFeed[No. Labour],\"Out of range\",-1)","v":{"$error":"#N/A"}},{"$f":"T177*OperatingCosts!$C$9","v":{"$error":"#N/A"}},{"$error":"#N/A"}]
[176,{"$f":"IF(A178<='S2-Double'!$C$7, B177*EXP((LN((E177/100)+1))*1),)","v":0},{"$f":"_xlfn.XLOOKUP($B178,FeedTables!$C$42:$T$42,FeedTables!$C$44:$T$44,,-1)","v":{"$error":"#N/A"}},{"$f":"_xlfn.XLOOKUP($B178,FeedTables!$C$42:$T$42,FeedTables!$C$45:$T$45,,-1)","v":{"$error":"#N/A"}},{"$f":"_xlfn.XLOOKUP($B178,FeedTables!$C$42:$T$42,FeedTables!$C$46:$T$46,,-1)*_xlfn.XLOOKUP(N177,DensityMultiplier[Biomass kg/m3],DensityMultiplier[Multiplier],,-1)","v":{"$error":"#N/A"}},3853.2039089810314,{"$f":"IF(A178<='S2-Double'!$C$7,('Growth-Model-2'!G177*EXP($AA$7)),0)","v":0},{"$f":"IF(A178<='S2-Double'!$C$7,$AD$6*EXP($AD$7*('S2-Double'!C$7-'Growth-Model-2'!A178)),0)","v":0},196.79609101896818,4.8591627412090908E-2,0,18.467327479743304,0,{"$f":"M178/'S2-Double'!$C$17","v":0},{"$error":"#N/A"},{"$error":"#N/A"},{"$f":"_xlfn.XLOOKUP(B178,FeedTables!$C$17:$T$17,FeedTables!$C$31:$T$31,,-1)","v":{"$error":"#N/A"}},{"$f":"_xlfn.XLOOKUP(Q178,FeedPrice[Feed],FeedPrice[Price per kg],\"Unknown\",0)*O178","v":{"$error":"#N/A"}},{"$error":"#N/A"},{"$f":"_xlfn.XLOOKUP(O178,LabourFromFeed[Feed Quantity (kg)],LabourFromFeed[No. Labour],\"Out of range\",-1)","v":{"$error":"#N/A"}},{"$f":"T178*OperatingCosts!$C$9","v":{"$error":"#N/A"}},{"$error":"#N/A"}]
[177,{"$f":"IF(A179<='S2-Double'!$C$7, B178*EXP((LN((E178/100)+1))*1),)","v":0},{"$f":"_xlfn.XLOOKUP($B179,FeedTables!$C$42:$T$42,FeedTables!$C$44:$T$44,,-1)","v":{"$error":"#N/A"}},{"$f":"_xlfn.XLOOKUP($B179,FeedTables!$C$42:$T$42,FeedTables!$C$45:$T$45,,-1)","v":{"$error":"#N/A"}},{"$f":"_xlfn.XLOOKUP($B179,FeedTables!$C$42:$T$42,FeedTables!$C$46:$T$46,,-1)*_xlfn.XLOOKUP(N178,DensityMultiplier[Biomass kg/m3],DensityMultiplier[Multiplier],,-1)","v":{"$error":"#N/A"}},3853.2039089810314,{"$f":"IF(A179<='S2-Double'!$C$7,('Growth-Model-2'!G178*EXP($AA$7)),0)","v":0},{"$f":"IF(A179<='S2-Double'!$C$7,$AD$6*EXP($AD$7*('S2-Double'!C$7-'Growth-Model-2'!A179)),0)","v":0},196.79609101896818,4.8591627412090908E-2,0,18.467327479743304,0,{"$f":"M179/'S2-Double'!$C$17","v":0},{"$error":"#N/A"},{"$error":"#N/A"},{"$f":"_xlfn.XLOOKUP(B179,FeedTables!$C$17:$T$17,FeedTables!$C$31:$T$31,,-1)","v":{"$error":"#N/A"}},{"$f":"_xlfn.XLOOKUP(Q179,FeedPrice[Feed],FeedPrice[Price per kg],\"Unknown\",0)*O179","v":{"$error":"#N/A"}},{"$error":"#N/A"},{"$f":"_xlfn.XLOOKUP(O179,LabourFromFeed[Feed Quantity (kg)],LabourFromFeed[No. Labour],\"Out of range\",-1)","v":{"$error":"#N/A"}},{"$f":"T179*OperatingCosts!$C$9","v":{"$error":"#N/A"}},{"$error":"#N/A"}]
[178,{"$f":"IF(A180<='S2-Double'!$C$7, B179*EXP((LN((E179/100)+1))*1),)","v":0},{"$f":"_xlfn.XLOOKUP($B180,FeedTables!$C$42:$T$42,FeedTables!$C$44:$T$44,,-1)","v":{"$error":"#N/A"}},{"$f":"_xlfn.XLOOKUP($B180,FeedTables!$C$42:$T$42,FeedTables!$C$45:$T$45,,-1)","v":{"$error":"#N/A"}},{"$f":"_xlfn.XLOOKUP($B180,FeedTables!$C$42:$T$42,FeedTables!$C$46:$T$46,,-1)*_xlfn.XLOOKUP(N179,DensityMultiplier[Biomass kg/m3],DensityMultiplier[Multiplier],,-1)","v":{"$error":"#N/A"}},3853.2039089810314,{"$f":"IF(A180<='S2-Double'!$C$7,('Growth-Model-2'!G179*EXP($AA$7)),0)","v":0},{"$f":"IF(A180<='S2-Double'!$C$7,$AD$6*EXP($AD$7*('S2-Double'!C$7-'Growth-Model-2'!A180)),0)","v":0},196.79609101896818,4.8591627412090908E-2,0,18.467327479743304,0,{"$f":"M180/'S2-Double'!$C$17","v":0},{"$error":"#N/A"},{"$error":"#N/A"},{"$f":"_xlfn.XLOOKUP(B180,FeedTables!$C$17:$T$17,FeedTables!$C$31:$T$31,,-1)","v":{"$error":"#N/A"}},{"$f":"_xlfn.XLOOKUP(Q180,FeedPrice[Feed],FeedPrice[Price per kg],\"Unknown\",0)*O180","v":{"$error":"#N/A"}},{"$error":"#N/A"},{"$f":"_xlfn.XLOOKUP(O180,LabourFromFeed[Feed Quantity (kg)],LabourFromFeed[No. Labour],\"Out of range\",-1)","v":{"$error":"#N/A"}},{"$f":"T180*OperatingCosts!$C$9","v":{"$error":"#N/A"}},{"$error":"#N/A"}]
[179,{"$f":"IF(A181<='S2-Double'!$C$7, B180*EXP((LN((E180/100)+1))*1),)","v":0},{"$f":"_xlfn.XLOOKUP($B181,FeedTables!$C$42:$T$42,FeedTables!$C$44:$T$44,,-1)","v":{"$error":"#N/A"}},{"$f":"_xlfn.XLOOKUP($B181,FeedTables!$C$42:$T$42,FeedTables!$C$45:$T$45,,-1)","v":{"$error":"#N/A"}},{"$f":"_xlfn.XLOOKUP($B181,FeedTables!$C$42:$T$42,FeedTables!$C$46:$T$46,,-1)*_xlfn.XLOOKUP(N180,DensityMultiplier[Biomass kg/m3],DensityMultiplier[Multiplier],,-1)","v":{"$error":"#N/A"}},3853.2039089810314,{"$f":"IF(A181<='S2-Double'!$C$7,('Growth-Model-2'!G180*EXP($AA$7)),0)","v":0},{"$f":"IF(A181<='S2-Double'!$C$7,$AD$6*EXP($AD$7*('S2-Double'!C$7-'Growth-Model-2'!A181)),0)","v":0},196.79609101896818,4.8591627412090908E-2,0,18.467327479743304,0,{"$f":"M181/'S2-Double'!$C$17","v":0},{"$error":"#N/A"},{"$error":"#N/A"},{"$f":"_xlfn.XLOOKUP(B181,FeedTables!$C$17:$T$17,FeedTables!$C$31:$T$31,,-1)","v":{"$error":"#N/A"}},{"$f":"_xlfn.XLOOKUP(Q181,FeedPrice[Feed],FeedPrice[Price per kg],\"Unknown\",0)*O181","v":{"$error":"#N/A"}},{"$error":"#N/A"},{"$f":"_xlfn.XLOOKUP(O181,LabourFromFeed[Feed Quantity (kg)],LabourFromFeed[No. Labour],\"Out of range\",-1)","v":{"$error":"#N/A"}},{"$f":"T181*OperatingCosts!$C$9","v":{"$error":"#N/A"}},{"$error":"#N/A"}]
[180,{"$f":"IF(A182<='S2-Double'!$C$7, B181*EXP((LN((E181/100)+1))*1),)","v":0},{"$f":"_xlfn.XLOOKUP($B182,FeedTables!$C$42:$T$42,FeedTables!$C$44:$T$44,,-1)","v":{"$error":"#N/A"}},{"$f":"_xlfn.XLOOKUP($B182,FeedTables!$C$42:$T$42,FeedTables!$C$45:$T$45,,-1)","v":{"$error":"#N/A"}},{"$f":"_xlfn.XLOOKUP($B182,FeedTables!$C$42:$T$42,FeedTables!$C$46:$T$46,,-1)*_xlfn.XLOOKUP(N181,DensityMultiplier[Biomass kg/m3],DensityMultiplier[Multiplier],,-1)","v":{"$error":"#N/A"}},3853.2039089810314,{"$f":"IF(A182<='S2-Double'!$C$7,('Growth-Model-2'!G181*EXP($AA$7)),0)","v":0},{"$f":"IF(A182<='S2-Double'!$C$7,$AD$6*EXP($AD$7*('S2-Double'!C$7-'Growth-Model-2'!A182)),0)","v":0},196.79609101896818,4.8591627412090908E-2,0,18.467327479743304,0,{"$f":"M182/'S2-Double'!$C$17","v":0},{"$error":"#N/A"},{"$error":"#N/A"},{"$f":"_xlfn.XLOOKUP(B182,FeedTables!$C$17:$T$17,FeedTables!$C$31:$T$31,,-1)","v":{"$error":"#N/A"}},{"$f":"_xlfn.XLOOKUP(Q182,FeedPrice[Feed],FeedPrice[Price per kg],\"Unknown\",0)*O182","v":{"$error":"#N/A"}},{"$error":"#N/A"},{"$f":"_xlfn.XLOOKUP(O182,LabourFromFeed[Feed Quantity (kg)],LabourFromFeed[No. Labour],\"Out of range\",-1)","v":{"$error":"#N/A"}},{"$f":"T182*OperatingCosts!$C$9","v":{"$error":"#N/A"}},{"$error":"#N/A"}]
[181,{"$f":"IF(A183<='S2-Double'!$C$7, B182*EXP((LN((E182/100)+1))*1),)","v":0},{"$f":"_xlfn.XLOOKUP($B183,FeedTables!$C$42:$T$42,FeedTables!$C$44:$T$44,,-1)","v":{"$error":"#N/A"}},{"$f":"_xlfn.XLOOKUP($B183,FeedTables!$C$42:$T$42,FeedTables!$C$45:$T$45,,-1)","v":{"$error":"#N/A"}},{"$f":"_xlfn.XLOOKUP($B183,FeedTables!$C$42:$T$42,FeedTables!$C$46:$T$46,,-1)*_xlfn.XLOOKUP(N182,DensityMultiplier[Biomass kg/m3],DensityMultiplier[Multiplier],,-1)","v":{"$error":"#N/A"}},3853.2039089810314,{"$f":"IF(A183<='S2-Double'!$C$7,('Growth-Model-2'!G182*EXP($AA$7)),0)","v":0},{"$f":"IF(A183<='S2-Double'!$C$7,$AD$6*EXP($AD$7*('S2-Double'!C$7-'Growth-Model-2'!A183)),0)","v":0},196.79609101896818,4.8591627412090908E-2,0,18.467327479743304,0,{"$f":"M183/'S2-Double'!$C$17","v":0},{"$error":"#N/A"},{"$error":"#N/A"},{"$f":"_xlfn.XLOOKUP(B183,FeedTables!$C$17:$T$17,FeedTables!$C$31:$T$31,,-1)","v":{"$error":"#N/A"}},{"$f":"_xlfn.XLOOKUP(Q183,FeedPrice[Feed],FeedPrice[Price per kg],\"Unknown\",0)*O183","v":{"$error":"#N/A"}},{"$error":"#N/A"},{"$f":"_xlfn.XLOOKUP(O183,LabourFromFeed[Feed Quantity (kg)],LabourFromFeed[No. Labour],\"Out of range\",-1)","v":{"$error":"#N/A"}},{"$f":"T183*OperatingCosts!$C$9","v":{"$error":"#N/A"}},{"$error":"#N/A"}]
[182,{"$f":"IF(A184<='S2-Double'!$C$7, B183*EXP((LN((E183/100)+1))*1),)","v":0},{"$f":"_xlfn.XLOOKUP($B184,FeedTables!$C$42:$T$42,FeedTables!$C$44:$T$44,,-1)","v":{"$error":"#N/A"}},{"$f":"_xlfn.XLOOKUP($B184,FeedTables!$C$42:$T$42,FeedTables!$C$45:$T$45,,-1)","v":{"$error":"#N/A"}},{"$f":"_xlfn.XLOOKUP($B184,FeedTables!$C$42:$T$42,FeedTables!$C$46:$T$46,,-1)*_xlfn.XLOOKUP(N183,DensityMultiplier[Biomass kg/m3],DensityMultiplier[Multiplier],,-1)","v":{"$error":"#N/A"}},3853.2039089810314,{"$f":"IF(A184<='S2-Double'!$C$7,('Growth-Model-2'!G183*EXP($AA$7)),0)","v":0},{"$f":"IF(A184<='S2-Double'!$C$7,$AD$6*EXP($AD$7*('S2-Double'!C$7-'Growth-Model-2'!A184)),0)","v":0},196.79609101896818,4.8591627412090908E-2,0,18.467327479743304,0,{"$f":"M184/'S2-Double'!$C$17","v":0},{"$error":"#N/A"},{"$error":"#N/A"},{"$f":"_xlfn.XLOOKUP(B184,FeedTables!$C$17:$T$17,FeedTables!$C$31:$T$31,,-1)","v":{"$error":"#N/A"}},{"$f":"_xlfn.XLOOKUP(Q184,FeedPrice[Feed],FeedPrice[Price per kg],\"Unknown\",0)*O184","v":{"$error":"#N/A"}},{"$error":"#N/A"},{"$f":"_xlfn.XLOOKUP(O184,LabourFromFeed[Feed Quantity (kg)],LabourFromFeed[No. Labour],\"Out of range\",-1)","v":{"$error":"#N/A"}},{"$f":"T184*OperatingCosts!$C$9","v":{"$error":"#N/A"}},{"$error":"#N/A"}]
[183,{"$f":"IF(A185<='S2-Double'!$C$7, B184*EXP((LN((E184/100)+1))*1),)","v":0},{"$f":"_xlfn.XLOOKUP($B185,FeedTables!$C$42:$T$42,FeedTables!$C$44:$T$44,,-1)","v":{"$error":"#N/A"}},{"$f":"_xlfn.XLOOKUP($B185,FeedTables!$C$42:$T$42,FeedTables!$C$45:$T$45,,-1)","v":{"$error":"#N/A"}},{"$f":"_xlfn.XLOOKUP($B185,FeedTables!$C$42:$T$42,FeedTables!$C$46:$T$46,,-1)*_xlfn.XLOOKUP(N184,DensityMultiplier[Biomass kg/m3],DensityMultiplier[Multiplier],,-1)","v":{"$error":"#N/A"}},3853.2039089810314,{"$f":"IF(A185<='S2-Double'!$C$7,('Growth-Model-2'!G184*EXP($AA$7)),0)","v":0},{"$f":"IF(A185<='S2-Double'!$C$7,$AD$6*EXP($AD$7*('S2-Double'!C$7-'Growth-Model-2'!A185)),0)","v":0},196.79609101896818,4.8591627412090908E-2,0,18.467327479743304,0,{"$f":"M185/'S2-Double'!$C$17","v":0},{"$error":"#N/A"},{"$error":"#N/A"},{"$f":"_xlfn.XLOOKUP(B185,FeedTables!$C$17:$T$17,FeedTables!$C$31:$T$31,,-1)","v":{"$error":"#N/A"}},{"$f":"_xlfn.XLOOKUP(Q185,FeedPrice[Feed],FeedPrice[Price per kg],\"Unknown\",0)*O185","v":{"$error":"#N/A"}},{"$error":"#N/A"},{"$f":"_xlfn.XLOOKUP(O185,LabourFromFeed[Feed Quantity (kg)],LabourFromFeed[No. Labour],\"Out of range\",-1)","v":{"$error":"#N/A"}},{"$f":"T185*OperatingCosts!$C$9","v":{"$error":"#N/A"}},{"$error":"#N/A"}]
[184,{"$f":"IF(A186<='S2-Double'!$C$7, B185*EXP((LN((E185/100)+1))*1),)","v":0},{"$f":"_xlfn.XLOOKUP($B186,FeedTables!$C$42:$T$42,FeedTables!$C$44:$T$44,,-1)","v":{"$error":"#N/A"}},{"$f":"_xlfn.XLOOKUP($B186,FeedTables!$C$42:$T$42,FeedTables!$C$45:$T$45,,-1)","v":{"$error":"#N/A"}},{"$f":"_xlfn.XLOOKUP($B186,FeedTables!$C$42:$T$42,FeedTables!$C$46:$T$46,,-1)*_xlfn.XLOOKUP(N185,DensityMultiplier[Biomass kg/m3],DensityMultiplier[Multiplier],,-1)","v":{"$error":"#N/A"}},3853.2039089810314,{"$f":"IF(A186<='S2-Double'!$C$7,('Growth-Model-2'!G185*EXP($AA$7)),0)","v":0},{"$f":"IF(A186<='S2-Double'!$C$7,$AD$6*EXP($AD$7*('S2-Double'!C$7-'Growth-Model-2'!A186)),0)","v":0},196.79609101896818,4.8591627412090908E-2,0,18.467327479743304,0,{"$f":"M186/'S2-Double'!$C$17","v":0},{"$error":"#N/A"},{"$error":"#N/A"},{"$f":"_xlfn.XLOOKUP(B186,FeedTables!$C$17:$T$17,FeedTables!$C$31:$T$31,,-1)","v":{"$error":"#N/A"}},{"$f":"_xlfn.XLOOKUP(Q186,FeedPrice[Feed],FeedPrice[Price per kg],\"Unknown\",0)*O186","v":{"$error":"#N/A"}},{"$error":"#N/A"},{"$f":"_xlfn.XLOOKUP(O186,LabourFromFeed[Feed Quantity (kg)],LabourFromFeed[No. Labour],\"Out of range\",-1)","v":{"$error":"#N/A"}},{"$f":"T186*OperatingCosts!$C$9","v":{"$error":"#N/A"}},{"$error":"#N/A"}]
[185,{"$f":"IF(A187<='S2-Double'!$C$7, B186*EXP((LN((E186/100)+1))*1),)","v":0},{"$f":"_xlfn.XLOOKUP($B187,FeedTables!$C$42:$T$42,FeedTables!$C$44:$T$44,,-1)","v":{"$error":"#N/A"}},{"$f":"_xlfn.XLOOKUP($B187,FeedTables!$C$42:$T$42,FeedTables!$C$45:$T$45,,-1)","v":{"$error":"#N/A"}},{"$f":"_xlfn.XLOOKUP($B187,FeedTables!$C$42:$T$42,FeedTables!$C$46:$T$46,,-1)*_xlfn.XLOOKUP(N186,DensityMultiplier[Biomass kg/m3],DensityMultiplier[Multiplier],,-1)","v":{"$error":"#N/A"}},3853.2039089810314,{"$f":"IF(A187<='S2-Double'!$C$7,('Growth-Model-2'!G186*EXP($AA$7)),0)","v":0},{"$f":"IF(A187<='S2-Double'!$C$7,$AD$6*EXP($AD$7*('S2-Double'!C$7-'Growth-Model-2'!A187)),0)","v":0},196.79609101896818,4.8591627412090908E-2,0,18.467327479743304,0,{"$f":"M187/'S2-Double'!$C$17","v":0},{"$error":"#N/A"},{"$error":"#N/A"},{"$f":"_xlfn.XLOOKUP(B187,FeedTables!$C$17:$T$17,FeedTables!$C$31:$T$31,,-1)","v":{"$error":"#N/A"}},{"$f":"_xlfn.XLOOKUP(Q187,FeedPrice[Feed],FeedPrice[Price per kg],\"Unknown\",0)*O187","v":{"$error":"#N/A"}},{"$error":"#N/A"},{"$f":"_xlfn.XLOOKUP(O187,LabourFromFeed[Feed Quantity (kg)],LabourFromFeed[No. Labour],\"Out of range\",-1)","v":{"$error":"#N/A"}},{"$f":"T187*OperatingCosts!$C$9","v":{"$error":"#N/A"}},{"$error":"#N/A"}]
[186,{"$f":"IF(A188<='S2-Double'!$C$7, B187*EXP((LN((E187/100)+1))*1),)","v":0},{"$f":"_xlfn.XLOOKUP($B188,FeedTables!$C$42:$T$42,FeedTables!$C$44:$T$44,,-1)","v":{"$error":"#N/A"}},{"$f":"_xlfn.XLOOKUP($B188,FeedTables!$C$42:$T$42,FeedTables!$C$45:$T$45,,-1)","v":{"$error":"#N/A"}},{"$f":"_xlfn.XLOOKUP($B188,FeedTables!$C$42:$T$42,FeedTables!$C$46:$T$46,,-1)*_xlfn.XLOOKUP(N187,DensityMultiplier[Biomass kg/m3],DensityMultiplier[Multiplier],,-1)","v":{"$error":"#N/A"}},3853.2039089810314,{"$f":"IF(A188<='S2-Double'!$C$7,('Growth-Model-2'!G187*EXP($AA$7)),0)","v":0},{"$f":"IF(A188<='S2-Double'!$C$7,$AD$6*EXP($AD$7*('S2-Double'!C$7-'Growth-Model-2'!A188)),0)","v":0},196.79609101896818,4.8591627412090908E-2,0,18.467327479743304,0,{"$f":"M188/'S2-Double'!$C$17","v":0},{"$error":"#N/A"},{"$error":"#N/A"},{"$f":"_xlfn.XLOOKUP(B188,FeedTables!$C$17:$T$17,FeedTables!$C$31:$T$31,,-1)","v":{"$error":"#N/A"}},{"$f":"_xlfn.XLOOKUP(Q188,FeedPrice[Feed],FeedPrice[Price per kg],\"Unknown\",0)*O188","v":{"$error":"#N/A"}},{"$error":"#N/A"},{"$f":"_xlfn.XLOOKUP(O188,LabourFromFeed[Feed Quantity (kg)],LabourFromFeed[No. Labour],\"Out of range\",-1)","v":{"$error":"#N/A"}},{"$f":"T188*OperatingCosts!$C$9","v":{"$error":"#N/A"}},{"$error":"#N/A"}]
[187,{"$f":"IF(A189<='S2-Double'!$C$7, B188*EXP((LN((E188/100)+1))*1),)","v":0},{"$f":"_xlfn.XLOOKUP($B189,FeedTables!$C$42:$T$42,FeedTables!$C$44:$T$44,,-1)","v":{"$error":"#N/A"}},{"$f":"_xlfn.XLOOKUP($B189,FeedTables!$C$42:$T$42,FeedTables!$C$45:$T$45,,-1)","v":{"$error":"#N/A"}},{"$f":"_xlfn.XLOOKUP($B189,FeedTables!$C$42:$T$42,FeedTables!$C$46:$T$46,,-1)*_xlfn.XLOOKUP(N188,DensityMultiplier[Biomass kg/m3],DensityMultiplier[Multiplier],,-1)","v":{"$error":"#N/A"}},3853.2039089810314,{"$f":"IF(A189<='S2-Double'!$C$7,('Growth-Model-2'!G188*EXP($AA$7)),0)","v":0},{"$f":"IF(A189<='S2-Double'!$C$7,$AD$6*EXP($AD$7*('S2-Double'!C$7-'Growth-Model-2'!A189)),0)","v":0},196.79609101896818,4.8591627412090908E-2,0,18.467327479743304,0,{"$f":"M189/'S2-Double'!$C$17","v":0},{"$error":"#N/A"},{"$error":"#N/A"},{"$f":"_xlfn.XLOOKUP(B189,FeedTables!$C$17:$T$17,FeedTables!$C$31:$T$31,,-1)","v":{"$error":"#N/A"}},{"$f":"_xlfn.XLOOKUP(Q189,FeedPrice[Feed],FeedPrice[Price per kg],\"Unknown\",0)*O189","v":{"$error":"#N/A"}},{"$error":"#N/A"},{"$f":"_xlfn.XLOOKUP(O189,LabourFromFeed[Feed Quantity (kg)],LabourFromFeed[No. Labour],\"Out of range\",-1)","v":{"$error":"#N/A"}},{"$f":"T189*OperatingCosts!$C$9","v":{"$error":"#N/A"}},{"$error":"#N/A"}]
[188,{"$f":"IF(A190<='S2-Double'!$C$7, B189*EXP((LN((E189/100)+1))*1),)","v":0},{"$f":"_xlfn.XLOOKUP($B190,FeedTables!$C$42:$T$42,FeedTables!$C$44:$T$44,,-1)","v":{"$error":"#N/A"}},{"$f":"_xlfn.XLOOKUP($B190,FeedTables!$C$42:$T$42,FeedTables!$C$45:$T$45,,-1)","v":{"$error":"#N/A"}},{"$f":"_xlfn.XLOOKUP($B190,FeedTables!$C$42:$T$42,FeedTables!$C$46:$T$46,,-1)*_xlfn.XLOOKUP(N189,DensityMultiplier[Biomass kg/m3],DensityMultiplier[Multiplier],,-1)","v":{"$error":"#N/A"}},3853.2039089810314,{"$f":"IF(A190<='S2-Double'!$C$7,('Growth-Model-2'!G189*EXP($AA$7)),0)","v":0},{"$f":"IF(A190<='S2-Double'!$C$7,$AD$6*EXP($AD$7*('S2-Double'!C$7-'Growth-Model-2'!A190)),0)","v":0},196.79609101896818,4.8591627412090908E-2,0,18.467327479743304,0,{"$f":"M190/'S2-Double'!$C$17","v":0},{"$error":"#N/A"},{"$error":"#N/A"},{"$f":"_xlfn.XLOOKUP(B190,FeedTables!$C$17:$T$17,FeedTables!$C$31:$T$31,,-1)","v":{"$error":"#N/A"}},{"$f":"_xlfn.XLOOKUP(Q190,FeedPrice[Feed],FeedPrice[Price per kg],\"Unknown\",0)*O190","v":{"$error":"#N/A"}},{"$error":"#N/A"},{"$f":"_xlfn.XLOOKUP(O190,LabourFromFeed[Feed Quantity (kg)],LabourFromFeed[No. Labour],\"Out of range\",-1)","v":{"$error":"#N/A"}},{"$f":"T190*OperatingCosts!$C$9","v":{"$error":"#N/A"}},{"$error":"#N/A"}]
[189,{"$f":"IF(A191<='S2-Double'!$C$7, B190*EXP((LN((E190/100)+1))*1),)","v":0},{"$f":"_xlfn.XLOOKUP($B191,FeedTables!$C$42:$T$42,FeedTables!$C$44:$T$44,,-1)","v":{"$error":"#N/A"}},{"$f":"_xlfn.XLOOKUP($B191,FeedTables!$C$42:$T$42,FeedTables!$C$45:$T$45,,-1)","v":{"$error":"#N/A"}},{"$f":"_xlfn.XLOOKUP($B191,FeedTables!$C$42:$T$42,FeedTables!$C$46:$T$46,,-1)*_xlfn.XLOOKUP(N190,DensityMultiplier[Biomass kg/m3],DensityMultiplier[Multiplier],,-1)","v":{"$error":"#N/A"}},3853.2039089810314,{"$f":"IF(A191<='S2-Double'!$C$7,('Growth-Model-2'!G190*EXP($AA$7)),0)","v":0},{"$f":"IF(A191<='S2-Double'!$C$7,$AD$6*EXP($AD$7*('S2-Double'!C$7-'Growth-Model-2'!A191)),0)","v":0},196.79609101896818,4.8591627412090908E-2,0,18.467327479743304,0,{"$f":"M191/'S2-Double'!$C$17","v":0},{"$error":"#N/A"},{"$error":"#N/A"},{"$f":"_xlfn.XLOOKUP(B191,FeedTables!$C$17:$T$17,FeedTables!$C$31:$T$31,,-1)","v":{"$error":"#N/A"}},{"$f":"_xlfn.XLOOKUP(Q191,FeedPrice[Feed],FeedPrice[Price per kg],\"Unknown\",0)*O191","v":{"$error":"#N/A"}},{"$error":"#N/A"},{"$f":"_xlfn.XLOOKUP(O191,LabourFromFeed[Feed Quantity (kg)],LabourFromFeed[No. Labour],\"Out of range\",-1)","v":{"$error":"#N/A"}},{"$f":"T191*OperatingCosts!$C$9","v":{"$error":"#N/A"}},{"$error":"#N/A"}]
[190,{"$f":"IF(A192<='S2-Double'!$C$7, B191*EXP((LN((E191/100)+1))*1),)","v":0},{"$f":"_xlfn.XLOOKUP($B192,FeedTables!$C$42:$T$42,FeedTables!$C$44:$T$44,,-1)","v":{"$error":"#N/A"}},{"$f":"_xlfn.XLOOKUP($B192,FeedTables!$C$42:$T$42,FeedTables!$C$45:$T$45,,-1)","v":{"$error":"#N/A"}},{"$f":"_xlfn.XLOOKUP($B192,FeedTables!$C$42:$T$42,FeedTables!$C$46:$T$46,,-1)*_xlfn.XLOOKUP(N191,DensityMultiplier[Biomass kg/m3],DensityMultiplier[Multiplier],,-1)","v":{"$error":"#N/A"}},3853.2039089810314,{"$f":"IF(A192<='S2-Double'!$C$7,('Growth-Model-2'!G191*EXP($AA$7)),0)","v":0},{"$f":"IF(A192<='S2-Double'!$C$7,$AD$6*EXP($AD$7*('S2-Double'!C$7-'Growth-Model-2'!A192)),0)","v":0},196.79609101896818,4.8591627412090908E-2,0,18.467327479743304,0,{"$f":"M192/'S2-Double'!$C$17","v":0},{"$error":"#N/A"},{"$error":"#N/A"},{"$f":"_xlfn.XLOOKUP(B192,FeedTables!$C$17:$T$17,FeedTables!$C$31:$T$31,,-1)","v":{"$error":"#N/A"}},{"$f":"_xlfn.XLOOKUP(Q192,FeedPrice[Feed],FeedPrice[Price per kg],\"Unknown\",0)*O192","v":{"$error":"#N/A"}},{"$error":"#N/A"},{"$f":"_xlfn.XLOOKUP(O192,LabourFromFeed[Feed Quantity (kg)],LabourFromFeed[No. Labour],\"Out of range\",-1)","v":{"$error":"#N/A"}},{"$f":"T192*OperatingCosts!$C$9","v":{"$error":"#N/A"}},{"$error":"#N/A"}]
[191,{"$f":"IF(A193<='S2-Double'!$C$7, B192*EXP((LN((E192/100)+1))*1),)","v":0},{"$f":"_xlfn.XLOOKUP($B193,FeedTables!$C$42:$T$42,FeedTables!$C$44:$T$44,,-1)","v":{"$error":"#N/A"}},{"$f":"_xlfn.XLOOKUP($B193,FeedTables!$C$42:$T$42,FeedTables!$C$45:$T$45,,-1)","v":{"$error":"#N/A"}},{"$f":"_xlfn.XLOOKUP($B193,FeedTables!$C$42:$T$42,FeedTables!$C$46:$T$46,,-1)*_xlfn.XLOOKUP(N192,DensityMultiplier[Biomass kg/m3],DensityMultiplier[Multiplier],,-1)","v":{"$error":"#N/A"}},3853.2039089810314,{"$f":"IF(A193<='S2-Double'!$C$7,('Growth-Model-2'!G192*EXP($AA$7)),0)","v":0},{"$f":"IF(A193<='S2-Double'!$C$7,$AD$6*EXP($AD$7*('S2-Double'!C$7-'Growth-Model-2'!A193)),0)","v":0},196.79609101896818,4.8591627412090908E-2,0,18.467327479743304,0,{"$f":"M193/'S2-Double'!$C$17","v":0},{"$error":"#N/A"},{"$error":"#N/A"},{"$f":"_xlfn.XLOOKUP(B193,FeedTables!$C$17:$T$17,FeedTables!$C$31:$T$31,,-1)","v":{"$error":"#N/A"}},{"$f":"_xlfn.XLOOKUP(Q193,FeedPrice[Feed],FeedPrice[Price per kg],\"Unknown\",0)*O193","v":{"$error":"#N/A"}},{"$error":"#N/A"},{"$f":"_xlfn.XLOOKUP(O193,LabourFromFeed[Feed Quantity (kg)],LabourFromFeed[No. Labour],\"Out of range\",-1)","v":{"$error":"#N/A"}},{"$f":"T193*OperatingCosts!$C$9","v":{"$error":"#N/A"}},{"$error":"#N/A"}]
[192,{"$f":"IF(A194<='S2-Double'!$C$7, B193*EXP((LN((E193/100)+1))*1),)","v":0},{"$f":"_xlfn.XLOOKUP($B194,FeedTables!$C$42:$T$42,FeedTables!$C$44:$T$44,,-1)","v":{"$error":"#N/A"}},{"$f":"_xlfn.XLOOKUP($B194,FeedTables!$C$42:$T$42,FeedTables!$C$45:$T$45,,-1)","v":{"$error":"#N/A"}},{"$f":"_xlfn.XLOOKUP($B194,FeedTables!$C$42:$T$42,FeedTables!$C$46:$T$46,,-1)*_xlfn.XLOOKUP(N193,DensityMultiplier[Biomass kg/m3],DensityMultiplier[Multiplier],,-1)","v":{"$error":"#N/A"}},3853.2039089810314,{"$f":"IF(A194<='S2-Double'!$C$7,('Growth-Model-2'!G193*EXP($AA$7)),0)","v":0},{"$f":"IF(A194<='S2-Double'!$C$7,$AD$6*EXP($AD$7*('S2-Double'!C$7-'Growth-Model-2'!A194)),0)","v":0},196.79609101896818,4.8591627412090908E-2,0,18.467327479743304,0,{"$f":"M194/'S2-Double'!$C$17","v":0},{"$error":"#N/A"},{"$error":"#N/A"},{"$f":"_xlfn.XLOOKUP(B194,FeedTables!$C$17:$T$17,FeedTables!$C$31:$T$31,,-1)","v":{"$error":"#N/A"}},{"$f":"_xlfn.XLOOKUP(Q194,FeedPrice[Feed],FeedPrice[Price per kg],\"Unknown\",0)*O194","v":{"$error":"#N/A"}},{"$error":"#N/A"},{"$f":"_xlfn.XLOOKUP(O194,LabourFromFeed[Feed Quantity (kg)],LabourFromFeed[No. Labour],\"Out of range\",-1)","v":{"$error":"#N/A"}},{"$f":"T194*OperatingCosts!$C$9","v":{"$error":"#N/A"}},{"$error":"#N/A"}]
[193,{"$f":"IF(A195<='S2-Double'!$C$7, B194*EXP((LN((E194/100)+1))*1),)","v":0},{"$f":"_xlfn.XLOOKUP($B195,FeedTables!$C$42:$T$42,FeedTables!$C$44:$T$44,,-1)","v":{"$error":"#N/A"}},{"$f":"_xlfn.XLOOKUP($B195,FeedTables!$C$42:$T$42,FeedTables!$C$45:$T$45,,-1)","v":{"$error":"#N/A"}},{"$f":"_xlfn.XLOOKUP($B195,FeedTables!$C$42:$T$42,FeedTables!$C$46:$T$46,,-1)*_xlfn.XLOOKUP(N194,DensityMultiplier[Biomass kg/m3],DensityMultiplier[Multiplier],,-1)","v":{"$error":"#N/A"}},3853.2039089810314,{"$f":"IF(A195<='S2-Double'!$C$7,('Growth-Model-2'!G194*EXP($AA$7)),0)","v":0},{"$f":"IF(A195<='S2-Double'!$C$7,$AD$6*EXP($AD$7*('S2-Double'!C$7-'Growth-Model-2'!A195)),0)","v":0},196.79609101896818,{"$f":"I195/$F$2","v":4.8591627412090908E-2},{"$f":"(G195+H195)*B195","v":0},18.467327479743304,{"$f":"(B195*F195)/1000","v":0},{"$f":"M195/'S2-Double'!$C$17","v":0},{"$f":"M195*(C195/100)","v":{"$error":"#N/A"}},{"$error":"#N/A"},{"$f":"_xlfn.XLOOKUP(B195,FeedTables!$C$17:$T$17,FeedTables!$C$31:$T$31,,-1)","v":{"$error":"#N/A"}},{"$f":"_xlfn.XLOOKUP(Q195,FeedPrice[Feed],FeedPrice[Price per kg],\"Unknown\",0)*O195","v":{"$error":"#N/A"}},{"$error":"#N/A"},{"$f":"_xlfn.XLOOKUP(O195,LabourFromFeed[Feed Quantity (kg)],LabourFromFeed[No. Labour],\"Out of range\",-1)","v":{"$error":"#N/A"}},{"$f":"T195*OperatingCosts!$C$9","v":{"$error":"#N/A"}},{"$error":"#N/A"}]
[194,{"$f":"IF(A196<='S2-Double'!$C$7, B195*EXP((LN((E195/100)+1))*1),)","v":0},{"$f":"_xlfn.XLOOKUP($B196,FeedTables!$C$42:$T$42,FeedTables!$C$44:$T$44,,-1)","v":{"$error":"#N/A"}},{"$f":"_xlfn.XLOOKUP($B196,FeedTables!$C$42:$T$42,FeedTables!$C$45:$T$45,,-1)","v":{"$error":"#N/A"}},{"$f":"_xlfn.XLOOKUP($B196,FeedTables!$C$42:$T$42,FeedTables!$C$46:$T$46,,-1)*_xlfn.XLOOKUP(N195,DensityMultiplier[Biomass kg/m3],DensityMultiplier[Multiplier],,-1)","v":{"$error":"#N/A"}},{"$f":"F195-G195-H195","v":3853.2039089810314},{"$f":"IF(A196<='S2-Double'!$C$7,('Growth-Model-2'!G195*EXP($AA$7)),0)","v":0},{"$f":"IF(A196<='S2-Double'!$C$7,$AD$6*EXP($AD$7*('S2-Double'!C$7-'Growth-Model-2'!A196)),0)","v":0},{"$f":"I195+G196+H196","v":196.79609101896818},4.8591627412090908E-2,0,{"$f":"(K196/1000)+L195","v":18.467327479743304},0,{"$f":"M196/'S2-Double'!$C$17","v":0},{"$error":"#N/A"},{"$f":"O196+P195","v":{"$error":"#N/A"}},{"$f":"_xlfn.XLOOKUP(B196,FeedTables!$C$17:$T$17,FeedTables!$C$31:$T$31,,-1)","v":{"$error":"#N/A"}},{"$f":"_xlfn.XLOOKUP(Q196,FeedPrice[Feed],FeedPrice[Price per kg],\"Unknown\",0)*O196","v":{"$error":"#N/A"}},{"$f":"R196+S195","v":{"$error":"#N/A"}},{"$f":"_xlfn.XLOOKUP(O196,LabourFromFeed[Feed Quantity (kg)],LabourFromFeed[No. Labour],\"Out of range\",-1)","v":{"$error":"#N/A"}},{"$f":"T196*OperatingCosts!$C$9","v":{"$error":"#N/A"}},{"$f":"U196+V195","v":{"$error":"#N/A"}}]
[195,{"$f":"IF(A197<='S2-Double'!$C$7, B196*EXP((LN((E196/100)+1))*1),)","v":0},{"$f":"_xlfn.XLOOKUP($B197,FeedTables!$C$42:$T$42,FeedTables!$C$44:$T$44,,-1)","v":{"$error":"#N/A"}},{"$f":"_xlfn.XLOOKUP($B197,FeedTables!$C$42:$T$42,FeedTables!$C$45:$T$45,,-1)","v":{"$error":"#N/A"}},{"$f":"_xlfn.XLOOKUP($B197,FeedTables!$C$42:$T$42,FeedTables!$C$46:$T$46,,-1)*_xlfn.XLOOKUP(N196,DensityMultiplier[Biomass kg/m3],DensityMultiplier[Multiplier],,-1)","v":{"$error":"#N/A"}},3853.2039089810314,{"$f":"IF(A197<='S2-Double'!$C$7,('Growth-Model-2'!G196*EXP($AA$7)),0)","v":0},{"$f":"IF(A197<='S2-Double'!$C$7,$AD$6*EXP($AD$7*('S2-Double'!C$7-'Growth-Model-2'!A197)),0)","v":0},196.79609101896818,4.8591627412090908E-2,0,18.467327479743304,0,{"$f":"M197/'S2-Double'!$C$17","v":0},{"$error":"#N/A"},{"$error":"#N/A"},{"$f":"_xlfn.XLOOKUP(B197,FeedTables!$C$17:$T$17,FeedTables!$C$31:$T$31,,-1)","v":{"$error":"#N/A"}},{"$f":"_xlfn.XLOOKUP(Q197,FeedPrice[Feed],FeedPrice[Price per kg],\"Unknown\",0)*O197","v":{"$error":"#N/A"}},{"$error":"#N/A"},{"$f":"_xlfn.XLOOKUP(O197,LabourFromFeed[Feed Quantity (kg)],LabourFromFeed[No. Labour],\"Out of range\",-1)","v":{"$error":"#N/A"}},{"$f":"T197*OperatingCosts!$C$9","v":{"$error":"#N/A"}},{"$error":"#N/A"}]
[196,{"$f":"IF(A198<='S2-Double'!$C$7, B197*EXP((LN((E197/100)+1))*1),)","v":0},{"$f":"_xlfn.XLOOKUP($B198,FeedTables!$C$42:$T$42,FeedTables!$C$44:$T$44,,-1)","v":{"$error":"#N/A"}},{"$f":"_xlfn.XLOOKUP($B198,FeedTables!$C$42:$T$42,FeedTables!$C$45:$T$45,,-1)","v":{"$error":"#N/A"}},{"$f":"_xlfn.XLOOKUP($B198,FeedTables!$C$42:$T$42,FeedTables!$C$46:$T$46,,-1)*_xlfn.XLOOKUP(N197,DensityMultiplier[Biomass kg/m3],DensityMultiplier[Multiplier],,-1)","v":{"$error":"#N/A"}},3853.2039089810314,{"$f":"IF(A198<='S2-Double'!$C$7,('Growth-Model-2'!G197*EXP($AA$7)),0)","v":0},{"$f":"IF(A198<='S2-Double'!$C$7,$AD$6*EXP($AD$7*('S2-Double'!C$7-'Growth-Model-2'!A198)),0)","v":0},196.79609101896818,4.8591627412090908E-2,0,18.467327479743304,0,{"$f":"M198/'S2-Double'!$C$17","v":0},{"$error":"#N/A"},{"$error":"#N/A"},{"$f":"_xlfn.XLOOKUP(B198,FeedTables!$C$17:$T$17,FeedTables!$C$31:$T$31,,-1)","v":{"$error":"#N/A"}},{"$f":"_xlfn.XLOOKUP(Q198,FeedPrice[Feed],FeedPrice[Price per kg],\"Unknown\",0)*O198","v":{"$error":"#N/A"}},{"$error":"#N/A"},{"$f":"_xlfn.XLOOKUP(O198,LabourFromFeed[Feed Quantity (kg)],LabourFromFeed[No. Labour],\"Out of range\",-1)","v":{"$error":"#N/A"}},{"$f":"T198*OperatingCosts!$C$9","v":{"$error":"#N/A"}},{"$error":"#N/A"}]
[197,{"$f":"IF(A199<='S2-Double'!$C$7, B198*EXP((LN((E198/100)+1))*1),)","v":0},{"$f":"_xlfn.XLOOKUP($B199,FeedTables!$C$42:$T$42,FeedTables!$C$44:$T$44,,-1)","v":{"$error":"#N/A"}},{"$f":"_xlfn.XLOOKUP($B199,FeedTables!$C$42:$T$42,FeedTables!$C$45:$T$45,,-1)","v":{"$error":"#N/A"}},{"$f":"_xlfn.XLOOKUP($B199,FeedTables!$C$42:$T$42,FeedTables!$C$46:$T$46,,-1)*_xlfn.XLOOKUP(N198,DensityMultiplier[Biomass kg/m3],DensityMultiplier[Multiplier],,-1)","v":{"$error":"#N/A"}},3853.2039089810314,{"$f":"IF(A199<='S2-Double'!$C$7,('Growth-Model-2'!G198*EXP($AA$7)),0)","v":0},{"$f":"IF(A199<='S2-Double'!$C$7,$AD$6*EXP($AD$7*('S2-Double'!C$7-'Growth-Model-2'!A199)),0)","v":0},196.79609101896818,4.8591627412090908E-2,0,18.467327479743304,0,{"$f":"M199/'S2-Double'!$C$17","v":0},{"$error":"#N/A"},{"$error":"#N/A"},{"$f":"_xlfn.XLOOKUP(B199,FeedTables!$C$17:$T$17,FeedTables!$C$31:$T$31,,-1)","v":{"$error":"#N/A"}},{"$f":"_xlfn.XLOOKUP(Q199,FeedPrice[Feed],FeedPrice[Price per kg],\"Unknown\",0)*O199","v":{"$error":"#N/A"}},{"$error":"#N/A"},{"$f":"_xlfn.XLOOKUP(O199,LabourFromFeed[Feed Quantity (kg)],LabourFromFeed[No. Labour],\"Out of range\",-1)","v":{"$error":"#N/A"}},{"$f":"T199*OperatingCosts!$C$9","v":{"$error":"#N/A"}},{"$error":"#N/A"}]
[198,{"$f":"IF(A200<='S2-Double'!$C$7, B199*EXP((LN((E199/100)+1))*1),)","v":0},{"$f":"_xlfn.XLOOKUP($B200,FeedTables!$C$42:$T$42,FeedTables!$C$44:$T$44,,-1)","v":{"$error":"#N/A"}},{"$f":"_xlfn.XLOOKUP($B200,FeedTables!$C$42:$T$42,FeedTables!$C$45:$T$45,,-1)","v":{"$error":"#N/A"}},{"$f":"_xlfn.XLOOKUP($B200,FeedTables!$C$42:$T$42,FeedTables!$C$46:$T$46,,-1)*_xlfn.XLOOKUP(N199,DensityMultiplier[Biomass kg/m3],DensityMultiplier[Multiplier],,-1)","v":{"$error":"#N/A"}},3853.2039089810314,{"$f":"IF(A200<='S2-Double'!$C$7,('Growth-Model-2'!G199*EXP($AA$7)),0)","v":0},{"$f":"IF(A200<='S2-Double'!$C$7,$AD$6*EXP($AD$7*('S2-Double'!C$7-'Growth-Model-2'!A200)),0)","v":0},196.79609101896818,4.8591627412090908E-2,0,18.467327479743304,0,{"$f":"M200/'S2-Double'!$C$17","v":0},{"$error":"#N/A"},{"$error":"#N/A"},{"$f":"_xlfn.XLOOKUP(B200,FeedTables!$C$17:$T$17,FeedTables!$C$31:$T$31,,-1)","v":{"$error":"#N/A"}},{"$f":"_xlfn.XLOOKUP(Q200,FeedPrice[Feed],FeedPrice[Price per kg],\"Unknown\",0)*O200","v":{"$error":"#N/A"}},{"$error":"#N/A"},{"$f":"_xlfn.XLOOKUP(O200,LabourFromFeed[Feed Quantity (kg)],LabourFromFeed[No. Labour],\"Out of range\",-1)","v":{"$error":"#N/A"}},{"$f":"T200*OperatingCosts!$C$9","v":{"$error":"#N/A"}},{"$error":"#N/A"}]
[199,{"$f":"IF(A201<='S2-Double'!$C$7, B200*EXP((LN((E200/100)+1))*1),)","v":0},{"$f":"_xlfn.XLOOKUP($B201,FeedTables!$C$42:$T$42,FeedTables!$C$44:$T$44,,-1)","v":{"$error":"#N/A"}},{"$f":"_xlfn.XLOOKUP($B201,FeedTables!$C$42:$T$42,FeedTables!$C$45:$T$45,,-1)","v":{"$error":"#N/A"}},{"$f":"_xlfn.XLOOKUP($B201,FeedTables!$C$42:$T$42,FeedTables!$C$46:$T$46,,-1)*_xlfn.XLOOKUP(N200,DensityMultiplier[Biomass kg/m3],DensityMultiplier[Multiplier],,-1)","v":{"$error":"#N/A"}},3853.2039089810314,{"$f":"IF(A201<='S2-Double'!$C$7,('Growth-Model-2'!G200*EXP($AA$7)),0)","v":0},{"$f":"IF(A201<='S2-Double'!$C$7,$AD$6*EXP($AD$7*('S2-Double'!C$7-'Growth-Model-2'!A201)),0)","v":0},196.79609101896818,4.8591627412090908E-2,0,18.467327479743304,0,{"$f":"M201/'S2-Double'!$C$17","v":0},{"$error":"#N/A"},{"$error":"#N/A"},{"$f":"_xlfn.XLOOKUP(B201,FeedTables!$C$17:$T$17,FeedTables!$C$31:$T$31,,-1)","v":{"$error":"#N/A"}},{"$f":"_xlfn.XLOOKUP(Q201,FeedPrice[Feed],FeedPrice[Price per kg],\"Unknown\",0)*O201","v":{"$error":"#N/A"}},{"$error":"#N/A"},{"$f":"_xlfn.XLOOKUP(O201,LabourFromFeed[Feed Quantity (kg)],LabourFromFeed[No. Labour],\"Out of range\",-1)","v":{"$error":"#N/A"}},{"$f":"T201*OperatingCosts!$C$9","v":{"$error":"#N/A"}},{"$error":"#N/A"}]
[200,{"$f":"IF(A202<='S2-Double'!$C$7, B201*EXP((LN((E201/100)+1))*1),)","v":0},{"$f":"_xlfn.XLOOKUP($B202,FeedTables!$C$42:$T$42,FeedTables!$C$44:$T$44,,-1)","v":{"$error":"#N/A"}},{"$f":"_xlfn.XLOOKUP($B202,FeedTables!$C$42:$T$42,FeedTables!$C$45:$T$45,,-1)","v":{"$error":"#N/A"}},{"$f":"_xlfn.XLOOKUP($B202,FeedTables!$C$42:$T$42,FeedTables!$C$46:$T$46,,-1)*_xlfn.XLOOKUP(N201,DensityMultiplier[Biomass kg/m3],DensityMultiplier[Multiplier],,-1)","v":{"$error":"#N/A"}},3853.2039089810314,{"$f":"IF(A202<='S2-Double'!$C$7,('Growth-Model-2'!G201*EXP($AA$7)),0)","v":0},{"$f":"IF(A202<='S2-Double'!$C$7,$AD$6*EXP($AD$7*('S2-Double'!C$7-'Growth-Model-2'!A202)),0)","v":0},196.79609101896818,4.8591627412090908E-2,0,18.467327479743304,0,{"$f":"M202/'S2-Double'!$C$17","v":0},{"$error":"#N/A"},{"$error":"#N/A"},{"$f":"_xlfn.XLOOKUP(B202,FeedTables!$C$17:$T$17,FeedTables!$C$31:$T$31,,-1)","v":{"$error":"#N/A"}},{"$f":"_xlfn.XLOOKUP(Q202,FeedPrice[Feed],FeedPrice[Price per kg],\"Unknown\",0)*O202","v":{"$error":"#N/A"}},{"$error":"#N/A"},{"$f":"_xlfn.XLOOKUP(O202,LabourFromFeed[Feed Quantity (kg)],LabourFromFeed[No. Labour],\"Out of range\",-1)","v":{"$error":"#N/A"}},{"$f":"T202*OperatingCosts!$C$9","v":{"$error":"#N/A"}},{"$error":"#N/A"}]
[201,{"$f":"IF(A203<='S2-Double'!$C$7, B202*EXP((LN((E202/100)+1))*1),)","v":0},{"$f":"_xlfn.XLOOKUP($B203,FeedTables!$C$42:$T$42,FeedTables!$C$44:$T$44,,-1)","v":{"$error":"#N/A"}},{"$f":"_xlfn.XLOOKUP($B203,FeedTables!$C$42:$T$42,FeedTables!$C$45:$T$45,,-1)","v":{"$error":"#N/A"}},{"$f":"_xlfn.XLOOKUP($B203,FeedTables!$C$42:$T$42,FeedTables!$C$46:$T$46,,-1)*_xlfn.XLOOKUP(N202,DensityMultiplier[Biomass kg/m3],DensityMultiplier[Multiplier],,-1)","v":{"$error":"#N/A"}},3853.2039089810314,{"$f":"IF(A203<='S2-Double'!$C$7,('Growth-Model-2'!G202*EXP($AA$7)),0)","v":0},{"$f":"IF(A203<='S2-Double'!$C$7,$AD$6*EXP($AD$7*('S2-Double'!C$7-'Growth-Model-2'!A203)),0)","v":0},196.79609101896818,4.8591627412090908E-2,0,18.467327479743304,0,{"$f":"M203/'S2-Double'!$C$17","v":0},{"$error":"#N/A"},{"$error":"#N/A"},{"$f":"_xlfn.XLOOKUP(B203,FeedTables!$C$17:$T$17,FeedTables!$C$31:$T$31,,-1)","v":{"$error":"#N/A"}},{"$f":"_xlfn.XLOOKUP(Q203,FeedPrice[Feed],FeedPrice[Price per kg],\"Unknown\",0)*O203","v":{"$error":"#N/A"}},{"$error":"#N/A"},{"$f":"_xlfn.XLOOKUP(O203,LabourFromFeed[Feed Quantity (kg)],LabourFromFeed[No. Labour],\"Out of range\",-1)","v":{"$error":"#N/A"}},{"$f":"T203*OperatingCosts!$C$9","v":{"$error":"#N/A"}},{"$error":"#N/A"}]
[202,{"$f":"IF(A204<='S2-Double'!$C$7, B203*EXP((LN((E203/100)+1))*1),)","v":0},{"$f":"_xlfn.XLOOKUP($B204,FeedTables!$C$42:$T$42,FeedTables!$C$44:$T$44,,-1)","v":{"$error":"#N/A"}},{"$f":"_xlfn.XLOOKUP($B204,FeedTables!$C$42:$T$42,FeedTables!$C$45:$T$45,,-1)","v":{"$error":"#N/A"}},{"$f":"_xlfn.XLOOKUP($B204,FeedTables!$C$42:$T$42,FeedTables!$C$46:$T$46,,-1)*_xlfn.XLOOKUP(N203,DensityMultiplier[Biomass kg/m3],DensityMultiplier[Multiplier],,-1)","v":{"$error":"#N/A"}},3853.2039089810314,{"$f":"IF(A204<='S2-Double'!$C$7,('Growth-Model-2'!G203*EXP($AA$7)),0)","v":0},{"$f":"IF(A204<='S2-Double'!$C$7,$AD$6*EXP($AD$7*('S2-Double'!C$7-'Growth-Model-2'!A204)),0)","v":0},196.79609101896818,4.8591627412090908E-2,0,18.467327479743304,0,{"$f":"M204/'S2-Double'!$C$17","v":0},{"$error":"#N/A"},{"$error":"#N/A"},{"$f":"_xlfn.XLOOKUP(B204,FeedTables!$C$17:$T$17,FeedTables!$C$31:$T$31,,-1)","v":{"$error":"#N/A"}},{"$f":"_xlfn.XLOOKUP(Q204,FeedPrice[Feed],FeedPrice[Price per kg],\"Unknown\",0)*O204","v":{"$error":"#N/A"}},{"$error":"#N/A"},{"$f":"_xlfn.XLOOKUP(O204,LabourFromFeed[Feed Quantity (kg)],LabourFromFeed[No. Labour],\"Out of range\",-1)","v":{"$error":"#N/A"}},{"$f":"T204*OperatingCosts!$C$9","v":{"$error":"#N/A"}},{"$error":"#N/A"}]
[203,{"$f":"IF(A205<='S2-Double'!$C$7, B204*EXP((LN((E204/100)+1))*1),)","v":0},{"$f":"_xlfn.XLOOKUP($B205,FeedTables!$C$42:$T$42,FeedTables!$C$44:$T$44,,-1)","v":{"$error":"#N/A"}},{"$f":"_xlfn.XLOOKUP($B205,FeedTables!$C$42:$T$42,FeedTables!$C$45:$T$45,,-1)","v":{"$error":"#N/A"}},{"$f":"_xlfn.XLOOKUP($B205,FeedTables!$C$42:$T$42,FeedTables!$C$46:$T$46,,-1)*_xlfn.XLOOKUP(N204,DensityMultiplier[Biomass kg/m3],DensityMultiplier[Multiplier],,-1)","v":{"$error":"#N/A"}},3853.2039089810314,{"$f":"IF(A205<='S2-Double'!$C$7,('Growth-Model-2'!G204*EXP($AA$7)),0)","v":0},{"$f":"IF(A205<='S2-Double'!$C$7,$AD$6*EXP($AD$7*('S2-Double'!C$7-'Growth-Model-2'!A205)),0)","v":0},196.79609101896818,4.8591627412090908E-2,0,18.467327479743304,0,{"$f":"M205/'S2-Double'!$C$17","v":0},{"$error":"#N/A"},{"$error":"#N/A"},{"$f":"_xlfn.XLOOKUP(B205,FeedTables!$C$17:$T$17,FeedTables!$C$31:$T$31,,-1)","v":{"$error":"#N/A"}},{"$f":"_xlfn.XLOOKUP(Q205,FeedPrice[Feed],FeedPrice[Price per kg],\"Unknown\",0)*O205","v":{"$error":"#N/A"}},{"$error":"#N/A"},{"$f":"_xlfn.XLOOKUP(O205,LabourFromFeed[Feed Quantity (kg)],LabourFromFeed[No. Labour],\"Out of range\",-1)","v":{"$error":"#N/A"}},{"$f":"T205*OperatingCosts!$C$9","v":{"$error":"#N/A"}},{"$error":"#N/A"}]
[204,{"$f":"IF(A206<='S2-Double'!$C$7, B205*EXP((LN((E205/100)+1))*1),)","v":0},{"$f":"_xlfn.XLOOKUP($B206,FeedTables!$C$42:$T$42,FeedTables!$C$44:$T$44,,-1)","v":{"$error":"#N/A"}},{"$f":"_xlfn.XLOOKUP($B206,FeedTables!$C$42:$T$42,FeedTables!$C$45:$T$45,,-1)","v":{"$error":"#N/A"}},{"$f":"_xlfn.XLOOKUP($B206,FeedTables!$C$42:$T$42,FeedTables!$C$46:$T$46,,-1)*_xlfn.XLOOKUP(N205,DensityMultiplier[Biomass kg/m3],DensityMultiplier[Multiplier],,-1)","v":{"$error":"#N/A"}},3853.2039089810314,{"$f":"IF(A206<='S2-Double'!$C$7,('Growth-Model-2'!G205*EXP($AA$7)),0)","v":0},{"$f":"IF(A206<='S2-Double'!$C$7,$AD$6*EXP($AD$7*('S2-Double'!C$7-'Growth-Model-2'!A206)),0)","v":0},196.79609101896818,4.8591627412090908E-2,0,18.467327479743304,0,{"$f":"M206/'S2-Double'!$C$17","v":0},{"$error":"#N/A"},{"$error":"#N/A"},{"$f":"_xlfn.XLOOKUP(B206,FeedTables!$C$17:$T$17,FeedTables!$C$31:$T$31,,-1)","v":{"$error":"#N/A"}},{"$f":"_xlfn.XLOOKUP(Q206,FeedPrice[Feed],FeedPrice[Price per kg],\"Unknown\",0)*O206","v":{"$error":"#N/A"}},{"$error":"#N/A"},{"$f":"_xlfn.XLOOKUP(O206,LabourFromFeed[Feed Quantity (kg)],LabourFromFeed[No. Labour],\"Out of range\",-1)","v":{"$error":"#N/A"}},{"$f":"T206*OperatingCosts!$C$9","v":{"$error":"#N/A"}},{"$error":"#N/A"}]
[205,{"$f":"IF(A207<='S2-Double'!$C$7, B206*EXP((LN((E206/100)+1))*1),)","v":0},{"$f":"_xlfn.XLOOKUP($B207,FeedTables!$C$42:$T$42,FeedTables!$C$44:$T$44,,-1)","v":{"$error":"#N/A"}},{"$f":"_xlfn.XLOOKUP($B207,FeedTables!$C$42:$T$42,FeedTables!$C$45:$T$45,,-1)","v":{"$error":"#N/A"}},{"$f":"_xlfn.XLOOKUP($B207,FeedTables!$C$42:$T$42,FeedTables!$C$46:$T$46,,-1)*_xlfn.XLOOKUP(N206,DensityMultiplier[Biomass kg/m3],DensityMultiplier[Multiplier],,-1)","v":{"$error":"#N/A"}},3853.2039089810314,{"$f":"IF(A207<='S2-Double'!$C$7,('Growth-Model-2'!G206*EXP($AA$7)),0)","v":0},{"$f":"IF(A207<='S2-Double'!$C$7,$AD$6*EXP($AD$7*('S2-Double'!C$7-'Growth-Model-2'!A207)),0)","v":0},196.79609101896818,4.8591627412090908E-2,0,18.467327479743304,0,{"$f":"M207/'S2-Double'!$C$17","v":0},{"$error":"#N/A"},{"$error":"#N/A"},{"$f":"_xlfn.XLOOKUP(B207,FeedTables!$C$17:$T$17,FeedTables!$C$31:$T$31,,-1)","v":{"$error":"#N/A"}},{"$f":"_xlfn.XLOOKUP(Q207,FeedPrice[Feed],FeedPrice[Price per kg],\"Unknown\",0)*O207","v":{"$error":"#N/A"}},{"$error":"#N/A"},{"$f":"_xlfn.XLOOKUP(O207,LabourFromFeed[Feed Quantity (kg)],LabourFromFeed[No. Labour],\"Out of range\",-1)","v":{"$error":"#N/A"}},{"$f":"T207*OperatingCosts!$C$9","v":{"$error":"#N/A"}},{"$error":"#N/A"}]
[206,{"$f":"IF(A208<='S2-Double'!$C$7, B207*EXP((LN((E207/100)+1))*1),)","v":0},{"$f":"_xlfn.XLOOKUP($B208,FeedTables!$C$42:$T$42,FeedTables!$C$44:$T$44,,-1)","v":{"$error":"#N/A"}},{"$f":"_xlfn.XLOOKUP($B208,FeedTables!$C$42:$T$42,FeedTables!$C$45:$T$45,,-1)","v":{"$error":"#N/A"}},{"$f":"_xlfn.XLOOKUP($B208,FeedTables!$C$42:$T$42,FeedTables!$C$46:$T$46,,-1)*_xlfn.XLOOKUP(N207,DensityMultiplier[Biomass kg/m3],DensityMultiplier[Multiplier],,-1)","v":{"$error":"#N/A"}},3853.2039089810314,{"$f":"IF(A208<='S2-Double'!$C$7,('Growth-Model-2'!G207*EXP($AA$7)),0)","v":0},{"$f":"IF(A208<='S2-Double'!$C$7,$AD$6*EXP($AD$7*('S2-Double'!C$7-'Growth-Model-2'!A208)),0)","v":0},196.79609101896818,4.8591627412090908E-2,0,18.467327479743304,0,{"$f":"M208/'S2-Double'!$C$17","v":0},{"$error":"#N/A"},{"$error":"#N/A"},{"$f":"_xlfn.XLOOKUP(B208,FeedTables!$C$17:$T$17,FeedTables!$C$31:$T$31,,-1)","v":{"$error":"#N/A"}},{"$f":"_xlfn.XLOOKUP(Q208,FeedPrice[Feed],FeedPrice[Price per kg],\"Unknown\",0)*O208","v":{"$error":"#N/A"}},{"$error":"#N/A"},{"$f":"_xlfn.XLOOKUP(O208,LabourFromFeed[Feed Quantity (kg)],LabourFromFeed[No. Labour],\"Out of range\",-1)","v":{"$error":"#N/A"}},{"$f":"T208*OperatingCosts!$C$9","v":{"$error":"#N/A"}},{"$error":"#N/A"}]
[207,{"$f":"IF(A209<='S2-Double'!$C$7, B208*EXP((LN((E208/100)+1))*1),)","v":0},{"$f":"_xlfn.XLOOKUP($B209,FeedTables!$C$42:$T$42,FeedTables!$C$44:$T$44,,-1)","v":{"$error":"#N/A"}},{"$f":"_xlfn.XLOOKUP($B209,FeedTables!$C$42:$T$42,FeedTables!$C$45:$T$45,,-1)","v":{"$error":"#N/A"}},{"$f":"_xlfn.XLOOKUP($B209,FeedTables!$C$42:$T$42,FeedTables!$C$46:$T$46,,-1)*_xlfn.XLOOKUP(N208,DensityMultiplier[Biomass kg/m3],DensityMultiplier[Multiplier],,-1)","v":{"$error":"#N/A"}},3853.2039089810314,{"$f":"IF(A209<='S2-Double'!$C$7,('Growth-Model-2'!G208*EXP($AA$7)),0)","v":0},{"$f":"IF(A209<='S2-Double'!$C$7,$AD$6*EXP($AD$7*('S2-Double'!C$7-'Growth-Model-2'!A209)),0)","v":0},196.79609101896818,4.8591627412090908E-2,0,18.467327479743304,0,{"$f":"M209/'S2-Double'!$C$17","v":0},{"$error":"#N/A"},{"$error":"#N/A"},{"$f":"_xlfn.XLOOKUP(B209,FeedTables!$C$17:$T$17,FeedTables!$C$31:$T$31,,-1)","v":{"$error":"#N/A"}},{"$f":"_xlfn.XLOOKUP(Q209,FeedPrice[Feed],FeedPrice[Price per kg],\"Unknown\",0)*O209","v":{"$error":"#N/A"}},{"$error":"#N/A"},{"$f":"_xlfn.XLOOKUP(O209,LabourFromFeed[Feed Quantity (kg)],LabourFromFeed[No. Labour],\"Out of range\",-1)","v":{"$error":"#N/A"}},{"$f":"T209*OperatingCosts!$C$9","v":{"$error":"#N/A"}},{"$error":"#N/A"}]
[208,{"$f":"IF(A210<='S2-Double'!$C$7, B209*EXP((LN((E209/100)+1))*1),)","v":0},{"$f":"_xlfn.XLOOKUP($B210,FeedTables!$C$42:$T$42,FeedTables!$C$44:$T$44,,-1)","v":{"$error":"#N/A"}},{"$f":"_xlfn.XLOOKUP($B210,FeedTables!$C$42:$T$42,FeedTables!$C$45:$T$45,,-1)","v":{"$error":"#N/A"}},{"$f":"_xlfn.XLOOKUP($B210,FeedTables!$C$42:$T$42,FeedTables!$C$46:$T$46,,-1)*_xlfn.XLOOKUP(N209,DensityMultiplier[Biomass kg/m3],DensityMultiplier[Multiplier],,-1)","v":{"$error":"#N/A"}},3853.2039089810314,{"$f":"IF(A210<='S2-Double'!$C$7,('Growth-Model-2'!G209*EXP($AA$7)),0)","v":0},{"$f":"IF(A210<='S2-Double'!$C$7,$AD$6*EXP($AD$7*('S2-Double'!C$7-'Growth-Model-2'!A210)),0)","v":0},196.79609101896818,4.8591627412090908E-2,0,18.467327479743304,0,{"$f":"M210/'S2-Double'!$C$17","v":0},{"$error":"#N/A"},{"$error":"#N/A"},{"$f":"_xlfn.XLOOKUP(B210,FeedTables!$C$17:$T$17,FeedTables!$C$31:$T$31,,-1)","v":{"$error":"#N/A"}},{"$f":"_xlfn.XLOOKUP(Q210,FeedPrice[Feed],FeedPrice[Price per kg],\"Unknown\",0)*O210","v":{"$error":"#N/A"}},{"$error":"#N/A"},{"$f":"_xlfn.XLOOKUP(O210,LabourFromFeed[Feed Quantity (kg)],LabourFromFeed[No. Labour],\"Out of range\",-1)","v":{"$error":"#N/A"}},{"$f":"T210*OperatingCosts!$C$9","v":{"$error":"#N/A"}},{"$error":"#N/A"}]
[209,{"$f":"IF(A211<='S2-Double'!$C$7, B210*EXP((LN((E210/100)+1))*1),)","v":0},{"$f":"_xlfn.XLOOKUP($B211,FeedTables!$C$42:$T$42,FeedTables!$C$44:$T$44,,-1)","v":{"$error":"#N/A"}},{"$f":"_xlfn.XLOOKUP($B211,FeedTables!$C$42:$T$42,FeedTables!$C$45:$T$45,,-1)","v":{"$error":"#N/A"}},{"$f":"_xlfn.XLOOKUP($B211,FeedTables!$C$42:$T$42,FeedTables!$C$46:$T$46,,-1)*_xlfn.XLOOKUP(N210,DensityMultiplier[Biomass kg/m3],DensityMultiplier[Multiplier],,-1)","v":{"$error":"#N/A"}},3853.2039089810314,{"$f":"IF(A211<='S2-Double'!$C$7,('Growth-Model-2'!G210*EXP($AA$7)),0)","v":0},{"$f":"IF(A211<='S2-Double'!$C$7,$AD$6*EXP($AD$7*('S2-Double'!C$7-'Growth-Model-2'!A211)),0)","v":0},196.79609101896818,4.8591627412090908E-2,0,18.467327479743304,0,{"$f":"M211/'S2-Double'!$C$17","v":0},{"$error":"#N/A"},{"$error":"#N/A"},{"$f":"_xlfn.XLOOKUP(B211,FeedTables!$C$17:$T$17,FeedTables!$C$31:$T$31,,-1)","v":{"$error":"#N/A"}},{"$f":"_xlfn.XLOOKUP(Q211,FeedPrice[Feed],FeedPrice[Price per kg],\"Unknown\",0)*O211","v":{"$error":"#N/A"}},{"$error":"#N/A"},{"$f":"_xlfn.XLOOKUP(O211,LabourFromFeed[Feed Quantity (kg)],LabourFromFeed[No. Labour],\"Out of range\",-1)","v":{"$error":"#N/A"}},{"$f":"T211*OperatingCosts!$C$9","v":{"$error":"#N/A"}},{"$error":"#N/A"}]
[210,{"$f":"IF(A212<='S2-Double'!$C$7, B211*EXP((LN((E211/100)+1))*1),)","v":0},{"$f":"_xlfn.XLOOKUP($B212,FeedTables!$C$42:$T$42,FeedTables!$C$44:$T$44,,-1)","v":{"$error":"#N/A"}},{"$f":"_xlfn.XLOOKUP($B212,FeedTables!$C$42:$T$42,FeedTables!$C$45:$T$45,,-1)","v":{"$error":"#N/A"}},{"$f":"_xlfn.XLOOKUP($B212,FeedTables!$C$42:$T$42,FeedTables!$C$46:$T$46,,-1)*_xlfn.XLOOKUP(N211,DensityMultiplier[Biomass kg/m3],DensityMultiplier[Multiplier],,-1)","v":{"$error":"#N/A"}},3853.2039089810314,{"$f":"IF(A212<='S2-Double'!$C$7,('Growth-Model-2'!G211*EXP($AA$7)),0)","v":0},{"$f":"IF(A212<='S2-Double'!$C$7,$AD$6*EXP($AD$7*('S2-Double'!C$7-'Growth-Model-2'!A212)),0)","v":0},196.79609101896818,4.8591627412090908E-2,0,18.467327479743304,0,{"$f":"M212/'S2-Double'!$C$17","v":0},{"$error":"#N/A"},{"$error":"#N/A"},{"$f":"_xlfn.XLOOKUP(B212,FeedTables!$C$17:$T$17,FeedTables!$C$31:$T$31,,-1)","v":{"$error":"#N/A"}},{"$f":"_xlfn.XLOOKUP(Q212,FeedPrice[Feed],FeedPrice[Price per kg],\"Unknown\",0)*O212","v":{"$error":"#N/A"}},{"$error":"#N/A"},{"$f":"_xlfn.XLOOKUP(O212,LabourFromFeed[Feed Quantity (kg)],LabourFromFeed[No. Labour],\"Out of range\",-1)","v":{"$error":"#N/A"}},{"$f":"T212*OperatingCosts!$C$9","v":{"$error":"#N/A"}},{"$error":"#N/A"}]
[211,{"$f":"IF(A213<='S2-Double'!$C$7, B212*EXP((LN((E212/100)+1))*1),)","v":0},{"$f":"_xlfn.XLOOKUP($B213,FeedTables!$C$42:$T$42,FeedTables!$C$44:$T$44,,-1)","v":{"$error":"#N/A"}},{"$f":"_xlfn.XLOOKUP($B213,FeedTables!$C$42:$T$42,FeedTables!$C$45:$T$45,,-1)","v":{"$error":"#N/A"}},{"$f":"_xlfn.XLOOKUP($B213,FeedTables!$C$42:$T$42,FeedTables!$C$46:$T$46,,-1)*_xlfn.XLOOKUP(N212,DensityMultiplier[Biomass kg/m3],DensityMultiplier[Multiplier],,-1)","v":{"$error":"#N/A"}},3853.2039089810314,{"$f":"IF(A213<='S2-Double'!$C$7,('Growth-Model-2'!G212*EXP($AA$7)),0)","v":0},{"$f":"IF(A213<='S2-Double'!$C$7,$AD$6*EXP($AD$7*('S2-Double'!C$7-'Growth-Model-2'!A213)),0)","v":0},196.79609101896818,4.8591627412090908E-2,0,18.467327479743304,0,{"$f":"M213/'S2-Double'!$C$17","v":0},{"$error":"#N/A"},{"$error":"#N/A"},{"$f":"_xlfn.XLOOKUP(B213,FeedTables!$C$17:$T$17,FeedTables!$C$31:$T$31,,-1)","v":{"$error":"#N/A"}},{"$f":"_xlfn.XLOOKUP(Q213,FeedPrice[Feed],FeedPrice[Price per kg],\"Unknown\",0)*O213","v":{"$error":"#N/A"}},{"$error":"#N/A"},{"$f":"_xlfn.XLOOKUP(O213,LabourFromFeed[Feed Quantity (kg)],LabourFromFeed[No. Labour],\"Out of range\",-1)","v":{"$error":"#N/A"}},{"$f":"T213*OperatingCosts!$C$9","v":{"$error":"#N/A"}},{"$error":"#N/A"}]
[212,{"$f":"IF(A214<='S2-Double'!$C$7, B213*EXP((LN((E213/100)+1))*1),)","v":0},{"$f":"_xlfn.XLOOKUP($B214,FeedTables!$C$42:$T$42,FeedTables!$C$44:$T$44,,-1)","v":{"$error":"#N/A"}},{"$f":"_xlfn.XLOOKUP($B214,FeedTables!$C$42:$T$42,FeedTables!$C$45:$T$45,,-1)","v":{"$error":"#N/A"}},{"$f":"_xlfn.XLOOKUP($B214,FeedTables!$C$42:$T$42,FeedTables!$C$46:$T$46,,-1)*_xlfn.XLOOKUP(N213,DensityMultiplier[Biomass kg/m3],DensityMultiplier[Multiplier],,-1)","v":{"$error":"#N/A"}},3853.2039089810314,{"$f":"IF(A214<='S2-Double'!$C$7,('Growth-Model-2'!G213*EXP($AA$7)),0)","v":0},{"$f":"IF(A214<='S2-Double'!$C$7,$AD$6*EXP($AD$7*('S2-Double'!C$7-'Growth-Model-2'!A214)),0)","v":0},196.79609101896818,4.8591627412090908E-2,0,18.467327479743304,0,{"$f":"M214/'S2-Double'!$C$17","v":0},{"$error":"#N/A"},{"$error":"#N/A"},{"$f":"_xlfn.XLOOKUP(B214,FeedTables!$C$17:$T$17,FeedTables!$C$31:$T$31,,-1)","v":{"$error":"#N/A"}},{"$f":"_xlfn.XLOOKUP(Q214,FeedPrice[Feed],FeedPrice[Price per kg],\"Unknown\",0)*O214","v":{"$error":"#N/A"}},{"$error":"#N/A"},{"$f":"_xlfn.XLOOKUP(O214,LabourFromFeed[Feed Quantity (kg)],LabourFromFeed[No. Labour],\"Out of range\",-1)","v":{"$error":"#N/A"}},{"$f":"T214*OperatingCosts!$C$9","v":{"$error":"#N/A"}},{"$error":"#N/A"}]
[213,{"$f":"IF(A215<='S2-Double'!$C$7, B214*EXP((LN((E214/100)+1))*1),)","v":0},{"$f":"_xlfn.XLOOKUP($B215,FeedTables!$C$42:$T$42,FeedTables!$C$44:$T$44,,-1)","v":{"$error":"#N/A"}},{"$f":"_xlfn.XLOOKUP($B215,FeedTables!$C$42:$T$42,FeedTables!$C$45:$T$45,,-1)","v":{"$error":"#N/A"}},{"$f":"_xlfn.XLOOKUP($B215,FeedTables!$C$42:$T$42,FeedTables!$C$46:$T$46,,-1)*_xlfn.XLOOKUP(N214,DensityMultiplier[Biomass kg/m3],DensityMultiplier[Multiplier],,-1)","v":{"$error":"#N/A"}},3853.2039089810314,{"$f":"IF(A215<='S2-Double'!$C$7,('Growth-Model-2'!G214*EXP($AA$7)),0)","v":0},{"$f":"IF(A215<='S2-Double'!$C$7,$AD$6*EXP($AD$7*('S2-Double'!C$7-'Growth-Model-2'!A215)),0)","v":0},196.79609101896818,4.8591627412090908E-2,0,18.467327479743304,0,{"$f":"M215/'S2-Double'!$C$17","v":0},{"$error":"#N/A"},{"$error":"#N/A"},{"$f":"_xlfn.XLOOKUP(B215,FeedTables!$C$17:$T$17,FeedTables!$C$31:$T$31,,-1)","v":{"$error":"#N/A"}},{"$f":"_xlfn.XLOOKUP(Q215,FeedPrice[Feed],FeedPrice[Price per kg],\"Unknown\",0)*O215","v":{"$error":"#N/A"}},{"$error":"#N/A"},{"$f":"_xlfn.XLOOKUP(O215,LabourFromFeed[Feed Quantity (kg)],LabourFromFeed[No. Labour],\"Out of range\",-1)","v":{"$error":"#N/A"}},{"$f":"T215*OperatingCosts!$C$9","v":{"$error":"#N/A"}},{"$error":"#N/A"}]
[214,{"$f":"IF(A216<='S2-Double'!$C$7, B215*EXP((LN((E215/100)+1))*1),)","v":0},{"$f":"_xlfn.XLOOKUP($B216,FeedTables!$C$42:$T$42,FeedTables!$C$44:$T$44,,-1)","v":{"$error":"#N/A"}},{"$f":"_xlfn.XLOOKUP($B216,FeedTables!$C$42:$T$42,FeedTables!$C$45:$T$45,,-1)","v":{"$error":"#N/A"}},{"$f":"_xlfn.XLOOKUP($B216,FeedTables!$C$42:$T$42,FeedTables!$C$46:$T$46,,-1)*_xlfn.XLOOKUP(N215,DensityMultiplier[Biomass kg/m3],DensityMultiplier[Multiplier],,-1)","v":{"$error":"#N/A"}},3853.2039089810314,{"$f":"IF(A216<='S2-Double'!$C$7,('Growth-Model-2'!G215*EXP($AA$7)),0)","v":0},{"$f":"IF(A216<='S2-Double'!$C$7,$AD$6*EXP($AD$7*('S2-Double'!C$7-'Growth-Model-2'!A216)),0)","v":0},196.79609101896818,4.8591627412090908E-2,0,18.467327479743304,0,{"$f":"M216/'S2-Double'!$C$17","v":0},{"$error":"#N/A"},{"$error":"#N/A"},{"$f":"_xlfn.XLOOKUP(B216,FeedTables!$C$17:$T$17,FeedTables!$C$31:$T$31,,-1)","v":{"$error":"#N/A"}},{"$f":"_xlfn.XLOOKUP(Q216,FeedPrice[Feed],FeedPrice[Price per kg],\"Unknown\",0)*O216","v":{"$error":"#N/A"}},{"$error":"#N/A"},{"$f":"_xlfn.XLOOKUP(O216,LabourFromFeed[Feed Quantity (kg)],LabourFromFeed[No. Labour],\"Out of range\",-1)","v":{"$error":"#N/A"}},{"$f":"T216*OperatingCosts!$C$9","v":{"$error":"#N/A"}},{"$error":"#N/A"}]
[215,{"$f":"IF(A217<='S2-Double'!$C$7, B216*EXP((LN((E216/100)+1))*1),)","v":0},{"$f":"_xlfn.XLOOKUP($B217,FeedTables!$C$42:$T$42,FeedTables!$C$44:$T$44,,-1)","v":{"$error":"#N/A"}},{"$f":"_xlfn.XLOOKUP($B217,FeedTables!$C$42:$T$42,FeedTables!$C$45:$T$45,,-1)","v":{"$error":"#N/A"}},{"$f":"_xlfn.XLOOKUP($B217,FeedTables!$C$42:$T$42,FeedTables!$C$46:$T$46,,-1)*_xlfn.XLOOKUP(N216,DensityMultiplier[Biomass kg/m3],DensityMultiplier[Multiplier],,-1)","v":{"$error":"#N/A"}},3853.2039089810314,{"$f":"IF(A217<='S2-Double'!$C$7,('Growth-Model-2'!G216*EXP($AA$7)),0)","v":0},{"$f":"IF(A217<='S2-Double'!$C$7,$AD$6*EXP($AD$7*('S2-Double'!C$7-'Growth-Model-2'!A217)),0)","v":0},196.79609101896818,4.8591627412090908E-2,0,18.467327479743304,0,{"$f":"M217/'S2-Double'!$C$17","v":0},{"$error":"#N/A"},{"$error":"#N/A"},{"$f":"_xlfn.XLOOKUP(B217,FeedTables!$C$17:$T$17,FeedTables!$C$31:$T$31,,-1)","v":{"$error":"#N/A"}},{"$f":"_xlfn.XLOOKUP(Q217,FeedPrice[Feed],FeedPrice[Price per kg],\"Unknown\",0)*O217","v":{"$error":"#N/A"}},{"$error":"#N/A"},{"$f":"_xlfn.XLOOKUP(O217,LabourFromFeed[Feed Quantity (kg)],LabourFromFeed[No. Labour],\"Out of range\",-1)","v":{"$error":"#N/A"}},{"$f":"T217*OperatingCosts!$C$9","v":{"$error":"#N/A"}},{"$error":"#N/A"}]
[216,{"$f":"IF(A218<='S2-Double'!$C$7, B217*EXP((LN((E217/100)+1))*1),)","v":0},{"$f":"_xlfn.XLOOKUP($B218,FeedTables!$C$42:$T$42,FeedTables!$C$44:$T$44,,-1)","v":{"$error":"#N/A"}},{"$f":"_xlfn.XLOOKUP($B218,FeedTables!$C$42:$T$42,FeedTables!$C$45:$T$45,,-1)","v":{"$error":"#N/A"}},{"$f":"_xlfn.XLOOKUP($B218,FeedTables!$C$42:$T$42,FeedTables!$C$46:$T$46,,-1)*_xlfn.XLOOKUP(N217,DensityMultiplier[Biomass kg/m3],DensityMultiplier[Multiplier],,-1)","v":{"$error":"#N/A"}},3853.2039089810314,{"$f":"IF(A218<='S2-Double'!$C$7,('Growth-Model-2'!G217*EXP($AA$7)),0)","v":0},{"$f":"IF(A218<='S2-Double'!$C$7,$AD$6*EXP($AD$7*('S2-Double'!C$7-'Growth-Model-2'!A218)),0)","v":0},196.79609101896818,4.8591627412090908E-2,0,18.467327479743304,0,{"$f":"M218/'S2-Double'!$C$17","v":0},{"$error":"#N/A"},{"$error":"#N/A"},{"$f":"_xlfn.XLOOKUP(B218,FeedTables!$C$17:$T$17,FeedTables!$C$31:$T$31,,-1)","v":{"$error":"#N/A"}},{"$f":"_xlfn.XLOOKUP(Q218,FeedPrice[Feed],FeedPrice[Price per kg],\"Unknown\",0)*O218","v":{"$error":"#N/A"}},{"$error":"#N/A"},{"$f":"_xlfn.XLOOKUP(O218,LabourFromFeed[Feed Quantity (kg)],LabourFromFeed[No. Labour],\"Out of range\",-1)","v":{"$error":"#N/A"}},{"$f":"T218*OperatingCosts!$C$9","v":{"$error":"#N/A"}},{"$error":"#N/A"}]
[217,{"$f":"IF(A219<='S2-Double'!$C$7, B218*EXP((LN((E218/100)+1))*1),)","v":0},{"$f":"_xlfn.XLOOKUP($B219,FeedTables!$C$42:$T$42,FeedTables!$C$44:$T$44,,-1)","v":{"$error":"#N/A"}},{"$f":"_xlfn.XLOOKUP($B219,FeedTables!$C$42:$T$42,FeedTables!$C$45:$T$45,,-1)","v":{"$error":"#N/A"}},{"$f":"_xlfn.XLOOKUP($B219,FeedTables!$C$42:$T$42,FeedTables!$C$46:$T$46,,-1)*_xlfn.XLOOKUP(N218,DensityMultiplier[Biomass kg/m3],DensityMultiplier[Multiplier],,-1)","v":{"$error":"#N/A"}},3853.2039089810314,{"$f":"IF(A219<='S2-Double'!$C$7,('Growth-Model-2'!G218*EXP($AA$7)),0)","v":0},{"$f":"IF(A219<='S2-Double'!$C$7,$AD$6*EXP($AD$7*('S2-Double'!C$7-'Growth-Model-2'!A219)),0)","v":0},196.79609101896818,4.8591627412090908E-2,0,18.467327479743304,0,{"$f":"M219/'S2-Double'!$C$17","v":0},{"$error":"#N/A"},{"$error":"#N/A"},{"$f":"_xlfn.XLOOKUP(B219,FeedTables!$C$17:$T$17,FeedTables!$C$31:$T$31,,-1)","v":{"$error":"#N/A"}},{"$f":"_xlfn.XLOOKUP(Q219,FeedPrice[Feed],FeedPrice[Price per kg],\"Unknown\",0)*O219","v":{"$error":"#N/A"}},{"$error":"#N/A"},{"$f":"_xlfn.XLOOKUP(O219,LabourFromFeed[Feed Quantity (kg)],LabourFromFeed[No. Labour],\"Out of range\",-1)","v":{"$error":"#N/A"}},{"$f":"T219*OperatingCosts!$C$9","v":{"$error":"#N/A"}},{"$error":"#N/A"}]
[218,{"$f":"IF(A220<='S2-Double'!$C$7, B219*EXP((LN((E219/100)+1))*1),)","v":0},{"$f":"_xlfn.XLOOKUP($B220,FeedTables!$C$42:$T$42,FeedTables!$C$44:$T$44,,-1)","v":{"$error":"#N/A"}},{"$f":"_xlfn.XLOOKUP($B220,FeedTables!$C$42:$T$42,FeedTables!$C$45:$T$45,,-1)","v":{"$error":"#N/A"}},{"$f":"_xlfn.XLOOKUP($B220,FeedTables!$C$42:$T$42,FeedTables!$C$46:$T$46,,-1)*_xlfn.XLOOKUP(N219,DensityMultiplier[Biomass kg/m3],DensityMultiplier[Multiplier],,-1)","v":{"$error":"#N/A"}},3853.2039089810314,{"$f":"IF(A220<='S2-Double'!$C$7,('Growth-Model-2'!G219*EXP($AA$7)),0)","v":0},{"$f":"IF(A220<='S2-Double'!$C$7,$AD$6*EXP($AD$7*('S2-Double'!C$7-'Growth-Model-2'!A220)),0)","v":0},196.79609101896818,4.8591627412090908E-2,0,18.467327479743304,0,{"$f":"M220/'S2-Double'!$C$17","v":0},{"$error":"#N/A"},{"$error":"#N/A"},{"$f":"_xlfn.XLOOKUP(B220,FeedTables!$C$17:$T$17,FeedTables!$C$31:$T$31,,-1)","v":{"$error":"#N/A"}},{"$f":"_xlfn.XLOOKUP(Q220,FeedPrice[Feed],FeedPrice[Price per kg],\"Unknown\",0)*O220","v":{"$error":"#N/A"}},{"$error":"#N/A"},{"$f":"_xlfn.XLOOKUP(O220,LabourFromFeed[Feed Quantity (kg)],LabourFromFeed[No. Labour],\"Out of range\",-1)","v":{"$error":"#N/A"}},{"$f":"T220*OperatingCosts!$C$9","v":{"$error":"#N/A"}},{"$error":"#N/A"}]
[219,{"$f":"IF(A221<='S2-Double'!$C$7, B220*EXP((LN((E220/100)+1))*1),)","v":0},{"$f":"_xlfn.XLOOKUP($B221,FeedTables!$C$42:$T$42,FeedTables!$C$44:$T$44,,-1)","v":{"$error":"#N/A"}},{"$f":"_xlfn.XLOOKUP($B221,FeedTables!$C$42:$T$42,FeedTables!$C$45:$T$45,,-1)","v":{"$error":"#N/A"}},{"$f":"_xlfn.XLOOKUP($B221,FeedTables!$C$42:$T$42,FeedTables!$C$46:$T$46,,-1)*_xlfn.XLOOKUP(N220,DensityMultiplier[Biomass kg/m3],DensityMultiplier[Multiplier],,-1)","v":{"$error":"#N/A"}},3853.2039089810314,{"$f":"IF(A221<='S2-Double'!$C$7,('Growth-Model-2'!G220*EXP($AA$7)),0)","v":0},{"$f":"IF(A221<='S2-Double'!$C$7,$AD$6*EXP($AD$7*('S2-Double'!C$7-'Growth-Model-2'!A221)),0)","v":0},196.79609101896818,4.8591627412090908E-2,0,18.467327479743304,0,{"$f":"M221/'S2-Double'!$C$17","v":0},{"$error":"#N/A"},{"$error":"#N/A"},{"$f":"_xlfn.XLOOKUP(B221,FeedTables!$C$17:$T$17,FeedTables!$C$31:$T$31,,-1)","v":{"$error":"#N/A"}},{"$f":"_xlfn.XLOOKUP(Q221,FeedPrice[Feed],FeedPrice[Price per kg],\"Unknown\",0)*O221","v":{"$error":"#N/A"}},{"$error":"#N/A"},{"$f":"_xlfn.XLOOKUP(O221,LabourFromFeed[Feed Quantity (kg)],LabourFromFeed[No. Labour],\"Out of range\",-1)","v":{"$error":"#N/A"}},{"$f":"T221*OperatingCosts!$C$9","v":{"$error":"#N/A"}},{"$error":"#N/A"}]
[220,{"$f":"IF(A222<='S2-Double'!$C$7, B221*EXP((LN((E221/100)+1))*1),)","v":0},{"$f":"_xlfn.XLOOKUP($B222,FeedTables!$C$42:$T$42,FeedTables!$C$44:$T$44,,-1)","v":{"$error":"#N/A"}},{"$f":"_xlfn.XLOOKUP($B222,FeedTables!$C$42:$T$42,FeedTables!$C$45:$T$45,,-1)","v":{"$error":"#N/A"}},{"$f":"_xlfn.XLOOKUP($B222,FeedTables!$C$42:$T$42,FeedTables!$C$46:$T$46,,-1)*_xlfn.XLOOKUP(N221,DensityMultiplier[Biomass kg/m3],DensityMultiplier[Multiplier],,-1)","v":{"$error":"#N/A"}},3853.2039089810314,{"$f":"IF(A222<='S2-Double'!$C$7,('Growth-Model-2'!G221*EXP($AA$7)),0)","v":0},{"$f":"IF(A222<='S2-Double'!$C$7,$AD$6*EXP($AD$7*('S2-Double'!C$7-'Growth-Model-2'!A222)),0)","v":0},196.79609101896818,4.8591627412090908E-2,0,18.467327479743304,0,{"$f":"M222/'S2-Double'!$C$17","v":0},{"$error":"#N/A"},{"$error":"#N/A"},{"$f":"_xlfn.XLOOKUP(B222,FeedTables!$C$17:$T$17,FeedTables!$C$31:$T$31,,-1)","v":{"$error":"#N/A"}},{"$f":"_xlfn.XLOOKUP(Q222,FeedPrice[Feed],FeedPrice[Price per kg],\"Unknown\",0)*O222","v":{"$error":"#N/A"}},{"$error":"#N/A"},{"$f":"_xlfn.XLOOKUP(O222,LabourFromFeed[Feed Quantity (kg)],LabourFromFeed[No. Labour],\"Out of range\",-1)","v":{"$error":"#N/A"}},{"$f":"T222*OperatingCosts!$C$9","v":{"$error":"#N/A"}},{"$error":"#N/A"}]
[221,{"$f":"IF(A223<='S2-Double'!$C$7, B222*EXP((LN((E222/100)+1))*1),)","v":0},{"$f":"_xlfn.XLOOKUP($B223,FeedTables!$C$42:$T$42,FeedTables!$C$44:$T$44,,-1)","v":{"$error":"#N/A"}},{"$f":"_xlfn.XLOOKUP($B223,FeedTables!$C$42:$T$42,FeedTables!$C$45:$T$45,,-1)","v":{"$error":"#N/A"}},{"$f":"_xlfn.XLOOKUP($B223,FeedTables!$C$42:$T$42,FeedTables!$C$46:$T$46,,-1)*_xlfn.XLOOKUP(N222,DensityMultiplier[Biomass kg/m3],DensityMultiplier[Multiplier],,-1)","v":{"$error":"#N/A"}},3853.2039089810314,{"$f":"IF(A223<='S2-Double'!$C$7,('Growth-Model-2'!G222*EXP($AA$7)),0)","v":0},{"$f":"IF(A223<='S2-Double'!$C$7,$AD$6*EXP($AD$7*('S2-Double'!C$7-'Growth-Model-2'!A223)),0)","v":0},196.79609101896818,4.8591627412090908E-2,0,18.467327479743304,0,{"$f":"M223/'S2-Double'!$C$17","v":0},{"$error":"#N/A"},{"$error":"#N/A"},{"$f":"_xlfn.XLOOKUP(B223,FeedTables!$C$17:$T$17,FeedTables!$C$31:$T$31,,-1)","v":{"$error":"#N/A"}},{"$f":"_xlfn.XLOOKUP(Q223,FeedPrice[Feed],FeedPrice[Price per kg],\"Unknown\",0)*O223","v":{"$error":"#N/A"}},{"$error":"#N/A"},{"$f":"_xlfn.XLOOKUP(O223,LabourFromFeed[Feed Quantity (kg)],LabourFromFeed[No. Labour],\"Out of range\",-1)","v":{"$error":"#N/A"}},{"$f":"T223*OperatingCosts!$C$9","v":{"$error":"#N/A"}},{"$error":"#N/A"}]
[222,{"$f":"IF(A224<='S2-Double'!$C$7, B223*EXP((LN((E223/100)+1))*1),)","v":0},{"$f":"_xlfn.XLOOKUP($B224,FeedTables!$C$42:$T$42,FeedTables!$C$44:$T$44,,-1)","v":{"$error":"#N/A"}},{"$f":"_xlfn.XLOOKUP($B224,FeedTables!$C$42:$T$42,FeedTables!$C$45:$T$45,,-1)","v":{"$error":"#N/A"}},{"$f":"_xlfn.XLOOKUP($B224,FeedTables!$C$42:$T$42,FeedTables!$C$46:$T$46,,-1)*_xlfn.XLOOKUP(N223,DensityMultiplier[Biomass kg/m3],DensityMultiplier[Multiplier],,-1)","v":{"$error":"#N/A"}},3853.2039089810314,{"$f":"IF(A224<='S2-Double'!$C$7,('Growth-Model-2'!G223*EXP($AA$7)),0)","v":0},{"$f":"IF(A224<='S2-Double'!$C$7,$AD$6*EXP($AD$7*('S2-Double'!C$7-'Growth-Model-2'!A224)),0)","v":0},196.79609101896818,4.8591627412090908E-2,0,18.467327479743304,0,{"$f":"M224/'S2-Double'!$C$17","v":0},{"$error":"#N/A"},{"$error":"#N/A"},{"$f":"_xlfn.XLOOKUP(B224,FeedTables!$C$17:$T$17,FeedTables!$C$31:$T$31,,-1)","v":{"$error":"#N/A"}},{"$f":"_xlfn.XLOOKUP(Q224,FeedPrice[Feed],FeedPrice[Price per kg],\"Unknown\",0)*O224","v":{"$error":"#N/A"}},{"$error":"#N/A"},{"$f":"_xlfn.XLOOKUP(O224,LabourFromFeed[Feed Quantity (kg)],LabourFromFeed[No. Labour],\"Out of range\",-1)","v":{"$error":"#N/A"}},{"$f":"T224*OperatingCosts!$C$9","v":{"$error":"#N/A"}},{"$error":"#N/A"}]
[223,{"$f":"IF(A225<='S2-Double'!$C$7, B224*EXP((LN((E224/100)+1))*1),)","v":0},{"$f":"_xlfn.XLOOKUP($B225,FeedTables!$C$42:$T$42,FeedTables!$C$44:$T$44,,-1)","v":{"$error":"#N/A"}},{"$f":"_xlfn.XLOOKUP($B225,FeedTables!$C$42:$T$42,FeedTables!$C$45:$T$45,,-1)","v":{"$error":"#N/A"}},{"$f":"_xlfn.XLOOKUP($B225,FeedTables!$C$42:$T$42,FeedTables!$C$46:$T$46,,-1)*_xlfn.XLOOKUP(N224,DensityMultiplier[Biomass kg/m3],DensityMultiplier[Multiplier],,-1)","v":{"$error":"#N/A"}},3853.2039089810314,{"$f":"IF(A225<='S2-Double'!$C$7,('Growth-Model-2'!G224*EXP($AA$7)),0)","v":0},{"$f":"IF(A225<='S2-Double'!$C$7,$AD$6*EXP($AD$7*('S2-Double'!C$7-'Growth-Model-2'!A225)),0)","v":0},196.79609101896818,4.8591627412090908E-2,0,18.467327479743304,0,{"$f":"M225/'S2-Double'!$C$17","v":0},{"$error":"#N/A"},{"$error":"#N/A"},{"$f":"_xlfn.XLOOKUP(B225,FeedTables!$C$17:$T$17,FeedTables!$C$31:$T$31,,-1)","v":{"$error":"#N/A"}},{"$f":"_xlfn.XLOOKUP(Q225,FeedPrice[Feed],FeedPrice[Price per kg],\"Unknown\",0)*O225","v":{"$error":"#N/A"}},{"$error":"#N/A"},{"$f":"_xlfn.XLOOKUP(O225,LabourFromFeed[Feed Quantity (kg)],LabourFromFeed[No. Labour],\"Out of range\",-1)","v":{"$error":"#N/A"}},{"$f":"T225*OperatingCosts!$C$9","v":{"$error":"#N/A"}},{"$error":"#N/A"}]
[224,{"$f":"IF(A226<='S2-Double'!$C$7, B225*EXP((LN((E225/100)+1))*1),)","v":0},{"$f":"_xlfn.XLOOKUP($B226,FeedTables!$C$42:$T$42,FeedTables!$C$44:$T$44,,-1)","v":{"$error":"#N/A"}},{"$f":"_xlfn.XLOOKUP($B226,FeedTables!$C$42:$T$42,FeedTables!$C$45:$T$45,,-1)","v":{"$error":"#N/A"}},{"$f":"_xlfn.XLOOKUP($B226,FeedTables!$C$42:$T$42,FeedTables!$C$46:$T$46,,-1)*_xlfn.XLOOKUP(N225,DensityMultiplier[Biomass kg/m3],DensityMultiplier[Multiplier],,-1)","v":{"$error":"#N/A"}},3853.2039089810314,{"$f":"IF(A226<='S2-Double'!$C$7,('Growth-Model-2'!G225*EXP($AA$7)),0)","v":0},{"$f":"IF(A226<='S2-Double'!$C$7,$AD$6*EXP($AD$7*('S2-Double'!C$7-'Growth-Model-2'!A226)),0)","v":0},196.79609101896818,4.8591627412090908E-2,0,18.467327479743304,0,{"$f":"M226/'S2-Double'!$C$17","v":0},{"$error":"#N/A"},{"$error":"#N/A"},{"$f":"_xlfn.XLOOKUP(B226,FeedTables!$C$17:$T$17,FeedTables!$C$31:$T$31,,-1)","v":{"$error":"#N/A"}},{"$f":"_xlfn.XLOOKUP(Q226,FeedPrice[Feed],FeedPrice[Price per kg],\"Unknown\",0)*O226","v":{"$error":"#N/A"}},{"$error":"#N/A"},{"$f":"_xlfn.XLOOKUP(O226,LabourFromFeed[Feed Quantity (kg)],LabourFromFeed[No. Labour],\"Out of range\",-1)","v":{"$error":"#N/A"}},{"$f":"T226*OperatingCosts!$C$9","v":{"$error":"#N/A"}},{"$error":"#N/A"}]
[225,{"$f":"IF(A227<='S2-Double'!$C$7, B226*EXP((LN((E226/100)+1))*1),)","v":0},{"$f":"_xlfn.XLOOKUP($B227,FeedTables!$C$42:$T$42,FeedTables!$C$44:$T$44,,-1)","v":{"$error":"#N/A"}},{"$f":"_xlfn.XLOOKUP($B227,FeedTables!$C$42:$T$42,FeedTables!$C$45:$T$45,,-1)","v":{"$error":"#N/A"}},{"$f":"_xlfn.XLOOKUP($B227,FeedTables!$C$42:$T$42,FeedTables!$C$46:$T$46,,-1)*_xlfn.XLOOKUP(N226,DensityMultiplier[Biomass kg/m3],DensityMultiplier[Multiplier],,-1)","v":{"$error":"#N/A"}},3853.2039089810314,{"$f":"IF(A227<='S2-Double'!$C$7,('Growth-Model-2'!G226*EXP($AA$7)),0)","v":0},{"$f":"IF(A227<='S2-Double'!$C$7,$AD$6*EXP($AD$7*('S2-Double'!C$7-'Growth-Model-2'!A227)),0)","v":0},196.79609101896818,4.8591627412090908E-2,0,18.467327479743304,0,{"$f":"M227/'S2-Double'!$C$17","v":0},{"$error":"#N/A"},{"$error":"#N/A"},{"$f":"_xlfn.XLOOKUP(B227,FeedTables!$C$17:$T$17,FeedTables!$C$31:$T$31,,-1)","v":{"$error":"#N/A"}},{"$f":"_xlfn.XLOOKUP(Q227,FeedPrice[Feed],FeedPrice[Price per kg],\"Unknown\",0)*O227","v":{"$error":"#N/A"}},{"$error":"#N/A"},{"$f":"_xlfn.XLOOKUP(O227,LabourFromFeed[Feed Quantity (kg)],LabourFromFeed[No. Labour],\"Out of range\",-1)","v":{"$error":"#N/A"}},{"$f":"T227*OperatingCosts!$C$9","v":{"$error":"#N/A"}},{"$error":"#N/A"}]
[226,{"$f":"IF(A228<='S2-Double'!$C$7, B227*EXP((LN((E227/100)+1))*1),)","v":0},{"$f":"_xlfn.XLOOKUP($B228,FeedTables!$C$42:$T$42,FeedTables!$C$44:$T$44,,-1)","v":{"$error":"#N/A"}},{"$f":"_xlfn.XLOOKUP($B228,FeedTables!$C$42:$T$42,FeedTables!$C$45:$T$45,,-1)","v":{"$error":"#N/A"}},{"$f":"_xlfn.XLOOKUP($B228,FeedTables!$C$42:$T$42,FeedTables!$C$46:$T$46,,-1)*_xlfn.XLOOKUP(N227,DensityMultiplier[Biomass kg/m3],DensityMultiplier[Multiplier],,-1)","v":{"$error":"#N/A"}},3853.2039089810314,{"$f":"IF(A228<='S2-Double'!$C$7,('Growth-Model-2'!G227*EXP($AA$7)),0)","v":0},{"$f":"IF(A228<='S2-Double'!$C$7,$AD$6*EXP($AD$7*('S2-Double'!C$7-'Growth-Model-2'!A228)),0)","v":0},196.79609101896818,4.8591627412090908E-2,0,18.467327479743304,0,{"$f":"M228/'S2-Double'!$C$17","v":0},{"$error":"#N/A"},{"$error":"#N/A"},{"$f":"_xlfn.XLOOKUP(B228,FeedTables!$C$17:$T$17,FeedTables!$C$31:$T$31,,-1)","v":{"$error":"#N/A"}},{"$f":"_xlfn.XLOOKUP(Q228,FeedPrice[Feed],FeedPrice[Price per kg],\"Unknown\",0)*O228","v":{"$error":"#N/A"}},{"$error":"#N/A"},{"$f":"_xlfn.XLOOKUP(O228,LabourFromFeed[Feed Quantity (kg)],LabourFromFeed[No. Labour],\"Out of range\",-1)","v":{"$error":"#N/A"}},{"$f":"T228*OperatingCosts!$C$9","v":{"$error":"#N/A"}},{"$error":"#N/A"}]
[227,{"$f":"IF(A229<='S2-Double'!$C$7, B228*EXP((LN((E228/100)+1))*1),)","v":0},{"$f":"_xlfn.XLOOKUP($B229,FeedTables!$C$42:$T$42,FeedTables!$C$44:$T$44,,-1)","v":{"$error":"#N/A"}},{"$f":"_xlfn.XLOOKUP($B229,FeedTables!$C$42:$T$42,FeedTables!$C$45:$T$45,,-1)","v":{"$error":"#N/A"}},{"$f":"_xlfn.XLOOKUP($B229,FeedTables!$C$42:$T$42,FeedTables!$C$46:$T$46,,-1)*_xlfn.XLOOKUP(N228,DensityMultiplier[Biomass kg/m3],DensityMultiplier[Multiplier],,-1)","v":{"$error":"#N/A"}},3853.2039089810314,{"$f":"IF(A229<='S2-Double'!$C$7,('Growth-Model-2'!G228*EXP($AA$7)),0)","v":0},{"$f":"IF(A229<='S2-Double'!$C$7,$AD$6*EXP($AD$7*('S2-Double'!C$7-'Growth-Model-2'!A229)),0)","v":0},196.79609101896818,4.8591627412090908E-2,0,18.467327479743304,0,{"$f":"M229/'S2-Double'!$C$17","v":0},{"$error":"#N/A"},{"$error":"#N/A"},{"$f":"_xlfn.XLOOKUP(B229,FeedTables!$C$17:$T$17,FeedTables!$C$31:$T$31,,-1)","v":{"$error":"#N/A"}},{"$f":"_xlfn.XLOOKUP(Q229,FeedPrice[Feed],FeedPrice[Price per kg],\"Unknown\",0)*O229","v":{"$error":"#N/A"}},{"$error":"#N/A"},{"$f":"_xlfn.XLOOKUP(O229,LabourFromFeed[Feed Quantity (kg)],LabourFromFeed[No. Labour],\"Out of range\",-1)","v":{"$error":"#N/A"}},{"$f":"T229*OperatingCosts!$C$9","v":{"$error":"#N/A"}},{"$error":"#N/A"}]
[228,{"$f":"IF(A230<='S2-Double'!$C$7, B229*EXP((LN((E229/100)+1))*1),)","v":0},{"$f":"_xlfn.XLOOKUP($B230,FeedTables!$C$42:$T$42,FeedTables!$C$44:$T$44,,-1)","v":{"$error":"#N/A"}},{"$f":"_xlfn.XLOOKUP($B230,FeedTables!$C$42:$T$42,FeedTables!$C$45:$T$45,,-1)","v":{"$error":"#N/A"}},{"$f":"_xlfn.XLOOKUP($B230,FeedTables!$C$42:$T$42,FeedTables!$C$46:$T$46,,-1)*_xlfn.XLOOKUP(N229,DensityMultiplier[Biomass kg/m3],DensityMultiplier[Multiplier],,-1)","v":{"$error":"#N/A"}},3853.2039089810314,{"$f":"IF(A230<='S2-Double'!$C$7,('Growth-Model-2'!G229*EXP($AA$7)),0)","v":0},{"$f":"IF(A230<='S2-Double'!$C$7,$AD$6*EXP($AD$7*('S2-Double'!C$7-'Growth-Model-2'!A230)),0)","v":0},196.79609101896818,4.8591627412090908E-2,0,18.467327479743304,0,{"$f":"M230/'S2-Double'!$C$17","v":0},{"$error":"#N/A"},{"$error":"#N/A"},{"$f":"_xlfn.XLOOKUP(B230,FeedTables!$C$17:$T$17,FeedTables!$C$31:$T$31,,-1)","v":{"$error":"#N/A"}},{"$f":"_xlfn.XLOOKUP(Q230,FeedPrice[Feed],FeedPrice[Price per kg],\"Unknown\",0)*O230","v":{"$error":"#N/A"}},{"$error":"#N/A"},{"$f":"_xlfn.XLOOKUP(O230,LabourFromFeed[Feed Quantity (kg)],LabourFromFeed[No. Labour],\"Out of range\",-1)","v":{"$error":"#N/A"}},{"$f":"T230*OperatingCosts!$C$9","v":{"$error":"#N/A"}},{"$error":"#N/A"}]
[229,{"$f":"IF(A231<='S2-Double'!$C$7, B230*EXP((LN((E230/100)+1))*1),)","v":0},{"$f":"_xlfn.XLOOKUP($B231,FeedTables!$C$42:$T$42,FeedTables!$C$44:$T$44,,-1)","v":{"$error":"#N/A"}},{"$f":"_xlfn.XLOOKUP($B231,FeedTables!$C$42:$T$42,FeedTables!$C$45:$T$45,,-1)","v":{"$error":"#N/A"}},{"$f":"_xlfn.XLOOKUP($B231,FeedTables!$C$42:$T$42,FeedTables!$C$46:$T$46,,-1)*_xlfn.XLOOKUP(N230,DensityMultiplier[Biomass kg/m3],DensityMultiplier[Multiplier],,-1)","v":{"$error":"#N/A"}},3853.2039089810314,{"$f":"IF(A231<='S2-Double'!$C$7,('Growth-Model-2'!G230*EXP($AA$7)),0)","v":0},{"$f":"IF(A231<='S2-Double'!$C$7,$AD$6*EXP($AD$7*('S2-Double'!C$7-'Growth-Model-2'!A231)),0)","v":0},196.79609101896818,4.8591627412090908E-2,0,18.467327479743304,0,{"$f":"M231/'S2-Double'!$C$17","v":0},{"$error":"#N/A"},{"$error":"#N/A"},{"$f":"_xlfn.XLOOKUP(B231,FeedTables!$C$17:$T$17,FeedTables!$C$31:$T$31,,-1)","v":{"$error":"#N/A"}},{"$f":"_xlfn.XLOOKUP(Q231,FeedPrice[Feed],FeedPrice[Price per kg],\"Unknown\",0)*O231","v":{"$error":"#N/A"}},{"$error":"#N/A"},{"$f":"_xlfn.XLOOKUP(O231,LabourFromFeed[Feed Quantity (kg)],LabourFromFeed[No. Labour],\"Out of range\",-1)","v":{"$error":"#N/A"}},{"$f":"T231*OperatingCosts!$C$9","v":{"$error":"#N/A"}},{"$error":"#N/A"}]
[230,{"$f":"IF(A232<='S2-Double'!$C$7, B231*EXP((LN((E231/100)+1))*1),)","v":0},{"$f":"_xlfn.XLOOKUP($B232,FeedTables!$C$42:$T$42,FeedTables!$C$44:$T$44,,-1)","v":{"$error":"#N/A"}},{"$f":"_xlfn.XLOOKUP($B232,FeedTables!$C$42:$T$42,FeedTables!$C$45:$T$45,,-1)","v":{"$error":"#N/A"}},{"$f":"_xlfn.XLOOKUP($B232,FeedTables!$C$42:$T$42,FeedTables!$C$46:$T$46,,-1)*_xlfn.XLOOKUP(N231,DensityMultiplier[Biomass kg/m3],DensityMultiplier[Multiplier],,-1)","v":{"$error":"#N/A"}},3853.2039089810314,{"$f":"IF(A232<='S2-Double'!$C$7,('Growth-Model-2'!G231*EXP($AA$7)),0)","v":0},{"$f":"IF(A232<='S2-Double'!$C$7,$AD$6*EXP($AD$7*('S2-Double'!C$7-'Growth-Model-2'!A232)),0)","v":0},196.79609101896818,4.8591627412090908E-2,0,18.467327479743304,0,{"$f":"M232/'S2-Double'!$C$17","v":0},{"$error":"#N/A"},{"$error":"#N/A"},{"$f":"_xlfn.XLOOKUP(B232,FeedTables!$C$17:$T$17,FeedTables!$C$31:$T$31,,-1)","v":{"$error":"#N/A"}},{"$f":"_xlfn.XLOOKUP(Q232,FeedPrice[Feed],FeedPrice[Price per kg],\"Unknown\",0)*O232","v":{"$error":"#N/A"}},{"$error":"#N/A"},{"$f":"_xlfn.XLOOKUP(O232,LabourFromFeed[Feed Quantity (kg)],LabourFromFeed[No. Labour],\"Out of range\",-1)","v":{"$error":"#N/A"}},{"$f":"T232*OperatingCosts!$C$9","v":{"$error":"#N/A"}},{"$error":"#N/A"}]
[231,{"$f":"IF(A233<='S2-Double'!$C$7, B232*EXP((LN((E232/100)+1))*1),)","v":0},{"$f":"_xlfn.XLOOKUP($B233,FeedTables!$C$42:$T$42,FeedTables!$C$44:$T$44,,-1)","v":{"$error":"#N/A"}},{"$f":"_xlfn.XLOOKUP($B233,FeedTables!$C$42:$T$42,FeedTables!$C$45:$T$45,,-1)","v":{"$error":"#N/A"}},{"$f":"_xlfn.XLOOKUP($B233,FeedTables!$C$42:$T$42,FeedTables!$C$46:$T$46,,-1)*_xlfn.XLOOKUP(N232,DensityMultiplier[Biomass kg/m3],DensityMultiplier[Multiplier],,-1)","v":{"$error":"#N/A"}},3853.2039089810314,{"$f":"IF(A233<='S2-Double'!$C$7,('Growth-Model-2'!G232*EXP($AA$7)),0)","v":0},{"$f":"IF(A233<='S2-Double'!$C$7,$AD$6*EXP($AD$7*('S2-Double'!C$7-'Growth-Model-2'!A233)),0)","v":0},196.79609101896818,4.8591627412090908E-2,0,18.467327479743304,0,{"$f":"M233/'S2-Double'!$C$17","v":0},{"$error":"#N/A"},{"$error":"#N/A"},{"$f":"_xlfn.XLOOKUP(B233,FeedTables!$C$17:$T$17,FeedTables!$C$31:$T$31,,-1)","v":{"$error":"#N/A"}},{"$f":"_xlfn.XLOOKUP(Q233,FeedPrice[Feed],FeedPrice[Price per kg],\"Unknown\",0)*O233","v":{"$error":"#N/A"}},{"$error":"#N/A"},{"$f":"_xlfn.XLOOKUP(O233,LabourFromFeed[Feed Quantity (kg)],LabourFromFeed[No. Labour],\"Out of range\",-1)","v":{"$error":"#N/A"}},{"$f":"T233*OperatingCosts!$C$9","v":{"$error":"#N/A"}},{"$error":"#N/A"}]
[232,{"$f":"IF(A234<='S2-Double'!$C$7, B233*EXP((LN((E233/100)+1))*1),)","v":0},{"$f":"_xlfn.XLOOKUP($B234,FeedTables!$C$42:$T$42,FeedTables!$C$44:$T$44,,-1)","v":{"$error":"#N/A"}},{"$f":"_xlfn.XLOOKUP($B234,FeedTables!$C$42:$T$42,FeedTables!$C$45:$T$45,,-1)","v":{"$error":"#N/A"}},{"$f":"_xlfn.XLOOKUP($B234,FeedTables!$C$42:$T$42,FeedTables!$C$46:$T$46,,-1)*_xlfn.XLOOKUP(N233,DensityMultiplier[Biomass kg/m3],DensityMultiplier[Multiplier],,-1)","v":{"$error":"#N/A"}},3853.2039089810314,{"$f":"IF(A234<='S2-Double'!$C$7,('Growth-Model-2'!G233*EXP($AA$7)),0)","v":0},{"$f":"IF(A234<='S2-Double'!$C$7,$AD$6*EXP($AD$7*('S2-Double'!C$7-'Growth-Model-2'!A234)),0)","v":0},196.79609101896818,4.8591627412090908E-2,0,18.467327479743304,0,{"$f":"M234/'S2-Double'!$C$17","v":0},{"$error":"#N/A"},{"$error":"#N/A"},{"$f":"_xlfn.XLOOKUP(B234,FeedTables!$C$17:$T$17,FeedTables!$C$31:$T$31,,-1)","v":{"$error":"#N/A"}},{"$f":"_xlfn.XLOOKUP(Q234,FeedPrice[Feed],FeedPrice[Price per kg],\"Unknown\",0)*O234","v":{"$error":"#N/A"}},{"$error":"#N/A"},{"$f":"_xlfn.XLOOKUP(O234,LabourFromFeed[Feed Quantity (kg)],LabourFromFeed[No. Labour],\"Out of range\",-1)","v":{"$error":"#N/A"}},{"$f":"T234*OperatingCosts!$C$9","v":{"$error":"#N/A"}},{"$error":"#N/A"}]
[233,{"$f":"IF(A235<='S2-Double'!$C$7, B234*EXP((LN((E234/100)+1))*1),)","v":0},{"$f":"_xlfn.XLOOKUP($B235,FeedTables!$C$42:$T$42,FeedTables!$C$44:$T$44,,-1)","v":{"$error":"#N/A"}},{"$f":"_xlfn.XLOOKUP($B235,FeedTables!$C$42:$T$42,FeedTables!$C$45:$T$45,,-1)","v":{"$error":"#N/A"}},{"$f":"_xlfn.XLOOKUP($B235,FeedTables!$C$42:$T$42,FeedTables!$C$46:$T$46,,-1)*_xlfn.XLOOKUP(N234,DensityMultiplier[Biomass kg/m3],DensityMultiplier[Multiplier],,-1)","v":{"$error":"#N/A"}},3853.2039089810314,{"$f":"IF(A235<='S2-Double'!$C$7,('Growth-Model-2'!G234*EXP($AA$7)),0)","v":0},{"$f":"IF(A235<='S2-Double'!$C$7,$AD$6*EXP($AD$7*('S2-Double'!C$7-'Growth-Model-2'!A235)),0)","v":0},196.79609101896818,4.8591627412090908E-2,0,18.467327479743304,0,{"$f":"M235/'S2-Double'!$C$17","v":0},{"$error":"#N/A"},{"$error":"#N/A"},{"$f":"_xlfn.XLOOKUP(B235,FeedTables!$C$17:$T$17,FeedTables!$C$31:$T$31,,-1)","v":{"$error":"#N/A"}},{"$f":"_xlfn.XLOOKUP(Q235,FeedPrice[Feed],FeedPrice[Price per kg],\"Unknown\",0)*O235","v":{"$error":"#N/A"}},{"$error":"#N/A"},{"$f":"_xlfn.XLOOKUP(O235,LabourFromFeed[Feed Quantity (kg)],LabourFromFeed[No. Labour],\"Out of range\",-1)","v":{"$error":"#N/A"}},{"$f":"T235*OperatingCosts!$C$9","v":{"$error":"#N/A"}},{"$error":"#N/A"}]
[234,{"$f":"IF(A236<='S2-Double'!$C$7, B235*EXP((LN((E235/100)+1))*1),)","v":0},{"$f":"_xlfn.XLOOKUP($B236,FeedTables!$C$42:$T$42,FeedTables!$C$44:$T$44,,-1)","v":{"$error":"#N/A"}},{"$f":"_xlfn.XLOOKUP($B236,FeedTables!$C$42:$T$42,FeedTables!$C$45:$T$45,,-1)","v":{"$error":"#N/A"}},{"$f":"_xlfn.XLOOKUP($B236,FeedTables!$C$42:$T$42,FeedTables!$C$46:$T$46,,-1)*_xlfn.XLOOKUP(N235,DensityMultiplier[Biomass kg/m3],DensityMultiplier[Multiplier],,-1)","v":{"$error":"#N/A"}},3853.2039089810314,{"$f":"IF(A236<='S2-Double'!$C$7,('Growth-Model-2'!G235*EXP($AA$7)),0)","v":0},{"$f":"IF(A236<='S2-Double'!$C$7,$AD$6*EXP($AD$7*('S2-Double'!C$7-'Growth-Model-2'!A236)),0)","v":0},196.79609101896818,4.8591627412090908E-2,0,18.467327479743304,0,{"$f":"M236/'S2-Double'!$C$17","v":0},{"$error":"#N/A"},{"$error":"#N/A"},{"$f":"_xlfn.XLOOKUP(B236,FeedTables!$C$17:$T$17,FeedTables!$C$31:$T$31,,-1)","v":{"$error":"#N/A"}},{"$f":"_xlfn.XLOOKUP(Q236,FeedPrice[Feed],FeedPrice[Price per kg],\"Unknown\",0)*O236","v":{"$error":"#N/A"}},{"$error":"#N/A"},{"$f":"_xlfn.XLOOKUP(O236,LabourFromFeed[Feed Quantity (kg)],LabourFromFeed[No. Labour],\"Out of range\",-1)","v":{"$error":"#N/A"}},{"$f":"T236*OperatingCosts!$C$9","v":{"$error":"#N/A"}},{"$error":"#N/A"}]
[235,{"$f":"IF(A237<='S2-Double'!$C$7, B236*EXP((LN((E236/100)+1))*1),)","v":0},{"$f":"_xlfn.XLOOKUP($B237,FeedTables!$C$42:$T$42,FeedTables!$C$44:$T$44,,-1)","v":{"$error":"#N/A"}},{"$f":"_xlfn.XLOOKUP($B237,FeedTables!$C$42:$T$42,FeedTables!$C$45:$T$45,,-1)","v":{"$error":"#N/A"}},{"$f":"_xlfn.XLOOKUP($B237,FeedTables!$C$42:$T$42,FeedTables!$C$46:$T$46,,-1)*_xlfn.XLOOKUP(N236,DensityMultiplier[Biomass kg/m3],DensityMultiplier[Multiplier],,-1)","v":{"$error":"#N/A"}},3853.2039089810314,{"$f":"IF(A237<='S2-Double'!$C$7,('Growth-Model-2'!G236*EXP($AA$7)),0)","v":0},{"$f":"IF(A237<='S2-Double'!$C$7,$AD$6*EXP($AD$7*('S2-Double'!C$7-'Growth-Model-2'!A237)),0)","v":0},196.79609101896818,4.8591627412090908E-2,0,18.467327479743304,0,{"$f":"M237/'S2-Double'!$C$17","v":0},{"$error":"#N/A"},{"$error":"#N/A"},{"$f":"_xlfn.XLOOKUP(B237,FeedTables!$C$17:$T$17,FeedTables!$C$31:$T$31,,-1)","v":{"$error":"#N/A"}},{"$f":"_xlfn.XLOOKUP(Q237,FeedPrice[Feed],FeedPrice[Price per kg],\"Unknown\",0)*O237","v":{"$error":"#N/A"}},{"$error":"#N/A"},{"$f":"_xlfn.XLOOKUP(O237,LabourFromFeed[Feed Quantity (kg)],LabourFromFeed[No. Labour],\"Out of range\",-1)","v":{"$error":"#N/A"}},{"$f":"T237*OperatingCosts!$C$9","v":{"$error":"#N/A"}},{"$error":"#N/A"}]
[236,{"$f":"IF(A238<='S2-Double'!$C$7, B237*EXP((LN((E237/100)+1))*1),)","v":0},{"$f":"_xlfn.XLOOKUP($B238,FeedTables!$C$42:$T$42,FeedTables!$C$44:$T$44,,-1)","v":{"$error":"#N/A"}},{"$f":"_xlfn.XLOOKUP($B238,FeedTables!$C$42:$T$42,FeedTables!$C$45:$T$45,,-1)","v":{"$error":"#N/A"}},{"$f":"_xlfn.XLOOKUP($B238,FeedTables!$C$42:$T$42,FeedTables!$C$46:$T$46,,-1)*_xlfn.XLOOKUP(N237,DensityMultiplier[Biomass kg/m3],DensityMultiplier[Multiplier],,-1)","v":{"$error":"#N/A"}},3853.2039089810314,{"$f":"IF(A238<='S2-Double'!$C$7,('Growth-Model-2'!G237*EXP($AA$7)),0)","v":0},{"$f":"IF(A238<='S2-Double'!$C$7,$AD$6*EXP($AD$7*('S2-Double'!C$7-'Growth-Model-2'!A238)),0)","v":0},196.79609101896818,4.8591627412090908E-2,0,18.467327479743304,0,{"$f":"M238/'S2-Double'!$C$17","v":0},{"$error":"#N/A"},{"$error":"#N/A"},{"$f":"_xlfn.XLOOKUP(B238,FeedTables!$C$17:$T$17,FeedTables!$C$31:$T$31,,-1)","v":{"$error":"#N/A"}},{"$f":"_xlfn.XLOOKUP(Q238,FeedPrice[Feed],FeedPrice[Price per kg],\"Unknown\",0)*O238","v":{"$error":"#N/A"}},{"$error":"#N/A"},{"$f":"_xlfn.XLOOKUP(O238,LabourFromFeed[Feed Quantity (kg)],LabourFromFeed[No. Labour],\"Out of range\",-1)","v":{"$error":"#N/A"}},{"$f":"T238*OperatingCosts!$C$9","v":{"$error":"#N/A"}},{"$error":"#N/A"}]
[237,{"$f":"IF(A239<='S2-Double'!$C$7, B238*EXP((LN((E238/100)+1))*1),)","v":0},{"$f":"_xlfn.XLOOKUP($B239,FeedTables!$C$42:$T$42,FeedTables!$C$44:$T$44,,-1)","v":{"$error":"#N/A"}},{"$f":"_xlfn.XLOOKUP($B239,FeedTables!$C$42:$T$42,FeedTables!$C$45:$T$45,,-1)","v":{"$error":"#N/A"}},{"$f":"_xlfn.XLOOKUP($B239,FeedTables!$C$42:$T$42,FeedTables!$C$46:$T$46,,-1)*_xlfn.XLOOKUP(N238,DensityMultiplier[Biomass kg/m3],DensityMultiplier[Multiplier],,-1)","v":{"$error":"#N/A"}},3853.2039089810314,{"$f":"IF(A239<='S2-Double'!$C$7,('Growth-Model-2'!G238*EXP($AA$7)),0)","v":0},{"$f":"IF(A239<='S2-Double'!$C$7,$AD$6*EXP($AD$7*('S2-Double'!C$7-'Growth-Model-2'!A239)),0)","v":0},196.79609101896818,4.8591627412090908E-2,0,18.467327479743304,0,{"$f":"M239/'S2-Double'!$C$17","v":0},{"$error":"#N/A"},{"$error":"#N/A"},{"$f":"_xlfn.XLOOKUP(B239,FeedTables!$C$17:$T$17,FeedTables!$C$31:$T$31,,-1)","v":{"$error":"#N/A"}},{"$f":"_xlfn.XLOOKUP(Q239,FeedPrice[Feed],FeedPrice[Price per kg],\"Unknown\",0)*O239","v":{"$error":"#N/A"}},{"$error":"#N/A"},{"$f":"_xlfn.XLOOKUP(O239,LabourFromFeed[Feed Quantity (kg)],LabourFromFeed[No. Labour],\"Out of range\",-1)","v":{"$error":"#N/A"}},{"$f":"T239*OperatingCosts!$C$9","v":{"$error":"#N/A"}},{"$error":"#N/A"}]
[238,{"$f":"IF(A240<='S2-Double'!$C$7, B239*EXP((LN((E239/100)+1))*1),)","v":0},{"$f":"_xlfn.XLOOKUP($B240,FeedTables!$C$42:$T$42,FeedTables!$C$44:$T$44,,-1)","v":{"$error":"#N/A"}},{"$f":"_xlfn.XLOOKUP($B240,FeedTables!$C$42:$T$42,FeedTables!$C$45:$T$45,,-1)","v":{"$error":"#N/A"}},{"$f":"_xlfn.XLOOKUP($B240,FeedTables!$C$42:$T$42,FeedTables!$C$46:$T$46,,-1)*_xlfn.XLOOKUP(N239,DensityMultiplier[Biomass kg/m3],DensityMultiplier[Multiplier],,-1)","v":{"$error":"#N/A"}},3853.2039089810314,{"$f":"IF(A240<='S2-Double'!$C$7,('Growth-Model-2'!G239*EXP($AA$7)),0)","v":0},{"$f":"IF(A240<='S2-Double'!$C$7,$AD$6*EXP($AD$7*('S2-Double'!C$7-'Growth-Model-2'!A240)),0)","v":0},196.79609101896818,4.8591627412090908E-2,0,18.467327479743304,0,{"$f":"M240/'S2-Double'!$C$17","v":0},{"$error":"#N/A"},{"$error":"#N/A"},{"$f":"_xlfn.XLOOKUP(B240,FeedTables!$C$17:$T$17,FeedTables!$C$31:$T$31,,-1)","v":{"$error":"#N/A"}},{"$f":"_xlfn.XLOOKUP(Q240,FeedPrice[Feed],FeedPrice[Price per kg],\"Unknown\",0)*O240","v":{"$error":"#N/A"}},{"$error":"#N/A"},{"$f":"_xlfn.XLOOKUP(O240,LabourFromFeed[Feed Quantity (kg)],LabourFromFeed[No. Labour],\"Out of range\",-1)","v":{"$error":"#N/A"}},{"$f":"T240*OperatingCosts!$C$9","v":{"$error":"#N/A"}},{"$error":"#N/A"}]
[239,{"$f":"IF(A241<='S2-Double'!$C$7, B240*EXP((LN((E240/100)+1))*1),)","v":0},{"$f":"_xlfn.XLOOKUP($B241,FeedTables!$C$42:$T$42,FeedTables!$C$44:$T$44,,-1)","v":{"$error":"#N/A"}},{"$f":"_xlfn.XLOOKUP($B241,FeedTables!$C$42:$T$42,FeedTables!$C$45:$T$45,,-1)","v":{"$error":"#N/A"}},{"$f":"_xlfn.XLOOKUP($B241,FeedTables!$C$42:$T$42,FeedTables!$C$46:$T$46,,-1)*_xlfn.XLOOKUP(N240,DensityMultiplier[Biomass kg/m3],DensityMultiplier[Multiplier],,-1)","v":{"$error":"#N/A"}},3853.2039089810314,{"$f":"IF(A241<='S2-Double'!$C$7,('Growth-Model-2'!G240*EXP($AA$7)),0)","v":0},{"$f":"IF(A241<='S2-Double'!$C$7,$AD$6*EXP($AD$7*('S2-Double'!C$7-'Growth-Model-2'!A241)),0)","v":0},196.79609101896818,4.8591627412090908E-2,0,18.467327479743304,0,{"$f":"M241/'S2-Double'!$C$17","v":0},{"$error":"#N/A"},{"$error":"#N/A"},{"$f":"_xlfn.XLOOKUP(B241,FeedTables!$C$17:$T$17,FeedTables!$C$31:$T$31,,-1)","v":{"$error":"#N/A"}},{"$f":"_xlfn.XLOOKUP(Q241,FeedPrice[Feed],FeedPrice[Price per kg],\"Unknown\",0)*O241","v":{"$error":"#N/A"}},{"$error":"#N/A"},{"$f":"_xlfn.XLOOKUP(O241,LabourFromFeed[Feed Quantity (kg)],LabourFromFeed[No. Labour],\"Out of range\",-1)","v":{"$error":"#N/A"}},{"$f":"T241*OperatingCosts!$C$9","v":{"$error":"#N/A"}},{"$error":"#N/A"}]
[240,{"$f":"IF(A242<='S2-Double'!$C$7, B241*EXP((LN((E241/100)+1))*1),)","v":0},{"$f":"_xlfn.XLOOKUP($B242,FeedTables!$C$42:$T$42,FeedTables!$C$44:$T$44,,-1)","v":{"$error":"#N/A"}},{"$f":"_xlfn.XLOOKUP($B242,FeedTables!$C$42:$T$42,FeedTables!$C$45:$T$45,,-1)","v":{"$error":"#N/A"}},{"$f":"_xlfn.XLOOKUP($B242,FeedTables!$C$42:$T$42,FeedTables!$C$46:$T$46,,-1)*_xlfn.XLOOKUP(N241,DensityMultiplier[Biomass kg/m3],DensityMultiplier[Multiplier],,-1)","v":{"$error":"#N/A"}},3853.2039089810314,{"$f":"IF(A242<='S2-Double'!$C$7,('Growth-Model-2'!G241*EXP($AA$7)),0)","v":0},{"$f":"IF(A242<='S2-Double'!$C$7,$AD$6*EXP($AD$7*('S2-Double'!C$7-'Growth-Model-2'!A242)),0)","v":0},196.79609101896818,4.8591627412090908E-2,0,18.467327479743304,0,{"$f":"M242/'S2-Double'!$C$17","v":0},{"$error":"#N/A"},{"$error":"#N/A"},{"$f":"_xlfn.XLOOKUP(B242,FeedTables!$C$17:$T$17,FeedTables!$C$31:$T$31,,-1)","v":{"$error":"#N/A"}},{"$f":"_xlfn.XLOOKUP(Q242,FeedPrice[Feed],FeedPrice[Price per kg],\"Unknown\",0)*O242","v":{"$error":"#N/A"}},{"$error":"#N/A"},{"$f":"_xlfn.XLOOKUP(O242,LabourFromFeed[Feed Quantity (kg)],LabourFromFeed[No. Labour],\"Out of range\",-1)","v":{"$error":"#N/A"}},{"$f":"T242*OperatingCosts!$C$9","v":{"$error":"#N/A"}},{"$error":"#N/A"}]
[241,{"$f":"IF(A243<='S2-Double'!$C$7, B242*EXP((LN((E242/100)+1))*1),)","v":0},{"$f":"_xlfn.XLOOKUP($B243,FeedTables!$C$42:$T$42,FeedTables!$C$44:$T$44,,-1)","v":{"$error":"#N/A"}},{"$f":"_xlfn.XLOOKUP($B243,FeedTables!$C$42:$T$42,FeedTables!$C$45:$T$45,,-1)","v":{"$error":"#N/A"}},{"$f":"_xlfn.XLOOKUP($B243,FeedTables!$C$42:$T$42,FeedTables!$C$46:$T$46,,-1)*_xlfn.XLOOKUP(N242,DensityMultiplier[Biomass kg/m3],DensityMultiplier[Multiplier],,-1)","v":{"$error":"#N/A"}},3853.2039089810314,{"$f":"IF(A243<='S2-Double'!$C$7,('Growth-Model-2'!G242*EXP($AA$7)),0)","v":0},{"$f":"IF(A243<='S2-Double'!$C$7,$AD$6*EXP($AD$7*('S2-Double'!C$7-'Growth-Model-2'!A243)),0)","v":0},196.79609101896818,4.8591627412090908E-2,0,18.467327479743304,0,{"$f":"M243/'S2-Double'!$C$17","v":0},{"$error":"#N/A"},{"$error":"#N/A"},{"$f":"_xlfn.XLOOKUP(B243,FeedTables!$C$17:$T$17,FeedTables!$C$31:$T$31,,-1)","v":{"$error":"#N/A"}},{"$f":"_xlfn.XLOOKUP(Q243,FeedPrice[Feed],FeedPrice[Price per kg],\"Unknown\",0)*O243","v":{"$error":"#N/A"}},{"$error":"#N/A"},{"$f":"_xlfn.XLOOKUP(O243,LabourFromFeed[Feed Quantity (kg)],LabourFromFeed[No. Labour],\"Out of range\",-1)","v":{"$error":"#N/A"}},{"$f":"T243*OperatingCosts!$C$9","v":{"$error":"#N/A"}},{"$error":"#N/A"}]
[242,{"$f":"IF(A244<='S2-Double'!$C$7, B243*EXP((LN((E243/100)+1))*1),)","v":0},{"$f":"_xlfn.XLOOKUP($B244,FeedTables!$C$42:$T$42,FeedTables!$C$44:$T$44,,-1)","v":{"$error":"#N/A"}},{"$f":"_xlfn.XLOOKUP($B244,FeedTables!$C$42:$T$42,FeedTables!$C$45:$T$45,,-1)","v":{"$error":"#N/A"}},{"$f":"_xlfn.XLOOKUP($B244,FeedTables!$C$42:$T$42,FeedTables!$C$46:$T$46,,-1)*_xlfn.XLOOKUP(N243,DensityMultiplier[Biomass kg/m3],DensityMultiplier[Multiplier],,-1)","v":{"$error":"#N/A"}},3853.2039089810314,{"$f":"IF(A244<='S2-Double'!$C$7,('Growth-Model-2'!G243*EXP($AA$7)),0)","v":0},{"$f":"IF(A244<='S2-Double'!$C$7,$AD$6*EXP($AD$7*('S2-Double'!C$7-'Growth-Model-2'!A244)),0)","v":0},196.79609101896818,4.8591627412090908E-2,0,18.467327479743304,0,{"$f":"M244/'S2-Double'!$C$17","v":0},{"$error":"#N/A"},{"$error":"#N/A"},{"$f":"_xlfn.XLOOKUP(B244,FeedTables!$C$17:$T$17,FeedTables!$C$31:$T$31,,-1)","v":{"$error":"#N/A"}},{"$f":"_xlfn.XLOOKUP(Q244,FeedPrice[Feed],FeedPrice[Price per kg],\"Unknown\",0)*O244","v":{"$error":"#N/A"}},{"$error":"#N/A"},{"$f":"_xlfn.XLOOKUP(O244,LabourFromFeed[Feed Quantity (kg)],LabourFromFeed[No. Labour],\"Out of range\",-1)","v":{"$error":"#N/A"}},{"$f":"T244*OperatingCosts!$C$9","v":{"$error":"#N/A"}},{"$error":"#N/A"}]
[243,{"$f":"IF(A245<='S2-Double'!$C$7, B244*EXP((LN((E244/100)+1))*1),)","v":0},{"$f":"_xlfn.XLOOKUP($B245,FeedTables!$C$42:$T$42,FeedTables!$C$44:$T$44,,-1)","v":{"$error":"#N/A"}},{"$f":"_xlfn.XLOOKUP($B245,FeedTables!$C$42:$T$42,FeedTables!$C$45:$T$45,,-1)","v":{"$error":"#N/A"}},{"$f":"_xlfn.XLOOKUP($B245,FeedTables!$C$42:$T$42,FeedTables!$C$46:$T$46,,-1)*_xlfn.XLOOKUP(N244,DensityMultiplier[Biomass kg/m3],DensityMultiplier[Multiplier],,-1)","v":{"$error":"#N/A"}},3853.2039089810314,{"$f":"IF(A245<='S2-Double'!$C$7,('Growth-Model-2'!G244*EXP($AA$7)),0)","v":0},{"$f":"IF(A245<='S2-Double'!$C$7,$AD$6*EXP($AD$7*('S2-Double'!C$7-'Growth-Model-2'!A245)),0)","v":0},196.79609101896818,4.8591627412090908E-2,0,18.467327479743304,0,{"$f":"M245/'S2-Double'!$C$17","v":0},{"$error":"#N/A"},{"$error":"#N/A"},{"$f":"_xlfn.XLOOKUP(B245,FeedTables!$C$17:$T$17,FeedTables!$C$31:$T$31,,-1)","v":{"$error":"#N/A"}},{"$f":"_xlfn.XLOOKUP(Q245,FeedPrice[Feed],FeedPrice[Price per kg],\"Unknown\",0)*O245","v":{"$error":"#N/A"}},{"$error":"#N/A"},{"$f":"_xlfn.XLOOKUP(O245,LabourFromFeed[Feed Quantity (kg)],LabourFromFeed[No. Labour],\"Out of range\",-1)","v":{"$error":"#N/A"}},{"$f":"T245*OperatingCosts!$C$9","v":{"$error":"#N/A"}},{"$error":"#N/A"}]
[244,{"$f":"IF(A246<='S2-Double'!$C$7, B245*EXP((LN((E245/100)+1))*1),)","v":0},{"$f":"_xlfn.XLOOKUP($B246,FeedTables!$C$42:$T$42,FeedTables!$C$44:$T$44,,-1)","v":{"$error":"#N/A"}},{"$f":"_xlfn.XLOOKUP($B246,FeedTables!$C$42:$T$42,FeedTables!$C$45:$T$45,,-1)","v":{"$error":"#N/A"}},{"$f":"_xlfn.XLOOKUP($B246,FeedTables!$C$42:$T$42,FeedTables!$C$46:$T$46,,-1)*_xlfn.XLOOKUP(N245,DensityMultiplier[Biomass kg/m3],DensityMultiplier[Multiplier],,-1)","v":{"$error":"#N/A"}},3853.2039089810314,{"$f":"IF(A246<='S2-Double'!$C$7,('Growth-Model-2'!G245*EXP($AA$7)),0)","v":0},{"$f":"IF(A246<='S2-Double'!$C$7,$AD$6*EXP($AD$7*('S2-Double'!C$7-'Growth-Model-2'!A246)),0)","v":0},196.79609101896818,4.8591627412090908E-2,0,18.467327479743304,0,{"$f":"M246/'S2-Double'!$C$17","v":0},{"$error":"#N/A"},{"$error":"#N/A"},{"$f":"_xlfn.XLOOKUP(B246,FeedTables!$C$17:$T$17,FeedTables!$C$31:$T$31,,-1)","v":{"$error":"#N/A"}},{"$f":"_xlfn.XLOOKUP(Q246,FeedPrice[Feed],FeedPrice[Price per kg],\"Unknown\",0)*O246","v":{"$error":"#N/A"}},{"$error":"#N/A"},{"$f":"_xlfn.XLOOKUP(O246,LabourFromFeed[Feed Quantity (kg)],LabourFromFeed[No. Labour],\"Out of range\",-1)","v":{"$error":"#N/A"}},{"$f":"T246*OperatingCosts!$C$9","v":{"$error":"#N/A"}},{"$error":"#N/A"}]
[245,{"$f":"IF(A247<='S2-Double'!$C$7, B246*EXP((LN((E246/100)+1))*1),)","v":0},{"$f":"_xlfn.XLOOKUP($B247,FeedTables!$C$42:$T$42,FeedTables!$C$44:$T$44,,-1)","v":{"$error":"#N/A"}},{"$f":"_xlfn.XLOOKUP($B247,FeedTables!$C$42:$T$42,FeedTables!$C$45:$T$45,,-1)","v":{"$error":"#N/A"}},{"$f":"_xlfn.XLOOKUP($B247,FeedTables!$C$42:$T$42,FeedTables!$C$46:$T$46,,-1)*_xlfn.XLOOKUP(N246,DensityMultiplier[Biomass kg/m3],DensityMultiplier[Multiplier],,-1)","v":{"$error":"#N/A"}},3853.2039089810314,{"$f":"IF(A247<='S2-Double'!$C$7,('Growth-Model-2'!G246*EXP($AA$7)),0)","v":0},{"$f":"IF(A247<='S2-Double'!$C$7,$AD$6*EXP($AD$7*('S2-Double'!C$7-'Growth-Model-2'!A247)),0)","v":0},196.79609101896818,4.8591627412090908E-2,0,18.467327479743304,0,{"$f":"M247/'S2-Double'!$C$17","v":0},{"$error":"#N/A"},{"$error":"#N/A"},{"$f":"_xlfn.XLOOKUP(B247,FeedTables!$C$17:$T$17,FeedTables!$C$31:$T$31,,-1)","v":{"$error":"#N/A"}},{"$f":"_xlfn.XLOOKUP(Q247,FeedPrice[Feed],FeedPrice[Price per kg],\"Unknown\",0)*O247","v":{"$error":"#N/A"}},{"$error":"#N/A"},{"$f":"_xlfn.XLOOKUP(O247,LabourFromFeed[Feed Quantity (kg)],LabourFromFeed[No. Labour],\"Out of range\",-1)","v":{"$error":"#N/A"}},{"$f":"T247*OperatingCosts!$C$9","v":{"$error":"#N/A"}},{"$error":"#N/A"}]
[246,{"$f":"IF(A248<='S2-Double'!$C$7, B247*EXP((LN((E247/100)+1))*1),)","v":0},{"$f":"_xlfn.XLOOKUP($B248,FeedTables!$C$42:$T$42,FeedTables!$C$44:$T$44,,-1)","v":{"$error":"#N/A"}},{"$f":"_xlfn.XLOOKUP($B248,FeedTables!$C$42:$T$42,FeedTables!$C$45:$T$45,,-1)","v":{"$error":"#N/A"}},{"$f":"_xlfn.XLOOKUP($B248,FeedTables!$C$42:$T$42,FeedTables!$C$46:$T$46,,-1)*_xlfn.XLOOKUP(N247,DensityMultiplier[Biomass kg/m3],DensityMultiplier[Multiplier],,-1)","v":{"$error":"#N/A"}},3853.2039089810314,{"$f":"IF(A248<='S2-Double'!$C$7,('Growth-Model-2'!G247*EXP($AA$7)),0)","v":0},{"$f":"IF(A248<='S2-Double'!$C$7,$AD$6*EXP($AD$7*('S2-Double'!C$7-'Growth-Model-2'!A248)),0)","v":0},196.79609101896818,4.8591627412090908E-2,0,18.467327479743304,0,{"$f":"M248/'S2-Double'!$C$17","v":0},{"$error":"#N/A"},{"$error":"#N/A"},{"$f":"_xlfn.XLOOKUP(B248,FeedTables!$C$17:$T$17,FeedTables!$C$31:$T$31,,-1)","v":{"$error":"#N/A"}},{"$f":"_xlfn.XLOOKUP(Q248,FeedPrice[Feed],FeedPrice[Price per kg],\"Unknown\",0)*O248","v":{"$error":"#N/A"}},{"$error":"#N/A"},{"$f":"_xlfn.XLOOKUP(O248,LabourFromFeed[Feed Quantity (kg)],LabourFromFeed[No. Labour],\"Out of range\",-1)","v":{"$error":"#N/A"}},{"$f":"T248*OperatingCosts!$C$9","v":{"$error":"#N/A"}},{"$error":"#N/A"}]
[247,{"$f":"IF(A249<='S2-Double'!$C$7, B248*EXP((LN((E248/100)+1))*1),)","v":0},{"$f":"_xlfn.XLOOKUP($B249,FeedTables!$C$42:$T$42,FeedTables!$C$44:$T$44,,-1)","v":{"$error":"#N/A"}},{"$f":"_xlfn.XLOOKUP($B249,FeedTables!$C$42:$T$42,FeedTables!$C$45:$T$45,,-1)","v":{"$error":"#N/A"}},{"$f":"_xlfn.XLOOKUP($B249,FeedTables!$C$42:$T$42,FeedTables!$C$46:$T$46,,-1)*_xlfn.XLOOKUP(N248,DensityMultiplier[Biomass kg/m3],DensityMultiplier[Multiplier],,-1)","v":{"$error":"#N/A"}},3853.2039089810314,{"$f":"IF(A249<='S2-Double'!$C$7,('Growth-Model-2'!G248*EXP($AA$7)),0)","v":0},{"$f":"IF(A249<='S2-Double'!$C$7,$AD$6*EXP($AD$7*('S2-Double'!C$7-'Growth-Model-2'!A249)),0)","v":0},196.79609101896818,4.8591627412090908E-2,0,18.467327479743304,0,{"$f":"M249/'S2-Double'!$C$17","v":0},{"$error":"#N/A"},{"$error":"#N/A"},{"$f":"_xlfn.XLOOKUP(B249,FeedTables!$C$17:$T$17,FeedTables!$C$31:$T$31,,-1)","v":{"$error":"#N/A"}},{"$f":"_xlfn.XLOOKUP(Q249,FeedPrice[Feed],FeedPrice[Price per kg],\"Unknown\",0)*O249","v":{"$error":"#N/A"}},{"$error":"#N/A"},{"$f":"_xlfn.XLOOKUP(O249,LabourFromFeed[Feed Quantity (kg)],LabourFromFeed[No. Labour],\"Out of range\",-1)","v":{"$error":"#N/A"}},{"$f":"T249*OperatingCosts!$C$9","v":{"$error":"#N/A"}},{"$error":"#N/A"}]
[248,{"$f":"IF(A250<='S2-Double'!$C$7, B249*EXP((LN((E249/100)+1))*1),)","v":0},{"$f":"_xlfn.XLOOKUP($B250,FeedTables!$C$42:$T$42,FeedTables!$C$44:$T$44,,-1)","v":{"$error":"#N/A"}},{"$f":"_xlfn.XLOOKUP($B250,FeedTables!$C$42:$T$42,FeedTables!$C$45:$T$45,,-1)","v":{"$error":"#N/A"}},{"$f":"_xlfn.XLOOKUP($B250,FeedTables!$C$42:$T$42,FeedTables!$C$46:$T$46,,-1)*_xlfn.XLOOKUP(N249,DensityMultiplier[Biomass kg/m3],DensityMultiplier[Multiplier],,-1)","v":{"$error":"#N/A"}},3853.2039089810314,{"$f":"IF(A250<='S2-Double'!$C$7,('Growth-Model-2'!G249*EXP($AA$7)),0)","v":0},{"$f":"IF(A250<='S2-Double'!$C$7,$AD$6*EXP($AD$7*('S2-Double'!C$7-'Growth-Model-2'!A250)),0)","v":0},196.79609101896818,4.8591627412090908E-2,0,18.467327479743304,0,{"$f":"M250/'S2-Double'!$C$17","v":0},{"$error":"#N/A"},{"$error":"#N/A"},{"$f":"_xlfn.XLOOKUP(B250,FeedTables!$C$17:$T$17,FeedTables!$C$31:$T$31,,-1)","v":{"$error":"#N/A"}},{"$f":"_xlfn.XLOOKUP(Q250,FeedPrice[Feed],FeedPrice[Price per kg],\"Unknown\",0)*O250","v":{"$error":"#N/A"}},{"$error":"#N/A"},{"$f":"_xlfn.XLOOKUP(O250,LabourFromFeed[Feed Quantity (kg)],LabourFromFeed[No. Labour],\"Out of range\",-1)","v":{"$error":"#N/A"}},{"$f":"T250*OperatingCosts!$C$9","v":{"$error":"#N/A"}},{"$error":"#N/A"}]
[249,{"$f":"IF(A251<='S2-Double'!$C$7, B250*EXP((LN((E250/100)+1))*1),)","v":0},{"$f":"_xlfn.XLOOKUP($B251,FeedTables!$C$42:$T$42,FeedTables!$C$44:$T$44,,-1)","v":{"$error":"#N/A"}},{"$f":"_xlfn.XLOOKUP($B251,FeedTables!$C$42:$T$42,FeedTables!$C$45:$T$45,,-1)","v":{"$error":"#N/A"}},{"$f":"_xlfn.XLOOKUP($B251,FeedTables!$C$42:$T$42,FeedTables!$C$46:$T$46,,-1)*_xlfn.XLOOKUP(N250,DensityMultiplier[Biomass kg/m3],DensityMultiplier[Multiplier],,-1)","v":{"$error":"#N/A"}},3853.2039089810314,{"$f":"IF(A251<='S2-Double'!$C$7,('Growth-Model-2'!G250*EXP($AA$7)),0)","v":0},{"$f":"IF(A251<='S2-Double'!$C$7,$AD$6*EXP($AD$7*('S2-Double'!C$7-'Growth-Model-2'!A251)),0)","v":0},196.79609101896818,4.8591627412090908E-2,0,18.467327479743304,0,{"$f":"M251/'S2-Double'!$C$17","v":0},{"$error":"#N/A"},{"$error":"#N/A"},{"$f":"_xlfn.XLOOKUP(B251,FeedTables!$C$17:$T$17,FeedTables!$C$31:$T$31,,-1)","v":{"$error":"#N/A"}},{"$f":"_xlfn.XLOOKUP(Q251,FeedPrice[Feed],FeedPrice[Price per kg],\"Unknown\",0)*O251","v":{"$error":"#N/A"}},{"$error":"#N/A"},{"$f":"_xlfn.XLOOKUP(O251,LabourFromFeed[Feed Quantity (kg)],LabourFromFeed[No. Labour],\"Out of range\",-1)","v":{"$error":"#N/A"}},{"$f":"T251*OperatingCosts!$C$9","v":{"$error":"#N/A"}},{"$error":"#N/A"}]
[250,{"$f":"IF(A252<='S2-Double'!$C$7, B251*EXP((LN((E251/100)+1))*1),)","v":0},{"$f":"_xlfn.XLOOKUP($B252,FeedTables!$C$42:$T$42,FeedTables!$C$44:$T$44,,-1)","v":{"$error":"#N/A"}},{"$f":"_xlfn.XLOOKUP($B252,FeedTables!$C$42:$T$42,FeedTables!$C$45:$T$45,,-1)","v":{"$error":"#N/A"}},{"$f":"_xlfn.XLOOKUP($B252,FeedTables!$C$42:$T$42,FeedTables!$C$46:$T$46,,-1)*_xlfn.XLOOKUP(N251,DensityMultiplier[Biomass kg/m3],DensityMultiplier[Multiplier],,-1)","v":{"$error":"#N/A"}},3853.2039089810314,{"$f":"IF(A252<='S2-Double'!$C$7,('Growth-Model-2'!G251*EXP($AA$7)),0)","v":0},{"$f":"IF(A252<='S2-Double'!$C$7,$AD$6*EXP($AD$7*('S2-Double'!C$7-'Growth-Model-2'!A252)),0)","v":0},196.79609101896818,4.8591627412090908E-2,0,18.467327479743304,0,{"$f":"M252/'S2-Double'!$C$17","v":0},{"$error":"#N/A"},{"$error":"#N/A"},{"$f":"_xlfn.XLOOKUP(B252,FeedTables!$C$17:$T$17,FeedTables!$C$31:$T$31,,-1)","v":{"$error":"#N/A"}},{"$f":"_xlfn.XLOOKUP(Q252,FeedPrice[Feed],FeedPrice[Price per kg],\"Unknown\",0)*O252","v":{"$error":"#N/A"}},{"$error":"#N/A"},{"$f":"_xlfn.XLOOKUP(O252,LabourFromFeed[Feed Quantity (kg)],LabourFromFeed[No. Labour],\"Out of range\",-1)","v":{"$error":"#N/A"}},{"$f":"T252*OperatingCosts!$C$9","v":{"$error":"#N/A"}},{"$error":"#N/A"}]
[251,{"$f":"IF(A253<='S2-Double'!$C$7, B252*EXP((LN((E252/100)+1))*1),)","v":0},{"$f":"_xlfn.XLOOKUP($B253,FeedTables!$C$42:$T$42,FeedTables!$C$44:$T$44,,-1)","v":{"$error":"#N/A"}},{"$f":"_xlfn.XLOOKUP($B253,FeedTables!$C$42:$T$42,FeedTables!$C$45:$T$45,,-1)","v":{"$error":"#N/A"}},{"$f":"_xlfn.XLOOKUP($B253,FeedTables!$C$42:$T$42,FeedTables!$C$46:$T$46,,-1)*_xlfn.XLOOKUP(N252,DensityMultiplier[Biomass kg/m3],DensityMultiplier[Multiplier],,-1)","v":{"$error":"#N/A"}},3853.2039089810314,{"$f":"IF(A253<='S2-Double'!$C$7,('Growth-Model-2'!G252*EXP($AA$7)),0)","v":0},{"$f":"IF(A253<='S2-Double'!$C$7,$AD$6*EXP($AD$7*('S2-Double'!C$7-'Growth-Model-2'!A253)),0)","v":0},196.79609101896818,4.8591627412090908E-2,0,18.467327479743304,0,{"$f":"M253/'S2-Double'!$C$17","v":0},{"$error":"#N/A"},{"$error":"#N/A"},{"$f":"_xlfn.XLOOKUP(B253,FeedTables!$C$17:$T$17,FeedTables!$C$31:$T$31,,-1)","v":{"$error":"#N/A"}},{"$f":"_xlfn.XLOOKUP(Q253,FeedPrice[Feed],FeedPrice[Price per kg],\"Unknown\",0)*O253","v":{"$error":"#N/A"}},{"$error":"#N/A"},{"$f":"_xlfn.XLOOKUP(O253,LabourFromFeed[Feed Quantity (kg)],LabourFromFeed[No. Labour],\"Out of range\",-1)","v":{"$error":"#N/A"}},{"$f":"T253*OperatingCosts!$C$9","v":{"$error":"#N/A"}},{"$error":"#N/A"}]
[252,{"$f":"IF(A254<='S2-Double'!$C$7, B253*EXP((LN((E253/100)+1))*1),)","v":0},{"$f":"_xlfn.XLOOKUP($B254,FeedTables!$C$42:$T$42,FeedTables!$C$44:$T$44,,-1)","v":{"$error":"#N/A"}},{"$f":"_xlfn.XLOOKUP($B254,FeedTables!$C$42:$T$42,FeedTables!$C$45:$T$45,,-1)","v":{"$error":"#N/A"}},{"$f":"_xlfn.XLOOKUP($B254,FeedTables!$C$42:$T$42,FeedTables!$C$46:$T$46,,-1)*_xlfn.XLOOKUP(N253,DensityMultiplier[Biomass kg/m3],DensityMultiplier[Multiplier],,-1)","v":{"$error":"#N/A"}},3853.2039089810314,{"$f":"IF(A254<='S2-Double'!$C$7,('Growth-Model-2'!G253*EXP($AA$7)),0)","v":0},{"$f":"IF(A254<='S2-Double'!$C$7,$AD$6*EXP($AD$7*('S2-Double'!C$7-'Growth-Model-2'!A254)),0)","v":0},196.79609101896818,4.8591627412090908E-2,0,18.467327479743304,0,{"$f":"M254/'S2-Double'!$C$17","v":0},{"$error":"#N/A"},{"$error":"#N/A"},{"$f":"_xlfn.XLOOKUP(B254,FeedTables!$C$17:$T$17,FeedTables!$C$31:$T$31,,-1)","v":{"$error":"#N/A"}},{"$f":"_xlfn.XLOOKUP(Q254,FeedPrice[Feed],FeedPrice[Price per kg],\"Unknown\",0)*O254","v":{"$error":"#N/A"}},{"$error":"#N/A"},{"$f":"_xlfn.XLOOKUP(O254,LabourFromFeed[Feed Quantity (kg)],LabourFromFeed[No. Labour],\"Out of range\",-1)","v":{"$error":"#N/A"}},{"$f":"T254*OperatingCosts!$C$9","v":{"$error":"#N/A"}},{"$error":"#N/A"}]
[253,{"$f":"IF(A255<='S2-Double'!$C$7, B254*EXP((LN((E254/100)+1))*1),)","v":0},{"$f":"_xlfn.XLOOKUP($B255,FeedTables!$C$42:$T$42,FeedTables!$C$44:$T$44,,-1)","v":{"$error":"#N/A"}},{"$f":"_xlfn.XLOOKUP($B255,FeedTables!$C$42:$T$42,FeedTables!$C$45:$T$45,,-1)","v":{"$error":"#N/A"}},{"$f":"_xlfn.XLOOKUP($B255,FeedTables!$C$42:$T$42,FeedTables!$C$46:$T$46,,-1)*_xlfn.XLOOKUP(N254,DensityMultiplier[Biomass kg/m3],DensityMultiplier[Multiplier],,-1)","v":{"$error":"#N/A"}},3853.2039089810314,{"$f":"IF(A255<='S2-Double'!$C$7,('Growth-Model-2'!G254*EXP($AA$7)),0)","v":0},{"$f":"IF(A255<='S2-Double'!$C$7,$AD$6*EXP($AD$7*('S2-Double'!C$7-'Growth-Model-2'!A255)),0)","v":0},196.79609101896818,4.8591627412090908E-2,0,18.467327479743304,0,{"$f":"M255/'S2-Double'!$C$17","v":0},{"$error":"#N/A"},{"$error":"#N/A"},{"$f":"_xlfn.XLOOKUP(B255,FeedTables!$C$17:$T$17,FeedTables!$C$31:$T$31,,-1)","v":{"$error":"#N/A"}},{"$f":"_xlfn.XLOOKUP(Q255,FeedPrice[Feed],FeedPrice[Price per kg],\"Unknown\",0)*O255","v":{"$error":"#N/A"}},{"$error":"#N/A"},{"$f":"_xlfn.XLOOKUP(O255,LabourFromFeed[Feed Quantity (kg)],LabourFromFeed[No. Labour],\"Out of range\",-1)","v":{"$error":"#N/A"}},{"$f":"T255*OperatingCosts!$C$9","v":{"$error":"#N/A"}},{"$error":"#N/A"}]
[254,{"$f":"IF(A256<='S2-Double'!$C$7, B255*EXP((LN((E255/100)+1))*1),)","v":0},{"$f":"_xlfn.XLOOKUP($B256,FeedTables!$C$42:$T$42,FeedTables!$C$44:$T$44,,-1)","v":{"$error":"#N/A"}},{"$f":"_xlfn.XLOOKUP($B256,FeedTables!$C$42:$T$42,FeedTables!$C$45:$T$45,,-1)","v":{"$error":"#N/A"}},{"$f":"_xlfn.XLOOKUP($B256,FeedTables!$C$42:$T$42,FeedTables!$C$46:$T$46,,-1)*_xlfn.XLOOKUP(N255,DensityMultiplier[Biomass kg/m3],DensityMultiplier[Multiplier],,-1)","v":{"$error":"#N/A"}},3853.2039089810314,{"$f":"IF(A256<='S2-Double'!$C$7,('Growth-Model-2'!G255*EXP($AA$7)),0)","v":0},{"$f":"IF(A256<='S2-Double'!$C$7,$AD$6*EXP($AD$7*('S2-Double'!C$7-'Growth-Model-2'!A256)),0)","v":0},196.79609101896818,4.8591627412090908E-2,0,18.467327479743304,0,{"$f":"M256/'S2-Double'!$C$17","v":0},{"$error":"#N/A"},{"$error":"#N/A"},{"$f":"_xlfn.XLOOKUP(B256,FeedTables!$C$17:$T$17,FeedTables!$C$31:$T$31,,-1)","v":{"$error":"#N/A"}},{"$f":"_xlfn.XLOOKUP(Q256,FeedPrice[Feed],FeedPrice[Price per kg],\"Unknown\",0)*O256","v":{"$error":"#N/A"}},{"$error":"#N/A"},{"$f":"_xlfn.XLOOKUP(O256,LabourFromFeed[Feed Quantity (kg)],LabourFromFeed[No. Labour],\"Out of range\",-1)","v":{"$error":"#N/A"}},{"$f":"T256*OperatingCosts!$C$9","v":{"$error":"#N/A"}},{"$error":"#N/A"}]
[255,{"$f":"IF(A257<='S2-Double'!$C$7, B256*EXP((LN((E256/100)+1))*1),)","v":0},{"$f":"_xlfn.XLOOKUP($B257,FeedTables!$C$42:$T$42,FeedTables!$C$44:$T$44,,-1)","v":{"$error":"#N/A"}},{"$f":"_xlfn.XLOOKUP($B257,FeedTables!$C$42:$T$42,FeedTables!$C$45:$T$45,,-1)","v":{"$error":"#N/A"}},{"$f":"_xlfn.XLOOKUP($B257,FeedTables!$C$42:$T$42,FeedTables!$C$46:$T$46,,-1)*_xlfn.XLOOKUP(N256,DensityMultiplier[Biomass kg/m3],DensityMultiplier[Multiplier],,-1)","v":{"$error":"#N/A"}},3853.2039089810314,{"$f":"IF(A257<='S2-Double'!$C$7,('Growth-Model-2'!G256*EXP($AA$7)),0)","v":0},{"$f":"IF(A257<='S2-Double'!$C$7,$AD$6*EXP($AD$7*('S2-Double'!C$7-'Growth-Model-2'!A257)),0)","v":0},196.79609101896818,4.8591627412090908E-2,0,18.467327479743304,0,{"$f":"M257/'S2-Double'!$C$17","v":0},{"$error":"#N/A"},{"$error":"#N/A"},{"$f":"_xlfn.XLOOKUP(B257,FeedTables!$C$17:$T$17,FeedTables!$C$31:$T$31,,-1)","v":{"$error":"#N/A"}},{"$f":"_xlfn.XLOOKUP(Q257,FeedPrice[Feed],FeedPrice[Price per kg],\"Unknown\",0)*O257","v":{"$error":"#N/A"}},{"$error":"#N/A"},{"$f":"_xlfn.XLOOKUP(O257,LabourFromFeed[Feed Quantity (kg)],LabourFromFeed[No. Labour],\"Out of range\",-1)","v":{"$error":"#N/A"}},{"$f":"T257*OperatingCosts!$C$9","v":{"$error":"#N/A"}},{"$error":"#N/A"}]
[256,{"$f":"IF(A258<='S2-Double'!$C$7, B257*EXP((LN((E257/100)+1))*1),)","v":0},{"$f":"_xlfn.XLOOKUP($B258,FeedTables!$C$42:$T$42,FeedTables!$C$44:$T$44,,-1)","v":{"$error":"#N/A"}},{"$f":"_xlfn.XLOOKUP($B258,FeedTables!$C$42:$T$42,FeedTables!$C$45:$T$45,,-1)","v":{"$error":"#N/A"}},{"$f":"_xlfn.XLOOKUP($B258,FeedTables!$C$42:$T$42,FeedTables!$C$46:$T$46,,-1)*_xlfn.XLOOKUP(N257,DensityMultiplier[Biomass kg/m3],DensityMultiplier[Multiplier],,-1)","v":{"$error":"#N/A"}},3853.2039089810314,{"$f":"IF(A258<='S2-Double'!$C$7,('Growth-Model-2'!G257*EXP($AA$7)),0)","v":0},{"$f":"IF(A258<='S2-Double'!$C$7,$AD$6*EXP($AD$7*('S2-Double'!C$7-'Growth-Model-2'!A258)),0)","v":0},196.79609101896818,4.8591627412090908E-2,0,18.467327479743304,0,{"$f":"M258/'S2-Double'!$C$17","v":0},{"$error":"#N/A"},{"$error":"#N/A"},{"$f":"_xlfn.XLOOKUP(B258,FeedTables!$C$17:$T$17,FeedTables!$C$31:$T$31,,-1)","v":{"$error":"#N/A"}},{"$f":"_xlfn.XLOOKUP(Q258,FeedPrice[Feed],FeedPrice[Price per kg],\"Unknown\",0)*O258","v":{"$error":"#N/A"}},{"$error":"#N/A"},{"$f":"_xlfn.XLOOKUP(O258,LabourFromFeed[Feed Quantity (kg)],LabourFromFeed[No. Labour],\"Out of range\",-1)","v":{"$error":"#N/A"}},{"$f":"T258*OperatingCosts!$C$9","v":{"$error":"#N/A"}},{"$error":"#N/A"}]
[257,{"$f":"IF(A259<='S2-Double'!$C$7, B258*EXP((LN((E258/100)+1))*1),)","v":0},{"$f":"_xlfn.XLOOKUP($B259,FeedTables!$C$42:$T$42,FeedTables!$C$44:$T$44,,-1)","v":{"$error":"#N/A"}},{"$f":"_xlfn.XLOOKUP($B259,FeedTables!$C$42:$T$42,FeedTables!$C$45:$T$45,,-1)","v":{"$error":"#N/A"}},{"$f":"_xlfn.XLOOKUP($B259,FeedTables!$C$42:$T$42,FeedTables!$C$46:$T$46,,-1)*_xlfn.XLOOKUP(N258,DensityMultiplier[Biomass kg/m3],DensityMultiplier[Multiplier],,-1)","v":{"$error":"#N/A"}},3853.2039089810314,{"$f":"IF(A259<='S2-Double'!$C$7,('Growth-Model-2'!G258*EXP($AA$7)),0)","v":0},{"$f":"IF(A259<='S2-Double'!$C$7,$AD$6*EXP($AD$7*('S2-Double'!C$7-'Growth-Model-2'!A259)),0)","v":0},196.79609101896818,{"$f":"I259/$F$2","v":4.8591627412090908E-2},{"$f":"(G259+H259)*B259","v":0},18.467327479743304,{"$f":"(B259*F259)/1000","v":0},{"$f":"M259/'S2-Double'!$C$17","v":0},{"$f":"M259*(C259/100)","v":{"$error":"#N/A"}},{"$error":"#N/A"},{"$f":"_xlfn.XLOOKUP(B259,FeedTables!$C$17:$T$17,FeedTables!$C$31:$T$31,,-1)","v":{"$error":"#N/A"}},{"$f":"_xlfn.XLOOKUP(Q259,FeedPrice[Feed],FeedPrice[Price per kg],\"Unknown\",0)*O259","v":{"$error":"#N/A"}},{"$error":"#N/A"},{"$f":"_xlfn.XLOOKUP(O259,LabourFromFeed[Feed Quantity (kg)],LabourFromFeed[No. Labour],\"Out of range\",-1)","v":{"$error":"#N/A"}},{"$f":"T259*OperatingCosts!$C$9","v":{"$error":"#N/A"}},{"$error":"#N/A"}]
[258,{"$f":"IF(A260<='S2-Double'!$C$7, B259*EXP((LN((E259/100)+1))*1),)","v":0},{"$f":"_xlfn.XLOOKUP($B260,FeedTables!$C$42:$T$42,FeedTables!$C$44:$T$44,,-1)","v":{"$error":"#N/A"}},{"$f":"_xlfn.XLOOKUP($B260,FeedTables!$C$42:$T$42,FeedTables!$C$45:$T$45,,-1)","v":{"$error":"#N/A"}},{"$f":"_xlfn.XLOOKUP($B260,FeedTables!$C$42:$T$42,FeedTables!$C$46:$T$46,,-1)*_xlfn.XLOOKUP(N259,DensityMultiplier[Biomass kg/m3],DensityMultiplier[Multiplier],,-1)","v":{"$error":"#N/A"}},{"$f":"F259-G259-H259","v":3853.2039089810314},{"$f":"IF(A260<='S2-Double'!$C$7,('Growth-Model-2'!G259*EXP($AA$7)),0)","v":0},{"$f":"IF(A260<='S2-Double'!$C$7,$AD$6*EXP($AD$7*('S2-Double'!C$7-'Growth-Model-2'!A260)),0)","v":0},{"$f":"I259+G260+H260","v":196.79609101896818},4.8591627412090908E-2,0,{"$f":"(K260/1000)+L259","v":18.467327479743304},0,{"$f":"M260/'S2-Double'!$C$17","v":0},{"$error":"#N/A"},{"$f":"O260+P259","v":{"$error":"#N/A"}},{"$f":"_xlfn.XLOOKUP(B260,FeedTables!$C$17:$T$17,FeedTables!$C$31:$T$31,,-1)","v":{"$error":"#N/A"}},{"$f":"_xlfn.XLOOKUP(Q260,FeedPrice[Feed],FeedPrice[Price per kg],\"Unknown\",0)*O260","v":{"$error":"#N/A"}},{"$f":"R260+S259","v":{"$error":"#N/A"}},{"$f":"_xlfn.XLOOKUP(O260,LabourFromFeed[Feed Quantity (kg)],LabourFromFeed[No. Labour],\"Out of range\",-1)","v":{"$error":"#N/A"}},{"$f":"T260*OperatingCosts!$C$9","v":{"$error":"#N/A"}},{"$f":"U260+V259","v":{"$error":"#N/A"}}]
[259,{"$f":"IF(A261<='S2-Double'!$C$7, B260*EXP((LN((E260/100)+1))*1),)","v":0},{"$f":"_xlfn.XLOOKUP($B261,FeedTables!$C$42:$T$42,FeedTables!$C$44:$T$44,,-1)","v":{"$error":"#N/A"}},{"$f":"_xlfn.XLOOKUP($B261,FeedTables!$C$42:$T$42,FeedTables!$C$45:$T$45,,-1)","v":{"$error":"#N/A"}},{"$f":"_xlfn.XLOOKUP($B261,FeedTables!$C$42:$T$42,FeedTables!$C$46:$T$46,,-1)*_xlfn.XLOOKUP(N260,DensityMultiplier[Biomass kg/m3],DensityMultiplier[Multiplier],,-1)","v":{"$error":"#N/A"}},3853.2039089810314,{"$f":"IF(A261<='S2-Double'!$C$7,('Growth-Model-2'!G260*EXP($AA$7)),0)","v":0},{"$f":"IF(A261<='S2-Double'!$C$7,$AD$6*EXP($AD$7*('S2-Double'!C$7-'Growth-Model-2'!A261)),0)","v":0},196.79609101896818,4.8591627412090908E-2,0,18.467327479743304,0,{"$f":"M261/'S2-Double'!$C$17","v":0},{"$error":"#N/A"},{"$error":"#N/A"},{"$f":"_xlfn.XLOOKUP(B261,FeedTables!$C$17:$T$17,FeedTables!$C$31:$T$31,,-1)","v":{"$error":"#N/A"}},{"$f":"_xlfn.XLOOKUP(Q261,FeedPrice[Feed],FeedPrice[Price per kg],\"Unknown\",0)*O261","v":{"$error":"#N/A"}},{"$error":"#N/A"},{"$f":"_xlfn.XLOOKUP(O261,LabourFromFeed[Feed Quantity (kg)],LabourFromFeed[No. Labour],\"Out of range\",-1)","v":{"$error":"#N/A"}},{"$f":"T261*OperatingCosts!$C$9","v":{"$error":"#N/A"}},{"$error":"#N/A"}]
[260,{"$f":"IF(A262<='S2-Double'!$C$7, B261*EXP((LN((E261/100)+1))*1),)","v":0},{"$f":"_xlfn.XLOOKUP($B262,FeedTables!$C$42:$T$42,FeedTables!$C$44:$T$44,,-1)","v":{"$error":"#N/A"}},{"$f":"_xlfn.XLOOKUP($B262,FeedTables!$C$42:$T$42,FeedTables!$C$45:$T$45,,-1)","v":{"$error":"#N/A"}},{"$f":"_xlfn.XLOOKUP($B262,FeedTables!$C$42:$T$42,FeedTables!$C$46:$T$46,,-1)*_xlfn.XLOOKUP(N261,DensityMultiplier[Biomass kg/m3],DensityMultiplier[Multiplier],,-1)","v":{"$error":"#N/A"}},3853.2039089810314,{"$f":"IF(A262<='S2-Double'!$C$7,('Growth-Model-2'!G261*EXP($AA$7)),0)","v":0},{"$f":"IF(A262<='S2-Double'!$C$7,$AD$6*EXP($AD$7*('S2-Double'!C$7-'Growth-Model-2'!A262)),0)","v":0},196.79609101896818,4.8591627412090908E-2,0,18.467327479743304,0,{"$f":"M262/'S2-Double'!$C$17","v":0},{"$error":"#N/A"},{"$error":"#N/A"},{"$f":"_xlfn.XLOOKUP(B262,FeedTables!$C$17:$T$17,FeedTables!$C$31:$T$31,,-1)","v":{"$error":"#N/A"}},{"$f":"_xlfn.XLOOKUP(Q262,FeedPrice[Feed],FeedPrice[Price per kg],\"Unknown\",0)*O262","v":{"$error":"#N/A"}},{"$error":"#N/A"},{"$f":"_xlfn.XLOOKUP(O262,LabourFromFeed[Feed Quantity (kg)],LabourFromFeed[No. Labour],\"Out of range\",-1)","v":{"$error":"#N/A"}},{"$f":"T262*OperatingCosts!$C$9","v":{"$error":"#N/A"}},{"$error":"#N/A"}]
[261,{"$f":"IF(A263<='S2-Double'!$C$7, B262*EXP((LN((E262/100)+1))*1),)","v":0},{"$f":"_xlfn.XLOOKUP($B263,FeedTables!$C$42:$T$42,FeedTables!$C$44:$T$44,,-1)","v":{"$error":"#N/A"}},{"$f":"_xlfn.XLOOKUP($B263,FeedTables!$C$42:$T$42,FeedTables!$C$45:$T$45,,-1)","v":{"$error":"#N/A"}},{"$f":"_xlfn.XLOOKUP($B263,FeedTables!$C$42:$T$42,FeedTables!$C$46:$T$46,,-1)*_xlfn.XLOOKUP(N262,DensityMultiplier[Biomass kg/m3],DensityMultiplier[Multiplier],,-1)","v":{"$error":"#N/A"}},3853.2039089810314,{"$f":"IF(A263<='S2-Double'!$C$7,('Growth-Model-2'!G262*EXP($AA$7)),0)","v":0},{"$f":"IF(A263<='S2-Double'!$C$7,$AD$6*EXP($AD$7*('S2-Double'!C$7-'Growth-Model-2'!A263)),0)","v":0},196.79609101896818,4.8591627412090908E-2,0,18.467327479743304,0,{"$f":"M263/'S2-Double'!$C$17","v":0},{"$error":"#N/A"},{"$error":"#N/A"},{"$f":"_xlfn.XLOOKUP(B263,FeedTables!$C$17:$T$17,FeedTables!$C$31:$T$31,,-1)","v":{"$error":"#N/A"}},{"$f":"_xlfn.XLOOKUP(Q263,FeedPrice[Feed],FeedPrice[Price per kg],\"Unknown\",0)*O263","v":{"$error":"#N/A"}},{"$error":"#N/A"},{"$f":"_xlfn.XLOOKUP(O263,LabourFromFeed[Feed Quantity (kg)],LabourFromFeed[No. Labour],\"Out of range\",-1)","v":{"$error":"#N/A"}},{"$f":"T263*OperatingCosts!$C$9","v":{"$error":"#N/A"}},{"$error":"#N/A"}]
[262,{"$f":"IF(A264<='S2-Double'!$C$7, B263*EXP((LN((E263/100)+1))*1),)","v":0},{"$f":"_xlfn.XLOOKUP($B264,FeedTables!$C$42:$T$42,FeedTables!$C$44:$T$44,,-1)","v":{"$error":"#N/A"}},{"$f":"_xlfn.XLOOKUP($B264,FeedTables!$C$42:$T$42,FeedTables!$C$45:$T$45,,-1)","v":{"$error":"#N/A"}},{"$f":"_xlfn.XLOOKUP($B264,FeedTables!$C$42:$T$42,FeedTables!$C$46:$T$46,,-1)*_xlfn.XLOOKUP(N263,DensityMultiplier[Biomass kg/m3],DensityMultiplier[Multiplier],,-1)","v":{"$error":"#N/A"}},3853.2039089810314,{"$f":"IF(A264<='S2-Double'!$C$7,('Growth-Model-2'!G263*EXP($AA$7)),0)","v":0},{"$f":"IF(A264<='S2-Double'!$C$7,$AD$6*EXP($AD$7*('S2-Double'!C$7-'Growth-Model-2'!A264)),0)","v":0},196.79609101896818,4.8591627412090908E-2,0,18.467327479743304,0,{"$f":"M264/'S2-Double'!$C$17","v":0},{"$error":"#N/A"},{"$error":"#N/A"},{"$f":"_xlfn.XLOOKUP(B264,FeedTables!$C$17:$T$17,FeedTables!$C$31:$T$31,,-1)","v":{"$error":"#N/A"}},{"$f":"_xlfn.XLOOKUP(Q264,FeedPrice[Feed],FeedPrice[Price per kg],\"Unknown\",0)*O264","v":{"$error":"#N/A"}},{"$error":"#N/A"},{"$f":"_xlfn.XLOOKUP(O264,LabourFromFeed[Feed Quantity (kg)],LabourFromFeed[No. Labour],\"Out of range\",-1)","v":{"$error":"#N/A"}},{"$f":"T264*OperatingCosts!$C$9","v":{"$error":"#N/A"}},{"$error":"#N/A"}]
[263,{"$f":"IF(A265<='S2-Double'!$C$7, B264*EXP((LN((E264/100)+1))*1),)","v":0},{"$f":"_xlfn.XLOOKUP($B265,FeedTables!$C$42:$T$42,FeedTables!$C$44:$T$44,,-1)","v":{"$error":"#N/A"}},{"$f":"_xlfn.XLOOKUP($B265,FeedTables!$C$42:$T$42,FeedTables!$C$45:$T$45,,-1)","v":{"$error":"#N/A"}},{"$f":"_xlfn.XLOOKUP($B265,FeedTables!$C$42:$T$42,FeedTables!$C$46:$T$46,,-1)*_xlfn.XLOOKUP(N264,DensityMultiplier[Biomass kg/m3],DensityMultiplier[Multiplier],,-1)","v":{"$error":"#N/A"}},3853.2039089810314,{"$f":"IF(A265<='S2-Double'!$C$7,('Growth-Model-2'!G264*EXP($AA$7)),0)","v":0},{"$f":"IF(A265<='S2-Double'!$C$7,$AD$6*EXP($AD$7*('S2-Double'!C$7-'Growth-Model-2'!A265)),0)","v":0},196.79609101896818,4.8591627412090908E-2,0,18.467327479743304,0,{"$f":"M265/'S2-Double'!$C$17","v":0},{"$error":"#N/A"},{"$error":"#N/A"},{"$f":"_xlfn.XLOOKUP(B265,FeedTables!$C$17:$T$17,FeedTables!$C$31:$T$31,,-1)","v":{"$error":"#N/A"}},{"$f":"_xlfn.XLOOKUP(Q265,FeedPrice[Feed],FeedPrice[Price per kg],\"Unknown\",0)*O265","v":{"$error":"#N/A"}},{"$error":"#N/A"},{"$f":"_xlfn.XLOOKUP(O265,LabourFromFeed[Feed Quantity (kg)],LabourFromFeed[No. Labour],\"Out of range\",-1)","v":{"$error":"#N/A"}},{"$f":"T265*OperatingCosts!$C$9","v":{"$error":"#N/A"}},{"$error":"#N/A"}]
[264,{"$f":"IF(A266<='S2-Double'!$C$7, B265*EXP((LN((E265/100)+1))*1),)","v":0},{"$f":"_xlfn.XLOOKUP($B266,FeedTables!$C$42:$T$42,FeedTables!$C$44:$T$44,,-1)","v":{"$error":"#N/A"}},{"$f":"_xlfn.XLOOKUP($B266,FeedTables!$C$42:$T$42,FeedTables!$C$45:$T$45,,-1)","v":{"$error":"#N/A"}},{"$f":"_xlfn.XLOOKUP($B266,FeedTables!$C$42:$T$42,FeedTables!$C$46:$T$46,,-1)*_xlfn.XLOOKUP(N265,DensityMultiplier[Biomass kg/m3],DensityMultiplier[Multiplier],,-1)","v":{"$error":"#N/A"}},3853.2039089810314,{"$f":"IF(A266<='S2-Double'!$C$7,('Growth-Model-2'!G265*EXP($AA$7)),0)","v":0},{"$f":"IF(A266<='S2-Double'!$C$7,$AD$6*EXP($AD$7*('S2-Double'!C$7-'Growth-Model-2'!A266)),0)","v":0},196.79609101896818,4.8591627412090908E-2,0,18.467327479743304,0,{"$f":"M266/'S2-Double'!$C$17","v":0},{"$error":"#N/A"},{"$error":"#N/A"},{"$f":"_xlfn.XLOOKUP(B266,FeedTables!$C$17:$T$17,FeedTables!$C$31:$T$31,,-1)","v":{"$error":"#N/A"}},{"$f":"_xlfn.XLOOKUP(Q266,FeedPrice[Feed],FeedPrice[Price per kg],\"Unknown\",0)*O266","v":{"$error":"#N/A"}},{"$error":"#N/A"},{"$f":"_xlfn.XLOOKUP(O266,LabourFromFeed[Feed Quantity (kg)],LabourFromFeed[No. Labour],\"Out of range\",-1)","v":{"$error":"#N/A"}},{"$f":"T266*OperatingCosts!$C$9","v":{"$error":"#N/A"}},{"$error":"#N/A"}]
[265,{"$f":"IF(A267<='S2-Double'!$C$7, B266*EXP((LN((E266/100)+1))*1),)","v":0},{"$f":"_xlfn.XLOOKUP($B267,FeedTables!$C$42:$T$42,FeedTables!$C$44:$T$44,,-1)","v":{"$error":"#N/A"}},{"$f":"_xlfn.XLOOKUP($B267,FeedTables!$C$42:$T$42,FeedTables!$C$45:$T$45,,-1)","v":{"$error":"#N/A"}},{"$f":"_xlfn.XLOOKUP($B267,FeedTables!$C$42:$T$42,FeedTables!$C$46:$T$46,,-1)*_xlfn.XLOOKUP(N266,DensityMultiplier[Biomass kg/m3],DensityMultiplier[Multiplier],,-1)","v":{"$error":"#N/A"}},3853.2039089810314,{"$f":"IF(A267<='S2-Double'!$C$7,('Growth-Model-2'!G266*EXP($AA$7)),0)","v":0},{"$f":"IF(A267<='S2-Double'!$C$7,$AD$6*EXP($AD$7*('S2-Double'!C$7-'Growth-Model-2'!A267)),0)","v":0},196.79609101896818,4.8591627412090908E-2,0,18.467327479743304,0,{"$f":"M267/'S2-Double'!$C$17","v":0},{"$error":"#N/A"},{"$error":"#N/A"},{"$f":"_xlfn.XLOOKUP(B267,FeedTables!$C$17:$T$17,FeedTables!$C$31:$T$31,,-1)","v":{"$error":"#N/A"}},{"$f":"_xlfn.XLOOKUP(Q267,FeedPrice[Feed],FeedPrice[Price per kg],\"Unknown\",0)*O267","v":{"$error":"#N/A"}},{"$error":"#N/A"},{"$f":"_xlfn.XLOOKUP(O267,LabourFromFeed[Feed Quantity (kg)],LabourFromFeed[No. Labour],\"Out of range\",-1)","v":{"$error":"#N/A"}},{"$f":"T267*OperatingCosts!$C$9","v":{"$error":"#N/A"}},{"$error":"#N/A"}]
[266,{"$f":"IF(A268<='S2-Double'!$C$7, B267*EXP((LN((E267/100)+1))*1),)","v":0},{"$f":"_xlfn.XLOOKUP($B268,FeedTables!$C$42:$T$42,FeedTables!$C$44:$T$44,,-1)","v":{"$error":"#N/A"}},{"$f":"_xlfn.XLOOKUP($B268,FeedTables!$C$42:$T$42,FeedTables!$C$45:$T$45,,-1)","v":{"$error":"#N/A"}},{"$f":"_xlfn.XLOOKUP($B268,FeedTables!$C$42:$T$42,FeedTables!$C$46:$T$46,,-1)*_xlfn.XLOOKUP(N267,DensityMultiplier[Biomass kg/m3],DensityMultiplier[Multiplier],,-1)","v":{"$error":"#N/A"}},3853.2039089810314,{"$f":"IF(A268<='S2-Double'!$C$7,('Growth-Model-2'!G267*EXP($AA$7)),0)","v":0},{"$f":"IF(A268<='S2-Double'!$C$7,$AD$6*EXP($AD$7*('S2-Double'!C$7-'Growth-Model-2'!A268)),0)","v":0},196.79609101896818,4.8591627412090908E-2,0,18.467327479743304,0,{"$f":"M268/'S2-Double'!$C$17","v":0},{"$error":"#N/A"},{"$error":"#N/A"},{"$f":"_xlfn.XLOOKUP(B268,FeedTables!$C$17:$T$17,FeedTables!$C$31:$T$31,,-1)","v":{"$error":"#N/A"}},{"$f":"_xlfn.XLOOKUP(Q268,FeedPrice[Feed],FeedPrice[Price per kg],\"Unknown\",0)*O268","v":{"$error":"#N/A"}},{"$error":"#N/A"},{"$f":"_xlfn.XLOOKUP(O268,LabourFromFeed[Feed Quantity (kg)],LabourFromFeed[No. Labour],\"Out of range\",-1)","v":{"$error":"#N/A"}},{"$f":"T268*OperatingCosts!$C$9","v":{"$error":"#N/A"}},{"$error":"#N/A"}]
[267,{"$f":"IF(A269<='S2-Double'!$C$7, B268*EXP((LN((E268/100)+1))*1),)","v":0},{"$f":"_xlfn.XLOOKUP($B269,FeedTables!$C$42:$T$42,FeedTables!$C$44:$T$44,,-1)","v":{"$error":"#N/A"}},{"$f":"_xlfn.XLOOKUP($B269,FeedTables!$C$42:$T$42,FeedTables!$C$45:$T$45,,-1)","v":{"$error":"#N/A"}},{"$f":"_xlfn.XLOOKUP($B269,FeedTables!$C$42:$T$42,FeedTables!$C$46:$T$46,,-1)*_xlfn.XLOOKUP(N268,DensityMultiplier[Biomass kg/m3],DensityMultiplier[Multiplier],,-1)","v":{"$error":"#N/A"}},3853.2039089810314,{"$f":"IF(A269<='S2-Double'!$C$7,('Growth-Model-2'!G268*EXP($AA$7)),0)","v":0},{"$f":"IF(A269<='S2-Double'!$C$7,$AD$6*EXP($AD$7*('S2-Double'!C$7-'Growth-Model-2'!A269)),0)","v":0},196.79609101896818,4.8591627412090908E-2,0,18.467327479743304,0,{"$f":"M269/'S2-Double'!$C$17","v":0},{"$error":"#N/A"},{"$error":"#N/A"},{"$f":"_xlfn.XLOOKUP(B269,FeedTables!$C$17:$T$17,FeedTables!$C$31:$T$31,,-1)","v":{"$error":"#N/A"}},{"$f":"_xlfn.XLOOKUP(Q269,FeedPrice[Feed],FeedPrice[Price per kg],\"Unknown\",0)*O269","v":{"$error":"#N/A"}},{"$error":"#N/A"},{"$f":"_xlfn.XLOOKUP(O269,LabourFromFeed[Feed Quantity (kg)],LabourFromFeed[No. Labour],\"Out of range\",-1)","v":{"$error":"#N/A"}},{"$f":"T269*OperatingCosts!$C$9","v":{"$error":"#N/A"}},{"$error":"#N/A"}]
[268,{"$f":"IF(A270<='S2-Double'!$C$7, B269*EXP((LN((E269/100)+1))*1),)","v":0},{"$f":"_xlfn.XLOOKUP($B270,FeedTables!$C$42:$T$42,FeedTables!$C$44:$T$44,,-1)","v":{"$error":"#N/A"}},{"$f":"_xlfn.XLOOKUP($B270,FeedTables!$C$42:$T$42,FeedTables!$C$45:$T$45,,-1)","v":{"$error":"#N/A"}},{"$f":"_xlfn.XLOOKUP($B270,FeedTables!$C$42:$T$42,FeedTables!$C$46:$T$46,,-1)*_xlfn.XLOOKUP(N269,DensityMultiplier[Biomass kg/m3],DensityMultiplier[Multiplier],,-1)","v":{"$error":"#N/A"}},3853.2039089810314,{"$f":"IF(A270<='S2-Double'!$C$7,('Growth-Model-2'!G269*EXP($AA$7)),0)","v":0},{"$f":"IF(A270<='S2-Double'!$C$7,$AD$6*EXP($AD$7*('S2-Double'!C$7-'Growth-Model-2'!A270)),0)","v":0},196.79609101896818,4.8591627412090908E-2,0,18.467327479743304,0,{"$f":"M270/'S2-Double'!$C$17","v":0},{"$error":"#N/A"},{"$error":"#N/A"},{"$f":"_xlfn.XLOOKUP(B270,FeedTables!$C$17:$T$17,FeedTables!$C$31:$T$31,,-1)","v":{"$error":"#N/A"}},{"$f":"_xlfn.XLOOKUP(Q270,FeedPrice[Feed],FeedPrice[Price per kg],\"Unknown\",0)*O270","v":{"$error":"#N/A"}},{"$error":"#N/A"},{"$f":"_xlfn.XLOOKUP(O270,LabourFromFeed[Feed Quantity (kg)],LabourFromFeed[No. Labour],\"Out of range\",-1)","v":{"$error":"#N/A"}},{"$f":"T270*OperatingCosts!$C$9","v":{"$error":"#N/A"}},{"$error":"#N/A"}]
[269,{"$f":"IF(A271<='S2-Double'!$C$7, B270*EXP((LN((E270/100)+1))*1),)","v":0},{"$f":"_xlfn.XLOOKUP($B271,FeedTables!$C$42:$T$42,FeedTables!$C$44:$T$44,,-1)","v":{"$error":"#N/A"}},{"$f":"_xlfn.XLOOKUP($B271,FeedTables!$C$42:$T$42,FeedTables!$C$45:$T$45,,-1)","v":{"$error":"#N/A"}},{"$f":"_xlfn.XLOOKUP($B271,FeedTables!$C$42:$T$42,FeedTables!$C$46:$T$46,,-1)*_xlfn.XLOOKUP(N270,DensityMultiplier[Biomass kg/m3],DensityMultiplier[Multiplier],,-1)","v":{"$error":"#N/A"}},3853.2039089810314,{"$f":"IF(A271<='S2-Double'!$C$7,('Growth-Model-2'!G270*EXP($AA$7)),0)","v":0},{"$f":"IF(A271<='S2-Double'!$C$7,$AD$6*EXP($AD$7*('S2-Double'!C$7-'Growth-Model-2'!A271)),0)","v":0},196.79609101896818,4.8591627412090908E-2,0,18.467327479743304,0,{"$f":"M271/'S2-Double'!$C$17","v":0},{"$error":"#N/A"},{"$error":"#N/A"},{"$f":"_xlfn.XLOOKUP(B271,FeedTables!$C$17:$T$17,FeedTables!$C$31:$T$31,,-1)","v":{"$error":"#N/A"}},{"$f":"_xlfn.XLOOKUP(Q271,FeedPrice[Feed],FeedPrice[Price per kg],\"Unknown\",0)*O271","v":{"$error":"#N/A"}},{"$error":"#N/A"},{"$f":"_xlfn.XLOOKUP(O271,LabourFromFeed[Feed Quantity (kg)],LabourFromFeed[No. Labour],\"Out of range\",-1)","v":{"$error":"#N/A"}},{"$f":"T271*OperatingCosts!$C$9","v":{"$error":"#N/A"}},{"$error":"#N/A"}]
[270,{"$f":"IF(A272<='S2-Double'!$C$7, B271*EXP((LN((E271/100)+1))*1),)","v":0},{"$f":"_xlfn.XLOOKUP($B272,FeedTables!$C$42:$T$42,FeedTables!$C$44:$T$44,,-1)","v":{"$error":"#N/A"}},{"$f":"_xlfn.XLOOKUP($B272,FeedTables!$C$42:$T$42,FeedTables!$C$45:$T$45,,-1)","v":{"$error":"#N/A"}},{"$f":"_xlfn.XLOOKUP($B272,FeedTables!$C$42:$T$42,FeedTables!$C$46:$T$46,,-1)*_xlfn.XLOOKUP(N271,DensityMultiplier[Biomass kg/m3],DensityMultiplier[Multiplier],,-1)","v":{"$error":"#N/A"}},3853.2039089810314,{"$f":"IF(A272<='S2-Double'!$C$7,('Growth-Model-2'!G271*EXP($AA$7)),0)","v":0},{"$f":"IF(A272<='S2-Double'!$C$7,$AD$6*EXP($AD$7*('S2-Double'!C$7-'Growth-Model-2'!A272)),0)","v":0},196.79609101896818,4.8591627412090908E-2,0,18.467327479743304,0,{"$f":"M272/'S2-Double'!$C$17","v":0},{"$error":"#N/A"},{"$error":"#N/A"},{"$f":"_xlfn.XLOOKUP(B272,FeedTables!$C$17:$T$17,FeedTables!$C$31:$T$31,,-1)","v":{"$error":"#N/A"}},{"$f":"_xlfn.XLOOKUP(Q272,FeedPrice[Feed],FeedPrice[Price per kg],\"Unknown\",0)*O272","v":{"$error":"#N/A"}},{"$error":"#N/A"},{"$f":"_xlfn.XLOOKUP(O272,LabourFromFeed[Feed Quantity (kg)],LabourFromFeed[No. Labour],\"Out of range\",-1)","v":{"$error":"#N/A"}},{"$f":"T272*OperatingCosts!$C$9","v":{"$error":"#N/A"}},{"$error":"#N/A"}]
[271,{"$f":"IF(A273<='S2-Double'!$C$7, B272*EXP((LN((E272/100)+1))*1),)","v":0},{"$f":"_xlfn.XLOOKUP($B273,FeedTables!$C$42:$T$42,FeedTables!$C$44:$T$44,,-1)","v":{"$error":"#N/A"}},{"$f":"_xlfn.XLOOKUP($B273,FeedTables!$C$42:$T$42,FeedTables!$C$45:$T$45,,-1)","v":{"$error":"#N/A"}},{"$f":"_xlfn.XLOOKUP($B273,FeedTables!$C$42:$T$42,FeedTables!$C$46:$T$46,,-1)*_xlfn.XLOOKUP(N272,DensityMultiplier[Biomass kg/m3],DensityMultiplier[Multiplier],,-1)","v":{"$error":"#N/A"}},3853.2039089810314,{"$f":"IF(A273<='S2-Double'!$C$7,('Growth-Model-2'!G272*EXP($AA$7)),0)","v":0},{"$f":"IF(A273<='S2-Double'!$C$7,$AD$6*EXP($AD$7*('S2-Double'!C$7-'Growth-Model-2'!A273)),0)","v":0},196.79609101896818,4.8591627412090908E-2,0,18.467327479743304,0,{"$f":"M273/'S2-Double'!$C$17","v":0},{"$error":"#N/A"},{"$error":"#N/A"},{"$f":"_xlfn.XLOOKUP(B273,FeedTables!$C$17:$T$17,FeedTables!$C$31:$T$31,,-1)","v":{"$error":"#N/A"}},{"$f":"_xlfn.XLOOKUP(Q273,FeedPrice[Feed],FeedPrice[Price per kg],\"Unknown\",0)*O273","v":{"$error":"#N/A"}},{"$error":"#N/A"},{"$f":"_xlfn.XLOOKUP(O273,LabourFromFeed[Feed Quantity (kg)],LabourFromFeed[No. Labour],\"Out of range\",-1)","v":{"$error":"#N/A"}},{"$f":"T273*OperatingCosts!$C$9","v":{"$error":"#N/A"}},{"$error":"#N/A"}]
[272,{"$f":"IF(A274<='S2-Double'!$C$7, B273*EXP((LN((E273/100)+1))*1),)","v":0},{"$f":"_xlfn.XLOOKUP($B274,FeedTables!$C$42:$T$42,FeedTables!$C$44:$T$44,,-1)","v":{"$error":"#N/A"}},{"$f":"_xlfn.XLOOKUP($B274,FeedTables!$C$42:$T$42,FeedTables!$C$45:$T$45,,-1)","v":{"$error":"#N/A"}},{"$f":"_xlfn.XLOOKUP($B274,FeedTables!$C$42:$T$42,FeedTables!$C$46:$T$46,,-1)*_xlfn.XLOOKUP(N273,DensityMultiplier[Biomass kg/m3],DensityMultiplier[Multiplier],,-1)","v":{"$error":"#N/A"}},3853.2039089810314,{"$f":"IF(A274<='S2-Double'!$C$7,('Growth-Model-2'!G273*EXP($AA$7)),0)","v":0},{"$f":"IF(A274<='S2-Double'!$C$7,$AD$6*EXP($AD$7*('S2-Double'!C$7-'Growth-Model-2'!A274)),0)","v":0},196.79609101896818,4.8591627412090908E-2,0,18.467327479743304,0,{"$f":"M274/'S2-Double'!$C$17","v":0},{"$error":"#N/A"},{"$error":"#N/A"},{"$f":"_xlfn.XLOOKUP(B274,FeedTables!$C$17:$T$17,FeedTables!$C$31:$T$31,,-1)","v":{"$error":"#N/A"}},{"$f":"_xlfn.XLOOKUP(Q274,FeedPrice[Feed],FeedPrice[Price per kg],\"Unknown\",0)*O274","v":{"$error":"#N/A"}},{"$error":"#N/A"},{"$f":"_xlfn.XLOOKUP(O274,LabourFromFeed[Feed Quantity (kg)],LabourFromFeed[No. Labour],\"Out of range\",-1)","v":{"$error":"#N/A"}},{"$f":"T274*OperatingCosts!$C$9","v":{"$error":"#N/A"}},{"$error":"#N/A"}]
[273,{"$f":"IF(A275<='S2-Double'!$C$7, B274*EXP((LN((E274/100)+1))*1),)","v":0},{"$f":"_xlfn.XLOOKUP($B275,FeedTables!$C$42:$T$42,FeedTables!$C$44:$T$44,,-1)","v":{"$error":"#N/A"}},{"$f":"_xlfn.XLOOKUP($B275,FeedTables!$C$42:$T$42,FeedTables!$C$45:$T$45,,-1)","v":{"$error":"#N/A"}},{"$f":"_xlfn.XLOOKUP($B275,FeedTables!$C$42:$T$42,FeedTables!$C$46:$T$46,,-1)*_xlfn.XLOOKUP(N274,DensityMultiplier[Biomass kg/m3],DensityMultiplier[Multiplier],,-1)","v":{"$error":"#N/A"}},3853.2039089810314,{"$f":"IF(A275<='S2-Double'!$C$7,('Growth-Model-2'!G274*EXP($AA$7)),0)","v":0},{"$f":"IF(A275<='S2-Double'!$C$7,$AD$6*EXP($AD$7*('S2-Double'!C$7-'Growth-Model-2'!A275)),0)","v":0},196.79609101896818,4.8591627412090908E-2,0,18.467327479743304,0,{"$f":"M275/'S2-Double'!$C$17","v":0},{"$error":"#N/A"},{"$error":"#N/A"},{"$f":"_xlfn.XLOOKUP(B275,FeedTables!$C$17:$T$17,FeedTables!$C$31:$T$31,,-1)","v":{"$error":"#N/A"}},{"$f":"_xlfn.XLOOKUP(Q275,FeedPrice[Feed],FeedPrice[Price per kg],\"Unknown\",0)*O275","v":{"$error":"#N/A"}},{"$error":"#N/A"},{"$f":"_xlfn.XLOOKUP(O275,LabourFromFeed[Feed Quantity (kg)],LabourFromFeed[No. Labour],\"Out of range\",-1)","v":{"$error":"#N/A"}},{"$f":"T275*OperatingCosts!$C$9","v":{"$error":"#N/A"}},{"$error":"#N/A"}]
[274,{"$f":"IF(A276<='S2-Double'!$C$7, B275*EXP((LN((E275/100)+1))*1),)","v":0},{"$f":"_xlfn.XLOOKUP($B276,FeedTables!$C$42:$T$42,FeedTables!$C$44:$T$44,,-1)","v":{"$error":"#N/A"}},{"$f":"_xlfn.XLOOKUP($B276,FeedTables!$C$42:$T$42,FeedTables!$C$45:$T$45,,-1)","v":{"$error":"#N/A"}},{"$f":"_xlfn.XLOOKUP($B276,FeedTables!$C$42:$T$42,FeedTables!$C$46:$T$46,,-1)*_xlfn.XLOOKUP(N275,DensityMultiplier[Biomass kg/m3],DensityMultiplier[Multiplier],,-1)","v":{"$error":"#N/A"}},3853.2039089810314,{"$f":"IF(A276<='S2-Double'!$C$7,('Growth-Model-2'!G275*EXP($AA$7)),0)","v":0},{"$f":"IF(A276<='S2-Double'!$C$7,$AD$6*EXP($AD$7*('S2-Double'!C$7-'Growth-Model-2'!A276)),0)","v":0},196.79609101896818,4.8591627412090908E-2,0,18.467327479743304,0,{"$f":"M276/'S2-Double'!$C$17","v":0},{"$error":"#N/A"},{"$error":"#N/A"},{"$f":"_xlfn.XLOOKUP(B276,FeedTables!$C$17:$T$17,FeedTables!$C$31:$T$31,,-1)","v":{"$error":"#N/A"}},{"$f":"_xlfn.XLOOKUP(Q276,FeedPrice[Feed],FeedPrice[Price per kg],\"Unknown\",0)*O276","v":{"$error":"#N/A"}},{"$error":"#N/A"},{"$f":"_xlfn.XLOOKUP(O276,LabourFromFeed[Feed Quantity (kg)],LabourFromFeed[No. Labour],\"Out of range\",-1)","v":{"$error":"#N/A"}},{"$f":"T276*OperatingCosts!$C$9","v":{"$error":"#N/A"}},{"$error":"#N/A"}]
[275,{"$f":"IF(A277<='S2-Double'!$C$7, B276*EXP((LN((E276/100)+1))*1),)","v":0},{"$f":"_xlfn.XLOOKUP($B277,FeedTables!$C$42:$T$42,FeedTables!$C$44:$T$44,,-1)","v":{"$error":"#N/A"}},{"$f":"_xlfn.XLOOKUP($B277,FeedTables!$C$42:$T$42,FeedTables!$C$45:$T$45,,-1)","v":{"$error":"#N/A"}},{"$f":"_xlfn.XLOOKUP($B277,FeedTables!$C$42:$T$42,FeedTables!$C$46:$T$46,,-1)*_xlfn.XLOOKUP(N276,DensityMultiplier[Biomass kg/m3],DensityMultiplier[Multiplier],,-1)","v":{"$error":"#N/A"}},3853.2039089810314,{"$f":"IF(A277<='S2-Double'!$C$7,('Growth-Model-2'!G276*EXP($AA$7)),0)","v":0},{"$f":"IF(A277<='S2-Double'!$C$7,$AD$6*EXP($AD$7*('S2-Double'!C$7-'Growth-Model-2'!A277)),0)","v":0},196.79609101896818,4.8591627412090908E-2,0,18.467327479743304,0,{"$f":"M277/'S2-Double'!$C$17","v":0},{"$error":"#N/A"},{"$error":"#N/A"},{"$f":"_xlfn.XLOOKUP(B277,FeedTables!$C$17:$T$17,FeedTables!$C$31:$T$31,,-1)","v":{"$error":"#N/A"}},{"$f":"_xlfn.XLOOKUP(Q277,FeedPrice[Feed],FeedPrice[Price per kg],\"Unknown\",0)*O277","v":{"$error":"#N/A"}},{"$error":"#N/A"},{"$f":"_xlfn.XLOOKUP(O277,LabourFromFeed[Feed Quantity (kg)],LabourFromFeed[No. Labour],\"Out of range\",-1)","v":{"$error":"#N/A"}},{"$f":"T277*OperatingCosts!$C$9","v":{"$error":"#N/A"}},{"$error":"#N/A"}]
[276,{"$f":"IF(A278<='S2-Double'!$C$7, B277*EXP((LN((E277/100)+1))*1),)","v":0},{"$f":"_xlfn.XLOOKUP($B278,FeedTables!$C$42:$T$42,FeedTables!$C$44:$T$44,,-1)","v":{"$error":"#N/A"}},{"$f":"_xlfn.XLOOKUP($B278,FeedTables!$C$42:$T$42,FeedTables!$C$45:$T$45,,-1)","v":{"$error":"#N/A"}},{"$f":"_xlfn.XLOOKUP($B278,FeedTables!$C$42:$T$42,FeedTables!$C$46:$T$46,,-1)*_xlfn.XLOOKUP(N277,DensityMultiplier[Biomass kg/m3],DensityMultiplier[Multiplier],,-1)","v":{"$error":"#N/A"}},3853.2039089810314,{"$f":"IF(A278<='S2-Double'!$C$7,('Growth-Model-2'!G277*EXP($AA$7)),0)","v":0},{"$f":"IF(A278<='S2-Double'!$C$7,$AD$6*EXP($AD$7*('S2-Double'!C$7-'Growth-Model-2'!A278)),0)","v":0},196.79609101896818,4.8591627412090908E-2,0,18.467327479743304,0,{"$f":"M278/'S2-Double'!$C$17","v":0},{"$error":"#N/A"},{"$error":"#N/A"},{"$f":"_xlfn.XLOOKUP(B278,FeedTables!$C$17:$T$17,FeedTables!$C$31:$T$31,,-1)","v":{"$error":"#N/A"}},{"$f":"_xlfn.XLOOKUP(Q278,FeedPrice[Feed],FeedPrice[Price per kg],\"Unknown\",0)*O278","v":{"$error":"#N/A"}},{"$error":"#N/A"},{"$f":"_xlfn.XLOOKUP(O278,LabourFromFeed[Feed Quantity (kg)],LabourFromFeed[No. Labour],\"Out of range\",-1)","v":{"$error":"#N/A"}},{"$f":"T278*OperatingCosts!$C$9","v":{"$error":"#N/A"}},{"$error":"#N/A"}]
[277,{"$f":"IF(A279<='S2-Double'!$C$7, B278*EXP((LN((E278/100)+1))*1),)","v":0},{"$f":"_xlfn.XLOOKUP($B279,FeedTables!$C$42:$T$42,FeedTables!$C$44:$T$44,,-1)","v":{"$error":"#N/A"}},{"$f":"_xlfn.XLOOKUP($B279,FeedTables!$C$42:$T$42,FeedTables!$C$45:$T$45,,-1)","v":{"$error":"#N/A"}},{"$f":"_xlfn.XLOOKUP($B279,FeedTables!$C$42:$T$42,FeedTables!$C$46:$T$46,,-1)*_xlfn.XLOOKUP(N278,DensityMultiplier[Biomass kg/m3],DensityMultiplier[Multiplier],,-1)","v":{"$error":"#N/A"}},3853.2039089810314,{"$f":"IF(A279<='S2-Double'!$C$7,('Growth-Model-2'!G278*EXP($AA$7)),0)","v":0},{"$f":"IF(A279<='S2-Double'!$C$7,$AD$6*EXP($AD$7*('S2-Double'!C$7-'Growth-Model-2'!A279)),0)","v":0},196.79609101896818,4.8591627412090908E-2,0,18.467327479743304,0,{"$f":"M279/'S2-Double'!$C$17","v":0},{"$error":"#N/A"},{"$error":"#N/A"},{"$f":"_xlfn.XLOOKUP(B279,FeedTables!$C$17:$T$17,FeedTables!$C$31:$T$31,,-1)","v":{"$error":"#N/A"}},{"$f":"_xlfn.XLOOKUP(Q279,FeedPrice[Feed],FeedPrice[Price per kg],\"Unknown\",0)*O279","v":{"$error":"#N/A"}},{"$error":"#N/A"},{"$f":"_xlfn.XLOOKUP(O279,LabourFromFeed[Feed Quantity (kg)],LabourFromFeed[No. Labour],\"Out of range\",-1)","v":{"$error":"#N/A"}},{"$f":"T279*OperatingCosts!$C$9","v":{"$error":"#N/A"}},{"$error":"#N/A"}]
[278,{"$f":"IF(A280<='S2-Double'!$C$7, B279*EXP((LN((E279/100)+1))*1),)","v":0},{"$f":"_xlfn.XLOOKUP($B280,FeedTables!$C$42:$T$42,FeedTables!$C$44:$T$44,,-1)","v":{"$error":"#N/A"}},{"$f":"_xlfn.XLOOKUP($B280,FeedTables!$C$42:$T$42,FeedTables!$C$45:$T$45,,-1)","v":{"$error":"#N/A"}},{"$f":"_xlfn.XLOOKUP($B280,FeedTables!$C$42:$T$42,FeedTables!$C$46:$T$46,,-1)*_xlfn.XLOOKUP(N279,DensityMultiplier[Biomass kg/m3],DensityMultiplier[Multiplier],,-1)","v":{"$error":"#N/A"}},3853.2039089810314,{"$f":"IF(A280<='S2-Double'!$C$7,('Growth-Model-2'!G279*EXP($AA$7)),0)","v":0},{"$f":"IF(A280<='S2-Double'!$C$7,$AD$6*EXP($AD$7*('S2-Double'!C$7-'Growth-Model-2'!A280)),0)","v":0},196.79609101896818,4.8591627412090908E-2,0,18.467327479743304,0,{"$f":"M280/'S2-Double'!$C$17","v":0},{"$error":"#N/A"},{"$error":"#N/A"},{"$f":"_xlfn.XLOOKUP(B280,FeedTables!$C$17:$T$17,FeedTables!$C$31:$T$31,,-1)","v":{"$error":"#N/A"}},{"$f":"_xlfn.XLOOKUP(Q280,FeedPrice[Feed],FeedPrice[Price per kg],\"Unknown\",0)*O280","v":{"$error":"#N/A"}},{"$error":"#N/A"},{"$f":"_xlfn.XLOOKUP(O280,LabourFromFeed[Feed Quantity (kg)],LabourFromFeed[No. Labour],\"Out of range\",-1)","v":{"$error":"#N/A"}},{"$f":"T280*OperatingCosts!$C$9","v":{"$error":"#N/A"}},{"$error":"#N/A"}]
[279,{"$f":"IF(A281<='S2-Double'!$C$7, B280*EXP((LN((E280/100)+1))*1),)","v":0},{"$f":"_xlfn.XLOOKUP($B281,FeedTables!$C$42:$T$42,FeedTables!$C$44:$T$44,,-1)","v":{"$error":"#N/A"}},{"$f":"_xlfn.XLOOKUP($B281,FeedTables!$C$42:$T$42,FeedTables!$C$45:$T$45,,-1)","v":{"$error":"#N/A"}},{"$f":"_xlfn.XLOOKUP($B281,FeedTables!$C$42:$T$42,FeedTables!$C$46:$T$46,,-1)*_xlfn.XLOOKUP(N280,DensityMultiplier[Biomass kg/m3],DensityMultiplier[Multiplier],,-1)","v":{"$error":"#N/A"}},3853.2039089810314,{"$f":"IF(A281<='S2-Double'!$C$7,('Growth-Model-2'!G280*EXP($AA$7)),0)","v":0},{"$f":"IF(A281<='S2-Double'!$C$7,$AD$6*EXP($AD$7*('S2-Double'!C$7-'Growth-Model-2'!A281)),0)","v":0},196.79609101896818,4.8591627412090908E-2,0,18.467327479743304,0,{"$f":"M281/'S2-Double'!$C$17","v":0},{"$error":"#N/A"},{"$error":"#N/A"},{"$f":"_xlfn.XLOOKUP(B281,FeedTables!$C$17:$T$17,FeedTables!$C$31:$T$31,,-1)","v":{"$error":"#N/A"}},{"$f":"_xlfn.XLOOKUP(Q281,FeedPrice[Feed],FeedPrice[Price per kg],\"Unknown\",0)*O281","v":{"$error":"#N/A"}},{"$error":"#N/A"},{"$f":"_xlfn.XLOOKUP(O281,LabourFromFeed[Feed Quantity (kg)],LabourFromFeed[No. Labour],\"Out of range\",-1)","v":{"$error":"#N/A"}},{"$f":"T281*OperatingCosts!$C$9","v":{"$error":"#N/A"}},{"$error":"#N/A"}]
[280,{"$f":"IF(A282<='S2-Double'!$C$7, B281*EXP((LN((E281/100)+1))*1),)","v":0},{"$f":"_xlfn.XLOOKUP($B282,FeedTables!$C$42:$T$42,FeedTables!$C$44:$T$44,,-1)","v":{"$error":"#N/A"}},{"$f":"_xlfn.XLOOKUP($B282,FeedTables!$C$42:$T$42,FeedTables!$C$45:$T$45,,-1)","v":{"$error":"#N/A"}},{"$f":"_xlfn.XLOOKUP($B282,FeedTables!$C$42:$T$42,FeedTables!$C$46:$T$46,,-1)*_xlfn.XLOOKUP(N281,DensityMultiplier[Biomass kg/m3],DensityMultiplier[Multiplier],,-1)","v":{"$error":"#N/A"}},3853.2039089810314,{"$f":"IF(A282<='S2-Double'!$C$7,('Growth-Model-2'!G281*EXP($AA$7)),0)","v":0},{"$f":"IF(A282<='S2-Double'!$C$7,$AD$6*EXP($AD$7*('S2-Double'!C$7-'Growth-Model-2'!A282)),0)","v":0},196.79609101896818,4.8591627412090908E-2,0,18.467327479743304,0,{"$f":"M282/'S2-Double'!$C$17","v":0},{"$error":"#N/A"},{"$error":"#N/A"},{"$f":"_xlfn.XLOOKUP(B282,FeedTables!$C$17:$T$17,FeedTables!$C$31:$T$31,,-1)","v":{"$error":"#N/A"}},{"$f":"_xlfn.XLOOKUP(Q282,FeedPrice[Feed],FeedPrice[Price per kg],\"Unknown\",0)*O282","v":{"$error":"#N/A"}},{"$error":"#N/A"},{"$f":"_xlfn.XLOOKUP(O282,LabourFromFeed[Feed Quantity (kg)],LabourFromFeed[No. Labour],\"Out of range\",-1)","v":{"$error":"#N/A"}},{"$f":"T282*OperatingCosts!$C$9","v":{"$error":"#N/A"}},{"$error":"#N/A"}]
[281,{"$f":"IF(A283<='S2-Double'!$C$7, B282*EXP((LN((E282/100)+1))*1),)","v":0},{"$f":"_xlfn.XLOOKUP($B283,FeedTables!$C$42:$T$42,FeedTables!$C$44:$T$44,,-1)","v":{"$error":"#N/A"}},{"$f":"_xlfn.XLOOKUP($B283,FeedTables!$C$42:$T$42,FeedTables!$C$45:$T$45,,-1)","v":{"$error":"#N/A"}},{"$f":"_xlfn.XLOOKUP($B283,FeedTables!$C$42:$T$42,FeedTables!$C$46:$T$46,,-1)*_xlfn.XLOOKUP(N282,DensityMultiplier[Biomass kg/m3],DensityMultiplier[Multiplier],,-1)","v":{"$error":"#N/A"}},3853.2039089810314,{"$f":"IF(A283<='S2-Double'!$C$7,('Growth-Model-2'!G282*EXP($AA$7)),0)","v":0},{"$f":"IF(A283<='S2-Double'!$C$7,$AD$6*EXP($AD$7*('S2-Double'!C$7-'Growth-Model-2'!A283)),0)","v":0},196.79609101896818,4.8591627412090908E-2,0,18.467327479743304,0,{"$f":"M283/'S2-Double'!$C$17","v":0},{"$error":"#N/A"},{"$error":"#N/A"},{"$f":"_xlfn.XLOOKUP(B283,FeedTables!$C$17:$T$17,FeedTables!$C$31:$T$31,,-1)","v":{"$error":"#N/A"}},{"$f":"_xlfn.XLOOKUP(Q283,FeedPrice[Feed],FeedPrice[Price per kg],\"Unknown\",0)*O283","v":{"$error":"#N/A"}},{"$error":"#N/A"},{"$f":"_xlfn.XLOOKUP(O283,LabourFromFeed[Feed Quantity (kg)],LabourFromFeed[No. Labour],\"Out of range\",-1)","v":{"$error":"#N/A"}},{"$f":"T283*OperatingCosts!$C$9","v":{"$error":"#N/A"}},{"$error":"#N/A"}]
[282,{"$f":"IF(A284<='S2-Double'!$C$7, B283*EXP((LN((E283/100)+1))*1),)","v":0},{"$f":"_xlfn.XLOOKUP($B284,FeedTables!$C$42:$T$42,FeedTables!$C$44:$T$44,,-1)","v":{"$error":"#N/A"}},{"$f":"_xlfn.XLOOKUP($B284,FeedTables!$C$42:$T$42,FeedTables!$C$45:$T$45,,-1)","v":{"$error":"#N/A"}},{"$f":"_xlfn.XLOOKUP($B284,FeedTables!$C$42:$T$42,FeedTables!$C$46:$T$46,,-1)*_xlfn.XLOOKUP(N283,DensityMultiplier[Biomass kg/m3],DensityMultiplier[Multiplier],,-1)","v":{"$error":"#N/A"}},3853.2039089810314,{"$f":"IF(A284<='S2-Double'!$C$7,('Growth-Model-2'!G283*EXP($AA$7)),0)","v":0},{"$f":"IF(A284<='S2-Double'!$C$7,$AD$6*EXP($AD$7*('S2-Double'!C$7-'Growth-Model-2'!A284)),0)","v":0},196.79609101896818,4.8591627412090908E-2,0,18.467327479743304,0,{"$f":"M284/'S2-Double'!$C$17","v":0},{"$error":"#N/A"},{"$error":"#N/A"},{"$f":"_xlfn.XLOOKUP(B284,FeedTables!$C$17:$T$17,FeedTables!$C$31:$T$31,,-1)","v":{"$error":"#N/A"}},{"$f":"_xlfn.XLOOKUP(Q284,FeedPrice[Feed],FeedPrice[Price per kg],\"Unknown\",0)*O284","v":{"$error":"#N/A"}},{"$error":"#N/A"},{"$f":"_xlfn.XLOOKUP(O284,LabourFromFeed[Feed Quantity (kg)],LabourFromFeed[No. Labour],\"Out of range\",-1)","v":{"$error":"#N/A"}},{"$f":"T284*OperatingCosts!$C$9","v":{"$error":"#N/A"}},{"$error":"#N/A"}]
[283,{"$f":"IF(A285<='S2-Double'!$C$7, B284*EXP((LN((E284/100)+1))*1),)","v":0},{"$f":"_xlfn.XLOOKUP($B285,FeedTables!$C$42:$T$42,FeedTables!$C$44:$T$44,,-1)","v":{"$error":"#N/A"}},{"$f":"_xlfn.XLOOKUP($B285,FeedTables!$C$42:$T$42,FeedTables!$C$45:$T$45,,-1)","v":{"$error":"#N/A"}},{"$f":"_xlfn.XLOOKUP($B285,FeedTables!$C$42:$T$42,FeedTables!$C$46:$T$46,,-1)*_xlfn.XLOOKUP(N284,DensityMultiplier[Biomass kg/m3],DensityMultiplier[Multiplier],,-1)","v":{"$error":"#N/A"}},3853.2039089810314,{"$f":"IF(A285<='S2-Double'!$C$7,('Growth-Model-2'!G284*EXP($AA$7)),0)","v":0},{"$f":"IF(A285<='S2-Double'!$C$7,$AD$6*EXP($AD$7*('S2-Double'!C$7-'Growth-Model-2'!A285)),0)","v":0},196.79609101896818,4.8591627412090908E-2,0,18.467327479743304,0,{"$f":"M285/'S2-Double'!$C$17","v":0},{"$error":"#N/A"},{"$error":"#N/A"},{"$f":"_xlfn.XLOOKUP(B285,FeedTables!$C$17:$T$17,FeedTables!$C$31:$T$31,,-1)","v":{"$error":"#N/A"}},{"$f":"_xlfn.XLOOKUP(Q285,FeedPrice[Feed],FeedPrice[Price per kg],\"Unknown\",0)*O285","v":{"$error":"#N/A"}},{"$error":"#N/A"},{"$f":"_xlfn.XLOOKUP(O285,LabourFromFeed[Feed Quantity (kg)],LabourFromFeed[No. Labour],\"Out of range\",-1)","v":{"$error":"#N/A"}},{"$f":"T285*OperatingCosts!$C$9","v":{"$error":"#N/A"}},{"$error":"#N/A"}]
[284,{"$f":"IF(A286<='S2-Double'!$C$7, B285*EXP((LN((E285/100)+1))*1),)","v":0},{"$f":"_xlfn.XLOOKUP($B286,FeedTables!$C$42:$T$42,FeedTables!$C$44:$T$44,,-1)","v":{"$error":"#N/A"}},{"$f":"_xlfn.XLOOKUP($B286,FeedTables!$C$42:$T$42,FeedTables!$C$45:$T$45,,-1)","v":{"$error":"#N/A"}},{"$f":"_xlfn.XLOOKUP($B286,FeedTables!$C$42:$T$42,FeedTables!$C$46:$T$46,,-1)*_xlfn.XLOOKUP(N285,DensityMultiplier[Biomass kg/m3],DensityMultiplier[Multiplier],,-1)","v":{"$error":"#N/A"}},3853.2039089810314,{"$f":"IF(A286<='S2-Double'!$C$7,('Growth-Model-2'!G285*EXP($AA$7)),0)","v":0},{"$f":"IF(A286<='S2-Double'!$C$7,$AD$6*EXP($AD$7*('S2-Double'!C$7-'Growth-Model-2'!A286)),0)","v":0},196.79609101896818,4.8591627412090908E-2,0,18.467327479743304,0,{"$f":"M286/'S2-Double'!$C$17","v":0},{"$error":"#N/A"},{"$error":"#N/A"},{"$f":"_xlfn.XLOOKUP(B286,FeedTables!$C$17:$T$17,FeedTables!$C$31:$T$31,,-1)","v":{"$error":"#N/A"}},{"$f":"_xlfn.XLOOKUP(Q286,FeedPrice[Feed],FeedPrice[Price per kg],\"Unknown\",0)*O286","v":{"$error":"#N/A"}},{"$error":"#N/A"},{"$f":"_xlfn.XLOOKUP(O286,LabourFromFeed[Feed Quantity (kg)],LabourFromFeed[No. Labour],\"Out of range\",-1)","v":{"$error":"#N/A"}},{"$f":"T286*OperatingCosts!$C$9","v":{"$error":"#N/A"}},{"$error":"#N/A"}]
[285,{"$f":"IF(A287<='S2-Double'!$C$7, B286*EXP((LN((E286/100)+1))*1),)","v":0},{"$f":"_xlfn.XLOOKUP($B287,FeedTables!$C$42:$T$42,FeedTables!$C$44:$T$44,,-1)","v":{"$error":"#N/A"}},{"$f":"_xlfn.XLOOKUP($B287,FeedTables!$C$42:$T$42,FeedTables!$C$45:$T$45,,-1)","v":{"$error":"#N/A"}},{"$f":"_xlfn.XLOOKUP($B287,FeedTables!$C$42:$T$42,FeedTables!$C$46:$T$46,,-1)*_xlfn.XLOOKUP(N286,DensityMultiplier[Biomass kg/m3],DensityMultiplier[Multiplier],,-1)","v":{"$error":"#N/A"}},3853.2039089810314,{"$f":"IF(A287<='S2-Double'!$C$7,('Growth-Model-2'!G286*EXP($AA$7)),0)","v":0},{"$f":"IF(A287<='S2-Double'!$C$7,$AD$6*EXP($AD$7*('S2-Double'!C$7-'Growth-Model-2'!A287)),0)","v":0},196.79609101896818,4.8591627412090908E-2,0,18.467327479743304,0,{"$f":"M287/'S2-Double'!$C$17","v":0},{"$error":"#N/A"},{"$error":"#N/A"},{"$f":"_xlfn.XLOOKUP(B287,FeedTables!$C$17:$T$17,FeedTables!$C$31:$T$31,,-1)","v":{"$error":"#N/A"}},{"$f":"_xlfn.XLOOKUP(Q287,FeedPrice[Feed],FeedPrice[Price per kg],\"Unknown\",0)*O287","v":{"$error":"#N/A"}},{"$error":"#N/A"},{"$f":"_xlfn.XLOOKUP(O287,LabourFromFeed[Feed Quantity (kg)],LabourFromFeed[No. Labour],\"Out of range\",-1)","v":{"$error":"#N/A"}},{"$f":"T287*OperatingCosts!$C$9","v":{"$error":"#N/A"}},{"$error":"#N/A"}]
[286,{"$f":"IF(A288<='S2-Double'!$C$7, B287*EXP((LN((E287/100)+1))*1),)","v":0},{"$f":"_xlfn.XLOOKUP($B288,FeedTables!$C$42:$T$42,FeedTables!$C$44:$T$44,,-1)","v":{"$error":"#N/A"}},{"$f":"_xlfn.XLOOKUP($B288,FeedTables!$C$42:$T$42,FeedTables!$C$45:$T$45,,-1)","v":{"$error":"#N/A"}},{"$f":"_xlfn.XLOOKUP($B288,FeedTables!$C$42:$T$42,FeedTables!$C$46:$T$46,,-1)*_xlfn.XLOOKUP(N287,DensityMultiplier[Biomass kg/m3],DensityMultiplier[Multiplier],,-1)","v":{"$error":"#N/A"}},3853.2039089810314,{"$f":"IF(A288<='S2-Double'!$C$7,('Growth-Model-2'!G287*EXP($AA$7)),0)","v":0},{"$f":"IF(A288<='S2-Double'!$C$7,$AD$6*EXP($AD$7*('S2-Double'!C$7-'Growth-Model-2'!A288)),0)","v":0},196.79609101896818,4.8591627412090908E-2,0,18.467327479743304,0,{"$f":"M288/'S2-Double'!$C$17","v":0},{"$error":"#N/A"},{"$error":"#N/A"},{"$f":"_xlfn.XLOOKUP(B288,FeedTables!$C$17:$T$17,FeedTables!$C$31:$T$31,,-1)","v":{"$error":"#N/A"}},{"$f":"_xlfn.XLOOKUP(Q288,FeedPrice[Feed],FeedPrice[Price per kg],\"Unknown\",0)*O288","v":{"$error":"#N/A"}},{"$error":"#N/A"},{"$f":"_xlfn.XLOOKUP(O288,LabourFromFeed[Feed Quantity (kg)],LabourFromFeed[No. Labour],\"Out of range\",-1)","v":{"$error":"#N/A"}},{"$f":"T288*OperatingCosts!$C$9","v":{"$error":"#N/A"}},{"$error":"#N/A"}]
[287,{"$f":"IF(A289<='S2-Double'!$C$7, B288*EXP((LN((E288/100)+1))*1),)","v":0},{"$f":"_xlfn.XLOOKUP($B289,FeedTables!$C$42:$T$42,FeedTables!$C$44:$T$44,,-1)","v":{"$error":"#N/A"}},{"$f":"_xlfn.XLOOKUP($B289,FeedTables!$C$42:$T$42,FeedTables!$C$45:$T$45,,-1)","v":{"$error":"#N/A"}},{"$f":"_xlfn.XLOOKUP($B289,FeedTables!$C$42:$T$42,FeedTables!$C$46:$T$46,,-1)*_xlfn.XLOOKUP(N288,DensityMultiplier[Biomass kg/m3],DensityMultiplier[Multiplier],,-1)","v":{"$error":"#N/A"}},3853.2039089810314,{"$f":"IF(A289<='S2-Double'!$C$7,('Growth-Model-2'!G288*EXP($AA$7)),0)","v":0},{"$f":"IF(A289<='S2-Double'!$C$7,$AD$6*EXP($AD$7*('S2-Double'!C$7-'Growth-Model-2'!A289)),0)","v":0},196.79609101896818,4.8591627412090908E-2,0,18.467327479743304,0,{"$f":"M289/'S2-Double'!$C$17","v":0},{"$error":"#N/A"},{"$error":"#N/A"},{"$f":"_xlfn.XLOOKUP(B289,FeedTables!$C$17:$T$17,FeedTables!$C$31:$T$31,,-1)","v":{"$error":"#N/A"}},{"$f":"_xlfn.XLOOKUP(Q289,FeedPrice[Feed],FeedPrice[Price per kg],\"Unknown\",0)*O289","v":{"$error":"#N/A"}},{"$error":"#N/A"},{"$f":"_xlfn.XLOOKUP(O289,LabourFromFeed[Feed Quantity (kg)],LabourFromFeed[No. Labour],\"Out of range\",-1)","v":{"$error":"#N/A"}},{"$f":"T289*OperatingCosts!$C$9","v":{"$error":"#N/A"}},{"$error":"#N/A"}]
[288,{"$f":"IF(A290<='S2-Double'!$C$7, B289*EXP((LN((E289/100)+1))*1),)","v":0},{"$f":"_xlfn.XLOOKUP($B290,FeedTables!$C$42:$T$42,FeedTables!$C$44:$T$44,,-1)","v":{"$error":"#N/A"}},{"$f":"_xlfn.XLOOKUP($B290,FeedTables!$C$42:$T$42,FeedTables!$C$45:$T$45,,-1)","v":{"$error":"#N/A"}},{"$f":"_xlfn.XLOOKUP($B290,FeedTables!$C$42:$T$42,FeedTables!$C$46:$T$46,,-1)*_xlfn.XLOOKUP(N289,DensityMultiplier[Biomass kg/m3],DensityMultiplier[Multiplier],,-1)","v":{"$error":"#N/A"}},3853.2039089810314,{"$f":"IF(A290<='S2-Double'!$C$7,('Growth-Model-2'!G289*EXP($AA$7)),0)","v":0},{"$f":"IF(A290<='S2-Double'!$C$7,$AD$6*EXP($AD$7*('S2-Double'!C$7-'Growth-Model-2'!A290)),0)","v":0},196.79609101896818,4.8591627412090908E-2,0,18.467327479743304,0,{"$f":"M290/'S2-Double'!$C$17","v":0},{"$error":"#N/A"},{"$error":"#N/A"},{"$f":"_xlfn.XLOOKUP(B290,FeedTables!$C$17:$T$17,FeedTables!$C$31:$T$31,,-1)","v":{"$error":"#N/A"}},{"$f":"_xlfn.XLOOKUP(Q290,FeedPrice[Feed],FeedPrice[Price per kg],\"Unknown\",0)*O290","v":{"$error":"#N/A"}},{"$error":"#N/A"},{"$f":"_xlfn.XLOOKUP(O290,LabourFromFeed[Feed Quantity (kg)],LabourFromFeed[No. Labour],\"Out of range\",-1)","v":{"$error":"#N/A"}},{"$f":"T290*OperatingCosts!$C$9","v":{"$error":"#N/A"}},{"$error":"#N/A"}]
[289,{"$f":"IF(A291<='S2-Double'!$C$7, B290*EXP((LN((E290/100)+1))*1),)","v":0},{"$f":"_xlfn.XLOOKUP($B291,FeedTables!$C$42:$T$42,FeedTables!$C$44:$T$44,,-1)","v":{"$error":"#N/A"}},{"$f":"_xlfn.XLOOKUP($B291,FeedTables!$C$42:$T$42,FeedTables!$C$45:$T$45,,-1)","v":{"$error":"#N/A"}},{"$f":"_xlfn.XLOOKUP($B291,FeedTables!$C$42:$T$42,FeedTables!$C$46:$T$46,,-1)*_xlfn.XLOOKUP(N290,DensityMultiplier[Biomass kg/m3],DensityMultiplier[Multiplier],,-1)","v":{"$error":"#N/A"}},3853.2039089810314,{"$f":"IF(A291<='S2-Double'!$C$7,('Growth-Model-2'!G290*EXP($AA$7)),0)","v":0},{"$f":"IF(A291<='S2-Double'!$C$7,$AD$6*EXP($AD$7*('S2-Double'!C$7-'Growth-Model-2'!A291)),0)","v":0},196.79609101896818,4.8591627412090908E-2,0,18.467327479743304,0,{"$f":"M291/'S2-Double'!$C$17","v":0},{"$error":"#N/A"},{"$error":"#N/A"},{"$f":"_xlfn.XLOOKUP(B291,FeedTables!$C$17:$T$17,FeedTables!$C$31:$T$31,,-1)","v":{"$error":"#N/A"}},{"$f":"_xlfn.XLOOKUP(Q291,FeedPrice[Feed],FeedPrice[Price per kg],\"Unknown\",0)*O291","v":{"$error":"#N/A"}},{"$error":"#N/A"},{"$f":"_xlfn.XLOOKUP(O291,LabourFromFeed[Feed Quantity (kg)],LabourFromFeed[No. Labour],\"Out of range\",-1)","v":{"$error":"#N/A"}},{"$f":"T291*OperatingCosts!$C$9","v":{"$error":"#N/A"}},{"$error":"#N/A"}]
[290,{"$f":"IF(A292<='S2-Double'!$C$7, B291*EXP((LN((E291/100)+1))*1),)","v":0},{"$f":"_xlfn.XLOOKUP($B292,FeedTables!$C$42:$T$42,FeedTables!$C$44:$T$44,,-1)","v":{"$error":"#N/A"}},{"$f":"_xlfn.XLOOKUP($B292,FeedTables!$C$42:$T$42,FeedTables!$C$45:$T$45,,-1)","v":{"$error":"#N/A"}},{"$f":"_xlfn.XLOOKUP($B292,FeedTables!$C$42:$T$42,FeedTables!$C$46:$T$46,,-1)*_xlfn.XLOOKUP(N291,DensityMultiplier[Biomass kg/m3],DensityMultiplier[Multiplier],,-1)","v":{"$error":"#N/A"}},3853.2039089810314,{"$f":"IF(A292<='S2-Double'!$C$7,('Growth-Model-2'!G291*EXP($AA$7)),0)","v":0},{"$f":"IF(A292<='S2-Double'!$C$7,$AD$6*EXP($AD$7*('S2-Double'!C$7-'Growth-Model-2'!A292)),0)","v":0},196.79609101896818,4.8591627412090908E-2,0,18.467327479743304,0,{"$f":"M292/'S2-Double'!$C$17","v":0},{"$error":"#N/A"},{"$error":"#N/A"},{"$f":"_xlfn.XLOOKUP(B292,FeedTables!$C$17:$T$17,FeedTables!$C$31:$T$31,,-1)","v":{"$error":"#N/A"}},{"$f":"_xlfn.XLOOKUP(Q292,FeedPrice[Feed],FeedPrice[Price per kg],\"Unknown\",0)*O292","v":{"$error":"#N/A"}},{"$error":"#N/A"},{"$f":"_xlfn.XLOOKUP(O292,LabourFromFeed[Feed Quantity (kg)],LabourFromFeed[No. Labour],\"Out of range\",-1)","v":{"$error":"#N/A"}},{"$f":"T292*OperatingCosts!$C$9","v":{"$error":"#N/A"}},{"$error":"#N/A"}]
[291,{"$f":"IF(A293<='S2-Double'!$C$7, B292*EXP((LN((E292/100)+1))*1),)","v":0},{"$f":"_xlfn.XLOOKUP($B293,FeedTables!$C$42:$T$42,FeedTables!$C$44:$T$44,,-1)","v":{"$error":"#N/A"}},{"$f":"_xlfn.XLOOKUP($B293,FeedTables!$C$42:$T$42,FeedTables!$C$45:$T$45,,-1)","v":{"$error":"#N/A"}},{"$f":"_xlfn.XLOOKUP($B293,FeedTables!$C$42:$T$42,FeedTables!$C$46:$T$46,,-1)*_xlfn.XLOOKUP(N292,DensityMultiplier[Biomass kg/m3],DensityMultiplier[Multiplier],,-1)","v":{"$error":"#N/A"}},3853.2039089810314,{"$f":"IF(A293<='S2-Double'!$C$7,('Growth-Model-2'!G292*EXP($AA$7)),0)","v":0},{"$f":"IF(A293<='S2-Double'!$C$7,$AD$6*EXP($AD$7*('S2-Double'!C$7-'Growth-Model-2'!A293)),0)","v":0},196.79609101896818,4.8591627412090908E-2,0,18.467327479743304,0,{"$f":"M293/'S2-Double'!$C$17","v":0},{"$error":"#N/A"},{"$error":"#N/A"},{"$f":"_xlfn.XLOOKUP(B293,FeedTables!$C$17:$T$17,FeedTables!$C$31:$T$31,,-1)","v":{"$error":"#N/A"}},{"$f":"_xlfn.XLOOKUP(Q293,FeedPrice[Feed],FeedPrice[Price per kg],\"Unknown\",0)*O293","v":{"$error":"#N/A"}},{"$error":"#N/A"},{"$f":"_xlfn.XLOOKUP(O293,LabourFromFeed[Feed Quantity (kg)],LabourFromFeed[No. Labour],\"Out of range\",-1)","v":{"$error":"#N/A"}},{"$f":"T293*OperatingCosts!$C$9","v":{"$error":"#N/A"}},{"$error":"#N/A"}]
[292,{"$f":"IF(A294<='S2-Double'!$C$7, B293*EXP((LN((E293/100)+1))*1),)","v":0},{"$f":"_xlfn.XLOOKUP($B294,FeedTables!$C$42:$T$42,FeedTables!$C$44:$T$44,,-1)","v":{"$error":"#N/A"}},{"$f":"_xlfn.XLOOKUP($B294,FeedTables!$C$42:$T$42,FeedTables!$C$45:$T$45,,-1)","v":{"$error":"#N/A"}},{"$f":"_xlfn.XLOOKUP($B294,FeedTables!$C$42:$T$42,FeedTables!$C$46:$T$46,,-1)*_xlfn.XLOOKUP(N293,DensityMultiplier[Biomass kg/m3],DensityMultiplier[Multiplier],,-1)","v":{"$error":"#N/A"}},3853.2039089810314,{"$f":"IF(A294<='S2-Double'!$C$7,('Growth-Model-2'!G293*EXP($AA$7)),0)","v":0},{"$f":"IF(A294<='S2-Double'!$C$7,$AD$6*EXP($AD$7*('S2-Double'!C$7-'Growth-Model-2'!A294)),0)","v":0},196.79609101896818,4.8591627412090908E-2,0,18.467327479743304,0,{"$f":"M294/'S2-Double'!$C$17","v":0},{"$error":"#N/A"},{"$error":"#N/A"},{"$f":"_xlfn.XLOOKUP(B294,FeedTables!$C$17:$T$17,FeedTables!$C$31:$T$31,,-1)","v":{"$error":"#N/A"}},{"$f":"_xlfn.XLOOKUP(Q294,FeedPrice[Feed],FeedPrice[Price per kg],\"Unknown\",0)*O294","v":{"$error":"#N/A"}},{"$error":"#N/A"},{"$f":"_xlfn.XLOOKUP(O294,LabourFromFeed[Feed Quantity (kg)],LabourFromFeed[No. Labour],\"Out of range\",-1)","v":{"$error":"#N/A"}},{"$f":"T294*OperatingCosts!$C$9","v":{"$error":"#N/A"}},{"$error":"#N/A"}]
[293,{"$f":"IF(A295<='S2-Double'!$C$7, B294*EXP((LN((E294/100)+1))*1),)","v":0},{"$f":"_xlfn.XLOOKUP($B295,FeedTables!$C$42:$T$42,FeedTables!$C$44:$T$44,,-1)","v":{"$error":"#N/A"}},{"$f":"_xlfn.XLOOKUP($B295,FeedTables!$C$42:$T$42,FeedTables!$C$45:$T$45,,-1)","v":{"$error":"#N/A"}},{"$f":"_xlfn.XLOOKUP($B295,FeedTables!$C$42:$T$42,FeedTables!$C$46:$T$46,,-1)*_xlfn.XLOOKUP(N294,DensityMultiplier[Biomass kg/m3],DensityMultiplier[Multiplier],,-1)","v":{"$error":"#N/A"}},3853.2039089810314,{"$f":"IF(A295<='S2-Double'!$C$7,('Growth-Model-2'!G294*EXP($AA$7)),0)","v":0},{"$f":"IF(A295<='S2-Double'!$C$7,$AD$6*EXP($AD$7*('S2-Double'!C$7-'Growth-Model-2'!A295)),0)","v":0},196.79609101896818,4.8591627412090908E-2,0,18.467327479743304,0,{"$f":"M295/'S2-Double'!$C$17","v":0},{"$error":"#N/A"},{"$error":"#N/A"},{"$f":"_xlfn.XLOOKUP(B295,FeedTables!$C$17:$T$17,FeedTables!$C$31:$T$31,,-1)","v":{"$error":"#N/A"}},{"$f":"_xlfn.XLOOKUP(Q295,FeedPrice[Feed],FeedPrice[Price per kg],\"Unknown\",0)*O295","v":{"$error":"#N/A"}},{"$error":"#N/A"},{"$f":"_xlfn.XLOOKUP(O295,LabourFromFeed[Feed Quantity (kg)],LabourFromFeed[No. Labour],\"Out of range\",-1)","v":{"$error":"#N/A"}},{"$f":"T295*OperatingCosts!$C$9","v":{"$error":"#N/A"}},{"$error":"#N/A"}]
[294,{"$f":"IF(A296<='S2-Double'!$C$7, B295*EXP((LN((E295/100)+1))*1),)","v":0},{"$f":"_xlfn.XLOOKUP($B296,FeedTables!$C$42:$T$42,FeedTables!$C$44:$T$44,,-1)","v":{"$error":"#N/A"}},{"$f":"_xlfn.XLOOKUP($B296,FeedTables!$C$42:$T$42,FeedTables!$C$45:$T$45,,-1)","v":{"$error":"#N/A"}},{"$f":"_xlfn.XLOOKUP($B296,FeedTables!$C$42:$T$42,FeedTables!$C$46:$T$46,,-1)*_xlfn.XLOOKUP(N295,DensityMultiplier[Biomass kg/m3],DensityMultiplier[Multiplier],,-1)","v":{"$error":"#N/A"}},3853.2039089810314,{"$f":"IF(A296<='S2-Double'!$C$7,('Growth-Model-2'!G295*EXP($AA$7)),0)","v":0},{"$f":"IF(A296<='S2-Double'!$C$7,$AD$6*EXP($AD$7*('S2-Double'!C$7-'Growth-Model-2'!A296)),0)","v":0},196.79609101896818,4.8591627412090908E-2,0,18.467327479743304,0,{"$f":"M296/'S2-Double'!$C$17","v":0},{"$error":"#N/A"},{"$error":"#N/A"},{"$f":"_xlfn.XLOOKUP(B296,FeedTables!$C$17:$T$17,FeedTables!$C$31:$T$31,,-1)","v":{"$error":"#N/A"}},{"$f":"_xlfn.XLOOKUP(Q296,FeedPrice[Feed],FeedPrice[Price per kg],\"Unknown\",0)*O296","v":{"$error":"#N/A"}},{"$error":"#N/A"},{"$f":"_xlfn.XLOOKUP(O296,LabourFromFeed[Feed Quantity (kg)],LabourFromFeed[No. Labour],\"Out of range\",-1)","v":{"$error":"#N/A"}},{"$f":"T296*OperatingCosts!$C$9","v":{"$error":"#N/A"}},{"$error":"#N/A"}]
[295,{"$f":"IF(A297<='S2-Double'!$C$7, B296*EXP((LN((E296/100)+1))*1),)","v":0},{"$f":"_xlfn.XLOOKUP($B297,FeedTables!$C$42:$T$42,FeedTables!$C$44:$T$44,,-1)","v":{"$error":"#N/A"}},{"$f":"_xlfn.XLOOKUP($B297,FeedTables!$C$42:$T$42,FeedTables!$C$45:$T$45,,-1)","v":{"$error":"#N/A"}},{"$f":"_xlfn.XLOOKUP($B297,FeedTables!$C$42:$T$42,FeedTables!$C$46:$T$46,,-1)*_xlfn.XLOOKUP(N296,DensityMultiplier[Biomass kg/m3],DensityMultiplier[Multiplier],,-1)","v":{"$error":"#N/A"}},3853.2039089810314,{"$f":"IF(A297<='S2-Double'!$C$7,('Growth-Model-2'!G296*EXP($AA$7)),0)","v":0},{"$f":"IF(A297<='S2-Double'!$C$7,$AD$6*EXP($AD$7*('S2-Double'!C$7-'Growth-Model-2'!A297)),0)","v":0},196.79609101896818,4.8591627412090908E-2,0,18.467327479743304,0,{"$f":"M297/'S2-Double'!$C$17","v":0},{"$error":"#N/A"},{"$error":"#N/A"},{"$f":"_xlfn.XLOOKUP(B297,FeedTables!$C$17:$T$17,FeedTables!$C$31:$T$31,,-1)","v":{"$error":"#N/A"}},{"$f":"_xlfn.XLOOKUP(Q297,FeedPrice[Feed],FeedPrice[Price per kg],\"Unknown\",0)*O297","v":{"$error":"#N/A"}},{"$error":"#N/A"},{"$f":"_xlfn.XLOOKUP(O297,LabourFromFeed[Feed Quantity (kg)],LabourFromFeed[No. Labour],\"Out of range\",-1)","v":{"$error":"#N/A"}},{"$f":"T297*OperatingCosts!$C$9","v":{"$error":"#N/A"}},{"$error":"#N/A"}]
[296,{"$f":"IF(A298<='S2-Double'!$C$7, B297*EXP((LN((E297/100)+1))*1),)","v":0},{"$f":"_xlfn.XLOOKUP($B298,FeedTables!$C$42:$T$42,FeedTables!$C$44:$T$44,,-1)","v":{"$error":"#N/A"}},{"$f":"_xlfn.XLOOKUP($B298,FeedTables!$C$42:$T$42,FeedTables!$C$45:$T$45,,-1)","v":{"$error":"#N/A"}},{"$f":"_xlfn.XLOOKUP($B298,FeedTables!$C$42:$T$42,FeedTables!$C$46:$T$46,,-1)*_xlfn.XLOOKUP(N297,DensityMultiplier[Biomass kg/m3],DensityMultiplier[Multiplier],,-1)","v":{"$error":"#N/A"}},3853.2039089810314,{"$f":"IF(A298<='S2-Double'!$C$7,('Growth-Model-2'!G297*EXP($AA$7)),0)","v":0},{"$f":"IF(A298<='S2-Double'!$C$7,$AD$6*EXP($AD$7*('S2-Double'!C$7-'Growth-Model-2'!A298)),0)","v":0},196.79609101896818,4.8591627412090908E-2,0,18.467327479743304,0,{"$f":"M298/'S2-Double'!$C$17","v":0},{"$error":"#N/A"},{"$error":"#N/A"},{"$f":"_xlfn.XLOOKUP(B298,FeedTables!$C$17:$T$17,FeedTables!$C$31:$T$31,,-1)","v":{"$error":"#N/A"}},{"$f":"_xlfn.XLOOKUP(Q298,FeedPrice[Feed],FeedPrice[Price per kg],\"Unknown\",0)*O298","v":{"$error":"#N/A"}},{"$error":"#N/A"},{"$f":"_xlfn.XLOOKUP(O298,LabourFromFeed[Feed Quantity (kg)],LabourFromFeed[No. Labour],\"Out of range\",-1)","v":{"$error":"#N/A"}},{"$f":"T298*OperatingCosts!$C$9","v":{"$error":"#N/A"}},{"$error":"#N/A"}]
[297,{"$f":"IF(A299<='S2-Double'!$C$7, B298*EXP((LN((E298/100)+1))*1),)","v":0},{"$f":"_xlfn.XLOOKUP($B299,FeedTables!$C$42:$T$42,FeedTables!$C$44:$T$44,,-1)","v":{"$error":"#N/A"}},{"$f":"_xlfn.XLOOKUP($B299,FeedTables!$C$42:$T$42,FeedTables!$C$45:$T$45,,-1)","v":{"$error":"#N/A"}},{"$f":"_xlfn.XLOOKUP($B299,FeedTables!$C$42:$T$42,FeedTables!$C$46:$T$46,,-1)*_xlfn.XLOOKUP(N298,DensityMultiplier[Biomass kg/m3],DensityMultiplier[Multiplier],,-1)","v":{"$error":"#N/A"}},3853.2039089810314,{"$f":"IF(A299<='S2-Double'!$C$7,('Growth-Model-2'!G298*EXP($AA$7)),0)","v":0},{"$f":"IF(A299<='S2-Double'!$C$7,$AD$6*EXP($AD$7*('S2-Double'!C$7-'Growth-Model-2'!A299)),0)","v":0},196.79609101896818,4.8591627412090908E-2,0,18.467327479743304,0,{"$f":"M299/'S2-Double'!$C$17","v":0},{"$error":"#N/A"},{"$error":"#N/A"},{"$f":"_xlfn.XLOOKUP(B299,FeedTables!$C$17:$T$17,FeedTables!$C$31:$T$31,,-1)","v":{"$error":"#N/A"}},{"$f":"_xlfn.XLOOKUP(Q299,FeedPrice[Feed],FeedPrice[Price per kg],\"Unknown\",0)*O299","v":{"$error":"#N/A"}},{"$error":"#N/A"},{"$f":"_xlfn.XLOOKUP(O299,LabourFromFeed[Feed Quantity (kg)],LabourFromFeed[No. Labour],\"Out of range\",-1)","v":{"$error":"#N/A"}},{"$f":"T299*OperatingCosts!$C$9","v":{"$error":"#N/A"}},{"$error":"#N/A"}]
[298,{"$f":"IF(A300<='S2-Double'!$C$7, B299*EXP((LN((E299/100)+1))*1),)","v":0},{"$f":"_xlfn.XLOOKUP($B300,FeedTables!$C$42:$T$42,FeedTables!$C$44:$T$44,,-1)","v":{"$error":"#N/A"}},{"$f":"_xlfn.XLOOKUP($B300,FeedTables!$C$42:$T$42,FeedTables!$C$45:$T$45,,-1)","v":{"$error":"#N/A"}},{"$f":"_xlfn.XLOOKUP($B300,FeedTables!$C$42:$T$42,FeedTables!$C$46:$T$46,,-1)*_xlfn.XLOOKUP(N299,DensityMultiplier[Biomass kg/m3],DensityMultiplier[Multiplier],,-1)","v":{"$error":"#N/A"}},3853.2039089810314,{"$f":"IF(A300<='S2-Double'!$C$7,('Growth-Model-2'!G299*EXP($AA$7)),0)","v":0},{"$f":"IF(A300<='S2-Double'!$C$7,$AD$6*EXP($AD$7*('S2-Double'!C$7-'Growth-Model-2'!A300)),0)","v":0},196.79609101896818,4.8591627412090908E-2,0,18.467327479743304,0,{"$f":"M300/'S2-Double'!$C$17","v":0},{"$error":"#N/A"},{"$error":"#N/A"},{"$f":"_xlfn.XLOOKUP(B300,FeedTables!$C$17:$T$17,FeedTables!$C$31:$T$31,,-1)","v":{"$error":"#N/A"}},{"$f":"_xlfn.XLOOKUP(Q300,FeedPrice[Feed],FeedPrice[Price per kg],\"Unknown\",0)*O300","v":{"$error":"#N/A"}},{"$error":"#N/A"},{"$f":"_xlfn.XLOOKUP(O300,LabourFromFeed[Feed Quantity (kg)],LabourFromFeed[No. Labour],\"Out of range\",-1)","v":{"$error":"#N/A"}},{"$f":"T300*OperatingCosts!$C$9","v":{"$error":"#N/A"}},{"$error":"#N/A"}]
[299,{"$f":"IF(A301<='S2-Double'!$C$7, B300*EXP((LN((E300/100)+1))*1),)","v":0},{"$f":"_xlfn.XLOOKUP($B301,FeedTables!$C$42:$T$42,FeedTables!$C$44:$T$44,,-1)","v":{"$error":"#N/A"}},{"$f":"_xlfn.XLOOKUP($B301,FeedTables!$C$42:$T$42,FeedTables!$C$45:$T$45,,-1)","v":{"$error":"#N/A"}},{"$f":"_xlfn.XLOOKUP($B301,FeedTables!$C$42:$T$42,FeedTables!$C$46:$T$46,,-1)*_xlfn.XLOOKUP(N300,DensityMultiplier[Biomass kg/m3],DensityMultiplier[Multiplier],,-1)","v":{"$error":"#N/A"}},3853.2039089810314,{"$f":"IF(A301<='S2-Double'!$C$7,('Growth-Model-2'!G300*EXP($AA$7)),0)","v":0},{"$f":"IF(A301<='S2-Double'!$C$7,$AD$6*EXP($AD$7*('S2-Double'!C$7-'Growth-Model-2'!A301)),0)","v":0},196.79609101896818,4.8591627412090908E-2,0,18.467327479743304,0,{"$f":"M301/'S2-Double'!$C$17","v":0},{"$error":"#N/A"},{"$error":"#N/A"},{"$f":"_xlfn.XLOOKUP(B301,FeedTables!$C$17:$T$17,FeedTables!$C$31:$T$31,,-1)","v":{"$error":"#N/A"}},{"$f":"_xlfn.XLOOKUP(Q301,FeedPrice[Feed],FeedPrice[Price per kg],\"Unknown\",0)*O301","v":{"$error":"#N/A"}},{"$error":"#N/A"},{"$f":"_xlfn.XLOOKUP(O301,LabourFromFeed[Feed Quantity (kg)],LabourFromFeed[No. Labour],\"Out of range\",-1)","v":{"$error":"#N/A"}},{"$f":"T301*OperatingCosts!$C$9","v":{"$error":"#N/A"}},{"$error":"#N/A"}]
[300,{"$f":"IF(A302<='S2-Double'!$C$7, B301*EXP((LN((E301/100)+1))*1),)","v":0},{"$f":"_xlfn.XLOOKUP($B302,FeedTables!$C$42:$T$42,FeedTables!$C$44:$T$44,,-1)","v":{"$error":"#N/A"}},{"$f":"_xlfn.XLOOKUP($B302,FeedTables!$C$42:$T$42,FeedTables!$C$45:$T$45,,-1)","v":{"$error":"#N/A"}},{"$f":"_xlfn.XLOOKUP($B302,FeedTables!$C$42:$T$42,FeedTables!$C$46:$T$46,,-1)*_xlfn.XLOOKUP(N301,DensityMultiplier[Biomass kg/m3],DensityMultiplier[Multiplier],,-1)","v":{"$error":"#N/A"}},3853.2039089810314,{"$f":"IF(A302<='S2-Double'!$C$7,('Growth-Model-2'!G301*EXP($AA$7)),0)","v":0},{"$f":"IF(A302<='S2-Double'!$C$7,$AD$6*EXP($AD$7*('S2-Double'!C$7-'Growth-Model-2'!A302)),0)","v":0},196.79609101896818,4.8591627412090908E-2,0,18.467327479743304,0,{"$f":"M302/'S2-Double'!$C$17","v":0},{"$error":"#N/A"},{"$error":"#N/A"},{"$f":"_xlfn.XLOOKUP(B302,FeedTables!$C$17:$T$17,FeedTables!$C$31:$T$31,,-1)","v":{"$error":"#N/A"}},{"$f":"_xlfn.XLOOKUP(Q302,FeedPrice[Feed],FeedPrice[Price per kg],\"Unknown\",0)*O302","v":{"$error":"#N/A"}},{"$error":"#N/A"},{"$f":"_xlfn.XLOOKUP(O302,LabourFromFeed[Feed Quantity (kg)],LabourFromFeed[No. Labour],\"Out of range\",-1)","v":{"$error":"#N/A"}},{"$f":"T302*OperatingCosts!$C$9","v":{"$error":"#N/A"}},{"$error":"#N/A"}]
[301,{"$f":"IF(A303<='S2-Double'!$C$7, B302*EXP((LN((E302/100)+1))*1),)","v":0},{"$f":"_xlfn.XLOOKUP($B303,FeedTables!$C$42:$T$42,FeedTables!$C$44:$T$44,,-1)","v":{"$error":"#N/A"}},{"$f":"_xlfn.XLOOKUP($B303,FeedTables!$C$42:$T$42,FeedTables!$C$45:$T$45,,-1)","v":{"$error":"#N/A"}},{"$f":"_xlfn.XLOOKUP($B303,FeedTables!$C$42:$T$42,FeedTables!$C$46:$T$46,,-1)*_xlfn.XLOOKUP(N302,DensityMultiplier[Biomass kg/m3],DensityMultiplier[Multiplier],,-1)","v":{"$error":"#N/A"}},3853.2039089810314,{"$f":"IF(A303<='S2-Double'!$C$7,('Growth-Model-2'!G302*EXP($AA$7)),0)","v":0},{"$f":"IF(A303<='S2-Double'!$C$7,$AD$6*EXP($AD$7*('S2-Double'!C$7-'Growth-Model-2'!A303)),0)","v":0},196.79609101896818,4.8591627412090908E-2,0,18.467327479743304,0,{"$f":"M303/'S2-Double'!$C$17","v":0},{"$error":"#N/A"},{"$error":"#N/A"},{"$f":"_xlfn.XLOOKUP(B303,FeedTables!$C$17:$T$17,FeedTables!$C$31:$T$31,,-1)","v":{"$error":"#N/A"}},{"$f":"_xlfn.XLOOKUP(Q303,FeedPrice[Feed],FeedPrice[Price per kg],\"Unknown\",0)*O303","v":{"$error":"#N/A"}},{"$error":"#N/A"},{"$f":"_xlfn.XLOOKUP(O303,LabourFromFeed[Feed Quantity (kg)],LabourFromFeed[No. Labour],\"Out of range\",-1)","v":{"$error":"#N/A"}},{"$f":"T303*OperatingCosts!$C$9","v":{"$error":"#N/A"}},{"$error":"#N/A"}]
[302,{"$f":"IF(A304<='S2-Double'!$C$7, B303*EXP((LN((E303/100)+1))*1),)","v":0},{"$f":"_xlfn.XLOOKUP($B304,FeedTables!$C$42:$T$42,FeedTables!$C$44:$T$44,,-1)","v":{"$error":"#N/A"}},{"$f":"_xlfn.XLOOKUP($B304,FeedTables!$C$42:$T$42,FeedTables!$C$45:$T$45,,-1)","v":{"$error":"#N/A"}},{"$f":"_xlfn.XLOOKUP($B304,FeedTables!$C$42:$T$42,FeedTables!$C$46:$T$46,,-1)*_xlfn.XLOOKUP(N303,DensityMultiplier[Biomass kg/m3],DensityMultiplier[Multiplier],,-1)","v":{"$error":"#N/A"}},3853.2039089810314,{"$f":"IF(A304<='S2-Double'!$C$7,('Growth-Model-2'!G303*EXP($AA$7)),0)","v":0},{"$f":"IF(A304<='S2-Double'!$C$7,$AD$6*EXP($AD$7*('S2-Double'!C$7-'Growth-Model-2'!A304)),0)","v":0},196.79609101896818,4.8591627412090908E-2,0,18.467327479743304,0,{"$f":"M304/'S2-Double'!$C$17","v":0},{"$error":"#N/A"},{"$error":"#N/A"},{"$f":"_xlfn.XLOOKUP(B304,FeedTables!$C$17:$T$17,FeedTables!$C$31:$T$31,,-1)","v":{"$error":"#N/A"}},{"$f":"_xlfn.XLOOKUP(Q304,FeedPrice[Feed],FeedPrice[Price per kg],\"Unknown\",0)*O304","v":{"$error":"#N/A"}},{"$error":"#N/A"},{"$f":"_xlfn.XLOOKUP(O304,LabourFromFeed[Feed Quantity (kg)],LabourFromFeed[No. Labour],\"Out of range\",-1)","v":{"$error":"#N/A"}},{"$f":"T304*OperatingCosts!$C$9","v":{"$error":"#N/A"}},{"$error":"#N/A"}]
[303,{"$f":"IF(A305<='S2-Double'!$C$7, B304*EXP((LN((E304/100)+1))*1),)","v":0},{"$f":"_xlfn.XLOOKUP($B305,FeedTables!$C$42:$T$42,FeedTables!$C$44:$T$44,,-1)","v":{"$error":"#N/A"}},{"$f":"_xlfn.XLOOKUP($B305,FeedTables!$C$42:$T$42,FeedTables!$C$45:$T$45,,-1)","v":{"$error":"#N/A"}},{"$f":"_xlfn.XLOOKUP($B305,FeedTables!$C$42:$T$42,FeedTables!$C$46:$T$46,,-1)*_xlfn.XLOOKUP(N304,DensityMultiplier[Biomass kg/m3],DensityMultiplier[Multiplier],,-1)","v":{"$error":"#N/A"}},3853.2039089810314,{"$f":"IF(A305<='S2-Double'!$C$7,('Growth-Model-2'!G304*EXP($AA$7)),0)","v":0},{"$f":"IF(A305<='S2-Double'!$C$7,$AD$6*EXP($AD$7*('S2-Double'!C$7-'Growth-Model-2'!A305)),0)","v":0},196.79609101896818,4.8591627412090908E-2,0,18.467327479743304,0,{"$f":"M305/'S2-Double'!$C$17","v":0},{"$error":"#N/A"},{"$error":"#N/A"},{"$f":"_xlfn.XLOOKUP(B305,FeedTables!$C$17:$T$17,FeedTables!$C$31:$T$31,,-1)","v":{"$error":"#N/A"}},{"$f":"_xlfn.XLOOKUP(Q305,FeedPrice[Feed],FeedPrice[Price per kg],\"Unknown\",0)*O305","v":{"$error":"#N/A"}},{"$error":"#N/A"},{"$f":"_xlfn.XLOOKUP(O305,LabourFromFeed[Feed Quantity (kg)],LabourFromFeed[No. Labour],\"Out of range\",-1)","v":{"$error":"#N/A"}},{"$f":"T305*OperatingCosts!$C$9","v":{"$error":"#N/A"}},{"$error":"#N/A"}]
[304,{"$f":"IF(A306<='S2-Double'!$C$7, B305*EXP((LN((E305/100)+1))*1),)","v":0},{"$f":"_xlfn.XLOOKUP($B306,FeedTables!$C$42:$T$42,FeedTables!$C$44:$T$44,,-1)","v":{"$error":"#N/A"}},{"$f":"_xlfn.XLOOKUP($B306,FeedTables!$C$42:$T$42,FeedTables!$C$45:$T$45,,-1)","v":{"$error":"#N/A"}},{"$f":"_xlfn.XLOOKUP($B306,FeedTables!$C$42:$T$42,FeedTables!$C$46:$T$46,,-1)*_xlfn.XLOOKUP(N305,DensityMultiplier[Biomass kg/m3],DensityMultiplier[Multiplier],,-1)","v":{"$error":"#N/A"}},3853.2039089810314,{"$f":"IF(A306<='S2-Double'!$C$7,('Growth-Model-2'!G305*EXP($AA$7)),0)","v":0},{"$f":"IF(A306<='S2-Double'!$C$7,$AD$6*EXP($AD$7*('S2-Double'!C$7-'Growth-Model-2'!A306)),0)","v":0},196.79609101896818,4.8591627412090908E-2,0,18.467327479743304,0,{"$f":"M306/'S2-Double'!$C$17","v":0},{"$error":"#N/A"},{"$error":"#N/A"},{"$f":"_xlfn.XLOOKUP(B306,FeedTables!$C$17:$T$17,FeedTables!$C$31:$T$31,,-1)","v":{"$error":"#N/A"}},{"$f":"_xlfn.XLOOKUP(Q306,FeedPrice[Feed],FeedPrice[Price per kg],\"Unknown\",0)*O306","v":{"$error":"#N/A"}},{"$error":"#N/A"},{"$f":"_xlfn.XLOOKUP(O306,LabourFromFeed[Feed Quantity (kg)],LabourFromFeed[No. Labour],\"Out of range\",-1)","v":{"$error":"#N/A"}},{"$f":"T306*OperatingCosts!$C$9","v":{"$error":"#N/A"}},{"$error":"#N/A"}]
[305,{"$f":"IF(A307<='S2-Double'!$C$7, B306*EXP((LN((E306/100)+1))*1),)","v":0},{"$f":"_xlfn.XLOOKUP($B307,FeedTables!$C$42:$T$42,FeedTables!$C$44:$T$44,,-1)","v":{"$error":"#N/A"}},{"$f":"_xlfn.XLOOKUP($B307,FeedTables!$C$42:$T$42,FeedTables!$C$45:$T$45,,-1)","v":{"$error":"#N/A"}},{"$f":"_xlfn.XLOOKUP($B307,FeedTables!$C$42:$T$42,FeedTables!$C$46:$T$46,,-1)*_xlfn.XLOOKUP(N306,DensityMultiplier[Biomass kg/m3],DensityMultiplier[Multiplier],,-1)","v":{"$error":"#N/A"}},3853.2039089810314,{"$f":"IF(A307<='S2-Double'!$C$7,('Growth-Model-2'!G306*EXP($AA$7)),0)","v":0},{"$f":"IF(A307<='S2-Double'!$C$7,$AD$6*EXP($AD$7*('S2-Double'!C$7-'Growth-Model-2'!A307)),0)","v":0},196.79609101896818,4.8591627412090908E-2,0,18.467327479743304,0,{"$f":"M307/'S2-Double'!$C$17","v":0},{"$error":"#N/A"},{"$error":"#N/A"},{"$f":"_xlfn.XLOOKUP(B307,FeedTables!$C$17:$T$17,FeedTables!$C$31:$T$31,,-1)","v":{"$error":"#N/A"}},{"$f":"_xlfn.XLOOKUP(Q307,FeedPrice[Feed],FeedPrice[Price per kg],\"Unknown\",0)*O307","v":{"$error":"#N/A"}},{"$error":"#N/A"},{"$f":"_xlfn.XLOOKUP(O307,LabourFromFeed[Feed Quantity (kg)],LabourFromFeed[No. Labour],\"Out of range\",-1)","v":{"$error":"#N/A"}},{"$f":"T307*OperatingCosts!$C$9","v":{"$error":"#N/A"}},{"$error":"#N/A"}]
[306,{"$f":"IF(A308<='S2-Double'!$C$7, B307*EXP((LN((E307/100)+1))*1),)","v":0},{"$f":"_xlfn.XLOOKUP($B308,FeedTables!$C$42:$T$42,FeedTables!$C$44:$T$44,,-1)","v":{"$error":"#N/A"}},{"$f":"_xlfn.XLOOKUP($B308,FeedTables!$C$42:$T$42,FeedTables!$C$45:$T$45,,-1)","v":{"$error":"#N/A"}},{"$f":"_xlfn.XLOOKUP($B308,FeedTables!$C$42:$T$42,FeedTables!$C$46:$T$46,,-1)*_xlfn.XLOOKUP(N307,DensityMultiplier[Biomass kg/m3],DensityMultiplier[Multiplier],,-1)","v":{"$error":"#N/A"}},3853.2039089810314,{"$f":"IF(A308<='S2-Double'!$C$7,('Growth-Model-2'!G307*EXP($AA$7)),0)","v":0},{"$f":"IF(A308<='S2-Double'!$C$7,$AD$6*EXP($AD$7*('S2-Double'!C$7-'Growth-Model-2'!A308)),0)","v":0},196.79609101896818,4.8591627412090908E-2,0,18.467327479743304,0,{"$f":"M308/'S2-Double'!$C$17","v":0},{"$error":"#N/A"},{"$error":"#N/A"},{"$f":"_xlfn.XLOOKUP(B308,FeedTables!$C$17:$T$17,FeedTables!$C$31:$T$31,,-1)","v":{"$error":"#N/A"}},{"$f":"_xlfn.XLOOKUP(Q308,FeedPrice[Feed],FeedPrice[Price per kg],\"Unknown\",0)*O308","v":{"$error":"#N/A"}},{"$error":"#N/A"},{"$f":"_xlfn.XLOOKUP(O308,LabourFromFeed[Feed Quantity (kg)],LabourFromFeed[No. Labour],\"Out of range\",-1)","v":{"$error":"#N/A"}},{"$f":"T308*OperatingCosts!$C$9","v":{"$error":"#N/A"}},{"$error":"#N/A"}]
[307,{"$f":"IF(A309<='S2-Double'!$C$7, B308*EXP((LN((E308/100)+1))*1),)","v":0},{"$f":"_xlfn.XLOOKUP($B309,FeedTables!$C$42:$T$42,FeedTables!$C$44:$T$44,,-1)","v":{"$error":"#N/A"}},{"$f":"_xlfn.XLOOKUP($B309,FeedTables!$C$42:$T$42,FeedTables!$C$45:$T$45,,-1)","v":{"$error":"#N/A"}},{"$f":"_xlfn.XLOOKUP($B309,FeedTables!$C$42:$T$42,FeedTables!$C$46:$T$46,,-1)*_xlfn.XLOOKUP(N308,DensityMultiplier[Biomass kg/m3],DensityMultiplier[Multiplier],,-1)","v":{"$error":"#N/A"}},3853.2039089810314,{"$f":"IF(A309<='S2-Double'!$C$7,('Growth-Model-2'!G308*EXP($AA$7)),0)","v":0},{"$f":"IF(A309<='S2-Double'!$C$7,$AD$6*EXP($AD$7*('S2-Double'!C$7-'Growth-Model-2'!A309)),0)","v":0},196.79609101896818,4.8591627412090908E-2,0,18.467327479743304,0,{"$f":"M309/'S2-Double'!$C$17","v":0},{"$error":"#N/A"},{"$error":"#N/A"},{"$f":"_xlfn.XLOOKUP(B309,FeedTables!$C$17:$T$17,FeedTables!$C$31:$T$31,,-1)","v":{"$error":"#N/A"}},{"$f":"_xlfn.XLOOKUP(Q309,FeedPrice[Feed],FeedPrice[Price per kg],\"Unknown\",0)*O309","v":{"$error":"#N/A"}},{"$error":"#N/A"},{"$f":"_xlfn.XLOOKUP(O309,LabourFromFeed[Feed Quantity (kg)],LabourFromFeed[No. Labour],\"Out of range\",-1)","v":{"$error":"#N/A"}},{"$f":"T309*OperatingCosts!$C$9","v":{"$error":"#N/A"}},{"$error":"#N/A"}]
[308,{"$f":"IF(A310<='S2-Double'!$C$7, B309*EXP((LN((E309/100)+1))*1),)","v":0},{"$f":"_xlfn.XLOOKUP($B310,FeedTables!$C$42:$T$42,FeedTables!$C$44:$T$44,,-1)","v":{"$error":"#N/A"}},{"$f":"_xlfn.XLOOKUP($B310,FeedTables!$C$42:$T$42,FeedTables!$C$45:$T$45,,-1)","v":{"$error":"#N/A"}},{"$f":"_xlfn.XLOOKUP($B310,FeedTables!$C$42:$T$42,FeedTables!$C$46:$T$46,,-1)*_xlfn.XLOOKUP(N309,DensityMultiplier[Biomass kg/m3],DensityMultiplier[Multiplier],,-1)","v":{"$error":"#N/A"}},3853.2039089810314,{"$f":"IF(A310<='S2-Double'!$C$7,('Growth-Model-2'!G309*EXP($AA$7)),0)","v":0},{"$f":"IF(A310<='S2-Double'!$C$7,$AD$6*EXP($AD$7*('S2-Double'!C$7-'Growth-Model-2'!A310)),0)","v":0},196.79609101896818,4.8591627412090908E-2,0,18.467327479743304,0,{"$f":"M310/'S2-Double'!$C$17","v":0},{"$error":"#N/A"},{"$error":"#N/A"},{"$f":"_xlfn.XLOOKUP(B310,FeedTables!$C$17:$T$17,FeedTables!$C$31:$T$31,,-1)","v":{"$error":"#N/A"}},{"$f":"_xlfn.XLOOKUP(Q310,FeedPrice[Feed],FeedPrice[Price per kg],\"Unknown\",0)*O310","v":{"$error":"#N/A"}},{"$error":"#N/A"},{"$f":"_xlfn.XLOOKUP(O310,LabourFromFeed[Feed Quantity (kg)],LabourFromFeed[No. Labour],\"Out of range\",-1)","v":{"$error":"#N/A"}},{"$f":"T310*OperatingCosts!$C$9","v":{"$error":"#N/A"}},{"$error":"#N/A"}]
[309,{"$f":"IF(A311<='S2-Double'!$C$7, B310*EXP((LN((E310/100)+1))*1),)","v":0},{"$f":"_xlfn.XLOOKUP($B311,FeedTables!$C$42:$T$42,FeedTables!$C$44:$T$44,,-1)","v":{"$error":"#N/A"}},{"$f":"_xlfn.XLOOKUP($B311,FeedTables!$C$42:$T$42,FeedTables!$C$45:$T$45,,-1)","v":{"$error":"#N/A"}},{"$f":"_xlfn.XLOOKUP($B311,FeedTables!$C$42:$T$42,FeedTables!$C$46:$T$46,,-1)*_xlfn.XLOOKUP(N310,DensityMultiplier[Biomass kg/m3],DensityMultiplier[Multiplier],,-1)","v":{"$error":"#N/A"}},3853.2039089810314,{"$f":"IF(A311<='S2-Double'!$C$7,('Growth-Model-2'!G310*EXP($AA$7)),0)","v":0},{"$f":"IF(A311<='S2-Double'!$C$7,$AD$6*EXP($AD$7*('S2-Double'!C$7-'Growth-Model-2'!A311)),0)","v":0},196.79609101896818,4.8591627412090908E-2,0,18.467327479743304,0,{"$f":"M311/'S2-Double'!$C$17","v":0},{"$error":"#N/A"},{"$error":"#N/A"},{"$f":"_xlfn.XLOOKUP(B311,FeedTables!$C$17:$T$17,FeedTables!$C$31:$T$31,,-1)","v":{"$error":"#N/A"}},{"$f":"_xlfn.XLOOKUP(Q311,FeedPrice[Feed],FeedPrice[Price per kg],\"Unknown\",0)*O311","v":{"$error":"#N/A"}},{"$error":"#N/A"},{"$f":"_xlfn.XLOOKUP(O311,LabourFromFeed[Feed Quantity (kg)],LabourFromFeed[No. Labour],\"Out of range\",-1)","v":{"$error":"#N/A"}},{"$f":"T311*OperatingCosts!$C$9","v":{"$error":"#N/A"}},{"$error":"#N/A"}]
[310,{"$f":"IF(A312<='S2-Double'!$C$7, B311*EXP((LN((E311/100)+1))*1),)","v":0},{"$f":"_xlfn.XLOOKUP($B312,FeedTables!$C$42:$T$42,FeedTables!$C$44:$T$44,,-1)","v":{"$error":"#N/A"}},{"$f":"_xlfn.XLOOKUP($B312,FeedTables!$C$42:$T$42,FeedTables!$C$45:$T$45,,-1)","v":{"$error":"#N/A"}},{"$f":"_xlfn.XLOOKUP($B312,FeedTables!$C$42:$T$42,FeedTables!$C$46:$T$46,,-1)*_xlfn.XLOOKUP(N311,DensityMultiplier[Biomass kg/m3],DensityMultiplier[Multiplier],,-1)","v":{"$error":"#N/A"}},3853.2039089810314,{"$f":"IF(A312<='S2-Double'!$C$7,('Growth-Model-2'!G311*EXP($AA$7)),0)","v":0},{"$f":"IF(A312<='S2-Double'!$C$7,$AD$6*EXP($AD$7*('S2-Double'!C$7-'Growth-Model-2'!A312)),0)","v":0},196.79609101896818,4.8591627412090908E-2,0,18.467327479743304,0,{"$f":"M312/'S2-Double'!$C$17","v":0},{"$error":"#N/A"},{"$error":"#N/A"},{"$f":"_xlfn.XLOOKUP(B312,FeedTables!$C$17:$T$17,FeedTables!$C$31:$T$31,,-1)","v":{"$error":"#N/A"}},{"$f":"_xlfn.XLOOKUP(Q312,FeedPrice[Feed],FeedPrice[Price per kg],\"Unknown\",0)*O312","v":{"$error":"#N/A"}},{"$error":"#N/A"},{"$f":"_xlfn.XLOOKUP(O312,LabourFromFeed[Feed Quantity (kg)],LabourFromFeed[No. Labour],\"Out of range\",-1)","v":{"$error":"#N/A"}},{"$f":"T312*OperatingCosts!$C$9","v":{"$error":"#N/A"}},{"$error":"#N/A"}]
[311,{"$f":"IF(A313<='S2-Double'!$C$7, B312*EXP((LN((E312/100)+1))*1),)","v":0},{"$f":"_xlfn.XLOOKUP($B313,FeedTables!$C$42:$T$42,FeedTables!$C$44:$T$44,,-1)","v":{"$error":"#N/A"}},{"$f":"_xlfn.XLOOKUP($B313,FeedTables!$C$42:$T$42,FeedTables!$C$45:$T$45,,-1)","v":{"$error":"#N/A"}},{"$f":"_xlfn.XLOOKUP($B313,FeedTables!$C$42:$T$42,FeedTables!$C$46:$T$46,,-1)*_xlfn.XLOOKUP(N312,DensityMultiplier[Biomass kg/m3],DensityMultiplier[Multiplier],,-1)","v":{"$error":"#N/A"}},3853.2039089810314,{"$f":"IF(A313<='S2-Double'!$C$7,('Growth-Model-2'!G312*EXP($AA$7)),0)","v":0},{"$f":"IF(A313<='S2-Double'!$C$7,$AD$6*EXP($AD$7*('S2-Double'!C$7-'Growth-Model-2'!A313)),0)","v":0},196.79609101896818,4.8591627412090908E-2,0,18.467327479743304,0,{"$f":"M313/'S2-Double'!$C$17","v":0},{"$error":"#N/A"},{"$error":"#N/A"},{"$f":"_xlfn.XLOOKUP(B313,FeedTables!$C$17:$T$17,FeedTables!$C$31:$T$31,,-1)","v":{"$error":"#N/A"}},{"$f":"_xlfn.XLOOKUP(Q313,FeedPrice[Feed],FeedPrice[Price per kg],\"Unknown\",0)*O313","v":{"$error":"#N/A"}},{"$error":"#N/A"},{"$f":"_xlfn.XLOOKUP(O313,LabourFromFeed[Feed Quantity (kg)],LabourFromFeed[No. Labour],\"Out of range\",-1)","v":{"$error":"#N/A"}},{"$f":"T313*OperatingCosts!$C$9","v":{"$error":"#N/A"}},{"$error":"#N/A"}]
[312,{"$f":"IF(A314<='S2-Double'!$C$7, B313*EXP((LN((E313/100)+1))*1),)","v":0},{"$f":"_xlfn.XLOOKUP($B314,FeedTables!$C$42:$T$42,FeedTables!$C$44:$T$44,,-1)","v":{"$error":"#N/A"}},{"$f":"_xlfn.XLOOKUP($B314,FeedTables!$C$42:$T$42,FeedTables!$C$45:$T$45,,-1)","v":{"$error":"#N/A"}},{"$f":"_xlfn.XLOOKUP($B314,FeedTables!$C$42:$T$42,FeedTables!$C$46:$T$46,,-1)*_xlfn.XLOOKUP(N313,DensityMultiplier[Biomass kg/m3],DensityMultiplier[Multiplier],,-1)","v":{"$error":"#N/A"}},3853.2039089810314,{"$f":"IF(A314<='S2-Double'!$C$7,('Growth-Model-2'!G313*EXP($AA$7)),0)","v":0},{"$f":"IF(A314<='S2-Double'!$C$7,$AD$6*EXP($AD$7*('S2-Double'!C$7-'Growth-Model-2'!A314)),0)","v":0},196.79609101896818,4.8591627412090908E-2,0,18.467327479743304,0,{"$f":"M314/'S2-Double'!$C$17","v":0},{"$error":"#N/A"},{"$error":"#N/A"},{"$f":"_xlfn.XLOOKUP(B314,FeedTables!$C$17:$T$17,FeedTables!$C$31:$T$31,,-1)","v":{"$error":"#N/A"}},{"$f":"_xlfn.XLOOKUP(Q314,FeedPrice[Feed],FeedPrice[Price per kg],\"Unknown\",0)*O314","v":{"$error":"#N/A"}},{"$error":"#N/A"},{"$f":"_xlfn.XLOOKUP(O314,LabourFromFeed[Feed Quantity (kg)],LabourFromFeed[No. Labour],\"Out of range\",-1)","v":{"$error":"#N/A"}},{"$f":"T314*OperatingCosts!$C$9","v":{"$error":"#N/A"}},{"$error":"#N/A"}]
[313,{"$f":"IF(A315<='S2-Double'!$C$7, B314*EXP((LN((E314/100)+1))*1),)","v":0},{"$f":"_xlfn.XLOOKUP($B315,FeedTables!$C$42:$T$42,FeedTables!$C$44:$T$44,,-1)","v":{"$error":"#N/A"}},{"$f":"_xlfn.XLOOKUP($B315,FeedTables!$C$42:$T$42,FeedTables!$C$45:$T$45,,-1)","v":{"$error":"#N/A"}},{"$f":"_xlfn.XLOOKUP($B315,FeedTables!$C$42:$T$42,FeedTables!$C$46:$T$46,,-1)*_xlfn.XLOOKUP(N314,DensityMultiplier[Biomass kg/m3],DensityMultiplier[Multiplier],,-1)","v":{"$error":"#N/A"}},3853.2039089810314,{"$f":"IF(A315<='S2-Double'!$C$7,('Growth-Model-2'!G314*EXP($AA$7)),0)","v":0},{"$f":"IF(A315<='S2-Double'!$C$7,$AD$6*EXP($AD$7*('S2-Double'!C$7-'Growth-Model-2'!A315)),0)","v":0},196.79609101896818,4.8591627412090908E-2,0,18.467327479743304,0,{"$f":"M315/'S2-Double'!$C$17","v":0},{"$error":"#N/A"},{"$error":"#N/A"},{"$f":"_xlfn.XLOOKUP(B315,FeedTables!$C$17:$T$17,FeedTables!$C$31:$T$31,,-1)","v":{"$error":"#N/A"}},{"$f":"_xlfn.XLOOKUP(Q315,FeedPrice[Feed],FeedPrice[Price per kg],\"Unknown\",0)*O315","v":{"$error":"#N/A"}},{"$error":"#N/A"},{"$f":"_xlfn.XLOOKUP(O315,LabourFromFeed[Feed Quantity (kg)],LabourFromFeed[No. Labour],\"Out of range\",-1)","v":{"$error":"#N/A"}},{"$f":"T315*OperatingCosts!$C$9","v":{"$error":"#N/A"}},{"$error":"#N/A"}]
[314,{"$f":"IF(A316<='S2-Double'!$C$7, B315*EXP((LN((E315/100)+1))*1),)","v":0},{"$f":"_xlfn.XLOOKUP($B316,FeedTables!$C$42:$T$42,FeedTables!$C$44:$T$44,,-1)","v":{"$error":"#N/A"}},{"$f":"_xlfn.XLOOKUP($B316,FeedTables!$C$42:$T$42,FeedTables!$C$45:$T$45,,-1)","v":{"$error":"#N/A"}},{"$f":"_xlfn.XLOOKUP($B316,FeedTables!$C$42:$T$42,FeedTables!$C$46:$T$46,,-1)*_xlfn.XLOOKUP(N315,DensityMultiplier[Biomass kg/m3],DensityMultiplier[Multiplier],,-1)","v":{"$error":"#N/A"}},3853.2039089810314,{"$f":"IF(A316<='S2-Double'!$C$7,('Growth-Model-2'!G315*EXP($AA$7)),0)","v":0},{"$f":"IF(A316<='S2-Double'!$C$7,$AD$6*EXP($AD$7*('S2-Double'!C$7-'Growth-Model-2'!A316)),0)","v":0},196.79609101896818,4.8591627412090908E-2,0,18.467327479743304,0,{"$f":"M316/'S2-Double'!$C$17","v":0},{"$error":"#N/A"},{"$error":"#N/A"},{"$f":"_xlfn.XLOOKUP(B316,FeedTables!$C$17:$T$17,FeedTables!$C$31:$T$31,,-1)","v":{"$error":"#N/A"}},{"$f":"_xlfn.XLOOKUP(Q316,FeedPrice[Feed],FeedPrice[Price per kg],\"Unknown\",0)*O316","v":{"$error":"#N/A"}},{"$error":"#N/A"},{"$f":"_xlfn.XLOOKUP(O316,LabourFromFeed[Feed Quantity (kg)],LabourFromFeed[No. Labour],\"Out of range\",-1)","v":{"$error":"#N/A"}},{"$f":"T316*OperatingCosts!$C$9","v":{"$error":"#N/A"}},{"$error":"#N/A"}]
[315,{"$f":"IF(A317<='S2-Double'!$C$7, B316*EXP((LN((E316/100)+1))*1),)","v":0},{"$f":"_xlfn.XLOOKUP($B317,FeedTables!$C$42:$T$42,FeedTables!$C$44:$T$44,,-1)","v":{"$error":"#N/A"}},{"$f":"_xlfn.XLOOKUP($B317,FeedTables!$C$42:$T$42,FeedTables!$C$45:$T$45,,-1)","v":{"$error":"#N/A"}},{"$f":"_xlfn.XLOOKUP($B317,FeedTables!$C$42:$T$42,FeedTables!$C$46:$T$46,,-1)*_xlfn.XLOOKUP(N316,DensityMultiplier[Biomass kg/m3],DensityMultiplier[Multiplier],,-1)","v":{"$error":"#N/A"}},3853.2039089810314,{"$f":"IF(A317<='S2-Double'!$C$7,('Growth-Model-2'!G316*EXP($AA$7)),0)","v":0},{"$f":"IF(A317<='S2-Double'!$C$7,$AD$6*EXP($AD$7*('S2-Double'!C$7-'Growth-Model-2'!A317)),0)","v":0},196.79609101896818,4.8591627412090908E-2,0,18.467327479743304,0,{"$f":"M317/'S2-Double'!$C$17","v":0},{"$error":"#N/A"},{"$error":"#N/A"},{"$f":"_xlfn.XLOOKUP(B317,FeedTables!$C$17:$T$17,FeedTables!$C$31:$T$31,,-1)","v":{"$error":"#N/A"}},{"$f":"_xlfn.XLOOKUP(Q317,FeedPrice[Feed],FeedPrice[Price per kg],\"Unknown\",0)*O317","v":{"$error":"#N/A"}},{"$error":"#N/A"},{"$f":"_xlfn.XLOOKUP(O317,LabourFromFeed[Feed Quantity (kg)],LabourFromFeed[No. Labour],\"Out of range\",-1)","v":{"$error":"#N/A"}},{"$f":"T317*OperatingCosts!$C$9","v":{"$error":"#N/A"}},{"$error":"#N/A"}]
[316,{"$f":"IF(A318<='S2-Double'!$C$7, B317*EXP((LN((E317/100)+1))*1),)","v":0},{"$f":"_xlfn.XLOOKUP($B318,FeedTables!$C$42:$T$42,FeedTables!$C$44:$T$44,,-1)","v":{"$error":"#N/A"}},{"$f":"_xlfn.XLOOKUP($B318,FeedTables!$C$42:$T$42,FeedTables!$C$45:$T$45,,-1)","v":{"$error":"#N/A"}},{"$f":"_xlfn.XLOOKUP($B318,FeedTables!$C$42:$T$42,FeedTables!$C$46:$T$46,,-1)*_xlfn.XLOOKUP(N317,DensityMultiplier[Biomass kg/m3],DensityMultiplier[Multiplier],,-1)","v":{"$error":"#N/A"}},3853.2039089810314,{"$f":"IF(A318<='S2-Double'!$C$7,('Growth-Model-2'!G317*EXP($AA$7)),0)","v":0},{"$f":"IF(A318<='S2-Double'!$C$7,$AD$6*EXP($AD$7*('S2-Double'!C$7-'Growth-Model-2'!A318)),0)","v":0},196.79609101896818,4.8591627412090908E-2,0,18.467327479743304,0,{"$f":"M318/'S2-Double'!$C$17","v":0},{"$error":"#N/A"},{"$error":"#N/A"},{"$f":"_xlfn.XLOOKUP(B318,FeedTables!$C$17:$T$17,FeedTables!$C$31:$T$31,,-1)","v":{"$error":"#N/A"}},{"$f":"_xlfn.XLOOKUP(Q318,FeedPrice[Feed],FeedPrice[Price per kg],\"Unknown\",0)*O318","v":{"$error":"#N/A"}},{"$error":"#N/A"},{"$f":"_xlfn.XLOOKUP(O318,LabourFromFeed[Feed Quantity (kg)],LabourFromFeed[No. Labour],\"Out of range\",-1)","v":{"$error":"#N/A"}},{"$f":"T318*OperatingCosts!$C$9","v":{"$error":"#N/A"}},{"$error":"#N/A"}]
[317,{"$f":"IF(A319<='S2-Double'!$C$7, B318*EXP((LN((E318/100)+1))*1),)","v":0},{"$f":"_xlfn.XLOOKUP($B319,FeedTables!$C$42:$T$42,FeedTables!$C$44:$T$44,,-1)","v":{"$error":"#N/A"}},{"$f":"_xlfn.XLOOKUP($B319,FeedTables!$C$42:$T$42,FeedTables!$C$45:$T$45,,-1)","v":{"$error":"#N/A"}},{"$f":"_xlfn.XLOOKUP($B319,FeedTables!$C$42:$T$42,FeedTables!$C$46:$T$46,,-1)*_xlfn.XLOOKUP(N318,DensityMultiplier[Biomass kg/m3],DensityMultiplier[Multiplier],,-1)","v":{"$error":"#N/A"}},3853.2039089810314,{"$f":"IF(A319<='S2-Double'!$C$7,('Growth-Model-2'!G318*EXP($AA$7)),0)","v":0},{"$f":"IF(A319<='S2-Double'!$C$7,$AD$6*EXP($AD$7*('S2-Double'!C$7-'Growth-Model-2'!A319)),0)","v":0},196.79609101896818,4.8591627412090908E-2,0,18.467327479743304,0,{"$f":"M319/'S2-Double'!$C$17","v":0},{"$error":"#N/A"},{"$error":"#N/A"},{"$f":"_xlfn.XLOOKUP(B319,FeedTables!$C$17:$T$17,FeedTables!$C$31:$T$31,,-1)","v":{"$error":"#N/A"}},{"$f":"_xlfn.XLOOKUP(Q319,FeedPrice[Feed],FeedPrice[Price per kg],\"Unknown\",0)*O319","v":{"$error":"#N/A"}},{"$error":"#N/A"},{"$f":"_xlfn.XLOOKUP(O319,LabourFromFeed[Feed Quantity (kg)],LabourFromFeed[No. Labour],\"Out of range\",-1)","v":{"$error":"#N/A"}},{"$f":"T319*OperatingCosts!$C$9","v":{"$error":"#N/A"}},{"$error":"#N/A"}]
[318,{"$f":"IF(A320<='S2-Double'!$C$7, B319*EXP((LN((E319/100)+1))*1),)","v":0},{"$f":"_xlfn.XLOOKUP($B320,FeedTables!$C$42:$T$42,FeedTables!$C$44:$T$44,,-1)","v":{"$error":"#N/A"}},{"$f":"_xlfn.XLOOKUP($B320,FeedTables!$C$42:$T$42,FeedTables!$C$45:$T$45,,-1)","v":{"$error":"#N/A"}},{"$f":"_xlfn.XLOOKUP($B320,FeedTables!$C$42:$T$42,FeedTables!$C$46:$T$46,,-1)*_xlfn.XLOOKUP(N319,DensityMultiplier[Biomass kg/m3],DensityMultiplier[Multiplier],,-1)","v":{"$error":"#N/A"}},3853.2039089810314,{"$f":"IF(A320<='S2-Double'!$C$7,('Growth-Model-2'!G319*EXP($AA$7)),0)","v":0},{"$f":"IF(A320<='S2-Double'!$C$7,$AD$6*EXP($AD$7*('S2-Double'!C$7-'Growth-Model-2'!A320)),0)","v":0},196.79609101896818,4.8591627412090908E-2,0,18.467327479743304,0,{"$f":"M320/'S2-Double'!$C$17","v":0},{"$error":"#N/A"},{"$error":"#N/A"},{"$f":"_xlfn.XLOOKUP(B320,FeedTables!$C$17:$T$17,FeedTables!$C$31:$T$31,,-1)","v":{"$error":"#N/A"}},{"$f":"_xlfn.XLOOKUP(Q320,FeedPrice[Feed],FeedPrice[Price per kg],\"Unknown\",0)*O320","v":{"$error":"#N/A"}},{"$error":"#N/A"},{"$f":"_xlfn.XLOOKUP(O320,LabourFromFeed[Feed Quantity (kg)],LabourFromFeed[No. Labour],\"Out of range\",-1)","v":{"$error":"#N/A"}},{"$f":"T320*OperatingCosts!$C$9","v":{"$error":"#N/A"}},{"$error":"#N/A"}]
[319,{"$f":"IF(A321<='S2-Double'!$C$7, B320*EXP((LN((E320/100)+1))*1),)","v":0},{"$f":"_xlfn.XLOOKUP($B321,FeedTables!$C$42:$T$42,FeedTables!$C$44:$T$44,,-1)","v":{"$error":"#N/A"}},{"$f":"_xlfn.XLOOKUP($B321,FeedTables!$C$42:$T$42,FeedTables!$C$45:$T$45,,-1)","v":{"$error":"#N/A"}},{"$f":"_xlfn.XLOOKUP($B321,FeedTables!$C$42:$T$42,FeedTables!$C$46:$T$46,,-1)*_xlfn.XLOOKUP(N320,DensityMultiplier[Biomass kg/m3],DensityMultiplier[Multiplier],,-1)","v":{"$error":"#N/A"}},3853.2039089810314,{"$f":"IF(A321<='S2-Double'!$C$7,('Growth-Model-2'!G320*EXP($AA$7)),0)","v":0},{"$f":"IF(A321<='S2-Double'!$C$7,$AD$6*EXP($AD$7*('S2-Double'!C$7-'Growth-Model-2'!A321)),0)","v":0},196.79609101896818,4.8591627412090908E-2,0,18.467327479743304,0,{"$f":"M321/'S2-Double'!$C$17","v":0},{"$error":"#N/A"},{"$error":"#N/A"},{"$f":"_xlfn.XLOOKUP(B321,FeedTables!$C$17:$T$17,FeedTables!$C$31:$T$31,,-1)","v":{"$error":"#N/A"}},{"$f":"_xlfn.XLOOKUP(Q321,FeedPrice[Feed],FeedPrice[Price per kg],\"Unknown\",0)*O321","v":{"$error":"#N/A"}},{"$error":"#N/A"},{"$f":"_xlfn.XLOOKUP(O321,LabourFromFeed[Feed Quantity (kg)],LabourFromFeed[No. Labour],\"Out of range\",-1)","v":{"$error":"#N/A"}},{"$f":"T321*OperatingCosts!$C$9","v":{"$error":"#N/A"}},{"$error":"#N/A"}]
[320,{"$f":"IF(A322<='S2-Double'!$C$7, B321*EXP((LN((E321/100)+1))*1),)","v":0},{"$f":"_xlfn.XLOOKUP($B322,FeedTables!$C$42:$T$42,FeedTables!$C$44:$T$44,,-1)","v":{"$error":"#N/A"}},{"$f":"_xlfn.XLOOKUP($B322,FeedTables!$C$42:$T$42,FeedTables!$C$45:$T$45,,-1)","v":{"$error":"#N/A"}},{"$f":"_xlfn.XLOOKUP($B322,FeedTables!$C$42:$T$42,FeedTables!$C$46:$T$46,,-1)*_xlfn.XLOOKUP(N321,DensityMultiplier[Biomass kg/m3],DensityMultiplier[Multiplier],,-1)","v":{"$error":"#N/A"}},3853.2039089810314,{"$f":"IF(A322<='S2-Double'!$C$7,('Growth-Model-2'!G321*EXP($AA$7)),0)","v":0},{"$f":"IF(A322<='S2-Double'!$C$7,$AD$6*EXP($AD$7*('S2-Double'!C$7-'Growth-Model-2'!A322)),0)","v":0},196.79609101896818,4.8591627412090908E-2,0,18.467327479743304,0,{"$f":"M322/'S2-Double'!$C$17","v":0},{"$error":"#N/A"},{"$error":"#N/A"},{"$f":"_xlfn.XLOOKUP(B322,FeedTables!$C$17:$T$17,FeedTables!$C$31:$T$31,,-1)","v":{"$error":"#N/A"}},{"$f":"_xlfn.XLOOKUP(Q322,FeedPrice[Feed],FeedPrice[Price per kg],\"Unknown\",0)*O322","v":{"$error":"#N/A"}},{"$error":"#N/A"},{"$f":"_xlfn.XLOOKUP(O322,LabourFromFeed[Feed Quantity (kg)],LabourFromFeed[No. Labour],\"Out of range\",-1)","v":{"$error":"#N/A"}},{"$f":"T322*OperatingCosts!$C$9","v":{"$error":"#N/A"}},{"$error":"#N/A"}]
[321,{"$f":"IF(A323<='S2-Double'!$C$7, B322*EXP((LN((E322/100)+1))*1),)","v":0},{"$f":"_xlfn.XLOOKUP($B323,FeedTables!$C$42:$T$42,FeedTables!$C$44:$T$44,,-1)","v":{"$error":"#N/A"}},{"$f":"_xlfn.XLOOKUP($B323,FeedTables!$C$42:$T$42,FeedTables!$C$45:$T$45,,-1)","v":{"$error":"#N/A"}},{"$f":"_xlfn.XLOOKUP($B323,FeedTables!$C$42:$T$42,FeedTables!$C$46:$T$46,,-1)*_xlfn.XLOOKUP(N322,DensityMultiplier[Biomass kg/m3],DensityMultiplier[Multiplier],,-1)","v":{"$error":"#N/A"}},3853.2039089810314,{"$f":"IF(A323<='S2-Double'!$C$7,('Growth-Model-2'!G322*EXP($AA$7)),0)","v":0},{"$f":"IF(A323<='S2-Double'!$C$7,$AD$6*EXP($AD$7*('S2-Double'!C$7-'Growth-Model-2'!A323)),0)","v":0},196.79609101896818,{"$f":"I323/$F$2","v":4.8591627412090908E-2},{"$f":"(G323+H323)*B323","v":0},18.467327479743304,{"$f":"(B323*F323)/1000","v":0},{"$f":"M323/'S2-Double'!$C$17","v":0},{"$f":"M323*(C323/100)","v":{"$error":"#N/A"}},{"$error":"#N/A"},{"$f":"_xlfn.XLOOKUP(B323,FeedTables!$C$17:$T$17,FeedTables!$C$31:$T$31,,-1)","v":{"$error":"#N/A"}},{"$f":"_xlfn.XLOOKUP(Q323,FeedPrice[Feed],FeedPrice[Price per kg],\"Unknown\",0)*O323","v":{"$error":"#N/A"}},{"$error":"#N/A"},{"$f":"_xlfn.XLOOKUP(O323,LabourFromFeed[Feed Quantity (kg)],LabourFromFeed[No. Labour],\"Out of range\",-1)","v":{"$error":"#N/A"}},{"$f":"T323*OperatingCosts!$C$9","v":{"$error":"#N/A"}},{"$error":"#N/A"}]
[322,{"$f":"IF(A324<='S2-Double'!$C$7, B323*EXP((LN((E323/100)+1))*1),)","v":0},{"$f":"_xlfn.XLOOKUP($B324,FeedTables!$C$42:$T$42,FeedTables!$C$44:$T$44,,-1)","v":{"$error":"#N/A"}},{"$f":"_xlfn.XLOOKUP($B324,FeedTables!$C$42:$T$42,FeedTables!$C$45:$T$45,,-1)","v":{"$error":"#N/A"}},{"$f":"_xlfn.XLOOKUP($B324,FeedTables!$C$42:$T$42,FeedTables!$C$46:$T$46,,-1)*_xlfn.XLOOKUP(N323,DensityMultiplier[Biomass kg/m3],DensityMultiplier[Multiplier],,-1)","v":{"$error":"#N/A"}},{"$f":"F323-G323-H323","v":3853.2039089810314},{"$f":"IF(A324<='S2-Double'!$C$7,('Growth-Model-2'!G323*EXP($AA$7)),0)","v":0},{"$f":"IF(A324<='S2-Double'!$C$7,$AD$6*EXP($AD$7*('S2-Double'!C$7-'Growth-Model-2'!A324)),0)","v":0},{"$f":"I323+G324+H324","v":196.79609101896818},4.8591627412090908E-2,0,{"$f":"(K324/1000)+L323","v":18.467327479743304},0,{"$f":"M324/'S2-Double'!$C$17","v":0},{"$error":"#N/A"},{"$f":"O324+P323","v":{"$error":"#N/A"}},{"$f":"_xlfn.XLOOKUP(B324,FeedTables!$C$17:$T$17,FeedTables!$C$31:$T$31,,-1)","v":{"$error":"#N/A"}},{"$f":"_xlfn.XLOOKUP(Q324,FeedPrice[Feed],FeedPrice[Price per kg],\"Unknown\",0)*O324","v":{"$error":"#N/A"}},{"$f":"R324+S323","v":{"$error":"#N/A"}},{"$f":"_xlfn.XLOOKUP(O324,LabourFromFeed[Feed Quantity (kg)],LabourFromFeed[No. Labour],\"Out of range\",-1)","v":{"$error":"#N/A"}},{"$f":"T324*OperatingCosts!$C$9","v":{"$error":"#N/A"}},{"$f":"U324+V323","v":{"$error":"#N/A"}}]
[323,{"$f":"IF(A325<='S2-Double'!$C$7, B324*EXP((LN((E324/100)+1))*1),)","v":0},{"$f":"_xlfn.XLOOKUP($B325,FeedTables!$C$42:$T$42,FeedTables!$C$44:$T$44,,-1)","v":{"$error":"#N/A"}},{"$f":"_xlfn.XLOOKUP($B325,FeedTables!$C$42:$T$42,FeedTables!$C$45:$T$45,,-1)","v":{"$error":"#N/A"}},{"$f":"_xlfn.XLOOKUP($B325,FeedTables!$C$42:$T$42,FeedTables!$C$46:$T$46,,-1)*_xlfn.XLOOKUP(N324,DensityMultiplier[Biomass kg/m3],DensityMultiplier[Multiplier],,-1)","v":{"$error":"#N/A"}},3853.2039089810314,{"$f":"IF(A325<='S2-Double'!$C$7,('Growth-Model-2'!G324*EXP($AA$7)),0)","v":0},{"$f":"IF(A325<='S2-Double'!$C$7,$AD$6*EXP($AD$7*('S2-Double'!C$7-'Growth-Model-2'!A325)),0)","v":0},196.79609101896818,4.8591627412090908E-2,0,18.467327479743304,0,{"$f":"M325/'S2-Double'!$C$17","v":0},{"$error":"#N/A"},{"$error":"#N/A"},{"$f":"_xlfn.XLOOKUP(B325,FeedTables!$C$17:$T$17,FeedTables!$C$31:$T$31,,-1)","v":{"$error":"#N/A"}},{"$f":"_xlfn.XLOOKUP(Q325,FeedPrice[Feed],FeedPrice[Price per kg],\"Unknown\",0)*O325","v":{"$error":"#N/A"}},{"$error":"#N/A"},{"$f":"_xlfn.XLOOKUP(O325,LabourFromFeed[Feed Quantity (kg)],LabourFromFeed[No. Labour],\"Out of range\",-1)","v":{"$error":"#N/A"}},{"$f":"T325*OperatingCosts!$C$9","v":{"$error":"#N/A"}},{"$error":"#N/A"}]
[324,{"$f":"IF(A326<='S2-Double'!$C$7, B325*EXP((LN((E325/100)+1))*1),)","v":0},{"$f":"_xlfn.XLOOKUP($B326,FeedTables!$C$42:$T$42,FeedTables!$C$44:$T$44,,-1)","v":{"$error":"#N/A"}},{"$f":"_xlfn.XLOOKUP($B326,FeedTables!$C$42:$T$42,FeedTables!$C$45:$T$45,,-1)","v":{"$error":"#N/A"}},{"$f":"_xlfn.XLOOKUP($B326,FeedTables!$C$42:$T$42,FeedTables!$C$46:$T$46,,-1)*_xlfn.XLOOKUP(N325,DensityMultiplier[Biomass kg/m3],DensityMultiplier[Multiplier],,-1)","v":{"$error":"#N/A"}},3853.2039089810314,{"$f":"IF(A326<='S2-Double'!$C$7,('Growth-Model-2'!G325*EXP($AA$7)),0)","v":0},{"$f":"IF(A326<='S2-Double'!$C$7,$AD$6*EXP($AD$7*('S2-Double'!C$7-'Growth-Model-2'!A326)),0)","v":0},196.79609101896818,4.8591627412090908E-2,0,18.467327479743304,0,{"$f":"M326/'S2-Double'!$C$17","v":0},{"$error":"#N/A"},{"$error":"#N/A"},{"$f":"_xlfn.XLOOKUP(B326,FeedTables!$C$17:$T$17,FeedTables!$C$31:$T$31,,-1)","v":{"$error":"#N/A"}},{"$f":"_xlfn.XLOOKUP(Q326,FeedPrice[Feed],FeedPrice[Price per kg],\"Unknown\",0)*O326","v":{"$error":"#N/A"}},{"$error":"#N/A"},{"$f":"_xlfn.XLOOKUP(O326,LabourFromFeed[Feed Quantity (kg)],LabourFromFeed[No. Labour],\"Out of range\",-1)","v":{"$error":"#N/A"}},{"$f":"T326*OperatingCosts!$C$9","v":{"$error":"#N/A"}},{"$error":"#N/A"}]
[325,{"$f":"IF(A327<='S2-Double'!$C$7, B326*EXP((LN((E326/100)+1))*1),)","v":0},{"$f":"_xlfn.XLOOKUP($B327,FeedTables!$C$42:$T$42,FeedTables!$C$44:$T$44,,-1)","v":{"$error":"#N/A"}},{"$f":"_xlfn.XLOOKUP($B327,FeedTables!$C$42:$T$42,FeedTables!$C$45:$T$45,,-1)","v":{"$error":"#N/A"}},{"$f":"_xlfn.XLOOKUP($B327,FeedTables!$C$42:$T$42,FeedTables!$C$46:$T$46,,-1)*_xlfn.XLOOKUP(N326,DensityMultiplier[Biomass kg/m3],DensityMultiplier[Multiplier],,-1)","v":{"$error":"#N/A"}},3853.2039089810314,{"$f":"IF(A327<='S2-Double'!$C$7,('Growth-Model-2'!G326*EXP($AA$7)),0)","v":0},{"$f":"IF(A327<='S2-Double'!$C$7,$AD$6*EXP($AD$7*('S2-Double'!C$7-'Growth-Model-2'!A327)),0)","v":0},196.79609101896818,4.8591627412090908E-2,0,18.467327479743304,0,{"$f":"M327/'S2-Double'!$C$17","v":0},{"$error":"#N/A"},{"$error":"#N/A"},{"$f":"_xlfn.XLOOKUP(B327,FeedTables!$C$17:$T$17,FeedTables!$C$31:$T$31,,-1)","v":{"$error":"#N/A"}},{"$f":"_xlfn.XLOOKUP(Q327,FeedPrice[Feed],FeedPrice[Price per kg],\"Unknown\",0)*O327","v":{"$error":"#N/A"}},{"$error":"#N/A"},{"$f":"_xlfn.XLOOKUP(O327,LabourFromFeed[Feed Quantity (kg)],LabourFromFeed[No. Labour],\"Out of range\",-1)","v":{"$error":"#N/A"}},{"$f":"T327*OperatingCosts!$C$9","v":{"$error":"#N/A"}},{"$error":"#N/A"}]
[326,{"$f":"IF(A328<='S2-Double'!$C$7, B327*EXP((LN((E327/100)+1))*1),)","v":0},{"$f":"_xlfn.XLOOKUP($B328,FeedTables!$C$42:$T$42,FeedTables!$C$44:$T$44,,-1)","v":{"$error":"#N/A"}},{"$f":"_xlfn.XLOOKUP($B328,FeedTables!$C$42:$T$42,FeedTables!$C$45:$T$45,,-1)","v":{"$error":"#N/A"}},{"$f":"_xlfn.XLOOKUP($B328,FeedTables!$C$42:$T$42,FeedTables!$C$46:$T$46,,-1)*_xlfn.XLOOKUP(N327,DensityMultiplier[Biomass kg/m3],DensityMultiplier[Multiplier],,-1)","v":{"$error":"#N/A"}},3853.2039089810314,{"$f":"IF(A328<='S2-Double'!$C$7,('Growth-Model-2'!G327*EXP($AA$7)),0)","v":0},{"$f":"IF(A328<='S2-Double'!$C$7,$AD$6*EXP($AD$7*('S2-Double'!C$7-'Growth-Model-2'!A328)),0)","v":0},196.79609101896818,4.8591627412090908E-2,0,18.467327479743304,0,{"$f":"M328/'S2-Double'!$C$17","v":0},{"$error":"#N/A"},{"$error":"#N/A"},{"$f":"_xlfn.XLOOKUP(B328,FeedTables!$C$17:$T$17,FeedTables!$C$31:$T$31,,-1)","v":{"$error":"#N/A"}},{"$f":"_xlfn.XLOOKUP(Q328,FeedPrice[Feed],FeedPrice[Price per kg],\"Unknown\",0)*O328","v":{"$error":"#N/A"}},{"$error":"#N/A"},{"$f":"_xlfn.XLOOKUP(O328,LabourFromFeed[Feed Quantity (kg)],LabourFromFeed[No. Labour],\"Out of range\",-1)","v":{"$error":"#N/A"}},{"$f":"T328*OperatingCosts!$C$9","v":{"$error":"#N/A"}},{"$error":"#N/A"}]
[327,{"$f":"IF(A329<='S2-Double'!$C$7, B328*EXP((LN((E328/100)+1))*1),)","v":0},{"$f":"_xlfn.XLOOKUP($B329,FeedTables!$C$42:$T$42,FeedTables!$C$44:$T$44,,-1)","v":{"$error":"#N/A"}},{"$f":"_xlfn.XLOOKUP($B329,FeedTables!$C$42:$T$42,FeedTables!$C$45:$T$45,,-1)","v":{"$error":"#N/A"}},{"$f":"_xlfn.XLOOKUP($B329,FeedTables!$C$42:$T$42,FeedTables!$C$46:$T$46,,-1)*_xlfn.XLOOKUP(N328,DensityMultiplier[Biomass kg/m3],DensityMultiplier[Multiplier],,-1)","v":{"$error":"#N/A"}},3853.2039089810314,{"$f":"IF(A329<='S2-Double'!$C$7,('Growth-Model-2'!G328*EXP($AA$7)),0)","v":0},{"$f":"IF(A329<='S2-Double'!$C$7,$AD$6*EXP($AD$7*('S2-Double'!C$7-'Growth-Model-2'!A329)),0)","v":0},196.79609101896818,4.8591627412090908E-2,0,18.467327479743304,0,{"$f":"M329/'S2-Double'!$C$17","v":0},{"$error":"#N/A"},{"$error":"#N/A"},{"$f":"_xlfn.XLOOKUP(B329,FeedTables!$C$17:$T$17,FeedTables!$C$31:$T$31,,-1)","v":{"$error":"#N/A"}},{"$f":"_xlfn.XLOOKUP(Q329,FeedPrice[Feed],FeedPrice[Price per kg],\"Unknown\",0)*O329","v":{"$error":"#N/A"}},{"$error":"#N/A"},{"$f":"_xlfn.XLOOKUP(O329,LabourFromFeed[Feed Quantity (kg)],LabourFromFeed[No. Labour],\"Out of range\",-1)","v":{"$error":"#N/A"}},{"$f":"T329*OperatingCosts!$C$9","v":{"$error":"#N/A"}},{"$error":"#N/A"}]
[328,{"$f":"IF(A330<='S2-Double'!$C$7, B329*EXP((LN((E329/100)+1))*1),)","v":0},{"$f":"_xlfn.XLOOKUP($B330,FeedTables!$C$42:$T$42,FeedTables!$C$44:$T$44,,-1)","v":{"$error":"#N/A"}},{"$f":"_xlfn.XLOOKUP($B330,FeedTables!$C$42:$T$42,FeedTables!$C$45:$T$45,,-1)","v":{"$error":"#N/A"}},{"$f":"_xlfn.XLOOKUP($B330,FeedTables!$C$42:$T$42,FeedTables!$C$46:$T$46,,-1)*_xlfn.XLOOKUP(N329,DensityMultiplier[Biomass kg/m3],DensityMultiplier[Multiplier],,-1)","v":{"$error":"#N/A"}},3853.2039089810314,{"$f":"IF(A330<='S2-Double'!$C$7,('Growth-Model-2'!G329*EXP($AA$7)),0)","v":0},{"$f":"IF(A330<='S2-Double'!$C$7,$AD$6*EXP($AD$7*('S2-Double'!C$7-'Growth-Model-2'!A330)),0)","v":0},196.79609101896818,4.8591627412090908E-2,0,18.467327479743304,0,{"$f":"M330/'S2-Double'!$C$17","v":0},{"$error":"#N/A"},{"$error":"#N/A"},{"$f":"_xlfn.XLOOKUP(B330,FeedTables!$C$17:$T$17,FeedTables!$C$31:$T$31,,-1)","v":{"$error":"#N/A"}},{"$f":"_xlfn.XLOOKUP(Q330,FeedPrice[Feed],FeedPrice[Price per kg],\"Unknown\",0)*O330","v":{"$error":"#N/A"}},{"$error":"#N/A"},{"$f":"_xlfn.XLOOKUP(O330,LabourFromFeed[Feed Quantity (kg)],LabourFromFeed[No. Labour],\"Out of range\",-1)","v":{"$error":"#N/A"}},{"$f":"T330*OperatingCosts!$C$9","v":{"$error":"#N/A"}},{"$error":"#N/A"}]
[329,{"$f":"IF(A331<='S2-Double'!$C$7, B330*EXP((LN((E330/100)+1))*1),)","v":0},{"$f":"_xlfn.XLOOKUP($B331,FeedTables!$C$42:$T$42,FeedTables!$C$44:$T$44,,-1)","v":{"$error":"#N/A"}},{"$f":"_xlfn.XLOOKUP($B331,FeedTables!$C$42:$T$42,FeedTables!$C$45:$T$45,,-1)","v":{"$error":"#N/A"}},{"$f":"_xlfn.XLOOKUP($B331,FeedTables!$C$42:$T$42,FeedTables!$C$46:$T$46,,-1)*_xlfn.XLOOKUP(N330,DensityMultiplier[Biomass kg/m3],DensityMultiplier[Multiplier],,-1)","v":{"$error":"#N/A"}},3853.2039089810314,{"$f":"IF(A331<='S2-Double'!$C$7,('Growth-Model-2'!G330*EXP($AA$7)),0)","v":0},{"$f":"IF(A331<='S2-Double'!$C$7,$AD$6*EXP($AD$7*('S2-Double'!C$7-'Growth-Model-2'!A331)),0)","v":0},196.79609101896818,4.8591627412090908E-2,0,18.467327479743304,0,{"$f":"M331/'S2-Double'!$C$17","v":0},{"$error":"#N/A"},{"$error":"#N/A"},{"$f":"_xlfn.XLOOKUP(B331,FeedTables!$C$17:$T$17,FeedTables!$C$31:$T$31,,-1)","v":{"$error":"#N/A"}},{"$f":"_xlfn.XLOOKUP(Q331,FeedPrice[Feed],FeedPrice[Price per kg],\"Unknown\",0)*O331","v":{"$error":"#N/A"}},{"$error":"#N/A"},{"$f":"_xlfn.XLOOKUP(O331,LabourFromFeed[Feed Quantity (kg)],LabourFromFeed[No. Labour],\"Out of range\",-1)","v":{"$error":"#N/A"}},{"$f":"T331*OperatingCosts!$C$9","v":{"$error":"#N/A"}},{"$error":"#N/A"}]
[330,{"$f":"IF(A332<='S2-Double'!$C$7, B331*EXP((LN((E331/100)+1))*1),)","v":0},{"$f":"_xlfn.XLOOKUP($B332,FeedTables!$C$42:$T$42,FeedTables!$C$44:$T$44,,-1)","v":{"$error":"#N/A"}},{"$f":"_xlfn.XLOOKUP($B332,FeedTables!$C$42:$T$42,FeedTables!$C$45:$T$45,,-1)","v":{"$error":"#N/A"}},{"$f":"_xlfn.XLOOKUP($B332,FeedTables!$C$42:$T$42,FeedTables!$C$46:$T$46,,-1)*_xlfn.XLOOKUP(N331,DensityMultiplier[Biomass kg/m3],DensityMultiplier[Multiplier],,-1)","v":{"$error":"#N/A"}},3853.2039089810314,{"$f":"IF(A332<='S2-Double'!$C$7,('Growth-Model-2'!G331*EXP($AA$7)),0)","v":0},{"$f":"IF(A332<='S2-Double'!$C$7,$AD$6*EXP($AD$7*('S2-Double'!C$7-'Growth-Model-2'!A332)),0)","v":0},196.79609101896818,4.8591627412090908E-2,0,18.467327479743304,0,{"$f":"M332/'S2-Double'!$C$17","v":0},{"$error":"#N/A"},{"$error":"#N/A"},{"$f":"_xlfn.XLOOKUP(B332,FeedTables!$C$17:$T$17,FeedTables!$C$31:$T$31,,-1)","v":{"$error":"#N/A"}},{"$f":"_xlfn.XLOOKUP(Q332,FeedPrice[Feed],FeedPrice[Price per kg],\"Unknown\",0)*O332","v":{"$error":"#N/A"}},{"$error":"#N/A"},{"$f":"_xlfn.XLOOKUP(O332,LabourFromFeed[Feed Quantity (kg)],LabourFromFeed[No. Labour],\"Out of range\",-1)","v":{"$error":"#N/A"}},{"$f":"T332*OperatingCosts!$C$9","v":{"$error":"#N/A"}},{"$error":"#N/A"}]
[331,{"$f":"IF(A333<='S2-Double'!$C$7, B332*EXP((LN((E332/100)+1))*1),)","v":0},{"$f":"_xlfn.XLOOKUP($B333,FeedTables!$C$42:$T$42,FeedTables!$C$44:$T$44,,-1)","v":{"$error":"#N/A"}},{"$f":"_xlfn.XLOOKUP($B333,FeedTables!$C$42:$T$42,FeedTables!$C$45:$T$45,,-1)","v":{"$error":"#N/A"}},{"$f":"_xlfn.XLOOKUP($B333,FeedTables!$C$42:$T$42,FeedTables!$C$46:$T$46,,-1)*_xlfn.XLOOKUP(N332,DensityMultiplier[Biomass kg/m3],DensityMultiplier[Multiplier],,-1)","v":{"$error":"#N/A"}},3853.2039089810314,{"$f":"IF(A333<='S2-Double'!$C$7,('Growth-Model-2'!G332*EXP($AA$7)),0)","v":0},{"$f":"IF(A333<='S2-Double'!$C$7,$AD$6*EXP($AD$7*('S2-Double'!C$7-'Growth-Model-2'!A333)),0)","v":0},196.79609101896818,4.8591627412090908E-2,0,18.467327479743304,0,{"$f":"M333/'S2-Double'!$C$17","v":0},{"$error":"#N/A"},{"$error":"#N/A"},{"$f":"_xlfn.XLOOKUP(B333,FeedTables!$C$17:$T$17,FeedTables!$C$31:$T$31,,-1)","v":{"$error":"#N/A"}},{"$f":"_xlfn.XLOOKUP(Q333,FeedPrice[Feed],FeedPrice[Price per kg],\"Unknown\",0)*O333","v":{"$error":"#N/A"}},{"$error":"#N/A"},{"$f":"_xlfn.XLOOKUP(O333,LabourFromFeed[Feed Quantity (kg)],LabourFromFeed[No. Labour],\"Out of range\",-1)","v":{"$error":"#N/A"}},{"$f":"T333*OperatingCosts!$C$9","v":{"$error":"#N/A"}},{"$error":"#N/A"}]
[332,{"$f":"IF(A334<='S2-Double'!$C$7, B333*EXP((LN((E333/100)+1))*1),)","v":0},{"$f":"_xlfn.XLOOKUP($B334,FeedTables!$C$42:$T$42,FeedTables!$C$44:$T$44,,-1)","v":{"$error":"#N/A"}},{"$f":"_xlfn.XLOOKUP($B334,FeedTables!$C$42:$T$42,FeedTables!$C$45:$T$45,,-1)","v":{"$error":"#N/A"}},{"$f":"_xlfn.XLOOKUP($B334,FeedTables!$C$42:$T$42,FeedTables!$C$46:$T$46,,-1)*_xlfn.XLOOKUP(N333,DensityMultiplier[Biomass kg/m3],DensityMultiplier[Multiplier],,-1)","v":{"$error":"#N/A"}},3853.2039089810314,{"$f":"IF(A334<='S2-Double'!$C$7,('Growth-Model-2'!G333*EXP($AA$7)),0)","v":0},{"$f":"IF(A334<='S2-Double'!$C$7,$AD$6*EXP($AD$7*('S2-Double'!C$7-'Growth-Model-2'!A334)),0)","v":0},196.79609101896818,4.8591627412090908E-2,0,18.467327479743304,0,{"$f":"M334/'S2-Double'!$C$17","v":0},{"$error":"#N/A"},{"$error":"#N/A"},{"$f":"_xlfn.XLOOKUP(B334,FeedTables!$C$17:$T$17,FeedTables!$C$31:$T$31,,-1)","v":{"$error":"#N/A"}},{"$f":"_xlfn.XLOOKUP(Q334,FeedPrice[Feed],FeedPrice[Price per kg],\"Unknown\",0)*O334","v":{"$error":"#N/A"}},{"$error":"#N/A"},{"$f":"_xlfn.XLOOKUP(O334,LabourFromFeed[Feed Quantity (kg)],LabourFromFeed[No. Labour],\"Out of range\",-1)","v":{"$error":"#N/A"}},{"$f":"T334*OperatingCosts!$C$9","v":{"$error":"#N/A"}},{"$error":"#N/A"}]
[333,{"$f":"IF(A335<='S2-Double'!$C$7, B334*EXP((LN((E334/100)+1))*1),)","v":0},{"$f":"_xlfn.XLOOKUP($B335,FeedTables!$C$42:$T$42,FeedTables!$C$44:$T$44,,-1)","v":{"$error":"#N/A"}},{"$f":"_xlfn.XLOOKUP($B335,FeedTables!$C$42:$T$42,FeedTables!$C$45:$T$45,,-1)","v":{"$error":"#N/A"}},{"$f":"_xlfn.XLOOKUP($B335,FeedTables!$C$42:$T$42,FeedTables!$C$46:$T$46,,-1)*_xlfn.XLOOKUP(N334,DensityMultiplier[Biomass kg/m3],DensityMultiplier[Multiplier],,-1)","v":{"$error":"#N/A"}},3853.2039089810314,{"$f":"IF(A335<='S2-Double'!$C$7,('Growth-Model-2'!G334*EXP($AA$7)),0)","v":0},{"$f":"IF(A335<='S2-Double'!$C$7,$AD$6*EXP($AD$7*('S2-Double'!C$7-'Growth-Model-2'!A335)),0)","v":0},196.79609101896818,4.8591627412090908E-2,0,18.467327479743304,0,{"$f":"M335/'S2-Double'!$C$17","v":0},{"$error":"#N/A"},{"$error":"#N/A"},{"$f":"_xlfn.XLOOKUP(B335,FeedTables!$C$17:$T$17,FeedTables!$C$31:$T$31,,-1)","v":{"$error":"#N/A"}},{"$f":"_xlfn.XLOOKUP(Q335,FeedPrice[Feed],FeedPrice[Price per kg],\"Unknown\",0)*O335","v":{"$error":"#N/A"}},{"$error":"#N/A"},{"$f":"_xlfn.XLOOKUP(O335,LabourFromFeed[Feed Quantity (kg)],LabourFromFeed[No. Labour],\"Out of range\",-1)","v":{"$error":"#N/A"}},{"$f":"T335*OperatingCosts!$C$9","v":{"$error":"#N/A"}},{"$error":"#N/A"}]
[334,{"$f":"IF(A336<='S2-Double'!$C$7, B335*EXP((LN((E335/100)+1))*1),)","v":0},{"$f":"_xlfn.XLOOKUP($B336,FeedTables!$C$42:$T$42,FeedTables!$C$44:$T$44,,-1)","v":{"$error":"#N/A"}},{"$f":"_xlfn.XLOOKUP($B336,FeedTables!$C$42:$T$42,FeedTables!$C$45:$T$45,,-1)","v":{"$error":"#N/A"}},{"$f":"_xlfn.XLOOKUP($B336,FeedTables!$C$42:$T$42,FeedTables!$C$46:$T$46,,-1)*_xlfn.XLOOKUP(N335,DensityMultiplier[Biomass kg/m3],DensityMultiplier[Multiplier],,-1)","v":{"$error":"#N/A"}},3853.2039089810314,{"$f":"IF(A336<='S2-Double'!$C$7,('Growth-Model-2'!G335*EXP($AA$7)),0)","v":0},{"$f":"IF(A336<='S2-Double'!$C$7,$AD$6*EXP($AD$7*('S2-Double'!C$7-'Growth-Model-2'!A336)),0)","v":0},196.79609101896818,4.8591627412090908E-2,0,18.467327479743304,0,{"$f":"M336/'S2-Double'!$C$17","v":0},{"$error":"#N/A"},{"$error":"#N/A"},{"$f":"_xlfn.XLOOKUP(B336,FeedTables!$C$17:$T$17,FeedTables!$C$31:$T$31,,-1)","v":{"$error":"#N/A"}},{"$f":"_xlfn.XLOOKUP(Q336,FeedPrice[Feed],FeedPrice[Price per kg],\"Unknown\",0)*O336","v":{"$error":"#N/A"}},{"$error":"#N/A"},{"$f":"_xlfn.XLOOKUP(O336,LabourFromFeed[Feed Quantity (kg)],LabourFromFeed[No. Labour],\"Out of range\",-1)","v":{"$error":"#N/A"}},{"$f":"T336*OperatingCosts!$C$9","v":{"$error":"#N/A"}},{"$error":"#N/A"}]
[335,{"$f":"IF(A337<='S2-Double'!$C$7, B336*EXP((LN((E336/100)+1))*1),)","v":0},{"$f":"_xlfn.XLOOKUP($B337,FeedTables!$C$42:$T$42,FeedTables!$C$44:$T$44,,-1)","v":{"$error":"#N/A"}},{"$f":"_xlfn.XLOOKUP($B337,FeedTables!$C$42:$T$42,FeedTables!$C$45:$T$45,,-1)","v":{"$error":"#N/A"}},{"$f":"_xlfn.XLOOKUP($B337,FeedTables!$C$42:$T$42,FeedTables!$C$46:$T$46,,-1)*_xlfn.XLOOKUP(N336,DensityMultiplier[Biomass kg/m3],DensityMultiplier[Multiplier],,-1)","v":{"$error":"#N/A"}},3853.2039089810314,{"$f":"IF(A337<='S2-Double'!$C$7,('Growth-Model-2'!G336*EXP($AA$7)),0)","v":0},{"$f":"IF(A337<='S2-Double'!$C$7,$AD$6*EXP($AD$7*('S2-Double'!C$7-'Growth-Model-2'!A337)),0)","v":0},196.79609101896818,4.8591627412090908E-2,0,18.467327479743304,0,{"$f":"M337/'S2-Double'!$C$17","v":0},{"$error":"#N/A"},{"$error":"#N/A"},{"$f":"_xlfn.XLOOKUP(B337,FeedTables!$C$17:$T$17,FeedTables!$C$31:$T$31,,-1)","v":{"$error":"#N/A"}},{"$f":"_xlfn.XLOOKUP(Q337,FeedPrice[Feed],FeedPrice[Price per kg],\"Unknown\",0)*O337","v":{"$error":"#N/A"}},{"$error":"#N/A"},{"$f":"_xlfn.XLOOKUP(O337,LabourFromFeed[Feed Quantity (kg)],LabourFromFeed[No. Labour],\"Out of range\",-1)","v":{"$error":"#N/A"}},{"$f":"T337*OperatingCosts!$C$9","v":{"$error":"#N/A"}},{"$error":"#N/A"}]
[336,{"$f":"IF(A338<='S2-Double'!$C$7, B337*EXP((LN((E337/100)+1))*1),)","v":0},{"$f":"_xlfn.XLOOKUP($B338,FeedTables!$C$42:$T$42,FeedTables!$C$44:$T$44,,-1)","v":{"$error":"#N/A"}},{"$f":"_xlfn.XLOOKUP($B338,FeedTables!$C$42:$T$42,FeedTables!$C$45:$T$45,,-1)","v":{"$error":"#N/A"}},{"$f":"_xlfn.XLOOKUP($B338,FeedTables!$C$42:$T$42,FeedTables!$C$46:$T$46,,-1)*_xlfn.XLOOKUP(N337,DensityMultiplier[Biomass kg/m3],DensityMultiplier[Multiplier],,-1)","v":{"$error":"#N/A"}},3853.2039089810314,{"$f":"IF(A338<='S2-Double'!$C$7,('Growth-Model-2'!G337*EXP($AA$7)),0)","v":0},{"$f":"IF(A338<='S2-Double'!$C$7,$AD$6*EXP($AD$7*('S2-Double'!C$7-'Growth-Model-2'!A338)),0)","v":0},196.79609101896818,4.8591627412090908E-2,0,18.467327479743304,0,{"$f":"M338/'S2-Double'!$C$17","v":0},{"$error":"#N/A"},{"$error":"#N/A"},{"$f":"_xlfn.XLOOKUP(B338,FeedTables!$C$17:$T$17,FeedTables!$C$31:$T$31,,-1)","v":{"$error":"#N/A"}},{"$f":"_xlfn.XLOOKUP(Q338,FeedPrice[Feed],FeedPrice[Price per kg],\"Unknown\",0)*O338","v":{"$error":"#N/A"}},{"$error":"#N/A"},{"$f":"_xlfn.XLOOKUP(O338,LabourFromFeed[Feed Quantity (kg)],LabourFromFeed[No. Labour],\"Out of range\",-1)","v":{"$error":"#N/A"}},{"$f":"T338*OperatingCosts!$C$9","v":{"$error":"#N/A"}},{"$error":"#N/A"}]
[337,{"$f":"IF(A339<='S2-Double'!$C$7, B338*EXP((LN((E338/100)+1))*1),)","v":0},{"$f":"_xlfn.XLOOKUP($B339,FeedTables!$C$42:$T$42,FeedTables!$C$44:$T$44,,-1)","v":{"$error":"#N/A"}},{"$f":"_xlfn.XLOOKUP($B339,FeedTables!$C$42:$T$42,FeedTables!$C$45:$T$45,,-1)","v":{"$error":"#N/A"}},{"$f":"_xlfn.XLOOKUP($B339,FeedTables!$C$42:$T$42,FeedTables!$C$46:$T$46,,-1)*_xlfn.XLOOKUP(N338,DensityMultiplier[Biomass kg/m3],DensityMultiplier[Multiplier],,-1)","v":{"$error":"#N/A"}},3853.2039089810314,{"$f":"IF(A339<='S2-Double'!$C$7,('Growth-Model-2'!G338*EXP($AA$7)),0)","v":0},{"$f":"IF(A339<='S2-Double'!$C$7,$AD$6*EXP($AD$7*('S2-Double'!C$7-'Growth-Model-2'!A339)),0)","v":0},196.79609101896818,4.8591627412090908E-2,0,18.467327479743304,0,{"$f":"M339/'S2-Double'!$C$17","v":0},{"$error":"#N/A"},{"$error":"#N/A"},{"$f":"_xlfn.XLOOKUP(B339,FeedTables!$C$17:$T$17,FeedTables!$C$31:$T$31,,-1)","v":{"$error":"#N/A"}},{"$f":"_xlfn.XLOOKUP(Q339,FeedPrice[Feed],FeedPrice[Price per kg],\"Unknown\",0)*O339","v":{"$error":"#N/A"}},{"$error":"#N/A"},{"$f":"_xlfn.XLOOKUP(O339,LabourFromFeed[Feed Quantity (kg)],LabourFromFeed[No. Labour],\"Out of range\",-1)","v":{"$error":"#N/A"}},{"$f":"T339*OperatingCosts!$C$9","v":{"$error":"#N/A"}},{"$error":"#N/A"}]
[338,{"$f":"IF(A340<='S2-Double'!$C$7, B339*EXP((LN((E339/100)+1))*1),)","v":0},{"$f":"_xlfn.XLOOKUP($B340,FeedTables!$C$42:$T$42,FeedTables!$C$44:$T$44,,-1)","v":{"$error":"#N/A"}},{"$f":"_xlfn.XLOOKUP($B340,FeedTables!$C$42:$T$42,FeedTables!$C$45:$T$45,,-1)","v":{"$error":"#N/A"}},{"$f":"_xlfn.XLOOKUP($B340,FeedTables!$C$42:$T$42,FeedTables!$C$46:$T$46,,-1)*_xlfn.XLOOKUP(N339,DensityMultiplier[Biomass kg/m3],DensityMultiplier[Multiplier],,-1)","v":{"$error":"#N/A"}},3853.2039089810314,{"$f":"IF(A340<='S2-Double'!$C$7,('Growth-Model-2'!G339*EXP($AA$7)),0)","v":0},{"$f":"IF(A340<='S2-Double'!$C$7,$AD$6*EXP($AD$7*('S2-Double'!C$7-'Growth-Model-2'!A340)),0)","v":0},196.79609101896818,4.8591627412090908E-2,0,18.467327479743304,0,{"$f":"M340/'S2-Double'!$C$17","v":0},{"$error":"#N/A"},{"$error":"#N/A"},{"$f":"_xlfn.XLOOKUP(B340,FeedTables!$C$17:$T$17,FeedTables!$C$31:$T$31,,-1)","v":{"$error":"#N/A"}},{"$f":"_xlfn.XLOOKUP(Q340,FeedPrice[Feed],FeedPrice[Price per kg],\"Unknown\",0)*O340","v":{"$error":"#N/A"}},{"$error":"#N/A"},{"$f":"_xlfn.XLOOKUP(O340,LabourFromFeed[Feed Quantity (kg)],LabourFromFeed[No. Labour],\"Out of range\",-1)","v":{"$error":"#N/A"}},{"$f":"T340*OperatingCosts!$C$9","v":{"$error":"#N/A"}},{"$error":"#N/A"}]
[339,{"$f":"IF(A341<='S2-Double'!$C$7, B340*EXP((LN((E340/100)+1))*1),)","v":0},{"$f":"_xlfn.XLOOKUP($B341,FeedTables!$C$42:$T$42,FeedTables!$C$44:$T$44,,-1)","v":{"$error":"#N/A"}},{"$f":"_xlfn.XLOOKUP($B341,FeedTables!$C$42:$T$42,FeedTables!$C$45:$T$45,,-1)","v":{"$error":"#N/A"}},{"$f":"_xlfn.XLOOKUP($B341,FeedTables!$C$42:$T$42,FeedTables!$C$46:$T$46,,-1)*_xlfn.XLOOKUP(N340,DensityMultiplier[Biomass kg/m3],DensityMultiplier[Multiplier],,-1)","v":{"$error":"#N/A"}},3853.2039089810314,{"$f":"IF(A341<='S2-Double'!$C$7,('Growth-Model-2'!G340*EXP($AA$7)),0)","v":0},{"$f":"IF(A341<='S2-Double'!$C$7,$AD$6*EXP($AD$7*('S2-Double'!C$7-'Growth-Model-2'!A341)),0)","v":0},196.79609101896818,4.8591627412090908E-2,0,18.467327479743304,0,{"$f":"M341/'S2-Double'!$C$17","v":0},{"$error":"#N/A"},{"$error":"#N/A"},{"$f":"_xlfn.XLOOKUP(B341,FeedTables!$C$17:$T$17,FeedTables!$C$31:$T$31,,-1)","v":{"$error":"#N/A"}},{"$f":"_xlfn.XLOOKUP(Q341,FeedPrice[Feed],FeedPrice[Price per kg],\"Unknown\",0)*O341","v":{"$error":"#N/A"}},{"$error":"#N/A"},{"$f":"_xlfn.XLOOKUP(O341,LabourFromFeed[Feed Quantity (kg)],LabourFromFeed[No. Labour],\"Out of range\",-1)","v":{"$error":"#N/A"}},{"$f":"T341*OperatingCosts!$C$9","v":{"$error":"#N/A"}},{"$error":"#N/A"}]
[340,{"$f":"IF(A342<='S2-Double'!$C$7, B341*EXP((LN((E341/100)+1))*1),)","v":0},{"$f":"_xlfn.XLOOKUP($B342,FeedTables!$C$42:$T$42,FeedTables!$C$44:$T$44,,-1)","v":{"$error":"#N/A"}},{"$f":"_xlfn.XLOOKUP($B342,FeedTables!$C$42:$T$42,FeedTables!$C$45:$T$45,,-1)","v":{"$error":"#N/A"}},{"$f":"_xlfn.XLOOKUP($B342,FeedTables!$C$42:$T$42,FeedTables!$C$46:$T$46,,-1)*_xlfn.XLOOKUP(N341,DensityMultiplier[Biomass kg/m3],DensityMultiplier[Multiplier],,-1)","v":{"$error":"#N/A"}},3853.2039089810314,{"$f":"IF(A342<='S2-Double'!$C$7,('Growth-Model-2'!G341*EXP($AA$7)),0)","v":0},{"$f":"IF(A342<='S2-Double'!$C$7,$AD$6*EXP($AD$7*('S2-Double'!C$7-'Growth-Model-2'!A342)),0)","v":0},196.79609101896818,4.8591627412090908E-2,0,18.467327479743304,0,{"$f":"M342/'S2-Double'!$C$17","v":0},{"$error":"#N/A"},{"$error":"#N/A"},{"$f":"_xlfn.XLOOKUP(B342,FeedTables!$C$17:$T$17,FeedTables!$C$31:$T$31,,-1)","v":{"$error":"#N/A"}},{"$f":"_xlfn.XLOOKUP(Q342,FeedPrice[Feed],FeedPrice[Price per kg],\"Unknown\",0)*O342","v":{"$error":"#N/A"}},{"$error":"#N/A"},{"$f":"_xlfn.XLOOKUP(O342,LabourFromFeed[Feed Quantity (kg)],LabourFromFeed[No. Labour],\"Out of range\",-1)","v":{"$error":"#N/A"}},{"$f":"T342*OperatingCosts!$C$9","v":{"$error":"#N/A"}},{"$error":"#N/A"}]
[341,{"$f":"IF(A343<='S2-Double'!$C$7, B342*EXP((LN((E342/100)+1))*1),)","v":0},{"$f":"_xlfn.XLOOKUP($B343,FeedTables!$C$42:$T$42,FeedTables!$C$44:$T$44,,-1)","v":{"$error":"#N/A"}},{"$f":"_xlfn.XLOOKUP($B343,FeedTables!$C$42:$T$42,FeedTables!$C$45:$T$45,,-1)","v":{"$error":"#N/A"}},{"$f":"_xlfn.XLOOKUP($B343,FeedTables!$C$42:$T$42,FeedTables!$C$46:$T$46,,-1)*_xlfn.XLOOKUP(N342,DensityMultiplier[Biomass kg/m3],DensityMultiplier[Multiplier],,-1)","v":{"$error":"#N/A"}},3853.2039089810314,{"$f":"IF(A343<='S2-Double'!$C$7,('Growth-Model-2'!G342*EXP($AA$7)),0)","v":0},{"$f":"IF(A343<='S2-Double'!$C$7,$AD$6*EXP($AD$7*('S2-Double'!C$7-'Growth-Model-2'!A343)),0)","v":0},196.79609101896818,4.8591627412090908E-2,0,18.467327479743304,0,{"$f":"M343/'S2-Double'!$C$17","v":0},{"$error":"#N/A"},{"$error":"#N/A"},{"$f":"_xlfn.XLOOKUP(B343,FeedTables!$C$17:$T$17,FeedTables!$C$31:$T$31,,-1)","v":{"$error":"#N/A"}},{"$f":"_xlfn.XLOOKUP(Q343,FeedPrice[Feed],FeedPrice[Price per kg],\"Unknown\",0)*O343","v":{"$error":"#N/A"}},{"$error":"#N/A"},{"$f":"_xlfn.XLOOKUP(O343,LabourFromFeed[Feed Quantity (kg)],LabourFromFeed[No. Labour],\"Out of range\",-1)","v":{"$error":"#N/A"}},{"$f":"T343*OperatingCosts!$C$9","v":{"$error":"#N/A"}},{"$error":"#N/A"}]
[342,{"$f":"IF(A344<='S2-Double'!$C$7, B343*EXP((LN((E343/100)+1))*1),)","v":0},{"$f":"_xlfn.XLOOKUP($B344,FeedTables!$C$42:$T$42,FeedTables!$C$44:$T$44,,-1)","v":{"$error":"#N/A"}},{"$f":"_xlfn.XLOOKUP($B344,FeedTables!$C$42:$T$42,FeedTables!$C$45:$T$45,,-1)","v":{"$error":"#N/A"}},{"$f":"_xlfn.XLOOKUP($B344,FeedTables!$C$42:$T$42,FeedTables!$C$46:$T$46,,-1)*_xlfn.XLOOKUP(N343,DensityMultiplier[Biomass kg/m3],DensityMultiplier[Multiplier],,-1)","v":{"$error":"#N/A"}},3853.2039089810314,{"$f":"IF(A344<='S2-Double'!$C$7,('Growth-Model-2'!G343*EXP($AA$7)),0)","v":0},{"$f":"IF(A344<='S2-Double'!$C$7,$AD$6*EXP($AD$7*('S2-Double'!C$7-'Growth-Model-2'!A344)),0)","v":0},196.79609101896818,4.8591627412090908E-2,0,18.467327479743304,0,{"$f":"M344/'S2-Double'!$C$17","v":0},{"$error":"#N/A"},{"$error":"#N/A"},{"$f":"_xlfn.XLOOKUP(B344,FeedTables!$C$17:$T$17,FeedTables!$C$31:$T$31,,-1)","v":{"$error":"#N/A"}},{"$f":"_xlfn.XLOOKUP(Q344,FeedPrice[Feed],FeedPrice[Price per kg],\"Unknown\",0)*O344","v":{"$error":"#N/A"}},{"$error":"#N/A"},{"$f":"_xlfn.XLOOKUP(O344,LabourFromFeed[Feed Quantity (kg)],LabourFromFeed[No. Labour],\"Out of range\",-1)","v":{"$error":"#N/A"}},{"$f":"T344*OperatingCosts!$C$9","v":{"$error":"#N/A"}},{"$error":"#N/A"}]
[343,{"$f":"IF(A345<='S2-Double'!$C$7, B344*EXP((LN((E344/100)+1))*1),)","v":0},{"$f":"_xlfn.XLOOKUP($B345,FeedTables!$C$42:$T$42,FeedTables!$C$44:$T$44,,-1)","v":{"$error":"#N/A"}},{"$f":"_xlfn.XLOOKUP($B345,FeedTables!$C$42:$T$42,FeedTables!$C$45:$T$45,,-1)","v":{"$error":"#N/A"}},{"$f":"_xlfn.XLOOKUP($B345,FeedTables!$C$42:$T$42,FeedTables!$C$46:$T$46,,-1)*_xlfn.XLOOKUP(N344,DensityMultiplier[Biomass kg/m3],DensityMultiplier[Multiplier],,-1)","v":{"$error":"#N/A"}},3853.2039089810314,{"$f":"IF(A345<='S2-Double'!$C$7,('Growth-Model-2'!G344*EXP($AA$7)),0)","v":0},{"$f":"IF(A345<='S2-Double'!$C$7,$AD$6*EXP($AD$7*('S2-Double'!C$7-'Growth-Model-2'!A345)),0)","v":0},196.79609101896818,4.8591627412090908E-2,0,18.467327479743304,0,{"$f":"M345/'S2-Double'!$C$17","v":0},{"$error":"#N/A"},{"$error":"#N/A"},{"$f":"_xlfn.XLOOKUP(B345,FeedTables!$C$17:$T$17,FeedTables!$C$31:$T$31,,-1)","v":{"$error":"#N/A"}},{"$f":"_xlfn.XLOOKUP(Q345,FeedPrice[Feed],FeedPrice[Price per kg],\"Unknown\",0)*O345","v":{"$error":"#N/A"}},{"$error":"#N/A"},{"$f":"_xlfn.XLOOKUP(O345,LabourFromFeed[Feed Quantity (kg)],LabourFromFeed[No. Labour],\"Out of range\",-1)","v":{"$error":"#N/A"}},{"$f":"T345*OperatingCosts!$C$9","v":{"$error":"#N/A"}},{"$error":"#N/A"}]
[344,{"$f":"IF(A346<='S2-Double'!$C$7, B345*EXP((LN((E345/100)+1))*1),)","v":0},{"$f":"_xlfn.XLOOKUP($B346,FeedTables!$C$42:$T$42,FeedTables!$C$44:$T$44,,-1)","v":{"$error":"#N/A"}},{"$f":"_xlfn.XLOOKUP($B346,FeedTables!$C$42:$T$42,FeedTables!$C$45:$T$45,,-1)","v":{"$error":"#N/A"}},{"$f":"_xlfn.XLOOKUP($B346,FeedTables!$C$42:$T$42,FeedTables!$C$46:$T$46,,-1)*_xlfn.XLOOKUP(N345,DensityMultiplier[Biomass kg/m3],DensityMultiplier[Multiplier],,-1)","v":{"$error":"#N/A"}},3853.2039089810314,{"$f":"IF(A346<='S2-Double'!$C$7,('Growth-Model-2'!G345*EXP($AA$7)),0)","v":0},{"$f":"IF(A346<='S2-Double'!$C$7,$AD$6*EXP($AD$7*('S2-Double'!C$7-'Growth-Model-2'!A346)),0)","v":0},196.79609101896818,4.8591627412090908E-2,0,18.467327479743304,0,{"$f":"M346/'S2-Double'!$C$17","v":0},{"$error":"#N/A"},{"$error":"#N/A"},{"$f":"_xlfn.XLOOKUP(B346,FeedTables!$C$17:$T$17,FeedTables!$C$31:$T$31,,-1)","v":{"$error":"#N/A"}},{"$f":"_xlfn.XLOOKUP(Q346,FeedPrice[Feed],FeedPrice[Price per kg],\"Unknown\",0)*O346","v":{"$error":"#N/A"}},{"$error":"#N/A"},{"$f":"_xlfn.XLOOKUP(O346,LabourFromFeed[Feed Quantity (kg)],LabourFromFeed[No. Labour],\"Out of range\",-1)","v":{"$error":"#N/A"}},{"$f":"T346*OperatingCosts!$C$9","v":{"$error":"#N/A"}},{"$error":"#N/A"}]
[345,{"$f":"IF(A347<='S2-Double'!$C$7, B346*EXP((LN((E346/100)+1))*1),)","v":0},{"$f":"_xlfn.XLOOKUP($B347,FeedTables!$C$42:$T$42,FeedTables!$C$44:$T$44,,-1)","v":{"$error":"#N/A"}},{"$f":"_xlfn.XLOOKUP($B347,FeedTables!$C$42:$T$42,FeedTables!$C$45:$T$45,,-1)","v":{"$error":"#N/A"}},{"$f":"_xlfn.XLOOKUP($B347,FeedTables!$C$42:$T$42,FeedTables!$C$46:$T$46,,-1)*_xlfn.XLOOKUP(N346,DensityMultiplier[Biomass kg/m3],DensityMultiplier[Multiplier],,-1)","v":{"$error":"#N/A"}},3853.2039089810314,{"$f":"IF(A347<='S2-Double'!$C$7,('Growth-Model-2'!G346*EXP($AA$7)),0)","v":0},{"$f":"IF(A347<='S2-Double'!$C$7,$AD$6*EXP($AD$7*('S2-Double'!C$7-'Growth-Model-2'!A347)),0)","v":0},196.79609101896818,4.8591627412090908E-2,0,18.467327479743304,0,{"$f":"M347/'S2-Double'!$C$17","v":0},{"$error":"#N/A"},{"$error":"#N/A"},{"$f":"_xlfn.XLOOKUP(B347,FeedTables!$C$17:$T$17,FeedTables!$C$31:$T$31,,-1)","v":{"$error":"#N/A"}},{"$f":"_xlfn.XLOOKUP(Q347,FeedPrice[Feed],FeedPrice[Price per kg],\"Unknown\",0)*O347","v":{"$error":"#N/A"}},{"$error":"#N/A"},{"$f":"_xlfn.XLOOKUP(O347,LabourFromFeed[Feed Quantity (kg)],LabourFromFeed[No. Labour],\"Out of range\",-1)","v":{"$error":"#N/A"}},{"$f":"T347*OperatingCosts!$C$9","v":{"$error":"#N/A"}},{"$error":"#N/A"}]
[346,{"$f":"IF(A348<='S2-Double'!$C$7, B347*EXP((LN((E347/100)+1))*1),)","v":0},{"$f":"_xlfn.XLOOKUP($B348,FeedTables!$C$42:$T$42,FeedTables!$C$44:$T$44,,-1)","v":{"$error":"#N/A"}},{"$f":"_xlfn.XLOOKUP($B348,FeedTables!$C$42:$T$42,FeedTables!$C$45:$T$45,,-1)","v":{"$error":"#N/A"}},{"$f":"_xlfn.XLOOKUP($B348,FeedTables!$C$42:$T$42,FeedTables!$C$46:$T$46,,-1)*_xlfn.XLOOKUP(N347,DensityMultiplier[Biomass kg/m3],DensityMultiplier[Multiplier],,-1)","v":{"$error":"#N/A"}},3853.2039089810314,{"$f":"IF(A348<='S2-Double'!$C$7,('Growth-Model-2'!G347*EXP($AA$7)),0)","v":0},{"$f":"IF(A348<='S2-Double'!$C$7,$AD$6*EXP($AD$7*('S2-Double'!C$7-'Growth-Model-2'!A348)),0)","v":0},196.79609101896818,4.8591627412090908E-2,0,18.467327479743304,0,{"$f":"M348/'S2-Double'!$C$17","v":0},{"$error":"#N/A"},{"$error":"#N/A"},{"$f":"_xlfn.XLOOKUP(B348,FeedTables!$C$17:$T$17,FeedTables!$C$31:$T$31,,-1)","v":{"$error":"#N/A"}},{"$f":"_xlfn.XLOOKUP(Q348,FeedPrice[Feed],FeedPrice[Price per kg],\"Unknown\",0)*O348","v":{"$error":"#N/A"}},{"$error":"#N/A"},{"$f":"_xlfn.XLOOKUP(O348,LabourFromFeed[Feed Quantity (kg)],LabourFromFeed[No. Labour],\"Out of range\",-1)","v":{"$error":"#N/A"}},{"$f":"T348*OperatingCosts!$C$9","v":{"$error":"#N/A"}},{"$error":"#N/A"}]
[347,{"$f":"IF(A349<='S2-Double'!$C$7, B348*EXP((LN((E348/100)+1))*1),)","v":0},{"$f":"_xlfn.XLOOKUP($B349,FeedTables!$C$42:$T$42,FeedTables!$C$44:$T$44,,-1)","v":{"$error":"#N/A"}},{"$f":"_xlfn.XLOOKUP($B349,FeedTables!$C$42:$T$42,FeedTables!$C$45:$T$45,,-1)","v":{"$error":"#N/A"}},{"$f":"_xlfn.XLOOKUP($B349,FeedTables!$C$42:$T$42,FeedTables!$C$46:$T$46,,-1)*_xlfn.XLOOKUP(N348,DensityMultiplier[Biomass kg/m3],DensityMultiplier[Multiplier],,-1)","v":{"$error":"#N/A"}},3853.2039089810314,{"$f":"IF(A349<='S2-Double'!$C$7,('Growth-Model-2'!G348*EXP($AA$7)),0)","v":0},{"$f":"IF(A349<='S2-Double'!$C$7,$AD$6*EXP($AD$7*('S2-Double'!C$7-'Growth-Model-2'!A349)),0)","v":0},196.79609101896818,4.8591627412090908E-2,0,18.467327479743304,0,{"$f":"M349/'S2-Double'!$C$17","v":0},{"$error":"#N/A"},{"$error":"#N/A"},{"$f":"_xlfn.XLOOKUP(B349,FeedTables!$C$17:$T$17,FeedTables!$C$31:$T$31,,-1)","v":{"$error":"#N/A"}},{"$f":"_xlfn.XLOOKUP(Q349,FeedPrice[Feed],FeedPrice[Price per kg],\"Unknown\",0)*O349","v":{"$error":"#N/A"}},{"$error":"#N/A"},{"$f":"_xlfn.XLOOKUP(O349,LabourFromFeed[Feed Quantity (kg)],LabourFromFeed[No. Labour],\"Out of range\",-1)","v":{"$error":"#N/A"}},{"$f":"T349*OperatingCosts!$C$9","v":{"$error":"#N/A"}},{"$error":"#N/A"}]
[348,{"$f":"IF(A350<='S2-Double'!$C$7, B349*EXP((LN((E349/100)+1))*1),)","v":0},{"$f":"_xlfn.XLOOKUP($B350,FeedTables!$C$42:$T$42,FeedTables!$C$44:$T$44,,-1)","v":{"$error":"#N/A"}},{"$f":"_xlfn.XLOOKUP($B350,FeedTables!$C$42:$T$42,FeedTables!$C$45:$T$45,,-1)","v":{"$error":"#N/A"}},{"$f":"_xlfn.XLOOKUP($B350,FeedTables!$C$42:$T$42,FeedTables!$C$46:$T$46,,-1)*_xlfn.XLOOKUP(N349,DensityMultiplier[Biomass kg/m3],DensityMultiplier[Multiplier],,-1)","v":{"$error":"#N/A"}},3853.2039089810314,{"$f":"IF(A350<='S2-Double'!$C$7,('Growth-Model-2'!G349*EXP($AA$7)),0)","v":0},{"$f":"IF(A350<='S2-Double'!$C$7,$AD$6*EXP($AD$7*('S2-Double'!C$7-'Growth-Model-2'!A350)),0)","v":0},196.79609101896818,4.8591627412090908E-2,0,18.467327479743304,0,{"$f":"M350/'S2-Double'!$C$17","v":0},{"$error":"#N/A"},{"$error":"#N/A"},{"$f":"_xlfn.XLOOKUP(B350,FeedTables!$C$17:$T$17,FeedTables!$C$31:$T$31,,-1)","v":{"$error":"#N/A"}},{"$f":"_xlfn.XLOOKUP(Q350,FeedPrice[Feed],FeedPrice[Price per kg],\"Unknown\",0)*O350","v":{"$error":"#N/A"}},{"$error":"#N/A"},{"$f":"_xlfn.XLOOKUP(O350,LabourFromFeed[Feed Quantity (kg)],LabourFromFeed[No. Labour],\"Out of range\",-1)","v":{"$error":"#N/A"}},{"$f":"T350*OperatingCosts!$C$9","v":{"$error":"#N/A"}},{"$error":"#N/A"}]
[349,{"$f":"IF(A351<='S2-Double'!$C$7, B350*EXP((LN((E350/100)+1))*1),)","v":0},{"$f":"_xlfn.XLOOKUP($B351,FeedTables!$C$42:$T$42,FeedTables!$C$44:$T$44,,-1)","v":{"$error":"#N/A"}},{"$f":"_xlfn.XLOOKUP($B351,FeedTables!$C$42:$T$42,FeedTables!$C$45:$T$45,,-1)","v":{"$error":"#N/A"}},{"$f":"_xlfn.XLOOKUP($B351,FeedTables!$C$42:$T$42,FeedTables!$C$46:$T$46,,-1)*_xlfn.XLOOKUP(N350,DensityMultiplier[Biomass kg/m3],DensityMultiplier[Multiplier],,-1)","v":{"$error":"#N/A"}},3853.2039089810314,{"$f":"IF(A351<='S2-Double'!$C$7,('Growth-Model-2'!G350*EXP($AA$7)),0)","v":0},{"$f":"IF(A351<='S2-Double'!$C$7,$AD$6*EXP($AD$7*('S2-Double'!C$7-'Growth-Model-2'!A351)),0)","v":0},196.79609101896818,4.8591627412090908E-2,0,18.467327479743304,0,{"$f":"M351/'S2-Double'!$C$17","v":0},{"$error":"#N/A"},{"$error":"#N/A"},{"$f":"_xlfn.XLOOKUP(B351,FeedTables!$C$17:$T$17,FeedTables!$C$31:$T$31,,-1)","v":{"$error":"#N/A"}},{"$f":"_xlfn.XLOOKUP(Q351,FeedPrice[Feed],FeedPrice[Price per kg],\"Unknown\",0)*O351","v":{"$error":"#N/A"}},{"$error":"#N/A"},{"$f":"_xlfn.XLOOKUP(O351,LabourFromFeed[Feed Quantity (kg)],LabourFromFeed[No. Labour],\"Out of range\",-1)","v":{"$error":"#N/A"}},{"$f":"T351*OperatingCosts!$C$9","v":{"$error":"#N/A"}},{"$error":"#N/A"}]
[350,{"$f":"IF(A352<='S2-Double'!$C$7, B351*EXP((LN((E351/100)+1))*1),)","v":0},{"$f":"_xlfn.XLOOKUP($B352,FeedTables!$C$42:$T$42,FeedTables!$C$44:$T$44,,-1)","v":{"$error":"#N/A"}},{"$f":"_xlfn.XLOOKUP($B352,FeedTables!$C$42:$T$42,FeedTables!$C$45:$T$45,,-1)","v":{"$error":"#N/A"}},{"$f":"_xlfn.XLOOKUP($B352,FeedTables!$C$42:$T$42,FeedTables!$C$46:$T$46,,-1)*_xlfn.XLOOKUP(N351,DensityMultiplier[Biomass kg/m3],DensityMultiplier[Multiplier],,-1)","v":{"$error":"#N/A"}},3853.2039089810314,{"$f":"IF(A352<='S2-Double'!$C$7,('Growth-Model-2'!G351*EXP($AA$7)),0)","v":0},{"$f":"IF(A352<='S2-Double'!$C$7,$AD$6*EXP($AD$7*('S2-Double'!C$7-'Growth-Model-2'!A352)),0)","v":0},196.79609101896818,4.8591627412090908E-2,0,18.467327479743304,0,{"$f":"M352/'S2-Double'!$C$17","v":0},{"$error":"#N/A"},{"$error":"#N/A"},{"$f":"_xlfn.XLOOKUP(B352,FeedTables!$C$17:$T$17,FeedTables!$C$31:$T$31,,-1)","v":{"$error":"#N/A"}},{"$f":"_xlfn.XLOOKUP(Q352,FeedPrice[Feed],FeedPrice[Price per kg],\"Unknown\",0)*O352","v":{"$error":"#N/A"}},{"$error":"#N/A"},{"$f":"_xlfn.XLOOKUP(O352,LabourFromFeed[Feed Quantity (kg)],LabourFromFeed[No. Labour],\"Out of range\",-1)","v":{"$error":"#N/A"}},{"$f":"T352*OperatingCosts!$C$9","v":{"$error":"#N/A"}},{"$error":"#N/A"}]
[351,{"$f":"IF(A353<='S2-Double'!$C$7, B352*EXP((LN((E352/100)+1))*1),)","v":0},{"$f":"_xlfn.XLOOKUP($B353,FeedTables!$C$42:$T$42,FeedTables!$C$44:$T$44,,-1)","v":{"$error":"#N/A"}},{"$f":"_xlfn.XLOOKUP($B353,FeedTables!$C$42:$T$42,FeedTables!$C$45:$T$45,,-1)","v":{"$error":"#N/A"}},{"$f":"_xlfn.XLOOKUP($B353,FeedTables!$C$42:$T$42,FeedTables!$C$46:$T$46,,-1)*_xlfn.XLOOKUP(N352,DensityMultiplier[Biomass kg/m3],DensityMultiplier[Multiplier],,-1)","v":{"$error":"#N/A"}},3853.2039089810314,{"$f":"IF(A353<='S2-Double'!$C$7,('Growth-Model-2'!G352*EXP($AA$7)),0)","v":0},{"$f":"IF(A353<='S2-Double'!$C$7,$AD$6*EXP($AD$7*('S2-Double'!C$7-'Growth-Model-2'!A353)),0)","v":0},196.79609101896818,4.8591627412090908E-2,0,18.467327479743304,0,{"$f":"M353/'S2-Double'!$C$17","v":0},{"$error":"#N/A"},{"$error":"#N/A"},{"$f":"_xlfn.XLOOKUP(B353,FeedTables!$C$17:$T$17,FeedTables!$C$31:$T$31,,-1)","v":{"$error":"#N/A"}},{"$f":"_xlfn.XLOOKUP(Q353,FeedPrice[Feed],FeedPrice[Price per kg],\"Unknown\",0)*O353","v":{"$error":"#N/A"}},{"$error":"#N/A"},{"$f":"_xlfn.XLOOKUP(O353,LabourFromFeed[Feed Quantity (kg)],LabourFromFeed[No. Labour],\"Out of range\",-1)","v":{"$error":"#N/A"}},{"$f":"T353*OperatingCosts!$C$9","v":{"$error":"#N/A"}},{"$error":"#N/A"}]
[352,{"$f":"IF(A354<='S2-Double'!$C$7, B353*EXP((LN((E353/100)+1))*1),)","v":0},{"$f":"_xlfn.XLOOKUP($B354,FeedTables!$C$42:$T$42,FeedTables!$C$44:$T$44,,-1)","v":{"$error":"#N/A"}},{"$f":"_xlfn.XLOOKUP($B354,FeedTables!$C$42:$T$42,FeedTables!$C$45:$T$45,,-1)","v":{"$error":"#N/A"}},{"$f":"_xlfn.XLOOKUP($B354,FeedTables!$C$42:$T$42,FeedTables!$C$46:$T$46,,-1)*_xlfn.XLOOKUP(N353,DensityMultiplier[Biomass kg/m3],DensityMultiplier[Multiplier],,-1)","v":{"$error":"#N/A"}},3853.2039089810314,{"$f":"IF(A354<='S2-Double'!$C$7,('Growth-Model-2'!G353*EXP($AA$7)),0)","v":0},{"$f":"IF(A354<='S2-Double'!$C$7,$AD$6*EXP($AD$7*('S2-Double'!C$7-'Growth-Model-2'!A354)),0)","v":0},196.79609101896818,4.8591627412090908E-2,0,18.467327479743304,0,{"$f":"M354/'S2-Double'!$C$17","v":0},{"$error":"#N/A"},{"$error":"#N/A"},{"$f":"_xlfn.XLOOKUP(B354,FeedTables!$C$17:$T$17,FeedTables!$C$31:$T$31,,-1)","v":{"$error":"#N/A"}},{"$f":"_xlfn.XLOOKUP(Q354,FeedPrice[Feed],FeedPrice[Price per kg],\"Unknown\",0)*O354","v":{"$error":"#N/A"}},{"$error":"#N/A"},{"$f":"_xlfn.XLOOKUP(O354,LabourFromFeed[Feed Quantity (kg)],LabourFromFeed[No. Labour],\"Out of range\",-1)","v":{"$error":"#N/A"}},{"$f":"T354*OperatingCosts!$C$9","v":{"$error":"#N/A"}},{"$error":"#N/A"}]
[353,{"$f":"IF(A355<='S2-Double'!$C$7, B354*EXP((LN((E354/100)+1))*1),)","v":0},{"$f":"_xlfn.XLOOKUP($B355,FeedTables!$C$42:$T$42,FeedTables!$C$44:$T$44,,-1)","v":{"$error":"#N/A"}},{"$f":"_xlfn.XLOOKUP($B355,FeedTables!$C$42:$T$42,FeedTables!$C$45:$T$45,,-1)","v":{"$error":"#N/A"}},{"$f":"_xlfn.XLOOKUP($B355,FeedTables!$C$42:$T$42,FeedTables!$C$46:$T$46,,-1)*_xlfn.XLOOKUP(N354,DensityMultiplier[Biomass kg/m3],DensityMultiplier[Multiplier],,-1)","v":{"$error":"#N/A"}},3853.2039089810314,{"$f":"IF(A355<='S2-Double'!$C$7,('Growth-Model-2'!G354*EXP($AA$7)),0)","v":0},{"$f":"IF(A355<='S2-Double'!$C$7,$AD$6*EXP($AD$7*('S2-Double'!C$7-'Growth-Model-2'!A355)),0)","v":0},196.79609101896818,4.8591627412090908E-2,0,18.467327479743304,0,{"$f":"M355/'S2-Double'!$C$17","v":0},{"$error":"#N/A"},{"$error":"#N/A"},{"$f":"_xlfn.XLOOKUP(B355,FeedTables!$C$17:$T$17,FeedTables!$C$31:$T$31,,-1)","v":{"$error":"#N/A"}},{"$f":"_xlfn.XLOOKUP(Q355,FeedPrice[Feed],FeedPrice[Price per kg],\"Unknown\",0)*O355","v":{"$error":"#N/A"}},{"$error":"#N/A"},{"$f":"_xlfn.XLOOKUP(O355,LabourFromFeed[Feed Quantity (kg)],LabourFromFeed[No. Labour],\"Out of range\",-1)","v":{"$error":"#N/A"}},{"$f":"T355*OperatingCosts!$C$9","v":{"$error":"#N/A"}},{"$error":"#N/A"}]
[354,{"$f":"IF(A356<='S2-Double'!$C$7, B355*EXP((LN((E355/100)+1))*1),)","v":0},{"$f":"_xlfn.XLOOKUP($B356,FeedTables!$C$42:$T$42,FeedTables!$C$44:$T$44,,-1)","v":{"$error":"#N/A"}},{"$f":"_xlfn.XLOOKUP($B356,FeedTables!$C$42:$T$42,FeedTables!$C$45:$T$45,,-1)","v":{"$error":"#N/A"}},{"$f":"_xlfn.XLOOKUP($B356,FeedTables!$C$42:$T$42,FeedTables!$C$46:$T$46,,-1)*_xlfn.XLOOKUP(N355,DensityMultiplier[Biomass kg/m3],DensityMultiplier[Multiplier],,-1)","v":{"$error":"#N/A"}},3853.2039089810314,{"$f":"IF(A356<='S2-Double'!$C$7,('Growth-Model-2'!G355*EXP($AA$7)),0)","v":0},{"$f":"IF(A356<='S2-Double'!$C$7,$AD$6*EXP($AD$7*('S2-Double'!C$7-'Growth-Model-2'!A356)),0)","v":0},196.79609101896818,4.8591627412090908E-2,0,18.467327479743304,0,{"$f":"M356/'S2-Double'!$C$17","v":0},{"$error":"#N/A"},{"$error":"#N/A"},{"$f":"_xlfn.XLOOKUP(B356,FeedTables!$C$17:$T$17,FeedTables!$C$31:$T$31,,-1)","v":{"$error":"#N/A"}},{"$f":"_xlfn.XLOOKUP(Q356,FeedPrice[Feed],FeedPrice[Price per kg],\"Unknown\",0)*O356","v":{"$error":"#N/A"}},{"$error":"#N/A"},{"$f":"_xlfn.XLOOKUP(O356,LabourFromFeed[Feed Quantity (kg)],LabourFromFeed[No. Labour],\"Out of range\",-1)","v":{"$error":"#N/A"}},{"$f":"T356*OperatingCosts!$C$9","v":{"$error":"#N/A"}},{"$error":"#N/A"}]
[355,{"$f":"IF(A357<='S2-Double'!$C$7, B356*EXP((LN((E356/100)+1))*1),)","v":0},{"$f":"_xlfn.XLOOKUP($B357,FeedTables!$C$42:$T$42,FeedTables!$C$44:$T$44,,-1)","v":{"$error":"#N/A"}},{"$f":"_xlfn.XLOOKUP($B357,FeedTables!$C$42:$T$42,FeedTables!$C$45:$T$45,,-1)","v":{"$error":"#N/A"}},{"$f":"_xlfn.XLOOKUP($B357,FeedTables!$C$42:$T$42,FeedTables!$C$46:$T$46,,-1)*_xlfn.XLOOKUP(N356,DensityMultiplier[Biomass kg/m3],DensityMultiplier[Multiplier],,-1)","v":{"$error":"#N/A"}},3853.2039089810314,{"$f":"IF(A357<='S2-Double'!$C$7,('Growth-Model-2'!G356*EXP($AA$7)),0)","v":0},{"$f":"IF(A357<='S2-Double'!$C$7,$AD$6*EXP($AD$7*('S2-Double'!C$7-'Growth-Model-2'!A357)),0)","v":0},196.79609101896818,4.8591627412090908E-2,0,18.467327479743304,0,{"$f":"M357/'S2-Double'!$C$17","v":0},{"$error":"#N/A"},{"$error":"#N/A"},{"$f":"_xlfn.XLOOKUP(B357,FeedTables!$C$17:$T$17,FeedTables!$C$31:$T$31,,-1)","v":{"$error":"#N/A"}},{"$f":"_xlfn.XLOOKUP(Q357,FeedPrice[Feed],FeedPrice[Price per kg],\"Unknown\",0)*O357","v":{"$error":"#N/A"}},{"$error":"#N/A"},{"$f":"_xlfn.XLOOKUP(O357,LabourFromFeed[Feed Quantity (kg)],LabourFromFeed[No. Labour],\"Out of range\",-1)","v":{"$error":"#N/A"}},{"$f":"T357*OperatingCosts!$C$9","v":{"$error":"#N/A"}},{"$error":"#N/A"}]
[356,{"$f":"IF(A358<='S2-Double'!$C$7, B357*EXP((LN((E357/100)+1))*1),)","v":0},{"$f":"_xlfn.XLOOKUP($B358,FeedTables!$C$42:$T$42,FeedTables!$C$44:$T$44,,-1)","v":{"$error":"#N/A"}},{"$f":"_xlfn.XLOOKUP($B358,FeedTables!$C$42:$T$42,FeedTables!$C$45:$T$45,,-1)","v":{"$error":"#N/A"}},{"$f":"_xlfn.XLOOKUP($B358,FeedTables!$C$42:$T$42,FeedTables!$C$46:$T$46,,-1)*_xlfn.XLOOKUP(N357,DensityMultiplier[Biomass kg/m3],DensityMultiplier[Multiplier],,-1)","v":{"$error":"#N/A"}},3853.2039089810314,{"$f":"IF(A358<='S2-Double'!$C$7,('Growth-Model-2'!G357*EXP($AA$7)),0)","v":0},{"$f":"IF(A358<='S2-Double'!$C$7,$AD$6*EXP($AD$7*('S2-Double'!C$7-'Growth-Model-2'!A358)),0)","v":0},196.79609101896818,4.8591627412090908E-2,0,18.467327479743304,0,{"$f":"M358/'S2-Double'!$C$17","v":0},{"$error":"#N/A"},{"$error":"#N/A"},{"$f":"_xlfn.XLOOKUP(B358,FeedTables!$C$17:$T$17,FeedTables!$C$31:$T$31,,-1)","v":{"$error":"#N/A"}},{"$f":"_xlfn.XLOOKUP(Q358,FeedPrice[Feed],FeedPrice[Price per kg],\"Unknown\",0)*O358","v":{"$error":"#N/A"}},{"$error":"#N/A"},{"$f":"_xlfn.XLOOKUP(O358,LabourFromFeed[Feed Quantity (kg)],LabourFromFeed[No. Labour],\"Out of range\",-1)","v":{"$error":"#N/A"}},{"$f":"T358*OperatingCosts!$C$9","v":{"$error":"#N/A"}},{"$error":"#N/A"}]
[357,{"$f":"IF(A359<='S2-Double'!$C$7, B358*EXP((LN((E358/100)+1))*1),)","v":0},{"$f":"_xlfn.XLOOKUP($B359,FeedTables!$C$42:$T$42,FeedTables!$C$44:$T$44,,-1)","v":{"$error":"#N/A"}},{"$f":"_xlfn.XLOOKUP($B359,FeedTables!$C$42:$T$42,FeedTables!$C$45:$T$45,,-1)","v":{"$error":"#N/A"}},{"$f":"_xlfn.XLOOKUP($B359,FeedTables!$C$42:$T$42,FeedTables!$C$46:$T$46,,-1)*_xlfn.XLOOKUP(N358,DensityMultiplier[Biomass kg/m3],DensityMultiplier[Multiplier],,-1)","v":{"$error":"#N/A"}},3853.2039089810314,{"$f":"IF(A359<='S2-Double'!$C$7,('Growth-Model-2'!G358*EXP($AA$7)),0)","v":0},{"$f":"IF(A359<='S2-Double'!$C$7,$AD$6*EXP($AD$7*('S2-Double'!C$7-'Growth-Model-2'!A359)),0)","v":0},196.79609101896818,4.8591627412090908E-2,0,18.467327479743304,0,{"$f":"M359/'S2-Double'!$C$17","v":0},{"$error":"#N/A"},{"$error":"#N/A"},{"$f":"_xlfn.XLOOKUP(B359,FeedTables!$C$17:$T$17,FeedTables!$C$31:$T$31,,-1)","v":{"$error":"#N/A"}},{"$f":"_xlfn.XLOOKUP(Q359,FeedPrice[Feed],FeedPrice[Price per kg],\"Unknown\",0)*O359","v":{"$error":"#N/A"}},{"$error":"#N/A"},{"$f":"_xlfn.XLOOKUP(O359,LabourFromFeed[Feed Quantity (kg)],LabourFromFeed[No. Labour],\"Out of range\",-1)","v":{"$error":"#N/A"}},{"$f":"T359*OperatingCosts!$C$9","v":{"$error":"#N/A"}},{"$error":"#N/A"}]
[358,{"$f":"IF(A360<='S2-Double'!$C$7, B359*EXP((LN((E359/100)+1))*1),)","v":0},{"$f":"_xlfn.XLOOKUP($B360,FeedTables!$C$42:$T$42,FeedTables!$C$44:$T$44,,-1)","v":{"$error":"#N/A"}},{"$f":"_xlfn.XLOOKUP($B360,FeedTables!$C$42:$T$42,FeedTables!$C$45:$T$45,,-1)","v":{"$error":"#N/A"}},{"$f":"_xlfn.XLOOKUP($B360,FeedTables!$C$42:$T$42,FeedTables!$C$46:$T$46,,-1)*_xlfn.XLOOKUP(N359,DensityMultiplier[Biomass kg/m3],DensityMultiplier[Multiplier],,-1)","v":{"$error":"#N/A"}},3853.2039089810314,{"$f":"IF(A360<='S2-Double'!$C$7,('Growth-Model-2'!G359*EXP($AA$7)),0)","v":0},{"$f":"IF(A360<='S2-Double'!$C$7,$AD$6*EXP($AD$7*('S2-Double'!C$7-'Growth-Model-2'!A360)),0)","v":0},196.79609101896818,4.8591627412090908E-2,0,18.467327479743304,0,{"$f":"M360/'S2-Double'!$C$17","v":0},{"$error":"#N/A"},{"$error":"#N/A"},{"$f":"_xlfn.XLOOKUP(B360,FeedTables!$C$17:$T$17,FeedTables!$C$31:$T$31,,-1)","v":{"$error":"#N/A"}},{"$f":"_xlfn.XLOOKUP(Q360,FeedPrice[Feed],FeedPrice[Price per kg],\"Unknown\",0)*O360","v":{"$error":"#N/A"}},{"$error":"#N/A"},{"$f":"_xlfn.XLOOKUP(O360,LabourFromFeed[Feed Quantity (kg)],LabourFromFeed[No. Labour],\"Out of range\",-1)","v":{"$error":"#N/A"}},{"$f":"T360*OperatingCosts!$C$9","v":{"$error":"#N/A"}},{"$error":"#N/A"}]
[359,{"$f":"IF(A361<='S2-Double'!$C$7, B360*EXP((LN((E360/100)+1))*1),)","v":0},{"$f":"_xlfn.XLOOKUP($B361,FeedTables!$C$42:$T$42,FeedTables!$C$44:$T$44,,-1)","v":{"$error":"#N/A"}},{"$f":"_xlfn.XLOOKUP($B361,FeedTables!$C$42:$T$42,FeedTables!$C$45:$T$45,,-1)","v":{"$error":"#N/A"}},{"$f":"_xlfn.XLOOKUP($B361,FeedTables!$C$42:$T$42,FeedTables!$C$46:$T$46,,-1)*_xlfn.XLOOKUP(N360,DensityMultiplier[Biomass kg/m3],DensityMultiplier[Multiplier],,-1)","v":{"$error":"#N/A"}},3853.2039089810314,{"$f":"IF(A361<='S2-Double'!$C$7,('Growth-Model-2'!G360*EXP($AA$7)),0)","v":0},{"$f":"IF(A361<='S2-Double'!$C$7,$AD$6*EXP($AD$7*('S2-Double'!C$7-'Growth-Model-2'!A361)),0)","v":0},196.79609101896818,4.8591627412090908E-2,0,18.467327479743304,0,{"$f":"M361/'S2-Double'!$C$17","v":0},{"$error":"#N/A"},{"$error":"#N/A"},{"$f":"_xlfn.XLOOKUP(B361,FeedTables!$C$17:$T$17,FeedTables!$C$31:$T$31,,-1)","v":{"$error":"#N/A"}},{"$f":"_xlfn.XLOOKUP(Q361,FeedPrice[Feed],FeedPrice[Price per kg],\"Unknown\",0)*O361","v":{"$error":"#N/A"}},{"$error":"#N/A"},{"$f":"_xlfn.XLOOKUP(O361,LabourFromFeed[Feed Quantity (kg)],LabourFromFeed[No. Labour],\"Out of range\",-1)","v":{"$error":"#N/A"}},{"$f":"T361*OperatingCosts!$C$9","v":{"$error":"#N/A"}},{"$error":"#N/A"}]
[360,{"$f":"IF(A362<='S2-Double'!$C$7, B361*EXP((LN((E361/100)+1))*1),)","v":0},{"$f":"_xlfn.XLOOKUP($B362,FeedTables!$C$42:$T$42,FeedTables!$C$44:$T$44,,-1)","v":{"$error":"#N/A"}},{"$f":"_xlfn.XLOOKUP($B362,FeedTables!$C$42:$T$42,FeedTables!$C$45:$T$45,,-1)","v":{"$error":"#N/A"}},{"$f":"_xlfn.XLOOKUP($B362,FeedTables!$C$42:$T$42,FeedTables!$C$46:$T$46,,-1)*_xlfn.XLOOKUP(N361,DensityMultiplier[Biomass kg/m3],DensityMultiplier[Multiplier],,-1)","v":{"$error":"#N/A"}},3853.2039089810314,{"$f":"IF(A362<='S2-Double'!$C$7,('Growth-Model-2'!G361*EXP($AA$7)),0)","v":0},{"$f":"IF(A362<='S2-Double'!$C$7,$AD$6*EXP($AD$7*('S2-Double'!C$7-'Growth-Model-2'!A362)),0)","v":0},196.79609101896818,4.8591627412090908E-2,0,18.467327479743304,0,{"$f":"M362/'S2-Double'!$C$17","v":0},{"$error":"#N/A"},{"$error":"#N/A"},{"$f":"_xlfn.XLOOKUP(B362,FeedTables!$C$17:$T$17,FeedTables!$C$31:$T$31,,-1)","v":{"$error":"#N/A"}},{"$f":"_xlfn.XLOOKUP(Q362,FeedPrice[Feed],FeedPrice[Price per kg],\"Unknown\",0)*O362","v":{"$error":"#N/A"}},{"$error":"#N/A"},{"$f":"_xlfn.XLOOKUP(O362,LabourFromFeed[Feed Quantity (kg)],LabourFromFeed[No. Labour],\"Out of range\",-1)","v":{"$error":"#N/A"}},{"$f":"T362*OperatingCosts!$C$9","v":{"$error":"#N/A"}},{"$error":"#N/A"}]
[361,{"$f":"IF(A363<='S2-Double'!$C$7, B362*EXP((LN((E362/100)+1))*1),)","v":0},{"$f":"_xlfn.XLOOKUP($B363,FeedTables!$C$42:$T$42,FeedTables!$C$44:$T$44,,-1)","v":{"$error":"#N/A"}},{"$f":"_xlfn.XLOOKUP($B363,FeedTables!$C$42:$T$42,FeedTables!$C$45:$T$45,,-1)","v":{"$error":"#N/A"}},{"$f":"_xlfn.XLOOKUP($B363,FeedTables!$C$42:$T$42,FeedTables!$C$46:$T$46,,-1)*_xlfn.XLOOKUP(N362,DensityMultiplier[Biomass kg/m3],DensityMultiplier[Multiplier],,-1)","v":{"$error":"#N/A"}},3853.2039089810314,{"$f":"IF(A363<='S2-Double'!$C$7,('Growth-Model-2'!G362*EXP($AA$7)),0)","v":0},{"$f":"IF(A363<='S2-Double'!$C$7,$AD$6*EXP($AD$7*('S2-Double'!C$7-'Growth-Model-2'!A363)),0)","v":0},196.79609101896818,4.8591627412090908E-2,0,18.467327479743304,0,{"$f":"M363/'S2-Double'!$C$17","v":0},{"$error":"#N/A"},{"$error":"#N/A"},{"$f":"_xlfn.XLOOKUP(B363,FeedTables!$C$17:$T$17,FeedTables!$C$31:$T$31,,-1)","v":{"$error":"#N/A"}},{"$f":"_xlfn.XLOOKUP(Q363,FeedPrice[Feed],FeedPrice[Price per kg],\"Unknown\",0)*O363","v":{"$error":"#N/A"}},{"$error":"#N/A"},{"$f":"_xlfn.XLOOKUP(O363,LabourFromFeed[Feed Quantity (kg)],LabourFromFeed[No. Labour],\"Out of range\",-1)","v":{"$error":"#N/A"}},{"$f":"T363*OperatingCosts!$C$9","v":{"$error":"#N/A"}},{"$error":"#N/A"}]
[362,{"$f":"IF(A364<='S2-Double'!$C$7, B363*EXP((LN((E363/100)+1))*1),)","v":0},{"$f":"_xlfn.XLOOKUP($B364,FeedTables!$C$42:$T$42,FeedTables!$C$44:$T$44,,-1)","v":{"$error":"#N/A"}},{"$f":"_xlfn.XLOOKUP($B364,FeedTables!$C$42:$T$42,FeedTables!$C$45:$T$45,,-1)","v":{"$error":"#N/A"}},{"$f":"_xlfn.XLOOKUP($B364,FeedTables!$C$42:$T$42,FeedTables!$C$46:$T$46,,-1)*_xlfn.XLOOKUP(N363,DensityMultiplier[Biomass kg/m3],DensityMultiplier[Multiplier],,-1)","v":{"$error":"#N/A"}},3853.2039089810314,{"$f":"IF(A364<='S2-Double'!$C$7,('Growth-Model-2'!G363*EXP($AA$7)),0)","v":0},{"$f":"IF(A364<='S2-Double'!$C$7,$AD$6*EXP($AD$7*('S2-Double'!C$7-'Growth-Model-2'!A364)),0)","v":0},196.79609101896818,4.8591627412090908E-2,0,18.467327479743304,0,{"$f":"M364/'S2-Double'!$C$17","v":0},{"$error":"#N/A"},{"$error":"#N/A"},{"$f":"_xlfn.XLOOKUP(B364,FeedTables!$C$17:$T$17,FeedTables!$C$31:$T$31,,-1)","v":{"$error":"#N/A"}},{"$f":"_xlfn.XLOOKUP(Q364,FeedPrice[Feed],FeedPrice[Price per kg],\"Unknown\",0)*O364","v":{"$error":"#N/A"}},{"$error":"#N/A"},{"$f":"_xlfn.XLOOKUP(O364,LabourFromFeed[Feed Quantity (kg)],LabourFromFeed[No. Labour],\"Out of range\",-1)","v":{"$error":"#N/A"}},{"$f":"T364*OperatingCosts!$C$9","v":{"$error":"#N/A"}},{"$error":"#N/A"}]
[363,{"$f":"IF(A365<='S2-Double'!$C$7, B364*EXP((LN((E364/100)+1))*1),)","v":0},{"$f":"_xlfn.XLOOKUP($B365,FeedTables!$C$42:$T$42,FeedTables!$C$44:$T$44,,-1)","v":{"$error":"#N/A"}},{"$f":"_xlfn.XLOOKUP($B365,FeedTables!$C$42:$T$42,FeedTables!$C$45:$T$45,,-1)","v":{"$error":"#N/A"}},{"$f":"_xlfn.XLOOKUP($B365,FeedTables!$C$42:$T$42,FeedTables!$C$46:$T$46,,-1)*_xlfn.XLOOKUP(N364,DensityMultiplier[Biomass kg/m3],DensityMultiplier[Multiplier],,-1)","v":{"$error":"#N/A"}},3853.2039089810314,{"$f":"IF(A365<='S2-Double'!$C$7,('Growth-Model-2'!G364*EXP($AA$7)),0)","v":0},{"$f":"IF(A365<='S2-Double'!$C$7,$AD$6*EXP($AD$7*('S2-Double'!C$7-'Growth-Model-2'!A365)),0)","v":0},196.79609101896818,4.8591627412090908E-2,0,18.467327479743304,0,{"$f":"M365/'S2-Double'!$C$17","v":0},{"$error":"#N/A"},{"$error":"#N/A"},{"$f":"_xlfn.XLOOKUP(B365,FeedTables!$C$17:$T$17,FeedTables!$C$31:$T$31,,-1)","v":{"$error":"#N/A"}},{"$f":"_xlfn.XLOOKUP(Q365,FeedPrice[Feed],FeedPrice[Price per kg],\"Unknown\",0)*O365","v":{"$error":"#N/A"}},{"$error":"#N/A"},{"$f":"_xlfn.XLOOKUP(O365,LabourFromFeed[Feed Quantity (kg)],LabourFromFeed[No. Labour],\"Out of range\",-1)","v":{"$error":"#N/A"}},{"$f":"T365*OperatingCosts!$C$9","v":{"$error":"#N/A"}},{"$error":"#N/A"}]
[364,{"$f":"IF(A366<='S2-Double'!$C$7, B365*EXP((LN((E365/100)+1))*1),)","v":0},{"$f":"_xlfn.XLOOKUP($B366,FeedTables!$C$42:$T$42,FeedTables!$C$44:$T$44,,-1)","v":{"$error":"#N/A"}},{"$f":"_xlfn.XLOOKUP($B366,FeedTables!$C$42:$T$42,FeedTables!$C$45:$T$45,,-1)","v":{"$error":"#N/A"}},{"$f":"_xlfn.XLOOKUP($B366,FeedTables!$C$42:$T$42,FeedTables!$C$46:$T$46,,-1)*_xlfn.XLOOKUP(N365,DensityMultiplier[Biomass kg/m3],DensityMultiplier[Multiplier],,-1)","v":{"$error":"#N/A"}},3853.2039089810314,{"$f":"IF(A366<='S2-Double'!$C$7,('Growth-Model-2'!G365*EXP($AA$7)),0)","v":0},{"$f":"IF(A366<='S2-Double'!$C$7,$AD$6*EXP($AD$7*('S2-Double'!C$7-'Growth-Model-2'!A366)),0)","v":0},196.79609101896818,4.8591627412090908E-2,0,18.467327479743304,0,{"$f":"M366/'S2-Double'!$C$17","v":0},{"$error":"#N/A"},{"$error":"#N/A"},{"$f":"_xlfn.XLOOKUP(B366,FeedTables!$C$17:$T$17,FeedTables!$C$31:$T$31,,-1)","v":{"$error":"#N/A"}},{"$f":"_xlfn.XLOOKUP(Q366,FeedPrice[Feed],FeedPrice[Price per kg],\"Unknown\",0)*O366","v":{"$error":"#N/A"}},{"$error":"#N/A"},{"$f":"_xlfn.XLOOKUP(O366,LabourFromFeed[Feed Quantity (kg)],LabourFromFeed[No. Labour],\"Out of range\",-1)","v":{"$error":"#N/A"}},{"$f":"T366*OperatingCosts!$C$9","v":{"$error":"#N/A"}},{"$error":"#N/A"}]
[null,null,null,null,null,null,null,null,null,null,null,null,null,null,null,null,null,null,{"$f":"_xlfn.CONCAT(\"Feed Cost \",\" (\",'0-StartHere'!$C$49,\")\")","v":"Feed Cost  (KES)"}]
[]
[]
[]
[]
[]
[]
[null,"Harvest summary",null,"Before weight loss"]
[null,null,null,null,null,null,"Range",null,"Label","Wt class",{"$f":"_xlfn.CONCAT('0-StartHere'!$C$49,\"/kg\")","v":"KES/kg"},"Prob.","Number","Kg","% No.","% Biomass","Cum. No.","Cum. Biomass",{"$f":"_xlfn.CONCAT(\"Income by size grade\",\" (\",'0-StartHere'!$C$49,\")\")","v":"Income by size grade (KES)"}]
[null,"Fish Number",{"$f":"'S2-Double'!C21","v":3857.2539090099285},null,null,null,{"$f":"SalesPrices!A2","v":"0-99"},null,{"$f":"SalesPrices!B2","v":"0+"},{"$f":"SalesPrices!C2","v":100},{"$f":"_xlfn.XLOOKUP(J376,SalesPrice[Wt class],SalesPrice[Price per kg],\"No Data\",0)","v":219},{"$f":"_xlfn.NORM.DIST(J376,$C$377,$C$378*$C$377,FALSE)/15*1500","v":1.8755150803343361E-3},{"$f":"$C$376*L376","v":7.2343378750266885},{"$f":"M376*(J376/1000)","v":0.72343378750266885},{"$f":"M376/$M$391","v":1.8756335082824357E-3},{"$f":"N376/$N$391","v":4.134772084645356E-4},{"$f":"O376","v":1.8756335082824357E-3},{"$f":"P376","v":4.134772084645356E-4},{"$f":"N376*K376","v":158.43199946308448}]
[null,"Avg. wt. (g)",{"$f":"'S2-Double'!C20*(1-'0-StartHere'!C34)","v":453.59566868587456},{"$f":"'S2-Double'!C20","v":453.59566868587456},null,null,{"$f":"SalesPrices!A3","v":"100-199"},null,{"$f":"SalesPrices!B3","v":"100+"},{"$f":"SalesPrices!C3","v":200},{"$f":"_xlfn.XLOOKUP(J377,SalesPrice[Wt class],SalesPrice[Price per kg],\"No Data\",0)","v":271},2.4303606378799934E-2,{"$f":"$C$376*L377","v":93.745180707664673},18.749036141532937,2.4305141011213737E-2,1.0715976028660574E-2,{"$f":"O377+Q376","v":2.6180774519496172E-2},{"$f":"P377+R376","v":1.112945323712511E-2},5080.9887943554259]
[null,"cv",{"$f":"'0-StartHere'!C95","v":0.24},null,null,null,{"$f":"SalesPrices!A4","v":"200-299"},null,{"$f":"SalesPrices!B4","v":"200+"},{"$f":"SalesPrices!C4","v":300},{"$f":"_xlfn.XLOOKUP(J378,SalesPrice[Wt class],SalesPrice[Price per kg],\"No Data\",0)","v":344},0.13544501770338038,522.44582399228295,156.73374719768489,0.13545357027418886,8.9580875794035134E-2,{"$f":"O378+Q377","v":0.16163434479368505},0.10071032903116024,53916.409036003606]
[null,"SD",{"$f":"C377*C378","v":108.86296048460989},null,null,null,{"$f":"SalesPrices!A5","v":"300-399"},null,{"$f":"SalesPrices!B5","v":"300+"},{"$f":"SalesPrices!C5","v":400},{"$f":"_xlfn.XLOOKUP(J379,SalesPrice[Wt class],SalesPrice[Price per kg],\"No Data\",0)","v":358},0.32463661040923664,1252.2058345087612,500.88233380350448,0.32465710933673225,0.28627834741477387,0.4862914541304173,0.3869886764459341,179315.87550165461]
[null,"Biomass (kg)",{"$f":"(C376*C377)/1000","v":1749.633666148562},null,null,null,{"$f":"SalesPrices!A6","v":"400-499"},null,{"$f":"SalesPrices!B6","v":"400+"},{"$f":"SalesPrices!C6","v":500},{"$f":"_xlfn.XLOOKUP(J380,SalesPrice[Wt class],SalesPrice[Price per kg],\"No Data\",0)","v":365},0.3346371134075995,1290.780313791262,645.39015689563098,0.33465824380911657,0.36887151948610047,0.82094969793953387,0.75586019593203457,235567.4072669053]
[null,null,null,null,null,null,{"$f":"SalesPrices!A7","v":"500-599"},null,{"$f":"SalesPrices!B7","v":"500+"},{"$f":"SalesPrices!C7","v":600},{"$f":"_xlfn.XLOOKUP(J381,SalesPrice[Wt class],SalesPrice[Price per kg],\"No Data\",0)","v":363},0.14835181527888133,572.23061939318382,343.33837163591028,0.14836118283943284,0.19623439479214505,0.96931088077896677,0.95209459072417957,124631.82890383543]
[null,"Weight loss adjusment ",null,null,null,null,{"$f":"SalesPrices!A8","v":"600-699"},null,{"$f":"SalesPrices!B8","v":"600+"},{"$f":"SalesPrices!C8","v":700},{"$f":"_xlfn.XLOOKUP(J382,SalesPrice[Wt class],SalesPrice[Price per kg],\"No Data\",0)","v":378},2.8284843078624253E-2,109.10182153075583,76.37127507152907,2.8286629103147994E-2,4.364985734556464E-2,0.99759750988211471,0.99574444806974416,28868.341977037988]
[null,"% of harvest wt.",{"$f":"1-'0-StartHere'!$C$34","v":1},null,null,null,{"$f":"SalesPrices!A9","v":"700-799"},null,{"$f":"SalesPrices!B9","v":"700+"},{"$f":"SalesPrices!C9","v":800},{"$f":"_xlfn.XLOOKUP(J383,SalesPrice[Wt class],SalesPrice[Price per kg],\"No Data\",0)","v":388},2.3192994862678666E-3,8.9461270095714482,7.1569016076571588,2.3194459366387898E-3,4.0905135329727905E-3,0.99991695581875351,0.9998349616027169,2776.8778237709776]
[null,null,null,null,null,null,{"$f":"SalesPrices!A10","v":"800-899"},null,{"$f":"SalesPrices!B10","v":"800+"},{"$f":"SalesPrices!C10","v":900},{"$f":"_xlfn.XLOOKUP(J384,SalesPrice[Wt class],SalesPrice[Price per kg],\"No Data\",0)","v":405},8.1790344839034553E-5,0.31548612734963605,0.28393751461467243,8.1795509427053708E-5,1.6228394768028434E-4,0.99999875132818061,0.99999724555039715,114.99469341894233]
[null,null,null,null,null,null,{"$f":"SalesPrices!A11","v":"900-999"},null,{"$f":"SalesPrices!B11","v":"900+"},{"$f":"SalesPrices!C11","v":1000},{"$f":"_xlfn.XLOOKUP(J385,SalesPrice[Wt class],SalesPrice[Price per kg],\"No Data\",0)","v":405},1.2404789413775571E-6,4.7848422456730801E-3,4.7848422456730801E-3,1.2405572704601799E-6,2.7347675058331253E-6,0.99999999188545108,0.99999998031790294,1.9378611094975975]
[null,null,null,null,null,null,{"$f":"SalesPrices!A12","v":"1000-1099"},null,{"$f":"SalesPrices!B12","v":"1000+"},{"$f":"SalesPrices!C12","v":1100},{"$f":"_xlfn.XLOOKUP(J386,SalesPrice[Wt class],SalesPrice[Price per kg],\"No Data\",0)","v":405},8.0913111474216782E-9,3.1210241552407878E-5,3.4331265707648667E-5,8.0918220670014097E-9,1.9621969768450222E-8,0.99999999997727318,0.99999999993987265,1.3904162611597709E-2]
[null,null,null,null,null,null,{"$f":"SalesPrices!A13","v":"1100-1199"},null,{"$f":"SalesPrices!B13","v":"1100+"},{"$f":"SalesPrices!C13","v":1200},{"$f":"_xlfn.XLOOKUP(J387,SalesPrice[Wt class],SalesPrice[Price per kg],\"No Data\",0)","v":405},2.2698155004890096E-11,8.7552547119925599E-8,1.0506305654391072E-7,2.2699588262319514E-11,6.0048590600791647E-11,0.9999999999999728,0.99999999999992129,4.2550537900283842E-5]
[null,null,null,null,null,null,{"$f":"SalesPrices!A14","v":"1200-1299"},null,{"$f":"SalesPrices!B14","v":"1200+"},{"$f":"SalesPrices!C14","v":1300},{"$f":"_xlfn.XLOOKUP(J388,SalesPrice[Wt class],SalesPrice[Price per kg],\"No Data\",0)","v":405},2.7384471398564237E-14,1.0562885934828249E-10,1.3731751715276724E-10,2.7386200569815127E-14,7.8483566355957251E-14,1.0000000000000002,0.99999999999999978,5.5613594446870728E-8]
[null,null,null,null,null,null,{"$f":"SalesPrices!A15","v":"1300-1399"},null,{"$f":"SalesPrices!B15","v":"1300+"},{"$f":"SalesPrices!C15","v":1400},{"$f":"_xlfn.XLOOKUP(J389,SalesPrice[Wt class],SalesPrice[Price per kg],\"No Data\",0)","v":405},1.4208895368132741E-17,5.4807317201443084E-14,7.6730244082020316E-14,1.4209792577833082E-17,4.3855025402333965E-17,1.0000000000000002,0.99999999999999978,3.1075748853218228E-11]
[null,null,null,null,null,null,{"$f":"SalesPrices!A16","v":"1400-1499"},null,{"$f":"SalesPrices!B16","v":"1400+"},{"$f":"SalesPrices!C16","v":1500},{"$f":"_xlfn.XLOOKUP(J390,SalesPrice[Wt class],SalesPrice[Price per kg],\"No Data\",0)","v":405},3.1707238512112074E-21,1.2230286969475445E-17,1.8345430454213169E-17,3.1709240641146528E-21,1.0485295963952134E-20,1.0000000000000002,0.99999999999999978,7.4298993339563335E-15]
[null,null,null,null,null,null,null,null,null,null,null,{"$f":"SUM(L376:L390)","v":0.99993685976094138},{"$f":"SUM(M376:M390)","v":3857.0103610760034},{"$f":"SUM(N376:N390)","v":1749.6340129342789},{"$f":"SUM(O376:O390)","v":1.0000000000000002},{"$f":"SUM(P376:P390)","v":0.99999999999999978},null,null,{"$f":"SUM(S376:S390)","v":630433.10780432355}]

{"sheet":"Growth-Model-3","index":9,"n_rows":391,"n_cols":31,"rows_kept":391,"cut":false,"hidden":false,"merged":[]}
["Day","Av. Wt (g)","Feed rate % bw/day","FCR","SGR","No.","Early Morts","Late Morts","Cum. Morts","Cum Mort %","Mort Biomas (g)","Cum. Mort biomass (kg)","Biomass (kg)","Density (kg/m3)","Feed fed (kg)","Cum. Feed (kg)","FeedType","Feed cost","Cum. Feed Cost","Labour needed","Labour cost","Cum. labour cost",null,null,null,"EXP Mortalities"]
[0,{"$f":"'S3-Short'!C5","v":40},{"$f":"_xlfn.XLOOKUP($B2,FeedTables!$C$42:$T$42,FeedTables!$C$44:$T$44,,-1)","v":4.1684550113923917},{"$f":"_xlfn.XLOOKUP($B2,FeedTables!$C$42:$T$42,FeedTables!$C$45:$T$45,,-1)","v":1.283309931764242},{"$f":"_xlfn.XLOOKUP($B2,FeedTables!$C$42:$T$42,FeedTables!$C$46:$T$46,,-1)","v":3.2482059931241785},{"$f":"'S3-Short'!C18","v":4050},{"$f":"AA6","v":24.3},{"$f":"IF(A2<='S3-Short'!$C$7,$AD$6*EXP($AD$7*('S3-Short'!C$7-'Growth-Model-3'!A2)),0)","v":1.014329130792685E-6},{"$f":"G2+H2","v":24.30000101432913},{"$f":"I2/$F$2","v":6.000000250451637E-3},{"$f":"(G2+H2)*B2","v":972.00004057316517},{"$f":"K2/1000","v":0.97200004057316514},{"$f":"(B2*F2)/1000","v":162},{"$f":"M2/'S3-Short'!$C$17","v":6},{"$f":"M2*(C2/100)","v":6.7528971184556754},{"$f":"O2","v":6.7528971184556754},{"$f":"_xlfn.XLOOKUP(B2,FeedTables!$C$17:$T$17,FeedTables!$C$31:$T$31,,-1)","v":"Unga 3mm"},{"$f":"_xlfn.XLOOKUP(Q2,FeedPrice[Feed],FeedPrice[Price per kg],\"Unknown\",0)*O2","v":716.81395151666334},{"$f":"R2","v":716.81395151666334},{"$f":"_xlfn.XLOOKUP(O2,LabourFromFeed[Feed Quantity (kg)],LabourFromFeed[No. Labour],\"Out of range\",-1)","v":1},{"$f":"T2*OperatingCosts!$C$9","v":1200},{"$f":"U2","v":1200},null,null,null,"(Mort=Prev * EXP(L)",null,null,"(Mort=Final * EXP(L*(T-t))",null,"(T = total culture days, t = day no.)"]
[1,{"$f":"IF(A3<='S3-Short'!$C$7, B2*EXP((LN((E2/100)+1))*1),)","v":41.299282397249677},{"$f":"_xlfn.XLOOKUP($B3,FeedTables!$C$42:$T$42,FeedTables!$C$44:$T$44,,-1)","v":4.1684550113923917},{"$f":"_xlfn.XLOOKUP($B3,FeedTables!$C$42:$T$42,FeedTables!$C$45:$T$45,,-1)","v":1.283309931764242},{"$f":"_xlfn.XLOOKUP($B3,FeedTables!$C$42:$T$42,FeedTables!$C$46:$T$46,,-1)*_xlfn.XLOOKUP(N2,DensityMultiplier[Biomass kg/m3],DensityMultiplier[Multiplier],,-1)","v":3.2482059931241785},{"$f":"F2-G2-H2","v":4025.6999989856708},{"$f":"IF(A3<='S3-Short'!$C$7,('Growth-Model-3'!G2*EXP($AA$7)),0)","v":20.915203827128906},{"$f":"IF(A3<='S3-Short'!$C$7,$AD$6*EXP($AD$7*('S3-Short'!C$7-'Growth-Model-3'!A3)),0)","v":1.2389043980323943E-6},{"$f":"I2+G3+H3","v":45.215206080362428},{"$f":"I3/$F$2","v":1.1164248414904304E-2},{"$f":"(G3+H3)*B3","v":863.7829604184966},{"$f":"(K3/1000)+L2","v":1.8357830009916616},{"$f":"(B3*F3)/1000","v":166.25852110471695},{"$f":"M3/'S3-Short'!$C$17","v":6.1577230038784059},{"$f":"M3*(C3/100)","v":6.9304116548564512},{"$f":"O3+P2","v":13.683308773312127},{"$f":"_xlfn.XLOOKUP(B3,FeedTables!$C$17:$T$17,FeedTables!$C$31:$T$31,,-1)","v":"Unga 3mm"},{"$f":"_xlfn.XLOOKUP(Q3,FeedPrice[Feed],FeedPrice[Price per kg],\"Unknown\",0)*O3","v":735.65695979252291},{"$f":"R3+S2","v":1452.4709113091862},{"$f":"_xlfn.XLOOKUP(O3,LabourFromFeed[Feed Quantity (kg)],LabourFromFeed[No. Labour],\"Out of range\",-1)","v":1},{"$f":"T3*OperatingCosts!$C$9","v":1200},{"$f":"U3+V2","v":2400},null,null,null,"(Mort Final =Start*EXP(L*t)",null,null,null,null,"(Final = No. of morts on final day)"]
[2,{"$f":"IF(A4<='S3-Short'!$C$7, B3*EXP((LN((E3/100)+1))*1),)","v":42.640768163194423},{"$f":"_xlfn.XLOOKUP($B4,FeedTables!$C$42:$T$42,FeedTables!$C$44:$T$44,,-1)","v":4.1684550113923917},{"$f":"_xlfn.XLOOKUP($B4,FeedTables!$C$42:$T$42,FeedTables!$C$45:$T$45,,-1)","v":1.283309931764242},{"$f":"_xlfn.XLOOKUP($B4,FeedTables!$C$42:$T$42,FeedTables!$C$46:$T$46,,-1)*_xlfn.XLOOKUP(N3,DensityMultiplier[Biomass kg/m3],DensityMultiplier[Multiplier],,-1)","v":3.2482059931241785},{"$f":"F3-G3-H3","v":4004.7847939196372},{"$f":"IF(A4<='S3-Short'!$C$7,('Growth-Model-3'!G3*EXP($AA$7)),0)","v":18.001882762565746},{"$f":"IF(A4<='S3-Short'!$C$7,$AD$6*EXP($AD$7*('S3-Short'!C$7-'Growth-Model-3'!A4)),0)","v":1.5132012488535304E-6},{"$f":"I3+G4+H4","v":63.217090356129425},1.560915811262455E-2,767.61417390363556,{"$f":"(K4/1000)+L3","v":2.6033971748952971},170.76709994101361,{"$f":"M4/'S3-Short'!$C$17","v":6.3247074052227266},7.1183497353006366,{"$f":"O4+P3","v":20.801658508612764},{"$f":"_xlfn.XLOOKUP(B4,FeedTables!$C$17:$T$17,FeedTables!$C$31:$T$31,,-1)","v":"Unga 3mm"},{"$f":"_xlfn.XLOOKUP(Q4,FeedPrice[Feed],FeedPrice[Price per kg],\"Unknown\",0)*O4","v":755.60641788740088},{"$f":"R4+S3","v":2208.077329196587},{"$f":"_xlfn.XLOOKUP(O4,LabourFromFeed[Feed Quantity (kg)],LabourFromFeed[No. Labour],\"Out of range\",-1)","v":1},{"$f":"T4*OperatingCosts!$C$9","v":1200},{"$f":"U4+V3","v":3600},null,null,null,"Early Mortalities",null,null,"Late Mortalities"]
[3,{"$f":"IF(A5<='S3-Short'!$C$7, B4*EXP((LN((E4/100)+1))*1),)","v":44.025828150185497},{"$f":"_xlfn.XLOOKUP($B5,FeedTables!$C$42:$T$42,FeedTables!$C$44:$T$44,,-1)","v":4.1684550113923917},{"$f":"_xlfn.XLOOKUP($B5,FeedTables!$C$42:$T$42,FeedTables!$C$45:$T$45,,-1)","v":1.283309931764242},{"$f":"_xlfn.XLOOKUP($B5,FeedTables!$C$42:$T$42,FeedTables!$C$46:$T$46,,-1)*_xlfn.XLOOKUP(N4,DensityMultiplier[Biomass kg/m3],DensityMultiplier[Multiplier],,-1)","v":3.2482059931241785},3986.78290964387,{"$f":"IF(A5<='S3-Short'!$C$7,('Growth-Model-3'!G4*EXP($AA$7)),0)","v":15.494364084409092},{"$f":"IF(A5<='S3-Short'!$C$7,$AD$6*EXP($AD$7*('S3-Short'!C$7-'Growth-Model-3'!A5)),0)","v":1.8482281790011143E-6},78.711456288766698,1.9434927478707828E-2,682.15229184637712,3.2855494667416743,175.52141925207752,{"$f":"M5/'S3-Short'!$C$17","v":6.5007933056325005},7.3165313968802765,28.11818990549304,{"$f":"_xlfn.XLOOKUP(B5,FeedTables!$C$17:$T$17,FeedTables!$C$31:$T$31,,-1)","v":"Unga 3mm"},{"$f":"_xlfn.XLOOKUP(Q5,FeedPrice[Feed],FeedPrice[Price per kg],\"Unknown\",0)*O5","v":776.64322290058419},2984.7205520971711,{"$f":"_xlfn.XLOOKUP(O5,LabourFromFeed[Feed Quantity (kg)],LabourFromFeed[No. Labour],\"Out of range\",-1)","v":1},{"$f":"T5*OperatingCosts!$C$9","v":1200},4800,null,null,null,"First morts %",{"$f":"'0-StartHere'!C76","v":6.0000000000000001E-3},null,"Final morts %",{"$f":"'0-StartHere'!$C$81","v":1E-3}]
[4,{"$f":"IF(A6<='S3-Short'!$C$7, B5*EXP((LN((E5/100)+1))*1),)","v":45.455877738682375},{"$f":"_xlfn.XLOOKUP($B6,FeedTables!$C$42:$T$42,FeedTables!$C$44:$T$44,,-1)","v":4.1684550113923917},{"$f":"_xlfn.XLOOKUP($B6,FeedTables!$C$42:$T$42,FeedTables!$C$45:$T$45,,-1)","v":1.283309931764242},{"$f":"_xlfn.XLOOKUP($B6,FeedTables!$C$42:$T$42,FeedTables!$C$46:$T$46,,-1)*_xlfn.XLOOKUP(N5,DensityMultiplier[Biomass kg/m3],DensityMultiplier[Multiplier],,-1)","v":3.2482059931241785},3971.2885437112327,{"$f":"IF(A6<='S3-Short'!$C$7,('Growth-Model-3'!G5*EXP($AA$7)),0)","v":13.336122757084844},{"$f":"IF(A6<='S3-Short'!$C$7,$AD$6*EXP($AD$7*('S3-Short'!C$7-'Growth-Model-3'!A6)),0)","v":2.2574309955413113E-6},92.047581303282527,2.2727797852662351E-2,606.20526816761571,3.89175473490929,180.51840650796777,{"$f":"M6/'S3-Short'!$C$17","v":6.6858669077025104},7.5248285625670723,35.643018468060113,{"$f":"_xlfn.XLOOKUP(B6,FeedTables!$C$17:$T$17,FeedTables!$C$31:$T$31,,-1)","v":"Unga 3mm"},{"$f":"_xlfn.XLOOKUP(Q6,FeedPrice[Feed],FeedPrice[Price per kg],\"Unknown\",0)*O6","v":798.75377957078842},3783.4743316679596,{"$f":"_xlfn.XLOOKUP(O6,LabourFromFeed[Feed Quantity (kg)],LabourFromFeed[No. Labour],\"Out of range\",-1)","v":1},{"$f":"T6*OperatingCosts!$C$9","v":1200},6000,null,null,null,"First morts",{"$f":"'S3-Short'!C18*AA5","v":24.3},null,"Final day morts",{"$f":"'S3-Short'!C18*AD5","v":4.05}]
[5,{"$f":"IF(A7<='S3-Short'!$C$7, B6*EXP((LN((E6/100)+1))*1),)","v":46.93237828361746},{"$f":"_xlfn.XLOOKUP($B7,FeedTables!$C$42:$T$42,FeedTables!$C$44:$T$44,,-1)","v":4.1684550113923917},{"$f":"_xlfn.XLOOKUP($B7,FeedTables!$C$42:$T$42,FeedTables!$C$45:$T$45,,-1)","v":1.283309931764242},{"$f":"_xlfn.XLOOKUP($B7,FeedTables!$C$42:$T$42,FeedTables!$C$46:$T$46,,-1)*_xlfn.XLOOKUP(N6,DensityMultiplier[Biomass kg/m3],DensityMultiplier[Multiplier],,-1)","v":3.2482059931241785},3957.9524186967169,{"$f":"IF(A7<='S3-Short'!$C$7,('Growth-Model-3'!G6*EXP($AA$7)),0)","v":11.47850723160666},{"$f":"IF(A7<='S3-Short'!$C$7,$AD$6*EXP($AD$7*('S3-Short'!C$7-'Growth-Model-3'!A7)),0)","v":2.7572324443104139E-6},103.52609129212163,2.5561997849906575E-2,538.71377292847842,4.4304685078377686,185.756120142833,{"$f":"M7/'S3-Short'!$C$17","v":6.8798563015864076},7.7431602990619943,43.386178767122104,{"$f":"_xlfn.XLOOKUP(B7,FeedTables!$C$17:$T$17,FeedTables!$C$31:$T$31,,-1)","v":"Unga 3mm"},{"$f":"_xlfn.XLOOKUP(Q7,FeedPrice[Feed],FeedPrice[Price per kg],\"Unknown\",0)*O7","v":821.92949690116154},4605.4038285691213,{"$f":"_xlfn.XLOOKUP(O7,LabourFromFeed[Feed Quantity (kg)],LabourFromFeed[No. Labour],\"Out of range\",-1)","v":1},{"$f":"T7*OperatingCosts!$C$9","v":1200},7200,null,null,null,"Li",{"$f":"'0-StartHere'!C78","v":-0.15},null,"Lf",{"$f":"'0-StartHere'!$C$83","v":-0.2}]
[6,{"$f":"IF(A8<='S3-Short'!$C$7, B7*EXP((LN((E7/100)+1))*1),)","v":48.456838607741638},{"$f":"_xlfn.XLOOKUP($B8,FeedTables!$C$42:$T$42,FeedTables!$C$44:$T$44,,-1)","v":4.1684550113923917},{"$f":"_xlfn.XLOOKUP($B8,FeedTables!$C$42:$T$42,FeedTables!$C$45:$T$45,,-1)","v":1.283309931764242},{"$f":"_xlfn.XLOOKUP($B8,FeedTables!$C$42:$T$42,FeedTables!$C$46:$T$46,,-1)*_xlfn.XLOOKUP(N7,DensityMultiplier[Biomass kg/m3],DensityMultiplier[Multiplier],,-1)","v":3.2482059931241785},3946.4739087078779,{"$f":"IF(A8<='S3-Short'!$C$7,('Growth-Model-3'!G7*EXP($AA$7)),0)","v":9.8796427316965598},{"$f":"IF(A8<='S3-Short'!$C$7,$AD$6*EXP($AD$7*('S3-Short'!C$7-'Growth-Model-3'!A8)),0)","v":3.3676913123694497E-6},113.4057373915095,2.8001416639878891E-2,478.73641653964228,4.909204924377411,191.23364926392094,{"$f":"M8/'S3-Short'!$C$17","v":7.0827277505155903},7.9714886362104629,51.35766740333257,{"$f":"_xlfn.XLOOKUP(B8,FeedTables!$C$17:$T$17,FeedTables!$C$31:$T$31,,-1)","v":"Unga 3mm"},{"$f":"_xlfn.XLOOKUP(Q8,FeedPrice[Feed],FeedPrice[Price per kg],\"Unknown\",0)*O8","v":846.16634439396807},5451.5701729630891,{"$f":"_xlfn.XLOOKUP(O8,LabourFromFeed[Feed Quantity (kg)],LabourFromFeed[No. Labour],\"Out of range\",-1)","v":1},{"$f":"T8*OperatingCosts!$C$9","v":1200},8400,null,null,null,"Final morts",{"$f":"AA6*EXP(AA7*'S3-Short'!C7)","v":2.7205028167495986E-4}]
[7,{"$f":"IF(A9<='S3-Short'!$C$7, B8*EXP((LN((E8/100)+1))*1),)","v":50.030816543476817},{"$f":"_xlfn.XLOOKUP($B9,FeedTables!$C$42:$T$42,FeedTables!$C$44:$T$44,,-1)","v":4.1684550113923917},{"$f":"_xlfn.XLOOKUP($B9,FeedTables!$C$42:$T$42,FeedTables!$C$45:$T$45,,-1)","v":1.283309931764242},{"$f":"_xlfn.XLOOKUP($B9,FeedTables!$C$42:$T$42,FeedTables!$C$46:$T$46,,-1)*_xlfn.XLOOKUP(N8,DensityMultiplier[Biomass kg/m3],DensityMultiplier[Multiplier],,-1)","v":3.2482059931241785},3936.5942626084898,{"$f":"IF(A9<='S3-Short'!$C$7,('Growth-Model-3'!G8*EXP($AA$7)),0)","v":8.5034873034010765},{"$f":"IF(A9<='S3-Short'!$C$7,$AD$6*EXP($AD$7*('S3-Short'!C$7-'Growth-Model-3'!A9)),0)","v":4.1133074575600856E-6},121.90922880821803,3.0101044150177291E-2,425.4366190483745,5.3346415434257857,196.95102535866877,{"$f":"M9/'S3-Short'!$C$17","v":7.2944824206914358},8.2098148865521292,59.567482289884701,{"$f":"_xlfn.XLOOKUP(B9,FeedTables!$C$17:$T$17,FeedTables!$C$31:$T$31,,-1)","v":"Unga 3mm"},{"$f":"_xlfn.XLOOKUP(Q9,FeedPrice[Feed],FeedPrice[Price per kg],\"Unknown\",0)*O9","v":871.46446137411067},6323.0346343372003,{"$f":"_xlfn.XLOOKUP(O9,LabourFromFeed[Feed Quantity (kg)],LabourFromFeed[No. Labour],\"Out of range\",-1)","v":1},{"$f":"T9*OperatingCosts!$C$9","v":1200},9600]
[8,{"$f":"IF(A10<='S3-Short'!$C$7, B9*EXP((LN((E9/100)+1))*1),)","v":51.655920524850998},{"$f":"_xlfn.XLOOKUP($B10,FeedTables!$C$42:$T$42,FeedTables!$C$44:$T$44,,-1)","v":4.1684550113923917},{"$f":"_xlfn.XLOOKUP($B10,FeedTables!$C$42:$T$42,FeedTables!$C$45:$T$45,,-1)","v":1.283309931764242},{"$f":"_xlfn.XLOOKUP($B10,FeedTables!$C$42:$T$42,FeedTables!$C$46:$T$46,,-1)*_xlfn.XLOOKUP(N9,DensityMultiplier[Biomass kg/m3],DensityMultiplier[Multiplier],,-1)","v":3.2482059931241785},3928.0907711917812,{"$f":"IF(A10<='S3-Short'!$C$7,('Growth-Model-3'!G9*EXP($AA$7)),0)","v":7.3190193494665126},{"$f":"IF(A10<='S3-Short'!$C$7,$AD$6*EXP($AD$7*('S3-Short'!C$7-'Growth-Model-3'!A10)),0)","v":5.0240050738246804E-6},129.22825318168961,3.1908210662145581E-2,378.07094135549568,5.7127124847812816,202.90914469108333,{"$f":"M10/'S3-Short'!$C$17","v":7.5151535070771605},8.4581764104489032,68.025658700333608,{"$f":"_xlfn.XLOOKUP(B10,FeedTables!$C$17:$T$17,FeedTables!$C$31:$T$31,,-1)","v":"Unga 3mm"},{"$f":"_xlfn.XLOOKUP(Q10,FeedPrice[Feed],FeedPrice[Price per kg],\"Unknown\",0)*O10","v":897.82781361038167},7220.862447947582,{"$f":"_xlfn.XLOOKUP(O10,LabourFromFeed[Feed Quantity (kg)],LabourFromFeed[No. Labour],\"Out of range\",-1)","v":1},{"$f":"T10*OperatingCosts!$C$9","v":1200},10800]
[9,{"$f":"IF(A11<='S3-Short'!$C$7, B10*EXP((LN((E10/100)+1))*1),)","v":53.333811231142676},{"$f":"_xlfn.XLOOKUP($B11,FeedTables!$C$42:$T$42,FeedTables!$C$44:$T$44,,-1)","v":4.1684550113923917},{"$f":"_xlfn.XLOOKUP($B11,FeedTables!$C$42:$T$42,FeedTables!$C$45:$T$45,,-1)","v":1.283309931764242},{"$f":"_xlfn.XLOOKUP($B11,FeedTables!$C$42:$T$42,FeedTables!$C$46:$T$46,,-1)*_xlfn.XLOOKUP(N10,DensityMultiplier[Biomass kg/m3],DensityMultiplier[Multiplier],,-1)","v":3.2482059931241785},3920.7717468183096,{"$f":"IF(A11<='S3-Short'!$C$7,('Growth-Model-3'!G10*EXP($AA$7)),0)","v":6.2995383336951649},{"$f":"IF(A11<='S3-Short'!$C$7,$AD$6*EXP($AD$7*('S3-Short'!C$7-'Growth-Model-3'!A11)),0)","v":6.1363336541801583E-6},135.52779765171843,3.3463653741165042E-2,335.9787156067058,6.0486912003879869,209.10970022520524,{"$f":"M11/'S3-Short'!$C$17","v":7.7448037120446385},8.7166437783451762,76.742302478678781,{"$f":"_xlfn.XLOOKUP(B11,FeedTables!$C$17:$T$17,FeedTables!$C$31:$T$31,,-1)","v":"Unga 3mm"},{"$f":"_xlfn.XLOOKUP(Q11,FeedPrice[Feed],FeedPrice[Price per kg],\"Unknown\",0)*O11","v":925.26389209193997},8146.1263400395219,{"$f":"_xlfn.XLOOKUP(O11,LabourFromFeed[Feed Quantity (kg)],LabourFromFeed[No. Labour],\"Out of range\",-1)","v":1},{"$f":"T11*OperatingCosts!$C$9","v":1200},12000]
[10,{"$f":"IF(A12<='S3-Short'!$C$7, B11*EXP((LN((E11/100)+1))*1),)","v":55.066203283914192},{"$f":"_xlfn.XLOOKUP($B12,FeedTables!$C$42:$T$42,FeedTables!$C$44:$T$44,,-1)","v":4.1684550113923917},{"$f":"_xlfn.XLOOKUP($B12,FeedTables!$C$42:$T$42,FeedTables!$C$45:$T$45,,-1)","v":1.283309931764242},{"$f":"_xlfn.XLOOKUP($B12,FeedTables!$C$42:$T$42,FeedTables!$C$46:$T$46,,-1)*_xlfn.XLOOKUP(N11,DensityMultiplier[Biomass kg/m3],DensityMultiplier[Multiplier],,-1)","v":3.2482059931241785},3914.4722023482809,{"$f":"IF(A12<='S3-Short'!$C$7,('Growth-Model-3'!G11*EXP($AA$7)),0)","v":5.4220628916068456},{"$f":"IF(A12<='S3-Short'!$C$7,$AD$6*EXP($AD$7*('S3-Short'!C$7-'Growth-Model-3'!A12)),0)","v":7.4949348502067142E-6},140.94986803826015,3.4802436552656829E-2,298.57283012499624,6.3472640305129833,215.55512204374173,{"$f":"M12/'S3-Short'!$C$17","v":7.9835230386571014},8.9853182871453381,85.727620765824113,{"$f":"_xlfn.XLOOKUP(B12,FeedTables!$C$17:$T$17,FeedTables!$C$31:$T$31,,-1)","v":"Unga 3mm"},{"$f":"_xlfn.XLOOKUP(Q12,FeedPrice[Feed],FeedPrice[Price per kg],\"Unknown\",0)*O12","v":953.78344939401927},9099.9097894335409,{"$f":"_xlfn.XLOOKUP(O12,LabourFromFeed[Feed Quantity (kg)],LabourFromFeed[No. Labour],\"Out of range\",-1)","v":1},{"$f":"T12*OperatingCosts!$C$9","v":1200},13200]
[11,{"$f":"IF(A13<='S3-Short'!$C$7, B12*EXP((LN((E12/100)+1))*1),)","v":56.854866999168237},{"$f":"_xlfn.XLOOKUP($B13,FeedTables!$C$42:$T$42,FeedTables!$C$44:$T$44,,-1)","v":4.1684550113923917},{"$f":"_xlfn.XLOOKUP($B13,FeedTables!$C$42:$T$42,FeedTables!$C$45:$T$45,,-1)","v":1.283309931764242},{"$f":"_xlfn.XLOOKUP($B13,FeedTables!$C$42:$T$42,FeedTables!$C$46:$T$46,,-1)*_xlfn.XLOOKUP(N12,DensityMultiplier[Biomass kg/m3],DensityMultiplier[Multiplier],,-1)","v":3.2482059931241785},3909.0501319617392,{"$f":"IF(A13<='S3-Short'!$C$7,('Growth-Model-3'!G12*EXP($AA$7)),0)","v":4.6668127794843253},{"$f":"IF(A13<='S3-Short'!$C$7,$AD$6*EXP($AD$7*('S3-Short'!C$7-'Growth-Model-3'!A13)),0)","v":9.1543340982732685E-6},145.61668997207858,3.595473826471076E-2,265.33154035604758,6.6125955708690309,222.24852534576573,{"$f":"M13/'S3-Short'!$C$17","v":8.2314268646579904},9.2643297925212611,94.99195055834538,{"$f":"_xlfn.XLOOKUP(B13,FeedTables!$C$17:$T$17,FeedTables!$C$31:$T$31,,-1)","v":"Unga 3mm"},{"$f":"_xlfn.XLOOKUP(Q13,FeedPrice[Feed],FeedPrice[Price per kg],\"Unknown\",0)*O13","v":983.40026957931866},10083.31005901286,{"$f":"_xlfn.XLOOKUP(O13,LabourFromFeed[Feed Quantity (kg)],LabourFromFeed[No. Labour],\"Out of range\",-1)","v":1},{"$f":"T13*OperatingCosts!$C$9","v":1200},14400]
[12,{"$f":"IF(A14<='S3-Short'!$C$7, B13*EXP((LN((E13/100)+1))*1),)","v":58.701630196418009},{"$f":"_xlfn.XLOOKUP($B14,FeedTables!$C$42:$T$42,FeedTables!$C$44:$T$44,,-1)","v":4.1684550113923917},{"$f":"_xlfn.XLOOKUP($B14,FeedTables!$C$42:$T$42,FeedTables!$C$45:$T$45,,-1)","v":1.283309931764242},{"$f":"_xlfn.XLOOKUP($B14,FeedTables!$C$42:$T$42,FeedTables!$C$46:$T$46,,-1)*_xlfn.XLOOKUP(N13,DensityMultiplier[Biomass kg/m3],DensityMultiplier[Multiplier],,-1)","v":3.2482059931241785},3904.3833100279207,{"$f":"IF(A14<='S3-Short'!$C$7,('Growth-Model-3'!G13*EXP($AA$7)),0)","v":4.0167629837845533},{"$f":"IF(A14<='S3-Short'!$C$7,$AD$6*EXP($AD$7*('S3-Short'!C$7-'Growth-Model-3'!A14)),0)","v":1.1181128916750654E-5},149.63346413699205,3.6946534354812849E-2,235.7911916112763,6.848386762480307,229.19366521032546,{"$f":"M14/'S3-Short'!$C$17","v":8.4886542670490908},9.5538348232537125,104.54578538159909,{"$f":"_xlfn.XLOOKUP(B14,FeedTables!$C$17:$T$17,FeedTables!$C$31:$T$31,,-1)","v":"Unga 3mm"},{"$f":"_xlfn.XLOOKUP(Q14,FeedPrice[Feed],FeedPrice[Price per kg],\"Unknown\",0)*O14","v":1014.1309680370407},11097.441027049901,{"$f":"_xlfn.XLOOKUP(O14,LabourFromFeed[Feed Quantity (kg)],LabourFromFeed[No. Labour],\"Out of range\",-1)","v":1},{"$f":"T14*OperatingCosts!$C$9","v":1200},15600]
[13,{"$f":"IF(A15<='S3-Short'!$C$7, B14*EXP((LN((E14/100)+1))*1),)","v":60.608380066519658},{"$f":"_xlfn.XLOOKUP($B15,FeedTables!$C$42:$T$42,FeedTables!$C$44:$T$44,,-1)","v":4.1684550113923917},{"$f":"_xlfn.XLOOKUP($B15,FeedTables!$C$42:$T$42,FeedTables!$C$45:$T$45,,-1)","v":1.283309931764242},{"$f":"_xlfn.XLOOKUP($B15,FeedTables!$C$42:$T$42,FeedTables!$C$46:$T$46,,-1)*_xlfn.XLOOKUP(N14,DensityMultiplier[Biomass kg/m3],DensityMultiplier[Multiplier],,-1)","v":3.2482059931241785},3900.3665358630069,{"$f":"IF(A15<='S3-Short'!$C$7,('Growth-Model-3'!G14*EXP($AA$7)),0)","v":3.4572599395522801},{"$f":"IF(A15<='S3-Short'!$C$7,$AD$6*EXP($AD$7*('S3-Short'!C$7-'Growth-Model-3'!A15)),0)","v":1.3656661698263673E-5},153.09073773320603,3.7800182156347166E-2,209.53975211328003,7.0579265145935874,236.39489740431981,{"$f":"M15/'S3-Short'!$C$17","v":8.7553665705303629},9.8540149475262719,114.39980032912536,{"$f":"_xlfn.XLOOKUP(B15,FeedTables!$C$17:$T$17,FeedTables!$C$31:$T$31,,-1)","v":"Unga 3mm"},{"$f":"_xlfn.XLOOKUP(Q15,FeedPrice[Feed],FeedPrice[Price per kg],\"Unknown\",0)*O15","v":1045.994818066461},12143.435845116363,{"$f":"_xlfn.XLOOKUP(O15,LabourFromFeed[Feed Quantity (kg)],LabourFromFeed[No. Labour],\"Out of range\",-1)","v":1},{"$f":"T15*OperatingCosts!$C$9","v":1200},16800]
[14,{"$f":"IF(A16<='S3-Short'!$C$7, B15*EXP((LN((E15/100)+1))*1),)","v":62.577065100175837},{"$f":"_xlfn.XLOOKUP($B16,FeedTables!$C$42:$T$42,FeedTables!$C$44:$T$44,,-1)","v":4.1684550113923917},{"$f":"_xlfn.XLOOKUP($B16,FeedTables!$C$42:$T$42,FeedTables!$C$45:$T$45,,-1)","v":1.283309931764242},{"$f":"_xlfn.XLOOKUP($B16,FeedTables!$C$42:$T$42,FeedTables!$C$46:$T$46,,-1)*_xlfn.XLOOKUP(N15,DensityMultiplier[Biomass kg/m3],DensityMultiplier[Multiplier],,-1)","v":3.2482059931241785},3896.9092622667927,{"$f":"IF(A16<='S3-Short'!$C$7,('Growth-Model-3'!G15*EXP($AA$7)),0)","v":2.9756912065474608},{"$f":"IF(A16<='S3-Short'!$C$7,$AD$6*EXP($AD$7*('S3-Short'!C$7-'Growth-Model-3'!A16)),0)","v":1.6680284265519618E-5},156.06644562003774,3.8534924844453762E-2,186.21106615337561,7.2441375807469628,243.85714459434729,{"$f":"M16/'S3-Short'!$C$17","v":9.0317460960869358},10.165075364481462,124.56487569360682,{"$f":"_xlfn.XLOOKUP(B16,FeedTables!$C$17:$T$17,FeedTables!$C$31:$T$31,,-1)","v":"Unga 3mm"},{"$f":"_xlfn.XLOOKUP(Q16,FeedPrice[Feed],FeedPrice[Price per kg],\"Unknown\",0)*O16","v":1079.0136013718791},13222.449446488241,{"$f":"_xlfn.XLOOKUP(O16,LabourFromFeed[Feed Quantity (kg)],LabourFromFeed[No. Labour],\"Out of range\",-1)","v":1},{"$f":"T16*OperatingCosts!$C$9","v":1200},18000]
[15,{"$f":"IF(A17<='S3-Short'!$C$7, B16*EXP((LN((E16/100)+1))*1),)","v":64.609697079080973},{"$f":"_xlfn.XLOOKUP($B17,FeedTables!$C$42:$T$42,FeedTables!$C$44:$T$44,,-1)","v":4.1684550113923917},{"$f":"_xlfn.XLOOKUP($B17,FeedTables!$C$42:$T$42,FeedTables!$C$45:$T$45,,-1)","v":1.283309931764242},{"$f":"_xlfn.XLOOKUP($B17,FeedTables!$C$42:$T$42,FeedTables!$C$46:$T$46,,-1)*_xlfn.XLOOKUP(N16,DensityMultiplier[Biomass kg/m3],DensityMultiplier[Multiplier],,-1)","v":3.2482059931241785},3893.9335543799612,{"$f":"IF(A17<='S3-Short'!$C$7,('Growth-Model-3'!G16*EXP($AA$7)),0)","v":2.5612011568533037},{"$f":"IF(A17<='S3-Short'!$C$7,$AD$6*EXP($AD$7*('S3-Short'!C$7-'Growth-Model-3'!A17)),0)","v":2.0373345208801326E-5},158.62766715023628,3.9167325222280565E-2,165.47974721854612,7.4096173279655089,251.58586739455836,{"$f":"M17/'S3-Short'!$C$17","v":9.317995088687347},10.487243697363485,135.05211939097032,{"$f":"_xlfn.XLOOKUP(B17,FeedTables!$C$17:$T$17,FeedTables!$C$31:$T$31,,-1)","v":"Unga 3mm"},{"$f":"_xlfn.XLOOKUP(Q17,FeedPrice[Feed],FeedPrice[Price per kg],\"Unknown\",0)*O17","v":1113.2114799558065},14335.660926444047,{"$f":"_xlfn.XLOOKUP(O17,LabourFromFeed[Feed Quantity (kg)],LabourFromFeed[No. Labour],\"Out of range\",-1)","v":1},{"$f":"T17*OperatingCosts!$C$9","v":1200},19200]
[16,{"$f":"IF(A18<='S3-Short'!$C$7, B17*EXP((LN((E17/100)+1))*1),)","v":66.708353131743067},{"$f":"_xlfn.XLOOKUP($B18,FeedTables!$C$42:$T$42,FeedTables!$C$44:$T$44,,-1)","v":4.1684550113923917},{"$f":"_xlfn.XLOOKUP($B18,FeedTables!$C$42:$T$42,FeedTables!$C$45:$T$45,,-1)","v":1.283309931764242},{"$f":"_xlfn.XLOOKUP($B18,FeedTables!$C$42:$T$42,FeedTables!$C$46:$T$46,,-1)*_xlfn.XLOOKUP(N17,DensityMultiplier[Biomass kg/m3],DensityMultiplier[Multiplier],,-1)","v":3.2482059931241785},3891.3723328497626,{"$f":"IF(A18<='S3-Short'!$C$7,('Growth-Model-3'!G17*EXP($AA$7)),0)","v":2.2044462649327241},{"$f":"IF(A18<='S3-Short'!$C$7,$AD$6*EXP($AD$7*('S3-Short'!C$7-'Growth-Model-3'!A18)),0)","v":2.4884060030979249E-5},160.83213829922903,3.9711639086229392E-2,147.05663987574809,7.5566739678412569,259.58703974683681,{"$f":"M18/'S3-Short'!$C$17","v":9.6143348054383999},10.82076896725218,145.8728883582225,{"$f":"_xlfn.XLOOKUP(B18,FeedTables!$C$17:$T$17,FeedTables!$C$31:$T$31,,-1)","v":"Unga 3mm"},{"$f":"_xlfn.XLOOKUP(Q18,FeedPrice[Feed],FeedPrice[Price per kg],\"Unknown\",0)*O18","v":1148.6148871817484},15484.275813625794,{"$f":"_xlfn.XLOOKUP(O18,LabourFromFeed[Feed Quantity (kg)],LabourFromFeed[No. Labour],\"Out of range\",-1)","v":1},{"$f":"T18*OperatingCosts!$C$9","v":1200},20400]
[17,{"$f":"IF(A19<='S3-Short'!$C$7, B18*EXP((LN((E18/100)+1))*1),)","v":68.875177856082786},{"$f":"_xlfn.XLOOKUP($B19,FeedTables!$C$42:$T$42,FeedTables!$C$44:$T$44,,-1)","v":4.1684550113923917},{"$f":"_xlfn.XLOOKUP($B19,FeedTables!$C$42:$T$42,FeedTables!$C$45:$T$45,,-1)","v":1.283309931764242},{"$f":"_xlfn.XLOOKUP($B19,FeedTables!$C$42:$T$42,FeedTables!$C$46:$T$46,,-1)*_xlfn.XLOOKUP(N18,DensityMultiplier[Biomass kg/m3],DensityMultiplier[Multiplier],,-1)","v":3.2482059931241785},3889.1678617007697,{"$f":"IF(A19<='S3-Short'!$C$7,('Growth-Model-3'!G18*EXP($AA$7)),0)","v":1.8973844838280218},{"$f":"IF(A19<='S3-Short'!$C$7,$AD$6*EXP($AD$7*('S3-Short'!C$7-'Growth-Model-3'!A19)),0)","v":3.0393459556061274E-5},162.72955317651662,4.018013658679423E-2,130.68478713995941,7.6873587549812159,267.86712818680166,{"$f":"M19/'S3-Short'!$C$17","v":9.9210047476593211},11.165920728775616,157.0388090869981,{"$f":"_xlfn.XLOOKUP(B19,FeedTables!$C$17:$T$17,FeedTables!$C$31:$T$31,,-1)","v":"Unga 3mm"},{"$f":"_xlfn.XLOOKUP(Q19,FeedPrice[Feed],FeedPrice[Price per kg],\"Unknown\",0)*O19","v":1185.2524360308757},16669.528249656669,{"$f":"_xlfn.XLOOKUP(O19,LabourFromFeed[Feed Quantity (kg)],LabourFromFeed[No. Labour],\"Out of range\",-1)","v":1},{"$f":"T19*OperatingCosts!$C$9","v":1200},21600]
[18,{"$f":"IF(A20<='S3-Short'!$C$7, B19*EXP((LN((E19/100)+1))*1),)","v":71.11238551097901},{"$f":"_xlfn.XLOOKUP($B20,FeedTables!$C$42:$T$42,FeedTables!$C$44:$T$44,,-1)","v":3.5416853289047179},{"$f":"_xlfn.XLOOKUP($B20,FeedTables!$C$42:$T$42,FeedTables!$C$45:$T$45,,-1)","v":1.3532619052561699},{"$f":"_xlfn.XLOOKUP($B20,FeedTables!$C$42:$T$42,FeedTables!$C$46:$T$46,,-1)*_xlfn.XLOOKUP(N19,DensityMultiplier[Biomass kg/m3],DensityMultiplier[Multiplier],,-1)","v":2.6171469950853923},3887.2704468234824,{"$f":"IF(A20<='S3-Short'!$C$7,('Growth-Model-3'!G19*EXP($AA$7)),0)","v":1.6330939595759195},{"$f":"IF(A20<='S3-Short'!$C$7,$AD$6*EXP($AD$7*('S3-Short'!C$7-'Growth-Model-3'!A20)),0)","v":3.7122655331802788E-5},164.36268425874786,4.0583378829320463E-2,116.1358471095911,7.8034946020908071,276.43307459994713,{"$f":"M20/'S3-Short'!$C$17","v":10.238262022220264},9.7903896473465615,166.82919873434466,{"$f":"_xlfn.XLOOKUP(B20,FeedTables!$C$17:$T$17,FeedTables!$C$31:$T$31,,-1)","v":"Unga 3mm"},{"$f":"_xlfn.XLOOKUP(Q20,FeedPrice[Feed],FeedPrice[Price per kg],\"Unknown\",0)*O20","v":1039.241049715155},17708.769299371823,{"$f":"_xlfn.XLOOKUP(O20,LabourFromFeed[Feed Quantity (kg)],LabourFromFeed[No. Labour],\"Out of range\",-1)","v":1},{"$f":"T20*OperatingCosts!$C$9","v":1200},22800]
[19,{"$f":"IF(A21<='S3-Short'!$C$7, B20*EXP((LN((E20/100)+1))*1),)","v":72.973501171513135},{"$f":"_xlfn.XLOOKUP($B21,FeedTables!$C$42:$T$42,FeedTables!$C$44:$T$44,,-1)","v":3.5416853289047179},{"$f":"_xlfn.XLOOKUP($B21,FeedTables!$C$42:$T$42,FeedTables!$C$45:$T$45,,-1)","v":1.3532619052561699},{"$f":"_xlfn.XLOOKUP($B21,FeedTables!$C$42:$T$42,FeedTables!$C$46:$T$46,,-1)*_xlfn.XLOOKUP(N20,DensityMultiplier[Biomass kg/m3],DensityMultiplier[Multiplier],,-1)","v":2.6171469950853923},3885.6373157412513,{"$f":"IF(A21<='S3-Short'!$C$7,('Growth-Model-3'!G20*EXP($AA$7)),0)","v":1.4056169972585748},{"$f":"IF(A21<='S3-Short'!$C$7,$AD$6*EXP($AD$7*('S3-Short'!C$7-'Growth-Model-3'!A21)),0)","v":4.5341713612493307E-5},165.76834659772004,4.0930455950054331E-2,102.57610233973881,7.9060707044305456,283.54855921231939,{"$f":"M21/'S3-Short'!$C$17","v":10.501798489345163},10.042397721943424,176.87159645628807,{"$f":"_xlfn.XLOOKUP(B21,FeedTables!$C$17:$T$17,FeedTables!$C$31:$T$31,,-1)","v":"Unga 3mm"},{"$f":"_xlfn.XLOOKUP(Q21,FeedPrice[Feed],FeedPrice[Price per kg],\"Unknown\",0)*O21","v":1065.9914800263448},18774.760779398166,{"$f":"_xlfn.XLOOKUP(O21,LabourFromFeed[Feed Quantity (kg)],LabourFromFeed[No. Labour],\"Out of range\",-1)","v":1},{"$f":"T21*OperatingCosts!$C$9","v":1200},24000]
[20,{"$f":"IF(A22<='S3-Short'!$C$7, B21*EXP((LN((E21/100)+1))*1),)","v":74.883324964631996},{"$f":"_xlfn.XLOOKUP($B22,FeedTables!$C$42:$T$42,FeedTables!$C$44:$T$44,,-1)","v":3.5416853289047179},{"$f":"_xlfn.XLOOKUP($B22,FeedTables!$C$42:$T$42,FeedTables!$C$45:$T$45,,-1)","v":1.3532619052561699},{"$f":"_xlfn.XLOOKUP($B22,FeedTables!$C$42:$T$42,FeedTables!$C$46:$T$46,,-1)*_xlfn.XLOOKUP(N21,DensityMultiplier[Biomass kg/m3],DensityMultiplier[Multiplier],,-1)","v":2.6171469950853923},3884.2316534022789,{"$f":"IF(A22<='S3-Short'!$C$7,('Growth-Model-3'!G21*EXP($AA$7)),0)","v":1.2098257613390939},{"$f":"IF(A22<='S3-Short'!$C$7,$AD$6*EXP($AD$7*('S3-Short'!C$7-'Growth-Model-3'!A22)),0)","v":5.53804940660078E-5},166.9782277395532,4.122919203445758E-2,90.599922712472519,7.9966706271430184,290.86418113963271,{"$f":"M22/'S3-Short'!$C$17","v":10.772747449616027},10.301494030461216,187.17309048674929,{"$f":"_xlfn.XLOOKUP(B22,FeedTables!$C$17:$T$17,FeedTables!$C$31:$T$31,,-1)","v":"Unga 3mm"},{"$f":"_xlfn.XLOOKUP(Q22,FeedPrice[Feed],FeedPrice[Price per kg],\"Unknown\",0)*O22","v":1093.4943199888307},19868.255099386995,{"$f":"_xlfn.XLOOKUP(O22,LabourFromFeed[Feed Quantity (kg)],LabourFromFeed[No. Labour],\"Out of range\",-1)","v":1},{"$f":"T22*OperatingCosts!$C$9","v":1200},25200]
[21,{"$f":"IF(A23<='S3-Short'!$C$7, B22*EXP((LN((E22/100)+1))*1),)","v":76.843131653763891},{"$f":"_xlfn.XLOOKUP($B23,FeedTables!$C$42:$T$42,FeedTables!$C$44:$T$44,,-1)","v":3.5416853289047179},{"$f":"_xlfn.XLOOKUP($B23,FeedTables!$C$42:$T$42,FeedTables!$C$45:$T$45,,-1)","v":1.3532619052561699},{"$f":"_xlfn.XLOOKUP($B23,FeedTables!$C$42:$T$42,FeedTables!$C$46:$T$46,,-1)*_xlfn.XLOOKUP(N22,DensityMultiplier[Biomass kg/m3],DensityMultiplier[Multiplier],,-1)","v":2.6171469950853923},3883.0217722604457,{"$f":"IF(A23<='S3-Short'!$C$7,('Growth-Model-3'!G22*EXP($AA$7)),0)","v":1.0413066828690765},{"$f":"IF(A23<='S3-Short'!$C$7,$AD$6*EXP($AD$7*('S3-Short'!C$7-'Growth-Model-3'!A23)),0)","v":6.7641888200494922E-5},168.01960206431048,4.1486321497360611E-2,80.022464338172895,8.0766930914811912,298.383553260241,{"$f":"M23/'S3-Short'!$C$17","v":11.05124271334226},10.567806529682551,197.74089701643183,{"$f":"_xlfn.XLOOKUP(B23,FeedTables!$C$17:$T$17,FeedTables!$C$31:$T$31,,-1)","v":"Unga 3mm"},{"$f":"_xlfn.XLOOKUP(Q23,FeedPrice[Feed],FeedPrice[Price per kg],\"Unknown\",0)*O23","v":1121.7631520999262},20990.018251486923,{"$f":"_xlfn.XLOOKUP(O23,LabourFromFeed[Feed Quantity (kg)],LabourFromFeed[No. Labour],\"Out of range\",-1)","v":1},{"$f":"T23*OperatingCosts!$C$9","v":1200},26400]
[22,{"$f":"IF(A24<='S3-Short'!$C$7, B23*EXP((LN((E23/100)+1))*1),)","v":78.854229364769893},{"$f":"_xlfn.XLOOKUP($B24,FeedTables!$C$42:$T$42,FeedTables!$C$44:$T$44,,-1)","v":3.5416853289047179},{"$f":"_xlfn.XLOOKUP($B24,FeedTables!$C$42:$T$42,FeedTables!$C$45:$T$45,,-1)","v":1.3532619052561699},{"$f":"_xlfn.XLOOKUP($B24,FeedTables!$C$42:$T$42,FeedTables!$C$46:$T$46,,-1)*_xlfn.XLOOKUP(N23,DensityMultiplier[Biomass kg/m3],DensityMultiplier[Multiplier],,-1)","v":2.6171469950853923},3881.9803979356884,{"$f":"IF(A24<='S3-Short'!$C$7,('Growth-Model-3'!G23*EXP($AA$7)),0)","v":0.89626096785013221},{"$f":"IF(A24<='S3-Short'!$C$7,$AD$6*EXP($AD$7*('S3-Short'!C$7-'Growth-Model-3'!A24)),0)","v":8.2617988815246275E-5},168.91594565014944,4.1707640901271464E-2,70.68048270738467,8.1473735741885758,306.11057268836146,{"$f":"M24/'S3-Short'!$C$17","v":11.337428618087461},10.84147324312991,208.58237025956174,{"$f":"_xlfn.XLOOKUP(B24,FeedTables!$C$17:$T$17,FeedTables!$C$31:$T$31,,-1)","v":"Unga 3mm"},{"$f":"_xlfn.XLOOKUP(Q24,FeedPrice[Feed],FeedPrice[Price per kg],\"Unknown\",0)*O24","v":1150.8126274323211},22140.830878919245,{"$f":"_xlfn.XLOOKUP(O24,LabourFromFeed[Feed Quantity (kg)],LabourFromFeed[No. Labour],\"Out of range\",-1)","v":1},{"$f":"T24*OperatingCosts!$C$9","v":1200},27600]
[23,{"$f":"IF(A25<='S3-Short'!$C$7, B24*EXP((LN((E24/100)+1))*1),)","v":80.917960459087709},{"$f":"_xlfn.XLOOKUP($B25,FeedTables!$C$42:$T$42,FeedTables!$C$44:$T$44,,-1)","v":3.5416853289047179},{"$f":"_xlfn.XLOOKUP($B25,FeedTables!$C$42:$T$42,FeedTables!$C$45:$T$45,,-1)","v":1.3532619052561699},{"$f":"_xlfn.XLOOKUP($B25,FeedTables!$C$42:$T$42,FeedTables!$C$46:$T$46,,-1)*_xlfn.XLOOKUP(N24,DensityMultiplier[Biomass kg/m3],DensityMultiplier[Multiplier],,-1)","v":2.6171469950853923},3881.0840543498493,{"$f":"IF(A25<='S3-Short'!$C$7,('Growth-Model-3'!G24*EXP($AA$7)),0)","v":0.77141896398705112},{"$f":"IF(A25<='S3-Short'!$C$7,$AD$6*EXP($AD$7*('S3-Short'!C$7-'Growth-Model-3'!A25)),0)","v":1.009098394125878E-4},169.6874655239759,4.1898139635549607E-2,62.429814643690129,8.2098033888322668,314.04940604827692,{"$f":"M25/'S3-Short'!$C$17","v":11.631459483269516},11.12264173952423,219.70501199908597,{"$f":"_xlfn.XLOOKUP(B25,FeedTables!$C$17:$T$17,FeedTables!$C$31:$T$31,,-1)","v":"Unga 3mm"},{"$f":"_xlfn.XLOOKUP(Q25,FeedPrice[Feed],FeedPrice[Price per kg],\"Unknown\",0)*O25","v":1180.6584102729314},23321.489289192177,{"$f":"_xlfn.XLOOKUP(O25,LabourFromFeed[Feed Quantity (kg)],LabourFromFeed[No. Labour],\"Out of range\",-1)","v":1},{"$f":"T25*OperatingCosts!$C$9","v":1200},28800]
[24,{"$f":"IF(A26<='S3-Short'!$C$7, B25*EXP((LN((E25/100)+1))*1),)","v":83.03570242972711},{"$f":"_xlfn.XLOOKUP($B26,FeedTables!$C$42:$T$42,FeedTables!$C$44:$T$44,,-1)","v":3.5416853289047179},{"$f":"_xlfn.XLOOKUP($B26,FeedTables!$C$42:$T$42,FeedTables!$C$45:$T$45,,-1)","v":1.3532619052561699},{"$f":"_xlfn.XLOOKUP($B26,FeedTables!$C$42:$T$42,FeedTables!$C$46:$T$46,,-1)*_xlfn.XLOOKUP(N25,DensityMultiplier[Biomass kg/m3],DensityMultiplier[Multiplier],,-1)","v":2.6171469950853923},3880.3125344760228,{"$f":"IF(A26<='S3-Short'!$C$7,('Growth-Model-3'!G25*EXP($AA$7)),0)","v":0.66396645546920929},{"$f":"IF(A26<='S3-Short'!$C$7,$AD$6*EXP($AD$7*('S3-Short'!C$7-'Growth-Model-3'!A26)),0)","v":1.2325155618403468E-4},170.3515552310013,4.2062112402716373E-2,55.143155299205219,8.2649465441314725,322.20447694709122,{"$f":"M26/'S3-Short'!$C$17","v":11.933499146188565},11.411468689109315,231.11648068819528,{"$f":"_xlfn.XLOOKUP(B26,FeedTables!$C$17:$T$17,FeedTables!$C$31:$T$31,,-1)","v":"Unga 3mm"},{"$f":"_xlfn.XLOOKUP(Q26,FeedPrice[Feed],FeedPrice[Price per kg],\"Unknown\",0)*O26","v":1211.3171310271337},24532.806420219313,{"$f":"_xlfn.XLOOKUP(O26,LabourFromFeed[Feed Quantity (kg)],LabourFromFeed[No. Labour],\"Out of range\",-1)","v":1},{"$f":"T26*OperatingCosts!$C$9","v":1200},30000]
[25,{"$f":"IF(A27<='S3-Short'!$C$7, B26*EXP((LN((E26/100)+1))*1),)","v":85.20886882071477},{"$f":"_xlfn.XLOOKUP($B27,FeedTables!$C$42:$T$42,FeedTables!$C$44:$T$44,,-1)","v":3.5416853289047179},{"$f":"_xlfn.XLOOKUP($B27,FeedTables!$C$42:$T$42,FeedTables!$C$45:$T$45,,-1)","v":1.3532619052561699},{"$f":"_xlfn.XLOOKUP($B27,FeedTables!$C$42:$T$42,FeedTables!$C$46:$T$46,,-1)*_xlfn.XLOOKUP(N26,DensityMultiplier[Biomass kg/m3],DensityMultiplier[Multiplier],,-1)","v":2.6171469950853923},3879.6484447689977,{"$f":"IF(A27<='S3-Short'!$C$7,('Growth-Model-3'!G26*EXP($AA$7)),0)","v":0.57148122430102144},{"$f":"IF(A27<='S3-Short'!$C$7,$AD$6*EXP($AD$7*('S3-Short'!C$7-'Growth-Model-3'!A27)),0)","v":1.50539790670713E-4},170.92318699509298,4.2203256048171107E-2,48.708096000242769,8.3136546401317144,330.58045540081162,{"$f":"M27/'S3-Short'!$C$17","v":12.243720570400431},11.70811948915695,242.82460017735224,{"$f":"_xlfn.XLOOKUP(B27,FeedTables!$C$17:$T$17,FeedTables!$C$31:$T$31,,-1)","v":"Unga 3mm"},{"$f":"_xlfn.XLOOKUP(Q27,FeedPrice[Feed],FeedPrice[Price per kg],\"Unknown\",0)*O27","v":1242.8063464664699},25775.612766685783,{"$f":"_xlfn.XLOOKUP(O27,LabourFromFeed[Feed Quantity (kg)],LabourFromFeed[No. Labour],\"Out of range\",-1)","v":1},{"$f":"T27*OperatingCosts!$C$9","v":1200},31200]
[26,{"$f":"IF(A28<='S3-Short'!$C$7, B27*EXP((LN((E27/100)+1))*1),)","v":87.438910170602369},{"$f":"_xlfn.XLOOKUP($B28,FeedTables!$C$42:$T$42,FeedTables!$C$44:$T$44,,-1)","v":3.5416853289047179},{"$f":"_xlfn.XLOOKUP($B28,FeedTables!$C$42:$T$42,FeedTables!$C$45:$T$45,,-1)","v":1.3532619052561699},{"$f":"_xlfn.XLOOKUP($B28,FeedTables!$C$42:$T$42,FeedTables!$C$46:$T$46,,-1)*_xlfn.XLOOKUP(N27,DensityMultiplier[Biomass kg/m3],DensityMultiplier[Multiplier],,-1)","v":2.6171469950853923},3879.0768130049059,{"$f":"IF(A28<='S3-Short'!$C$7,('Growth-Model-3'!G27*EXP($AA$7)),0)","v":0.49187844813304671},{"$f":"IF(A28<='S3-Short'!$C$7,$AD$6*EXP($AD$7*('S3-Short'!C$7-'Growth-Model-3'!A28)),0)","v":1.8386971553806364E-4},171.41524931294154,4.232475291677569E-2,43.025392808700794,8.3566800329404156,339.18224899720246,{"$f":"M28/'S3-Short'!$C$17","v":12.562305518414906},12.01276795098299,254.83736812833524,{"$f":"_xlfn.XLOOKUP(B28,FeedTables!$C$17:$T$17,FeedTables!$C$31:$T$31,,-1)","v":"Unga 3mm"},{"$f":"_xlfn.XLOOKUP(Q28,FeedPrice[Feed],FeedPrice[Price per kg],\"Unknown\",0)*O28","v":1275.1445065056887},27050.75727319147,{"$f":"_xlfn.XLOOKUP(O28,LabourFromFeed[Feed Quantity (kg)],LabourFromFeed[No. Labour],\"Out of range\",-1)","v":1},{"$f":"T28*OperatingCosts!$C$9","v":1200},32400]
[27,{"$f":"IF(A29<='S3-Short'!$C$7, B28*EXP((LN((E28/100)+1))*1),)","v":89.727314980667714},{"$f":"_xlfn.XLOOKUP($B29,FeedTables!$C$42:$T$42,FeedTables!$C$44:$T$44,,-1)","v":3.5416853289047179},{"$f":"_xlfn.XLOOKUP($B29,FeedTables!$C$42:$T$42,FeedTables!$C$45:$T$45,,-1)","v":1.3532619052561699},{"$f":"_xlfn.XLOOKUP($B29,FeedTables!$C$42:$T$42,FeedTables!$C$46:$T$46,,-1)*_xlfn.XLOOKUP(N28,DensityMultiplier[Biomass kg/m3],DensityMultiplier[Multiplier],,-1)","v":2.6171469950853923},3878.5847506870577,{"$f":"IF(A29<='S3-Short'!$C$7,('Growth-Model-3'!G28*EXP($AA$7)),0)","v":0.4233637037396924},{"$f":"IF(A29<='S3-Short'!$C$7,$AD$6*EXP($AD$7*('S3-Short'!C$7-'Growth-Model-3'!A29)),0)","v":2.2457897770031661E-4},171.83883759565893,4.2429342616212083E-2,38.007439265503628,8.3946874722059199,348.01499560411219,{"$f":"M29/'S3-Short'!$C$17","v":12.889444281633784},12.325596041699241,267.16296417003446,{"$f":"_xlfn.XLOOKUP(B29,FeedTables!$C$17:$T$17,FeedTables!$C$31:$T$31,,-1)","v":"Unga 3mm"},{"$f":"_xlfn.XLOOKUP(Q29,FeedPrice[Feed],FeedPrice[Price per kg],\"Unknown\",0)*O29","v":1308.3509267899369},28359.108199981405,{"$f":"_xlfn.XLOOKUP(O29,LabourFromFeed[Feed Quantity (kg)],LabourFromFeed[No. Labour],\"Out of range\",-1)","v":1},{"$f":"T29*OperatingCosts!$C$9","v":1200},33600]
[28,{"$f":"IF(A30<='S3-Short'!$C$7, B29*EXP((LN((E29/100)+1))*1),)","v":92.075610708455073},{"$f":"_xlfn.XLOOKUP($B30,FeedTables!$C$42:$T$42,FeedTables!$C$44:$T$44,,-1)","v":3.5416853289047179},{"$f":"_xlfn.XLOOKUP($B30,FeedTables!$C$42:$T$42,FeedTables!$C$45:$T$45,,-1)","v":1.3532619052561699},{"$f":"_xlfn.XLOOKUP($B30,FeedTables!$C$42:$T$42,FeedTables!$C$46:$T$46,,-1)*_xlfn.XLOOKUP(N29,DensityMultiplier[Biomass kg/m3],DensityMultiplier[Multiplier],,-1)","v":2.6171469950853923},3878.1611624043403,{"$f":"IF(A30<='S3-Short'!$C$7,('Growth-Model-3'!G29*EXP($AA$7)),0)","v":0.36439251673760831},{"$f":"IF(A30<='S3-Short'!$C$7,$AD$6*EXP($AD$7*('S3-Short'!C$7-'Growth-Model-3'!A30)),0)","v":2.7430138278795776E-4},172.20350441377931,4.2519383805871433E-2,33.576919983544599,8.4282643921894653,357.08405745419168,{"$f":"M30/'S3-Short'!$C$17","v":13.225335461266358},12.6467936747128,279.80975784474725,{"$f":"_xlfn.XLOOKUP(B30,FeedTables!$C$17:$T$17,FeedTables!$C$31:$T$31,,-1)","v":"Unga 3mm"},{"$f":"_xlfn.XLOOKUP(Q30,FeedPrice[Feed],FeedPrice[Price per kg],\"Unknown\",0)*O30","v":1342.4457664564566},29701.553966437863,{"$f":"_xlfn.XLOOKUP(O30,LabourFromFeed[Feed Quantity (kg)],LabourFromFeed[No. Labour],\"Out of range\",-1)","v":1},{"$f":"T30*OperatingCosts!$C$9","v":1200},34800]
[29,{"$f":"IF(A31<='S3-Short'!$C$7, B30*EXP((LN((E30/100)+1))*1),)","v":94.485364787317934},{"$f":"_xlfn.XLOOKUP($B31,FeedTables!$C$42:$T$42,FeedTables!$C$44:$T$44,,-1)","v":3.5416853289047179},{"$f":"_xlfn.XLOOKUP($B31,FeedTables!$C$42:$T$42,FeedTables!$C$45:$T$45,,-1)","v":1.3532619052561699},{"$f":"_xlfn.XLOOKUP($B31,FeedTables!$C$42:$T$42,FeedTables!$C$46:$T$46,,-1)*_xlfn.XLOOKUP(N30,DensityMultiplier[Biomass kg/m3],DensityMultiplier[Multiplier],,-1)","v":2.6171469950853923},3877.7964955862199,{"$f":"IF(A31<='S3-Short'!$C$7,('Growth-Model-3'!G30*EXP($AA$7)),0)","v":0.31363554570566088},{"$f":"IF(A31<='S3-Short'!$C$7,$AD$6*EXP($AD$7*('S3-Short'!C$7-'Growth-Model-3'!A31)),0)","v":3.3503246550436051E-4},172.51747499195048,4.2596907405419875E-2,29.66562461098767,8.4579300168004536,366.39501645644708,{"$f":"M31/'S3-Short'!$C$17","v":13.570185794683225},12.976558543676013,292.78631638842324,{"$f":"_xlfn.XLOOKUP(B31,FeedTables!$C$17:$T$17,FeedTables!$C$31:$T$31,,-1)","v":"Unga 3mm"},{"$f":"_xlfn.XLOOKUP(Q31,FeedPrice[Feed],FeedPrice[Price per kg],\"Unknown\",0)*O31","v":1377.4500105085197},31079.003976946384,{"$f":"_xlfn.XLOOKUP(O31,LabourFromFeed[Feed Quantity (kg)],LabourFromFeed[No. Labour],\"Out of range\",-1)","v":1},{"$f":"T31*OperatingCosts!$C$9","v":1200},36000,null,null,null,"Feed Use by Type","Kg used",{"$f":"_xlfn.CONCAT(\"Cost\",\" (\",'0-StartHere'!$C$49,\")\")","v":"Cost (KES)"}]
[30,{"$f":"IF(A32<='S3-Short'!$C$7, B31*EXP((LN((E31/100)+1))*1),)","v":96.958185672644703},{"$f":"_xlfn.XLOOKUP($B32,FeedTables!$C$42:$T$42,FeedTables!$C$44:$T$44,,-1)","v":3.5416853289047179},{"$f":"_xlfn.XLOOKUP($B32,FeedTables!$C$42:$T$42,FeedTables!$C$45:$T$45,,-1)","v":1.3532619052561699},{"$f":"_xlfn.XLOOKUP($B32,FeedTables!$C$42:$T$42,FeedTables!$C$46:$T$46,,-1)*_xlfn.XLOOKUP(N31,DensityMultiplier[Biomass kg/m3],DensityMultiplier[Multiplier],,-1)","v":2.6171469950853923},3877.4825250080489,{"$f":"IF(A32<='S3-Short'!$C$7,('Growth-Model-3'!G31*EXP($AA$7)),0)","v":0.26994861587928809},{"$f":"IF(A32<='S3-Short'!$C$7,$AD$6*EXP($AD$7*('S3-Short'!C$7-'Growth-Model-3'!A32)),0)","v":4.0920957744022764E-4},172.78783281740721,4.266366242405116E-2,26.213404238685932,8.4841434210391391,375.95367060216563,{"$f":"M32/'S3-Short'!$C$17","v":13.924210022302431},13.315095995195669,306.10141238361894,{"$f":"_xlfn.XLOOKUP(B32,FeedTables!$C$17:$T$17,FeedTables!$C$31:$T$31,,-1)","v":"Unga 3mm"},{"$f":"_xlfn.XLOOKUP(Q32,FeedPrice[Feed],FeedPrice[Price per kg],\"Unknown\",0)*O32","v":1413.3854563036248},32492.389433250009,{"$f":"_xlfn.XLOOKUP(O32,LabourFromFeed[Feed Quantity (kg)],LabourFromFeed[No. Labour],\"Out of range\",-1)","v":1},{"$f":"T32*OperatingCosts!$C$9","v":1200},37200,null,null,null,{"$f":"FeedCosts!A2","v":"Skretting 0.5mm"},{"$f":"SUMIF($Q$2:$Q$366,Z32,$O$2:$O$366)","v":0},{"$f":"SUMIF($Q$2:$Q$366,Z32,$R$2:$R$366)","v":0}]
[31,{"$f":"IF(A33<='S3-Short'!$C$7, B32*EXP((LN((E32/100)+1))*1),)","v":99.495723915465646},{"$f":"_xlfn.XLOOKUP($B33,FeedTables!$C$42:$T$42,FeedTables!$C$44:$T$44,,-1)","v":3.5416853289047179},{"$f":"_xlfn.XLOOKUP($B33,FeedTables!$C$42:$T$42,FeedTables!$C$45:$T$45,,-1)","v":1.3532619052561699},{"$f":"_xlfn.XLOOKUP($B33,FeedTables!$C$42:$T$42,FeedTables!$C$46:$T$46,,-1)*_xlfn.XLOOKUP(N32,DensityMultiplier[Biomass kg/m3],DensityMultiplier[Multiplier],,-1)","v":2.6171469950853923},3877.2121671825921,{"$f":"IF(A33<='S3-Short'!$C$7,('Growth-Model-3'!G32*EXP($AA$7)),0)","v":0.23234692691220729},{"$f":"IF(A33<='S3-Short'!$C$7,$AD$6*EXP($AD$7*('S3-Short'!C$7-'Growth-Model-3'!A33)),0)","v":4.9980970655105219E-4},173.02067955402597,4.2721155445438509E-2,23.167254621237124,8.507310675660376,385.76603134768339,{"$f":"M33/'S3-Short'!$C$17","v":14.287630790654941},13.662618936138879,319.76403131975781,{"$f":"_xlfn.XLOOKUP(B33,FeedTables!$C$17:$T$17,FeedTables!$C$31:$T$31,,-1)","v":"Unga 3mm"},{"$f":"_xlfn.XLOOKUP(Q33,FeedPrice[Feed],FeedPrice[Price per kg],\"Unknown\",0)*O33","v":1450.2747037140996},33942.664136964107,{"$f":"_xlfn.XLOOKUP(O33,LabourFromFeed[Feed Quantity (kg)],LabourFromFeed[No. Labour],\"Out of range\",-1)","v":1},{"$f":"T33*OperatingCosts!$C$9","v":1200},38400,null,null,null,{"$f":"FeedCosts!A3","v":"Skretting 1mm"},0,0]
[32,{"$f":"IF(A34<='S3-Short'!$C$7, B33*EXP((LN((E33/100)+1))*1),)","v":102.09967326415772},{"$f":"_xlfn.XLOOKUP($B34,FeedTables!$C$42:$T$42,FeedTables!$C$44:$T$44,,-1)","v":3.1422093916933376},{"$f":"_xlfn.XLOOKUP($B34,FeedTables!$C$42:$T$42,FeedTables!$C$45:$T$45,,-1)","v":1.3978462732485115},{"$f":"_xlfn.XLOOKUP($B34,FeedTables!$C$42:$T$42,FeedTables!$C$46:$T$46,,-1)*_xlfn.XLOOKUP(N33,DensityMultiplier[Biomass kg/m3],DensityMultiplier[Multiplier],,-1)","v":2.2478933855802543},3876.9793204459734,{"$f":"IF(A34<='S3-Short'!$C$7,('Growth-Model-3'!G33*EXP($AA$7)),0)","v":0.19998285329118673},{"$f":"IF(A34<='S3-Short'!$C$7,$AD$6*EXP($AD$7*('S3-Short'!C$7-'Growth-Model-3'!A34)),0)","v":6.1046895413667979E-4},173.22127287627129,4.2770684660807724E-2,20.480512660219421,8.5277911883205952,395.83832186943005,{"$f":"M34/'S3-Short'!$C$17","v":14.660678587756669},12.438068925702533,332.20210024546031,{"$f":"_xlfn.XLOOKUP(B34,FeedTables!$C$17:$T$17,FeedTables!$C$31:$T$31,,-1)","v":"Unga 4mm"},{"$f":"_xlfn.XLOOKUP(Q34,FeedPrice[Feed],FeedPrice[Price per kg],\"Unknown\",0)*O34","v":1235.4746301969251},35178.138767161036,{"$f":"_xlfn.XLOOKUP(O34,LabourFromFeed[Feed Quantity (kg)],LabourFromFeed[No. Labour],\"Out of range\",-1)","v":1},{"$f":"T34*OperatingCosts!$C$9","v":1200},39600,null,null,null,{"$f":"FeedCosts!A4","v":"Skretting 2mm"},0,0]
[33,{"$f":"IF(A35<='S3-Short'!$C$7, B34*EXP((LN((E34/100)+1))*1),)","v":104.39476506616175},{"$f":"_xlfn.XLOOKUP($B35,FeedTables!$C$42:$T$42,FeedTables!$C$44:$T$44,,-1)","v":3.1422093916933376},{"$f":"_xlfn.XLOOKUP($B35,FeedTables!$C$42:$T$42,FeedTables!$C$45:$T$45,,-1)","v":1.3978462732485115},{"$f":"_xlfn.XLOOKUP($B35,FeedTables!$C$42:$T$42,FeedTables!$C$46:$T$46,,-1)*_xlfn.XLOOKUP(N34,DensityMultiplier[Biomass kg/m3],DensityMultiplier[Multiplier],,-1)","v":2.2478933855802543},3876.778727123728,{"$f":"IF(A35<='S3-Short'!$C$7,('Growth-Model-3'!G34*EXP($AA$7)),0)","v":0.17212683697596654},{"$f":"IF(A35<='S3-Short'!$C$7,$AD$6*EXP($AD$7*('S3-Short'!C$7-'Growth-Model-3'!A35)),0)","v":7.4562846435369571E-4},173.39414534171161,4.2813369220175708E-2,18.046980416050395,8.5458381687366458,404.71540443157522,{"$f":"M35/'S3-Short'!$C$17","v":14.989459423391676},12.717005447678631,344.91910569313893,{"$f":"_xlfn.XLOOKUP(B35,FeedTables!$C$17:$T$17,FeedTables!$C$31:$T$31,,-1)","v":"Unga 4mm"},{"$f":"_xlfn.XLOOKUP(Q35,FeedPrice[Feed],FeedPrice[Price per kg],\"Unknown\",0)*O35","v":1263.1814228184633},36441.320189979502,{"$f":"_xlfn.XLOOKUP(O35,LabourFromFeed[Feed Quantity (kg)],LabourFromFeed[No. Labour],\"Out of range\",-1)","v":1},{"$f":"T35*OperatingCosts!$C$9","v":1200},40800,null,null,null,{"$f":"FeedCosts!A5","v":"Unga 2mm"},{"$f":"SUMIF($Q$2:$Q$366,Z35,$O$2:$O$366)","v":0},0]
[34,{"$f":"IF(A36<='S3-Short'!$C$7, B35*EXP((LN((E35/100)+1))*1),)","v":106.74144808497604},{"$f":"_xlfn.XLOOKUP($B36,FeedTables!$C$42:$T$42,FeedTables!$C$44:$T$44,,-1)","v":3.1422093916933376},{"$f":"_xlfn.XLOOKUP($B36,FeedTables!$C$42:$T$42,FeedTables!$C$45:$T$45,,-1)","v":1.3978462732485115},{"$f":"_xlfn.XLOOKUP($B36,FeedTables!$C$42:$T$42,FeedTables!$C$46:$T$46,,-1)*_xlfn.XLOOKUP(N35,DensityMultiplier[Biomass kg/m3],DensityMultiplier[Multiplier],,-1)","v":2.2478933855802543},3876.6058546582876,{"$f":"IF(A36<='S3-Short'!$C$7,('Growth-Model-3'!G35*EXP($AA$7)),0)","v":0.14815094154202998},{"$f":"IF(A36<='S3-Short'!$C$7,$AD$6*EXP($AD$7*('S3-Short'!C$7-'Growth-Model-3'!A36)),0)","v":9.1071266292433515E-4},173.54320699591656,4.2850174566892982E-2,15.911056823778782,8.5617492255604244,413.79452258092175,{"$f":"M36/'S3-Short'!$C$17","v":15.325723058552658},13.00229035085033,357.92139604398926,{"$f":"_xlfn.XLOOKUP(B36,FeedTables!$C$17:$T$17,FeedTables!$C$31:$T$31,,-1)","v":"Unga 4mm"},{"$f":"_xlfn.XLOOKUP(Q36,FeedPrice[Feed],FeedPrice[Price per kg],\"Unknown\",0)*O36","v":1291.5188007789984},37732.838990758501,{"$f":"_xlfn.XLOOKUP(O36,LabourFromFeed[Feed Quantity (kg)],LabourFromFeed[No. Labour],\"Out of range\",-1)","v":1},{"$f":"T36*OperatingCosts!$C$9","v":1200},42000,null,null,null,{"$f":"FeedCosts!A6","v":"Unga 3mm"},{"$f":"SUMIF($Q$2:$Q$366,Z36,$O$2:$O$366)","v":319.76403131975781},33942.664136964107]
[35,{"$f":"IF(A37<='S3-Short'!$C$7, B36*EXP((LN((E36/100)+1))*1),)","v":109.14088203615078},{"$f":"_xlfn.XLOOKUP($B37,FeedTables!$C$42:$T$42,FeedTables!$C$44:$T$44,,-1)","v":3.1422093916933376},{"$f":"_xlfn.XLOOKUP($B37,FeedTables!$C$42:$T$42,FeedTables!$C$45:$T$45,,-1)","v":1.3978462732485115},{"$f":"_xlfn.XLOOKUP($B37,FeedTables!$C$42:$T$42,FeedTables!$C$46:$T$46,,-1)*_xlfn.XLOOKUP(N36,DensityMultiplier[Biomass kg/m3],DensityMultiplier[Multiplier],,-1)","v":2.2478933855802543},3876.4567930040826,{"$f":"IF(A37<='S3-Short'!$C$7,('Growth-Model-3'!G36*EXP($AA$7)),0)","v":0.12751469710010765},{"$f":"IF(A37<='S3-Short'!$C$7,$AD$6*EXP($AD$7*('S3-Short'!C$7-'Growth-Model-3'!A37)),0)","v":1.1123469583871753E-3},173.67183403997507,4.2881934330858039E-2,14.038469042246955,8.5757876946026705,423.0799135634939,{"$f":"M37/'S3-Short'!$C$17","v":15.669626428277551},13.29405677836016,371.21545282234945,{"$f":"_xlfn.XLOOKUP(B37,FeedTables!$C$17:$T$17,FeedTables!$C$31:$T$31,,-1)","v":"Unga 4mm"},{"$f":"_xlfn.XLOOKUP(Q37,FeedPrice[Feed],FeedPrice[Price per kg],\"Unknown\",0)*O37","v":1320.4999892001924},39053.338979958695,{"$f":"_xlfn.XLOOKUP(O37,LabourFromFeed[Feed Quantity (kg)],LabourFromFeed[No. Labour],\"Out of range\",-1)","v":1},{"$f":"T37*OperatingCosts!$C$9","v":1200},43200,null,null,null,{"$f":"FeedCosts!A7","v":"Unga 4mm"},{"$f":"SUMIF($Q$2:$Q$366,Z37,$O$2:$O$366)","v":776.20815699002594},77100.833854634999]
[36,{"$f":"IF(A38<='S3-Short'!$C$7, B37*EXP((LN((E37/100)+1))*1),)","v":111.59425270440536},{"$f":"_xlfn.XLOOKUP($B38,FeedTables!$C$42:$T$42,FeedTables!$C$44:$T$44,,-1)","v":3.1422093916933376},{"$f":"_xlfn.XLOOKUP($B38,FeedTables!$C$42:$T$42,FeedTables!$C$45:$T$45,,-1)","v":1.3978462732485115},{"$f":"_xlfn.XLOOKUP($B38,FeedTables!$C$42:$T$42,FeedTables!$C$46:$T$46,,-1)*_xlfn.XLOOKUP(N37,DensityMultiplier[Biomass kg/m3],DensityMultiplier[Multiplier],,-1)","v":2.2478933855802543},3876.3281659600239,{"$f":"IF(A38<='S3-Short'!$C$7,('Growth-Model-3'!G37*EXP($AA$7)),0)","v":0.10975291690548784},{"$f":"IF(A38<='S3-Short'!$C$7,$AD$6*EXP($AD$7*('S3-Short'!C$7-'Growth-Model-3'!A38)),0)","v":1.358623643005173E-3},173.78294558052355,4.2909369279141615E-2,12.399409334344313,8.588187103937015,432.57594491734704,{"$f":"M38/'S3-Short'!$C$17","v":16.021331293235075},13.592441967399077,384.8078947897485,{"$f":"_xlfn.XLOOKUP(B38,FeedTables!$C$17:$T$17,FeedTables!$C$31:$T$31,,-1)","v":"Unga 4mm"},{"$f":"_xlfn.XLOOKUP(Q38,FeedPrice[Feed],FeedPrice[Price per kg],\"Unknown\",0)*O38","v":1350.138619865947},40403.47759982464,{"$f":"_xlfn.XLOOKUP(O38,LabourFromFeed[Feed Quantity (kg)],LabourFromFeed[No. Labour],\"Out of range\",-1)","v":1},{"$f":"T38*OperatingCosts!$C$9","v":1200},44400]
[37,{"$f":"IF(A39<='S3-Short'!$C$7, B38*EXP((LN((E38/100)+1))*1),)","v":114.1027725296354},{"$f":"_xlfn.XLOOKUP($B39,FeedTables!$C$42:$T$42,FeedTables!$C$44:$T$44,,-1)","v":3.1422093916933376},{"$f":"_xlfn.XLOOKUP($B39,FeedTables!$C$42:$T$42,FeedTables!$C$45:$T$45,,-1)","v":1.3978462732485115},{"$f":"_xlfn.XLOOKUP($B39,FeedTables!$C$42:$T$42,FeedTables!$C$46:$T$46,,-1)*_xlfn.XLOOKUP(N38,DensityMultiplier[Biomass kg/m3],DensityMultiplier[Multiplier],,-1)","v":2.2478933855802543},3876.2170544194751,{"$f":"IF(A39<='S3-Short'!$C$7,('Growth-Model-3'!G38*EXP($AA$7)),0)","v":9.4465211016469958E-2},{"$f":"IF(A39<='S3-Short'!$C$7,$AD$6*EXP($AD$7*('S3-Short'!C$7-'Growth-Model-3'!A39)),0)","v":1.659426664868135E-3},173.8790702182049,4.2933103757581456E-2,10.968087667847341,8.5991551916048632,442.28711283591872,{"$f":"M39/'S3-Short'!$C$17","v":16.3810041791081},13.897587197779547,398.70548198752806,{"$f":"_xlfn.XLOOKUP(B39,FeedTables!$C$17:$T$17,FeedTables!$C$31:$T$31,,-1)","v":"Unga 4mm"},{"$f":"_xlfn.XLOOKUP(Q39,FeedPrice[Feed],FeedPrice[Price per kg],\"Unknown\",0)*O39","v":1380.4487261141621},41783.926325938803,{"$f":"_xlfn.XLOOKUP(O39,LabourFromFeed[Feed Quantity (kg)],LabourFromFeed[No. Labour],\"Out of range\",-1)","v":1},{"$f":"T39*OperatingCosts!$C$9","v":1200},45600]
[38,{"$f":"IF(A40<='S3-Short'!$C$7, B39*EXP((LN((E39/100)+1))*1),)","v":116.66768120609275},{"$f":"_xlfn.XLOOKUP($B40,FeedTables!$C$42:$T$42,FeedTables!$C$44:$T$44,,-1)","v":3.1422093916933376},{"$f":"_xlfn.XLOOKUP($B40,FeedTables!$C$42:$T$42,FeedTables!$C$45:$T$45,,-1)","v":1.3978462732485115},{"$f":"_xlfn.XLOOKUP($B40,FeedTables!$C$42:$T$42,FeedTables!$C$46:$T$46,,-1)*_xlfn.XLOOKUP(N39,DensityMultiplier[Biomass kg/m3],DensityMultiplier[Multiplier],,-1)","v":2.2478933855802543},3876.1209297817936,{"$f":"IF(A40<='S3-Short'!$C$7,('Growth-Model-3'!G39*EXP($AA$7)),0)","v":8.1306960616551932E-2},{"$f":"IF(A40<='S3-Short'!$C$7,$AD$6*EXP($AD$7*('S3-Short'!C$7-'Growth-Model-3'!A40)),0)","v":2.026828305434472E-3},173.96240400712691,4.2953680001759732E-2,9.7223599196461343,8.6088775515245093,452.21804095204612,{"$f":"M40/'S3-Short'!$C$17","v":16.748816331557265},14.209637753726817,412.9151197412549,{"$f":"_xlfn.XLOOKUP(B40,FeedTables!$C$17:$T$17,FeedTables!$C$31:$T$31,,-1)","v":"Unga 4mm"},{"$f":"_xlfn.XLOOKUP(Q40,FeedPrice[Feed],FeedPrice[Price per kg],\"Unknown\",0)*O40","v":1411.44473904146},43195.37106498026,{"$f":"_xlfn.XLOOKUP(O40,LabourFromFeed[Feed Quantity (kg)],LabourFromFeed[No. Labour],\"Out of range\",-1)","v":1},{"$f":"T40*OperatingCosts!$C$9","v":1200},46800]
[39,{"$f":"IF(A41<='S3-Short'!$C$7, B40*EXP((LN((E40/100)+1))*1),)","v":119.29024629503436},{"$f":"_xlfn.XLOOKUP($B41,FeedTables!$C$42:$T$42,FeedTables!$C$44:$T$44,,-1)","v":3.1422093916933376},{"$f":"_xlfn.XLOOKUP($B41,FeedTables!$C$42:$T$42,FeedTables!$C$45:$T$45,,-1)","v":1.3978462732485115},{"$f":"_xlfn.XLOOKUP($B41,FeedTables!$C$42:$T$42,FeedTables!$C$46:$T$46,,-1)*_xlfn.XLOOKUP(N40,DensityMultiplier[Biomass kg/m3],DensityMultiplier[Multiplier],,-1)","v":2.2478933855802543},3876.0375959928715,{"$f":"IF(A41<='S3-Short'!$C$7,('Growth-Model-3'!G40*EXP($AA$7)),0)","v":6.9981549541544286E-2},{"$f":"IF(A41<='S3-Short'!$C$7,$AD$6*EXP($AD$7*('S3-Short'!C$7-'Growth-Model-3'!A41)),0)","v":2.4755736825747676E-3},174.03486113035103,4.2971570649469389E-2,8.6434280752348158,8.6175209795997443,462.37347947480254,{"$f":"M41/'S3-Short'!$C$17","v":17.124943684251946},14.528742896756512,427.44386263801141,{"$f":"_xlfn.XLOOKUP(B41,FeedTables!$C$17:$T$17,FeedTables!$C$31:$T$31,,-1)","v":"Unga 4mm"},{"$f":"_xlfn.XLOOKUP(Q41,FeedPrice[Feed],FeedPrice[Price per kg],\"Unknown\",0)*O41","v":1443.141484809114},44638.512549789375,{"$f":"_xlfn.XLOOKUP(O41,LabourFromFeed[Feed Quantity (kg)],LabourFromFeed[No. Labour],\"Out of range\",-1)","v":1},{"$f":"T41*OperatingCosts!$C$9","v":1200},48000]
[40,{"$f":"IF(A42<='S3-Short'!$C$7, B41*EXP((LN((E41/100)+1))*1),)","v":121.97176385114282},{"$f":"_xlfn.XLOOKUP($B42,FeedTables!$C$42:$T$42,FeedTables!$C$44:$T$44,,-1)","v":3.1422093916933376},{"$f":"_xlfn.XLOOKUP($B42,FeedTables!$C$42:$T$42,FeedTables!$C$45:$T$45,,-1)","v":1.3978462732485115},{"$f":"_xlfn.XLOOKUP($B42,FeedTables!$C$42:$T$42,FeedTables!$C$46:$T$46,,-1)*_xlfn.XLOOKUP(N41,DensityMultiplier[Biomass kg/m3],DensityMultiplier[Multiplier],,-1)","v":2.2478933855802543},3875.9651388696475,{"$f":"IF(A42<='S3-Short'!$C$7,('Growth-Model-3'!G41*EXP($AA$7)),0)","v":6.0233677892992513E-2},{"$f":"IF(A42<='S3-Short'!$C$7,$AD$6*EXP($AD$7*('S3-Short'!C$7-'Growth-Model-3'!A42)),0)","v":3.0236725239255508E-3},174.09811848076797,4.2987189748337769E-2,7.7156106069013211,8.6252365902066455,472.75830461347061,{"$f":"M42/'S3-Short'!$C$17","v":17.509566837535949},14.85505584757467,442.29891848558606,{"$f":"_xlfn.XLOOKUP(B42,FeedTables!$C$17:$T$17,FeedTables!$C$31:$T$31,,-1)","v":"Unga 4mm"},{"$f":"_xlfn.XLOOKUP(Q42,FeedPrice[Feed],FeedPrice[Price per kg],\"Unknown\",0)*O42","v":1475.5541828451767},46114.06673263455,{"$f":"_xlfn.XLOOKUP(O42,LabourFromFeed[Feed Quantity (kg)],LabourFromFeed[No. Labour],\"Out of range\",-1)","v":1},{"$f":"T42*OperatingCosts!$C$9","v":1200},49200]
[41,{"$f":"IF(A43<='S3-Short'!$C$7, B42*EXP((LN((E42/100)+1))*1),)","v":124.71355906302823},{"$f":"_xlfn.XLOOKUP($B43,FeedTables!$C$42:$T$42,FeedTables!$C$44:$T$44,,-1)","v":3.1422093916933376},{"$f":"_xlfn.XLOOKUP($B43,FeedTables!$C$42:$T$42,FeedTables!$C$45:$T$45,,-1)","v":1.3978462732485115},{"$f":"_xlfn.XLOOKUP($B43,FeedTables!$C$42:$T$42,FeedTables!$C$46:$T$46,,-1)*_xlfn.XLOOKUP(N42,DensityMultiplier[Biomass kg/m3],DensityMultiplier[Multiplier],,-1)","v":2.2478933855802543},3875.9018815192308,{"$f":"IF(A43<='S3-Short'!$C$7,('Growth-Model-3'!G42*EXP($AA$7)),0)","v":5.1843607011916322E-2},{"$f":"IF(A43<='S3-Short'!$C$7,$AD$6*EXP($AD$7*('S3-Short'!C$7-'Growth-Model-3'!A43)),0)","v":3.6931219604957907E-3},174.15365520974038,4.3000902520923548E-2,6.9261831288683089,8.632162773335514,483.37751822335082,{"$f":"M43/'S3-Short'!$C$17","v":17.90287104530929},15.188733774948304,457.48765226053433,{"$f":"_xlfn.XLOOKUP(B43,FeedTables!$C$17:$T$17,FeedTables!$C$31:$T$31,,-1)","v":"Unga 4mm"},{"$f":"_xlfn.XLOOKUP(Q43,FeedPrice[Feed],FeedPrice[Price per kg],\"Unknown\",0)*O43","v":1508.6984447389925},47622.765177373542,{"$f":"_xlfn.XLOOKUP(O43,LabourFromFeed[Feed Quantity (kg)],LabourFromFeed[No. Labour],\"Out of range\",-1)","v":1},{"$f":"T43*OperatingCosts!$C$9","v":1200},50400]
[42,{"$f":"IF(A44<='S3-Short'!$C$7, B43*EXP((LN((E43/100)+1))*1),)","v":127.51698690812775},{"$f":"_xlfn.XLOOKUP($B44,FeedTables!$C$42:$T$42,FeedTables!$C$44:$T$44,,-1)","v":3.1422093916933376},{"$f":"_xlfn.XLOOKUP($B44,FeedTables!$C$42:$T$42,FeedTables!$C$45:$T$45,,-1)","v":1.3978462732485115},{"$f":"_xlfn.XLOOKUP($B44,FeedTables!$C$42:$T$42,FeedTables!$C$46:$T$46,,-1)*_xlfn.XLOOKUP(N43,DensityMultiplier[Biomass kg/m3],DensityMultiplier[Multiplier],,-1)","v":2.2478933855802543},3875.8463447902582,{"$f":"IF(A44<='S3-Short'!$C$7,('Growth-Model-3'!G43*EXP($AA$7)),0)","v":4.4622206081802437E-2},{"$f":"IF(A44<='S3-Short'!$C$7,$AD$6*EXP($AD$7*('S3-Short'!C$7-'Growth-Model-3'!A44)),0)","v":4.5107893487714495E-3},174.20278820517098,4.3013034124733576E-2,6.2652915350775906,8.6384280648705918,494.23624760653416,{"$f":"M44/'S3-Short'!$C$17","v":18.305046207649415},15.529937789445254,473.01759004997956,{"$f":"_xlfn.XLOOKUP(B44,FeedTables!$C$17:$T$17,FeedTables!$C$31:$T$31,,-1)","v":"Unga 4mm"},{"$f":"_xlfn.XLOOKUP(Q44,FeedPrice[Feed],FeedPrice[Price per kg],\"Unknown\",0)*O44","v":1542.5902736193761},49165.355450992916,{"$f":"_xlfn.XLOOKUP(O44,LabourFromFeed[Feed Quantity (kg)],LabourFromFeed[No. Labour],\"Out of range\",-1)","v":1},{"$f":"T44*OperatingCosts!$C$9","v":1200},51600]
[43,{"$f":"IF(A45<='S3-Short'!$C$7, B44*EXP((LN((E44/100)+1))*1),)","v":130.38343282232677},{"$f":"_xlfn.XLOOKUP($B45,FeedTables!$C$42:$T$42,FeedTables!$C$44:$T$44,,-1)","v":2.8483614154897481},{"$f":"_xlfn.XLOOKUP($B45,FeedTables!$C$42:$T$42,FeedTables!$C$45:$T$45,,-1)","v":1.4306418063069479},{"$f":"_xlfn.XLOOKUP($B45,FeedTables!$C$42:$T$42,FeedTables!$C$46:$T$46,,-1)*_xlfn.XLOOKUP(N44,DensityMultiplier[Biomass kg/m3],DensityMultiplier[Multiplier],,-1)","v":1.9909675524179564},3875.7972117948275,{"$f":"IF(A45<='S3-Short'!$C$7,('Growth-Model-3'!G44*EXP($AA$7)),0)","v":3.8406688700290084E-2},{"$f":"IF(A45<='S3-Short'!$C$7,$AD$6*EXP($AD$7*('S3-Short'!C$7-'Growth-Model-3'!A45)),0)","v":5.5094905520689658E-3},174.24670438442334,4.3023877625783538E-2,5.7259422073632171,8.6441540070779546,505.33974539701228,{"$f":"M45/'S3-Short'!$C$17","v":18.716286866556011},14.393902325022628,487.41149237500218,{"$f":"_xlfn.XLOOKUP(B45,FeedTables!$C$17:$T$17,FeedTables!$C$31:$T$31,,-1)","v":"Unga 4mm"},{"$f":"_xlfn.XLOOKUP(Q45,FeedPrice[Feed],FeedPrice[Price per kg],\"Unknown\",0)*O45","v":1429.7477573347301},50595.103208327644,{"$f":"_xlfn.XLOOKUP(O45,LabourFromFeed[Feed Quantity (kg)],LabourFromFeed[No. Labour],\"Out of range\",-1)","v":1},{"$f":"T45*OperatingCosts!$C$9","v":1200},52800]
[44,{"$f":"IF(A46<='S3-Short'!$C$7, B45*EXP((LN((E45/100)+1))*1),)","v":132.97932466354797},{"$f":"_xlfn.XLOOKUP($B46,FeedTables!$C$42:$T$42,FeedTables!$C$44:$T$44,,-1)","v":2.8483614154897481},{"$f":"_xlfn.XLOOKUP($B46,FeedTables!$C$42:$T$42,FeedTables!$C$45:$T$45,,-1)","v":1.4306418063069479},{"$f":"_xlfn.XLOOKUP($B46,FeedTables!$C$42:$T$42,FeedTables!$C$46:$T$46,,-1)*_xlfn.XLOOKUP(N45,DensityMultiplier[Biomass kg/m3],DensityMultiplier[Multiplier],,-1)","v":1.9909675524179564},3875.7532956155751,{"$f":"IF(A46<='S3-Short'!$C$7,('Growth-Model-3'!G45*EXP($AA$7)),0)","v":3.3056943312413808E-2},{"$f":"IF(A46<='S3-Short'!$C$7,$AD$6*EXP($AD$7*('S3-Short'!C$7-'Growth-Model-3'!A46)),0)","v":6.7293069563544323E-3},174.28649063469209,4.3033701391281994E-2,5.290748691635704,8.6494447557695899,515.39505581347953,{"$f":"M46/'S3-Short'!$C$17","v":19.088705770869613},14.680313907133003,502.09180628213517,{"$f":"_xlfn.XLOOKUP(B46,FeedTables!$C$17:$T$17,FeedTables!$C$31:$T$31,,-1)","v":"Unga 4mm"},{"$f":"_xlfn.XLOOKUP(Q46,FeedPrice[Feed],FeedPrice[Price per kg],\"Unknown\",0)*O46","v":1458.197048426912},52053.300256754555,{"$f":"_xlfn.XLOOKUP(O46,LabourFromFeed[Feed Quantity (kg)],LabourFromFeed[No. Labour],\"Out of range\",-1)","v":1},{"$f":"T46*OperatingCosts!$C$9","v":1200},54000]
[45,{"$f":"IF(A47<='S3-Short'!$C$7, B46*EXP((LN((E46/100)+1))*1),)","v":135.62689986902376},{"$f":"_xlfn.XLOOKUP($B47,FeedTables!$C$42:$T$42,FeedTables!$C$44:$T$44,,-1)","v":2.8483614154897481},{"$f":"_xlfn.XLOOKUP($B47,FeedTables!$C$42:$T$42,FeedTables!$C$45:$T$45,,-1)","v":1.4306418063069479},{"$f":"_xlfn.XLOOKUP($B47,FeedTables!$C$42:$T$42,FeedTables!$C$46:$T$46,,-1)*_xlfn.XLOOKUP(N46,DensityMultiplier[Biomass kg/m3],DensityMultiplier[Multiplier],,-1)","v":1.9909675524179564},3875.7135093653064,{"$f":"IF(A47<='S3-Short'!$C$7,('Growth-Model-3'!G46*EXP($AA$7)),0)","v":2.8452374785225536E-2},{"$f":"IF(A47<='S3-Short'!$C$7,$AD$6*EXP($AD$7*('S3-Short'!C$7-'Growth-Model-3'!A47)),0)","v":8.2191940769977233E-3},174.32316220355429,4.3042756099643031E-2,4.9736511981167633,8.6544184069677073,525.65100805571103,{"$f":"M47/'S3-Short'!$C$17","v":19.468555853915223},14.972440493591781,517.06424677572693,{"$f":"_xlfn.XLOOKUP(B47,FeedTables!$C$17:$T$17,FeedTables!$C$31:$T$31,,-1)","v":"Unga 4mm"},{"$f":"_xlfn.XLOOKUP(Q47,FeedPrice[Feed],FeedPrice[Price per kg],\"Unknown\",0)*O47","v":1487.214011472521},53540.514268227074,{"$f":"_xlfn.XLOOKUP(O47,LabourFromFeed[Feed Quantity (kg)],LabourFromFeed[No. Labour],\"Out of range\",-1)","v":1},{"$f":"T47*OperatingCosts!$C$9","v":1200},55200]
[46,{"$f":"IF(A48<='S3-Short'!$C$7, B47*EXP((LN((E47/100)+1))*1),)","v":138.32718743776644},{"$f":"_xlfn.XLOOKUP($B48,FeedTables!$C$42:$T$42,FeedTables!$C$44:$T$44,,-1)","v":2.8483614154897481},{"$f":"_xlfn.XLOOKUP($B48,FeedTables!$C$42:$T$42,FeedTables!$C$45:$T$45,,-1)","v":1.4306418063069479},{"$f":"_xlfn.XLOOKUP($B48,FeedTables!$C$42:$T$42,FeedTables!$C$46:$T$46,,-1)*_xlfn.XLOOKUP(N47,DensityMultiplier[Biomass kg/m3],DensityMultiplier[Multiplier],,-1)","v":1.9909675524179564},3875.6768377964445,{"$f":"IF(A48<='S3-Short'!$C$7,('Growth-Model-3'!G47*EXP($AA$7)),0)","v":2.4489185925878811E-2},{"$f":"IF(A48<='S3-Short'!$C$7,$AD$6*EXP($AD$7*('S3-Short'!C$7-'Growth-Model-3'!A48)),0)","v":1.0038946315498752E-2},174.35769033579567,4.3051281564393994E-2,4.7761794204290204,8.6591945863881357,536.11147639007868,{"$f":"M48/'S3-Short'!$C$17","v":19.85598060703995},15.270392437507432,532.33463921323437,{"$f":"_xlfn.XLOOKUP(B48,FeedTables!$C$17:$T$17,FeedTables!$C$31:$T$31,,-1)","v":"Unga 4mm"},{"$f":"_xlfn.XLOOKUP(Q48,FeedPrice[Feed],FeedPrice[Price per kg],\"Unknown\",0)*O48","v":1516.8096078568569},55057.32387608393,{"$f":"_xlfn.XLOOKUP(O48,LabourFromFeed[Feed Quantity (kg)],LabourFromFeed[No. Labour],\"Out of range\",-1)","v":1},{"$f":"T48*OperatingCosts!$C$9","v":1200},56400]
[47,{"$f":"IF(A49<='S3-Short'!$C$7, B48*EXP((LN((E48/100)+1))*1),)","v":141.08123685582476},{"$f":"_xlfn.XLOOKUP($B49,FeedTables!$C$42:$T$42,FeedTables!$C$44:$T$44,,-1)","v":2.8483614154897481},{"$f":"_xlfn.XLOOKUP($B49,FeedTables!$C$42:$T$42,FeedTables!$C$45:$T$45,,-1)","v":1.4306418063069479},{"$f":"_xlfn.XLOOKUP($B49,FeedTables!$C$42:$T$42,FeedTables!$C$46:$T$46,,-1)*_xlfn.XLOOKUP(N48,DensityMultiplier[Biomass kg/m3],DensityMultiplier[Multiplier],,-1)","v":1.9909675524179564},3875.6423096642029,{"$f":"IF(A49<='S3-Short'!$C$7,('Growth-Model-3'!G48*EXP($AA$7)),0)","v":2.1078037662560157E-2},{"$f":"IF(A49<='S3-Short'!$C$7,$AD$6*EXP($AD$7*('S3-Short'!C$7-'Growth-Model-3'!A49)),0)","v":1.2261596718772041E-2},174.39102997017699,4.3059513572883207E-2,4.7035968548393257,8.6638981832429742,546.78041065819104,{"$f":"M49/'S3-Short'!$C$17","v":20.251126320673741},15.574282244644309,547.90892145787871,{"$f":"_xlfn.XLOOKUP(B49,FeedTables!$C$17:$T$17,FeedTables!$C$31:$T$31,,-1)","v":"Unga 4mm"},{"$f":"_xlfn.XLOOKUP(Q49,FeedPrice[Feed],FeedPrice[Price per kg],\"Unknown\",0)*O49","v":1546.9950127887437},56604.318888872673,{"$f":"_xlfn.XLOOKUP(O49,LabourFromFeed[Feed Quantity (kg)],LabourFromFeed[No. Labour],\"Out of range\",-1)","v":1},{"$f":"T49*OperatingCosts!$C$9","v":1200},57600]
[48,{"$f":"IF(A50<='S3-Short'!$C$7, B49*EXP((LN((E49/100)+1))*1),)","v":143.89011850417415},{"$f":"_xlfn.XLOOKUP($B50,FeedTables!$C$42:$T$42,FeedTables!$C$44:$T$44,,-1)","v":2.8483614154897481},{"$f":"_xlfn.XLOOKUP($B50,FeedTables!$C$42:$T$42,FeedTables!$C$45:$T$45,,-1)","v":1.4306418063069479},{"$f":"_xlfn.XLOOKUP($B50,FeedTables!$C$42:$T$42,FeedTables!$C$46:$T$46,,-1)*_xlfn.XLOOKUP(N49,DensityMultiplier[Biomass kg/m3],DensityMultiplier[Multiplier],,-1)","v":1.9909675524179564},3875.6089700298216,{"$f":"IF(A50<='S3-Short'!$C$7,('Growth-Model-3'!G49*EXP($AA$7)),0)","v":1.8142035143553309E-2},{"$f":"IF(A50<='S3-Short'!$C$7,$AD$6*EXP($AD$7*('S3-Short'!C$7-'Growth-Model-3'!A50)),0)","v":1.4976348051755862E-2},174.42414835337229,4.3067690951449945E-2,4.765408082639687,8.6686635913256147,557.66183397343138,{"$f":"M50/'S3-Short'!$C$17","v":20.654141999015977},15.884224507811719,563.79314596569043,{"$f":"_xlfn.XLOOKUP(B50,FeedTables!$C$17:$T$17,FeedTables!$C$31:$T$31,,-1)","v":"Unga 4mm"},{"$f":"_xlfn.XLOOKUP(Q50,FeedPrice[Feed],FeedPrice[Price per kg],\"Unknown\",0)*O50","v":1577.7816087833889},58182.100497656065,{"$f":"_xlfn.XLOOKUP(O50,LabourFromFeed[Feed Quantity (kg)],LabourFromFeed[No. Labour],\"Out of range\",-1)","v":1},{"$f":"T50*OperatingCosts!$C$9","v":1200},58800]
[49,{"$f":"IF(A51<='S3-Short'!$C$7, B50*EXP((LN((E50/100)+1))*1),)","v":146.75492407472802},{"$f":"_xlfn.XLOOKUP($B51,FeedTables!$C$42:$T$42,FeedTables!$C$44:$T$44,,-1)","v":2.8483614154897481},{"$f":"_xlfn.XLOOKUP($B51,FeedTables!$C$42:$T$42,FeedTables!$C$45:$T$45,,-1)","v":1.4306418063069479},{"$f":"_xlfn.XLOOKUP($B51,FeedTables!$C$42:$T$42,FeedTables!$C$46:$T$46,,-1)*_xlfn.XLOOKUP(N50,DensityMultiplier[Biomass kg/m3],DensityMultiplier[Multiplier],,-1)","v":1.9909675524179564},3875.5758516466262,{"$f":"IF(A51<='S3-Short'!$C$7,('Growth-Model-3'!G50*EXP($AA$7)),0)","v":1.5614994356640051E-2},{"$f":"IF(A51<='S3-Short'!$C$7,$AD$6*EXP($AD$7*('S3-Short'!C$7-'Growth-Model-3'!A51)),0)","v":1.8292152817581297E-2},174.45805550054652,4.3076063086554699E-2,4.9760408091434822,8.6736396321347584,568.75983985425012,{"$f":"M51/'S3-Short'!$C$17","v":21.065179253861114},16.200335825209745,579.9934817909002,{"$f":"_xlfn.XLOOKUP(B51,FeedTables!$C$17:$T$17,FeedTables!$C$31:$T$31,,-1)","v":"Unga 4mm"},{"$f":"_xlfn.XLOOKUP(Q51,FeedPrice[Feed],FeedPrice[Price per kg],\"Unknown\",0)*O51","v":1609.1809775516665},59791.281475207732,{"$f":"_xlfn.XLOOKUP(O51,LabourFromFeed[Feed Quantity (kg)],LabourFromFeed[No. Labour],\"Out of range\",-1)","v":1},{"$f":"T51*OperatingCosts!$C$9","v":1200},60000]
[50,{"$f":"IF(A52<='S3-Short'!$C$7, B51*EXP((LN((E51/100)+1))*1),)","v":149.67676699463149},{"$f":"_xlfn.XLOOKUP($B52,FeedTables!$C$42:$T$42,FeedTables!$C$44:$T$44,,-1)","v":2.8483614154897481},{"$f":"_xlfn.XLOOKUP($B52,FeedTables!$C$42:$T$42,FeedTables!$C$45:$T$45,,-1)","v":1.4306418063069479},{"$f":"_xlfn.XLOOKUP($B52,FeedTables!$C$42:$T$42,FeedTables!$C$46:$T$46,,-1)*_xlfn.XLOOKUP(N51,DensityMultiplier[Biomass kg/m3],DensityMultiplier[Multiplier],,-1)","v":1.9909675524179564},3875.5419444994518,{"$f":"IF(A52<='S3-Short'!$C$7,('Growth-Model-3'!G51*EXP($AA$7)),0)","v":1.3439950194592355E-2},{"$f":"IF(A52<='S3-Short'!$C$7,$AD$6*EXP($AD$7*('S3-Short'!C$7-'Growth-Model-3'!A52)),0)","v":2.2342085904081124E-2},174.4938375366452,4.308489815719635E-2,5.3557394797346429,8.6789953716144925,580.07858860476551,{"$f":"M52/'S3-Short'!$C$17","v":21.484392170546872},16.52273469733565,596.51621648823584,{"$f":"_xlfn.XLOOKUP(B52,FeedTables!$C$17:$T$17,FeedTables!$C$31:$T$31,,-1)","v":"Unga 4mm"},{"$f":"_xlfn.XLOOKUP(Q52,FeedPrice[Feed],FeedPrice[Price per kg],\"Unknown\",0)*O52","v":1641.2048897598199},61432.486364967554,{"$f":"_xlfn.XLOOKUP(O52,LabourFromFeed[Feed Quantity (kg)],LabourFromFeed[No. Labour],\"Out of range\",-1)","v":1},{"$f":"T52*OperatingCosts!$C$9","v":1200},61200]
[51,{"$f":"IF(A53<='S3-Short'!$C$7, B52*EXP((LN((E52/100)+1))*1),)","v":152.65678285900285},{"$f":"_xlfn.XLOOKUP($B53,FeedTables!$C$42:$T$42,FeedTables!$C$44:$T$44,,-1)","v":2.8483614154897481},{"$f":"_xlfn.XLOOKUP($B53,FeedTables!$C$42:$T$42,FeedTables!$C$45:$T$45,,-1)","v":1.4306418063069479},{"$f":"_xlfn.XLOOKUP($B53,FeedTables!$C$42:$T$42,FeedTables!$C$46:$T$46,,-1)*_xlfn.XLOOKUP(N52,DensityMultiplier[Biomass kg/m3],DensityMultiplier[Multiplier],,-1)","v":1.9909675524179564},3875.5061624633531,{"$f":"IF(A53<='S3-Short'!$C$7,('Growth-Model-3'!G52*EXP($AA$7)),0)","v":1.1567872335241147E-2},{"$f":"IF(A53<='S3-Short'!$C$7,$AD$6*EXP($AD$7*('S3-Short'!C$7-'Growth-Model-3'!A53)),0)","v":2.7288685346296141E-2},174.53269409432673,4.3094492368969561E-2,5.9317170886387567,8.684927088703132,591.6223027118956,{"$f":"M53/'S3-Short'!$C$17","v":21.911937137477615},16.851541395877593,613.36775788411342,{"$f":"_xlfn.XLOOKUP(B53,FeedTables!$C$17:$T$17,FeedTables!$C$31:$T$31,,-1)","v":"Unga 4mm"},{"$f":"_xlfn.XLOOKUP(Q53,FeedPrice[Feed],FeedPrice[Price per kg],\"Unknown\",0)*O53","v":1673.8652920066609},63106.351656974213,{"$f":"_xlfn.XLOOKUP(O53,LabourFromFeed[Feed Quantity (kg)],LabourFromFeed[No. Labour],\"Out of range\",-1)","v":1},{"$f":"T53*OperatingCosts!$C$9","v":1200},62400]
[52,{"$f":"IF(A54<='S3-Short'!$C$7, B53*EXP((LN((E53/100)+1))*1),)","v":155.69612987229075},{"$f":"_xlfn.XLOOKUP($B54,FeedTables!$C$42:$T$42,FeedTables!$C$44:$T$44,,-1)","v":2.8483614154897481},{"$f":"_xlfn.XLOOKUP($B54,FeedTables!$C$42:$T$42,FeedTables!$C$45:$T$45,,-1)","v":1.4306418063069479},{"$f":"_xlfn.XLOOKUP($B54,FeedTables!$C$42:$T$42,FeedTables!$C$46:$T$46,,-1)*_xlfn.XLOOKUP(N53,DensityMultiplier[Biomass kg/m3],DensityMultiplier[Multiplier],,-1)","v":1.9909675524179564},3875.4673059056718,{"$f":"IF(A54<='S3-Short'!$C$7,('Growth-Model-3'!G53*EXP($AA$7)),0)","v":9.9565599892088158E-3},{"$f":"IF(A54<='S3-Short'!$C$7,$AD$6*EXP($AD$7*('S3-Short'!C$7-'Growth-Model-3'!A54)),0)","v":3.3330475548531094E-2},174.57598112986446,4.3105180525892461E-2,6.7396239068704178,8.6916667126100027,603.39526097610633,{"$f":"M54/'S3-Short'!$C$17","v":22.347972628744678},17.186877796537082,630.55463568065045,{"$f":"_xlfn.XLOOKUP(B54,FeedTables!$C$17:$T$17,FeedTables!$C$31:$T$31,,-1)","v":"Unga 4mm"},{"$f":"_xlfn.XLOOKUP(Q54,FeedPrice[Feed],FeedPrice[Price per kg],\"Unknown\",0)*O54","v":1707.174290217808},64813.525947192022,{"$f":"_xlfn.XLOOKUP(O54,LabourFromFeed[Feed Quantity (kg)],LabourFromFeed[No. Labour],\"Out of range\",-1)","v":1},{"$f":"T54*OperatingCosts!$C$9","v":1200},63600]
[53,{"$f":"IF(A55<='S3-Short'!$C$7, B54*EXP((LN((E54/100)+1))*1),)","v":158.79598929841859},{"$f":"_xlfn.XLOOKUP($B55,FeedTables!$C$42:$T$42,FeedTables!$C$44:$T$44,,-1)","v":2.8483614154897481},{"$f":"_xlfn.XLOOKUP($B55,FeedTables!$C$42:$T$42,FeedTables!$C$45:$T$45,,-1)","v":1.4306418063069479},{"$f":"_xlfn.XLOOKUP($B55,FeedTables!$C$42:$T$42,FeedTables!$C$46:$T$46,,-1)*_xlfn.XLOOKUP(N54,DensityMultiplier[Biomass kg/m3],DensityMultiplier[Multiplier],,-1)","v":1.9909675524179564},3875.4240188701338,{"$f":"IF(A55<='S3-Short'!$C$7,('Growth-Model-3'!G54*EXP($AA$7)),0)","v":8.5696906004666153E-3},{"$f":"IF(A55<='S3-Short'!$C$7,$AD$6*EXP($AD$7*('S3-Short'!C$7-'Growth-Model-3'!A55)),0)","v":4.0709934765765982E-2},174.6252607552307,4.3117348334624862E-2,7.8254068622863482,8.6994921194722892,615.40179102733612,{"$f":"M55/'S3-Short'!$C$17","v":22.792658926938376},17.528867165855491,648.08350284650589,{"$f":"_xlfn.XLOOKUP(B55,FeedTables!$C$17:$T$17,FeedTables!$C$31:$T$31,,-1)","v":"Unga 4mm"},{"$f":"_xlfn.XLOOKUP(Q55,FeedPrice[Feed],FeedPrice[Price per kg],\"Unknown\",0)*O55","v":1741.1441284711425},66554.670075663162,{"$f":"_xlfn.XLOOKUP(O55,LabourFromFeed[Feed Quantity (kg)],LabourFromFeed[No. Labour],\"Out of range\",-1)","v":1},{"$f":"T55*OperatingCosts!$C$9","v":1200},64800]
[54,{"$f":"IF(A56<='S3-Short'!$C$7, B55*EXP((LN((E55/100)+1))*1),)","v":161.95756591989121},{"$f":"_xlfn.XLOOKUP($B56,FeedTables!$C$42:$T$42,FeedTables!$C$44:$T$44,,-1)","v":2.8483614154897481},{"$f":"_xlfn.XLOOKUP($B56,FeedTables!$C$42:$T$42,FeedTables!$C$45:$T$45,,-1)","v":1.4306418063069479},{"$f":"_xlfn.XLOOKUP($B56,FeedTables!$C$42:$T$42,FeedTables!$C$46:$T$46,,-1)*_xlfn.XLOOKUP(N55,DensityMultiplier[Biomass kg/m3],DensityMultiplier[Multiplier],,-1)","v":1.9909675524179564},3875.3747392447676,{"$f":"IF(A56<='S3-Short'!$C$7,('Growth-Model-3'!G55*EXP($AA$7)),0)","v":7.376001055316459E-3},{"$f":"IF(A56<='S3-Short'!$C$7,$AD$6*EXP($AD$7*('S3-Short'!C$7-'Growth-Model-3'!A56)),0)","v":4.9723226607427166E-2},174.68235998289344,4.3131446909356407E-2,9.2476519281636769,8.7087397714004524,627.64625979551568,{"$f":"M56/'S3-Short'!$C$17","v":23.246157770204285},17.877633889780011,665.96113673628588,{"$f":"_xlfn.XLOOKUP(B56,FeedTables!$C$17:$T$17,FeedTables!$C$31:$T$31,,-1)","v":"Unga 4mm"},{"$f":"_xlfn.XLOOKUP(Q56,FeedPrice[Feed],FeedPrice[Price per kg],\"Unknown\",0)*O56","v":1775.7871620352375},68330.4572376984,{"$f":"_xlfn.XLOOKUP(O56,LabourFromFeed[Feed Quantity (kg)],LabourFromFeed[No. Labour],\"Out of range\",-1)","v":1},{"$f":"T56*OperatingCosts!$C$9","v":1200},66000]
[55,{"$f":"IF(A57<='S3-Short'!$C$7, B56*EXP((LN((E56/100)+1))*1),)","v":165.18208850604219},{"$f":"_xlfn.XLOOKUP($B57,FeedTables!$C$42:$T$42,FeedTables!$C$44:$T$44,,-1)","v":2.8483614154897481},{"$f":"_xlfn.XLOOKUP($B57,FeedTables!$C$42:$T$42,FeedTables!$C$45:$T$45,,-1)","v":1.4306418063069479},{"$f":"_xlfn.XLOOKUP($B57,FeedTables!$C$42:$T$42,FeedTables!$C$46:$T$46,,-1)*_xlfn.XLOOKUP(N56,DensityMultiplier[Biomass kg/m3],DensityMultiplier[Multiplier],,-1)","v":1.9909675524179564},3875.3176400171046,{"$f":"IF(A57<='S3-Short'!$C$7,('Growth-Model-3'!G56*EXP($AA$7)),0)","v":6.3485829424305201E-3},{"$f":"IF(A57<='S3-Short'!$C$7,$AD$6*EXP($AD$7*('S3-Short'!C$7-'Growth-Model-3'!A57)),0)","v":6.0732086122934695E-2},174.74944065195879,4.3148010037520688E-2,11.080525014599683,8.7198202964150529,640.13306140233192,{"$f":"M57/'S3-Short'!$C$17","v":23.708631903790071},18.233303128777319,684.19443986506315,{"$f":"_xlfn.XLOOKUP(B57,FeedTables!$C$17:$T$17,FeedTables!$C$31:$T$31,,-1)","v":"Unga 4mm"},{"$f":"_xlfn.XLOOKUP(Q57,FeedPrice[Feed],FeedPrice[Price per kg],\"Unknown\",0)*O57","v":1811.115823111764},70141.573060810158,{"$f":"_xlfn.XLOOKUP(O57,LabourFromFeed[Feed Quantity (kg)],LabourFromFeed[No. Labour],\"Out of range\",-1)","v":1},{"$f":"T57*OperatingCosts!$C$9","v":1200},67200]
[56,{"$f":"IF(A58<='S3-Short'!$C$7, B57*EXP((LN((E57/100)+1))*1),)","v":168.47081029060382},{"$f":"_xlfn.XLOOKUP($B58,FeedTables!$C$42:$T$42,FeedTables!$C$44:$T$44,,-1)","v":2.8483614154897481},{"$f":"_xlfn.XLOOKUP($B58,FeedTables!$C$42:$T$42,FeedTables!$C$45:$T$45,,-1)","v":1.4306418063069479},{"$f":"_xlfn.XLOOKUP($B58,FeedTables!$C$42:$T$42,FeedTables!$C$46:$T$46,,-1)*_xlfn.XLOOKUP(N57,DensityMultiplier[Biomass kg/m3],DensityMultiplier[Multiplier],,-1)","v":1.9909675524179564},3875.2505593480391,{"$f":"IF(A58<='S3-Short'!$C$7,('Growth-Model-3'!G57*EXP($AA$7)),0)","v":5.4642759775460122E-3},{"$f":"IF(A58<='S3-Short'!$C$7,$AD$6*EXP($AD$7*('S3-Short'!C$7-'Growth-Model-3'!A58)),0)","v":7.4178337499373415E-2},174.82908326543571,4.3167674880354494E-2,13.417455626117979,8.7332377520411715,652.86660181247987,{"$f":"M58/'S3-Short'!$C$17","v":24.180244511573328},18.596000380645769,702.79044024570896,{"$f":"_xlfn.XLOOKUP(B58,FeedTables!$C$17:$T$17,FeedTables!$C$31:$T$31,,-1)","v":"Unga 4mm"},{"$f":"_xlfn.XLOOKUP(Q58,FeedPrice[Feed],FeedPrice[Price per kg],\"Unknown\",0)*O58","v":1847.1425774095824},71988.715638219743,{"$f":"_xlfn.XLOOKUP(O58,LabourFromFeed[Feed Quantity (kg)],LabourFromFeed[No. Labour],\"Out of range\",-1)","v":1},{"$f":"T58*OperatingCosts!$C$9","v":1200},68400]
[57,{"$f":"IF(A59<='S3-Short'!$C$7, B58*EXP((LN((E58/100)+1))*1),)","v":171.82500945878536},{"$f":"_xlfn.XLOOKUP($B59,FeedTables!$C$42:$T$42,FeedTables!$C$44:$T$44,,-1)","v":2.5479057505037064},{"$f":"_xlfn.XLOOKUP($B59,FeedTables!$C$42:$T$42,FeedTables!$C$45:$T$45,,-1)","v":1.4641748046312828},{"$f":"_xlfn.XLOOKUP($B59,FeedTables!$C$42:$T$42,FeedTables!$C$46:$T$46,,-1)*_xlfn.XLOOKUP(N58,DensityMultiplier[Biomass kg/m3],DensityMultiplier[Multiplier],,-1)","v":1.74016500109448},3875.1709167345625,{"$f":"IF(A59<='S3-Short'!$C$7,('Growth-Model-3'!G58*EXP($AA$7)),0)","v":4.703145919261683E-3},{"$f":"IF(A59<='S3-Short'!$C$7,$AD$6*EXP($AD$7*('S3-Short'!C$7-'Growth-Model-3'!A59)),0)","v":9.0601626017470641E-2},174.92438803737244,4.3191206922808006E-2,16.375743339496413,8.7496134953806681,665.85127942232612,{"$f":"M59/'S3-Short'!$C$17","v":24.661158497123189},16.96526303820395,719.75570328391291,{"$f":"_xlfn.XLOOKUP(B59,FeedTables!$C$17:$T$17,FeedTables!$C$31:$T$31,,-1)","v":"Unga 4mm"},{"$f":"_xlfn.XLOOKUP(Q59,FeedPrice[Feed],FeedPrice[Price per kg],\"Unknown\",0)*O59","v":1685.1612741111023},73673.876912330845,{"$f":"_xlfn.XLOOKUP(O59,LabourFromFeed[Feed Quantity (kg)],LabourFromFeed[No. Labour],\"Out of range\",-1)","v":1},{"$f":"T59*OperatingCosts!$C$9","v":1200},69600]
[58,{"$f":"IF(A60<='S3-Short'!$C$7, B59*EXP((LN((E59/100)+1))*1),)","v":174.81504813651443},{"$f":"_xlfn.XLOOKUP($B60,FeedTables!$C$42:$T$42,FeedTables!$C$44:$T$44,,-1)","v":2.5479057505037064},{"$f":"_xlfn.XLOOKUP($B60,FeedTables!$C$42:$T$42,FeedTables!$C$45:$T$45,,-1)","v":1.4641748046312828},{"$f":"_xlfn.XLOOKUP($B60,FeedTables!$C$42:$T$42,FeedTables!$C$46:$T$46,,-1)*_xlfn.XLOOKUP(N59,DensityMultiplier[Biomass kg/m3],DensityMultiplier[Multiplier],,-1)","v":1.74016500109448},3875.0756119626258,{"$f":"IF(A60<='S3-Short'!$C$7,('Growth-Model-3'!G59*EXP($AA$7)),0)","v":4.0480352069994915E-3},{"$f":"IF(A60<='S3-Short'!$C$7,$AD$6*EXP($AD$7*('S3-Short'!C$7-'Growth-Model-3'!A60)),0)","v":0.11066107591153486},175.03909714849098,4.3219530160121228E-2,20.052878781883365,8.7696663741625507,677.42152963787953,{"$f":"M60/'S3-Short'!$C$17","v":25.089686282884426},17.260062108793701,737.01576539270661,{"$f":"_xlfn.XLOOKUP(B60,FeedTables!$C$17:$T$17,FeedTables!$C$31:$T$31,,-1)","v":"Unga 4mm"},{"$f":"_xlfn.XLOOKUP(Q60,FeedPrice[Feed],FeedPrice[Price per kg],\"Unknown\",0)*O60","v":1714.4436952726892},75388.320607603528,{"$f":"_xlfn.XLOOKUP(O60,LabourFromFeed[Feed Quantity (kg)],LabourFromFeed[No. Labour],\"Out of range\",-1)","v":1},{"$f":"T60*OperatingCosts!$C$9","v":1200},70800]
[59,{"$f":"IF(A61<='S3-Short'!$C$7, B60*EXP((LN((E60/100)+1))*1),)","v":177.85711842083253},{"$f":"_xlfn.XLOOKUP($B61,FeedTables!$C$42:$T$42,FeedTables!$C$44:$T$44,,-1)","v":2.5479057505037064},{"$f":"_xlfn.XLOOKUP($B61,FeedTables!$C$42:$T$42,FeedTables!$C$45:$T$45,,-1)","v":1.4641748046312828},{"$f":"_xlfn.XLOOKUP($B61,FeedTables!$C$42:$T$42,FeedTables!$C$46:$T$46,,-1)*_xlfn.XLOOKUP(N60,DensityMultiplier[Biomass kg/m3],DensityMultiplier[Multiplier],,-1)","v":1.6879600510616455},3874.9609028515074,{"$f":"IF(A61<='S3-Short'!$C$7,('Growth-Model-3'!G60*EXP($AA$7)),0)","v":3.4841761915139222E-3},{"$f":"IF(A61<='S3-Short'!$C$7,$AD$6*EXP($AD$7*('S3-Short'!C$7-'Growth-Model-3'!A61)),0)","v":0.13516174333932057},175.17774306802181,4.325376372049921E-2,24.659163728560848,8.7943255378911118,689.18938017455673,{"$f":"M61/'S3-Short'!$C$17","v":25.525532599057655},17.559895849328381,754.57566124203504,{"$f":"_xlfn.XLOOKUP(B61,FeedTables!$C$17:$T$17,FeedTables!$C$31:$T$31,,-1)","v":"Unga 4mm"},{"$f":"_xlfn.XLOOKUP(Q61,FeedPrice[Feed],FeedPrice[Price per kg],\"Unknown\",0)*O61","v":1744.226210703373},77132.546818306902,{"$f":"_xlfn.XLOOKUP(O61,LabourFromFeed[Feed Quantity (kg)],LabourFromFeed[No. Labour],\"Out of range\",-1)","v":1},{"$f":"T61*OperatingCosts!$C$9","v":1200},72000]
[60,{"$f":"IF(A62<='S3-Short'!$C$7, B61*EXP((LN((E61/100)+1))*1),)","v":180.85927552774558},{"$f":"_xlfn.XLOOKUP($B62,FeedTables!$C$42:$T$42,FeedTables!$C$44:$T$44,,-1)","v":2.5479057505037064},{"$f":"_xlfn.XLOOKUP($B62,FeedTables!$C$42:$T$42,FeedTables!$C$45:$T$45,,-1)","v":1.4641748046312828},{"$f":"_xlfn.XLOOKUP($B62,FeedTables!$C$42:$T$42,FeedTables!$C$46:$T$46,,-1)*_xlfn.XLOOKUP(N61,DensityMultiplier[Biomass kg/m3],DensityMultiplier[Multiplier],,-1)","v":1.6879600510616455},3874.8222569319764,{"$f":"IF(A62<='S3-Short'!$C$7,('Growth-Model-3'!G61*EXP($AA$7)),0)","v":2.9988582393063127E-3},{"$f":"IF(A62<='S3-Short'!$C$7,$AD$6*EXP($AD$7*('S3-Short'!C$7-'Growth-Model-3'!A62)),0)","v":0.16508692611238315},175.3458288523735,4.3295266383302097E-2,30.399873184359432,8.8247254110754714,700.79754618750133,{"$f":"M62/'S3-Short'!$C$17","v":25.955464673611161},17.855660978700215,772.4313222207353,{"$f":"_xlfn.XLOOKUP(B62,FeedTables!$C$17:$T$17,FeedTables!$C$31:$T$31,,-1)","v":"Unga 4mm"},{"$f":"_xlfn.XLOOKUP(Q62,FeedPrice[Feed],FeedPrice[Price per kg],\"Unknown\",0)*O62","v":1773.6045905803901},78906.151408887294,{"$f":"_xlfn.XLOOKUP(O62,LabourFromFeed[Feed Quantity (kg)],LabourFromFeed[No. Labour],\"Out of range\",-1)","v":1},{"$f":"T62*OperatingCosts!$C$9","v":1200},73200]
[61,{"$f":"IF(A63<='S3-Short'!$C$7, B62*EXP((LN((E62/100)+1))*1),)","v":183.91210784729344},{"$f":"_xlfn.XLOOKUP($B63,FeedTables!$C$42:$T$42,FeedTables!$C$44:$T$44,,-1)","v":2.5479057505037064},{"$f":"_xlfn.XLOOKUP($B63,FeedTables!$C$42:$T$42,FeedTables!$C$45:$T$45,,-1)","v":1.4641748046312828},{"$f":"_xlfn.XLOOKUP($B63,FeedTables!$C$42:$T$42,FeedTables!$C$46:$T$46,,-1)*_xlfn.XLOOKUP(N62,DensityMultiplier[Biomass kg/m3],DensityMultiplier[Multiplier],,-1)","v":1.6879600510616455},3874.6541711476248,{"$f":"IF(A63<='S3-Short'!$C$7,('Growth-Model-3'!G62*EXP($AA$7)),0)","v":2.5811412067389483E-3},{"$f":"IF(A63<='S3-Short'!$C$7,$AD$6*EXP($AD$7*('S3-Short'!C$7-'Growth-Model-3'!A63)),0)","v":0.20163762688984896},175.55004762047011,4.3345690770486445E-2,37.558304102621086,8.8622837151780924,712.59581579506732,{"$f":"M63/'S3-Short'!$C$17","v":26.39243762203953},18.15626976849132,790.58759198922667,{"$f":"_xlfn.XLOOKUP(B63,FeedTables!$C$17:$T$17,FeedTables!$C$31:$T$31,,-1)","v":"Unga 4mm"},{"$f":"_xlfn.XLOOKUP(Q63,FeedPrice[Feed],FeedPrice[Price per kg],\"Unknown\",0)*O63","v":1803.4640917312197},80709.615500618514,{"$f":"_xlfn.XLOOKUP(O63,LabourFromFeed[Feed Quantity (kg)],LabourFromFeed[No. Labour],\"Out of range\",-1)","v":1},{"$f":"T63*OperatingCosts!$C$9","v":1200},74400]
[62,{"$f":"IF(A64<='S3-Short'!$C$7, B63*EXP((LN((E63/100)+1))*1),)","v":187.01647075682115},{"$f":"_xlfn.XLOOKUP($B64,FeedTables!$C$42:$T$42,FeedTables!$C$44:$T$44,,-1)","v":2.5479057505037064},{"$f":"_xlfn.XLOOKUP($B64,FeedTables!$C$42:$T$42,FeedTables!$C$45:$T$45,,-1)","v":1.4641748046312828},{"$f":"_xlfn.XLOOKUP($B64,FeedTables!$C$42:$T$42,FeedTables!$C$46:$T$46,,-1)*_xlfn.XLOOKUP(N63,DensityMultiplier[Biomass kg/m3],DensityMultiplier[Multiplier],,-1)","v":1.6879600510616455},3874.4499523795284,{"$f":"IF(A64<='S3-Short'!$C$7,('Growth-Model-3'!G63*EXP($AA$7)),0)","v":2.2216088249196121E-3},{"$f":"IF(A64<='S3-Short'!$C$7,$AD$6*EXP($AD$7*('S3-Short'!C$7-'Growth-Model-3'!A64)),0)","v":0.2462807536321327},175.79854998292717,4.3407049378500533E-2,46.474034801450294,8.908757749979543,724.58595621795314,{"$f":"M64/'S3-Short'!$C$17","v":26.836516896961228},18.461767245819495,809.04935923504615,{"$f":"_xlfn.XLOOKUP(B64,FeedTables!$C$17:$T$17,FeedTables!$C$31:$T$31,,-1)","v":"Unga 4mm"},{"$f":"_xlfn.XLOOKUP(Q64,FeedPrice[Feed],FeedPrice[Price per kg],\"Unknown\",0)*O64","v":1833.809186703975},82543.424687322491,{"$f":"_xlfn.XLOOKUP(O64,LabourFromFeed[Feed Quantity (kg)],LabourFromFeed[No. Labour],\"Out of range\",-1)","v":1},{"$f":"T64*OperatingCosts!$C$9","v":1200},75600]
[63,{"$f":"IF(A65<='S3-Short'!$C$7, B64*EXP((LN((E64/100)+1))*1),)","v":190.17323407210168},{"$f":"_xlfn.XLOOKUP($B65,FeedTables!$C$42:$T$42,FeedTables!$C$44:$T$44,,-1)","v":2.5479057505037064},{"$f":"_xlfn.XLOOKUP($B65,FeedTables!$C$42:$T$42,FeedTables!$C$45:$T$45,,-1)","v":1.4641748046312828},{"$f":"_xlfn.XLOOKUP($B65,FeedTables!$C$42:$T$42,FeedTables!$C$46:$T$46,,-1)*_xlfn.XLOOKUP(N64,DensityMultiplier[Biomass kg/m3],DensityMultiplier[Multiplier],,-1)","v":1.6879600510616455},3874.2014500170712,{"$f":"IF(A65<='S3-Short'!$C$7,('Growth-Model-3'!G64*EXP($AA$7)),0)","v":1.9121564361046098E-3},{"$f":"IF(A65<='S3-Short'!$C$7,$AD$6*EXP($AD$7*('S3-Short'!C$7-'Growth-Model-3'!A65)),0)","v":0.30080799176805217},176.10127013113132,4.3481795094106497E-2,57.569269602770419,8.9663270195823142,736.76941919657224,{"$f":"M65/'S3-Short'!$C$17","v":27.287756266539713},18.772190399662222,827.82154963470839,{"$f":"_xlfn.XLOOKUP(B65,FeedTables!$C$17:$T$17,FeedTables!$C$31:$T$31,,-1)","v":"Unga 4mm"},{"$f":"_xlfn.XLOOKUP(Q65,FeedPrice[Feed],FeedPrice[Price per kg],\"Unknown\",0)*O65","v":1864.6435496174886},84408.068236939973,{"$f":"_xlfn.XLOOKUP(O65,LabourFromFeed[Feed Quantity (kg)],LabourFromFeed[No. Labour],\"Out of range\",-1)","v":1},{"$f":"T65*OperatingCosts!$C$9","v":1200},76800]
[64,{"$f":"IF(A66<='S3-Short'!$C$7, B65*EXP((LN((E65/100)+1))*1),)","v":193.3832822910507},{"$f":"_xlfn.XLOOKUP($B66,FeedTables!$C$42:$T$42,FeedTables!$C$44:$T$44,,-1)","v":2.5479057505037064},{"$f":"_xlfn.XLOOKUP($B66,FeedTables!$C$42:$T$42,FeedTables!$C$45:$T$45,,-1)","v":1.4641748046312828},{"$f":"_xlfn.XLOOKUP($B66,FeedTables!$C$42:$T$42,FeedTables!$C$46:$T$46,,-1)*_xlfn.XLOOKUP(N65,DensityMultiplier[Biomass kg/m3],DensityMultiplier[Multiplier],,-1)","v":1.6879600510616455},3873.8987298688671,{"$f":"IF(A66<='S3-Short'!$C$7,('Growth-Model-3'!G65*EXP($AA$7)),0)","v":1.645808296727749E-3},{"$f":"IF(A66<='S3-Short'!$C$7,$AD$6*EXP($AD$7*('S3-Short'!C$7-'Growth-Model-3'!A66)),0)","v":0.36740771082212048},176.47032365025015,4.3572919419814851E-2,71.368780868265901,9.0376958004505799,749.14725164517392,{"$f":"M66/'S3-Short'!$C$17","v":27.746194505376813},19.087565904407857,846.90911553911621,{"$f":"_xlfn.XLOOKUP(B66,FeedTables!$C$17:$T$17,FeedTables!$C$31:$T$31,,-1)","v":"Unga 4mm"},{"$f":"_xlfn.XLOOKUP(Q66,FeedPrice[Feed],FeedPrice[Price per kg],\"Unknown\",0)*O66","v":1895.9698300414229},86304.038066981389,{"$f":"_xlfn.XLOOKUP(O66,LabourFromFeed[Feed Quantity (kg)],LabourFromFeed[No. Labour],\"Out of range\",-1)","v":1},{"$f":"T66*OperatingCosts!$C$9","v":1200},78000]
[65,{"$f":"IF(A67<='S3-Short'!$C$7, B66*EXP((LN((E66/100)+1))*1),)","v":196.64751484155542},{"$f":"_xlfn.XLOOKUP($B67,FeedTables!$C$42:$T$42,FeedTables!$C$44:$T$44,,-1)","v":2.5479057505037064},{"$f":"_xlfn.XLOOKUP($B67,FeedTables!$C$42:$T$42,FeedTables!$C$45:$T$45,,-1)","v":1.4641748046312828},{"$f":"_xlfn.XLOOKUP($B67,FeedTables!$C$42:$T$42,FeedTables!$C$46:$T$46,,-1)*_xlfn.XLOOKUP(N66,DensityMultiplier[Biomass kg/m3],DensityMultiplier[Multiplier],,-1)","v":1.6879600510616455},3873.5296763497481,{"$f":"IF(A67<='S3-Short'!$C$7,('Growth-Model-3'!G66*EXP($AA$7)),0)","v":1.416560328660112E-3},{"$f":"IF(A67<='S3-Short'!$C$7,$AD$6*EXP($AD$7*('S3-Short'!C$7-'Growth-Model-3'!A67)),0)","v":0.44875279136745216},176.92049300194626,{"$f":"I67/$F$2","v":4.3684072346159571E-2},{"$f":"(G67+H67)*B67","v":88.524684268874623},9.1262204847194539,{"$f":"(B67*F67)/1000","v":761.71998451919251},{"$f":"M67/'S3-Short'!$C$17","v":28.211851278488613},{"$f":"M67*(C67/100)","v":19.407907288300446},866.31702282741662,{"$f":"_xlfn.XLOOKUP(B67,FeedTables!$C$17:$T$17,FeedTables!$C$31:$T$31,,-1)","v":"Unga 4mm"},{"$f":"_xlfn.XLOOKUP(Q67,FeedPrice[Feed],FeedPrice[Price per kg],\"Unknown\",0)*O67","v":1927.7893717376121},88231.827438719003,{"$f":"_xlfn.XLOOKUP(O67,LabourFromFeed[Feed Quantity (kg)],LabourFromFeed[No. Labour],\"Out of range\",-1)","v":1},{"$f":"T67*OperatingCosts!$C$9","v":1200},79200]
[66,{"$f":"IF(A68<='S3-Short'!$C$7, B67*EXP((LN((E67/100)+1))*1),)","v":199.96684633348639},{"$f":"_xlfn.XLOOKUP($B68,FeedTables!$C$42:$T$42,FeedTables!$C$44:$T$44,,-1)","v":2.5479057505037064},{"$f":"_xlfn.XLOOKUP($B68,FeedTables!$C$42:$T$42,FeedTables!$C$45:$T$45,,-1)","v":1.4641748046312828},{"$f":"_xlfn.XLOOKUP($B68,FeedTables!$C$42:$T$42,FeedTables!$C$46:$T$46,,-1)*_xlfn.XLOOKUP(N67,DensityMultiplier[Biomass kg/m3],DensityMultiplier[Multiplier],,-1)","v":1.6879600510616455},{"$f":"F67-G67-H67","v":3873.0795069980518},{"$f":"IF(A68<='S3-Short'!$C$7,('Growth-Model-3'!G67*EXP($AA$7)),0)","v":1.2192447739650598E-3},{"$f":"IF(A68<='S3-Short'!$C$7,$AD$6*EXP($AD$7*('S3-Short'!C$7-'Growth-Model-3'!A68)),0)","v":0.54810789710828145},{"$f":"I67+G68+H68","v":177.46982014382851},4.3819708677488522E-2,109.84721616758047,{"$f":"(K68/1000)+L67","v":9.236067700887034},774.48749461325463,{"$f":"M68/'S3-Short'!$C$17","v":28.684722022713135},19.733211412183199,{"$f":"O68+P67","v":886.05023423959983},{"$f":"_xlfn.XLOOKUP(B68,FeedTables!$C$17:$T$17,FeedTables!$C$31:$T$31,,-1)","v":"Unga 4mm"},{"$f":"_xlfn.XLOOKUP(Q68,FeedPrice[Feed],FeedPrice[Price per kg],\"Unknown\",0)*O68","v":1960.1018628932984},{"$f":"R68+S67","v":90191.929301612297},{"$f":"_xlfn.XLOOKUP(O68,LabourFromFeed[Feed Quantity (kg)],LabourFromFeed[No. Labour],\"Out of range\",-1)","v":1},{"$f":"T68*OperatingCosts!$C$9","v":1200},{"$f":"U68+V67","v":80400}]
[67,{"$f":"IF(A69<='S3-Short'!$C$7, B68*EXP((LN((E68/100)+1))*1),)","v":203.34220681496348},{"$f":"_xlfn.XLOOKUP($B69,FeedTables!$C$42:$T$42,FeedTables!$C$44:$T$44,,-1)","v":2.5479057505037064},{"$f":"_xlfn.XLOOKUP($B69,FeedTables!$C$42:$T$42,FeedTables!$C$45:$T$45,,-1)","v":1.4641748046312828},{"$f":"_xlfn.XLOOKUP($B69,FeedTables!$C$42:$T$42,FeedTables!$C$46:$T$46,,-1)*_xlfn.XLOOKUP(N68,DensityMultiplier[Biomass kg/m3],DensityMultiplier[Multiplier],,-1)","v":1.6879600510616455},3872.5301798561695,{"$f":"IF(A69<='S3-Short'!$C$7,('Growth-Model-3'!G68*EXP($AA$7)),0)","v":1.0494137021662936E-3},{"$f":"IF(A69<='S3-Short'!$C$7,$AD$6*EXP($AD$7*('S3-Short'!C$7-'Growth-Model-3'!A69)),0)","v":0.66946049729742541},178.1403300548281,4.3985266680204471E-2,136.34296499396171,9.3724106658809951,787.44883272950096,{"$f":"M69/'S3-Short'!$C$17","v":29.164771582574108},20.063454091389268,906.11368833098913,{"$f":"_xlfn.XLOOKUP(B69,FeedTables!$C$17:$T$17,FeedTables!$C$31:$T$31,,-1)","v":"Unga 4mm"},{"$f":"_xlfn.XLOOKUP(Q69,FeedPrice[Feed],FeedPrice[Price per kg],\"Unknown\",0)*O69","v":1992.9049012431051},92184.834202855403,{"$f":"_xlfn.XLOOKUP(O69,LabourFromFeed[Feed Quantity (kg)],LabourFromFeed[No. Labour],\"Out of range\",-1)","v":1},{"$f":"T69*OperatingCosts!$C$9","v":1200},81600]
[68,{"$f":"IF(A70<='S3-Short'!$C$7, B69*EXP((LN((E69/100)+1))*1),)","v":206.77454203294721},{"$f":"_xlfn.XLOOKUP($B70,FeedTables!$C$42:$T$42,FeedTables!$C$44:$T$44,,-1)","v":2.5479057505037064},{"$f":"_xlfn.XLOOKUP($B70,FeedTables!$C$42:$T$42,FeedTables!$C$45:$T$45,,-1)","v":1.4641748046312828},{"$f":"_xlfn.XLOOKUP($B70,FeedTables!$C$42:$T$42,FeedTables!$C$46:$T$46,,-1)*_xlfn.XLOOKUP(N69,DensityMultiplier[Biomass kg/m3],DensityMultiplier[Multiplier],,-1)","v":1.6879600510616455},3871.85966994517,{"$f":"IF(A70<='S3-Short'!$C$7,('Growth-Model-3'!G69*EXP($AA$7)),0)","v":9.0323874402427882E-4},{"$f":"IF(A70<='S3-Short'!$C$7,$AD$6*EXP($AD$7*('S3-Short'!C$7-'Growth-Model-3'!A70)),0)","v":0.8176808978783543},178.95891419145048,4.418738622011123E-2,169.26235996552782,9.5416730258465225,800.6020100687507,{"$f":"M70/'S3-Short'!$C$17","v":29.651926298842618},20.39858465318996,926.51227298417905,{"$f":"_xlfn.XLOOKUP(B70,FeedTables!$C$17:$T$17,FeedTables!$C$31:$T$31,,-1)","v":"Unga 4mm"},{"$f":"_xlfn.XLOOKUP(Q70,FeedPrice[Feed],FeedPrice[Price per kg],\"Unknown\",0)*O70","v":2026.193453459824},94211.027656315229,{"$f":"_xlfn.XLOOKUP(O70,LabourFromFeed[Feed Quantity (kg)],LabourFromFeed[No. Labour],\"Out of range\",-1)","v":1},{"$f":"T70*OperatingCosts!$C$9","v":1200},82800]
[69,{"$f":"IF(A71<='S3-Short'!$C$7, B70*EXP((LN((E70/100)+1))*1),)","v":210.26481369822903},{"$f":"_xlfn.XLOOKUP($B71,FeedTables!$C$42:$T$42,FeedTables!$C$44:$T$44,,-1)","v":2.5479057505037064},{"$f":"_xlfn.XLOOKUP($B71,FeedTables!$C$42:$T$42,FeedTables!$C$45:$T$45,,-1)","v":1.4641748046312828},{"$f":"_xlfn.XLOOKUP($B71,FeedTables!$C$42:$T$42,FeedTables!$C$46:$T$46,,-1)*_xlfn.XLOOKUP(N70,DensityMultiplier[Biomass kg/m3],DensityMultiplier[Multiplier],,-1)","v":1.6879600510616455},3871.0410858085479,{"$f":"IF(A71<='S3-Short'!$C$7,('Growth-Model-3'!G70*EXP($AA$7)),0)","v":7.7742479159784779E-4},{"$f":"IF(A71<='S3-Short'!$C$7,$AD$6*EXP($AD$7*('S3-Short'!C$7-'Growth-Model-3'!A71)),0)","v":0.99871770396350601},179.95840932020559,4.4434175140791503E-2,210.15865703997935,9.7518316828865022,813.94373272572454,{"$f":"M71/'S3-Short'!$C$17","v":30.146064175026837},20.738519171983253,947.25079215616233,{"$f":"_xlfn.XLOOKUP(B71,FeedTables!$C$17:$T$17,FeedTables!$C$31:$T$31,,-1)","v":"Unga 4mm"},{"$f":"_xlfn.XLOOKUP(Q71,FeedPrice[Feed],FeedPrice[Price per kg],\"Unknown\",0)*O71","v":2059.9591832050137},96270.98683952025,{"$f":"_xlfn.XLOOKUP(O71,LabourFromFeed[Feed Quantity (kg)],LabourFromFeed[No. Labour],\"Out of range\",-1)","v":1},{"$f":"T71*OperatingCosts!$C$9","v":1200},84000]
[70,{"$f":"IF(A72<='S3-Short'!$C$7, B71*EXP((LN((E71/100)+1))*1),)","v":213.81399975489433},{"$f":"_xlfn.XLOOKUP($B72,FeedTables!$C$42:$T$42,FeedTables!$C$44:$T$44,,-1)","v":2.5479057505037064},{"$f":"_xlfn.XLOOKUP($B72,FeedTables!$C$42:$T$42,FeedTables!$C$45:$T$45,,-1)","v":1.4641748046312828},{"$f":"_xlfn.XLOOKUP($B72,FeedTables!$C$42:$T$42,FeedTables!$C$46:$T$46,,-1)*_xlfn.XLOOKUP(N71,DensityMultiplier[Biomass kg/m3],DensityMultiplier[Multiplier],,-1)","v":1.653156751039756},3870.041590679793,{"$f":"IF(A72<='S3-Short'!$C$7,('Growth-Model-3'!G71*EXP($AA$7)),0)","v":6.6913571919885581E-4},{"$f":"IF(A72<='S3-Short'!$C$7,$AD$6*EXP($AD$7*('S3-Short'!C$7-'Growth-Model-3'!A72)),0)","v":1.2198365582444182},181.17891501416921,4.4735534571399803E-2,260.96120414998393,10.012792887036486,827.46907172104011,{"$f":"M72/'S3-Short'!$C$17","v":30.64700265633482},21.08313206202002,968.33392421818235,{"$f":"_xlfn.XLOOKUP(B72,FeedTables!$C$17:$T$17,FeedTables!$C$31:$T$31,,-1)","v":"Unga 4mm"},{"$f":"_xlfn.XLOOKUP(Q72,FeedPrice[Feed],FeedPrice[Price per kg],\"Unknown\",0)*O72","v":2094.1896160336551},98365.176455553912,{"$f":"_xlfn.XLOOKUP(O72,LabourFromFeed[Feed Quantity (kg)],LabourFromFeed[No. Labour],\"Out of range\",-1)","v":1},{"$f":"T72*OperatingCosts!$C$9","v":1200},85200]
[71,{"$f":"IF(A73<='S3-Short'!$C$7, B72*EXP((LN((E72/100)+1))*1),)","v":217.3486803265105},{"$f":"_xlfn.XLOOKUP($B73,FeedTables!$C$42:$T$42,FeedTables!$C$44:$T$44,,-1)","v":2.5479057505037064},{"$f":"_xlfn.XLOOKUP($B73,FeedTables!$C$42:$T$42,FeedTables!$C$45:$T$45,,-1)","v":1.4641748046312828},{"$f":"_xlfn.XLOOKUP($B73,FeedTables!$C$42:$T$42,FeedTables!$C$46:$T$46,,-1)*_xlfn.XLOOKUP(N72,DensityMultiplier[Biomass kg/m3],DensityMultiplier[Multiplier],,-1)","v":1.653156751039756},3868.8210849858292,{"$f":"IF(A73<='S3-Short'!$C$7,('Growth-Model-3'!G72*EXP($AA$7)),0)","v":5.7593045082537291E-4},{"$f":"IF(A73<='S3-Short'!$C$7,$AD$6*EXP($AD$7*('S3-Short'!C$7-'Growth-Model-3'!A73)),0)","v":1.4899117367443413},182.66940268136437,4.5103556217620834E-2,323.95552750780865,10.336748414544294,840.88315724104848,{"$f":"M73/'S3-Short'!$C$17","v":31.143820638557351},21.424910318361796,989.7588345365441,{"$f":"_xlfn.XLOOKUP(B73,FeedTables!$C$17:$T$17,FeedTables!$C$31:$T$31,,-1)","v":"Unga 4mm"},{"$f":"_xlfn.XLOOKUP(Q73,FeedPrice[Feed],FeedPrice[Price per kg],\"Unknown\",0)*O73","v":2128.1384844139093},100493.31493996782,{"$f":"_xlfn.XLOOKUP(O73,LabourFromFeed[Feed Quantity (kg)],LabourFromFeed[No. Labour],\"Out of range\",-1)","v":1},{"$f":"T73*OperatingCosts!$C$9","v":1200},86400]
[72,{"$f":"IF(A74<='S3-Short'!$C$7, B73*EXP((LN((E73/100)+1))*1),)","v":220.94179470862406},{"$f":"_xlfn.XLOOKUP($B74,FeedTables!$C$42:$T$42,FeedTables!$C$44:$T$44,,-1)","v":2.5479057505037064},{"$f":"_xlfn.XLOOKUP($B74,FeedTables!$C$42:$T$42,FeedTables!$C$45:$T$45,,-1)","v":1.4641748046312828},{"$f":"_xlfn.XLOOKUP($B74,FeedTables!$C$42:$T$42,FeedTables!$C$46:$T$46,,-1)*_xlfn.XLOOKUP(N73,DensityMultiplier[Biomass kg/m3],DensityMultiplier[Multiplier],,-1)","v":1.653156751039756},3867.3305973186339,{"$f":"IF(A74<='S3-Short'!$C$7,('Growth-Model-3'!G73*EXP($AA$7)),0)","v":4.95707932891478E-4},{"$f":"IF(A74<='S3-Short'!$C$7,$AD$6*EXP($AD$7*('S3-Short'!C$7-'Growth-Model-3'!A74)),0)","v":1.8197823046747472},184.48968069397202,4.5553007578758527E-2,402.17549097417913,10.738923905518472,854.45496290315407,{"$f":"M74/'S3-Short'!$C$17","v":31.646480107524226},21.770707135273774,1011.5295416718179,{"$f":"_xlfn.XLOOKUP(B74,FeedTables!$C$17:$T$17,FeedTables!$C$31:$T$31,,-1)","v":"Unga 4mm"},{"$f":"_xlfn.XLOOKUP(Q74,FeedPrice[Feed],FeedPrice[Price per kg],\"Unknown\",0)*O74","v":2162.4865168174574},102655.80145678528,{"$f":"_xlfn.XLOOKUP(O74,LabourFromFeed[Feed Quantity (kg)],LabourFromFeed[No. Labour],\"Out of range\",-1)","v":1},{"$f":"T74*OperatingCosts!$C$9","v":1200},87600]
[73,{"$f":"IF(A75<='S3-Short'!$C$7, B74*EXP((LN((E74/100)+1))*1),)","v":224.59430890371809},{"$f":"_xlfn.XLOOKUP($B75,FeedTables!$C$42:$T$42,FeedTables!$C$44:$T$44,,-1)","v":2.5479057505037064},{"$f":"_xlfn.XLOOKUP($B75,FeedTables!$C$42:$T$42,FeedTables!$C$45:$T$45,,-1)","v":1.4641748046312828},{"$f":"_xlfn.XLOOKUP($B75,FeedTables!$C$42:$T$42,FeedTables!$C$46:$T$46,,-1)*_xlfn.XLOOKUP(N74,DensityMultiplier[Biomass kg/m3],DensityMultiplier[Multiplier],,-1)","v":1.653156751039756},3865.5103193060263,{"$f":"IF(A75<='S3-Short'!$C$7,('Growth-Model-3'!G74*EXP($AA$7)),0)","v":4.2665977181687237E-4},{"$f":"IF(A75<='S3-Short'!$C$7,$AD$6*EXP($AD$7*('S3-Short'!C$7-'Growth-Model-3'!A75)),0)","v":2.2226871261808068},186.71279447992464,4.6101924562944353E-2,499.29870437035777,11.23822260988883,868.17161872472764,{"$f":"M75/'S3-Short'!$C$17","v":32.154504397212136},22.12019459772845,1033.6497362695463,{"$f":"_xlfn.XLOOKUP(B75,FeedTables!$C$17:$T$17,FeedTables!$C$31:$T$31,,-1)","v":"Unga 4mm"},{"$f":"_xlfn.XLOOKUP(Q75,FeedPrice[Feed],FeedPrice[Price per kg],\"Unknown\",0)*O75","v":2197.2011414118265},104853.00259819711,{"$f":"_xlfn.XLOOKUP(O75,LabourFromFeed[Feed Quantity (kg)],LabourFromFeed[No. Labour],\"Out of range\",-1)","v":1},{"$f":"T75*OperatingCosts!$C$9","v":1200},88800]
[74,{"$f":"IF(A76<='S3-Short'!$C$7, B75*EXP((LN((E75/100)+1))*1),)","v":228.30720488381101},{"$f":"_xlfn.XLOOKUP($B76,FeedTables!$C$42:$T$42,FeedTables!$C$44:$T$44,,-1)","v":2.5479057505037064},{"$f":"_xlfn.XLOOKUP($B76,FeedTables!$C$42:$T$42,FeedTables!$C$45:$T$45,,-1)","v":1.4641748046312828},{"$f":"_xlfn.XLOOKUP($B76,FeedTables!$C$42:$T$42,FeedTables!$C$46:$T$46,,-1)*_xlfn.XLOOKUP(N75,DensityMultiplier[Biomass kg/m3],DensityMultiplier[Multiplier],,-1)","v":1.653156751039756},3863.2872055200737,{"$f":"IF(A76<='S3-Short'!$C$7,('Growth-Model-3'!G75*EXP($AA$7)),0)","v":3.6722946882247715E-4},{"$f":"IF(A76<='S3-Short'!$C$7,$AD$6*EXP($AD$7*('S3-Short'!C$7-'Growth-Model-3'!A76)),0)","v":2.7147961864443393},189.42795789583781,4.6772335282922912E-2,619.89137028991433,11.858113980178745,882.01630355567715,{"$f":"M76/'S3-Short'!$C$17","v":32.667270502062117},22.472944118675326,1056.1226803882216,{"$f":"_xlfn.XLOOKUP(B76,FeedTables!$C$17:$T$17,FeedTables!$C$31:$T$31,,-1)","v":"Unga 4mm"},{"$f":"_xlfn.XLOOKUP(Q76,FeedPrice[Feed],FeedPrice[Price per kg],\"Unknown\",0)*O76","v":2232.2397866024321},107085.24238479954,{"$f":"_xlfn.XLOOKUP(O76,LabourFromFeed[Feed Quantity (kg)],LabourFromFeed[No. Labour],\"Out of range\",-1)","v":1},{"$f":"T76*OperatingCosts!$C$9","v":1200},90000]
[75,{"$f":"IF(A77<='S3-Short'!$C$7, B76*EXP((LN((E76/100)+1))*1),)","v":232.08148085445791},{"$f":"_xlfn.XLOOKUP($B77,FeedTables!$C$42:$T$42,FeedTables!$C$44:$T$44,,-1)","v":2.209351174006021},{"$f":"_xlfn.XLOOKUP($B77,FeedTables!$C$42:$T$42,FeedTables!$C$45:$T$45,,-1)","v":1.5019599136153996},{"$f":"_xlfn.XLOOKUP($B77,FeedTables!$C$42:$T$42,FeedTables!$C$46:$T$46,,-1)*_xlfn.XLOOKUP(N76,DensityMultiplier[Biomass kg/m3],DensityMultiplier[Multiplier],,-1)","v":1.3974298490120503},3860.5720421041606,{"$f":"IF(A77<='S3-Short'!$C$7,('Growth-Model-3'!G76*EXP($AA$7)),0)","v":3.1607733299384317E-4},{"$f":"IF(A77<='S3-Short'!$C$7,$AD$6*EXP($AD$7*('S3-Short'!C$7-'Growth-Model-3'!A77)),0)","v":3.3158595499658263},192.74413352313664,4.7591144079786825E-2,769.62295035697116,12.627736930535717,895.96727647685225,{"$f":"M77/'S3-Short'!$C$17","v":33.183973202846381},19.795063541551109,1075.9177439297728,{"$f":"_xlfn.XLOOKUP(B77,FeedTables!$C$17:$T$17,FeedTables!$C$31:$T$31,,-1)","v":"Unga 4mm"},{"$f":"_xlfn.XLOOKUP(Q77,FeedPrice[Feed],FeedPrice[Price per kg],\"Unknown\",0)*O77","v":1966.2456410886259},109051.48802588816,{"$f":"_xlfn.XLOOKUP(O77,LabourFromFeed[Feed Quantity (kg)],LabourFromFeed[No. Labour],\"Out of range\",-1)","v":1},{"$f":"T77*OperatingCosts!$C$9","v":1200},91200]
[76,{"$f":"IF(A78<='S3-Short'!$C$7, B77*EXP((LN((E77/100)+1))*1),)","v":235.32465674194731},{"$f":"_xlfn.XLOOKUP($B78,FeedTables!$C$42:$T$42,FeedTables!$C$44:$T$44,,-1)","v":2.209351174006021},{"$f":"_xlfn.XLOOKUP($B78,FeedTables!$C$42:$T$42,FeedTables!$C$45:$T$45,,-1)","v":1.5019599136153996},{"$f":"_xlfn.XLOOKUP($B78,FeedTables!$C$42:$T$42,FeedTables!$C$46:$T$46,,-1)*_xlfn.XLOOKUP(N77,DensityMultiplier[Biomass kg/m3],DensityMultiplier[Multiplier],,-1)","v":1.3974298490120503},3857.2558664768617,{"$f":"IF(A78<='S3-Short'!$C$7,('Growth-Model-3'!G77*EXP($AA$7)),0)","v":2.7205028167495991E-4},{"$f":"IF(A78<='S3-Short'!$C$7,$AD$6*EXP($AD$7*('S3-Short'!C$7-'Growth-Model-3'!A78)),0)","v":4.05},196.79440557341832,4.859121125269588E-2,953.1288799440382,13.580865810479755,907.70741274452996,{"$f":"M78/'S3-Short'!$C$17","v":33.61879306461222},20.054444380010953,1095.9721883097836,{"$f":"_xlfn.XLOOKUP(B78,FeedTables!$C$17:$T$17,FeedTables!$C$31:$T$31,,-1)","v":"Unga 4mm"},{"$f":"_xlfn.XLOOKUP(Q78,FeedPrice[Feed],FeedPrice[Price per kg],\"Unknown\",0)*O78","v":1992.0099657109261},111043.49799159908,{"$f":"_xlfn.XLOOKUP(O78,LabourFromFeed[Feed Quantity (kg)],LabourFromFeed[No. Labour],\"Out of range\",-1)","v":1},{"$f":"T78*OperatingCosts!$C$9","v":1200},92400]
[77,{"$f":"IF(A79<='S3-Short'!$C$7, B78*EXP((LN((E78/100)+1))*1),)","v":0},{"$f":"_xlfn.XLOOKUP($B79,FeedTables!$C$42:$T$42,FeedTables!$C$44:$T$44,,-1)","v":{"$error":"#N/A"}},{"$f":"_xlfn.XLOOKUP($B79,FeedTables!$C$42:$T$42,FeedTables!$C$45:$T$45,,-1)","v":{"$error":"#N/A"}},{"$f":"_xlfn.XLOOKUP($B79,FeedTables!$C$42:$T$42,FeedTables!$C$46:$T$46,,-1)*_xlfn.XLOOKUP(N78,DensityMultiplier[Biomass kg/m3],DensityMultiplier[Multiplier],,-1)","v":{"$error":"#N/A"}},3853.2055944265799,{"$f":"IF(A79<='S3-Short'!$C$7,('Growth-Model-3'!G78*EXP($AA$7)),0)","v":0},{"$f":"IF(A79<='S3-Short'!$C$7,$AD$6*EXP($AD$7*('S3-Short'!C$7-'Growth-Model-3'!A79)),0)","v":0},196.79440557341832,4.859121125269588E-2,0,13.580865810479755,0,{"$f":"M79/'S3-Short'!$C$17","v":0},{"$error":"#N/A"},{"$error":"#N/A"},{"$f":"_xlfn.XLOOKUP(B79,FeedTables!$C$17:$T$17,FeedTables!$C$31:$T$31,,-1)","v":{"$error":"#N/A"}},{"$f":"_xlfn.XLOOKUP(Q79,FeedPrice[Feed],FeedPrice[Price per kg],\"Unknown\",0)*O79","v":{"$error":"#N/A"}},{"$error":"#N/A"},{"$f":"_xlfn.XLOOKUP(O79,LabourFromFeed[Feed Quantity (kg)],LabourFromFeed[No. Labour],\"Out of range\",-1)","v":{"$error":"#N/A"}},{"$f":"T79*OperatingCosts!$C$9","v":{"$error":"#N/A"}},{"$error":"#N/A"}]
[78,{"$f":"IF(A80<='S3-Short'!$C$7, B79*EXP((LN((E79/100)+1))*1),)","v":0},{"$f":"_xlfn.XLOOKUP($B80,FeedTables!$C$42:$T$42,FeedTables!$C$44:$T$44,,-1)","v":{"$error":"#N/A"}},{"$f":"_xlfn.XLOOKUP($B80,FeedTables!$C$42:$T$42,FeedTables!$C$45:$T$45,,-1)","v":{"$error":"#N/A"}},{"$f":"_xlfn.XLOOKUP($B80,FeedTables!$C$42:$T$42,FeedTables!$C$46:$T$46,,-1)*_xlfn.XLOOKUP(N79,DensityMultiplier[Biomass kg/m3],DensityMultiplier[Multiplier],,-1)","v":{"$error":"#N/A"}},3853.2055944265799,{"$f":"IF(A80<='S3-Short'!$C$7,('Growth-Model-3'!G79*EXP($AA$7)),0)","v":0},{"$f":"IF(A80<='S3-Short'!$C$7,$AD$6*EXP($AD$7*('S3-Short'!C$7-'Growth-Model-3'!A80)),0)","v":0},196.79440557341832,4.859121125269588E-2,0,13.580865810479755,0,{"$f":"M80/'S3-Short'!$C$17","v":0},{"$error":"#N/A"},{"$error":"#N/A"},{"$f":"_xlfn.XLOOKUP(B80,FeedTables!$C$17:$T$17,FeedTables!$C$31:$T$31,,-1)","v":{"$error":"#N/A"}},{"$f":"_xlfn.XLOOKUP(Q80,FeedPrice[Feed],FeedPrice[Price per kg],\"Unknown\",0)*O80","v":{"$error":"#N/A"}},{"$error":"#N/A"},{"$f":"_xlfn.XLOOKUP(O80,LabourFromFeed[Feed Quantity (kg)],LabourFromFeed[No. Labour],\"Out of range\",-1)","v":{"$error":"#N/A"}},{"$f":"T80*OperatingCosts!$C$9","v":{"$error":"#N/A"}},{"$error":"#N/A"}]
[79,{"$f":"IF(A81<='S3-Short'!$C$7, B80*EXP((LN((E80/100)+1))*1),)","v":0},{"$f":"_xlfn.XLOOKUP($B81,FeedTables!$C$42:$T$42,FeedTables!$C$44:$T$44,,-1)","v":{"$error":"#N/A"}},{"$f":"_xlfn.XLOOKUP($B81,FeedTables!$C$42:$T$42,FeedTables!$C$45:$T$45,,-1)","v":{"$error":"#N/A"}},{"$f":"_xlfn.XLOOKUP($B81,FeedTables!$C$42:$T$42,FeedTables!$C$46:$T$46,,-1)*_xlfn.XLOOKUP(N80,DensityMultiplier[Biomass kg/m3],DensityMultiplier[Multiplier],,-1)","v":{"$error":"#N/A"}},3853.2055944265799,{"$f":"IF(A81<='S3-Short'!$C$7,('Growth-Model-3'!G80*EXP($AA$7)),0)","v":0},{"$f":"IF(A81<='S3-Short'!$C$7,$AD$6*EXP($AD$7*('S3-Short'!C$7-'Growth-Model-3'!A81)),0)","v":0},196.79440557341832,4.859121125269588E-2,0,13.580865810479755,0,{"$f":"M81/'S3-Short'!$C$17","v":0},{"$error":"#N/A"},{"$error":"#N/A"},{"$f":"_xlfn.XLOOKUP(B81,FeedTables!$C$17:$T$17,FeedTables!$C$31:$T$31,,-1)","v":{"$error":"#N/A"}},{"$f":"_xlfn.XLOOKUP(Q81,FeedPrice[Feed],FeedPrice[Price per kg],\"Unknown\",0)*O81","v":{"$error":"#N/A"}},{"$error":"#N/A"},{"$f":"_xlfn.XLOOKUP(O81,LabourFromFeed[Feed Quantity (kg)],LabourFromFeed[No. Labour],\"Out of range\",-1)","v":{"$error":"#N/A"}},{"$f":"T81*OperatingCosts!$C$9","v":{"$error":"#N/A"}},{"$error":"#N/A"}]
[80,{"$f":"IF(A82<='S3-Short'!$C$7, B81*EXP((LN((E81/100)+1))*1),)","v":0},{"$f":"_xlfn.XLOOKUP($B82,FeedTables!$C$42:$T$42,FeedTables!$C$44:$T$44,,-1)","v":{"$error":"#N/A"}},{"$f":"_xlfn.XLOOKUP($B82,FeedTables!$C$42:$T$42,FeedTables!$C$45:$T$45,,-1)","v":{"$error":"#N/A"}},{"$f":"_xlfn.XLOOKUP($B82,FeedTables!$C$42:$T$42,FeedTables!$C$46:$T$46,,-1)*_xlfn.XLOOKUP(N81,DensityMultiplier[Biomass kg/m3],DensityMultiplier[Multiplier],,-1)","v":{"$error":"#N/A"}},3853.2055944265799,{"$f":"IF(A82<='S3-Short'!$C$7,('Growth-Model-3'!G81*EXP($AA$7)),0)","v":0},{"$f":"IF(A82<='S3-Short'!$C$7,$AD$6*EXP($AD$7*('S3-Short'!C$7-'Growth-Model-3'!A82)),0)","v":0},196.79440557341832,4.859121125269588E-2,0,13.580865810479755,0,{"$f":"M82/'S3-Short'!$C$17","v":0},{"$error":"#N/A"},{"$error":"#N/A"},{"$f":"_xlfn.XLOOKUP(B82,FeedTables!$C$17:$T$17,FeedTables!$C$31:$T$31,,-1)","v":{"$error":"#N/A"}},{"$f":"_xlfn.XLOOKUP(Q82,FeedPrice[Feed],FeedPrice[Price per kg],\"Unknown\",0)*O82","v":{"$error":"#N/A"}},{"$error":"#N/A"},{"$f":"_xlfn.XLOOKUP(O82,LabourFromFeed[Feed Quantity (kg)],LabourFromFeed[No. Labour],\"Out of range\",-1)","v":{"$error":"#N/A"}},{"$f":"T82*OperatingCosts!$C$9","v":{"$error":"#N/A"}},{"$error":"#N/A"}]
[81,{"$f":"IF(A83<='S3-Short'!$C$7, B82*EXP((LN((E82/100)+1))*1),)","v":0},{"$f":"_xlfn.XLOOKUP($B83,FeedTables!$C$42:$T$42,FeedTables!$C$44:$T$44,,-1)","v":{"$error":"#N/A"}},{"$f":"_xlfn.XLOOKUP($B83,FeedTables!$C$42:$T$42,FeedTables!$C$45:$T$45,,-1)","v":{"$error":"#N/A"}},{"$f":"_xlfn.XLOOKUP($B83,FeedTables!$C$42:$T$42,FeedTables!$C$46:$T$46,,-1)*_xlfn.XLOOKUP(N82,DensityMultiplier[Biomass kg/m3],DensityMultiplier[Multiplier],,-1)","v":{"$error":"#N/A"}},3853.2055944265799,{"$f":"IF(A83<='S3-Short'!$C$7,('Growth-Model-3'!G82*EXP($AA$7)),0)","v":0},{"$f":"IF(A83<='S3-Short'!$C$7,$AD$6*EXP($AD$7*('S3-Short'!C$7-'Growth-Model-3'!A83)),0)","v":0},196.79440557341832,4.859121125269588E-2,0,13.580865810479755,0,{"$f":"M83/'S3-Short'!$C$17","v":0},{"$error":"#N/A"},{"$error":"#N/A"},{"$f":"_xlfn.XLOOKUP(B83,FeedTables!$C$17:$T$17,FeedTables!$C$31:$T$31,,-1)","v":{"$error":"#N/A"}},{"$f":"_xlfn.XLOOKUP(Q83,FeedPrice[Feed],FeedPrice[Price per kg],\"Unknown\",0)*O83","v":{"$error":"#N/A"}},{"$error":"#N/A"},{"$f":"_xlfn.XLOOKUP(O83,LabourFromFeed[Feed Quantity (kg)],LabourFromFeed[No. Labour],\"Out of range\",-1)","v":{"$error":"#N/A"}},{"$f":"T83*OperatingCosts!$C$9","v":{"$error":"#N/A"}},{"$error":"#N/A"}]
[82,{"$f":"IF(A84<='S3-Short'!$C$7, B83*EXP((LN((E83/100)+1))*1),)","v":0},{"$f":"_xlfn.XLOOKUP($B84,FeedTables!$C$42:$T$42,FeedTables!$C$44:$T$44,,-1)","v":{"$error":"#N/A"}},{"$f":"_xlfn.XLOOKUP($B84,FeedTables!$C$42:$T$42,FeedTables!$C$45:$T$45,,-1)","v":{"$error":"#N/A"}},{"$f":"_xlfn.XLOOKUP($B84,FeedTables!$C$42:$T$42,FeedTables!$C$46:$T$46,,-1)*_xlfn.XLOOKUP(N83,DensityMultiplier[Biomass kg/m3],DensityMultiplier[Multiplier],,-1)","v":{"$error":"#N/A"}},3853.2055944265799,{"$f":"IF(A84<='S3-Short'!$C$7,('Growth-Model-3'!G83*EXP($AA$7)),0)","v":0},{"$f":"IF(A84<='S3-Short'!$C$7,$AD$6*EXP($AD$7*('S3-Short'!C$7-'Growth-Model-3'!A84)),0)","v":0},196.79440557341832,4.859121125269588E-2,0,13.580865810479755,0,{"$f":"M84/'S3-Short'!$C$17","v":0},{"$error":"#N/A"},{"$error":"#N/A"},{"$f":"_xlfn.XLOOKUP(B84,FeedTables!$C$17:$T$17,FeedTables!$C$31:$T$31,,-1)","v":{"$error":"#N/A"}},{"$f":"_xlfn.XLOOKUP(Q84,FeedPrice[Feed],FeedPrice[Price per kg],\"Unknown\",0)*O84","v":{"$error":"#N/A"}},{"$error":"#N/A"},{"$f":"_xlfn.XLOOKUP(O84,LabourFromFeed[Feed Quantity (kg)],LabourFromFeed[No. Labour],\"Out of range\",-1)","v":{"$error":"#N/A"}},{"$f":"T84*OperatingCosts!$C$9","v":{"$error":"#N/A"}},{"$error":"#N/A"}]
[83,{"$f":"IF(A85<='S3-Short'!$C$7, B84*EXP((LN((E84/100)+1))*1),)","v":0},{"$f":"_xlfn.XLOOKUP($B85,FeedTables!$C$42:$T$42,FeedTables!$C$44:$T$44,,-1)","v":{"$error":"#N/A"}},{"$f":"_xlfn.XLOOKUP($B85,FeedTables!$C$42:$T$42,FeedTables!$C$45:$T$45,,-1)","v":{"$error":"#N/A"}},{"$f":"_xlfn.XLOOKUP($B85,FeedTables!$C$42:$T$42,FeedTables!$C$46:$T$46,,-1)*_xlfn.XLOOKUP(N84,DensityMultiplier[Biomass kg/m3],DensityMultiplier[Multiplier],,-1)","v":{"$error":"#N/A"}},3853.2055944265799,{"$f":"IF(A85<='S3-Short'!$C$7,('Growth-Model-3'!G84*EXP($AA$7)),0)","v":0},{"$f":"IF(A85<='S3-Short'!$C$7,$AD$6*EXP($AD$7*('S3-Short'!C$7-'Growth-Model-3'!A85)),0)","v":0},196.79440557341832,4.859121125269588E-2,0,13.580865810479755,0,{"$f":"M85/'S3-Short'!$C$17","v":0},{"$error":"#N/A"},{"$error":"#N/A"},{"$f":"_xlfn.XLOOKUP(B85,FeedTables!$C$17:$T$17,FeedTables!$C$31:$T$31,,-1)","v":{"$error":"#N/A"}},{"$f":"_xlfn.XLOOKUP(Q85,FeedPrice[Feed],FeedPrice[Price per kg],\"Unknown\",0)*O85","v":{"$error":"#N/A"}},{"$error":"#N/A"},{"$f":"_xlfn.XLOOKUP(O85,LabourFromFeed[Feed Quantity (kg)],LabourFromFeed[No. Labour],\"Out of range\",-1)","v":{"$error":"#N/A"}},{"$f":"T85*OperatingCosts!$C$9","v":{"$error":"#N/A"}},{"$error":"#N/A"}]
[84,{"$f":"IF(A86<='S3-Short'!$C$7, B85*EXP((LN((E85/100)+1))*1),)","v":0},{"$f":"_xlfn.XLOOKUP($B86,FeedTables!$C$42:$T$42,FeedTables!$C$44:$T$44,,-1)","v":{"$error":"#N/A"}},{"$f":"_xlfn.XLOOKUP($B86,FeedTables!$C$42:$T$42,FeedTables!$C$45:$T$45,,-1)","v":{"$error":"#N/A"}},{"$f":"_xlfn.XLOOKUP($B86,FeedTables!$C$42:$T$42,FeedTables!$C$46:$T$46,,-1)*_xlfn.XLOOKUP(N85,DensityMultiplier[Biomass kg/m3],DensityMultiplier[Multiplier],,-1)","v":{"$error":"#N/A"}},3853.2055944265799,{"$f":"IF(A86<='S3-Short'!$C$7,('Growth-Model-3'!G85*EXP($AA$7)),0)","v":0},{"$f":"IF(A86<='S3-Short'!$C$7,$AD$6*EXP($AD$7*('S3-Short'!C$7-'Growth-Model-3'!A86)),0)","v":0},196.79440557341832,4.859121125269588E-2,0,13.580865810479755,0,{"$f":"M86/'S3-Short'!$C$17","v":0},{"$error":"#N/A"},{"$error":"#N/A"},{"$f":"_xlfn.XLOOKUP(B86,FeedTables!$C$17:$T$17,FeedTables!$C$31:$T$31,,-1)","v":{"$error":"#N/A"}},{"$f":"_xlfn.XLOOKUP(Q86,FeedPrice[Feed],FeedPrice[Price per kg],\"Unknown\",0)*O86","v":{"$error":"#N/A"}},{"$error":"#N/A"},{"$f":"_xlfn.XLOOKUP(O86,LabourFromFeed[Feed Quantity (kg)],LabourFromFeed[No. Labour],\"Out of range\",-1)","v":{"$error":"#N/A"}},{"$f":"T86*OperatingCosts!$C$9","v":{"$error":"#N/A"}},{"$error":"#N/A"}]
[85,{"$f":"IF(A87<='S3-Short'!$C$7, B86*EXP((LN((E86/100)+1))*1),)","v":0},{"$f":"_xlfn.XLOOKUP($B87,FeedTables!$C$42:$T$42,FeedTables!$C$44:$T$44,,-1)","v":{"$error":"#N/A"}},{"$f":"_xlfn.XLOOKUP($B87,FeedTables!$C$42:$T$42,FeedTables!$C$45:$T$45,,-1)","v":{"$error":"#N/A"}},{"$f":"_xlfn.XLOOKUP($B87,FeedTables!$C$42:$T$42,FeedTables!$C$46:$T$46,,-1)*_xlfn.XLOOKUP(N86,DensityMultiplier[Biomass kg/m3],DensityMultiplier[Multiplier],,-1)","v":{"$error":"#N/A"}},3853.2055944265799,{"$f":"IF(A87<='S3-Short'!$C$7,('Growth-Model-3'!G86*EXP($AA$7)),0)","v":0},{"$f":"IF(A87<='S3-Short'!$C$7,$AD$6*EXP($AD$7*('S3-Short'!C$7-'Growth-Model-3'!A87)),0)","v":0},196.79440557341832,4.859121125269588E-2,0,13.580865810479755,0,{"$f":"M87/'S3-Short'!$C$17","v":0},{"$error":"#N/A"},{"$error":"#N/A"},{"$f":"_xlfn.XLOOKUP(B87,FeedTables!$C$17:$T$17,FeedTables!$C$31:$T$31,,-1)","v":{"$error":"#N/A"}},{"$f":"_xlfn.XLOOKUP(Q87,FeedPrice[Feed],FeedPrice[Price per kg],\"Unknown\",0)*O87","v":{"$error":"#N/A"}},{"$error":"#N/A"},{"$f":"_xlfn.XLOOKUP(O87,LabourFromFeed[Feed Quantity (kg)],LabourFromFeed[No. Labour],\"Out of range\",-1)","v":{"$error":"#N/A"}},{"$f":"T87*OperatingCosts!$C$9","v":{"$error":"#N/A"}},{"$error":"#N/A"}]
[86,{"$f":"IF(A88<='S3-Short'!$C$7, B87*EXP((LN((E87/100)+1))*1),)","v":0},{"$f":"_xlfn.XLOOKUP($B88,FeedTables!$C$42:$T$42,FeedTables!$C$44:$T$44,,-1)","v":{"$error":"#N/A"}},{"$f":"_xlfn.XLOOKUP($B88,FeedTables!$C$42:$T$42,FeedTables!$C$45:$T$45,,-1)","v":{"$error":"#N/A"}},{"$f":"_xlfn.XLOOKUP($B88,FeedTables!$C$42:$T$42,FeedTables!$C$46:$T$46,,-1)*_xlfn.XLOOKUP(N87,DensityMultiplier[Biomass kg/m3],DensityMultiplier[Multiplier],,-1)","v":{"$error":"#N/A"}},3853.2055944265799,{"$f":"IF(A88<='S3-Short'!$C$7,('Growth-Model-3'!G87*EXP($AA$7)),0)","v":0},{"$f":"IF(A88<='S3-Short'!$C$7,$AD$6*EXP($AD$7*('S3-Short'!C$7-'Growth-Model-3'!A88)),0)","v":0},196.79440557341832,4.859121125269588E-2,0,13.580865810479755,0,{"$f":"M88/'S3-Short'!$C$17","v":0},{"$error":"#N/A"},{"$error":"#N/A"},{"$f":"_xlfn.XLOOKUP(B88,FeedTables!$C$17:$T$17,FeedTables!$C$31:$T$31,,-1)","v":{"$error":"#N/A"}},{"$f":"_xlfn.XLOOKUP(Q88,FeedPrice[Feed],FeedPrice[Price per kg],\"Unknown\",0)*O88","v":{"$error":"#N/A"}},{"$error":"#N/A"},{"$f":"_xlfn.XLOOKUP(O88,LabourFromFeed[Feed Quantity (kg)],LabourFromFeed[No. Labour],\"Out of range\",-1)","v":{"$error":"#N/A"}},{"$f":"T88*OperatingCosts!$C$9","v":{"$error":"#N/A"}},{"$error":"#N/A"}]
[87,{"$f":"IF(A89<='S3-Short'!$C$7, B88*EXP((LN((E88/100)+1))*1),)","v":0},{"$f":"_xlfn.XLOOKUP($B89,FeedTables!$C$42:$T$42,FeedTables!$C$44:$T$44,,-1)","v":{"$error":"#N/A"}},{"$f":"_xlfn.XLOOKUP($B89,FeedTables!$C$42:$T$42,FeedTables!$C$45:$T$45,,-1)","v":{"$error":"#N/A"}},{"$f":"_xlfn.XLOOKUP($B89,FeedTables!$C$42:$T$42,FeedTables!$C$46:$T$46,,-1)*_xlfn.XLOOKUP(N88,DensityMultiplier[Biomass kg/m3],DensityMultiplier[Multiplier],,-1)","v":{"$error":"#N/A"}},3853.2055944265799,{"$f":"IF(A89<='S3-Short'!$C$7,('Growth-Model-3'!G88*EXP($AA$7)),0)","v":0},{"$f":"IF(A89<='S3-Short'!$C$7,$AD$6*EXP($AD$7*('S3-Short'!C$7-'Growth-Model-3'!A89)),0)","v":0},196.79440557341832,4.859121125269588E-2,0,13.580865810479755,0,{"$f":"M89/'S3-Short'!$C$17","v":0},{"$error":"#N/A"},{"$error":"#N/A"},{"$f":"_xlfn.XLOOKUP(B89,FeedTables!$C$17:$T$17,FeedTables!$C$31:$T$31,,-1)","v":{"$error":"#N/A"}},{"$f":"_xlfn.XLOOKUP(Q89,FeedPrice[Feed],FeedPrice[Price per kg],\"Unknown\",0)*O89","v":{"$error":"#N/A"}},{"$error":"#N/A"},{"$f":"_xlfn.XLOOKUP(O89,LabourFromFeed[Feed Quantity (kg)],LabourFromFeed[No. Labour],\"Out of range\",-1)","v":{"$error":"#N/A"}},{"$f":"T89*OperatingCosts!$C$9","v":{"$error":"#N/A"}},{"$error":"#N/A"}]
[88,{"$f":"IF(A90<='S3-Short'!$C$7, B89*EXP((LN((E89/100)+1))*1),)","v":0},{"$f":"_xlfn.XLOOKUP($B90,FeedTables!$C$42:$T$42,FeedTables!$C$44:$T$44,,-1)","v":{"$error":"#N/A"}},{"$f":"_xlfn.XLOOKUP($B90,FeedTables!$C$42:$T$42,FeedTables!$C$45:$T$45,,-1)","v":{"$error":"#N/A"}},{"$f":"_xlfn.XLOOKUP($B90,FeedTables!$C$42:$T$42,FeedTables!$C$46:$T$46,,-1)*_xlfn.XLOOKUP(N89,DensityMultiplier[Biomass kg/m3],DensityMultiplier[Multiplier],,-1)","v":{"$error":"#N/A"}},3853.2055944265799,{"$f":"IF(A90<='S3-Short'!$C$7,('Growth-Model-3'!G89*EXP($AA$7)),0)","v":0},{"$f":"IF(A90<='S3-Short'!$C$7,$AD$6*EXP($AD$7*('S3-Short'!C$7-'Growth-Model-3'!A90)),0)","v":0},196.79440557341832,4.859121125269588E-2,0,13.580865810479755,0,{"$f":"M90/'S3-Short'!$C$17","v":0},{"$error":"#N/A"},{"$error":"#N/A"},{"$f":"_xlfn.XLOOKUP(B90,FeedTables!$C$17:$T$17,FeedTables!$C$31:$T$31,,-1)","v":{"$error":"#N/A"}},{"$f":"_xlfn.XLOOKUP(Q90,FeedPrice[Feed],FeedPrice[Price per kg],\"Unknown\",0)*O90","v":{"$error":"#N/A"}},{"$error":"#N/A"},{"$f":"_xlfn.XLOOKUP(O90,LabourFromFeed[Feed Quantity (kg)],LabourFromFeed[No. Labour],\"Out of range\",-1)","v":{"$error":"#N/A"}},{"$f":"T90*OperatingCosts!$C$9","v":{"$error":"#N/A"}},{"$error":"#N/A"}]
[89,{"$f":"IF(A91<='S3-Short'!$C$7, B90*EXP((LN((E90/100)+1))*1),)","v":0},{"$f":"_xlfn.XLOOKUP($B91,FeedTables!$C$42:$T$42,FeedTables!$C$44:$T$44,,-1)","v":{"$error":"#N/A"}},{"$f":"_xlfn.XLOOKUP($B91,FeedTables!$C$42:$T$42,FeedTables!$C$45:$T$45,,-1)","v":{"$error":"#N/A"}},{"$f":"_xlfn.XLOOKUP($B91,FeedTables!$C$42:$T$42,FeedTables!$C$46:$T$46,,-1)*_xlfn.XLOOKUP(N90,DensityMultiplier[Biomass kg/m3],DensityMultiplier[Multiplier],,-1)","v":{"$error":"#N/A"}},3853.2055944265799,{"$f":"IF(A91<='S3-Short'!$C$7,('Growth-Model-3'!G90*EXP($AA$7)),0)","v":0},{"$f":"IF(A91<='S3-Short'!$C$7,$AD$6*EXP($AD$7*('S3-Short'!C$7-'Growth-Model-3'!A91)),0)","v":0},196.79440557341832,4.859121125269588E-2,0,13.580865810479755,0,{"$f":"M91/'S3-Short'!$C$17","v":0},{"$error":"#N/A"},{"$error":"#N/A"},{"$f":"_xlfn.XLOOKUP(B91,FeedTables!$C$17:$T$17,FeedTables!$C$31:$T$31,,-1)","v":{"$error":"#N/A"}},{"$f":"_xlfn.XLOOKUP(Q91,FeedPrice[Feed],FeedPrice[Price per kg],\"Unknown\",0)*O91","v":{"$error":"#N/A"}},{"$error":"#N/A"},{"$f":"_xlfn.XLOOKUP(O91,LabourFromFeed[Feed Quantity (kg)],LabourFromFeed[No. Labour],\"Out of range\",-1)","v":{"$error":"#N/A"}},{"$f":"T91*OperatingCosts!$C$9","v":{"$error":"#N/A"}},{"$error":"#N/A"}]
[90,{"$f":"IF(A92<='S3-Short'!$C$7, B91*EXP((LN((E91/100)+1))*1),)","v":0},{"$f":"_xlfn.XLOOKUP($B92,FeedTables!$C$42:$T$42,FeedTables!$C$44:$T$44,,-1)","v":{"$error":"#N/A"}},{"$f":"_xlfn.XLOOKUP($B92,FeedTables!$C$42:$T$42,FeedTables!$C$45:$T$45,,-1)","v":{"$error":"#N/A"}},{"$f":"_xlfn.XLOOKUP($B92,FeedTables!$C$42:$T$42,FeedTables!$C$46:$T$46,,-1)*_xlfn.XLOOKUP(N91,DensityMultiplier[Biomass kg/m3],DensityMultiplier[Multiplier],,-1)","v":{"$error":"#N/A"}},3853.2055944265799,{"$f":"IF(A92<='S3-Short'!$C$7,('Growth-Model-3'!G91*EXP($AA$7)),0)","v":0},{"$f":"IF(A92<='S3-Short'!$C$7,$AD$6*EXP($AD$7*('S3-Short'!C$7-'Growth-Model-3'!A92)),0)","v":0},196.79440557341832,4.859121125269588E-2,0,13.580865810479755,0,{"$f":"M92/'S3-Short'!$C$17","v":0},{"$error":"#N/A"},{"$error":"#N/A"},{"$f":"_xlfn.XLOOKUP(B92,FeedTables!$C$17:$T$17,FeedTables!$C$31:$T$31,,-1)","v":{"$error":"#N/A"}},{"$f":"_xlfn.XLOOKUP(Q92,FeedPrice[Feed],FeedPrice[Price per kg],\"Unknown\",0)*O92","v":{"$error":"#N/A"}},{"$error":"#N/A"},{"$f":"_xlfn.XLOOKUP(O92,LabourFromFeed[Feed Quantity (kg)],LabourFromFeed[No. Labour],\"Out of range\",-1)","v":{"$error":"#N/A"}},{"$f":"T92*OperatingCosts!$C$9","v":{"$error":"#N/A"}},{"$error":"#N/A"}]
[91,{"$f":"IF(A93<='S3-Short'!$C$7, B92*EXP((LN((E92/100)+1))*1),)","v":0},{"$f":"_xlfn.XLOOKUP($B93,FeedTables!$C$42:$T$42,FeedTables!$C$44:$T$44,,-1)","v":{"$error":"#N/A"}},{"$f":"_xlfn.XLOOKUP($B93,FeedTables!$C$42:$T$42,FeedTables!$C$45:$T$45,,-1)","v":{"$error":"#N/A"}},{"$f":"_xlfn.XLOOKUP($B93,FeedTables!$C$42:$T$42,FeedTables!$C$46:$T$46,,-1)*_xlfn.XLOOKUP(N92,DensityMultiplier[Biomass kg/m3],DensityMultiplier[Multiplier],,-1)","v":{"$error":"#N/A"}},3853.2055944265799,{"$f":"IF(A93<='S3-Short'!$C$7,('Growth-Model-3'!G92*EXP($AA$7)),0)","v":0},{"$f":"IF(A93<='S3-Short'!$C$7,$AD$6*EXP($AD$7*('S3-Short'!C$7-'Growth-Model-3'!A93)),0)","v":0},196.79440557341832,4.859121125269588E-2,0,13.580865810479755,0,{"$f":"M93/'S3-Short'!$C$17","v":0},{"$error":"#N/A"},{"$error":"#N/A"},{"$f":"_xlfn.XLOOKUP(B93,FeedTables!$C$17:$T$17,FeedTables!$C$31:$T$31,,-1)","v":{"$error":"#N/A"}},{"$f":"_xlfn.XLOOKUP(Q93,FeedPrice[Feed],FeedPrice[Price per kg],\"Unknown\",0)*O93","v":{"$error":"#N/A"}},{"$error":"#N/A"},{"$f":"_xlfn.XLOOKUP(O93,LabourFromFeed[Feed Quantity (kg)],LabourFromFeed[No. Labour],\"Out of range\",-1)","v":{"$error":"#N/A"}},{"$f":"T93*OperatingCosts!$C$9","v":{"$error":"#N/A"}},{"$error":"#N/A"}]
[92,{"$f":"IF(A94<='S3-Short'!$C$7, B93*EXP((LN((E93/100)+1))*1),)","v":0},{"$f":"_xlfn.XLOOKUP($B94,FeedTables!$C$42:$T$42,FeedTables!$C$44:$T$44,,-1)","v":{"$error":"#N/A"}},{"$f":"_xlfn.XLOOKUP($B94,FeedTables!$C$42:$T$42,FeedTables!$C$45:$T$45,,-1)","v":{"$error":"#N/A"}},{"$f":"_xlfn.XLOOKUP($B94,FeedTables!$C$42:$T$42,FeedTables!$C$46:$T$46,,-1)*_xlfn.XLOOKUP(N93,DensityMultiplier[Biomass kg/m3],DensityMultiplier[Multiplier],,-1)","v":{"$error":"#N/A"}},3853.2055944265799,{"$f":"IF(A94<='S3-Short'!$C$7,('Growth-Model-3'!G93*EXP($AA$7)),0)","v":0},{"$f":"IF(A94<='S3-Short'!$C$7,$AD$6*EXP($AD$7*('S3-Short'!C$7-'Growth-Model-3'!A94)),0)","v":0},196.79440557341832,4.859121125269588E-2,0,13.580865810479755,0,{"$f":"M94/'S3-Short'!$C$17","v":0},{"$error":"#N/A"},{"$error":"#N/A"},{"$f":"_xlfn.XLOOKUP(B94,FeedTables!$C$17:$T$17,FeedTables!$C$31:$T$31,,-1)","v":{"$error":"#N/A"}},{"$f":"_xlfn.XLOOKUP(Q94,FeedPrice[Feed],FeedPrice[Price per kg],\"Unknown\",0)*O94","v":{"$error":"#N/A"}},{"$error":"#N/A"},{"$f":"_xlfn.XLOOKUP(O94,LabourFromFeed[Feed Quantity (kg)],LabourFromFeed[No. Labour],\"Out of range\",-1)","v":{"$error":"#N/A"}},{"$f":"T94*OperatingCosts!$C$9","v":{"$error":"#N/A"}},{"$error":"#N/A"}]
[93,{"$f":"IF(A95<='S3-Short'!$C$7, B94*EXP((LN((E94/100)+1))*1),)","v":0},{"$f":"_xlfn.XLOOKUP($B95,FeedTables!$C$42:$T$42,FeedTables!$C$44:$T$44,,-1)","v":{"$error":"#N/A"}},{"$f":"_xlfn.XLOOKUP($B95,FeedTables!$C$42:$T$42,FeedTables!$C$45:$T$45,,-1)","v":{"$error":"#N/A"}},{"$f":"_xlfn.XLOOKUP($B95,FeedTables!$C$42:$T$42,FeedTables!$C$46:$T$46,,-1)*_xlfn.XLOOKUP(N94,DensityMultiplier[Biomass kg/m3],DensityMultiplier[Multiplier],,-1)","v":{"$error":"#N/A"}},3853.2055944265799,{"$f":"IF(A95<='S3-Short'!$C$7,('Growth-Model-3'!G94*EXP($AA$7)),0)","v":0},{"$f":"IF(A95<='S3-Short'!$C$7,$AD$6*EXP($AD$7*('S3-Short'!C$7-'Growth-Model-3'!A95)),0)","v":0},196.79440557341832,4.859121125269588E-2,0,13.580865810479755,0,{"$f":"M95/'S3-Short'!$C$17","v":0},{"$error":"#N/A"},{"$error":"#N/A"},{"$f":"_xlfn.XLOOKUP(B95,FeedTables!$C$17:$T$17,FeedTables!$C$31:$T$31,,-1)","v":{"$error":"#N/A"}},{"$f":"_xlfn.XLOOKUP(Q95,FeedPrice[Feed],FeedPrice[Price per kg],\"Unknown\",0)*O95","v":{"$error":"#N/A"}},{"$error":"#N/A"},{"$f":"_xlfn.XLOOKUP(O95,LabourFromFeed[Feed Quantity (kg)],LabourFromFeed[No. Labour],\"Out of range\",-1)","v":{"$error":"#N/A"}},{"$f":"T95*OperatingCosts!$C$9","v":{"$error":"#N/A"}},{"$error":"#N/A"}]
[94,{"$f":"IF(A96<='S3-Short'!$C$7, B95*EXP((LN((E95/100)+1))*1),)","v":0},{"$f":"_xlfn.XLOOKUP($B96,FeedTables!$C$42:$T$42,FeedTables!$C$44:$T$44,,-1)","v":{"$error":"#N/A"}},{"$f":"_xlfn.XLOOKUP($B96,FeedTables!$C$42:$T$42,FeedTables!$C$45:$T$45,,-1)","v":{"$error":"#N/A"}},{"$f":"_xlfn.XLOOKUP($B96,FeedTables!$C$42:$T$42,FeedTables!$C$46:$T$46,,-1)*_xlfn.XLOOKUP(N95,DensityMultiplier[Biomass kg/m3],DensityMultiplier[Multiplier],,-1)","v":{"$error":"#N/A"}},3853.2055944265799,{"$f":"IF(A96<='S3-Short'!$C$7,('Growth-Model-3'!G95*EXP($AA$7)),0)","v":0},{"$f":"IF(A96<='S3-Short'!$C$7,$AD$6*EXP($AD$7*('S3-Short'!C$7-'Growth-Model-3'!A96)),0)","v":0},196.79440557341832,4.859121125269588E-2,0,13.580865810479755,0,{"$f":"M96/'S3-Short'!$C$17","v":0},{"$error":"#N/A"},{"$error":"#N/A"},{"$f":"_xlfn.XLOOKUP(B96,FeedTables!$C$17:$T$17,FeedTables!$C$31:$T$31,,-1)","v":{"$error":"#N/A"}},{"$f":"_xlfn.XLOOKUP(Q96,FeedPrice[Feed],FeedPrice[Price per kg],\"Unknown\",0)*O96","v":{"$error":"#N/A"}},{"$error":"#N/A"},{"$f":"_xlfn.XLOOKUP(O96,LabourFromFeed[Feed Quantity (kg)],LabourFromFeed[No. Labour],\"Out of range\",-1)","v":{"$error":"#N/A"}},{"$f":"T96*OperatingCosts!$C$9","v":{"$error":"#N/A"}},{"$error":"#N/A"}]
[95,{"$f":"IF(A97<='S3-Short'!$C$7, B96*EXP((LN((E96/100)+1))*1),)","v":0},{"$f":"_xlfn.XLOOKUP($B97,FeedTables!$C$42:$T$42,FeedTables!$C$44:$T$44,,-1)","v":{"$error":"#N/A"}},{"$f":"_xlfn.XLOOKUP($B97,FeedTables!$C$42:$T$42,FeedTables!$C$45:$T$45,,-1)","v":{"$error":"#N/A"}},{"$f":"_xlfn.XLOOKUP($B97,FeedTables!$C$42:$T$42,FeedTables!$C$46:$T$46,,-1)*_xlfn.XLOOKUP(N96,DensityMultiplier[Biomass kg/m3],DensityMultiplier[Multiplier],,-1)","v":{"$error":"#N/A"}},3853.2055944265799,{"$f":"IF(A97<='S3-Short'!$C$7,('Growth-Model-3'!G96*EXP($AA$7)),0)","v":0},{"$f":"IF(A97<='S3-Short'!$C$7,$AD$6*EXP($AD$7*('S3-Short'!C$7-'Growth-Model-3'!A97)),0)","v":0},196.79440557341832,4.859121125269588E-2,0,13.580865810479755,0,{"$f":"M97/'S3-Short'!$C$17","v":0},{"$error":"#N/A"},{"$error":"#N/A"},{"$f":"_xlfn.XLOOKUP(B97,FeedTables!$C$17:$T$17,FeedTables!$C$31:$T$31,,-1)","v":{"$error":"#N/A"}},{"$f":"_xlfn.XLOOKUP(Q97,FeedPrice[Feed],FeedPrice[Price per kg],\"Unknown\",0)*O97","v":{"$error":"#N/A"}},{"$error":"#N/A"},{"$f":"_xlfn.XLOOKUP(O97,LabourFromFeed[Feed Quantity (kg)],LabourFromFeed[No. Labour],\"Out of range\",-1)","v":{"$error":"#N/A"}},{"$f":"T97*OperatingCosts!$C$9","v":{"$error":"#N/A"}},{"$error":"#N/A"}]
[96,{"$f":"IF(A98<='S3-Short'!$C$7, B97*EXP((LN((E97/100)+1))*1),)","v":0},{"$f":"_xlfn.XLOOKUP($B98,FeedTables!$C$42:$T$42,FeedTables!$C$44:$T$44,,-1)","v":{"$error":"#N/A"}},{"$f":"_xlfn.XLOOKUP($B98,FeedTables!$C$42:$T$42,FeedTables!$C$45:$T$45,,-1)","v":{"$error":"#N/A"}},{"$f":"_xlfn.XLOOKUP($B98,FeedTables!$C$42:$T$42,FeedTables!$C$46:$T$46,,-1)*_xlfn.XLOOKUP(N97,DensityMultiplier[Biomass kg/m3],DensityMultiplier[Multiplier],,-1)","v":{"$error":"#N/A"}},3853.2055944265799,{"$f":"IF(A98<='S3-Short'!$C$7,('Growth-Model-3'!G97*EXP($AA$7)),0)","v":0},{"$f":"IF(A98<='S3-Short'!$C$7,$AD$6*EXP($AD$7*('S3-Short'!C$7-'Growth-Model-3'!A98)),0)","v":0},196.79440557341832,4.859121125269588E-2,0,13.580865810479755,0,{"$f":"M98/'S3-Short'!$C$17","v":0},{"$error":"#N/A"},{"$error":"#N/A"},{"$f":"_xlfn.XLOOKUP(B98,FeedTables!$C$17:$T$17,FeedTables!$C$31:$T$31,,-1)","v":{"$error":"#N/A"}},{"$f":"_xlfn.XLOOKUP(Q98,FeedPrice[Feed],FeedPrice[Price per kg],\"Unknown\",0)*O98","v":{"$error":"#N/A"}},{"$error":"#N/A"},{"$f":"_xlfn.XLOOKUP(O98,LabourFromFeed[Feed Quantity (kg)],LabourFromFeed[No. Labour],\"Out of range\",-1)","v":{"$error":"#N/A"}},{"$f":"T98*OperatingCosts!$C$9","v":{"$error":"#N/A"}},{"$error":"#N/A"}]
[97,{"$f":"IF(A99<='S3-Short'!$C$7, B98*EXP((LN((E98/100)+1))*1),)","v":0},{"$f":"_xlfn.XLOOKUP($B99,FeedTables!$C$42:$T$42,FeedTables!$C$44:$T$44,,-1)","v":{"$error":"#N/A"}},{"$f":"_xlfn.XLOOKUP($B99,FeedTables!$C$42:$T$42,FeedTables!$C$45:$T$45,,-1)","v":{"$error":"#N/A"}},{"$f":"_xlfn.XLOOKUP($B99,FeedTables!$C$42:$T$42,FeedTables!$C$46:$T$46,,-1)*_xlfn.XLOOKUP(N98,DensityMultiplier[Biomass kg/m3],DensityMultiplier[Multiplier],,-1)","v":{"$error":"#N/A"}},3853.2055944265799,{"$f":"IF(A99<='S3-Short'!$C$7,('Growth-Model-3'!G98*EXP($AA$7)),0)","v":0},{"$f":"IF(A99<='S3-Short'!$C$7,$AD$6*EXP($AD$7*('S3-Short'!C$7-'Growth-Model-3'!A99)),0)","v":0},196.79440557341832,4.859121125269588E-2,0,13.580865810479755,0,{"$f":"M99/'S3-Short'!$C$17","v":0},{"$error":"#N/A"},{"$error":"#N/A"},{"$f":"_xlfn.XLOOKUP(B99,FeedTables!$C$17:$T$17,FeedTables!$C$31:$T$31,,-1)","v":{"$error":"#N/A"}},{"$f":"_xlfn.XLOOKUP(Q99,FeedPrice[Feed],FeedPrice[Price per kg],\"Unknown\",0)*O99","v":{"$error":"#N/A"}},{"$error":"#N/A"},{"$f":"_xlfn.XLOOKUP(O99,LabourFromFeed[Feed Quantity (kg)],LabourFromFeed[No. Labour],\"Out of range\",-1)","v":{"$error":"#N/A"}},{"$f":"T99*OperatingCosts!$C$9","v":{"$error":"#N/A"}},{"$error":"#N/A"}]
[98,{"$f":"IF(A100<='S3-Short'!$C$7, B99*EXP((LN((E99/100)+1))*1),)","v":0},{"$f":"_xlfn.XLOOKUP($B100,FeedTables!$C$42:$T$42,FeedTables!$C$44:$T$44,,-1)","v":{"$error":"#N/A"}},{"$f":"_xlfn.XLOOKUP($B100,FeedTables!$C$42:$T$42,FeedTables!$C$45:$T$45,,-1)","v":{"$error":"#N/A"}},{"$f":"_xlfn.XLOOKUP($B100,FeedTables!$C$42:$T$42,FeedTables!$C$46:$T$46,,-1)*_xlfn.XLOOKUP(N99,DensityMultiplier[Biomass kg/m3],DensityMultiplier[Multiplier],,-1)","v":{"$error":"#N/A"}},3853.2055944265799,{"$f":"IF(A100<='S3-Short'!$C$7,('Growth-Model-3'!G99*EXP($AA$7)),0)","v":0},{"$f":"IF(A100<='S3-Short'!$C$7,$AD$6*EXP($AD$7*('S3-Short'!C$7-'Growth-Model-3'!A100)),0)","v":0},196.79440557341832,4.859121125269588E-2,0,13.580865810479755,0,{"$f":"M100/'S3-Short'!$C$17","v":0},{"$error":"#N/A"},{"$error":"#N/A"},{"$f":"_xlfn.XLOOKUP(B100,FeedTables!$C$17:$T$17,FeedTables!$C$31:$T$31,,-1)","v":{"$error":"#N/A"}},{"$f":"_xlfn.XLOOKUP(Q100,FeedPrice[Feed],FeedPrice[Price per kg],\"Unknown\",0)*O100","v":{"$error":"#N/A"}},{"$error":"#N/A"},{"$f":"_xlfn.XLOOKUP(O100,LabourFromFeed[Feed Quantity (kg)],LabourFromFeed[No. Labour],\"Out of range\",-1)","v":{"$error":"#N/A"}},{"$f":"T100*OperatingCosts!$C$9","v":{"$error":"#N/A"}},{"$error":"#N/A"}]
[99,{"$f":"IF(A101<='S3-Short'!$C$7, B100*EXP((LN((E100/100)+1))*1),)","v":0},{"$f":"_xlfn.XLOOKUP($B101,FeedTables!$C$42:$T$42,FeedTables!$C$44:$T$44,,-1)","v":{"$error":"#N/A"}},{"$f":"_xlfn.XLOOKUP($B101,FeedTables!$C$42:$T$42,FeedTables!$C$45:$T$45,,-1)","v":{"$error":"#N/A"}},{"$f":"_xlfn.XLOOKUP($B101,FeedTables!$C$42:$T$42,FeedTables!$C$46:$T$46,,-1)*_xlfn.XLOOKUP(N100,DensityMultiplier[Biomass kg/m3],DensityMultiplier[Multiplier],,-1)","v":{"$error":"#N/A"}},3853.2055944265799,{"$f":"IF(A101<='S3-Short'!$C$7,('Growth-Model-3'!G100*EXP($AA$7)),0)","v":0},{"$f":"IF(A101<='S3-Short'!$C$7,$AD$6*EXP($AD$7*('S3-Short'!C$7-'Growth-Model-3'!A101)),0)","v":0},196.79440557341832,4.859121125269588E-2,0,13.580865810479755,0,{"$f":"M101/'S3-Short'!$C$17","v":0},{"$error":"#N/A"},{"$error":"#N/A"},{"$f":"_xlfn.XLOOKUP(B101,FeedTables!$C$17:$T$17,FeedTables!$C$31:$T$31,,-1)","v":{"$error":"#N/A"}},{"$f":"_xlfn.XLOOKUP(Q101,FeedPrice[Feed],FeedPrice[Price per kg],\"Unknown\",0)*O101","v":{"$error":"#N/A"}},{"$error":"#N/A"},{"$f":"_xlfn.XLOOKUP(O101,LabourFromFeed[Feed Quantity (kg)],LabourFromFeed[No. Labour],\"Out of range\",-1)","v":{"$error":"#N/A"}},{"$f":"T101*OperatingCosts!$C$9","v":{"$error":"#N/A"}},{"$error":"#N/A"}]
[100,{"$f":"IF(A102<='S3-Short'!$C$7, B101*EXP((LN((E101/100)+1))*1),)","v":0},{"$f":"_xlfn.XLOOKUP($B102,FeedTables!$C$42:$T$42,FeedTables!$C$44:$T$44,,-1)","v":{"$error":"#N/A"}},{"$f":"_xlfn.XLOOKUP($B102,FeedTables!$C$42:$T$42,FeedTables!$C$45:$T$45,,-1)","v":{"$error":"#N/A"}},{"$f":"_xlfn.XLOOKUP($B102,FeedTables!$C$42:$T$42,FeedTables!$C$46:$T$46,,-1)*_xlfn.XLOOKUP(N101,DensityMultiplier[Biomass kg/m3],DensityMultiplier[Multiplier],,-1)","v":{"$error":"#N/A"}},3853.2055944265799,{"$f":"IF(A102<='S3-Short'!$C$7,('Growth-Model-3'!G101*EXP($AA$7)),0)","v":0},{"$f":"IF(A102<='S3-Short'!$C$7,$AD$6*EXP($AD$7*('S3-Short'!C$7-'Growth-Model-3'!A102)),0)","v":0},196.79440557341832,4.859121125269588E-2,0,13.580865810479755,0,{"$f":"M102/'S3-Short'!$C$17","v":0},{"$error":"#N/A"},{"$error":"#N/A"},{"$f":"_xlfn.XLOOKUP(B102,FeedTables!$C$17:$T$17,FeedTables!$C$31:$T$31,,-1)","v":{"$error":"#N/A"}},{"$f":"_xlfn.XLOOKUP(Q102,FeedPrice[Feed],FeedPrice[Price per kg],\"Unknown\",0)*O102","v":{"$error":"#N/A"}},{"$error":"#N/A"},{"$f":"_xlfn.XLOOKUP(O102,LabourFromFeed[Feed Quantity (kg)],LabourFromFeed[No. Labour],\"Out of range\",-1)","v":{"$error":"#N/A"}},{"$f":"T102*OperatingCosts!$C$9","v":{"$error":"#N/A"}},{"$error":"#N/A"}]
[101,{"$f":"IF(A103<='S3-Short'!$C$7, B102*EXP((LN((E102/100)+1))*1),)","v":0},{"$f":"_xlfn.XLOOKUP($B103,FeedTables!$C$42:$T$42,FeedTables!$C$44:$T$44,,-1)","v":{"$error":"#N/A"}},{"$f":"_xlfn.XLOOKUP($B103,FeedTables!$C$42:$T$42,FeedTables!$C$45:$T$45,,-1)","v":{"$error":"#N/A"}},{"$f":"_xlfn.XLOOKUP($B103,FeedTables!$C$42:$T$42,FeedTables!$C$46:$T$46,,-1)*_xlfn.XLOOKUP(N102,DensityMultiplier[Biomass kg/m3],DensityMultiplier[Multiplier],,-1)","v":{"$error":"#N/A"}},3853.2055944265799,{"$f":"IF(A103<='S3-Short'!$C$7,('Growth-Model-3'!G102*EXP($AA$7)),0)","v":0},{"$f":"IF(A103<='S3-Short'!$C$7,$AD$6*EXP($AD$7*('S3-Short'!C$7-'Growth-Model-3'!A103)),0)","v":0},196.79440557341832,4.859121125269588E-2,0,13.580865810479755,0,{"$f":"M103/'S3-Short'!$C$17","v":0},{"$error":"#N/A"},{"$error":"#N/A"},{"$f":"_xlfn.XLOOKUP(B103,FeedTables!$C$17:$T$17,FeedTables!$C$31:$T$31,,-1)","v":{"$error":"#N/A"}},{"$f":"_xlfn.XLOOKUP(Q103,FeedPrice[Feed],FeedPrice[Price per kg],\"Unknown\",0)*O103","v":{"$error":"#N/A"}},{"$error":"#N/A"},{"$f":"_xlfn.XLOOKUP(O103,LabourFromFeed[Feed Quantity (kg)],LabourFromFeed[No. Labour],\"Out of range\",-1)","v":{"$error":"#N/A"}},{"$f":"T103*OperatingCosts!$C$9","v":{"$error":"#N/A"}},{"$error":"#N/A"}]
[102,{"$f":"IF(A104<='S3-Short'!$C$7, B103*EXP((LN((E103/100)+1))*1),)","v":0},{"$f":"_xlfn.XLOOKUP($B104,FeedTables!$C$42:$T$42,FeedTables!$C$44:$T$44,,-1)","v":{"$error":"#N/A"}},{"$f":"_xlfn.XLOOKUP($B104,FeedTables!$C$42:$T$42,FeedTables!$C$45:$T$45,,-1)","v":{"$error":"#N/A"}},{"$f":"_xlfn.XLOOKUP($B104,FeedTables!$C$42:$T$42,FeedTables!$C$46:$T$46,,-1)*_xlfn.XLOOKUP(N103,DensityMultiplier[Biomass kg/m3],DensityMultiplier[Multiplier],,-1)","v":{"$error":"#N/A"}},3853.2055944265799,{"$f":"IF(A104<='S3-Short'!$C$7,('Growth-Model-3'!G103*EXP($AA$7)),0)","v":0},{"$f":"IF(A104<='S3-Short'!$C$7,$AD$6*EXP($AD$7*('S3-Short'!C$7-'Growth-Model-3'!A104)),0)","v":0},196.79440557341832,4.859121125269588E-2,0,13.580865810479755,0,{"$f":"M104/'S3-Short'!$C$17","v":0},{"$error":"#N/A"},{"$error":"#N/A"},{"$f":"_xlfn.XLOOKUP(B104,FeedTables!$C$17:$T$17,FeedTables!$C$31:$T$31,,-1)","v":{"$error":"#N/A"}},{"$f":"_xlfn.XLOOKUP(Q104,FeedPrice[Feed],FeedPrice[Price per kg],\"Unknown\",0)*O104","v":{"$error":"#N/A"}},{"$error":"#N/A"},{"$f":"_xlfn.XLOOKUP(O104,LabourFromFeed[Feed Quantity (kg)],LabourFromFeed[No. Labour],\"Out of range\",-1)","v":{"$error":"#N/A"}},{"$f":"T104*OperatingCosts!$C$9","v":{"$error":"#N/A"}},{"$error":"#N/A"}]
[103,{"$f":"IF(A105<='S3-Short'!$C$7, B104*EXP((LN((E104/100)+1))*1),)","v":0},{"$f":"_xlfn.XLOOKUP($B105,FeedTables!$C$42:$T$42,FeedTables!$C$44:$T$44,,-1)","v":{"$error":"#N/A"}},{"$f":"_xlfn.XLOOKUP($B105,FeedTables!$C$42:$T$42,FeedTables!$C$45:$T$45,,-1)","v":{"$error":"#N/A"}},{"$f":"_xlfn.XLOOKUP($B105,FeedTables!$C$42:$T$42,FeedTables!$C$46:$T$46,,-1)*_xlfn.XLOOKUP(N104,DensityMultiplier[Biomass kg/m3],DensityMultiplier[Multiplier],,-1)","v":{"$error":"#N/A"}},3853.2055944265799,{"$f":"IF(A105<='S3-Short'!$C$7,('Growth-Model-3'!G104*EXP($AA$7)),0)","v":0},{"$f":"IF(A105<='S3-Short'!$C$7,$AD$6*EXP($AD$7*('S3-Short'!C$7-'Growth-Model-3'!A105)),0)","v":0},196.79440557341832,4.859121125269588E-2,0,13.580865810479755,0,{"$f":"M105/'S3-Short'!$C$17","v":0},{"$error":"#N/A"},{"$error":"#N/A"},{"$f":"_xlfn.XLOOKUP(B105,FeedTables!$C$17:$T$17,FeedTables!$C$31:$T$31,,-1)","v":{"$error":"#N/A"}},{"$f":"_xlfn.XLOOKUP(Q105,FeedPrice[Feed],FeedPrice[Price per kg],\"Unknown\",0)*O105","v":{"$error":"#N/A"}},{"$error":"#N/A"},{"$f":"_xlfn.XLOOKUP(O105,LabourFromFeed[Feed Quantity (kg)],LabourFromFeed[No. Labour],\"Out of range\",-1)","v":{"$error":"#N/A"}},{"$f":"T105*OperatingCosts!$C$9","v":{"$error":"#N/A"}},{"$error":"#N/A"}]
[104,{"$f":"IF(A106<='S3-Short'!$C$7, B105*EXP((LN((E105/100)+1))*1),)","v":0},{"$f":"_xlfn.XLOOKUP($B106,FeedTables!$C$42:$T$42,FeedTables!$C$44:$T$44,,-1)","v":{"$error":"#N/A"}},{"$f":"_xlfn.XLOOKUP($B106,FeedTables!$C$42:$T$42,FeedTables!$C$45:$T$45,,-1)","v":{"$error":"#N/A"}},{"$f":"_xlfn.XLOOKUP($B106,FeedTables!$C$42:$T$42,FeedTables!$C$46:$T$46,,-1)*_xlfn.XLOOKUP(N105,DensityMultiplier[Biomass kg/m3],DensityMultiplier[Multiplier],,-1)","v":{"$error":"#N/A"}},3853.2055944265799,{"$f":"IF(A106<='S3-Short'!$C$7,('Growth-Model-3'!G105*EXP($AA$7)),0)","v":0},{"$f":"IF(A106<='S3-Short'!$C$7,$AD$6*EXP($AD$7*('S3-Short'!C$7-'Growth-Model-3'!A106)),0)","v":0},196.79440557341832,4.859121125269588E-2,0,13.580865810479755,0,{"$f":"M106/'S3-Short'!$C$17","v":0},{"$error":"#N/A"},{"$error":"#N/A"},{"$f":"_xlfn.XLOOKUP(B106,FeedTables!$C$17:$T$17,FeedTables!$C$31:$T$31,,-1)","v":{"$error":"#N/A"}},{"$f":"_xlfn.XLOOKUP(Q106,FeedPrice[Feed],FeedPrice[Price per kg],\"Unknown\",0)*O106","v":{"$error":"#N/A"}},{"$error":"#N/A"},{"$f":"_xlfn.XLOOKUP(O106,LabourFromFeed[Feed Quantity (kg)],LabourFromFeed[No. Labour],\"Out of range\",-1)","v":{"$error":"#N/A"}},{"$f":"T106*OperatingCosts!$C$9","v":{"$error":"#N/A"}},{"$error":"#N/A"}]
[105,{"$f":"IF(A107<='S3-Short'!$C$7, B106*EXP((LN((E106/100)+1))*1),)","v":0},{"$f":"_xlfn.XLOOKUP($B107,FeedTables!$C$42:$T$42,FeedTables!$C$44:$T$44,,-1)","v":{"$error":"#N/A"}},{"$f":"_xlfn.XLOOKUP($B107,FeedTables!$C$42:$T$42,FeedTables!$C$45:$T$45,,-1)","v":{"$error":"#N/A"}},{"$f":"_xlfn.XLOOKUP($B107,FeedTables!$C$42:$T$42,FeedTables!$C$46:$T$46,,-1)*_xlfn.XLOOKUP(N106,DensityMultiplier[Biomass kg/m3],DensityMultiplier[Multiplier],,-1)","v":{"$error":"#N/A"}},3853.2055944265799,{"$f":"IF(A107<='S3-Short'!$C$7,('Growth-Model-3'!G106*EXP($AA$7)),0)","v":0},{"$f":"IF(A107<='S3-Short'!$C$7,$AD$6*EXP($AD$7*('S3-Short'!C$7-'Growth-Model-3'!A107)),0)","v":0},196.79440557341832,4.859121125269588E-2,0,13.580865810479755,0,{"$f":"M107/'S3-Short'!$C$17","v":0},{"$error":"#N/A"},{"$error":"#N/A"},{"$f":"_xlfn.XLOOKUP(B107,FeedTables!$C$17:$T$17,FeedTables!$C$31:$T$31,,-1)","v":{"$error":"#N/A"}},{"$f":"_xlfn.XLOOKUP(Q107,FeedPrice[Feed],FeedPrice[Price per kg],\"Unknown\",0)*O107","v":{"$error":"#N/A"}},{"$error":"#N/A"},{"$f":"_xlfn.XLOOKUP(O107,LabourFromFeed[Feed Quantity (kg)],LabourFromFeed[No. Labour],\"Out of range\",-1)","v":{"$error":"#N/A"}},{"$f":"T107*OperatingCosts!$C$9","v":{"$error":"#N/A"}},{"$error":"#N/A"}]
[106,{"$f":"IF(A108<='S3-Short'!$C$7, B107*EXP((LN((E107/100)+1))*1),)","v":0},{"$f":"_xlfn.XLOOKUP($B108,FeedTables!$C$42:$T$42,FeedTables!$C$44:$T$44,,-1)","v":{"$error":"#N/A"}},{"$f":"_xlfn.XLOOKUP($B108,FeedTables!$C$42:$T$42,FeedTables!$C$45:$T$45,,-1)","v":{"$error":"#N/A"}},{"$f":"_xlfn.XLOOKUP($B108,FeedTables!$C$42:$T$42,FeedTables!$C$46:$T$46,,-1)*_xlfn.XLOOKUP(N107,DensityMultiplier[Biomass kg/m3],DensityMultiplier[Multiplier],,-1)","v":{"$error":"#N/A"}},3853.2055944265799,{"$f":"IF(A108<='S3-Short'!$C$7,('Growth-Model-3'!G107*EXP($AA$7)),0)","v":0},{"$f":"IF(A108<='S3-Short'!$C$7,$AD$6*EXP($AD$7*('S3-Short'!C$7-'Growth-Model-3'!A108)),0)","v":0},196.79440557341832,4.859121125269588E-2,0,13.580865810479755,0,{"$f":"M108/'S3-Short'!$C$17","v":0},{"$error":"#N/A"},{"$error":"#N/A"},{"$f":"_xlfn.XLOOKUP(B108,FeedTables!$C$17:$T$17,FeedTables!$C$31:$T$31,,-1)","v":{"$error":"#N/A"}},{"$f":"_xlfn.XLOOKUP(Q108,FeedPrice[Feed],FeedPrice[Price per kg],\"Unknown\",0)*O108","v":{"$error":"#N/A"}},{"$error":"#N/A"},{"$f":"_xlfn.XLOOKUP(O108,LabourFromFeed[Feed Quantity (kg)],LabourFromFeed[No. Labour],\"Out of range\",-1)","v":{"$error":"#N/A"}},{"$f":"T108*OperatingCosts!$C$9","v":{"$error":"#N/A"}},{"$error":"#N/A"}]
[107,{"$f":"IF(A109<='S3-Short'!$C$7, B108*EXP((LN((E108/100)+1))*1),)","v":0},{"$f":"_xlfn.XLOOKUP($B109,FeedTables!$C$42:$T$42,FeedTables!$C$44:$T$44,,-1)","v":{"$error":"#N/A"}},{"$f":"_xlfn.XLOOKUP($B109,FeedTables!$C$42:$T$42,FeedTables!$C$45:$T$45,,-1)","v":{"$error":"#N/A"}},{"$f":"_xlfn.XLOOKUP($B109,FeedTables!$C$42:$T$42,FeedTables!$C$46:$T$46,,-1)*_xlfn.XLOOKUP(N108,DensityMultiplier[Biomass kg/m3],DensityMultiplier[Multiplier],,-1)","v":{"$error":"#N/A"}},3853.2055944265799,{"$f":"IF(A109<='S3-Short'!$C$7,('Growth-Model-3'!G108*EXP($AA$7)),0)","v":0},{"$f":"IF(A109<='S3-Short'!$C$7,$AD$6*EXP($AD$7*('S3-Short'!C$7-'Growth-Model-3'!A109)),0)","v":0},196.79440557341832,4.859121125269588E-2,0,13.580865810479755,0,{"$f":"M109/'S3-Short'!$C$17","v":0},{"$error":"#N/A"},{"$error":"#N/A"},{"$f":"_xlfn.XLOOKUP(B109,FeedTables!$C$17:$T$17,FeedTables!$C$31:$T$31,,-1)","v":{"$error":"#N/A"}},{"$f":"_xlfn.XLOOKUP(Q109,FeedPrice[Feed],FeedPrice[Price per kg],\"Unknown\",0)*O109","v":{"$error":"#N/A"}},{"$error":"#N/A"},{"$f":"_xlfn.XLOOKUP(O109,LabourFromFeed[Feed Quantity (kg)],LabourFromFeed[No. Labour],\"Out of range\",-1)","v":{"$error":"#N/A"}},{"$f":"T109*OperatingCosts!$C$9","v":{"$error":"#N/A"}},{"$error":"#N/A"}]
[108,{"$f":"IF(A110<='S3-Short'!$C$7, B109*EXP((LN((E109/100)+1))*1),)","v":0},{"$f":"_xlfn.XLOOKUP($B110,FeedTables!$C$42:$T$42,FeedTables!$C$44:$T$44,,-1)","v":{"$error":"#N/A"}},{"$f":"_xlfn.XLOOKUP($B110,FeedTables!$C$42:$T$42,FeedTables!$C$45:$T$45,,-1)","v":{"$error":"#N/A"}},{"$f":"_xlfn.XLOOKUP($B110,FeedTables!$C$42:$T$42,FeedTables!$C$46:$T$46,,-1)*_xlfn.XLOOKUP(N109,DensityMultiplier[Biomass kg/m3],DensityMultiplier[Multiplier],,-1)","v":{"$error":"#N/A"}},3853.2055944265799,{"$f":"IF(A110<='S3-Short'!$C$7,('Growth-Model-3'!G109*EXP($AA$7)),0)","v":0},{"$f":"IF(A110<='S3-Short'!$C$7,$AD$6*EXP($AD$7*('S3-Short'!C$7-'Growth-Model-3'!A110)),0)","v":0},196.79440557341832,4.859121125269588E-2,0,13.580865810479755,0,{"$f":"M110/'S3-Short'!$C$17","v":0},{"$error":"#N/A"},{"$error":"#N/A"},{"$f":"_xlfn.XLOOKUP(B110,FeedTables!$C$17:$T$17,FeedTables!$C$31:$T$31,,-1)","v":{"$error":"#N/A"}},{"$f":"_xlfn.XLOOKUP(Q110,FeedPrice[Feed],FeedPrice[Price per kg],\"Unknown\",0)*O110","v":{"$error":"#N/A"}},{"$error":"#N/A"},{"$f":"_xlfn.XLOOKUP(O110,LabourFromFeed[Feed Quantity (kg)],LabourFromFeed[No. Labour],\"Out of range\",-1)","v":{"$error":"#N/A"}},{"$f":"T110*OperatingCosts!$C$9","v":{"$error":"#N/A"}},{"$error":"#N/A"}]
[109,{"$f":"IF(A111<='S3-Short'!$C$7, B110*EXP((LN((E110/100)+1))*1),)","v":0},{"$f":"_xlfn.XLOOKUP($B111,FeedTables!$C$42:$T$42,FeedTables!$C$44:$T$44,,-1)","v":{"$error":"#N/A"}},{"$f":"_xlfn.XLOOKUP($B111,FeedTables!$C$42:$T$42,FeedTables!$C$45:$T$45,,-1)","v":{"$error":"#N/A"}},{"$f":"_xlfn.XLOOKUP($B111,FeedTables!$C$42:$T$42,FeedTables!$C$46:$T$46,,-1)*_xlfn.XLOOKUP(N110,DensityMultiplier[Biomass kg/m3],DensityMultiplier[Multiplier],,-1)","v":{"$error":"#N/A"}},3853.2055944265799,{"$f":"IF(A111<='S3-Short'!$C$7,('Growth-Model-3'!G110*EXP($AA$7)),0)","v":0},{"$f":"IF(A111<='S3-Short'!$C$7,$AD$6*EXP($AD$7*('S3-Short'!C$7-'Growth-Model-3'!A111)),0)","v":0},196.79440557341832,4.859121125269588E-2,0,13.580865810479755,0,{"$f":"M111/'S3-Short'!$C$17","v":0},{"$error":"#N/A"},{"$error":"#N/A"},{"$f":"_xlfn.XLOOKUP(B111,FeedTables!$C$17:$T$17,FeedTables!$C$31:$T$31,,-1)","v":{"$error":"#N/A"}},{"$f":"_xlfn.XLOOKUP(Q111,FeedPrice[Feed],FeedPrice[Price per kg],\"Unknown\",0)*O111","v":{"$error":"#N/A"}},{"$error":"#N/A"},{"$f":"_xlfn.XLOOKUP(O111,LabourFromFeed[Feed Quantity (kg)],LabourFromFeed[No. Labour],\"Out of range\",-1)","v":{"$error":"#N/A"}},{"$f":"T111*OperatingCosts!$C$9","v":{"$error":"#N/A"}},{"$error":"#N/A"}]
[110,{"$f":"IF(A112<='S3-Short'!$C$7, B111*EXP((LN((E111/100)+1))*1),)","v":0},{"$f":"_xlfn.XLOOKUP($B112,FeedTables!$C$42:$T$42,FeedTables!$C$44:$T$44,,-1)","v":{"$error":"#N/A"}},{"$f":"_xlfn.XLOOKUP($B112,FeedTables!$C$42:$T$42,FeedTables!$C$45:$T$45,,-1)","v":{"$error":"#N/A"}},{"$f":"_xlfn.XLOOKUP($B112,FeedTables!$C$42:$T$42,FeedTables!$C$46:$T$46,,-1)*_xlfn.XLOOKUP(N111,DensityMultiplier[Biomass kg/m3],DensityMultiplier[Multiplier],,-1)","v":{"$error":"#N/A"}},3853.2055944265799,{"$f":"IF(A112<='S3-Short'!$C$7,('Growth-Model-3'!G111*EXP($AA$7)),0)","v":0},{"$f":"IF(A112<='S3-Short'!$C$7,$AD$6*EXP($AD$7*('S3-Short'!C$7-'Growth-Model-3'!A112)),0)","v":0},196.79440557341832,4.859121125269588E-2,0,13.580865810479755,0,{"$f":"M112/'S3-Short'!$C$17","v":0},{"$error":"#N/A"},{"$error":"#N/A"},{"$f":"_xlfn.XLOOKUP(B112,FeedTables!$C$17:$T$17,FeedTables!$C$31:$T$31,,-1)","v":{"$error":"#N/A"}},{"$f":"_xlfn.XLOOKUP(Q112,FeedPrice[Feed],FeedPrice[Price per kg],\"Unknown\",0)*O112","v":{"$error":"#N/A"}},{"$error":"#N/A"},{"$f":"_xlfn.XLOOKUP(O112,LabourFromFeed[Feed Quantity (kg)],LabourFromFeed[No. Labour],\"Out of range\",-1)","v":{"$error":"#N/A"}},{"$f":"T112*OperatingCosts!$C$9","v":{"$error":"#N/A"}},{"$error":"#N/A"}]
[111,{"$f":"IF(A113<='S3-Short'!$C$7, B112*EXP((LN((E112/100)+1))*1),)","v":0},{"$f":"_xlfn.XLOOKUP($B113,FeedTables!$C$42:$T$42,FeedTables!$C$44:$T$44,,-1)","v":{"$error":"#N/A"}},{"$f":"_xlfn.XLOOKUP($B113,FeedTables!$C$42:$T$42,FeedTables!$C$45:$T$45,,-1)","v":{"$error":"#N/A"}},{"$f":"_xlfn.XLOOKUP($B113,FeedTables!$C$42:$T$42,FeedTables!$C$46:$T$46,,-1)*_xlfn.XLOOKUP(N112,DensityMultiplier[Biomass kg/m3],DensityMultiplier[Multiplier],,-1)","v":{"$error":"#N/A"}},3853.2055944265799,{"$f":"IF(A113<='S3-Short'!$C$7,('Growth-Model-3'!G112*EXP($AA$7)),0)","v":0},{"$f":"IF(A113<='S3-Short'!$C$7,$AD$6*EXP($AD$7*('S3-Short'!C$7-'Growth-Model-3'!A113)),0)","v":0},196.79440557341832,4.859121125269588E-2,0,13.580865810479755,0,{"$f":"M113/'S3-Short'!$C$17","v":0},{"$error":"#N/A"},{"$error":"#N/A"},{"$f":"_xlfn.XLOOKUP(B113,FeedTables!$C$17:$T$17,FeedTables!$C$31:$T$31,,-1)","v":{"$error":"#N/A"}},{"$f":"_xlfn.XLOOKUP(Q113,FeedPrice[Feed],FeedPrice[Price per kg],\"Unknown\",0)*O113","v":{"$error":"#N/A"}},{"$error":"#N/A"},{"$f":"_xlfn.XLOOKUP(O113,LabourFromFeed[Feed Quantity (kg)],LabourFromFeed[No. Labour],\"Out of range\",-1)","v":{"$error":"#N/A"}},{"$f":"T113*OperatingCosts!$C$9","v":{"$error":"#N/A"}},{"$error":"#N/A"}]
[112,{"$f":"IF(A114<='S3-Short'!$C$7, B113*EXP((LN((E113/100)+1))*1),)","v":0},{"$f":"_xlfn.XLOOKUP($B114,FeedTables!$C$42:$T$42,FeedTables!$C$44:$T$44,,-1)","v":{"$error":"#N/A"}},{"$f":"_xlfn.XLOOKUP($B114,FeedTables!$C$42:$T$42,FeedTables!$C$45:$T$45,,-1)","v":{"$error":"#N/A"}},{"$f":"_xlfn.XLOOKUP($B114,FeedTables!$C$42:$T$42,FeedTables!$C$46:$T$46,,-1)*_xlfn.XLOOKUP(N113,DensityMultiplier[Biomass kg/m3],DensityMultiplier[Multiplier],,-1)","v":{"$error":"#N/A"}},3853.2055944265799,{"$f":"IF(A114<='S3-Short'!$C$7,('Growth-Model-3'!G113*EXP($AA$7)),0)","v":0},{"$f":"IF(A114<='S3-Short'!$C$7,$AD$6*EXP($AD$7*('S3-Short'!C$7-'Growth-Model-3'!A114)),0)","v":0},196.79440557341832,4.859121125269588E-2,0,13.580865810479755,0,{"$f":"M114/'S3-Short'!$C$17","v":0},{"$error":"#N/A"},{"$error":"#N/A"},{"$f":"_xlfn.XLOOKUP(B114,FeedTables!$C$17:$T$17,FeedTables!$C$31:$T$31,,-1)","v":{"$error":"#N/A"}},{"$f":"_xlfn.XLOOKUP(Q114,FeedPrice[Feed],FeedPrice[Price per kg],\"Unknown\",0)*O114","v":{"$error":"#N/A"}},{"$error":"#N/A"},{"$f":"_xlfn.XLOOKUP(O114,LabourFromFeed[Feed Quantity (kg)],LabourFromFeed[No. Labour],\"Out of range\",-1)","v":{"$error":"#N/A"}},{"$f":"T114*OperatingCosts!$C$9","v":{"$error":"#N/A"}},{"$error":"#N/A"}]
[113,{"$f":"IF(A115<='S3-Short'!$C$7, B114*EXP((LN((E114/100)+1))*1),)","v":0},{"$f":"_xlfn.XLOOKUP($B115,FeedTables!$C$42:$T$42,FeedTables!$C$44:$T$44,,-1)","v":{"$error":"#N/A"}},{"$f":"_xlfn.XLOOKUP($B115,FeedTables!$C$42:$T$42,FeedTables!$C$45:$T$45,,-1)","v":{"$error":"#N/A"}},{"$f":"_xlfn.XLOOKUP($B115,FeedTables!$C$42:$T$42,FeedTables!$C$46:$T$46,,-1)*_xlfn.XLOOKUP(N114,DensityMultiplier[Biomass kg/m3],DensityMultiplier[Multiplier],,-1)","v":{"$error":"#N/A"}},3853.2055944265799,{"$f":"IF(A115<='S3-Short'!$C$7,('Growth-Model-3'!G114*EXP($AA$7)),0)","v":0},{"$f":"IF(A115<='S3-Short'!$C$7,$AD$6*EXP($AD$7*('S3-Short'!C$7-'Growth-Model-3'!A115)),0)","v":0},196.79440557341832,4.859121125269588E-2,0,13.580865810479755,0,{"$f":"M115/'S3-Short'!$C$17","v":0},{"$error":"#N/A"},{"$error":"#N/A"},{"$f":"_xlfn.XLOOKUP(B115,FeedTables!$C$17:$T$17,FeedTables!$C$31:$T$31,,-1)","v":{"$error":"#N/A"}},{"$f":"_xlfn.XLOOKUP(Q115,FeedPrice[Feed],FeedPrice[Price per kg],\"Unknown\",0)*O115","v":{"$error":"#N/A"}},{"$error":"#N/A"},{"$f":"_xlfn.XLOOKUP(O115,LabourFromFeed[Feed Quantity (kg)],LabourFromFeed[No. Labour],\"Out of range\",-1)","v":{"$error":"#N/A"}},{"$f":"T115*OperatingCosts!$C$9","v":{"$error":"#N/A"}},{"$error":"#N/A"}]
[114,{"$f":"IF(A116<='S3-Short'!$C$7, B115*EXP((LN((E115/100)+1))*1),)","v":0},{"$f":"_xlfn.XLOOKUP($B116,FeedTables!$C$42:$T$42,FeedTables!$C$44:$T$44,,-1)","v":{"$error":"#N/A"}},{"$f":"_xlfn.XLOOKUP($B116,FeedTables!$C$42:$T$42,FeedTables!$C$45:$T$45,,-1)","v":{"$error":"#N/A"}},{"$f":"_xlfn.XLOOKUP($B116,FeedTables!$C$42:$T$42,FeedTables!$C$46:$T$46,,-1)*_xlfn.XLOOKUP(N115,DensityMultiplier[Biomass kg/m3],DensityMultiplier[Multiplier],,-1)","v":{"$error":"#N/A"}},3853.2055944265799,{"$f":"IF(A116<='S3-Short'!$C$7,('Growth-Model-3'!G115*EXP($AA$7)),0)","v":0},{"$f":"IF(A116<='S3-Short'!$C$7,$AD$6*EXP($AD$7*('S3-Short'!C$7-'Growth-Model-3'!A116)),0)","v":0},196.79440557341832,4.859121125269588E-2,0,13.580865810479755,0,{"$f":"M116/'S3-Short'!$C$17","v":0},{"$error":"#N/A"},{"$error":"#N/A"},{"$f":"_xlfn.XLOOKUP(B116,FeedTables!$C$17:$T$17,FeedTables!$C$31:$T$31,,-1)","v":{"$error":"#N/A"}},{"$f":"_xlfn.XLOOKUP(Q116,FeedPrice[Feed],FeedPrice[Price per kg],\"Unknown\",0)*O116","v":{"$error":"#N/A"}},{"$error":"#N/A"},{"$f":"_xlfn.XLOOKUP(O116,LabourFromFeed[Feed Quantity (kg)],LabourFromFeed[No. Labour],\"Out of range\",-1)","v":{"$error":"#N/A"}},{"$f":"T116*OperatingCosts!$C$9","v":{"$error":"#N/A"}},{"$error":"#N/A"}]
[115,{"$f":"IF(A117<='S3-Short'!$C$7, B116*EXP((LN((E116/100)+1))*1),)","v":0},{"$f":"_xlfn.XLOOKUP($B117,FeedTables!$C$42:$T$42,FeedTables!$C$44:$T$44,,-1)","v":{"$error":"#N/A"}},{"$f":"_xlfn.XLOOKUP($B117,FeedTables!$C$42:$T$42,FeedTables!$C$45:$T$45,,-1)","v":{"$error":"#N/A"}},{"$f":"_xlfn.XLOOKUP($B117,FeedTables!$C$42:$T$42,FeedTables!$C$46:$T$46,,-1)*_xlfn.XLOOKUP(N116,DensityMultiplier[Biomass kg/m3],DensityMultiplier[Multiplier],,-1)","v":{"$error":"#N/A"}},3853.2055944265799,{"$f":"IF(A117<='S3-Short'!$C$7,('Growth-Model-3'!G116*EXP($AA$7)),0)","v":0},{"$f":"IF(A117<='S3-Short'!$C$7,$AD$6*EXP($AD$7*('S3-Short'!C$7-'Growth-Model-3'!A117)),0)","v":0},196.79440557341832,4.859121125269588E-2,0,13.580865810479755,0,{"$f":"M117/'S3-Short'!$C$17","v":0},{"$error":"#N/A"},{"$error":"#N/A"},{"$f":"_xlfn.XLOOKUP(B117,FeedTables!$C$17:$T$17,FeedTables!$C$31:$T$31,,-1)","v":{"$error":"#N/A"}},{"$f":"_xlfn.XLOOKUP(Q117,FeedPrice[Feed],FeedPrice[Price per kg],\"Unknown\",0)*O117","v":{"$error":"#N/A"}},{"$error":"#N/A"},{"$f":"_xlfn.XLOOKUP(O117,LabourFromFeed[Feed Quantity (kg)],LabourFromFeed[No. Labour],\"Out of range\",-1)","v":{"$error":"#N/A"}},{"$f":"T117*OperatingCosts!$C$9","v":{"$error":"#N/A"}},{"$error":"#N/A"}]
[116,{"$f":"IF(A118<='S3-Short'!$C$7, B117*EXP((LN((E117/100)+1))*1),)","v":0},{"$f":"_xlfn.XLOOKUP($B118,FeedTables!$C$42:$T$42,FeedTables!$C$44:$T$44,,-1)","v":{"$error":"#N/A"}},{"$f":"_xlfn.XLOOKUP($B118,FeedTables!$C$42:$T$42,FeedTables!$C$45:$T$45,,-1)","v":{"$error":"#N/A"}},{"$f":"_xlfn.XLOOKUP($B118,FeedTables!$C$42:$T$42,FeedTables!$C$46:$T$46,,-1)*_xlfn.XLOOKUP(N117,DensityMultiplier[Biomass kg/m3],DensityMultiplier[Multiplier],,-1)","v":{"$error":"#N/A"}},3853.2055944265799,{"$f":"IF(A118<='S3-Short'!$C$7,('Growth-Model-3'!G117*EXP($AA$7)),0)","v":0},{"$f":"IF(A118<='S3-Short'!$C$7,$AD$6*EXP($AD$7*('S3-Short'!C$7-'Growth-Model-3'!A118)),0)","v":0},196.79440557341832,4.859121125269588E-2,0,13.580865810479755,0,{"$f":"M118/'S3-Short'!$C$17","v":0},{"$error":"#N/A"},{"$error":"#N/A"},{"$f":"_xlfn.XLOOKUP(B118,FeedTables!$C$17:$T$17,FeedTables!$C$31:$T$31,,-1)","v":{"$error":"#N/A"}},{"$f":"_xlfn.XLOOKUP(Q118,FeedPrice[Feed],FeedPrice[Price per kg],\"Unknown\",0)*O118","v":{"$error":"#N/A"}},{"$error":"#N/A"},{"$f":"_xlfn.XLOOKUP(O118,LabourFromFeed[Feed Quantity (kg)],LabourFromFeed[No. Labour],\"Out of range\",-1)","v":{"$error":"#N/A"}},{"$f":"T118*OperatingCosts!$C$9","v":{"$error":"#N/A"}},{"$error":"#N/A"}]
[117,{"$f":"IF(A119<='S3-Short'!$C$7, B118*EXP((LN((E118/100)+1))*1),)","v":0},{"$f":"_xlfn.XLOOKUP($B119,FeedTables!$C$42:$T$42,FeedTables!$C$44:$T$44,,-1)","v":{"$error":"#N/A"}},{"$f":"_xlfn.XLOOKUP($B119,FeedTables!$C$42:$T$42,FeedTables!$C$45:$T$45,,-1)","v":{"$error":"#N/A"}},{"$f":"_xlfn.XLOOKUP($B119,FeedTables!$C$42:$T$42,FeedTables!$C$46:$T$46,,-1)*_xlfn.XLOOKUP(N118,DensityMultiplier[Biomass kg/m3],DensityMultiplier[Multiplier],,-1)","v":{"$error":"#N/A"}},3853.2055944265799,{"$f":"IF(A119<='S3-Short'!$C$7,('Growth-Model-3'!G118*EXP($AA$7)),0)","v":0},{"$f":"IF(A119<='S3-Short'!$C$7,$AD$6*EXP($AD$7*('S3-Short'!C$7-'Growth-Model-3'!A119)),0)","v":0},196.79440557341832,4.859121125269588E-2,0,13.580865810479755,0,{"$f":"M119/'S3-Short'!$C$17","v":0},{"$error":"#N/A"},{"$error":"#N/A"},{"$f":"_xlfn.XLOOKUP(B119,FeedTables!$C$17:$T$17,FeedTables!$C$31:$T$31,,-1)","v":{"$error":"#N/A"}},{"$f":"_xlfn.XLOOKUP(Q119,FeedPrice[Feed],FeedPrice[Price per kg],\"Unknown\",0)*O119","v":{"$error":"#N/A"}},{"$error":"#N/A"},{"$f":"_xlfn.XLOOKUP(O119,LabourFromFeed[Feed Quantity (kg)],LabourFromFeed[No. Labour],\"Out of range\",-1)","v":{"$error":"#N/A"}},{"$f":"T119*OperatingCosts!$C$9","v":{"$error":"#N/A"}},{"$error":"#N/A"}]
[118,{"$f":"IF(A120<='S3-Short'!$C$7, B119*EXP((LN((E119/100)+1))*1),)","v":0},{"$f":"_xlfn.XLOOKUP($B120,FeedTables!$C$42:$T$42,FeedTables!$C$44:$T$44,,-1)","v":{"$error":"#N/A"}},{"$f":"_xlfn.XLOOKUP($B120,FeedTables!$C$42:$T$42,FeedTables!$C$45:$T$45,,-1)","v":{"$error":"#N/A"}},{"$f":"_xlfn.XLOOKUP($B120,FeedTables!$C$42:$T$42,FeedTables!$C$46:$T$46,,-1)*_xlfn.XLOOKUP(N119,DensityMultiplier[Biomass kg/m3],DensityMultiplier[Multiplier],,-1)","v":{"$error":"#N/A"}},3853.2055944265799,{"$f":"IF(A120<='S3-Short'!$C$7,('Growth-Model-3'!G119*EXP($AA$7)),0)","v":0},{"$f":"IF(A120<='S3-Short'!$C$7,$AD$6*EXP($AD$7*('S3-Short'!C$7-'Growth-Model-3'!A120)),0)","v":0},196.79440557341832,4.859121125269588E-2,0,13.580865810479755,0,{"$f":"M120/'S3-Short'!$C$17","v":0},{"$error":"#N/A"},{"$error":"#N/A"},{"$f":"_xlfn.XLOOKUP(B120,FeedTables!$C$17:$T$17,FeedTables!$C$31:$T$31,,-1)","v":{"$error":"#N/A"}},{"$f":"_xlfn.XLOOKUP(Q120,FeedPrice[Feed],FeedPrice[Price per kg],\"Unknown\",0)*O120","v":{"$error":"#N/A"}},{"$error":"#N/A"},{"$f":"_xlfn.XLOOKUP(O120,LabourFromFeed[Feed Quantity (kg)],LabourFromFeed[No. Labour],\"Out of range\",-1)","v":{"$error":"#N/A"}},{"$f":"T120*OperatingCosts!$C$9","v":{"$error":"#N/A"}},{"$error":"#N/A"}]
[119,{"$f":"IF(A121<='S3-Short'!$C$7, B120*EXP((LN((E120/100)+1))*1),)","v":0},{"$f":"_xlfn.XLOOKUP($B121,FeedTables!$C$42:$T$42,FeedTables!$C$44:$T$44,,-1)","v":{"$error":"#N/A"}},{"$f":"_xlfn.XLOOKUP($B121,FeedTables!$C$42:$T$42,FeedTables!$C$45:$T$45,,-1)","v":{"$error":"#N/A"}},{"$f":"_xlfn.XLOOKUP($B121,FeedTables!$C$42:$T$42,FeedTables!$C$46:$T$46,,-1)*_xlfn.XLOOKUP(N120,DensityMultiplier[Biomass kg/m3],DensityMultiplier[Multiplier],,-1)","v":{"$error":"#N/A"}},3853.2055944265799,{"$f":"IF(A121<='S3-Short'!$C$7,('Growth-Model-3'!G120*EXP($AA$7)),0)","v":0},{"$f":"IF(A121<='S3-Short'!$C$7,$AD$6*EXP($AD$7*('S3-Short'!C$7-'Growth-Model-3'!A121)),0)","v":0},196.79440557341832,4.859121125269588E-2,0,13.580865810479755,0,{"$f":"M121/'S3-Short'!$C$17","v":0},{"$error":"#N/A"},{"$error":"#N/A"},{"$f":"_xlfn.XLOOKUP(B121,FeedTables!$C$17:$T$17,FeedTables!$C$31:$T$31,,-1)","v":{"$error":"#N/A"}},{"$f":"_xlfn.XLOOKUP(Q121,FeedPrice[Feed],FeedPrice[Price per kg],\"Unknown\",0)*O121","v":{"$error":"#N/A"}},{"$error":"#N/A"},{"$f":"_xlfn.XLOOKUP(O121,LabourFromFeed[Feed Quantity (kg)],LabourFromFeed[No. Labour],\"Out of range\",-1)","v":{"$error":"#N/A"}},{"$f":"T121*OperatingCosts!$C$9","v":{"$error":"#N/A"}},{"$error":"#N/A"}]
[120,{"$f":"IF(A122<='S3-Short'!$C$7, B121*EXP((LN((E121/100)+1))*1),)","v":0},{"$f":"_xlfn.XLOOKUP($B122,FeedTables!$C$42:$T$42,FeedTables!$C$44:$T$44,,-1)","v":{"$error":"#N/A"}},{"$f":"_xlfn.XLOOKUP($B122,FeedTables!$C$42:$T$42,FeedTables!$C$45:$T$45,,-1)","v":{"$error":"#N/A"}},{"$f":"_xlfn.XLOOKUP($B122,FeedTables!$C$42:$T$42,FeedTables!$C$46:$T$46,,-1)*_xlfn.XLOOKUP(N121,DensityMultiplier[Biomass kg/m3],DensityMultiplier[Multiplier],,-1)","v":{"$error":"#N/A"}},3853.2055944265799,{"$f":"IF(A122<='S3-Short'!$C$7,('Growth-Model-3'!G121*EXP($AA$7)),0)","v":0},{"$f":"IF(A122<='S3-Short'!$C$7,$AD$6*EXP($AD$7*('S3-Short'!C$7-'Growth-Model-3'!A122)),0)","v":0},196.79440557341832,4.859121125269588E-2,0,13.580865810479755,0,{"$f":"M122/'S3-Short'!$C$17","v":0},{"$error":"#N/A"},{"$error":"#N/A"},{"$f":"_xlfn.XLOOKUP(B122,FeedTables!$C$17:$T$17,FeedTables!$C$31:$T$31,,-1)","v":{"$error":"#N/A"}},{"$f":"_xlfn.XLOOKUP(Q122,FeedPrice[Feed],FeedPrice[Price per kg],\"Unknown\",0)*O122","v":{"$error":"#N/A"}},{"$error":"#N/A"},{"$f":"_xlfn.XLOOKUP(O122,LabourFromFeed[Feed Quantity (kg)],LabourFromFeed[No. Labour],\"Out of range\",-1)","v":{"$error":"#N/A"}},{"$f":"T122*OperatingCosts!$C$9","v":{"$error":"#N/A"}},{"$error":"#N/A"}]
[121,{"$f":"IF(A123<='S3-Short'!$C$7, B122*EXP((LN((E122/100)+1))*1),)","v":0},{"$f":"_xlfn.XLOOKUP($B123,FeedTables!$C$42:$T$42,FeedTables!$C$44:$T$44,,-1)","v":{"$error":"#N/A"}},{"$f":"_xlfn.XLOOKUP($B123,FeedTables!$C$42:$T$42,FeedTables!$C$45:$T$45,,-1)","v":{"$error":"#N/A"}},{"$f":"_xlfn.XLOOKUP($B123,FeedTables!$C$42:$T$42,FeedTables!$C$46:$T$46,,-1)*_xlfn.XLOOKUP(N122,DensityMultiplier[Biomass kg/m3],DensityMultiplier[Multiplier],,-1)","v":{"$error":"#N/A"}},3853.2055944265799,{"$f":"IF(A123<='S3-Short'!$C$7,('Growth-Model-3'!G122*EXP($AA$7)),0)","v":0},{"$f":"IF(A123<='S3-Short'!$C$7,$AD$6*EXP($AD$7*('S3-Short'!C$7-'Growth-Model-3'!A123)),0)","v":0},196.79440557341832,4.859121125269588E-2,0,13.580865810479755,0,{"$f":"M123/'S3-Short'!$C$17","v":0},{"$error":"#N/A"},{"$error":"#N/A"},{"$f":"_xlfn.XLOOKUP(B123,FeedTables!$C$17:$T$17,FeedTables!$C$31:$T$31,,-1)","v":{"$error":"#N/A"}},{"$f":"_xlfn.XLOOKUP(Q123,FeedPrice[Feed],FeedPrice[Price per kg],\"Unknown\",0)*O123","v":{"$error":"#N/A"}},{"$error":"#N/A"},{"$f":"_xlfn.XLOOKUP(O123,LabourFromFeed[Feed Quantity (kg)],LabourFromFeed[No. Labour],\"Out of range\",-1)","v":{"$error":"#N/A"}},{"$f":"T123*OperatingCosts!$C$9","v":{"$error":"#N/A"}},{"$error":"#N/A"}]
[122,{"$f":"IF(A124<='S3-Short'!$C$7, B123*EXP((LN((E123/100)+1))*1),)","v":0},{"$f":"_xlfn.XLOOKUP($B124,FeedTables!$C$42:$T$42,FeedTables!$C$44:$T$44,,-1)","v":{"$error":"#N/A"}},{"$f":"_xlfn.XLOOKUP($B124,FeedTables!$C$42:$T$42,FeedTables!$C$45:$T$45,,-1)","v":{"$error":"#N/A"}},{"$f":"_xlfn.XLOOKUP($B124,FeedTables!$C$42:$T$42,FeedTables!$C$46:$T$46,,-1)*_xlfn.XLOOKUP(N123,DensityMultiplier[Biomass kg/m3],DensityMultiplier[Multiplier],,-1)","v":{"$error":"#N/A"}},3853.2055944265799,{"$f":"IF(A124<='S3-Short'!$C$7,('Growth-Model-3'!G123*EXP($AA$7)),0)","v":0},{"$f":"IF(A124<='S3-Short'!$C$7,$AD$6*EXP($AD$7*('S3-Short'!C$7-'Growth-Model-3'!A124)),0)","v":0},196.79440557341832,4.859121125269588E-2,0,13.580865810479755,0,{"$f":"M124/'S3-Short'!$C$17","v":0},{"$error":"#N/A"},{"$error":"#N/A"},{"$f":"_xlfn.XLOOKUP(B124,FeedTables!$C$17:$T$17,FeedTables!$C$31:$T$31,,-1)","v":{"$error":"#N/A"}},{"$f":"_xlfn.XLOOKUP(Q124,FeedPrice[Feed],FeedPrice[Price per kg],\"Unknown\",0)*O124","v":{"$error":"#N/A"}},{"$error":"#N/A"},{"$f":"_xlfn.XLOOKUP(O124,LabourFromFeed[Feed Quantity (kg)],LabourFromFeed[No. Labour],\"Out of range\",-1)","v":{"$error":"#N/A"}},{"$f":"T124*OperatingCosts!$C$9","v":{"$error":"#N/A"}},{"$error":"#N/A"}]
[123,{"$f":"IF(A125<='S3-Short'!$C$7, B124*EXP((LN((E124/100)+1))*1),)","v":0},{"$f":"_xlfn.XLOOKUP($B125,FeedTables!$C$42:$T$42,FeedTables!$C$44:$T$44,,-1)","v":{"$error":"#N/A"}},{"$f":"_xlfn.XLOOKUP($B125,FeedTables!$C$42:$T$42,FeedTables!$C$45:$T$45,,-1)","v":{"$error":"#N/A"}},{"$f":"_xlfn.XLOOKUP($B125,FeedTables!$C$42:$T$42,FeedTables!$C$46:$T$46,,-1)*_xlfn.XLOOKUP(N124,DensityMultiplier[Biomass kg/m3],DensityMultiplier[Multiplier],,-1)","v":{"$error":"#N/A"}},3853.2055944265799,{"$f":"IF(A125<='S3-Short'!$C$7,('Growth-Model-3'!G124*EXP($AA$7)),0)","v":0},{"$f":"IF(A125<='S3-Short'!$C$7,$AD$6*EXP($AD$7*('S3-Short'!C$7-'Growth-Model-3'!A125)),0)","v":0},196.79440557341832,4.859121125269588E-2,0,13.580865810479755,0,{"$f":"M125/'S3-Short'!$C$17","v":0},{"$error":"#N/A"},{"$error":"#N/A"},{"$f":"_xlfn.XLOOKUP(B125,FeedTables!$C$17:$T$17,FeedTables!$C$31:$T$31,,-1)","v":{"$error":"#N/A"}},{"$f":"_xlfn.XLOOKUP(Q125,FeedPrice[Feed],FeedPrice[Price per kg],\"Unknown\",0)*O125","v":{"$error":"#N/A"}},{"$error":"#N/A"},{"$f":"_xlfn.XLOOKUP(O125,LabourFromFeed[Feed Quantity (kg)],LabourFromFeed[No. Labour],\"Out of range\",-1)","v":{"$error":"#N/A"}},{"$f":"T125*OperatingCosts!$C$9","v":{"$error":"#N/A"}},{"$error":"#N/A"}]
[124,{"$f":"IF(A126<='S3-Short'!$C$7, B125*EXP((LN((E125/100)+1))*1),)","v":0},{"$f":"_xlfn.XLOOKUP($B126,FeedTables!$C$42:$T$42,FeedTables!$C$44:$T$44,,-1)","v":{"$error":"#N/A"}},{"$f":"_xlfn.XLOOKUP($B126,FeedTables!$C$42:$T$42,FeedTables!$C$45:$T$45,,-1)","v":{"$error":"#N/A"}},{"$f":"_xlfn.XLOOKUP($B126,FeedTables!$C$42:$T$42,FeedTables!$C$46:$T$46,,-1)*_xlfn.XLOOKUP(N125,DensityMultiplier[Biomass kg/m3],DensityMultiplier[Multiplier],,-1)","v":{"$error":"#N/A"}},3853.2055944265799,{"$f":"IF(A126<='S3-Short'!$C$7,('Growth-Model-3'!G125*EXP($AA$7)),0)","v":0},{"$f":"IF(A126<='S3-Short'!$C$7,$AD$6*EXP($AD$7*('S3-Short'!C$7-'Growth-Model-3'!A126)),0)","v":0},196.79440557341832,4.859121125269588E-2,0,13.580865810479755,0,{"$f":"M126/'S3-Short'!$C$17","v":0},{"$error":"#N/A"},{"$error":"#N/A"},{"$f":"_xlfn.XLOOKUP(B126,FeedTables!$C$17:$T$17,FeedTables!$C$31:$T$31,,-1)","v":{"$error":"#N/A"}},{"$f":"_xlfn.XLOOKUP(Q126,FeedPrice[Feed],FeedPrice[Price per kg],\"Unknown\",0)*O126","v":{"$error":"#N/A"}},{"$error":"#N/A"},{"$f":"_xlfn.XLOOKUP(O126,LabourFromFeed[Feed Quantity (kg)],LabourFromFeed[No. Labour],\"Out of range\",-1)","v":{"$error":"#N/A"}},{"$f":"T126*OperatingCosts!$C$9","v":{"$error":"#N/A"}},{"$error":"#N/A"}]
[125,{"$f":"IF(A127<='S3-Short'!$C$7, B126*EXP((LN((E126/100)+1))*1),)","v":0},{"$f":"_xlfn.XLOOKUP($B127,FeedTables!$C$42:$T$42,FeedTables!$C$44:$T$44,,-1)","v":{"$error":"#N/A"}},{"$f":"_xlfn.XLOOKUP($B127,FeedTables!$C$42:$T$42,FeedTables!$C$45:$T$45,,-1)","v":{"$error":"#N/A"}},{"$f":"_xlfn.XLOOKUP($B127,FeedTables!$C$42:$T$42,FeedTables!$C$46:$T$46,,-1)*_xlfn.XLOOKUP(N126,DensityMultiplier[Biomass kg/m3],DensityMultiplier[Multiplier],,-1)","v":{"$error":"#N/A"}},3853.2055944265799,{"$f":"IF(A127<='S3-Short'!$C$7,('Growth-Model-3'!G126*EXP($AA$7)),0)","v":0},{"$f":"IF(A127<='S3-Short'!$C$7,$AD$6*EXP($AD$7*('S3-Short'!C$7-'Growth-Model-3'!A127)),0)","v":0},196.79440557341832,4.859121125269588E-2,0,13.580865810479755,0,{"$f":"M127/'S3-Short'!$C$17","v":0},{"$error":"#N/A"},{"$error":"#N/A"},{"$f":"_xlfn.XLOOKUP(B127,FeedTables!$C$17:$T$17,FeedTables!$C$31:$T$31,,-1)","v":{"$error":"#N/A"}},{"$f":"_xlfn.XLOOKUP(Q127,FeedPrice[Feed],FeedPrice[Price per kg],\"Unknown\",0)*O127","v":{"$error":"#N/A"}},{"$error":"#N/A"},{"$f":"_xlfn.XLOOKUP(O127,LabourFromFeed[Feed Quantity (kg)],LabourFromFeed[No. Labour],\"Out of range\",-1)","v":{"$error":"#N/A"}},{"$f":"T127*OperatingCosts!$C$9","v":{"$error":"#N/A"}},{"$error":"#N/A"}]
[126,{"$f":"IF(A128<='S3-Short'!$C$7, B127*EXP((LN((E127/100)+1))*1),)","v":0},{"$f":"_xlfn.XLOOKUP($B128,FeedTables!$C$42:$T$42,FeedTables!$C$44:$T$44,,-1)","v":{"$error":"#N/A"}},{"$f":"_xlfn.XLOOKUP($B128,FeedTables!$C$42:$T$42,FeedTables!$C$45:$T$45,,-1)","v":{"$error":"#N/A"}},{"$f":"_xlfn.XLOOKUP($B128,FeedTables!$C$42:$T$42,FeedTables!$C$46:$T$46,,-1)*_xlfn.XLOOKUP(N127,DensityMultiplier[Biomass kg/m3],DensityMultiplier[Multiplier],,-1)","v":{"$error":"#N/A"}},3853.2055944265799,{"$f":"IF(A128<='S3-Short'!$C$7,('Growth-Model-3'!G127*EXP($AA$7)),0)","v":0},{"$f":"IF(A128<='S3-Short'!$C$7,$AD$6*EXP($AD$7*('S3-Short'!C$7-'Growth-Model-3'!A128)),0)","v":0},196.79440557341832,4.859121125269588E-2,0,13.580865810479755,0,{"$f":"M128/'S3-Short'!$C$17","v":0},{"$error":"#N/A"},{"$error":"#N/A"},{"$f":"_xlfn.XLOOKUP(B128,FeedTables!$C$17:$T$17,FeedTables!$C$31:$T$31,,-1)","v":{"$error":"#N/A"}},{"$f":"_xlfn.XLOOKUP(Q128,FeedPrice[Feed],FeedPrice[Price per kg],\"Unknown\",0)*O128","v":{"$error":"#N/A"}},{"$error":"#N/A"},{"$f":"_xlfn.XLOOKUP(O128,LabourFromFeed[Feed Quantity (kg)],LabourFromFeed[No. Labour],\"Out of range\",-1)","v":{"$error":"#N/A"}},{"$f":"T128*OperatingCosts!$C$9","v":{"$error":"#N/A"}},{"$error":"#N/A"}]
[127,{"$f":"IF(A129<='S3-Short'!$C$7, B128*EXP((LN((E128/100)+1))*1),)","v":0},{"$f":"_xlfn.XLOOKUP($B129,FeedTables!$C$42:$T$42,FeedTables!$C$44:$T$44,,-1)","v":{"$error":"#N/A"}},{"$f":"_xlfn.XLOOKUP($B129,FeedTables!$C$42:$T$42,FeedTables!$C$45:$T$45,,-1)","v":{"$error":"#N/A"}},{"$f":"_xlfn.XLOOKUP($B129,FeedTables!$C$42:$T$42,FeedTables!$C$46:$T$46,,-1)*_xlfn.XLOOKUP(N128,DensityMultiplier[Biomass kg/m3],DensityMultiplier[Multiplier],,-1)","v":{"$error":"#N/A"}},3853.2055944265799,{"$f":"IF(A129<='S3-Short'!$C$7,('Growth-Model-3'!G128*EXP($AA$7)),0)","v":0},{"$f":"IF(A129<='S3-Short'!$C$7,$AD$6*EXP($AD$7*('S3-Short'!C$7-'Growth-Model-3'!A129)),0)","v":0},196.79440557341832,4.859121125269588E-2,0,13.580865810479755,0,{"$f":"M129/'S3-Short'!$C$17","v":0},{"$error":"#N/A"},{"$error":"#N/A"},{"$f":"_xlfn.XLOOKUP(B129,FeedTables!$C$17:$T$17,FeedTables!$C$31:$T$31,,-1)","v":{"$error":"#N/A"}},{"$f":"_xlfn.XLOOKUP(Q129,FeedPrice[Feed],FeedPrice[Price per kg],\"Unknown\",0)*O129","v":{"$error":"#N/A"}},{"$error":"#N/A"},{"$f":"_xlfn.XLOOKUP(O129,LabourFromFeed[Feed Quantity (kg)],LabourFromFeed[No. Labour],\"Out of range\",-1)","v":{"$error":"#N/A"}},{"$f":"T129*OperatingCosts!$C$9","v":{"$error":"#N/A"}},{"$error":"#N/A"}]
[128,{"$f":"IF(A130<='S3-Short'!$C$7, B129*EXP((LN((E129/100)+1))*1),)","v":0},{"$f":"_xlfn.XLOOKUP($B130,FeedTables!$C$42:$T$42,FeedTables!$C$44:$T$44,,-1)","v":{"$error":"#N/A"}},{"$f":"_xlfn.XLOOKUP($B130,FeedTables!$C$42:$T$42,FeedTables!$C$45:$T$45,,-1)","v":{"$error":"#N/A"}},{"$f":"_xlfn.XLOOKUP($B130,FeedTables!$C$42:$T$42,FeedTables!$C$46:$T$46,,-1)*_xlfn.XLOOKUP(N129,DensityMultiplier[Biomass kg/m3],DensityMultiplier[Multiplier],,-1)","v":{"$error":"#N/A"}},3853.2055944265799,{"$f":"IF(A130<='S3-Short'!$C$7,('Growth-Model-3'!G129*EXP($AA$7)),0)","v":0},{"$f":"IF(A130<='S3-Short'!$C$7,$AD$6*EXP($AD$7*('S3-Short'!C$7-'Growth-Model-3'!A130)),0)","v":0},196.79440557341832,4.859121125269588E-2,0,13.580865810479755,0,{"$f":"M130/'S3-Short'!$C$17","v":0},{"$error":"#N/A"},{"$error":"#N/A"},{"$f":"_xlfn.XLOOKUP(B130,FeedTables!$C$17:$T$17,FeedTables!$C$31:$T$31,,-1)","v":{"$error":"#N/A"}},{"$f":"_xlfn.XLOOKUP(Q130,FeedPrice[Feed],FeedPrice[Price per kg],\"Unknown\",0)*O130","v":{"$error":"#N/A"}},{"$error":"#N/A"},{"$f":"_xlfn.XLOOKUP(O130,LabourFromFeed[Feed Quantity (kg)],LabourFromFeed[No. Labour],\"Out of range\",-1)","v":{"$error":"#N/A"}},{"$f":"T130*OperatingCosts!$C$9","v":{"$error":"#N/A"}},{"$error":"#N/A"}]
[129,{"$f":"IF(A131<='S3-Short'!$C$7, B130*EXP((LN((E130/100)+1))*1),)","v":0},{"$f":"_xlfn.XLOOKUP($B131,FeedTables!$C$42:$T$42,FeedTables!$C$44:$T$44,,-1)","v":{"$error":"#N/A"}},{"$f":"_xlfn.XLOOKUP($B131,FeedTables!$C$42:$T$42,FeedTables!$C$45:$T$45,,-1)","v":{"$error":"#N/A"}},{"$f":"_xlfn.XLOOKUP($B131,FeedTables!$C$42:$T$42,FeedTables!$C$46:$T$46,,-1)*_xlfn.XLOOKUP(N130,DensityMultiplier[Biomass kg/m3],DensityMultiplier[Multiplier],,-1)","v":{"$error":"#N/A"}},3853.2055944265799,{"$f":"IF(A131<='S3-Short'!$C$7,('Growth-Model-3'!G130*EXP($AA$7)),0)","v":0},{"$f":"IF(A131<='S3-Short'!$C$7,$AD$6*EXP($AD$7*('S3-Short'!C$7-'Growth-Model-3'!A131)),0)","v":0},196.79440557341832,{"$f":"I131/$F$2","v":4.859121125269588E-2},{"$f":"(G131+H131)*B131","v":0},13.580865810479755,{"$f":"(B131*F131)/1000","v":0},{"$f":"M131/'S3-Short'!$C$17","v":0},{"$f":"M131*(C131/100)","v":{"$error":"#N/A"}},{"$error":"#N/A"},{"$f":"_xlfn.XLOOKUP(B131,FeedTables!$C$17:$T$17,FeedTables!$C$31:$T$31,,-1)","v":{"$error":"#N/A"}},{"$f":"_xlfn.XLOOKUP(Q131,FeedPrice[Feed],FeedPrice[Price per kg],\"Unknown\",0)*O131","v":{"$error":"#N/A"}},{"$error":"#N/A"},{"$f":"_xlfn.XLOOKUP(O131,LabourFromFeed[Feed Quantity (kg)],LabourFromFeed[No. Labour],\"Out of range\",-1)","v":{"$error":"#N/A"}},{"$f":"T131*OperatingCosts!$C$9","v":{"$error":"#N/A"}},{"$error":"#N/A"}]
[130,{"$f":"IF(A132<='S3-Short'!$C$7, B131*EXP((LN((E131/100)+1))*1),)","v":0},{"$f":"_xlfn.XLOOKUP($B132,FeedTables!$C$42:$T$42,FeedTables!$C$44:$T$44,,-1)","v":{"$error":"#N/A"}},{"$f":"_xlfn.XLOOKUP($B132,FeedTables!$C$42:$T$42,FeedTables!$C$45:$T$45,,-1)","v":{"$error":"#N/A"}},{"$f":"_xlfn.XLOOKUP($B132,FeedTables!$C$42:$T$42,FeedTables!$C$46:$T$46,,-1)*_xlfn.XLOOKUP(N131,DensityMultiplier[Biomass kg/m3],DensityMultiplier[Multiplier],,-1)","v":{"$error":"#N/A"}},{"$f":"F131-G131-H131","v":3853.2055944265799},{"$f":"IF(A132<='S3-Short'!$C$7,('Growth-Model-3'!G131*EXP($AA$7)),0)","v":0},{"$f":"IF(A132<='S3-Short'!$C$7,$AD$6*EXP($AD$7*('S3-Short'!C$7-'Growth-Model-3'!A132)),0)","v":0},{"$f":"I131+G132+H132","v":196.79440557341832},4.859121125269588E-2,0,{"$f":"(K132/1000)+L131","v":13.580865810479755},0,{"$f":"M132/'S3-Short'!$C$17","v":0},{"$error":"#N/A"},{"$f":"O132+P131","v":{"$error":"#N/A"}},{"$f":"_xlfn.XLOOKUP(B132,FeedTables!$C$17:$T$17,FeedTables!$C$31:$T$31,,-1)","v":{"$error":"#N/A"}},{"$f":"_xlfn.XLOOKUP(Q132,FeedPrice[Feed],FeedPrice[Price per kg],\"Unknown\",0)*O132","v":{"$error":"#N/A"}},{"$f":"R132+S131","v":{"$error":"#N/A"}},{"$f":"_xlfn.XLOOKUP(O132,LabourFromFeed[Feed Quantity (kg)],LabourFromFeed[No. Labour],\"Out of range\",-1)","v":{"$error":"#N/A"}},{"$f":"T132*OperatingCosts!$C$9","v":{"$error":"#N/A"}},{"$f":"U132+V131","v":{"$error":"#N/A"}}]
[131,{"$f":"IF(A133<='S3-Short'!$C$7, B132*EXP((LN((E132/100)+1))*1),)","v":0},{"$f":"_xlfn.XLOOKUP($B133,FeedTables!$C$42:$T$42,FeedTables!$C$44:$T$44,,-1)","v":{"$error":"#N/A"}},{"$f":"_xlfn.XLOOKUP($B133,FeedTables!$C$42:$T$42,FeedTables!$C$45:$T$45,,-1)","v":{"$error":"#N/A"}},{"$f":"_xlfn.XLOOKUP($B133,FeedTables!$C$42:$T$42,FeedTables!$C$46:$T$46,,-1)*_xlfn.XLOOKUP(N132,DensityMultiplier[Biomass kg/m3],DensityMultiplier[Multiplier],,-1)","v":{"$error":"#N/A"}},3853.2055944265799,{"$f":"IF(A133<='S3-Short'!$C$7,('Growth-Model-3'!G132*EXP($AA$7)),0)","v":0},{"$f":"IF(A133<='S3-Short'!$C$7,$AD$6*EXP($AD$7*('S3-Short'!C$7-'Growth-Model-3'!A133)),0)","v":0},196.79440557341832,4.859121125269588E-2,0,13.580865810479755,0,{"$f":"M133/'S3-Short'!$C$17","v":0},{"$error":"#N/A"},{"$error":"#N/A"},{"$f":"_xlfn.XLOOKUP(B133,FeedTables!$C$17:$T$17,FeedTables!$C$31:$T$31,,-1)","v":{"$error":"#N/A"}},{"$f":"_xlfn.XLOOKUP(Q133,FeedPrice[Feed],FeedPrice[Price per kg],\"Unknown\",0)*O133","v":{"$error":"#N/A"}},{"$error":"#N/A"},{"$f":"_xlfn.XLOOKUP(O133,LabourFromFeed[Feed Quantity (kg)],LabourFromFeed[No. Labour],\"Out of range\",-1)","v":{"$error":"#N/A"}},{"$f":"T133*OperatingCosts!$C$9","v":{"$error":"#N/A"}},{"$error":"#N/A"}]
[132,{"$f":"IF(A134<='S3-Short'!$C$7, B133*EXP((LN((E133/100)+1))*1),)","v":0},{"$f":"_xlfn.XLOOKUP($B134,FeedTables!$C$42:$T$42,FeedTables!$C$44:$T$44,,-1)","v":{"$error":"#N/A"}},{"$f":"_xlfn.XLOOKUP($B134,FeedTables!$C$42:$T$42,FeedTables!$C$45:$T$45,,-1)","v":{"$error":"#N/A"}},{"$f":"_xlfn.XLOOKUP($B134,FeedTables!$C$42:$T$42,FeedTables!$C$46:$T$46,,-1)*_xlfn.XLOOKUP(N133,DensityMultiplier[Biomass kg/m3],DensityMultiplier[Multiplier],,-1)","v":{"$error":"#N/A"}},3853.2055944265799,{"$f":"IF(A134<='S3-Short'!$C$7,('Growth-Model-3'!G133*EXP($AA$7)),0)","v":0},{"$f":"IF(A134<='S3-Short'!$C$7,$AD$6*EXP($AD$7*('S3-Short'!C$7-'Growth-Model-3'!A134)),0)","v":0},196.79440557341832,4.859121125269588E-2,0,13.580865810479755,0,{"$f":"M134/'S3-Short'!$C$17","v":0},{"$error":"#N/A"},{"$error":"#N/A"},{"$f":"_xlfn.XLOOKUP(B134,FeedTables!$C$17:$T$17,FeedTables!$C$31:$T$31,,-1)","v":{"$error":"#N/A"}},{"$f":"_xlfn.XLOOKUP(Q134,FeedPrice[Feed],FeedPrice[Price per kg],\"Unknown\",0)*O134","v":{"$error":"#N/A"}},{"$error":"#N/A"},{"$f":"_xlfn.XLOOKUP(O134,LabourFromFeed[Feed Quantity (kg)],LabourFromFeed[No. Labour],\"Out of range\",-1)","v":{"$error":"#N/A"}},{"$f":"T134*OperatingCosts!$C$9","v":{"$error":"#N/A"}},{"$error":"#N/A"}]
[133,{"$f":"IF(A135<='S3-Short'!$C$7, B134*EXP((LN((E134/100)+1))*1),)","v":0},{"$f":"_xlfn.XLOOKUP($B135,FeedTables!$C$42:$T$42,FeedTables!$C$44:$T$44,,-1)","v":{"$error":"#N/A"}},{"$f":"_xlfn.XLOOKUP($B135,FeedTables!$C$42:$T$42,FeedTables!$C$45:$T$45,,-1)","v":{"$error":"#N/A"}},{"$f":"_xlfn.XLOOKUP($B135,FeedTables!$C$42:$T$42,FeedTables!$C$46:$T$46,,-1)*_xlfn.XLOOKUP(N134,DensityMultiplier[Biomass kg/m3],DensityMultiplier[Multiplier],,-1)","v":{"$error":"#N/A"}},3853.2055944265799,{"$f":"IF(A135<='S3-Short'!$C$7,('Growth-Model-3'!G134*EXP($AA$7)),0)","v":0},{"$f":"IF(A135<='S3-Short'!$C$7,$AD$6*EXP($AD$7*('S3-Short'!C$7-'Growth-Model-3'!A135)),0)","v":0},196.79440557341832,4.859121125269588E-2,0,13.580865810479755,0,{"$f":"M135/'S3-Short'!$C$17","v":0},{"$error":"#N/A"},{"$error":"#N/A"},{"$f":"_xlfn.XLOOKUP(B135,FeedTables!$C$17:$T$17,FeedTables!$C$31:$T$31,,-1)","v":{"$error":"#N/A"}},{"$f":"_xlfn.XLOOKUP(Q135,FeedPrice[Feed],FeedPrice[Price per kg],\"Unknown\",0)*O135","v":{"$error":"#N/A"}},{"$error":"#N/A"},{"$f":"_xlfn.XLOOKUP(O135,LabourFromFeed[Feed Quantity (kg)],LabourFromFeed[No. Labour],\"Out of range\",-1)","v":{"$error":"#N/A"}},{"$f":"T135*OperatingCosts!$C$9","v":{"$error":"#N/A"}},{"$error":"#N/A"}]
[134,{"$f":"IF(A136<='S3-Short'!$C$7, B135*EXP((LN((E135/100)+1))*1),)","v":0},{"$f":"_xlfn.XLOOKUP($B136,FeedTables!$C$42:$T$42,FeedTables!$C$44:$T$44,,-1)","v":{"$error":"#N/A"}},{"$f":"_xlfn.XLOOKUP($B136,FeedTables!$C$42:$T$42,FeedTables!$C$45:$T$45,,-1)","v":{"$error":"#N/A"}},{"$f":"_xlfn.XLOOKUP($B136,FeedTables!$C$42:$T$42,FeedTables!$C$46:$T$46,,-1)*_xlfn.XLOOKUP(N135,DensityMultiplier[Biomass kg/m3],DensityMultiplier[Multiplier],,-1)","v":{"$error":"#N/A"}},3853.2055944265799,{"$f":"IF(A136<='S3-Short'!$C$7,('Growth-Model-3'!G135*EXP($AA$7)),0)","v":0},{"$f":"IF(A136<='S3-Short'!$C$7,$AD$6*EXP($AD$7*('S3-Short'!C$7-'Growth-Model-3'!A136)),0)","v":0},196.79440557341832,4.859121125269588E-2,0,13.580865810479755,0,{"$f":"M136/'S3-Short'!$C$17","v":0},{"$error":"#N/A"},{"$error":"#N/A"},{"$f":"_xlfn.XLOOKUP(B136,FeedTables!$C$17:$T$17,FeedTables!$C$31:$T$31,,-1)","v":{"$error":"#N/A"}},{"$f":"_xlfn.XLOOKUP(Q136,FeedPrice[Feed],FeedPrice[Price per kg],\"Unknown\",0)*O136","v":{"$error":"#N/A"}},{"$error":"#N/A"},{"$f":"_xlfn.XLOOKUP(O136,LabourFromFeed[Feed Quantity (kg)],LabourFromFeed[No. Labour],\"Out of range\",-1)","v":{"$error":"#N/A"}},{"$f":"T136*OperatingCosts!$C$9","v":{"$error":"#N/A"}},{"$error":"#N/A"}]
[135,{"$f":"IF(A137<='S3-Short'!$C$7, B136*EXP((LN((E136/100)+1))*1),)","v":0},{"$f":"_xlfn.XLOOKUP($B137,FeedTables!$C$42:$T$42,FeedTables!$C$44:$T$44,,-1)","v":{"$error":"#N/A"}},{"$f":"_xlfn.XLOOKUP($B137,FeedTables!$C$42:$T$42,FeedTables!$C$45:$T$45,,-1)","v":{"$error":"#N/A"}},{"$f":"_xlfn.XLOOKUP($B137,FeedTables!$C$42:$T$42,FeedTables!$C$46:$T$46,,-1)*_xlfn.XLOOKUP(N136,DensityMultiplier[Biomass kg/m3],DensityMultiplier[Multiplier],,-1)","v":{"$error":"#N/A"}},3853.2055944265799,{"$f":"IF(A137<='S3-Short'!$C$7,('Growth-Model-3'!G136*EXP($AA$7)),0)","v":0},{"$f":"IF(A137<='S3-Short'!$C$7,$AD$6*EXP($AD$7*('S3-Short'!C$7-'Growth-Model-3'!A137)),0)","v":0},196.79440557341832,4.859121125269588E-2,0,13.580865810479755,0,{"$f":"M137/'S3-Short'!$C$17","v":0},{"$error":"#N/A"},{"$error":"#N/A"},{"$f":"_xlfn.XLOOKUP(B137,FeedTables!$C$17:$T$17,FeedTables!$C$31:$T$31,,-1)","v":{"$error":"#N/A"}},{"$f":"_xlfn.XLOOKUP(Q137,FeedPrice[Feed],FeedPrice[Price per kg],\"Unknown\",0)*O137","v":{"$error":"#N/A"}},{"$error":"#N/A"},{"$f":"_xlfn.XLOOKUP(O137,LabourFromFeed[Feed Quantity (kg)],LabourFromFeed[No. Labour],\"Out of range\",-1)","v":{"$error":"#N/A"}},{"$f":"T137*OperatingCosts!$C$9","v":{"$error":"#N/A"}},{"$error":"#N/A"}]
[136,{"$f":"IF(A138<='S3-Short'!$C$7, B137*EXP((LN((E137/100)+1))*1),)","v":0},{"$f":"_xlfn.XLOOKUP($B138,FeedTables!$C$42:$T$42,FeedTables!$C$44:$T$44,,-1)","v":{"$error":"#N/A"}},{"$f":"_xlfn.XLOOKUP($B138,FeedTables!$C$42:$T$42,FeedTables!$C$45:$T$45,,-1)","v":{"$error":"#N/A"}},{"$f":"_xlfn.XLOOKUP($B138,FeedTables!$C$42:$T$42,FeedTables!$C$46:$T$46,,-1)*_xlfn.XLOOKUP(N137,DensityMultiplier[Biomass kg/m3],DensityMultiplier[Multiplier],,-1)","v":{"$error":"#N/A"}},3853.2055944265799,{"$f":"IF(A138<='S3-Short'!$C$7,('Growth-Model-3'!G137*EXP($AA$7)),0)","v":0},{"$f":"IF(A138<='S3-Short'!$C$7,$AD$6*EXP($AD$7*('S3-Short'!C$7-'Growth-Model-3'!A138)),0)","v":0},196.79440557341832,4.859121125269588E-2,0,13.580865810479755,0,{"$f":"M138/'S3-Short'!$C$17","v":0},{"$error":"#N/A"},{"$error":"#N/A"},{"$f":"_xlfn.XLOOKUP(B138,FeedTables!$C$17:$T$17,FeedTables!$C$31:$T$31,,-1)","v":{"$error":"#N/A"}},{"$f":"_xlfn.XLOOKUP(Q138,FeedPrice[Feed],FeedPrice[Price per kg],\"Unknown\",0)*O138","v":{"$error":"#N/A"}},{"$error":"#N/A"},{"$f":"_xlfn.XLOOKUP(O138,LabourFromFeed[Feed Quantity (kg)],LabourFromFeed[No. Labour],\"Out of range\",-1)","v":{"$error":"#N/A"}},{"$f":"T138*OperatingCosts!$C$9","v":{"$error":"#N/A"}},{"$error":"#N/A"}]
[137,{"$f":"IF(A139<='S3-Short'!$C$7, B138*EXP((LN((E138/100)+1))*1),)","v":0},{"$f":"_xlfn.XLOOKUP($B139,FeedTables!$C$42:$T$42,FeedTables!$C$44:$T$44,,-1)","v":{"$error":"#N/A"}},{"$f":"_xlfn.XLOOKUP($B139,FeedTables!$C$42:$T$42,FeedTables!$C$45:$T$45,,-1)","v":{"$error":"#N/A"}},{"$f":"_xlfn.XLOOKUP($B139,FeedTables!$C$42:$T$42,FeedTables!$C$46:$T$46,,-1)*_xlfn.XLOOKUP(N138,DensityMultiplier[Biomass kg/m3],DensityMultiplier[Multiplier],,-1)","v":{"$error":"#N/A"}},3853.2055944265799,{"$f":"IF(A139<='S3-Short'!$C$7,('Growth-Model-3'!G138*EXP($AA$7)),0)","v":0},{"$f":"IF(A139<='S3-Short'!$C$7,$AD$6*EXP($AD$7*('S3-Short'!C$7-'Growth-Model-3'!A139)),0)","v":0},196.79440557341832,4.859121125269588E-2,0,13.580865810479755,0,{"$f":"M139/'S3-Short'!$C$17","v":0},{"$error":"#N/A"},{"$error":"#N/A"},{"$f":"_xlfn.XLOOKUP(B139,FeedTables!$C$17:$T$17,FeedTables!$C$31:$T$31,,-1)","v":{"$error":"#N/A"}},{"$f":"_xlfn.XLOOKUP(Q139,FeedPrice[Feed],FeedPrice[Price per kg],\"Unknown\",0)*O139","v":{"$error":"#N/A"}},{"$error":"#N/A"},{"$f":"_xlfn.XLOOKUP(O139,LabourFromFeed[Feed Quantity (kg)],LabourFromFeed[No. Labour],\"Out of range\",-1)","v":{"$error":"#N/A"}},{"$f":"T139*OperatingCosts!$C$9","v":{"$error":"#N/A"}},{"$error":"#N/A"}]
[138,{"$f":"IF(A140<='S3-Short'!$C$7, B139*EXP((LN((E139/100)+1))*1),)","v":0},{"$f":"_xlfn.XLOOKUP($B140,FeedTables!$C$42:$T$42,FeedTables!$C$44:$T$44,,-1)","v":{"$error":"#N/A"}},{"$f":"_xlfn.XLOOKUP($B140,FeedTables!$C$42:$T$42,FeedTables!$C$45:$T$45,,-1)","v":{"$error":"#N/A"}},{"$f":"_xlfn.XLOOKUP($B140,FeedTables!$C$42:$T$42,FeedTables!$C$46:$T$46,,-1)*_xlfn.XLOOKUP(N139,DensityMultiplier[Biomass kg/m3],DensityMultiplier[Multiplier],,-1)","v":{"$error":"#N/A"}},3853.2055944265799,{"$f":"IF(A140<='S3-Short'!$C$7,('Growth-Model-3'!G139*EXP($AA$7)),0)","v":0},{"$f":"IF(A140<='S3-Short'!$C$7,$AD$6*EXP($AD$7*('S3-Short'!C$7-'Growth-Model-3'!A140)),0)","v":0},196.79440557341832,4.859121125269588E-2,0,13.580865810479755,0,{"$f":"M140/'S3-Short'!$C$17","v":0},{"$error":"#N/A"},{"$error":"#N/A"},{"$f":"_xlfn.XLOOKUP(B140,FeedTables!$C$17:$T$17,FeedTables!$C$31:$T$31,,-1)","v":{"$error":"#N/A"}},{"$f":"_xlfn.XLOOKUP(Q140,FeedPrice[Feed],FeedPrice[Price per kg],\"Unknown\",0)*O140","v":{"$error":"#N/A"}},{"$error":"#N/A"},{"$f":"_xlfn.XLOOKUP(O140,LabourFromFeed[Feed Quantity (kg)],LabourFromFeed[No. Labour],\"Out of range\",-1)","v":{"$error":"#N/A"}},{"$f":"T140*OperatingCosts!$C$9","v":{"$error":"#N/A"}},{"$error":"#N/A"}]
[139,{"$f":"IF(A141<='S3-Short'!$C$7, B140*EXP((LN((E140/100)+1))*1),)","v":0},{"$f":"_xlfn.XLOOKUP($B141,FeedTables!$C$42:$T$42,FeedTables!$C$44:$T$44,,-1)","v":{"$error":"#N/A"}},{"$f":"_xlfn.XLOOKUP($B141,FeedTables!$C$42:$T$42,FeedTables!$C$45:$T$45,,-1)","v":{"$error":"#N/A"}},{"$f":"_xlfn.XLOOKUP($B141,FeedTables!$C$42:$T$42,FeedTables!$C$46:$T$46,,-1)*_xlfn.XLOOKUP(N140,DensityMultiplier[Biomass kg/m3],DensityMultiplier[Multiplier],,-1)","v":{"$error":"#N/A"}},3853.2055944265799,{"$f":"IF(A141<='S3-Short'!$C$7,('Growth-Model-3'!G140*EXP($AA$7)),0)","v":0},{"$f":"IF(A141<='S3-Short'!$C$7,$AD$6*EXP($AD$7*('S3-Short'!C$7-'Growth-Model-3'!A141)),0)","v":0},196.79440557341832,4.859121125269588E-2,0,13.580865810479755,0,{"$f":"M141/'S3-Short'!$C$17","v":0},{"$error":"#N/A"},{"$error":"#N/A"},{"$f":"_xlfn.XLOOKUP(B141,FeedTables!$C$17:$T$17,FeedTables!$C$31:$T$31,,-1)","v":{"$error":"#N/A"}},{"$f":"_xlfn.XLOOKUP(Q141,FeedPrice[Feed],FeedPrice[Price per kg],\"Unknown\",0)*O141","v":{"$error":"#N/A"}},{"$error":"#N/A"},{"$f":"_xlfn.XLOOKUP(O141,LabourFromFeed[Feed Quantity (kg)],LabourFromFeed[No. Labour],\"Out of range\",-1)","v":{"$error":"#N/A"}},{"$f":"T141*OperatingCosts!$C$9","v":{"$error":"#N/A"}},{"$error":"#N/A"}]
[140,{"$f":"IF(A142<='S3-Short'!$C$7, B141*EXP((LN((E141/100)+1))*1),)","v":0},{"$f":"_xlfn.XLOOKUP($B142,FeedTables!$C$42:$T$42,FeedTables!$C$44:$T$44,,-1)","v":{"$error":"#N/A"}},{"$f":"_xlfn.XLOOKUP($B142,FeedTables!$C$42:$T$42,FeedTables!$C$45:$T$45,,-1)","v":{"$error":"#N/A"}},{"$f":"_xlfn.XLOOKUP($B142,FeedTables!$C$42:$T$42,FeedTables!$C$46:$T$46,,-1)*_xlfn.XLOOKUP(N141,DensityMultiplier[Biomass kg/m3],DensityMultiplier[Multiplier],,-1)","v":{"$error":"#N/A"}},3853.2055944265799,{"$f":"IF(A142<='S3-Short'!$C$7,('Growth-Model-3'!G141*EXP($AA$7)),0)","v":0},{"$f":"IF(A142<='S3-Short'!$C$7,$AD$6*EXP($AD$7*('S3-Short'!C$7-'Growth-Model-3'!A142)),0)","v":0},196.79440557341832,4.859121125269588E-2,0,13.580865810479755,0,{"$f":"M142/'S3-Short'!$C$17","v":0},{"$error":"#N/A"},{"$error":"#N/A"},{"$f":"_xlfn.XLOOKUP(B142,FeedTables!$C$17:$T$17,FeedTables!$C$31:$T$31,,-1)","v":{"$error":"#N/A"}},{"$f":"_xlfn.XLOOKUP(Q142,FeedPrice[Feed],FeedPrice[Price per kg],\"Unknown\",0)*O142","v":{"$error":"#N/A"}},{"$error":"#N/A"},{"$f":"_xlfn.XLOOKUP(O142,LabourFromFeed[Feed Quantity (kg)],LabourFromFeed[No. Labour],\"Out of range\",-1)","v":{"$error":"#N/A"}},{"$f":"T142*OperatingCosts!$C$9","v":{"$error":"#N/A"}},{"$error":"#N/A"}]
[141,{"$f":"IF(A143<='S3-Short'!$C$7, B142*EXP((LN((E142/100)+1))*1),)","v":0},{"$f":"_xlfn.XLOOKUP($B143,FeedTables!$C$42:$T$42,FeedTables!$C$44:$T$44,,-1)","v":{"$error":"#N/A"}},{"$f":"_xlfn.XLOOKUP($B143,FeedTables!$C$42:$T$42,FeedTables!$C$45:$T$45,,-1)","v":{"$error":"#N/A"}},{"$f":"_xlfn.XLOOKUP($B143,FeedTables!$C$42:$T$42,FeedTables!$C$46:$T$46,,-1)*_xlfn.XLOOKUP(N142,DensityMultiplier[Biomass kg/m3],DensityMultiplier[Multiplier],,-1)","v":{"$error":"#N/A"}},3853.2055944265799,{"$f":"IF(A143<='S3-Short'!$C$7,('Growth-Model-3'!G142*EXP($AA$7)),0)","v":0},{"$f":"IF(A143<='S3-Short'!$C$7,$AD$6*EXP($AD$7*('S3-Short'!C$7-'Growth-Model-3'!A143)),0)","v":0},196.79440557341832,4.859121125269588E-2,0,13.580865810479755,0,{"$f":"M143/'S3-Short'!$C$17","v":0},{"$error":"#N/A"},{"$error":"#N/A"},{"$f":"_xlfn.XLOOKUP(B143,FeedTables!$C$17:$T$17,FeedTables!$C$31:$T$31,,-1)","v":{"$error":"#N/A"}},{"$f":"_xlfn.XLOOKUP(Q143,FeedPrice[Feed],FeedPrice[Price per kg],\"Unknown\",0)*O143","v":{"$error":"#N/A"}},{"$error":"#N/A"},{"$f":"_xlfn.XLOOKUP(O143,LabourFromFeed[Feed Quantity (kg)],LabourFromFeed[No. Labour],\"Out of range\",-1)","v":{"$error":"#N/A"}},{"$f":"T143*OperatingCosts!$C$9","v":{"$error":"#N/A"}},{"$error":"#N/A"}]
[142,{"$f":"IF(A144<='S3-Short'!$C$7, B143*EXP((LN((E143/100)+1))*1),)","v":0},{"$f":"_xlfn.XLOOKUP($B144,FeedTables!$C$42:$T$42,FeedTables!$C$44:$T$44,,-1)","v":{"$error":"#N/A"}},{"$f":"_xlfn.XLOOKUP($B144,FeedTables!$C$42:$T$42,FeedTables!$C$45:$T$45,,-1)","v":{"$error":"#N/A"}},{"$f":"_xlfn.XLOOKUP($B144,FeedTables!$C$42:$T$42,FeedTables!$C$46:$T$46,,-1)*_xlfn.XLOOKUP(N143,DensityMultiplier[Biomass kg/m3],DensityMultiplier[Multiplier],,-1)","v":{"$error":"#N/A"}},3853.2055944265799,{"$f":"IF(A144<='S3-Short'!$C$7,('Growth-Model-3'!G143*EXP($AA$7)),0)","v":0},{"$f":"IF(A144<='S3-Short'!$C$7,$AD$6*EXP($AD$7*('S3-Short'!C$7-'Growth-Model-3'!A144)),0)","v":0},196.79440557341832,4.859121125269588E-2,0,13.580865810479755,0,{"$f":"M144/'S3-Short'!$C$17","v":0},{"$error":"#N/A"},{"$error":"#N/A"},{"$f":"_xlfn.XLOOKUP(B144,FeedTables!$C$17:$T$17,FeedTables!$C$31:$T$31,,-1)","v":{"$error":"#N/A"}},{"$f":"_xlfn.XLOOKUP(Q144,FeedPrice[Feed],FeedPrice[Price per kg],\"Unknown\",0)*O144","v":{"$error":"#N/A"}},{"$error":"#N/A"},{"$f":"_xlfn.XLOOKUP(O144,LabourFromFeed[Feed Quantity (kg)],LabourFromFeed[No. Labour],\"Out of range\",-1)","v":{"$error":"#N/A"}},{"$f":"T144*OperatingCosts!$C$9","v":{"$error":"#N/A"}},{"$error":"#N/A"}]
[143,{"$f":"IF(A145<='S3-Short'!$C$7, B144*EXP((LN((E144/100)+1))*1),)","v":0},{"$f":"_xlfn.XLOOKUP($B145,FeedTables!$C$42:$T$42,FeedTables!$C$44:$T$44,,-1)","v":{"$error":"#N/A"}},{"$f":"_xlfn.XLOOKUP($B145,FeedTables!$C$42:$T$42,FeedTables!$C$45:$T$45,,-1)","v":{"$error":"#N/A"}},{"$f":"_xlfn.XLOOKUP($B145,FeedTables!$C$42:$T$42,FeedTables!$C$46:$T$46,,-1)*_xlfn.XLOOKUP(N144,DensityMultiplier[Biomass kg/m3],DensityMultiplier[Multiplier],,-1)","v":{"$error":"#N/A"}},3853.2055944265799,{"$f":"IF(A145<='S3-Short'!$C$7,('Growth-Model-3'!G144*EXP($AA$7)),0)","v":0},{"$f":"IF(A145<='S3-Short'!$C$7,$AD$6*EXP($AD$7*('S3-Short'!C$7-'Growth-Model-3'!A145)),0)","v":0},196.79440557341832,4.859121125269588E-2,0,13.580865810479755,0,{"$f":"M145/'S3-Short'!$C$17","v":0},{"$error":"#N/A"},{"$error":"#N/A"},{"$f":"_xlfn.XLOOKUP(B145,FeedTables!$C$17:$T$17,FeedTables!$C$31:$T$31,,-1)","v":{"$error":"#N/A"}},{"$f":"_xlfn.XLOOKUP(Q145,FeedPrice[Feed],FeedPrice[Price per kg],\"Unknown\",0)*O145","v":{"$error":"#N/A"}},{"$error":"#N/A"},{"$f":"_xlfn.XLOOKUP(O145,LabourFromFeed[Feed Quantity (kg)],LabourFromFeed[No. Labour],\"Out of range\",-1)","v":{"$error":"#N/A"}},{"$f":"T145*OperatingCosts!$C$9","v":{"$error":"#N/A"}},{"$error":"#N/A"}]
[144,{"$f":"IF(A146<='S3-Short'!$C$7, B145*EXP((LN((E145/100)+1))*1),)","v":0},{"$f":"_xlfn.XLOOKUP($B146,FeedTables!$C$42:$T$42,FeedTables!$C$44:$T$44,,-1)","v":{"$error":"#N/A"}},{"$f":"_xlfn.XLOOKUP($B146,FeedTables!$C$42:$T$42,FeedTables!$C$45:$T$45,,-1)","v":{"$error":"#N/A"}},{"$f":"_xlfn.XLOOKUP($B146,FeedTables!$C$42:$T$42,FeedTables!$C$46:$T$46,,-1)*_xlfn.XLOOKUP(N145,DensityMultiplier[Biomass kg/m3],DensityMultiplier[Multiplier],,-1)","v":{"$error":"#N/A"}},3853.2055944265799,{"$f":"IF(A146<='S3-Short'!$C$7,('Growth-Model-3'!G145*EXP($AA$7)),0)","v":0},{"$f":"IF(A146<='S3-Short'!$C$7,$AD$6*EXP($AD$7*('S3-Short'!C$7-'Growth-Model-3'!A146)),0)","v":0},196.79440557341832,4.859121125269588E-2,0,13.580865810479755,0,{"$f":"M146/'S3-Short'!$C$17","v":0},{"$error":"#N/A"},{"$error":"#N/A"},{"$f":"_xlfn.XLOOKUP(B146,FeedTables!$C$17:$T$17,FeedTables!$C$31:$T$31,,-1)","v":{"$error":"#N/A"}},{"$f":"_xlfn.XLOOKUP(Q146,FeedPrice[Feed],FeedPrice[Price per kg],\"Unknown\",0)*O146","v":{"$error":"#N/A"}},{"$error":"#N/A"},{"$f":"_xlfn.XLOOKUP(O146,LabourFromFeed[Feed Quantity (kg)],LabourFromFeed[No. Labour],\"Out of range\",-1)","v":{"$error":"#N/A"}},{"$f":"T146*OperatingCosts!$C$9","v":{"$error":"#N/A"}},{"$error":"#N/A"}]
[145,{"$f":"IF(A147<='S3-Short'!$C$7, B146*EXP((LN((E146/100)+1))*1),)","v":0},{"$f":"_xlfn.XLOOKUP($B147,FeedTables!$C$42:$T$42,FeedTables!$C$44:$T$44,,-1)","v":{"$error":"#N/A"}},{"$f":"_xlfn.XLOOKUP($B147,FeedTables!$C$42:$T$42,FeedTables!$C$45:$T$45,,-1)","v":{"$error":"#N/A"}},{"$f":"_xlfn.XLOOKUP($B147,FeedTables!$C$42:$T$42,FeedTables!$C$46:$T$46,,-1)*_xlfn.XLOOKUP(N146,DensityMultiplier[Biomass kg/m3],DensityMultiplier[Multiplier],,-1)","v":{"$error":"#N/A"}},3853.2055944265799,{"$f":"IF(A147<='S3-Short'!$C$7,('Growth-Model-3'!G146*EXP($AA$7)),0)","v":0},{"$f":"IF(A147<='S3-Short'!$C$7,$AD$6*EXP($AD$7*('S3-Short'!C$7-'Growth-Model-3'!A147)),0)","v":0},196.79440557341832,4.859121125269588E-2,0,13.580865810479755,0,{"$f":"M147/'S3-Short'!$C$17","v":0},{"$error":"#N/A"},{"$error":"#N/A"},{"$f":"_xlfn.XLOOKUP(B147,FeedTables!$C$17:$T$17,FeedTables!$C$31:$T$31,,-1)","v":{"$error":"#N/A"}},{"$f":"_xlfn.XLOOKUP(Q147,FeedPrice[Feed],FeedPrice[Price per kg],\"Unknown\",0)*O147","v":{"$error":"#N/A"}},{"$error":"#N/A"},{"$f":"_xlfn.XLOOKUP(O147,LabourFromFeed[Feed Quantity (kg)],LabourFromFeed[No. Labour],\"Out of range\",-1)","v":{"$error":"#N/A"}},{"$f":"T147*OperatingCosts!$C$9","v":{"$error":"#N/A"}},{"$error":"#N/A"}]
[146,{"$f":"IF(A148<='S3-Short'!$C$7, B147*EXP((LN((E147/100)+1))*1),)","v":0},{"$f":"_xlfn.XLOOKUP($B148,FeedTables!$C$42:$T$42,FeedTables!$C$44:$T$44,,-1)","v":{"$error":"#N/A"}},{"$f":"_xlfn.XLOOKUP($B148,FeedTables!$C$42:$T$42,FeedTables!$C$45:$T$45,,-1)","v":{"$error":"#N/A"}},{"$f":"_xlfn.XLOOKUP($B148,FeedTables!$C$42:$T$42,FeedTables!$C$46:$T$46,,-1)*_xlfn.XLOOKUP(N147,DensityMultiplier[Biomass kg/m3],DensityMultiplier[Multiplier],,-1)","v":{"$error":"#N/A"}},3853.2055944265799,{"$f":"IF(A148<='S3-Short'!$C$7,('Growth-Model-3'!G147*EXP($AA$7)),0)","v":0},{"$f":"IF(A148<='S3-Short'!$C$7,$AD$6*EXP($AD$7*('S3-Short'!C$7-'Growth-Model-3'!A148)),0)","v":0},196.79440557341832,4.859121125269588E-2,0,13.580865810479755,0,{"$f":"M148/'S3-Short'!$C$17","v":0},{"$error":"#N/A"},{"$error":"#N/A"},{"$f":"_xlfn.XLOOKUP(B148,FeedTables!$C$17:$T$17,FeedTables!$C$31:$T$31,,-1)","v":{"$error":"#N/A"}},{"$f":"_xlfn.XLOOKUP(Q148,FeedPrice[Feed],FeedPrice[Price per kg],\"Unknown\",0)*O148","v":{"$error":"#N/A"}},{"$error":"#N/A"},{"$f":"_xlfn.XLOOKUP(O148,LabourFromFeed[Feed Quantity (kg)],LabourFromFeed[No. Labour],\"Out of range\",-1)","v":{"$error":"#N/A"}},{"$f":"T148*OperatingCosts!$C$9","v":{"$error":"#N/A"}},{"$error":"#N/A"}]
[147,{"$f":"IF(A149<='S3-Short'!$C$7, B148*EXP((LN((E148/100)+1))*1),)","v":0},{"$f":"_xlfn.XLOOKUP($B149,FeedTables!$C$42:$T$42,FeedTables!$C$44:$T$44,,-1)","v":{"$error":"#N/A"}},{"$f":"_xlfn.XLOOKUP($B149,FeedTables!$C$42:$T$42,FeedTables!$C$45:$T$45,,-1)","v":{"$error":"#N/A"}},{"$f":"_xlfn.XLOOKUP($B149,FeedTables!$C$42:$T$42,FeedTables!$C$46:$T$46,,-1)*_xlfn.XLOOKUP(N148,DensityMultiplier[Biomass kg/m3],DensityMultiplier[Multiplier],,-1)","v":{"$error":"#N/A"}},3853.2055944265799,{"$f":"IF(A149<='S3-Short'!$C$7,('Growth-Model-3'!G148*EXP($AA$7)),0)","v":0},{"$f":"IF(A149<='S3-Short'!$C$7,$AD$6*EXP($AD$7*('S3-Short'!C$7-'Growth-Model-3'!A149)),0)","v":0},196.79440557341832,4.859121125269588E-2,0,13.580865810479755,0,{"$f":"M149/'S3-Short'!$C$17","v":0},{"$error":"#N/A"},{"$error":"#N/A"},{"$f":"_xlfn.XLOOKUP(B149,FeedTables!$C$17:$T$17,FeedTables!$C$31:$T$31,,-1)","v":{"$error":"#N/A"}},{"$f":"_xlfn.XLOOKUP(Q149,FeedPrice[Feed],FeedPrice[Price per kg],\"Unknown\",0)*O149","v":{"$error":"#N/A"}},{"$error":"#N/A"},{"$f":"_xlfn.XLOOKUP(O149,LabourFromFeed[Feed Quantity (kg)],LabourFromFeed[No. Labour],\"Out of range\",-1)","v":{"$error":"#N/A"}},{"$f":"T149*OperatingCosts!$C$9","v":{"$error":"#N/A"}},{"$error":"#N/A"}]
[148,{"$f":"IF(A150<='S3-Short'!$C$7, B149*EXP((LN((E149/100)+1))*1),)","v":0},{"$f":"_xlfn.XLOOKUP($B150,FeedTables!$C$42:$T$42,FeedTables!$C$44:$T$44,,-1)","v":{"$error":"#N/A"}},{"$f":"_xlfn.XLOOKUP($B150,FeedTables!$C$42:$T$42,FeedTables!$C$45:$T$45,,-1)","v":{"$error":"#N/A"}},{"$f":"_xlfn.XLOOKUP($B150,FeedTables!$C$42:$T$42,FeedTables!$C$46:$T$46,,-1)*_xlfn.XLOOKUP(N149,DensityMultiplier[Biomass kg/m3],DensityMultiplier[Multiplier],,-1)","v":{"$error":"#N/A"}},3853.2055944265799,{"$f":"IF(A150<='S3-Short'!$C$7,('Growth-Model-3'!G149*EXP($AA$7)),0)","v":0},{"$f":"IF(A150<='S3-Short'!$C$7,$AD$6*EXP($AD$7*('S3-Short'!C$7-'Growth-Model-3'!A150)),0)","v":0},196.79440557341832,4.859121125269588E-2,0,13.580865810479755,0,{"$f":"M150/'S3-Short'!$C$17","v":0},{"$error":"#N/A"},{"$error":"#N/A"},{"$f":"_xlfn.XLOOKUP(B150,FeedTables!$C$17:$T$17,FeedTables!$C$31:$T$31,,-1)","v":{"$error":"#N/A"}},{"$f":"_xlfn.XLOOKUP(Q150,FeedPrice[Feed],FeedPrice[Price per kg],\"Unknown\",0)*O150","v":{"$error":"#N/A"}},{"$error":"#N/A"},{"$f":"_xlfn.XLOOKUP(O150,LabourFromFeed[Feed Quantity (kg)],LabourFromFeed[No. Labour],\"Out of range\",-1)","v":{"$error":"#N/A"}},{"$f":"T150*OperatingCosts!$C$9","v":{"$error":"#N/A"}},{"$error":"#N/A"}]
[149,{"$f":"IF(A151<='S3-Short'!$C$7, B150*EXP((LN((E150/100)+1))*1),)","v":0},{"$f":"_xlfn.XLOOKUP($B151,FeedTables!$C$42:$T$42,FeedTables!$C$44:$T$44,,-1)","v":{"$error":"#N/A"}},{"$f":"_xlfn.XLOOKUP($B151,FeedTables!$C$42:$T$42,FeedTables!$C$45:$T$45,,-1)","v":{"$error":"#N/A"}},{"$f":"_xlfn.XLOOKUP($B151,FeedTables!$C$42:$T$42,FeedTables!$C$46:$T$46,,-1)*_xlfn.XLOOKUP(N150,DensityMultiplier[Biomass kg/m3],DensityMultiplier[Multiplier],,-1)","v":{"$error":"#N/A"}},3853.2055944265799,{"$f":"IF(A151<='S3-Short'!$C$7,('Growth-Model-3'!G150*EXP($AA$7)),0)","v":0},{"$f":"IF(A151<='S3-Short'!$C$7,$AD$6*EXP($AD$7*('S3-Short'!C$7-'Growth-Model-3'!A151)),0)","v":0},196.79440557341832,4.859121125269588E-2,0,13.580865810479755,0,{"$f":"M151/'S3-Short'!$C$17","v":0},{"$error":"#N/A"},{"$error":"#N/A"},{"$f":"_xlfn.XLOOKUP(B151,FeedTables!$C$17:$T$17,FeedTables!$C$31:$T$31,,-1)","v":{"$error":"#N/A"}},{"$f":"_xlfn.XLOOKUP(Q151,FeedPrice[Feed],FeedPrice[Price per kg],\"Unknown\",0)*O151","v":{"$error":"#N/A"}},{"$error":"#N/A"},{"$f":"_xlfn.XLOOKUP(O151,LabourFromFeed[Feed Quantity (kg)],LabourFromFeed[No. Labour],\"Out of range\",-1)","v":{"$error":"#N/A"}},{"$f":"T151*OperatingCosts!$C$9","v":{"$error":"#N/A"}},{"$error":"#N/A"}]
[150,{"$f":"IF(A152<='S3-Short'!$C$7, B151*EXP((LN((E151/100)+1))*1),)","v":0},{"$f":"_xlfn.XLOOKUP($B152,FeedTables!$C$42:$T$42,FeedTables!$C$44:$T$44,,-1)","v":{"$error":"#N/A"}},{"$f":"_xlfn.XLOOKUP($B152,FeedTables!$C$42:$T$42,FeedTables!$C$45:$T$45,,-1)","v":{"$error":"#N/A"}},{"$f":"_xlfn.XLOOKUP($B152,FeedTables!$C$42:$T$42,FeedTables!$C$46:$T$46,,-1)*_xlfn.XLOOKUP(N151,DensityMultiplier[Biomass kg/m3],DensityMultiplier[Multiplier],,-1)","v":{"$error":"#N/A"}},3853.2055944265799,{"$f":"IF(A152<='S3-Short'!$C$7,('Growth-Model-3'!G151*EXP($AA$7)),0)","v":0},{"$f":"IF(A152<='S3-Short'!$C$7,$AD$6*EXP($AD$7*('S3-Short'!C$7-'Growth-Model-3'!A152)),0)","v":0},196.79440557341832,4.859121125269588E-2,0,13.580865810479755,0,{"$f":"M152/'S3-Short'!$C$17","v":0},{"$error":"#N/A"},{"$error":"#N/A"},{"$f":"_xlfn.XLOOKUP(B152,FeedTables!$C$17:$T$17,FeedTables!$C$31:$T$31,,-1)","v":{"$error":"#N/A"}},{"$f":"_xlfn.XLOOKUP(Q152,FeedPrice[Feed],FeedPrice[Price per kg],\"Unknown\",0)*O152","v":{"$error":"#N/A"}},{"$error":"#N/A"},{"$f":"_xlfn.XLOOKUP(O152,LabourFromFeed[Feed Quantity (kg)],LabourFromFeed[No. Labour],\"Out of range\",-1)","v":{"$error":"#N/A"}},{"$f":"T152*OperatingCosts!$C$9","v":{"$error":"#N/A"}},{"$error":"#N/A"}]
[151,{"$f":"IF(A153<='S3-Short'!$C$7, B152*EXP((LN((E152/100)+1))*1),)","v":0},{"$f":"_xlfn.XLOOKUP($B153,FeedTables!$C$42:$T$42,FeedTables!$C$44:$T$44,,-1)","v":{"$error":"#N/A"}},{"$f":"_xlfn.XLOOKUP($B153,FeedTables!$C$42:$T$42,FeedTables!$C$45:$T$45,,-1)","v":{"$error":"#N/A"}},{"$f":"_xlfn.XLOOKUP($B153,FeedTables!$C$42:$T$42,FeedTables!$C$46:$T$46,,-1)*_xlfn.XLOOKUP(N152,DensityMultiplier[Biomass kg/m3],DensityMultiplier[Multiplier],,-1)","v":{"$error":"#N/A"}},3853.2055944265799,{"$f":"IF(A153<='S3-Short'!$C$7,('Growth-Model-3'!G152*EXP($AA$7)),0)","v":0},{"$f":"IF(A153<='S3-Short'!$C$7,$AD$6*EXP($AD$7*('S3-Short'!C$7-'Growth-Model-3'!A153)),0)","v":0},196.79440557341832,4.859121125269588E-2,0,13.580865810479755,0,{"$f":"M153/'S3-Short'!$C$17","v":0},{"$error":"#N/A"},{"$error":"#N/A"},{"$f":"_xlfn.XLOOKUP(B153,FeedTables!$C$17:$T$17,FeedTables!$C$31:$T$31,,-1)","v":{"$error":"#N/A"}},{"$f":"_xlfn.XLOOKUP(Q153,FeedPrice[Feed],FeedPrice[Price per kg],\"Unknown\",0)*O153","v":{"$error":"#N/A"}},{"$error":"#N/A"},{"$f":"_xlfn.XLOOKUP(O153,LabourFromFeed[Feed Quantity (kg)],LabourFromFeed[No. Labour],\"Out of range\",-1)","v":{"$error":"#N/A"}},{"$f":"T153*OperatingCosts!$C$9","v":{"$error":"#N/A"}},{"$error":"#N/A"}]
[152,{"$f":"IF(A154<='S3-Short'!$C$7, B153*EXP((LN((E153/100)+1))*1),)","v":0},{"$f":"_xlfn.XLOOKUP($B154,FeedTables!$C$42:$T$42,FeedTables!$C$44:$T$44,,-1)","v":{"$error":"#N/A"}},{"$f":"_xlfn.XLOOKUP($B154,FeedTables!$C$42:$T$42,FeedTables!$C$45:$T$45,,-1)","v":{"$error":"#N/A"}},{"$f":"_xlfn.XLOOKUP($B154,FeedTables!$C$42:$T$42,FeedTables!$C$46:$T$46,,-1)*_xlfn.XLOOKUP(N153,DensityMultiplier[Biomass kg/m3],DensityMultiplier[Multiplier],,-1)","v":{"$error":"#N/A"}},3853.2055944265799,{"$f":"IF(A154<='S3-Short'!$C$7,('Growth-Model-3'!G153*EXP($AA$7)),0)","v":0},{"$f":"IF(A154<='S3-Short'!$C$7,$AD$6*EXP($AD$7*('S3-Short'!C$7-'Growth-Model-3'!A154)),0)","v":0},196.79440557341832,4.859121125269588E-2,0,13.580865810479755,0,{"$f":"M154/'S3-Short'!$C$17","v":0},{"$error":"#N/A"},{"$error":"#N/A"},{"$f":"_xlfn.XLOOKUP(B154,FeedTables!$C$17:$T$17,FeedTables!$C$31:$T$31,,-1)","v":{"$error":"#N/A"}},{"$f":"_xlfn.XLOOKUP(Q154,FeedPrice[Feed],FeedPrice[Price per kg],\"Unknown\",0)*O154","v":{"$error":"#N/A"}},{"$error":"#N/A"},{"$f":"_xlfn.XLOOKUP(O154,LabourFromFeed[Feed Quantity (kg)],LabourFromFeed[No. Labour],\"Out of range\",-1)","v":{"$error":"#N/A"}},{"$f":"T154*OperatingCosts!$C$9","v":{"$error":"#N/A"}},{"$error":"#N/A"}]
[153,{"$f":"IF(A155<='S3-Short'!$C$7, B154*EXP((LN((E154/100)+1))*1),)","v":0},{"$f":"_xlfn.XLOOKUP($B155,FeedTables!$C$42:$T$42,FeedTables!$C$44:$T$44,,-1)","v":{"$error":"#N/A"}},{"$f":"_xlfn.XLOOKUP($B155,FeedTables!$C$42:$T$42,FeedTables!$C$45:$T$45,,-1)","v":{"$error":"#N/A"}},{"$f":"_xlfn.XLOOKUP($B155,FeedTables!$C$42:$T$42,FeedTables!$C$46:$T$46,,-1)*_xlfn.XLOOKUP(N154,DensityMultiplier[Biomass kg/m3],DensityMultiplier[Multiplier],,-1)","v":{"$error":"#N/A"}},3853.2055944265799,{"$f":"IF(A155<='S3-Short'!$C$7,('Growth-Model-3'!G154*EXP($AA$7)),0)","v":0},{"$f":"IF(A155<='S3-Short'!$C$7,$AD$6*EXP($AD$7*('S3-Short'!C$7-'Growth-Model-3'!A155)),0)","v":0},196.79440557341832,4.859121125269588E-2,0,13.580865810479755,0,{"$f":"M155/'S3-Short'!$C$17","v":0},{"$error":"#N/A"},{"$error":"#N/A"},{"$f":"_xlfn.XLOOKUP(B155,FeedTables!$C$17:$T$17,FeedTables!$C$31:$T$31,,-1)","v":{"$error":"#N/A"}},{"$f":"_xlfn.XLOOKUP(Q155,FeedPrice[Feed],FeedPrice[Price per kg],\"Unknown\",0)*O155","v":{"$error":"#N/A"}},{"$error":"#N/A"},{"$f":"_xlfn.XLOOKUP(O155,LabourFromFeed[Feed Quantity (kg)],LabourFromFeed[No. Labour],\"Out of range\",-1)","v":{"$error":"#N/A"}},{"$f":"T155*OperatingCosts!$C$9","v":{"$error":"#N/A"}},{"$error":"#N/A"}]
[154,{"$f":"IF(A156<='S3-Short'!$C$7, B155*EXP((LN((E155/100)+1))*1),)","v":0},{"$f":"_xlfn.XLOOKUP($B156,FeedTables!$C$42:$T$42,FeedTables!$C$44:$T$44,,-1)","v":{"$error":"#N/A"}},{"$f":"_xlfn.XLOOKUP($B156,FeedTables!$C$42:$T$42,FeedTables!$C$45:$T$45,,-1)","v":{"$error":"#N/A"}},{"$f":"_xlfn.XLOOKUP($B156,FeedTables!$C$42:$T$42,FeedTables!$C$46:$T$46,,-1)*_xlfn.XLOOKUP(N155,DensityMultiplier[Biomass kg/m3],DensityMultiplier[Multiplier],,-1)","v":{"$error":"#N/A"}},3853.2055944265799,{"$f":"IF(A156<='S3-Short'!$C$7,('Growth-Model-3'!G155*EXP($AA$7)),0)","v":0},{"$f":"IF(A156<='S3-Short'!$C$7,$AD$6*EXP($AD$7*('S3-Short'!C$7-'Growth-Model-3'!A156)),0)","v":0},196.79440557341832,4.859121125269588E-2,0,13.580865810479755,0,{"$f":"M156/'S3-Short'!$C$17","v":0},{"$error":"#N/A"},{"$error":"#N/A"},{"$f":"_xlfn.XLOOKUP(B156,FeedTables!$C$17:$T$17,FeedTables!$C$31:$T$31,,-1)","v":{"$error":"#N/A"}},{"$f":"_xlfn.XLOOKUP(Q156,FeedPrice[Feed],FeedPrice[Price per kg],\"Unknown\",0)*O156","v":{"$error":"#N/A"}},{"$error":"#N/A"},{"$f":"_xlfn.XLOOKUP(O156,LabourFromFeed[Feed Quantity (kg)],LabourFromFeed[No. Labour],\"Out of range\",-1)","v":{"$error":"#N/A"}},{"$f":"T156*OperatingCosts!$C$9","v":{"$error":"#N/A"}},{"$error":"#N/A"}]
[155,{"$f":"IF(A157<='S3-Short'!$C$7, B156*EXP((LN((E156/100)+1))*1),)","v":0},{"$f":"_xlfn.XLOOKUP($B157,FeedTables!$C$42:$T$42,FeedTables!$C$44:$T$44,,-1)","v":{"$error":"#N/A"}},{"$f":"_xlfn.XLOOKUP($B157,FeedTables!$C$42:$T$42,FeedTables!$C$45:$T$45,,-1)","v":{"$error":"#N/A"}},{"$f":"_xlfn.XLOOKUP($B157,FeedTables!$C$42:$T$42,FeedTables!$C$46:$T$46,,-1)*_xlfn.XLOOKUP(N156,DensityMultiplier[Biomass kg/m3],DensityMultiplier[Multiplier],,-1)","v":{"$error":"#N/A"}},3853.2055944265799,{"$f":"IF(A157<='S3-Short'!$C$7,('Growth-Model-3'!G156*EXP($AA$7)),0)","v":0},{"$f":"IF(A157<='S3-Short'!$C$7,$AD$6*EXP($AD$7*('S3-Short'!C$7-'Growth-Model-3'!A157)),0)","v":0},196.79440557341832,4.859121125269588E-2,0,13.580865810479755,0,{"$f":"M157/'S3-Short'!$C$17","v":0},{"$error":"#N/A"},{"$error":"#N/A"},{"$f":"_xlfn.XLOOKUP(B157,FeedTables!$C$17:$T$17,FeedTables!$C$31:$T$31,,-1)","v":{"$error":"#N/A"}},{"$f":"_xlfn.XLOOKUP(Q157,FeedPrice[Feed],FeedPrice[Price per kg],\"Unknown\",0)*O157","v":{"$error":"#N/A"}},{"$error":"#N/A"},{"$f":"_xlfn.XLOOKUP(O157,LabourFromFeed[Feed Quantity (kg)],LabourFromFeed[No. Labour],\"Out of range\",-1)","v":{"$error":"#N/A"}},{"$f":"T157*OperatingCosts!$C$9","v":{"$error":"#N/A"}},{"$error":"#N/A"}]
[156,{"$f":"IF(A158<='S3-Short'!$C$7, B157*EXP((LN((E157/100)+1))*1),)","v":0},{"$f":"_xlfn.XLOOKUP($B158,FeedTables!$C$42:$T$42,FeedTables!$C$44:$T$44,,-1)","v":{"$error":"#N/A"}},{"$f":"_xlfn.XLOOKUP($B158,FeedTables!$C$42:$T$42,FeedTables!$C$45:$T$45,,-1)","v":{"$error":"#N/A"}},{"$f":"_xlfn.XLOOKUP($B158,FeedTables!$C$42:$T$42,FeedTables!$C$46:$T$46,,-1)*_xlfn.XLOOKUP(N157,DensityMultiplier[Biomass kg/m3],DensityMultiplier[Multiplier],,-1)","v":{"$error":"#N/A"}},3853.2055944265799,{"$f":"IF(A158<='S3-Short'!$C$7,('Growth-Model-3'!G157*EXP($AA$7)),0)","v":0},{"$f":"IF(A158<='S3-Short'!$C$7,$AD$6*EXP($AD$7*('S3-Short'!C$7-'Growth-Model-3'!A158)),0)","v":0},196.79440557341832,4.859121125269588E-2,0,13.580865810479755,0,{"$f":"M158/'S3-Short'!$C$17","v":0},{"$error":"#N/A"},{"$error":"#N/A"},{"$f":"_xlfn.XLOOKUP(B158,FeedTables!$C$17:$T$17,FeedTables!$C$31:$T$31,,-1)","v":{"$error":"#N/A"}},{"$f":"_xlfn.XLOOKUP(Q158,FeedPrice[Feed],FeedPrice[Price per kg],\"Unknown\",0)*O158","v":{"$error":"#N/A"}},{"$error":"#N/A"},{"$f":"_xlfn.XLOOKUP(O158,LabourFromFeed[Feed Quantity (kg)],LabourFromFeed[No. Labour],\"Out of range\",-1)","v":{"$error":"#N/A"}},{"$f":"T158*OperatingCosts!$C$9","v":{"$error":"#N/A"}},{"$error":"#N/A"}]
[157,{"$f":"IF(A159<='S3-Short'!$C$7, B158*EXP((LN((E158/100)+1))*1),)","v":0},{"$f":"_xlfn.XLOOKUP($B159,FeedTables!$C$42:$T$42,FeedTables!$C$44:$T$44,,-1)","v":{"$error":"#N/A"}},{"$f":"_xlfn.XLOOKUP($B159,FeedTables!$C$42:$T$42,FeedTables!$C$45:$T$45,,-1)","v":{"$error":"#N/A"}},{"$f":"_xlfn.XLOOKUP($B159,FeedTables!$C$42:$T$42,FeedTables!$C$46:$T$46,,-1)*_xlfn.XLOOKUP(N158,DensityMultiplier[Biomass kg/m3],DensityMultiplier[Multiplier],,-1)","v":{"$error":"#N/A"}},3853.2055944265799,{"$f":"IF(A159<='S3-Short'!$C$7,('Growth-Model-3'!G158*EXP($AA$7)),0)","v":0},{"$f":"IF(A159<='S3-Short'!$C$7,$AD$6*EXP($AD$7*('S3-Short'!C$7-'Growth-Model-3'!A159)),0)","v":0},196.79440557341832,4.859121125269588E-2,0,13.580865810479755,0,{"$f":"M159/'S3-Short'!$C$17","v":0},{"$error":"#N/A"},{"$error":"#N/A"},{"$f":"_xlfn.XLOOKUP(B159,FeedTables!$C$17:$T$17,FeedTables!$C$31:$T$31,,-1)","v":{"$error":"#N/A"}},{"$f":"_xlfn.XLOOKUP(Q159,FeedPrice[Feed],FeedPrice[Price per kg],\"Unknown\",0)*O159","v":{"$error":"#N/A"}},{"$error":"#N/A"},{"$f":"_xlfn.XLOOKUP(O159,LabourFromFeed[Feed Quantity (kg)],LabourFromFeed[No. Labour],\"Out of range\",-1)","v":{"$error":"#N/A"}},{"$f":"T159*OperatingCosts!$C$9","v":{"$error":"#N/A"}},{"$error":"#N/A"}]
[158,{"$f":"IF(A160<='S3-Short'!$C$7, B159*EXP((LN((E159/100)+1))*1),)","v":0},{"$f":"_xlfn.XLOOKUP($B160,FeedTables!$C$42:$T$42,FeedTables!$C$44:$T$44,,-1)","v":{"$error":"#N/A"}},{"$f":"_xlfn.XLOOKUP($B160,FeedTables!$C$42:$T$42,FeedTables!$C$45:$T$45,,-1)","v":{"$error":"#N/A"}},{"$f":"_xlfn.XLOOKUP($B160,FeedTables!$C$42:$T$42,FeedTables!$C$46:$T$46,,-1)*_xlfn.XLOOKUP(N159,DensityMultiplier[Biomass kg/m3],DensityMultiplier[Multiplier],,-1)","v":{"$error":"#N/A"}},3853.2055944265799,{"$f":"IF(A160<='S3-Short'!$C$7,('Growth-Model-3'!G159*EXP($AA$7)),0)","v":0},{"$f":"IF(A160<='S3-Short'!$C$7,$AD$6*EXP($AD$7*('S3-Short'!C$7-'Growth-Model-3'!A160)),0)","v":0},196.79440557341832,4.859121125269588E-2,0,13.580865810479755,0,{"$f":"M160/'S3-Short'!$C$17","v":0},{"$error":"#N/A"},{"$error":"#N/A"},{"$f":"_xlfn.XLOOKUP(B160,FeedTables!$C$17:$T$17,FeedTables!$C$31:$T$31,,-1)","v":{"$error":"#N/A"}},{"$f":"_xlfn.XLOOKUP(Q160,FeedPrice[Feed],FeedPrice[Price per kg],\"Unknown\",0)*O160","v":{"$error":"#N/A"}},{"$error":"#N/A"},{"$f":"_xlfn.XLOOKUP(O160,LabourFromFeed[Feed Quantity (kg)],LabourFromFeed[No. Labour],\"Out of range\",-1)","v":{"$error":"#N/A"}},{"$f":"T160*OperatingCosts!$C$9","v":{"$error":"#N/A"}},{"$error":"#N/A"}]
[159,{"$f":"IF(A161<='S3-Short'!$C$7, B160*EXP((LN((E160/100)+1))*1),)","v":0},{"$f":"_xlfn.XLOOKUP($B161,FeedTables!$C$42:$T$42,FeedTables!$C$44:$T$44,,-1)","v":{"$error":"#N/A"}},{"$f":"_xlfn.XLOOKUP($B161,FeedTables!$C$42:$T$42,FeedTables!$C$45:$T$45,,-1)","v":{"$error":"#N/A"}},{"$f":"_xlfn.XLOOKUP($B161,FeedTables!$C$42:$T$42,FeedTables!$C$46:$T$46,,-1)*_xlfn.XLOOKUP(N160,DensityMultiplier[Biomass kg/m3],DensityMultiplier[Multiplier],,-1)","v":{"$error":"#N/A"}},3853.2055944265799,{"$f":"IF(A161<='S3-Short'!$C$7,('Growth-Model-3'!G160*EXP($AA$7)),0)","v":0},{"$f":"IF(A161<='S3-Short'!$C$7,$AD$6*EXP($AD$7*('S3-Short'!C$7-'Growth-Model-3'!A161)),0)","v":0},196.79440557341832,4.859121125269588E-2,0,13.580865810479755,0,{"$f":"M161/'S3-Short'!$C$17","v":0},{"$error":"#N/A"},{"$error":"#N/A"},{"$f":"_xlfn.XLOOKUP(B161,FeedTables!$C$17:$T$17,FeedTables!$C$31:$T$31,,-1)","v":{"$error":"#N/A"}},{"$f":"_xlfn.XLOOKUP(Q161,FeedPrice[Feed],FeedPrice[Price per kg],\"Unknown\",0)*O161","v":{"$error":"#N/A"}},{"$error":"#N/A"},{"$f":"_xlfn.XLOOKUP(O161,LabourFromFeed[Feed Quantity (kg)],LabourFromFeed[No. Labour],\"Out of range\",-1)","v":{"$error":"#N/A"}},{"$f":"T161*OperatingCosts!$C$9","v":{"$error":"#N/A"}},{"$error":"#N/A"}]
[160,{"$f":"IF(A162<='S3-Short'!$C$7, B161*EXP((LN((E161/100)+1))*1),)","v":0},{"$f":"_xlfn.XLOOKUP($B162,FeedTables!$C$42:$T$42,FeedTables!$C$44:$T$44,,-1)","v":{"$error":"#N/A"}},{"$f":"_xlfn.XLOOKUP($B162,FeedTables!$C$42:$T$42,FeedTables!$C$45:$T$45,,-1)","v":{"$error":"#N/A"}},{"$f":"_xlfn.XLOOKUP($B162,FeedTables!$C$42:$T$42,FeedTables!$C$46:$T$46,,-1)*_xlfn.XLOOKUP(N161,DensityMultiplier[Biomass kg/m3],DensityMultiplier[Multiplier],,-1)","v":{"$error":"#N/A"}},3853.2055944265799,{"$f":"IF(A162<='S3-Short'!$C$7,('Growth-Model-3'!G161*EXP($AA$7)),0)","v":0},{"$f":"IF(A162<='S3-Short'!$C$7,$AD$6*EXP($AD$7*('S3-Short'!C$7-'Growth-Model-3'!A162)),0)","v":0},196.79440557341832,4.859121125269588E-2,0,13.580865810479755,0,{"$f":"M162/'S3-Short'!$C$17","v":0},{"$error":"#N/A"},{"$error":"#N/A"},{"$f":"_xlfn.XLOOKUP(B162,FeedTables!$C$17:$T$17,FeedTables!$C$31:$T$31,,-1)","v":{"$error":"#N/A"}},{"$f":"_xlfn.XLOOKUP(Q162,FeedPrice[Feed],FeedPrice[Price per kg],\"Unknown\",0)*O162","v":{"$error":"#N/A"}},{"$error":"#N/A"},{"$f":"_xlfn.XLOOKUP(O162,LabourFromFeed[Feed Quantity (kg)],LabourFromFeed[No. Labour],\"Out of range\",-1)","v":{"$error":"#N/A"}},{"$f":"T162*OperatingCosts!$C$9","v":{"$error":"#N/A"}},{"$error":"#N/A"}]
[161,{"$f":"IF(A163<='S3-Short'!$C$7, B162*EXP((LN((E162/100)+1))*1),)","v":0},{"$f":"_xlfn.XLOOKUP($B163,FeedTables!$C$42:$T$42,FeedTables!$C$44:$T$44,,-1)","v":{"$error":"#N/A"}},{"$f":"_xlfn.XLOOKUP($B163,FeedTables!$C$42:$T$42,FeedTables!$C$45:$T$45,,-1)","v":{"$error":"#N/A"}},{"$f":"_xlfn.XLOOKUP($B163,FeedTables!$C$42:$T$42,FeedTables!$C$46:$T$46,,-1)*_xlfn.XLOOKUP(N162,DensityMultiplier[Biomass kg/m3],DensityMultiplier[Multiplier],,-1)","v":{"$error":"#N/A"}},3853.2055944265799,{"$f":"IF(A163<='S3-Short'!$C$7,('Growth-Model-3'!G162*EXP($AA$7)),0)","v":0},{"$f":"IF(A163<='S3-Short'!$C$7,$AD$6*EXP($AD$7*('S3-Short'!C$7-'Growth-Model-3'!A163)),0)","v":0},196.79440557341832,4.859121125269588E-2,0,13.580865810479755,0,{"$f":"M163/'S3-Short'!$C$17","v":0},{"$error":"#N/A"},{"$error":"#N/A"},{"$f":"_xlfn.XLOOKUP(B163,FeedTables!$C$17:$T$17,FeedTables!$C$31:$T$31,,-1)","v":{"$error":"#N/A"}},{"$f":"_xlfn.XLOOKUP(Q163,FeedPrice[Feed],FeedPrice[Price per kg],\"Unknown\",0)*O163","v":{"$error":"#N/A"}},{"$error":"#N/A"},{"$f":"_xlfn.XLOOKUP(O163,LabourFromFeed[Feed Quantity (kg)],LabourFromFeed[No. Labour],\"Out of range\",-1)","v":{"$error":"#N/A"}},{"$f":"T163*OperatingCosts!$C$9","v":{"$error":"#N/A"}},{"$error":"#N/A"}]
[162,{"$f":"IF(A164<='S3-Short'!$C$7, B163*EXP((LN((E163/100)+1))*1),)","v":0},{"$f":"_xlfn.XLOOKUP($B164,FeedTables!$C$42:$T$42,FeedTables!$C$44:$T$44,,-1)","v":{"$error":"#N/A"}},{"$f":"_xlfn.XLOOKUP($B164,FeedTables!$C$42:$T$42,FeedTables!$C$45:$T$45,,-1)","v":{"$error":"#N/A"}},{"$f":"_xlfn.XLOOKUP($B164,FeedTables!$C$42:$T$42,FeedTables!$C$46:$T$46,,-1)*_xlfn.XLOOKUP(N163,DensityMultiplier[Biomass kg/m3],DensityMultiplier[Multiplier],,-1)","v":{"$error":"#N/A"}},3853.2055944265799,{"$f":"IF(A164<='S3-Short'!$C$7,('Growth-Model-3'!G163*EXP($AA$7)),0)","v":0},{"$f":"IF(A164<='S3-Short'!$C$7,$AD$6*EXP($AD$7*('S3-Short'!C$7-'Growth-Model-3'!A164)),0)","v":0},196.79440557341832,4.859121125269588E-2,0,13.580865810479755,0,{"$f":"M164/'S3-Short'!$C$17","v":0},{"$error":"#N/A"},{"$error":"#N/A"},{"$f":"_xlfn.XLOOKUP(B164,FeedTables!$C$17:$T$17,FeedTables!$C$31:$T$31,,-1)","v":{"$error":"#N/A"}},{"$f":"_xlfn.XLOOKUP(Q164,FeedPrice[Feed],FeedPrice[Price per kg],\"Unknown\",0)*O164","v":{"$error":"#N/A"}},{"$error":"#N/A"},{"$f":"_xlfn.XLOOKUP(O164,LabourFromFeed[Feed Quantity (kg)],LabourFromFeed[No. Labour],\"Out of range\",-1)","v":{"$error":"#N/A"}},{"$f":"T164*OperatingCosts!$C$9","v":{"$error":"#N/A"}},{"$error":"#N/A"}]
[163,{"$f":"IF(A165<='S3-Short'!$C$7, B164*EXP((LN((E164/100)+1))*1),)","v":0},{"$f":"_xlfn.XLOOKUP($B165,FeedTables!$C$42:$T$42,FeedTables!$C$44:$T$44,,-1)","v":{"$error":"#N/A"}},{"$f":"_xlfn.XLOOKUP($B165,FeedTables!$C$42:$T$42,FeedTables!$C$45:$T$45,,-1)","v":{"$error":"#N/A"}},{"$f":"_xlfn.XLOOKUP($B165,FeedTables!$C$42:$T$42,FeedTables!$C$46:$T$46,,-1)*_xlfn.XLOOKUP(N164,DensityMultiplier[Biomass kg/m3],DensityMultiplier[Multiplier],,-1)","v":{"$error":"#N/A"}},3853.2055944265799,{"$f":"IF(A165<='S3-Short'!$C$7,('Growth-Model-3'!G164*EXP($AA$7)),0)","v":0},{"$f":"IF(A165<='S3-Short'!$C$7,$AD$6*EXP($AD$7*('S3-Short'!C$7-'Growth-Model-3'!A165)),0)","v":0},196.79440557341832,4.859121125269588E-2,0,13.580865810479755,0,{"$f":"M165/'S3-Short'!$C$17","v":0},{"$error":"#N/A"},{"$error":"#N/A"},{"$f":"_xlfn.XLOOKUP(B165,FeedTables!$C$17:$T$17,FeedTables!$C$31:$T$31,,-1)","v":{"$error":"#N/A"}},{"$f":"_xlfn.XLOOKUP(Q165,FeedPrice[Feed],FeedPrice[Price per kg],\"Unknown\",0)*O165","v":{"$error":"#N/A"}},{"$error":"#N/A"},{"$f":"_xlfn.XLOOKUP(O165,LabourFromFeed[Feed Quantity (kg)],LabourFromFeed[No. Labour],\"Out of range\",-1)","v":{"$error":"#N/A"}},{"$f":"T165*OperatingCosts!$C$9","v":{"$error":"#N/A"}},{"$error":"#N/A"}]
[164,{"$f":"IF(A166<='S3-Short'!$C$7, B165*EXP((LN((E165/100)+1))*1),)","v":0},{"$f":"_xlfn.XLOOKUP($B166,FeedTables!$C$42:$T$42,FeedTables!$C$44:$T$44,,-1)","v":{"$error":"#N/A"}},{"$f":"_xlfn.XLOOKUP($B166,FeedTables!$C$42:$T$42,FeedTables!$C$45:$T$45,,-1)","v":{"$error":"#N/A"}},{"$f":"_xlfn.XLOOKUP($B166,FeedTables!$C$42:$T$42,FeedTables!$C$46:$T$46,,-1)*_xlfn.XLOOKUP(N165,DensityMultiplier[Biomass kg/m3],DensityMultiplier[Multiplier],,-1)","v":{"$error":"#N/A"}},3853.2055944265799,{"$f":"IF(A166<='S3-Short'!$C$7,('Growth-Model-3'!G165*EXP($AA$7)),0)","v":0},{"$f":"IF(A166<='S3-Short'!$C$7,$AD$6*EXP($AD$7*('S3-Short'!C$7-'Growth-Model-3'!A166)),0)","v":0},196.79440557341832,4.859121125269588E-2,0,13.580865810479755,0,{"$f":"M166/'S3-Short'!$C$17","v":0},{"$error":"#N/A"},{"$error":"#N/A"},{"$f":"_xlfn.XLOOKUP(B166,FeedTables!$C$17:$T$17,FeedTables!$C$31:$T$31,,-1)","v":{"$error":"#N/A"}},{"$f":"_xlfn.XLOOKUP(Q166,FeedPrice[Feed],FeedPrice[Price per kg],\"Unknown\",0)*O166","v":{"$error":"#N/A"}},{"$error":"#N/A"},{"$f":"_xlfn.XLOOKUP(O166,LabourFromFeed[Feed Quantity (kg)],LabourFromFeed[No. Labour],\"Out of range\",-1)","v":{"$error":"#N/A"}},{"$f":"T166*OperatingCosts!$C$9","v":{"$error":"#N/A"}},{"$error":"#N/A"}]
[165,{"$f":"IF(A167<='S3-Short'!$C$7, B166*EXP((LN((E166/100)+1))*1),)","v":0},{"$f":"_xlfn.XLOOKUP($B167,FeedTables!$C$42:$T$42,FeedTables!$C$44:$T$44,,-1)","v":{"$error":"#N/A"}},{"$f":"_xlfn.XLOOKUP($B167,FeedTables!$C$42:$T$42,FeedTables!$C$45:$T$45,,-1)","v":{"$error":"#N/A"}},{"$f":"_xlfn.XLOOKUP($B167,FeedTables!$C$42:$T$42,FeedTables!$C$46:$T$46,,-1)*_xlfn.XLOOKUP(N166,DensityMultiplier[Biomass kg/m3],DensityMultiplier[Multiplier],,-1)","v":{"$error":"#N/A"}},3853.2055944265799,{"$f":"IF(A167<='S3-Short'!$C$7,('Growth-Model-3'!G166*EXP($AA$7)),0)","v":0},{"$f":"IF(A167<='S3-Short'!$C$7,$AD$6*EXP($AD$7*('S3-Short'!C$7-'Growth-Model-3'!A167)),0)","v":0},196.79440557341832,4.859121125269588E-2,0,13.580865810479755,0,{"$f":"M167/'S3-Short'!$C$17","v":0},{"$error":"#N/A"},{"$error":"#N/A"},{"$f":"_xlfn.XLOOKUP(B167,FeedTables!$C$17:$T$17,FeedTables!$C$31:$T$31,,-1)","v":{"$error":"#N/A"}},{"$f":"_xlfn.XLOOKUP(Q167,FeedPrice[Feed],FeedPrice[Price per kg],\"Unknown\",0)*O167","v":{"$error":"#N/A"}},{"$error":"#N/A"},{"$f":"_xlfn.XLOOKUP(O167,LabourFromFeed[Feed Quantity (kg)],LabourFromFeed[No. Labour],\"Out of range\",-1)","v":{"$error":"#N/A"}},{"$f":"T167*OperatingCosts!$C$9","v":{"$error":"#N/A"}},{"$error":"#N/A"}]
[166,{"$f":"IF(A168<='S3-Short'!$C$7, B167*EXP((LN((E167/100)+1))*1),)","v":0},{"$f":"_xlfn.XLOOKUP($B168,FeedTables!$C$42:$T$42,FeedTables!$C$44:$T$44,,-1)","v":{"$error":"#N/A"}},{"$f":"_xlfn.XLOOKUP($B168,FeedTables!$C$42:$T$42,FeedTables!$C$45:$T$45,,-1)","v":{"$error":"#N/A"}},{"$f":"_xlfn.XLOOKUP($B168,FeedTables!$C$42:$T$42,FeedTables!$C$46:$T$46,,-1)*_xlfn.XLOOKUP(N167,DensityMultiplier[Biomass kg/m3],DensityMultiplier[Multiplier],,-1)","v":{"$error":"#N/A"}},3853.2055944265799,{"$f":"IF(A168<='S3-Short'!$C$7,('Growth-Model-3'!G167*EXP($AA$7)),0)","v":0},{"$f":"IF(A168<='S3-Short'!$C$7,$AD$6*EXP($AD$7*('S3-Short'!C$7-'Growth-Model-3'!A168)),0)","v":0},196.79440557341832,4.859121125269588E-2,0,13.580865810479755,0,{"$f":"M168/'S3-Short'!$C$17","v":0},{"$error":"#N/A"},{"$error":"#N/A"},{"$f":"_xlfn.XLOOKUP(B168,FeedTables!$C$17:$T$17,FeedTables!$C$31:$T$31,,-1)","v":{"$error":"#N/A"}},{"$f":"_xlfn.XLOOKUP(Q168,FeedPrice[Feed],FeedPrice[Price per kg],\"Unknown\",0)*O168","v":{"$error":"#N/A"}},{"$error":"#N/A"},{"$f":"_xlfn.XLOOKUP(O168,LabourFromFeed[Feed Quantity (kg)],LabourFromFeed[No. Labour],\"Out of range\",-1)","v":{"$error":"#N/A"}},{"$f":"T168*OperatingCosts!$C$9","v":{"$error":"#N/A"}},{"$error":"#N/A"}]
[167,{"$f":"IF(A169<='S3-Short'!$C$7, B168*EXP((LN((E168/100)+1))*1),)","v":0},{"$f":"_xlfn.XLOOKUP($B169,FeedTables!$C$42:$T$42,FeedTables!$C$44:$T$44,,-1)","v":{"$error":"#N/A"}},{"$f":"_xlfn.XLOOKUP($B169,FeedTables!$C$42:$T$42,FeedTables!$C$45:$T$45,,-1)","v":{"$error":"#N/A"}},{"$f":"_xlfn.XLOOKUP($B169,FeedTables!$C$42:$T$42,FeedTables!$C$46:$T$46,,-1)*_xlfn.XLOOKUP(N168,DensityMultiplier[Biomass kg/m3],DensityMultiplier[Multiplier],,-1)","v":{"$error":"#N/A"}},3853.2055944265799,{"$f":"IF(A169<='S3-Short'!$C$7,('Growth-Model-3'!G168*EXP($AA$7)),0)","v":0},{"$f":"IF(A169<='S3-Short'!$C$7,$AD$6*EXP($AD$7*('S3-Short'!C$7-'Growth-Model-3'!A169)),0)","v":0},196.79440557341832,4.859121125269588E-2,0,13.580865810479755,0,{"$f":"M169/'S3-Short'!$C$17","v":0},{"$error":"#N/A"},{"$error":"#N/A"},{"$f":"_xlfn.XLOOKUP(B169,FeedTables!$C$17:$T$17,FeedTables!$C$31:$T$31,,-1)","v":{"$error":"#N/A"}},{"$f":"_xlfn.XLOOKUP(Q169,FeedPrice[Feed],FeedPrice[Price per kg],\"Unknown\",0)*O169","v":{"$error":"#N/A"}},{"$error":"#N/A"},{"$f":"_xlfn.XLOOKUP(O169,LabourFromFeed[Feed Quantity (kg)],LabourFromFeed[No. Labour],\"Out of range\",-1)","v":{"$error":"#N/A"}},{"$f":"T169*OperatingCosts!$C$9","v":{"$error":"#N/A"}},{"$error":"#N/A"}]
[168,{"$f":"IF(A170<='S3-Short'!$C$7, B169*EXP((LN((E169/100)+1))*1),)","v":0},{"$f":"_xlfn.XLOOKUP($B170,FeedTables!$C$42:$T$42,FeedTables!$C$44:$T$44,,-1)","v":{"$error":"#N/A"}},{"$f":"_xlfn.XLOOKUP($B170,FeedTables!$C$42:$T$42,FeedTables!$C$45:$T$45,,-1)","v":{"$error":"#N/A"}},{"$f":"_xlfn.XLOOKUP($B170,FeedTables!$C$42:$T$42,FeedTables!$C$46:$T$46,,-1)*_xlfn.XLOOKUP(N169,DensityMultiplier[Biomass kg/m3],DensityMultiplier[Multiplier],,-1)","v":{"$error":"#N/A"}},3853.2055944265799,{"$f":"IF(A170<='S3-Short'!$C$7,('Growth-Model-3'!G169*EXP($AA$7)),0)","v":0},{"$f":"IF(A170<='S3-Short'!$C$7,$AD$6*EXP($AD$7*('S3-Short'!C$7-'Growth-Model-3'!A170)),0)","v":0},196.79440557341832,4.859121125269588E-2,0,13.580865810479755,0,{"$f":"M170/'S3-Short'!$C$17","v":0},{"$error":"#N/A"},{"$error":"#N/A"},{"$f":"_xlfn.XLOOKUP(B170,FeedTables!$C$17:$T$17,FeedTables!$C$31:$T$31,,-1)","v":{"$error":"#N/A"}},{"$f":"_xlfn.XLOOKUP(Q170,FeedPrice[Feed],FeedPrice[Price per kg],\"Unknown\",0)*O170","v":{"$error":"#N/A"}},{"$error":"#N/A"},{"$f":"_xlfn.XLOOKUP(O170,LabourFromFeed[Feed Quantity (kg)],LabourFromFeed[No. Labour],\"Out of range\",-1)","v":{"$error":"#N/A"}},{"$f":"T170*OperatingCosts!$C$9","v":{"$error":"#N/A"}},{"$error":"#N/A"}]
[169,{"$f":"IF(A171<='S3-Short'!$C$7, B170*EXP((LN((E170/100)+1))*1),)","v":0},{"$f":"_xlfn.XLOOKUP($B171,FeedTables!$C$42:$T$42,FeedTables!$C$44:$T$44,,-1)","v":{"$error":"#N/A"}},{"$f":"_xlfn.XLOOKUP($B171,FeedTables!$C$42:$T$42,FeedTables!$C$45:$T$45,,-1)","v":{"$error":"#N/A"}},{"$f":"_xlfn.XLOOKUP($B171,FeedTables!$C$42:$T$42,FeedTables!$C$46:$T$46,,-1)*_xlfn.XLOOKUP(N170,DensityMultiplier[Biomass kg/m3],DensityMultiplier[Multiplier],,-1)","v":{"$error":"#N/A"}},3853.2055944265799,{"$f":"IF(A171<='S3-Short'!$C$7,('Growth-Model-3'!G170*EXP($AA$7)),0)","v":0},{"$f":"IF(A171<='S3-Short'!$C$7,$AD$6*EXP($AD$7*('S3-Short'!C$7-'Growth-Model-3'!A171)),0)","v":0},196.79440557341832,4.859121125269588E-2,0,13.580865810479755,0,{"$f":"M171/'S3-Short'!$C$17","v":0},{"$error":"#N/A"},{"$error":"#N/A"},{"$f":"_xlfn.XLOOKUP(B171,FeedTables!$C$17:$T$17,FeedTables!$C$31:$T$31,,-1)","v":{"$error":"#N/A"}},{"$f":"_xlfn.XLOOKUP(Q171,FeedPrice[Feed],FeedPrice[Price per kg],\"Unknown\",0)*O171","v":{"$error":"#N/A"}},{"$error":"#N/A"},{"$f":"_xlfn.XLOOKUP(O171,LabourFromFeed[Feed Quantity (kg)],LabourFromFeed[No. Labour],\"Out of range\",-1)","v":{"$error":"#N/A"}},{"$f":"T171*OperatingCosts!$C$9","v":{"$error":"#N/A"}},{"$error":"#N/A"}]
[170,{"$f":"IF(A172<='S3-Short'!$C$7, B171*EXP((LN((E171/100)+1))*1),)","v":0},{"$f":"_xlfn.XLOOKUP($B172,FeedTables!$C$42:$T$42,FeedTables!$C$44:$T$44,,-1)","v":{"$error":"#N/A"}},{"$f":"_xlfn.XLOOKUP($B172,FeedTables!$C$42:$T$42,FeedTables!$C$45:$T$45,,-1)","v":{"$error":"#N/A"}},{"$f":"_xlfn.XLOOKUP($B172,FeedTables!$C$42:$T$42,FeedTables!$C$46:$T$46,,-1)*_xlfn.XLOOKUP(N171,DensityMultiplier[Biomass kg/m3],DensityMultiplier[Multiplier],,-1)","v":{"$error":"#N/A"}},3853.2055944265799,{"$f":"IF(A172<='S3-Short'!$C$7,('Growth-Model-3'!G171*EXP($AA$7)),0)","v":0},{"$f":"IF(A172<='S3-Short'!$C$7,$AD$6*EXP($AD$7*('S3-Short'!C$7-'Growth-Model-3'!A172)),0)","v":0},196.79440557341832,4.859121125269588E-2,0,13.580865810479755,0,{"$f":"M172/'S3-Short'!$C$17","v":0},{"$error":"#N/A"},{"$error":"#N/A"},{"$f":"_xlfn.XLOOKUP(B172,FeedTables!$C$17:$T$17,FeedTables!$C$31:$T$31,,-1)","v":{"$error":"#N/A"}},{"$f":"_xlfn.XLOOKUP(Q172,FeedPrice[Feed],FeedPrice[Price per kg],\"Unknown\",0)*O172","v":{"$error":"#N/A"}},{"$error":"#N/A"},{"$f":"_xlfn.XLOOKUP(O172,LabourFromFeed[Feed Quantity (kg)],LabourFromFeed[No. Labour],\"Out of range\",-1)","v":{"$error":"#N/A"}},{"$f":"T172*OperatingCosts!$C$9","v":{"$error":"#N/A"}},{"$error":"#N/A"}]
[171,{"$f":"IF(A173<='S3-Short'!$C$7, B172*EXP((LN((E172/100)+1))*1),)","v":0},{"$f":"_xlfn.XLOOKUP($B173,FeedTables!$C$42:$T$42,FeedTables!$C$44:$T$44,,-1)","v":{"$error":"#N/A"}},{"$f":"_xlfn.XLOOKUP($B173,FeedTables!$C$42:$T$42,FeedTables!$C$45:$T$45,,-1)","v":{"$error":"#N/A"}},{"$f":"_xlfn.XLOOKUP($B173,FeedTables!$C$42:$T$42,FeedTables!$C$46:$T$46,,-1)*_xlfn.XLOOKUP(N172,DensityMultiplier[Biomass kg/m3],DensityMultiplier[Multiplier],,-1)","v":{"$error":"#N/A"}},3853.2055944265799,{"$f":"IF(A173<='S3-Short'!$C$7,('Growth-Model-3'!G172*EXP($AA$7)),0)","v":0},{"$f":"IF(A173<='S3-Short'!$C$7,$AD$6*EXP($AD$7*('S3-Short'!C$7-'Growth-Model-3'!A173)),0)","v":0},196.79440557341832,4.859121125269588E-2,0,13.580865810479755,0,{"$f":"M173/'S3-Short'!$C$17","v":0},{"$error":"#N/A"},{"$error":"#N/A"},{"$f":"_xlfn.XLOOKUP(B173,FeedTables!$C$17:$T$17,FeedTables!$C$31:$T$31,,-1)","v":{"$error":"#N/A"}},{"$f":"_xlfn.XLOOKUP(Q173,FeedPrice[Feed],FeedPrice[Price per kg],\"Unknown\",0)*O173","v":{"$error":"#N/A"}},{"$error":"#N/A"},{"$f":"_xlfn.XLOOKUP(O173,LabourFromFeed[Feed Quantity (kg)],LabourFromFeed[No. Labour],\"Out of range\",-1)","v":{"$error":"#N/A"}},{"$f":"T173*OperatingCosts!$C$9","v":{"$error":"#N/A"}},{"$error":"#N/A"}]
[172,{"$f":"IF(A174<='S3-Short'!$C$7, B173*EXP((LN((E173/100)+1))*1),)","v":0},{"$f":"_xlfn.XLOOKUP($B174,FeedTables!$C$42:$T$42,FeedTables!$C$44:$T$44,,-1)","v":{"$error":"#N/A"}},{"$f":"_xlfn.XLOOKUP($B174,FeedTables!$C$42:$T$42,FeedTables!$C$45:$T$45,,-1)","v":{"$error":"#N/A"}},{"$f":"_xlfn.XLOOKUP($B174,FeedTables!$C$42:$T$42,FeedTables!$C$46:$T$46,,-1)*_xlfn.XLOOKUP(N173,DensityMultiplier[Biomass kg/m3],DensityMultiplier[Multiplier],,-1)","v":{"$error":"#N/A"}},3853.2055944265799,{"$f":"IF(A174<='S3-Short'!$C$7,('Growth-Model-3'!G173*EXP($AA$7)),0)","v":0},{"$f":"IF(A174<='S3-Short'!$C$7,$AD$6*EXP($AD$7*('S3-Short'!C$7-'Growth-Model-3'!A174)),0)","v":0},196.79440557341832,4.859121125269588E-2,0,13.580865810479755,0,{"$f":"M174/'S3-Short'!$C$17","v":0},{"$error":"#N/A"},{"$error":"#N/A"},{"$f":"_xlfn.XLOOKUP(B174,FeedTables!$C$17:$T$17,FeedTables!$C$31:$T$31,,-1)","v":{"$error":"#N/A"}},{"$f":"_xlfn.XLOOKUP(Q174,FeedPrice[Feed],FeedPrice[Price per kg],\"Unknown\",0)*O174","v":{"$error":"#N/A"}},{"$error":"#N/A"},{"$f":"_xlfn.XLOOKUP(O174,LabourFromFeed[Feed Quantity (kg)],LabourFromFeed[No. Labour],\"Out of range\",-1)","v":{"$error":"#N/A"}},{"$f":"T174*OperatingCosts!$C$9","v":{"$error":"#N/A"}},{"$error":"#N/A"}]
[173,{"$f":"IF(A175<='S3-Short'!$C$7, B174*EXP((LN((E174/100)+1))*1),)","v":0},{"$f":"_xlfn.XLOOKUP($B175,FeedTables!$C$42:$T$42,FeedTables!$C$44:$T$44,,-1)","v":{"$error":"#N/A"}},{"$f":"_xlfn.XLOOKUP($B175,FeedTables!$C$42:$T$42,FeedTables!$C$45:$T$45,,-1)","v":{"$error":"#N/A"}},{"$f":"_xlfn.XLOOKUP($B175,FeedTables!$C$42:$T$42,FeedTables!$C$46:$T$46,,-1)*_xlfn.XLOOKUP(N174,DensityMultiplier[Biomass kg/m3],DensityMultiplier[Multiplier],,-1)","v":{"$error":"#N/A"}},3853.2055944265799,{"$f":"IF(A175<='S3-Short'!$C$7,('Growth-Model-3'!G174*EXP($AA$7)),0)","v":0},{"$f":"IF(A175<='S3-Short'!$C$7,$AD$6*EXP($AD$7*('S3-Short'!C$7-'Growth-Model-3'!A175)),0)","v":0},196.79440557341832,4.859121125269588E-2,0,13.580865810479755,0,{"$f":"M175/'S3-Short'!$C$17","v":0},{"$error":"#N/A"},{"$error":"#N/A"},{"$f":"_xlfn.XLOOKUP(B175,FeedTables!$C$17:$T$17,FeedTables!$C$31:$T$31,,-1)","v":{"$error":"#N/A"}},{"$f":"_xlfn.XLOOKUP(Q175,FeedPrice[Feed],FeedPrice[Price per kg],\"Unknown\",0)*O175","v":{"$error":"#N/A"}},{"$error":"#N/A"},{"$f":"_xlfn.XLOOKUP(O175,LabourFromFeed[Feed Quantity (kg)],LabourFromFeed[No. Labour],\"Out of range\",-1)","v":{"$error":"#N/A"}},{"$f":"T175*OperatingCosts!$C$9","v":{"$error":"#N/A"}},{"$error":"#N/A"}]
[174,{"$f":"IF(A176<='S3-Short'!$C$7, B175*EXP((LN((E175/100)+1))*1),)","v":0},{"$f":"_xlfn.XLOOKUP($B176,FeedTables!$C$42:$T$42,FeedTables!$C$44:$T$44,,-1)","v":{"$error":"#N/A"}},{"$f":"_xlfn.XLOOKUP($B176,FeedTables!$C$42:$T$42,FeedTables!$C$45:$T$45,,-1)","v":{"$error":"#N/A"}},{"$f":"_xlfn.XLOOKUP($B176,FeedTables!$C$42:$T$42,FeedTables!$C$46:$T$46,,-1)*_xlfn.XLOOKUP(N175,DensityMultiplier[Biomass kg/m3],DensityMultiplier[Multiplier],,-1)","v":{"$error":"#N/A"}},3853.2055944265799,{"$f":"IF(A176<='S3-Short'!$C$7,('Growth-Model-3'!G175*EXP($AA$7)),0)","v":0},{"$f":"IF(A176<='S3-Short'!$C$7,$AD$6*EXP($AD$7*('S3-Short'!C$7-'Growth-Model-3'!A176)),0)","v":0},196.79440557341832,4.859121125269588E-2,0,13.580865810479755,0,{"$f":"M176/'S3-Short'!$C$17","v":0},{"$error":"#N/A"},{"$error":"#N/A"},{"$f":"_xlfn.XLOOKUP(B176,FeedTables!$C$17:$T$17,FeedTables!$C$31:$T$31,,-1)","v":{"$error":"#N/A"}},{"$f":"_xlfn.XLOOKUP(Q176,FeedPrice[Feed],FeedPrice[Price per kg],\"Unknown\",0)*O176","v":{"$error":"#N/A"}},{"$error":"#N/A"},{"$f":"_xlfn.XLOOKUP(O176,LabourFromFeed[Feed Quantity (kg)],LabourFromFeed[No. Labour],\"Out of range\",-1)","v":{"$error":"#N/A"}},{"$f":"T176*OperatingCosts!$C$9","v":{"$error":"#N/A"}},{"$error":"#N/A"}]
[175,{"$f":"IF(A177<='S3-Short'!$C$7, B176*EXP((LN((E176/100)+1))*1),)","v":0},{"$f":"_xlfn.XLOOKUP($B177,FeedTables!$C$42:$T$42,FeedTables!$C$44:$T$44,,-1)","v":{"$error":"#N/A"}},{"$f":"_xlfn.XLOOKUP($B177,FeedTables!$C$42:$T$42,FeedTables!$C$45:$T$45,,-1)","v":{"$error":"#N/A"}},{"$f":"_xlfn.XLOOKUP($B177,FeedTables!$C$42:$T$42,FeedTables!$C$46:$T$46,,-1)*_xlfn.XLOOKUP(N176,DensityMultiplier[Biomass kg/m3],DensityMultiplier[Multiplier],,-1)","v":{"$error":"#N/A"}},3853.2055944265799,{"$f":"IF(A177<='S3-Short'!$C$7,('Growth-Model-3'!G176*EXP($AA$7)),0)","v":0},{"$f":"IF(A177<='S3-Short'!$C$7,$AD$6*EXP($AD$7*('S3-Short'!C$7-'Growth-Model-3'!A177)),0)","v":0},196.79440557341832,4.859121125269588E-2,0,13.580865810479755,0,{"$f":"M177/'S3-Short'!$C$17","v":0},{"$error":"#N/A"},{"$error":"#N/A"},{"$f":"_xlfn.XLOOKUP(B177,FeedTables!$C$17:$T$17,FeedTables!$C$31:$T$31,,-1)","v":{"$error":"#N/A"}},{"$f":"_xlfn.XLOOKUP(Q177,FeedPrice[Feed],FeedPrice[Price per kg],\"Unknown\",0)*O177","v":{"$error":"#N/A"}},{"$error":"#N/A"},{"$f":"_xlfn.XLOOKUP(O177,LabourFromFeed[Feed Quantity (kg)],LabourFromFeed[No. Labour],\"Out of range\",-1)","v":{"$error":"#N/A"}},{"$f":"T177*OperatingCosts!$C$9","v":{"$error":"#N/A"}},{"$error":"#N/A"}]
[176,{"$f":"IF(A178<='S3-Short'!$C$7, B177*EXP((LN((E177/100)+1))*1),)","v":0},{"$f":"_xlfn.XLOOKUP($B178,FeedTables!$C$42:$T$42,FeedTables!$C$44:$T$44,,-1)","v":{"$error":"#N/A"}},{"$f":"_xlfn.XLOOKUP($B178,FeedTables!$C$42:$T$42,FeedTables!$C$45:$T$45,,-1)","v":{"$error":"#N/A"}},{"$f":"_xlfn.XLOOKUP($B178,FeedTables!$C$42:$T$42,FeedTables!$C$46:$T$46,,-1)*_xlfn.XLOOKUP(N177,DensityMultiplier[Biomass kg/m3],DensityMultiplier[Multiplier],,-1)","v":{"$error":"#N/A"}},3853.2055944265799,{"$f":"IF(A178<='S3-Short'!$C$7,('Growth-Model-3'!G177*EXP($AA$7)),0)","v":0},{"$f":"IF(A178<='S3-Short'!$C$7,$AD$6*EXP($AD$7*('S3-Short'!C$7-'Growth-Model-3'!A178)),0)","v":0},196.79440557341832,4.859121125269588E-2,0,13.580865810479755,0,{"$f":"M178/'S3-Short'!$C$17","v":0},{"$error":"#N/A"},{"$error":"#N/A"},{"$f":"_xlfn.XLOOKUP(B178,FeedTables!$C$17:$T$17,FeedTables!$C$31:$T$31,,-1)","v":{"$error":"#N/A"}},{"$f":"_xlfn.XLOOKUP(Q178,FeedPrice[Feed],FeedPrice[Price per kg],\"Unknown\",0)*O178","v":{"$error":"#N/A"}},{"$error":"#N/A"},{"$f":"_xlfn.XLOOKUP(O178,LabourFromFeed[Feed Quantity (kg)],LabourFromFeed[No. Labour],\"Out of range\",-1)","v":{"$error":"#N/A"}},{"$f":"T178*OperatingCosts!$C$9","v":{"$error":"#N/A"}},{"$error":"#N/A"}]
[177,{"$f":"IF(A179<='S3-Short'!$C$7, B178*EXP((LN((E178/100)+1))*1),)","v":0},{"$f":"_xlfn.XLOOKUP($B179,FeedTables!$C$42:$T$42,FeedTables!$C$44:$T$44,,-1)","v":{"$error":"#N/A"}},{"$f":"_xlfn.XLOOKUP($B179,FeedTables!$C$42:$T$42,FeedTables!$C$45:$T$45,,-1)","v":{"$error":"#N/A"}},{"$f":"_xlfn.XLOOKUP($B179,FeedTables!$C$42:$T$42,FeedTables!$C$46:$T$46,,-1)*_xlfn.XLOOKUP(N178,DensityMultiplier[Biomass kg/m3],DensityMultiplier[Multiplier],,-1)","v":{"$error":"#N/A"}},3853.2055944265799,{"$f":"IF(A179<='S3-Short'!$C$7,('Growth-Model-3'!G178*EXP($AA$7)),0)","v":0},{"$f":"IF(A179<='S3-Short'!$C$7,$AD$6*EXP($AD$7*('S3-Short'!C$7-'Growth-Model-3'!A179)),0)","v":0},196.79440557341832,4.859121125269588E-2,0,13.580865810479755,0,{"$f":"M179/'S3-Short'!$C$17","v":0},{"$error":"#N/A"},{"$error":"#N/A"},{"$f":"_xlfn.XLOOKUP(B179,FeedTables!$C$17:$T$17,FeedTables!$C$31:$T$31,,-1)","v":{"$error":"#N/A"}},{"$f":"_xlfn.XLOOKUP(Q179,FeedPrice[Feed],FeedPrice[Price per kg],\"Unknown\",0)*O179","v":{"$error":"#N/A"}},{"$error":"#N/A"},{"$f":"_xlfn.XLOOKUP(O179,LabourFromFeed[Feed Quantity (kg)],LabourFromFeed[No. Labour],\"Out of range\",-1)","v":{"$error":"#N/A"}},{"$f":"T179*OperatingCosts!$C$9","v":{"$error":"#N/A"}},{"$error":"#N/A"}]
[178,{"$f":"IF(A180<='S3-Short'!$C$7, B179*EXP((LN((E179/100)+1))*1),)","v":0},{"$f":"_xlfn.XLOOKUP($B180,FeedTables!$C$42:$T$42,FeedTables!$C$44:$T$44,,-1)","v":{"$error":"#N/A"}},{"$f":"_xlfn.XLOOKUP($B180,FeedTables!$C$42:$T$42,FeedTables!$C$45:$T$45,,-1)","v":{"$error":"#N/A"}},{"$f":"_xlfn.XLOOKUP($B180,FeedTables!$C$42:$T$42,FeedTables!$C$46:$T$46,,-1)*_xlfn.XLOOKUP(N179,DensityMultiplier[Biomass kg/m3],DensityMultiplier[Multiplier],,-1)","v":{"$error":"#N/A"}},3853.2055944265799,{"$f":"IF(A180<='S3-Short'!$C$7,('Growth-Model-3'!G179*EXP($AA$7)),0)","v":0},{"$f":"IF(A180<='S3-Short'!$C$7,$AD$6*EXP($AD$7*('S3-Short'!C$7-'Growth-Model-3'!A180)),0)","v":0},196.79440557341832,4.859121125269588E-2,0,13.580865810479755,0,{"$f":"M180/'S3-Short'!$C$17","v":0},{"$error":"#N/A"},{"$error":"#N/A"},{"$f":"_xlfn.XLOOKUP(B180,FeedTables!$C$17:$T$17,FeedTables!$C$31:$T$31,,-1)","v":{"$error":"#N/A"}},{"$f":"_xlfn.XLOOKUP(Q180,FeedPrice[Feed],FeedPrice[Price per kg],\"Unknown\",0)*O180","v":{"$error":"#N/A"}},{"$error":"#N/A"},{"$f":"_xlfn.XLOOKUP(O180,LabourFromFeed[Feed Quantity (kg)],LabourFromFeed[No. Labour],\"Out of range\",-1)","v":{"$error":"#N/A"}},{"$f":"T180*OperatingCosts!$C$9","v":{"$error":"#N/A"}},{"$error":"#N/A"}]
[179,{"$f":"IF(A181<='S3-Short'!$C$7, B180*EXP((LN((E180/100)+1))*1),)","v":0},{"$f":"_xlfn.XLOOKUP($B181,FeedTables!$C$42:$T$42,FeedTables!$C$44:$T$44,,-1)","v":{"$error":"#N/A"}},{"$f":"_xlfn.XLOOKUP($B181,FeedTables!$C$42:$T$42,FeedTables!$C$45:$T$45,,-1)","v":{"$error":"#N/A"}},{"$f":"_xlfn.XLOOKUP($B181,FeedTables!$C$42:$T$42,FeedTables!$C$46:$T$46,,-1)*_xlfn.XLOOKUP(N180,DensityMultiplier[Biomass kg/m3],DensityMultiplier[Multiplier],,-1)","v":{"$error":"#N/A"}},3853.2055944265799,{"$f":"IF(A181<='S3-Short'!$C$7,('Growth-Model-3'!G180*EXP($AA$7)),0)","v":0},{"$f":"IF(A181<='S3-Short'!$C$7,$AD$6*EXP($AD$7*('S3-Short'!C$7-'Growth-Model-3'!A181)),0)","v":0},196.79440557341832,4.859121125269588E-2,0,13.580865810479755,0,{"$f":"M181/'S3-Short'!$C$17","v":0},{"$error":"#N/A"},{"$error":"#N/A"},{"$f":"_xlfn.XLOOKUP(B181,FeedTables!$C$17:$T$17,FeedTables!$C$31:$T$31,,-1)","v":{"$error":"#N/A"}},{"$f":"_xlfn.XLOOKUP(Q181,FeedPrice[Feed],FeedPrice[Price per kg],\"Unknown\",0)*O181","v":{"$error":"#N/A"}},{"$error":"#N/A"},{"$f":"_xlfn.XLOOKUP(O181,LabourFromFeed[Feed Quantity (kg)],LabourFromFeed[No. Labour],\"Out of range\",-1)","v":{"$error":"#N/A"}},{"$f":"T181*OperatingCosts!$C$9","v":{"$error":"#N/A"}},{"$error":"#N/A"}]
[180,{"$f":"IF(A182<='S3-Short'!$C$7, B181*EXP((LN((E181/100)+1))*1),)","v":0},{"$f":"_xlfn.XLOOKUP($B182,FeedTables!$C$42:$T$42,FeedTables!$C$44:$T$44,,-1)","v":{"$error":"#N/A"}},{"$f":"_xlfn.XLOOKUP($B182,FeedTables!$C$42:$T$42,FeedTables!$C$45:$T$45,,-1)","v":{"$error":"#N/A"}},{"$f":"_xlfn.XLOOKUP($B182,FeedTables!$C$42:$T$42,FeedTables!$C$46:$T$46,,-1)*_xlfn.XLOOKUP(N181,DensityMultiplier[Biomass kg/m3],DensityMultiplier[Multiplier],,-1)","v":{"$error":"#N/A"}},3853.2055944265799,{"$f":"IF(A182<='S3-Short'!$C$7,('Growth-Model-3'!G181*EXP($AA$7)),0)","v":0},{"$f":"IF(A182<='S3-Short'!$C$7,$AD$6*EXP($AD$7*('S3-Short'!C$7-'Growth-Model-3'!A182)),0)","v":0},196.79440557341832,4.859121125269588E-2,0,13.580865810479755,0,{"$f":"M182/'S3-Short'!$C$17","v":0},{"$error":"#N/A"},{"$error":"#N/A"},{"$f":"_xlfn.XLOOKUP(B182,FeedTables!$C$17:$T$17,FeedTables!$C$31:$T$31,,-1)","v":{"$error":"#N/A"}},{"$f":"_xlfn.XLOOKUP(Q182,FeedPrice[Feed],FeedPrice[Price per kg],\"Unknown\",0)*O182","v":{"$error":"#N/A"}},{"$error":"#N/A"},{"$f":"_xlfn.XLOOKUP(O182,LabourFromFeed[Feed Quantity (kg)],LabourFromFeed[No. Labour],\"Out of range\",-1)","v":{"$error":"#N/A"}},{"$f":"T182*OperatingCosts!$C$9","v":{"$error":"#N/A"}},{"$error":"#N/A"}]
[181,{"$f":"IF(A183<='S3-Short'!$C$7, B182*EXP((LN((E182/100)+1))*1),)","v":0},{"$f":"_xlfn.XLOOKUP($B183,FeedTables!$C$42:$T$42,FeedTables!$C$44:$T$44,,-1)","v":{"$error":"#N/A"}},{"$f":"_xlfn.XLOOKUP($B183,FeedTables!$C$42:$T$42,FeedTables!$C$45:$T$45,,-1)","v":{"$error":"#N/A"}},{"$f":"_xlfn.XLOOKUP($B183,FeedTables!$C$42:$T$42,FeedTables!$C$46:$T$46,,-1)*_xlfn.XLOOKUP(N182,DensityMultiplier[Biomass kg/m3],DensityMultiplier[Multiplier],,-1)","v":{"$error":"#N/A"}},3853.2055944265799,{"$f":"IF(A183<='S3-Short'!$C$7,('Growth-Model-3'!G182*EXP($AA$7)),0)","v":0},{"$f":"IF(A183<='S3-Short'!$C$7,$AD$6*EXP($AD$7*('S3-Short'!C$7-'Growth-Model-3'!A183)),0)","v":0},196.79440557341832,4.859121125269588E-2,0,13.580865810479755,0,{"$f":"M183/'S3-Short'!$C$17","v":0},{"$error":"#N/A"},{"$error":"#N/A"},{"$f":"_xlfn.XLOOKUP(B183,FeedTables!$C$17:$T$17,FeedTables!$C$31:$T$31,,-1)","v":{"$error":"#N/A"}},{"$f":"_xlfn.XLOOKUP(Q183,FeedPrice[Feed],FeedPrice[Price per kg],\"Unknown\",0)*O183","v":{"$error":"#N/A"}},{"$error":"#N/A"},{"$f":"_xlfn.XLOOKUP(O183,LabourFromFeed[Feed Quantity (kg)],LabourFromFeed[No. Labour],\"Out of range\",-1)","v":{"$error":"#N/A"}},{"$f":"T183*OperatingCosts!$C$9","v":{"$error":"#N/A"}},{"$error":"#N/A"}]
[182,{"$f":"IF(A184<='S3-Short'!$C$7, B183*EXP((LN((E183/100)+1))*1),)","v":0},{"$f":"_xlfn.XLOOKUP($B184,FeedTables!$C$42:$T$42,FeedTables!$C$44:$T$44,,-1)","v":{"$error":"#N/A"}},{"$f":"_xlfn.XLOOKUP($B184,FeedTables!$C$42:$T$42,FeedTables!$C$45:$T$45,,-1)","v":{"$error":"#N/A"}},{"$f":"_xlfn.XLOOKUP($B184,FeedTables!$C$42:$T$42,FeedTables!$C$46:$T$46,,-1)*_xlfn.XLOOKUP(N183,DensityMultiplier[Biomass kg/m3],DensityMultiplier[Multiplier],,-1)","v":{"$error":"#N/A"}},3853.2055944265799,{"$f":"IF(A184<='S3-Short'!$C$7,('Growth-Model-3'!G183*EXP($AA$7)),0)","v":0},{"$f":"IF(A184<='S3-Short'!$C$7,$AD$6*EXP($AD$7*('S3-Short'!C$7-'Growth-Model-3'!A184)),0)","v":0},196.79440557341832,4.859121125269588E-2,0,13.580865810479755,0,{"$f":"M184/'S3-Short'!$C$17","v":0},{"$error":"#N/A"},{"$error":"#N/A"},{"$f":"_xlfn.XLOOKUP(B184,FeedTables!$C$17:$T$17,FeedTables!$C$31:$T$31,,-1)","v":{"$error":"#N/A"}},{"$f":"_xlfn.XLOOKUP(Q184,FeedPrice[Feed],FeedPrice[Price per kg],\"Unknown\",0)*O184","v":{"$error":"#N/A"}},{"$error":"#N/A"},{"$f":"_xlfn.XLOOKUP(O184,LabourFromFeed[Feed Quantity (kg)],LabourFromFeed[No. Labour],\"Out of range\",-1)","v":{"$error":"#N/A"}},{"$f":"T184*OperatingCosts!$C$9","v":{"$error":"#N/A"}},{"$error":"#N/A"}]
[183,{"$f":"IF(A185<='S3-Short'!$C$7, B184*EXP((LN((E184/100)+1))*1),)","v":0},{"$f":"_xlfn.XLOOKUP($B185,FeedTables!$C$42:$T$42,FeedTables!$C$44:$T$44,,-1)","v":{"$error":"#N/A"}},{"$f":"_xlfn.XLOOKUP($B185,FeedTables!$C$42:$T$42,FeedTables!$C$45:$T$45,,-1)","v":{"$error":"#N/A"}},{"$f":"_xlfn.XLOOKUP($B185,FeedTables!$C$42:$T$42,FeedTables!$C$46:$T$46,,-1)*_xlfn.XLOOKUP(N184,DensityMultiplier[Biomass kg/m3],DensityMultiplier[Multiplier],,-1)","v":{"$error":"#N/A"}},3853.2055944265799,{"$f":"IF(A185<='S3-Short'!$C$7,('Growth-Model-3'!G184*EXP($AA$7)),0)","v":0},{"$f":"IF(A185<='S3-Short'!$C$7,$AD$6*EXP($AD$7*('S3-Short'!C$7-'Growth-Model-3'!A185)),0)","v":0},196.79440557341832,4.859121125269588E-2,0,13.580865810479755,0,{"$f":"M185/'S3-Short'!$C$17","v":0},{"$error":"#N/A"},{"$error":"#N/A"},{"$f":"_xlfn.XLOOKUP(B185,FeedTables!$C$17:$T$17,FeedTables!$C$31:$T$31,,-1)","v":{"$error":"#N/A"}},{"$f":"_xlfn.XLOOKUP(Q185,FeedPrice[Feed],FeedPrice[Price per kg],\"Unknown\",0)*O185","v":{"$error":"#N/A"}},{"$error":"#N/A"},{"$f":"_xlfn.XLOOKUP(O185,LabourFromFeed[Feed Quantity (kg)],LabourFromFeed[No. Labour],\"Out of range\",-1)","v":{"$error":"#N/A"}},{"$f":"T185*OperatingCosts!$C$9","v":{"$error":"#N/A"}},{"$error":"#N/A"}]
[184,{"$f":"IF(A186<='S3-Short'!$C$7, B185*EXP((LN((E185/100)+1))*1),)","v":0},{"$f":"_xlfn.XLOOKUP($B186,FeedTables!$C$42:$T$42,FeedTables!$C$44:$T$44,,-1)","v":{"$error":"#N/A"}},{"$f":"_xlfn.XLOOKUP($B186,FeedTables!$C$42:$T$42,FeedTables!$C$45:$T$45,,-1)","v":{"$error":"#N/A"}},{"$f":"_xlfn.XLOOKUP($B186,FeedTables!$C$42:$T$42,FeedTables!$C$46:$T$46,,-1)*_xlfn.XLOOKUP(N185,DensityMultiplier[Biomass kg/m3],DensityMultiplier[Multiplier],,-1)","v":{"$error":"#N/A"}},3853.2055944265799,{"$f":"IF(A186<='S3-Short'!$C$7,('Growth-Model-3'!G185*EXP($AA$7)),0)","v":0},{"$f":"IF(A186<='S3-Short'!$C$7,$AD$6*EXP($AD$7*('S3-Short'!C$7-'Growth-Model-3'!A186)),0)","v":0},196.79440557341832,4.859121125269588E-2,0,13.580865810479755,0,{"$f":"M186/'S3-Short'!$C$17","v":0},{"$error":"#N/A"},{"$error":"#N/A"},{"$f":"_xlfn.XLOOKUP(B186,FeedTables!$C$17:$T$17,FeedTables!$C$31:$T$31,,-1)","v":{"$error":"#N/A"}},{"$f":"_xlfn.XLOOKUP(Q186,FeedPrice[Feed],FeedPrice[Price per kg],\"Unknown\",0)*O186","v":{"$error":"#N/A"}},{"$error":"#N/A"},{"$f":"_xlfn.XLOOKUP(O186,LabourFromFeed[Feed Quantity (kg)],LabourFromFeed[No. Labour],\"Out of range\",-1)","v":{"$error":"#N/A"}},{"$f":"T186*OperatingCosts!$C$9","v":{"$error":"#N/A"}},{"$error":"#N/A"}]
[185,{"$f":"IF(A187<='S3-Short'!$C$7, B186*EXP((LN((E186/100)+1))*1),)","v":0},{"$f":"_xlfn.XLOOKUP($B187,FeedTables!$C$42:$T$42,FeedTables!$C$44:$T$44,,-1)","v":{"$error":"#N/A"}},{"$f":"_xlfn.XLOOKUP($B187,FeedTables!$C$42:$T$42,FeedTables!$C$45:$T$45,,-1)","v":{"$error":"#N/A"}},{"$f":"_xlfn.XLOOKUP($B187,FeedTables!$C$42:$T$42,FeedTables!$C$46:$T$46,,-1)*_xlfn.XLOOKUP(N186,DensityMultiplier[Biomass kg/m3],DensityMultiplier[Multiplier],,-1)","v":{"$error":"#N/A"}},3853.2055944265799,{"$f":"IF(A187<='S3-Short'!$C$7,('Growth-Model-3'!G186*EXP($AA$7)),0)","v":0},{"$f":"IF(A187<='S3-Short'!$C$7,$AD$6*EXP($AD$7*('S3-Short'!C$7-'Growth-Model-3'!A187)),0)","v":0},196.79440557341832,4.859121125269588E-2,0,13.580865810479755,0,{"$f":"M187/'S3-Short'!$C$17","v":0},{"$error":"#N/A"},{"$error":"#N/A"},{"$f":"_xlfn.XLOOKUP(B187,FeedTables!$C$17:$T$17,FeedTables!$C$31:$T$31,,-1)","v":{"$error":"#N/A"}},{"$f":"_xlfn.XLOOKUP(Q187,FeedPrice[Feed],FeedPrice[Price per kg],\"Unknown\",0)*O187","v":{"$error":"#N/A"}},{"$error":"#N/A"},{"$f":"_xlfn.XLOOKUP(O187,LabourFromFeed[Feed Quantity (kg)],LabourFromFeed[No. Labour],\"Out of range\",-1)","v":{"$error":"#N/A"}},{"$f":"T187*OperatingCosts!$C$9","v":{"$error":"#N/A"}},{"$error":"#N/A"}]
[186,{"$f":"IF(A188<='S3-Short'!$C$7, B187*EXP((LN((E187/100)+1))*1),)","v":0},{"$f":"_xlfn.XLOOKUP($B188,FeedTables!$C$42:$T$42,FeedTables!$C$44:$T$44,,-1)","v":{"$error":"#N/A"}},{"$f":"_xlfn.XLOOKUP($B188,FeedTables!$C$42:$T$42,FeedTables!$C$45:$T$45,,-1)","v":{"$error":"#N/A"}},{"$f":"_xlfn.XLOOKUP($B188,FeedTables!$C$42:$T$42,FeedTables!$C$46:$T$46,,-1)*_xlfn.XLOOKUP(N187,DensityMultiplier[Biomass kg/m3],DensityMultiplier[Multiplier],,-1)","v":{"$error":"#N/A"}},3853.2055944265799,{"$f":"IF(A188<='S3-Short'!$C$7,('Growth-Model-3'!G187*EXP($AA$7)),0)","v":0},{"$f":"IF(A188<='S3-Short'!$C$7,$AD$6*EXP($AD$7*('S3-Short'!C$7-'Growth-Model-3'!A188)),0)","v":0},196.79440557341832,4.859121125269588E-2,0,13.580865810479755,0,{"$f":"M188/'S3-Short'!$C$17","v":0},{"$error":"#N/A"},{"$error":"#N/A"},{"$f":"_xlfn.XLOOKUP(B188,FeedTables!$C$17:$T$17,FeedTables!$C$31:$T$31,,-1)","v":{"$error":"#N/A"}},{"$f":"_xlfn.XLOOKUP(Q188,FeedPrice[Feed],FeedPrice[Price per kg],\"Unknown\",0)*O188","v":{"$error":"#N/A"}},{"$error":"#N/A"},{"$f":"_xlfn.XLOOKUP(O188,LabourFromFeed[Feed Quantity (kg)],LabourFromFeed[No. Labour],\"Out of range\",-1)","v":{"$error":"#N/A"}},{"$f":"T188*OperatingCosts!$C$9","v":{"$error":"#N/A"}},{"$error":"#N/A"}]
[187,{"$f":"IF(A189<='S3-Short'!$C$7, B188*EXP((LN((E188/100)+1))*1),)","v":0},{"$f":"_xlfn.XLOOKUP($B189,FeedTables!$C$42:$T$42,FeedTables!$C$44:$T$44,,-1)","v":{"$error":"#N/A"}},{"$f":"_xlfn.XLOOKUP($B189,FeedTables!$C$42:$T$42,FeedTables!$C$45:$T$45,,-1)","v":{"$error":"#N/A"}},{"$f":"_xlfn.XLOOKUP($B189,FeedTables!$C$42:$T$42,FeedTables!$C$46:$T$46,,-1)*_xlfn.XLOOKUP(N188,DensityMultiplier[Biomass kg/m3],DensityMultiplier[Multiplier],,-1)","v":{"$error":"#N/A"}},3853.2055944265799,{"$f":"IF(A189<='S3-Short'!$C$7,('Growth-Model-3'!G188*EXP($AA$7)),0)","v":0},{"$f":"IF(A189<='S3-Short'!$C$7,$AD$6*EXP($AD$7*('S3-Short'!C$7-'Growth-Model-3'!A189)),0)","v":0},196.79440557341832,4.859121125269588E-2,0,13.580865810479755,0,{"$f":"M189/'S3-Short'!$C$17","v":0},{"$error":"#N/A"},{"$error":"#N/A"},{"$f":"_xlfn.XLOOKUP(B189,FeedTables!$C$17:$T$17,FeedTables!$C$31:$T$31,,-1)","v":{"$error":"#N/A"}},{"$f":"_xlfn.XLOOKUP(Q189,FeedPrice[Feed],FeedPrice[Price per kg],\"Unknown\",0)*O189","v":{"$error":"#N/A"}},{"$error":"#N/A"},{"$f":"_xlfn.XLOOKUP(O189,LabourFromFeed[Feed Quantity (kg)],LabourFromFeed[No. Labour],\"Out of range\",-1)","v":{"$error":"#N/A"}},{"$f":"T189*OperatingCosts!$C$9","v":{"$error":"#N/A"}},{"$error":"#N/A"}]
[188,{"$f":"IF(A190<='S3-Short'!$C$7, B189*EXP((LN((E189/100)+1))*1),)","v":0},{"$f":"_xlfn.XLOOKUP($B190,FeedTables!$C$42:$T$42,FeedTables!$C$44:$T$44,,-1)","v":{"$error":"#N/A"}},{"$f":"_xlfn.XLOOKUP($B190,FeedTables!$C$42:$T$42,FeedTables!$C$45:$T$45,,-1)","v":{"$error":"#N/A"}},{"$f":"_xlfn.XLOOKUP($B190,FeedTables!$C$42:$T$42,FeedTables!$C$46:$T$46,,-1)*_xlfn.XLOOKUP(N189,DensityMultiplier[Biomass kg/m3],DensityMultiplier[Multiplier],,-1)","v":{"$error":"#N/A"}},3853.2055944265799,{"$f":"IF(A190<='S3-Short'!$C$7,('Growth-Model-3'!G189*EXP($AA$7)),0)","v":0},{"$f":"IF(A190<='S3-Short'!$C$7,$AD$6*EXP($AD$7*('S3-Short'!C$7-'Growth-Model-3'!A190)),0)","v":0},196.79440557341832,4.859121125269588E-2,0,13.580865810479755,0,{"$f":"M190/'S3-Short'!$C$17","v":0},{"$error":"#N/A"},{"$error":"#N/A"},{"$f":"_xlfn.XLOOKUP(B190,FeedTables!$C$17:$T$17,FeedTables!$C$31:$T$31,,-1)","v":{"$error":"#N/A"}},{"$f":"_xlfn.XLOOKUP(Q190,FeedPrice[Feed],FeedPrice[Price per kg],\"Unknown\",0)*O190","v":{"$error":"#N/A"}},{"$error":"#N/A"},{"$f":"_xlfn.XLOOKUP(O190,LabourFromFeed[Feed Quantity (kg)],LabourFromFeed[No. Labour],\"Out of range\",-1)","v":{"$error":"#N/A"}},{"$f":"T190*OperatingCosts!$C$9","v":{"$error":"#N/A"}},{"$error":"#N/A"}]
[189,{"$f":"IF(A191<='S3-Short'!$C$7, B190*EXP((LN((E190/100)+1))*1),)","v":0},{"$f":"_xlfn.XLOOKUP($B191,FeedTables!$C$42:$T$42,FeedTables!$C$44:$T$44,,-1)","v":{"$error":"#N/A"}},{"$f":"_xlfn.XLOOKUP($B191,FeedTables!$C$42:$T$42,FeedTables!$C$45:$T$45,,-1)","v":{"$error":"#N/A"}},{"$f":"_xlfn.XLOOKUP($B191,FeedTables!$C$42:$T$42,FeedTables!$C$46:$T$46,,-1)*_xlfn.XLOOKUP(N190,DensityMultiplier[Biomass kg/m3],DensityMultiplier[Multiplier],,-1)","v":{"$error":"#N/A"}},3853.2055944265799,{"$f":"IF(A191<='S3-Short'!$C$7,('Growth-Model-3'!G190*EXP($AA$7)),0)","v":0},{"$f":"IF(A191<='S3-Short'!$C$7,$AD$6*EXP($AD$7*('S3-Short'!C$7-'Growth-Model-3'!A191)),0)","v":0},196.79440557341832,4.859121125269588E-2,0,13.580865810479755,0,{"$f":"M191/'S3-Short'!$C$17","v":0},{"$error":"#N/A"},{"$error":"#N/A"},{"$f":"_xlfn.XLOOKUP(B191,FeedTables!$C$17:$T$17,FeedTables!$C$31:$T$31,,-1)","v":{"$error":"#N/A"}},{"$f":"_xlfn.XLOOKUP(Q191,FeedPrice[Feed],FeedPrice[Price per kg],\"Unknown\",0)*O191","v":{"$error":"#N/A"}},{"$error":"#N/A"},{"$f":"_xlfn.XLOOKUP(O191,LabourFromFeed[Feed Quantity (kg)],LabourFromFeed[No. Labour],\"Out of range\",-1)","v":{"$error":"#N/A"}},{"$f":"T191*OperatingCosts!$C$9","v":{"$error":"#N/A"}},{"$error":"#N/A"}]
[190,{"$f":"IF(A192<='S3-Short'!$C$7, B191*EXP((LN((E191/100)+1))*1),)","v":0},{"$f":"_xlfn.XLOOKUP($B192,FeedTables!$C$42:$T$42,FeedTables!$C$44:$T$44,,-1)","v":{"$error":"#N/A"}},{"$f":"_xlfn.XLOOKUP($B192,FeedTables!$C$42:$T$42,FeedTables!$C$45:$T$45,,-1)","v":{"$error":"#N/A"}},{"$f":"_xlfn.XLOOKUP($B192,FeedTables!$C$42:$T$42,FeedTables!$C$46:$T$46,,-1)*_xlfn.XLOOKUP(N191,DensityMultiplier[Biomass kg/m3],DensityMultiplier[Multiplier],,-1)","v":{"$error":"#N/A"}},3853.2055944265799,{"$f":"IF(A192<='S3-Short'!$C$7,('Growth-Model-3'!G191*EXP($AA$7)),0)","v":0},{"$f":"IF(A192<='S3-Short'!$C$7,$AD$6*EXP($AD$7*('S3-Short'!C$7-'Growth-Model-3'!A192)),0)","v":0},196.79440557341832,4.859121125269588E-2,0,13.580865810479755,0,{"$f":"M192/'S3-Short'!$C$17","v":0},{"$error":"#N/A"},{"$error":"#N/A"},{"$f":"_xlfn.XLOOKUP(B192,FeedTables!$C$17:$T$17,FeedTables!$C$31:$T$31,,-1)","v":{"$error":"#N/A"}},{"$f":"_xlfn.XLOOKUP(Q192,FeedPrice[Feed],FeedPrice[Price per kg],\"Unknown\",0)*O192","v":{"$error":"#N/A"}},{"$error":"#N/A"},{"$f":"_xlfn.XLOOKUP(O192,LabourFromFeed[Feed Quantity (kg)],LabourFromFeed[No. Labour],\"Out of range\",-1)","v":{"$error":"#N/A"}},{"$f":"T192*OperatingCosts!$C$9","v":{"$error":"#N/A"}},{"$error":"#N/A"}]
[191,{"$f":"IF(A193<='S3-Short'!$C$7, B192*EXP((LN((E192/100)+1))*1),)","v":0},{"$f":"_xlfn.XLOOKUP($B193,FeedTables!$C$42:$T$42,FeedTables!$C$44:$T$44,,-1)","v":{"$error":"#N/A"}},{"$f":"_xlfn.XLOOKUP($B193,FeedTables!$C$42:$T$42,FeedTables!$C$45:$T$45,,-1)","v":{"$error":"#N/A"}},{"$f":"_xlfn.XLOOKUP($B193,FeedTables!$C$42:$T$42,FeedTables!$C$46:$T$46,,-1)*_xlfn.XLOOKUP(N192,DensityMultiplier[Biomass kg/m3],DensityMultiplier[Multiplier],,-1)","v":{"$error":"#N/A"}},3853.2055944265799,{"$f":"IF(A193<='S3-Short'!$C$7,('Growth-Model-3'!G192*EXP($AA$7)),0)","v":0},{"$f":"IF(A193<='S3-Short'!$C$7,$AD$6*EXP($AD$7*('S3-Short'!C$7-'Growth-Model-3'!A193)),0)","v":0},196.79440557341832,4.859121125269588E-2,0,13.580865810479755,0,{"$f":"M193/'S3-Short'!$C$17","v":0},{"$error":"#N/A"},{"$error":"#N/A"},{"$f":"_xlfn.XLOOKUP(B193,FeedTables!$C$17:$T$17,FeedTables!$C$31:$T$31,,-1)","v":{"$error":"#N/A"}},{"$f":"_xlfn.XLOOKUP(Q193,FeedPrice[Feed],FeedPrice[Price per kg],\"Unknown\",0)*O193","v":{"$error":"#N/A"}},{"$error":"#N/A"},{"$f":"_xlfn.XLOOKUP(O193,LabourFromFeed[Feed Quantity (kg)],LabourFromFeed[No. Labour],\"Out of range\",-1)","v":{"$error":"#N/A"}},{"$f":"T193*OperatingCosts!$C$9","v":{"$error":"#N/A"}},{"$error":"#N/A"}]
[192,{"$f":"IF(A194<='S3-Short'!$C$7, B193*EXP((LN((E193/100)+1))*1),)","v":0},{"$f":"_xlfn.XLOOKUP($B194,FeedTables!$C$42:$T$42,FeedTables!$C$44:$T$44,,-1)","v":{"$error":"#N/A"}},{"$f":"_xlfn.XLOOKUP($B194,FeedTables!$C$42:$T$42,FeedTables!$C$45:$T$45,,-1)","v":{"$error":"#N/A"}},{"$f":"_xlfn.XLOOKUP($B194,FeedTables!$C$42:$T$42,FeedTables!$C$46:$T$46,,-1)*_xlfn.XLOOKUP(N193,DensityMultiplier[Biomass kg/m3],DensityMultiplier[Multiplier],,-1)","v":{"$error":"#N/A"}},3853.2055944265799,{"$f":"IF(A194<='S3-Short'!$C$7,('Growth-Model-3'!G193*EXP($AA$7)),0)","v":0},{"$f":"IF(A194<='S3-Short'!$C$7,$AD$6*EXP($AD$7*('S3-Short'!C$7-'Growth-Model-3'!A194)),0)","v":0},196.79440557341832,4.859121125269588E-2,0,13.580865810479755,0,{"$f":"M194/'S3-Short'!$C$17","v":0},{"$error":"#N/A"},{"$error":"#N/A"},{"$f":"_xlfn.XLOOKUP(B194,FeedTables!$C$17:$T$17,FeedTables!$C$31:$T$31,,-1)","v":{"$error":"#N/A"}},{"$f":"_xlfn.XLOOKUP(Q194,FeedPrice[Feed],FeedPrice[Price per kg],\"Unknown\",0)*O194","v":{"$error":"#N/A"}},{"$error":"#N/A"},{"$f":"_xlfn.XLOOKUP(O194,LabourFromFeed[Feed Quantity (kg)],LabourFromFeed[No. Labour],\"Out of range\",-1)","v":{"$error":"#N/A"}},{"$f":"T194*OperatingCosts!$C$9","v":{"$error":"#N/A"}},{"$error":"#N/A"}]
[193,{"$f":"IF(A195<='S3-Short'!$C$7, B194*EXP((LN((E194/100)+1))*1),)","v":0},{"$f":"_xlfn.XLOOKUP($B195,FeedTables!$C$42:$T$42,FeedTables!$C$44:$T$44,,-1)","v":{"$error":"#N/A"}},{"$f":"_xlfn.XLOOKUP($B195,FeedTables!$C$42:$T$42,FeedTables!$C$45:$T$45,,-1)","v":{"$error":"#N/A"}},{"$f":"_xlfn.XLOOKUP($B195,FeedTables!$C$42:$T$42,FeedTables!$C$46:$T$46,,-1)*_xlfn.XLOOKUP(N194,DensityMultiplier[Biomass kg/m3],DensityMultiplier[Multiplier],,-1)","v":{"$error":"#N/A"}},3853.2055944265799,{"$f":"IF(A195<='S3-Short'!$C$7,('Growth-Model-3'!G194*EXP($AA$7)),0)","v":0},{"$f":"IF(A195<='S3-Short'!$C$7,$AD$6*EXP($AD$7*('S3-Short'!C$7-'Growth-Model-3'!A195)),0)","v":0},196.79440557341832,{"$f":"I195/$F$2","v":4.859121125269588E-2},{"$f":"(G195+H195)*B195","v":0},13.580865810479755,{"$f":"(B195*F195)/1000","v":0},{"$f":"M195/'S3-Short'!$C$17","v":0},{"$f":"M195*(C195/100)","v":{"$error":"#N/A"}},{"$error":"#N/A"},{"$f":"_xlfn.XLOOKUP(B195,FeedTables!$C$17:$T$17,FeedTables!$C$31:$T$31,,-1)","v":{"$error":"#N/A"}},{"$f":"_xlfn.XLOOKUP(Q195,FeedPrice[Feed],FeedPrice[Price per kg],\"Unknown\",0)*O195","v":{"$error":"#N/A"}},{"$error":"#N/A"},{"$f":"_xlfn.XLOOKUP(O195,LabourFromFeed[Feed Quantity (kg)],LabourFromFeed[No. Labour],\"Out of range\",-1)","v":{"$error":"#N/A"}},{"$f":"T195*OperatingCosts!$C$9","v":{"$error":"#N/A"}},{"$error":"#N/A"}]
[194,{"$f":"IF(A196<='S3-Short'!$C$7, B195*EXP((LN((E195/100)+1))*1),)","v":0},{"$f":"_xlfn.XLOOKUP($B196,FeedTables!$C$42:$T$42,FeedTables!$C$44:$T$44,,-1)","v":{"$error":"#N/A"}},{"$f":"_xlfn.XLOOKUP($B196,FeedTables!$C$42:$T$42,FeedTables!$C$45:$T$45,,-1)","v":{"$error":"#N/A"}},{"$f":"_xlfn.XLOOKUP($B196,FeedTables!$C$42:$T$42,FeedTables!$C$46:$T$46,,-1)*_xlfn.XLOOKUP(N195,DensityMultiplier[Biomass kg/m3],DensityMultiplier[Multiplier],,-1)","v":{"$error":"#N/A"}},{"$f":"F195-G195-H195","v":3853.2055944265799},{"$f":"IF(A196<='S3-Short'!$C$7,('Growth-Model-3'!G195*EXP($AA$7)),0)","v":0},{"$f":"IF(A196<='S3-Short'!$C$7,$AD$6*EXP($AD$7*('S3-Short'!C$7-'Growth-Model-3'!A196)),0)","v":0},{"$f":"I195+G196+H196","v":196.79440557341832},4.859121125269588E-2,0,{"$f":"(K196/1000)+L195","v":13.580865810479755},0,{"$f":"M196/'S3-Short'!$C$17","v":0},{"$error":"#N/A"},{"$f":"O196+P195","v":{"$error":"#N/A"}},{"$f":"_xlfn.XLOOKUP(B196,FeedTables!$C$17:$T$17,FeedTables!$C$31:$T$31,,-1)","v":{"$error":"#N/A"}},{"$f":"_xlfn.XLOOKUP(Q196,FeedPrice[Feed],FeedPrice[Price per kg],\"Unknown\",0)*O196","v":{"$error":"#N/A"}},{"$f":"R196+S195","v":{"$error":"#N/A"}},{"$f":"_xlfn.XLOOKUP(O196,LabourFromFeed[Feed Quantity (kg)],LabourFromFeed[No. Labour],\"Out of range\",-1)","v":{"$error":"#N/A"}},{"$f":"T196*OperatingCosts!$C$9","v":{"$error":"#N/A"}},{"$f":"U196+V195","v":{"$error":"#N/A"}}]
[195,{"$f":"IF(A197<='S3-Short'!$C$7, B196*EXP((LN((E196/100)+1))*1),)","v":0},{"$f":"_xlfn.XLOOKUP($B197,FeedTables!$C$42:$T$42,FeedTables!$C$44:$T$44,,-1)","v":{"$error":"#N/A"}},{"$f":"_xlfn.XLOOKUP($B197,FeedTables!$C$42:$T$42,FeedTables!$C$45:$T$45,,-1)","v":{"$error":"#N/A"}},{"$f":"_xlfn.XLOOKUP($B197,FeedTables!$C$42:$T$42,FeedTables!$C$46:$T$46,,-1)*_xlfn.XLOOKUP(N196,DensityMultiplier[Biomass kg/m3],DensityMultiplier[Multiplier],,-1)","v":{"$error":"#N/A"}},3853.2055944265799,{"$f":"IF(A197<='S3-Short'!$C$7,('Growth-Model-3'!G196*EXP($AA$7)),0)","v":0},{"$f":"IF(A197<='S3-Short'!$C$7,$AD$6*EXP($AD$7*('S3-Short'!C$7-'Growth-Model-3'!A197)),0)","v":0},196.79440557341832,4.859121125269588E-2,0,13.580865810479755,0,{"$f":"M197/'S3-Short'!$C$17","v":0},{"$error":"#N/A"},{"$error":"#N/A"},{"$f":"_xlfn.XLOOKUP(B197,FeedTables!$C$17:$T$17,FeedTables!$C$31:$T$31,,-1)","v":{"$error":"#N/A"}},{"$f":"_xlfn.XLOOKUP(Q197,FeedPrice[Feed],FeedPrice[Price per kg],\"Unknown\",0)*O197","v":{"$error":"#N/A"}},{"$error":"#N/A"},{"$f":"_xlfn.XLOOKUP(O197,LabourFromFeed[Feed Quantity (kg)],LabourFromFeed[No. Labour],\"Out of range\",-1)","v":{"$error":"#N/A"}},{"$f":"T197*OperatingCosts!$C$9","v":{"$error":"#N/A"}},{"$error":"#N/A"}]
[196,{"$f":"IF(A198<='S3-Short'!$C$7, B197*EXP((LN((E197/100)+1))*1),)","v":0},{"$f":"_xlfn.XLOOKUP($B198,FeedTables!$C$42:$T$42,FeedTables!$C$44:$T$44,,-1)","v":{"$error":"#N/A"}},{"$f":"_xlfn.XLOOKUP($B198,FeedTables!$C$42:$T$42,FeedTables!$C$45:$T$45,,-1)","v":{"$error":"#N/A"}},{"$f":"_xlfn.XLOOKUP($B198,FeedTables!$C$42:$T$42,FeedTables!$C$46:$T$46,,-1)*_xlfn.XLOOKUP(N197,DensityMultiplier[Biomass kg/m3],DensityMultiplier[Multiplier],,-1)","v":{"$error":"#N/A"}},3853.2055944265799,{"$f":"IF(A198<='S3-Short'!$C$7,('Growth-Model-3'!G197*EXP($AA$7)),0)","v":0},{"$f":"IF(A198<='S3-Short'!$C$7,$AD$6*EXP($AD$7*('S3-Short'!C$7-'Growth-Model-3'!A198)),0)","v":0},196.79440557341832,4.859121125269588E-2,0,13.580865810479755,0,{"$f":"M198/'S3-Short'!$C$17","v":0},{"$error":"#N/A"},{"$error":"#N/A"},{"$f":"_xlfn.XLOOKUP(B198,FeedTables!$C$17:$T$17,FeedTables!$C$31:$T$31,,-1)","v":{"$error":"#N/A"}},{"$f":"_xlfn.XLOOKUP(Q198,FeedPrice[Feed],FeedPrice[Price per kg],\"Unknown\",0)*O198","v":{"$error":"#N/A"}},{"$error":"#N/A"},{"$f":"_xlfn.XLOOKUP(O198,LabourFromFeed[Feed Quantity (kg)],LabourFromFeed[No. Labour],\"Out of range\",-1)","v":{"$error":"#N/A"}},{"$f":"T198*OperatingCosts!$C$9","v":{"$error":"#N/A"}},{"$error":"#N/A"}]
[197,{"$f":"IF(A199<='S3-Short'!$C$7, B198*EXP((LN((E198/100)+1))*1),)","v":0},{"$f":"_xlfn.XLOOKUP($B199,FeedTables!$C$42:$T$42,FeedTables!$C$44:$T$44,,-1)","v":{"$error":"#N/A"}},{"$f":"_xlfn.XLOOKUP($B199,FeedTables!$C$42:$T$42,FeedTables!$C$45:$T$45,,-1)","v":{"$error":"#N/A"}},{"$f":"_xlfn.XLOOKUP($B199,FeedTables!$C$42:$T$42,FeedTables!$C$46:$T$46,,-1)*_xlfn.XLOOKUP(N198,DensityMultiplier[Biomass kg/m3],DensityMultiplier[Multiplier],,-1)","v":{"$error":"#N/A"}},3853.2055944265799,{"$f":"IF(A199<='S3-Short'!$C$7,('Growth-Model-3'!G198*EXP($AA$7)),0)","v":0},{"$f":"IF(A199<='S3-Short'!$C$7,$AD$6*EXP($AD$7*('S3-Short'!C$7-'Growth-Model-3'!A199)),0)","v":0},196.79440557341832,4.859121125269588E-2,0,13.580865810479755,0,{"$f":"M199/'S3-Short'!$C$17","v":0},{"$error":"#N/A"},{"$error":"#N/A"},{"$f":"_xlfn.XLOOKUP(B199,FeedTables!$C$17:$T$17,FeedTables!$C$31:$T$31,,-1)","v":{"$error":"#N/A"}},{"$f":"_xlfn.XLOOKUP(Q199,FeedPrice[Feed],FeedPrice[Price per kg],\"Unknown\",0)*O199","v":{"$error":"#N/A"}},{"$error":"#N/A"},{"$f":"_xlfn.XLOOKUP(O199,LabourFromFeed[Feed Quantity (kg)],LabourFromFeed[No. Labour],\"Out of range\",-1)","v":{"$error":"#N/A"}},{"$f":"T199*OperatingCosts!$C$9","v":{"$error":"#N/A"}},{"$error":"#N/A"}]
[198,{"$f":"IF(A200<='S3-Short'!$C$7, B199*EXP((LN((E199/100)+1))*1),)","v":0},{"$f":"_xlfn.XLOOKUP($B200,FeedTables!$C$42:$T$42,FeedTables!$C$44:$T$44,,-1)","v":{"$error":"#N/A"}},{"$f":"_xlfn.XLOOKUP($B200,FeedTables!$C$42:$T$42,FeedTables!$C$45:$T$45,,-1)","v":{"$error":"#N/A"}},{"$f":"_xlfn.XLOOKUP($B200,FeedTables!$C$42:$T$42,FeedTables!$C$46:$T$46,,-1)*_xlfn.XLOOKUP(N199,DensityMultiplier[Biomass kg/m3],DensityMultiplier[Multiplier],,-1)","v":{"$error":"#N/A"}},3853.2055944265799,{"$f":"IF(A200<='S3-Short'!$C$7,('Growth-Model-3'!G199*EXP($AA$7)),0)","v":0},{"$f":"IF(A200<='S3-Short'!$C$7,$AD$6*EXP($AD$7*('S3-Short'!C$7-'Growth-Model-3'!A200)),0)","v":0},196.79440557341832,4.859121125269588E-2,0,13.580865810479755,0,{"$f":"M200/'S3-Short'!$C$17","v":0},{"$error":"#N/A"},{"$error":"#N/A"},{"$f":"_xlfn.XLOOKUP(B200,FeedTables!$C$17:$T$17,FeedTables!$C$31:$T$31,,-1)","v":{"$error":"#N/A"}},{"$f":"_xlfn.XLOOKUP(Q200,FeedPrice[Feed],FeedPrice[Price per kg],\"Unknown\",0)*O200","v":{"$error":"#N/A"}},{"$error":"#N/A"},{"$f":"_xlfn.XLOOKUP(O200,LabourFromFeed[Feed Quantity (kg)],LabourFromFeed[No. Labour],\"Out of range\",-1)","v":{"$error":"#N/A"}},{"$f":"T200*OperatingCosts!$C$9","v":{"$error":"#N/A"}},{"$error":"#N/A"}]
[199,{"$f":"IF(A201<='S3-Short'!$C$7, B200*EXP((LN((E200/100)+1))*1),)","v":0},{"$f":"_xlfn.XLOOKUP($B201,FeedTables!$C$42:$T$42,FeedTables!$C$44:$T$44,,-1)","v":{"$error":"#N/A"}},{"$f":"_xlfn.XLOOKUP($B201,FeedTables!$C$42:$T$42,FeedTables!$C$45:$T$45,,-1)","v":{"$error":"#N/A"}},{"$f":"_xlfn.XLOOKUP($B201,FeedTables!$C$42:$T$42,FeedTables!$C$46:$T$46,,-1)*_xlfn.XLOOKUP(N200,DensityMultiplier[Biomass kg/m3],DensityMultiplier[Multiplier],,-1)","v":{"$error":"#N/A"}},3853.2055944265799,{"$f":"IF(A201<='S3-Short'!$C$7,('Growth-Model-3'!G200*EXP($AA$7)),0)","v":0},{"$f":"IF(A201<='S3-Short'!$C$7,$AD$6*EXP($AD$7*('S3-Short'!C$7-'Growth-Model-3'!A201)),0)","v":0},196.79440557341832,4.859121125269588E-2,0,13.580865810479755,0,{"$f":"M201/'S3-Short'!$C$17","v":0},{"$error":"#N/A"},{"$error":"#N/A"},{"$f":"_xlfn.XLOOKUP(B201,FeedTables!$C$17:$T$17,FeedTables!$C$31:$T$31,,-1)","v":{"$error":"#N/A"}},{"$f":"_xlfn.XLOOKUP(Q201,FeedPrice[Feed],FeedPrice[Price per kg],\"Unknown\",0)*O201","v":{"$error":"#N/A"}},{"$error":"#N/A"},{"$f":"_xlfn.XLOOKUP(O201,LabourFromFeed[Feed Quantity (kg)],LabourFromFeed[No. Labour],\"Out of range\",-1)","v":{"$error":"#N/A"}},{"$f":"T201*OperatingCosts!$C$9","v":{"$error":"#N/A"}},{"$error":"#N/A"}]
[200,{"$f":"IF(A202<='S3-Short'!$C$7, B201*EXP((LN((E201/100)+1))*1),)","v":0},{"$f":"_xlfn.XLOOKUP($B202,FeedTables!$C$42:$T$42,FeedTables!$C$44:$T$44,,-1)","v":{"$error":"#N/A"}},{"$f":"_xlfn.XLOOKUP($B202,FeedTables!$C$42:$T$42,FeedTables!$C$45:$T$45,,-1)","v":{"$error":"#N/A"}},{"$f":"_xlfn.XLOOKUP($B202,FeedTables!$C$42:$T$42,FeedTables!$C$46:$T$46,,-1)*_xlfn.XLOOKUP(N201,DensityMultiplier[Biomass kg/m3],DensityMultiplier[Multiplier],,-1)","v":{"$error":"#N/A"}},3853.2055944265799,{"$f":"IF(A202<='S3-Short'!$C$7,('Growth-Model-3'!G201*EXP($AA$7)),0)","v":0},{"$f":"IF(A202<='S3-Short'!$C$7,$AD$6*EXP($AD$7*('S3-Short'!C$7-'Growth-Model-3'!A202)),0)","v":0},196.79440557341832,4.859121125269588E-2,0,13.580865810479755,0,{"$f":"M202/'S3-Short'!$C$17","v":0},{"$error":"#N/A"},{"$error":"#N/A"},{"$f":"_xlfn.XLOOKUP(B202,FeedTables!$C$17:$T$17,FeedTables!$C$31:$T$31,,-1)","v":{"$error":"#N/A"}},{"$f":"_xlfn.XLOOKUP(Q202,FeedPrice[Feed],FeedPrice[Price per kg],\"Unknown\",0)*O202","v":{"$error":"#N/A"}},{"$error":"#N/A"},{"$f":"_xlfn.XLOOKUP(O202,LabourFromFeed[Feed Quantity (kg)],LabourFromFeed[No. Labour],\"Out of range\",-1)","v":{"$error":"#N/A"}},{"$f":"T202*OperatingCosts!$C$9","v":{"$error":"#N/A"}},{"$error":"#N/A"}]
[201,{"$f":"IF(A203<='S3-Short'!$C$7, B202*EXP((LN((E202/100)+1))*1),)","v":0},{"$f":"_xlfn.XLOOKUP($B203,FeedTables!$C$42:$T$42,FeedTables!$C$44:$T$44,,-1)","v":{"$error":"#N/A"}},{"$f":"_xlfn.XLOOKUP($B203,FeedTables!$C$42:$T$42,FeedTables!$C$45:$T$45,,-1)","v":{"$error":"#N/A"}},{"$f":"_xlfn.XLOOKUP($B203,FeedTables!$C$42:$T$42,FeedTables!$C$46:$T$46,,-1)*_xlfn.XLOOKUP(N202,DensityMultiplier[Biomass kg/m3],DensityMultiplier[Multiplier],,-1)","v":{"$error":"#N/A"}},3853.2055944265799,{"$f":"IF(A203<='S3-Short'!$C$7,('Growth-Model-3'!G202*EXP($AA$7)),0)","v":0},{"$f":"IF(A203<='S3-Short'!$C$7,$AD$6*EXP($AD$7*('S3-Short'!C$7-'Growth-Model-3'!A203)),0)","v":0},196.79440557341832,4.859121125269588E-2,0,13.580865810479755,0,{"$f":"M203/'S3-Short'!$C$17","v":0},{"$error":"#N/A"},{"$error":"#N/A"},{"$f":"_xlfn.XLOOKUP(B203,FeedTables!$C$17:$T$17,FeedTables!$C$31:$T$31,,-1)","v":{"$error":"#N/A"}},{"$f":"_xlfn.XLOOKUP(Q203,FeedPrice[Feed],FeedPrice[Price per kg],\"Unknown\",0)*O203","v":{"$error":"#N/A"}},{"$error":"#N/A"},{"$f":"_xlfn.XLOOKUP(O203,LabourFromFeed[Feed Quantity (kg)],LabourFromFeed[No. Labour],\"Out of range\",-1)","v":{"$error":"#N/A"}},{"$f":"T203*OperatingCosts!$C$9","v":{"$error":"#N/A"}},{"$error":"#N/A"}]
[202,{"$f":"IF(A204<='S3-Short'!$C$7, B203*EXP((LN((E203/100)+1))*1),)","v":0},{"$f":"_xlfn.XLOOKUP($B204,FeedTables!$C$42:$T$42,FeedTables!$C$44:$T$44,,-1)","v":{"$error":"#N/A"}},{"$f":"_xlfn.XLOOKUP($B204,FeedTables!$C$42:$T$42,FeedTables!$C$45:$T$45,,-1)","v":{"$error":"#N/A"}},{"$f":"_xlfn.XLOOKUP($B204,FeedTables!$C$42:$T$42,FeedTables!$C$46:$T$46,,-1)*_xlfn.XLOOKUP(N203,DensityMultiplier[Biomass kg/m3],DensityMultiplier[Multiplier],,-1)","v":{"$error":"#N/A"}},3853.2055944265799,{"$f":"IF(A204<='S3-Short'!$C$7,('Growth-Model-3'!G203*EXP($AA$7)),0)","v":0},{"$f":"IF(A204<='S3-Short'!$C$7,$AD$6*EXP($AD$7*('S3-Short'!C$7-'Growth-Model-3'!A204)),0)","v":0},196.79440557341832,4.859121125269588E-2,0,13.580865810479755,0,{"$f":"M204/'S3-Short'!$C$17","v":0},{"$error":"#N/A"},{"$error":"#N/A"},{"$f":"_xlfn.XLOOKUP(B204,FeedTables!$C$17:$T$17,FeedTables!$C$31:$T$31,,-1)","v":{"$error":"#N/A"}},{"$f":"_xlfn.XLOOKUP(Q204,FeedPrice[Feed],FeedPrice[Price per kg],\"Unknown\",0)*O204","v":{"$error":"#N/A"}},{"$error":"#N/A"},{"$f":"_xlfn.XLOOKUP(O204,LabourFromFeed[Feed Quantity (kg)],LabourFromFeed[No. Labour],\"Out of range\",-1)","v":{"$error":"#N/A"}},{"$f":"T204*OperatingCosts!$C$9","v":{"$error":"#N/A"}},{"$error":"#N/A"}]
[203,{"$f":"IF(A205<='S3-Short'!$C$7, B204*EXP((LN((E204/100)+1))*1),)","v":0},{"$f":"_xlfn.XLOOKUP($B205,FeedTables!$C$42:$T$42,FeedTables!$C$44:$T$44,,-1)","v":{"$error":"#N/A"}},{"$f":"_xlfn.XLOOKUP($B205,FeedTables!$C$42:$T$42,FeedTables!$C$45:$T$45,,-1)","v":{"$error":"#N/A"}},{"$f":"_xlfn.XLOOKUP($B205,FeedTables!$C$42:$T$42,FeedTables!$C$46:$T$46,,-1)*_xlfn.XLOOKUP(N204,DensityMultiplier[Biomass kg/m3],DensityMultiplier[Multiplier],,-1)","v":{"$error":"#N/A"}},3853.2055944265799,{"$f":"IF(A205<='S3-Short'!$C$7,('Growth-Model-3'!G204*EXP($AA$7)),0)","v":0},{"$f":"IF(A205<='S3-Short'!$C$7,$AD$6*EXP($AD$7*('S3-Short'!C$7-'Growth-Model-3'!A205)),0)","v":0},196.79440557341832,4.859121125269588E-2,0,13.580865810479755,0,{"$f":"M205/'S3-Short'!$C$17","v":0},{"$error":"#N/A"},{"$error":"#N/A"},{"$f":"_xlfn.XLOOKUP(B205,FeedTables!$C$17:$T$17,FeedTables!$C$31:$T$31,,-1)","v":{"$error":"#N/A"}},{"$f":"_xlfn.XLOOKUP(Q205,FeedPrice[Feed],FeedPrice[Price per kg],\"Unknown\",0)*O205","v":{"$error":"#N/A"}},{"$error":"#N/A"},{"$f":"_xlfn.XLOOKUP(O205,LabourFromFeed[Feed Quantity (kg)],LabourFromFeed[No. Labour],\"Out of range\",-1)","v":{"$error":"#N/A"}},{"$f":"T205*OperatingCosts!$C$9","v":{"$error":"#N/A"}},{"$error":"#N/A"}]
[204,{"$f":"IF(A206<='S3-Short'!$C$7, B205*EXP((LN((E205/100)+1))*1),)","v":0},{"$f":"_xlfn.XLOOKUP($B206,FeedTables!$C$42:$T$42,FeedTables!$C$44:$T$44,,-1)","v":{"$error":"#N/A"}},{"$f":"_xlfn.XLOOKUP($B206,FeedTables!$C$42:$T$42,FeedTables!$C$45:$T$45,,-1)","v":{"$error":"#N/A"}},{"$f":"_xlfn.XLOOKUP($B206,FeedTables!$C$42:$T$42,FeedTables!$C$46:$T$46,,-1)*_xlfn.XLOOKUP(N205,DensityMultiplier[Biomass kg/m3],DensityMultiplier[Multiplier],,-1)","v":{"$error":"#N/A"}},3853.2055944265799,{"$f":"IF(A206<='S3-Short'!$C$7,('Growth-Model-3'!G205*EXP($AA$7)),0)","v":0},{"$f":"IF(A206<='S3-Short'!$C$7,$AD$6*EXP($AD$7*('S3-Short'!C$7-'Growth-Model-3'!A206)),0)","v":0},196.79440557341832,4.859121125269588E-2,0,13.580865810479755,0,{"$f":"M206/'S3-Short'!$C$17","v":0},{"$error":"#N/A"},{"$error":"#N/A"},{"$f":"_xlfn.XLOOKUP(B206,FeedTables!$C$17:$T$17,FeedTables!$C$31:$T$31,,-1)","v":{"$error":"#N/A"}},{"$f":"_xlfn.XLOOKUP(Q206,FeedPrice[Feed],FeedPrice[Price per kg],\"Unknown\",0)*O206","v":{"$error":"#N/A"}},{"$error":"#N/A"},{"$f":"_xlfn.XLOOKUP(O206,LabourFromFeed[Feed Quantity (kg)],LabourFromFeed[No. Labour],\"Out of range\",-1)","v":{"$error":"#N/A"}},{"$f":"T206*OperatingCosts!$C$9","v":{"$error":"#N/A"}},{"$error":"#N/A"}]
[205,{"$f":"IF(A207<='S3-Short'!$C$7, B206*EXP((LN((E206/100)+1))*1),)","v":0},{"$f":"_xlfn.XLOOKUP($B207,FeedTables!$C$42:$T$42,FeedTables!$C$44:$T$44,,-1)","v":{"$error":"#N/A"}},{"$f":"_xlfn.XLOOKUP($B207,FeedTables!$C$42:$T$42,FeedTables!$C$45:$T$45,,-1)","v":{"$error":"#N/A"}},{"$f":"_xlfn.XLOOKUP($B207,FeedTables!$C$42:$T$42,FeedTables!$C$46:$T$46,,-1)*_xlfn.XLOOKUP(N206,DensityMultiplier[Biomass kg/m3],DensityMultiplier[Multiplier],,-1)","v":{"$error":"#N/A"}},3853.2055944265799,{"$f":"IF(A207<='S3-Short'!$C$7,('Growth-Model-3'!G206*EXP($AA$7)),0)","v":0},{"$f":"IF(A207<='S3-Short'!$C$7,$AD$6*EXP($AD$7*('S3-Short'!C$7-'Growth-Model-3'!A207)),0)","v":0},196.79440557341832,4.859121125269588E-2,0,13.580865810479755,0,{"$f":"M207/'S3-Short'!$C$17","v":0},{"$error":"#N/A"},{"$error":"#N/A"},{"$f":"_xlfn.XLOOKUP(B207,FeedTables!$C$17:$T$17,FeedTables!$C$31:$T$31,,-1)","v":{"$error":"#N/A"}},{"$f":"_xlfn.XLOOKUP(Q207,FeedPrice[Feed],FeedPrice[Price per kg],\"Unknown\",0)*O207","v":{"$error":"#N/A"}},{"$error":"#N/A"},{"$f":"_xlfn.XLOOKUP(O207,LabourFromFeed[Feed Quantity (kg)],LabourFromFeed[No. Labour],\"Out of range\",-1)","v":{"$error":"#N/A"}},{"$f":"T207*OperatingCosts!$C$9","v":{"$error":"#N/A"}},{"$error":"#N/A"}]
[206,{"$f":"IF(A208<='S3-Short'!$C$7, B207*EXP((LN((E207/100)+1))*1),)","v":0},{"$f":"_xlfn.XLOOKUP($B208,FeedTables!$C$42:$T$42,FeedTables!$C$44:$T$44,,-1)","v":{"$error":"#N/A"}},{"$f":"_xlfn.XLOOKUP($B208,FeedTables!$C$42:$T$42,FeedTables!$C$45:$T$45,,-1)","v":{"$error":"#N/A"}},{"$f":"_xlfn.XLOOKUP($B208,FeedTables!$C$42:$T$42,FeedTables!$C$46:$T$46,,-1)*_xlfn.XLOOKUP(N207,DensityMultiplier[Biomass kg/m3],DensityMultiplier[Multiplier],,-1)","v":{"$error":"#N/A"}},3853.2055944265799,{"$f":"IF(A208<='S3-Short'!$C$7,('Growth-Model-3'!G207*EXP($AA$7)),0)","v":0},{"$f":"IF(A208<='S3-Short'!$C$7,$AD$6*EXP($AD$7*('S3-Short'!C$7-'Growth-Model-3'!A208)),0)","v":0},196.79440557341832,4.859121125269588E-2,0,13.580865810479755,0,{"$f":"M208/'S3-Short'!$C$17","v":0},{"$error":"#N/A"},{"$error":"#N/A"},{"$f":"_xlfn.XLOOKUP(B208,FeedTables!$C$17:$T$17,FeedTables!$C$31:$T$31,,-1)","v":{"$error":"#N/A"}},{"$f":"_xlfn.XLOOKUP(Q208,FeedPrice[Feed],FeedPrice[Price per kg],\"Unknown\",0)*O208","v":{"$error":"#N/A"}},{"$error":"#N/A"},{"$f":"_xlfn.XLOOKUP(O208,LabourFromFeed[Feed Quantity (kg)],LabourFromFeed[No. Labour],\"Out of range\",-1)","v":{"$error":"#N/A"}},{"$f":"T208*OperatingCosts!$C$9","v":{"$error":"#N/A"}},{"$error":"#N/A"}]
[207,{"$f":"IF(A209<='S3-Short'!$C$7, B208*EXP((LN((E208/100)+1))*1),)","v":0},{"$f":"_xlfn.XLOOKUP($B209,FeedTables!$C$42:$T$42,FeedTables!$C$44:$T$44,,-1)","v":{"$error":"#N/A"}},{"$f":"_xlfn.XLOOKUP($B209,FeedTables!$C$42:$T$42,FeedTables!$C$45:$T$45,,-1)","v":{"$error":"#N/A"}},{"$f":"_xlfn.XLOOKUP($B209,FeedTables!$C$42:$T$42,FeedTables!$C$46:$T$46,,-1)*_xlfn.XLOOKUP(N208,DensityMultiplier[Biomass kg/m3],DensityMultiplier[Multiplier],,-1)","v":{"$error":"#N/A"}},3853.2055944265799,{"$f":"IF(A209<='S3-Short'!$C$7,('Growth-Model-3'!G208*EXP($AA$7)),0)","v":0},{"$f":"IF(A209<='S3-Short'!$C$7,$AD$6*EXP($AD$7*('S3-Short'!C$7-'Growth-Model-3'!A209)),0)","v":0},196.79440557341832,4.859121125269588E-2,0,13.580865810479755,0,{"$f":"M209/'S3-Short'!$C$17","v":0},{"$error":"#N/A"},{"$error":"#N/A"},{"$f":"_xlfn.XLOOKUP(B209,FeedTables!$C$17:$T$17,FeedTables!$C$31:$T$31,,-1)","v":{"$error":"#N/A"}},{"$f":"_xlfn.XLOOKUP(Q209,FeedPrice[Feed],FeedPrice[Price per kg],\"Unknown\",0)*O209","v":{"$error":"#N/A"}},{"$error":"#N/A"},{"$f":"_xlfn.XLOOKUP(O209,LabourFromFeed[Feed Quantity (kg)],LabourFromFeed[No. Labour],\"Out of range\",-1)","v":{"$error":"#N/A"}},{"$f":"T209*OperatingCosts!$C$9","v":{"$error":"#N/A"}},{"$error":"#N/A"}]
[208,{"$f":"IF(A210<='S3-Short'!$C$7, B209*EXP((LN((E209/100)+1))*1),)","v":0},{"$f":"_xlfn.XLOOKUP($B210,FeedTables!$C$42:$T$42,FeedTables!$C$44:$T$44,,-1)","v":{"$error":"#N/A"}},{"$f":"_xlfn.XLOOKUP($B210,FeedTables!$C$42:$T$42,FeedTables!$C$45:$T$45,,-1)","v":{"$error":"#N/A"}},{"$f":"_xlfn.XLOOKUP($B210,FeedTables!$C$42:$T$42,FeedTables!$C$46:$T$46,,-1)*_xlfn.XLOOKUP(N209,DensityMultiplier[Biomass kg/m3],DensityMultiplier[Multiplier],,-1)","v":{"$error":"#N/A"}},3853.2055944265799,{"$f":"IF(A210<='S3-Short'!$C$7,('Growth-Model-3'!G209*EXP($AA$7)),0)","v":0},{"$f":"IF(A210<='S3-Short'!$C$7,$AD$6*EXP($AD$7*('S3-Short'!C$7-'Growth-Model-3'!A210)),0)","v":0},196.79440557341832,4.859121125269588E-2,0,13.580865810479755,0,{"$f":"M210/'S3-Short'!$C$17","v":0},{"$error":"#N/A"},{"$error":"#N/A"},{"$f":"_xlfn.XLOOKUP(B210,FeedTables!$C$17:$T$17,FeedTables!$C$31:$T$31,,-1)","v":{"$error":"#N/A"}},{"$f":"_xlfn.XLOOKUP(Q210,FeedPrice[Feed],FeedPrice[Price per kg],\"Unknown\",0)*O210","v":{"$error":"#N/A"}},{"$error":"#N/A"},{"$f":"_xlfn.XLOOKUP(O210,LabourFromFeed[Feed Quantity (kg)],LabourFromFeed[No. Labour],\"Out of range\",-1)","v":{"$error":"#N/A"}},{"$f":"T210*OperatingCosts!$C$9","v":{"$error":"#N/A"}},{"$error":"#N/A"}]
[209,{"$f":"IF(A211<='S3-Short'!$C$7, B210*EXP((LN((E210/100)+1))*1),)","v":0},{"$f":"_xlfn.XLOOKUP($B211,FeedTables!$C$42:$T$42,FeedTables!$C$44:$T$44,,-1)","v":{"$error":"#N/A"}},{"$f":"_xlfn.XLOOKUP($B211,FeedTables!$C$42:$T$42,FeedTables!$C$45:$T$45,,-1)","v":{"$error":"#N/A"}},{"$f":"_xlfn.XLOOKUP($B211,FeedTables!$C$42:$T$42,FeedTables!$C$46:$T$46,,-1)*_xlfn.XLOOKUP(N210,DensityMultiplier[Biomass kg/m3],DensityMultiplier[Multiplier],,-1)","v":{"$error":"#N/A"}},3853.2055944265799,{"$f":"IF(A211<='S3-Short'!$C$7,('Growth-Model-3'!G210*EXP($AA$7)),0)","v":0},{"$f":"IF(A211<='S3-Short'!$C$7,$AD$6*EXP($AD$7*('S3-Short'!C$7-'Growth-Model-3'!A211)),0)","v":0},196.79440557341832,4.859121125269588E-2,0,13.580865810479755,0,{"$f":"M211/'S3-Short'!$C$17","v":0},{"$error":"#N/A"},{"$error":"#N/A"},{"$f":"_xlfn.XLOOKUP(B211,FeedTables!$C$17:$T$17,FeedTables!$C$31:$T$31,,-1)","v":{"$error":"#N/A"}},{"$f":"_xlfn.XLOOKUP(Q211,FeedPrice[Feed],FeedPrice[Price per kg],\"Unknown\",0)*O211","v":{"$error":"#N/A"}},{"$error":"#N/A"},{"$f":"_xlfn.XLOOKUP(O211,LabourFromFeed[Feed Quantity (kg)],LabourFromFeed[No. Labour],\"Out of range\",-1)","v":{"$error":"#N/A"}},{"$f":"T211*OperatingCosts!$C$9","v":{"$error":"#N/A"}},{"$error":"#N/A"}]
[210,{"$f":"IF(A212<='S3-Short'!$C$7, B211*EXP((LN((E211/100)+1))*1),)","v":0},{"$f":"_xlfn.XLOOKUP($B212,FeedTables!$C$42:$T$42,FeedTables!$C$44:$T$44,,-1)","v":{"$error":"#N/A"}},{"$f":"_xlfn.XLOOKUP($B212,FeedTables!$C$42:$T$42,FeedTables!$C$45:$T$45,,-1)","v":{"$error":"#N/A"}},{"$f":"_xlfn.XLOOKUP($B212,FeedTables!$C$42:$T$42,FeedTables!$C$46:$T$46,,-1)*_xlfn.XLOOKUP(N211,DensityMultiplier[Biomass kg/m3],DensityMultiplier[Multiplier],,-1)","v":{"$error":"#N/A"}},3853.2055944265799,{"$f":"IF(A212<='S3-Short'!$C$7,('Growth-Model-3'!G211*EXP($AA$7)),0)","v":0},{"$f":"IF(A212<='S3-Short'!$C$7,$AD$6*EXP($AD$7*('S3-Short'!C$7-'Growth-Model-3'!A212)),0)","v":0},196.79440557341832,4.859121125269588E-2,0,13.580865810479755,0,{"$f":"M212/'S3-Short'!$C$17","v":0},{"$error":"#N/A"},{"$error":"#N/A"},{"$f":"_xlfn.XLOOKUP(B212,FeedTables!$C$17:$T$17,FeedTables!$C$31:$T$31,,-1)","v":{"$error":"#N/A"}},{"$f":"_xlfn.XLOOKUP(Q212,FeedPrice[Feed],FeedPrice[Price per kg],\"Unknown\",0)*O212","v":{"$error":"#N/A"}},{"$error":"#N/A"},{"$f":"_xlfn.XLOOKUP(O212,LabourFromFeed[Feed Quantity (kg)],LabourFromFeed[No. Labour],\"Out of range\",-1)","v":{"$error":"#N/A"}},{"$f":"T212*OperatingCosts!$C$9","v":{"$error":"#N/A"}},{"$error":"#N/A"}]
[211,{"$f":"IF(A213<='S3-Short'!$C$7, B212*EXP((LN((E212/100)+1))*1),)","v":0},{"$f":"_xlfn.XLOOKUP($B213,FeedTables!$C$42:$T$42,FeedTables!$C$44:$T$44,,-1)","v":{"$error":"#N/A"}},{"$f":"_xlfn.XLOOKUP($B213,FeedTables!$C$42:$T$42,FeedTables!$C$45:$T$45,,-1)","v":{"$error":"#N/A"}},{"$f":"_xlfn.XLOOKUP($B213,FeedTables!$C$42:$T$42,FeedTables!$C$46:$T$46,,-1)*_xlfn.XLOOKUP(N212,DensityMultiplier[Biomass kg/m3],DensityMultiplier[Multiplier],,-1)","v":{"$error":"#N/A"}},3853.2055944265799,{"$f":"IF(A213<='S3-Short'!$C$7,('Growth-Model-3'!G212*EXP($AA$7)),0)","v":0},{"$f":"IF(A213<='S3-Short'!$C$7,$AD$6*EXP($AD$7*('S3-Short'!C$7-'Growth-Model-3'!A213)),0)","v":0},196.79440557341832,4.859121125269588E-2,0,13.580865810479755,0,{"$f":"M213/'S3-Short'!$C$17","v":0},{"$error":"#N/A"},{"$error":"#N/A"},{"$f":"_xlfn.XLOOKUP(B213,FeedTables!$C$17:$T$17,FeedTables!$C$31:$T$31,,-1)","v":{"$error":"#N/A"}},{"$f":"_xlfn.XLOOKUP(Q213,FeedPrice[Feed],FeedPrice[Price per kg],\"Unknown\",0)*O213","v":{"$error":"#N/A"}},{"$error":"#N/A"},{"$f":"_xlfn.XLOOKUP(O213,LabourFromFeed[Feed Quantity (kg)],LabourFromFeed[No. Labour],\"Out of range\",-1)","v":{"$error":"#N/A"}},{"$f":"T213*OperatingCosts!$C$9","v":{"$error":"#N/A"}},{"$error":"#N/A"}]
[212,{"$f":"IF(A214<='S3-Short'!$C$7, B213*EXP((LN((E213/100)+1))*1),)","v":0},{"$f":"_xlfn.XLOOKUP($B214,FeedTables!$C$42:$T$42,FeedTables!$C$44:$T$44,,-1)","v":{"$error":"#N/A"}},{"$f":"_xlfn.XLOOKUP($B214,FeedTables!$C$42:$T$42,FeedTables!$C$45:$T$45,,-1)","v":{"$error":"#N/A"}},{"$f":"_xlfn.XLOOKUP($B214,FeedTables!$C$42:$T$42,FeedTables!$C$46:$T$46,,-1)*_xlfn.XLOOKUP(N213,DensityMultiplier[Biomass kg/m3],DensityMultiplier[Multiplier],,-1)","v":{"$error":"#N/A"}},3853.2055944265799,{"$f":"IF(A214<='S3-Short'!$C$7,('Growth-Model-3'!G213*EXP($AA$7)),0)","v":0},{"$f":"IF(A214<='S3-Short'!$C$7,$AD$6*EXP($AD$7*('S3-Short'!C$7-'Growth-Model-3'!A214)),0)","v":0},196.79440557341832,4.859121125269588E-2,0,13.580865810479755,0,{"$f":"M214/'S3-Short'!$C$17","v":0},{"$error":"#N/A"},{"$error":"#N/A"},{"$f":"_xlfn.XLOOKUP(B214,FeedTables!$C$17:$T$17,FeedTables!$C$31:$T$31,,-1)","v":{"$error":"#N/A"}},{"$f":"_xlfn.XLOOKUP(Q214,FeedPrice[Feed],FeedPrice[Price per kg],\"Unknown\",0)*O214","v":{"$error":"#N/A"}},{"$error":"#N/A"},{"$f":"_xlfn.XLOOKUP(O214,LabourFromFeed[Feed Quantity (kg)],LabourFromFeed[No. Labour],\"Out of range\",-1)","v":{"$error":"#N/A"}},{"$f":"T214*OperatingCosts!$C$9","v":{"$error":"#N/A"}},{"$error":"#N/A"}]
[213,{"$f":"IF(A215<='S3-Short'!$C$7, B214*EXP((LN((E214/100)+1))*1),)","v":0},{"$f":"_xlfn.XLOOKUP($B215,FeedTables!$C$42:$T$42,FeedTables!$C$44:$T$44,,-1)","v":{"$error":"#N/A"}},{"$f":"_xlfn.XLOOKUP($B215,FeedTables!$C$42:$T$42,FeedTables!$C$45:$T$45,,-1)","v":{"$error":"#N/A"}},{"$f":"_xlfn.XLOOKUP($B215,FeedTables!$C$42:$T$42,FeedTables!$C$46:$T$46,,-1)*_xlfn.XLOOKUP(N214,DensityMultiplier[Biomass kg/m3],DensityMultiplier[Multiplier],,-1)","v":{"$error":"#N/A"}},3853.2055944265799,{"$f":"IF(A215<='S3-Short'!$C$7,('Growth-Model-3'!G214*EXP($AA$7)),0)","v":0},{"$f":"IF(A215<='S3-Short'!$C$7,$AD$6*EXP($AD$7*('S3-Short'!C$7-'Growth-Model-3'!A215)),0)","v":0},196.79440557341832,4.859121125269588E-2,0,13.580865810479755,0,{"$f":"M215/'S3-Short'!$C$17","v":0},{"$error":"#N/A"},{"$error":"#N/A"},{"$f":"_xlfn.XLOOKUP(B215,FeedTables!$C$17:$T$17,FeedTables!$C$31:$T$31,,-1)","v":{"$error":"#N/A"}},{"$f":"_xlfn.XLOOKUP(Q215,FeedPrice[Feed],FeedPrice[Price per kg],\"Unknown\",0)*O215","v":{"$error":"#N/A"}},{"$error":"#N/A"},{"$f":"_xlfn.XLOOKUP(O215,LabourFromFeed[Feed Quantity (kg)],LabourFromFeed[No. Labour],\"Out of range\",-1)","v":{"$error":"#N/A"}},{"$f":"T215*OperatingCosts!$C$9","v":{"$error":"#N/A"}},{"$error":"#N/A"}]
[214,{"$f":"IF(A216<='S3-Short'!$C$7, B215*EXP((LN((E215/100)+1))*1),)","v":0},{"$f":"_xlfn.XLOOKUP($B216,FeedTables!$C$42:$T$42,FeedTables!$C$44:$T$44,,-1)","v":{"$error":"#N/A"}},{"$f":"_xlfn.XLOOKUP($B216,FeedTables!$C$42:$T$42,FeedTables!$C$45:$T$45,,-1)","v":{"$error":"#N/A"}},{"$f":"_xlfn.XLOOKUP($B216,FeedTables!$C$42:$T$42,FeedTables!$C$46:$T$46,,-1)*_xlfn.XLOOKUP(N215,DensityMultiplier[Biomass kg/m3],DensityMultiplier[Multiplier],,-1)","v":{"$error":"#N/A"}},3853.2055944265799,{"$f":"IF(A216<='S3-Short'!$C$7,('Growth-Model-3'!G215*EXP($AA$7)),0)","v":0},{"$f":"IF(A216<='S3-Short'!$C$7,$AD$6*EXP($AD$7*('S3-Short'!C$7-'Growth-Model-3'!A216)),0)","v":0},196.79440557341832,4.859121125269588E-2,0,13.580865810479755,0,{"$f":"M216/'S3-Short'!$C$17","v":0},{"$error":"#N/A"},{"$error":"#N/A"},{"$f":"_xlfn.XLOOKUP(B216,FeedTables!$C$17:$T$17,FeedTables!$C$31:$T$31,,-1)","v":{"$error":"#N/A"}},{"$f":"_xlfn.XLOOKUP(Q216,FeedPrice[Feed],FeedPrice[Price per kg],\"Unknown\",0)*O216","v":{"$error":"#N/A"}},{"$error":"#N/A"},{"$f":"_xlfn.XLOOKUP(O216,LabourFromFeed[Feed Quantity (kg)],LabourFromFeed[No. Labour],\"Out of range\",-1)","v":{"$error":"#N/A"}},{"$f":"T216*OperatingCosts!$C$9","v":{"$error":"#N/A"}},{"$error":"#N/A"}]
[215,{"$f":"IF(A217<='S3-Short'!$C$7, B216*EXP((LN((E216/100)+1))*1),)","v":0},{"$f":"_xlfn.XLOOKUP($B217,FeedTables!$C$42:$T$42,FeedTables!$C$44:$T$44,,-1)","v":{"$error":"#N/A"}},{"$f":"_xlfn.XLOOKUP($B217,FeedTables!$C$42:$T$42,FeedTables!$C$45:$T$45,,-1)","v":{"$error":"#N/A"}},{"$f":"_xlfn.XLOOKUP($B217,FeedTables!$C$42:$T$42,FeedTables!$C$46:$T$46,,-1)*_xlfn.XLOOKUP(N216,DensityMultiplier[Biomass kg/m3],DensityMultiplier[Multiplier],,-1)","v":{"$error":"#N/A"}},3853.2055944265799,{"$f":"IF(A217<='S3-Short'!$C$7,('Growth-Model-3'!G216*EXP($AA$7)),0)","v":0},{"$f":"IF(A217<='S3-Short'!$C$7,$AD$6*EXP($AD$7*('S3-Short'!C$7-'Growth-Model-3'!A217)),0)","v":0},196.79440557341832,4.859121125269588E-2,0,13.580865810479755,0,{"$f":"M217/'S3-Short'!$C$17","v":0},{"$error":"#N/A"},{"$error":"#N/A"},{"$f":"_xlfn.XLOOKUP(B217,FeedTables!$C$17:$T$17,FeedTables!$C$31:$T$31,,-1)","v":{"$error":"#N/A"}},{"$f":"_xlfn.XLOOKUP(Q217,FeedPrice[Feed],FeedPrice[Price per kg],\"Unknown\",0)*O217","v":{"$error":"#N/A"}},{"$error":"#N/A"},{"$f":"_xlfn.XLOOKUP(O217,LabourFromFeed[Feed Quantity (kg)],LabourFromFeed[No. Labour],\"Out of range\",-1)","v":{"$error":"#N/A"}},{"$f":"T217*OperatingCosts!$C$9","v":{"$error":"#N/A"}},{"$error":"#N/A"}]
[216,{"$f":"IF(A218<='S3-Short'!$C$7, B217*EXP((LN((E217/100)+1))*1),)","v":0},{"$f":"_xlfn.XLOOKUP($B218,FeedTables!$C$42:$T$42,FeedTables!$C$44:$T$44,,-1)","v":{"$error":"#N/A"}},{"$f":"_xlfn.XLOOKUP($B218,FeedTables!$C$42:$T$42,FeedTables!$C$45:$T$45,,-1)","v":{"$error":"#N/A"}},{"$f":"_xlfn.XLOOKUP($B218,FeedTables!$C$42:$T$42,FeedTables!$C$46:$T$46,,-1)*_xlfn.XLOOKUP(N217,DensityMultiplier[Biomass kg/m3],DensityMultiplier[Multiplier],,-1)","v":{"$error":"#N/A"}},3853.2055944265799,{"$f":"IF(A218<='S3-Short'!$C$7,('Growth-Model-3'!G217*EXP($AA$7)),0)","v":0},{"$f":"IF(A218<='S3-Short'!$C$7,$AD$6*EXP($AD$7*('S3-Short'!C$7-'Growth-Model-3'!A218)),0)","v":0},196.79440557341832,4.859121125269588E-2,0,13.580865810479755,0,{"$f":"M218/'S3-Short'!$C$17","v":0},{"$error":"#N/A"},{"$error":"#N/A"},{"$f":"_xlfn.XLOOKUP(B218,FeedTables!$C$17:$T$17,FeedTables!$C$31:$T$31,,-1)","v":{"$error":"#N/A"}},{"$f":"_xlfn.XLOOKUP(Q218,FeedPrice[Feed],FeedPrice[Price per kg],\"Unknown\",0)*O218","v":{"$error":"#N/A"}},{"$error":"#N/A"},{"$f":"_xlfn.XLOOKUP(O218,LabourFromFeed[Feed Quantity (kg)],LabourFromFeed[No. Labour],\"Out of range\",-1)","v":{"$error":"#N/A"}},{"$f":"T218*OperatingCosts!$C$9","v":{"$error":"#N/A"}},{"$error":"#N/A"}]
[217,{"$f":"IF(A219<='S3-Short'!$C$7, B218*EXP((LN((E218/100)+1))*1),)","v":0},{"$f":"_xlfn.XLOOKUP($B219,FeedTables!$C$42:$T$42,FeedTables!$C$44:$T$44,,-1)","v":{"$error":"#N/A"}},{"$f":"_xlfn.XLOOKUP($B219,FeedTables!$C$42:$T$42,FeedTables!$C$45:$T$45,,-1)","v":{"$error":"#N/A"}},{"$f":"_xlfn.XLOOKUP($B219,FeedTables!$C$42:$T$42,FeedTables!$C$46:$T$46,,-1)*_xlfn.XLOOKUP(N218,DensityMultiplier[Biomass kg/m3],DensityMultiplier[Multiplier],,-1)","v":{"$error":"#N/A"}},3853.2055944265799,{"$f":"IF(A219<='S3-Short'!$C$7,('Growth-Model-3'!G218*EXP($AA$7)),0)","v":0},{"$f":"IF(A219<='S3-Short'!$C$7,$AD$6*EXP($AD$7*('S3-Short'!C$7-'Growth-Model-3'!A219)),0)","v":0},196.79440557341832,4.859121125269588E-2,0,13.580865810479755,0,{"$f":"M219/'S3-Short'!$C$17","v":0},{"$error":"#N/A"},{"$error":"#N/A"},{"$f":"_xlfn.XLOOKUP(B219,FeedTables!$C$17:$T$17,FeedTables!$C$31:$T$31,,-1)","v":{"$error":"#N/A"}},{"$f":"_xlfn.XLOOKUP(Q219,FeedPrice[Feed],FeedPrice[Price per kg],\"Unknown\",0)*O219","v":{"$error":"#N/A"}},{"$error":"#N/A"},{"$f":"_xlfn.XLOOKUP(O219,LabourFromFeed[Feed Quantity (kg)],LabourFromFeed[No. Labour],\"Out of range\",-1)","v":{"$error":"#N/A"}},{"$f":"T219*OperatingCosts!$C$9","v":{"$error":"#N/A"}},{"$error":"#N/A"}]
[218,{"$f":"IF(A220<='S3-Short'!$C$7, B219*EXP((LN((E219/100)+1))*1),)","v":0},{"$f":"_xlfn.XLOOKUP($B220,FeedTables!$C$42:$T$42,FeedTables!$C$44:$T$44,,-1)","v":{"$error":"#N/A"}},{"$f":"_xlfn.XLOOKUP($B220,FeedTables!$C$42:$T$42,FeedTables!$C$45:$T$45,,-1)","v":{"$error":"#N/A"}},{"$f":"_xlfn.XLOOKUP($B220,FeedTables!$C$42:$T$42,FeedTables!$C$46:$T$46,,-1)*_xlfn.XLOOKUP(N219,DensityMultiplier[Biomass kg/m3],DensityMultiplier[Multiplier],,-1)","v":{"$error":"#N/A"}},3853.2055944265799,{"$f":"IF(A220<='S3-Short'!$C$7,('Growth-Model-3'!G219*EXP($AA$7)),0)","v":0},{"$f":"IF(A220<='S3-Short'!$C$7,$AD$6*EXP($AD$7*('S3-Short'!C$7-'Growth-Model-3'!A220)),0)","v":0},196.79440557341832,4.859121125269588E-2,0,13.580865810479755,0,{"$f":"M220/'S3-Short'!$C$17","v":0},{"$error":"#N/A"},{"$error":"#N/A"},{"$f":"_xlfn.XLOOKUP(B220,FeedTables!$C$17:$T$17,FeedTables!$C$31:$T$31,,-1)","v":{"$error":"#N/A"}},{"$f":"_xlfn.XLOOKUP(Q220,FeedPrice[Feed],FeedPrice[Price per kg],\"Unknown\",0)*O220","v":{"$error":"#N/A"}},{"$error":"#N/A"},{"$f":"_xlfn.XLOOKUP(O220,LabourFromFeed[Feed Quantity (kg)],LabourFromFeed[No. Labour],\"Out of range\",-1)","v":{"$error":"#N/A"}},{"$f":"T220*OperatingCosts!$C$9","v":{"$error":"#N/A"}},{"$error":"#N/A"}]
[219,{"$f":"IF(A221<='S3-Short'!$C$7, B220*EXP((LN((E220/100)+1))*1),)","v":0},{"$f":"_xlfn.XLOOKUP($B221,FeedTables!$C$42:$T$42,FeedTables!$C$44:$T$44,,-1)","v":{"$error":"#N/A"}},{"$f":"_xlfn.XLOOKUP($B221,FeedTables!$C$42:$T$42,FeedTables!$C$45:$T$45,,-1)","v":{"$error":"#N/A"}},{"$f":"_xlfn.XLOOKUP($B221,FeedTables!$C$42:$T$42,FeedTables!$C$46:$T$46,,-1)*_xlfn.XLOOKUP(N220,DensityMultiplier[Biomass kg/m3],DensityMultiplier[Multiplier],,-1)","v":{"$error":"#N/A"}},3853.2055944265799,{"$f":"IF(A221<='S3-Short'!$C$7,('Growth-Model-3'!G220*EXP($AA$7)),0)","v":0},{"$f":"IF(A221<='S3-Short'!$C$7,$AD$6*EXP($AD$7*('S3-Short'!C$7-'Growth-Model-3'!A221)),0)","v":0},196.79440557341832,4.859121125269588E-2,0,13.580865810479755,0,{"$f":"M221/'S3-Short'!$C$17","v":0},{"$error":"#N/A"},{"$error":"#N/A"},{"$f":"_xlfn.XLOOKUP(B221,FeedTables!$C$17:$T$17,FeedTables!$C$31:$T$31,,-1)","v":{"$error":"#N/A"}},{"$f":"_xlfn.XLOOKUP(Q221,FeedPrice[Feed],FeedPrice[Price per kg],\"Unknown\",0)*O221","v":{"$error":"#N/A"}},{"$error":"#N/A"},{"$f":"_xlfn.XLOOKUP(O221,LabourFromFeed[Feed Quantity (kg)],LabourFromFeed[No. Labour],\"Out of range\",-1)","v":{"$error":"#N/A"}},{"$f":"T221*OperatingCosts!$C$9","v":{"$error":"#N/A"}},{"$error":"#N/A"}]
[220,{"$f":"IF(A222<='S3-Short'!$C$7, B221*EXP((LN((E221/100)+1))*1),)","v":0},{"$f":"_xlfn.XLOOKUP($B222,FeedTables!$C$42:$T$42,FeedTables!$C$44:$T$44,,-1)","v":{"$error":"#N/A"}},{"$f":"_xlfn.XLOOKUP($B222,FeedTables!$C$42:$T$42,FeedTables!$C$45:$T$45,,-1)","v":{"$error":"#N/A"}},{"$f":"_xlfn.XLOOKUP($B222,FeedTables!$C$42:$T$42,FeedTables!$C$46:$T$46,,-1)*_xlfn.XLOOKUP(N221,DensityMultiplier[Biomass kg/m3],DensityMultiplier[Multiplier],,-1)","v":{"$error":"#N/A"}},3853.2055944265799,{"$f":"IF(A222<='S3-Short'!$C$7,('Growth-Model-3'!G221*EXP($AA$7)),0)","v":0},{"$f":"IF(A222<='S3-Short'!$C$7,$AD$6*EXP($AD$7*('S3-Short'!C$7-'Growth-Model-3'!A222)),0)","v":0},196.79440557341832,4.859121125269588E-2,0,13.580865810479755,0,{"$f":"M222/'S3-Short'!$C$17","v":0},{"$error":"#N/A"},{"$error":"#N/A"},{"$f":"_xlfn.XLOOKUP(B222,FeedTables!$C$17:$T$17,FeedTables!$C$31:$T$31,,-1)","v":{"$error":"#N/A"}},{"$f":"_xlfn.XLOOKUP(Q222,FeedPrice[Feed],FeedPrice[Price per kg],\"Unknown\",0)*O222","v":{"$error":"#N/A"}},{"$error":"#N/A"},{"$f":"_xlfn.XLOOKUP(O222,LabourFromFeed[Feed Quantity (kg)],LabourFromFeed[No. Labour],\"Out of range\",-1)","v":{"$error":"#N/A"}},{"$f":"T222*OperatingCosts!$C$9","v":{"$error":"#N/A"}},{"$error":"#N/A"}]
[221,{"$f":"IF(A223<='S3-Short'!$C$7, B222*EXP((LN((E222/100)+1))*1),)","v":0},{"$f":"_xlfn.XLOOKUP($B223,FeedTables!$C$42:$T$42,FeedTables!$C$44:$T$44,,-1)","v":{"$error":"#N/A"}},{"$f":"_xlfn.XLOOKUP($B223,FeedTables!$C$42:$T$42,FeedTables!$C$45:$T$45,,-1)","v":{"$error":"#N/A"}},{"$f":"_xlfn.XLOOKUP($B223,FeedTables!$C$42:$T$42,FeedTables!$C$46:$T$46,,-1)*_xlfn.XLOOKUP(N222,DensityMultiplier[Biomass kg/m3],DensityMultiplier[Multiplier],,-1)","v":{"$error":"#N/A"}},3853.2055944265799,{"$f":"IF(A223<='S3-Short'!$C$7,('Growth-Model-3'!G222*EXP($AA$7)),0)","v":0},{"$f":"IF(A223<='S3-Short'!$C$7,$AD$6*EXP($AD$7*('S3-Short'!C$7-'Growth-Model-3'!A223)),0)","v":0},196.79440557341832,4.859121125269588E-2,0,13.580865810479755,0,{"$f":"M223/'S3-Short'!$C$17","v":0},{"$error":"#N/A"},{"$error":"#N/A"},{"$f":"_xlfn.XLOOKUP(B223,FeedTables!$C$17:$T$17,FeedTables!$C$31:$T$31,,-1)","v":{"$error":"#N/A"}},{"$f":"_xlfn.XLOOKUP(Q223,FeedPrice[Feed],FeedPrice[Price per kg],\"Unknown\",0)*O223","v":{"$error":"#N/A"}},{"$error":"#N/A"},{"$f":"_xlfn.XLOOKUP(O223,LabourFromFeed[Feed Quantity (kg)],LabourFromFeed[No. Labour],\"Out of range\",-1)","v":{"$error":"#N/A"}},{"$f":"T223*OperatingCosts!$C$9","v":{"$error":"#N/A"}},{"$error":"#N/A"}]
[222,{"$f":"IF(A224<='S3-Short'!$C$7, B223*EXP((LN((E223/100)+1))*1),)","v":0},{"$f":"_xlfn.XLOOKUP($B224,FeedTables!$C$42:$T$42,FeedTables!$C$44:$T$44,,-1)","v":{"$error":"#N/A"}},{"$f":"_xlfn.XLOOKUP($B224,FeedTables!$C$42:$T$42,FeedTables!$C$45:$T$45,,-1)","v":{"$error":"#N/A"}},{"$f":"_xlfn.XLOOKUP($B224,FeedTables!$C$42:$T$42,FeedTables!$C$46:$T$46,,-1)*_xlfn.XLOOKUP(N223,DensityMultiplier[Biomass kg/m3],DensityMultiplier[Multiplier],,-1)","v":{"$error":"#N/A"}},3853.2055944265799,{"$f":"IF(A224<='S3-Short'!$C$7,('Growth-Model-3'!G223*EXP($AA$7)),0)","v":0},{"$f":"IF(A224<='S3-Short'!$C$7,$AD$6*EXP($AD$7*('S3-Short'!C$7-'Growth-Model-3'!A224)),0)","v":0},196.79440557341832,4.859121125269588E-2,0,13.580865810479755,0,{"$f":"M224/'S3-Short'!$C$17","v":0},{"$error":"#N/A"},{"$error":"#N/A"},{"$f":"_xlfn.XLOOKUP(B224,FeedTables!$C$17:$T$17,FeedTables!$C$31:$T$31,,-1)","v":{"$error":"#N/A"}},{"$f":"_xlfn.XLOOKUP(Q224,FeedPrice[Feed],FeedPrice[Price per kg],\"Unknown\",0)*O224","v":{"$error":"#N/A"}},{"$error":"#N/A"},{"$f":"_xlfn.XLOOKUP(O224,LabourFromFeed[Feed Quantity (kg)],LabourFromFeed[No. Labour],\"Out of range\",-1)","v":{"$error":"#N/A"}},{"$f":"T224*OperatingCosts!$C$9","v":{"$error":"#N/A"}},{"$error":"#N/A"}]
[223,{"$f":"IF(A225<='S3-Short'!$C$7, B224*EXP((LN((E224/100)+1))*1),)","v":0},{"$f":"_xlfn.XLOOKUP($B225,FeedTables!$C$42:$T$42,FeedTables!$C$44:$T$44,,-1)","v":{"$error":"#N/A"}},{"$f":"_xlfn.XLOOKUP($B225,FeedTables!$C$42:$T$42,FeedTables!$C$45:$T$45,,-1)","v":{"$error":"#N/A"}},{"$f":"_xlfn.XLOOKUP($B225,FeedTables!$C$42:$T$42,FeedTables!$C$46:$T$46,,-1)*_xlfn.XLOOKUP(N224,DensityMultiplier[Biomass kg/m3],DensityMultiplier[Multiplier],,-1)","v":{"$error":"#N/A"}},3853.2055944265799,{"$f":"IF(A225<='S3-Short'!$C$7,('Growth-Model-3'!G224*EXP($AA$7)),0)","v":0},{"$f":"IF(A225<='S3-Short'!$C$7,$AD$6*EXP($AD$7*('S3-Short'!C$7-'Growth-Model-3'!A225)),0)","v":0},196.79440557341832,4.859121125269588E-2,0,13.580865810479755,0,{"$f":"M225/'S3-Short'!$C$17","v":0},{"$error":"#N/A"},{"$error":"#N/A"},{"$f":"_xlfn.XLOOKUP(B225,FeedTables!$C$17:$T$17,FeedTables!$C$31:$T$31,,-1)","v":{"$error":"#N/A"}},{"$f":"_xlfn.XLOOKUP(Q225,FeedPrice[Feed],FeedPrice[Price per kg],\"Unknown\",0)*O225","v":{"$error":"#N/A"}},{"$error":"#N/A"},{"$f":"_xlfn.XLOOKUP(O225,LabourFromFeed[Feed Quantity (kg)],LabourFromFeed[No. Labour],\"Out of range\",-1)","v":{"$error":"#N/A"}},{"$f":"T225*OperatingCosts!$C$9","v":{"$error":"#N/A"}},{"$error":"#N/A"}]
[224,{"$f":"IF(A226<='S3-Short'!$C$7, B225*EXP((LN((E225/100)+1))*1),)","v":0},{"$f":"_xlfn.XLOOKUP($B226,FeedTables!$C$42:$T$42,FeedTables!$C$44:$T$44,,-1)","v":{"$error":"#N/A"}},{"$f":"_xlfn.XLOOKUP($B226,FeedTables!$C$42:$T$42,FeedTables!$C$45:$T$45,,-1)","v":{"$error":"#N/A"}},{"$f":"_xlfn.XLOOKUP($B226,FeedTables!$C$42:$T$42,FeedTables!$C$46:$T$46,,-1)*_xlfn.XLOOKUP(N225,DensityMultiplier[Biomass kg/m3],DensityMultiplier[Multiplier],,-1)","v":{"$error":"#N/A"}},3853.2055944265799,{"$f":"IF(A226<='S3-Short'!$C$7,('Growth-Model-3'!G225*EXP($AA$7)),0)","v":0},{"$f":"IF(A226<='S3-Short'!$C$7,$AD$6*EXP($AD$7*('S3-Short'!C$7-'Growth-Model-3'!A226)),0)","v":0},196.79440557341832,4.859121125269588E-2,0,13.580865810479755,0,{"$f":"M226/'S3-Short'!$C$17","v":0},{"$error":"#N/A"},{"$error":"#N/A"},{"$f":"_xlfn.XLOOKUP(B226,FeedTables!$C$17:$T$17,FeedTables!$C$31:$T$31,,-1)","v":{"$error":"#N/A"}},{"$f":"_xlfn.XLOOKUP(Q226,FeedPrice[Feed],FeedPrice[Price per kg],\"Unknown\",0)*O226","v":{"$error":"#N/A"}},{"$error":"#N/A"},{"$f":"_xlfn.XLOOKUP(O226,LabourFromFeed[Feed Quantity (kg)],LabourFromFeed[No. Labour],\"Out of range\",-1)","v":{"$error":"#N/A"}},{"$f":"T226*OperatingCosts!$C$9","v":{"$error":"#N/A"}},{"$error":"#N/A"}]
[225,{"$f":"IF(A227<='S3-Short'!$C$7, B226*EXP((LN((E226/100)+1))*1),)","v":0},{"$f":"_xlfn.XLOOKUP($B227,FeedTables!$C$42:$T$42,FeedTables!$C$44:$T$44,,-1)","v":{"$error":"#N/A"}},{"$f":"_xlfn.XLOOKUP($B227,FeedTables!$C$42:$T$42,FeedTables!$C$45:$T$45,,-1)","v":{"$error":"#N/A"}},{"$f":"_xlfn.XLOOKUP($B227,FeedTables!$C$42:$T$42,FeedTables!$C$46:$T$46,,-1)*_xlfn.XLOOKUP(N226,DensityMultiplier[Biomass kg/m3],DensityMultiplier[Multiplier],,-1)","v":{"$error":"#N/A"}},3853.2055944265799,{"$f":"IF(A227<='S3-Short'!$C$7,('Growth-Model-3'!G226*EXP($AA$7)),0)","v":0},{"$f":"IF(A227<='S3-Short'!$C$7,$AD$6*EXP($AD$7*('S3-Short'!C$7-'Growth-Model-3'!A227)),0)","v":0},196.79440557341832,4.859121125269588E-2,0,13.580865810479755,0,{"$f":"M227/'S3-Short'!$C$17","v":0},{"$error":"#N/A"},{"$error":"#N/A"},{"$f":"_xlfn.XLOOKUP(B227,FeedTables!$C$17:$T$17,FeedTables!$C$31:$T$31,,-1)","v":{"$error":"#N/A"}},{"$f":"_xlfn.XLOOKUP(Q227,FeedPrice[Feed],FeedPrice[Price per kg],\"Unknown\",0)*O227","v":{"$error":"#N/A"}},{"$error":"#N/A"},{"$f":"_xlfn.XLOOKUP(O227,LabourFromFeed[Feed Quantity (kg)],LabourFromFeed[No. Labour],\"Out of range\",-1)","v":{"$error":"#N/A"}},{"$f":"T227*OperatingCosts!$C$9","v":{"$error":"#N/A"}},{"$error":"#N/A"}]
[226,{"$f":"IF(A228<='S3-Short'!$C$7, B227*EXP((LN((E227/100)+1))*1),)","v":0},{"$f":"_xlfn.XLOOKUP($B228,FeedTables!$C$42:$T$42,FeedTables!$C$44:$T$44,,-1)","v":{"$error":"#N/A"}},{"$f":"_xlfn.XLOOKUP($B228,FeedTables!$C$42:$T$42,FeedTables!$C$45:$T$45,,-1)","v":{"$error":"#N/A"}},{"$f":"_xlfn.XLOOKUP($B228,FeedTables!$C$42:$T$42,FeedTables!$C$46:$T$46,,-1)*_xlfn.XLOOKUP(N227,DensityMultiplier[Biomass kg/m3],DensityMultiplier[Multiplier],,-1)","v":{"$error":"#N/A"}},3853.2055944265799,{"$f":"IF(A228<='S3-Short'!$C$7,('Growth-Model-3'!G227*EXP($AA$7)),0)","v":0},{"$f":"IF(A228<='S3-Short'!$C$7,$AD$6*EXP($AD$7*('S3-Short'!C$7-'Growth-Model-3'!A228)),0)","v":0},196.79440557341832,4.859121125269588E-2,0,13.580865810479755,0,{"$f":"M228/'S3-Short'!$C$17","v":0},{"$error":"#N/A"},{"$error":"#N/A"},{"$f":"_xlfn.XLOOKUP(B228,FeedTables!$C$17:$T$17,FeedTables!$C$31:$T$31,,-1)","v":{"$error":"#N/A"}},{"$f":"_xlfn.XLOOKUP(Q228,FeedPrice[Feed],FeedPrice[Price per kg],\"Unknown\",0)*O228","v":{"$error":"#N/A"}},{"$error":"#N/A"},{"$f":"_xlfn.XLOOKUP(O228,LabourFromFeed[Feed Quantity (kg)],LabourFromFeed[No. Labour],\"Out of range\",-1)","v":{"$error":"#N/A"}},{"$f":"T228*OperatingCosts!$C$9","v":{"$error":"#N/A"}},{"$error":"#N/A"}]
[227,{"$f":"IF(A229<='S3-Short'!$C$7, B228*EXP((LN((E228/100)+1))*1),)","v":0},{"$f":"_xlfn.XLOOKUP($B229,FeedTables!$C$42:$T$42,FeedTables!$C$44:$T$44,,-1)","v":{"$error":"#N/A"}},{"$f":"_xlfn.XLOOKUP($B229,FeedTables!$C$42:$T$42,FeedTables!$C$45:$T$45,,-1)","v":{"$error":"#N/A"}},{"$f":"_xlfn.XLOOKUP($B229,FeedTables!$C$42:$T$42,FeedTables!$C$46:$T$46,,-1)*_xlfn.XLOOKUP(N228,DensityMultiplier[Biomass kg/m3],DensityMultiplier[Multiplier],,-1)","v":{"$error":"#N/A"}},3853.2055944265799,{"$f":"IF(A229<='S3-Short'!$C$7,('Growth-Model-3'!G228*EXP($AA$7)),0)","v":0},{"$f":"IF(A229<='S3-Short'!$C$7,$AD$6*EXP($AD$7*('S3-Short'!C$7-'Growth-Model-3'!A229)),0)","v":0},196.79440557341832,4.859121125269588E-2,0,13.580865810479755,0,{"$f":"M229/'S3-Short'!$C$17","v":0},{"$error":"#N/A"},{"$error":"#N/A"},{"$f":"_xlfn.XLOOKUP(B229,FeedTables!$C$17:$T$17,FeedTables!$C$31:$T$31,,-1)","v":{"$error":"#N/A"}},{"$f":"_xlfn.XLOOKUP(Q229,FeedPrice[Feed],FeedPrice[Price per kg],\"Unknown\",0)*O229","v":{"$error":"#N/A"}},{"$error":"#N/A"},{"$f":"_xlfn.XLOOKUP(O229,LabourFromFeed[Feed Quantity (kg)],LabourFromFeed[No. Labour],\"Out of range\",-1)","v":{"$error":"#N/A"}},{"$f":"T229*OperatingCosts!$C$9","v":{"$error":"#N/A"}},{"$error":"#N/A"}]
[228,{"$f":"IF(A230<='S3-Short'!$C$7, B229*EXP((LN((E229/100)+1))*1),)","v":0},{"$f":"_xlfn.XLOOKUP($B230,FeedTables!$C$42:$T$42,FeedTables!$C$44:$T$44,,-1)","v":{"$error":"#N/A"}},{"$f":"_xlfn.XLOOKUP($B230,FeedTables!$C$42:$T$42,FeedTables!$C$45:$T$45,,-1)","v":{"$error":"#N/A"}},{"$f":"_xlfn.XLOOKUP($B230,FeedTables!$C$42:$T$42,FeedTables!$C$46:$T$46,,-1)*_xlfn.XLOOKUP(N229,DensityMultiplier[Biomass kg/m3],DensityMultiplier[Multiplier],,-1)","v":{"$error":"#N/A"}},3853.2055944265799,{"$f":"IF(A230<='S3-Short'!$C$7,('Growth-Model-3'!G229*EXP($AA$7)),0)","v":0},{"$f":"IF(A230<='S3-Short'!$C$7,$AD$6*EXP($AD$7*('S3-Short'!C$7-'Growth-Model-3'!A230)),0)","v":0},196.79440557341832,4.859121125269588E-2,0,13.580865810479755,0,{"$f":"M230/'S3-Short'!$C$17","v":0},{"$error":"#N/A"},{"$error":"#N/A"},{"$f":"_xlfn.XLOOKUP(B230,FeedTables!$C$17:$T$17,FeedTables!$C$31:$T$31,,-1)","v":{"$error":"#N/A"}},{"$f":"_xlfn.XLOOKUP(Q230,FeedPrice[Feed],FeedPrice[Price per kg],\"Unknown\",0)*O230","v":{"$error":"#N/A"}},{"$error":"#N/A"},{"$f":"_xlfn.XLOOKUP(O230,LabourFromFeed[Feed Quantity (kg)],LabourFromFeed[No. Labour],\"Out of range\",-1)","v":{"$error":"#N/A"}},{"$f":"T230*OperatingCosts!$C$9","v":{"$error":"#N/A"}},{"$error":"#N/A"}]
[229,{"$f":"IF(A231<='S3-Short'!$C$7, B230*EXP((LN((E230/100)+1))*1),)","v":0},{"$f":"_xlfn.XLOOKUP($B231,FeedTables!$C$42:$T$42,FeedTables!$C$44:$T$44,,-1)","v":{"$error":"#N/A"}},{"$f":"_xlfn.XLOOKUP($B231,FeedTables!$C$42:$T$42,FeedTables!$C$45:$T$45,,-1)","v":{"$error":"#N/A"}},{"$f":"_xlfn.XLOOKUP($B231,FeedTables!$C$42:$T$42,FeedTables!$C$46:$T$46,,-1)*_xlfn.XLOOKUP(N230,DensityMultiplier[Biomass kg/m3],DensityMultiplier[Multiplier],,-1)","v":{"$error":"#N/A"}},3853.2055944265799,{"$f":"IF(A231<='S3-Short'!$C$7,('Growth-Model-3'!G230*EXP($AA$7)),0)","v":0},{"$f":"IF(A231<='S3-Short'!$C$7,$AD$6*EXP($AD$7*('S3-Short'!C$7-'Growth-Model-3'!A231)),0)","v":0},196.79440557341832,4.859121125269588E-2,0,13.580865810479755,0,{"$f":"M231/'S3-Short'!$C$17","v":0},{"$error":"#N/A"},{"$error":"#N/A"},{"$f":"_xlfn.XLOOKUP(B231,FeedTables!$C$17:$T$17,FeedTables!$C$31:$T$31,,-1)","v":{"$error":"#N/A"}},{"$f":"_xlfn.XLOOKUP(Q231,FeedPrice[Feed],FeedPrice[Price per kg],\"Unknown\",0)*O231","v":{"$error":"#N/A"}},{"$error":"#N/A"},{"$f":"_xlfn.XLOOKUP(O231,LabourFromFeed[Feed Quantity (kg)],LabourFromFeed[No. Labour],\"Out of range\",-1)","v":{"$error":"#N/A"}},{"$f":"T231*OperatingCosts!$C$9","v":{"$error":"#N/A"}},{"$error":"#N/A"}]
[230,{"$f":"IF(A232<='S3-Short'!$C$7, B231*EXP((LN((E231/100)+1))*1),)","v":0},{"$f":"_xlfn.XLOOKUP($B232,FeedTables!$C$42:$T$42,FeedTables!$C$44:$T$44,,-1)","v":{"$error":"#N/A"}},{"$f":"_xlfn.XLOOKUP($B232,FeedTables!$C$42:$T$42,FeedTables!$C$45:$T$45,,-1)","v":{"$error":"#N/A"}},{"$f":"_xlfn.XLOOKUP($B232,FeedTables!$C$42:$T$42,FeedTables!$C$46:$T$46,,-1)*_xlfn.XLOOKUP(N231,DensityMultiplier[Biomass kg/m3],DensityMultiplier[Multiplier],,-1)","v":{"$error":"#N/A"}},3853.2055944265799,{"$f":"IF(A232<='S3-Short'!$C$7,('Growth-Model-3'!G231*EXP($AA$7)),0)","v":0},{"$f":"IF(A232<='S3-Short'!$C$7,$AD$6*EXP($AD$7*('S3-Short'!C$7-'Growth-Model-3'!A232)),0)","v":0},196.79440557341832,4.859121125269588E-2,0,13.580865810479755,0,{"$f":"M232/'S3-Short'!$C$17","v":0},{"$error":"#N/A"},{"$error":"#N/A"},{"$f":"_xlfn.XLOOKUP(B232,FeedTables!$C$17:$T$17,FeedTables!$C$31:$T$31,,-1)","v":{"$error":"#N/A"}},{"$f":"_xlfn.XLOOKUP(Q232,FeedPrice[Feed],FeedPrice[Price per kg],\"Unknown\",0)*O232","v":{"$error":"#N/A"}},{"$error":"#N/A"},{"$f":"_xlfn.XLOOKUP(O232,LabourFromFeed[Feed Quantity (kg)],LabourFromFeed[No. Labour],\"Out of range\",-1)","v":{"$error":"#N/A"}},{"$f":"T232*OperatingCosts!$C$9","v":{"$error":"#N/A"}},{"$error":"#N/A"}]
[231,{"$f":"IF(A233<='S3-Short'!$C$7, B232*EXP((LN((E232/100)+1))*1),)","v":0},{"$f":"_xlfn.XLOOKUP($B233,FeedTables!$C$42:$T$42,FeedTables!$C$44:$T$44,,-1)","v":{"$error":"#N/A"}},{"$f":"_xlfn.XLOOKUP($B233,FeedTables!$C$42:$T$42,FeedTables!$C$45:$T$45,,-1)","v":{"$error":"#N/A"}},{"$f":"_xlfn.XLOOKUP($B233,FeedTables!$C$42:$T$42,FeedTables!$C$46:$T$46,,-1)*_xlfn.XLOOKUP(N232,DensityMultiplier[Biomass kg/m3],DensityMultiplier[Multiplier],,-1)","v":{"$error":"#N/A"}},3853.2055944265799,{"$f":"IF(A233<='S3-Short'!$C$7,('Growth-Model-3'!G232*EXP($AA$7)),0)","v":0},{"$f":"IF(A233<='S3-Short'!$C$7,$AD$6*EXP($AD$7*('S3-Short'!C$7-'Growth-Model-3'!A233)),0)","v":0},196.79440557341832,4.859121125269588E-2,0,13.580865810479755,0,{"$f":"M233/'S3-Short'!$C$17","v":0},{"$error":"#N/A"},{"$error":"#N/A"},{"$f":"_xlfn.XLOOKUP(B233,FeedTables!$C$17:$T$17,FeedTables!$C$31:$T$31,,-1)","v":{"$error":"#N/A"}},{"$f":"_xlfn.XLOOKUP(Q233,FeedPrice[Feed],FeedPrice[Price per kg],\"Unknown\",0)*O233","v":{"$error":"#N/A"}},{"$error":"#N/A"},{"$f":"_xlfn.XLOOKUP(O233,LabourFromFeed[Feed Quantity (kg)],LabourFromFeed[No. Labour],\"Out of range\",-1)","v":{"$error":"#N/A"}},{"$f":"T233*OperatingCosts!$C$9","v":{"$error":"#N/A"}},{"$error":"#N/A"}]
[232,{"$f":"IF(A234<='S3-Short'!$C$7, B233*EXP((LN((E233/100)+1))*1),)","v":0},{"$f":"_xlfn.XLOOKUP($B234,FeedTables!$C$42:$T$42,FeedTables!$C$44:$T$44,,-1)","v":{"$error":"#N/A"}},{"$f":"_xlfn.XLOOKUP($B234,FeedTables!$C$42:$T$42,FeedTables!$C$45:$T$45,,-1)","v":{"$error":"#N/A"}},{"$f":"_xlfn.XLOOKUP($B234,FeedTables!$C$42:$T$42,FeedTables!$C$46:$T$46,,-1)*_xlfn.XLOOKUP(N233,DensityMultiplier[Biomass kg/m3],DensityMultiplier[Multiplier],,-1)","v":{"$error":"#N/A"}},3853.2055944265799,{"$f":"IF(A234<='S3-Short'!$C$7,('Growth-Model-3'!G233*EXP($AA$7)),0)","v":0},{"$f":"IF(A234<='S3-Short'!$C$7,$AD$6*EXP($AD$7*('S3-Short'!C$7-'Growth-Model-3'!A234)),0)","v":0},196.79440557341832,4.859121125269588E-2,0,13.580865810479755,0,{"$f":"M234/'S3-Short'!$C$17","v":0},{"$error":"#N/A"},{"$error":"#N/A"},{"$f":"_xlfn.XLOOKUP(B234,FeedTables!$C$17:$T$17,FeedTables!$C$31:$T$31,,-1)","v":{"$error":"#N/A"}},{"$f":"_xlfn.XLOOKUP(Q234,FeedPrice[Feed],FeedPrice[Price per kg],\"Unknown\",0)*O234","v":{"$error":"#N/A"}},{"$error":"#N/A"},{"$f":"_xlfn.XLOOKUP(O234,LabourFromFeed[Feed Quantity (kg)],LabourFromFeed[No. Labour],\"Out of range\",-1)","v":{"$error":"#N/A"}},{"$f":"T234*OperatingCosts!$C$9","v":{"$error":"#N/A"}},{"$error":"#N/A"}]
[233,{"$f":"IF(A235<='S3-Short'!$C$7, B234*EXP((LN((E234/100)+1))*1),)","v":0},{"$f":"_xlfn.XLOOKUP($B235,FeedTables!$C$42:$T$42,FeedTables!$C$44:$T$44,,-1)","v":{"$error":"#N/A"}},{"$f":"_xlfn.XLOOKUP($B235,FeedTables!$C$42:$T$42,FeedTables!$C$45:$T$45,,-1)","v":{"$error":"#N/A"}},{"$f":"_xlfn.XLOOKUP($B235,FeedTables!$C$42:$T$42,FeedTables!$C$46:$T$46,,-1)*_xlfn.XLOOKUP(N234,DensityMultiplier[Biomass kg/m3],DensityMultiplier[Multiplier],,-1)","v":{"$error":"#N/A"}},3853.2055944265799,{"$f":"IF(A235<='S3-Short'!$C$7,('Growth-Model-3'!G234*EXP($AA$7)),0)","v":0},{"$f":"IF(A235<='S3-Short'!$C$7,$AD$6*EXP($AD$7*('S3-Short'!C$7-'Growth-Model-3'!A235)),0)","v":0},196.79440557341832,4.859121125269588E-2,0,13.580865810479755,0,{"$f":"M235/'S3-Short'!$C$17","v":0},{"$error":"#N/A"},{"$error":"#N/A"},{"$f":"_xlfn.XLOOKUP(B235,FeedTables!$C$17:$T$17,FeedTables!$C$31:$T$31,,-1)","v":{"$error":"#N/A"}},{"$f":"_xlfn.XLOOKUP(Q235,FeedPrice[Feed],FeedPrice[Price per kg],\"Unknown\",0)*O235","v":{"$error":"#N/A"}},{"$error":"#N/A"},{"$f":"_xlfn.XLOOKUP(O235,LabourFromFeed[Feed Quantity (kg)],LabourFromFeed[No. Labour],\"Out of range\",-1)","v":{"$error":"#N/A"}},{"$f":"T235*OperatingCosts!$C$9","v":{"$error":"#N/A"}},{"$error":"#N/A"}]
[234,{"$f":"IF(A236<='S3-Short'!$C$7, B235*EXP((LN((E235/100)+1))*1),)","v":0},{"$f":"_xlfn.XLOOKUP($B236,FeedTables!$C$42:$T$42,FeedTables!$C$44:$T$44,,-1)","v":{"$error":"#N/A"}},{"$f":"_xlfn.XLOOKUP($B236,FeedTables!$C$42:$T$42,FeedTables!$C$45:$T$45,,-1)","v":{"$error":"#N/A"}},{"$f":"_xlfn.XLOOKUP($B236,FeedTables!$C$42:$T$42,FeedTables!$C$46:$T$46,,-1)*_xlfn.XLOOKUP(N235,DensityMultiplier[Biomass kg/m3],DensityMultiplier[Multiplier],,-1)","v":{"$error":"#N/A"}},3853.2055944265799,{"$f":"IF(A236<='S3-Short'!$C$7,('Growth-Model-3'!G235*EXP($AA$7)),0)","v":0},{"$f":"IF(A236<='S3-Short'!$C$7,$AD$6*EXP($AD$7*('S3-Short'!C$7-'Growth-Model-3'!A236)),0)","v":0},196.79440557341832,4.859121125269588E-2,0,13.580865810479755,0,{"$f":"M236/'S3-Short'!$C$17","v":0},{"$error":"#N/A"},{"$error":"#N/A"},{"$f":"_xlfn.XLOOKUP(B236,FeedTables!$C$17:$T$17,FeedTables!$C$31:$T$31,,-1)","v":{"$error":"#N/A"}},{"$f":"_xlfn.XLOOKUP(Q236,FeedPrice[Feed],FeedPrice[Price per kg],\"Unknown\",0)*O236","v":{"$error":"#N/A"}},{"$error":"#N/A"},{"$f":"_xlfn.XLOOKUP(O236,LabourFromFeed[Feed Quantity (kg)],LabourFromFeed[No. Labour],\"Out of range\",-1)","v":{"$error":"#N/A"}},{"$f":"T236*OperatingCosts!$C$9","v":{"$error":"#N/A"}},{"$error":"#N/A"}]
[235,{"$f":"IF(A237<='S3-Short'!$C$7, B236*EXP((LN((E236/100)+1))*1),)","v":0},{"$f":"_xlfn.XLOOKUP($B237,FeedTables!$C$42:$T$42,FeedTables!$C$44:$T$44,,-1)","v":{"$error":"#N/A"}},{"$f":"_xlfn.XLOOKUP($B237,FeedTables!$C$42:$T$42,FeedTables!$C$45:$T$45,,-1)","v":{"$error":"#N/A"}},{"$f":"_xlfn.XLOOKUP($B237,FeedTables!$C$42:$T$42,FeedTables!$C$46:$T$46,,-1)*_xlfn.XLOOKUP(N236,DensityMultiplier[Biomass kg/m3],DensityMultiplier[Multiplier],,-1)","v":{"$error":"#N/A"}},3853.2055944265799,{"$f":"IF(A237<='S3-Short'!$C$7,('Growth-Model-3'!G236*EXP($AA$7)),0)","v":0},{"$f":"IF(A237<='S3-Short'!$C$7,$AD$6*EXP($AD$7*('S3-Short'!C$7-'Growth-Model-3'!A237)),0)","v":0},196.79440557341832,4.859121125269588E-2,0,13.580865810479755,0,{"$f":"M237/'S3-Short'!$C$17","v":0},{"$error":"#N/A"},{"$error":"#N/A"},{"$f":"_xlfn.XLOOKUP(B237,FeedTables!$C$17:$T$17,FeedTables!$C$31:$T$31,,-1)","v":{"$error":"#N/A"}},{"$f":"_xlfn.XLOOKUP(Q237,FeedPrice[Feed],FeedPrice[Price per kg],\"Unknown\",0)*O237","v":{"$error":"#N/A"}},{"$error":"#N/A"},{"$f":"_xlfn.XLOOKUP(O237,LabourFromFeed[Feed Quantity (kg)],LabourFromFeed[No. Labour],\"Out of range\",-1)","v":{"$error":"#N/A"}},{"$f":"T237*OperatingCosts!$C$9","v":{"$error":"#N/A"}},{"$error":"#N/A"}]
[236,{"$f":"IF(A238<='S3-Short'!$C$7, B237*EXP((LN((E237/100)+1))*1),)","v":0},{"$f":"_xlfn.XLOOKUP($B238,FeedTables!$C$42:$T$42,FeedTables!$C$44:$T$44,,-1)","v":{"$error":"#N/A"}},{"$f":"_xlfn.XLOOKUP($B238,FeedTables!$C$42:$T$42,FeedTables!$C$45:$T$45,,-1)","v":{"$error":"#N/A"}},{"$f":"_xlfn.XLOOKUP($B238,FeedTables!$C$42:$T$42,FeedTables!$C$46:$T$46,,-1)*_xlfn.XLOOKUP(N237,DensityMultiplier[Biomass kg/m3],DensityMultiplier[Multiplier],,-1)","v":{"$error":"#N/A"}},3853.2055944265799,{"$f":"IF(A238<='S3-Short'!$C$7,('Growth-Model-3'!G237*EXP($AA$7)),0)","v":0},{"$f":"IF(A238<='S3-Short'!$C$7,$AD$6*EXP($AD$7*('S3-Short'!C$7-'Growth-Model-3'!A238)),0)","v":0},196.79440557341832,4.859121125269588E-2,0,13.580865810479755,0,{"$f":"M238/'S3-Short'!$C$17","v":0},{"$error":"#N/A"},{"$error":"#N/A"},{"$f":"_xlfn.XLOOKUP(B238,FeedTables!$C$17:$T$17,FeedTables!$C$31:$T$31,,-1)","v":{"$error":"#N/A"}},{"$f":"_xlfn.XLOOKUP(Q238,FeedPrice[Feed],FeedPrice[Price per kg],\"Unknown\",0)*O238","v":{"$error":"#N/A"}},{"$error":"#N/A"},{"$f":"_xlfn.XLOOKUP(O238,LabourFromFeed[Feed Quantity (kg)],LabourFromFeed[No. Labour],\"Out of range\",-1)","v":{"$error":"#N/A"}},{"$f":"T238*OperatingCosts!$C$9","v":{"$error":"#N/A"}},{"$error":"#N/A"}]
[237,{"$f":"IF(A239<='S3-Short'!$C$7, B238*EXP((LN((E238/100)+1))*1),)","v":0},{"$f":"_xlfn.XLOOKUP($B239,FeedTables!$C$42:$T$42,FeedTables!$C$44:$T$44,,-1)","v":{"$error":"#N/A"}},{"$f":"_xlfn.XLOOKUP($B239,FeedTables!$C$42:$T$42,FeedTables!$C$45:$T$45,,-1)","v":{"$error":"#N/A"}},{"$f":"_xlfn.XLOOKUP($B239,FeedTables!$C$42:$T$42,FeedTables!$C$46:$T$46,,-1)*_xlfn.XLOOKUP(N238,DensityMultiplier[Biomass kg/m3],DensityMultiplier[Multiplier],,-1)","v":{"$error":"#N/A"}},3853.2055944265799,{"$f":"IF(A239<='S3-Short'!$C$7,('Growth-Model-3'!G238*EXP($AA$7)),0)","v":0},{"$f":"IF(A239<='S3-Short'!$C$7,$AD$6*EXP($AD$7*('S3-Short'!C$7-'Growth-Model-3'!A239)),0)","v":0},196.79440557341832,4.859121125269588E-2,0,13.580865810479755,0,{"$f":"M239/'S3-Short'!$C$17","v":0},{"$error":"#N/A"},{"$error":"#N/A"},{"$f":"_xlfn.XLOOKUP(B239,FeedTables!$C$17:$T$17,FeedTables!$C$31:$T$31,,-1)","v":{"$error":"#N/A"}},{"$f":"_xlfn.XLOOKUP(Q239,FeedPrice[Feed],FeedPrice[Price per kg],\"Unknown\",0)*O239","v":{"$error":"#N/A"}},{"$error":"#N/A"},{"$f":"_xlfn.XLOOKUP(O239,LabourFromFeed[Feed Quantity (kg)],LabourFromFeed[No. Labour],\"Out of range\",-1)","v":{"$error":"#N/A"}},{"$f":"T239*OperatingCosts!$C$9","v":{"$error":"#N/A"}},{"$error":"#N/A"}]
[238,{"$f":"IF(A240<='S3-Short'!$C$7, B239*EXP((LN((E239/100)+1))*1),)","v":0},{"$f":"_xlfn.XLOOKUP($B240,FeedTables!$C$42:$T$42,FeedTables!$C$44:$T$44,,-1)","v":{"$error":"#N/A"}},{"$f":"_xlfn.XLOOKUP($B240,FeedTables!$C$42:$T$42,FeedTables!$C$45:$T$45,,-1)","v":{"$error":"#N/A"}},{"$f":"_xlfn.XLOOKUP($B240,FeedTables!$C$42:$T$42,FeedTables!$C$46:$T$46,,-1)*_xlfn.XLOOKUP(N239,DensityMultiplier[Biomass kg/m3],DensityMultiplier[Multiplier],,-1)","v":{"$error":"#N/A"}},3853.2055944265799,{"$f":"IF(A240<='S3-Short'!$C$7,('Growth-Model-3'!G239*EXP($AA$7)),0)","v":0},{"$f":"IF(A240<='S3-Short'!$C$7,$AD$6*EXP($AD$7*('S3-Short'!C$7-'Growth-Model-3'!A240)),0)","v":0},196.79440557341832,4.859121125269588E-2,0,13.580865810479755,0,{"$f":"M240/'S3-Short'!$C$17","v":0},{"$error":"#N/A"},{"$error":"#N/A"},{"$f":"_xlfn.XLOOKUP(B240,FeedTables!$C$17:$T$17,FeedTables!$C$31:$T$31,,-1)","v":{"$error":"#N/A"}},{"$f":"_xlfn.XLOOKUP(Q240,FeedPrice[Feed],FeedPrice[Price per kg],\"Unknown\",0)*O240","v":{"$error":"#N/A"}},{"$error":"#N/A"},{"$f":"_xlfn.XLOOKUP(O240,LabourFromFeed[Feed Quantity (kg)],LabourFromFeed[No. Labour],\"Out of range\",-1)","v":{"$error":"#N/A"}},{"$f":"T240*OperatingCosts!$C$9","v":{"$error":"#N/A"}},{"$error":"#N/A"}]
[239,{"$f":"IF(A241<='S3-Short'!$C$7, B240*EXP((LN((E240/100)+1))*1),)","v":0},{"$f":"_xlfn.XLOOKUP($B241,FeedTables!$C$42:$T$42,FeedTables!$C$44:$T$44,,-1)","v":{"$error":"#N/A"}},{"$f":"_xlfn.XLOOKUP($B241,FeedTables!$C$42:$T$42,FeedTables!$C$45:$T$45,,-1)","v":{"$error":"#N/A"}},{"$f":"_xlfn.XLOOKUP($B241,FeedTables!$C$42:$T$42,FeedTables!$C$46:$T$46,,-1)*_xlfn.XLOOKUP(N240,DensityMultiplier[Biomass kg/m3],DensityMultiplier[Multiplier],,-1)","v":{"$error":"#N/A"}},3853.2055944265799,{"$f":"IF(A241<='S3-Short'!$C$7,('Growth-Model-3'!G240*EXP($AA$7)),0)","v":0},{"$f":"IF(A241<='S3-Short'!$C$7,$AD$6*EXP($AD$7*('S3-Short'!C$7-'Growth-Model-3'!A241)),0)","v":0},196.79440557341832,4.859121125269588E-2,0,13.580865810479755,0,{"$f":"M241/'S3-Short'!$C$17","v":0},{"$error":"#N/A"},{"$error":"#N/A"},{"$f":"_xlfn.XLOOKUP(B241,FeedTables!$C$17:$T$17,FeedTables!$C$31:$T$31,,-1)","v":{"$error":"#N/A"}},{"$f":"_xlfn.XLOOKUP(Q241,FeedPrice[Feed],FeedPrice[Price per kg],\"Unknown\",0)*O241","v":{"$error":"#N/A"}},{"$error":"#N/A"},{"$f":"_xlfn.XLOOKUP(O241,LabourFromFeed[Feed Quantity (kg)],LabourFromFeed[No. Labour],\"Out of range\",-1)","v":{"$error":"#N/A"}},{"$f":"T241*OperatingCosts!$C$9","v":{"$error":"#N/A"}},{"$error":"#N/A"}]
[240,{"$f":"IF(A242<='S3-Short'!$C$7, B241*EXP((LN((E241/100)+1))*1),)","v":0},{"$f":"_xlfn.XLOOKUP($B242,FeedTables!$C$42:$T$42,FeedTables!$C$44:$T$44,,-1)","v":{"$error":"#N/A"}},{"$f":"_xlfn.XLOOKUP($B242,FeedTables!$C$42:$T$42,FeedTables!$C$45:$T$45,,-1)","v":{"$error":"#N/A"}},{"$f":"_xlfn.XLOOKUP($B242,FeedTables!$C$42:$T$42,FeedTables!$C$46:$T$46,,-1)*_xlfn.XLOOKUP(N241,DensityMultiplier[Biomass kg/m3],DensityMultiplier[Multiplier],,-1)","v":{"$error":"#N/A"}},3853.2055944265799,{"$f":"IF(A242<='S3-Short'!$C$7,('Growth-Model-3'!G241*EXP($AA$7)),0)","v":0},{"$f":"IF(A242<='S3-Short'!$C$7,$AD$6*EXP($AD$7*('S3-Short'!C$7-'Growth-Model-3'!A242)),0)","v":0},196.79440557341832,4.859121125269588E-2,0,13.580865810479755,0,{"$f":"M242/'S3-Short'!$C$17","v":0},{"$error":"#N/A"},{"$error":"#N/A"},{"$f":"_xlfn.XLOOKUP(B242,FeedTables!$C$17:$T$17,FeedTables!$C$31:$T$31,,-1)","v":{"$error":"#N/A"}},{"$f":"_xlfn.XLOOKUP(Q242,FeedPrice[Feed],FeedPrice[Price per kg],\"Unknown\",0)*O242","v":{"$error":"#N/A"}},{"$error":"#N/A"},{"$f":"_xlfn.XLOOKUP(O242,LabourFromFeed[Feed Quantity (kg)],LabourFromFeed[No. Labour],\"Out of range\",-1)","v":{"$error":"#N/A"}},{"$f":"T242*OperatingCosts!$C$9","v":{"$error":"#N/A"}},{"$error":"#N/A"}]
[241,{"$f":"IF(A243<='S3-Short'!$C$7, B242*EXP((LN((E242/100)+1))*1),)","v":0},{"$f":"_xlfn.XLOOKUP($B243,FeedTables!$C$42:$T$42,FeedTables!$C$44:$T$44,,-1)","v":{"$error":"#N/A"}},{"$f":"_xlfn.XLOOKUP($B243,FeedTables!$C$42:$T$42,FeedTables!$C$45:$T$45,,-1)","v":{"$error":"#N/A"}},{"$f":"_xlfn.XLOOKUP($B243,FeedTables!$C$42:$T$42,FeedTables!$C$46:$T$46,,-1)*_xlfn.XLOOKUP(N242,DensityMultiplier[Biomass kg/m3],DensityMultiplier[Multiplier],,-1)","v":{"$error":"#N/A"}},3853.2055944265799,{"$f":"IF(A243<='S3-Short'!$C$7,('Growth-Model-3'!G242*EXP($AA$7)),0)","v":0},{"$f":"IF(A243<='S3-Short'!$C$7,$AD$6*EXP($AD$7*('S3-Short'!C$7-'Growth-Model-3'!A243)),0)","v":0},196.79440557341832,4.859121125269588E-2,0,13.580865810479755,0,{"$f":"M243/'S3-Short'!$C$17","v":0},{"$error":"#N/A"},{"$error":"#N/A"},{"$f":"_xlfn.XLOOKUP(B243,FeedTables!$C$17:$T$17,FeedTables!$C$31:$T$31,,-1)","v":{"$error":"#N/A"}},{"$f":"_xlfn.XLOOKUP(Q243,FeedPrice[Feed],FeedPrice[Price per kg],\"Unknown\",0)*O243","v":{"$error":"#N/A"}},{"$error":"#N/A"},{"$f":"_xlfn.XLOOKUP(O243,LabourFromFeed[Feed Quantity (kg)],LabourFromFeed[No. Labour],\"Out of range\",-1)","v":{"$error":"#N/A"}},{"$f":"T243*OperatingCosts!$C$9","v":{"$error":"#N/A"}},{"$error":"#N/A"}]
[242,{"$f":"IF(A244<='S3-Short'!$C$7, B243*EXP((LN((E243/100)+1))*1),)","v":0},{"$f":"_xlfn.XLOOKUP($B244,FeedTables!$C$42:$T$42,FeedTables!$C$44:$T$44,,-1)","v":{"$error":"#N/A"}},{"$f":"_xlfn.XLOOKUP($B244,FeedTables!$C$42:$T$42,FeedTables!$C$45:$T$45,,-1)","v":{"$error":"#N/A"}},{"$f":"_xlfn.XLOOKUP($B244,FeedTables!$C$42:$T$42,FeedTables!$C$46:$T$46,,-1)*_xlfn.XLOOKUP(N243,DensityMultiplier[Biomass kg/m3],DensityMultiplier[Multiplier],,-1)","v":{"$error":"#N/A"}},3853.2055944265799,{"$f":"IF(A244<='S3-Short'!$C$7,('Growth-Model-3'!G243*EXP($AA$7)),0)","v":0},{"$f":"IF(A244<='S3-Short'!$C$7,$AD$6*EXP($AD$7*('S3-Short'!C$7-'Growth-Model-3'!A244)),0)","v":0},196.79440557341832,4.859121125269588E-2,0,13.580865810479755,0,{"$f":"M244/'S3-Short'!$C$17","v":0},{"$error":"#N/A"},{"$error":"#N/A"},{"$f":"_xlfn.XLOOKUP(B244,FeedTables!$C$17:$T$17,FeedTables!$C$31:$T$31,,-1)","v":{"$error":"#N/A"}},{"$f":"_xlfn.XLOOKUP(Q244,FeedPrice[Feed],FeedPrice[Price per kg],\"Unknown\",0)*O244","v":{"$error":"#N/A"}},{"$error":"#N/A"},{"$f":"_xlfn.XLOOKUP(O244,LabourFromFeed[Feed Quantity (kg)],LabourFromFeed[No. Labour],\"Out of range\",-1)","v":{"$error":"#N/A"}},{"$f":"T244*OperatingCosts!$C$9","v":{"$error":"#N/A"}},{"$error":"#N/A"}]
[243,{"$f":"IF(A245<='S3-Short'!$C$7, B244*EXP((LN((E244/100)+1))*1),)","v":0},{"$f":"_xlfn.XLOOKUP($B245,FeedTables!$C$42:$T$42,FeedTables!$C$44:$T$44,,-1)","v":{"$error":"#N/A"}},{"$f":"_xlfn.XLOOKUP($B245,FeedTables!$C$42:$T$42,FeedTables!$C$45:$T$45,,-1)","v":{"$error":"#N/A"}},{"$f":"_xlfn.XLOOKUP($B245,FeedTables!$C$42:$T$42,FeedTables!$C$46:$T$46,,-1)*_xlfn.XLOOKUP(N244,DensityMultiplier[Biomass kg/m3],DensityMultiplier[Multiplier],,-1)","v":{"$error":"#N/A"}},3853.2055944265799,{"$f":"IF(A245<='S3-Short'!$C$7,('Growth-Model-3'!G244*EXP($AA$7)),0)","v":0},{"$f":"IF(A245<='S3-Short'!$C$7,$AD$6*EXP($AD$7*('S3-Short'!C$7-'Growth-Model-3'!A245)),0)","v":0},196.79440557341832,4.859121125269588E-2,0,13.580865810479755,0,{"$f":"M245/'S3-Short'!$C$17","v":0},{"$error":"#N/A"},{"$error":"#N/A"},{"$f":"_xlfn.XLOOKUP(B245,FeedTables!$C$17:$T$17,FeedTables!$C$31:$T$31,,-1)","v":{"$error":"#N/A"}},{"$f":"_xlfn.XLOOKUP(Q245,FeedPrice[Feed],FeedPrice[Price per kg],\"Unknown\",0)*O245","v":{"$error":"#N/A"}},{"$error":"#N/A"},{"$f":"_xlfn.XLOOKUP(O245,LabourFromFeed[Feed Quantity (kg)],LabourFromFeed[No. Labour],\"Out of range\",-1)","v":{"$error":"#N/A"}},{"$f":"T245*OperatingCosts!$C$9","v":{"$error":"#N/A"}},{"$error":"#N/A"}]
[244,{"$f":"IF(A246<='S3-Short'!$C$7, B245*EXP((LN((E245/100)+1))*1),)","v":0},{"$f":"_xlfn.XLOOKUP($B246,FeedTables!$C$42:$T$42,FeedTables!$C$44:$T$44,,-1)","v":{"$error":"#N/A"}},{"$f":"_xlfn.XLOOKUP($B246,FeedTables!$C$42:$T$42,FeedTables!$C$45:$T$45,,-1)","v":{"$error":"#N/A"}},{"$f":"_xlfn.XLOOKUP($B246,FeedTables!$C$42:$T$42,FeedTables!$C$46:$T$46,,-1)*_xlfn.XLOOKUP(N245,DensityMultiplier[Biomass kg/m3],DensityMultiplier[Multiplier],,-1)","v":{"$error":"#N/A"}},3853.2055944265799,{"$f":"IF(A246<='S3-Short'!$C$7,('Growth-Model-3'!G245*EXP($AA$7)),0)","v":0},{"$f":"IF(A246<='S3-Short'!$C$7,$AD$6*EXP($AD$7*('S3-Short'!C$7-'Growth-Model-3'!A246)),0)","v":0},196.79440557341832,4.859121125269588E-2,0,13.580865810479755,0,{"$f":"M246/'S3-Short'!$C$17","v":0},{"$error":"#N/A"},{"$error":"#N/A"},{"$f":"_xlfn.XLOOKUP(B246,FeedTables!$C$17:$T$17,FeedTables!$C$31:$T$31,,-1)","v":{"$error":"#N/A"}},{"$f":"_xlfn.XLOOKUP(Q246,FeedPrice[Feed],FeedPrice[Price per kg],\"Unknown\",0)*O246","v":{"$error":"#N/A"}},{"$error":"#N/A"},{"$f":"_xlfn.XLOOKUP(O246,LabourFromFeed[Feed Quantity (kg)],LabourFromFeed[No. Labour],\"Out of range\",-1)","v":{"$error":"#N/A"}},{"$f":"T246*OperatingCosts!$C$9","v":{"$error":"#N/A"}},{"$error":"#N/A"}]
[245,{"$f":"IF(A247<='S3-Short'!$C$7, B246*EXP((LN((E246/100)+1))*1),)","v":0},{"$f":"_xlfn.XLOOKUP($B247,FeedTables!$C$42:$T$42,FeedTables!$C$44:$T$44,,-1)","v":{"$error":"#N/A"}},{"$f":"_xlfn.XLOOKUP($B247,FeedTables!$C$42:$T$42,FeedTables!$C$45:$T$45,,-1)","v":{"$error":"#N/A"}},{"$f":"_xlfn.XLOOKUP($B247,FeedTables!$C$42:$T$42,FeedTables!$C$46:$T$46,,-1)*_xlfn.XLOOKUP(N246,DensityMultiplier[Biomass kg/m3],DensityMultiplier[Multiplier],,-1)","v":{"$error":"#N/A"}},3853.2055944265799,{"$f":"IF(A247<='S3-Short'!$C$7,('Growth-Model-3'!G246*EXP($AA$7)),0)","v":0},{"$f":"IF(A247<='S3-Short'!$C$7,$AD$6*EXP($AD$7*('S3-Short'!C$7-'Growth-Model-3'!A247)),0)","v":0},196.79440557341832,4.859121125269588E-2,0,13.580865810479755,0,{"$f":"M247/'S3-Short'!$C$17","v":0},{"$error":"#N/A"},{"$error":"#N/A"},{"$f":"_xlfn.XLOOKUP(B247,FeedTables!$C$17:$T$17,FeedTables!$C$31:$T$31,,-1)","v":{"$error":"#N/A"}},{"$f":"_xlfn.XLOOKUP(Q247,FeedPrice[Feed],FeedPrice[Price per kg],\"Unknown\",0)*O247","v":{"$error":"#N/A"}},{"$error":"#N/A"},{"$f":"_xlfn.XLOOKUP(O247,LabourFromFeed[Feed Quantity (kg)],LabourFromFeed[No. Labour],\"Out of range\",-1)","v":{"$error":"#N/A"}},{"$f":"T247*OperatingCosts!$C$9","v":{"$error":"#N/A"}},{"$error":"#N/A"}]
[246,{"$f":"IF(A248<='S3-Short'!$C$7, B247*EXP((LN((E247/100)+1))*1),)","v":0},{"$f":"_xlfn.XLOOKUP($B248,FeedTables!$C$42:$T$42,FeedTables!$C$44:$T$44,,-1)","v":{"$error":"#N/A"}},{"$f":"_xlfn.XLOOKUP($B248,FeedTables!$C$42:$T$42,FeedTables!$C$45:$T$45,,-1)","v":{"$error":"#N/A"}},{"$f":"_xlfn.XLOOKUP($B248,FeedTables!$C$42:$T$42,FeedTables!$C$46:$T$46,,-1)*_xlfn.XLOOKUP(N247,DensityMultiplier[Biomass kg/m3],DensityMultiplier[Multiplier],,-1)","v":{"$error":"#N/A"}},3853.2055944265799,{"$f":"IF(A248<='S3-Short'!$C$7,('Growth-Model-3'!G247*EXP($AA$7)),0)","v":0},{"$f":"IF(A248<='S3-Short'!$C$7,$AD$6*EXP($AD$7*('S3-Short'!C$7-'Growth-Model-3'!A248)),0)","v":0},196.79440557341832,4.859121125269588E-2,0,13.580865810479755,0,{"$f":"M248/'S3-Short'!$C$17","v":0},{"$error":"#N/A"},{"$error":"#N/A"},{"$f":"_xlfn.XLOOKUP(B248,FeedTables!$C$17:$T$17,FeedTables!$C$31:$T$31,,-1)","v":{"$error":"#N/A"}},{"$f":"_xlfn.XLOOKUP(Q248,FeedPrice[Feed],FeedPrice[Price per kg],\"Unknown\",0)*O248","v":{"$error":"#N/A"}},{"$error":"#N/A"},{"$f":"_xlfn.XLOOKUP(O248,LabourFromFeed[Feed Quantity (kg)],LabourFromFeed[No. Labour],\"Out of range\",-1)","v":{"$error":"#N/A"}},{"$f":"T248*OperatingCosts!$C$9","v":{"$error":"#N/A"}},{"$error":"#N/A"}]
[247,{"$f":"IF(A249<='S3-Short'!$C$7, B248*EXP((LN((E248/100)+1))*1),)","v":0},{"$f":"_xlfn.XLOOKUP($B249,FeedTables!$C$42:$T$42,FeedTables!$C$44:$T$44,,-1)","v":{"$error":"#N/A"}},{"$f":"_xlfn.XLOOKUP($B249,FeedTables!$C$42:$T$42,FeedTables!$C$45:$T$45,,-1)","v":{"$error":"#N/A"}},{"$f":"_xlfn.XLOOKUP($B249,FeedTables!$C$42:$T$42,FeedTables!$C$46:$T$46,,-1)*_xlfn.XLOOKUP(N248,DensityMultiplier[Biomass kg/m3],DensityMultiplier[Multiplier],,-1)","v":{"$error":"#N/A"}},3853.2055944265799,{"$f":"IF(A249<='S3-Short'!$C$7,('Growth-Model-3'!G248*EXP($AA$7)),0)","v":0},{"$f":"IF(A249<='S3-Short'!$C$7,$AD$6*EXP($AD$7*('S3-Short'!C$7-'Growth-Model-3'!A249)),0)","v":0},196.79440557341832,4.859121125269588E-2,0,13.580865810479755,0,{"$f":"M249/'S3-Short'!$C$17","v":0},{"$error":"#N/A"},{"$error":"#N/A"},{"$f":"_xlfn.XLOOKUP(B249,FeedTables!$C$17:$T$17,FeedTables!$C$31:$T$31,,-1)","v":{"$error":"#N/A"}},{"$f":"_xlfn.XLOOKUP(Q249,FeedPrice[Feed],FeedPrice[Price per kg],\"Unknown\",0)*O249","v":{"$error":"#N/A"}},{"$error":"#N/A"},{"$f":"_xlfn.XLOOKUP(O249,LabourFromFeed[Feed Quantity (kg)],LabourFromFeed[No. Labour],\"Out of range\",-1)","v":{"$error":"#N/A"}},{"$f":"T249*OperatingCosts!$C$9","v":{"$error":"#N/A"}},{"$error":"#N/A"}]
[248,{"$f":"IF(A250<='S3-Short'!$C$7, B249*EXP((LN((E249/100)+1))*1),)","v":0},{"$f":"_xlfn.XLOOKUP($B250,FeedTables!$C$42:$T$42,FeedTables!$C$44:$T$44,,-1)","v":{"$error":"#N/A"}},{"$f":"_xlfn.XLOOKUP($B250,FeedTables!$C$42:$T$42,FeedTables!$C$45:$T$45,,-1)","v":{"$error":"#N/A"}},{"$f":"_xlfn.XLOOKUP($B250,FeedTables!$C$42:$T$42,FeedTables!$C$46:$T$46,,-1)*_xlfn.XLOOKUP(N249,DensityMultiplier[Biomass kg/m3],DensityMultiplier[Multiplier],,-1)","v":{"$error":"#N/A"}},3853.2055944265799,{"$f":"IF(A250<='S3-Short'!$C$7,('Growth-Model-3'!G249*EXP($AA$7)),0)","v":0},{"$f":"IF(A250<='S3-Short'!$C$7,$AD$6*EXP($AD$7*('S3-Short'!C$7-'Growth-Model-3'!A250)),0)","v":0},196.79440557341832,4.859121125269588E-2,0,13.580865810479755,0,{"$f":"M250/'S3-Short'!$C$17","v":0},{"$error":"#N/A"},{"$error":"#N/A"},{"$f":"_xlfn.XLOOKUP(B250,FeedTables!$C$17:$T$17,FeedTables!$C$31:$T$31,,-1)","v":{"$error":"#N/A"}},{"$f":"_xlfn.XLOOKUP(Q250,FeedPrice[Feed],FeedPrice[Price per kg],\"Unknown\",0)*O250","v":{"$error":"#N/A"}},{"$error":"#N/A"},{"$f":"_xlfn.XLOOKUP(O250,LabourFromFeed[Feed Quantity (kg)],LabourFromFeed[No. Labour],\"Out of range\",-1)","v":{"$error":"#N/A"}},{"$f":"T250*OperatingCosts!$C$9","v":{"$error":"#N/A"}},{"$error":"#N/A"}]
[249,{"$f":"IF(A251<='S3-Short'!$C$7, B250*EXP((LN((E250/100)+1))*1),)","v":0},{"$f":"_xlfn.XLOOKUP($B251,FeedTables!$C$42:$T$42,FeedTables!$C$44:$T$44,,-1)","v":{"$error":"#N/A"}},{"$f":"_xlfn.XLOOKUP($B251,FeedTables!$C$42:$T$42,FeedTables!$C$45:$T$45,,-1)","v":{"$error":"#N/A"}},{"$f":"_xlfn.XLOOKUP($B251,FeedTables!$C$42:$T$42,FeedTables!$C$46:$T$46,,-1)*_xlfn.XLOOKUP(N250,DensityMultiplier[Biomass kg/m3],DensityMultiplier[Multiplier],,-1)","v":{"$error":"#N/A"}},3853.2055944265799,{"$f":"IF(A251<='S3-Short'!$C$7,('Growth-Model-3'!G250*EXP($AA$7)),0)","v":0},{"$f":"IF(A251<='S3-Short'!$C$7,$AD$6*EXP($AD$7*('S3-Short'!C$7-'Growth-Model-3'!A251)),0)","v":0},196.79440557341832,4.859121125269588E-2,0,13.580865810479755,0,{"$f":"M251/'S3-Short'!$C$17","v":0},{"$error":"#N/A"},{"$error":"#N/A"},{"$f":"_xlfn.XLOOKUP(B251,FeedTables!$C$17:$T$17,FeedTables!$C$31:$T$31,,-1)","v":{"$error":"#N/A"}},{"$f":"_xlfn.XLOOKUP(Q251,FeedPrice[Feed],FeedPrice[Price per kg],\"Unknown\",0)*O251","v":{"$error":"#N/A"}},{"$error":"#N/A"},{"$f":"_xlfn.XLOOKUP(O251,LabourFromFeed[Feed Quantity (kg)],LabourFromFeed[No. Labour],\"Out of range\",-1)","v":{"$error":"#N/A"}},{"$f":"T251*OperatingCosts!$C$9","v":{"$error":"#N/A"}},{"$error":"#N/A"}]
[250,{"$f":"IF(A252<='S3-Short'!$C$7, B251*EXP((LN((E251/100)+1))*1),)","v":0},{"$f":"_xlfn.XLOOKUP($B252,FeedTables!$C$42:$T$42,FeedTables!$C$44:$T$44,,-1)","v":{"$error":"#N/A"}},{"$f":"_xlfn.XLOOKUP($B252,FeedTables!$C$42:$T$42,FeedTables!$C$45:$T$45,,-1)","v":{"$error":"#N/A"}},{"$f":"_xlfn.XLOOKUP($B252,FeedTables!$C$42:$T$42,FeedTables!$C$46:$T$46,,-1)*_xlfn.XLOOKUP(N251,DensityMultiplier[Biomass kg/m3],DensityMultiplier[Multiplier],,-1)","v":{"$error":"#N/A"}},3853.2055944265799,{"$f":"IF(A252<='S3-Short'!$C$7,('Growth-Model-3'!G251*EXP($AA$7)),0)","v":0},{"$f":"IF(A252<='S3-Short'!$C$7,$AD$6*EXP($AD$7*('S3-Short'!C$7-'Growth-Model-3'!A252)),0)","v":0},196.79440557341832,4.859121125269588E-2,0,13.580865810479755,0,{"$f":"M252/'S3-Short'!$C$17","v":0},{"$error":"#N/A"},{"$error":"#N/A"},{"$f":"_xlfn.XLOOKUP(B252,FeedTables!$C$17:$T$17,FeedTables!$C$31:$T$31,,-1)","v":{"$error":"#N/A"}},{"$f":"_xlfn.XLOOKUP(Q252,FeedPrice[Feed],FeedPrice[Price per kg],\"Unknown\",0)*O252","v":{"$error":"#N/A"}},{"$error":"#N/A"},{"$f":"_xlfn.XLOOKUP(O252,LabourFromFeed[Feed Quantity (kg)],LabourFromFeed[No. Labour],\"Out of range\",-1)","v":{"$error":"#N/A"}},{"$f":"T252*OperatingCosts!$C$9","v":{"$error":"#N/A"}},{"$error":"#N/A"}]
[251,{"$f":"IF(A253<='S3-Short'!$C$7, B252*EXP((LN((E252/100)+1))*1),)","v":0},{"$f":"_xlfn.XLOOKUP($B253,FeedTables!$C$42:$T$42,FeedTables!$C$44:$T$44,,-1)","v":{"$error":"#N/A"}},{"$f":"_xlfn.XLOOKUP($B253,FeedTables!$C$42:$T$42,FeedTables!$C$45:$T$45,,-1)","v":{"$error":"#N/A"}},{"$f":"_xlfn.XLOOKUP($B253,FeedTables!$C$42:$T$42,FeedTables!$C$46:$T$46,,-1)*_xlfn.XLOOKUP(N252,DensityMultiplier[Biomass kg/m3],DensityMultiplier[Multiplier],,-1)","v":{"$error":"#N/A"}},3853.2055944265799,{"$f":"IF(A253<='S3-Short'!$C$7,('Growth-Model-3'!G252*EXP($AA$7)),0)","v":0},{"$f":"IF(A253<='S3-Short'!$C$7,$AD$6*EXP($AD$7*('S3-Short'!C$7-'Growth-Model-3'!A253)),0)","v":0},196.79440557341832,4.859121125269588E-2,0,13.580865810479755,0,{"$f":"M253/'S3-Short'!$C$17","v":0},{"$error":"#N/A"},{"$error":"#N/A"},{"$f":"_xlfn.XLOOKUP(B253,FeedTables!$C$17:$T$17,FeedTables!$C$31:$T$31,,-1)","v":{"$error":"#N/A"}},{"$f":"_xlfn.XLOOKUP(Q253,FeedPrice[Feed],FeedPrice[Price per kg],\"Unknown\",0)*O253","v":{"$error":"#N/A"}},{"$error":"#N/A"},{"$f":"_xlfn.XLOOKUP(O253,LabourFromFeed[Feed Quantity (kg)],LabourFromFeed[No. Labour],\"Out of range\",-1)","v":{"$error":"#N/A"}},{"$f":"T253*OperatingCosts!$C$9","v":{"$error":"#N/A"}},{"$error":"#N/A"}]
[252,{"$f":"IF(A254<='S3-Short'!$C$7, B253*EXP((LN((E253/100)+1))*1),)","v":0},{"$f":"_xlfn.XLOOKUP($B254,FeedTables!$C$42:$T$42,FeedTables!$C$44:$T$44,,-1)","v":{"$error":"#N/A"}},{"$f":"_xlfn.XLOOKUP($B254,FeedTables!$C$42:$T$42,FeedTables!$C$45:$T$45,,-1)","v":{"$error":"#N/A"}},{"$f":"_xlfn.XLOOKUP($B254,FeedTables!$C$42:$T$42,FeedTables!$C$46:$T$46,,-1)*_xlfn.XLOOKUP(N253,DensityMultiplier[Biomass kg/m3],DensityMultiplier[Multiplier],,-1)","v":{"$error":"#N/A"}},3853.2055944265799,{"$f":"IF(A254<='S3-Short'!$C$7,('Growth-Model-3'!G253*EXP($AA$7)),0)","v":0},{"$f":"IF(A254<='S3-Short'!$C$7,$AD$6*EXP($AD$7*('S3-Short'!C$7-'Growth-Model-3'!A254)),0)","v":0},196.79440557341832,4.859121125269588E-2,0,13.580865810479755,0,{"$f":"M254/'S3-Short'!$C$17","v":0},{"$error":"#N/A"},{"$error":"#N/A"},{"$f":"_xlfn.XLOOKUP(B254,FeedTables!$C$17:$T$17,FeedTables!$C$31:$T$31,,-1)","v":{"$error":"#N/A"}},{"$f":"_xlfn.XLOOKUP(Q254,FeedPrice[Feed],FeedPrice[Price per kg],\"Unknown\",0)*O254","v":{"$error":"#N/A"}},{"$error":"#N/A"},{"$f":"_xlfn.XLOOKUP(O254,LabourFromFeed[Feed Quantity (kg)],LabourFromFeed[No. Labour],\"Out of range\",-1)","v":{"$error":"#N/A"}},{"$f":"T254*OperatingCosts!$C$9","v":{"$error":"#N/A"}},{"$error":"#N/A"}]
[253,{"$f":"IF(A255<='S3-Short'!$C$7, B254*EXP((LN((E254/100)+1))*1),)","v":0},{"$f":"_xlfn.XLOOKUP($B255,FeedTables!$C$42:$T$42,FeedTables!$C$44:$T$44,,-1)","v":{"$error":"#N/A"}},{"$f":"_xlfn.XLOOKUP($B255,FeedTables!$C$42:$T$42,FeedTables!$C$45:$T$45,,-1)","v":{"$error":"#N/A"}},{"$f":"_xlfn.XLOOKUP($B255,FeedTables!$C$42:$T$42,FeedTables!$C$46:$T$46,,-1)*_xlfn.XLOOKUP(N254,DensityMultiplier[Biomass kg/m3],DensityMultiplier[Multiplier],,-1)","v":{"$error":"#N/A"}},3853.2055944265799,{"$f":"IF(A255<='S3-Short'!$C$7,('Growth-Model-3'!G254*EXP($AA$7)),0)","v":0},{"$f":"IF(A255<='S3-Short'!$C$7,$AD$6*EXP($AD$7*('S3-Short'!C$7-'Growth-Model-3'!A255)),0)","v":0},196.79440557341832,4.859121125269588E-2,0,13.580865810479755,0,{"$f":"M255/'S3-Short'!$C$17","v":0},{"$error":"#N/A"},{"$error":"#N/A"},{"$f":"_xlfn.XLOOKUP(B255,FeedTables!$C$17:$T$17,FeedTables!$C$31:$T$31,,-1)","v":{"$error":"#N/A"}},{"$f":"_xlfn.XLOOKUP(Q255,FeedPrice[Feed],FeedPrice[Price per kg],\"Unknown\",0)*O255","v":{"$error":"#N/A"}},{"$error":"#N/A"},{"$f":"_xlfn.XLOOKUP(O255,LabourFromFeed[Feed Quantity (kg)],LabourFromFeed[No. Labour],\"Out of range\",-1)","v":{"$error":"#N/A"}},{"$f":"T255*OperatingCosts!$C$9","v":{"$error":"#N/A"}},{"$error":"#N/A"}]
[254,{"$f":"IF(A256<='S3-Short'!$C$7, B255*EXP((LN((E255/100)+1))*1),)","v":0},{"$f":"_xlfn.XLOOKUP($B256,FeedTables!$C$42:$T$42,FeedTables!$C$44:$T$44,,-1)","v":{"$error":"#N/A"}},{"$f":"_xlfn.XLOOKUP($B256,FeedTables!$C$42:$T$42,FeedTables!$C$45:$T$45,,-1)","v":{"$error":"#N/A"}},{"$f":"_xlfn.XLOOKUP($B256,FeedTables!$C$42:$T$42,FeedTables!$C$46:$T$46,,-1)*_xlfn.XLOOKUP(N255,DensityMultiplier[Biomass kg/m3],DensityMultiplier[Multiplier],,-1)","v":{"$error":"#N/A"}},3853.2055944265799,{"$f":"IF(A256<='S3-Short'!$C$7,('Growth-Model-3'!G255*EXP($AA$7)),0)","v":0},{"$f":"IF(A256<='S3-Short'!$C$7,$AD$6*EXP($AD$7*('S3-Short'!C$7-'Growth-Model-3'!A256)),0)","v":0},196.79440557341832,4.859121125269588E-2,0,13.580865810479755,0,{"$f":"M256/'S3-Short'!$C$17","v":0},{"$error":"#N/A"},{"$error":"#N/A"},{"$f":"_xlfn.XLOOKUP(B256,FeedTables!$C$17:$T$17,FeedTables!$C$31:$T$31,,-1)","v":{"$error":"#N/A"}},{"$f":"_xlfn.XLOOKUP(Q256,FeedPrice[Feed],FeedPrice[Price per kg],\"Unknown\",0)*O256","v":{"$error":"#N/A"}},{"$error":"#N/A"},{"$f":"_xlfn.XLOOKUP(O256,LabourFromFeed[Feed Quantity (kg)],LabourFromFeed[No. Labour],\"Out of range\",-1)","v":{"$error":"#N/A"}},{"$f":"T256*OperatingCosts!$C$9","v":{"$error":"#N/A"}},{"$error":"#N/A"}]
[255,{"$f":"IF(A257<='S3-Short'!$C$7, B256*EXP((LN((E256/100)+1))*1),)","v":0},{"$f":"_xlfn.XLOOKUP($B257,FeedTables!$C$42:$T$42,FeedTables!$C$44:$T$44,,-1)","v":{"$error":"#N/A"}},{"$f":"_xlfn.XLOOKUP($B257,FeedTables!$C$42:$T$42,FeedTables!$C$45:$T$45,,-1)","v":{"$error":"#N/A"}},{"$f":"_xlfn.XLOOKUP($B257,FeedTables!$C$42:$T$42,FeedTables!$C$46:$T$46,,-1)*_xlfn.XLOOKUP(N256,DensityMultiplier[Biomass kg/m3],DensityMultiplier[Multiplier],,-1)","v":{"$error":"#N/A"}},3853.2055944265799,{"$f":"IF(A257<='S3-Short'!$C$7,('Growth-Model-3'!G256*EXP($AA$7)),0)","v":0},{"$f":"IF(A257<='S3-Short'!$C$7,$AD$6*EXP($AD$7*('S3-Short'!C$7-'Growth-Model-3'!A257)),0)","v":0},196.79440557341832,4.859121125269588E-2,0,13.580865810479755,0,{"$f":"M257/'S3-Short'!$C$17","v":0},{"$error":"#N/A"},{"$error":"#N/A"},{"$f":"_xlfn.XLOOKUP(B257,FeedTables!$C$17:$T$17,FeedTables!$C$31:$T$31,,-1)","v":{"$error":"#N/A"}},{"$f":"_xlfn.XLOOKUP(Q257,FeedPrice[Feed],FeedPrice[Price per kg],\"Unknown\",0)*O257","v":{"$error":"#N/A"}},{"$error":"#N/A"},{"$f":"_xlfn.XLOOKUP(O257,LabourFromFeed[Feed Quantity (kg)],LabourFromFeed[No. Labour],\"Out of range\",-1)","v":{"$error":"#N/A"}},{"$f":"T257*OperatingCosts!$C$9","v":{"$error":"#N/A"}},{"$error":"#N/A"}]
[256,{"$f":"IF(A258<='S3-Short'!$C$7, B257*EXP((LN((E257/100)+1))*1),)","v":0},{"$f":"_xlfn.XLOOKUP($B258,FeedTables!$C$42:$T$42,FeedTables!$C$44:$T$44,,-1)","v":{"$error":"#N/A"}},{"$f":"_xlfn.XLOOKUP($B258,FeedTables!$C$42:$T$42,FeedTables!$C$45:$T$45,,-1)","v":{"$error":"#N/A"}},{"$f":"_xlfn.XLOOKUP($B258,FeedTables!$C$42:$T$42,FeedTables!$C$46:$T$46,,-1)*_xlfn.XLOOKUP(N257,DensityMultiplier[Biomass kg/m3],DensityMultiplier[Multiplier],,-1)","v":{"$error":"#N/A"}},3853.2055944265799,{"$f":"IF(A258<='S3-Short'!$C$7,('Growth-Model-3'!G257*EXP($AA$7)),0)","v":0},{"$f":"IF(A258<='S3-Short'!$C$7,$AD$6*EXP($AD$7*('S3-Short'!C$7-'Growth-Model-3'!A258)),0)","v":0},196.79440557341832,4.859121125269588E-2,0,13.580865810479755,0,{"$f":"M258/'S3-Short'!$C$17","v":0},{"$error":"#N/A"},{"$error":"#N/A"},{"$f":"_xlfn.XLOOKUP(B258,FeedTables!$C$17:$T$17,FeedTables!$C$31:$T$31,,-1)","v":{"$error":"#N/A"}},{"$f":"_xlfn.XLOOKUP(Q258,FeedPrice[Feed],FeedPrice[Price per kg],\"Unknown\",0)*O258","v":{"$error":"#N/A"}},{"$error":"#N/A"},{"$f":"_xlfn.XLOOKUP(O258,LabourFromFeed[Feed Quantity (kg)],LabourFromFeed[No. Labour],\"Out of range\",-1)","v":{"$error":"#N/A"}},{"$f":"T258*OperatingCosts!$C$9","v":{"$error":"#N/A"}},{"$error":"#N/A"}]
[257,{"$f":"IF(A259<='S3-Short'!$C$7, B258*EXP((LN((E258/100)+1))*1),)","v":0},{"$f":"_xlfn.XLOOKUP($B259,FeedTables!$C$42:$T$42,FeedTables!$C$44:$T$44,,-1)","v":{"$error":"#N/A"}},{"$f":"_xlfn.XLOOKUP($B259,FeedTables!$C$42:$T$42,FeedTables!$C$45:$T$45,,-1)","v":{"$error":"#N/A"}},{"$f":"_xlfn.XLOOKUP($B259,FeedTables!$C$42:$T$42,FeedTables!$C$46:$T$46,,-1)*_xlfn.XLOOKUP(N258,DensityMultiplier[Biomass kg/m3],DensityMultiplier[Multiplier],,-1)","v":{"$error":"#N/A"}},3853.2055944265799,{"$f":"IF(A259<='S3-Short'!$C$7,('Growth-Model-3'!G258*EXP($AA$7)),0)","v":0},{"$f":"IF(A259<='S3-Short'!$C$7,$AD$6*EXP($AD$7*('S3-Short'!C$7-'Growth-Model-3'!A259)),0)","v":0},196.79440557341832,{"$f":"I259/$F$2","v":4.859121125269588E-2},{"$f":"(G259+H259)*B259","v":0},13.580865810479755,{"$f":"(B259*F259)/1000","v":0},{"$f":"M259/'S3-Short'!$C$17","v":0},{"$f":"M259*(C259/100)","v":{"$error":"#N/A"}},{"$error":"#N/A"},{"$f":"_xlfn.XLOOKUP(B259,FeedTables!$C$17:$T$17,FeedTables!$C$31:$T$31,,-1)","v":{"$error":"#N/A"}},{"$f":"_xlfn.XLOOKUP(Q259,FeedPrice[Feed],FeedPrice[Price per kg],\"Unknown\",0)*O259","v":{"$error":"#N/A"}},{"$error":"#N/A"},{"$f":"_xlfn.XLOOKUP(O259,LabourFromFeed[Feed Quantity (kg)],LabourFromFeed[No. Labour],\"Out of range\",-1)","v":{"$error":"#N/A"}},{"$f":"T259*OperatingCosts!$C$9","v":{"$error":"#N/A"}},{"$error":"#N/A"}]
[258,{"$f":"IF(A260<='S3-Short'!$C$7, B259*EXP((LN((E259/100)+1))*1),)","v":0},{"$f":"_xlfn.XLOOKUP($B260,FeedTables!$C$42:$T$42,FeedTables!$C$44:$T$44,,-1)","v":{"$error":"#N/A"}},{"$f":"_xlfn.XLOOKUP($B260,FeedTables!$C$42:$T$42,FeedTables!$C$45:$T$45,,-1)","v":{"$error":"#N/A"}},{"$f":"_xlfn.XLOOKUP($B260,FeedTables!$C$42:$T$42,FeedTables!$C$46:$T$46,,-1)*_xlfn.XLOOKUP(N259,DensityMultiplier[Biomass kg/m3],DensityMultiplier[Multiplier],,-1)","v":{"$error":"#N/A"}},{"$f":"F259-G259-H259","v":3853.2055944265799},{"$f":"IF(A260<='S3-Short'!$C$7,('Growth-Model-3'!G259*EXP($AA$7)),0)","v":0},{"$f":"IF(A260<='S3-Short'!$C$7,$AD$6*EXP($AD$7*('S3-Short'!C$7-'Growth-Model-3'!A260)),0)","v":0},{"$f":"I259+G260+H260","v":196.79440557341832},4.859121125269588E-2,0,{"$f":"(K260/1000)+L259","v":13.580865810479755},0,{"$f":"M260/'S3-Short'!$C$17","v":0},{"$error":"#N/A"},{"$f":"O260+P259","v":{"$error":"#N/A"}},{"$f":"_xlfn.XLOOKUP(B260,FeedTables!$C$17:$T$17,FeedTables!$C$31:$T$31,,-1)","v":{"$error":"#N/A"}},{"$f":"_xlfn.XLOOKUP(Q260,FeedPrice[Feed],FeedPrice[Price per kg],\"Unknown\",0)*O260","v":{"$error":"#N/A"}},{"$f":"R260+S259","v":{"$error":"#N/A"}},{"$f":"_xlfn.XLOOKUP(O260,LabourFromFeed[Feed Quantity (kg)],LabourFromFeed[No. Labour],\"Out of range\",-1)","v":{"$error":"#N/A"}},{"$f":"T260*OperatingCosts!$C$9","v":{"$error":"#N/A"}},{"$f":"U260+V259","v":{"$error":"#N/A"}}]
[259,{"$f":"IF(A261<='S3-Short'!$C$7, B260*EXP((LN((E260/100)+1))*1),)","v":0},{"$f":"_xlfn.XLOOKUP($B261,FeedTables!$C$42:$T$42,FeedTables!$C$44:$T$44,,-1)","v":{"$error":"#N/A"}},{"$f":"_xlfn.XLOOKUP($B261,FeedTables!$C$42:$T$42,FeedTables!$C$45:$T$45,,-1)","v":{"$error":"#N/A"}},{"$f":"_xlfn.XLOOKUP($B261,FeedTables!$C$42:$T$42,FeedTables!$C$46:$T$46,,-1)*_xlfn.XLOOKUP(N260,DensityMultiplier[Biomass kg/m3],DensityMultiplier[Multiplier],,-1)","v":{"$error":"#N/A"}},3853.2055944265799,{"$f":"IF(A261<='S3-Short'!$C$7,('Growth-Model-3'!G260*EXP($AA$7)),0)","v":0},{"$f":"IF(A261<='S3-Short'!$C$7,$AD$6*EXP($AD$7*('S3-Short'!C$7-'Growth-Model-3'!A261)),0)","v":0},196.79440557341832,4.859121125269588E-2,0,13.580865810479755,0,{"$f":"M261/'S3-Short'!$C$17","v":0},{"$error":"#N/A"},{"$error":"#N/A"},{"$f":"_xlfn.XLOOKUP(B261,FeedTables!$C$17:$T$17,FeedTables!$C$31:$T$31,,-1)","v":{"$error":"#N/A"}},{"$f":"_xlfn.XLOOKUP(Q261,FeedPrice[Feed],FeedPrice[Price per kg],\"Unknown\",0)*O261","v":{"$error":"#N/A"}},{"$error":"#N/A"},{"$f":"_xlfn.XLOOKUP(O261,LabourFromFeed[Feed Quantity (kg)],LabourFromFeed[No. Labour],\"Out of range\",-1)","v":{"$error":"#N/A"}},{"$f":"T261*OperatingCosts!$C$9","v":{"$error":"#N/A"}},{"$error":"#N/A"}]
[260,{"$f":"IF(A262<='S3-Short'!$C$7, B261*EXP((LN((E261/100)+1))*1),)","v":0},{"$f":"_xlfn.XLOOKUP($B262,FeedTables!$C$42:$T$42,FeedTables!$C$44:$T$44,,-1)","v":{"$error":"#N/A"}},{"$f":"_xlfn.XLOOKUP($B262,FeedTables!$C$42:$T$42,FeedTables!$C$45:$T$45,,-1)","v":{"$error":"#N/A"}},{"$f":"_xlfn.XLOOKUP($B262,FeedTables!$C$42:$T$42,FeedTables!$C$46:$T$46,,-1)*_xlfn.XLOOKUP(N261,DensityMultiplier[Biomass kg/m3],DensityMultiplier[Multiplier],,-1)","v":{"$error":"#N/A"}},3853.2055944265799,{"$f":"IF(A262<='S3-Short'!$C$7,('Growth-Model-3'!G261*EXP($AA$7)),0)","v":0},{"$f":"IF(A262<='S3-Short'!$C$7,$AD$6*EXP($AD$7*('S3-Short'!C$7-'Growth-Model-3'!A262)),0)","v":0},196.79440557341832,4.859121125269588E-2,0,13.580865810479755,0,{"$f":"M262/'S3-Short'!$C$17","v":0},{"$error":"#N/A"},{"$error":"#N/A"},{"$f":"_xlfn.XLOOKUP(B262,FeedTables!$C$17:$T$17,FeedTables!$C$31:$T$31,,-1)","v":{"$error":"#N/A"}},{"$f":"_xlfn.XLOOKUP(Q262,FeedPrice[Feed],FeedPrice[Price per kg],\"Unknown\",0)*O262","v":{"$error":"#N/A"}},{"$error":"#N/A"},{"$f":"_xlfn.XLOOKUP(O262,LabourFromFeed[Feed Quantity (kg)],LabourFromFeed[No. Labour],\"Out of range\",-1)","v":{"$error":"#N/A"}},{"$f":"T262*OperatingCosts!$C$9","v":{"$error":"#N/A"}},{"$error":"#N/A"}]
[261,{"$f":"IF(A263<='S3-Short'!$C$7, B262*EXP((LN((E262/100)+1))*1),)","v":0},{"$f":"_xlfn.XLOOKUP($B263,FeedTables!$C$42:$T$42,FeedTables!$C$44:$T$44,,-1)","v":{"$error":"#N/A"}},{"$f":"_xlfn.XLOOKUP($B263,FeedTables!$C$42:$T$42,FeedTables!$C$45:$T$45,,-1)","v":{"$error":"#N/A"}},{"$f":"_xlfn.XLOOKUP($B263,FeedTables!$C$42:$T$42,FeedTables!$C$46:$T$46,,-1)*_xlfn.XLOOKUP(N262,DensityMultiplier[Biomass kg/m3],DensityMultiplier[Multiplier],,-1)","v":{"$error":"#N/A"}},3853.2055944265799,{"$f":"IF(A263<='S3-Short'!$C$7,('Growth-Model-3'!G262*EXP($AA$7)),0)","v":0},{"$f":"IF(A263<='S3-Short'!$C$7,$AD$6*EXP($AD$7*('S3-Short'!C$7-'Growth-Model-3'!A263)),0)","v":0},196.79440557341832,4.859121125269588E-2,0,13.580865810479755,0,{"$f":"M263/'S3-Short'!$C$17","v":0},{"$error":"#N/A"},{"$error":"#N/A"},{"$f":"_xlfn.XLOOKUP(B263,FeedTables!$C$17:$T$17,FeedTables!$C$31:$T$31,,-1)","v":{"$error":"#N/A"}},{"$f":"_xlfn.XLOOKUP(Q263,FeedPrice[Feed],FeedPrice[Price per kg],\"Unknown\",0)*O263","v":{"$error":"#N/A"}},{"$error":"#N/A"},{"$f":"_xlfn.XLOOKUP(O263,LabourFromFeed[Feed Quantity (kg)],LabourFromFeed[No. Labour],\"Out of range\",-1)","v":{"$error":"#N/A"}},{"$f":"T263*OperatingCosts!$C$9","v":{"$error":"#N/A"}},{"$error":"#N/A"}]
[262,{"$f":"IF(A264<='S3-Short'!$C$7, B263*EXP((LN((E263/100)+1))*1),)","v":0},{"$f":"_xlfn.XLOOKUP($B264,FeedTables!$C$42:$T$42,FeedTables!$C$44:$T$44,,-1)","v":{"$error":"#N/A"}},{"$f":"_xlfn.XLOOKUP($B264,FeedTables!$C$42:$T$42,FeedTables!$C$45:$T$45,,-1)","v":{"$error":"#N/A"}},{"$f":"_xlfn.XLOOKUP($B264,FeedTables!$C$42:$T$42,FeedTables!$C$46:$T$46,,-1)*_xlfn.XLOOKUP(N263,DensityMultiplier[Biomass kg/m3],DensityMultiplier[Multiplier],,-1)","v":{"$error":"#N/A"}},3853.2055944265799,{"$f":"IF(A264<='S3-Short'!$C$7,('Growth-Model-3'!G263*EXP($AA$7)),0)","v":0},{"$f":"IF(A264<='S3-Short'!$C$7,$AD$6*EXP($AD$7*('S3-Short'!C$7-'Growth-Model-3'!A264)),0)","v":0},196.79440557341832,4.859121125269588E-2,0,13.580865810479755,0,{"$f":"M264/'S3-Short'!$C$17","v":0},{"$error":"#N/A"},{"$error":"#N/A"},{"$f":"_xlfn.XLOOKUP(B264,FeedTables!$C$17:$T$17,FeedTables!$C$31:$T$31,,-1)","v":{"$error":"#N/A"}},{"$f":"_xlfn.XLOOKUP(Q264,FeedPrice[Feed],FeedPrice[Price per kg],\"Unknown\",0)*O264","v":{"$error":"#N/A"}},{"$error":"#N/A"},{"$f":"_xlfn.XLOOKUP(O264,LabourFromFeed[Feed Quantity (kg)],LabourFromFeed[No. Labour],\"Out of range\",-1)","v":{"$error":"#N/A"}},{"$f":"T264*OperatingCosts!$C$9","v":{"$error":"#N/A"}},{"$error":"#N/A"}]
[263,{"$f":"IF(A265<='S3-Short'!$C$7, B264*EXP((LN((E264/100)+1))*1),)","v":0},{"$f":"_xlfn.XLOOKUP($B265,FeedTables!$C$42:$T$42,FeedTables!$C$44:$T$44,,-1)","v":{"$error":"#N/A"}},{"$f":"_xlfn.XLOOKUP($B265,FeedTables!$C$42:$T$42,FeedTables!$C$45:$T$45,,-1)","v":{"$error":"#N/A"}},{"$f":"_xlfn.XLOOKUP($B265,FeedTables!$C$42:$T$42,FeedTables!$C$46:$T$46,,-1)*_xlfn.XLOOKUP(N264,DensityMultiplier[Biomass kg/m3],DensityMultiplier[Multiplier],,-1)","v":{"$error":"#N/A"}},3853.2055944265799,{"$f":"IF(A265<='S3-Short'!$C$7,('Growth-Model-3'!G264*EXP($AA$7)),0)","v":0},{"$f":"IF(A265<='S3-Short'!$C$7,$AD$6*EXP($AD$7*('S3-Short'!C$7-'Growth-Model-3'!A265)),0)","v":0},196.79440557341832,4.859121125269588E-2,0,13.580865810479755,0,{"$f":"M265/'S3-Short'!$C$17","v":0},{"$error":"#N/A"},{"$error":"#N/A"},{"$f":"_xlfn.XLOOKUP(B265,FeedTables!$C$17:$T$17,FeedTables!$C$31:$T$31,,-1)","v":{"$error":"#N/A"}},{"$f":"_xlfn.XLOOKUP(Q265,FeedPrice[Feed],FeedPrice[Price per kg],\"Unknown\",0)*O265","v":{"$error":"#N/A"}},{"$error":"#N/A"},{"$f":"_xlfn.XLOOKUP(O265,LabourFromFeed[Feed Quantity (kg)],LabourFromFeed[No. Labour],\"Out of range\",-1)","v":{"$error":"#N/A"}},{"$f":"T265*OperatingCosts!$C$9","v":{"$error":"#N/A"}},{"$error":"#N/A"}]
[264,{"$f":"IF(A266<='S3-Short'!$C$7, B265*EXP((LN((E265/100)+1))*1),)","v":0},{"$f":"_xlfn.XLOOKUP($B266,FeedTables!$C$42:$T$42,FeedTables!$C$44:$T$44,,-1)","v":{"$error":"#N/A"}},{"$f":"_xlfn.XLOOKUP($B266,FeedTables!$C$42:$T$42,FeedTables!$C$45:$T$45,,-1)","v":{"$error":"#N/A"}},{"$f":"_xlfn.XLOOKUP($B266,FeedTables!$C$42:$T$42,FeedTables!$C$46:$T$46,,-1)*_xlfn.XLOOKUP(N265,DensityMultiplier[Biomass kg/m3],DensityMultiplier[Multiplier],,-1)","v":{"$error":"#N/A"}},3853.2055944265799,{"$f":"IF(A266<='S3-Short'!$C$7,('Growth-Model-3'!G265*EXP($AA$7)),0)","v":0},{"$f":"IF(A266<='S3-Short'!$C$7,$AD$6*EXP($AD$7*('S3-Short'!C$7-'Growth-Model-3'!A266)),0)","v":0},196.79440557341832,4.859121125269588E-2,0,13.580865810479755,0,{"$f":"M266/'S3-Short'!$C$17","v":0},{"$error":"#N/A"},{"$error":"#N/A"},{"$f":"_xlfn.XLOOKUP(B266,FeedTables!$C$17:$T$17,FeedTables!$C$31:$T$31,,-1)","v":{"$error":"#N/A"}},{"$f":"_xlfn.XLOOKUP(Q266,FeedPrice[Feed],FeedPrice[Price per kg],\"Unknown\",0)*O266","v":{"$error":"#N/A"}},{"$error":"#N/A"},{"$f":"_xlfn.XLOOKUP(O266,LabourFromFeed[Feed Quantity (kg)],LabourFromFeed[No. Labour],\"Out of range\",-1)","v":{"$error":"#N/A"}},{"$f":"T266*OperatingCosts!$C$9","v":{"$error":"#N/A"}},{"$error":"#N/A"}]
[265,{"$f":"IF(A267<='S3-Short'!$C$7, B266*EXP((LN((E266/100)+1))*1),)","v":0},{"$f":"_xlfn.XLOOKUP($B267,FeedTables!$C$42:$T$42,FeedTables!$C$44:$T$44,,-1)","v":{"$error":"#N/A"}},{"$f":"_xlfn.XLOOKUP($B267,FeedTables!$C$42:$T$42,FeedTables!$C$45:$T$45,,-1)","v":{"$error":"#N/A"}},{"$f":"_xlfn.XLOOKUP($B267,FeedTables!$C$42:$T$42,FeedTables!$C$46:$T$46,,-1)*_xlfn.XLOOKUP(N266,DensityMultiplier[Biomass kg/m3],DensityMultiplier[Multiplier],,-1)","v":{"$error":"#N/A"}},3853.2055944265799,{"$f":"IF(A267<='S3-Short'!$C$7,('Growth-Model-3'!G266*EXP($AA$7)),0)","v":0},{"$f":"IF(A267<='S3-Short'!$C$7,$AD$6*EXP($AD$7*('S3-Short'!C$7-'Growth-Model-3'!A267)),0)","v":0},196.79440557341832,4.859121125269588E-2,0,13.580865810479755,0,{"$f":"M267/'S3-Short'!$C$17","v":0},{"$error":"#N/A"},{"$error":"#N/A"},{"$f":"_xlfn.XLOOKUP(B267,FeedTables!$C$17:$T$17,FeedTables!$C$31:$T$31,,-1)","v":{"$error":"#N/A"}},{"$f":"_xlfn.XLOOKUP(Q267,FeedPrice[Feed],FeedPrice[Price per kg],\"Unknown\",0)*O267","v":{"$error":"#N/A"}},{"$error":"#N/A"},{"$f":"_xlfn.XLOOKUP(O267,LabourFromFeed[Feed Quantity (kg)],LabourFromFeed[No. Labour],\"Out of range\",-1)","v":{"$error":"#N/A"}},{"$f":"T267*OperatingCosts!$C$9","v":{"$error":"#N/A"}},{"$error":"#N/A"}]
[266,{"$f":"IF(A268<='S3-Short'!$C$7, B267*EXP((LN((E267/100)+1))*1),)","v":0},{"$f":"_xlfn.XLOOKUP($B268,FeedTables!$C$42:$T$42,FeedTables!$C$44:$T$44,,-1)","v":{"$error":"#N/A"}},{"$f":"_xlfn.XLOOKUP($B268,FeedTables!$C$42:$T$42,FeedTables!$C$45:$T$45,,-1)","v":{"$error":"#N/A"}},{"$f":"_xlfn.XLOOKUP($B268,FeedTables!$C$42:$T$42,FeedTables!$C$46:$T$46,,-1)*_xlfn.XLOOKUP(N267,DensityMultiplier[Biomass kg/m3],DensityMultiplier[Multiplier],,-1)","v":{"$error":"#N/A"}},3853.2055944265799,{"$f":"IF(A268<='S3-Short'!$C$7,('Growth-Model-3'!G267*EXP($AA$7)),0)","v":0},{"$f":"IF(A268<='S3-Short'!$C$7,$AD$6*EXP($AD$7*('S3-Short'!C$7-'Growth-Model-3'!A268)),0)","v":0},196.79440557341832,4.859121125269588E-2,0,13.580865810479755,0,{"$f":"M268/'S3-Short'!$C$17","v":0},{"$error":"#N/A"},{"$error":"#N/A"},{"$f":"_xlfn.XLOOKUP(B268,FeedTables!$C$17:$T$17,FeedTables!$C$31:$T$31,,-1)","v":{"$error":"#N/A"}},{"$f":"_xlfn.XLOOKUP(Q268,FeedPrice[Feed],FeedPrice[Price per kg],\"Unknown\",0)*O268","v":{"$error":"#N/A"}},{"$error":"#N/A"},{"$f":"_xlfn.XLOOKUP(O268,LabourFromFeed[Feed Quantity (kg)],LabourFromFeed[No. Labour],\"Out of range\",-1)","v":{"$error":"#N/A"}},{"$f":"T268*OperatingCosts!$C$9","v":{"$error":"#N/A"}},{"$error":"#N/A"}]
[267,{"$f":"IF(A269<='S3-Short'!$C$7, B268*EXP((LN((E268/100)+1))*1),)","v":0},{"$f":"_xlfn.XLOOKUP($B269,FeedTables!$C$42:$T$42,FeedTables!$C$44:$T$44,,-1)","v":{"$error":"#N/A"}},{"$f":"_xlfn.XLOOKUP($B269,FeedTables!$C$42:$T$42,FeedTables!$C$45:$T$45,,-1)","v":{"$error":"#N/A"}},{"$f":"_xlfn.XLOOKUP($B269,FeedTables!$C$42:$T$42,FeedTables!$C$46:$T$46,,-1)*_xlfn.XLOOKUP(N268,DensityMultiplier[Biomass kg/m3],DensityMultiplier[Multiplier],,-1)","v":{"$error":"#N/A"}},3853.2055944265799,{"$f":"IF(A269<='S3-Short'!$C$7,('Growth-Model-3'!G268*EXP($AA$7)),0)","v":0},{"$f":"IF(A269<='S3-Short'!$C$7,$AD$6*EXP($AD$7*('S3-Short'!C$7-'Growth-Model-3'!A269)),0)","v":0},196.79440557341832,4.859121125269588E-2,0,13.580865810479755,0,{"$f":"M269/'S3-Short'!$C$17","v":0},{"$error":"#N/A"},{"$error":"#N/A"},{"$f":"_xlfn.XLOOKUP(B269,FeedTables!$C$17:$T$17,FeedTables!$C$31:$T$31,,-1)","v":{"$error":"#N/A"}},{"$f":"_xlfn.XLOOKUP(Q269,FeedPrice[Feed],FeedPrice[Price per kg],\"Unknown\",0)*O269","v":{"$error":"#N/A"}},{"$error":"#N/A"},{"$f":"_xlfn.XLOOKUP(O269,LabourFromFeed[Feed Quantity (kg)],LabourFromFeed[No. Labour],\"Out of range\",-1)","v":{"$error":"#N/A"}},{"$f":"T269*OperatingCosts!$C$9","v":{"$error":"#N/A"}},{"$error":"#N/A"}]
[268,{"$f":"IF(A270<='S3-Short'!$C$7, B269*EXP((LN((E269/100)+1))*1),)","v":0},{"$f":"_xlfn.XLOOKUP($B270,FeedTables!$C$42:$T$42,FeedTables!$C$44:$T$44,,-1)","v":{"$error":"#N/A"}},{"$f":"_xlfn.XLOOKUP($B270,FeedTables!$C$42:$T$42,FeedTables!$C$45:$T$45,,-1)","v":{"$error":"#N/A"}},{"$f":"_xlfn.XLOOKUP($B270,FeedTables!$C$42:$T$42,FeedTables!$C$46:$T$46,,-1)*_xlfn.XLOOKUP(N269,DensityMultiplier[Biomass kg/m3],DensityMultiplier[Multiplier],,-1)","v":{"$error":"#N/A"}},3853.2055944265799,{"$f":"IF(A270<='S3-Short'!$C$7,('Growth-Model-3'!G269*EXP($AA$7)),0)","v":0},{"$f":"IF(A270<='S3-Short'!$C$7,$AD$6*EXP($AD$7*('S3-Short'!C$7-'Growth-Model-3'!A270)),0)","v":0},196.79440557341832,4.859121125269588E-2,0,13.580865810479755,0,{"$f":"M270/'S3-Short'!$C$17","v":0},{"$error":"#N/A"},{"$error":"#N/A"},{"$f":"_xlfn.XLOOKUP(B270,FeedTables!$C$17:$T$17,FeedTables!$C$31:$T$31,,-1)","v":{"$error":"#N/A"}},{"$f":"_xlfn.XLOOKUP(Q270,FeedPrice[Feed],FeedPrice[Price per kg],\"Unknown\",0)*O270","v":{"$error":"#N/A"}},{"$error":"#N/A"},{"$f":"_xlfn.XLOOKUP(O270,LabourFromFeed[Feed Quantity (kg)],LabourFromFeed[No. Labour],\"Out of range\",-1)","v":{"$error":"#N/A"}},{"$f":"T270*OperatingCosts!$C$9","v":{"$error":"#N/A"}},{"$error":"#N/A"}]
[269,{"$f":"IF(A271<='S3-Short'!$C$7, B270*EXP((LN((E270/100)+1))*1),)","v":0},{"$f":"_xlfn.XLOOKUP($B271,FeedTables!$C$42:$T$42,FeedTables!$C$44:$T$44,,-1)","v":{"$error":"#N/A"}},{"$f":"_xlfn.XLOOKUP($B271,FeedTables!$C$42:$T$42,FeedTables!$C$45:$T$45,,-1)","v":{"$error":"#N/A"}},{"$f":"_xlfn.XLOOKUP($B271,FeedTables!$C$42:$T$42,FeedTables!$C$46:$T$46,,-1)*_xlfn.XLOOKUP(N270,DensityMultiplier[Biomass kg/m3],DensityMultiplier[Multiplier],,-1)","v":{"$error":"#N/A"}},3853.2055944265799,{"$f":"IF(A271<='S3-Short'!$C$7,('Growth-Model-3'!G270*EXP($AA$7)),0)","v":0},{"$f":"IF(A271<='S3-Short'!$C$7,$AD$6*EXP($AD$7*('S3-Short'!C$7-'Growth-Model-3'!A271)),0)","v":0},196.79440557341832,4.859121125269588E-2,0,13.580865810479755,0,{"$f":"M271/'S3-Short'!$C$17","v":0},{"$error":"#N/A"},{"$error":"#N/A"},{"$f":"_xlfn.XLOOKUP(B271,FeedTables!$C$17:$T$17,FeedTables!$C$31:$T$31,,-1)","v":{"$error":"#N/A"}},{"$f":"_xlfn.XLOOKUP(Q271,FeedPrice[Feed],FeedPrice[Price per kg],\"Unknown\",0)*O271","v":{"$error":"#N/A"}},{"$error":"#N/A"},{"$f":"_xlfn.XLOOKUP(O271,LabourFromFeed[Feed Quantity (kg)],LabourFromFeed[No. Labour],\"Out of range\",-1)","v":{"$error":"#N/A"}},{"$f":"T271*OperatingCosts!$C$9","v":{"$error":"#N/A"}},{"$error":"#N/A"}]
[270,{"$f":"IF(A272<='S3-Short'!$C$7, B271*EXP((LN((E271/100)+1))*1),)","v":0},{"$f":"_xlfn.XLOOKUP($B272,FeedTables!$C$42:$T$42,FeedTables!$C$44:$T$44,,-1)","v":{"$error":"#N/A"}},{"$f":"_xlfn.XLOOKUP($B272,FeedTables!$C$42:$T$42,FeedTables!$C$45:$T$45,,-1)","v":{"$error":"#N/A"}},{"$f":"_xlfn.XLOOKUP($B272,FeedTables!$C$42:$T$42,FeedTables!$C$46:$T$46,,-1)*_xlfn.XLOOKUP(N271,DensityMultiplier[Biomass kg/m3],DensityMultiplier[Multiplier],,-1)","v":{"$error":"#N/A"}},3853.2055944265799,{"$f":"IF(A272<='S3-Short'!$C$7,('Growth-Model-3'!G271*EXP($AA$7)),0)","v":0},{"$f":"IF(A272<='S3-Short'!$C$7,$AD$6*EXP($AD$7*('S3-Short'!C$7-'Growth-Model-3'!A272)),0)","v":0},196.79440557341832,4.859121125269588E-2,0,13.580865810479755,0,{"$f":"M272/'S3-Short'!$C$17","v":0},{"$error":"#N/A"},{"$error":"#N/A"},{"$f":"_xlfn.XLOOKUP(B272,FeedTables!$C$17:$T$17,FeedTables!$C$31:$T$31,,-1)","v":{"$error":"#N/A"}},{"$f":"_xlfn.XLOOKUP(Q272,FeedPrice[Feed],FeedPrice[Price per kg],\"Unknown\",0)*O272","v":{"$error":"#N/A"}},{"$error":"#N/A"},{"$f":"_xlfn.XLOOKUP(O272,LabourFromFeed[Feed Quantity (kg)],LabourFromFeed[No. Labour],\"Out of range\",-1)","v":{"$error":"#N/A"}},{"$f":"T272*OperatingCosts!$C$9","v":{"$error":"#N/A"}},{"$error":"#N/A"}]
[271,{"$f":"IF(A273<='S3-Short'!$C$7, B272*EXP((LN((E272/100)+1))*1),)","v":0},{"$f":"_xlfn.XLOOKUP($B273,FeedTables!$C$42:$T$42,FeedTables!$C$44:$T$44,,-1)","v":{"$error":"#N/A"}},{"$f":"_xlfn.XLOOKUP($B273,FeedTables!$C$42:$T$42,FeedTables!$C$45:$T$45,,-1)","v":{"$error":"#N/A"}},{"$f":"_xlfn.XLOOKUP($B273,FeedTables!$C$42:$T$42,FeedTables!$C$46:$T$46,,-1)*_xlfn.XLOOKUP(N272,DensityMultiplier[Biomass kg/m3],DensityMultiplier[Multiplier],,-1)","v":{"$error":"#N/A"}},3853.2055944265799,{"$f":"IF(A273<='S3-Short'!$C$7,('Growth-Model-3'!G272*EXP($AA$7)),0)","v":0},{"$f":"IF(A273<='S3-Short'!$C$7,$AD$6*EXP($AD$7*('S3-Short'!C$7-'Growth-Model-3'!A273)),0)","v":0},196.79440557341832,4.859121125269588E-2,0,13.580865810479755,0,{"$f":"M273/'S3-Short'!$C$17","v":0},{"$error":"#N/A"},{"$error":"#N/A"},{"$f":"_xlfn.XLOOKUP(B273,FeedTables!$C$17:$T$17,FeedTables!$C$31:$T$31,,-1)","v":{"$error":"#N/A"}},{"$f":"_xlfn.XLOOKUP(Q273,FeedPrice[Feed],FeedPrice[Price per kg],\"Unknown\",0)*O273","v":{"$error":"#N/A"}},{"$error":"#N/A"},{"$f":"_xlfn.XLOOKUP(O273,LabourFromFeed[Feed Quantity (kg)],LabourFromFeed[No. Labour],\"Out of range\",-1)","v":{"$error":"#N/A"}},{"$f":"T273*OperatingCosts!$C$9","v":{"$error":"#N/A"}},{"$error":"#N/A"}]
[272,{"$f":"IF(A274<='S3-Short'!$C$7, B273*EXP((LN((E273/100)+1))*1),)","v":0},{"$f":"_xlfn.XLOOKUP($B274,FeedTables!$C$42:$T$42,FeedTables!$C$44:$T$44,,-1)","v":{"$error":"#N/A"}},{"$f":"_xlfn.XLOOKUP($B274,FeedTables!$C$42:$T$42,FeedTables!$C$45:$T$45,,-1)","v":{"$error":"#N/A"}},{"$f":"_xlfn.XLOOKUP($B274,FeedTables!$C$42:$T$42,FeedTables!$C$46:$T$46,,-1)*_xlfn.XLOOKUP(N273,DensityMultiplier[Biomass kg/m3],DensityMultiplier[Multiplier],,-1)","v":{"$error":"#N/A"}},3853.2055944265799,{"$f":"IF(A274<='S3-Short'!$C$7,('Growth-Model-3'!G273*EXP($AA$7)),0)","v":0},{"$f":"IF(A274<='S3-Short'!$C$7,$AD$6*EXP($AD$7*('S3-Short'!C$7-'Growth-Model-3'!A274)),0)","v":0},196.79440557341832,4.859121125269588E-2,0,13.580865810479755,0,{"$f":"M274/'S3-Short'!$C$17","v":0},{"$error":"#N/A"},{"$error":"#N/A"},{"$f":"_xlfn.XLOOKUP(B274,FeedTables!$C$17:$T$17,FeedTables!$C$31:$T$31,,-1)","v":{"$error":"#N/A"}},{"$f":"_xlfn.XLOOKUP(Q274,FeedPrice[Feed],FeedPrice[Price per kg],\"Unknown\",0)*O274","v":{"$error":"#N/A"}},{"$error":"#N/A"},{"$f":"_xlfn.XLOOKUP(O274,LabourFromFeed[Feed Quantity (kg)],LabourFromFeed[No. Labour],\"Out of range\",-1)","v":{"$error":"#N/A"}},{"$f":"T274*OperatingCosts!$C$9","v":{"$error":"#N/A"}},{"$error":"#N/A"}]
[273,{"$f":"IF(A275<='S3-Short'!$C$7, B274*EXP((LN((E274/100)+1))*1),)","v":0},{"$f":"_xlfn.XLOOKUP($B275,FeedTables!$C$42:$T$42,FeedTables!$C$44:$T$44,,-1)","v":{"$error":"#N/A"}},{"$f":"_xlfn.XLOOKUP($B275,FeedTables!$C$42:$T$42,FeedTables!$C$45:$T$45,,-1)","v":{"$error":"#N/A"}},{"$f":"_xlfn.XLOOKUP($B275,FeedTables!$C$42:$T$42,FeedTables!$C$46:$T$46,,-1)*_xlfn.XLOOKUP(N274,DensityMultiplier[Biomass kg/m3],DensityMultiplier[Multiplier],,-1)","v":{"$error":"#N/A"}},3853.2055944265799,{"$f":"IF(A275<='S3-Short'!$C$7,('Growth-Model-3'!G274*EXP($AA$7)),0)","v":0},{"$f":"IF(A275<='S3-Short'!$C$7,$AD$6*EXP($AD$7*('S3-Short'!C$7-'Growth-Model-3'!A275)),0)","v":0},196.79440557341832,4.859121125269588E-2,0,13.580865810479755,0,{"$f":"M275/'S3-Short'!$C$17","v":0},{"$error":"#N/A"},{"$error":"#N/A"},{"$f":"_xlfn.XLOOKUP(B275,FeedTables!$C$17:$T$17,FeedTables!$C$31:$T$31,,-1)","v":{"$error":"#N/A"}},{"$f":"_xlfn.XLOOKUP(Q275,FeedPrice[Feed],FeedPrice[Price per kg],\"Unknown\",0)*O275","v":{"$error":"#N/A"}},{"$error":"#N/A"},{"$f":"_xlfn.XLOOKUP(O275,LabourFromFeed[Feed Quantity (kg)],LabourFromFeed[No. Labour],\"Out of range\",-1)","v":{"$error":"#N/A"}},{"$f":"T275*OperatingCosts!$C$9","v":{"$error":"#N/A"}},{"$error":"#N/A"}]
[274,{"$f":"IF(A276<='S3-Short'!$C$7, B275*EXP((LN((E275/100)+1))*1),)","v":0},{"$f":"_xlfn.XLOOKUP($B276,FeedTables!$C$42:$T$42,FeedTables!$C$44:$T$44,,-1)","v":{"$error":"#N/A"}},{"$f":"_xlfn.XLOOKUP($B276,FeedTables!$C$42:$T$42,FeedTables!$C$45:$T$45,,-1)","v":{"$error":"#N/A"}},{"$f":"_xlfn.XLOOKUP($B276,FeedTables!$C$42:$T$42,FeedTables!$C$46:$T$46,,-1)*_xlfn.XLOOKUP(N275,DensityMultiplier[Biomass kg/m3],DensityMultiplier[Multiplier],,-1)","v":{"$error":"#N/A"}},3853.2055944265799,{"$f":"IF(A276<='S3-Short'!$C$7,('Growth-Model-3'!G275*EXP($AA$7)),0)","v":0},{"$f":"IF(A276<='S3-Short'!$C$7,$AD$6*EXP($AD$7*('S3-Short'!C$7-'Growth-Model-3'!A276)),0)","v":0},196.79440557341832,4.859121125269588E-2,0,13.580865810479755,0,{"$f":"M276/'S3-Short'!$C$17","v":0},{"$error":"#N/A"},{"$error":"#N/A"},{"$f":"_xlfn.XLOOKUP(B276,FeedTables!$C$17:$T$17,FeedTables!$C$31:$T$31,,-1)","v":{"$error":"#N/A"}},{"$f":"_xlfn.XLOOKUP(Q276,FeedPrice[Feed],FeedPrice[Price per kg],\"Unknown\",0)*O276","v":{"$error":"#N/A"}},{"$error":"#N/A"},{"$f":"_xlfn.XLOOKUP(O276,LabourFromFeed[Feed Quantity (kg)],LabourFromFeed[No. Labour],\"Out of range\",-1)","v":{"$error":"#N/A"}},{"$f":"T276*OperatingCosts!$C$9","v":{"$error":"#N/A"}},{"$error":"#N/A"}]
[275,{"$f":"IF(A277<='S3-Short'!$C$7, B276*EXP((LN((E276/100)+1))*1),)","v":0},{"$f":"_xlfn.XLOOKUP($B277,FeedTables!$C$42:$T$42,FeedTables!$C$44:$T$44,,-1)","v":{"$error":"#N/A"}},{"$f":"_xlfn.XLOOKUP($B277,FeedTables!$C$42:$T$42,FeedTables!$C$45:$T$45,,-1)","v":{"$error":"#N/A"}},{"$f":"_xlfn.XLOOKUP($B277,FeedTables!$C$42:$T$42,FeedTables!$C$46:$T$46,,-1)*_xlfn.XLOOKUP(N276,DensityMultiplier[Biomass kg/m3],DensityMultiplier[Multiplier],,-1)","v":{"$error":"#N/A"}},3853.2055944265799,{"$f":"IF(A277<='S3-Short'!$C$7,('Growth-Model-3'!G276*EXP($AA$7)),0)","v":0},{"$f":"IF(A277<='S3-Short'!$C$7,$AD$6*EXP($AD$7*('S3-Short'!C$7-'Growth-Model-3'!A277)),0)","v":0},196.79440557341832,4.859121125269588E-2,0,13.580865810479755,0,{"$f":"M277/'S3-Short'!$C$17","v":0},{"$error":"#N/A"},{"$error":"#N/A"},{"$f":"_xlfn.XLOOKUP(B277,FeedTables!$C$17:$T$17,FeedTables!$C$31:$T$31,,-1)","v":{"$error":"#N/A"}},{"$f":"_xlfn.XLOOKUP(Q277,FeedPrice[Feed],FeedPrice[Price per kg],\"Unknown\",0)*O277","v":{"$error":"#N/A"}},{"$error":"#N/A"},{"$f":"_xlfn.XLOOKUP(O277,LabourFromFeed[Feed Quantity (kg)],LabourFromFeed[No. Labour],\"Out of range\",-1)","v":{"$error":"#N/A"}},{"$f":"T277*OperatingCosts!$C$9","v":{"$error":"#N/A"}},{"$error":"#N/A"}]
[276,{"$f":"IF(A278<='S3-Short'!$C$7, B277*EXP((LN((E277/100)+1))*1),)","v":0},{"$f":"_xlfn.XLOOKUP($B278,FeedTables!$C$42:$T$42,FeedTables!$C$44:$T$44,,-1)","v":{"$error":"#N/A"}},{"$f":"_xlfn.XLOOKUP($B278,FeedTables!$C$42:$T$42,FeedTables!$C$45:$T$45,,-1)","v":{"$error":"#N/A"}},{"$f":"_xlfn.XLOOKUP($B278,FeedTables!$C$42:$T$42,FeedTables!$C$46:$T$46,,-1)*_xlfn.XLOOKUP(N277,DensityMultiplier[Biomass kg/m3],DensityMultiplier[Multiplier],,-1)","v":{"$error":"#N/A"}},3853.2055944265799,{"$f":"IF(A278<='S3-Short'!$C$7,('Growth-Model-3'!G277*EXP($AA$7)),0)","v":0},{"$f":"IF(A278<='S3-Short'!$C$7,$AD$6*EXP($AD$7*('S3-Short'!C$7-'Growth-Model-3'!A278)),0)","v":0},196.79440557341832,4.859121125269588E-2,0,13.580865810479755,0,{"$f":"M278/'S3-Short'!$C$17","v":0},{"$error":"#N/A"},{"$error":"#N/A"},{"$f":"_xlfn.XLOOKUP(B278,FeedTables!$C$17:$T$17,FeedTables!$C$31:$T$31,,-1)","v":{"$error":"#N/A"}},{"$f":"_xlfn.XLOOKUP(Q278,FeedPrice[Feed],FeedPrice[Price per kg],\"Unknown\",0)*O278","v":{"$error":"#N/A"}},{"$error":"#N/A"},{"$f":"_xlfn.XLOOKUP(O278,LabourFromFeed[Feed Quantity (kg)],LabourFromFeed[No. Labour],\"Out of range\",-1)","v":{"$error":"#N/A"}},{"$f":"T278*OperatingCosts!$C$9","v":{"$error":"#N/A"}},{"$error":"#N/A"}]
[277,{"$f":"IF(A279<='S3-Short'!$C$7, B278*EXP((LN((E278/100)+1))*1),)","v":0},{"$f":"_xlfn.XLOOKUP($B279,FeedTables!$C$42:$T$42,FeedTables!$C$44:$T$44,,-1)","v":{"$error":"#N/A"}},{"$f":"_xlfn.XLOOKUP($B279,FeedTables!$C$42:$T$42,FeedTables!$C$45:$T$45,,-1)","v":{"$error":"#N/A"}},{"$f":"_xlfn.XLOOKUP($B279,FeedTables!$C$42:$T$42,FeedTables!$C$46:$T$46,,-1)*_xlfn.XLOOKUP(N278,DensityMultiplier[Biomass kg/m3],DensityMultiplier[Multiplier],,-1)","v":{"$error":"#N/A"}},3853.2055944265799,{"$f":"IF(A279<='S3-Short'!$C$7,('Growth-Model-3'!G278*EXP($AA$7)),0)","v":0},{"$f":"IF(A279<='S3-Short'!$C$7,$AD$6*EXP($AD$7*('S3-Short'!C$7-'Growth-Model-3'!A279)),0)","v":0},196.79440557341832,4.859121125269588E-2,0,13.580865810479755,0,{"$f":"M279/'S3-Short'!$C$17","v":0},{"$error":"#N/A"},{"$error":"#N/A"},{"$f":"_xlfn.XLOOKUP(B279,FeedTables!$C$17:$T$17,FeedTables!$C$31:$T$31,,-1)","v":{"$error":"#N/A"}},{"$f":"_xlfn.XLOOKUP(Q279,FeedPrice[Feed],FeedPrice[Price per kg],\"Unknown\",0)*O279","v":{"$error":"#N/A"}},{"$error":"#N/A"},{"$f":"_xlfn.XLOOKUP(O279,LabourFromFeed[Feed Quantity (kg)],LabourFromFeed[No. Labour],\"Out of range\",-1)","v":{"$error":"#N/A"}},{"$f":"T279*OperatingCosts!$C$9","v":{"$error":"#N/A"}},{"$error":"#N/A"}]
[278,{"$f":"IF(A280<='S3-Short'!$C$7, B279*EXP((LN((E279/100)+1))*1),)","v":0},{"$f":"_xlfn.XLOOKUP($B280,FeedTables!$C$42:$T$42,FeedTables!$C$44:$T$44,,-1)","v":{"$error":"#N/A"}},{"$f":"_xlfn.XLOOKUP($B280,FeedTables!$C$42:$T$42,FeedTables!$C$45:$T$45,,-1)","v":{"$error":"#N/A"}},{"$f":"_xlfn.XLOOKUP($B280,FeedTables!$C$42:$T$42,FeedTables!$C$46:$T$46,,-1)*_xlfn.XLOOKUP(N279,DensityMultiplier[Biomass kg/m3],DensityMultiplier[Multiplier],,-1)","v":{"$error":"#N/A"}},3853.2055944265799,{"$f":"IF(A280<='S3-Short'!$C$7,('Growth-Model-3'!G279*EXP($AA$7)),0)","v":0},{"$f":"IF(A280<='S3-Short'!$C$7,$AD$6*EXP($AD$7*('S3-Short'!C$7-'Growth-Model-3'!A280)),0)","v":0},196.79440557341832,4.859121125269588E-2,0,13.580865810479755,0,{"$f":"M280/'S3-Short'!$C$17","v":0},{"$error":"#N/A"},{"$error":"#N/A"},{"$f":"_xlfn.XLOOKUP(B280,FeedTables!$C$17:$T$17,FeedTables!$C$31:$T$31,,-1)","v":{"$error":"#N/A"}},{"$f":"_xlfn.XLOOKUP(Q280,FeedPrice[Feed],FeedPrice[Price per kg],\"Unknown\",0)*O280","v":{"$error":"#N/A"}},{"$error":"#N/A"},{"$f":"_xlfn.XLOOKUP(O280,LabourFromFeed[Feed Quantity (kg)],LabourFromFeed[No. Labour],\"Out of range\",-1)","v":{"$error":"#N/A"}},{"$f":"T280*OperatingCosts!$C$9","v":{"$error":"#N/A"}},{"$error":"#N/A"}]
[279,{"$f":"IF(A281<='S3-Short'!$C$7, B280*EXP((LN((E280/100)+1))*1),)","v":0},{"$f":"_xlfn.XLOOKUP($B281,FeedTables!$C$42:$T$42,FeedTables!$C$44:$T$44,,-1)","v":{"$error":"#N/A"}},{"$f":"_xlfn.XLOOKUP($B281,FeedTables!$C$42:$T$42,FeedTables!$C$45:$T$45,,-1)","v":{"$error":"#N/A"}},{"$f":"_xlfn.XLOOKUP($B281,FeedTables!$C$42:$T$42,FeedTables!$C$46:$T$46,,-1)*_xlfn.XLOOKUP(N280,DensityMultiplier[Biomass kg/m3],DensityMultiplier[Multiplier],,-1)","v":{"$error":"#N/A"}},3853.2055944265799,{"$f":"IF(A281<='S3-Short'!$C$7,('Growth-Model-3'!G280*EXP($AA$7)),0)","v":0},{"$f":"IF(A281<='S3-Short'!$C$7,$AD$6*EXP($AD$7*('S3-Short'!C$7-'Growth-Model-3'!A281)),0)","v":0},196.79440557341832,4.859121125269588E-2,0,13.580865810479755,0,{"$f":"M281/'S3-Short'!$C$17","v":0},{"$error":"#N/A"},{"$error":"#N/A"},{"$f":"_xlfn.XLOOKUP(B281,FeedTables!$C$17:$T$17,FeedTables!$C$31:$T$31,,-1)","v":{"$error":"#N/A"}},{"$f":"_xlfn.XLOOKUP(Q281,FeedPrice[Feed],FeedPrice[Price per kg],\"Unknown\",0)*O281","v":{"$error":"#N/A"}},{"$error":"#N/A"},{"$f":"_xlfn.XLOOKUP(O281,LabourFromFeed[Feed Quantity (kg)],LabourFromFeed[No. Labour],\"Out of range\",-1)","v":{"$error":"#N/A"}},{"$f":"T281*OperatingCosts!$C$9","v":{"$error":"#N/A"}},{"$error":"#N/A"}]
[280,{"$f":"IF(A282<='S3-Short'!$C$7, B281*EXP((LN((E281/100)+1))*1),)","v":0},{"$f":"_xlfn.XLOOKUP($B282,FeedTables!$C$42:$T$42,FeedTables!$C$44:$T$44,,-1)","v":{"$error":"#N/A"}},{"$f":"_xlfn.XLOOKUP($B282,FeedTables!$C$42:$T$42,FeedTables!$C$45:$T$45,,-1)","v":{"$error":"#N/A"}},{"$f":"_xlfn.XLOOKUP($B282,FeedTables!$C$42:$T$42,FeedTables!$C$46:$T$46,,-1)*_xlfn.XLOOKUP(N281,DensityMultiplier[Biomass kg/m3],DensityMultiplier[Multiplier],,-1)","v":{"$error":"#N/A"}},3853.2055944265799,{"$f":"IF(A282<='S3-Short'!$C$7,('Growth-Model-3'!G281*EXP($AA$7)),0)","v":0},{"$f":"IF(A282<='S3-Short'!$C$7,$AD$6*EXP($AD$7*('S3-Short'!C$7-'Growth-Model-3'!A282)),0)","v":0},196.79440557341832,4.859121125269588E-2,0,13.580865810479755,0,{"$f":"M282/'S3-Short'!$C$17","v":0},{"$error":"#N/A"},{"$error":"#N/A"},{"$f":"_xlfn.XLOOKUP(B282,FeedTables!$C$17:$T$17,FeedTables!$C$31:$T$31,,-1)","v":{"$error":"#N/A"}},{"$f":"_xlfn.XLOOKUP(Q282,FeedPrice[Feed],FeedPrice[Price per kg],\"Unknown\",0)*O282","v":{"$error":"#N/A"}},{"$error":"#N/A"},{"$f":"_xlfn.XLOOKUP(O282,LabourFromFeed[Feed Quantity (kg)],LabourFromFeed[No. Labour],\"Out of range\",-1)","v":{"$error":"#N/A"}},{"$f":"T282*OperatingCosts!$C$9","v":{"$error":"#N/A"}},{"$error":"#N/A"}]
[281,{"$f":"IF(A283<='S3-Short'!$C$7, B282*EXP((LN((E282/100)+1))*1),)","v":0},{"$f":"_xlfn.XLOOKUP($B283,FeedTables!$C$42:$T$42,FeedTables!$C$44:$T$44,,-1)","v":{"$error":"#N/A"}},{"$f":"_xlfn.XLOOKUP($B283,FeedTables!$C$42:$T$42,FeedTables!$C$45:$T$45,,-1)","v":{"$error":"#N/A"}},{"$f":"_xlfn.XLOOKUP($B283,FeedTables!$C$42:$T$42,FeedTables!$C$46:$T$46,,-1)*_xlfn.XLOOKUP(N282,DensityMultiplier[Biomass kg/m3],DensityMultiplier[Multiplier],,-1)","v":{"$error":"#N/A"}},3853.2055944265799,{"$f":"IF(A283<='S3-Short'!$C$7,('Growth-Model-3'!G282*EXP($AA$7)),0)","v":0},{"$f":"IF(A283<='S3-Short'!$C$7,$AD$6*EXP($AD$7*('S3-Short'!C$7-'Growth-Model-3'!A283)),0)","v":0},196.79440557341832,4.859121125269588E-2,0,13.580865810479755,0,{"$f":"M283/'S3-Short'!$C$17","v":0},{"$error":"#N/A"},{"$error":"#N/A"},{"$f":"_xlfn.XLOOKUP(B283,FeedTables!$C$17:$T$17,FeedTables!$C$31:$T$31,,-1)","v":{"$error":"#N/A"}},{"$f":"_xlfn.XLOOKUP(Q283,FeedPrice[Feed],FeedPrice[Price per kg],\"Unknown\",0)*O283","v":{"$error":"#N/A"}},{"$error":"#N/A"},{"$f":"_xlfn.XLOOKUP(O283,LabourFromFeed[Feed Quantity (kg)],LabourFromFeed[No. Labour],\"Out of range\",-1)","v":{"$error":"#N/A"}},{"$f":"T283*OperatingCosts!$C$9","v":{"$error":"#N/A"}},{"$error":"#N/A"}]
[282,{"$f":"IF(A284<='S3-Short'!$C$7, B283*EXP((LN((E283/100)+1))*1),)","v":0},{"$f":"_xlfn.XLOOKUP($B284,FeedTables!$C$42:$T$42,FeedTables!$C$44:$T$44,,-1)","v":{"$error":"#N/A"}},{"$f":"_xlfn.XLOOKUP($B284,FeedTables!$C$42:$T$42,FeedTables!$C$45:$T$45,,-1)","v":{"$error":"#N/A"}},{"$f":"_xlfn.XLOOKUP($B284,FeedTables!$C$42:$T$42,FeedTables!$C$46:$T$46,,-1)*_xlfn.XLOOKUP(N283,DensityMultiplier[Biomass kg/m3],DensityMultiplier[Multiplier],,-1)","v":{"$error":"#N/A"}},3853.2055944265799,{"$f":"IF(A284<='S3-Short'!$C$7,('Growth-Model-3'!G283*EXP($AA$7)),0)","v":0},{"$f":"IF(A284<='S3-Short'!$C$7,$AD$6*EXP($AD$7*('S3-Short'!C$7-'Growth-Model-3'!A284)),0)","v":0},196.79440557341832,4.859121125269588E-2,0,13.580865810479755,0,{"$f":"M284/'S3-Short'!$C$17","v":0},{"$error":"#N/A"},{"$error":"#N/A"},{"$f":"_xlfn.XLOOKUP(B284,FeedTables!$C$17:$T$17,FeedTables!$C$31:$T$31,,-1)","v":{"$error":"#N/A"}},{"$f":"_xlfn.XLOOKUP(Q284,FeedPrice[Feed],FeedPrice[Price per kg],\"Unknown\",0)*O284","v":{"$error":"#N/A"}},{"$error":"#N/A"},{"$f":"_xlfn.XLOOKUP(O284,LabourFromFeed[Feed Quantity (kg)],LabourFromFeed[No. Labour],\"Out of range\",-1)","v":{"$error":"#N/A"}},{"$f":"T284*OperatingCosts!$C$9","v":{"$error":"#N/A"}},{"$error":"#N/A"}]
[283,{"$f":"IF(A285<='S3-Short'!$C$7, B284*EXP((LN((E284/100)+1))*1),)","v":0},{"$f":"_xlfn.XLOOKUP($B285,FeedTables!$C$42:$T$42,FeedTables!$C$44:$T$44,,-1)","v":{"$error":"#N/A"}},{"$f":"_xlfn.XLOOKUP($B285,FeedTables!$C$42:$T$42,FeedTables!$C$45:$T$45,,-1)","v":{"$error":"#N/A"}},{"$f":"_xlfn.XLOOKUP($B285,FeedTables!$C$42:$T$42,FeedTables!$C$46:$T$46,,-1)*_xlfn.XLOOKUP(N284,DensityMultiplier[Biomass kg/m3],DensityMultiplier[Multiplier],,-1)","v":{"$error":"#N/A"}},3853.2055944265799,{"$f":"IF(A285<='S3-Short'!$C$7,('Growth-Model-3'!G284*EXP($AA$7)),0)","v":0},{"$f":"IF(A285<='S3-Short'!$C$7,$AD$6*EXP($AD$7*('S3-Short'!C$7-'Growth-Model-3'!A285)),0)","v":0},196.79440557341832,4.859121125269588E-2,0,13.580865810479755,0,{"$f":"M285/'S3-Short'!$C$17","v":0},{"$error":"#N/A"},{"$error":"#N/A"},{"$f":"_xlfn.XLOOKUP(B285,FeedTables!$C$17:$T$17,FeedTables!$C$31:$T$31,,-1)","v":{"$error":"#N/A"}},{"$f":"_xlfn.XLOOKUP(Q285,FeedPrice[Feed],FeedPrice[Price per kg],\"Unknown\",0)*O285","v":{"$error":"#N/A"}},{"$error":"#N/A"},{"$f":"_xlfn.XLOOKUP(O285,LabourFromFeed[Feed Quantity (kg)],LabourFromFeed[No. Labour],\"Out of range\",-1)","v":{"$error":"#N/A"}},{"$f":"T285*OperatingCosts!$C$9","v":{"$error":"#N/A"}},{"$error":"#N/A"}]
[284,{"$f":"IF(A286<='S3-Short'!$C$7, B285*EXP((LN((E285/100)+1))*1),)","v":0},{"$f":"_xlfn.XLOOKUP($B286,FeedTables!$C$42:$T$42,FeedTables!$C$44:$T$44,,-1)","v":{"$error":"#N/A"}},{"$f":"_xlfn.XLOOKUP($B286,FeedTables!$C$42:$T$42,FeedTables!$C$45:$T$45,,-1)","v":{"$error":"#N/A"}},{"$f":"_xlfn.XLOOKUP($B286,FeedTables!$C$42:$T$42,FeedTables!$C$46:$T$46,,-1)*_xlfn.XLOOKUP(N285,DensityMultiplier[Biomass kg/m3],DensityMultiplier[Multiplier],,-1)","v":{"$error":"#N/A"}},3853.2055944265799,{"$f":"IF(A286<='S3-Short'!$C$7,('Growth-Model-3'!G285*EXP($AA$7)),0)","v":0},{"$f":"IF(A286<='S3-Short'!$C$7,$AD$6*EXP($AD$7*('S3-Short'!C$7-'Growth-Model-3'!A286)),0)","v":0},196.79440557341832,4.859121125269588E-2,0,13.580865810479755,0,{"$f":"M286/'S3-Short'!$C$17","v":0},{"$error":"#N/A"},{"$error":"#N/A"},{"$f":"_xlfn.XLOOKUP(B286,FeedTables!$C$17:$T$17,FeedTables!$C$31:$T$31,,-1)","v":{"$error":"#N/A"}},{"$f":"_xlfn.XLOOKUP(Q286,FeedPrice[Feed],FeedPrice[Price per kg],\"Unknown\",0)*O286","v":{"$error":"#N/A"}},{"$error":"#N/A"},{"$f":"_xlfn.XLOOKUP(O286,LabourFromFeed[Feed Quantity (kg)],LabourFromFeed[No. Labour],\"Out of range\",-1)","v":{"$error":"#N/A"}},{"$f":"T286*OperatingCosts!$C$9","v":{"$error":"#N/A"}},{"$error":"#N/A"}]
[285,{"$f":"IF(A287<='S3-Short'!$C$7, B286*EXP((LN((E286/100)+1))*1),)","v":0},{"$f":"_xlfn.XLOOKUP($B287,FeedTables!$C$42:$T$42,FeedTables!$C$44:$T$44,,-1)","v":{"$error":"#N/A"}},{"$f":"_xlfn.XLOOKUP($B287,FeedTables!$C$42:$T$42,FeedTables!$C$45:$T$45,,-1)","v":{"$error":"#N/A"}},{"$f":"_xlfn.XLOOKUP($B287,FeedTables!$C$42:$T$42,FeedTables!$C$46:$T$46,,-1)*_xlfn.XLOOKUP(N286,DensityMultiplier[Biomass kg/m3],DensityMultiplier[Multiplier],,-1)","v":{"$error":"#N/A"}},3853.2055944265799,{"$f":"IF(A287<='S3-Short'!$C$7,('Growth-Model-3'!G286*EXP($AA$7)),0)","v":0},{"$f":"IF(A287<='S3-Short'!$C$7,$AD$6*EXP($AD$7*('S3-Short'!C$7-'Growth-Model-3'!A287)),0)","v":0},196.79440557341832,4.859121125269588E-2,0,13.580865810479755,0,{"$f":"M287/'S3-Short'!$C$17","v":0},{"$error":"#N/A"},{"$error":"#N/A"},{"$f":"_xlfn.XLOOKUP(B287,FeedTables!$C$17:$T$17,FeedTables!$C$31:$T$31,,-1)","v":{"$error":"#N/A"}},{"$f":"_xlfn.XLOOKUP(Q287,FeedPrice[Feed],FeedPrice[Price per kg],\"Unknown\",0)*O287","v":{"$error":"#N/A"}},{"$error":"#N/A"},{"$f":"_xlfn.XLOOKUP(O287,LabourFromFeed[Feed Quantity (kg)],LabourFromFeed[No. Labour],\"Out of range\",-1)","v":{"$error":"#N/A"}},{"$f":"T287*OperatingCosts!$C$9","v":{"$error":"#N/A"}},{"$error":"#N/A"}]
[286,{"$f":"IF(A288<='S3-Short'!$C$7, B287*EXP((LN((E287/100)+1))*1),)","v":0},{"$f":"_xlfn.XLOOKUP($B288,FeedTables!$C$42:$T$42,FeedTables!$C$44:$T$44,,-1)","v":{"$error":"#N/A"}},{"$f":"_xlfn.XLOOKUP($B288,FeedTables!$C$42:$T$42,FeedTables!$C$45:$T$45,,-1)","v":{"$error":"#N/A"}},{"$f":"_xlfn.XLOOKUP($B288,FeedTables!$C$42:$T$42,FeedTables!$C$46:$T$46,,-1)*_xlfn.XLOOKUP(N287,DensityMultiplier[Biomass kg/m3],DensityMultiplier[Multiplier],,-1)","v":{"$error":"#N/A"}},3853.2055944265799,{"$f":"IF(A288<='S3-Short'!$C$7,('Growth-Model-3'!G287*EXP($AA$7)),0)","v":0},{"$f":"IF(A288<='S3-Short'!$C$7,$AD$6*EXP($AD$7*('S3-Short'!C$7-'Growth-Model-3'!A288)),0)","v":0},196.79440557341832,4.859121125269588E-2,0,13.580865810479755,0,{"$f":"M288/'S3-Short'!$C$17","v":0},{"$error":"#N/A"},{"$error":"#N/A"},{"$f":"_xlfn.XLOOKUP(B288,FeedTables!$C$17:$T$17,FeedTables!$C$31:$T$31,,-1)","v":{"$error":"#N/A"}},{"$f":"_xlfn.XLOOKUP(Q288,FeedPrice[Feed],FeedPrice[Price per kg],\"Unknown\",0)*O288","v":{"$error":"#N/A"}},{"$error":"#N/A"},{"$f":"_xlfn.XLOOKUP(O288,LabourFromFeed[Feed Quantity (kg)],LabourFromFeed[No. Labour],\"Out of range\",-1)","v":{"$error":"#N/A"}},{"$f":"T288*OperatingCosts!$C$9","v":{"$error":"#N/A"}},{"$error":"#N/A"}]
[287,{"$f":"IF(A289<='S3-Short'!$C$7, B288*EXP((LN((E288/100)+1))*1),)","v":0},{"$f":"_xlfn.XLOOKUP($B289,FeedTables!$C$42:$T$42,FeedTables!$C$44:$T$44,,-1)","v":{"$error":"#N/A"}},{"$f":"_xlfn.XLOOKUP($B289,FeedTables!$C$42:$T$42,FeedTables!$C$45:$T$45,,-1)","v":{"$error":"#N/A"}},{"$f":"_xlfn.XLOOKUP($B289,FeedTables!$C$42:$T$42,FeedTables!$C$46:$T$46,,-1)*_xlfn.XLOOKUP(N288,DensityMultiplier[Biomass kg/m3],DensityMultiplier[Multiplier],,-1)","v":{"$error":"#N/A"}},3853.2055944265799,{"$f":"IF(A289<='S3-Short'!$C$7,('Growth-Model-3'!G288*EXP($AA$7)),0)","v":0},{"$f":"IF(A289<='S3-Short'!$C$7,$AD$6*EXP($AD$7*('S3-Short'!C$7-'Growth-Model-3'!A289)),0)","v":0},196.79440557341832,4.859121125269588E-2,0,13.580865810479755,0,{"$f":"M289/'S3-Short'!$C$17","v":0},{"$error":"#N/A"},{"$error":"#N/A"},{"$f":"_xlfn.XLOOKUP(B289,FeedTables!$C$17:$T$17,FeedTables!$C$31:$T$31,,-1)","v":{"$error":"#N/A"}},{"$f":"_xlfn.XLOOKUP(Q289,FeedPrice[Feed],FeedPrice[Price per kg],\"Unknown\",0)*O289","v":{"$error":"#N/A"}},{"$error":"#N/A"},{"$f":"_xlfn.XLOOKUP(O289,LabourFromFeed[Feed Quantity (kg)],LabourFromFeed[No. Labour],\"Out of range\",-1)","v":{"$error":"#N/A"}},{"$f":"T289*OperatingCosts!$C$9","v":{"$error":"#N/A"}},{"$error":"#N/A"}]
[288,{"$f":"IF(A290<='S3-Short'!$C$7, B289*EXP((LN((E289/100)+1))*1),)","v":0},{"$f":"_xlfn.XLOOKUP($B290,FeedTables!$C$42:$T$42,FeedTables!$C$44:$T$44,,-1)","v":{"$error":"#N/A"}},{"$f":"_xlfn.XLOOKUP($B290,FeedTables!$C$42:$T$42,FeedTables!$C$45:$T$45,,-1)","v":{"$error":"#N/A"}},{"$f":"_xlfn.XLOOKUP($B290,FeedTables!$C$42:$T$42,FeedTables!$C$46:$T$46,,-1)*_xlfn.XLOOKUP(N289,DensityMultiplier[Biomass kg/m3],DensityMultiplier[Multiplier],,-1)","v":{"$error":"#N/A"}},3853.2055944265799,{"$f":"IF(A290<='S3-Short'!$C$7,('Growth-Model-3'!G289*EXP($AA$7)),0)","v":0},{"$f":"IF(A290<='S3-Short'!$C$7,$AD$6*EXP($AD$7*('S3-Short'!C$7-'Growth-Model-3'!A290)),0)","v":0},196.79440557341832,4.859121125269588E-2,0,13.580865810479755,0,{"$f":"M290/'S3-Short'!$C$17","v":0},{"$error":"#N/A"},{"$error":"#N/A"},{"$f":"_xlfn.XLOOKUP(B290,FeedTables!$C$17:$T$17,FeedTables!$C$31:$T$31,,-1)","v":{"$error":"#N/A"}},{"$f":"_xlfn.XLOOKUP(Q290,FeedPrice[Feed],FeedPrice[Price per kg],\"Unknown\",0)*O290","v":{"$error":"#N/A"}},{"$error":"#N/A"},{"$f":"_xlfn.XLOOKUP(O290,LabourFromFeed[Feed Quantity (kg)],LabourFromFeed[No. Labour],\"Out of range\",-1)","v":{"$error":"#N/A"}},{"$f":"T290*OperatingCosts!$C$9","v":{"$error":"#N/A"}},{"$error":"#N/A"}]
[289,{"$f":"IF(A291<='S3-Short'!$C$7, B290*EXP((LN((E290/100)+1))*1),)","v":0},{"$f":"_xlfn.XLOOKUP($B291,FeedTables!$C$42:$T$42,FeedTables!$C$44:$T$44,,-1)","v":{"$error":"#N/A"}},{"$f":"_xlfn.XLOOKUP($B291,FeedTables!$C$42:$T$42,FeedTables!$C$45:$T$45,,-1)","v":{"$error":"#N/A"}},{"$f":"_xlfn.XLOOKUP($B291,FeedTables!$C$42:$T$42,FeedTables!$C$46:$T$46,,-1)*_xlfn.XLOOKUP(N290,DensityMultiplier[Biomass kg/m3],DensityMultiplier[Multiplier],,-1)","v":{"$error":"#N/A"}},3853.2055944265799,{"$f":"IF(A291<='S3-Short'!$C$7,('Growth-Model-3'!G290*EXP($AA$7)),0)","v":0},{"$f":"IF(A291<='S3-Short'!$C$7,$AD$6*EXP($AD$7*('S3-Short'!C$7-'Growth-Model-3'!A291)),0)","v":0},196.79440557341832,4.859121125269588E-2,0,13.580865810479755,0,{"$f":"M291/'S3-Short'!$C$17","v":0},{"$error":"#N/A"},{"$error":"#N/A"},{"$f":"_xlfn.XLOOKUP(B291,FeedTables!$C$17:$T$17,FeedTables!$C$31:$T$31,,-1)","v":{"$error":"#N/A"}},{"$f":"_xlfn.XLOOKUP(Q291,FeedPrice[Feed],FeedPrice[Price per kg],\"Unknown\",0)*O291","v":{"$error":"#N/A"}},{"$error":"#N/A"},{"$f":"_xlfn.XLOOKUP(O291,LabourFromFeed[Feed Quantity (kg)],LabourFromFeed[No. Labour],\"Out of range\",-1)","v":{"$error":"#N/A"}},{"$f":"T291*OperatingCosts!$C$9","v":{"$error":"#N/A"}},{"$error":"#N/A"}]
[290,{"$f":"IF(A292<='S3-Short'!$C$7, B291*EXP((LN((E291/100)+1))*1),)","v":0},{"$f":"_xlfn.XLOOKUP($B292,FeedTables!$C$42:$T$42,FeedTables!$C$44:$T$44,,-1)","v":{"$error":"#N/A"}},{"$f":"_xlfn.XLOOKUP($B292,FeedTables!$C$42:$T$42,FeedTables!$C$45:$T$45,,-1)","v":{"$error":"#N/A"}},{"$f":"_xlfn.XLOOKUP($B292,FeedTables!$C$42:$T$42,FeedTables!$C$46:$T$46,,-1)*_xlfn.XLOOKUP(N291,DensityMultiplier[Biomass kg/m3],DensityMultiplier[Multiplier],,-1)","v":{"$error":"#N/A"}},3853.2055944265799,{"$f":"IF(A292<='S3-Short'!$C$7,('Growth-Model-3'!G291*EXP($AA$7)),0)","v":0},{"$f":"IF(A292<='S3-Short'!$C$7,$AD$6*EXP($AD$7*('S3-Short'!C$7-'Growth-Model-3'!A292)),0)","v":0},196.79440557341832,4.859121125269588E-2,0,13.580865810479755,0,{"$f":"M292/'S3-Short'!$C$17","v":0},{"$error":"#N/A"},{"$error":"#N/A"},{"$f":"_xlfn.XLOOKUP(B292,FeedTables!$C$17:$T$17,FeedTables!$C$31:$T$31,,-1)","v":{"$error":"#N/A"}},{"$f":"_xlfn.XLOOKUP(Q292,FeedPrice[Feed],FeedPrice[Price per kg],\"Unknown\",0)*O292","v":{"$error":"#N/A"}},{"$error":"#N/A"},{"$f":"_xlfn.XLOOKUP(O292,LabourFromFeed[Feed Quantity (kg)],LabourFromFeed[No. Labour],\"Out of range\",-1)","v":{"$error":"#N/A"}},{"$f":"T292*OperatingCosts!$C$9","v":{"$error":"#N/A"}},{"$error":"#N/A"}]
[291,{"$f":"IF(A293<='S3-Short'!$C$7, B292*EXP((LN((E292/100)+1))*1),)","v":0},{"$f":"_xlfn.XLOOKUP($B293,FeedTables!$C$42:$T$42,FeedTables!$C$44:$T$44,,-1)","v":{"$error":"#N/A"}},{"$f":"_xlfn.XLOOKUP($B293,FeedTables!$C$42:$T$42,FeedTables!$C$45:$T$45,,-1)","v":{"$error":"#N/A"}},{"$f":"_xlfn.XLOOKUP($B293,FeedTables!$C$42:$T$42,FeedTables!$C$46:$T$46,,-1)*_xlfn.XLOOKUP(N292,DensityMultiplier[Biomass kg/m3],DensityMultiplier[Multiplier],,-1)","v":{"$error":"#N/A"}},3853.2055944265799,{"$f":"IF(A293<='S3-Short'!$C$7,('Growth-Model-3'!G292*EXP($AA$7)),0)","v":0},{"$f":"IF(A293<='S3-Short'!$C$7,$AD$6*EXP($AD$7*('S3-Short'!C$7-'Growth-Model-3'!A293)),0)","v":0},196.79440557341832,4.859121125269588E-2,0,13.580865810479755,0,{"$f":"M293/'S3-Short'!$C$17","v":0},{"$error":"#N/A"},{"$error":"#N/A"},{"$f":"_xlfn.XLOOKUP(B293,FeedTables!$C$17:$T$17,FeedTables!$C$31:$T$31,,-1)","v":{"$error":"#N/A"}},{"$f":"_xlfn.XLOOKUP(Q293,FeedPrice[Feed],FeedPrice[Price per kg],\"Unknown\",0)*O293","v":{"$error":"#N/A"}},{"$error":"#N/A"},{"$f":"_xlfn.XLOOKUP(O293,LabourFromFeed[Feed Quantity (kg)],LabourFromFeed[No. Labour],\"Out of range\",-1)","v":{"$error":"#N/A"}},{"$f":"T293*OperatingCosts!$C$9","v":{"$error":"#N/A"}},{"$error":"#N/A"}]
[292,{"$f":"IF(A294<='S3-Short'!$C$7, B293*EXP((LN((E293/100)+1))*1),)","v":0},{"$f":"_xlfn.XLOOKUP($B294,FeedTables!$C$42:$T$42,FeedTables!$C$44:$T$44,,-1)","v":{"$error":"#N/A"}},{"$f":"_xlfn.XLOOKUP($B294,FeedTables!$C$42:$T$42,FeedTables!$C$45:$T$45,,-1)","v":{"$error":"#N/A"}},{"$f":"_xlfn.XLOOKUP($B294,FeedTables!$C$42:$T$42,FeedTables!$C$46:$T$46,,-1)*_xlfn.XLOOKUP(N293,DensityMultiplier[Biomass kg/m3],DensityMultiplier[Multiplier],,-1)","v":{"$error":"#N/A"}},3853.2055944265799,{"$f":"IF(A294<='S3-Short'!$C$7,('Growth-Model-3'!G293*EXP($AA$7)),0)","v":0},{"$f":"IF(A294<='S3-Short'!$C$7,$AD$6*EXP($AD$7*('S3-Short'!C$7-'Growth-Model-3'!A294)),0)","v":0},196.79440557341832,4.859121125269588E-2,0,13.580865810479755,0,{"$f":"M294/'S3-Short'!$C$17","v":0},{"$error":"#N/A"},{"$error":"#N/A"},{"$f":"_xlfn.XLOOKUP(B294,FeedTables!$C$17:$T$17,FeedTables!$C$31:$T$31,,-1)","v":{"$error":"#N/A"}},{"$f":"_xlfn.XLOOKUP(Q294,FeedPrice[Feed],FeedPrice[Price per kg],\"Unknown\",0)*O294","v":{"$error":"#N/A"}},{"$error":"#N/A"},{"$f":"_xlfn.XLOOKUP(O294,LabourFromFeed[Feed Quantity (kg)],LabourFromFeed[No. Labour],\"Out of range\",-1)","v":{"$error":"#N/A"}},{"$f":"T294*OperatingCosts!$C$9","v":{"$error":"#N/A"}},{"$error":"#N/A"}]
[293,{"$f":"IF(A295<='S3-Short'!$C$7, B294*EXP((LN((E294/100)+1))*1),)","v":0},{"$f":"_xlfn.XLOOKUP($B295,FeedTables!$C$42:$T$42,FeedTables!$C$44:$T$44,,-1)","v":{"$error":"#N/A"}},{"$f":"_xlfn.XLOOKUP($B295,FeedTables!$C$42:$T$42,FeedTables!$C$45:$T$45,,-1)","v":{"$error":"#N/A"}},{"$f":"_xlfn.XLOOKUP($B295,FeedTables!$C$42:$T$42,FeedTables!$C$46:$T$46,,-1)*_xlfn.XLOOKUP(N294,DensityMultiplier[Biomass kg/m3],DensityMultiplier[Multiplier],,-1)","v":{"$error":"#N/A"}},3853.2055944265799,{"$f":"IF(A295<='S3-Short'!$C$7,('Growth-Model-3'!G294*EXP($AA$7)),0)","v":0},{"$f":"IF(A295<='S3-Short'!$C$7,$AD$6*EXP($AD$7*('S3-Short'!C$7-'Growth-Model-3'!A295)),0)","v":0},196.79440557341832,4.859121125269588E-2,0,13.580865810479755,0,{"$f":"M295/'S3-Short'!$C$17","v":0},{"$error":"#N/A"},{"$error":"#N/A"},{"$f":"_xlfn.XLOOKUP(B295,FeedTables!$C$17:$T$17,FeedTables!$C$31:$T$31,,-1)","v":{"$error":"#N/A"}},{"$f":"_xlfn.XLOOKUP(Q295,FeedPrice[Feed],FeedPrice[Price per kg],\"Unknown\",0)*O295","v":{"$error":"#N/A"}},{"$error":"#N/A"},{"$f":"_xlfn.XLOOKUP(O295,LabourFromFeed[Feed Quantity (kg)],LabourFromFeed[No. Labour],\"Out of range\",-1)","v":{"$error":"#N/A"}},{"$f":"T295*OperatingCosts!$C$9","v":{"$error":"#N/A"}},{"$error":"#N/A"}]
[294,{"$f":"IF(A296<='S3-Short'!$C$7, B295*EXP((LN((E295/100)+1))*1),)","v":0},{"$f":"_xlfn.XLOOKUP($B296,FeedTables!$C$42:$T$42,FeedTables!$C$44:$T$44,,-1)","v":{"$error":"#N/A"}},{"$f":"_xlfn.XLOOKUP($B296,FeedTables!$C$42:$T$42,FeedTables!$C$45:$T$45,,-1)","v":{"$error":"#N/A"}},{"$f":"_xlfn.XLOOKUP($B296,FeedTables!$C$42:$T$42,FeedTables!$C$46:$T$46,,-1)*_xlfn.XLOOKUP(N295,DensityMultiplier[Biomass kg/m3],DensityMultiplier[Multiplier],,-1)","v":{"$error":"#N/A"}},3853.2055944265799,{"$f":"IF(A296<='S3-Short'!$C$7,('Growth-Model-3'!G295*EXP($AA$7)),0)","v":0},{"$f":"IF(A296<='S3-Short'!$C$7,$AD$6*EXP($AD$7*('S3-Short'!C$7-'Growth-Model-3'!A296)),0)","v":0},196.79440557341832,4.859121125269588E-2,0,13.580865810479755,0,{"$f":"M296/'S3-Short'!$C$17","v":0},{"$error":"#N/A"},{"$error":"#N/A"},{"$f":"_xlfn.XLOOKUP(B296,FeedTables!$C$17:$T$17,FeedTables!$C$31:$T$31,,-1)","v":{"$error":"#N/A"}},{"$f":"_xlfn.XLOOKUP(Q296,FeedPrice[Feed],FeedPrice[Price per kg],\"Unknown\",0)*O296","v":{"$error":"#N/A"}},{"$error":"#N/A"},{"$f":"_xlfn.XLOOKUP(O296,LabourFromFeed[Feed Quantity (kg)],LabourFromFeed[No. Labour],\"Out of range\",-1)","v":{"$error":"#N/A"}},{"$f":"T296*OperatingCosts!$C$9","v":{"$error":"#N/A"}},{"$error":"#N/A"}]
[295,{"$f":"IF(A297<='S3-Short'!$C$7, B296*EXP((LN((E296/100)+1))*1),)","v":0},{"$f":"_xlfn.XLOOKUP($B297,FeedTables!$C$42:$T$42,FeedTables!$C$44:$T$44,,-1)","v":{"$error":"#N/A"}},{"$f":"_xlfn.XLOOKUP($B297,FeedTables!$C$42:$T$42,FeedTables!$C$45:$T$45,,-1)","v":{"$error":"#N/A"}},{"$f":"_xlfn.XLOOKUP($B297,FeedTables!$C$42:$T$42,FeedTables!$C$46:$T$46,,-1)*_xlfn.XLOOKUP(N296,DensityMultiplier[Biomass kg/m3],DensityMultiplier[Multiplier],,-1)","v":{"$error":"#N/A"}},3853.2055944265799,{"$f":"IF(A297<='S3-Short'!$C$7,('Growth-Model-3'!G296*EXP($AA$7)),0)","v":0},{"$f":"IF(A297<='S3-Short'!$C$7,$AD$6*EXP($AD$7*('S3-Short'!C$7-'Growth-Model-3'!A297)),0)","v":0},196.79440557341832,4.859121125269588E-2,0,13.580865810479755,0,{"$f":"M297/'S3-Short'!$C$17","v":0},{"$error":"#N/A"},{"$error":"#N/A"},{"$f":"_xlfn.XLOOKUP(B297,FeedTables!$C$17:$T$17,FeedTables!$C$31:$T$31,,-1)","v":{"$error":"#N/A"}},{"$f":"_xlfn.XLOOKUP(Q297,FeedPrice[Feed],FeedPrice[Price per kg],\"Unknown\",0)*O297","v":{"$error":"#N/A"}},{"$error":"#N/A"},{"$f":"_xlfn.XLOOKUP(O297,LabourFromFeed[Feed Quantity (kg)],LabourFromFeed[No. Labour],\"Out of range\",-1)","v":{"$error":"#N/A"}},{"$f":"T297*OperatingCosts!$C$9","v":{"$error":"#N/A"}},{"$error":"#N/A"}]
[296,{"$f":"IF(A298<='S3-Short'!$C$7, B297*EXP((LN((E297/100)+1))*1),)","v":0},{"$f":"_xlfn.XLOOKUP($B298,FeedTables!$C$42:$T$42,FeedTables!$C$44:$T$44,,-1)","v":{"$error":"#N/A"}},{"$f":"_xlfn.XLOOKUP($B298,FeedTables!$C$42:$T$42,FeedTables!$C$45:$T$45,,-1)","v":{"$error":"#N/A"}},{"$f":"_xlfn.XLOOKUP($B298,FeedTables!$C$42:$T$42,FeedTables!$C$46:$T$46,,-1)*_xlfn.XLOOKUP(N297,DensityMultiplier[Biomass kg/m3],DensityMultiplier[Multiplier],,-1)","v":{"$error":"#N/A"}},3853.2055944265799,{"$f":"IF(A298<='S3-Short'!$C$7,('Growth-Model-3'!G297*EXP($AA$7)),0)","v":0},{"$f":"IF(A298<='S3-Short'!$C$7,$AD$6*EXP($AD$7*('S3-Short'!C$7-'Growth-Model-3'!A298)),0)","v":0},196.79440557341832,4.859121125269588E-2,0,13.580865810479755,0,{"$f":"M298/'S3-Short'!$C$17","v":0},{"$error":"#N/A"},{"$error":"#N/A"},{"$f":"_xlfn.XLOOKUP(B298,FeedTables!$C$17:$T$17,FeedTables!$C$31:$T$31,,-1)","v":{"$error":"#N/A"}},{"$f":"_xlfn.XLOOKUP(Q298,FeedPrice[Feed],FeedPrice[Price per kg],\"Unknown\",0)*O298","v":{"$error":"#N/A"}},{"$error":"#N/A"},{"$f":"_xlfn.XLOOKUP(O298,LabourFromFeed[Feed Quantity (kg)],LabourFromFeed[No. Labour],\"Out of range\",-1)","v":{"$error":"#N/A"}},{"$f":"T298*OperatingCosts!$C$9","v":{"$error":"#N/A"}},{"$error":"#N/A"}]
[297,{"$f":"IF(A299<='S3-Short'!$C$7, B298*EXP((LN((E298/100)+1))*1),)","v":0},{"$f":"_xlfn.XLOOKUP($B299,FeedTables!$C$42:$T$42,FeedTables!$C$44:$T$44,,-1)","v":{"$error":"#N/A"}},{"$f":"_xlfn.XLOOKUP($B299,FeedTables!$C$42:$T$42,FeedTables!$C$45:$T$45,,-1)","v":{"$error":"#N/A"}},{"$f":"_xlfn.XLOOKUP($B299,FeedTables!$C$42:$T$42,FeedTables!$C$46:$T$46,,-1)*_xlfn.XLOOKUP(N298,DensityMultiplier[Biomass kg/m3],DensityMultiplier[Multiplier],,-1)","v":{"$error":"#N/A"}},3853.2055944265799,{"$f":"IF(A299<='S3-Short'!$C$7,('Growth-Model-3'!G298*EXP($AA$7)),0)","v":0},{"$f":"IF(A299<='S3-Short'!$C$7,$AD$6*EXP($AD$7*('S3-Short'!C$7-'Growth-Model-3'!A299)),0)","v":0},196.79440557341832,4.859121125269588E-2,0,13.580865810479755,0,{"$f":"M299/'S3-Short'!$C$17","v":0},{"$error":"#N/A"},{"$error":"#N/A"},{"$f":"_xlfn.XLOOKUP(B299,FeedTables!$C$17:$T$17,FeedTables!$C$31:$T$31,,-1)","v":{"$error":"#N/A"}},{"$f":"_xlfn.XLOOKUP(Q299,FeedPrice[Feed],FeedPrice[Price per kg],\"Unknown\",0)*O299","v":{"$error":"#N/A"}},{"$error":"#N/A"},{"$f":"_xlfn.XLOOKUP(O299,LabourFromFeed[Feed Quantity (kg)],LabourFromFeed[No. Labour],\"Out of range\",-1)","v":{"$error":"#N/A"}},{"$f":"T299*OperatingCosts!$C$9","v":{"$error":"#N/A"}},{"$error":"#N/A"}]
[298,{"$f":"IF(A300<='S3-Short'!$C$7, B299*EXP((LN((E299/100)+1))*1),)","v":0},{"$f":"_xlfn.XLOOKUP($B300,FeedTables!$C$42:$T$42,FeedTables!$C$44:$T$44,,-1)","v":{"$error":"#N/A"}},{"$f":"_xlfn.XLOOKUP($B300,FeedTables!$C$42:$T$42,FeedTables!$C$45:$T$45,,-1)","v":{"$error":"#N/A"}},{"$f":"_xlfn.XLOOKUP($B300,FeedTables!$C$42:$T$42,FeedTables!$C$46:$T$46,,-1)*_xlfn.XLOOKUP(N299,DensityMultiplier[Biomass kg/m3],DensityMultiplier[Multiplier],,-1)","v":{"$error":"#N/A"}},3853.2055944265799,{"$f":"IF(A300<='S3-Short'!$C$7,('Growth-Model-3'!G299*EXP($AA$7)),0)","v":0},{"$f":"IF(A300<='S3-Short'!$C$7,$AD$6*EXP($AD$7*('S3-Short'!C$7-'Growth-Model-3'!A300)),0)","v":0},196.79440557341832,4.859121125269588E-2,0,13.580865810479755,0,{"$f":"M300/'S3-Short'!$C$17","v":0},{"$error":"#N/A"},{"$error":"#N/A"},{"$f":"_xlfn.XLOOKUP(B300,FeedTables!$C$17:$T$17,FeedTables!$C$31:$T$31,,-1)","v":{"$error":"#N/A"}},{"$f":"_xlfn.XLOOKUP(Q300,FeedPrice[Feed],FeedPrice[Price per kg],\"Unknown\",0)*O300","v":{"$error":"#N/A"}},{"$error":"#N/A"},{"$f":"_xlfn.XLOOKUP(O300,LabourFromFeed[Feed Quantity (kg)],LabourFromFeed[No. Labour],\"Out of range\",-1)","v":{"$error":"#N/A"}},{"$f":"T300*OperatingCosts!$C$9","v":{"$error":"#N/A"}},{"$error":"#N/A"}]
[299,{"$f":"IF(A301<='S3-Short'!$C$7, B300*EXP((LN((E300/100)+1))*1),)","v":0},{"$f":"_xlfn.XLOOKUP($B301,FeedTables!$C$42:$T$42,FeedTables!$C$44:$T$44,,-1)","v":{"$error":"#N/A"}},{"$f":"_xlfn.XLOOKUP($B301,FeedTables!$C$42:$T$42,FeedTables!$C$45:$T$45,,-1)","v":{"$error":"#N/A"}},{"$f":"_xlfn.XLOOKUP($B301,FeedTables!$C$42:$T$42,FeedTables!$C$46:$T$46,,-1)*_xlfn.XLOOKUP(N300,DensityMultiplier[Biomass kg/m3],DensityMultiplier[Multiplier],,-1)","v":{"$error":"#N/A"}},3853.2055944265799,{"$f":"IF(A301<='S3-Short'!$C$7,('Growth-Model-3'!G300*EXP($AA$7)),0)","v":0},{"$f":"IF(A301<='S3-Short'!$C$7,$AD$6*EXP($AD$7*('S3-Short'!C$7-'Growth-Model-3'!A301)),0)","v":0},196.79440557341832,4.859121125269588E-2,0,13.580865810479755,0,{"$f":"M301/'S3-Short'!$C$17","v":0},{"$error":"#N/A"},{"$error":"#N/A"},{"$f":"_xlfn.XLOOKUP(B301,FeedTables!$C$17:$T$17,FeedTables!$C$31:$T$31,,-1)","v":{"$error":"#N/A"}},{"$f":"_xlfn.XLOOKUP(Q301,FeedPrice[Feed],FeedPrice[Price per kg],\"Unknown\",0)*O301","v":{"$error":"#N/A"}},{"$error":"#N/A"},{"$f":"_xlfn.XLOOKUP(O301,LabourFromFeed[Feed Quantity (kg)],LabourFromFeed[No. Labour],\"Out of range\",-1)","v":{"$error":"#N/A"}},{"$f":"T301*OperatingCosts!$C$9","v":{"$error":"#N/A"}},{"$error":"#N/A"}]
[300,{"$f":"IF(A302<='S3-Short'!$C$7, B301*EXP((LN((E301/100)+1))*1),)","v":0},{"$f":"_xlfn.XLOOKUP($B302,FeedTables!$C$42:$T$42,FeedTables!$C$44:$T$44,,-1)","v":{"$error":"#N/A"}},{"$f":"_xlfn.XLOOKUP($B302,FeedTables!$C$42:$T$42,FeedTables!$C$45:$T$45,,-1)","v":{"$error":"#N/A"}},{"$f":"_xlfn.XLOOKUP($B302,FeedTables!$C$42:$T$42,FeedTables!$C$46:$T$46,,-1)*_xlfn.XLOOKUP(N301,DensityMultiplier[Biomass kg/m3],DensityMultiplier[Multiplier],,-1)","v":{"$error":"#N/A"}},3853.2055944265799,{"$f":"IF(A302<='S3-Short'!$C$7,('Growth-Model-3'!G301*EXP($AA$7)),0)","v":0},{"$f":"IF(A302<='S3-Short'!$C$7,$AD$6*EXP($AD$7*('S3-Short'!C$7-'Growth-Model-3'!A302)),0)","v":0},196.79440557341832,4.859121125269588E-2,0,13.580865810479755,0,{"$f":"M302/'S3-Short'!$C$17","v":0},{"$error":"#N/A"},{"$error":"#N/A"},{"$f":"_xlfn.XLOOKUP(B302,FeedTables!$C$17:$T$17,FeedTables!$C$31:$T$31,,-1)","v":{"$error":"#N/A"}},{"$f":"_xlfn.XLOOKUP(Q302,FeedPrice[Feed],FeedPrice[Price per kg],\"Unknown\",0)*O302","v":{"$error":"#N/A"}},{"$error":"#N/A"},{"$f":"_xlfn.XLOOKUP(O302,LabourFromFeed[Feed Quantity (kg)],LabourFromFeed[No. Labour],\"Out of range\",-1)","v":{"$error":"#N/A"}},{"$f":"T302*OperatingCosts!$C$9","v":{"$error":"#N/A"}},{"$error":"#N/A"}]
[301,{"$f":"IF(A303<='S3-Short'!$C$7, B302*EXP((LN((E302/100)+1))*1),)","v":0},{"$f":"_xlfn.XLOOKUP($B303,FeedTables!$C$42:$T$42,FeedTables!$C$44:$T$44,,-1)","v":{"$error":"#N/A"}},{"$f":"_xlfn.XLOOKUP($B303,FeedTables!$C$42:$T$42,FeedTables!$C$45:$T$45,,-1)","v":{"$error":"#N/A"}},{"$f":"_xlfn.XLOOKUP($B303,FeedTables!$C$42:$T$42,FeedTables!$C$46:$T$46,,-1)*_xlfn.XLOOKUP(N302,DensityMultiplier[Biomass kg/m3],DensityMultiplier[Multiplier],,-1)","v":{"$error":"#N/A"}},3853.2055944265799,{"$f":"IF(A303<='S3-Short'!$C$7,('Growth-Model-3'!G302*EXP($AA$7)),0)","v":0},{"$f":"IF(A303<='S3-Short'!$C$7,$AD$6*EXP($AD$7*('S3-Short'!C$7-'Growth-Model-3'!A303)),0)","v":0},196.79440557341832,4.859121125269588E-2,0,13.580865810479755,0,{"$f":"M303/'S3-Short'!$C$17","v":0},{"$error":"#N/A"},{"$error":"#N/A"},{"$f":"_xlfn.XLOOKUP(B303,FeedTables!$C$17:$T$17,FeedTables!$C$31:$T$31,,-1)","v":{"$error":"#N/A"}},{"$f":"_xlfn.XLOOKUP(Q303,FeedPrice[Feed],FeedPrice[Price per kg],\"Unknown\",0)*O303","v":{"$error":"#N/A"}},{"$error":"#N/A"},{"$f":"_xlfn.XLOOKUP(O303,LabourFromFeed[Feed Quantity (kg)],LabourFromFeed[No. Labour],\"Out of range\",-1)","v":{"$error":"#N/A"}},{"$f":"T303*OperatingCosts!$C$9","v":{"$error":"#N/A"}},{"$error":"#N/A"}]
[302,{"$f":"IF(A304<='S3-Short'!$C$7, B303*EXP((LN((E303/100)+1))*1),)","v":0},{"$f":"_xlfn.XLOOKUP($B304,FeedTables!$C$42:$T$42,FeedTables!$C$44:$T$44,,-1)","v":{"$error":"#N/A"}},{"$f":"_xlfn.XLOOKUP($B304,FeedTables!$C$42:$T$42,FeedTables!$C$45:$T$45,,-1)","v":{"$error":"#N/A"}},{"$f":"_xlfn.XLOOKUP($B304,FeedTables!$C$42:$T$42,FeedTables!$C$46:$T$46,,-1)*_xlfn.XLOOKUP(N303,DensityMultiplier[Biomass kg/m3],DensityMultiplier[Multiplier],,-1)","v":{"$error":"#N/A"}},3853.2055944265799,{"$f":"IF(A304<='S3-Short'!$C$7,('Growth-Model-3'!G303*EXP($AA$7)),0)","v":0},{"$f":"IF(A304<='S3-Short'!$C$7,$AD$6*EXP($AD$7*('S3-Short'!C$7-'Growth-Model-3'!A304)),0)","v":0},196.79440557341832,4.859121125269588E-2,0,13.580865810479755,0,{"$f":"M304/'S3-Short'!$C$17","v":0},{"$error":"#N/A"},{"$error":"#N/A"},{"$f":"_xlfn.XLOOKUP(B304,FeedTables!$C$17:$T$17,FeedTables!$C$31:$T$31,,-1)","v":{"$error":"#N/A"}},{"$f":"_xlfn.XLOOKUP(Q304,FeedPrice[Feed],FeedPrice[Price per kg],\"Unknown\",0)*O304","v":{"$error":"#N/A"}},{"$error":"#N/A"},{"$f":"_xlfn.XLOOKUP(O304,LabourFromFeed[Feed Quantity (kg)],LabourFromFeed[No. Labour],\"Out of range\",-1)","v":{"$error":"#N/A"}},{"$f":"T304*OperatingCosts!$C$9","v":{"$error":"#N/A"}},{"$error":"#N/A"}]
[303,{"$f":"IF(A305<='S3-Short'!$C$7, B304*EXP((LN((E304/100)+1))*1),)","v":0},{"$f":"_xlfn.XLOOKUP($B305,FeedTables!$C$42:$T$42,FeedTables!$C$44:$T$44,,-1)","v":{"$error":"#N/A"}},{"$f":"_xlfn.XLOOKUP($B305,FeedTables!$C$42:$T$42,FeedTables!$C$45:$T$45,,-1)","v":{"$error":"#N/A"}},{"$f":"_xlfn.XLOOKUP($B305,FeedTables!$C$42:$T$42,FeedTables!$C$46:$T$46,,-1)*_xlfn.XLOOKUP(N304,DensityMultiplier[Biomass kg/m3],DensityMultiplier[Multiplier],,-1)","v":{"$error":"#N/A"}},3853.2055944265799,{"$f":"IF(A305<='S3-Short'!$C$7,('Growth-Model-3'!G304*EXP($AA$7)),0)","v":0},{"$f":"IF(A305<='S3-Short'!$C$7,$AD$6*EXP($AD$7*('S3-Short'!C$7-'Growth-Model-3'!A305)),0)","v":0},196.79440557341832,4.859121125269588E-2,0,13.580865810479755,0,{"$f":"M305/'S3-Short'!$C$17","v":0},{"$error":"#N/A"},{"$error":"#N/A"},{"$f":"_xlfn.XLOOKUP(B305,FeedTables!$C$17:$T$17,FeedTables!$C$31:$T$31,,-1)","v":{"$error":"#N/A"}},{"$f":"_xlfn.XLOOKUP(Q305,FeedPrice[Feed],FeedPrice[Price per kg],\"Unknown\",0)*O305","v":{"$error":"#N/A"}},{"$error":"#N/A"},{"$f":"_xlfn.XLOOKUP(O305,LabourFromFeed[Feed Quantity (kg)],LabourFromFeed[No. Labour],\"Out of range\",-1)","v":{"$error":"#N/A"}},{"$f":"T305*OperatingCosts!$C$9","v":{"$error":"#N/A"}},{"$error":"#N/A"}]
[304,{"$f":"IF(A306<='S3-Short'!$C$7, B305*EXP((LN((E305/100)+1))*1),)","v":0},{"$f":"_xlfn.XLOOKUP($B306,FeedTables!$C$42:$T$42,FeedTables!$C$44:$T$44,,-1)","v":{"$error":"#N/A"}},{"$f":"_xlfn.XLOOKUP($B306,FeedTables!$C$42:$T$42,FeedTables!$C$45:$T$45,,-1)","v":{"$error":"#N/A"}},{"$f":"_xlfn.XLOOKUP($B306,FeedTables!$C$42:$T$42,FeedTables!$C$46:$T$46,,-1)*_xlfn.XLOOKUP(N305,DensityMultiplier[Biomass kg/m3],DensityMultiplier[Multiplier],,-1)","v":{"$error":"#N/A"}},3853.2055944265799,{"$f":"IF(A306<='S3-Short'!$C$7,('Growth-Model-3'!G305*EXP($AA$7)),0)","v":0},{"$f":"IF(A306<='S3-Short'!$C$7,$AD$6*EXP($AD$7*('S3-Short'!C$7-'Growth-Model-3'!A306)),0)","v":0},196.79440557341832,4.859121125269588E-2,0,13.580865810479755,0,{"$f":"M306/'S3-Short'!$C$17","v":0},{"$error":"#N/A"},{"$error":"#N/A"},{"$f":"_xlfn.XLOOKUP(B306,FeedTables!$C$17:$T$17,FeedTables!$C$31:$T$31,,-1)","v":{"$error":"#N/A"}},{"$f":"_xlfn.XLOOKUP(Q306,FeedPrice[Feed],FeedPrice[Price per kg],\"Unknown\",0)*O306","v":{"$error":"#N/A"}},{"$error":"#N/A"},{"$f":"_xlfn.XLOOKUP(O306,LabourFromFeed[Feed Quantity (kg)],LabourFromFeed[No. Labour],\"Out of range\",-1)","v":{"$error":"#N/A"}},{"$f":"T306*OperatingCosts!$C$9","v":{"$error":"#N/A"}},{"$error":"#N/A"}]
[305,{"$f":"IF(A307<='S3-Short'!$C$7, B306*EXP((LN((E306/100)+1))*1),)","v":0},{"$f":"_xlfn.XLOOKUP($B307,FeedTables!$C$42:$T$42,FeedTables!$C$44:$T$44,,-1)","v":{"$error":"#N/A"}},{"$f":"_xlfn.XLOOKUP($B307,FeedTables!$C$42:$T$42,FeedTables!$C$45:$T$45,,-1)","v":{"$error":"#N/A"}},{"$f":"_xlfn.XLOOKUP($B307,FeedTables!$C$42:$T$42,FeedTables!$C$46:$T$46,,-1)*_xlfn.XLOOKUP(N306,DensityMultiplier[Biomass kg/m3],DensityMultiplier[Multiplier],,-1)","v":{"$error":"#N/A"}},3853.2055944265799,{"$f":"IF(A307<='S3-Short'!$C$7,('Growth-Model-3'!G306*EXP($AA$7)),0)","v":0},{"$f":"IF(A307<='S3-Short'!$C$7,$AD$6*EXP($AD$7*('S3-Short'!C$7-'Growth-Model-3'!A307)),0)","v":0},196.79440557341832,4.859121125269588E-2,0,13.580865810479755,0,{"$f":"M307/'S3-Short'!$C$17","v":0},{"$error":"#N/A"},{"$error":"#N/A"},{"$f":"_xlfn.XLOOKUP(B307,FeedTables!$C$17:$T$17,FeedTables!$C$31:$T$31,,-1)","v":{"$error":"#N/A"}},{"$f":"_xlfn.XLOOKUP(Q307,FeedPrice[Feed],FeedPrice[Price per kg],\"Unknown\",0)*O307","v":{"$error":"#N/A"}},{"$error":"#N/A"},{"$f":"_xlfn.XLOOKUP(O307,LabourFromFeed[Feed Quantity (kg)],LabourFromFeed[No. Labour],\"Out of range\",-1)","v":{"$error":"#N/A"}},{"$f":"T307*OperatingCosts!$C$9","v":{"$error":"#N/A"}},{"$error":"#N/A"}]
[306,{"$f":"IF(A308<='S3-Short'!$C$7, B307*EXP((LN((E307/100)+1))*1),)","v":0},{"$f":"_xlfn.XLOOKUP($B308,FeedTables!$C$42:$T$42,FeedTables!$C$44:$T$44,,-1)","v":{"$error":"#N/A"}},{"$f":"_xlfn.XLOOKUP($B308,FeedTables!$C$42:$T$42,FeedTables!$C$45:$T$45,,-1)","v":{"$error":"#N/A"}},{"$f":"_xlfn.XLOOKUP($B308,FeedTables!$C$42:$T$42,FeedTables!$C$46:$T$46,,-1)*_xlfn.XLOOKUP(N307,DensityMultiplier[Biomass kg/m3],DensityMultiplier[Multiplier],,-1)","v":{"$error":"#N/A"}},3853.2055944265799,{"$f":"IF(A308<='S3-Short'!$C$7,('Growth-Model-3'!G307*EXP($AA$7)),0)","v":0},{"$f":"IF(A308<='S3-Short'!$C$7,$AD$6*EXP($AD$7*('S3-Short'!C$7-'Growth-Model-3'!A308)),0)","v":0},196.79440557341832,4.859121125269588E-2,0,13.580865810479755,0,{"$f":"M308/'S3-Short'!$C$17","v":0},{"$error":"#N/A"},{"$error":"#N/A"},{"$f":"_xlfn.XLOOKUP(B308,FeedTables!$C$17:$T$17,FeedTables!$C$31:$T$31,,-1)","v":{"$error":"#N/A"}},{"$f":"_xlfn.XLOOKUP(Q308,FeedPrice[Feed],FeedPrice[Price per kg],\"Unknown\",0)*O308","v":{"$error":"#N/A"}},{"$error":"#N/A"},{"$f":"_xlfn.XLOOKUP(O308,LabourFromFeed[Feed Quantity (kg)],LabourFromFeed[No. Labour],\"Out of range\",-1)","v":{"$error":"#N/A"}},{"$f":"T308*OperatingCosts!$C$9","v":{"$error":"#N/A"}},{"$error":"#N/A"}]
[307,{"$f":"IF(A309<='S3-Short'!$C$7, B308*EXP((LN((E308/100)+1))*1),)","v":0},{"$f":"_xlfn.XLOOKUP($B309,FeedTables!$C$42:$T$42,FeedTables!$C$44:$T$44,,-1)","v":{"$error":"#N/A"}},{"$f":"_xlfn.XLOOKUP($B309,FeedTables!$C$42:$T$42,FeedTables!$C$45:$T$45,,-1)","v":{"$error":"#N/A"}},{"$f":"_xlfn.XLOOKUP($B309,FeedTables!$C$42:$T$42,FeedTables!$C$46:$T$46,,-1)*_xlfn.XLOOKUP(N308,DensityMultiplier[Biomass kg/m3],DensityMultiplier[Multiplier],,-1)","v":{"$error":"#N/A"}},3853.2055944265799,{"$f":"IF(A309<='S3-Short'!$C$7,('Growth-Model-3'!G308*EXP($AA$7)),0)","v":0},{"$f":"IF(A309<='S3-Short'!$C$7,$AD$6*EXP($AD$7*('S3-Short'!C$7-'Growth-Model-3'!A309)),0)","v":0},196.79440557341832,4.859121125269588E-2,0,13.580865810479755,0,{"$f":"M309/'S3-Short'!$C$17","v":0},{"$error":"#N/A"},{"$error":"#N/A"},{"$f":"_xlfn.XLOOKUP(B309,FeedTables!$C$17:$T$17,FeedTables!$C$31:$T$31,,-1)","v":{"$error":"#N/A"}},{"$f":"_xlfn.XLOOKUP(Q309,FeedPrice[Feed],FeedPrice[Price per kg],\"Unknown\",0)*O309","v":{"$error":"#N/A"}},{"$error":"#N/A"},{"$f":"_xlfn.XLOOKUP(O309,LabourFromFeed[Feed Quantity (kg)],LabourFromFeed[No. Labour],\"Out of range\",-1)","v":{"$error":"#N/A"}},{"$f":"T309*OperatingCosts!$C$9","v":{"$error":"#N/A"}},{"$error":"#N/A"}]
[308,{"$f":"IF(A310<='S3-Short'!$C$7, B309*EXP((LN((E309/100)+1))*1),)","v":0},{"$f":"_xlfn.XLOOKUP($B310,FeedTables!$C$42:$T$42,FeedTables!$C$44:$T$44,,-1)","v":{"$error":"#N/A"}},{"$f":"_xlfn.XLOOKUP($B310,FeedTables!$C$42:$T$42,FeedTables!$C$45:$T$45,,-1)","v":{"$error":"#N/A"}},{"$f":"_xlfn.XLOOKUP($B310,FeedTables!$C$42:$T$42,FeedTables!$C$46:$T$46,,-1)*_xlfn.XLOOKUP(N309,DensityMultiplier[Biomass kg/m3],DensityMultiplier[Multiplier],,-1)","v":{"$error":"#N/A"}},3853.2055944265799,{"$f":"IF(A310<='S3-Short'!$C$7,('Growth-Model-3'!G309*EXP($AA$7)),0)","v":0},{"$f":"IF(A310<='S3-Short'!$C$7,$AD$6*EXP($AD$7*('S3-Short'!C$7-'Growth-Model-3'!A310)),0)","v":0},196.79440557341832,4.859121125269588E-2,0,13.580865810479755,0,{"$f":"M310/'S3-Short'!$C$17","v":0},{"$error":"#N/A"},{"$error":"#N/A"},{"$f":"_xlfn.XLOOKUP(B310,FeedTables!$C$17:$T$17,FeedTables!$C$31:$T$31,,-1)","v":{"$error":"#N/A"}},{"$f":"_xlfn.XLOOKUP(Q310,FeedPrice[Feed],FeedPrice[Price per kg],\"Unknown\",0)*O310","v":{"$error":"#N/A"}},{"$error":"#N/A"},{"$f":"_xlfn.XLOOKUP(O310,LabourFromFeed[Feed Quantity (kg)],LabourFromFeed[No. Labour],\"Out of range\",-1)","v":{"$error":"#N/A"}},{"$f":"T310*OperatingCosts!$C$9","v":{"$error":"#N/A"}},{"$error":"#N/A"}]
[309,{"$f":"IF(A311<='S3-Short'!$C$7, B310*EXP((LN((E310/100)+1))*1),)","v":0},{"$f":"_xlfn.XLOOKUP($B311,FeedTables!$C$42:$T$42,FeedTables!$C$44:$T$44,,-1)","v":{"$error":"#N/A"}},{"$f":"_xlfn.XLOOKUP($B311,FeedTables!$C$42:$T$42,FeedTables!$C$45:$T$45,,-1)","v":{"$error":"#N/A"}},{"$f":"_xlfn.XLOOKUP($B311,FeedTables!$C$42:$T$42,FeedTables!$C$46:$T$46,,-1)*_xlfn.XLOOKUP(N310,DensityMultiplier[Biomass kg/m3],DensityMultiplier[Multiplier],,-1)","v":{"$error":"#N/A"}},3853.2055944265799,{"$f":"IF(A311<='S3-Short'!$C$7,('Growth-Model-3'!G310*EXP($AA$7)),0)","v":0},{"$f":"IF(A311<='S3-Short'!$C$7,$AD$6*EXP($AD$7*('S3-Short'!C$7-'Growth-Model-3'!A311)),0)","v":0},196.79440557341832,4.859121125269588E-2,0,13.580865810479755,0,{"$f":"M311/'S3-Short'!$C$17","v":0},{"$error":"#N/A"},{"$error":"#N/A"},{"$f":"_xlfn.XLOOKUP(B311,FeedTables!$C$17:$T$17,FeedTables!$C$31:$T$31,,-1)","v":{"$error":"#N/A"}},{"$f":"_xlfn.XLOOKUP(Q311,FeedPrice[Feed],FeedPrice[Price per kg],\"Unknown\",0)*O311","v":{"$error":"#N/A"}},{"$error":"#N/A"},{"$f":"_xlfn.XLOOKUP(O311,LabourFromFeed[Feed Quantity (kg)],LabourFromFeed[No. Labour],\"Out of range\",-1)","v":{"$error":"#N/A"}},{"$f":"T311*OperatingCosts!$C$9","v":{"$error":"#N/A"}},{"$error":"#N/A"}]
[310,{"$f":"IF(A312<='S3-Short'!$C$7, B311*EXP((LN((E311/100)+1))*1),)","v":0},{"$f":"_xlfn.XLOOKUP($B312,FeedTables!$C$42:$T$42,FeedTables!$C$44:$T$44,,-1)","v":{"$error":"#N/A"}},{"$f":"_xlfn.XLOOKUP($B312,FeedTables!$C$42:$T$42,FeedTables!$C$45:$T$45,,-1)","v":{"$error":"#N/A"}},{"$f":"_xlfn.XLOOKUP($B312,FeedTables!$C$42:$T$42,FeedTables!$C$46:$T$46,,-1)*_xlfn.XLOOKUP(N311,DensityMultiplier[Biomass kg/m3],DensityMultiplier[Multiplier],,-1)","v":{"$error":"#N/A"}},3853.2055944265799,{"$f":"IF(A312<='S3-Short'!$C$7,('Growth-Model-3'!G311*EXP($AA$7)),0)","v":0},{"$f":"IF(A312<='S3-Short'!$C$7,$AD$6*EXP($AD$7*('S3-Short'!C$7-'Growth-Model-3'!A312)),0)","v":0},196.79440557341832,4.859121125269588E-2,0,13.580865810479755,0,{"$f":"M312/'S3-Short'!$C$17","v":0},{"$error":"#N/A"},{"$error":"#N/A"},{"$f":"_xlfn.XLOOKUP(B312,FeedTables!$C$17:$T$17,FeedTables!$C$31:$T$31,,-1)","v":{"$error":"#N/A"}},{"$f":"_xlfn.XLOOKUP(Q312,FeedPrice[Feed],FeedPrice[Price per kg],\"Unknown\",0)*O312","v":{"$error":"#N/A"}},{"$error":"#N/A"},{"$f":"_xlfn.XLOOKUP(O312,LabourFromFeed[Feed Quantity (kg)],LabourFromFeed[No. Labour],\"Out of range\",-1)","v":{"$error":"#N/A"}},{"$f":"T312*OperatingCosts!$C$9","v":{"$error":"#N/A"}},{"$error":"#N/A"}]
[311,{"$f":"IF(A313<='S3-Short'!$C$7, B312*EXP((LN((E312/100)+1))*1),)","v":0},{"$f":"_xlfn.XLOOKUP($B313,FeedTables!$C$42:$T$42,FeedTables!$C$44:$T$44,,-1)","v":{"$error":"#N/A"}},{"$f":"_xlfn.XLOOKUP($B313,FeedTables!$C$42:$T$42,FeedTables!$C$45:$T$45,,-1)","v":{"$error":"#N/A"}},{"$f":"_xlfn.XLOOKUP($B313,FeedTables!$C$42:$T$42,FeedTables!$C$46:$T$46,,-1)*_xlfn.XLOOKUP(N312,DensityMultiplier[Biomass kg/m3],DensityMultiplier[Multiplier],,-1)","v":{"$error":"#N/A"}},3853.2055944265799,{"$f":"IF(A313<='S3-Short'!$C$7,('Growth-Model-3'!G312*EXP($AA$7)),0)","v":0},{"$f":"IF(A313<='S3-Short'!$C$7,$AD$6*EXP($AD$7*('S3-Short'!C$7-'Growth-Model-3'!A313)),0)","v":0},196.79440557341832,4.859121125269588E-2,0,13.580865810479755,0,{"$f":"M313/'S3-Short'!$C$17","v":0},{"$error":"#N/A"},{"$error":"#N/A"},{"$f":"_xlfn.XLOOKUP(B313,FeedTables!$C$17:$T$17,FeedTables!$C$31:$T$31,,-1)","v":{"$error":"#N/A"}},{"$f":"_xlfn.XLOOKUP(Q313,FeedPrice[Feed],FeedPrice[Price per kg],\"Unknown\",0)*O313","v":{"$error":"#N/A"}},{"$error":"#N/A"},{"$f":"_xlfn.XLOOKUP(O313,LabourFromFeed[Feed Quantity (kg)],LabourFromFeed[No. Labour],\"Out of range\",-1)","v":{"$error":"#N/A"}},{"$f":"T313*OperatingCosts!$C$9","v":{"$error":"#N/A"}},{"$error":"#N/A"}]
[312,{"$f":"IF(A314<='S3-Short'!$C$7, B313*EXP((LN((E313/100)+1))*1),)","v":0},{"$f":"_xlfn.XLOOKUP($B314,FeedTables!$C$42:$T$42,FeedTables!$C$44:$T$44,,-1)","v":{"$error":"#N/A"}},{"$f":"_xlfn.XLOOKUP($B314,FeedTables!$C$42:$T$42,FeedTables!$C$45:$T$45,,-1)","v":{"$error":"#N/A"}},{"$f":"_xlfn.XLOOKUP($B314,FeedTables!$C$42:$T$42,FeedTables!$C$46:$T$46,,-1)*_xlfn.XLOOKUP(N313,DensityMultiplier[Biomass kg/m3],DensityMultiplier[Multiplier],,-1)","v":{"$error":"#N/A"}},3853.2055944265799,{"$f":"IF(A314<='S3-Short'!$C$7,('Growth-Model-3'!G313*EXP($AA$7)),0)","v":0},{"$f":"IF(A314<='S3-Short'!$C$7,$AD$6*EXP($AD$7*('S3-Short'!C$7-'Growth-Model-3'!A314)),0)","v":0},196.79440557341832,4.859121125269588E-2,0,13.580865810479755,0,{"$f":"M314/'S3-Short'!$C$17","v":0},{"$error":"#N/A"},{"$error":"#N/A"},{"$f":"_xlfn.XLOOKUP(B314,FeedTables!$C$17:$T$17,FeedTables!$C$31:$T$31,,-1)","v":{"$error":"#N/A"}},{"$f":"_xlfn.XLOOKUP(Q314,FeedPrice[Feed],FeedPrice[Price per kg],\"Unknown\",0)*O314","v":{"$error":"#N/A"}},{"$error":"#N/A"},{"$f":"_xlfn.XLOOKUP(O314,LabourFromFeed[Feed Quantity (kg)],LabourFromFeed[No. Labour],\"Out of range\",-1)","v":{"$error":"#N/A"}},{"$f":"T314*OperatingCosts!$C$9","v":{"$error":"#N/A"}},{"$error":"#N/A"}]
[313,{"$f":"IF(A315<='S3-Short'!$C$7, B314*EXP((LN((E314/100)+1))*1),)","v":0},{"$f":"_xlfn.XLOOKUP($B315,FeedTables!$C$42:$T$42,FeedTables!$C$44:$T$44,,-1)","v":{"$error":"#N/A"}},{"$f":"_xlfn.XLOOKUP($B315,FeedTables!$C$42:$T$42,FeedTables!$C$45:$T$45,,-1)","v":{"$error":"#N/A"}},{"$f":"_xlfn.XLOOKUP($B315,FeedTables!$C$42:$T$42,FeedTables!$C$46:$T$46,,-1)*_xlfn.XLOOKUP(N314,DensityMultiplier[Biomass kg/m3],DensityMultiplier[Multiplier],,-1)","v":{"$error":"#N/A"}},3853.2055944265799,{"$f":"IF(A315<='S3-Short'!$C$7,('Growth-Model-3'!G314*EXP($AA$7)),0)","v":0},{"$f":"IF(A315<='S3-Short'!$C$7,$AD$6*EXP($AD$7*('S3-Short'!C$7-'Growth-Model-3'!A315)),0)","v":0},196.79440557341832,4.859121125269588E-2,0,13.580865810479755,0,{"$f":"M315/'S3-Short'!$C$17","v":0},{"$error":"#N/A"},{"$error":"#N/A"},{"$f":"_xlfn.XLOOKUP(B315,FeedTables!$C$17:$T$17,FeedTables!$C$31:$T$31,,-1)","v":{"$error":"#N/A"}},{"$f":"_xlfn.XLOOKUP(Q315,FeedPrice[Feed],FeedPrice[Price per kg],\"Unknown\",0)*O315","v":{"$error":"#N/A"}},{"$error":"#N/A"},{"$f":"_xlfn.XLOOKUP(O315,LabourFromFeed[Feed Quantity (kg)],LabourFromFeed[No. Labour],\"Out of range\",-1)","v":{"$error":"#N/A"}},{"$f":"T315*OperatingCosts!$C$9","v":{"$error":"#N/A"}},{"$error":"#N/A"}]
[314,{"$f":"IF(A316<='S3-Short'!$C$7, B315*EXP((LN((E315/100)+1))*1),)","v":0},{"$f":"_xlfn.XLOOKUP($B316,FeedTables!$C$42:$T$42,FeedTables!$C$44:$T$44,,-1)","v":{"$error":"#N/A"}},{"$f":"_xlfn.XLOOKUP($B316,FeedTables!$C$42:$T$42,FeedTables!$C$45:$T$45,,-1)","v":{"$error":"#N/A"}},{"$f":"_xlfn.XLOOKUP($B316,FeedTables!$C$42:$T$42,FeedTables!$C$46:$T$46,,-1)*_xlfn.XLOOKUP(N315,DensityMultiplier[Biomass kg/m3],DensityMultiplier[Multiplier],,-1)","v":{"$error":"#N/A"}},3853.2055944265799,{"$f":"IF(A316<='S3-Short'!$C$7,('Growth-Model-3'!G315*EXP($AA$7)),0)","v":0},{"$f":"IF(A316<='S3-Short'!$C$7,$AD$6*EXP($AD$7*('S3-Short'!C$7-'Growth-Model-3'!A316)),0)","v":0},196.79440557341832,4.859121125269588E-2,0,13.580865810479755,0,{"$f":"M316/'S3-Short'!$C$17","v":0},{"$error":"#N/A"},{"$error":"#N/A"},{"$f":"_xlfn.XLOOKUP(B316,FeedTables!$C$17:$T$17,FeedTables!$C$31:$T$31,,-1)","v":{"$error":"#N/A"}},{"$f":"_xlfn.XLOOKUP(Q316,FeedPrice[Feed],FeedPrice[Price per kg],\"Unknown\",0)*O316","v":{"$error":"#N/A"}},{"$error":"#N/A"},{"$f":"_xlfn.XLOOKUP(O316,LabourFromFeed[Feed Quantity (kg)],LabourFromFeed[No. Labour],\"Out of range\",-1)","v":{"$error":"#N/A"}},{"$f":"T316*OperatingCosts!$C$9","v":{"$error":"#N/A"}},{"$error":"#N/A"}]
[315,{"$f":"IF(A317<='S3-Short'!$C$7, B316*EXP((LN((E316/100)+1))*1),)","v":0},{"$f":"_xlfn.XLOOKUP($B317,FeedTables!$C$42:$T$42,FeedTables!$C$44:$T$44,,-1)","v":{"$error":"#N/A"}},{"$f":"_xlfn.XLOOKUP($B317,FeedTables!$C$42:$T$42,FeedTables!$C$45:$T$45,,-1)","v":{"$error":"#N/A"}},{"$f":"_xlfn.XLOOKUP($B317,FeedTables!$C$42:$T$42,FeedTables!$C$46:$T$46,,-1)*_xlfn.XLOOKUP(N316,DensityMultiplier[Biomass kg/m3],DensityMultiplier[Multiplier],,-1)","v":{"$error":"#N/A"}},3853.2055944265799,{"$f":"IF(A317<='S3-Short'!$C$7,('Growth-Model-3'!G316*EXP($AA$7)),0)","v":0},{"$f":"IF(A317<='S3-Short'!$C$7,$AD$6*EXP($AD$7*('S3-Short'!C$7-'Growth-Model-3'!A317)),0)","v":0},196.79440557341832,4.859121125269588E-2,0,13.580865810479755,0,{"$f":"M317/'S3-Short'!$C$17","v":0},{"$error":"#N/A"},{"$error":"#N/A"},{"$f":"_xlfn.XLOOKUP(B317,FeedTables!$C$17:$T$17,FeedTables!$C$31:$T$31,,-1)","v":{"$error":"#N/A"}},{"$f":"_xlfn.XLOOKUP(Q317,FeedPrice[Feed],FeedPrice[Price per kg],\"Unknown\",0)*O317","v":{"$error":"#N/A"}},{"$error":"#N/A"},{"$f":"_xlfn.XLOOKUP(O317,LabourFromFeed[Feed Quantity (kg)],LabourFromFeed[No. Labour],\"Out of range\",-1)","v":{"$error":"#N/A"}},{"$f":"T317*OperatingCosts!$C$9","v":{"$error":"#N/A"}},{"$error":"#N/A"}]
[316,{"$f":"IF(A318<='S3-Short'!$C$7, B317*EXP((LN((E317/100)+1))*1),)","v":0},{"$f":"_xlfn.XLOOKUP($B318,FeedTables!$C$42:$T$42,FeedTables!$C$44:$T$44,,-1)","v":{"$error":"#N/A"}},{"$f":"_xlfn.XLOOKUP($B318,FeedTables!$C$42:$T$42,FeedTables!$C$45:$T$45,,-1)","v":{"$error":"#N/A"}},{"$f":"_xlfn.XLOOKUP($B318,FeedTables!$C$42:$T$42,FeedTables!$C$46:$T$46,,-1)*_xlfn.XLOOKUP(N317,DensityMultiplier[Biomass kg/m3],DensityMultiplier[Multiplier],,-1)","v":{"$error":"#N/A"}},3853.2055944265799,{"$f":"IF(A318<='S3-Short'!$C$7,('Growth-Model-3'!G317*EXP($AA$7)),0)","v":0},{"$f":"IF(A318<='S3-Short'!$C$7,$AD$6*EXP($AD$7*('S3-Short'!C$7-'Growth-Model-3'!A318)),0)","v":0},196.79440557341832,4.859121125269588E-2,0,13.580865810479755,0,{"$f":"M318/'S3-Short'!$C$17","v":0},{"$error":"#N/A"},{"$error":"#N/A"},{"$f":"_xlfn.XLOOKUP(B318,FeedTables!$C$17:$T$17,FeedTables!$C$31:$T$31,,-1)","v":{"$error":"#N/A"}},{"$f":"_xlfn.XLOOKUP(Q318,FeedPrice[Feed],FeedPrice[Price per kg],\"Unknown\",0)*O318","v":{"$error":"#N/A"}},{"$error":"#N/A"},{"$f":"_xlfn.XLOOKUP(O318,LabourFromFeed[Feed Quantity (kg)],LabourFromFeed[No. Labour],\"Out of range\",-1)","v":{"$error":"#N/A"}},{"$f":"T318*OperatingCosts!$C$9","v":{"$error":"#N/A"}},{"$error":"#N/A"}]
[317,{"$f":"IF(A319<='S3-Short'!$C$7, B318*EXP((LN((E318/100)+1))*1),)","v":0},{"$f":"_xlfn.XLOOKUP($B319,FeedTables!$C$42:$T$42,FeedTables!$C$44:$T$44,,-1)","v":{"$error":"#N/A"}},{"$f":"_xlfn.XLOOKUP($B319,FeedTables!$C$42:$T$42,FeedTables!$C$45:$T$45,,-1)","v":{"$error":"#N/A"}},{"$f":"_xlfn.XLOOKUP($B319,FeedTables!$C$42:$T$42,FeedTables!$C$46:$T$46,,-1)*_xlfn.XLOOKUP(N318,DensityMultiplier[Biomass kg/m3],DensityMultiplier[Multiplier],,-1)","v":{"$error":"#N/A"}},3853.2055944265799,{"$f":"IF(A319<='S3-Short'!$C$7,('Growth-Model-3'!G318*EXP($AA$7)),0)","v":0},{"$f":"IF(A319<='S3-Short'!$C$7,$AD$6*EXP($AD$7*('S3-Short'!C$7-'Growth-Model-3'!A319)),0)","v":0},196.79440557341832,4.859121125269588E-2,0,13.580865810479755,0,{"$f":"M319/'S3-Short'!$C$17","v":0},{"$error":"#N/A"},{"$error":"#N/A"},{"$f":"_xlfn.XLOOKUP(B319,FeedTables!$C$17:$T$17,FeedTables!$C$31:$T$31,,-1)","v":{"$error":"#N/A"}},{"$f":"_xlfn.XLOOKUP(Q319,FeedPrice[Feed],FeedPrice[Price per kg],\"Unknown\",0)*O319","v":{"$error":"#N/A"}},{"$error":"#N/A"},{"$f":"_xlfn.XLOOKUP(O319,LabourFromFeed[Feed Quantity (kg)],LabourFromFeed[No. Labour],\"Out of range\",-1)","v":{"$error":"#N/A"}},{"$f":"T319*OperatingCosts!$C$9","v":{"$error":"#N/A"}},{"$error":"#N/A"}]
[318,{"$f":"IF(A320<='S3-Short'!$C$7, B319*EXP((LN((E319/100)+1))*1),)","v":0},{"$f":"_xlfn.XLOOKUP($B320,FeedTables!$C$42:$T$42,FeedTables!$C$44:$T$44,,-1)","v":{"$error":"#N/A"}},{"$f":"_xlfn.XLOOKUP($B320,FeedTables!$C$42:$T$42,FeedTables!$C$45:$T$45,,-1)","v":{"$error":"#N/A"}},{"$f":"_xlfn.XLOOKUP($B320,FeedTables!$C$42:$T$42,FeedTables!$C$46:$T$46,,-1)*_xlfn.XLOOKUP(N319,DensityMultiplier[Biomass kg/m3],DensityMultiplier[Multiplier],,-1)","v":{"$error":"#N/A"}},3853.2055944265799,{"$f":"IF(A320<='S3-Short'!$C$7,('Growth-Model-3'!G319*EXP($AA$7)),0)","v":0},{"$f":"IF(A320<='S3-Short'!$C$7,$AD$6*EXP($AD$7*('S3-Short'!C$7-'Growth-Model-3'!A320)),0)","v":0},196.79440557341832,4.859121125269588E-2,0,13.580865810479755,0,{"$f":"M320/'S3-Short'!$C$17","v":0},{"$error":"#N/A"},{"$error":"#N/A"},{"$f":"_xlfn.XLOOKUP(B320,FeedTables!$C$17:$T$17,FeedTables!$C$31:$T$31,,-1)","v":{"$error":"#N/A"}},{"$f":"_xlfn.XLOOKUP(Q320,FeedPrice[Feed],FeedPrice[Price per kg],\"Unknown\",0)*O320","v":{"$error":"#N/A"}},{"$error":"#N/A"},{"$f":"_xlfn.XLOOKUP(O320,LabourFromFeed[Feed Quantity (kg)],LabourFromFeed[No. Labour],\"Out of range\",-1)","v":{"$error":"#N/A"}},{"$f":"T320*OperatingCosts!$C$9","v":{"$error":"#N/A"}},{"$error":"#N/A"}]
[319,{"$f":"IF(A321<='S3-Short'!$C$7, B320*EXP((LN((E320/100)+1))*1),)","v":0},{"$f":"_xlfn.XLOOKUP($B321,FeedTables!$C$42:$T$42,FeedTables!$C$44:$T$44,,-1)","v":{"$error":"#N/A"}},{"$f":"_xlfn.XLOOKUP($B321,FeedTables!$C$42:$T$42,FeedTables!$C$45:$T$45,,-1)","v":{"$error":"#N/A"}},{"$f":"_xlfn.XLOOKUP($B321,FeedTables!$C$42:$T$42,FeedTables!$C$46:$T$46,,-1)*_xlfn.XLOOKUP(N320,DensityMultiplier[Biomass kg/m3],DensityMultiplier[Multiplier],,-1)","v":{"$error":"#N/A"}},3853.2055944265799,{"$f":"IF(A321<='S3-Short'!$C$7,('Growth-Model-3'!G320*EXP($AA$7)),0)","v":0},{"$f":"IF(A321<='S3-Short'!$C$7,$AD$6*EXP($AD$7*('S3-Short'!C$7-'Growth-Model-3'!A321)),0)","v":0},196.79440557341832,4.859121125269588E-2,0,13.580865810479755,0,{"$f":"M321/'S3-Short'!$C$17","v":0},{"$error":"#N/A"},{"$error":"#N/A"},{"$f":"_xlfn.XLOOKUP(B321,FeedTables!$C$17:$T$17,FeedTables!$C$31:$T$31,,-1)","v":{"$error":"#N/A"}},{"$f":"_xlfn.XLOOKUP(Q321,FeedPrice[Feed],FeedPrice[Price per kg],\"Unknown\",0)*O321","v":{"$error":"#N/A"}},{"$error":"#N/A"},{"$f":"_xlfn.XLOOKUP(O321,LabourFromFeed[Feed Quantity (kg)],LabourFromFeed[No. Labour],\"Out of range\",-1)","v":{"$error":"#N/A"}},{"$f":"T321*OperatingCosts!$C$9","v":{"$error":"#N/A"}},{"$error":"#N/A"}]
[320,{"$f":"IF(A322<='S3-Short'!$C$7, B321*EXP((LN((E321/100)+1))*1),)","v":0},{"$f":"_xlfn.XLOOKUP($B322,FeedTables!$C$42:$T$42,FeedTables!$C$44:$T$44,,-1)","v":{"$error":"#N/A"}},{"$f":"_xlfn.XLOOKUP($B322,FeedTables!$C$42:$T$42,FeedTables!$C$45:$T$45,,-1)","v":{"$error":"#N/A"}},{"$f":"_xlfn.XLOOKUP($B322,FeedTables!$C$42:$T$42,FeedTables!$C$46:$T$46,,-1)*_xlfn.XLOOKUP(N321,DensityMultiplier[Biomass kg/m3],DensityMultiplier[Multiplier],,-1)","v":{"$error":"#N/A"}},3853.2055944265799,{"$f":"IF(A322<='S3-Short'!$C$7,('Growth-Model-3'!G321*EXP($AA$7)),0)","v":0},{"$f":"IF(A322<='S3-Short'!$C$7,$AD$6*EXP($AD$7*('S3-Short'!C$7-'Growth-Model-3'!A322)),0)","v":0},196.79440557341832,4.859121125269588E-2,0,13.580865810479755,0,{"$f":"M322/'S3-Short'!$C$17","v":0},{"$error":"#N/A"},{"$error":"#N/A"},{"$f":"_xlfn.XLOOKUP(B322,FeedTables!$C$17:$T$17,FeedTables!$C$31:$T$31,,-1)","v":{"$error":"#N/A"}},{"$f":"_xlfn.XLOOKUP(Q322,FeedPrice[Feed],FeedPrice[Price per kg],\"Unknown\",0)*O322","v":{"$error":"#N/A"}},{"$error":"#N/A"},{"$f":"_xlfn.XLOOKUP(O322,LabourFromFeed[Feed Quantity (kg)],LabourFromFeed[No. Labour],\"Out of range\",-1)","v":{"$error":"#N/A"}},{"$f":"T322*OperatingCosts!$C$9","v":{"$error":"#N/A"}},{"$error":"#N/A"}]
[321,{"$f":"IF(A323<='S3-Short'!$C$7, B322*EXP((LN((E322/100)+1))*1),)","v":0},{"$f":"_xlfn.XLOOKUP($B323,FeedTables!$C$42:$T$42,FeedTables!$C$44:$T$44,,-1)","v":{"$error":"#N/A"}},{"$f":"_xlfn.XLOOKUP($B323,FeedTables!$C$42:$T$42,FeedTables!$C$45:$T$45,,-1)","v":{"$error":"#N/A"}},{"$f":"_xlfn.XLOOKUP($B323,FeedTables!$C$42:$T$42,FeedTables!$C$46:$T$46,,-1)*_xlfn.XLOOKUP(N322,DensityMultiplier[Biomass kg/m3],DensityMultiplier[Multiplier],,-1)","v":{"$error":"#N/A"}},3853.2055944265799,{"$f":"IF(A323<='S3-Short'!$C$7,('Growth-Model-3'!G322*EXP($AA$7)),0)","v":0},{"$f":"IF(A323<='S3-Short'!$C$7,$AD$6*EXP($AD$7*('S3-Short'!C$7-'Growth-Model-3'!A323)),0)","v":0},196.79440557341832,{"$f":"I323/$F$2","v":4.859121125269588E-2},{"$f":"(G323+H323)*B323","v":0},13.580865810479755,{"$f":"(B323*F323)/1000","v":0},{"$f":"M323/'S3-Short'!$C$17","v":0},{"$f":"M323*(C323/100)","v":{"$error":"#N/A"}},{"$error":"#N/A"},{"$f":"_xlfn.XLOOKUP(B323,FeedTables!$C$17:$T$17,FeedTables!$C$31:$T$31,,-1)","v":{"$error":"#N/A"}},{"$f":"_xlfn.XLOOKUP(Q323,FeedPrice[Feed],FeedPrice[Price per kg],\"Unknown\",0)*O323","v":{"$error":"#N/A"}},{"$error":"#N/A"},{"$f":"_xlfn.XLOOKUP(O323,LabourFromFeed[Feed Quantity (kg)],LabourFromFeed[No. Labour],\"Out of range\",-1)","v":{"$error":"#N/A"}},{"$f":"T323*OperatingCosts!$C$9","v":{"$error":"#N/A"}},{"$error":"#N/A"}]
[322,{"$f":"IF(A324<='S3-Short'!$C$7, B323*EXP((LN((E323/100)+1))*1),)","v":0},{"$f":"_xlfn.XLOOKUP($B324,FeedTables!$C$42:$T$42,FeedTables!$C$44:$T$44,,-1)","v":{"$error":"#N/A"}},{"$f":"_xlfn.XLOOKUP($B324,FeedTables!$C$42:$T$42,FeedTables!$C$45:$T$45,,-1)","v":{"$error":"#N/A"}},{"$f":"_xlfn.XLOOKUP($B324,FeedTables!$C$42:$T$42,FeedTables!$C$46:$T$46,,-1)*_xlfn.XLOOKUP(N323,DensityMultiplier[Biomass kg/m3],DensityMultiplier[Multiplier],,-1)","v":{"$error":"#N/A"}},{"$f":"F323-G323-H323","v":3853.2055944265799},{"$f":"IF(A324<='S3-Short'!$C$7,('Growth-Model-3'!G323*EXP($AA$7)),0)","v":0},{"$f":"IF(A324<='S3-Short'!$C$7,$AD$6*EXP($AD$7*('S3-Short'!C$7-'Growth-Model-3'!A324)),0)","v":0},{"$f":"I323+G324+H324","v":196.79440557341832},4.859121125269588E-2,0,{"$f":"(K324/1000)+L323","v":13.580865810479755},0,{"$f":"M324/'S3-Short'!$C$17","v":0},{"$error":"#N/A"},{"$f":"O324+P323","v":{"$error":"#N/A"}},{"$f":"_xlfn.XLOOKUP(B324,FeedTables!$C$17:$T$17,FeedTables!$C$31:$T$31,,-1)","v":{"$error":"#N/A"}},{"$f":"_xlfn.XLOOKUP(Q324,FeedPrice[Feed],FeedPrice[Price per kg],\"Unknown\",0)*O324","v":{"$error":"#N/A"}},{"$f":"R324+S323","v":{"$error":"#N/A"}},{"$f":"_xlfn.XLOOKUP(O324,LabourFromFeed[Feed Quantity (kg)],LabourFromFeed[No. Labour],\"Out of range\",-1)","v":{"$error":"#N/A"}},{"$f":"T324*OperatingCosts!$C$9","v":{"$error":"#N/A"}},{"$f":"U324+V323","v":{"$error":"#N/A"}}]
[323,{"$f":"IF(A325<='S3-Short'!$C$7, B324*EXP((LN((E324/100)+1))*1),)","v":0},{"$f":"_xlfn.XLOOKUP($B325,FeedTables!$C$42:$T$42,FeedTables!$C$44:$T$44,,-1)","v":{"$error":"#N/A"}},{"$f":"_xlfn.XLOOKUP($B325,FeedTables!$C$42:$T$42,FeedTables!$C$45:$T$45,,-1)","v":{"$error":"#N/A"}},{"$f":"_xlfn.XLOOKUP($B325,FeedTables!$C$42:$T$42,FeedTables!$C$46:$T$46,,-1)*_xlfn.XLOOKUP(N324,DensityMultiplier[Biomass kg/m3],DensityMultiplier[Multiplier],,-1)","v":{"$error":"#N/A"}},3853.2055944265799,{"$f":"IF(A325<='S3-Short'!$C$7,('Growth-Model-3'!G324*EXP($AA$7)),0)","v":0},{"$f":"IF(A325<='S3-Short'!$C$7,$AD$6*EXP($AD$7*('S3-Short'!C$7-'Growth-Model-3'!A325)),0)","v":0},196.79440557341832,4.859121125269588E-2,0,13.580865810479755,0,{"$f":"M325/'S3-Short'!$C$17","v":0},{"$error":"#N/A"},{"$error":"#N/A"},{"$f":"_xlfn.XLOOKUP(B325,FeedTables!$C$17:$T$17,FeedTables!$C$31:$T$31,,-1)","v":{"$error":"#N/A"}},{"$f":"_xlfn.XLOOKUP(Q325,FeedPrice[Feed],FeedPrice[Price per kg],\"Unknown\",0)*O325","v":{"$error":"#N/A"}},{"$error":"#N/A"},{"$f":"_xlfn.XLOOKUP(O325,LabourFromFeed[Feed Quantity (kg)],LabourFromFeed[No. Labour],\"Out of range\",-1)","v":{"$error":"#N/A"}},{"$f":"T325*OperatingCosts!$C$9","v":{"$error":"#N/A"}},{"$error":"#N/A"}]
[324,{"$f":"IF(A326<='S3-Short'!$C$7, B325*EXP((LN((E325/100)+1))*1),)","v":0},{"$f":"_xlfn.XLOOKUP($B326,FeedTables!$C$42:$T$42,FeedTables!$C$44:$T$44,,-1)","v":{"$error":"#N/A"}},{"$f":"_xlfn.XLOOKUP($B326,FeedTables!$C$42:$T$42,FeedTables!$C$45:$T$45,,-1)","v":{"$error":"#N/A"}},{"$f":"_xlfn.XLOOKUP($B326,FeedTables!$C$42:$T$42,FeedTables!$C$46:$T$46,,-1)*_xlfn.XLOOKUP(N325,DensityMultiplier[Biomass kg/m3],DensityMultiplier[Multiplier],,-1)","v":{"$error":"#N/A"}},3853.2055944265799,{"$f":"IF(A326<='S3-Short'!$C$7,('Growth-Model-3'!G325*EXP($AA$7)),0)","v":0},{"$f":"IF(A326<='S3-Short'!$C$7,$AD$6*EXP($AD$7*('S3-Short'!C$7-'Growth-Model-3'!A326)),0)","v":0},196.79440557341832,4.859121125269588E-2,0,13.580865810479755,0,{"$f":"M326/'S3-Short'!$C$17","v":0},{"$error":"#N/A"},{"$error":"#N/A"},{"$f":"_xlfn.XLOOKUP(B326,FeedTables!$C$17:$T$17,FeedTables!$C$31:$T$31,,-1)","v":{"$error":"#N/A"}},{"$f":"_xlfn.XLOOKUP(Q326,FeedPrice[Feed],FeedPrice[Price per kg],\"Unknown\",0)*O326","v":{"$error":"#N/A"}},{"$error":"#N/A"},{"$f":"_xlfn.XLOOKUP(O326,LabourFromFeed[Feed Quantity (kg)],LabourFromFeed[No. Labour],\"Out of range\",-1)","v":{"$error":"#N/A"}},{"$f":"T326*OperatingCosts!$C$9","v":{"$error":"#N/A"}},{"$error":"#N/A"}]
[325,{"$f":"IF(A327<='S3-Short'!$C$7, B326*EXP((LN((E326/100)+1))*1),)","v":0},{"$f":"_xlfn.XLOOKUP($B327,FeedTables!$C$42:$T$42,FeedTables!$C$44:$T$44,,-1)","v":{"$error":"#N/A"}},{"$f":"_xlfn.XLOOKUP($B327,FeedTables!$C$42:$T$42,FeedTables!$C$45:$T$45,,-1)","v":{"$error":"#N/A"}},{"$f":"_xlfn.XLOOKUP($B327,FeedTables!$C$42:$T$42,FeedTables!$C$46:$T$46,,-1)*_xlfn.XLOOKUP(N326,DensityMultiplier[Biomass kg/m3],DensityMultiplier[Multiplier],,-1)","v":{"$error":"#N/A"}},3853.2055944265799,{"$f":"IF(A327<='S3-Short'!$C$7,('Growth-Model-3'!G326*EXP($AA$7)),0)","v":0},{"$f":"IF(A327<='S3-Short'!$C$7,$AD$6*EXP($AD$7*('S3-Short'!C$7-'Growth-Model-3'!A327)),0)","v":0},196.79440557341832,4.859121125269588E-2,0,13.580865810479755,0,{"$f":"M327/'S3-Short'!$C$17","v":0},{"$error":"#N/A"},{"$error":"#N/A"},{"$f":"_xlfn.XLOOKUP(B327,FeedTables!$C$17:$T$17,FeedTables!$C$31:$T$31,,-1)","v":{"$error":"#N/A"}},{"$f":"_xlfn.XLOOKUP(Q327,FeedPrice[Feed],FeedPrice[Price per kg],\"Unknown\",0)*O327","v":{"$error":"#N/A"}},{"$error":"#N/A"},{"$f":"_xlfn.XLOOKUP(O327,LabourFromFeed[Feed Quantity (kg)],LabourFromFeed[No. Labour],\"Out of range\",-1)","v":{"$error":"#N/A"}},{"$f":"T327*OperatingCosts!$C$9","v":{"$error":"#N/A"}},{"$error":"#N/A"}]
[326,{"$f":"IF(A328<='S3-Short'!$C$7, B327*EXP((LN((E327/100)+1))*1),)","v":0},{"$f":"_xlfn.XLOOKUP($B328,FeedTables!$C$42:$T$42,FeedTables!$C$44:$T$44,,-1)","v":{"$error":"#N/A"}},{"$f":"_xlfn.XLOOKUP($B328,FeedTables!$C$42:$T$42,FeedTables!$C$45:$T$45,,-1)","v":{"$error":"#N/A"}},{"$f":"_xlfn.XLOOKUP($B328,FeedTables!$C$42:$T$42,FeedTables!$C$46:$T$46,,-1)*_xlfn.XLOOKUP(N327,DensityMultiplier[Biomass kg/m3],DensityMultiplier[Multiplier],,-1)","v":{"$error":"#N/A"}},3853.2055944265799,{"$f":"IF(A328<='S3-Short'!$C$7,('Growth-Model-3'!G327*EXP($AA$7)),0)","v":0},{"$f":"IF(A328<='S3-Short'!$C$7,$AD$6*EXP($AD$7*('S3-Short'!C$7-'Growth-Model-3'!A328)),0)","v":0},196.79440557341832,4.859121125269588E-2,0,13.580865810479755,0,{"$f":"M328/'S3-Short'!$C$17","v":0},{"$error":"#N/A"},{"$error":"#N/A"},{"$f":"_xlfn.XLOOKUP(B328,FeedTables!$C$17:$T$17,FeedTables!$C$31:$T$31,,-1)","v":{"$error":"#N/A"}},{"$f":"_xlfn.XLOOKUP(Q328,FeedPrice[Feed],FeedPrice[Price per kg],\"Unknown\",0)*O328","v":{"$error":"#N/A"}},{"$error":"#N/A"},{"$f":"_xlfn.XLOOKUP(O328,LabourFromFeed[Feed Quantity (kg)],LabourFromFeed[No. Labour],\"Out of range\",-1)","v":{"$error":"#N/A"}},{"$f":"T328*OperatingCosts!$C$9","v":{"$error":"#N/A"}},{"$error":"#N/A"}]
[327,{"$f":"IF(A329<='S3-Short'!$C$7, B328*EXP((LN((E328/100)+1))*1),)","v":0},{"$f":"_xlfn.XLOOKUP($B329,FeedTables!$C$42:$T$42,FeedTables!$C$44:$T$44,,-1)","v":{"$error":"#N/A"}},{"$f":"_xlfn.XLOOKUP($B329,FeedTables!$C$42:$T$42,FeedTables!$C$45:$T$45,,-1)","v":{"$error":"#N/A"}},{"$f":"_xlfn.XLOOKUP($B329,FeedTables!$C$42:$T$42,FeedTables!$C$46:$T$46,,-1)*_xlfn.XLOOKUP(N328,DensityMultiplier[Biomass kg/m3],DensityMultiplier[Multiplier],,-1)","v":{"$error":"#N/A"}},3853.2055944265799,{"$f":"IF(A329<='S3-Short'!$C$7,('Growth-Model-3'!G328*EXP($AA$7)),0)","v":0},{"$f":"IF(A329<='S3-Short'!$C$7,$AD$6*EXP($AD$7*('S3-Short'!C$7-'Growth-Model-3'!A329)),0)","v":0},196.79440557341832,4.859121125269588E-2,0,13.580865810479755,0,{"$f":"M329/'S3-Short'!$C$17","v":0},{"$error":"#N/A"},{"$error":"#N/A"},{"$f":"_xlfn.XLOOKUP(B329,FeedTables!$C$17:$T$17,FeedTables!$C$31:$T$31,,-1)","v":{"$error":"#N/A"}},{"$f":"_xlfn.XLOOKUP(Q329,FeedPrice[Feed],FeedPrice[Price per kg],\"Unknown\",0)*O329","v":{"$error":"#N/A"}},{"$error":"#N/A"},{"$f":"_xlfn.XLOOKUP(O329,LabourFromFeed[Feed Quantity (kg)],LabourFromFeed[No. Labour],\"Out of range\",-1)","v":{"$error":"#N/A"}},{"$f":"T329*OperatingCosts!$C$9","v":{"$error":"#N/A"}},{"$error":"#N/A"}]
[328,{"$f":"IF(A330<='S3-Short'!$C$7, B329*EXP((LN((E329/100)+1))*1),)","v":0},{"$f":"_xlfn.XLOOKUP($B330,FeedTables!$C$42:$T$42,FeedTables!$C$44:$T$44,,-1)","v":{"$error":"#N/A"}},{"$f":"_xlfn.XLOOKUP($B330,FeedTables!$C$42:$T$42,FeedTables!$C$45:$T$45,,-1)","v":{"$error":"#N/A"}},{"$f":"_xlfn.XLOOKUP($B330,FeedTables!$C$42:$T$42,FeedTables!$C$46:$T$46,,-1)*_xlfn.XLOOKUP(N329,DensityMultiplier[Biomass kg/m3],DensityMultiplier[Multiplier],,-1)","v":{"$error":"#N/A"}},3853.2055944265799,{"$f":"IF(A330<='S3-Short'!$C$7,('Growth-Model-3'!G329*EXP($AA$7)),0)","v":0},{"$f":"IF(A330<='S3-Short'!$C$7,$AD$6*EXP($AD$7*('S3-Short'!C$7-'Growth-Model-3'!A330)),0)","v":0},196.79440557341832,4.859121125269588E-2,0,13.580865810479755,0,{"$f":"M330/'S3-Short'!$C$17","v":0},{"$error":"#N/A"},{"$error":"#N/A"},{"$f":"_xlfn.XLOOKUP(B330,FeedTables!$C$17:$T$17,FeedTables!$C$31:$T$31,,-1)","v":{"$error":"#N/A"}},{"$f":"_xlfn.XLOOKUP(Q330,FeedPrice[Feed],FeedPrice[Price per kg],\"Unknown\",0)*O330","v":{"$error":"#N/A"}},{"$error":"#N/A"},{"$f":"_xlfn.XLOOKUP(O330,LabourFromFeed[Feed Quantity (kg)],LabourFromFeed[No. Labour],\"Out of range\",-1)","v":{"$error":"#N/A"}},{"$f":"T330*OperatingCosts!$C$9","v":{"$error":"#N/A"}},{"$error":"#N/A"}]
[329,{"$f":"IF(A331<='S3-Short'!$C$7, B330*EXP((LN((E330/100)+1))*1),)","v":0},{"$f":"_xlfn.XLOOKUP($B331,FeedTables!$C$42:$T$42,FeedTables!$C$44:$T$44,,-1)","v":{"$error":"#N/A"}},{"$f":"_xlfn.XLOOKUP($B331,FeedTables!$C$42:$T$42,FeedTables!$C$45:$T$45,,-1)","v":{"$error":"#N/A"}},{"$f":"_xlfn.XLOOKUP($B331,FeedTables!$C$42:$T$42,FeedTables!$C$46:$T$46,,-1)*_xlfn.XLOOKUP(N330,DensityMultiplier[Biomass kg/m3],DensityMultiplier[Multiplier],,-1)","v":{"$error":"#N/A"}},3853.2055944265799,{"$f":"IF(A331<='S3-Short'!$C$7,('Growth-Model-3'!G330*EXP($AA$7)),0)","v":0},{"$f":"IF(A331<='S3-Short'!$C$7,$AD$6*EXP($AD$7*('S3-Short'!C$7-'Growth-Model-3'!A331)),0)","v":0},196.79440557341832,4.859121125269588E-2,0,13.580865810479755,0,{"$f":"M331/'S3-Short'!$C$17","v":0},{"$error":"#N/A"},{"$error":"#N/A"},{"$f":"_xlfn.XLOOKUP(B331,FeedTables!$C$17:$T$17,FeedTables!$C$31:$T$31,,-1)","v":{"$error":"#N/A"}},{"$f":"_xlfn.XLOOKUP(Q331,FeedPrice[Feed],FeedPrice[Price per kg],\"Unknown\",0)*O331","v":{"$error":"#N/A"}},{"$error":"#N/A"},{"$f":"_xlfn.XLOOKUP(O331,LabourFromFeed[Feed Quantity (kg)],LabourFromFeed[No. Labour],\"Out of range\",-1)","v":{"$error":"#N/A"}},{"$f":"T331*OperatingCosts!$C$9","v":{"$error":"#N/A"}},{"$error":"#N/A"}]
[330,{"$f":"IF(A332<='S3-Short'!$C$7, B331*EXP((LN((E331/100)+1))*1),)","v":0},{"$f":"_xlfn.XLOOKUP($B332,FeedTables!$C$42:$T$42,FeedTables!$C$44:$T$44,,-1)","v":{"$error":"#N/A"}},{"$f":"_xlfn.XLOOKUP($B332,FeedTables!$C$42:$T$42,FeedTables!$C$45:$T$45,,-1)","v":{"$error":"#N/A"}},{"$f":"_xlfn.XLOOKUP($B332,FeedTables!$C$42:$T$42,FeedTables!$C$46:$T$46,,-1)*_xlfn.XLOOKUP(N331,DensityMultiplier[Biomass kg/m3],DensityMultiplier[Multiplier],,-1)","v":{"$error":"#N/A"}},3853.2055944265799,{"$f":"IF(A332<='S3-Short'!$C$7,('Growth-Model-3'!G331*EXP($AA$7)),0)","v":0},{"$f":"IF(A332<='S3-Short'!$C$7,$AD$6*EXP($AD$7*('S3-Short'!C$7-'Growth-Model-3'!A332)),0)","v":0},196.79440557341832,4.859121125269588E-2,0,13.580865810479755,0,{"$f":"M332/'S3-Short'!$C$17","v":0},{"$error":"#N/A"},{"$error":"#N/A"},{"$f":"_xlfn.XLOOKUP(B332,FeedTables!$C$17:$T$17,FeedTables!$C$31:$T$31,,-1)","v":{"$error":"#N/A"}},{"$f":"_xlfn.XLOOKUP(Q332,FeedPrice[Feed],FeedPrice[Price per kg],\"Unknown\",0)*O332","v":{"$error":"#N/A"}},{"$error":"#N/A"},{"$f":"_xlfn.XLOOKUP(O332,LabourFromFeed[Feed Quantity (kg)],LabourFromFeed[No. Labour],\"Out of range\",-1)","v":{"$error":"#N/A"}},{"$f":"T332*OperatingCosts!$C$9","v":{"$error":"#N/A"}},{"$error":"#N/A"}]
[331,{"$f":"IF(A333<='S3-Short'!$C$7, B332*EXP((LN((E332/100)+1))*1),)","v":0},{"$f":"_xlfn.XLOOKUP($B333,FeedTables!$C$42:$T$42,FeedTables!$C$44:$T$44,,-1)","v":{"$error":"#N/A"}},{"$f":"_xlfn.XLOOKUP($B333,FeedTables!$C$42:$T$42,FeedTables!$C$45:$T$45,,-1)","v":{"$error":"#N/A"}},{"$f":"_xlfn.XLOOKUP($B333,FeedTables!$C$42:$T$42,FeedTables!$C$46:$T$46,,-1)*_xlfn.XLOOKUP(N332,DensityMultiplier[Biomass kg/m3],DensityMultiplier[Multiplier],,-1)","v":{"$error":"#N/A"}},3853.2055944265799,{"$f":"IF(A333<='S3-Short'!$C$7,('Growth-Model-3'!G332*EXP($AA$7)),0)","v":0},{"$f":"IF(A333<='S3-Short'!$C$7,$AD$6*EXP($AD$7*('S3-Short'!C$7-'Growth-Model-3'!A333)),0)","v":0},196.79440557341832,4.859121125269588E-2,0,13.580865810479755,0,{"$f":"M333/'S3-Short'!$C$17","v":0},{"$error":"#N/A"},{"$error":"#N/A"},{"$f":"_xlfn.XLOOKUP(B333,FeedTables!$C$17:$T$17,FeedTables!$C$31:$T$31,,-1)","v":{"$error":"#N/A"}},{"$f":"_xlfn.XLOOKUP(Q333,FeedPrice[Feed],FeedPrice[Price per kg],\"Unknown\",0)*O333","v":{"$error":"#N/A"}},{"$error":"#N/A"},{"$f":"_xlfn.XLOOKUP(O333,LabourFromFeed[Feed Quantity (kg)],LabourFromFeed[No. Labour],\"Out of range\",-1)","v":{"$error":"#N/A"}},{"$f":"T333*OperatingCosts!$C$9","v":{"$error":"#N/A"}},{"$error":"#N/A"}]
[332,{"$f":"IF(A334<='S3-Short'!$C$7, B333*EXP((LN((E333/100)+1))*1),)","v":0},{"$f":"_xlfn.XLOOKUP($B334,FeedTables!$C$42:$T$42,FeedTables!$C$44:$T$44,,-1)","v":{"$error":"#N/A"}},{"$f":"_xlfn.XLOOKUP($B334,FeedTables!$C$42:$T$42,FeedTables!$C$45:$T$45,,-1)","v":{"$error":"#N/A"}},{"$f":"_xlfn.XLOOKUP($B334,FeedTables!$C$42:$T$42,FeedTables!$C$46:$T$46,,-1)*_xlfn.XLOOKUP(N333,DensityMultiplier[Biomass kg/m3],DensityMultiplier[Multiplier],,-1)","v":{"$error":"#N/A"}},3853.2055944265799,{"$f":"IF(A334<='S3-Short'!$C$7,('Growth-Model-3'!G333*EXP($AA$7)),0)","v":0},{"$f":"IF(A334<='S3-Short'!$C$7,$AD$6*EXP($AD$7*('S3-Short'!C$7-'Growth-Model-3'!A334)),0)","v":0},196.79440557341832,4.859121125269588E-2,0,13.580865810479755,0,{"$f":"M334/'S3-Short'!$C$17","v":0},{"$error":"#N/A"},{"$error":"#N/A"},{"$f":"_xlfn.XLOOKUP(B334,FeedTables!$C$17:$T$17,FeedTables!$C$31:$T$31,,-1)","v":{"$error":"#N/A"}},{"$f":"_xlfn.XLOOKUP(Q334,FeedPrice[Feed],FeedPrice[Price per kg],\"Unknown\",0)*O334","v":{"$error":"#N/A"}},{"$error":"#N/A"},{"$f":"_xlfn.XLOOKUP(O334,LabourFromFeed[Feed Quantity (kg)],LabourFromFeed[No. Labour],\"Out of range\",-1)","v":{"$error":"#N/A"}},{"$f":"T334*OperatingCosts!$C$9","v":{"$error":"#N/A"}},{"$error":"#N/A"}]
[333,{"$f":"IF(A335<='S3-Short'!$C$7, B334*EXP((LN((E334/100)+1))*1),)","v":0},{"$f":"_xlfn.XLOOKUP($B335,FeedTables!$C$42:$T$42,FeedTables!$C$44:$T$44,,-1)","v":{"$error":"#N/A"}},{"$f":"_xlfn.XLOOKUP($B335,FeedTables!$C$42:$T$42,FeedTables!$C$45:$T$45,,-1)","v":{"$error":"#N/A"}},{"$f":"_xlfn.XLOOKUP($B335,FeedTables!$C$42:$T$42,FeedTables!$C$46:$T$46,,-1)*_xlfn.XLOOKUP(N334,DensityMultiplier[Biomass kg/m3],DensityMultiplier[Multiplier],,-1)","v":{"$error":"#N/A"}},3853.2055944265799,{"$f":"IF(A335<='S3-Short'!$C$7,('Growth-Model-3'!G334*EXP($AA$7)),0)","v":0},{"$f":"IF(A335<='S3-Short'!$C$7,$AD$6*EXP($AD$7*('S3-Short'!C$7-'Growth-Model-3'!A335)),0)","v":0},196.79440557341832,4.859121125269588E-2,0,13.580865810479755,0,{"$f":"M335/'S3-Short'!$C$17","v":0},{"$error":"#N/A"},{"$error":"#N/A"},{"$f":"_xlfn.XLOOKUP(B335,FeedTables!$C$17:$T$17,FeedTables!$C$31:$T$31,,-1)","v":{"$error":"#N/A"}},{"$f":"_xlfn.XLOOKUP(Q335,FeedPrice[Feed],FeedPrice[Price per kg],\"Unknown\",0)*O335","v":{"$error":"#N/A"}},{"$error":"#N/A"},{"$f":"_xlfn.XLOOKUP(O335,LabourFromFeed[Feed Quantity (kg)],LabourFromFeed[No. Labour],\"Out of range\",-1)","v":{"$error":"#N/A"}},{"$f":"T335*OperatingCosts!$C$9","v":{"$error":"#N/A"}},{"$error":"#N/A"}]
[334,{"$f":"IF(A336<='S3-Short'!$C$7, B335*EXP((LN((E335/100)+1))*1),)","v":0},{"$f":"_xlfn.XLOOKUP($B336,FeedTables!$C$42:$T$42,FeedTables!$C$44:$T$44,,-1)","v":{"$error":"#N/A"}},{"$f":"_xlfn.XLOOKUP($B336,FeedTables!$C$42:$T$42,FeedTables!$C$45:$T$45,,-1)","v":{"$error":"#N/A"}},{"$f":"_xlfn.XLOOKUP($B336,FeedTables!$C$42:$T$42,FeedTables!$C$46:$T$46,,-1)*_xlfn.XLOOKUP(N335,DensityMultiplier[Biomass kg/m3],DensityMultiplier[Multiplier],,-1)","v":{"$error":"#N/A"}},3853.2055944265799,{"$f":"IF(A336<='S3-Short'!$C$7,('Growth-Model-3'!G335*EXP($AA$7)),0)","v":0},{"$f":"IF(A336<='S3-Short'!$C$7,$AD$6*EXP($AD$7*('S3-Short'!C$7-'Growth-Model-3'!A336)),0)","v":0},196.79440557341832,4.859121125269588E-2,0,13.580865810479755,0,{"$f":"M336/'S3-Short'!$C$17","v":0},{"$error":"#N/A"},{"$error":"#N/A"},{"$f":"_xlfn.XLOOKUP(B336,FeedTables!$C$17:$T$17,FeedTables!$C$31:$T$31,,-1)","v":{"$error":"#N/A"}},{"$f":"_xlfn.XLOOKUP(Q336,FeedPrice[Feed],FeedPrice[Price per kg],\"Unknown\",0)*O336","v":{"$error":"#N/A"}},{"$error":"#N/A"},{"$f":"_xlfn.XLOOKUP(O336,LabourFromFeed[Feed Quantity (kg)],LabourFromFeed[No. Labour],\"Out of range\",-1)","v":{"$error":"#N/A"}},{"$f":"T336*OperatingCosts!$C$9","v":{"$error":"#N/A"}},{"$error":"#N/A"}]
[335,{"$f":"IF(A337<='S3-Short'!$C$7, B336*EXP((LN((E336/100)+1))*1),)","v":0},{"$f":"_xlfn.XLOOKUP($B337,FeedTables!$C$42:$T$42,FeedTables!$C$44:$T$44,,-1)","v":{"$error":"#N/A"}},{"$f":"_xlfn.XLOOKUP($B337,FeedTables!$C$42:$T$42,FeedTables!$C$45:$T$45,,-1)","v":{"$error":"#N/A"}},{"$f":"_xlfn.XLOOKUP($B337,FeedTables!$C$42:$T$42,FeedTables!$C$46:$T$46,,-1)*_xlfn.XLOOKUP(N336,DensityMultiplier[Biomass kg/m3],DensityMultiplier[Multiplier],,-1)","v":{"$error":"#N/A"}},3853.2055944265799,{"$f":"IF(A337<='S3-Short'!$C$7,('Growth-Model-3'!G336*EXP($AA$7)),0)","v":0},{"$f":"IF(A337<='S3-Short'!$C$7,$AD$6*EXP($AD$7*('S3-Short'!C$7-'Growth-Model-3'!A337)),0)","v":0},196.79440557341832,4.859121125269588E-2,0,13.580865810479755,0,{"$f":"M337/'S3-Short'!$C$17","v":0},{"$error":"#N/A"},{"$error":"#N/A"},{"$f":"_xlfn.XLOOKUP(B337,FeedTables!$C$17:$T$17,FeedTables!$C$31:$T$31,,-1)","v":{"$error":"#N/A"}},{"$f":"_xlfn.XLOOKUP(Q337,FeedPrice[Feed],FeedPrice[Price per kg],\"Unknown\",0)*O337","v":{"$error":"#N/A"}},{"$error":"#N/A"},{"$f":"_xlfn.XLOOKUP(O337,LabourFromFeed[Feed Quantity (kg)],LabourFromFeed[No. Labour],\"Out of range\",-1)","v":{"$error":"#N/A"}},{"$f":"T337*OperatingCosts!$C$9","v":{"$error":"#N/A"}},{"$error":"#N/A"}]
[336,{"$f":"IF(A338<='S3-Short'!$C$7, B337*EXP((LN((E337/100)+1))*1),)","v":0},{"$f":"_xlfn.XLOOKUP($B338,FeedTables!$C$42:$T$42,FeedTables!$C$44:$T$44,,-1)","v":{"$error":"#N/A"}},{"$f":"_xlfn.XLOOKUP($B338,FeedTables!$C$42:$T$42,FeedTables!$C$45:$T$45,,-1)","v":{"$error":"#N/A"}},{"$f":"_xlfn.XLOOKUP($B338,FeedTables!$C$42:$T$42,FeedTables!$C$46:$T$46,,-1)*_xlfn.XLOOKUP(N337,DensityMultiplier[Biomass kg/m3],DensityMultiplier[Multiplier],,-1)","v":{"$error":"#N/A"}},3853.2055944265799,{"$f":"IF(A338<='S3-Short'!$C$7,('Growth-Model-3'!G337*EXP($AA$7)),0)","v":0},{"$f":"IF(A338<='S3-Short'!$C$7,$AD$6*EXP($AD$7*('S3-Short'!C$7-'Growth-Model-3'!A338)),0)","v":0},196.79440557341832,4.859121125269588E-2,0,13.580865810479755,0,{"$f":"M338/'S3-Short'!$C$17","v":0},{"$error":"#N/A"},{"$error":"#N/A"},{"$f":"_xlfn.XLOOKUP(B338,FeedTables!$C$17:$T$17,FeedTables!$C$31:$T$31,,-1)","v":{"$error":"#N/A"}},{"$f":"_xlfn.XLOOKUP(Q338,FeedPrice[Feed],FeedPrice[Price per kg],\"Unknown\",0)*O338","v":{"$error":"#N/A"}},{"$error":"#N/A"},{"$f":"_xlfn.XLOOKUP(O338,LabourFromFeed[Feed Quantity (kg)],LabourFromFeed[No. Labour],\"Out of range\",-1)","v":{"$error":"#N/A"}},{"$f":"T338*OperatingCosts!$C$9","v":{"$error":"#N/A"}},{"$error":"#N/A"}]
[337,{"$f":"IF(A339<='S3-Short'!$C$7, B338*EXP((LN((E338/100)+1))*1),)","v":0},{"$f":"_xlfn.XLOOKUP($B339,FeedTables!$C$42:$T$42,FeedTables!$C$44:$T$44,,-1)","v":{"$error":"#N/A"}},{"$f":"_xlfn.XLOOKUP($B339,FeedTables!$C$42:$T$42,FeedTables!$C$45:$T$45,,-1)","v":{"$error":"#N/A"}},{"$f":"_xlfn.XLOOKUP($B339,FeedTables!$C$42:$T$42,FeedTables!$C$46:$T$46,,-1)*_xlfn.XLOOKUP(N338,DensityMultiplier[Biomass kg/m3],DensityMultiplier[Multiplier],,-1)","v":{"$error":"#N/A"}},3853.2055944265799,{"$f":"IF(A339<='S3-Short'!$C$7,('Growth-Model-3'!G338*EXP($AA$7)),0)","v":0},{"$f":"IF(A339<='S3-Short'!$C$7,$AD$6*EXP($AD$7*('S3-Short'!C$7-'Growth-Model-3'!A339)),0)","v":0},196.79440557341832,4.859121125269588E-2,0,13.580865810479755,0,{"$f":"M339/'S3-Short'!$C$17","v":0},{"$error":"#N/A"},{"$error":"#N/A"},{"$f":"_xlfn.XLOOKUP(B339,FeedTables!$C$17:$T$17,FeedTables!$C$31:$T$31,,-1)","v":{"$error":"#N/A"}},{"$f":"_xlfn.XLOOKUP(Q339,FeedPrice[Feed],FeedPrice[Price per kg],\"Unknown\",0)*O339","v":{"$error":"#N/A"}},{"$error":"#N/A"},{"$f":"_xlfn.XLOOKUP(O339,LabourFromFeed[Feed Quantity (kg)],LabourFromFeed[No. Labour],\"Out of range\",-1)","v":{"$error":"#N/A"}},{"$f":"T339*OperatingCosts!$C$9","v":{"$error":"#N/A"}},{"$error":"#N/A"}]
[338,{"$f":"IF(A340<='S3-Short'!$C$7, B339*EXP((LN((E339/100)+1))*1),)","v":0},{"$f":"_xlfn.XLOOKUP($B340,FeedTables!$C$42:$T$42,FeedTables!$C$44:$T$44,,-1)","v":{"$error":"#N/A"}},{"$f":"_xlfn.XLOOKUP($B340,FeedTables!$C$42:$T$42,FeedTables!$C$45:$T$45,,-1)","v":{"$error":"#N/A"}},{"$f":"_xlfn.XLOOKUP($B340,FeedTables!$C$42:$T$42,FeedTables!$C$46:$T$46,,-1)*_xlfn.XLOOKUP(N339,DensityMultiplier[Biomass kg/m3],DensityMultiplier[Multiplier],,-1)","v":{"$error":"#N/A"}},3853.2055944265799,{"$f":"IF(A340<='S3-Short'!$C$7,('Growth-Model-3'!G339*EXP($AA$7)),0)","v":0},{"$f":"IF(A340<='S3-Short'!$C$7,$AD$6*EXP($AD$7*('S3-Short'!C$7-'Growth-Model-3'!A340)),0)","v":0},196.79440557341832,4.859121125269588E-2,0,13.580865810479755,0,{"$f":"M340/'S3-Short'!$C$17","v":0},{"$error":"#N/A"},{"$error":"#N/A"},{"$f":"_xlfn.XLOOKUP(B340,FeedTables!$C$17:$T$17,FeedTables!$C$31:$T$31,,-1)","v":{"$error":"#N/A"}},{"$f":"_xlfn.XLOOKUP(Q340,FeedPrice[Feed],FeedPrice[Price per kg],\"Unknown\",0)*O340","v":{"$error":"#N/A"}},{"$error":"#N/A"},{"$f":"_xlfn.XLOOKUP(O340,LabourFromFeed[Feed Quantity (kg)],LabourFromFeed[No. Labour],\"Out of range\",-1)","v":{"$error":"#N/A"}},{"$f":"T340*OperatingCosts!$C$9","v":{"$error":"#N/A"}},{"$error":"#N/A"}]
[339,{"$f":"IF(A341<='S3-Short'!$C$7, B340*EXP((LN((E340/100)+1))*1),)","v":0},{"$f":"_xlfn.XLOOKUP($B341,FeedTables!$C$42:$T$42,FeedTables!$C$44:$T$44,,-1)","v":{"$error":"#N/A"}},{"$f":"_xlfn.XLOOKUP($B341,FeedTables!$C$42:$T$42,FeedTables!$C$45:$T$45,,-1)","v":{"$error":"#N/A"}},{"$f":"_xlfn.XLOOKUP($B341,FeedTables!$C$42:$T$42,FeedTables!$C$46:$T$46,,-1)*_xlfn.XLOOKUP(N340,DensityMultiplier[Biomass kg/m3],DensityMultiplier[Multiplier],,-1)","v":{"$error":"#N/A"}},3853.2055944265799,{"$f":"IF(A341<='S3-Short'!$C$7,('Growth-Model-3'!G340*EXP($AA$7)),0)","v":0},{"$f":"IF(A341<='S3-Short'!$C$7,$AD$6*EXP($AD$7*('S3-Short'!C$7-'Growth-Model-3'!A341)),0)","v":0},196.79440557341832,4.859121125269588E-2,0,13.580865810479755,0,{"$f":"M341/'S3-Short'!$C$17","v":0},{"$error":"#N/A"},{"$error":"#N/A"},{"$f":"_xlfn.XLOOKUP(B341,FeedTables!$C$17:$T$17,FeedTables!$C$31:$T$31,,-1)","v":{"$error":"#N/A"}},{"$f":"_xlfn.XLOOKUP(Q341,FeedPrice[Feed],FeedPrice[Price per kg],\"Unknown\",0)*O341","v":{"$error":"#N/A"}},{"$error":"#N/A"},{"$f":"_xlfn.XLOOKUP(O341,LabourFromFeed[Feed Quantity (kg)],LabourFromFeed[No. Labour],\"Out of range\",-1)","v":{"$error":"#N/A"}},{"$f":"T341*OperatingCosts!$C$9","v":{"$error":"#N/A"}},{"$error":"#N/A"}]
[340,{"$f":"IF(A342<='S3-Short'!$C$7, B341*EXP((LN((E341/100)+1))*1),)","v":0},{"$f":"_xlfn.XLOOKUP($B342,FeedTables!$C$42:$T$42,FeedTables!$C$44:$T$44,,-1)","v":{"$error":"#N/A"}},{"$f":"_xlfn.XLOOKUP($B342,FeedTables!$C$42:$T$42,FeedTables!$C$45:$T$45,,-1)","v":{"$error":"#N/A"}},{"$f":"_xlfn.XLOOKUP($B342,FeedTables!$C$42:$T$42,FeedTables!$C$46:$T$46,,-1)*_xlfn.XLOOKUP(N341,DensityMultiplier[Biomass kg/m3],DensityMultiplier[Multiplier],,-1)","v":{"$error":"#N/A"}},3853.2055944265799,{"$f":"IF(A342<='S3-Short'!$C$7,('Growth-Model-3'!G341*EXP($AA$7)),0)","v":0},{"$f":"IF(A342<='S3-Short'!$C$7,$AD$6*EXP($AD$7*('S3-Short'!C$7-'Growth-Model-3'!A342)),0)","v":0},196.79440557341832,4.859121125269588E-2,0,13.580865810479755,0,{"$f":"M342/'S3-Short'!$C$17","v":0},{"$error":"#N/A"},{"$error":"#N/A"},{"$f":"_xlfn.XLOOKUP(B342,FeedTables!$C$17:$T$17,FeedTables!$C$31:$T$31,,-1)","v":{"$error":"#N/A"}},{"$f":"_xlfn.XLOOKUP(Q342,FeedPrice[Feed],FeedPrice[Price per kg],\"Unknown\",0)*O342","v":{"$error":"#N/A"}},{"$error":"#N/A"},{"$f":"_xlfn.XLOOKUP(O342,LabourFromFeed[Feed Quantity (kg)],LabourFromFeed[No. Labour],\"Out of range\",-1)","v":{"$error":"#N/A"}},{"$f":"T342*OperatingCosts!$C$9","v":{"$error":"#N/A"}},{"$error":"#N/A"}]
[341,{"$f":"IF(A343<='S3-Short'!$C$7, B342*EXP((LN((E342/100)+1))*1),)","v":0},{"$f":"_xlfn.XLOOKUP($B343,FeedTables!$C$42:$T$42,FeedTables!$C$44:$T$44,,-1)","v":{"$error":"#N/A"}},{"$f":"_xlfn.XLOOKUP($B343,FeedTables!$C$42:$T$42,FeedTables!$C$45:$T$45,,-1)","v":{"$error":"#N/A"}},{"$f":"_xlfn.XLOOKUP($B343,FeedTables!$C$42:$T$42,FeedTables!$C$46:$T$46,,-1)*_xlfn.XLOOKUP(N342,DensityMultiplier[Biomass kg/m3],DensityMultiplier[Multiplier],,-1)","v":{"$error":"#N/A"}},3853.2055944265799,{"$f":"IF(A343<='S3-Short'!$C$7,('Growth-Model-3'!G342*EXP($AA$7)),0)","v":0},{"$f":"IF(A343<='S3-Short'!$C$7,$AD$6*EXP($AD$7*('S3-Short'!C$7-'Growth-Model-3'!A343)),0)","v":0},196.79440557341832,4.859121125269588E-2,0,13.580865810479755,0,{"$f":"M343/'S3-Short'!$C$17","v":0},{"$error":"#N/A"},{"$error":"#N/A"},{"$f":"_xlfn.XLOOKUP(B343,FeedTables!$C$17:$T$17,FeedTables!$C$31:$T$31,,-1)","v":{"$error":"#N/A"}},{"$f":"_xlfn.XLOOKUP(Q343,FeedPrice[Feed],FeedPrice[Price per kg],\"Unknown\",0)*O343","v":{"$error":"#N/A"}},{"$error":"#N/A"},{"$f":"_xlfn.XLOOKUP(O343,LabourFromFeed[Feed Quantity (kg)],LabourFromFeed[No. Labour],\"Out of range\",-1)","v":{"$error":"#N/A"}},{"$f":"T343*OperatingCosts!$C$9","v":{"$error":"#N/A"}},{"$error":"#N/A"}]
[342,{"$f":"IF(A344<='S3-Short'!$C$7, B343*EXP((LN((E343/100)+1))*1),)","v":0},{"$f":"_xlfn.XLOOKUP($B344,FeedTables!$C$42:$T$42,FeedTables!$C$44:$T$44,,-1)","v":{"$error":"#N/A"}},{"$f":"_xlfn.XLOOKUP($B344,FeedTables!$C$42:$T$42,FeedTables!$C$45:$T$45,,-1)","v":{"$error":"#N/A"}},{"$f":"_xlfn.XLOOKUP($B344,FeedTables!$C$42:$T$42,FeedTables!$C$46:$T$46,,-1)*_xlfn.XLOOKUP(N343,DensityMultiplier[Biomass kg/m3],DensityMultiplier[Multiplier],,-1)","v":{"$error":"#N/A"}},3853.2055944265799,{"$f":"IF(A344<='S3-Short'!$C$7,('Growth-Model-3'!G343*EXP($AA$7)),0)","v":0},{"$f":"IF(A344<='S3-Short'!$C$7,$AD$6*EXP($AD$7*('S3-Short'!C$7-'Growth-Model-3'!A344)),0)","v":0},196.79440557341832,4.859121125269588E-2,0,13.580865810479755,0,{"$f":"M344/'S3-Short'!$C$17","v":0},{"$error":"#N/A"},{"$error":"#N/A"},{"$f":"_xlfn.XLOOKUP(B344,FeedTables!$C$17:$T$17,FeedTables!$C$31:$T$31,,-1)","v":{"$error":"#N/A"}},{"$f":"_xlfn.XLOOKUP(Q344,FeedPrice[Feed],FeedPrice[Price per kg],\"Unknown\",0)*O344","v":{"$error":"#N/A"}},{"$error":"#N/A"},{"$f":"_xlfn.XLOOKUP(O344,LabourFromFeed[Feed Quantity (kg)],LabourFromFeed[No. Labour],\"Out of range\",-1)","v":{"$error":"#N/A"}},{"$f":"T344*OperatingCosts!$C$9","v":{"$error":"#N/A"}},{"$error":"#N/A"}]
[343,{"$f":"IF(A345<='S3-Short'!$C$7, B344*EXP((LN((E344/100)+1))*1),)","v":0},{"$f":"_xlfn.XLOOKUP($B345,FeedTables!$C$42:$T$42,FeedTables!$C$44:$T$44,,-1)","v":{"$error":"#N/A"}},{"$f":"_xlfn.XLOOKUP($B345,FeedTables!$C$42:$T$42,FeedTables!$C$45:$T$45,,-1)","v":{"$error":"#N/A"}},{"$f":"_xlfn.XLOOKUP($B345,FeedTables!$C$42:$T$42,FeedTables!$C$46:$T$46,,-1)*_xlfn.XLOOKUP(N344,DensityMultiplier[Biomass kg/m3],DensityMultiplier[Multiplier],,-1)","v":{"$error":"#N/A"}},3853.2055944265799,{"$f":"IF(A345<='S3-Short'!$C$7,('Growth-Model-3'!G344*EXP($AA$7)),0)","v":0},{"$f":"IF(A345<='S3-Short'!$C$7,$AD$6*EXP($AD$7*('S3-Short'!C$7-'Growth-Model-3'!A345)),0)","v":0},196.79440557341832,4.859121125269588E-2,0,13.580865810479755,0,{"$f":"M345/'S3-Short'!$C$17","v":0},{"$error":"#N/A"},{"$error":"#N/A"},{"$f":"_xlfn.XLOOKUP(B345,FeedTables!$C$17:$T$17,FeedTables!$C$31:$T$31,,-1)","v":{"$error":"#N/A"}},{"$f":"_xlfn.XLOOKUP(Q345,FeedPrice[Feed],FeedPrice[Price per kg],\"Unknown\",0)*O345","v":{"$error":"#N/A"}},{"$error":"#N/A"},{"$f":"_xlfn.XLOOKUP(O345,LabourFromFeed[Feed Quantity (kg)],LabourFromFeed[No. Labour],\"Out of range\",-1)","v":{"$error":"#N/A"}},{"$f":"T345*OperatingCosts!$C$9","v":{"$error":"#N/A"}},{"$error":"#N/A"}]
[344,{"$f":"IF(A346<='S3-Short'!$C$7, B345*EXP((LN((E345/100)+1))*1),)","v":0},{"$f":"_xlfn.XLOOKUP($B346,FeedTables!$C$42:$T$42,FeedTables!$C$44:$T$44,,-1)","v":{"$error":"#N/A"}},{"$f":"_xlfn.XLOOKUP($B346,FeedTables!$C$42:$T$42,FeedTables!$C$45:$T$45,,-1)","v":{"$error":"#N/A"}},{"$f":"_xlfn.XLOOKUP($B346,FeedTables!$C$42:$T$42,FeedTables!$C$46:$T$46,,-1)*_xlfn.XLOOKUP(N345,DensityMultiplier[Biomass kg/m3],DensityMultiplier[Multiplier],,-1)","v":{"$error":"#N/A"}},3853.2055944265799,{"$f":"IF(A346<='S3-Short'!$C$7,('Growth-Model-3'!G345*EXP($AA$7)),0)","v":0},{"$f":"IF(A346<='S3-Short'!$C$7,$AD$6*EXP($AD$7*('S3-Short'!C$7-'Growth-Model-3'!A346)),0)","v":0},196.79440557341832,4.859121125269588E-2,0,13.580865810479755,0,{"$f":"M346/'S3-Short'!$C$17","v":0},{"$error":"#N/A"},{"$error":"#N/A"},{"$f":"_xlfn.XLOOKUP(B346,FeedTables!$C$17:$T$17,FeedTables!$C$31:$T$31,,-1)","v":{"$error":"#N/A"}},{"$f":"_xlfn.XLOOKUP(Q346,FeedPrice[Feed],FeedPrice[Price per kg],\"Unknown\",0)*O346","v":{"$error":"#N/A"}},{"$error":"#N/A"},{"$f":"_xlfn.XLOOKUP(O346,LabourFromFeed[Feed Quantity (kg)],LabourFromFeed[No. Labour],\"Out of range\",-1)","v":{"$error":"#N/A"}},{"$f":"T346*OperatingCosts!$C$9","v":{"$error":"#N/A"}},{"$error":"#N/A"}]
[345,{"$f":"IF(A347<='S3-Short'!$C$7, B346*EXP((LN((E346/100)+1))*1),)","v":0},{"$f":"_xlfn.XLOOKUP($B347,FeedTables!$C$42:$T$42,FeedTables!$C$44:$T$44,,-1)","v":{"$error":"#N/A"}},{"$f":"_xlfn.XLOOKUP($B347,FeedTables!$C$42:$T$42,FeedTables!$C$45:$T$45,,-1)","v":{"$error":"#N/A"}},{"$f":"_xlfn.XLOOKUP($B347,FeedTables!$C$42:$T$42,FeedTables!$C$46:$T$46,,-1)*_xlfn.XLOOKUP(N346,DensityMultiplier[Biomass kg/m3],DensityMultiplier[Multiplier],,-1)","v":{"$error":"#N/A"}},3853.2055944265799,{"$f":"IF(A347<='S3-Short'!$C$7,('Growth-Model-3'!G346*EXP($AA$7)),0)","v":0},{"$f":"IF(A347<='S3-Short'!$C$7,$AD$6*EXP($AD$7*('S3-Short'!C$7-'Growth-Model-3'!A347)),0)","v":0},196.79440557341832,4.859121125269588E-2,0,13.580865810479755,0,{"$f":"M347/'S3-Short'!$C$17","v":0},{"$error":"#N/A"},{"$error":"#N/A"},{"$f":"_xlfn.XLOOKUP(B347,FeedTables!$C$17:$T$17,FeedTables!$C$31:$T$31,,-1)","v":{"$error":"#N/A"}},{"$f":"_xlfn.XLOOKUP(Q347,FeedPrice[Feed],FeedPrice[Price per kg],\"Unknown\",0)*O347","v":{"$error":"#N/A"}},{"$error":"#N/A"},{"$f":"_xlfn.XLOOKUP(O347,LabourFromFeed[Feed Quantity (kg)],LabourFromFeed[No. Labour],\"Out of range\",-1)","v":{"$error":"#N/A"}},{"$f":"T347*OperatingCosts!$C$9","v":{"$error":"#N/A"}},{"$error":"#N/A"}]
[346,{"$f":"IF(A348<='S3-Short'!$C$7, B347*EXP((LN((E347/100)+1))*1),)","v":0},{"$f":"_xlfn.XLOOKUP($B348,FeedTables!$C$42:$T$42,FeedTables!$C$44:$T$44,,-1)","v":{"$error":"#N/A"}},{"$f":"_xlfn.XLOOKUP($B348,FeedTables!$C$42:$T$42,FeedTables!$C$45:$T$45,,-1)","v":{"$error":"#N/A"}},{"$f":"_xlfn.XLOOKUP($B348,FeedTables!$C$42:$T$42,FeedTables!$C$46:$T$46,,-1)*_xlfn.XLOOKUP(N347,DensityMultiplier[Biomass kg/m3],DensityMultiplier[Multiplier],,-1)","v":{"$error":"#N/A"}},3853.2055944265799,{"$f":"IF(A348<='S3-Short'!$C$7,('Growth-Model-3'!G347*EXP($AA$7)),0)","v":0},{"$f":"IF(A348<='S3-Short'!$C$7,$AD$6*EXP($AD$7*('S3-Short'!C$7-'Growth-Model-3'!A348)),0)","v":0},196.79440557341832,4.859121125269588E-2,0,13.580865810479755,0,{"$f":"M348/'S3-Short'!$C$17","v":0},{"$error":"#N/A"},{"$error":"#N/A"},{"$f":"_xlfn.XLOOKUP(B348,FeedTables!$C$17:$T$17,FeedTables!$C$31:$T$31,,-1)","v":{"$error":"#N/A"}},{"$f":"_xlfn.XLOOKUP(Q348,FeedPrice[Feed],FeedPrice[Price per kg],\"Unknown\",0)*O348","v":{"$error":"#N/A"}},{"$error":"#N/A"},{"$f":"_xlfn.XLOOKUP(O348,LabourFromFeed[Feed Quantity (kg)],LabourFromFeed[No. Labour],\"Out of range\",-1)","v":{"$error":"#N/A"}},{"$f":"T348*OperatingCosts!$C$9","v":{"$error":"#N/A"}},{"$error":"#N/A"}]
[347,{"$f":"IF(A349<='S3-Short'!$C$7, B348*EXP((LN((E348/100)+1))*1),)","v":0},{"$f":"_xlfn.XLOOKUP($B349,FeedTables!$C$42:$T$42,FeedTables!$C$44:$T$44,,-1)","v":{"$error":"#N/A"}},{"$f":"_xlfn.XLOOKUP($B349,FeedTables!$C$42:$T$42,FeedTables!$C$45:$T$45,,-1)","v":{"$error":"#N/A"}},{"$f":"_xlfn.XLOOKUP($B349,FeedTables!$C$42:$T$42,FeedTables!$C$46:$T$46,,-1)*_xlfn.XLOOKUP(N348,DensityMultiplier[Biomass kg/m3],DensityMultiplier[Multiplier],,-1)","v":{"$error":"#N/A"}},3853.2055944265799,{"$f":"IF(A349<='S3-Short'!$C$7,('Growth-Model-3'!G348*EXP($AA$7)),0)","v":0},{"$f":"IF(A349<='S3-Short'!$C$7,$AD$6*EXP($AD$7*('S3-Short'!C$7-'Growth-Model-3'!A349)),0)","v":0},196.79440557341832,4.859121125269588E-2,0,13.580865810479755,0,{"$f":"M349/'S3-Short'!$C$17","v":0},{"$error":"#N/A"},{"$error":"#N/A"},{"$f":"_xlfn.XLOOKUP(B349,FeedTables!$C$17:$T$17,FeedTables!$C$31:$T$31,,-1)","v":{"$error":"#N/A"}},{"$f":"_xlfn.XLOOKUP(Q349,FeedPrice[Feed],FeedPrice[Price per kg],\"Unknown\",0)*O349","v":{"$error":"#N/A"}},{"$error":"#N/A"},{"$f":"_xlfn.XLOOKUP(O349,LabourFromFeed[Feed Quantity (kg)],LabourFromFeed[No. Labour],\"Out of range\",-1)","v":{"$error":"#N/A"}},{"$f":"T349*OperatingCosts!$C$9","v":{"$error":"#N/A"}},{"$error":"#N/A"}]
[348,{"$f":"IF(A350<='S3-Short'!$C$7, B349*EXP((LN((E349/100)+1))*1),)","v":0},{"$f":"_xlfn.XLOOKUP($B350,FeedTables!$C$42:$T$42,FeedTables!$C$44:$T$44,,-1)","v":{"$error":"#N/A"}},{"$f":"_xlfn.XLOOKUP($B350,FeedTables!$C$42:$T$42,FeedTables!$C$45:$T$45,,-1)","v":{"$error":"#N/A"}},{"$f":"_xlfn.XLOOKUP($B350,FeedTables!$C$42:$T$42,FeedTables!$C$46:$T$46,,-1)*_xlfn.XLOOKUP(N349,DensityMultiplier[Biomass kg/m3],DensityMultiplier[Multiplier],,-1)","v":{"$error":"#N/A"}},3853.2055944265799,{"$f":"IF(A350<='S3-Short'!$C$7,('Growth-Model-3'!G349*EXP($AA$7)),0)","v":0},{"$f":"IF(A350<='S3-Short'!$C$7,$AD$6*EXP($AD$7*('S3-Short'!C$7-'Growth-Model-3'!A350)),0)","v":0},196.79440557341832,4.859121125269588E-2,0,13.580865810479755,0,{"$f":"M350/'S3-Short'!$C$17","v":0},{"$error":"#N/A"},{"$error":"#N/A"},{"$f":"_xlfn.XLOOKUP(B350,FeedTables!$C$17:$T$17,FeedTables!$C$31:$T$31,,-1)","v":{"$error":"#N/A"}},{"$f":"_xlfn.XLOOKUP(Q350,FeedPrice[Feed],FeedPrice[Price per kg],\"Unknown\",0)*O350","v":{"$error":"#N/A"}},{"$error":"#N/A"},{"$f":"_xlfn.XLOOKUP(O350,LabourFromFeed[Feed Quantity (kg)],LabourFromFeed[No. Labour],\"Out of range\",-1)","v":{"$error":"#N/A"}},{"$f":"T350*OperatingCosts!$C$9","v":{"$error":"#N/A"}},{"$error":"#N/A"}]
[349,{"$f":"IF(A351<='S3-Short'!$C$7, B350*EXP((LN((E350/100)+1))*1),)","v":0},{"$f":"_xlfn.XLOOKUP($B351,FeedTables!$C$42:$T$42,FeedTables!$C$44:$T$44,,-1)","v":{"$error":"#N/A"}},{"$f":"_xlfn.XLOOKUP($B351,FeedTables!$C$42:$T$42,FeedTables!$C$45:$T$45,,-1)","v":{"$error":"#N/A"}},{"$f":"_xlfn.XLOOKUP($B351,FeedTables!$C$42:$T$42,FeedTables!$C$46:$T$46,,-1)*_xlfn.XLOOKUP(N350,DensityMultiplier[Biomass kg/m3],DensityMultiplier[Multiplier],,-1)","v":{"$error":"#N/A"}},3853.2055944265799,{"$f":"IF(A351<='S3-Short'!$C$7,('Growth-Model-3'!G350*EXP($AA$7)),0)","v":0},{"$f":"IF(A351<='S3-Short'!$C$7,$AD$6*EXP($AD$7*('S3-Short'!C$7-'Growth-Model-3'!A351)),0)","v":0},196.79440557341832,4.859121125269588E-2,0,13.580865810479755,0,{"$f":"M351/'S3-Short'!$C$17","v":0},{"$error":"#N/A"},{"$error":"#N/A"},{"$f":"_xlfn.XLOOKUP(B351,FeedTables!$C$17:$T$17,FeedTables!$C$31:$T$31,,-1)","v":{"$error":"#N/A"}},{"$f":"_xlfn.XLOOKUP(Q351,FeedPrice[Feed],FeedPrice[Price per kg],\"Unknown\",0)*O351","v":{"$error":"#N/A"}},{"$error":"#N/A"},{"$f":"_xlfn.XLOOKUP(O351,LabourFromFeed[Feed Quantity (kg)],LabourFromFeed[No. Labour],\"Out of range\",-1)","v":{"$error":"#N/A"}},{"$f":"T351*OperatingCosts!$C$9","v":{"$error":"#N/A"}},{"$error":"#N/A"}]
[350,{"$f":"IF(A352<='S3-Short'!$C$7, B351*EXP((LN((E351/100)+1))*1),)","v":0},{"$f":"_xlfn.XLOOKUP($B352,FeedTables!$C$42:$T$42,FeedTables!$C$44:$T$44,,-1)","v":{"$error":"#N/A"}},{"$f":"_xlfn.XLOOKUP($B352,FeedTables!$C$42:$T$42,FeedTables!$C$45:$T$45,,-1)","v":{"$error":"#N/A"}},{"$f":"_xlfn.XLOOKUP($B352,FeedTables!$C$42:$T$42,FeedTables!$C$46:$T$46,,-1)*_xlfn.XLOOKUP(N351,DensityMultiplier[Biomass kg/m3],DensityMultiplier[Multiplier],,-1)","v":{"$error":"#N/A"}},3853.2055944265799,{"$f":"IF(A352<='S3-Short'!$C$7,('Growth-Model-3'!G351*EXP($AA$7)),0)","v":0},{"$f":"IF(A352<='S3-Short'!$C$7,$AD$6*EXP($AD$7*('S3-Short'!C$7-'Growth-Model-3'!A352)),0)","v":0},196.79440557341832,4.859121125269588E-2,0,13.580865810479755,0,{"$f":"M352/'S3-Short'!$C$17","v":0},{"$error":"#N/A"},{"$error":"#N/A"},{"$f":"_xlfn.XLOOKUP(B352,FeedTables!$C$17:$T$17,FeedTables!$C$31:$T$31,,-1)","v":{"$error":"#N/A"}},{"$f":"_xlfn.XLOOKUP(Q352,FeedPrice[Feed],FeedPrice[Price per kg],\"Unknown\",0)*O352","v":{"$error":"#N/A"}},{"$error":"#N/A"},{"$f":"_xlfn.XLOOKUP(O352,LabourFromFeed[Feed Quantity (kg)],LabourFromFeed[No. Labour],\"Out of range\",-1)","v":{"$error":"#N/A"}},{"$f":"T352*OperatingCosts!$C$9","v":{"$error":"#N/A"}},{"$error":"#N/A"}]
[351,{"$f":"IF(A353<='S3-Short'!$C$7, B352*EXP((LN((E352/100)+1))*1),)","v":0},{"$f":"_xlfn.XLOOKUP($B353,FeedTables!$C$42:$T$42,FeedTables!$C$44:$T$44,,-1)","v":{"$error":"#N/A"}},{"$f":"_xlfn.XLOOKUP($B353,FeedTables!$C$42:$T$42,FeedTables!$C$45:$T$45,,-1)","v":{"$error":"#N/A"}},{"$f":"_xlfn.XLOOKUP($B353,FeedTables!$C$42:$T$42,FeedTables!$C$46:$T$46,,-1)*_xlfn.XLOOKUP(N352,DensityMultiplier[Biomass kg/m3],DensityMultiplier[Multiplier],,-1)","v":{"$error":"#N/A"}},3853.2055944265799,{"$f":"IF(A353<='S3-Short'!$C$7,('Growth-Model-3'!G352*EXP($AA$7)),0)","v":0},{"$f":"IF(A353<='S3-Short'!$C$7,$AD$6*EXP($AD$7*('S3-Short'!C$7-'Growth-Model-3'!A353)),0)","v":0},196.79440557341832,4.859121125269588E-2,0,13.580865810479755,0,{"$f":"M353/'S3-Short'!$C$17","v":0},{"$error":"#N/A"},{"$error":"#N/A"},{"$f":"_xlfn.XLOOKUP(B353,FeedTables!$C$17:$T$17,FeedTables!$C$31:$T$31,,-1)","v":{"$error":"#N/A"}},{"$f":"_xlfn.XLOOKUP(Q353,FeedPrice[Feed],FeedPrice[Price per kg],\"Unknown\",0)*O353","v":{"$error":"#N/A"}},{"$error":"#N/A"},{"$f":"_xlfn.XLOOKUP(O353,LabourFromFeed[Feed Quantity (kg)],LabourFromFeed[No. Labour],\"Out of range\",-1)","v":{"$error":"#N/A"}},{"$f":"T353*OperatingCosts!$C$9","v":{"$error":"#N/A"}},{"$error":"#N/A"}]
[352,{"$f":"IF(A354<='S3-Short'!$C$7, B353*EXP((LN((E353/100)+1))*1),)","v":0},{"$f":"_xlfn.XLOOKUP($B354,FeedTables!$C$42:$T$42,FeedTables!$C$44:$T$44,,-1)","v":{"$error":"#N/A"}},{"$f":"_xlfn.XLOOKUP($B354,FeedTables!$C$42:$T$42,FeedTables!$C$45:$T$45,,-1)","v":{"$error":"#N/A"}},{"$f":"_xlfn.XLOOKUP($B354,FeedTables!$C$42:$T$42,FeedTables!$C$46:$T$46,,-1)*_xlfn.XLOOKUP(N353,DensityMultiplier[Biomass kg/m3],DensityMultiplier[Multiplier],,-1)","v":{"$error":"#N/A"}},3853.2055944265799,{"$f":"IF(A354<='S3-Short'!$C$7,('Growth-Model-3'!G353*EXP($AA$7)),0)","v":0},{"$f":"IF(A354<='S3-Short'!$C$7,$AD$6*EXP($AD$7*('S3-Short'!C$7-'Growth-Model-3'!A354)),0)","v":0},196.79440557341832,4.859121125269588E-2,0,13.580865810479755,0,{"$f":"M354/'S3-Short'!$C$17","v":0},{"$error":"#N/A"},{"$error":"#N/A"},{"$f":"_xlfn.XLOOKUP(B354,FeedTables!$C$17:$T$17,FeedTables!$C$31:$T$31,,-1)","v":{"$error":"#N/A"}},{"$f":"_xlfn.XLOOKUP(Q354,FeedPrice[Feed],FeedPrice[Price per kg],\"Unknown\",0)*O354","v":{"$error":"#N/A"}},{"$error":"#N/A"},{"$f":"_xlfn.XLOOKUP(O354,LabourFromFeed[Feed Quantity (kg)],LabourFromFeed[No. Labour],\"Out of range\",-1)","v":{"$error":"#N/A"}},{"$f":"T354*OperatingCosts!$C$9","v":{"$error":"#N/A"}},{"$error":"#N/A"}]
[353,{"$f":"IF(A355<='S3-Short'!$C$7, B354*EXP((LN((E354/100)+1))*1),)","v":0},{"$f":"_xlfn.XLOOKUP($B355,FeedTables!$C$42:$T$42,FeedTables!$C$44:$T$44,,-1)","v":{"$error":"#N/A"}},{"$f":"_xlfn.XLOOKUP($B355,FeedTables!$C$42:$T$42,FeedTables!$C$45:$T$45,,-1)","v":{"$error":"#N/A"}},{"$f":"_xlfn.XLOOKUP($B355,FeedTables!$C$42:$T$42,FeedTables!$C$46:$T$46,,-1)*_xlfn.XLOOKUP(N354,DensityMultiplier[Biomass kg/m3],DensityMultiplier[Multiplier],,-1)","v":{"$error":"#N/A"}},3853.2055944265799,{"$f":"IF(A355<='S3-Short'!$C$7,('Growth-Model-3'!G354*EXP($AA$7)),0)","v":0},{"$f":"IF(A355<='S3-Short'!$C$7,$AD$6*EXP($AD$7*('S3-Short'!C$7-'Growth-Model-3'!A355)),0)","v":0},196.79440557341832,4.859121125269588E-2,0,13.580865810479755,0,{"$f":"M355/'S3-Short'!$C$17","v":0},{"$error":"#N/A"},{"$error":"#N/A"},{"$f":"_xlfn.XLOOKUP(B355,FeedTables!$C$17:$T$17,FeedTables!$C$31:$T$31,,-1)","v":{"$error":"#N/A"}},{"$f":"_xlfn.XLOOKUP(Q355,FeedPrice[Feed],FeedPrice[Price per kg],\"Unknown\",0)*O355","v":{"$error":"#N/A"}},{"$error":"#N/A"},{"$f":"_xlfn.XLOOKUP(O355,LabourFromFeed[Feed Quantity (kg)],LabourFromFeed[No. Labour],\"Out of range\",-1)","v":{"$error":"#N/A"}},{"$f":"T355*OperatingCosts!$C$9","v":{"$error":"#N/A"}},{"$error":"#N/A"}]
[354,{"$f":"IF(A356<='S3-Short'!$C$7, B355*EXP((LN((E355/100)+1))*1),)","v":0},{"$f":"_xlfn.XLOOKUP($B356,FeedTables!$C$42:$T$42,FeedTables!$C$44:$T$44,,-1)","v":{"$error":"#N/A"}},{"$f":"_xlfn.XLOOKUP($B356,FeedTables!$C$42:$T$42,FeedTables!$C$45:$T$45,,-1)","v":{"$error":"#N/A"}},{"$f":"_xlfn.XLOOKUP($B356,FeedTables!$C$42:$T$42,FeedTables!$C$46:$T$46,,-1)*_xlfn.XLOOKUP(N355,DensityMultiplier[Biomass kg/m3],DensityMultiplier[Multiplier],,-1)","v":{"$error":"#N/A"}},3853.2055944265799,{"$f":"IF(A356<='S3-Short'!$C$7,('Growth-Model-3'!G355*EXP($AA$7)),0)","v":0},{"$f":"IF(A356<='S3-Short'!$C$7,$AD$6*EXP($AD$7*('S3-Short'!C$7-'Growth-Model-3'!A356)),0)","v":0},196.79440557341832,4.859121125269588E-2,0,13.580865810479755,0,{"$f":"M356/'S3-Short'!$C$17","v":0},{"$error":"#N/A"},{"$error":"#N/A"},{"$f":"_xlfn.XLOOKUP(B356,FeedTables!$C$17:$T$17,FeedTables!$C$31:$T$31,,-1)","v":{"$error":"#N/A"}},{"$f":"_xlfn.XLOOKUP(Q356,FeedPrice[Feed],FeedPrice[Price per kg],\"Unknown\",0)*O356","v":{"$error":"#N/A"}},{"$error":"#N/A"},{"$f":"_xlfn.XLOOKUP(O356,LabourFromFeed[Feed Quantity (kg)],LabourFromFeed[No. Labour],\"Out of range\",-1)","v":{"$error":"#N/A"}},{"$f":"T356*OperatingCosts!$C$9","v":{"$error":"#N/A"}},{"$error":"#N/A"}]
[355,{"$f":"IF(A357<='S3-Short'!$C$7, B356*EXP((LN((E356/100)+1))*1),)","v":0},{"$f":"_xlfn.XLOOKUP($B357,FeedTables!$C$42:$T$42,FeedTables!$C$44:$T$44,,-1)","v":{"$error":"#N/A"}},{"$f":"_xlfn.XLOOKUP($B357,FeedTables!$C$42:$T$42,FeedTables!$C$45:$T$45,,-1)","v":{"$error":"#N/A"}},{"$f":"_xlfn.XLOOKUP($B357,FeedTables!$C$42:$T$42,FeedTables!$C$46:$T$46,,-1)*_xlfn.XLOOKUP(N356,DensityMultiplier[Biomass kg/m3],DensityMultiplier[Multiplier],,-1)","v":{"$error":"#N/A"}},3853.2055944265799,{"$f":"IF(A357<='S3-Short'!$C$7,('Growth-Model-3'!G356*EXP($AA$7)),0)","v":0},{"$f":"IF(A357<='S3-Short'!$C$7,$AD$6*EXP($AD$7*('S3-Short'!C$7-'Growth-Model-3'!A357)),0)","v":0},196.79440557341832,4.859121125269588E-2,0,13.580865810479755,0,{"$f":"M357/'S3-Short'!$C$17","v":0},{"$error":"#N/A"},{"$error":"#N/A"},{"$f":"_xlfn.XLOOKUP(B357,FeedTables!$C$17:$T$17,FeedTables!$C$31:$T$31,,-1)","v":{"$error":"#N/A"}},{"$f":"_xlfn.XLOOKUP(Q357,FeedPrice[Feed],FeedPrice[Price per kg],\"Unknown\",0)*O357","v":{"$error":"#N/A"}},{"$error":"#N/A"},{"$f":"_xlfn.XLOOKUP(O357,LabourFromFeed[Feed Quantity (kg)],LabourFromFeed[No. Labour],\"Out of range\",-1)","v":{"$error":"#N/A"}},{"$f":"T357*OperatingCosts!$C$9","v":{"$error":"#N/A"}},{"$error":"#N/A"}]
[356,{"$f":"IF(A358<='S3-Short'!$C$7, B357*EXP((LN((E357/100)+1))*1),)","v":0},{"$f":"_xlfn.XLOOKUP($B358,FeedTables!$C$42:$T$42,FeedTables!$C$44:$T$44,,-1)","v":{"$error":"#N/A"}},{"$f":"_xlfn.XLOOKUP($B358,FeedTables!$C$42:$T$42,FeedTables!$C$45:$T$45,,-1)","v":{"$error":"#N/A"}},{"$f":"_xlfn.XLOOKUP($B358,FeedTables!$C$42:$T$42,FeedTables!$C$46:$T$46,,-1)*_xlfn.XLOOKUP(N357,DensityMultiplier[Biomass kg/m3],DensityMultiplier[Multiplier],,-1)","v":{"$error":"#N/A"}},3853.2055944265799,{"$f":"IF(A358<='S3-Short'!$C$7,('Growth-Model-3'!G357*EXP($AA$7)),0)","v":0},{"$f":"IF(A358<='S3-Short'!$C$7,$AD$6*EXP($AD$7*('S3-Short'!C$7-'Growth-Model-3'!A358)),0)","v":0},196.79440557341832,4.859121125269588E-2,0,13.580865810479755,0,{"$f":"M358/'S3-Short'!$C$17","v":0},{"$error":"#N/A"},{"$error":"#N/A"},{"$f":"_xlfn.XLOOKUP(B358,FeedTables!$C$17:$T$17,FeedTables!$C$31:$T$31,,-1)","v":{"$error":"#N/A"}},{"$f":"_xlfn.XLOOKUP(Q358,FeedPrice[Feed],FeedPrice[Price per kg],\"Unknown\",0)*O358","v":{"$error":"#N/A"}},{"$error":"#N/A"},{"$f":"_xlfn.XLOOKUP(O358,LabourFromFeed[Feed Quantity (kg)],LabourFromFeed[No. Labour],\"Out of range\",-1)","v":{"$error":"#N/A"}},{"$f":"T358*OperatingCosts!$C$9","v":{"$error":"#N/A"}},{"$error":"#N/A"}]
[357,{"$f":"IF(A359<='S3-Short'!$C$7, B358*EXP((LN((E358/100)+1))*1),)","v":0},{"$f":"_xlfn.XLOOKUP($B359,FeedTables!$C$42:$T$42,FeedTables!$C$44:$T$44,,-1)","v":{"$error":"#N/A"}},{"$f":"_xlfn.XLOOKUP($B359,FeedTables!$C$42:$T$42,FeedTables!$C$45:$T$45,,-1)","v":{"$error":"#N/A"}},{"$f":"_xlfn.XLOOKUP($B359,FeedTables!$C$42:$T$42,FeedTables!$C$46:$T$46,,-1)*_xlfn.XLOOKUP(N358,DensityMultiplier[Biomass kg/m3],DensityMultiplier[Multiplier],,-1)","v":{"$error":"#N/A"}},3853.2055944265799,{"$f":"IF(A359<='S3-Short'!$C$7,('Growth-Model-3'!G358*EXP($AA$7)),0)","v":0},{"$f":"IF(A359<='S3-Short'!$C$7,$AD$6*EXP($AD$7*('S3-Short'!C$7-'Growth-Model-3'!A359)),0)","v":0},196.79440557341832,4.859121125269588E-2,0,13.580865810479755,0,{"$f":"M359/'S3-Short'!$C$17","v":0},{"$error":"#N/A"},{"$error":"#N/A"},{"$f":"_xlfn.XLOOKUP(B359,FeedTables!$C$17:$T$17,FeedTables!$C$31:$T$31,,-1)","v":{"$error":"#N/A"}},{"$f":"_xlfn.XLOOKUP(Q359,FeedPrice[Feed],FeedPrice[Price per kg],\"Unknown\",0)*O359","v":{"$error":"#N/A"}},{"$error":"#N/A"},{"$f":"_xlfn.XLOOKUP(O359,LabourFromFeed[Feed Quantity (kg)],LabourFromFeed[No. Labour],\"Out of range\",-1)","v":{"$error":"#N/A"}},{"$f":"T359*OperatingCosts!$C$9","v":{"$error":"#N/A"}},{"$error":"#N/A"}]
[358,{"$f":"IF(A360<='S3-Short'!$C$7, B359*EXP((LN((E359/100)+1))*1),)","v":0},{"$f":"_xlfn.XLOOKUP($B360,FeedTables!$C$42:$T$42,FeedTables!$C$44:$T$44,,-1)","v":{"$error":"#N/A"}},{"$f":"_xlfn.XLOOKUP($B360,FeedTables!$C$42:$T$42,FeedTables!$C$45:$T$45,,-1)","v":{"$error":"#N/A"}},{"$f":"_xlfn.XLOOKUP($B360,FeedTables!$C$42:$T$42,FeedTables!$C$46:$T$46,,-1)*_xlfn.XLOOKUP(N359,DensityMultiplier[Biomass kg/m3],DensityMultiplier[Multiplier],,-1)","v":{"$error":"#N/A"}},3853.2055944265799,{"$f":"IF(A360<='S3-Short'!$C$7,('Growth-Model-3'!G359*EXP($AA$7)),0)","v":0},{"$f":"IF(A360<='S3-Short'!$C$7,$AD$6*EXP($AD$7*('S3-Short'!C$7-'Growth-Model-3'!A360)),0)","v":0},196.79440557341832,4.859121125269588E-2,0,13.580865810479755,0,{"$f":"M360/'S3-Short'!$C$17","v":0},{"$error":"#N/A"},{"$error":"#N/A"},{"$f":"_xlfn.XLOOKUP(B360,FeedTables!$C$17:$T$17,FeedTables!$C$31:$T$31,,-1)","v":{"$error":"#N/A"}},{"$f":"_xlfn.XLOOKUP(Q360,FeedPrice[Feed],FeedPrice[Price per kg],\"Unknown\",0)*O360","v":{"$error":"#N/A"}},{"$error":"#N/A"},{"$f":"_xlfn.XLOOKUP(O360,LabourFromFeed[Feed Quantity (kg)],LabourFromFeed[No. Labour],\"Out of range\",-1)","v":{"$error":"#N/A"}},{"$f":"T360*OperatingCosts!$C$9","v":{"$error":"#N/A"}},{"$error":"#N/A"}]
[359,{"$f":"IF(A361<='S3-Short'!$C$7, B360*EXP((LN((E360/100)+1))*1),)","v":0},{"$f":"_xlfn.XLOOKUP($B361,FeedTables!$C$42:$T$42,FeedTables!$C$44:$T$44,,-1)","v":{"$error":"#N/A"}},{"$f":"_xlfn.XLOOKUP($B361,FeedTables!$C$42:$T$42,FeedTables!$C$45:$T$45,,-1)","v":{"$error":"#N/A"}},{"$f":"_xlfn.XLOOKUP($B361,FeedTables!$C$42:$T$42,FeedTables!$C$46:$T$46,,-1)*_xlfn.XLOOKUP(N360,DensityMultiplier[Biomass kg/m3],DensityMultiplier[Multiplier],,-1)","v":{"$error":"#N/A"}},3853.2055944265799,{"$f":"IF(A361<='S3-Short'!$C$7,('Growth-Model-3'!G360*EXP($AA$7)),0)","v":0},{"$f":"IF(A361<='S3-Short'!$C$7,$AD$6*EXP($AD$7*('S3-Short'!C$7-'Growth-Model-3'!A361)),0)","v":0},196.79440557341832,4.859121125269588E-2,0,13.580865810479755,0,{"$f":"M361/'S3-Short'!$C$17","v":0},{"$error":"#N/A"},{"$error":"#N/A"},{"$f":"_xlfn.XLOOKUP(B361,FeedTables!$C$17:$T$17,FeedTables!$C$31:$T$31,,-1)","v":{"$error":"#N/A"}},{"$f":"_xlfn.XLOOKUP(Q361,FeedPrice[Feed],FeedPrice[Price per kg],\"Unknown\",0)*O361","v":{"$error":"#N/A"}},{"$error":"#N/A"},{"$f":"_xlfn.XLOOKUP(O361,LabourFromFeed[Feed Quantity (kg)],LabourFromFeed[No. Labour],\"Out of range\",-1)","v":{"$error":"#N/A"}},{"$f":"T361*OperatingCosts!$C$9","v":{"$error":"#N/A"}},{"$error":"#N/A"}]
[360,{"$f":"IF(A362<='S3-Short'!$C$7, B361*EXP((LN((E361/100)+1))*1),)","v":0},{"$f":"_xlfn.XLOOKUP($B362,FeedTables!$C$42:$T$42,FeedTables!$C$44:$T$44,,-1)","v":{"$error":"#N/A"}},{"$f":"_xlfn.XLOOKUP($B362,FeedTables!$C$42:$T$42,FeedTables!$C$45:$T$45,,-1)","v":{"$error":"#N/A"}},{"$f":"_xlfn.XLOOKUP($B362,FeedTables!$C$42:$T$42,FeedTables!$C$46:$T$46,,-1)*_xlfn.XLOOKUP(N361,DensityMultiplier[Biomass kg/m3],DensityMultiplier[Multiplier],,-1)","v":{"$error":"#N/A"}},3853.2055944265799,{"$f":"IF(A362<='S3-Short'!$C$7,('Growth-Model-3'!G361*EXP($AA$7)),0)","v":0},{"$f":"IF(A362<='S3-Short'!$C$7,$AD$6*EXP($AD$7*('S3-Short'!C$7-'Growth-Model-3'!A362)),0)","v":0},196.79440557341832,4.859121125269588E-2,0,13.580865810479755,0,{"$f":"M362/'S3-Short'!$C$17","v":0},{"$error":"#N/A"},{"$error":"#N/A"},{"$f":"_xlfn.XLOOKUP(B362,FeedTables!$C$17:$T$17,FeedTables!$C$31:$T$31,,-1)","v":{"$error":"#N/A"}},{"$f":"_xlfn.XLOOKUP(Q362,FeedPrice[Feed],FeedPrice[Price per kg],\"Unknown\",0)*O362","v":{"$error":"#N/A"}},{"$error":"#N/A"},{"$f":"_xlfn.XLOOKUP(O362,LabourFromFeed[Feed Quantity (kg)],LabourFromFeed[No. Labour],\"Out of range\",-1)","v":{"$error":"#N/A"}},{"$f":"T362*OperatingCosts!$C$9","v":{"$error":"#N/A"}},{"$error":"#N/A"}]
[361,{"$f":"IF(A363<='S3-Short'!$C$7, B362*EXP((LN((E362/100)+1))*1),)","v":0},{"$f":"_xlfn.XLOOKUP($B363,FeedTables!$C$42:$T$42,FeedTables!$C$44:$T$44,,-1)","v":{"$error":"#N/A"}},{"$f":"_xlfn.XLOOKUP($B363,FeedTables!$C$42:$T$42,FeedTables!$C$45:$T$45,,-1)","v":{"$error":"#N/A"}},{"$f":"_xlfn.XLOOKUP($B363,FeedTables!$C$42:$T$42,FeedTables!$C$46:$T$46,,-1)*_xlfn.XLOOKUP(N362,DensityMultiplier[Biomass kg/m3],DensityMultiplier[Multiplier],,-1)","v":{"$error":"#N/A"}},3853.2055944265799,{"$f":"IF(A363<='S3-Short'!$C$7,('Growth-Model-3'!G362*EXP($AA$7)),0)","v":0},{"$f":"IF(A363<='S3-Short'!$C$7,$AD$6*EXP($AD$7*('S3-Short'!C$7-'Growth-Model-3'!A363)),0)","v":0},196.79440557341832,4.859121125269588E-2,0,13.580865810479755,0,{"$f":"M363/'S3-Short'!$C$17","v":0},{"$error":"#N/A"},{"$error":"#N/A"},{"$f":"_xlfn.XLOOKUP(B363,FeedTables!$C$17:$T$17,FeedTables!$C$31:$T$31,,-1)","v":{"$error":"#N/A"}},{"$f":"_xlfn.XLOOKUP(Q363,FeedPrice[Feed],FeedPrice[Price per kg],\"Unknown\",0)*O363","v":{"$error":"#N/A"}},{"$error":"#N/A"},{"$f":"_xlfn.XLOOKUP(O363,LabourFromFeed[Feed Quantity (kg)],LabourFromFeed[No. Labour],\"Out of range\",-1)","v":{"$error":"#N/A"}},{"$f":"T363*OperatingCosts!$C$9","v":{"$error":"#N/A"}},{"$error":"#N/A"}]
[362,{"$f":"IF(A364<='S3-Short'!$C$7, B363*EXP((LN((E363/100)+1))*1),)","v":0},{"$f":"_xlfn.XLOOKUP($B364,FeedTables!$C$42:$T$42,FeedTables!$C$44:$T$44,,-1)","v":{"$error":"#N/A"}},{"$f":"_xlfn.XLOOKUP($B364,FeedTables!$C$42:$T$42,FeedTables!$C$45:$T$45,,-1)","v":{"$error":"#N/A"}},{"$f":"_xlfn.XLOOKUP($B364,FeedTables!$C$42:$T$42,FeedTables!$C$46:$T$46,,-1)*_xlfn.XLOOKUP(N363,DensityMultiplier[Biomass kg/m3],DensityMultiplier[Multiplier],,-1)","v":{"$error":"#N/A"}},3853.2055944265799,{"$f":"IF(A364<='S3-Short'!$C$7,('Growth-Model-3'!G363*EXP($AA$7)),0)","v":0},{"$f":"IF(A364<='S3-Short'!$C$7,$AD$6*EXP($AD$7*('S3-Short'!C$7-'Growth-Model-3'!A364)),0)","v":0},196.79440557341832,4.859121125269588E-2,0,13.580865810479755,0,{"$f":"M364/'S3-Short'!$C$17","v":0},{"$error":"#N/A"},{"$error":"#N/A"},{"$f":"_xlfn.XLOOKUP(B364,FeedTables!$C$17:$T$17,FeedTables!$C$31:$T$31,,-1)","v":{"$error":"#N/A"}},{"$f":"_xlfn.XLOOKUP(Q364,FeedPrice[Feed],FeedPrice[Price per kg],\"Unknown\",0)*O364","v":{"$error":"#N/A"}},{"$error":"#N/A"},{"$f":"_xlfn.XLOOKUP(O364,LabourFromFeed[Feed Quantity (kg)],LabourFromFeed[No. Labour],\"Out of range\",-1)","v":{"$error":"#N/A"}},{"$f":"T364*OperatingCosts!$C$9","v":{"$error":"#N/A"}},{"$error":"#N/A"}]
[363,{"$f":"IF(A365<='S3-Short'!$C$7, B364*EXP((LN((E364/100)+1))*1),)","v":0},{"$f":"_xlfn.XLOOKUP($B365,FeedTables!$C$42:$T$42,FeedTables!$C$44:$T$44,,-1)","v":{"$error":"#N/A"}},{"$f":"_xlfn.XLOOKUP($B365,FeedTables!$C$42:$T$42,FeedTables!$C$45:$T$45,,-1)","v":{"$error":"#N/A"}},{"$f":"_xlfn.XLOOKUP($B365,FeedTables!$C$42:$T$42,FeedTables!$C$46:$T$46,,-1)*_xlfn.XLOOKUP(N364,DensityMultiplier[Biomass kg/m3],DensityMultiplier[Multiplier],,-1)","v":{"$error":"#N/A"}},3853.2055944265799,{"$f":"IF(A365<='S3-Short'!$C$7,('Growth-Model-3'!G364*EXP($AA$7)),0)","v":0},{"$f":"IF(A365<='S3-Short'!$C$7,$AD$6*EXP($AD$7*('S3-Short'!C$7-'Growth-Model-3'!A365)),0)","v":0},196.79440557341832,4.859121125269588E-2,0,13.580865810479755,0,{"$f":"M365/'S3-Short'!$C$17","v":0},{"$error":"#N/A"},{"$error":"#N/A"},{"$f":"_xlfn.XLOOKUP(B365,FeedTables!$C$17:$T$17,FeedTables!$C$31:$T$31,,-1)","v":{"$error":"#N/A"}},{"$f":"_xlfn.XLOOKUP(Q365,FeedPrice[Feed],FeedPrice[Price per kg],\"Unknown\",0)*O365","v":{"$error":"#N/A"}},{"$error":"#N/A"},{"$f":"_xlfn.XLOOKUP(O365,LabourFromFeed[Feed Quantity (kg)],LabourFromFeed[No. Labour],\"Out of range\",-1)","v":{"$error":"#N/A"}},{"$f":"T365*OperatingCosts!$C$9","v":{"$error":"#N/A"}},{"$error":"#N/A"}]
[364,{"$f":"IF(A366<='S3-Short'!$C$7, B365*EXP((LN((E365/100)+1))*1),)","v":0},{"$f":"_xlfn.XLOOKUP($B366,FeedTables!$C$42:$T$42,FeedTables!$C$44:$T$44,,-1)","v":{"$error":"#N/A"}},{"$f":"_xlfn.XLOOKUP($B366,FeedTables!$C$42:$T$42,FeedTables!$C$45:$T$45,,-1)","v":{"$error":"#N/A"}},{"$f":"_xlfn.XLOOKUP($B366,FeedTables!$C$42:$T$42,FeedTables!$C$46:$T$46,,-1)*_xlfn.XLOOKUP(N365,DensityMultiplier[Biomass kg/m3],DensityMultiplier[Multiplier],,-1)","v":{"$error":"#N/A"}},3853.2055944265799,{"$f":"IF(A366<='S3-Short'!$C$7,('Growth-Model-3'!G365*EXP($AA$7)),0)","v":0},{"$f":"IF(A366<='S3-Short'!$C$7,$AD$6*EXP($AD$7*('S3-Short'!C$7-'Growth-Model-3'!A366)),0)","v":0},196.79440557341832,4.859121125269588E-2,0,13.580865810479755,0,{"$f":"M366/'S3-Short'!$C$17","v":0},{"$error":"#N/A"},{"$error":"#N/A"},{"$f":"_xlfn.XLOOKUP(B366,FeedTables!$C$17:$T$17,FeedTables!$C$31:$T$31,,-1)","v":{"$error":"#N/A"}},{"$f":"_xlfn.XLOOKUP(Q366,FeedPrice[Feed],FeedPrice[Price per kg],\"Unknown\",0)*O366","v":{"$error":"#N/A"}},{"$error":"#N/A"},{"$f":"_xlfn.XLOOKUP(O366,LabourFromFeed[Feed Quantity (kg)],LabourFromFeed[No. Labour],\"Out of range\",-1)","v":{"$error":"#N/A"}},{"$f":"T366*OperatingCosts!$C$9","v":{"$error":"#N/A"}},{"$error":"#N/A"}]
[null,null,null,null,null,null,null,null,null,null,null,null,null,null,null,null,null,null,{"$f":"_xlfn.CONCAT(\"Feed Cost \",\" (\",'0-StartHere'!$C$49,\")\")","v":"Feed Cost  (KES)"}]
[]
[]
[]
[]
[]
[]
[null,"Harvest summary",null,"Before weight loss"]
[null,null,null,null,null,null,"Range",null,"Label","Wt class",{"$f":"_xlfn.CONCAT('0-StartHere'!$C$49,\"/kg\")","v":"KES/kg"},"Prob.","Number","Kg","% No.","% Biomass","Cum. No.","Cum. Biomass",{"$f":"_xlfn.CONCAT(\"Income by size grade\",\" (\",'0-StartHere'!$C$49,\")\")","v":"Income by size grade (KES)"}]
[null,"Fish Number",{"$f":"'S3-Short'!C21","v":3857.2558664768617},null,null,null,{"$f":"SalesPrices!A2","v":"0-99"},null,{"$f":"SalesPrices!B2","v":"0+"},{"$f":"SalesPrices!C2","v":100},{"$f":"_xlfn.XLOOKUP(J376,SalesPrice[Wt class],SalesPrice[Price per kg],\"No Data\",0)","v":219},{"$f":"_xlfn.NORM.DIST(J376,$C$377,$C$378*$C$377,FALSE)/15*1500","v":4.0027948330242313E-2},{"$f":"$C$376*L376","v":154.39803851985985},{"$f":"M376*(J376/1000)","v":15.439803851985985},{"$f":"M376/$M$391","v":4.0122116108194501E-2},{"$f":"N376/$N$391","v":1.709048530151205E-2},{"$f":"O376","v":4.0122116108194501E-2},{"$f":"P376","v":1.709048530151205E-2},{"$f":"N376*K376","v":3381.3170435849306}]
[null,"Avg. wt. (g)",{"$f":"'S3-Short'!C20*(1-'0-StartHere'!C34)","v":235.32465674194731},{"$f":"'S3-Short'!C20","v":235.32465674194731},null,null,{"$f":"SalesPrices!A3","v":"100-199"},null,{"$f":"SalesPrices!B3","v":"100+"},{"$f":"SalesPrices!C3","v":200},{"$f":"_xlfn.XLOOKUP(J377,SalesPrice[Wt class],SalesPrice[Price per kg],\"No Data\",0)","v":271},0.58087601929579435,{"$f":"$C$376*L377","v":2240.5874331244295},448.11748662488594,0.58224255958288351,0.49602607597427706,{"$f":"O377+Q376","v":0.62236467569107801},{"$f":"P377+R376","v":0.51311656127578908},121439.8388753441]
[null,"cv",{"$f":"'0-StartHere'!C95","v":0.24},null,null,null,{"$f":"SalesPrices!A4","v":"200-299"},null,{"$f":"SalesPrices!B4","v":"200+"},{"$f":"SalesPrices!C4","v":300},{"$f":"_xlfn.XLOOKUP(J378,SalesPrice[Wt class],SalesPrice[Price per kg],\"No Data\",0)","v":344},0.3666691432452498,1414.3367038387846,424.30101115163535,0.36753175099566882,0.46966336256732821,{"$f":"O378+Q377","v":0.98989642668674682},0.9827799238431173,145959.54783616256]
[null,"SD",{"$f":"C377*C378","v":56.477917618067352},null,null,null,{"$f":"SalesPrices!A5","v":"300-399"},null,{"$f":"SalesPrices!B5","v":"300+"},{"$f":"SalesPrices!C5","v":400},{"$f":"_xlfn.XLOOKUP(J379,SalesPrice[Wt class],SalesPrice[Price per kg],\"No Data\",0)","v":358},1.006783476360446E-2,38.834214704632991,15.533685881853197,1.0091519855347276E-2,1.7194404332278451E-2,0.99998794654209411,0.99997432817539578,5561.0595457034442]
[null,"Biomass (kg)",{"$f":"(C376*C377)/1000","v":907.70741274452996},null,null,null,{"$f":"SalesPrices!A6","v":"400-499"},null,{"$f":"SalesPrices!B6","v":"400+"},{"$f":"SalesPrices!C6","v":500},{"$f":"_xlfn.XLOOKUP(J380,SalesPrice[Wt class],SalesPrice[Price per kg],\"No Data\",0)","v":365},1.2024543386386353E-5,4.6381740518844312E-2,2.3190870259422156E-2,1.2052831734373709E-5,2.5670224252683538E-5,0.99999999937382844,0.99999999839964848,8.4646676446890865]
[null,null,null,null,null,null,{"$f":"SalesPrices!A7","v":"500-599"},null,{"$f":"SalesPrices!B7","v":"500+"},{"$f":"SalesPrices!C7","v":600},{"$f":"_xlfn.XLOOKUP(J381,SalesPrice[Wt class],SalesPrice[Price per kg],\"No Data\",0)","v":363},6.2470057743142348E-10,2.4096299670888412E-6,1.4457779802533047E-6,6.2617021721352844E-10,1.6003472296437637E-9,0.99999999999999867,0.99999999999999567,5.2481740683194965E-4]
[null,"Weight loss adjusment ",null,null,null,null,{"$f":"SalesPrices!A8","v":"600-699"},null,{"$f":"SalesPrices!B8","v":"600+"},{"$f":"SalesPrices!C8","v":700},{"$f":"_xlfn.XLOOKUP(J382,SalesPrice[Wt class],SalesPrice[Price per kg],\"No Data\",0)","v":378},1.4117117199724452E-15,5.4453333136378549E-12,3.8117333195464982E-12,1.4150328433705793E-15,4.2192486961298929E-15,1,0.99999999999999989,1.4408351947885763E-9]
[null,"% of harvest wt.",{"$f":"1-'0-StartHere'!$C$34","v":1},null,null,null,{"$f":"SalesPrices!A9","v":"700-799"},null,{"$f":"SalesPrices!B9","v":"700+"},{"$f":"SalesPrices!C9","v":800},{"$f":"_xlfn.XLOOKUP(J383,SalesPrice[Wt class],SalesPrice[Price per kg],\"No Data\",0)","v":388},1.3876851225657766E-22,5.3526565798395047E-19,4.2821252638716041E-19,1.39094972217531E-22,4.7399306094175303E-22,1,0.99999999999999989,1.6614646023821824E-16]
[null,null,null,null,null,null,{"$f":"SalesPrices!A10","v":"800-899"},null,{"$f":"SalesPrices!B10","v":"800+"},{"$f":"SalesPrices!C10","v":900},{"$f":"_xlfn.XLOOKUP(J384,SalesPrice[Wt class],SalesPrice[Price per kg],\"No Data\",0)","v":405},5.9334412066701339E-31,2.2886800902823924E-27,2.0598120812541533E-27,5.947399927947386E-31,2.2800281944011191E-30,1,0.99999999999999989,8.342238929079321E-25]
[null,null,null,null,null,null,{"$f":"SalesPrices!A11","v":"900-999"},null,{"$f":"SalesPrices!B11","v":"900+"},{"$f":"SalesPrices!C11","v":1000},{"$f":"_xlfn.XLOOKUP(J385,SalesPrice[Wt class],SalesPrice[Price per kg],\"No Data\",0)","v":405},1.1035528932011524E-40,4.256685871267659E-37,4.256685871267659E-37,1.1061490573349746E-40,4.7117714715460221E-40,1,0.99999999999999989,1.7239577778634019E-34]
[null,null,null,null,null,null,{"$f":"SalesPrices!A12","v":"1000-1099"},null,{"$f":"SalesPrices!B12","v":"1000+"},{"$f":"SalesPrices!C12","v":1100},{"$f":"_xlfn.XLOOKUP(J386,SalesPrice[Wt class],SalesPrice[Price per kg],\"No Data\",0)","v":405},8.9279235588484549E-52,3.4437285522825183E-48,3.7881014075107705E-48,8.9489269516860686E-52,4.193090277981253E-51,1,0.99999999999999989,1.5341810700418622E-45]
[null,null,null,null,null,null,{"$f":"SalesPrices!A13","v":"1100-1199"},null,{"$f":"SalesPrices!B13","v":"1100+"},{"$f":"SalesPrices!C13","v":1200},{"$f":"_xlfn.XLOOKUP(J387,SalesPrice[Wt class],SalesPrice[Price per kg],\"No Data\",0)","v":405},3.1418002635542777E-64,1.2118727497893289E-60,1.4542472997471947E-60,3.1491915079704948E-64,1.6097220106780135E-63,1,0.99999999999999989,5.8897015639761386E-58]
[null,null,null,null,null,null,{"$f":"SalesPrices!A14","v":"1200-1299"},null,{"$f":"SalesPrices!B14","v":"1200+"},{"$f":"SalesPrices!C14","v":1300},{"$f":"_xlfn.XLOOKUP(J388,SalesPrice[Wt class],SalesPrice[Price per kg],\"No Data\",0)","v":405},4.8092513943981117E-78,1.8550513154404142E-74,2.4115667100725387E-74,4.8205654021430896E-78,2.6693891844234231E-77,1,0.99999999999999989,9.7668451757937816E-72]
[null,null,null,null,null,null,{"$f":"SalesPrices!A15","v":"1300-1399"},null,{"$f":"SalesPrices!B15","v":"1300+"},{"$f":"SalesPrices!C15","v":1400},{"$f":"_xlfn.XLOOKUP(J389,SalesPrice[Wt class],SalesPrice[Price per kg],\"No Data\",0)","v":405},3.2021906604455147E-93,1.2351668710580879E-89,1.7292336194813229E-89,3.2097239763323444E-93,1.9141073319286142E-92,1,0.99999999999999989,7.0033961588993576E-87]
[null,null,null,null,null,null,{"$f":"SalesPrices!A16","v":"1400-1499"},null,{"$f":"SalesPrices!B16","v":"1400+"},{"$f":"SalesPrices!C16","v":1500},{"$f":"_xlfn.XLOOKUP(J390,SalesPrice[Wt class],SalesPrice[Price per kg],\"No Data\",0)","v":405},9.2744399290024605E-110,3.577388782443199E-106,5.3660831736647985E-106,9.2962585191700065E-110,5.9397753031955178E-109,1,0.99999999999999989,2.1732636853342435E-103]
[null,null,null,null,null,null,null,null,null,null,null,{"$f":"SUM(L376:L390)","v":0.99765297080297932},{"$f":"SUM(M376:M390)","v":3848.2027743378608},{"$f":"SUM(N376:N390)","v":903.41517982640175},{"$f":"SUM(O376:O390)","v":1},{"$f":"SUM(P376:P390)","v":0.99999999999999989},null,null,{"$f":"SUM(S376:S390)","v":276350.22849325859}]

{"sheet":"Growth-Model-4","index":10,"n_rows":438,"n_cols":31,"rows_kept":438,"cut":false,"hidden":false,"merged":[]}
["Day","Av. Wt (g)","Feed rate % bw/day","FCR","SGR","No.","Early Morts","Late Morts","Cum. Morts","Cum Mort %","Mort Biomass (g)","Cum. Mort. Biomass (kg)","Biomass (kg)","Density (kg/m3)","Feed fed (kg)","Cum. Feed (kg)","FeedType","Feed cost","Cum. Cost","Labour needed","Labour cost","Cum. labour cost",null,null,"EXP Mortalities"]
[0,{"$f":"'S4-PartialHarvest'!C5","v":40},{"$f":"_xlfn.XLOOKUP($B2,FeedTables!$C$42:$T$42,FeedTables!$C$44:$T$44,,-1)","v":4.1684550113923917},{"$f":"_xlfn.XLOOKUP($B2,FeedTables!$C$42:$T$42,FeedTables!$C$45:$T$45,,-1)","v":1.283309931764242},{"$f":"_xlfn.XLOOKUP($B2,FeedTables!$C$42:$T$42,FeedTables!$C$46:$T$46,,-1)","v":3.2482059931241785},{"$f":"'S4-PartialHarvest'!C20","v":4050},{"$f":"Z6","v":24.3},{"$f":"IF(A2<='S4-PartialHarvest'!$C$9,$AD$6*EXP($AD$7*('S4-PartialHarvest'!C$9-'Growth-Model-4'!A2)),0)","v":5.1025376634525345E-12},{"$f":"G2+H2","v":24.300000000005102},{"$f":"I2/$F$2","v":6.0000000000012595E-3},{"$f":"(G2+H2)*B2","v":972.00000000020407},{"$f":"K2/1000","v":0.97200000000020403},{"$f":"(B2*F2)/1000","v":162},{"$f":"M2/'S4-PartialHarvest'!$C$19","v":6},{"$f":"M2*(C2/100)","v":6.7528971184556754},{"$f":"O2","v":6.7528971184556754},{"$f":"_xlfn.XLOOKUP(B2,FeedTables!$C$17:$T$17,FeedTables!$C$31:$T$31,,-1)","v":"Unga 3mm"},{"$f":"_xlfn.XLOOKUP(Q2,FeedPrice[Feed],FeedPrice[Price per kg],\"Unknown\",0)*O2","v":716.81395151666334},{"$f":"R2","v":716.81395151666334},{"$f":"_xlfn.XLOOKUP(O2,LabourFromFeed[Feed Quantity (kg)],LabourFromFeed[No. Labour],\"Out of range\",-1)","v":1},{"$f":"T2*OperatingCosts!$C$9","v":1200},{"$f":"U2","v":1200},null,null,"(Mort=Prev * EXP(L)",null,null,null,"(Mort=Final * EXP(L*(T-t))",null,"(T = total culture days, t = day no.)"]
[1,{"$f":"IF(A3<='S4-PartialHarvest'!$C$9, B2*EXP((LN((E2/100)+1))*1),)","v":41.299282397249677},{"$f":"_xlfn.XLOOKUP($B3,FeedTables!$C$42:$T$42,FeedTables!$C$44:$T$44,,-1)","v":4.1684550113923917},{"$f":"_xlfn.XLOOKUP($B3,FeedTables!$C$42:$T$42,FeedTables!$C$45:$T$45,,-1)","v":1.283309931764242},{"$f":"_xlfn.XLOOKUP($B3,FeedTables!$C$42:$T$42,FeedTables!$C$46:$T$46,,-1)*_xlfn.XLOOKUP(N2,DensityMultiplier[Biomass kg/m3],DensityMultiplier[Multiplier],,-1)","v":3.2482059931241785},{"$f":"IF(A3>'S4-PartialHarvest'!$C$9,0,IF(A3='S4-PartialHarvest'!$C$7,(F2-G2-H2)*(1-'S4-PartialHarvest'!$C$8),(F2-G2-H2)))","v":4025.6999999999948},{"$f":"IF(A3<='S4-PartialHarvest'!$C$7,('Growth-Model-4'!G2*EXP($Z$7)),IF(A3<'S4-PartialHarvest'!$C$9,('Growth-Model-4'!G2*EXP($AA$7)),0))+IF(A3='S4-PartialHarvest'!$C$7,'Growth-Model-4'!$AA$6,0)","v":20.915203827128906},{"$f":"IF(A3<='S4-PartialHarvest'!$C$9,$AD$6*EXP($AD$7*('S4-PartialHarvest'!C$9-'Growth-Model-4'!A3)),0)","v":6.2322535757570692E-12},{"$f":"I2+G3+H3","v":45.215203827140236},{"$f":"I3/$F$2","v":1.1164247858553144E-2},{"$f":"(G3+H3)*B3","v":863.78290925289127},{"$f":"(K3/1000)+L2","v":1.8357829092530953},{"$f":"(B3*F3)/1000","v":166.25852114660782},{"$f":"M3/'S4-PartialHarvest'!$C$19","v":6.1577230054299195},{"$f":"M3*(C3/100)","v":6.9304116566026535},{"$f":"O3+P2","v":13.683308775058329},{"$f":"_xlfn.XLOOKUP(B3,FeedTables!$C$17:$T$17,FeedTables!$C$31:$T$31,,-1)","v":"Unga 3mm"},{"$f":"_xlfn.XLOOKUP(Q3,FeedPrice[Feed],FeedPrice[Price per kg],\"Unknown\",0)*O3","v":735.65695997788077},{"$f":"R3+S2","v":1452.470911494544},{"$f":"_xlfn.XLOOKUP(O3,LabourFromFeed[Feed Quantity (kg)],LabourFromFeed[No. Labour],\"Out of range\",-1)","v":1},{"$f":"T3*OperatingCosts!$C$9","v":1200},{"$f":"U3+V2","v":2400},null,null,"(Mort=Start*EXP(L*t)",null,null,null,null,null,"(Final = No. of morts on final day)"]
[2,{"$f":"IF(A4<='S4-PartialHarvest'!$C$9, B3*EXP((LN((E3/100)+1))*1),)","v":42.640768163194423},{"$f":"_xlfn.XLOOKUP($B4,FeedTables!$C$42:$T$42,FeedTables!$C$44:$T$44,,-1)","v":4.1684550113923917},{"$f":"_xlfn.XLOOKUP($B4,FeedTables!$C$42:$T$42,FeedTables!$C$45:$T$45,,-1)","v":1.283309931764242},{"$f":"_xlfn.XLOOKUP($B4,FeedTables!$C$42:$T$42,FeedTables!$C$46:$T$46,,-1)*_xlfn.XLOOKUP(N3,DensityMultiplier[Biomass kg/m3],DensityMultiplier[Multiplier],,-1)","v":3.2482059931241785},{"$f":"IF(A4>'S4-PartialHarvest'!$C$9,0,IF(A4='S4-PartialHarvest'!$C$7,(F3-G3-H3)*(1-'S4-PartialHarvest'!$C$8),(F3-G3-H3)))","v":4004.7847961728594},{"$f":"IF(A4<='S4-PartialHarvest'!$C$7,('Growth-Model-4'!G3*EXP($Z$7)),IF(A4<'S4-PartialHarvest'!$C$9,('Growth-Model-4'!G3*EXP($AA$7)),0))+IF(A4='S4-PartialHarvest'!$C$7,'Growth-Model-4'!$AA$6,0)","v":18.001882762565746},{"$f":"IF(A4<='S4-PartialHarvest'!$C$9,$AD$6*EXP($AD$7*('S4-PartialHarvest'!C$9-'Growth-Model-4'!A4)),0)","v":7.6120917069832872E-12},{"$f":"I3+G4+H4","v":63.217086589713595},1.5609157182645331E-2,767.6141093798966,{"$f":"(K4/1000)+L3","v":2.6033970186329918},170.76710003709272,{"$f":"M4/'S4-PartialHarvest'!$C$19","v":6.3247074087812116},7.1183497393056507,{"$f":"O4+P3","v":20.801658514363979},{"$f":"_xlfn.XLOOKUP(B4,FeedTables!$C$17:$T$17,FeedTables!$C$31:$T$31,,-1)","v":"Unga 3mm"},{"$f":"_xlfn.XLOOKUP(Q4,FeedPrice[Feed],FeedPrice[Price per kg],\"Unknown\",0)*O4","v":755.60641831252951},{"$f":"R4+S3","v":2208.0773298070735},{"$f":"_xlfn.XLOOKUP(O4,LabourFromFeed[Feed Quantity (kg)],LabourFromFeed[No. Labour],\"Out of range\",-1)","v":1},{"$f":"T4*OperatingCosts!$C$9","v":1200},{"$f":"U4+V3","v":3600},null,null,"Early Mortalities","1st phase","2nd phase",null,"Late Mortalities"]
[3,{"$f":"IF(A5<='S4-PartialHarvest'!$C$9, B4*EXP((LN((E4/100)+1))*1),)","v":44.025828150185497},{"$f":"_xlfn.XLOOKUP($B5,FeedTables!$C$42:$T$42,FeedTables!$C$44:$T$44,,-1)","v":4.1684550113923917},{"$f":"_xlfn.XLOOKUP($B5,FeedTables!$C$42:$T$42,FeedTables!$C$45:$T$45,,-1)","v":1.283309931764242},{"$f":"_xlfn.XLOOKUP($B5,FeedTables!$C$42:$T$42,FeedTables!$C$46:$T$46,,-1)*_xlfn.XLOOKUP(N4,DensityMultiplier[Biomass kg/m3],DensityMultiplier[Multiplier],,-1)","v":3.2482059931241785},{"$f":"IF(A5>'S4-PartialHarvest'!$C$9,0,IF(A5='S4-PartialHarvest'!$C$7,(F4-G4-H4)*(1-'S4-PartialHarvest'!$C$8),(F4-G4-H4)))","v":3986.7829134102858},{"$f":"IF(A5<='S4-PartialHarvest'!$C$7,('Growth-Model-4'!G4*EXP($Z$7)),IF(A5<'S4-PartialHarvest'!$C$9,('Growth-Model-4'!G4*EXP($AA$7)),0))+IF(A5='S4-PartialHarvest'!$C$7,'Growth-Model-4'!$AA$6,0)","v":15.494364084409092},{"$f":"IF(A5<='S4-PartialHarvest'!$C$9,$AD$6*EXP($AD$7*('S4-PartialHarvest'!C$9-'Growth-Model-4'!A5)),0)","v":9.2974298062775356E-12},78.711450674131981,1.9434926092378266E-2,682.15221047701027,3.2855492291100021,175.52141941789711,{"$f":"M5/'S4-PartialHarvest'!$C$19","v":6.5007933117739674},7.316531403792391,28.118189918156368,{"$f":"_xlfn.XLOOKUP(B5,FeedTables!$C$17:$T$17,FeedTables!$C$31:$T$31,,-1)","v":"Unga 3mm"},{"$f":"_xlfn.XLOOKUP(Q5,FeedPrice[Feed],FeedPrice[Price per kg],\"Unknown\",0)*O5","v":776.64322363429892},2984.7205534413724,{"$f":"_xlfn.XLOOKUP(O5,LabourFromFeed[Feed Quantity (kg)],LabourFromFeed[No. Labour],\"Out of range\",-1)","v":1},{"$f":"T5*OperatingCosts!$C$9","v":1200},4800,null,null,"First morts %",{"$f":"'0-StartHere'!C76","v":6.0000000000000001E-3},{"$f":"'0-StartHere'!C87","v":7.0000000000000001E-3},null,"Final morts %",{"$f":"'0-StartHere'!$C$81","v":1E-3}]
[4,{"$f":"IF(A6<='S4-PartialHarvest'!$C$9, B5*EXP((LN((E5/100)+1))*1),)","v":45.455877738682375},{"$f":"_xlfn.XLOOKUP($B6,FeedTables!$C$42:$T$42,FeedTables!$C$44:$T$44,,-1)","v":4.1684550113923917},{"$f":"_xlfn.XLOOKUP($B6,FeedTables!$C$42:$T$42,FeedTables!$C$45:$T$45,,-1)","v":1.283309931764242},{"$f":"_xlfn.XLOOKUP($B6,FeedTables!$C$42:$T$42,FeedTables!$C$46:$T$46,,-1)*_xlfn.XLOOKUP(N5,DensityMultiplier[Biomass kg/m3],DensityMultiplier[Multiplier],,-1)","v":3.2482059931241785},{"$f":"IF(A6>'S4-PartialHarvest'!$C$9,0,IF(A6='S4-PartialHarvest'!$C$7,(F5-G5-H5)*(1-'S4-PartialHarvest'!$C$8),(F5-G5-H5)))","v":3971.2885493258677},{"$f":"IF(A6<='S4-PartialHarvest'!$C$7,('Growth-Model-4'!G5*EXP($Z$7)),IF(A6<'S4-PartialHarvest'!$C$9,('Growth-Model-4'!G5*EXP($AA$7)),0))+IF(A6='S4-PartialHarvest'!$C$7,'Growth-Model-4'!$AA$6,0)","v":13.336122757084844},{"$f":"IF(A6<='S4-PartialHarvest'!$C$9,$AD$6*EXP($AD$7*('S4-PartialHarvest'!C$9-'Growth-Model-4'!A6)),0)","v":1.1355906409187946E-11},92.047573431228173,2.2727795908945227E-2,606.20516555462461,3.8917543946646269,180.51840676318591,{"$f":"M6/'S4-PartialHarvest'!$C$19","v":6.6858669171550336},7.5248285732057258,35.643018491362092,{"$f":"_xlfn.XLOOKUP(B6,FeedTables!$C$17:$T$17,FeedTables!$C$31:$T$31,,-1)","v":"Unga 3mm"},{"$f":"_xlfn.XLOOKUP(Q6,FeedPrice[Feed],FeedPrice[Price per kg],\"Unknown\",0)*O6","v":798.75378070007196},3783.4743341414442,{"$f":"_xlfn.XLOOKUP(O6,LabourFromFeed[Feed Quantity (kg)],LabourFromFeed[No. Labour],\"Out of range\",-1)","v":1},{"$f":"T6*OperatingCosts!$C$9","v":1200},6000,null,null,"First morts",{"$f":"'S4-PartialHarvest'!$C$20*Z5","v":24.3},{"$f":"_xlfn.XLOOKUP('S4-PartialHarvest'!C7,'Growth-Model-4'!$A$2:$A$366,'Growth-Model-4'!$F$2:$F$366,,0)*AA5","v":13.564419951867958},null,"Final day morts",{"$f":"'S4-PartialHarvest'!$C$20*AD5","v":4.05}]
[5,{"$f":"IF(A7<='S4-PartialHarvest'!$C$9, B6*EXP((LN((E6/100)+1))*1),)","v":46.93237828361746},{"$f":"_xlfn.XLOOKUP($B7,FeedTables!$C$42:$T$42,FeedTables!$C$44:$T$44,,-1)","v":4.1684550113923917},{"$f":"_xlfn.XLOOKUP($B7,FeedTables!$C$42:$T$42,FeedTables!$C$45:$T$45,,-1)","v":1.283309931764242},{"$f":"_xlfn.XLOOKUP($B7,FeedTables!$C$42:$T$42,FeedTables!$C$46:$T$46,,-1)*_xlfn.XLOOKUP(N6,DensityMultiplier[Biomass kg/m3],DensityMultiplier[Multiplier],,-1)","v":3.2482059931241785},{"$f":"IF(A7>'S4-PartialHarvest'!$C$9,0,IF(A7='S4-PartialHarvest'!$C$7,(F6-G6-H6)*(1-'S4-PartialHarvest'!$C$8),(F6-G6-H6)))","v":3957.9524265687714},{"$f":"IF(A7<='S4-PartialHarvest'!$C$7,('Growth-Model-4'!G6*EXP($Z$7)),IF(A7<'S4-PartialHarvest'!$C$9,('Growth-Model-4'!G6*EXP($AA$7)),0))+IF(A7='S4-PartialHarvest'!$C$7,'Growth-Model-4'!$AA$6,0)","v":11.47850723160666},{"$f":"IF(A7<='S4-PartialHarvest'!$C$9,$AD$6*EXP($AD$7*('S4-PartialHarvest'!C$9-'Growth-Model-4'!A7)),0)","v":1.3870135409590899E-11},103.5260806628487,2.5561995225394742E-2,538.71364352565331,4.4304680381902806,185.75612051228725,{"$f":"M7/'S4-PartialHarvest'!$C$19","v":6.8798563152698984},7.7431603144625294,43.38617880582462,{"$f":"_xlfn.XLOOKUP(B7,FeedTables!$C$17:$T$17,FeedTables!$C$31:$T$31,,-1)","v":"Unga 3mm"},{"$f":"_xlfn.XLOOKUP(Q7,FeedPrice[Feed],FeedPrice[Price per kg],\"Unknown\",0)*O7","v":821.92949853591449},4605.4038326773589,{"$f":"_xlfn.XLOOKUP(O7,LabourFromFeed[Feed Quantity (kg)],LabourFromFeed[No. Labour],\"Out of range\",-1)","v":1},{"$f":"T7*OperatingCosts!$C$9","v":1200},7200,null,null,"Li / Lp",{"$f":"'0-StartHere'!C78","v":-0.15},{"$f":"'0-StartHere'!C90","v":-0.25},null,"Lf",{"$f":"'0-StartHere'!$C$83","v":-0.2}]
[6,{"$f":"IF(A8<='S4-PartialHarvest'!$C$9, B7*EXP((LN((E7/100)+1))*1),)","v":48.456838607741638},{"$f":"_xlfn.XLOOKUP($B8,FeedTables!$C$42:$T$42,FeedTables!$C$44:$T$44,,-1)","v":4.1684550113923917},{"$f":"_xlfn.XLOOKUP($B8,FeedTables!$C$42:$T$42,FeedTables!$C$45:$T$45,,-1)","v":1.283309931764242},{"$f":"_xlfn.XLOOKUP($B8,FeedTables!$C$42:$T$42,FeedTables!$C$46:$T$46,,-1)*_xlfn.XLOOKUP(N7,DensityMultiplier[Biomass kg/m3],DensityMultiplier[Multiplier],,-1)","v":3.2482059931241785},{"$f":"IF(A8>'S4-PartialHarvest'!$C$9,0,IF(A8='S4-PartialHarvest'!$C$7,(F7-G7-H7)*(1-'S4-PartialHarvest'!$C$8),(F7-G7-H7)))","v":3946.4739193371506},{"$f":"IF(A8<='S4-PartialHarvest'!$C$7,('Growth-Model-4'!G7*EXP($Z$7)),IF(A8<'S4-PartialHarvest'!$C$9,('Growth-Model-4'!G7*EXP($AA$7)),0))+IF(A8='S4-PartialHarvest'!$C$7,'Growth-Model-4'!$AA$6,0)","v":9.8796427316965598},{"$f":"IF(A8<='S4-PartialHarvest'!$C$9,$AD$6*EXP($AD$7*('S4-PartialHarvest'!C$9-'Growth-Model-4'!A8)),0)","v":1.6941021645329349E-11},113.4057233945622,2.800141318384252E-2,478.73625335278882,4.9092042915430696,191.23364977898188,{"$f":"M8/'S4-PartialHarvest'!$C$19","v":7.082727769591922},7.9714886576805464,51.357667463505166,{"$f":"_xlfn.XLOOKUP(B8,FeedTables!$C$17:$T$17,FeedTables!$C$31:$T$31,,-1)","v":"Unga 3mm"},{"$f":"_xlfn.XLOOKUP(Q8,FeedPrice[Feed],FeedPrice[Price per kg],\"Unknown\",0)*O8","v":846.16634667299809},5451.5701793503567,{"$f":"_xlfn.XLOOKUP(O8,LabourFromFeed[Feed Quantity (kg)],LabourFromFeed[No. Labour],\"Out of range\",-1)","v":1},{"$f":"T8*OperatingCosts!$C$9","v":1200},8400,null,null,"Final morts",{"$f":"Z6*EXP(Z7*'S4-PartialHarvest'!$C$7)","v":3.1607733299384317E-4},{"$f":"AA6*EXP(AA7*'S4-PartialHarvest'!$C$9)","v":1.8105695901607575E-14}]
[7,{"$f":"IF(A9<='S4-PartialHarvest'!$C$9, B8*EXP((LN((E8/100)+1))*1),)","v":50.030816543476817},{"$f":"_xlfn.XLOOKUP($B9,FeedTables!$C$42:$T$42,FeedTables!$C$44:$T$44,,-1)","v":4.1684550113923917},{"$f":"_xlfn.XLOOKUP($B9,FeedTables!$C$42:$T$42,FeedTables!$C$45:$T$45,,-1)","v":1.283309931764242},{"$f":"_xlfn.XLOOKUP($B9,FeedTables!$C$42:$T$42,FeedTables!$C$46:$T$46,,-1)*_xlfn.XLOOKUP(N8,DensityMultiplier[Biomass kg/m3],DensityMultiplier[Multiplier],,-1)","v":3.2482059931241785},{"$f":"IF(A9>'S4-PartialHarvest'!$C$9,0,IF(A9='S4-PartialHarvest'!$C$7,(F8-G8-H8)*(1-'S4-PartialHarvest'!$C$8),(F8-G8-H8)))","v":3936.5942766054372},{"$f":"IF(A9<='S4-PartialHarvest'!$C$7,('Growth-Model-4'!G8*EXP($Z$7)),IF(A9<'S4-PartialHarvest'!$C$9,('Growth-Model-4'!G8*EXP($AA$7)),0))+IF(A9='S4-PartialHarvest'!$C$7,'Growth-Model-4'!$AA$6,0)","v":8.5034873034010765},{"$f":"IF(A9<='S4-PartialHarvest'!$C$9,$AD$6*EXP($AD$7*('S4-PartialHarvest'!C$9-'Growth-Model-4'!A9)),0)","v":2.0691810563656466E-11},121.90921069798397,3.010103967851456E-2,425.43641325727884,5.3346407048003481,196.95102605894746,{"$f":"M9/'S4-PartialHarvest'!$C$19","v":7.2944824466276836},8.2098149157429319,59.567482379248098,{"$f":"_xlfn.XLOOKUP(B9,FeedTables!$C$17:$T$17,FeedTables!$C$31:$T$31,,-1)","v":"Unga 3mm"},{"$f":"_xlfn.XLOOKUP(Q9,FeedPrice[Feed],FeedPrice[Price per kg],\"Unknown\",0)*O9","v":871.46446447268806},6323.0346438230445,{"$f":"_xlfn.XLOOKUP(O9,LabourFromFeed[Feed Quantity (kg)],LabourFromFeed[No. Labour],\"Out of range\",-1)","v":1},{"$f":"T9*OperatingCosts!$C$9","v":1200},9600]
[8,{"$f":"IF(A10<='S4-PartialHarvest'!$C$9, B9*EXP((LN((E9/100)+1))*1),)","v":51.655920524850998},{"$f":"_xlfn.XLOOKUP($B10,FeedTables!$C$42:$T$42,FeedTables!$C$44:$T$44,,-1)","v":4.1684550113923917},{"$f":"_xlfn.XLOOKUP($B10,FeedTables!$C$42:$T$42,FeedTables!$C$45:$T$45,,-1)","v":1.283309931764242},{"$f":"_xlfn.XLOOKUP($B10,FeedTables!$C$42:$T$42,FeedTables!$C$46:$T$46,,-1)*_xlfn.XLOOKUP(N9,DensityMultiplier[Biomass kg/m3],DensityMultiplier[Multiplier],,-1)","v":3.2482059931241785},{"$f":"IF(A10>'S4-PartialHarvest'!$C$9,0,IF(A10='S4-PartialHarvest'!$C$7,(F9-G9-H9)*(1-'S4-PartialHarvest'!$C$8),(F9-G9-H9)))","v":3928.0907893020153},{"$f":"IF(A10<='S4-PartialHarvest'!$C$7,('Growth-Model-4'!G9*EXP($Z$7)),IF(A10<'S4-PartialHarvest'!$C$9,('Growth-Model-4'!G9*EXP($AA$7)),0))+IF(A10='S4-PartialHarvest'!$C$7,'Growth-Model-4'!$AA$6,0)","v":7.3190193494665126},{"$f":"IF(A10<='S4-PartialHarvest'!$C$9,$AD$6*EXP($AD$7*('S4-PartialHarvest'!C$9-'Growth-Model-4'!A10)),0)","v":2.5273034493777725E-11},129.22823004747573,3.190820494999401E-2,378.07068183719434,5.7127113866375421,202.90914562658412,{"$f":"M10/'S4-PartialHarvest'!$C$19","v":7.5151535417253381},8.4581764494448315,68.025658828692926,{"$f":"_xlfn.XLOOKUP(B10,FeedTables!$C$17:$T$17,FeedTables!$C$31:$T$31,,-1)","v":"Unga 3mm"},{"$f":"_xlfn.XLOOKUP(Q10,FeedPrice[Feed],FeedPrice[Price per kg],\"Unknown\",0)*O10","v":897.82781774976445},7220.8624615728086,{"$f":"_xlfn.XLOOKUP(O10,LabourFromFeed[Feed Quantity (kg)],LabourFromFeed[No. Labour],\"Out of range\",-1)","v":1},{"$f":"T10*OperatingCosts!$C$9","v":1200},10800]
[9,{"$f":"IF(A11<='S4-PartialHarvest'!$C$9, B10*EXP((LN((E10/100)+1))*1),)","v":53.333811231142676},{"$f":"_xlfn.XLOOKUP($B11,FeedTables!$C$42:$T$42,FeedTables!$C$44:$T$44,,-1)","v":4.1684550113923917},{"$f":"_xlfn.XLOOKUP($B11,FeedTables!$C$42:$T$42,FeedTables!$C$45:$T$45,,-1)","v":1.283309931764242},{"$f":"_xlfn.XLOOKUP($B11,FeedTables!$C$42:$T$42,FeedTables!$C$46:$T$46,,-1)*_xlfn.XLOOKUP(N10,DensityMultiplier[Biomass kg/m3],DensityMultiplier[Multiplier],,-1)","v":3.2482059931241785},{"$f":"IF(A11>'S4-PartialHarvest'!$C$9,0,IF(A11='S4-PartialHarvest'!$C$7,(F10-G10-H10)*(1-'S4-PartialHarvest'!$C$8),(F10-G10-H10)))","v":3920.7717699525233},{"$f":"IF(A11<='S4-PartialHarvest'!$C$7,('Growth-Model-4'!G10*EXP($Z$7)),IF(A11<'S4-PartialHarvest'!$C$9,('Growth-Model-4'!G10*EXP($AA$7)),0))+IF(A11='S4-PartialHarvest'!$C$7,'Growth-Model-4'!$AA$6,0)","v":6.2995383336951649},{"$f":"IF(A11<='S4-PartialHarvest'!$C$9,$AD$6*EXP($AD$7*('S4-PartialHarvest'!C$9-'Growth-Model-4'!A11)),0)","v":3.0868554037777207E-11},135.52776838120175,3.3463646513876975E-2,335.97838833429137,6.0486897749718338,209.10970145904105,{"$f":"M11/'S4-PartialHarvest'!$C$19","v":7.744803757742261},8.7166438297770661,76.742302658469995,{"$f":"_xlfn.XLOOKUP(B11,FeedTables!$C$17:$T$17,FeedTables!$C$31:$T$31,,-1)","v":"Unga 3mm"},{"$f":"_xlfn.XLOOKUP(Q11,FeedPrice[Feed],FeedPrice[Price per kg],\"Unknown\",0)*O11","v":925.26389755138882},8146.1263591241977,{"$f":"_xlfn.XLOOKUP(O11,LabourFromFeed[Feed Quantity (kg)],LabourFromFeed[No. Labour],\"Out of range\",-1)","v":1},{"$f":"T11*OperatingCosts!$C$9","v":1200},12000]
[10,{"$f":"IF(A12<='S4-PartialHarvest'!$C$9, B11*EXP((LN((E11/100)+1))*1),)","v":55.066203283914192},{"$f":"_xlfn.XLOOKUP($B12,FeedTables!$C$42:$T$42,FeedTables!$C$44:$T$44,,-1)","v":4.1684550113923917},{"$f":"_xlfn.XLOOKUP($B12,FeedTables!$C$42:$T$42,FeedTables!$C$45:$T$45,,-1)","v":1.283309931764242},{"$f":"_xlfn.XLOOKUP($B12,FeedTables!$C$42:$T$42,FeedTables!$C$46:$T$46,,-1)*_xlfn.XLOOKUP(N11,DensityMultiplier[Biomass kg/m3],DensityMultiplier[Multiplier],,-1)","v":3.2482059931241785},{"$f":"IF(A12>'S4-PartialHarvest'!$C$9,0,IF(A12='S4-PartialHarvest'!$C$7,(F11-G11-H11)*(1-'S4-PartialHarvest'!$C$8),(F11-G11-H11)))","v":3914.4722316187972},{"$f":"IF(A12<='S4-PartialHarvest'!$C$7,('Growth-Model-4'!G11*EXP($Z$7)),IF(A12<'S4-PartialHarvest'!$C$9,('Growth-Model-4'!G11*EXP($AA$7)),0))+IF(A12='S4-PartialHarvest'!$C$7,'Growth-Model-4'!$AA$6,0)","v":5.4220628916068456},{"$f":"IF(A12<='S4-PartialHarvest'!$C$9,$AD$6*EXP($AD$7*('S4-PartialHarvest'!C$9-'Growth-Model-4'!A12)),0)","v":3.7702937042157297E-11},140.94983127284632,3.4802427474776867E-2,298.57241740946631,6.3472621923813,215.55512365555794,{"$f":"M12/'S4-PartialHarvest'!$C$19","v":7.9835230983539978},8.9853183543331721,85.727621012803169,{"$f":"_xlfn.XLOOKUP(B12,FeedTables!$C$17:$T$17,FeedTables!$C$31:$T$31,,-1)","v":"Unga 3mm"},{"$f":"_xlfn.XLOOKUP(Q12,FeedPrice[Feed],FeedPrice[Price per kg],\"Unknown\",0)*O12","v":953.78345652594737},9099.9098156501459,{"$f":"_xlfn.XLOOKUP(O12,LabourFromFeed[Feed Quantity (kg)],LabourFromFeed[No. Labour],\"Out of range\",-1)","v":1},{"$f":"T12*OperatingCosts!$C$9","v":1200},13200]
[11,{"$f":"IF(A13<='S4-PartialHarvest'!$C$9, B12*EXP((LN((E12/100)+1))*1),)","v":56.854866999168237},{"$f":"_xlfn.XLOOKUP($B13,FeedTables!$C$42:$T$42,FeedTables!$C$44:$T$44,,-1)","v":4.1684550113923917},{"$f":"_xlfn.XLOOKUP($B13,FeedTables!$C$42:$T$42,FeedTables!$C$45:$T$45,,-1)","v":1.283309931764242},{"$f":"_xlfn.XLOOKUP($B13,FeedTables!$C$42:$T$42,FeedTables!$C$46:$T$46,,-1)*_xlfn.XLOOKUP(N12,DensityMultiplier[Biomass kg/m3],DensityMultiplier[Multiplier],,-1)","v":3.2482059931241785},{"$f":"IF(A13>'S4-PartialHarvest'!$C$9,0,IF(A13='S4-PartialHarvest'!$C$7,(F12-G12-H12)*(1-'S4-PartialHarvest'!$C$8),(F12-G12-H12)))","v":3909.0501687271526},{"$f":"IF(A13<='S4-PartialHarvest'!$C$7,('Growth-Model-4'!G12*EXP($Z$7)),IF(A13<'S4-PartialHarvest'!$C$9,('Growth-Model-4'!G12*EXP($AA$7)),0))+IF(A13='S4-PartialHarvest'!$C$7,'Growth-Model-4'!$AA$6,0)","v":4.6668127794843253},{"$f":"IF(A13<='S4-PartialHarvest'!$C$9,$AD$6*EXP($AD$7*('S4-PartialHarvest'!C$9-'Growth-Model-4'!A13)),0)","v":4.6050471294030124E-11},145.6166440523767,3.5954726926512769E-2,265.33101989021816,6.6125932122715181,222.24852743605842,{"$f":"M13/'S4-PartialHarvest'!$C$19","v":8.2314269420762383},9.2643298796541718,94.991950892457339,{"$f":"_xlfn.XLOOKUP(B13,FeedTables!$C$17:$T$17,FeedTables!$C$31:$T$31,,-1)","v":"Unga 3mm"},{"$f":"_xlfn.XLOOKUP(Q13,FeedPrice[Feed],FeedPrice[Price per kg],\"Unknown\",0)*O13","v":983.40027882839865},10083.310094478544,{"$f":"_xlfn.XLOOKUP(O13,LabourFromFeed[Feed Quantity (kg)],LabourFromFeed[No. Labour],\"Out of range\",-1)","v":1},{"$f":"T13*OperatingCosts!$C$9","v":1200},14400]
[12,{"$f":"IF(A14<='S4-PartialHarvest'!$C$9, B13*EXP((LN((E13/100)+1))*1),)","v":58.701630196418009},{"$f":"_xlfn.XLOOKUP($B14,FeedTables!$C$42:$T$42,FeedTables!$C$44:$T$44,,-1)","v":4.1684550113923917},{"$f":"_xlfn.XLOOKUP($B14,FeedTables!$C$42:$T$42,FeedTables!$C$45:$T$45,,-1)","v":1.283309931764242},{"$f":"_xlfn.XLOOKUP($B14,FeedTables!$C$42:$T$42,FeedTables!$C$46:$T$46,,-1)*_xlfn.XLOOKUP(N13,DensityMultiplier[Biomass kg/m3],DensityMultiplier[Multiplier],,-1)","v":3.2482059931241785},{"$f":"IF(A14>'S4-PartialHarvest'!$C$9,0,IF(A14='S4-PartialHarvest'!$C$7,(F13-G13-H13)*(1-'S4-PartialHarvest'!$C$8),(F13-G13-H13)))","v":3904.3833559476225},{"$f":"IF(A14<='S4-PartialHarvest'!$C$7,('Growth-Model-4'!G13*EXP($Z$7)),IF(A14<'S4-PartialHarvest'!$C$9,('Growth-Model-4'!G13*EXP($AA$7)),0))+IF(A14='S4-PartialHarvest'!$C$7,'Growth-Model-4'!$AA$6,0)","v":4.0167629837845533},{"$f":"IF(A14<='S4-PartialHarvest'!$C$9,$AD$6*EXP($AD$7*('S4-PartialHarvest'!C$9-'Growth-Model-4'!A14)),0)","v":5.6246172653104285E-11},149.63340703621751,3.6946520255856173E-2,235.79053526408319,6.8483837475356015,229.19366790588683,{"$f":"M14/'S4-PartialHarvest'!$C$19","v":8.4886543668846972},9.5538349356169761,104.54578582807432,{"$f":"_xlfn.XLOOKUP(B14,FeedTables!$C$17:$T$17,FeedTables!$C$31:$T$31,,-1)","v":"Unga 3mm"},{"$f":"_xlfn.XLOOKUP(Q14,FeedPrice[Feed],FeedPrice[Price per kg],\"Unknown\",0)*O14","v":1014.1309799643},11097.441074442844,{"$f":"_xlfn.XLOOKUP(O14,LabourFromFeed[Feed Quantity (kg)],LabourFromFeed[No. Labour],\"Out of range\",-1)","v":1},{"$f":"T14*OperatingCosts!$C$9","v":1200},15600]
[13,{"$f":"IF(A15<='S4-PartialHarvest'!$C$9, B14*EXP((LN((E14/100)+1))*1),)","v":60.608380066519658},{"$f":"_xlfn.XLOOKUP($B15,FeedTables!$C$42:$T$42,FeedTables!$C$44:$T$44,,-1)","v":4.1684550113923917},{"$f":"_xlfn.XLOOKUP($B15,FeedTables!$C$42:$T$42,FeedTables!$C$45:$T$45,,-1)","v":1.283309931764242},{"$f":"_xlfn.XLOOKUP($B15,FeedTables!$C$42:$T$42,FeedTables!$C$46:$T$46,,-1)*_xlfn.XLOOKUP(N14,DensityMultiplier[Biomass kg/m3],DensityMultiplier[Multiplier],,-1)","v":3.2482059931241785},{"$f":"IF(A15>'S4-PartialHarvest'!$C$9,0,IF(A15='S4-PartialHarvest'!$C$7,(F14-G14-H14)*(1-'S4-PartialHarvest'!$C$8),(F14-G14-H14)))","v":3900.3665929637814},{"$f":"IF(A15<='S4-PartialHarvest'!$C$7,('Growth-Model-4'!G14*EXP($Z$7)),IF(A15<'S4-PartialHarvest'!$C$9,('Growth-Model-4'!G14*EXP($AA$7)),0))+IF(A15='S4-PartialHarvest'!$C$7,'Growth-Model-4'!$AA$6,0)","v":3.4572599395522801},{"$f":"IF(A15<='S4-PartialHarvest'!$C$9,$AD$6*EXP($AD$7*('S4-PartialHarvest'!C$9-'Growth-Model-4'!A15)),0)","v":6.8699230414454646E-11},153.09066697583847,3.7800164685392212E-2,209.53892440930113,7.0579226719449029,236.39490086510526,{"$f":"M15/'S4-PartialHarvest'!$C$19","v":8.7553666987076024},9.8540150917875575,114.39980091986187,{"$f":"_xlfn.XLOOKUP(B15,FeedTables!$C$17:$T$17,FeedTables!$C$31:$T$31,,-1)","v":"Unga 3mm"},{"$f":"_xlfn.XLOOKUP(Q15,FeedPrice[Feed],FeedPrice[Price per kg],\"Unknown\",0)*O15","v":1045.9948333796667},12143.435907822512,{"$f":"_xlfn.XLOOKUP(O15,LabourFromFeed[Feed Quantity (kg)],LabourFromFeed[No. Labour],\"Out of range\",-1)","v":1},{"$f":"T15*OperatingCosts!$C$9","v":1200},16800]
[14,{"$f":"IF(A16<='S4-PartialHarvest'!$C$9, B15*EXP((LN((E15/100)+1))*1),)","v":62.577065100175837},{"$f":"_xlfn.XLOOKUP($B16,FeedTables!$C$42:$T$42,FeedTables!$C$44:$T$44,,-1)","v":4.1684550113923917},{"$f":"_xlfn.XLOOKUP($B16,FeedTables!$C$42:$T$42,FeedTables!$C$45:$T$45,,-1)","v":1.283309931764242},{"$f":"_xlfn.XLOOKUP($B16,FeedTables!$C$42:$T$42,FeedTables!$C$46:$T$46,,-1)*_xlfn.XLOOKUP(N15,DensityMultiplier[Biomass kg/m3],DensityMultiplier[Multiplier],,-1)","v":3.2482059931241785},{"$f":"IF(A16>'S4-PartialHarvest'!$C$9,0,IF(A16='S4-PartialHarvest'!$C$7,(F15-G15-H15)*(1-'S4-PartialHarvest'!$C$8),(F15-G15-H15)))","v":3896.9093330241603},{"$f":"IF(A16<='S4-PartialHarvest'!$C$7,('Growth-Model-4'!G15*EXP($Z$7)),IF(A16<'S4-PartialHarvest'!$C$9,('Growth-Model-4'!G15*EXP($AA$7)),0))+IF(A16='S4-PartialHarvest'!$C$7,'Growth-Model-4'!$AA$6,0)","v":2.9756912065474608},{"$f":"IF(A16<='S4-PartialHarvest'!$C$9,$AD$6*EXP($AD$7*('S4-PartialHarvest'!C$9-'Growth-Model-4'!A16)),0)","v":8.3909429511695863E-11},156.06635818246983,3.8534903254930822E-2,186.21002235539203,7.2441326943002951,243.85714902213567,{"$f":"M16/'S4-PartialHarvest'!$C$19","v":9.0317462600790996},10.165075549051828,124.5648764689137,{"$f":"_xlfn.XLOOKUP(B16,FeedTables!$C$17:$T$17,FeedTables!$C$31:$T$31,,-1)","v":"Unga 3mm"},{"$f":"_xlfn.XLOOKUP(Q16,FeedPrice[Feed],FeedPrice[Price per kg],\"Unknown\",0)*O16","v":1079.0136209638574},13222.449528786368,{"$f":"_xlfn.XLOOKUP(O16,LabourFromFeed[Feed Quantity (kg)],LabourFromFeed[No. Labour],\"Out of range\",-1)","v":1},{"$f":"T16*OperatingCosts!$C$9","v":1200},18000]
[15,{"$f":"IF(A17<='S4-PartialHarvest'!$C$9, B16*EXP((LN((E16/100)+1))*1),)","v":64.609697079080973},{"$f":"_xlfn.XLOOKUP($B17,FeedTables!$C$42:$T$42,FeedTables!$C$44:$T$44,,-1)","v":4.1684550113923917},{"$f":"_xlfn.XLOOKUP($B17,FeedTables!$C$42:$T$42,FeedTables!$C$45:$T$45,,-1)","v":1.283309931764242},{"$f":"_xlfn.XLOOKUP($B17,FeedTables!$C$42:$T$42,FeedTables!$C$46:$T$46,,-1)*_xlfn.XLOOKUP(N16,DensityMultiplier[Biomass kg/m3],DensityMultiplier[Multiplier],,-1)","v":3.2482059931241785},{"$f":"IF(A17>'S4-PartialHarvest'!$C$9,0,IF(A17='S4-PartialHarvest'!$C$7,(F16-G16-H16)*(1-'S4-PartialHarvest'!$C$8),(F16-G16-H16)))","v":3893.933641817529},{"$f":"IF(A17<='S4-PartialHarvest'!$C$7,('Growth-Model-4'!G16*EXP($Z$7)),IF(A17<'S4-PartialHarvest'!$C$9,('Growth-Model-4'!G16*EXP($AA$7)),0))+IF(A17='S4-PartialHarvest'!$C$7,'Growth-Model-4'!$AA$6,0)","v":2.5612011568533037},{"$f":"IF(A17<='S4-PartialHarvest'!$C$9,$AD$6*EXP($AD$7*('S4-PartialHarvest'!C$9-'Growth-Model-4'!A17)),0)","v":1.024872086412316E-10},158.62755933942563,3.9167298602327316E-2,165.47843090950539,7.4096111252098007,251.58587304387314,{"$f":"M17/'S4-PartialHarvest'!$C$19","v":9.317995297921227},10.48724393285263,135.05212040176633,{"$f":"_xlfn.XLOOKUP(B17,FeedTables!$C$17:$T$17,FeedTables!$C$31:$T$31,,-1)","v":"Unga 3mm"},{"$f":"_xlfn.XLOOKUP(Q17,FeedPrice[Feed],FeedPrice[Price per kg],\"Unknown\",0)*O17","v":1113.2115049527672},14335.661033739136,{"$f":"_xlfn.XLOOKUP(O17,LabourFromFeed[Feed Quantity (kg)],LabourFromFeed[No. Labour],\"Out of range\",-1)","v":1},{"$f":"T17*OperatingCosts!$C$9","v":1200},19200]
[16,{"$f":"IF(A18<='S4-PartialHarvest'!$C$9, B17*EXP((LN((E17/100)+1))*1),)","v":66.708353131743067},{"$f":"_xlfn.XLOOKUP($B18,FeedTables!$C$42:$T$42,FeedTables!$C$44:$T$44,,-1)","v":4.1684550113923917},{"$f":"_xlfn.XLOOKUP($B18,FeedTables!$C$42:$T$42,FeedTables!$C$45:$T$45,,-1)","v":1.283309931764242},{"$f":"_xlfn.XLOOKUP($B18,FeedTables!$C$42:$T$42,FeedTables!$C$46:$T$46,,-1)*_xlfn.XLOOKUP(N17,DensityMultiplier[Biomass kg/m3],DensityMultiplier[Multiplier],,-1)","v":3.2482059931241785},{"$f":"IF(A18>'S4-PartialHarvest'!$C$9,0,IF(A18='S4-PartialHarvest'!$C$7,(F17-G17-H17)*(1-'S4-PartialHarvest'!$C$8),(F17-G17-H17)))","v":3891.3724406605734},{"$f":"IF(A18<='S4-PartialHarvest'!$C$7,('Growth-Model-4'!G17*EXP($Z$7)),IF(A18<'S4-PartialHarvest'!$C$9,('Growth-Model-4'!G17*EXP($AA$7)),0))+IF(A18='S4-PartialHarvest'!$C$7,'Growth-Model-4'!$AA$6,0)","v":2.2044462649327241},{"$f":"IF(A18<='S4-PartialHarvest'!$C$9,$AD$6*EXP($AD$7*('S4-PartialHarvest'!C$9-'Growth-Model-4'!A18)),0)","v":1.2517815931053697E-10},160.83200560448353,3.9711606322094695E-2,147.05497990943462,7.556666105119235,259.5870469387184,{"$f":"M18/'S4-PartialHarvest'!$C$19","v":9.6143350718043852},10.820769267042529,145.87288966880885,{"$f":"_xlfn.XLOOKUP(B18,FeedTables!$C$17:$T$17,FeedTables!$C$31:$T$31,,-1)","v":"Unga 3mm"},{"$f":"_xlfn.XLOOKUP(Q18,FeedPrice[Feed],FeedPrice[Price per kg],\"Unknown\",0)*O18","v":1148.6149190042242},15484.275952743359,{"$f":"_xlfn.XLOOKUP(O18,LabourFromFeed[Feed Quantity (kg)],LabourFromFeed[No. Labour],\"Out of range\",-1)","v":1},{"$f":"T18*OperatingCosts!$C$9","v":1200},20400]
[17,{"$f":"IF(A19<='S4-PartialHarvest'!$C$9, B18*EXP((LN((E18/100)+1))*1),)","v":68.875177856082786},{"$f":"_xlfn.XLOOKUP($B19,FeedTables!$C$42:$T$42,FeedTables!$C$44:$T$44,,-1)","v":4.1684550113923917},{"$f":"_xlfn.XLOOKUP($B19,FeedTables!$C$42:$T$42,FeedTables!$C$45:$T$45,,-1)","v":1.283309931764242},{"$f":"_xlfn.XLOOKUP($B19,FeedTables!$C$42:$T$42,FeedTables!$C$46:$T$46,,-1)*_xlfn.XLOOKUP(N18,DensityMultiplier[Biomass kg/m3],DensityMultiplier[Multiplier],,-1)","v":3.2482059931241785},{"$f":"IF(A19>'S4-PartialHarvest'!$C$9,0,IF(A19='S4-PartialHarvest'!$C$7,(F18-G18-H18)*(1-'S4-PartialHarvest'!$C$8),(F18-G18-H18)))","v":3889.1679943955155},{"$f":"IF(A19<='S4-PartialHarvest'!$C$7,('Growth-Model-4'!G18*EXP($Z$7)),IF(A19<'S4-PartialHarvest'!$C$9,('Growth-Model-4'!G18*EXP($AA$7)),0))+IF(A19='S4-PartialHarvest'!$C$7,'Growth-Model-4'!$AA$6,0)","v":1.8973844838280218},{"$f":"IF(A19<='S4-PartialHarvest'!$C$9,$AD$6*EXP($AD$7*('S4-PartialHarvest'!C$9-'Growth-Model-4'!A19)),0)","v":1.5289294904330344E-10},162.72939008846444,4.0180096318139367E-2,130.68269379555738,7.6873487989147922,267.86713732617591,{"$f":"M19/'S4-PartialHarvest'!$C$19","v":9.921005086154663},11.16592110974632,157.03881077855516,{"$f":"_xlfn.XLOOKUP(B19,FeedTables!$C$17:$T$17,FeedTables!$C$31:$T$31,,-1)","v":"Unga 3mm"},{"$f":"_xlfn.XLOOKUP(Q19,FeedPrice[Feed],FeedPrice[Price per kg],\"Unknown\",0)*O19","v":1185.2524764705731},16669.528429213933,{"$f":"_xlfn.XLOOKUP(O19,LabourFromFeed[Feed Quantity (kg)],LabourFromFeed[No. Labour],\"Out of range\",-1)","v":1},{"$f":"T19*OperatingCosts!$C$9","v":1200},21600]
[18,{"$f":"IF(A20<='S4-PartialHarvest'!$C$9, B19*EXP((LN((E19/100)+1))*1),)","v":71.11238551097901},{"$f":"_xlfn.XLOOKUP($B20,FeedTables!$C$42:$T$42,FeedTables!$C$44:$T$44,,-1)","v":3.5416853289047179},{"$f":"_xlfn.XLOOKUP($B20,FeedTables!$C$42:$T$42,FeedTables!$C$45:$T$45,,-1)","v":1.3532619052561699},{"$f":"_xlfn.XLOOKUP($B20,FeedTables!$C$42:$T$42,FeedTables!$C$46:$T$46,,-1)*_xlfn.XLOOKUP(N19,DensityMultiplier[Biomass kg/m3],DensityMultiplier[Multiplier],,-1)","v":2.6171469950853923},{"$f":"IF(A20>'S4-PartialHarvest'!$C$9,0,IF(A20='S4-PartialHarvest'!$C$7,(F19-G19-H19)*(1-'S4-PartialHarvest'!$C$8),(F19-G19-H19)))","v":3887.2706099115348},{"$f":"IF(A20<='S4-PartialHarvest'!$C$7,('Growth-Model-4'!G19*EXP($Z$7)),IF(A20<'S4-PartialHarvest'!$C$9,('Growth-Model-4'!G19*EXP($AA$7)),0))+IF(A20='S4-PartialHarvest'!$C$7,'Growth-Model-4'!$AA$6,0)","v":1.6330939595759195},{"$f":"IF(A20<='S4-PartialHarvest'!$C$9,$AD$6*EXP($AD$7*('S4-PartialHarvest'!C$9-'Growth-Model-4'!A20)),0)","v":1.8674386966473299E-10},164.36248404822709,4.0583329394623974E-2,116.13320724229376,7.8034820061570862,276.43308619752759,{"$f":"M20/'S4-PartialHarvest'!$C$19","v":10.238262451760281},9.7903900580963672,166.82920083665152,{"$f":"_xlfn.XLOOKUP(B20,FeedTables!$C$17:$T$17,FeedTables!$C$31:$T$31,,-1)","v":"Unga 3mm"},{"$f":"_xlfn.XLOOKUP(Q20,FeedPrice[Feed],FeedPrice[Price per kg],\"Unknown\",0)*O20","v":1039.2410933158772},17708.769522529808,{"$f":"_xlfn.XLOOKUP(O20,LabourFromFeed[Feed Quantity (kg)],LabourFromFeed[No. Labour],\"Out of range\",-1)","v":1},{"$f":"T20*OperatingCosts!$C$9","v":1200},22800]
[19,{"$f":"IF(A21<='S4-PartialHarvest'!$C$9, B20*EXP((LN((E20/100)+1))*1),)","v":72.973501171513135},{"$f":"_xlfn.XLOOKUP($B21,FeedTables!$C$42:$T$42,FeedTables!$C$44:$T$44,,-1)","v":3.5416853289047179},{"$f":"_xlfn.XLOOKUP($B21,FeedTables!$C$42:$T$42,FeedTables!$C$45:$T$45,,-1)","v":1.3532619052561699},{"$f":"_xlfn.XLOOKUP($B21,FeedTables!$C$42:$T$42,FeedTables!$C$46:$T$46,,-1)*_xlfn.XLOOKUP(N20,DensityMultiplier[Biomass kg/m3],DensityMultiplier[Multiplier],,-1)","v":2.6171469950853923},{"$f":"IF(A21>'S4-PartialHarvest'!$C$9,0,IF(A21='S4-PartialHarvest'!$C$7,(F20-G20-H20)*(1-'S4-PartialHarvest'!$C$8),(F20-G20-H20)))","v":3885.637515951772},{"$f":"IF(A21<='S4-PartialHarvest'!$C$7,('Growth-Model-4'!G20*EXP($Z$7)),IF(A21<'S4-PartialHarvest'!$C$9,('Growth-Model-4'!G20*EXP($AA$7)),0))+IF(A21='S4-PartialHarvest'!$C$7,'Growth-Model-4'!$AA$6,0)","v":1.4056169972585748},{"$f":"IF(A21<='S4-PartialHarvest'!$C$9,$AD$6*EXP($AD$7*('S4-PartialHarvest'!C$9-'Growth-Model-4'!A21)),0)","v":2.2808947747800802E-10},165.76810104571373,4.0930395319929321E-2,102.57279361279187,7.906054799769878,283.54857382238202,{"$f":"M21/'S4-PartialHarvest'!$C$19","v":10.501799030458594},10.042398239385868,176.8715990760374,{"$f":"_xlfn.XLOOKUP(B21,FeedTables!$C$17:$T$17,FeedTables!$C$31:$T$31,,-1)","v":"Unga 3mm"},{"$f":"_xlfn.XLOOKUP(Q21,FeedPrice[Feed],FeedPrice[Price per kg],\"Unknown\",0)*O21","v":1065.9915349523944},18774.761057482203,{"$f":"_xlfn.XLOOKUP(O21,LabourFromFeed[Feed Quantity (kg)],LabourFromFeed[No. Labour],\"Out of range\",-1)","v":1},{"$f":"T21*OperatingCosts!$C$9","v":1200},24000]
[20,{"$f":"IF(A22<='S4-PartialHarvest'!$C$9, B21*EXP((LN((E21/100)+1))*1),)","v":74.883324964631996},{"$f":"_xlfn.XLOOKUP($B22,FeedTables!$C$42:$T$42,FeedTables!$C$44:$T$44,,-1)","v":3.5416853289047179},{"$f":"_xlfn.XLOOKUP($B22,FeedTables!$C$42:$T$42,FeedTables!$C$45:$T$45,,-1)","v":1.3532619052561699},{"$f":"_xlfn.XLOOKUP($B22,FeedTables!$C$42:$T$42,FeedTables!$C$46:$T$46,,-1)*_xlfn.XLOOKUP(N21,DensityMultiplier[Biomass kg/m3],DensityMultiplier[Multiplier],,-1)","v":2.6171469950853923},{"$f":"IF(A22>'S4-PartialHarvest'!$C$9,0,IF(A22='S4-PartialHarvest'!$C$7,(F21-G21-H21)*(1-'S4-PartialHarvest'!$C$8),(F21-G21-H21)))","v":3884.231898954285},{"$f":"IF(A22<='S4-PartialHarvest'!$C$7,('Growth-Model-4'!G21*EXP($Z$7)),IF(A22<'S4-PartialHarvest'!$C$9,('Growth-Model-4'!G21*EXP($AA$7)),0))+IF(A22='S4-PartialHarvest'!$C$7,'Growth-Model-4'!$AA$6,0)","v":1.2098257613390939},{"$f":"IF(A22<='S4-PartialHarvest'!$C$9,$AD$6*EXP($AD$7*('S4-PartialHarvest'!C$9-'Growth-Model-4'!A22)),0)","v":2.7858911689895068E-10},166.97792680733141,4.1229117730205288E-2,90.59577565780036,7.9966505754276787,290.86419952738339,{"$f":"M22/'S4-PartialHarvest'!$C$19","v":10.77274813064383},10.301494681697484,187.17309375773488,{"$f":"_xlfn.XLOOKUP(B22,FeedTables!$C$17:$T$17,FeedTables!$C$31:$T$31,,-1)","v":"Unga 3mm"},{"$f":"_xlfn.XLOOKUP(Q22,FeedPrice[Feed],FeedPrice[Price per kg],\"Unknown\",0)*O22","v":1093.4943891169744},19868.255446599178,{"$f":"_xlfn.XLOOKUP(O22,LabourFromFeed[Feed Quantity (kg)],LabourFromFeed[No. Labour],\"Out of range\",-1)","v":1},{"$f":"T22*OperatingCosts!$C$9","v":1200},25200]
[21,{"$f":"IF(A23<='S4-PartialHarvest'!$C$9, B22*EXP((LN((E22/100)+1))*1),)","v":76.843131653763891},{"$f":"_xlfn.XLOOKUP($B23,FeedTables!$C$42:$T$42,FeedTables!$C$44:$T$44,,-1)","v":3.5416853289047179},{"$f":"_xlfn.XLOOKUP($B23,FeedTables!$C$42:$T$42,FeedTables!$C$45:$T$45,,-1)","v":1.3532619052561699},{"$f":"_xlfn.XLOOKUP($B23,FeedTables!$C$42:$T$42,FeedTables!$C$46:$T$46,,-1)*_xlfn.XLOOKUP(N22,DensityMultiplier[Biomass kg/m3],DensityMultiplier[Multiplier],,-1)","v":2.6171469950853923},{"$f":"IF(A23>'S4-PartialHarvest'!$C$9,0,IF(A23='S4-PartialHarvest'!$C$7,(F22-G22-H22)*(1-'S4-PartialHarvest'!$C$8),(F22-G22-H22)))","v":3883.022073192667},{"$f":"IF(A23<='S4-PartialHarvest'!$C$7,('Growth-Model-4'!G22*EXP($Z$7)),IF(A23<'S4-PartialHarvest'!$C$9,('Growth-Model-4'!G22*EXP($AA$7)),0))+IF(A23='S4-PartialHarvest'!$C$7,'Growth-Model-4'!$AA$6,0)","v":1.0413066828690765},{"$f":"IF(A23<='S4-PartialHarvest'!$C$9,$AD$6*EXP($AD$7*('S4-PartialHarvest'!C$9-'Growth-Model-4'!A23)),0)","v":3.4026951577378416E-10},168.01923349054076,4.1486230491491548E-2,80.017266549799984,8.0766678419774784,298.38357638481534,{"$f":"M23/'S4-PartialHarvest'!$C$19","v":11.051243569807976},10.567807348682209,197.74090110641708,{"$f":"_xlfn.XLOOKUP(B23,FeedTables!$C$17:$T$17,FeedTables!$C$31:$T$31,,-1)","v":"Unga 3mm"},{"$f":"_xlfn.XLOOKUP(Q23,FeedPrice[Feed],FeedPrice[Price per kg],\"Unknown\",0)*O23","v":1121.7632390360027},20990.018685635179,{"$f":"_xlfn.XLOOKUP(O23,LabourFromFeed[Feed Quantity (kg)],LabourFromFeed[No. Labour],\"Out of range\",-1)","v":1},{"$f":"T23*OperatingCosts!$C$9","v":1200},26400]
[22,{"$f":"IF(A24<='S4-PartialHarvest'!$C$9, B23*EXP((LN((E23/100)+1))*1),)","v":78.854229364769893},{"$f":"_xlfn.XLOOKUP($B24,FeedTables!$C$42:$T$42,FeedTables!$C$44:$T$44,,-1)","v":3.5416853289047179},{"$f":"_xlfn.XLOOKUP($B24,FeedTables!$C$42:$T$42,FeedTables!$C$45:$T$45,,-1)","v":1.3532619052561699},{"$f":"_xlfn.XLOOKUP($B24,FeedTables!$C$42:$T$42,FeedTables!$C$46:$T$46,,-1)*_xlfn.XLOOKUP(N23,DensityMultiplier[Biomass kg/m3],DensityMultiplier[Multiplier],,-1)","v":2.6171469950853923},{"$f":"IF(A24>'S4-PartialHarvest'!$C$9,0,IF(A24='S4-PartialHarvest'!$C$7,(F23-G23-H23)*(1-'S4-PartialHarvest'!$C$8),(F23-G23-H23)))","v":3881.9807665094577},{"$f":"IF(A24<='S4-PartialHarvest'!$C$7,('Growth-Model-4'!G23*EXP($Z$7)),IF(A24<'S4-PartialHarvest'!$C$9,('Growth-Model-4'!G23*EXP($AA$7)),0))+IF(A24='S4-PartialHarvest'!$C$7,'Growth-Model-4'!$AA$6,0)","v":0.89626096785013221},{"$f":"IF(A24<='S4-PartialHarvest'!$C$9,$AD$6*EXP($AD$7*('S4-PartialHarvest'!C$9-'Growth-Model-4'!A24)),0)","v":4.1560612508392655E-10},168.91549445880651,4.1707529496001608E-2,70.673967962317278,8.1473418099397961,306.11060175196201,{"$f":"M24/'S4-PartialHarvest'!$C$19","v":11.337429694517111},10.841474272471187,208.58237537888826,{"$f":"_xlfn.XLOOKUP(B24,FeedTables!$C$17:$T$17,FeedTables!$C$31:$T$31,,-1)","v":"Unga 3mm"},{"$f":"_xlfn.XLOOKUP(Q24,FeedPrice[Feed],FeedPrice[Price per kg],\"Unknown\",0)*O24","v":1150.8127366959714},22140.83142233115,{"$f":"_xlfn.XLOOKUP(O24,LabourFromFeed[Feed Quantity (kg)],LabourFromFeed[No. Labour],\"Out of range\",-1)","v":1},{"$f":"T24*OperatingCosts!$C$9","v":1200},27600]
[23,{"$f":"IF(A25<='S4-PartialHarvest'!$C$9, B24*EXP((LN((E24/100)+1))*1),)","v":80.917960459087709},{"$f":"_xlfn.XLOOKUP($B25,FeedTables!$C$42:$T$42,FeedTables!$C$44:$T$44,,-1)","v":3.5416853289047179},{"$f":"_xlfn.XLOOKUP($B25,FeedTables!$C$42:$T$42,FeedTables!$C$45:$T$45,,-1)","v":1.3532619052561699},{"$f":"_xlfn.XLOOKUP($B25,FeedTables!$C$42:$T$42,FeedTables!$C$46:$T$46,,-1)*_xlfn.XLOOKUP(N24,DensityMultiplier[Biomass kg/m3],DensityMultiplier[Multiplier],,-1)","v":2.6171469950853923},{"$f":"IF(A25>'S4-PartialHarvest'!$C$9,0,IF(A25='S4-PartialHarvest'!$C$7,(F24-G24-H24)*(1-'S4-PartialHarvest'!$C$8),(F24-G24-H24)))","v":3881.0845055411919},{"$f":"IF(A25<='S4-PartialHarvest'!$C$7,('Growth-Model-4'!G24*EXP($Z$7)),IF(A25<'S4-PartialHarvest'!$C$9,('Growth-Model-4'!G24*EXP($AA$7)),0))+IF(A25='S4-PartialHarvest'!$C$7,'Growth-Model-4'!$AA$6,0)","v":0.77141896398705112},{"$f":"IF(A25<='S4-PartialHarvest'!$C$9,$AD$6*EXP($AD$7*('S4-PartialHarvest'!C$9-'Growth-Model-4'!A25)),0)","v":5.0762246748576808E-10},169.68691342330118,4.1898003314395353E-2,62.421649266370387,8.209763459206167,314.04944255776019,{"$f":"M25/'S4-PartialHarvest'!$C$19","v":11.6314608354726},11.122643032575242,219.7050184114635,{"$f":"_xlfn.XLOOKUP(B25,FeedTables!$C$17:$T$17,FeedTables!$C$31:$T$31,,-1)","v":"Unga 3mm"},{"$f":"_xlfn.XLOOKUP(Q25,FeedPrice[Feed],FeedPrice[Price per kg],\"Unknown\",0)*O25","v":1180.6585475291326},23321.489969860282,{"$f":"_xlfn.XLOOKUP(O25,LabourFromFeed[Feed Quantity (kg)],LabourFromFeed[No. Labour],\"Out of range\",-1)","v":1},{"$f":"T25*OperatingCosts!$C$9","v":1200},28800]
[24,{"$f":"IF(A26<='S4-PartialHarvest'!$C$9, B25*EXP((LN((E25/100)+1))*1),)","v":83.03570242972711},{"$f":"_xlfn.XLOOKUP($B26,FeedTables!$C$42:$T$42,FeedTables!$C$44:$T$44,,-1)","v":3.5416853289047179},{"$f":"_xlfn.XLOOKUP($B26,FeedTables!$C$42:$T$42,FeedTables!$C$45:$T$45,,-1)","v":1.3532619052561699},{"$f":"_xlfn.XLOOKUP($B26,FeedTables!$C$42:$T$42,FeedTables!$C$46:$T$46,,-1)*_xlfn.XLOOKUP(N25,DensityMultiplier[Biomass kg/m3],DensityMultiplier[Multiplier],,-1)","v":2.6171469950853923},{"$f":"IF(A26>'S4-PartialHarvest'!$C$9,0,IF(A26='S4-PartialHarvest'!$C$7,(F25-G25-H25)*(1-'S4-PartialHarvest'!$C$8),(F25-G25-H25)))","v":3880.3130865766975},{"$f":"IF(A26<='S4-PartialHarvest'!$C$7,('Growth-Model-4'!G25*EXP($Z$7)),IF(A26<'S4-PartialHarvest'!$C$9,('Growth-Model-4'!G25*EXP($AA$7)),0))+IF(A26='S4-PartialHarvest'!$C$7,'Growth-Model-4'!$AA$6,0)","v":0.66396645546920929},{"$f":"IF(A26<='S4-PartialHarvest'!$C$9,$AD$6*EXP($AD$7*('S4-PartialHarvest'!C$9-'Growth-Model-4'!A26)),0)","v":6.2001148189118788E-10},170.35087987939042,4.2061945649232199E-2,55.132921071145006,8.2648963802773121,322.20452279115858,{"$f":"M26/'S4-PartialHarvest'!$C$19","v":11.933500844116985},11.411470312761923,231.11648872422543,{"$f":"_xlfn.XLOOKUP(B26,FeedTables!$C$17:$T$17,FeedTables!$C$31:$T$31,,-1)","v":"Unga 3mm"},{"$f":"_xlfn.XLOOKUP(Q26,FeedPrice[Feed],FeedPrice[Price per kg],\"Unknown\",0)*O26","v":1211.3173033763967},24532.807273236678,{"$f":"_xlfn.XLOOKUP(O26,LabourFromFeed[Feed Quantity (kg)],LabourFromFeed[No. Labour],\"Out of range\",-1)","v":1},{"$f":"T26*OperatingCosts!$C$9","v":1200},30000]
[25,{"$f":"IF(A27<='S4-PartialHarvest'!$C$9, B26*EXP((LN((E26/100)+1))*1),)","v":85.20886882071477},{"$f":"_xlfn.XLOOKUP($B27,FeedTables!$C$42:$T$42,FeedTables!$C$44:$T$44,,-1)","v":3.5416853289047179},{"$f":"_xlfn.XLOOKUP($B27,FeedTables!$C$42:$T$42,FeedTables!$C$45:$T$45,,-1)","v":1.3532619052561699},{"$f":"_xlfn.XLOOKUP($B27,FeedTables!$C$42:$T$42,FeedTables!$C$46:$T$46,,-1)*_xlfn.XLOOKUP(N26,DensityMultiplier[Biomass kg/m3],DensityMultiplier[Multiplier],,-1)","v":2.6171469950853923},{"$f":"IF(A27>'S4-PartialHarvest'!$C$9,0,IF(A27='S4-PartialHarvest'!$C$7,(F26-G26-H26)*(1-'S4-PartialHarvest'!$C$8),(F26-G26-H26)))","v":3879.6491201206086},{"$f":"IF(A27<='S4-PartialHarvest'!$C$7,('Growth-Model-4'!G26*EXP($Z$7)),IF(A27<'S4-PartialHarvest'!$C$9,('Growth-Model-4'!G26*EXP($AA$7)),0))+IF(A27='S4-PartialHarvest'!$C$7,'Growth-Model-4'!$AA$6,0)","v":0.57148122430102144},{"$f":"IF(A27<='S4-PartialHarvest'!$C$9,$AD$6*EXP($AD$7*('S4-PartialHarvest'!C$9-'Growth-Model-4'!A27)),0)","v":7.5728373407287042E-10},170.92236110444873,4.2203052124555239E-2,48.695268739494495,8.3135916490168071,330.5805129467584,{"$f":"M27/'S4-PartialHarvest'!$C$19","v":12.243722701731793},11.708121527253304,242.82461025147873,{"$f":"_xlfn.XLOOKUP(B27,FeedTables!$C$17:$T$17,FeedTables!$C$31:$T$31,,-1)","v":"Unga 3mm"},{"$f":"_xlfn.XLOOKUP(Q27,FeedPrice[Feed],FeedPrice[Price per kg],\"Unknown\",0)*O27","v":1242.8065628085637},25775.613836045242,{"$f":"_xlfn.XLOOKUP(O27,LabourFromFeed[Feed Quantity (kg)],LabourFromFeed[No. Labour],\"Out of range\",-1)","v":1},{"$f":"T27*OperatingCosts!$C$9","v":1200},31200]
[26,{"$f":"IF(A28<='S4-PartialHarvest'!$C$9, B27*EXP((LN((E27/100)+1))*1),)","v":87.438910170602369},{"$f":"_xlfn.XLOOKUP($B28,FeedTables!$C$42:$T$42,FeedTables!$C$44:$T$44,,-1)","v":3.5416853289047179},{"$f":"_xlfn.XLOOKUP($B28,FeedTables!$C$42:$T$42,FeedTables!$C$45:$T$45,,-1)","v":1.3532619052561699},{"$f":"_xlfn.XLOOKUP($B28,FeedTables!$C$42:$T$42,FeedTables!$C$46:$T$46,,-1)*_xlfn.XLOOKUP(N27,DensityMultiplier[Biomass kg/m3],DensityMultiplier[Multiplier],,-1)","v":2.6171469950853923},{"$f":"IF(A28>'S4-PartialHarvest'!$C$9,0,IF(A28='S4-PartialHarvest'!$C$7,(F27-G27-H27)*(1-'S4-PartialHarvest'!$C$8),(F27-G27-H27)))","v":3879.0776388955505},{"$f":"IF(A28<='S4-PartialHarvest'!$C$7,('Growth-Model-4'!G27*EXP($Z$7)),IF(A28<'S4-PartialHarvest'!$C$9,('Growth-Model-4'!G27*EXP($AA$7)),0))+IF(A28='S4-PartialHarvest'!$C$7,'Growth-Model-4'!$AA$6,0)","v":0.49187844813304671},{"$f":"IF(A28<='S4-PartialHarvest'!$C$9,$AD$6*EXP($AD$7*('S4-PartialHarvest'!C$9-'Growth-Model-4'!A28)),0)","v":9.2494844150643587E-10},171.41423955350672,4.2324503593458448E-2,43.009315522037255,8.3566009645388437,339.18232121218034,{"$f":"M28/'S4-PartialHarvest'!$C$19","v":12.562308193043716},12.012770508610267,254.83738076008899,{"$f":"_xlfn.XLOOKUP(B28,FeedTables!$C$17:$T$17,FeedTables!$C$31:$T$31,,-1)","v":"Unga 3mm"},{"$f":"_xlfn.XLOOKUP(Q28,FeedPrice[Feed],FeedPrice[Price per kg],\"Unknown\",0)*O28","v":1275.1447779955222},27050.758614040766,{"$f":"_xlfn.XLOOKUP(O28,LabourFromFeed[Feed Quantity (kg)],LabourFromFeed[No. Labour],\"Out of range\",-1)","v":1},{"$f":"T28*OperatingCosts!$C$9","v":1200},32400]
[27,{"$f":"IF(A29<='S4-PartialHarvest'!$C$9, B28*EXP((LN((E28/100)+1))*1),)","v":89.727314980667714},{"$f":"_xlfn.XLOOKUP($B29,FeedTables!$C$42:$T$42,FeedTables!$C$44:$T$44,,-1)","v":3.5416853289047179},{"$f":"_xlfn.XLOOKUP($B29,FeedTables!$C$42:$T$42,FeedTables!$C$45:$T$45,,-1)","v":1.3532619052561699},{"$f":"_xlfn.XLOOKUP($B29,FeedTables!$C$42:$T$42,FeedTables!$C$46:$T$46,,-1)*_xlfn.XLOOKUP(N28,DensityMultiplier[Biomass kg/m3],DensityMultiplier[Multiplier],,-1)","v":2.6171469950853923},{"$f":"IF(A29>'S4-PartialHarvest'!$C$9,0,IF(A29='S4-PartialHarvest'!$C$7,(F28-G28-H28)*(1-'S4-PartialHarvest'!$C$8),(F28-G28-H28)))","v":3878.5857604464927},{"$f":"IF(A29<='S4-PartialHarvest'!$C$7,('Growth-Model-4'!G28*EXP($Z$7)),IF(A29<'S4-PartialHarvest'!$C$9,('Growth-Model-4'!G28*EXP($AA$7)),0))+IF(A29='S4-PartialHarvest'!$C$7,'Growth-Model-4'!$AA$6,0)","v":0.4233637037396924},{"$f":"IF(A29<='S4-PartialHarvest'!$C$9,$AD$6*EXP($AD$7*('S4-PartialHarvest'!C$9-'Growth-Model-4'!A29)),0)","v":1.1297345776119144E-9},171.83760325837613,4.2429037841574355E-2,37.987288498201522,8.3945882530370444,348.01508620711508,{"$f":"M29/'S4-PartialHarvest'!$C$19","v":12.889447637300558},12.325599250572502,267.1629800106615,{"$f":"_xlfn.XLOOKUP(B29,FeedTables!$C$17:$T$17,FeedTables!$C$31:$T$31,,-1)","v":"Unga 3mm"},{"$f":"_xlfn.XLOOKUP(Q29,FeedPrice[Feed],FeedPrice[Price per kg],\"Unknown\",0)*O29","v":1308.3512674089457},28359.109881449713,{"$f":"_xlfn.XLOOKUP(O29,LabourFromFeed[Feed Quantity (kg)],LabourFromFeed[No. Labour],\"Out of range\",-1)","v":1},{"$f":"T29*OperatingCosts!$C$9","v":1200},33600]
[28,{"$f":"IF(A30<='S4-PartialHarvest'!$C$9, B29*EXP((LN((E29/100)+1))*1),)","v":92.075610708455073},{"$f":"_xlfn.XLOOKUP($B30,FeedTables!$C$42:$T$42,FeedTables!$C$44:$T$44,,-1)","v":3.5416853289047179},{"$f":"_xlfn.XLOOKUP($B30,FeedTables!$C$42:$T$42,FeedTables!$C$45:$T$45,,-1)","v":1.3532619052561699},{"$f":"_xlfn.XLOOKUP($B30,FeedTables!$C$42:$T$42,FeedTables!$C$46:$T$46,,-1)*_xlfn.XLOOKUP(N29,DensityMultiplier[Biomass kg/m3],DensityMultiplier[Multiplier],,-1)","v":2.6171469950853923},{"$f":"IF(A30>'S4-PartialHarvest'!$C$9,0,IF(A30='S4-PartialHarvest'!$C$7,(F29-G29-H29)*(1-'S4-PartialHarvest'!$C$8),(F29-G29-H29)))","v":3878.1623967416235},{"$f":"IF(A30<='S4-PartialHarvest'!$C$7,('Growth-Model-4'!G29*EXP($Z$7)),IF(A30<'S4-PartialHarvest'!$C$9,('Growth-Model-4'!G29*EXP($AA$7)),0))+IF(A30='S4-PartialHarvest'!$C$7,'Growth-Model-4'!$AA$6,0)","v":0.36439251673760831},{"$f":"IF(A30<='S4-PartialHarvest'!$C$9,$AD$6*EXP($AD$7*('S4-PartialHarvest'!C$9-'Growth-Model-4'!A30)),0)","v":1.3798609290841058E-9},172.20199577649362,4.2519011302837931E-2,33.551663643257761,8.4281399166803013,357.08417110655085,{"$f":"M30/'S4-PartialHarvest'!$C$19","v":13.225339670612994},12.646797699921732,279.80977771058321,{"$f":"_xlfn.XLOOKUP(B30,FeedTables!$C$17:$T$17,FeedTables!$C$31:$T$31,,-1)","v":"Unga 3mm"},{"$f":"_xlfn.XLOOKUP(Q30,FeedPrice[Feed],FeedPrice[Price per kg],\"Unknown\",0)*O30","v":1342.446193728762},29701.556075178476,{"$f":"_xlfn.XLOOKUP(O30,LabourFromFeed[Feed Quantity (kg)],LabourFromFeed[No. Labour],\"Out of range\",-1)","v":1},{"$f":"T30*OperatingCosts!$C$9","v":1200},34800]
[29,{"$f":"IF(A31<='S4-PartialHarvest'!$C$9, B30*EXP((LN((E30/100)+1))*1),)","v":94.485364787317934},{"$f":"_xlfn.XLOOKUP($B31,FeedTables!$C$42:$T$42,FeedTables!$C$44:$T$44,,-1)","v":3.5416853289047179},{"$f":"_xlfn.XLOOKUP($B31,FeedTables!$C$42:$T$42,FeedTables!$C$45:$T$45,,-1)","v":1.3532619052561699},{"$f":"_xlfn.XLOOKUP($B31,FeedTables!$C$42:$T$42,FeedTables!$C$46:$T$46,,-1)*_xlfn.XLOOKUP(N30,DensityMultiplier[Biomass kg/m3],DensityMultiplier[Multiplier],,-1)","v":2.6171469950853923},{"$f":"IF(A31>'S4-PartialHarvest'!$C$9,0,IF(A31='S4-PartialHarvest'!$C$7,(F30-G30-H30)*(1-'S4-PartialHarvest'!$C$8),(F30-G30-H30)))","v":3877.7980042235063},{"$f":"IF(A31<='S4-PartialHarvest'!$C$7,('Growth-Model-4'!G30*EXP($Z$7)),IF(A31<'S4-PartialHarvest'!$C$9,('Growth-Model-4'!G30*EXP($AA$7)),0))+IF(A31='S4-PartialHarvest'!$C$7,'Growth-Model-4'!$AA$6,0)","v":0.31363554570566088},{"$f":"IF(A31<='S4-PartialHarvest'!$C$9,$AD$6*EXP($AD$7*('S4-PartialHarvest'!C$9-'Growth-Model-4'!A31)),0)","v":1.6853659446607802E-9},172.51563132388466,4.2596452178736956E-2,29.633969105511312,8.4577738857858122,366.39515900059143,{"$f":"M31/'S4-PartialHarvest'!$C$19","v":13.570191074095979},12.976563592141062,292.78634130272428,{"$f":"_xlfn.XLOOKUP(B31,FeedTables!$C$17:$T$17,FeedTables!$C$31:$T$31,,-1)","v":"Unga 3mm"},{"$f":"_xlfn.XLOOKUP(Q31,FeedPrice[Feed],FeedPrice[Price per kg],\"Unknown\",0)*O31","v":1377.4505463985408},31079.006621577017,{"$f":"_xlfn.XLOOKUP(O31,LabourFromFeed[Feed Quantity (kg)],LabourFromFeed[No. Labour],\"Out of range\",-1)","v":1},{"$f":"T31*OperatingCosts!$C$9","v":1200},36000,null,null,"Feed Use by Type","Kg used",{"$f":"_xlfn.CONCAT(\"Cost\",\" (\",'0-StartHere'!$C$49,\")\")","v":"Cost (KES)"}]
[30,{"$f":"IF(A32<='S4-PartialHarvest'!$C$9, B31*EXP((LN((E31/100)+1))*1),)","v":96.958185672644703},{"$f":"_xlfn.XLOOKUP($B32,FeedTables!$C$42:$T$42,FeedTables!$C$44:$T$44,,-1)","v":3.5416853289047179},{"$f":"_xlfn.XLOOKUP($B32,FeedTables!$C$42:$T$42,FeedTables!$C$45:$T$45,,-1)","v":1.3532619052561699},{"$f":"_xlfn.XLOOKUP($B32,FeedTables!$C$42:$T$42,FeedTables!$C$46:$T$46,,-1)*_xlfn.XLOOKUP(N31,DensityMultiplier[Biomass kg/m3],DensityMultiplier[Multiplier],,-1)","v":2.6171469950853923},{"$f":"IF(A32>'S4-PartialHarvest'!$C$9,0,IF(A32='S4-PartialHarvest'!$C$7,(F31-G31-H31)*(1-'S4-PartialHarvest'!$C$8),(F31-G31-H31)))","v":3877.4843686761155},{"$f":"IF(A32<='S4-PartialHarvest'!$C$7,('Growth-Model-4'!G31*EXP($Z$7)),IF(A32<'S4-PartialHarvest'!$C$9,('Growth-Model-4'!G31*EXP($AA$7)),0))+IF(A32='S4-PartialHarvest'!$C$7,'Growth-Model-4'!$AA$6,0)","v":0.26994861587928809},{"$f":"IF(A32<='S4-PartialHarvest'!$C$9,$AD$6*EXP($AD$7*('S4-PartialHarvest'!C$9-'Growth-Model-4'!A32)),0)","v":2.0585106133178957E-9},172.78557994182245,4.2663106158474677E-2,26.173728220086915,8.4839476140058991,375.95384936087629,{"$f":"M32/'S4-PartialHarvest'!$C$19","v":13.924216642995418},13.3151023262667,306.10144362899098,{"$f":"_xlfn.XLOOKUP(B32,FeedTables!$C$17:$T$17,FeedTables!$C$31:$T$31,,-1)","v":"Unga 3mm"},{"$f":"_xlfn.XLOOKUP(Q32,FeedPrice[Feed],FeedPrice[Price per kg],\"Unknown\",0)*O32","v":1413.3861283411165},32492.392749918134,{"$f":"_xlfn.XLOOKUP(O32,LabourFromFeed[Feed Quantity (kg)],LabourFromFeed[No. Labour],\"Out of range\",-1)","v":1},{"$f":"T32*OperatingCosts!$C$9","v":1200},37200,null,null,{"$f":"FeedCosts!A2","v":"Skretting 0.5mm"},{"$f":"SUMIF($Q$2:$Q$366,Y32,$O$2:$O$366)","v":0},{"$f":"SUMIF($Q$2:$Q$366,Y32,$R$2:$R$366)","v":0}]
[31,{"$f":"IF(A33<='S4-PartialHarvest'!$C$9, B32*EXP((LN((E32/100)+1))*1),)","v":99.495723915465646},{"$f":"_xlfn.XLOOKUP($B33,FeedTables!$C$42:$T$42,FeedTables!$C$44:$T$44,,-1)","v":3.5416853289047179},{"$f":"_xlfn.XLOOKUP($B33,FeedTables!$C$42:$T$42,FeedTables!$C$45:$T$45,,-1)","v":1.3532619052561699},{"$f":"_xlfn.XLOOKUP($B33,FeedTables!$C$42:$T$42,FeedTables!$C$46:$T$46,,-1)*_xlfn.XLOOKUP(N32,DensityMultiplier[Biomass kg/m3],DensityMultiplier[Multiplier],,-1)","v":2.6171469950853923},{"$f":"IF(A33>'S4-PartialHarvest'!$C$9,0,IF(A33='S4-PartialHarvest'!$C$7,(F32-G32-H32)*(1-'S4-PartialHarvest'!$C$8),(F32-G32-H32)))","v":3877.2144200581774},{"$f":"IF(A33<='S4-PartialHarvest'!$C$7,('Growth-Model-4'!G32*EXP($Z$7)),IF(A33<'S4-PartialHarvest'!$C$9,('Growth-Model-4'!G32*EXP($AA$7)),0))+IF(A33='S4-PartialHarvest'!$C$7,'Growth-Model-4'!$AA$6,0)","v":0.23234692691220729},{"$f":"IF(A33<='S4-PartialHarvest'!$C$9,$AD$6*EXP($AD$7*('S4-PartialHarvest'!C$9-'Growth-Model-4'!A33)),0)","v":2.5142705408084584E-9},173.01792687124893,4.2720475770678751E-2,23.117525942823018,8.5070651399487218,385.76625549917071,{"$f":"M33/'S4-PartialHarvest'!$C$19","v":14.287639092561879},13.662626874879219,319.76407050387019,{"$f":"_xlfn.XLOOKUP(B33,FeedTables!$C$17:$T$17,FeedTables!$C$31:$T$31,,-1)","v":"Unga 3mm"},{"$f":"_xlfn.XLOOKUP(Q33,FeedPrice[Feed],FeedPrice[Price per kg],\"Unknown\",0)*O33","v":1450.2755464042418},33942.668296322372,{"$f":"_xlfn.XLOOKUP(O33,LabourFromFeed[Feed Quantity (kg)],LabourFromFeed[No. Labour],\"Out of range\",-1)","v":1},{"$f":"T33*OperatingCosts!$C$9","v":1200},38400,null,null,{"$f":"FeedCosts!A3","v":"Skretting 1mm"},0,0]
[32,{"$f":"IF(A34<='S4-PartialHarvest'!$C$9, B33*EXP((LN((E33/100)+1))*1),)","v":102.09967326415772},{"$f":"_xlfn.XLOOKUP($B34,FeedTables!$C$42:$T$42,FeedTables!$C$44:$T$44,,-1)","v":3.1422093916933376},{"$f":"_xlfn.XLOOKUP($B34,FeedTables!$C$42:$T$42,FeedTables!$C$45:$T$45,,-1)","v":1.3978462732485115},{"$f":"_xlfn.XLOOKUP($B34,FeedTables!$C$42:$T$42,FeedTables!$C$46:$T$46,,-1)*_xlfn.XLOOKUP(N33,DensityMultiplier[Biomass kg/m3],DensityMultiplier[Multiplier],,-1)","v":2.2478933855802543},{"$f":"IF(A34>'S4-PartialHarvest'!$C$9,0,IF(A34='S4-PartialHarvest'!$C$7,(F33-G33-H33)*(1-'S4-PartialHarvest'!$C$8),(F33-G33-H33)))","v":3876.9820731287509},{"$f":"IF(A34<='S4-PartialHarvest'!$C$7,('Growth-Model-4'!G33*EXP($Z$7)),IF(A34<'S4-PartialHarvest'!$C$9,('Growth-Model-4'!G33*EXP($AA$7)),0))+IF(A34='S4-PartialHarvest'!$C$7,'Growth-Model-4'!$AA$6,0)","v":0.19998285329118673},{"$f":"IF(A34<='S4-PartialHarvest'!$C$9,$AD$6*EXP($AD$7*('S4-PartialHarvest'!C$9-'Growth-Model-4'!A34)),0)","v":3.0709369733043219E-9},173.21790972761104,4.2769854253731122E-2,20.418184293005815,8.5274833242417269,395.83860291744224,{"$f":"M34/'S4-PartialHarvest'!$C$19","v":14.660688996942305},12.438077756819567,332.20214826068974,{"$f":"_xlfn.XLOOKUP(B34,FeedTables!$C$17:$T$17,FeedTables!$C$31:$T$31,,-1)","v":"Unga 4mm"},{"$f":"_xlfn.XLOOKUP(Q34,FeedPrice[Feed],FeedPrice[Price per kg],\"Unknown\",0)*O34","v":1235.4755073926633},35178.143803715036,{"$f":"_xlfn.XLOOKUP(O34,LabourFromFeed[Feed Quantity (kg)],LabourFromFeed[No. Labour],\"Out of range\",-1)","v":1},{"$f":"T34*OperatingCosts!$C$9","v":1200},39600,null,null,{"$f":"FeedCosts!A4","v":"Skretting 2mm"},0,0]
[33,{"$f":"IF(A35<='S4-PartialHarvest'!$C$9, B34*EXP((LN((E34/100)+1))*1),)","v":104.39476506616175},{"$f":"_xlfn.XLOOKUP($B35,FeedTables!$C$42:$T$42,FeedTables!$C$44:$T$44,,-1)","v":3.1422093916933376},{"$f":"_xlfn.XLOOKUP($B35,FeedTables!$C$42:$T$42,FeedTables!$C$45:$T$45,,-1)","v":1.3978462732485115},{"$f":"_xlfn.XLOOKUP($B35,FeedTables!$C$42:$T$42,FeedTables!$C$46:$T$46,,-1)*_xlfn.XLOOKUP(N34,DensityMultiplier[Biomass kg/m3],DensityMultiplier[Multiplier],,-1)","v":2.2478933855802543},{"$f":"IF(A35>'S4-PartialHarvest'!$C$9,0,IF(A35='S4-PartialHarvest'!$C$7,(F34-G34-H34)*(1-'S4-PartialHarvest'!$C$8),(F34-G34-H34)))","v":3876.7820902723888},{"$f":"IF(A35<='S4-PartialHarvest'!$C$7,('Growth-Model-4'!G34*EXP($Z$7)),IF(A35<'S4-PartialHarvest'!$C$9,('Growth-Model-4'!G34*EXP($AA$7)),0))+IF(A35='S4-PartialHarvest'!$C$7,'Growth-Model-4'!$AA$6,0)","v":0.17212683697596654},{"$f":"IF(A35<='S4-PartialHarvest'!$C$9,$AD$6*EXP($AD$7*('S4-PartialHarvest'!C$9-'Growth-Model-4'!A35)),0)","v":3.7508508893299404E-9},173.39003656833785,4.2812354708231568E-2,17.969141099256746,8.5454524653409845,404.71575552668952,{"$f":"M35/'S4-PartialHarvest'!$C$19","v":14.989472426914427},12.717016479822286,344.91916474051203,{"$f":"_xlfn.XLOOKUP(B35,FeedTables!$C$17:$T$17,FeedTables!$C$31:$T$31,,-1)","v":"Unga 4mm"},{"$f":"_xlfn.XLOOKUP(Q35,FeedPrice[Feed],FeedPrice[Price per kg],\"Unknown\",0)*O35","v":1263.1825186423957},36441.326322357432,{"$f":"_xlfn.XLOOKUP(O35,LabourFromFeed[Feed Quantity (kg)],LabourFromFeed[No. Labour],\"Out of range\",-1)","v":1},{"$f":"T35*OperatingCosts!$C$9","v":1200},40800,null,null,{"$f":"FeedCosts!A5","v":"Unga 2mm"},{"$f":"SUMIF($Q$2:$Q$366,Y35,$O$2:$O$366)","v":0},0]
[34,{"$f":"IF(A36<='S4-PartialHarvest'!$C$9, B35*EXP((LN((E35/100)+1))*1),)","v":106.74144808497604},{"$f":"_xlfn.XLOOKUP($B36,FeedTables!$C$42:$T$42,FeedTables!$C$44:$T$44,,-1)","v":3.1422093916933376},{"$f":"_xlfn.XLOOKUP($B36,FeedTables!$C$42:$T$42,FeedTables!$C$45:$T$45,,-1)","v":1.3978462732485115},{"$f":"_xlfn.XLOOKUP($B36,FeedTables!$C$42:$T$42,FeedTables!$C$46:$T$46,,-1)*_xlfn.XLOOKUP(N35,DensityMultiplier[Biomass kg/m3],DensityMultiplier[Multiplier],,-1)","v":2.2478933855802543},{"$f":"IF(A36>'S4-PartialHarvest'!$C$9,0,IF(A36='S4-PartialHarvest'!$C$7,(F35-G35-H35)*(1-'S4-PartialHarvest'!$C$8),(F35-G35-H35)))","v":3876.609963431662},{"$f":"IF(A36<='S4-PartialHarvest'!$C$7,('Growth-Model-4'!G35*EXP($Z$7)),IF(A36<'S4-PartialHarvest'!$C$9,('Growth-Model-4'!G35*EXP($AA$7)),0))+IF(A36='S4-PartialHarvest'!$C$7,'Growth-Model-4'!$AA$6,0)","v":0.14815094154202998},{"$f":"IF(A36<='S4-PartialHarvest'!$C$9,$AD$6*EXP($AD$7*('S4-PartialHarvest'!C$9-'Growth-Model-4'!A36)),0)","v":4.5812996216751117E-9},173.53818751446119,4.2848935188755849E-2,15.81384652436347,8.5612663118653476,413.79496115734162,{"$f":"M36/'S4-PartialHarvest'!$C$19","v":15.325739302123763},13.002304131839786,357.9214688723518,{"$f":"_xlfn.XLOOKUP(B36,FeedTables!$C$17:$T$17,FeedTables!$C$31:$T$31,,-1)","v":"Unga 4mm"},{"$f":"_xlfn.XLOOKUP(Q36,FeedPrice[Feed],FeedPrice[Price per kg],\"Unknown\",0)*O36","v":1291.5201696460592},37732.846492003489,{"$f":"_xlfn.XLOOKUP(O36,LabourFromFeed[Feed Quantity (kg)],LabourFromFeed[No. Labour],\"Out of range\",-1)","v":1},{"$f":"T36*OperatingCosts!$C$9","v":1200},42000,null,null,{"$f":"FeedCosts!A6","v":"Unga 3mm"},{"$f":"SUMIF($Q$2:$Q$366,Y36,$O$2:$O$366)","v":319.76407050387019},33942.668296322372]
[35,{"$f":"IF(A37<='S4-PartialHarvest'!$C$9, B36*EXP((LN((E36/100)+1))*1),)","v":109.14088203615078},{"$f":"_xlfn.XLOOKUP($B37,FeedTables!$C$42:$T$42,FeedTables!$C$44:$T$44,,-1)","v":3.1422093916933376},{"$f":"_xlfn.XLOOKUP($B37,FeedTables!$C$42:$T$42,FeedTables!$C$45:$T$45,,-1)","v":1.3978462732485115},{"$f":"_xlfn.XLOOKUP($B37,FeedTables!$C$42:$T$42,FeedTables!$C$46:$T$46,,-1)*_xlfn.XLOOKUP(N36,DensityMultiplier[Biomass kg/m3],DensityMultiplier[Multiplier],,-1)","v":2.2478933855802543},{"$f":"IF(A37>'S4-PartialHarvest'!$C$9,0,IF(A37='S4-PartialHarvest'!$C$7,(F36-G36-H36)*(1-'S4-PartialHarvest'!$C$8),(F36-G36-H36)))","v":3876.4618124855388},{"$f":"IF(A37<='S4-PartialHarvest'!$C$7,('Growth-Model-4'!G36*EXP($Z$7)),IF(A37<'S4-PartialHarvest'!$C$9,('Growth-Model-4'!G36*EXP($AA$7)),0))+IF(A37='S4-PartialHarvest'!$C$7,'Growth-Model-4'!$AA$6,0)","v":0.12751469710010765},{"$f":"IF(A37<='S4-PartialHarvest'!$C$9,$AD$6*EXP($AD$7*('S4-PartialHarvest'!C$9-'Growth-Model-4'!A37)),0)","v":5.59561199387212E-9},173.66570221715691,4.2880420300532567E-2,13.917067124788378,8.5751833789901362,423.08046139412744,{"$f":"M37/'S4-PartialHarvest'!$C$19","v":15.669646718301017},13.294073992345778,371.21554286469757,{"$f":"_xlfn.XLOOKUP(B37,FeedTables!$C$17:$T$17,FeedTables!$C$31:$T$31,,-1)","v":"Unga 4mm"},{"$f":"_xlfn.XLOOKUP(Q37,FeedPrice[Feed],FeedPrice[Price per kg],\"Unknown\",0)*O37","v":1320.5016990671054},39053.348191070596,{"$f":"_xlfn.XLOOKUP(O37,LabourFromFeed[Feed Quantity (kg)],LabourFromFeed[No. Labour],\"Out of range\",-1)","v":1},{"$f":"T37*OperatingCosts!$C$9","v":1200},43200,null,null,{"$f":"FeedCosts!A7","v":"Unga 4mm"},{"$f":"SUMIF($Q$2:$Q$366,Y37,$O$2:$O$366)","v":1514.1414229066495},150399.81895145981]
[36,{"$f":"IF(A38<='S4-PartialHarvest'!$C$9, B37*EXP((LN((E37/100)+1))*1),)","v":111.59425270440536},{"$f":"_xlfn.XLOOKUP($B38,FeedTables!$C$42:$T$42,FeedTables!$C$44:$T$44,,-1)","v":3.1422093916933376},{"$f":"_xlfn.XLOOKUP($B38,FeedTables!$C$42:$T$42,FeedTables!$C$45:$T$45,,-1)","v":1.3978462732485115},{"$f":"_xlfn.XLOOKUP($B38,FeedTables!$C$42:$T$42,FeedTables!$C$46:$T$46,,-1)*_xlfn.XLOOKUP(N37,DensityMultiplier[Biomass kg/m3],DensityMultiplier[Multiplier],,-1)","v":2.2478933855802543},{"$f":"IF(A38>'S4-PartialHarvest'!$C$9,0,IF(A38='S4-PartialHarvest'!$C$7,(F37-G37-H37)*(1-'S4-PartialHarvest'!$C$8),(F37-G37-H37)))","v":3876.3342977828429},{"$f":"IF(A38<='S4-PartialHarvest'!$C$7,('Growth-Model-4'!G37*EXP($Z$7)),IF(A38<'S4-PartialHarvest'!$C$9,('Growth-Model-4'!G37*EXP($AA$7)),0))+IF(A38='S4-PartialHarvest'!$C$7,'Growth-Model-4'!$AA$6,0)","v":0.10975291690548784},{"$f":"IF(A38<='S4-PartialHarvest'!$C$9,$AD$6*EXP($AD$7*('S4-PartialHarvest'!C$9-'Growth-Model-4'!A38)),0)","v":6.8344959229095292E-9},173.77545514089687,4.290751978787577E-2,12.24779550688708,8.5874311744970235,432.57662919353226,{"$f":"M38/'S4-PartialHarvest'!$C$19","v":16.021356636797492},13.592463468789633,384.80800633348719,{"$f":"_xlfn.XLOOKUP(B38,FeedTables!$C$17:$T$17,FeedTables!$C$31:$T$31,,-1)","v":"Unga 4mm"},{"$f":"_xlfn.XLOOKUP(Q38,FeedPrice[Feed],FeedPrice[Price per kg],\"Unknown\",0)*O38","v":1350.1407556012211},40403.488946671816,{"$f":"_xlfn.XLOOKUP(O38,LabourFromFeed[Feed Quantity (kg)],LabourFromFeed[No. Labour],\"Out of range\",-1)","v":1},{"$f":"T38*OperatingCosts!$C$9","v":1200},44400]
[37,{"$f":"IF(A39<='S4-PartialHarvest'!$C$9, B38*EXP((LN((E38/100)+1))*1),)","v":114.1027725296354},{"$f":"_xlfn.XLOOKUP($B39,FeedTables!$C$42:$T$42,FeedTables!$C$44:$T$44,,-1)","v":3.1422093916933376},{"$f":"_xlfn.XLOOKUP($B39,FeedTables!$C$42:$T$42,FeedTables!$C$45:$T$45,,-1)","v":1.3978462732485115},{"$f":"_xlfn.XLOOKUP($B39,FeedTables!$C$42:$T$42,FeedTables!$C$46:$T$46,,-1)*_xlfn.XLOOKUP(N38,DensityMultiplier[Biomass kg/m3],DensityMultiplier[Multiplier],,-1)","v":2.2478933855802543},{"$f":"IF(A39>'S4-PartialHarvest'!$C$9,0,IF(A39='S4-PartialHarvest'!$C$7,(F38-G38-H38)*(1-'S4-PartialHarvest'!$C$8),(F38-G38-H38)))","v":3876.2245448591029},{"$f":"IF(A39<='S4-PartialHarvest'!$C$7,('Growth-Model-4'!G38*EXP($Z$7)),IF(A39<'S4-PartialHarvest'!$C$9,('Growth-Model-4'!G38*EXP($AA$7)),0))+IF(A39='S4-PartialHarvest'!$C$7,'Growth-Model-4'!$AA$6,0)","v":9.4465211016469958E-2},{"$f":"IF(A39<='S4-PartialHarvest'!$C$9,$AD$6*EXP($AD$7*('S4-PartialHarvest'!C$9-'Growth-Model-4'!A39)),0)","v":8.3476721708761596E-9},173.86992036026103,4.2930844533397787E-2,10.778743437068819,8.5982099179340921,442.28796751584775,{"$f":"M39/'S4-PartialHarvest'!$C$19","v":16.381035833920286},13.897614053612546,398.70562038709971,{"$f":"_xlfn.XLOOKUP(B39,FeedTables!$C$17:$T$17,FeedTables!$C$31:$T$31,,-1)","v":"Unga 4mm"},{"$f":"_xlfn.XLOOKUP(Q39,FeedPrice[Feed],FeedPrice[Price per kg],\"Unknown\",0)*O39","v":1380.4513937067395},41783.940340378555,{"$f":"_xlfn.XLOOKUP(O39,LabourFromFeed[Feed Quantity (kg)],LabourFromFeed[No. Labour],\"Out of range\",-1)","v":1},{"$f":"T39*OperatingCosts!$C$9","v":1200},45600]
[38,{"$f":"IF(A40<='S4-PartialHarvest'!$C$9, B39*EXP((LN((E39/100)+1))*1),)","v":116.66768120609275},{"$f":"_xlfn.XLOOKUP($B40,FeedTables!$C$42:$T$42,FeedTables!$C$44:$T$44,,-1)","v":3.1422093916933376},{"$f":"_xlfn.XLOOKUP($B40,FeedTables!$C$42:$T$42,FeedTables!$C$45:$T$45,,-1)","v":1.3978462732485115},{"$f":"_xlfn.XLOOKUP($B40,FeedTables!$C$42:$T$42,FeedTables!$C$46:$T$46,,-1)*_xlfn.XLOOKUP(N39,DensityMultiplier[Biomass kg/m3],DensityMultiplier[Multiplier],,-1)","v":2.2478933855802543},{"$f":"IF(A40>'S4-PartialHarvest'!$C$9,0,IF(A40='S4-PartialHarvest'!$C$7,(F39-G39-H39)*(1-'S4-PartialHarvest'!$C$8),(F39-G39-H39)))","v":3876.1300796397386},{"$f":"IF(A40<='S4-PartialHarvest'!$C$7,('Growth-Model-4'!G39*EXP($Z$7)),IF(A40<'S4-PartialHarvest'!$C$9,('Growth-Model-4'!G39*EXP($AA$7)),0))+IF(A40='S4-PartialHarvest'!$C$7,'Growth-Model-4'!$AA$6,0)","v":8.1306960616551932E-2},{"$f":"IF(A40<='S4-PartialHarvest'!$C$9,$AD$6*EXP($AD$7*('S4-PartialHarvest'!C$9-'Growth-Model-4'!A40)),0)","v":1.0195869813725025E-8},173.95122733107345,4.295092032866011E-2,9.4858957505767094,8.6076958136846695,452.21910844475593,{"$f":"M40/'S4-PartialHarvest'!$C$19","v":16.748855868324295},14.209671296583,412.91529168368271,{"$f":"_xlfn.XLOOKUP(B40,FeedTables!$C$17:$T$17,FeedTables!$C$31:$T$31,,-1)","v":"Unga 4mm"},{"$f":"_xlfn.XLOOKUP(Q40,FeedPrice[Feed],FeedPrice[Price per kg],\"Unknown\",0)*O40","v":1411.4480708567191},43195.388411235275,{"$f":"_xlfn.XLOOKUP(O40,LabourFromFeed[Feed Quantity (kg)],LabourFromFeed[No. Labour],\"Out of range\",-1)","v":1},{"$f":"T40*OperatingCosts!$C$9","v":1200},46800]
[39,{"$f":"IF(A41<='S4-PartialHarvest'!$C$9, B40*EXP((LN((E40/100)+1))*1),)","v":119.29024629503436},{"$f":"_xlfn.XLOOKUP($B41,FeedTables!$C$42:$T$42,FeedTables!$C$44:$T$44,,-1)","v":3.1422093916933376},{"$f":"_xlfn.XLOOKUP($B41,FeedTables!$C$42:$T$42,FeedTables!$C$45:$T$45,,-1)","v":1.3978462732485115},{"$f":"_xlfn.XLOOKUP($B41,FeedTables!$C$42:$T$42,FeedTables!$C$46:$T$46,,-1)*_xlfn.XLOOKUP(N40,DensityMultiplier[Biomass kg/m3],DensityMultiplier[Multiplier],,-1)","v":2.2478933855802543},{"$f":"IF(A41>'S4-PartialHarvest'!$C$9,0,IF(A41='S4-PartialHarvest'!$C$7,(F40-G40-H40)*(1-'S4-PartialHarvest'!$C$8),(F40-G40-H40)))","v":3876.0487726689262},{"$f":"IF(A41<='S4-PartialHarvest'!$C$7,('Growth-Model-4'!G40*EXP($Z$7)),IF(A41<'S4-PartialHarvest'!$C$9,('Growth-Model-4'!G40*EXP($AA$7)),0))+IF(A41='S4-PartialHarvest'!$C$7,'Growth-Model-4'!$AA$6,0)","v":6.9981549541544286E-2},{"$f":"IF(A41<='S4-PartialHarvest'!$C$9,$AD$6*EXP($AD$7*('S4-PartialHarvest'!C$9-'Growth-Model-4'!A41)),0)","v":1.2453263512325754E-8},174.02120889306826,4.2968199726683524E-2,8.3481177664718391,8.6160439314511414,462.37481274324182,{"$f":"M41/'S4-PartialHarvest'!$C$19","v":17.12499306456451},14.528784790842627,427.44407647452533,{"$f":"_xlfn.XLOOKUP(B41,FeedTables!$C$17:$T$17,FeedTables!$C$31:$T$31,,-1)","v":"Unga 4mm"},{"$f":"_xlfn.XLOOKUP(Q41,FeedPrice[Feed],FeedPrice[Price per kg],\"Unknown\",0)*O41","v":1443.1456461528771},44638.534057388155,{"$f":"_xlfn.XLOOKUP(O41,LabourFromFeed[Feed Quantity (kg)],LabourFromFeed[No. Labour],\"Out of range\",-1)","v":1},{"$f":"T41*OperatingCosts!$C$9","v":1200},48000]
[40,{"$f":"IF(A42<='S4-PartialHarvest'!$C$9, B41*EXP((LN((E41/100)+1))*1),)","v":121.97176385114282},{"$f":"_xlfn.XLOOKUP($B42,FeedTables!$C$42:$T$42,FeedTables!$C$44:$T$44,,-1)","v":3.1422093916933376},{"$f":"_xlfn.XLOOKUP($B42,FeedTables!$C$42:$T$42,FeedTables!$C$45:$T$45,,-1)","v":1.3978462732485115},{"$f":"_xlfn.XLOOKUP($B42,FeedTables!$C$42:$T$42,FeedTables!$C$46:$T$46,,-1)*_xlfn.XLOOKUP(N41,DensityMultiplier[Biomass kg/m3],DensityMultiplier[Multiplier],,-1)","v":2.2478933855802543},{"$f":"IF(A42>'S4-PartialHarvest'!$C$9,0,IF(A42='S4-PartialHarvest'!$C$7,(F41-G41-H41)*(1-'S4-PartialHarvest'!$C$8),(F41-G41-H41)))","v":3875.9787911069316},{"$f":"IF(A42<='S4-PartialHarvest'!$C$7,('Growth-Model-4'!G41*EXP($Z$7)),IF(A42<'S4-PartialHarvest'!$C$9,('Growth-Model-4'!G41*EXP($AA$7)),0))+IF(A42='S4-PartialHarvest'!$C$7,'Growth-Model-4'!$AA$6,0)","v":6.0233677892992513E-2},{"$f":"IF(A42<='S4-PartialHarvest'!$C$9,$AD$6*EXP($AD$7*('S4-PartialHarvest'!C$9-'Growth-Model-4'!A42)),0)","v":1.5210450402050071E-8},174.0814425861717,4.2983072243499183E-2,7.3468097910953487,8.6233907412422361,472.75996980093271,{"$f":"M42/'S4-PartialHarvest'!$C$19","v":17.509628511145657},14.855108171251494,442.29918464577685,{"$f":"_xlfn.XLOOKUP(B42,FeedTables!$C$17:$T$17,FeedTables!$C$31:$T$31,,-1)","v":"Unga 4mm"},{"$f":"_xlfn.XLOOKUP(Q42,FeedPrice[Feed],FeedPrice[Price per kg],\"Unknown\",0)*O42","v":1475.5593801612281},46114.093437549382,{"$f":"_xlfn.XLOOKUP(O42,LabourFromFeed[Feed Quantity (kg)],LabourFromFeed[No. Labour],\"Out of range\",-1)","v":1},{"$f":"T42*OperatingCosts!$C$9","v":1200},49200]
[41,{"$f":"IF(A43<='S4-PartialHarvest'!$C$9, B42*EXP((LN((E42/100)+1))*1),)","v":124.71355906302823},{"$f":"_xlfn.XLOOKUP($B43,FeedTables!$C$42:$T$42,FeedTables!$C$44:$T$44,,-1)","v":3.1422093916933376},{"$f":"_xlfn.XLOOKUP($B43,FeedTables!$C$42:$T$42,FeedTables!$C$45:$T$45,,-1)","v":1.3978462732485115},{"$f":"_xlfn.XLOOKUP($B43,FeedTables!$C$42:$T$42,FeedTables!$C$46:$T$46,,-1)*_xlfn.XLOOKUP(N42,DensityMultiplier[Biomass kg/m3],DensityMultiplier[Multiplier],,-1)","v":2.2478933855802543},{"$f":"IF(A43>'S4-PartialHarvest'!$C$9,0,IF(A43='S4-PartialHarvest'!$C$7,(F42-G42-H42)*(1-'S4-PartialHarvest'!$C$8),(F42-G42-H42)))","v":3875.9185574138282},{"$f":"IF(A43<='S4-PartialHarvest'!$C$7,('Growth-Model-4'!G42*EXP($Z$7)),IF(A43<'S4-PartialHarvest'!$C$9,('Growth-Model-4'!G42*EXP($AA$7)),0))+IF(A43='S4-PartialHarvest'!$C$7,'Growth-Model-4'!$AA$6,0)","v":5.1843607011916322E-2},{"$f":"IF(A43<='S4-PartialHarvest'!$C$9,$AD$6*EXP($AD$7*('S4-PartialHarvest'!C$9-'Growth-Model-4'!A43)),0)","v":1.8578086073922409E-8},174.13328621176169,4.2995873138706592E-2,6.4656030620602856,8.6298563443042973,483.37959793351666,{"$f":"M43/'S4-PartialHarvest'!$C$19","v":17.902948071611728},15.188799123796455,457.4879837695733,{"$f":"_xlfn.XLOOKUP(B43,FeedTables!$C$17:$T$17,FeedTables!$C$31:$T$31,,-1)","v":"Unga 4mm"},{"$f":"_xlfn.XLOOKUP(Q43,FeedPrice[Feed],FeedPrice[Price per kg],\"Unknown\",0)*O43","v":1508.7049358466143},47622.798373395999,{"$f":"_xlfn.XLOOKUP(O43,LabourFromFeed[Feed Quantity (kg)],LabourFromFeed[No. Labour],\"Out of range\",-1)","v":1},{"$f":"T43*OperatingCosts!$C$9","v":1200},50400]
[42,{"$f":"IF(A44<='S4-PartialHarvest'!$C$9, B43*EXP((LN((E43/100)+1))*1),)","v":127.51698690812775},{"$f":"_xlfn.XLOOKUP($B44,FeedTables!$C$42:$T$42,FeedTables!$C$44:$T$44,,-1)","v":3.1422093916933376},{"$f":"_xlfn.XLOOKUP($B44,FeedTables!$C$42:$T$42,FeedTables!$C$45:$T$45,,-1)","v":1.3978462732485115},{"$f":"_xlfn.XLOOKUP($B44,FeedTables!$C$42:$T$42,FeedTables!$C$46:$T$46,,-1)*_xlfn.XLOOKUP(N43,DensityMultiplier[Biomass kg/m3],DensityMultiplier[Multiplier],,-1)","v":2.2478933855802543},{"$f":"IF(A44>'S4-PartialHarvest'!$C$9,0,IF(A44='S4-PartialHarvest'!$C$7,(F43-G43-H43)*(1-'S4-PartialHarvest'!$C$8),(F43-G43-H43)))","v":3875.866713788238},{"$f":"IF(A44<='S4-PartialHarvest'!$C$7,('Growth-Model-4'!G43*EXP($Z$7)),IF(A44<'S4-PartialHarvest'!$C$9,('Growth-Model-4'!G43*EXP($AA$7)),0))+IF(A44='S4-PartialHarvest'!$C$7,'Growth-Model-4'!$AA$6,0)","v":4.4622206081802437E-2},{"$f":"IF(A44<='S4-PartialHarvest'!$C$9,$AD$6*EXP($AD$7*('S4-PartialHarvest'!C$9-'Growth-Model-4'!A44)),0)","v":2.2691325572025935E-8},174.17790844053482,4.3006890972971563E-2,5.6900921622744463,8.6355464364665711,494.23884499978288,{"$f":"M44/'S4-PartialHarvest'!$C$19","v":18.305142407399366},15.530019404979855,473.01800317455314,{"$f":"_xlfn.XLOOKUP(B44,FeedTables!$C$17:$T$17,FeedTables!$C$31:$T$31,,-1)","v":"Unga 4mm"},{"$f":"_xlfn.XLOOKUP(Q44,FeedPrice[Feed],FeedPrice[Price per kg],\"Unknown\",0)*O44","v":1542.5983804985894},49165.396753894587,{"$f":"_xlfn.XLOOKUP(O44,LabourFromFeed[Feed Quantity (kg)],LabourFromFeed[No. Labour],\"Out of range\",-1)","v":1},{"$f":"T44*OperatingCosts!$C$9","v":1200},51600]
[43,{"$f":"IF(A45<='S4-PartialHarvest'!$C$9, B44*EXP((LN((E44/100)+1))*1),)","v":130.38343282232677},{"$f":"_xlfn.XLOOKUP($B45,FeedTables!$C$42:$T$42,FeedTables!$C$44:$T$44,,-1)","v":2.8483614154897481},{"$f":"_xlfn.XLOOKUP($B45,FeedTables!$C$42:$T$42,FeedTables!$C$45:$T$45,,-1)","v":1.4306418063069479},{"$f":"_xlfn.XLOOKUP($B45,FeedTables!$C$42:$T$42,FeedTables!$C$46:$T$46,,-1)*_xlfn.XLOOKUP(N44,DensityMultiplier[Biomass kg/m3],DensityMultiplier[Multiplier],,-1)","v":1.9909675524179564},{"$f":"IF(A45>'S4-PartialHarvest'!$C$9,0,IF(A45='S4-PartialHarvest'!$C$7,(F44-G44-H44)*(1-'S4-PartialHarvest'!$C$8),(F44-G44-H44)))","v":3875.8220915594648},{"$f":"IF(A45<='S4-PartialHarvest'!$C$7,('Growth-Model-4'!G44*EXP($Z$7)),IF(A45<'S4-PartialHarvest'!$C$9,('Growth-Model-4'!G44*EXP($AA$7)),0))+IF(A45='S4-PartialHarvest'!$C$7,'Growth-Model-4'!$AA$6,0)","v":3.8406688700290084E-2},{"$f":"IF(A45<='S4-PartialHarvest'!$C$9,$AD$6*EXP($AD$7*('S4-PartialHarvest'!C$9-'Growth-Model-4'!A45)),0)","v":2.771524763998285E-8},174.21631515695037,4.3016374112827251E-2,5.0075995296914178,8.6405540359962618,505.34298930613346,{"$f":"M45/'S4-PartialHarvest'!$C$19","v":18.716407011338276},14.393994723278389,487.41199789783155,{"$f":"_xlfn.XLOOKUP(B45,FeedTables!$C$17:$T$17,FeedTables!$C$31:$T$31,,-1)","v":"Unga 4mm"},{"$f":"_xlfn.XLOOKUP(Q45,FeedPrice[Feed],FeedPrice[Price per kg],\"Unknown\",0)*O45","v":1429.7569352627147},50595.153689157305,{"$f":"_xlfn.XLOOKUP(O45,LabourFromFeed[Feed Quantity (kg)],LabourFromFeed[No. Labour],\"Out of range\",-1)","v":1},{"$f":"T45*OperatingCosts!$C$9","v":1200},52800]
[44,{"$f":"IF(A46<='S4-PartialHarvest'!$C$9, B45*EXP((LN((E45/100)+1))*1),)","v":132.97932466354797},{"$f":"_xlfn.XLOOKUP($B46,FeedTables!$C$42:$T$42,FeedTables!$C$44:$T$44,,-1)","v":2.8483614154897481},{"$f":"_xlfn.XLOOKUP($B46,FeedTables!$C$42:$T$42,FeedTables!$C$45:$T$45,,-1)","v":1.4306418063069479},{"$f":"_xlfn.XLOOKUP($B46,FeedTables!$C$42:$T$42,FeedTables!$C$46:$T$46,,-1)*_xlfn.XLOOKUP(N45,DensityMultiplier[Biomass kg/m3],DensityMultiplier[Multiplier],,-1)","v":1.9909675524179564},{"$f":"IF(A46>'S4-PartialHarvest'!$C$9,0,IF(A46='S4-PartialHarvest'!$C$7,(F45-G45-H45)*(1-'S4-PartialHarvest'!$C$8),(F45-G45-H45)))","v":3875.7836848430493},{"$f":"IF(A46<='S4-PartialHarvest'!$C$7,('Growth-Model-4'!G45*EXP($Z$7)),IF(A46<'S4-PartialHarvest'!$C$9,('Growth-Model-4'!G45*EXP($AA$7)),0))+IF(A46='S4-PartialHarvest'!$C$7,'Growth-Model-4'!$AA$6,0)","v":3.3056943312413808E-2},{"$f":"IF(A46<='S4-PartialHarvest'!$C$9,$AD$6*EXP($AD$7*('S4-PartialHarvest'!C$9-'Growth-Model-4'!A46)),0)","v":3.3851479910567162E-8},174.24937213411425,4.3024536329410924E-2,4.3958944986729138,8.6449499304949349,515.39909695242613,{"$f":"M46/'S4-PartialHarvest'!$C$19","v":19.088855442682448},14.680429013375504,502.09242691120704,{"$f":"_xlfn.XLOOKUP(B46,FeedTables!$C$17:$T$17,FeedTables!$C$31:$T$31,,-1)","v":"Unga 4mm"},{"$f":"_xlfn.XLOOKUP(Q46,FeedPrice[Feed],FeedPrice[Price per kg],\"Unknown\",0)*O46","v":1458.2084819414902},52053.362171098794,{"$f":"_xlfn.XLOOKUP(O46,LabourFromFeed[Feed Quantity (kg)],LabourFromFeed[No. Labour],\"Out of range\",-1)","v":1},{"$f":"T46*OperatingCosts!$C$9","v":1200},54000]
[45,{"$f":"IF(A47<='S4-PartialHarvest'!$C$9, B46*EXP((LN((E46/100)+1))*1),)","v":135.62689986902376},{"$f":"_xlfn.XLOOKUP($B47,FeedTables!$C$42:$T$42,FeedTables!$C$44:$T$44,,-1)","v":2.8483614154897481},{"$f":"_xlfn.XLOOKUP($B47,FeedTables!$C$42:$T$42,FeedTables!$C$45:$T$45,,-1)","v":1.4306418063069479},{"$f":"_xlfn.XLOOKUP($B47,FeedTables!$C$42:$T$42,FeedTables!$C$46:$T$46,,-1)*_xlfn.XLOOKUP(N46,DensityMultiplier[Biomass kg/m3],DensityMultiplier[Multiplier],,-1)","v":1.9909675524179564},{"$f":"IF(A47>'S4-PartialHarvest'!$C$9,0,IF(A47='S4-PartialHarvest'!$C$7,(F46-G46-H46)*(1-'S4-PartialHarvest'!$C$8),(F46-G46-H46)))","v":3875.7506278658857},{"$f":"IF(A47<='S4-PartialHarvest'!$C$7,('Growth-Model-4'!G46*EXP($Z$7)),IF(A47<'S4-PartialHarvest'!$C$9,('Growth-Model-4'!G46*EXP($AA$7)),0))+IF(A47='S4-PartialHarvest'!$C$7,'Growth-Model-4'!$AA$6,0)","v":2.8452374785225536E-2},{"$f":"IF(A47<='S4-PartialHarvest'!$C$9,$AD$6*EXP($AD$7*('S4-PartialHarvest'!C$9-'Growth-Model-4'!A47)),0)","v":4.1346290930570286E-8},174.27782455024575,4.303156161734463E-2,3.8589129937009798,8.6488088434886361,525.65604232287239,{"$f":"M47/'S4-PartialHarvest'!$C$19","v":19.468742308254534},14.972583887715157,517.06501079892223,{"$f":"_xlfn.XLOOKUP(B47,FeedTables!$C$17:$T$17,FeedTables!$C$31:$T$31,,-1)","v":"Unga 4mm"},{"$f":"_xlfn.XLOOKUP(Q47,FeedPrice[Feed],FeedPrice[Price per kg],\"Unknown\",0)*O47","v":1487.2282548251353},53540.590425923932,{"$f":"_xlfn.XLOOKUP(O47,LabourFromFeed[Feed Quantity (kg)],LabourFromFeed[No. Labour],\"Out of range\",-1)","v":1},{"$f":"T47*OperatingCosts!$C$9","v":1200},55200]
[46,{"$f":"IF(A48<='S4-PartialHarvest'!$C$9, B47*EXP((LN((E47/100)+1))*1),)","v":138.32718743776644},{"$f":"_xlfn.XLOOKUP($B48,FeedTables!$C$42:$T$42,FeedTables!$C$44:$T$44,,-1)","v":2.8483614154897481},{"$f":"_xlfn.XLOOKUP($B48,FeedTables!$C$42:$T$42,FeedTables!$C$45:$T$45,,-1)","v":1.4306418063069479},{"$f":"_xlfn.XLOOKUP($B48,FeedTables!$C$42:$T$42,FeedTables!$C$46:$T$46,,-1)*_xlfn.XLOOKUP(N47,DensityMultiplier[Biomass kg/m3],DensityMultiplier[Multiplier],,-1)","v":1.9909675524179564},{"$f":"IF(A48>'S4-PartialHarvest'!$C$9,0,IF(A48='S4-PartialHarvest'!$C$7,(F47-G47-H47)*(1-'S4-PartialHarvest'!$C$8),(F47-G47-H47)))","v":3875.7221754497546},{"$f":"IF(A48<='S4-PartialHarvest'!$C$7,('Growth-Model-4'!G47*EXP($Z$7)),IF(A48<'S4-PartialHarvest'!$C$9,('Growth-Model-4'!G47*EXP($AA$7)),0))+IF(A48='S4-PartialHarvest'!$C$7,'Growth-Model-4'!$AA$6,0)","v":2.4489185925878811E-2},{"$f":"IF(A48<='S4-PartialHarvest'!$C$9,$AD$6*EXP($AD$7*('S4-PartialHarvest'!C$9-'Growth-Model-4'!A48)),0)","v":5.0500473782291503E-8},174.3023137866721,4.3037608342388171E-2,3.3875271973558529,8.6521963706859921,536.11774782014618,{"$f":"M48/'S4-PartialHarvest'!$C$19","v":19.856212882227638},15.270571070501674,532.33558186942389,{"$f":"_xlfn.XLOOKUP(B48,FeedTables!$C$17:$T$17,FeedTables!$C$31:$T$31,,-1)","v":"Unga 4mm"},{"$f":"_xlfn.XLOOKUP(Q48,FeedPrice[Feed],FeedPrice[Price per kg],\"Unknown\",0)*O48","v":1516.8273514900384},55057.417777413968,{"$f":"_xlfn.XLOOKUP(O48,LabourFromFeed[Feed Quantity (kg)],LabourFromFeed[No. Labour],\"Out of range\",-1)","v":1},{"$f":"T48*OperatingCosts!$C$9","v":1200},56400]
[47,{"$f":"IF(A49<='S4-PartialHarvest'!$C$9, B48*EXP((LN((E48/100)+1))*1),)","v":141.08123685582476},{"$f":"_xlfn.XLOOKUP($B49,FeedTables!$C$42:$T$42,FeedTables!$C$44:$T$44,,-1)","v":2.8483614154897481},{"$f":"_xlfn.XLOOKUP($B49,FeedTables!$C$42:$T$42,FeedTables!$C$45:$T$45,,-1)","v":1.4306418063069479},{"$f":"_xlfn.XLOOKUP($B49,FeedTables!$C$42:$T$42,FeedTables!$C$46:$T$46,,-1)*_xlfn.XLOOKUP(N48,DensityMultiplier[Biomass kg/m3],DensityMultiplier[Multiplier],,-1)","v":1.9909675524179564},{"$f":"IF(A49>'S4-PartialHarvest'!$C$9,0,IF(A49='S4-PartialHarvest'!$C$7,(F48-G48-H48)*(1-'S4-PartialHarvest'!$C$8),(F48-G48-H48)))","v":3875.6976862133279},{"$f":"IF(A49<='S4-PartialHarvest'!$C$7,('Growth-Model-4'!G48*EXP($Z$7)),IF(A49<'S4-PartialHarvest'!$C$9,('Growth-Model-4'!G48*EXP($AA$7)),0))+IF(A49='S4-PartialHarvest'!$C$7,'Growth-Model-4'!$AA$6,0)","v":2.1078037662560157E-2},{"$f":"IF(A49<='S4-PartialHarvest'!$C$9,$AD$6*EXP($AD$7*('S4-PartialHarvest'!C$9-'Growth-Model-4'!A49)),0)","v":6.168141796608614E-8},174.32339188601608,4.3042812811361998E-2,2.9737243260183819,8.6551700950120107,546.78822325023452,{"$f":"M49/'S4-PartialHarvest'!$C$19","v":20.251415675934613},15.574504775501625,547.91008664492551,{"$f":"_xlfn.XLOOKUP(B49,FeedTables!$C$17:$T$17,FeedTables!$C$31:$T$31,,-1)","v":"Unga 4mm"},{"$f":"_xlfn.XLOOKUP(Q49,FeedPrice[Feed],FeedPrice[Price per kg],\"Unknown\",0)*O49","v":1547.017116801054},56604.434894215025,{"$f":"_xlfn.XLOOKUP(O49,LabourFromFeed[Feed Quantity (kg)],LabourFromFeed[No. Labour],\"Out of range\",-1)","v":1},{"$f":"T49*OperatingCosts!$C$9","v":1200},57600]
[48,{"$f":"IF(A50<='S4-PartialHarvest'!$C$9, B49*EXP((LN((E49/100)+1))*1),)","v":143.89011850417415},{"$f":"_xlfn.XLOOKUP($B50,FeedTables!$C$42:$T$42,FeedTables!$C$44:$T$44,,-1)","v":2.8483614154897481},{"$f":"_xlfn.XLOOKUP($B50,FeedTables!$C$42:$T$42,FeedTables!$C$45:$T$45,,-1)","v":1.4306418063069479},{"$f":"_xlfn.XLOOKUP($B50,FeedTables!$C$42:$T$42,FeedTables!$C$46:$T$46,,-1)*_xlfn.XLOOKUP(N49,DensityMultiplier[Biomass kg/m3],DensityMultiplier[Multiplier],,-1)","v":1.9909675524179564},{"$f":"IF(A50>'S4-PartialHarvest'!$C$9,0,IF(A50='S4-PartialHarvest'!$C$7,(F49-G49-H49)*(1-'S4-PartialHarvest'!$C$8),(F49-G49-H49)))","v":3875.676608113984},{"$f":"IF(A50<='S4-PartialHarvest'!$C$7,('Growth-Model-4'!G49*EXP($Z$7)),IF(A50<'S4-PartialHarvest'!$C$9,('Growth-Model-4'!G49*EXP($AA$7)),0))+IF(A50='S4-PartialHarvest'!$C$7,'Growth-Model-4'!$AA$6,0)","v":1.8142035143553309E-2},{"$f":"IF(A50<='S4-PartialHarvest'!$C$9,$AD$6*EXP($AD$7*('S4-PartialHarvest'!C$9-'Growth-Model-4'!A50)),0)","v":7.5337854031007821E-8},174.34153399649747,4.3047292344814192E-2,2.6104704270855223,8.6577805654390971,557.67156642537691,{"$f":"M50/'S4-PartialHarvest'!$C$19","v":20.654502460199144},15.884501723217717,563.7945883681432,{"$f":"_xlfn.XLOOKUP(B50,FeedTables!$C$17:$T$17,FeedTables!$C$31:$T$31,,-1)","v":"Unga 4mm"},{"$f":"_xlfn.XLOOKUP(Q50,FeedPrice[Feed],FeedPrice[Price per kg],\"Unknown\",0)*O50","v":1577.8091446173883},58182.24403883241,{"$f":"_xlfn.XLOOKUP(O50,LabourFromFeed[Feed Quantity (kg)],LabourFromFeed[No. Labour],\"Out of range\",-1)","v":1},{"$f":"T50*OperatingCosts!$C$9","v":1200},58800]
[49,{"$f":"IF(A51<='S4-PartialHarvest'!$C$9, B50*EXP((LN((E50/100)+1))*1),)","v":146.75492407472802},{"$f":"_xlfn.XLOOKUP($B51,FeedTables!$C$42:$T$42,FeedTables!$C$44:$T$44,,-1)","v":2.8483614154897481},{"$f":"_xlfn.XLOOKUP($B51,FeedTables!$C$42:$T$42,FeedTables!$C$45:$T$45,,-1)","v":1.4306418063069479},{"$f":"_xlfn.XLOOKUP($B51,FeedTables!$C$42:$T$42,FeedTables!$C$46:$T$46,,-1)*_xlfn.XLOOKUP(N50,DensityMultiplier[Biomass kg/m3],DensityMultiplier[Multiplier],,-1)","v":1.9909675524179564},{"$f":"IF(A51>'S4-PartialHarvest'!$C$9,0,IF(A51='S4-PartialHarvest'!$C$7,(F50-G50-H50)*(1-'S4-PartialHarvest'!$C$8),(F50-G50-H50)))","v":3875.6584660035023},{"$f":"IF(A51<='S4-PartialHarvest'!$C$7,('Growth-Model-4'!G50*EXP($Z$7)),IF(A51<'S4-PartialHarvest'!$C$9,('Growth-Model-4'!G50*EXP($AA$7)),0))+IF(A51='S4-PartialHarvest'!$C$7,'Growth-Model-4'!$AA$6,0)","v":1.5614994356640051E-2},{"$f":"IF(A51<='S4-PartialHarvest'!$C$9,$AD$6*EXP($AD$7*('S4-PartialHarvest'!C$9-'Growth-Model-4'!A51)),0)","v":9.2017862707341147E-8},174.35714908287198,4.3051147921696786E-2,2.2915908153104723,8.6600721562544081,568.77196391792086,{"$f":"M51/'S4-PartialHarvest'!$C$19","v":21.065628293256328},16.200681162361331,579.99526953050452,{"$f":"_xlfn.XLOOKUP(B51,FeedTables!$C$17:$T$17,FeedTables!$C$31:$T$31,,-1)","v":"Unga 4mm"},{"$f":"_xlfn.XLOOKUP(Q51,FeedPrice[Feed],FeedPrice[Price per kg],\"Unknown\",0)*O51","v":1609.2152799254673},59791.459318757879,{"$f":"_xlfn.XLOOKUP(O51,LabourFromFeed[Feed Quantity (kg)],LabourFromFeed[No. Labour],\"Out of range\",-1)","v":1},{"$f":"T51*OperatingCosts!$C$9","v":1200},60000]
[50,{"$f":"IF(A52<='S4-PartialHarvest'!$C$9, B51*EXP((LN((E51/100)+1))*1),)","v":149.67676699463149},{"$f":"_xlfn.XLOOKUP($B52,FeedTables!$C$42:$T$42,FeedTables!$C$44:$T$44,,-1)","v":2.8483614154897481},{"$f":"_xlfn.XLOOKUP($B52,FeedTables!$C$42:$T$42,FeedTables!$C$45:$T$45,,-1)","v":1.4306418063069479},{"$f":"_xlfn.XLOOKUP($B52,FeedTables!$C$42:$T$42,FeedTables!$C$46:$T$46,,-1)*_xlfn.XLOOKUP(N51,DensityMultiplier[Biomass kg/m3],DensityMultiplier[Multiplier],,-1)","v":1.9909675524179564},{"$f":"IF(A52>'S4-PartialHarvest'!$C$9,0,IF(A52='S4-PartialHarvest'!$C$7,(F51-G51-H51)*(1-'S4-PartialHarvest'!$C$8),(F51-G51-H51)))","v":3875.6428509171278},{"$f":"IF(A52<='S4-PartialHarvest'!$C$7,('Growth-Model-4'!G51*EXP($Z$7)),IF(A52<'S4-PartialHarvest'!$C$9,('Growth-Model-4'!G51*EXP($AA$7)),0))+IF(A52='S4-PartialHarvest'!$C$7,'Growth-Model-4'!$AA$6,0)","v":1.3439950194592355E-2},{"$f":"IF(A52<='S4-PartialHarvest'!$C$9,$AD$6*EXP($AD$7*('S4-PartialHarvest'!C$9-'Growth-Model-4'!A52)),0)","v":1.1239087131075024E-7},174.37058914545744,4.3054466455668503E-2,2.0116651159977095,8.6620838213704054,580.09369195113231,{"$f":"M52/'S4-PartialHarvest'!$C$19","v":21.484951553745642},16.52316489522601,596.51843442573056,{"$f":"_xlfn.XLOOKUP(B52,FeedTables!$C$17:$T$17,FeedTables!$C$31:$T$31,,-1)","v":"Unga 4mm"},{"$f":"_xlfn.XLOOKUP(Q52,FeedPrice[Feed],FeedPrice[Price per kg],\"Unknown\",0)*O52","v":1641.247621359289},61432.706940117168,{"$f":"_xlfn.XLOOKUP(O52,LabourFromFeed[Feed Quantity (kg)],LabourFromFeed[No. Labour],\"Out of range\",-1)","v":1},{"$f":"T52*OperatingCosts!$C$9","v":1200},61200]
[51,{"$f":"IF(A53<='S4-PartialHarvest'!$C$9, B52*EXP((LN((E52/100)+1))*1),)","v":152.65678285900285},{"$f":"_xlfn.XLOOKUP($B53,FeedTables!$C$42:$T$42,FeedTables!$C$44:$T$44,,-1)","v":2.8483614154897481},{"$f":"_xlfn.XLOOKUP($B53,FeedTables!$C$42:$T$42,FeedTables!$C$45:$T$45,,-1)","v":1.4306418063069479},{"$f":"_xlfn.XLOOKUP($B53,FeedTables!$C$42:$T$42,FeedTables!$C$46:$T$46,,-1)*_xlfn.XLOOKUP(N52,DensityMultiplier[Biomass kg/m3],DensityMultiplier[Multiplier],,-1)","v":1.9909675524179564},{"$f":"IF(A53>'S4-PartialHarvest'!$C$9,0,IF(A53='S4-PartialHarvest'!$C$7,(F52-G52-H52)*(1-'S4-PartialHarvest'!$C$8),(F52-G52-H52)))","v":3875.6294108545426},{"$f":"IF(A53<='S4-PartialHarvest'!$C$7,('Growth-Model-4'!G52*EXP($Z$7)),IF(A53<'S4-PartialHarvest'!$C$9,('Growth-Model-4'!G52*EXP($AA$7)),0))+IF(A53='S4-PartialHarvest'!$C$7,'Growth-Model-4'!$AA$6,0)","v":1.1567872335241147E-2},{"$f":"IF(A53<='S4-PartialHarvest'!$C$9,$AD$6*EXP($AD$7*('S4-PartialHarvest'!C$9-'Growth-Model-4'!A53)),0)","v":1.3727452021097544E-7},174.3821571550672,4.3057322754337581E-2,1.7659351311081979,8.6638497565015129,591.64111741478712,{"$f":"M53/'S4-PartialHarvest'!$C$19","v":21.912633978325449},16.852077306615193,613.37051173234579,{"$f":"_xlfn.XLOOKUP(B53,FeedTables!$C$17:$T$17,FeedTables!$C$31:$T$31,,-1)","v":"Unga 4mm"},{"$f":"_xlfn.XLOOKUP(Q53,FeedPrice[Feed],FeedPrice[Price per kg],\"Unknown\",0)*O53","v":1673.9185240738179},63106.625464190984,{"$f":"_xlfn.XLOOKUP(O53,LabourFromFeed[Feed Quantity (kg)],LabourFromFeed[No. Labour],\"Out of range\",-1)","v":1},{"$f":"T53*OperatingCosts!$C$9","v":1200},62400]
[52,{"$f":"IF(A54<='S4-PartialHarvest'!$C$9, B53*EXP((LN((E53/100)+1))*1),)","v":155.69612987229075},{"$f":"_xlfn.XLOOKUP($B54,FeedTables!$C$42:$T$42,FeedTables!$C$44:$T$44,,-1)","v":2.8483614154897481},{"$f":"_xlfn.XLOOKUP($B54,FeedTables!$C$42:$T$42,FeedTables!$C$45:$T$45,,-1)","v":1.4306418063069479},{"$f":"_xlfn.XLOOKUP($B54,FeedTables!$C$42:$T$42,FeedTables!$C$46:$T$46,,-1)*_xlfn.XLOOKUP(N53,DensityMultiplier[Biomass kg/m3],DensityMultiplier[Multiplier],,-1)","v":1.9909675524179564},{"$f":"IF(A54>'S4-PartialHarvest'!$C$9,0,IF(A54='S4-PartialHarvest'!$C$7,(F53-G53-H53)*(1-'S4-PartialHarvest'!$C$8),(F53-G53-H53)))","v":3875.617842844933},{"$f":"IF(A54<='S4-PartialHarvest'!$C$7,('Growth-Model-4'!G53*EXP($Z$7)),IF(A54<'S4-PartialHarvest'!$C$9,('Growth-Model-4'!G53*EXP($AA$7)),0))+IF(A54='S4-PartialHarvest'!$C$7,'Growth-Model-4'!$AA$6,0)","v":9.9565599892088158E-3},{"$f":"IF(A54<='S4-PartialHarvest'!$C$9,$AD$6*EXP($AD$7*('S4-PartialHarvest'!C$9-'Growth-Model-4'!A54)),0)","v":1.6766747761079924E-7},174.39211388272389,4.3059781205610839E-2,1.550223962338479,8.6653999804638513,603.41869899495202,{"$f":"M54/'S4-PartialHarvest'!$C$19","v":22.348840703516743},17.187545396022436,630.5580571283682,{"$f":"_xlfn.XLOOKUP(B54,FeedTables!$C$17:$T$17,FeedTables!$C$31:$T$31,,-1)","v":"Unga 4mm"},{"$f":"_xlfn.XLOOKUP(Q54,FeedPrice[Feed],FeedPrice[Price per kg],\"Unknown\",0)*O54","v":1707.2406029414483},64813.866067132432,{"$f":"_xlfn.XLOOKUP(O54,LabourFromFeed[Feed Quantity (kg)],LabourFromFeed[No. Labour],\"Out of range\",-1)","v":1},{"$f":"T54*OperatingCosts!$C$9","v":1200},63600]
[53,{"$f":"IF(A55<='S4-PartialHarvest'!$C$9, B54*EXP((LN((E54/100)+1))*1),)","v":158.79598929841859},{"$f":"_xlfn.XLOOKUP($B55,FeedTables!$C$42:$T$42,FeedTables!$C$44:$T$44,,-1)","v":2.8483614154897481},{"$f":"_xlfn.XLOOKUP($B55,FeedTables!$C$42:$T$42,FeedTables!$C$45:$T$45,,-1)","v":1.4306418063069479},{"$f":"_xlfn.XLOOKUP($B55,FeedTables!$C$42:$T$42,FeedTables!$C$46:$T$46,,-1)*_xlfn.XLOOKUP(N54,DensityMultiplier[Biomass kg/m3],DensityMultiplier[Multiplier],,-1)","v":1.9909675524179564},{"$f":"IF(A55>'S4-PartialHarvest'!$C$9,0,IF(A55='S4-PartialHarvest'!$C$7,(F54-G54-H54)*(1-'S4-PartialHarvest'!$C$8),(F54-G54-H54)))","v":3875.6078861172759},{"$f":"IF(A55<='S4-PartialHarvest'!$C$7,('Growth-Model-4'!G54*EXP($Z$7)),IF(A55<'S4-PartialHarvest'!$C$9,('Growth-Model-4'!G54*EXP($AA$7)),0))+IF(A55='S4-PartialHarvest'!$C$7,'Growth-Model-4'!$AA$6,0)","v":8.5696906004666153E-3},{"$f":"IF(A55<='S4-PartialHarvest'!$C$9,$AD$6*EXP($AD$7*('S4-PartialHarvest'!C$9-'Growth-Model-4'!A55)),0)","v":2.0478951960758856E-7},174.40068377811389,4.3061897229163926E-2,1.360865016636819,8.6667608454804874,615.43098840874563,{"$f":"M55/'S4-PartialHarvest'!$C$19","v":22.793740311435023},17.529698812801893,648.08775594117014,{"$f":"_xlfn.XLOOKUP(B55,FeedTables!$C$17:$T$17,FeedTables!$C$31:$T$31,,-1)","v":"Unga 4mm"},{"$f":"_xlfn.XLOOKUP(Q55,FeedPrice[Feed],FeedPrice[Price per kg],\"Unknown\",0)*O55","v":1741.2267360454935},66555.092803177919,{"$f":"_xlfn.XLOOKUP(O55,LabourFromFeed[Feed Quantity (kg)],LabourFromFeed[No. Labour],\"Out of range\",-1)","v":1},{"$f":"T55*OperatingCosts!$C$9","v":1200},64800]
[54,{"$f":"IF(A56<='S4-PartialHarvest'!$C$9, B55*EXP((LN((E55/100)+1))*1),)","v":161.95756591989121},{"$f":"_xlfn.XLOOKUP($B56,FeedTables!$C$42:$T$42,FeedTables!$C$44:$T$44,,-1)","v":2.8483614154897481},{"$f":"_xlfn.XLOOKUP($B56,FeedTables!$C$42:$T$42,FeedTables!$C$45:$T$45,,-1)","v":1.4306418063069479},{"$f":"_xlfn.XLOOKUP($B56,FeedTables!$C$42:$T$42,FeedTables!$C$46:$T$46,,-1)*_xlfn.XLOOKUP(N55,DensityMultiplier[Biomass kg/m3],DensityMultiplier[Multiplier],,-1)","v":1.9909675524179564},{"$f":"IF(A56>'S4-PartialHarvest'!$C$9,0,IF(A56='S4-PartialHarvest'!$C$7,(F55-G55-H55)*(1-'S4-PartialHarvest'!$C$8),(F55-G55-H55)))","v":3875.5993162218861},{"$f":"IF(A56<='S4-PartialHarvest'!$C$7,('Growth-Model-4'!G55*EXP($Z$7)),IF(A56<'S4-PartialHarvest'!$C$9,('Growth-Model-4'!G55*EXP($AA$7)),0))+IF(A56='S4-PartialHarvest'!$C$7,'Growth-Model-4'!$AA$6,0)","v":7.376001055316459E-3},{"$f":"IF(A56<='S4-PartialHarvest'!$C$9,$AD$6*EXP($AD$7*('S4-PartialHarvest'!C$9-'Growth-Model-4'!A56)),0)","v":2.5013048409100468E-7},174.40806002929969,4.3063718525753011E-2,1.1946396876659682,8.6679554851681537,627.68263173609148,{"$f":"M56/'S4-PartialHarvest'!$C$19","v":23.247504879114498},17.878669894101439,665.96642583527159,{"$f":"_xlfn.XLOOKUP(B56,FeedTables!$C$17:$T$17,FeedTables!$C$31:$T$31,,-1)","v":"Unga 4mm"},{"$f":"_xlfn.XLOOKUP(Q56,FeedPrice[Feed],FeedPrice[Price per kg],\"Unknown\",0)*O56","v":1775.8900684480852},68330.982871626009,{"$f":"_xlfn.XLOOKUP(O56,LabourFromFeed[Feed Quantity (kg)],LabourFromFeed[No. Labour],\"Out of range\",-1)","v":1},{"$f":"T56*OperatingCosts!$C$9","v":1200},66000]
[55,{"$f":"IF(A57<='S4-PartialHarvest'!$C$9, B56*EXP((LN((E56/100)+1))*1),)","v":165.18208850604219},{"$f":"_xlfn.XLOOKUP($B57,FeedTables!$C$42:$T$42,FeedTables!$C$44:$T$44,,-1)","v":2.8483614154897481},{"$f":"_xlfn.XLOOKUP($B57,FeedTables!$C$42:$T$42,FeedTables!$C$45:$T$45,,-1)","v":1.4306418063069479},{"$f":"_xlfn.XLOOKUP($B57,FeedTables!$C$42:$T$42,FeedTables!$C$46:$T$46,,-1)*_xlfn.XLOOKUP(N56,DensityMultiplier[Biomass kg/m3],DensityMultiplier[Multiplier],,-1)","v":1.9909675524179564},{"$f":"IF(A57>'S4-PartialHarvest'!$C$9,0,IF(A57='S4-PartialHarvest'!$C$7,(F56-G56-H56)*(1-'S4-PartialHarvest'!$C$8),(F56-G56-H56)))","v":3875.5919399707},{"$f":"IF(A57<='S4-PartialHarvest'!$C$7,('Growth-Model-4'!G56*EXP($Z$7)),IF(A57<'S4-PartialHarvest'!$C$9,('Growth-Model-4'!G56*EXP($AA$7)),0))+IF(A57='S4-PartialHarvest'!$C$7,'Growth-Model-4'!$AA$6,0)","v":6.3485829424305201E-3},{"$f":"IF(A57<='S4-PartialHarvest'!$C$9,$AD$6*EXP($AD$7*('S4-PartialHarvest'!C$9-'Growth-Model-4'!A57)),0)","v":3.0551006316869138E-7},174.41440891775218,4.3065286152531405E-2,1.0487226542748018,8.6690042078224288,640.17837084154394,{"$f":"M57/'S4-PartialHarvest'!$C$19","v":23.710310031168294},18.234593705361409,684.20101954063296,{"$f":"_xlfn.XLOOKUP(B57,FeedTables!$C$17:$T$17,FeedTables!$C$31:$T$31,,-1)","v":"Unga 4mm"},{"$f":"_xlfn.XLOOKUP(Q57,FeedPrice[Feed],FeedPrice[Price per kg],\"Unknown\",0)*O57","v":1811.2440162129192},70142.22688783893,{"$f":"_xlfn.XLOOKUP(O57,LabourFromFeed[Feed Quantity (kg)],LabourFromFeed[No. Labour],\"Out of range\",-1)","v":1},{"$f":"T57*OperatingCosts!$C$9","v":1200},67200]
[56,{"$f":"IF(A58<='S4-PartialHarvest'!$C$9, B57*EXP((LN((E57/100)+1))*1),)","v":168.47081029060382},{"$f":"_xlfn.XLOOKUP($B58,FeedTables!$C$42:$T$42,FeedTables!$C$44:$T$44,,-1)","v":2.8483614154897481},{"$f":"_xlfn.XLOOKUP($B58,FeedTables!$C$42:$T$42,FeedTables!$C$45:$T$45,,-1)","v":1.4306418063069479},{"$f":"_xlfn.XLOOKUP($B58,FeedTables!$C$42:$T$42,FeedTables!$C$46:$T$46,,-1)*_xlfn.XLOOKUP(N57,DensityMultiplier[Biomass kg/m3],DensityMultiplier[Multiplier],,-1)","v":1.9909675524179564},{"$f":"IF(A58>'S4-PartialHarvest'!$C$9,0,IF(A58='S4-PartialHarvest'!$C$7,(F57-G57-H57)*(1-'S4-PartialHarvest'!$C$8),(F57-G57-H57)))","v":3875.5855910822474},{"$f":"IF(A58<='S4-PartialHarvest'!$C$7,('Growth-Model-4'!G57*EXP($Z$7)),IF(A58<'S4-PartialHarvest'!$C$9,('Growth-Model-4'!G57*EXP($AA$7)),0))+IF(A58='S4-PartialHarvest'!$C$7,'Growth-Model-4'!$AA$6,0)","v":5.4642759775460122E-3},{"$f":"IF(A58<='S4-PartialHarvest'!$C$9,$AD$6*EXP($AD$7*('S4-PartialHarvest'!C$9-'Growth-Model-4'!A58)),0)","v":3.7315083379992847E-7},174.41987356688057,4.3066635448612486E-2,0.92063386661198887,8.6699248416890402,652.923044880215,{"$f":"M58/'S4-PartialHarvest'!$C$19","v":24.182334995563519},18.597608083208854,702.79862762384187,{"$f":"_xlfn.XLOOKUP(B58,FeedTables!$C$17:$T$17,FeedTables!$C$31:$T$31,,-1)","v":"Unga 4mm"},{"$f":"_xlfn.XLOOKUP(Q58,FeedPrice[Feed],FeedPrice[Price per kg],\"Unknown\",0)*O58","v":1847.3022706659438},71989.529158504869,{"$f":"_xlfn.XLOOKUP(O58,LabourFromFeed[Feed Quantity (kg)],LabourFromFeed[No. Labour],\"Out of range\",-1)","v":1},{"$f":"T58*OperatingCosts!$C$9","v":1200},68400]
[57,{"$f":"IF(A59<='S4-PartialHarvest'!$C$9, B58*EXP((LN((E58/100)+1))*1),)","v":171.82500945878536},{"$f":"_xlfn.XLOOKUP($B59,FeedTables!$C$42:$T$42,FeedTables!$C$44:$T$44,,-1)","v":2.5479057505037064},{"$f":"_xlfn.XLOOKUP($B59,FeedTables!$C$42:$T$42,FeedTables!$C$45:$T$45,,-1)","v":1.4641748046312828},{"$f":"_xlfn.XLOOKUP($B59,FeedTables!$C$42:$T$42,FeedTables!$C$46:$T$46,,-1)*_xlfn.XLOOKUP(N58,DensityMultiplier[Biomass kg/m3],DensityMultiplier[Multiplier],,-1)","v":1.74016500109448},{"$f":"IF(A59>'S4-PartialHarvest'!$C$9,0,IF(A59='S4-PartialHarvest'!$C$7,(F58-G58-H58)*(1-'S4-PartialHarvest'!$C$8),(F58-G58-H58)))","v":3875.5801264331194},{"$f":"IF(A59<='S4-PartialHarvest'!$C$7,('Growth-Model-4'!G58*EXP($Z$7)),IF(A59<'S4-PartialHarvest'!$C$9,('Growth-Model-4'!G58*EXP($AA$7)),0))+IF(A59='S4-PartialHarvest'!$C$7,'Growth-Model-4'!$AA$6,0)","v":4.703145919261683E-3},{"$f":"IF(A59<='S4-PartialHarvest'!$C$9,$AD$6*EXP($AD$7*('S4-PartialHarvest'!C$9-'Growth-Model-4'!A59)),0)","v":4.5576745761299938E-7},174.42457716856728,4.3067796831745005E-2,0.80819640431090178,8.6707330380933509,665.92159188265134,{"$f":"M59/'S4-PartialHarvest'!$C$19","v":24.663762662320419},16.967054533423894,719.76568215726581,{"$f":"_xlfn.XLOOKUP(B59,FeedTables!$C$17:$T$17,FeedTables!$C$31:$T$31,,-1)","v":"Unga 4mm"},{"$f":"_xlfn.XLOOKUP(Q59,FeedPrice[Feed],FeedPrice[Price per kg],\"Unknown\",0)*O59","v":1685.3392235104488},73674.868382015324,{"$f":"_xlfn.XLOOKUP(O59,LabourFromFeed[Feed Quantity (kg)],LabourFromFeed[No. Labour],\"Out of range\",-1)","v":1},{"$f":"T59*OperatingCosts!$C$9","v":1200},69600]
[58,{"$f":"IF(A60<='S4-PartialHarvest'!$C$9, B59*EXP((LN((E59/100)+1))*1),)","v":174.81504813651443},{"$f":"_xlfn.XLOOKUP($B60,FeedTables!$C$42:$T$42,FeedTables!$C$44:$T$44,,-1)","v":2.5479057505037064},{"$f":"_xlfn.XLOOKUP($B60,FeedTables!$C$42:$T$42,FeedTables!$C$45:$T$45,,-1)","v":1.4641748046312828},{"$f":"_xlfn.XLOOKUP($B60,FeedTables!$C$42:$T$42,FeedTables!$C$46:$T$46,,-1)*_xlfn.XLOOKUP(N59,DensityMultiplier[Biomass kg/m3],DensityMultiplier[Multiplier],,-1)","v":1.74016500109448},{"$f":"IF(A60>'S4-PartialHarvest'!$C$9,0,IF(A60='S4-PartialHarvest'!$C$7,(F59-G59-H59)*(1-'S4-PartialHarvest'!$C$8),(F59-G59-H59)))","v":3875.5754228314327},{"$f":"IF(A60<='S4-PartialHarvest'!$C$7,('Growth-Model-4'!G59*EXP($Z$7)),IF(A60<'S4-PartialHarvest'!$C$9,('Growth-Model-4'!G59*EXP($AA$7)),0))+IF(A60='S4-PartialHarvest'!$C$7,'Growth-Model-4'!$AA$6,0)","v":4.0480352069994915E-3},{"$f":"IF(A60<='S4-PartialHarvest'!$C$9,$AD$6*EXP($AD$7*('S4-PartialHarvest'!C$9-'Growth-Model-4'!A60)),0)","v":5.5667562980816536E-7},174.4286257604499,4.3068796484061707E-2,0.70775478484694254,8.6714407928781974,677.5089040989692,{"$f":"M60/'S4-PartialHarvest'!$C$19","v":25.092922374035897},17.262288327712277,737.02797048497814,{"$f":"_xlfn.XLOOKUP(B60,FeedTables!$C$17:$T$17,FeedTables!$C$31:$T$31,,-1)","v":"Unga 4mm"},{"$f":"_xlfn.XLOOKUP(Q60,FeedPrice[Feed],FeedPrice[Price per kg],\"Unknown\",0)*O60","v":1714.6648258204932},75389.533207835819,{"$f":"_xlfn.XLOOKUP(O60,LabourFromFeed[Feed Quantity (kg)],LabourFromFeed[No. Labour],\"Out of range\",-1)","v":1},{"$f":"T60*OperatingCosts!$C$9","v":1200},70800]
[59,{"$f":"IF(A61<='S4-PartialHarvest'!$C$9, B60*EXP((LN((E60/100)+1))*1),)","v":177.85711842083253},{"$f":"_xlfn.XLOOKUP($B61,FeedTables!$C$42:$T$42,FeedTables!$C$44:$T$44,,-1)","v":2.5479057505037064},{"$f":"_xlfn.XLOOKUP($B61,FeedTables!$C$42:$T$42,FeedTables!$C$45:$T$45,,-1)","v":1.4641748046312828},{"$f":"_xlfn.XLOOKUP($B61,FeedTables!$C$42:$T$42,FeedTables!$C$46:$T$46,,-1)*_xlfn.XLOOKUP(N60,DensityMultiplier[Biomass kg/m3],DensityMultiplier[Multiplier],,-1)","v":1.6879600510616455},{"$f":"IF(A61>'S4-PartialHarvest'!$C$9,0,IF(A61='S4-PartialHarvest'!$C$7,(F60-G60-H60)*(1-'S4-PartialHarvest'!$C$8),(F60-G60-H60)))","v":3875.5713742395501},{"$f":"IF(A61<='S4-PartialHarvest'!$C$7,('Growth-Model-4'!G60*EXP($Z$7)),IF(A61<'S4-PartialHarvest'!$C$9,('Growth-Model-4'!G60*EXP($AA$7)),0))+IF(A61='S4-PartialHarvest'!$C$7,'Growth-Model-4'!$AA$6,0)","v":3.4841761915139222E-3},{"$f":"IF(A61<='S4-PartialHarvest'!$C$9,$AD$6*EXP($AD$7*('S4-PartialHarvest'!C$9-'Growth-Model-4'!A61)),0)","v":6.7992514964824237E-7},174.43211061656655,4.306965694236211E-2,0.61980646702099529,8.6720605993452189,689.29795685651231,{"$f":"M61/'S4-PartialHarvest'!$C$19","v":25.529553957648606},17.562662280851633,754.59063276582981,{"$f":"_xlfn.XLOOKUP(B61,FeedTables!$C$17:$T$17,FeedTables!$C$31:$T$31,,-1)","v":"Unga 4mm"},{"$f":"_xlfn.XLOOKUP(Q61,FeedPrice[Feed],FeedPrice[Price per kg],\"Unknown\",0)*O61","v":1744.5010006232208},77134.034208459037,{"$f":"_xlfn.XLOOKUP(O61,LabourFromFeed[Feed Quantity (kg)],LabourFromFeed[No. Labour],\"Out of range\",-1)","v":1},{"$f":"T61*OperatingCosts!$C$9","v":1200},72000]
[60,{"$f":"IF(A62<='S4-PartialHarvest'!$C$9, B61*EXP((LN((E61/100)+1))*1),)","v":180.85927552774558},{"$f":"_xlfn.XLOOKUP($B62,FeedTables!$C$42:$T$42,FeedTables!$C$44:$T$44,,-1)","v":2.5479057505037064},{"$f":"_xlfn.XLOOKUP($B62,FeedTables!$C$42:$T$42,FeedTables!$C$45:$T$45,,-1)","v":1.4641748046312828},{"$f":"_xlfn.XLOOKUP($B62,FeedTables!$C$42:$T$42,FeedTables!$C$46:$T$46,,-1)*_xlfn.XLOOKUP(N61,DensityMultiplier[Biomass kg/m3],DensityMultiplier[Multiplier],,-1)","v":1.6879600510616455},{"$f":"IF(A62>'S4-PartialHarvest'!$C$9,0,IF(A62='S4-PartialHarvest'!$C$7,(F61-G61-H61)*(1-'S4-PartialHarvest'!$C$8),(F61-G61-H61)))","v":3875.5678893834333},{"$f":"IF(A62<='S4-PartialHarvest'!$C$7,('Growth-Model-4'!G61*EXP($Z$7)),IF(A62<'S4-PartialHarvest'!$C$9,('Growth-Model-4'!G61*EXP($AA$7)),0))+IF(A62='S4-PartialHarvest'!$C$7,'Growth-Model-4'!$AA$6,0)","v":2.9988582393063127E-3},{"$f":"IF(A62<='S4-PartialHarvest'!$C$9,$AD$6*EXP($AD$7*('S4-PartialHarvest'!C$9-'Growth-Model-4'!A62)),0)","v":8.3046245312283025E-7},174.4351103052683,4.3070397606239083E-2,0.54252152540897525,8.6726031208706278,700.93240073248171,{"$f":"M62/'S4-PartialHarvest'!$C$19","v":25.960459286388211},17.859096945406584,772.44972971123639,{"$f":"_xlfn.XLOOKUP(B62,FeedTables!$C$17:$T$17,FeedTables!$C$31:$T$31,,-1)","v":"Unga 4mm"},{"$f":"_xlfn.XLOOKUP(Q62,FeedPrice[Feed],FeedPrice[Price per kg],\"Unknown\",0)*O62","v":1773.9458854969305},78907.980093955965,{"$f":"_xlfn.XLOOKUP(O62,LabourFromFeed[Feed Quantity (kg)],LabourFromFeed[No. Labour],\"Out of range\",-1)","v":1},{"$f":"T62*OperatingCosts!$C$9","v":1200},73200]
[61,{"$f":"IF(A63<='S4-PartialHarvest'!$C$9, B62*EXP((LN((E62/100)+1))*1),)","v":183.91210784729344},{"$f":"_xlfn.XLOOKUP($B63,FeedTables!$C$42:$T$42,FeedTables!$C$44:$T$44,,-1)","v":2.5479057505037064},{"$f":"_xlfn.XLOOKUP($B63,FeedTables!$C$42:$T$42,FeedTables!$C$45:$T$45,,-1)","v":1.4641748046312828},{"$f":"_xlfn.XLOOKUP($B63,FeedTables!$C$42:$T$42,FeedTables!$C$46:$T$46,,-1)*_xlfn.XLOOKUP(N62,DensityMultiplier[Biomass kg/m3],DensityMultiplier[Multiplier],,-1)","v":1.6879600510616455},{"$f":"IF(A63>'S4-PartialHarvest'!$C$9,0,IF(A63='S4-PartialHarvest'!$C$7,(F62-G62-H62)*(1-'S4-PartialHarvest'!$C$8),(F62-G62-H62)))","v":3875.5648896947318},{"$f":"IF(A63<='S4-PartialHarvest'!$C$7,('Growth-Model-4'!G62*EXP($Z$7)),IF(A63<'S4-PartialHarvest'!$C$9,('Growth-Model-4'!G62*EXP($AA$7)),0))+IF(A63='S4-PartialHarvest'!$C$7,'Growth-Model-4'!$AA$6,0)","v":2.5811412067389483E-3},{"$f":"IF(A63<='S4-PartialHarvest'!$C$9,$AD$6*EXP($AD$7*('S4-PartialHarvest'!C$9-'Growth-Model-4'!A63)),0)","v":1.014329130792685E-6},174.43769246080419,4.3071035175507207E-2,0.47488966739136157,8.6730780105380187,712.76330796272146,{"$f":"M63/'S4-PartialHarvest'!$C$19","v":26.39864103565635},18.160537311062622,790.61026702229901,{"$f":"_xlfn.XLOOKUP(B63,FeedTables!$C$17:$T$17,FeedTables!$C$31:$T$31,,-1)","v":"Unga 4mm"},{"$f":"_xlfn.XLOOKUP(Q63,FeedPrice[Feed],FeedPrice[Price per kg],\"Unknown\",0)*O63","v":1803.8879871615813},80711.868081117544,{"$f":"_xlfn.XLOOKUP(O63,LabourFromFeed[Feed Quantity (kg)],LabourFromFeed[No. Labour],\"Out of range\",-1)","v":1},{"$f":"T63*OperatingCosts!$C$9","v":1200},74400]
[62,{"$f":"IF(A64<='S4-PartialHarvest'!$C$9, B63*EXP((LN((E63/100)+1))*1),)","v":187.01647075682115},{"$f":"_xlfn.XLOOKUP($B64,FeedTables!$C$42:$T$42,FeedTables!$C$44:$T$44,,-1)","v":2.5479057505037064},{"$f":"_xlfn.XLOOKUP($B64,FeedTables!$C$42:$T$42,FeedTables!$C$45:$T$45,,-1)","v":1.4641748046312828},{"$f":"_xlfn.XLOOKUP($B64,FeedTables!$C$42:$T$42,FeedTables!$C$46:$T$46,,-1)*_xlfn.XLOOKUP(N63,DensityMultiplier[Biomass kg/m3],DensityMultiplier[Multiplier],,-1)","v":1.6879600510616455},{"$f":"IF(A64>'S4-PartialHarvest'!$C$9,0,IF(A64='S4-PartialHarvest'!$C$7,(F63-G63-H63)*(1-'S4-PartialHarvest'!$C$8),(F63-G63-H63)))","v":3875.5623075391964},{"$f":"IF(A64<='S4-PartialHarvest'!$C$7,('Growth-Model-4'!G63*EXP($Z$7)),IF(A64<'S4-PartialHarvest'!$C$9,('Growth-Model-4'!G63*EXP($AA$7)),0))+IF(A64='S4-PartialHarvest'!$C$7,'Growth-Model-4'!$AA$6,0)","v":2.2216088249196121E-3},{"$f":"IF(A64<='S4-PartialHarvest'!$C$9,$AD$6*EXP($AD$7*('S4-PartialHarvest'!C$9-'Growth-Model-4'!A64)),0)","v":1.2389043980323943E-6},174.4399153085335,4.3071584026798393E-2,0.41570913736679954,8.6734937196753847,724.79398495414239,{"$f":"M64/'S4-PartialHarvest'!$C$19","v":26.844221664968238},18.467067621951561,809.07733464425053,{"$f":"_xlfn.XLOOKUP(B64,FeedTables!$C$17:$T$17,FeedTables!$C$31:$T$31,,-1)","v":"Unga 4mm"},{"$f":"_xlfn.XLOOKUP(Q64,FeedPrice[Feed],FeedPrice[Price per kg],\"Unknown\",0)*O64","v":1834.3356735952107},82546.203754712755,{"$f":"_xlfn.XLOOKUP(O64,LabourFromFeed[Feed Quantity (kg)],LabourFromFeed[No. Labour],\"Out of range\",-1)","v":1},{"$f":"T64*OperatingCosts!$C$9","v":1200},75600]
[63,{"$f":"IF(A65<='S4-PartialHarvest'!$C$9, B64*EXP((LN((E64/100)+1))*1),)","v":190.17323407210168},{"$f":"_xlfn.XLOOKUP($B65,FeedTables!$C$42:$T$42,FeedTables!$C$44:$T$44,,-1)","v":2.5479057505037064},{"$f":"_xlfn.XLOOKUP($B65,FeedTables!$C$42:$T$42,FeedTables!$C$45:$T$45,,-1)","v":1.4641748046312828},{"$f":"_xlfn.XLOOKUP($B65,FeedTables!$C$42:$T$42,FeedTables!$C$46:$T$46,,-1)*_xlfn.XLOOKUP(N64,DensityMultiplier[Biomass kg/m3],DensityMultiplier[Multiplier],,-1)","v":1.6879600510616455},{"$f":"IF(A65>'S4-PartialHarvest'!$C$9,0,IF(A65='S4-PartialHarvest'!$C$7,(F64-G64-H64)*(1-'S4-PartialHarvest'!$C$8),(F64-G64-H64)))","v":3875.5600846914667},{"$f":"IF(A65<='S4-PartialHarvest'!$C$7,('Growth-Model-4'!G64*EXP($Z$7)),IF(A65<'S4-PartialHarvest'!$C$9,('Growth-Model-4'!G64*EXP($AA$7)),0))+IF(A65='S4-PartialHarvest'!$C$7,'Growth-Model-4'!$AA$6,0)","v":1.9121564361046098E-3},{"$f":"IF(A65<='S4-PartialHarvest'!$C$9,$AD$6*EXP($AD$7*('S4-PartialHarvest'!C$9-'Growth-Model-4'!A65)),0)","v":1.5132012488535304E-6},174.44182897817086,4.3072056537819967E-2,0.36392874388109414,8.6738576484192667,737.02779514652457,{"$f":"M65/'S4-PartialHarvest'!$C$19","v":27.297325746167576},18.778773575348975,827.85610821959949,{"$f":"_xlfn.XLOOKUP(B65,FeedTables!$C$17:$T$17,FeedTables!$C$31:$T$31,,-1)","v":"Unga 4mm"},{"$f":"_xlfn.XLOOKUP(Q65,FeedPrice[Feed],FeedPrice[Price per kg],\"Unknown\",0)*O65","v":1865.2974571167713},84411.501211829527,{"$f":"_xlfn.XLOOKUP(O65,LabourFromFeed[Feed Quantity (kg)],LabourFromFeed[No. Labour],\"Out of range\",-1)","v":1},{"$f":"T65*OperatingCosts!$C$9","v":1200},76800]
[64,{"$f":"IF(A66<='S4-PartialHarvest'!$C$9, B65*EXP((LN((E65/100)+1))*1),)","v":193.3832822910507},{"$f":"_xlfn.XLOOKUP($B66,FeedTables!$C$42:$T$42,FeedTables!$C$44:$T$44,,-1)","v":2.5479057505037064},{"$f":"_xlfn.XLOOKUP($B66,FeedTables!$C$42:$T$42,FeedTables!$C$45:$T$45,,-1)","v":1.4641748046312828},{"$f":"_xlfn.XLOOKUP($B66,FeedTables!$C$42:$T$42,FeedTables!$C$46:$T$46,,-1)*_xlfn.XLOOKUP(N65,DensityMultiplier[Biomass kg/m3],DensityMultiplier[Multiplier],,-1)","v":1.6879600510616455},{"$f":"IF(A66>'S4-PartialHarvest'!$C$9,0,IF(A66='S4-PartialHarvest'!$C$7,(F65-G65-H65)*(1-'S4-PartialHarvest'!$C$8),(F65-G65-H65)))","v":3875.5581710218294},{"$f":"IF(A66<='S4-PartialHarvest'!$C$7,('Growth-Model-4'!G65*EXP($Z$7)),IF(A66<'S4-PartialHarvest'!$C$9,('Growth-Model-4'!G65*EXP($AA$7)),0))+IF(A66='S4-PartialHarvest'!$C$7,'Growth-Model-4'!$AA$6,0)","v":1.645808296727749E-3},{"$f":"IF(A66<='S4-PartialHarvest'!$C$9,$AD$6*EXP($AD$7*('S4-PartialHarvest'!C$9-'Growth-Model-4'!A66)),0)","v":1.8482281790011143E-6},174.44347663469577,4.3072463366591547E-2,0.31862922687473366,8.6741762776461417,749.46815982210262,{"$f":"M66/'S4-PartialHarvest'!$C$19","v":27.758079993411208},19.095742342301662,846.95185056190121,{"$f":"_xlfn.XLOOKUP(B66,FeedTables!$C$17:$T$17,FeedTables!$C$31:$T$31,,-1)","v":"Unga 4mm"},{"$f":"_xlfn.XLOOKUP(Q66,FeedPrice[Feed],FeedPrice[Price per kg],\"Unknown\",0)*O66","v":1896.7819964350583},86308.283208264591,{"$f":"_xlfn.XLOOKUP(O66,LabourFromFeed[Feed Quantity (kg)],LabourFromFeed[No. Labour],\"Out of range\",-1)","v":1},{"$f":"T66*OperatingCosts!$C$9","v":1200},78000]
[65,{"$f":"IF(A67<='S4-PartialHarvest'!$C$9, B66*EXP((LN((E66/100)+1))*1),)","v":196.64751484155542},{"$f":"_xlfn.XLOOKUP($B67,FeedTables!$C$42:$T$42,FeedTables!$C$44:$T$44,,-1)","v":2.5479057505037064},{"$f":"_xlfn.XLOOKUP($B67,FeedTables!$C$42:$T$42,FeedTables!$C$45:$T$45,,-1)","v":1.4641748046312828},{"$f":"_xlfn.XLOOKUP($B67,FeedTables!$C$42:$T$42,FeedTables!$C$46:$T$46,,-1)*_xlfn.XLOOKUP(N66,DensityMultiplier[Biomass kg/m3],DensityMultiplier[Multiplier],,-1)","v":1.6879600510616455},{"$f":"IF(A67>'S4-PartialHarvest'!$C$9,0,IF(A67='S4-PartialHarvest'!$C$7,(F66-G66-H66)*(1-'S4-PartialHarvest'!$C$8),(F66-G66-H66)))","v":3875.5565233653042},{"$f":"IF(A67<='S4-PartialHarvest'!$C$7,('Growth-Model-4'!G66*EXP($Z$7)),IF(A67<'S4-PartialHarvest'!$C$9,('Growth-Model-4'!G66*EXP($AA$7)),0))+IF(A67='S4-PartialHarvest'!$C$7,'Growth-Model-4'!$AA$6,0)","v":1.416560328660112E-3},{"$f":"IF(A67<='S4-PartialHarvest'!$C$9,$AD$6*EXP($AD$7*('S4-PartialHarvest'!C$9-'Growth-Model-4'!A67)),0)","v":2.2574309955413113E-6},174.44489545245543,{"$f":"I67/$F$2","v":4.30728136919643E-2},{"$f":"(G67+H67)*B67","v":0.27900698644934746},8.6744552846325913,{"$f":"(B67*F67)/1000","v":762.11855894776556},{"$f":"M67/'S4-PartialHarvest'!$C$19","v":28.226613294361687},{"$f":"M67*(C67/100)","v":19.418062589086098},866.36991315098726,{"$f":"_xlfn.XLOOKUP(B67,FeedTables!$C$17:$T$17,FeedTables!$C$31:$T$31,,-1)","v":"Unga 4mm"},{"$f":"_xlfn.XLOOKUP(Q67,FeedPrice[Feed],FeedPrice[Price per kg],\"Unknown\",0)*O67","v":1928.7980987801811},88237.081307044777,{"$f":"_xlfn.XLOOKUP(O67,LabourFromFeed[Feed Quantity (kg)],LabourFromFeed[No. Labour],\"Out of range\",-1)","v":1},{"$f":"T67*OperatingCosts!$C$9","v":1200},79200]
[66,{"$f":"IF(A68<='S4-PartialHarvest'!$C$9, B67*EXP((LN((E67/100)+1))*1),)","v":199.96684633348639},{"$f":"_xlfn.XLOOKUP($B68,FeedTables!$C$42:$T$42,FeedTables!$C$44:$T$44,,-1)","v":2.5479057505037064},{"$f":"_xlfn.XLOOKUP($B68,FeedTables!$C$42:$T$42,FeedTables!$C$45:$T$45,,-1)","v":1.4641748046312828},{"$f":"_xlfn.XLOOKUP($B68,FeedTables!$C$42:$T$42,FeedTables!$C$46:$T$46,,-1)*_xlfn.XLOOKUP(N67,DensityMultiplier[Biomass kg/m3],DensityMultiplier[Multiplier],,-1)","v":1.6879600510616455},{"$f":"IF(A68>'S4-PartialHarvest'!$C$9,0,IF(A68='S4-PartialHarvest'!$C$7,(F67-G67-H67)*(1-'S4-PartialHarvest'!$C$8),(F67-G67-H67)))","v":3875.5551045475445},{"$f":"IF(A68<='S4-PartialHarvest'!$C$7,('Growth-Model-4'!G67*EXP($Z$7)),IF(A68<'S4-PartialHarvest'!$C$9,('Growth-Model-4'!G67*EXP($AA$7)),0))+IF(A68='S4-PartialHarvest'!$C$7,'Growth-Model-4'!$AA$6,0)","v":1.2192447739650598E-3},{"$f":"IF(A68<='S4-PartialHarvest'!$C$9,$AD$6*EXP($AD$7*('S4-PartialHarvest'!C$9-'Growth-Model-4'!A68)),0)","v":2.7572324443104139E-6},{"$f":"I67+G68+H68","v":174.44611745446184},4.3073115420854777E-2,0.24435988743487458,{"$f":"(K68/1000)+L67","v":8.6746996445200253},774.98253204801756,{"$f":"M68/'S4-PartialHarvest'!$C$19","v":28.70305674251917},19.74582449945067,{"$f":"O68+P67","v":886.11573765043795},{"$f":"_xlfn.XLOOKUP(B68,FeedTables!$C$17:$T$17,FeedTables!$C$31:$T$31,,-1)","v":"Unga 4mm"},{"$f":"_xlfn.XLOOKUP(Q68,FeedPrice[Feed],FeedPrice[Price per kg],\"Unknown\",0)*O68","v":1961.3547221128849},{"$f":"R68+S67","v":90198.43602915766},{"$f":"_xlfn.XLOOKUP(O68,LabourFromFeed[Feed Quantity (kg)],LabourFromFeed[No. Labour],\"Out of range\",-1)","v":1},{"$f":"T68*OperatingCosts!$C$9","v":1200},{"$f":"U68+V67","v":80400}]
[67,{"$f":"IF(A69<='S4-PartialHarvest'!$C$9, B68*EXP((LN((E68/100)+1))*1),)","v":203.34220681496348},{"$f":"_xlfn.XLOOKUP($B69,FeedTables!$C$42:$T$42,FeedTables!$C$44:$T$44,,-1)","v":2.5479057505037064},{"$f":"_xlfn.XLOOKUP($B69,FeedTables!$C$42:$T$42,FeedTables!$C$45:$T$45,,-1)","v":1.4641748046312828},{"$f":"_xlfn.XLOOKUP($B69,FeedTables!$C$42:$T$42,FeedTables!$C$46:$T$46,,-1)*_xlfn.XLOOKUP(N68,DensityMultiplier[Biomass kg/m3],DensityMultiplier[Multiplier],,-1)","v":1.6879600510616455},{"$f":"IF(A69>'S4-PartialHarvest'!$C$9,0,IF(A69='S4-PartialHarvest'!$C$7,(F68-G68-H68)*(1-'S4-PartialHarvest'!$C$8),(F68-G68-H68)))","v":3875.5538825455383},{"$f":"IF(A69<='S4-PartialHarvest'!$C$7,('Growth-Model-4'!G68*EXP($Z$7)),IF(A69<'S4-PartialHarvest'!$C$9,('Growth-Model-4'!G68*EXP($AA$7)),0))+IF(A69='S4-PartialHarvest'!$C$7,'Growth-Model-4'!$AA$6,0)","v":1.0494137021662936E-3},{"$f":"IF(A69<='S4-PartialHarvest'!$C$9,$AD$6*EXP($AD$7*('S4-PartialHarvest'!C$9-'Growth-Model-4'!A69)),0)","v":3.3676913123694497E-6},174.44717023585531,4.3073375366877852E-2,0.21407489184368375,8.6749137194118688,788.06367910710958,{"$f":"M69/'S4-PartialHarvest'!$C$19","v":29.187543670633687},20.07911979760112,906.1948574480391,{"$f":"_xlfn.XLOOKUP(B69,FeedTables!$C$17:$T$17,FeedTables!$C$31:$T$31,,-1)","v":"Unga 4mm"},{"$f":"_xlfn.XLOOKUP(Q69,FeedPrice[Feed],FeedPrice[Price per kg],\"Unknown\",0)*O69","v":1994.4609774076989},92192.897006565356,{"$f":"_xlfn.XLOOKUP(O69,LabourFromFeed[Feed Quantity (kg)],LabourFromFeed[No. Labour],\"Out of range\",-1)","v":1},{"$f":"T69*OperatingCosts!$C$9","v":1200},81600]
[68,{"$f":"IF(A70<='S4-PartialHarvest'!$C$9, B69*EXP((LN((E69/100)+1))*1),)","v":206.77454203294721},{"$f":"_xlfn.XLOOKUP($B70,FeedTables!$C$42:$T$42,FeedTables!$C$44:$T$44,,-1)","v":2.5479057505037064},{"$f":"_xlfn.XLOOKUP($B70,FeedTables!$C$42:$T$42,FeedTables!$C$45:$T$45,,-1)","v":1.4641748046312828},{"$f":"_xlfn.XLOOKUP($B70,FeedTables!$C$42:$T$42,FeedTables!$C$46:$T$46,,-1)*_xlfn.XLOOKUP(N69,DensityMultiplier[Biomass kg/m3],DensityMultiplier[Multiplier],,-1)","v":1.6879600510616455},{"$f":"IF(A70>'S4-PartialHarvest'!$C$9,0,IF(A70='S4-PartialHarvest'!$C$7,(F69-G69-H69)*(1-'S4-PartialHarvest'!$C$8),(F69-G69-H69)))","v":3875.5528297641445},{"$f":"IF(A70<='S4-PartialHarvest'!$C$7,('Growth-Model-4'!G69*EXP($Z$7)),IF(A70<'S4-PartialHarvest'!$C$9,('Growth-Model-4'!G69*EXP($AA$7)),0))+IF(A70='S4-PartialHarvest'!$C$7,'Growth-Model-4'!$AA$6,0)","v":9.0323874402427882E-4},{"$f":"IF(A70<='S4-PartialHarvest'!$C$9,$AD$6*EXP($AD$7*('S4-PartialHarvest'!C$9-'Growth-Model-4'!A70)),0)","v":4.1133074575600856E-6},174.44807758790679,4.3073599404421431E-2,0.18761730490781239,8.6751013367167769,801.36566149897362,{"$f":"M70/'S4-PartialHarvest'!$C$19","v":29.680209685147172},20.418041771894416,926.61289921993352,{"$f":"_xlfn.XLOOKUP(B70,FeedTables!$C$17:$T$17,FeedTables!$C$31:$T$31,,-1)","v":"Unga 4mm"},{"$f":"_xlfn.XLOOKUP(Q70,FeedPrice[Feed],FeedPrice[Price per kg],\"Unknown\",0)*O70","v":2028.1261310064494},94221.023137571799,{"$f":"_xlfn.XLOOKUP(O70,LabourFromFeed[Feed Quantity (kg)],LabourFromFeed[No. Labour],\"Out of range\",-1)","v":1},{"$f":"T70*OperatingCosts!$C$9","v":1200},82800]
[69,{"$f":"IF(A71<='S4-PartialHarvest'!$C$9, B70*EXP((LN((E70/100)+1))*1),)","v":210.26481369822903},{"$f":"_xlfn.XLOOKUP($B71,FeedTables!$C$42:$T$42,FeedTables!$C$44:$T$44,,-1)","v":2.5479057505037064},{"$f":"_xlfn.XLOOKUP($B71,FeedTables!$C$42:$T$42,FeedTables!$C$45:$T$45,,-1)","v":1.4641748046312828},{"$f":"_xlfn.XLOOKUP($B71,FeedTables!$C$42:$T$42,FeedTables!$C$46:$T$46,,-1)*_xlfn.XLOOKUP(N70,DensityMultiplier[Biomass kg/m3],DensityMultiplier[Multiplier],,-1)","v":1.6879600510616455},{"$f":"IF(A71>'S4-PartialHarvest'!$C$9,0,IF(A71='S4-PartialHarvest'!$C$7,(F70-G70-H70)*(1-'S4-PartialHarvest'!$C$8),(F70-G70-H70)))","v":3875.5519224120931},{"$f":"IF(A71<='S4-PartialHarvest'!$C$7,('Growth-Model-4'!G70*EXP($Z$7)),IF(A71<'S4-PartialHarvest'!$C$9,('Growth-Model-4'!G70*EXP($AA$7)),0))+IF(A71='S4-PartialHarvest'!$C$7,'Growth-Model-4'!$AA$6,0)","v":7.7742479159784779E-4},{"$f":"IF(A71<='S4-PartialHarvest'!$C$9,$AD$6*EXP($AD$7*('S4-PartialHarvest'!C$9-'Growth-Model-4'!A71)),0)","v":5.0240050738246804E-6},174.44886003670348,4.3073792601655177E-2,0.1645214504605727,8.6752658581672382,814.89220294379209,{"$f":"M71/'S4-PartialHarvest'!$C$19","v":30.181192701621928},20.762685299211213,947.3755845191447,{"$f":"_xlfn.XLOOKUP(B71,FeedTables!$C$17:$T$17,FeedTables!$C$31:$T$31,,-1)","v":"Unga 4mm"},{"$f":"_xlfn.XLOOKUP(Q71,FeedPrice[Feed],FeedPrice[Price per kg],\"Unknown\",0)*O71","v":2062.35960703918},96283.382744610979,{"$f":"_xlfn.XLOOKUP(O71,LabourFromFeed[Feed Quantity (kg)],LabourFromFeed[No. Labour],\"Out of range\",-1)","v":1},{"$f":"T71*OperatingCosts!$C$9","v":1200},84000]
[70,{"$f":"IF(A72<='S4-PartialHarvest'!$C$9, B71*EXP((LN((E71/100)+1))*1),)","v":213.81399975489433},{"$f":"_xlfn.XLOOKUP($B72,FeedTables!$C$42:$T$42,FeedTables!$C$44:$T$44,,-1)","v":2.5479057505037064},{"$f":"_xlfn.XLOOKUP($B72,FeedTables!$C$42:$T$42,FeedTables!$C$45:$T$45,,-1)","v":1.4641748046312828},{"$f":"_xlfn.XLOOKUP($B72,FeedTables!$C$42:$T$42,FeedTables!$C$46:$T$46,,-1)*_xlfn.XLOOKUP(N71,DensityMultiplier[Biomass kg/m3],DensityMultiplier[Multiplier],,-1)","v":1.653156751039756},{"$f":"IF(A72>'S4-PartialHarvest'!$C$9,0,IF(A72='S4-PartialHarvest'!$C$7,(F71-G71-H71)*(1-'S4-PartialHarvest'!$C$8),(F71-G71-H71)))","v":3875.5511399632965},{"$f":"IF(A72<='S4-PartialHarvest'!$C$7,('Growth-Model-4'!G71*EXP($Z$7)),IF(A72<'S4-PartialHarvest'!$C$9,('Growth-Model-4'!G71*EXP($AA$7)),0))+IF(A72='S4-PartialHarvest'!$C$7,'Growth-Model-4'!$AA$6,0)","v":6.6913571919885581E-4},{"$f":"IF(A72<='S4-PartialHarvest'!$C$9,$AD$6*EXP($AD$7*('S4-PartialHarvest'!C$9-'Growth-Model-4'!A72)),0)","v":6.1363336541801583E-6},174.44953530875634,4.307395933549539E-2,0.14438261854320603,8.6754102407857818,828.64709049019268,{"$f":"M72/'S4-PartialHarvest'!$C$19","v":30.690632981118249},21.113146869981271,968.48873138912597,{"$f":"_xlfn.XLOOKUP(B72,FeedTables!$C$17:$T$17,FeedTables!$C$31:$T$31,,-1)","v":"Unga 4mm"},{"$f":"_xlfn.XLOOKUP(Q72,FeedPrice[Feed],FeedPrice[Price per kg],\"Unknown\",0)*O72","v":2097.1709899099269},98380.553734520901,{"$f":"_xlfn.XLOOKUP(O72,LabourFromFeed[Feed Quantity (kg)],LabourFromFeed[No. Labour],\"Out of range\",-1)","v":1},{"$f":"T72*OperatingCosts!$C$9","v":1200},85200]
[71,{"$f":"IF(A73<='S4-PartialHarvest'!$C$9, B72*EXP((LN((E72/100)+1))*1),)","v":217.3486803265105},{"$f":"_xlfn.XLOOKUP($B73,FeedTables!$C$42:$T$42,FeedTables!$C$44:$T$44,,-1)","v":2.5479057505037064},{"$f":"_xlfn.XLOOKUP($B73,FeedTables!$C$42:$T$42,FeedTables!$C$45:$T$45,,-1)","v":1.4641748046312828},{"$f":"_xlfn.XLOOKUP($B73,FeedTables!$C$42:$T$42,FeedTables!$C$46:$T$46,,-1)*_xlfn.XLOOKUP(N72,DensityMultiplier[Biomass kg/m3],DensityMultiplier[Multiplier],,-1)","v":1.653156751039756},{"$f":"IF(A73>'S4-PartialHarvest'!$C$9,0,IF(A73='S4-PartialHarvest'!$C$7,(F72-G72-H72)*(1-'S4-PartialHarvest'!$C$8),(F72-G72-H72)))","v":3875.5504646912436},{"$f":"IF(A73<='S4-PartialHarvest'!$C$7,('Growth-Model-4'!G72*EXP($Z$7)),IF(A73<'S4-PartialHarvest'!$C$9,('Growth-Model-4'!G72*EXP($AA$7)),0))+IF(A73='S4-PartialHarvest'!$C$7,'Growth-Model-4'!$AA$6,0)","v":5.7593045082537291E-4},{"$f":"IF(A73<='S4-PartialHarvest'!$C$9,$AD$6*EXP($AD$7*('S4-PartialHarvest'!C$9-'Growth-Model-4'!A73)),0)","v":7.4949348502067142E-6},174.45011873414202,4.307410339114618E-2,0.12680673764557265,8.6755370475234272,842.34577903943637,{"$f":"M73/'S4-PartialHarvest'!$C$19","v":31.197991816275422},21.462176543271042,989.95090793239706,{"$f":"_xlfn.XLOOKUP(B73,FeedTables!$C$17:$T$17,FeedTables!$C$31:$T$31,,-1)","v":"Unga 4mm"},{"$f":"_xlfn.XLOOKUP(Q73,FeedPrice[Feed],FeedPrice[Price per kg],\"Unknown\",0)*O73","v":2131.8401422607672},100512.39387678167,{"$f":"_xlfn.XLOOKUP(O73,LabourFromFeed[Feed Quantity (kg)],LabourFromFeed[No. Labour],\"Out of range\",-1)","v":1},{"$f":"T73*OperatingCosts!$C$9","v":1200},86400]
[72,{"$f":"IF(A74<='S4-PartialHarvest'!$C$9, B73*EXP((LN((E73/100)+1))*1),)","v":220.94179470862406},{"$f":"_xlfn.XLOOKUP($B74,FeedTables!$C$42:$T$42,FeedTables!$C$44:$T$44,,-1)","v":2.5479057505037064},{"$f":"_xlfn.XLOOKUP($B74,FeedTables!$C$42:$T$42,FeedTables!$C$45:$T$45,,-1)","v":1.4641748046312828},{"$f":"_xlfn.XLOOKUP($B74,FeedTables!$C$42:$T$42,FeedTables!$C$46:$T$46,,-1)*_xlfn.XLOOKUP(N73,DensityMultiplier[Biomass kg/m3],DensityMultiplier[Multiplier],,-1)","v":1.653156751039756},{"$f":"IF(A74>'S4-PartialHarvest'!$C$9,0,IF(A74='S4-PartialHarvest'!$C$7,(F73-G73-H73)*(1-'S4-PartialHarvest'!$C$8),(F73-G73-H73)))","v":3875.5498812658579},{"$f":"IF(A74<='S4-PartialHarvest'!$C$7,('Growth-Model-4'!G73*EXP($Z$7)),IF(A74<'S4-PartialHarvest'!$C$9,('Growth-Model-4'!G73*EXP($AA$7)),0))+IF(A74='S4-PartialHarvest'!$C$7,'Growth-Model-4'!$AA$6,0)","v":4.95707932891478E-4},{"$f":"IF(A74<='S4-PartialHarvest'!$C$9,$AD$6*EXP($AD$7*('S4-PartialHarvest'!C$9-'Growth-Model-4'!A74)),0)","v":9.1543340982732685E-6},174.450623596409,4.3074228048496047E-2,0.11154517534938017,8.6756485926987761,856.27094624967344,{"$f":"M74/'S4-PartialHarvest'!$C$19","v":31.713738749987904},21.816976679387931,1011.767884611785,{"$f":"_xlfn.XLOOKUP(B74,FeedTables!$C$17:$T$17,FeedTables!$C$31:$T$31,,-1)","v":"Unga 4mm"},{"$f":"_xlfn.XLOOKUP(Q74,FeedPrice[Feed],FeedPrice[Price per kg],\"Unknown\",0)*O74","v":2167.0824752612712},102679.47635204294,{"$f":"_xlfn.XLOOKUP(O74,LabourFromFeed[Feed Quantity (kg)],LabourFromFeed[No. Labour],\"Out of range\",-1)","v":1},{"$f":"T74*OperatingCosts!$C$9","v":1200},87600]
[73,{"$f":"IF(A75<='S4-PartialHarvest'!$C$9, B74*EXP((LN((E74/100)+1))*1),)","v":224.59430890371809},{"$f":"_xlfn.XLOOKUP($B75,FeedTables!$C$42:$T$42,FeedTables!$C$44:$T$44,,-1)","v":2.5479057505037064},{"$f":"_xlfn.XLOOKUP($B75,FeedTables!$C$42:$T$42,FeedTables!$C$45:$T$45,,-1)","v":1.4641748046312828},{"$f":"_xlfn.XLOOKUP($B75,FeedTables!$C$42:$T$42,FeedTables!$C$46:$T$46,,-1)*_xlfn.XLOOKUP(N74,DensityMultiplier[Biomass kg/m3],DensityMultiplier[Multiplier],,-1)","v":1.653156751039756},{"$f":"IF(A75>'S4-PartialHarvest'!$C$9,0,IF(A75='S4-PartialHarvest'!$C$7,(F74-G74-H74)*(1-'S4-PartialHarvest'!$C$8),(F74-G74-H74)))","v":3875.5493764035909},{"$f":"IF(A75<='S4-PartialHarvest'!$C$7,('Growth-Model-4'!G74*EXP($Z$7)),IF(A75<'S4-PartialHarvest'!$C$9,('Growth-Model-4'!G74*EXP($AA$7)),0))+IF(A75='S4-PartialHarvest'!$C$7,'Growth-Model-4'!$AA$6,0)","v":4.2665977181687237E-4},{"$f":"IF(A75<='S4-PartialHarvest'!$C$9,$AD$6*EXP($AD$7*('S4-PartialHarvest'!C$9-'Growth-Model-4'!A75)),0)","v":1.1181128916750654E-5},174.45106143730973,4.3074336157360428E-2,9.8336574510049499E-2,8.6757469292732861,870.42633381560017,{"$f":"M75/'S4-PartialHarvest'!$C$19","v":32.238012363540747},22.177642613186265,1033.9455272249713,{"$f":"_xlfn.XLOOKUP(B75,FeedTables!$C$17:$T$17,FeedTables!$C$31:$T$31,,-1)","v":"Unga 4mm"},{"$f":"_xlfn.XLOOKUP(Q75,FeedPrice[Feed],FeedPrice[Price per kg],\"Unknown\",0)*O75","v":2202.9074585320532},104882.38381057499,{"$f":"_xlfn.XLOOKUP(O75,LabourFromFeed[Feed Quantity (kg)],LabourFromFeed[No. Labour],\"Out of range\",-1)","v":1},{"$f":"T75*OperatingCosts!$C$9","v":1200},88800]
[74,{"$f":"IF(A76<='S4-PartialHarvest'!$C$9, B75*EXP((LN((E75/100)+1))*1),)","v":228.30720488381101},{"$f":"_xlfn.XLOOKUP($B76,FeedTables!$C$42:$T$42,FeedTables!$C$44:$T$44,,-1)","v":2.5479057505037064},{"$f":"_xlfn.XLOOKUP($B76,FeedTables!$C$42:$T$42,FeedTables!$C$45:$T$45,,-1)","v":1.4641748046312828},{"$f":"_xlfn.XLOOKUP($B76,FeedTables!$C$42:$T$42,FeedTables!$C$46:$T$46,,-1)*_xlfn.XLOOKUP(N75,DensityMultiplier[Biomass kg/m3],DensityMultiplier[Multiplier],,-1)","v":1.653156751039756},{"$f":"IF(A76>'S4-PartialHarvest'!$C$9,0,IF(A76='S4-PartialHarvest'!$C$7,(F75-G75-H75)*(1-'S4-PartialHarvest'!$C$8),(F75-G75-H75)))","v":3875.5489385626902},{"$f":"IF(A76<='S4-PartialHarvest'!$C$7,('Growth-Model-4'!G75*EXP($Z$7)),IF(A76<'S4-PartialHarvest'!$C$9,('Growth-Model-4'!G75*EXP($AA$7)),0))+IF(A76='S4-PartialHarvest'!$C$7,'Growth-Model-4'!$AA$6,0)","v":3.6722946882247715E-4},{"$f":"IF(A76<='S4-PartialHarvest'!$C$9,$AD$6*EXP($AD$7*('S4-PartialHarvest'!C$9-'Growth-Model-4'!A76)),0)","v":1.3656661698263673E-5},174.45144232344026,4.3074430203318581E-2,8.6959047838200756E-2,8.6758338883211241,884.81574555366831,{"$f":"M76/'S4-PartialHarvest'!$C$19","v":32.770953539024752},22.544271262324159,1056.4897984872955,{"$f":"_xlfn.XLOOKUP(B76,FeedTables!$C$17:$T$17,FeedTables!$C$31:$T$31,,-1)","v":"Unga 4mm"},{"$f":"_xlfn.XLOOKUP(Q76,FeedPrice[Feed],FeedPrice[Price per kg],\"Unknown\",0)*O76","v":2239.3247189137851},107121.70852948878,{"$f":"_xlfn.XLOOKUP(O76,LabourFromFeed[Feed Quantity (kg)],LabourFromFeed[No. Labour],\"Out of range\",-1)","v":1},{"$f":"T76*OperatingCosts!$C$9","v":1200},90000]
[75,{"$f":"IF(A77<='S4-PartialHarvest'!$C$9, B76*EXP((LN((E76/100)+1))*1),)","v":232.08148085445791},{"$f":"_xlfn.XLOOKUP($B77,FeedTables!$C$42:$T$42,FeedTables!$C$44:$T$44,,-1)","v":2.209351174006021},{"$f":"_xlfn.XLOOKUP($B77,FeedTables!$C$42:$T$42,FeedTables!$C$45:$T$45,,-1)","v":1.5019599136153996},{"$f":"_xlfn.XLOOKUP($B77,FeedTables!$C$42:$T$42,FeedTables!$C$46:$T$46,,-1)*_xlfn.XLOOKUP(N76,DensityMultiplier[Biomass kg/m3],DensityMultiplier[Multiplier],,-1)","v":1.3974298490120503},{"$f":"IF(A77>'S4-PartialHarvest'!$C$9,0,IF(A77='S4-PartialHarvest'!$C$7,(F76-G76-H76)*(1-'S4-PartialHarvest'!$C$8),(F76-G76-H76)))","v":1937.7742788382798},{"$f":"IF(A77<='S4-PartialHarvest'!$C$7,('Growth-Model-4'!G76*EXP($Z$7)),IF(A77<'S4-PartialHarvest'!$C$9,('Growth-Model-4'!G76*EXP($AA$7)),0))+IF(A77='S4-PartialHarvest'!$C$7,'Growth-Model-4'!$AA$6,0)","v":13.564736029200951},{"$f":"IF(A77<='S4-PartialHarvest'!$C$9,$AD$6*EXP($AD$7*('S4-PartialHarvest'!C$9-'Growth-Model-4'!A77)),0)","v":1.6680284265519618E-5},188.01619503292548,4.6423751859981599E-2,3148.1278962418492,11.823961784562973,449.72152419446724,{"$f":"M77/'S4-PartialHarvest'!$C$19","v":16.656352747943231},9.9359277745482348,1066.4257262618437,{"$f":"_xlfn.XLOOKUP(B77,FeedTables!$C$17:$T$17,FeedTables!$C$31:$T$31,,-1)","v":"Unga 4mm"},{"$f":"_xlfn.XLOOKUP(Q77,FeedPrice[Feed],FeedPrice[Price per kg],\"Unknown\",0)*O77","v":986.93669943865359},108108.64522892743,{"$f":"_xlfn.XLOOKUP(O77,LabourFromFeed[Feed Quantity (kg)],LabourFromFeed[No. Labour],\"Out of range\",-1)","v":1},{"$f":"T77*OperatingCosts!$C$9","v":1200},91200]
[76,{"$f":"IF(A78<='S4-PartialHarvest'!$C$9, B77*EXP((LN((E77/100)+1))*1),)","v":235.32465674194731},{"$f":"_xlfn.XLOOKUP($B78,FeedTables!$C$42:$T$42,FeedTables!$C$44:$T$44,,-1)","v":2.209351174006021},{"$f":"_xlfn.XLOOKUP($B78,FeedTables!$C$42:$T$42,FeedTables!$C$45:$T$45,,-1)","v":1.5019599136153996},{"$f":"_xlfn.XLOOKUP($B78,FeedTables!$C$42:$T$42,FeedTables!$C$46:$T$46,,-1)*_xlfn.XLOOKUP(N77,DensityMultiplier[Biomass kg/m3],DensityMultiplier[Multiplier],,-1)","v":1.4709787884337371},{"$f":"IF(A78>'S4-PartialHarvest'!$C$9,0,IF(A78='S4-PartialHarvest'!$C$7,(F77-G77-H77)*(1-'S4-PartialHarvest'!$C$8),(F77-G77-H77)))","v":1924.2095261287946},{"$f":"IF(A78<='S4-PartialHarvest'!$C$7,('Growth-Model-4'!G77*EXP($Z$7)),IF(A78<'S4-PartialHarvest'!$C$9,('Growth-Model-4'!G77*EXP($AA$7)),0))+IF(A78='S4-PartialHarvest'!$C$7,'Growth-Model-4'!$AA$6,0)","v":10.564227041698599},{"$f":"IF(A78<='S4-PartialHarvest'!$C$9,$AD$6*EXP($AD$7*('S4-PartialHarvest'!C$9-'Growth-Model-4'!A78)),0)","v":2.0373345208801326E-5},198.58044244796929,4.9032208011844269E-2,2486.0278966821879,14.309989681245161,452.81394623584362,{"$f":"M78/'S4-PartialHarvest'!$C$19","v":16.770886897623839},10.004250237224603,1076.4299764990683,{"$f":"_xlfn.XLOOKUP(B78,FeedTables!$C$17:$T$17,FeedTables!$C$31:$T$31,,-1)","v":"Unga 4mm"},{"$f":"_xlfn.XLOOKUP(Q78,FeedPrice[Feed],FeedPrice[Price per kg],\"Unknown\",0)*O78","v":993.72317648854357},109102.36840541597,{"$f":"_xlfn.XLOOKUP(O78,LabourFromFeed[Feed Quantity (kg)],LabourFromFeed[No. Labour],\"Out of range\",-1)","v":1},{"$f":"T78*OperatingCosts!$C$9","v":1200},92400]
[77,{"$f":"IF(A79<='S4-PartialHarvest'!$C$9, B78*EXP((LN((E78/100)+1))*1),)","v":238.78623252657587},{"$f":"_xlfn.XLOOKUP($B79,FeedTables!$C$42:$T$42,FeedTables!$C$44:$T$44,,-1)","v":2.209351174006021},{"$f":"_xlfn.XLOOKUP($B79,FeedTables!$C$42:$T$42,FeedTables!$C$45:$T$45,,-1)","v":1.5019599136153996},{"$f":"_xlfn.XLOOKUP($B79,FeedTables!$C$42:$T$42,FeedTables!$C$46:$T$46,,-1)*_xlfn.XLOOKUP(N78,DensityMultiplier[Biomass kg/m3],DensityMultiplier[Multiplier],,-1)","v":1.4709787884337371},{"$f":"IF(A79>'S4-PartialHarvest'!$C$9,0,IF(A79='S4-PartialHarvest'!$C$7,(F78-G78-H78)*(1-'S4-PartialHarvest'!$C$8),(F78-G78-H78)))","v":1913.6452787137507},{"$f":"IF(A79<='S4-PartialHarvest'!$C$7,('Growth-Model-4'!G78*EXP($Z$7)),IF(A79<'S4-PartialHarvest'!$C$9,('Growth-Model-4'!G78*EXP($AA$7)),0))+IF(A79='S4-PartialHarvest'!$C$7,'Growth-Model-4'!$AA$6,0)","v":8.2274282926189795},{"$f":"IF(A79<='S4-PartialHarvest'!$C$9,$AD$6*EXP($AD$7*('S4-PartialHarvest'!C$9-'Growth-Model-4'!A79)),0)","v":2.4884060030979249E-5},206.8078956246483,5.1063677932011928E-2,1964.6025473479895,16.27459222859315,456.95214649632578,{"$f":"M79/'S4-PartialHarvest'!$C$19","v":16.924153573937993},10.095677613262287,1086.5256541123306,{"$f":"_xlfn.XLOOKUP(B79,FeedTables!$C$17:$T$17,FeedTables!$C$31:$T$31,,-1)","v":"Unga 4mm"},{"$f":"_xlfn.XLOOKUP(Q79,FeedPrice[Feed],FeedPrice[Price per kg],\"Unknown\",0)*O79","v":1002.8046668931044},110105.17307230907,{"$f":"_xlfn.XLOOKUP(O79,LabourFromFeed[Feed Quantity (kg)],LabourFromFeed[No. Labour],\"Out of range\",-1)","v":1},{"$f":"T79*OperatingCosts!$C$9","v":1200},93600]
[78,{"$f":"IF(A80<='S4-PartialHarvest'!$C$9, B79*EXP((LN((E79/100)+1))*1),)","v":242.29872735674186},{"$f":"_xlfn.XLOOKUP($B80,FeedTables!$C$42:$T$42,FeedTables!$C$44:$T$44,,-1)","v":2.209351174006021},{"$f":"_xlfn.XLOOKUP($B80,FeedTables!$C$42:$T$42,FeedTables!$C$45:$T$45,,-1)","v":1.5019599136153996},{"$f":"_xlfn.XLOOKUP($B80,FeedTables!$C$42:$T$42,FeedTables!$C$46:$T$46,,-1)*_xlfn.XLOOKUP(N79,DensityMultiplier[Biomass kg/m3],DensityMultiplier[Multiplier],,-1)","v":1.4709787884337371},{"$f":"IF(A80>'S4-PartialHarvest'!$C$9,0,IF(A80='S4-PartialHarvest'!$C$7,(F79-G79-H79)*(1-'S4-PartialHarvest'!$C$8),(F79-G79-H79)))","v":1905.4178255370718},{"$f":"IF(A80<='S4-PartialHarvest'!$C$7,('Growth-Model-4'!G79*EXP($Z$7)),IF(A80<'S4-PartialHarvest'!$C$9,('Growth-Model-4'!G79*EXP($AA$7)),0))+IF(A80='S4-PartialHarvest'!$C$7,'Growth-Model-4'!$AA$6,0)","v":6.407527596955493},{"$f":"IF(A80<='S4-PartialHarvest'!$C$9,$AD$6*EXP($AD$7*('S4-PartialHarvest'!C$9-'Growth-Model-4'!A80)),0)","v":3.0393459556061274E-5},213.21545361506335,5.2645791016065029E-2,1552.5431465420888,17.827135375135239,461.68031421048295,{"$f":"M80/'S4-PartialHarvest'!$C$19","v":17.099270896684555},10.200139442163993,1096.7257935544947,{"$f":"_xlfn.XLOOKUP(B80,FeedTables!$C$17:$T$17,FeedTables!$C$31:$T$31,,-1)","v":"Unga 4mm"},{"$f":"_xlfn.XLOOKUP(Q80,FeedPrice[Feed],FeedPrice[Price per kg],\"Unknown\",0)*O80","v":1013.1808708040936},111118.35394311316,{"$f":"_xlfn.XLOOKUP(O80,LabourFromFeed[Feed Quantity (kg)],LabourFromFeed[No. Labour],\"Out of range\",-1)","v":1},{"$f":"T80*OperatingCosts!$C$9","v":1200},94800]
[79,{"$f":"IF(A81<='S4-PartialHarvest'!$C$9, B80*EXP((LN((E80/100)+1))*1),)","v":245.86289024080443},{"$f":"_xlfn.XLOOKUP($B81,FeedTables!$C$42:$T$42,FeedTables!$C$44:$T$44,,-1)","v":2.209351174006021},{"$f":"_xlfn.XLOOKUP($B81,FeedTables!$C$42:$T$42,FeedTables!$C$45:$T$45,,-1)","v":1.5019599136153996},{"$f":"_xlfn.XLOOKUP($B81,FeedTables!$C$42:$T$42,FeedTables!$C$46:$T$46,,-1)*_xlfn.XLOOKUP(N80,DensityMultiplier[Biomass kg/m3],DensityMultiplier[Multiplier],,-1)","v":1.4709787884337371},{"$f":"IF(A81>'S4-PartialHarvest'!$C$9,0,IF(A81='S4-PartialHarvest'!$C$7,(F80-G80-H80)*(1-'S4-PartialHarvest'!$C$8),(F80-G80-H80)))","v":1899.0102675466567},{"$f":"IF(A81<='S4-PartialHarvest'!$C$7,('Growth-Model-4'!G80*EXP($Z$7)),IF(A81<'S4-PartialHarvest'!$C$9,('Growth-Model-4'!G80*EXP($AA$7)),0))+IF(A81='S4-PartialHarvest'!$C$7,'Growth-Model-4'!$AA$6,0)","v":4.9901875100605748},{"$f":"IF(A81<='S4-PartialHarvest'!$C$9,$AD$6*EXP($AD$7*('S4-PartialHarvest'!C$9-'Growth-Model-4'!A81)),0)","v":3.7122655331802788E-5},218.20567824777925,5.3877945246365244E-2,1226.9110511503895,19.054046426285627,466.89615297598431,{"$f":"M81/'S4-PartialHarvest'!$C$19","v":17.29245011022164},10.315375637163857,1107.0411691916586,{"$f":"_xlfn.XLOOKUP(B81,FeedTables!$C$17:$T$17,FeedTables!$C$31:$T$31,,-1)","v":"Unga 4mm"},{"$f":"_xlfn.XLOOKUP(Q81,FeedPrice[Feed],FeedPrice[Price per kg],\"Unknown\",0)*O81","v":1024.6272935770496},112142.98123669022,{"$f":"_xlfn.XLOOKUP(O81,LabourFromFeed[Feed Quantity (kg)],LabourFromFeed[No. Labour],\"Out of range\",-1)","v":1},{"$f":"T81*OperatingCosts!$C$9","v":1200},96000]
[80,{"$f":"IF(A82<='S4-PartialHarvest'!$C$9, B81*EXP((LN((E81/100)+1))*1),)","v":249.47948120487681},{"$f":"_xlfn.XLOOKUP($B82,FeedTables!$C$42:$T$42,FeedTables!$C$44:$T$44,,-1)","v":2.209351174006021},{"$f":"_xlfn.XLOOKUP($B82,FeedTables!$C$42:$T$42,FeedTables!$C$45:$T$45,,-1)","v":1.5019599136153996},{"$f":"_xlfn.XLOOKUP($B82,FeedTables!$C$42:$T$42,FeedTables!$C$46:$T$46,,-1)*_xlfn.XLOOKUP(N81,DensityMultiplier[Biomass kg/m3],DensityMultiplier[Multiplier],,-1)","v":1.4709787884337371},{"$f":"IF(A82>'S4-PartialHarvest'!$C$9,0,IF(A82='S4-PartialHarvest'!$C$7,(F81-G81-H81)*(1-'S4-PartialHarvest'!$C$8),(F81-G81-H81)))","v":1894.0200429139406},{"$f":"IF(A82<='S4-PartialHarvest'!$C$7,('Growth-Model-4'!G81*EXP($Z$7)),IF(A82<'S4-PartialHarvest'!$C$9,('Growth-Model-4'!G81*EXP($AA$7)),0))+IF(A82='S4-PartialHarvest'!$C$7,'Growth-Model-4'!$AA$6,0)","v":3.8863619405083196},{"$f":"IF(A82<='S4-PartialHarvest'!$C$9,$AD$6*EXP($AD$7*('S4-PartialHarvest'!C$9-'Growth-Model-4'!A82)),0)","v":4.5341713612493307E-5},222.09208553000119,5.4837551982716344E-2,969.57887251958289,20.023625298805211,472.51913769780839,{"$f":"M82/'S4-PartialHarvest'!$C$19","v":17.500708803622533},10.439607116129658,1117.4807763077883,{"$f":"_xlfn.XLOOKUP(B82,FeedTables!$C$17:$T$17,FeedTables!$C$31:$T$31,,-1)","v":"Unga 4mm"},{"$f":"_xlfn.XLOOKUP(Q82,FeedPrice[Feed],FeedPrice[Price per kg],\"Unknown\",0)*O82","v":1036.9672188058705},113179.94845549609,{"$f":"_xlfn.XLOOKUP(O82,LabourFromFeed[Feed Quantity (kg)],LabourFromFeed[No. Labour],\"Out of range\",-1)","v":1},{"$f":"T82*OperatingCosts!$C$9","v":1200},97200]
[81,{"$f":"IF(A83<='S4-PartialHarvest'!$C$9, B82*EXP((LN((E82/100)+1))*1),)","v":253.14927145489509},{"$f":"_xlfn.XLOOKUP($B83,FeedTables!$C$42:$T$42,FeedTables!$C$44:$T$44,,-1)","v":2.209351174006021},{"$f":"_xlfn.XLOOKUP($B83,FeedTables!$C$42:$T$42,FeedTables!$C$45:$T$45,,-1)","v":1.5019599136153996},{"$f":"_xlfn.XLOOKUP($B83,FeedTables!$C$42:$T$42,FeedTables!$C$46:$T$46,,-1)*_xlfn.XLOOKUP(N82,DensityMultiplier[Biomass kg/m3],DensityMultiplier[Multiplier],,-1)","v":1.4709787884337371},{"$f":"IF(A83>'S4-PartialHarvest'!$C$9,0,IF(A83='S4-PartialHarvest'!$C$7,(F82-G82-H82)*(1-'S4-PartialHarvest'!$C$8),(F82-G82-H82)))","v":1890.1336356317188},{"$f":"IF(A83<='S4-PartialHarvest'!$C$7,('Growth-Model-4'!G82*EXP($Z$7)),IF(A83<'S4-PartialHarvest'!$C$9,('Growth-Model-4'!G82*EXP($AA$7)),0))+IF(A83='S4-PartialHarvest'!$C$7,'Growth-Model-4'!$AA$6,0)","v":3.0267017225667838},{"$f":"IF(A83<='S4-PartialHarvest'!$C$9,$AD$6*EXP($AD$7*('S4-PartialHarvest'!C$9-'Growth-Model-4'!A83)),0)","v":5.53804940660078E-5},225.11884263306203,5.5584899415570869E-2,766.22135551078293,20.789846654315994,478.48595281256178,{"$f":"M83/'S4-PartialHarvest'!$C$19","v":17.721701956020805},10.57143501591823,1128.0522113237066,{"$f":"_xlfn.XLOOKUP(B83,FeedTables!$C$17:$T$17,FeedTables!$C$31:$T$31,,-1)","v":"Unga 4mm"},{"$f":"_xlfn.XLOOKUP(Q83,FeedPrice[Feed],FeedPrice[Price per kg],\"Unknown\",0)*O83","v":1050.0616972746593},114230.01015277076,{"$f":"_xlfn.XLOOKUP(O83,LabourFromFeed[Feed Quantity (kg)],LabourFromFeed[No. Labour],\"Out of range\",-1)","v":1},{"$f":"T83*OperatingCosts!$C$9","v":1200},98400]
[82,{"$f":"IF(A84<='S4-PartialHarvest'!$C$9, B83*EXP((LN((E83/100)+1))*1),)","v":256.87304354107113},{"$f":"_xlfn.XLOOKUP($B84,FeedTables!$C$42:$T$42,FeedTables!$C$44:$T$44,,-1)","v":2.209351174006021},{"$f":"_xlfn.XLOOKUP($B84,FeedTables!$C$42:$T$42,FeedTables!$C$45:$T$45,,-1)","v":1.5019599136153996},{"$f":"_xlfn.XLOOKUP($B84,FeedTables!$C$42:$T$42,FeedTables!$C$46:$T$46,,-1)*_xlfn.XLOOKUP(N83,DensityMultiplier[Biomass kg/m3],DensityMultiplier[Multiplier],,-1)","v":1.4709787884337371},{"$f":"IF(A84>'S4-PartialHarvest'!$C$9,0,IF(A84='S4-PartialHarvest'!$C$7,(F83-G83-H83)*(1-'S4-PartialHarvest'!$C$8),(F83-G83-H83)))","v":1887.1068785286579},{"$f":"IF(A84<='S4-PartialHarvest'!$C$7,('Growth-Model-4'!G83*EXP($Z$7)),IF(A84<'S4-PartialHarvest'!$C$9,('Growth-Model-4'!G83*EXP($AA$7)),0))+IF(A84='S4-PartialHarvest'!$C$7,'Growth-Model-4'!$AA$6,0)","v":2.3571976716585814},{"$f":"IF(A84<='S4-PartialHarvest'!$C$9,$AD$6*EXP($AD$7*('S4-PartialHarvest'!C$9-'Growth-Model-4'!A84)),0)","v":6.7641888200494922E-5},227.47610794660881,5.6166940233730568E-2,605.51791552455916,21.395364569840552,484.74688737494677,{"$f":"M84/'S4-PartialHarvest'!$C$19","v":17.953588421294324},10.709761047176031,1138.7619723708826,{"$f":"_xlfn.XLOOKUP(B84,FeedTables!$C$17:$T$17,FeedTables!$C$31:$T$31,,-1)","v":"Unga 4mm"},{"$f":"_xlfn.XLOOKUP(Q84,FeedPrice[Feed],FeedPrice[Price per kg],\"Unknown\",0)*O84","v":1063.8016357920999},115293.81178856286,{"$f":"_xlfn.XLOOKUP(O84,LabourFromFeed[Feed Quantity (kg)],LabourFromFeed[No. Labour],\"Out of range\",-1)","v":1},{"$f":"T84*OperatingCosts!$C$9","v":1200},99600]
[83,{"$f":"IF(A85<='S4-PartialHarvest'!$C$9, B84*EXP((LN((E84/100)+1))*1),)","v":260.65159152476446},{"$f":"_xlfn.XLOOKUP($B85,FeedTables!$C$42:$T$42,FeedTables!$C$44:$T$44,,-1)","v":2.209351174006021},{"$f":"_xlfn.XLOOKUP($B85,FeedTables!$C$42:$T$42,FeedTables!$C$45:$T$45,,-1)","v":1.5019599136153996},{"$f":"_xlfn.XLOOKUP($B85,FeedTables!$C$42:$T$42,FeedTables!$C$46:$T$46,,-1)*_xlfn.XLOOKUP(N84,DensityMultiplier[Biomass kg/m3],DensityMultiplier[Multiplier],,-1)","v":1.4709787884337371},{"$f":"IF(A85>'S4-PartialHarvest'!$C$9,0,IF(A85='S4-PartialHarvest'!$C$7,(F84-G84-H84)*(1-'S4-PartialHarvest'!$C$8),(F84-G84-H84)))","v":1884.7496132151114},{"$f":"IF(A85<='S4-PartialHarvest'!$C$7,('Growth-Model-4'!G84*EXP($Z$7)),IF(A85<'S4-PartialHarvest'!$C$9,('Growth-Model-4'!G84*EXP($AA$7)),0))+IF(A85='S4-PartialHarvest'!$C$7,'Growth-Model-4'!$AA$6,0)","v":1.8357873925417956},{"$f":"IF(A85<='S4-PartialHarvest'!$C$9,$AD$6*EXP($AD$7*('S4-PartialHarvest'!C$9-'Growth-Model-4'!A85)),0)","v":8.2617988815246275E-5},229.31197795713942,5.662024147089862E-2,478.52244007738977,21.873887009917944,491.26298631020302,{"$f":"M85/'S4-PartialHarvest'!$C$19","v":18.194925418896407},10.853724555501509,1149.6156969263841,{"$f":"_xlfn.XLOOKUP(B85,FeedTables!$C$17:$T$17,FeedTables!$C$31:$T$31,,-1)","v":"Unga 4mm"},{"$f":"_xlfn.XLOOKUP(Q85,FeedPrice[Feed],FeedPrice[Price per kg],\"Unknown\",0)*O85","v":1078.1015454704204},116371.91333403328,{"$f":"_xlfn.XLOOKUP(O85,LabourFromFeed[Feed Quantity (kg)],LabourFromFeed[No. Labour],\"Out of range\",-1)","v":1},{"$f":"T85*OperatingCosts!$C$9","v":1200},100800]
[84,{"$f":"IF(A86<='S4-PartialHarvest'!$C$9, B85*EXP((LN((E85/100)+1))*1),)","v":264.4857211478087},{"$f":"_xlfn.XLOOKUP($B86,FeedTables!$C$42:$T$42,FeedTables!$C$44:$T$44,,-1)","v":2.209351174006021},{"$f":"_xlfn.XLOOKUP($B86,FeedTables!$C$42:$T$42,FeedTables!$C$45:$T$45,,-1)","v":1.5019599136153996},{"$f":"_xlfn.XLOOKUP($B86,FeedTables!$C$42:$T$42,FeedTables!$C$46:$T$46,,-1)*_xlfn.XLOOKUP(N85,DensityMultiplier[Biomass kg/m3],DensityMultiplier[Multiplier],,-1)","v":1.4709787884337371},{"$f":"IF(A86>'S4-PartialHarvest'!$C$9,0,IF(A86='S4-PartialHarvest'!$C$7,(F85-G85-H85)*(1-'S4-PartialHarvest'!$C$8),(F85-G85-H85)))","v":1882.9137432045809},{"$f":"IF(A86<='S4-PartialHarvest'!$C$7,('Growth-Model-4'!G85*EXP($Z$7)),IF(A86<'S4-PartialHarvest'!$C$9,('Growth-Model-4'!G85*EXP($AA$7)),0))+IF(A86='S4-PartialHarvest'!$C$7,'Growth-Model-4'!$AA$6,0)","v":1.4297126588641629},{"$f":"IF(A86<='S4-PartialHarvest'!$C$9,$AD$6*EXP($AD$7*('S4-PartialHarvest'!C$9-'Growth-Model-4'!A86)),0)","v":1.009098394125878E-4},230.74179152584298,5.6973281858232833E-2,378.16527282548714,22.252052282743431,498.00379923058347,{"$f":"M86/'S4-PartialHarvest'!$C$19","v":18.444585156688277},11.002652784895483,1160.6183497112795,{"$f":"_xlfn.XLOOKUP(B86,FeedTables!$C$17:$T$17,FeedTables!$C$31:$T$31,,-1)","v":"Unga 4mm"},{"$f":"_xlfn.XLOOKUP(Q86,FeedPrice[Feed],FeedPrice[Price per kg],\"Unknown\",0)*O86","v":1092.8946013889467},117464.80793542223,{"$f":"_xlfn.XLOOKUP(O86,LabourFromFeed[Feed Quantity (kg)],LabourFromFeed[No. Labour],\"Out of range\",-1)","v":1},{"$f":"T86*OperatingCosts!$C$9","v":1200},102000]
[85,{"$f":"IF(A87<='S4-PartialHarvest'!$C$9, B86*EXP((LN((E86/100)+1))*1),)","v":268.37625000432899},{"$f":"_xlfn.XLOOKUP($B87,FeedTables!$C$42:$T$42,FeedTables!$C$44:$T$44,,-1)","v":2.209351174006021},{"$f":"_xlfn.XLOOKUP($B87,FeedTables!$C$42:$T$42,FeedTables!$C$45:$T$45,,-1)","v":1.5019599136153996},{"$f":"_xlfn.XLOOKUP($B87,FeedTables!$C$42:$T$42,FeedTables!$C$46:$T$46,,-1)*_xlfn.XLOOKUP(N86,DensityMultiplier[Biomass kg/m3],DensityMultiplier[Multiplier],,-1)","v":1.4709787884337371},{"$f":"IF(A87>'S4-PartialHarvest'!$C$9,0,IF(A87='S4-PartialHarvest'!$C$7,(F86-G86-H86)*(1-'S4-PartialHarvest'!$C$8),(F86-G86-H86)))","v":1881.4839296358773},{"$f":"IF(A87<='S4-PartialHarvest'!$C$7,('Growth-Model-4'!G86*EXP($Z$7)),IF(A87<'S4-PartialHarvest'!$C$9,('Growth-Model-4'!G86*EXP($AA$7)),0))+IF(A87='S4-PartialHarvest'!$C$7,'Growth-Model-4'!$AA$6,0)","v":1.1134613382905103},{"$f":"IF(A87<='S4-PartialHarvest'!$C$9,$AD$6*EXP($AD$7*('S4-PartialHarvest'!C$9-'Growth-Model-4'!A87)),0)","v":1.2325155618403468E-4},231.85537611568967,5.724824101621967E-2,298.85965628566458,22.550911939029096,504.94560147908555,{"$f":"M87/'S4-PartialHarvest'!$C$19","v":18.701688943669836},11.156021574369941,1171.7743712856495,{"$f":"_xlfn.XLOOKUP(B87,FeedTables!$C$17:$T$17,FeedTables!$C$31:$T$31,,-1)","v":"Unga 4mm"},{"$f":"_xlfn.XLOOKUP(Q87,FeedPrice[Feed],FeedPrice[Price per kg],\"Unknown\",0)*O87","v":1108.1287385843236},118572.93667400655,{"$f":"_xlfn.XLOOKUP(O87,LabourFromFeed[Feed Quantity (kg)],LabourFromFeed[No. Labour],\"Out of range\",-1)","v":1},{"$f":"T87*OperatingCosts!$C$9","v":1200},103200]
[86,{"$f":"IF(A88<='S4-PartialHarvest'!$C$9, B87*EXP((LN((E87/100)+1))*1),)","v":272.32400771508657},{"$f":"_xlfn.XLOOKUP($B88,FeedTables!$C$42:$T$42,FeedTables!$C$44:$T$44,,-1)","v":2.209351174006021},{"$f":"_xlfn.XLOOKUP($B88,FeedTables!$C$42:$T$42,FeedTables!$C$45:$T$45,,-1)","v":1.5019599136153996},{"$f":"_xlfn.XLOOKUP($B88,FeedTables!$C$42:$T$42,FeedTables!$C$46:$T$46,,-1)*_xlfn.XLOOKUP(N87,DensityMultiplier[Biomass kg/m3],DensityMultiplier[Multiplier],,-1)","v":1.4709787884337371},{"$f":"IF(A88>'S4-PartialHarvest'!$C$9,0,IF(A88='S4-PartialHarvest'!$C$7,(F87-G87-H87)*(1-'S4-PartialHarvest'!$C$8),(F87-G87-H87)))","v":1880.3703450460305},{"$f":"IF(A88<='S4-PartialHarvest'!$C$7,('Growth-Model-4'!G87*EXP($Z$7)),IF(A88<'S4-PartialHarvest'!$C$9,('Growth-Model-4'!G87*EXP($AA$7)),0))+IF(A88='S4-PartialHarvest'!$C$7,'Growth-Model-4'!$AA$6,0)","v":0.86716456218038385},{"$f":"IF(A88<='S4-PartialHarvest'!$C$9,$AD$6*EXP($AD$7*('S4-PartialHarvest'!C$9-'Growth-Model-4'!A88)),0)","v":1.50539790670713E-4},232.72269121766072,5.7462392893249559E-2,236.19072452057654,22.787102663549671,512.06998835153513,{"$f":"M88/'S4-PartialHarvest'!$C$19","v":18.96555512413093},11.313424299377136,1183.0877955850267,{"$f":"_xlfn.XLOOKUP(B88,FeedTables!$C$17:$T$17,FeedTables!$C$31:$T$31,,-1)","v":"Unga 4mm"},{"$f":"_xlfn.XLOOKUP(Q88,FeedPrice[Feed],FeedPrice[Price per kg],\"Unknown\",0)*O88","v":1123.7635669995609},119696.70024100611,{"$f":"_xlfn.XLOOKUP(O88,LabourFromFeed[Feed Quantity (kg)],LabourFromFeed[No. Labour],\"Out of range\",-1)","v":1},{"$f":"T88*OperatingCosts!$C$9","v":1200},104400]
[87,{"$f":"IF(A89<='S4-PartialHarvest'!$C$9, B88*EXP((LN((E88/100)+1))*1),)","v":276.32983610438816},{"$f":"_xlfn.XLOOKUP($B89,FeedTables!$C$42:$T$42,FeedTables!$C$44:$T$44,,-1)","v":2.209351174006021},{"$f":"_xlfn.XLOOKUP($B89,FeedTables!$C$42:$T$42,FeedTables!$C$45:$T$45,,-1)","v":1.5019599136153996},{"$f":"_xlfn.XLOOKUP($B89,FeedTables!$C$42:$T$42,FeedTables!$C$46:$T$46,,-1)*_xlfn.XLOOKUP(N88,DensityMultiplier[Biomass kg/m3],DensityMultiplier[Multiplier],,-1)","v":1.4709787884337371},{"$f":"IF(A89>'S4-PartialHarvest'!$C$9,0,IF(A89='S4-PartialHarvest'!$C$7,(F88-G88-H88)*(1-'S4-PartialHarvest'!$C$8),(F88-G88-H88)))","v":1879.5030299440596},{"$f":"IF(A89<='S4-PartialHarvest'!$C$7,('Growth-Model-4'!G88*EXP($Z$7)),IF(A89<'S4-PartialHarvest'!$C$9,('Growth-Model-4'!G88*EXP($AA$7)),0))+IF(A89='S4-PartialHarvest'!$C$7,'Growth-Model-4'!$AA$6,0)","v":0.67534844007785488},{"$f":"IF(A89<='S4-PartialHarvest'!$C$9,$AD$6*EXP($AD$7*('S4-PartialHarvest'!C$9-'Growth-Model-4'!A89)),0)","v":1.8386971553806364E-4},233.39822352745412,5.7629190994433116E-2,186.66973244842706,22.973772395998097,519.36276422214291,{"$f":"M89/'S4-PartialHarvest'!$C$19","v":19.235657934153441},11.474547328692038,1194.5623429137188,{"$f":"_xlfn.XLOOKUP(B89,FeedTables!$C$17:$T$17,FeedTables!$C$31:$T$31,,-1)","v":"Unga 4mm"},{"$f":"_xlfn.XLOOKUP(Q89,FeedPrice[Feed],FeedPrice[Price per kg],\"Unknown\",0)*O89","v":1139.767933613713},120836.46817461982,{"$f":"_xlfn.XLOOKUP(O89,LabourFromFeed[Feed Quantity (kg)],LabourFromFeed[No. Labour],\"Out of range\",-1)","v":1},{"$f":"T89*OperatingCosts!$C$9","v":1200},105600]
[88,{"$f":"IF(A90<='S4-PartialHarvest'!$C$9, B89*EXP((LN((E89/100)+1))*1),)","v":280.39458937959745},{"$f":"_xlfn.XLOOKUP($B90,FeedTables!$C$42:$T$42,FeedTables!$C$44:$T$44,,-1)","v":2.209351174006021},{"$f":"_xlfn.XLOOKUP($B90,FeedTables!$C$42:$T$42,FeedTables!$C$45:$T$45,,-1)","v":1.5019599136153996},{"$f":"_xlfn.XLOOKUP($B90,FeedTables!$C$42:$T$42,FeedTables!$C$46:$T$46,,-1)*_xlfn.XLOOKUP(N89,DensityMultiplier[Biomass kg/m3],DensityMultiplier[Multiplier],,-1)","v":1.4709787884337371},{"$f":"IF(A90>'S4-PartialHarvest'!$C$9,0,IF(A90='S4-PartialHarvest'!$C$7,(F89-G89-H89)*(1-'S4-PartialHarvest'!$C$8),(F89-G89-H89)))","v":1878.8274976342661},{"$f":"IF(A90<='S4-PartialHarvest'!$C$7,('Growth-Model-4'!G89*EXP($Z$7)),IF(A90<'S4-PartialHarvest'!$C$9,('Growth-Model-4'!G89*EXP($AA$7)),0))+IF(A90='S4-PartialHarvest'!$C$7,'Growth-Model-4'!$AA$6,0)","v":0.52596189397868509},{"$f":"IF(A90<='S4-PartialHarvest'!$C$9,$AD$6*EXP($AD$7*('S4-PartialHarvest'!C$9-'Growth-Model-4'!A90)),0)","v":2.2457897770031661E-4},233.92441000041052,5.7759113580348277E-2,147.53984002170435,23.121312236019801,526.81306471425671,{"$f":"M90/'S4-PartialHarvest'!$C$19","v":19.511594989416917},11.639150630081531,1206.2014935438003,{"$f":"_xlfn.XLOOKUP(B90,FeedTables!$C$17:$T$17,FeedTables!$C$31:$T$31,,-1)","v":"Unga 4mm"},{"$f":"_xlfn.XLOOKUP(Q90,FeedPrice[Feed],FeedPrice[Price per kg],\"Unknown\",0)*O90","v":1156.1179960010616},121992.58617062088,{"$f":"_xlfn.XLOOKUP(O90,LabourFromFeed[Feed Quantity (kg)],LabourFromFeed[No. Labour],\"Out of range\",-1)","v":1},{"$f":"T90*OperatingCosts!$C$9","v":1200},106800]
[89,{"$f":"IF(A91<='S4-PartialHarvest'!$C$9, B90*EXP((LN((E90/100)+1))*1),)","v":284.51913431328722},{"$f":"_xlfn.XLOOKUP($B91,FeedTables!$C$42:$T$42,FeedTables!$C$44:$T$44,,-1)","v":2.209351174006021},{"$f":"_xlfn.XLOOKUP($B91,FeedTables!$C$42:$T$42,FeedTables!$C$45:$T$45,,-1)","v":1.5019599136153996},{"$f":"_xlfn.XLOOKUP($B91,FeedTables!$C$42:$T$42,FeedTables!$C$46:$T$46,,-1)*_xlfn.XLOOKUP(N90,DensityMultiplier[Biomass kg/m3],DensityMultiplier[Multiplier],,-1)","v":1.4709787884337371},{"$f":"IF(A91>'S4-PartialHarvest'!$C$9,0,IF(A91='S4-PartialHarvest'!$C$7,(F90-G90-H90)*(1-'S4-PartialHarvest'!$C$8),(F90-G90-H90)))","v":1878.3013111613097},{"$f":"IF(A91<='S4-PartialHarvest'!$C$7,('Growth-Model-4'!G90*EXP($Z$7)),IF(A91<'S4-PartialHarvest'!$C$9,('Growth-Model-4'!G90*EXP($AA$7)),0))+IF(A91='S4-PartialHarvest'!$C$7,'Growth-Model-4'!$AA$6,0)","v":0.40961953489631919},{"$f":"IF(A91<='S4-PartialHarvest'!$C$9,$AD$6*EXP($AD$7*('S4-PartialHarvest'!C$9-'Growth-Model-4'!A91)),0)","v":2.7430138278795776E-4},234.3343038366896,5.7860321934985089E-2,116.62263945848385,23.237934875478285,534.4126630311282,{"$f":"M91/'S4-PartialHarvest'!$C$19","v":19.793061593745488},11.807052444715072,1218.0085459885154,{"$f":"_xlfn.XLOOKUP(B91,FeedTables!$C$17:$T$17,FeedTables!$C$31:$T$31,,-1)","v":"Unga 4mm"},{"$f":"_xlfn.XLOOKUP(Q91,FeedPrice[Feed],FeedPrice[Price per kg],\"Unknown\",0)*O91","v":1172.7957000387926},123165.38187065968,{"$f":"_xlfn.XLOOKUP(O91,LabourFromFeed[Feed Quantity (kg)],LabourFromFeed[No. Labour],\"Out of range\",-1)","v":1},{"$f":"T91*OperatingCosts!$C$9","v":1200},108000]
[90,{"$f":"IF(A92<='S4-PartialHarvest'!$C$9, B91*EXP((LN((E91/100)+1))*1),)","v":288.704350428071},{"$f":"_xlfn.XLOOKUP($B92,FeedTables!$C$42:$T$42,FeedTables!$C$44:$T$44,,-1)","v":2.209351174006021},{"$f":"_xlfn.XLOOKUP($B92,FeedTables!$C$42:$T$42,FeedTables!$C$45:$T$45,,-1)","v":1.5019599136153996},{"$f":"_xlfn.XLOOKUP($B92,FeedTables!$C$42:$T$42,FeedTables!$C$46:$T$46,,-1)*_xlfn.XLOOKUP(N91,DensityMultiplier[Biomass kg/m3],DensityMultiplier[Multiplier],,-1)","v":1.4709787884337371},{"$f":"IF(A92>'S4-PartialHarvest'!$C$9,0,IF(A92='S4-PartialHarvest'!$C$7,(F91-G91-H91)*(1-'S4-PartialHarvest'!$C$8),(F91-G91-H91)))","v":1877.8914173250305},{"$f":"IF(A92<='S4-PartialHarvest'!$C$7,('Growth-Model-4'!G91*EXP($Z$7)),IF(A92<'S4-PartialHarvest'!$C$9,('Growth-Model-4'!G91*EXP($AA$7)),0))+IF(A92='S4-PartialHarvest'!$C$7,'Growth-Model-4'!$AA$6,0)","v":0.31901201453859807},{"$f":"IF(A92<='S4-PartialHarvest'!$C$9,$AD$6*EXP($AD$7*('S4-PartialHarvest'!C$9-'Growth-Model-4'!A92)),0)","v":3.3503246550436051E-4},234.6536508836937,5.7939173057702145E-2,92.196881766442047,23.330131757244725,542.15542181327248,{"$f":"M92/'S4-PartialHarvest'!$C$19","v":20.07983043752861},11.978117176768832,1229.9866631652842,{"$f":"_xlfn.XLOOKUP(B92,FeedTables!$C$17:$T$17,FeedTables!$C$31:$T$31,,-1)","v":"Unga 4mm"},{"$f":"_xlfn.XLOOKUP(Q92,FeedPrice[Feed],FeedPrice[Price per kg],\"Unknown\",0)*O92","v":1189.7875769801658},124355.16944763984,{"$f":"_xlfn.XLOOKUP(O92,LabourFromFeed[Feed Quantity (kg)],LabourFromFeed[No. Labour],\"Out of range\",-1)","v":1},{"$f":"T92*OperatingCosts!$C$9","v":1200},109200]
[91,{"$f":"IF(A93<='S4-PartialHarvest'!$C$9, B92*EXP((LN((E92/100)+1))*1),)","v":292.95113018415333},{"$f":"_xlfn.XLOOKUP($B93,FeedTables!$C$42:$T$42,FeedTables!$C$44:$T$44,,-1)","v":2.209351174006021},{"$f":"_xlfn.XLOOKUP($B93,FeedTables!$C$42:$T$42,FeedTables!$C$45:$T$45,,-1)","v":1.5019599136153996},{"$f":"_xlfn.XLOOKUP($B93,FeedTables!$C$42:$T$42,FeedTables!$C$46:$T$46,,-1)*_xlfn.XLOOKUP(N92,DensityMultiplier[Biomass kg/m3],DensityMultiplier[Multiplier],,-1)","v":1.4709787884337371},{"$f":"IF(A93>'S4-PartialHarvest'!$C$9,0,IF(A93='S4-PartialHarvest'!$C$7,(F92-G92-H92)*(1-'S4-PartialHarvest'!$C$8),(F92-G92-H92)))","v":1877.5720702780263},{"$f":"IF(A93<='S4-PartialHarvest'!$C$7,('Growth-Model-4'!G92*EXP($Z$7)),IF(A93<'S4-PartialHarvest'!$C$9,('Growth-Model-4'!G92*EXP($AA$7)),0))+IF(A93='S4-PartialHarvest'!$C$7,'Growth-Model-4'!$AA$6,0)","v":0.24844680673184658},{"$f":"IF(A93<='S4-PartialHarvest'!$C$9,$AD$6*EXP($AD$7*('S4-PartialHarvest'!C$9-'Growth-Model-4'!A93)),0)","v":4.0920957744022764E-4},234.90250690000298,5.8000618987655059E-2,72.902651230931667,23.403034408475659,550.03685999014829,{"$f":"M93/'S4-PartialHarvest'!$C$19","v":20.371735555190678},12.152245823658195,1242.1389089889424,{"$f":"_xlfn.XLOOKUP(B93,FeedTables!$C$17:$T$17,FeedTables!$C$31:$T$31,,-1)","v":"Unga 4mm"},{"$f":"_xlfn.XLOOKUP(Q93,FeedPrice[Feed],FeedPrice[Price per kg],\"Unknown\",0)*O93","v":1207.0837928885508},125562.25324052839,{"$f":"_xlfn.XLOOKUP(O93,LabourFromFeed[Feed Quantity (kg)],LabourFromFeed[No. Labour],\"Out of range\",-1)","v":1},{"$f":"T93*OperatingCosts!$C$9","v":1200},110400]
[92,{"$f":"IF(A94<='S4-PartialHarvest'!$C$9, B93*EXP((LN((E93/100)+1))*1),)","v":297.26037916963912},{"$f":"_xlfn.XLOOKUP($B94,FeedTables!$C$42:$T$42,FeedTables!$C$44:$T$44,,-1)","v":2.209351174006021},{"$f":"_xlfn.XLOOKUP($B94,FeedTables!$C$42:$T$42,FeedTables!$C$45:$T$45,,-1)","v":1.5019599136153996},{"$f":"_xlfn.XLOOKUP($B94,FeedTables!$C$42:$T$42,FeedTables!$C$46:$T$46,,-1)*_xlfn.XLOOKUP(N93,DensityMultiplier[Biomass kg/m3],DensityMultiplier[Multiplier],,-1)","v":1.4709787884337371},{"$f":"IF(A94>'S4-PartialHarvest'!$C$9,0,IF(A94='S4-PartialHarvest'!$C$7,(F93-G93-H93)*(1-'S4-PartialHarvest'!$C$8),(F93-G93-H93)))","v":1877.3232142617171},{"$f":"IF(A94<='S4-PartialHarvest'!$C$7,('Growth-Model-4'!G93*EXP($Z$7)),IF(A94<'S4-PartialHarvest'!$C$9,('Growth-Model-4'!G93*EXP($AA$7)),0))+IF(A94='S4-PartialHarvest'!$C$7,'Growth-Model-4'!$AA$6,0)","v":0.1934905676343521},{"$f":"IF(A94<='S4-PartialHarvest'!$C$9,$AD$6*EXP($AD$7*('S4-PartialHarvest'!C$9-'Growth-Model-4'!A94)),0)","v":4.9980970655105219E-4},235.09649727734387,5.8048517846257745E-2,57.665653123618242,23.460700061599276,558.0538104954037,{"$f":"M94/'S4-PartialHarvest'!$C$19","v":20.668659647977915},12.329368413765538,1254.4682774027078,{"$f":"_xlfn.XLOOKUP(B94,FeedTables!$C$17:$T$17,FeedTables!$C$31:$T$31,,-1)","v":"Unga 4mm"},{"$f":"_xlfn.XLOOKUP(Q94,FeedPrice[Feed],FeedPrice[Price per kg],\"Unknown\",0)*O94","v":1224.6773974761722},126786.93063800456,{"$f":"_xlfn.XLOOKUP(O94,LabourFromFeed[Feed Quantity (kg)],LabourFromFeed[No. Labour],\"Out of range\",-1)","v":1},{"$f":"T94*OperatingCosts!$C$9","v":1200},111600]
[93,{"$f":"IF(A95<='S4-PartialHarvest'!$C$9, B94*EXP((LN((E94/100)+1))*1),)","v":301.63301629364224},{"$f":"_xlfn.XLOOKUP($B95,FeedTables!$C$42:$T$42,FeedTables!$C$44:$T$44,,-1)","v":1.9117636283850548},{"$f":"_xlfn.XLOOKUP($B95,FeedTables!$C$42:$T$42,FeedTables!$C$45:$T$45,,-1)","v":1.5351728093320252},{"$f":"_xlfn.XLOOKUP($B95,FeedTables!$C$42:$T$42,FeedTables!$C$46:$T$46,,-1)*_xlfn.XLOOKUP(N94,DensityMultiplier[Biomass kg/m3],DensityMultiplier[Multiplier],,-1)","v":1.2453084218035946},{"$f":"IF(A95>'S4-PartialHarvest'!$C$9,0,IF(A95='S4-PartialHarvest'!$C$7,(F94-G94-H94)*(1-'S4-PartialHarvest'!$C$8),(F94-G94-H94)))","v":1877.1292238843762},{"$f":"IF(A95<='S4-PartialHarvest'!$C$7,('Growth-Model-4'!G94*EXP($Z$7)),IF(A95<'S4-PartialHarvest'!$C$9,('Growth-Model-4'!G94*EXP($AA$7)),0))+IF(A95='S4-PartialHarvest'!$C$7,'Growth-Model-4'!$AA$6,0)","v":0.15069060559056405},{"$f":"IF(A95<='S4-PartialHarvest'!$C$9,$AD$6*EXP($AD$7*('S4-PartialHarvest'!C$9-'Growth-Model-4'!A95)),0)","v":6.1046895413667979E-4},235.24779835188858,5.8085876136268783E-2,45.637399483387298,23.506337461082662,566.20414977318808,{"$f":"M95/'S4-PartialHarvest'!$C$19","v":20.970524065673633},10.82448499777065,1265.2927624004785,{"$f":"_xlfn.XLOOKUP(B95,FeedTables!$C$17:$T$17,FeedTables!$C$31:$T$31,,-1)","v":"Unga 4mm"},{"$f":"_xlfn.XLOOKUP(Q95,FeedPrice[Feed],FeedPrice[Price per kg],\"Unknown\",0)*O95","v":1075.1971772770585},127862.12781528162,{"$f":"_xlfn.XLOOKUP(O95,LabourFromFeed[Feed Quantity (kg)],LabourFromFeed[No. Labour],\"Out of range\",-1)","v":1},{"$f":"T95*OperatingCosts!$C$9","v":1200},112800]
[94,{"$f":"IF(A96<='S4-PartialHarvest'!$C$9, B95*EXP((LN((E95/100)+1))*1),)","v":305.38927764848717},{"$f":"_xlfn.XLOOKUP($B96,FeedTables!$C$42:$T$42,FeedTables!$C$44:$T$44,,-1)","v":1.9117636283850548},{"$f":"_xlfn.XLOOKUP($B96,FeedTables!$C$42:$T$42,FeedTables!$C$45:$T$45,,-1)","v":1.5351728093320252},{"$f":"_xlfn.XLOOKUP($B96,FeedTables!$C$42:$T$42,FeedTables!$C$46:$T$46,,-1)*_xlfn.XLOOKUP(N95,DensityMultiplier[Biomass kg/m3],DensityMultiplier[Multiplier],,-1)","v":1.2453084218035946},{"$f":"IF(A96>'S4-PartialHarvest'!$C$9,0,IF(A96='S4-PartialHarvest'!$C$7,(F95-G95-H95)*(1-'S4-PartialHarvest'!$C$8),(F95-G95-H95)))","v":1876.9779228098314},{"$f":"IF(A96<='S4-PartialHarvest'!$C$7,('Growth-Model-4'!G95*EXP($Z$7)),IF(A96<'S4-PartialHarvest'!$C$9,('Growth-Model-4'!G95*EXP($AA$7)),0))+IF(A96='S4-PartialHarvest'!$C$7,'Growth-Model-4'!$AA$6,0)","v":0.11735796163543551},{"$f":"IF(A96<='S4-PartialHarvest'!$C$9,$AD$6*EXP($AD$7*('S4-PartialHarvest'!C$9-'Growth-Model-4'!A96)),0)","v":7.4562846435369571E-4},235.36590194198837,5.811503751654034E-2,36.067570068267642,23.542405031150931,573.20893200905232,{"$f":"M96/'S4-PartialHarvest'!$C$19","v":21.229960444779717},10.95839987680348,1276.251162277282,{"$f":"_xlfn.XLOOKUP(B96,FeedTables!$C$17:$T$17,FeedTables!$C$31:$T$31,,-1)","v":"Unga 4mm"},{"$f":"_xlfn.XLOOKUP(Q96,FeedPrice[Feed],FeedPrice[Price per kg],\"Unknown\",0)*O96","v":1088.4989556028772},128950.6267708845,{"$f":"_xlfn.XLOOKUP(O96,LabourFromFeed[Feed Quantity (kg)],LabourFromFeed[No. Labour],\"Out of range\",-1)","v":1},{"$f":"T96*OperatingCosts!$C$9","v":1200},114000]
[95,{"$f":"IF(A97<='S4-PartialHarvest'!$C$9, B96*EXP((LN((E96/100)+1))*1),)","v":309.19231604232891},{"$f":"_xlfn.XLOOKUP($B97,FeedTables!$C$42:$T$42,FeedTables!$C$44:$T$44,,-1)","v":1.9117636283850548},{"$f":"_xlfn.XLOOKUP($B97,FeedTables!$C$42:$T$42,FeedTables!$C$45:$T$45,,-1)","v":1.5351728093320252},{"$f":"_xlfn.XLOOKUP($B97,FeedTables!$C$42:$T$42,FeedTables!$C$46:$T$46,,-1)*_xlfn.XLOOKUP(N96,DensityMultiplier[Biomass kg/m3],DensityMultiplier[Multiplier],,-1)","v":1.2453084218035946},{"$f":"IF(A97>'S4-PartialHarvest'!$C$9,0,IF(A97='S4-PartialHarvest'!$C$7,(F96-G96-H96)*(1-'S4-PartialHarvest'!$C$8),(F96-G96-H96)))","v":1876.8598192197317},{"$f":"IF(A97<='S4-PartialHarvest'!$C$7,('Growth-Model-4'!G96*EXP($Z$7)),IF(A97<'S4-PartialHarvest'!$C$9,('Growth-Model-4'!G96*EXP($AA$7)),0))+IF(A97='S4-PartialHarvest'!$C$7,'Growth-Model-4'!$AA$6,0)","v":9.1398472421341068E-2},{"$f":"IF(A97<='S4-PartialHarvest'!$C$9,$AD$6*EXP($AD$7*('S4-PartialHarvest'!C$9-'Growth-Model-4'!A97)),0)","v":9.1071266292433515E-4},235.45821112707262,5.8137829907919165E-2,28.541290728184023,23.570946321879116,580.3106343913355,{"$f":"M97/'S4-PartialHarvest'!$C$19","v":21.492986458938351},11.094167639944125,1287.3453299172261,{"$f":"_xlfn.XLOOKUP(B97,FeedTables!$C$17:$T$17,FeedTables!$C$31:$T$31,,-1)","v":"Unga 4mm"},{"$f":"_xlfn.XLOOKUP(Q97,FeedPrice[Feed],FeedPrice[Price per kg],\"Unknown\",0)*O97","v":1101.9847810924139},130052.61155197691,{"$f":"_xlfn.XLOOKUP(O97,LabourFromFeed[Feed Quantity (kg)],LabourFromFeed[No. Labour],\"Out of range\",-1)","v":1},{"$f":"T97*OperatingCosts!$C$9","v":1200},115200]
[96,{"$f":"IF(A98<='S4-PartialHarvest'!$C$9, B97*EXP((LN((E97/100)+1))*1),)","v":313.04271399357361},{"$f":"_xlfn.XLOOKUP($B98,FeedTables!$C$42:$T$42,FeedTables!$C$44:$T$44,,-1)","v":1.9117636283850548},{"$f":"_xlfn.XLOOKUP($B98,FeedTables!$C$42:$T$42,FeedTables!$C$45:$T$45,,-1)","v":1.5351728093320252},{"$f":"_xlfn.XLOOKUP($B98,FeedTables!$C$42:$T$42,FeedTables!$C$46:$T$46,,-1)*_xlfn.XLOOKUP(N97,DensityMultiplier[Biomass kg/m3],DensityMultiplier[Multiplier],,-1)","v":1.2453084218035946},{"$f":"IF(A98>'S4-PartialHarvest'!$C$9,0,IF(A98='S4-PartialHarvest'!$C$7,(F97-G97-H97)*(1-'S4-PartialHarvest'!$C$8),(F97-G97-H97)))","v":1876.7675100346473},{"$f":"IF(A98<='S4-PartialHarvest'!$C$7,('Growth-Model-4'!G97*EXP($Z$7)),IF(A98<'S4-PartialHarvest'!$C$9,('Growth-Model-4'!G97*EXP($AA$7)),0))+IF(A98='S4-PartialHarvest'!$C$7,'Growth-Model-4'!$AA$6,0)","v":7.1181201893270624E-2},{"$f":"IF(A98<='S4-PartialHarvest'!$C$9,$AD$6*EXP($AD$7*('S4-PartialHarvest'!C$9-'Growth-Model-4'!A98)),0)","v":1.1123469583871753E-3},235.53050467592428,5.8155680166894881E-2,22.630968736749953,23.593577290615865,587.50839487620749,{"$f":"M98/'S4-PartialHarvest'!$C$19","v":21.759570180600278},11.23177180695218,1298.5771017241782,{"$f":"_xlfn.XLOOKUP(B98,FeedTables!$C$17:$T$17,FeedTables!$C$31:$T$31,,-1)","v":"Unga 4mm"},{"$f":"_xlfn.XLOOKUP(Q98,FeedPrice[Feed],FeedPrice[Price per kg],\"Unknown\",0)*O98","v":1115.6530167617407},131168.26456873864,{"$f":"_xlfn.XLOOKUP(O98,LabourFromFeed[Feed Quantity (kg)],LabourFromFeed[No. Labour],\"Out of range\",-1)","v":1},{"$f":"T98*OperatingCosts!$C$9","v":1200},116400]
[97,{"$f":"IF(A99<='S4-PartialHarvest'!$C$9, B98*EXP((LN((E98/100)+1))*1),)","v":316.94106127477812},{"$f":"_xlfn.XLOOKUP($B99,FeedTables!$C$42:$T$42,FeedTables!$C$44:$T$44,,-1)","v":1.9117636283850548},{"$f":"_xlfn.XLOOKUP($B99,FeedTables!$C$42:$T$42,FeedTables!$C$45:$T$45,,-1)","v":1.5351728093320252},{"$f":"_xlfn.XLOOKUP($B99,FeedTables!$C$42:$T$42,FeedTables!$C$46:$T$46,,-1)*_xlfn.XLOOKUP(N98,DensityMultiplier[Biomass kg/m3],DensityMultiplier[Multiplier],,-1)","v":1.2453084218035946},{"$f":"IF(A99>'S4-PartialHarvest'!$C$9,0,IF(A99='S4-PartialHarvest'!$C$7,(F98-G98-H98)*(1-'S4-PartialHarvest'!$C$8),(F98-G98-H98)))","v":1876.6952164857958},{"$f":"IF(A99<='S4-PartialHarvest'!$C$7,('Growth-Model-4'!G98*EXP($Z$7)),IF(A99<'S4-PartialHarvest'!$C$9,('Growth-Model-4'!G98*EXP($AA$7)),0))+IF(A99='S4-PartialHarvest'!$C$7,'Growth-Model-4'!$AA$6,0)","v":5.5435975774442932E-2},{"$f":"IF(A99<='S4-PartialHarvest'!$C$9,$AD$6*EXP($AD$7*('S4-PartialHarvest'!C$9-'Growth-Model-4'!A99)),0)","v":1.358623643005173E-3},235.58729927534171,5.8169703524775733E-2,18.000540614041899,23.611577831229908,594.80177360230755,{"$f":"M99/'S4-PartialHarvest'!$C$19","v":22.029695318603984},11.371203968718133,1309.9483056928964,{"$f":"_xlfn.XLOOKUP(B99,FeedTables!$C$17:$T$17,FeedTables!$C$31:$T$31,,-1)","v":"Unga 4mm"},{"$f":"_xlfn.XLOOKUP(Q99,FeedPrice[Feed],FeedPrice[Price per kg],\"Unknown\",0)*O99","v":1129.5028273331691},132297.76739607181,{"$f":"_xlfn.XLOOKUP(O99,LabourFromFeed[Feed Quantity (kg)],LabourFromFeed[No. Labour],\"Out of range\",-1)","v":1},{"$f":"T99*OperatingCosts!$C$9","v":1200},117600]
[98,{"$f":"IF(A100<='S4-PartialHarvest'!$C$9, B99*EXP((LN((E99/100)+1))*1),)","v":320.88795500298664},{"$f":"_xlfn.XLOOKUP($B100,FeedTables!$C$42:$T$42,FeedTables!$C$44:$T$44,,-1)","v":1.9117636283850548},{"$f":"_xlfn.XLOOKUP($B100,FeedTables!$C$42:$T$42,FeedTables!$C$45:$T$45,,-1)","v":1.5351728093320252},{"$f":"_xlfn.XLOOKUP($B100,FeedTables!$C$42:$T$42,FeedTables!$C$46:$T$46,,-1)*_xlfn.XLOOKUP(N99,DensityMultiplier[Biomass kg/m3],DensityMultiplier[Multiplier],,-1)","v":1.2453084218035946},{"$f":"IF(A100>'S4-PartialHarvest'!$C$9,0,IF(A100='S4-PartialHarvest'!$C$7,(F99-G99-H99)*(1-'S4-PartialHarvest'!$C$8),(F99-G99-H99)))","v":1876.6384218863784},{"$f":"IF(A100<='S4-PartialHarvest'!$C$7,('Growth-Model-4'!G99*EXP($Z$7)),IF(A100<'S4-PartialHarvest'!$C$9,('Growth-Model-4'!G99*EXP($AA$7)),0))+IF(A100='S4-PartialHarvest'!$C$7,'Growth-Model-4'!$AA$6,0)","v":4.3173581343463587E-2},{"$f":"IF(A100<='S4-PartialHarvest'!$C$9,$AD$6*EXP($AD$7*('S4-PartialHarvest'!C$9-'Growth-Model-4'!A100)),0)","v":1.659426664868135E-3},235.63213228335005,5.8180773403296304E-2,14.386372256426091,23.625964203486333,602.19066547915213,{"$f":"M100/'S4-PartialHarvest'!$C$19","v":22.30335798070934},11.512462116160346,1321.4607678090567,{"$f":"_xlfn.XLOOKUP(B100,FeedTables!$C$17:$T$17,FeedTables!$C$31:$T$31,,-1)","v":"Unga 4mm"},{"$f":"_xlfn.XLOOKUP(Q100,FeedPrice[Feed],FeedPrice[Price per kg],\"Unknown\",0)*O100","v":1143.5340132444189},133441.30140931622,{"$f":"_xlfn.XLOOKUP(O100,LabourFromFeed[Feed Quantity (kg)],LabourFromFeed[No. Labour],\"Out of range\",-1)","v":1},{"$f":"T100*OperatingCosts!$C$9","v":1200},118800]
[99,{"$f":"IF(A101<='S4-PartialHarvest'!$C$9, B100*EXP((LN((E100/100)+1))*1),)","v":324.88399973119215},{"$f":"_xlfn.XLOOKUP($B101,FeedTables!$C$42:$T$42,FeedTables!$C$44:$T$44,,-1)","v":1.9117636283850548},{"$f":"_xlfn.XLOOKUP($B101,FeedTables!$C$42:$T$42,FeedTables!$C$45:$T$45,,-1)","v":1.5351728093320252},{"$f":"_xlfn.XLOOKUP($B101,FeedTables!$C$42:$T$42,FeedTables!$C$46:$T$46,,-1)*_xlfn.XLOOKUP(N100,DensityMultiplier[Biomass kg/m3],DensityMultiplier[Multiplier],,-1)","v":1.2453084218035946},{"$f":"IF(A101>'S4-PartialHarvest'!$C$9,0,IF(A101='S4-PartialHarvest'!$C$7,(F100-G100-H100)*(1-'S4-PartialHarvest'!$C$8),(F100-G100-H100)))","v":1876.5935888783702},{"$f":"IF(A101<='S4-PartialHarvest'!$C$7,('Growth-Model-4'!G100*EXP($Z$7)),IF(A101<'S4-PartialHarvest'!$C$9,('Growth-Model-4'!G100*EXP($AA$7)),0))+IF(A101='S4-PartialHarvest'!$C$7,'Growth-Model-4'!$AA$6,0)","v":3.3623618958286437E-2},{"$f":"IF(A101<='S4-PartialHarvest'!$C$9,$AD$6*EXP($AD$7*('S4-PartialHarvest'!C$9-'Growth-Model-4'!A101)),0)","v":2.026828305434472E-3},235.66778273061377,5.8189575982867593E-2,11.582259899243583,23.637546463385576,609.67523102471728,{"$f":"M101/'S4-PartialHarvest'!$C$19","v":22.580564112026565},11.6555493180031,1333.1163171270598,{"$f":"_xlfn.XLOOKUP(B101,FeedTables!$C$17:$T$17,FeedTables!$C$31:$T$31,,-1)","v":"Unga 4mm"},{"$f":"_xlfn.XLOOKUP(Q101,FeedPrice[Feed],FeedPrice[Price per kg],\"Unknown\",0)*O101","v":1157.7468793121798},134599.0482886284,{"$f":"_xlfn.XLOOKUP(O101,LabourFromFeed[Feed Quantity (kg)],LabourFromFeed[No. Labour],\"Out of range\",-1)","v":1},{"$f":"T101*OperatingCosts!$C$9","v":1200},120000]
[100,{"$f":"IF(A102<='S4-PartialHarvest'!$C$9, B101*EXP((LN((E101/100)+1))*1),)","v":328.92980754093702},{"$f":"_xlfn.XLOOKUP($B102,FeedTables!$C$42:$T$42,FeedTables!$C$44:$T$44,,-1)","v":1.9117636283850548},{"$f":"_xlfn.XLOOKUP($B102,FeedTables!$C$42:$T$42,FeedTables!$C$45:$T$45,,-1)","v":1.5351728093320252},{"$f":"_xlfn.XLOOKUP($B102,FeedTables!$C$42:$T$42,FeedTables!$C$46:$T$46,,-1)*_xlfn.XLOOKUP(N101,DensityMultiplier[Biomass kg/m3],DensityMultiplier[Multiplier],,-1)","v":1.2453084218035946},{"$f":"IF(A102>'S4-PartialHarvest'!$C$9,0,IF(A102='S4-PartialHarvest'!$C$7,(F101-G101-H101)*(1-'S4-PartialHarvest'!$C$8),(F101-G101-H101)))","v":1876.5579384311065},{"$f":"IF(A102<='S4-PartialHarvest'!$C$7,('Growth-Model-4'!G101*EXP($Z$7)),IF(A102<'S4-PartialHarvest'!$C$9,('Growth-Model-4'!G101*EXP($AA$7)),0))+IF(A102='S4-PartialHarvest'!$C$7,'Growth-Model-4'!$AA$6,0)","v":2.6186100774408014E-2},{"$f":"IF(A102<='S4-PartialHarvest'!$C$9,$AD$6*EXP($AD$7*('S4-PartialHarvest'!C$9-'Growth-Model-4'!A102)),0)","v":2.4755736825747676E-3},235.69644440507074,5.8196652939523641E-2,9.4276790629363365,23.646974142448514,617.25584152756142,{"$f":"M102/'S4-PartialHarvest'!$C$19","v":22.861327463983756},11.800472672406011,1344.9167897994657,{"$f":"_xlfn.XLOOKUP(B102,FeedTables!$C$17:$T$17,FeedTables!$C$31:$T$31,,-1)","v":"Unga 4mm"},{"$f":"_xlfn.XLOOKUP(Q102,FeedPrice[Feed],FeedPrice[Price per kg],\"Unknown\",0)*O102","v":1172.1421305973563},135771.19041922575,{"$f":"_xlfn.XLOOKUP(O102,LabourFromFeed[Feed Quantity (kg)],LabourFromFeed[No. Labour],\"Out of range\",-1)","v":1},{"$f":"T102*OperatingCosts!$C$9","v":1200},121200]
[101,{"$f":"IF(A103<='S4-PartialHarvest'!$C$9, B102*EXP((LN((E102/100)+1))*1),)","v":333.02599813606668},{"$f":"_xlfn.XLOOKUP($B103,FeedTables!$C$42:$T$42,FeedTables!$C$44:$T$44,,-1)","v":1.9117636283850548},{"$f":"_xlfn.XLOOKUP($B103,FeedTables!$C$42:$T$42,FeedTables!$C$45:$T$45,,-1)","v":1.5351728093320252},{"$f":"_xlfn.XLOOKUP($B103,FeedTables!$C$42:$T$42,FeedTables!$C$46:$T$46,,-1)*_xlfn.XLOOKUP(N102,DensityMultiplier[Biomass kg/m3],DensityMultiplier[Multiplier],,-1)","v":1.2453084218035946},{"$f":"IF(A103>'S4-PartialHarvest'!$C$9,0,IF(A103='S4-PartialHarvest'!$C$7,(F102-G102-H102)*(1-'S4-PartialHarvest'!$C$8),(F102-G102-H102)))","v":1876.5292767566496},{"$f":"IF(A103<='S4-PartialHarvest'!$C$7,('Growth-Model-4'!G102*EXP($Z$7)),IF(A103<'S4-PartialHarvest'!$C$9,('Growth-Model-4'!G102*EXP($AA$7)),0))+IF(A103='S4-PartialHarvest'!$C$7,'Growth-Model-4'!$AA$6,0)","v":2.0393755788695681E-2},{"$f":"IF(A103<='S4-PartialHarvest'!$C$9,$AD$6*EXP($AD$7*('S4-PartialHarvest'!C$9-'Growth-Model-4'!A103)),0)","v":3.0236725239255508E-3},235.71986183338336,5.8202435020588486E-2,7.7986124375904735,23.654772754886103,624.9330354234346,{"$f":"M103/'S4-PartialHarvest'!$C$19","v":23.145667978645726},11.947242472987913,1356.8640322724536,{"$f":"_xlfn.XLOOKUP(B103,FeedTables!$C$17:$T$17,FeedTables!$C$31:$T$31,,-1)","v":"Unga 4mm"},{"$f":"_xlfn.XLOOKUP(Q103,FeedPrice[Feed],FeedPrice[Price per kg],\"Unknown\",0)*O103","v":1186.7207895661368},136957.91120879189,{"$f":"_xlfn.XLOOKUP(O103,LabourFromFeed[Feed Quantity (kg)],LabourFromFeed[No. Labour],\"Out of range\",-1)","v":1},{"$f":"T103*OperatingCosts!$C$9","v":1200},122400]
[102,{"$f":"IF(A104<='S4-PartialHarvest'!$C$9, B103*EXP((LN((E103/100)+1))*1),)","v":337.17319893765057},{"$f":"_xlfn.XLOOKUP($B104,FeedTables!$C$42:$T$42,FeedTables!$C$44:$T$44,,-1)","v":1.9117636283850548},{"$f":"_xlfn.XLOOKUP($B104,FeedTables!$C$42:$T$42,FeedTables!$C$45:$T$45,,-1)","v":1.5351728093320252},{"$f":"_xlfn.XLOOKUP($B104,FeedTables!$C$42:$T$42,FeedTables!$C$46:$T$46,,-1)*_xlfn.XLOOKUP(N103,DensityMultiplier[Biomass kg/m3],DensityMultiplier[Multiplier],,-1)","v":1.2453084218035946},{"$f":"IF(A104>'S4-PartialHarvest'!$C$9,0,IF(A104='S4-PartialHarvest'!$C$7,(F103-G103-H103)*(1-'S4-PartialHarvest'!$C$8),(F103-G103-H103)))","v":1876.5058593283368},{"$f":"IF(A104<='S4-PartialHarvest'!$C$7,('Growth-Model-4'!G103*EXP($Z$7)),IF(A104<'S4-PartialHarvest'!$C$9,('Growth-Model-4'!G103*EXP($AA$7)),0))+IF(A104='S4-PartialHarvest'!$C$7,'Growth-Model-4'!$AA$6,0)","v":1.5882672978003193E-2},{"$f":"IF(A104<='S4-PartialHarvest'!$C$9,$AD$6*EXP($AD$7*('S4-PartialHarvest'!C$9-'Growth-Model-4'!A104)),0)","v":3.6931219604957907E-3},235.73943762832187,5.8207268550202931E-2,6.6004334011611707,23.661373188287264,632.70748341498029,{"$f":"M104/'S4-PartialHarvest'!$C$19","v":23.43361049685112},12.095871541997996,1368.9599038144515,{"$f":"_xlfn.XLOOKUP(B104,FeedTables!$C$17:$T$17,FeedTables!$C$31:$T$31,,-1)","v":"Unga 4mm"},{"$f":"_xlfn.XLOOKUP(Q104,FeedPrice[Feed],FeedPrice[Price per kg],\"Unknown\",0)*O104","v":1201.4841298538151},138159.3953386457,{"$f":"_xlfn.XLOOKUP(O104,LabourFromFeed[Feed Quantity (kg)],LabourFromFeed[No. Labour],\"Out of range\",-1)","v":1},{"$f":"T104*OperatingCosts!$C$9","v":1200},123600]
[103,{"$f":"IF(A105<='S4-PartialHarvest'!$C$9, B104*EXP((LN((E104/100)+1))*1),)","v":341.37204518008571},{"$f":"_xlfn.XLOOKUP($B105,FeedTables!$C$42:$T$42,FeedTables!$C$44:$T$44,,-1)","v":1.9117636283850548},{"$f":"_xlfn.XLOOKUP($B105,FeedTables!$C$42:$T$42,FeedTables!$C$45:$T$45,,-1)","v":1.5351728093320252},{"$f":"_xlfn.XLOOKUP($B105,FeedTables!$C$42:$T$42,FeedTables!$C$46:$T$46,,-1)*_xlfn.XLOOKUP(N104,DensityMultiplier[Biomass kg/m3],DensityMultiplier[Multiplier],,-1)","v":1.2453084218035946},{"$f":"IF(A105>'S4-PartialHarvest'!$C$9,0,IF(A105='S4-PartialHarvest'!$C$7,(F104-G104-H104)*(1-'S4-PartialHarvest'!$C$8),(F104-G104-H104)))","v":1876.4862835333984},{"$f":"IF(A105<='S4-PartialHarvest'!$C$7,('Growth-Model-4'!G104*EXP($Z$7)),IF(A105<'S4-PartialHarvest'!$C$9,('Growth-Model-4'!G104*EXP($AA$7)),0))+IF(A105='S4-PartialHarvest'!$C$7,'Growth-Model-4'!$AA$6,0)","v":1.2369438152535928E-2},{"$f":"IF(A105<='S4-PartialHarvest'!$C$9,$AD$6*EXP($AD$7*('S4-PartialHarvest'!C$9-'Growth-Model-4'!A105)),0)","v":4.5107893487714495E-3},235.7563178558232,5.8211436507610667E-2,5.7624377852264281,23.66713562607249,640.57996036217446,{"$f":"M105/'S4-PartialHarvest'!$C$19","v":23.725183717117574},12.246374692927452,1381.206278507379,{"$f":"_xlfn.XLOOKUP(B105,FeedTables!$C$17:$T$17,FeedTables!$C$31:$T$31,,-1)","v":"Unga 4mm"},{"$f":"_xlfn.XLOOKUP(Q105,FeedPrice[Feed],FeedPrice[Price per kg],\"Unknown\",0)*O105","v":1216.4336228859531},139375.82896153166,{"$f":"_xlfn.XLOOKUP(O105,LabourFromFeed[Feed Quantity (kg)],LabourFromFeed[No. Labour],\"Out of range\",-1)","v":1},{"$f":"T105*OperatingCosts!$C$9","v":1200},124800]
[104,{"$f":"IF(A106<='S4-PartialHarvest'!$C$9, B105*EXP((LN((E105/100)+1))*1),)","v":345.6231800083965},{"$f":"_xlfn.XLOOKUP($B106,FeedTables!$C$42:$T$42,FeedTables!$C$44:$T$44,,-1)","v":1.9117636283850548},{"$f":"_xlfn.XLOOKUP($B106,FeedTables!$C$42:$T$42,FeedTables!$C$45:$T$45,,-1)","v":1.5351728093320252},{"$f":"_xlfn.XLOOKUP($B106,FeedTables!$C$42:$T$42,FeedTables!$C$46:$T$46,,-1)*_xlfn.XLOOKUP(N105,DensityMultiplier[Biomass kg/m3],DensityMultiplier[Multiplier],,-1)","v":1.2453084218035946},{"$f":"IF(A106>'S4-PartialHarvest'!$C$9,0,IF(A106='S4-PartialHarvest'!$C$7,(F105-G105-H105)*(1-'S4-PartialHarvest'!$C$8),(F105-G105-H105)))","v":1876.469403305897},{"$f":"IF(A106<='S4-PartialHarvest'!$C$7,('Growth-Model-4'!G105*EXP($Z$7)),IF(A106<'S4-PartialHarvest'!$C$9,('Growth-Model-4'!G105*EXP($AA$7)),0))+IF(A106='S4-PartialHarvest'!$C$7,'Growth-Model-4'!$AA$6,0)","v":9.6333281193482934E-3},{"$f":"IF(A106<='S4-PartialHarvest'!$C$9,$AD$6*EXP($AD$7*('S4-PartialHarvest'!C$9-'Growth-Model-4'!A106)),0)","v":5.5094905520689658E-3},235.77146067449462,5.8215175475183858E-2,5.233709143505755,23.672369335215997,648.55132235904239,{"$f":"M106/'S4-PartialHarvest'!$C$19","v":24.020419346631201},12.398768292270482,1393.6050467996495,{"$f":"_xlfn.XLOOKUP(B106,FeedTables!$C$17:$T$17,FeedTables!$C$31:$T$31,,-1)","v":"Unga 4mm"},{"$f":"_xlfn.XLOOKUP(Q106,FeedPrice[Feed],FeedPrice[Price per kg],\"Unknown\",0)*O106","v":1231.5708943480563},140607.39985587972,{"$f":"_xlfn.XLOOKUP(O106,LabourFromFeed[Feed Quantity (kg)],LabourFromFeed[No. Labour],\"Out of range\",-1)","v":1},{"$f":"T106*OperatingCosts!$C$9","v":1200},126000]
[105,{"$f":"IF(A107<='S4-PartialHarvest'!$C$9, B106*EXP((LN((E106/100)+1))*1),)","v":349.92725457674646},{"$f":"_xlfn.XLOOKUP($B107,FeedTables!$C$42:$T$42,FeedTables!$C$44:$T$44,,-1)","v":1.9117636283850548},{"$f":"_xlfn.XLOOKUP($B107,FeedTables!$C$42:$T$42,FeedTables!$C$45:$T$45,,-1)","v":1.5351728093320252},{"$f":"_xlfn.XLOOKUP($B107,FeedTables!$C$42:$T$42,FeedTables!$C$46:$T$46,,-1)*_xlfn.XLOOKUP(N106,DensityMultiplier[Biomass kg/m3],DensityMultiplier[Multiplier],,-1)","v":1.2453084218035946},{"$f":"IF(A107>'S4-PartialHarvest'!$C$9,0,IF(A107='S4-PartialHarvest'!$C$7,(F106-G106-H106)*(1-'S4-PartialHarvest'!$C$8),(F106-G106-H106)))","v":1876.4542604872256},{"$f":"IF(A107<='S4-PartialHarvest'!$C$7,('Growth-Model-4'!G106*EXP($Z$7)),IF(A107<'S4-PartialHarvest'!$C$9,('Growth-Model-4'!G106*EXP($AA$7)),0))+IF(A107='S4-PartialHarvest'!$C$7,'Growth-Model-4'!$AA$6,0)","v":7.5024434829322351E-3},{"$f":"IF(A107<='S4-PartialHarvest'!$C$9,$AD$6*EXP($AD$7*('S4-PartialHarvest'!C$9-'Growth-Model-4'!A107)),0)","v":6.7293069563544323E-3},235.7856924249339,5.8218689487637997E-2,4.9800773590409886,23.677349412575037,656.62248771113389,{"$f":"M107/'S4-PartialHarvest'!$C$19","v":24.319351396708662},12.553069895858583,1406.1581166955079,{"$f":"_xlfn.XLOOKUP(B107,FeedTables!$C$17:$T$17,FeedTables!$C$31:$T$31,,-1)","v":"Unga 4mm"},{"$f":"_xlfn.XLOOKUP(Q107,FeedPrice[Feed],FeedPrice[Price per kg],\"Unknown\",0)*O107","v":1246.8976880626226},141854.29754394235,{"$f":"_xlfn.XLOOKUP(O107,LabourFromFeed[Feed Quantity (kg)],LabourFromFeed[No. Labour],\"Out of range\",-1)","v":1},{"$f":"T107*OperatingCosts!$C$9","v":1200},127200]
[106,{"$f":"IF(A108<='S4-PartialHarvest'!$C$9, B107*EXP((LN((E107/100)+1))*1),)","v":354.28492814817679},{"$f":"_xlfn.XLOOKUP($B108,FeedTables!$C$42:$T$42,FeedTables!$C$44:$T$44,,-1)","v":1.9117636283850548},{"$f":"_xlfn.XLOOKUP($B108,FeedTables!$C$42:$T$42,FeedTables!$C$45:$T$45,,-1)","v":1.5351728093320252},{"$f":"_xlfn.XLOOKUP($B108,FeedTables!$C$42:$T$42,FeedTables!$C$46:$T$46,,-1)*_xlfn.XLOOKUP(N107,DensityMultiplier[Biomass kg/m3],DensityMultiplier[Multiplier],,-1)","v":1.2453084218035946},{"$f":"IF(A108>'S4-PartialHarvest'!$C$9,0,IF(A108='S4-PartialHarvest'!$C$7,(F107-G107-H107)*(1-'S4-PartialHarvest'!$C$8),(F107-G107-H107)))","v":1876.4400287367862},{"$f":"IF(A108<='S4-PartialHarvest'!$C$7,('Growth-Model-4'!G107*EXP($Z$7)),IF(A108<'S4-PartialHarvest'!$C$9,('Growth-Model-4'!G107*EXP($AA$7)),0))+IF(A108='S4-PartialHarvest'!$C$7,'Growth-Model-4'!$AA$6,0)","v":5.8429088594565831E-3},{"$f":"IF(A108<='S4-PartialHarvest'!$C$9,$AD$6*EXP($AD$7*('S4-PartialHarvest'!C$9-'Growth-Model-4'!A108)),0)","v":8.2191940769977233E-3},235.79975452787033,5.8222161611819832E-2,4.9819911284539797,23.68233140370349,664.79442075537509,{"$f":"M108/'S4-PartialHarvest'!$C$19","v":24.622015583532409},12.709297939534366,1418.8674146350422,{"$f":"_xlfn.XLOOKUP(B108,FeedTables!$C$17:$T$17,FeedTables!$C$31:$T$31,,-1)","v":"Unga 4mm"},{"$f":"_xlfn.XLOOKUP(Q108,FeedPrice[Feed],FeedPrice[Price per kg],\"Unknown\",0)*O108","v":1262.4158352637426},143116.71337920608,{"$f":"_xlfn.XLOOKUP(O108,LabourFromFeed[Feed Quantity (kg)],LabourFromFeed[No. Labour],\"Out of range\",-1)","v":1},{"$f":"T108*OperatingCosts!$C$9","v":1200},128400]
[107,{"$f":"IF(A109<='S4-PartialHarvest'!$C$9, B108*EXP((LN((E108/100)+1))*1),)","v":358.69686819558683},{"$f":"_xlfn.XLOOKUP($B109,FeedTables!$C$42:$T$42,FeedTables!$C$44:$T$44,,-1)","v":1.9117636283850548},{"$f":"_xlfn.XLOOKUP($B109,FeedTables!$C$42:$T$42,FeedTables!$C$45:$T$45,,-1)","v":1.5351728093320252},{"$f":"_xlfn.XLOOKUP($B109,FeedTables!$C$42:$T$42,FeedTables!$C$46:$T$46,,-1)*_xlfn.XLOOKUP(N108,DensityMultiplier[Biomass kg/m3],DensityMultiplier[Multiplier],,-1)","v":1.2453084218035946},{"$f":"IF(A109>'S4-PartialHarvest'!$C$9,0,IF(A109='S4-PartialHarvest'!$C$7,(F108-G108-H108)*(1-'S4-PartialHarvest'!$C$8),(F108-G108-H108)))","v":1876.4259666338498},{"$f":"IF(A109<='S4-PartialHarvest'!$C$7,('Growth-Model-4'!G108*EXP($Z$7)),IF(A109<'S4-PartialHarvest'!$C$9,('Growth-Model-4'!G108*EXP($AA$7)),0))+IF(A109='S4-PartialHarvest'!$C$7,'Growth-Model-4'!$AA$6,0)","v":4.5504619951596357E-3},{"$f":"IF(A109<='S4-PartialHarvest'!$C$9,$AD$6*EXP($AD$7*('S4-PartialHarvest'!C$9-'Growth-Model-4'!A109)),0)","v":1.0038946315498752E-2},235.81434393618099,5.8225763934859502E-2,5.2331750698598309,23.687564578773351,673.06811763243866,{"$f":"M109/'S4-PartialHarvest'!$C$19","v":24.92844880120143},12.867471467152898,1431.7348861021951,{"$f":"_xlfn.XLOOKUP(B109,FeedTables!$C$17:$T$17,FeedTables!$C$31:$T$31,,-1)","v":"Unga 4mm"},{"$f":"_xlfn.XLOOKUP(Q109,FeedPrice[Feed],FeedPrice[Price per kg],\"Unknown\",0)*O109","v":1278.127227579444},144394.84060678552,{"$f":"_xlfn.XLOOKUP(O109,LabourFromFeed[Feed Quantity (kg)],LabourFromFeed[No. Labour],\"Out of range\",-1)","v":1},{"$f":"T109*OperatingCosts!$C$9","v":1200},129600]
[108,{"$f":"IF(A110<='S4-PartialHarvest'!$C$9, B109*EXP((LN((E109/100)+1))*1),)","v":363.16375050397221},{"$f":"_xlfn.XLOOKUP($B110,FeedTables!$C$42:$T$42,FeedTables!$C$44:$T$44,,-1)","v":1.9117636283850548},{"$f":"_xlfn.XLOOKUP($B110,FeedTables!$C$42:$T$42,FeedTables!$C$45:$T$45,,-1)","v":1.5351728093320252},{"$f":"_xlfn.XLOOKUP($B110,FeedTables!$C$42:$T$42,FeedTables!$C$46:$T$46,,-1)*_xlfn.XLOOKUP(N109,DensityMultiplier[Biomass kg/m3],DensityMultiplier[Multiplier],,-1)","v":1.2453084218035946},{"$f":"IF(A110>'S4-PartialHarvest'!$C$9,0,IF(A110='S4-PartialHarvest'!$C$7,(F109-G109-H109)*(1-'S4-PartialHarvest'!$C$8),(F109-G109-H109)))","v":1876.4113772255391},{"$f":"IF(A110<='S4-PartialHarvest'!$C$7,('Growth-Model-4'!G109*EXP($Z$7)),IF(A110<'S4-PartialHarvest'!$C$9,('Growth-Model-4'!G109*EXP($AA$7)),0))+IF(A110='S4-PartialHarvest'!$C$7,'Growth-Model-4'!$AA$6,0)","v":3.5439033651669919E-3},{"$f":"IF(A110<='S4-PartialHarvest'!$C$9,$AD$6*EXP($AD$7*('S4-PartialHarvest'!C$9-'Growth-Model-4'!A110)),0)","v":1.2261596718772041E-2},235.83014943626492,5.8229666527472822E-2,5.7399846890741468,23.693304563462426,681.44459324155059,{"$f":"M110/'S4-PartialHarvest'!$C$19","v":25.238688638575947},13.027609881188445,1444.7624959833836,{"$f":"_xlfn.XLOOKUP(B110,FeedTables!$C$17:$T$17,FeedTables!$C$31:$T$31,,-1)","v":"Unga 4mm"},{"$f":"_xlfn.XLOOKUP(Q110,FeedPrice[Feed],FeedPrice[Price per kg],\"Unknown\",0)*O110","v":1294.0337922594363},145688.87439904496,{"$f":"_xlfn.XLOOKUP(O110,LabourFromFeed[Feed Quantity (kg)],LabourFromFeed[No. Labour],\"Out of range\",-1)","v":1},{"$f":"T110*OperatingCosts!$C$9","v":1200},130800]
[109,{"$f":"IF(A111<='S4-PartialHarvest'!$C$9, B110*EXP((LN((E110/100)+1))*1),)","v":367.68625927393595},{"$f":"_xlfn.XLOOKUP($B111,FeedTables!$C$42:$T$42,FeedTables!$C$44:$T$44,,-1)","v":1.9117636283850548},{"$f":"_xlfn.XLOOKUP($B111,FeedTables!$C$42:$T$42,FeedTables!$C$45:$T$45,,-1)","v":1.5351728093320252},{"$f":"_xlfn.XLOOKUP($B111,FeedTables!$C$42:$T$42,FeedTables!$C$46:$T$46,,-1)*_xlfn.XLOOKUP(N110,DensityMultiplier[Biomass kg/m3],DensityMultiplier[Multiplier],,-1)","v":1.2079491691494868},{"$f":"IF(A111>'S4-PartialHarvest'!$C$9,0,IF(A111='S4-PartialHarvest'!$C$7,(F110-G110-H110)*(1-'S4-PartialHarvest'!$C$8),(F110-G110-H110)))","v":1876.3955717254551},{"$f":"IF(A111<='S4-PartialHarvest'!$C$7,('Growth-Model-4'!G110*EXP($Z$7)),IF(A111<'S4-PartialHarvest'!$C$9,('Growth-Model-4'!G110*EXP($AA$7)),0))+IF(A111='S4-PartialHarvest'!$C$7,'Growth-Model-4'!$AA$6,0)","v":2.7599947159214402E-3},{"$f":"IF(A111<='S4-PartialHarvest'!$C$9,$AD$6*EXP($AD$7*('S4-PartialHarvest'!C$9-'Growth-Model-4'!A111)),0)","v":1.4976348051755862E-2},235.84788577903259,5.8234045871366075E-2,6.521409525447595,23.699825972987874,689.92486868591095,{"$f":"M111/'S4-PartialHarvest'!$C$19","v":25.552772914292998},13.189732702720596,1457.9522286861043,{"$f":"_xlfn.XLOOKUP(B111,FeedTables!$C$17:$T$17,FeedTables!$C$31:$T$31,,-1)","v":"Unga 4mm"},{"$f":"_xlfn.XLOOKUP(Q111,FeedPrice[Feed],FeedPrice[Price per kg],\"Unknown\",0)*O111","v":1310.137468334507},146999.01186737948,{"$f":"_xlfn.XLOOKUP(O111,LabourFromFeed[Feed Quantity (kg)],LabourFromFeed[No. Labour],\"Out of range\",-1)","v":1},{"$f":"T111*OperatingCosts!$C$9","v":1200},132000]
[110,{"$f":"IF(A112<='S4-PartialHarvest'!$C$9, B111*EXP((LN((E111/100)+1))*1),)","v":372.12772238791229},{"$f":"_xlfn.XLOOKUP($B112,FeedTables!$C$42:$T$42,FeedTables!$C$44:$T$44,,-1)","v":1.9117636283850548},{"$f":"_xlfn.XLOOKUP($B112,FeedTables!$C$42:$T$42,FeedTables!$C$45:$T$45,,-1)","v":1.5351728093320252},{"$f":"_xlfn.XLOOKUP($B112,FeedTables!$C$42:$T$42,FeedTables!$C$46:$T$46,,-1)*_xlfn.XLOOKUP(N111,DensityMultiplier[Biomass kg/m3],DensityMultiplier[Multiplier],,-1)","v":1.2079491691494868},{"$f":"IF(A112>'S4-PartialHarvest'!$C$9,0,IF(A112='S4-PartialHarvest'!$C$7,(F111-G111-H111)*(1-'S4-PartialHarvest'!$C$8),(F111-G111-H111)))","v":1876.3778353826874},{"$f":"IF(A112<='S4-PartialHarvest'!$C$7,('Growth-Model-4'!G111*EXP($Z$7)),IF(A112<'S4-PartialHarvest'!$C$9,('Growth-Model-4'!G111*EXP($AA$7)),0))+IF(A112='S4-PartialHarvest'!$C$7,'Growth-Model-4'!$AA$6,0)","v":2.1494860460325575E-3},{"$f":"IF(A112<='S4-PartialHarvest'!$C$9,$AD$6*EXP($AD$7*('S4-PartialHarvest'!C$9-'Growth-Model-4'!A112)),0)","v":1.8292152817581297E-2},235.86832741789621,5.8239093189604005E-2,7.6069005121928557,23.707432873500068,698.25221022012045,{"$f":"M112/'S4-PartialHarvest'!$C$19","v":25.861192971115571},13.348931789383014,1471.3011604754872,{"$f":"_xlfn.XLOOKUP(B112,FeedTables!$C$17:$T$17,FeedTables!$C$31:$T$31,,-1)","v":"Unga 4mm"},{"$f":"_xlfn.XLOOKUP(Q112,FeedPrice[Feed],FeedPrice[Price per kg],\"Unknown\",0)*O112","v":1325.9507295325939},148324.96259691208,{"$f":"_xlfn.XLOOKUP(O112,LabourFromFeed[Feed Quantity (kg)],LabourFromFeed[No. Labour],\"Out of range\",-1)","v":1},{"$f":"T112*OperatingCosts!$C$9","v":1200},133200]
[111,{"$f":"IF(A113<='S4-PartialHarvest'!$C$9, B112*EXP((LN((E112/100)+1))*1),)","v":376.62283611867196},{"$f":"_xlfn.XLOOKUP($B113,FeedTables!$C$42:$T$42,FeedTables!$C$44:$T$44,,-1)","v":1.9117636283850548},{"$f":"_xlfn.XLOOKUP($B113,FeedTables!$C$42:$T$42,FeedTables!$C$45:$T$45,,-1)","v":1.5351728093320252},{"$f":"_xlfn.XLOOKUP($B113,FeedTables!$C$42:$T$42,FeedTables!$C$46:$T$46,,-1)*_xlfn.XLOOKUP(N112,DensityMultiplier[Biomass kg/m3],DensityMultiplier[Multiplier],,-1)","v":1.2079491691494868},{"$f":"IF(A113>'S4-PartialHarvest'!$C$9,0,IF(A113='S4-PartialHarvest'!$C$7,(F112-G112-H112)*(1-'S4-PartialHarvest'!$C$8),(F112-G112-H112)))","v":1876.3573937438239},{"$f":"IF(A113<='S4-PartialHarvest'!$C$7,('Growth-Model-4'!G112*EXP($Z$7)),IF(A113<'S4-PartialHarvest'!$C$9,('Growth-Model-4'!G112*EXP($AA$7)),0))+IF(A113='S4-PartialHarvest'!$C$7,'Growth-Model-4'!$AA$6,0)","v":1.6740214158512136E-3},{"$f":"IF(A113<='S4-PartialHarvest'!$C$9,$AD$6*EXP($AD$7*('S4-PartialHarvest'!C$9-'Growth-Model-4'!A113)),0)","v":2.2342085904081124E-2},235.89234352521615,5.824502309264596E-2,9.0450144513633148,23.716477887951431,706.67904320403863,{"$f":"M113/'S4-PartialHarvest'!$C$19","v":26.173297896445874},13.510032917394318,1484.8111933928815,{"$f":"_xlfn.XLOOKUP(B113,FeedTables!$C$17:$T$17,FeedTables!$C$31:$T$31,,-1)","v":"Unga 4mm"},{"$f":"_xlfn.XLOOKUP(Q113,FeedPrice[Feed],FeedPrice[Price per kg],\"Unknown\",0)*O113","v":1341.9529206880693},149666.91551760017,{"$f":"_xlfn.XLOOKUP(O113,LabourFromFeed[Feed Quantity (kg)],LabourFromFeed[No. Labour],\"Out of range\",-1)","v":1},{"$f":"T113*OperatingCosts!$C$9","v":1200},134400]
[112,{"$f":"IF(A114<='S4-PartialHarvest'!$C$9, B113*EXP((LN((E113/100)+1))*1),)","v":381.17224853839468},{"$f":"_xlfn.XLOOKUP($B114,FeedTables!$C$42:$T$42,FeedTables!$C$44:$T$44,,-1)","v":1.9117636283850548},{"$f":"_xlfn.XLOOKUP($B114,FeedTables!$C$42:$T$42,FeedTables!$C$45:$T$45,,-1)","v":1.5351728093320252},{"$f":"_xlfn.XLOOKUP($B114,FeedTables!$C$42:$T$42,FeedTables!$C$46:$T$46,,-1)*_xlfn.XLOOKUP(N113,DensityMultiplier[Biomass kg/m3],DensityMultiplier[Multiplier],,-1)","v":1.2079491691494868},{"$f":"IF(A114>'S4-PartialHarvest'!$C$9,0,IF(A114='S4-PartialHarvest'!$C$7,(F113-G113-H113)*(1-'S4-PartialHarvest'!$C$8),(F113-G113-H113)))","v":1876.3333776365041},{"$f":"IF(A114<='S4-PartialHarvest'!$C$7,('Growth-Model-4'!G113*EXP($Z$7)),IF(A114<'S4-PartialHarvest'!$C$9,('Growth-Model-4'!G113*EXP($AA$7)),0))+IF(A114='S4-PartialHarvest'!$C$7,'Growth-Model-4'!$AA$6,0)","v":1.303729189543227E-3},{"$f":"IF(A114<='S4-PartialHarvest'!$C$9,$AD$6*EXP($AD$7*('S4-PartialHarvest'!C$9-'Growth-Model-4'!A114)),0)","v":2.7288685346296141E-2},235.92093593975198,5.8252082948086911E-2,10.898634939767772,23.727376522891198,715.206212561347,{"$f":"M114/'S4-PartialHarvest'!$C$19","v":26.489118983753592},13.673052239698135,1498.4842456325796,{"$f":"_xlfn.XLOOKUP(B114,FeedTables!$C$17:$T$17,FeedTables!$C$31:$T$31,,-1)","v":"Unga 4mm"},{"$f":"_xlfn.XLOOKUP(Q114,FeedPrice[Feed],FeedPrice[Price per kg],\"Unknown\",0)*O114","v":1358.1456462744397},151025.0611638746,{"$f":"_xlfn.XLOOKUP(O114,LabourFromFeed[Feed Quantity (kg)],LabourFromFeed[No. Labour],\"Out of range\",-1)","v":1},{"$f":"T114*OperatingCosts!$C$9","v":1200},135600]
[113,{"$f":"IF(A115<='S4-PartialHarvest'!$C$9, B114*EXP((LN((E114/100)+1))*1),)","v":385.77661554764262},{"$f":"_xlfn.XLOOKUP($B115,FeedTables!$C$42:$T$42,FeedTables!$C$44:$T$44,,-1)","v":1.9117636283850548},{"$f":"_xlfn.XLOOKUP($B115,FeedTables!$C$42:$T$42,FeedTables!$C$45:$T$45,,-1)","v":1.5351728093320252},{"$f":"_xlfn.XLOOKUP($B115,FeedTables!$C$42:$T$42,FeedTables!$C$46:$T$46,,-1)*_xlfn.XLOOKUP(N114,DensityMultiplier[Biomass kg/m3],DensityMultiplier[Multiplier],,-1)","v":1.2079491691494868},{"$f":"IF(A115>'S4-PartialHarvest'!$C$9,0,IF(A115='S4-PartialHarvest'!$C$7,(F114-G114-H114)*(1-'S4-PartialHarvest'!$C$8),(F114-G114-H114)))","v":1876.3047852219684},{"$f":"IF(A115<='S4-PartialHarvest'!$C$7,('Growth-Model-4'!G114*EXP($Z$7)),IF(A115<'S4-PartialHarvest'!$C$9,('Growth-Model-4'!G114*EXP($AA$7)),0))+IF(A115='S4-PartialHarvest'!$C$7,'Growth-Model-4'!$AA$6,0)","v":1.0153453137293133E-3},{"$f":"IF(A115<='S4-PartialHarvest'!$C$9,$AD$6*EXP($AD$7*('S4-PartialHarvest'!C$9-'Growth-Model-4'!A115)),0)","v":3.3330475548531094E-2},235.95528176061424,5.8260563397682527E-2,13.249814530448436,23.740626337421645,723.83450977877749,{"$f":"M115/'S4-PartialHarvest'!$C$19","v":26.808685547362128},13.83800488764993,1512.3222505202295,{"$f":"_xlfn.XLOOKUP(B115,FeedTables!$C$17:$T$17,FeedTables!$C$31:$T$31,,-1)","v":"Unga 4mm"},{"$f":"_xlfn.XLOOKUP(Q115,FeedPrice[Feed],FeedPrice[Price per kg],\"Unknown\",0)*O115","v":1374.5304092907563},152399.59157316535,{"$f":"_xlfn.XLOOKUP(O115,LabourFromFeed[Feed Quantity (kg)],LabourFromFeed[No. Labour],\"Out of range\",-1)","v":1},{"$f":"T115*OperatingCosts!$C$9","v":1200},136800]
[114,{"$f":"IF(A116<='S4-PartialHarvest'!$C$9, B115*EXP((LN((E115/100)+1))*1),)","v":390.43660096992335},{"$f":"_xlfn.XLOOKUP($B116,FeedTables!$C$42:$T$42,FeedTables!$C$44:$T$44,,-1)","v":1.9117636283850548},{"$f":"_xlfn.XLOOKUP($B116,FeedTables!$C$42:$T$42,FeedTables!$C$45:$T$45,,-1)","v":1.5351728093320252},{"$f":"_xlfn.XLOOKUP($B116,FeedTables!$C$42:$T$42,FeedTables!$C$46:$T$46,,-1)*_xlfn.XLOOKUP(N115,DensityMultiplier[Biomass kg/m3],DensityMultiplier[Multiplier],,-1)","v":1.2079491691494868},{"$f":"IF(A116>'S4-PartialHarvest'!$C$9,0,IF(A116='S4-PartialHarvest'!$C$7,(F115-G115-H115)*(1-'S4-PartialHarvest'!$C$8),(F115-G115-H115)))","v":1876.2704394011059},{"$f":"IF(A116<='S4-PartialHarvest'!$C$7,('Growth-Model-4'!G115*EXP($Z$7)),IF(A116<'S4-PartialHarvest'!$C$9,('Growth-Model-4'!G115*EXP($AA$7)),0))+IF(A116='S4-PartialHarvest'!$C$7,'Growth-Model-4'!$AA$6,0)","v":7.9075172542027042E-4},{"$f":"IF(A116<='S4-PartialHarvest'!$C$9,$AD$6*EXP($AD$7*('S4-PartialHarvest'!C$9-'Growth-Model-4'!A116)),0)","v":4.0709934765765982E-2},235.99678244710543,5.8270810480766773E-2,16.203386971537174,23.756829724393182,732.56465286011235,{"$f":"M116/'S4-PartialHarvest'!$C$19","v":27.132024180004162},14.004904587784864,1526.3271551080145,{"$f":"_xlfn.XLOOKUP(B116,FeedTables!$C$17:$T$17,FeedTables!$C$31:$T$31,,-1)","v":"Unga 4mm"},{"$f":"_xlfn.XLOOKUP(Q116,FeedPrice[Feed],FeedPrice[Price per kg],\"Unknown\",0)*O116","v":1391.1085731951293},153790.70014636047,{"$f":"_xlfn.XLOOKUP(O116,LabourFromFeed[Feed Quantity (kg)],LabourFromFeed[No. Labour],\"Out of range\",-1)","v":1},{"$f":"T116*OperatingCosts!$C$9","v":1200},138000]
[115,{"$f":"IF(A117<='S4-PartialHarvest'!$C$9, B116*EXP((LN((E116/100)+1))*1),)","v":395.15287664739503},{"$f":"_xlfn.XLOOKUP($B117,FeedTables!$C$42:$T$42,FeedTables!$C$44:$T$44,,-1)","v":1.9117636283850548},{"$f":"_xlfn.XLOOKUP($B117,FeedTables!$C$42:$T$42,FeedTables!$C$45:$T$45,,-1)","v":1.5351728093320252},{"$f":"_xlfn.XLOOKUP($B117,FeedTables!$C$42:$T$42,FeedTables!$C$46:$T$46,,-1)*_xlfn.XLOOKUP(N116,DensityMultiplier[Biomass kg/m3],DensityMultiplier[Multiplier],,-1)","v":1.2079491691494868},{"$f":"IF(A117>'S4-PartialHarvest'!$C$9,0,IF(A117='S4-PartialHarvest'!$C$7,(F116-G116-H116)*(1-'S4-PartialHarvest'!$C$8),(F116-G116-H116)))","v":1876.2289387146147},{"$f":"IF(A117<='S4-PartialHarvest'!$C$7,('Growth-Model-4'!G116*EXP($Z$7)),IF(A117<'S4-PartialHarvest'!$C$9,('Growth-Model-4'!G116*EXP($AA$7)),0))+IF(A117='S4-PartialHarvest'!$C$7,'Growth-Model-4'!$AA$6,0)","v":6.1583806297237109E-4},{"$f":"IF(A117<='S4-PartialHarvest'!$C$9,$AD$6*EXP($AD$7*('S4-PartialHarvest'!C$9-'Growth-Model-4'!A117)),0)","v":4.9723226607427166E-2},236.04712151177583,5.8283239879450818E-2,19.89162621224763,23.776721350605428,741.39726238216906,{"$f":"M117/'S4-PartialHarvest'!$C$19","v":27.459157866006262},14.173763204064819,1540.5009183120794,{"$f":"_xlfn.XLOOKUP(B117,FeedTables!$C$17:$T$17,FeedTables!$C$31:$T$31,,-1)","v":"Unga 4mm"},{"$f":"_xlfn.XLOOKUP(Q117,FeedPrice[Feed],FeedPrice[Price per kg],\"Unknown\",0)*O117","v":1407.881316436079},155198.58146279654,{"$f":"_xlfn.XLOOKUP(O117,LabourFromFeed[Feed Quantity (kg)],LabourFromFeed[No. Labour],\"Out of range\",-1)","v":1},{"$f":"T117*OperatingCosts!$C$9","v":1200},139200]
[116,{"$f":"IF(A118<='S4-PartialHarvest'!$C$9, B117*EXP((LN((E117/100)+1))*1),)","v":399.92612253772751},{"$f":"_xlfn.XLOOKUP($B118,FeedTables!$C$42:$T$42,FeedTables!$C$44:$T$44,,-1)","v":1.9117636283850548},{"$f":"_xlfn.XLOOKUP($B118,FeedTables!$C$42:$T$42,FeedTables!$C$45:$T$45,,-1)","v":1.5351728093320252},{"$f":"_xlfn.XLOOKUP($B118,FeedTables!$C$42:$T$42,FeedTables!$C$46:$T$46,,-1)*_xlfn.XLOOKUP(N117,DensityMultiplier[Biomass kg/m3],DensityMultiplier[Multiplier],,-1)","v":1.2079491691494868},{"$f":"IF(A118>'S4-PartialHarvest'!$C$9,0,IF(A118='S4-PartialHarvest'!$C$7,(F117-G117-H117)*(1-'S4-PartialHarvest'!$C$8),(F117-G117-H117)))","v":1876.1785996499443},{"$f":"IF(A118<='S4-PartialHarvest'!$C$7,('Growth-Model-4'!G117*EXP($Z$7)),IF(A118<'S4-PartialHarvest'!$C$9,('Growth-Model-4'!G117*EXP($AA$7)),0))+IF(A118='S4-PartialHarvest'!$C$7,'Growth-Model-4'!$AA$6,0)","v":4.7961516568805976E-4},{"$f":"IF(A118<='S4-PartialHarvest'!$C$9,$AD$6*EXP($AD$7*('S4-PartialHarvest'!C$9-'Growth-Model-4'!A118)),0)","v":6.0732086122934695E-2},236.10833321306444,5.8298353879768998E-2,24.480158350296517,23.801201508955725,750.33283254626565,{"$f":"M118/'S4-PartialHarvest'!$C$19","v":27.790104909120949},14.344590184450846,1554.8455084965303,{"$f":"_xlfn.XLOOKUP(B118,FeedTables!$C$17:$T$17,FeedTables!$C$31:$T$31,,-1)","v":"Unga 4mm"},{"$f":"_xlfn.XLOOKUP(Q118,FeedPrice[Feed],FeedPrice[Price per kg],\"Unknown\",0)*O118","v":1424.849577480521},156623.43104027706,{"$f":"_xlfn.XLOOKUP(O118,LabourFromFeed[Feed Quantity (kg)],LabourFromFeed[No. Labour],\"Out of range\",-1)","v":1},{"$f":"T118*OperatingCosts!$C$9","v":1200},140400]
[117,{"$f":"IF(A119<='S4-PartialHarvest'!$C$9, B118*EXP((LN((E118/100)+1))*1),)","v":404.75702681213374},{"$f":"_xlfn.XLOOKUP($B119,FeedTables!$C$42:$T$42,FeedTables!$C$44:$T$44,,-1)","v":1.5895597072390606},{"$f":"_xlfn.XLOOKUP($B119,FeedTables!$C$42:$T$42,FeedTables!$C$45:$T$45,,-1)","v":1.5711330683884976},{"$f":"_xlfn.XLOOKUP($B119,FeedTables!$C$42:$T$42,FeedTables!$C$46:$T$46,,-1)*_xlfn.XLOOKUP(N118,DensityMultiplier[Biomass kg/m3],DensityMultiplier[Multiplier],,-1)","v":0.98137640092024747},{"$f":"IF(A119>'S4-PartialHarvest'!$C$9,0,IF(A119='S4-PartialHarvest'!$C$7,(F118-G118-H118)*(1-'S4-PartialHarvest'!$C$8),(F118-G118-H118)))","v":1876.1173879486557},{"$f":"IF(A119<='S4-PartialHarvest'!$C$7,('Growth-Model-4'!G118*EXP($Z$7)),IF(A119<'S4-PartialHarvest'!$C$9,('Growth-Model-4'!G118*EXP($AA$7)),0))+IF(A119='S4-PartialHarvest'!$C$7,'Growth-Model-4'!$AA$6,0)","v":3.7352466661078255E-4},{"$f":"IF(A119<='S4-PartialHarvest'!$C$9,$AD$6*EXP($AD$7*('S4-PartialHarvest'!C$9-'Growth-Model-4'!A119)),0)","v":7.4178337499373415E-2},236.18288507523042,5.8316761746970473E-2,30.175390073611766,23.831376899029337,759.37169589664438,{"$f":"M119/'S4-PartialHarvest'!$C$19","v":28.124877625801645},12.070666506150989,1566.9161750026813,{"$f":"_xlfn.XLOOKUP(B119,FeedTables!$C$17:$T$17,FeedTables!$C$31:$T$31,,-1)","v":"Unga 4mm"},{"$f":"_xlfn.XLOOKUP(Q119,FeedPrice[Feed],FeedPrice[Price per kg],\"Unknown\",0)*O119","v":1198.9805111226283},157822.41155139968,{"$f":"_xlfn.XLOOKUP(O119,LabourFromFeed[Feed Quantity (kg)],LabourFromFeed[No. Labour],\"Out of range\",-1)","v":1},{"$f":"T119*OperatingCosts!$C$9","v":1200},141600]
[118,{"$f":"IF(A120<='S4-PartialHarvest'!$C$9, B119*EXP((LN((E119/100)+1))*1),)","v":408.72921675433446},{"$f":"_xlfn.XLOOKUP($B120,FeedTables!$C$42:$T$42,FeedTables!$C$44:$T$44,,-1)","v":1.5895597072390606},{"$f":"_xlfn.XLOOKUP($B120,FeedTables!$C$42:$T$42,FeedTables!$C$45:$T$45,,-1)","v":1.5711330683884976},{"$f":"_xlfn.XLOOKUP($B120,FeedTables!$C$42:$T$42,FeedTables!$C$46:$T$46,,-1)*_xlfn.XLOOKUP(N119,DensityMultiplier[Biomass kg/m3],DensityMultiplier[Multiplier],,-1)","v":0.98137640092024747},{"$f":"IF(A120>'S4-PartialHarvest'!$C$9,0,IF(A120='S4-PartialHarvest'!$C$7,(F119-G119-H119)*(1-'S4-PartialHarvest'!$C$8),(F119-G119-H119)))","v":1876.0428360864896},{"$f":"IF(A120<='S4-PartialHarvest'!$C$7,('Growth-Model-4'!G119*EXP($Z$7)),IF(A120<'S4-PartialHarvest'!$C$9,('Growth-Model-4'!G119*EXP($AA$7)),0))+IF(A120='S4-PartialHarvest'!$C$7,'Growth-Model-4'!$AA$6,0)","v":2.9090130285296291E-4},{"$f":"IF(A120<='S4-PartialHarvest'!$C$9,$AD$6*EXP($AD$7*('S4-PartialHarvest'!C$9-'Growth-Model-4'!A120)),0)","v":9.0601626017470641E-2},236.27377760255075,5.8339204346308828E-2,37.150431500457813,23.868527330529794,766.79351899121116,{"$f":"M120/'S4-PartialHarvest'!$C$19","v":28.39975996263745},12.188640815604785,1579.1048158182859,{"$f":"_xlfn.XLOOKUP(B120,FeedTables!$C$17:$T$17,FeedTables!$C$31:$T$31,,-1)","v":"Unga 4mm"},{"$f":"_xlfn.XLOOKUP(Q120,FeedPrice[Feed],FeedPrice[Price per kg],\"Unknown\",0)*O120","v":1210.6989110781049},159033.11046247778,{"$f":"_xlfn.XLOOKUP(O120,LabourFromFeed[Feed Quantity (kg)],LabourFromFeed[No. Labour],\"Out of range\",-1)","v":1},{"$f":"T120*OperatingCosts!$C$9","v":1200},142800]
[119,{"$f":"IF(A121<='S4-PartialHarvest'!$C$9, B120*EXP((LN((E120/100)+1))*1),)","v":412.74038883122762},{"$f":"_xlfn.XLOOKUP($B121,FeedTables!$C$42:$T$42,FeedTables!$C$44:$T$44,,-1)","v":1.5895597072390606},{"$f":"_xlfn.XLOOKUP($B121,FeedTables!$C$42:$T$42,FeedTables!$C$45:$T$45,,-1)","v":1.5711330683884976},{"$f":"_xlfn.XLOOKUP($B121,FeedTables!$C$42:$T$42,FeedTables!$C$46:$T$46,,-1)*_xlfn.XLOOKUP(N120,DensityMultiplier[Biomass kg/m3],DensityMultiplier[Multiplier],,-1)","v":0.98137640092024747},{"$f":"IF(A121>'S4-PartialHarvest'!$C$9,0,IF(A121='S4-PartialHarvest'!$C$7,(F120-G120-H120)*(1-'S4-PartialHarvest'!$C$8),(F120-G120-H120)))","v":1875.9519435591694},{"$f":"IF(A121<='S4-PartialHarvest'!$C$7,('Growth-Model-4'!G120*EXP($Z$7)),IF(A121<'S4-PartialHarvest'!$C$9,('Growth-Model-4'!G120*EXP($AA$7)),0))+IF(A121='S4-PartialHarvest'!$C$7,'Growth-Model-4'!$AA$6,0)","v":2.2655416245837942E-4},{"$f":"IF(A121<='S4-PartialHarvest'!$C$9,$AD$6*EXP($AD$7*('S4-PartialHarvest'!C$9-'Growth-Model-4'!A121)),0)","v":0.11066107591153486},236.38466523262474,5.8366584008055493E-2,45.7678035533133,23.914295134083108,774.28113461330872,{"$f":"M121/'S4-PartialHarvest'!$C$19","v":28.677079059752174},12.307660936566586,1591.4124767548526,{"$f":"_xlfn.XLOOKUP(B121,FeedTables!$C$17:$T$17,FeedTables!$C$31:$T$31,,-1)","v":"Unga 4mm"},{"$f":"_xlfn.XLOOKUP(Q121,FeedPrice[Feed],FeedPrice[Price per kg],\"Unknown\",0)*O121","v":1222.5211915952527},160255.63165407302,{"$f":"_xlfn.XLOOKUP(O121,LabourFromFeed[Feed Quantity (kg)],LabourFromFeed[No. Labour],\"Out of range\",-1)","v":1},{"$f":"T121*OperatingCosts!$C$9","v":1200},144000]
[120,{"$f":"IF(A122<='S4-PartialHarvest'!$C$9, B121*EXP((LN((E121/100)+1))*1),)","v":416.79092560428376},{"$f":"_xlfn.XLOOKUP($B122,FeedTables!$C$42:$T$42,FeedTables!$C$44:$T$44,,-1)","v":1.5895597072390606},{"$f":"_xlfn.XLOOKUP($B122,FeedTables!$C$42:$T$42,FeedTables!$C$45:$T$45,,-1)","v":1.5711330683884976},{"$f":"_xlfn.XLOOKUP($B122,FeedTables!$C$42:$T$42,FeedTables!$C$46:$T$46,,-1)*_xlfn.XLOOKUP(N121,DensityMultiplier[Biomass kg/m3],DensityMultiplier[Multiplier],,-1)","v":0.98137640092024747},{"$f":"IF(A122>'S4-PartialHarvest'!$C$9,0,IF(A122='S4-PartialHarvest'!$C$7,(F121-G121-H121)*(1-'S4-PartialHarvest'!$C$8),(F121-G121-H121)))","v":1875.8410559290953},{"$f":"IF(A122<='S4-PartialHarvest'!$C$7,('Growth-Model-4'!G121*EXP($Z$7)),IF(A122<'S4-PartialHarvest'!$C$9,('Growth-Model-4'!G121*EXP($AA$7)),0))+IF(A122='S4-PartialHarvest'!$C$7,'Growth-Model-4'!$AA$6,0)","v":1.7644055913067217E-4},{"$f":"IF(A122<='S4-PartialHarvest'!$C$9,$AD$6*EXP($AD$7*('S4-PartialHarvest'!C$9-'Growth-Model-4'!A122)),0)","v":0.13516174333932057},236.5200034165232,5.8400000843585972E-2,56.407726936638262,23.970702861019745,781.83352998720466,{"$f":"M122/'S4-PartialHarvest'!$C$19","v":28.956797406933507},12.427710770361422,1603.8401875252141,{"$f":"_xlfn.XLOOKUP(B122,FeedTables!$C$17:$T$17,FeedTables!$C$31:$T$31,,-1)","v":"Unga 4mm"},{"$f":"_xlfn.XLOOKUP(Q122,FeedPrice[Feed],FeedPrice[Price per kg],\"Unknown\",0)*O122","v":1234.4457535910772},161490.0774076641,{"$f":"_xlfn.XLOOKUP(O122,LabourFromFeed[Feed Quantity (kg)],LabourFromFeed[No. Labour],\"Out of range\",-1)","v":1},{"$f":"T122*OperatingCosts!$C$9","v":1200},145200]
[121,{"$f":"IF(A123<='S4-PartialHarvest'!$C$9, B122*EXP((LN((E122/100)+1))*1),)","v":420.88121338934121},{"$f":"_xlfn.XLOOKUP($B123,FeedTables!$C$42:$T$42,FeedTables!$C$44:$T$44,,-1)","v":1.5895597072390606},{"$f":"_xlfn.XLOOKUP($B123,FeedTables!$C$42:$T$42,FeedTables!$C$45:$T$45,,-1)","v":1.5711330683884976},{"$f":"_xlfn.XLOOKUP($B123,FeedTables!$C$42:$T$42,FeedTables!$C$46:$T$46,,-1)*_xlfn.XLOOKUP(N122,DensityMultiplier[Biomass kg/m3],DensityMultiplier[Multiplier],,-1)","v":0.98137640092024747},{"$f":"IF(A123>'S4-PartialHarvest'!$C$9,0,IF(A123='S4-PartialHarvest'!$C$7,(F122-G122-H122)*(1-'S4-PartialHarvest'!$C$8),(F122-G122-H122)))","v":1875.7057177451968},{"$f":"IF(A123<='S4-PartialHarvest'!$C$7,('Growth-Model-4'!G122*EXP($Z$7)),IF(A123<'S4-PartialHarvest'!$C$9,('Growth-Model-4'!G122*EXP($AA$7)),0))+IF(A123='S4-PartialHarvest'!$C$7,'Growth-Model-4'!$AA$6,0)","v":1.3741204561652399E-4},{"$f":"IF(A123<='S4-PartialHarvest'!$C$9,$AD$6*EXP($AD$7*('S4-PartialHarvest'!C$9-'Growth-Model-4'!A123)),0)","v":0.16508692611238315},236.68522775468119,5.8440796976464489E-2,69.539819925389736,24.040242680945134,789.44929844592366,{"$f":"M123/'S4-PartialHarvest'!$C$19","v":29.238862905404581},12.548767957177841,1616.388955482392,{"$f":"_xlfn.XLOOKUP(B123,FeedTables!$C$17:$T$17,FeedTables!$C$31:$T$31,,-1)","v":"Unga 4mm"},{"$f":"_xlfn.XLOOKUP(Q123,FeedPrice[Feed],FeedPrice[Price per kg],\"Unknown\",0)*O123","v":1246.4703760632706},162736.54778372738,{"$f":"_xlfn.XLOOKUP(O123,LabourFromFeed[Feed Quantity (kg)],LabourFromFeed[No. Labour],\"Out of range\",-1)","v":1},{"$f":"T123*OperatingCosts!$C$9","v":1200},146400]
[122,{"$f":"IF(A124<='S4-PartialHarvest'!$C$9, B123*EXP((LN((E123/100)+1))*1),)","v":425.01164229345096},{"$f":"_xlfn.XLOOKUP($B124,FeedTables!$C$42:$T$42,FeedTables!$C$44:$T$44,,-1)","v":1.5895597072390606},{"$f":"_xlfn.XLOOKUP($B124,FeedTables!$C$42:$T$42,FeedTables!$C$45:$T$45,,-1)","v":1.5711330683884976},{"$f":"_xlfn.XLOOKUP($B124,FeedTables!$C$42:$T$42,FeedTables!$C$46:$T$46,,-1)*_xlfn.XLOOKUP(N123,DensityMultiplier[Biomass kg/m3],DensityMultiplier[Multiplier],,-1)","v":0.98137640092024747},{"$f":"IF(A124>'S4-PartialHarvest'!$C$9,0,IF(A124='S4-PartialHarvest'!$C$7,(F123-G123-H123)*(1-'S4-PartialHarvest'!$C$8),(F123-G123-H123)))","v":1875.5404934070389},{"$f":"IF(A124<='S4-PartialHarvest'!$C$7,('Growth-Model-4'!G123*EXP($Z$7)),IF(A124<'S4-PartialHarvest'!$C$9,('Growth-Model-4'!G123*EXP($AA$7)),0))+IF(A124='S4-PartialHarvest'!$C$7,'Growth-Model-4'!$AA$6,0)","v":1.070166087295925E-4},{"$f":"IF(A124<='S4-PartialHarvest'!$C$9,$AD$6*EXP($AD$7*('S4-PartialHarvest'!C$9-'Growth-Model-4'!A124)),0)","v":0.20163762688984896},236.88697239817978,5.8490610468686366E-2,85.743822257237653,24.125986503202373,797.12654529079487,{"$f":"M124/'S4-PartialHarvest'!$C$19","v":29.523205381140549},12.670802379649196,1629.0597578620411,{"$f":"_xlfn.XLOOKUP(B124,FeedTables!$C$17:$T$17,FeedTables!$C$31:$T$31,,-1)","v":"Unga 4mm"},{"$f":"_xlfn.XLOOKUP(Q124,FeedPrice[Feed],FeedPrice[Price per kg],\"Unknown\",0)*O124","v":1258.5920674507927},163995.13985117816,{"$f":"_xlfn.XLOOKUP(O124,LabourFromFeed[Feed Quantity (kg)],LabourFromFeed[No. Labour],\"Out of range\",-1)","v":1},{"$f":"T124*OperatingCosts!$C$9","v":1200},147600]
[123,{"$f":"IF(A125<='S4-PartialHarvest'!$C$9, B124*EXP((LN((E124/100)+1))*1),)","v":429.18260625208245},{"$f":"_xlfn.XLOOKUP($B125,FeedTables!$C$42:$T$42,FeedTables!$C$44:$T$44,,-1)","v":1.5895597072390606},{"$f":"_xlfn.XLOOKUP($B125,FeedTables!$C$42:$T$42,FeedTables!$C$45:$T$45,,-1)","v":1.5711330683884976},{"$f":"_xlfn.XLOOKUP($B125,FeedTables!$C$42:$T$42,FeedTables!$C$46:$T$46,,-1)*_xlfn.XLOOKUP(N124,DensityMultiplier[Biomass kg/m3],DensityMultiplier[Multiplier],,-1)","v":0.98137640092024747},{"$f":"IF(A125>'S4-PartialHarvest'!$C$9,0,IF(A125='S4-PartialHarvest'!$C$7,(F124-G124-H124)*(1-'S4-PartialHarvest'!$C$8),(F124-G124-H124)))","v":1875.3387487635403},{"$f":"IF(A125<='S4-PartialHarvest'!$C$7,('Growth-Model-4'!G124*EXP($Z$7)),IF(A125<'S4-PartialHarvest'!$C$9,('Growth-Model-4'!G124*EXP($AA$7)),0))+IF(A125='S4-PartialHarvest'!$C$7,'Growth-Model-4'!$AA$6,0)","v":8.3344618680252774E-5},{"$f":"IF(A125<='S4-PartialHarvest'!$C$9,$AD$6*EXP($AD$7*('S4-PartialHarvest'!C$9-'Growth-Model-4'!A125)),0)","v":0.2462807536321327},237.13333649643059,5.8551441110229772E-2,105.73518577422801,24.231721688976602,804.86277179985552,{"$f":"M125/'S4-PartialHarvest'!$C$19","v":29.809732288883538},12.79377431909797,1641.8535321811391,{"$f":"_xlfn.XLOOKUP(B125,FeedTables!$C$17:$T$17,FeedTables!$C$31:$T$31,,-1)","v":"Unga 4mm"},{"$f":"_xlfn.XLOOKUP(Q125,FeedPrice[Feed],FeedPrice[Price per kg],\"Unknown\",0)*O125","v":1270.8068824934332},165265.94673367159,{"$f":"_xlfn.XLOOKUP(O125,LabourFromFeed[Feed Quantity (kg)],LabourFromFeed[No. Labour],\"Out of range\",-1)","v":1},{"$f":"T125*OperatingCosts!$C$9","v":1200},148800]
[124,{"$f":"IF(A126<='S4-PartialHarvest'!$C$9, B125*EXP((LN((E125/100)+1))*1),)","v":433.39450306669482},{"$f":"_xlfn.XLOOKUP($B126,FeedTables!$C$42:$T$42,FeedTables!$C$44:$T$44,,-1)","v":1.5895597072390606},{"$f":"_xlfn.XLOOKUP($B126,FeedTables!$C$42:$T$42,FeedTables!$C$45:$T$45,,-1)","v":1.5711330683884976},{"$f":"_xlfn.XLOOKUP($B126,FeedTables!$C$42:$T$42,FeedTables!$C$46:$T$46,,-1)*_xlfn.XLOOKUP(N125,DensityMultiplier[Biomass kg/m3],DensityMultiplier[Multiplier],,-1)","v":0.98137640092024747},{"$f":"IF(A126>'S4-PartialHarvest'!$C$9,0,IF(A126='S4-PartialHarvest'!$C$7,(F125-G125-H125)*(1-'S4-PartialHarvest'!$C$8),(F125-G125-H125)))","v":1875.0923846652895},{"$f":"IF(A126<='S4-PartialHarvest'!$C$7,('Growth-Model-4'!G125*EXP($Z$7)),IF(A126<'S4-PartialHarvest'!$C$9,('Growth-Model-4'!G125*EXP($AA$7)),0))+IF(A126='S4-PartialHarvest'!$C$7,'Growth-Model-4'!$AA$6,0)","v":6.4908854292968502E-5},{"$f":"IF(A126<='S4-PartialHarvest'!$C$9,$AD$6*EXP($AD$7*('S4-PartialHarvest'!C$9-'Growth-Model-4'!A126)),0)","v":0.30080799176805217},237.43420939705291,5.8625730715321706E-2,130.39666125145632,24.362118350228059,812.65473225615699,{"$f":"M126/'S4-PartialHarvest'!$C$19","v":30.098323416894704},12.917632182915339,1654.7711643640546,{"$f":"_xlfn.XLOOKUP(B126,FeedTables!$C$17:$T$17,FeedTables!$C$31:$T$31,,-1)","v":"Unga 4mm"},{"$f":"_xlfn.XLOOKUP(Q126,FeedPrice[Feed],FeedPrice[Price per kg],\"Unknown\",0)*O126","v":1283.109696492199},166549.05643016379,{"$f":"_xlfn.XLOOKUP(O126,LabourFromFeed[Feed Quantity (kg)],LabourFromFeed[No. Labour],\"Out of range\",-1)","v":1},{"$f":"T126*OperatingCosts!$C$9","v":1200},150000]
[125,{"$f":"IF(A127<='S4-PartialHarvest'!$C$9, B126*EXP((LN((E126/100)+1))*1),)","v":437.64773444267695},{"$f":"_xlfn.XLOOKUP($B127,FeedTables!$C$42:$T$42,FeedTables!$C$44:$T$44,,-1)","v":1.5895597072390606},{"$f":"_xlfn.XLOOKUP($B127,FeedTables!$C$42:$T$42,FeedTables!$C$45:$T$45,,-1)","v":1.5711330683884976},{"$f":"_xlfn.XLOOKUP($B127,FeedTables!$C$42:$T$42,FeedTables!$C$46:$T$46,,-1)*_xlfn.XLOOKUP(N126,DensityMultiplier[Biomass kg/m3],DensityMultiplier[Multiplier],,-1)","v":0.96114183595281966},{"$f":"IF(A127>'S4-PartialHarvest'!$C$9,0,IF(A127='S4-PartialHarvest'!$C$7,(F126-G126-H126)*(1-'S4-PartialHarvest'!$C$8),(F126-G126-H126)))","v":1874.7915117646671},{"$f":"IF(A127<='S4-PartialHarvest'!$C$7,('Growth-Model-4'!G126*EXP($Z$7)),IF(A127<'S4-PartialHarvest'!$C$9,('Growth-Model-4'!G126*EXP($AA$7)),0))+IF(A127='S4-PartialHarvest'!$C$7,'Growth-Model-4'!$AA$6,0)","v":5.0551066551631587E-5},{"$f":"IF(A127<='S4-PartialHarvest'!$C$9,$AD$6*EXP($AD$7*('S4-PartialHarvest'!C$9-'Growth-Model-4'!A127)),0)","v":0.36740771082212048},237.80166765894157,5.8716461150355941E-2,160.81727581782121,24.522935626045879,820.4982576761679,{"$f":"M127/'S4-PartialHarvest'!$C$19","v":30.388824358376588},13.042309702618887,1667.8134740666735,{"$f":"_xlfn.XLOOKUP(B127,FeedTables!$C$17:$T$17,FeedTables!$C$31:$T$31,,-1)","v":"Unga 4mm"},{"$f":"_xlfn.XLOOKUP(Q127,FeedPrice[Feed],FeedPrice[Price per kg],\"Unknown\",0)*O127","v":1295.4939269921044},167844.55035715591,{"$f":"_xlfn.XLOOKUP(O127,LabourFromFeed[Feed Quantity (kg)],LabourFromFeed[No. Labour],\"Out of range\",-1)","v":1},{"$f":"T127*OperatingCosts!$C$9","v":1200},151200]
[126,{"$f":"IF(A128<='S4-PartialHarvest'!$C$9, B127*EXP((LN((E127/100)+1))*1),)","v":441.85414991250519},{"$f":"_xlfn.XLOOKUP($B128,FeedTables!$C$42:$T$42,FeedTables!$C$44:$T$44,,-1)","v":1.5895597072390606},{"$f":"_xlfn.XLOOKUP($B128,FeedTables!$C$42:$T$42,FeedTables!$C$45:$T$45,,-1)","v":1.5711330683884976},{"$f":"_xlfn.XLOOKUP($B128,FeedTables!$C$42:$T$42,FeedTables!$C$46:$T$46,,-1)*_xlfn.XLOOKUP(N127,DensityMultiplier[Biomass kg/m3],DensityMultiplier[Multiplier],,-1)","v":0.96114183595281966},{"$f":"IF(A128>'S4-PartialHarvest'!$C$9,0,IF(A128='S4-PartialHarvest'!$C$7,(F127-G127-H127)*(1-'S4-PartialHarvest'!$C$8),(F127-G127-H127)))","v":1874.4240535027784},{"$f":"IF(A128<='S4-PartialHarvest'!$C$7,('Growth-Model-4'!G127*EXP($Z$7)),IF(A128<'S4-PartialHarvest'!$C$9,('Growth-Model-4'!G127*EXP($AA$7)),0))+IF(A128='S4-PartialHarvest'!$C$7,'Growth-Model-4'!$AA$6,0)","v":3.9369210215505385E-5},{"$f":"IF(A128<='S4-PartialHarvest'!$C$9,$AD$6*EXP($AD$7*('S4-PartialHarvest'!C$9-'Growth-Model-4'!A128)),0)","v":0.44875279136745216},238.25045981951922,5.882727402951092E-2,198.30067859944188,24.72123630464532,828.22204673602232,{"$f":"M128/'S4-PartialHarvest'!$C$19","v":30.674890619852679},13.16508394138647,1680.97855800806,{"$f":"_xlfn.XLOOKUP(B128,FeedTables!$C$17:$T$17,FeedTables!$C$31:$T$31,,-1)","v":"Unga 4mm"},{"$f":"_xlfn.XLOOKUP(Q128,FeedPrice[Feed],FeedPrice[Price per kg],\"Unknown\",0)*O128","v":1307.6891044063123},169152.23946156222,{"$f":"_xlfn.XLOOKUP(O128,LabourFromFeed[Feed Quantity (kg)],LabourFromFeed[No. Labour],\"Out of range\",-1)","v":1},{"$f":"T128*OperatingCosts!$C$9","v":1200},152400]
[127,{"$f":"IF(A129<='S4-PartialHarvest'!$C$9, B128*EXP((LN((E128/100)+1))*1),)","v":446.10099500120793},{"$f":"_xlfn.XLOOKUP($B129,FeedTables!$C$42:$T$42,FeedTables!$C$44:$T$44,,-1)","v":1.5895597072390606},{"$f":"_xlfn.XLOOKUP($B129,FeedTables!$C$42:$T$42,FeedTables!$C$45:$T$45,,-1)","v":1.5711330683884976},{"$f":"_xlfn.XLOOKUP($B129,FeedTables!$C$42:$T$42,FeedTables!$C$46:$T$46,,-1)*_xlfn.XLOOKUP(N128,DensityMultiplier[Biomass kg/m3],DensityMultiplier[Multiplier],,-1)","v":0.96114183595281966},{"$f":"IF(A129>'S4-PartialHarvest'!$C$9,0,IF(A129='S4-PartialHarvest'!$C$7,(F128-G128-H128)*(1-'S4-PartialHarvest'!$C$8),(F128-G128-H128)))","v":1873.9752613422006},{"$f":"IF(A129<='S4-PartialHarvest'!$C$7,('Growth-Model-4'!G128*EXP($Z$7)),IF(A129<'S4-PartialHarvest'!$C$9,('Growth-Model-4'!G128*EXP($AA$7)),0))+IF(A129='S4-PartialHarvest'!$C$7,'Growth-Model-4'!$AA$6,0)","v":3.0660771744738347E-5},{"$f":"IF(A129<='S4-PartialHarvest'!$C$9,$AD$6*EXP($AD$7*('S4-PartialHarvest'!C$9-'Growth-Model-4'!A129)),0)","v":0.54810789710828145},238.79859837739926,5.8962616883308457E-2,244.52515606880689,24.965761460714127,835.98222869240431,{"$f":"M129/'S4-PartialHarvest'!$C$19","v":30.962304766385344},13.288436666973555,1694.2669946750336,{"$f":"_xlfn.XLOOKUP(B129,FeedTables!$C$17:$T$17,FeedTables!$C$31:$T$31,,-1)","v":"Unga 4mm"},{"$f":"_xlfn.XLOOKUP(Q129,FeedPrice[Feed],FeedPrice[Price per kg],\"Unknown\",0)*O129","v":1319.94174297415},170472.18120453638,{"$f":"_xlfn.XLOOKUP(O129,LabourFromFeed[Feed Quantity (kg)],LabourFromFeed[No. Labour],\"Out of range\",-1)","v":1},{"$f":"T129*OperatingCosts!$C$9","v":1200},153600]
[128,{"$f":"IF(A130<='S4-PartialHarvest'!$C$9, B129*EXP((LN((E129/100)+1))*1),)","v":450.38865829476634},{"$f":"_xlfn.XLOOKUP($B130,FeedTables!$C$42:$T$42,FeedTables!$C$44:$T$44,,-1)","v":1.5895597072390606},{"$f":"_xlfn.XLOOKUP($B130,FeedTables!$C$42:$T$42,FeedTables!$C$45:$T$45,,-1)","v":1.5711330683884976},{"$f":"_xlfn.XLOOKUP($B130,FeedTables!$C$42:$T$42,FeedTables!$C$46:$T$46,,-1)*_xlfn.XLOOKUP(N129,DensityMultiplier[Biomass kg/m3],DensityMultiplier[Multiplier],,-1)","v":0.96114183595281966},{"$f":"IF(A130>'S4-PartialHarvest'!$C$9,0,IF(A130='S4-PartialHarvest'!$C$7,(F129-G129-H129)*(1-'S4-PartialHarvest'!$C$8),(F129-G129-H129)))","v":1873.4271227843205},{"$f":"IF(A130<='S4-PartialHarvest'!$C$7,('Growth-Model-4'!G129*EXP($Z$7)),IF(A130<'S4-PartialHarvest'!$C$9,('Growth-Model-4'!G129*EXP($AA$7)),0))+IF(A130='S4-PartialHarvest'!$C$7,'Growth-Model-4'!$AA$6,0)","v":2.3878633044375828E-5},{"$f":"IF(A130<='S4-PartialHarvest'!$C$9,$AD$6*EXP($AD$7*('S4-PartialHarvest'!C$9-'Growth-Model-4'!A130)),0)","v":0.66946049729742541},239.46808275332972,5.9127921667488821E-2,301.52816982463327,25.267289630538759,843.77032824385458,{"$f":"M130/'S4-PartialHarvest'!$C$19","v":31.250752897920538},13.412233159403074,1707.6792278344367,{"$f":"_xlfn.XLOOKUP(B130,FeedTables!$C$17:$T$17,FeedTables!$C$31:$T$31,,-1)","v":"Unga 4mm"},{"$f":"_xlfn.XLOOKUP(Q130,FeedPrice[Feed],FeedPrice[Price per kg],\"Unknown\",0)*O130","v":1332.2384609468234},171804.4196654832,{"$f":"_xlfn.XLOOKUP(O130,LabourFromFeed[Feed Quantity (kg)],LabourFromFeed[No. Labour],\"Out of range\",-1)","v":1},{"$f":"T130*OperatingCosts!$C$9","v":1200},154800]
[129,{"$f":"IF(A131<='S4-PartialHarvest'!$C$9, B130*EXP((LN((E130/100)+1))*1),)","v":454.71753211402392},{"$f":"_xlfn.XLOOKUP($B131,FeedTables!$C$42:$T$42,FeedTables!$C$44:$T$44,,-1)","v":1.5895597072390606},{"$f":"_xlfn.XLOOKUP($B131,FeedTables!$C$42:$T$42,FeedTables!$C$45:$T$45,,-1)","v":1.5711330683884976},{"$f":"_xlfn.XLOOKUP($B131,FeedTables!$C$42:$T$42,FeedTables!$C$46:$T$46,,-1)*_xlfn.XLOOKUP(N130,DensityMultiplier[Biomass kg/m3],DensityMultiplier[Multiplier],,-1)","v":0.96114183595281966},{"$f":"IF(A131>'S4-PartialHarvest'!$C$9,0,IF(A131='S4-PartialHarvest'!$C$7,(F130-G130-H130)*(1-'S4-PartialHarvest'!$C$8),(F130-G130-H130)))","v":1872.75763840839},{"$f":"IF(A131<='S4-PartialHarvest'!$C$7,('Growth-Model-4'!G130*EXP($Z$7)),IF(A131<'S4-PartialHarvest'!$C$9,('Growth-Model-4'!G130*EXP($AA$7)),0))+IF(A131='S4-PartialHarvest'!$C$7,'Growth-Model-4'!$AA$6,0)","v":1.8596698113634619E-5},{"$f":"IF(A131<='S4-PartialHarvest'!$C$9,$AD$6*EXP($AD$7*('S4-PartialHarvest'!C$9-'Growth-Model-4'!A131)),0)","v":0.8176808978783543},240.28578224790618,{"$f":"I131/$F$2","v":5.9329822777260788E-2},{"$f":"(G131+H131)*B131","v":371.8222961846962},25.639111926723455,{"$f":"(B131*F131)/1000","v":851.57573158475066},{"$f":"M131/'S4-PartialHarvest'!$C$19","v":31.539841910546322},{"$f":"M131*(C131/100)","v":13.53630470589745},1721.2155325403342,{"$f":"_xlfn.XLOOKUP(B131,FeedTables!$C$17:$T$17,FeedTables!$C$31:$T$31,,-1)","v":"Unga 4mm"},{"$f":"_xlfn.XLOOKUP(Q131,FeedPrice[Feed],FeedPrice[Price per kg],\"Unknown\",0)*O131","v":1344.5625000672644},173148.98216555046,{"$f":"_xlfn.XLOOKUP(O131,LabourFromFeed[Feed Quantity (kg)],LabourFromFeed[No. Labour],\"Out of range\",-1)","v":1},{"$f":"T131*OperatingCosts!$C$9","v":1200},156000]
[130,{"$f":"IF(A132<='S4-PartialHarvest'!$C$9, B131*EXP((LN((E131/100)+1))*1),)","v":459.08801255058398},{"$f":"_xlfn.XLOOKUP($B132,FeedTables!$C$42:$T$42,FeedTables!$C$44:$T$44,,-1)","v":1.5895597072390606},{"$f":"_xlfn.XLOOKUP($B132,FeedTables!$C$42:$T$42,FeedTables!$C$45:$T$45,,-1)","v":1.5711330683884976},{"$f":"_xlfn.XLOOKUP($B132,FeedTables!$C$42:$T$42,FeedTables!$C$46:$T$46,,-1)*_xlfn.XLOOKUP(N131,DensityMultiplier[Biomass kg/m3],DensityMultiplier[Multiplier],,-1)","v":0.96114183595281966},{"$f":"IF(A132>'S4-PartialHarvest'!$C$9,0,IF(A132='S4-PartialHarvest'!$C$7,(F131-G131-H131)*(1-'S4-PartialHarvest'!$C$8),(F131-G131-H131)))","v":1871.9399389138136},{"$f":"IF(A132<='S4-PartialHarvest'!$C$7,('Growth-Model-4'!G131*EXP($Z$7)),IF(A132<'S4-PartialHarvest'!$C$9,('Growth-Model-4'!G131*EXP($AA$7)),0))+IF(A132='S4-PartialHarvest'!$C$7,'Growth-Model-4'!$AA$6,0)","v":1.4483123053441158E-5},{"$f":"IF(A132<='S4-PartialHarvest'!$C$9,$AD$6*EXP($AD$7*('S4-PartialHarvest'!C$9-'Growth-Model-4'!A132)),0)","v":0.99871770396350601},{"$f":"I131+G132+H132","v":241.28451443499276},5.9576423317282162E-2,458.50597483986655,{"$f":"(K132/1000)+L131","v":26.097617901563321},859.38518617000432,{"$f":"M132/'S4-PartialHarvest'!$C$19","v":31.829080969259419},13.660440649339776,{"$f":"O132+P131","v":1734.8759731896739},{"$f":"_xlfn.XLOOKUP(B132,FeedTables!$C$17:$T$17,FeedTables!$C$31:$T$31,,-1)","v":"Unga 4mm"},{"$f":"_xlfn.XLOOKUP(Q132,FeedPrice[Feed],FeedPrice[Price per kg],\"Unknown\",0)*O132","v":1356.8929357429849},{"$f":"R132+S131","v":174505.87510129344},{"$f":"_xlfn.XLOOKUP(O132,LabourFromFeed[Feed Quantity (kg)],LabourFromFeed[No. Labour],\"Out of range\",-1)","v":1},{"$f":"T132*OperatingCosts!$C$9","v":1200},{"$f":"U132+V131","v":157200}]
[131,{"$f":"IF(A133<='S4-PartialHarvest'!$C$9, B132*EXP((LN((E132/100)+1))*1),)","v":463.50049950305197},{"$f":"_xlfn.XLOOKUP($B133,FeedTables!$C$42:$T$42,FeedTables!$C$44:$T$44,,-1)","v":1.5895597072390606},{"$f":"_xlfn.XLOOKUP($B133,FeedTables!$C$42:$T$42,FeedTables!$C$45:$T$45,,-1)","v":1.5711330683884976},{"$f":"_xlfn.XLOOKUP($B133,FeedTables!$C$42:$T$42,FeedTables!$C$46:$T$46,,-1)*_xlfn.XLOOKUP(N132,DensityMultiplier[Biomass kg/m3],DensityMultiplier[Multiplier],,-1)","v":0.96114183595281966},{"$f":"IF(A133>'S4-PartialHarvest'!$C$9,0,IF(A133='S4-PartialHarvest'!$C$7,(F132-G132-H132)*(1-'S4-PartialHarvest'!$C$8),(F132-G132-H132)))","v":1870.9412067267272},{"$f":"IF(A133<='S4-PartialHarvest'!$C$7,('Growth-Model-4'!G132*EXP($Z$7)),IF(A133<'S4-PartialHarvest'!$C$9,('Growth-Model-4'!G132*EXP($AA$7)),0))+IF(A133='S4-PartialHarvest'!$C$7,'Growth-Model-4'!$AA$6,0)","v":1.127946757533949E-5},{"$f":"IF(A133<='S4-PartialHarvest'!$C$9,$AD$6*EXP($AD$7*('S4-PartialHarvest'!C$9-'Growth-Model-4'!A133)),0)","v":1.2198365582444182},242.50436227270475,5.9877620314248085E-2,565.4000820972268,26.663017983660549,867.1821838586809,{"$f":"M133/'S4-PartialHarvest'!$C$19","v":32.117858661432628},13.784378582973339,1748.6603517726473,{"$f":"_xlfn.XLOOKUP(B133,FeedTables!$C$17:$T$17,FeedTables!$C$31:$T$31,,-1)","v":"Unga 4mm"},{"$f":"_xlfn.XLOOKUP(Q133,FeedPrice[Feed],FeedPrice[Price per kg],\"Unknown\",0)*O133","v":1369.2037030846002},175875.07880437805,{"$f":"_xlfn.XLOOKUP(O133,LabourFromFeed[Feed Quantity (kg)],LabourFromFeed[No. Labour],\"Out of range\",-1)","v":1},{"$f":"T133*OperatingCosts!$C$9","v":1200},158400]
[132,{"$f":"IF(A134<='S4-PartialHarvest'!$C$9, B133*EXP((LN((E133/100)+1))*1),)","v":467.9553967136261},{"$f":"_xlfn.XLOOKUP($B134,FeedTables!$C$42:$T$42,FeedTables!$C$44:$T$44,,-1)","v":1.5895597072390606},{"$f":"_xlfn.XLOOKUP($B134,FeedTables!$C$42:$T$42,FeedTables!$C$45:$T$45,,-1)","v":1.5711330683884976},{"$f":"_xlfn.XLOOKUP($B134,FeedTables!$C$42:$T$42,FeedTables!$C$46:$T$46,,-1)*_xlfn.XLOOKUP(N133,DensityMultiplier[Biomass kg/m3],DensityMultiplier[Multiplier],,-1)","v":0.96114183595281966},{"$f":"IF(A134>'S4-PartialHarvest'!$C$9,0,IF(A134='S4-PartialHarvest'!$C$7,(F133-G133-H133)*(1-'S4-PartialHarvest'!$C$8),(F133-G133-H133)))","v":1869.7213588890152},{"$f":"IF(A134<='S4-PartialHarvest'!$C$7,('Growth-Model-4'!G133*EXP($Z$7)),IF(A134<'S4-PartialHarvest'!$C$9,('Growth-Model-4'!G133*EXP($AA$7)),0))+IF(A134='S4-PartialHarvest'!$C$7,'Growth-Model-4'!$AA$6,0)","v":8.7844581803029149E-6},{"$f":"IF(A134<='S4-PartialHarvest'!$C$9,$AD$6*EXP($AD$7*('S4-PartialHarvest'!C$9-'Growth-Model-4'!A134)),0)","v":1.4899117367443413},243.99428279390727,6.0245501924421546E-2,697.21634857109848,27.360234332231649,874.94620024284916,{"$f":"M134/'S4-PartialHarvest'!$C$19","v":32.405414823809231},13.907792259079518,1762.5681440317269,{"$f":"_xlfn.XLOOKUP(B134,FeedTables!$C$17:$T$17,FeedTables!$C$31:$T$31,,-1)","v":"Unga 4mm"},{"$f":"_xlfn.XLOOKUP(Q134,FeedPrice[Feed],FeedPrice[Price per kg],\"Unknown\",0)*O134","v":1381.4623958735945},177256.54120025164,{"$f":"_xlfn.XLOOKUP(O134,LabourFromFeed[Feed Quantity (kg)],LabourFromFeed[No. Labour],\"Out of range\",-1)","v":1},{"$f":"T134*OperatingCosts!$C$9","v":1200},159600]
[133,{"$f":"IF(A135<='S4-PartialHarvest'!$C$9, B134*EXP((LN((E134/100)+1))*1),)","v":472.45311180503973},{"$f":"_xlfn.XLOOKUP($B135,FeedTables!$C$42:$T$42,FeedTables!$C$44:$T$44,,-1)","v":1.5895597072390606},{"$f":"_xlfn.XLOOKUP($B135,FeedTables!$C$42:$T$42,FeedTables!$C$45:$T$45,,-1)","v":1.5711330683884976},{"$f":"_xlfn.XLOOKUP($B135,FeedTables!$C$42:$T$42,FeedTables!$C$46:$T$46,,-1)*_xlfn.XLOOKUP(N134,DensityMultiplier[Biomass kg/m3],DensityMultiplier[Multiplier],,-1)","v":0.96114183595281966},{"$f":"IF(A135>'S4-PartialHarvest'!$C$9,0,IF(A135='S4-PartialHarvest'!$C$7,(F134-G134-H134)*(1-'S4-PartialHarvest'!$C$8),(F134-G134-H134)))","v":1868.2314383678126},{"$f":"IF(A135<='S4-PartialHarvest'!$C$7,('Growth-Model-4'!G134*EXP($Z$7)),IF(A135<'S4-PartialHarvest'!$C$9,('Growth-Model-4'!G134*EXP($AA$7)),0))+IF(A135='S4-PartialHarvest'!$C$7,'Growth-Model-4'!$AA$6,0)","v":6.8413429096779183E-6},{"$f":"IF(A135<='S4-PartialHarvest'!$C$9,$AD$6*EXP($AD$7*('S4-PartialHarvest'!C$9-'Growth-Model-4'!A135)),0)","v":1.8197823046747472},245.81407193992496,6.0694832577759247E-2,859.76504486507781,28.219999377096727,882.65175662887839,{"$f":"M135/'S4-PartialHarvest'!$C$19","v":32.690805801069573},14.030276678610424,1776.5984207103372,{"$f":"_xlfn.XLOOKUP(B135,FeedTables!$C$17:$T$17,FeedTables!$C$31:$T$31,,-1)","v":"Unga 4mm"},{"$f":"_xlfn.XLOOKUP(Q135,FeedPrice[Feed],FeedPrice[Price per kg],\"Unknown\",0)*O135","v":1393.6287855140413},178650.16998576568,{"$f":"_xlfn.XLOOKUP(O135,LabourFromFeed[Feed Quantity (kg)],LabourFromFeed[No. Labour],\"Out of range\",-1)","v":1},{"$f":"T135*OperatingCosts!$C$9","v":1200},160800]
[134,{"$f":"IF(A136<='S4-PartialHarvest'!$C$9, B135*EXP((LN((E135/100)+1))*1),)","v":476.99405631785891},{"$f":"_xlfn.XLOOKUP($B136,FeedTables!$C$42:$T$42,FeedTables!$C$44:$T$44,,-1)","v":1.5895597072390606},{"$f":"_xlfn.XLOOKUP($B136,FeedTables!$C$42:$T$42,FeedTables!$C$45:$T$45,,-1)","v":1.5711330683884976},{"$f":"_xlfn.XLOOKUP($B136,FeedTables!$C$42:$T$42,FeedTables!$C$46:$T$46,,-1)*_xlfn.XLOOKUP(N135,DensityMultiplier[Biomass kg/m3],DensityMultiplier[Multiplier],,-1)","v":0.96114183595281966},{"$f":"IF(A136>'S4-PartialHarvest'!$C$9,0,IF(A136='S4-PartialHarvest'!$C$7,(F135-G135-H135)*(1-'S4-PartialHarvest'!$C$8),(F135-G135-H135)))","v":1866.411649221795},{"$f":"IF(A136<='S4-PartialHarvest'!$C$7,('Growth-Model-4'!G135*EXP($Z$7)),IF(A136<'S4-PartialHarvest'!$C$9,('Growth-Model-4'!G135*EXP($AA$7)),0))+IF(A136='S4-PartialHarvest'!$C$7,'Growth-Model-4'!$AA$6,0)","v":5.3280432153171666E-6},{"$f":"IF(A136<='S4-PartialHarvest'!$C$9,$AD$6*EXP($AD$7*('S4-PartialHarvest'!C$9-'Growth-Model-4'!A136)),0)","v":2.2226871261808068},248.03676439414897,6.1243645529419501E-2,1060.2110896874133,29.280210466784141,890.26726332120882,{"$f":"M136/'S4-PartialHarvest'!$C$19","v":32.972861604489218},14.151329704493802,1790.7497504148309,{"$f":"_xlfn.XLOOKUP(B136,FeedTables!$C$17:$T$17,FeedTables!$C$31:$T$31,,-1)","v":"Unga 4mm"},{"$f":"_xlfn.XLOOKUP(Q136,FeedPrice[Feed],FeedPrice[Price per kg],\"Unknown\",0)*O136","v":1405.6529946803398},180055.82298044601,{"$f":"_xlfn.XLOOKUP(O136,LabourFromFeed[Feed Quantity (kg)],LabourFromFeed[No. Labour],\"Out of range\",-1)","v":1},{"$f":"T136*OperatingCosts!$C$9","v":1200},162000]
[135,{"$f":"IF(A137<='S4-PartialHarvest'!$C$9, B136*EXP((LN((E136/100)+1))*1),)","v":481.57864574813817},{"$f":"_xlfn.XLOOKUP($B137,FeedTables!$C$42:$T$42,FeedTables!$C$44:$T$44,,-1)","v":1.5895597072390606},{"$f":"_xlfn.XLOOKUP($B137,FeedTables!$C$42:$T$42,FeedTables!$C$45:$T$45,,-1)","v":1.5711330683884976},{"$f":"_xlfn.XLOOKUP($B137,FeedTables!$C$42:$T$42,FeedTables!$C$46:$T$46,,-1)*_xlfn.XLOOKUP(N136,DensityMultiplier[Biomass kg/m3],DensityMultiplier[Multiplier],,-1)","v":0.96114183595281966},{"$f":"IF(A137>'S4-PartialHarvest'!$C$9,0,IF(A137='S4-PartialHarvest'!$C$7,(F136-G136-H136)*(1-'S4-PartialHarvest'!$C$8),(F136-G136-H136)))","v":1864.188956767571},{"$f":"IF(A137<='S4-PartialHarvest'!$C$7,('Growth-Model-4'!G136*EXP($Z$7)),IF(A137<'S4-PartialHarvest'!$C$9,('Growth-Model-4'!G136*EXP($AA$7)),0))+IF(A137='S4-PartialHarvest'!$C$7,'Growth-Model-4'!$AA$6,0)","v":4.149484228327295E-6},{"$f":"IF(A137<='S4-PartialHarvest'!$C$9,$AD$6*EXP($AD$7*('S4-PartialHarvest'!C$9-'Growth-Model-4'!A137)),0)","v":2.7147961864443393},250.75156473007755,6.1913966600019146E-2,1307.3898692530702,30.587600336037212,897.75359321876135,{"$f":"M137/'S4-PartialHarvest'!$C$19","v":33.250133082176347},14.27032938809629,1805.0200798029273,{"$f":"_xlfn.XLOOKUP(B137,FeedTables!$C$17:$T$17,FeedTables!$C$31:$T$31,,-1)","v":"Unga 4mm"},{"$f":"_xlfn.XLOOKUP(Q137,FeedPrice[Feed],FeedPrice[Price per kg],\"Unknown\",0)*O137","v":1417.4732451525433},181473.29622559855,{"$f":"_xlfn.XLOOKUP(O137,LabourFromFeed[Feed Quantity (kg)],LabourFromFeed[No. Labour],\"Out of range\",-1)","v":1},{"$f":"T137*OperatingCosts!$C$9","v":1200},163200]
[136,{"$f":"IF(A138<='S4-PartialHarvest'!$C$9, B137*EXP((LN((E137/100)+1))*1),)","v":486.20729958543853},{"$f":"_xlfn.XLOOKUP($B138,FeedTables!$C$42:$T$42,FeedTables!$C$44:$T$44,,-1)","v":1.5895597072390606},{"$f":"_xlfn.XLOOKUP($B138,FeedTables!$C$42:$T$42,FeedTables!$C$45:$T$45,,-1)","v":1.5711330683884976},{"$f":"_xlfn.XLOOKUP($B138,FeedTables!$C$42:$T$42,FeedTables!$C$46:$T$46,,-1)*_xlfn.XLOOKUP(N137,DensityMultiplier[Biomass kg/m3],DensityMultiplier[Multiplier],,-1)","v":0.96114183595281966},{"$f":"IF(A138>'S4-PartialHarvest'!$C$9,0,IF(A138='S4-PartialHarvest'!$C$7,(F137-G137-H137)*(1-'S4-PartialHarvest'!$C$8),(F137-G137-H137)))","v":1861.4741564316423},{"$f":"IF(A138<='S4-PartialHarvest'!$C$7,('Growth-Model-4'!G137*EXP($Z$7)),IF(A138<'S4-PartialHarvest'!$C$9,('Growth-Model-4'!G137*EXP($AA$7)),0))+IF(A138='S4-PartialHarvest'!$C$7,'Growth-Model-4'!$AA$6,0)","v":3.2316215663637416E-6},{"$f":"IF(A138<='S4-PartialHarvest'!$C$9,$AD$6*EXP($AD$7*('S4-PartialHarvest'!C$9-'Growth-Model-4'!A138)),0)","v":3.3158595499658263},254.06742751166496,6.2732698151028388E-2,1612.1966888314669,32.19979702486868,905.06232284671103,{"$f":"M138/'S4-PartialHarvest'!$C$19","v":33.520826772100406},14.386506009373219,1819.4065858123006,{"$f":"_xlfn.XLOOKUP(B138,FeedTables!$C$17:$T$17,FeedTables!$C$31:$T$31,,-1)","v":"Unga 4mm"},{"$f":"_xlfn.XLOOKUP(Q138,FeedPrice[Feed],FeedPrice[Price per kg],\"Unknown\",0)*O138","v":1429.0130805616429},182902.3093061602,{"$f":"_xlfn.XLOOKUP(O138,LabourFromFeed[Feed Quantity (kg)],LabourFromFeed[No. Labour],\"Out of range\",-1)","v":1},{"$f":"T138*OperatingCosts!$C$9","v":1200},164400]
[137,{"$f":"IF(A139<='S4-PartialHarvest'!$C$9, B138*EXP((LN((E138/100)+1))*1),)","v":490.88044135121061},{"$f":"_xlfn.XLOOKUP($B139,FeedTables!$C$42:$T$42,FeedTables!$C$44:$T$44,,-1)","v":1.5895597072390606},{"$f":"_xlfn.XLOOKUP($B139,FeedTables!$C$42:$T$42,FeedTables!$C$45:$T$45,,-1)","v":1.5711330683884976},{"$f":"_xlfn.XLOOKUP($B139,FeedTables!$C$42:$T$42,FeedTables!$C$46:$T$46,,-1)*_xlfn.XLOOKUP(N138,DensityMultiplier[Biomass kg/m3],DensityMultiplier[Multiplier],,-1)","v":0.96114183595281966},{"$f":"IF(A139>'S4-PartialHarvest'!$C$9,0,IF(A139='S4-PartialHarvest'!$C$7,(F138-G138-H138)*(1-'S4-PartialHarvest'!$C$8),(F138-G138-H138)))","v":1858.1582936500549},{"$f":"IF(A139<='S4-PartialHarvest'!$C$7,('Growth-Model-4'!G138*EXP($Z$7)),IF(A139<'S4-PartialHarvest'!$C$9,('Growth-Model-4'!G138*EXP($AA$7)),0))+IF(A139='S4-PartialHarvest'!$C$7,'Growth-Model-4'!$AA$6,0)","v":0},{"$f":"IF(A139<='S4-PartialHarvest'!$C$9,$AD$6*EXP($AD$7*('S4-PartialHarvest'!C$9-'Growth-Model-4'!A139)),0)","v":4.05},258.11742751166497,6.3732698151028389E-2,1988.0657874724029,34.187862812341081,912.13356328735142,{"$f":"M139/'S4-PartialHarvest'!$C$19","v":33.782724566198198},14.498907598219633,1833.9054934105202,{"$f":"_xlfn.XLOOKUP(B139,FeedTables!$C$17:$T$17,FeedTables!$C$31:$T$31,,-1)","v":"Unga 4mm"},{"$f":"_xlfn.XLOOKUP(Q139,FeedPrice[Feed],FeedPrice[Price per kg],\"Unknown\",0)*O139","v":1440.177941621916},184342.48724778212,{"$f":"_xlfn.XLOOKUP(O139,LabourFromFeed[Feed Quantity (kg)],LabourFromFeed[No. Labour],\"Out of range\",-1)","v":1},{"$f":"T139*OperatingCosts!$C$9","v":1200},165600]
[138,{"$f":"IF(A140<='S4-PartialHarvest'!$C$9, B139*EXP((LN((E139/100)+1))*1),)","v":0},{"$f":"_xlfn.XLOOKUP($B140,FeedTables!$C$42:$T$42,FeedTables!$C$44:$T$44,,-1)","v":{"$error":"#N/A"}},{"$f":"_xlfn.XLOOKUP($B140,FeedTables!$C$42:$T$42,FeedTables!$C$45:$T$45,,-1)","v":{"$error":"#N/A"}},{"$f":"_xlfn.XLOOKUP($B140,FeedTables!$C$42:$T$42,FeedTables!$C$46:$T$46,,-1)*_xlfn.XLOOKUP(N139,DensityMultiplier[Biomass kg/m3],DensityMultiplier[Multiplier],,-1)","v":{"$error":"#N/A"}},{"$f":"IF(A140>'S4-PartialHarvest'!$C$9,0,IF(A140='S4-PartialHarvest'!$C$7,(F139-G139-H139)*(1-'S4-PartialHarvest'!$C$8),(F139-G139-H139)))","v":0},{"$f":"IF(A140<='S4-PartialHarvest'!$C$7,('Growth-Model-4'!G139*EXP($Z$7)),IF(A140<'S4-PartialHarvest'!$C$9,('Growth-Model-4'!G139*EXP($AA$7)),0))+IF(A140='S4-PartialHarvest'!$C$7,'Growth-Model-4'!$AA$6,0)","v":0},{"$f":"IF(A140<='S4-PartialHarvest'!$C$9,$AD$6*EXP($AD$7*('S4-PartialHarvest'!C$9-'Growth-Model-4'!A140)),0)","v":0},258.11742751166497,6.3732698151028389E-2,0,34.187862812341081,0,{"$f":"M140/'S4-PartialHarvest'!$C$19","v":0},{"$error":"#N/A"},{"$error":"#N/A"},{"$f":"_xlfn.XLOOKUP(B140,FeedTables!$C$17:$T$17,FeedTables!$C$31:$T$31,,-1)","v":{"$error":"#N/A"}},{"$f":"_xlfn.XLOOKUP(Q140,FeedPrice[Feed],FeedPrice[Price per kg],\"Unknown\",0)*O140","v":{"$error":"#N/A"}},{"$error":"#N/A"},{"$f":"_xlfn.XLOOKUP(O140,LabourFromFeed[Feed Quantity (kg)],LabourFromFeed[No. Labour],\"Out of range\",-1)","v":{"$error":"#N/A"}},{"$f":"T140*OperatingCosts!$C$9","v":{"$error":"#N/A"}},{"$error":"#N/A"}]
[139,{"$f":"IF(A141<='S4-PartialHarvest'!$C$9, B140*EXP((LN((E140/100)+1))*1),)","v":0},{"$f":"_xlfn.XLOOKUP($B141,FeedTables!$C$42:$T$42,FeedTables!$C$44:$T$44,,-1)","v":{"$error":"#N/A"}},{"$f":"_xlfn.XLOOKUP($B141,FeedTables!$C$42:$T$42,FeedTables!$C$45:$T$45,,-1)","v":{"$error":"#N/A"}},{"$f":"_xlfn.XLOOKUP($B141,FeedTables!$C$42:$T$42,FeedTables!$C$46:$T$46,,-1)*_xlfn.XLOOKUP(N140,DensityMultiplier[Biomass kg/m3],DensityMultiplier[Multiplier],,-1)","v":{"$error":"#N/A"}},{"$f":"IF(A141>'S4-PartialHarvest'!$C$9,0,IF(A141='S4-PartialHarvest'!$C$7,(F140-G140-H140)*(1-'S4-PartialHarvest'!$C$8),(F140-G140-H140)))","v":0},{"$f":"IF(A141<='S4-PartialHarvest'!$C$7,('Growth-Model-4'!G140*EXP($Z$7)),IF(A141<'S4-PartialHarvest'!$C$9,('Growth-Model-4'!G140*EXP($AA$7)),0))+IF(A141='S4-PartialHarvest'!$C$7,'Growth-Model-4'!$AA$6,0)","v":0},{"$f":"IF(A141<='S4-PartialHarvest'!$C$9,$AD$6*EXP($AD$7*('S4-PartialHarvest'!C$9-'Growth-Model-4'!A141)),0)","v":0},258.11742751166497,6.3732698151028389E-2,0,34.187862812341081,0,{"$f":"M141/'S4-PartialHarvest'!$C$19","v":0},{"$error":"#N/A"},{"$error":"#N/A"},{"$f":"_xlfn.XLOOKUP(B141,FeedTables!$C$17:$T$17,FeedTables!$C$31:$T$31,,-1)","v":{"$error":"#N/A"}},{"$f":"_xlfn.XLOOKUP(Q141,FeedPrice[Feed],FeedPrice[Price per kg],\"Unknown\",0)*O141","v":{"$error":"#N/A"}},{"$error":"#N/A"},{"$f":"_xlfn.XLOOKUP(O141,LabourFromFeed[Feed Quantity (kg)],LabourFromFeed[No. Labour],\"Out of range\",-1)","v":{"$error":"#N/A"}},{"$f":"T141*OperatingCosts!$C$9","v":{"$error":"#N/A"}},{"$error":"#N/A"}]
[140,{"$f":"IF(A142<='S4-PartialHarvest'!$C$9, B141*EXP((LN((E141/100)+1))*1),)","v":0},{"$f":"_xlfn.XLOOKUP($B142,FeedTables!$C$42:$T$42,FeedTables!$C$44:$T$44,,-1)","v":{"$error":"#N/A"}},{"$f":"_xlfn.XLOOKUP($B142,FeedTables!$C$42:$T$42,FeedTables!$C$45:$T$45,,-1)","v":{"$error":"#N/A"}},{"$f":"_xlfn.XLOOKUP($B142,FeedTables!$C$42:$T$42,FeedTables!$C$46:$T$46,,-1)*_xlfn.XLOOKUP(N141,DensityMultiplier[Biomass kg/m3],DensityMultiplier[Multiplier],,-1)","v":{"$error":"#N/A"}},{"$f":"IF(A142>'S4-PartialHarvest'!$C$9,0,IF(A142='S4-PartialHarvest'!$C$7,(F141-G141-H141)*(1-'S4-PartialHarvest'!$C$8),(F141-G141-H141)))","v":0},{"$f":"IF(A142<='S4-PartialHarvest'!$C$7,('Growth-Model-4'!G141*EXP($Z$7)),IF(A142<'S4-PartialHarvest'!$C$9,('Growth-Model-4'!G141*EXP($AA$7)),0))+IF(A142='S4-PartialHarvest'!$C$7,'Growth-Model-4'!$AA$6,0)","v":0},{"$f":"IF(A142<='S4-PartialHarvest'!$C$9,$AD$6*EXP($AD$7*('S4-PartialHarvest'!C$9-'Growth-Model-4'!A142)),0)","v":0},258.11742751166497,6.3732698151028389E-2,0,34.187862812341081,0,{"$f":"M142/'S4-PartialHarvest'!$C$19","v":0},{"$error":"#N/A"},{"$error":"#N/A"},{"$f":"_xlfn.XLOOKUP(B142,FeedTables!$C$17:$T$17,FeedTables!$C$31:$T$31,,-1)","v":{"$error":"#N/A"}},{"$f":"_xlfn.XLOOKUP(Q142,FeedPrice[Feed],FeedPrice[Price per kg],\"Unknown\",0)*O142","v":{"$error":"#N/A"}},{"$error":"#N/A"},{"$f":"_xlfn.XLOOKUP(O142,LabourFromFeed[Feed Quantity (kg)],LabourFromFeed[No. Labour],\"Out of range\",-1)","v":{"$error":"#N/A"}},{"$f":"T142*OperatingCosts!$C$9","v":{"$error":"#N/A"}},{"$error":"#N/A"}]
[141,{"$f":"IF(A143<='S4-PartialHarvest'!$C$9, B142*EXP((LN((E142/100)+1))*1),)","v":0},{"$f":"_xlfn.XLOOKUP($B143,FeedTables!$C$42:$T$42,FeedTables!$C$44:$T$44,,-1)","v":{"$error":"#N/A"}},{"$f":"_xlfn.XLOOKUP($B143,FeedTables!$C$42:$T$42,FeedTables!$C$45:$T$45,,-1)","v":{"$error":"#N/A"}},{"$f":"_xlfn.XLOOKUP($B143,FeedTables!$C$42:$T$42,FeedTables!$C$46:$T$46,,-1)*_xlfn.XLOOKUP(N142,DensityMultiplier[Biomass kg/m3],DensityMultiplier[Multiplier],,-1)","v":{"$error":"#N/A"}},{"$f":"IF(A143>'S4-PartialHarvest'!$C$9,0,IF(A143='S4-PartialHarvest'!$C$7,(F142-G142-H142)*(1-'S4-PartialHarvest'!$C$8),(F142-G142-H142)))","v":0},{"$f":"IF(A143<='S4-PartialHarvest'!$C$7,('Growth-Model-4'!G142*EXP($Z$7)),IF(A143<'S4-PartialHarvest'!$C$9,('Growth-Model-4'!G142*EXP($AA$7)),0))+IF(A143='S4-PartialHarvest'!$C$7,'Growth-Model-4'!$AA$6,0)","v":0},{"$f":"IF(A143<='S4-PartialHarvest'!$C$9,$AD$6*EXP($AD$7*('S4-PartialHarvest'!C$9-'Growth-Model-4'!A143)),0)","v":0},258.11742751166497,6.3732698151028389E-2,0,34.187862812341081,0,{"$f":"M143/'S4-PartialHarvest'!$C$19","v":0},{"$error":"#N/A"},{"$error":"#N/A"},{"$f":"_xlfn.XLOOKUP(B143,FeedTables!$C$17:$T$17,FeedTables!$C$31:$T$31,,-1)","v":{"$error":"#N/A"}},{"$f":"_xlfn.XLOOKUP(Q143,FeedPrice[Feed],FeedPrice[Price per kg],\"Unknown\",0)*O143","v":{"$error":"#N/A"}},{"$error":"#N/A"},{"$f":"_xlfn.XLOOKUP(O143,LabourFromFeed[Feed Quantity (kg)],LabourFromFeed[No. Labour],\"Out of range\",-1)","v":{"$error":"#N/A"}},{"$f":"T143*OperatingCosts!$C$9","v":{"$error":"#N/A"}},{"$error":"#N/A"}]
[142,{"$f":"IF(A144<='S4-PartialHarvest'!$C$9, B143*EXP((LN((E143/100)+1))*1),)","v":0},{"$f":"_xlfn.XLOOKUP($B144,FeedTables!$C$42:$T$42,FeedTables!$C$44:$T$44,,-1)","v":{"$error":"#N/A"}},{"$f":"_xlfn.XLOOKUP($B144,FeedTables!$C$42:$T$42,FeedTables!$C$45:$T$45,,-1)","v":{"$error":"#N/A"}},{"$f":"_xlfn.XLOOKUP($B144,FeedTables!$C$42:$T$42,FeedTables!$C$46:$T$46,,-1)*_xlfn.XLOOKUP(N143,DensityMultiplier[Biomass kg/m3],DensityMultiplier[Multiplier],,-1)","v":{"$error":"#N/A"}},{"$f":"IF(A144>'S4-PartialHarvest'!$C$9,0,IF(A144='S4-PartialHarvest'!$C$7,(F143-G143-H143)*(1-'S4-PartialHarvest'!$C$8),(F143-G143-H143)))","v":0},{"$f":"IF(A144<='S4-PartialHarvest'!$C$7,('Growth-Model-4'!G143*EXP($Z$7)),IF(A144<'S4-PartialHarvest'!$C$9,('Growth-Model-4'!G143*EXP($AA$7)),0))+IF(A144='S4-PartialHarvest'!$C$7,'Growth-Model-4'!$AA$6,0)","v":0},{"$f":"IF(A144<='S4-PartialHarvest'!$C$9,$AD$6*EXP($AD$7*('S4-PartialHarvest'!C$9-'Growth-Model-4'!A144)),0)","v":0},258.11742751166497,6.3732698151028389E-2,0,34.187862812341081,0,{"$f":"M144/'S4-PartialHarvest'!$C$19","v":0},{"$error":"#N/A"},{"$error":"#N/A"},{"$f":"_xlfn.XLOOKUP(B144,FeedTables!$C$17:$T$17,FeedTables!$C$31:$T$31,,-1)","v":{"$error":"#N/A"}},{"$f":"_xlfn.XLOOKUP(Q144,FeedPrice[Feed],FeedPrice[Price per kg],\"Unknown\",0)*O144","v":{"$error":"#N/A"}},{"$error":"#N/A"},{"$f":"_xlfn.XLOOKUP(O144,LabourFromFeed[Feed Quantity (kg)],LabourFromFeed[No. Labour],\"Out of range\",-1)","v":{"$error":"#N/A"}},{"$f":"T144*OperatingCosts!$C$9","v":{"$error":"#N/A"}},{"$error":"#N/A"}]
[143,{"$f":"IF(A145<='S4-PartialHarvest'!$C$9, B144*EXP((LN((E144/100)+1))*1),)","v":0},{"$f":"_xlfn.XLOOKUP($B145,FeedTables!$C$42:$T$42,FeedTables!$C$44:$T$44,,-1)","v":{"$error":"#N/A"}},{"$f":"_xlfn.XLOOKUP($B145,FeedTables!$C$42:$T$42,FeedTables!$C$45:$T$45,,-1)","v":{"$error":"#N/A"}},{"$f":"_xlfn.XLOOKUP($B145,FeedTables!$C$42:$T$42,FeedTables!$C$46:$T$46,,-1)*_xlfn.XLOOKUP(N144,DensityMultiplier[Biomass kg/m3],DensityMultiplier[Multiplier],,-1)","v":{"$error":"#N/A"}},{"$f":"IF(A145>'S4-PartialHarvest'!$C$9,0,IF(A145='S4-PartialHarvest'!$C$7,(F144-G144-H144)*(1-'S4-PartialHarvest'!$C$8),(F144-G144-H144)))","v":0},{"$f":"IF(A145<='S4-PartialHarvest'!$C$7,('Growth-Model-4'!G144*EXP($Z$7)),IF(A145<'S4-PartialHarvest'!$C$9,('Growth-Model-4'!G144*EXP($AA$7)),0))+IF(A145='S4-PartialHarvest'!$C$7,'Growth-Model-4'!$AA$6,0)","v":0},{"$f":"IF(A145<='S4-PartialHarvest'!$C$9,$AD$6*EXP($AD$7*('S4-PartialHarvest'!C$9-'Growth-Model-4'!A145)),0)","v":0},258.11742751166497,6.3732698151028389E-2,0,34.187862812341081,0,{"$f":"M145/'S4-PartialHarvest'!$C$19","v":0},{"$error":"#N/A"},{"$error":"#N/A"},{"$f":"_xlfn.XLOOKUP(B145,FeedTables!$C$17:$T$17,FeedTables!$C$31:$T$31,,-1)","v":{"$error":"#N/A"}},{"$f":"_xlfn.XLOOKUP(Q145,FeedPrice[Feed],FeedPrice[Price per kg],\"Unknown\",0)*O145","v":{"$error":"#N/A"}},{"$error":"#N/A"},{"$f":"_xlfn.XLOOKUP(O145,LabourFromFeed[Feed Quantity (kg)],LabourFromFeed[No. Labour],\"Out of range\",-1)","v":{"$error":"#N/A"}},{"$f":"T145*OperatingCosts!$C$9","v":{"$error":"#N/A"}},{"$error":"#N/A"}]
[144,{"$f":"IF(A146<='S4-PartialHarvest'!$C$9, B145*EXP((LN((E145/100)+1))*1),)","v":0},{"$f":"_xlfn.XLOOKUP($B146,FeedTables!$C$42:$T$42,FeedTables!$C$44:$T$44,,-1)","v":{"$error":"#N/A"}},{"$f":"_xlfn.XLOOKUP($B146,FeedTables!$C$42:$T$42,FeedTables!$C$45:$T$45,,-1)","v":{"$error":"#N/A"}},{"$f":"_xlfn.XLOOKUP($B146,FeedTables!$C$42:$T$42,FeedTables!$C$46:$T$46,,-1)*_xlfn.XLOOKUP(N145,DensityMultiplier[Biomass kg/m3],DensityMultiplier[Multiplier],,-1)","v":{"$error":"#N/A"}},{"$f":"IF(A146>'S4-PartialHarvest'!$C$9,0,IF(A146='S4-PartialHarvest'!$C$7,(F145-G145-H145)*(1-'S4-PartialHarvest'!$C$8),(F145-G145-H145)))","v":0},{"$f":"IF(A146<='S4-PartialHarvest'!$C$7,('Growth-Model-4'!G145*EXP($Z$7)),IF(A146<'S4-PartialHarvest'!$C$9,('Growth-Model-4'!G145*EXP($AA$7)),0))+IF(A146='S4-PartialHarvest'!$C$7,'Growth-Model-4'!$AA$6,0)","v":0},{"$f":"IF(A146<='S4-PartialHarvest'!$C$9,$AD$6*EXP($AD$7*('S4-PartialHarvest'!C$9-'Growth-Model-4'!A146)),0)","v":0},258.11742751166497,6.3732698151028389E-2,0,34.187862812341081,0,{"$f":"M146/'S4-PartialHarvest'!$C$19","v":0},{"$error":"#N/A"},{"$error":"#N/A"},{"$f":"_xlfn.XLOOKUP(B146,FeedTables!$C$17:$T$17,FeedTables!$C$31:$T$31,,-1)","v":{"$error":"#N/A"}},{"$f":"_xlfn.XLOOKUP(Q146,FeedPrice[Feed],FeedPrice[Price per kg],\"Unknown\",0)*O146","v":{"$error":"#N/A"}},{"$error":"#N/A"},{"$f":"_xlfn.XLOOKUP(O146,LabourFromFeed[Feed Quantity (kg)],LabourFromFeed[No. Labour],\"Out of range\",-1)","v":{"$error":"#N/A"}},{"$f":"T146*OperatingCosts!$C$9","v":{"$error":"#N/A"}},{"$error":"#N/A"}]
[145,{"$f":"IF(A147<='S4-PartialHarvest'!$C$9, B146*EXP((LN((E146/100)+1))*1),)","v":0},{"$f":"_xlfn.XLOOKUP($B147,FeedTables!$C$42:$T$42,FeedTables!$C$44:$T$44,,-1)","v":{"$error":"#N/A"}},{"$f":"_xlfn.XLOOKUP($B147,FeedTables!$C$42:$T$42,FeedTables!$C$45:$T$45,,-1)","v":{"$error":"#N/A"}},{"$f":"_xlfn.XLOOKUP($B147,FeedTables!$C$42:$T$42,FeedTables!$C$46:$T$46,,-1)*_xlfn.XLOOKUP(N146,DensityMultiplier[Biomass kg/m3],DensityMultiplier[Multiplier],,-1)","v":{"$error":"#N/A"}},{"$f":"IF(A147>'S4-PartialHarvest'!$C$9,0,IF(A147='S4-PartialHarvest'!$C$7,(F146-G146-H146)*(1-'S4-PartialHarvest'!$C$8),(F146-G146-H146)))","v":0},{"$f":"IF(A147<='S4-PartialHarvest'!$C$7,('Growth-Model-4'!G146*EXP($Z$7)),IF(A147<'S4-PartialHarvest'!$C$9,('Growth-Model-4'!G146*EXP($AA$7)),0))+IF(A147='S4-PartialHarvest'!$C$7,'Growth-Model-4'!$AA$6,0)","v":0},{"$f":"IF(A147<='S4-PartialHarvest'!$C$9,$AD$6*EXP($AD$7*('S4-PartialHarvest'!C$9-'Growth-Model-4'!A147)),0)","v":0},258.11742751166497,6.3732698151028389E-2,0,34.187862812341081,0,{"$f":"M147/'S4-PartialHarvest'!$C$19","v":0},{"$error":"#N/A"},{"$error":"#N/A"},{"$f":"_xlfn.XLOOKUP(B147,FeedTables!$C$17:$T$17,FeedTables!$C$31:$T$31,,-1)","v":{"$error":"#N/A"}},{"$f":"_xlfn.XLOOKUP(Q147,FeedPrice[Feed],FeedPrice[Price per kg],\"Unknown\",0)*O147","v":{"$error":"#N/A"}},{"$error":"#N/A"},{"$f":"_xlfn.XLOOKUP(O147,LabourFromFeed[Feed Quantity (kg)],LabourFromFeed[No. Labour],\"Out of range\",-1)","v":{"$error":"#N/A"}},{"$f":"T147*OperatingCosts!$C$9","v":{"$error":"#N/A"}},{"$error":"#N/A"}]
[146,{"$f":"IF(A148<='S4-PartialHarvest'!$C$9, B147*EXP((LN((E147/100)+1))*1),)","v":0},{"$f":"_xlfn.XLOOKUP($B148,FeedTables!$C$42:$T$42,FeedTables!$C$44:$T$44,,-1)","v":{"$error":"#N/A"}},{"$f":"_xlfn.XLOOKUP($B148,FeedTables!$C$42:$T$42,FeedTables!$C$45:$T$45,,-1)","v":{"$error":"#N/A"}},{"$f":"_xlfn.XLOOKUP($B148,FeedTables!$C$42:$T$42,FeedTables!$C$46:$T$46,,-1)*_xlfn.XLOOKUP(N147,DensityMultiplier[Biomass kg/m3],DensityMultiplier[Multiplier],,-1)","v":{"$error":"#N/A"}},{"$f":"IF(A148>'S4-PartialHarvest'!$C$9,0,IF(A148='S4-PartialHarvest'!$C$7,(F147-G147-H147)*(1-'S4-PartialHarvest'!$C$8),(F147-G147-H147)))","v":0},{"$f":"IF(A148<='S4-PartialHarvest'!$C$7,('Growth-Model-4'!G147*EXP($Z$7)),IF(A148<'S4-PartialHarvest'!$C$9,('Growth-Model-4'!G147*EXP($AA$7)),0))+IF(A148='S4-PartialHarvest'!$C$7,'Growth-Model-4'!$AA$6,0)","v":0},{"$f":"IF(A148<='S4-PartialHarvest'!$C$9,$AD$6*EXP($AD$7*('S4-PartialHarvest'!C$9-'Growth-Model-4'!A148)),0)","v":0},258.11742751166497,6.3732698151028389E-2,0,34.187862812341081,0,{"$f":"M148/'S4-PartialHarvest'!$C$19","v":0},{"$error":"#N/A"},{"$error":"#N/A"},{"$f":"_xlfn.XLOOKUP(B148,FeedTables!$C$17:$T$17,FeedTables!$C$31:$T$31,,-1)","v":{"$error":"#N/A"}},{"$f":"_xlfn.XLOOKUP(Q148,FeedPrice[Feed],FeedPrice[Price per kg],\"Unknown\",0)*O148","v":{"$error":"#N/A"}},{"$error":"#N/A"},{"$f":"_xlfn.XLOOKUP(O148,LabourFromFeed[Feed Quantity (kg)],LabourFromFeed[No. Labour],\"Out of range\",-1)","v":{"$error":"#N/A"}},{"$f":"T148*OperatingCosts!$C$9","v":{"$error":"#N/A"}},{"$error":"#N/A"}]
[147,{"$f":"IF(A149<='S4-PartialHarvest'!$C$9, B148*EXP((LN((E148/100)+1))*1),)","v":0},{"$f":"_xlfn.XLOOKUP($B149,FeedTables!$C$42:$T$42,FeedTables!$C$44:$T$44,,-1)","v":{"$error":"#N/A"}},{"$f":"_xlfn.XLOOKUP($B149,FeedTables!$C$42:$T$42,FeedTables!$C$45:$T$45,,-1)","v":{"$error":"#N/A"}},{"$f":"_xlfn.XLOOKUP($B149,FeedTables!$C$42:$T$42,FeedTables!$C$46:$T$46,,-1)*_xlfn.XLOOKUP(N148,DensityMultiplier[Biomass kg/m3],DensityMultiplier[Multiplier],,-1)","v":{"$error":"#N/A"}},{"$f":"IF(A149>'S4-PartialHarvest'!$C$9,0,IF(A149='S4-PartialHarvest'!$C$7,(F148-G148-H148)*(1-'S4-PartialHarvest'!$C$8),(F148-G148-H148)))","v":0},{"$f":"IF(A149<='S4-PartialHarvest'!$C$7,('Growth-Model-4'!G148*EXP($Z$7)),IF(A149<'S4-PartialHarvest'!$C$9,('Growth-Model-4'!G148*EXP($AA$7)),0))+IF(A149='S4-PartialHarvest'!$C$7,'Growth-Model-4'!$AA$6,0)","v":0},{"$f":"IF(A149<='S4-PartialHarvest'!$C$9,$AD$6*EXP($AD$7*('S4-PartialHarvest'!C$9-'Growth-Model-4'!A149)),0)","v":0},258.11742751166497,6.3732698151028389E-2,0,34.187862812341081,0,{"$f":"M149/'S4-PartialHarvest'!$C$19","v":0},{"$error":"#N/A"},{"$error":"#N/A"},{"$f":"_xlfn.XLOOKUP(B149,FeedTables!$C$17:$T$17,FeedTables!$C$31:$T$31,,-1)","v":{"$error":"#N/A"}},{"$f":"_xlfn.XLOOKUP(Q149,FeedPrice[Feed],FeedPrice[Price per kg],\"Unknown\",0)*O149","v":{"$error":"#N/A"}},{"$error":"#N/A"},{"$f":"_xlfn.XLOOKUP(O149,LabourFromFeed[Feed Quantity (kg)],LabourFromFeed[No. Labour],\"Out of range\",-1)","v":{"$error":"#N/A"}},{"$f":"T149*OperatingCosts!$C$9","v":{"$error":"#N/A"}},{"$error":"#N/A"}]
[148,{"$f":"IF(A150<='S4-PartialHarvest'!$C$9, B149*EXP((LN((E149/100)+1))*1),)","v":0},{"$f":"_xlfn.XLOOKUP($B150,FeedTables!$C$42:$T$42,FeedTables!$C$44:$T$44,,-1)","v":{"$error":"#N/A"}},{"$f":"_xlfn.XLOOKUP($B150,FeedTables!$C$42:$T$42,FeedTables!$C$45:$T$45,,-1)","v":{"$error":"#N/A"}},{"$f":"_xlfn.XLOOKUP($B150,FeedTables!$C$42:$T$42,FeedTables!$C$46:$T$46,,-1)*_xlfn.XLOOKUP(N149,DensityMultiplier[Biomass kg/m3],DensityMultiplier[Multiplier],,-1)","v":{"$error":"#N/A"}},{"$f":"IF(A150>'S4-PartialHarvest'!$C$9,0,IF(A150='S4-PartialHarvest'!$C$7,(F149-G149-H149)*(1-'S4-PartialHarvest'!$C$8),(F149-G149-H149)))","v":0},{"$f":"IF(A150<='S4-PartialHarvest'!$C$7,('Growth-Model-4'!G149*EXP($Z$7)),IF(A150<'S4-PartialHarvest'!$C$9,('Growth-Model-4'!G149*EXP($AA$7)),0))+IF(A150='S4-PartialHarvest'!$C$7,'Growth-Model-4'!$AA$6,0)","v":0},{"$f":"IF(A150<='S4-PartialHarvest'!$C$9,$AD$6*EXP($AD$7*('S4-PartialHarvest'!C$9-'Growth-Model-4'!A150)),0)","v":0},258.11742751166497,6.3732698151028389E-2,0,34.187862812341081,0,{"$f":"M150/'S4-PartialHarvest'!$C$19","v":0},{"$error":"#N/A"},{"$error":"#N/A"},{"$f":"_xlfn.XLOOKUP(B150,FeedTables!$C$17:$T$17,FeedTables!$C$31:$T$31,,-1)","v":{"$error":"#N/A"}},{"$f":"_xlfn.XLOOKUP(Q150,FeedPrice[Feed],FeedPrice[Price per kg],\"Unknown\",0)*O150","v":{"$error":"#N/A"}},{"$error":"#N/A"},{"$f":"_xlfn.XLOOKUP(O150,LabourFromFeed[Feed Quantity (kg)],LabourFromFeed[No. Labour],\"Out of range\",-1)","v":{"$error":"#N/A"}},{"$f":"T150*OperatingCosts!$C$9","v":{"$error":"#N/A"}},{"$error":"#N/A"}]
[149,{"$f":"IF(A151<='S4-PartialHarvest'!$C$9, B150*EXP((LN((E150/100)+1))*1),)","v":0},{"$f":"_xlfn.XLOOKUP($B151,FeedTables!$C$42:$T$42,FeedTables!$C$44:$T$44,,-1)","v":{"$error":"#N/A"}},{"$f":"_xlfn.XLOOKUP($B151,FeedTables!$C$42:$T$42,FeedTables!$C$45:$T$45,,-1)","v":{"$error":"#N/A"}},{"$f":"_xlfn.XLOOKUP($B151,FeedTables!$C$42:$T$42,FeedTables!$C$46:$T$46,,-1)*_xlfn.XLOOKUP(N150,DensityMultiplier[Biomass kg/m3],DensityMultiplier[Multiplier],,-1)","v":{"$error":"#N/A"}},{"$f":"IF(A151>'S4-PartialHarvest'!$C$9,0,IF(A151='S4-PartialHarvest'!$C$7,(F150-G150-H150)*(1-'S4-PartialHarvest'!$C$8),(F150-G150-H150)))","v":0},{"$f":"IF(A151<='S4-PartialHarvest'!$C$7,('Growth-Model-4'!G150*EXP($Z$7)),IF(A151<'S4-PartialHarvest'!$C$9,('Growth-Model-4'!G150*EXP($AA$7)),0))+IF(A151='S4-PartialHarvest'!$C$7,'Growth-Model-4'!$AA$6,0)","v":0},{"$f":"IF(A151<='S4-PartialHarvest'!$C$9,$AD$6*EXP($AD$7*('S4-PartialHarvest'!C$9-'Growth-Model-4'!A151)),0)","v":0},258.11742751166497,6.3732698151028389E-2,0,34.187862812341081,0,{"$f":"M151/'S4-PartialHarvest'!$C$19","v":0},{"$error":"#N/A"},{"$error":"#N/A"},{"$f":"_xlfn.XLOOKUP(B151,FeedTables!$C$17:$T$17,FeedTables!$C$31:$T$31,,-1)","v":{"$error":"#N/A"}},{"$f":"_xlfn.XLOOKUP(Q151,FeedPrice[Feed],FeedPrice[Price per kg],\"Unknown\",0)*O151","v":{"$error":"#N/A"}},{"$error":"#N/A"},{"$f":"_xlfn.XLOOKUP(O151,LabourFromFeed[Feed Quantity (kg)],LabourFromFeed[No. Labour],\"Out of range\",-1)","v":{"$error":"#N/A"}},{"$f":"T151*OperatingCosts!$C$9","v":{"$error":"#N/A"}},{"$error":"#N/A"}]
[150,{"$f":"IF(A152<='S4-PartialHarvest'!$C$9, B151*EXP((LN((E151/100)+1))*1),)","v":0},{"$f":"_xlfn.XLOOKUP($B152,FeedTables!$C$42:$T$42,FeedTables!$C$44:$T$44,,-1)","v":{"$error":"#N/A"}},{"$f":"_xlfn.XLOOKUP($B152,FeedTables!$C$42:$T$42,FeedTables!$C$45:$T$45,,-1)","v":{"$error":"#N/A"}},{"$f":"_xlfn.XLOOKUP($B152,FeedTables!$C$42:$T$42,FeedTables!$C$46:$T$46,,-1)*_xlfn.XLOOKUP(N151,DensityMultiplier[Biomass kg/m3],DensityMultiplier[Multiplier],,-1)","v":{"$error":"#N/A"}},{"$f":"IF(A152>'S4-PartialHarvest'!$C$9,0,IF(A152='S4-PartialHarvest'!$C$7,(F151-G151-H151)*(1-'S4-PartialHarvest'!$C$8),(F151-G151-H151)))","v":0},{"$f":"IF(A152<='S4-PartialHarvest'!$C$7,('Growth-Model-4'!G151*EXP($Z$7)),IF(A152<'S4-PartialHarvest'!$C$9,('Growth-Model-4'!G151*EXP($AA$7)),0))+IF(A152='S4-PartialHarvest'!$C$7,'Growth-Model-4'!$AA$6,0)","v":0},{"$f":"IF(A152<='S4-PartialHarvest'!$C$9,$AD$6*EXP($AD$7*('S4-PartialHarvest'!C$9-'Growth-Model-4'!A152)),0)","v":0},258.11742751166497,6.3732698151028389E-2,0,34.187862812341081,0,{"$f":"M152/'S4-PartialHarvest'!$C$19","v":0},{"$error":"#N/A"},{"$error":"#N/A"},{"$f":"_xlfn.XLOOKUP(B152,FeedTables!$C$17:$T$17,FeedTables!$C$31:$T$31,,-1)","v":{"$error":"#N/A"}},{"$f":"_xlfn.XLOOKUP(Q152,FeedPrice[Feed],FeedPrice[Price per kg],\"Unknown\",0)*O152","v":{"$error":"#N/A"}},{"$error":"#N/A"},{"$f":"_xlfn.XLOOKUP(O152,LabourFromFeed[Feed Quantity (kg)],LabourFromFeed[No. Labour],\"Out of range\",-1)","v":{"$error":"#N/A"}},{"$f":"T152*OperatingCosts!$C$9","v":{"$error":"#N/A"}},{"$error":"#N/A"}]
[151,{"$f":"IF(A153<='S4-PartialHarvest'!$C$9, B152*EXP((LN((E152/100)+1))*1),)","v":0},{"$f":"_xlfn.XLOOKUP($B153,FeedTables!$C$42:$T$42,FeedTables!$C$44:$T$44,,-1)","v":{"$error":"#N/A"}},{"$f":"_xlfn.XLOOKUP($B153,FeedTables!$C$42:$T$42,FeedTables!$C$45:$T$45,,-1)","v":{"$error":"#N/A"}},{"$f":"_xlfn.XLOOKUP($B153,FeedTables!$C$42:$T$42,FeedTables!$C$46:$T$46,,-1)*_xlfn.XLOOKUP(N152,DensityMultiplier[Biomass kg/m3],DensityMultiplier[Multiplier],,-1)","v":{"$error":"#N/A"}},{"$f":"IF(A153>'S4-PartialHarvest'!$C$9,0,IF(A153='S4-PartialHarvest'!$C$7,(F152-G152-H152)*(1-'S4-PartialHarvest'!$C$8),(F152-G152-H152)))","v":0},{"$f":"IF(A153<='S4-PartialHarvest'!$C$7,('Growth-Model-4'!G152*EXP($Z$7)),IF(A153<'S4-PartialHarvest'!$C$9,('Growth-Model-4'!G152*EXP($AA$7)),0))+IF(A153='S4-PartialHarvest'!$C$7,'Growth-Model-4'!$AA$6,0)","v":0},{"$f":"IF(A153<='S4-PartialHarvest'!$C$9,$AD$6*EXP($AD$7*('S4-PartialHarvest'!C$9-'Growth-Model-4'!A153)),0)","v":0},258.11742751166497,6.3732698151028389E-2,0,34.187862812341081,0,{"$f":"M153/'S4-PartialHarvest'!$C$19","v":0},{"$error":"#N/A"},{"$error":"#N/A"},{"$f":"_xlfn.XLOOKUP(B153,FeedTables!$C$17:$T$17,FeedTables!$C$31:$T$31,,-1)","v":{"$error":"#N/A"}},{"$f":"_xlfn.XLOOKUP(Q153,FeedPrice[Feed],FeedPrice[Price per kg],\"Unknown\",0)*O153","v":{"$error":"#N/A"}},{"$error":"#N/A"},{"$f":"_xlfn.XLOOKUP(O153,LabourFromFeed[Feed Quantity (kg)],LabourFromFeed[No. Labour],\"Out of range\",-1)","v":{"$error":"#N/A"}},{"$f":"T153*OperatingCosts!$C$9","v":{"$error":"#N/A"}},{"$error":"#N/A"}]
[152,{"$f":"IF(A154<='S4-PartialHarvest'!$C$9, B153*EXP((LN((E153/100)+1))*1),)","v":0},{"$f":"_xlfn.XLOOKUP($B154,FeedTables!$C$42:$T$42,FeedTables!$C$44:$T$44,,-1)","v":{"$error":"#N/A"}},{"$f":"_xlfn.XLOOKUP($B154,FeedTables!$C$42:$T$42,FeedTables!$C$45:$T$45,,-1)","v":{"$error":"#N/A"}},{"$f":"_xlfn.XLOOKUP($B154,FeedTables!$C$42:$T$42,FeedTables!$C$46:$T$46,,-1)*_xlfn.XLOOKUP(N153,DensityMultiplier[Biomass kg/m3],DensityMultiplier[Multiplier],,-1)","v":{"$error":"#N/A"}},{"$f":"IF(A154>'S4-PartialHarvest'!$C$9,0,IF(A154='S4-PartialHarvest'!$C$7,(F153-G153-H153)*(1-'S4-PartialHarvest'!$C$8),(F153-G153-H153)))","v":0},{"$f":"IF(A154<='S4-PartialHarvest'!$C$7,('Growth-Model-4'!G153*EXP($Z$7)),IF(A154<'S4-PartialHarvest'!$C$9,('Growth-Model-4'!G153*EXP($AA$7)),0))+IF(A154='S4-PartialHarvest'!$C$7,'Growth-Model-4'!$AA$6,0)","v":0},{"$f":"IF(A154<='S4-PartialHarvest'!$C$9,$AD$6*EXP($AD$7*('S4-PartialHarvest'!C$9-'Growth-Model-4'!A154)),0)","v":0},258.11742751166497,6.3732698151028389E-2,0,34.187862812341081,0,{"$f":"M154/'S4-PartialHarvest'!$C$19","v":0},{"$error":"#N/A"},{"$error":"#N/A"},{"$f":"_xlfn.XLOOKUP(B154,FeedTables!$C$17:$T$17,FeedTables!$C$31:$T$31,,-1)","v":{"$error":"#N/A"}},{"$f":"_xlfn.XLOOKUP(Q154,FeedPrice[Feed],FeedPrice[Price per kg],\"Unknown\",0)*O154","v":{"$error":"#N/A"}},{"$error":"#N/A"},{"$f":"_xlfn.XLOOKUP(O154,LabourFromFeed[Feed Quantity (kg)],LabourFromFeed[No. Labour],\"Out of range\",-1)","v":{"$error":"#N/A"}},{"$f":"T154*OperatingCosts!$C$9","v":{"$error":"#N/A"}},{"$error":"#N/A"}]
[153,{"$f":"IF(A155<='S4-PartialHarvest'!$C$9, B154*EXP((LN((E154/100)+1))*1),)","v":0},{"$f":"_xlfn.XLOOKUP($B155,FeedTables!$C$42:$T$42,FeedTables!$C$44:$T$44,,-1)","v":{"$error":"#N/A"}},{"$f":"_xlfn.XLOOKUP($B155,FeedTables!$C$42:$T$42,FeedTables!$C$45:$T$45,,-1)","v":{"$error":"#N/A"}},{"$f":"_xlfn.XLOOKUP($B155,FeedTables!$C$42:$T$42,FeedTables!$C$46:$T$46,,-1)*_xlfn.XLOOKUP(N154,DensityMultiplier[Biomass kg/m3],DensityMultiplier[Multiplier],,-1)","v":{"$error":"#N/A"}},{"$f":"IF(A155>'S4-PartialHarvest'!$C$9,0,IF(A155='S4-PartialHarvest'!$C$7,(F154-G154-H154)*(1-'S4-PartialHarvest'!$C$8),(F154-G154-H154)))","v":0},{"$f":"IF(A155<='S4-PartialHarvest'!$C$7,('Growth-Model-4'!G154*EXP($Z$7)),IF(A155<'S4-PartialHarvest'!$C$9,('Growth-Model-4'!G154*EXP($AA$7)),0))+IF(A155='S4-PartialHarvest'!$C$7,'Growth-Model-4'!$AA$6,0)","v":0},{"$f":"IF(A155<='S4-PartialHarvest'!$C$9,$AD$6*EXP($AD$7*('S4-PartialHarvest'!C$9-'Growth-Model-4'!A155)),0)","v":0},258.11742751166497,6.3732698151028389E-2,0,34.187862812341081,0,{"$f":"M155/'S4-PartialHarvest'!$C$19","v":0},{"$error":"#N/A"},{"$error":"#N/A"},{"$f":"_xlfn.XLOOKUP(B155,FeedTables!$C$17:$T$17,FeedTables!$C$31:$T$31,,-1)","v":{"$error":"#N/A"}},{"$f":"_xlfn.XLOOKUP(Q155,FeedPrice[Feed],FeedPrice[Price per kg],\"Unknown\",0)*O155","v":{"$error":"#N/A"}},{"$error":"#N/A"},{"$f":"_xlfn.XLOOKUP(O155,LabourFromFeed[Feed Quantity (kg)],LabourFromFeed[No. Labour],\"Out of range\",-1)","v":{"$error":"#N/A"}},{"$f":"T155*OperatingCosts!$C$9","v":{"$error":"#N/A"}},{"$error":"#N/A"}]
[154,{"$f":"IF(A156<='S4-PartialHarvest'!$C$9, B155*EXP((LN((E155/100)+1))*1),)","v":0},{"$f":"_xlfn.XLOOKUP($B156,FeedTables!$C$42:$T$42,FeedTables!$C$44:$T$44,,-1)","v":{"$error":"#N/A"}},{"$f":"_xlfn.XLOOKUP($B156,FeedTables!$C$42:$T$42,FeedTables!$C$45:$T$45,,-1)","v":{"$error":"#N/A"}},{"$f":"_xlfn.XLOOKUP($B156,FeedTables!$C$42:$T$42,FeedTables!$C$46:$T$46,,-1)*_xlfn.XLOOKUP(N155,DensityMultiplier[Biomass kg/m3],DensityMultiplier[Multiplier],,-1)","v":{"$error":"#N/A"}},{"$f":"IF(A156>'S4-PartialHarvest'!$C$9,0,IF(A156='S4-PartialHarvest'!$C$7,(F155-G155-H155)*(1-'S4-PartialHarvest'!$C$8),(F155-G155-H155)))","v":0},{"$f":"IF(A156<='S4-PartialHarvest'!$C$7,('Growth-Model-4'!G155*EXP($Z$7)),IF(A156<'S4-PartialHarvest'!$C$9,('Growth-Model-4'!G155*EXP($AA$7)),0))+IF(A156='S4-PartialHarvest'!$C$7,'Growth-Model-4'!$AA$6,0)","v":0},{"$f":"IF(A156<='S4-PartialHarvest'!$C$9,$AD$6*EXP($AD$7*('S4-PartialHarvest'!C$9-'Growth-Model-4'!A156)),0)","v":0},258.11742751166497,6.3732698151028389E-2,0,34.187862812341081,0,{"$f":"M156/'S4-PartialHarvest'!$C$19","v":0},{"$error":"#N/A"},{"$error":"#N/A"},{"$f":"_xlfn.XLOOKUP(B156,FeedTables!$C$17:$T$17,FeedTables!$C$31:$T$31,,-1)","v":{"$error":"#N/A"}},{"$f":"_xlfn.XLOOKUP(Q156,FeedPrice[Feed],FeedPrice[Price per kg],\"Unknown\",0)*O156","v":{"$error":"#N/A"}},{"$error":"#N/A"},{"$f":"_xlfn.XLOOKUP(O156,LabourFromFeed[Feed Quantity (kg)],LabourFromFeed[No. Labour],\"Out of range\",-1)","v":{"$error":"#N/A"}},{"$f":"T156*OperatingCosts!$C$9","v":{"$error":"#N/A"}},{"$error":"#N/A"}]
[155,{"$f":"IF(A157<='S4-PartialHarvest'!$C$9, B156*EXP((LN((E156/100)+1))*1),)","v":0},{"$f":"_xlfn.XLOOKUP($B157,FeedTables!$C$42:$T$42,FeedTables!$C$44:$T$44,,-1)","v":{"$error":"#N/A"}},{"$f":"_xlfn.XLOOKUP($B157,FeedTables!$C$42:$T$42,FeedTables!$C$45:$T$45,,-1)","v":{"$error":"#N/A"}},{"$f":"_xlfn.XLOOKUP($B157,FeedTables!$C$42:$T$42,FeedTables!$C$46:$T$46,,-1)*_xlfn.XLOOKUP(N156,DensityMultiplier[Biomass kg/m3],DensityMultiplier[Multiplier],,-1)","v":{"$error":"#N/A"}},{"$f":"IF(A157>'S4-PartialHarvest'!$C$9,0,IF(A157='S4-PartialHarvest'!$C$7,(F156-G156-H156)*(1-'S4-PartialHarvest'!$C$8),(F156-G156-H156)))","v":0},{"$f":"IF(A157<='S4-PartialHarvest'!$C$7,('Growth-Model-4'!G156*EXP($Z$7)),IF(A157<'S4-PartialHarvest'!$C$9,('Growth-Model-4'!G156*EXP($AA$7)),0))+IF(A157='S4-PartialHarvest'!$C$7,'Growth-Model-4'!$AA$6,0)","v":0},{"$f":"IF(A157<='S4-PartialHarvest'!$C$9,$AD$6*EXP($AD$7*('S4-PartialHarvest'!C$9-'Growth-Model-4'!A157)),0)","v":0},258.11742751166497,6.3732698151028389E-2,0,34.187862812341081,0,{"$f":"M157/'S4-PartialHarvest'!$C$19","v":0},{"$error":"#N/A"},{"$error":"#N/A"},{"$f":"_xlfn.XLOOKUP(B157,FeedTables!$C$17:$T$17,FeedTables!$C$31:$T$31,,-1)","v":{"$error":"#N/A"}},{"$f":"_xlfn.XLOOKUP(Q157,FeedPrice[Feed],FeedPrice[Price per kg],\"Unknown\",0)*O157","v":{"$error":"#N/A"}},{"$error":"#N/A"},{"$f":"_xlfn.XLOOKUP(O157,LabourFromFeed[Feed Quantity (kg)],LabourFromFeed[No. Labour],\"Out of range\",-1)","v":{"$error":"#N/A"}},{"$f":"T157*OperatingCosts!$C$9","v":{"$error":"#N/A"}},{"$error":"#N/A"}]
[156,{"$f":"IF(A158<='S4-PartialHarvest'!$C$9, B157*EXP((LN((E157/100)+1))*1),)","v":0},{"$f":"_xlfn.XLOOKUP($B158,FeedTables!$C$42:$T$42,FeedTables!$C$44:$T$44,,-1)","v":{"$error":"#N/A"}},{"$f":"_xlfn.XLOOKUP($B158,FeedTables!$C$42:$T$42,FeedTables!$C$45:$T$45,,-1)","v":{"$error":"#N/A"}},{"$f":"_xlfn.XLOOKUP($B158,FeedTables!$C$42:$T$42,FeedTables!$C$46:$T$46,,-1)*_xlfn.XLOOKUP(N157,DensityMultiplier[Biomass kg/m3],DensityMultiplier[Multiplier],,-1)","v":{"$error":"#N/A"}},{"$f":"IF(A158>'S4-PartialHarvest'!$C$9,0,IF(A158='S4-PartialHarvest'!$C$7,(F157-G157-H157)*(1-'S4-PartialHarvest'!$C$8),(F157-G157-H157)))","v":0},{"$f":"IF(A158<='S4-PartialHarvest'!$C$7,('Growth-Model-4'!G157*EXP($Z$7)),IF(A158<'S4-PartialHarvest'!$C$9,('Growth-Model-4'!G157*EXP($AA$7)),0))+IF(A158='S4-PartialHarvest'!$C$7,'Growth-Model-4'!$AA$6,0)","v":0},{"$f":"IF(A158<='S4-PartialHarvest'!$C$9,$AD$6*EXP($AD$7*('S4-PartialHarvest'!C$9-'Growth-Model-4'!A158)),0)","v":0},258.11742751166497,6.3732698151028389E-2,0,34.187862812341081,0,{"$f":"M158/'S4-PartialHarvest'!$C$19","v":0},{"$error":"#N/A"},{"$error":"#N/A"},{"$f":"_xlfn.XLOOKUP(B158,FeedTables!$C$17:$T$17,FeedTables!$C$31:$T$31,,-1)","v":{"$error":"#N/A"}},{"$f":"_xlfn.XLOOKUP(Q158,FeedPrice[Feed],FeedPrice[Price per kg],\"Unknown\",0)*O158","v":{"$error":"#N/A"}},{"$error":"#N/A"},{"$f":"_xlfn.XLOOKUP(O158,LabourFromFeed[Feed Quantity (kg)],LabourFromFeed[No. Labour],\"Out of range\",-1)","v":{"$error":"#N/A"}},{"$f":"T158*OperatingCosts!$C$9","v":{"$error":"#N/A"}},{"$error":"#N/A"}]
[157,{"$f":"IF(A159<='S4-PartialHarvest'!$C$9, B158*EXP((LN((E158/100)+1))*1),)","v":0},{"$f":"_xlfn.XLOOKUP($B159,FeedTables!$C$42:$T$42,FeedTables!$C$44:$T$44,,-1)","v":{"$error":"#N/A"}},{"$f":"_xlfn.XLOOKUP($B159,FeedTables!$C$42:$T$42,FeedTables!$C$45:$T$45,,-1)","v":{"$error":"#N/A"}},{"$f":"_xlfn.XLOOKUP($B159,FeedTables!$C$42:$T$42,FeedTables!$C$46:$T$46,,-1)*_xlfn.XLOOKUP(N158,DensityMultiplier[Biomass kg/m3],DensityMultiplier[Multiplier],,-1)","v":{"$error":"#N/A"}},{"$f":"IF(A159>'S4-PartialHarvest'!$C$9,0,IF(A159='S4-PartialHarvest'!$C$7,(F158-G158-H158)*(1-'S4-PartialHarvest'!$C$8),(F158-G158-H158)))","v":0},{"$f":"IF(A159<='S4-PartialHarvest'!$C$7,('Growth-Model-4'!G158*EXP($Z$7)),IF(A159<'S4-PartialHarvest'!$C$9,('Growth-Model-4'!G158*EXP($AA$7)),0))+IF(A159='S4-PartialHarvest'!$C$7,'Growth-Model-4'!$AA$6,0)","v":0},{"$f":"IF(A159<='S4-PartialHarvest'!$C$9,$AD$6*EXP($AD$7*('S4-PartialHarvest'!C$9-'Growth-Model-4'!A159)),0)","v":0},258.11742751166497,6.3732698151028389E-2,0,34.187862812341081,0,{"$f":"M159/'S4-PartialHarvest'!$C$19","v":0},{"$error":"#N/A"},{"$error":"#N/A"},{"$f":"_xlfn.XLOOKUP(B159,FeedTables!$C$17:$T$17,FeedTables!$C$31:$T$31,,-1)","v":{"$error":"#N/A"}},{"$f":"_xlfn.XLOOKUP(Q159,FeedPrice[Feed],FeedPrice[Price per kg],\"Unknown\",0)*O159","v":{"$error":"#N/A"}},{"$error":"#N/A"},{"$f":"_xlfn.XLOOKUP(O159,LabourFromFeed[Feed Quantity (kg)],LabourFromFeed[No. Labour],\"Out of range\",-1)","v":{"$error":"#N/A"}},{"$f":"T159*OperatingCosts!$C$9","v":{"$error":"#N/A"}},{"$error":"#N/A"}]
[158,{"$f":"IF(A160<='S4-PartialHarvest'!$C$9, B159*EXP((LN((E159/100)+1))*1),)","v":0},{"$f":"_xlfn.XLOOKUP($B160,FeedTables!$C$42:$T$42,FeedTables!$C$44:$T$44,,-1)","v":{"$error":"#N/A"}},{"$f":"_xlfn.XLOOKUP($B160,FeedTables!$C$42:$T$42,FeedTables!$C$45:$T$45,,-1)","v":{"$error":"#N/A"}},{"$f":"_xlfn.XLOOKUP($B160,FeedTables!$C$42:$T$42,FeedTables!$C$46:$T$46,,-1)*_xlfn.XLOOKUP(N159,DensityMultiplier[Biomass kg/m3],DensityMultiplier[Multiplier],,-1)","v":{"$error":"#N/A"}},{"$f":"IF(A160>'S4-PartialHarvest'!$C$9,0,IF(A160='S4-PartialHarvest'!$C$7,(F159-G159-H159)*(1-'S4-PartialHarvest'!$C$8),(F159-G159-H159)))","v":0},{"$f":"IF(A160<='S4-PartialHarvest'!$C$7,('Growth-Model-4'!G159*EXP($Z$7)),IF(A160<'S4-PartialHarvest'!$C$9,('Growth-Model-4'!G159*EXP($AA$7)),0))+IF(A160='S4-PartialHarvest'!$C$7,'Growth-Model-4'!$AA$6,0)","v":0},{"$f":"IF(A160<='S4-PartialHarvest'!$C$9,$AD$6*EXP($AD$7*('S4-PartialHarvest'!C$9-'Growth-Model-4'!A160)),0)","v":0},258.11742751166497,6.3732698151028389E-2,0,34.187862812341081,0,{"$f":"M160/'S4-PartialHarvest'!$C$19","v":0},{"$error":"#N/A"},{"$error":"#N/A"},{"$f":"_xlfn.XLOOKUP(B160,FeedTables!$C$17:$T$17,FeedTables!$C$31:$T$31,,-1)","v":{"$error":"#N/A"}},{"$f":"_xlfn.XLOOKUP(Q160,FeedPrice[Feed],FeedPrice[Price per kg],\"Unknown\",0)*O160","v":{"$error":"#N/A"}},{"$error":"#N/A"},{"$f":"_xlfn.XLOOKUP(O160,LabourFromFeed[Feed Quantity (kg)],LabourFromFeed[No. Labour],\"Out of range\",-1)","v":{"$error":"#N/A"}},{"$f":"T160*OperatingCosts!$C$9","v":{"$error":"#N/A"}},{"$error":"#N/A"}]
[159,{"$f":"IF(A161<='S4-PartialHarvest'!$C$9, B160*EXP((LN((E160/100)+1))*1),)","v":0},{"$f":"_xlfn.XLOOKUP($B161,FeedTables!$C$42:$T$42,FeedTables!$C$44:$T$44,,-1)","v":{"$error":"#N/A"}},{"$f":"_xlfn.XLOOKUP($B161,FeedTables!$C$42:$T$42,FeedTables!$C$45:$T$45,,-1)","v":{"$error":"#N/A"}},{"$f":"_xlfn.XLOOKUP($B161,FeedTables!$C$42:$T$42,FeedTables!$C$46:$T$46,,-1)*_xlfn.XLOOKUP(N160,DensityMultiplier[Biomass kg/m3],DensityMultiplier[Multiplier],,-1)","v":{"$error":"#N/A"}},{"$f":"IF(A161>'S4-PartialHarvest'!$C$9,0,IF(A161='S4-PartialHarvest'!$C$7,(F160-G160-H160)*(1-'S4-PartialHarvest'!$C$8),(F160-G160-H160)))","v":0},{"$f":"IF(A161<='S4-PartialHarvest'!$C$7,('Growth-Model-4'!G160*EXP($Z$7)),IF(A161<'S4-PartialHarvest'!$C$9,('Growth-Model-4'!G160*EXP($AA$7)),0))+IF(A161='S4-PartialHarvest'!$C$7,'Growth-Model-4'!$AA$6,0)","v":0},{"$f":"IF(A161<='S4-PartialHarvest'!$C$9,$AD$6*EXP($AD$7*('S4-PartialHarvest'!C$9-'Growth-Model-4'!A161)),0)","v":0},258.11742751166497,6.3732698151028389E-2,0,34.187862812341081,0,{"$f":"M161/'S4-PartialHarvest'!$C$19","v":0},{"$error":"#N/A"},{"$error":"#N/A"},{"$f":"_xlfn.XLOOKUP(B161,FeedTables!$C$17:$T$17,FeedTables!$C$31:$T$31,,-1)","v":{"$error":"#N/A"}},{"$f":"_xlfn.XLOOKUP(Q161,FeedPrice[Feed],FeedPrice[Price per kg],\"Unknown\",0)*O161","v":{"$error":"#N/A"}},{"$error":"#N/A"},{"$f":"_xlfn.XLOOKUP(O161,LabourFromFeed[Feed Quantity (kg)],LabourFromFeed[No. Labour],\"Out of range\",-1)","v":{"$error":"#N/A"}},{"$f":"T161*OperatingCosts!$C$9","v":{"$error":"#N/A"}},{"$error":"#N/A"}]
[160,{"$f":"IF(A162<='S4-PartialHarvest'!$C$9, B161*EXP((LN((E161/100)+1))*1),)","v":0},{"$f":"_xlfn.XLOOKUP($B162,FeedTables!$C$42:$T$42,FeedTables!$C$44:$T$44,,-1)","v":{"$error":"#N/A"}},{"$f":"_xlfn.XLOOKUP($B162,FeedTables!$C$42:$T$42,FeedTables!$C$45:$T$45,,-1)","v":{"$error":"#N/A"}},{"$f":"_xlfn.XLOOKUP($B162,FeedTables!$C$42:$T$42,FeedTables!$C$46:$T$46,,-1)*_xlfn.XLOOKUP(N161,DensityMultiplier[Biomass kg/m3],DensityMultiplier[Multiplier],,-1)","v":{"$error":"#N/A"}},{"$f":"IF(A162>'S4-PartialHarvest'!$C$9,0,IF(A162='S4-PartialHarvest'!$C$7,(F161-G161-H161)*(1-'S4-PartialHarvest'!$C$8),(F161-G161-H161)))","v":0},{"$f":"IF(A162<='S4-PartialHarvest'!$C$7,('Growth-Model-4'!G161*EXP($Z$7)),IF(A162<'S4-PartialHarvest'!$C$9,('Growth-Model-4'!G161*EXP($AA$7)),0))+IF(A162='S4-PartialHarvest'!$C$7,'Growth-Model-4'!$AA$6,0)","v":0},{"$f":"IF(A162<='S4-PartialHarvest'!$C$9,$AD$6*EXP($AD$7*('S4-PartialHarvest'!C$9-'Growth-Model-4'!A162)),0)","v":0},258.11742751166497,6.3732698151028389E-2,0,34.187862812341081,0,{"$f":"M162/'S4-PartialHarvest'!$C$19","v":0},{"$error":"#N/A"},{"$error":"#N/A"},{"$f":"_xlfn.XLOOKUP(B162,FeedTables!$C$17:$T$17,FeedTables!$C$31:$T$31,,-1)","v":{"$error":"#N/A"}},{"$f":"_xlfn.XLOOKUP(Q162,FeedPrice[Feed],FeedPrice[Price per kg],\"Unknown\",0)*O162","v":{"$error":"#N/A"}},{"$error":"#N/A"},{"$f":"_xlfn.XLOOKUP(O162,LabourFromFeed[Feed Quantity (kg)],LabourFromFeed[No. Labour],\"Out of range\",-1)","v":{"$error":"#N/A"}},{"$f":"T162*OperatingCosts!$C$9","v":{"$error":"#N/A"}},{"$error":"#N/A"}]
[161,{"$f":"IF(A163<='S4-PartialHarvest'!$C$9, B162*EXP((LN((E162/100)+1))*1),)","v":0},{"$f":"_xlfn.XLOOKUP($B163,FeedTables!$C$42:$T$42,FeedTables!$C$44:$T$44,,-1)","v":{"$error":"#N/A"}},{"$f":"_xlfn.XLOOKUP($B163,FeedTables!$C$42:$T$42,FeedTables!$C$45:$T$45,,-1)","v":{"$error":"#N/A"}},{"$f":"_xlfn.XLOOKUP($B163,FeedTables!$C$42:$T$42,FeedTables!$C$46:$T$46,,-1)*_xlfn.XLOOKUP(N162,DensityMultiplier[Biomass kg/m3],DensityMultiplier[Multiplier],,-1)","v":{"$error":"#N/A"}},{"$f":"IF(A163>'S4-PartialHarvest'!$C$9,0,IF(A163='S4-PartialHarvest'!$C$7,(F162-G162-H162)*(1-'S4-PartialHarvest'!$C$8),(F162-G162-H162)))","v":0},{"$f":"IF(A163<='S4-PartialHarvest'!$C$7,('Growth-Model-4'!G162*EXP($Z$7)),IF(A163<'S4-PartialHarvest'!$C$9,('Growth-Model-4'!G162*EXP($AA$7)),0))+IF(A163='S4-PartialHarvest'!$C$7,'Growth-Model-4'!$AA$6,0)","v":0},{"$f":"IF(A163<='S4-PartialHarvest'!$C$9,$AD$6*EXP($AD$7*('S4-PartialHarvest'!C$9-'Growth-Model-4'!A163)),0)","v":0},258.11742751166497,6.3732698151028389E-2,0,34.187862812341081,0,{"$f":"M163/'S4-PartialHarvest'!$C$19","v":0},{"$error":"#N/A"},{"$error":"#N/A"},{"$f":"_xlfn.XLOOKUP(B163,FeedTables!$C$17:$T$17,FeedTables!$C$31:$T$31,,-1)","v":{"$error":"#N/A"}},{"$f":"_xlfn.XLOOKUP(Q163,FeedPrice[Feed],FeedPrice[Price per kg],\"Unknown\",0)*O163","v":{"$error":"#N/A"}},{"$error":"#N/A"},{"$f":"_xlfn.XLOOKUP(O163,LabourFromFeed[Feed Quantity (kg)],LabourFromFeed[No. Labour],\"Out of range\",-1)","v":{"$error":"#N/A"}},{"$f":"T163*OperatingCosts!$C$9","v":{"$error":"#N/A"}},{"$error":"#N/A"}]
[162,{"$f":"IF(A164<='S4-PartialHarvest'!$C$9, B163*EXP((LN((E163/100)+1))*1),)","v":0},{"$f":"_xlfn.XLOOKUP($B164,FeedTables!$C$42:$T$42,FeedTables!$C$44:$T$44,,-1)","v":{"$error":"#N/A"}},{"$f":"_xlfn.XLOOKUP($B164,FeedTables!$C$42:$T$42,FeedTables!$C$45:$T$45,,-1)","v":{"$error":"#N/A"}},{"$f":"_xlfn.XLOOKUP($B164,FeedTables!$C$42:$T$42,FeedTables!$C$46:$T$46,,-1)*_xlfn.XLOOKUP(N163,DensityMultiplier[Biomass kg/m3],DensityMultiplier[Multiplier],,-1)","v":{"$error":"#N/A"}},{"$f":"IF(A164>'S4-PartialHarvest'!$C$9,0,IF(A164='S4-PartialHarvest'!$C$7,(F163-G163-H163)*(1-'S4-PartialHarvest'!$C$8),(F163-G163-H163)))","v":0},{"$f":"IF(A164<='S4-PartialHarvest'!$C$7,('Growth-Model-4'!G163*EXP($Z$7)),IF(A164<'S4-PartialHarvest'!$C$9,('Growth-Model-4'!G163*EXP($AA$7)),0))+IF(A164='S4-PartialHarvest'!$C$7,'Growth-Model-4'!$AA$6,0)","v":0},{"$f":"IF(A164<='S4-PartialHarvest'!$C$9,$AD$6*EXP($AD$7*('S4-PartialHarvest'!C$9-'Growth-Model-4'!A164)),0)","v":0},258.11742751166497,6.3732698151028389E-2,0,34.187862812341081,0,{"$f":"M164/'S4-PartialHarvest'!$C$19","v":0},{"$error":"#N/A"},{"$error":"#N/A"},{"$f":"_xlfn.XLOOKUP(B164,FeedTables!$C$17:$T$17,FeedTables!$C$31:$T$31,,-1)","v":{"$error":"#N/A"}},{"$f":"_xlfn.XLOOKUP(Q164,FeedPrice[Feed],FeedPrice[Price per kg],\"Unknown\",0)*O164","v":{"$error":"#N/A"}},{"$error":"#N/A"},{"$f":"_xlfn.XLOOKUP(O164,LabourFromFeed[Feed Quantity (kg)],LabourFromFeed[No. Labour],\"Out of range\",-1)","v":{"$error":"#N/A"}},{"$f":"T164*OperatingCosts!$C$9","v":{"$error":"#N/A"}},{"$error":"#N/A"}]
[163,{"$f":"IF(A165<='S4-PartialHarvest'!$C$9, B164*EXP((LN((E164/100)+1))*1),)","v":0},{"$f":"_xlfn.XLOOKUP($B165,FeedTables!$C$42:$T$42,FeedTables!$C$44:$T$44,,-1)","v":{"$error":"#N/A"}},{"$f":"_xlfn.XLOOKUP($B165,FeedTables!$C$42:$T$42,FeedTables!$C$45:$T$45,,-1)","v":{"$error":"#N/A"}},{"$f":"_xlfn.XLOOKUP($B165,FeedTables!$C$42:$T$42,FeedTables!$C$46:$T$46,,-1)*_xlfn.XLOOKUP(N164,DensityMultiplier[Biomass kg/m3],DensityMultiplier[Multiplier],,-1)","v":{"$error":"#N/A"}},{"$f":"IF(A165>'S4-PartialHarvest'!$C$9,0,IF(A165='S4-PartialHarvest'!$C$7,(F164-G164-H164)*(1-'S4-PartialHarvest'!$C$8),(F164-G164-H164)))","v":0},{"$f":"IF(A165<='S4-PartialHarvest'!$C$7,('Growth-Model-4'!G164*EXP($Z$7)),IF(A165<'S4-PartialHarvest'!$C$9,('Growth-Model-4'!G164*EXP($AA$7)),0))+IF(A165='S4-PartialHarvest'!$C$7,'Growth-Model-4'!$AA$6,0)","v":0},{"$f":"IF(A165<='S4-PartialHarvest'!$C$9,$AD$6*EXP($AD$7*('S4-PartialHarvest'!C$9-'Growth-Model-4'!A165)),0)","v":0},258.11742751166497,6.3732698151028389E-2,0,34.187862812341081,0,{"$f":"M165/'S4-PartialHarvest'!$C$19","v":0},{"$error":"#N/A"},{"$error":"#N/A"},{"$f":"_xlfn.XLOOKUP(B165,FeedTables!$C$17:$T$17,FeedTables!$C$31:$T$31,,-1)","v":{"$error":"#N/A"}},{"$f":"_xlfn.XLOOKUP(Q165,FeedPrice[Feed],FeedPrice[Price per kg],\"Unknown\",0)*O165","v":{"$error":"#N/A"}},{"$error":"#N/A"},{"$f":"_xlfn.XLOOKUP(O165,LabourFromFeed[Feed Quantity (kg)],LabourFromFeed[No. Labour],\"Out of range\",-1)","v":{"$error":"#N/A"}},{"$f":"T165*OperatingCosts!$C$9","v":{"$error":"#N/A"}},{"$error":"#N/A"}]
[164,{"$f":"IF(A166<='S4-PartialHarvest'!$C$9, B165*EXP((LN((E165/100)+1))*1),)","v":0},{"$f":"_xlfn.XLOOKUP($B166,FeedTables!$C$42:$T$42,FeedTables!$C$44:$T$44,,-1)","v":{"$error":"#N/A"}},{"$f":"_xlfn.XLOOKUP($B166,FeedTables!$C$42:$T$42,FeedTables!$C$45:$T$45,,-1)","v":{"$error":"#N/A"}},{"$f":"_xlfn.XLOOKUP($B166,FeedTables!$C$42:$T$42,FeedTables!$C$46:$T$46,,-1)*_xlfn.XLOOKUP(N165,DensityMultiplier[Biomass kg/m3],DensityMultiplier[Multiplier],,-1)","v":{"$error":"#N/A"}},{"$f":"IF(A166>'S4-PartialHarvest'!$C$9,0,IF(A166='S4-PartialHarvest'!$C$7,(F165-G165-H165)*(1-'S4-PartialHarvest'!$C$8),(F165-G165-H165)))","v":0},{"$f":"IF(A166<='S4-PartialHarvest'!$C$7,('Growth-Model-4'!G165*EXP($Z$7)),IF(A166<'S4-PartialHarvest'!$C$9,('Growth-Model-4'!G165*EXP($AA$7)),0))+IF(A166='S4-PartialHarvest'!$C$7,'Growth-Model-4'!$AA$6,0)","v":0},{"$f":"IF(A166<='S4-PartialHarvest'!$C$9,$AD$6*EXP($AD$7*('S4-PartialHarvest'!C$9-'Growth-Model-4'!A166)),0)","v":0},258.11742751166497,6.3732698151028389E-2,0,34.187862812341081,0,{"$f":"M166/'S4-PartialHarvest'!$C$19","v":0},{"$error":"#N/A"},{"$error":"#N/A"},{"$f":"_xlfn.XLOOKUP(B166,FeedTables!$C$17:$T$17,FeedTables!$C$31:$T$31,,-1)","v":{"$error":"#N/A"}},{"$f":"_xlfn.XLOOKUP(Q166,FeedPrice[Feed],FeedPrice[Price per kg],\"Unknown\",0)*O166","v":{"$error":"#N/A"}},{"$error":"#N/A"},{"$f":"_xlfn.XLOOKUP(O166,LabourFromFeed[Feed Quantity (kg)],LabourFromFeed[No. Labour],\"Out of range\",-1)","v":{"$error":"#N/A"}},{"$f":"T166*OperatingCosts!$C$9","v":{"$error":"#N/A"}},{"$error":"#N/A"}]
[165,{"$f":"IF(A167<='S4-PartialHarvest'!$C$9, B166*EXP((LN((E166/100)+1))*1),)","v":0},{"$f":"_xlfn.XLOOKUP($B167,FeedTables!$C$42:$T$42,FeedTables!$C$44:$T$44,,-1)","v":{"$error":"#N/A"}},{"$f":"_xlfn.XLOOKUP($B167,FeedTables!$C$42:$T$42,FeedTables!$C$45:$T$45,,-1)","v":{"$error":"#N/A"}},{"$f":"_xlfn.XLOOKUP($B167,FeedTables!$C$42:$T$42,FeedTables!$C$46:$T$46,,-1)*_xlfn.XLOOKUP(N166,DensityMultiplier[Biomass kg/m3],DensityMultiplier[Multiplier],,-1)","v":{"$error":"#N/A"}},{"$f":"IF(A167>'S4-PartialHarvest'!$C$9,0,IF(A167='S4-PartialHarvest'!$C$7,(F166-G166-H166)*(1-'S4-PartialHarvest'!$C$8),(F166-G166-H166)))","v":0},{"$f":"IF(A167<='S4-PartialHarvest'!$C$7,('Growth-Model-4'!G166*EXP($Z$7)),IF(A167<'S4-PartialHarvest'!$C$9,('Growth-Model-4'!G166*EXP($AA$7)),0))+IF(A167='S4-PartialHarvest'!$C$7,'Growth-Model-4'!$AA$6,0)","v":0},{"$f":"IF(A167<='S4-PartialHarvest'!$C$9,$AD$6*EXP($AD$7*('S4-PartialHarvest'!C$9-'Growth-Model-4'!A167)),0)","v":0},258.11742751166497,6.3732698151028389E-2,0,34.187862812341081,0,{"$f":"M167/'S4-PartialHarvest'!$C$19","v":0},{"$error":"#N/A"},{"$error":"#N/A"},{"$f":"_xlfn.XLOOKUP(B167,FeedTables!$C$17:$T$17,FeedTables!$C$31:$T$31,,-1)","v":{"$error":"#N/A"}},{"$f":"_xlfn.XLOOKUP(Q167,FeedPrice[Feed],FeedPrice[Price per kg],\"Unknown\",0)*O167","v":{"$error":"#N/A"}},{"$error":"#N/A"},{"$f":"_xlfn.XLOOKUP(O167,LabourFromFeed[Feed Quantity (kg)],LabourFromFeed[No. Labour],\"Out of range\",-1)","v":{"$error":"#N/A"}},{"$f":"T167*OperatingCosts!$C$9","v":{"$error":"#N/A"}},{"$error":"#N/A"}]
[166,{"$f":"IF(A168<='S4-PartialHarvest'!$C$9, B167*EXP((LN((E167/100)+1))*1),)","v":0},{"$f":"_xlfn.XLOOKUP($B168,FeedTables!$C$42:$T$42,FeedTables!$C$44:$T$44,,-1)","v":{"$error":"#N/A"}},{"$f":"_xlfn.XLOOKUP($B168,FeedTables!$C$42:$T$42,FeedTables!$C$45:$T$45,,-1)","v":{"$error":"#N/A"}},{"$f":"_xlfn.XLOOKUP($B168,FeedTables!$C$42:$T$42,FeedTables!$C$46:$T$46,,-1)*_xlfn.XLOOKUP(N167,DensityMultiplier[Biomass kg/m3],DensityMultiplier[Multiplier],,-1)","v":{"$error":"#N/A"}},{"$f":"IF(A168>'S4-PartialHarvest'!$C$9,0,IF(A168='S4-PartialHarvest'!$C$7,(F167-G167-H167)*(1-'S4-PartialHarvest'!$C$8),(F167-G167-H167)))","v":0},{"$f":"IF(A168<='S4-PartialHarvest'!$C$7,('Growth-Model-4'!G167*EXP($Z$7)),IF(A168<'S4-PartialHarvest'!$C$9,('Growth-Model-4'!G167*EXP($AA$7)),0))+IF(A168='S4-PartialHarvest'!$C$7,'Growth-Model-4'!$AA$6,0)","v":0},{"$f":"IF(A168<='S4-PartialHarvest'!$C$9,$AD$6*EXP($AD$7*('S4-PartialHarvest'!C$9-'Growth-Model-4'!A168)),0)","v":0},258.11742751166497,6.3732698151028389E-2,0,34.187862812341081,0,{"$f":"M168/'S4-PartialHarvest'!$C$19","v":0},{"$error":"#N/A"},{"$error":"#N/A"},{"$f":"_xlfn.XLOOKUP(B168,FeedTables!$C$17:$T$17,FeedTables!$C$31:$T$31,,-1)","v":{"$error":"#N/A"}},{"$f":"_xlfn.XLOOKUP(Q168,FeedPrice[Feed],FeedPrice[Price per kg],\"Unknown\",0)*O168","v":{"$error":"#N/A"}},{"$error":"#N/A"},{"$f":"_xlfn.XLOOKUP(O168,LabourFromFeed[Feed Quantity (kg)],LabourFromFeed[No. Labour],\"Out of range\",-1)","v":{"$error":"#N/A"}},{"$f":"T168*OperatingCosts!$C$9","v":{"$error":"#N/A"}},{"$error":"#N/A"}]
[167,{"$f":"IF(A169<='S4-PartialHarvest'!$C$9, B168*EXP((LN((E168/100)+1))*1),)","v":0},{"$f":"_xlfn.XLOOKUP($B169,FeedTables!$C$42:$T$42,FeedTables!$C$44:$T$44,,-1)","v":{"$error":"#N/A"}},{"$f":"_xlfn.XLOOKUP($B169,FeedTables!$C$42:$T$42,FeedTables!$C$45:$T$45,,-1)","v":{"$error":"#N/A"}},{"$f":"_xlfn.XLOOKUP($B169,FeedTables!$C$42:$T$42,FeedTables!$C$46:$T$46,,-1)*_xlfn.XLOOKUP(N168,DensityMultiplier[Biomass kg/m3],DensityMultiplier[Multiplier],,-1)","v":{"$error":"#N/A"}},{"$f":"IF(A169>'S4-PartialHarvest'!$C$9,0,IF(A169='S4-PartialHarvest'!$C$7,(F168-G168-H168)*(1-'S4-PartialHarvest'!$C$8),(F168-G168-H168)))","v":0},{"$f":"IF(A169<='S4-PartialHarvest'!$C$7,('Growth-Model-4'!G168*EXP($Z$7)),IF(A169<'S4-PartialHarvest'!$C$9,('Growth-Model-4'!G168*EXP($AA$7)),0))+IF(A169='S4-PartialHarvest'!$C$7,'Growth-Model-4'!$AA$6,0)","v":0},{"$f":"IF(A169<='S4-PartialHarvest'!$C$9,$AD$6*EXP($AD$7*('S4-PartialHarvest'!C$9-'Growth-Model-4'!A169)),0)","v":0},258.11742751166497,6.3732698151028389E-2,0,34.187862812341081,0,{"$f":"M169/'S4-PartialHarvest'!$C$19","v":0},{"$error":"#N/A"},{"$error":"#N/A"},{"$f":"_xlfn.XLOOKUP(B169,FeedTables!$C$17:$T$17,FeedTables!$C$31:$T$31,,-1)","v":{"$error":"#N/A"}},{"$f":"_xlfn.XLOOKUP(Q169,FeedPrice[Feed],FeedPrice[Price per kg],\"Unknown\",0)*O169","v":{"$error":"#N/A"}},{"$error":"#N/A"},{"$f":"_xlfn.XLOOKUP(O169,LabourFromFeed[Feed Quantity (kg)],LabourFromFeed[No. Labour],\"Out of range\",-1)","v":{"$error":"#N/A"}},{"$f":"T169*OperatingCosts!$C$9","v":{"$error":"#N/A"}},{"$error":"#N/A"}]
[168,{"$f":"IF(A170<='S4-PartialHarvest'!$C$9, B169*EXP((LN((E169/100)+1))*1),)","v":0},{"$f":"_xlfn.XLOOKUP($B170,FeedTables!$C$42:$T$42,FeedTables!$C$44:$T$44,,-1)","v":{"$error":"#N/A"}},{"$f":"_xlfn.XLOOKUP($B170,FeedTables!$C$42:$T$42,FeedTables!$C$45:$T$45,,-1)","v":{"$error":"#N/A"}},{"$f":"_xlfn.XLOOKUP($B170,FeedTables!$C$42:$T$42,FeedTables!$C$46:$T$46,,-1)*_xlfn.XLOOKUP(N169,DensityMultiplier[Biomass kg/m3],DensityMultiplier[Multiplier],,-1)","v":{"$error":"#N/A"}},{"$f":"IF(A170>'S4-PartialHarvest'!$C$9,0,IF(A170='S4-PartialHarvest'!$C$7,(F169-G169-H169)*(1-'S4-PartialHarvest'!$C$8),(F169-G169-H169)))","v":0},{"$f":"IF(A170<='S4-PartialHarvest'!$C$7,('Growth-Model-4'!G169*EXP($Z$7)),IF(A170<'S4-PartialHarvest'!$C$9,('Growth-Model-4'!G169*EXP($AA$7)),0))+IF(A170='S4-PartialHarvest'!$C$7,'Growth-Model-4'!$AA$6,0)","v":0},{"$f":"IF(A170<='S4-PartialHarvest'!$C$9,$AD$6*EXP($AD$7*('S4-PartialHarvest'!C$9-'Growth-Model-4'!A170)),0)","v":0},258.11742751166497,6.3732698151028389E-2,0,34.187862812341081,0,{"$f":"M170/'S4-PartialHarvest'!$C$19","v":0},{"$error":"#N/A"},{"$error":"#N/A"},{"$f":"_xlfn.XLOOKUP(B170,FeedTables!$C$17:$T$17,FeedTables!$C$31:$T$31,,-1)","v":{"$error":"#N/A"}},{"$f":"_xlfn.XLOOKUP(Q170,FeedPrice[Feed],FeedPrice[Price per kg],\"Unknown\",0)*O170","v":{"$error":"#N/A"}},{"$error":"#N/A"},{"$f":"_xlfn.XLOOKUP(O170,LabourFromFeed[Feed Quantity (kg)],LabourFromFeed[No. Labour],\"Out of range\",-1)","v":{"$error":"#N/A"}},{"$f":"T170*OperatingCosts!$C$9","v":{"$error":"#N/A"}},{"$error":"#N/A"}]
[169,{"$f":"IF(A171<='S4-PartialHarvest'!$C$9, B170*EXP((LN((E170/100)+1))*1),)","v":0},{"$f":"_xlfn.XLOOKUP($B171,FeedTables!$C$42:$T$42,FeedTables!$C$44:$T$44,,-1)","v":{"$error":"#N/A"}},{"$f":"_xlfn.XLOOKUP($B171,FeedTables!$C$42:$T$42,FeedTables!$C$45:$T$45,,-1)","v":{"$error":"#N/A"}},{"$f":"_xlfn.XLOOKUP($B171,FeedTables!$C$42:$T$42,FeedTables!$C$46:$T$46,,-1)*_xlfn.XLOOKUP(N170,DensityMultiplier[Biomass kg/m3],DensityMultiplier[Multiplier],,-1)","v":{"$error":"#N/A"}},{"$f":"IF(A171>'S4-PartialHarvest'!$C$9,0,IF(A171='S4-PartialHarvest'!$C$7,(F170-G170-H170)*(1-'S4-PartialHarvest'!$C$8),(F170-G170-H170)))","v":0},{"$f":"IF(A171<='S4-PartialHarvest'!$C$7,('Growth-Model-4'!G170*EXP($Z$7)),IF(A171<'S4-PartialHarvest'!$C$9,('Growth-Model-4'!G170*EXP($AA$7)),0))+IF(A171='S4-PartialHarvest'!$C$7,'Growth-Model-4'!$AA$6,0)","v":0},{"$f":"IF(A171<='S4-PartialHarvest'!$C$9,$AD$6*EXP($AD$7*('S4-PartialHarvest'!C$9-'Growth-Model-4'!A171)),0)","v":0},258.11742751166497,6.3732698151028389E-2,0,34.187862812341081,0,{"$f":"M171/'S4-PartialHarvest'!$C$19","v":0},{"$error":"#N/A"},{"$error":"#N/A"},{"$f":"_xlfn.XLOOKUP(B171,FeedTables!$C$17:$T$17,FeedTables!$C$31:$T$31,,-1)","v":{"$error":"#N/A"}},{"$f":"_xlfn.XLOOKUP(Q171,FeedPrice[Feed],FeedPrice[Price per kg],\"Unknown\",0)*O171","v":{"$error":"#N/A"}},{"$error":"#N/A"},{"$f":"_xlfn.XLOOKUP(O171,LabourFromFeed[Feed Quantity (kg)],LabourFromFeed[No. Labour],\"Out of range\",-1)","v":{"$error":"#N/A"}},{"$f":"T171*OperatingCosts!$C$9","v":{"$error":"#N/A"}},{"$error":"#N/A"}]
[170,{"$f":"IF(A172<='S4-PartialHarvest'!$C$9, B171*EXP((LN((E171/100)+1))*1),)","v":0},{"$f":"_xlfn.XLOOKUP($B172,FeedTables!$C$42:$T$42,FeedTables!$C$44:$T$44,,-1)","v":{"$error":"#N/A"}},{"$f":"_xlfn.XLOOKUP($B172,FeedTables!$C$42:$T$42,FeedTables!$C$45:$T$45,,-1)","v":{"$error":"#N/A"}},{"$f":"_xlfn.XLOOKUP($B172,FeedTables!$C$42:$T$42,FeedTables!$C$46:$T$46,,-1)*_xlfn.XLOOKUP(N171,DensityMultiplier[Biomass kg/m3],DensityMultiplier[Multiplier],,-1)","v":{"$error":"#N/A"}},{"$f":"IF(A172>'S4-PartialHarvest'!$C$9,0,IF(A172='S4-PartialHarvest'!$C$7,(F171-G171-H171)*(1-'S4-PartialHarvest'!$C$8),(F171-G171-H171)))","v":0},{"$f":"IF(A172<='S4-PartialHarvest'!$C$7,('Growth-Model-4'!G171*EXP($Z$7)),IF(A172<'S4-PartialHarvest'!$C$9,('Growth-Model-4'!G171*EXP($AA$7)),0))+IF(A172='S4-PartialHarvest'!$C$7,'Growth-Model-4'!$AA$6,0)","v":0},{"$f":"IF(A172<='S4-PartialHarvest'!$C$9,$AD$6*EXP($AD$7*('S4-PartialHarvest'!C$9-'Growth-Model-4'!A172)),0)","v":0},258.11742751166497,6.3732698151028389E-2,0,34.187862812341081,0,{"$f":"M172/'S4-PartialHarvest'!$C$19","v":0},{"$error":"#N/A"},{"$error":"#N/A"},{"$f":"_xlfn.XLOOKUP(B172,FeedTables!$C$17:$T$17,FeedTables!$C$31:$T$31,,-1)","v":{"$error":"#N/A"}},{"$f":"_xlfn.XLOOKUP(Q172,FeedPrice[Feed],FeedPrice[Price per kg],\"Unknown\",0)*O172","v":{"$error":"#N/A"}},{"$error":"#N/A"},{"$f":"_xlfn.XLOOKUP(O172,LabourFromFeed[Feed Quantity (kg)],LabourFromFeed[No. Labour],\"Out of range\",-1)","v":{"$error":"#N/A"}},{"$f":"T172*OperatingCosts!$C$9","v":{"$error":"#N/A"}},{"$error":"#N/A"}]
[171,{"$f":"IF(A173<='S4-PartialHarvest'!$C$9, B172*EXP((LN((E172/100)+1))*1),)","v":0},{"$f":"_xlfn.XLOOKUP($B173,FeedTables!$C$42:$T$42,FeedTables!$C$44:$T$44,,-1)","v":{"$error":"#N/A"}},{"$f":"_xlfn.XLOOKUP($B173,FeedTables!$C$42:$T$42,FeedTables!$C$45:$T$45,,-1)","v":{"$error":"#N/A"}},{"$f":"_xlfn.XLOOKUP($B173,FeedTables!$C$42:$T$42,FeedTables!$C$46:$T$46,,-1)*_xlfn.XLOOKUP(N172,DensityMultiplier[Biomass kg/m3],DensityMultiplier[Multiplier],,-1)","v":{"$error":"#N/A"}},{"$f":"IF(A173>'S4-PartialHarvest'!$C$9,0,IF(A173='S4-PartialHarvest'!$C$7,(F172-G172-H172)*(1-'S4-PartialHarvest'!$C$8),(F172-G172-H172)))","v":0},{"$f":"IF(A173<='S4-PartialHarvest'!$C$7,('Growth-Model-4'!G172*EXP($Z$7)),IF(A173<'S4-PartialHarvest'!$C$9,('Growth-Model-4'!G172*EXP($AA$7)),0))+IF(A173='S4-PartialHarvest'!$C$7,'Growth-Model-4'!$AA$6,0)","v":0},{"$f":"IF(A173<='S4-PartialHarvest'!$C$9,$AD$6*EXP($AD$7*('S4-PartialHarvest'!C$9-'Growth-Model-4'!A173)),0)","v":0},258.11742751166497,6.3732698151028389E-2,0,34.187862812341081,0,{"$f":"M173/'S4-PartialHarvest'!$C$19","v":0},{"$error":"#N/A"},{"$error":"#N/A"},{"$f":"_xlfn.XLOOKUP(B173,FeedTables!$C$17:$T$17,FeedTables!$C$31:$T$31,,-1)","v":{"$error":"#N/A"}},{"$f":"_xlfn.XLOOKUP(Q173,FeedPrice[Feed],FeedPrice[Price per kg],\"Unknown\",0)*O173","v":{"$error":"#N/A"}},{"$error":"#N/A"},{"$f":"_xlfn.XLOOKUP(O173,LabourFromFeed[Feed Quantity (kg)],LabourFromFeed[No. Labour],\"Out of range\",-1)","v":{"$error":"#N/A"}},{"$f":"T173*OperatingCosts!$C$9","v":{"$error":"#N/A"}},{"$error":"#N/A"}]
[172,{"$f":"IF(A174<='S4-PartialHarvest'!$C$9, B173*EXP((LN((E173/100)+1))*1),)","v":0},{"$f":"_xlfn.XLOOKUP($B174,FeedTables!$C$42:$T$42,FeedTables!$C$44:$T$44,,-1)","v":{"$error":"#N/A"}},{"$f":"_xlfn.XLOOKUP($B174,FeedTables!$C$42:$T$42,FeedTables!$C$45:$T$45,,-1)","v":{"$error":"#N/A"}},{"$f":"_xlfn.XLOOKUP($B174,FeedTables!$C$42:$T$42,FeedTables!$C$46:$T$46,,-1)*_xlfn.XLOOKUP(N173,DensityMultiplier[Biomass kg/m3],DensityMultiplier[Multiplier],,-1)","v":{"$error":"#N/A"}},{"$f":"IF(A174>'S4-PartialHarvest'!$C$9,0,IF(A174='S4-PartialHarvest'!$C$7,(F173-G173-H173)*(1-'S4-PartialHarvest'!$C$8),(F173-G173-H173)))","v":0},{"$f":"IF(A174<='S4-PartialHarvest'!$C$7,('Growth-Model-4'!G173*EXP($Z$7)),IF(A174<'S4-PartialHarvest'!$C$9,('Growth-Model-4'!G173*EXP($AA$7)),0))+IF(A174='S4-PartialHarvest'!$C$7,'Growth-Model-4'!$AA$6,0)","v":0},{"$f":"IF(A174<='S4-PartialHarvest'!$C$9,$AD$6*EXP($AD$7*('S4-PartialHarvest'!C$9-'Growth-Model-4'!A174)),0)","v":0},258.11742751166497,6.3732698151028389E-2,0,34.187862812341081,0,{"$f":"M174/'S4-PartialHarvest'!$C$19","v":0},{"$error":"#N/A"},{"$error":"#N/A"},{"$f":"_xlfn.XLOOKUP(B174,FeedTables!$C$17:$T$17,FeedTables!$C$31:$T$31,,-1)","v":{"$error":"#N/A"}},{"$f":"_xlfn.XLOOKUP(Q174,FeedPrice[Feed],FeedPrice[Price per kg],\"Unknown\",0)*O174","v":{"$error":"#N/A"}},{"$error":"#N/A"},{"$f":"_xlfn.XLOOKUP(O174,LabourFromFeed[Feed Quantity (kg)],LabourFromFeed[No. Labour],\"Out of range\",-1)","v":{"$error":"#N/A"}},{"$f":"T174*OperatingCosts!$C$9","v":{"$error":"#N/A"}},{"$error":"#N/A"}]
[173,{"$f":"IF(A175<='S4-PartialHarvest'!$C$9, B174*EXP((LN((E174/100)+1))*1),)","v":0},{"$f":"_xlfn.XLOOKUP($B175,FeedTables!$C$42:$T$42,FeedTables!$C$44:$T$44,,-1)","v":{"$error":"#N/A"}},{"$f":"_xlfn.XLOOKUP($B175,FeedTables!$C$42:$T$42,FeedTables!$C$45:$T$45,,-1)","v":{"$error":"#N/A"}},{"$f":"_xlfn.XLOOKUP($B175,FeedTables!$C$42:$T$42,FeedTables!$C$46:$T$46,,-1)*_xlfn.XLOOKUP(N174,DensityMultiplier[Biomass kg/m3],DensityMultiplier[Multiplier],,-1)","v":{"$error":"#N/A"}},{"$f":"IF(A175>'S4-PartialHarvest'!$C$9,0,IF(A175='S4-PartialHarvest'!$C$7,(F174-G174-H174)*(1-'S4-PartialHarvest'!$C$8),(F174-G174-H174)))","v":0},{"$f":"IF(A175<='S4-PartialHarvest'!$C$7,('Growth-Model-4'!G174*EXP($Z$7)),IF(A175<'S4-PartialHarvest'!$C$9,('Growth-Model-4'!G174*EXP($AA$7)),0))+IF(A175='S4-PartialHarvest'!$C$7,'Growth-Model-4'!$AA$6,0)","v":0},{"$f":"IF(A175<='S4-PartialHarvest'!$C$9,$AD$6*EXP($AD$7*('S4-PartialHarvest'!C$9-'Growth-Model-4'!A175)),0)","v":0},258.11742751166497,6.3732698151028389E-2,0,34.187862812341081,0,{"$f":"M175/'S4-PartialHarvest'!$C$19","v":0},{"$error":"#N/A"},{"$error":"#N/A"},{"$f":"_xlfn.XLOOKUP(B175,FeedTables!$C$17:$T$17,FeedTables!$C$31:$T$31,,-1)","v":{"$error":"#N/A"}},{"$f":"_xlfn.XLOOKUP(Q175,FeedPrice[Feed],FeedPrice[Price per kg],\"Unknown\",0)*O175","v":{"$error":"#N/A"}},{"$error":"#N/A"},{"$f":"_xlfn.XLOOKUP(O175,LabourFromFeed[Feed Quantity (kg)],LabourFromFeed[No. Labour],\"Out of range\",-1)","v":{"$error":"#N/A"}},{"$f":"T175*OperatingCosts!$C$9","v":{"$error":"#N/A"}},{"$error":"#N/A"}]
[174,{"$f":"IF(A176<='S4-PartialHarvest'!$C$9, B175*EXP((LN((E175/100)+1))*1),)","v":0},{"$f":"_xlfn.XLOOKUP($B176,FeedTables!$C$42:$T$42,FeedTables!$C$44:$T$44,,-1)","v":{"$error":"#N/A"}},{"$f":"_xlfn.XLOOKUP($B176,FeedTables!$C$42:$T$42,FeedTables!$C$45:$T$45,,-1)","v":{"$error":"#N/A"}},{"$f":"_xlfn.XLOOKUP($B176,FeedTables!$C$42:$T$42,FeedTables!$C$46:$T$46,,-1)*_xlfn.XLOOKUP(N175,DensityMultiplier[Biomass kg/m3],DensityMultiplier[Multiplier],,-1)","v":{"$error":"#N/A"}},{"$f":"IF(A176>'S4-PartialHarvest'!$C$9,0,IF(A176='S4-PartialHarvest'!$C$7,(F175-G175-H175)*(1-'S4-PartialHarvest'!$C$8),(F175-G175-H175)))","v":0},{"$f":"IF(A176<='S4-PartialHarvest'!$C$7,('Growth-Model-4'!G175*EXP($Z$7)),IF(A176<'S4-PartialHarvest'!$C$9,('Growth-Model-4'!G175*EXP($AA$7)),0))+IF(A176='S4-PartialHarvest'!$C$7,'Growth-Model-4'!$AA$6,0)","v":0},{"$f":"IF(A176<='S4-PartialHarvest'!$C$9,$AD$6*EXP($AD$7*('S4-PartialHarvest'!C$9-'Growth-Model-4'!A176)),0)","v":0},258.11742751166497,6.3732698151028389E-2,0,34.187862812341081,0,{"$f":"M176/'S4-PartialHarvest'!$C$19","v":0},{"$error":"#N/A"},{"$error":"#N/A"},{"$f":"_xlfn.XLOOKUP(B176,FeedTables!$C$17:$T$17,FeedTables!$C$31:$T$31,,-1)","v":{"$error":"#N/A"}},{"$f":"_xlfn.XLOOKUP(Q176,FeedPrice[Feed],FeedPrice[Price per kg],\"Unknown\",0)*O176","v":{"$error":"#N/A"}},{"$error":"#N/A"},{"$f":"_xlfn.XLOOKUP(O176,LabourFromFeed[Feed Quantity (kg)],LabourFromFeed[No. Labour],\"Out of range\",-1)","v":{"$error":"#N/A"}},{"$f":"T176*OperatingCosts!$C$9","v":{"$error":"#N/A"}},{"$error":"#N/A"}]
[175,{"$f":"IF(A177<='S4-PartialHarvest'!$C$9, B176*EXP((LN((E176/100)+1))*1),)","v":0},{"$f":"_xlfn.XLOOKUP($B177,FeedTables!$C$42:$T$42,FeedTables!$C$44:$T$44,,-1)","v":{"$error":"#N/A"}},{"$f":"_xlfn.XLOOKUP($B177,FeedTables!$C$42:$T$42,FeedTables!$C$45:$T$45,,-1)","v":{"$error":"#N/A"}},{"$f":"_xlfn.XLOOKUP($B177,FeedTables!$C$42:$T$42,FeedTables!$C$46:$T$46,,-1)*_xlfn.XLOOKUP(N176,DensityMultiplier[Biomass kg/m3],DensityMultiplier[Multiplier],,-1)","v":{"$error":"#N/A"}},{"$f":"IF(A177>'S4-PartialHarvest'!$C$9,0,IF(A177='S4-PartialHarvest'!$C$7,(F176-G176-H176)*(1-'S4-PartialHarvest'!$C$8),(F176-G176-H176)))","v":0},{"$f":"IF(A177<='S4-PartialHarvest'!$C$7,('Growth-Model-4'!G176*EXP($Z$7)),IF(A177<'S4-PartialHarvest'!$C$9,('Growth-Model-4'!G176*EXP($AA$7)),0))+IF(A177='S4-PartialHarvest'!$C$7,'Growth-Model-4'!$AA$6,0)","v":0},{"$f":"IF(A177<='S4-PartialHarvest'!$C$9,$AD$6*EXP($AD$7*('S4-PartialHarvest'!C$9-'Growth-Model-4'!A177)),0)","v":0},258.11742751166497,6.3732698151028389E-2,0,34.187862812341081,0,{"$f":"M177/'S4-PartialHarvest'!$C$19","v":0},{"$error":"#N/A"},{"$error":"#N/A"},{"$f":"_xlfn.XLOOKUP(B177,FeedTables!$C$17:$T$17,FeedTables!$C$31:$T$31,,-1)","v":{"$error":"#N/A"}},{"$f":"_xlfn.XLOOKUP(Q177,FeedPrice[Feed],FeedPrice[Price per kg],\"Unknown\",0)*O177","v":{"$error":"#N/A"}},{"$error":"#N/A"},{"$f":"_xlfn.XLOOKUP(O177,LabourFromFeed[Feed Quantity (kg)],LabourFromFeed[No. Labour],\"Out of range\",-1)","v":{"$error":"#N/A"}},{"$f":"T177*OperatingCosts!$C$9","v":{"$error":"#N/A"}},{"$error":"#N/A"}]
[176,{"$f":"IF(A178<='S4-PartialHarvest'!$C$9, B177*EXP((LN((E177/100)+1))*1),)","v":0},{"$f":"_xlfn.XLOOKUP($B178,FeedTables!$C$42:$T$42,FeedTables!$C$44:$T$44,,-1)","v":{"$error":"#N/A"}},{"$f":"_xlfn.XLOOKUP($B178,FeedTables!$C$42:$T$42,FeedTables!$C$45:$T$45,,-1)","v":{"$error":"#N/A"}},{"$f":"_xlfn.XLOOKUP($B178,FeedTables!$C$42:$T$42,FeedTables!$C$46:$T$46,,-1)*_xlfn.XLOOKUP(N177,DensityMultiplier[Biomass kg/m3],DensityMultiplier[Multiplier],,-1)","v":{"$error":"#N/A"}},{"$f":"IF(A178>'S4-PartialHarvest'!$C$9,0,IF(A178='S4-PartialHarvest'!$C$7,(F177-G177-H177)*(1-'S4-PartialHarvest'!$C$8),(F177-G177-H177)))","v":0},{"$f":"IF(A178<='S4-PartialHarvest'!$C$7,('Growth-Model-4'!G177*EXP($Z$7)),IF(A178<'S4-PartialHarvest'!$C$9,('Growth-Model-4'!G177*EXP($AA$7)),0))+IF(A178='S4-PartialHarvest'!$C$7,'Growth-Model-4'!$AA$6,0)","v":0},{"$f":"IF(A178<='S4-PartialHarvest'!$C$9,$AD$6*EXP($AD$7*('S4-PartialHarvest'!C$9-'Growth-Model-4'!A178)),0)","v":0},258.11742751166497,6.3732698151028389E-2,0,34.187862812341081,0,{"$f":"M178/'S4-PartialHarvest'!$C$19","v":0},{"$error":"#N/A"},{"$error":"#N/A"},{"$f":"_xlfn.XLOOKUP(B178,FeedTables!$C$17:$T$17,FeedTables!$C$31:$T$31,,-1)","v":{"$error":"#N/A"}},{"$f":"_xlfn.XLOOKUP(Q178,FeedPrice[Feed],FeedPrice[Price per kg],\"Unknown\",0)*O178","v":{"$error":"#N/A"}},{"$error":"#N/A"},{"$f":"_xlfn.XLOOKUP(O178,LabourFromFeed[Feed Quantity (kg)],LabourFromFeed[No. Labour],\"Out of range\",-1)","v":{"$error":"#N/A"}},{"$f":"T178*OperatingCosts!$C$9","v":{"$error":"#N/A"}},{"$error":"#N/A"}]
[177,{"$f":"IF(A179<='S4-PartialHarvest'!$C$9, B178*EXP((LN((E178/100)+1))*1),)","v":0},{"$f":"_xlfn.XLOOKUP($B179,FeedTables!$C$42:$T$42,FeedTables!$C$44:$T$44,,-1)","v":{"$error":"#N/A"}},{"$f":"_xlfn.XLOOKUP($B179,FeedTables!$C$42:$T$42,FeedTables!$C$45:$T$45,,-1)","v":{"$error":"#N/A"}},{"$f":"_xlfn.XLOOKUP($B179,FeedTables!$C$42:$T$42,FeedTables!$C$46:$T$46,,-1)*_xlfn.XLOOKUP(N178,DensityMultiplier[Biomass kg/m3],DensityMultiplier[Multiplier],,-1)","v":{"$error":"#N/A"}},{"$f":"IF(A179>'S4-PartialHarvest'!$C$9,0,IF(A179='S4-PartialHarvest'!$C$7,(F178-G178-H178)*(1-'S4-PartialHarvest'!$C$8),(F178-G178-H178)))","v":0},{"$f":"IF(A179<='S4-PartialHarvest'!$C$7,('Growth-Model-4'!G178*EXP($Z$7)),IF(A179<'S4-PartialHarvest'!$C$9,('Growth-Model-4'!G178*EXP($AA$7)),0))+IF(A179='S4-PartialHarvest'!$C$7,'Growth-Model-4'!$AA$6,0)","v":0},{"$f":"IF(A179<='S4-PartialHarvest'!$C$9,$AD$6*EXP($AD$7*('S4-PartialHarvest'!C$9-'Growth-Model-4'!A179)),0)","v":0},258.11742751166497,6.3732698151028389E-2,0,34.187862812341081,0,{"$f":"M179/'S4-PartialHarvest'!$C$19","v":0},{"$error":"#N/A"},{"$error":"#N/A"},{"$f":"_xlfn.XLOOKUP(B179,FeedTables!$C$17:$T$17,FeedTables!$C$31:$T$31,,-1)","v":{"$error":"#N/A"}},{"$f":"_xlfn.XLOOKUP(Q179,FeedPrice[Feed],FeedPrice[Price per kg],\"Unknown\",0)*O179","v":{"$error":"#N/A"}},{"$error":"#N/A"},{"$f":"_xlfn.XLOOKUP(O179,LabourFromFeed[Feed Quantity (kg)],LabourFromFeed[No. Labour],\"Out of range\",-1)","v":{"$error":"#N/A"}},{"$f":"T179*OperatingCosts!$C$9","v":{"$error":"#N/A"}},{"$error":"#N/A"}]
[178,{"$f":"IF(A180<='S4-PartialHarvest'!$C$9, B179*EXP((LN((E179/100)+1))*1),)","v":0},{"$f":"_xlfn.XLOOKUP($B180,FeedTables!$C$42:$T$42,FeedTables!$C$44:$T$44,,-1)","v":{"$error":"#N/A"}},{"$f":"_xlfn.XLOOKUP($B180,FeedTables!$C$42:$T$42,FeedTables!$C$45:$T$45,,-1)","v":{"$error":"#N/A"}},{"$f":"_xlfn.XLOOKUP($B180,FeedTables!$C$42:$T$42,FeedTables!$C$46:$T$46,,-1)*_xlfn.XLOOKUP(N179,DensityMultiplier[Biomass kg/m3],DensityMultiplier[Multiplier],,-1)","v":{"$error":"#N/A"}},{"$f":"IF(A180>'S4-PartialHarvest'!$C$9,0,IF(A180='S4-PartialHarvest'!$C$7,(F179-G179-H179)*(1-'S4-PartialHarvest'!$C$8),(F179-G179-H179)))","v":0},{"$f":"IF(A180<='S4-PartialHarvest'!$C$7,('Growth-Model-4'!G179*EXP($Z$7)),IF(A180<'S4-PartialHarvest'!$C$9,('Growth-Model-4'!G179*EXP($AA$7)),0))+IF(A180='S4-PartialHarvest'!$C$7,'Growth-Model-4'!$AA$6,0)","v":0},{"$f":"IF(A180<='S4-PartialHarvest'!$C$9,$AD$6*EXP($AD$7*('S4-PartialHarvest'!C$9-'Growth-Model-4'!A180)),0)","v":0},258.11742751166497,6.3732698151028389E-2,0,34.187862812341081,0,{"$f":"M180/'S4-PartialHarvest'!$C$19","v":0},{"$error":"#N/A"},{"$error":"#N/A"},{"$f":"_xlfn.XLOOKUP(B180,FeedTables!$C$17:$T$17,FeedTables!$C$31:$T$31,,-1)","v":{"$error":"#N/A"}},{"$f":"_xlfn.XLOOKUP(Q180,FeedPrice[Feed],FeedPrice[Price per kg],\"Unknown\",0)*O180","v":{"$error":"#N/A"}},{"$error":"#N/A"},{"$f":"_xlfn.XLOOKUP(O180,LabourFromFeed[Feed Quantity (kg)],LabourFromFeed[No. Labour],\"Out of range\",-1)","v":{"$error":"#N/A"}},{"$f":"T180*OperatingCosts!$C$9","v":{"$error":"#N/A"}},{"$error":"#N/A"}]
[179,{"$f":"IF(A181<='S4-PartialHarvest'!$C$9, B180*EXP((LN((E180/100)+1))*1),)","v":0},{"$f":"_xlfn.XLOOKUP($B181,FeedTables!$C$42:$T$42,FeedTables!$C$44:$T$44,,-1)","v":{"$error":"#N/A"}},{"$f":"_xlfn.XLOOKUP($B181,FeedTables!$C$42:$T$42,FeedTables!$C$45:$T$45,,-1)","v":{"$error":"#N/A"}},{"$f":"_xlfn.XLOOKUP($B181,FeedTables!$C$42:$T$42,FeedTables!$C$46:$T$46,,-1)*_xlfn.XLOOKUP(N180,DensityMultiplier[Biomass kg/m3],DensityMultiplier[Multiplier],,-1)","v":{"$error":"#N/A"}},{"$f":"IF(A181>'S4-PartialHarvest'!$C$9,0,IF(A181='S4-PartialHarvest'!$C$7,(F180-G180-H180)*(1-'S4-PartialHarvest'!$C$8),(F180-G180-H180)))","v":0},{"$f":"IF(A181<='S4-PartialHarvest'!$C$7,('Growth-Model-4'!G180*EXP($Z$7)),IF(A181<'S4-PartialHarvest'!$C$9,('Growth-Model-4'!G180*EXP($AA$7)),0))+IF(A181='S4-PartialHarvest'!$C$7,'Growth-Model-4'!$AA$6,0)","v":0},{"$f":"IF(A181<='S4-PartialHarvest'!$C$9,$AD$6*EXP($AD$7*('S4-PartialHarvest'!C$9-'Growth-Model-4'!A181)),0)","v":0},258.11742751166497,6.3732698151028389E-2,0,34.187862812341081,0,{"$f":"M181/'S4-PartialHarvest'!$C$19","v":0},{"$error":"#N/A"},{"$error":"#N/A"},{"$f":"_xlfn.XLOOKUP(B181,FeedTables!$C$17:$T$17,FeedTables!$C$31:$T$31,,-1)","v":{"$error":"#N/A"}},{"$f":"_xlfn.XLOOKUP(Q181,FeedPrice[Feed],FeedPrice[Price per kg],\"Unknown\",0)*O181","v":{"$error":"#N/A"}},{"$error":"#N/A"},{"$f":"_xlfn.XLOOKUP(O181,LabourFromFeed[Feed Quantity (kg)],LabourFromFeed[No. Labour],\"Out of range\",-1)","v":{"$error":"#N/A"}},{"$f":"T181*OperatingCosts!$C$9","v":{"$error":"#N/A"}},{"$error":"#N/A"}]
[180,{"$f":"IF(A182<='S4-PartialHarvest'!$C$9, B181*EXP((LN((E181/100)+1))*1),)","v":0},{"$f":"_xlfn.XLOOKUP($B182,FeedTables!$C$42:$T$42,FeedTables!$C$44:$T$44,,-1)","v":{"$error":"#N/A"}},{"$f":"_xlfn.XLOOKUP($B182,FeedTables!$C$42:$T$42,FeedTables!$C$45:$T$45,,-1)","v":{"$error":"#N/A"}},{"$f":"_xlfn.XLOOKUP($B182,FeedTables!$C$42:$T$42,FeedTables!$C$46:$T$46,,-1)*_xlfn.XLOOKUP(N181,DensityMultiplier[Biomass kg/m3],DensityMultiplier[Multiplier],,-1)","v":{"$error":"#N/A"}},{"$f":"IF(A182>'S4-PartialHarvest'!$C$9,0,IF(A182='S4-PartialHarvest'!$C$7,(F181-G181-H181)*(1-'S4-PartialHarvest'!$C$8),(F181-G181-H181)))","v":0},{"$f":"IF(A182<='S4-PartialHarvest'!$C$7,('Growth-Model-4'!G181*EXP($Z$7)),IF(A182<'S4-PartialHarvest'!$C$9,('Growth-Model-4'!G181*EXP($AA$7)),0))+IF(A182='S4-PartialHarvest'!$C$7,'Growth-Model-4'!$AA$6,0)","v":0},{"$f":"IF(A182<='S4-PartialHarvest'!$C$9,$AD$6*EXP($AD$7*('S4-PartialHarvest'!C$9-'Growth-Model-4'!A182)),0)","v":0},258.11742751166497,6.3732698151028389E-2,0,34.187862812341081,0,{"$f":"M182/'S4-PartialHarvest'!$C$19","v":0},{"$error":"#N/A"},{"$error":"#N/A"},{"$f":"_xlfn.XLOOKUP(B182,FeedTables!$C$17:$T$17,FeedTables!$C$31:$T$31,,-1)","v":{"$error":"#N/A"}},{"$f":"_xlfn.XLOOKUP(Q182,FeedPrice[Feed],FeedPrice[Price per kg],\"Unknown\",0)*O182","v":{"$error":"#N/A"}},{"$error":"#N/A"},{"$f":"_xlfn.XLOOKUP(O182,LabourFromFeed[Feed Quantity (kg)],LabourFromFeed[No. Labour],\"Out of range\",-1)","v":{"$error":"#N/A"}},{"$f":"T182*OperatingCosts!$C$9","v":{"$error":"#N/A"}},{"$error":"#N/A"}]
[181,{"$f":"IF(A183<='S4-PartialHarvest'!$C$9, B182*EXP((LN((E182/100)+1))*1),)","v":0},{"$f":"_xlfn.XLOOKUP($B183,FeedTables!$C$42:$T$42,FeedTables!$C$44:$T$44,,-1)","v":{"$error":"#N/A"}},{"$f":"_xlfn.XLOOKUP($B183,FeedTables!$C$42:$T$42,FeedTables!$C$45:$T$45,,-1)","v":{"$error":"#N/A"}},{"$f":"_xlfn.XLOOKUP($B183,FeedTables!$C$42:$T$42,FeedTables!$C$46:$T$46,,-1)*_xlfn.XLOOKUP(N182,DensityMultiplier[Biomass kg/m3],DensityMultiplier[Multiplier],,-1)","v":{"$error":"#N/A"}},{"$f":"IF(A183>'S4-PartialHarvest'!$C$9,0,IF(A183='S4-PartialHarvest'!$C$7,(F182-G182-H182)*(1-'S4-PartialHarvest'!$C$8),(F182-G182-H182)))","v":0},{"$f":"IF(A183<='S4-PartialHarvest'!$C$7,('Growth-Model-4'!G182*EXP($Z$7)),IF(A183<'S4-PartialHarvest'!$C$9,('Growth-Model-4'!G182*EXP($AA$7)),0))+IF(A183='S4-PartialHarvest'!$C$7,'Growth-Model-4'!$AA$6,0)","v":0},{"$f":"IF(A183<='S4-PartialHarvest'!$C$9,$AD$6*EXP($AD$7*('S4-PartialHarvest'!C$9-'Growth-Model-4'!A183)),0)","v":0},258.11742751166497,6.3732698151028389E-2,0,34.187862812341081,0,{"$f":"M183/'S4-PartialHarvest'!$C$19","v":0},{"$error":"#N/A"},{"$error":"#N/A"},{"$f":"_xlfn.XLOOKUP(B183,FeedTables!$C$17:$T$17,FeedTables!$C$31:$T$31,,-1)","v":{"$error":"#N/A"}},{"$f":"_xlfn.XLOOKUP(Q183,FeedPrice[Feed],FeedPrice[Price per kg],\"Unknown\",0)*O183","v":{"$error":"#N/A"}},{"$error":"#N/A"},{"$f":"_xlfn.XLOOKUP(O183,LabourFromFeed[Feed Quantity (kg)],LabourFromFeed[No. Labour],\"Out of range\",-1)","v":{"$error":"#N/A"}},{"$f":"T183*OperatingCosts!$C$9","v":{"$error":"#N/A"}},{"$error":"#N/A"}]
[182,{"$f":"IF(A184<='S4-PartialHarvest'!$C$9, B183*EXP((LN((E183/100)+1))*1),)","v":0},{"$f":"_xlfn.XLOOKUP($B184,FeedTables!$C$42:$T$42,FeedTables!$C$44:$T$44,,-1)","v":{"$error":"#N/A"}},{"$f":"_xlfn.XLOOKUP($B184,FeedTables!$C$42:$T$42,FeedTables!$C$45:$T$45,,-1)","v":{"$error":"#N/A"}},{"$f":"_xlfn.XLOOKUP($B184,FeedTables!$C$42:$T$42,FeedTables!$C$46:$T$46,,-1)*_xlfn.XLOOKUP(N183,DensityMultiplier[Biomass kg/m3],DensityMultiplier[Multiplier],,-1)","v":{"$error":"#N/A"}},{"$f":"IF(A184>'S4-PartialHarvest'!$C$9,0,IF(A184='S4-PartialHarvest'!$C$7,(F183-G183-H183)*(1-'S4-PartialHarvest'!$C$8),(F183-G183-H183)))","v":0},{"$f":"IF(A184<='S4-PartialHarvest'!$C$7,('Growth-Model-4'!G183*EXP($Z$7)),IF(A184<'S4-PartialHarvest'!$C$9,('Growth-Model-4'!G183*EXP($AA$7)),0))+IF(A184='S4-PartialHarvest'!$C$7,'Growth-Model-4'!$AA$6,0)","v":0},{"$f":"IF(A184<='S4-PartialHarvest'!$C$9,$AD$6*EXP($AD$7*('S4-PartialHarvest'!C$9-'Growth-Model-4'!A184)),0)","v":0},258.11742751166497,6.3732698151028389E-2,0,34.187862812341081,0,{"$f":"M184/'S4-PartialHarvest'!$C$19","v":0},{"$error":"#N/A"},{"$error":"#N/A"},{"$f":"_xlfn.XLOOKUP(B184,FeedTables!$C$17:$T$17,FeedTables!$C$31:$T$31,,-1)","v":{"$error":"#N/A"}},{"$f":"_xlfn.XLOOKUP(Q184,FeedPrice[Feed],FeedPrice[Price per kg],\"Unknown\",0)*O184","v":{"$error":"#N/A"}},{"$error":"#N/A"},{"$f":"_xlfn.XLOOKUP(O184,LabourFromFeed[Feed Quantity (kg)],LabourFromFeed[No. Labour],\"Out of range\",-1)","v":{"$error":"#N/A"}},{"$f":"T184*OperatingCosts!$C$9","v":{"$error":"#N/A"}},{"$error":"#N/A"}]
[183,{"$f":"IF(A185<='S4-PartialHarvest'!$C$9, B184*EXP((LN((E184/100)+1))*1),)","v":0},{"$f":"_xlfn.XLOOKUP($B185,FeedTables!$C$42:$T$42,FeedTables!$C$44:$T$44,,-1)","v":{"$error":"#N/A"}},{"$f":"_xlfn.XLOOKUP($B185,FeedTables!$C$42:$T$42,FeedTables!$C$45:$T$45,,-1)","v":{"$error":"#N/A"}},{"$f":"_xlfn.XLOOKUP($B185,FeedTables!$C$42:$T$42,FeedTables!$C$46:$T$46,,-1)*_xlfn.XLOOKUP(N184,DensityMultiplier[Biomass kg/m3],DensityMultiplier[Multiplier],,-1)","v":{"$error":"#N/A"}},{"$f":"IF(A185>'S4-PartialHarvest'!$C$9,0,IF(A185='S4-PartialHarvest'!$C$7,(F184-G184-H184)*(1-'S4-PartialHarvest'!$C$8),(F184-G184-H184)))","v":0},{"$f":"IF(A185<='S4-PartialHarvest'!$C$7,('Growth-Model-4'!G184*EXP($Z$7)),IF(A185<'S4-PartialHarvest'!$C$9,('Growth-Model-4'!G184*EXP($AA$7)),0))+IF(A185='S4-PartialHarvest'!$C$7,'Growth-Model-4'!$AA$6,0)","v":0},{"$f":"IF(A185<='S4-PartialHarvest'!$C$9,$AD$6*EXP($AD$7*('S4-PartialHarvest'!C$9-'Growth-Model-4'!A185)),0)","v":0},258.11742751166497,6.3732698151028389E-2,0,34.187862812341081,0,{"$f":"M185/'S4-PartialHarvest'!$C$19","v":0},{"$error":"#N/A"},{"$error":"#N/A"},{"$f":"_xlfn.XLOOKUP(B185,FeedTables!$C$17:$T$17,FeedTables!$C$31:$T$31,,-1)","v":{"$error":"#N/A"}},{"$f":"_xlfn.XLOOKUP(Q185,FeedPrice[Feed],FeedPrice[Price per kg],\"Unknown\",0)*O185","v":{"$error":"#N/A"}},{"$error":"#N/A"},{"$f":"_xlfn.XLOOKUP(O185,LabourFromFeed[Feed Quantity (kg)],LabourFromFeed[No. Labour],\"Out of range\",-1)","v":{"$error":"#N/A"}},{"$f":"T185*OperatingCosts!$C$9","v":{"$error":"#N/A"}},{"$error":"#N/A"}]
[184,{"$f":"IF(A186<='S4-PartialHarvest'!$C$9, B185*EXP((LN((E185/100)+1))*1),)","v":0},{"$f":"_xlfn.XLOOKUP($B186,FeedTables!$C$42:$T$42,FeedTables!$C$44:$T$44,,-1)","v":{"$error":"#N/A"}},{"$f":"_xlfn.XLOOKUP($B186,FeedTables!$C$42:$T$42,FeedTables!$C$45:$T$45,,-1)","v":{"$error":"#N/A"}},{"$f":"_xlfn.XLOOKUP($B186,FeedTables!$C$42:$T$42,FeedTables!$C$46:$T$46,,-1)*_xlfn.XLOOKUP(N185,DensityMultiplier[Biomass kg/m3],DensityMultiplier[Multiplier],,-1)","v":{"$error":"#N/A"}},{"$f":"IF(A186>'S4-PartialHarvest'!$C$9,0,IF(A186='S4-PartialHarvest'!$C$7,(F185-G185-H185)*(1-'S4-PartialHarvest'!$C$8),(F185-G185-H185)))","v":0},{"$f":"IF(A186<='S4-PartialHarvest'!$C$7,('Growth-Model-4'!G185*EXP($Z$7)),IF(A186<'S4-PartialHarvest'!$C$9,('Growth-Model-4'!G185*EXP($AA$7)),0))+IF(A186='S4-PartialHarvest'!$C$7,'Growth-Model-4'!$AA$6,0)","v":0},{"$f":"IF(A186<='S4-PartialHarvest'!$C$9,$AD$6*EXP($AD$7*('S4-PartialHarvest'!C$9-'Growth-Model-4'!A186)),0)","v":0},258.11742751166497,6.3732698151028389E-2,0,34.187862812341081,0,{"$f":"M186/'S4-PartialHarvest'!$C$19","v":0},{"$error":"#N/A"},{"$error":"#N/A"},{"$f":"_xlfn.XLOOKUP(B186,FeedTables!$C$17:$T$17,FeedTables!$C$31:$T$31,,-1)","v":{"$error":"#N/A"}},{"$f":"_xlfn.XLOOKUP(Q186,FeedPrice[Feed],FeedPrice[Price per kg],\"Unknown\",0)*O186","v":{"$error":"#N/A"}},{"$error":"#N/A"},{"$f":"_xlfn.XLOOKUP(O186,LabourFromFeed[Feed Quantity (kg)],LabourFromFeed[No. Labour],\"Out of range\",-1)","v":{"$error":"#N/A"}},{"$f":"T186*OperatingCosts!$C$9","v":{"$error":"#N/A"}},{"$error":"#N/A"}]
[185,{"$f":"IF(A187<='S4-PartialHarvest'!$C$9, B186*EXP((LN((E186/100)+1))*1),)","v":0},{"$f":"_xlfn.XLOOKUP($B187,FeedTables!$C$42:$T$42,FeedTables!$C$44:$T$44,,-1)","v":{"$error":"#N/A"}},{"$f":"_xlfn.XLOOKUP($B187,FeedTables!$C$42:$T$42,FeedTables!$C$45:$T$45,,-1)","v":{"$error":"#N/A"}},{"$f":"_xlfn.XLOOKUP($B187,FeedTables!$C$42:$T$42,FeedTables!$C$46:$T$46,,-1)*_xlfn.XLOOKUP(N186,DensityMultiplier[Biomass kg/m3],DensityMultiplier[Multiplier],,-1)","v":{"$error":"#N/A"}},{"$f":"IF(A187>'S4-PartialHarvest'!$C$9,0,IF(A187='S4-PartialHarvest'!$C$7,(F186-G186-H186)*(1-'S4-PartialHarvest'!$C$8),(F186-G186-H186)))","v":0},{"$f":"IF(A187<='S4-PartialHarvest'!$C$7,('Growth-Model-4'!G186*EXP($Z$7)),IF(A187<'S4-PartialHarvest'!$C$9,('Growth-Model-4'!G186*EXP($AA$7)),0))+IF(A187='S4-PartialHarvest'!$C$7,'Growth-Model-4'!$AA$6,0)","v":0},{"$f":"IF(A187<='S4-PartialHarvest'!$C$9,$AD$6*EXP($AD$7*('S4-PartialHarvest'!C$9-'Growth-Model-4'!A187)),0)","v":0},258.11742751166497,6.3732698151028389E-2,0,34.187862812341081,0,{"$f":"M187/'S4-PartialHarvest'!$C$19","v":0},{"$error":"#N/A"},{"$error":"#N/A"},{"$f":"_xlfn.XLOOKUP(B187,FeedTables!$C$17:$T$17,FeedTables!$C$31:$T$31,,-1)","v":{"$error":"#N/A"}},{"$f":"_xlfn.XLOOKUP(Q187,FeedPrice[Feed],FeedPrice[Price per kg],\"Unknown\",0)*O187","v":{"$error":"#N/A"}},{"$error":"#N/A"},{"$f":"_xlfn.XLOOKUP(O187,LabourFromFeed[Feed Quantity (kg)],LabourFromFeed[No. Labour],\"Out of range\",-1)","v":{"$error":"#N/A"}},{"$f":"T187*OperatingCosts!$C$9","v":{"$error":"#N/A"}},{"$error":"#N/A"}]
[186,{"$f":"IF(A188<='S4-PartialHarvest'!$C$9, B187*EXP((LN((E187/100)+1))*1),)","v":0},{"$f":"_xlfn.XLOOKUP($B188,FeedTables!$C$42:$T$42,FeedTables!$C$44:$T$44,,-1)","v":{"$error":"#N/A"}},{"$f":"_xlfn.XLOOKUP($B188,FeedTables!$C$42:$T$42,FeedTables!$C$45:$T$45,,-1)","v":{"$error":"#N/A"}},{"$f":"_xlfn.XLOOKUP($B188,FeedTables!$C$42:$T$42,FeedTables!$C$46:$T$46,,-1)*_xlfn.XLOOKUP(N187,DensityMultiplier[Biomass kg/m3],DensityMultiplier[Multiplier],,-1)","v":{"$error":"#N/A"}},{"$f":"IF(A188>'S4-PartialHarvest'!$C$9,0,IF(A188='S4-PartialHarvest'!$C$7,(F187-G187-H187)*(1-'S4-PartialHarvest'!$C$8),(F187-G187-H187)))","v":0},{"$f":"IF(A188<='S4-PartialHarvest'!$C$7,('Growth-Model-4'!G187*EXP($Z$7)),IF(A188<'S4-PartialHarvest'!$C$9,('Growth-Model-4'!G187*EXP($AA$7)),0))+IF(A188='S4-PartialHarvest'!$C$7,'Growth-Model-4'!$AA$6,0)","v":0},{"$f":"IF(A188<='S4-PartialHarvest'!$C$9,$AD$6*EXP($AD$7*('S4-PartialHarvest'!C$9-'Growth-Model-4'!A188)),0)","v":0},258.11742751166497,6.3732698151028389E-2,0,34.187862812341081,0,{"$f":"M188/'S4-PartialHarvest'!$C$19","v":0},{"$error":"#N/A"},{"$error":"#N/A"},{"$f":"_xlfn.XLOOKUP(B188,FeedTables!$C$17:$T$17,FeedTables!$C$31:$T$31,,-1)","v":{"$error":"#N/A"}},{"$f":"_xlfn.XLOOKUP(Q188,FeedPrice[Feed],FeedPrice[Price per kg],\"Unknown\",0)*O188","v":{"$error":"#N/A"}},{"$error":"#N/A"},{"$f":"_xlfn.XLOOKUP(O188,LabourFromFeed[Feed Quantity (kg)],LabourFromFeed[No. Labour],\"Out of range\",-1)","v":{"$error":"#N/A"}},{"$f":"T188*OperatingCosts!$C$9","v":{"$error":"#N/A"}},{"$error":"#N/A"}]
[187,{"$f":"IF(A189<='S4-PartialHarvest'!$C$9, B188*EXP((LN((E188/100)+1))*1),)","v":0},{"$f":"_xlfn.XLOOKUP($B189,FeedTables!$C$42:$T$42,FeedTables!$C$44:$T$44,,-1)","v":{"$error":"#N/A"}},{"$f":"_xlfn.XLOOKUP($B189,FeedTables!$C$42:$T$42,FeedTables!$C$45:$T$45,,-1)","v":{"$error":"#N/A"}},{"$f":"_xlfn.XLOOKUP($B189,FeedTables!$C$42:$T$42,FeedTables!$C$46:$T$46,,-1)*_xlfn.XLOOKUP(N188,DensityMultiplier[Biomass kg/m3],DensityMultiplier[Multiplier],,-1)","v":{"$error":"#N/A"}},{"$f":"IF(A189>'S4-PartialHarvest'!$C$9,0,IF(A189='S4-PartialHarvest'!$C$7,(F188-G188-H188)*(1-'S4-PartialHarvest'!$C$8),(F188-G188-H188)))","v":0},{"$f":"IF(A189<='S4-PartialHarvest'!$C$7,('Growth-Model-4'!G188*EXP($Z$7)),IF(A189<'S4-PartialHarvest'!$C$9,('Growth-Model-4'!G188*EXP($AA$7)),0))+IF(A189='S4-PartialHarvest'!$C$7,'Growth-Model-4'!$AA$6,0)","v":0},{"$f":"IF(A189<='S4-PartialHarvest'!$C$9,$AD$6*EXP($AD$7*('S4-PartialHarvest'!C$9-'Growth-Model-4'!A189)),0)","v":0},258.11742751166497,6.3732698151028389E-2,0,34.187862812341081,0,{"$f":"M189/'S4-PartialHarvest'!$C$19","v":0},{"$error":"#N/A"},{"$error":"#N/A"},{"$f":"_xlfn.XLOOKUP(B189,FeedTables!$C$17:$T$17,FeedTables!$C$31:$T$31,,-1)","v":{"$error":"#N/A"}},{"$f":"_xlfn.XLOOKUP(Q189,FeedPrice[Feed],FeedPrice[Price per kg],\"Unknown\",0)*O189","v":{"$error":"#N/A"}},{"$error":"#N/A"},{"$f":"_xlfn.XLOOKUP(O189,LabourFromFeed[Feed Quantity (kg)],LabourFromFeed[No. Labour],\"Out of range\",-1)","v":{"$error":"#N/A"}},{"$f":"T189*OperatingCosts!$C$9","v":{"$error":"#N/A"}},{"$error":"#N/A"}]
[188,{"$f":"IF(A190<='S4-PartialHarvest'!$C$9, B189*EXP((LN((E189/100)+1))*1),)","v":0},{"$f":"_xlfn.XLOOKUP($B190,FeedTables!$C$42:$T$42,FeedTables!$C$44:$T$44,,-1)","v":{"$error":"#N/A"}},{"$f":"_xlfn.XLOOKUP($B190,FeedTables!$C$42:$T$42,FeedTables!$C$45:$T$45,,-1)","v":{"$error":"#N/A"}},{"$f":"_xlfn.XLOOKUP($B190,FeedTables!$C$42:$T$42,FeedTables!$C$46:$T$46,,-1)*_xlfn.XLOOKUP(N189,DensityMultiplier[Biomass kg/m3],DensityMultiplier[Multiplier],,-1)","v":{"$error":"#N/A"}},{"$f":"IF(A190>'S4-PartialHarvest'!$C$9,0,IF(A190='S4-PartialHarvest'!$C$7,(F189-G189-H189)*(1-'S4-PartialHarvest'!$C$8),(F189-G189-H189)))","v":0},{"$f":"IF(A190<='S4-PartialHarvest'!$C$7,('Growth-Model-4'!G189*EXP($Z$7)),IF(A190<'S4-PartialHarvest'!$C$9,('Growth-Model-4'!G189*EXP($AA$7)),0))+IF(A190='S4-PartialHarvest'!$C$7,'Growth-Model-4'!$AA$6,0)","v":0},{"$f":"IF(A190<='S4-PartialHarvest'!$C$9,$AD$6*EXP($AD$7*('S4-PartialHarvest'!C$9-'Growth-Model-4'!A190)),0)","v":0},258.11742751166497,6.3732698151028389E-2,0,34.187862812341081,0,{"$f":"M190/'S4-PartialHarvest'!$C$19","v":0},{"$error":"#N/A"},{"$error":"#N/A"},{"$f":"_xlfn.XLOOKUP(B190,FeedTables!$C$17:$T$17,FeedTables!$C$31:$T$31,,-1)","v":{"$error":"#N/A"}},{"$f":"_xlfn.XLOOKUP(Q190,FeedPrice[Feed],FeedPrice[Price per kg],\"Unknown\",0)*O190","v":{"$error":"#N/A"}},{"$error":"#N/A"},{"$f":"_xlfn.XLOOKUP(O190,LabourFromFeed[Feed Quantity (kg)],LabourFromFeed[No. Labour],\"Out of range\",-1)","v":{"$error":"#N/A"}},{"$f":"T190*OperatingCosts!$C$9","v":{"$error":"#N/A"}},{"$error":"#N/A"}]
[189,{"$f":"IF(A191<='S4-PartialHarvest'!$C$9, B190*EXP((LN((E190/100)+1))*1),)","v":0},{"$f":"_xlfn.XLOOKUP($B191,FeedTables!$C$42:$T$42,FeedTables!$C$44:$T$44,,-1)","v":{"$error":"#N/A"}},{"$f":"_xlfn.XLOOKUP($B191,FeedTables!$C$42:$T$42,FeedTables!$C$45:$T$45,,-1)","v":{"$error":"#N/A"}},{"$f":"_xlfn.XLOOKUP($B191,FeedTables!$C$42:$T$42,FeedTables!$C$46:$T$46,,-1)*_xlfn.XLOOKUP(N190,DensityMultiplier[Biomass kg/m3],DensityMultiplier[Multiplier],,-1)","v":{"$error":"#N/A"}},{"$f":"IF(A191>'S4-PartialHarvest'!$C$9,0,IF(A191='S4-PartialHarvest'!$C$7,(F190-G190-H190)*(1-'S4-PartialHarvest'!$C$8),(F190-G190-H190)))","v":0},{"$f":"IF(A191<='S4-PartialHarvest'!$C$7,('Growth-Model-4'!G190*EXP($Z$7)),IF(A191<'S4-PartialHarvest'!$C$9,('Growth-Model-4'!G190*EXP($AA$7)),0))+IF(A191='S4-PartialHarvest'!$C$7,'Growth-Model-4'!$AA$6,0)","v":0},{"$f":"IF(A191<='S4-PartialHarvest'!$C$9,$AD$6*EXP($AD$7*('S4-PartialHarvest'!C$9-'Growth-Model-4'!A191)),0)","v":0},258.11742751166497,6.3732698151028389E-2,0,34.187862812341081,0,{"$f":"M191/'S4-PartialHarvest'!$C$19","v":0},{"$error":"#N/A"},{"$error":"#N/A"},{"$f":"_xlfn.XLOOKUP(B191,FeedTables!$C$17:$T$17,FeedTables!$C$31:$T$31,,-1)","v":{"$error":"#N/A"}},{"$f":"_xlfn.XLOOKUP(Q191,FeedPrice[Feed],FeedPrice[Price per kg],\"Unknown\",0)*O191","v":{"$error":"#N/A"}},{"$error":"#N/A"},{"$f":"_xlfn.XLOOKUP(O191,LabourFromFeed[Feed Quantity (kg)],LabourFromFeed[No. Labour],\"Out of range\",-1)","v":{"$error":"#N/A"}},{"$f":"T191*OperatingCosts!$C$9","v":{"$error":"#N/A"}},{"$error":"#N/A"}]
[190,{"$f":"IF(A192<='S4-PartialHarvest'!$C$9, B191*EXP((LN((E191/100)+1))*1),)","v":0},{"$f":"_xlfn.XLOOKUP($B192,FeedTables!$C$42:$T$42,FeedTables!$C$44:$T$44,,-1)","v":{"$error":"#N/A"}},{"$f":"_xlfn.XLOOKUP($B192,FeedTables!$C$42:$T$42,FeedTables!$C$45:$T$45,,-1)","v":{"$error":"#N/A"}},{"$f":"_xlfn.XLOOKUP($B192,FeedTables!$C$42:$T$42,FeedTables!$C$46:$T$46,,-1)*_xlfn.XLOOKUP(N191,DensityMultiplier[Biomass kg/m3],DensityMultiplier[Multiplier],,-1)","v":{"$error":"#N/A"}},{"$f":"IF(A192>'S4-PartialHarvest'!$C$9,0,IF(A192='S4-PartialHarvest'!$C$7,(F191-G191-H191)*(1-'S4-PartialHarvest'!$C$8),(F191-G191-H191)))","v":0},{"$f":"IF(A192<='S4-PartialHarvest'!$C$7,('Growth-Model-4'!G191*EXP($Z$7)),IF(A192<'S4-PartialHarvest'!$C$9,('Growth-Model-4'!G191*EXP($AA$7)),0))+IF(A192='S4-PartialHarvest'!$C$7,'Growth-Model-4'!$AA$6,0)","v":0},{"$f":"IF(A192<='S4-PartialHarvest'!$C$9,$AD$6*EXP($AD$7*('S4-PartialHarvest'!C$9-'Growth-Model-4'!A192)),0)","v":0},258.11742751166497,6.3732698151028389E-2,0,34.187862812341081,0,{"$f":"M192/'S4-PartialHarvest'!$C$19","v":0},{"$error":"#N/A"},{"$error":"#N/A"},{"$f":"_xlfn.XLOOKUP(B192,FeedTables!$C$17:$T$17,FeedTables!$C$31:$T$31,,-1)","v":{"$error":"#N/A"}},{"$f":"_xlfn.XLOOKUP(Q192,FeedPrice[Feed],FeedPrice[Price per kg],\"Unknown\",0)*O192","v":{"$error":"#N/A"}},{"$error":"#N/A"},{"$f":"_xlfn.XLOOKUP(O192,LabourFromFeed[Feed Quantity (kg)],LabourFromFeed[No. Labour],\"Out of range\",-1)","v":{"$error":"#N/A"}},{"$f":"T192*OperatingCosts!$C$9","v":{"$error":"#N/A"}},{"$error":"#N/A"}]
[191,{"$f":"IF(A193<='S4-PartialHarvest'!$C$9, B192*EXP((LN((E192/100)+1))*1),)","v":0},{"$f":"_xlfn.XLOOKUP($B193,FeedTables!$C$42:$T$42,FeedTables!$C$44:$T$44,,-1)","v":{"$error":"#N/A"}},{"$f":"_xlfn.XLOOKUP($B193,FeedTables!$C$42:$T$42,FeedTables!$C$45:$T$45,,-1)","v":{"$error":"#N/A"}},{"$f":"_xlfn.XLOOKUP($B193,FeedTables!$C$42:$T$42,FeedTables!$C$46:$T$46,,-1)*_xlfn.XLOOKUP(N192,DensityMultiplier[Biomass kg/m3],DensityMultiplier[Multiplier],,-1)","v":{"$error":"#N/A"}},{"$f":"IF(A193>'S4-PartialHarvest'!$C$9,0,IF(A193='S4-PartialHarvest'!$C$7,(F192-G192-H192)*(1-'S4-PartialHarvest'!$C$8),(F192-G192-H192)))","v":0},{"$f":"IF(A193<='S4-PartialHarvest'!$C$7,('Growth-Model-4'!G192*EXP($Z$7)),IF(A193<'S4-PartialHarvest'!$C$9,('Growth-Model-4'!G192*EXP($AA$7)),0))+IF(A193='S4-PartialHarvest'!$C$7,'Growth-Model-4'!$AA$6,0)","v":0},{"$f":"IF(A193<='S4-PartialHarvest'!$C$9,$AD$6*EXP($AD$7*('S4-PartialHarvest'!C$9-'Growth-Model-4'!A193)),0)","v":0},258.11742751166497,6.3732698151028389E-2,0,34.187862812341081,0,{"$f":"M193/'S4-PartialHarvest'!$C$19","v":0},{"$error":"#N/A"},{"$error":"#N/A"},{"$f":"_xlfn.XLOOKUP(B193,FeedTables!$C$17:$T$17,FeedTables!$C$31:$T$31,,-1)","v":{"$error":"#N/A"}},{"$f":"_xlfn.XLOOKUP(Q193,FeedPrice[Feed],FeedPrice[Price per kg],\"Unknown\",0)*O193","v":{"$error":"#N/A"}},{"$error":"#N/A"},{"$f":"_xlfn.XLOOKUP(O193,LabourFromFeed[Feed Quantity (kg)],LabourFromFeed[No. Labour],\"Out of range\",-1)","v":{"$error":"#N/A"}},{"$f":"T193*OperatingCosts!$C$9","v":{"$error":"#N/A"}},{"$error":"#N/A"}]
[192,{"$f":"IF(A194<='S4-PartialHarvest'!$C$9, B193*EXP((LN((E193/100)+1))*1),)","v":0},{"$f":"_xlfn.XLOOKUP($B194,FeedTables!$C$42:$T$42,FeedTables!$C$44:$T$44,,-1)","v":{"$error":"#N/A"}},{"$f":"_xlfn.XLOOKUP($B194,FeedTables!$C$42:$T$42,FeedTables!$C$45:$T$45,,-1)","v":{"$error":"#N/A"}},{"$f":"_xlfn.XLOOKUP($B194,FeedTables!$C$42:$T$42,FeedTables!$C$46:$T$46,,-1)*_xlfn.XLOOKUP(N193,DensityMultiplier[Biomass kg/m3],DensityMultiplier[Multiplier],,-1)","v":{"$error":"#N/A"}},{"$f":"IF(A194>'S4-PartialHarvest'!$C$9,0,IF(A194='S4-PartialHarvest'!$C$7,(F193-G193-H193)*(1-'S4-PartialHarvest'!$C$8),(F193-G193-H193)))","v":0},{"$f":"IF(A194<='S4-PartialHarvest'!$C$7,('Growth-Model-4'!G193*EXP($Z$7)),IF(A194<'S4-PartialHarvest'!$C$9,('Growth-Model-4'!G193*EXP($AA$7)),0))+IF(A194='S4-PartialHarvest'!$C$7,'Growth-Model-4'!$AA$6,0)","v":0},{"$f":"IF(A194<='S4-PartialHarvest'!$C$9,$AD$6*EXP($AD$7*('S4-PartialHarvest'!C$9-'Growth-Model-4'!A194)),0)","v":0},258.11742751166497,6.3732698151028389E-2,0,34.187862812341081,0,{"$f":"M194/'S4-PartialHarvest'!$C$19","v":0},{"$error":"#N/A"},{"$error":"#N/A"},{"$f":"_xlfn.XLOOKUP(B194,FeedTables!$C$17:$T$17,FeedTables!$C$31:$T$31,,-1)","v":{"$error":"#N/A"}},{"$f":"_xlfn.XLOOKUP(Q194,FeedPrice[Feed],FeedPrice[Price per kg],\"Unknown\",0)*O194","v":{"$error":"#N/A"}},{"$error":"#N/A"},{"$f":"_xlfn.XLOOKUP(O194,LabourFromFeed[Feed Quantity (kg)],LabourFromFeed[No. Labour],\"Out of range\",-1)","v":{"$error":"#N/A"}},{"$f":"T194*OperatingCosts!$C$9","v":{"$error":"#N/A"}},{"$error":"#N/A"}]
[193,{"$f":"IF(A195<='S4-PartialHarvest'!$C$9, B194*EXP((LN((E194/100)+1))*1),)","v":0},{"$f":"_xlfn.XLOOKUP($B195,FeedTables!$C$42:$T$42,FeedTables!$C$44:$T$44,,-1)","v":{"$error":"#N/A"}},{"$f":"_xlfn.XLOOKUP($B195,FeedTables!$C$42:$T$42,FeedTables!$C$45:$T$45,,-1)","v":{"$error":"#N/A"}},{"$f":"_xlfn.XLOOKUP($B195,FeedTables!$C$42:$T$42,FeedTables!$C$46:$T$46,,-1)*_xlfn.XLOOKUP(N194,DensityMultiplier[Biomass kg/m3],DensityMultiplier[Multiplier],,-1)","v":{"$error":"#N/A"}},{"$f":"IF(A195>'S4-PartialHarvest'!$C$9,0,IF(A195='S4-PartialHarvest'!$C$7,(F194-G194-H194)*(1-'S4-PartialHarvest'!$C$8),(F194-G194-H194)))","v":0},{"$f":"IF(A195<='S4-PartialHarvest'!$C$7,('Growth-Model-4'!G194*EXP($Z$7)),IF(A195<'S4-PartialHarvest'!$C$9,('Growth-Model-4'!G194*EXP($AA$7)),0))+IF(A195='S4-PartialHarvest'!$C$7,'Growth-Model-4'!$AA$6,0)","v":0},{"$f":"IF(A195<='S4-PartialHarvest'!$C$9,$AD$6*EXP($AD$7*('S4-PartialHarvest'!C$9-'Growth-Model-4'!A195)),0)","v":0},258.11742751166497,{"$f":"I195/$F$2","v":6.3732698151028389E-2},{"$f":"(G195+H195)*B195","v":0},34.187862812341081,{"$f":"(B195*F195)/1000","v":0},{"$f":"M195/'S4-PartialHarvest'!$C$19","v":0},{"$f":"M195*(C195/100)","v":{"$error":"#N/A"}},{"$error":"#N/A"},{"$f":"_xlfn.XLOOKUP(B195,FeedTables!$C$17:$T$17,FeedTables!$C$31:$T$31,,-1)","v":{"$error":"#N/A"}},{"$f":"_xlfn.XLOOKUP(Q195,FeedPrice[Feed],FeedPrice[Price per kg],\"Unknown\",0)*O195","v":{"$error":"#N/A"}},{"$error":"#N/A"},{"$f":"_xlfn.XLOOKUP(O195,LabourFromFeed[Feed Quantity (kg)],LabourFromFeed[No. Labour],\"Out of range\",-1)","v":{"$error":"#N/A"}},{"$f":"T195*OperatingCosts!$C$9","v":{"$error":"#N/A"}},{"$error":"#N/A"}]
[194,{"$f":"IF(A196<='S4-PartialHarvest'!$C$9, B195*EXP((LN((E195/100)+1))*1),)","v":0},{"$f":"_xlfn.XLOOKUP($B196,FeedTables!$C$42:$T$42,FeedTables!$C$44:$T$44,,-1)","v":{"$error":"#N/A"}},{"$f":"_xlfn.XLOOKUP($B196,FeedTables!$C$42:$T$42,FeedTables!$C$45:$T$45,,-1)","v":{"$error":"#N/A"}},{"$f":"_xlfn.XLOOKUP($B196,FeedTables!$C$42:$T$42,FeedTables!$C$46:$T$46,,-1)*_xlfn.XLOOKUP(N195,DensityMultiplier[Biomass kg/m3],DensityMultiplier[Multiplier],,-1)","v":{"$error":"#N/A"}},{"$f":"IF(A196>'S4-PartialHarvest'!$C$9,0,IF(A196='S4-PartialHarvest'!$C$7,(F195-G195-H195)*(1-'S4-PartialHarvest'!$C$8),(F195-G195-H195)))","v":0},{"$f":"IF(A196<='S4-PartialHarvest'!$C$7,('Growth-Model-4'!G195*EXP($Z$7)),IF(A196<'S4-PartialHarvest'!$C$9,('Growth-Model-4'!G195*EXP($AA$7)),0))+IF(A196='S4-PartialHarvest'!$C$7,'Growth-Model-4'!$AA$6,0)","v":0},{"$f":"IF(A196<='S4-PartialHarvest'!$C$9,$AD$6*EXP($AD$7*('S4-PartialHarvest'!C$9-'Growth-Model-4'!A196)),0)","v":0},{"$f":"I195+G196+H196","v":258.11742751166497},6.3732698151028389E-2,0,{"$f":"(K196/1000)+L195","v":34.187862812341081},0,{"$f":"M196/'S4-PartialHarvest'!$C$19","v":0},{"$error":"#N/A"},{"$f":"O196+P195","v":{"$error":"#N/A"}},{"$f":"_xlfn.XLOOKUP(B196,FeedTables!$C$17:$T$17,FeedTables!$C$31:$T$31,,-1)","v":{"$error":"#N/A"}},{"$f":"_xlfn.XLOOKUP(Q196,FeedPrice[Feed],FeedPrice[Price per kg],\"Unknown\",0)*O196","v":{"$error":"#N/A"}},{"$f":"R196+S195","v":{"$error":"#N/A"}},{"$f":"_xlfn.XLOOKUP(O196,LabourFromFeed[Feed Quantity (kg)],LabourFromFeed[No. Labour],\"Out of range\",-1)","v":{"$error":"#N/A"}},{"$f":"T196*OperatingCosts!$C$9","v":{"$error":"#N/A"}},{"$f":"U196+V195","v":{"$error":"#N/A"}}]
[195,{"$f":"IF(A197<='S4-PartialHarvest'!$C$9, B196*EXP((LN((E196/100)+1))*1),)","v":0},{"$f":"_xlfn.XLOOKUP($B197,FeedTables!$C$42:$T$42,FeedTables!$C$44:$T$44,,-1)","v":{"$error":"#N/A"}},{"$f":"_xlfn.XLOOKUP($B197,FeedTables!$C$42:$T$42,FeedTables!$C$45:$T$45,,-1)","v":{"$error":"#N/A"}},{"$f":"_xlfn.XLOOKUP($B197,FeedTables!$C$42:$T$42,FeedTables!$C$46:$T$46,,-1)*_xlfn.XLOOKUP(N196,DensityMultiplier[Biomass kg/m3],DensityMultiplier[Multiplier],,-1)","v":{"$error":"#N/A"}},{"$f":"IF(A197>'S4-PartialHarvest'!$C$9,0,IF(A197='S4-PartialHarvest'!$C$7,(F196-G196-H196)*(1-'S4-PartialHarvest'!$C$8),(F196-G196-H196)))","v":0},{"$f":"IF(A197<='S4-PartialHarvest'!$C$7,('Growth-Model-4'!G196*EXP($Z$7)),IF(A197<'S4-PartialHarvest'!$C$9,('Growth-Model-4'!G196*EXP($AA$7)),0))+IF(A197='S4-PartialHarvest'!$C$7,'Growth-Model-4'!$AA$6,0)","v":0},{"$f":"IF(A197<='S4-PartialHarvest'!$C$9,$AD$6*EXP($AD$7*('S4-PartialHarvest'!C$9-'Growth-Model-4'!A197)),0)","v":0},258.11742751166497,6.3732698151028389E-2,0,34.187862812341081,0,{"$f":"M197/'S4-PartialHarvest'!$C$19","v":0},{"$error":"#N/A"},{"$error":"#N/A"},{"$f":"_xlfn.XLOOKUP(B197,FeedTables!$C$17:$T$17,FeedTables!$C$31:$T$31,,-1)","v":{"$error":"#N/A"}},{"$f":"_xlfn.XLOOKUP(Q197,FeedPrice[Feed],FeedPrice[Price per kg],\"Unknown\",0)*O197","v":{"$error":"#N/A"}},{"$error":"#N/A"},{"$f":"_xlfn.XLOOKUP(O197,LabourFromFeed[Feed Quantity (kg)],LabourFromFeed[No. Labour],\"Out of range\",-1)","v":{"$error":"#N/A"}},{"$f":"T197*OperatingCosts!$C$9","v":{"$error":"#N/A"}},{"$error":"#N/A"}]
[196,{"$f":"IF(A198<='S4-PartialHarvest'!$C$9, B197*EXP((LN((E197/100)+1))*1),)","v":0},{"$f":"_xlfn.XLOOKUP($B198,FeedTables!$C$42:$T$42,FeedTables!$C$44:$T$44,,-1)","v":{"$error":"#N/A"}},{"$f":"_xlfn.XLOOKUP($B198,FeedTables!$C$42:$T$42,FeedTables!$C$45:$T$45,,-1)","v":{"$error":"#N/A"}},{"$f":"_xlfn.XLOOKUP($B198,FeedTables!$C$42:$T$42,FeedTables!$C$46:$T$46,,-1)*_xlfn.XLOOKUP(N197,DensityMultiplier[Biomass kg/m3],DensityMultiplier[Multiplier],,-1)","v":{"$error":"#N/A"}},{"$f":"IF(A198>'S4-PartialHarvest'!$C$9,0,IF(A198='S4-PartialHarvest'!$C$7,(F197-G197-H197)*(1-'S4-PartialHarvest'!$C$8),(F197-G197-H197)))","v":0},{"$f":"IF(A198<='S4-PartialHarvest'!$C$7,('Growth-Model-4'!G197*EXP($Z$7)),IF(A198<'S4-PartialHarvest'!$C$9,('Growth-Model-4'!G197*EXP($AA$7)),0))+IF(A198='S4-PartialHarvest'!$C$7,'Growth-Model-4'!$AA$6,0)","v":0},{"$f":"IF(A198<='S4-PartialHarvest'!$C$9,$AD$6*EXP($AD$7*('S4-PartialHarvest'!C$9-'Growth-Model-4'!A198)),0)","v":0},258.11742751166497,6.3732698151028389E-2,0,34.187862812341081,0,{"$f":"M198/'S4-PartialHarvest'!$C$19","v":0},{"$error":"#N/A"},{"$error":"#N/A"},{"$f":"_xlfn.XLOOKUP(B198,FeedTables!$C$17:$T$17,FeedTables!$C$31:$T$31,,-1)","v":{"$error":"#N/A"}},{"$f":"_xlfn.XLOOKUP(Q198,FeedPrice[Feed],FeedPrice[Price per kg],\"Unknown\",0)*O198","v":{"$error":"#N/A"}},{"$error":"#N/A"},{"$f":"_xlfn.XLOOKUP(O198,LabourFromFeed[Feed Quantity (kg)],LabourFromFeed[No. Labour],\"Out of range\",-1)","v":{"$error":"#N/A"}},{"$f":"T198*OperatingCosts!$C$9","v":{"$error":"#N/A"}},{"$error":"#N/A"}]
[197,{"$f":"IF(A199<='S4-PartialHarvest'!$C$9, B198*EXP((LN((E198/100)+1))*1),)","v":0},{"$f":"_xlfn.XLOOKUP($B199,FeedTables!$C$42:$T$42,FeedTables!$C$44:$T$44,,-1)","v":{"$error":"#N/A"}},{"$f":"_xlfn.XLOOKUP($B199,FeedTables!$C$42:$T$42,FeedTables!$C$45:$T$45,,-1)","v":{"$error":"#N/A"}},{"$f":"_xlfn.XLOOKUP($B199,FeedTables!$C$42:$T$42,FeedTables!$C$46:$T$46,,-1)*_xlfn.XLOOKUP(N198,DensityMultiplier[Biomass kg/m3],DensityMultiplier[Multiplier],,-1)","v":{"$error":"#N/A"}},{"$f":"IF(A199>'S4-PartialHarvest'!$C$9,0,IF(A199='S4-PartialHarvest'!$C$7,(F198-G198-H198)*(1-'S4-PartialHarvest'!$C$8),(F198-G198-H198)))","v":0},{"$f":"IF(A199<='S4-PartialHarvest'!$C$7,('Growth-Model-4'!G198*EXP($Z$7)),IF(A199<'S4-PartialHarvest'!$C$9,('Growth-Model-4'!G198*EXP($AA$7)),0))+IF(A199='S4-PartialHarvest'!$C$7,'Growth-Model-4'!$AA$6,0)","v":0},{"$f":"IF(A199<='S4-PartialHarvest'!$C$9,$AD$6*EXP($AD$7*('S4-PartialHarvest'!C$9-'Growth-Model-4'!A199)),0)","v":0},258.11742751166497,6.3732698151028389E-2,0,34.187862812341081,0,{"$f":"M199/'S4-PartialHarvest'!$C$19","v":0},{"$error":"#N/A"},{"$error":"#N/A"},{"$f":"_xlfn.XLOOKUP(B199,FeedTables!$C$17:$T$17,FeedTables!$C$31:$T$31,,-1)","v":{"$error":"#N/A"}},{"$f":"_xlfn.XLOOKUP(Q199,FeedPrice[Feed],FeedPrice[Price per kg],\"Unknown\",0)*O199","v":{"$error":"#N/A"}},{"$error":"#N/A"},{"$f":"_xlfn.XLOOKUP(O199,LabourFromFeed[Feed Quantity (kg)],LabourFromFeed[No. Labour],\"Out of range\",-1)","v":{"$error":"#N/A"}},{"$f":"T199*OperatingCosts!$C$9","v":{"$error":"#N/A"}},{"$error":"#N/A"}]
[198,{"$f":"IF(A200<='S4-PartialHarvest'!$C$9, B199*EXP((LN((E199/100)+1))*1),)","v":0},{"$f":"_xlfn.XLOOKUP($B200,FeedTables!$C$42:$T$42,FeedTables!$C$44:$T$44,,-1)","v":{"$error":"#N/A"}},{"$f":"_xlfn.XLOOKUP($B200,FeedTables!$C$42:$T$42,FeedTables!$C$45:$T$45,,-1)","v":{"$error":"#N/A"}},{"$f":"_xlfn.XLOOKUP($B200,FeedTables!$C$42:$T$42,FeedTables!$C$46:$T$46,,-1)*_xlfn.XLOOKUP(N199,DensityMultiplier[Biomass kg/m3],DensityMultiplier[Multiplier],,-1)","v":{"$error":"#N/A"}},{"$f":"IF(A200>'S4-PartialHarvest'!$C$9,0,IF(A200='S4-PartialHarvest'!$C$7,(F199-G199-H199)*(1-'S4-PartialHarvest'!$C$8),(F199-G199-H199)))","v":0},{"$f":"IF(A200<='S4-PartialHarvest'!$C$7,('Growth-Model-4'!G199*EXP($Z$7)),IF(A200<'S4-PartialHarvest'!$C$9,('Growth-Model-4'!G199*EXP($AA$7)),0))+IF(A200='S4-PartialHarvest'!$C$7,'Growth-Model-4'!$AA$6,0)","v":0},{"$f":"IF(A200<='S4-PartialHarvest'!$C$9,$AD$6*EXP($AD$7*('S4-PartialHarvest'!C$9-'Growth-Model-4'!A200)),0)","v":0},258.11742751166497,6.3732698151028389E-2,0,34.187862812341081,0,{"$f":"M200/'S4-PartialHarvest'!$C$19","v":0},{"$error":"#N/A"},{"$error":"#N/A"},{"$f":"_xlfn.XLOOKUP(B200,FeedTables!$C$17:$T$17,FeedTables!$C$31:$T$31,,-1)","v":{"$error":"#N/A"}},{"$f":"_xlfn.XLOOKUP(Q200,FeedPrice[Feed],FeedPrice[Price per kg],\"Unknown\",0)*O200","v":{"$error":"#N/A"}},{"$error":"#N/A"},{"$f":"_xlfn.XLOOKUP(O200,LabourFromFeed[Feed Quantity (kg)],LabourFromFeed[No. Labour],\"Out of range\",-1)","v":{"$error":"#N/A"}},{"$f":"T200*OperatingCosts!$C$9","v":{"$error":"#N/A"}},{"$error":"#N/A"}]
[199,{"$f":"IF(A201<='S4-PartialHarvest'!$C$9, B200*EXP((LN((E200/100)+1))*1),)","v":0},{"$f":"_xlfn.XLOOKUP($B201,FeedTables!$C$42:$T$42,FeedTables!$C$44:$T$44,,-1)","v":{"$error":"#N/A"}},{"$f":"_xlfn.XLOOKUP($B201,FeedTables!$C$42:$T$42,FeedTables!$C$45:$T$45,,-1)","v":{"$error":"#N/A"}},{"$f":"_xlfn.XLOOKUP($B201,FeedTables!$C$42:$T$42,FeedTables!$C$46:$T$46,,-1)*_xlfn.XLOOKUP(N200,DensityMultiplier[Biomass kg/m3],DensityMultiplier[Multiplier],,-1)","v":{"$error":"#N/A"}},{"$f":"IF(A201>'S4-PartialHarvest'!$C$9,0,IF(A201='S4-PartialHarvest'!$C$7,(F200-G200-H200)*(1-'S4-PartialHarvest'!$C$8),(F200-G200-H200)))","v":0},{"$f":"IF(A201<='S4-PartialHarvest'!$C$7,('Growth-Model-4'!G200*EXP($Z$7)),IF(A201<'S4-PartialHarvest'!$C$9,('Growth-Model-4'!G200*EXP($AA$7)),0))+IF(A201='S4-PartialHarvest'!$C$7,'Growth-Model-4'!$AA$6,0)","v":0},{"$f":"IF(A201<='S4-PartialHarvest'!$C$9,$AD$6*EXP($AD$7*('S4-PartialHarvest'!C$9-'Growth-Model-4'!A201)),0)","v":0},258.11742751166497,6.3732698151028389E-2,0,34.187862812341081,0,{"$f":"M201/'S4-PartialHarvest'!$C$19","v":0},{"$error":"#N/A"},{"$error":"#N/A"},{"$f":"_xlfn.XLOOKUP(B201,FeedTables!$C$17:$T$17,FeedTables!$C$31:$T$31,,-1)","v":{"$error":"#N/A"}},{"$f":"_xlfn.XLOOKUP(Q201,FeedPrice[Feed],FeedPrice[Price per kg],\"Unknown\",0)*O201","v":{"$error":"#N/A"}},{"$error":"#N/A"},{"$f":"_xlfn.XLOOKUP(O201,LabourFromFeed[Feed Quantity (kg)],LabourFromFeed[No. Labour],\"Out of range\",-1)","v":{"$error":"#N/A"}},{"$f":"T201*OperatingCosts!$C$9","v":{"$error":"#N/A"}},{"$error":"#N/A"}]
[200,{"$f":"IF(A202<='S4-PartialHarvest'!$C$9, B201*EXP((LN((E201/100)+1))*1),)","v":0},{"$f":"_xlfn.XLOOKUP($B202,FeedTables!$C$42:$T$42,FeedTables!$C$44:$T$44,,-1)","v":{"$error":"#N/A"}},{"$f":"_xlfn.XLOOKUP($B202,FeedTables!$C$42:$T$42,FeedTables!$C$45:$T$45,,-1)","v":{"$error":"#N/A"}},{"$f":"_xlfn.XLOOKUP($B202,FeedTables!$C$42:$T$42,FeedTables!$C$46:$T$46,,-1)*_xlfn.XLOOKUP(N201,DensityMultiplier[Biomass kg/m3],DensityMultiplier[Multiplier],,-1)","v":{"$error":"#N/A"}},{"$f":"IF(A202>'S4-PartialHarvest'!$C$9,0,IF(A202='S4-PartialHarvest'!$C$7,(F201-G201-H201)*(1-'S4-PartialHarvest'!$C$8),(F201-G201-H201)))","v":0},{"$f":"IF(A202<='S4-PartialHarvest'!$C$7,('Growth-Model-4'!G201*EXP($Z$7)),IF(A202<'S4-PartialHarvest'!$C$9,('Growth-Model-4'!G201*EXP($AA$7)),0))+IF(A202='S4-PartialHarvest'!$C$7,'Growth-Model-4'!$AA$6,0)","v":0},{"$f":"IF(A202<='S4-PartialHarvest'!$C$9,$AD$6*EXP($AD$7*('S4-PartialHarvest'!C$9-'Growth-Model-4'!A202)),0)","v":0},258.11742751166497,6.3732698151028389E-2,0,34.187862812341081,0,{"$f":"M202/'S4-PartialHarvest'!$C$19","v":0},{"$error":"#N/A"},{"$error":"#N/A"},{"$f":"_xlfn.XLOOKUP(B202,FeedTables!$C$17:$T$17,FeedTables!$C$31:$T$31,,-1)","v":{"$error":"#N/A"}},{"$f":"_xlfn.XLOOKUP(Q202,FeedPrice[Feed],FeedPrice[Price per kg],\"Unknown\",0)*O202","v":{"$error":"#N/A"}},{"$error":"#N/A"},{"$f":"_xlfn.XLOOKUP(O202,LabourFromFeed[Feed Quantity (kg)],LabourFromFeed[No. Labour],\"Out of range\",-1)","v":{"$error":"#N/A"}},{"$f":"T202*OperatingCosts!$C$9","v":{"$error":"#N/A"}},{"$error":"#N/A"}]
[201,{"$f":"IF(A203<='S4-PartialHarvest'!$C$9, B202*EXP((LN((E202/100)+1))*1),)","v":0},{"$f":"_xlfn.XLOOKUP($B203,FeedTables!$C$42:$T$42,FeedTables!$C$44:$T$44,,-1)","v":{"$error":"#N/A"}},{"$f":"_xlfn.XLOOKUP($B203,FeedTables!$C$42:$T$42,FeedTables!$C$45:$T$45,,-1)","v":{"$error":"#N/A"}},{"$f":"_xlfn.XLOOKUP($B203,FeedTables!$C$42:$T$42,FeedTables!$C$46:$T$46,,-1)*_xlfn.XLOOKUP(N202,DensityMultiplier[Biomass kg/m3],DensityMultiplier[Multiplier],,-1)","v":{"$error":"#N/A"}},{"$f":"IF(A203>'S4-PartialHarvest'!$C$9,0,IF(A203='S4-PartialHarvest'!$C$7,(F202-G202-H202)*(1-'S4-PartialHarvest'!$C$8),(F202-G202-H202)))","v":0},{"$f":"IF(A203<='S4-PartialHarvest'!$C$7,('Growth-Model-4'!G202*EXP($Z$7)),IF(A203<'S4-PartialHarvest'!$C$9,('Growth-Model-4'!G202*EXP($AA$7)),0))+IF(A203='S4-PartialHarvest'!$C$7,'Growth-Model-4'!$AA$6,0)","v":0},{"$f":"IF(A203<='S4-PartialHarvest'!$C$9,$AD$6*EXP($AD$7*('S4-PartialHarvest'!C$9-'Growth-Model-4'!A203)),0)","v":0},258.11742751166497,6.3732698151028389E-2,0,34.187862812341081,0,{"$f":"M203/'S4-PartialHarvest'!$C$19","v":0},{"$error":"#N/A"},{"$error":"#N/A"},{"$f":"_xlfn.XLOOKUP(B203,FeedTables!$C$17:$T$17,FeedTables!$C$31:$T$31,,-1)","v":{"$error":"#N/A"}},{"$f":"_xlfn.XLOOKUP(Q203,FeedPrice[Feed],FeedPrice[Price per kg],\"Unknown\",0)*O203","v":{"$error":"#N/A"}},{"$error":"#N/A"},{"$f":"_xlfn.XLOOKUP(O203,LabourFromFeed[Feed Quantity (kg)],LabourFromFeed[No. Labour],\"Out of range\",-1)","v":{"$error":"#N/A"}},{"$f":"T203*OperatingCosts!$C$9","v":{"$error":"#N/A"}},{"$error":"#N/A"}]
[202,{"$f":"IF(A204<='S4-PartialHarvest'!$C$9, B203*EXP((LN((E203/100)+1))*1),)","v":0},{"$f":"_xlfn.XLOOKUP($B204,FeedTables!$C$42:$T$42,FeedTables!$C$44:$T$44,,-1)","v":{"$error":"#N/A"}},{"$f":"_xlfn.XLOOKUP($B204,FeedTables!$C$42:$T$42,FeedTables!$C$45:$T$45,,-1)","v":{"$error":"#N/A"}},{"$f":"_xlfn.XLOOKUP($B204,FeedTables!$C$42:$T$42,FeedTables!$C$46:$T$46,,-1)*_xlfn.XLOOKUP(N203,DensityMultiplier[Biomass kg/m3],DensityMultiplier[Multiplier],,-1)","v":{"$error":"#N/A"}},{"$f":"IF(A204>'S4-PartialHarvest'!$C$9,0,IF(A204='S4-PartialHarvest'!$C$7,(F203-G203-H203)*(1-'S4-PartialHarvest'!$C$8),(F203-G203-H203)))","v":0},{"$f":"IF(A204<='S4-PartialHarvest'!$C$7,('Growth-Model-4'!G203*EXP($Z$7)),IF(A204<'S4-PartialHarvest'!$C$9,('Growth-Model-4'!G203*EXP($AA$7)),0))+IF(A204='S4-PartialHarvest'!$C$7,'Growth-Model-4'!$AA$6,0)","v":0},{"$f":"IF(A204<='S4-PartialHarvest'!$C$9,$AD$6*EXP($AD$7*('S4-PartialHarvest'!C$9-'Growth-Model-4'!A204)),0)","v":0},258.11742751166497,6.3732698151028389E-2,0,34.187862812341081,0,{"$f":"M204/'S4-PartialHarvest'!$C$19","v":0},{"$error":"#N/A"},{"$error":"#N/A"},{"$f":"_xlfn.XLOOKUP(B204,FeedTables!$C$17:$T$17,FeedTables!$C$31:$T$31,,-1)","v":{"$error":"#N/A"}},{"$f":"_xlfn.XLOOKUP(Q204,FeedPrice[Feed],FeedPrice[Price per kg],\"Unknown\",0)*O204","v":{"$error":"#N/A"}},{"$error":"#N/A"},{"$f":"_xlfn.XLOOKUP(O204,LabourFromFeed[Feed Quantity (kg)],LabourFromFeed[No. Labour],\"Out of range\",-1)","v":{"$error":"#N/A"}},{"$f":"T204*OperatingCosts!$C$9","v":{"$error":"#N/A"}},{"$error":"#N/A"}]
[203,{"$f":"IF(A205<='S4-PartialHarvest'!$C$9, B204*EXP((LN((E204/100)+1))*1),)","v":0},{"$f":"_xlfn.XLOOKUP($B205,FeedTables!$C$42:$T$42,FeedTables!$C$44:$T$44,,-1)","v":{"$error":"#N/A"}},{"$f":"_xlfn.XLOOKUP($B205,FeedTables!$C$42:$T$42,FeedTables!$C$45:$T$45,,-1)","v":{"$error":"#N/A"}},{"$f":"_xlfn.XLOOKUP($B205,FeedTables!$C$42:$T$42,FeedTables!$C$46:$T$46,,-1)*_xlfn.XLOOKUP(N204,DensityMultiplier[Biomass kg/m3],DensityMultiplier[Multiplier],,-1)","v":{"$error":"#N/A"}},{"$f":"IF(A205>'S4-PartialHarvest'!$C$9,0,IF(A205='S4-PartialHarvest'!$C$7,(F204-G204-H204)*(1-'S4-PartialHarvest'!$C$8),(F204-G204-H204)))","v":0},{"$f":"IF(A205<='S4-PartialHarvest'!$C$7,('Growth-Model-4'!G204*EXP($Z$7)),IF(A205<'S4-PartialHarvest'!$C$9,('Growth-Model-4'!G204*EXP($AA$7)),0))+IF(A205='S4-PartialHarvest'!$C$7,'Growth-Model-4'!$AA$6,0)","v":0},{"$f":"IF(A205<='S4-PartialHarvest'!$C$9,$AD$6*EXP($AD$7*('S4-PartialHarvest'!C$9-'Growth-Model-4'!A205)),0)","v":0},258.11742751166497,6.3732698151028389E-2,0,34.187862812341081,0,{"$f":"M205/'S4-PartialHarvest'!$C$19","v":0},{"$error":"#N/A"},{"$error":"#N/A"},{"$f":"_xlfn.XLOOKUP(B205,FeedTables!$C$17:$T$17,FeedTables!$C$31:$T$31,,-1)","v":{"$error":"#N/A"}},{"$f":"_xlfn.XLOOKUP(Q205,FeedPrice[Feed],FeedPrice[Price per kg],\"Unknown\",0)*O205","v":{"$error":"#N/A"}},{"$error":"#N/A"},{"$f":"_xlfn.XLOOKUP(O205,LabourFromFeed[Feed Quantity (kg)],LabourFromFeed[No. Labour],\"Out of range\",-1)","v":{"$error":"#N/A"}},{"$f":"T205*OperatingCosts!$C$9","v":{"$error":"#N/A"}},{"$error":"#N/A"}]
[204,{"$f":"IF(A206<='S4-PartialHarvest'!$C$9, B205*EXP((LN((E205/100)+1))*1),)","v":0},{"$f":"_xlfn.XLOOKUP($B206,FeedTables!$C$42:$T$42,FeedTables!$C$44:$T$44,,-1)","v":{"$error":"#N/A"}},{"$f":"_xlfn.XLOOKUP($B206,FeedTables!$C$42:$T$42,FeedTables!$C$45:$T$45,,-1)","v":{"$error":"#N/A"}},{"$f":"_xlfn.XLOOKUP($B206,FeedTables!$C$42:$T$42,FeedTables!$C$46:$T$46,,-1)*_xlfn.XLOOKUP(N205,DensityMultiplier[Biomass kg/m3],DensityMultiplier[Multiplier],,-1)","v":{"$error":"#N/A"}},{"$f":"IF(A206>'S4-PartialHarvest'!$C$9,0,IF(A206='S4-PartialHarvest'!$C$7,(F205-G205-H205)*(1-'S4-PartialHarvest'!$C$8),(F205-G205-H205)))","v":0},{"$f":"IF(A206<='S4-PartialHarvest'!$C$7,('Growth-Model-4'!G205*EXP($Z$7)),IF(A206<'S4-PartialHarvest'!$C$9,('Growth-Model-4'!G205*EXP($AA$7)),0))+IF(A206='S4-PartialHarvest'!$C$7,'Growth-Model-4'!$AA$6,0)","v":0},{"$f":"IF(A206<='S4-PartialHarvest'!$C$9,$AD$6*EXP($AD$7*('S4-PartialHarvest'!C$9-'Growth-Model-4'!A206)),0)","v":0},258.11742751166497,6.3732698151028389E-2,0,34.187862812341081,0,{"$f":"M206/'S4-PartialHarvest'!$C$19","v":0},{"$error":"#N/A"},{"$error":"#N/A"},{"$f":"_xlfn.XLOOKUP(B206,FeedTables!$C$17:$T$17,FeedTables!$C$31:$T$31,,-1)","v":{"$error":"#N/A"}},{"$f":"_xlfn.XLOOKUP(Q206,FeedPrice[Feed],FeedPrice[Price per kg],\"Unknown\",0)*O206","v":{"$error":"#N/A"}},{"$error":"#N/A"},{"$f":"_xlfn.XLOOKUP(O206,LabourFromFeed[Feed Quantity (kg)],LabourFromFeed[No. Labour],\"Out of range\",-1)","v":{"$error":"#N/A"}},{"$f":"T206*OperatingCosts!$C$9","v":{"$error":"#N/A"}},{"$error":"#N/A"}]
[205,{"$f":"IF(A207<='S4-PartialHarvest'!$C$9, B206*EXP((LN((E206/100)+1))*1),)","v":0},{"$f":"_xlfn.XLOOKUP($B207,FeedTables!$C$42:$T$42,FeedTables!$C$44:$T$44,,-1)","v":{"$error":"#N/A"}},{"$f":"_xlfn.XLOOKUP($B207,FeedTables!$C$42:$T$42,FeedTables!$C$45:$T$45,,-1)","v":{"$error":"#N/A"}},{"$f":"_xlfn.XLOOKUP($B207,FeedTables!$C$42:$T$42,FeedTables!$C$46:$T$46,,-1)*_xlfn.XLOOKUP(N206,DensityMultiplier[Biomass kg/m3],DensityMultiplier[Multiplier],,-1)","v":{"$error":"#N/A"}},{"$f":"IF(A207>'S4-PartialHarvest'!$C$9,0,IF(A207='S4-PartialHarvest'!$C$7,(F206-G206-H206)*(1-'S4-PartialHarvest'!$C$8),(F206-G206-H206)))","v":0},{"$f":"IF(A207<='S4-PartialHarvest'!$C$7,('Growth-Model-4'!G206*EXP($Z$7)),IF(A207<'S4-PartialHarvest'!$C$9,('Growth-Model-4'!G206*EXP($AA$7)),0))+IF(A207='S4-PartialHarvest'!$C$7,'Growth-Model-4'!$AA$6,0)","v":0},{"$f":"IF(A207<='S4-PartialHarvest'!$C$9,$AD$6*EXP($AD$7*('S4-PartialHarvest'!C$9-'Growth-Model-4'!A207)),0)","v":0},258.11742751166497,6.3732698151028389E-2,0,34.187862812341081,0,{"$f":"M207/'S4-PartialHarvest'!$C$19","v":0},{"$error":"#N/A"},{"$error":"#N/A"},{"$f":"_xlfn.XLOOKUP(B207,FeedTables!$C$17:$T$17,FeedTables!$C$31:$T$31,,-1)","v":{"$error":"#N/A"}},{"$f":"_xlfn.XLOOKUP(Q207,FeedPrice[Feed],FeedPrice[Price per kg],\"Unknown\",0)*O207","v":{"$error":"#N/A"}},{"$error":"#N/A"},{"$f":"_xlfn.XLOOKUP(O207,LabourFromFeed[Feed Quantity (kg)],LabourFromFeed[No. Labour],\"Out of range\",-1)","v":{"$error":"#N/A"}},{"$f":"T207*OperatingCosts!$C$9","v":{"$error":"#N/A"}},{"$error":"#N/A"}]
[206,{"$f":"IF(A208<='S4-PartialHarvest'!$C$9, B207*EXP((LN((E207/100)+1))*1),)","v":0},{"$f":"_xlfn.XLOOKUP($B208,FeedTables!$C$42:$T$42,FeedTables!$C$44:$T$44,,-1)","v":{"$error":"#N/A"}},{"$f":"_xlfn.XLOOKUP($B208,FeedTables!$C$42:$T$42,FeedTables!$C$45:$T$45,,-1)","v":{"$error":"#N/A"}},{"$f":"_xlfn.XLOOKUP($B208,FeedTables!$C$42:$T$42,FeedTables!$C$46:$T$46,,-1)*_xlfn.XLOOKUP(N207,DensityMultiplier[Biomass kg/m3],DensityMultiplier[Multiplier],,-1)","v":{"$error":"#N/A"}},{"$f":"IF(A208>'S4-PartialHarvest'!$C$9,0,IF(A208='S4-PartialHarvest'!$C$7,(F207-G207-H207)*(1-'S4-PartialHarvest'!$C$8),(F207-G207-H207)))","v":0},{"$f":"IF(A208<='S4-PartialHarvest'!$C$7,('Growth-Model-4'!G207*EXP($Z$7)),IF(A208<'S4-PartialHarvest'!$C$9,('Growth-Model-4'!G207*EXP($AA$7)),0))+IF(A208='S4-PartialHarvest'!$C$7,'Growth-Model-4'!$AA$6,0)","v":0},{"$f":"IF(A208<='S4-PartialHarvest'!$C$9,$AD$6*EXP($AD$7*('S4-PartialHarvest'!C$9-'Growth-Model-4'!A208)),0)","v":0},258.11742751166497,6.3732698151028389E-2,0,34.187862812341081,0,{"$f":"M208/'S4-PartialHarvest'!$C$19","v":0},{"$error":"#N/A"},{"$error":"#N/A"},{"$f":"_xlfn.XLOOKUP(B208,FeedTables!$C$17:$T$17,FeedTables!$C$31:$T$31,,-1)","v":{"$error":"#N/A"}},{"$f":"_xlfn.XLOOKUP(Q208,FeedPrice[Feed],FeedPrice[Price per kg],\"Unknown\",0)*O208","v":{"$error":"#N/A"}},{"$error":"#N/A"},{"$f":"_xlfn.XLOOKUP(O208,LabourFromFeed[Feed Quantity (kg)],LabourFromFeed[No. Labour],\"Out of range\",-1)","v":{"$error":"#N/A"}},{"$f":"T208*OperatingCosts!$C$9","v":{"$error":"#N/A"}},{"$error":"#N/A"}]
[207,{"$f":"IF(A209<='S4-PartialHarvest'!$C$9, B208*EXP((LN((E208/100)+1))*1),)","v":0},{"$f":"_xlfn.XLOOKUP($B209,FeedTables!$C$42:$T$42,FeedTables!$C$44:$T$44,,-1)","v":{"$error":"#N/A"}},{"$f":"_xlfn.XLOOKUP($B209,FeedTables!$C$42:$T$42,FeedTables!$C$45:$T$45,,-1)","v":{"$error":"#N/A"}},{"$f":"_xlfn.XLOOKUP($B209,FeedTables!$C$42:$T$42,FeedTables!$C$46:$T$46,,-1)*_xlfn.XLOOKUP(N208,DensityMultiplier[Biomass kg/m3],DensityMultiplier[Multiplier],,-1)","v":{"$error":"#N/A"}},{"$f":"IF(A209>'S4-PartialHarvest'!$C$9,0,IF(A209='S4-PartialHarvest'!$C$7,(F208-G208-H208)*(1-'S4-PartialHarvest'!$C$8),(F208-G208-H208)))","v":0},{"$f":"IF(A209<='S4-PartialHarvest'!$C$7,('Growth-Model-4'!G208*EXP($Z$7)),IF(A209<'S4-PartialHarvest'!$C$9,('Growth-Model-4'!G208*EXP($AA$7)),0))+IF(A209='S4-PartialHarvest'!$C$7,'Growth-Model-4'!$AA$6,0)","v":0},{"$f":"IF(A209<='S4-PartialHarvest'!$C$9,$AD$6*EXP($AD$7*('S4-PartialHarvest'!C$9-'Growth-Model-4'!A209)),0)","v":0},258.11742751166497,6.3732698151028389E-2,0,34.187862812341081,0,{"$f":"M209/'S4-PartialHarvest'!$C$19","v":0},{"$error":"#N/A"},{"$error":"#N/A"},{"$f":"_xlfn.XLOOKUP(B209,FeedTables!$C$17:$T$17,FeedTables!$C$31:$T$31,,-1)","v":{"$error":"#N/A"}},{"$f":"_xlfn.XLOOKUP(Q209,FeedPrice[Feed],FeedPrice[Price per kg],\"Unknown\",0)*O209","v":{"$error":"#N/A"}},{"$error":"#N/A"},{"$f":"_xlfn.XLOOKUP(O209,LabourFromFeed[Feed Quantity (kg)],LabourFromFeed[No. Labour],\"Out of range\",-1)","v":{"$error":"#N/A"}},{"$f":"T209*OperatingCosts!$C$9","v":{"$error":"#N/A"}},{"$error":"#N/A"}]
[208,{"$f":"IF(A210<='S4-PartialHarvest'!$C$9, B209*EXP((LN((E209/100)+1))*1),)","v":0},{"$f":"_xlfn.XLOOKUP($B210,FeedTables!$C$42:$T$42,FeedTables!$C$44:$T$44,,-1)","v":{"$error":"#N/A"}},{"$f":"_xlfn.XLOOKUP($B210,FeedTables!$C$42:$T$42,FeedTables!$C$45:$T$45,,-1)","v":{"$error":"#N/A"}},{"$f":"_xlfn.XLOOKUP($B210,FeedTables!$C$42:$T$42,FeedTables!$C$46:$T$46,,-1)*_xlfn.XLOOKUP(N209,DensityMultiplier[Biomass kg/m3],DensityMultiplier[Multiplier],,-1)","v":{"$error":"#N/A"}},{"$f":"IF(A210>'S4-PartialHarvest'!$C$9,0,IF(A210='S4-PartialHarvest'!$C$7,(F209-G209-H209)*(1-'S4-PartialHarvest'!$C$8),(F209-G209-H209)))","v":0},{"$f":"IF(A210<='S4-PartialHarvest'!$C$7,('Growth-Model-4'!G209*EXP($Z$7)),IF(A210<'S4-PartialHarvest'!$C$9,('Growth-Model-4'!G209*EXP($AA$7)),0))+IF(A210='S4-PartialHarvest'!$C$7,'Growth-Model-4'!$AA$6,0)","v":0},{"$f":"IF(A210<='S4-PartialHarvest'!$C$9,$AD$6*EXP($AD$7*('S4-PartialHarvest'!C$9-'Growth-Model-4'!A210)),0)","v":0},258.11742751166497,6.3732698151028389E-2,0,34.187862812341081,0,{"$f":"M210/'S4-PartialHarvest'!$C$19","v":0},{"$error":"#N/A"},{"$error":"#N/A"},{"$f":"_xlfn.XLOOKUP(B210,FeedTables!$C$17:$T$17,FeedTables!$C$31:$T$31,,-1)","v":{"$error":"#N/A"}},{"$f":"_xlfn.XLOOKUP(Q210,FeedPrice[Feed],FeedPrice[Price per kg],\"Unknown\",0)*O210","v":{"$error":"#N/A"}},{"$error":"#N/A"},{"$f":"_xlfn.XLOOKUP(O210,LabourFromFeed[Feed Quantity (kg)],LabourFromFeed[No. Labour],\"Out of range\",-1)","v":{"$error":"#N/A"}},{"$f":"T210*OperatingCosts!$C$9","v":{"$error":"#N/A"}},{"$error":"#N/A"}]
[209,{"$f":"IF(A211<='S4-PartialHarvest'!$C$9, B210*EXP((LN((E210/100)+1))*1),)","v":0},{"$f":"_xlfn.XLOOKUP($B211,FeedTables!$C$42:$T$42,FeedTables!$C$44:$T$44,,-1)","v":{"$error":"#N/A"}},{"$f":"_xlfn.XLOOKUP($B211,FeedTables!$C$42:$T$42,FeedTables!$C$45:$T$45,,-1)","v":{"$error":"#N/A"}},{"$f":"_xlfn.XLOOKUP($B211,FeedTables!$C$42:$T$42,FeedTables!$C$46:$T$46,,-1)*_xlfn.XLOOKUP(N210,DensityMultiplier[Biomass kg/m3],DensityMultiplier[Multiplier],,-1)","v":{"$error":"#N/A"}},{"$f":"IF(A211>'S4-PartialHarvest'!$C$9,0,IF(A211='S4-PartialHarvest'!$C$7,(F210-G210-H210)*(1-'S4-PartialHarvest'!$C$8),(F210-G210-H210)))","v":0},{"$f":"IF(A211<='S4-PartialHarvest'!$C$7,('Growth-Model-4'!G210*EXP($Z$7)),IF(A211<'S4-PartialHarvest'!$C$9,('Growth-Model-4'!G210*EXP($AA$7)),0))+IF(A211='S4-PartialHarvest'!$C$7,'Growth-Model-4'!$AA$6,0)","v":0},{"$f":"IF(A211<='S4-PartialHarvest'!$C$9,$AD$6*EXP($AD$7*('S4-PartialHarvest'!C$9-'Growth-Model-4'!A211)),0)","v":0},258.11742751166497,6.3732698151028389E-2,0,34.187862812341081,0,{"$f":"M211/'S4-PartialHarvest'!$C$19","v":0},{"$error":"#N/A"},{"$error":"#N/A"},{"$f":"_xlfn.XLOOKUP(B211,FeedTables!$C$17:$T$17,FeedTables!$C$31:$T$31,,-1)","v":{"$error":"#N/A"}},{"$f":"_xlfn.XLOOKUP(Q211,FeedPrice[Feed],FeedPrice[Price per kg],\"Unknown\",0)*O211","v":{"$error":"#N/A"}},{"$error":"#N/A"},{"$f":"_xlfn.XLOOKUP(O211,LabourFromFeed[Feed Quantity (kg)],LabourFromFeed[No. Labour],\"Out of range\",-1)","v":{"$error":"#N/A"}},{"$f":"T211*OperatingCosts!$C$9","v":{"$error":"#N/A"}},{"$error":"#N/A"}]
[210,{"$f":"IF(A212<='S4-PartialHarvest'!$C$9, B211*EXP((LN((E211/100)+1))*1),)","v":0},{"$f":"_xlfn.XLOOKUP($B212,FeedTables!$C$42:$T$42,FeedTables!$C$44:$T$44,,-1)","v":{"$error":"#N/A"}},{"$f":"_xlfn.XLOOKUP($B212,FeedTables!$C$42:$T$42,FeedTables!$C$45:$T$45,,-1)","v":{"$error":"#N/A"}},{"$f":"_xlfn.XLOOKUP($B212,FeedTables!$C$42:$T$42,FeedTables!$C$46:$T$46,,-1)*_xlfn.XLOOKUP(N211,DensityMultiplier[Biomass kg/m3],DensityMultiplier[Multiplier],,-1)","v":{"$error":"#N/A"}},{"$f":"IF(A212>'S4-PartialHarvest'!$C$9,0,IF(A212='S4-PartialHarvest'!$C$7,(F211-G211-H211)*(1-'S4-PartialHarvest'!$C$8),(F211-G211-H211)))","v":0},{"$f":"IF(A212<='S4-PartialHarvest'!$C$7,('Growth-Model-4'!G211*EXP($Z$7)),IF(A212<'S4-PartialHarvest'!$C$9,('Growth-Model-4'!G211*EXP($AA$7)),0))+IF(A212='S4-PartialHarvest'!$C$7,'Growth-Model-4'!$AA$6,0)","v":0},{"$f":"IF(A212<='S4-PartialHarvest'!$C$9,$AD$6*EXP($AD$7*('S4-PartialHarvest'!C$9-'Growth-Model-4'!A212)),0)","v":0},258.11742751166497,6.3732698151028389E-2,0,34.187862812341081,0,{"$f":"M212/'S4-PartialHarvest'!$C$19","v":0},{"$error":"#N/A"},{"$error":"#N/A"},{"$f":"_xlfn.XLOOKUP(B212,FeedTables!$C$17:$T$17,FeedTables!$C$31:$T$31,,-1)","v":{"$error":"#N/A"}},{"$f":"_xlfn.XLOOKUP(Q212,FeedPrice[Feed],FeedPrice[Price per kg],\"Unknown\",0)*O212","v":{"$error":"#N/A"}},{"$error":"#N/A"},{"$f":"_xlfn.XLOOKUP(O212,LabourFromFeed[Feed Quantity (kg)],LabourFromFeed[No. Labour],\"Out of range\",-1)","v":{"$error":"#N/A"}},{"$f":"T212*OperatingCosts!$C$9","v":{"$error":"#N/A"}},{"$error":"#N/A"}]
[211,{"$f":"IF(A213<='S4-PartialHarvest'!$C$9, B212*EXP((LN((E212/100)+1))*1),)","v":0},{"$f":"_xlfn.XLOOKUP($B213,FeedTables!$C$42:$T$42,FeedTables!$C$44:$T$44,,-1)","v":{"$error":"#N/A"}},{"$f":"_xlfn.XLOOKUP($B213,FeedTables!$C$42:$T$42,FeedTables!$C$45:$T$45,,-1)","v":{"$error":"#N/A"}},{"$f":"_xlfn.XLOOKUP($B213,FeedTables!$C$42:$T$42,FeedTables!$C$46:$T$46,,-1)*_xlfn.XLOOKUP(N212,DensityMultiplier[Biomass kg/m3],DensityMultiplier[Multiplier],,-1)","v":{"$error":"#N/A"}},{"$f":"IF(A213>'S4-PartialHarvest'!$C$9,0,IF(A213='S4-PartialHarvest'!$C$7,(F212-G212-H212)*(1-'S4-PartialHarvest'!$C$8),(F212-G212-H212)))","v":0},{"$f":"IF(A213<='S4-PartialHarvest'!$C$7,('Growth-Model-4'!G212*EXP($Z$7)),IF(A213<'S4-PartialHarvest'!$C$9,('Growth-Model-4'!G212*EXP($AA$7)),0))+IF(A213='S4-PartialHarvest'!$C$7,'Growth-Model-4'!$AA$6,0)","v":0},{"$f":"IF(A213<='S4-PartialHarvest'!$C$9,$AD$6*EXP($AD$7*('S4-PartialHarvest'!C$9-'Growth-Model-4'!A213)),0)","v":0},258.11742751166497,6.3732698151028389E-2,0,34.187862812341081,0,{"$f":"M213/'S4-PartialHarvest'!$C$19","v":0},{"$error":"#N/A"},{"$error":"#N/A"},{"$f":"_xlfn.XLOOKUP(B213,FeedTables!$C$17:$T$17,FeedTables!$C$31:$T$31,,-1)","v":{"$error":"#N/A"}},{"$f":"_xlfn.XLOOKUP(Q213,FeedPrice[Feed],FeedPrice[Price per kg],\"Unknown\",0)*O213","v":{"$error":"#N/A"}},{"$error":"#N/A"},{"$f":"_xlfn.XLOOKUP(O213,LabourFromFeed[Feed Quantity (kg)],LabourFromFeed[No. Labour],\"Out of range\",-1)","v":{"$error":"#N/A"}},{"$f":"T213*OperatingCosts!$C$9","v":{"$error":"#N/A"}},{"$error":"#N/A"}]
[212,{"$f":"IF(A214<='S4-PartialHarvest'!$C$9, B213*EXP((LN((E213/100)+1))*1),)","v":0},{"$f":"_xlfn.XLOOKUP($B214,FeedTables!$C$42:$T$42,FeedTables!$C$44:$T$44,,-1)","v":{"$error":"#N/A"}},{"$f":"_xlfn.XLOOKUP($B214,FeedTables!$C$42:$T$42,FeedTables!$C$45:$T$45,,-1)","v":{"$error":"#N/A"}},{"$f":"_xlfn.XLOOKUP($B214,FeedTables!$C$42:$T$42,FeedTables!$C$46:$T$46,,-1)*_xlfn.XLOOKUP(N213,DensityMultiplier[Biomass kg/m3],DensityMultiplier[Multiplier],,-1)","v":{"$error":"#N/A"}},{"$f":"IF(A214>'S4-PartialHarvest'!$C$9,0,IF(A214='S4-PartialHarvest'!$C$7,(F213-G213-H213)*(1-'S4-PartialHarvest'!$C$8),(F213-G213-H213)))","v":0},{"$f":"IF(A214<='S4-PartialHarvest'!$C$7,('Growth-Model-4'!G213*EXP($Z$7)),IF(A214<'S4-PartialHarvest'!$C$9,('Growth-Model-4'!G213*EXP($AA$7)),0))+IF(A214='S4-PartialHarvest'!$C$7,'Growth-Model-4'!$AA$6,0)","v":0},{"$f":"IF(A214<='S4-PartialHarvest'!$C$9,$AD$6*EXP($AD$7*('S4-PartialHarvest'!C$9-'Growth-Model-4'!A214)),0)","v":0},258.11742751166497,6.3732698151028389E-2,0,34.187862812341081,0,{"$f":"M214/'S4-PartialHarvest'!$C$19","v":0},{"$error":"#N/A"},{"$error":"#N/A"},{"$f":"_xlfn.XLOOKUP(B214,FeedTables!$C$17:$T$17,FeedTables!$C$31:$T$31,,-1)","v":{"$error":"#N/A"}},{"$f":"_xlfn.XLOOKUP(Q214,FeedPrice[Feed],FeedPrice[Price per kg],\"Unknown\",0)*O214","v":{"$error":"#N/A"}},{"$error":"#N/A"},{"$f":"_xlfn.XLOOKUP(O214,LabourFromFeed[Feed Quantity (kg)],LabourFromFeed[No. Labour],\"Out of range\",-1)","v":{"$error":"#N/A"}},{"$f":"T214*OperatingCosts!$C$9","v":{"$error":"#N/A"}},{"$error":"#N/A"}]
[213,{"$f":"IF(A215<='S4-PartialHarvest'!$C$9, B214*EXP((LN((E214/100)+1))*1),)","v":0},{"$f":"_xlfn.XLOOKUP($B215,FeedTables!$C$42:$T$42,FeedTables!$C$44:$T$44,,-1)","v":{"$error":"#N/A"}},{"$f":"_xlfn.XLOOKUP($B215,FeedTables!$C$42:$T$42,FeedTables!$C$45:$T$45,,-1)","v":{"$error":"#N/A"}},{"$f":"_xlfn.XLOOKUP($B215,FeedTables!$C$42:$T$42,FeedTables!$C$46:$T$46,,-1)*_xlfn.XLOOKUP(N214,DensityMultiplier[Biomass kg/m3],DensityMultiplier[Multiplier],,-1)","v":{"$error":"#N/A"}},{"$f":"IF(A215>'S4-PartialHarvest'!$C$9,0,IF(A215='S4-PartialHarvest'!$C$7,(F214-G214-H214)*(1-'S4-PartialHarvest'!$C$8),(F214-G214-H214)))","v":0},{"$f":"IF(A215<='S4-PartialHarvest'!$C$7,('Growth-Model-4'!G214*EXP($Z$7)),IF(A215<'S4-PartialHarvest'!$C$9,('Growth-Model-4'!G214*EXP($AA$7)),0))+IF(A215='S4-PartialHarvest'!$C$7,'Growth-Model-4'!$AA$6,0)","v":0},{"$f":"IF(A215<='S4-PartialHarvest'!$C$9,$AD$6*EXP($AD$7*('S4-PartialHarvest'!C$9-'Growth-Model-4'!A215)),0)","v":0},258.11742751166497,6.3732698151028389E-2,0,34.187862812341081,0,{"$f":"M215/'S4-PartialHarvest'!$C$19","v":0},{"$error":"#N/A"},{"$error":"#N/A"},{"$f":"_xlfn.XLOOKUP(B215,FeedTables!$C$17:$T$17,FeedTables!$C$31:$T$31,,-1)","v":{"$error":"#N/A"}},{"$f":"_xlfn.XLOOKUP(Q215,FeedPrice[Feed],FeedPrice[Price per kg],\"Unknown\",0)*O215","v":{"$error":"#N/A"}},{"$error":"#N/A"},{"$f":"_xlfn.XLOOKUP(O215,LabourFromFeed[Feed Quantity (kg)],LabourFromFeed[No. Labour],\"Out of range\",-1)","v":{"$error":"#N/A"}},{"$f":"T215*OperatingCosts!$C$9","v":{"$error":"#N/A"}},{"$error":"#N/A"}]
[214,{"$f":"IF(A216<='S4-PartialHarvest'!$C$9, B215*EXP((LN((E215/100)+1))*1),)","v":0},{"$f":"_xlfn.XLOOKUP($B216,FeedTables!$C$42:$T$42,FeedTables!$C$44:$T$44,,-1)","v":{"$error":"#N/A"}},{"$f":"_xlfn.XLOOKUP($B216,FeedTables!$C$42:$T$42,FeedTables!$C$45:$T$45,,-1)","v":{"$error":"#N/A"}},{"$f":"_xlfn.XLOOKUP($B216,FeedTables!$C$42:$T$42,FeedTables!$C$46:$T$46,,-1)*_xlfn.XLOOKUP(N215,DensityMultiplier[Biomass kg/m3],DensityMultiplier[Multiplier],,-1)","v":{"$error":"#N/A"}},{"$f":"IF(A216>'S4-PartialHarvest'!$C$9,0,IF(A216='S4-PartialHarvest'!$C$7,(F215-G215-H215)*(1-'S4-PartialHarvest'!$C$8),(F215-G215-H215)))","v":0},{"$f":"IF(A216<='S4-PartialHarvest'!$C$7,('Growth-Model-4'!G215*EXP($Z$7)),IF(A216<'S4-PartialHarvest'!$C$9,('Growth-Model-4'!G215*EXP($AA$7)),0))+IF(A216='S4-PartialHarvest'!$C$7,'Growth-Model-4'!$AA$6,0)","v":0},{"$f":"IF(A216<='S4-PartialHarvest'!$C$9,$AD$6*EXP($AD$7*('S4-PartialHarvest'!C$9-'Growth-Model-4'!A216)),0)","v":0},258.11742751166497,6.3732698151028389E-2,0,34.187862812341081,0,{"$f":"M216/'S4-PartialHarvest'!$C$19","v":0},{"$error":"#N/A"},{"$error":"#N/A"},{"$f":"_xlfn.XLOOKUP(B216,FeedTables!$C$17:$T$17,FeedTables!$C$31:$T$31,,-1)","v":{"$error":"#N/A"}},{"$f":"_xlfn.XLOOKUP(Q216,FeedPrice[Feed],FeedPrice[Price per kg],\"Unknown\",0)*O216","v":{"$error":"#N/A"}},{"$error":"#N/A"},{"$f":"_xlfn.XLOOKUP(O216,LabourFromFeed[Feed Quantity (kg)],LabourFromFeed[No. Labour],\"Out of range\",-1)","v":{"$error":"#N/A"}},{"$f":"T216*OperatingCosts!$C$9","v":{"$error":"#N/A"}},{"$error":"#N/A"}]
[215,{"$f":"IF(A217<='S4-PartialHarvest'!$C$9, B216*EXP((LN((E216/100)+1))*1),)","v":0},{"$f":"_xlfn.XLOOKUP($B217,FeedTables!$C$42:$T$42,FeedTables!$C$44:$T$44,,-1)","v":{"$error":"#N/A"}},{"$f":"_xlfn.XLOOKUP($B217,FeedTables!$C$42:$T$42,FeedTables!$C$45:$T$45,,-1)","v":{"$error":"#N/A"}},{"$f":"_xlfn.XLOOKUP($B217,FeedTables!$C$42:$T$42,FeedTables!$C$46:$T$46,,-1)*_xlfn.XLOOKUP(N216,DensityMultiplier[Biomass kg/m3],DensityMultiplier[Multiplier],,-1)","v":{"$error":"#N/A"}},{"$f":"IF(A217>'S4-PartialHarvest'!$C$9,0,IF(A217='S4-PartialHarvest'!$C$7,(F216-G216-H216)*(1-'S4-PartialHarvest'!$C$8),(F216-G216-H216)))","v":0},{"$f":"IF(A217<='S4-PartialHarvest'!$C$7,('Growth-Model-4'!G216*EXP($Z$7)),IF(A217<'S4-PartialHarvest'!$C$9,('Growth-Model-4'!G216*EXP($AA$7)),0))+IF(A217='S4-PartialHarvest'!$C$7,'Growth-Model-4'!$AA$6,0)","v":0},{"$f":"IF(A217<='S4-PartialHarvest'!$C$9,$AD$6*EXP($AD$7*('S4-PartialHarvest'!C$9-'Growth-Model-4'!A217)),0)","v":0},258.11742751166497,6.3732698151028389E-2,0,34.187862812341081,0,{"$f":"M217/'S4-PartialHarvest'!$C$19","v":0},{"$error":"#N/A"},{"$error":"#N/A"},{"$f":"_xlfn.XLOOKUP(B217,FeedTables!$C$17:$T$17,FeedTables!$C$31:$T$31,,-1)","v":{"$error":"#N/A"}},{"$f":"_xlfn.XLOOKUP(Q217,FeedPrice[Feed],FeedPrice[Price per kg],\"Unknown\",0)*O217","v":{"$error":"#N/A"}},{"$error":"#N/A"},{"$f":"_xlfn.XLOOKUP(O217,LabourFromFeed[Feed Quantity (kg)],LabourFromFeed[No. Labour],\"Out of range\",-1)","v":{"$error":"#N/A"}},{"$f":"T217*OperatingCosts!$C$9","v":{"$error":"#N/A"}},{"$error":"#N/A"}]
[216,{"$f":"IF(A218<='S4-PartialHarvest'!$C$9, B217*EXP((LN((E217/100)+1))*1),)","v":0},{"$f":"_xlfn.XLOOKUP($B218,FeedTables!$C$42:$T$42,FeedTables!$C$44:$T$44,,-1)","v":{"$error":"#N/A"}},{"$f":"_xlfn.XLOOKUP($B218,FeedTables!$C$42:$T$42,FeedTables!$C$45:$T$45,,-1)","v":{"$error":"#N/A"}},{"$f":"_xlfn.XLOOKUP($B218,FeedTables!$C$42:$T$42,FeedTables!$C$46:$T$46,,-1)*_xlfn.XLOOKUP(N217,DensityMultiplier[Biomass kg/m3],DensityMultiplier[Multiplier],,-1)","v":{"$error":"#N/A"}},{"$f":"IF(A218>'S4-PartialHarvest'!$C$9,0,IF(A218='S4-PartialHarvest'!$C$7,(F217-G217-H217)*(1-'S4-PartialHarvest'!$C$8),(F217-G217-H217)))","v":0},{"$f":"IF(A218<='S4-PartialHarvest'!$C$7,('Growth-Model-4'!G217*EXP($Z$7)),IF(A218<'S4-PartialHarvest'!$C$9,('Growth-Model-4'!G217*EXP($AA$7)),0))+IF(A218='S4-PartialHarvest'!$C$7,'Growth-Model-4'!$AA$6,0)","v":0},{"$f":"IF(A218<='S4-PartialHarvest'!$C$9,$AD$6*EXP($AD$7*('S4-PartialHarvest'!C$9-'Growth-Model-4'!A218)),0)","v":0},258.11742751166497,6.3732698151028389E-2,0,34.187862812341081,0,{"$f":"M218/'S4-PartialHarvest'!$C$19","v":0},{"$error":"#N/A"},{"$error":"#N/A"},{"$f":"_xlfn.XLOOKUP(B218,FeedTables!$C$17:$T$17,FeedTables!$C$31:$T$31,,-1)","v":{"$error":"#N/A"}},{"$f":"_xlfn.XLOOKUP(Q218,FeedPrice[Feed],FeedPrice[Price per kg],\"Unknown\",0)*O218","v":{"$error":"#N/A"}},{"$error":"#N/A"},{"$f":"_xlfn.XLOOKUP(O218,LabourFromFeed[Feed Quantity (kg)],LabourFromFeed[No. Labour],\"Out of range\",-1)","v":{"$error":"#N/A"}},{"$f":"T218*OperatingCosts!$C$9","v":{"$error":"#N/A"}},{"$error":"#N/A"}]
[217,{"$f":"IF(A219<='S4-PartialHarvest'!$C$9, B218*EXP((LN((E218/100)+1))*1),)","v":0},{"$f":"_xlfn.XLOOKUP($B219,FeedTables!$C$42:$T$42,FeedTables!$C$44:$T$44,,-1)","v":{"$error":"#N/A"}},{"$f":"_xlfn.XLOOKUP($B219,FeedTables!$C$42:$T$42,FeedTables!$C$45:$T$45,,-1)","v":{"$error":"#N/A"}},{"$f":"_xlfn.XLOOKUP($B219,FeedTables!$C$42:$T$42,FeedTables!$C$46:$T$46,,-1)*_xlfn.XLOOKUP(N218,DensityMultiplier[Biomass kg/m3],DensityMultiplier[Multiplier],,-1)","v":{"$error":"#N/A"}},{"$f":"IF(A219>'S4-PartialHarvest'!$C$9,0,IF(A219='S4-PartialHarvest'!$C$7,(F218-G218-H218)*(1-'S4-PartialHarvest'!$C$8),(F218-G218-H218)))","v":0},{"$f":"IF(A219<='S4-PartialHarvest'!$C$7,('Growth-Model-4'!G218*EXP($Z$7)),IF(A219<'S4-PartialHarvest'!$C$9,('Growth-Model-4'!G218*EXP($AA$7)),0))+IF(A219='S4-PartialHarvest'!$C$7,'Growth-Model-4'!$AA$6,0)","v":0},{"$f":"IF(A219<='S4-PartialHarvest'!$C$9,$AD$6*EXP($AD$7*('S4-PartialHarvest'!C$9-'Growth-Model-4'!A219)),0)","v":0},258.11742751166497,6.3732698151028389E-2,0,34.187862812341081,0,{"$f":"M219/'S4-PartialHarvest'!$C$19","v":0},{"$error":"#N/A"},{"$error":"#N/A"},{"$f":"_xlfn.XLOOKUP(B219,FeedTables!$C$17:$T$17,FeedTables!$C$31:$T$31,,-1)","v":{"$error":"#N/A"}},{"$f":"_xlfn.XLOOKUP(Q219,FeedPrice[Feed],FeedPrice[Price per kg],\"Unknown\",0)*O219","v":{"$error":"#N/A"}},{"$error":"#N/A"},{"$f":"_xlfn.XLOOKUP(O219,LabourFromFeed[Feed Quantity (kg)],LabourFromFeed[No. Labour],\"Out of range\",-1)","v":{"$error":"#N/A"}},{"$f":"T219*OperatingCosts!$C$9","v":{"$error":"#N/A"}},{"$error":"#N/A"}]
[218,{"$f":"IF(A220<='S4-PartialHarvest'!$C$9, B219*EXP((LN((E219/100)+1))*1),)","v":0},{"$f":"_xlfn.XLOOKUP($B220,FeedTables!$C$42:$T$42,FeedTables!$C$44:$T$44,,-1)","v":{"$error":"#N/A"}},{"$f":"_xlfn.XLOOKUP($B220,FeedTables!$C$42:$T$42,FeedTables!$C$45:$T$45,,-1)","v":{"$error":"#N/A"}},{"$f":"_xlfn.XLOOKUP($B220,FeedTables!$C$42:$T$42,FeedTables!$C$46:$T$46,,-1)*_xlfn.XLOOKUP(N219,DensityMultiplier[Biomass kg/m3],DensityMultiplier[Multiplier],,-1)","v":{"$error":"#N/A"}},{"$f":"IF(A220>'S4-PartialHarvest'!$C$9,0,IF(A220='S4-PartialHarvest'!$C$7,(F219-G219-H219)*(1-'S4-PartialHarvest'!$C$8),(F219-G219-H219)))","v":0},{"$f":"IF(A220<='S4-PartialHarvest'!$C$7,('Growth-Model-4'!G219*EXP($Z$7)),IF(A220<'S4-PartialHarvest'!$C$9,('Growth-Model-4'!G219*EXP($AA$7)),0))+IF(A220='S4-PartialHarvest'!$C$7,'Growth-Model-4'!$AA$6,0)","v":0},{"$f":"IF(A220<='S4-PartialHarvest'!$C$9,$AD$6*EXP($AD$7*('S4-PartialHarvest'!C$9-'Growth-Model-4'!A220)),0)","v":0},258.11742751166497,6.3732698151028389E-2,0,34.187862812341081,0,{"$f":"M220/'S4-PartialHarvest'!$C$19","v":0},{"$error":"#N/A"},{"$error":"#N/A"},{"$f":"_xlfn.XLOOKUP(B220,FeedTables!$C$17:$T$17,FeedTables!$C$31:$T$31,,-1)","v":{"$error":"#N/A"}},{"$f":"_xlfn.XLOOKUP(Q220,FeedPrice[Feed],FeedPrice[Price per kg],\"Unknown\",0)*O220","v":{"$error":"#N/A"}},{"$error":"#N/A"},{"$f":"_xlfn.XLOOKUP(O220,LabourFromFeed[Feed Quantity (kg)],LabourFromFeed[No. Labour],\"Out of range\",-1)","v":{"$error":"#N/A"}},{"$f":"T220*OperatingCosts!$C$9","v":{"$error":"#N/A"}},{"$error":"#N/A"}]
[219,{"$f":"IF(A221<='S4-PartialHarvest'!$C$9, B220*EXP((LN((E220/100)+1))*1),)","v":0},{"$f":"_xlfn.XLOOKUP($B221,FeedTables!$C$42:$T$42,FeedTables!$C$44:$T$44,,-1)","v":{"$error":"#N/A"}},{"$f":"_xlfn.XLOOKUP($B221,FeedTables!$C$42:$T$42,FeedTables!$C$45:$T$45,,-1)","v":{"$error":"#N/A"}},{"$f":"_xlfn.XLOOKUP($B221,FeedTables!$C$42:$T$42,FeedTables!$C$46:$T$46,,-1)*_xlfn.XLOOKUP(N220,DensityMultiplier[Biomass kg/m3],DensityMultiplier[Multiplier],,-1)","v":{"$error":"#N/A"}},{"$f":"IF(A221>'S4-PartialHarvest'!$C$9,0,IF(A221='S4-PartialHarvest'!$C$7,(F220-G220-H220)*(1-'S4-PartialHarvest'!$C$8),(F220-G220-H220)))","v":0},{"$f":"IF(A221<='S4-PartialHarvest'!$C$7,('Growth-Model-4'!G220*EXP($Z$7)),IF(A221<'S4-PartialHarvest'!$C$9,('Growth-Model-4'!G220*EXP($AA$7)),0))+IF(A221='S4-PartialHarvest'!$C$7,'Growth-Model-4'!$AA$6,0)","v":0},{"$f":"IF(A221<='S4-PartialHarvest'!$C$9,$AD$6*EXP($AD$7*('S4-PartialHarvest'!C$9-'Growth-Model-4'!A221)),0)","v":0},258.11742751166497,6.3732698151028389E-2,0,34.187862812341081,0,{"$f":"M221/'S4-PartialHarvest'!$C$19","v":0},{"$error":"#N/A"},{"$error":"#N/A"},{"$f":"_xlfn.XLOOKUP(B221,FeedTables!$C$17:$T$17,FeedTables!$C$31:$T$31,,-1)","v":{"$error":"#N/A"}},{"$f":"_xlfn.XLOOKUP(Q221,FeedPrice[Feed],FeedPrice[Price per kg],\"Unknown\",0)*O221","v":{"$error":"#N/A"}},{"$error":"#N/A"},{"$f":"_xlfn.XLOOKUP(O221,LabourFromFeed[Feed Quantity (kg)],LabourFromFeed[No. Labour],\"Out of range\",-1)","v":{"$error":"#N/A"}},{"$f":"T221*OperatingCosts!$C$9","v":{"$error":"#N/A"}},{"$error":"#N/A"}]
[220,{"$f":"IF(A222<='S4-PartialHarvest'!$C$9, B221*EXP((LN((E221/100)+1))*1),)","v":0},{"$f":"_xlfn.XLOOKUP($B222,FeedTables!$C$42:$T$42,FeedTables!$C$44:$T$44,,-1)","v":{"$error":"#N/A"}},{"$f":"_xlfn.XLOOKUP($B222,FeedTables!$C$42:$T$42,FeedTables!$C$45:$T$45,,-1)","v":{"$error":"#N/A"}},{"$f":"_xlfn.XLOOKUP($B222,FeedTables!$C$42:$T$42,FeedTables!$C$46:$T$46,,-1)*_xlfn.XLOOKUP(N221,DensityMultiplier[Biomass kg/m3],DensityMultiplier[Multiplier],,-1)","v":{"$error":"#N/A"}},{"$f":"IF(A222>'S4-PartialHarvest'!$C$9,0,IF(A222='S4-PartialHarvest'!$C$7,(F221-G221-H221)*(1-'S4-PartialHarvest'!$C$8),(F221-G221-H221)))","v":0},{"$f":"IF(A222<='S4-PartialHarvest'!$C$7,('Growth-Model-4'!G221*EXP($Z$7)),IF(A222<'S4-PartialHarvest'!$C$9,('Growth-Model-4'!G221*EXP($AA$7)),0))+IF(A222='S4-PartialHarvest'!$C$7,'Growth-Model-4'!$AA$6,0)","v":0},{"$f":"IF(A222<='S4-PartialHarvest'!$C$9,$AD$6*EXP($AD$7*('S4-PartialHarvest'!C$9-'Growth-Model-4'!A222)),0)","v":0},258.11742751166497,6.3732698151028389E-2,0,34.187862812341081,0,{"$f":"M222/'S4-PartialHarvest'!$C$19","v":0},{"$error":"#N/A"},{"$error":"#N/A"},{"$f":"_xlfn.XLOOKUP(B222,FeedTables!$C$17:$T$17,FeedTables!$C$31:$T$31,,-1)","v":{"$error":"#N/A"}},{"$f":"_xlfn.XLOOKUP(Q222,FeedPrice[Feed],FeedPrice[Price per kg],\"Unknown\",0)*O222","v":{"$error":"#N/A"}},{"$error":"#N/A"},{"$f":"_xlfn.XLOOKUP(O222,LabourFromFeed[Feed Quantity (kg)],LabourFromFeed[No. Labour],\"Out of range\",-1)","v":{"$error":"#N/A"}},{"$f":"T222*OperatingCosts!$C$9","v":{"$error":"#N/A"}},{"$error":"#N/A"}]
[221,{"$f":"IF(A223<='S4-PartialHarvest'!$C$9, B222*EXP((LN((E222/100)+1))*1),)","v":0},{"$f":"_xlfn.XLOOKUP($B223,FeedTables!$C$42:$T$42,FeedTables!$C$44:$T$44,,-1)","v":{"$error":"#N/A"}},{"$f":"_xlfn.XLOOKUP($B223,FeedTables!$C$42:$T$42,FeedTables!$C$45:$T$45,,-1)","v":{"$error":"#N/A"}},{"$f":"_xlfn.XLOOKUP($B223,FeedTables!$C$42:$T$42,FeedTables!$C$46:$T$46,,-1)*_xlfn.XLOOKUP(N222,DensityMultiplier[Biomass kg/m3],DensityMultiplier[Multiplier],,-1)","v":{"$error":"#N/A"}},{"$f":"IF(A223>'S4-PartialHarvest'!$C$9,0,IF(A223='S4-PartialHarvest'!$C$7,(F222-G222-H222)*(1-'S4-PartialHarvest'!$C$8),(F222-G222-H222)))","v":0},{"$f":"IF(A223<='S4-PartialHarvest'!$C$7,('Growth-Model-4'!G222*EXP($Z$7)),IF(A223<'S4-PartialHarvest'!$C$9,('Growth-Model-4'!G222*EXP($AA$7)),0))+IF(A223='S4-PartialHarvest'!$C$7,'Growth-Model-4'!$AA$6,0)","v":0},{"$f":"IF(A223<='S4-PartialHarvest'!$C$9,$AD$6*EXP($AD$7*('S4-PartialHarvest'!C$9-'Growth-Model-4'!A223)),0)","v":0},258.11742751166497,6.3732698151028389E-2,0,34.187862812341081,0,{"$f":"M223/'S4-PartialHarvest'!$C$19","v":0},{"$error":"#N/A"},{"$error":"#N/A"},{"$f":"_xlfn.XLOOKUP(B223,FeedTables!$C$17:$T$17,FeedTables!$C$31:$T$31,,-1)","v":{"$error":"#N/A"}},{"$f":"_xlfn.XLOOKUP(Q223,FeedPrice[Feed],FeedPrice[Price per kg],\"Unknown\",0)*O223","v":{"$error":"#N/A"}},{"$error":"#N/A"},{"$f":"_xlfn.XLOOKUP(O223,LabourFromFeed[Feed Quantity (kg)],LabourFromFeed[No. Labour],\"Out of range\",-1)","v":{"$error":"#N/A"}},{"$f":"T223*OperatingCosts!$C$9","v":{"$error":"#N/A"}},{"$error":"#N/A"}]
[222,{"$f":"IF(A224<='S4-PartialHarvest'!$C$9, B223*EXP((LN((E223/100)+1))*1),)","v":0},{"$f":"_xlfn.XLOOKUP($B224,FeedTables!$C$42:$T$42,FeedTables!$C$44:$T$44,,-1)","v":{"$error":"#N/A"}},{"$f":"_xlfn.XLOOKUP($B224,FeedTables!$C$42:$T$42,FeedTables!$C$45:$T$45,,-1)","v":{"$error":"#N/A"}},{"$f":"_xlfn.XLOOKUP($B224,FeedTables!$C$42:$T$42,FeedTables!$C$46:$T$46,,-1)*_xlfn.XLOOKUP(N223,DensityMultiplier[Biomass kg/m3],DensityMultiplier[Multiplier],,-1)","v":{"$error":"#N/A"}},{"$f":"IF(A224>'S4-PartialHarvest'!$C$9,0,IF(A224='S4-PartialHarvest'!$C$7,(F223-G223-H223)*(1-'S4-PartialHarvest'!$C$8),(F223-G223-H223)))","v":0},{"$f":"IF(A224<='S4-PartialHarvest'!$C$7,('Growth-Model-4'!G223*EXP($Z$7)),IF(A224<'S4-PartialHarvest'!$C$9,('Growth-Model-4'!G223*EXP($AA$7)),0))+IF(A224='S4-PartialHarvest'!$C$7,'Growth-Model-4'!$AA$6,0)","v":0},{"$f":"IF(A224<='S4-PartialHarvest'!$C$9,$AD$6*EXP($AD$7*('S4-PartialHarvest'!C$9-'Growth-Model-4'!A224)),0)","v":0},258.11742751166497,6.3732698151028389E-2,0,34.187862812341081,0,{"$f":"M224/'S4-PartialHarvest'!$C$19","v":0},{"$error":"#N/A"},{"$error":"#N/A"},{"$f":"_xlfn.XLOOKUP(B224,FeedTables!$C$17:$T$17,FeedTables!$C$31:$T$31,,-1)","v":{"$error":"#N/A"}},{"$f":"_xlfn.XLOOKUP(Q224,FeedPrice[Feed],FeedPrice[Price per kg],\"Unknown\",0)*O224","v":{"$error":"#N/A"}},{"$error":"#N/A"},{"$f":"_xlfn.XLOOKUP(O224,LabourFromFeed[Feed Quantity (kg)],LabourFromFeed[No. Labour],\"Out of range\",-1)","v":{"$error":"#N/A"}},{"$f":"T224*OperatingCosts!$C$9","v":{"$error":"#N/A"}},{"$error":"#N/A"}]
[223,{"$f":"IF(A225<='S4-PartialHarvest'!$C$9, B224*EXP((LN((E224/100)+1))*1),)","v":0},{"$f":"_xlfn.XLOOKUP($B225,FeedTables!$C$42:$T$42,FeedTables!$C$44:$T$44,,-1)","v":{"$error":"#N/A"}},{"$f":"_xlfn.XLOOKUP($B225,FeedTables!$C$42:$T$42,FeedTables!$C$45:$T$45,,-1)","v":{"$error":"#N/A"}},{"$f":"_xlfn.XLOOKUP($B225,FeedTables!$C$42:$T$42,FeedTables!$C$46:$T$46,,-1)*_xlfn.XLOOKUP(N224,DensityMultiplier[Biomass kg/m3],DensityMultiplier[Multiplier],,-1)","v":{"$error":"#N/A"}},{"$f":"IF(A225>'S4-PartialHarvest'!$C$9,0,IF(A225='S4-PartialHarvest'!$C$7,(F224-G224-H224)*(1-'S4-PartialHarvest'!$C$8),(F224-G224-H224)))","v":0},{"$f":"IF(A225<='S4-PartialHarvest'!$C$7,('Growth-Model-4'!G224*EXP($Z$7)),IF(A225<'S4-PartialHarvest'!$C$9,('Growth-Model-4'!G224*EXP($AA$7)),0))+IF(A225='S4-PartialHarvest'!$C$7,'Growth-Model-4'!$AA$6,0)","v":0},{"$f":"IF(A225<='S4-PartialHarvest'!$C$9,$AD$6*EXP($AD$7*('S4-PartialHarvest'!C$9-'Growth-Model-4'!A225)),0)","v":0},258.11742751166497,6.3732698151028389E-2,0,34.187862812341081,0,{"$f":"M225/'S4-PartialHarvest'!$C$19","v":0},{"$error":"#N/A"},{"$error":"#N/A"},{"$f":"_xlfn.XLOOKUP(B225,FeedTables!$C$17:$T$17,FeedTables!$C$31:$T$31,,-1)","v":{"$error":"#N/A"}},{"$f":"_xlfn.XLOOKUP(Q225,FeedPrice[Feed],FeedPrice[Price per kg],\"Unknown\",0)*O225","v":{"$error":"#N/A"}},{"$error":"#N/A"},{"$f":"_xlfn.XLOOKUP(O225,LabourFromFeed[Feed Quantity (kg)],LabourFromFeed[No. Labour],\"Out of range\",-1)","v":{"$error":"#N/A"}},{"$f":"T225*OperatingCosts!$C$9","v":{"$error":"#N/A"}},{"$error":"#N/A"}]
[224,{"$f":"IF(A226<='S4-PartialHarvest'!$C$9, B225*EXP((LN((E225/100)+1))*1),)","v":0},{"$f":"_xlfn.XLOOKUP($B226,FeedTables!$C$42:$T$42,FeedTables!$C$44:$T$44,,-1)","v":{"$error":"#N/A"}},{"$f":"_xlfn.XLOOKUP($B226,FeedTables!$C$42:$T$42,FeedTables!$C$45:$T$45,,-1)","v":{"$error":"#N/A"}},{"$f":"_xlfn.XLOOKUP($B226,FeedTables!$C$42:$T$42,FeedTables!$C$46:$T$46,,-1)*_xlfn.XLOOKUP(N225,DensityMultiplier[Biomass kg/m3],DensityMultiplier[Multiplier],,-1)","v":{"$error":"#N/A"}},{"$f":"IF(A226>'S4-PartialHarvest'!$C$9,0,IF(A226='S4-PartialHarvest'!$C$7,(F225-G225-H225)*(1-'S4-PartialHarvest'!$C$8),(F225-G225-H225)))","v":0},{"$f":"IF(A226<='S4-PartialHarvest'!$C$7,('Growth-Model-4'!G225*EXP($Z$7)),IF(A226<'S4-PartialHarvest'!$C$9,('Growth-Model-4'!G225*EXP($AA$7)),0))+IF(A226='S4-PartialHarvest'!$C$7,'Growth-Model-4'!$AA$6,0)","v":0},{"$f":"IF(A226<='S4-PartialHarvest'!$C$9,$AD$6*EXP($AD$7*('S4-PartialHarvest'!C$9-'Growth-Model-4'!A226)),0)","v":0},258.11742751166497,6.3732698151028389E-2,0,34.187862812341081,0,{"$f":"M226/'S4-PartialHarvest'!$C$19","v":0},{"$error":"#N/A"},{"$error":"#N/A"},{"$f":"_xlfn.XLOOKUP(B226,FeedTables!$C$17:$T$17,FeedTables!$C$31:$T$31,,-1)","v":{"$error":"#N/A"}},{"$f":"_xlfn.XLOOKUP(Q226,FeedPrice[Feed],FeedPrice[Price per kg],\"Unknown\",0)*O226","v":{"$error":"#N/A"}},{"$error":"#N/A"},{"$f":"_xlfn.XLOOKUP(O226,LabourFromFeed[Feed Quantity (kg)],LabourFromFeed[No. Labour],\"Out of range\",-1)","v":{"$error":"#N/A"}},{"$f":"T226*OperatingCosts!$C$9","v":{"$error":"#N/A"}},{"$error":"#N/A"}]
[225,{"$f":"IF(A227<='S4-PartialHarvest'!$C$9, B226*EXP((LN((E226/100)+1))*1),)","v":0},{"$f":"_xlfn.XLOOKUP($B227,FeedTables!$C$42:$T$42,FeedTables!$C$44:$T$44,,-1)","v":{"$error":"#N/A"}},{"$f":"_xlfn.XLOOKUP($B227,FeedTables!$C$42:$T$42,FeedTables!$C$45:$T$45,,-1)","v":{"$error":"#N/A"}},{"$f":"_xlfn.XLOOKUP($B227,FeedTables!$C$42:$T$42,FeedTables!$C$46:$T$46,,-1)*_xlfn.XLOOKUP(N226,DensityMultiplier[Biomass kg/m3],DensityMultiplier[Multiplier],,-1)","v":{"$error":"#N/A"}},{"$f":"IF(A227>'S4-PartialHarvest'!$C$9,0,IF(A227='S4-PartialHarvest'!$C$7,(F226-G226-H226)*(1-'S4-PartialHarvest'!$C$8),(F226-G226-H226)))","v":0},{"$f":"IF(A227<='S4-PartialHarvest'!$C$7,('Growth-Model-4'!G226*EXP($Z$7)),IF(A227<'S4-PartialHarvest'!$C$9,('Growth-Model-4'!G226*EXP($AA$7)),0))+IF(A227='S4-PartialHarvest'!$C$7,'Growth-Model-4'!$AA$6,0)","v":0},{"$f":"IF(A227<='S4-PartialHarvest'!$C$9,$AD$6*EXP($AD$7*('S4-PartialHarvest'!C$9-'Growth-Model-4'!A227)),0)","v":0},258.11742751166497,6.3732698151028389E-2,0,34.187862812341081,0,{"$f":"M227/'S4-PartialHarvest'!$C$19","v":0},{"$error":"#N/A"},{"$error":"#N/A"},{"$f":"_xlfn.XLOOKUP(B227,FeedTables!$C$17:$T$17,FeedTables!$C$31:$T$31,,-1)","v":{"$error":"#N/A"}},{"$f":"_xlfn.XLOOKUP(Q227,FeedPrice[Feed],FeedPrice[Price per kg],\"Unknown\",0)*O227","v":{"$error":"#N/A"}},{"$error":"#N/A"},{"$f":"_xlfn.XLOOKUP(O227,LabourFromFeed[Feed Quantity (kg)],LabourFromFeed[No. Labour],\"Out of range\",-1)","v":{"$error":"#N/A"}},{"$f":"T227*OperatingCosts!$C$9","v":{"$error":"#N/A"}},{"$error":"#N/A"}]
[226,{"$f":"IF(A228<='S4-PartialHarvest'!$C$9, B227*EXP((LN((E227/100)+1))*1),)","v":0},{"$f":"_xlfn.XLOOKUP($B228,FeedTables!$C$42:$T$42,FeedTables!$C$44:$T$44,,-1)","v":{"$error":"#N/A"}},{"$f":"_xlfn.XLOOKUP($B228,FeedTables!$C$42:$T$42,FeedTables!$C$45:$T$45,,-1)","v":{"$error":"#N/A"}},{"$f":"_xlfn.XLOOKUP($B228,FeedTables!$C$42:$T$42,FeedTables!$C$46:$T$46,,-1)*_xlfn.XLOOKUP(N227,DensityMultiplier[Biomass kg/m3],DensityMultiplier[Multiplier],,-1)","v":{"$error":"#N/A"}},{"$f":"IF(A228>'S4-PartialHarvest'!$C$9,0,IF(A228='S4-PartialHarvest'!$C$7,(F227-G227-H227)*(1-'S4-PartialHarvest'!$C$8),(F227-G227-H227)))","v":0},{"$f":"IF(A228<='S4-PartialHarvest'!$C$7,('Growth-Model-4'!G227*EXP($Z$7)),IF(A228<'S4-PartialHarvest'!$C$9,('Growth-Model-4'!G227*EXP($AA$7)),0))+IF(A228='S4-PartialHarvest'!$C$7,'Growth-Model-4'!$AA$6,0)","v":0},{"$f":"IF(A228<='S4-PartialHarvest'!$C$9,$AD$6*EXP($AD$7*('S4-PartialHarvest'!C$9-'Growth-Model-4'!A228)),0)","v":0},258.11742751166497,6.3732698151028389E-2,0,34.187862812341081,0,{"$f":"M228/'S4-PartialHarvest'!$C$19","v":0},{"$error":"#N/A"},{"$error":"#N/A"},{"$f":"_xlfn.XLOOKUP(B228,FeedTables!$C$17:$T$17,FeedTables!$C$31:$T$31,,-1)","v":{"$error":"#N/A"}},{"$f":"_xlfn.XLOOKUP(Q228,FeedPrice[Feed],FeedPrice[Price per kg],\"Unknown\",0)*O228","v":{"$error":"#N/A"}},{"$error":"#N/A"},{"$f":"_xlfn.XLOOKUP(O228,LabourFromFeed[Feed Quantity (kg)],LabourFromFeed[No. Labour],\"Out of range\",-1)","v":{"$error":"#N/A"}},{"$f":"T228*OperatingCosts!$C$9","v":{"$error":"#N/A"}},{"$error":"#N/A"}]
[227,{"$f":"IF(A229<='S4-PartialHarvest'!$C$9, B228*EXP((LN((E228/100)+1))*1),)","v":0},{"$f":"_xlfn.XLOOKUP($B229,FeedTables!$C$42:$T$42,FeedTables!$C$44:$T$44,,-1)","v":{"$error":"#N/A"}},{"$f":"_xlfn.XLOOKUP($B229,FeedTables!$C$42:$T$42,FeedTables!$C$45:$T$45,,-1)","v":{"$error":"#N/A"}},{"$f":"_xlfn.XLOOKUP($B229,FeedTables!$C$42:$T$42,FeedTables!$C$46:$T$46,,-1)*_xlfn.XLOOKUP(N228,DensityMultiplier[Biomass kg/m3],DensityMultiplier[Multiplier],,-1)","v":{"$error":"#N/A"}},{"$f":"IF(A229>'S4-PartialHarvest'!$C$9,0,IF(A229='S4-PartialHarvest'!$C$7,(F228-G228-H228)*(1-'S4-PartialHarvest'!$C$8),(F228-G228-H228)))","v":0},{"$f":"IF(A229<='S4-PartialHarvest'!$C$7,('Growth-Model-4'!G228*EXP($Z$7)),IF(A229<'S4-PartialHarvest'!$C$9,('Growth-Model-4'!G228*EXP($AA$7)),0))+IF(A229='S4-PartialHarvest'!$C$7,'Growth-Model-4'!$AA$6,0)","v":0},{"$f":"IF(A229<='S4-PartialHarvest'!$C$9,$AD$6*EXP($AD$7*('S4-PartialHarvest'!C$9-'Growth-Model-4'!A229)),0)","v":0},258.11742751166497,6.3732698151028389E-2,0,34.187862812341081,0,{"$f":"M229/'S4-PartialHarvest'!$C$19","v":0},{"$error":"#N/A"},{"$error":"#N/A"},{"$f":"_xlfn.XLOOKUP(B229,FeedTables!$C$17:$T$17,FeedTables!$C$31:$T$31,,-1)","v":{"$error":"#N/A"}},{"$f":"_xlfn.XLOOKUP(Q229,FeedPrice[Feed],FeedPrice[Price per kg],\"Unknown\",0)*O229","v":{"$error":"#N/A"}},{"$error":"#N/A"},{"$f":"_xlfn.XLOOKUP(O229,LabourFromFeed[Feed Quantity (kg)],LabourFromFeed[No. Labour],\"Out of range\",-1)","v":{"$error":"#N/A"}},{"$f":"T229*OperatingCosts!$C$9","v":{"$error":"#N/A"}},{"$error":"#N/A"}]
[228,{"$f":"IF(A230<='S4-PartialHarvest'!$C$9, B229*EXP((LN((E229/100)+1))*1),)","v":0},{"$f":"_xlfn.XLOOKUP($B230,FeedTables!$C$42:$T$42,FeedTables!$C$44:$T$44,,-1)","v":{"$error":"#N/A"}},{"$f":"_xlfn.XLOOKUP($B230,FeedTables!$C$42:$T$42,FeedTables!$C$45:$T$45,,-1)","v":{"$error":"#N/A"}},{"$f":"_xlfn.XLOOKUP($B230,FeedTables!$C$42:$T$42,FeedTables!$C$46:$T$46,,-1)*_xlfn.XLOOKUP(N229,DensityMultiplier[Biomass kg/m3],DensityMultiplier[Multiplier],,-1)","v":{"$error":"#N/A"}},{"$f":"IF(A230>'S4-PartialHarvest'!$C$9,0,IF(A230='S4-PartialHarvest'!$C$7,(F229-G229-H229)*(1-'S4-PartialHarvest'!$C$8),(F229-G229-H229)))","v":0},{"$f":"IF(A230<='S4-PartialHarvest'!$C$7,('Growth-Model-4'!G229*EXP($Z$7)),IF(A230<'S4-PartialHarvest'!$C$9,('Growth-Model-4'!G229*EXP($AA$7)),0))+IF(A230='S4-PartialHarvest'!$C$7,'Growth-Model-4'!$AA$6,0)","v":0},{"$f":"IF(A230<='S4-PartialHarvest'!$C$9,$AD$6*EXP($AD$7*('S4-PartialHarvest'!C$9-'Growth-Model-4'!A230)),0)","v":0},258.11742751166497,6.3732698151028389E-2,0,34.187862812341081,0,{"$f":"M230/'S4-PartialHarvest'!$C$19","v":0},{"$error":"#N/A"},{"$error":"#N/A"},{"$f":"_xlfn.XLOOKUP(B230,FeedTables!$C$17:$T$17,FeedTables!$C$31:$T$31,,-1)","v":{"$error":"#N/A"}},{"$f":"_xlfn.XLOOKUP(Q230,FeedPrice[Feed],FeedPrice[Price per kg],\"Unknown\",0)*O230","v":{"$error":"#N/A"}},{"$error":"#N/A"},{"$f":"_xlfn.XLOOKUP(O230,LabourFromFeed[Feed Quantity (kg)],LabourFromFeed[No. Labour],\"Out of range\",-1)","v":{"$error":"#N/A"}},{"$f":"T230*OperatingCosts!$C$9","v":{"$error":"#N/A"}},{"$error":"#N/A"}]
[229,{"$f":"IF(A231<='S4-PartialHarvest'!$C$9, B230*EXP((LN((E230/100)+1))*1),)","v":0},{"$f":"_xlfn.XLOOKUP($B231,FeedTables!$C$42:$T$42,FeedTables!$C$44:$T$44,,-1)","v":{"$error":"#N/A"}},{"$f":"_xlfn.XLOOKUP($B231,FeedTables!$C$42:$T$42,FeedTables!$C$45:$T$45,,-1)","v":{"$error":"#N/A"}},{"$f":"_xlfn.XLOOKUP($B231,FeedTables!$C$42:$T$42,FeedTables!$C$46:$T$46,,-1)*_xlfn.XLOOKUP(N230,DensityMultiplier[Biomass kg/m3],DensityMultiplier[Multiplier],,-1)","v":{"$error":"#N/A"}},{"$f":"IF(A231>'S4-PartialHarvest'!$C$9,0,IF(A231='S4-PartialHarvest'!$C$7,(F230-G230-H230)*(1-'S4-PartialHarvest'!$C$8),(F230-G230-H230)))","v":0},{"$f":"IF(A231<='S4-PartialHarvest'!$C$7,('Growth-Model-4'!G230*EXP($Z$7)),IF(A231<'S4-PartialHarvest'!$C$9,('Growth-Model-4'!G230*EXP($AA$7)),0))+IF(A231='S4-PartialHarvest'!$C$7,'Growth-Model-4'!$AA$6,0)","v":0},{"$f":"IF(A231<='S4-PartialHarvest'!$C$9,$AD$6*EXP($AD$7*('S4-PartialHarvest'!C$9-'Growth-Model-4'!A231)),0)","v":0},258.11742751166497,6.3732698151028389E-2,0,34.187862812341081,0,{"$f":"M231/'S4-PartialHarvest'!$C$19","v":0},{"$error":"#N/A"},{"$error":"#N/A"},{"$f":"_xlfn.XLOOKUP(B231,FeedTables!$C$17:$T$17,FeedTables!$C$31:$T$31,,-1)","v":{"$error":"#N/A"}},{"$f":"_xlfn.XLOOKUP(Q231,FeedPrice[Feed],FeedPrice[Price per kg],\"Unknown\",0)*O231","v":{"$error":"#N/A"}},{"$error":"#N/A"},{"$f":"_xlfn.XLOOKUP(O231,LabourFromFeed[Feed Quantity (kg)],LabourFromFeed[No. Labour],\"Out of range\",-1)","v":{"$error":"#N/A"}},{"$f":"T231*OperatingCosts!$C$9","v":{"$error":"#N/A"}},{"$error":"#N/A"}]
[230,{"$f":"IF(A232<='S4-PartialHarvest'!$C$9, B231*EXP((LN((E231/100)+1))*1),)","v":0},{"$f":"_xlfn.XLOOKUP($B232,FeedTables!$C$42:$T$42,FeedTables!$C$44:$T$44,,-1)","v":{"$error":"#N/A"}},{"$f":"_xlfn.XLOOKUP($B232,FeedTables!$C$42:$T$42,FeedTables!$C$45:$T$45,,-1)","v":{"$error":"#N/A"}},{"$f":"_xlfn.XLOOKUP($B232,FeedTables!$C$42:$T$42,FeedTables!$C$46:$T$46,,-1)*_xlfn.XLOOKUP(N231,DensityMultiplier[Biomass kg/m3],DensityMultiplier[Multiplier],,-1)","v":{"$error":"#N/A"}},{"$f":"IF(A232>'S4-PartialHarvest'!$C$9,0,IF(A232='S4-PartialHarvest'!$C$7,(F231-G231-H231)*(1-'S4-PartialHarvest'!$C$8),(F231-G231-H231)))","v":0},{"$f":"IF(A232<='S4-PartialHarvest'!$C$7,('Growth-Model-4'!G231*EXP($Z$7)),IF(A232<'S4-PartialHarvest'!$C$9,('Growth-Model-4'!G231*EXP($AA$7)),0))+IF(A232='S4-PartialHarvest'!$C$7,'Growth-Model-4'!$AA$6,0)","v":0},{"$f":"IF(A232<='S4-PartialHarvest'!$C$9,$AD$6*EXP($AD$7*('S4-PartialHarvest'!C$9-'Growth-Model-4'!A232)),0)","v":0},258.11742751166497,6.3732698151028389E-2,0,34.187862812341081,0,{"$f":"M232/'S4-PartialHarvest'!$C$19","v":0},{"$error":"#N/A"},{"$error":"#N/A"},{"$f":"_xlfn.XLOOKUP(B232,FeedTables!$C$17:$T$17,FeedTables!$C$31:$T$31,,-1)","v":{"$error":"#N/A"}},{"$f":"_xlfn.XLOOKUP(Q232,FeedPrice[Feed],FeedPrice[Price per kg],\"Unknown\",0)*O232","v":{"$error":"#N/A"}},{"$error":"#N/A"},{"$f":"_xlfn.XLOOKUP(O232,LabourFromFeed[Feed Quantity (kg)],LabourFromFeed[No. Labour],\"Out of range\",-1)","v":{"$error":"#N/A"}},{"$f":"T232*OperatingCosts!$C$9","v":{"$error":"#N/A"}},{"$error":"#N/A"}]
[231,{"$f":"IF(A233<='S4-PartialHarvest'!$C$9, B232*EXP((LN((E232/100)+1))*1),)","v":0},{"$f":"_xlfn.XLOOKUP($B233,FeedTables!$C$42:$T$42,FeedTables!$C$44:$T$44,,-1)","v":{"$error":"#N/A"}},{"$f":"_xlfn.XLOOKUP($B233,FeedTables!$C$42:$T$42,FeedTables!$C$45:$T$45,,-1)","v":{"$error":"#N/A"}},{"$f":"_xlfn.XLOOKUP($B233,FeedTables!$C$42:$T$42,FeedTables!$C$46:$T$46,,-1)*_xlfn.XLOOKUP(N232,DensityMultiplier[Biomass kg/m3],DensityMultiplier[Multiplier],,-1)","v":{"$error":"#N/A"}},{"$f":"IF(A233>'S4-PartialHarvest'!$C$9,0,IF(A233='S4-PartialHarvest'!$C$7,(F232-G232-H232)*(1-'S4-PartialHarvest'!$C$8),(F232-G232-H232)))","v":0},{"$f":"IF(A233<='S4-PartialHarvest'!$C$7,('Growth-Model-4'!G232*EXP($Z$7)),IF(A233<'S4-PartialHarvest'!$C$9,('Growth-Model-4'!G232*EXP($AA$7)),0))+IF(A233='S4-PartialHarvest'!$C$7,'Growth-Model-4'!$AA$6,0)","v":0},{"$f":"IF(A233<='S4-PartialHarvest'!$C$9,$AD$6*EXP($AD$7*('S4-PartialHarvest'!C$9-'Growth-Model-4'!A233)),0)","v":0},258.11742751166497,6.3732698151028389E-2,0,34.187862812341081,0,{"$f":"M233/'S4-PartialHarvest'!$C$19","v":0},{"$error":"#N/A"},{"$error":"#N/A"},{"$f":"_xlfn.XLOOKUP(B233,FeedTables!$C$17:$T$17,FeedTables!$C$31:$T$31,,-1)","v":{"$error":"#N/A"}},{"$f":"_xlfn.XLOOKUP(Q233,FeedPrice[Feed],FeedPrice[Price per kg],\"Unknown\",0)*O233","v":{"$error":"#N/A"}},{"$error":"#N/A"},{"$f":"_xlfn.XLOOKUP(O233,LabourFromFeed[Feed Quantity (kg)],LabourFromFeed[No. Labour],\"Out of range\",-1)","v":{"$error":"#N/A"}},{"$f":"T233*OperatingCosts!$C$9","v":{"$error":"#N/A"}},{"$error":"#N/A"}]
[232,{"$f":"IF(A234<='S4-PartialHarvest'!$C$9, B233*EXP((LN((E233/100)+1))*1),)","v":0},{"$f":"_xlfn.XLOOKUP($B234,FeedTables!$C$42:$T$42,FeedTables!$C$44:$T$44,,-1)","v":{"$error":"#N/A"}},{"$f":"_xlfn.XLOOKUP($B234,FeedTables!$C$42:$T$42,FeedTables!$C$45:$T$45,,-1)","v":{"$error":"#N/A"}},{"$f":"_xlfn.XLOOKUP($B234,FeedTables!$C$42:$T$42,FeedTables!$C$46:$T$46,,-1)*_xlfn.XLOOKUP(N233,DensityMultiplier[Biomass kg/m3],DensityMultiplier[Multiplier],,-1)","v":{"$error":"#N/A"}},{"$f":"IF(A234>'S4-PartialHarvest'!$C$9,0,IF(A234='S4-PartialHarvest'!$C$7,(F233-G233-H233)*(1-'S4-PartialHarvest'!$C$8),(F233-G233-H233)))","v":0},{"$f":"IF(A234<='S4-PartialHarvest'!$C$7,('Growth-Model-4'!G233*EXP($Z$7)),IF(A234<'S4-PartialHarvest'!$C$9,('Growth-Model-4'!G233*EXP($AA$7)),0))+IF(A234='S4-PartialHarvest'!$C$7,'Growth-Model-4'!$AA$6,0)","v":0},{"$f":"IF(A234<='S4-PartialHarvest'!$C$9,$AD$6*EXP($AD$7*('S4-PartialHarvest'!C$9-'Growth-Model-4'!A234)),0)","v":0},258.11742751166497,6.3732698151028389E-2,0,34.187862812341081,0,{"$f":"M234/'S4-PartialHarvest'!$C$19","v":0},{"$error":"#N/A"},{"$error":"#N/A"},{"$f":"_xlfn.XLOOKUP(B234,FeedTables!$C$17:$T$17,FeedTables!$C$31:$T$31,,-1)","v":{"$error":"#N/A"}},{"$f":"_xlfn.XLOOKUP(Q234,FeedPrice[Feed],FeedPrice[Price per kg],\"Unknown\",0)*O234","v":{"$error":"#N/A"}},{"$error":"#N/A"},{"$f":"_xlfn.XLOOKUP(O234,LabourFromFeed[Feed Quantity (kg)],LabourFromFeed[No. Labour],\"Out of range\",-1)","v":{"$error":"#N/A"}},{"$f":"T234*OperatingCosts!$C$9","v":{"$error":"#N/A"}},{"$error":"#N/A"}]
[233,{"$f":"IF(A235<='S4-PartialHarvest'!$C$9, B234*EXP((LN((E234/100)+1))*1),)","v":0},{"$f":"_xlfn.XLOOKUP($B235,FeedTables!$C$42:$T$42,FeedTables!$C$44:$T$44,,-1)","v":{"$error":"#N/A"}},{"$f":"_xlfn.XLOOKUP($B235,FeedTables!$C$42:$T$42,FeedTables!$C$45:$T$45,,-1)","v":{"$error":"#N/A"}},{"$f":"_xlfn.XLOOKUP($B235,FeedTables!$C$42:$T$42,FeedTables!$C$46:$T$46,,-1)*_xlfn.XLOOKUP(N234,DensityMultiplier[Biomass kg/m3],DensityMultiplier[Multiplier],,-1)","v":{"$error":"#N/A"}},{"$f":"IF(A235>'S4-PartialHarvest'!$C$9,0,IF(A235='S4-PartialHarvest'!$C$7,(F234-G234-H234)*(1-'S4-PartialHarvest'!$C$8),(F234-G234-H234)))","v":0},{"$f":"IF(A235<='S4-PartialHarvest'!$C$7,('Growth-Model-4'!G234*EXP($Z$7)),IF(A235<'S4-PartialHarvest'!$C$9,('Growth-Model-4'!G234*EXP($AA$7)),0))+IF(A235='S4-PartialHarvest'!$C$7,'Growth-Model-4'!$AA$6,0)","v":0},{"$f":"IF(A235<='S4-PartialHarvest'!$C$9,$AD$6*EXP($AD$7*('S4-PartialHarvest'!C$9-'Growth-Model-4'!A235)),0)","v":0},258.11742751166497,6.3732698151028389E-2,0,34.187862812341081,0,{"$f":"M235/'S4-PartialHarvest'!$C$19","v":0},{"$error":"#N/A"},{"$error":"#N/A"},{"$f":"_xlfn.XLOOKUP(B235,FeedTables!$C$17:$T$17,FeedTables!$C$31:$T$31,,-1)","v":{"$error":"#N/A"}},{"$f":"_xlfn.XLOOKUP(Q235,FeedPrice[Feed],FeedPrice[Price per kg],\"Unknown\",0)*O235","v":{"$error":"#N/A"}},{"$error":"#N/A"},{"$f":"_xlfn.XLOOKUP(O235,LabourFromFeed[Feed Quantity (kg)],LabourFromFeed[No. Labour],\"Out of range\",-1)","v":{"$error":"#N/A"}},{"$f":"T235*OperatingCosts!$C$9","v":{"$error":"#N/A"}},{"$error":"#N/A"}]
[234,{"$f":"IF(A236<='S4-PartialHarvest'!$C$9, B235*EXP((LN((E235/100)+1))*1),)","v":0},{"$f":"_xlfn.XLOOKUP($B236,FeedTables!$C$42:$T$42,FeedTables!$C$44:$T$44,,-1)","v":{"$error":"#N/A"}},{"$f":"_xlfn.XLOOKUP($B236,FeedTables!$C$42:$T$42,FeedTables!$C$45:$T$45,,-1)","v":{"$error":"#N/A"}},{"$f":"_xlfn.XLOOKUP($B236,FeedTables!$C$42:$T$42,FeedTables!$C$46:$T$46,,-1)*_xlfn.XLOOKUP(N235,DensityMultiplier[Biomass kg/m3],DensityMultiplier[Multiplier],,-1)","v":{"$error":"#N/A"}},{"$f":"IF(A236>'S4-PartialHarvest'!$C$9,0,IF(A236='S4-PartialHarvest'!$C$7,(F235-G235-H235)*(1-'S4-PartialHarvest'!$C$8),(F235-G235-H235)))","v":0},{"$f":"IF(A236<='S4-PartialHarvest'!$C$7,('Growth-Model-4'!G235*EXP($Z$7)),IF(A236<'S4-PartialHarvest'!$C$9,('Growth-Model-4'!G235*EXP($AA$7)),0))+IF(A236='S4-PartialHarvest'!$C$7,'Growth-Model-4'!$AA$6,0)","v":0},{"$f":"IF(A236<='S4-PartialHarvest'!$C$9,$AD$6*EXP($AD$7*('S4-PartialHarvest'!C$9-'Growth-Model-4'!A236)),0)","v":0},258.11742751166497,6.3732698151028389E-2,0,34.187862812341081,0,{"$f":"M236/'S4-PartialHarvest'!$C$19","v":0},{"$error":"#N/A"},{"$error":"#N/A"},{"$f":"_xlfn.XLOOKUP(B236,FeedTables!$C$17:$T$17,FeedTables!$C$31:$T$31,,-1)","v":{"$error":"#N/A"}},{"$f":"_xlfn.XLOOKUP(Q236,FeedPrice[Feed],FeedPrice[Price per kg],\"Unknown\",0)*O236","v":{"$error":"#N/A"}},{"$error":"#N/A"},{"$f":"_xlfn.XLOOKUP(O236,LabourFromFeed[Feed Quantity (kg)],LabourFromFeed[No. Labour],\"Out of range\",-1)","v":{"$error":"#N/A"}},{"$f":"T236*OperatingCosts!$C$9","v":{"$error":"#N/A"}},{"$error":"#N/A"}]
[235,{"$f":"IF(A237<='S4-PartialHarvest'!$C$9, B236*EXP((LN((E236/100)+1))*1),)","v":0},{"$f":"_xlfn.XLOOKUP($B237,FeedTables!$C$42:$T$42,FeedTables!$C$44:$T$44,,-1)","v":{"$error":"#N/A"}},{"$f":"_xlfn.XLOOKUP($B237,FeedTables!$C$42:$T$42,FeedTables!$C$45:$T$45,,-1)","v":{"$error":"#N/A"}},{"$f":"_xlfn.XLOOKUP($B237,FeedTables!$C$42:$T$42,FeedTables!$C$46:$T$46,,-1)*_xlfn.XLOOKUP(N236,DensityMultiplier[Biomass kg/m3],DensityMultiplier[Multiplier],,-1)","v":{"$error":"#N/A"}},{"$f":"IF(A237>'S4-PartialHarvest'!$C$9,0,IF(A237='S4-PartialHarvest'!$C$7,(F236-G236-H236)*(1-'S4-PartialHarvest'!$C$8),(F236-G236-H236)))","v":0},{"$f":"IF(A237<='S4-PartialHarvest'!$C$7,('Growth-Model-4'!G236*EXP($Z$7)),IF(A237<'S4-PartialHarvest'!$C$9,('Growth-Model-4'!G236*EXP($AA$7)),0))+IF(A237='S4-PartialHarvest'!$C$7,'Growth-Model-4'!$AA$6,0)","v":0},{"$f":"IF(A237<='S4-PartialHarvest'!$C$9,$AD$6*EXP($AD$7*('S4-PartialHarvest'!C$9-'Growth-Model-4'!A237)),0)","v":0},258.11742751166497,6.3732698151028389E-2,0,34.187862812341081,0,{"$f":"M237/'S4-PartialHarvest'!$C$19","v":0},{"$error":"#N/A"},{"$error":"#N/A"},{"$f":"_xlfn.XLOOKUP(B237,FeedTables!$C$17:$T$17,FeedTables!$C$31:$T$31,,-1)","v":{"$error":"#N/A"}},{"$f":"_xlfn.XLOOKUP(Q237,FeedPrice[Feed],FeedPrice[Price per kg],\"Unknown\",0)*O237","v":{"$error":"#N/A"}},{"$error":"#N/A"},{"$f":"_xlfn.XLOOKUP(O237,LabourFromFeed[Feed Quantity (kg)],LabourFromFeed[No. Labour],\"Out of range\",-1)","v":{"$error":"#N/A"}},{"$f":"T237*OperatingCosts!$C$9","v":{"$error":"#N/A"}},{"$error":"#N/A"}]
[236,{"$f":"IF(A238<='S4-PartialHarvest'!$C$9, B237*EXP((LN((E237/100)+1))*1),)","v":0},{"$f":"_xlfn.XLOOKUP($B238,FeedTables!$C$42:$T$42,FeedTables!$C$44:$T$44,,-1)","v":{"$error":"#N/A"}},{"$f":"_xlfn.XLOOKUP($B238,FeedTables!$C$42:$T$42,FeedTables!$C$45:$T$45,,-1)","v":{"$error":"#N/A"}},{"$f":"_xlfn.XLOOKUP($B238,FeedTables!$C$42:$T$42,FeedTables!$C$46:$T$46,,-1)*_xlfn.XLOOKUP(N237,DensityMultiplier[Biomass kg/m3],DensityMultiplier[Multiplier],,-1)","v":{"$error":"#N/A"}},{"$f":"IF(A238>'S4-PartialHarvest'!$C$9,0,IF(A238='S4-PartialHarvest'!$C$7,(F237-G237-H237)*(1-'S4-PartialHarvest'!$C$8),(F237-G237-H237)))","v":0},{"$f":"IF(A238<='S4-PartialHarvest'!$C$7,('Growth-Model-4'!G237*EXP($Z$7)),IF(A238<'S4-PartialHarvest'!$C$9,('Growth-Model-4'!G237*EXP($AA$7)),0))+IF(A238='S4-PartialHarvest'!$C$7,'Growth-Model-4'!$AA$6,0)","v":0},{"$f":"IF(A238<='S4-PartialHarvest'!$C$9,$AD$6*EXP($AD$7*('S4-PartialHarvest'!C$9-'Growth-Model-4'!A238)),0)","v":0},258.11742751166497,6.3732698151028389E-2,0,34.187862812341081,0,{"$f":"M238/'S4-PartialHarvest'!$C$19","v":0},{"$error":"#N/A"},{"$error":"#N/A"},{"$f":"_xlfn.XLOOKUP(B238,FeedTables!$C$17:$T$17,FeedTables!$C$31:$T$31,,-1)","v":{"$error":"#N/A"}},{"$f":"_xlfn.XLOOKUP(Q238,FeedPrice[Feed],FeedPrice[Price per kg],\"Unknown\",0)*O238","v":{"$error":"#N/A"}},{"$error":"#N/A"},{"$f":"_xlfn.XLOOKUP(O238,LabourFromFeed[Feed Quantity (kg)],LabourFromFeed[No. Labour],\"Out of range\",-1)","v":{"$error":"#N/A"}},{"$f":"T238*OperatingCosts!$C$9","v":{"$error":"#N/A"}},{"$error":"#N/A"}]
[237,{"$f":"IF(A239<='S4-PartialHarvest'!$C$9, B238*EXP((LN((E238/100)+1))*1),)","v":0},{"$f":"_xlfn.XLOOKUP($B239,FeedTables!$C$42:$T$42,FeedTables!$C$44:$T$44,,-1)","v":{"$error":"#N/A"}},{"$f":"_xlfn.XLOOKUP($B239,FeedTables!$C$42:$T$42,FeedTables!$C$45:$T$45,,-1)","v":{"$error":"#N/A"}},{"$f":"_xlfn.XLOOKUP($B239,FeedTables!$C$42:$T$42,FeedTables!$C$46:$T$46,,-1)*_xlfn.XLOOKUP(N238,DensityMultiplier[Biomass kg/m3],DensityMultiplier[Multiplier],,-1)","v":{"$error":"#N/A"}},{"$f":"IF(A239>'S4-PartialHarvest'!$C$9,0,IF(A239='S4-PartialHarvest'!$C$7,(F238-G238-H238)*(1-'S4-PartialHarvest'!$C$8),(F238-G238-H238)))","v":0},{"$f":"IF(A239<='S4-PartialHarvest'!$C$7,('Growth-Model-4'!G238*EXP($Z$7)),IF(A239<'S4-PartialHarvest'!$C$9,('Growth-Model-4'!G238*EXP($AA$7)),0))+IF(A239='S4-PartialHarvest'!$C$7,'Growth-Model-4'!$AA$6,0)","v":0},{"$f":"IF(A239<='S4-PartialHarvest'!$C$9,$AD$6*EXP($AD$7*('S4-PartialHarvest'!C$9-'Growth-Model-4'!A239)),0)","v":0},258.11742751166497,6.3732698151028389E-2,0,34.187862812341081,0,{"$f":"M239/'S4-PartialHarvest'!$C$19","v":0},{"$error":"#N/A"},{"$error":"#N/A"},{"$f":"_xlfn.XLOOKUP(B239,FeedTables!$C$17:$T$17,FeedTables!$C$31:$T$31,,-1)","v":{"$error":"#N/A"}},{"$f":"_xlfn.XLOOKUP(Q239,FeedPrice[Feed],FeedPrice[Price per kg],\"Unknown\",0)*O239","v":{"$error":"#N/A"}},{"$error":"#N/A"},{"$f":"_xlfn.XLOOKUP(O239,LabourFromFeed[Feed Quantity (kg)],LabourFromFeed[No. Labour],\"Out of range\",-1)","v":{"$error":"#N/A"}},{"$f":"T239*OperatingCosts!$C$9","v":{"$error":"#N/A"}},{"$error":"#N/A"}]
[238,{"$f":"IF(A240<='S4-PartialHarvest'!$C$9, B239*EXP((LN((E239/100)+1))*1),)","v":0},{"$f":"_xlfn.XLOOKUP($B240,FeedTables!$C$42:$T$42,FeedTables!$C$44:$T$44,,-1)","v":{"$error":"#N/A"}},{"$f":"_xlfn.XLOOKUP($B240,FeedTables!$C$42:$T$42,FeedTables!$C$45:$T$45,,-1)","v":{"$error":"#N/A"}},{"$f":"_xlfn.XLOOKUP($B240,FeedTables!$C$42:$T$42,FeedTables!$C$46:$T$46,,-1)*_xlfn.XLOOKUP(N239,DensityMultiplier[Biomass kg/m3],DensityMultiplier[Multiplier],,-1)","v":{"$error":"#N/A"}},{"$f":"IF(A240>'S4-PartialHarvest'!$C$9,0,IF(A240='S4-PartialHarvest'!$C$7,(F239-G239-H239)*(1-'S4-PartialHarvest'!$C$8),(F239-G239-H239)))","v":0},{"$f":"IF(A240<='S4-PartialHarvest'!$C$7,('Growth-Model-4'!G239*EXP($Z$7)),IF(A240<'S4-PartialHarvest'!$C$9,('Growth-Model-4'!G239*EXP($AA$7)),0))+IF(A240='S4-PartialHarvest'!$C$7,'Growth-Model-4'!$AA$6,0)","v":0},{"$f":"IF(A240<='S4-PartialHarvest'!$C$9,$AD$6*EXP($AD$7*('S4-PartialHarvest'!C$9-'Growth-Model-4'!A240)),0)","v":0},258.11742751166497,6.3732698151028389E-2,0,34.187862812341081,0,{"$f":"M240/'S4-PartialHarvest'!$C$19","v":0},{"$error":"#N/A"},{"$error":"#N/A"},{"$f":"_xlfn.XLOOKUP(B240,FeedTables!$C$17:$T$17,FeedTables!$C$31:$T$31,,-1)","v":{"$error":"#N/A"}},{"$f":"_xlfn.XLOOKUP(Q240,FeedPrice[Feed],FeedPrice[Price per kg],\"Unknown\",0)*O240","v":{"$error":"#N/A"}},{"$error":"#N/A"},{"$f":"_xlfn.XLOOKUP(O240,LabourFromFeed[Feed Quantity (kg)],LabourFromFeed[No. Labour],\"Out of range\",-1)","v":{"$error":"#N/A"}},{"$f":"T240*OperatingCosts!$C$9","v":{"$error":"#N/A"}},{"$error":"#N/A"}]
[239,{"$f":"IF(A241<='S4-PartialHarvest'!$C$9, B240*EXP((LN((E240/100)+1))*1),)","v":0},{"$f":"_xlfn.XLOOKUP($B241,FeedTables!$C$42:$T$42,FeedTables!$C$44:$T$44,,-1)","v":{"$error":"#N/A"}},{"$f":"_xlfn.XLOOKUP($B241,FeedTables!$C$42:$T$42,FeedTables!$C$45:$T$45,,-1)","v":{"$error":"#N/A"}},{"$f":"_xlfn.XLOOKUP($B241,FeedTables!$C$42:$T$42,FeedTables!$C$46:$T$46,,-1)*_xlfn.XLOOKUP(N240,DensityMultiplier[Biomass kg/m3],DensityMultiplier[Multiplier],,-1)","v":{"$error":"#N/A"}},{"$f":"IF(A241>'S4-PartialHarvest'!$C$9,0,IF(A241='S4-PartialHarvest'!$C$7,(F240-G240-H240)*(1-'S4-PartialHarvest'!$C$8),(F240-G240-H240)))","v":0},{"$f":"IF(A241<='S4-PartialHarvest'!$C$7,('Growth-Model-4'!G240*EXP($Z$7)),IF(A241<'S4-PartialHarvest'!$C$9,('Growth-Model-4'!G240*EXP($AA$7)),0))+IF(A241='S4-PartialHarvest'!$C$7,'Growth-Model-4'!$AA$6,0)","v":0},{"$f":"IF(A241<='S4-PartialHarvest'!$C$9,$AD$6*EXP($AD$7*('S4-PartialHarvest'!C$9-'Growth-Model-4'!A241)),0)","v":0},258.11742751166497,6.3732698151028389E-2,0,34.187862812341081,0,{"$f":"M241/'S4-PartialHarvest'!$C$19","v":0},{"$error":"#N/A"},{"$error":"#N/A"},{"$f":"_xlfn.XLOOKUP(B241,FeedTables!$C$17:$T$17,FeedTables!$C$31:$T$31,,-1)","v":{"$error":"#N/A"}},{"$f":"_xlfn.XLOOKUP(Q241,FeedPrice[Feed],FeedPrice[Price per kg],\"Unknown\",0)*O241","v":{"$error":"#N/A"}},{"$error":"#N/A"},{"$f":"_xlfn.XLOOKUP(O241,LabourFromFeed[Feed Quantity (kg)],LabourFromFeed[No. Labour],\"Out of range\",-1)","v":{"$error":"#N/A"}},{"$f":"T241*OperatingCosts!$C$9","v":{"$error":"#N/A"}},{"$error":"#N/A"}]
[240,{"$f":"IF(A242<='S4-PartialHarvest'!$C$9, B241*EXP((LN((E241/100)+1))*1),)","v":0},{"$f":"_xlfn.XLOOKUP($B242,FeedTables!$C$42:$T$42,FeedTables!$C$44:$T$44,,-1)","v":{"$error":"#N/A"}},{"$f":"_xlfn.XLOOKUP($B242,FeedTables!$C$42:$T$42,FeedTables!$C$45:$T$45,,-1)","v":{"$error":"#N/A"}},{"$f":"_xlfn.XLOOKUP($B242,FeedTables!$C$42:$T$42,FeedTables!$C$46:$T$46,,-1)*_xlfn.XLOOKUP(N241,DensityMultiplier[Biomass kg/m3],DensityMultiplier[Multiplier],,-1)","v":{"$error":"#N/A"}},{"$f":"IF(A242>'S4-PartialHarvest'!$C$9,0,IF(A242='S4-PartialHarvest'!$C$7,(F241-G241-H241)*(1-'S4-PartialHarvest'!$C$8),(F241-G241-H241)))","v":0},{"$f":"IF(A242<='S4-PartialHarvest'!$C$7,('Growth-Model-4'!G241*EXP($Z$7)),IF(A242<'S4-PartialHarvest'!$C$9,('Growth-Model-4'!G241*EXP($AA$7)),0))+IF(A242='S4-PartialHarvest'!$C$7,'Growth-Model-4'!$AA$6,0)","v":0},{"$f":"IF(A242<='S4-PartialHarvest'!$C$9,$AD$6*EXP($AD$7*('S4-PartialHarvest'!C$9-'Growth-Model-4'!A242)),0)","v":0},258.11742751166497,6.3732698151028389E-2,0,34.187862812341081,0,{"$f":"M242/'S4-PartialHarvest'!$C$19","v":0},{"$error":"#N/A"},{"$error":"#N/A"},{"$f":"_xlfn.XLOOKUP(B242,FeedTables!$C$17:$T$17,FeedTables!$C$31:$T$31,,-1)","v":{"$error":"#N/A"}},{"$f":"_xlfn.XLOOKUP(Q242,FeedPrice[Feed],FeedPrice[Price per kg],\"Unknown\",0)*O242","v":{"$error":"#N/A"}},{"$error":"#N/A"},{"$f":"_xlfn.XLOOKUP(O242,LabourFromFeed[Feed Quantity (kg)],LabourFromFeed[No. Labour],\"Out of range\",-1)","v":{"$error":"#N/A"}},{"$f":"T242*OperatingCosts!$C$9","v":{"$error":"#N/A"}},{"$error":"#N/A"}]
[241,{"$f":"IF(A243<='S4-PartialHarvest'!$C$9, B242*EXP((LN((E242/100)+1))*1),)","v":0},{"$f":"_xlfn.XLOOKUP($B243,FeedTables!$C$42:$T$42,FeedTables!$C$44:$T$44,,-1)","v":{"$error":"#N/A"}},{"$f":"_xlfn.XLOOKUP($B243,FeedTables!$C$42:$T$42,FeedTables!$C$45:$T$45,,-1)","v":{"$error":"#N/A"}},{"$f":"_xlfn.XLOOKUP($B243,FeedTables!$C$42:$T$42,FeedTables!$C$46:$T$46,,-1)*_xlfn.XLOOKUP(N242,DensityMultiplier[Biomass kg/m3],DensityMultiplier[Multiplier],,-1)","v":{"$error":"#N/A"}},{"$f":"IF(A243>'S4-PartialHarvest'!$C$9,0,IF(A243='S4-PartialHarvest'!$C$7,(F242-G242-H242)*(1-'S4-PartialHarvest'!$C$8),(F242-G242-H242)))","v":0},{"$f":"IF(A243<='S4-PartialHarvest'!$C$7,('Growth-Model-4'!G242*EXP($Z$7)),IF(A243<'S4-PartialHarvest'!$C$9,('Growth-Model-4'!G242*EXP($AA$7)),0))+IF(A243='S4-PartialHarvest'!$C$7,'Growth-Model-4'!$AA$6,0)","v":0},{"$f":"IF(A243<='S4-PartialHarvest'!$C$9,$AD$6*EXP($AD$7*('S4-PartialHarvest'!C$9-'Growth-Model-4'!A243)),0)","v":0},258.11742751166497,6.3732698151028389E-2,0,34.187862812341081,0,{"$f":"M243/'S4-PartialHarvest'!$C$19","v":0},{"$error":"#N/A"},{"$error":"#N/A"},{"$f":"_xlfn.XLOOKUP(B243,FeedTables!$C$17:$T$17,FeedTables!$C$31:$T$31,,-1)","v":{"$error":"#N/A"}},{"$f":"_xlfn.XLOOKUP(Q243,FeedPrice[Feed],FeedPrice[Price per kg],\"Unknown\",0)*O243","v":{"$error":"#N/A"}},{"$error":"#N/A"},{"$f":"_xlfn.XLOOKUP(O243,LabourFromFeed[Feed Quantity (kg)],LabourFromFeed[No. Labour],\"Out of range\",-1)","v":{"$error":"#N/A"}},{"$f":"T243*OperatingCosts!$C$9","v":{"$error":"#N/A"}},{"$error":"#N/A"}]
[242,{"$f":"IF(A244<='S4-PartialHarvest'!$C$9, B243*EXP((LN((E243/100)+1))*1),)","v":0},{"$f":"_xlfn.XLOOKUP($B244,FeedTables!$C$42:$T$42,FeedTables!$C$44:$T$44,,-1)","v":{"$error":"#N/A"}},{"$f":"_xlfn.XLOOKUP($B244,FeedTables!$C$42:$T$42,FeedTables!$C$45:$T$45,,-1)","v":{"$error":"#N/A"}},{"$f":"_xlfn.XLOOKUP($B244,FeedTables!$C$42:$T$42,FeedTables!$C$46:$T$46,,-1)*_xlfn.XLOOKUP(N243,DensityMultiplier[Biomass kg/m3],DensityMultiplier[Multiplier],,-1)","v":{"$error":"#N/A"}},{"$f":"IF(A244>'S4-PartialHarvest'!$C$9,0,IF(A244='S4-PartialHarvest'!$C$7,(F243-G243-H243)*(1-'S4-PartialHarvest'!$C$8),(F243-G243-H243)))","v":0},{"$f":"IF(A244<='S4-PartialHarvest'!$C$7,('Growth-Model-4'!G243*EXP($Z$7)),IF(A244<'S4-PartialHarvest'!$C$9,('Growth-Model-4'!G243*EXP($AA$7)),0))+IF(A244='S4-PartialHarvest'!$C$7,'Growth-Model-4'!$AA$6,0)","v":0},{"$f":"IF(A244<='S4-PartialHarvest'!$C$9,$AD$6*EXP($AD$7*('S4-PartialHarvest'!C$9-'Growth-Model-4'!A244)),0)","v":0},258.11742751166497,6.3732698151028389E-2,0,34.187862812341081,0,{"$f":"M244/'S4-PartialHarvest'!$C$19","v":0},{"$error":"#N/A"},{"$error":"#N/A"},{"$f":"_xlfn.XLOOKUP(B244,FeedTables!$C$17:$T$17,FeedTables!$C$31:$T$31,,-1)","v":{"$error":"#N/A"}},{"$f":"_xlfn.XLOOKUP(Q244,FeedPrice[Feed],FeedPrice[Price per kg],\"Unknown\",0)*O244","v":{"$error":"#N/A"}},{"$error":"#N/A"},{"$f":"_xlfn.XLOOKUP(O244,LabourFromFeed[Feed Quantity (kg)],LabourFromFeed[No. Labour],\"Out of range\",-1)","v":{"$error":"#N/A"}},{"$f":"T244*OperatingCosts!$C$9","v":{"$error":"#N/A"}},{"$error":"#N/A"}]
[243,{"$f":"IF(A245<='S4-PartialHarvest'!$C$9, B244*EXP((LN((E244/100)+1))*1),)","v":0},{"$f":"_xlfn.XLOOKUP($B245,FeedTables!$C$42:$T$42,FeedTables!$C$44:$T$44,,-1)","v":{"$error":"#N/A"}},{"$f":"_xlfn.XLOOKUP($B245,FeedTables!$C$42:$T$42,FeedTables!$C$45:$T$45,,-1)","v":{"$error":"#N/A"}},{"$f":"_xlfn.XLOOKUP($B245,FeedTables!$C$42:$T$42,FeedTables!$C$46:$T$46,,-1)*_xlfn.XLOOKUP(N244,DensityMultiplier[Biomass kg/m3],DensityMultiplier[Multiplier],,-1)","v":{"$error":"#N/A"}},{"$f":"IF(A245>'S4-PartialHarvest'!$C$9,0,IF(A245='S4-PartialHarvest'!$C$7,(F244-G244-H244)*(1-'S4-PartialHarvest'!$C$8),(F244-G244-H244)))","v":0},{"$f":"IF(A245<='S4-PartialHarvest'!$C$7,('Growth-Model-4'!G244*EXP($Z$7)),IF(A245<'S4-PartialHarvest'!$C$9,('Growth-Model-4'!G244*EXP($AA$7)),0))+IF(A245='S4-PartialHarvest'!$C$7,'Growth-Model-4'!$AA$6,0)","v":0},{"$f":"IF(A245<='S4-PartialHarvest'!$C$9,$AD$6*EXP($AD$7*('S4-PartialHarvest'!C$9-'Growth-Model-4'!A245)),0)","v":0},258.11742751166497,6.3732698151028389E-2,0,34.187862812341081,0,{"$f":"M245/'S4-PartialHarvest'!$C$19","v":0},{"$error":"#N/A"},{"$error":"#N/A"},{"$f":"_xlfn.XLOOKUP(B245,FeedTables!$C$17:$T$17,FeedTables!$C$31:$T$31,,-1)","v":{"$error":"#N/A"}},{"$f":"_xlfn.XLOOKUP(Q245,FeedPrice[Feed],FeedPrice[Price per kg],\"Unknown\",0)*O245","v":{"$error":"#N/A"}},{"$error":"#N/A"},{"$f":"_xlfn.XLOOKUP(O245,LabourFromFeed[Feed Quantity (kg)],LabourFromFeed[No. Labour],\"Out of range\",-1)","v":{"$error":"#N/A"}},{"$f":"T245*OperatingCosts!$C$9","v":{"$error":"#N/A"}},{"$error":"#N/A"}]
[244,{"$f":"IF(A246<='S4-PartialHarvest'!$C$9, B245*EXP((LN((E245/100)+1))*1),)","v":0},{"$f":"_xlfn.XLOOKUP($B246,FeedTables!$C$42:$T$42,FeedTables!$C$44:$T$44,,-1)","v":{"$error":"#N/A"}},{"$f":"_xlfn.XLOOKUP($B246,FeedTables!$C$42:$T$42,FeedTables!$C$45:$T$45,,-1)","v":{"$error":"#N/A"}},{"$f":"_xlfn.XLOOKUP($B246,FeedTables!$C$42:$T$42,FeedTables!$C$46:$T$46,,-1)*_xlfn.XLOOKUP(N245,DensityMultiplier[Biomass kg/m3],DensityMultiplier[Multiplier],,-1)","v":{"$error":"#N/A"}},{"$f":"IF(A246>'S4-PartialHarvest'!$C$9,0,IF(A246='S4-PartialHarvest'!$C$7,(F245-G245-H245)*(1-'S4-PartialHarvest'!$C$8),(F245-G245-H245)))","v":0},{"$f":"IF(A246<='S4-PartialHarvest'!$C$7,('Growth-Model-4'!G245*EXP($Z$7)),IF(A246<'S4-PartialHarvest'!$C$9,('Growth-Model-4'!G245*EXP($AA$7)),0))+IF(A246='S4-PartialHarvest'!$C$7,'Growth-Model-4'!$AA$6,0)","v":0},{"$f":"IF(A246<='S4-PartialHarvest'!$C$9,$AD$6*EXP($AD$7*('S4-PartialHarvest'!C$9-'Growth-Model-4'!A246)),0)","v":0},258.11742751166497,6.3732698151028389E-2,0,34.187862812341081,0,{"$f":"M246/'S4-PartialHarvest'!$C$19","v":0},{"$error":"#N/A"},{"$error":"#N/A"},{"$f":"_xlfn.XLOOKUP(B246,FeedTables!$C$17:$T$17,FeedTables!$C$31:$T$31,,-1)","v":{"$error":"#N/A"}},{"$f":"_xlfn.XLOOKUP(Q246,FeedPrice[Feed],FeedPrice[Price per kg],\"Unknown\",0)*O246","v":{"$error":"#N/A"}},{"$error":"#N/A"},{"$f":"_xlfn.XLOOKUP(O246,LabourFromFeed[Feed Quantity (kg)],LabourFromFeed[No. Labour],\"Out of range\",-1)","v":{"$error":"#N/A"}},{"$f":"T246*OperatingCosts!$C$9","v":{"$error":"#N/A"}},{"$error":"#N/A"}]
[245,{"$f":"IF(A247<='S4-PartialHarvest'!$C$9, B246*EXP((LN((E246/100)+1))*1),)","v":0},{"$f":"_xlfn.XLOOKUP($B247,FeedTables!$C$42:$T$42,FeedTables!$C$44:$T$44,,-1)","v":{"$error":"#N/A"}},{"$f":"_xlfn.XLOOKUP($B247,FeedTables!$C$42:$T$42,FeedTables!$C$45:$T$45,,-1)","v":{"$error":"#N/A"}},{"$f":"_xlfn.XLOOKUP($B247,FeedTables!$C$42:$T$42,FeedTables!$C$46:$T$46,,-1)*_xlfn.XLOOKUP(N246,DensityMultiplier[Biomass kg/m3],DensityMultiplier[Multiplier],,-1)","v":{"$error":"#N/A"}},{"$f":"IF(A247>'S4-PartialHarvest'!$C$9,0,IF(A247='S4-PartialHarvest'!$C$7,(F246-G246-H246)*(1-'S4-PartialHarvest'!$C$8),(F246-G246-H246)))","v":0},{"$f":"IF(A247<='S4-PartialHarvest'!$C$7,('Growth-Model-4'!G246*EXP($Z$7)),IF(A247<'S4-PartialHarvest'!$C$9,('Growth-Model-4'!G246*EXP($AA$7)),0))+IF(A247='S4-PartialHarvest'!$C$7,'Growth-Model-4'!$AA$6,0)","v":0},{"$f":"IF(A247<='S4-PartialHarvest'!$C$9,$AD$6*EXP($AD$7*('S4-PartialHarvest'!C$9-'Growth-Model-4'!A247)),0)","v":0},258.11742751166497,6.3732698151028389E-2,0,34.187862812341081,0,{"$f":"M247/'S4-PartialHarvest'!$C$19","v":0},{"$error":"#N/A"},{"$error":"#N/A"},{"$f":"_xlfn.XLOOKUP(B247,FeedTables!$C$17:$T$17,FeedTables!$C$31:$T$31,,-1)","v":{"$error":"#N/A"}},{"$f":"_xlfn.XLOOKUP(Q247,FeedPrice[Feed],FeedPrice[Price per kg],\"Unknown\",0)*O247","v":{"$error":"#N/A"}},{"$error":"#N/A"},{"$f":"_xlfn.XLOOKUP(O247,LabourFromFeed[Feed Quantity (kg)],LabourFromFeed[No. Labour],\"Out of range\",-1)","v":{"$error":"#N/A"}},{"$f":"T247*OperatingCosts!$C$9","v":{"$error":"#N/A"}},{"$error":"#N/A"}]
[246,{"$f":"IF(A248<='S4-PartialHarvest'!$C$9, B247*EXP((LN((E247/100)+1))*1),)","v":0},{"$f":"_xlfn.XLOOKUP($B248,FeedTables!$C$42:$T$42,FeedTables!$C$44:$T$44,,-1)","v":{"$error":"#N/A"}},{"$f":"_xlfn.XLOOKUP($B248,FeedTables!$C$42:$T$42,FeedTables!$C$45:$T$45,,-1)","v":{"$error":"#N/A"}},{"$f":"_xlfn.XLOOKUP($B248,FeedTables!$C$42:$T$42,FeedTables!$C$46:$T$46,,-1)*_xlfn.XLOOKUP(N247,DensityMultiplier[Biomass kg/m3],DensityMultiplier[Multiplier],,-1)","v":{"$error":"#N/A"}},{"$f":"IF(A248>'S4-PartialHarvest'!$C$9,0,IF(A248='S4-PartialHarvest'!$C$7,(F247-G247-H247)*(1-'S4-PartialHarvest'!$C$8),(F247-G247-H247)))","v":0},{"$f":"IF(A248<='S4-PartialHarvest'!$C$7,('Growth-Model-4'!G247*EXP($Z$7)),IF(A248<'S4-PartialHarvest'!$C$9,('Growth-Model-4'!G247*EXP($AA$7)),0))+IF(A248='S4-PartialHarvest'!$C$7,'Growth-Model-4'!$AA$6,0)","v":0},{"$f":"IF(A248<='S4-PartialHarvest'!$C$9,$AD$6*EXP($AD$7*('S4-PartialHarvest'!C$9-'Growth-Model-4'!A248)),0)","v":0},258.11742751166497,6.3732698151028389E-2,0,34.187862812341081,0,{"$f":"M248/'S4-PartialHarvest'!$C$19","v":0},{"$error":"#N/A"},{"$error":"#N/A"},{"$f":"_xlfn.XLOOKUP(B248,FeedTables!$C$17:$T$17,FeedTables!$C$31:$T$31,,-1)","v":{"$error":"#N/A"}},{"$f":"_xlfn.XLOOKUP(Q248,FeedPrice[Feed],FeedPrice[Price per kg],\"Unknown\",0)*O248","v":{"$error":"#N/A"}},{"$error":"#N/A"},{"$f":"_xlfn.XLOOKUP(O248,LabourFromFeed[Feed Quantity (kg)],LabourFromFeed[No. Labour],\"Out of range\",-1)","v":{"$error":"#N/A"}},{"$f":"T248*OperatingCosts!$C$9","v":{"$error":"#N/A"}},{"$error":"#N/A"}]
[247,{"$f":"IF(A249<='S4-PartialHarvest'!$C$9, B248*EXP((LN((E248/100)+1))*1),)","v":0},{"$f":"_xlfn.XLOOKUP($B249,FeedTables!$C$42:$T$42,FeedTables!$C$44:$T$44,,-1)","v":{"$error":"#N/A"}},{"$f":"_xlfn.XLOOKUP($B249,FeedTables!$C$42:$T$42,FeedTables!$C$45:$T$45,,-1)","v":{"$error":"#N/A"}},{"$f":"_xlfn.XLOOKUP($B249,FeedTables!$C$42:$T$42,FeedTables!$C$46:$T$46,,-1)*_xlfn.XLOOKUP(N248,DensityMultiplier[Biomass kg/m3],DensityMultiplier[Multiplier],,-1)","v":{"$error":"#N/A"}},{"$f":"IF(A249>'S4-PartialHarvest'!$C$9,0,IF(A249='S4-PartialHarvest'!$C$7,(F248-G248-H248)*(1-'S4-PartialHarvest'!$C$8),(F248-G248-H248)))","v":0},{"$f":"IF(A249<='S4-PartialHarvest'!$C$7,('Growth-Model-4'!G248*EXP($Z$7)),IF(A249<'S4-PartialHarvest'!$C$9,('Growth-Model-4'!G248*EXP($AA$7)),0))+IF(A249='S4-PartialHarvest'!$C$7,'Growth-Model-4'!$AA$6,0)","v":0},{"$f":"IF(A249<='S4-PartialHarvest'!$C$9,$AD$6*EXP($AD$7*('S4-PartialHarvest'!C$9-'Growth-Model-4'!A249)),0)","v":0},258.11742751166497,6.3732698151028389E-2,0,34.187862812341081,0,{"$f":"M249/'S4-PartialHarvest'!$C$19","v":0},{"$error":"#N/A"},{"$error":"#N/A"},{"$f":"_xlfn.XLOOKUP(B249,FeedTables!$C$17:$T$17,FeedTables!$C$31:$T$31,,-1)","v":{"$error":"#N/A"}},{"$f":"_xlfn.XLOOKUP(Q249,FeedPrice[Feed],FeedPrice[Price per kg],\"Unknown\",0)*O249","v":{"$error":"#N/A"}},{"$error":"#N/A"},{"$f":"_xlfn.XLOOKUP(O249,LabourFromFeed[Feed Quantity (kg)],LabourFromFeed[No. Labour],\"Out of range\",-1)","v":{"$error":"#N/A"}},{"$f":"T249*OperatingCosts!$C$9","v":{"$error":"#N/A"}},{"$error":"#N/A"}]
[248,{"$f":"IF(A250<='S4-PartialHarvest'!$C$9, B249*EXP((LN((E249/100)+1))*1),)","v":0},{"$f":"_xlfn.XLOOKUP($B250,FeedTables!$C$42:$T$42,FeedTables!$C$44:$T$44,,-1)","v":{"$error":"#N/A"}},{"$f":"_xlfn.XLOOKUP($B250,FeedTables!$C$42:$T$42,FeedTables!$C$45:$T$45,,-1)","v":{"$error":"#N/A"}},{"$f":"_xlfn.XLOOKUP($B250,FeedTables!$C$42:$T$42,FeedTables!$C$46:$T$46,,-1)*_xlfn.XLOOKUP(N249,DensityMultiplier[Biomass kg/m3],DensityMultiplier[Multiplier],,-1)","v":{"$error":"#N/A"}},{"$f":"IF(A250>'S4-PartialHarvest'!$C$9,0,IF(A250='S4-PartialHarvest'!$C$7,(F249-G249-H249)*(1-'S4-PartialHarvest'!$C$8),(F249-G249-H249)))","v":0},{"$f":"IF(A250<='S4-PartialHarvest'!$C$7,('Growth-Model-4'!G249*EXP($Z$7)),IF(A250<'S4-PartialHarvest'!$C$9,('Growth-Model-4'!G249*EXP($AA$7)),0))+IF(A250='S4-PartialHarvest'!$C$7,'Growth-Model-4'!$AA$6,0)","v":0},{"$f":"IF(A250<='S4-PartialHarvest'!$C$9,$AD$6*EXP($AD$7*('S4-PartialHarvest'!C$9-'Growth-Model-4'!A250)),0)","v":0},258.11742751166497,6.3732698151028389E-2,0,34.187862812341081,0,{"$f":"M250/'S4-PartialHarvest'!$C$19","v":0},{"$error":"#N/A"},{"$error":"#N/A"},{"$f":"_xlfn.XLOOKUP(B250,FeedTables!$C$17:$T$17,FeedTables!$C$31:$T$31,,-1)","v":{"$error":"#N/A"}},{"$f":"_xlfn.XLOOKUP(Q250,FeedPrice[Feed],FeedPrice[Price per kg],\"Unknown\",0)*O250","v":{"$error":"#N/A"}},{"$error":"#N/A"},{"$f":"_xlfn.XLOOKUP(O250,LabourFromFeed[Feed Quantity (kg)],LabourFromFeed[No. Labour],\"Out of range\",-1)","v":{"$error":"#N/A"}},{"$f":"T250*OperatingCosts!$C$9","v":{"$error":"#N/A"}},{"$error":"#N/A"}]
[249,{"$f":"IF(A251<='S4-PartialHarvest'!$C$9, B250*EXP((LN((E250/100)+1))*1),)","v":0},{"$f":"_xlfn.XLOOKUP($B251,FeedTables!$C$42:$T$42,FeedTables!$C$44:$T$44,,-1)","v":{"$error":"#N/A"}},{"$f":"_xlfn.XLOOKUP($B251,FeedTables!$C$42:$T$42,FeedTables!$C$45:$T$45,,-1)","v":{"$error":"#N/A"}},{"$f":"_xlfn.XLOOKUP($B251,FeedTables!$C$42:$T$42,FeedTables!$C$46:$T$46,,-1)*_xlfn.XLOOKUP(N250,DensityMultiplier[Biomass kg/m3],DensityMultiplier[Multiplier],,-1)","v":{"$error":"#N/A"}},{"$f":"IF(A251>'S4-PartialHarvest'!$C$9,0,IF(A251='S4-PartialHarvest'!$C$7,(F250-G250-H250)*(1-'S4-PartialHarvest'!$C$8),(F250-G250-H250)))","v":0},{"$f":"IF(A251<='S4-PartialHarvest'!$C$7,('Growth-Model-4'!G250*EXP($Z$7)),IF(A251<'S4-PartialHarvest'!$C$9,('Growth-Model-4'!G250*EXP($AA$7)),0))+IF(A251='S4-PartialHarvest'!$C$7,'Growth-Model-4'!$AA$6,0)","v":0},{"$f":"IF(A251<='S4-PartialHarvest'!$C$9,$AD$6*EXP($AD$7*('S4-PartialHarvest'!C$9-'Growth-Model-4'!A251)),0)","v":0},258.11742751166497,6.3732698151028389E-2,0,34.187862812341081,0,{"$f":"M251/'S4-PartialHarvest'!$C$19","v":0},{"$error":"#N/A"},{"$error":"#N/A"},{"$f":"_xlfn.XLOOKUP(B251,FeedTables!$C$17:$T$17,FeedTables!$C$31:$T$31,,-1)","v":{"$error":"#N/A"}},{"$f":"_xlfn.XLOOKUP(Q251,FeedPrice[Feed],FeedPrice[Price per kg],\"Unknown\",0)*O251","v":{"$error":"#N/A"}},{"$error":"#N/A"},{"$f":"_xlfn.XLOOKUP(O251,LabourFromFeed[Feed Quantity (kg)],LabourFromFeed[No. Labour],\"Out of range\",-1)","v":{"$error":"#N/A"}},{"$f":"T251*OperatingCosts!$C$9","v":{"$error":"#N/A"}},{"$error":"#N/A"}]
[250,{"$f":"IF(A252<='S4-PartialHarvest'!$C$9, B251*EXP((LN((E251/100)+1))*1),)","v":0},{"$f":"_xlfn.XLOOKUP($B252,FeedTables!$C$42:$T$42,FeedTables!$C$44:$T$44,,-1)","v":{"$error":"#N/A"}},{"$f":"_xlfn.XLOOKUP($B252,FeedTables!$C$42:$T$42,FeedTables!$C$45:$T$45,,-1)","v":{"$error":"#N/A"}},{"$f":"_xlfn.XLOOKUP($B252,FeedTables!$C$42:$T$42,FeedTables!$C$46:$T$46,,-1)*_xlfn.XLOOKUP(N251,DensityMultiplier[Biomass kg/m3],DensityMultiplier[Multiplier],,-1)","v":{"$error":"#N/A"}},{"$f":"IF(A252>'S4-PartialHarvest'!$C$9,0,IF(A252='S4-PartialHarvest'!$C$7,(F251-G251-H251)*(1-'S4-PartialHarvest'!$C$8),(F251-G251-H251)))","v":0},{"$f":"IF(A252<='S4-PartialHarvest'!$C$7,('Growth-Model-4'!G251*EXP($Z$7)),IF(A252<'S4-PartialHarvest'!$C$9,('Growth-Model-4'!G251*EXP($AA$7)),0))+IF(A252='S4-PartialHarvest'!$C$7,'Growth-Model-4'!$AA$6,0)","v":0},{"$f":"IF(A252<='S4-PartialHarvest'!$C$9,$AD$6*EXP($AD$7*('S4-PartialHarvest'!C$9-'Growth-Model-4'!A252)),0)","v":0},258.11742751166497,6.3732698151028389E-2,0,34.187862812341081,0,{"$f":"M252/'S4-PartialHarvest'!$C$19","v":0},{"$error":"#N/A"},{"$error":"#N/A"},{"$f":"_xlfn.XLOOKUP(B252,FeedTables!$C$17:$T$17,FeedTables!$C$31:$T$31,,-1)","v":{"$error":"#N/A"}},{"$f":"_xlfn.XLOOKUP(Q252,FeedPrice[Feed],FeedPrice[Price per kg],\"Unknown\",0)*O252","v":{"$error":"#N/A"}},{"$error":"#N/A"},{"$f":"_xlfn.XLOOKUP(O252,LabourFromFeed[Feed Quantity (kg)],LabourFromFeed[No. Labour],\"Out of range\",-1)","v":{"$error":"#N/A"}},{"$f":"T252*OperatingCosts!$C$9","v":{"$error":"#N/A"}},{"$error":"#N/A"}]
[251,{"$f":"IF(A253<='S4-PartialHarvest'!$C$9, B252*EXP((LN((E252/100)+1))*1),)","v":0},{"$f":"_xlfn.XLOOKUP($B253,FeedTables!$C$42:$T$42,FeedTables!$C$44:$T$44,,-1)","v":{"$error":"#N/A"}},{"$f":"_xlfn.XLOOKUP($B253,FeedTables!$C$42:$T$42,FeedTables!$C$45:$T$45,,-1)","v":{"$error":"#N/A"}},{"$f":"_xlfn.XLOOKUP($B253,FeedTables!$C$42:$T$42,FeedTables!$C$46:$T$46,,-1)*_xlfn.XLOOKUP(N252,DensityMultiplier[Biomass kg/m3],DensityMultiplier[Multiplier],,-1)","v":{"$error":"#N/A"}},{"$f":"IF(A253>'S4-PartialHarvest'!$C$9,0,IF(A253='S4-PartialHarvest'!$C$7,(F252-G252-H252)*(1-'S4-PartialHarvest'!$C$8),(F252-G252-H252)))","v":0},{"$f":"IF(A253<='S4-PartialHarvest'!$C$7,('Growth-Model-4'!G252*EXP($Z$7)),IF(A253<'S4-PartialHarvest'!$C$9,('Growth-Model-4'!G252*EXP($AA$7)),0))+IF(A253='S4-PartialHarvest'!$C$7,'Growth-Model-4'!$AA$6,0)","v":0},{"$f":"IF(A253<='S4-PartialHarvest'!$C$9,$AD$6*EXP($AD$7*('S4-PartialHarvest'!C$9-'Growth-Model-4'!A253)),0)","v":0},258.11742751166497,6.3732698151028389E-2,0,34.187862812341081,0,{"$f":"M253/'S4-PartialHarvest'!$C$19","v":0},{"$error":"#N/A"},{"$error":"#N/A"},{"$f":"_xlfn.XLOOKUP(B253,FeedTables!$C$17:$T$17,FeedTables!$C$31:$T$31,,-1)","v":{"$error":"#N/A"}},{"$f":"_xlfn.XLOOKUP(Q253,FeedPrice[Feed],FeedPrice[Price per kg],\"Unknown\",0)*O253","v":{"$error":"#N/A"}},{"$error":"#N/A"},{"$f":"_xlfn.XLOOKUP(O253,LabourFromFeed[Feed Quantity (kg)],LabourFromFeed[No. Labour],\"Out of range\",-1)","v":{"$error":"#N/A"}},{"$f":"T253*OperatingCosts!$C$9","v":{"$error":"#N/A"}},{"$error":"#N/A"}]
[252,{"$f":"IF(A254<='S4-PartialHarvest'!$C$9, B253*EXP((LN((E253/100)+1))*1),)","v":0},{"$f":"_xlfn.XLOOKUP($B254,FeedTables!$C$42:$T$42,FeedTables!$C$44:$T$44,,-1)","v":{"$error":"#N/A"}},{"$f":"_xlfn.XLOOKUP($B254,FeedTables!$C$42:$T$42,FeedTables!$C$45:$T$45,,-1)","v":{"$error":"#N/A"}},{"$f":"_xlfn.XLOOKUP($B254,FeedTables!$C$42:$T$42,FeedTables!$C$46:$T$46,,-1)*_xlfn.XLOOKUP(N253,DensityMultiplier[Biomass kg/m3],DensityMultiplier[Multiplier],,-1)","v":{"$error":"#N/A"}},{"$f":"IF(A254>'S4-PartialHarvest'!$C$9,0,IF(A254='S4-PartialHarvest'!$C$7,(F253-G253-H253)*(1-'S4-PartialHarvest'!$C$8),(F253-G253-H253)))","v":0},{"$f":"IF(A254<='S4-PartialHarvest'!$C$7,('Growth-Model-4'!G253*EXP($Z$7)),IF(A254<'S4-PartialHarvest'!$C$9,('Growth-Model-4'!G253*EXP($AA$7)),0))+IF(A254='S4-PartialHarvest'!$C$7,'Growth-Model-4'!$AA$6,0)","v":0},{"$f":"IF(A254<='S4-PartialHarvest'!$C$9,$AD$6*EXP($AD$7*('S4-PartialHarvest'!C$9-'Growth-Model-4'!A254)),0)","v":0},258.11742751166497,6.3732698151028389E-2,0,34.187862812341081,0,{"$f":"M254/'S4-PartialHarvest'!$C$19","v":0},{"$error":"#N/A"},{"$error":"#N/A"},{"$f":"_xlfn.XLOOKUP(B254,FeedTables!$C$17:$T$17,FeedTables!$C$31:$T$31,,-1)","v":{"$error":"#N/A"}},{"$f":"_xlfn.XLOOKUP(Q254,FeedPrice[Feed],FeedPrice[Price per kg],\"Unknown\",0)*O254","v":{"$error":"#N/A"}},{"$error":"#N/A"},{"$f":"_xlfn.XLOOKUP(O254,LabourFromFeed[Feed Quantity (kg)],LabourFromFeed[No. Labour],\"Out of range\",-1)","v":{"$error":"#N/A"}},{"$f":"T254*OperatingCosts!$C$9","v":{"$error":"#N/A"}},{"$error":"#N/A"}]
[253,{"$f":"IF(A255<='S4-PartialHarvest'!$C$9, B254*EXP((LN((E254/100)+1))*1),)","v":0},{"$f":"_xlfn.XLOOKUP($B255,FeedTables!$C$42:$T$42,FeedTables!$C$44:$T$44,,-1)","v":{"$error":"#N/A"}},{"$f":"_xlfn.XLOOKUP($B255,FeedTables!$C$42:$T$42,FeedTables!$C$45:$T$45,,-1)","v":{"$error":"#N/A"}},{"$f":"_xlfn.XLOOKUP($B255,FeedTables!$C$42:$T$42,FeedTables!$C$46:$T$46,,-1)*_xlfn.XLOOKUP(N254,DensityMultiplier[Biomass kg/m3],DensityMultiplier[Multiplier],,-1)","v":{"$error":"#N/A"}},{"$f":"IF(A255>'S4-PartialHarvest'!$C$9,0,IF(A255='S4-PartialHarvest'!$C$7,(F254-G254-H254)*(1-'S4-PartialHarvest'!$C$8),(F254-G254-H254)))","v":0},{"$f":"IF(A255<='S4-PartialHarvest'!$C$7,('Growth-Model-4'!G254*EXP($Z$7)),IF(A255<'S4-PartialHarvest'!$C$9,('Growth-Model-4'!G254*EXP($AA$7)),0))+IF(A255='S4-PartialHarvest'!$C$7,'Growth-Model-4'!$AA$6,0)","v":0},{"$f":"IF(A255<='S4-PartialHarvest'!$C$9,$AD$6*EXP($AD$7*('S4-PartialHarvest'!C$9-'Growth-Model-4'!A255)),0)","v":0},258.11742751166497,6.3732698151028389E-2,0,34.187862812341081,0,{"$f":"M255/'S4-PartialHarvest'!$C$19","v":0},{"$error":"#N/A"},{"$error":"#N/A"},{"$f":"_xlfn.XLOOKUP(B255,FeedTables!$C$17:$T$17,FeedTables!$C$31:$T$31,,-1)","v":{"$error":"#N/A"}},{"$f":"_xlfn.XLOOKUP(Q255,FeedPrice[Feed],FeedPrice[Price per kg],\"Unknown\",0)*O255","v":{"$error":"#N/A"}},{"$error":"#N/A"},{"$f":"_xlfn.XLOOKUP(O255,LabourFromFeed[Feed Quantity (kg)],LabourFromFeed[No. Labour],\"Out of range\",-1)","v":{"$error":"#N/A"}},{"$f":"T255*OperatingCosts!$C$9","v":{"$error":"#N/A"}},{"$error":"#N/A"}]
[254,{"$f":"IF(A256<='S4-PartialHarvest'!$C$9, B255*EXP((LN((E255/100)+1))*1),)","v":0},{"$f":"_xlfn.XLOOKUP($B256,FeedTables!$C$42:$T$42,FeedTables!$C$44:$T$44,,-1)","v":{"$error":"#N/A"}},{"$f":"_xlfn.XLOOKUP($B256,FeedTables!$C$42:$T$42,FeedTables!$C$45:$T$45,,-1)","v":{"$error":"#N/A"}},{"$f":"_xlfn.XLOOKUP($B256,FeedTables!$C$42:$T$42,FeedTables!$C$46:$T$46,,-1)*_xlfn.XLOOKUP(N255,DensityMultiplier[Biomass kg/m3],DensityMultiplier[Multiplier],,-1)","v":{"$error":"#N/A"}},{"$f":"IF(A256>'S4-PartialHarvest'!$C$9,0,IF(A256='S4-PartialHarvest'!$C$7,(F255-G255-H255)*(1-'S4-PartialHarvest'!$C$8),(F255-G255-H255)))","v":0},{"$f":"IF(A256<='S4-PartialHarvest'!$C$7,('Growth-Model-4'!G255*EXP($Z$7)),IF(A256<'S4-PartialHarvest'!$C$9,('Growth-Model-4'!G255*EXP($AA$7)),0))+IF(A256='S4-PartialHarvest'!$C$7,'Growth-Model-4'!$AA$6,0)","v":0},{"$f":"IF(A256<='S4-PartialHarvest'!$C$9,$AD$6*EXP($AD$7*('S4-PartialHarvest'!C$9-'Growth-Model-4'!A256)),0)","v":0},258.11742751166497,6.3732698151028389E-2,0,34.187862812341081,0,{"$f":"M256/'S4-PartialHarvest'!$C$19","v":0},{"$error":"#N/A"},{"$error":"#N/A"},{"$f":"_xlfn.XLOOKUP(B256,FeedTables!$C$17:$T$17,FeedTables!$C$31:$T$31,,-1)","v":{"$error":"#N/A"}},{"$f":"_xlfn.XLOOKUP(Q256,FeedPrice[Feed],FeedPrice[Price per kg],\"Unknown\",0)*O256","v":{"$error":"#N/A"}},{"$error":"#N/A"},{"$f":"_xlfn.XLOOKUP(O256,LabourFromFeed[Feed Quantity (kg)],LabourFromFeed[No. Labour],\"Out of range\",-1)","v":{"$error":"#N/A"}},{"$f":"T256*OperatingCosts!$C$9","v":{"$error":"#N/A"}},{"$error":"#N/A"}]
[255,{"$f":"IF(A257<='S4-PartialHarvest'!$C$9, B256*EXP((LN((E256/100)+1))*1),)","v":0},{"$f":"_xlfn.XLOOKUP($B257,FeedTables!$C$42:$T$42,FeedTables!$C$44:$T$44,,-1)","v":{"$error":"#N/A"}},{"$f":"_xlfn.XLOOKUP($B257,FeedTables!$C$42:$T$42,FeedTables!$C$45:$T$45,,-1)","v":{"$error":"#N/A"}},{"$f":"_xlfn.XLOOKUP($B257,FeedTables!$C$42:$T$42,FeedTables!$C$46:$T$46,,-1)*_xlfn.XLOOKUP(N256,DensityMultiplier[Biomass kg/m3],DensityMultiplier[Multiplier],,-1)","v":{"$error":"#N/A"}},{"$f":"IF(A257>'S4-PartialHarvest'!$C$9,0,IF(A257='S4-PartialHarvest'!$C$7,(F256-G256-H256)*(1-'S4-PartialHarvest'!$C$8),(F256-G256-H256)))","v":0},{"$f":"IF(A257<='S4-PartialHarvest'!$C$7,('Growth-Model-4'!G256*EXP($Z$7)),IF(A257<'S4-PartialHarvest'!$C$9,('Growth-Model-4'!G256*EXP($AA$7)),0))+IF(A257='S4-PartialHarvest'!$C$7,'Growth-Model-4'!$AA$6,0)","v":0},{"$f":"IF(A257<='S4-PartialHarvest'!$C$9,$AD$6*EXP($AD$7*('S4-PartialHarvest'!C$9-'Growth-Model-4'!A257)),0)","v":0},258.11742751166497,6.3732698151028389E-2,0,34.187862812341081,0,{"$f":"M257/'S4-PartialHarvest'!$C$19","v":0},{"$error":"#N/A"},{"$error":"#N/A"},{"$f":"_xlfn.XLOOKUP(B257,FeedTables!$C$17:$T$17,FeedTables!$C$31:$T$31,,-1)","v":{"$error":"#N/A"}},{"$f":"_xlfn.XLOOKUP(Q257,FeedPrice[Feed],FeedPrice[Price per kg],\"Unknown\",0)*O257","v":{"$error":"#N/A"}},{"$error":"#N/A"},{"$f":"_xlfn.XLOOKUP(O257,LabourFromFeed[Feed Quantity (kg)],LabourFromFeed[No. Labour],\"Out of range\",-1)","v":{"$error":"#N/A"}},{"$f":"T257*OperatingCosts!$C$9","v":{"$error":"#N/A"}},{"$error":"#N/A"}]
[256,{"$f":"IF(A258<='S4-PartialHarvest'!$C$9, B257*EXP((LN((E257/100)+1))*1),)","v":0},{"$f":"_xlfn.XLOOKUP($B258,FeedTables!$C$42:$T$42,FeedTables!$C$44:$T$44,,-1)","v":{"$error":"#N/A"}},{"$f":"_xlfn.XLOOKUP($B258,FeedTables!$C$42:$T$42,FeedTables!$C$45:$T$45,,-1)","v":{"$error":"#N/A"}},{"$f":"_xlfn.XLOOKUP($B258,FeedTables!$C$42:$T$42,FeedTables!$C$46:$T$46,,-1)*_xlfn.XLOOKUP(N257,DensityMultiplier[Biomass kg/m3],DensityMultiplier[Multiplier],,-1)","v":{"$error":"#N/A"}},{"$f":"IF(A258>'S4-PartialHarvest'!$C$9,0,IF(A258='S4-PartialHarvest'!$C$7,(F257-G257-H257)*(1-'S4-PartialHarvest'!$C$8),(F257-G257-H257)))","v":0},{"$f":"IF(A258<='S4-PartialHarvest'!$C$7,('Growth-Model-4'!G257*EXP($Z$7)),IF(A258<'S4-PartialHarvest'!$C$9,('Growth-Model-4'!G257*EXP($AA$7)),0))+IF(A258='S4-PartialHarvest'!$C$7,'Growth-Model-4'!$AA$6,0)","v":0},{"$f":"IF(A258<='S4-PartialHarvest'!$C$9,$AD$6*EXP($AD$7*('S4-PartialHarvest'!C$9-'Growth-Model-4'!A258)),0)","v":0},258.11742751166497,6.3732698151028389E-2,0,34.187862812341081,0,{"$f":"M258/'S4-PartialHarvest'!$C$19","v":0},{"$error":"#N/A"},{"$error":"#N/A"},{"$f":"_xlfn.XLOOKUP(B258,FeedTables!$C$17:$T$17,FeedTables!$C$31:$T$31,,-1)","v":{"$error":"#N/A"}},{"$f":"_xlfn.XLOOKUP(Q258,FeedPrice[Feed],FeedPrice[Price per kg],\"Unknown\",0)*O258","v":{"$error":"#N/A"}},{"$error":"#N/A"},{"$f":"_xlfn.XLOOKUP(O258,LabourFromFeed[Feed Quantity (kg)],LabourFromFeed[No. Labour],\"Out of range\",-1)","v":{"$error":"#N/A"}},{"$f":"T258*OperatingCosts!$C$9","v":{"$error":"#N/A"}},{"$error":"#N/A"}]
[257,{"$f":"IF(A259<='S4-PartialHarvest'!$C$9, B258*EXP((LN((E258/100)+1))*1),)","v":0},{"$f":"_xlfn.XLOOKUP($B259,FeedTables!$C$42:$T$42,FeedTables!$C$44:$T$44,,-1)","v":{"$error":"#N/A"}},{"$f":"_xlfn.XLOOKUP($B259,FeedTables!$C$42:$T$42,FeedTables!$C$45:$T$45,,-1)","v":{"$error":"#N/A"}},{"$f":"_xlfn.XLOOKUP($B259,FeedTables!$C$42:$T$42,FeedTables!$C$46:$T$46,,-1)*_xlfn.XLOOKUP(N258,DensityMultiplier[Biomass kg/m3],DensityMultiplier[Multiplier],,-1)","v":{"$error":"#N/A"}},{"$f":"IF(A259>'S4-PartialHarvest'!$C$9,0,IF(A259='S4-PartialHarvest'!$C$7,(F258-G258-H258)*(1-'S4-PartialHarvest'!$C$8),(F258-G258-H258)))","v":0},{"$f":"IF(A259<='S4-PartialHarvest'!$C$7,('Growth-Model-4'!G258*EXP($Z$7)),IF(A259<'S4-PartialHarvest'!$C$9,('Growth-Model-4'!G258*EXP($AA$7)),0))+IF(A259='S4-PartialHarvest'!$C$7,'Growth-Model-4'!$AA$6,0)","v":0},{"$f":"IF(A259<='S4-PartialHarvest'!$C$9,$AD$6*EXP($AD$7*('S4-PartialHarvest'!C$9-'Growth-Model-4'!A259)),0)","v":0},258.11742751166497,{"$f":"I259/$F$2","v":6.3732698151028389E-2},{"$f":"(G259+H259)*B259","v":0},34.187862812341081,{"$f":"(B259*F259)/1000","v":0},{"$f":"M259/'S4-PartialHarvest'!$C$19","v":0},{"$f":"M259*(C259/100)","v":{"$error":"#N/A"}},{"$error":"#N/A"},{"$f":"_xlfn.XLOOKUP(B259,FeedTables!$C$17:$T$17,FeedTables!$C$31:$T$31,,-1)","v":{"$error":"#N/A"}},{"$f":"_xlfn.XLOOKUP(Q259,FeedPrice[Feed],FeedPrice[Price per kg],\"Unknown\",0)*O259","v":{"$error":"#N/A"}},{"$error":"#N/A"},{"$f":"_xlfn.XLOOKUP(O259,LabourFromFeed[Feed Quantity (kg)],LabourFromFeed[No. Labour],\"Out of range\",-1)","v":{"$error":"#N/A"}},{"$f":"T259*OperatingCosts!$C$9","v":{"$error":"#N/A"}},{"$error":"#N/A"}]
[258,{"$f":"IF(A260<='S4-PartialHarvest'!$C$9, B259*EXP((LN((E259/100)+1))*1),)","v":0},{"$f":"_xlfn.XLOOKUP($B260,FeedTables!$C$42:$T$42,FeedTables!$C$44:$T$44,,-1)","v":{"$error":"#N/A"}},{"$f":"_xlfn.XLOOKUP($B260,FeedTables!$C$42:$T$42,FeedTables!$C$45:$T$45,,-1)","v":{"$error":"#N/A"}},{"$f":"_xlfn.XLOOKUP($B260,FeedTables!$C$42:$T$42,FeedTables!$C$46:$T$46,,-1)*_xlfn.XLOOKUP(N259,DensityMultiplier[Biomass kg/m3],DensityMultiplier[Multiplier],,-1)","v":{"$error":"#N/A"}},{"$f":"IF(A260>'S4-PartialHarvest'!$C$9,0,IF(A260='S4-PartialHarvest'!$C$7,(F259-G259-H259)*(1-'S4-PartialHarvest'!$C$8),(F259-G259-H259)))","v":0},{"$f":"IF(A260<='S4-PartialHarvest'!$C$7,('Growth-Model-4'!G259*EXP($Z$7)),IF(A260<'S4-PartialHarvest'!$C$9,('Growth-Model-4'!G259*EXP($AA$7)),0))+IF(A260='S4-PartialHarvest'!$C$7,'Growth-Model-4'!$AA$6,0)","v":0},{"$f":"IF(A260<='S4-PartialHarvest'!$C$9,$AD$6*EXP($AD$7*('S4-PartialHarvest'!C$9-'Growth-Model-4'!A260)),0)","v":0},{"$f":"I259+G260+H260","v":258.11742751166497},6.3732698151028389E-2,0,{"$f":"(K260/1000)+L259","v":34.187862812341081},0,{"$f":"M260/'S4-PartialHarvest'!$C$19","v":0},{"$error":"#N/A"},{"$f":"O260+P259","v":{"$error":"#N/A"}},{"$f":"_xlfn.XLOOKUP(B260,FeedTables!$C$17:$T$17,FeedTables!$C$31:$T$31,,-1)","v":{"$error":"#N/A"}},{"$f":"_xlfn.XLOOKUP(Q260,FeedPrice[Feed],FeedPrice[Price per kg],\"Unknown\",0)*O260","v":{"$error":"#N/A"}},{"$f":"R260+S259","v":{"$error":"#N/A"}},{"$f":"_xlfn.XLOOKUP(O260,LabourFromFeed[Feed Quantity (kg)],LabourFromFeed[No. Labour],\"Out of range\",-1)","v":{"$error":"#N/A"}},{"$f":"T260*OperatingCosts!$C$9","v":{"$error":"#N/A"}},{"$f":"U260+V259","v":{"$error":"#N/A"}}]
[259,{"$f":"IF(A261<='S4-PartialHarvest'!$C$9, B260*EXP((LN((E260/100)+1))*1),)","v":0},{"$f":"_xlfn.XLOOKUP($B261,FeedTables!$C$42:$T$42,FeedTables!$C$44:$T$44,,-1)","v":{"$error":"#N/A"}},{"$f":"_xlfn.XLOOKUP($B261,FeedTables!$C$42:$T$42,FeedTables!$C$45:$T$45,,-1)","v":{"$error":"#N/A"}},{"$f":"_xlfn.XLOOKUP($B261,FeedTables!$C$42:$T$42,FeedTables!$C$46:$T$46,,-1)*_xlfn.XLOOKUP(N260,DensityMultiplier[Biomass kg/m3],DensityMultiplier[Multiplier],,-1)","v":{"$error":"#N/A"}},{"$f":"IF(A261>'S4-PartialHarvest'!$C$9,0,IF(A261='S4-PartialHarvest'!$C$7,(F260-G260-H260)*(1-'S4-PartialHarvest'!$C$8),(F260-G260-H260)))","v":0},{"$f":"IF(A261<='S4-PartialHarvest'!$C$7,('Growth-Model-4'!G260*EXP($Z$7)),IF(A261<'S4-PartialHarvest'!$C$9,('Growth-Model-4'!G260*EXP($AA$7)),0))+IF(A261='S4-PartialHarvest'!$C$7,'Growth-Model-4'!$AA$6,0)","v":0},{"$f":"IF(A261<='S4-PartialHarvest'!$C$9,$AD$6*EXP($AD$7*('S4-PartialHarvest'!C$9-'Growth-Model-4'!A261)),0)","v":0},258.11742751166497,6.3732698151028389E-2,0,34.187862812341081,0,{"$f":"M261/'S4-PartialHarvest'!$C$19","v":0},{"$error":"#N/A"},{"$error":"#N/A"},{"$f":"_xlfn.XLOOKUP(B261,FeedTables!$C$17:$T$17,FeedTables!$C$31:$T$31,,-1)","v":{"$error":"#N/A"}},{"$f":"_xlfn.XLOOKUP(Q261,FeedPrice[Feed],FeedPrice[Price per kg],\"Unknown\",0)*O261","v":{"$error":"#N/A"}},{"$error":"#N/A"},{"$f":"_xlfn.XLOOKUP(O261,LabourFromFeed[Feed Quantity (kg)],LabourFromFeed[No. Labour],\"Out of range\",-1)","v":{"$error":"#N/A"}},{"$f":"T261*OperatingCosts!$C$9","v":{"$error":"#N/A"}},{"$error":"#N/A"}]
[260,{"$f":"IF(A262<='S4-PartialHarvest'!$C$9, B261*EXP((LN((E261/100)+1))*1),)","v":0},{"$f":"_xlfn.XLOOKUP($B262,FeedTables!$C$42:$T$42,FeedTables!$C$44:$T$44,,-1)","v":{"$error":"#N/A"}},{"$f":"_xlfn.XLOOKUP($B262,FeedTables!$C$42:$T$42,FeedTables!$C$45:$T$45,,-1)","v":{"$error":"#N/A"}},{"$f":"_xlfn.XLOOKUP($B262,FeedTables!$C$42:$T$42,FeedTables!$C$46:$T$46,,-1)*_xlfn.XLOOKUP(N261,DensityMultiplier[Biomass kg/m3],DensityMultiplier[Multiplier],,-1)","v":{"$error":"#N/A"}},{"$f":"IF(A262>'S4-PartialHarvest'!$C$9,0,IF(A262='S4-PartialHarvest'!$C$7,(F261-G261-H261)*(1-'S4-PartialHarvest'!$C$8),(F261-G261-H261)))","v":0},{"$f":"IF(A262<='S4-PartialHarvest'!$C$7,('Growth-Model-4'!G261*EXP($Z$7)),IF(A262<'S4-PartialHarvest'!$C$9,('Growth-Model-4'!G261*EXP($AA$7)),0))+IF(A262='S4-PartialHarvest'!$C$7,'Growth-Model-4'!$AA$6,0)","v":0},{"$f":"IF(A262<='S4-PartialHarvest'!$C$9,$AD$6*EXP($AD$7*('S4-PartialHarvest'!C$9-'Growth-Model-4'!A262)),0)","v":0},258.11742751166497,6.3732698151028389E-2,0,34.187862812341081,0,{"$f":"M262/'S4-PartialHarvest'!$C$19","v":0},{"$error":"#N/A"},{"$error":"#N/A"},{"$f":"_xlfn.XLOOKUP(B262,FeedTables!$C$17:$T$17,FeedTables!$C$31:$T$31,,-1)","v":{"$error":"#N/A"}},{"$f":"_xlfn.XLOOKUP(Q262,FeedPrice[Feed],FeedPrice[Price per kg],\"Unknown\",0)*O262","v":{"$error":"#N/A"}},{"$error":"#N/A"},{"$f":"_xlfn.XLOOKUP(O262,LabourFromFeed[Feed Quantity (kg)],LabourFromFeed[No. Labour],\"Out of range\",-1)","v":{"$error":"#N/A"}},{"$f":"T262*OperatingCosts!$C$9","v":{"$error":"#N/A"}},{"$error":"#N/A"}]
[261,{"$f":"IF(A263<='S4-PartialHarvest'!$C$9, B262*EXP((LN((E262/100)+1))*1),)","v":0},{"$f":"_xlfn.XLOOKUP($B263,FeedTables!$C$42:$T$42,FeedTables!$C$44:$T$44,,-1)","v":{"$error":"#N/A"}},{"$f":"_xlfn.XLOOKUP($B263,FeedTables!$C$42:$T$42,FeedTables!$C$45:$T$45,,-1)","v":{"$error":"#N/A"}},{"$f":"_xlfn.XLOOKUP($B263,FeedTables!$C$42:$T$42,FeedTables!$C$46:$T$46,,-1)*_xlfn.XLOOKUP(N262,DensityMultiplier[Biomass kg/m3],DensityMultiplier[Multiplier],,-1)","v":{"$error":"#N/A"}},{"$f":"IF(A263>'S4-PartialHarvest'!$C$9,0,IF(A263='S4-PartialHarvest'!$C$7,(F262-G262-H262)*(1-'S4-PartialHarvest'!$C$8),(F262-G262-H262)))","v":0},{"$f":"IF(A263<='S4-PartialHarvest'!$C$7,('Growth-Model-4'!G262*EXP($Z$7)),IF(A263<'S4-PartialHarvest'!$C$9,('Growth-Model-4'!G262*EXP($AA$7)),0))+IF(A263='S4-PartialHarvest'!$C$7,'Growth-Model-4'!$AA$6,0)","v":0},{"$f":"IF(A263<='S4-PartialHarvest'!$C$9,$AD$6*EXP($AD$7*('S4-PartialHarvest'!C$9-'Growth-Model-4'!A263)),0)","v":0},258.11742751166497,6.3732698151028389E-2,0,34.187862812341081,0,{"$f":"M263/'S4-PartialHarvest'!$C$19","v":0},{"$error":"#N/A"},{"$error":"#N/A"},{"$f":"_xlfn.XLOOKUP(B263,FeedTables!$C$17:$T$17,FeedTables!$C$31:$T$31,,-1)","v":{"$error":"#N/A"}},{"$f":"_xlfn.XLOOKUP(Q263,FeedPrice[Feed],FeedPrice[Price per kg],\"Unknown\",0)*O263","v":{"$error":"#N/A"}},{"$error":"#N/A"},{"$f":"_xlfn.XLOOKUP(O263,LabourFromFeed[Feed Quantity (kg)],LabourFromFeed[No. Labour],\"Out of range\",-1)","v":{"$error":"#N/A"}},{"$f":"T263*OperatingCosts!$C$9","v":{"$error":"#N/A"}},{"$error":"#N/A"}]
[262,{"$f":"IF(A264<='S4-PartialHarvest'!$C$9, B263*EXP((LN((E263/100)+1))*1),)","v":0},{"$f":"_xlfn.XLOOKUP($B264,FeedTables!$C$42:$T$42,FeedTables!$C$44:$T$44,,-1)","v":{"$error":"#N/A"}},{"$f":"_xlfn.XLOOKUP($B264,FeedTables!$C$42:$T$42,FeedTables!$C$45:$T$45,,-1)","v":{"$error":"#N/A"}},{"$f":"_xlfn.XLOOKUP($B264,FeedTables!$C$42:$T$42,FeedTables!$C$46:$T$46,,-1)*_xlfn.XLOOKUP(N263,DensityMultiplier[Biomass kg/m3],DensityMultiplier[Multiplier],,-1)","v":{"$error":"#N/A"}},{"$f":"IF(A264>'S4-PartialHarvest'!$C$9,0,IF(A264='S4-PartialHarvest'!$C$7,(F263-G263-H263)*(1-'S4-PartialHarvest'!$C$8),(F263-G263-H263)))","v":0},{"$f":"IF(A264<='S4-PartialHarvest'!$C$7,('Growth-Model-4'!G263*EXP($Z$7)),IF(A264<'S4-PartialHarvest'!$C$9,('Growth-Model-4'!G263*EXP($AA$7)),0))+IF(A264='S4-PartialHarvest'!$C$7,'Growth-Model-4'!$AA$6,0)","v":0},{"$f":"IF(A264<='S4-PartialHarvest'!$C$9,$AD$6*EXP($AD$7*('S4-PartialHarvest'!C$9-'Growth-Model-4'!A264)),0)","v":0},258.11742751166497,6.3732698151028389E-2,0,34.187862812341081,0,{"$f":"M264/'S4-PartialHarvest'!$C$19","v":0},{"$error":"#N/A"},{"$error":"#N/A"},{"$f":"_xlfn.XLOOKUP(B264,FeedTables!$C$17:$T$17,FeedTables!$C$31:$T$31,,-1)","v":{"$error":"#N/A"}},{"$f":"_xlfn.XLOOKUP(Q264,FeedPrice[Feed],FeedPrice[Price per kg],\"Unknown\",0)*O264","v":{"$error":"#N/A"}},{"$error":"#N/A"},{"$f":"_xlfn.XLOOKUP(O264,LabourFromFeed[Feed Quantity (kg)],LabourFromFeed[No. Labour],\"Out of range\",-1)","v":{"$error":"#N/A"}},{"$f":"T264*OperatingCosts!$C$9","v":{"$error":"#N/A"}},{"$error":"#N/A"}]
[263,{"$f":"IF(A265<='S4-PartialHarvest'!$C$9, B264*EXP((LN((E264/100)+1))*1),)","v":0},{"$f":"_xlfn.XLOOKUP($B265,FeedTables!$C$42:$T$42,FeedTables!$C$44:$T$44,,-1)","v":{"$error":"#N/A"}},{"$f":"_xlfn.XLOOKUP($B265,FeedTables!$C$42:$T$42,FeedTables!$C$45:$T$45,,-1)","v":{"$error":"#N/A"}},{"$f":"_xlfn.XLOOKUP($B265,FeedTables!$C$42:$T$42,FeedTables!$C$46:$T$46,,-1)*_xlfn.XLOOKUP(N264,DensityMultiplier[Biomass kg/m3],DensityMultiplier[Multiplier],,-1)","v":{"$error":"#N/A"}},{"$f":"IF(A265>'S4-PartialHarvest'!$C$9,0,IF(A265='S4-PartialHarvest'!$C$7,(F264-G264-H264)*(1-'S4-PartialHarvest'!$C$8),(F264-G264-H264)))","v":0},{"$f":"IF(A265<='S4-PartialHarvest'!$C$7,('Growth-Model-4'!G264*EXP($Z$7)),IF(A265<'S4-PartialHarvest'!$C$9,('Growth-Model-4'!G264*EXP($AA$7)),0))+IF(A265='S4-PartialHarvest'!$C$7,'Growth-Model-4'!$AA$6,0)","v":0},{"$f":"IF(A265<='S4-PartialHarvest'!$C$9,$AD$6*EXP($AD$7*('S4-PartialHarvest'!C$9-'Growth-Model-4'!A265)),0)","v":0},258.11742751166497,6.3732698151028389E-2,0,34.187862812341081,0,{"$f":"M265/'S4-PartialHarvest'!$C$19","v":0},{"$error":"#N/A"},{"$error":"#N/A"},{"$f":"_xlfn.XLOOKUP(B265,FeedTables!$C$17:$T$17,FeedTables!$C$31:$T$31,,-1)","v":{"$error":"#N/A"}},{"$f":"_xlfn.XLOOKUP(Q265,FeedPrice[Feed],FeedPrice[Price per kg],\"Unknown\",0)*O265","v":{"$error":"#N/A"}},{"$error":"#N/A"},{"$f":"_xlfn.XLOOKUP(O265,LabourFromFeed[Feed Quantity (kg)],LabourFromFeed[No. Labour],\"Out of range\",-1)","v":{"$error":"#N/A"}},{"$f":"T265*OperatingCosts!$C$9","v":{"$error":"#N/A"}},{"$error":"#N/A"}]
[264,{"$f":"IF(A266<='S4-PartialHarvest'!$C$9, B265*EXP((LN((E265/100)+1))*1),)","v":0},{"$f":"_xlfn.XLOOKUP($B266,FeedTables!$C$42:$T$42,FeedTables!$C$44:$T$44,,-1)","v":{"$error":"#N/A"}},{"$f":"_xlfn.XLOOKUP($B266,FeedTables!$C$42:$T$42,FeedTables!$C$45:$T$45,,-1)","v":{"$error":"#N/A"}},{"$f":"_xlfn.XLOOKUP($B266,FeedTables!$C$42:$T$42,FeedTables!$C$46:$T$46,,-1)*_xlfn.XLOOKUP(N265,DensityMultiplier[Biomass kg/m3],DensityMultiplier[Multiplier],,-1)","v":{"$error":"#N/A"}},{"$f":"IF(A266>'S4-PartialHarvest'!$C$9,0,IF(A266='S4-PartialHarvest'!$C$7,(F265-G265-H265)*(1-'S4-PartialHarvest'!$C$8),(F265-G265-H265)))","v":0},{"$f":"IF(A266<='S4-PartialHarvest'!$C$7,('Growth-Model-4'!G265*EXP($Z$7)),IF(A266<'S4-PartialHarvest'!$C$9,('Growth-Model-4'!G265*EXP($AA$7)),0))+IF(A266='S4-PartialHarvest'!$C$7,'Growth-Model-4'!$AA$6,0)","v":0},{"$f":"IF(A266<='S4-PartialHarvest'!$C$9,$AD$6*EXP($AD$7*('S4-PartialHarvest'!C$9-'Growth-Model-4'!A266)),0)","v":0},258.11742751166497,6.3732698151028389E-2,0,34.187862812341081,0,{"$f":"M266/'S4-PartialHarvest'!$C$19","v":0},{"$error":"#N/A"},{"$error":"#N/A"},{"$f":"_xlfn.XLOOKUP(B266,FeedTables!$C$17:$T$17,FeedTables!$C$31:$T$31,,-1)","v":{"$error":"#N/A"}},{"$f":"_xlfn.XLOOKUP(Q266,FeedPrice[Feed],FeedPrice[Price per kg],\"Unknown\",0)*O266","v":{"$error":"#N/A"}},{"$error":"#N/A"},{"$f":"_xlfn.XLOOKUP(O266,LabourFromFeed[Feed Quantity (kg)],LabourFromFeed[No. Labour],\"Out of range\",-1)","v":{"$error":"#N/A"}},{"$f":"T266*OperatingCosts!$C$9","v":{"$error":"#N/A"}},{"$error":"#N/A"}]
[265,{"$f":"IF(A267<='S4-PartialHarvest'!$C$9, B266*EXP((LN((E266/100)+1))*1),)","v":0},{"$f":"_xlfn.XLOOKUP($B267,FeedTables!$C$42:$T$42,FeedTables!$C$44:$T$44,,-1)","v":{"$error":"#N/A"}},{"$f":"_xlfn.XLOOKUP($B267,FeedTables!$C$42:$T$42,FeedTables!$C$45:$T$45,,-1)","v":{"$error":"#N/A"}},{"$f":"_xlfn.XLOOKUP($B267,FeedTables!$C$42:$T$42,FeedTables!$C$46:$T$46,,-1)*_xlfn.XLOOKUP(N266,DensityMultiplier[Biomass kg/m3],DensityMultiplier[Multiplier],,-1)","v":{"$error":"#N/A"}},{"$f":"IF(A267>'S4-PartialHarvest'!$C$9,0,IF(A267='S4-PartialHarvest'!$C$7,(F266-G266-H266)*(1-'S4-PartialHarvest'!$C$8),(F266-G266-H266)))","v":0},{"$f":"IF(A267<='S4-PartialHarvest'!$C$7,('Growth-Model-4'!G266*EXP($Z$7)),IF(A267<'S4-PartialHarvest'!$C$9,('Growth-Model-4'!G266*EXP($AA$7)),0))+IF(A267='S4-PartialHarvest'!$C$7,'Growth-Model-4'!$AA$6,0)","v":0},{"$f":"IF(A267<='S4-PartialHarvest'!$C$9,$AD$6*EXP($AD$7*('S4-PartialHarvest'!C$9-'Growth-Model-4'!A267)),0)","v":0},258.11742751166497,6.3732698151028389E-2,0,34.187862812341081,0,{"$f":"M267/'S4-PartialHarvest'!$C$19","v":0},{"$error":"#N/A"},{"$error":"#N/A"},{"$f":"_xlfn.XLOOKUP(B267,FeedTables!$C$17:$T$17,FeedTables!$C$31:$T$31,,-1)","v":{"$error":"#N/A"}},{"$f":"_xlfn.XLOOKUP(Q267,FeedPrice[Feed],FeedPrice[Price per kg],\"Unknown\",0)*O267","v":{"$error":"#N/A"}},{"$error":"#N/A"},{"$f":"_xlfn.XLOOKUP(O267,LabourFromFeed[Feed Quantity (kg)],LabourFromFeed[No. Labour],\"Out of range\",-1)","v":{"$error":"#N/A"}},{"$f":"T267*OperatingCosts!$C$9","v":{"$error":"#N/A"}},{"$error":"#N/A"}]
[266,{"$f":"IF(A268<='S4-PartialHarvest'!$C$9, B267*EXP((LN((E267/100)+1))*1),)","v":0},{"$f":"_xlfn.XLOOKUP($B268,FeedTables!$C$42:$T$42,FeedTables!$C$44:$T$44,,-1)","v":{"$error":"#N/A"}},{"$f":"_xlfn.XLOOKUP($B268,FeedTables!$C$42:$T$42,FeedTables!$C$45:$T$45,,-1)","v":{"$error":"#N/A"}},{"$f":"_xlfn.XLOOKUP($B268,FeedTables!$C$42:$T$42,FeedTables!$C$46:$T$46,,-1)*_xlfn.XLOOKUP(N267,DensityMultiplier[Biomass kg/m3],DensityMultiplier[Multiplier],,-1)","v":{"$error":"#N/A"}},{"$f":"IF(A268>'S4-PartialHarvest'!$C$9,0,IF(A268='S4-PartialHarvest'!$C$7,(F267-G267-H267)*(1-'S4-PartialHarvest'!$C$8),(F267-G267-H267)))","v":0},{"$f":"IF(A268<='S4-PartialHarvest'!$C$7,('Growth-Model-4'!G267*EXP($Z$7)),IF(A268<'S4-PartialHarvest'!$C$9,('Growth-Model-4'!G267*EXP($AA$7)),0))+IF(A268='S4-PartialHarvest'!$C$7,'Growth-Model-4'!$AA$6,0)","v":0},{"$f":"IF(A268<='S4-PartialHarvest'!$C$9,$AD$6*EXP($AD$7*('S4-PartialHarvest'!C$9-'Growth-Model-4'!A268)),0)","v":0},258.11742751166497,6.3732698151028389E-2,0,34.187862812341081,0,{"$f":"M268/'S4-PartialHarvest'!$C$19","v":0},{"$error":"#N/A"},{"$error":"#N/A"},{"$f":"_xlfn.XLOOKUP(B268,FeedTables!$C$17:$T$17,FeedTables!$C$31:$T$31,,-1)","v":{"$error":"#N/A"}},{"$f":"_xlfn.XLOOKUP(Q268,FeedPrice[Feed],FeedPrice[Price per kg],\"Unknown\",0)*O268","v":{"$error":"#N/A"}},{"$error":"#N/A"},{"$f":"_xlfn.XLOOKUP(O268,LabourFromFeed[Feed Quantity (kg)],LabourFromFeed[No. Labour],\"Out of range\",-1)","v":{"$error":"#N/A"}},{"$f":"T268*OperatingCosts!$C$9","v":{"$error":"#N/A"}},{"$error":"#N/A"}]
[267,{"$f":"IF(A269<='S4-PartialHarvest'!$C$9, B268*EXP((LN((E268/100)+1))*1),)","v":0},{"$f":"_xlfn.XLOOKUP($B269,FeedTables!$C$42:$T$42,FeedTables!$C$44:$T$44,,-1)","v":{"$error":"#N/A"}},{"$f":"_xlfn.XLOOKUP($B269,FeedTables!$C$42:$T$42,FeedTables!$C$45:$T$45,,-1)","v":{"$error":"#N/A"}},{"$f":"_xlfn.XLOOKUP($B269,FeedTables!$C$42:$T$42,FeedTables!$C$46:$T$46,,-1)*_xlfn.XLOOKUP(N268,DensityMultiplier[Biomass kg/m3],DensityMultiplier[Multiplier],,-1)","v":{"$error":"#N/A"}},{"$f":"IF(A269>'S4-PartialHarvest'!$C$9,0,IF(A269='S4-PartialHarvest'!$C$7,(F268-G268-H268)*(1-'S4-PartialHarvest'!$C$8),(F268-G268-H268)))","v":0},{"$f":"IF(A269<='S4-PartialHarvest'!$C$7,('Growth-Model-4'!G268*EXP($Z$7)),IF(A269<'S4-PartialHarvest'!$C$9,('Growth-Model-4'!G268*EXP($AA$7)),0))+IF(A269='S4-PartialHarvest'!$C$7,'Growth-Model-4'!$AA$6,0)","v":0},{"$f":"IF(A269<='S4-PartialHarvest'!$C$9,$AD$6*EXP($AD$7*('S4-PartialHarvest'!C$9-'Growth-Model-4'!A269)),0)","v":0},258.11742751166497,6.3732698151028389E-2,0,34.187862812341081,0,{"$f":"M269/'S4-PartialHarvest'!$C$19","v":0},{"$error":"#N/A"},{"$error":"#N/A"},{"$f":"_xlfn.XLOOKUP(B269,FeedTables!$C$17:$T$17,FeedTables!$C$31:$T$31,,-1)","v":{"$error":"#N/A"}},{"$f":"_xlfn.XLOOKUP(Q269,FeedPrice[Feed],FeedPrice[Price per kg],\"Unknown\",0)*O269","v":{"$error":"#N/A"}},{"$error":"#N/A"},{"$f":"_xlfn.XLOOKUP(O269,LabourFromFeed[Feed Quantity (kg)],LabourFromFeed[No. Labour],\"Out of range\",-1)","v":{"$error":"#N/A"}},{"$f":"T269*OperatingCosts!$C$9","v":{"$error":"#N/A"}},{"$error":"#N/A"}]
[268,{"$f":"IF(A270<='S4-PartialHarvest'!$C$9, B269*EXP((LN((E269/100)+1))*1),)","v":0},{"$f":"_xlfn.XLOOKUP($B270,FeedTables!$C$42:$T$42,FeedTables!$C$44:$T$44,,-1)","v":{"$error":"#N/A"}},{"$f":"_xlfn.XLOOKUP($B270,FeedTables!$C$42:$T$42,FeedTables!$C$45:$T$45,,-1)","v":{"$error":"#N/A"}},{"$f":"_xlfn.XLOOKUP($B270,FeedTables!$C$42:$T$42,FeedTables!$C$46:$T$46,,-1)*_xlfn.XLOOKUP(N269,DensityMultiplier[Biomass kg/m3],DensityMultiplier[Multiplier],,-1)","v":{"$error":"#N/A"}},{"$f":"IF(A270>'S4-PartialHarvest'!$C$9,0,IF(A270='S4-PartialHarvest'!$C$7,(F269-G269-H269)*(1-'S4-PartialHarvest'!$C$8),(F269-G269-H269)))","v":0},{"$f":"IF(A270<='S4-PartialHarvest'!$C$7,('Growth-Model-4'!G269*EXP($Z$7)),IF(A270<'S4-PartialHarvest'!$C$9,('Growth-Model-4'!G269*EXP($AA$7)),0))+IF(A270='S4-PartialHarvest'!$C$7,'Growth-Model-4'!$AA$6,0)","v":0},{"$f":"IF(A270<='S4-PartialHarvest'!$C$9,$AD$6*EXP($AD$7*('S4-PartialHarvest'!C$9-'Growth-Model-4'!A270)),0)","v":0},258.11742751166497,6.3732698151028389E-2,0,34.187862812341081,0,{"$f":"M270/'S4-PartialHarvest'!$C$19","v":0},{"$error":"#N/A"},{"$error":"#N/A"},{"$f":"_xlfn.XLOOKUP(B270,FeedTables!$C$17:$T$17,FeedTables!$C$31:$T$31,,-1)","v":{"$error":"#N/A"}},{"$f":"_xlfn.XLOOKUP(Q270,FeedPrice[Feed],FeedPrice[Price per kg],\"Unknown\",0)*O270","v":{"$error":"#N/A"}},{"$error":"#N/A"},{"$f":"_xlfn.XLOOKUP(O270,LabourFromFeed[Feed Quantity (kg)],LabourFromFeed[No. Labour],\"Out of range\",-1)","v":{"$error":"#N/A"}},{"$f":"T270*OperatingCosts!$C$9","v":{"$error":"#N/A"}},{"$error":"#N/A"}]
[269,{"$f":"IF(A271<='S4-PartialHarvest'!$C$9, B270*EXP((LN((E270/100)+1))*1),)","v":0},{"$f":"_xlfn.XLOOKUP($B271,FeedTables!$C$42:$T$42,FeedTables!$C$44:$T$44,,-1)","v":{"$error":"#N/A"}},{"$f":"_xlfn.XLOOKUP($B271,FeedTables!$C$42:$T$42,FeedTables!$C$45:$T$45,,-1)","v":{"$error":"#N/A"}},{"$f":"_xlfn.XLOOKUP($B271,FeedTables!$C$42:$T$42,FeedTables!$C$46:$T$46,,-1)*_xlfn.XLOOKUP(N270,DensityMultiplier[Biomass kg/m3],DensityMultiplier[Multiplier],,-1)","v":{"$error":"#N/A"}},{"$f":"IF(A271>'S4-PartialHarvest'!$C$9,0,IF(A271='S4-PartialHarvest'!$C$7,(F270-G270-H270)*(1-'S4-PartialHarvest'!$C$8),(F270-G270-H270)))","v":0},{"$f":"IF(A271<='S4-PartialHarvest'!$C$7,('Growth-Model-4'!G270*EXP($Z$7)),IF(A271<'S4-PartialHarvest'!$C$9,('Growth-Model-4'!G270*EXP($AA$7)),0))+IF(A271='S4-PartialHarvest'!$C$7,'Growth-Model-4'!$AA$6,0)","v":0},{"$f":"IF(A271<='S4-PartialHarvest'!$C$9,$AD$6*EXP($AD$7*('S4-PartialHarvest'!C$9-'Growth-Model-4'!A271)),0)","v":0},258.11742751166497,6.3732698151028389E-2,0,34.187862812341081,0,{"$f":"M271/'S4-PartialHarvest'!$C$19","v":0},{"$error":"#N/A"},{"$error":"#N/A"},{"$f":"_xlfn.XLOOKUP(B271,FeedTables!$C$17:$T$17,FeedTables!$C$31:$T$31,,-1)","v":{"$error":"#N/A"}},{"$f":"_xlfn.XLOOKUP(Q271,FeedPrice[Feed],FeedPrice[Price per kg],\"Unknown\",0)*O271","v":{"$error":"#N/A"}},{"$error":"#N/A"},{"$f":"_xlfn.XLOOKUP(O271,LabourFromFeed[Feed Quantity (kg)],LabourFromFeed[No. Labour],\"Out of range\",-1)","v":{"$error":"#N/A"}},{"$f":"T271*OperatingCosts!$C$9","v":{"$error":"#N/A"}},{"$error":"#N/A"}]
[270,{"$f":"IF(A272<='S4-PartialHarvest'!$C$9, B271*EXP((LN((E271/100)+1))*1),)","v":0},{"$f":"_xlfn.XLOOKUP($B272,FeedTables!$C$42:$T$42,FeedTables!$C$44:$T$44,,-1)","v":{"$error":"#N/A"}},{"$f":"_xlfn.XLOOKUP($B272,FeedTables!$C$42:$T$42,FeedTables!$C$45:$T$45,,-1)","v":{"$error":"#N/A"}},{"$f":"_xlfn.XLOOKUP($B272,FeedTables!$C$42:$T$42,FeedTables!$C$46:$T$46,,-1)*_xlfn.XLOOKUP(N271,DensityMultiplier[Biomass kg/m3],DensityMultiplier[Multiplier],,-1)","v":{"$error":"#N/A"}},{"$f":"IF(A272>'S4-PartialHarvest'!$C$9,0,IF(A272='S4-PartialHarvest'!$C$7,(F271-G271-H271)*(1-'S4-PartialHarvest'!$C$8),(F271-G271-H271)))","v":0},{"$f":"IF(A272<='S4-PartialHarvest'!$C$7,('Growth-Model-4'!G271*EXP($Z$7)),IF(A272<'S4-PartialHarvest'!$C$9,('Growth-Model-4'!G271*EXP($AA$7)),0))+IF(A272='S4-PartialHarvest'!$C$7,'Growth-Model-4'!$AA$6,0)","v":0},{"$f":"IF(A272<='S4-PartialHarvest'!$C$9,$AD$6*EXP($AD$7*('S4-PartialHarvest'!C$9-'Growth-Model-4'!A272)),0)","v":0},258.11742751166497,6.3732698151028389E-2,0,34.187862812341081,0,{"$f":"M272/'S4-PartialHarvest'!$C$19","v":0},{"$error":"#N/A"},{"$error":"#N/A"},{"$f":"_xlfn.XLOOKUP(B272,FeedTables!$C$17:$T$17,FeedTables!$C$31:$T$31,,-1)","v":{"$error":"#N/A"}},{"$f":"_xlfn.XLOOKUP(Q272,FeedPrice[Feed],FeedPrice[Price per kg],\"Unknown\",0)*O272","v":{"$error":"#N/A"}},{"$error":"#N/A"},{"$f":"_xlfn.XLOOKUP(O272,LabourFromFeed[Feed Quantity (kg)],LabourFromFeed[No. Labour],\"Out of range\",-1)","v":{"$error":"#N/A"}},{"$f":"T272*OperatingCosts!$C$9","v":{"$error":"#N/A"}},{"$error":"#N/A"}]
[271,{"$f":"IF(A273<='S4-PartialHarvest'!$C$9, B272*EXP((LN((E272/100)+1))*1),)","v":0},{"$f":"_xlfn.XLOOKUP($B273,FeedTables!$C$42:$T$42,FeedTables!$C$44:$T$44,,-1)","v":{"$error":"#N/A"}},{"$f":"_xlfn.XLOOKUP($B273,FeedTables!$C$42:$T$42,FeedTables!$C$45:$T$45,,-1)","v":{"$error":"#N/A"}},{"$f":"_xlfn.XLOOKUP($B273,FeedTables!$C$42:$T$42,FeedTables!$C$46:$T$46,,-1)*_xlfn.XLOOKUP(N272,DensityMultiplier[Biomass kg/m3],DensityMultiplier[Multiplier],,-1)","v":{"$error":"#N/A"}},{"$f":"IF(A273>'S4-PartialHarvest'!$C$9,0,IF(A273='S4-PartialHarvest'!$C$7,(F272-G272-H272)*(1-'S4-PartialHarvest'!$C$8),(F272-G272-H272)))","v":0},{"$f":"IF(A273<='S4-PartialHarvest'!$C$7,('Growth-Model-4'!G272*EXP($Z$7)),IF(A273<'S4-PartialHarvest'!$C$9,('Growth-Model-4'!G272*EXP($AA$7)),0))+IF(A273='S4-PartialHarvest'!$C$7,'Growth-Model-4'!$AA$6,0)","v":0},{"$f":"IF(A273<='S4-PartialHarvest'!$C$9,$AD$6*EXP($AD$7*('S4-PartialHarvest'!C$9-'Growth-Model-4'!A273)),0)","v":0},258.11742751166497,6.3732698151028389E-2,0,34.187862812341081,0,{"$f":"M273/'S4-PartialHarvest'!$C$19","v":0},{"$error":"#N/A"},{"$error":"#N/A"},{"$f":"_xlfn.XLOOKUP(B273,FeedTables!$C$17:$T$17,FeedTables!$C$31:$T$31,,-1)","v":{"$error":"#N/A"}},{"$f":"_xlfn.XLOOKUP(Q273,FeedPrice[Feed],FeedPrice[Price per kg],\"Unknown\",0)*O273","v":{"$error":"#N/A"}},{"$error":"#N/A"},{"$f":"_xlfn.XLOOKUP(O273,LabourFromFeed[Feed Quantity (kg)],LabourFromFeed[No. Labour],\"Out of range\",-1)","v":{"$error":"#N/A"}},{"$f":"T273*OperatingCosts!$C$9","v":{"$error":"#N/A"}},{"$error":"#N/A"}]
[272,{"$f":"IF(A274<='S4-PartialHarvest'!$C$9, B273*EXP((LN((E273/100)+1))*1),)","v":0},{"$f":"_xlfn.XLOOKUP($B274,FeedTables!$C$42:$T$42,FeedTables!$C$44:$T$44,,-1)","v":{"$error":"#N/A"}},{"$f":"_xlfn.XLOOKUP($B274,FeedTables!$C$42:$T$42,FeedTables!$C$45:$T$45,,-1)","v":{"$error":"#N/A"}},{"$f":"_xlfn.XLOOKUP($B274,FeedTables!$C$42:$T$42,FeedTables!$C$46:$T$46,,-1)*_xlfn.XLOOKUP(N273,DensityMultiplier[Biomass kg/m3],DensityMultiplier[Multiplier],,-1)","v":{"$error":"#N/A"}},{"$f":"IF(A274>'S4-PartialHarvest'!$C$9,0,IF(A274='S4-PartialHarvest'!$C$7,(F273-G273-H273)*(1-'S4-PartialHarvest'!$C$8),(F273-G273-H273)))","v":0},{"$f":"IF(A274<='S4-PartialHarvest'!$C$7,('Growth-Model-4'!G273*EXP($Z$7)),IF(A274<'S4-PartialHarvest'!$C$9,('Growth-Model-4'!G273*EXP($AA$7)),0))+IF(A274='S4-PartialHarvest'!$C$7,'Growth-Model-4'!$AA$6,0)","v":0},{"$f":"IF(A274<='S4-PartialHarvest'!$C$9,$AD$6*EXP($AD$7*('S4-PartialHarvest'!C$9-'Growth-Model-4'!A274)),0)","v":0},258.11742751166497,6.3732698151028389E-2,0,34.187862812341081,0,{"$f":"M274/'S4-PartialHarvest'!$C$19","v":0},{"$error":"#N/A"},{"$error":"#N/A"},{"$f":"_xlfn.XLOOKUP(B274,FeedTables!$C$17:$T$17,FeedTables!$C$31:$T$31,,-1)","v":{"$error":"#N/A"}},{"$f":"_xlfn.XLOOKUP(Q274,FeedPrice[Feed],FeedPrice[Price per kg],\"Unknown\",0)*O274","v":{"$error":"#N/A"}},{"$error":"#N/A"},{"$f":"_xlfn.XLOOKUP(O274,LabourFromFeed[Feed Quantity (kg)],LabourFromFeed[No. Labour],\"Out of range\",-1)","v":{"$error":"#N/A"}},{"$f":"T274*OperatingCosts!$C$9","v":{"$error":"#N/A"}},{"$error":"#N/A"}]
[273,{"$f":"IF(A275<='S4-PartialHarvest'!$C$9, B274*EXP((LN((E274/100)+1))*1),)","v":0},{"$f":"_xlfn.XLOOKUP($B275,FeedTables!$C$42:$T$42,FeedTables!$C$44:$T$44,,-1)","v":{"$error":"#N/A"}},{"$f":"_xlfn.XLOOKUP($B275,FeedTables!$C$42:$T$42,FeedTables!$C$45:$T$45,,-1)","v":{"$error":"#N/A"}},{"$f":"_xlfn.XLOOKUP($B275,FeedTables!$C$42:$T$42,FeedTables!$C$46:$T$46,,-1)*_xlfn.XLOOKUP(N274,DensityMultiplier[Biomass kg/m3],DensityMultiplier[Multiplier],,-1)","v":{"$error":"#N/A"}},{"$f":"IF(A275>'S4-PartialHarvest'!$C$9,0,IF(A275='S4-PartialHarvest'!$C$7,(F274-G274-H274)*(1-'S4-PartialHarvest'!$C$8),(F274-G274-H274)))","v":0},{"$f":"IF(A275<='S4-PartialHarvest'!$C$7,('Growth-Model-4'!G274*EXP($Z$7)),IF(A275<'S4-PartialHarvest'!$C$9,('Growth-Model-4'!G274*EXP($AA$7)),0))+IF(A275='S4-PartialHarvest'!$C$7,'Growth-Model-4'!$AA$6,0)","v":0},{"$f":"IF(A275<='S4-PartialHarvest'!$C$9,$AD$6*EXP($AD$7*('S4-PartialHarvest'!C$9-'Growth-Model-4'!A275)),0)","v":0},258.11742751166497,6.3732698151028389E-2,0,34.187862812341081,0,{"$f":"M275/'S4-PartialHarvest'!$C$19","v":0},{"$error":"#N/A"},{"$error":"#N/A"},{"$f":"_xlfn.XLOOKUP(B275,FeedTables!$C$17:$T$17,FeedTables!$C$31:$T$31,,-1)","v":{"$error":"#N/A"}},{"$f":"_xlfn.XLOOKUP(Q275,FeedPrice[Feed],FeedPrice[Price per kg],\"Unknown\",0)*O275","v":{"$error":"#N/A"}},{"$error":"#N/A"},{"$f":"_xlfn.XLOOKUP(O275,LabourFromFeed[Feed Quantity (kg)],LabourFromFeed[No. Labour],\"Out of range\",-1)","v":{"$error":"#N/A"}},{"$f":"T275*OperatingCosts!$C$9","v":{"$error":"#N/A"}},{"$error":"#N/A"}]
[274,{"$f":"IF(A276<='S4-PartialHarvest'!$C$9, B275*EXP((LN((E275/100)+1))*1),)","v":0},{"$f":"_xlfn.XLOOKUP($B276,FeedTables!$C$42:$T$42,FeedTables!$C$44:$T$44,,-1)","v":{"$error":"#N/A"}},{"$f":"_xlfn.XLOOKUP($B276,FeedTables!$C$42:$T$42,FeedTables!$C$45:$T$45,,-1)","v":{"$error":"#N/A"}},{"$f":"_xlfn.XLOOKUP($B276,FeedTables!$C$42:$T$42,FeedTables!$C$46:$T$46,,-1)*_xlfn.XLOOKUP(N275,DensityMultiplier[Biomass kg/m3],DensityMultiplier[Multiplier],,-1)","v":{"$error":"#N/A"}},{"$f":"IF(A276>'S4-PartialHarvest'!$C$9,0,IF(A276='S4-PartialHarvest'!$C$7,(F275-G275-H275)*(1-'S4-PartialHarvest'!$C$8),(F275-G275-H275)))","v":0},{"$f":"IF(A276<='S4-PartialHarvest'!$C$7,('Growth-Model-4'!G275*EXP($Z$7)),IF(A276<'S4-PartialHarvest'!$C$9,('Growth-Model-4'!G275*EXP($AA$7)),0))+IF(A276='S4-PartialHarvest'!$C$7,'Growth-Model-4'!$AA$6,0)","v":0},{"$f":"IF(A276<='S4-PartialHarvest'!$C$9,$AD$6*EXP($AD$7*('S4-PartialHarvest'!C$9-'Growth-Model-4'!A276)),0)","v":0},258.11742751166497,6.3732698151028389E-2,0,34.187862812341081,0,{"$f":"M276/'S4-PartialHarvest'!$C$19","v":0},{"$error":"#N/A"},{"$error":"#N/A"},{"$f":"_xlfn.XLOOKUP(B276,FeedTables!$C$17:$T$17,FeedTables!$C$31:$T$31,,-1)","v":{"$error":"#N/A"}},{"$f":"_xlfn.XLOOKUP(Q276,FeedPrice[Feed],FeedPrice[Price per kg],\"Unknown\",0)*O276","v":{"$error":"#N/A"}},{"$error":"#N/A"},{"$f":"_xlfn.XLOOKUP(O276,LabourFromFeed[Feed Quantity (kg)],LabourFromFeed[No. Labour],\"Out of range\",-1)","v":{"$error":"#N/A"}},{"$f":"T276*OperatingCosts!$C$9","v":{"$error":"#N/A"}},{"$error":"#N/A"}]
[275,{"$f":"IF(A277<='S4-PartialHarvest'!$C$9, B276*EXP((LN((E276/100)+1))*1),)","v":0},{"$f":"_xlfn.XLOOKUP($B277,FeedTables!$C$42:$T$42,FeedTables!$C$44:$T$44,,-1)","v":{"$error":"#N/A"}},{"$f":"_xlfn.XLOOKUP($B277,FeedTables!$C$42:$T$42,FeedTables!$C$45:$T$45,,-1)","v":{"$error":"#N/A"}},{"$f":"_xlfn.XLOOKUP($B277,FeedTables!$C$42:$T$42,FeedTables!$C$46:$T$46,,-1)*_xlfn.XLOOKUP(N276,DensityMultiplier[Biomass kg/m3],DensityMultiplier[Multiplier],,-1)","v":{"$error":"#N/A"}},{"$f":"IF(A277>'S4-PartialHarvest'!$C$9,0,IF(A277='S4-PartialHarvest'!$C$7,(F276-G276-H276)*(1-'S4-PartialHarvest'!$C$8),(F276-G276-H276)))","v":0},{"$f":"IF(A277<='S4-PartialHarvest'!$C$7,('Growth-Model-4'!G276*EXP($Z$7)),IF(A277<'S4-PartialHarvest'!$C$9,('Growth-Model-4'!G276*EXP($AA$7)),0))+IF(A277='S4-PartialHarvest'!$C$7,'Growth-Model-4'!$AA$6,0)","v":0},{"$f":"IF(A277<='S4-PartialHarvest'!$C$9,$AD$6*EXP($AD$7*('S4-PartialHarvest'!C$9-'Growth-Model-4'!A277)),0)","v":0},258.11742751166497,6.3732698151028389E-2,0,34.187862812341081,0,{"$f":"M277/'S4-PartialHarvest'!$C$19","v":0},{"$error":"#N/A"},{"$error":"#N/A"},{"$f":"_xlfn.XLOOKUP(B277,FeedTables!$C$17:$T$17,FeedTables!$C$31:$T$31,,-1)","v":{"$error":"#N/A"}},{"$f":"_xlfn.XLOOKUP(Q277,FeedPrice[Feed],FeedPrice[Price per kg],\"Unknown\",0)*O277","v":{"$error":"#N/A"}},{"$error":"#N/A"},{"$f":"_xlfn.XLOOKUP(O277,LabourFromFeed[Feed Quantity (kg)],LabourFromFeed[No. Labour],\"Out of range\",-1)","v":{"$error":"#N/A"}},{"$f":"T277*OperatingCosts!$C$9","v":{"$error":"#N/A"}},{"$error":"#N/A"}]
[276,{"$f":"IF(A278<='S4-PartialHarvest'!$C$9, B277*EXP((LN((E277/100)+1))*1),)","v":0},{"$f":"_xlfn.XLOOKUP($B278,FeedTables!$C$42:$T$42,FeedTables!$C$44:$T$44,,-1)","v":{"$error":"#N/A"}},{"$f":"_xlfn.XLOOKUP($B278,FeedTables!$C$42:$T$42,FeedTables!$C$45:$T$45,,-1)","v":{"$error":"#N/A"}},{"$f":"_xlfn.XLOOKUP($B278,FeedTables!$C$42:$T$42,FeedTables!$C$46:$T$46,,-1)*_xlfn.XLOOKUP(N277,DensityMultiplier[Biomass kg/m3],DensityMultiplier[Multiplier],,-1)","v":{"$error":"#N/A"}},{"$f":"IF(A278>'S4-PartialHarvest'!$C$9,0,IF(A278='S4-PartialHarvest'!$C$7,(F277-G277-H277)*(1-'S4-PartialHarvest'!$C$8),(F277-G277-H277)))","v":0},{"$f":"IF(A278<='S4-PartialHarvest'!$C$7,('Growth-Model-4'!G277*EXP($Z$7)),IF(A278<'S4-PartialHarvest'!$C$9,('Growth-Model-4'!G277*EXP($AA$7)),0))+IF(A278='S4-PartialHarvest'!$C$7,'Growth-Model-4'!$AA$6,0)","v":0},{"$f":"IF(A278<='S4-PartialHarvest'!$C$9,$AD$6*EXP($AD$7*('S4-PartialHarvest'!C$9-'Growth-Model-4'!A278)),0)","v":0},258.11742751166497,6.3732698151028389E-2,0,34.187862812341081,0,{"$f":"M278/'S4-PartialHarvest'!$C$19","v":0},{"$error":"#N/A"},{"$error":"#N/A"},{"$f":"_xlfn.XLOOKUP(B278,FeedTables!$C$17:$T$17,FeedTables!$C$31:$T$31,,-1)","v":{"$error":"#N/A"}},{"$f":"_xlfn.XLOOKUP(Q278,FeedPrice[Feed],FeedPrice[Price per kg],\"Unknown\",0)*O278","v":{"$error":"#N/A"}},{"$error":"#N/A"},{"$f":"_xlfn.XLOOKUP(O278,LabourFromFeed[Feed Quantity (kg)],LabourFromFeed[No. Labour],\"Out of range\",-1)","v":{"$error":"#N/A"}},{"$f":"T278*OperatingCosts!$C$9","v":{"$error":"#N/A"}},{"$error":"#N/A"}]
[277,{"$f":"IF(A279<='S4-PartialHarvest'!$C$9, B278*EXP((LN((E278/100)+1))*1),)","v":0},{"$f":"_xlfn.XLOOKUP($B279,FeedTables!$C$42:$T$42,FeedTables!$C$44:$T$44,,-1)","v":{"$error":"#N/A"}},{"$f":"_xlfn.XLOOKUP($B279,FeedTables!$C$42:$T$42,FeedTables!$C$45:$T$45,,-1)","v":{"$error":"#N/A"}},{"$f":"_xlfn.XLOOKUP($B279,FeedTables!$C$42:$T$42,FeedTables!$C$46:$T$46,,-1)*_xlfn.XLOOKUP(N278,DensityMultiplier[Biomass kg/m3],DensityMultiplier[Multiplier],,-1)","v":{"$error":"#N/A"}},{"$f":"IF(A279>'S4-PartialHarvest'!$C$9,0,IF(A279='S4-PartialHarvest'!$C$7,(F278-G278-H278)*(1-'S4-PartialHarvest'!$C$8),(F278-G278-H278)))","v":0},{"$f":"IF(A279<='S4-PartialHarvest'!$C$7,('Growth-Model-4'!G278*EXP($Z$7)),IF(A279<'S4-PartialHarvest'!$C$9,('Growth-Model-4'!G278*EXP($AA$7)),0))+IF(A279='S4-PartialHarvest'!$C$7,'Growth-Model-4'!$AA$6,0)","v":0},{"$f":"IF(A279<='S4-PartialHarvest'!$C$9,$AD$6*EXP($AD$7*('S4-PartialHarvest'!C$9-'Growth-Model-4'!A279)),0)","v":0},258.11742751166497,6.3732698151028389E-2,0,34.187862812341081,0,{"$f":"M279/'S4-PartialHarvest'!$C$19","v":0},{"$error":"#N/A"},{"$error":"#N/A"},{"$f":"_xlfn.XLOOKUP(B279,FeedTables!$C$17:$T$17,FeedTables!$C$31:$T$31,,-1)","v":{"$error":"#N/A"}},{"$f":"_xlfn.XLOOKUP(Q279,FeedPrice[Feed],FeedPrice[Price per kg],\"Unknown\",0)*O279","v":{"$error":"#N/A"}},{"$error":"#N/A"},{"$f":"_xlfn.XLOOKUP(O279,LabourFromFeed[Feed Quantity (kg)],LabourFromFeed[No. Labour],\"Out of range\",-1)","v":{"$error":"#N/A"}},{"$f":"T279*OperatingCosts!$C$9","v":{"$error":"#N/A"}},{"$error":"#N/A"}]
[278,{"$f":"IF(A280<='S4-PartialHarvest'!$C$9, B279*EXP((LN((E279/100)+1))*1),)","v":0},{"$f":"_xlfn.XLOOKUP($B280,FeedTables!$C$42:$T$42,FeedTables!$C$44:$T$44,,-1)","v":{"$error":"#N/A"}},{"$f":"_xlfn.XLOOKUP($B280,FeedTables!$C$42:$T$42,FeedTables!$C$45:$T$45,,-1)","v":{"$error":"#N/A"}},{"$f":"_xlfn.XLOOKUP($B280,FeedTables!$C$42:$T$42,FeedTables!$C$46:$T$46,,-1)*_xlfn.XLOOKUP(N279,DensityMultiplier[Biomass kg/m3],DensityMultiplier[Multiplier],,-1)","v":{"$error":"#N/A"}},{"$f":"IF(A280>'S4-PartialHarvest'!$C$9,0,IF(A280='S4-PartialHarvest'!$C$7,(F279-G279-H279)*(1-'S4-PartialHarvest'!$C$8),(F279-G279-H279)))","v":0},{"$f":"IF(A280<='S4-PartialHarvest'!$C$7,('Growth-Model-4'!G279*EXP($Z$7)),IF(A280<'S4-PartialHarvest'!$C$9,('Growth-Model-4'!G279*EXP($AA$7)),0))+IF(A280='S4-PartialHarvest'!$C$7,'Growth-Model-4'!$AA$6,0)","v":0},{"$f":"IF(A280<='S4-PartialHarvest'!$C$9,$AD$6*EXP($AD$7*('S4-PartialHarvest'!C$9-'Growth-Model-4'!A280)),0)","v":0},258.11742751166497,6.3732698151028389E-2,0,34.187862812341081,0,{"$f":"M280/'S4-PartialHarvest'!$C$19","v":0},{"$error":"#N/A"},{"$error":"#N/A"},{"$f":"_xlfn.XLOOKUP(B280,FeedTables!$C$17:$T$17,FeedTables!$C$31:$T$31,,-1)","v":{"$error":"#N/A"}},{"$f":"_xlfn.XLOOKUP(Q280,FeedPrice[Feed],FeedPrice[Price per kg],\"Unknown\",0)*O280","v":{"$error":"#N/A"}},{"$error":"#N/A"},{"$f":"_xlfn.XLOOKUP(O280,LabourFromFeed[Feed Quantity (kg)],LabourFromFeed[No. Labour],\"Out of range\",-1)","v":{"$error":"#N/A"}},{"$f":"T280*OperatingCosts!$C$9","v":{"$error":"#N/A"}},{"$error":"#N/A"}]
[279,{"$f":"IF(A281<='S4-PartialHarvest'!$C$9, B280*EXP((LN((E280/100)+1))*1),)","v":0},{"$f":"_xlfn.XLOOKUP($B281,FeedTables!$C$42:$T$42,FeedTables!$C$44:$T$44,,-1)","v":{"$error":"#N/A"}},{"$f":"_xlfn.XLOOKUP($B281,FeedTables!$C$42:$T$42,FeedTables!$C$45:$T$45,,-1)","v":{"$error":"#N/A"}},{"$f":"_xlfn.XLOOKUP($B281,FeedTables!$C$42:$T$42,FeedTables!$C$46:$T$46,,-1)*_xlfn.XLOOKUP(N280,DensityMultiplier[Biomass kg/m3],DensityMultiplier[Multiplier],,-1)","v":{"$error":"#N/A"}},{"$f":"IF(A281>'S4-PartialHarvest'!$C$9,0,IF(A281='S4-PartialHarvest'!$C$7,(F280-G280-H280)*(1-'S4-PartialHarvest'!$C$8),(F280-G280-H280)))","v":0},{"$f":"IF(A281<='S4-PartialHarvest'!$C$7,('Growth-Model-4'!G280*EXP($Z$7)),IF(A281<'S4-PartialHarvest'!$C$9,('Growth-Model-4'!G280*EXP($AA$7)),0))+IF(A281='S4-PartialHarvest'!$C$7,'Growth-Model-4'!$AA$6,0)","v":0},{"$f":"IF(A281<='S4-PartialHarvest'!$C$9,$AD$6*EXP($AD$7*('S4-PartialHarvest'!C$9-'Growth-Model-4'!A281)),0)","v":0},258.11742751166497,6.3732698151028389E-2,0,34.187862812341081,0,{"$f":"M281/'S4-PartialHarvest'!$C$19","v":0},{"$error":"#N/A"},{"$error":"#N/A"},{"$f":"_xlfn.XLOOKUP(B281,FeedTables!$C$17:$T$17,FeedTables!$C$31:$T$31,,-1)","v":{"$error":"#N/A"}},{"$f":"_xlfn.XLOOKUP(Q281,FeedPrice[Feed],FeedPrice[Price per kg],\"Unknown\",0)*O281","v":{"$error":"#N/A"}},{"$error":"#N/A"},{"$f":"_xlfn.XLOOKUP(O281,LabourFromFeed[Feed Quantity (kg)],LabourFromFeed[No. Labour],\"Out of range\",-1)","v":{"$error":"#N/A"}},{"$f":"T281*OperatingCosts!$C$9","v":{"$error":"#N/A"}},{"$error":"#N/A"}]
[280,{"$f":"IF(A282<='S4-PartialHarvest'!$C$9, B281*EXP((LN((E281/100)+1))*1),)","v":0},{"$f":"_xlfn.XLOOKUP($B282,FeedTables!$C$42:$T$42,FeedTables!$C$44:$T$44,,-1)","v":{"$error":"#N/A"}},{"$f":"_xlfn.XLOOKUP($B282,FeedTables!$C$42:$T$42,FeedTables!$C$45:$T$45,,-1)","v":{"$error":"#N/A"}},{"$f":"_xlfn.XLOOKUP($B282,FeedTables!$C$42:$T$42,FeedTables!$C$46:$T$46,,-1)*_xlfn.XLOOKUP(N281,DensityMultiplier[Biomass kg/m3],DensityMultiplier[Multiplier],,-1)","v":{"$error":"#N/A"}},{"$f":"IF(A282>'S4-PartialHarvest'!$C$9,0,IF(A282='S4-PartialHarvest'!$C$7,(F281-G281-H281)*(1-'S4-PartialHarvest'!$C$8),(F281-G281-H281)))","v":0},{"$f":"IF(A282<='S4-PartialHarvest'!$C$7,('Growth-Model-4'!G281*EXP($Z$7)),IF(A282<'S4-PartialHarvest'!$C$9,('Growth-Model-4'!G281*EXP($AA$7)),0))+IF(A282='S4-PartialHarvest'!$C$7,'Growth-Model-4'!$AA$6,0)","v":0},{"$f":"IF(A282<='S4-PartialHarvest'!$C$9,$AD$6*EXP($AD$7*('S4-PartialHarvest'!C$9-'Growth-Model-4'!A282)),0)","v":0},258.11742751166497,6.3732698151028389E-2,0,34.187862812341081,0,{"$f":"M282/'S4-PartialHarvest'!$C$19","v":0},{"$error":"#N/A"},{"$error":"#N/A"},{"$f":"_xlfn.XLOOKUP(B282,FeedTables!$C$17:$T$17,FeedTables!$C$31:$T$31,,-1)","v":{"$error":"#N/A"}},{"$f":"_xlfn.XLOOKUP(Q282,FeedPrice[Feed],FeedPrice[Price per kg],\"Unknown\",0)*O282","v":{"$error":"#N/A"}},{"$error":"#N/A"},{"$f":"_xlfn.XLOOKUP(O282,LabourFromFeed[Feed Quantity (kg)],LabourFromFeed[No. Labour],\"Out of range\",-1)","v":{"$error":"#N/A"}},{"$f":"T282*OperatingCosts!$C$9","v":{"$error":"#N/A"}},{"$error":"#N/A"}]
[281,{"$f":"IF(A283<='S4-PartialHarvest'!$C$9, B282*EXP((LN((E282/100)+1))*1),)","v":0},{"$f":"_xlfn.XLOOKUP($B283,FeedTables!$C$42:$T$42,FeedTables!$C$44:$T$44,,-1)","v":{"$error":"#N/A"}},{"$f":"_xlfn.XLOOKUP($B283,FeedTables!$C$42:$T$42,FeedTables!$C$45:$T$45,,-1)","v":{"$error":"#N/A"}},{"$f":"_xlfn.XLOOKUP($B283,FeedTables!$C$42:$T$42,FeedTables!$C$46:$T$46,,-1)*_xlfn.XLOOKUP(N282,DensityMultiplier[Biomass kg/m3],DensityMultiplier[Multiplier],,-1)","v":{"$error":"#N/A"}},{"$f":"IF(A283>'S4-PartialHarvest'!$C$9,0,IF(A283='S4-PartialHarvest'!$C$7,(F282-G282-H282)*(1-'S4-PartialHarvest'!$C$8),(F282-G282-H282)))","v":0},{"$f":"IF(A283<='S4-PartialHarvest'!$C$7,('Growth-Model-4'!G282*EXP($Z$7)),IF(A283<'S4-PartialHarvest'!$C$9,('Growth-Model-4'!G282*EXP($AA$7)),0))+IF(A283='S4-PartialHarvest'!$C$7,'Growth-Model-4'!$AA$6,0)","v":0},{"$f":"IF(A283<='S4-PartialHarvest'!$C$9,$AD$6*EXP($AD$7*('S4-PartialHarvest'!C$9-'Growth-Model-4'!A283)),0)","v":0},258.11742751166497,6.3732698151028389E-2,0,34.187862812341081,0,{"$f":"M283/'S4-PartialHarvest'!$C$19","v":0},{"$error":"#N/A"},{"$error":"#N/A"},{"$f":"_xlfn.XLOOKUP(B283,FeedTables!$C$17:$T$17,FeedTables!$C$31:$T$31,,-1)","v":{"$error":"#N/A"}},{"$f":"_xlfn.XLOOKUP(Q283,FeedPrice[Feed],FeedPrice[Price per kg],\"Unknown\",0)*O283","v":{"$error":"#N/A"}},{"$error":"#N/A"},{"$f":"_xlfn.XLOOKUP(O283,LabourFromFeed[Feed Quantity (kg)],LabourFromFeed[No. Labour],\"Out of range\",-1)","v":{"$error":"#N/A"}},{"$f":"T283*OperatingCosts!$C$9","v":{"$error":"#N/A"}},{"$error":"#N/A"}]
[282,{"$f":"IF(A284<='S4-PartialHarvest'!$C$9, B283*EXP((LN((E283/100)+1))*1),)","v":0},{"$f":"_xlfn.XLOOKUP($B284,FeedTables!$C$42:$T$42,FeedTables!$C$44:$T$44,,-1)","v":{"$error":"#N/A"}},{"$f":"_xlfn.XLOOKUP($B284,FeedTables!$C$42:$T$42,FeedTables!$C$45:$T$45,,-1)","v":{"$error":"#N/A"}},{"$f":"_xlfn.XLOOKUP($B284,FeedTables!$C$42:$T$42,FeedTables!$C$46:$T$46,,-1)*_xlfn.XLOOKUP(N283,DensityMultiplier[Biomass kg/m3],DensityMultiplier[Multiplier],,-1)","v":{"$error":"#N/A"}},{"$f":"IF(A284>'S4-PartialHarvest'!$C$9,0,IF(A284='S4-PartialHarvest'!$C$7,(F283-G283-H283)*(1-'S4-PartialHarvest'!$C$8),(F283-G283-H283)))","v":0},{"$f":"IF(A284<='S4-PartialHarvest'!$C$7,('Growth-Model-4'!G283*EXP($Z$7)),IF(A284<'S4-PartialHarvest'!$C$9,('Growth-Model-4'!G283*EXP($AA$7)),0))+IF(A284='S4-PartialHarvest'!$C$7,'Growth-Model-4'!$AA$6,0)","v":0},{"$f":"IF(A284<='S4-PartialHarvest'!$C$9,$AD$6*EXP($AD$7*('S4-PartialHarvest'!C$9-'Growth-Model-4'!A284)),0)","v":0},258.11742751166497,6.3732698151028389E-2,0,34.187862812341081,0,{"$f":"M284/'S4-PartialHarvest'!$C$19","v":0},{"$error":"#N/A"},{"$error":"#N/A"},{"$f":"_xlfn.XLOOKUP(B284,FeedTables!$C$17:$T$17,FeedTables!$C$31:$T$31,,-1)","v":{"$error":"#N/A"}},{"$f":"_xlfn.XLOOKUP(Q284,FeedPrice[Feed],FeedPrice[Price per kg],\"Unknown\",0)*O284","v":{"$error":"#N/A"}},{"$error":"#N/A"},{"$f":"_xlfn.XLOOKUP(O284,LabourFromFeed[Feed Quantity (kg)],LabourFromFeed[No. Labour],\"Out of range\",-1)","v":{"$error":"#N/A"}},{"$f":"T284*OperatingCosts!$C$9","v":{"$error":"#N/A"}},{"$error":"#N/A"}]
[283,{"$f":"IF(A285<='S4-PartialHarvest'!$C$9, B284*EXP((LN((E284/100)+1))*1),)","v":0},{"$f":"_xlfn.XLOOKUP($B285,FeedTables!$C$42:$T$42,FeedTables!$C$44:$T$44,,-1)","v":{"$error":"#N/A"}},{"$f":"_xlfn.XLOOKUP($B285,FeedTables!$C$42:$T$42,FeedTables!$C$45:$T$45,,-1)","v":{"$error":"#N/A"}},{"$f":"_xlfn.XLOOKUP($B285,FeedTables!$C$42:$T$42,FeedTables!$C$46:$T$46,,-1)*_xlfn.XLOOKUP(N284,DensityMultiplier[Biomass kg/m3],DensityMultiplier[Multiplier],,-1)","v":{"$error":"#N/A"}},{"$f":"IF(A285>'S4-PartialHarvest'!$C$9,0,IF(A285='S4-PartialHarvest'!$C$7,(F284-G284-H284)*(1-'S4-PartialHarvest'!$C$8),(F284-G284-H284)))","v":0},{"$f":"IF(A285<='S4-PartialHarvest'!$C$7,('Growth-Model-4'!G284*EXP($Z$7)),IF(A285<'S4-PartialHarvest'!$C$9,('Growth-Model-4'!G284*EXP($AA$7)),0))+IF(A285='S4-PartialHarvest'!$C$7,'Growth-Model-4'!$AA$6,0)","v":0},{"$f":"IF(A285<='S4-PartialHarvest'!$C$9,$AD$6*EXP($AD$7*('S4-PartialHarvest'!C$9-'Growth-Model-4'!A285)),0)","v":0},258.11742751166497,6.3732698151028389E-2,0,34.187862812341081,0,{"$f":"M285/'S4-PartialHarvest'!$C$19","v":0},{"$error":"#N/A"},{"$error":"#N/A"},{"$f":"_xlfn.XLOOKUP(B285,FeedTables!$C$17:$T$17,FeedTables!$C$31:$T$31,,-1)","v":{"$error":"#N/A"}},{"$f":"_xlfn.XLOOKUP(Q285,FeedPrice[Feed],FeedPrice[Price per kg],\"Unknown\",0)*O285","v":{"$error":"#N/A"}},{"$error":"#N/A"},{"$f":"_xlfn.XLOOKUP(O285,LabourFromFeed[Feed Quantity (kg)],LabourFromFeed[No. Labour],\"Out of range\",-1)","v":{"$error":"#N/A"}},{"$f":"T285*OperatingCosts!$C$9","v":{"$error":"#N/A"}},{"$error":"#N/A"}]
[284,{"$f":"IF(A286<='S4-PartialHarvest'!$C$9, B285*EXP((LN((E285/100)+1))*1),)","v":0},{"$f":"_xlfn.XLOOKUP($B286,FeedTables!$C$42:$T$42,FeedTables!$C$44:$T$44,,-1)","v":{"$error":"#N/A"}},{"$f":"_xlfn.XLOOKUP($B286,FeedTables!$C$42:$T$42,FeedTables!$C$45:$T$45,,-1)","v":{"$error":"#N/A"}},{"$f":"_xlfn.XLOOKUP($B286,FeedTables!$C$42:$T$42,FeedTables!$C$46:$T$46,,-1)*_xlfn.XLOOKUP(N285,DensityMultiplier[Biomass kg/m3],DensityMultiplier[Multiplier],,-1)","v":{"$error":"#N/A"}},{"$f":"IF(A286>'S4-PartialHarvest'!$C$9,0,IF(A286='S4-PartialHarvest'!$C$7,(F285-G285-H285)*(1-'S4-PartialHarvest'!$C$8),(F285-G285-H285)))","v":0},{"$f":"IF(A286<='S4-PartialHarvest'!$C$7,('Growth-Model-4'!G285*EXP($Z$7)),IF(A286<'S4-PartialHarvest'!$C$9,('Growth-Model-4'!G285*EXP($AA$7)),0))+IF(A286='S4-PartialHarvest'!$C$7,'Growth-Model-4'!$AA$6,0)","v":0},{"$f":"IF(A286<='S4-PartialHarvest'!$C$9,$AD$6*EXP($AD$7*('S4-PartialHarvest'!C$9-'Growth-Model-4'!A286)),0)","v":0},258.11742751166497,6.3732698151028389E-2,0,34.187862812341081,0,{"$f":"M286/'S4-PartialHarvest'!$C$19","v":0},{"$error":"#N/A"},{"$error":"#N/A"},{"$f":"_xlfn.XLOOKUP(B286,FeedTables!$C$17:$T$17,FeedTables!$C$31:$T$31,,-1)","v":{"$error":"#N/A"}},{"$f":"_xlfn.XLOOKUP(Q286,FeedPrice[Feed],FeedPrice[Price per kg],\"Unknown\",0)*O286","v":{"$error":"#N/A"}},{"$error":"#N/A"},{"$f":"_xlfn.XLOOKUP(O286,LabourFromFeed[Feed Quantity (kg)],LabourFromFeed[No. Labour],\"Out of range\",-1)","v":{"$error":"#N/A"}},{"$f":"T286*OperatingCosts!$C$9","v":{"$error":"#N/A"}},{"$error":"#N/A"}]
[285,{"$f":"IF(A287<='S4-PartialHarvest'!$C$9, B286*EXP((LN((E286/100)+1))*1),)","v":0},{"$f":"_xlfn.XLOOKUP($B287,FeedTables!$C$42:$T$42,FeedTables!$C$44:$T$44,,-1)","v":{"$error":"#N/A"}},{"$f":"_xlfn.XLOOKUP($B287,FeedTables!$C$42:$T$42,FeedTables!$C$45:$T$45,,-1)","v":{"$error":"#N/A"}},{"$f":"_xlfn.XLOOKUP($B287,FeedTables!$C$42:$T$42,FeedTables!$C$46:$T$46,,-1)*_xlfn.XLOOKUP(N286,DensityMultiplier[Biomass kg/m3],DensityMultiplier[Multiplier],,-1)","v":{"$error":"#N/A"}},{"$f":"IF(A287>'S4-PartialHarvest'!$C$9,0,IF(A287='S4-PartialHarvest'!$C$7,(F286-G286-H286)*(1-'S4-PartialHarvest'!$C$8),(F286-G286-H286)))","v":0},{"$f":"IF(A287<='S4-PartialHarvest'!$C$7,('Growth-Model-4'!G286*EXP($Z$7)),IF(A287<'S4-PartialHarvest'!$C$9,('Growth-Model-4'!G286*EXP($AA$7)),0))+IF(A287='S4-PartialHarvest'!$C$7,'Growth-Model-4'!$AA$6,0)","v":0},{"$f":"IF(A287<='S4-PartialHarvest'!$C$9,$AD$6*EXP($AD$7*('S4-PartialHarvest'!C$9-'Growth-Model-4'!A287)),0)","v":0},258.11742751166497,6.3732698151028389E-2,0,34.187862812341081,0,{"$f":"M287/'S4-PartialHarvest'!$C$19","v":0},{"$error":"#N/A"},{"$error":"#N/A"},{"$f":"_xlfn.XLOOKUP(B287,FeedTables!$C$17:$T$17,FeedTables!$C$31:$T$31,,-1)","v":{"$error":"#N/A"}},{"$f":"_xlfn.XLOOKUP(Q287,FeedPrice[Feed],FeedPrice[Price per kg],\"Unknown\",0)*O287","v":{"$error":"#N/A"}},{"$error":"#N/A"},{"$f":"_xlfn.XLOOKUP(O287,LabourFromFeed[Feed Quantity (kg)],LabourFromFeed[No. Labour],\"Out of range\",-1)","v":{"$error":"#N/A"}},{"$f":"T287*OperatingCosts!$C$9","v":{"$error":"#N/A"}},{"$error":"#N/A"}]
[286,{"$f":"IF(A288<='S4-PartialHarvest'!$C$9, B287*EXP((LN((E287/100)+1))*1),)","v":0},{"$f":"_xlfn.XLOOKUP($B288,FeedTables!$C$42:$T$42,FeedTables!$C$44:$T$44,,-1)","v":{"$error":"#N/A"}},{"$f":"_xlfn.XLOOKUP($B288,FeedTables!$C$42:$T$42,FeedTables!$C$45:$T$45,,-1)","v":{"$error":"#N/A"}},{"$f":"_xlfn.XLOOKUP($B288,FeedTables!$C$42:$T$42,FeedTables!$C$46:$T$46,,-1)*_xlfn.XLOOKUP(N287,DensityMultiplier[Biomass kg/m3],DensityMultiplier[Multiplier],,-1)","v":{"$error":"#N/A"}},{"$f":"IF(A288>'S4-PartialHarvest'!$C$9,0,IF(A288='S4-PartialHarvest'!$C$7,(F287-G287-H287)*(1-'S4-PartialHarvest'!$C$8),(F287-G287-H287)))","v":0},{"$f":"IF(A288<='S4-PartialHarvest'!$C$7,('Growth-Model-4'!G287*EXP($Z$7)),IF(A288<'S4-PartialHarvest'!$C$9,('Growth-Model-4'!G287*EXP($AA$7)),0))+IF(A288='S4-PartialHarvest'!$C$7,'Growth-Model-4'!$AA$6,0)","v":0},{"$f":"IF(A288<='S4-PartialHarvest'!$C$9,$AD$6*EXP($AD$7*('S4-PartialHarvest'!C$9-'Growth-Model-4'!A288)),0)","v":0},258.11742751166497,6.3732698151028389E-2,0,34.187862812341081,0,{"$f":"M288/'S4-PartialHarvest'!$C$19","v":0},{"$error":"#N/A"},{"$error":"#N/A"},{"$f":"_xlfn.XLOOKUP(B288,FeedTables!$C$17:$T$17,FeedTables!$C$31:$T$31,,-1)","v":{"$error":"#N/A"}},{"$f":"_xlfn.XLOOKUP(Q288,FeedPrice[Feed],FeedPrice[Price per kg],\"Unknown\",0)*O288","v":{"$error":"#N/A"}},{"$error":"#N/A"},{"$f":"_xlfn.XLOOKUP(O288,LabourFromFeed[Feed Quantity (kg)],LabourFromFeed[No. Labour],\"Out of range\",-1)","v":{"$error":"#N/A"}},{"$f":"T288*OperatingCosts!$C$9","v":{"$error":"#N/A"}},{"$error":"#N/A"}]
[287,{"$f":"IF(A289<='S4-PartialHarvest'!$C$9, B288*EXP((LN((E288/100)+1))*1),)","v":0},{"$f":"_xlfn.XLOOKUP($B289,FeedTables!$C$42:$T$42,FeedTables!$C$44:$T$44,,-1)","v":{"$error":"#N/A"}},{"$f":"_xlfn.XLOOKUP($B289,FeedTables!$C$42:$T$42,FeedTables!$C$45:$T$45,,-1)","v":{"$error":"#N/A"}},{"$f":"_xlfn.XLOOKUP($B289,FeedTables!$C$42:$T$42,FeedTables!$C$46:$T$46,,-1)*_xlfn.XLOOKUP(N288,DensityMultiplier[Biomass kg/m3],DensityMultiplier[Multiplier],,-1)","v":{"$error":"#N/A"}},{"$f":"IF(A289>'S4-PartialHarvest'!$C$9,0,IF(A289='S4-PartialHarvest'!$C$7,(F288-G288-H288)*(1-'S4-PartialHarvest'!$C$8),(F288-G288-H288)))","v":0},{"$f":"IF(A289<='S4-PartialHarvest'!$C$7,('Growth-Model-4'!G288*EXP($Z$7)),IF(A289<'S4-PartialHarvest'!$C$9,('Growth-Model-4'!G288*EXP($AA$7)),0))+IF(A289='S4-PartialHarvest'!$C$7,'Growth-Model-4'!$AA$6,0)","v":0},{"$f":"IF(A289<='S4-PartialHarvest'!$C$9,$AD$6*EXP($AD$7*('S4-PartialHarvest'!C$9-'Growth-Model-4'!A289)),0)","v":0},258.11742751166497,6.3732698151028389E-2,0,34.187862812341081,0,{"$f":"M289/'S4-PartialHarvest'!$C$19","v":0},{"$error":"#N/A"},{"$error":"#N/A"},{"$f":"_xlfn.XLOOKUP(B289,FeedTables!$C$17:$T$17,FeedTables!$C$31:$T$31,,-1)","v":{"$error":"#N/A"}},{"$f":"_xlfn.XLOOKUP(Q289,FeedPrice[Feed],FeedPrice[Price per kg],\"Unknown\",0)*O289","v":{"$error":"#N/A"}},{"$error":"#N/A"},{"$f":"_xlfn.XLOOKUP(O289,LabourFromFeed[Feed Quantity (kg)],LabourFromFeed[No. Labour],\"Out of range\",-1)","v":{"$error":"#N/A"}},{"$f":"T289*OperatingCosts!$C$9","v":{"$error":"#N/A"}},{"$error":"#N/A"}]
[288,{"$f":"IF(A290<='S4-PartialHarvest'!$C$9, B289*EXP((LN((E289/100)+1))*1),)","v":0},{"$f":"_xlfn.XLOOKUP($B290,FeedTables!$C$42:$T$42,FeedTables!$C$44:$T$44,,-1)","v":{"$error":"#N/A"}},{"$f":"_xlfn.XLOOKUP($B290,FeedTables!$C$42:$T$42,FeedTables!$C$45:$T$45,,-1)","v":{"$error":"#N/A"}},{"$f":"_xlfn.XLOOKUP($B290,FeedTables!$C$42:$T$42,FeedTables!$C$46:$T$46,,-1)*_xlfn.XLOOKUP(N289,DensityMultiplier[Biomass kg/m3],DensityMultiplier[Multiplier],,-1)","v":{"$error":"#N/A"}},{"$f":"IF(A290>'S4-PartialHarvest'!$C$9,0,IF(A290='S4-PartialHarvest'!$C$7,(F289-G289-H289)*(1-'S4-PartialHarvest'!$C$8),(F289-G289-H289)))","v":0},{"$f":"IF(A290<='S4-PartialHarvest'!$C$7,('Growth-Model-4'!G289*EXP($Z$7)),IF(A290<'S4-PartialHarvest'!$C$9,('Growth-Model-4'!G289*EXP($AA$7)),0))+IF(A290='S4-PartialHarvest'!$C$7,'Growth-Model-4'!$AA$6,0)","v":0},{"$f":"IF(A290<='S4-PartialHarvest'!$C$9,$AD$6*EXP($AD$7*('S4-PartialHarvest'!C$9-'Growth-Model-4'!A290)),0)","v":0},258.11742751166497,6.3732698151028389E-2,0,34.187862812341081,0,{"$f":"M290/'S4-PartialHarvest'!$C$19","v":0},{"$error":"#N/A"},{"$error":"#N/A"},{"$f":"_xlfn.XLOOKUP(B290,FeedTables!$C$17:$T$17,FeedTables!$C$31:$T$31,,-1)","v":{"$error":"#N/A"}},{"$f":"_xlfn.XLOOKUP(Q290,FeedPrice[Feed],FeedPrice[Price per kg],\"Unknown\",0)*O290","v":{"$error":"#N/A"}},{"$error":"#N/A"},{"$f":"_xlfn.XLOOKUP(O290,LabourFromFeed[Feed Quantity (kg)],LabourFromFeed[No. Labour],\"Out of range\",-1)","v":{"$error":"#N/A"}},{"$f":"T290*OperatingCosts!$C$9","v":{"$error":"#N/A"}},{"$error":"#N/A"}]
[289,{"$f":"IF(A291<='S4-PartialHarvest'!$C$9, B290*EXP((LN((E290/100)+1))*1),)","v":0},{"$f":"_xlfn.XLOOKUP($B291,FeedTables!$C$42:$T$42,FeedTables!$C$44:$T$44,,-1)","v":{"$error":"#N/A"}},{"$f":"_xlfn.XLOOKUP($B291,FeedTables!$C$42:$T$42,FeedTables!$C$45:$T$45,,-1)","v":{"$error":"#N/A"}},{"$f":"_xlfn.XLOOKUP($B291,FeedTables!$C$42:$T$42,FeedTables!$C$46:$T$46,,-1)*_xlfn.XLOOKUP(N290,DensityMultiplier[Biomass kg/m3],DensityMultiplier[Multiplier],,-1)","v":{"$error":"#N/A"}},{"$f":"IF(A291>'S4-PartialHarvest'!$C$9,0,IF(A291='S4-PartialHarvest'!$C$7,(F290-G290-H290)*(1-'S4-PartialHarvest'!$C$8),(F290-G290-H290)))","v":0},{"$f":"IF(A291<='S4-PartialHarvest'!$C$7,('Growth-Model-4'!G290*EXP($Z$7)),IF(A291<'S4-PartialHarvest'!$C$9,('Growth-Model-4'!G290*EXP($AA$7)),0))+IF(A291='S4-PartialHarvest'!$C$7,'Growth-Model-4'!$AA$6,0)","v":0},{"$f":"IF(A291<='S4-PartialHarvest'!$C$9,$AD$6*EXP($AD$7*('S4-PartialHarvest'!C$9-'Growth-Model-4'!A291)),0)","v":0},258.11742751166497,6.3732698151028389E-2,0,34.187862812341081,0,{"$f":"M291/'S4-PartialHarvest'!$C$19","v":0},{"$error":"#N/A"},{"$error":"#N/A"},{"$f":"_xlfn.XLOOKUP(B291,FeedTables!$C$17:$T$17,FeedTables!$C$31:$T$31,,-1)","v":{"$error":"#N/A"}},{"$f":"_xlfn.XLOOKUP(Q291,FeedPrice[Feed],FeedPrice[Price per kg],\"Unknown\",0)*O291","v":{"$error":"#N/A"}},{"$error":"#N/A"},{"$f":"_xlfn.XLOOKUP(O291,LabourFromFeed[Feed Quantity (kg)],LabourFromFeed[No. Labour],\"Out of range\",-1)","v":{"$error":"#N/A"}},{"$f":"T291*OperatingCosts!$C$9","v":{"$error":"#N/A"}},{"$error":"#N/A"}]
[290,{"$f":"IF(A292<='S4-PartialHarvest'!$C$9, B291*EXP((LN((E291/100)+1))*1),)","v":0},{"$f":"_xlfn.XLOOKUP($B292,FeedTables!$C$42:$T$42,FeedTables!$C$44:$T$44,,-1)","v":{"$error":"#N/A"}},{"$f":"_xlfn.XLOOKUP($B292,FeedTables!$C$42:$T$42,FeedTables!$C$45:$T$45,,-1)","v":{"$error":"#N/A"}},{"$f":"_xlfn.XLOOKUP($B292,FeedTables!$C$42:$T$42,FeedTables!$C$46:$T$46,,-1)*_xlfn.XLOOKUP(N291,DensityMultiplier[Biomass kg/m3],DensityMultiplier[Multiplier],,-1)","v":{"$error":"#N/A"}},{"$f":"IF(A292>'S4-PartialHarvest'!$C$9,0,IF(A292='S4-PartialHarvest'!$C$7,(F291-G291-H291)*(1-'S4-PartialHarvest'!$C$8),(F291-G291-H291)))","v":0},{"$f":"IF(A292<='S4-PartialHarvest'!$C$7,('Growth-Model-4'!G291*EXP($Z$7)),IF(A292<'S4-PartialHarvest'!$C$9,('Growth-Model-4'!G291*EXP($AA$7)),0))+IF(A292='S4-PartialHarvest'!$C$7,'Growth-Model-4'!$AA$6,0)","v":0},{"$f":"IF(A292<='S4-PartialHarvest'!$C$9,$AD$6*EXP($AD$7*('S4-PartialHarvest'!C$9-'Growth-Model-4'!A292)),0)","v":0},258.11742751166497,6.3732698151028389E-2,0,34.187862812341081,0,{"$f":"M292/'S4-PartialHarvest'!$C$19","v":0},{"$error":"#N/A"},{"$error":"#N/A"},{"$f":"_xlfn.XLOOKUP(B292,FeedTables!$C$17:$T$17,FeedTables!$C$31:$T$31,,-1)","v":{"$error":"#N/A"}},{"$f":"_xlfn.XLOOKUP(Q292,FeedPrice[Feed],FeedPrice[Price per kg],\"Unknown\",0)*O292","v":{"$error":"#N/A"}},{"$error":"#N/A"},{"$f":"_xlfn.XLOOKUP(O292,LabourFromFeed[Feed Quantity (kg)],LabourFromFeed[No. Labour],\"Out of range\",-1)","v":{"$error":"#N/A"}},{"$f":"T292*OperatingCosts!$C$9","v":{"$error":"#N/A"}},{"$error":"#N/A"}]
[291,{"$f":"IF(A293<='S4-PartialHarvest'!$C$9, B292*EXP((LN((E292/100)+1))*1),)","v":0},{"$f":"_xlfn.XLOOKUP($B293,FeedTables!$C$42:$T$42,FeedTables!$C$44:$T$44,,-1)","v":{"$error":"#N/A"}},{"$f":"_xlfn.XLOOKUP($B293,FeedTables!$C$42:$T$42,FeedTables!$C$45:$T$45,,-1)","v":{"$error":"#N/A"}},{"$f":"_xlfn.XLOOKUP($B293,FeedTables!$C$42:$T$42,FeedTables!$C$46:$T$46,,-1)*_xlfn.XLOOKUP(N292,DensityMultiplier[Biomass kg/m3],DensityMultiplier[Multiplier],,-1)","v":{"$error":"#N/A"}},{"$f":"IF(A293>'S4-PartialHarvest'!$C$9,0,IF(A293='S4-PartialHarvest'!$C$7,(F292-G292-H292)*(1-'S4-PartialHarvest'!$C$8),(F292-G292-H292)))","v":0},{"$f":"IF(A293<='S4-PartialHarvest'!$C$7,('Growth-Model-4'!G292*EXP($Z$7)),IF(A293<'S4-PartialHarvest'!$C$9,('Growth-Model-4'!G292*EXP($AA$7)),0))+IF(A293='S4-PartialHarvest'!$C$7,'Growth-Model-4'!$AA$6,0)","v":0},{"$f":"IF(A293<='S4-PartialHarvest'!$C$9,$AD$6*EXP($AD$7*('S4-PartialHarvest'!C$9-'Growth-Model-4'!A293)),0)","v":0},258.11742751166497,6.3732698151028389E-2,0,34.187862812341081,0,{"$f":"M293/'S4-PartialHarvest'!$C$19","v":0},{"$error":"#N/A"},{"$error":"#N/A"},{"$f":"_xlfn.XLOOKUP(B293,FeedTables!$C$17:$T$17,FeedTables!$C$31:$T$31,,-1)","v":{"$error":"#N/A"}},{"$f":"_xlfn.XLOOKUP(Q293,FeedPrice[Feed],FeedPrice[Price per kg],\"Unknown\",0)*O293","v":{"$error":"#N/A"}},{"$error":"#N/A"},{"$f":"_xlfn.XLOOKUP(O293,LabourFromFeed[Feed Quantity (kg)],LabourFromFeed[No. Labour],\"Out of range\",-1)","v":{"$error":"#N/A"}},{"$f":"T293*OperatingCosts!$C$9","v":{"$error":"#N/A"}},{"$error":"#N/A"}]
[292,{"$f":"IF(A294<='S4-PartialHarvest'!$C$9, B293*EXP((LN((E293/100)+1))*1),)","v":0},{"$f":"_xlfn.XLOOKUP($B294,FeedTables!$C$42:$T$42,FeedTables!$C$44:$T$44,,-1)","v":{"$error":"#N/A"}},{"$f":"_xlfn.XLOOKUP($B294,FeedTables!$C$42:$T$42,FeedTables!$C$45:$T$45,,-1)","v":{"$error":"#N/A"}},{"$f":"_xlfn.XLOOKUP($B294,FeedTables!$C$42:$T$42,FeedTables!$C$46:$T$46,,-1)*_xlfn.XLOOKUP(N293,DensityMultiplier[Biomass kg/m3],DensityMultiplier[Multiplier],,-1)","v":{"$error":"#N/A"}},{"$f":"IF(A294>'S4-PartialHarvest'!$C$9,0,IF(A294='S4-PartialHarvest'!$C$7,(F293-G293-H293)*(1-'S4-PartialHarvest'!$C$8),(F293-G293-H293)))","v":0},{"$f":"IF(A294<='S4-PartialHarvest'!$C$7,('Growth-Model-4'!G293*EXP($Z$7)),IF(A294<'S4-PartialHarvest'!$C$9,('Growth-Model-4'!G293*EXP($AA$7)),0))+IF(A294='S4-PartialHarvest'!$C$7,'Growth-Model-4'!$AA$6,0)","v":0},{"$f":"IF(A294<='S4-PartialHarvest'!$C$9,$AD$6*EXP($AD$7*('S4-PartialHarvest'!C$9-'Growth-Model-4'!A294)),0)","v":0},258.11742751166497,6.3732698151028389E-2,0,34.187862812341081,0,{"$f":"M294/'S4-PartialHarvest'!$C$19","v":0},{"$error":"#N/A"},{"$error":"#N/A"},{"$f":"_xlfn.XLOOKUP(B294,FeedTables!$C$17:$T$17,FeedTables!$C$31:$T$31,,-1)","v":{"$error":"#N/A"}},{"$f":"_xlfn.XLOOKUP(Q294,FeedPrice[Feed],FeedPrice[Price per kg],\"Unknown\",0)*O294","v":{"$error":"#N/A"}},{"$error":"#N/A"},{"$f":"_xlfn.XLOOKUP(O294,LabourFromFeed[Feed Quantity (kg)],LabourFromFeed[No. Labour],\"Out of range\",-1)","v":{"$error":"#N/A"}},{"$f":"T294*OperatingCosts!$C$9","v":{"$error":"#N/A"}},{"$error":"#N/A"}]
[293,{"$f":"IF(A295<='S4-PartialHarvest'!$C$9, B294*EXP((LN((E294/100)+1))*1),)","v":0},{"$f":"_xlfn.XLOOKUP($B295,FeedTables!$C$42:$T$42,FeedTables!$C$44:$T$44,,-1)","v":{"$error":"#N/A"}},{"$f":"_xlfn.XLOOKUP($B295,FeedTables!$C$42:$T$42,FeedTables!$C$45:$T$45,,-1)","v":{"$error":"#N/A"}},{"$f":"_xlfn.XLOOKUP($B295,FeedTables!$C$42:$T$42,FeedTables!$C$46:$T$46,,-1)*_xlfn.XLOOKUP(N294,DensityMultiplier[Biomass kg/m3],DensityMultiplier[Multiplier],,-1)","v":{"$error":"#N/A"}},{"$f":"IF(A295>'S4-PartialHarvest'!$C$9,0,IF(A295='S4-PartialHarvest'!$C$7,(F294-G294-H294)*(1-'S4-PartialHarvest'!$C$8),(F294-G294-H294)))","v":0},{"$f":"IF(A295<='S4-PartialHarvest'!$C$7,('Growth-Model-4'!G294*EXP($Z$7)),IF(A295<'S4-PartialHarvest'!$C$9,('Growth-Model-4'!G294*EXP($AA$7)),0))+IF(A295='S4-PartialHarvest'!$C$7,'Growth-Model-4'!$AA$6,0)","v":0},{"$f":"IF(A295<='S4-PartialHarvest'!$C$9,$AD$6*EXP($AD$7*('S4-PartialHarvest'!C$9-'Growth-Model-4'!A295)),0)","v":0},258.11742751166497,6.3732698151028389E-2,0,34.187862812341081,0,{"$f":"M295/'S4-PartialHarvest'!$C$19","v":0},{"$error":"#N/A"},{"$error":"#N/A"},{"$f":"_xlfn.XLOOKUP(B295,FeedTables!$C$17:$T$17,FeedTables!$C$31:$T$31,,-1)","v":{"$error":"#N/A"}},{"$f":"_xlfn.XLOOKUP(Q295,FeedPrice[Feed],FeedPrice[Price per kg],\"Unknown\",0)*O295","v":{"$error":"#N/A"}},{"$error":"#N/A"},{"$f":"_xlfn.XLOOKUP(O295,LabourFromFeed[Feed Quantity (kg)],LabourFromFeed[No. Labour],\"Out of range\",-1)","v":{"$error":"#N/A"}},{"$f":"T295*OperatingCosts!$C$9","v":{"$error":"#N/A"}},{"$error":"#N/A"}]
[294,{"$f":"IF(A296<='S4-PartialHarvest'!$C$9, B295*EXP((LN((E295/100)+1))*1),)","v":0},{"$f":"_xlfn.XLOOKUP($B296,FeedTables!$C$42:$T$42,FeedTables!$C$44:$T$44,,-1)","v":{"$error":"#N/A"}},{"$f":"_xlfn.XLOOKUP($B296,FeedTables!$C$42:$T$42,FeedTables!$C$45:$T$45,,-1)","v":{"$error":"#N/A"}},{"$f":"_xlfn.XLOOKUP($B296,FeedTables!$C$42:$T$42,FeedTables!$C$46:$T$46,,-1)*_xlfn.XLOOKUP(N295,DensityMultiplier[Biomass kg/m3],DensityMultiplier[Multiplier],,-1)","v":{"$error":"#N/A"}},{"$f":"IF(A296>'S4-PartialHarvest'!$C$9,0,IF(A296='S4-PartialHarvest'!$C$7,(F295-G295-H295)*(1-'S4-PartialHarvest'!$C$8),(F295-G295-H295)))","v":0},{"$f":"IF(A296<='S4-PartialHarvest'!$C$7,('Growth-Model-4'!G295*EXP($Z$7)),IF(A296<'S4-PartialHarvest'!$C$9,('Growth-Model-4'!G295*EXP($AA$7)),0))+IF(A296='S4-PartialHarvest'!$C$7,'Growth-Model-4'!$AA$6,0)","v":0},{"$f":"IF(A296<='S4-PartialHarvest'!$C$9,$AD$6*EXP($AD$7*('S4-PartialHarvest'!C$9-'Growth-Model-4'!A296)),0)","v":0},258.11742751166497,6.3732698151028389E-2,0,34.187862812341081,0,{"$f":"M296/'S4-PartialHarvest'!$C$19","v":0},{"$error":"#N/A"},{"$error":"#N/A"},{"$f":"_xlfn.XLOOKUP(B296,FeedTables!$C$17:$T$17,FeedTables!$C$31:$T$31,,-1)","v":{"$error":"#N/A"}},{"$f":"_xlfn.XLOOKUP(Q296,FeedPrice[Feed],FeedPrice[Price per kg],\"Unknown\",0)*O296","v":{"$error":"#N/A"}},{"$error":"#N/A"},{"$f":"_xlfn.XLOOKUP(O296,LabourFromFeed[Feed Quantity (kg)],LabourFromFeed[No. Labour],\"Out of range\",-1)","v":{"$error":"#N/A"}},{"$f":"T296*OperatingCosts!$C$9","v":{"$error":"#N/A"}},{"$error":"#N/A"}]
[295,{"$f":"IF(A297<='S4-PartialHarvest'!$C$9, B296*EXP((LN((E296/100)+1))*1),)","v":0},{"$f":"_xlfn.XLOOKUP($B297,FeedTables!$C$42:$T$42,FeedTables!$C$44:$T$44,,-1)","v":{"$error":"#N/A"}},{"$f":"_xlfn.XLOOKUP($B297,FeedTables!$C$42:$T$42,FeedTables!$C$45:$T$45,,-1)","v":{"$error":"#N/A"}},{"$f":"_xlfn.XLOOKUP($B297,FeedTables!$C$42:$T$42,FeedTables!$C$46:$T$46,,-1)*_xlfn.XLOOKUP(N296,DensityMultiplier[Biomass kg/m3],DensityMultiplier[Multiplier],,-1)","v":{"$error":"#N/A"}},{"$f":"IF(A297>'S4-PartialHarvest'!$C$9,0,IF(A297='S4-PartialHarvest'!$C$7,(F296-G296-H296)*(1-'S4-PartialHarvest'!$C$8),(F296-G296-H296)))","v":0},{"$f":"IF(A297<='S4-PartialHarvest'!$C$7,('Growth-Model-4'!G296*EXP($Z$7)),IF(A297<'S4-PartialHarvest'!$C$9,('Growth-Model-4'!G296*EXP($AA$7)),0))+IF(A297='S4-PartialHarvest'!$C$7,'Growth-Model-4'!$AA$6,0)","v":0},{"$f":"IF(A297<='S4-PartialHarvest'!$C$9,$AD$6*EXP($AD$7*('S4-PartialHarvest'!C$9-'Growth-Model-4'!A297)),0)","v":0},258.11742751166497,6.3732698151028389E-2,0,34.187862812341081,0,{"$f":"M297/'S4-PartialHarvest'!$C$19","v":0},{"$error":"#N/A"},{"$error":"#N/A"},{"$f":"_xlfn.XLOOKUP(B297,FeedTables!$C$17:$T$17,FeedTables!$C$31:$T$31,,-1)","v":{"$error":"#N/A"}},{"$f":"_xlfn.XLOOKUP(Q297,FeedPrice[Feed],FeedPrice[Price per kg],\"Unknown\",0)*O297","v":{"$error":"#N/A"}},{"$error":"#N/A"},{"$f":"_xlfn.XLOOKUP(O297,LabourFromFeed[Feed Quantity (kg)],LabourFromFeed[No. Labour],\"Out of range\",-1)","v":{"$error":"#N/A"}},{"$f":"T297*OperatingCosts!$C$9","v":{"$error":"#N/A"}},{"$error":"#N/A"}]
[296,{"$f":"IF(A298<='S4-PartialHarvest'!$C$9, B297*EXP((LN((E297/100)+1))*1),)","v":0},{"$f":"_xlfn.XLOOKUP($B298,FeedTables!$C$42:$T$42,FeedTables!$C$44:$T$44,,-1)","v":{"$error":"#N/A"}},{"$f":"_xlfn.XLOOKUP($B298,FeedTables!$C$42:$T$42,FeedTables!$C$45:$T$45,,-1)","v":{"$error":"#N/A"}},{"$f":"_xlfn.XLOOKUP($B298,FeedTables!$C$42:$T$42,FeedTables!$C$46:$T$46,,-1)*_xlfn.XLOOKUP(N297,DensityMultiplier[Biomass kg/m3],DensityMultiplier[Multiplier],,-1)","v":{"$error":"#N/A"}},{"$f":"IF(A298>'S4-PartialHarvest'!$C$9,0,IF(A298='S4-PartialHarvest'!$C$7,(F297-G297-H297)*(1-'S4-PartialHarvest'!$C$8),(F297-G297-H297)))","v":0},{"$f":"IF(A298<='S4-PartialHarvest'!$C$7,('Growth-Model-4'!G297*EXP($Z$7)),IF(A298<'S4-PartialHarvest'!$C$9,('Growth-Model-4'!G297*EXP($AA$7)),0))+IF(A298='S4-PartialHarvest'!$C$7,'Growth-Model-4'!$AA$6,0)","v":0},{"$f":"IF(A298<='S4-PartialHarvest'!$C$9,$AD$6*EXP($AD$7*('S4-PartialHarvest'!C$9-'Growth-Model-4'!A298)),0)","v":0},258.11742751166497,6.3732698151028389E-2,0,34.187862812341081,0,{"$f":"M298/'S4-PartialHarvest'!$C$19","v":0},{"$error":"#N/A"},{"$error":"#N/A"},{"$f":"_xlfn.XLOOKUP(B298,FeedTables!$C$17:$T$17,FeedTables!$C$31:$T$31,,-1)","v":{"$error":"#N/A"}},{"$f":"_xlfn.XLOOKUP(Q298,FeedPrice[Feed],FeedPrice[Price per kg],\"Unknown\",0)*O298","v":{"$error":"#N/A"}},{"$error":"#N/A"},{"$f":"_xlfn.XLOOKUP(O298,LabourFromFeed[Feed Quantity (kg)],LabourFromFeed[No. Labour],\"Out of range\",-1)","v":{"$error":"#N/A"}},{"$f":"T298*OperatingCosts!$C$9","v":{"$error":"#N/A"}},{"$error":"#N/A"}]
[297,{"$f":"IF(A299<='S4-PartialHarvest'!$C$9, B298*EXP((LN((E298/100)+1))*1),)","v":0},{"$f":"_xlfn.XLOOKUP($B299,FeedTables!$C$42:$T$42,FeedTables!$C$44:$T$44,,-1)","v":{"$error":"#N/A"}},{"$f":"_xlfn.XLOOKUP($B299,FeedTables!$C$42:$T$42,FeedTables!$C$45:$T$45,,-1)","v":{"$error":"#N/A"}},{"$f":"_xlfn.XLOOKUP($B299,FeedTables!$C$42:$T$42,FeedTables!$C$46:$T$46,,-1)*_xlfn.XLOOKUP(N298,DensityMultiplier[Biomass kg/m3],DensityMultiplier[Multiplier],,-1)","v":{"$error":"#N/A"}},{"$f":"IF(A299>'S4-PartialHarvest'!$C$9,0,IF(A299='S4-PartialHarvest'!$C$7,(F298-G298-H298)*(1-'S4-PartialHarvest'!$C$8),(F298-G298-H298)))","v":0},{"$f":"IF(A299<='S4-PartialHarvest'!$C$7,('Growth-Model-4'!G298*EXP($Z$7)),IF(A299<'S4-PartialHarvest'!$C$9,('Growth-Model-4'!G298*EXP($AA$7)),0))+IF(A299='S4-PartialHarvest'!$C$7,'Growth-Model-4'!$AA$6,0)","v":0},{"$f":"IF(A299<='S4-PartialHarvest'!$C$9,$AD$6*EXP($AD$7*('S4-PartialHarvest'!C$9-'Growth-Model-4'!A299)),0)","v":0},258.11742751166497,6.3732698151028389E-2,0,34.187862812341081,0,{"$f":"M299/'S4-PartialHarvest'!$C$19","v":0},{"$error":"#N/A"},{"$error":"#N/A"},{"$f":"_xlfn.XLOOKUP(B299,FeedTables!$C$17:$T$17,FeedTables!$C$31:$T$31,,-1)","v":{"$error":"#N/A"}},{"$f":"_xlfn.XLOOKUP(Q299,FeedPrice[Feed],FeedPrice[Price per kg],\"Unknown\",0)*O299","v":{"$error":"#N/A"}},{"$error":"#N/A"},{"$f":"_xlfn.XLOOKUP(O299,LabourFromFeed[Feed Quantity (kg)],LabourFromFeed[No. Labour],\"Out of range\",-1)","v":{"$error":"#N/A"}},{"$f":"T299*OperatingCosts!$C$9","v":{"$error":"#N/A"}},{"$error":"#N/A"}]
[298,{"$f":"IF(A300<='S4-PartialHarvest'!$C$9, B299*EXP((LN((E299/100)+1))*1),)","v":0},{"$f":"_xlfn.XLOOKUP($B300,FeedTables!$C$42:$T$42,FeedTables!$C$44:$T$44,,-1)","v":{"$error":"#N/A"}},{"$f":"_xlfn.XLOOKUP($B300,FeedTables!$C$42:$T$42,FeedTables!$C$45:$T$45,,-1)","v":{"$error":"#N/A"}},{"$f":"_xlfn.XLOOKUP($B300,FeedTables!$C$42:$T$42,FeedTables!$C$46:$T$46,,-1)*_xlfn.XLOOKUP(N299,DensityMultiplier[Biomass kg/m3],DensityMultiplier[Multiplier],,-1)","v":{"$error":"#N/A"}},{"$f":"IF(A300>'S4-PartialHarvest'!$C$9,0,IF(A300='S4-PartialHarvest'!$C$7,(F299-G299-H299)*(1-'S4-PartialHarvest'!$C$8),(F299-G299-H299)))","v":0},{"$f":"IF(A300<='S4-PartialHarvest'!$C$7,('Growth-Model-4'!G299*EXP($Z$7)),IF(A300<'S4-PartialHarvest'!$C$9,('Growth-Model-4'!G299*EXP($AA$7)),0))+IF(A300='S4-PartialHarvest'!$C$7,'Growth-Model-4'!$AA$6,0)","v":0},{"$f":"IF(A300<='S4-PartialHarvest'!$C$9,$AD$6*EXP($AD$7*('S4-PartialHarvest'!C$9-'Growth-Model-4'!A300)),0)","v":0},258.11742751166497,6.3732698151028389E-2,0,34.187862812341081,0,{"$f":"M300/'S4-PartialHarvest'!$C$19","v":0},{"$error":"#N/A"},{"$error":"#N/A"},{"$f":"_xlfn.XLOOKUP(B300,FeedTables!$C$17:$T$17,FeedTables!$C$31:$T$31,,-1)","v":{"$error":"#N/A"}},{"$f":"_xlfn.XLOOKUP(Q300,FeedPrice[Feed],FeedPrice[Price per kg],\"Unknown\",0)*O300","v":{"$error":"#N/A"}},{"$error":"#N/A"},{"$f":"_xlfn.XLOOKUP(O300,LabourFromFeed[Feed Quantity (kg)],LabourFromFeed[No. Labour],\"Out of range\",-1)","v":{"$error":"#N/A"}},{"$f":"T300*OperatingCosts!$C$9","v":{"$error":"#N/A"}},{"$error":"#N/A"}]
[299,{"$f":"IF(A301<='S4-PartialHarvest'!$C$9, B300*EXP((LN((E300/100)+1))*1),)","v":0},{"$f":"_xlfn.XLOOKUP($B301,FeedTables!$C$42:$T$42,FeedTables!$C$44:$T$44,,-1)","v":{"$error":"#N/A"}},{"$f":"_xlfn.XLOOKUP($B301,FeedTables!$C$42:$T$42,FeedTables!$C$45:$T$45,,-1)","v":{"$error":"#N/A"}},{"$f":"_xlfn.XLOOKUP($B301,FeedTables!$C$42:$T$42,FeedTables!$C$46:$T$46,,-1)*_xlfn.XLOOKUP(N300,DensityMultiplier[Biomass kg/m3],DensityMultiplier[Multiplier],,-1)","v":{"$error":"#N/A"}},{"$f":"IF(A301>'S4-PartialHarvest'!$C$9,0,IF(A301='S4-PartialHarvest'!$C$7,(F300-G300-H300)*(1-'S4-PartialHarvest'!$C$8),(F300-G300-H300)))","v":0},{"$f":"IF(A301<='S4-PartialHarvest'!$C$7,('Growth-Model-4'!G300*EXP($Z$7)),IF(A301<'S4-PartialHarvest'!$C$9,('Growth-Model-4'!G300*EXP($AA$7)),0))+IF(A301='S4-PartialHarvest'!$C$7,'Growth-Model-4'!$AA$6,0)","v":0},{"$f":"IF(A301<='S4-PartialHarvest'!$C$9,$AD$6*EXP($AD$7*('S4-PartialHarvest'!C$9-'Growth-Model-4'!A301)),0)","v":0},258.11742751166497,6.3732698151028389E-2,0,34.187862812341081,0,{"$f":"M301/'S4-PartialHarvest'!$C$19","v":0},{"$error":"#N/A"},{"$error":"#N/A"},{"$f":"_xlfn.XLOOKUP(B301,FeedTables!$C$17:$T$17,FeedTables!$C$31:$T$31,,-1)","v":{"$error":"#N/A"}},{"$f":"_xlfn.XLOOKUP(Q301,FeedPrice[Feed],FeedPrice[Price per kg],\"Unknown\",0)*O301","v":{"$error":"#N/A"}},{"$error":"#N/A"},{"$f":"_xlfn.XLOOKUP(O301,LabourFromFeed[Feed Quantity (kg)],LabourFromFeed[No. Labour],\"Out of range\",-1)","v":{"$error":"#N/A"}},{"$f":"T301*OperatingCosts!$C$9","v":{"$error":"#N/A"}},{"$error":"#N/A"}]
[300,{"$f":"IF(A302<='S4-PartialHarvest'!$C$9, B301*EXP((LN((E301/100)+1))*1),)","v":0},{"$f":"_xlfn.XLOOKUP($B302,FeedTables!$C$42:$T$42,FeedTables!$C$44:$T$44,,-1)","v":{"$error":"#N/A"}},{"$f":"_xlfn.XLOOKUP($B302,FeedTables!$C$42:$T$42,FeedTables!$C$45:$T$45,,-1)","v":{"$error":"#N/A"}},{"$f":"_xlfn.XLOOKUP($B302,FeedTables!$C$42:$T$42,FeedTables!$C$46:$T$46,,-1)*_xlfn.XLOOKUP(N301,DensityMultiplier[Biomass kg/m3],DensityMultiplier[Multiplier],,-1)","v":{"$error":"#N/A"}},{"$f":"IF(A302>'S4-PartialHarvest'!$C$9,0,IF(A302='S4-PartialHarvest'!$C$7,(F301-G301-H301)*(1-'S4-PartialHarvest'!$C$8),(F301-G301-H301)))","v":0},{"$f":"IF(A302<='S4-PartialHarvest'!$C$7,('Growth-Model-4'!G301*EXP($Z$7)),IF(A302<'S4-PartialHarvest'!$C$9,('Growth-Model-4'!G301*EXP($AA$7)),0))+IF(A302='S4-PartialHarvest'!$C$7,'Growth-Model-4'!$AA$6,0)","v":0},{"$f":"IF(A302<='S4-PartialHarvest'!$C$9,$AD$6*EXP($AD$7*('S4-PartialHarvest'!C$9-'Growth-Model-4'!A302)),0)","v":0},258.11742751166497,6.3732698151028389E-2,0,34.187862812341081,0,{"$f":"M302/'S4-PartialHarvest'!$C$19","v":0},{"$error":"#N/A"},{"$error":"#N/A"},{"$f":"_xlfn.XLOOKUP(B302,FeedTables!$C$17:$T$17,FeedTables!$C$31:$T$31,,-1)","v":{"$error":"#N/A"}},{"$f":"_xlfn.XLOOKUP(Q302,FeedPrice[Feed],FeedPrice[Price per kg],\"Unknown\",0)*O302","v":{"$error":"#N/A"}},{"$error":"#N/A"},{"$f":"_xlfn.XLOOKUP(O302,LabourFromFeed[Feed Quantity (kg)],LabourFromFeed[No. Labour],\"Out of range\",-1)","v":{"$error":"#N/A"}},{"$f":"T302*OperatingCosts!$C$9","v":{"$error":"#N/A"}},{"$error":"#N/A"}]
[301,{"$f":"IF(A303<='S4-PartialHarvest'!$C$9, B302*EXP((LN((E302/100)+1))*1),)","v":0},{"$f":"_xlfn.XLOOKUP($B303,FeedTables!$C$42:$T$42,FeedTables!$C$44:$T$44,,-1)","v":{"$error":"#N/A"}},{"$f":"_xlfn.XLOOKUP($B303,FeedTables!$C$42:$T$42,FeedTables!$C$45:$T$45,,-1)","v":{"$error":"#N/A"}},{"$f":"_xlfn.XLOOKUP($B303,FeedTables!$C$42:$T$42,FeedTables!$C$46:$T$46,,-1)*_xlfn.XLOOKUP(N302,DensityMultiplier[Biomass kg/m3],DensityMultiplier[Multiplier],,-1)","v":{"$error":"#N/A"}},{"$f":"IF(A303>'S4-PartialHarvest'!$C$9,0,IF(A303='S4-PartialHarvest'!$C$7,(F302-G302-H302)*(1-'S4-PartialHarvest'!$C$8),(F302-G302-H302)))","v":0},{"$f":"IF(A303<='S4-PartialHarvest'!$C$7,('Growth-Model-4'!G302*EXP($Z$7)),IF(A303<'S4-PartialHarvest'!$C$9,('Growth-Model-4'!G302*EXP($AA$7)),0))+IF(A303='S4-PartialHarvest'!$C$7,'Growth-Model-4'!$AA$6,0)","v":0},{"$f":"IF(A303<='S4-PartialHarvest'!$C$9,$AD$6*EXP($AD$7*('S4-PartialHarvest'!C$9-'Growth-Model-4'!A303)),0)","v":0},258.11742751166497,6.3732698151028389E-2,0,34.187862812341081,0,{"$f":"M303/'S4-PartialHarvest'!$C$19","v":0},{"$error":"#N/A"},{"$error":"#N/A"},{"$f":"_xlfn.XLOOKUP(B303,FeedTables!$C$17:$T$17,FeedTables!$C$31:$T$31,,-1)","v":{"$error":"#N/A"}},{"$f":"_xlfn.XLOOKUP(Q303,FeedPrice[Feed],FeedPrice[Price per kg],\"Unknown\",0)*O303","v":{"$error":"#N/A"}},{"$error":"#N/A"},{"$f":"_xlfn.XLOOKUP(O303,LabourFromFeed[Feed Quantity (kg)],LabourFromFeed[No. Labour],\"Out of range\",-1)","v":{"$error":"#N/A"}},{"$f":"T303*OperatingCosts!$C$9","v":{"$error":"#N/A"}},{"$error":"#N/A"}]
[302,{"$f":"IF(A304<='S4-PartialHarvest'!$C$9, B303*EXP((LN((E303/100)+1))*1),)","v":0},{"$f":"_xlfn.XLOOKUP($B304,FeedTables!$C$42:$T$42,FeedTables!$C$44:$T$44,,-1)","v":{"$error":"#N/A"}},{"$f":"_xlfn.XLOOKUP($B304,FeedTables!$C$42:$T$42,FeedTables!$C$45:$T$45,,-1)","v":{"$error":"#N/A"}},{"$f":"_xlfn.XLOOKUP($B304,FeedTables!$C$42:$T$42,FeedTables!$C$46:$T$46,,-1)*_xlfn.XLOOKUP(N303,DensityMultiplier[Biomass kg/m3],DensityMultiplier[Multiplier],,-1)","v":{"$error":"#N/A"}},{"$f":"IF(A304>'S4-PartialHarvest'!$C$9,0,IF(A304='S4-PartialHarvest'!$C$7,(F303-G303-H303)*(1-'S4-PartialHarvest'!$C$8),(F303-G303-H303)))","v":0},{"$f":"IF(A304<='S4-PartialHarvest'!$C$7,('Growth-Model-4'!G303*EXP($Z$7)),IF(A304<'S4-PartialHarvest'!$C$9,('Growth-Model-4'!G303*EXP($AA$7)),0))+IF(A304='S4-PartialHarvest'!$C$7,'Growth-Model-4'!$AA$6,0)","v":0},{"$f":"IF(A304<='S4-PartialHarvest'!$C$9,$AD$6*EXP($AD$7*('S4-PartialHarvest'!C$9-'Growth-Model-4'!A304)),0)","v":0},258.11742751166497,6.3732698151028389E-2,0,34.187862812341081,0,{"$f":"M304/'S4-PartialHarvest'!$C$19","v":0},{"$error":"#N/A"},{"$error":"#N/A"},{"$f":"_xlfn.XLOOKUP(B304,FeedTables!$C$17:$T$17,FeedTables!$C$31:$T$31,,-1)","v":{"$error":"#N/A"}},{"$f":"_xlfn.XLOOKUP(Q304,FeedPrice[Feed],FeedPrice[Price per kg],\"Unknown\",0)*O304","v":{"$error":"#N/A"}},{"$error":"#N/A"},{"$f":"_xlfn.XLOOKUP(O304,LabourFromFeed[Feed Quantity (kg)],LabourFromFeed[No. Labour],\"Out of range\",-1)","v":{"$error":"#N/A"}},{"$f":"T304*OperatingCosts!$C$9","v":{"$error":"#N/A"}},{"$error":"#N/A"}]
[303,{"$f":"IF(A305<='S4-PartialHarvest'!$C$9, B304*EXP((LN((E304/100)+1))*1),)","v":0},{"$f":"_xlfn.XLOOKUP($B305,FeedTables!$C$42:$T$42,FeedTables!$C$44:$T$44,,-1)","v":{"$error":"#N/A"}},{"$f":"_xlfn.XLOOKUP($B305,FeedTables!$C$42:$T$42,FeedTables!$C$45:$T$45,,-1)","v":{"$error":"#N/A"}},{"$f":"_xlfn.XLOOKUP($B305,FeedTables!$C$42:$T$42,FeedTables!$C$46:$T$46,,-1)*_xlfn.XLOOKUP(N304,DensityMultiplier[Biomass kg/m3],DensityMultiplier[Multiplier],,-1)","v":{"$error":"#N/A"}},{"$f":"IF(A305>'S4-PartialHarvest'!$C$9,0,IF(A305='S4-PartialHarvest'!$C$7,(F304-G304-H304)*(1-'S4-PartialHarvest'!$C$8),(F304-G304-H304)))","v":0},{"$f":"IF(A305<='S4-PartialHarvest'!$C$7,('Growth-Model-4'!G304*EXP($Z$7)),IF(A305<'S4-PartialHarvest'!$C$9,('Growth-Model-4'!G304*EXP($AA$7)),0))+IF(A305='S4-PartialHarvest'!$C$7,'Growth-Model-4'!$AA$6,0)","v":0},{"$f":"IF(A305<='S4-PartialHarvest'!$C$9,$AD$6*EXP($AD$7*('S4-PartialHarvest'!C$9-'Growth-Model-4'!A305)),0)","v":0},258.11742751166497,6.3732698151028389E-2,0,34.187862812341081,0,{"$f":"M305/'S4-PartialHarvest'!$C$19","v":0},{"$error":"#N/A"},{"$error":"#N/A"},{"$f":"_xlfn.XLOOKUP(B305,FeedTables!$C$17:$T$17,FeedTables!$C$31:$T$31,,-1)","v":{"$error":"#N/A"}},{"$f":"_xlfn.XLOOKUP(Q305,FeedPrice[Feed],FeedPrice[Price per kg],\"Unknown\",0)*O305","v":{"$error":"#N/A"}},{"$error":"#N/A"},{"$f":"_xlfn.XLOOKUP(O305,LabourFromFeed[Feed Quantity (kg)],LabourFromFeed[No. Labour],\"Out of range\",-1)","v":{"$error":"#N/A"}},{"$f":"T305*OperatingCosts!$C$9","v":{"$error":"#N/A"}},{"$error":"#N/A"}]
[304,{"$f":"IF(A306<='S4-PartialHarvest'!$C$9, B305*EXP((LN((E305/100)+1))*1),)","v":0},{"$f":"_xlfn.XLOOKUP($B306,FeedTables!$C$42:$T$42,FeedTables!$C$44:$T$44,,-1)","v":{"$error":"#N/A"}},{"$f":"_xlfn.XLOOKUP($B306,FeedTables!$C$42:$T$42,FeedTables!$C$45:$T$45,,-1)","v":{"$error":"#N/A"}},{"$f":"_xlfn.XLOOKUP($B306,FeedTables!$C$42:$T$42,FeedTables!$C$46:$T$46,,-1)*_xlfn.XLOOKUP(N305,DensityMultiplier[Biomass kg/m3],DensityMultiplier[Multiplier],,-1)","v":{"$error":"#N/A"}},{"$f":"IF(A306>'S4-PartialHarvest'!$C$9,0,IF(A306='S4-PartialHarvest'!$C$7,(F305-G305-H305)*(1-'S4-PartialHarvest'!$C$8),(F305-G305-H305)))","v":0},{"$f":"IF(A306<='S4-PartialHarvest'!$C$7,('Growth-Model-4'!G305*EXP($Z$7)),IF(A306<'S4-PartialHarvest'!$C$9,('Growth-Model-4'!G305*EXP($AA$7)),0))+IF(A306='S4-PartialHarvest'!$C$7,'Growth-Model-4'!$AA$6,0)","v":0},{"$f":"IF(A306<='S4-PartialHarvest'!$C$9,$AD$6*EXP($AD$7*('S4-PartialHarvest'!C$9-'Growth-Model-4'!A306)),0)","v":0},258.11742751166497,6.3732698151028389E-2,0,34.187862812341081,0,{"$f":"M306/'S4-PartialHarvest'!$C$19","v":0},{"$error":"#N/A"},{"$error":"#N/A"},{"$f":"_xlfn.XLOOKUP(B306,FeedTables!$C$17:$T$17,FeedTables!$C$31:$T$31,,-1)","v":{"$error":"#N/A"}},{"$f":"_xlfn.XLOOKUP(Q306,FeedPrice[Feed],FeedPrice[Price per kg],\"Unknown\",0)*O306","v":{"$error":"#N/A"}},{"$error":"#N/A"},{"$f":"_xlfn.XLOOKUP(O306,LabourFromFeed[Feed Quantity (kg)],LabourFromFeed[No. Labour],\"Out of range\",-1)","v":{"$error":"#N/A"}},{"$f":"T306*OperatingCosts!$C$9","v":{"$error":"#N/A"}},{"$error":"#N/A"}]
[305,{"$f":"IF(A307<='S4-PartialHarvest'!$C$9, B306*EXP((LN((E306/100)+1))*1),)","v":0},{"$f":"_xlfn.XLOOKUP($B307,FeedTables!$C$42:$T$42,FeedTables!$C$44:$T$44,,-1)","v":{"$error":"#N/A"}},{"$f":"_xlfn.XLOOKUP($B307,FeedTables!$C$42:$T$42,FeedTables!$C$45:$T$45,,-1)","v":{"$error":"#N/A"}},{"$f":"_xlfn.XLOOKUP($B307,FeedTables!$C$42:$T$42,FeedTables!$C$46:$T$46,,-1)*_xlfn.XLOOKUP(N306,DensityMultiplier[Biomass kg/m3],DensityMultiplier[Multiplier],,-1)","v":{"$error":"#N/A"}},{"$f":"IF(A307>'S4-PartialHarvest'!$C$9,0,IF(A307='S4-PartialHarvest'!$C$7,(F306-G306-H306)*(1-'S4-PartialHarvest'!$C$8),(F306-G306-H306)))","v":0},{"$f":"IF(A307<='S4-PartialHarvest'!$C$7,('Growth-Model-4'!G306*EXP($Z$7)),IF(A307<'S4-PartialHarvest'!$C$9,('Growth-Model-4'!G306*EXP($AA$7)),0))+IF(A307='S4-PartialHarvest'!$C$7,'Growth-Model-4'!$AA$6,0)","v":0},{"$f":"IF(A307<='S4-PartialHarvest'!$C$9,$AD$6*EXP($AD$7*('S4-PartialHarvest'!C$9-'Growth-Model-4'!A307)),0)","v":0},258.11742751166497,6.3732698151028389E-2,0,34.187862812341081,0,{"$f":"M307/'S4-PartialHarvest'!$C$19","v":0},{"$error":"#N/A"},{"$error":"#N/A"},{"$f":"_xlfn.XLOOKUP(B307,FeedTables!$C$17:$T$17,FeedTables!$C$31:$T$31,,-1)","v":{"$error":"#N/A"}},{"$f":"_xlfn.XLOOKUP(Q307,FeedPrice[Feed],FeedPrice[Price per kg],\"Unknown\",0)*O307","v":{"$error":"#N/A"}},{"$error":"#N/A"},{"$f":"_xlfn.XLOOKUP(O307,LabourFromFeed[Feed Quantity (kg)],LabourFromFeed[No. Labour],\"Out of range\",-1)","v":{"$error":"#N/A"}},{"$f":"T307*OperatingCosts!$C$9","v":{"$error":"#N/A"}},{"$error":"#N/A"}]
[306,{"$f":"IF(A308<='S4-PartialHarvest'!$C$9, B307*EXP((LN((E307/100)+1))*1),)","v":0},{"$f":"_xlfn.XLOOKUP($B308,FeedTables!$C$42:$T$42,FeedTables!$C$44:$T$44,,-1)","v":{"$error":"#N/A"}},{"$f":"_xlfn.XLOOKUP($B308,FeedTables!$C$42:$T$42,FeedTables!$C$45:$T$45,,-1)","v":{"$error":"#N/A"}},{"$f":"_xlfn.XLOOKUP($B308,FeedTables!$C$42:$T$42,FeedTables!$C$46:$T$46,,-1)*_xlfn.XLOOKUP(N307,DensityMultiplier[Biomass kg/m3],DensityMultiplier[Multiplier],,-1)","v":{"$error":"#N/A"}},{"$f":"IF(A308>'S4-PartialHarvest'!$C$9,0,IF(A308='S4-PartialHarvest'!$C$7,(F307-G307-H307)*(1-'S4-PartialHarvest'!$C$8),(F307-G307-H307)))","v":0},{"$f":"IF(A308<='S4-PartialHarvest'!$C$7,('Growth-Model-4'!G307*EXP($Z$7)),IF(A308<'S4-PartialHarvest'!$C$9,('Growth-Model-4'!G307*EXP($AA$7)),0))+IF(A308='S4-PartialHarvest'!$C$7,'Growth-Model-4'!$AA$6,0)","v":0},{"$f":"IF(A308<='S4-PartialHarvest'!$C$9,$AD$6*EXP($AD$7*('S4-PartialHarvest'!C$9-'Growth-Model-4'!A308)),0)","v":0},258.11742751166497,6.3732698151028389E-2,0,34.187862812341081,0,{"$f":"M308/'S4-PartialHarvest'!$C$19","v":0},{"$error":"#N/A"},{"$error":"#N/A"},{"$f":"_xlfn.XLOOKUP(B308,FeedTables!$C$17:$T$17,FeedTables!$C$31:$T$31,,-1)","v":{"$error":"#N/A"}},{"$f":"_xlfn.XLOOKUP(Q308,FeedPrice[Feed],FeedPrice[Price per kg],\"Unknown\",0)*O308","v":{"$error":"#N/A"}},{"$error":"#N/A"},{"$f":"_xlfn.XLOOKUP(O308,LabourFromFeed[Feed Quantity (kg)],LabourFromFeed[No. Labour],\"Out of range\",-1)","v":{"$error":"#N/A"}},{"$f":"T308*OperatingCosts!$C$9","v":{"$error":"#N/A"}},{"$error":"#N/A"}]
[307,{"$f":"IF(A309<='S4-PartialHarvest'!$C$9, B308*EXP((LN((E308/100)+1))*1),)","v":0},{"$f":"_xlfn.XLOOKUP($B309,FeedTables!$C$42:$T$42,FeedTables!$C$44:$T$44,,-1)","v":{"$error":"#N/A"}},{"$f":"_xlfn.XLOOKUP($B309,FeedTables!$C$42:$T$42,FeedTables!$C$45:$T$45,,-1)","v":{"$error":"#N/A"}},{"$f":"_xlfn.XLOOKUP($B309,FeedTables!$C$42:$T$42,FeedTables!$C$46:$T$46,,-1)*_xlfn.XLOOKUP(N308,DensityMultiplier[Biomass kg/m3],DensityMultiplier[Multiplier],,-1)","v":{"$error":"#N/A"}},{"$f":"IF(A309>'S4-PartialHarvest'!$C$9,0,IF(A309='S4-PartialHarvest'!$C$7,(F308-G308-H308)*(1-'S4-PartialHarvest'!$C$8),(F308-G308-H308)))","v":0},{"$f":"IF(A309<='S4-PartialHarvest'!$C$7,('Growth-Model-4'!G308*EXP($Z$7)),IF(A309<'S4-PartialHarvest'!$C$9,('Growth-Model-4'!G308*EXP($AA$7)),0))+IF(A309='S4-PartialHarvest'!$C$7,'Growth-Model-4'!$AA$6,0)","v":0},{"$f":"IF(A309<='S4-PartialHarvest'!$C$9,$AD$6*EXP($AD$7*('S4-PartialHarvest'!C$9-'Growth-Model-4'!A309)),0)","v":0},258.11742751166497,6.3732698151028389E-2,0,34.187862812341081,0,{"$f":"M309/'S4-PartialHarvest'!$C$19","v":0},{"$error":"#N/A"},{"$error":"#N/A"},{"$f":"_xlfn.XLOOKUP(B309,FeedTables!$C$17:$T$17,FeedTables!$C$31:$T$31,,-1)","v":{"$error":"#N/A"}},{"$f":"_xlfn.XLOOKUP(Q309,FeedPrice[Feed],FeedPrice[Price per kg],\"Unknown\",0)*O309","v":{"$error":"#N/A"}},{"$error":"#N/A"},{"$f":"_xlfn.XLOOKUP(O309,LabourFromFeed[Feed Quantity (kg)],LabourFromFeed[No. Labour],\"Out of range\",-1)","v":{"$error":"#N/A"}},{"$f":"T309*OperatingCosts!$C$9","v":{"$error":"#N/A"}},{"$error":"#N/A"}]
[308,{"$f":"IF(A310<='S4-PartialHarvest'!$C$9, B309*EXP((LN((E309/100)+1))*1),)","v":0},{"$f":"_xlfn.XLOOKUP($B310,FeedTables!$C$42:$T$42,FeedTables!$C$44:$T$44,,-1)","v":{"$error":"#N/A"}},{"$f":"_xlfn.XLOOKUP($B310,FeedTables!$C$42:$T$42,FeedTables!$C$45:$T$45,,-1)","v":{"$error":"#N/A"}},{"$f":"_xlfn.XLOOKUP($B310,FeedTables!$C$42:$T$42,FeedTables!$C$46:$T$46,,-1)*_xlfn.XLOOKUP(N309,DensityMultiplier[Biomass kg/m3],DensityMultiplier[Multiplier],,-1)","v":{"$error":"#N/A"}},{"$f":"IF(A310>'S4-PartialHarvest'!$C$9,0,IF(A310='S4-PartialHarvest'!$C$7,(F309-G309-H309)*(1-'S4-PartialHarvest'!$C$8),(F309-G309-H309)))","v":0},{"$f":"IF(A310<='S4-PartialHarvest'!$C$7,('Growth-Model-4'!G309*EXP($Z$7)),IF(A310<'S4-PartialHarvest'!$C$9,('Growth-Model-4'!G309*EXP($AA$7)),0))+IF(A310='S4-PartialHarvest'!$C$7,'Growth-Model-4'!$AA$6,0)","v":0},{"$f":"IF(A310<='S4-PartialHarvest'!$C$9,$AD$6*EXP($AD$7*('S4-PartialHarvest'!C$9-'Growth-Model-4'!A310)),0)","v":0},258.11742751166497,6.3732698151028389E-2,0,34.187862812341081,0,{"$f":"M310/'S4-PartialHarvest'!$C$19","v":0},{"$error":"#N/A"},{"$error":"#N/A"},{"$f":"_xlfn.XLOOKUP(B310,FeedTables!$C$17:$T$17,FeedTables!$C$31:$T$31,,-1)","v":{"$error":"#N/A"}},{"$f":"_xlfn.XLOOKUP(Q310,FeedPrice[Feed],FeedPrice[Price per kg],\"Unknown\",0)*O310","v":{"$error":"#N/A"}},{"$error":"#N/A"},{"$f":"_xlfn.XLOOKUP(O310,LabourFromFeed[Feed Quantity (kg)],LabourFromFeed[No. Labour],\"Out of range\",-1)","v":{"$error":"#N/A"}},{"$f":"T310*OperatingCosts!$C$9","v":{"$error":"#N/A"}},{"$error":"#N/A"}]
[309,{"$f":"IF(A311<='S4-PartialHarvest'!$C$9, B310*EXP((LN((E310/100)+1))*1),)","v":0},{"$f":"_xlfn.XLOOKUP($B311,FeedTables!$C$42:$T$42,FeedTables!$C$44:$T$44,,-1)","v":{"$error":"#N/A"}},{"$f":"_xlfn.XLOOKUP($B311,FeedTables!$C$42:$T$42,FeedTables!$C$45:$T$45,,-1)","v":{"$error":"#N/A"}},{"$f":"_xlfn.XLOOKUP($B311,FeedTables!$C$42:$T$42,FeedTables!$C$46:$T$46,,-1)*_xlfn.XLOOKUP(N310,DensityMultiplier[Biomass kg/m3],DensityMultiplier[Multiplier],,-1)","v":{"$error":"#N/A"}},{"$f":"IF(A311>'S4-PartialHarvest'!$C$9,0,IF(A311='S4-PartialHarvest'!$C$7,(F310-G310-H310)*(1-'S4-PartialHarvest'!$C$8),(F310-G310-H310)))","v":0},{"$f":"IF(A311<='S4-PartialHarvest'!$C$7,('Growth-Model-4'!G310*EXP($Z$7)),IF(A311<'S4-PartialHarvest'!$C$9,('Growth-Model-4'!G310*EXP($AA$7)),0))+IF(A311='S4-PartialHarvest'!$C$7,'Growth-Model-4'!$AA$6,0)","v":0},{"$f":"IF(A311<='S4-PartialHarvest'!$C$9,$AD$6*EXP($AD$7*('S4-PartialHarvest'!C$9-'Growth-Model-4'!A311)),0)","v":0},258.11742751166497,6.3732698151028389E-2,0,34.187862812341081,0,{"$f":"M311/'S4-PartialHarvest'!$C$19","v":0},{"$error":"#N/A"},{"$error":"#N/A"},{"$f":"_xlfn.XLOOKUP(B311,FeedTables!$C$17:$T$17,FeedTables!$C$31:$T$31,,-1)","v":{"$error":"#N/A"}},{"$f":"_xlfn.XLOOKUP(Q311,FeedPrice[Feed],FeedPrice[Price per kg],\"Unknown\",0)*O311","v":{"$error":"#N/A"}},{"$error":"#N/A"},{"$f":"_xlfn.XLOOKUP(O311,LabourFromFeed[Feed Quantity (kg)],LabourFromFeed[No. Labour],\"Out of range\",-1)","v":{"$error":"#N/A"}},{"$f":"T311*OperatingCosts!$C$9","v":{"$error":"#N/A"}},{"$error":"#N/A"}]
[310,{"$f":"IF(A312<='S4-PartialHarvest'!$C$9, B311*EXP((LN((E311/100)+1))*1),)","v":0},{"$f":"_xlfn.XLOOKUP($B312,FeedTables!$C$42:$T$42,FeedTables!$C$44:$T$44,,-1)","v":{"$error":"#N/A"}},{"$f":"_xlfn.XLOOKUP($B312,FeedTables!$C$42:$T$42,FeedTables!$C$45:$T$45,,-1)","v":{"$error":"#N/A"}},{"$f":"_xlfn.XLOOKUP($B312,FeedTables!$C$42:$T$42,FeedTables!$C$46:$T$46,,-1)*_xlfn.XLOOKUP(N311,DensityMultiplier[Biomass kg/m3],DensityMultiplier[Multiplier],,-1)","v":{"$error":"#N/A"}},{"$f":"IF(A312>'S4-PartialHarvest'!$C$9,0,IF(A312='S4-PartialHarvest'!$C$7,(F311-G311-H311)*(1-'S4-PartialHarvest'!$C$8),(F311-G311-H311)))","v":0},{"$f":"IF(A312<='S4-PartialHarvest'!$C$7,('Growth-Model-4'!G311*EXP($Z$7)),IF(A312<'S4-PartialHarvest'!$C$9,('Growth-Model-4'!G311*EXP($AA$7)),0))+IF(A312='S4-PartialHarvest'!$C$7,'Growth-Model-4'!$AA$6,0)","v":0},{"$f":"IF(A312<='S4-PartialHarvest'!$C$9,$AD$6*EXP($AD$7*('S4-PartialHarvest'!C$9-'Growth-Model-4'!A312)),0)","v":0},258.11742751166497,6.3732698151028389E-2,0,34.187862812341081,0,{"$f":"M312/'S4-PartialHarvest'!$C$19","v":0},{"$error":"#N/A"},{"$error":"#N/A"},{"$f":"_xlfn.XLOOKUP(B312,FeedTables!$C$17:$T$17,FeedTables!$C$31:$T$31,,-1)","v":{"$error":"#N/A"}},{"$f":"_xlfn.XLOOKUP(Q312,FeedPrice[Feed],FeedPrice[Price per kg],\"Unknown\",0)*O312","v":{"$error":"#N/A"}},{"$error":"#N/A"},{"$f":"_xlfn.XLOOKUP(O312,LabourFromFeed[Feed Quantity (kg)],LabourFromFeed[No. Labour],\"Out of range\",-1)","v":{"$error":"#N/A"}},{"$f":"T312*OperatingCosts!$C$9","v":{"$error":"#N/A"}},{"$error":"#N/A"}]
[311,{"$f":"IF(A313<='S4-PartialHarvest'!$C$9, B312*EXP((LN((E312/100)+1))*1),)","v":0},{"$f":"_xlfn.XLOOKUP($B313,FeedTables!$C$42:$T$42,FeedTables!$C$44:$T$44,,-1)","v":{"$error":"#N/A"}},{"$f":"_xlfn.XLOOKUP($B313,FeedTables!$C$42:$T$42,FeedTables!$C$45:$T$45,,-1)","v":{"$error":"#N/A"}},{"$f":"_xlfn.XLOOKUP($B313,FeedTables!$C$42:$T$42,FeedTables!$C$46:$T$46,,-1)*_xlfn.XLOOKUP(N312,DensityMultiplier[Biomass kg/m3],DensityMultiplier[Multiplier],,-1)","v":{"$error":"#N/A"}},{"$f":"IF(A313>'S4-PartialHarvest'!$C$9,0,IF(A313='S4-PartialHarvest'!$C$7,(F312-G312-H312)*(1-'S4-PartialHarvest'!$C$8),(F312-G312-H312)))","v":0},{"$f":"IF(A313<='S4-PartialHarvest'!$C$7,('Growth-Model-4'!G312*EXP($Z$7)),IF(A313<'S4-PartialHarvest'!$C$9,('Growth-Model-4'!G312*EXP($AA$7)),0))+IF(A313='S4-PartialHarvest'!$C$7,'Growth-Model-4'!$AA$6,0)","v":0},{"$f":"IF(A313<='S4-PartialHarvest'!$C$9,$AD$6*EXP($AD$7*('S4-PartialHarvest'!C$9-'Growth-Model-4'!A313)),0)","v":0},258.11742751166497,6.3732698151028389E-2,0,34.187862812341081,0,{"$f":"M313/'S4-PartialHarvest'!$C$19","v":0},{"$error":"#N/A"},{"$error":"#N/A"},{"$f":"_xlfn.XLOOKUP(B313,FeedTables!$C$17:$T$17,FeedTables!$C$31:$T$31,,-1)","v":{"$error":"#N/A"}},{"$f":"_xlfn.XLOOKUP(Q313,FeedPrice[Feed],FeedPrice[Price per kg],\"Unknown\",0)*O313","v":{"$error":"#N/A"}},{"$error":"#N/A"},{"$f":"_xlfn.XLOOKUP(O313,LabourFromFeed[Feed Quantity (kg)],LabourFromFeed[No. Labour],\"Out of range\",-1)","v":{"$error":"#N/A"}},{"$f":"T313*OperatingCosts!$C$9","v":{"$error":"#N/A"}},{"$error":"#N/A"}]
[312,{"$f":"IF(A314<='S4-PartialHarvest'!$C$9, B313*EXP((LN((E313/100)+1))*1),)","v":0},{"$f":"_xlfn.XLOOKUP($B314,FeedTables!$C$42:$T$42,FeedTables!$C$44:$T$44,,-1)","v":{"$error":"#N/A"}},{"$f":"_xlfn.XLOOKUP($B314,FeedTables!$C$42:$T$42,FeedTables!$C$45:$T$45,,-1)","v":{"$error":"#N/A"}},{"$f":"_xlfn.XLOOKUP($B314,FeedTables!$C$42:$T$42,FeedTables!$C$46:$T$46,,-1)*_xlfn.XLOOKUP(N313,DensityMultiplier[Biomass kg/m3],DensityMultiplier[Multiplier],,-1)","v":{"$error":"#N/A"}},{"$f":"IF(A314>'S4-PartialHarvest'!$C$9,0,IF(A314='S4-PartialHarvest'!$C$7,(F313-G313-H313)*(1-'S4-PartialHarvest'!$C$8),(F313-G313-H313)))","v":0},{"$f":"IF(A314<='S4-PartialHarvest'!$C$7,('Growth-Model-4'!G313*EXP($Z$7)),IF(A314<'S4-PartialHarvest'!$C$9,('Growth-Model-4'!G313*EXP($AA$7)),0))+IF(A314='S4-PartialHarvest'!$C$7,'Growth-Model-4'!$AA$6,0)","v":0},{"$f":"IF(A314<='S4-PartialHarvest'!$C$9,$AD$6*EXP($AD$7*('S4-PartialHarvest'!C$9-'Growth-Model-4'!A314)),0)","v":0},258.11742751166497,6.3732698151028389E-2,0,34.187862812341081,0,{"$f":"M314/'S4-PartialHarvest'!$C$19","v":0},{"$error":"#N/A"},{"$error":"#N/A"},{"$f":"_xlfn.XLOOKUP(B314,FeedTables!$C$17:$T$17,FeedTables!$C$31:$T$31,,-1)","v":{"$error":"#N/A"}},{"$f":"_xlfn.XLOOKUP(Q314,FeedPrice[Feed],FeedPrice[Price per kg],\"Unknown\",0)*O314","v":{"$error":"#N/A"}},{"$error":"#N/A"},{"$f":"_xlfn.XLOOKUP(O314,LabourFromFeed[Feed Quantity (kg)],LabourFromFeed[No. Labour],\"Out of range\",-1)","v":{"$error":"#N/A"}},{"$f":"T314*OperatingCosts!$C$9","v":{"$error":"#N/A"}},{"$error":"#N/A"}]
[313,{"$f":"IF(A315<='S4-PartialHarvest'!$C$9, B314*EXP((LN((E314/100)+1))*1),)","v":0},{"$f":"_xlfn.XLOOKUP($B315,FeedTables!$C$42:$T$42,FeedTables!$C$44:$T$44,,-1)","v":{"$error":"#N/A"}},{"$f":"_xlfn.XLOOKUP($B315,FeedTables!$C$42:$T$42,FeedTables!$C$45:$T$45,,-1)","v":{"$error":"#N/A"}},{"$f":"_xlfn.XLOOKUP($B315,FeedTables!$C$42:$T$42,FeedTables!$C$46:$T$46,,-1)*_xlfn.XLOOKUP(N314,DensityMultiplier[Biomass kg/m3],DensityMultiplier[Multiplier],,-1)","v":{"$error":"#N/A"}},{"$f":"IF(A315>'S4-PartialHarvest'!$C$9,0,IF(A315='S4-PartialHarvest'!$C$7,(F314-G314-H314)*(1-'S4-PartialHarvest'!$C$8),(F314-G314-H314)))","v":0},{"$f":"IF(A315<='S4-PartialHarvest'!$C$7,('Growth-Model-4'!G314*EXP($Z$7)),IF(A315<'S4-PartialHarvest'!$C$9,('Growth-Model-4'!G314*EXP($AA$7)),0))+IF(A315='S4-PartialHarvest'!$C$7,'Growth-Model-4'!$AA$6,0)","v":0},{"$f":"IF(A315<='S4-PartialHarvest'!$C$9,$AD$6*EXP($AD$7*('S4-PartialHarvest'!C$9-'Growth-Model-4'!A315)),0)","v":0},258.11742751166497,6.3732698151028389E-2,0,34.187862812341081,0,{"$f":"M315/'S4-PartialHarvest'!$C$19","v":0},{"$error":"#N/A"},{"$error":"#N/A"},{"$f":"_xlfn.XLOOKUP(B315,FeedTables!$C$17:$T$17,FeedTables!$C$31:$T$31,,-1)","v":{"$error":"#N/A"}},{"$f":"_xlfn.XLOOKUP(Q315,FeedPrice[Feed],FeedPrice[Price per kg],\"Unknown\",0)*O315","v":{"$error":"#N/A"}},{"$error":"#N/A"},{"$f":"_xlfn.XLOOKUP(O315,LabourFromFeed[Feed Quantity (kg)],LabourFromFeed[No. Labour],\"Out of range\",-1)","v":{"$error":"#N/A"}},{"$f":"T315*OperatingCosts!$C$9","v":{"$error":"#N/A"}},{"$error":"#N/A"}]
[314,{"$f":"IF(A316<='S4-PartialHarvest'!$C$9, B315*EXP((LN((E315/100)+1))*1),)","v":0},{"$f":"_xlfn.XLOOKUP($B316,FeedTables!$C$42:$T$42,FeedTables!$C$44:$T$44,,-1)","v":{"$error":"#N/A"}},{"$f":"_xlfn.XLOOKUP($B316,FeedTables!$C$42:$T$42,FeedTables!$C$45:$T$45,,-1)","v":{"$error":"#N/A"}},{"$f":"_xlfn.XLOOKUP($B316,FeedTables!$C$42:$T$42,FeedTables!$C$46:$T$46,,-1)*_xlfn.XLOOKUP(N315,DensityMultiplier[Biomass kg/m3],DensityMultiplier[Multiplier],,-1)","v":{"$error":"#N/A"}},{"$f":"IF(A316>'S4-PartialHarvest'!$C$9,0,IF(A316='S4-PartialHarvest'!$C$7,(F315-G315-H315)*(1-'S4-PartialHarvest'!$C$8),(F315-G315-H315)))","v":0},{"$f":"IF(A316<='S4-PartialHarvest'!$C$7,('Growth-Model-4'!G315*EXP($Z$7)),IF(A316<'S4-PartialHarvest'!$C$9,('Growth-Model-4'!G315*EXP($AA$7)),0))+IF(A316='S4-PartialHarvest'!$C$7,'Growth-Model-4'!$AA$6,0)","v":0},{"$f":"IF(A316<='S4-PartialHarvest'!$C$9,$AD$6*EXP($AD$7*('S4-PartialHarvest'!C$9-'Growth-Model-4'!A316)),0)","v":0},258.11742751166497,6.3732698151028389E-2,0,34.187862812341081,0,{"$f":"M316/'S4-PartialHarvest'!$C$19","v":0},{"$error":"#N/A"},{"$error":"#N/A"},{"$f":"_xlfn.XLOOKUP(B316,FeedTables!$C$17:$T$17,FeedTables!$C$31:$T$31,,-1)","v":{"$error":"#N/A"}},{"$f":"_xlfn.XLOOKUP(Q316,FeedPrice[Feed],FeedPrice[Price per kg],\"Unknown\",0)*O316","v":{"$error":"#N/A"}},{"$error":"#N/A"},{"$f":"_xlfn.XLOOKUP(O316,LabourFromFeed[Feed Quantity (kg)],LabourFromFeed[No. Labour],\"Out of range\",-1)","v":{"$error":"#N/A"}},{"$f":"T316*OperatingCosts!$C$9","v":{"$error":"#N/A"}},{"$error":"#N/A"}]
[315,{"$f":"IF(A317<='S4-PartialHarvest'!$C$9, B316*EXP((LN((E316/100)+1))*1),)","v":0},{"$f":"_xlfn.XLOOKUP($B317,FeedTables!$C$42:$T$42,FeedTables!$C$44:$T$44,,-1)","v":{"$error":"#N/A"}},{"$f":"_xlfn.XLOOKUP($B317,FeedTables!$C$42:$T$42,FeedTables!$C$45:$T$45,,-1)","v":{"$error":"#N/A"}},{"$f":"_xlfn.XLOOKUP($B317,FeedTables!$C$42:$T$42,FeedTables!$C$46:$T$46,,-1)*_xlfn.XLOOKUP(N316,DensityMultiplier[Biomass kg/m3],DensityMultiplier[Multiplier],,-1)","v":{"$error":"#N/A"}},{"$f":"IF(A317>'S4-PartialHarvest'!$C$9,0,IF(A317='S4-PartialHarvest'!$C$7,(F316-G316-H316)*(1-'S4-PartialHarvest'!$C$8),(F316-G316-H316)))","v":0},{"$f":"IF(A317<='S4-PartialHarvest'!$C$7,('Growth-Model-4'!G316*EXP($Z$7)),IF(A317<'S4-PartialHarvest'!$C$9,('Growth-Model-4'!G316*EXP($AA$7)),0))+IF(A317='S4-PartialHarvest'!$C$7,'Growth-Model-4'!$AA$6,0)","v":0},{"$f":"IF(A317<='S4-PartialHarvest'!$C$9,$AD$6*EXP($AD$7*('S4-PartialHarvest'!C$9-'Growth-Model-4'!A317)),0)","v":0},258.11742751166497,6.3732698151028389E-2,0,34.187862812341081,0,{"$f":"M317/'S4-PartialHarvest'!$C$19","v":0},{"$error":"#N/A"},{"$error":"#N/A"},{"$f":"_xlfn.XLOOKUP(B317,FeedTables!$C$17:$T$17,FeedTables!$C$31:$T$31,,-1)","v":{"$error":"#N/A"}},{"$f":"_xlfn.XLOOKUP(Q317,FeedPrice[Feed],FeedPrice[Price per kg],\"Unknown\",0)*O317","v":{"$error":"#N/A"}},{"$error":"#N/A"},{"$f":"_xlfn.XLOOKUP(O317,LabourFromFeed[Feed Quantity (kg)],LabourFromFeed[No. Labour],\"Out of range\",-1)","v":{"$error":"#N/A"}},{"$f":"T317*OperatingCosts!$C$9","v":{"$error":"#N/A"}},{"$error":"#N/A"}]
[316,{"$f":"IF(A318<='S4-PartialHarvest'!$C$9, B317*EXP((LN((E317/100)+1))*1),)","v":0},{"$f":"_xlfn.XLOOKUP($B318,FeedTables!$C$42:$T$42,FeedTables!$C$44:$T$44,,-1)","v":{"$error":"#N/A"}},{"$f":"_xlfn.XLOOKUP($B318,FeedTables!$C$42:$T$42,FeedTables!$C$45:$T$45,,-1)","v":{"$error":"#N/A"}},{"$f":"_xlfn.XLOOKUP($B318,FeedTables!$C$42:$T$42,FeedTables!$C$46:$T$46,,-1)*_xlfn.XLOOKUP(N317,DensityMultiplier[Biomass kg/m3],DensityMultiplier[Multiplier],,-1)","v":{"$error":"#N/A"}},{"$f":"IF(A318>'S4-PartialHarvest'!$C$9,0,IF(A318='S4-PartialHarvest'!$C$7,(F317-G317-H317)*(1-'S4-PartialHarvest'!$C$8),(F317-G317-H317)))","v":0},{"$f":"IF(A318<='S4-PartialHarvest'!$C$7,('Growth-Model-4'!G317*EXP($Z$7)),IF(A318<'S4-PartialHarvest'!$C$9,('Growth-Model-4'!G317*EXP($AA$7)),0))+IF(A318='S4-PartialHarvest'!$C$7,'Growth-Model-4'!$AA$6,0)","v":0},{"$f":"IF(A318<='S4-PartialHarvest'!$C$9,$AD$6*EXP($AD$7*('S4-PartialHarvest'!C$9-'Growth-Model-4'!A318)),0)","v":0},258.11742751166497,6.3732698151028389E-2,0,34.187862812341081,0,{"$f":"M318/'S4-PartialHarvest'!$C$19","v":0},{"$error":"#N/A"},{"$error":"#N/A"},{"$f":"_xlfn.XLOOKUP(B318,FeedTables!$C$17:$T$17,FeedTables!$C$31:$T$31,,-1)","v":{"$error":"#N/A"}},{"$f":"_xlfn.XLOOKUP(Q318,FeedPrice[Feed],FeedPrice[Price per kg],\"Unknown\",0)*O318","v":{"$error":"#N/A"}},{"$error":"#N/A"},{"$f":"_xlfn.XLOOKUP(O318,LabourFromFeed[Feed Quantity (kg)],LabourFromFeed[No. Labour],\"Out of range\",-1)","v":{"$error":"#N/A"}},{"$f":"T318*OperatingCosts!$C$9","v":{"$error":"#N/A"}},{"$error":"#N/A"}]
[317,{"$f":"IF(A319<='S4-PartialHarvest'!$C$9, B318*EXP((LN((E318/100)+1))*1),)","v":0},{"$f":"_xlfn.XLOOKUP($B319,FeedTables!$C$42:$T$42,FeedTables!$C$44:$T$44,,-1)","v":{"$error":"#N/A"}},{"$f":"_xlfn.XLOOKUP($B319,FeedTables!$C$42:$T$42,FeedTables!$C$45:$T$45,,-1)","v":{"$error":"#N/A"}},{"$f":"_xlfn.XLOOKUP($B319,FeedTables!$C$42:$T$42,FeedTables!$C$46:$T$46,,-1)*_xlfn.XLOOKUP(N318,DensityMultiplier[Biomass kg/m3],DensityMultiplier[Multiplier],,-1)","v":{"$error":"#N/A"}},{"$f":"IF(A319>'S4-PartialHarvest'!$C$9,0,IF(A319='S4-PartialHarvest'!$C$7,(F318-G318-H318)*(1-'S4-PartialHarvest'!$C$8),(F318-G318-H318)))","v":0},{"$f":"IF(A319<='S4-PartialHarvest'!$C$7,('Growth-Model-4'!G318*EXP($Z$7)),IF(A319<'S4-PartialHarvest'!$C$9,('Growth-Model-4'!G318*EXP($AA$7)),0))+IF(A319='S4-PartialHarvest'!$C$7,'Growth-Model-4'!$AA$6,0)","v":0},{"$f":"IF(A319<='S4-PartialHarvest'!$C$9,$AD$6*EXP($AD$7*('S4-PartialHarvest'!C$9-'Growth-Model-4'!A319)),0)","v":0},258.11742751166497,6.3732698151028389E-2,0,34.187862812341081,0,{"$f":"M319/'S4-PartialHarvest'!$C$19","v":0},{"$error":"#N/A"},{"$error":"#N/A"},{"$f":"_xlfn.XLOOKUP(B319,FeedTables!$C$17:$T$17,FeedTables!$C$31:$T$31,,-1)","v":{"$error":"#N/A"}},{"$f":"_xlfn.XLOOKUP(Q319,FeedPrice[Feed],FeedPrice[Price per kg],\"Unknown\",0)*O319","v":{"$error":"#N/A"}},{"$error":"#N/A"},{"$f":"_xlfn.XLOOKUP(O319,LabourFromFeed[Feed Quantity (kg)],LabourFromFeed[No. Labour],\"Out of range\",-1)","v":{"$error":"#N/A"}},{"$f":"T319*OperatingCosts!$C$9","v":{"$error":"#N/A"}},{"$error":"#N/A"}]
[318,{"$f":"IF(A320<='S4-PartialHarvest'!$C$9, B319*EXP((LN((E319/100)+1))*1),)","v":0},{"$f":"_xlfn.XLOOKUP($B320,FeedTables!$C$42:$T$42,FeedTables!$C$44:$T$44,,-1)","v":{"$error":"#N/A"}},{"$f":"_xlfn.XLOOKUP($B320,FeedTables!$C$42:$T$42,FeedTables!$C$45:$T$45,,-1)","v":{"$error":"#N/A"}},{"$f":"_xlfn.XLOOKUP($B320,FeedTables!$C$42:$T$42,FeedTables!$C$46:$T$46,,-1)*_xlfn.XLOOKUP(N319,DensityMultiplier[Biomass kg/m3],DensityMultiplier[Multiplier],,-1)","v":{"$error":"#N/A"}},{"$f":"IF(A320>'S4-PartialHarvest'!$C$9,0,IF(A320='S4-PartialHarvest'!$C$7,(F319-G319-H319)*(1-'S4-PartialHarvest'!$C$8),(F319-G319-H319)))","v":0},{"$f":"IF(A320<='S4-PartialHarvest'!$C$7,('Growth-Model-4'!G319*EXP($Z$7)),IF(A320<'S4-PartialHarvest'!$C$9,('Growth-Model-4'!G319*EXP($AA$7)),0))+IF(A320='S4-PartialHarvest'!$C$7,'Growth-Model-4'!$AA$6,0)","v":0},{"$f":"IF(A320<='S4-PartialHarvest'!$C$9,$AD$6*EXP($AD$7*('S4-PartialHarvest'!C$9-'Growth-Model-4'!A320)),0)","v":0},258.11742751166497,6.3732698151028389E-2,0,34.187862812341081,0,{"$f":"M320/'S4-PartialHarvest'!$C$19","v":0},{"$error":"#N/A"},{"$error":"#N/A"},{"$f":"_xlfn.XLOOKUP(B320,FeedTables!$C$17:$T$17,FeedTables!$C$31:$T$31,,-1)","v":{"$error":"#N/A"}},{"$f":"_xlfn.XLOOKUP(Q320,FeedPrice[Feed],FeedPrice[Price per kg],\"Unknown\",0)*O320","v":{"$error":"#N/A"}},{"$error":"#N/A"},{"$f":"_xlfn.XLOOKUP(O320,LabourFromFeed[Feed Quantity (kg)],LabourFromFeed[No. Labour],\"Out of range\",-1)","v":{"$error":"#N/A"}},{"$f":"T320*OperatingCosts!$C$9","v":{"$error":"#N/A"}},{"$error":"#N/A"}]
[319,{"$f":"IF(A321<='S4-PartialHarvest'!$C$9, B320*EXP((LN((E320/100)+1))*1),)","v":0},{"$f":"_xlfn.XLOOKUP($B321,FeedTables!$C$42:$T$42,FeedTables!$C$44:$T$44,,-1)","v":{"$error":"#N/A"}},{"$f":"_xlfn.XLOOKUP($B321,FeedTables!$C$42:$T$42,FeedTables!$C$45:$T$45,,-1)","v":{"$error":"#N/A"}},{"$f":"_xlfn.XLOOKUP($B321,FeedTables!$C$42:$T$42,FeedTables!$C$46:$T$46,,-1)*_xlfn.XLOOKUP(N320,DensityMultiplier[Biomass kg/m3],DensityMultiplier[Multiplier],,-1)","v":{"$error":"#N/A"}},{"$f":"IF(A321>'S4-PartialHarvest'!$C$9,0,IF(A321='S4-PartialHarvest'!$C$7,(F320-G320-H320)*(1-'S4-PartialHarvest'!$C$8),(F320-G320-H320)))","v":0},{"$f":"IF(A321<='S4-PartialHarvest'!$C$7,('Growth-Model-4'!G320*EXP($Z$7)),IF(A321<'S4-PartialHarvest'!$C$9,('Growth-Model-4'!G320*EXP($AA$7)),0))+IF(A321='S4-PartialHarvest'!$C$7,'Growth-Model-4'!$AA$6,0)","v":0},{"$f":"IF(A321<='S4-PartialHarvest'!$C$9,$AD$6*EXP($AD$7*('S4-PartialHarvest'!C$9-'Growth-Model-4'!A321)),0)","v":0},258.11742751166497,6.3732698151028389E-2,0,34.187862812341081,0,{"$f":"M321/'S4-PartialHarvest'!$C$19","v":0},{"$error":"#N/A"},{"$error":"#N/A"},{"$f":"_xlfn.XLOOKUP(B321,FeedTables!$C$17:$T$17,FeedTables!$C$31:$T$31,,-1)","v":{"$error":"#N/A"}},{"$f":"_xlfn.XLOOKUP(Q321,FeedPrice[Feed],FeedPrice[Price per kg],\"Unknown\",0)*O321","v":{"$error":"#N/A"}},{"$error":"#N/A"},{"$f":"_xlfn.XLOOKUP(O321,LabourFromFeed[Feed Quantity (kg)],LabourFromFeed[No. Labour],\"Out of range\",-1)","v":{"$error":"#N/A"}},{"$f":"T321*OperatingCosts!$C$9","v":{"$error":"#N/A"}},{"$error":"#N/A"}]
[320,{"$f":"IF(A322<='S4-PartialHarvest'!$C$9, B321*EXP((LN((E321/100)+1))*1),)","v":0},{"$f":"_xlfn.XLOOKUP($B322,FeedTables!$C$42:$T$42,FeedTables!$C$44:$T$44,,-1)","v":{"$error":"#N/A"}},{"$f":"_xlfn.XLOOKUP($B322,FeedTables!$C$42:$T$42,FeedTables!$C$45:$T$45,,-1)","v":{"$error":"#N/A"}},{"$f":"_xlfn.XLOOKUP($B322,FeedTables!$C$42:$T$42,FeedTables!$C$46:$T$46,,-1)*_xlfn.XLOOKUP(N321,DensityMultiplier[Biomass kg/m3],DensityMultiplier[Multiplier],,-1)","v":{"$error":"#N/A"}},{"$f":"IF(A322>'S4-PartialHarvest'!$C$9,0,IF(A322='S4-PartialHarvest'!$C$7,(F321-G321-H321)*(1-'S4-PartialHarvest'!$C$8),(F321-G321-H321)))","v":0},{"$f":"IF(A322<='S4-PartialHarvest'!$C$7,('Growth-Model-4'!G321*EXP($Z$7)),IF(A322<'S4-PartialHarvest'!$C$9,('Growth-Model-4'!G321*EXP($AA$7)),0))+IF(A322='S4-PartialHarvest'!$C$7,'Growth-Model-4'!$AA$6,0)","v":0},{"$f":"IF(A322<='S4-PartialHarvest'!$C$9,$AD$6*EXP($AD$7*('S4-PartialHarvest'!C$9-'Growth-Model-4'!A322)),0)","v":0},258.11742751166497,6.3732698151028389E-2,0,34.187862812341081,0,{"$f":"M322/'S4-PartialHarvest'!$C$19","v":0},{"$error":"#N/A"},{"$error":"#N/A"},{"$f":"_xlfn.XLOOKUP(B322,FeedTables!$C$17:$T$17,FeedTables!$C$31:$T$31,,-1)","v":{"$error":"#N/A"}},{"$f":"_xlfn.XLOOKUP(Q322,FeedPrice[Feed],FeedPrice[Price per kg],\"Unknown\",0)*O322","v":{"$error":"#N/A"}},{"$error":"#N/A"},{"$f":"_xlfn.XLOOKUP(O322,LabourFromFeed[Feed Quantity (kg)],LabourFromFeed[No. Labour],\"Out of range\",-1)","v":{"$error":"#N/A"}},{"$f":"T322*OperatingCosts!$C$9","v":{"$error":"#N/A"}},{"$error":"#N/A"}]
[321,{"$f":"IF(A323<='S4-PartialHarvest'!$C$9, B322*EXP((LN((E322/100)+1))*1),)","v":0},{"$f":"_xlfn.XLOOKUP($B323,FeedTables!$C$42:$T$42,FeedTables!$C$44:$T$44,,-1)","v":{"$error":"#N/A"}},{"$f":"_xlfn.XLOOKUP($B323,FeedTables!$C$42:$T$42,FeedTables!$C$45:$T$45,,-1)","v":{"$error":"#N/A"}},{"$f":"_xlfn.XLOOKUP($B323,FeedTables!$C$42:$T$42,FeedTables!$C$46:$T$46,,-1)*_xlfn.XLOOKUP(N322,DensityMultiplier[Biomass kg/m3],DensityMultiplier[Multiplier],,-1)","v":{"$error":"#N/A"}},{"$f":"IF(A323>'S4-PartialHarvest'!$C$9,0,IF(A323='S4-PartialHarvest'!$C$7,(F322-G322-H322)*(1-'S4-PartialHarvest'!$C$8),(F322-G322-H322)))","v":0},{"$f":"IF(A323<='S4-PartialHarvest'!$C$7,('Growth-Model-4'!G322*EXP($Z$7)),IF(A323<'S4-PartialHarvest'!$C$9,('Growth-Model-4'!G322*EXP($AA$7)),0))+IF(A323='S4-PartialHarvest'!$C$7,'Growth-Model-4'!$AA$6,0)","v":0},{"$f":"IF(A323<='S4-PartialHarvest'!$C$9,$AD$6*EXP($AD$7*('S4-PartialHarvest'!C$9-'Growth-Model-4'!A323)),0)","v":0},258.11742751166497,{"$f":"I323/$F$2","v":6.3732698151028389E-2},{"$f":"(G323+H323)*B323","v":0},34.187862812341081,{"$f":"(B323*F323)/1000","v":0},{"$f":"M323/'S4-PartialHarvest'!$C$19","v":0},{"$f":"M323*(C323/100)","v":{"$error":"#N/A"}},{"$error":"#N/A"},{"$f":"_xlfn.XLOOKUP(B323,FeedTables!$C$17:$T$17,FeedTables!$C$31:$T$31,,-1)","v":{"$error":"#N/A"}},{"$f":"_xlfn.XLOOKUP(Q323,FeedPrice[Feed],FeedPrice[Price per kg],\"Unknown\",0)*O323","v":{"$error":"#N/A"}},{"$error":"#N/A"},{"$f":"_xlfn.XLOOKUP(O323,LabourFromFeed[Feed Quantity (kg)],LabourFromFeed[No. Labour],\"Out of range\",-1)","v":{"$error":"#N/A"}},{"$f":"T323*OperatingCosts!$C$9","v":{"$error":"#N/A"}},{"$error":"#N/A"}]
[322,{"$f":"IF(A324<='S4-PartialHarvest'!$C$9, B323*EXP((LN((E323/100)+1))*1),)","v":0},{"$f":"_xlfn.XLOOKUP($B324,FeedTables!$C$42:$T$42,FeedTables!$C$44:$T$44,,-1)","v":{"$error":"#N/A"}},{"$f":"_xlfn.XLOOKUP($B324,FeedTables!$C$42:$T$42,FeedTables!$C$45:$T$45,,-1)","v":{"$error":"#N/A"}},{"$f":"_xlfn.XLOOKUP($B324,FeedTables!$C$42:$T$42,FeedTables!$C$46:$T$46,,-1)*_xlfn.XLOOKUP(N323,DensityMultiplier[Biomass kg/m3],DensityMultiplier[Multiplier],,-1)","v":{"$error":"#N/A"}},{"$f":"IF(A324>'S4-PartialHarvest'!$C$9,0,IF(A324='S4-PartialHarvest'!$C$7,(F323-G323-H323)*(1-'S4-PartialHarvest'!$C$8),(F323-G323-H323)))","v":0},{"$f":"IF(A324<='S4-PartialHarvest'!$C$7,('Growth-Model-4'!G323*EXP($Z$7)),IF(A324<'S4-PartialHarvest'!$C$9,('Growth-Model-4'!G323*EXP($AA$7)),0))+IF(A324='S4-PartialHarvest'!$C$7,'Growth-Model-4'!$AA$6,0)","v":0},{"$f":"IF(A324<='S4-PartialHarvest'!$C$9,$AD$6*EXP($AD$7*('S4-PartialHarvest'!C$9-'Growth-Model-4'!A324)),0)","v":0},{"$f":"I323+G324+H324","v":258.11742751166497},6.3732698151028389E-2,0,{"$f":"(K324/1000)+L323","v":34.187862812341081},0,{"$f":"M324/'S4-PartialHarvest'!$C$19","v":0},{"$error":"#N/A"},{"$f":"O324+P323","v":{"$error":"#N/A"}},{"$f":"_xlfn.XLOOKUP(B324,FeedTables!$C$17:$T$17,FeedTables!$C$31:$T$31,,-1)","v":{"$error":"#N/A"}},{"$f":"_xlfn.XLOOKUP(Q324,FeedPrice[Feed],FeedPrice[Price per kg],\"Unknown\",0)*O324","v":{"$error":"#N/A"}},{"$f":"R324+S323","v":{"$error":"#N/A"}},{"$f":"_xlfn.XLOOKUP(O324,LabourFromFeed[Feed Quantity (kg)],LabourFromFeed[No. Labour],\"Out of range\",-1)","v":{"$error":"#N/A"}},{"$f":"T324*OperatingCosts!$C$9","v":{"$error":"#N/A"}},{"$f":"U324+V323","v":{"$error":"#N/A"}}]
[323,{"$f":"IF(A325<='S4-PartialHarvest'!$C$9, B324*EXP((LN((E324/100)+1))*1),)","v":0},{"$f":"_xlfn.XLOOKUP($B325,FeedTables!$C$42:$T$42,FeedTables!$C$44:$T$44,,-1)","v":{"$error":"#N/A"}},{"$f":"_xlfn.XLOOKUP($B325,FeedTables!$C$42:$T$42,FeedTables!$C$45:$T$45,,-1)","v":{"$error":"#N/A"}},{"$f":"_xlfn.XLOOKUP($B325,FeedTables!$C$42:$T$42,FeedTables!$C$46:$T$46,,-1)*_xlfn.XLOOKUP(N324,DensityMultiplier[Biomass kg/m3],DensityMultiplier[Multiplier],,-1)","v":{"$error":"#N/A"}},{"$f":"IF(A325>'S4-PartialHarvest'!$C$9,0,IF(A325='S4-PartialHarvest'!$C$7,(F324-G324-H324)*(1-'S4-PartialHarvest'!$C$8),(F324-G324-H324)))","v":0},{"$f":"IF(A325<='S4-PartialHarvest'!$C$7,('Growth-Model-4'!G324*EXP($Z$7)),IF(A325<'S4-PartialHarvest'!$C$9,('Growth-Model-4'!G324*EXP($AA$7)),0))+IF(A325='S4-PartialHarvest'!$C$7,'Growth-Model-4'!$AA$6,0)","v":0},{"$f":"IF(A325<='S4-PartialHarvest'!$C$9,$AD$6*EXP($AD$7*('S4-PartialHarvest'!C$9-'Growth-Model-4'!A325)),0)","v":0},258.11742751166497,6.3732698151028389E-2,0,34.187862812341081,0,{"$f":"M325/'S4-PartialHarvest'!$C$19","v":0},{"$error":"#N/A"},{"$error":"#N/A"},{"$f":"_xlfn.XLOOKUP(B325,FeedTables!$C$17:$T$17,FeedTables!$C$31:$T$31,,-1)","v":{"$error":"#N/A"}},{"$f":"_xlfn.XLOOKUP(Q325,FeedPrice[Feed],FeedPrice[Price per kg],\"Unknown\",0)*O325","v":{"$error":"#N/A"}},{"$error":"#N/A"},{"$f":"_xlfn.XLOOKUP(O325,LabourFromFeed[Feed Quantity (kg)],LabourFromFeed[No. Labour],\"Out of range\",-1)","v":{"$error":"#N/A"}},{"$f":"T325*OperatingCosts!$C$9","v":{"$error":"#N/A"}},{"$error":"#N/A"}]
[324,{"$f":"IF(A326<='S4-PartialHarvest'!$C$9, B325*EXP((LN((E325/100)+1))*1),)","v":0},{"$f":"_xlfn.XLOOKUP($B326,FeedTables!$C$42:$T$42,FeedTables!$C$44:$T$44,,-1)","v":{"$error":"#N/A"}},{"$f":"_xlfn.XLOOKUP($B326,FeedTables!$C$42:$T$42,FeedTables!$C$45:$T$45,,-1)","v":{"$error":"#N/A"}},{"$f":"_xlfn.XLOOKUP($B326,FeedTables!$C$42:$T$42,FeedTables!$C$46:$T$46,,-1)*_xlfn.XLOOKUP(N325,DensityMultiplier[Biomass kg/m3],DensityMultiplier[Multiplier],,-1)","v":{"$error":"#N/A"}},{"$f":"IF(A326>'S4-PartialHarvest'!$C$9,0,IF(A326='S4-PartialHarvest'!$C$7,(F325-G325-H325)*(1-'S4-PartialHarvest'!$C$8),(F325-G325-H325)))","v":0},{"$f":"IF(A326<='S4-PartialHarvest'!$C$7,('Growth-Model-4'!G325*EXP($Z$7)),IF(A326<'S4-PartialHarvest'!$C$9,('Growth-Model-4'!G325*EXP($AA$7)),0))+IF(A326='S4-PartialHarvest'!$C$7,'Growth-Model-4'!$AA$6,0)","v":0},{"$f":"IF(A326<='S4-PartialHarvest'!$C$9,$AD$6*EXP($AD$7*('S4-PartialHarvest'!C$9-'Growth-Model-4'!A326)),0)","v":0},258.11742751166497,6.3732698151028389E-2,0,34.187862812341081,0,{"$f":"M326/'S4-PartialHarvest'!$C$19","v":0},{"$error":"#N/A"},{"$error":"#N/A"},{"$f":"_xlfn.XLOOKUP(B326,FeedTables!$C$17:$T$17,FeedTables!$C$31:$T$31,,-1)","v":{"$error":"#N/A"}},{"$f":"_xlfn.XLOOKUP(Q326,FeedPrice[Feed],FeedPrice[Price per kg],\"Unknown\",0)*O326","v":{"$error":"#N/A"}},{"$error":"#N/A"},{"$f":"_xlfn.XLOOKUP(O326,LabourFromFeed[Feed Quantity (kg)],LabourFromFeed[No. Labour],\"Out of range\",-1)","v":{"$error":"#N/A"}},{"$f":"T326*OperatingCosts!$C$9","v":{"$error":"#N/A"}},{"$error":"#N/A"}]
[325,{"$f":"IF(A327<='S4-PartialHarvest'!$C$9, B326*EXP((LN((E326/100)+1))*1),)","v":0},{"$f":"_xlfn.XLOOKUP($B327,FeedTables!$C$42:$T$42,FeedTables!$C$44:$T$44,,-1)","v":{"$error":"#N/A"}},{"$f":"_xlfn.XLOOKUP($B327,FeedTables!$C$42:$T$42,FeedTables!$C$45:$T$45,,-1)","v":{"$error":"#N/A"}},{"$f":"_xlfn.XLOOKUP($B327,FeedTables!$C$42:$T$42,FeedTables!$C$46:$T$46,,-1)*_xlfn.XLOOKUP(N326,DensityMultiplier[Biomass kg/m3],DensityMultiplier[Multiplier],,-1)","v":{"$error":"#N/A"}},{"$f":"IF(A327>'S4-PartialHarvest'!$C$9,0,IF(A327='S4-PartialHarvest'!$C$7,(F326-G326-H326)*(1-'S4-PartialHarvest'!$C$8),(F326-G326-H326)))","v":0},{"$f":"IF(A327<='S4-PartialHarvest'!$C$7,('Growth-Model-4'!G326*EXP($Z$7)),IF(A327<'S4-PartialHarvest'!$C$9,('Growth-Model-4'!G326*EXP($AA$7)),0))+IF(A327='S4-PartialHarvest'!$C$7,'Growth-Model-4'!$AA$6,0)","v":0},{"$f":"IF(A327<='S4-PartialHarvest'!$C$9,$AD$6*EXP($AD$7*('S4-PartialHarvest'!C$9-'Growth-Model-4'!A327)),0)","v":0},258.11742751166497,6.3732698151028389E-2,0,34.187862812341081,0,{"$f":"M327/'S4-PartialHarvest'!$C$19","v":0},{"$error":"#N/A"},{"$error":"#N/A"},{"$f":"_xlfn.XLOOKUP(B327,FeedTables!$C$17:$T$17,FeedTables!$C$31:$T$31,,-1)","v":{"$error":"#N/A"}},{"$f":"_xlfn.XLOOKUP(Q327,FeedPrice[Feed],FeedPrice[Price per kg],\"Unknown\",0)*O327","v":{"$error":"#N/A"}},{"$error":"#N/A"},{"$f":"_xlfn.XLOOKUP(O327,LabourFromFeed[Feed Quantity (kg)],LabourFromFeed[No. Labour],\"Out of range\",-1)","v":{"$error":"#N/A"}},{"$f":"T327*OperatingCosts!$C$9","v":{"$error":"#N/A"}},{"$error":"#N/A"}]
[326,{"$f":"IF(A328<='S4-PartialHarvest'!$C$9, B327*EXP((LN((E327/100)+1))*1),)","v":0},{"$f":"_xlfn.XLOOKUP($B328,FeedTables!$C$42:$T$42,FeedTables!$C$44:$T$44,,-1)","v":{"$error":"#N/A"}},{"$f":"_xlfn.XLOOKUP($B328,FeedTables!$C$42:$T$42,FeedTables!$C$45:$T$45,,-1)","v":{"$error":"#N/A"}},{"$f":"_xlfn.XLOOKUP($B328,FeedTables!$C$42:$T$42,FeedTables!$C$46:$T$46,,-1)*_xlfn.XLOOKUP(N327,DensityMultiplier[Biomass kg/m3],DensityMultiplier[Multiplier],,-1)","v":{"$error":"#N/A"}},{"$f":"IF(A328>'S4-PartialHarvest'!$C$9,0,IF(A328='S4-PartialHarvest'!$C$7,(F327-G327-H327)*(1-'S4-PartialHarvest'!$C$8),(F327-G327-H327)))","v":0},{"$f":"IF(A328<='S4-PartialHarvest'!$C$7,('Growth-Model-4'!G327*EXP($Z$7)),IF(A328<'S4-PartialHarvest'!$C$9,('Growth-Model-4'!G327*EXP($AA$7)),0))+IF(A328='S4-PartialHarvest'!$C$7,'Growth-Model-4'!$AA$6,0)","v":0},{"$f":"IF(A328<='S4-PartialHarvest'!$C$9,$AD$6*EXP($AD$7*('S4-PartialHarvest'!C$9-'Growth-Model-4'!A328)),0)","v":0},258.11742751166497,6.3732698151028389E-2,0,34.187862812341081,0,{"$f":"M328/'S4-PartialHarvest'!$C$19","v":0},{"$error":"#N/A"},{"$error":"#N/A"},{"$f":"_xlfn.XLOOKUP(B328,FeedTables!$C$17:$T$17,FeedTables!$C$31:$T$31,,-1)","v":{"$error":"#N/A"}},{"$f":"_xlfn.XLOOKUP(Q328,FeedPrice[Feed],FeedPrice[Price per kg],\"Unknown\",0)*O328","v":{"$error":"#N/A"}},{"$error":"#N/A"},{"$f":"_xlfn.XLOOKUP(O328,LabourFromFeed[Feed Quantity (kg)],LabourFromFeed[No. Labour],\"Out of range\",-1)","v":{"$error":"#N/A"}},{"$f":"T328*OperatingCosts!$C$9","v":{"$error":"#N/A"}},{"$error":"#N/A"}]
[327,{"$f":"IF(A329<='S4-PartialHarvest'!$C$9, B328*EXP((LN((E328/100)+1))*1),)","v":0},{"$f":"_xlfn.XLOOKUP($B329,FeedTables!$C$42:$T$42,FeedTables!$C$44:$T$44,,-1)","v":{"$error":"#N/A"}},{"$f":"_xlfn.XLOOKUP($B329,FeedTables!$C$42:$T$42,FeedTables!$C$45:$T$45,,-1)","v":{"$error":"#N/A"}},{"$f":"_xlfn.XLOOKUP($B329,FeedTables!$C$42:$T$42,FeedTables!$C$46:$T$46,,-1)*_xlfn.XLOOKUP(N328,DensityMultiplier[Biomass kg/m3],DensityMultiplier[Multiplier],,-1)","v":{"$error":"#N/A"}},{"$f":"IF(A329>'S4-PartialHarvest'!$C$9,0,IF(A329='S4-PartialHarvest'!$C$7,(F328-G328-H328)*(1-'S4-PartialHarvest'!$C$8),(F328-G328-H328)))","v":0},{"$f":"IF(A329<='S4-PartialHarvest'!$C$7,('Growth-Model-4'!G328*EXP($Z$7)),IF(A329<'S4-PartialHarvest'!$C$9,('Growth-Model-4'!G328*EXP($AA$7)),0))+IF(A329='S4-PartialHarvest'!$C$7,'Growth-Model-4'!$AA$6,0)","v":0},{"$f":"IF(A329<='S4-PartialHarvest'!$C$9,$AD$6*EXP($AD$7*('S4-PartialHarvest'!C$9-'Growth-Model-4'!A329)),0)","v":0},258.11742751166497,6.3732698151028389E-2,0,34.187862812341081,0,{"$f":"M329/'S4-PartialHarvest'!$C$19","v":0},{"$error":"#N/A"},{"$error":"#N/A"},{"$f":"_xlfn.XLOOKUP(B329,FeedTables!$C$17:$T$17,FeedTables!$C$31:$T$31,,-1)","v":{"$error":"#N/A"}},{"$f":"_xlfn.XLOOKUP(Q329,FeedPrice[Feed],FeedPrice[Price per kg],\"Unknown\",0)*O329","v":{"$error":"#N/A"}},{"$error":"#N/A"},{"$f":"_xlfn.XLOOKUP(O329,LabourFromFeed[Feed Quantity (kg)],LabourFromFeed[No. Labour],\"Out of range\",-1)","v":{"$error":"#N/A"}},{"$f":"T329*OperatingCosts!$C$9","v":{"$error":"#N/A"}},{"$error":"#N/A"}]
[328,{"$f":"IF(A330<='S4-PartialHarvest'!$C$9, B329*EXP((LN((E329/100)+1))*1),)","v":0},{"$f":"_xlfn.XLOOKUP($B330,FeedTables!$C$42:$T$42,FeedTables!$C$44:$T$44,,-1)","v":{"$error":"#N/A"}},{"$f":"_xlfn.XLOOKUP($B330,FeedTables!$C$42:$T$42,FeedTables!$C$45:$T$45,,-1)","v":{"$error":"#N/A"}},{"$f":"_xlfn.XLOOKUP($B330,FeedTables!$C$42:$T$42,FeedTables!$C$46:$T$46,,-1)*_xlfn.XLOOKUP(N329,DensityMultiplier[Biomass kg/m3],DensityMultiplier[Multiplier],,-1)","v":{"$error":"#N/A"}},{"$f":"IF(A330>'S4-PartialHarvest'!$C$9,0,IF(A330='S4-PartialHarvest'!$C$7,(F329-G329-H329)*(1-'S4-PartialHarvest'!$C$8),(F329-G329-H329)))","v":0},{"$f":"IF(A330<='S4-PartialHarvest'!$C$7,('Growth-Model-4'!G329*EXP($Z$7)),IF(A330<'S4-PartialHarvest'!$C$9,('Growth-Model-4'!G329*EXP($AA$7)),0))+IF(A330='S4-PartialHarvest'!$C$7,'Growth-Model-4'!$AA$6,0)","v":0},{"$f":"IF(A330<='S4-PartialHarvest'!$C$9,$AD$6*EXP($AD$7*('S4-PartialHarvest'!C$9-'Growth-Model-4'!A330)),0)","v":0},258.11742751166497,6.3732698151028389E-2,0,34.187862812341081,0,{"$f":"M330/'S4-PartialHarvest'!$C$19","v":0},{"$error":"#N/A"},{"$error":"#N/A"},{"$f":"_xlfn.XLOOKUP(B330,FeedTables!$C$17:$T$17,FeedTables!$C$31:$T$31,,-1)","v":{"$error":"#N/A"}},{"$f":"_xlfn.XLOOKUP(Q330,FeedPrice[Feed],FeedPrice[Price per kg],\"Unknown\",0)*O330","v":{"$error":"#N/A"}},{"$error":"#N/A"},{"$f":"_xlfn.XLOOKUP(O330,LabourFromFeed[Feed Quantity (kg)],LabourFromFeed[No. Labour],\"Out of range\",-1)","v":{"$error":"#N/A"}},{"$f":"T330*OperatingCosts!$C$9","v":{"$error":"#N/A"}},{"$error":"#N/A"}]
[329,{"$f":"IF(A331<='S4-PartialHarvest'!$C$9, B330*EXP((LN((E330/100)+1))*1),)","v":0},{"$f":"_xlfn.XLOOKUP($B331,FeedTables!$C$42:$T$42,FeedTables!$C$44:$T$44,,-1)","v":{"$error":"#N/A"}},{"$f":"_xlfn.XLOOKUP($B331,FeedTables!$C$42:$T$42,FeedTables!$C$45:$T$45,,-1)","v":{"$error":"#N/A"}},{"$f":"_xlfn.XLOOKUP($B331,FeedTables!$C$42:$T$42,FeedTables!$C$46:$T$46,,-1)*_xlfn.XLOOKUP(N330,DensityMultiplier[Biomass kg/m3],DensityMultiplier[Multiplier],,-1)","v":{"$error":"#N/A"}},{"$f":"IF(A331>'S4-PartialHarvest'!$C$9,0,IF(A331='S4-PartialHarvest'!$C$7,(F330-G330-H330)*(1-'S4-PartialHarvest'!$C$8),(F330-G330-H330)))","v":0},{"$f":"IF(A331<='S4-PartialHarvest'!$C$7,('Growth-Model-4'!G330*EXP($Z$7)),IF(A331<'S4-PartialHarvest'!$C$9,('Growth-Model-4'!G330*EXP($AA$7)),0))+IF(A331='S4-PartialHarvest'!$C$7,'Growth-Model-4'!$AA$6,0)","v":0},{"$f":"IF(A331<='S4-PartialHarvest'!$C$9,$AD$6*EXP($AD$7*('S4-PartialHarvest'!C$9-'Growth-Model-4'!A331)),0)","v":0},258.11742751166497,6.3732698151028389E-2,0,34.187862812341081,0,{"$f":"M331/'S4-PartialHarvest'!$C$19","v":0},{"$error":"#N/A"},{"$error":"#N/A"},{"$f":"_xlfn.XLOOKUP(B331,FeedTables!$C$17:$T$17,FeedTables!$C$31:$T$31,,-1)","v":{"$error":"#N/A"}},{"$f":"_xlfn.XLOOKUP(Q331,FeedPrice[Feed],FeedPrice[Price per kg],\"Unknown\",0)*O331","v":{"$error":"#N/A"}},{"$error":"#N/A"},{"$f":"_xlfn.XLOOKUP(O331,LabourFromFeed[Feed Quantity (kg)],LabourFromFeed[No. Labour],\"Out of range\",-1)","v":{"$error":"#N/A"}},{"$f":"T331*OperatingCosts!$C$9","v":{"$error":"#N/A"}},{"$error":"#N/A"}]
[330,{"$f":"IF(A332<='S4-PartialHarvest'!$C$9, B331*EXP((LN((E331/100)+1))*1),)","v":0},{"$f":"_xlfn.XLOOKUP($B332,FeedTables!$C$42:$T$42,FeedTables!$C$44:$T$44,,-1)","v":{"$error":"#N/A"}},{"$f":"_xlfn.XLOOKUP($B332,FeedTables!$C$42:$T$42,FeedTables!$C$45:$T$45,,-1)","v":{"$error":"#N/A"}},{"$f":"_xlfn.XLOOKUP($B332,FeedTables!$C$42:$T$42,FeedTables!$C$46:$T$46,,-1)*_xlfn.XLOOKUP(N331,DensityMultiplier[Biomass kg/m3],DensityMultiplier[Multiplier],,-1)","v":{"$error":"#N/A"}},{"$f":"IF(A332>'S4-PartialHarvest'!$C$9,0,IF(A332='S4-PartialHarvest'!$C$7,(F331-G331-H331)*(1-'S4-PartialHarvest'!$C$8),(F331-G331-H331)))","v":0},{"$f":"IF(A332<='S4-PartialHarvest'!$C$7,('Growth-Model-4'!G331*EXP($Z$7)),IF(A332<'S4-PartialHarvest'!$C$9,('Growth-Model-4'!G331*EXP($AA$7)),0))+IF(A332='S4-PartialHarvest'!$C$7,'Growth-Model-4'!$AA$6,0)","v":0},{"$f":"IF(A332<='S4-PartialHarvest'!$C$9,$AD$6*EXP($AD$7*('S4-PartialHarvest'!C$9-'Growth-Model-4'!A332)),0)","v":0},258.11742751166497,6.3732698151028389E-2,0,34.187862812341081,0,{"$f":"M332/'S4-PartialHarvest'!$C$19","v":0},{"$error":"#N/A"},{"$error":"#N/A"},{"$f":"_xlfn.XLOOKUP(B332,FeedTables!$C$17:$T$17,FeedTables!$C$31:$T$31,,-1)","v":{"$error":"#N/A"}},{"$f":"_xlfn.XLOOKUP(Q332,FeedPrice[Feed],FeedPrice[Price per kg],\"Unknown\",0)*O332","v":{"$error":"#N/A"}},{"$error":"#N/A"},{"$f":"_xlfn.XLOOKUP(O332,LabourFromFeed[Feed Quantity (kg)],LabourFromFeed[No. Labour],\"Out of range\",-1)","v":{"$error":"#N/A"}},{"$f":"T332*OperatingCosts!$C$9","v":{"$error":"#N/A"}},{"$error":"#N/A"}]
[331,{"$f":"IF(A333<='S4-PartialHarvest'!$C$9, B332*EXP((LN((E332/100)+1))*1),)","v":0},{"$f":"_xlfn.XLOOKUP($B333,FeedTables!$C$42:$T$42,FeedTables!$C$44:$T$44,,-1)","v":{"$error":"#N/A"}},{"$f":"_xlfn.XLOOKUP($B333,FeedTables!$C$42:$T$42,FeedTables!$C$45:$T$45,,-1)","v":{"$error":"#N/A"}},{"$f":"_xlfn.XLOOKUP($B333,FeedTables!$C$42:$T$42,FeedTables!$C$46:$T$46,,-1)*_xlfn.XLOOKUP(N332,DensityMultiplier[Biomass kg/m3],DensityMultiplier[Multiplier],,-1)","v":{"$error":"#N/A"}},{"$f":"IF(A333>'S4-PartialHarvest'!$C$9,0,IF(A333='S4-PartialHarvest'!$C$7,(F332-G332-H332)*(1-'S4-PartialHarvest'!$C$8),(F332-G332-H332)))","v":0},{"$f":"IF(A333<='S4-PartialHarvest'!$C$7,('Growth-Model-4'!G332*EXP($Z$7)),IF(A333<'S4-PartialHarvest'!$C$9,('Growth-Model-4'!G332*EXP($AA$7)),0))+IF(A333='S4-PartialHarvest'!$C$7,'Growth-Model-4'!$AA$6,0)","v":0},{"$f":"IF(A333<='S4-PartialHarvest'!$C$9,$AD$6*EXP($AD$7*('S4-PartialHarvest'!C$9-'Growth-Model-4'!A333)),0)","v":0},258.11742751166497,6.3732698151028389E-2,0,34.187862812341081,0,{"$f":"M333/'S4-PartialHarvest'!$C$19","v":0},{"$error":"#N/A"},{"$error":"#N/A"},{"$f":"_xlfn.XLOOKUP(B333,FeedTables!$C$17:$T$17,FeedTables!$C$31:$T$31,,-1)","v":{"$error":"#N/A"}},{"$f":"_xlfn.XLOOKUP(Q333,FeedPrice[Feed],FeedPrice[Price per kg],\"Unknown\",0)*O333","v":{"$error":"#N/A"}},{"$error":"#N/A"},{"$f":"_xlfn.XLOOKUP(O333,LabourFromFeed[Feed Quantity (kg)],LabourFromFeed[No. Labour],\"Out of range\",-1)","v":{"$error":"#N/A"}},{"$f":"T333*OperatingCosts!$C$9","v":{"$error":"#N/A"}},{"$error":"#N/A"}]
[332,{"$f":"IF(A334<='S4-PartialHarvest'!$C$9, B333*EXP((LN((E333/100)+1))*1),)","v":0},{"$f":"_xlfn.XLOOKUP($B334,FeedTables!$C$42:$T$42,FeedTables!$C$44:$T$44,,-1)","v":{"$error":"#N/A"}},{"$f":"_xlfn.XLOOKUP($B334,FeedTables!$C$42:$T$42,FeedTables!$C$45:$T$45,,-1)","v":{"$error":"#N/A"}},{"$f":"_xlfn.XLOOKUP($B334,FeedTables!$C$42:$T$42,FeedTables!$C$46:$T$46,,-1)*_xlfn.XLOOKUP(N333,DensityMultiplier[Biomass kg/m3],DensityMultiplier[Multiplier],,-1)","v":{"$error":"#N/A"}},{"$f":"IF(A334>'S4-PartialHarvest'!$C$9,0,IF(A334='S4-PartialHarvest'!$C$7,(F333-G333-H333)*(1-'S4-PartialHarvest'!$C$8),(F333-G333-H333)))","v":0},{"$f":"IF(A334<='S4-PartialHarvest'!$C$7,('Growth-Model-4'!G333*EXP($Z$7)),IF(A334<'S4-PartialHarvest'!$C$9,('Growth-Model-4'!G333*EXP($AA$7)),0))+IF(A334='S4-PartialHarvest'!$C$7,'Growth-Model-4'!$AA$6,0)","v":0},{"$f":"IF(A334<='S4-PartialHarvest'!$C$9,$AD$6*EXP($AD$7*('S4-PartialHarvest'!C$9-'Growth-Model-4'!A334)),0)","v":0},258.11742751166497,6.3732698151028389E-2,0,34.187862812341081,0,{"$f":"M334/'S4-PartialHarvest'!$C$19","v":0},{"$error":"#N/A"},{"$error":"#N/A"},{"$f":"_xlfn.XLOOKUP(B334,FeedTables!$C$17:$T$17,FeedTables!$C$31:$T$31,,-1)","v":{"$error":"#N/A"}},{"$f":"_xlfn.XLOOKUP(Q334,FeedPrice[Feed],FeedPrice[Price per kg],\"Unknown\",0)*O334","v":{"$error":"#N/A"}},{"$error":"#N/A"},{"$f":"_xlfn.XLOOKUP(O334,LabourFromFeed[Feed Quantity (kg)],LabourFromFeed[No. Labour],\"Out of range\",-1)","v":{"$error":"#N/A"}},{"$f":"T334*OperatingCosts!$C$9","v":{"$error":"#N/A"}},{"$error":"#N/A"}]
[333,{"$f":"IF(A335<='S4-PartialHarvest'!$C$9, B334*EXP((LN((E334/100)+1))*1),)","v":0},{"$f":"_xlfn.XLOOKUP($B335,FeedTables!$C$42:$T$42,FeedTables!$C$44:$T$44,,-1)","v":{"$error":"#N/A"}},{"$f":"_xlfn.XLOOKUP($B335,FeedTables!$C$42:$T$42,FeedTables!$C$45:$T$45,,-1)","v":{"$error":"#N/A"}},{"$f":"_xlfn.XLOOKUP($B335,FeedTables!$C$42:$T$42,FeedTables!$C$46:$T$46,,-1)*_xlfn.XLOOKUP(N334,DensityMultiplier[Biomass kg/m3],DensityMultiplier[Multiplier],,-1)","v":{"$error":"#N/A"}},{"$f":"IF(A335>'S4-PartialHarvest'!$C$9,0,IF(A335='S4-PartialHarvest'!$C$7,(F334-G334-H334)*(1-'S4-PartialHarvest'!$C$8),(F334-G334-H334)))","v":0},{"$f":"IF(A335<='S4-PartialHarvest'!$C$7,('Growth-Model-4'!G334*EXP($Z$7)),IF(A335<'S4-PartialHarvest'!$C$9,('Growth-Model-4'!G334*EXP($AA$7)),0))+IF(A335='S4-PartialHarvest'!$C$7,'Growth-Model-4'!$AA$6,0)","v":0},{"$f":"IF(A335<='S4-PartialHarvest'!$C$9,$AD$6*EXP($AD$7*('S4-PartialHarvest'!C$9-'Growth-Model-4'!A335)),0)","v":0},258.11742751166497,6.3732698151028389E-2,0,34.187862812341081,0,{"$f":"M335/'S4-PartialHarvest'!$C$19","v":0},{"$error":"#N/A"},{"$error":"#N/A"},{"$f":"_xlfn.XLOOKUP(B335,FeedTables!$C$17:$T$17,FeedTables!$C$31:$T$31,,-1)","v":{"$error":"#N/A"}},{"$f":"_xlfn.XLOOKUP(Q335,FeedPrice[Feed],FeedPrice[Price per kg],\"Unknown\",0)*O335","v":{"$error":"#N/A"}},{"$error":"#N/A"},{"$f":"_xlfn.XLOOKUP(O335,LabourFromFeed[Feed Quantity (kg)],LabourFromFeed[No. Labour],\"Out of range\",-1)","v":{"$error":"#N/A"}},{"$f":"T335*OperatingCosts!$C$9","v":{"$error":"#N/A"}},{"$error":"#N/A"}]
[334,{"$f":"IF(A336<='S4-PartialHarvest'!$C$9, B335*EXP((LN((E335/100)+1))*1),)","v":0},{"$f":"_xlfn.XLOOKUP($B336,FeedTables!$C$42:$T$42,FeedTables!$C$44:$T$44,,-1)","v":{"$error":"#N/A"}},{"$f":"_xlfn.XLOOKUP($B336,FeedTables!$C$42:$T$42,FeedTables!$C$45:$T$45,,-1)","v":{"$error":"#N/A"}},{"$f":"_xlfn.XLOOKUP($B336,FeedTables!$C$42:$T$42,FeedTables!$C$46:$T$46,,-1)*_xlfn.XLOOKUP(N335,DensityMultiplier[Biomass kg/m3],DensityMultiplier[Multiplier],,-1)","v":{"$error":"#N/A"}},{"$f":"IF(A336>'S4-PartialHarvest'!$C$9,0,IF(A336='S4-PartialHarvest'!$C$7,(F335-G335-H335)*(1-'S4-PartialHarvest'!$C$8),(F335-G335-H335)))","v":0},{"$f":"IF(A336<='S4-PartialHarvest'!$C$7,('Growth-Model-4'!G335*EXP($Z$7)),IF(A336<'S4-PartialHarvest'!$C$9,('Growth-Model-4'!G335*EXP($AA$7)),0))+IF(A336='S4-PartialHarvest'!$C$7,'Growth-Model-4'!$AA$6,0)","v":0},{"$f":"IF(A336<='S4-PartialHarvest'!$C$9,$AD$6*EXP($AD$7*('S4-PartialHarvest'!C$9-'Growth-Model-4'!A336)),0)","v":0},258.11742751166497,6.3732698151028389E-2,0,34.187862812341081,0,{"$f":"M336/'S4-PartialHarvest'!$C$19","v":0},{"$error":"#N/A"},{"$error":"#N/A"},{"$f":"_xlfn.XLOOKUP(B336,FeedTables!$C$17:$T$17,FeedTables!$C$31:$T$31,,-1)","v":{"$error":"#N/A"}},{"$f":"_xlfn.XLOOKUP(Q336,FeedPrice[Feed],FeedPrice[Price per kg],\"Unknown\",0)*O336","v":{"$error":"#N/A"}},{"$error":"#N/A"},{"$f":"_xlfn.XLOOKUP(O336,LabourFromFeed[Feed Quantity (kg)],LabourFromFeed[No. Labour],\"Out of range\",-1)","v":{"$error":"#N/A"}},{"$f":"T336*OperatingCosts!$C$9","v":{"$error":"#N/A"}},{"$error":"#N/A"}]
[335,{"$f":"IF(A337<='S4-PartialHarvest'!$C$9, B336*EXP((LN((E336/100)+1))*1),)","v":0},{"$f":"_xlfn.XLOOKUP($B337,FeedTables!$C$42:$T$42,FeedTables!$C$44:$T$44,,-1)","v":{"$error":"#N/A"}},{"$f":"_xlfn.XLOOKUP($B337,FeedTables!$C$42:$T$42,FeedTables!$C$45:$T$45,,-1)","v":{"$error":"#N/A"}},{"$f":"_xlfn.XLOOKUP($B337,FeedTables!$C$42:$T$42,FeedTables!$C$46:$T$46,,-1)*_xlfn.XLOOKUP(N336,DensityMultiplier[Biomass kg/m3],DensityMultiplier[Multiplier],,-1)","v":{"$error":"#N/A"}},{"$f":"IF(A337>'S4-PartialHarvest'!$C$9,0,IF(A337='S4-PartialHarvest'!$C$7,(F336-G336-H336)*(1-'S4-PartialHarvest'!$C$8),(F336-G336-H336)))","v":0},{"$f":"IF(A337<='S4-PartialHarvest'!$C$7,('Growth-Model-4'!G336*EXP($Z$7)),IF(A337<'S4-PartialHarvest'!$C$9,('Growth-Model-4'!G336*EXP($AA$7)),0))+IF(A337='S4-PartialHarvest'!$C$7,'Growth-Model-4'!$AA$6,0)","v":0},{"$f":"IF(A337<='S4-PartialHarvest'!$C$9,$AD$6*EXP($AD$7*('S4-PartialHarvest'!C$9-'Growth-Model-4'!A337)),0)","v":0},258.11742751166497,6.3732698151028389E-2,0,34.187862812341081,0,{"$f":"M337/'S4-PartialHarvest'!$C$19","v":0},{"$error":"#N/A"},{"$error":"#N/A"},{"$f":"_xlfn.XLOOKUP(B337,FeedTables!$C$17:$T$17,FeedTables!$C$31:$T$31,,-1)","v":{"$error":"#N/A"}},{"$f":"_xlfn.XLOOKUP(Q337,FeedPrice[Feed],FeedPrice[Price per kg],\"Unknown\",0)*O337","v":{"$error":"#N/A"}},{"$error":"#N/A"},{"$f":"_xlfn.XLOOKUP(O337,LabourFromFeed[Feed Quantity (kg)],LabourFromFeed[No. Labour],\"Out of range\",-1)","v":{"$error":"#N/A"}},{"$f":"T337*OperatingCosts!$C$9","v":{"$error":"#N/A"}},{"$error":"#N/A"}]
[336,{"$f":"IF(A338<='S4-PartialHarvest'!$C$9, B337*EXP((LN((E337/100)+1))*1),)","v":0},{"$f":"_xlfn.XLOOKUP($B338,FeedTables!$C$42:$T$42,FeedTables!$C$44:$T$44,,-1)","v":{"$error":"#N/A"}},{"$f":"_xlfn.XLOOKUP($B338,FeedTables!$C$42:$T$42,FeedTables!$C$45:$T$45,,-1)","v":{"$error":"#N/A"}},{"$f":"_xlfn.XLOOKUP($B338,FeedTables!$C$42:$T$42,FeedTables!$C$46:$T$46,,-1)*_xlfn.XLOOKUP(N337,DensityMultiplier[Biomass kg/m3],DensityMultiplier[Multiplier],,-1)","v":{"$error":"#N/A"}},{"$f":"IF(A338>'S4-PartialHarvest'!$C$9,0,IF(A338='S4-PartialHarvest'!$C$7,(F337-G337-H337)*(1-'S4-PartialHarvest'!$C$8),(F337-G337-H337)))","v":0},{"$f":"IF(A338<='S4-PartialHarvest'!$C$7,('Growth-Model-4'!G337*EXP($Z$7)),IF(A338<'S4-PartialHarvest'!$C$9,('Growth-Model-4'!G337*EXP($AA$7)),0))+IF(A338='S4-PartialHarvest'!$C$7,'Growth-Model-4'!$AA$6,0)","v":0},{"$f":"IF(A338<='S4-PartialHarvest'!$C$9,$AD$6*EXP($AD$7*('S4-PartialHarvest'!C$9-'Growth-Model-4'!A338)),0)","v":0},258.11742751166497,6.3732698151028389E-2,0,34.187862812341081,0,{"$f":"M338/'S4-PartialHarvest'!$C$19","v":0},{"$error":"#N/A"},{"$error":"#N/A"},{"$f":"_xlfn.XLOOKUP(B338,FeedTables!$C$17:$T$17,FeedTables!$C$31:$T$31,,-1)","v":{"$error":"#N/A"}},{"$f":"_xlfn.XLOOKUP(Q338,FeedPrice[Feed],FeedPrice[Price per kg],\"Unknown\",0)*O338","v":{"$error":"#N/A"}},{"$error":"#N/A"},{"$f":"_xlfn.XLOOKUP(O338,LabourFromFeed[Feed Quantity (kg)],LabourFromFeed[No. Labour],\"Out of range\",-1)","v":{"$error":"#N/A"}},{"$f":"T338*OperatingCosts!$C$9","v":{"$error":"#N/A"}},{"$error":"#N/A"}]
[337,{"$f":"IF(A339<='S4-PartialHarvest'!$C$9, B338*EXP((LN((E338/100)+1))*1),)","v":0},{"$f":"_xlfn.XLOOKUP($B339,FeedTables!$C$42:$T$42,FeedTables!$C$44:$T$44,,-1)","v":{"$error":"#N/A"}},{"$f":"_xlfn.XLOOKUP($B339,FeedTables!$C$42:$T$42,FeedTables!$C$45:$T$45,,-1)","v":{"$error":"#N/A"}},{"$f":"_xlfn.XLOOKUP($B339,FeedTables!$C$42:$T$42,FeedTables!$C$46:$T$46,,-1)*_xlfn.XLOOKUP(N338,DensityMultiplier[Biomass kg/m3],DensityMultiplier[Multiplier],,-1)","v":{"$error":"#N/A"}},{"$f":"IF(A339>'S4-PartialHarvest'!$C$9,0,IF(A339='S4-PartialHarvest'!$C$7,(F338-G338-H338)*(1-'S4-PartialHarvest'!$C$8),(F338-G338-H338)))","v":0},{"$f":"IF(A339<='S4-PartialHarvest'!$C$7,('Growth-Model-4'!G338*EXP($Z$7)),IF(A339<'S4-PartialHarvest'!$C$9,('Growth-Model-4'!G338*EXP($AA$7)),0))+IF(A339='S4-PartialHarvest'!$C$7,'Growth-Model-4'!$AA$6,0)","v":0},{"$f":"IF(A339<='S4-PartialHarvest'!$C$9,$AD$6*EXP($AD$7*('S4-PartialHarvest'!C$9-'Growth-Model-4'!A339)),0)","v":0},258.11742751166497,6.3732698151028389E-2,0,34.187862812341081,0,{"$f":"M339/'S4-PartialHarvest'!$C$19","v":0},{"$error":"#N/A"},{"$error":"#N/A"},{"$f":"_xlfn.XLOOKUP(B339,FeedTables!$C$17:$T$17,FeedTables!$C$31:$T$31,,-1)","v":{"$error":"#N/A"}},{"$f":"_xlfn.XLOOKUP(Q339,FeedPrice[Feed],FeedPrice[Price per kg],\"Unknown\",0)*O339","v":{"$error":"#N/A"}},{"$error":"#N/A"},{"$f":"_xlfn.XLOOKUP(O339,LabourFromFeed[Feed Quantity (kg)],LabourFromFeed[No. Labour],\"Out of range\",-1)","v":{"$error":"#N/A"}},{"$f":"T339*OperatingCosts!$C$9","v":{"$error":"#N/A"}},{"$error":"#N/A"}]
[338,{"$f":"IF(A340<='S4-PartialHarvest'!$C$9, B339*EXP((LN((E339/100)+1))*1),)","v":0},{"$f":"_xlfn.XLOOKUP($B340,FeedTables!$C$42:$T$42,FeedTables!$C$44:$T$44,,-1)","v":{"$error":"#N/A"}},{"$f":"_xlfn.XLOOKUP($B340,FeedTables!$C$42:$T$42,FeedTables!$C$45:$T$45,,-1)","v":{"$error":"#N/A"}},{"$f":"_xlfn.XLOOKUP($B340,FeedTables!$C$42:$T$42,FeedTables!$C$46:$T$46,,-1)*_xlfn.XLOOKUP(N339,DensityMultiplier[Biomass kg/m3],DensityMultiplier[Multiplier],,-1)","v":{"$error":"#N/A"}},{"$f":"IF(A340>'S4-PartialHarvest'!$C$9,0,IF(A340='S4-PartialHarvest'!$C$7,(F339-G339-H339)*(1-'S4-PartialHarvest'!$C$8),(F339-G339-H339)))","v":0},{"$f":"IF(A340<='S4-PartialHarvest'!$C$7,('Growth-Model-4'!G339*EXP($Z$7)),IF(A340<'S4-PartialHarvest'!$C$9,('Growth-Model-4'!G339*EXP($AA$7)),0))+IF(A340='S4-PartialHarvest'!$C$7,'Growth-Model-4'!$AA$6,0)","v":0},{"$f":"IF(A340<='S4-PartialHarvest'!$C$9,$AD$6*EXP($AD$7*('S4-PartialHarvest'!C$9-'Growth-Model-4'!A340)),0)","v":0},258.11742751166497,6.3732698151028389E-2,0,34.187862812341081,0,{"$f":"M340/'S4-PartialHarvest'!$C$19","v":0},{"$error":"#N/A"},{"$error":"#N/A"},{"$f":"_xlfn.XLOOKUP(B340,FeedTables!$C$17:$T$17,FeedTables!$C$31:$T$31,,-1)","v":{"$error":"#N/A"}},{"$f":"_xlfn.XLOOKUP(Q340,FeedPrice[Feed],FeedPrice[Price per kg],\"Unknown\",0)*O340","v":{"$error":"#N/A"}},{"$error":"#N/A"},{"$f":"_xlfn.XLOOKUP(O340,LabourFromFeed[Feed Quantity (kg)],LabourFromFeed[No. Labour],\"Out of range\",-1)","v":{"$error":"#N/A"}},{"$f":"T340*OperatingCosts!$C$9","v":{"$error":"#N/A"}},{"$error":"#N/A"}]
[339,{"$f":"IF(A341<='S4-PartialHarvest'!$C$9, B340*EXP((LN((E340/100)+1))*1),)","v":0},{"$f":"_xlfn.XLOOKUP($B341,FeedTables!$C$42:$T$42,FeedTables!$C$44:$T$44,,-1)","v":{"$error":"#N/A"}},{"$f":"_xlfn.XLOOKUP($B341,FeedTables!$C$42:$T$42,FeedTables!$C$45:$T$45,,-1)","v":{"$error":"#N/A"}},{"$f":"_xlfn.XLOOKUP($B341,FeedTables!$C$42:$T$42,FeedTables!$C$46:$T$46,,-1)*_xlfn.XLOOKUP(N340,DensityMultiplier[Biomass kg/m3],DensityMultiplier[Multiplier],,-1)","v":{"$error":"#N/A"}},{"$f":"IF(A341>'S4-PartialHarvest'!$C$9,0,IF(A341='S4-PartialHarvest'!$C$7,(F340-G340-H340)*(1-'S4-PartialHarvest'!$C$8),(F340-G340-H340)))","v":0},{"$f":"IF(A341<='S4-PartialHarvest'!$C$7,('Growth-Model-4'!G340*EXP($Z$7)),IF(A341<'S4-PartialHarvest'!$C$9,('Growth-Model-4'!G340*EXP($AA$7)),0))+IF(A341='S4-PartialHarvest'!$C$7,'Growth-Model-4'!$AA$6,0)","v":0},{"$f":"IF(A341<='S4-PartialHarvest'!$C$9,$AD$6*EXP($AD$7*('S4-PartialHarvest'!C$9-'Growth-Model-4'!A341)),0)","v":0},258.11742751166497,6.3732698151028389E-2,0,34.187862812341081,0,{"$f":"M341/'S4-PartialHarvest'!$C$19","v":0},{"$error":"#N/A"},{"$error":"#N/A"},{"$f":"_xlfn.XLOOKUP(B341,FeedTables!$C$17:$T$17,FeedTables!$C$31:$T$31,,-1)","v":{"$error":"#N/A"}},{"$f":"_xlfn.XLOOKUP(Q341,FeedPrice[Feed],FeedPrice[Price per kg],\"Unknown\",0)*O341","v":{"$error":"#N/A"}},{"$error":"#N/A"},{"$f":"_xlfn.XLOOKUP(O341,LabourFromFeed[Feed Quantity (kg)],LabourFromFeed[No. Labour],\"Out of range\",-1)","v":{"$error":"#N/A"}},{"$f":"T341*OperatingCosts!$C$9","v":{"$error":"#N/A"}},{"$error":"#N/A"}]
[340,{"$f":"IF(A342<='S4-PartialHarvest'!$C$9, B341*EXP((LN((E341/100)+1))*1),)","v":0},{"$f":"_xlfn.XLOOKUP($B342,FeedTables!$C$42:$T$42,FeedTables!$C$44:$T$44,,-1)","v":{"$error":"#N/A"}},{"$f":"_xlfn.XLOOKUP($B342,FeedTables!$C$42:$T$42,FeedTables!$C$45:$T$45,,-1)","v":{"$error":"#N/A"}},{"$f":"_xlfn.XLOOKUP($B342,FeedTables!$C$42:$T$42,FeedTables!$C$46:$T$46,,-1)*_xlfn.XLOOKUP(N341,DensityMultiplier[Biomass kg/m3],DensityMultiplier[Multiplier],,-1)","v":{"$error":"#N/A"}},{"$f":"IF(A342>'S4-PartialHarvest'!$C$9,0,IF(A342='S4-PartialHarvest'!$C$7,(F341-G341-H341)*(1-'S4-PartialHarvest'!$C$8),(F341-G341-H341)))","v":0},{"$f":"IF(A342<='S4-PartialHarvest'!$C$7,('Growth-Model-4'!G341*EXP($Z$7)),IF(A342<'S4-PartialHarvest'!$C$9,('Growth-Model-4'!G341*EXP($AA$7)),0))+IF(A342='S4-PartialHarvest'!$C$7,'Growth-Model-4'!$AA$6,0)","v":0},{"$f":"IF(A342<='S4-PartialHarvest'!$C$9,$AD$6*EXP($AD$7*('S4-PartialHarvest'!C$9-'Growth-Model-4'!A342)),0)","v":0},258.11742751166497,6.3732698151028389E-2,0,34.187862812341081,0,{"$f":"M342/'S4-PartialHarvest'!$C$19","v":0},{"$error":"#N/A"},{"$error":"#N/A"},{"$f":"_xlfn.XLOOKUP(B342,FeedTables!$C$17:$T$17,FeedTables!$C$31:$T$31,,-1)","v":{"$error":"#N/A"}},{"$f":"_xlfn.XLOOKUP(Q342,FeedPrice[Feed],FeedPrice[Price per kg],\"Unknown\",0)*O342","v":{"$error":"#N/A"}},{"$error":"#N/A"},{"$f":"_xlfn.XLOOKUP(O342,LabourFromFeed[Feed Quantity (kg)],LabourFromFeed[No. Labour],\"Out of range\",-1)","v":{"$error":"#N/A"}},{"$f":"T342*OperatingCosts!$C$9","v":{"$error":"#N/A"}},{"$error":"#N/A"}]
[341,{"$f":"IF(A343<='S4-PartialHarvest'!$C$9, B342*EXP((LN((E342/100)+1))*1),)","v":0},{"$f":"_xlfn.XLOOKUP($B343,FeedTables!$C$42:$T$42,FeedTables!$C$44:$T$44,,-1)","v":{"$error":"#N/A"}},{"$f":"_xlfn.XLOOKUP($B343,FeedTables!$C$42:$T$42,FeedTables!$C$45:$T$45,,-1)","v":{"$error":"#N/A"}},{"$f":"_xlfn.XLOOKUP($B343,FeedTables!$C$42:$T$42,FeedTables!$C$46:$T$46,,-1)*_xlfn.XLOOKUP(N342,DensityMultiplier[Biomass kg/m3],DensityMultiplier[Multiplier],,-1)","v":{"$error":"#N/A"}},{"$f":"IF(A343>'S4-PartialHarvest'!$C$9,0,IF(A343='S4-PartialHarvest'!$C$7,(F342-G342-H342)*(1-'S4-PartialHarvest'!$C$8),(F342-G342-H342)))","v":0},{"$f":"IF(A343<='S4-PartialHarvest'!$C$7,('Growth-Model-4'!G342*EXP($Z$7)),IF(A343<'S4-PartialHarvest'!$C$9,('Growth-Model-4'!G342*EXP($AA$7)),0))+IF(A343='S4-PartialHarvest'!$C$7,'Growth-Model-4'!$AA$6,0)","v":0},{"$f":"IF(A343<='S4-PartialHarvest'!$C$9,$AD$6*EXP($AD$7*('S4-PartialHarvest'!C$9-'Growth-Model-4'!A343)),0)","v":0},258.11742751166497,6.3732698151028389E-2,0,34.187862812341081,0,{"$f":"M343/'S4-PartialHarvest'!$C$19","v":0},{"$error":"#N/A"},{"$error":"#N/A"},{"$f":"_xlfn.XLOOKUP(B343,FeedTables!$C$17:$T$17,FeedTables!$C$31:$T$31,,-1)","v":{"$error":"#N/A"}},{"$f":"_xlfn.XLOOKUP(Q343,FeedPrice[Feed],FeedPrice[Price per kg],\"Unknown\",0)*O343","v":{"$error":"#N/A"}},{"$error":"#N/A"},{"$f":"_xlfn.XLOOKUP(O343,LabourFromFeed[Feed Quantity (kg)],LabourFromFeed[No. Labour],\"Out of range\",-1)","v":{"$error":"#N/A"}},{"$f":"T343*OperatingCosts!$C$9","v":{"$error":"#N/A"}},{"$error":"#N/A"}]
[342,{"$f":"IF(A344<='S4-PartialHarvest'!$C$9, B343*EXP((LN((E343/100)+1))*1),)","v":0},{"$f":"_xlfn.XLOOKUP($B344,FeedTables!$C$42:$T$42,FeedTables!$C$44:$T$44,,-1)","v":{"$error":"#N/A"}},{"$f":"_xlfn.XLOOKUP($B344,FeedTables!$C$42:$T$42,FeedTables!$C$45:$T$45,,-1)","v":{"$error":"#N/A"}},{"$f":"_xlfn.XLOOKUP($B344,FeedTables!$C$42:$T$42,FeedTables!$C$46:$T$46,,-1)*_xlfn.XLOOKUP(N343,DensityMultiplier[Biomass kg/m3],DensityMultiplier[Multiplier],,-1)","v":{"$error":"#N/A"}},{"$f":"IF(A344>'S4-PartialHarvest'!$C$9,0,IF(A344='S4-PartialHarvest'!$C$7,(F343-G343-H343)*(1-'S4-PartialHarvest'!$C$8),(F343-G343-H343)))","v":0},{"$f":"IF(A344<='S4-PartialHarvest'!$C$7,('Growth-Model-4'!G343*EXP($Z$7)),IF(A344<'S4-PartialHarvest'!$C$9,('Growth-Model-4'!G343*EXP($AA$7)),0))+IF(A344='S4-PartialHarvest'!$C$7,'Growth-Model-4'!$AA$6,0)","v":0},{"$f":"IF(A344<='S4-PartialHarvest'!$C$9,$AD$6*EXP($AD$7*('S4-PartialHarvest'!C$9-'Growth-Model-4'!A344)),0)","v":0},258.11742751166497,6.3732698151028389E-2,0,34.187862812341081,0,{"$f":"M344/'S4-PartialHarvest'!$C$19","v":0},{"$error":"#N/A"},{"$error":"#N/A"},{"$f":"_xlfn.XLOOKUP(B344,FeedTables!$C$17:$T$17,FeedTables!$C$31:$T$31,,-1)","v":{"$error":"#N/A"}},{"$f":"_xlfn.XLOOKUP(Q344,FeedPrice[Feed],FeedPrice[Price per kg],\"Unknown\",0)*O344","v":{"$error":"#N/A"}},{"$error":"#N/A"},{"$f":"_xlfn.XLOOKUP(O344,LabourFromFeed[Feed Quantity (kg)],LabourFromFeed[No. Labour],\"Out of range\",-1)","v":{"$error":"#N/A"}},{"$f":"T344*OperatingCosts!$C$9","v":{"$error":"#N/A"}},{"$error":"#N/A"}]
[343,{"$f":"IF(A345<='S4-PartialHarvest'!$C$9, B344*EXP((LN((E344/100)+1))*1),)","v":0},{"$f":"_xlfn.XLOOKUP($B345,FeedTables!$C$42:$T$42,FeedTables!$C$44:$T$44,,-1)","v":{"$error":"#N/A"}},{"$f":"_xlfn.XLOOKUP($B345,FeedTables!$C$42:$T$42,FeedTables!$C$45:$T$45,,-1)","v":{"$error":"#N/A"}},{"$f":"_xlfn.XLOOKUP($B345,FeedTables!$C$42:$T$42,FeedTables!$C$46:$T$46,,-1)*_xlfn.XLOOKUP(N344,DensityMultiplier[Biomass kg/m3],DensityMultiplier[Multiplier],,-1)","v":{"$error":"#N/A"}},{"$f":"IF(A345>'S4-PartialHarvest'!$C$9,0,IF(A345='S4-PartialHarvest'!$C$7,(F344-G344-H344)*(1-'S4-PartialHarvest'!$C$8),(F344-G344-H344)))","v":0},{"$f":"IF(A345<='S4-PartialHarvest'!$C$7,('Growth-Model-4'!G344*EXP($Z$7)),IF(A345<'S4-PartialHarvest'!$C$9,('Growth-Model-4'!G344*EXP($AA$7)),0))+IF(A345='S4-PartialHarvest'!$C$7,'Growth-Model-4'!$AA$6,0)","v":0},{"$f":"IF(A345<='S4-PartialHarvest'!$C$9,$AD$6*EXP($AD$7*('S4-PartialHarvest'!C$9-'Growth-Model-4'!A345)),0)","v":0},258.11742751166497,6.3732698151028389E-2,0,34.187862812341081,0,{"$f":"M345/'S4-PartialHarvest'!$C$19","v":0},{"$error":"#N/A"},{"$error":"#N/A"},{"$f":"_xlfn.XLOOKUP(B345,FeedTables!$C$17:$T$17,FeedTables!$C$31:$T$31,,-1)","v":{"$error":"#N/A"}},{"$f":"_xlfn.XLOOKUP(Q345,FeedPrice[Feed],FeedPrice[Price per kg],\"Unknown\",0)*O345","v":{"$error":"#N/A"}},{"$error":"#N/A"},{"$f":"_xlfn.XLOOKUP(O345,LabourFromFeed[Feed Quantity (kg)],LabourFromFeed[No. Labour],\"Out of range\",-1)","v":{"$error":"#N/A"}},{"$f":"T345*OperatingCosts!$C$9","v":{"$error":"#N/A"}},{"$error":"#N/A"}]
[344,{"$f":"IF(A346<='S4-PartialHarvest'!$C$9, B345*EXP((LN((E345/100)+1))*1),)","v":0},{"$f":"_xlfn.XLOOKUP($B346,FeedTables!$C$42:$T$42,FeedTables!$C$44:$T$44,,-1)","v":{"$error":"#N/A"}},{"$f":"_xlfn.XLOOKUP($B346,FeedTables!$C$42:$T$42,FeedTables!$C$45:$T$45,,-1)","v":{"$error":"#N/A"}},{"$f":"_xlfn.XLOOKUP($B346,FeedTables!$C$42:$T$42,FeedTables!$C$46:$T$46,,-1)*_xlfn.XLOOKUP(N345,DensityMultiplier[Biomass kg/m3],DensityMultiplier[Multiplier],,-1)","v":{"$error":"#N/A"}},{"$f":"IF(A346>'S4-PartialHarvest'!$C$9,0,IF(A346='S4-PartialHarvest'!$C$7,(F345-G345-H345)*(1-'S4-PartialHarvest'!$C$8),(F345-G345-H345)))","v":0},{"$f":"IF(A346<='S4-PartialHarvest'!$C$7,('Growth-Model-4'!G345*EXP($Z$7)),IF(A346<'S4-PartialHarvest'!$C$9,('Growth-Model-4'!G345*EXP($AA$7)),0))+IF(A346='S4-PartialHarvest'!$C$7,'Growth-Model-4'!$AA$6,0)","v":0},{"$f":"IF(A346<='S4-PartialHarvest'!$C$9,$AD$6*EXP($AD$7*('S4-PartialHarvest'!C$9-'Growth-Model-4'!A346)),0)","v":0},258.11742751166497,6.3732698151028389E-2,0,34.187862812341081,0,{"$f":"M346/'S4-PartialHarvest'!$C$19","v":0},{"$error":"#N/A"},{"$error":"#N/A"},{"$f":"_xlfn.XLOOKUP(B346,FeedTables!$C$17:$T$17,FeedTables!$C$31:$T$31,,-1)","v":{"$error":"#N/A"}},{"$f":"_xlfn.XLOOKUP(Q346,FeedPrice[Feed],FeedPrice[Price per kg],\"Unknown\",0)*O346","v":{"$error":"#N/A"}},{"$error":"#N/A"},{"$f":"_xlfn.XLOOKUP(O346,LabourFromFeed[Feed Quantity (kg)],LabourFromFeed[No. Labour],\"Out of range\",-1)","v":{"$error":"#N/A"}},{"$f":"T346*OperatingCosts!$C$9","v":{"$error":"#N/A"}},{"$error":"#N/A"}]
[345,{"$f":"IF(A347<='S4-PartialHarvest'!$C$9, B346*EXP((LN((E346/100)+1))*1),)","v":0},{"$f":"_xlfn.XLOOKUP($B347,FeedTables!$C$42:$T$42,FeedTables!$C$44:$T$44,,-1)","v":{"$error":"#N/A"}},{"$f":"_xlfn.XLOOKUP($B347,FeedTables!$C$42:$T$42,FeedTables!$C$45:$T$45,,-1)","v":{"$error":"#N/A"}},{"$f":"_xlfn.XLOOKUP($B347,FeedTables!$C$42:$T$42,FeedTables!$C$46:$T$46,,-1)*_xlfn.XLOOKUP(N346,DensityMultiplier[Biomass kg/m3],DensityMultiplier[Multiplier],,-1)","v":{"$error":"#N/A"}},{"$f":"IF(A347>'S4-PartialHarvest'!$C$9,0,IF(A347='S4-PartialHarvest'!$C$7,(F346-G346-H346)*(1-'S4-PartialHarvest'!$C$8),(F346-G346-H346)))","v":0},{"$f":"IF(A347<='S4-PartialHarvest'!$C$7,('Growth-Model-4'!G346*EXP($Z$7)),IF(A347<'S4-PartialHarvest'!$C$9,('Growth-Model-4'!G346*EXP($AA$7)),0))+IF(A347='S4-PartialHarvest'!$C$7,'Growth-Model-4'!$AA$6,0)","v":0},{"$f":"IF(A347<='S4-PartialHarvest'!$C$9,$AD$6*EXP($AD$7*('S4-PartialHarvest'!C$9-'Growth-Model-4'!A347)),0)","v":0},258.11742751166497,6.3732698151028389E-2,0,34.187862812341081,0,{"$f":"M347/'S4-PartialHarvest'!$C$19","v":0},{"$error":"#N/A"},{"$error":"#N/A"},{"$f":"_xlfn.XLOOKUP(B347,FeedTables!$C$17:$T$17,FeedTables!$C$31:$T$31,,-1)","v":{"$error":"#N/A"}},{"$f":"_xlfn.XLOOKUP(Q347,FeedPrice[Feed],FeedPrice[Price per kg],\"Unknown\",0)*O347","v":{"$error":"#N/A"}},{"$error":"#N/A"},{"$f":"_xlfn.XLOOKUP(O347,LabourFromFeed[Feed Quantity (kg)],LabourFromFeed[No. Labour],\"Out of range\",-1)","v":{"$error":"#N/A"}},{"$f":"T347*OperatingCosts!$C$9","v":{"$error":"#N/A"}},{"$error":"#N/A"}]
[346,{"$f":"IF(A348<='S4-PartialHarvest'!$C$9, B347*EXP((LN((E347/100)+1))*1),)","v":0},{"$f":"_xlfn.XLOOKUP($B348,FeedTables!$C$42:$T$42,FeedTables!$C$44:$T$44,,-1)","v":{"$error":"#N/A"}},{"$f":"_xlfn.XLOOKUP($B348,FeedTables!$C$42:$T$42,FeedTables!$C$45:$T$45,,-1)","v":{"$error":"#N/A"}},{"$f":"_xlfn.XLOOKUP($B348,FeedTables!$C$42:$T$42,FeedTables!$C$46:$T$46,,-1)*_xlfn.XLOOKUP(N347,DensityMultiplier[Biomass kg/m3],DensityMultiplier[Multiplier],,-1)","v":{"$error":"#N/A"}},{"$f":"IF(A348>'S4-PartialHarvest'!$C$9,0,IF(A348='S4-PartialHarvest'!$C$7,(F347-G347-H347)*(1-'S4-PartialHarvest'!$C$8),(F347-G347-H347)))","v":0},{"$f":"IF(A348<='S4-PartialHarvest'!$C$7,('Growth-Model-4'!G347*EXP($Z$7)),IF(A348<'S4-PartialHarvest'!$C$9,('Growth-Model-4'!G347*EXP($AA$7)),0))+IF(A348='S4-PartialHarvest'!$C$7,'Growth-Model-4'!$AA$6,0)","v":0},{"$f":"IF(A348<='S4-PartialHarvest'!$C$9,$AD$6*EXP($AD$7*('S4-PartialHarvest'!C$9-'Growth-Model-4'!A348)),0)","v":0},258.11742751166497,6.3732698151028389E-2,0,34.187862812341081,0,{"$f":"M348/'S4-PartialHarvest'!$C$19","v":0},{"$error":"#N/A"},{"$error":"#N/A"},{"$f":"_xlfn.XLOOKUP(B348,FeedTables!$C$17:$T$17,FeedTables!$C$31:$T$31,,-1)","v":{"$error":"#N/A"}},{"$f":"_xlfn.XLOOKUP(Q348,FeedPrice[Feed],FeedPrice[Price per kg],\"Unknown\",0)*O348","v":{"$error":"#N/A"}},{"$error":"#N/A"},{"$f":"_xlfn.XLOOKUP(O348,LabourFromFeed[Feed Quantity (kg)],LabourFromFeed[No. Labour],\"Out of range\",-1)","v":{"$error":"#N/A"}},{"$f":"T348*OperatingCosts!$C$9","v":{"$error":"#N/A"}},{"$error":"#N/A"}]
[347,{"$f":"IF(A349<='S4-PartialHarvest'!$C$9, B348*EXP((LN((E348/100)+1))*1),)","v":0},{"$f":"_xlfn.XLOOKUP($B349,FeedTables!$C$42:$T$42,FeedTables!$C$44:$T$44,,-1)","v":{"$error":"#N/A"}},{"$f":"_xlfn.XLOOKUP($B349,FeedTables!$C$42:$T$42,FeedTables!$C$45:$T$45,,-1)","v":{"$error":"#N/A"}},{"$f":"_xlfn.XLOOKUP($B349,FeedTables!$C$42:$T$42,FeedTables!$C$46:$T$46,,-1)*_xlfn.XLOOKUP(N348,DensityMultiplier[Biomass kg/m3],DensityMultiplier[Multiplier],,-1)","v":{"$error":"#N/A"}},{"$f":"IF(A349>'S4-PartialHarvest'!$C$9,0,IF(A349='S4-PartialHarvest'!$C$7,(F348-G348-H348)*(1-'S4-PartialHarvest'!$C$8),(F348-G348-H348)))","v":0},{"$f":"IF(A349<='S4-PartialHarvest'!$C$7,('Growth-Model-4'!G348*EXP($Z$7)),IF(A349<'S4-PartialHarvest'!$C$9,('Growth-Model-4'!G348*EXP($AA$7)),0))+IF(A349='S4-PartialHarvest'!$C$7,'Growth-Model-4'!$AA$6,0)","v":0},{"$f":"IF(A349<='S4-PartialHarvest'!$C$9,$AD$6*EXP($AD$7*('S4-PartialHarvest'!C$9-'Growth-Model-4'!A349)),0)","v":0},258.11742751166497,6.3732698151028389E-2,0,34.187862812341081,0,{"$f":"M349/'S4-PartialHarvest'!$C$19","v":0},{"$error":"#N/A"},{"$error":"#N/A"},{"$f":"_xlfn.XLOOKUP(B349,FeedTables!$C$17:$T$17,FeedTables!$C$31:$T$31,,-1)","v":{"$error":"#N/A"}},{"$f":"_xlfn.XLOOKUP(Q349,FeedPrice[Feed],FeedPrice[Price per kg],\"Unknown\",0)*O349","v":{"$error":"#N/A"}},{"$error":"#N/A"},{"$f":"_xlfn.XLOOKUP(O349,LabourFromFeed[Feed Quantity (kg)],LabourFromFeed[No. Labour],\"Out of range\",-1)","v":{"$error":"#N/A"}},{"$f":"T349*OperatingCosts!$C$9","v":{"$error":"#N/A"}},{"$error":"#N/A"}]
[348,{"$f":"IF(A350<='S4-PartialHarvest'!$C$9, B349*EXP((LN((E349/100)+1))*1),)","v":0},{"$f":"_xlfn.XLOOKUP($B350,FeedTables!$C$42:$T$42,FeedTables!$C$44:$T$44,,-1)","v":{"$error":"#N/A"}},{"$f":"_xlfn.XLOOKUP($B350,FeedTables!$C$42:$T$42,FeedTables!$C$45:$T$45,,-1)","v":{"$error":"#N/A"}},{"$f":"_xlfn.XLOOKUP($B350,FeedTables!$C$42:$T$42,FeedTables!$C$46:$T$46,,-1)*_xlfn.XLOOKUP(N349,DensityMultiplier[Biomass kg/m3],DensityMultiplier[Multiplier],,-1)","v":{"$error":"#N/A"}},{"$f":"IF(A350>'S4-PartialHarvest'!$C$9,0,IF(A350='S4-PartialHarvest'!$C$7,(F349-G349-H349)*(1-'S4-PartialHarvest'!$C$8),(F349-G349-H349)))","v":0},{"$f":"IF(A350<='S4-PartialHarvest'!$C$7,('Growth-Model-4'!G349*EXP($Z$7)),IF(A350<'S4-PartialHarvest'!$C$9,('Growth-Model-4'!G349*EXP($AA$7)),0))+IF(A350='S4-PartialHarvest'!$C$7,'Growth-Model-4'!$AA$6,0)","v":0},{"$f":"IF(A350<='S4-PartialHarvest'!$C$9,$AD$6*EXP($AD$7*('S4-PartialHarvest'!C$9-'Growth-Model-4'!A350)),0)","v":0},258.11742751166497,6.3732698151028389E-2,0,34.187862812341081,0,{"$f":"M350/'S4-PartialHarvest'!$C$19","v":0},{"$error":"#N/A"},{"$error":"#N/A"},{"$f":"_xlfn.XLOOKUP(B350,FeedTables!$C$17:$T$17,FeedTables!$C$31:$T$31,,-1)","v":{"$error":"#N/A"}},{"$f":"_xlfn.XLOOKUP(Q350,FeedPrice[Feed],FeedPrice[Price per kg],\"Unknown\",0)*O350","v":{"$error":"#N/A"}},{"$error":"#N/A"},{"$f":"_xlfn.XLOOKUP(O350,LabourFromFeed[Feed Quantity (kg)],LabourFromFeed[No. Labour],\"Out of range\",-1)","v":{"$error":"#N/A"}},{"$f":"T350*OperatingCosts!$C$9","v":{"$error":"#N/A"}},{"$error":"#N/A"}]
[349,{"$f":"IF(A351<='S4-PartialHarvest'!$C$9, B350*EXP((LN((E350/100)+1))*1),)","v":0},{"$f":"_xlfn.XLOOKUP($B351,FeedTables!$C$42:$T$42,FeedTables!$C$44:$T$44,,-1)","v":{"$error":"#N/A"}},{"$f":"_xlfn.XLOOKUP($B351,FeedTables!$C$42:$T$42,FeedTables!$C$45:$T$45,,-1)","v":{"$error":"#N/A"}},{"$f":"_xlfn.XLOOKUP($B351,FeedTables!$C$42:$T$42,FeedTables!$C$46:$T$46,,-1)*_xlfn.XLOOKUP(N350,DensityMultiplier[Biomass kg/m3],DensityMultiplier[Multiplier],,-1)","v":{"$error":"#N/A"}},{"$f":"IF(A351>'S4-PartialHarvest'!$C$9,0,IF(A351='S4-PartialHarvest'!$C$7,(F350-G350-H350)*(1-'S4-PartialHarvest'!$C$8),(F350-G350-H350)))","v":0},{"$f":"IF(A351<='S4-PartialHarvest'!$C$7,('Growth-Model-4'!G350*EXP($Z$7)),IF(A351<'S4-PartialHarvest'!$C$9,('Growth-Model-4'!G350*EXP($AA$7)),0))+IF(A351='S4-PartialHarvest'!$C$7,'Growth-Model-4'!$AA$6,0)","v":0},{"$f":"IF(A351<='S4-PartialHarvest'!$C$9,$AD$6*EXP($AD$7*('S4-PartialHarvest'!C$9-'Growth-Model-4'!A351)),0)","v":0},258.11742751166497,6.3732698151028389E-2,0,34.187862812341081,0,{"$f":"M351/'S4-PartialHarvest'!$C$19","v":0},{"$error":"#N/A"},{"$error":"#N/A"},{"$f":"_xlfn.XLOOKUP(B351,FeedTables!$C$17:$T$17,FeedTables!$C$31:$T$31,,-1)","v":{"$error":"#N/A"}},{"$f":"_xlfn.XLOOKUP(Q351,FeedPrice[Feed],FeedPrice[Price per kg],\"Unknown\",0)*O351","v":{"$error":"#N/A"}},{"$error":"#N/A"},{"$f":"_xlfn.XLOOKUP(O351,LabourFromFeed[Feed Quantity (kg)],LabourFromFeed[No. Labour],\"Out of range\",-1)","v":{"$error":"#N/A"}},{"$f":"T351*OperatingCosts!$C$9","v":{"$error":"#N/A"}},{"$error":"#N/A"}]
[350,{"$f":"IF(A352<='S4-PartialHarvest'!$C$9, B351*EXP((LN((E351/100)+1))*1),)","v":0},{"$f":"_xlfn.XLOOKUP($B352,FeedTables!$C$42:$T$42,FeedTables!$C$44:$T$44,,-1)","v":{"$error":"#N/A"}},{"$f":"_xlfn.XLOOKUP($B352,FeedTables!$C$42:$T$42,FeedTables!$C$45:$T$45,,-1)","v":{"$error":"#N/A"}},{"$f":"_xlfn.XLOOKUP($B352,FeedTables!$C$42:$T$42,FeedTables!$C$46:$T$46,,-1)*_xlfn.XLOOKUP(N351,DensityMultiplier[Biomass kg/m3],DensityMultiplier[Multiplier],,-1)","v":{"$error":"#N/A"}},{"$f":"IF(A352>'S4-PartialHarvest'!$C$9,0,IF(A352='S4-PartialHarvest'!$C$7,(F351-G351-H351)*(1-'S4-PartialHarvest'!$C$8),(F351-G351-H351)))","v":0},{"$f":"IF(A352<='S4-PartialHarvest'!$C$7,('Growth-Model-4'!G351*EXP($Z$7)),IF(A352<'S4-PartialHarvest'!$C$9,('Growth-Model-4'!G351*EXP($AA$7)),0))+IF(A352='S4-PartialHarvest'!$C$7,'Growth-Model-4'!$AA$6,0)","v":0},{"$f":"IF(A352<='S4-PartialHarvest'!$C$9,$AD$6*EXP($AD$7*('S4-PartialHarvest'!C$9-'Growth-Model-4'!A352)),0)","v":0},258.11742751166497,6.3732698151028389E-2,0,34.187862812341081,0,{"$f":"M352/'S4-PartialHarvest'!$C$19","v":0},{"$error":"#N/A"},{"$error":"#N/A"},{"$f":"_xlfn.XLOOKUP(B352,FeedTables!$C$17:$T$17,FeedTables!$C$31:$T$31,,-1)","v":{"$error":"#N/A"}},{"$f":"_xlfn.XLOOKUP(Q352,FeedPrice[Feed],FeedPrice[Price per kg],\"Unknown\",0)*O352","v":{"$error":"#N/A"}},{"$error":"#N/A"},{"$f":"_xlfn.XLOOKUP(O352,LabourFromFeed[Feed Quantity (kg)],LabourFromFeed[No. Labour],\"Out of range\",-1)","v":{"$error":"#N/A"}},{"$f":"T352*OperatingCosts!$C$9","v":{"$error":"#N/A"}},{"$error":"#N/A"}]
[351,{"$f":"IF(A353<='S4-PartialHarvest'!$C$9, B352*EXP((LN((E352/100)+1))*1),)","v":0},{"$f":"_xlfn.XLOOKUP($B353,FeedTables!$C$42:$T$42,FeedTables!$C$44:$T$44,,-1)","v":{"$error":"#N/A"}},{"$f":"_xlfn.XLOOKUP($B353,FeedTables!$C$42:$T$42,FeedTables!$C$45:$T$45,,-1)","v":{"$error":"#N/A"}},{"$f":"_xlfn.XLOOKUP($B353,FeedTables!$C$42:$T$42,FeedTables!$C$46:$T$46,,-1)*_xlfn.XLOOKUP(N352,DensityMultiplier[Biomass kg/m3],DensityMultiplier[Multiplier],,-1)","v":{"$error":"#N/A"}},{"$f":"IF(A353>'S4-PartialHarvest'!$C$9,0,IF(A353='S4-PartialHarvest'!$C$7,(F352-G352-H352)*(1-'S4-PartialHarvest'!$C$8),(F352-G352-H352)))","v":0},{"$f":"IF(A353<='S4-PartialHarvest'!$C$7,('Growth-Model-4'!G352*EXP($Z$7)),IF(A353<'S4-PartialHarvest'!$C$9,('Growth-Model-4'!G352*EXP($AA$7)),0))+IF(A353='S4-PartialHarvest'!$C$7,'Growth-Model-4'!$AA$6,0)","v":0},{"$f":"IF(A353<='S4-PartialHarvest'!$C$9,$AD$6*EXP($AD$7*('S4-PartialHarvest'!C$9-'Growth-Model-4'!A353)),0)","v":0},258.11742751166497,6.3732698151028389E-2,0,34.187862812341081,0,{"$f":"M353/'S4-PartialHarvest'!$C$19","v":0},{"$error":"#N/A"},{"$error":"#N/A"},{"$f":"_xlfn.XLOOKUP(B353,FeedTables!$C$17:$T$17,FeedTables!$C$31:$T$31,,-1)","v":{"$error":"#N/A"}},{"$f":"_xlfn.XLOOKUP(Q353,FeedPrice[Feed],FeedPrice[Price per kg],\"Unknown\",0)*O353","v":{"$error":"#N/A"}},{"$error":"#N/A"},{"$f":"_xlfn.XLOOKUP(O353,LabourFromFeed[Feed Quantity (kg)],LabourFromFeed[No. Labour],\"Out of range\",-1)","v":{"$error":"#N/A"}},{"$f":"T353*OperatingCosts!$C$9","v":{"$error":"#N/A"}},{"$error":"#N/A"}]
[352,{"$f":"IF(A354<='S4-PartialHarvest'!$C$9, B353*EXP((LN((E353/100)+1))*1),)","v":0},{"$f":"_xlfn.XLOOKUP($B354,FeedTables!$C$42:$T$42,FeedTables!$C$44:$T$44,,-1)","v":{"$error":"#N/A"}},{"$f":"_xlfn.XLOOKUP($B354,FeedTables!$C$42:$T$42,FeedTables!$C$45:$T$45,,-1)","v":{"$error":"#N/A"}},{"$f":"_xlfn.XLOOKUP($B354,FeedTables!$C$42:$T$42,FeedTables!$C$46:$T$46,,-1)*_xlfn.XLOOKUP(N353,DensityMultiplier[Biomass kg/m3],DensityMultiplier[Multiplier],,-1)","v":{"$error":"#N/A"}},{"$f":"IF(A354>'S4-PartialHarvest'!$C$9,0,IF(A354='S4-PartialHarvest'!$C$7,(F353-G353-H353)*(1-'S4-PartialHarvest'!$C$8),(F353-G353-H353)))","v":0},{"$f":"IF(A354<='S4-PartialHarvest'!$C$7,('Growth-Model-4'!G353*EXP($Z$7)),IF(A354<'S4-PartialHarvest'!$C$9,('Growth-Model-4'!G353*EXP($AA$7)),0))+IF(A354='S4-PartialHarvest'!$C$7,'Growth-Model-4'!$AA$6,0)","v":0},{"$f":"IF(A354<='S4-PartialHarvest'!$C$9,$AD$6*EXP($AD$7*('S4-PartialHarvest'!C$9-'Growth-Model-4'!A354)),0)","v":0},258.11742751166497,6.3732698151028389E-2,0,34.187862812341081,0,{"$f":"M354/'S4-PartialHarvest'!$C$19","v":0},{"$error":"#N/A"},{"$error":"#N/A"},{"$f":"_xlfn.XLOOKUP(B354,FeedTables!$C$17:$T$17,FeedTables!$C$31:$T$31,,-1)","v":{"$error":"#N/A"}},{"$f":"_xlfn.XLOOKUP(Q354,FeedPrice[Feed],FeedPrice[Price per kg],\"Unknown\",0)*O354","v":{"$error":"#N/A"}},{"$error":"#N/A"},{"$f":"_xlfn.XLOOKUP(O354,LabourFromFeed[Feed Quantity (kg)],LabourFromFeed[No. Labour],\"Out of range\",-1)","v":{"$error":"#N/A"}},{"$f":"T354*OperatingCosts!$C$9","v":{"$error":"#N/A"}},{"$error":"#N/A"}]
[353,{"$f":"IF(A355<='S4-PartialHarvest'!$C$9, B354*EXP((LN((E354/100)+1))*1),)","v":0},{"$f":"_xlfn.XLOOKUP($B355,FeedTables!$C$42:$T$42,FeedTables!$C$44:$T$44,,-1)","v":{"$error":"#N/A"}},{"$f":"_xlfn.XLOOKUP($B355,FeedTables!$C$42:$T$42,FeedTables!$C$45:$T$45,,-1)","v":{"$error":"#N/A"}},{"$f":"_xlfn.XLOOKUP($B355,FeedTables!$C$42:$T$42,FeedTables!$C$46:$T$46,,-1)*_xlfn.XLOOKUP(N354,DensityMultiplier[Biomass kg/m3],DensityMultiplier[Multiplier],,-1)","v":{"$error":"#N/A"}},{"$f":"IF(A355>'S4-PartialHarvest'!$C$9,0,IF(A355='S4-PartialHarvest'!$C$7,(F354-G354-H354)*(1-'S4-PartialHarvest'!$C$8),(F354-G354-H354)))","v":0},{"$f":"IF(A355<='S4-PartialHarvest'!$C$7,('Growth-Model-4'!G354*EXP($Z$7)),IF(A355<'S4-PartialHarvest'!$C$9,('Growth-Model-4'!G354*EXP($AA$7)),0))+IF(A355='S4-PartialHarvest'!$C$7,'Growth-Model-4'!$AA$6,0)","v":0},{"$f":"IF(A355<='S4-PartialHarvest'!$C$9,$AD$6*EXP($AD$7*('S4-PartialHarvest'!C$9-'Growth-Model-4'!A355)),0)","v":0},258.11742751166497,6.3732698151028389E-2,0,34.187862812341081,0,{"$f":"M355/'S4-PartialHarvest'!$C$19","v":0},{"$error":"#N/A"},{"$error":"#N/A"},{"$f":"_xlfn.XLOOKUP(B355,FeedTables!$C$17:$T$17,FeedTables!$C$31:$T$31,,-1)","v":{"$error":"#N/A"}},{"$f":"_xlfn.XLOOKUP(Q355,FeedPrice[Feed],FeedPrice[Price per kg],\"Unknown\",0)*O355","v":{"$error":"#N/A"}},{"$error":"#N/A"},{"$f":"_xlfn.XLOOKUP(O355,LabourFromFeed[Feed Quantity (kg)],LabourFromFeed[No. Labour],\"Out of range\",-1)","v":{"$error":"#N/A"}},{"$f":"T355*OperatingCosts!$C$9","v":{"$error":"#N/A"}},{"$error":"#N/A"}]
[354,{"$f":"IF(A356<='S4-PartialHarvest'!$C$9, B355*EXP((LN((E355/100)+1))*1),)","v":0},{"$f":"_xlfn.XLOOKUP($B356,FeedTables!$C$42:$T$42,FeedTables!$C$44:$T$44,,-1)","v":{"$error":"#N/A"}},{"$f":"_xlfn.XLOOKUP($B356,FeedTables!$C$42:$T$42,FeedTables!$C$45:$T$45,,-1)","v":{"$error":"#N/A"}},{"$f":"_xlfn.XLOOKUP($B356,FeedTables!$C$42:$T$42,FeedTables!$C$46:$T$46,,-1)*_xlfn.XLOOKUP(N355,DensityMultiplier[Biomass kg/m3],DensityMultiplier[Multiplier],,-1)","v":{"$error":"#N/A"}},{"$f":"IF(A356>'S4-PartialHarvest'!$C$9,0,IF(A356='S4-PartialHarvest'!$C$7,(F355-G355-H355)*(1-'S4-PartialHarvest'!$C$8),(F355-G355-H355)))","v":0},{"$f":"IF(A356<='S4-PartialHarvest'!$C$7,('Growth-Model-4'!G355*EXP($Z$7)),IF(A356<'S4-PartialHarvest'!$C$9,('Growth-Model-4'!G355*EXP($AA$7)),0))+IF(A356='S4-PartialHarvest'!$C$7,'Growth-Model-4'!$AA$6,0)","v":0},{"$f":"IF(A356<='S4-PartialHarvest'!$C$9,$AD$6*EXP($AD$7*('S4-PartialHarvest'!C$9-'Growth-Model-4'!A356)),0)","v":0},258.11742751166497,6.3732698151028389E-2,0,34.187862812341081,0,{"$f":"M356/'S4-PartialHarvest'!$C$19","v":0},{"$error":"#N/A"},{"$error":"#N/A"},{"$f":"_xlfn.XLOOKUP(B356,FeedTables!$C$17:$T$17,FeedTables!$C$31:$T$31,,-1)","v":{"$error":"#N/A"}},{"$f":"_xlfn.XLOOKUP(Q356,FeedPrice[Feed],FeedPrice[Price per kg],\"Unknown\",0)*O356","v":{"$error":"#N/A"}},{"$error":"#N/A"},{"$f":"_xlfn.XLOOKUP(O356,LabourFromFeed[Feed Quantity (kg)],LabourFromFeed[No. Labour],\"Out of range\",-1)","v":{"$error":"#N/A"}},{"$f":"T356*OperatingCosts!$C$9","v":{"$error":"#N/A"}},{"$error":"#N/A"}]
[355,{"$f":"IF(A357<='S4-PartialHarvest'!$C$9, B356*EXP((LN((E356/100)+1))*1),)","v":0},{"$f":"_xlfn.XLOOKUP($B357,FeedTables!$C$42:$T$42,FeedTables!$C$44:$T$44,,-1)","v":{"$error":"#N/A"}},{"$f":"_xlfn.XLOOKUP($B357,FeedTables!$C$42:$T$42,FeedTables!$C$45:$T$45,,-1)","v":{"$error":"#N/A"}},{"$f":"_xlfn.XLOOKUP($B357,FeedTables!$C$42:$T$42,FeedTables!$C$46:$T$46,,-1)*_xlfn.XLOOKUP(N356,DensityMultiplier[Biomass kg/m3],DensityMultiplier[Multiplier],,-1)","v":{"$error":"#N/A"}},{"$f":"IF(A357>'S4-PartialHarvest'!$C$9,0,IF(A357='S4-PartialHarvest'!$C$7,(F356-G356-H356)*(1-'S4-PartialHarvest'!$C$8),(F356-G356-H356)))","v":0},{"$f":"IF(A357<='S4-PartialHarvest'!$C$7,('Growth-Model-4'!G356*EXP($Z$7)),IF(A357<'S4-PartialHarvest'!$C$9,('Growth-Model-4'!G356*EXP($AA$7)),0))+IF(A357='S4-PartialHarvest'!$C$7,'Growth-Model-4'!$AA$6,0)","v":0},{"$f":"IF(A357<='S4-PartialHarvest'!$C$9,$AD$6*EXP($AD$7*('S4-PartialHarvest'!C$9-'Growth-Model-4'!A357)),0)","v":0},258.11742751166497,6.3732698151028389E-2,0,34.187862812341081,0,{"$f":"M357/'S4-PartialHarvest'!$C$19","v":0},{"$error":"#N/A"},{"$error":"#N/A"},{"$f":"_xlfn.XLOOKUP(B357,FeedTables!$C$17:$T$17,FeedTables!$C$31:$T$31,,-1)","v":{"$error":"#N/A"}},{"$f":"_xlfn.XLOOKUP(Q357,FeedPrice[Feed],FeedPrice[Price per kg],\"Unknown\",0)*O357","v":{"$error":"#N/A"}},{"$error":"#N/A"},{"$f":"_xlfn.XLOOKUP(O357,LabourFromFeed[Feed Quantity (kg)],LabourFromFeed[No. Labour],\"Out of range\",-1)","v":{"$error":"#N/A"}},{"$f":"T357*OperatingCosts!$C$9","v":{"$error":"#N/A"}},{"$error":"#N/A"}]
[356,{"$f":"IF(A358<='S4-PartialHarvest'!$C$9, B357*EXP((LN((E357/100)+1))*1),)","v":0},{"$f":"_xlfn.XLOOKUP($B358,FeedTables!$C$42:$T$42,FeedTables!$C$44:$T$44,,-1)","v":{"$error":"#N/A"}},{"$f":"_xlfn.XLOOKUP($B358,FeedTables!$C$42:$T$42,FeedTables!$C$45:$T$45,,-1)","v":{"$error":"#N/A"}},{"$f":"_xlfn.XLOOKUP($B358,FeedTables!$C$42:$T$42,FeedTables!$C$46:$T$46,,-1)*_xlfn.XLOOKUP(N357,DensityMultiplier[Biomass kg/m3],DensityMultiplier[Multiplier],,-1)","v":{"$error":"#N/A"}},{"$f":"IF(A358>'S4-PartialHarvest'!$C$9,0,IF(A358='S4-PartialHarvest'!$C$7,(F357-G357-H357)*(1-'S4-PartialHarvest'!$C$8),(F357-G357-H357)))","v":0},{"$f":"IF(A358<='S4-PartialHarvest'!$C$7,('Growth-Model-4'!G357*EXP($Z$7)),IF(A358<'S4-PartialHarvest'!$C$9,('Growth-Model-4'!G357*EXP($AA$7)),0))+IF(A358='S4-PartialHarvest'!$C$7,'Growth-Model-4'!$AA$6,0)","v":0},{"$f":"IF(A358<='S4-PartialHarvest'!$C$9,$AD$6*EXP($AD$7*('S4-PartialHarvest'!C$9-'Growth-Model-4'!A358)),0)","v":0},258.11742751166497,6.3732698151028389E-2,0,34.187862812341081,0,{"$f":"M358/'S4-PartialHarvest'!$C$19","v":0},{"$error":"#N/A"},{"$error":"#N/A"},{"$f":"_xlfn.XLOOKUP(B358,FeedTables!$C$17:$T$17,FeedTables!$C$31:$T$31,,-1)","v":{"$error":"#N/A"}},{"$f":"_xlfn.XLOOKUP(Q358,FeedPrice[Feed],FeedPrice[Price per kg],\"Unknown\",0)*O358","v":{"$error":"#N/A"}},{"$error":"#N/A"},{"$f":"_xlfn.XLOOKUP(O358,LabourFromFeed[Feed Quantity (kg)],LabourFromFeed[No. Labour],\"Out of range\",-1)","v":{"$error":"#N/A"}},{"$f":"T358*OperatingCosts!$C$9","v":{"$error":"#N/A"}},{"$error":"#N/A"}]
[357,{"$f":"IF(A359<='S4-PartialHarvest'!$C$9, B358*EXP((LN((E358/100)+1))*1),)","v":0},{"$f":"_xlfn.XLOOKUP($B359,FeedTables!$C$42:$T$42,FeedTables!$C$44:$T$44,,-1)","v":{"$error":"#N/A"}},{"$f":"_xlfn.XLOOKUP($B359,FeedTables!$C$42:$T$42,FeedTables!$C$45:$T$45,,-1)","v":{"$error":"#N/A"}},{"$f":"_xlfn.XLOOKUP($B359,FeedTables!$C$42:$T$42,FeedTables!$C$46:$T$46,,-1)*_xlfn.XLOOKUP(N358,DensityMultiplier[Biomass kg/m3],DensityMultiplier[Multiplier],,-1)","v":{"$error":"#N/A"}},{"$f":"IF(A359>'S4-PartialHarvest'!$C$9,0,IF(A359='S4-PartialHarvest'!$C$7,(F358-G358-H358)*(1-'S4-PartialHarvest'!$C$8),(F358-G358-H358)))","v":0},{"$f":"IF(A359<='S4-PartialHarvest'!$C$7,('Growth-Model-4'!G358*EXP($Z$7)),IF(A359<'S4-PartialHarvest'!$C$9,('Growth-Model-4'!G358*EXP($AA$7)),0))+IF(A359='S4-PartialHarvest'!$C$7,'Growth-Model-4'!$AA$6,0)","v":0},{"$f":"IF(A359<='S4-PartialHarvest'!$C$9,$AD$6*EXP($AD$7*('S4-PartialHarvest'!C$9-'Growth-Model-4'!A359)),0)","v":0},258.11742751166497,6.3732698151028389E-2,0,34.187862812341081,0,{"$f":"M359/'S4-PartialHarvest'!$C$19","v":0},{"$error":"#N/A"},{"$error":"#N/A"},{"$f":"_xlfn.XLOOKUP(B359,FeedTables!$C$17:$T$17,FeedTables!$C$31:$T$31,,-1)","v":{"$error":"#N/A"}},{"$f":"_xlfn.XLOOKUP(Q359,FeedPrice[Feed],FeedPrice[Price per kg],\"Unknown\",0)*O359","v":{"$error":"#N/A"}},{"$error":"#N/A"},{"$f":"_xlfn.XLOOKUP(O359,LabourFromFeed[Feed Quantity (kg)],LabourFromFeed[No. Labour],\"Out of range\",-1)","v":{"$error":"#N/A"}},{"$f":"T359*OperatingCosts!$C$9","v":{"$error":"#N/A"}},{"$error":"#N/A"}]
[358,{"$f":"IF(A360<='S4-PartialHarvest'!$C$9, B359*EXP((LN((E359/100)+1))*1),)","v":0},{"$f":"_xlfn.XLOOKUP($B360,FeedTables!$C$42:$T$42,FeedTables!$C$44:$T$44,,-1)","v":{"$error":"#N/A"}},{"$f":"_xlfn.XLOOKUP($B360,FeedTables!$C$42:$T$42,FeedTables!$C$45:$T$45,,-1)","v":{"$error":"#N/A"}},{"$f":"_xlfn.XLOOKUP($B360,FeedTables!$C$42:$T$42,FeedTables!$C$46:$T$46,,-1)*_xlfn.XLOOKUP(N359,DensityMultiplier[Biomass kg/m3],DensityMultiplier[Multiplier],,-1)","v":{"$error":"#N/A"}},{"$f":"IF(A360>'S4-PartialHarvest'!$C$9,0,IF(A360='S4-PartialHarvest'!$C$7,(F359-G359-H359)*(1-'S4-PartialHarvest'!$C$8),(F359-G359-H359)))","v":0},{"$f":"IF(A360<='S4-PartialHarvest'!$C$7,('Growth-Model-4'!G359*EXP($Z$7)),IF(A360<'S4-PartialHarvest'!$C$9,('Growth-Model-4'!G359*EXP($AA$7)),0))+IF(A360='S4-PartialHarvest'!$C$7,'Growth-Model-4'!$AA$6,0)","v":0},{"$f":"IF(A360<='S4-PartialHarvest'!$C$9,$AD$6*EXP($AD$7*('S4-PartialHarvest'!C$9-'Growth-Model-4'!A360)),0)","v":0},258.11742751166497,6.3732698151028389E-2,0,34.187862812341081,0,{"$f":"M360/'S4-PartialHarvest'!$C$19","v":0},{"$error":"#N/A"},{"$error":"#N/A"},{"$f":"_xlfn.XLOOKUP(B360,FeedTables!$C$17:$T$17,FeedTables!$C$31:$T$31,,-1)","v":{"$error":"#N/A"}},{"$f":"_xlfn.XLOOKUP(Q360,FeedPrice[Feed],FeedPrice[Price per kg],\"Unknown\",0)*O360","v":{"$error":"#N/A"}},{"$error":"#N/A"},{"$f":"_xlfn.XLOOKUP(O360,LabourFromFeed[Feed Quantity (kg)],LabourFromFeed[No. Labour],\"Out of range\",-1)","v":{"$error":"#N/A"}},{"$f":"T360*OperatingCosts!$C$9","v":{"$error":"#N/A"}},{"$error":"#N/A"}]
[359,{"$f":"IF(A361<='S4-PartialHarvest'!$C$9, B360*EXP((LN((E360/100)+1))*1),)","v":0},{"$f":"_xlfn.XLOOKUP($B361,FeedTables!$C$42:$T$42,FeedTables!$C$44:$T$44,,-1)","v":{"$error":"#N/A"}},{"$f":"_xlfn.XLOOKUP($B361,FeedTables!$C$42:$T$42,FeedTables!$C$45:$T$45,,-1)","v":{"$error":"#N/A"}},{"$f":"_xlfn.XLOOKUP($B361,FeedTables!$C$42:$T$42,FeedTables!$C$46:$T$46,,-1)*_xlfn.XLOOKUP(N360,DensityMultiplier[Biomass kg/m3],DensityMultiplier[Multiplier],,-1)","v":{"$error":"#N/A"}},{"$f":"IF(A361>'S4-PartialHarvest'!$C$9,0,IF(A361='S4-PartialHarvest'!$C$7,(F360-G360-H360)*(1-'S4-PartialHarvest'!$C$8),(F360-G360-H360)))","v":0},{"$f":"IF(A361<='S4-PartialHarvest'!$C$7,('Growth-Model-4'!G360*EXP($Z$7)),IF(A361<'S4-PartialHarvest'!$C$9,('Growth-Model-4'!G360*EXP($AA$7)),0))+IF(A361='S4-PartialHarvest'!$C$7,'Growth-Model-4'!$AA$6,0)","v":0},{"$f":"IF(A361<='S4-PartialHarvest'!$C$9,$AD$6*EXP($AD$7*('S4-PartialHarvest'!C$9-'Growth-Model-4'!A361)),0)","v":0},258.11742751166497,6.3732698151028389E-2,0,34.187862812341081,0,{"$f":"M361/'S4-PartialHarvest'!$C$19","v":0},{"$error":"#N/A"},{"$error":"#N/A"},{"$f":"_xlfn.XLOOKUP(B361,FeedTables!$C$17:$T$17,FeedTables!$C$31:$T$31,,-1)","v":{"$error":"#N/A"}},{"$f":"_xlfn.XLOOKUP(Q361,FeedPrice[Feed],FeedPrice[Price per kg],\"Unknown\",0)*O361","v":{"$error":"#N/A"}},{"$error":"#N/A"},{"$f":"_xlfn.XLOOKUP(O361,LabourFromFeed[Feed Quantity (kg)],LabourFromFeed[No. Labour],\"Out of range\",-1)","v":{"$error":"#N/A"}},{"$f":"T361*OperatingCosts!$C$9","v":{"$error":"#N/A"}},{"$error":"#N/A"}]
[360,{"$f":"IF(A362<='S4-PartialHarvest'!$C$9, B361*EXP((LN((E361/100)+1))*1),)","v":0},{"$f":"_xlfn.XLOOKUP($B362,FeedTables!$C$42:$T$42,FeedTables!$C$44:$T$44,,-1)","v":{"$error":"#N/A"}},{"$f":"_xlfn.XLOOKUP($B362,FeedTables!$C$42:$T$42,FeedTables!$C$45:$T$45,,-1)","v":{"$error":"#N/A"}},{"$f":"_xlfn.XLOOKUP($B362,FeedTables!$C$42:$T$42,FeedTables!$C$46:$T$46,,-1)*_xlfn.XLOOKUP(N361,DensityMultiplier[Biomass kg/m3],DensityMultiplier[Multiplier],,-1)","v":{"$error":"#N/A"}},{"$f":"IF(A362>'S4-PartialHarvest'!$C$9,0,IF(A362='S4-PartialHarvest'!$C$7,(F361-G361-H361)*(1-'S4-PartialHarvest'!$C$8),(F361-G361-H361)))","v":0},{"$f":"IF(A362<='S4-PartialHarvest'!$C$7,('Growth-Model-4'!G361*EXP($Z$7)),IF(A362<'S4-PartialHarvest'!$C$9,('Growth-Model-4'!G361*EXP($AA$7)),0))+IF(A362='S4-PartialHarvest'!$C$7,'Growth-Model-4'!$AA$6,0)","v":0},{"$f":"IF(A362<='S4-PartialHarvest'!$C$9,$AD$6*EXP($AD$7*('S4-PartialHarvest'!C$9-'Growth-Model-4'!A362)),0)","v":0},258.11742751166497,6.3732698151028389E-2,0,34.187862812341081,0,{"$f":"M362/'S4-PartialHarvest'!$C$19","v":0},{"$error":"#N/A"},{"$error":"#N/A"},{"$f":"_xlfn.XLOOKUP(B362,FeedTables!$C$17:$T$17,FeedTables!$C$31:$T$31,,-1)","v":{"$error":"#N/A"}},{"$f":"_xlfn.XLOOKUP(Q362,FeedPrice[Feed],FeedPrice[Price per kg],\"Unknown\",0)*O362","v":{"$error":"#N/A"}},{"$error":"#N/A"},{"$f":"_xlfn.XLOOKUP(O362,LabourFromFeed[Feed Quantity (kg)],LabourFromFeed[No. Labour],\"Out of range\",-1)","v":{"$error":"#N/A"}},{"$f":"T362*OperatingCosts!$C$9","v":{"$error":"#N/A"}},{"$error":"#N/A"}]
[361,{"$f":"IF(A363<='S4-PartialHarvest'!$C$9, B362*EXP((LN((E362/100)+1))*1),)","v":0},{"$f":"_xlfn.XLOOKUP($B363,FeedTables!$C$42:$T$42,FeedTables!$C$44:$T$44,,-1)","v":{"$error":"#N/A"}},{"$f":"_xlfn.XLOOKUP($B363,FeedTables!$C$42:$T$42,FeedTables!$C$45:$T$45,,-1)","v":{"$error":"#N/A"}},{"$f":"_xlfn.XLOOKUP($B363,FeedTables!$C$42:$T$42,FeedTables!$C$46:$T$46,,-1)*_xlfn.XLOOKUP(N362,DensityMultiplier[Biomass kg/m3],DensityMultiplier[Multiplier],,-1)","v":{"$error":"#N/A"}},{"$f":"IF(A363>'S4-PartialHarvest'!$C$9,0,IF(A363='S4-PartialHarvest'!$C$7,(F362-G362-H362)*(1-'S4-PartialHarvest'!$C$8),(F362-G362-H362)))","v":0},{"$f":"IF(A363<='S4-PartialHarvest'!$C$7,('Growth-Model-4'!G362*EXP($Z$7)),IF(A363<'S4-PartialHarvest'!$C$9,('Growth-Model-4'!G362*EXP($AA$7)),0))+IF(A363='S4-PartialHarvest'!$C$7,'Growth-Model-4'!$AA$6,0)","v":0},{"$f":"IF(A363<='S4-PartialHarvest'!$C$9,$AD$6*EXP($AD$7*('S4-PartialHarvest'!C$9-'Growth-Model-4'!A363)),0)","v":0},258.11742751166497,6.3732698151028389E-2,0,34.187862812341081,0,{"$f":"M363/'S4-PartialHarvest'!$C$19","v":0},{"$error":"#N/A"},{"$error":"#N/A"},{"$f":"_xlfn.XLOOKUP(B363,FeedTables!$C$17:$T$17,FeedTables!$C$31:$T$31,,-1)","v":{"$error":"#N/A"}},{"$f":"_xlfn.XLOOKUP(Q363,FeedPrice[Feed],FeedPrice[Price per kg],\"Unknown\",0)*O363","v":{"$error":"#N/A"}},{"$error":"#N/A"},{"$f":"_xlfn.XLOOKUP(O363,LabourFromFeed[Feed Quantity (kg)],LabourFromFeed[No. Labour],\"Out of range\",-1)","v":{"$error":"#N/A"}},{"$f":"T363*OperatingCosts!$C$9","v":{"$error":"#N/A"}},{"$error":"#N/A"}]
[362,{"$f":"IF(A364<='S4-PartialHarvest'!$C$9, B363*EXP((LN((E363/100)+1))*1),)","v":0},{"$f":"_xlfn.XLOOKUP($B364,FeedTables!$C$42:$T$42,FeedTables!$C$44:$T$44,,-1)","v":{"$error":"#N/A"}},{"$f":"_xlfn.XLOOKUP($B364,FeedTables!$C$42:$T$42,FeedTables!$C$45:$T$45,,-1)","v":{"$error":"#N/A"}},{"$f":"_xlfn.XLOOKUP($B364,FeedTables!$C$42:$T$42,FeedTables!$C$46:$T$46,,-1)*_xlfn.XLOOKUP(N363,DensityMultiplier[Biomass kg/m3],DensityMultiplier[Multiplier],,-1)","v":{"$error":"#N/A"}},{"$f":"IF(A364>'S4-PartialHarvest'!$C$9,0,IF(A364='S4-PartialHarvest'!$C$7,(F363-G363-H363)*(1-'S4-PartialHarvest'!$C$8),(F363-G363-H363)))","v":0},{"$f":"IF(A364<='S4-PartialHarvest'!$C$7,('Growth-Model-4'!G363*EXP($Z$7)),IF(A364<'S4-PartialHarvest'!$C$9,('Growth-Model-4'!G363*EXP($AA$7)),0))+IF(A364='S4-PartialHarvest'!$C$7,'Growth-Model-4'!$AA$6,0)","v":0},{"$f":"IF(A364<='S4-PartialHarvest'!$C$9,$AD$6*EXP($AD$7*('S4-PartialHarvest'!C$9-'Growth-Model-4'!A364)),0)","v":0},258.11742751166497,6.3732698151028389E-2,0,34.187862812341081,0,{"$f":"M364/'S4-PartialHarvest'!$C$19","v":0},{"$error":"#N/A"},{"$error":"#N/A"},{"$f":"_xlfn.XLOOKUP(B364,FeedTables!$C$17:$T$17,FeedTables!$C$31:$T$31,,-1)","v":{"$error":"#N/A"}},{"$f":"_xlfn.XLOOKUP(Q364,FeedPrice[Feed],FeedPrice[Price per kg],\"Unknown\",0)*O364","v":{"$error":"#N/A"}},{"$error":"#N/A"},{"$f":"_xlfn.XLOOKUP(O364,LabourFromFeed[Feed Quantity (kg)],LabourFromFeed[No. Labour],\"Out of range\",-1)","v":{"$error":"#N/A"}},{"$f":"T364*OperatingCosts!$C$9","v":{"$error":"#N/A"}},{"$error":"#N/A"}]
[363,{"$f":"IF(A365<='S4-PartialHarvest'!$C$9, B364*EXP((LN((E364/100)+1))*1),)","v":0},{"$f":"_xlfn.XLOOKUP($B365,FeedTables!$C$42:$T$42,FeedTables!$C$44:$T$44,,-1)","v":{"$error":"#N/A"}},{"$f":"_xlfn.XLOOKUP($B365,FeedTables!$C$42:$T$42,FeedTables!$C$45:$T$45,,-1)","v":{"$error":"#N/A"}},{"$f":"_xlfn.XLOOKUP($B365,FeedTables!$C$42:$T$42,FeedTables!$C$46:$T$46,,-1)*_xlfn.XLOOKUP(N364,DensityMultiplier[Biomass kg/m3],DensityMultiplier[Multiplier],,-1)","v":{"$error":"#N/A"}},{"$f":"IF(A365>'S4-PartialHarvest'!$C$9,0,IF(A365='S4-PartialHarvest'!$C$7,(F364-G364-H364)*(1-'S4-PartialHarvest'!$C$8),(F364-G364-H364)))","v":0},{"$f":"IF(A365<='S4-PartialHarvest'!$C$7,('Growth-Model-4'!G364*EXP($Z$7)),IF(A365<'S4-PartialHarvest'!$C$9,('Growth-Model-4'!G364*EXP($AA$7)),0))+IF(A365='S4-PartialHarvest'!$C$7,'Growth-Model-4'!$AA$6,0)","v":0},{"$f":"IF(A365<='S4-PartialHarvest'!$C$9,$AD$6*EXP($AD$7*('S4-PartialHarvest'!C$9-'Growth-Model-4'!A365)),0)","v":0},258.11742751166497,6.3732698151028389E-2,0,34.187862812341081,0,{"$f":"M365/'S4-PartialHarvest'!$C$19","v":0},{"$error":"#N/A"},{"$error":"#N/A"},{"$f":"_xlfn.XLOOKUP(B365,FeedTables!$C$17:$T$17,FeedTables!$C$31:$T$31,,-1)","v":{"$error":"#N/A"}},{"$f":"_xlfn.XLOOKUP(Q365,FeedPrice[Feed],FeedPrice[Price per kg],\"Unknown\",0)*O365","v":{"$error":"#N/A"}},{"$error":"#N/A"},{"$f":"_xlfn.XLOOKUP(O365,LabourFromFeed[Feed Quantity (kg)],LabourFromFeed[No. Labour],\"Out of range\",-1)","v":{"$error":"#N/A"}},{"$f":"T365*OperatingCosts!$C$9","v":{"$error":"#N/A"}},{"$error":"#N/A"}]
[364,{"$f":"IF(A366<='S4-PartialHarvest'!$C$9, B365*EXP((LN((E365/100)+1))*1),)","v":0},{"$f":"_xlfn.XLOOKUP($B366,FeedTables!$C$42:$T$42,FeedTables!$C$44:$T$44,,-1)","v":{"$error":"#N/A"}},{"$f":"_xlfn.XLOOKUP($B366,FeedTables!$C$42:$T$42,FeedTables!$C$45:$T$45,,-1)","v":{"$error":"#N/A"}},{"$f":"_xlfn.XLOOKUP($B366,FeedTables!$C$42:$T$42,FeedTables!$C$46:$T$46,,-1)*_xlfn.XLOOKUP(N365,DensityMultiplier[Biomass kg/m3],DensityMultiplier[Multiplier],,-1)","v":{"$error":"#N/A"}},{"$f":"IF(A366>'S4-PartialHarvest'!$C$9,0,IF(A366='S4-PartialHarvest'!$C$7,(F365-G365-H365)*(1-'S4-PartialHarvest'!$C$8),(F365-G365-H365)))","v":0},{"$f":"IF(A366<='S4-PartialHarvest'!$C$7,('Growth-Model-4'!G365*EXP($Z$7)),IF(A366<'S4-PartialHarvest'!$C$9,('Growth-Model-4'!G365*EXP($AA$7)),0))+IF(A366='S4-PartialHarvest'!$C$7,'Growth-Model-4'!$AA$6,0)","v":0},{"$f":"IF(A366<='S4-PartialHarvest'!$C$9,$AD$6*EXP($AD$7*('S4-PartialHarvest'!C$9-'Growth-Model-4'!A366)),0)","v":0},258.11742751166497,6.3732698151028389E-2,0,34.187862812341081,0,{"$f":"M366/'S4-PartialHarvest'!$C$19","v":0},{"$error":"#N/A"},{"$error":"#N/A"},{"$f":"_xlfn.XLOOKUP(B366,FeedTables!$C$17:$T$17,FeedTables!$C$31:$T$31,,-1)","v":{"$error":"#N/A"}},{"$f":"_xlfn.XLOOKUP(Q366,FeedPrice[Feed],FeedPrice[Price per kg],\"Unknown\",0)*O366","v":{"$error":"#N/A"}},{"$error":"#N/A"},{"$f":"_xlfn.XLOOKUP(O366,LabourFromFeed[Feed Quantity (kg)],LabourFromFeed[No. Labour],\"Out of range\",-1)","v":{"$error":"#N/A"}},{"$f":"T366*OperatingCosts!$C$9","v":{"$error":"#N/A"}},{"$error":"#N/A"}]
[null,null,null,null,null,null,null,null,null,null,null,null,null,null,null,null,null,null,{"$f":"_xlfn.CONCAT(\"Feed Cost \",\" (\",'0-StartHere'!$C$49,\")\")","v":"Feed Cost  (KES)"}]
[]
[]
[]
[]
[]
[]
[null,"Harvest summary",null,"Before weight loss"]
[null,"FIRST HARVEST",null,null,null,null,"Range",null,"Label","Wt class",{"$f":"_xlfn.CONCAT('0-StartHere'!$C$49,\"/kg\")","v":"KES/kg"},"Prob.","Number","Kg","% No.","% Biomass","Cum. No.","Cum. Biomass",{"$f":"_xlfn.CONCAT(\"Income\",\" (\",'0-StartHere'!$C$49,\")\")","v":"Income (KES)"}]
[null,"Fish Number",{"$f":"'S4-PartialHarvest'!$C$25","v":1937.7746597244104},null,null,null,{"$f":"SalesPrices!A2","v":"0-99"},null,{"$f":"SalesPrices!B2","v":"0+"},{"$f":"SalesPrices!C2","v":100},{"$f":"_xlfn.XLOOKUP(J376,SalesPrice[Wt class],SalesPrice[Price per kg],\"No Data\",0)","v":219},{"$f":"_xlfn.NORM.DIST(J376,$C$377,$C$378*$C$377,FALSE)/15*1500","v":4.305313376007467E-2},{"$f":"$C$376*L376","v":83.427271621998216},{"$f":"M376*(J376/1000)","v":8.3427271621998216},{"$f":"M376/$M$391","v":4.3139699056006696E-2},{"$f":"N376/$N$391","v":1.8647937232401983E-2},{"$f":"O376","v":4.3139699056006696E-2},{"$f":"P376","v":1.8647937232401983E-2},{"$f":"N376*K376","v":1827.0572485217608}]
[null,"Avg. wt. (g)",{"$f":"'S4-PartialHarvest'!$C$23*(1-'0-StartHere'!C34)","v":232.08148085445791},{"$f":"'S4-PartialHarvest'!$C$23","v":232.08148085445791},null,null,{"$f":"SalesPrices!A3","v":"100-199"},null,{"$f":"SalesPrices!B3","v":"100+"},{"$f":"SalesPrices!C3","v":200},{"$f":"_xlfn.XLOOKUP(J377,SalesPrice[Wt class],SalesPrice[Price per kg],\"No Data\",0)","v":271},0.6067652002766567,{"$f":"$C$376*L377","v":1175.7742294987122},235.15484589974244,0.60798519994998856,0.52562582006784386,{"$f":"O377+Q376","v":0.65112489900599524},{"$f":"P377+R376","v":0.54427375730024585},63726.963238830198]
[null,"cv",{"$f":"'0-StartHere'!C95","v":0.24},null,null,null,{"$f":"SalesPrices!A4","v":"200-299"},null,{"$f":"SalesPrices!B4","v":"200+"},{"$f":"SalesPrices!C4","v":300},{"$f":"_xlfn.XLOOKUP(J378,SalesPrice[Wt class],SalesPrice[Price per kg],\"No Data\",0)","v":344},0.34055608812434135,659.92095778222188,197.97628733466655,0.34124083127716792,0.44252308722839373,{"$f":"O378+Q377","v":0.99236573028316322},0.98679684452863958,68103.842843125298]
[null,"SD",{"$f":"C377*C378","v":55.699555405069894},null,null,null,{"$f":"SalesPrices!A5","v":"300-399"},null,{"$f":"SalesPrices!B5","v":"300+"},{"$f":"SalesPrices!C5","v":400},{"$f":"_xlfn.XLOOKUP(J379,SalesPrice[Wt class],SalesPrice[Price per kg],\"No Data\",0)","v":358},7.6121742262030938E-3,14.750678320943628,5.9002713283774515,7.6274797349321355E-3,1.3188479887518157E-2,0.99999321001809538,0.99998532441615773,2112.2971355591276]
[null,"Biomass (kg)",{"$f":"(C376*C377)/1000","v":449.72161259108447},null,null,null,{"$f":"SalesPrices!A6","v":"400-499"},null,{"$f":"SalesPrices!B6","v":"400+"},{"$f":"SalesPrices!C6","v":500},{"$f":"_xlfn.XLOOKUP(J380,SalesPrice[Wt class],SalesPrice[Price per kg],\"No Data\",0)","v":365},6.7761167238026865E-6,1.3130587278719637E-2,6.5652936393598184E-3,6.7897412035614601E-6,1.4674959556844427E-5,0.99999999975929899,0.9999999993757146,2.3963321783663338]
[null,null,null,null,null,null,{"$f":"SalesPrices!A7","v":"500-599"},null,{"$f":"SalesPrices!B7","v":"500+"},{"$f":"SalesPrices!C7","v":600},{"$f":"_xlfn.XLOOKUP(J381,SalesPrice[Wt class],SalesPrice[Price per kg],\"No Data\",0)","v":363},2.4021776642669563E-10,4.6548790059724804E-7,2.7929274035834882E-7,2.4070076313849693E-10,6.242842886275953E-10,0.99999999999999978,0.99999999999999889,1.0138326475008062E-4]
[null,"Weight loss adjusment ",null,null,null,null,{"$f":"SalesPrices!A8","v":"600-699"},null,{"$f":"SalesPrices!B8","v":"600+"},{"$f":"SalesPrices!C8","v":700},{"$f":"_xlfn.XLOOKUP(J382,SalesPrice[Wt class],SalesPrice[Price per kg],\"No Data\",0)","v":378},3.3914190713585458E-16,6.5718059369846819E-13,4.6002641558892774E-13,3.3982380684884115E-16,1.0282661240580701E-15,1.0000000000000002,0.99999999999999989,1.7388998509261467E-10]
[null,"% of harvest wt.",{"$f":"1-'0-StartHere'!$C$34","v":1},null,null,null,{"$f":"SalesPrices!A9","v":"700-799"},null,{"$f":"SalesPrices!B9","v":"700+"},{"$f":"SalesPrices!C9","v":800},{"$f":"_xlfn.XLOOKUP(J383,SalesPrice[Wt class],SalesPrice[Price per kg],\"No Data\",0)","v":388},1.9068207928139788E-23,3.6949890129505385E-20,2.9559912103604309E-20,1.9106547647412991E-23,6.6073284525102858E-23,1.0000000000000002,0.99999999999999989,1.1469245896198472E-17]
[null,null,null,null,null,null,{"$f":"SalesPrices!A10","v":"800-899"},null,{"$f":"SalesPrices!B10","v":"800+"},{"$f":"SalesPrices!C10","v":900},{"$f":"_xlfn.XLOOKUP(J384,SalesPrice[Wt class],SalesPrice[Price per kg],\"No Data\",0)","v":405},4.2696314363191918E-32,8.2735836036620679E-29,7.4462252432958613E-29,4.2782162215955754E-32,1.6644046755413066E-31,1.0000000000000002,0.99999999999999989,3.015721223534824E-26]
[null,null,null,null,null,null,{"$f":"SalesPrices!A11","v":"900-999"},null,{"$f":"SalesPrices!B11","v":"900+"},{"$f":"SalesPrices!C11","v":1000},{"$f":"_xlfn.XLOOKUP(J385,SalesPrice[Wt class],SalesPrice[Price per kg],\"No Data\",0)","v":405},3.8073515869344664E-42,7.3777894258231292E-39,7.3777894258231292E-39,3.8150068837283521E-42,1.649107677283208E-41,1.0000000000000002,0.99999999999999989,2.9880047174583673E-36]
[null,null,null,null,null,null,{"$f":"SalesPrices!A12","v":"1000-1099"},null,{"$f":"SalesPrices!B12","v":"1000+"},{"$f":"SalesPrices!C12","v":1100},{"$f":"_xlfn.XLOOKUP(J386,SalesPrice[Wt class],SalesPrice[Price per kg],\"No Data\",0)","v":405},1.3520964313107867E-53,2.6200582020978492E-50,2.8820640223076344E-50,1.3548150400967886E-53,6.4420839783984156E-53,1.0000000000000002,0.99999999999999989,1.1672359290345919E-47]
[null,null,null,null,null,null,{"$f":"SalesPrices!A13","v":"1100-1199"},null,{"$f":"SalesPrices!B13","v":"1100+"},{"$f":"SalesPrices!C13","v":1200},{"$f":"_xlfn.XLOOKUP(J387,SalesPrice[Wt class],SalesPrice[Price per kg],\"No Data\",0)","v":405},1.912248976896001E-66,3.7055076105130002E-63,4.4466091326156003E-63,1.9160938630662667E-66,9.9392064956582684E-66,1.0000000000000002,0.99999999999999989,1.8008766987093182E-60]
[null,null,null,null,null,null,{"$f":"SalesPrices!A14","v":"1200-1299"},null,{"$f":"SalesPrices!B14","v":"1200+"},{"$f":"SalesPrices!C14","v":1300},{"$f":"_xlfn.XLOOKUP(J388,SalesPrice[Wt class],SalesPrice[Price per kg],\"No Data\",0)","v":405},1.07704362721151E-80,2.0870678482281285E-77,2.713188202696567E-77,1.0792091978025115E-80,6.0646072105560826E-80,1.0000000000000002,0.99999999999999989,1.0988412220921096E-74]
[null,null,null,null,null,null,{"$f":"SalesPrices!A15","v":"1300-1399"},null,{"$f":"SalesPrices!B15","v":"1300+"},{"$f":"SalesPrices!C15","v":1400},{"$f":"_xlfn.XLOOKUP(J389,SalesPrice[Wt class],SalesPrice[Price per kg],\"No Data\",0)","v":405},2.4158737834358966E-96,4.6814189986346181E-93,6.5539865980884648E-93,2.4207312888189655E-96,1.4649685687543303E-95,1.0000000000000002,0.99999999999999989,2.6543645722258281E-90]
[null,null,null,null,null,null,{"$f":"SalesPrices!A16","v":"1400-1499"},null,{"$f":"SalesPrices!B16","v":"1400+"},{"$f":"SalesPrices!C16","v":1500},{"$f":"_xlfn.XLOOKUP(J390,SalesPrice[Wt class],SalesPrice[Price per kg],\"No Data\",0)","v":405},2.1580786784317004E-113,4.1818701767564937E-110,6.2728052651347403E-110,2.1624178450179033E-113,1.4021179954837359E-112,1.0000000000000002,0.99999999999999989,2.5404861323795697E-107]
[null,null,null,null,null,null,null,null,null,null,null,{"$f":"SUM(L376:L390)","v":0.99799337274421773},{"$f":"SUM(M376:M390)","v":1933.8862682766432},{"$f":"SUM(N376:N390)","v":447.38069729791886},{"$f":"SUM(O376:O390)","v":1.0000000000000002},{"$f":"SUM(P376:P390)","v":0.99999999999999989},null,null,{"$f":"SUM(S376:S390)","v":135772.55689959816}]
[]
[]
[]
[]
[]
[]
[]
[null,null,null,"Before weight loss"]
[null,"SECOND HARVEST",null,null,null,null,"Range",null,"Label","Wt class",{"$f":"_xlfn.CONCAT('0-StartHere'!$C$49,\"/kg\")","v":"KES/kg"},"Prob.","Number","Kg","% No.","% Biomass","Cum. No.","Cum. Biomass",{"$f":"_xlfn.CONCAT(\"Income by size grade\",\" (\",'0-StartHere'!$C$49,\")\")","v":"Income by size grade (KES)"}]
[null,"Fish Number",{"$f":"'S4-PartialHarvest'!$C$45","v":1858.1582936500549},null,null,null,{"$f":"SalesPrices!A2","v":"0-99"},null,{"$f":"SalesPrices!B2","v":"0+"},{"$f":"SalesPrices!C2","v":100},{"$f":"_xlfn.XLOOKUP(J401,SalesPrice[Wt class],SalesPrice[Price per kg],\"No Data\",0)","v":219},{"$f":"_xlfn.NORM.DIST(J401,$C$402,$C$403*$C$402,FALSE)/15*1500","v":1.3782750397465812E-3},{"$f":"$C$401*L401","v":2.561053196035969},{"$f":"M401*(J401/1000)","v":0.25610531960359689},{"$f":"M401/$M$416","v":1.3783559460094112E-3},{"$f":"N401/$N$416","v":2.8077604834464892E-4},{"$f":"O401","v":1.3783559460094112E-3},{"$f":"P401","v":2.8077604834464892E-4},{"$f":"N401*K401","v":56.087064993187717}]
[null,"Avg. wt. (g)",{"$f":"'S4-PartialHarvest'!$C$41*(1-'0-StartHere'!C34)","v":490.88044135121061},{"$f":"'S4-PartialHarvest'!$C$41","v":490.88044135121061},null,null,{"$f":"SalesPrices!A3","v":"100-199"},null,{"$f":"SalesPrices!B3","v":"100+"},{"$f":"SalesPrices!C3","v":200},{"$f":"_xlfn.XLOOKUP(J402,SalesPrice[Wt class],SalesPrice[Price per kg],\"No Data\",0)","v":271},1.6068028760195221E-2,{"$f":"$C$401*L402","v":29.856940903364361},5.9713881806728724,{"$f":"M402/$M$416","v":1.606897197118036E-2},{"$f":"N402/$N$416","v":6.5466144127594448E-3},{"$f":"O402+Q401","v":1.7447327917189771E-2},{"$f":"P402+R401","v":6.8273904611040933E-3},1618.2461969623484]
[null,"cv",{"$f":"'0-StartHere'!C95","v":0.24},null,null,null,{"$f":"SalesPrices!A4","v":"200-299"},null,{"$f":"SalesPrices!B4","v":"200+"},{"$f":"SalesPrices!C4","v":300},{"$f":"_xlfn.XLOOKUP(J403,SalesPrice[Wt class],SalesPrice[Price per kg],\"No Data\",0)","v":344},9.1135135902276537E-2,169.34350861974002,50.803052585922003,9.1140485635127902E-2,5.5696931133640694E-2,{"$f":"O403+Q402","v":0.10858781355231767},{"$f":"P403+R402","v":6.2524321594744789E-2},17476.250089557168]
[null,"SD",{"$f":"C402*C403","v":117.81130592429054},null,null,null,{"$f":"SalesPrices!A5","v":"300-399"},null,{"$f":"SalesPrices!B5","v":"300+"},{"$f":"SalesPrices!C5","v":400},{"$f":"_xlfn.XLOOKUP(J404,SalesPrice[Wt class],SalesPrice[Price per kg],\"No Data\",0)","v":358},0.25148125943368971,467.29198791427166,186.91679516570866,0.25149602166059348,0.20492256543950665,0.36008383521291115,0.26744688703425146,66916.212669323708]
[null,"Biomass (kg)",{"$f":"(C401*C402)/1000","v":912.13356328735142},null,null,null,{"$f":"SalesPrices!A6","v":"400-499"},null,{"$f":"SalesPrices!B6","v":"400+"},{"$f":"SalesPrices!C6","v":500},{"$f":"_xlfn.XLOOKUP(J405,SalesPrice[Wt class],SalesPrice[Price per kg],\"No Data\",0)","v":365},0.33761516322619944,627.34241561077954,313.67120780538977,0.3376349816081215,0.34388728177692096,0.69771881682103265,0.61133416881117242,114489.99084896727]
[null,null,null,null,null,null,{"$f":"SalesPrices!A7","v":"500-599"},null,{"$f":"SalesPrices!B7","v":"500+"},{"$f":"SalesPrices!C7","v":600},{"$f":"_xlfn.XLOOKUP(J406,SalesPrice[Wt class],SalesPrice[Price per kg],\"No Data\",0)","v":363},0.22051330420022183,409.74862505981969,245.84917503589179,0.22052624857404607,0.26953192523377839,0.91824506539507866,0.88086609404495086,89243.250538028718]
[null,"Weight loss adjusment ",null,null,null,null,{"$f":"SalesPrices!A8","v":"600-699"},null,{"$f":"SalesPrices!B8","v":"600+"},{"$f":"SalesPrices!C8","v":700},{"$f":"_xlfn.XLOOKUP(J407,SalesPrice[Wt class],SalesPrice[Price per kg],\"No Data\",0)","v":378},7.0071947166242626E-2,130.20476977916221,91.143338845413538,7.007606046671673E-2,9.992321344032376E-2,0.98832112586179544,0.9807893074852746,34452.182083566317]
[null,"% of harvest wt.",{"$f":"1-'0-StartHere'!$C$34","v":1},null,null,null,{"$f":"SalesPrices!A9","v":"700-799"},null,{"$f":"SalesPrices!B9","v":"700+"},{"$f":"SalesPrices!C9","v":800},{"$f":"_xlfn.XLOOKUP(J408,SalesPrice[Wt class],SalesPrice[Price per kg],\"No Data\",0)","v":388},1.0833034117466039E-2,20.129492190763525,16.10359375261082,1.0833670028499961E-2,1.7654859434408011E-2,0.99915479589029543,0.99844416691968263,6248.194376012998]
[null,null,null,null,null,null,{"$f":"SalesPrices!A10","v":"800-899"},null,{"$f":"SalesPrices!B10","v":"800+"},{"$f":"SalesPrices!C10","v":900},{"$f":"_xlfn.XLOOKUP(J409,SalesPrice[Wt class],SalesPrice[Price per kg],\"No Data\",0)","v":405},8.1480291102545548E-4,1.5140327868121579,1.3626295081309421,8.1485074085373567E-4,1.4938921582847322E-3,0.99996964663114918,0.9999380590779674,551.86495079303154]
[null,null,null,null,null,null,{"$f":"SalesPrices!A11","v":"900-999"},null,{"$f":"SalesPrices!B11","v":"900+"},{"$f":"SalesPrices!C11","v":1000},{"$f":"_xlfn.XLOOKUP(J410,SalesPrice[Wt class],SalesPrice[Price per kg],\"No Data\",0)","v":405},2.9816150295296588E-5,5.5403126955921887E-2,5.5403126955921887E-2,2.9817900536157664E-5,6.0740132523206552E-5,0.99999946453168531,0.99999879921049062,22.438266417148363]
[null,null,null,null,null,null,{"$f":"SalesPrices!A12","v":"1000-1099"},null,{"$f":"SalesPrices!B12","v":"1000+"},{"$f":"SalesPrices!C12","v":1100},{"$f":"_xlfn.XLOOKUP(J411,SalesPrice[Wt class],SalesPrice[Price per kg],\"No Data\",0)","v":405},5.3081978516292345E-7,9.8634718623402651E-4,1.0849819048574293E-3,5.3085094486894379E-7,1.1894986493948652E-6,0.99999999538263018,0.99999998870913998,0.43941767146725885]
[null,null,null,null,null,null,{"$f":"SalesPrices!A13","v":"1100-1199"},null,{"$f":"SalesPrices!B13","v":"1100+"},{"$f":"SalesPrices!C13","v":1200},{"$f":"_xlfn.XLOOKUP(J412,SalesPrice[Wt class],SalesPrice[Price per kg],\"No Data\",0)","v":405},4.5976845509850286E-9,8.5432256799995593E-6,1.0251870815999472E-5,4.5979544401319433E-9,1.1239437666939175E-8,0.99999999998058464,0.99999999994857769,4.1520076804797863E-3]
[null,null,null,null,null,null,{"$f":"SalesPrices!A14","v":"1200-1299"},null,{"$f":"SalesPrices!B14","v":"1200+"},{"$f":"SalesPrices!C14","v":1300},{"$f":"_xlfn.XLOOKUP(J413,SalesPrice[Wt class],SalesPrice[Price per kg],\"No Data\",0)","v":405},1.9374378315009733E-11,3.6000661750349113E-8,4.6800860275453849E-8,1.9375515612355269E-11,5.1309206023565292E-11,0.99999999999996014,0.99999999999988687,1.8954348411558808E-5]
[null,null,null,null,null,null,{"$f":"SalesPrices!A15","v":"1300-1399"},null,{"$f":"SalesPrices!B15","v":"1300+"},{"$f":"SalesPrices!C15","v":1400},{"$f":"_xlfn.XLOOKUP(J414,SalesPrice[Wt class],SalesPrice[Price per kg],\"No Data\",0)","v":405},3.9720336280916855E-14,7.3806672286954828E-11,1.0332934120173676E-10,3.9722667908403504E-14,1.132830983190249E-13,0.99999999999999989,1.0000000000000002,4.1848383186703384E-8]
[null,null,null,null,null,null,{"$f":"SalesPrices!A16","v":"1400-1499"},null,{"$f":"SalesPrices!B16","v":"1400+"},{"$f":"SalesPrices!C16","v":1500},{"$f":"_xlfn.XLOOKUP(J415,SalesPrice[Wt class],SalesPrice[Price per kg],\"No Data\",0)","v":405},3.9618186635200303E-17,7.3616862075573206E-14,1.1042529311335981E-13,3.9620512266390242E-17,1.2106260614054537E-16,0.99999999999999989,1.0000000000000004,4.4722243710910727E-11]
[null,null,null,null,null,null,null,null,null,null,null,{"$f":"SUM(L401:L415)","v":0.99994130234424261},{"$f":"SUM(M401:M415)","v":1858.0492241141917},{"$f":"SUM(N401:N415)","v":912.1337846069797},{"$f":"SUM(O401:O415)","v":0.99999999999999989},{"$f":"SUM(P401:P415)","v":1.0000000000000004},null,null,{"$f":"SUM(S401:S415)","v":331075.1606732973}]
[]
[]
[]
[null,"COMBINED"]
[]
[null,null,null,null,null,null,"Range",null,"Label","Wt class",{"$f":"_xlfn.CONCAT('0-StartHere'!$C$49,\"/kg\")","v":"KES/kg"},"Number","Kg","% No.","% Biomass","Cum. No.","Cum. Biomass",{"$f":"_xlfn.CONCAT(\"Income by size grade\",\" (\",'0-StartHere'!$C$49,\")\")","v":"Income by size grade (KES)"}]
[null,null,null,null,null,null,{"$f":"SalesPrices!A2","v":"0-99"},null,{"$f":"SalesPrices!B2","v":"0+"},{"$f":"SalesPrices!C2","v":100},{"$f":"_xlfn.XLOOKUP(J423,SalesPrice[Wt class],SalesPrice[Price per kg],\"No Data\",0)","v":219},{"$f":"M376+M401","v":85.988324818034187},8.5988324818034183,{"$f":"L423/$L$438","v":2.2676631759845186E-2},{"$f":"M423/$M$438","v":6.3249289332726125E-3},{"$f":"N423","v":2.2676631759845186E-2},{"$f":"O423","v":6.3249289332726125E-3},{"$f":"M423*K423","v":1883.1443135149486}]
[null,null,null,null,null,null,{"$f":"SalesPrices!A3","v":"100-199"},null,{"$f":"SalesPrices!B3","v":"100+"},{"$f":"SalesPrices!C3","v":200},{"$f":"_xlfn.XLOOKUP(J424,SalesPrice[Wt class],SalesPrice[Price per kg],\"No Data\",0)","v":271},1205.6311704020766,241.12623408041532,0.31794611823470664,0.17736201952226258,{"$f":"N424+P423","v":0.34062274999455183},{"$f":"O424+Q423","v":0.18368694845553518},65345.209435792553]
[null,null,null,null,null,null,{"$f":"SalesPrices!A4","v":"200-299"},null,{"$f":"SalesPrices!B4","v":"200+"},{"$f":"SalesPrices!C4","v":300},{"$f":"_xlfn.XLOOKUP(J425,SalesPrice[Wt class],SalesPrice[Price per kg],\"No Data\",0)","v":344},829.26446640196195,248.77933992058854,0.21869160698171755,0.18299131287811563,{"$f":"N425+P424","v":0.55931435697626941},{"$f":"O425+Q424","v":0.36667826133365078},85580.092932682455]
[null,null,null,null,null,null,{"$f":"SalesPrices!A5","v":"300-399"},null,{"$f":"SalesPrices!B5","v":"300+"},{"$f":"SalesPrices!C5","v":400},{"$f":"_xlfn.XLOOKUP(J426,SalesPrice[Wt class],SalesPrice[Price per kg],\"No Data\",0)","v":358},482.04266623521528,192.81706649408611,0.12712311884063329,0.14182788713211675,0.68643747581690273,0.50850614846576758,69028.509804882822]
[null,null,null,null,null,null,{"$f":"SalesPrices!A6","v":"400-499"},null,{"$f":"SalesPrices!B6","v":"400+"},{"$f":"SalesPrices!C6","v":500},{"$f":"_xlfn.XLOOKUP(J427,SalesPrice[Wt class],SalesPrice[Price per kg],\"No Data\",0)","v":365},627.35554619805828,313.67777309902914,0.1654446779110442,0.23072779089452297,0.85188215372794696,0.73923393936029058,114492.38718114563]
[null,null,null,null,null,null,{"$f":"SalesPrices!A7","v":"500-599"},null,{"$f":"SalesPrices!B7","v":"500+"},{"$f":"SalesPrices!C7","v":600},{"$f":"_xlfn.XLOOKUP(J428,SalesPrice[Wt class],SalesPrice[Price per kg],\"No Data\",0)","v":363},409.7486255253076,245.84917531518454,0.10805791035937667,0.18083601064014435,0.95994006408732369,0.9200699500004349,89243.250639411985]
[null,null,null,null,null,null,{"$f":"SalesPrices!A8","v":"600-699"},null,{"$f":"SalesPrices!B8","v":"600+"},{"$f":"SalesPrices!C8","v":700},{"$f":"_xlfn.XLOOKUP(J429,SalesPrice[Wt class],SalesPrice[Price per kg],\"No Data\",0)","v":378},130.20476977916286,91.143338845413993,3.4337285019864119E-2,6.7041094492577613E-2,0.99427734910718779,0.98711104449301246,34452.182083566491]
[null,null,null,null,null,null,{"$f":"SalesPrices!A9","v":"700-799"},null,{"$f":"SalesPrices!B9","v":"700+"},{"$f":"SalesPrices!C9","v":800},{"$f":"_xlfn.XLOOKUP(J430,SalesPrice[Wt class],SalesPrice[Price per kg],\"No Data\",0)","v":388},20.129492190763525,16.10359375261082,5.3085006934207582E-3,1.1845106445682796E-2,0.99958584980060849,0.99895615093869528,6248.194376012998]
[null,null,null,null,null,null,{"$f":"SalesPrices!A10","v":"800-899"},null,{"$f":"SalesPrices!B10","v":"800+"},{"$f":"SalesPrices!C10","v":900},{"$f":"_xlfn.XLOOKUP(J431,SalesPrice[Wt class],SalesPrice[Price per kg],\"No Data\",0)","v":405},1.5140327868121579,1.3626295081309421,3.9927704198827307E-4,1.0022912784435213E-3,0.99998512684259677,0.99995844221713881,551.86495079303154]
[null,null,null,null,null,null,{"$f":"SalesPrices!A11","v":"900-999"},null,{"$f":"SalesPrices!B11","v":"900+"},{"$f":"SalesPrices!C11","v":1000},{"$f":"_xlfn.XLOOKUP(J432,SalesPrice[Wt class],SalesPrice[Price per kg],\"No Data\",0)","v":405},5.5403126955921887E-2,5.5403126955921887E-2,1.4610777811779161E-5,4.0752141807487918E-5,0.9999997376204085,0.99999919435894635,22.438266417148363]
[null,null,null,null,null,null,{"$f":"SalesPrices!A12","v":"1000-1099"},null,{"$f":"SalesPrices!B12","v":"1000+"},{"$f":"SalesPrices!C12","v":1100},{"$f":"_xlfn.XLOOKUP(J433,SalesPrice[Wt class],SalesPrice[Price per kg],\"No Data\",0)","v":405},9.8634718623402651E-4,1.0849819048574293E-3,2.6011707957936007E-7,7.980657207396534E-7,0.99999999773748804,0.99999999242466708,0.43941767146725885]
[null,null,null,null,null,null,{"$f":"SalesPrices!A13","v":"1100-1199"},null,{"$f":"SalesPrices!B13","v":"1100+"},{"$f":"SalesPrices!C13","v":1200},{"$f":"_xlfn.XLOOKUP(J434,SalesPrice[Wt class],SalesPrice[Price per kg],\"No Data\",0)","v":405},8.5432256799995593E-6,1.0251870815999472E-5,2.2529986855375047E-9,7.5408323724767917E-9,0.99999999999048672,0.99999999996549949,4.1520076804797863E-3]
[null,null,null,null,null,null,{"$f":"SalesPrices!A14","v":"1200-1299"},null,{"$f":"SalesPrices!B14","v":"1200+"},{"$f":"SalesPrices!C14","v":1300},{"$f":"_xlfn.XLOOKUP(J435,SalesPrice[Wt class],SalesPrice[Price per kg],\"No Data\",0)","v":405},3.6000661750349113E-8,4.6800860275453849E-8,9.4940069056002103E-12,3.4424686826342827E-11,0.99999999999998068,0.99999999999992417,1.8954348411558808E-5]
[null,null,null,null,null,null,{"$f":"SalesPrices!A15","v":"1300-1399"},null,{"$f":"SalesPrices!B15","v":"1300+"},{"$f":"SalesPrices!C15","v":1400},{"$f":"_xlfn.XLOOKUP(J436,SalesPrice[Wt class],SalesPrice[Price per kg],\"No Data\",0)","v":405},7.3806672286954828E-11,1.0332934120173676E-10,1.9464115999615636E-14,7.6004590298262753E-14,1.0000000000000002,1.0000000000000002,4.1848383186703384E-8]
[null,null,null,null,null,null,{"$f":"SalesPrices!A16","v":"1400-1499"},null,{"$f":"SalesPrices!B16","v":"1400+"},{"$f":"SalesPrices!C16","v":1500},{"$f":"_xlfn.XLOOKUP(J437,SalesPrice[Wt class],SalesPrice[Price per kg],\"No Data\",0)","v":405},7.3616862075573206E-14,1.1042529311335981E-13,1.9414059712592159E-17,8.1224065343265944E-17,1.0000000000000002,1.0000000000000002,4.4722243710910727E-11]
[null,null,null,null,null,null,null,null,null,null,null,{"$f":"SUM(L423:L437)","v":3791.935492390834},{"$f":"SUM(M423:M437)","v":1359.5144819048985},{"$f":"SUM(N423:N437)","v":1.0000000000000002},1.0000000000000002,null,null,{"$f":"SUM(R423:R437)","v":466847.7175728954}]

{"sheet":"FeedTables","index":11,"n_rows":46,"n_cols":48,"rows_kept":46,"cut":false,"hidden":false,"merged":[]}
[null,null,null,null,null,null,null,null,null,null,null,null,null,null,null,null,null,null,null,null,null,null,null,null,null,null,null,null,null,null,"FCR Options",null,"SFR Options"]
[null,"Data for feed and growth calculations",null,null,null,null,null,null,null,null,null,null,null,null,null,null,null,null,null,null,null,null,null,null,null,null,null,null,null,null,"Formula",null,"Temp."]
[null,null,null,null,null,null,null,null,null,null,null,null,null,null,null,null,null,null,null,null,null,null,null,null,null,null,null,null,null,null,"Table",null,"Custom"]
[null,"The amount of feed to be fed each day (Specific Feed Rate - SFR) can be calculated from a growth equation or you can enter custom data from your own records or a feed company feed table"]
[null,"Similarly, the Feed conversion Ratio can be estimated from an empirical formula or you can enter your own values."]
[]
[null,null,"SFR From formula: SFR = a x In(wt) + b",null,null,null,null,null,null,"FCR from formula: FCR = a x In(wt) + b"]
[null,null,null,null,null,"Suggested values",null,null,null,null,null,null,"Suggested values"]
[null,null,"a",-1.1200000000000001,null,-1.089,null,null,null,"a",0.125,null,9.0999999999999998E-2]
[null,null,"b",8.3000000000000007,null,9.2748000000000008,null,null,null,"b",0.82220000000000004,null,0.82220000000000004]
[]
[]
[null,"Main Feed Table"]
[]
[null,null,"% body weight feed per day",null,null,null,"You can adjust the values in white boxes in this table, but Fish weight numbers must be in increasing order from left to right",null,null,null,null,null,null,null,null,null,null,null,null,null,null,null,null,null,null,null,null,null,null,"Feed adjustment table for temperature"]
[null,null,"Fish weight (g)"]
[null,"Temp (°C)",1,3,7,12,20,40,70,100,130,170,230,300,400,500,600,700,800,900,null,null,null,null,null,null,null,null,null,null,{"$f":"C17","v":1},{"$f":"D17","v":3},7,12,20,40,70,100,130,170,230,300,400,500,600,700,800,900]
[null,20,{"$f":"C$24*AE18","v":3.3200000000000003},2.8278216946766874,2.4482322532232201,2.2067618208949762,1.9779119414478126,1.6673820045569567,1.4166741315618872,1.2568837566773352,1.1393445661958992,1.0191623002014827,{"$f":"M$24*AO18","v":0.88374046960240848},0.7647054513540219,0.6358238828956243,0.5358555719068584,0.45417551446316651,0.38511600990055472,0.32529394600476852,0.27252714603070877,null,null,null,null,null,null,null,null,null,{"$f":"B18","v":20},0.4,0.4,0.4,0.4,0.4,0.4,0.4,0.4,0.4,0.4,0.4,0.4,0.4,0.4,0.4,0.4,0.4,0.4]
[null,21,4.1500000000000004,3.5347771183458589,3.0602903165290249,2.75845227611872,2.4723899268097655,2.0842275056961959,1.7708426644523589,1.5711046958466688,1.424180707744874,1.2739528752518532,1.1046755870030105,0.95588181419252738,0.7947798536195303,0.66981946488357291,0.56771939307895813,0.48139501237569338,0.40661743250596061,0.34065893253838597,null,null,null,null,null,null,null,null,null,{"$f":"B19","v":21},0.5,0.5,0.5,0.5,0.5,0.5,0.5,0.5,0.5,0.5,0.5,0.5,0.5,0.5,0.5,0.5,0.5,0.5]
[null,22,4.9800000000000004,4.2417325420150309,3.6723483798348298,3.3101427313424638,2.9668679121717187,2.5010730068354348,2.1250111973428307,1.8853256350160024,1.7090168492938489,1.5287434503022237,1.3256107044036125,1.1470581770310329,0.95373582434343629,0.80378335786028743,0.68126327169474976,0.57767401485083203,0.4879409190071527,0.40879071904606318,null,null,null,null,null,null,null,null,null,22,0.6,0.6,0.6,0.6,0.6,0.6,0.6,0.6,0.6,0.6,0.6,0.6,0.6,0.6,0.6,0.6,0.6,0.6]
[null,23,5.8100000000000005,4.9486879656842024,4.284406443140635,3.8618331865662077,3.4613458975336715,2.9179185079746741,2.4791797302333025,2.1995465741853359,1.9938529908428235,1.7835340253525944,1.5465458218042145,1.3382345398695383,1.1126917950673423,0.93774725083700206,0.79480715031054139,0.67395301732597068,0.56926440550834478,0.47692250555374033,null,null,null,null,null,null,null,null,null,23,0.7,0.7,0.7,0.7,0.7,0.7,0.7,0.7,0.7,0.7,0.7,0.7,0.7,0.7,0.7,0.7,0.7,0.7]
[null,24,6.6400000000000006,5.6556433893533749,4.8964645064464403,4.4135236417899524,3.9558238828956251,3.3347640091139135,2.8333482631237743,2.5137675133546704,2.2786891323917984,2.0383246004029654,1.767480939204817,1.5294109027080438,1.2716477657912486,1.0717111438137168,0.90835102892633302,0.77023201980110945,0.65058789200953704,0.54505429206141753,null,null,null,null,null,null,null,null,null,24,0.8,0.8,0.8,0.8,0.8,0.8,0.8,0.8,0.8,0.8,0.8,0.8,0.8,0.8,0.8,0.8,0.8,0.8]
[null,25,7.4700000000000006,6.3625988130225464,5.5085225697522446,4.9652140970136962,4.4503018682575783,3.7516095102531528,3.1875167960142461,2.827988452524004,2.5635252739407735,2.2931151754533357,1.988416056605419,1.7205872655465493,1.4306037365151545,1.2056750367904312,1.0218949075421246,0.8665110222762481,0.73191137851072907,0.61318607856909479,null,null,null,null,null,null,null,null,null,25,0.9,0.9,0.9,0.9,0.9,0.9,0.9,0.9,0.9,0.9,0.9,0.9,0.9,0.9,0.9,0.9,0.9,0.9]
[null,26,{"$f":"$D$9*(LN(C17))+$D$10","v":8.3000000000000007},7.0695542366917179,6.1205806330580499,5.51690455223744,4.9447798536195311,4.1684550113923917,3.5416853289047179,3.1422093916933376,2.8483614154897481,2.5479057505037064,2.209351174006021,1.9117636283850548,1.5895597072390606,1.3396389297671458,1.1354387861579163,0.96279002475138675,0.81323486501192122,0.68131786507677194,null,null,null,null,null,null,null,null,null,26,1,1,1,1,1,1,1,1,1,1,1,1,1,1,1,1,1,1]
[null,27,{"$f":"C$24*AE25","v":8.3000000000000007},7.0695542366917179,6.1205806330580499,5.51690455223744,4.9447798536195311,4.1684550113923917,3.5416853289047179,3.1422093916933376,2.8483614154897481,2.5479057505037064,{"$f":"M$24*AO25","v":2.209351174006021},1.9117636283850548,1.5895597072390606,1.3396389297671458,1.1354387861579163,0.96279002475138675,0.81323486501192122,0.68131786507677194,null,null,null,null,null,null,null,null,null,27,1,1,1,1,1,1,1,1,1,1,1,1,1,1,1,1,1,1]
[null,28,7.8850000000000007,6.7160765248571312,5.8145516014051468,5.2410593246255681,4.6975408609385543,3.9600322608227718,3.364601062459482,2.9850989221086706,2.7059433447152608,2.420510462978521,2.09888361530572,1.816175446965802,1.5100817218771074,1.2726569832787884,1.0786668468500205,0.91465052351381737,0.77257312176132509,0.64725197182293337,null,null,null,null,null,null,null,null,null,28,0.95,0.95,0.95,0.95,0.95,0.95,0.95,0.95,0.95,0.95,0.95,0.95,0.95,0.95,0.95,0.95,0.95,0.95]
[null,29,7.4700000000000006,6.3625988130225464,5.5085225697522446,4.9652140970136962,4.4503018682575783,3.7516095102531528,3.1875167960142461,2.827988452524004,2.5635252739407735,2.2931151754533357,1.988416056605419,1.7205872655465493,1.4306037365151545,1.2056750367904312,1.0218949075421246,0.8665110222762481,0.73191137851072907,0.61318607856909479,null,null,null,null,null,null,null,null,null,29,0.9,0.9,0.9,0.9,0.9,0.9,0.9,0.9,0.9,0.9,0.9,0.9,0.9,0.9,0.9,0.9,0.9,0.9]
[null,30,6.6400000000000006,5.6556433893533749,4.8964645064464403,4.4135236417899524,3.9558238828956251,3.3347640091139135,2.8333482631237743,2.5137675133546704,2.2786891323917984,2.0383246004029654,1.767480939204817,1.5294109027080438,1.2716477657912486,1.0717111438137168,0.90835102892633302,0.77023201980110945,0.65058789200953704,0.54505429206141753,null,null,null,null,null,null,null,null,null,30,0.8,0.8,0.8,0.8,0.8,0.8,0.8,0.8,0.8,0.8,0.8,0.8,0.8,0.8,0.8,0.8,0.8,0.8]
[null,"Custom SFR",8.3000000000000007,7.01,7.6,7.4,7.1,5.5,3.7,2.9,2.6,2.48,2.2000000000000002,2.09,1.8,1.7,1.6,1.5,1.4,1.3]
[null,"Custom FCR",0.82,0.96,1.06,1.1299999999999999,1.2,1.28,1.35,1.4,1.43,1.46,1.5,1.54,1.57,1.6,1.62,1.64,1.66,1.5]
[null,"Feed Type ",{"$f":"_xlfn.XLOOKUP(C17,FeedPrice[[Fish weight (g)]:[Fish weight (g)]],FeedPrice[[Feed]:[Feed]],\"Out of range\",-1)","v":"Skretting 0.5mm"},{"$f":"_xlfn.XLOOKUP(D17,FeedPrice[[Fish weight (g)]:[Fish weight (g)]],FeedPrice[[Feed]:[Feed]],\"Out of range\",-1)","v":"Skretting 1mm"},{"$f":"_xlfn.XLOOKUP(E17,FeedPrice[[Fish weight (g)]:[Fish weight (g)]],FeedPrice[[Feed]:[Feed]],\"Out of range\",-1)","v":"Skretting 2mm"},{"$f":"_xlfn.XLOOKUP(F17,FeedPrice[[Fish weight (g)]:[Fish weight (g)]],FeedPrice[[Feed]:[Feed]],\"Out of range\",-1)","v":"Unga 2mm"},{"$f":"_xlfn.XLOOKUP(G17,FeedPrice[[Fish weight (g)]:[Fish weight (g)]],FeedPrice[[Feed]:[Feed]],\"Out of range\",-1)","v":"Unga 2mm"},{"$f":"_xlfn.XLOOKUP(H17,FeedPrice[[Fish weight (g)]:[Fish weight (g)]],FeedPrice[[Feed]:[Feed]],\"Out of range\",-1)","v":"Unga 3mm"},{"$f":"_xlfn.XLOOKUP(I17,FeedPrice[[Fish weight (g)]:[Fish weight (g)]],FeedPrice[[Feed]:[Feed]],\"Out of range\",-1)","v":"Unga 3mm"},{"$f":"_xlfn.XLOOKUP(J17,FeedPrice[[Fish weight (g)]:[Fish weight (g)]],FeedPrice[[Feed]:[Feed]],\"Out of range\",-1)","v":"Unga 4mm"},{"$f":"_xlfn.XLOOKUP(K17,FeedPrice[[Fish weight (g)]:[Fish weight (g)]],FeedPrice[[Feed]:[Feed]],\"Out of range\",-1)","v":"Unga 4mm"},{"$f":"_xlfn.XLOOKUP(L17,FeedPrice[[Fish weight (g)]:[Fish weight (g)]],FeedPrice[[Feed]:[Feed]],\"Out of range\",-1)","v":"Unga 4mm"},{"$f":"_xlfn.XLOOKUP(M17,FeedPrice[[Fish weight (g)]:[Fish weight (g)]],FeedPrice[[Feed]:[Feed]],\"Out of range\",-1)","v":"Unga 4mm"},{"$f":"_xlfn.XLOOKUP(N17,FeedPrice[[Fish weight (g)]:[Fish weight (g)]],FeedPrice[[Feed]:[Feed]],\"Out of range\",-1)","v":"Unga 4mm"},{"$f":"_xlfn.XLOOKUP(O17,FeedPrice[[Fish weight (g)]:[Fish weight (g)]],FeedPrice[[Feed]:[Feed]],\"Out of range\",-1)","v":"Unga 4mm"},{"$f":"_xlfn.XLOOKUP(P17,FeedPrice[[Fish weight (g)]:[Fish weight (g)]],FeedPrice[[Feed]:[Feed]],\"Out of range\",-1)","v":"Unga 4mm"},{"$f":"_xlfn.XLOOKUP(Q17,FeedPrice[[Fish weight (g)]:[Fish weight (g)]],FeedPrice[[Feed]:[Feed]],\"Out of range\",-1)","v":"Unga 4mm"},{"$f":"_xlfn.XLOOKUP(R17,FeedPrice[[Fish weight (g)]:[Fish weight (g)]],FeedPrice[[Feed]:[Feed]],\"Out of range\",-1)","v":"Unga 4mm"},{"$f":"_xlfn.XLOOKUP(S17,FeedPrice[[Fish weight (g)]:[Fish weight (g)]],FeedPrice[[Feed]:[Feed]],\"Out of range\",-1)","v":"Unga 4mm"},{"$f":"_xlfn.XLOOKUP(T17,FeedPrice[[Fish weight (g)]:[Fish weight (g)]],FeedPrice[[Feed]:[Feed]],\"Out of range\",-1)","v":"Unga 4mm"}]
[null,"Feed Size",{"$f":"_xlfn.XLOOKUP(C31,FeedPrice[[Feed]:[Feed]],FeedPrice[[Feed size (mm)]:[Feed size (mm)]],\"Not Found\",0)","v":0.5},{"$f":"_xlfn.XLOOKUP(D31,FeedPrice[[Feed]:[Feed]],FeedPrice[[Feed size (mm)]:[Feed size (mm)]],\"Not Found\",0)","v":1},{"$f":"_xlfn.XLOOKUP(E31,FeedPrice[[Feed]:[Feed]],FeedPrice[[Feed size (mm)]:[Feed size (mm)]],\"Not Found\",0)","v":2},{"$f":"_xlfn.XLOOKUP(F31,FeedPrice[[Feed]:[Feed]],FeedPrice[[Feed size (mm)]:[Feed size (mm)]],\"Not Found\",0)","v":2},{"$f":"_xlfn.XLOOKUP(G31,FeedPrice[[Feed]:[Feed]],FeedPrice[[Feed size (mm)]:[Feed size (mm)]],\"Not Found\",0)","v":2},{"$f":"_xlfn.XLOOKUP(H31,FeedPrice[[Feed]:[Feed]],FeedPrice[[Feed size (mm)]:[Feed size (mm)]],\"Not Found\",0)","v":3},{"$f":"_xlfn.XLOOKUP(I31,FeedPrice[[Feed]:[Feed]],FeedPrice[[Feed size (mm)]:[Feed size (mm)]],\"Not Found\",0)","v":3},{"$f":"_xlfn.XLOOKUP(J31,FeedPrice[[Feed]:[Feed]],FeedPrice[[Feed size (mm)]:[Feed size (mm)]],\"Not Found\",0)","v":4},{"$f":"_xlfn.XLOOKUP(K31,FeedPrice[[Feed]:[Feed]],FeedPrice[[Feed size (mm)]:[Feed size (mm)]],\"Not Found\",0)","v":4},{"$f":"_xlfn.XLOOKUP(L31,FeedPrice[[Feed]:[Feed]],FeedPrice[[Feed size (mm)]:[Feed size (mm)]],\"Not Found\",0)","v":4},{"$f":"_xlfn.XLOOKUP(M31,FeedPrice[[Feed]:[Feed]],FeedPrice[[Feed size (mm)]:[Feed size (mm)]],\"Not Found\",0)","v":4},{"$f":"_xlfn.XLOOKUP(N31,FeedPrice[[Feed]:[Feed]],FeedPrice[[Feed size (mm)]:[Feed size (mm)]],\"Not Found\",0)","v":4},{"$f":"_xlfn.XLOOKUP(O31,FeedPrice[[Feed]:[Feed]],FeedPrice[[Feed size (mm)]:[Feed size (mm)]],\"Not Found\",0)","v":4},{"$f":"_xlfn.XLOOKUP(P31,FeedPrice[[Feed]:[Feed]],FeedPrice[[Feed size (mm)]:[Feed size (mm)]],\"Not Found\",0)","v":4},{"$f":"_xlfn.XLOOKUP(Q31,FeedPrice[[Feed]:[Feed]],FeedPrice[[Feed size (mm)]:[Feed size (mm)]],\"Not Found\",0)","v":4},{"$f":"_xlfn.XLOOKUP(R31,FeedPrice[[Feed]:[Feed]],FeedPrice[[Feed size (mm)]:[Feed size (mm)]],\"Not Found\",0)","v":4},{"$f":"_xlfn.XLOOKUP(S31,FeedPrice[[Feed]:[Feed]],FeedPrice[[Feed size (mm)]:[Feed size (mm)]],\"Not Found\",0)","v":4},{"$f":"_xlfn.XLOOKUP(T31,FeedPrice[[Feed]:[Feed]],FeedPrice[[Feed size (mm)]:[Feed size (mm)]],\"Not Found\",0)","v":4}]
[]
[]
[null,"Calculation methods are selected on start page:"]
[]
[null,"SFR (Temp/Custom):",null,{"$f":"IF('0-StartHere'!$C$60=\"Temp.\",'0-StartHere'!$C$32,IF('0-StartHere'!$C$60=\"Custom\",FeedTables!B29,\"Error\"))","v":26}]
[null,"FCR ( Formula/Custom):",null,{"$f":"'0-StartHere'!C58","v":"Formula"}]
[]
[null,"Growth Table",null,"(data used in model calculations)"]
[]
[null,"BW (g)",{"$f":"C17","v":1},3,7,12,20,40,70,100,130,170,230,300,400,500,600,700,800,900]
[null,"BW (kg)",{"$f":"C42/1000","v":1E-3},{"$f":"D42/1000","v":3.0000000000000001E-3},7.0000000000000001E-3,1.2E-2,0.02,0.04,7.0000000000000007E-2,0.1,0.13,0.17,0.23,0.3,0.4,0.5,0.6,0.7,0.8,0.9]
[null,"SFR  (% bm/d)",{"$f":"_xlfn.XLOOKUP($D$37,$B$18:$B$29,_xlfn.XLOOKUP(C$42,$C$17:$T$17,$C$18:$T$29))","v":8.3000000000000007},{"$f":"_xlfn.XLOOKUP($D$37,$B$18:$B$29,_xlfn.XLOOKUP(D$42,$C$17:$T$17,$C$18:$T$29))","v":7.0695542366917179},{"$f":"_xlfn.XLOOKUP($D$37,$B$18:$B$29,_xlfn.XLOOKUP(E$42,$C$17:$T$17,$C$18:$T$29))","v":6.1205806330580499},{"$f":"_xlfn.XLOOKUP($D$37,$B$18:$B$29,_xlfn.XLOOKUP(F$42,$C$17:$T$17,$C$18:$T$29))","v":5.51690455223744},{"$f":"_xlfn.XLOOKUP($D$37,$B$18:$B$29,_xlfn.XLOOKUP(G$42,$C$17:$T$17,$C$18:$T$29))","v":4.9447798536195311},{"$f":"_xlfn.XLOOKUP($D$37,$B$18:$B$29,_xlfn.XLOOKUP(H$42,$C$17:$T$17,$C$18:$T$29))","v":4.1684550113923917},{"$f":"_xlfn.XLOOKUP($D$37,$B$18:$B$29,_xlfn.XLOOKUP(I$42,$C$17:$T$17,$C$18:$T$29))","v":3.5416853289047179},{"$f":"_xlfn.XLOOKUP($D$37,$B$18:$B$29,_xlfn.XLOOKUP(J$42,$C$17:$T$17,$C$18:$T$29))","v":3.1422093916933376},{"$f":"_xlfn.XLOOKUP($D$37,$B$18:$B$29,_xlfn.XLOOKUP(K$42,$C$17:$T$17,$C$18:$T$29))","v":2.8483614154897481},{"$f":"_xlfn.XLOOKUP($D$37,$B$18:$B$29,_xlfn.XLOOKUP(L$42,$C$17:$T$17,$C$18:$T$29))","v":2.5479057505037064},{"$f":"_xlfn.XLOOKUP($D$37,$B$18:$B$29,_xlfn.XLOOKUP(M$42,$C$17:$T$17,$C$18:$T$29))","v":2.209351174006021},{"$f":"_xlfn.XLOOKUP($D$37,$B$18:$B$29,_xlfn.XLOOKUP(N$42,$C$17:$T$17,$C$18:$T$29))","v":1.9117636283850548},{"$f":"_xlfn.XLOOKUP($D$37,$B$18:$B$29,_xlfn.XLOOKUP(O$42,$C$17:$T$17,$C$18:$T$29))","v":1.5895597072390606},{"$f":"_xlfn.XLOOKUP($D$37,$B$18:$B$29,_xlfn.XLOOKUP(P$42,$C$17:$T$17,$C$18:$T$29))","v":1.3396389297671458},{"$f":"_xlfn.XLOOKUP($D$37,$B$18:$B$29,_xlfn.XLOOKUP(Q$42,$C$17:$T$17,$C$18:$T$29))","v":1.1354387861579163},{"$f":"_xlfn.XLOOKUP($D$37,$B$18:$B$29,_xlfn.XLOOKUP(R$42,$C$17:$T$17,$C$18:$T$29))","v":0.96279002475138675},{"$f":"_xlfn.XLOOKUP($D$37,$B$18:$B$29,_xlfn.XLOOKUP(S$42,$C$17:$T$17,$C$18:$T$29))","v":0.81323486501192122},{"$f":"_xlfn.XLOOKUP($D$37,$B$18:$B$29,_xlfn.XLOOKUP(T$42,$C$17:$T$17,$C$18:$T$29))","v":0.68131786507677194}]
[null,"FCR",{"$f":"IF($D$38=\"Formula\",$K$9*(LN(C42))+$K$10,C30)","v":0.82220000000000004},{"$f":"IF($D$38=\"Formula\",$K$9*(LN(D42))+$K$10,D30)","v":0.95952653608351379},1.0654387686319142,1.1328133312235,1.1966665341942488,1.283309931764242,1.3532619052561699,1.3978462732485115,1.4306418063069479,1.4641748046312828,1.5019599136153996,1.5351728093320252,1.5711330683884976,1.599026012302774,1.6218162069020183,1.6410850418804257,1.657776465958491,1.672499345415539]
[null,"SGR",{"$f":"C44/C45","v":10.09486742884943},{"$f":"D44/D45","v":7.3677527101516338},5.7446573310986553,4.870091479483988,4.1321284688127413,3.2482059931241785,2.6171469950853923,2.2478933855802543,1.9909675524179564,1.74016500109448,1.4709787884337371,1.2453084218035946,1.0117282483713892,0.83778432587092055,0.70010324309609862,0.58667893508320601,0.49055761238697893,0.40736510118483538]

{"sheet":"OperatingCosts","index":12,"n_rows":80,"n_cols":48,"rows_kept":80,"cut":false,"hidden":false,"merged":[]}
[]
[null,"Operating costs"]
[]
[null,"For the following variables"]
[null,"Use Your Values or Default Values?",null,null,"Default Value"]
[]
[]
[null,"Item","Used",null,"Your Value","Default Value",null,null,null,null,null,null,null,null,null,null,null,null,null,null,null,null,null,null,null,null,null,null,null,null,null,null,null,null,null,null,null,null,null,null,null,null,null,null,null,null,"Item","Set default Value"]
[null,"Cost of labour per person/day",{"$f":"IF($E$5=$E$8,$E9,F9)","v":1200},null,800,{"$f":"AV9","v":1200},null,"Edit labour and fuel to feed table",null,null,null,null,null,null,null,null,null,null,null,null,null,null,null,null,null,null,null,null,null,null,null,null,null,null,null,null,null,null,null,null,null,null,null,null,null,null,"Cost of labour per person/day",1200]
[null,"Number of Labourers",{"$f":"IF($E$5=$E$8,$E10,F10)","v":3},null,2,{"$f":"_xlfn.XLOOKUP(('5-Comparison'!H32/'0-StartHere'!C30)*LabourToFeed!J5,LabourFromFeed[Feed Quantity (kg)],LabourFromFeed[No. Labour],\"Out of range\",-1)","v":3},null,null,null,null,null,null,null,null,null,null,null,null,null,null,null,null,null,null,null,null,null,null,null,null,null,null,null,null,null,null,null,null,null,null,null,null,null,null,null,null,"Number of Labourers","Calculated From Feed"]
[null,{"$f":"_xlfn.CONCAT(\"Cost of fuel\",\" (\",'0-StartHere'!$C$49,\"/Litre)\")","v":"Cost of fuel (KES/Litre)"},180,null,160,{"$f":"AV11","v":180},null,null,null,null,null,null,null,null,null,null,null,null,null,null,null,null,null,null,null,null,null,null,null,null,null,null,null,null,null,null,null,null,null,null,null,null,null,null,null,null,{"$f":"_xlfn.CONCAT(\"Cost of fuel\",\" (\",'0-StartHere'!$C$49,\"/Litre)\")","v":"Cost of fuel (KES/Litre)"},180]
[null,"Fuel consumption (l/hr)",8,null,10,{"$f":"AV12","v":8},null,null,null,null,null,null,null,null,null,null,null,null,null,null,null,null,null,null,null,null,null,null,null,null,null,null,null,null,null,null,null,null,null,null,null,null,null,null,null,null,"Fuel consumption (l/hr)",8]
[null,"Hour of fuel use per day",1,null,3,1,null,null,null,null,null,null,null,null,null,null,null,null,null,null,null,null,null,null,null,null,null,null,null,null,null,null,null,null,null,null,null,null,null,null,null,null,null,null,null,null,"Hour of fuel use per day",1]
[null,{"$f":"_xlfn.CONCAT(\"Other varible costs\",\" (\",\n'0-StartHere'!$C$49,\"/kg)\")","v":"Other varible costs (KES/kg)"},10,null,15,10,null,null,null,null,null,null,null,null,null,null,null,null,null,null,null,null,null,null,null,null,null,null,null,null,null,null,null,null,null,null,null,null,null,null,null,null,null,null,null,null,{"$f":"_xlfn.CONCAT(\"Other varible costs\",\" (\",\n'0-StartHere'!$C$49,\"/kg)\")","v":"Other varible costs (KES/kg)"},10]
[null,{"$f":"_xlfn.CONCAT(\"Processing cost\",\" (\",\n'0-StartHere'!$C$49,\"/kg)\")","v":"Processing cost (KES/kg)"},0,null,10,0,null,null,null,null,null,null,null,null,null,null,null,null,null,null,null,null,null,null,null,null,null,null,null,null,null,null,null,null,null,null,null,null,null,null,null,null,null,null,null,null,{"$f":"_xlfn.CONCAT(\"Processing cost\",\" (\",\n'0-StartHere'!$C$49,\"/kg)\")","v":"Processing cost (KES/kg)"},0]
[null,{"$f":"_xlfn.CONCAT(\"Distribution\",\" (\",\n'0-StartHere'!$C$49,\"/kg)\")","v":"Distribution (KES/kg)"},10,null,20,10,null,null,null,null,null,null,null,null,null,null,null,null,null,null,null,null,null,null,null,null,null,null,null,null,null,null,null,null,null,null,null,null,null,null,null,null,null,null,null,null,{"$f":"_xlfn.CONCAT(\"Distribution\",\" (\",\n'0-StartHere'!$C$49,\"/kg)\")","v":"Distribution (KES/kg)"},10]
[null,"Annual lease cost per cage",0,null,1000,0,null,null,null,null,null,null,null,null,null,null,null,null,null,null,null,null,null,null,null,null,null,null,null,null,null,null,null,null,null,null,null,null,null,null,null,null,null,null,null,null,"Annual lease cost per cage",0]
[null,"Annual rent shore-base facilities",0,null,0,0,null,null,null,null,null,null,null,null,null,null,null,null,null,null,null,null,null,null,null,null,null,null,null,null,null,null,null,null,null,null,null,null,null,null,null,null,null,null,null,null,"Annual rent shore-base facilities",0]
[null,"% Credit days required on fry",1,null,0,1,null,null,null,null,null,null,null,null,null,null,null,null,null,null,null,null,null,null,null,null,null,null,null,null,null,null,null,null,null,null,null,null,null,null,null,null,null,null,null,null,"% Credit days required on fry",1]
[null,"% Credit days required on feed",0.4,null,0,0.4,null,null,null,null,null,null,null,null,null,null,null,null,null,null,null,null,null,null,null,null,null,null,null,null,null,null,null,null,null,null,null,null,null,null,null,null,null,null,null,null,"% Credit days required on feed",0.4]
[null,"Interest rate on short-term credit",0.14000000000000001,null,0.15,0.14000000000000001,null,null,null,null,null,null,null,null,null,null,null,null,null,null,null,null,null,null,null,null,null,null,null,null,null,null,null,null,null,null,null,null,null,null,null,null,null,null,null,null,"Interest rate on short-term credit",0.14000000000000001]
[null,"Interest rate on long-term loans",{"$f":"IF($E$5=$E$8,$E22,F22)","v":0.1},null,0.12,0.1,null,null,null,null,null,null,null,null,null,null,null,null,null,null,null,null,null,null,null,null,null,null,null,null,null,null,null,null,null,null,null,null,null,null,null,null,null,null,null,null,"Interest rate on long-term loans",0.1]
[null,"% of startup costs borrowed",0.5,null,0,0.5,null,null,null,null,null,null,null,null,null,null,null,null,null,null,null,null,null,null,null,null,null,null,null,null,null,null,null,null,null,null,null,null,null,null,null,null,null,null,null,null,"% of startup costs borrowed",0.5]
[]
[]
[null,"Annual Direct (Variable) costs",null,null,"Using strategy from comparison page"]
[]
[null,"Production",{"$f":"_xlfn.CONCAT('0-StartHere'!$C$49,\"/Yr\")","v":"KES/Yr"},null,"% of variable production cost",null,"% of total cost"]
[null,"Fry/fingerlings",{"$f":"'5-Comparison'!H35","v":2313951.7043538755},null,{"$f":"C29/(SUM($C$29:$C$34))","v":0.25588696072659761},null,{"$f":"C29/$C$60","v":0.24315656744276484}]
[null,"Feed",{"$f":"'5-Comparison'!H34","v":4402533.0441009402},null,{"$f":"C30/(SUM($C$29:$C$34))","v":0.4868514749178709},null,{"$f":"C30/$C$60","v":0.46263058171987564}]
[null,"Labour",{"$f":"C10*'0-StartHere'!C30*C9","v":1314000},null,0.14530790152711343,null,0.13807882377951752]
[null,"Fuel",{"$f":"C13*C12*C11*'0-StartHere'!C30","v":525600},null,5.8123160610845374E-2,null,5.5231529511807015E-2]
[null,"Other",{"$f":"C14*'5-Comparison'!H28","v":298261.73304678866},null,3.2983094775394947E-2,null,3.1342183620655273E-2]
[null,"Interest on feed/seed credit",{"$f":"'5-Comparison'!C50","v":188520.32884054771},null,2.0847407442177588E-2,null,1.9810247537922893E-2]
[]
[null,"Post-harvest"]
[null,"Processing",{"$f":"C15*'5-Comparison'!H28","v":0}]
[null,"Distribution",{"$f":"C16*'5-Comparison'!H28","v":298261.73304678866}]
[]
[]
[null,"Annual Fixed costs"]
[]
[null,"Production",{"$f":"_xlfn.CONCAT('0-StartHere'!$C$49,\"/Yr\")","v":"KES/Yr"}]
[null,"Maintenance",{"$f":"SUM(SetupCosts!K19:K28)","v":140175}]
[null,"Lease/rent on cages",{"$f":"C17*'0-StartHere'!C11","v":0}]
[null,"Shore-base rent",{"$f":"C18","v":0}]
[]
[null,"Post-harvest"]
[null,"Rent ",0]
[null,"Other fixed processing costs",0]
[]
[null,"Overheads"]
[null,"Marketing",25000]
[null,"Administration",10000]
[]
[null,"Annual interest payments",{"$f":"SetupCosts!C32*OperatingCosts!C23*OperatingCosts!C22","v":158202.5}]
[]
[null,"Totals"]
[null,null,{"$f":"_xlfn.CONCAT('0-StartHere'!$C$49,\"/Yr\")","v":"KES/Yr"}]
[null,"Total costs",{"$f":"SUM(C29:C34)+SUM(C37:C38)+SUM(C44:C46)+SUM(C49:C50)+SUM(C53:C54)","v":9516303.5433889423}]
[null,"Gross profit (production)",{"$f":"'5-Comparison'!H30-SUM(OperatingCosts!C29:C34)","v":1552616.2614482064}]
[null,"Gross profit (Prod. & Distrib.)",{"$f":"'5-Comparison'!H30-SUM(OperatingCosts!C29:C34)-SUM(C37:C38)","v":1254354.5284014177}]
[null,"Net profit (production)",{"$f":"'5-Comparison'!H30-SUM(OperatingCosts!C29:C34)-SUM(C44:C46)","v":1412441.2614482064}]
[null,"Net profit (Prod. & Distrib.)",{"$f":"'5-Comparison'!H30-SUM(OperatingCosts!C29:C34)-SUM(C37:C38)-SUM(C44:C46)-SUM(C49:C50)","v":1114179.5284014177}]
[null,"Net profit (overall)",{"$f":"'5-Comparison'!H30-SUM(OperatingCosts!C29:C34)-SUM(C37:C38)-SUM(C44:C46)-SUM(C49:C50)-SUM(C53:C54)","v":1079179.5284014177}]
[]
[]
[null,"Cost of production"]
[]
[null,"Production only",{"$f":"_xlfn.CONCAT('0-StartHere'!C49,\"/kg\")","v":"KES/kg"}]
[null,"Variable costs only",{"$f":"SUM(C29:C34)/'5-Comparison'!$H$28","v":303.18561881767073}]
[null,"Variable & fixed costs",{"$f":"(SUM(C29:C34)+SUM(C44:C46))/'5-Comparison'!$H$28","v":307.88535010965012}]
[null,"Variable, fixed and overheads",{"$f":"(SUM(C29:C34)+SUM(C44:C46)+SUM(C53:C54))/'5-Comparison'!$H$28","v":309.05881610015683}]
[]
[null,"Production & distribution"]
[null,"Variable costs only",{"$f":"(SUM(C29:C34)+SUM(C37:C38))/'5-Comparison'!$H$28","v":313.18561881767073}]
[null,"Variable & fixed costs",{"$f":"(SUM(C29:C34)+SUM(C44:C46)+SUM(C37:C38)+SUM(C49:C50))/'5-Comparison'!$H$28","v":317.88535010965012}]
[null,"Varible, fixed & overheads",{"$f":"(SUM(C29:C34)+SUM(C44:C46)+SUM(C37:C38)+SUM(C49:C50)+SUM(C53:C54))/'5-Comparison'!$H$28","v":319.05881610015683}]
[null,"Including equip.  depreciation",{"$f":"(SUM(C29:C34)+SUM(C44:C45)+SUM(C37:C38)+SUM(C49:C50)+SUM(C53:C54)+SetupCosts!C36)/'5-Comparison'!$H$28","v":335.27477498497052}]
[null,"Including equip. & other  dep.",{"$f":"(SUM(C29:C34)+SUM(C44:C46)+SUM(C37:C38)+SUM(C49:C50)+SUM(C53:C54)+SetupCosts!C35)/'5-Comparison'!$H$28","v":338.71135395716874}]

{"sheet":"SetupCosts","index":13,"n_rows":36,"n_cols":11,"rows_kept":36,"cut":false,"hidden":false,"merged":[]}
[]
[null,"Cost of setting up the farm"]
[]
[]
[null,"For the following variables"]
[null,"Use Your Values or Default Values?",null,null,"Default Value"]
[null,null,null,null,null,null,null,"Note, the number and volume of cages is taken from the Start Page"]
[null,null,"Used",null,"Your Value","Default Value",null,"Default values for cage collar, moorings and nets are from Cage Cost Table"]
[null,{"$f":"_xlfn.CONCAT(\"Cage collar\",\" (\",'0-StartHere'!$C$49,\" per cage)\")","v":"Cage collar (KES per cage)"},{"$f":"IF($E$6=$E$8,$E9,$F9)","v":94500},null,100000,{"$f":"_xlfn.XLOOKUP('0-StartHere'!C25,CageCosts[Cage vol],CageCosts[Collar],\"Out of range\",-1)*'0-StartHere'!C25","v":94500}]
[null,{"$f":"_xlfn.CONCAT(\"Moorings\",\" (\",'0-StartHere'!$C$49,\" per cage)\")","v":"Moorings (KES per cage)"},94500,null,125000,{"$f":"_xlfn.XLOOKUP('0-StartHere'!$C$25,CageCosts[Cage vol],CageCosts[Mooring],\"Out of range\",-1)*'0-StartHere'!C25","v":94500},null,"Edit cage cost lookup table "]
[null,{"$f":"_xlfn.CONCAT(\"Nets\",\" (\",'0-StartHere'!$C$49,\" per cage)\")","v":"Nets (KES per cage)"},47250,null,50000,{"$f":"_xlfn.XLOOKUP('0-StartHere'!$C$25,CageCosts[Cage vol],CageCosts[Nets],\"Out of range\",-1)*'0-StartHere'!C25","v":47250}]
[null,"No. nets per cage",2,null,2,2]
[null,"No. staff to equip",3,null,4,{"$f":"_xlfn.XLOOKUP(('5-Comparison'!H32/'0-StartHere'!C30)*LabourToFeed!J5,LabourFromFeed[Feed Quantity (kg)],LabourFromFeed[No. Labour],\"Out of range\",-1)","v":3}]
[null,"Other equipment",241050,null,250000,{"$f":"SUM(G19:G25)*0.1","v":241050}]
[]
[]
[null,"Setup costs"]
[null,"Item","Category",null,"Number","Item Cost","Total Cost","Life (years)","Annualised cost","Annual maintenance %","Maintenance"]
[null,"Cage collar","Equipment",null,{"$f":"'0-StartHere'!C11","v":8},{"$f":"C9","v":94500},{"$f":"E19*F19","v":756000},10,{"$f":"G19/H19","v":75600},2.5000000000000001E-2,{"$f":"G19*J19","v":18900}]
[null,"Moorings","Equipment",null,{"$f":"'0-StartHere'!C11","v":8},{"$f":"C10","v":94500},756000,10,{"$f":"G20/H20","v":75600},0.05,{"$f":"G20*J20","v":37800}]
[null,"Nets","Equipment",null,{"$f":"'0-StartHere'!C11*SetupCosts!C12","v":16},{"$f":"C11","v":47250},756000,3,252000,0.1,75600]
[null,"Boat","Equipment",null,1,35000,35000,10,3500,2.5000000000000001E-2,875]
[null,"Outboard engine","Equipment",null,1,70000,70000,7,10000,0.1,7000]
[null,"Diving equipment","Equipment",null,0,75000,0,5,0,0.05,0]
[null,"Safety and clothing ","Equipment",null,{"$f":"C13","v":3},12500,37500,2,18750,0,0]
[null,"Other equipment","Equipment",null,1,{"$f":"C14","v":241050},241050,5,48210,0,0]
[null,"Extension services/training","Other",null,1,12500,12500,5,2500,0,0]
[null,"Survey/Reg/Licences","Other",null,1,500000,500000,5,100000,0,0]
[]
[]
[null,"Totals",{"$f":"'0-StartHere'!$C$49","v":"KES"}]
[null,"Total setup cost",{"$f":"SUM(G19:G28)","v":3164050}]
[null,"Total equipment cost",{"$f":"SUMIF(C19:C28,\"Equipment\",G19:G28)","v":2651550}]
[null,"Other set-up costs",{"$f":"SUMIF(C19:C28,\"Other\",G19:G28)","v":512500}]
[null,"Annulised setup cost",{"$f":"SUM(I19:I28)","v":586160}]
[null,"Annualised setup cost ex. Other",{"$f":"SUMIF(C19:C28,\"Equipment\",I19:I28)","v":483660}]

{"sheet":"FeedCosts","index":14,"n_rows":7,"n_cols":10,"rows_kept":7,"cut":false,"hidden":false,"merged":[]}
["Feed","Code","Feed size (mm)","Type","Price per kg","Fish weight (g)","Feed rate (Guide-Not Used)","Protein"]
["Skretting 0.5mm","SKN05",0.5,"Crumble",135.58445,1,0.08,0.48,null,"You can adjust the values in this table, but Fish weight numbers must be in increasing order from top to bottom"]
["Skretting 1mm","SKN10",1,"Micropellet",135.58445,3,7.0000000000000007E-2,0.46]
["Skretting 2mm","SKN20",2,"Micropellet",135.58445,7,0.05,0.4]
["Unga 2mm","UNG20",2,"Pellet",118.4233,12,0.05,0.35]
["Unga 3mm","UNG30",3,"Pellet",106.1491,40,0.03,0.32]
["Unga 4mm","UNG40",4,"Pellet",99.330100000000002,100,0.03,0.32]

{"sheet":"SalesPrices","index":15,"n_rows":16,"n_cols":6,"rows_kept":16,"cut":false,"hidden":false,"merged":[]}
["Size Range (g)","Label","Wt class","Price per kg"]
["0-99","0+",100,219,null,"You can adjust the values in this table, but weight class  numbers must be in increasing order from top to bottom"]
["100-199","100+",200,271]
["200-299","200+",300,344]
["300-399","300+",400,358]
["400-499","400+",500,365]
["500-599","500+",600,363]
["600-699","600+",700,378]
["700-799","700+",800,388]
["800-899","800+",900,405]
["900-999","900+",1000,405]
["1000-1099","1000+",1100,405]
["1100-1199","1100+",1200,405]
["1200-1299","1200+",1300,405]
["1300-1399","1300+",1400,405]
["1400-1499","1400+",1500,405]

{"sheet":"FryCosts","index":16,"n_rows":10,"n_cols":5,"rows_kept":10,"cut":false,"hidden":false,"merged":[]}
["Wt (g)","mono sex","mixed sex",null,"Table values are price per fish"]
[1,2,1,null,"You can adjust the values in this table, but fish weight numbers must be in increasing order from top to bottom"]
[3,4,2]
[5,6,3]
[10,12,6]
[20,20,10]
[30,30,15]
[40,40,20]
[50,50,25]
[60,60,30]

{"sheet":"CageCost_m3","index":17,"n_rows":15,"n_cols":7,"rows_kept":15,"cut":false,"hidden":false,"merged":[]}
["Cage vol","Collar","Mooring","Nets","Total",null,{"$f":"_xlfn.CONCAT('0-StartHere'!$C$49,\" per m3 of cage volume\")","v":"KES per m3 of cage volume"}]
[4,5000,5000,2500,{"$f":"SUM(B2:D2)","v":12500},null,"You can adjust the values in this table, but Cage Volume numbers must be in increasing order from top to bottom"]
[8,4050,4050,2025,{"$f":"SUM(B3:D3)","v":10125}]
[10,3400,3400,1700,8500]
[12.5,2600,2600,1300,6500]
[14,2250,2250,1125,5625]
[15,2500,2500,1250,6250]
[15.625,2250,2250,1125,5625]
[18.75,2000,2000,1000,5000]
[20,3500,3500,1750,8750]
[62.5,3750,3750,1875,9375]
[64,3000,3000,1500,7500]
[72,1500,1500,750,3750]
[125,900,900,450,2250]
[144,1100,1100,550,2750]

{"sheet":"GrowthAdjust","index":18,"n_rows":26,"n_cols":4,"rows_kept":26,"cut":false,"hidden":false,"merged":[]}
["Biomass kg/m3","Multiplier"]
[0,1,null,"You can adjust the values in this table, but Biomass numbers must be in increasing order from top to bottom"]
[5,1]
[10,1]
[15,1]
[20,1]
[25,0.97]
[30,0.95]
[35,0.93]
[40,0.9]
[45,0.87]
[50,0.84]
[55,0.8]
[60,0.76]
[65,0.72]
[70,0.65]
[75,0.6]
[80,0.55000000000000004]
[85,0.5]
[90,0.45]
[95,0.4]
[100,0.35]
[105,0.3]
[110,0.25]
[115,0.2]
[120,0.15]

{"sheet":"LabourToFeed","index":19,"n_rows":102,"n_cols":10,"rows_kept":102,"cut":false,"hidden":false,"merged":[]}
["Feed Quantity (kg)","No. Labour","Boat hours",null,"Number of labourers and boad hours in relation to daily feed amount"]
[0,1,0.5,null,"You can adjust the values in this table, but Feed Quantity numbers must be in increasing order from top to bottom"]
[10,1,0.5]
[20,1,0.5]
[30,1,0.5,null,"Multiplier for labour from average feed",null,null,null,null,3]
[40,1,0.5]
[50,1,0.5,null,"Multiplier for boat hour from average feed",null,null,null,null,1.5]
[60,1,0.5]
[70,1,0.5]
[80,1,0.5]
[90,1,0.5]
[100,1,0.5]
[110,1,1]
[120,2,1]
[130,2,1]
[140,2,1]
[150,2,1]
[160,2,1]
[170,2,1]
[180,2,1]
[190,2,1]
[200,2,1]
[210,2,1]
[220,2,1]
[230,2,1]
[240,3,1]
[250,3,1]
[260,3,1]
[270,3,1]
[280,3,1]
[290,3,1]
[300,3,1.5]
[310,3,1.5]
[320,3,1.5]
[330,3,1.5]
[340,3,1.5]
[350,3,1.5]
[360,4,1.5]
[370,4,1.5]
[380,4,1.5]
[390,4,1.5]
[400,4,1.5]
[410,4,1.5]
[420,4,2]
[430,4,2]
[440,4,2]
[450,4,2]
[460,4,2]
[470,4,2]
[480,5,2]
[490,5,2]
[500,5,2]
[510,5,2]
[520,5,2.5]
[530,5,2.5]
[540,5,2.5]
[550,5,2.5]
[560,5,2.5]
[570,5,2.5]
[580,5,2.5]
[590,5,2.5]
[600,6,2.5]
[610,6,2.5]
[620,6,3]
[630,6,3]
[640,6,3]
[650,6,3]
[660,6,3]
[670,6,3]
[680,6,3]
[690,6,3]
[700,6,3]
[710,6,3]
[720,6,3.5]
[730,6,3.5]
[740,6,3.5]
[750,6,3.5]
[760,6,3.5]
[770,6,3.5]
[780,6,3.5]
[790,6,3.5]
[800,7,3.5]
[810,7,3.5]
[820,7,4]
[830,7,4]
[840,7,4]
[850,7,4]
[860,7,4]
[870,7,4]
[880,7,4]
[890,7,4]
[900,7,4]
[910,7,4]
[920,7,4.5]
[930,7,4.5]
[940,7,4.5]
[950,7,4.5]
[960,7,4.5]
[970,7,4.5]
[980,7,4.5]
[990,7,4.5]
[1000,7,4.5]

{"sheet":"Consolidate","index":20,"n_rows":99,"n_cols":49,"rows_kept":99,"cut":false,"hidden":false,"merged":[]}
[null,"Compare scenarios with different base assumptions"]
[]
[null,"Annual comparison for 1 cage"]
[null,null,"Strategy A","Strategy B","Strategy C","Strategy D"]
[null,null,"Standard","Double","Short","Partial"]
[null,"Individual cage volume (m3)",27,27,27,27]
[null,"Annual production (kg)",2358.9078280313606,4512.9259768791744,3883.4201242054182,3412.2870427591492]
[null,{"$f":"_xlfn.CONCAT(\"Annual income\",\" (\",'0-StartHere'!$C$49,\")\")","v":"Annual income (KES)"},856499.47902415157,1631737.4136142316,1188015.4685933357,1178698.2309835933]
[null,"Annual feed use (kg)",3306.2864547680374,6563.1812005082193,4645.8131006091508,4562.4251890928608]
[null,"Fingerlings used (No.)",5028.0612244897957,10056.122448979591,17188.953488372095,10056.122448979591]
[null,{"$f":"_xlfn.CONCAT(\"Feed cost\",\" (\",'0-StartHere'!$C$49,\")\")","v":"Feed cost (KES)"},338080.69906396832,671152.19289042335,470723.40415891988,458600.24542354525]
[null,{"$f":"_xlfn.CONCAT(\"Fry/Fingerling cost\",\" (\",'0-StartHere'!$C$49,\")\")","v":"Fry/Fingerling cost (KES)"},211691.02040816325,423382.04081632651,687558.13953488378,402244.89795918367]
[null,{"$f":"_xlfn.CONCAT(\"Income less feed and fry\",\" (\",'0-StartHere'!$C$49,\")\")","v":"Income less feed and fry (KES)"},306727.75955202,537203.17990748177,29733.92489953211,317853.08760086435]
[]
[null,"The table above summarises the results for each of the 4 selected strategies."]
[null,"You can now allocate your cages to the stragegies for a total annual production estimate"]
[]
[null,"Annual total for all cages"]
[]
[null,"Number of cages to allocate (from start sheet)",null,null,null,null,{"$f":"'0-StartHere'!C11","v":8}]
[]
[null,null,{"$f":"C4","v":"Strategy A"},{"$f":"D4","v":"Strategy B"},"Strategy C","Strategy D"]
[null,null,{"$f":"C5","v":"Standard"},{"$f":"D5","v":"Double"},"Short","Partial"]
[null,"Number of cages per strategy",1,4,0,3,{"$f":"SUM(C24:F24)","v":8},{"$f":"IF(G24=G20,\"OK\",IF(Consolidate!G24>G20,\"Over-Allocated\",\"Under-Allocated\"))","v":"OK"}]
[]
[null,"Individual cage volume  (m3)",{"$f":"C6","v":27},{"$f":"D6","v":27},27,27,null,"TOTAL"]
[null,"Total cage volume (m3)",{"$f":"C24*C26","v":27},{"$f":"D24*D26","v":108},0,81,null,{"$f":"SUM(C27:F27)","v":216}]
[null,"Percentage of total cage volume",{"$f":"C27/$H$27","v":0.125},{"$f":"D27/$H$27","v":0.5},0,0.375,null,{"$f":"SUM(C28:F28)","v":1}]
[null,"Annual production (kg)",{"$f":"C7*C$24","v":2358.9078280313606},{"$f":"D7*D$24","v":18051.703907516698},{"$f":"E7*E$24","v":0},{"$f":"F7*F$24","v":10236.861128277447},null,{"$f":"SUM(C29:F29)","v":30647.472863825507}]
[null,"Percentage of total production",{"$f":"C29/$H$29","v":7.6969081219602872E-2},{"$f":"D29/$H$29","v":0.58901117190722363},0,0.33401974687317343,null,{"$f":"SUM(C30:F30)","v":1}]
[null,{"$f":"_xlfn.CONCAT(\"Annual income\",\" (\",'0-StartHere'!$C$49,\")\")","v":"Annual income (KES)"},{"$f":"C8*C$24","v":856499.47902415157},{"$f":"D8*D$24","v":6526949.6544569265},{"$f":"E8*E$24","v":0},{"$f":"F8*F$24","v":3536094.6929507796},null,{"$f":"SUM(C31:F31)","v":10919543.826431857}]
[null,"Percentage of annual income",{"$f":"C31/$H$31","v":7.8437294875900232E-2},{"$f":"D31/$H$31","v":0.59773098200840469},0,0.32383172311569514,null,{"$f":"SUM(C32:F32)","v":1},null,null,null,null,null,null,null,null,null,null,null,null,null,null,null,null,null,null,null,null,null,null,null,null,null,null,null,null,null,null,null,null,null,null,null,null,null,null,null,{"$f":"_xlfn.CONCAT(\"Total interest on feed credit\",\" (\",'0-StartHere'!$C$49,\")\")","v":"Total interest on feed credit (KES)"},{"$f":"H35-BB22","v":4398490.2068962976}]
[null,"Annual feed use (kg)",{"$f":"C9*C$24","v":3306.2864547680374},26252.724802032877,0,13687.275567278582,null,43246.286824079492,null,null,null,null,null,null,null,null,null,null,null,null,null,null,null,null,null,null,null,null,null,null,null,null,null,null,null,null,null,null,null,null,null,null,null,null,null,null,null,{"$f":"_xlfn.CONCAT(\"Total interest on seed credit\",\" (\",'0-StartHere'!$C$49,\")\")","v":"Total interest on seed credit (KES)"},{"$f":"H36-BB23","v":3111953.8775510201}]
[null,"Fingerlings used (No.)",5028.0612244897957,40224.489795918365,0,30168.367346938772,null,75420.918367346923,null,null,null,null,null,null,null,null,null,null,null,null,null,null,null,null,null,null,null,null,null,null,null,null,null,null,null,null,null,null,null,null,null,null,null,null,null,null,null,{"$f":"_xlfn.CONCAT(\"Interest on feed & seed credit\",\" (\",'0-StartHere'!$C$49,\")\")","v":"Interest on feed & seed credit (KES)"},{"$f":"AW32+AW33","v":7510444.0844473178}]
[null,{"$f":"_xlfn.CONCAT(\"Feed cost\",\" (\",'0-StartHere'!$C$49,\")\")","v":"Feed cost (KES)"},338080.69906396832,2684608.7715616934,0,1375800.7362706359,null,4398490.2068962976]
[null,{"$f":"_xlfn.CONCAT(\"Fry/Fingerling cost\",\" (\",'0-StartHere'!$C$49,\")\")","v":"Fry/Fingerling cost (KES)"},211691.02040816325,1693528.163265306,0,1206734.693877551,null,3111953.8775510201]
[null,{"$f":"_xlfn.CONCAT(\"Income less feed and fry\",\" (\",'0-StartHere'!$C$49,\")\")","v":"Income less feed and fry (KES)"},306727.75955202,2148812.7196299271,0,953559.26280259306,null,3409099.7419845401]
[null,"Percentage of income less feed and fry",{"$f":"C37/$H$37","v":8.9973243016194207E-2},{"$f":"D37/$H$37","v":0.6303167646186375},0,0.27970999236516836,null,{"$f":"SUM(C38:F38)","v":1}]
[]
[null,"NB. Ensure data on the SetupCosts and OperatingCosts sheets match the selected strategies for the following analysis to be meaningful"]
[]
[null,"Profit/Loss calculation"]
[null,null,{"$f":"'0-StartHere'!$C$49","v":"KES"}]
[null,"Annual income from sales",{"$f":"H31","v":10919543.826431857}]
[null,"Less variable costs:"]
[null,"Cost of feed*",{"$f":"H35","v":4398490.2068962976}]
[null,"Cost of fry/fingerlings*",{"$f":"H36","v":3111953.8775510201}]
[null,"Labour",{"$f":"OperatingCosts!C31","v":1314000}]
[null,"Fuel and other inputs",{"$f":"OperatingCosts!C32+OperatingCosts!C33","v":823861.73304678872}]
[null,"Processing & distribution",{"$f":"OperatingCosts!C37+OperatingCosts!C38","v":298261.73304678866}]
[null,"Gross profit",{"$f":"C44-C46-C47-C48-C49-C50","v":972976.27589096222},{"$f":"C51/C44","v":8.9104113812499663E-2}]
[null,"Less fixed costs:"]
[null,"Lease, processing & maintenance",{"$f":"OperatingCosts!C44+OperatingCosts!C45+OperatingCosts!C49+OperatingCosts!C50","v":140175}]
[null,"Administration and sales",{"$f":"OperatingCosts!C53+OperatingCosts!C54","v":35000}]
[null,"Net profit",{"$f":"C51-C53-C54","v":797801.27589096222},{"$f":"C55/C44","v":7.3061776991068417E-2}]
[null,"Less"]
[null,"Depreciation",{"$f":"SetupCosts!C35","v":586160}]
[null,"Long term loan interest payments",{"$f":"OperatingCosts!C56","v":158202.5}]
[null,"Annual return ",{"$f":"C55-C57-C58","v":53438.775890962221},{"$f":"C59/C44","v":4.8938652328688196E-3}]
[]
[null,"*Includes cost of financing if selected previously"]
[]
[null,"Other indicators"]
[]
[null,"Variable cost breakeven price per kg fish",{"$f":"SUM(C46:C50)/H29","v":324.54772355084594},{"$f":"'0-StartHere'!C49","v":"KES"}]
[null,"Total cost breakeven price per kg fish",{"$f":"(SUM(C46:C50)+SUM(C53:C54)+SUM(C57:C58))/H29","v":354.55142088947281},{"$f":"'0-StartHere'!C49","v":"KES"}]
[null,"Breakeven yield (above total costs)",{"$f":"(SUM(C46:C50)+SUM(C53:C54)+SUM(C57:C58))/(H31/H29)","v":30497.488261901937},"Kg/yr"]
[null,"Breakeven yield (above variable costs)",{"$f":"(SUM(C46:C50))/(H31/H29)","v":27916.656953701699},"Kg/yr"]
[null,"Gross profit/loss per m3",{"$f":"C51/('0-StartHere'!C11*'0-StartHere'!C25)","v":4504.5197957914916},{"$f":"_xlfn.CONCAT('0-StartHere'!C49,\"/yr\")","v":"KES/yr"}]
[null,"Net operating profit/loss per m3",{"$f":"C55/('0-StartHere'!C11*'0-StartHere'!C25)","v":3693.5244254211216},{"$f":"_xlfn.CONCAT('0-StartHere'!C49,\"/yr\")","v":"KES/yr"}]
[null,"Overall profit/loss per m3",{"$f":"C59/('0-StartHere'!C11*'0-StartHere'!C25)","v":247.40174023593622},{"$f":"_xlfn.CONCAT('0-StartHere'!C49,\"/yr\")","v":"KES/yr"}]
[]
[]
[]
[]
[]
[]
[]
[]
[]
[]
[]
[]
[]
[]
[null,"Data for chart"]
[null,"Annual income",{"$f":"C44","v":10919543.826431857}]
[null,"Feed",{"$f":"-C46","v":-4398490.2068962976}]
[null,"Fry/fingerlings",{"$f":"-C47","v":-3111953.8775510201}]
[null,"Labour",-1314000]
[null,"Fuel etc.",-823861.73304678872]
[null,"Processing & distrib.",{"$f":"-C50","v":-298261.73304678866}]
[null,"Gross profit",{"$f":"SUM(C87:C92)","v":972976.27589096222}]
[null,"Fixed costs",{"$f":"-C53","v":-140175}]
[null,"Admin. & sales",{"$f":"-C54","v":-35000}]
[null,"Net profit",{"$f":"SUM(C93:C95)","v":797801.27589096222}]
[null,"Depreciation",{"$f":"-C57","v":-586160}]
[null,"Interest payments",{"$f":"-C58","v":-158202.5}]
[null,"Annual return",{"$f":"C96+C97+C98","v":53438.775890962221}]